{"text_format":"1","workbook":"xlsx","n_sheets":61,"sheets":["Sheet1","Sheet2","Sheet3","Sheet4","Sheet5","Sheet6","Sheet7","Sheet8","Sheet9","Sheet10","Sheet11","Sheet12","Sheet13","Sheet14","Sheet15","Sheet16","Sheet17","Sheet18","START","Instructions","Template names","Lookup and lists","Org structure","Contacts","B1-Sum","B2-FinPerf SC","B2B","B3-FinPerf V","B3B","B4-FinPerf RE","B5-Capex","B5B","B6-FinPos","B7-CFlow","B8-ResRecon","B9-Asset","B10-SerDel","SB1","SB2","SB3","SB4","SB5","SB6","SB7","SB8","SB9","SB10","SB11","SB12","SB13","SB14","SB15","SB16","SB17","SB18a","SB18b","SB18c","SB18d","SB18e","SB19","SB20"],"not_rendered":{"charts":0,"images":21,"macros":1,"external_links":0,"defined_names":1262,"comments":1,"pivot_tables":0},"unopened":[],"bounds":{"document_bytes":16777216,"sheet_cells":100000,"rows_first":2000,"rows_last":500,"rows_between":2000,"halvings":0,"cell_chars":16384,"cell_head_chars":4096},"cells_cut":0,"cells_raw":0,"read":"whole","date_system":"1900"}

{"sheet":"Sheet1","index":0,"n_rows":18213,"n_cols":99,"rows_kept":562,"cut":true,"hidden":true,"merged":[],"bounds":{"rows_first":250,"rows_last":62,"rows_between":250,"halvings":3}}
["S71_Account","S71_AccountExtAccount","S71_AccountExtensionID","S71_AccountLink","S71_ItemSCOAAccount","S71_ItemType","S71_A2Code","S71_A2Description","S71_A2SubCode","S71_A2SubDescription","S71_A4Code","S71_A4Description","S71_A4SubCode","S71_A4SubDescription","S71_A5CapexCode","S71_A5GCode","S71_A5GDescription","S71_A6Code","S71_A6Description","S71_A6SubCode","S71_A6SubDescription","S71_A7Code","S71_A7CodePayments","S71_A7Description","S71_A7DescriptionPayments","S71_A7SubCode","S71_A7SubCodePayments","S71_A7SubDescription","S71_A7SubDescriptionPayments","S71_A8Code","S71_A8Description","S71_A8SubCode","S71_A8SubDescription","S71_A9Code","S71_A9Description","S71_A9SubCode","S71_A9SubDescription","S71_SA17Ref","S71_SA1SubCode","S71_SA1SubDescription","S71_SA21SubCode","S71_SA21SubDescription","S71_SA22SubCode","S71_SA22SubDescription","S71_SA30FDSubCode","S71_SA30FDSubDescription","S71_SA34aCode","S71_SA34aCode_2","S71_SA34aDescription","S71_SA34aSubDescription","S71_SA34bSubCode","S71_SA34bSubDescription","S71_SA34cCode","S71_SA34cDescription","S71_SA34Code","S71_SA34cSubCode","S71_SA34cSubDescription","S71_SA34dCode","S71_SA34dDescription","S71_SA34Description","S71_SA34dSubCode","S71_SA34dSubDescription","S71_SA34eCode","S71_SA34eDescription","S71_SA34eSubCode","S71_SA34eSubDescription","S71_SA3Code","S71_SA3Description","S71_SA3SubCode","S71_SA3SubDescription","S71_CFCode","S71_ProjectType","S71_RepMaintCode","S71_StaffCode","RegionDesc","S71_MasterVoteMunicipal","S71_SubMunicipalVoteNo","S71_MasterVoteDescription","S71_FxVoteDescription","S71_WIPCode","S71_WIPOpBalance","S71_ConsDepositsCode","S71_DepCode","S71_NonCurrentInvCode","S71_NonCurrentRecCode","S71_OriginalBudget","S71_PreviousBudget","S71_CurrentAdjustedBudget","S71_CurrentAdjustments","S71_OY1AdjustedBudget","S71_OY2AdjustedBudget","S71_PreviousAdjustments","S71_JulyActual","S71_AugustActual","S71_SeptemberActual","S71_OctoberActual","S71_NovemberActual","S71_DecemberActual","S71_JanuaryActual"]
["C0001-1/IL65531/F0002/X049/R0100/001/CONTRA","C0001-1/IL65531/F0002/X049/R0100/001/CONTRA",250073,39740,"Liabilities:Current Liabilities:Trade and Other Payable Exchange Transactions:Payables and Accruals : Contractors:Withdrawals","IL",1200,"Municipal governance and administration / Finance and administration / Finance",1204,"Municipal governance and administration / Finance and administration / Finance"," _"," _"," _ "," _ ","_",2080,"Funded by Internally generated funds",380,"Current liabilities / Trade and other payables from exchange transactions","_","_"," _ ",null," _ ","CASH FLOW FROM OPERATING ACTIVITIES / Payments / Suppliers and employees"," _ ",null," _ ","Cash Payments by Type / Contracted services","_","_","_","_"," _ "," _ "," _ "," _ ",null," _ "," _ ","_","_","_","_",null,null,1550,1550,"Land","Land"," _ "," _ "," _ "," _ "," _ "," _ "," _ "," _ "," _ "," _ "," _ "," _ "," _ "," _ "," _ "," _ ",361,"Trade and other payables / Trade and other payables from exchange transactions",361,"Trade and other payables / Trade and other payables from exchange transactions",null,"C","_",null,null,2,23,"Finance and administration","Finance",null,"_","_","_","_","_",0,0,0,0,0,0,0,0,0,0,0,0,0,0]
["C0003-1/IA10376/F0002/X052/R0099/001/CONTRA","C0003-1/IA10376/F0002/X052/R0099/001/CONTRA",262991,36924,"Assets:Current Assets:VAT Receivable:Input Tax Accrual:Transfers","IA",1200,"Municipal governance and administration / Finance and administration / Information Technology",1207,"Municipal governance and administration / Finance and administration / Information Technology"," _"," _"," _ "," _ ","_",2080,"Funded by Internally generated funds",170,"Current assets / VAT","_","_"," _ "," _ "," _ "," _ "," _ "," _ "," _ "," _ ",1003,"Statutory requirements",1003,"Statutory requirements"," _ "," _ "," _ "," _ ",null," _ "," _ ","_","_","_","_",null,null,1470,1470,"Computer Equipment","Computer Equipment"," _ "," _ "," _ "," _ "," _ "," _ "," _ "," _ "," _ "," _ "," _ "," _ "," _ "," _ "," _ "," _ "," _ "," _ "," _ "," _ ",null,"C","_",null,null,2,26,"Finance and administration","Information Technology",null,"_","_","_","_","_",-65217,-75652,0,0,0,0,0,0,0,0,0,0,0,0]
["C0003-10/IA10371/F09788/X007/R0100/001/CONTRA","C0003-10/IA10371/F09788/X007/R0100/001/CONTRA",264030,43007,"Assets:Current Assets:VAT Receivable:Input Tax Capital:Transfers","IA",2100,"Community and public safety / Community and social services / Libraries and Archives",2114,"Community and public safety / Community and social services / Libraries and Archives"," _"," _"," _ "," _ ","_",2020,"Funded by Provincial Government",170,"Current assets / VAT","_","_"," _ "," _ "," _ "," _ "," _ "," _ "," _ "," _ ",1003,"Statutory requirements",1003,"Statutory requirements"," _ "," _ "," _ "," _ ",null," _ "," _ ","_","_","_","_",null,null,1470,1470,"Computer Equipment","Computer Equipment"," _ "," _ "," _ "," _ "," _ "," _ "," _ "," _ "," _ "," _ "," _ "," _ "," _ "," _ "," _ "," _ "," _ "," _ "," _ "," _ ",null,"C","_",null,null,4,44,"Community and social services","Libraries and Archives",null,"_","_","_","_","_",0,0,0,0,0,0,0,0,0,0,0,0,0,0]
["C0003-11/IA10370/F0002/X049/R0099/001/CONTRA","C0003-11/IA10370/F0002/X049/R0099/001/CONTRA",251239,43994,"Assets:Current Assets:VAT Receivable:Input Tax Capital:Recognised","IA",1200,"Municipal governance and administration / Finance and administration / Finance",1204,"Municipal governance and administration / Finance and administration / Finance"," _"," _"," _ "," _ ","_",2080,"Funded by Internally generated funds",170,"Current assets / VAT","_","_"," _ "," _ "," _ "," _ "," _ "," _ "," _ "," _ ",1003,"Statutory requirements",1003,"Statutory requirements"," _ "," _ "," _ "," _ ",null," _ "," _ ","_","_","_","_",null,null,1470,1470,"Computer Equipment","Computer Equipment"," _ "," _ "," _ "," _ "," _ "," _ "," _ "," _ "," _ "," _ "," _ "," _ "," _ "," _ "," _ "," _ "," _ "," _ "," _ "," _ ",null,"C","_",null,null,2,23,"Finance and administration","Finance",null,"_","_","_","_","_",0,0,0,0,0,0,0,0,0,0,0,0,0,0]
["C0003-11/IA10375/F0002/X049/R0099/001/CONTRA","C0003-11/IA10375/F0002/X049/R0099/001/CONTRA",264671,44007,"Assets:Current Assets:VAT Receivable:Input Tax Accrual:Recognised","IA",1200,"Municipal governance and administration / Finance and administration / Finance",1204,"Municipal governance and administration / Finance and administration / Finance"," _"," _"," _ "," _ ","_",2080,"Funded by Internally generated funds",170,"Current assets / VAT","_","_"," _ "," _ "," _ "," _ "," _ "," _ "," _ "," _ ",1003,"Statutory requirements",1003,"Statutory requirements"," _ "," _ "," _ "," _ ",null," _ "," _ ","_","_","_","_",null,null,1470,1470,"Computer Equipment","Computer Equipment"," _ "," _ "," _ "," _ "," _ "," _ "," _ "," _ "," _ "," _ "," _ "," _ "," _ "," _ "," _ "," _ "," _ "," _ "," _ "," _ ",null,"C","_",null,null,2,23,"Finance and administration","Finance",null,"_","_","_","_","_",0,0,0,0,0,0,0,0,0,0,0,0,0,0]
["C0003-3/IA02108/F0002/X044/R0099/001/CONTRA","C0003-3/IA02108/F0002/X044/R0099/001/CONTRA",251489,39574,"Assets:Current Assets:Cash and Cash Equivalents:Cash at Bank:Bank Account:Specify (replace with account description):Withdrawals","IA",1100,"Municipal governance and administration / Executive and council / Mayor and Council",1110,"Municipal governance and administration / Executive and council / Mayor and Council"," _"," _"," _ "," _ ","_",2080,"Funded by Internally generated funds",120,"Current assets / Cash and cash equivalents","_","_"," _ ",310," _ ","Other Cash Flows/Payments by Type / Capital assets"," _ ",510," _ ","Capital assets","_","_","_","_"," _ "," _ "," _ "," _ ",null," _ "," _ ","_","_","_","_",null,null,1470,1470,"Computer Equipment","Computer Equipment"," _ "," _ "," _ "," _ "," _ "," _ "," _ "," _ "," _ "," _ "," _ "," _ "," _ "," _ "," _ "," _ "," _ "," _ "," _ "," _ ","W","C","_",null,null,1,11,"Executive and council","Mayor and Council",null,"_","_","_","_","_",0,0,0,0,0,0,0,0,0,0,0,0,0,0]
["C0003-3/IA06173/F0002/X044/R0099/001/EXEC","C0003-3/IA06173/F0002/X044/R0099/001/EXEC",91617,21318,"Assets:Non-current Assets:Property, Plant and Equipment:Cost Model:Computer Equipment:Future Use:Cost:Acquisitions","IA",1100,"Municipal governance and administration / Executive and council / Mayor and Council",1110,"Municipal governance and administration / Executive and council / Mayor and Council"," _"," _"," _ "," _ ","CE",2080,"Funded by Internally generated funds",230,"Non current assets / Property, plant and equipment","_","_"," _ "," _ "," _ "," _ "," _ "," _ "," _ "," _ ","_","_","_","_",1470,"Computer Equipment",1470,"Computer Equipment",null," _ "," _ ","_","_","_","_",null,null,1470,1470,"Computer Equipment","Computer Equipment"," _ "," _ "," _ "," _ "," _ "," _ "," _ "," _ "," _ "," _ "," _ "," _ "," _ "," _ "," _ "," _ ",241,"Property, plant and equipment (PPE) / PPE at cost/valuation (excl. finance leases)",241,"Property, plant and equipment (PPE) / PPE at cost/valuation (excl. finance leases)",null,"C","_",null,null,1,11,"Executive and council","Mayor and Council",null,"_","_","_","_","_",0,0,0,0,0,0,0,0,0,0,0,0,0,0]
["C0003-5/IA10375/F0002/X052/R0099/001/CONTRA","C0003-5/IA10375/F0002/X052/R0099/001/CONTRA",262558,43242,"Assets:Current Assets:VAT Receivable:Input Tax Accrual:Recognised","IA",1200,"Municipal governance and administration / Finance and administration / Information Technology",1207,"Municipal governance and administration / Finance and administration / Information Technology"," _"," _"," _ "," _ ","_",2080,"Funded by Internally generated funds",170,"Current assets / VAT","_","_"," _ "," _ "," _ "," _ "," _ "," _ "," _ "," _ ",1003,"Statutory requirements",1003,"Statutory requirements"," _ "," _ "," _ "," _ ",null," _ "," _ ","_","_","_","_",null,null,1470,1470,"Computer Equipment","Computer Equipment"," _ "," _ "," _ "," _ "," _ "," _ "," _ "," _ "," _ "," _ "," _ "," _ "," _ "," _ "," _ "," _ "," _ "," _ "," _ "," _ ",null,"C","_",null,null,2,26,"Finance and administration","Information Technology",null,"_","_","_","_","_",0,0,0,0,0,0,0,0,0,0,0,0,0,0]
["C0003-9/IA02108/F0002/X006/R0100/001/CONTRA","C0003-9/IA02108/F0002/X006/R0100/001/CONTRA",251648,43925,"Assets:Current Assets:Cash and Cash Equivalents:Cash at Bank:Bank Account:Specify (replace with account description):Withdrawals","IA",2100,"Community and public safety / Community and social services / Community Halls and Facilities",2106,"Community and public safety / Community and social services / Community Halls and Facilities"," _"," _"," _ "," _ ","_",2080,"Funded by Internally generated funds",120,"Current assets / Cash and cash equivalents","_","_"," _ ",310," _ ","Other Cash Flows/Payments by Type / Capital assets"," _ ",510," _ ","Capital assets","_","_","_","_"," _ "," _ "," _ "," _ ",null," _ "," _ ","_","_","_","_",null,null,1470,1470,"Computer Equipment","Computer Equipment"," _ "," _ "," _ "," _ "," _ "," _ "," _ "," _ "," _ "," _ "," _ "," _ "," _ "," _ "," _ "," _ "," _ "," _ "," _ "," _ ","W","C","_",null,null,4,43,"Community and social services","Community Halls and Facilities",null,"_","_","_","_","_",0,0,0,0,0,0,0,0,0,0,0,0,0,0]
["C0001-1/IA10375/F0002/X049/R0100/001/CONTRA","C0001-1/IA10375/F0002/X049/R0100/001/CONTRA",266450,39743,"Assets:Current Assets:VAT Receivable:Input Tax Accrual:Recognised","IA",1200,"Municipal governance and administration / Finance and administration / Finance",1204,"Municipal governance and administration / Finance and administration / Finance"," _"," _"," _ "," _ ","_",2080,"Funded by Internally generated funds",170,"Current assets / VAT","_","_"," _ "," _ "," _ "," _ "," _ "," _ "," _ "," _ ",1003,"Statutory requirements",1003,"Statutory requirements"," _ "," _ "," _ "," _ ",null," _ "," _ ","_","_","_","_",null,null,1550,1550,"Land","Land"," _ "," _ "," _ "," _ "," _ "," _ "," _ "," _ "," _ "," _ "," _ "," _ "," _ "," _ "," _ "," _ "," _ "," _ "," _ "," _ ",null,"C","_",null,null,2,23,"Finance and administration","Finance",null,"_","_","_","_","_",0,0,0,0,0,0,0,0,0,0,0,0,0,0]
["C0001-3/IA01286/F0002/X047/R0099/001/FIN","C0001-3/IA01286/F0002/X047/R0099/001/FIN",112288,22951,"Assets:Non-current Assets:Property, Plant and Equipment:Cost Model:Land:General Plant:Future Use:Future Use Accumulated Impairment:Impairment","IA",1200,"Municipal governance and administration / Finance and administration / Asset Management",1202,"Municipal governance and administration / Finance and administration / Asset Management"," _"," _"," _ "," _ ","_",2080,"Funded by Internally generated funds",230,"Non current assets / Property, plant and equipment","_","_"," _ "," _ "," _ "," _ "," _ "," _ "," _ "," _ ","_","_","_","_",1550,"Land",1550,"Land",null," _ "," _ ","_","_","_","_",null,null,1550,1550,"Land","Land"," _ "," _ "," _ "," _ "," _ "," _ "," _ "," _ "," _ "," _ "," _ "," _ "," _ "," _ "," _ "," _ ",241,"Property, plant and equipment (PPE) / PPE at cost/valuation (excl. finance leases)",241,"Property, plant and equipment (PPE) / PPE at cost/valuation (excl. finance leases)",null,"C","_",null,null,2,22,"Finance and administration","Asset Management",null,"_","_","_","_","_",0,0,0,0,0,0,0,0,0,0,0,0,0,0]
["C0001-4/IA10370/F0002/X098/R3649/001/CONTRA","C0001-4/IA10370/F0002/X098/R3649/001/CONTRA",249384,36751,"Assets:Current Assets:VAT Receivable:Input Tax Capital:Recognised","IA",3100,"Economic and environmental services / Planning and development / Economic Development/Planning",3105,"Economic and environmental services / Planning and development / Economic Development/Planning"," _"," _"," _ "," _ ","_",2080,"Funded by Internally generated funds",170,"Current assets / VAT","_","_"," _ "," _ "," _ "," _ "," _ "," _ "," _ "," _ ",1003,"Statutory requirements",1003,"Statutory requirements"," _ "," _ "," _ "," _ ",null," _ "," _ ","_","_","_","_",null,null,1550,1550,"Land","Land"," _ "," _ "," _ "," _ "," _ "," _ "," _ "," _ "," _ "," _ "," _ "," _ "," _ "," _ "," _ "," _ "," _ "," _ "," _ "," _ ",null,"C","_",null,null,8,82,"Planning and Development","Economic Development/Planning",null,"_","_","_","_","_",0,0,0,0,0,0,0,0,0,0,0,0,0,0]
["C0003-11/IA10373/F09788/X007/R0100/001/CONTRA","C0003-11/IA10373/F09788/X007/R0100/001/CONTRA",264434,43983,"Assets:Current Assets:VAT Receivable:VAT Control (Receivable):Transfers","IA",2100,"Community and public safety / Community and social services / Libraries and Archives",2114,"Community and public safety / Community and social services / Libraries and Archives"," _"," _"," _ "," _ ","_",2020,"Funded by Provincial Government",170,"Current assets / VAT","_","_"," _ "," _ "," _ "," _ "," _ "," _ "," _ "," _ ",1003,"Statutory requirements",1003,"Statutory requirements"," _ "," _ "," _ "," _ ",null," _ "," _ ","_","_","_","_",null,null,1470,1470,"Computer Equipment","Computer Equipment"," _ "," _ "," _ "," _ "," _ "," _ "," _ "," _ "," _ "," _ "," _ "," _ "," _ "," _ "," _ "," _ "," _ "," _ "," _ "," _ ",null,"C","_",null,null,4,44,"Community and social services","Libraries and Archives",null,"_","_","_","_","_",6522,7826,0,0,0,0,0,0,0,0,0,0,0,0]
["C0003-11/IL65530/F0002/X049/R0099/001/CONTRA","C0003-11/IL65530/F0002/X049/R0099/001/CONTRA",251240,43992,"Liabilities:Current Liabilities:Trade and Other Payable Exchange Transactions:Payables and Accruals : Contractors:Deposits","IL",1200,"Municipal governance and administration / Finance and administration / Finance",1204,"Municipal governance and administration / Finance and administration / Finance"," _"," _"," _ "," _ ","_",2080,"Funded by Internally generated funds",380,"Current liabilities / Trade and other payables from exchange transactions","_","_"," _ "," _ "," _ "," _ "," _ "," _ "," _ "," _ ","_","_","_","_"," _ "," _ "," _ "," _ ",null," _ "," _ ","_","_","_","_",null,null,1470,1470,"Computer Equipment","Computer Equipment"," _ "," _ "," _ "," _ "," _ "," _ "," _ "," _ "," _ "," _ "," _ "," _ "," _ "," _ "," _ "," _ ",361,"Trade and other payables / Trade and other payables from exchange transactions",361,"Trade and other payables / Trade and other payables from exchange transactions",null,"C","_",null,null,2,23,"Finance and administration","Finance",null,"_","_","_","_","_",0,0,0,0,0,0,0,0,0,0,0,0,0,0]
["C0004-12/IA06233/F0002/X044/R0100/001/EXE1_ACQ","C0004-12/IA06233/F0002/X044/R0100/001/EXE1_ACQ",328455,47356,"Assets:Non-current Assets:Property, Plant and Equipment:Cost Model:Furniture and Office Equipment:Future Use:Cost:Acquisitions","IA",1100,"Municipal governance and administration / Executive and council / Mayor and Council",1110,"Municipal governance and administration / Executive and council / Mayor and Council"," _"," _"," _ "," _ ","CE",2080,"Funded by Internally generated funds",230,"Non current assets / Property, plant and equipment","_","_"," _ "," _ "," _ "," _ "," _ "," _ "," _ "," _ ","_","_","_","_",1490,"Furniture and Office Equipment",1490,"Furniture and Office Equipment",null," _ "," _ ","_","_","_","_",null,null,1490,1490,"Furniture and Office Equipment","Furniture and Office Equipment"," _ "," _ "," _ "," _ "," _ "," _ "," _ "," _ "," _ "," _ "," _ "," _ "," _ "," _ "," _ "," _ ",241,"Property, plant and equipment (PPE) / PPE at cost/valuation (excl. finance leases)",241,"Property, plant and equipment (PPE) / PPE at cost/valuation (excl. finance leases)",null,"C","_",null,null,1,11,"Executive and council","Mayor and Council",null,"_","_","_","_","_",86960,86960,0,0,0,0,0,0,0,0,0,0,0,0]
["C0004-25/IA10371/F0002/X098/R0100/001/CONTRA","C0004-25/IA10371/F0002/X098/R0100/001/CONTRA",327924,46937,"Assets:Current Assets:VAT Receivable:Input Tax Capital:Transfers","IA",3100,"Economic and environmental services / Planning and development / Economic Development/Planning",3105,"Economic and environmental services / Planning and development / Economic Development/Planning"," _"," _"," _ "," _ ","_",2080,"Funded by Internally generated funds",170,"Current assets / VAT","_","_"," _ "," _ "," _ "," _ "," _ "," _ "," _ "," _ ",1003,"Statutory requirements",1003,"Statutory requirements"," _ "," _ "," _ "," _ ",null," _ "," _ ","_","_","_","_",null,null,1490,1490,"Furniture and Office Equipment","Furniture and Office Equipment"," _ "," _ "," _ "," _ "," _ "," _ "," _ "," _ "," _ "," _ "," _ "," _ "," _ "," _ "," _ "," _ "," _ "," _ "," _ "," _ ",null,"C","_",null,null,8,82,"Planning and Development","Economic Development/Planning",null,"_","_","_","_","_",-13043,-13043,0,0,0,0,0,0,0,0,0,0,0,0]
["C0004-4/IA02105/F0002/X007/R0099/001/CONTRA","C0004-4/IA02105/F0002/X007/R0099/001/CONTRA",249921,38644,"Assets:Current Assets:Cash and Cash Equivalents:Cash at Bank:Bank Account:Specify (replace with account description):Deposits","IA",2100,"Community and public safety / Community and social services / Libraries and Archives",2114,"Community and public safety / Community and social services / Libraries and Archives"," _"," _"," _ "," _ ","_",2080,"Funded by Internally generated funds",120,"Current assets / Cash and cash equivalents","_","_"," _ "," _ "," _ "," _ "," _ "," _ "," _ "," _ ","_","_","_","_"," _ "," _ "," _ "," _ ",null," _ "," _ ","_","_","_","_",null,null,1490,1490,"Furniture and Office Equipment","Furniture and Office Equipment"," _ "," _ "," _ "," _ "," _ "," _ "," _ "," _ "," _ "," _ "," _ "," _ "," _ "," _ "," _ "," _ "," _ "," _ "," _ "," _ ","D","C","_",null,null,4,44,"Community and social services","Libraries and Archives",null,"_","_","_","_","_",0,0,0,0,0,0,0,0,0,0,0,0,0,0]
["C0004-5/IA10373/F0002/X046/R0099/001/CONTRA","C0004-5/IA10373/F0002/X046/R0099/001/CONTRA",263062,37106,"Assets:Current Assets:VAT Receivable:VAT Control (Receivable):Transfers","IA",1200,"Municipal governance and administration / Finance and administration / Administrative and Corporate Support",1201,"Municipal governance and administration / Finance and administration / Administrative and Corporate Support"," _"," _"," _ "," _ ","_",2080,"Funded by Internally generated funds",170,"Current assets / VAT","_","_"," _ "," _ "," _ "," _ "," _ "," _ "," _ "," _ ",1003,"Statutory requirements",1003,"Statutory requirements"," _ "," _ "," _ "," _ ",null," _ "," _ ","_","_","_","_",null,null,1490,1490,"Furniture and Office Equipment","Furniture and Office Equipment"," _ "," _ "," _ "," _ "," _ "," _ "," _ "," _ "," _ "," _ "," _ "," _ "," _ "," _ "," _ "," _ "," _ "," _ "," _ "," _ ",null,"C","_",null,null,2,21,"Finance and administration","Administrative and Corporate Support",null,"_","_","_","_","_",78261,91304,0,0,0,0,0,0,0,0,0,0,0,0]
["C0001-1/IA02108/F0002/X044/R0100/001/CONTRA","C0001-1/IA02108/F0002/X044/R0100/001/CONTRA",251491,39761,"Assets:Current Assets:Cash and Cash Equivalents:Cash at Bank:Bank Account:Specify (replace with account description):Withdrawals","IA",1100,"Municipal governance and administration / Executive and council / Mayor and Council",1110,"Municipal governance and administration / Executive and council / Mayor and Council"," _"," _"," _ "," _ ","_",2080,"Funded by Internally generated funds",120,"Current assets / Cash and cash equivalents","_","_"," _ ",310," _ ","Other Cash Flows/Payments by Type / Capital assets"," _ ",510," _ ","Capital assets","_","_","_","_"," _ "," _ "," _ "," _ ",null," _ "," _ ","_","_","_","_",null,null,1550,1550,"Land","Land"," _ "," _ "," _ "," _ "," _ "," _ "," _ "," _ "," _ "," _ "," _ "," _ "," _ "," _ "," _ "," _ "," _ "," _ "," _ "," _ ","W","C","_",null,null,1,11,"Executive and council","Mayor and Council",null,"_","_","_","_","_",0,0,0,0,0,0,0,0,0,0,0,0,0,0]
["C0003-11/IA06173/F09788/X007/R0100/001/COMM","C0003-11/IA06173/F09788/X007/R0100/001/COMM",150331,25142,"Assets:Non-current Assets:Property, Plant and Equipment:Cost Model:Computer Equipment:Future Use:Cost:Acquisitions","IA",2100,"Community and public safety / Community and social services / Libraries and Archives",2114,"Community and public safety / Community and social services / Libraries and Archives"," _"," _"," _ "," _ ","CE",2020,"Funded by Provincial Government",230,"Non current assets / Property, plant and equipment","_","_"," _ "," _ "," _ "," _ "," _ "," _ "," _ "," _ ","_","_","_","_",1470,"Computer Equipment",1470,"Computer Equipment",null," _ "," _ ","_","_","_","_",null,null,1470,1470,"Computer Equipment","Computer Equipment"," _ "," _ "," _ "," _ "," _ "," _ "," _ "," _ "," _ "," _ "," _ "," _ "," _ "," _ "," _ "," _ ",241,"Property, plant and equipment (PPE) / PPE at cost/valuation (excl. finance leases)",241,"Property, plant and equipment (PPE) / PPE at cost/valuation (excl. finance leases)",null,"C","_",null,null,4,44,"Community and social services","Libraries and Archives",null,"_","_","_","_","_",0,0,0,0,0,0,0,0,0,0,0,0,0,0]
["C0003-12/IA10373/F0791/X099/R0100/001/CONTRA","C0003-12/IA10373/F0791/X099/R0100/001/CONTRA",264683,44024,"Assets:Current Assets:VAT Receivable:VAT Control (Receivable):Transfers","IA",3100,"Economic and environmental services / Planning and development / Project Management Unit",3108,"Economic and environmental services / Planning and development / Project Management Unit"," _"," _"," _ "," _ ","_",2010,"Funded by National Government",170,"Current assets / VAT","_","_"," _ "," _ "," _ "," _ "," _ "," _ "," _ "," _ ",1003,"Statutory requirements",1003,"Statutory requirements"," _ "," _ "," _ "," _ ",null," _ "," _ ","_","_","_","_",null,null,1470,1470,"Computer Equipment","Computer Equipment"," _ "," _ "," _ "," _ "," _ "," _ "," _ "," _ "," _ "," _ "," _ "," _ "," _ "," _ "," _ "," _ "," _ "," _ "," _ "," _ ",null,"C","_",null,null,8,83,"Planning and Development","Project Management Unit",null,"_","_","_","_","_",0,0,0,0,0,0,0,0,0,0,0,0,0,0]
["C0003-6/IA02108/F09788/X024/R0100/001/CONTRA","C0003-6/IA02108/F09788/X024/R0100/001/CONTRA",251632,43777,"Assets:Current Assets:Cash and Cash Equivalents:Cash at Bank:Bank Account:Specify (replace with account description):Withdrawals","IA",2100,"Community and public safety / Community and social services / Libraries and Archives",2114,"Community and public safety / Community and social services / Libraries and Archives"," _"," _"," _ "," _ ","_",2020,"Funded by Provincial Government",120,"Current assets / Cash and cash equivalents","_","_"," _ ",310," _ ","Other Cash Flows/Payments by Type / Capital assets"," _ ",510," _ ","Capital assets","_","_","_","_"," _ "," _ "," _ "," _ ",null," _ "," _ ","_","_","_","_",null,null,1470,1470,"Computer Equipment","Computer Equipment"," _ "," _ "," _ "," _ "," _ "," _ "," _ "," _ "," _ "," _ "," _ "," _ "," _ "," _ "," _ "," _ "," _ "," _ "," _ "," _ ","W","C","_",null,null,4,44,"Community and social services","Libraries and Archives",null,"_","_","_","_","_",-350003,-300228,0,0,0,0,0,0,0,0,0,0,0,0]
["C0003-1/IA06173/F0002/X052/R0099/001/CORP","C0003-1/IA06173/F0002/X052/R0099/001/CORP",40493,20623,"Assets:Non-current Assets:Property, Plant and Equipment:Cost Model:Computer Equipment:Future Use:Cost:Acquisitions","IA",1200,"Municipal governance and administration / Finance and administration / Information Technology",1207,"Municipal governance and administration / Finance and administration / Information Technology"," _"," _"," _ "," _ ","CE",2080,"Funded by Internally generated funds",230,"Non current assets / Property, plant and equipment","_","_"," _ "," _ "," _ "," _ "," _ "," _ "," _ "," _ ","_","_","_","_",1470,"Computer Equipment",1470,"Computer Equipment",null," _ "," _ ","_","_","_","_",null,null,1470,1470,"Computer Equipment","Computer Equipment"," _ "," _ "," _ "," _ "," _ "," _ "," _ "," _ "," _ "," _ "," _ "," _ "," _ "," _ "," _ "," _ ",241,"Property, plant and equipment (PPE) / PPE at cost/valuation (excl. finance leases)",241,"Property, plant and equipment (PPE) / PPE at cost/valuation (excl. finance leases)",null,"C","_",null,null,2,26,"Finance and administration","Information Technology",null,"_","_","_","_","_",0,0,0,0,0,0,0,-710270.82,0,0,0,0,710270.82,0]
["C0003-1/IA10370/F0002/X052/R0099/001/CONTRA","C0003-1/IA10370/F0002/X052/R0099/001/CONTRA",249413,36921,"Assets:Current Assets:VAT Receivable:Input Tax Capital:Recognised","IA",1200,"Municipal governance and administration / Finance and administration / Information Technology",1207,"Municipal governance and administration / Finance and administration / Information Technology"," _"," _"," _ "," _ ","_",2080,"Funded by Internally generated funds",170,"Current assets / VAT","_","_"," _ "," _ "," _ "," _ "," _ "," _ "," _ "," _ ",1003,"Statutory requirements",1003,"Statutory requirements"," _ "," _ "," _ "," _ ",null," _ "," _ ","_","_","_","_",null,null,1470,1470,"Computer Equipment","Computer Equipment"," _ "," _ "," _ "," _ "," _ "," _ "," _ "," _ "," _ "," _ "," _ "," _ "," _ "," _ "," _ "," _ "," _ "," _ "," _ "," _ ",null,"C","_",null,null,2,26,"Finance and administration","Information Technology",null,"_","_","_","_","_",65217,75652,0,0,0,0,0,0,0,0,0,0,0,0]
["C0003-11/IA02105/F0002/X049/R0099/001/CONTRA","C0003-11/IA02105/F0002/X049/R0099/001/CONTRA",251238,43993,"Assets:Current Assets:Cash and Cash Equivalents:Cash at Bank:Bank Account:Specify (replace with account description):Deposits","IA",1200,"Municipal governance and administration / Finance and administration / Finance",1204,"Municipal governance and administration / Finance and administration / Finance"," _"," _"," _ "," _ ","_",2080,"Funded by Internally generated funds",120,"Current assets / Cash and cash equivalents","_","_"," _ "," _ "," _ "," _ "," _ "," _ "," _ "," _ ","_","_","_","_"," _ "," _ "," _ "," _ ",null," _ "," _ ","_","_","_","_",null,null,1470,1470,"Computer Equipment","Computer Equipment"," _ "," _ "," _ "," _ "," _ "," _ "," _ "," _ "," _ "," _ "," _ "," _ "," _ "," _ "," _ "," _ "," _ "," _ "," _ "," _ ","D","C","_",null,null,2,23,"Finance and administration","Finance",null,"_","_","_","_","_",0,0,0,0,0,0,0,0,0,0,0,0,0,0]
["C0003-12/IA02108/F0002/X153/R0100/001/CONTRA","C0003-12/IA02108/F0002/X153/R0100/001/CONTRA",327930,46756,"Assets:Current Assets:Cash and Cash Equivalents:Cash at Bank:Bank Account:Specify (replace with account description):Withdrawals","IA",2300,"Community and public safety / Public safety / Police Forces, Traffic and Street Parking Control",2307,"Community and public safety / Public safety / Police Forces, Traffic and Street Parking Control"," _"," _"," _ "," _ ","_",2080,"Funded by Internally generated funds",120,"Current assets / Cash and cash equivalents","_","_"," _ ",310," _ ","Other Cash Flows/Payments by Type / Capital assets"," _ ",510," _ ","Capital assets","_","_","_","_"," _ "," _ "," _ "," _ ",null," _ "," _ ","_","_","_","_",null,null,1470,1470,"Computer Equipment","Computer Equipment"," _ "," _ "," _ "," _ "," _ "," _ "," _ "," _ "," _ "," _ "," _ "," _ "," _ "," _ "," _ "," _ "," _ "," _ "," _ "," _ ","W","C","_",null,null,6,61,"Public safety","Police Forces, Traffic and Street Parking Control",null,"_","_","_","_","_",0,0,0,0,0,0,0,0,0,0,0,0,0,0]
["C0004-6/IA06253/F0002/X044/R0100/001/TEC2","C0004-6/IA06253/F0002/X044/R0100/001/TEC2",91876,22960,"Assets:Non-current Assets:Property, Plant and Equipment:Cost Model:Furniture and Office Equipment:In-use:Cost:Acquisitions","IA",1100,"Municipal governance and administration / Executive and council / Mayor and Council",1110,"Municipal governance and administration / Executive and council / Mayor and Council"," _"," _"," _ "," _ ","CE",2080,"Funded by Internally generated funds",230,"Non current assets / Property, plant and equipment","_","_"," _ "," _ "," _ "," _ "," _ "," _ "," _ "," _ ","_","_","_","_",1490,"Furniture and Office Equipment",1490,"Furniture and Office Equipment",null," _ "," _ ","_","_","_","_",null,null,1490,1490,"Furniture and Office Equipment","Furniture and Office Equipment"," _ "," _ "," _ "," _ "," _ "," _ "," _ "," _ "," _ "," _ "," _ "," _ "," _ "," _ "," _ "," _ ",241,"Property, plant and equipment (PPE) / PPE at cost/valuation (excl. finance leases)",241,"Property, plant and equipment (PPE) / PPE at cost/valuation (excl. finance leases)",null,"C","_",null,null,1,11,"Executive and council","Mayor and Council",null,"_","_","_","_","_",0,0,0,0,0,0,0,0,0,0,0,0,0,0]
["C0004-6/IA10373/F0002/X055/R0100/001/CONTRA","C0004-6/IA10373/F0002/X055/R0100/001/CONTRA",263473,40841,"Assets:Current Assets:VAT Receivable:VAT Control (Receivable):Transfers","IA",1200,"Municipal governance and administration / Finance and administration / Property Services",1210,"Municipal governance and administration / Finance and administration / Property Services"," _"," _"," _ "," _ ","_",2080,"Funded by Internally generated funds",170,"Current assets / VAT","_","_"," _ "," _ "," _ "," _ "," _ "," _ "," _ "," _ ",1003,"Statutory requirements",1003,"Statutory requirements"," _ "," _ "," _ "," _ ",null," _ "," _ ","_","_","_","_",null,null,1490,1490,"Furniture and Office Equipment","Furniture and Office Equipment"," _ "," _ "," _ "," _ "," _ "," _ "," _ "," _ "," _ "," _ "," _ "," _ "," _ "," _ "," _ "," _ "," _ "," _ "," _ "," _ ",null,"C","_",null,null,2,27,"Finance and administration","Property Services",null,"_","_","_","_","_",0,0,0,0,0,0,0,0,0,0,0,0,0,0]
["C0004-7/IA10375/F0791/X153/R0100/001/CONTRA","C0004-7/IA10375/F0791/X153/R0100/001/CONTRA",263421,41020,"Assets:Current Assets:VAT Receivable:Input Tax Accrual:Recognised","IA",2300,"Community and public safety / Public safety / Police Forces, Traffic and Street Parking Control",2307,"Community and public safety / Public safety / Police Forces, Traffic and Street Parking Control"," _"," _"," _ "," _ ","_",2010,"Funded by National Government",170,"Current assets / VAT","_","_"," _ "," _ "," _ "," _ "," _ "," _ "," _ "," _ ",1003,"Statutory requirements",1003,"Statutory requirements"," _ "," _ "," _ "," _ ",null," _ "," _ ","_","_","_","_",null,null,1490,1490,"Furniture and Office Equipment","Furniture and Office Equipment"," _ "," _ "," _ "," _ "," _ "," _ "," _ "," _ "," _ "," _ "," _ "," _ "," _ "," _ "," _ "," _ "," _ "," _ "," _ "," _ ",null,"C","_",null,null,6,61,"Public safety","Police Forces, Traffic and Street Parking Control",null,"_","_","_","_","_",0,0,0,0,0,0,0,0,0,0,0,0,0,0]
["C0006-12/IL65530/F0002/X116/R0100/001/CONTRA","C0006-12/IL65530/F0002/X116/R0100/001/CONTRA",250986,44099,"Liabilities:Current Liabilities:Trade and Other Payable Exchange Transactions:Payables and Accruals : Contractors:Deposits","IL",3200,"Economic and environmental services / Road transport / Roads",3205,"Economic and environmental services / Road transport / Roads"," _"," _"," _ "," _ ","_",2080,"Funded by Internally generated funds",380,"Current liabilities / Trade and other payables from exchange transactions","_","_"," _ "," _ "," _ "," _ "," _ "," _ "," _ "," _ ","_","_","_","_"," _ "," _ "," _ "," _ ",null," _ "," _ ","_","_","_","_",null,null,1510,1510,"Machinery and Equipment","Machinery and Equipment"," _ "," _ "," _ "," _ "," _ "," _ "," _ "," _ "," _ "," _ "," _ "," _ "," _ "," _ "," _ "," _ ",361,"Trade and other payables / Trade and other payables from exchange transactions",361,"Trade and other payables / Trade and other payables from exchange transactions",null,"C","_",null,null,9,91,"Road transport","Roads",null,"_","_","_","_","_",0,0,0,0,0,0,0,0,0,0,0,0,0,0]
["C0003-4/IA10371/F0002/X057/R0100/001/CONTRA","C0003-4/IA10371/F0002/X057/R0100/001/CONTRA",262759,40810,"Assets:Current Assets:VAT Receivable:Input Tax Capital:Transfers","IA",1200,"Municipal governance and administration / Finance and administration / Security Services",1212,"Municipal governance and administration / Finance and administration / Security Services"," _"," _"," _ "," _ ","_",2080,"Funded by Internally generated funds",170,"Current assets / VAT","_","_"," _ "," _ "," _ "," _ "," _ "," _ "," _ "," _ ",1003,"Statutory requirements",1003,"Statutory requirements"," _ "," _ "," _ "," _ ",null," _ "," _ ","_","_","_","_",null,null,1470,1470,"Computer Equipment","Computer Equipment"," _ "," _ "," _ "," _ "," _ "," _ "," _ "," _ "," _ "," _ "," _ "," _ "," _ "," _ "," _ "," _ "," _ "," _ "," _ "," _ ",null,"C","_",null,null,2,28,"Finance and administration","Security Services",null,"_","_","_","_","_",0,0,0,0,0,0,0,0,0,0,0,0,0,0]
["C0003-6/IA10373/F09788/X024/R0100/001/CONTRA","C0003-6/IA10373/F09788/X024/R0100/001/CONTRA",262691,43771,"Assets:Current Assets:VAT Receivable:VAT Control (Receivable):Transfers","IA",2100,"Community and public safety / Community and social services / Libraries and Archives",2114,"Community and public safety / Community and social services / Libraries and Archives"," _"," _"," _ "," _ ","_",2020,"Funded by Provincial Government",170,"Current assets / VAT","_","_"," _ "," _ "," _ "," _ "," _ "," _ "," _ "," _ ",1003,"Statutory requirements",1003,"Statutory requirements"," _ "," _ "," _ "," _ ",null," _ "," _ ","_","_","_","_",null,null,1470,1470,"Computer Equipment","Computer Equipment"," _ "," _ "," _ "," _ "," _ "," _ "," _ "," _ "," _ "," _ "," _ "," _ "," _ "," _ "," _ "," _ "," _ "," _ "," _ "," _ ",null,"C","_",null,null,4,44,"Community and social services","Libraries and Archives",null,"_","_","_","_","_",45653,39161,0,0,0,0,0,0,0,0,0,0,0,0]
["C0004-13/IA10373/F0002/X153/R0100/001/CONTRA","C0004-13/IA10373/F0002/X153/R0100/001/CONTRA",263400,44242,"Assets:Current Assets:VAT Receivable:VAT Control (Receivable):Transfers","IA",2300,"Community and public safety / Public safety / Police Forces, Traffic and Street Parking Control",2307,"Community and public safety / Public safety / Police Forces, Traffic and Street Parking Control"," _"," _"," _ "," _ ","_",2080,"Funded by Internally generated funds",170,"Current assets / VAT","_","_"," _ "," _ "," _ "," _ "," _ "," _ "," _ "," _ ",1003,"Statutory requirements",1003,"Statutory requirements"," _ "," _ "," _ "," _ ",null," _ "," _ ","_","_","_","_",null,null,1490,1490,"Furniture and Office Equipment","Furniture and Office Equipment"," _ "," _ "," _ "," _ "," _ "," _ "," _ "," _ "," _ "," _ "," _ "," _ "," _ "," _ "," _ "," _ "," _ "," _ "," _ "," _ ",null,"C","_",null,null,6,61,"Public safety","Police Forces, Traffic and Street Parking Control",null,"_","_","_","_","_",0,0,0,0,0,0,0,0,0,0,0,0,0,0]
["C0004-15/IA10373/F0002/X046/R0099/001/CONTRA","C0004-15/IA10373/F0002/X046/R0099/001/CONTRA",263066,37108,"Assets:Current Assets:VAT Receivable:VAT Control (Receivable):Transfers","IA",1200,"Municipal governance and administration / Finance and administration / Administrative and Corporate Support",1201,"Municipal governance and administration / Finance and administration / Administrative and Corporate Support"," _"," _"," _ "," _ ","_",2080,"Funded by Internally generated funds",170,"Current assets / VAT","_","_"," _ "," _ "," _ "," _ "," _ "," _ "," _ "," _ ",1003,"Statutory requirements",1003,"Statutory requirements"," _ "," _ "," _ "," _ ",null," _ "," _ ","_","_","_","_",null,null,1490,1490,"Furniture and Office Equipment","Furniture and Office Equipment"," _ "," _ "," _ "," _ "," _ "," _ "," _ "," _ "," _ "," _ "," _ "," _ "," _ "," _ "," _ "," _ "," _ "," _ "," _ "," _ ",null,"C","_",null,null,2,21,"Finance and administration","Administrative and Corporate Support",null,"_","_","_","_","_",0,0,0,0,0,0,0,0,0,0,0,0,0,0]
["C0004-19/IA10370/F0002/X006/R3642/001/CONTRA","C0004-19/IA10370/F0002/X006/R3642/001/CONTRA",248852,45177,"Assets:Current Assets:VAT Receivable:Input Tax Capital:Recognised","IA",2100,"Community and public safety / Community and social services / Community Halls and Facilities",2106,"Community and public safety / Community and social services / Community Halls and Facilities"," _"," _"," _ "," _ ","_",2080,"Funded by Internally generated funds",170,"Current assets / VAT","_","_"," _ "," _ "," _ "," _ "," _ "," _ "," _ "," _ ",1003,"Statutory requirements",1003,"Statutory requirements"," _ "," _ "," _ "," _ ",null," _ "," _ ","_","_","_","_",null,null,1490,1490,"Furniture and Office Equipment","Furniture and Office Equipment"," _ "," _ "," _ "," _ "," _ "," _ "," _ "," _ "," _ "," _ "," _ "," _ "," _ "," _ "," _ "," _ "," _ "," _ "," _ "," _ ",null,"C","_",null,null,4,43,"Community and social services","Community Halls and Facilities",null,"_","_","_","_","_",0,0,0,0,0,0,0,0,0,0,0,0,0,0]
["C0001-4/IL65531/F0002/X098/R3649/001/CONTRA","C0001-4/IL65531/F0002/X098/R3649/001/CONTRA",249386,36745,"Liabilities:Current Liabilities:Trade and Other Payable Exchange Transactions:Payables and Accruals : Contractors:Withdrawals","IL",3100,"Economic and environmental services / Planning and development / Economic Development/Planning",3105,"Economic and environmental services / Planning and development / Economic Development/Planning"," _"," _"," _ "," _ ","_",2080,"Funded by Internally generated funds",380,"Current liabilities / Trade and other payables from exchange transactions","_","_"," _ ",null," _ ","CASH FLOW FROM OPERATING ACTIVITIES / Payments / Suppliers and employees"," _ ",null," _ ","Cash Payments by Type / Contracted services","_","_","_","_"," _ "," _ "," _ "," _ ",null," _ "," _ ","_","_","_","_",null,null,1550,1550,"Land","Land"," _ "," _ "," _ "," _ "," _ "," _ "," _ "," _ "," _ "," _ "," _ "," _ "," _ "," _ "," _ "," _ ",361,"Trade and other payables / Trade and other payables from exchange transactions",361,"Trade and other payables / Trade and other payables from exchange transactions",null,"C","_",null,null,8,82,"Planning and Development","Economic Development/Planning",null,"_","_","_","_","_",0,0,0,0,0,0,0,0,0,0,0,0,0,0]
["C0003-11/IA10375/F09788/X007/R0100/001/CONTRA","C0003-11/IA10375/F09788/X007/R0100/001/CONTRA",264435,43985,"Assets:Current Assets:VAT Receivable:Input Tax Accrual:Recognised","IA",2100,"Community and public safety / Community and social services / Libraries and Archives",2114,"Community and public safety / Community and social services / Libraries and Archives"," _"," _"," _ "," _ ","_",2020,"Funded by Provincial Government",170,"Current assets / VAT","_","_"," _ "," _ "," _ "," _ "," _ "," _ "," _ "," _ ",1003,"Statutory requirements",1003,"Statutory requirements"," _ "," _ "," _ "," _ ",null," _ "," _ ","_","_","_","_",null,null,1470,1470,"Computer Equipment","Computer Equipment"," _ "," _ "," _ "," _ "," _ "," _ "," _ "," _ "," _ "," _ "," _ "," _ "," _ "," _ "," _ "," _ "," _ "," _ "," _ "," _ ",null,"C","_",null,null,4,44,"Community and social services","Libraries and Archives",null,"_","_","_","_","_",6522,7826,0,0,0,0,0,0,0,0,0,0,0,0]
["C0003-12/IA10373/F0002/X153/R0100/001/CONTRA","C0003-12/IA10373/F0002/X153/R0100/001/CONTRA",327933,46755,"Assets:Current Assets:VAT Receivable:VAT Control (Receivable):Transfers","IA",2300,"Community and public safety / Public safety / Police Forces, Traffic and Street Parking Control",2307,"Community and public safety / Public safety / Police Forces, Traffic and Street Parking Control"," _"," _"," _ "," _ ","_",2080,"Funded by Internally generated funds",170,"Current assets / VAT","_","_"," _ "," _ "," _ "," _ "," _ "," _ "," _ "," _ ",1003,"Statutory requirements",1003,"Statutory requirements"," _ "," _ "," _ "," _ ",null," _ "," _ ","_","_","_","_",null,null,1470,1470,"Computer Equipment","Computer Equipment"," _ "," _ "," _ "," _ "," _ "," _ "," _ "," _ "," _ "," _ "," _ "," _ "," _ "," _ "," _ "," _ "," _ "," _ "," _ "," _ ",null,"C","_",null,null,6,61,"Public safety","Police Forces, Traffic and Street Parking Control",null,"_","_","_","_","_",0,0,0,0,0,0,0,0,0,0,0,0,0,0]
["C0003-13/IA10371/F0002/X153/R0100/001/CONTRA","C0003-13/IA10371/F0002/X153/R0100/001/CONTRA",327940,46708,"Assets:Current Assets:VAT Receivable:Input Tax Capital:Transfers","IA",2300,"Community and public safety / Public safety / Police Forces, Traffic and Street Parking Control",2307,"Community and public safety / Public safety / Police Forces, Traffic and Street Parking Control"," _"," _"," _ "," _ ","_",2080,"Funded by Internally generated funds",170,"Current assets / VAT","_","_"," _ "," _ "," _ "," _ "," _ "," _ "," _ "," _ ",1003,"Statutory requirements",1003,"Statutory requirements"," _ "," _ "," _ "," _ ",null," _ "," _ ","_","_","_","_",null,null,1470,1470,"Computer Equipment","Computer Equipment"," _ "," _ "," _ "," _ "," _ "," _ "," _ "," _ "," _ "," _ "," _ "," _ "," _ "," _ "," _ "," _ "," _ "," _ "," _ "," _ ",null,"C","_",null,null,6,61,"Public safety","Police Forces, Traffic and Street Parking Control",null,"_","_","_","_","_",-26087,-26087,0,0,0,0,0,0,0,0,0,0,0,0]
["C0001-1/IA00090/F0002/X055/R0100/001/FIN","C0001-1/IA00090/F0002/X055/R0100/001/FIN",112471,23191,"Assets:Non-current Assets:Property, Plant and Equipment:Cost Model:Other Assets:Accumulated Impairment:Impairment","IA",1200,"Municipal governance and administration / Finance and administration / Property Services",1210,"Municipal governance and administration / Finance and administration / Property Services"," _"," _"," _ "," _ ","_",2080,"Funded by Internally generated funds",230,"Non current assets / Property, plant and equipment","_","_"," _ "," _ "," _ "," _ "," _ "," _ "," _ "," _ ","_","_","_","_",1180,"Other assets",1180,"Other assets",null," _ "," _ ","_","_","_","_",null,null,1550,1550,"Land","Land"," _ "," _ "," _ "," _ "," _ "," _ "," _ "," _ "," _ "," _ "," _ "," _ "," _ "," _ "," _ "," _ ",241,"Property, plant and equipment (PPE) / PPE at cost/valuation (excl. finance leases)",241,"Property, plant and equipment (PPE) / PPE at cost/valuation (excl. finance leases)",null,"C","_",null,null,2,27,"Finance and administration","Property Services",null,"_","_","_","_","_",0,0,0,0,0,0,0,0,0,0,0,0,0,0]
["C0001-1/IA10371/F0002/X049/R0100/001/CONTRA","C0001-1/IA10371/F0002/X049/R0100/001/CONTRA",266448,39733,"Assets:Current Assets:VAT Receivable:Input Tax Capital:Transfers","IA",1200,"Municipal governance and administration / Finance and administration / Finance",1204,"Municipal governance and administration / Finance and administration / Finance"," _"," _"," _ "," _ ","_",2080,"Funded by Internally generated funds",170,"Current assets / VAT","_","_"," _ "," _ "," _ "," _ "," _ "," _ "," _ "," _ ",1003,"Statutory requirements",1003,"Statutory requirements"," _ "," _ "," _ "," _ ",null," _ "," _ ","_","_","_","_",null,null,1550,1550,"Land","Land"," _ "," _ "," _ "," _ "," _ "," _ "," _ "," _ "," _ "," _ "," _ "," _ "," _ "," _ "," _ "," _ "," _ "," _ "," _ "," _ ",null,"C","_",null,null,2,23,"Finance and administration","Finance",null,"_","_","_","_","_",0,0,0,0,0,0,0,0,0,0,0,0,0,0]
["C0003-11/IA02105/F09788/X007/R0100/001/CONTRA","C0003-11/IA02105/F09788/X007/R0100/001/CONTRA",251190,43987,"Assets:Current Assets:Cash and Cash Equivalents:Cash at Bank:Bank Account:Specify (replace with account description):Deposits","IA",2100,"Community and public safety / Community and social services / Libraries and Archives",2114,"Community and public safety / Community and social services / Libraries and Archives"," _"," _"," _ "," _ ","_",2020,"Funded by Provincial Government",120,"Current assets / Cash and cash equivalents","_","_",160," _ ","CASH FLOW FROM OPERATING ACTIVITIES / Receipts / Transfers and Subsidies - Capital"," _ ",160," _ ","CASH FLOW FROM OPERATING ACTIVITIES / Receipts / Transfers and Subsidies - Capital"," _ ","_","_","_","_"," _ "," _ "," _ "," _ ",null," _ "," _ ","_","_","_","_",280,"Other Cash Flows by Source / Transfers and subsidies - capital (monetary allocations) (National / Provincial and District)",1470,1470,"Computer Equipment","Computer Equipment"," _ "," _ "," _ "," _ "," _ "," _ "," _ "," _ "," _ "," _ "," _ "," _ "," _ "," _ "," _ "," _ "," _ "," _ "," _ "," _ ","D","C","_",null,null,4,44,"Community and social services","Libraries and Archives",null,"_","_","_","_","_",0,0,0,0,0,0,0,0,0,0,0,0,0,0]
["C0003-11/IA06233/F0002/X049/R0099/001/FIN","C0003-11/IA06233/F0002/X049/R0099/001/FIN",161316,28110,"Assets:Non-current Assets:Property, Plant and Equipment:Cost Model:Furniture and Office Equipment:Future Use:Cost:Acquisitions","IA",1200,"Municipal governance and administration / Finance and administration / Finance",1204,"Municipal governance and administration / Finance and administration / Finance"," _"," _"," _ "," _ ","CE",2080,"Funded by Internally generated funds",230,"Non current assets / Property, plant and equipment","_","_"," _ "," _ "," _ "," _ "," _ "," _ "," _ "," _ ","_","_","_","_",1490,"Furniture and Office Equipment",1490,"Furniture and Office Equipment",null," _ "," _ ","_","_","_","_",null,null,1470,1470,"Computer Equipment","Computer Equipment"," _ "," _ "," _ "," _ "," _ "," _ "," _ "," _ "," _ "," _ "," _ "," _ "," _ "," _ "," _ "," _ ",241,"Property, plant and equipment (PPE) / PPE at cost/valuation (excl. finance leases)",241,"Property, plant and equipment (PPE) / PPE at cost/valuation (excl. finance leases)",null,"C","_",null,null,2,23,"Finance and administration","Finance",null,"_","_","_","_","_",0,0,0,0,0,0,0,0,0,0,0,0,0,0]
["C0001-2/IA01286/F0002/X055/R0100/001/FIN","C0001-2/IA01286/F0002/X055/R0100/001/FIN",112459,23179,"Assets:Non-current Assets:Property, Plant and Equipment:Cost Model:Land:General Plant:Future Use:Future Use Accumulated Impairment:Impairment","IA",1200,"Municipal governance and administration / Finance and administration / Property Services",1210,"Municipal governance and administration / Finance and administration / Property Services"," _"," _"," _ "," _ ","_",2080,"Funded by Internally generated funds",230,"Non current assets / Property, plant and equipment","_","_"," _ "," _ "," _ "," _ "," _ "," _ "," _ "," _ ","_","_","_","_",1550,"Land",1550,"Land",null," _ "," _ ","_","_","_","_",null,null,1550,1550,"Land","Land"," _ "," _ "," _ "," _ "," _ "," _ "," _ "," _ "," _ "," _ "," _ "," _ "," _ "," _ "," _ "," _ ",241,"Property, plant and equipment (PPE) / PPE at cost/valuation (excl. finance leases)",241,"Property, plant and equipment (PPE) / PPE at cost/valuation (excl. finance leases)",null,"C","_",null,null,2,27,"Finance and administration","Property Services",null,"_","_","_","_","_",0,0,0,0,0,0,0,0,0,0,0,0,0,0]
["C0003-10/IA02108/F09788/X007/R0100/001/CONTRA","C0003-10/IA02108/F09788/X007/R0100/001/CONTRA",251622,43011,"Assets:Current Assets:Cash and Cash Equivalents:Cash at Bank:Bank Account:Specify (replace with account description):Withdrawals","IA",2100,"Community and public safety / Community and social services / Libraries and Archives",2114,"Community and public safety / Community and social services / Libraries and Archives"," _"," _"," _ "," _ ","_",2020,"Funded by Provincial Government",120,"Current assets / Cash and cash equivalents","_","_"," _ ",310," _ ","Other Cash Flows/Payments by Type / Capital assets"," _ ",510," _ ","Capital assets","_","_","_","_"," _ "," _ "," _ "," _ ",null," _ "," _ ","_","_","_","_",null,null,1470,1470,"Computer Equipment","Computer Equipment"," _ "," _ "," _ "," _ "," _ "," _ "," _ "," _ "," _ "," _ "," _ "," _ "," _ "," _ "," _ "," _ "," _ "," _ "," _ "," _ ","W","C","_",null,null,4,44,"Community and social services","Libraries and Archives",null,"_","_","_","_","_",0,0,0,0,0,0,0,0,0,0,0,0,0,0]
["C0003-13/IL65530/F0002/X153/R0100/001/CONTRA","C0003-13/IL65530/F0002/X153/R0100/001/CONTRA",327944,46704,"Liabilities:Current Liabilities:Trade and Other Payable Exchange Transactions:Payables and Accruals : Contractors:Deposits","IL",2300,"Community and public safety / Public safety / Police Forces, Traffic and Street Parking Control",2307,"Community and public safety / Public safety / Police Forces, Traffic and Street Parking Control"," _"," _"," _ "," _ ","_",2080,"Funded by Internally generated funds",380,"Current liabilities / Trade and other payables from exchange transactions","_","_"," _ "," _ "," _ "," _ "," _ "," _ "," _ "," _ ","_","_","_","_"," _ "," _ "," _ "," _ ",null," _ "," _ ","_","_","_","_",null,null,1470,1470,"Computer Equipment","Computer Equipment"," _ "," _ "," _ "," _ "," _ "," _ "," _ "," _ "," _ "," _ "," _ "," _ "," _ "," _ "," _ "," _ ",361,"Trade and other payables / Trade and other payables from exchange transactions",361,"Trade and other payables / Trade and other payables from exchange transactions",null,"C","_",null,null,6,61,"Public safety","Police Forces, Traffic and Street Parking Control",null,"_","_","_","_","_",-200000,-200000,0,0,0,0,0,0,0,0,0,0,0,0]
["C0003-9/IA10370/F0002/X006/R0100/001/CONTRA","C0003-9/IA10370/F0002/X006/R0100/001/CONTRA",251017,43933,"Assets:Current Assets:VAT Receivable:Input Tax Capital:Recognised","IA",2100,"Community and public safety / Community and social services / Community Halls and Facilities",2106,"Community and public safety / Community and social services / Community Halls and Facilities"," _"," _"," _ "," _ ","_",2080,"Funded by Internally generated funds",170,"Current assets / VAT","_","_"," _ "," _ "," _ "," _ "," _ "," _ "," _ "," _ ",1003,"Statutory requirements",1003,"Statutory requirements"," _ "," _ "," _ "," _ ",null," _ "," _ ","_","_","_","_",null,null,1470,1470,"Computer Equipment","Computer Equipment"," _ "," _ "," _ "," _ "," _ "," _ "," _ "," _ "," _ "," _ "," _ "," _ "," _ "," _ "," _ "," _ "," _ "," _ "," _ "," _ ",null,"C","_",null,null,4,43,"Community and social services","Community Halls and Facilities",null,"_","_","_","_","_",0,0,0,0,0,0,0,0,0,0,0,0,0,0]
["C0003-12/IA10370/F0791/X099/R0100/001/CONTRA","C0003-12/IA10370/F0791/X099/R0100/001/CONTRA",251244,44030,"Assets:Current Assets:VAT Receivable:Input Tax Capital:Recognised","IA",3100,"Economic and environmental services / Planning and development / Project Management Unit",3108,"Economic and environmental services / Planning and development / Project Management Unit"," _"," _"," _ "," _ ","_",2010,"Funded by National Government",170,"Current assets / VAT","_","_"," _ "," _ "," _ "," _ "," _ "," _ "," _ "," _ ",1003,"Statutory requirements",1003,"Statutory requirements"," _ "," _ "," _ "," _ ",null," _ "," _ ","_","_","_","_",null,null,1470,1470,"Computer Equipment","Computer Equipment"," _ "," _ "," _ "," _ "," _ "," _ "," _ "," _ "," _ "," _ "," _ "," _ "," _ "," _ "," _ "," _ "," _ "," _ "," _ "," _ ",null,"C","_",null,null,8,83,"Planning and Development","Project Management Unit",null,"_","_","_","_","_",0,0,0,0,0,0,0,0,0,0,0,0,0,0]
["C0003-12/IA10376/F0791/X099/R0100/001/CONTRA","C0003-12/IA10376/F0791/X099/R0100/001/CONTRA",264685,44018,"Assets:Current Assets:VAT Receivable:Input Tax Accrual:Transfers","IA",3100,"Economic and environmental services / Planning and development / Project Management Unit",3108,"Economic and environmental services / Planning and development / Project Management Unit"," _"," _"," _ "," _ ","_",2010,"Funded by National Government",170,"Current assets / VAT","_","_"," _ "," _ "," _ "," _ "," _ "," _ "," _ "," _ ",1003,"Statutory requirements",1003,"Statutory requirements"," _ "," _ "," _ "," _ ",null," _ "," _ ","_","_","_","_",null,null,1470,1470,"Computer Equipment","Computer Equipment"," _ "," _ "," _ "," _ "," _ "," _ "," _ "," _ "," _ "," _ "," _ "," _ "," _ "," _ "," _ "," _ "," _ "," _ "," _ "," _ ",null,"C","_",null,null,8,83,"Planning and Development","Project Management Unit",null,"_","_","_","_","_",0,0,0,0,0,0,0,0,0,0,0,0,0,0]
["C0003-2/IL65530/F0002/X098/R0100/001/CONTRA","C0003-2/IL65530/F0002/X098/R0100/001/CONTRA",249377,36700,"Liabilities:Current Liabilities:Trade and Other Payable Exchange Transactions:Payables and Accruals : Contractors:Deposits","IL",3100,"Economic and environmental services / Planning and development / Economic Development/Planning",3105,"Economic and environmental services / Planning and development / Economic Development/Planning"," _"," _"," _ "," _ ","_",2080,"Funded by Internally generated funds",380,"Current liabilities / Trade and other payables from exchange transactions","_","_"," _ "," _ "," _ "," _ "," _ "," _ "," _ "," _ ","_","_","_","_"," _ "," _ "," _ "," _ ",null," _ "," _ ","_","_","_","_",null,null,1470,1470,"Computer Equipment","Computer Equipment"," _ "," _ "," _ "," _ "," _ "," _ "," _ "," _ "," _ "," _ "," _ "," _ "," _ "," _ "," _ "," _ ",361,"Trade and other payables / Trade and other payables from exchange transactions",361,"Trade and other payables / Trade and other payables from exchange transactions",null,"C","_",null,null,8,82,"Planning and Development","Economic Development/Planning",null,"_","_","_","_","_",0,0,0,0,0,0,0,0,0,0,0,0,0,0]
["C0003-4/IL65530/F0791/X049/R0100/001/CONTRA","C0003-4/IL65530/F0791/X049/R0100/001/CONTRA",250220,40740,"Liabilities:Current Liabilities:Trade and Other Payable Exchange Transactions:Payables and Accruals : Contractors:Deposits","IL",1200,"Municipal governance and administration / Finance and administration / Finance",1204,"Municipal governance and administration / Finance and administration / Finance"," _"," _"," _ "," _ ","_",2010,"Funded by National Government",380,"Current liabilities / Trade and other payables from exchange transactions","_","_"," _ "," _ "," _ "," _ "," _ "," _ "," _ "," _ ","_","_","_","_"," _ "," _ "," _ "," _ ",null," _ "," _ ","_","_","_","_",null,null,1470,1470,"Computer Equipment","Computer Equipment"," _ "," _ "," _ "," _ "," _ "," _ "," _ "," _ "," _ "," _ "," _ "," _ "," _ "," _ "," _ "," _ ",361,"Trade and other payables / Trade and other payables from exchange transactions",361,"Trade and other payables / Trade and other payables from exchange transactions",null,"C","_",null,null,2,23,"Finance and administration","Finance",null,"_","_","_","_","_",0,0,0,0,0,0,0,0,0,0,0,0,0,0]
["C0001-1/IL65531/F0002/X044/R0100/001/CONTRA","C0001-1/IL65531/F0002/X044/R0100/001/CONTRA",250069,39758,"Liabilities:Current Liabilities:Trade and Other Payable Exchange Transactions:Payables and Accruals : Contractors:Withdrawals","IL",1100,"Municipal governance and administration / Executive and council / Mayor and Council",1110,"Municipal governance and administration / Executive and council / Mayor and Council"," _"," _"," _ "," _ ","_",2080,"Funded by Internally generated funds",380,"Current liabilities / Trade and other payables from exchange transactions","_","_"," _ ",null," _ ","CASH FLOW FROM OPERATING ACTIVITIES / Payments / Suppliers and employees"," _ ",null," _ ","Cash Payments by Type / Contracted services","_","_","_","_"," _ "," _ "," _ "," _ ",null," _ "," _ ","_","_","_","_",null,null,1550,1550,"Land","Land"," _ "," _ "," _ "," _ "," _ "," _ "," _ "," _ "," _ "," _ "," _ "," _ "," _ "," _ "," _ "," _ ",361,"Trade and other payables / Trade and other payables from exchange transactions",361,"Trade and other payables / Trade and other payables from exchange transactions",null,"C","_",null,null,1,11,"Executive and council","Mayor and Council",null,"_","_","_","_","_",0,0,0,0,0,0,0,0,0,0,0,0,0,0]
["C0001-4/IA02108/F0002/X098/R3649/001/CONTRA","C0001-4/IA02108/F0002/X098/R3649/001/CONTRA",251407,36748,"Assets:Current Assets:Cash and Cash Equivalents:Cash at Bank:Bank Account:Specify (replace with account description):Withdrawals","IA",3100,"Economic and environmental services / Planning and development / Economic Development/Planning",3105,"Economic and environmental services / Planning and development / Economic Development/Planning"," _"," _"," _ "," _ ","_",2080,"Funded by Internally generated funds",120,"Current assets / Cash and cash equivalents","_","_"," _ ",310," _ ","Other Cash Flows/Payments by Type / Capital assets"," _ ",510," _ ","Capital assets","_","_","_","_"," _ "," _ "," _ "," _ ",null," _ "," _ ","_","_","_","_",null,null,1550,1550,"Land","Land"," _ "," _ "," _ "," _ "," _ "," _ "," _ "," _ "," _ "," _ "," _ "," _ "," _ "," _ "," _ "," _ "," _ "," _ "," _ "," _ ","W","C","_",null,null,8,82,"Planning and Development","Economic Development/Planning",null,"_","_","_","_","_",0,0,0,0,0,0,0,0,0,0,0,0,0,0]
["C0001-4/IA10375/F0002/X098/R3649/001/CONTRA","C0001-4/IA10375/F0002/X098/R3649/001/CONTRA",265620,36749,"Assets:Current Assets:VAT Receivable:Input Tax Accrual:Recognised","IA",3100,"Economic and environmental services / Planning and development / Economic Development/Planning",3105,"Economic and environmental services / Planning and development / Economic Development/Planning"," _"," _"," _ "," _ ","_",2080,"Funded by Internally generated funds",170,"Current assets / VAT","_","_"," _ "," _ "," _ "," _ "," _ "," _ "," _ "," _ ",1003,"Statutory requirements",1003,"Statutory requirements"," _ "," _ "," _ "," _ ",null," _ "," _ ","_","_","_","_",null,null,1550,1550,"Land","Land"," _ "," _ "," _ "," _ "," _ "," _ "," _ "," _ "," _ "," _ "," _ "," _ "," _ "," _ "," _ "," _ "," _ "," _ "," _ "," _ ",null,"C","_",null,null,8,82,"Planning and Development","Economic Development/Planning",null,"_","_","_","_","_",0,0,0,0,0,0,0,0,0,0,0,0,0,0]
["C0003-11/IA06173/F09788/X007/R0100/001/COMM_ACQ","C0003-11/IA06173/F09788/X007/R0100/001/COMM_ACQ",328415,47316,"Assets:Non-current Assets:Property, Plant and Equipment:Cost Model:Computer Equipment:Future Use:Cost:Acquisitions","IA",2100,"Community and public safety / Community and social services / Libraries and Archives",2114,"Community and public safety / Community and social services / Libraries and Archives"," _"," _"," _ "," _ ","CE",2020,"Funded by Provincial Government",230,"Non current assets / Property, plant and equipment","_","_"," _ "," _ "," _ "," _ "," _ "," _ "," _ "," _ ","_","_","_","_",1470,"Computer Equipment",1470,"Computer Equipment",null," _ "," _ ","_","_","_","_",null,null,1470,1470,"Computer Equipment","Computer Equipment"," _ "," _ "," _ "," _ "," _ "," _ "," _ "," _ "," _ "," _ "," _ "," _ "," _ "," _ "," _ "," _ ",241,"Property, plant and equipment (PPE) / PPE at cost/valuation (excl. finance leases)",241,"Property, plant and equipment (PPE) / PPE at cost/valuation (excl. finance leases)",null,"C","_",null,null,4,44,"Community and social services","Libraries and Archives",null,"_","_","_","_","_",43480,52176,0,0,0,0,0,0,0,0,0,0,29490,0]
["C0001-2/IA01305/F0002/X055/R0100/001/FIN","C0001-2/IA01305/F0002/X055/R0100/001/FIN",112458,23178,"Assets:Non-current Assets:Property, Plant and Equipment:Cost Model:Land:General Plant:Owned and In-use:Accumulated Impairment:Impairment","IA",1200,"Municipal governance and administration / Finance and administration / Property Services",1210,"Municipal governance and administration / Finance and administration / Property Services"," _"," _"," _ "," _ ","_",2080,"Funded by Internally generated funds",230,"Non current assets / Property, plant and equipment","_","_"," _ "," _ "," _ "," _ "," _ "," _ "," _ "," _ ","_","_","_","_",1550,"Land",1550,"Land",null," _ "," _ ","_","_","_","_",null,null,1550,1550,"Land","Land"," _ "," _ "," _ "," _ "," _ "," _ "," _ "," _ "," _ "," _ "," _ "," _ "," _ "," _ "," _ "," _ ",241,"Property, plant and equipment (PPE) / PPE at cost/valuation (excl. finance leases)",241,"Property, plant and equipment (PPE) / PPE at cost/valuation (excl. finance leases)",null,"C","_",null,null,2,27,"Finance and administration","Property Services",null,"_","_","_","_","_",0,0,0,0,0,0,0,0,0,0,0,0,0,0]
["C0003-1/IA10373/F0002/X052/R0099/001/CONTRA","C0003-1/IA10373/F0002/X052/R0099/001/CONTRA",262989,36923,"Assets:Current Assets:VAT Receivable:VAT Control (Receivable):Transfers","IA",1200,"Municipal governance and administration / Finance and administration / Information Technology",1207,"Municipal governance and administration / Finance and administration / Information Technology"," _"," _"," _ "," _ ","_",2080,"Funded by Internally generated funds",170,"Current assets / VAT","_","_"," _ "," _ "," _ "," _ "," _ "," _ "," _ "," _ ",1003,"Statutory requirements",1003,"Statutory requirements"," _ "," _ "," _ "," _ ",null," _ "," _ ","_","_","_","_",null,null,1470,1470,"Computer Equipment","Computer Equipment"," _ "," _ "," _ "," _ "," _ "," _ "," _ "," _ "," _ "," _ "," _ "," _ "," _ "," _ "," _ "," _ "," _ "," _ "," _ "," _ ",null,"C","_",null,null,2,26,"Finance and administration","Information Technology",null,"_","_","_","_","_",65217,75652,0,0,0,0,0,0,0,0,0,0,0,0]
["C0003-12/IA06173/F0791/X099/R0100/001/TEC3","C0003-12/IA06173/F0791/X099/R0100/001/TEC3",161367,28170,"Assets:Non-current Assets:Property, Plant and Equipment:Cost Model:Computer Equipment:Future Use:Cost:Acquisitions","IA",3100,"Economic and environmental services / Planning and development / Project Management Unit",3108,"Economic and environmental services / Planning and development / Project Management Unit"," _"," _"," _ "," _ ","CE",2010,"Funded by National Government",230,"Non current assets / Property, plant and equipment","_","_"," _ "," _ "," _ "," _ "," _ "," _ "," _ "," _ ","_","_","_","_",1470,"Computer Equipment",1470,"Computer Equipment",null," _ "," _ ","_","_","_","_",null,null,1470,1470,"Computer Equipment","Computer Equipment"," _ "," _ "," _ "," _ "," _ "," _ "," _ "," _ "," _ "," _ "," _ "," _ "," _ "," _ "," _ "," _ ",241,"Property, plant and equipment (PPE) / PPE at cost/valuation (excl. finance leases)",241,"Property, plant and equipment (PPE) / PPE at cost/valuation (excl. finance leases)",null,"C","_",null,null,8,83,"Planning and Development","Project Management Unit",null,"_","_","_","_","_",0,0,0,0,0,0,0,0,0,0,0,0,0,0]
["C0003-12/IA10371/F0791/X099/R0100/001/CONTRA","C0003-12/IA10371/F0791/X099/R0100/001/CONTRA",264682,44027,"Assets:Current Assets:VAT Receivable:Input Tax Capital:Transfers","IA",3100,"Economic and environmental services / Planning and development / Project Management Unit",3108,"Economic and environmental services / Planning and development / Project Management Unit"," _"," _"," _ "," _ ","_",2010,"Funded by National Government",170,"Current assets / VAT","_","_"," _ "," _ "," _ "," _ "," _ "," _ "," _ "," _ ",1003,"Statutory requirements",1003,"Statutory requirements"," _ "," _ "," _ "," _ ",null," _ "," _ ","_","_","_","_",null,null,1470,1470,"Computer Equipment","Computer Equipment"," _ "," _ "," _ "," _ "," _ "," _ "," _ "," _ "," _ "," _ "," _ "," _ "," _ "," _ "," _ "," _ "," _ "," _ "," _ "," _ ",null,"C","_",null,null,8,83,"Planning and Development","Project Management Unit",null,"_","_","_","_","_",0,0,0,0,0,0,0,0,0,0,0,0,0,0]
["C0001-1/IA10370/F0002/X049/R0100/001/CONTRA","C0001-1/IA10370/F0002/X049/R0100/001/CONTRA",250071,39730,"Assets:Current Assets:VAT Receivable:Input Tax Capital:Recognised","IA",1200,"Municipal governance and administration / Finance and administration / Finance",1204,"Municipal governance and administration / Finance and administration / Finance"," _"," _"," _ "," _ ","_",2080,"Funded by Internally generated funds",170,"Current assets / VAT","_","_"," _ "," _ "," _ "," _ "," _ "," _ "," _ "," _ ",1003,"Statutory requirements",1003,"Statutory requirements"," _ "," _ "," _ "," _ ",null," _ "," _ ","_","_","_","_",null,null,1550,1550,"Land","Land"," _ "," _ "," _ "," _ "," _ "," _ "," _ "," _ "," _ "," _ "," _ "," _ "," _ "," _ "," _ "," _ "," _ "," _ "," _ "," _ ",null,"C","_",null,null,2,23,"Finance and administration","Finance",null,"_","_","_","_","_",0,0,0,0,0,0,0,0,0,0,0,0,0,0]
["C0003-11/IL65531/F09788/X007/R0100/001/CONTRA","C0003-11/IL65531/F09788/X007/R0100/001/CONTRA",251193,43988,"Liabilities:Current Liabilities:Trade and Other Payable Exchange Transactions:Payables and Accruals : Contractors:Withdrawals","IL",2100,"Community and public safety / Community and social services / Libraries and Archives",2114,"Community and public safety / Community and social services / Libraries and Archives"," _"," _"," _ "," _ ","_",2020,"Funded by Provincial Government",380,"Current liabilities / Trade and other payables from exchange transactions","_","_"," _ ",null," _ ","CASH FLOW FROM OPERATING ACTIVITIES / Payments / Suppliers and employees"," _ ",null," _ ","Cash Payments by Type / Contracted services","_","_","_","_"," _ "," _ "," _ "," _ ",null," _ "," _ ","_","_","_","_",null,null,1470,1470,"Computer Equipment","Computer Equipment"," _ "," _ "," _ "," _ "," _ "," _ "," _ "," _ "," _ "," _ "," _ "," _ "," _ "," _ "," _ "," _ ",361,"Trade and other payables / Trade and other payables from exchange transactions",361,"Trade and other payables / Trade and other payables from exchange transactions",null,"C","_",null,null,4,44,"Community and social services","Libraries and Archives",null,"_","_","_","_","_",50002,60002,0,0,0,0,0,0,0,0,0,0,0,0]
["C0003-4/IA10370/F0791/X049/R0100/001/CONTRA","C0003-4/IA10370/F0791/X049/R0100/001/CONTRA",250219,40632,"Assets:Current Assets:VAT Receivable:Input Tax Capital:Recognised","IA",1200,"Municipal governance and administration / Finance and administration / Finance",1204,"Municipal governance and administration / Finance and administration / Finance"," _"," _"," _ "," _ ","_",2010,"Funded by National Government",170,"Current assets / VAT","_","_"," _ "," _ "," _ "," _ "," _ "," _ "," _ "," _ ",1003,"Statutory requirements",1003,"Statutory requirements"," _ "," _ "," _ "," _ ",null," _ "," _ ","_","_","_","_",null,null,1470,1470,"Computer Equipment","Computer Equipment"," _ "," _ "," _ "," _ "," _ "," _ "," _ "," _ "," _ "," _ "," _ "," _ "," _ "," _ "," _ "," _ "," _ "," _ "," _ "," _ ",null,"C","_",null,null,2,23,"Finance and administration","Finance",null,"_","_","_","_","_",0,0,0,0,0,0,0,0,0,0,0,0,0,0]
["C0003-7/IA10373/F0002/X101/R0099/001/CONTRA","C0003-7/IA10373/F0002/X101/R0099/001/CONTRA",262707,43837,"Assets:Current Assets:VAT Receivable:VAT Control (Receivable):Transfers","IA",3100,"Economic and environmental services / Planning and development / Town Planning, Building Regulations and Enforcement, and City Engineer",3107,"Economic and environmental services / Planning and development / Town Planning, Building Regulations and Enforcement, and City Engineer"," _"," _"," _ "," _ ","_",2080,"Funded by Internally generated funds",170,"Current assets / VAT","_","_"," _ "," _ "," _ "," _ "," _ "," _ "," _ "," _ ",1003,"Statutory requirements",1003,"Statutory requirements"," _ "," _ "," _ "," _ ",null," _ "," _ ","_","_","_","_",null,null,1470,1470,"Computer Equipment","Computer Equipment"," _ "," _ "," _ "," _ "," _ "," _ "," _ "," _ "," _ "," _ "," _ "," _ "," _ "," _ "," _ "," _ "," _ "," _ "," _ "," _ ",null,"C","_",null,null,8,84,"Planning and Development","Town Planning, Building Regulations and Enforcement, and City Engineer",null,"_","_","_","_","_",0,0,0,0,0,0,0,0,0,0,0,0,0,0]
["C0001-1/IA02108/F0002/X049/R0100/001/CONTRA","C0001-1/IA02108/F0002/X049/R0100/001/CONTRA",251492,39734,"Assets:Current Assets:Cash and Cash Equivalents:Cash at Bank:Bank Account:Specify (replace with account description):Withdrawals","IA",1200,"Municipal governance and administration / Finance and administration / Finance",1204,"Municipal governance and administration / Finance and administration / Finance"," _"," _"," _ "," _ ","_",2080,"Funded by Internally generated funds",120,"Current assets / Cash and cash equivalents","_","_"," _ ",310," _ ","Other Cash Flows/Payments by Type / Capital assets"," _ ",510," _ ","Capital assets","_","_","_","_"," _ "," _ "," _ "," _ ",null," _ "," _ ","_","_","_","_",null,null,1550,1550,"Land","Land"," _ "," _ "," _ "," _ "," _ "," _ "," _ "," _ "," _ "," _ "," _ "," _ "," _ "," _ "," _ "," _ "," _ "," _ "," _ "," _ ","W","C","_",null,null,2,23,"Finance and administration","Finance",null,"_","_","_","_","_",0,0,0,0,0,0,0,0,0,0,0,0,0,0]
["C0003-13/IA10376/F0002/X153/R0100/001/CONTRA","C0003-13/IA10376/F0002/X153/R0100/001/CONTRA",327943,46705,"Assets:Current Assets:VAT Receivable:Input Tax Accrual:Transfers","IA",2300,"Community and public safety / Public safety / Police Forces, Traffic and Street Parking Control",2307,"Community and public safety / Public safety / Police Forces, Traffic and Street Parking Control"," _"," _"," _ "," _ ","_",2080,"Funded by Internally generated funds",170,"Current assets / VAT","_","_"," _ "," _ "," _ "," _ "," _ "," _ "," _ "," _ ",1003,"Statutory requirements",1003,"Statutory requirements"," _ "," _ "," _ "," _ ",null," _ "," _ ","_","_","_","_",null,null,1470,1470,"Computer Equipment","Computer Equipment"," _ "," _ "," _ "," _ "," _ "," _ "," _ "," _ "," _ "," _ "," _ "," _ "," _ "," _ "," _ "," _ "," _ "," _ "," _ "," _ ",null,"C","_",null,null,6,61,"Public safety","Police Forces, Traffic and Street Parking Control",null,"_","_","_","_","_",-26087,-26087,0,0,0,0,0,0,0,0,0,0,0,0]
["C0003-3/IA10375/F0002/X044/R0099/001/CONTRA","C0003-3/IA10375/F0002/X044/R0099/001/CONTRA",266309,39580,"Assets:Current Assets:VAT Receivable:Input Tax Accrual:Recognised","IA",1100,"Municipal governance and administration / Executive and council / Mayor and Council",1110,"Municipal governance and administration / Executive and council / Mayor and Council"," _"," _"," _ "," _ ","_",2080,"Funded by Internally generated funds",170,"Current assets / VAT","_","_"," _ "," _ "," _ "," _ "," _ "," _ "," _ "," _ ",1003,"Statutory requirements",1003,"Statutory requirements"," _ "," _ "," _ "," _ ",null," _ "," _ ","_","_","_","_",null,null,1470,1470,"Computer Equipment","Computer Equipment"," _ "," _ "," _ "," _ "," _ "," _ "," _ "," _ "," _ "," _ "," _ "," _ "," _ "," _ "," _ "," _ "," _ "," _ "," _ "," _ ",null,"C","_",null,null,1,11,"Executive and council","Mayor and Council",null,"_","_","_","_","_",0,0,0,0,0,0,0,0,0,0,0,0,0,0]
["C0003-4/IA02105/F0002/X046/R0100/001/CONTRA","C0003-4/IA02105/F0002/X046/R0100/001/CONTRA",250154,40018,"Assets:Current Assets:Cash and Cash Equivalents:Cash at Bank:Bank Account:Specify (replace with account description):Deposits","IA",1200,"Municipal governance and administration / Finance and administration / Administrative and Corporate Support",1201,"Municipal governance and administration / Finance and administration / Administrative and Corporate Support"," _"," _"," _ "," _ ","_",2080,"Funded by Internally generated funds",120,"Current assets / Cash and cash equivalents","_","_"," _ "," _ "," _ "," _ "," _ "," _ "," _ "," _ ","_","_","_","_"," _ "," _ "," _ "," _ ",null," _ "," _ ","_","_","_","_",null,null,1470,1470,"Computer Equipment","Computer Equipment"," _ "," _ "," _ "," _ "," _ "," _ "," _ "," _ "," _ "," _ "," _ "," _ "," _ "," _ "," _ "," _ "," _ "," _ "," _ "," _ ","D","C","_",null,null,2,21,"Finance and administration","Administrative and Corporate Support",null,"_","_","_","_","_",0,0,0,0,0,0,0,0,0,0,0,0,0,0]
["C0003-4/IA02105/F0002/X057/R0100/001/CONTRA","C0003-4/IA02105/F0002/X057/R0100/001/CONTRA",250214,40816,"Assets:Current Assets:Cash and Cash Equivalents:Cash at Bank:Bank Account:Specify (replace with account description):Deposits","IA",1200,"Municipal governance and administration / Finance and administration / Security Services",1212,"Municipal governance and administration / Finance and administration / Security Services"," _"," _"," _ "," _ ","_",2080,"Funded by Internally generated funds",120,"Current assets / Cash and cash equivalents","_","_"," _ "," _ "," _ "," _ "," _ "," _ "," _ "," _ ","_","_","_","_"," _ "," _ "," _ "," _ ",null," _ "," _ ","_","_","_","_",null,null,1470,1470,"Computer Equipment","Computer Equipment"," _ "," _ "," _ "," _ "," _ "," _ "," _ "," _ "," _ "," _ "," _ "," _ "," _ "," _ "," _ "," _ "," _ "," _ "," _ "," _ ","D","C","_",null,null,2,28,"Finance and administration","Security Services",null,"_","_","_","_","_",0,0,0,0,0,0,0,0,0,0,0,0,0,0]
["C0001-1/IA02105/F0002/X049/R0100/001/CONTRA","C0001-1/IA02105/F0002/X049/R0100/001/CONTRA",250070,39736,"Assets:Current Assets:Cash and Cash Equivalents:Cash at Bank:Bank Account:Specify (replace with account description):Deposits","IA",1200,"Municipal governance and administration / Finance and administration / Finance",1204,"Municipal governance and administration / Finance and administration / Finance"," _"," _"," _ "," _ ","_",2080,"Funded by Internally generated funds",120,"Current assets / Cash and cash equivalents","_","_"," _ "," _ "," _ "," _ "," _ "," _ "," _ "," _ ","_","_","_","_"," _ "," _ "," _ "," _ ",null," _ "," _ ","_","_","_","_",null,null,1550,1550,"Land","Land"," _ "," _ "," _ "," _ "," _ "," _ "," _ "," _ "," _ "," _ "," _ "," _ "," _ "," _ "," _ "," _ "," _ "," _ "," _ "," _ ","D","C","_",null,null,2,23,"Finance and administration","Finance",null,"_","_","_","_","_",0,0,0,0,0,0,0,0,0,0,0,0,0,0]
["C0001-1/IL65530/F0002/X044/R0100/001/CONTRA","C0001-1/IL65530/F0002/X044/R0100/001/CONTRA",250068,39759,"Liabilities:Current Liabilities:Trade and Other Payable Exchange Transactions:Payables and Accruals : Contractors:Deposits","IL",1100,"Municipal governance and administration / Executive and council / Mayor and Council",1110,"Municipal governance and administration / Executive and council / Mayor and Council"," _"," _"," _ "," _ ","_",2080,"Funded by Internally generated funds",380,"Current liabilities / Trade and other payables from exchange transactions","_","_"," _ "," _ "," _ "," _ "," _ "," _ "," _ "," _ ","_","_","_","_"," _ "," _ "," _ "," _ ",null," _ "," _ ","_","_","_","_",null,null,1550,1550,"Land","Land"," _ "," _ "," _ "," _ "," _ "," _ "," _ "," _ "," _ "," _ "," _ "," _ "," _ "," _ "," _ "," _ ",361,"Trade and other payables / Trade and other payables from exchange transactions",361,"Trade and other payables / Trade and other payables from exchange transactions",null,"C","_",null,null,1,11,"Executive and council","Mayor and Council",null,"_","_","_","_","_",0,0,0,0,0,0,0,0,0,0,0,0,0,0]
["C0003-1/IA10371/F0002/X052/R0099/001/CONTRA","C0003-1/IA10371/F0002/X052/R0099/001/CONTRA",262988,36922,"Assets:Current Assets:VAT Receivable:Input Tax Capital:Transfers","IA",1200,"Municipal governance and administration / Finance and administration / Information Technology",1207,"Municipal governance and administration / Finance and administration / Information Technology"," _"," _"," _ "," _ ","_",2080,"Funded by Internally generated funds",170,"Current assets / VAT","_","_"," _ "," _ "," _ "," _ "," _ "," _ "," _ "," _ ",1003,"Statutory requirements",1003,"Statutory requirements"," _ "," _ "," _ "," _ ",null," _ "," _ ","_","_","_","_",null,null,1470,1470,"Computer Equipment","Computer Equipment"," _ "," _ "," _ "," _ "," _ "," _ "," _ "," _ "," _ "," _ "," _ "," _ "," _ "," _ "," _ "," _ "," _ "," _ "," _ "," _ ",null,"C","_",null,null,2,26,"Finance and administration","Information Technology",null,"_","_","_","_","_",-65217,-75652,0,0,0,0,0,0,0,0,0,0,0,0]
["C0003-10/IA10376/F09788/X007/R0100/001/CONTRA","C0003-10/IA10376/F09788/X007/R0100/001/CONTRA",264033,43008,"Assets:Current Assets:VAT Receivable:Input Tax Accrual:Transfers","IA",2100,"Community and public safety / Community and social services / Libraries and Archives",2114,"Community and public safety / Community and social services / Libraries and Archives"," _"," _"," _ "," _ ","_",2020,"Funded by Provincial Government",170,"Current assets / VAT","_","_"," _ "," _ "," _ "," _ "," _ "," _ "," _ "," _ ",1003,"Statutory requirements",1003,"Statutory requirements"," _ "," _ "," _ "," _ ",null," _ "," _ ","_","_","_","_",null,null,1470,1470,"Computer Equipment","Computer Equipment"," _ "," _ "," _ "," _ "," _ "," _ "," _ "," _ "," _ "," _ "," _ "," _ "," _ "," _ "," _ "," _ "," _ "," _ "," _ "," _ ",null,"C","_",null,null,4,44,"Community and social services","Libraries and Archives",null,"_","_","_","_","_",0,0,0,0,0,0,0,0,0,0,0,0,0,0]
["C0003-12/IA10371/F0002/X153/R0100/001/CONTRA","C0003-12/IA10371/F0002/X153/R0100/001/CONTRA",327932,46751,"Assets:Current Assets:VAT Receivable:Input Tax Capital:Transfers","IA",2300,"Community and public safety / Public safety / Police Forces, Traffic and Street Parking Control",2307,"Community and public safety / Public safety / Police Forces, Traffic and Street Parking Control"," _"," _"," _ "," _ ","_",2080,"Funded by Internally generated funds",170,"Current assets / VAT","_","_"," _ "," _ "," _ "," _ "," _ "," _ "," _ "," _ ",1003,"Statutory requirements",1003,"Statutory requirements"," _ "," _ "," _ "," _ ",null," _ "," _ ","_","_","_","_",null,null,1470,1470,"Computer Equipment","Computer Equipment"," _ "," _ "," _ "," _ "," _ "," _ "," _ "," _ "," _ "," _ "," _ "," _ "," _ "," _ "," _ "," _ "," _ "," _ "," _ "," _ ",null,"C","_",null,null,6,61,"Public safety","Police Forces, Traffic and Street Parking Control",null,"_","_","_","_","_",0,0,0,0,0,0,0,0,0,0,0,0,0,0]
["C0006-13/IA10371/F0002/X128/R0100/001/CONTRA","C0006-13/IA10371/F0002/X128/R0100/001/CONTRA",263387,44182,"Assets:Current Assets:VAT Receivable:Input Tax Capital:Transfers","IA",2200,"Community and public safety / Sport and recreation / Recreational Facilities",2204,"Community and public safety / Sport and recreation / Recreational Facilities"," _"," _"," _ "," _ ","_",2080,"Funded by Internally generated funds",170,"Current assets / VAT","_","_"," _ "," _ "," _ "," _ "," _ "," _ "," _ "," _ ",1003,"Statutory requirements",1003,"Statutory requirements"," _ "," _ "," _ "," _ ",null," _ "," _ ","_","_","_","_",null,null,1510,1510,"Machinery and Equipment","Machinery and Equipment"," _ "," _ "," _ "," _ "," _ "," _ "," _ "," _ "," _ "," _ "," _ "," _ "," _ "," _ "," _ "," _ "," _ "," _ "," _ "," _ ",null,"C","_",null,null,5,53,"Sport and Recreation","Recreational Facilities",null,"_","_","_","_","_",0,0,0,0,0,0,0,0,0,0,0,0,0,0]
["C0006-15/IA10376/F0002/X128/R0100/001/CONTRA","C0006-15/IA10376/F0002/X128/R0100/001/CONTRA",263410,44259,"Assets:Current Assets:VAT Receivable:Input Tax Accrual:Transfers","IA",2200,"Community and public safety / Sport and recreation / Recreational Facilities",2204,"Community and public safety / Sport and recreation / Recreational Facilities"," _"," _"," _ "," _ ","_",2080,"Funded by Internally generated funds",170,"Current assets / VAT","_","_"," _ "," _ "," _ "," _ "," _ "," _ "," _ "," _ ",1003,"Statutory requirements",1003,"Statutory requirements"," _ "," _ "," _ "," _ ",null," _ "," _ ","_","_","_","_",null,null,1510,1510,"Machinery and Equipment","Machinery and Equipment"," _ "," _ "," _ "," _ "," _ "," _ "," _ "," _ "," _ "," _ "," _ "," _ "," _ "," _ "," _ "," _ "," _ "," _ "," _ "," _ ",null,"C","_",null,null,5,53,"Sport and Recreation","Recreational Facilities",null,"_","_","_","_","_",0,0,0,0,0,0,0,0,0,0,0,0,0,0]
["C0006-18/IA10370/F0002/X132/R0100/001/CONTRA","C0006-18/IA10370/F0002/X132/R0100/001/CONTRA",251102,44577,"Assets:Current Assets:VAT Receivable:Input Tax Capital:Recognised","IA",4400,"Trading services / Waste management / Solid Waste Removal",4403,"Trading services / Waste management / Solid Waste Removal"," _"," _"," _ "," _ ","_",2080,"Funded by Internally generated funds",170,"Current assets / VAT","_","_"," _ "," _ "," _ "," _ "," _ "," _ "," _ "," _ ",1003,"Statutory requirements",1003,"Statutory requirements"," _ "," _ "," _ "," _ ",null," _ "," _ ","_","_","_","_",null,null,1510,1510,"Machinery and Equipment","Machinery and Equipment"," _ "," _ "," _ "," _ "," _ "," _ "," _ "," _ "," _ "," _ "," _ "," _ "," _ "," _ "," _ "," _ "," _ "," _ "," _ "," _ ",null,"C","_",null,null,11,111,"Waste Management","Solid Waste Removal",null,"_","_","_","_","_",0,0,0,0,0,0,0,0,0,0,0,0,0,0]
["C0006-18/IL65531/F0002/X116/R0100/001/CONTRA","C0006-18/IL65531/F0002/X116/R0100/001/CONTRA",251221,44967,"Liabilities:Current Liabilities:Trade and Other Payable Exchange Transactions:Payables and Accruals : Contractors:Withdrawals","IL",3200,"Economic and environmental services / Road transport / Roads",3205,"Economic and environmental services / Road transport / Roads"," _"," _"," _ "," _ ","_",2080,"Funded by Internally generated funds",380,"Current liabilities / Trade and other payables from exchange transactions","_","_"," _ ",null," _ ","CASH FLOW FROM OPERATING ACTIVITIES / Payments / Suppliers and employees"," _ ",null," _ ","Cash Payments by Type / Contracted services","_","_","_","_"," _ "," _ "," _ "," _ ",null," _ "," _ ","_","_","_","_",null,null,1510,1510,"Machinery and Equipment","Machinery and Equipment"," _ "," _ "," _ "," _ "," _ "," _ "," _ "," _ "," _ "," _ "," _ "," _ "," _ "," _ "," _ "," _ ",361,"Trade and other payables / Trade and other payables from exchange transactions",361,"Trade and other payables / Trade and other payables from exchange transactions",null,"C","_",null,null,9,91,"Road transport","Roads",null,"_","_","_","_","_",800000,800000,0,0,0,0,0,0,0,0,0,0,0,0]
["C0006-2/IA05852/F0002/X044/R0100/001/FIN1","C0006-2/IA05852/F0002/X044/R0100/001/FIN1",102243,22905,"Assets:Non-current Assets:Property, Plant and Equipment:Leased Assets:Machinery and Equipment:In-use:Accumulated Depreciation:Depreciation","IA",1100,"Municipal governance and administration / Executive and council / Mayor and Council",1110,"Municipal governance and administration / Executive and council / Mayor and Council"," _"," _"," _ "," _ ","_",2080,"Funded by Internally generated funds",230,"Non current assets / Property, plant and equipment","_","_"," _ "," _ "," _ "," _ "," _ "," _ "," _ "," _ ","_","_","_","_",1510,"Machinery and Equipment",1510,"Machinery and Equipment",null," _ "," _ ","_","_","_","_",null,null,1510,1510,"Machinery and Equipment","Machinery and Equipment"," _ "," _ "," _ "," _ "," _ "," _ "," _ "," _ "," _ "," _ "," _ "," _ "," _ "," _ "," _ "," _ ",243,"Property, plant and equipment (PPE) / Less: Accumulated depreciation",243,"Property, plant and equipment (PPE) / Less: Accumulated depreciation",null,"C","_",null,null,1,11,"Executive and council","Mayor and Council",null,"_","_","_","_","_",0,0,0,0,0,0,0,0,0,0,0,0,0,0]
["C0004-19/IA10376/F0002/X016/R3642/001/CONTRA","C0004-19/IA10376/F0002/X016/R3642/001/CONTRA",264412,44773,"Assets:Current Assets:VAT Receivable:Input Tax Accrual:Transfers","IA",2100,"Community and public safety / Community and social services / Community Halls and Facilities",2106,"Community and public safety / Community and social services / Community Halls and Facilities"," _"," _"," _ "," _ ","_",2080,"Funded by Internally generated funds",170,"Current assets / VAT","_","_"," _ "," _ "," _ "," _ "," _ "," _ "," _ "," _ ",1003,"Statutory requirements",1003,"Statutory requirements"," _ "," _ "," _ "," _ ",null," _ "," _ ","_","_","_","_",null,null,1490,1490,"Furniture and Office Equipment","Furniture and Office Equipment"," _ "," _ "," _ "," _ "," _ "," _ "," _ "," _ "," _ "," _ "," _ "," _ "," _ "," _ "," _ "," _ "," _ "," _ "," _ "," _ ",null,"C","_",null,null,4,43,"Community and social services","Community Halls and Facilities",null,"_","_","_","_","_",0,0,0,0,0,0,0,0,0,0,0,0,0,0]
["C0004-23/IA10376/F0002/X109/R0099/001/CONTRA","C0004-23/IA10376/F0002/X109/R0099/001/CONTRA",327713,46925,"Assets:Current Assets:VAT Receivable:Input Tax Accrual:Transfers","IA",2300,"Community and public safety / Public safety / Fire Fighting and Protection",2305,"Community and public safety / Public safety / Fire Fighting and Protection"," _"," _"," _ "," _ ","_",2080,"Funded by Internally generated funds",170,"Current assets / VAT","_","_"," _ "," _ "," _ "," _ "," _ "," _ "," _ "," _ ",1003,"Statutory requirements",1003,"Statutory requirements"," _ "," _ "," _ "," _ ",null," _ "," _ ","_","_","_","_",null,null,1490,1490,"Furniture and Office Equipment","Furniture and Office Equipment"," _ "," _ "," _ "," _ "," _ "," _ "," _ "," _ "," _ "," _ "," _ "," _ "," _ "," _ "," _ "," _ "," _ "," _ "," _ "," _ ",null,"C","_",null,null,4,410,"Community and social services","Fire Fighting and Protection",null,"_","_","_","_","_",0,0,0,0,0,0,0,0,0,0,0,0,0,0]
["C0004-24/IA10370/F0002/X098/R0099/001/CONTRA","C0004-24/IA10370/F0002/X098/R0099/001/CONTRA",328550,0,"Assets:Current Assets:VAT Receivable:Input Tax Capital:Recognised","IA",3100,"Economic and environmental services / Planning and development / Economic Development/Planning",3105,"Economic and environmental services / Planning and development / Economic Development/Planning"," _"," _"," _ "," _ ","_",2080,"Funded by Internally generated funds",170,"Current assets / VAT","_","_"," _ "," _ "," _ "," _ "," _ "," _ "," _ "," _ ",1003,"Statutory requirements",1003,"Statutory requirements"," _ "," _ "," _ "," _ ",null," _ "," _ ","_","_","_","_",null,null,1490,1490,"Furniture and Office Equipment","Furniture and Office Equipment"," _ "," _ "," _ "," _ "," _ "," _ "," _ "," _ "," _ "," _ "," _ "," _ "," _ "," _ "," _ "," _ "," _ "," _ "," _ "," _ ",null,"C","_",null,null,8,82,"Planning and Development","Economic Development/Planning",null,"_","_","_","_","_",0,0,0,0,0,0,0,0,0,0,0,0,0,0]
["C0004-24/IA10371/F0002/X153/R0099/001/CONTRA","C0004-24/IA10371/F0002/X153/R0099/001/CONTRA",327718,46931,"Assets:Current Assets:VAT Receivable:Input Tax Capital:Transfers","IA",2300,"Community and public safety / Public safety / Police Forces, Traffic and Street Parking Control",2307,"Community and public safety / Public safety / Police Forces, Traffic and Street Parking Control"," _"," _"," _ "," _ ","_",2080,"Funded by Internally generated funds",170,"Current assets / VAT","_","_"," _ "," _ "," _ "," _ "," _ "," _ "," _ "," _ ",1003,"Statutory requirements",1003,"Statutory requirements"," _ "," _ "," _ "," _ ",null," _ "," _ ","_","_","_","_",null,null,1490,1490,"Furniture and Office Equipment","Furniture and Office Equipment"," _ "," _ "," _ "," _ "," _ "," _ "," _ "," _ "," _ "," _ "," _ "," _ "," _ "," _ "," _ "," _ "," _ "," _ "," _ "," _ ",null,"C","_",null,null,6,61,"Public safety","Police Forces, Traffic and Street Parking Control",null,"_","_","_","_","_",-13044,0,0,0,0,0,0,0,0,0,0,0,0,0]
["C0004-24/IA10373/F0002/X153/R0099/001/CONTRA","C0004-24/IA10373/F0002/X153/R0099/001/CONTRA",327719,46932,"Assets:Current Assets:VAT Receivable:VAT Control (Receivable):Transfers","IA",2300,"Community and public safety / Public safety / Police Forces, Traffic and Street Parking Control",2307,"Community and public safety / Public safety / Police Forces, Traffic and Street Parking Control"," _"," _"," _ "," _ ","_",2080,"Funded by Internally generated funds",170,"Current assets / VAT","_","_"," _ "," _ "," _ "," _ "," _ "," _ "," _ "," _ ",1003,"Statutory requirements",1003,"Statutory requirements"," _ "," _ "," _ "," _ ",null," _ "," _ ","_","_","_","_",null,null,1490,1490,"Furniture and Office Equipment","Furniture and Office Equipment"," _ "," _ "," _ "," _ "," _ "," _ "," _ "," _ "," _ "," _ "," _ "," _ "," _ "," _ "," _ "," _ "," _ "," _ "," _ "," _ ",null,"C","_",null,null,6,61,"Public safety","Police Forces, Traffic and Street Parking Control",null,"_","_","_","_","_",13044,0,0,0,0,0,0,0,0,0,0,0,0,0]
["C0001-1/IA00090/F0002/X055/R0100/001/FIN2","C0001-1/IA00090/F0002/X055/R0100/001/FIN2",112473,23193,"Assets:Non-current Assets:Property, Plant and Equipment:Cost Model:Other Assets:Accumulated Impairment:Impairment","IA",1200,"Municipal governance and administration / Finance and administration / Property Services",1210,"Municipal governance and administration / Finance and administration / Property Services"," _"," _"," _ "," _ ","_",2080,"Funded by Internally generated funds",230,"Non current assets / Property, plant and equipment","_","_"," _ "," _ "," _ "," _ "," _ "," _ "," _ "," _ ","_","_","_","_",1180,"Other assets",1180,"Other assets",null," _ "," _ ","_","_","_","_",null,null,1550,1550,"Land","Land"," _ "," _ "," _ "," _ "," _ "," _ "," _ "," _ "," _ "," _ "," _ "," _ "," _ "," _ "," _ "," _ ",241,"Property, plant and equipment (PPE) / PPE at cost/valuation (excl. finance leases)",241,"Property, plant and equipment (PPE) / PPE at cost/valuation (excl. finance leases)",null,"C","_",null,null,2,27,"Finance and administration","Property Services",null,"_","_","_","_","_",0,0,0,0,0,0,0,0,0,0,0,0,0,0]
["C0001-4/IA02105/F0002/X098/R3649/001/CONTRA","C0001-4/IA02105/F0002/X098/R3649/001/CONTRA",249383,36746,"Assets:Current Assets:Cash and Cash Equivalents:Cash at Bank:Bank Account:Specify (replace with account description):Deposits","IA",3100,"Economic and environmental services / Planning and development / Economic Development/Planning",3105,"Economic and environmental services / Planning and development / Economic Development/Planning"," _"," _"," _ "," _ ","_",2080,"Funded by Internally generated funds",120,"Current assets / Cash and cash equivalents","_","_"," _ "," _ "," _ "," _ "," _ "," _ "," _ "," _ ","_","_","_","_"," _ "," _ "," _ "," _ ",null," _ "," _ ","_","_","_","_",null,null,1550,1550,"Land","Land"," _ "," _ "," _ "," _ "," _ "," _ "," _ "," _ "," _ "," _ "," _ "," _ "," _ "," _ "," _ "," _ "," _ "," _ "," _ "," _ ","D","C","_",null,null,8,82,"Planning and Development","Economic Development/Planning",null,"_","_","_","_","_",0,0,0,0,0,0,0,0,0,0,0,0,0,0]
["C0003-1/IA02105/F0002/X052/R0099/001/CONTRA","C0003-1/IA02105/F0002/X052/R0099/001/CONTRA",249412,36919,"Assets:Current Assets:Cash and Cash Equivalents:Cash at Bank:Bank Account:Specify (replace with account description):Deposits","IA",1200,"Municipal governance and administration / Finance and administration / Information Technology",1207,"Municipal governance and administration / Finance and administration / Information Technology"," _"," _"," _ "," _ ","_",2080,"Funded by Internally generated funds",120,"Current assets / Cash and cash equivalents","_","_"," _ "," _ "," _ "," _ "," _ "," _ "," _ "," _ ","_","_","_","_"," _ "," _ "," _ "," _ ",null," _ "," _ ","_","_","_","_",null,null,1470,1470,"Computer Equipment","Computer Equipment"," _ "," _ "," _ "," _ "," _ "," _ "," _ "," _ "," _ "," _ "," _ "," _ "," _ "," _ "," _ "," _ "," _ "," _ "," _ "," _ ","D","C","_",null,null,2,26,"Finance and administration","Information Technology",null,"_","_","_","_","_",0,0,0,0,0,0,0,0,0,0,0,0,0,0]
["C0003-10/IA10370/F09788/X007/R0100/001/CONTRA","C0003-10/IA10370/F09788/X007/R0100/001/CONTRA",250880,43010,"Assets:Current Assets:VAT Receivable:Input Tax Capital:Recognised","IA",2100,"Community and public safety / Community and social services / Libraries and Archives",2114,"Community and public safety / Community and social services / Libraries and Archives"," _"," _"," _ "," _ ","_",2020,"Funded by Provincial Government",170,"Current assets / VAT","_","_"," _ "," _ "," _ "," _ "," _ "," _ "," _ "," _ ",1003,"Statutory requirements",1003,"Statutory requirements"," _ "," _ "," _ "," _ ",null," _ "," _ ","_","_","_","_",null,null,1470,1470,"Computer Equipment","Computer Equipment"," _ "," _ "," _ "," _ "," _ "," _ "," _ "," _ "," _ "," _ "," _ "," _ "," _ "," _ "," _ "," _ "," _ "," _ "," _ "," _ ",null,"C","_",null,null,4,44,"Community and social services","Libraries and Archives",null,"_","_","_","_","_",0,0,0,0,0,0,0,0,0,0,0,0,0,0]
["C0003-12/IA10376/F0002/X153/R0100/001/CONTRA","C0003-12/IA10376/F0002/X153/R0100/001/CONTRA",327935,46754,"Assets:Current Assets:VAT Receivable:Input Tax Accrual:Transfers","IA",2300,"Community and public safety / Public safety / Police Forces, Traffic and Street Parking Control",2307,"Community and public safety / Public safety / Police Forces, Traffic and Street Parking Control"," _"," _"," _ "," _ ","_",2080,"Funded by Internally generated funds",170,"Current assets / VAT","_","_"," _ "," _ "," _ "," _ "," _ "," _ "," _ "," _ ",1003,"Statutory requirements",1003,"Statutory requirements"," _ "," _ "," _ "," _ ",null," _ "," _ ","_","_","_","_",null,null,1470,1470,"Computer Equipment","Computer Equipment"," _ "," _ "," _ "," _ "," _ "," _ "," _ "," _ "," _ "," _ "," _ "," _ "," _ "," _ "," _ "," _ "," _ "," _ "," _ "," _ ",null,"C","_",null,null,6,61,"Public safety","Police Forces, Traffic and Street Parking Control",null,"_","_","_","_","_",0,0,0,0,0,0,0,0,0,0,0,0,0,0]
["C0003-5/IL65530/F0002/X052/R0099/001/CONTRA","C0003-5/IL65530/F0002/X052/R0099/001/CONTRA",250908,43244,"Liabilities:Current Liabilities:Trade and Other Payable Exchange Transactions:Payables and Accruals : Contractors:Deposits","IL",1200,"Municipal governance and administration / Finance and administration / Information Technology",1207,"Municipal governance and administration / Finance and administration / Information Technology"," _"," _"," _ "," _ ","_",2080,"Funded by Internally generated funds",380,"Current liabilities / Trade and other payables from exchange transactions","_","_"," _ "," _ "," _ "," _ "," _ "," _ "," _ "," _ ","_","_","_","_"," _ "," _ "," _ "," _ ",null," _ "," _ ","_","_","_","_",null,null,1470,1470,"Computer Equipment","Computer Equipment"," _ "," _ "," _ "," _ "," _ "," _ "," _ "," _ "," _ "," _ "," _ "," _ "," _ "," _ "," _ "," _ ",361,"Trade and other payables / Trade and other payables from exchange transactions",361,"Trade and other payables / Trade and other payables from exchange transactions",null,"C","_",null,null,2,26,"Finance and administration","Information Technology",null,"_","_","_","_","_",0,0,0,0,0,0,0,0,0,0,0,0,0,0]
["C0003-7/IA10373/F0002/X101/R0100/001/CONTRA","C0003-7/IA10373/F0002/X101/R0100/001/CONTRA",264606,43831,"Assets:Current Assets:VAT Receivable:VAT Control (Receivable):Transfers","IA",3100,"Economic and environmental services / Planning and development / Town Planning, Building Regulations and Enforcement, and City Engineer",3107,"Economic and environmental services / Planning and development / Town Planning, Building Regulations and Enforcement, and City Engineer"," _"," _"," _ "," _ ","_",2080,"Funded by Internally generated funds",170,"Current assets / VAT","_","_"," _ "," _ "," _ "," _ "," _ "," _ "," _ "," _ ",1003,"Statutory requirements",1003,"Statutory requirements"," _ "," _ "," _ "," _ ",null," _ "," _ ","_","_","_","_",null,null,1470,1470,"Computer Equipment","Computer Equipment"," _ "," _ "," _ "," _ "," _ "," _ "," _ "," _ "," _ "," _ "," _ "," _ "," _ "," _ "," _ "," _ "," _ "," _ "," _ "," _ ",null,"C","_",null,null,8,84,"Planning and Development","Town Planning, Building Regulations and Enforcement, and City Engineer",null,"_","_","_","_","_",0,0,0,0,0,0,0,0,0,0,0,0,0,0]
["C0004-10/IA02108/F0002/X006/R0100/001/CONTRA","C0004-10/IA02108/F0002/X006/R0100/001/CONTRA",251624,43109,"Assets:Current Assets:Cash and Cash Equivalents:Cash at Bank:Bank Account:Specify (replace with account description):Withdrawals","IA",2100,"Community and public safety / Community and social services / Community Halls and Facilities",2106,"Community and public safety / Community and social services / Community Halls and Facilities"," _"," _"," _ "," _ ","_",2080,"Funded by Internally generated funds",120,"Current assets / Cash and cash equivalents","_","_"," _ ",310," _ ","Other Cash Flows/Payments by Type / Capital assets"," _ ",510," _ ","Capital assets","_","_","_","_"," _ "," _ "," _ "," _ ",null," _ "," _ ","_","_","_","_",null,null,1490,1490,"Furniture and Office Equipment","Furniture and Office Equipment"," _ "," _ "," _ "," _ "," _ "," _ "," _ "," _ "," _ "," _ "," _ "," _ "," _ "," _ "," _ "," _ "," _ "," _ "," _ "," _ ","W","C","_",null,null,4,43,"Community and social services","Community Halls and Facilities",null,"_","_","_","_","_",0,0,0,0,0,0,0,0,0,0,0,0,0,0]
["C0004-10/IL65530/F0002/X006/R0100/001/CONTRA","C0004-10/IL65530/F0002/X006/R0100/001/CONTRA",250895,43127,"Liabilities:Current Liabilities:Trade and Other Payable Exchange Transactions:Payables and Accruals : Contractors:Deposits","IL",2100,"Community and public safety / Community and social services / Community Halls and Facilities",2106,"Community and public safety / Community and social services / Community Halls and Facilities"," _"," _"," _ "," _ ","_",2080,"Funded by Internally generated funds",380,"Current liabilities / Trade and other payables from exchange transactions","_","_"," _ "," _ "," _ "," _ "," _ "," _ "," _ "," _ ","_","_","_","_"," _ "," _ "," _ "," _ ",null," _ "," _ ","_","_","_","_",null,null,1490,1490,"Furniture and Office Equipment","Furniture and Office Equipment"," _ "," _ "," _ "," _ "," _ "," _ "," _ "," _ "," _ "," _ "," _ "," _ "," _ "," _ "," _ "," _ ",361,"Trade and other payables / Trade and other payables from exchange transactions",361,"Trade and other payables / Trade and other payables from exchange transactions",null,"C","_",null,null,4,43,"Community and social services","Community Halls and Facilities",null,"_","_","_","_","_",0,0,0,0,0,0,0,0,0,0,0,0,0,0]
["C0001-1/IL65530/F0002/X049/R0100/001/CONTRA","C0001-1/IL65530/F0002/X049/R0100/001/CONTRA",250072,39737,"Liabilities:Current Liabilities:Trade and Other Payable Exchange Transactions:Payables and Accruals : Contractors:Deposits","IL",1200,"Municipal governance and administration / Finance and administration / Finance",1204,"Municipal governance and administration / Finance and administration / Finance"," _"," _"," _ "," _ ","_",2080,"Funded by Internally generated funds",380,"Current liabilities / Trade and other payables from exchange transactions","_","_"," _ "," _ "," _ "," _ "," _ "," _ "," _ "," _ ","_","_","_","_"," _ "," _ "," _ "," _ ",null," _ "," _ ","_","_","_","_",null,null,1550,1550,"Land","Land"," _ "," _ "," _ "," _ "," _ "," _ "," _ "," _ "," _ "," _ "," _ "," _ "," _ "," _ "," _ "," _ ",361,"Trade and other payables / Trade and other payables from exchange transactions",361,"Trade and other payables / Trade and other payables from exchange transactions",null,"C","_",null,null,2,23,"Finance and administration","Finance",null,"_","_","_","_","_",0,0,0,0,0,0,0,0,0,0,0,0,0,0]
["C0001-1/IZ00042/F0002/X055/R0100/001/CONTRA","C0001-1/IZ00042/F0002/X055/R0100/001/CONTRA",266533,40733,"Gains and Losses:Impairment Loss:Property, Plant and Equipment:Other Assets","IE",1200,"Municipal governance and administration / Finance and administration / Property Services",1210,"Municipal governance and administration / Finance and administration / Property Services",3600,"Expenditure / Depreciation and amortisation",2303,"Expenditure / Depreciation and amortisation","_",2080,"Funded by Internally generated funds"," _ "," _ "," _ "," _ "," _ "," _ "," _ "," _ "," _ "," _ "," _ "," _ ","_","_","_","_"," _ "," _ "," _ "," _ ",null,2303,"Depreciation and asset impairment ","_","_","_","_",null,null,1550,1550,"Land","Land"," _ "," _ "," _ "," _ "," _ "," _ "," _ "," _ "," _ "," _ "," _ "," _ "," _ "," _ "," _ "," _ "," _ "," _ "," _ "," _ ",null,"C","_",null,null,2,27,"Finance and administration","Property Services",null,"_","_","_","_","_",0,0,0,0,0,0,0,0,0,0,0,0,0,0]
["C0003-11/IA10376/F0002/X049/R0099/001/CONTRA","C0003-11/IA10376/F0002/X049/R0099/001/CONTRA",264672,44005,"Assets:Current Assets:VAT Receivable:Input Tax Accrual:Transfers","IA",1200,"Municipal governance and administration / Finance and administration / Finance",1204,"Municipal governance and administration / Finance and administration / Finance"," _"," _"," _ "," _ ","_",2080,"Funded by Internally generated funds",170,"Current assets / VAT","_","_"," _ "," _ "," _ "," _ "," _ "," _ "," _ "," _ ",1003,"Statutory requirements",1003,"Statutory requirements"," _ "," _ "," _ "," _ ",null," _ "," _ ","_","_","_","_",null,null,1470,1470,"Computer Equipment","Computer Equipment"," _ "," _ "," _ "," _ "," _ "," _ "," _ "," _ "," _ "," _ "," _ "," _ "," _ "," _ "," _ "," _ "," _ "," _ "," _ "," _ ",null,"C","_",null,null,2,23,"Finance and administration","Finance",null,"_","_","_","_","_",0,0,0,0,0,0,0,0,0,0,0,0,0,0]
["C0003-13/IA10373/F0002/X153/R0100/001/CONTRA","C0003-13/IA10373/F0002/X153/R0100/001/CONTRA",327941,46707,"Assets:Current Assets:VAT Receivable:VAT Control (Receivable):Transfers","IA",2300,"Community and public safety / Public safety / Police Forces, Traffic and Street Parking Control",2307,"Community and public safety / Public safety / Police Forces, Traffic and Street Parking Control"," _"," _"," _ "," _ ","_",2080,"Funded by Internally generated funds",170,"Current assets / VAT","_","_"," _ "," _ "," _ "," _ "," _ "," _ "," _ "," _ ",1003,"Statutory requirements",1003,"Statutory requirements"," _ "," _ "," _ "," _ ",null," _ "," _ ","_","_","_","_",null,null,1470,1470,"Computer Equipment","Computer Equipment"," _ "," _ "," _ "," _ "," _ "," _ "," _ "," _ "," _ "," _ "," _ "," _ "," _ "," _ "," _ "," _ "," _ "," _ "," _ "," _ ",null,"C","_",null,null,6,61,"Public safety","Police Forces, Traffic and Street Parking Control",null,"_","_","_","_","_",26087,26087,0,0,0,0,0,0,0,0,0,0,0,0]
["C0003-2/IA10371/F0002/X098/R0100/001/CONTRA","C0003-2/IA10371/F0002/X098/R0100/001/CONTRA",262443,36693,"Assets:Current Assets:VAT Receivable:Input Tax Capital:Transfers","IA",3100,"Economic and environmental services / Planning and development / Economic Development/Planning",3105,"Economic and environmental services / Planning and development / Economic Development/Planning"," _"," _"," _ "," _ ","_",2080,"Funded by Internally generated funds",170,"Current assets / VAT","_","_"," _ "," _ "," _ "," _ "," _ "," _ "," _ "," _ ",1003,"Statutory requirements",1003,"Statutory requirements"," _ "," _ "," _ "," _ ",null," _ "," _ ","_","_","_","_",null,null,1470,1470,"Computer Equipment","Computer Equipment"," _ "," _ "," _ "," _ "," _ "," _ "," _ "," _ "," _ "," _ "," _ "," _ "," _ "," _ "," _ "," _ "," _ "," _ "," _ "," _ ",null,"C","_",null,null,8,82,"Planning and Development","Economic Development/Planning",null,"_","_","_","_","_",0,0,0,0,0,0,0,0,0,0,0,0,0,0]
["C0001-1/IA01307/F0002/X049/R0100/001/FIN","C0001-1/IA01307/F0002/X049/R0100/001/FIN",91824,21511,"Assets:Non-current Assets:Property, Plant and Equipment:Cost Model:Land:General Plant:Owned and In-use:Cost:Acquisitions","IA",1200,"Municipal governance and administration / Finance and administration / Finance",1204,"Municipal governance and administration / Finance and administration / Finance"," _"," _"," _ "," _ ","CE",2080,"Funded by Internally generated funds",230,"Non current assets / Property, plant and equipment","_","_"," _ "," _ "," _ "," _ "," _ "," _ "," _ "," _ ","_","_","_","_",1550,"Land",1550,"Land",null," _ "," _ ","_","_","_","_",null,null,1550,1550,"Land","Land"," _ "," _ "," _ "," _ "," _ "," _ "," _ "," _ "," _ "," _ "," _ "," _ "," _ "," _ "," _ "," _ ",241,"Property, plant and equipment (PPE) / PPE at cost/valuation (excl. finance leases)",241,"Property, plant and equipment (PPE) / PPE at cost/valuation (excl. finance leases)",null,"C","_",null,null,2,23,"Finance and administration","Finance",null,"_","_","_","_","_",0,0,0,0,0,0,0,0,0,0,0,0,0,0]
["C0003-10/IA06193/F09788/X007/R0100/001/COMM","C0003-10/IA06193/F09788/X007/R0100/001/COMM",140159,23983,"Assets:Non-current Assets:Property, Plant and Equipment:Cost Model:Computer Equipment:In-use:Cost:Acquisitions","IA",2100,"Community and public safety / Community and social services / Libraries and Archives",2114,"Community and public safety / Community and social services / Libraries and Archives"," _"," _"," _ "," _ ","CE",2020,"Funded by Provincial Government",230,"Non current assets / Property, plant and equipment","_","_"," _ "," _ "," _ "," _ "," _ "," _ "," _ "," _ ","_","_","_","_",1470,"Computer Equipment",1470,"Computer Equipment",null," _ "," _ ","_","_","_","_",null,null,1470,1470,"Computer Equipment","Computer Equipment"," _ "," _ "," _ "," _ "," _ "," _ "," _ "," _ "," _ "," _ "," _ "," _ "," _ "," _ "," _ "," _ ",241,"Property, plant and equipment (PPE) / PPE at cost/valuation (excl. finance leases)",241,"Property, plant and equipment (PPE) / PPE at cost/valuation (excl. finance leases)",null,"C","_",null,null,4,44,"Community and social services","Libraries and Archives",null,"_","_","_","_","_",0,0,0,0,0,0,0,0,0,0,0,0,0,0]
["C0003-11/IA10371/F0002/X049/R0099/001/CONTRA","C0003-11/IA10371/F0002/X049/R0099/001/CONTRA",264669,43996,"Assets:Current Assets:VAT Receivable:Input Tax Capital:Transfers","IA",1200,"Municipal governance and administration / Finance and administration / Finance",1204,"Municipal governance and administration / Finance and administration / Finance"," _"," _"," _ "," _ ","_",2080,"Funded by Internally generated funds",170,"Current assets / VAT","_","_"," _ "," _ "," _ "," _ "," _ "," _ "," _ "," _ ",1003,"Statutory requirements",1003,"Statutory requirements"," _ "," _ "," _ "," _ ",null," _ "," _ ","_","_","_","_",null,null,1470,1470,"Computer Equipment","Computer Equipment"," _ "," _ "," _ "," _ "," _ "," _ "," _ "," _ "," _ "," _ "," _ "," _ "," _ "," _ "," _ "," _ "," _ "," _ "," _ "," _ ",null,"C","_",null,null,2,23,"Finance and administration","Finance",null,"_","_","_","_","_",0,0,0,0,0,0,0,0,0,0,0,0,0,0]
["C0003-2/IA10370/F0002/X098/R0100/001/CONTRA","C0003-2/IA10370/F0002/X098/R0100/001/CONTRA",249376,36694,"Assets:Current Assets:VAT Receivable:Input Tax Capital:Recognised","IA",3100,"Economic and environmental services / Planning and development / Economic Development/Planning",3105,"Economic and environmental services / Planning and development / Economic Development/Planning"," _"," _"," _ "," _ ","_",2080,"Funded by Internally generated funds",170,"Current assets / VAT","_","_"," _ "," _ "," _ "," _ "," _ "," _ "," _ "," _ ",1003,"Statutory requirements",1003,"Statutory requirements"," _ "," _ "," _ "," _ ",null," _ "," _ ","_","_","_","_",null,null,1470,1470,"Computer Equipment","Computer Equipment"," _ "," _ "," _ "," _ "," _ "," _ "," _ "," _ "," _ "," _ "," _ "," _ "," _ "," _ "," _ "," _ "," _ "," _ "," _ "," _ ",null,"C","_",null,null,8,82,"Planning and Development","Economic Development/Planning",null,"_","_","_","_","_",0,0,0,0,0,0,0,0,0,0,0,0,0,0]
["C0003-4/IA05091/F0002/X046/R0100/001/CORP","C0003-4/IA05091/F0002/X046/R0100/001/CORP",101920,22985,"Assets:Non-current Assets:Intangible Assets:Cost:Other:In-use:Computer Software Accumulated Amortisation:Amortisation","IA",1200,"Municipal governance and administration / Finance and administration / Administrative and Corporate Support",1201,"Municipal governance and administration / Finance and administration / Administrative and Corporate Support"," _"," _"," _ "," _ ","_",2080,"Funded by Internally generated funds",270,"Non current assets / Intangible assets","_","_"," _ "," _ "," _ "," _ "," _ "," _ "," _ "," _ ","_","_","_","_",1370,"Intangible Assets",1370,"Intangible Assets",null," _ "," _ ","_","_","_","_",null,null,1470,1470,"Computer Equipment","Computer Equipment"," _ "," _ "," _ "," _ "," _ "," _ "," _ "," _ "," _ "," _ "," _ "," _ "," _ "," _ "," _ "," _ "," _ "," _ "," _ "," _ ",null,"C","_",null,null,2,21,"Finance and administration","Administrative and Corporate Support",null,"_","_","_","_","_",0,0,0,0,0,0,0,0,0,0,0,0,0,0]
["C0001-3/IZ000126/F0002/X047/R0099/001/CONTRA","C0001-3/IZ000126/F0002/X047/R0099/001/CONTRA",266526,39906,"Gains and Losses:Impairment Loss:Property, Plant and Equipment:Land","IE",1200,"Municipal governance and administration / Finance and administration / Asset Management",1202,"Municipal governance and administration / Finance and administration / Asset Management",3600,"Expenditure / Depreciation and amortisation",2303,"Expenditure / Depreciation and amortisation","_",2080,"Funded by Internally generated funds"," _ "," _ "," _ "," _ "," _ "," _ "," _ "," _ "," _ "," _ "," _ "," _ ","_","_","_","_"," _ "," _ "," _ "," _ ",null,2303,"Depreciation and asset impairment ","_","_","_","_",null,null,1550,1550,"Land","Land"," _ "," _ "," _ "," _ "," _ "," _ "," _ "," _ "," _ "," _ "," _ "," _ "," _ "," _ "," _ "," _ "," _ "," _ "," _ "," _ ",null,"C","_",null,null,2,22,"Finance and administration","Asset Management",null,"_","_","_","_","_",0,0,0,0,0,0,0,0,0,0,0,0,0,0]
["C0001-4/IA10373/F0002/X098/R3649/001/CONTRA","C0001-4/IA10373/F0002/X098/R3649/001/CONTRA",265619,36747,"Assets:Current Assets:VAT Receivable:VAT Control (Receivable):Transfers","IA",3100,"Economic and environmental services / Planning and development / Economic Development/Planning",3105,"Economic and environmental services / Planning and development / Economic Development/Planning"," _"," _"," _ "," _ ","_",2080,"Funded by Internally generated funds",170,"Current assets / VAT","_","_"," _ "," _ "," _ "," _ "," _ "," _ "," _ "," _ ",1003,"Statutory requirements",1003,"Statutory requirements"," _ "," _ "," _ "," _ ",null," _ "," _ ","_","_","_","_",null,null,1550,1550,"Land","Land"," _ "," _ "," _ "," _ "," _ "," _ "," _ "," _ "," _ "," _ "," _ "," _ "," _ "," _ "," _ "," _ "," _ "," _ "," _ "," _ ",null,"C","_",null,null,8,82,"Planning and Development","Economic Development/Planning",null,"_","_","_","_","_",0,0,0,0,0,0,0,0,0,0,0,0,0,0]
["C0003-1/IL65531/F0002/X052/R0099/001/CONTRA","C0003-1/IL65531/F0002/X052/R0099/001/CONTRA",249415,36925,"Liabilities:Current Liabilities:Trade and Other Payable Exchange Transactions:Payables and Accruals : Contractors:Withdrawals","IL",1200,"Municipal governance and administration / Finance and administration / Information Technology",1207,"Municipal governance and administration / Finance and administration / Information Technology"," _"," _"," _ "," _ ","_",2080,"Funded by Internally generated funds",380,"Current liabilities / Trade and other payables from exchange transactions","_","_"," _ ",null," _ ","CASH FLOW FROM OPERATING ACTIVITIES / Payments / Suppliers and employees"," _ ",null," _ ","Cash Payments by Type / Contracted services","_","_","_","_"," _ "," _ "," _ "," _ ",null," _ "," _ ","_","_","_","_",null,null,1470,1470,"Computer Equipment","Computer Equipment"," _ "," _ "," _ "," _ "," _ "," _ "," _ "," _ "," _ "," _ "," _ "," _ "," _ "," _ "," _ "," _ ",361,"Trade and other payables / Trade and other payables from exchange transactions",361,"Trade and other payables / Trade and other payables from exchange transactions",null,"C","_",null,null,2,26,"Finance and administration","Information Technology",null,"_","_","_","_","_",500000,580000,0,0,0,0,0,0,0,0,0,0,0,0]
["C0003-12/IL65531/F0791/X099/R0100/001/CONTRA","C0003-12/IL65531/F0791/X099/R0100/001/CONTRA",248321,44012,"Liabilities:Current Liabilities:Trade and Other Payable Exchange Transactions:Payables and Accruals : Contractors:Withdrawals","IL",3100,"Economic and environmental services / Planning and development / Project Management Unit",3108,"Economic and environmental services / Planning and development / Project Management Unit"," _"," _"," _ "," _ ","_",2010,"Funded by National Government",380,"Current liabilities / Trade and other payables from exchange transactions","_","_"," _ ",null," _ ","CASH FLOW FROM OPERATING ACTIVITIES / Payments / Suppliers and employees"," _ ",null," _ ","Cash Payments by Type / Contracted services","_","_","_","_"," _ "," _ "," _ "," _ ",null," _ "," _ ","_","_","_","_",null,null,1470,1470,"Computer Equipment","Computer Equipment"," _ "," _ "," _ "," _ "," _ "," _ "," _ "," _ "," _ "," _ "," _ "," _ "," _ "," _ "," _ "," _ ",361,"Trade and other payables / Trade and other payables from exchange transactions",361,"Trade and other payables / Trade and other payables from exchange transactions",null,"C","_",null,null,8,83,"Planning and Development","Project Management Unit",null,"_","_","_","_","_",0,0,0,0,0,0,0,0,0,0,0,0,0,0]
["C0003-7/IA10370/F0002/X101/R0100/001/CONTRA","C0003-7/IA10370/F0002/X101/R0100/001/CONTRA",250958,43830,"Assets:Current Assets:VAT Receivable:Input Tax Capital:Recognised","IA",3100,"Economic and environmental services / Planning and development / Town Planning, Building Regulations and Enforcement, and City Engineer",3107,"Economic and environmental services / Planning and development / Town Planning, Building Regulations and Enforcement, and City Engineer"," _"," _"," _ "," _ ","_",2080,"Funded by Internally generated funds",170,"Current assets / VAT","_","_"," _ "," _ "," _ "," _ "," _ "," _ "," _ "," _ ",1003,"Statutory requirements",1003,"Statutory requirements"," _ "," _ "," _ "," _ ",null," _ "," _ ","_","_","_","_",null,null,1470,1470,"Computer Equipment","Computer Equipment"," _ "," _ "," _ "," _ "," _ "," _ "," _ "," _ "," _ "," _ "," _ "," _ "," _ "," _ "," _ "," _ "," _ "," _ "," _ "," _ ",null,"C","_",null,null,8,84,"Planning and Development","Town Planning, Building Regulations and Enforcement, and City Engineer",null,"_","_","_","_","_",0,0,0,0,0,0,0,0,0,0,0,0,0,0]
["C0004-10/IA10375/F0002/X006/R0100/001/CONTRA","C0004-10/IA10375/F0002/X006/R0100/001/CONTRA",265342,43110,"Assets:Current Assets:VAT Receivable:Input Tax Accrual:Recognised","IA",2100,"Community and public safety / Community and social services / Community Halls and Facilities",2106,"Community and public safety / Community and social services / Community Halls and Facilities"," _"," _"," _ "," _ ","_",2080,"Funded by Internally generated funds",170,"Current assets / VAT","_","_"," _ "," _ "," _ "," _ "," _ "," _ "," _ "," _ ",1003,"Statutory requirements",1003,"Statutory requirements"," _ "," _ "," _ "," _ ",null," _ "," _ ","_","_","_","_",null,null,1490,1490,"Furniture and Office Equipment","Furniture and Office Equipment"," _ "," _ "," _ "," _ "," _ "," _ "," _ "," _ "," _ "," _ "," _ "," _ "," _ "," _ "," _ "," _ "," _ "," _ "," _ "," _ ",null,"C","_",null,null,4,43,"Community and social services","Community Halls and Facilities",null,"_","_","_","_","_",0,0,0,0,0,0,0,0,0,0,0,0,0,0]
["C0004-12/IA10370/F0002/X044/R0100/001/CONTRA","C0004-12/IA10370/F0002/X044/R0100/001/CONTRA",250973,44028,"Assets:Current Assets:VAT Receivable:Input Tax Capital:Recognised","IA",1100,"Municipal governance and administration / Executive and council / Mayor and Council",1110,"Municipal governance and administration / Executive and council / Mayor and Council"," _"," _"," _ "," _ ","_",2080,"Funded by Internally generated funds",170,"Current assets / VAT","_","_"," _ "," _ "," _ "," _ "," _ "," _ "," _ "," _ ",1003,"Statutory requirements",1003,"Statutory requirements"," _ "," _ "," _ "," _ ",null," _ "," _ ","_","_","_","_",null,null,1490,1490,"Furniture and Office Equipment","Furniture and Office Equipment"," _ "," _ "," _ "," _ "," _ "," _ "," _ "," _ "," _ "," _ "," _ "," _ "," _ "," _ "," _ "," _ "," _ "," _ "," _ "," _ ",null,"C","_",null,null,1,11,"Executive and council","Mayor and Council",null,"_","_","_","_","_",13044,13044,0,0,0,0,0,0,0,0,0,0,0,0]
["C0004-12/IA10376/F0002/X044/R0100/001/CONTRA","C0004-12/IA10376/F0002/X044/R0100/001/CONTRA",263258,44032,"Assets:Current Assets:VAT Receivable:Input Tax Accrual:Transfers","IA",1100,"Municipal governance and administration / Executive and council / Mayor and Council",1110,"Municipal governance and administration / Executive and council / Mayor and Council"," _"," _"," _ "," _ ","_",2080,"Funded by Internally generated funds",170,"Current assets / VAT","_","_"," _ "," _ "," _ "," _ "," _ "," _ "," _ "," _ ",1003,"Statutory requirements",1003,"Statutory requirements"," _ "," _ "," _ "," _ ",null," _ "," _ ","_","_","_","_",null,null,1490,1490,"Furniture and Office Equipment","Furniture and Office Equipment"," _ "," _ "," _ "," _ "," _ "," _ "," _ "," _ "," _ "," _ "," _ "," _ "," _ "," _ "," _ "," _ "," _ "," _ "," _ "," _ ",null,"C","_",null,null,1,11,"Executive and council","Mayor and Council",null,"_","_","_","_","_",-13044,-13044,0,0,0,0,0,0,0,0,0,0,0,0]
["C0004-13/IA10371/F0002/X153/R0100/001/CONTRA","C0004-13/IA10371/F0002/X153/R0100/001/CONTRA",263399,44228,"Assets:Current Assets:VAT Receivable:Input Tax Capital:Transfers","IA",2300,"Community and public safety / Public safety / Police Forces, Traffic and Street Parking Control",2307,"Community and public safety / Public safety / Police Forces, Traffic and Street Parking Control"," _"," _"," _ "," _ ","_",2080,"Funded by Internally generated funds",170,"Current assets / VAT","_","_"," _ "," _ "," _ "," _ "," _ "," _ "," _ "," _ ",1003,"Statutory requirements",1003,"Statutory requirements"," _ "," _ "," _ "," _ ",null," _ "," _ ","_","_","_","_",null,null,1490,1490,"Furniture and Office Equipment","Furniture and Office Equipment"," _ "," _ "," _ "," _ "," _ "," _ "," _ "," _ "," _ "," _ "," _ "," _ "," _ "," _ "," _ "," _ "," _ "," _ "," _ "," _ ",null,"C","_",null,null,6,61,"Public safety","Police Forces, Traffic and Street Parking Control",null,"_","_","_","_","_",0,0,0,0,0,0,0,0,0,0,0,0,0,0]
["C0006-20/IA10375/F0002/X105/R0100/001/CONTRA","C0006-20/IA10375/F0002/X105/R0100/001/CONTRA",264211,44459,"Assets:Current Assets:VAT Receivable:Input Tax Accrual:Recognised","IA",2300,"Community and public safety / Public safety / Civil Defence",2301,"Community and public safety / Public safety / Civil Defence"," _"," _"," _ "," _ ","_",2080,"Funded by Internally generated funds",170,"Current assets / VAT","_","_"," _ "," _ "," _ "," _ "," _ "," _ "," _ "," _ ",1003,"Statutory requirements",1003,"Statutory requirements"," _ "," _ "," _ "," _ ",null," _ "," _ ","_","_","_","_",null,null,1510,1510,"Machinery and Equipment","Machinery and Equipment"," _ "," _ "," _ "," _ "," _ "," _ "," _ "," _ "," _ "," _ "," _ "," _ "," _ "," _ "," _ "," _ "," _ "," _ "," _ "," _ ",null,"C","_",null,null,6,63,"Public safety","Civil Defence",null,"_","_","_","_","_",65217,65217,0,0,0,0,0,0,0,0,0,0,0,0]
["C0006-21/IL65531/F0002/X153/R0099/001/CONTRA","C0006-21/IL65531/F0002/X153/R0099/001/CONTRA",251083,44504,"Liabilities:Current Liabilities:Trade and Other Payable Exchange Transactions:Payables and Accruals : Contractors:Withdrawals","IL",2300,"Community and public safety / Public safety / Police Forces, Traffic and Street Parking Control",2307,"Community and public safety / Public safety / Police Forces, Traffic and Street Parking Control"," _"," _"," _ "," _ ","_",2080,"Funded by Internally generated funds",380,"Current liabilities / Trade and other payables from exchange transactions","_","_"," _ ",null," _ ","CASH FLOW FROM OPERATING ACTIVITIES / Payments / Suppliers and employees"," _ ",null," _ ","Cash Payments by Type / Contracted services","_","_","_","_"," _ "," _ "," _ "," _ ",null," _ "," _ ","_","_","_","_",null,null,1510,1510,"Machinery and Equipment","Machinery and Equipment"," _ "," _ "," _ "," _ "," _ "," _ "," _ "," _ "," _ "," _ "," _ "," _ "," _ "," _ "," _ "," _ ",361,"Trade and other payables / Trade and other payables from exchange transactions",361,"Trade and other payables / Trade and other payables from exchange transactions",null,"C","_",null,null,6,61,"Public safety","Police Forces, Traffic and Street Parking Control",null,"_","_","_","_","_",0,0,0,0,0,0,0,0,0,0,0,0,0,0]
["C0006-23/IA10371/F0002/X116/R0100/001/CONTRA","C0006-23/IA10371/F0002/X116/R0100/001/CONTRA",264357,44671,"Assets:Current Assets:VAT Receivable:Input Tax Capital:Transfers","IA",3200,"Economic and environmental services / Road transport / Roads",3205,"Economic and environmental services / Road transport / Roads"," _"," _"," _ "," _ ","_",2080,"Funded by Internally generated funds",170,"Current assets / VAT","_","_"," _ "," _ "," _ "," _ "," _ "," _ "," _ "," _ ",1003,"Statutory requirements",1003,"Statutory requirements"," _ "," _ "," _ "," _ ",null," _ "," _ ","_","_","_","_",null,null,1510,1510,"Machinery and Equipment","Machinery and Equipment"," _ "," _ "," _ "," _ "," _ "," _ "," _ "," _ "," _ "," _ "," _ "," _ "," _ "," _ "," _ "," _ "," _ "," _ "," _ "," _ ",null,"C","_",null,null,9,91,"Road transport","Roads",null,"_","_","_","_","_",0,0,0,0,0,0,0,0,0,0,0,0,0,0]
["C0006-25/IA00032/F09773/X125/R3640/001/COM2","C0006-25/IA00032/F09773/X125/R3640/001/COM2",171607,29418,"Assets:Non-current Assets:Property, Plant and Equipment:Cost Model:Community Assets:Cost:Acquisitions","IA",2200,"Community and public safety / Sport and recreation / Sports Grounds and Stadiums",2205,"Community and public safety / Sport and recreation / Sports Grounds and Stadiums"," _"," _"," _ "," _ ","CE",2020,"Funded by Provincial Government",230,"Non current assets / Property, plant and equipment","_","_"," _ "," _ "," _ "," _ "," _ "," _ "," _ "," _ ","_","_","_","_",770,"Community Assets",770,"Community Assets",null," _ "," _ ","_","_","_","_",null,null,1510,1510,"Machinery and Equipment","Machinery and Equipment"," _ "," _ "," _ "," _ "," _ "," _ "," _ "," _ "," _ "," _ "," _ "," _ "," _ "," _ "," _ "," _ ",241,"Property, plant and equipment (PPE) / PPE at cost/valuation (excl. finance leases)",241,"Property, plant and equipment (PPE) / PPE at cost/valuation (excl. finance leases)",null,"C","_",null,null,5,54,"Sport and Recreation","Sports Grounds and Stadiums",null,"_","_","_","_","_",0,0,0,0,0,0,0,0,0,0,0,0,0,0]
["C0003-11/IL65530/F09788/X007/R0100/001/CONTRA","C0003-11/IL65530/F09788/X007/R0100/001/CONTRA",251192,36568,"Liabilities:Current Liabilities:Trade and Other Payable Exchange Transactions:Payables and Accruals : Contractors:Deposits","IL",2100,"Community and public safety / Community and social services / Libraries and Archives",2114,"Community and public safety / Community and social services / Libraries and Archives"," _"," _"," _ "," _ ","_",2020,"Funded by Provincial Government",380,"Current liabilities / Trade and other payables from exchange transactions","_","_"," _ "," _ "," _ "," _ "," _ "," _ "," _ "," _ ","_","_","_","_"," _ "," _ "," _ "," _ ",null," _ "," _ ","_","_","_","_",null,null,1470,1470,"Computer Equipment","Computer Equipment"," _ "," _ "," _ "," _ "," _ "," _ "," _ "," _ "," _ "," _ "," _ "," _ "," _ "," _ "," _ "," _ ",361,"Trade and other payables / Trade and other payables from exchange transactions",361,"Trade and other payables / Trade and other payables from exchange transactions",null,"C","_",null,null,4,44,"Community and social services","Libraries and Archives",null,"_","_","_","_","_",-50002,-60002,0,0,0,0,0,0,0,0,0,0,0,0]
["C0003-2/IA10376/F0002/X098/R0100/001/CONTRA","C0003-2/IA10376/F0002/X098/R0100/001/CONTRA",262446,36695,"Assets:Current Assets:VAT Receivable:Input Tax Accrual:Transfers","IA",3100,"Economic and environmental services / Planning and development / Economic Development/Planning",3105,"Economic and environmental services / Planning and development / Economic Development/Planning"," _"," _"," _ "," _ ","_",2080,"Funded by Internally generated funds",170,"Current assets / VAT","_","_"," _ "," _ "," _ "," _ "," _ "," _ "," _ "," _ ",1003,"Statutory requirements",1003,"Statutory requirements"," _ "," _ "," _ "," _ ",null," _ "," _ ","_","_","_","_",null,null,1470,1470,"Computer Equipment","Computer Equipment"," _ "," _ "," _ "," _ "," _ "," _ "," _ "," _ "," _ "," _ "," _ "," _ "," _ "," _ "," _ "," _ "," _ "," _ "," _ "," _ ",null,"C","_",null,null,8,82,"Planning and Development","Economic Development/Planning",null,"_","_","_","_","_",0,0,0,0,0,0,0,0,0,0,0,0,0,0]
["C0003-4/IA02105/F0791/X049/R0100/001/CONTRA","C0003-4/IA02105/F0791/X049/R0100/001/CONTRA",250218,40778,"Assets:Current Assets:Cash and Cash Equivalents:Cash at Bank:Bank Account:Specify (replace with account description):Deposits","IA",1200,"Municipal governance and administration / Finance and administration / Finance",1204,"Municipal governance and administration / Finance and administration / Finance"," _"," _"," _ "," _ ","_",2010,"Funded by National Government",120,"Current assets / Cash and cash equivalents","_","_",160," _ ","CASH FLOW FROM OPERATING ACTIVITIES / Receipts / Transfers and Subsidies - Capital"," _ ",160," _ ","CASH FLOW FROM OPERATING ACTIVITIES / Receipts / Transfers and Subsidies - Capital"," _ ","_","_","_","_"," _ "," _ "," _ "," _ ",null," _ "," _ ","_","_","_","_",280,"Other Cash Flows by Source / Transfers and subsidies - capital (monetary allocations) (National / Provincial and District)",1470,1470,"Computer Equipment","Computer Equipment"," _ "," _ "," _ "," _ "," _ "," _ "," _ "," _ "," _ "," _ "," _ "," _ "," _ "," _ "," _ "," _ "," _ "," _ "," _ "," _ ","D","C","_",null,null,2,23,"Finance and administration","Finance",null,"_","_","_","_","_",0,0,0,0,0,0,0,0,0,0,0,0,0,0]
["C0003-4/IL65530/F0002/X057/R0100/001/CONTRA","C0003-4/IL65530/F0002/X057/R0100/001/CONTRA",250216,40814,"Liabilities:Current Liabilities:Trade and Other Payable Exchange Transactions:Payables and Accruals : Contractors:Deposits","IL",1200,"Municipal governance and administration / Finance and administration / Security Services",1212,"Municipal governance and administration / Finance and administration / Security Services"," _"," _"," _ "," _ ","_",2080,"Funded by Internally generated funds",380,"Current liabilities / Trade and other payables from exchange transactions","_","_"," _ "," _ "," _ "," _ "," _ "," _ "," _ "," _ ","_","_","_","_"," _ "," _ "," _ "," _ ",null," _ "," _ ","_","_","_","_",null,null,1470,1470,"Computer Equipment","Computer Equipment"," _ "," _ "," _ "," _ "," _ "," _ "," _ "," _ "," _ "," _ "," _ "," _ "," _ "," _ "," _ "," _ ",361,"Trade and other payables / Trade and other payables from exchange transactions",361,"Trade and other payables / Trade and other payables from exchange transactions",null,"C","_",null,null,2,28,"Finance and administration","Security Services",null,"_","_","_","_","_",0,0,0,0,0,0,0,0,0,0,0,0,0,0]
["C0004-24/IL65530/F0002/X153/R0099/001/CONTRA","C0004-24/IL65530/F0002/X153/R0099/001/CONTRA",327722,46930,"Liabilities:Current Liabilities:Trade and Other Payable Exchange Transactions:Payables and Accruals : Contractors:Deposits","IL",2300,"Community and public safety / Public safety / Police Forces, Traffic and Street Parking Control",2307,"Community and public safety / Public safety / Police Forces, Traffic and Street Parking Control"," _"," _"," _ "," _ ","_",2080,"Funded by Internally generated funds",380,"Current liabilities / Trade and other payables from exchange transactions","_","_"," _ "," _ "," _ "," _ "," _ "," _ "," _ "," _ ","_","_","_","_"," _ "," _ "," _ "," _ ",null," _ "," _ ","_","_","_","_",null,null,1490,1490,"Furniture and Office Equipment","Furniture and Office Equipment"," _ "," _ "," _ "," _ "," _ "," _ "," _ "," _ "," _ "," _ "," _ "," _ "," _ "," _ "," _ "," _ ",361,"Trade and other payables / Trade and other payables from exchange transactions",361,"Trade and other payables / Trade and other payables from exchange transactions",null,"C","_",null,null,6,61,"Public safety","Police Forces, Traffic and Street Parking Control",null,"_","_","_","_","_",-100001,0,0,0,0,0,0,0,0,0,0,0,0,0]
["C0004-25/IA10373/F0002/X098/R0100/001/CONTRA","C0004-25/IA10373/F0002/X098/R0100/001/CONTRA",327925,46938,"Assets:Current Assets:VAT Receivable:VAT Control (Receivable):Transfers","IA",3100,"Economic and environmental services / Planning and development / Economic Development/Planning",3105,"Economic and environmental services / Planning and development / Economic Development/Planning"," _"," _"," _ "," _ ","_",2080,"Funded by Internally generated funds",170,"Current assets / VAT","_","_"," _ "," _ "," _ "," _ "," _ "," _ "," _ "," _ ",1003,"Statutory requirements",1003,"Statutory requirements"," _ "," _ "," _ "," _ ",null," _ "," _ ","_","_","_","_",null,null,1490,1490,"Furniture and Office Equipment","Furniture and Office Equipment"," _ "," _ "," _ "," _ "," _ "," _ "," _ "," _ "," _ "," _ "," _ "," _ "," _ "," _ "," _ "," _ "," _ "," _ "," _ "," _ ",null,"C","_",null,null,8,82,"Planning and Development","Economic Development/Planning",null,"_","_","_","_","_",13043,13043,0,0,0,0,0,0,0,0,0,0,0,0]
["C0004-3/IA10371/F0791/X099/R0100/001/CONTRA","C0004-3/IA10371/F0791/X099/R0100/001/CONTRA",264795,38552,"Assets:Current Assets:VAT Receivable:Input Tax Capital:Transfers","IA",3100,"Economic and environmental services / Planning and development / Project Management Unit",3108,"Economic and environmental services / Planning and development / Project Management Unit"," _"," _"," _ "," _ ","_",2010,"Funded by National Government",170,"Current assets / VAT","_","_"," _ "," _ "," _ "," _ "," _ "," _ "," _ "," _ ",1003,"Statutory requirements",1003,"Statutory requirements"," _ "," _ "," _ "," _ ",null," _ "," _ ","_","_","_","_",null,null,1490,1490,"Furniture and Office Equipment","Furniture and Office Equipment"," _ "," _ "," _ "," _ "," _ "," _ "," _ "," _ "," _ "," _ "," _ "," _ "," _ "," _ "," _ "," _ "," _ "," _ "," _ "," _ ",null,"C","_",null,null,8,83,"Planning and Development","Project Management Unit",null,"_","_","_","_","_",0,0,0,0,0,0,0,0,0,0,0,0,0,0]
["C0004-6/IA02108/F0002/X044/R0100/001/CONTRA","C0004-6/IA02108/F0002/X044/R0100/001/CONTRA",251509,40103,"Assets:Current Assets:Cash and Cash Equivalents:Cash at Bank:Bank Account:Specify (replace with account description):Withdrawals","IA",1100,"Municipal governance and administration / Executive and council / Mayor and Council",1110,"Municipal governance and administration / Executive and council / Mayor and Council"," _"," _"," _ "," _ ","_",2080,"Funded by Internally generated funds",120,"Current assets / Cash and cash equivalents","_","_"," _ ",310," _ ","Other Cash Flows/Payments by Type / Capital assets"," _ ",510," _ ","Capital assets","_","_","_","_"," _ "," _ "," _ "," _ ",null," _ "," _ ","_","_","_","_",null,null,1490,1490,"Furniture and Office Equipment","Furniture and Office Equipment"," _ "," _ "," _ "," _ "," _ "," _ "," _ "," _ "," _ "," _ "," _ "," _ "," _ "," _ "," _ "," _ "," _ "," _ "," _ "," _ ","W","C","_",null,null,1,11,"Executive and council","Mayor and Council",null,"_","_","_","_","_",0,0,0,0,0,0,0,0,0,0,0,0,0,0]
["C0003-12/IL65530/F0791/X099/R0100/001/CONTRA","C0003-12/IL65530/F0791/X099/R0100/001/CONTRA",251245,44009,"Liabilities:Current Liabilities:Trade and Other Payable Exchange Transactions:Payables and Accruals : Contractors:Deposits","IL",3100,"Economic and environmental services / Planning and development / Project Management Unit",3108,"Economic and environmental services / Planning and development / Project Management Unit"," _"," _"," _ "," _ ","_",2010,"Funded by National Government",380,"Current liabilities / Trade and other payables from exchange transactions","_","_"," _ "," _ "," _ "," _ "," _ "," _ "," _ "," _ ","_","_","_","_"," _ "," _ "," _ "," _ ",null," _ "," _ ","_","_","_","_",null,null,1470,1470,"Computer Equipment","Computer Equipment"," _ "," _ "," _ "," _ "," _ "," _ "," _ "," _ "," _ "," _ "," _ "," _ "," _ "," _ "," _ "," _ ",361,"Trade and other payables / Trade and other payables from exchange transactions",361,"Trade and other payables / Trade and other payables from exchange transactions",null,"C","_",null,null,8,83,"Planning and Development","Project Management Unit",null,"_","_","_","_","_",0,0,0,0,0,0,0,0,0,0,0,0,0,0]
["C0003-12/IL65531/F0002/X153/R0100/001/CONTRA","C0003-12/IL65531/F0002/X153/R0100/001/CONTRA",327937,46757,"Liabilities:Current Liabilities:Trade and Other Payable Exchange Transactions:Payables and Accruals : Contractors:Withdrawals","IL",2300,"Community and public safety / Public safety / Police Forces, Traffic and Street Parking Control",2307,"Community and public safety / Public safety / Police Forces, Traffic and Street Parking Control"," _"," _"," _ "," _ ","_",2080,"Funded by Internally generated funds",380,"Current liabilities / Trade and other payables from exchange transactions","_","_"," _ ",null," _ ","CASH FLOW FROM OPERATING ACTIVITIES / Payments / Suppliers and employees"," _ ",null," _ ","Cash Payments by Type / Contracted services","_","_","_","_"," _ "," _ "," _ "," _ ",null," _ "," _ ","_","_","_","_",null,null,1470,1470,"Computer Equipment","Computer Equipment"," _ "," _ "," _ "," _ "," _ "," _ "," _ "," _ "," _ "," _ "," _ "," _ "," _ "," _ "," _ "," _ ",361,"Trade and other payables / Trade and other payables from exchange transactions",361,"Trade and other payables / Trade and other payables from exchange transactions",null,"C","_",null,null,6,61,"Public safety","Police Forces, Traffic and Street Parking Control",null,"_","_","_","_","_",0,0,0,0,0,0,0,0,0,0,0,0,0,0]
["C0003-3/IA10370/F0002/X044/R0099/001/CONTRA","C0003-3/IA10370/F0002/X044/R0099/001/CONTRA",250050,39572,"Assets:Current Assets:VAT Receivable:Input Tax Capital:Recognised","IA",1100,"Municipal governance and administration / Executive and council / Mayor and Council",1110,"Municipal governance and administration / Executive and council / Mayor and Council"," _"," _"," _ "," _ ","_",2080,"Funded by Internally generated funds",170,"Current assets / VAT","_","_"," _ "," _ "," _ "," _ "," _ "," _ "," _ "," _ ",1003,"Statutory requirements",1003,"Statutory requirements"," _ "," _ "," _ "," _ ",null," _ "," _ ","_","_","_","_",null,null,1470,1470,"Computer Equipment","Computer Equipment"," _ "," _ "," _ "," _ "," _ "," _ "," _ "," _ "," _ "," _ "," _ "," _ "," _ "," _ "," _ "," _ "," _ "," _ "," _ "," _ ",null,"C","_",null,null,1,11,"Executive and council","Mayor and Council",null,"_","_","_","_","_",0,0,0,0,0,0,0,0,0,0,0,0,0,0]
["C0003-3/IA10371/F0002/X044/R0099/001/CONTRA","C0003-3/IA10371/F0002/X044/R0099/001/CONTRA",266307,39583,"Assets:Current Assets:VAT Receivable:Input Tax Capital:Transfers","IA",1100,"Municipal governance and administration / Executive and council / Mayor and Council",1110,"Municipal governance and administration / Executive and council / Mayor and Council"," _"," _"," _ "," _ ","_",2080,"Funded by Internally generated funds",170,"Current assets / VAT","_","_"," _ "," _ "," _ "," _ "," _ "," _ "," _ "," _ ",1003,"Statutory requirements",1003,"Statutory requirements"," _ "," _ "," _ "," _ ",null," _ "," _ ","_","_","_","_",null,null,1470,1470,"Computer Equipment","Computer Equipment"," _ "," _ "," _ "," _ "," _ "," _ "," _ "," _ "," _ "," _ "," _ "," _ "," _ "," _ "," _ "," _ "," _ "," _ "," _ "," _ ",null,"C","_",null,null,1,11,"Executive and council","Mayor and Council",null,"_","_","_","_","_",0,0,0,0,0,0,0,0,0,0,0,0,0,0]
["C0001-4/IA01274/F0002/X098/R3649/001/EDP","C0001-4/IA01274/F0002/X098/R3649/001/EDP",171616,29427,"Assets:Non-current Assets:Property, Plant and Equipment:Cost Model:Land:General Plant:Future Use:Cost:Acquisitions","IA",3100,"Economic and environmental services / Planning and development / Economic Development/Planning",3105,"Economic and environmental services / Planning and development / Economic Development/Planning"," _"," _"," _ "," _ ","CE",2080,"Funded by Internally generated funds",230,"Non current assets / Property, plant and equipment","_","_"," _ "," _ "," _ "," _ "," _ "," _ "," _ "," _ ","_","_","_","_",1550,"Land",1550,"Land",null," _ "," _ ","_","_","_","_",null,null,1550,1550,"Land","Land"," _ "," _ "," _ "," _ "," _ "," _ "," _ "," _ "," _ "," _ "," _ "," _ "," _ "," _ "," _ "," _ ",241,"Property, plant and equipment (PPE) / PPE at cost/valuation (excl. finance leases)",241,"Property, plant and equipment (PPE) / PPE at cost/valuation (excl. finance leases)",null,"C","_",null,null,8,82,"Planning and Development","Economic Development/Planning",null,"_","_","_","_","_",0,0,0,0,0,0,0,0,0,71000,-71000,0,0,0]
["C0001-4/IA10371/F0002/X098/R3649/001/CONTRA","C0001-4/IA10371/F0002/X098/R3649/001/CONTRA",265618,36750,"Assets:Current Assets:VAT Receivable:Input Tax Capital:Transfers","IA",3100,"Economic and environmental services / Planning and development / Economic Development/Planning",3105,"Economic and environmental services / Planning and development / Economic Development/Planning"," _"," _"," _ "," _ ","_",2080,"Funded by Internally generated funds",170,"Current assets / VAT","_","_"," _ "," _ "," _ "," _ "," _ "," _ "," _ "," _ ",1003,"Statutory requirements",1003,"Statutory requirements"," _ "," _ "," _ "," _ ",null," _ "," _ ","_","_","_","_",null,null,1550,1550,"Land","Land"," _ "," _ "," _ "," _ "," _ "," _ "," _ "," _ "," _ "," _ "," _ "," _ "," _ "," _ "," _ "," _ "," _ "," _ "," _ "," _ ",null,"C","_",null,null,8,82,"Planning and Development","Economic Development/Planning",null,"_","_","_","_","_",0,0,0,0,0,0,0,0,0,0,0,0,0,0]
["C0003-1/IA02108/F0002/X052/R0099/001/CONTRA","C0003-1/IA02108/F0002/X052/R0099/001/CONTRA",251412,36918,"Assets:Current Assets:Cash and Cash Equivalents:Cash at Bank:Bank Account:Specify (replace with account description):Withdrawals","IA",1200,"Municipal governance and administration / Finance and administration / Information Technology",1207,"Municipal governance and administration / Finance and administration / Information Technology"," _"," _"," _ "," _ ","_",2080,"Funded by Internally generated funds",120,"Current assets / Cash and cash equivalents","_","_"," _ ",310," _ ","Other Cash Flows/Payments by Type / Capital assets"," _ ",510," _ ","Capital assets","_","_","_","_"," _ "," _ "," _ "," _ ",null," _ "," _ ","_","_","_","_",null,null,1470,1470,"Computer Equipment","Computer Equipment"," _ "," _ "," _ "," _ "," _ "," _ "," _ "," _ "," _ "," _ "," _ "," _ "," _ "," _ "," _ "," _ "," _ "," _ "," _ "," _ ","W","C","_",null,null,2,26,"Finance and administration","Information Technology",null,"_","_","_","_","_",-500000,-580000,0,0,0,0,0,0,0,0,0,0,0,0]
["C0003-10/IL65530/F09788/X007/R0100/001/CONTRA","C0003-10/IL65530/F09788/X007/R0100/001/CONTRA",250881,43014,"Liabilities:Current Liabilities:Trade and Other Payable Exchange Transactions:Payables and Accruals : Contractors:Deposits","IL",2100,"Community and public safety / Community and social services / Libraries and Archives",2114,"Community and public safety / Community and social services / Libraries and Archives"," _"," _"," _ "," _ ","_",2020,"Funded by Provincial Government",380,"Current liabilities / Trade and other payables from exchange transactions","_","_"," _ "," _ "," _ "," _ "," _ "," _ "," _ "," _ ","_","_","_","_"," _ "," _ "," _ "," _ ",null," _ "," _ ","_","_","_","_",null,null,1470,1470,"Computer Equipment","Computer Equipment"," _ "," _ "," _ "," _ "," _ "," _ "," _ "," _ "," _ "," _ "," _ "," _ "," _ "," _ "," _ "," _ ",361,"Trade and other payables / Trade and other payables from exchange transactions",361,"Trade and other payables / Trade and other payables from exchange transactions",null,"C","_",null,null,4,44,"Community and social services","Libraries and Archives",null,"_","_","_","_","_",0,0,0,0,0,0,0,0,0,0,0,0,0,0]
["C0001-1/IA10376/F0002/X044/R0100/001/CONTRA","C0001-1/IA10376/F0002/X044/R0100/001/CONTRA",266391,39757,"Assets:Current Assets:VAT Receivable:Input Tax Accrual:Transfers","IA",1100,"Municipal governance and administration / Executive and council / Mayor and Council",1110,"Municipal governance and administration / Executive and council / Mayor and Council"," _"," _"," _ "," _ ","_",2080,"Funded by Internally generated funds",170,"Current assets / VAT","_","_"," _ "," _ "," _ "," _ "," _ "," _ "," _ "," _ ",1003,"Statutory requirements",1003,"Statutory requirements"," _ "," _ "," _ "," _ ",null," _ "," _ ","_","_","_","_",null,null,1550,1550,"Land","Land"," _ "," _ "," _ "," _ "," _ "," _ "," _ "," _ "," _ "," _ "," _ "," _ "," _ "," _ "," _ "," _ "," _ "," _ "," _ "," _ ",null,"C","_",null,null,1,11,"Executive and council","Mayor and Council",null,"_","_","_","_","_",0,0,0,0,0,0,0,0,0,0,0,0,0,0]
["C0001-4/IA10376/F0002/X098/R3649/001/CONTRA","C0001-4/IA10376/F0002/X098/R3649/001/CONTRA",265621,36743,"Assets:Current Assets:VAT Receivable:Input Tax Accrual:Transfers","IA",3100,"Economic and environmental services / Planning and development / Economic Development/Planning",3105,"Economic and environmental services / Planning and development / Economic Development/Planning"," _"," _"," _ "," _ ","_",2080,"Funded by Internally generated funds",170,"Current assets / VAT","_","_"," _ "," _ "," _ "," _ "," _ "," _ "," _ "," _ ",1003,"Statutory requirements",1003,"Statutory requirements"," _ "," _ "," _ "," _ ",null," _ "," _ ","_","_","_","_",null,null,1550,1550,"Land","Land"," _ "," _ "," _ "," _ "," _ "," _ "," _ "," _ "," _ "," _ "," _ "," _ "," _ "," _ "," _ "," _ "," _ "," _ "," _ "," _ ",null,"C","_",null,null,8,82,"Planning and Development","Economic Development/Planning",null,"_","_","_","_","_",0,0,0,0,0,0,0,0,0,0,0,0,0,0]
["C0003-1/IA10375/F0002/X052/R0099/001/CONTRA","C0003-1/IA10375/F0002/X052/R0099/001/CONTRA",262990,36926,"Assets:Current Assets:VAT Receivable:Input Tax Accrual:Recognised","IA",1200,"Municipal governance and administration / Finance and administration / Information Technology",1207,"Municipal governance and administration / Finance and administration / Information Technology"," _"," _"," _ "," _ ","_",2080,"Funded by Internally generated funds",170,"Current assets / VAT","_","_"," _ "," _ "," _ "," _ "," _ "," _ "," _ "," _ ",1003,"Statutory requirements",1003,"Statutory requirements"," _ "," _ "," _ "," _ ",null," _ "," _ ","_","_","_","_",null,null,1470,1470,"Computer Equipment","Computer Equipment"," _ "," _ "," _ "," _ "," _ "," _ "," _ "," _ "," _ "," _ "," _ "," _ "," _ "," _ "," _ "," _ "," _ "," _ "," _ "," _ ",null,"C","_",null,null,2,26,"Finance and administration","Information Technology",null,"_","_","_","_","_",65217,75652,0,0,0,0,0,0,0,0,0,0,0,0]
["C0003-12/IA02108/F0791/X099/R0100/001/CONTRA","C0003-12/IA02108/F0791/X099/R0100/001/CONTRA",251698,44016,"Assets:Current Assets:Cash and Cash Equivalents:Cash at Bank:Bank Account:Specify (replace with account description):Withdrawals","IA",3100,"Economic and environmental services / Planning and development / Project Management Unit",3108,"Economic and environmental services / Planning and development / Project Management Unit"," _"," _"," _ "," _ ","_",2010,"Funded by National Government",120,"Current assets / Cash and cash equivalents","_","_"," _ ",310," _ ","Other Cash Flows/Payments by Type / Capital assets"," _ ",510," _ ","Capital assets","_","_","_","_"," _ "," _ "," _ "," _ ",null," _ "," _ ","_","_","_","_",null,null,1470,1470,"Computer Equipment","Computer Equipment"," _ "," _ "," _ "," _ "," _ "," _ "," _ "," _ "," _ "," _ "," _ "," _ "," _ "," _ "," _ "," _ "," _ "," _ "," _ "," _ ","W","C","_",null,null,8,83,"Planning and Development","Project Management Unit",null,"_","_","_","_","_",0,0,0,0,0,0,0,0,0,0,0,0,0,0]
["C0003-2/IA10375/F0002/X098/R0100/001/CONTRA","C0003-2/IA10375/F0002/X098/R0100/001/CONTRA",262445,36698,"Assets:Current Assets:VAT Receivable:Input Tax Accrual:Recognised","IA",3100,"Economic and environmental services / Planning and development / Economic Development/Planning",3105,"Economic and environmental services / Planning and development / Economic Development/Planning"," _"," _"," _ "," _ ","_",2080,"Funded by Internally generated funds",170,"Current assets / VAT","_","_"," _ "," _ "," _ "," _ "," _ "," _ "," _ "," _ ",1003,"Statutory requirements",1003,"Statutory requirements"," _ "," _ "," _ "," _ ",null," _ "," _ ","_","_","_","_",null,null,1470,1470,"Computer Equipment","Computer Equipment"," _ "," _ "," _ "," _ "," _ "," _ "," _ "," _ "," _ "," _ "," _ "," _ "," _ "," _ "," _ "," _ "," _ "," _ "," _ "," _ ",null,"C","_",null,null,8,82,"Planning and Development","Economic Development/Planning",null,"_","_","_","_","_",0,0,0,0,0,0,0,0,0,0,0,0,0,0]
["C0004-12/IA06233/F0002/X044/R0100/001/EXE1","C0004-12/IA06233/F0002/X044/R0100/001/EXE1",140091,23916,"Assets:Non-current Assets:Property, Plant and Equipment:Cost Model:Furniture and Office Equipment:Future Use:Cost:Acquisitions","IA",1100,"Municipal governance and administration / Executive and council / Mayor and Council",1110,"Municipal governance and administration / Executive and council / Mayor and Council"," _"," _"," _ "," _ ","CE",2080,"Funded by Internally generated funds",230,"Non current assets / Property, plant and equipment","_","_"," _ "," _ "," _ "," _ "," _ "," _ "," _ "," _ ","_","_","_","_",1490,"Furniture and Office Equipment",1490,"Furniture and Office Equipment",null," _ "," _ ","_","_","_","_",null,null,1490,1490,"Furniture and Office Equipment","Furniture and Office Equipment"," _ "," _ "," _ "," _ "," _ "," _ "," _ "," _ "," _ "," _ "," _ "," _ "," _ "," _ "," _ "," _ ",241,"Property, plant and equipment (PPE) / PPE at cost/valuation (excl. finance leases)",241,"Property, plant and equipment (PPE) / PPE at cost/valuation (excl. finance leases)",null,"C","_",null,null,1,11,"Executive and council","Mayor and Council",null,"_","_","_","_","_",0,0,0,0,0,0,0,0,0,0,0,0,0,0]
["C0004-17/IA02105/F0002/X153/R0099/001/CONTRA","C0004-17/IA02105/F0002/X153/R0099/001/CONTRA",251092,44533,"Assets:Current Assets:Cash and Cash Equivalents:Cash at Bank:Bank Account:Specify (replace with account description):Deposits","IA",2300,"Community and public safety / Public safety / Police Forces, Traffic and Street Parking Control",2307,"Community and public safety / Public safety / Police Forces, Traffic and Street Parking Control"," _"," _"," _ "," _ ","_",2080,"Funded by Internally generated funds",120,"Current assets / Cash and cash equivalents","_","_"," _ "," _ "," _ "," _ "," _ "," _ "," _ "," _ ","_","_","_","_"," _ "," _ "," _ "," _ ",null," _ "," _ ","_","_","_","_",null,null,1490,1490,"Furniture and Office Equipment","Furniture and Office Equipment"," _ "," _ "," _ "," _ "," _ "," _ "," _ "," _ "," _ "," _ "," _ "," _ "," _ "," _ "," _ "," _ "," _ "," _ "," _ "," _ ","D","C","_",null,null,6,61,"Public safety","Police Forces, Traffic and Street Parking Control",null,"_","_","_","_","_",0,0,0,0,0,0,0,0,0,0,0,0,0,0]
["C0004-18/IA02108/F0002/X105/R0100/001/CONTRA","C0004-18/IA02108/F0002/X105/R0100/001/CONTRA",251665,44509,"Assets:Current Assets:Cash and Cash Equivalents:Cash at Bank:Bank Account:Specify (replace with account description):Withdrawals","IA",2300,"Community and public safety / Public safety / Civil Defence",2301,"Community and public safety / Public safety / Civil Defence"," _"," _"," _ "," _ ","_",2080,"Funded by Internally generated funds",120,"Current assets / Cash and cash equivalents","_","_"," _ ",310," _ ","Other Cash Flows/Payments by Type / Capital assets"," _ ",510," _ ","Capital assets","_","_","_","_"," _ "," _ "," _ "," _ ",null," _ "," _ ","_","_","_","_",null,null,1490,1490,"Furniture and Office Equipment","Furniture and Office Equipment"," _ "," _ "," _ "," _ "," _ "," _ "," _ "," _ "," _ "," _ "," _ "," _ "," _ "," _ "," _ "," _ "," _ "," _ "," _ "," _ ","W","C","_",null,null,6,63,"Public safety","Civil Defence",null,"_","_","_","_","_",0,0,0,0,0,0,0,0,0,0,0,0,0,0]
["C0004-18/IL65530/F0002/X105/R0100/001/CONTRA","C0004-18/IL65530/F0002/X105/R0100/001/CONTRA",251090,44512,"Liabilities:Current Liabilities:Trade and Other Payable Exchange Transactions:Payables and Accruals : Contractors:Deposits","IL",2300,"Community and public safety / Public safety / Civil Defence",2301,"Community and public safety / Public safety / Civil Defence"," _"," _"," _ "," _ ","_",2080,"Funded by Internally generated funds",380,"Current liabilities / Trade and other payables from exchange transactions","_","_"," _ "," _ "," _ "," _ "," _ "," _ "," _ "," _ ","_","_","_","_"," _ "," _ "," _ "," _ ",null," _ "," _ ","_","_","_","_",null,null,1490,1490,"Furniture and Office Equipment","Furniture and Office Equipment"," _ "," _ "," _ "," _ "," _ "," _ "," _ "," _ "," _ "," _ "," _ "," _ "," _ "," _ "," _ "," _ ",361,"Trade and other payables / Trade and other payables from exchange transactions",361,"Trade and other payables / Trade and other payables from exchange transactions",null,"C","_",null,null,6,63,"Public safety","Civil Defence",null,"_","_","_","_","_",0,0,0,0,0,0,0,0,0,0,0,0,0,0]
["C0001-1/IA10373/F0002/X049/R0100/001/CONTRA","C0001-1/IA10373/F0002/X049/R0100/001/CONTRA",266449,39735,"Assets:Current Assets:VAT Receivable:VAT Control (Receivable):Transfers","IA",1200,"Municipal governance and administration / Finance and administration / Finance",1204,"Municipal governance and administration / Finance and administration / Finance"," _"," _"," _ "," _ ","_",2080,"Funded by Internally generated funds",170,"Current assets / VAT","_","_"," _ "," _ "," _ "," _ "," _ "," _ "," _ "," _ ",1003,"Statutory requirements",1003,"Statutory requirements"," _ "," _ "," _ "," _ ",null," _ "," _ ","_","_","_","_",null,null,1550,1550,"Land","Land"," _ "," _ "," _ "," _ "," _ "," _ "," _ "," _ "," _ "," _ "," _ "," _ "," _ "," _ "," _ "," _ "," _ "," _ "," _ "," _ ",null,"C","_",null,null,2,23,"Finance and administration","Finance",null,"_","_","_","_","_",0,0,0,0,0,0,0,0,0,0,0,0,0,0]
["C0003-11/IA02108/F0002/X049/R0099/001/CONTRA","C0003-11/IA02108/F0002/X049/R0099/001/CONTRA",251697,43999,"Assets:Current Assets:Cash and Cash Equivalents:Cash at Bank:Bank Account:Specify (replace with account description):Withdrawals","IA",1200,"Municipal governance and administration / Finance and administration / Finance",1204,"Municipal governance and administration / Finance and administration / Finance"," _"," _"," _ "," _ ","_",2080,"Funded by Internally generated funds",120,"Current assets / Cash and cash equivalents","_","_"," _ ",310," _ ","Other Cash Flows/Payments by Type / Capital assets"," _ ",510," _ ","Capital assets","_","_","_","_"," _ "," _ "," _ "," _ ",null," _ "," _ ","_","_","_","_",null,null,1470,1470,"Computer Equipment","Computer Equipment"," _ "," _ "," _ "," _ "," _ "," _ "," _ "," _ "," _ "," _ "," _ "," _ "," _ "," _ "," _ "," _ "," _ "," _ "," _ "," _ ","W","C","_",null,null,2,23,"Finance and administration","Finance",null,"_","_","_","_","_",0,0,0,0,0,0,0,0,0,0,0,0,0,0]
["C0003-6/IA10371/F09788/X024/R0100/001/CONTRA","C0003-6/IA10371/F09788/X024/R0100/001/CONTRA",262690,43786,"Assets:Current Assets:VAT Receivable:Input Tax Capital:Transfers","IA",2100,"Community and public safety / Community and social services / Libraries and Archives",2114,"Community and public safety / Community and social services / Libraries and Archives"," _"," _"," _ "," _ ","_",2020,"Funded by Provincial Government",170,"Current assets / VAT","_","_"," _ "," _ "," _ "," _ "," _ "," _ "," _ "," _ ",1003,"Statutory requirements",1003,"Statutory requirements"," _ "," _ "," _ "," _ ",null," _ "," _ ","_","_","_","_",null,null,1470,1470,"Computer Equipment","Computer Equipment"," _ "," _ "," _ "," _ "," _ "," _ "," _ "," _ "," _ "," _ "," _ "," _ "," _ "," _ "," _ "," _ "," _ "," _ "," _ "," _ ",null,"C","_",null,null,4,44,"Community and social services","Libraries and Archives",null,"_","_","_","_","_",-45653,-39161,0,0,0,0,0,0,0,0,0,0,0,0]
["C0003-9/IA10376/F0002/X006/R0100/001/CONTRA","C0003-9/IA10376/F0002/X006/R0100/001/CONTRA",264025,43936,"Assets:Current Assets:VAT Receivable:Input Tax Accrual:Transfers","IA",2100,"Community and public safety / Community and social services / Community Halls and Facilities",2106,"Community and public safety / Community and social services / Community Halls and Facilities"," _"," _"," _ "," _ ","_",2080,"Funded by Internally generated funds",170,"Current assets / VAT","_","_"," _ "," _ "," _ "," _ "," _ "," _ "," _ "," _ ",1003,"Statutory requirements",1003,"Statutory requirements"," _ "," _ "," _ "," _ ",null," _ "," _ ","_","_","_","_",null,null,1470,1470,"Computer Equipment","Computer Equipment"," _ "," _ "," _ "," _ "," _ "," _ "," _ "," _ "," _ "," _ "," _ "," _ "," _ "," _ "," _ "," _ "," _ "," _ "," _ "," _ ",null,"C","_",null,null,4,43,"Community and social services","Community Halls and Facilities",null,"_","_","_","_","_",0,0,0,0,0,0,0,0,0,0,0,0,0,0]
["C0004-1/IA10370/F09788/X007/R0100/001/CONTRA","C0004-1/IA10370/F09788/X007/R0100/001/CONTRA",249776,38011,"Assets:Current Assets:VAT Receivable:Input Tax Capital:Recognised","IA",2100,"Community and public safety / Community and social services / Libraries and Archives",2114,"Community and public safety / Community and social services / Libraries and Archives"," _"," _"," _ "," _ ","_",2020,"Funded by Provincial Government",170,"Current assets / VAT","_","_"," _ "," _ "," _ "," _ "," _ "," _ "," _ "," _ ",1003,"Statutory requirements",1003,"Statutory requirements"," _ "," _ "," _ "," _ ",null," _ "," _ ","_","_","_","_",null,null,1490,1490,"Furniture and Office Equipment","Furniture and Office Equipment"," _ "," _ "," _ "," _ "," _ "," _ "," _ "," _ "," _ "," _ "," _ "," _ "," _ "," _ "," _ "," _ "," _ "," _ "," _ "," _ ",null,"C","_",null,null,4,44,"Community and social services","Libraries and Archives",null,"_","_","_","_","_",0,0,0,0,0,0,0,0,0,0,0,0,0,0]
["C0003-2/IA02108/F0002/X098/R0100/001/CONTRA","C0003-2/IA02108/F0002/X098/R0100/001/CONTRA",251405,36697,"Assets:Current Assets:Cash and Cash Equivalents:Cash at Bank:Bank Account:Specify (replace with account description):Withdrawals","IA",3100,"Economic and environmental services / Planning and development / Economic Development/Planning",3105,"Economic and environmental services / Planning and development / Economic Development/Planning"," _"," _"," _ "," _ ","_",2080,"Funded by Internally generated funds",120,"Current assets / Cash and cash equivalents","_","_"," _ ",310," _ ","Other Cash Flows/Payments by Type / Capital assets"," _ ",510," _ ","Capital assets","_","_","_","_"," _ "," _ "," _ "," _ ",null," _ "," _ ","_","_","_","_",null,null,1470,1470,"Computer Equipment","Computer Equipment"," _ "," _ "," _ "," _ "," _ "," _ "," _ "," _ "," _ "," _ "," _ "," _ "," _ "," _ "," _ "," _ "," _ "," _ "," _ "," _ ","W","C","_",null,null,8,82,"Planning and Development","Economic Development/Planning",null,"_","_","_","_","_",0,0,0,0,0,0,0,0,0,0,0,0,0,0]
["C0003-3/IA10373/F0002/X044/R0099/001/CONTRA","C0003-3/IA10373/F0002/X044/R0099/001/CONTRA",266308,39581,"Assets:Current Assets:VAT Receivable:VAT Control (Receivable):Transfers","IA",1100,"Municipal governance and administration / Executive and council / Mayor and Council",1110,"Municipal governance and administration / Executive and council / Mayor and Council"," _"," _"," _ "," _ ","_",2080,"Funded by Internally generated funds",170,"Current assets / VAT","_","_"," _ "," _ "," _ "," _ "," _ "," _ "," _ "," _ ",1003,"Statutory requirements",1003,"Statutory requirements"," _ "," _ "," _ "," _ ",null," _ "," _ ","_","_","_","_",null,null,1470,1470,"Computer Equipment","Computer Equipment"," _ "," _ "," _ "," _ "," _ "," _ "," _ "," _ "," _ "," _ "," _ "," _ "," _ "," _ "," _ "," _ "," _ "," _ "," _ "," _ ",null,"C","_",null,null,1,11,"Executive and council","Mayor and Council",null,"_","_","_","_","_",0,0,0,0,0,0,0,0,0,0,0,0,0,0]
["C0003-7/IA10375/F0002/X101/R0099/001/CONTRA","C0003-7/IA10375/F0002/X101/R0099/001/CONTRA",262708,43848,"Assets:Current Assets:VAT Receivable:Input Tax Accrual:Recognised","IA",3100,"Economic and environmental services / Planning and development / Town Planning, Building Regulations and Enforcement, and City Engineer",3107,"Economic and environmental services / Planning and development / Town Planning, Building Regulations and Enforcement, and City Engineer"," _"," _"," _ "," _ ","_",2080,"Funded by Internally generated funds",170,"Current assets / VAT","_","_"," _ "," _ "," _ "," _ "," _ "," _ "," _ "," _ ",1003,"Statutory requirements",1003,"Statutory requirements"," _ "," _ "," _ "," _ ",null," _ "," _ ","_","_","_","_",null,null,1470,1470,"Computer Equipment","Computer Equipment"," _ "," _ "," _ "," _ "," _ "," _ "," _ "," _ "," _ "," _ "," _ "," _ "," _ "," _ "," _ "," _ "," _ "," _ "," _ "," _ ",null,"C","_",null,null,8,84,"Planning and Development","Town Planning, Building Regulations and Enforcement, and City Engineer",null,"_","_","_","_","_",0,0,0,0,0,0,0,0,0,0,0,0,0,0]
["C0003-9/IA10371/F0002/X006/R0100/001/CONTRA","C0003-9/IA10371/F0002/X006/R0100/001/CONTRA",264022,43931,"Assets:Current Assets:VAT Receivable:Input Tax Capital:Transfers","IA",2100,"Community and public safety / Community and social services / Community Halls and Facilities",2106,"Community and public safety / Community and social services / Community Halls and Facilities"," _"," _"," _ "," _ ","_",2080,"Funded by Internally generated funds",170,"Current assets / VAT","_","_"," _ "," _ "," _ "," _ "," _ "," _ "," _ "," _ ",1003,"Statutory requirements",1003,"Statutory requirements"," _ "," _ "," _ "," _ ",null," _ "," _ ","_","_","_","_",null,null,1470,1470,"Computer Equipment","Computer Equipment"," _ "," _ "," _ "," _ "," _ "," _ "," _ "," _ "," _ "," _ "," _ "," _ "," _ "," _ "," _ "," _ "," _ "," _ "," _ "," _ ",null,"C","_",null,null,4,43,"Community and social services","Community Halls and Facilities",null,"_","_","_","_","_",0,0,0,0,0,0,0,0,0,0,0,0,0,0]
["C0004-13/IA10370/F0002/X153/R0100/001/CONTRA","C0004-13/IA10370/F0002/X153/R0100/001/CONTRA",251009,44226,"Assets:Current Assets:VAT Receivable:Input Tax Capital:Recognised","IA",2300,"Community and public safety / Public safety / Police Forces, Traffic and Street Parking Control",2307,"Community and public safety / Public safety / Police Forces, Traffic and Street Parking Control"," _"," _"," _ "," _ ","_",2080,"Funded by Internally generated funds",170,"Current assets / VAT","_","_"," _ "," _ "," _ "," _ "," _ "," _ "," _ "," _ ",1003,"Statutory requirements",1003,"Statutory requirements"," _ "," _ "," _ "," _ ",null," _ "," _ ","_","_","_","_",null,null,1490,1490,"Furniture and Office Equipment","Furniture and Office Equipment"," _ "," _ "," _ "," _ "," _ "," _ "," _ "," _ "," _ "," _ "," _ "," _ "," _ "," _ "," _ "," _ "," _ "," _ "," _ "," _ ",null,"C","_",null,null,6,61,"Public safety","Police Forces, Traffic and Street Parking Control",null,"_","_","_","_","_",0,0,0,0,0,0,0,0,0,0,0,0,0,0]
["C0003-7/IL65530/F0002/X101/R0100/001/CONTRA","C0003-7/IL65530/F0002/X101/R0100/001/CONTRA",250959,43823,"Liabilities:Current Liabilities:Trade and Other Payable Exchange Transactions:Payables and Accruals : Contractors:Deposits","IL",3100,"Economic and environmental services / Planning and development / Town Planning, Building Regulations and Enforcement, and City Engineer",3107,"Economic and environmental services / Planning and development / Town Planning, Building Regulations and Enforcement, and City Engineer"," _"," _"," _ "," _ ","_",2080,"Funded by Internally generated funds",380,"Current liabilities / Trade and other payables from exchange transactions","_","_"," _ "," _ "," _ "," _ "," _ "," _ "," _ "," _ ","_","_","_","_"," _ "," _ "," _ "," _ ",null," _ "," _ ","_","_","_","_",null,null,1470,1470,"Computer Equipment","Computer Equipment"," _ "," _ "," _ "," _ "," _ "," _ "," _ "," _ "," _ "," _ "," _ "," _ "," _ "," _ "," _ "," _ ",361,"Trade and other payables / Trade and other payables from exchange transactions",361,"Trade and other payables / Trade and other payables from exchange transactions",null,"C","_",null,null,8,84,"Planning and Development","Town Planning, Building Regulations and Enforcement, and City Engineer",null,"_","_","_","_","_",0,0,0,0,0,0,0,0,0,0,0,0,0,0]
["C0004-1/IL65531/F09788/X007/R0100/001/CONTRA","C0004-1/IL65531/F09788/X007/R0100/001/CONTRA",249778,38006,"Liabilities:Current Liabilities:Trade and Other Payable Exchange Transactions:Payables and Accruals : Contractors:Withdrawals","IL",2100,"Community and public safety / Community and social services / Libraries and Archives",2114,"Community and public safety / Community and social services / Libraries and Archives"," _"," _"," _ "," _ ","_",2020,"Funded by Provincial Government",380,"Current liabilities / Trade and other payables from exchange transactions","_","_"," _ ",null," _ ","CASH FLOW FROM OPERATING ACTIVITIES / Payments / Suppliers and employees"," _ ",null," _ ","Cash Payments by Type / Contracted services","_","_","_","_"," _ "," _ "," _ "," _ ",null," _ "," _ ","_","_","_","_",null,null,1490,1490,"Furniture and Office Equipment","Furniture and Office Equipment"," _ "," _ "," _ "," _ "," _ "," _ "," _ "," _ "," _ "," _ "," _ "," _ "," _ "," _ "," _ "," _ ",361,"Trade and other payables / Trade and other payables from exchange transactions",361,"Trade and other payables / Trade and other payables from exchange transactions",null,"C","_",null,null,4,44,"Community and social services","Libraries and Archives",null,"_","_","_","_","_",0,0,0,0,0,0,0,0,0,0,0,0,0,0]
["C0004-12/IA02105/F0002/X044/R0100/001/CONTRA","C0004-12/IA02105/F0002/X044/R0100/001/CONTRA",250972,44023,"Assets:Current Assets:Cash and Cash Equivalents:Cash at Bank:Bank Account:Specify (replace with account description):Deposits","IA",1100,"Municipal governance and administration / Executive and council / Mayor and Council",1110,"Municipal governance and administration / Executive and council / Mayor and Council"," _"," _"," _ "," _ ","_",2080,"Funded by Internally generated funds",120,"Current assets / Cash and cash equivalents","_","_"," _ "," _ "," _ "," _ "," _ "," _ "," _ "," _ ","_","_","_","_"," _ "," _ "," _ "," _ ",null," _ "," _ ","_","_","_","_",null,null,1490,1490,"Furniture and Office Equipment","Furniture and Office Equipment"," _ "," _ "," _ "," _ "," _ "," _ "," _ "," _ "," _ "," _ "," _ "," _ "," _ "," _ "," _ "," _ "," _ "," _ "," _ "," _ ","D","C","_",null,null,1,11,"Executive and council","Mayor and Council",null,"_","_","_","_","_",0,0,0,0,0,0,0,0,0,0,0,0,0,0]
["C0004-18/IA02105/F0002/X105/R0100/001/CONTRA","C0004-18/IA02105/F0002/X105/R0100/001/CONTRA",251088,44506,"Assets:Current Assets:Cash and Cash Equivalents:Cash at Bank:Bank Account:Specify (replace with account description):Deposits","IA",2300,"Community and public safety / Public safety / Civil Defence",2301,"Community and public safety / Public safety / Civil Defence"," _"," _"," _ "," _ ","_",2080,"Funded by Internally generated funds",120,"Current assets / Cash and cash equivalents","_","_"," _ "," _ "," _ "," _ "," _ "," _ "," _ "," _ ","_","_","_","_"," _ "," _ "," _ "," _ ",null," _ "," _ ","_","_","_","_",null,null,1490,1490,"Furniture and Office Equipment","Furniture and Office Equipment"," _ "," _ "," _ "," _ "," _ "," _ "," _ "," _ "," _ "," _ "," _ "," _ "," _ "," _ "," _ "," _ "," _ "," _ "," _ "," _ ","D","C","_",null,null,6,63,"Public safety","Civil Defence",null,"_","_","_","_","_",0,0,0,0,0,0,0,0,0,0,0,0,0,0]
["C0004-10/IA06233/F0002/X006/R0100/001/COMM","C0004-10/IA06233/F0002/X006/R0100/001/COMM",119750,23580,"Assets:Non-current Assets:Property, Plant and Equipment:Cost Model:Furniture and Office Equipment:Future Use:Cost:Acquisitions","IA",2100,"Community and public safety / Community and social services / Community Halls and Facilities",2106,"Community and public safety / Community and social services / Community Halls and Facilities"," _"," _"," _ "," _ ","CE",2080,"Funded by Internally generated funds",230,"Non current assets / Property, plant and equipment","_","_"," _ "," _ "," _ "," _ "," _ "," _ "," _ "," _ ","_","_","_","_",1490,"Furniture and Office Equipment",1490,"Furniture and Office Equipment",null," _ "," _ ","_","_","_","_",null,null,1490,1490,"Furniture and Office Equipment","Furniture and Office Equipment"," _ "," _ "," _ "," _ "," _ "," _ "," _ "," _ "," _ "," _ "," _ "," _ "," _ "," _ "," _ "," _ ",241,"Property, plant and equipment (PPE) / PPE at cost/valuation (excl. finance leases)",241,"Property, plant and equipment (PPE) / PPE at cost/valuation (excl. finance leases)",null,"C","_",null,null,4,43,"Community and social services","Community Halls and Facilities",null,"_","_","_","_","_",0,0,0,0,0,0,0,0,0,0,0,0,0,0]
["C0004-19/IA02105/F0002/X016/R3642/001/CONTRA","C0004-19/IA02105/F0002/X016/R3642/001/CONTRA",251160,44777,"Assets:Current Assets:Cash and Cash Equivalents:Cash at Bank:Bank Account:Specify (replace with account description):Deposits","IA",2100,"Community and public safety / Community and social services / Community Halls and Facilities",2106,"Community and public safety / Community and social services / Community Halls and Facilities"," _"," _"," _ "," _ ","_",2080,"Funded by Internally generated funds",120,"Current assets / Cash and cash equivalents","_","_"," _ "," _ "," _ "," _ "," _ "," _ "," _ "," _ ","_","_","_","_"," _ "," _ "," _ "," _ ",null," _ "," _ ","_","_","_","_",null,null,1490,1490,"Furniture and Office Equipment","Furniture and Office Equipment"," _ "," _ "," _ "," _ "," _ "," _ "," _ "," _ "," _ "," _ "," _ "," _ "," _ "," _ "," _ "," _ "," _ "," _ "," _ "," _ ","D","C","_",null,null,4,43,"Community and social services","Community Halls and Facilities",null,"_","_","_","_","_",0,0,0,0,0,0,0,0,0,0,0,0,0,0]
["C0004-19/IA02108/F0002/X006/R0099/001/CONTRA","C0004-19/IA02108/F0002/X006/R0099/001/CONTRA",327461,46628,"Assets:Current Assets:Cash and Cash Equivalents:Cash at Bank:Bank Account:Specify (replace with account description):Withdrawals","IA",2100,"Community and public safety / Community and social services / Community Halls and Facilities",2106,"Community and public safety / Community and social services / Community Halls and Facilities"," _"," _"," _ "," _ ","_",2080,"Funded by Internally generated funds",120,"Current assets / Cash and cash equivalents","_","_"," _ ",310," _ ","Other Cash Flows/Payments by Type / Capital assets"," _ ",510," _ ","Capital assets","_","_","_","_"," _ "," _ "," _ "," _ ",null," _ "," _ ","_","_","_","_",null,null,1490,1490,"Furniture and Office Equipment","Furniture and Office Equipment"," _ "," _ "," _ "," _ "," _ "," _ "," _ "," _ "," _ "," _ "," _ "," _ "," _ "," _ "," _ "," _ "," _ "," _ "," _ "," _ ","W","C","_",null,null,4,43,"Community and social services","Community Halls and Facilities",null,"_","_","_","_","_",-430000,-430000,0,0,0,0,0,0,0,0,0,0,0,0]
["C0004-19/IA10376/F0002/X006/R3642/001/CONTRA","C0004-19/IA10376/F0002/X006/R3642/001/CONTRA",266029,45171,"Assets:Current Assets:VAT Receivable:Input Tax Accrual:Transfers","IA",2100,"Community and public safety / Community and social services / Community Halls and Facilities",2106,"Community and public safety / Community and social services / Community Halls and Facilities"," _"," _"," _ "," _ ","_",2080,"Funded by Internally generated funds",170,"Current assets / VAT","_","_"," _ "," _ "," _ "," _ "," _ "," _ "," _ "," _ ",1003,"Statutory requirements",1003,"Statutory requirements"," _ "," _ "," _ "," _ ",null," _ "," _ ","_","_","_","_",null,null,1490,1490,"Furniture and Office Equipment","Furniture and Office Equipment"," _ "," _ "," _ "," _ "," _ "," _ "," _ "," _ "," _ "," _ "," _ "," _ "," _ "," _ "," _ "," _ "," _ "," _ "," _ "," _ ",null,"C","_",null,null,4,43,"Community and social services","Community Halls and Facilities",null,"_","_","_","_","_",0,0,0,0,0,0,0,0,0,0,0,0,0,0]
["C0001-1/IA10375/F0002/X044/R0100/001/CONTRA","C0001-1/IA10375/F0002/X044/R0100/001/CONTRA",266390,39763,"Assets:Current Assets:VAT Receivable:Input Tax Accrual:Recognised","IA",1100,"Municipal governance and administration / Executive and council / Mayor and Council",1110,"Municipal governance and administration / Executive and council / Mayor and Council"," _"," _"," _ "," _ ","_",2080,"Funded by Internally generated funds",170,"Current assets / VAT","_","_"," _ "," _ "," _ "," _ "," _ "," _ "," _ "," _ ",1003,"Statutory requirements",1003,"Statutory requirements"," _ "," _ "," _ "," _ ",null," _ "," _ ","_","_","_","_",null,null,1550,1550,"Land","Land"," _ "," _ "," _ "," _ "," _ "," _ "," _ "," _ "," _ "," _ "," _ "," _ "," _ "," _ "," _ "," _ "," _ "," _ "," _ "," _ ",null,"C","_",null,null,1,11,"Executive and council","Mayor and Council",null,"_","_","_","_","_",0,0,0,0,0,0,0,0,0,0,0,0,0,0]
["C0001-2/IZ000126/F0002/X055/R0100/001/CONTRA","C0001-2/IZ000126/F0002/X055/R0100/001/CONTRA",266530,40732,"Gains and Losses:Impairment Loss:Property, Plant and Equipment:Land","IE",1200,"Municipal governance and administration / Finance and administration / Property Services",1210,"Municipal governance and administration / Finance and administration / Property Services",3600,"Expenditure / Depreciation and amortisation",2303,"Expenditure / Depreciation and amortisation","_",2080,"Funded by Internally generated funds"," _ "," _ "," _ "," _ "," _ "," _ "," _ "," _ "," _ "," _ "," _ "," _ ","_","_","_","_"," _ "," _ "," _ "," _ ",null,2303,"Depreciation and asset impairment ","_","_","_","_",null,null,1550,1550,"Land","Land"," _ "," _ "," _ "," _ "," _ "," _ "," _ "," _ "," _ "," _ "," _ "," _ "," _ "," _ "," _ "," _ "," _ "," _ "," _ "," _ ",null,"C","_",null,null,2,27,"Finance and administration","Property Services",null,"_","_","_","_","_",0,0,0,0,0,0,0,0,0,0,0,0,0,0]
["C0003-1/IA06173/F0002/X052/R0099/001/CORP_ACQ","C0003-1/IA06173/F0002/X052/R0099/001/CORP_ACQ",328426,47327,"Assets:Non-current Assets:Property, Plant and Equipment:Cost Model:Computer Equipment:Future Use:Cost:Acquisitions","IA",1200,"Municipal governance and administration / Finance and administration / Information Technology",1207,"Municipal governance and administration / Finance and administration / Information Technology"," _"," _"," _ "," _ ","CE",2080,"Funded by Internally generated funds",230,"Non current assets / Property, plant and equipment","_","_"," _ "," _ "," _ "," _ "," _ "," _ "," _ "," _ ","_","_","_","_",1470,"Computer Equipment",1470,"Computer Equipment",null," _ "," _ ","_","_","_","_",null,null,1470,1470,"Computer Equipment","Computer Equipment"," _ "," _ "," _ "," _ "," _ "," _ "," _ "," _ "," _ "," _ "," _ "," _ "," _ "," _ "," _ "," _ ",241,"Property, plant and equipment (PPE) / PPE at cost/valuation (excl. finance leases)",241,"Property, plant and equipment (PPE) / PPE at cost/valuation (excl. finance leases)",null,"C","_",null,null,2,26,"Finance and administration","Information Technology",null,"_","_","_","_","_",434780,504345,0,0,0,0,0,710270.82,0,268633.7,-17898.7,0,-710270.82,0]
["C0003-10/IA10373/F09788/X007/R0100/001/CONTRA","C0003-10/IA10373/F09788/X007/R0100/001/CONTRA",264031,43013,"Assets:Current Assets:VAT Receivable:VAT Control (Receivable):Transfers","IA",2100,"Community and public safety / Community and social services / Libraries and Archives",2114,"Community and public safety / Community and social services / Libraries and Archives"," _"," _"," _ "," _ ","_",2020,"Funded by Provincial Government",170,"Current assets / VAT","_","_"," _ "," _ "," _ "," _ "," _ "," _ "," _ "," _ ",1003,"Statutory requirements",1003,"Statutory requirements"," _ "," _ "," _ "," _ ",null," _ "," _ ","_","_","_","_",null,null,1470,1470,"Computer Equipment","Computer Equipment"," _ "," _ "," _ "," _ "," _ "," _ "," _ "," _ "," _ "," _ "," _ "," _ "," _ "," _ "," _ "," _ "," _ "," _ "," _ "," _ ",null,"C","_",null,null,4,44,"Community and social services","Libraries and Archives",null,"_","_","_","_","_",0,0,0,0,0,0,0,0,0,0,0,0,0,0]
["C0003-11/IA02108/F09788/X007/R0100/001/CONTRA","C0003-11/IA02108/F09788/X007/R0100/001/CONTRA",251688,43979,"Assets:Current Assets:Cash and Cash Equivalents:Cash at Bank:Bank Account:Specify (replace with account description):Withdrawals","IA",2100,"Community and public safety / Community and social services / Libraries and Archives",2114,"Community and public safety / Community and social services / Libraries and Archives"," _"," _"," _ "," _ ","_",2020,"Funded by Provincial Government",120,"Current assets / Cash and cash equivalents","_","_"," _ ",310," _ ","Other Cash Flows/Payments by Type / Capital assets"," _ ",510," _ ","Capital assets","_","_","_","_"," _ "," _ "," _ "," _ ",null," _ "," _ ","_","_","_","_",null,null,1470,1470,"Computer Equipment","Computer Equipment"," _ "," _ "," _ "," _ "," _ "," _ "," _ "," _ "," _ "," _ "," _ "," _ "," _ "," _ "," _ "," _ "," _ "," _ "," _ "," _ ","W","C","_",null,null,4,44,"Community and social services","Libraries and Archives",null,"_","_","_","_","_",-50002,-60002,0,0,0,0,0,0,0,0,0,0,0,0]
["C0003-13/IA02108/F0002/X153/R0100/001/CONTRA","C0003-13/IA02108/F0002/X153/R0100/001/CONTRA",327938,46702,"Assets:Current Assets:Cash and Cash Equivalents:Cash at Bank:Bank Account:Specify (replace with account description):Withdrawals","IA",2300,"Community and public safety / Public safety / Police Forces, Traffic and Street Parking Control",2307,"Community and public safety / Public safety / Police Forces, Traffic and Street Parking Control"," _"," _"," _ "," _ ","_",2080,"Funded by Internally generated funds",120,"Current assets / Cash and cash equivalents","_","_"," _ ",310," _ ","Other Cash Flows/Payments by Type / Capital assets"," _ ",510," _ ","Capital assets","_","_","_","_"," _ "," _ "," _ "," _ ",null," _ "," _ ","_","_","_","_",null,null,1470,1470,"Computer Equipment","Computer Equipment"," _ "," _ "," _ "," _ "," _ "," _ "," _ "," _ "," _ "," _ "," _ "," _ "," _ "," _ "," _ "," _ "," _ "," _ "," _ "," _ ","W","C","_",null,null,6,61,"Public safety","Police Forces, Traffic and Street Parking Control",null,"_","_","_","_","_",-200000,-200000,0,0,0,0,0,0,0,0,0,0,0,0]
["C0003-3/IA10376/F0002/X044/R0099/001/CONTRA","C0003-3/IA10376/F0002/X044/R0099/001/CONTRA",266310,39584,"Assets:Current Assets:VAT Receivable:Input Tax Accrual:Transfers","IA",1100,"Municipal governance and administration / Executive and council / Mayor and Council",1110,"Municipal governance and administration / Executive and council / Mayor and Council"," _"," _"," _ "," _ ","_",2080,"Funded by Internally generated funds",170,"Current assets / VAT","_","_"," _ "," _ "," _ "," _ "," _ "," _ "," _ "," _ ",1003,"Statutory requirements",1003,"Statutory requirements"," _ "," _ "," _ "," _ ",null," _ "," _ ","_","_","_","_",null,null,1470,1470,"Computer Equipment","Computer Equipment"," _ "," _ "," _ "," _ "," _ "," _ "," _ "," _ "," _ "," _ "," _ "," _ "," _ "," _ "," _ "," _ "," _ "," _ "," _ "," _ ",null,"C","_",null,null,1,11,"Executive and council","Mayor and Council",null,"_","_","_","_","_",0,0,0,0,0,0,0,0,0,0,0,0,0,0]
["C0003-4/IA10373/F0791/X049/R0100/001/CONTRA","C0003-4/IA10373/F0791/X049/R0100/001/CONTRA",262796,40792,"Assets:Current Assets:VAT Receivable:VAT Control (Receivable):Transfers","IA",1200,"Municipal governance and administration / Finance and administration / Finance",1204,"Municipal governance and administration / Finance and administration / Finance"," _"," _"," _ "," _ ","_",2010,"Funded by National Government",170,"Current assets / VAT","_","_"," _ "," _ "," _ "," _ "," _ "," _ "," _ "," _ ",1003,"Statutory requirements",1003,"Statutory requirements"," _ "," _ "," _ "," _ ",null," _ "," _ ","_","_","_","_",null,null,1470,1470,"Computer Equipment","Computer Equipment"," _ "," _ "," _ "," _ "," _ "," _ "," _ "," _ "," _ "," _ "," _ "," _ "," _ "," _ "," _ "," _ "," _ "," _ "," _ "," _ ",null,"C","_",null,null,2,23,"Finance and administration","Finance",null,"_","_","_","_","_",0,0,0,0,0,0,0,0,0,0,0,0,0,0]
["C0003-7/IA06173/F0002/X101/R0100/001/EDP","C0003-7/IA06173/F0002/X101/R0100/001/EDP",150491,26307,"Assets:Non-current Assets:Property, Plant and Equipment:Cost Model:Computer Equipment:Future Use:Cost:Acquisitions","IA",3100,"Economic and environmental services / Planning and development / Town Planning, Building Regulations and Enforcement, and City Engineer",3107,"Economic and environmental services / Planning and development / Town Planning, Building Regulations and Enforcement, and City Engineer"," _"," _"," _ "," _ ","CE",2080,"Funded by Internally generated funds",230,"Non current assets / Property, plant and equipment","_","_"," _ "," _ "," _ "," _ "," _ "," _ "," _ "," _ ","_","_","_","_",1470,"Computer Equipment",1470,"Computer Equipment",null," _ "," _ ","_","_","_","_",null,null,1470,1470,"Computer Equipment","Computer Equipment"," _ "," _ "," _ "," _ "," _ "," _ "," _ "," _ "," _ "," _ "," _ "," _ "," _ "," _ "," _ "," _ ",241,"Property, plant and equipment (PPE) / PPE at cost/valuation (excl. finance leases)",241,"Property, plant and equipment (PPE) / PPE at cost/valuation (excl. finance leases)",null,"C","_",null,null,8,84,"Planning and Development","Town Planning, Building Regulations and Enforcement, and City Engineer",null,"_","_","_","_","_",0,0,0,0,0,0,0,0,0,0,0,0,0,0]
["C0003-11/IA10371/F09788/X007/R0100/001/CONTRA","C0003-11/IA10371/F09788/X007/R0100/001/CONTRA",264433,43991,"Assets:Current Assets:VAT Receivable:Input Tax Capital:Transfers","IA",2100,"Community and public safety / Community and social services / Libraries and Archives",2114,"Community and public safety / Community and social services / Libraries and Archives"," _"," _"," _ "," _ ","_",2020,"Funded by Provincial Government",170,"Current assets / VAT","_","_"," _ "," _ "," _ "," _ "," _ "," _ "," _ "," _ ",1003,"Statutory requirements",1003,"Statutory requirements"," _ "," _ "," _ "," _ ",null," _ "," _ ","_","_","_","_",null,null,1470,1470,"Computer Equipment","Computer Equipment"," _ "," _ "," _ "," _ "," _ "," _ "," _ "," _ "," _ "," _ "," _ "," _ "," _ "," _ "," _ "," _ "," _ "," _ "," _ "," _ ",null,"C","_",null,null,4,44,"Community and social services","Libraries and Archives",null,"_","_","_","_","_",-6522,-7826,0,0,0,0,0,0,0,0,0,0,0,0]
["C0003-13/IA10375/F0002/X153/R0100/001/CONTRA","C0003-13/IA10375/F0002/X153/R0100/001/CONTRA",327942,46706,"Assets:Current Assets:VAT Receivable:Input Tax Accrual:Recognised","IA",2300,"Community and public safety / Public safety / Police Forces, Traffic and Street Parking Control",2307,"Community and public safety / Public safety / Police Forces, Traffic and Street Parking Control"," _"," _"," _ "," _ ","_",2080,"Funded by Internally generated funds",170,"Current assets / VAT","_","_"," _ "," _ "," _ "," _ "," _ "," _ "," _ "," _ ",1003,"Statutory requirements",1003,"Statutory requirements"," _ "," _ "," _ "," _ ",null," _ "," _ ","_","_","_","_",null,null,1470,1470,"Computer Equipment","Computer Equipment"," _ "," _ "," _ "," _ "," _ "," _ "," _ "," _ "," _ "," _ "," _ "," _ "," _ "," _ "," _ "," _ "," _ "," _ "," _ "," _ ",null,"C","_",null,null,6,61,"Public safety","Police Forces, Traffic and Street Parking Control",null,"_","_","_","_","_",26087,26087,0,0,0,0,0,0,0,0,0,0,0,0]
["C0003-4/IA10371/F0791/X049/R0100/001/CONTRA","C0003-4/IA10371/F0791/X049/R0100/001/CONTRA",262795,40626,"Assets:Current Assets:VAT Receivable:Input Tax Capital:Transfers","IA",1200,"Municipal governance and administration / Finance and administration / Finance",1204,"Municipal governance and administration / Finance and administration / Finance"," _"," _"," _ "," _ ","_",2010,"Funded by National Government",170,"Current assets / VAT","_","_"," _ "," _ "," _ "," _ "," _ "," _ "," _ "," _ ",1003,"Statutory requirements",1003,"Statutory requirements"," _ "," _ "," _ "," _ ",null," _ "," _ ","_","_","_","_",null,null,1470,1470,"Computer Equipment","Computer Equipment"," _ "," _ "," _ "," _ "," _ "," _ "," _ "," _ "," _ "," _ "," _ "," _ "," _ "," _ "," _ "," _ "," _ "," _ "," _ "," _ ",null,"C","_",null,null,2,23,"Finance and administration","Finance",null,"_","_","_","_","_",0,0,0,0,0,0,0,0,0,0,0,0,0,0]
["C0003-5/IA02108/F0002/X052/R0099/001/CONTRA","C0003-5/IA02108/F0002/X052/R0099/001/CONTRA",251627,43243,"Assets:Current Assets:Cash and Cash Equivalents:Cash at Bank:Bank Account:Specify (replace with account description):Withdrawals","IA",1200,"Municipal governance and administration / Finance and administration / Information Technology",1207,"Municipal governance and administration / Finance and administration / Information Technology"," _"," _"," _ "," _ ","_",2080,"Funded by Internally generated funds",120,"Current assets / Cash and cash equivalents","_","_"," _ ",310," _ ","Other Cash Flows/Payments by Type / Capital assets"," _ ",510," _ ","Capital assets","_","_","_","_"," _ "," _ "," _ "," _ ",null," _ "," _ ","_","_","_","_",null,null,1470,1470,"Computer Equipment","Computer Equipment"," _ "," _ "," _ "," _ "," _ "," _ "," _ "," _ "," _ "," _ "," _ "," _ "," _ "," _ "," _ "," _ "," _ "," _ "," _ "," _ ","W","C","_",null,null,2,26,"Finance and administration","Information Technology",null,"_","_","_","_","_",0,0,0,0,0,0,0,0,0,0,0,0,0,0]
["C0003-7/IA02105/F0002/X101/R0099/001/CONTRA","C0003-7/IA02105/F0002/X101/R0099/001/CONTRA",250953,43851,"Assets:Current Assets:Cash and Cash Equivalents:Cash at Bank:Bank Account:Specify (replace with account description):Deposits","IA",3100,"Economic and environmental services / Planning and development / Town Planning, Building Regulations and Enforcement, and City Engineer",3107,"Economic and environmental services / Planning and development / Town Planning, Building Regulations and Enforcement, and City Engineer"," _"," _"," _ "," _ ","_",2080,"Funded by Internally generated funds",120,"Current assets / Cash and cash equivalents","_","_"," _ "," _ "," _ "," _ "," _ "," _ "," _ "," _ ","_","_","_","_"," _ "," _ "," _ "," _ ",null," _ "," _ ","_","_","_","_",null,null,1470,1470,"Computer Equipment","Computer Equipment"," _ "," _ "," _ "," _ "," _ "," _ "," _ "," _ "," _ "," _ "," _ "," _ "," _ "," _ "," _ "," _ "," _ "," _ "," _ "," _ ","D","C","_",null,null,8,84,"Planning and Development","Town Planning, Building Regulations and Enforcement, and City Engineer",null,"_","_","_","_","_",0,0,0,0,0,0,0,0,0,0,0,0,0,0]
["C0003-13/IA06173/F0002/X153/R0100/001/COMM_ACQ","C0003-13/IA06173/F0002/X153/R0100/001/COMM_ACQ",328454,47355,"Assets:Non-current Assets:Property, Plant and Equipment:Cost Model:Computer Equipment:Future Use:Cost:Acquisitions","IA",2300,"Community and public safety / Public safety / Police Forces, Traffic and Street Parking Control",2307,"Community and public safety / Public safety / Police Forces, Traffic and Street Parking Control"," _"," _"," _ "," _ ","CE",2080,"Funded by Internally generated funds",230,"Non current assets / Property, plant and equipment","_","_"," _ "," _ "," _ "," _ "," _ "," _ "," _ "," _ ","_","_","_","_",1470,"Computer Equipment",1470,"Computer Equipment",null," _ "," _ ","_","_","_","_",null,null,1470,1470,"Computer Equipment","Computer Equipment"," _ "," _ "," _ "," _ "," _ "," _ "," _ "," _ "," _ "," _ "," _ "," _ "," _ "," _ "," _ "," _ ",241,"Property, plant and equipment (PPE) / PPE at cost/valuation (excl. finance leases)",241,"Property, plant and equipment (PPE) / PPE at cost/valuation (excl. finance leases)",null,"C","_",null,null,6,61,"Public safety","Police Forces, Traffic and Street Parking Control",null,"_","_","_","_","_",173913,173913,0,0,0,0,0,0,0,0,0,0,0,0]
["C0003-4/IL65531/F0002/X057/R0100/001/CONTRA","C0003-4/IL65531/F0002/X057/R0100/001/CONTRA",250217,40812,"Liabilities:Current Liabilities:Trade and Other Payable Exchange Transactions:Payables and Accruals : Contractors:Withdrawals","IL",1200,"Municipal governance and administration / Finance and administration / Security Services",1212,"Municipal governance and administration / Finance and administration / Security Services"," _"," _"," _ "," _ ","_",2080,"Funded by Internally generated funds",380,"Current liabilities / Trade and other payables from exchange transactions","_","_"," _ ",null," _ ","CASH FLOW FROM OPERATING ACTIVITIES / Payments / Suppliers and employees"," _ ",null," _ ","Cash Payments by Type / Contracted services","_","_","_","_"," _ "," _ "," _ "," _ ",null," _ "," _ ","_","_","_","_",null,null,1470,1470,"Computer Equipment","Computer Equipment"," _ "," _ "," _ "," _ "," _ "," _ "," _ "," _ "," _ "," _ "," _ "," _ "," _ "," _ "," _ "," _ ",361,"Trade and other payables / Trade and other payables from exchange transactions",361,"Trade and other payables / Trade and other payables from exchange transactions",null,"C","_",null,null,2,28,"Finance and administration","Security Services",null,"_","_","_","_","_",0,0,0,0,0,0,0,0,0,0,0,0,0,0]
["C0003-7/IA02105/F0002/X101/R0100/001/CONTRA","C0003-7/IA02105/F0002/X101/R0100/001/CONTRA",250957,43818,"Assets:Current Assets:Cash and Cash Equivalents:Cash at Bank:Bank Account:Specify (replace with account description):Deposits","IA",3100,"Economic and environmental services / Planning and development / Town Planning, Building Regulations and Enforcement, and City Engineer",3107,"Economic and environmental services / Planning and development / Town Planning, Building Regulations and Enforcement, and City Engineer"," _"," _"," _ "," _ ","_",2080,"Funded by Internally generated funds",120,"Current assets / Cash and cash equivalents","_","_"," _ "," _ "," _ "," _ "," _ "," _ "," _ "," _ ","_","_","_","_"," _ "," _ "," _ "," _ ",null," _ "," _ ","_","_","_","_",null,null,1470,1470,"Computer Equipment","Computer Equipment"," _ "," _ "," _ "," _ "," _ "," _ "," _ "," _ "," _ "," _ "," _ "," _ "," _ "," _ "," _ "," _ "," _ "," _ "," _ "," _ ","D","C","_",null,null,8,84,"Planning and Development","Town Planning, Building Regulations and Enforcement, and City Engineer",null,"_","_","_","_","_",0,0,0,0,0,0,0,0,0,0,0,0,0,0]
["C0003-7/IA10371/F0002/X101/R0099/001/CONTRA","C0003-7/IA10371/F0002/X101/R0099/001/CONTRA",262706,43840,"Assets:Current Assets:VAT Receivable:Input Tax Capital:Transfers","IA",3100,"Economic and environmental services / Planning and development / Town Planning, Building Regulations and Enforcement, and City Engineer",3107,"Economic and environmental services / Planning and development / Town Planning, Building Regulations and Enforcement, and City Engineer"," _"," _"," _ "," _ ","_",2080,"Funded by Internally generated funds",170,"Current assets / VAT","_","_"," _ "," _ "," _ "," _ "," _ "," _ "," _ "," _ ",1003,"Statutory requirements",1003,"Statutory requirements"," _ "," _ "," _ "," _ ",null," _ "," _ ","_","_","_","_",null,null,1470,1470,"Computer Equipment","Computer Equipment"," _ "," _ "," _ "," _ "," _ "," _ "," _ "," _ "," _ "," _ "," _ "," _ "," _ "," _ "," _ "," _ "," _ "," _ "," _ "," _ ",null,"C","_",null,null,8,84,"Planning and Development","Town Planning, Building Regulations and Enforcement, and City Engineer",null,"_","_","_","_","_",0,0,0,0,0,0,0,0,0,0,0,0,0,0]
["C0001-1/IA10371/F0002/X044/R0100/001/CONTRA","C0001-1/IA10371/F0002/X044/R0100/001/CONTRA",266388,39756,"Assets:Current Assets:VAT Receivable:Input Tax Capital:Transfers","IA",1100,"Municipal governance and administration / Executive and council / Mayor and Council",1110,"Municipal governance and administration / Executive and council / Mayor and Council"," _"," _"," _ "," _ ","_",2080,"Funded by Internally generated funds",170,"Current assets / VAT","_","_"," _ "," _ "," _ "," _ "," _ "," _ "," _ "," _ ",1003,"Statutory requirements",1003,"Statutory requirements"," _ "," _ "," _ "," _ ",null," _ "," _ ","_","_","_","_",null,null,1550,1550,"Land","Land"," _ "," _ "," _ "," _ "," _ "," _ "," _ "," _ "," _ "," _ "," _ "," _ "," _ "," _ "," _ "," _ "," _ "," _ "," _ "," _ ",null,"C","_",null,null,1,11,"Executive and council","Mayor and Council",null,"_","_","_","_","_",0,0,0,0,0,0,0,0,0,0,0,0,0,0]
["C0003-10/IA10375/F09788/X007/R0100/001/CONTRA","C0003-10/IA10375/F09788/X007/R0100/001/CONTRA",264032,43015,"Assets:Current Assets:VAT Receivable:Input Tax Accrual:Recognised","IA",2100,"Community and public safety / Community and social services / Libraries and Archives",2114,"Community and public safety / Community and social services / Libraries and Archives"," _"," _"," _ "," _ ","_",2020,"Funded by Provincial Government",170,"Current assets / VAT","_","_"," _ "," _ "," _ "," _ "," _ "," _ "," _ "," _ ",1003,"Statutory requirements",1003,"Statutory requirements"," _ "," _ "," _ "," _ ",null," _ "," _ ","_","_","_","_",null,null,1470,1470,"Computer Equipment","Computer Equipment"," _ "," _ "," _ "," _ "," _ "," _ "," _ "," _ "," _ "," _ "," _ "," _ "," _ "," _ "," _ "," _ "," _ "," _ "," _ "," _ ",null,"C","_",null,null,4,44,"Community and social services","Libraries and Archives",null,"_","_","_","_","_",0,0,0,0,0,0,0,0,0,0,0,0,0,0]
["C0003-3/IA02105/F0002/X044/R0099/001/CONTRA","C0003-3/IA02105/F0002/X044/R0099/001/CONTRA",250049,39576,"Assets:Current Assets:Cash and Cash Equivalents:Cash at Bank:Bank Account:Specify (replace with account description):Deposits","IA",1100,"Municipal governance and administration / Executive and council / Mayor and Council",1110,"Municipal governance and administration / Executive and council / Mayor and Council"," _"," _"," _ "," _ ","_",2080,"Funded by Internally generated funds",120,"Current assets / Cash and cash equivalents","_","_"," _ "," _ "," _ "," _ "," _ "," _ "," _ "," _ ","_","_","_","_"," _ "," _ "," _ "," _ ",null," _ "," _ ","_","_","_","_",null,null,1470,1470,"Computer Equipment","Computer Equipment"," _ "," _ "," _ "," _ "," _ "," _ "," _ "," _ "," _ "," _ "," _ "," _ "," _ "," _ "," _ "," _ "," _ "," _ "," _ "," _ ","D","C","_",null,null,1,11,"Executive and council","Mayor and Council",null,"_","_","_","_","_",0,0,0,0,0,0,0,0,0,0,0,0,0,0]
["C0003-4/IA02108/F0791/X049/R0100/001/CONTRA","C0003-4/IA02108/F0791/X049/R0100/001/CONTRA",251524,40766,"Assets:Current Assets:Cash and Cash Equivalents:Cash at Bank:Bank Account:Specify (replace with account description):Withdrawals","IA",1200,"Municipal governance and administration / Finance and administration / Finance",1204,"Municipal governance and administration / Finance and administration / Finance"," _"," _"," _ "," _ ","_",2010,"Funded by National Government",120,"Current assets / Cash and cash equivalents","_","_"," _ ",310," _ ","Other Cash Flows/Payments by Type / Capital assets"," _ ",510," _ ","Capital assets","_","_","_","_"," _ "," _ "," _ "," _ ",null," _ "," _ ","_","_","_","_",null,null,1470,1470,"Computer Equipment","Computer Equipment"," _ "," _ "," _ "," _ "," _ "," _ "," _ "," _ "," _ "," _ "," _ "," _ "," _ "," _ "," _ "," _ "," _ "," _ "," _ "," _ ","W","C","_",null,null,2,23,"Finance and administration","Finance",null,"_","_","_","_","_",0,0,0,0,0,0,0,0,0,0,0,0,0,0]
["C0003-4/IA10376/F0791/X049/R0100/001/CONTRA","C0003-4/IA10376/F0791/X049/R0100/001/CONTRA",262798,40634,"Assets:Current Assets:VAT Receivable:Input Tax Accrual:Transfers","IA",1200,"Municipal governance and administration / Finance and administration / Finance",1204,"Municipal governance and administration / Finance and administration / Finance"," _"," _"," _ "," _ ","_",2010,"Funded by National Government",170,"Current assets / VAT","_","_"," _ "," _ "," _ "," _ "," _ "," _ "," _ "," _ ",1003,"Statutory requirements",1003,"Statutory requirements"," _ "," _ "," _ "," _ ",null," _ "," _ ","_","_","_","_",null,null,1470,1470,"Computer Equipment","Computer Equipment"," _ "," _ "," _ "," _ "," _ "," _ "," _ "," _ "," _ "," _ "," _ "," _ "," _ "," _ "," _ "," _ "," _ "," _ "," _ "," _ ",null,"C","_",null,null,2,23,"Finance and administration","Finance",null,"_","_","_","_","_",0,0,0,0,0,0,0,0,0,0,0,0,0,0]
["C0003-2/IL65531/F0002/X098/R0100/001/CONTRA","C0003-2/IL65531/F0002/X098/R0100/001/CONTRA",249378,36696,"Liabilities:Current Liabilities:Trade and Other Payable Exchange Transactions:Payables and Accruals : Contractors:Withdrawals","IL",3100,"Economic and environmental services / Planning and development / Economic Development/Planning",3105,"Economic and environmental services / Planning and development / Economic Development/Planning"," _"," _"," _ "," _ ","_",2080,"Funded by Internally generated funds",380,"Current liabilities / Trade and other payables from exchange transactions","_","_"," _ ",null," _ ","CASH FLOW FROM OPERATING ACTIVITIES / Payments / Suppliers and employees"," _ ",null," _ ","Cash Payments by Type / Contracted services","_","_","_","_"," _ "," _ "," _ "," _ ",null," _ "," _ ","_","_","_","_",null,null,1470,1470,"Computer Equipment","Computer Equipment"," _ "," _ "," _ "," _ "," _ "," _ "," _ "," _ "," _ "," _ "," _ "," _ "," _ "," _ "," _ "," _ ",361,"Trade and other payables / Trade and other payables from exchange transactions",361,"Trade and other payables / Trade and other payables from exchange transactions",null,"C","_",null,null,8,82,"Planning and Development","Economic Development/Planning",null,"_","_","_","_","_",0,0,0,0,0,0,0,0,0,0,0,0,0,0]
["C0003-4/IA10373/F0002/X057/R0100/001/CONTRA","C0003-4/IA10373/F0002/X057/R0100/001/CONTRA",262760,40811,"Assets:Current Assets:VAT Receivable:VAT Control (Receivable):Transfers","IA",1200,"Municipal governance and administration / Finance and administration / Security Services",1212,"Municipal governance and administration / Finance and administration / Security Services"," _"," _"," _ "," _ ","_",2080,"Funded by Internally generated funds",170,"Current assets / VAT","_","_"," _ "," _ "," _ "," _ "," _ "," _ "," _ "," _ ",1003,"Statutory requirements",1003,"Statutory requirements"," _ "," _ "," _ "," _ ",null," _ "," _ ","_","_","_","_",null,null,1470,1470,"Computer Equipment","Computer Equipment"," _ "," _ "," _ "," _ "," _ "," _ "," _ "," _ "," _ "," _ "," _ "," _ "," _ "," _ "," _ "," _ "," _ "," _ "," _ "," _ ",null,"C","_",null,null,2,28,"Finance and administration","Security Services",null,"_","_","_","_","_",0,0,0,0,0,0,0,0,0,0,0,0,0,0]
["C0003-6/IA06173/F09788/X024/R0100/001/COMM_ACQ","C0003-6/IA06173/F09788/X024/R0100/001/COMM_ACQ",328424,47325,"Assets:Non-current Assets:Property, Plant and Equipment:Cost Model:Computer Equipment:Future Use:Cost:Acquisitions","IA",2100,"Community and public safety / Community and social services / Libraries and Archives",2114,"Community and public safety / Community and social services / Libraries and Archives"," _"," _"," _ "," _ ","CE",2020,"Funded by Provincial Government",230,"Non current assets / Property, plant and equipment","_","_"," _ "," _ "," _ "," _ "," _ "," _ "," _ "," _ ","_","_","_","_",1470,"Computer Equipment",1470,"Computer Equipment",null," _ "," _ ","_","_","_","_",null,null,1470,1470,"Computer Equipment","Computer Equipment"," _ "," _ "," _ "," _ "," _ "," _ "," _ "," _ "," _ "," _ "," _ "," _ "," _ "," _ "," _ "," _ ",241,"Property, plant and equipment (PPE) / PPE at cost/valuation (excl. finance leases)",241,"Property, plant and equipment (PPE) / PPE at cost/valuation (excl. finance leases)",null,"C","_",null,null,4,44,"Community and social services","Libraries and Archives",null,"_","_","_","_","_",304350,261067,0,0,0,0,0,0,0,0,0,0,0,0]
["C0003-7/IA02108/F0002/X101/R0100/001/CONTRA","C0003-7/IA02108/F0002/X101/R0100/001/CONTRA",251636,43817,"Assets:Current Assets:Cash and Cash Equivalents:Cash at Bank:Bank Account:Specify (replace with account description):Withdrawals","IA",3100,"Economic and environmental services / Planning and development / Town Planning, Building Regulations and Enforcement, and City Engineer",3107,"Economic and environmental services / Planning and development / Town Planning, Building Regulations and Enforcement, and City Engineer"," _"," _"," _ "," _ ","_",2080,"Funded by Internally generated funds",120,"Current assets / Cash and cash equivalents","_","_"," _ ",310," _ ","Other Cash Flows/Payments by Type / Capital assets"," _ ",510," _ ","Capital assets","_","_","_","_"," _ "," _ "," _ "," _ ",null," _ "," _ ","_","_","_","_",null,null,1470,1470,"Computer Equipment","Computer Equipment"," _ "," _ "," _ "," _ "," _ "," _ "," _ "," _ "," _ "," _ "," _ "," _ "," _ "," _ "," _ "," _ "," _ "," _ "," _ "," _ ","W","C","_",null,null,8,84,"Planning and Development","Town Planning, Building Regulations and Enforcement, and City Engineer",null,"_","_","_","_","_",0,0,0,0,0,0,0,0,0,0,0,0,0,0]
["C0003-4/IA10371/F0002/X046/R0100/001/CONTRA","C0003-4/IA10371/F0002/X046/R0100/001/CONTRA",262211,40002,"Assets:Current Assets:VAT Receivable:Input Tax Capital:Transfers","IA",1200,"Municipal governance and administration / Finance and administration / Administrative and Corporate Support",1201,"Municipal governance and administration / Finance and administration / Administrative and Corporate Support"," _"," _"," _ "," _ ","_",2080,"Funded by Internally generated funds",170,"Current assets / VAT","_","_"," _ "," _ "," _ "," _ "," _ "," _ "," _ "," _ ",1003,"Statutory requirements",1003,"Statutory requirements"," _ "," _ "," _ "," _ ",null," _ "," _ ","_","_","_","_",null,null,1470,1470,"Computer Equipment","Computer Equipment"," _ "," _ "," _ "," _ "," _ "," _ "," _ "," _ "," _ "," _ "," _ "," _ "," _ "," _ "," _ "," _ "," _ "," _ "," _ "," _ ",null,"C","_",null,null,2,21,"Finance and administration","Administrative and Corporate Support",null,"_","_","_","_","_",0,0,0,0,0,0,0,0,0,0,0,0,0,0]
["C0003-4/IA10375/F0002/X046/R0100/001/CONTRA","C0003-4/IA10375/F0002/X046/R0100/001/CONTRA",262213,40007,"Assets:Current Assets:VAT Receivable:Input Tax Accrual:Recognised","IA",1200,"Municipal governance and administration / Finance and administration / Administrative and Corporate Support",1201,"Municipal governance and administration / Finance and administration / Administrative and Corporate Support"," _"," _"," _ "," _ ","_",2080,"Funded by Internally generated funds",170,"Current assets / VAT","_","_"," _ "," _ "," _ "," _ "," _ "," _ "," _ "," _ ",1003,"Statutory requirements",1003,"Statutory requirements"," _ "," _ "," _ "," _ ",null," _ "," _ ","_","_","_","_",null,null,1470,1470,"Computer Equipment","Computer Equipment"," _ "," _ "," _ "," _ "," _ "," _ "," _ "," _ "," _ "," _ "," _ "," _ "," _ "," _ "," _ "," _ "," _ "," _ "," _ "," _ ",null,"C","_",null,null,2,21,"Finance and administration","Administrative and Corporate Support",null,"_","_","_","_","_",0,0,0,0,0,0,0,0,0,0,0,0,0,0]
["C0003-7/IA02108/F0002/X101/R0099/001/CONTRA","C0003-7/IA02108/F0002/X101/R0099/001/CONTRA",251635,43846,"Assets:Current Assets:Cash and Cash Equivalents:Cash at Bank:Bank Account:Specify (replace with account description):Withdrawals","IA",3100,"Economic and environmental services / Planning and development / Town Planning, Building Regulations and Enforcement, and City Engineer",3107,"Economic and environmental services / Planning and development / Town Planning, Building Regulations and Enforcement, and City Engineer"," _"," _"," _ "," _ ","_",2080,"Funded by Internally generated funds",120,"Current assets / Cash and cash equivalents","_","_"," _ ",310," _ ","Other Cash Flows/Payments by Type / Capital assets"," _ ",510," _ ","Capital assets","_","_","_","_"," _ "," _ "," _ "," _ ",null," _ "," _ ","_","_","_","_",null,null,1470,1470,"Computer Equipment","Computer Equipment"," _ "," _ "," _ "," _ "," _ "," _ "," _ "," _ "," _ "," _ "," _ "," _ "," _ "," _ "," _ "," _ "," _ "," _ "," _ "," _ ","W","C","_",null,null,8,84,"Planning and Development","Town Planning, Building Regulations and Enforcement, and City Engineer",null,"_","_","_","_","_",0,0,0,0,0,0,0,0,0,0,0,0,0,0]
["C0003-7/IL65530/F0002/X101/R0099/001/CONTRA","C0003-7/IL65530/F0002/X101/R0099/001/CONTRA",250955,43852,"Liabilities:Current Liabilities:Trade and Other Payable Exchange Transactions:Payables and Accruals : Contractors:Deposits","IL",3100,"Economic and environmental services / Planning and development / Town Planning, Building Regulations and Enforcement, and City Engineer",3107,"Economic and environmental services / Planning and development / Town Planning, Building Regulations and Enforcement, and City Engineer"," _"," _"," _ "," _ ","_",2080,"Funded by Internally generated funds",380,"Current liabilities / Trade and other payables from exchange transactions","_","_"," _ "," _ "," _ "," _ "," _ "," _ "," _ "," _ ","_","_","_","_"," _ "," _ "," _ "," _ ",null," _ "," _ ","_","_","_","_",null,null,1470,1470,"Computer Equipment","Computer Equipment"," _ "," _ "," _ "," _ "," _ "," _ "," _ "," _ "," _ "," _ "," _ "," _ "," _ "," _ "," _ "," _ ",361,"Trade and other payables / Trade and other payables from exchange transactions",361,"Trade and other payables / Trade and other payables from exchange transactions",null,"C","_",null,null,8,84,"Planning and Development","Town Planning, Building Regulations and Enforcement, and City Engineer",null,"_","_","_","_","_",0,0,0,0,0,0,0,0,0,0,0,0,0,0]
["C0003-4/IA10370/F0002/X057/R0100/001/CONTRA","C0003-4/IA10370/F0002/X057/R0100/001/CONTRA",250215,40809,"Assets:Current Assets:VAT Receivable:Input Tax Capital:Recognised","IA",1200,"Municipal governance and administration / Finance and administration / Security Services",1212,"Municipal governance and administration / Finance and administration / Security Services"," _"," _"," _ "," _ ","_",2080,"Funded by Internally generated funds",170,"Current assets / VAT","_","_"," _ "," _ "," _ "," _ "," _ "," _ "," _ "," _ ",1003,"Statutory requirements",1003,"Statutory requirements"," _ "," _ "," _ "," _ ",null," _ "," _ ","_","_","_","_",null,null,1470,1470,"Computer Equipment","Computer Equipment"," _ "," _ "," _ "," _ "," _ "," _ "," _ "," _ "," _ "," _ "," _ "," _ "," _ "," _ "," _ "," _ "," _ "," _ "," _ "," _ ",null,"C","_",null,null,2,28,"Finance and administration","Security Services",null,"_","_","_","_","_",0,0,0,0,0,0,0,0,0,0,0,0,0,0]
["C0003-7/IL65531/F0002/X101/R0099/001/CONTRA","C0003-7/IL65531/F0002/X101/R0099/001/CONTRA",250956,43834,"Liabilities:Current Liabilities:Trade and Other Payable Exchange Transactions:Payables and Accruals : Contractors:Withdrawals","IL",3100,"Economic and environmental services / Planning and development / Town Planning, Building Regulations and Enforcement, and City Engineer",3107,"Economic and environmental services / Planning and development / Town Planning, Building Regulations and Enforcement, and City Engineer"," _"," _"," _ "," _ ","_",2080,"Funded by Internally generated funds",380,"Current liabilities / Trade and other payables from exchange transactions","_","_"," _ ",null," _ ","CASH FLOW FROM OPERATING ACTIVITIES / Payments / Suppliers and employees"," _ ",null," _ ","Cash Payments by Type / Contracted services","_","_","_","_"," _ "," _ "," _ "," _ ",null," _ "," _ ","_","_","_","_",null,null,1470,1470,"Computer Equipment","Computer Equipment"," _ "," _ "," _ "," _ "," _ "," _ "," _ "," _ "," _ "," _ "," _ "," _ "," _ "," _ "," _ "," _ ",361,"Trade and other payables / Trade and other payables from exchange transactions",361,"Trade and other payables / Trade and other payables from exchange transactions",null,"C","_",null,null,8,84,"Planning and Development","Town Planning, Building Regulations and Enforcement, and City Engineer",null,"_","_","_","_","_",0,0,0,0,0,0,0,0,0,0,0,0,0,0]
["C0004-12/IA10373/F0002/X044/R0100/001/CONTRA","C0004-12/IA10373/F0002/X044/R0100/001/CONTRA",263256,44029,"Assets:Current Assets:VAT Receivable:VAT Control (Receivable):Transfers","IA",1100,"Municipal governance and administration / Executive and council / Mayor and Council",1110,"Municipal governance and administration / Executive and council / Mayor and Council"," _"," _"," _ "," _ ","_",2080,"Funded by Internally generated funds",170,"Current assets / VAT","_","_"," _ "," _ "," _ "," _ "," _ "," _ "," _ "," _ ",1003,"Statutory requirements",1003,"Statutory requirements"," _ "," _ "," _ "," _ ",null," _ "," _ ","_","_","_","_",null,null,1490,1490,"Furniture and Office Equipment","Furniture and Office Equipment"," _ "," _ "," _ "," _ "," _ "," _ "," _ "," _ "," _ "," _ "," _ "," _ "," _ "," _ "," _ "," _ "," _ "," _ "," _ "," _ ",null,"C","_",null,null,1,11,"Executive and council","Mayor and Council",null,"_","_","_","_","_",13044,13044,0,0,0,0,0,0,0,0,0,0,0,0]
["C0004-15/IA10375/F0002/X046/R0099/001/CONTRA","C0004-15/IA10375/F0002/X046/R0099/001/CONTRA",263067,37116,"Assets:Current Assets:VAT Receivable:Input Tax Accrual:Recognised","IA",1200,"Municipal governance and administration / Finance and administration / Administrative and Corporate Support",1201,"Municipal governance and administration / Finance and administration / Administrative and Corporate Support"," _"," _"," _ "," _ ","_",2080,"Funded by Internally generated funds",170,"Current assets / VAT","_","_"," _ "," _ "," _ "," _ "," _ "," _ "," _ "," _ ",1003,"Statutory requirements",1003,"Statutory requirements"," _ "," _ "," _ "," _ ",null," _ "," _ ","_","_","_","_",null,null,1490,1490,"Furniture and Office Equipment","Furniture and Office Equipment"," _ "," _ "," _ "," _ "," _ "," _ "," _ "," _ "," _ "," _ "," _ "," _ "," _ "," _ "," _ "," _ "," _ "," _ "," _ "," _ ",null,"C","_",null,null,2,21,"Finance and administration","Administrative and Corporate Support",null,"_","_","_","_","_",0,0,0,0,0,0,0,0,0,0,0,0,0,0]
["C0004-13/IA10375/F0002/X153/R0100/001/CONTRA","C0004-13/IA10375/F0002/X153/R0100/001/CONTRA",263401,44232,"Assets:Current Assets:VAT Receivable:Input Tax Accrual:Recognised","IA",2300,"Community and public safety / Public safety / Police Forces, Traffic and Street Parking Control",2307,"Community and public safety / Public safety / Police Forces, Traffic and Street Parking Control"," _"," _"," _ "," _ ","_",2080,"Funded by Internally generated funds",170,"Current assets / VAT","_","_"," _ "," _ "," _ "," _ "," _ "," _ "," _ "," _ ",1003,"Statutory requirements",1003,"Statutory requirements"," _ "," _ "," _ "," _ ",null," _ "," _ ","_","_","_","_",null,null,1490,1490,"Furniture and Office Equipment","Furniture and Office Equipment"," _ "," _ "," _ "," _ "," _ "," _ "," _ "," _ "," _ "," _ "," _ "," _ "," _ "," _ "," _ "," _ "," _ "," _ "," _ "," _ ",null,"C","_",null,null,6,61,"Public safety","Police Forces, Traffic and Street Parking Control",null,"_","_","_","_","_",0,0,0,0,0,0,0,0,0,0,0,0,0,0]
["C0004-15/IA10370/F0002/X044/R0100/001/CONTRA","C0004-15/IA10370/F0002/X044/R0100/001/CONTRA",251028,44318,"Assets:Current Assets:VAT Receivable:Input Tax Capital:Recognised","IA",1100,"Municipal governance and administration / Executive and council / Mayor and Council",1110,"Municipal governance and administration / Executive and council / Mayor and Council"," _"," _"," _ "," _ ","_",2080,"Funded by Internally generated funds",170,"Current assets / VAT","_","_"," _ "," _ "," _ "," _ "," _ "," _ "," _ "," _ ",1003,"Statutory requirements",1003,"Statutory requirements"," _ "," _ "," _ "," _ ",null," _ "," _ ","_","_","_","_",null,null,1490,1490,"Furniture and Office Equipment","Furniture and Office Equipment"," _ "," _ "," _ "," _ "," _ "," _ "," _ "," _ "," _ "," _ "," _ "," _ "," _ "," _ "," _ "," _ "," _ "," _ "," _ "," _ ",null,"C","_",null,null,1,11,"Executive and council","Mayor and Council",null,"_","_","_","_","_",0,0,0,0,0,0,0,0,0,0,0,0,0,0]
["C0004-19/IA10375/F0002/X006/R3642/001/CONTRA","C0004-19/IA10375/F0002/X006/R3642/001/CONTRA",266028,45174,"Assets:Current Assets:VAT Receivable:Input Tax Accrual:Recognised","IA",2100,"Community and public safety / Community and social services / Community Halls and Facilities",2106,"Community and public safety / Community and social services / Community Halls and Facilities"," _"," _"," _ "," _ ","_",2080,"Funded by Internally generated funds",170,"Current assets / VAT","_","_"," _ "," _ "," _ "," _ "," _ "," _ "," _ "," _ ",1003,"Statutory requirements",1003,"Statutory requirements"," _ "," _ "," _ "," _ ",null," _ "," _ ","_","_","_","_",null,null,1490,1490,"Furniture and Office Equipment","Furniture and Office Equipment"," _ "," _ "," _ "," _ "," _ "," _ "," _ "," _ "," _ "," _ "," _ "," _ "," _ "," _ "," _ "," _ "," _ "," _ "," _ "," _ ",null,"C","_",null,null,4,43,"Community and social services","Community Halls and Facilities",null,"_","_","_","_","_",0,0,0,0,0,0,0,0,0,0,0,0,0,0]
["C0004-2/IA06233/F09788/X007/R0099/001/COMM","C0004-2/IA06233/F09788/X007/R0099/001/COMM",60833,20852,"Assets:Non-current Assets:Property, Plant and Equipment:Cost Model:Furniture and Office Equipment:Future Use:Cost:Acquisitions","IA",2100,"Community and public safety / Community and social services / Libraries and Archives",2114,"Community and public safety / Community and social services / Libraries and Archives"," _"," _"," _ "," _ ","CE",2020,"Funded by Provincial Government",230,"Non current assets / Property, plant and equipment","_","_"," _ "," _ "," _ "," _ "," _ "," _ "," _ "," _ ","_","_","_","_",1490,"Furniture and Office Equipment",1490,"Furniture and Office Equipment",null," _ "," _ ","_","_","_","_",null,null,1490,1490,"Furniture and Office Equipment","Furniture and Office Equipment"," _ "," _ "," _ "," _ "," _ "," _ "," _ "," _ "," _ "," _ "," _ "," _ "," _ "," _ "," _ "," _ ",241,"Property, plant and equipment (PPE) / PPE at cost/valuation (excl. finance leases)",241,"Property, plant and equipment (PPE) / PPE at cost/valuation (excl. finance leases)",null,"C","_",null,null,4,44,"Community and social services","Libraries and Archives",null,"_","_","_","_","_",0,0,0,0,0,0,0,0,0,0,0,0,0,0]
["C0003-5/IA10370/F0002/X052/R0099/001/CONTRA","C0003-5/IA10370/F0002/X052/R0099/001/CONTRA",250907,43236,"Assets:Current Assets:VAT Receivable:Input Tax Capital:Recognised","IA",1200,"Municipal governance and administration / Finance and administration / Information Technology",1207,"Municipal governance and administration / Finance and administration / Information Technology"," _"," _"," _ "," _ ","_",2080,"Funded by Internally generated funds",170,"Current assets / VAT","_","_"," _ "," _ "," _ "," _ "," _ "," _ "," _ "," _ ",1003,"Statutory requirements",1003,"Statutory requirements"," _ "," _ "," _ "," _ ",null," _ "," _ ","_","_","_","_",null,null,1470,1470,"Computer Equipment","Computer Equipment"," _ "," _ "," _ "," _ "," _ "," _ "," _ "," _ "," _ "," _ "," _ "," _ "," _ "," _ "," _ "," _ "," _ "," _ "," _ "," _ ",null,"C","_",null,null,2,26,"Finance and administration","Information Technology",null,"_","_","_","_","_",0,0,0,0,0,0,0,0,0,0,0,0,0,0]
["C0003-5/IA10371/F0002/X052/R0099/001/CONTRA","C0003-5/IA10371/F0002/X052/R0099/001/CONTRA",262556,43238,"Assets:Current Assets:VAT Receivable:Input Tax Capital:Transfers","IA",1200,"Municipal governance and administration / Finance and administration / Information Technology",1207,"Municipal governance and administration / Finance and administration / Information Technology"," _"," _"," _ "," _ ","_",2080,"Funded by Internally generated funds",170,"Current assets / VAT","_","_"," _ "," _ "," _ "," _ "," _ "," _ "," _ "," _ ",1003,"Statutory requirements",1003,"Statutory requirements"," _ "," _ "," _ "," _ ",null," _ "," _ ","_","_","_","_",null,null,1470,1470,"Computer Equipment","Computer Equipment"," _ "," _ "," _ "," _ "," _ "," _ "," _ "," _ "," _ "," _ "," _ "," _ "," _ "," _ "," _ "," _ "," _ "," _ "," _ "," _ ",null,"C","_",null,null,2,26,"Finance and administration","Information Technology",null,"_","_","_","_","_",0,0,0,0,0,0,0,0,0,0,0,0,0,0]
["C0003-6/IL65531/F09788/X024/R0100/001/CONTRA","C0003-6/IL65531/F09788/X024/R0100/001/CONTRA",250944,43780,"Liabilities:Current Liabilities:Trade and Other Payable Exchange Transactions:Payables and Accruals : Contractors:Withdrawals","IL",2100,"Community and public safety / Community and social services / Libraries and Archives",2114,"Community and public safety / Community and social services / Libraries and Archives"," _"," _"," _ "," _ ","_",2020,"Funded by Provincial Government",380,"Current liabilities / Trade and other payables from exchange transactions","_","_"," _ ",null," _ ","CASH FLOW FROM OPERATING ACTIVITIES / Payments / Suppliers and employees"," _ ",null," _ ","Cash Payments by Type / Contracted services","_","_","_","_"," _ "," _ "," _ "," _ ",null," _ "," _ ","_","_","_","_",null,null,1470,1470,"Computer Equipment","Computer Equipment"," _ "," _ "," _ "," _ "," _ "," _ "," _ "," _ "," _ "," _ "," _ "," _ "," _ "," _ "," _ "," _ ",361,"Trade and other payables / Trade and other payables from exchange transactions",361,"Trade and other payables / Trade and other payables from exchange transactions",null,"C","_",null,null,4,44,"Community and social services","Libraries and Archives",null,"_","_","_","_","_",350003,300228,0,0,0,0,0,0,0,0,0,0,0,0]
["C0003-9/IL65531/F0002/X006/R0100/001/CONTRA","C0003-9/IL65531/F0002/X006/R0100/001/CONTRA",251019,43937,"Liabilities:Current Liabilities:Trade and Other Payable Exchange Transactions:Payables and Accruals : Contractors:Withdrawals","IL",2100,"Community and public safety / Community and social services / Community Halls and Facilities",2106,"Community and public safety / Community and social services / Community Halls and Facilities"," _"," _"," _ "," _ ","_",2080,"Funded by Internally generated funds",380,"Current liabilities / Trade and other payables from exchange transactions","_","_"," _ ",null," _ ","CASH FLOW FROM OPERATING ACTIVITIES / Payments / Suppliers and employees"," _ ",null," _ ","Cash Payments by Type / Contracted services","_","_","_","_"," _ "," _ "," _ "," _ ",null," _ "," _ ","_","_","_","_",null,null,1470,1470,"Computer Equipment","Computer Equipment"," _ "," _ "," _ "," _ "," _ "," _ "," _ "," _ "," _ "," _ "," _ "," _ "," _ "," _ "," _ "," _ ",361,"Trade and other payables / Trade and other payables from exchange transactions",361,"Trade and other payables / Trade and other payables from exchange transactions",null,"C","_",null,null,4,43,"Community and social services","Community Halls and Facilities",null,"_","_","_","_","_",0,0,0,0,0,0,0,0,0,0,0,0,0,0]
["C0003-11/IA10376/F09788/X007/R0100/001/CONTRA","C0003-11/IA10376/F09788/X007/R0100/001/CONTRA",264436,43990,"Assets:Current Assets:VAT Receivable:Input Tax Accrual:Transfers","IA",2100,"Community and public safety / Community and social services / Libraries and Archives",2114,"Community and public safety / Community and social services / Libraries and Archives"," _"," _"," _ "," _ ","_",2020,"Funded by Provincial Government",170,"Current assets / VAT","_","_"," _ "," _ "," _ "," _ "," _ "," _ "," _ "," _ ",1003,"Statutory requirements",1003,"Statutory requirements"," _ "," _ "," _ "," _ ",null," _ "," _ ","_","_","_","_",null,null,1470,1470,"Computer Equipment","Computer Equipment"," _ "," _ "," _ "," _ "," _ "," _ "," _ "," _ "," _ "," _ "," _ "," _ "," _ "," _ "," _ "," _ "," _ "," _ "," _ "," _ ",null,"C","_",null,null,4,44,"Community and social services","Libraries and Archives",null,"_","_","_","_","_",-6522,-7826,0,0,0,0,0,0,0,0,0,0,0,0]
["C0003-12/IA06233/F0002/X153/R0100/001/COMM","C0003-12/IA06233/F0002/X153/R0100/001/COMM",327896,46223,"Assets:Non-current Assets:Property, Plant and Equipment:Cost Model:Furniture and Office Equipment:Future Use:Cost:Acquisitions","IA",2300,"Community and public safety / Public safety / Police Forces, Traffic and Street Parking Control",2307,"Community and public safety / Public safety / Police Forces, Traffic and Street Parking Control"," _"," _"," _ "," _ ","CE",2080,"Funded by Internally generated funds",230,"Non current assets / Property, plant and equipment","_","_"," _ "," _ "," _ "," _ "," _ "," _ "," _ "," _ ","_","_","_","_",1490,"Furniture and Office Equipment",1490,"Furniture and Office Equipment",null," _ "," _ ","_","_","_","_",null,null,1470,1470,"Computer Equipment","Computer Equipment"," _ "," _ "," _ "," _ "," _ "," _ "," _ "," _ "," _ "," _ "," _ "," _ "," _ "," _ "," _ "," _ ",241,"Property, plant and equipment (PPE) / PPE at cost/valuation (excl. finance leases)",241,"Property, plant and equipment (PPE) / PPE at cost/valuation (excl. finance leases)",null,"C","_",null,null,6,61,"Public safety","Police Forces, Traffic and Street Parking Control",null,"_","_","_","_","_",0,0,0,0,0,0,0,0,0,0,0,0,0,0]
["C0003-12/IA10375/F0002/X153/R0100/001/CONTRA","C0003-12/IA10375/F0002/X153/R0100/001/CONTRA",327934,46753,"Assets:Current Assets:VAT Receivable:Input Tax Accrual:Recognised","IA",2300,"Community and public safety / Public safety / Police Forces, Traffic and Street Parking Control",2307,"Community and public safety / Public safety / Police Forces, Traffic and Street Parking Control"," _"," _"," _ "," _ ","_",2080,"Funded by Internally generated funds",170,"Current assets / VAT","_","_"," _ "," _ "," _ "," _ "," _ "," _ "," _ "," _ ",1003,"Statutory requirements",1003,"Statutory requirements"," _ "," _ "," _ "," _ ",null," _ "," _ ","_","_","_","_",null,null,1470,1470,"Computer Equipment","Computer Equipment"," _ "," _ "," _ "," _ "," _ "," _ "," _ "," _ "," _ "," _ "," _ "," _ "," _ "," _ "," _ "," _ "," _ "," _ "," _ "," _ ",null,"C","_",null,null,6,61,"Public safety","Police Forces, Traffic and Street Parking Control",null,"_","_","_","_","_",0,0,0,0,0,0,0,0,0,0,0,0,0,0]
["C0003-3/IL65530/F0002/X044/R0099/001/CONTRA","C0003-3/IL65530/F0002/X044/R0099/001/CONTRA",250051,39578,"Liabilities:Current Liabilities:Trade and Other Payable Exchange Transactions:Payables and Accruals : Contractors:Deposits","IL",1100,"Municipal governance and administration / Executive and council / Mayor and Council",1110,"Municipal governance and administration / Executive and council / Mayor and Council"," _"," _"," _ "," _ ","_",2080,"Funded by Internally generated funds",380,"Current liabilities / Trade and other payables from exchange transactions","_","_"," _ "," _ "," _ "," _ "," _ "," _ "," _ "," _ ","_","_","_","_"," _ "," _ "," _ "," _ ",null," _ "," _ ","_","_","_","_",null,null,1470,1470,"Computer Equipment","Computer Equipment"," _ "," _ "," _ "," _ "," _ "," _ "," _ "," _ "," _ "," _ "," _ "," _ "," _ "," _ "," _ "," _ ",361,"Trade and other payables / Trade and other payables from exchange transactions",361,"Trade and other payables / Trade and other payables from exchange transactions",null,"C","_",null,null,1,11,"Executive and council","Mayor and Council",null,"_","_","_","_","_",0,0,0,0,0,0,0,0,0,0,0,0,0,0]
["C0001-1/IA01274/F0002/X044/R0100/001/EXE2","C0001-1/IA01274/F0002/X044/R0100/001/EXE2",91773,21460,"Assets:Non-current Assets:Property, Plant and Equipment:Cost Model:Land:General Plant:Future Use:Cost:Acquisitions","IA",1100,"Municipal governance and administration / Executive and council / Mayor and Council",1110,"Municipal governance and administration / Executive and council / Mayor and Council"," _"," _"," _ "," _ ","CE",2080,"Funded by Internally generated funds",230,"Non current assets / Property, plant and equipment","_","_"," _ "," _ "," _ "," _ "," _ "," _ "," _ "," _ ","_","_","_","_",1550,"Land",1550,"Land",null," _ "," _ ","_","_","_","_",null,null,1550,1550,"Land","Land"," _ "," _ "," _ "," _ "," _ "," _ "," _ "," _ "," _ "," _ "," _ "," _ "," _ "," _ "," _ "," _ ",241,"Property, plant and equipment (PPE) / PPE at cost/valuation (excl. finance leases)",241,"Property, plant and equipment (PPE) / PPE at cost/valuation (excl. finance leases)",null,"C","_",null,null,1,11,"Executive and council","Mayor and Council",null,"_","_","_","_","_",0,0,0,0,0,0,0,0,0,0,0,0,0,0]
["C0003-13/IA06173/F0002/X153/R0100/001/COMM","C0003-13/IA06173/F0002/X153/R0100/001/COMM",327897,46222,"Assets:Non-current Assets:Property, Plant and Equipment:Cost Model:Computer Equipment:Future Use:Cost:Acquisitions","IA",2300,"Community and public safety / Public safety / Police Forces, Traffic and Street Parking Control",2307,"Community and public safety / Public safety / Police Forces, Traffic and Street Parking Control"," _"," _"," _ "," _ ","CE",2080,"Funded by Internally generated funds",230,"Non current assets / Property, plant and equipment","_","_"," _ "," _ "," _ "," _ "," _ "," _ "," _ "," _ ","_","_","_","_",1470,"Computer Equipment",1470,"Computer Equipment",null," _ "," _ ","_","_","_","_",null,null,1470,1470,"Computer Equipment","Computer Equipment"," _ "," _ "," _ "," _ "," _ "," _ "," _ "," _ "," _ "," _ "," _ "," _ "," _ "," _ "," _ "," _ ",241,"Property, plant and equipment (PPE) / PPE at cost/valuation (excl. finance leases)",241,"Property, plant and equipment (PPE) / PPE at cost/valuation (excl. finance leases)",null,"C","_",null,null,6,61,"Public safety","Police Forces, Traffic and Street Parking Control",null,"_","_","_","_","_",0,0,0,0,0,0,0,0,0,0,0,0,0,0]
["C0003-2/IA10373/F0002/X098/R0100/001/CONTRA","C0003-2/IA10373/F0002/X098/R0100/001/CONTRA",262444,36692,"Assets:Current Assets:VAT Receivable:VAT Control (Receivable):Transfers","IA",3100,"Economic and environmental services / Planning and development / Economic Development/Planning",3105,"Economic and environmental services / Planning and development / Economic Development/Planning"," _"," _"," _ "," _ ","_",2080,"Funded by Internally generated funds",170,"Current assets / VAT","_","_"," _ "," _ "," _ "," _ "," _ "," _ "," _ "," _ ",1003,"Statutory requirements",1003,"Statutory requirements"," _ "," _ "," _ "," _ ",null," _ "," _ ","_","_","_","_",null,null,1470,1470,"Computer Equipment","Computer Equipment"," _ "," _ "," _ "," _ "," _ "," _ "," _ "," _ "," _ "," _ "," _ "," _ "," _ "," _ "," _ "," _ "," _ "," _ "," _ "," _ ",null,"C","_",null,null,8,82,"Planning and Development","Economic Development/Planning",null,"_","_","_","_","_",0,0,0,0,0,0,0,0,0,0,0,0,0,0]
["C0003-3/IL65531/F0002/X044/R0099/001/CONTRA","C0003-3/IL65531/F0002/X044/R0099/001/CONTRA",250052,39585,"Liabilities:Current Liabilities:Trade and Other Payable Exchange Transactions:Payables and Accruals : Contractors:Withdrawals","IL",1100,"Municipal governance and administration / Executive and council / Mayor and Council",1110,"Municipal governance and administration / Executive and council / Mayor and Council"," _"," _"," _ "," _ ","_",2080,"Funded by Internally generated funds",380,"Current liabilities / Trade and other payables from exchange transactions","_","_"," _ ",null," _ ","CASH FLOW FROM OPERATING ACTIVITIES / Payments / Suppliers and employees"," _ ",null," _ ","Cash Payments by Type / Contracted services","_","_","_","_"," _ "," _ "," _ "," _ ",null," _ "," _ ","_","_","_","_",null,null,1470,1470,"Computer Equipment","Computer Equipment"," _ "," _ "," _ "," _ "," _ "," _ "," _ "," _ "," _ "," _ "," _ "," _ "," _ "," _ "," _ "," _ ",361,"Trade and other payables / Trade and other payables from exchange transactions",361,"Trade and other payables / Trade and other payables from exchange transactions",null,"C","_",null,null,1,11,"Executive and council","Mayor and Council",null,"_","_","_","_","_",0,0,0,0,0,0,0,0,0,0,0,0,0,0]
["C0004-10/IA10373/F0002/X006/R0100/001/CONTRA","C0004-10/IA10373/F0002/X006/R0100/001/CONTRA",265341,43125,"Assets:Current Assets:VAT Receivable:VAT Control (Receivable):Transfers","IA",2100,"Community and public safety / Community and social services / Community Halls and Facilities",2106,"Community and public safety / Community and social services / Community Halls and Facilities"," _"," _"," _ "," _ ","_",2080,"Funded by Internally generated funds",170,"Current assets / VAT","_","_"," _ "," _ "," _ "," _ "," _ "," _ "," _ "," _ ",1003,"Statutory requirements",1003,"Statutory requirements"," _ "," _ "," _ "," _ ",null," _ "," _ ","_","_","_","_",null,null,1490,1490,"Furniture and Office Equipment","Furniture and Office Equipment"," _ "," _ "," _ "," _ "," _ "," _ "," _ "," _ "," _ "," _ "," _ "," _ "," _ "," _ "," _ "," _ "," _ "," _ "," _ "," _ ",null,"C","_",null,null,4,43,"Community and social services","Community Halls and Facilities",null,"_","_","_","_","_",0,0,0,0,0,0,0,0,0,0,0,0,0,0]
["C0004-13/IL65530/F0002/X153/R0100/001/CONTRA","C0004-13/IL65530/F0002/X153/R0100/001/CONTRA",251010,44234,"Liabilities:Current Liabilities:Trade and Other Payable Exchange Transactions:Payables and Accruals : Contractors:Deposits","IL",2300,"Community and public safety / Public safety / Police Forces, Traffic and Street Parking Control",2307,"Community and public safety / Public safety / Police Forces, Traffic and Street Parking Control"," _"," _"," _ "," _ ","_",2080,"Funded by Internally generated funds",380,"Current liabilities / Trade and other payables from exchange transactions","_","_"," _ "," _ "," _ "," _ "," _ "," _ "," _ "," _ ","_","_","_","_"," _ "," _ "," _ "," _ ",null," _ "," _ ","_","_","_","_",null,null,1490,1490,"Furniture and Office Equipment","Furniture and Office Equipment"," _ "," _ "," _ "," _ "," _ "," _ "," _ "," _ "," _ "," _ "," _ "," _ "," _ "," _ "," _ "," _ ",361,"Trade and other payables / Trade and other payables from exchange transactions",361,"Trade and other payables / Trade and other payables from exchange transactions",null,"C","_",null,null,6,61,"Public safety","Police Forces, Traffic and Street Parking Control",null,"_","_","_","_","_",0,0,0,0,0,0,0,0,0,0,0,0,0,0]
["C0004-15/IA10371/F0002/X046/R0099/001/CONTRA","C0004-15/IA10371/F0002/X046/R0099/001/CONTRA",263065,37102,"Assets:Current Assets:VAT Receivable:Input Tax Capital:Transfers","IA",1200,"Municipal governance and administration / Finance and administration / Administrative and Corporate Support",1201,"Municipal governance and administration / Finance and administration / Administrative and Corporate Support"," _"," _"," _ "," _ ","_",2080,"Funded by Internally generated funds",170,"Current assets / VAT","_","_"," _ "," _ "," _ "," _ "," _ "," _ "," _ "," _ ",1003,"Statutory requirements",1003,"Statutory requirements"," _ "," _ "," _ "," _ ",null," _ "," _ ","_","_","_","_",null,null,1490,1490,"Furniture and Office Equipment","Furniture and Office Equipment"," _ "," _ "," _ "," _ "," _ "," _ "," _ "," _ "," _ "," _ "," _ "," _ "," _ "," _ "," _ "," _ "," _ "," _ "," _ "," _ ",null,"C","_",null,null,2,21,"Finance and administration","Administrative and Corporate Support",null,"_","_","_","_","_",0,0,0,0,0,0,0,0,0,0,0,0,0,0]
["C0004-16/IL65530/F09788/X024/R3645/001/CONTRA","C0004-16/IL65530/F09788/X024/R3645/001/CONTRA",251053,44359,"Liabilities:Current Liabilities:Trade and Other Payable Exchange Transactions:Payables and Accruals : Contractors:Deposits","IL",2100,"Community and public safety / Community and social services / Libraries and Archives",2114,"Community and public safety / Community and social services / Libraries and Archives"," _"," _"," _ "," _ ","_",2020,"Funded by Provincial Government",380,"Current liabilities / Trade and other payables from exchange transactions","_","_"," _ "," _ "," _ "," _ "," _ "," _ "," _ "," _ ","_","_","_","_"," _ "," _ "," _ "," _ ",null," _ "," _ ","_","_","_","_",null,null,1490,1490,"Furniture and Office Equipment","Furniture and Office Equipment"," _ "," _ "," _ "," _ "," _ "," _ "," _ "," _ "," _ "," _ "," _ "," _ "," _ "," _ "," _ "," _ ",361,"Trade and other payables / Trade and other payables from exchange transactions",361,"Trade and other payables / Trade and other payables from exchange transactions",null,"C","_",null,null,4,44,"Community and social services","Libraries and Archives",null,"_","_","_","_","_",0,0,0,0,0,0,0,0,0,0,0,0,0,0]
["C0004-20/IA02108/F0002/X153/R0100/001/CONTRA","C0004-20/IA02108/F0002/X153/R0100/001/CONTRA",327477,46648,"Assets:Current Assets:Cash and Cash Equivalents:Cash at Bank:Bank Account:Specify (replace with account description):Withdrawals","IA",2300,"Community and public safety / Public safety / Police Forces, Traffic and Street Parking Control",2307,"Community and public safety / Public safety / Police Forces, Traffic and Street Parking Control"," _"," _"," _ "," _ ","_",2080,"Funded by Internally generated funds",120,"Current assets / Cash and cash equivalents","_","_"," _ ",310," _ ","Other Cash Flows/Payments by Type / Capital assets"," _ ",510," _ ","Capital assets","_","_","_","_"," _ "," _ "," _ "," _ ",null," _ "," _ ","_","_","_","_",null,null,1490,1490,"Furniture and Office Equipment","Furniture and Office Equipment"," _ "," _ "," _ "," _ "," _ "," _ "," _ "," _ "," _ "," _ "," _ "," _ "," _ "," _ "," _ "," _ "," _ "," _ "," _ "," _ ","W","C","_",null,null,6,61,"Public safety","Police Forces, Traffic and Street Parking Control",null,"_","_","_","_","_",-80000,-80000,0,0,0,0,0,0,0,0,0,0,0,0]
["C0004-20/IA06233/F0002/X016/R3651/001/COMM","C0004-20/IA06233/F0002/X016/R3651/001/COMM",150329,25140,"Assets:Non-current Assets:Property, Plant and Equipment:Cost Model:Furniture and Office Equipment:Future Use:Cost:Acquisitions","IA",2100,"Community and public safety / Community and social services / Community Halls and Facilities",2106,"Community and public safety / Community and social services / Community Halls and Facilities"," _"," _"," _ "," _ ","CE",2080,"Funded by Internally generated funds",230,"Non current assets / Property, plant and equipment","_","_"," _ "," _ "," _ "," _ "," _ "," _ "," _ "," _ ","_","_","_","_",1490,"Furniture and Office Equipment",1490,"Furniture and Office Equipment",null," _ "," _ ","_","_","_","_",null,null,1490,1490,"Furniture and Office Equipment","Furniture and Office Equipment"," _ "," _ "," _ "," _ "," _ "," _ "," _ "," _ "," _ "," _ "," _ "," _ "," _ "," _ "," _ "," _ ",241,"Property, plant and equipment (PPE) / PPE at cost/valuation (excl. finance leases)",241,"Property, plant and equipment (PPE) / PPE at cost/valuation (excl. finance leases)",null,"C","_",null,null,4,43,"Community and social services","Community Halls and Facilities",null,"_","_","_","_","_",0,0,0,0,0,0,0,0,0,0,0,0,0,0]
["C0004-23/IA06233/F0002/X109/R0099/001/COMM","C0004-23/IA06233/F0002/X109/R0099/001/COMM",327175,46227,"Assets:Non-current Assets:Property, Plant and Equipment:Cost Model:Furniture and Office Equipment:Future Use:Cost:Acquisitions","IA",2300,"Community and public safety / Public safety / Fire Fighting and Protection",2305,"Community and public safety / Public safety / Fire Fighting and Protection"," _"," _"," _ "," _ ","CE",2080,"Funded by Internally generated funds",230,"Non current assets / Property, plant and equipment","_","_"," _ "," _ "," _ "," _ "," _ "," _ "," _ "," _ ","_","_","_","_",1490,"Furniture and Office Equipment",1490,"Furniture and Office Equipment",null," _ "," _ ","_","_","_","_",null,null,1490,1490,"Furniture and Office Equipment","Furniture and Office Equipment"," _ "," _ "," _ "," _ "," _ "," _ "," _ "," _ "," _ "," _ "," _ "," _ "," _ "," _ "," _ "," _ ",241,"Property, plant and equipment (PPE) / PPE at cost/valuation (excl. finance leases)",241,"Property, plant and equipment (PPE) / PPE at cost/valuation (excl. finance leases)",null,"C","_",null,null,4,410,"Community and social services","Fire Fighting and Protection",null,"_","_","_","_","_",0,0,0,0,0,0,0,0,0,0,0,0,0,0]
["C0004-24/IA10371/F0002/X098/R0099/001/CONTRA","C0004-24/IA10371/F0002/X098/R0099/001/CONTRA",328551,0,"Assets:Current Assets:VAT Receivable:Input Tax Capital:Transfers","IA",3100,"Economic and environmental services / Planning and development / Economic Development/Planning",3105,"Economic and environmental services / Planning and development / Economic Development/Planning"," _"," _"," _ "," _ ","_",2080,"Funded by Internally generated funds",170,"Current assets / VAT","_","_"," _ "," _ "," _ "," _ "," _ "," _ "," _ "," _ ",1003,"Statutory requirements",1003,"Statutory requirements"," _ "," _ "," _ "," _ ",null," _ "," _ ","_","_","_","_",null,null,1490,1490,"Furniture and Office Equipment","Furniture and Office Equipment"," _ "," _ "," _ "," _ "," _ "," _ "," _ "," _ "," _ "," _ "," _ "," _ "," _ "," _ "," _ "," _ "," _ "," _ "," _ "," _ ",null,"C","_",null,null,8,82,"Planning and Development","Economic Development/Planning",null,"_","_","_","_","_",0,0,0,0,0,0,0,0,0,0,0,0,0,0]
["C0004-17/IA02108/F0002/X153/R0099/001/CONTRA","C0004-17/IA02108/F0002/X153/R0099/001/CONTRA",251666,44536,"Assets:Current Assets:Cash and Cash Equivalents:Cash at Bank:Bank Account:Specify (replace with account description):Withdrawals","IA",2300,"Community and public safety / Public safety / Police Forces, Traffic and Street Parking Control",2307,"Community and public safety / Public safety / Police Forces, Traffic and Street Parking Control"," _"," _"," _ "," _ ","_",2080,"Funded by Internally generated funds",120,"Current assets / Cash and cash equivalents","_","_"," _ ",310," _ ","Other Cash Flows/Payments by Type / Capital assets"," _ ",510," _ ","Capital assets","_","_","_","_"," _ "," _ "," _ "," _ ",null," _ "," _ ","_","_","_","_",null,null,1490,1490,"Furniture and Office Equipment","Furniture and Office Equipment"," _ "," _ "," _ "," _ "," _ "," _ "," _ "," _ "," _ "," _ "," _ "," _ "," _ "," _ "," _ "," _ "," _ "," _ "," _ "," _ ","W","C","_",null,null,6,61,"Public safety","Police Forces, Traffic and Street Parking Control",null,"_","_","_","_","_",0,0,0,0,0,0,0,0,0,0,0,0,0,0]
["C0004-2/IA10371/F09788/X007/R0099/001/CONTRA","C0004-2/IA10371/F09788/X007/R0099/001/CONTRA",263938,38173,"Assets:Current Assets:VAT Receivable:Input Tax Capital:Transfers","IA",2100,"Community and public safety / Community and social services / Libraries and Archives",2114,"Community and public safety / Community and social services / Libraries and Archives"," _"," _"," _ "," _ ","_",2020,"Funded by Provincial Government",170,"Current assets / VAT","_","_"," _ "," _ "," _ "," _ "," _ "," _ "," _ "," _ ",1003,"Statutory requirements",1003,"Statutory requirements"," _ "," _ "," _ "," _ ",null," _ "," _ ","_","_","_","_",null,null,1490,1490,"Furniture and Office Equipment","Furniture and Office Equipment"," _ "," _ "," _ "," _ "," _ "," _ "," _ "," _ "," _ "," _ "," _ "," _ "," _ "," _ "," _ "," _ "," _ "," _ "," _ "," _ ",null,"C","_",null,null,4,44,"Community and social services","Libraries and Archives",null,"_","_","_","_","_",-19565,-19565,0,0,0,0,0,0,0,0,0,0,0,0]
["C0004-21/IA10371/F0002/X153/R0100/001/CONTRA","C0004-21/IA10371/F0002/X153/R0100/001/CONTRA",327503,46663,"Assets:Current Assets:VAT Receivable:Input Tax Capital:Transfers","IA",2300,"Community and public safety / Public safety / Police Forces, Traffic and Street Parking Control",2307,"Community and public safety / Public safety / Police Forces, Traffic and Street Parking Control"," _"," _"," _ "," _ ","_",2080,"Funded by Internally generated funds",170,"Current assets / VAT","_","_"," _ "," _ "," _ "," _ "," _ "," _ "," _ "," _ ",1003,"Statutory requirements",1003,"Statutory requirements"," _ "," _ "," _ "," _ ",null," _ "," _ ","_","_","_","_",null,null,1490,1490,"Furniture and Office Equipment","Furniture and Office Equipment"," _ "," _ "," _ "," _ "," _ "," _ "," _ "," _ "," _ "," _ "," _ "," _ "," _ "," _ "," _ "," _ "," _ "," _ "," _ "," _ ",null,"C","_",null,null,6,61,"Public safety","Police Forces, Traffic and Street Parking Control",null,"_","_","_","_","_",-26087,-26087,0,0,0,0,0,0,0,0,0,0,0,0]
["C0004-24/IL65531/F0002/X044/R0100/001/CONTRA","C0004-24/IL65531/F0002/X044/R0100/001/CONTRA",327953,47106,"Liabilities:Current Liabilities:Trade and Other Payable Exchange Transactions:Payables and Accruals : Contractors:Withdrawals","IL",1100,"Municipal governance and administration / Executive and council / Mayor and Council",1110,"Municipal governance and administration / Executive and council / Mayor and Council"," _"," _"," _ "," _ ","_",2080,"Funded by Internally generated funds",380,"Current liabilities / Trade and other payables from exchange transactions","_","_"," _ ",null," _ ","CASH FLOW FROM OPERATING ACTIVITIES / Payments / Suppliers and employees"," _ ",null," _ ","Cash Payments by Type / Contracted services","_","_","_","_"," _ "," _ "," _ "," _ ",null," _ "," _ ","_","_","_","_",null,null,1490,1490,"Furniture and Office Equipment","Furniture and Office Equipment"," _ "," _ "," _ "," _ "," _ "," _ "," _ "," _ "," _ "," _ "," _ "," _ "," _ "," _ "," _ "," _ ",361,"Trade and other payables / Trade and other payables from exchange transactions",361,"Trade and other payables / Trade and other payables from exchange transactions",null,"C","_",null,null,1,11,"Executive and council","Mayor and Council",null,"_","_","_","_","_",99999,99999,0,0,0,0,0,0,0,0,0,0,0,0]
["C0003-11/IA10370/F09788/X007/R0100/001/CONTRA","C0003-11/IA10370/F09788/X007/R0100/001/CONTRA",251191,36567,"Assets:Current Assets:VAT Receivable:Input Tax Capital:Recognised","IA",2100,"Community and public safety / Community and social services / Libraries and Archives",2114,"Community and public safety / Community and social services / Libraries and Archives"," _"," _"," _ "," _ ","_",2020,"Funded by Provincial Government",170,"Current assets / VAT","_","_"," _ "," _ "," _ "," _ "," _ "," _ "," _ "," _ ",1003,"Statutory requirements",1003,"Statutory requirements"," _ "," _ "," _ "," _ ",null," _ "," _ ","_","_","_","_",null,null,1470,1470,"Computer Equipment","Computer Equipment"," _ "," _ "," _ "," _ "," _ "," _ "," _ "," _ "," _ "," _ "," _ "," _ "," _ "," _ "," _ "," _ "," _ "," _ "," _ "," _ ",null,"C","_",null,null,4,44,"Community and social services","Libraries and Archives",null,"_","_","_","_","_",6522,7826,0,0,0,0,0,0,0,0,0,0,0,0]
["C0003-11/IL65531/F0002/X049/R0099/001/CONTRA","C0003-11/IL65531/F0002/X049/R0099/001/CONTRA",251241,44002,"Liabilities:Current Liabilities:Trade and Other Payable Exchange Transactions:Payables and Accruals : Contractors:Withdrawals","IL",1200,"Municipal governance and administration / Finance and administration / Finance",1204,"Municipal governance and administration / Finance and administration / Finance"," _"," _"," _ "," _ ","_",2080,"Funded by Internally generated funds",380,"Current liabilities / Trade and other payables from exchange transactions","_","_"," _ ",null," _ ","CASH FLOW FROM OPERATING ACTIVITIES / Payments / Suppliers and employees"," _ ",null," _ ","Cash Payments by Type / Contracted services","_","_","_","_"," _ "," _ "," _ "," _ ",null," _ "," _ ","_","_","_","_",null,null,1470,1470,"Computer Equipment","Computer Equipment"," _ "," _ "," _ "," _ "," _ "," _ "," _ "," _ "," _ "," _ "," _ "," _ "," _ "," _ "," _ "," _ ",361,"Trade and other payables / Trade and other payables from exchange transactions",361,"Trade and other payables / Trade and other payables from exchange transactions",null,"C","_",null,null,2,23,"Finance and administration","Finance",null,"_","_","_","_","_",0,0,0,0,0,0,0,0,0,0,0,0,0,0]
["C0003-12/IA10375/F0791/X099/R0100/001/CONTRA","C0003-12/IA10375/F0791/X099/R0100/001/CONTRA",264684,44014,"Assets:Current Assets:VAT Receivable:Input Tax Accrual:Recognised","IA",3100,"Economic and environmental services / Planning and development / Project Management Unit",3108,"Economic and environmental services / Planning and development / Project Management Unit"," _"," _"," _ "," _ ","_",2010,"Funded by National Government",170,"Current assets / VAT","_","_"," _ "," _ "," _ "," _ "," _ "," _ "," _ "," _ ",1003,"Statutory requirements",1003,"Statutory requirements"," _ "," _ "," _ "," _ ",null," _ "," _ ","_","_","_","_",null,null,1470,1470,"Computer Equipment","Computer Equipment"," _ "," _ "," _ "," _ "," _ "," _ "," _ "," _ "," _ "," _ "," _ "," _ "," _ "," _ "," _ "," _ "," _ "," _ "," _ "," _ ",null,"C","_",null,null,8,83,"Planning and Development","Project Management Unit",null,"_","_","_","_","_",0,0,0,0,0,0,0,0,0,0,0,0,0,0]
["C0003-13/IA10370/F0002/X153/R0100/001/CONTRA","C0003-13/IA10370/F0002/X153/R0100/001/CONTRA",327939,46709,"Assets:Current Assets:VAT Receivable:Input Tax Capital:Recognised","IA",2300,"Community and public safety / Public safety / Police Forces, Traffic and Street Parking Control",2307,"Community and public safety / Public safety / Police Forces, Traffic and Street Parking Control"," _"," _"," _ "," _ ","_",2080,"Funded by Internally generated funds",170,"Current assets / VAT","_","_"," _ "," _ "," _ "," _ "," _ "," _ "," _ "," _ ",1003,"Statutory requirements",1003,"Statutory requirements"," _ "," _ "," _ "," _ ",null," _ "," _ ","_","_","_","_",null,null,1470,1470,"Computer Equipment","Computer Equipment"," _ "," _ "," _ "," _ "," _ "," _ "," _ "," _ "," _ "," _ "," _ "," _ "," _ "," _ "," _ "," _ "," _ "," _ "," _ "," _ ",null,"C","_",null,null,6,61,"Public safety","Police Forces, Traffic and Street Parking Control",null,"_","_","_","_","_",26087,26087,0,0,0,0,0,0,0,0,0,0,0,0]
["C0003-2/IA02105/F0002/X098/R0100/001/CONTRA","C0003-2/IA02105/F0002/X098/R0100/001/CONTRA",249375,36699,"Assets:Current Assets:Cash and Cash Equivalents:Cash at Bank:Bank Account:Specify (replace with account description):Deposits","IA",3100,"Economic and environmental services / Planning and development / Economic Development/Planning",3105,"Economic and environmental services / Planning and development / Economic Development/Planning"," _"," _"," _ "," _ ","_",2080,"Funded by Internally generated funds",120,"Current assets / Cash and cash equivalents","_","_"," _ "," _ "," _ "," _ "," _ "," _ "," _ "," _ ","_","_","_","_"," _ "," _ "," _ "," _ ",null," _ "," _ ","_","_","_","_",null,null,1470,1470,"Computer Equipment","Computer Equipment"," _ "," _ "," _ "," _ "," _ "," _ "," _ "," _ "," _ "," _ "," _ "," _ "," _ "," _ "," _ "," _ "," _ "," _ "," _ "," _ ","D","C","_",null,null,8,82,"Planning and Development","Economic Development/Planning",null,"_","_","_","_","_",0,0,0,0,0,0,0,0,0,0,0,0,0,0]
["C0004-10/IA10371/F0002/X006/R0100/001/CONTRA","C0004-10/IA10371/F0002/X006/R0100/001/CONTRA",265340,43124,"Assets:Current Assets:VAT Receivable:Input Tax Capital:Transfers","IA",2100,"Community and public safety / Community and social services / Community Halls and Facilities",2106,"Community and public safety / Community and social services / Community Halls and Facilities"," _"," _"," _ "," _ ","_",2080,"Funded by Internally generated funds",170,"Current assets / VAT","_","_"," _ "," _ "," _ "," _ "," _ "," _ "," _ "," _ ",1003,"Statutory requirements",1003,"Statutory requirements"," _ "," _ "," _ "," _ ",null," _ "," _ ","_","_","_","_",null,null,1490,1490,"Furniture and Office Equipment","Furniture and Office Equipment"," _ "," _ "," _ "," _ "," _ "," _ "," _ "," _ "," _ "," _ "," _ "," _ "," _ "," _ "," _ "," _ "," _ "," _ "," _ "," _ ",null,"C","_",null,null,4,43,"Community and social services","Community Halls and Facilities",null,"_","_","_","_","_",0,0,0,0,0,0,0,0,0,0,0,0,0,0]
["C0004-12/IA10375/F0002/X044/R0100/001/CONTRA","C0004-12/IA10375/F0002/X044/R0100/001/CONTRA",263257,44034,"Assets:Current Assets:VAT Receivable:Input Tax Accrual:Recognised","IA",1100,"Municipal governance and administration / Executive and council / Mayor and Council",1110,"Municipal governance and administration / Executive and council / Mayor and Council"," _"," _"," _ "," _ ","_",2080,"Funded by Internally generated funds",170,"Current assets / VAT","_","_"," _ "," _ "," _ "," _ "," _ "," _ "," _ "," _ ",1003,"Statutory requirements",1003,"Statutory requirements"," _ "," _ "," _ "," _ ",null," _ "," _ ","_","_","_","_",null,null,1490,1490,"Furniture and Office Equipment","Furniture and Office Equipment"," _ "," _ "," _ "," _ "," _ "," _ "," _ "," _ "," _ "," _ "," _ "," _ "," _ "," _ "," _ "," _ "," _ "," _ "," _ "," _ ",null,"C","_",null,null,1,11,"Executive and council","Mayor and Council",null,"_","_","_","_","_",13044,13044,0,0,0,0,0,0,0,0,0,0,0,0]
["C0004-12/IL65530/F0002/X044/R0100/001/CONTRA","C0004-12/IL65530/F0002/X044/R0100/001/CONTRA",250974,44025,"Liabilities:Current Liabilities:Trade and Other Payable Exchange Transactions:Payables and Accruals : Contractors:Deposits","IL",1100,"Municipal governance and administration / Executive and council / Mayor and Council",1110,"Municipal governance and administration / Executive and council / Mayor and Council"," _"," _"," _ "," _ ","_",2080,"Funded by Internally generated funds",380,"Current liabilities / Trade and other payables from exchange transactions","_","_"," _ "," _ "," _ "," _ "," _ "," _ "," _ "," _ ","_","_","_","_"," _ "," _ "," _ "," _ ",null," _ "," _ ","_","_","_","_",null,null,1490,1490,"Furniture and Office Equipment","Furniture and Office Equipment"," _ "," _ "," _ "," _ "," _ "," _ "," _ "," _ "," _ "," _ "," _ "," _ "," _ "," _ "," _ "," _ ",361,"Trade and other payables / Trade and other payables from exchange transactions",361,"Trade and other payables / Trade and other payables from exchange transactions",null,"C","_",null,null,1,11,"Executive and council","Mayor and Council",null,"_","_","_","_","_",-100004,-100004,0,0,0,0,0,0,0,0,0,0,0,0]
["C0004-16/IA02108/F09788/X024/R3645/001/CONTRA","C0004-16/IA02108/F09788/X024/R3645/001/CONTRA",251656,44356,"Assets:Current Assets:Cash and Cash Equivalents:Cash at Bank:Bank Account:Specify (replace with account description):Withdrawals","IA",2100,"Community and public safety / Community and social services / Libraries and Archives",2114,"Community and public safety / Community and social services / Libraries and Archives"," _"," _"," _ "," _ ","_",2020,"Funded by Provincial Government",120,"Current assets / Cash and cash equivalents","_","_"," _ ",310," _ ","Other Cash Flows/Payments by Type / Capital assets"," _ ",510," _ ","Capital assets","_","_","_","_"," _ "," _ "," _ "," _ ",null," _ "," _ ","_","_","_","_",null,null,1490,1490,"Furniture and Office Equipment","Furniture and Office Equipment"," _ "," _ "," _ "," _ "," _ "," _ "," _ "," _ "," _ "," _ "," _ "," _ "," _ "," _ "," _ "," _ "," _ "," _ "," _ "," _ ","W","C","_",null,null,4,44,"Community and social services","Libraries and Archives",null,"_","_","_","_","_",0,0,0,0,0,0,0,0,0,0,0,0,0,0]
["C0003-5/IA10373/F0002/X052/R0099/001/CONTRA","C0003-5/IA10373/F0002/X052/R0099/001/CONTRA",262557,43241,"Assets:Current Assets:VAT Receivable:VAT Control (Receivable):Transfers","IA",1200,"Municipal governance and administration / Finance and administration / Information Technology",1207,"Municipal governance and administration / Finance and administration / Information Technology"," _"," _"," _ "," _ ","_",2080,"Funded by Internally generated funds",170,"Current assets / VAT","_","_"," _ "," _ "," _ "," _ "," _ "," _ "," _ "," _ ",1003,"Statutory requirements",1003,"Statutory requirements"," _ "," _ "," _ "," _ ",null," _ "," _ ","_","_","_","_",null,null,1470,1470,"Computer Equipment","Computer Equipment"," _ "," _ "," _ "," _ "," _ "," _ "," _ "," _ "," _ "," _ "," _ "," _ "," _ "," _ "," _ "," _ "," _ "," _ "," _ "," _ ",null,"C","_",null,null,2,26,"Finance and administration","Information Technology",null,"_","_","_","_","_",0,0,0,0,0,0,0,0,0,0,0,0,0,0]
["C0003-6/IA10370/F09788/X024/R0100/001/CONTRA","C0003-6/IA10370/F09788/X024/R0100/001/CONTRA",250942,43794,"Assets:Current Assets:VAT Receivable:Input Tax Capital:Recognised","IA",2100,"Community and public safety / Community and social services / Libraries and Archives",2114,"Community and public safety / Community and social services / Libraries and Archives"," _"," _"," _ "," _ ","_",2020,"Funded by Provincial Government",170,"Current assets / VAT","_","_"," _ "," _ "," _ "," _ "," _ "," _ "," _ "," _ ",1003,"Statutory requirements",1003,"Statutory requirements"," _ "," _ "," _ "," _ ",null," _ "," _ ","_","_","_","_",null,null,1470,1470,"Computer Equipment","Computer Equipment"," _ "," _ "," _ "," _ "," _ "," _ "," _ "," _ "," _ "," _ "," _ "," _ "," _ "," _ "," _ "," _ "," _ "," _ "," _ "," _ ",null,"C","_",null,null,4,44,"Community and social services","Libraries and Archives",null,"_","_","_","_","_",45653,39161,0,0,0,0,0,0,0,0,0,0,0,0]
["C0003-6/IA10375/F09788/X024/R0100/001/CONTRA","C0003-6/IA10375/F09788/X024/R0100/001/CONTRA",262692,43774,"Assets:Current Assets:VAT Receivable:Input Tax Accrual:Recognised","IA",2100,"Community and public safety / Community and social services / Libraries and Archives",2114,"Community and public safety / Community and social services / Libraries and Archives"," _"," _"," _ "," _ ","_",2020,"Funded by Provincial Government",170,"Current assets / VAT","_","_"," _ "," _ "," _ "," _ "," _ "," _ "," _ "," _ ",1003,"Statutory requirements",1003,"Statutory requirements"," _ "," _ "," _ "," _ ",null," _ "," _ ","_","_","_","_",null,null,1470,1470,"Computer Equipment","Computer Equipment"," _ "," _ "," _ "," _ "," _ "," _ "," _ "," _ "," _ "," _ "," _ "," _ "," _ "," _ "," _ "," _ "," _ "," _ "," _ "," _ ",null,"C","_",null,null,4,44,"Community and social services","Libraries and Archives",null,"_","_","_","_","_",45653,39161,0,0,0,0,0,0,0,0,0,0,0,0]
["C0003-6/IA10376/F09788/X024/R0100/001/CONTRA","C0003-6/IA10376/F09788/X024/R0100/001/CONTRA",262693,43790,"Assets:Current Assets:VAT Receivable:Input Tax Accrual:Transfers","IA",2100,"Community and public safety / Community and social services / Libraries and Archives",2114,"Community and public safety / Community and social services / Libraries and Archives"," _"," _"," _ "," _ ","_",2020,"Funded by Provincial Government",170,"Current assets / VAT","_","_"," _ "," _ "," _ "," _ "," _ "," _ "," _ "," _ ",1003,"Statutory requirements",1003,"Statutory requirements"," _ "," _ "," _ "," _ ",null," _ "," _ ","_","_","_","_",null,null,1470,1470,"Computer Equipment","Computer Equipment"," _ "," _ "," _ "," _ "," _ "," _ "," _ "," _ "," _ "," _ "," _ "," _ "," _ "," _ "," _ "," _ "," _ "," _ "," _ "," _ ",null,"C","_",null,null,4,44,"Community and social services","Libraries and Archives",null,"_","_","_","_","_",-45653,-39161,0,0,0,0,0,0,0,0,0,0,0,0]
["C0004-1/IA10373/F09788/X007/R0100/001/CONTRA","C0004-1/IA10373/F09788/X007/R0100/001/CONTRA",263870,38007,"Assets:Current Assets:VAT Receivable:VAT Control (Receivable):Transfers","IA",2100,"Community and public safety / Community and social services / Libraries and Archives",2114,"Community and public safety / Community and social services / Libraries and Archives"," _"," _"," _ "," _ ","_",2020,"Funded by Provincial Government",170,"Current assets / VAT","_","_"," _ "," _ "," _ "," _ "," _ "," _ "," _ "," _ ",1003,"Statutory requirements",1003,"Statutory requirements"," _ "," _ "," _ "," _ ",null," _ "," _ ","_","_","_","_",null,null,1490,1490,"Furniture and Office Equipment","Furniture and Office Equipment"," _ "," _ "," _ "," _ "," _ "," _ "," _ "," _ "," _ "," _ "," _ "," _ "," _ "," _ "," _ "," _ "," _ "," _ "," _ "," _ ",null,"C","_",null,null,4,44,"Community and social services","Libraries and Archives",null,"_","_","_","_","_",0,0,0,0,0,0,0,0,0,0,0,0,0,0]
["C0003-7/IA10370/F0002/X101/R0099/001/CONTRA","C0003-7/IA10370/F0002/X101/R0099/001/CONTRA",250954,43842,"Assets:Current Assets:VAT Receivable:Input Tax Capital:Recognised","IA",3100,"Economic and environmental services / Planning and development / Town Planning, Building Regulations and Enforcement, and City Engineer",3107,"Economic and environmental services / Planning and development / Town Planning, Building Regulations and Enforcement, and City Engineer"," _"," _"," _ "," _ ","_",2080,"Funded by Internally generated funds",170,"Current assets / VAT","_","_"," _ "," _ "," _ "," _ "," _ "," _ "," _ "," _ ",1003,"Statutory requirements",1003,"Statutory requirements"," _ "," _ "," _ "," _ ",null," _ "," _ ","_","_","_","_",null,null,1470,1470,"Computer Equipment","Computer Equipment"," _ "," _ "," _ "," _ "," _ "," _ "," _ "," _ "," _ "," _ "," _ "," _ "," _ "," _ "," _ "," _ "," _ "," _ "," _ "," _ ",null,"C","_",null,null,8,84,"Planning and Development","Town Planning, Building Regulations and Enforcement, and City Engineer",null,"_","_","_","_","_",0,0,0,0,0,0,0,0,0,0,0,0,0,0]
["C0004-10/IA10376/F0002/X006/R0100/001/CONTRA","C0004-10/IA10376/F0002/X006/R0100/001/CONTRA",265343,43122,"Assets:Current Assets:VAT Receivable:Input Tax Accrual:Transfers","IA",2100,"Community and public safety / Community and social services / Community Halls and Facilities",2106,"Community and public safety / Community and social services / Community Halls and Facilities"," _"," _"," _ "," _ ","_",2080,"Funded by Internally generated funds",170,"Current assets / VAT","_","_"," _ "," _ "," _ "," _ "," _ "," _ "," _ "," _ ",1003,"Statutory requirements",1003,"Statutory requirements"," _ "," _ "," _ "," _ ",null," _ "," _ ","_","_","_","_",null,null,1490,1490,"Furniture and Office Equipment","Furniture and Office Equipment"," _ "," _ "," _ "," _ "," _ "," _ "," _ "," _ "," _ "," _ "," _ "," _ "," _ "," _ "," _ "," _ "," _ "," _ "," _ "," _ ",null,"C","_",null,null,4,43,"Community and social services","Community Halls and Facilities",null,"_","_","_","_","_",0,0,0,0,0,0,0,0,0,0,0,0,0,0]
["C0004-13/IA02105/F0002/X153/R0100/001/CONTRA","C0004-13/IA02105/F0002/X153/R0100/001/CONTRA",251008,44239,"Assets:Current Assets:Cash and Cash Equivalents:Cash at Bank:Bank Account:Specify (replace with account description):Deposits","IA",2300,"Community and public safety / Public safety / Police Forces, Traffic and Street Parking Control",2307,"Community and public safety / Public safety / Police Forces, Traffic and Street Parking Control"," _"," _"," _ "," _ ","_",2080,"Funded by Internally generated funds",120,"Current assets / Cash and cash equivalents","_","_"," _ "," _ "," _ "," _ "," _ "," _ "," _ "," _ ","_","_","_","_"," _ "," _ "," _ "," _ ",null," _ "," _ ","_","_","_","_",null,null,1490,1490,"Furniture and Office Equipment","Furniture and Office Equipment"," _ "," _ "," _ "," _ "," _ "," _ "," _ "," _ "," _ "," _ "," _ "," _ "," _ "," _ "," _ "," _ "," _ "," _ "," _ "," _ ","D","C","_",null,null,6,61,"Public safety","Police Forces, Traffic and Street Parking Control",null,"_","_","_","_","_",0,0,0,0,0,0,0,0,0,0,0,0,0,0]
["C0004-15/IA06233/F0002/X046/R0099/001/CORP","C0004-15/IA06233/F0002/X046/R0099/001/CORP",50655,20692,"Assets:Non-current Assets:Property, Plant and Equipment:Cost Model:Furniture and Office Equipment:Future Use:Cost:Acquisitions","IA",1200,"Municipal governance and administration / Finance and administration / Administrative and Corporate Support",1201,"Municipal governance and administration / Finance and administration / Administrative and Corporate Support"," _"," _"," _ "," _ ","CE",2080,"Funded by Internally generated funds",230,"Non current assets / Property, plant and equipment","_","_"," _ "," _ "," _ "," _ "," _ "," _ "," _ "," _ ","_","_","_","_",1490,"Furniture and Office Equipment",1490,"Furniture and Office Equipment",null," _ "," _ ","_","_","_","_",null,null,1490,1490,"Furniture and Office Equipment","Furniture and Office Equipment"," _ "," _ "," _ "," _ "," _ "," _ "," _ "," _ "," _ "," _ "," _ "," _ "," _ "," _ "," _ "," _ ",241,"Property, plant and equipment (PPE) / PPE at cost/valuation (excl. finance leases)",241,"Property, plant and equipment (PPE) / PPE at cost/valuation (excl. finance leases)",null,"C","_",null,null,2,21,"Finance and administration","Administrative and Corporate Support",null,"_","_","_","_","_",0,0,0,0,0,0,0,0,0,0,0,0,0,0]
["C0004-19/IA10371/F09788/X024/R0100/001/CONTRA","C0004-19/IA10371/F09788/X024/R0100/001/CONTRA",264393,44797,"Assets:Current Assets:VAT Receivable:Input Tax Capital:Transfers","IA",2100,"Community and public safety / Community and social services / Libraries and Archives",2114,"Community and public safety / Community and social services / Libraries and Archives"," _"," _"," _ "," _ ","_",2020,"Funded by Provincial Government",170,"Current assets / VAT","_","_"," _ "," _ "," _ "," _ "," _ "," _ "," _ "," _ ",1003,"Statutory requirements",1003,"Statutory requirements"," _ "," _ "," _ "," _ ",null," _ "," _ ","_","_","_","_",null,null,1490,1490,"Furniture and Office Equipment","Furniture and Office Equipment"," _ "," _ "," _ "," _ "," _ "," _ "," _ "," _ "," _ "," _ "," _ "," _ "," _ "," _ "," _ "," _ "," _ "," _ "," _ "," _ ",null,"C","_",null,null,4,44,"Community and social services","Libraries and Archives",null,"_","_","_","_","_",0,0,0,0,0,0,0,0,0,0,0,0,0,0]
["C0004-19/IA10376/F09788/X024/R0100/001/CONTRA","C0004-19/IA10376/F09788/X024/R0100/001/CONTRA",264396,44784,"Assets:Current Assets:VAT Receivable:Input Tax Accrual:Transfers","IA",2100,"Community and public safety / Community and social services / Libraries and Archives",2114,"Community and public safety / Community and social services / Libraries and Archives"," _"," _"," _ "," _ ","_",2020,"Funded by Provincial Government",170,"Current assets / VAT","_","_"," _ "," _ "," _ "," _ "," _ "," _ "," _ "," _ ",1003,"Statutory requirements",1003,"Statutory requirements"," _ "," _ "," _ "," _ ",null," _ "," _ ","_","_","_","_",null,null,1490,1490,"Furniture and Office Equipment","Furniture and Office Equipment"," _ "," _ "," _ "," _ "," _ "," _ "," _ "," _ "," _ "," _ "," _ "," _ "," _ "," _ "," _ "," _ "," _ "," _ "," _ "," _ ",null,"C","_",null,null,4,44,"Community and social services","Libraries and Archives",null,"_","_","_","_","_",0,0,0,0,0,0,0,0,0,0,0,0,0,0]
["C0004-21/IA10376/F0002/X153/R0100/001/CONTRA","C0004-21/IA10376/F0002/X153/R0100/001/CONTRA",327506,46666,"Assets:Current Assets:VAT Receivable:Input Tax Accrual:Transfers","IA",2300,"Community and public safety / Public safety / Police Forces, Traffic and Street Parking Control",2307,"Community and public safety / Public safety / Police Forces, Traffic and Street Parking Control"," _"," _"," _ "," _ ","_",2080,"Funded by Internally generated funds",170,"Current assets / VAT","_","_"," _ "," _ "," _ "," _ "," _ "," _ "," _ "," _ ",1003,"Statutory requirements",1003,"Statutory requirements"," _ "," _ "," _ "," _ ",null," _ "," _ ","_","_","_","_",null,null,1490,1490,"Furniture and Office Equipment","Furniture and Office Equipment"," _ "," _ "," _ "," _ "," _ "," _ "," _ "," _ "," _ "," _ "," _ "," _ "," _ "," _ "," _ "," _ "," _ "," _ "," _ "," _ ",null,"C","_",null,null,6,61,"Public safety","Police Forces, Traffic and Street Parking Control",null,"_","_","_","_","_",-26087,-26087,0,0,0,0,0,0,0,0,0,0,0,0]
["C0004-22/IA10371/F0002/X058/R0099/001/CONTRA","C0004-22/IA10371/F0002/X058/R0099/001/CONTRA",327543,46694,"Assets:Current Assets:VAT Receivable:Input Tax Capital:Transfers","IA",1200,"Municipal governance and administration / Finance and administration / Supply Chain Management",1213,"Municipal governance and administration / Finance and administration / Supply Chain Management"," _"," _"," _ "," _ ","_",2080,"Funded by Internally generated funds",170,"Current assets / VAT","_","_"," _ "," _ "," _ "," _ "," _ "," _ "," _ "," _ ",1003,"Statutory requirements",1003,"Statutory requirements"," _ "," _ "," _ "," _ ",null," _ "," _ ","_","_","_","_",null,null,1490,1490,"Furniture and Office Equipment","Furniture and Office Equipment"," _ "," _ "," _ "," _ "," _ "," _ "," _ "," _ "," _ "," _ "," _ "," _ "," _ "," _ "," _ "," _ "," _ "," _ "," _ "," _ ",null,"C","_",null,null,2,29,"Finance and administration","Supply Chain Management",null,"_","_","_","_","_",-18261,-10435,0,0,0,0,0,0,0,0,0,0,0,0]
["C0004-22/IL65530/F0002/X058/R0099/001/CONTRA","C0004-22/IL65530/F0002/X058/R0099/001/CONTRA",327547,46699,"Liabilities:Current Liabilities:Trade and Other Payable Exchange Transactions:Payables and Accruals : Contractors:Deposits","IL",1200,"Municipal governance and administration / Finance and administration / Supply Chain Management",1213,"Municipal governance and administration / Finance and administration / Supply Chain Management"," _"," _"," _ "," _ ","_",2080,"Funded by Internally generated funds",380,"Current liabilities / Trade and other payables from exchange transactions","_","_"," _ "," _ "," _ "," _ "," _ "," _ "," _ "," _ ","_","_","_","_"," _ "," _ "," _ "," _ ",null," _ "," _ ","_","_","_","_",null,null,1490,1490,"Furniture and Office Equipment","Furniture and Office Equipment"," _ "," _ "," _ "," _ "," _ "," _ "," _ "," _ "," _ "," _ "," _ "," _ "," _ "," _ "," _ "," _ ",361,"Trade and other payables / Trade and other payables from exchange transactions",361,"Trade and other payables / Trade and other payables from exchange transactions",null,"C","_",null,null,2,29,"Finance and administration","Supply Chain Management",null,"_","_","_","_","_",-140000,-80000,0,0,0,0,0,0,0,0,0,0,0,0]
["C0004-6/IA10373/F0002/X044/R0100/001/CONTRA","C0004-6/IA10373/F0002/X044/R0100/001/CONTRA",263424,40107,"Assets:Current Assets:VAT Receivable:VAT Control (Receivable):Transfers","IA",1100,"Municipal governance and administration / Executive and council / Mayor and Council",1110,"Municipal governance and administration / Executive and council / Mayor and Council"," _"," _"," _ "," _ ","_",2080,"Funded by Internally generated funds",170,"Current assets / VAT","_","_"," _ "," _ "," _ "," _ "," _ "," _ "," _ "," _ ",1003,"Statutory requirements",1003,"Statutory requirements"," _ "," _ "," _ "," _ ",null," _ "," _ ","_","_","_","_",null,null,1490,1490,"Furniture and Office Equipment","Furniture and Office Equipment"," _ "," _ "," _ "," _ "," _ "," _ "," _ "," _ "," _ "," _ "," _ "," _ "," _ "," _ "," _ "," _ "," _ "," _ "," _ "," _ ",null,"C","_",null,null,1,11,"Executive and council","Mayor and Council",null,"_","_","_","_","_",0,0,0,0,0,0,0,0,0,0,0,0,0,0]
["C0004-6/IA10376/F0002/X055/R0100/001/CONTRA","C0004-6/IA10376/F0002/X055/R0100/001/CONTRA",263475,40837,"Assets:Current Assets:VAT Receivable:Input Tax Accrual:Transfers","IA",1200,"Municipal governance and administration / Finance and administration / Property Services",1210,"Municipal governance and administration / Finance and administration / Property Services"," _"," _"," _ "," _ ","_",2080,"Funded by Internally generated funds",170,"Current assets / VAT","_","_"," _ "," _ "," _ "," _ "," _ "," _ "," _ "," _ ",1003,"Statutory requirements",1003,"Statutory requirements"," _ "," _ "," _ "," _ ",null," _ "," _ ","_","_","_","_",null,null,1490,1490,"Furniture and Office Equipment","Furniture and Office Equipment"," _ "," _ "," _ "," _ "," _ "," _ "," _ "," _ "," _ "," _ "," _ "," _ "," _ "," _ "," _ "," _ "," _ "," _ "," _ "," _ ",null,"C","_",null,null,2,27,"Finance and administration","Property Services",null,"_","_","_","_","_",0,0,0,0,0,0,0,0,0,0,0,0,0,0]
["C0004-6/IL65530/F0791/X049/R0100/001/CONTRA","C0004-6/IL65530/F0791/X049/R0100/001/CONTRA",250232,40737,"Liabilities:Current Liabilities:Trade and Other Payable Exchange Transactions:Payables and Accruals : Contractors:Deposits","IL",1200,"Municipal governance and administration / Finance and administration / Finance",1204,"Municipal governance and administration / Finance and administration / Finance"," _"," _"," _ "," _ ","_",2010,"Funded by National Government",380,"Current liabilities / Trade and other payables from exchange transactions","_","_"," _ "," _ "," _ "," _ "," _ "," _ "," _ "," _ ","_","_","_","_"," _ "," _ "," _ "," _ ",null," _ "," _ ","_","_","_","_",null,null,1490,1490,"Furniture and Office Equipment","Furniture and Office Equipment"," _ "," _ "," _ "," _ "," _ "," _ "," _ "," _ "," _ "," _ "," _ "," _ "," _ "," _ "," _ "," _ ",361,"Trade and other payables / Trade and other payables from exchange transactions",361,"Trade and other payables / Trade and other payables from exchange transactions",null,"C","_",null,null,2,23,"Finance and administration","Finance",null,"_","_","_","_","_",0,0,0,0,0,0,0,0,0,0,0,0,0,0]
["C0004-6/IL65531/F0791/X049/R0100/001/CONTRA","C0004-6/IL65531/F0791/X049/R0100/001/CONTRA",250233,40735,"Liabilities:Current Liabilities:Trade and Other Payable Exchange Transactions:Payables and Accruals : Contractors:Withdrawals","IL",1200,"Municipal governance and administration / Finance and administration / Finance",1204,"Municipal governance and administration / Finance and administration / Finance"," _"," _"," _ "," _ ","_",2010,"Funded by National Government",380,"Current liabilities / Trade and other payables from exchange transactions","_","_"," _ ",null," _ ","CASH FLOW FROM OPERATING ACTIVITIES / Payments / Suppliers and employees"," _ ",null," _ ","Cash Payments by Type / Contracted services","_","_","_","_"," _ "," _ "," _ "," _ ",null," _ "," _ ","_","_","_","_",null,null,1490,1490,"Furniture and Office Equipment","Furniture and Office Equipment"," _ "," _ "," _ "," _ "," _ "," _ "," _ "," _ "," _ "," _ "," _ "," _ "," _ "," _ "," _ "," _ ",361,"Trade and other payables / Trade and other payables from exchange transactions",361,"Trade and other payables / Trade and other payables from exchange transactions",null,"C","_",null,null,2,23,"Finance and administration","Finance",null,"_","_","_","_","_",0,0,0,0,0,0,0,0,0,0,0,0,0,0]
["C0001-1/IA02105/F0002/X044/R0100/001/CONTRA","C0001-1/IA02105/F0002/X044/R0100/001/CONTRA",250066,39762,"Assets:Current Assets:Cash and Cash Equivalents:Cash at Bank:Bank Account:Specify (replace with account description):Deposits","IA",1100,"Municipal governance and administration / Executive and council / Mayor and Council",1110,"Municipal governance and administration / Executive and council / Mayor and Council"," _"," _"," _ "," _ ","_",2080,"Funded by Internally generated funds",120,"Current assets / Cash and cash equivalents","_","_"," _ "," _ "," _ "," _ "," _ "," _ "," _ "," _ ","_","_","_","_"," _ "," _ "," _ "," _ ",null," _ "," _ ","_","_","_","_",null,null,1550,1550,"Land","Land"," _ "," _ "," _ "," _ "," _ "," _ "," _ "," _ "," _ "," _ "," _ "," _ "," _ "," _ "," _ "," _ "," _ "," _ "," _ "," _ ","D","C","_",null,null,1,11,"Executive and council","Mayor and Council",null,"_","_","_","_","_",0,0,0,0,0,0,0,0,0,0,0,0,0,0]
["C0004-4/IA10370/F0002/X007/R0099/001/CONTRA","C0004-4/IA10370/F0002/X007/R0099/001/CONTRA",249922,38641,"Assets:Current Assets:VAT Receivable:Input Tax Capital:Recognised","IA",2100,"Community and public safety / Community and social services / Libraries and Archives",2114,"Community and public safety / Community and social services / Libraries and Archives"," _"," _"," _ "," _ ","_",2080,"Funded by Internally generated funds",170,"Current assets / VAT","_","_"," _ "," _ "," _ "," _ "," _ "," _ "," _ "," _ ",1003,"Statutory requirements",1003,"Statutory requirements"," _ "," _ "," _ "," _ ",null," _ "," _ ","_","_","_","_",null,null,1490,1490,"Furniture and Office Equipment","Furniture and Office Equipment"," _ "," _ "," _ "," _ "," _ "," _ "," _ "," _ "," _ "," _ "," _ "," _ "," _ "," _ "," _ "," _ "," _ "," _ "," _ "," _ ",null,"C","_",null,null,4,44,"Community and social services","Libraries and Archives",null,"_","_","_","_","_",0,0,0,0,0,0,0,0,0,0,0,0,0,0]
["C0004-20/IA02108/F0002/X016/R3651/001/CONTRA","C0004-20/IA02108/F0002/X016/R3651/001/CONTRA",251687,44858,"Assets:Current Assets:Cash and Cash Equivalents:Cash at Bank:Bank Account:Specify (replace with account description):Withdrawals","IA",2100,"Community and public safety / Community and social services / Community Halls and Facilities",2106,"Community and public safety / Community and social services / Community Halls and Facilities"," _"," _"," _ "," _ ","_",2080,"Funded by Internally generated funds",120,"Current assets / Cash and cash equivalents","_","_"," _ ",310," _ ","Other Cash Flows/Payments by Type / Capital assets"," _ ",510," _ ","Capital assets","_","_","_","_"," _ "," _ "," _ "," _ ",null," _ "," _ ","_","_","_","_",null,null,1490,1490,"Furniture and Office Equipment","Furniture and Office Equipment"," _ "," _ "," _ "," _ "," _ "," _ "," _ "," _ "," _ "," _ "," _ "," _ "," _ "," _ "," _ "," _ "," _ "," _ "," _ "," _ ","W","C","_",null,null,4,43,"Community and social services","Community Halls and Facilities",null,"_","_","_","_","_",0,0,0,0,0,0,0,0,0,0,0,0,0,0]
["C0004-6/IA06243/F0002/X153/R0100/001/FIN","C0004-6/IA06243/F0002/X153/R0100/001/FIN",102230,22892,"Assets:Non-current Assets:Property, Plant and Equipment:Cost Model:Furniture and Office Equipment:In-use:Accumulated Depreciation:Depreciation","IA",2300,"Community and public safety / Public safety / Police Forces, Traffic and Street Parking Control",2307,"Community and public safety / Public safety / Police Forces, Traffic and Street Parking Control"," _"," _"," _ "," _ ","_",2080,"Funded by Internally generated funds",230,"Non current assets / Property, plant and equipment","_","_"," _ "," _ "," _ "," _ "," _ "," _ "," _ "," _ ","_","_","_","_",1490,"Furniture and Office Equipment",1490,"Furniture and Office Equipment",null," _ "," _ ","_","_","_","_",null,null,1490,1490,"Furniture and Office Equipment","Furniture and Office Equipment"," _ "," _ "," _ "," _ "," _ "," _ "," _ "," _ "," _ "," _ "," _ "," _ "," _ "," _ "," _ "," _ ",243,"Property, plant and equipment (PPE) / Less: Accumulated depreciation",243,"Property, plant and equipment (PPE) / Less: Accumulated depreciation",null,"C","_",null,null,6,61,"Public safety","Police Forces, Traffic and Street Parking Control",null,"_","_","_","_","_",0,0,0,0,0,0,0,0,0,0,0,0,0,0]
["C0006-28/IA10370/F0002/X050/R0100/001/CONTRA","C0006-28/IA10370/F0002/X050/R0100/001/CONTRA",248414,45013,"Assets:Current Assets:VAT Receivable:Input Tax Capital:Recognised","IA",1200,"Municipal governance and administration / Finance and administration / Fleet Management",1205,"Municipal governance and administration / Finance and administration / Fleet Management"," _"," _"," _ "," _ ","_",2080,"Funded by Internally generated funds",170,"Current assets / VAT","_","_"," _ "," _ "," _ "," _ "," _ "," _ "," _ "," _ ",1003,"Statutory requirements",1003,"Statutory requirements"," _ "," _ "," _ "," _ ",null," _ "," _ ","_","_","_","_",null,null,1510,1510,"Machinery and Equipment","Machinery and Equipment"," _ "," _ "," _ "," _ "," _ "," _ "," _ "," _ "," _ "," _ "," _ "," _ "," _ "," _ "," _ "," _ "," _ "," _ "," _ "," _ ",null,"C","_",null,null,2,24,"Finance and administration","Fleet Management",null,"_","_","_","_","_",0,0,0,0,0,0,0,0,0,0,0,0,0,0]
["C0004-6/IA10373/F0791/X049/R0100/001/CONTRA","C0004-6/IA10373/F0791/X049/R0100/001/CONTRA",262800,40794,"Assets:Current Assets:VAT Receivable:VAT Control (Receivable):Transfers","IA",1200,"Municipal governance and administration / Finance and administration / Finance",1204,"Municipal governance and administration / Finance and administration / Finance"," _"," _"," _ "," _ ","_",2010,"Funded by National Government",170,"Current assets / VAT","_","_"," _ "," _ "," _ "," _ "," _ "," _ "," _ "," _ ",1003,"Statutory requirements",1003,"Statutory requirements"," _ "," _ "," _ "," _ ",null," _ "," _ ","_","_","_","_",null,null,1490,1490,"Furniture and Office Equipment","Furniture and Office Equipment"," _ "," _ "," _ "," _ "," _ "," _ "," _ "," _ "," _ "," _ "," _ "," _ "," _ "," _ "," _ "," _ "," _ "," _ "," _ "," _ ",null,"C","_",null,null,2,23,"Finance and administration","Finance",null,"_","_","_","_","_",0,0,0,0,0,0,0,0,0,0,0,0,0,0]
["C0006-28/IA02105/F0002/X016/R0100/001/CONTRA","C0006-28/IA02105/F0002/X016/R0100/001/CONTRA",249633,37547,"Assets:Current Assets:Cash and Cash Equivalents:Cash at Bank:Bank Account:Specify (replace with account description):Deposits","IA",2100,"Community and public safety / Community and social services / Community Halls and Facilities",2106,"Community and public safety / Community and social services / Community Halls and Facilities"," _"," _"," _ "," _ ","_",2080,"Funded by Internally generated funds",120,"Current assets / Cash and cash equivalents","_","_"," _ "," _ "," _ "," _ "," _ "," _ "," _ "," _ ","_","_","_","_"," _ "," _ "," _ "," _ ",null," _ "," _ ","_","_","_","_",null,null,1510,1510,"Machinery and Equipment","Machinery and Equipment"," _ "," _ "," _ "," _ "," _ "," _ "," _ "," _ "," _ "," _ "," _ "," _ "," _ "," _ "," _ "," _ "," _ "," _ "," _ "," _ ","D","C","_",null,null,4,43,"Community and social services","Community Halls and Facilities",null,"_","_","_","_","_",0,0,0,0,0,0,0,0,0,0,0,0,0,0]
["C0004-3/IA10376/F0791/X099/R0100/001/CONTRA","C0004-3/IA10376/F0791/X099/R0100/001/CONTRA",264798,38547,"Assets:Current Assets:VAT Receivable:Input Tax Accrual:Transfers","IA",3100,"Economic and environmental services / Planning and development / Project Management Unit",3108,"Economic and environmental services / Planning and development / Project Management Unit"," _"," _"," _ "," _ ","_",2010,"Funded by National Government",170,"Current assets / VAT","_","_"," _ "," _ "," _ "," _ "," _ "," _ "," _ "," _ ",1003,"Statutory requirements",1003,"Statutory requirements"," _ "," _ "," _ "," _ ",null," _ "," _ ","_","_","_","_",null,null,1490,1490,"Furniture and Office Equipment","Furniture and Office Equipment"," _ "," _ "," _ "," _ "," _ "," _ "," _ "," _ "," _ "," _ "," _ "," _ "," _ "," _ "," _ "," _ "," _ "," _ "," _ "," _ ",null,"C","_",null,null,8,83,"Planning and Development","Project Management Unit",null,"_","_","_","_","_",0,0,0,0,0,0,0,0,0,0,0,0,0,0]
["C0006-37/IL65531/F0002/X006/R3648/001/CONTRA","C0006-37/IL65531/F0002/X006/R3648/001/CONTRA",249260,45409,"Liabilities:Current Liabilities:Trade and Other Payable Exchange Transactions:Payables and Accruals : Contractors:Withdrawals","IL",2100,"Community and public safety / Community and social services / Community Halls and Facilities",2106,"Community and public safety / Community and social services / Community Halls and Facilities"," _"," _"," _ "," _ ","_",2080,"Funded by Internally generated funds",380,"Current liabilities / Trade and other payables from exchange transactions","_","_"," _ ",null," _ ","CASH FLOW FROM OPERATING ACTIVITIES / Payments / Suppliers and employees"," _ ",null," _ ","Cash Payments by Type / Contracted services","_","_","_","_"," _ "," _ "," _ "," _ ",null," _ "," _ ","_","_","_","_",null,null,1510,1510,"Machinery and Equipment","Machinery and Equipment"," _ "," _ "," _ "," _ "," _ "," _ "," _ "," _ "," _ "," _ "," _ "," _ "," _ "," _ "," _ "," _ ",361,"Trade and other payables / Trade and other payables from exchange transactions",361,"Trade and other payables / Trade and other payables from exchange transactions",null,"C","_",null,null,4,43,"Community and social services","Community Halls and Facilities",null,"_","_","_","_","_",0,0,0,0,0,0,0,0,0,0,0,0,0,0]
["C0006-31/IA10375/F0002/X122/R0100/001/CONTRA","C0006-31/IA10375/F0002/X122/R0100/001/CONTRA",265482,45047,"Assets:Current Assets:VAT Receivable:Input Tax Accrual:Recognised","IA",2200,"Community and public safety / Sport and recreation / Beaches and Jetties",2201,"Community and public safety / Sport and recreation / Beaches and Jetties"," _"," _"," _ "," _ ","_",2080,"Funded by Internally generated funds",170,"Current assets / VAT","_","_"," _ "," _ "," _ "," _ "," _ "," _ "," _ "," _ ",1003,"Statutory requirements",1003,"Statutory requirements"," _ "," _ "," _ "," _ ",null," _ "," _ ","_","_","_","_",null,null,1510,1510,"Machinery and Equipment","Machinery and Equipment"," _ "," _ "," _ "," _ "," _ "," _ "," _ "," _ "," _ "," _ "," _ "," _ "," _ "," _ "," _ "," _ "," _ "," _ "," _ "," _ ",null,"C","_",null,null,5,55,"Sport and Recreation","Beaches and Jetties",null,"_","_","_","_","_",23478,23478,0,0,0,0,0,0,0,0,0,0,0,0]
["C0006-13/IA10370/F0002/X128/R0100/001/CONTRA","C0006-13/IA10370/F0002/X128/R0100/001/CONTRA",250997,44184,"Assets:Current Assets:VAT Receivable:Input Tax Capital:Recognised","IA",2200,"Community and public safety / Sport and recreation / Recreational Facilities",2204,"Community and public safety / Sport and recreation / Recreational Facilities"," _"," _"," _ "," _ ","_",2080,"Funded by Internally generated funds",170,"Current assets / VAT","_","_"," _ "," _ "," _ "," _ "," _ "," _ "," _ "," _ ",1003,"Statutory requirements",1003,"Statutory requirements"," _ "," _ "," _ "," _ ",null," _ "," _ ","_","_","_","_",null,null,1510,1510,"Machinery and Equipment","Machinery and Equipment"," _ "," _ "," _ "," _ "," _ "," _ "," _ "," _ "," _ "," _ "," _ "," _ "," _ "," _ "," _ "," _ "," _ "," _ "," _ "," _ ",null,"C","_",null,null,5,53,"Sport and Recreation","Recreational Facilities",null,"_","_","_","_","_",0,0,0,0,0,0,0,0,0,0,0,0,0,0]
["C0006-37/IA10376/F0002/X006/R3648/001/CONTRA","C0006-37/IA10376/F0002/X006/R3648/001/CONTRA",261944,45410,"Assets:Current Assets:VAT Receivable:Input Tax Accrual:Transfers","IA",2100,"Community and public safety / Community and social services / Community Halls and Facilities",2106,"Community and public safety / Community and social services / Community Halls and Facilities"," _"," _"," _ "," _ ","_",2080,"Funded by Internally generated funds",170,"Current assets / VAT","_","_"," _ "," _ "," _ "," _ "," _ "," _ "," _ "," _ ",1003,"Statutory requirements",1003,"Statutory requirements"," _ "," _ "," _ "," _ ",null," _ "," _ ","_","_","_","_",null,null,1510,1510,"Machinery and Equipment","Machinery and Equipment"," _ "," _ "," _ "," _ "," _ "," _ "," _ "," _ "," _ "," _ "," _ "," _ "," _ "," _ "," _ "," _ "," _ "," _ "," _ "," _ ",null,"C","_",null,null,4,43,"Community and social services","Community Halls and Facilities",null,"_","_","_","_","_",0,0,0,0,0,0,0,0,0,0,0,0,0,0]
["C0007-12/IA06282/F0002/X116/R0100/001/TEC2","C0007-12/IA06282/F0002/X116/R0100/001/TEC2",211982,31818,"Assets:Non-current Assets:Property, Plant and Equipment:Cost Model:Machinery and Equipment:Future Use:Cost:Acquisitions","IA",3200,"Economic and environmental services / Road transport / Roads",3205,"Economic and environmental services / Road transport / Roads"," _"," _"," _ "," _ ","CE",2080,"Funded by Internally generated funds",230,"Non current assets / Property, plant and equipment","_","_"," _ "," _ "," _ "," _ "," _ "," _ "," _ "," _ ","_","_","_","_",1510,"Machinery and Equipment",1510,"Machinery and Equipment",null," _ "," _ ","_","_","_","_",null,null,1530,1530,"Transport Assets","Transport Assets"," _ "," _ "," _ "," _ "," _ "," _ "," _ "," _ "," _ "," _ "," _ "," _ "," _ "," _ "," _ "," _ ",241,"Property, plant and equipment (PPE) / PPE at cost/valuation (excl. finance leases)",241,"Property, plant and equipment (PPE) / PPE at cost/valuation (excl. finance leases)",null,"C","_",null,null,9,91,"Road transport","Roads",null,"_","_","_","_","_",0,0,0,0,0,0,0,0,0,0,0,0,0,0]
["C0007-21/IA10373/F0002/X098/R0100/001/CONTRA","C0007-21/IA10373/F0002/X098/R0100/001/CONTRA",327472,46642,"Assets:Current Assets:VAT Receivable:VAT Control (Receivable):Transfers","IA",3100,"Economic and environmental services / Planning and development / Economic Development/Planning",3105,"Economic and environmental services / Planning and development / Economic Development/Planning"," _"," _"," _ "," _ ","_",2080,"Funded by Internally generated funds",170,"Current assets / VAT","_","_"," _ "," _ "," _ "," _ "," _ "," _ "," _ "," _ ",1003,"Statutory requirements",1003,"Statutory requirements"," _ "," _ "," _ "," _ ",null," _ "," _ ","_","_","_","_",null,null,1530,1530,"Transport Assets","Transport Assets"," _ "," _ "," _ "," _ "," _ "," _ "," _ "," _ "," _ "," _ "," _ "," _ "," _ "," _ "," _ "," _ "," _ "," _ "," _ "," _ ",null,"C","_",null,null,8,82,"Planning and Development","Economic Development/Planning",null,"_","_","_","_","_",78261,137880,0,0,0,0,0,0,0,0,0,0,0,0]
["C0007-2/IL65531/F0002/X120/R0100/001/CONTRA","C0007-2/IL65531/F0002/X120/R0100/001/CONTRA",250173,39990,"Liabilities:Current Liabilities:Trade and Other Payable Exchange Transactions:Payables and Accruals : Contractors:Withdrawals","IL",3200,"Economic and environmental services / Road transport / Roads",3205,"Economic and environmental services / Road transport / Roads"," _"," _"," _ "," _ ","_",2080,"Funded by Internally generated funds",380,"Current liabilities / Trade and other payables from exchange transactions","_","_"," _ ",null," _ ","CASH FLOW FROM OPERATING ACTIVITIES / Payments / Suppliers and employees"," _ ",null," _ ","Cash Payments by Type / Contracted services","_","_","_","_"," _ "," _ "," _ "," _ ",null," _ "," _ ","_","_","_","_",null,null,1530,1530,"Transport Assets","Transport Assets"," _ "," _ "," _ "," _ "," _ "," _ "," _ "," _ "," _ "," _ "," _ "," _ "," _ "," _ "," _ "," _ ",361,"Trade and other payables / Trade and other payables from exchange transactions",361,"Trade and other payables / Trade and other payables from exchange transactions",null,"C","_",null,null,9,91,"Road transport","Roads",null,"_","_","_","_","_",0,0,0,0,0,0,0,0,0,0,0,0,0,0]
["C0007-6/IA10376/F0002/X097/R0100/001/CONTRA","C0007-6/IA10376/F0002/X097/R0100/001/CONTRA",264069,44296,"Assets:Current Assets:VAT Receivable:Input Tax Accrual:Transfers","IA",3100,"Economic and environmental services / Planning and development / Development Facilitation",3104,"Economic and environmental services / Planning and development / Development Facilitation"," _"," _"," _ "," _ ","_",2080,"Funded by Internally generated funds",170,"Current assets / VAT","_","_"," _ "," _ "," _ "," _ "," _ "," _ "," _ "," _ ",1003,"Statutory requirements",1003,"Statutory requirements"," _ "," _ "," _ "," _ ",null," _ "," _ ","_","_","_","_",null,null,1530,1530,"Transport Assets","Transport Assets"," _ "," _ "," _ "," _ "," _ "," _ "," _ "," _ "," _ "," _ "," _ "," _ "," _ "," _ "," _ "," _ "," _ "," _ "," _ "," _ ",null,"C","_",null,null,8,86,"Planning and Development","Development Facilitation",null,"_","_","_","_","_",0,0,0,0,0,0,0,0,0,0,0,0,0,0]
["C0040-8/IA10370/F0791/X116/R0100/001/CONTRA","C0040-8/IA10370/F0791/X116/R0100/001/CONTRA",250275,40973,"Assets:Current Assets:VAT Receivable:Input Tax Capital:Recognised","IA",3200,"Economic and environmental services / Road transport / Roads",3205,"Economic and environmental services / Road transport / Roads"," _"," _"," _ "," _ ","_",2010,"Funded by National Government",170,"Current assets / VAT","_","_"," _ "," _ "," _ "," _ "," _ "," _ "," _ "," _ ",1003,"Statutory requirements",1003,"Statutory requirements"," _ "," _ "," _ "," _ ",null," _ "," _ ","_","_","_","_",null,null,120,120,"Infrastructure / Roads Infrastructure / Roads","Infrastructure / Roads Infrastructure / Roads"," _ "," _ "," _ "," _ "," _ "," _ "," _ "," _ "," _ "," _ "," _ "," _ "," _ "," _ "," _ "," _ "," _ "," _ "," _ "," _ ",null,"C","_",null,null,9,91,"Road transport","Roads",null,"_","_","_","_","_",0,0,0,0,0,0,0,0,0,0,0,0,0,0]
["C0007-8/IL65530/F0002/X019/R0100/001/CONTRA","C0007-8/IL65530/F0002/X019/R0100/001/CONTRA",251216,44920,"Liabilities:Current Liabilities:Trade and Other Payable Exchange Transactions:Payables and Accruals : Contractors:Deposits","IL",2100,"Community and public safety / Community and social services / Disaster Management",2109,"Community and public safety / Community and social services / Disaster Management"," _"," _"," _ "," _ ","_",2080,"Funded by Internally generated funds",380,"Current liabilities / Trade and other payables from exchange transactions","_","_"," _ "," _ "," _ "," _ "," _ "," _ "," _ "," _ ","_","_","_","_"," _ "," _ "," _ "," _ ",null," _ "," _ ","_","_","_","_",null,null,1530,1530,"Transport Assets","Transport Assets"," _ "," _ "," _ "," _ "," _ "," _ "," _ "," _ "," _ "," _ "," _ "," _ "," _ "," _ "," _ "," _ ",361,"Trade and other payables / Trade and other payables from exchange transactions",361,"Trade and other payables / Trade and other payables from exchange transactions",null,"C","_",null,null,4,47,"Community and social services","Disaster Management",null,"_","_","_","_","_",0,0,0,0,0,0,0,0,0,0,0,0,0,0]
["C0006-39/IA10376/F0002/X109/R0099/001/CONTRA","C0006-39/IA10376/F0002/X109/R0099/001/CONTRA",327673,46884,"Assets:Current Assets:VAT Receivable:Input Tax Accrual:Transfers","IA",2300,"Community and public safety / Public safety / Fire Fighting and Protection",2305,"Community and public safety / Public safety / Fire Fighting and Protection"," _"," _"," _ "," _ ","_",2080,"Funded by Internally generated funds",170,"Current assets / VAT","_","_"," _ "," _ "," _ "," _ "," _ "," _ "," _ "," _ ",1003,"Statutory requirements",1003,"Statutory requirements"," _ "," _ "," _ "," _ ",null," _ "," _ ","_","_","_","_",null,null,1510,1510,"Machinery and Equipment","Machinery and Equipment"," _ "," _ "," _ "," _ "," _ "," _ "," _ "," _ "," _ "," _ "," _ "," _ "," _ "," _ "," _ "," _ "," _ "," _ "," _ "," _ ",null,"C","_",null,null,4,410,"Community and social services","Fire Fighting and Protection",null,"_","_","_","_","_",0,0,0,0,0,0,0,0,0,0,0,0,0,0]
["C0040-11/IA10375/F0791/X116/R3650/001/CONTRA","C0040-11/IA10375/F0791/X116/R3650/001/CONTRA",265250,37829,"Assets:Current Assets:VAT Receivable:Input Tax Accrual:Recognised","IA",3200,"Economic and environmental services / Road transport / Roads",3205,"Economic and environmental services / Road transport / Roads"," _"," _"," _ "," _ ","_",2010,"Funded by National Government",170,"Current assets / VAT","_","_"," _ "," _ "," _ "," _ "," _ "," _ "," _ "," _ ",1003,"Statutory requirements",1003,"Statutory requirements"," _ "," _ "," _ "," _ ",null," _ "," _ ","_","_","_","_",null,null,120,120,"Infrastructure / Roads Infrastructure / Roads","Infrastructure / Roads Infrastructure / Roads"," _ "," _ "," _ "," _ "," _ "," _ "," _ "," _ "," _ "," _ "," _ "," _ "," _ "," _ "," _ "," _ "," _ "," _ "," _ "," _ ",null,"C","_",null,null,9,91,"Road transport","Roads",null,"_","_","_","_","_",0,0,0,0,0,0,0,0,0,0,0,0,0,0]
["C0006-4/IA10371/F0002/X127/R0100/001/CONTRA","C0006-4/IA10371/F0002/X127/R0100/001/CONTRA",265164,42815,"Assets:Current Assets:VAT Receivable:Input Tax Capital:Transfers","IA",2200,"Community and public safety / Sport and recreation / Community Parks (including Nurseries)",2203,"Community and public safety / Sport and recreation / Community Parks (including Nurseries)"," _"," _"," _ "," _ ","_",2080,"Funded by Internally generated funds",170,"Current assets / VAT","_","_"," _ "," _ "," _ "," _ "," _ "," _ "," _ "," _ ",1003,"Statutory requirements",1003,"Statutory requirements"," _ "," _ "," _ "," _ ",null," _ "," _ ","_","_","_","_",null,null,1510,1510,"Machinery and Equipment","Machinery and Equipment"," _ "," _ "," _ "," _ "," _ "," _ "," _ "," _ "," _ "," _ "," _ "," _ "," _ "," _ "," _ "," _ "," _ "," _ "," _ "," _ ",null,"C","_",null,null,5,51,"Sport and Recreation","Community Parks (including Nurseries)",null,"_","_","_","_","_",-13044,0,0,0,0,0,0,0,0,0,0,0,0,0]
["C0007-16/IL65531/F0002/X046/R0100/001/CONTRA","C0007-16/IL65531/F0002/X046/R0100/001/CONTRA",251326,45325,"Liabilities:Current Liabilities:Trade and Other Payable Exchange Transactions:Payables and Accruals : Contractors:Withdrawals","IL",1200,"Municipal governance and administration / Finance and administration / Administrative and Corporate Support",1201,"Municipal governance and administration / Finance and administration / Administrative and Corporate Support"," _"," _"," _ "," _ ","_",2080,"Funded by Internally generated funds",380,"Current liabilities / Trade and other payables from exchange transactions","_","_"," _ ",null," _ ","CASH FLOW FROM OPERATING ACTIVITIES / Payments / Suppliers and employees"," _ ",null," _ ","Cash Payments by Type / Contracted services","_","_","_","_"," _ "," _ "," _ "," _ ",null," _ "," _ ","_","_","_","_",null,null,1530,1530,"Transport Assets","Transport Assets"," _ "," _ "," _ "," _ "," _ "," _ "," _ "," _ "," _ "," _ "," _ "," _ "," _ "," _ "," _ "," _ ",361,"Trade and other payables / Trade and other payables from exchange transactions",361,"Trade and other payables / Trade and other payables from exchange transactions",null,"C","_",null,null,2,21,"Finance and administration","Administrative and Corporate Support",null,"_","_","_","_","_",0,0,0,0,0,0,0,0,0,0,0,0,0,0]
["C0006-32/IA10371/F0002/X035/R0100/001/CONTRA","C0006-32/IA10371/F0002/X035/R0100/001/CONTRA",266038,45178,"Assets:Current Assets:VAT Receivable:Input Tax Capital:Transfers","IA",4100,"Trading services / Energy sources / Electricity",4101,"Trading services / Energy sources / Electricity"," _"," _"," _ "," _ ","_",2080,"Funded by Internally generated funds",170,"Current assets / VAT","_","_"," _ "," _ "," _ "," _ "," _ "," _ "," _ "," _ ",1003,"Statutory requirements",1003,"Statutory requirements"," _ "," _ "," _ "," _ ",null," _ "," _ ","_","_","_","_",null,null,1510,1510,"Machinery and Equipment","Machinery and Equipment"," _ "," _ "," _ "," _ "," _ "," _ "," _ "," _ "," _ "," _ "," _ "," _ "," _ "," _ "," _ "," _ "," _ "," _ "," _ "," _ ",null,"C","_",null,null,10,101,"Energy sources","Electricity",null,"_","_","_","_","_",0,0,0,0,0,0,0,0,0,0,0,0,0,0]
["C0040-7/IA10371/F0002/X116/R3653/001/CONTRA","C0040-7/IA10371/F0002/X116/R3653/001/CONTRA",266303,39567,"Assets:Current Assets:VAT Receivable:Input Tax Capital:Transfers","IA",3200,"Economic and environmental services / Road transport / Roads",3205,"Economic and environmental services / Road transport / Roads"," _"," _"," _ "," _ ","_",2080,"Funded by Internally generated funds",170,"Current assets / VAT","_","_"," _ "," _ "," _ "," _ "," _ "," _ "," _ "," _ ",1003,"Statutory requirements",1003,"Statutory requirements"," _ "," _ "," _ "," _ ",null," _ "," _ ","_","_","_","_",null,null,120,120,"Infrastructure / Roads Infrastructure / Roads","Infrastructure / Roads Infrastructure / Roads"," _ "," _ "," _ "," _ "," _ "," _ "," _ "," _ "," _ "," _ "," _ "," _ "," _ "," _ "," _ "," _ "," _ "," _ "," _ "," _ ",null,"C","_",null,null,9,91,"Road transport","Roads",null,"_","_","_","_","_",0,0,0,0,0,0,0,0,0,0,0,0,0,0]
["C0152-1/IL65531/F0002/X032/R0099/001/CONTRA","C0152-1/IL65531/F0002/X032/R0099/001/CONTRA",328630,0,"Liabilities:Current Liabilities:Trade and Other Payable Exchange Transactions:Payables and Accruals : Contractors:Withdrawals","IL",4100,"Trading services / Energy sources / Electricity",4101,"Trading services / Energy sources / Electricity"," _"," _"," _ "," _ ","_",2080,"Funded by Internally generated funds",380,"Current liabilities / Trade and other payables from exchange transactions","_","_"," _ ",null," _ ","CASH FLOW FROM OPERATING ACTIVITIES / Payments / Suppliers and employees"," _ ",null," _ ","Cash Payments by Type / Contracted services","_","_","_","_"," _ "," _ "," _ "," _ ",null," _ "," _ ","_","_","_","_",null,null," _ "," _ "," _ "," _ "," _ "," _ "," _ "," _ "," _ "," _ "," _ "," _ "," _ "," _ "," _ "," _ ",290,"Infrastructure / Electrical Infrastructure / Capital Spares",290,"Infrastructure / Electrical Infrastructure / Capital Spares",361,"Trade and other payables / Trade and other payables from exchange transactions",361,"Trade and other payables / Trade and other payables from exchange transactions",null,"C","_",null,null,10,101,"Energy sources","Electricity",null,"_","_","_","_","_",0,0,0,0,0,0,0,0,0,0,0,0,0,0]
["C0069-1/IL65531/F0002/X047/R0100/001/CONTRA","C0069-1/IL65531/F0002/X047/R0100/001/CONTRA",250289,40560,"Liabilities:Current Liabilities:Trade and Other Payable Exchange Transactions:Payables and Accruals : Contractors:Withdrawals","IL",1200,"Municipal governance and administration / Finance and administration / Asset Management",1202,"Municipal governance and administration / Finance and administration / Asset Management"," _"," _"," _ "," _ ","_",2080,"Funded by Internally generated funds",380,"Current liabilities / Trade and other payables from exchange transactions","_","_"," _ ",null," _ ","CASH FLOW FROM OPERATING ACTIVITIES / Payments / Suppliers and employees"," _ ",null," _ ","Cash Payments by Type / Contracted services","_","_","_","_"," _ "," _ "," _ "," _ ",null," _ "," _ ","_","_","_","_",null,null," _ "," _ "," _ "," _ ",1490,"Furniture and Office Equipment"," _ "," _ ",1490," _ "," _ "," _ "," _ ","Furniture and Office Equipment"," _ "," _ "," _ "," _ "," _ "," _ ",361,"Trade and other payables / Trade and other payables from exchange transactions",361,"Trade and other payables / Trade and other payables from exchange transactions",null,"C","_",null,null,2,22,"Finance and administration","Asset Management",null,"_","_","_","_","_",0,0,0,0,0,0,0,0,0,0,0,0,0,0]
["C0100-2/IA02108/F0002/X032/R3649/001/CONTRA","C0100-2/IA02108/F0002/X032/R3649/001/CONTRA",327684,46898,"Assets:Current Assets:Cash and Cash Equivalents:Cash at Bank:Bank Account:Specify (replace with account description):Withdrawals","IA",4100,"Trading services / Energy sources / Electricity",4101,"Trading services / Energy sources / Electricity"," _"," _"," _ "," _ ","_",2080,"Funded by Internally generated funds",120,"Current assets / Cash and cash equivalents","_","_"," _ ",310," _ ","Other Cash Flows/Payments by Type / Capital assets"," _ ",510," _ ","Capital assets","_","_","_","_"," _ "," _ "," _ "," _ ",null," _ "," _ ","_","_","_","_",null,null," _ "," _ "," _ "," _ ",270,"Infrastructure / Electrical Infrastructure / MV Networks"," _ "," _ ",270," _ "," _ "," _ "," _ ","Infrastructure / Electrical Infrastructure / MV Networks"," _ "," _ "," _ "," _ "," _ "," _ "," _ "," _ "," _ "," _ ","W","C","_",null,null,10,101,"Energy sources","Electricity",null,"_","_","_","_","_",-500000,-500000,0,0,0,0,0,0,0,0,0,0,0,0]
["C0230-11/IA10370/F0002/X006/R3640/001/CONTRA","C0230-11/IA10370/F0002/X006/R3640/001/CONTRA",328272,47173,"Assets:Current Assets:VAT Receivable:Input Tax Capital:Recognised","IA",2100,"Community and public safety / Community and social services / Community Halls and Facilities",2106,"Community and public safety / Community and social services / Community Halls and Facilities"," _"," _"," _ "," _ ","_",2080,"Funded by Internally generated funds",170,"Current assets / VAT","_","_"," _ "," _ "," _ "," _ "," _ "," _ "," _ "," _ ",1003,"Statutory requirements",1003,"Statutory requirements"," _ "," _ "," _ "," _ ",null," _ "," _ ","_","_","_","_",null,null,790,790,"Community Assets / Community Facilities / Halls","Community Assets / Community Facilities / Halls"," _ "," _ "," _ "," _ "," _ "," _ "," _ "," _ "," _ "," _ "," _ "," _ "," _ "," _ "," _ "," _ "," _ "," _ "," _ "," _ ",null,"C","_",null,null,4,43,"Community and social services","Community Halls and Facilities",null,"_","_","_","_","_",32609,32609,0,0,0,0,0,0,0,0,0,0,0,0]
["C0086-1/IA10371/F0002/X044/R0100/001/CONTRA","C0086-1/IA10371/F0002/X044/R0100/001/CONTRA",262807,40117,"Assets:Current Assets:VAT Receivable:Input Tax Capital:Transfers","IA",1100,"Municipal governance and administration / Executive and council / Mayor and Council",1110,"Municipal governance and administration / Executive and council / Mayor and Council"," _"," _"," _ "," _ ","_",2080,"Funded by Internally generated funds",170,"Current assets / VAT","_","_"," _ "," _ "," _ "," _ "," _ "," _ "," _ "," _ ",1003,"Statutory requirements",1003,"Statutory requirements"," _ "," _ "," _ "," _ ",null," _ "," _ ","_","_","_","_",null,null,1430,1430,"Intangible Assets / Licences and Rights / Computer Software and Applications","Intangible Assets / Licences and Rights / Computer Software and Applications"," _ "," _ "," _ "," _ "," _ "," _ "," _ "," _ "," _ "," _ "," _ "," _ "," _ "," _ "," _ "," _ "," _ "," _ "," _ "," _ ",null,"C","_",null,null,1,11,"Executive and council","Mayor and Council",null,"_","_","_","_","_",0,0,0,0,0,0,0,0,0,0,0,0,0,0]
["C0120-19/IA01952/F0002/X116/R3646/001/TECH","C0120-19/IA01952/F0002/X116/R3646/001/TECH",317114,46194,"Assets:Non-current Assets:Construction Work-in-progress:Acquisitions:Outsourced","IA",3200,"Economic and environmental services / Road transport / Roads",3205,"Economic and environmental services / Road transport / Roads"," _"," _"," _ "," _ ","CE",2080,"Funded by Internally generated funds",230,"Non current assets / Property, plant and equipment","_","_"," _ "," _ "," _ "," _ "," _ "," _ "," _ "," _ ","_","_","_","_"," _ "," _ "," _ "," _ ",null," _ "," _ ","_","_","_","_",null,null," _ "," _ "," _ "," _ ",120,"Infrastructure / Roads Infrastructure / Roads"," _ "," _ ",120," _ "," _ "," _ "," _ ","Infrastructure / Roads Infrastructure / Roads"," _ "," _ "," _ "," _ "," _ "," _ ",241,"Property, plant and equipment (PPE) / PPE at cost/valuation (excl. finance leases)",241,"Property, plant and equipment (PPE) / PPE at cost/valuation (excl. finance leases)",null,"C","_",null,null,9,91,"Road transport","Roads",1000,"_","_","_","_","_",0,0,0,0,0,0,0,0,0,0,0,0,0,0]
["C0245-13/IA00032/F0002/X122/R3639/001/COMM","C0245-13/IA00032/F0002/X122/R3639/001/COMM",171472,29272,"Assets:Non-current Assets:Property, Plant and Equipment:Cost Model:Community Assets:Cost:Acquisitions","IA",2200,"Community and public safety / Sport and recreation / Beaches and Jetties",2201,"Community and public safety / Sport and recreation / Beaches and Jetties"," _"," _"," _ "," _ ","CE",2080,"Funded by Internally generated funds",230,"Non current assets / Property, plant and equipment","_","_"," _ "," _ "," _ "," _ "," _ "," _ "," _ "," _ ","_","_","_","_",770,"Community Assets",770,"Community Assets",null," _ "," _ ","_","_","_","_",null,null,1030,1030,"Community Assets / Sport and Recreation Facilities / Outdoor Facilities","Community Assets / Sport and Recreation Facilities / Outdoor Facilities"," _ "," _ "," _ "," _ "," _ "," _ "," _ "," _ "," _ "," _ "," _ "," _ "," _ "," _ "," _ "," _ ",241,"Property, plant and equipment (PPE) / PPE at cost/valuation (excl. finance leases)",241,"Property, plant and equipment (PPE) / PPE at cost/valuation (excl. finance leases)",null,"C","_",null,null,5,55,"Sport and Recreation","Beaches and Jetties",null,"_","_","_","_","_",0,0,0,0,0,0,0,0,0,0,0,0,0,0]
["C0120-10/IA10375/F0002/X116/R3645/001/CONTRA","C0120-10/IA10375/F0002/X116/R3645/001/CONTRA",262076,45491,"Assets:Current Assets:VAT Receivable:Input Tax Accrual:Recognised","IA",3200,"Economic and environmental services / Road transport / Roads",3205,"Economic and environmental services / Road transport / Roads"," _"," _"," _ "," _ ","_",2080,"Funded by Internally generated funds",170,"Current assets / VAT","_","_"," _ "," _ "," _ "," _ "," _ "," _ "," _ "," _ ",1003,"Statutory requirements",1003,"Statutory requirements"," _ "," _ "," _ "," _ ",null," _ "," _ ","_","_","_","_",null,null," _ "," _ "," _ "," _ ",120,"Infrastructure / Roads Infrastructure / Roads"," _ "," _ ",120," _ "," _ "," _ "," _ ","Infrastructure / Roads Infrastructure / Roads"," _ "," _ "," _ "," _ "," _ "," _ "," _ "," _ "," _ "," _ ",null,"C","_",null,null,9,91,"Road transport","Roads",null,"_","_","_","_","_",0,0,0,0,0,0,0,0,0,0,0,0,0,0]
["C0072-1/IA10376/F8265/X047/R0100/001/CONTRA","C0072-1/IA10376/F8265/X047/R0100/001/CONTRA",263624,40520,"Assets:Current Assets:VAT Receivable:Input Tax Accrual:Transfers","IA",1200,"Municipal governance and administration / Finance and administration / Asset Management",1202,"Municipal governance and administration / Finance and administration / Asset Management"," _"," _"," _ "," _ ","_",2070,"Funded by Borrowing",170,"Current assets / VAT","_","_"," _ "," _ "," _ "," _ "," _ "," _ "," _ "," _ ",1003,"Statutory requirements",1003,"Statutory requirements"," _ "," _ "," _ "," _ ",null," _ "," _ ","_","_","_","_",null,null," _ "," _ "," _ "," _ ",1530,"Transport Assets"," _ "," _ ",1530," _ "," _ "," _ "," _ ","Transport Assets"," _ "," _ "," _ "," _ "," _ "," _ "," _ "," _ "," _ "," _ ",null,"C","_",null,null,2,22,"Finance and administration","Asset Management",null,"_","_","_","_","_",0,0,0,0,0,0,0,0,0,0,0,0,0,0]
["C0270-1/IA00032/F0002/X004/R0100/001/COMM","C0270-1/IA00032/F0002/X004/R0100/001/COMM",112498,23205,"Assets:Non-current Assets:Property, Plant and Equipment:Cost Model:Community Assets:Cost:Acquisitions","IA",2100,"Community and public safety / Community and social services / Cemeteries, Funeral Parlours and Crematoriums",2104,"Community and public safety / Community and social services / Cemeteries, Funeral Parlours and Crematoriums"," _"," _"," _ "," _ ","CE",2080,"Funded by Internally generated funds",230,"Non current assets / Property, plant and equipment","_","_"," _ "," _ "," _ "," _ "," _ "," _ "," _ "," _ ","_","_","_","_",770,"Community Assets",770,"Community Assets",null," _ "," _ ","_","_","_","_",null,null," _ "," _ "," _ "," _ ",890,"Community Assets / Community Facilities / Cemeteries/Crematoria"," _ "," _ ",890," _ "," _ "," _ "," _ ","Community Assets / Community Facilities / Cemeteries/Crematoria"," _ "," _ "," _ "," _ "," _ "," _ ",241,"Property, plant and equipment (PPE) / PPE at cost/valuation (excl. finance leases)",241,"Property, plant and equipment (PPE) / PPE at cost/valuation (excl. finance leases)",null,"C","_",null,null,4,42,"Community and social services","Cemeteries, Funeral Parlours and Crematoriums",null,"_","_","_","_","_",0,0,0,0,0,0,0,0,0,0,0,0,0,0]
["C0007-15/IA02105/F0002/X049/R0100/001/CONTRA","C0007-15/IA02105/F0002/X049/R0100/001/CONTRA",251341,45310,"Assets:Current Assets:Cash and Cash Equivalents:Cash at Bank:Bank Account:Specify (replace with account description):Deposits","IA",1200,"Municipal governance and administration / Finance and administration / Finance",1204,"Municipal governance and administration / Finance and administration / Finance"," _"," _"," _ "," _ ","_",2080,"Funded by Internally generated funds",120,"Current assets / Cash and cash equivalents","_","_"," _ "," _ "," _ "," _ "," _ "," _ "," _ "," _ ","_","_","_","_"," _ "," _ "," _ "," _ ",null," _ "," _ ","_","_","_","_",null,null,1530,1530,"Transport Assets","Transport Assets"," _ "," _ "," _ "," _ "," _ "," _ "," _ "," _ "," _ "," _ "," _ "," _ "," _ "," _ "," _ "," _ "," _ "," _ "," _ "," _ ","D","C","_",null,null,2,23,"Finance and administration","Finance",null,"_","_","_","_","_",0,0,0,0,0,0,0,0,0,0,0,0,0,0]
["C0230-7/IA00032/F0002/X006/R3654/001/TECH_ACQ","C0230-7/IA00032/F0002/X006/R3654/001/TECH_ACQ",328486,47387,"Assets:Non-current Assets:Property, Plant and Equipment:Cost Model:Community Assets:Cost:Acquisitions","IA",2100,"Community and public safety / Community and social services / Community Halls and Facilities",2106,"Community and public safety / Community and social services / Community Halls and Facilities"," _"," _"," _ "," _ ","CE",2080,"Funded by Internally generated funds",230,"Non current assets / Property, plant and equipment","_","_"," _ "," _ "," _ "," _ "," _ "," _ "," _ "," _ ","_","_","_","_",770,"Community Assets",770,"Community Assets",null," _ "," _ ","_","_","_","_",null,null,790,790,"Community Assets / Community Facilities / Halls","Community Assets / Community Facilities / Halls"," _ "," _ "," _ "," _ "," _ "," _ "," _ "," _ "," _ "," _ "," _ "," _ "," _ "," _ "," _ "," _ ",241,"Property, plant and equipment (PPE) / PPE at cost/valuation (excl. finance leases)",241,"Property, plant and equipment (PPE) / PPE at cost/valuation (excl. finance leases)",null,"C","_",null,null,4,43,"Community and social services","Community Halls and Facilities",null,"_","_","_","_","_",217391,521739,0,0,0,0,0,0,0,0,0,0,0,0]
["C0177-10/IA10370/F0002/X116/R3653/001/CONTRA","C0177-10/IA10370/F0002/X116/R3653/001/CONTRA",249780,38039,"Assets:Current Assets:VAT Receivable:Input Tax Capital:Recognised","IA",3200,"Economic and environmental services / Road transport / Roads",3205,"Economic and environmental services / Road transport / Roads"," _"," _"," _ "," _ ","_",2080,"Funded by Internally generated funds",170,"Current assets / VAT","_","_"," _ "," _ "," _ "," _ "," _ "," _ "," _ "," _ ",1003,"Statutory requirements",1003,"Statutory requirements"," _ "," _ "," _ "," _ ",null," _ "," _ ","_","_","_","_",null,null," _ "," _ "," _ "," _ "," _ "," _ "," _ "," _ "," _ "," _ "," _ "," _ "," _ "," _ "," _ "," _ ",120,"Infrastructure / Roads Infrastructure / Roads",120,"Infrastructure / Roads Infrastructure / Roads"," _ "," _ "," _ "," _ ",null,"C","_",null,null,9,91,"Road transport","Roads",null,"_","_","_","_","_",0,0,0,0,0,0,0,0,0,0,0,0,0,0]
["C0177-26/IA02108/F0002/X116/R3652/001/CONTRA","C0177-26/IA02108/F0002/X116/R3652/001/CONTRA",251810,45592,"Assets:Current Assets:Cash and Cash Equivalents:Cash at Bank:Bank Account:Specify (replace with account description):Withdrawals","IA",3200,"Economic and environmental services / Road transport / Roads",3205,"Economic and environmental services / Road transport / Roads"," _"," _"," _ "," _ ","_",2080,"Funded by Internally generated funds",120,"Current assets / Cash and cash equivalents","_","_"," _ ",310," _ ","Other Cash Flows/Payments by Type / Capital assets"," _ ",510," _ ","Capital assets","_","_","_","_"," _ "," _ "," _ "," _ ",null," _ "," _ ","_","_","_","_",null,null," _ "," _ "," _ "," _ "," _ "," _ "," _ "," _ "," _ "," _ "," _ "," _ "," _ "," _ "," _ "," _ ",120,"Infrastructure / Roads Infrastructure / Roads",120,"Infrastructure / Roads Infrastructure / Roads"," _ "," _ "," _ "," _ ","W","C","_",null,null,9,91,"Road transport","Roads",null,"_","_","_","_","_",0,0,0,0,0,0,0,0,0,0,0,0,0,0]
["C0177-27/IA10371/F09679/X116/R3650/001/CONTRA","C0177-27/IA10371/F09679/X116/R3650/001/CONTRA",266601,36587,"Assets:Current Assets:VAT Receivable:Input Tax Capital:Transfers","IA",3200,"Economic and environmental services / Road transport / Roads",3205,"Economic and environmental services / Road transport / Roads"," _"," _"," _ "," _ ","_",2010,"Funded by National Government",170,"Current assets / VAT","_","_"," _ "," _ "," _ "," _ "," _ "," _ "," _ "," _ ",1003,"Statutory requirements",1003,"Statutory requirements"," _ "," _ "," _ "," _ ",null," _ "," _ ","_","_","_","_",null,null," _ "," _ "," _ "," _ "," _ "," _ "," _ "," _ "," _ "," _ "," _ "," _ "," _ "," _ "," _ "," _ ",120,"Infrastructure / Roads Infrastructure / Roads",120,"Infrastructure / Roads Infrastructure / Roads"," _ "," _ "," _ "," _ ",null,"C","_",null,null,9,91,"Road transport","Roads",null,"_","_","_","_","_",0,0,0,0,0,0,0,0,0,0,0,0,0,0]
["C0230-7/IA02108/F0002/X006/R3639/001/CONTRA","C0230-7/IA02108/F0002/X006/R3639/001/CONTRA",328591,0,"Assets:Current Assets:Cash and Cash Equivalents:Cash at Bank:Bank Account:Specify (replace with account description):Withdrawals","IA",2100,"Community and public safety / Community and social services / Community Halls and Facilities",2106,"Community and public safety / Community and social services / Community Halls and Facilities"," _"," _"," _ "," _ ","_",2080,"Funded by Internally generated funds",120,"Current assets / Cash and cash equivalents","_","_"," _ ",310," _ ","Other Cash Flows/Payments by Type / Capital assets"," _ ",510," _ ","Capital assets","_","_","_","_"," _ "," _ "," _ "," _ ",null," _ "," _ ","_","_","_","_",null,null,790,790,"Community Assets / Community Facilities / Halls","Community Assets / Community Facilities / Halls"," _ "," _ "," _ "," _ "," _ "," _ "," _ "," _ "," _ "," _ "," _ "," _ "," _ "," _ "," _ "," _ "," _ "," _ "," _ "," _ ","W","C","_",null,null,4,43,"Community and social services","Community Halls and Facilities",null,"_","_","_","_","_",0,-300000,0,0,0,0,0,0,0,0,0,0,0,0]
["C0225-1/IL65531/F0002/X099/R0100/001/CONTRA","C0225-1/IL65531/F0002/X099/R0100/001/CONTRA",249395,36841,"Liabilities:Current Liabilities:Trade and Other Payable Exchange Transactions:Payables and Accruals : Contractors:Withdrawals","IL",3100,"Economic and environmental services / Planning and development / Project Management Unit",3108,"Economic and environmental services / Planning and development / Project Management Unit"," _"," _"," _ "," _ ","_",2080,"Funded by Internally generated funds",380,"Current liabilities / Trade and other payables from exchange transactions","_","_"," _ ",null," _ ","CASH FLOW FROM OPERATING ACTIVITIES / Payments / Suppliers and employees"," _ ",null," _ ","Cash Payments by Type / Contracted services","_","_","_","_"," _ "," _ "," _ "," _ ",null," _ "," _ ","_","_","_","_",null,null,800,800,"Community Assets / Community Facilities / Centres","Community Assets / Community Facilities / Centres"," _ "," _ "," _ "," _ "," _ "," _ "," _ "," _ "," _ "," _ "," _ "," _ "," _ "," _ "," _ "," _ ",361,"Trade and other payables / Trade and other payables from exchange transactions",361,"Trade and other payables / Trade and other payables from exchange transactions",null,"C","_",null,null,8,83,"Planning and Development","Project Management Unit",null,"_","_","_","_","_",199997,1119964,0,0,0,0,0,0,0,0,0,0,0,0]
["C0231-1/IA00022/F0002/X047/R0099/001/FIN2","C0231-1/IA00022/F0002/X047/R0099/001/FIN2",112290,22953,"Assets:Non-current Assets:Property, Plant and Equipment:Cost Model:Community Assets:Accumulated Depreciation:Depreciation","IA",1200,"Municipal governance and administration / Finance and administration / Asset Management",1202,"Municipal governance and administration / Finance and administration / Asset Management"," _"," _"," _ "," _ ","_",2080,"Funded by Internally generated funds",230,"Non current assets / Property, plant and equipment","_","_"," _ "," _ "," _ "," _ "," _ "," _ "," _ "," _ ","_","_","_","_",770,"Community Assets",770,"Community Assets",null," _ "," _ ","_","_","_","_",null,null,880,880,"Community Assets / Community Facilities / Libraries","Community Assets / Community Facilities / Libraries"," _ "," _ "," _ "," _ "," _ "," _ "," _ "," _ "," _ "," _ "," _ "," _ "," _ "," _ "," _ "," _ ",243,"Property, plant and equipment (PPE) / Less: Accumulated depreciation",243,"Property, plant and equipment (PPE) / Less: Accumulated depreciation",null,"C","_",null,null,2,22,"Finance and administration","Asset Management",null,"_","_","_","_","_",0,0,0,0,0,0,0,0,0,0,0,0,0,0]
["C0231-1/IA00022/F0002/X006/R0100/001/COMM","C0231-1/IA00022/F0002/X006/R0100/001/COMM",91894,22971,"Assets:Non-current Assets:Property, Plant and Equipment:Cost Model:Community Assets:Accumulated Depreciation:Depreciation","IA",2100,"Community and public safety / Community and social services / Community Halls and Facilities",2106,"Community and public safety / Community and social services / Community Halls and Facilities"," _"," _"," _ "," _ ","_",2080,"Funded by Internally generated funds",230,"Non current assets / Property, plant and equipment","_","_"," _ "," _ "," _ "," _ "," _ "," _ "," _ "," _ ","_","_","_","_",770,"Community Assets",770,"Community Assets",null," _ "," _ ","_","_","_","_",null,null,880,880,"Community Assets / Community Facilities / Libraries","Community Assets / Community Facilities / Libraries"," _ "," _ "," _ "," _ "," _ "," _ "," _ "," _ "," _ "," _ "," _ "," _ "," _ "," _ "," _ "," _ ",243,"Property, plant and equipment (PPE) / Less: Accumulated depreciation",243,"Property, plant and equipment (PPE) / Less: Accumulated depreciation",null,"C","_",null,null,4,43,"Community and social services","Community Halls and Facilities",null,"_","_","_","_","_",0,0,0,0,0,0,0,0,0,0,0,0,0,0]
["C0230-6/IA10373/F0791/X049/R0100/001/CONTRA","C0230-6/IA10373/F0791/X049/R0100/001/CONTRA",262776,40788,"Assets:Current Assets:VAT Receivable:VAT Control (Receivable):Transfers","IA",1200,"Municipal governance and administration / Finance and administration / Finance",1204,"Municipal governance and administration / Finance and administration / Finance"," _"," _"," _ "," _ ","_",2010,"Funded by National Government",170,"Current assets / VAT","_","_"," _ "," _ "," _ "," _ "," _ "," _ "," _ "," _ ",1003,"Statutory requirements",1003,"Statutory requirements"," _ "," _ "," _ "," _ ",null," _ "," _ ","_","_","_","_",null,null,790,790,"Community Assets / Community Facilities / Halls","Community Assets / Community Facilities / Halls"," _ "," _ "," _ "," _ "," _ "," _ "," _ "," _ "," _ "," _ "," _ "," _ "," _ "," _ "," _ "," _ "," _ "," _ "," _ "," _ ",null,"C","_",null,null,2,23,"Finance and administration","Finance",null,"_","_","_","_","_",0,0,0,0,0,0,0,0,0,0,0,0,0,0]
["C0209-1/IZ00007/F0002/X047/R0100/001/CONTRA","C0209-1/IZ00007/F0002/X047/R0100/001/CONTRA",263466,40437,"Gains and Losses:Impairment Loss:Intangible Assets","IE",1200,"Municipal governance and administration / Finance and administration / Asset Management",1202,"Municipal governance and administration / Finance and administration / Asset Management",3600,"Expenditure / Depreciation and amortisation",2303,"Expenditure / Depreciation and amortisation","_",2080,"Funded by Internally generated funds"," _ "," _ "," _ "," _ "," _ "," _ "," _ "," _ "," _ "," _ "," _ "," _ ","_","_","_","_"," _ "," _ "," _ "," _ ",null,2303,"Depreciation and asset impairment ","_","_","_","_",null,null," _ "," _ "," _ "," _ ",1380,"Intangible Assets / Servitudes"," _ "," _ ",1380," _ "," _ "," _ "," _ ","Intangible Assets / Servitudes"," _ "," _ "," _ "," _ "," _ "," _ "," _ "," _ "," _ "," _ ",null,"C","_",null,null,2,22,"Finance and administration","Asset Management",null,"_","_","_","_","_",0,0,0,0,0,0,0,0,0,0,0,0,0,0]
["C0316-1/IA02105/F0002/X006/R0100/001/CONTRA","C0316-1/IA02105/F0002/X006/R0100/001/CONTRA",251379,45434,"Assets:Current Assets:Cash and Cash Equivalents:Cash at Bank:Bank Account:Specify (replace with account description):Deposits","IA",2100,"Community and public safety / Community and social services / Community Halls and Facilities",2106,"Community and public safety / Community and social services / Community Halls and Facilities"," _"," _"," _ "," _ ","_",2080,"Funded by Internally generated funds",120,"Current assets / Cash and cash equivalents","_","_"," _ "," _ "," _ "," _ "," _ "," _ "," _ "," _ ","_","_","_","_"," _ "," _ "," _ "," _ ",null," _ "," _ ","_","_","_","_",null,null," _ "," _ "," _ "," _ "," _ "," _ "," _ "," _ "," _ "," _ "," _ "," _ "," _ "," _ "," _ "," _ ",800,"Community Assets / Community Facilities / Centres",800,"Community Assets / Community Facilities / Centres"," _ "," _ "," _ "," _ ","D","C","_",null,null,4,43,"Community and social services","Community Halls and Facilities",null,"_","_","_","_","_",0,0,0,0,0,0,0,0,0,0,0,0,0,0]
["C0177-27/IA10376/F0002/X116/R3654/001/CONTRA","C0177-27/IA10376/F0002/X116/R3654/001/CONTRA",262178,45601,"Assets:Current Assets:VAT Receivable:Input Tax Accrual:Transfers","IA",3200,"Economic and environmental services / Road transport / Roads",3205,"Economic and environmental services / Road transport / Roads"," _"," _"," _ "," _ ","_",2080,"Funded by Internally generated funds",170,"Current assets / VAT","_","_"," _ "," _ "," _ "," _ "," _ "," _ "," _ "," _ ",1003,"Statutory requirements",1003,"Statutory requirements"," _ "," _ "," _ "," _ ",null," _ "," _ ","_","_","_","_",null,null," _ "," _ "," _ "," _ "," _ "," _ "," _ "," _ "," _ "," _ "," _ "," _ "," _ "," _ "," _ "," _ ",120,"Infrastructure / Roads Infrastructure / Roads",120,"Infrastructure / Roads Infrastructure / Roads"," _ "," _ "," _ "," _ ",null,"C","_",null,null,9,91,"Road transport","Roads",null,"_","_","_","_","_",0,0,0,0,0,0,0,0,0,0,0,0,0,0]
["C0177-26/IL65530/F09679/X116/R3641/001/CONTRA","C0177-26/IL65530/F09679/X116/R3641/001/CONTRA",266589,36589,"Liabilities:Current Liabilities:Trade and Other Payable Exchange Transactions:Payables and Accruals : Contractors:Deposits","IL",3200,"Economic and environmental services / Road transport / Roads",3205,"Economic and environmental services / Road transport / Roads"," _"," _"," _ "," _ ","_",2010,"Funded by National Government",380,"Current liabilities / Trade and other payables from exchange transactions","_","_"," _ "," _ "," _ "," _ "," _ "," _ "," _ "," _ ","_","_","_","_"," _ "," _ "," _ "," _ ",null," _ "," _ ","_","_","_","_",null,null," _ "," _ "," _ "," _ "," _ "," _ "," _ "," _ "," _ "," _ "," _ "," _ "," _ "," _ "," _ "," _ ",120,"Infrastructure / Roads Infrastructure / Roads",120,"Infrastructure / Roads Infrastructure / Roads",361,"Trade and other payables / Trade and other payables from exchange transactions",361,"Trade and other payables / Trade and other payables from exchange transactions",null,"C","_",null,null,9,91,"Road transport","Roads",null,"_","_","_","_","_",0,0,0,0,0,0,0,0,0,0,0,0,0,0]
["C0224-1/IA10373/F0002/X004/R0100/001/CONTRA","C0224-1/IA10373/F0002/X004/R0100/001/CONTRA",265900,43259,"Assets:Current Assets:VAT Receivable:VAT Control (Receivable):Transfers","IA",2100,"Community and public safety / Community and social services / Cemeteries, Funeral Parlours and Crematoriums",2104,"Community and public safety / Community and social services / Cemeteries, Funeral Parlours and Crematoriums"," _"," _"," _ "," _ ","_",2080,"Funded by Internally generated funds",170,"Current assets / VAT","_","_"," _ "," _ "," _ "," _ "," _ "," _ "," _ "," _ ",1003,"Statutory requirements",1003,"Statutory requirements"," _ "," _ "," _ "," _ ",null," _ "," _ ","_","_","_","_",null,null,890,890,"Community Assets / Community Facilities / Cemeteries/Crematoria","Community Assets / Community Facilities / Cemeteries/Crematoria"," _ "," _ "," _ "," _ "," _ "," _ "," _ "," _ "," _ "," _ "," _ "," _ "," _ "," _ "," _ "," _ "," _ "," _ "," _ "," _ ",null,"C","_",null,null,4,42,"Community and social services","Cemeteries, Funeral Parlours and Crematoriums",null,"_","_","_","_","_",0,0,0,0,0,0,0,0,0,0,0,0,0,0]
["C0245-14/IL65530/F0002/X125/R3639/001/CONTRA","C0245-14/IL65530/F0002/X125/R3639/001/CONTRA",328216,47163,"Liabilities:Current Liabilities:Trade and Other Payable Exchange Transactions:Payables and Accruals : Contractors:Deposits","IL",2200,"Community and public safety / Sport and recreation / Sports Grounds and Stadiums",2205,"Community and public safety / Sport and recreation / Sports Grounds and Stadiums"," _"," _"," _ "," _ ","_",2080,"Funded by Internally generated funds",380,"Current liabilities / Trade and other payables from exchange transactions","_","_"," _ "," _ "," _ "," _ "," _ "," _ "," _ "," _ ","_","_","_","_"," _ "," _ "," _ "," _ ",null," _ "," _ ","_","_","_","_",null,null,1030,1030,"Community Assets / Sport and Recreation Facilities / Outdoor Facilities","Community Assets / Sport and Recreation Facilities / Outdoor Facilities"," _ "," _ "," _ "," _ "," _ "," _ "," _ "," _ "," _ "," _ "," _ "," _ "," _ "," _ "," _ "," _ ",361,"Trade and other payables / Trade and other payables from exchange transactions",361,"Trade and other payables / Trade and other payables from exchange transactions",null,"C","_",null,null,5,54,"Sport and Recreation","Sports Grounds and Stadiums",null,"_","_","_","_","_",-300000,-300000,0,0,0,0,0,0,0,0,0,0,0,0]
["C0245-6/IL65530/F0791/X005/R3650/001/CONTRA","C0245-6/IL65530/F0791/X005/R3650/001/CONTRA",249646,37579,"Liabilities:Current Liabilities:Trade and Other Payable Exchange Transactions:Payables and Accruals : Contractors:Deposits","IL",2100,"Community and public safety / Community and social services / Child Care Facilities",2105,"Community and public safety / Community and social services / Child Care Facilities"," _"," _"," _ "," _ ","_",2010,"Funded by National Government",380,"Current liabilities / Trade and other payables from exchange transactions","_","_"," _ "," _ "," _ "," _ "," _ "," _ "," _ "," _ ","_","_","_","_"," _ "," _ "," _ "," _ ",null," _ "," _ ","_","_","_","_",null,null,1030,1030,"Community Assets / Sport and Recreation Facilities / Outdoor Facilities","Community Assets / Sport and Recreation Facilities / Outdoor Facilities"," _ "," _ "," _ "," _ "," _ "," _ "," _ "," _ "," _ "," _ "," _ "," _ "," _ "," _ "," _ "," _ ",361,"Trade and other payables / Trade and other payables from exchange transactions",361,"Trade and other payables / Trade and other payables from exchange transactions",null,"C","_",null,null,4,49,"Community and social services","Child Care Facilities",null,"_","_","_","_","_",0,0,0,0,0,0,0,0,0,0,0,0,0,0]
["C0177-26/IA10373/F0002/X116/R3652/001/CONTRA","C0177-26/IA10373/F0002/X116/R3652/001/CONTRA",262172,45591,"Assets:Current Assets:VAT Receivable:VAT Control (Receivable):Transfers","IA",3200,"Economic and environmental services / Road transport / Roads",3205,"Economic and environmental services / Road transport / Roads"," _"," _"," _ "," _ ","_",2080,"Funded by Internally generated funds",170,"Current assets / VAT","_","_"," _ "," _ "," _ "," _ "," _ "," _ "," _ "," _ ",1003,"Statutory requirements",1003,"Statutory requirements"," _ "," _ "," _ "," _ ",null," _ "," _ ","_","_","_","_",null,null," _ "," _ "," _ "," _ "," _ "," _ "," _ "," _ "," _ "," _ "," _ "," _ "," _ "," _ "," _ "," _ ",120,"Infrastructure / Roads Infrastructure / Roads",120,"Infrastructure / Roads Infrastructure / Roads"," _ "," _ "," _ "," _ ",null,"C","_",null,null,9,91,"Road transport","Roads",null,"_","_","_","_","_",0,0,0,0,0,0,0,0,0,0,0,0,0,0]
["C0261-4/IA10375/F0002/X006/R3649/001/CONTRA","C0261-4/IA10375/F0002/X006/R3649/001/CONTRA",261919,45276,"Assets:Current Assets:VAT Receivable:Input Tax Accrual:Recognised","IA",2100,"Community and public safety / Community and social services / Community Halls and Facilities",2106,"Community and public safety / Community and social services / Community Halls and Facilities"," _"," _"," _ "," _ ","_",2080,"Funded by Internally generated funds",170,"Current assets / VAT","_","_"," _ "," _ "," _ "," _ "," _ "," _ "," _ "," _ ",1003,"Statutory requirements",1003,"Statutory requirements"," _ "," _ "," _ "," _ ",null," _ "," _ ","_","_","_","_",null,null,1200,1200,"Other assets / Operational Buildings / Municipal Offices","Other assets / Operational Buildings / Municipal Offices"," _ "," _ "," _ "," _ "," _ "," _ "," _ "," _ "," _ "," _ "," _ "," _ "," _ "," _ "," _ "," _ "," _ "," _ "," _ "," _ ",null,"C","_",null,null,4,43,"Community and social services","Community Halls and Facilities",null,"_","_","_","_","_",0,0,0,0,0,0,0,0,0,0,0,0,0,0]
["D0001/IA10079/F0001/X049/R0099/001/EDP","D0001/IA10079/F0001/X049/R0099/001/EDP",151056,26873,"Assets:Current Assets:Cash and Cash Equivalents:Cash at Bank:Bank Account:Specify (replace with account description):Opening Balance","IA",1200,"Municipal governance and administration / Finance and administration / Finance",1204,"Municipal governance and administration / Finance and administration / Finance"," _"," _"," _ "," _ ","_"," _"," _",120,"Current assets / Cash and cash equivalents","_","_"," _ ",420," _ ","Cash and cash Equivalents - Opening Balance"," _ ",560," _ ","Cash and cash Equivalents - Opening Balance","_","_","_","_"," _ "," _ "," _ "," _ ",null," _ "," _ ","_","_","_","_",null,null," _ "," _ "," _ "," _ "," _ "," _ "," _ "," _ "," _ "," _ "," _ "," _ "," _ "," _ "," _ "," _ "," _ "," _ "," _ "," _ "," _ "," _ "," _ "," _ ",null,"D","_",null,null,2,23,"Finance and administration","Finance",null,"_","_","_","_","_",0,0,0,0,0,0,0,0,0,0,0,0,0,0]
["C0261-4/IL53986/F0002/X099/R3649/001/TECH","C0261-4/IL53986/F0002/X099/R3649/001/TECH",316841,45784,"Liabilities:Current Liabilities:Trade and Other Payable Exchange Transactions:Retentions:Withdrawals","IL",3100,"Economic and environmental services / Planning and development / Project Management Unit",3108,"Economic and environmental services / Planning and development / Project Management Unit"," _"," _"," _ "," _ ","_",2080,"Funded by Internally generated funds",380,"Current liabilities / Trade and other payables from exchange transactions","_","_"," _ ",null," _ ","CASH FLOW FROM OPERATING ACTIVITIES / Payments / Suppliers and employees"," _ ",530," _ ","Other Cash Flows/Payments by Type / Other Cash Flows/Payments","_","_","_","_"," _ "," _ "," _ "," _ ",null," _ "," _ ","_","_","_","_",null,null,1200,1200,"Other assets / Operational Buildings / Municipal Offices","Other assets / Operational Buildings / Municipal Offices"," _ "," _ "," _ "," _ "," _ "," _ "," _ "," _ "," _ "," _ "," _ "," _ "," _ "," _ "," _ "," _ ",361,"Trade and other payables / Trade and other payables from exchange transactions",361,"Trade and other payables / Trade and other payables from exchange transactions",null,"C","_",null,null,8,83,"Planning and Development","Project Management Unit",null,"_","_","_","_","_",0,0,0,0,0,0,0,0,0,0,0,0,0,0]
["D0001/IA10376/F13636/X024/R0099/001/COMM","D0001/IA10376/F13636/X024/R0099/001/COMM",181867,29716,"Assets:Current Assets:VAT Receivable:Input Tax Accrual:Transfers","IA",2100,"Community and public safety / Community and social services / Libraries and Archives",2114,"Community and public safety / Community and social services / Libraries and Archives"," _"," _"," _ "," _ ","_"," _"," _",170,"Current assets / VAT","_","_"," _ "," _ "," _ "," _ "," _ "," _ "," _ "," _ ",1003,"Statutory requirements",1003,"Statutory requirements"," _ "," _ "," _ "," _ ",null," _ "," _ ","_","_","_","_",null,null," _ "," _ "," _ "," _ "," _ "," _ "," _ "," _ "," _ "," _ "," _ "," _ "," _ "," _ "," _ "," _ "," _ "," _ "," _ "," _ "," _ "," _ "," _ "," _ ",null,"D","_",null,null,4,44,"Community and social services","Libraries and Archives",null,"_","_","_","_","_",0,0,0,0,0,0,0,0,0,0,0,0,0,0]
["C0261-4/IA10371/F0002/X058/R0100/001/CONTRA","C0261-4/IA10371/F0002/X058/R0100/001/CONTRA",264369,38385,"Assets:Current Assets:VAT Receivable:Input Tax Capital:Transfers","IA",1200,"Municipal governance and administration / Finance and administration / Supply Chain Management",1213,"Municipal governance and administration / Finance and administration / Supply Chain Management"," _"," _"," _ "," _ ","_",2080,"Funded by Internally generated funds",170,"Current assets / VAT","_","_"," _ "," _ "," _ "," _ "," _ "," _ "," _ "," _ ",1003,"Statutory requirements",1003,"Statutory requirements"," _ "," _ "," _ "," _ ",null," _ "," _ ","_","_","_","_",null,null,1200,1200,"Other assets / Operational Buildings / Municipal Offices","Other assets / Operational Buildings / Municipal Offices"," _ "," _ "," _ "," _ "," _ "," _ "," _ "," _ "," _ "," _ "," _ "," _ "," _ "," _ "," _ "," _ "," _ "," _ "," _ "," _ ",null,"C","_",null,null,2,29,"Finance and administration","Supply Chain Management",null,"_","_","_","_","_",0,0,0,0,0,0,0,0,0,0,0,0,0,0]
["C0261-6/IA00092/F0002/X006/R0100/001/COMM_ACQ","C0261-6/IA00092/F0002/X006/R0100/001/COMM_ACQ",328478,47379,"Assets:Non-current Assets:Property, Plant and Equipment:Cost Model:Other Assets:Cost:Acquisitions","IA",2100,"Community and public safety / Community and social services / Community Halls and Facilities",2106,"Community and public safety / Community and social services / Community Halls and Facilities"," _"," _"," _ "," _ ","CE",2080,"Funded by Internally generated funds",230,"Non current assets / Property, plant and equipment","_","_"," _ "," _ "," _ "," _ "," _ "," _ "," _ "," _ ","_","_","_","_",1180,"Other assets",1180,"Other assets",null," _ "," _ ","_","_","_","_",null,null,1200,1200,"Other assets / Operational Buildings / Municipal Offices","Other assets / Operational Buildings / Municipal Offices"," _ "," _ "," _ "," _ "," _ "," _ "," _ "," _ "," _ "," _ "," _ "," _ "," _ "," _ "," _ "," _ ",241,"Property, plant and equipment (PPE) / PPE at cost/valuation (excl. finance leases)",241,"Property, plant and equipment (PPE) / PPE at cost/valuation (excl. finance leases)",null,"C","_",null,null,4,43,"Community and social services","Community Halls and Facilities",null,"_","_","_","_","_",434783,516783,0,0,0,0,0,0,0,0,0,0,183375,305625]
["D0001/IA07086/F0001/X049/R0099/001/FIN","D0001/IA07086/F0001/X049/R0099/001/FIN",201977,30813,"Assets:Non-current Assets:Property, Plant and Equipment:Cost Model:Electrical Infrastructure:Future Use:HV Transmission Conductors:Cost:Opening Balance","IA",1200,"Municipal governance and administration / Finance and administration / Finance",1204,"Municipal governance and administration / Finance and administration / Finance"," _"," _"," _ "," _ ","_"," _"," _",230,"Non current assets / Property, plant and equipment","_","_"," _ "," _ "," _ "," _ "," _ "," _ "," _ "," _ ","_","_","_","_",200,"Infrastructure / Electrical Infrastructure",200,"Infrastructure / Electrical Infrastructure",null," _ "," _ ","_","_","_","_",null,null," _ "," _ "," _ "," _ "," _ "," _ "," _ "," _ "," _ "," _ "," _ "," _ "," _ "," _ "," _ "," _ "," _ "," _ "," _ "," _ ",241,"Property, plant and equipment (PPE) / PPE at cost/valuation (excl. finance leases)",241,"Property, plant and equipment (PPE) / PPE at cost/valuation (excl. finance leases)",null,"D","_",null,null,2,23,"Finance and administration","Finance",null,"_","_","_","_","_",0,0,0,0,0,0,0,0,0,0,0,0,0,0]
["C0296-1/IA10376/F0002/X047/R0100/001/CONTRA","C0296-1/IA10376/F0002/X047/R0100/001/CONTRA",263461,40552,"Assets:Current Assets:VAT Receivable:Input Tax Accrual:Transfers","IA",1200,"Municipal governance and administration / Finance and administration / Asset Management",1202,"Municipal governance and administration / Finance and administration / Asset Management"," _"," _"," _ "," _ ","_",2080,"Funded by Internally generated funds",170,"Current assets / VAT","_","_"," _ "," _ "," _ "," _ "," _ "," _ "," _ "," _ ",1003,"Statutory requirements",1003,"Statutory requirements"," _ "," _ "," _ "," _ ",null," _ "," _ ","_","_","_","_",null,null," _ "," _ "," _ "," _ ",1450,"Intangible Assets / Licences and Rights / Unspecified"," _ "," _ ",1450," _ "," _ "," _ "," _ ","Intangible Assets / Licences and Rights / Unspecified"," _ "," _ "," _ "," _ "," _ "," _ "," _ "," _ "," _ "," _ ",null,"C","_",null,null,2,22,"Finance and administration","Asset Management",null,"_","_","_","_","_",0,0,0,0,0,0,0,0,0,0,0,0,0,0]
["C0192-2/IA10373/F0002/X116/R3653/001/CONTRA","C0192-2/IA10373/F0002/X116/R3653/001/CONTRA",262180,45607,"Assets:Current Assets:VAT Receivable:VAT Control (Receivable):Transfers","IA",3200,"Economic and environmental services / Road transport / Roads",3205,"Economic and environmental services / Road transport / Roads"," _"," _"," _ "," _ ","_",2080,"Funded by Internally generated funds",170,"Current assets / VAT","_","_"," _ "," _ "," _ "," _ "," _ "," _ "," _ "," _ ",1003,"Statutory requirements",1003,"Statutory requirements"," _ "," _ "," _ "," _ ",null," _ "," _ ","_","_","_","_",null,null," _ "," _ "," _ "," _ "," _ "," _ "," _ "," _ "," _ "," _ "," _ "," _ "," _ "," _ "," _ "," _ ",170,"Infrastructure / Storm water Infrastructure / Drainage Collection",170,"Infrastructure / Storm water Infrastructure / Drainage Collection"," _ "," _ "," _ "," _ ",null,"C","_",null,null,9,91,"Road transport","Roads",null,"_","_","_","_","_",0,0,0,0,0,0,0,0,0,0,0,0,0,0]
["D0001/IA010690/F2496/X049/R3650/001/CONTRA","D0001/IA010690/F2496/X049/R3650/001/CONTRA",249534,37304,"Assets:Current Assets:Receivables from Non-exchange Transactions:Property Rates by Usage:Residential Properties:Monthly Billing","IA",1200,"Municipal governance and administration / Finance and administration / Finance",1204,"Municipal governance and administration / Finance and administration / Finance"," _"," _"," _ "," _ ","_"," _"," _",140,"Current assets / Receivables from non-exchange transactions","_","_"," _ "," _ "," _ "," _ "," _ "," _ "," _ "," _ ","_","_","_","_"," _ "," _ "," _ "," _ ",null," _ "," _ ","_","_","_","_",null,null," _ "," _ "," _ "," _ "," _ "," _ "," _ "," _ "," _ "," _ "," _ "," _ "," _ "," _ "," _ "," _ "," _ "," _ "," _ "," _ ",126,"Receivables from non-exchange transactions / Property rates",126,"Receivables from non-exchange transactions / Property rates",null,"D","_",null,null,2,23,"Finance and administration","Finance",null,"_","_","_","_","_",0,0,0,0,0,0,0,0,0,0,0,0,0,0]
["C0334-1/IA00032/F0002/X124/R0100/001/COMM","C0334-1/IA00032/F0002/X124/R0100/001/COMM",91808,21495,"Assets:Non-current Assets:Property, Plant and Equipment:Cost Model:Community Assets:Cost:Acquisitions","IA",2200,"Community and public safety / Sport and recreation / Recreational Facilities",2204,"Community and public safety / Sport and recreation / Recreational Facilities"," _"," _"," _ "," _ ","CE",2080,"Funded by Internally generated funds",230,"Non current assets / Property, plant and equipment","_","_"," _ "," _ "," _ "," _ "," _ "," _ "," _ "," _ ","_","_","_","_",770,"Community Assets",770,"Community Assets",null," _ "," _ ","_","_","_","_",null,null," _ "," _ "," _ "," _ "," _ "," _ "," _ "," _ "," _ "," _ "," _ "," _ "," _ "," _ "," _ "," _ ",1040,"Community Assets / Sport and Recreation Facilities / Capital Spares",1040,"Community Assets / Sport and Recreation Facilities / Capital Spares",241,"Property, plant and equipment (PPE) / PPE at cost/valuation (excl. finance leases)",241,"Property, plant and equipment (PPE) / PPE at cost/valuation (excl. finance leases)",null,"C","_",null,null,5,53,"Sport and Recreation","Recreational Facilities",null,"_","_","_","_","_",0,0,0,0,0,0,0,0,0,0,0,0,0,0]
["D0001/IA05852/F0002/X047/R0100/001/FIN","D0001/IA05852/F0002/X047/R0100/001/FIN",112463,23183,"Assets:Non-current Assets:Property, Plant and Equipment:Leased Assets:Machinery and Equipment:In-use:Accumulated Depreciation:Depreciation","IA",1200,"Municipal governance and administration / Finance and administration / Asset Management",1202,"Municipal governance and administration / Finance and administration / Asset Management"," _"," _"," _ "," _ ","_",2080,"Funded by Internally generated funds",230,"Non current assets / Property, plant and equipment","_","_"," _ "," _ "," _ "," _ "," _ "," _ "," _ "," _ ","_","_","_","_",1510,"Machinery and Equipment",1510,"Machinery and Equipment",null," _ "," _ ","_","_","_","_",null,null," _ "," _ "," _ "," _ "," _ "," _ "," _ "," _ "," _ "," _ "," _ "," _ "," _ "," _ "," _ "," _ "," _ "," _ "," _ "," _ ",243,"Property, plant and equipment (PPE) / Less: Accumulated depreciation",243,"Property, plant and equipment (PPE) / Less: Accumulated depreciation",null,"D","_",null,null,2,22,"Finance and administration","Asset Management",null,"_","_","_","_","_",0,0,0,0,0,0,0,0,-347794.49,-294485.07,-184664.34,-181160.59,-59651.13,-194912.3]
["D0001/IA02105/F2496/X049/R3655/001/CONTRA","D0001/IA02105/F2496/X049/R3655/001/CONTRA",249546,37271,"Assets:Current Assets:Cash and Cash Equivalents:Cash at Bank:Bank Account:Specify (replace with account description):Deposits","IA",1200,"Municipal governance and administration / Finance and administration / Finance",1204,"Municipal governance and administration / Finance and administration / Finance"," _"," _"," _ "," _ ","_"," _"," _",120,"Current assets / Cash and cash equivalents","_","_",120," _ ","CASH FLOW FROM OPERATING ACTIVITIES / Receipts / Property rates"," _ ",120," _ ","CASH FLOW FROM OPERATING ACTIVITIES / Receipts / Property rates"," _ ","_","_","_","_"," _ "," _ "," _ "," _ ",null," _ "," _ ","_","_","_","_",110,"Cash Receipts By Source / Property rates"," _ "," _ "," _ "," _ "," _ "," _ "," _ "," _ "," _ "," _ "," _ "," _ "," _ "," _ "," _ "," _ "," _ "," _ "," _ "," _ "," _ "," _ "," _ "," _ ","D","D","_",null,null,2,23,"Finance and administration","Finance",null,"_","_","_","_","_",0,0,0,0,0,0,0,0,0,0,0,0,0,0]
["D0001/IA010707/F2496/X049/R3653/001/CONTRA","D0001/IA010707/F2496/X049/R3653/001/CONTRA",249892,38449,"Assets:Current Assets:Receivables from Non-exchange Transactions:Property Rates by Usage:Residential Properties:Collections","IA",1200,"Municipal governance and administration / Finance and administration / Finance",1204,"Municipal governance and administration / Finance and administration / Finance"," _"," _"," _ "," _ ","_"," _"," _",140,"Current assets / Receivables from non-exchange transactions","_","_"," _ "," _ "," _ "," _ "," _ "," _ "," _ "," _ ","_","_","_","_"," _ "," _ "," _ "," _ ",null," _ "," _ ","_","_","_","_",null,null," _ "," _ "," _ "," _ "," _ "," _ "," _ "," _ "," _ "," _ "," _ "," _ "," _ "," _ "," _ "," _ "," _ "," _ "," _ "," _ ",126,"Receivables from non-exchange transactions / Property rates",126,"Receivables from non-exchange transactions / Property rates",null,"D","_",null,null,2,23,"Finance and administration","Finance",null,"_","_","_","_","_",0,0,0,0,0,0,0,0,0,0,0,0,0,0]
["D0001/IR007144/F2496/X049/R3653/001/FIN","D0001/IR007144/F2496/X049/R3653/001/FIN",101941,22608,"Revenue:Non-exchange Revenue:Property Rates by Usage:Residential Properties","IR",1200,"Municipal governance and administration / Finance and administration / Finance",1204,"Municipal governance and administration / Finance and administration / Finance",1800,"Non-Exchange Revenue / Property rates",1800,"Non-Exchange Revenue / Property rates","_"," _"," _"," _ "," _ "," _ "," _ "," _ "," _ "," _ "," _ "," _ "," _ "," _ "," _ ","_","_","_","_"," _ "," _ "," _ "," _ ",null," _ "," _ ","_","_","_","_",null,null," _ "," _ "," _ "," _ "," _ "," _ "," _ "," _ "," _ "," _ "," _ "," _ "," _ "," _ "," _ "," _ "," _ "," _ "," _ "," _ "," _ "," _ "," _ "," _ ",null,"D","_",null,null,2,23,"Finance and administration","Finance",null,"_","_","_","_","_",0,0,0,0,0,0,0,0,0,0,0,0,0,0]
["C0352-2/IL65530/F0002/X006/R3649/001/CONTRA","C0352-2/IL65530/F0002/X006/R3649/001/CONTRA",249931,38653,"Liabilities:Current Liabilities:Trade and Other Payable Exchange Transactions:Payables and Accruals : Contractors:Deposits","IL",2100,"Community and public safety / Community and social services / Community Halls and Facilities",2106,"Community and public safety / Community and social services / Community Halls and Facilities"," _"," _"," _ "," _ ","_",2080,"Funded by Internally generated funds",380,"Current liabilities / Trade and other payables from exchange transactions","_","_"," _ "," _ "," _ "," _ "," _ "," _ "," _ "," _ ","_","_","_","_"," _ "," _ "," _ "," _ ",null," _ "," _ ","_","_","_","_",null,null," _ "," _ "," _ "," _ "," _ "," _ "," _ "," _ "," _ "," _ "," _ "," _ "," _ "," _ "," _ "," _ ",1200,"Other assets / Operational Buildings / Municipal Offices",1200,"Other assets / Operational Buildings / Municipal Offices",361,"Trade and other payables / Trade and other payables from exchange transactions",361,"Trade and other payables / Trade and other payables from exchange transactions",null,"C","_",null,null,4,43,"Community and social services","Community Halls and Facilities",null,"_","_","_","_","_",0,0,0,0,0,0,0,0,0,0,0,0,0,0]
["O0001/IA00802/F0001/X047/R0100/001/CONTRA","O0001/IA00802/F0001/X047/R0100/001/CONTRA",251850,40420,"Assets:Non-current Assets:Intangible Assets:Cost:Internally Generated:In-use:Patents, Licences, Copyrights, Brand Names and Trademarks Accumulated Amortisation:Amortisation","IA",1200,"Municipal governance and administration / Finance and administration / Asset Management",1202,"Municipal governance and administration / Finance and administration / Asset Management"," _"," _"," _ "," _ ","_"," _"," _",270,"Non current assets / Intangible assets","_","_"," _ "," _ "," _ "," _ "," _ "," _ "," _ "," _ ","_","_","_","_",1370,"Intangible Assets",1370,"Intangible Assets",null," _ "," _ ","_","_","_","_",null,null," _ "," _ "," _ "," _ "," _ "," _ "," _ "," _ "," _ "," _ "," _ "," _ "," _ "," _ "," _ "," _ "," _ "," _ "," _ "," _ "," _ "," _ "," _ "," _ ",null,"O","_",null,null,2,22,"Finance and administration","Asset Management",null,"_","_","_","_","_",0,0,0,0,0,0,0,0,0,0,0,0,0,0]
["O0001/IA10338/F0041/X127/R0099/001/CONTRA","O0001/IA10338/F0041/X127/R0099/001/CONTRA",222930,35103,"Assets:Current Assets:Inventory:Consumables:Standard Rated:Issues","IA",2200,"Community and public safety / Sport and recreation / Community Parks (including Nurseries)",2203,"Community and public safety / Sport and recreation / Community Parks (including Nurseries)"," _"," _"," _ "," _ ","_"," _"," _",160,"Current assets / Inventory","_","_"," _ "," _ "," _ "," _ "," _ "," _ "," _ "," _ ","_","_","_","_"," _ "," _ "," _ "," _ ",null," _ "," _ ","_","_","_","_",null,null," _ "," _ "," _ "," _ "," _ "," _ "," _ "," _ "," _ "," _ "," _ "," _ "," _ "," _ "," _ "," _ "," _ "," _ "," _ "," _ ",193,"Consumables Standard Rated / Issues",193,"Consumables Standard Rated / Issues",null,"O","_",null,null,5,51,"Sport and Recreation","Community Parks (including Nurseries)",null,"_","_","_","_","_",0,0,0,0,0,0,0,0,0,0,0,0,0,0]
["D0001/IA02376/F0930/X132/R3641/001/CONTRA","D0001/IA02376/F0930/X132/R3641/001/CONTRA",249755,37935,"Assets:Current Assets:Trade and other Receivables from Exchange Transactions:Trading Service and Customer Service Debtors:Waste Management:Monthly Billing","IA",4400,"Trading services / Waste management / Solid Waste Removal",4403,"Trading services / Waste management / Solid Waste Removal"," _"," _"," _ "," _ ","_"," _"," _",130,"Current assets / Trade and other receivables from exchange transactions","_","_"," _ "," _ "," _ "," _ "," _ "," _ "," _ "," _ ","_","_","_","_"," _ "," _ "," _ "," _ ",null," _ "," _ ","_","_","_","_",null,null," _ "," _ "," _ "," _ "," _ "," _ "," _ "," _ "," _ "," _ "," _ "," _ "," _ "," _ "," _ "," _ "," _ "," _ "," _ "," _ ",113,"Trade and other receivables from exchange transactions / Waste",113,"Trade and other receivables from exchange transactions / Waste",null,"D","_",null,null,11,111,"Waste Management","Solid Waste Removal",null,"_","_","_","_","_",426671,426671,0,0,445366,465853,0,0,0,0,0,0,0,0]
["D0001/IA10172/F0001/X049/R0099/001/FIN","D0001/IA10172/F0001/X049/R0099/001/FIN",150791,26608,"Assets:Current Assets:Cash and Cash Equivalents:Call Deposits and Investments:Marketable Securities:Specify (replace with account description):Opening Balance","IA",1200,"Municipal governance and administration / Finance and administration / Finance",1204,"Municipal governance and administration / Finance and administration / Finance"," _"," _"," _ "," _ ","_"," _"," _",120,"Current assets / Cash and cash equivalents","_","_"," _ ",420," _ ","Cash and cash Equivalents - Opening Balance"," _ ",560," _ ","Cash and cash Equivalents - Opening Balance","_","_","_","_"," _ "," _ "," _ "," _ ",null," _ "," _ ","_","_","_","_",null,null," _ "," _ "," _ "," _ "," _ "," _ "," _ "," _ "," _ "," _ "," _ "," _ "," _ "," _ "," _ "," _ "," _ "," _ "," _ "," _ "," _ "," _ "," _ "," _ ","D","D","_",null,null,2,23,"Finance and administration","Finance",null,"_","_","_","_","_",0,0,0,0,0,0,0,0,0,0,0,0,0,0]
["O0001/IA10376/F13650/X024/R0100/001/CONTRA","O0001/IA10376/F13650/X024/R0100/001/CONTRA",264146,44361,"Assets:Current Assets:VAT Receivable:Input Tax Accrual:Transfers","IA",2100,"Community and public safety / Community and social services / Libraries and Archives",2114,"Community and public safety / Community and social services / Libraries and Archives"," _"," _"," _ "," _ ","_"," _"," _",170,"Current assets / VAT","_","_"," _ "," _ "," _ "," _ "," _ "," _ "," _ "," _ ",1003,"Statutory requirements",1003,"Statutory requirements"," _ "," _ "," _ "," _ ",null," _ "," _ ","_","_","_","_",null,null," _ "," _ "," _ "," _ "," _ "," _ "," _ "," _ "," _ "," _ "," _ "," _ "," _ "," _ "," _ "," _ "," _ "," _ "," _ "," _ "," _ "," _ "," _ "," _ ",null,"O","_",null,null,4,44,"Community and social services","Libraries and Archives",null,"_","_","_","_","_",0,0,0,0,0,0,0,0,0,0,0,0,0,0]
["D0001/IA09111/F0928/X049/R0099/001/FIN","D0001/IA09111/F0928/X049/R0099/001/FIN",161116,27930,"Assets:Current Assets:Cash and Cash Equivalents:Call Deposits and Investments:Deposit taking Institutions:Specify (replace with account description):Withdrawals","IA",1200,"Municipal governance and administration / Finance and administration / Finance",1204,"Municipal governance and administration / Finance and administration / Finance"," _"," _"," _ "," _ ","_"," _"," _",120,"Current assets / Cash and cash equivalents","_","_"," _ "," _ "," _ "," _ "," _ "," _ "," _ "," _ ","_","_","_","_"," _ "," _ "," _ "," _ ",null," _ "," _ ","_","_","_","_",null,null," _ "," _ "," _ "," _ "," _ "," _ "," _ "," _ "," _ "," _ "," _ "," _ "," _ "," _ "," _ "," _ "," _ "," _ "," _ "," _ "," _ "," _ "," _ "," _ ","W","D","_",null,null,2,23,"Finance and administration","Finance",null,"_","_","_","_","_",0,0,0,0,0,0,0,0,0,0,0,0,0,0]
["D0001/IA09859/F13650/X007/R0099/001/COMM","D0001/IA09859/F13650/X007/R0099/001/COMM",150442,26260,"Assets:Current Assets:Cash and Cash Equivalents:Cash at Bank:Bank Account:Specify (replace with account description):Withdrawals","IA",2100,"Community and public safety / Community and social services / Libraries and Archives",2114,"Community and public safety / Community and social services / Libraries and Archives"," _"," _"," _ "," _ ","_"," _"," _",120,"Current assets / Cash and cash equivalents","_","_"," _ "," _ "," _ "," _ "," _ "," _ "," _ "," _ ","_","_","_","_"," _ "," _ "," _ "," _ ",null," _ "," _ ","_","_","_","_",null,null," _ "," _ "," _ "," _ "," _ "," _ "," _ "," _ "," _ "," _ "," _ "," _ "," _ "," _ "," _ "," _ "," _ "," _ "," _ "," _ "," _ "," _ "," _ "," _ ","W","D","_",null,null,4,44,"Community and social services","Libraries and Archives",null,"_","_","_","_","_",0,0,0,0,0,0,0,0,0,0,0,0,0,0]
["D0001/IA05100/F0001/X049/R0099/001/FIN","D0001/IA05100/F0001/X049/R0099/001/FIN",150644,26460,"Assets:Non-current Assets:Intangible Assets:Cost:Other:In-use:Computer Software Accumulated Impairment:Opening Balance","IA",1200,"Municipal governance and administration / Finance and administration / Finance",1204,"Municipal governance and administration / Finance and administration / Finance"," _"," _"," _ "," _ ","_"," _"," _",270,"Non current assets / Intangible assets","_","_"," _ "," _ "," _ "," _ "," _ "," _ "," _ "," _ ","_","_","_","_",1370,"Intangible Assets",1370,"Intangible Assets",null," _ "," _ ","_","_","_","_",null,null," _ "," _ "," _ "," _ "," _ "," _ "," _ "," _ "," _ "," _ "," _ "," _ "," _ "," _ "," _ "," _ "," _ "," _ "," _ "," _ "," _ "," _ "," _ "," _ ",null,"D","_",null,null,2,23,"Finance and administration","Finance",null,"_","_","_","_","_",0,0,0,0,0,0,0,0,0,0,0,0,0,0]
["D0001/IA10274/F0001/X049/R0099/001/FIN","D0001/IA10274/F0001/X049/R0099/001/FIN",150719,26535,"Assets:Current Assets:Receivables from Non-exchange Transactions:Accrued Income:Opening Balance","IA",1200,"Municipal governance and administration / Finance and administration / Finance",1204,"Municipal governance and administration / Finance and administration / Finance"," _"," _"," _ "," _ ","_"," _"," _",140,"Current assets / Receivables from non-exchange transactions","_","_"," _ "," _ "," _ "," _ "," _ "," _ "," _ "," _ ","_","_","_","_"," _ "," _ "," _ "," _ ",null," _ "," _ ","_","_","_","_",null,null," _ "," _ "," _ "," _ "," _ "," _ "," _ "," _ "," _ "," _ "," _ "," _ "," _ "," _ "," _ "," _ "," _ "," _ "," _ "," _ ",129,"Receivables from non-exchange transactions / Other receivables from non-exchange transactions",129,"Receivables from non-exchange transactions / Other receivables from non-exchange transactions",null,"D","_",null,null,2,23,"Finance and administration","Finance",null,"_","_","_","_","_",3528510,0,0,0,3634370,3707050,0,0,0,0,0,0,12888959.24,0]
["D0001/IA09394/F0001/X049/R0099/001/FIN","D0001/IA09394/F0001/X049/R0099/001/FIN",151002,26819,"Assets:Current Assets:Cash and Cash Equivalents:Cash at Bank:Bank Account:Specify (replace with account description):Charges","IA",1200,"Municipal governance and administration / Finance and administration / Finance",1204,"Municipal governance and administration / Finance and administration / Finance"," _"," _"," _ "," _ ","_"," _"," _",120,"Current assets / Cash and cash equivalents","_","_"," _ "," _ "," _ "," _ "," _ "," _ "," _ "," _ ","_","_","_","_"," _ "," _ "," _ "," _ ",null," _ "," _ ","_","_","_","_",null,null," _ "," _ "," _ "," _ "," _ "," _ "," _ "," _ "," _ "," _ "," _ "," _ "," _ "," _ "," _ "," _ "," _ "," _ "," _ "," _ "," _ "," _ "," _ "," _ ",null,"D","_",null,null,2,23,"Finance and administration","Finance",null,"_","_","_","_","_",0,0,0,0,0,0,0,0,0,0,0,0,0,0]
["D0001/IL093073/F13645/X032/R0100/001/CONTRA","D0001/IL093073/F13645/X032/R0100/001/CONTRA",251282,40410,"Liabilities:Current Liabilities:Trade and Other Payable Non-exchange Transactions:Transfers and Subsidies Unspent:Operational:Monetary Allocations:Provincial Government:KwaZulu-Natal:Capacity Building and Other:Specify (Add grant description):Transferred ","IL",4100,"Trading services / Energy sources / Electricity",4101,"Trading services / Energy sources / Electricity"," _"," _"," _ "," _ ","_"," _"," _",390,"Current liabilities / Trade and other payables from non-exchange transactions","_","_"," _ "," _ "," _ "," _ "," _ "," _ "," _ "," _ ","_","_","_","_"," _ "," _ "," _ "," _ ",null," _ "," _ ","_","_","_","_",null,null," _ "," _ "," _ "," _ "," _ "," _ "," _ "," _ "," _ "," _ "," _ "," _ "," _ "," _ "," _ "," _ "," _ "," _ "," _ "," _ ",363,"Trade and other payables / Trade payables from Non-exchange transactions: Unspent conditional Grants",363,"Trade and other payables / Trade payables from Non-exchange transactions: Unspent conditional Grants",null,"D","_",null,null,10,101,"Energy sources","Electricity",null,"_","_","_","_","_",0,0,0,0,0,0,0,0,0,0,0,0,0,0]
["D0001/IA06245/F0001/X046/R0099/001/FIN","D0001/IA06245/F0001/X046/R0099/001/FIN",150507,26323,"Assets:Non-current Assets:Property, Plant and Equipment:Cost Model:Furniture and Office Equipment:In-use:Accumulated Depreciation:Opening Balance","IA",1200,"Municipal governance and administration / Finance and administration / Administrative and Corporate Support",1201,"Municipal governance and administration / Finance and administration / Administrative and Corporate Support"," _"," _"," _ "," _ ","_"," _"," _",230,"Non current assets / Property, plant and equipment","_","_"," _ "," _ "," _ "," _ "," _ "," _ "," _ "," _ ","_","_","_","_",1490,"Furniture and Office Equipment",1490,"Furniture and Office Equipment",null," _ "," _ ","_","_","_","_",null,null," _ "," _ "," _ "," _ "," _ "," _ "," _ "," _ "," _ "," _ "," _ "," _ "," _ "," _ "," _ "," _ "," _ "," _ "," _ "," _ ",243,"Property, plant and equipment (PPE) / Less: Accumulated depreciation",243,"Property, plant and equipment (PPE) / Less: Accumulated depreciation",null,"D","_",null,null,2,21,"Finance and administration","Administrative and Corporate Support",null,"_","_","_","_","_",-5989000,-3999576,0,0,-6048890,-6109379,0,0,0,0,0,0,0,0]
["D0001/IA09077/F0928/X049/R0099/001/FIN","D0001/IA09077/F0928/X049/R0099/001/FIN",161118,27932,"Assets:Current Assets:Cash and Cash Equivalents:Call Deposits and Investments:Deposit taking Institutions:Specify (replace with account description):Charges","IA",1200,"Municipal governance and administration / Finance and administration / Finance",1204,"Municipal governance and administration / Finance and administration / Finance"," _"," _"," _ "," _ ","_"," _"," _",120,"Current assets / Cash and cash equivalents","_","_"," _ ",480," _ ","Cash Payments by Type / Other expenditure"," _ ",480," _ ","Cash Payments by Type / Other expenditure","_","_","_","_"," _ "," _ "," _ "," _ ",null," _ "," _ ","_","_","_","_",null,null," _ "," _ "," _ "," _ "," _ "," _ "," _ "," _ "," _ "," _ "," _ "," _ "," _ "," _ "," _ "," _ "," _ "," _ "," _ "," _ "," _ "," _ "," _ "," _ ","D","D","_",null,null,2,23,"Finance and administration","Finance",null,"_","_","_","_","_",0,0,0,0,0,0,0,0,0,0,0,0,0,0]
["D0001/IL37832/F0045/X123/R0100/001/CONTRA","D0001/IL37832/F0045/X123/R0100/001/CONTRA",262342,40934,"Liabilities:Current Liabilities:VAT Payable: Output Tax:Transfers","IL",2200,"Community and public safety / Sport and recreation / Community Parks (including Nurseries)",2203,"Community and public safety / Sport and recreation / Community Parks (including Nurseries)"," _"," _"," _ "," _ ","_"," _"," _",410,"Current liabilities / VAT","_","_"," _ "," _ "," _ "," _ "," _ "," _ "," _ "," _ ",1003,"Statutory requirements",1003,"Statutory requirements"," _ "," _ "," _ "," _ ",null," _ "," _ ","_","_","_","_",null,null," _ "," _ "," _ "," _ "," _ "," _ "," _ "," _ "," _ "," _ "," _ "," _ "," _ "," _ "," _ "," _ "," _ "," _ "," _ "," _ ",365,"Trade and other payables / VAT",365,"Trade and other payables / VAT",null,"D","_",null,null,5,51,"Sport and Recreation","Community Parks (including Nurseries)",null,"_","_","_","_","_",0,0,0,0,0,0,0,0,0,0,0,0,0,0]
["D0001/IA09997/F15762/X019/R0099/001/COMM","D0001/IA09997/F15762/X019/R0099/001/COMM",150460,26278,"Assets:Current Assets:Cash and Cash Equivalents:Cash at Bank:Bank Account:Specify (replace with account description):Opening Balance","IA",2100,"Community and public safety / Community and social services / Disaster Management",2109,"Community and public safety / Community and social services / Disaster Management"," _"," _"," _ "," _ ","_"," _"," _",120,"Current assets / Cash and cash equivalents","_","_"," _ "," _ "," _ "," _ "," _ "," _ "," _ "," _ ","_","_","_","_"," _ "," _ "," _ "," _ ",null," _ "," _ ","_","_","_","_",null,null," _ "," _ "," _ "," _ "," _ "," _ "," _ "," _ "," _ "," _ "," _ "," _ "," _ "," _ "," _ "," _ "," _ "," _ "," _ "," _ "," _ "," _ "," _ "," _ ",null,"D","_",null,null,4,47,"Community and social services","Disaster Management",null,"_","_","_","_","_",0,0,0,0,0,0,0,0,0,0,0,0,0,0]
["D0001/IA10382/F0791/X116/R0099/001/TEC1","D0001/IA10382/F0791/X116/R0099/001/TEC1",181861,29695,"Assets:Current Assets:VAT Receivable:VAT Control (Receivable):Receipts","IA",3200,"Economic and environmental services / Road transport / Roads",3205,"Economic and environmental services / Road transport / Roads"," _"," _"," _ "," _ ","_",2010,"Funded by National Government",170,"Current assets / VAT","_","_"," _ ",340," _ ","Vat Control (receipts)"," _ ",340," _ ","Vat Control (receipts)",1003,"Statutory requirements",1003,"Statutory requirements"," _ "," _ "," _ "," _ ",null," _ "," _ ","_","_","_","_",null,null," _ "," _ "," _ "," _ "," _ "," _ "," _ "," _ "," _ "," _ "," _ "," _ "," _ "," _ "," _ "," _ "," _ "," _ "," _ "," _ "," _ "," _ "," _ "," _ ",null,"D","_",null,null,9,91,"Road transport","Roads",null,"_","_","_","_","_",0,0,0,0,0,0,0,0,0,0,0,0,0,0]
["D0001/IL53994/F0041/X049/R0099/001/FIN","D0001/IL53994/F0041/X049/R0099/001/FIN",161293,28095,"Liabilities:Current Liabilities:Trade and Other Payable Exchange Transactions:Control, Clearing and Interface Accounts:Salary Clearing and Control:Tax Control:Withdrawals","IL",1200,"Municipal governance and administration / Finance and administration / Finance",1204,"Municipal governance and administration / Finance and administration / Finance"," _"," _"," _ "," _ ","_"," _"," _",380,"Current liabilities / Trade and other payables from exchange transactions","_","_"," _ ",200," _ ","CASH FLOW FROM OPERATING ACTIVITIES / Payments / Suppliers and employees"," _ ",390," _ ","Cash Payments by Type / Employee related costs",1003,"Statutory requirements",1003,"Statutory requirements"," _ "," _ "," _ "," _ ",null," _ "," _ ","_","_","_","_",null,null," _ "," _ "," _ "," _ "," _ "," _ "," _ "," _ "," _ "," _ "," _ "," _ "," _ "," _ "," _ "," _ "," _ "," _ "," _ "," _ ",361,"Trade and other payables / Trade and other payables from exchange transactions",361,"Trade and other payables / Trade and other payables from exchange transactions",null,"D","_",null,null,2,23,"Finance and administration","Finance",null,"_","_","_","_","_",0,0,0,0,0,0,0,0,0,-239.42,239.42,0,0,0]
["O0001/IE00126/F0045/X046/R0099/001/CORP","O0001/IE00126/F0045/X046/R0099/001/CORP",40467,20615,"Expenditure:Employee Related Cost:Municipal Staff:Salaries, Wages and Allowances:Allowances:Travel or Motor Vehicle","IE",1200,"Municipal governance and administration / Finance and administration / Administrative and Corporate Support",1201,"Municipal governance and administration / Finance and administration / Administrative and Corporate Support",3100,"Expenditure / Employee related costs",2006,"Expenditure / Employee related costs","_"," _"," _"," _ "," _ "," _ "," _ "," _ "," _ "," _ "," _ "," _ "," _ "," _ "," _ ","_","_","_","_"," _ "," _ "," _ "," _ ",null,2006,"Employee related costs / Motor Vehicle Allowance","_","_","_","_",null,null," _ "," _ "," _ "," _ "," _ "," _ "," _ "," _ "," _ "," _ "," _ "," _ "," _ "," _ "," _ "," _ "," _ "," _ "," _ "," _ "," _ "," _ "," _ "," _ ",null,"O","_","MS",null,2,21,"Finance and administration","Administrative and Corporate Support",null,"_","_","_","_","_",88590,88590,0,0,92670,96930,0,0,0,0,0,0,0,0]
["D0001/IA010650/F2496/X049/R0099/001/FIN","D0001/IA010650/F2496/X049/R0099/001/FIN",161159,27973,"Assets:Current Assets:Receivables from Non-exchange Transactions:Property Rates by Usage:Residential Properties:Impairment:Recognised","IA",1200,"Municipal governance and administration / Finance and administration / Finance",1204,"Municipal governance and administration / Finance and administration / Finance"," _"," _"," _ "," _ ","_"," _"," _",140,"Current assets / Receivables from non-exchange transactions","_","_"," _ "," _ "," _ "," _ "," _ "," _ "," _ "," _ ","_","_","_","_"," _ "," _ "," _ "," _ ",null," _ "," _ ","_","_","_","_",null,null," _ "," _ "," _ "," _ "," _ "," _ "," _ "," _ "," _ "," _ "," _ "," _ "," _ "," _ "," _ "," _ "," _ "," _ "," _ "," _ ",127,"Receivables from non-exchange transactions / Less: Impairment of Property rates",127,"Receivables from non-exchange transactions / Less: Impairment of Property rates",null,"D","_",null,null,2,23,"Finance and administration","Finance",null,"_","_","_","_","_",0,0,0,0,0,0,0,0,0,0,0,0,0,0]
["D0001/IA10376/F0041/X046/R0100/001/CONTRA","D0001/IA10376/F0041/X046/R0100/001/CONTRA",276634,40582,"Assets:Current Assets:VAT Receivable:Input Tax Accrual:Transfers","IA",1200,"Municipal governance and administration / Finance and administration / Administrative and Corporate Support",1201,"Municipal governance and administration / Finance and administration / Administrative and Corporate Support"," _"," _"," _ "," _ ","_"," _"," _",170,"Current assets / VAT","_","_"," _ "," _ "," _ "," _ "," _ "," _ "," _ "," _ ",1003,"Statutory requirements",1003,"Statutory requirements"," _ "," _ "," _ "," _ ",null," _ "," _ ","_","_","_","_",null,null," _ "," _ "," _ "," _ "," _ "," _ "," _ "," _ "," _ "," _ "," _ "," _ "," _ "," _ "," _ "," _ "," _ "," _ "," _ "," _ "," _ "," _ "," _ "," _ ",null,"D","_",null,null,2,21,"Finance and administration","Administrative and Corporate Support",null,"_","_","_","_","_",0,0,0,0,0,0,0,0,0,0,0,0,0,0]
["O0014-1/IA10370/F0041/X032/R3649/001/CONTRA","O0014-1/IA10370/F0041/X032/R3649/001/CONTRA",328654,0,"Assets:Current Assets:VAT Receivable:Input Tax Capital:Recognised","IA",4100,"Trading services / Energy sources / Electricity",4101,"Trading services / Energy sources / Electricity"," _"," _"," _ "," _ ","_"," _"," _",170,"Current assets / VAT","_","_"," _ "," _ "," _ "," _ "," _ "," _ "," _ "," _ ",1003,"Statutory requirements",1003,"Statutory requirements"," _ "," _ "," _ "," _ ",null," _ "," _ ","_","_","_","_",null,null," _ "," _ "," _ "," _ "," _ "," _ "," _ "," _ "," _ "," _ "," _ "," _ "," _ "," _ "," _ "," _ "," _ "," _ "," _ "," _ "," _ "," _ "," _ "," _ ",null,"O","_",null,null,10,101,"Energy sources","Electricity",null,"_","_","_","_","_",0,0,0,0,0,0,0,0,0,0,0,0,0,0]
["D0001/IA010707/F0046/X044/R3642/001/CONTRA","D0001/IA010707/F0046/X044/R3642/001/CONTRA",250563,41206,"Assets:Current Assets:Receivables from Non-exchange Transactions:Property Rates by Usage:Residential Properties:Collections","IA",1100,"Municipal governance and administration / Executive and council / Mayor and Council",1110,"Municipal governance and administration / Executive and council / Mayor and Council"," _"," _"," _ "," _ ","_"," _"," _",140,"Current assets / Receivables from non-exchange transactions","_","_"," _ "," _ "," _ "," _ "," _ "," _ "," _ "," _ ","_","_","_","_"," _ "," _ "," _ "," _ ",null," _ "," _ ","_","_","_","_",null,null," _ "," _ "," _ "," _ "," _ "," _ "," _ "," _ "," _ "," _ "," _ "," _ "," _ "," _ "," _ "," _ "," _ "," _ "," _ "," _ ",126,"Receivables from non-exchange transactions / Property rates",126,"Receivables from non-exchange transactions / Property rates",null,"D","_",null,null,1,11,"Executive and council","Mayor and Council",null,"_","_","_","_","_",0,0,0,0,0,0,0,0,0,0,0,0,0,0]
["D0001/IR007142/F2496/X049/R3641/001/FIN","D0001/IR007142/F2496/X049/R3641/001/FIN",181833,29670,"Revenue:Non-exchange Revenue:Property Rates by Usage:Industrial Properties","IR",1200,"Municipal governance and administration / Finance and administration / Finance",1204,"Municipal governance and administration / Finance and administration / Finance",1800,"Non-Exchange Revenue / Property rates",1800,"Non-Exchange Revenue / Property rates","_"," _"," _"," _ "," _ "," _ "," _ "," _ "," _ "," _ "," _ "," _ "," _ "," _ "," _ ","_","_","_","_"," _ "," _ "," _ "," _ ",null," _ "," _ ","_","_","_","_",null,null," _ "," _ "," _ "," _ "," _ "," _ "," _ "," _ "," _ "," _ "," _ "," _ "," _ "," _ "," _ "," _ "," _ "," _ "," _ "," _ "," _ "," _ "," _ "," _ ",null,"D","_",null,null,2,23,"Finance and administration","Finance",null,"_","_","_","_","_",-14128570,-14128570,0,0,-14778490,-15458300,0,0,0,0,0,0,0,0]
["O0001/IL53988/F1177/X049/R0099/001/CONTRA","O0001/IL53988/F1177/X049/R0099/001/CONTRA",224225,33870,"Liabilities:Current Liabilities:Trade and Other Payable Exchange Transactions:Control, Clearing and Interface Accounts:Salary Clearing and Control:Salary Control - Employee Related Costs:Withdrawals","IL",1200,"Municipal governance and administration / Finance and administration / Finance",1204,"Municipal governance and administration / Finance and administration / Finance"," _"," _"," _ "," _ ","_"," _"," _",380,"Current liabilities / Trade and other payables from exchange transactions","_","_"," _ ",200," _ ","CASH FLOW FROM OPERATING ACTIVITIES / Payments / Suppliers and employees"," _ ",390," _ ","Cash Payments by Type / Employee related costs","_","_","_","_"," _ "," _ "," _ "," _ ",null," _ "," _ ","_","_","_","_",null,null," _ "," _ "," _ "," _ "," _ "," _ "," _ "," _ "," _ "," _ "," _ "," _ "," _ "," _ "," _ "," _ "," _ "," _ "," _ "," _ ",361,"Trade and other payables / Trade and other payables from exchange transactions",361,"Trade and other payables / Trade and other payables from exchange transactions",null,"O","_",null,null,2,23,"Finance and administration","Finance",null,"_","_","_","_","_",559510,655510,0,0,585250,612170,0,0,0,0,0,0,0,0]
["D0001/LN00059/F0001/X049/R0099/001/FIN","D0001/LN00059/F0001/X049/R0099/001/FIN",150633,26449,"Net Assets:Reserves and Funds:Housing Development Fund:Housing Development Fund: Loans Extinguished:Opening Balance","LN",1200,"Municipal governance and administration / Finance and administration / Finance",1204,"Municipal governance and administration / Finance and administration / Finance"," _"," _"," _ "," _ ","_"," _"," _",540,"COMMUNITY WEALTH/EQUITY / Reserves and funds","_","_"," _ "," _ "," _ "," _ "," _ "," _ "," _ "," _ ",1007,"Reserves to be backed by cash/investments",1007,"Reserves to be backed by cash/investments"," _ "," _ "," _ "," _ ",null," _ "," _ ","_","_","_","_",null,null," _ "," _ "," _ "," _ "," _ "," _ "," _ "," _ "," _ "," _ "," _ "," _ "," _ "," _ "," _ "," _ "," _ "," _ "," _ "," _ ",471,"Reserves / Housing Development Fund",471,"Reserves / Housing Development Fund",null,"D","_",null,null,2,23,"Finance and administration","Finance",null,"_","_","_","_","_",0,0,0,0,0,0,0,0,0,0,0,0,0,0]
["O0008-10/IA10379/F13645/X032/R0100/001/CONTRA","O0008-10/IA10379/F13645/X032/R0100/001/CONTRA",316930,45907,"Assets:Current Assets:VAT Receivable:Input Tax General:Transfers","IA",4100,"Trading services / Energy sources / Electricity",4101,"Trading services / Energy sources / Electricity"," _"," _"," _ "," _ ","_"," _"," _",170,"Current assets / VAT","_","_"," _ "," _ "," _ "," _ "," _ "," _ "," _ "," _ ",1003,"Statutory requirements",1003,"Statutory requirements"," _ "," _ "," _ "," _ ",null," _ "," _ ","_","_","_","_",null,null," _ "," _ "," _ "," _ "," _ "," _ "," _ "," _ "," _ "," _ "," _ "," _ "," _ "," _ "," _ "," _ "," _ "," _ "," _ "," _ "," _ "," _ "," _ "," _ ",null,"O","_",null,null,10,101,"Energy sources","Electricity",null,"_","_","_","_","_",0,0,0,0,0,0,0,0,0,0,0,0,0,0]
["D0001/IL39588/F0047/X058/R0099/001/CONTRA","D0001/IL39588/F0047/X058/R0099/001/CONTRA",249667,37658,"Liabilities:Current Liabilities:VAT Payable:  Output Tax Accrual:Recognised","IL",1200,"Municipal governance and administration / Finance and administration / Supply Chain Management",1213,"Municipal governance and administration / Finance and administration / Supply Chain Management"," _"," _"," _ "," _ ","_"," _"," _",410,"Current liabilities / VAT","_","_"," _ "," _ "," _ "," _ "," _ "," _ "," _ "," _ ",1003,"Statutory requirements",1003,"Statutory requirements"," _ "," _ "," _ "," _ ",null," _ "," _ ","_","_","_","_",null,null," _ "," _ "," _ "," _ "," _ "," _ "," _ "," _ "," _ "," _ "," _ "," _ "," _ "," _ "," _ "," _ "," _ "," _ "," _ "," _ ",365,"Trade and other payables / VAT",365,"Trade and other payables / VAT",null,"D","_",null,null,2,29,"Finance and administration","Supply Chain Management",null,"_","_","_","_","_",-58696,-58696,0,0,-61396,-64220,0,0,0,0,0,0,0,0]
["O0016-6/IA10376/F0041/X046/R0100/001/CONTRA","O0016-6/IA10376/F0041/X046/R0100/001/CONTRA",327576,46770,"Assets:Current Assets:VAT Receivable:Input Tax Accrual:Transfers","IA",1200,"Municipal governance and administration / Finance and administration / Administrative and Corporate Support",1201,"Municipal governance and administration / Finance and administration / Administrative and Corporate Support"," _"," _"," _ "," _ ","_"," _"," _",170,"Current assets / VAT","_","_"," _ "," _ "," _ "," _ "," _ "," _ "," _ "," _ ",1003,"Statutory requirements",1003,"Statutory requirements"," _ "," _ "," _ "," _ ",null," _ "," _ ","_","_","_","_",null,null," _ "," _ "," _ "," _ "," _ "," _ "," _ "," _ "," _ "," _ "," _ "," _ "," _ "," _ "," _ "," _ "," _ "," _ "," _ "," _ "," _ "," _ "," _ "," _ ",null,"O","_",null,null,2,21,"Finance and administration","Administrative and Corporate Support",null,"_","_","_","_","_",0,0,0,0,0,0,0,0,0,0,0,0,0,0]
["D0001/IL37832/F0042/X119/R0099/001/CONTRA","D0001/IL37832/F0042/X119/R0099/001/CONTRA",263158,37490,"Liabilities:Current Liabilities:VAT Payable: Output Tax:Transfers","IL",3200,"Economic and environmental services / Road transport / Road and Traffic Regulation",3204,"Economic and environmental services / Road transport / Road and Traffic Regulation"," _"," _"," _ "," _ ","_"," _"," _",410,"Current liabilities / VAT","_","_"," _ "," _ "," _ "," _ "," _ "," _ "," _ "," _ ",1003,"Statutory requirements",1003,"Statutory requirements"," _ "," _ "," _ "," _ ",null," _ "," _ ","_","_","_","_",null,null," _ "," _ "," _ "," _ "," _ "," _ "," _ "," _ "," _ "," _ "," _ "," _ "," _ "," _ "," _ "," _ "," _ "," _ "," _ "," _ ",365,"Trade and other payables / VAT",365,"Trade and other payables / VAT",null,"D","_",null,null,9,92,"Road transport","Road and Traffic Regulation",null,"_","_","_","_","_",0,0,0,0,0,0,0,0,0,0,0,0,0,0]
["O0001/IA10376/F0001/X055/R0100/001/CONTRA","O0001/IA10376/F0001/X055/R0100/001/CONTRA",263507,40851,"Assets:Current Assets:VAT Receivable:Input Tax Accrual:Transfers","IA",1200,"Municipal governance and administration / Finance and administration / Property Services",1210,"Municipal governance and administration / Finance and administration / Property Services"," _"," _"," _ "," _ ","_"," _"," _",170,"Current assets / VAT","_","_"," _ "," _ "," _ "," _ "," _ "," _ "," _ "," _ ",1003,"Statutory requirements",1003,"Statutory requirements"," _ "," _ "," _ "," _ ",null," _ "," _ ","_","_","_","_",null,null," _ "," _ "," _ "," _ "," _ "," _ "," _ "," _ "," _ "," _ "," _ "," _ "," _ "," _ "," _ "," _ "," _ "," _ "," _ "," _ "," _ "," _ "," _ "," _ ",null,"O","_",null,null,2,27,"Finance and administration","Property Services",null,"_","_","_","_","_",0,0,0,0,0,0,0,0,0,0,0,0,0,0]
["O0025-7/IL65530/F13636/X101/R0100/001/CONTRA","O0025-7/IL65530/F13636/X101/R0100/001/CONTRA",223948,35770,"Liabilities:Current Liabilities:Trade and Other Payable Exchange Transactions:Payables and Accruals : Contractors:Deposits","IL",3100,"Economic and environmental services / Planning and development / Town Planning, Building Regulations and Enforcement, and City Engineer",3107,"Economic and environmental services / Planning and development / Town Planning, Building Regulations and Enforcement, and City Engineer"," _"," _"," _ "," _ ","_"," _"," _",380,"Current liabilities / Trade and other payables from exchange transactions","_","_"," _ "," _ "," _ "," _ "," _ "," _ "," _ "," _ ","_","_","_","_"," _ "," _ "," _ "," _ ",null," _ "," _ ","_","_","_","_",null,null," _ "," _ "," _ "," _ "," _ "," _ "," _ "," _ "," _ "," _ "," _ "," _ "," _ "," _ "," _ "," _ "," _ "," _ "," _ "," _ ",361,"Trade and other payables / Trade and other payables from exchange transactions",361,"Trade and other payables / Trade and other payables from exchange transactions",null,"O","_",null,null,8,84,"Planning and Development","Town Planning, Building Regulations and Enforcement, and City Engineer",null,"_","_","_","_","_",0,0,0,0,0,0,0,0,0,0,0,0,0,0]
["O0111-3/IA10376/F0001/X052/R3649/001/CONTRA","O0111-3/IA10376/F0001/X052/R3649/001/CONTRA",265888,43231,"Assets:Current Assets:VAT Receivable:Input Tax Accrual:Transfers","IA",1200,"Municipal governance and administration / Finance and administration / Information Technology",1207,"Municipal governance and administration / Finance and administration / Information Technology"," _"," _"," _ "," _ ","_"," _"," _",170,"Current assets / VAT","_","_"," _ "," _ "," _ "," _ "," _ "," _ "," _ "," _ ",1003,"Statutory requirements",1003,"Statutory requirements"," _ "," _ "," _ "," _ ",null," _ "," _ ","_","_","_","_",null,null," _ "," _ "," _ "," _ "," _ "," _ "," _ "," _ "," _ "," _ "," _ "," _ "," _ "," _ "," _ "," _ "," _ "," _ "," _ "," _ "," _ "," _ "," _ "," _ ",null,"O","_",null,null,2,26,"Finance and administration","Information Technology",null,"_","_","_","_","_",0,0,0,0,0,0,0,0,0,0,0,0,0,0]
["O0001/IA10373/F0001/X024/R0100/001/CONTRA","O0001/IA10373/F0001/X024/R0100/001/CONTRA",263562,40255,"Assets:Current Assets:VAT Receivable:VAT Control (Receivable):Transfers","IA",2100,"Community and public safety / Community and social services / Libraries and Archives",2114,"Community and public safety / Community and social services / Libraries and Archives"," _"," _"," _ "," _ ","_"," _"," _",170,"Current assets / VAT","_","_"," _ "," _ "," _ "," _ "," _ "," _ "," _ "," _ ",1003,"Statutory requirements",1003,"Statutory requirements"," _ "," _ "," _ "," _ ",null," _ "," _ ","_","_","_","_",null,null," _ "," _ "," _ "," _ "," _ "," _ "," _ "," _ "," _ "," _ "," _ "," _ "," _ "," _ "," _ "," _ "," _ "," _ "," _ "," _ "," _ "," _ "," _ "," _ ",null,"O","_",null,null,4,44,"Community and social services","Libraries and Archives",null,"_","_","_","_","_",0,0,0,0,0,0,0,0,0,0,0,0,0,0]
["D0001/IR007149/F2496/X049/R3644/001/FIN","D0001/IR007149/F2496/X049/R3644/001/FIN",101936,22603,"Revenue:Non-exchange Revenue:Property Rates by Usage:Public Service Infrastructure Properties","IR",1200,"Municipal governance and administration / Finance and administration / Finance",1204,"Municipal governance and administration / Finance and administration / Finance",1800,"Non-Exchange Revenue / Property rates",1800,"Non-Exchange Revenue / Property rates","_"," _"," _"," _ "," _ "," _ "," _ "," _ "," _ "," _ "," _ "," _ "," _ "," _ "," _ ","_","_","_","_"," _ "," _ "," _ "," _ ",null," _ "," _ ","_","_","_","_",null,null," _ "," _ "," _ "," _ "," _ "," _ "," _ "," _ "," _ "," _ "," _ "," _ "," _ "," _ "," _ "," _ "," _ "," _ "," _ "," _ "," _ "," _ "," _ "," _ ",null,"D","_",null,null,2,23,"Finance and administration","Finance",null,"_","_","_","_","_",0,0,0,0,0,0,0,0,0,0,0,0,0,0]
["D0001/IA02324/F0928/X032/R3649/001/FIN1","D0001/IA02324/F0928/X032/R3649/001/FIN1",91844,21529,"Assets:Current Assets:Trade and other Receivables from Exchange Transactions:Trading Service and Customer Service Debtors:Electricity:Monthly Billing","IA",4100,"Trading services / Energy sources / Electricity",4101,"Trading services / Energy sources / Electricity"," _"," _"," _ "," _ ","_"," _"," _",130,"Current assets / Trade and other receivables from exchange transactions","_","_"," _ "," _ "," _ "," _ "," _ "," _ "," _ "," _ ","_","_","_","_"," _ "," _ "," _ "," _ ",null," _ "," _ ","_","_","_","_",null,null," _ "," _ "," _ "," _ "," _ "," _ "," _ "," _ "," _ "," _ "," _ "," _ "," _ "," _ "," _ "," _ "," _ "," _ "," _ "," _ ",111,"Trade and other receivables from exchange transactions / Electricity",111,"Trade and other receivables from exchange transactions / Electricity",null,"D","_",null,null,10,101,"Energy sources","Electricity",null,"_","_","_","_","_",0,0,0,0,0,0,0,6551334.4900000002,7472999.6799999997,5974877.46,4507194.91,4778105.62,4645365.05,4326460.8]
["O0001/IA11272/F0001/X055/R3653/001/CONTRA","O0001/IA11272/F0001/X055/R3653/001/CONTRA",328108,46140,"Assets:Current Assets:Receivables from Non-exchange Transactions:Service charges:Electricity:Collections","IA",1200,"Municipal governance and administration / Finance and administration / Property Services",1210,"Municipal governance and administration / Finance and administration / Property Services"," _"," _"," _ "," _ ","_"," _"," _",140,"Current assets / Receivables from non-exchange transactions","_","_"," _ "," _ "," _ "," _ "," _ "," _ "," _ "," _ ","_","_","_","_"," _ "," _ "," _ "," _ ",null," _ "," _ ","_","_","_","_",null,null," _ "," _ "," _ "," _ "," _ "," _ "," _ "," _ "," _ "," _ "," _ "," _ "," _ "," _ "," _ "," _ "," _ "," _ "," _ "," _ ",129,"Receivables from non-exchange transactions / Other receivables from non-exchange transactions",129,"Receivables from non-exchange transactions / Other receivables from non-exchange transactions",null,"O","_",null,null,2,27,"Finance and administration","Property Services",null,"_","_","_","_","_",0,0,0,0,0,0,0,0,0,0,0,0,0,0]
["O0001/IE00595/F0041/X097/R0099/001/EDP","O0001/IE00595/F0041/X097/R0099/001/EDP",71512,21199,"Expenditure:Operational Cost:Skills Development Fund Levy","IE",3100,"Economic and environmental services / Planning and development / Development Facilitation",3104,"Economic and environmental services / Planning and development / Development Facilitation",4100,"Expenditure / Operational costs",2904,"Expenditure / Operational costs","_"," _"," _"," _ "," _ "," _ "," _ "," _ "," _ "," _ "," _ "," _ "," _ "," _ "," _ ","_","_","_","_"," _ "," _ "," _ "," _ ",null,2904,"Operational Costs ","_","_","_","_",null,null," _ "," _ "," _ "," _ "," _ "," _ "," _ "," _ "," _ "," _ "," _ "," _ "," _ "," _ "," _ "," _ "," _ "," _ "," _ "," _ "," _ "," _ "," _ "," _ ",null,"O","_",null,null,8,86,"Planning and Development","Development Facilitation",null,"_","_","_","_","_",6870,6870,0,0,7186,7517,0,863.94,871.19,867.89,868.7,862.84,867.27,892.43]
["D0001/IL39588/F0045/X032/R0100/001/CONTRA","D0001/IL39588/F0045/X032/R0100/001/CONTRA",249701,37776,"Liabilities:Current Liabilities:VAT Payable:  Output Tax Accrual:Recognised","IL",4100,"Trading services / Energy sources / Electricity",4101,"Trading services / Energy sources / Electricity"," _"," _"," _ "," _ ","_"," _"," _",410,"Current liabilities / VAT","_","_"," _ "," _ "," _ "," _ "," _ "," _ "," _ "," _ ",1003,"Statutory requirements",1003,"Statutory requirements"," _ "," _ "," _ "," _ ",null," _ "," _ ","_","_","_","_",null,null," _ "," _ "," _ "," _ "," _ "," _ "," _ "," _ "," _ "," _ "," _ "," _ "," _ "," _ "," _ "," _ "," _ "," _ "," _ "," _ ",365,"Trade and other payables / VAT",365,"Trade and other payables / VAT",null,"D","_",null,null,10,101,"Energy sources","Electricity",null,"_","_","_","_","_",-26087,-26087,0,0,-27287,-28542,0,0,0,0,0,0,0,0]
["O1223-4/IE00143/F0041/X044/R0100/001/EXEC","O1223-4/IE00143/F0041/X044/R0100/001/EXEC",119890,23714,"Expenditure:Operational Cost:Travel and Subsistence:Domestic:Transport without Operator:Car Rental","IE",1100,"Municipal governance and administration / Executive and council / Mayor and Council",1110,"Municipal governance and administration / Executive and council / Mayor and Council",4100,"Expenditure / Operational costs",2904,"Expenditure / Operational costs","_"," _"," _"," _ "," _ "," _ "," _ "," _ "," _ "," _ "," _ "," _ "," _ "," _ "," _ ","_","_","_","_"," _ "," _ "," _ "," _ ",null,2904,"Operational Costs ","_","_","_","_",null,null," _ "," _ "," _ "," _ "," _ "," _ "," _ "," _ "," _ "," _ "," _ "," _ "," _ "," _ "," _ "," _ "," _ "," _ "," _ "," _ "," _ "," _ "," _ "," _ ",null,"O","_",null,null,1,11,"Executive and council","Mayor and Council",null,"_","_","_","_","_",20000,20000,0,0,20920,21880,0,0,948.94,502.44,0,0,6517.25,0]
["O1232-27/IA10378/F0041/X044/R0100/001/CONTRA","O1232-27/IA10378/F0041/X044/R0100/001/CONTRA",327433,46580,"Assets:Current Assets:VAT Receivable:Input Tax General:Recognised","IA",1100,"Municipal governance and administration / Executive and council / Mayor and Council",1110,"Municipal governance and administration / Executive and council / Mayor and Council"," _"," _"," _ "," _ ","_"," _"," _",170,"Current assets / VAT","_","_"," _ "," _ "," _ "," _ "," _ "," _ "," _ "," _ ",1003,"Statutory requirements",1003,"Statutory requirements"," _ "," _ "," _ "," _ ",null," _ "," _ ","_","_","_","_",null,null," _ "," _ "," _ "," _ "," _ "," _ "," _ "," _ "," _ "," _ "," _ "," _ "," _ "," _ "," _ "," _ "," _ "," _ "," _ "," _ "," _ "," _ "," _ "," _ ",null,"O","_",null,null,1,11,"Executive and council","Mayor and Council",null,"_","_","_","_","_",7500,0,0,0,7845,8206,0,0,0,0,0,0,0,0]
["D0001/IA05106/F0001/X052/R0099/001/FIN","D0001/IA05106/F0001/X052/R0099/001/FIN",150643,26459,"Assets:Non-current Assets:Intangible Assets:Cost:Other:In-use:Computer Software:Opening Balance","IA",1200,"Municipal governance and administration / Finance and administration / Information Technology",1207,"Municipal governance and administration / Finance and administration / Information Technology"," _"," _"," _ "," _ ","_"," _"," _",270,"Non current assets / Intangible assets","_","_"," _ "," _ "," _ "," _ "," _ "," _ "," _ "," _ ","_","_","_","_",1370,"Intangible Assets",1370,"Intangible Assets",null," _ "," _ ","_","_","_","_",null,null," _ "," _ "," _ "," _ "," _ "," _ "," _ "," _ "," _ "," _ "," _ "," _ "," _ "," _ "," _ "," _ "," _ "," _ "," _ "," _ "," _ "," _ "," _ "," _ ",null,"D","_",null,null,2,26,"Finance and administration","Information Technology",null,"_","_","_","_","_",1383870,0,0,0,1371547,1385263,0,0,0,0,0,0,2123913.0499999998,0]
["D0001/IR007149/F2496/X049/R3641/001/FIN","D0001/IR007149/F2496/X049/R3641/001/FIN",181838,29675,"Revenue:Non-exchange Revenue:Property Rates by Usage:Public Service Infrastructure Properties","IR",1200,"Municipal governance and administration / Finance and administration / Finance",1204,"Municipal governance and administration / Finance and administration / Finance",1800,"Non-Exchange Revenue / Property rates",1800,"Non-Exchange Revenue / Property rates","_"," _"," _"," _ "," _ "," _ "," _ "," _ "," _ "," _ "," _ "," _ "," _ "," _ "," _ ","_","_","_","_"," _ "," _ "," _ "," _ ",null," _ "," _ ","_","_","_","_",null,null," _ "," _ "," _ "," _ "," _ "," _ "," _ "," _ "," _ "," _ "," _ "," _ "," _ "," _ "," _ "," _ "," _ "," _ "," _ "," _ "," _ "," _ "," _ "," _ ",null,"D","_",null,null,2,23,"Finance and administration","Finance",null,"_","_","_","_","_",-20658252,-20658252,0,0,-21608533,-23602528,0,0,0,0,0,0,0,0]
["O0001/IA10379/F0002/X007/R0099/001/CONTRA","O0001/IA10379/F0002/X007/R0099/001/CONTRA",264810,38708,"Assets:Current Assets:VAT Receivable:Input Tax General:Transfers","IA",2100,"Community and public safety / Community and social services / Libraries and Archives",2114,"Community and public safety / Community and social services / Libraries and Archives"," _"," _"," _ "," _ ","_",2080,"Funded by Internally generated funds",170,"Current assets / VAT","_","_"," _ "," _ "," _ "," _ "," _ "," _ "," _ "," _ ",1003,"Statutory requirements",1003,"Statutory requirements"," _ "," _ "," _ "," _ ",null," _ "," _ ","_","_","_","_",null,null," _ "," _ "," _ "," _ "," _ "," _ "," _ "," _ "," _ "," _ "," _ "," _ "," _ "," _ "," _ "," _ "," _ "," _ "," _ "," _ "," _ "," _ "," _ "," _ ",null,"O","_",null,null,4,44,"Community and social services","Libraries and Archives",null,"_","_","_","_","_",0,0,0,0,0,0,0,0,0,0,0,0,0,0]
["O1246-5/IA02108/F13650/X024/R0100/001/CONTRA","O1246-5/IA02108/F13650/X024/R0100/001/CONTRA",224827,36267,"Assets:Current Assets:Cash and Cash Equivalents:Cash at Bank:Bank Account:Specify (replace with account description):Withdrawals","IA",2100,"Community and public safety / Community and social services / Libraries and Archives",2114,"Community and public safety / Community and social services / Libraries and Archives"," _"," _"," _ "," _ ","_"," _"," _",120,"Current assets / Cash and cash equivalents","_","_"," _ "," _ "," _ "," _ "," _ "," _ "," _ "," _ ","_","_","_","_"," _ "," _ "," _ "," _ ",null," _ "," _ ","_","_","_","_",null,null," _ "," _ "," _ "," _ "," _ "," _ "," _ "," _ "," _ "," _ "," _ "," _ "," _ "," _ "," _ "," _ "," _ "," _ "," _ "," _ "," _ "," _ "," _ "," _ ","W","O","_",null,null,4,44,"Community and social services","Libraries and Archives",null,"_","_","_","_","_",-134550,-80500,0,0,-140737,-147212,0,0,0,0,0,0,0,0]
["O0001/IA10375/F0041/X052/R0099/001/CONTRA","O0001/IA10375/F0041/X052/R0099/001/CONTRA",222563,33007,"Assets:Current Assets:VAT Receivable:Input Tax Accrual:Recognised","IA",1200,"Municipal governance and administration / Finance and administration / Information Technology",1207,"Municipal governance and administration / Finance and administration / Information Technology"," _"," _"," _ "," _ ","_"," _"," _",170,"Current assets / VAT","_","_"," _ "," _ "," _ "," _ "," _ "," _ "," _ "," _ ",1003,"Statutory requirements",1003,"Statutory requirements"," _ "," _ "," _ "," _ ",null," _ "," _ ","_","_","_","_",null,null," _ "," _ "," _ "," _ "," _ "," _ "," _ "," _ "," _ "," _ "," _ "," _ "," _ "," _ "," _ "," _ "," _ "," _ "," _ "," _ "," _ "," _ "," _ "," _ ",null,"O","_",null,null,2,26,"Finance and administration","Information Technology",null,"_","_","_","_","_",934565,876657,0,0,1141355,1200758,0,0,0,0,0,0,0,0]
["O1255-3/IE00671/F0041/X007/R0100/001/COMM","O1255-3/IE00671/F0041/X007/R0100/001/COMM",60855,20870,"Expenditure:Contracted Services:Contractors:Transportation","IE",2100,"Community and public safety / Community and social services / Libraries and Archives",2114,"Community and public safety / Community and social services / Libraries and Archives",3800,"Expenditure / Contracted services",2703,"Expenditure / Contracted services","_"," _"," _"," _ "," _ "," _ "," _ "," _ "," _ "," _ "," _ "," _ "," _ "," _ "," _ ","_","_","_","_"," _ "," _ "," _ "," _ ",null,2703,"Contracted Services ","_","_","_","_",null,null," _ "," _ "," _ "," _ "," _ "," _ "," _ "," _ "," _ "," _ "," _ "," _ "," _ "," _ "," _ "," _ "," _ "," _ "," _ "," _ "," _ "," _ "," _ "," _ ",null,"O","_",null,null,4,44,"Community and social services","Libraries and Archives",null,"_","_","_","_","_",0,0,0,0,0,0,0,0,0,0,0,0,0,0]
["O0001/IL53821/F0791/X129/R3643/001/CONTRA","O0001/IL53821/F0791/X129/R3643/001/CONTRA",222617,33073,"Liabilities:Current Liabilities:Trade and Other Payable Exchange Transactions:Payables and Accruals : General:Withdrawals","IL",2200,"Community and public safety / Sport and recreation / Sports Grounds and Stadiums",2205,"Community and public safety / Sport and recreation / Sports Grounds and Stadiums"," _"," _"," _ "," _ ","_",2010,"Funded by National Government",380,"Current liabilities / Trade and other payables from exchange transactions","_","_"," _ ",200," _ ","CASH FLOW FROM OPERATING ACTIVITIES / Payments / Suppliers and employees"," _ ",480," _ ","Cash Payments by Type / Other expenditure","_","_","_","_"," _ "," _ "," _ "," _ ",null," _ "," _ ","_","_","_","_",null,null," _ "," _ "," _ "," _ "," _ "," _ "," _ "," _ "," _ "," _ "," _ "," _ "," _ "," _ "," _ "," _ "," _ "," _ "," _ "," _ ",361,"Trade and other payables / Trade and other payables from exchange transactions",361,"Trade and other payables / Trade and other payables from exchange transactions",null,"O","_",null,null,5,54,"Sport and Recreation","Sports Grounds and Stadiums",null,"_","_","_","_","_",0,0,0,0,0,0,0,0,0,0,0,0,0,0]
["O0001/IL54030/F0041/X116/R0099/001/CONTRA","O0001/IL54030/F0041/X116/R0099/001/CONTRA",225511,34608,"Liabilities:Current Liabilities:Trade and Other Payable Exchange Transactions:Long Service Award:Deposits","IL",3200,"Economic and environmental services / Road transport / Roads",3205,"Economic and environmental services / Road transport / Roads"," _"," _"," _ "," _ ","_"," _"," _",380,"Current liabilities / Trade and other payables from exchange transactions","_","_"," _ "," _ "," _ "," _ "," _ "," _ "," _ "," _ ","_","_","_","_"," _ "," _ "," _ "," _ ",null," _ "," _ ","_","_","_","_",null,null," _ "," _ "," _ "," _ "," _ "," _ "," _ "," _ "," _ "," _ "," _ "," _ "," _ "," _ "," _ "," _ "," _ "," _ "," _ "," _ ",361,"Trade and other payables / Trade and other payables from exchange transactions",361,"Trade and other payables / Trade and other payables from exchange transactions",null,"O","_",null,null,9,91,"Road transport","Roads",null,"_","_","_","_","_",-200510,-200510,0,0,-209730,-219380,0,0,0,0,0,0,0,0]
["D0001/IL093071/F0001/X032/R0099/001/FIN","D0001/IL093071/F0001/X032/R0099/001/FIN",328526,47427,"Liabilities:Current Liabilities:Trade and Other Payable Non-exchange Transactions:Transfers and Subsidies Unspent:Operational:Monetary Allocations:Provincial Government:KwaZulu-Natal:Capacity Building and Other:Specify (Add grant description):Opening Balance","IL",4100,"Trading services / Energy sources / Electricity",4101,"Trading services / Energy sources / Electricity"," _"," _"," _ "," _ ","_"," _"," _",390,"Current liabilities / Trade and other payables from non-exchange transactions","_","_"," _ "," _ "," _ "," _ "," _ "," _ "," _ "," _ ","_","_","_","_"," _ "," _ "," _ "," _ ",null," _ "," _ ","_","_","_","_",null,null," _ "," _ "," _ "," _ "," _ "," _ "," _ "," _ "," _ "," _ "," _ "," _ "," _ "," _ "," _ "," _ "," _ "," _ "," _ "," _ ",363,"Trade and other payables / Trade payables from Non-exchange transactions: Unspent conditional Grants",363,"Trade and other payables / Trade payables from Non-exchange transactions: Unspent conditional Grants",null,"D","_",null,null,10,101,"Energy sources","Electricity",null,"_","_","_","_","_",0,0,0,0,0,0,0,0,0,0,0,0,557546.15,0]
["O0001/IL54034/F0041/X016/R0099/001/CONTRA","O0001/IL54034/F0041/X016/R0099/001/CONTRA",222418,35145,"Liabilities:Current Liabilities:Trade and Other Payable Exchange Transactions:Auditor-General of South Africa:Deposits","IL",2100,"Community and public safety / Community and social services / Community Halls and Facilities",2106,"Community and public safety / Community and social services / Community Halls and Facilities"," _"," _"," _ "," _ ","_"," _"," _",380,"Current liabilities / Trade and other payables from exchange transactions","_","_"," _ "," _ "," _ "," _ "," _ "," _ "," _ "," _ ","_","_","_","_"," _ "," _ "," _ "," _ ",null," _ "," _ ","_","_","_","_",null,null," _ "," _ "," _ "," _ "," _ "," _ "," _ "," _ "," _ "," _ "," _ "," _ "," _ "," _ "," _ "," _ "," _ "," _ "," _ "," _ ",361,"Trade and other payables / Trade and other payables from exchange transactions",361,"Trade and other payables / Trade and other payables from exchange transactions",null,"O","_",null,null,4,43,"Community and social services","Community Halls and Facilities",null,"_","_","_","_","_",0,0,0,0,0,0,0,0,0,0,0,0,0,0]
["D0001/IR01443/F9418/X128/R0100/001/COMM","D0001/IR01443/F9418/X128/R0100/001/COMM",60771,20808,"Revenue:Exchange Revenue:Sales of Goods and Rendering of Services:Entrance Fees","IR",2200,"Community and public safety / Sport and recreation / Recreational Facilities",2204,"Community and public safety / Sport and recreation / Recreational Facilities",700,"Exchange Revenue / Sale of Goods and Rendering of Services",700,"Exchange Revenue / Sale of Goods and Rendering of Services","_"," _"," _"," _ "," _ "," _ "," _ "," _ "," _ "," _ "," _ "," _ "," _ "," _ "," _ ","_","_","_","_"," _ "," _ "," _ "," _ ",null," _ "," _ ","_","_","_","_",null,null," _ "," _ "," _ "," _ "," _ "," _ "," _ "," _ "," _ "," _ "," _ "," _ "," _ "," _ "," _ "," _ "," _ "," _ "," _ "," _ "," _ "," _ "," _ "," _ ",null,"D","_",null,null,5,53,"Sport and Recreation","Recreational Facilities",null,"_","_","_","_","_",0,0,0,0,0,0,0,0,0,0,0,0,0,0]
["O0001/IE00043/F1182/X099/R0099/001/TECH","O0001/IE00043/F1182/X099/R0099/001/TECH",61133,20946,"Expenditure:Employee Related Cost:Municipal Staff:Social Contributions:Medical","IE",3100,"Economic and environmental services / Planning and development / Project Management Unit",3108,"Economic and environmental services / Planning and development / Project Management Unit",3100,"Expenditure / Employee related costs",2003,"Expenditure / Employee related costs","_"," _"," _"," _ "," _ "," _ "," _ "," _ "," _ "," _ "," _ "," _ "," _ "," _ "," _ ","_","_","_","_"," _ "," _ "," _ "," _ ",null,2003,"Employee related costs / Medical Aid Contributions","_","_","_","_",null,null," _ "," _ "," _ "," _ "," _ "," _ "," _ "," _ "," _ "," _ "," _ "," _ "," _ "," _ "," _ "," _ "," _ "," _ "," _ "," _ "," _ "," _ "," _ "," _ ",null,"O","_","MS",null,8,83,"Planning and Development","Project Management Unit",null,"_","_","_","_","_",5000,5000,0,0,5230,5470,0,0,0,0,0,0,0,0]
["D0001/IL092600/F1169/X049/R0099/001/FIN","D0001/IL092600/F1169/X049/R0099/001/FIN",161321,28152,"Liabilities:Current Liabilities:Trade and Other Payable Non-exchange Transactions:Transfers and Subsidies Unspent:Operational:Monetary Allocations:National Government:Integrated National Electrification Programme Grant:Receipts","IL",1200,"Municipal governance and administration / Finance and administration / Finance",1204,"Municipal governance and administration / Finance and administration / Finance"," _"," _"," _ "," _ ","_"," _"," _",390,"Current liabilities / Trade and other payables from non-exchange transactions","_","_"," _ "," _ "," _ "," _ "," _ "," _ "," _ "," _ ","_","_","_","_"," _ "," _ "," _ "," _ ",null," _ "," _ ","_","_","_","_",null,null," _ "," _ "," _ "," _ "," _ "," _ "," _ "," _ "," _ "," _ "," _ "," _ "," _ "," _ "," _ "," _ "," _ "," _ "," _ "," _ ",363,"Trade and other payables / Trade payables from Non-exchange transactions: Unspent conditional Grants",363,"Trade and other payables / Trade payables from Non-exchange transactions: Unspent conditional Grants",null,"D","_",null,null,2,23,"Finance and administration","Finance",null,"_","_","_","_","_",0,0,0,0,0,0,0,0,0,0,0,0,0,0]
["O1244-3/IA10376/F0041/X044/R0100/001/CONTRA","O1244-3/IA10376/F0041/X044/R0100/001/CONTRA",263224,43900,"Assets:Current Assets:VAT Receivable:Input Tax Accrual:Transfers","IA",1100,"Municipal governance and administration / Executive and council / Mayor and Council",1110,"Municipal governance and administration / Executive and council / Mayor and Council"," _"," _"," _ "," _ ","_"," _"," _",170,"Current assets / VAT","_","_"," _ "," _ "," _ "," _ "," _ "," _ "," _ "," _ ",1003,"Statutory requirements",1003,"Statutory requirements"," _ "," _ "," _ "," _ ",null," _ "," _ ","_","_","_","_",null,null," _ "," _ "," _ "," _ "," _ "," _ "," _ "," _ "," _ "," _ "," _ "," _ "," _ "," _ "," _ "," _ "," _ "," _ "," _ "," _ "," _ "," _ "," _ "," _ ",null,"O","_",null,null,1,11,"Executive and council","Mayor and Council",null,"_","_","_","_","_",-8550,-8550,0,0,-8943,-9354,0,0,0,0,0,0,0,0]
["D0001/IL15007/F0045/X122/R0100/001/CONTRA","D0001/IL15007/F0045/X122/R0100/001/CONTRA",250544,40927,"Liabilities:Current Liabilities:Trade and Other Payable Non-exchange Transactions:Transfers and Subsidies Unspent:Capital:Monetary Allocations:Public Corporations:Other Transfers Public Corporations:Mpumalanga Agricultural Development Corporation:Transfer","IL",2200,"Community and public safety / Sport and recreation / Beaches and Jetties",2201,"Community and public safety / Sport and recreation / Beaches and Jetties"," _"," _"," _ "," _ ","_"," _"," _",390,"Current liabilities / Trade and other payables from non-exchange transactions","_","_"," _ "," _ "," _ "," _ "," _ "," _ "," _ "," _ ","_","_","_","_"," _ "," _ "," _ "," _ ",null," _ "," _ ","_","_","_","_",null,null," _ "," _ "," _ "," _ "," _ "," _ "," _ "," _ "," _ "," _ "," _ "," _ "," _ "," _ "," _ "," _ "," _ "," _ "," _ "," _ ",363,"Trade and other payables / Trade payables from Non-exchange transactions: Unspent conditional Grants",363,"Trade and other payables / Trade payables from Non-exchange transactions: Unspent conditional Grants",null,"D","_",null,null,5,55,"Sport and Recreation","Beaches and Jetties",null,"_","_","_","_","_",0,0,0,0,0,0,0,0,0,0,0,0,0,0]
["O1333-1/IA02108/F0041/X044/R0100/001/CONTRA","O1333-1/IA02108/F0041/X044/R0100/001/CONTRA",225007,34254,"Assets:Current Assets:Cash and Cash Equivalents:Cash at Bank:Bank Account:Specify (replace with account description):Withdrawals","IA",1100,"Municipal governance and administration / Executive and council / Mayor and Council",1110,"Municipal governance and administration / Executive and council / Mayor and Council"," _"," _"," _ "," _ ","_"," _"," _",120,"Current assets / Cash and cash equivalents","_","_"," _ "," _ "," _ "," _ "," _ "," _ "," _ "," _ ","_","_","_","_"," _ "," _ "," _ "," _ ",null," _ "," _ ","_","_","_","_",null,null," _ "," _ "," _ "," _ "," _ "," _ "," _ "," _ "," _ "," _ "," _ "," _ "," _ "," _ "," _ "," _ "," _ "," _ "," _ "," _ "," _ "," _ "," _ "," _ ","W","O","_",null,null,1,11,"Executive and council","Mayor and Council",null,"_","_","_","_","_",-921000,-566276,0,0,-649566,-679443,0,0,0,0,0,0,0,0]
["O0001/IA10379/F0041/X051/R0100/001/CONTRA","O0001/IA10379/F0041/X051/R0100/001/CONTRA",263726,37589,"Assets:Current Assets:VAT Receivable:Input Tax General:Transfers","IA",1200,"Municipal governance and administration / Finance and administration / Human Resources",1206,"Municipal governance and administration / Finance and administration / Human Resources"," _"," _"," _ "," _ ","_"," _"," _",170,"Current assets / VAT","_","_"," _ "," _ "," _ "," _ "," _ "," _ "," _ "," _ ",1003,"Statutory requirements",1003,"Statutory requirements"," _ "," _ "," _ "," _ ",null," _ "," _ ","_","_","_","_",null,null," _ "," _ "," _ "," _ "," _ "," _ "," _ "," _ "," _ "," _ "," _ "," _ "," _ "," _ "," _ "," _ "," _ "," _ "," _ "," _ "," _ "," _ "," _ "," _ ",null,"O","_",null,null,2,25,"Finance and administration","Human Resources",null,"_","_","_","_","_",0,0,0,0,0,0,0,0,0,0,0,0,0,0]
["O0001/IE00516/F0930/X132/R0099/001/CONTRA","O0001/IE00516/F0930/X132/R0099/001/CONTRA",328073,47285,"Expenditure:Irrecoverable Debts Written Off","IE",4400,"Trading services / Waste management / Solid Waste Removal",4403,"Trading services / Waste management / Solid Waste Removal"," _"," _"," _ "," _ ","_"," _"," _"," _ "," _ "," _ "," _ "," _ "," _ "," _ "," _ "," _ "," _ "," _ "," _ ","_","_","_","_"," _ "," _ "," _ "," _ ",null," _ "," _ ","_","_","_","_",null,null," _ "," _ "," _ "," _ "," _ "," _ "," _ "," _ "," _ "," _ "," _ "," _ "," _ "," _ "," _ "," _ "," _ "," _ "," _ "," _ "," _ "," _ "," _ "," _ ",null,"O","_",null,null,11,111,"Waste Management","Solid Waste Removal",null,"_","_","_","_","_",0,0,0,0,0,0,0,0,0,0,0,0,0,0]
["O0001/IA10376/F13650/X007/R0100/001/CONTRA","O0001/IA10376/F13650/X007/R0100/001/CONTRA",263862,37595,"Assets:Current Assets:VAT Receivable:Input Tax Accrual:Transfers","IA",2100,"Community and public safety / Community and social services / Libraries and Archives",2114,"Community and public safety / Community and social services / Libraries and Archives"," _"," _"," _ "," _ ","_"," _"," _",170,"Current assets / VAT","_","_"," _ "," _ "," _ "," _ "," _ "," _ "," _ "," _ ",1003,"Statutory requirements",1003,"Statutory requirements"," _ "," _ "," _ "," _ ",null," _ "," _ ","_","_","_","_",null,null," _ "," _ "," _ "," _ "," _ "," _ "," _ "," _ "," _ "," _ "," _ "," _ "," _ "," _ "," _ "," _ "," _ "," _ "," _ "," _ "," _ "," _ "," _ "," _ ",null,"O","_",null,null,4,44,"Community and social services","Libraries and Archives",null,"_","_","_","_","_",-4537,-7977,0,0,-3945,-3431,0,0,0,0,0,0,0,0]
["O0001/IL53996/F0041/X037/R0099/001/CONTRA","O0001/IL53996/F0041/X037/R0099/001/CONTRA",224425,34081,"Liabilities:Current Liabilities:Trade and Other Payable Exchange Transactions:Control, Clearing and Interface Accounts:Salary Clearing and Control:UIF Control:Withdrawals","IL",3300,"Economic and environmental services / Environmental protection / Biodiversity and Landscape",3301,"Economic and environmental services / Environmental protection / Biodiversity and Landscape"," _"," _"," _ "," _ ","_"," _"," _",380,"Current liabilities / Trade and other payables from exchange transactions","_","_"," _ ",200," _ ","CASH FLOW FROM OPERATING ACTIVITIES / Payments / Suppliers and employees"," _ ",390," _ ","Cash Payments by Type / Employee related costs","_","_","_","_"," _ "," _ "," _ "," _ ",null," _ "," _ ","_","_","_","_",null,null," _ "," _ "," _ "," _ "," _ "," _ "," _ "," _ "," _ "," _ "," _ "," _ "," _ "," _ "," _ "," _ "," _ "," _ "," _ "," _ ",361,"Trade and other payables / Trade and other payables from exchange transactions",361,"Trade and other payables / Trade and other payables from exchange transactions",null,"O","_",null,null,12,121,"Environmental Protection","Biodiversity and Landscape",null,"_","_","_","_","_",18350,29377,0,0,19190,20070,0,0,0,0,0,0,0,0]
["O0001/IE00650/F0041/X045/R0099/001/EXE1","O0001/IE00650/F0041/X045/R0099/001/EXE1",112393,23101,"Expenditure:Contracted Services:Contractors:Maintenance of Equipment","IE",1100,"Municipal governance and administration / Executive and council / Municipal Manager, Town Secretary and Chief Executive",1120,"Municipal governance and administration / Executive and council / Municipal Manager, Town Secretary and Chief Executive",3800,"Expenditure / Contracted services",2703,"Expenditure / Contracted services","_"," _"," _"," _ "," _ "," _ "," _ "," _ "," _ "," _ "," _ "," _ "," _ "," _ "," _ ","_","_","_","_"," _ "," _ "," _ "," _ ",null,2703,"Contracted Services ","_","_","_","_",null,null," _ "," _ "," _ "," _ "," _ "," _ "," _ "," _ "," _ "," _ "," _ "," _ "," _ "," _ "," _ "," _ "," _ "," _ "," _ "," _ "," _ "," _ "," _ "," _ ",null,"O","_",null,null,1,12,"Executive and council","Municipal Manager, Town Secretary and Chief Executive",null,"_","_","_","_","_",0,0,0,0,0,0,0,0,0,0,0,0,0,0]
["O0001/IE00778/F0041/X046/R0099/001/FIN1","O0001/IE00778/F0041/X046/R0099/001/FIN1",112622,23329,"Expenditure:Operational Cost:Communication:Telephone, Fax, Telegraph and Telex","IE",1200,"Municipal governance and administration / Finance and administration / Administrative and Corporate Support",1201,"Municipal governance and administration / Finance and administration / Administrative and Corporate Support",4100,"Expenditure / Operational costs",2904,"Expenditure / Operational costs","_"," _"," _"," _ "," _ "," _ "," _ "," _ "," _ "," _ "," _ "," _ "," _ "," _ "," _ ","_","_","_","_"," _ "," _ "," _ "," _ ",null,2904,"Operational Costs ","_","_","_","_",null,null," _ "," _ "," _ "," _ "," _ "," _ "," _ "," _ "," _ "," _ "," _ "," _ "," _ "," _ "," _ "," _ "," _ "," _ "," _ "," _ "," _ "," _ "," _ "," _ ",null,"O","_",null,null,2,21,"Finance and administration","Administrative and Corporate Support",null,"_","_","_","_","_",0,0,0,0,0,0,0,0,0,0,0,0,0,0]
["O1232-22/IA10379/F0041/X032/R0099/001/CONTRA","O1232-22/IA10379/F0041/X032/R0099/001/CONTRA",276646,41251,"Assets:Current Assets:VAT Receivable:Input Tax General:Transfers","IA",4100,"Trading services / Energy sources / Electricity",4101,"Trading services / Energy sources / Electricity"," _"," _"," _ "," _ ","_"," _"," _",170,"Current assets / VAT","_","_"," _ "," _ "," _ "," _ "," _ "," _ "," _ "," _ ",1003,"Statutory requirements",1003,"Statutory requirements"," _ "," _ "," _ "," _ ",null," _ "," _ ","_","_","_","_",null,null," _ "," _ "," _ "," _ "," _ "," _ "," _ "," _ "," _ "," _ "," _ "," _ "," _ "," _ "," _ "," _ "," _ "," _ "," _ "," _ "," _ "," _ "," _ "," _ ",null,"O","_",null,null,10,101,"Energy sources","Electricity",null,"_","_","_","_","_",0,0,0,0,0,0,0,0,0,0,0,0,0,0]
["O0001/IE06111/F0041/X098/R0099/001/EDP","O0001/IE06111/F0041/X098/R0099/001/EDP",71507,21194,"Expenditure:Employee Related Cost:Senior Management:Designation:Salaries and Allowances:Bonuses","IE",3100,"Economic and environmental services / Planning and development / Economic Development/Planning",3105,"Economic and environmental services / Planning and development / Economic Development/Planning",3100,"Expenditure / Employee related costs",2005,"Expenditure / Employee related costs","_"," _"," _"," _ "," _ "," _ "," _ "," _ "," _ "," _ "," _ "," _ "," _ "," _ "," _ ","_","_","_","_"," _ "," _ "," _ "," _ ",null,2005,"Employee related costs / Performance Bonus","_","_","_","_",null,null," _ "," _ "," _ "," _ "," _ "," _ "," _ "," _ "," _ "," _ "," _ "," _ "," _ "," _ "," _ "," _ "," _ "," _ "," _ "," _ "," _ "," _ "," _ "," _ ",null,"O","_","SM",null,8,82,"Planning and Development","Economic Development/Planning",null,"_","_","_","_","_",74605,0,0,0,78037,81627,0,0,0,0,0,0,0,0]
["O0015-14/IA10375/F2496/X101/R0100/001/CONTRA","O0015-14/IA10375/F2496/X101/R0100/001/CONTRA",222631,33082,"Assets:Current Assets:VAT Receivable:Input Tax Accrual:Recognised","IA",3100,"Economic and environmental services / Planning and development / Town Planning, Building Regulations and Enforcement, and City Engineer",3107,"Economic and environmental services / Planning and development / Town Planning, Building Regulations and Enforcement, and City Engineer"," _"," _"," _ "," _ ","_"," _"," _",170,"Current assets / VAT","_","_"," _ "," _ "," _ "," _ "," _ "," _ "," _ "," _ ",1003,"Statutory requirements",1003,"Statutory requirements"," _ "," _ "," _ "," _ ",null," _ "," _ ","_","_","_","_",null,null," _ "," _ "," _ "," _ "," _ "," _ "," _ "," _ "," _ "," _ "," _ "," _ "," _ "," _ "," _ "," _ "," _ "," _ "," _ "," _ "," _ "," _ "," _ "," _ ",null,"O","_",null,null,8,84,"Planning and Development","Town Planning, Building Regulations and Enforcement, and City Engineer",null,"_","_","_","_","_",0,0,0,0,0,0,0,0,0,0,0,0,0,0]
["O0001/IL53821/F0041/X050/R0099/001/CONTRA","O0001/IL53821/F0041/X050/R0099/001/CONTRA",223594,33616,"Liabilities:Current Liabilities:Trade and Other Payable Exchange Transactions:Payables and Accruals : General:Withdrawals","IL",1200,"Municipal governance and administration / Finance and administration / Fleet Management",1205,"Municipal governance and administration / Finance and administration / Fleet Management"," _"," _"," _ "," _ ","_"," _"," _",380,"Current liabilities / Trade and other payables from exchange transactions","_","_"," _ ",200," _ ","CASH FLOW FROM OPERATING ACTIVITIES / Payments / Suppliers and employees"," _ ",480," _ ","Cash Payments by Type / Other expenditure","_","_","_","_"," _ "," _ "," _ "," _ ",null," _ "," _ ","_","_","_","_",null,null," _ "," _ "," _ "," _ "," _ "," _ "," _ "," _ "," _ "," _ "," _ "," _ "," _ "," _ "," _ "," _ "," _ "," _ "," _ "," _ ",361,"Trade and other payables / Trade and other payables from exchange transactions",361,"Trade and other payables / Trade and other payables from exchange transactions",null,"O","_",null,null,2,24,"Finance and administration","Fleet Management",null,"_","_","_","_","_",0,0,0,0,0,0,0,0,0,0,0,0,0,0]
["O0001/IL53998/F0041/X098/R0099/001/CONTRA","O0001/IL53998/F0041/X098/R0099/001/CONTRA",249654,37604,"Liabilities:Current Liabilities:Trade and Other Payable Exchange Transactions:Control, Clearing and Interface Accounts:Salary Clearing and Control:Skills Control:Withdrawals","IL",3100,"Economic and environmental services / Planning and development / Economic Development/Planning",3105,"Economic and environmental services / Planning and development / Economic Development/Planning"," _"," _"," _ "," _ ","_"," _"," _",380,"Current liabilities / Trade and other payables from exchange transactions","_","_"," _ ",200," _ ","CASH FLOW FROM OPERATING ACTIVITIES / Payments / Suppliers and employees"," _ ",390," _ ","Cash Payments by Type / Employee related costs","_","_","_","_"," _ "," _ "," _ "," _ ",null," _ "," _ ","_","_","_","_",null,null," _ "," _ "," _ "," _ "," _ "," _ "," _ "," _ "," _ "," _ "," _ "," _ "," _ "," _ "," _ "," _ "," _ "," _ "," _ "," _ ",361,"Trade and other payables / Trade and other payables from exchange transactions",361,"Trade and other payables / Trade and other payables from exchange transactions",null,"O","_",null,null,8,82,"Planning and Development","Economic Development/Planning",null,"_","_","_","_","_",20677,22076,0,0,21628,22623,0,0,0,0,0,0,0,0]
["O0001/IA02108/F0791/X129/R0100/001/CONTRA","O0001/IA02108/F0791/X129/R0100/001/CONTRA",222610,33057,"Assets:Current Assets:Cash and Cash Equivalents:Cash at Bank:Bank Account:Specify (replace with account description):Withdrawals","IA",2200,"Community and public safety / Sport and recreation / Sports Grounds and Stadiums",2205,"Community and public safety / Sport and recreation / Sports Grounds and Stadiums"," _"," _"," _ "," _ ","_",2010,"Funded by National Government",120,"Current assets / Cash and cash equivalents","_","_"," _ "," _ "," _ "," _ "," _ "," _ "," _ "," _ ","_","_","_","_"," _ "," _ "," _ "," _ ",null," _ "," _ ","_","_","_","_",null,null," _ "," _ "," _ "," _ "," _ "," _ "," _ "," _ "," _ "," _ "," _ "," _ "," _ "," _ "," _ "," _ "," _ "," _ "," _ "," _ "," _ "," _ "," _ "," _ ","W","O","_",null,null,5,54,"Sport and Recreation","Sports Grounds and Stadiums",null,"_","_","_","_","_",0,0,0,0,0,0,0,0,0,0,0,0,0,0]
["D0001/IZ00060/F0930/X132/R0099/001/COMM","D0001/IZ00060/F0930/X132/R0099/001/COMM",161258,28063,"Gains and Losses:Impairment Loss:Trade and Other Receivables from Exchange Transactions:Waste Management","IE",4400,"Trading services / Waste management / Solid Waste Removal",4403,"Trading services / Waste management / Solid Waste Removal",3500,"Expenditure / Debt impairment",3500,"Expenditure / Debt impairment","_"," _"," _"," _ "," _ "," _ "," _ "," _ "," _ "," _ "," _ "," _ "," _ "," _ "," _ ","_","_","_","_"," _ "," _ "," _ "," _ ",null," _ "," _ ","_","_","_","_",null,null," _ "," _ "," _ "," _ "," _ "," _ "," _ "," _ "," _ "," _ "," _ "," _ "," _ "," _ "," _ "," _ "," _ "," _ "," _ "," _ "," _ "," _ "," _ "," _ ",null,"D","_",null,null,11,111,"Waste Management","Solid Waste Removal",null,"_","_","_","_","_",3500000,3500000,0,0,4635000,14000000,0,0,0,0,0,0,0,0]
["O1255-8/IL65531/F13650/X025/R0100/001/CONTRA","O1255-8/IL65531/F13650/X025/R0100/001/CONTRA",223164,35353,"Liabilities:Current Liabilities:Trade and Other Payable Exchange Transactions:Payables and Accruals : Contractors:Withdrawals","IL",2100,"Community and public safety / Community and social services / Literacy Programmes",2115,"Community and public safety / Community and social services / Literacy Programmes"," _"," _"," _ "," _ ","_"," _"," _",380,"Current liabilities / Trade and other payables from exchange transactions","_","_"," _ ",200," _ ","CASH FLOW FROM OPERATING ACTIVITIES / Payments / Suppliers and employees"," _ ",450," _ ","Cash Payments by Type / Contracted services","_","_","_","_"," _ "," _ "," _ "," _ ",null," _ "," _ ","_","_","_","_",null,null," _ "," _ "," _ "," _ "," _ "," _ "," _ "," _ "," _ "," _ "," _ "," _ "," _ "," _ "," _ "," _ "," _ "," _ "," _ "," _ ",361,"Trade and other payables / Trade and other payables from exchange transactions",361,"Trade and other payables / Trade and other payables from exchange transactions",null,"O","_",null,null,4,46,"Community and social services","Literacy Programmes",null,"_","_","_","_","_",80500,67735,0,0,84203,88067,0,0,0,0,0,0,0,0]
["O0001/IL53995/F0041/X051/R0099/001/CONTRA","O0001/IL53995/F0041/X051/R0099/001/CONTRA",222885,33339,"Liabilities:Current Liabilities:Trade and Other Payable Exchange Transactions:Control, Clearing and Interface Accounts:Salary Clearing and Control:UIF Control:Deposits","IL",1200,"Municipal governance and administration / Finance and administration / Human Resources",1206,"Municipal governance and administration / Finance and administration / Human Resources"," _"," _"," _ "," _ ","_"," _"," _",380,"Current liabilities / Trade and other payables from exchange transactions","_","_"," _ "," _ "," _ "," _ "," _ "," _ "," _ "," _ ","_","_","_","_"," _ "," _ "," _ "," _ ",null," _ "," _ ","_","_","_","_",null,null," _ "," _ "," _ "," _ "," _ "," _ "," _ "," _ "," _ "," _ "," _ "," _ "," _ "," _ "," _ "," _ "," _ "," _ "," _ "," _ ",361,"Trade and other payables / Trade and other payables from exchange transactions",361,"Trade and other payables / Trade and other payables from exchange transactions",null,"O","_",null,null,2,25,"Finance and administration","Human Resources",null,"_","_","_","_","_",-10280,-12074,0,0,-10750,-11250,0,0,0,0,0,0,0,0]
["O1232-11/IA10378/F0041/X116/R0100/001/CONTRA","O1232-11/IA10378/F0041/X116/R0100/001/CONTRA",265750,39316,"Assets:Current Assets:VAT Receivable:Input Tax General:Recognised","IA",3200,"Economic and environmental services / Road transport / Roads",3205,"Economic and environmental services / Road transport / Roads"," _"," _"," _ "," _ ","_"," _"," _",170,"Current assets / VAT","_","_"," _ "," _ "," _ "," _ "," _ "," _ "," _ "," _ ",1003,"Statutory requirements",1003,"Statutory requirements"," _ "," _ "," _ "," _ ",null," _ "," _ ","_","_","_","_",null,null," _ "," _ "," _ "," _ "," _ "," _ "," _ "," _ "," _ "," _ "," _ "," _ "," _ "," _ "," _ "," _ "," _ "," _ "," _ "," _ "," _ "," _ "," _ "," _ ",null,"O","_",null,null,9,91,"Road transport","Roads",null,"_","_","_","_","_",0,0,0,0,0,0,0,0,0,0,0,0,0,0]
["O1337-5/IA10375/F0041/X051/R0099/001/CONTRA","O1337-5/IA10375/F0041/X051/R0099/001/CONTRA",223437,33457,"Assets:Current Assets:VAT Receivable:Input Tax Accrual:Recognised","IA",1200,"Municipal governance and administration / Finance and administration / Human Resources",1206,"Municipal governance and administration / Finance and administration / Human Resources"," _"," _"," _ "," _ ","_"," _"," _",170,"Current assets / VAT","_","_"," _ "," _ "," _ "," _ "," _ "," _ "," _ "," _ ",1003,"Statutory requirements",1003,"Statutory requirements"," _ "," _ "," _ "," _ ",null," _ "," _ ","_","_","_","_",null,null," _ "," _ "," _ "," _ "," _ "," _ "," _ "," _ "," _ "," _ "," _ "," _ "," _ "," _ "," _ "," _ "," _ "," _ "," _ "," _ "," _ "," _ "," _ "," _ ",null,"O","_",null,null,2,25,"Finance and administration","Human Resources",null,"_","_","_","_","_",84783,71740,0,0,88683,92762,0,0,0,0,0,0,0,0]
["O1239-2/IL53821/F0041/X044/R0100/001/CONTRA","O1239-2/IL53821/F0041/X044/R0100/001/CONTRA",223079,35261,"Liabilities:Current Liabilities:Trade and Other Payable Exchange Transactions:Payables and Accruals : General:Withdrawals","IL",1100,"Municipal governance and administration / Executive and council / Mayor and Council",1110,"Municipal governance and administration / Executive and council / Mayor and Council"," _"," _"," _ "," _ ","_"," _"," _",380,"Current liabilities / Trade and other payables from exchange transactions","_","_"," _ ",200," _ ","CASH FLOW FROM OPERATING ACTIVITIES / Payments / Suppliers and employees"," _ ",480," _ ","Cash Payments by Type / Other expenditure","_","_","_","_"," _ "," _ "," _ "," _ ",null," _ "," _ ","_","_","_","_",null,null," _ "," _ "," _ "," _ "," _ "," _ "," _ "," _ "," _ "," _ "," _ "," _ "," _ "," _ "," _ "," _ "," _ "," _ "," _ "," _ ",361,"Trade and other payables / Trade and other payables from exchange transactions",361,"Trade and other payables / Trade and other payables from exchange transactions",null,"O","_",null,null,1,11,"Executive and council","Mayor and Council",null,"_","_","_","_","_",0,0,0,0,0,0,0,0,0,0,0,0,0,0]
["O1232-7/IA02108/F1177/X049/R0099/001/CONTRA","O1232-7/IA02108/F1177/X049/R0099/001/CONTRA",222111,32960,"Assets:Current Assets:Cash and Cash Equivalents:Cash at Bank:Bank Account:Specify (replace with account description):Withdrawals","IA",1200,"Municipal governance and administration / Finance and administration / Finance",1204,"Municipal governance and administration / Finance and administration / Finance"," _"," _"," _ "," _ ","_"," _"," _",120,"Current assets / Cash and cash equivalents","_","_"," _ "," _ "," _ "," _ "," _ "," _ "," _ "," _ ","_","_","_","_"," _ "," _ "," _ "," _ ",null," _ "," _ ","_","_","_","_",null,null," _ "," _ "," _ "," _ "," _ "," _ "," _ "," _ "," _ "," _ "," _ "," _ "," _ "," _ "," _ "," _ "," _ "," _ "," _ "," _ "," _ "," _ "," _ "," _ ","W","O","_",null,null,2,23,"Finance and administration","Finance",null,"_","_","_","_","_",-300001,-540571,0,0,-313801,-328233,0,0,0,0,0,0,0,0]
["D0001/IL65531/F0001/X140/R0099/001/CONTRA","D0001/IL65531/F0001/X140/R0099/001/CONTRA",250479,41381,"Liabilities:Current Liabilities:Trade and Other Payable Exchange Transactions:Payables and Accruals : Contractors:Withdrawals","IL",4300,"Trading services / Waste water management / Storm Water Management",4303,"Trading services / Waste water management / Storm Water Management"," _"," _"," _ "," _ ","_"," _"," _",380,"Current liabilities / Trade and other payables from exchange transactions","_","_"," _ "," _ "," _ "," _ "," _ "," _ "," _ "," _ ","_","_","_","_"," _ "," _ "," _ "," _ ",null," _ "," _ ","_","_","_","_",null,null," _ "," _ "," _ "," _ "," _ "," _ "," _ "," _ "," _ "," _ "," _ "," _ "," _ "," _ "," _ "," _ "," _ "," _ "," _ "," _ ",361,"Trade and other payables / Trade and other payables from exchange transactions",361,"Trade and other payables / Trade and other payables from exchange transactions",null,"D","_",null,null,9,93,"Road transport","Storm Water Management",null,"_","_","_","_","_",0,0,0,0,0,0,0,0,0,0,0,0,0,0]
["O0008-1/IA10378/F0001/X047/R0100/001/CONTRA","O0008-1/IA10378/F0001/X047/R0100/001/CONTRA",262610,40509,"Assets:Current Assets:VAT Receivable:Input Tax General:Recognised","IA",1200,"Municipal governance and administration / Finance and administration / Asset Management",1202,"Municipal governance and administration / Finance and administration / Asset Management"," _"," _"," _ "," _ ","_"," _"," _",170,"Current assets / VAT","_","_"," _ "," _ "," _ "," _ "," _ "," _ "," _ "," _ ",1003,"Statutory requirements",1003,"Statutory requirements"," _ "," _ "," _ "," _ ",null," _ "," _ ","_","_","_","_",null,null," _ "," _ "," _ "," _ "," _ "," _ "," _ "," _ "," _ "," _ "," _ "," _ "," _ "," _ "," _ "," _ "," _ "," _ "," _ "," _ "," _ "," _ "," _ "," _ ",null,"O","_",null,null,2,22,"Finance and administration","Asset Management",null,"_","_","_","_","_",0,0,0,0,0,0,0,0,0,0,0,0,0,0]
["O0015-9/IL53821/F0045/X006/R0100/001/CONTRA","O0015-9/IL53821/F0045/X006/R0100/001/CONTRA",223197,35387,"Liabilities:Current Liabilities:Trade and Other Payable Exchange Transactions:Payables and Accruals : General:Withdrawals","IL",2100,"Community and public safety / Community and social services / Community Halls and Facilities",2106,"Community and public safety / Community and social services / Community Halls and Facilities"," _"," _"," _ "," _ ","_"," _"," _",380,"Current liabilities / Trade and other payables from exchange transactions","_","_"," _ ",200," _ ","CASH FLOW FROM OPERATING ACTIVITIES / Payments / Suppliers and employees"," _ ",480," _ ","Cash Payments by Type / Other expenditure","_","_","_","_"," _ "," _ "," _ "," _ ",null," _ "," _ ","_","_","_","_",null,null," _ "," _ "," _ "," _ "," _ "," _ "," _ "," _ "," _ "," _ "," _ "," _ "," _ "," _ "," _ "," _ "," _ "," _ "," _ "," _ ",361,"Trade and other payables / Trade and other payables from exchange transactions",361,"Trade and other payables / Trade and other payables from exchange transactions",null,"O","_",null,null,4,43,"Community and social services","Community Halls and Facilities",null,"_","_","_","_","_",0,0,0,0,0,0,0,0,0,0,0,0,0,0]
["O1232-4/IA10379/F13650/X007/R0099/001/CONTRA","O1232-4/IA10379/F13650/X007/R0099/001/CONTRA",264734,38523,"Assets:Current Assets:VAT Receivable:Input Tax General:Transfers","IA",2100,"Community and public safety / Community and social services / Libraries and Archives",2114,"Community and public safety / Community and social services / Libraries and Archives"," _"," _"," _ "," _ ","_"," _"," _",170,"Current assets / VAT","_","_"," _ "," _ "," _ "," _ "," _ "," _ "," _ "," _ ",1003,"Statutory requirements",1003,"Statutory requirements"," _ "," _ "," _ "," _ ",null," _ "," _ ","_","_","_","_",null,null," _ "," _ "," _ "," _ "," _ "," _ "," _ "," _ "," _ "," _ "," _ "," _ "," _ "," _ "," _ "," _ "," _ "," _ "," _ "," _ "," _ "," _ "," _ "," _ ",null,"O","_",null,null,4,44,"Community and social services","Libraries and Archives",null,"_","_","_","_","_",-21850,-20249,0,0,-22854,-23904,0,0,0,0,0,0,0,0]
["O0001/IL54038/F1177/X045/R0099/001/CONTRA","O0001/IL54038/F1177/X045/R0099/001/CONTRA",224218,33879,"Liabilities:Current Liabilities:Trade and Other Payable Exchange Transactions:Standby:Deposits","IL",1100,"Municipal governance and administration / Executive and council / Municipal Manager, Town Secretary and Chief Executive",1120,"Municipal governance and administration / Executive and council / Municipal Manager, Town Secretary and Chief Executive"," _"," _"," _ "," _ ","_"," _"," _",380,"Current liabilities / Trade and other payables from exchange transactions","_","_"," _ "," _ "," _ "," _ "," _ "," _ "," _ "," _ ","_","_","_","_"," _ "," _ "," _ "," _ ",null," _ "," _ ","_","_","_","_",null,null," _ "," _ "," _ "," _ "," _ "," _ "," _ "," _ "," _ "," _ "," _ "," _ "," _ "," _ "," _ "," _ "," _ "," _ "," _ "," _ ",361,"Trade and other payables / Trade and other payables from exchange transactions",361,"Trade and other payables / Trade and other payables from exchange transactions",null,"O","_",null,null,1,12,"Executive and council","Municipal Manager, Town Secretary and Chief Executive",null,"_","_","_","_","_",0,0,0,0,0,0,0,0,0,0,0,0,0,0]
["O0015-7/IA02108/F0041/X044/R0099/001/CONTRA","O0015-7/IA02108/F0041/X044/R0099/001/CONTRA",222300,34897,"Assets:Current Assets:Cash and Cash Equivalents:Cash at Bank:Bank Account:Specify (replace with account description):Withdrawals","IA",1100,"Municipal governance and administration / Executive and council / Mayor and Council",1110,"Municipal governance and administration / Executive and council / Mayor and Council"," _"," _"," _ "," _ ","_"," _"," _",120,"Current assets / Cash and cash equivalents","_","_"," _ "," _ "," _ "," _ "," _ "," _ "," _ "," _ ","_","_","_","_"," _ "," _ "," _ "," _ ",null," _ "," _ ","_","_","_","_",null,null," _ "," _ "," _ "," _ "," _ "," _ "," _ "," _ "," _ "," _ "," _ "," _ "," _ "," _ "," _ "," _ "," _ "," _ "," _ "," _ "," _ "," _ "," _ "," _ ","W","O","_",null,null,1,11,"Executive and council","Mayor and Council",null,"_","_","_","_","_",0,0,0,0,0,0,0,0,0,0,0,0,0,0]
["O0001/IE00567/F0041/X006/R0099/001/COMM","O0001/IE00567/F0041/X006/R0099/001/COMM",102089,22755,"Expenditure:Operational Cost:External Audit Fees","IE",2100,"Community and public safety / Community and social services / Community Halls and Facilities",2106,"Community and public safety / Community and social services / Community Halls and Facilities",4100,"Expenditure / Operational costs",2903,"Expenditure / Operational costs","_"," _"," _"," _ "," _ "," _ "," _ "," _ "," _ "," _ "," _ "," _ "," _ "," _ "," _ ","_","_","_","_"," _ "," _ "," _ "," _ ",null,2903,"Operational Costs ","_","_","_","_",null,null," _ "," _ "," _ "," _ "," _ "," _ "," _ "," _ "," _ "," _ "," _ "," _ "," _ "," _ "," _ "," _ "," _ "," _ "," _ "," _ "," _ "," _ "," _ "," _ ",null,"O","_",null,null,4,43,"Community and social services","Community Halls and Facilities",null,"_","_","_","_","_",0,0,0,0,0,0,0,0,0,0,0,0,0,0]
["O0001/IA10376/F0041/X095/R0099/001/CONTRA","O0001/IA10376/F0041/X095/R0099/001/CONTRA",262383,41343,"Assets:Current Assets:VAT Receivable:Input Tax Accrual:Transfers","IA",3100,"Economic and environmental services / Planning and development / Central City Improvement District",3103,"Economic and environmental services / Planning and development / Central City Improvement District"," _"," _"," _ "," _ ","_"," _"," _",170,"Current assets / VAT","_","_"," _ "," _ "," _ "," _ "," _ "," _ "," _ "," _ ",1003,"Statutory requirements",1003,"Statutory requirements"," _ "," _ "," _ "," _ ",null," _ "," _ ","_","_","_","_",null,null," _ "," _ "," _ "," _ "," _ "," _ "," _ "," _ "," _ "," _ "," _ "," _ "," _ "," _ "," _ "," _ "," _ "," _ "," _ "," _ "," _ "," _ "," _ "," _ ",null,"O","_",null,null,8,87,"Planning and Development","Central City Improvement District",null,"_","_","_","_","_",0,0,0,0,0,0,0,0,0,0,0,0,0,0]
["O1337-1/IE00632/F0041/X099/R0100/001/TECH","O1337-1/IE00632/F0041/X099/R0100/001/TECH",61322,21056,"Expenditure:Contracted Services:Contractors:Catering Services","IE",3100,"Economic and environmental services / Planning and development / Project Management Unit",3108,"Economic and environmental services / Planning and development / Project Management Unit",3800,"Expenditure / Contracted services",2703,"Expenditure / Contracted services","_"," _"," _"," _ "," _ "," _ "," _ "," _ "," _ "," _ "," _ "," _ "," _ "," _ "," _ ","_","_","_","_"," _ "," _ "," _ "," _ ",null,2703,"Contracted Services ","_","_","_","_",null,null," _ "," _ "," _ "," _ "," _ "," _ "," _ "," _ "," _ "," _ "," _ "," _ "," _ "," _ "," _ "," _ "," _ "," _ "," _ "," _ "," _ "," _ "," _ "," _ ",null,"O","_",null,null,8,83,"Planning and Development","Project Management Unit",null,"_","_","_","_","_",0,0,0,0,0,0,0,0,0,0,0,0,0,0]
["O1248-2/IE00671/F0041/X044/R0100/001/EXEC","O1248-2/IE00671/F0041/X044/R0100/001/EXEC",61329,21063,"Expenditure:Contracted Services:Contractors:Transportation","IE",1100,"Municipal governance and administration / Executive and council / Mayor and Council",1110,"Municipal governance and administration / Executive and council / Mayor and Council",3800,"Expenditure / Contracted services",2703,"Expenditure / Contracted services","_"," _"," _"," _ "," _ "," _ "," _ "," _ "," _ "," _ "," _ "," _ "," _ "," _ "," _ ","_","_","_","_"," _ "," _ "," _ "," _ ",null,2703,"Contracted Services ","_","_","_","_",null,null," _ "," _ "," _ "," _ "," _ "," _ "," _ "," _ "," _ "," _ "," _ "," _ "," _ "," _ "," _ "," _ "," _ "," _ "," _ "," _ "," _ "," _ "," _ "," _ ",null,"O","_",null,null,1,11,"Executive and council","Mayor and Council",null,"_","_","_","_","_",50000,50000,0,0,52300,54710,0,0,30000,0,0,0,0,0]
["O1234-16/IA10353/F0041/X132/R0100/001/CONTRA","O1234-16/IA10353/F0041/X132/R0100/001/CONTRA",224581,36011,"Assets:Current Assets:Inventory:Materials and Supplies:Issues","IA",4400,"Trading services / Waste management / Solid Waste Removal",4403,"Trading services / Waste management / Solid Waste Removal"," _"," _"," _ "," _ ","_"," _"," _",160,"Current assets / Inventory","_","_"," _ "," _ "," _ "," _ "," _ "," _ "," _ "," _ ","_","_","_","_"," _ "," _ "," _ "," _ ",null," _ "," _ ","_","_","_","_",null,null," _ "," _ "," _ "," _ "," _ "," _ "," _ "," _ "," _ "," _ "," _ "," _ "," _ "," _ "," _ "," _ "," _ "," _ "," _ "," _ ",214,"Materials and Supplies / Issues",214,"Materials and Supplies / Issues",null,"O","_",null,null,11,111,"Waste Management","Solid Waste Removal",null,"_","_","_","_","_",-110000,-95652,0,0,-100052,-104655,0,0,0,0,0,0,0,0]
["O1344-1/IL53820/F0041/X049/R0099/001/CONTRA","O1344-1/IL53820/F0041/X049/R0099/001/CONTRA",225425,34514,"Liabilities:Current Liabilities:Trade and Other Payable Exchange Transactions:Payables and Accruals : General:Deposits","IL",1200,"Municipal governance and administration / Finance and administration / Finance",1204,"Municipal governance and administration / Finance and administration / Finance"," _"," _"," _ "," _ ","_"," _"," _",380,"Current liabilities / Trade and other payables from exchange transactions","_","_"," _ "," _ "," _ "," _ "," _ "," _ "," _ "," _ ","_","_","_","_"," _ "," _ "," _ "," _ ",null," _ "," _ ","_","_","_","_",null,null," _ "," _ "," _ "," _ "," _ "," _ "," _ "," _ "," _ "," _ "," _ "," _ "," _ "," _ "," _ "," _ "," _ "," _ "," _ "," _ ",361,"Trade and other payables / Trade and other payables from exchange transactions",361,"Trade and other payables / Trade and other payables from exchange transactions",null,"O","_",null,null,2,23,"Finance and administration","Finance",null,"_","_","_","_","_",0,0,0,0,0,0,0,0,0,0,0,0,0,0]
["O1232-10/IA02108/F0041/X099/R0099/001/CONTRA","O1232-10/IA02108/F0041/X099/R0099/001/CONTRA",225454,34559,"Assets:Current Assets:Cash and Cash Equivalents:Cash at Bank:Bank Account:Specify (replace with account description):Withdrawals","IA",3100,"Economic and environmental services / Planning and development / Project Management Unit",3108,"Economic and environmental services / Planning and development / Project Management Unit"," _"," _"," _ "," _ ","_"," _"," _",120,"Current assets / Cash and cash equivalents","_","_"," _ "," _ "," _ "," _ "," _ "," _ "," _ "," _ ","_","_","_","_"," _ "," _ "," _ "," _ ",null," _ "," _ ","_","_","_","_",null,null," _ "," _ "," _ "," _ "," _ "," _ "," _ "," _ "," _ "," _ "," _ "," _ "," _ "," _ "," _ "," _ "," _ "," _ "," _ "," _ "," _ "," _ "," _ "," _ ","W","O","_",null,null,8,83,"Planning and Development","Project Management Unit",null,"_","_","_","_","_",0,0,0,0,0,0,0,0,0,0,0,0,0,0]
["O1444-10/IA10375/F0041/X044/R0100/001/CONTRA","O1444-10/IA10375/F0041/X044/R0100/001/CONTRA",223902,35729,"Assets:Current Assets:VAT Receivable:Input Tax Accrual:Recognised","IA",1100,"Municipal governance and administration / Executive and council / Mayor and Council",1110,"Municipal governance and administration / Executive and council / Mayor and Council"," _"," _"," _ "," _ ","_"," _"," _",170,"Current assets / VAT","_","_"," _ "," _ "," _ "," _ "," _ "," _ "," _ "," _ ",1003,"Statutory requirements",1003,"Statutory requirements"," _ "," _ "," _ "," _ ",null," _ "," _ ","_","_","_","_",null,null," _ "," _ "," _ "," _ "," _ "," _ "," _ "," _ "," _ "," _ "," _ "," _ "," _ "," _ "," _ "," _ "," _ "," _ "," _ "," _ "," _ "," _ "," _ "," _ ",null,"O","_",null,null,1,11,"Executive and council","Mayor and Council",null,"_","_","_","_","_",22500,52500,0,0,23535,24618,0,0,0,0,0,0,0,0]
["O1236-5/IA10375/F0041/X044/R0100/001/CONTRA","O1236-5/IA10375/F0041/X044/R0100/001/CONTRA",224442,34089,"Assets:Current Assets:VAT Receivable:Input Tax Accrual:Recognised","IA",1100,"Municipal governance and administration / Executive and council / Mayor and Council",1110,"Municipal governance and administration / Executive and council / Mayor and Council"," _"," _"," _ "," _ ","_"," _"," _",170,"Current assets / VAT","_","_"," _ "," _ "," _ "," _ "," _ "," _ "," _ "," _ ",1003,"Statutory requirements",1003,"Statutory requirements"," _ "," _ "," _ "," _ ",null," _ "," _ ","_","_","_","_",null,null," _ "," _ "," _ "," _ "," _ "," _ "," _ "," _ "," _ "," _ "," _ "," _ "," _ "," _ "," _ "," _ "," _ "," _ "," _ "," _ "," _ "," _ "," _ "," _ ",null,"O","_",null,null,1,11,"Executive and council","Mayor and Council",null,"_","_","_","_","_",0,0,0,0,0,0,0,0,0,0,0,0,0,0]
["O0022-6/IE00694/F0045/X079/R0100/001/EDP","O0022-6/IE00694/F0045/X079/R0100/001/EDP",328547,47443,"Expenditure:Contracted Services:Outsourced Services:Professional Staff","IE",2400,"Community and public safety / Housing / Housing",2401,"Community and public safety / Housing / Housing",3800,"Expenditure / Contracted services",2701,"Expenditure / Contracted services","_"," _"," _"," _ "," _ "," _ "," _ "," _ "," _ "," _ "," _ "," _ "," _ "," _ "," _ ","_","_","_","_"," _ "," _ "," _ "," _ ",null,2701,"Contracted Services ","_","_","_","_",null,null," _ "," _ "," _ "," _ "," _ "," _ "," _ "," _ "," _ "," _ "," _ "," _ "," _ "," _ "," _ "," _ "," _ "," _ "," _ "," _ "," _ "," _ "," _ "," _ ",null,"O","_",null,null,7,71,"Housing","Housing",null,"_","_","_","_","_",0,73913,0,0,0,0,0,0,0,0,0,0,0,0]
["O1421-1/IL65530/F2496/X128/R0100/001/CONTRA","O1421-1/IL65530/F2496/X128/R0100/001/CONTRA",224475,35913,"Liabilities:Current Liabilities:Trade and Other Payable Exchange Transactions:Payables and Accruals : Contractors:Deposits","IL",2200,"Community and public safety / Sport and recreation / Recreational Facilities",2204,"Community and public safety / Sport and recreation / Recreational Facilities"," _"," _"," _ "," _ ","_"," _"," _",380,"Current liabilities / Trade and other payables from exchange transactions","_","_"," _ "," _ "," _ "," _ "," _ "," _ "," _ "," _ ","_","_","_","_"," _ "," _ "," _ "," _ ",null," _ "," _ ","_","_","_","_",null,null," _ "," _ "," _ "," _ "," _ "," _ "," _ "," _ "," _ "," _ "," _ "," _ "," _ "," _ "," _ "," _ "," _ "," _ "," _ "," _ ",361,"Trade and other payables / Trade and other payables from exchange transactions",361,"Trade and other payables / Trade and other payables from exchange transactions",null,"O","_",null,null,5,53,"Sport and Recreation","Recreational Facilities",null,"_","_","_","_","_",0,0,0,0,0,0,0,0,0,0,0,0,0,0]
["O1255-2/IA10378/F13650/X007/R0099/001/CONTRA","O1255-2/IA10378/F13650/X007/R0099/001/CONTRA",263976,38261,"Assets:Current Assets:VAT Receivable:Input Tax General:Recognised","IA",2100,"Community and public safety / Community and social services / Libraries and Archives",2114,"Community and public safety / Community and social services / Libraries and Archives"," _"," _"," _ "," _ ","_"," _"," _",170,"Current assets / VAT","_","_"," _ "," _ "," _ "," _ "," _ "," _ "," _ "," _ ",1003,"Statutory requirements",1003,"Statutory requirements"," _ "," _ "," _ "," _ ",null," _ "," _ ","_","_","_","_",null,null," _ "," _ "," _ "," _ "," _ "," _ "," _ "," _ "," _ "," _ "," _ "," _ "," _ "," _ "," _ "," _ "," _ "," _ "," _ "," _ "," _ "," _ "," _ "," _ ",null,"O","_",null,null,4,44,"Community and social services","Libraries and Archives",null,"_","_","_","_","_",0,0,0,0,0,0,0,0,0,0,0,0,0,0]
["O0763-1/IA10373/F0041/X125/R0100/001/CONTRA","O0763-1/IA10373/F0041/X125/R0100/001/CONTRA",265244,42951,"Assets:Current Assets:VAT Receivable:VAT Control (Receivable):Transfers","IA",2200,"Community and public safety / Sport and recreation / Sports Grounds and Stadiums",2205,"Community and public safety / Sport and recreation / Sports Grounds and Stadiums"," _"," _"," _ "," _ ","_"," _"," _",170,"Current assets / VAT","_","_"," _ "," _ "," _ "," _ "," _ "," _ "," _ "," _ ",1003,"Statutory requirements",1003,"Statutory requirements"," _ "," _ "," _ "," _ ",null," _ "," _ ","_","_","_","_",null,null," _ "," _ "," _ "," _ "," _ "," _ ",1030,"Community Assets / Sport and Recreation Facilities / Outdoor Facilities"," _ ",1030,"Community Assets / Sport and Recreation Facilities / Outdoor Facilities"," _ "," _ "," _ "," _ "," _ "," _ "," _ "," _ "," _ "," _ "," _ "," _ "," _ ",null,"O","_",null,null,5,54,"Sport and Recreation","Sports Grounds and Stadiums",null,"_","_","_","_","_",260870,260870,0,0,272870,285422,0,0,0,0,0,0,0,0]
["O1240-10/IL65530/F2496/X098/R0100/001/CONTRA","O1240-10/IL65530/F2496/X098/R0100/001/CONTRA",223442,33463,"Liabilities:Current Liabilities:Trade and Other Payable Exchange Transactions:Payables and Accruals : Contractors:Deposits","IL",3100,"Economic and environmental services / Planning and development / Economic Development/Planning",3105,"Economic and environmental services / Planning and development / Economic Development/Planning"," _"," _"," _ "," _ ","_"," _"," _",380,"Current liabilities / Trade and other payables from exchange transactions","_","_"," _ "," _ "," _ "," _ "," _ "," _ "," _ "," _ ","_","_","_","_"," _ "," _ "," _ "," _ ",null," _ "," _ ","_","_","_","_",null,null," _ "," _ "," _ "," _ "," _ "," _ "," _ "," _ "," _ "," _ "," _ "," _ "," _ "," _ "," _ "," _ "," _ "," _ "," _ "," _ ",361,"Trade and other payables / Trade and other payables from exchange transactions",361,"Trade and other payables / Trade and other payables from exchange transactions",null,"O","_",null,null,8,82,"Planning and Development","Economic Development/Planning",null,"_","_","_","_","_",-34500,-34500,0,0,-34500,-36087,0,0,0,0,0,0,0,0]
["O1232-7/IL65530/F1177/X049/R0099/001/CONTRA","O1232-7/IL65530/F1177/X049/R0099/001/CONTRA",222512,32959,"Liabilities:Current Liabilities:Trade and Other Payable Exchange Transactions:Payables and Accruals : Contractors:Deposits","IL",1200,"Municipal governance and administration / Finance and administration / Finance",1204,"Municipal governance and administration / Finance and administration / Finance"," _"," _"," _ "," _ ","_"," _"," _",380,"Current liabilities / Trade and other payables from exchange transactions","_","_"," _ "," _ "," _ "," _ "," _ "," _ "," _ "," _ ","_","_","_","_"," _ "," _ "," _ "," _ ",null," _ "," _ ","_","_","_","_",null,null," _ "," _ "," _ "," _ "," _ "," _ "," _ "," _ "," _ "," _ "," _ "," _ "," _ "," _ "," _ "," _ "," _ "," _ "," _ "," _ ",361,"Trade and other payables / Trade and other payables from exchange transactions",361,"Trade and other payables / Trade and other payables from exchange transactions",null,"O","_",null,null,2,23,"Finance and administration","Finance",null,"_","_","_","_","_",-300001,-540571,0,0,-313801,-328233,0,0,0,0,0,0,0,0]
["O0001/IE06059/F0041/X049/R0099/001/FIN","O0001/IE06059/F0041/X049/R0099/001/FIN",61120,20933,"Expenditure:Employee Related Cost:Senior Management:Chief Financial Officer:Salaries and Allowances:Basic Salary","IE",1200,"Municipal governance and administration / Finance and administration / Finance",1204,"Municipal governance and administration / Finance and administration / Finance",3100,"Expenditure / Employee related costs",2001,"Expenditure / Employee related costs","_"," _"," _"," _ "," _ "," _ "," _ "," _ "," _ "," _ "," _ "," _ "," _ "," _ "," _ ","_","_","_","_"," _ "," _ "," _ "," _ ",null,2001,"Employee related costs / Basic Salaries and Wages","_","_","_","_",null,null," _ "," _ "," _ "," _ "," _ "," _ "," _ "," _ "," _ "," _ "," _ "," _ "," _ "," _ "," _ "," _ "," _ "," _ "," _ "," _ "," _ "," _ "," _ "," _ ",null,"O","_","SM",null,2,23,"Finance and administration","Finance",null,"_","_","_","_","_",776050,776050,0,0,811750,849090,0,59064.08,59064.08,59064.08,59064.08,59064.08,59064.08,59064.08]
["O1655-1/IL65528/F0041/X032/R3649/001/CONTRA","O1655-1/IL65528/F0041/X032/R3649/001/CONTRA",249949,38762,"Liabilities:Current Liabilities:Trade and Other Payable Exchange Transactions:Payables and Accruals : Inventory:Withdrawals","IL",4100,"Trading services / Energy sources / Electricity",4101,"Trading services / Energy sources / Electricity"," _"," _"," _ "," _ ","_"," _"," _",380,"Current liabilities / Trade and other payables from exchange transactions","_","_"," _ ",200," _ ","CASH FLOW FROM OPERATING ACTIVITIES / Payments / Suppliers and employees"," _ ",440," _ ","Cash Payments by Type / Acquisition inventory - water and other inventory","_","_","_","_"," _ "," _ "," _ "," _ ",null," _ "," _ ","_","_","_","_",null,null," _ "," _ "," _ "," _ "," _ "," _ ",270,"Infrastructure / Electrical Infrastructure / MV Networks"," _ ",270,"Infrastructure / Electrical Infrastructure / MV Networks"," _ "," _ "," _ "," _ "," _ "," _ "," _ "," _ "," _ ",361,"Trade and other payables / Trade and other payables from exchange transactions",361,"Trade and other payables / Trade and other payables from exchange transactions",null,"O","_",null,null,10,101,"Energy sources","Electricity",null,"_","_","_","_","_",0,0,0,0,0,0,0,0,0,0,0,0,0,0]
["O1244-8/IA10378/F0045/X098/R0099/001/CONTRA","O1244-8/IA10378/F0045/X098/R0099/001/CONTRA",261897,44090,"Assets:Current Assets:VAT Receivable:Input Tax General:Recognised","IA",3100,"Economic and environmental services / Planning and development / Economic Development/Planning",3105,"Economic and environmental services / Planning and development / Economic Development/Planning"," _"," _"," _ "," _ ","_"," _"," _",170,"Current assets / VAT","_","_"," _ "," _ "," _ "," _ "," _ "," _ "," _ "," _ ",1003,"Statutory requirements",1003,"Statutory requirements"," _ "," _ "," _ "," _ ",null," _ "," _ ","_","_","_","_",null,null," _ "," _ "," _ "," _ "," _ "," _ "," _ "," _ "," _ "," _ "," _ "," _ "," _ "," _ "," _ "," _ "," _ "," _ "," _ "," _ "," _ "," _ "," _ "," _ ",null,"O","_",null,null,8,82,"Planning and Development","Economic Development/Planning",null,"_","_","_","_","_",225000,232500,0,0,0,0,0,0,0,0,0,0,0,0]
["O1231-3/IL53820/F0041/X049/R0100/001/CONTRA","O1231-3/IL53820/F0041/X049/R0100/001/CONTRA",225417,34516,"Liabilities:Current Liabilities:Trade and Other Payable Exchange Transactions:Payables and Accruals : General:Deposits","IL",1200,"Municipal governance and administration / Finance and administration / Finance",1204,"Municipal governance and administration / Finance and administration / Finance"," _"," _"," _ "," _ ","_"," _"," _",380,"Current liabilities / Trade and other payables from exchange transactions","_","_"," _ "," _ "," _ "," _ "," _ "," _ "," _ "," _ ","_","_","_","_"," _ "," _ "," _ "," _ ",null," _ "," _ ","_","_","_","_",null,null," _ "," _ "," _ "," _ "," _ "," _ "," _ "," _ "," _ "," _ "," _ "," _ "," _ "," _ "," _ "," _ "," _ "," _ "," _ "," _ ",361,"Trade and other payables / Trade and other payables from exchange transactions",361,"Trade and other payables / Trade and other payables from exchange transactions",null,"O","_",null,null,2,23,"Finance and administration","Finance",null,"_","_","_","_","_",-149999,-149999,0,0,0,0,0,0,0,0,0,0,0,0]
["O1248-4/IA10378/F0045/X044/R0100/001/CONTRA","O1248-4/IA10378/F0045/X044/R0100/001/CONTRA",264179,43361,"Assets:Current Assets:VAT Receivable:Input Tax General:Recognised","IA",1100,"Municipal governance and administration / Executive and council / Mayor and Council",1110,"Municipal governance and administration / Executive and council / Mayor and Council"," _"," _"," _ "," _ ","_"," _"," _",170,"Current assets / VAT","_","_"," _ "," _ "," _ "," _ "," _ "," _ "," _ "," _ ",1003,"Statutory requirements",1003,"Statutory requirements"," _ "," _ "," _ "," _ ",null," _ "," _ ","_","_","_","_",null,null," _ "," _ "," _ "," _ "," _ "," _ "," _ "," _ "," _ "," _ "," _ "," _ "," _ "," _ "," _ "," _ "," _ "," _ "," _ "," _ "," _ "," _ "," _ "," _ ",null,"O","_",null,null,1,11,"Executive and council","Mayor and Council",null,"_","_","_","_","_",0,0,0,0,0,0,0,0,0,0,0,0,0,0]
["O1293-12/IA02108/F0041/X046/R0100/001/CONTRA","O1293-12/IA02108/F0041/X046/R0100/001/CONTRA",327581,46786,"Assets:Current Assets:Cash and Cash Equivalents:Cash at Bank:Bank Account:Specify (replace with account description):Withdrawals","IA",1200,"Municipal governance and administration / Finance and administration / Administrative and Corporate Support",1201,"Municipal governance and administration / Finance and administration / Administrative and Corporate Support"," _"," _"," _ "," _ ","_"," _"," _",120,"Current assets / Cash and cash equivalents","_","_"," _ "," _ "," _ "," _ "," _ "," _ "," _ "," _ ","_","_","_","_"," _ "," _ "," _ "," _ ",null," _ "," _ ","_","_","_","_",null,null," _ "," _ "," _ "," _ "," _ "," _ "," _ "," _ "," _ "," _ "," _ "," _ "," _ "," _ "," _ "," _ "," _ "," _ "," _ "," _ "," _ "," _ "," _ "," _ ","W","O","_",null,null,2,21,"Finance and administration","Administrative and Corporate Support",null,"_","_","_","_","_",-100000,-100000,0,0,-104600,-109412,0,0,0,0,0,0,0,0]
["O3587-1/IL53820/F2496/X127/R3642/001/CONTRA","O3587-1/IL53820/F2496/X127/R3642/001/CONTRA",222667,33140,"Liabilities:Current Liabilities:Trade and Other Payable Exchange Transactions:Payables and Accruals : General:Deposits","IL",2200,"Community and public safety / Sport and recreation / Community Parks (including Nurseries)",2203,"Community and public safety / Sport and recreation / Community Parks (including Nurseries)"," _"," _"," _ "," _ ","_"," _"," _",380,"Current liabilities / Trade and other payables from exchange transactions","_","_"," _ "," _ "," _ "," _ "," _ "," _ "," _ "," _ ","_","_","_","_"," _ "," _ "," _ "," _ ",null," _ "," _ ","_","_","_","_",null,null," _ "," _ "," _ "," _ "," _ "," _ "," _ "," _ "," _ "," _ "," _ "," _ "," _ "," _ "," _ "," _ "," _ "," _ "," _ "," _ ",361,"Trade and other payables / Trade and other payables from exchange transactions",361,"Trade and other payables / Trade and other payables from exchange transactions",null,"O","_",null,null,5,51,"Sport and Recreation","Community Parks (including Nurseries)",null,"_","_","_","_","_",0,0,0,0,0,0,0,0,0,0,0,0,0,0]
["O1232-26/IA10373/F0041/X044/R0100/001/CONTRA","O1232-26/IA10373/F0041/X044/R0100/001/CONTRA",327406,46566,"Assets:Current Assets:VAT Receivable:VAT Control (Receivable):Transfers","IA",1100,"Municipal governance and administration / Executive and council / Mayor and Council",1110,"Municipal governance and administration / Executive and council / Mayor and Council"," _"," _"," _ "," _ ","_"," _"," _",170,"Current assets / VAT","_","_"," _ "," _ "," _ "," _ "," _ "," _ "," _ "," _ ",1003,"Statutory requirements",1003,"Statutory requirements"," _ "," _ "," _ "," _ ",null," _ "," _ ","_","_","_","_",null,null," _ "," _ "," _ "," _ "," _ "," _ "," _ "," _ "," _ "," _ "," _ "," _ "," _ "," _ "," _ "," _ "," _ "," _ "," _ "," _ "," _ "," _ "," _ "," _ ",null,"O","_",null,null,1,11,"Executive and council","Mayor and Council",null,"_","_","_","_","_",7500,7500,0,0,7845,8206,0,0,0,0,0,0,0,0]
["O1238-9/IE00782/F0041/X044/R0100/001/EXEC","O1238-9/IE00782/F0041/X044/R0100/001/EXEC",119893,23717,"Expenditure:Operational Cost:Entertainment:Executive Mayor","IE",1100,"Municipal governance and administration / Executive and council / Mayor and Council",1110,"Municipal governance and administration / Executive and council / Mayor and Council",4100,"Expenditure / Operational costs",2904,"Expenditure / Operational costs","_"," _"," _"," _ "," _ "," _ "," _ "," _ "," _ "," _ "," _ "," _ "," _ "," _ "," _ ","_","_","_","_"," _ "," _ "," _ "," _ ",null,2904,"Operational Costs ","_","_","_","_",null,null," _ "," _ "," _ "," _ "," _ "," _ "," _ "," _ "," _ "," _ "," _ "," _ "," _ "," _ "," _ "," _ "," _ "," _ "," _ "," _ "," _ "," _ "," _ "," _ ",null,"O","_",null,null,1,11,"Executive and council","Mayor and Council",null,"_","_","_","_","_",100000,100000,0,0,104600,109410,0,43709,0,0,0,0,26960,9096.5]
["O1333-5/IE00571/F0041/X044/R0100/001/EXE2","O1333-5/IE00571/F0041/X044/R0100/001/EXE2",61369,21083,"Expenditure:Operational Cost:Hire Charges","IE",1100,"Municipal governance and administration / Executive and council / Mayor and Council",1110,"Municipal governance and administration / Executive and council / Mayor and Council",4100,"Expenditure / Operational costs",2904,"Expenditure / Operational costs","_"," _"," _"," _ "," _ "," _ "," _ "," _ "," _ "," _ "," _ "," _ "," _ "," _ "," _ ","_","_","_","_"," _ "," _ "," _ "," _ ",null,2904,"Operational Costs ","_","_","_","_",null,null," _ "," _ "," _ "," _ "," _ "," _ "," _ "," _ "," _ "," _ "," _ "," _ "," _ "," _ "," _ "," _ "," _ "," _ "," _ "," _ "," _ "," _ "," _ "," _ ",null,"O","_",null,null,1,11,"Executive and council","Mayor and Council",null,"_","_","_","_","_",0,0,0,0,0,0,0,0,0,0,0,0,0,0]
["O0037-1/IA10378/F0045/X032/R3649/001/CONTRA","O0037-1/IA10378/F0045/X032/R3649/001/CONTRA",266297,39527,"Assets:Current Assets:VAT Receivable:Input Tax General:Recognised","IA",4100,"Trading services / Energy sources / Electricity",4101,"Trading services / Energy sources / Electricity"," _"," _"," _ "," _ ","_"," _"," _",170,"Current assets / VAT","_","_"," _ "," _ "," _ "," _ "," _ "," _ "," _ "," _ ",1003,"Statutory requirements",1003,"Statutory requirements"," _ "," _ "," _ "," _ ",null," _ "," _ ","_","_","_","_",null,null," _ "," _ "," _ "," _ "," _ "," _ ",290,"Infrastructure / Electrical Infrastructure / Capital Spares"," _ ",290,"Infrastructure / Electrical Infrastructure / Capital Spares"," _ "," _ "," _ "," _ "," _ "," _ "," _ "," _ "," _ "," _ "," _ "," _ "," _ ",null,"O","_",null,null,10,101,"Energy sources","Electricity",null,"_","_","_","_","_",0,0,0,0,0,0,0,0,0,0,0,0,0,0]
["O1232-36/IA10379/F0041/X044/R0100/001/CONTRA","O1232-36/IA10379/F0041/X044/R0100/001/CONTRA",327530,46723,"Assets:Current Assets:VAT Receivable:Input Tax General:Transfers","IA",1100,"Municipal governance and administration / Executive and council / Mayor and Council",1110,"Municipal governance and administration / Executive and council / Mayor and Council"," _"," _"," _ "," _ ","_"," _"," _",170,"Current assets / VAT","_","_"," _ "," _ "," _ "," _ "," _ "," _ "," _ "," _ ",1003,"Statutory requirements",1003,"Statutory requirements"," _ "," _ "," _ "," _ ",null," _ "," _ ","_","_","_","_",null,null," _ "," _ "," _ "," _ "," _ "," _ "," _ "," _ "," _ "," _ "," _ "," _ "," _ "," _ "," _ "," _ "," _ "," _ "," _ "," _ "," _ "," _ "," _ "," _ ",null,"O","_",null,null,1,11,"Executive and council","Mayor and Council",null,"_","_","_","_","_",0,-15000,0,0,0,0,0,0,0,0,0,0,0,0]
["O0001/IL53994/F0045/X052/R0099/001/CONTRA","O0001/IL53994/F0045/X052/R0099/001/CONTRA",225248,34481,"Liabilities:Current Liabilities:Trade and Other Payable Exchange Transactions:Control, Clearing and Interface Accounts:Salary Clearing and Control:Tax Control:Withdrawals","IL",1200,"Municipal governance and administration / Finance and administration / Information Technology",1207,"Municipal governance and administration / Finance and administration / Information Technology"," _"," _"," _ "," _ ","_"," _"," _",380,"Current liabilities / Trade and other payables from exchange transactions","_","_"," _ ",200," _ ","CASH FLOW FROM OPERATING ACTIVITIES / Payments / Suppliers and employees"," _ ",390," _ ","Cash Payments by Type / Employee related costs",1003,"Statutory requirements",1003,"Statutory requirements"," _ "," _ "," _ "," _ ",null," _ "," _ ","_","_","_","_",null,null," _ "," _ "," _ "," _ "," _ "," _ "," _ "," _ "," _ "," _ "," _ "," _ "," _ "," _ "," _ "," _ "," _ "," _ "," _ "," _ ",361,"Trade and other payables / Trade and other payables from exchange transactions",361,"Trade and other payables / Trade and other payables from exchange transactions",null,"O","_",null,null,2,26,"Finance and administration","Information Technology",null,"_","_","_","_","_",122310,134123,0,0,127940,133820,0,0,0,0,0,0,0,0]
["O1303-2/IL65531/F0041/X098/R0100/001/CONTRA","O1303-2/IL65531/F0041/X098/R0100/001/CONTRA",222550,32995,"Liabilities:Current Liabilities:Trade and Other Payable Exchange Transactions:Payables and Accruals : Contractors:Withdrawals","IL",3100,"Economic and environmental services / Planning and development / Economic Development/Planning",3105,"Economic and environmental services / Planning and development / Economic Development/Planning"," _"," _"," _ "," _ ","_"," _"," _",380,"Current liabilities / Trade and other payables from exchange transactions","_","_"," _ ",200," _ ","CASH FLOW FROM OPERATING ACTIVITIES / Payments / Suppliers and employees"," _ ",450," _ ","Cash Payments by Type / Contracted services","_","_","_","_"," _ "," _ "," _ "," _ ",null," _ "," _ ","_","_","_","_",null,null," _ "," _ "," _ "," _ "," _ "," _ "," _ "," _ "," _ "," _ "," _ "," _ "," _ "," _ "," _ "," _ "," _ "," _ "," _ "," _ ",361,"Trade and other payables / Trade and other payables from exchange transactions",361,"Trade and other payables / Trade and other payables from exchange transactions",null,"O","_",null,null,8,82,"Planning and Development","Economic Development/Planning",null,"_","_","_","_","_",0,0,0,0,0,0,0,0,0,0,0,0,0,0]
["O0001/IE06107/F0041/X046/R0099/001/CORP","O0001/IE06107/F0041/X046/R0099/001/CORP",71463,21164,"Expenditure:Employee Related Cost:Senior Management:Designation:Salaries and Allowances:Bonuses","IE",1200,"Municipal governance and administration / Finance and administration / Administrative and Corporate Support",1201,"Municipal governance and administration / Finance and administration / Administrative and Corporate Support",3100,"Expenditure / Employee related costs",2005,"Expenditure / Employee related costs","_"," _"," _"," _ "," _ "," _ "," _ "," _ "," _ "," _ "," _ "," _ "," _ "," _ "," _ ","_","_","_","_"," _ "," _ "," _ "," _ ",null,2005,"Employee related costs / Performance Bonus","_","_","_","_",null,null," _ "," _ "," _ "," _ "," _ "," _ "," _ "," _ "," _ "," _ "," _ "," _ "," _ "," _ "," _ "," _ "," _ "," _ "," _ "," _ "," _ "," _ "," _ "," _ ",null,"O","_","SM",null,2,21,"Finance and administration","Administrative and Corporate Support",null,"_","_","_","_","_",93400,49087,0,0,97700,102190,0,0,0,0,0,0,0,0]
["O0016-6/IA10373/F0041/X019/R0100/001/CONTRA","O0016-6/IA10373/F0041/X019/R0100/001/CONTRA",264775,38637,"Assets:Current Assets:VAT Receivable:VAT Control (Receivable):Transfers","IA",2100,"Community and public safety / Community and social services / Disaster Management",2109,"Community and public safety / Community and social services / Disaster Management"," _"," _"," _ "," _ ","_"," _"," _",170,"Current assets / VAT","_","_"," _ "," _ "," _ "," _ "," _ "," _ "," _ "," _ ",1003,"Statutory requirements",1003,"Statutory requirements"," _ "," _ "," _ "," _ ",null," _ "," _ ","_","_","_","_",null,null," _ "," _ "," _ "," _ "," _ "," _ "," _ "," _ "," _ "," _ "," _ "," _ "," _ "," _ "," _ "," _ "," _ "," _ "," _ "," _ "," _ "," _ "," _ "," _ ",null,"O","_",null,null,4,47,"Community and social services","Disaster Management",null,"_","_","_","_","_",221739,162658,0,0,231939,242609,0,0,0,0,0,0,0,0]
["O1232-16/IA10375/F0041/X051/R0100/001/CONTRA","O1232-16/IA10375/F0041/X051/R0100/001/CONTRA",223556,33598,"Assets:Current Assets:VAT Receivable:Input Tax Accrual:Recognised","IA",1200,"Municipal governance and administration / Finance and administration / Human Resources",1206,"Municipal governance and administration / Finance and administration / Human Resources"," _"," _"," _ "," _ ","_"," _"," _",170,"Current assets / VAT","_","_"," _ "," _ "," _ "," _ "," _ "," _ "," _ "," _ ",1003,"Statutory requirements",1003,"Statutory requirements"," _ "," _ "," _ "," _ ",null," _ "," _ ","_","_","_","_",null,null," _ "," _ "," _ "," _ "," _ "," _ "," _ "," _ "," _ "," _ "," _ "," _ "," _ "," _ "," _ "," _ "," _ "," _ "," _ "," _ "," _ "," _ "," _ "," _ ",null,"O","_",null,null,2,25,"Finance and administration","Human Resources",null,"_","_","_","_","_",0,0,0,0,0,0,0,0,0,0,0,0,0,0]
["O1246-4/IL65528/F0041/X044/R0100/001/CONTRA","O1246-4/IL65528/F0041/X044/R0100/001/CONTRA",250931,43736,"Liabilities:Current Liabilities:Trade and Other Payable Exchange Transactions:Payables and Accruals : Inventory:Withdrawals","IL",1100,"Municipal governance and administration / Executive and council / Mayor and Council",1110,"Municipal governance and administration / Executive and council / Mayor and Council"," _"," _"," _ "," _ ","_"," _"," _",380,"Current liabilities / Trade and other payables from exchange transactions","_","_"," _ ",200," _ ","CASH FLOW FROM OPERATING ACTIVITIES / Payments / Suppliers and employees"," _ ",440," _ ","Cash Payments by Type / Acquisition inventory - water and other inventory","_","_","_","_"," _ "," _ "," _ "," _ ",null," _ "," _ ","_","_","_","_",null,null," _ "," _ "," _ "," _ "," _ "," _ "," _ "," _ "," _ "," _ "," _ "," _ "," _ "," _ "," _ "," _ "," _ "," _ "," _ "," _ ",361,"Trade and other payables / Trade and other payables from exchange transactions",361,"Trade and other payables / Trade and other payables from exchange transactions",null,"O","_",null,null,1,11,"Executive and council","Mayor and Council",null,"_","_","_","_","_",0,0,0,0,0,0,0,0,0,0,0,0,0,0]
["O1335-1/IE00653/F0041/X125/R0100/001/EXEC","O1335-1/IE00653/F0041/X125/R0100/001/EXEC",119881,23708,"Expenditure:Contracted Services:Contractors:Medical Services","IE",2200,"Community and public safety / Sport and recreation / Sports Grounds and Stadiums",2205,"Community and public safety / Sport and recreation / Sports Grounds and Stadiums",3800,"Expenditure / Contracted services",2703,"Expenditure / Contracted services","_"," _"," _"," _ "," _ "," _ "," _ "," _ "," _ "," _ "," _ "," _ "," _ "," _ "," _ ","_","_","_","_"," _ "," _ "," _ "," _ ",null,2703,"Contracted Services ","_","_","_","_",null,null," _ "," _ "," _ "," _ "," _ "," _ "," _ "," _ "," _ "," _ "," _ "," _ "," _ "," _ "," _ "," _ "," _ "," _ "," _ "," _ "," _ "," _ "," _ "," _ ",null,"O","_",null,null,5,54,"Sport and Recreation","Sports Grounds and Stadiums",null,"_","_","_","_","_",0,0,0,0,0,0,0,0,0,0,0,0,0,0]
["O1232-3/IA02108/F0041/X046/R0100/001/CONTRA","O1232-3/IA02108/F0041/X046/R0100/001/CONTRA",223448,33475,"Assets:Current Assets:Cash and Cash Equivalents:Cash at Bank:Bank Account:Specify (replace with account description):Withdrawals","IA",1200,"Municipal governance and administration / Finance and administration / Administrative and Corporate Support",1201,"Municipal governance and administration / Finance and administration / Administrative and Corporate Support"," _"," _"," _ "," _ ","_"," _"," _",120,"Current assets / Cash and cash equivalents","_","_"," _ "," _ "," _ "," _ "," _ "," _ "," _ "," _ ","_","_","_","_"," _ "," _ "," _ "," _ ",null," _ "," _ ","_","_","_","_",null,null," _ "," _ "," _ "," _ "," _ "," _ "," _ "," _ "," _ "," _ "," _ "," _ "," _ "," _ "," _ "," _ "," _ "," _ "," _ "," _ "," _ "," _ "," _ "," _ ","W","O","_",null,null,2,21,"Finance and administration","Administrative and Corporate Support",null,"_","_","_","_","_",-800000,-1393583,0,0,-1046006,-1094122,0,0,0,0,0,0,0,0]
["O1283-4/IA10379/F1177/X049/R0099/001/CONTRA","O1283-4/IA10379/F1177/X049/R0099/001/CONTRA",265707,39240,"Assets:Current Assets:VAT Receivable:Input Tax General:Transfers","IA",1200,"Municipal governance and administration / Finance and administration / Finance",1204,"Municipal governance and administration / Finance and administration / Finance"," _"," _"," _ "," _ ","_"," _"," _",170,"Current assets / VAT","_","_"," _ "," _ "," _ "," _ "," _ "," _ "," _ "," _ ",1003,"Statutory requirements",1003,"Statutory requirements"," _ "," _ "," _ "," _ ",null," _ "," _ ","_","_","_","_",null,null," _ "," _ "," _ "," _ "," _ "," _ "," _ "," _ "," _ "," _ "," _ "," _ "," _ "," _ "," _ "," _ "," _ "," _ "," _ "," _ "," _ "," _ "," _ "," _ ",null,"O","_",null,null,2,23,"Finance and administration","Finance",null,"_","_","_","_","_",0,0,0,0,0,0,0,0,0,0,0,0,0,0]
["O1283-1/IA02108/F0041/X047/R0100/001/CONTRA","O1283-1/IA02108/F0041/X047/R0100/001/CONTRA",223632,33658,"Assets:Current Assets:Cash and Cash Equivalents:Cash at Bank:Bank Account:Specify (replace with account description):Withdrawals","IA",1200,"Municipal governance and administration / Finance and administration / Asset Management",1202,"Municipal governance and administration / Finance and administration / Asset Management"," _"," _"," _ "," _ ","_"," _"," _",120,"Current assets / Cash and cash equivalents","_","_"," _ "," _ "," _ "," _ "," _ "," _ "," _ "," _ ","_","_","_","_"," _ "," _ "," _ "," _ ",null," _ "," _ ","_","_","_","_",null,null," _ "," _ "," _ "," _ "," _ "," _ "," _ "," _ "," _ "," _ "," _ "," _ "," _ "," _ "," _ "," _ "," _ "," _ "," _ "," _ "," _ "," _ "," _ "," _ ","W","O","_",null,null,2,22,"Finance and administration","Asset Management",null,"_","_","_","_","_",0,0,0,0,0,0,0,0,0,0,0,0,0,0]
["O0111-3/IA10373/F0041/X052/R3649/001/CONTRA","O0111-3/IA10373/F0041/X052/R3649/001/CONTRA",265891,43233,"Assets:Current Assets:VAT Receivable:VAT Control (Receivable):Transfers","IA",1200,"Municipal governance and administration / Finance and administration / Information Technology",1207,"Municipal governance and administration / Finance and administration / Information Technology"," _"," _"," _ "," _ ","_"," _"," _",170,"Current assets / VAT","_","_"," _ "," _ "," _ "," _ "," _ "," _ "," _ "," _ ",1003,"Statutory requirements",1003,"Statutory requirements"," _ "," _ "," _ "," _ ",null," _ "," _ ","_","_","_","_",null,null," _ "," _ "," _ "," _ "," _ "," _ "," _ "," _ "," _ "," _ "," _ "," _ "," _ "," _ "," _ "," _ "," _ "," _ "," _ "," _ "," _ "," _ "," _ "," _ ",null,"O","_",null,null,2,26,"Finance and administration","Information Technology",null,"_","_","_","_","_",0,0,0,0,0,0,0,0,0,0,0,0,0,0]
["O1331-5/IA10378/F0045/X049/R0100/001/CONTRA","O1331-5/IA10378/F0045/X049/R0100/001/CONTRA",264515,37988,"Assets:Current Assets:VAT Receivable:Input Tax General:Recognised","IA",1200,"Municipal governance and administration / Finance and administration / Finance",1204,"Municipal governance and administration / Finance and administration / Finance"," _"," _"," _ "," _ ","_"," _"," _",170,"Current assets / VAT","_","_"," _ "," _ "," _ "," _ "," _ "," _ "," _ "," _ ",1003,"Statutory requirements",1003,"Statutory requirements"," _ "," _ "," _ "," _ ",null," _ "," _ ","_","_","_","_",null,null," _ "," _ "," _ "," _ "," _ "," _ "," _ "," _ "," _ "," _ "," _ "," _ "," _ "," _ "," _ "," _ "," _ "," _ "," _ "," _ "," _ "," _ "," _ "," _ ",null,"O","_",null,null,2,23,"Finance and administration","Finance",null,"_","_","_","_","_",0,0,0,0,0,0,0,0,0,0,0,0,0,0]
["O1336-15/IA10338/F0041/X046/R0099/001/CORP","O1336-15/IA10338/F0041/X046/R0099/001/CORP",327999,46279,"Assets:Current Assets:Inventory:Consumables:Standard Rated:Issues","IA",1200,"Municipal governance and administration / Finance and administration / Administrative and Corporate Support",1201,"Municipal governance and administration / Finance and administration / Administrative and Corporate Support"," _"," _"," _ "," _ ","_"," _"," _",160,"Current assets / Inventory","_","_"," _ "," _ "," _ "," _ "," _ "," _ "," _ "," _ ","_","_","_","_"," _ "," _ "," _ "," _ ",null," _ "," _ ","_","_","_","_",null,null," _ "," _ "," _ "," _ "," _ "," _ "," _ "," _ "," _ "," _ "," _ "," _ "," _ "," _ "," _ "," _ "," _ "," _ "," _ "," _ ",193,"Consumables Standard Rated / Issues",193,"Consumables Standard Rated / Issues",null,"O","_",null,null,2,21,"Finance and administration","Administrative and Corporate Support",null,"_","_","_","_","_",-138000,-38000,0,0,-144348,-150988,0,0,0,0,0,0,0,0]
["O1300-5/IA10379/F0041/X051/R0099/001/CONTRA","O1300-5/IA10379/F0041/X051/R0099/001/CONTRA",265886,42901,"Assets:Current Assets:VAT Receivable:Input Tax General:Transfers","IA",1200,"Municipal governance and administration / Finance and administration / Human Resources",1206,"Municipal governance and administration / Finance and administration / Human Resources"," _"," _"," _ "," _ ","_"," _"," _",170,"Current assets / VAT","_","_"," _ "," _ "," _ "," _ "," _ "," _ "," _ "," _ ",1003,"Statutory requirements",1003,"Statutory requirements"," _ "," _ "," _ "," _ ",null," _ "," _ ","_","_","_","_",null,null," _ "," _ "," _ "," _ "," _ "," _ "," _ "," _ "," _ "," _ "," _ "," _ "," _ "," _ "," _ "," _ "," _ "," _ "," _ "," _ "," _ "," _ "," _ "," _ ",null,"O","_",null,null,2,25,"Finance and administration","Human Resources",null,"_","_","_","_","_",0,0,0,0,0,0,0,0,0,0,0,0,0,0]
["O1336-2/IL53820/F0041/X049/R0100/001/CONTRA","O1336-2/IL53820/F0041/X049/R0100/001/CONTRA",224081,33725,"Liabilities:Current Liabilities:Trade and Other Payable Exchange Transactions:Payables and Accruals : General:Deposits","IL",1200,"Municipal governance and administration / Finance and administration / Finance",1204,"Municipal governance and administration / Finance and administration / Finance"," _"," _"," _ "," _ ","_"," _"," _",380,"Current liabilities / Trade and other payables from exchange transactions","_","_"," _ "," _ "," _ "," _ "," _ "," _ "," _ "," _ ","_","_","_","_"," _ "," _ "," _ "," _ ",null," _ "," _ ","_","_","_","_",null,null," _ "," _ "," _ "," _ "," _ "," _ "," _ "," _ "," _ "," _ "," _ "," _ "," _ "," _ "," _ "," _ "," _ "," _ "," _ "," _ ",361,"Trade and other payables / Trade and other payables from exchange transactions",361,"Trade and other payables / Trade and other payables from exchange transactions",null,"O","_",null,null,2,23,"Finance and administration","Finance",null,"_","_","_","_","_",0,0,0,0,0,0,0,0,0,0,0,0,0,0]
["C0007-11/IL65531/F0002/X044/R0100/001/CONTRA","C0007-11/IL65531/F0002/X044/R0100/001/CONTRA",251155,44739,"Liabilities:Current Liabilities:Trade and Other Payable Exchange Transactions:Payables and Accruals : Contractors:Withdrawals","IL",1100,"Municipal governance and administration / Executive and council / Mayor and Council",1110,"Municipal governance and administration / Executive and council / Mayor and Council"," _"," _"," _ "," _ ","_",2080,"Funded by Internally generated funds",380,"Current liabilities / Trade and other payables from exchange transactions","_","_"," _ ",null," _ ","CASH FLOW FROM OPERATING ACTIVITIES / Payments / Suppliers and employees"," _ ",null," _ ","Cash Payments by Type / Contracted services","_","_","_","_"," _ "," _ "," _ "," _ ",null," _ "," _ ","_","_","_","_",null,null,1530,1530,"Transport Assets","Transport Assets"," _ "," _ "," _ "," _ "," _ "," _ "," _ "," _ "," _ "," _ "," _ "," _ "," _ "," _ "," _ "," _ ",361,"Trade and other payables / Trade and other payables from exchange transactions",361,"Trade and other payables / Trade and other payables from exchange transactions",null,"C","_",null,null,1,11,"Executive and council","Mayor and Council",null,"_","_","_","_","_",1400000,2796007,0,0,0,0,0,0,0,0,0,0,0,0]
["O1337-5/IA10376/F0041/X051/R0099/001/CONTRA","O1337-5/IA10376/F0041/X051/R0099/001/CONTRA",263098,37324,"Assets:Current Assets:VAT Receivable:Input Tax Accrual:Transfers","IA",1200,"Municipal governance and administration / Finance and administration / Human Resources",1206,"Municipal governance and administration / Finance and administration / Human Resources"," _"," _"," _ "," _ ","_"," _"," _",170,"Current assets / VAT","_","_"," _ "," _ "," _ "," _ "," _ "," _ "," _ "," _ ",1003,"Statutory requirements",1003,"Statutory requirements"," _ "," _ "," _ "," _ ",null," _ "," _ ","_","_","_","_",null,null," _ "," _ "," _ "," _ "," _ "," _ "," _ "," _ "," _ "," _ "," _ "," _ "," _ "," _ "," _ "," _ "," _ "," _ "," _ "," _ "," _ "," _ "," _ "," _ ",null,"O","_",null,null,2,25,"Finance and administration","Human Resources",null,"_","_","_","_","_",-84783,-71740,0,0,-88683,-92762,0,0,0,0,0,0,0,0]
["O1232-21/IA10379/F0041/X104/R0100/001/CONTRA","O1232-21/IA10379/F0041/X104/R0100/001/CONTRA",266113,44617,"Assets:Current Assets:VAT Receivable:Input Tax General:Transfers","IA",3100,"Economic and environmental services / Planning and development / Regional Planning and Development",3106,"Economic and environmental services / Planning and development / Regional Planning and Development"," _"," _"," _ "," _ ","_"," _"," _",170,"Current assets / VAT","_","_"," _ "," _ "," _ "," _ "," _ "," _ "," _ "," _ ",1003,"Statutory requirements",1003,"Statutory requirements"," _ "," _ "," _ "," _ ",null," _ "," _ ","_","_","_","_",null,null," _ "," _ "," _ "," _ "," _ "," _ "," _ "," _ "," _ "," _ "," _ "," _ "," _ "," _ "," _ "," _ "," _ "," _ "," _ "," _ "," _ "," _ "," _ "," _ ",null,"O","_",null,null,8,85,"Planning and Development","Regional Planning and Development",null,"_","_","_","_","_",0,0,0,0,0,0,0,0,0,0,0,0,0,0]
["O1672-1/IA10373/F0041/X032/R3649/001/CONTRA","O1672-1/IA10373/F0041/X032/R3649/001/CONTRA",262568,42847,"Assets:Current Assets:VAT Receivable:VAT Control (Receivable):Transfers","IA",4100,"Trading services / Energy sources / Electricity",4101,"Trading services / Energy sources / Electricity"," _"," _"," _ "," _ ","_"," _"," _",170,"Current assets / VAT","_","_"," _ "," _ "," _ "," _ "," _ "," _ "," _ "," _ ",1003,"Statutory requirements",1003,"Statutory requirements"," _ "," _ "," _ "," _ ",null," _ "," _ ","_","_","_","_",null,null," _ "," _ "," _ "," _ "," _ "," _ ",250,"Infrastructure / Electrical Infrastructure / MV Substations"," _ ",250,"Infrastructure / Electrical Infrastructure / MV Substations"," _ "," _ "," _ "," _ "," _ "," _ "," _ "," _ "," _ "," _ "," _ "," _ "," _ ",null,"O","_",null,null,10,101,"Energy sources","Electricity",null,"_","_","_","_","_",0,0,0,0,0,0,0,0,0,0,0,0,0,0]
["O1341-2/IA02108/F0045/X098/R0100/001/CONTRA","O1341-2/IA02108/F0045/X098/R0100/001/CONTRA",223301,35495,"Assets:Current Assets:Cash and Cash Equivalents:Cash at Bank:Bank Account:Specify (replace with account description):Withdrawals","IA",3100,"Economic and environmental services / Planning and development / Economic Development/Planning",3105,"Economic and environmental services / Planning and development / Economic Development/Planning"," _"," _"," _ "," _ ","_"," _"," _",120,"Current assets / Cash and cash equivalents","_","_"," _ "," _ "," _ "," _ "," _ "," _ "," _ "," _ ","_","_","_","_"," _ "," _ "," _ "," _ ",null," _ "," _ ","_","_","_","_",null,null," _ "," _ "," _ "," _ "," _ "," _ "," _ "," _ "," _ "," _ "," _ "," _ "," _ "," _ "," _ "," _ "," _ "," _ "," _ "," _ "," _ "," _ "," _ "," _ ","W","O","_",null,null,8,82,"Planning and Development","Economic Development/Planning",null,"_","_","_","_","_",-300001,-22828,0,0,-313801,-328235,0,0,0,0,0,0,0,0]
["O1293-9/IE00632/F0041/X044/R0100/001/EXEC","O1293-9/IE00632/F0041/X044/R0100/001/EXEC",150349,25160,"Expenditure:Contracted Services:Contractors:Catering Services","IE",1100,"Municipal governance and administration / Executive and council / Mayor and Council",1110,"Municipal governance and administration / Executive and council / Mayor and Council",3800,"Expenditure / Contracted services",2703,"Expenditure / Contracted services","_"," _"," _"," _ "," _ "," _ "," _ "," _ "," _ "," _ "," _ "," _ "," _ "," _ "," _ ","_","_","_","_"," _ "," _ "," _ "," _ ",null,2703,"Contracted Services ","_","_","_","_",null,null," _ "," _ "," _ "," _ "," _ "," _ "," _ "," _ "," _ "," _ "," _ "," _ "," _ "," _ "," _ "," _ "," _ "," _ "," _ "," _ "," _ "," _ "," _ "," _ ",null,"O","_",null,null,1,11,"Executive and council","Mayor and Council",null,"_","_","_","_","_",60000,160000,0,0,62760,65650,0,0,0,0,0,0,0,0]
["O1444-5/IE00667/F0041/X044/R0100/001/EXEC","O1444-5/IE00667/F0041/X044/R0100/001/EXEC",130031,23854,"Expenditure:Contracted Services:Contractors:Stage and Sound Crew","IE",1100,"Municipal governance and administration / Executive and council / Mayor and Council",1110,"Municipal governance and administration / Executive and council / Mayor and Council",3800,"Expenditure / Contracted services",2703,"Expenditure / Contracted services","_"," _"," _"," _ "," _ "," _ "," _ "," _ "," _ "," _ "," _ "," _ "," _ "," _ "," _ ","_","_","_","_"," _ "," _ "," _ "," _ ",null,2703,"Contracted Services ","_","_","_","_",null,null," _ "," _ "," _ "," _ "," _ "," _ "," _ "," _ "," _ "," _ "," _ "," _ "," _ "," _ "," _ "," _ "," _ "," _ "," _ "," _ "," _ "," _ "," _ "," _ ",null,"O","_",null,null,1,11,"Executive and council","Mayor and Council",null,"_","_","_","_","_",200000,250000,0,0,209200,218820,0,0,24350,7000,25000,12000,46500,0]
["O1238-4/IA10373/F0041/X044/R0100/001/CONTRA","O1238-4/IA10373/F0041/X044/R0100/001/CONTRA",264828,38553,"Assets:Current Assets:VAT Receivable:VAT Control (Receivable):Transfers","IA",1100,"Municipal governance and administration / Executive and council / Mayor and Council",1110,"Municipal governance and administration / Executive and council / Mayor and Council"," _"," _"," _ "," _ ","_"," _"," _",170,"Current assets / VAT","_","_"," _ "," _ "," _ "," _ "," _ "," _ "," _ "," _ ",1003,"Statutory requirements",1003,"Statutory requirements"," _ "," _ "," _ "," _ ",null," _ "," _ ","_","_","_","_",null,null," _ "," _ "," _ "," _ "," _ "," _ "," _ "," _ "," _ "," _ "," _ "," _ "," _ "," _ "," _ "," _ "," _ "," _ "," _ "," _ "," _ "," _ "," _ "," _ ",null,"O","_",null,null,1,11,"Executive and council","Mayor and Council",null,"_","_","_","_","_",45000,30000,0,0,47070,49235,0,0,0,0,0,0,0,0]
["O2338-2/IA10379/F0041/X052/R3649/001/CONTRA","O2338-2/IA10379/F0041/X052/R3649/001/CONTRA",265826,43131,"Assets:Current Assets:VAT Receivable:Input Tax General:Transfers","IA",1200,"Municipal governance and administration / Finance and administration / Information Technology",1207,"Municipal governance and administration / Finance and administration / Information Technology"," _"," _"," _ "," _ ","_"," _"," _",170,"Current assets / VAT","_","_"," _ "," _ "," _ "," _ "," _ "," _ "," _ "," _ ",1003,"Statutory requirements",1003,"Statutory requirements"," _ "," _ "," _ "," _ ",null," _ "," _ ","_","_","_","_",null,null," _ "," _ "," _ "," _ "," _ "," _ ",730,"Infrastructure / Information and Communication Infrastructure / Data Centres"," _ ",730,"Infrastructure / Information and Communication Infrastructure / Data Centres"," _ "," _ "," _ "," _ "," _ "," _ "," _ "," _ "," _ "," _ "," _ "," _ "," _ ",null,"O","_",null,null,2,26,"Finance and administration","Information Technology",null,"_","_","_","_","_",0,0,0,0,0,0,0,0,0,0,0,0,0,0]
["O1284-4/IE00016/F0047/X049/R0099/001/FIN","O1284-4/IE00016/F0047/X049/R0099/001/FIN",150369,25180,"Expenditure:Contracted Services:Outsourced Services:Business and Advisory:Business and Financial Management","IE",1200,"Municipal governance and administration / Finance and administration / Finance",1204,"Municipal governance and administration / Finance and administration / Finance",3800,"Expenditure / Contracted services",2701,"Expenditure / Contracted services","_"," _"," _"," _ "," _ "," _ "," _ "," _ "," _ "," _ "," _ "," _ "," _ "," _ "," _ ","_","_","_","_"," _ "," _ "," _ "," _ ",null,2701,"Contracted Services ","_","_","_","_",null,null," _ "," _ "," _ "," _ "," _ "," _ "," _ "," _ "," _ "," _ "," _ "," _ "," _ "," _ "," _ "," _ "," _ "," _ "," _ "," _ "," _ "," _ "," _ "," _ ",null,"O","_",null,null,2,23,"Finance and administration","Finance",null,"_","_","_","_","_",260870,260870,0,0,272870,285420,0,0,0,0,0,0,0,0]
["O1243-2/IL53821/F0791/X129/R3643/001/CONTRA","O1243-2/IL53821/F0791/X129/R3643/001/CONTRA",222625,33072,"Liabilities:Current Liabilities:Trade and Other Payable Exchange Transactions:Payables and Accruals : General:Withdrawals","IL",2200,"Community and public safety / Sport and recreation / Sports Grounds and Stadiums",2205,"Community and public safety / Sport and recreation / Sports Grounds and Stadiums"," _"," _"," _ "," _ ","_",2010,"Funded by National Government",380,"Current liabilities / Trade and other payables from exchange transactions","_","_"," _ ",200," _ ","CASH FLOW FROM OPERATING ACTIVITIES / Payments / Suppliers and employees"," _ ",480," _ ","Cash Payments by Type / Other expenditure","_","_","_","_"," _ "," _ "," _ "," _ ",null," _ "," _ ","_","_","_","_",null,null," _ "," _ "," _ "," _ "," _ "," _ "," _ "," _ "," _ "," _ "," _ "," _ "," _ "," _ "," _ "," _ "," _ "," _ "," _ "," _ ",361,"Trade and other payables / Trade and other payables from exchange transactions",361,"Trade and other payables / Trade and other payables from exchange transactions",null,"O","_",null,null,5,54,"Sport and Recreation","Sports Grounds and Stadiums",null,"_","_","_","_","_",0,0,0,0,0,0,0,0,0,0,0,0,0,0]
["O1243-4/IA10378/F0045/X044/R0100/001/CONTRA","O1243-4/IA10378/F0045/X044/R0100/001/CONTRA",261883,43883,"Assets:Current Assets:VAT Receivable:Input Tax General:Recognised","IA",1100,"Municipal governance and administration / Executive and council / Mayor and Council",1110,"Municipal governance and administration / Executive and council / Mayor and Council"," _"," _"," _ "," _ ","_"," _"," _",170,"Current assets / VAT","_","_"," _ "," _ "," _ "," _ "," _ "," _ "," _ "," _ ",1003,"Statutory requirements",1003,"Statutory requirements"," _ "," _ "," _ "," _ ",null," _ "," _ ","_","_","_","_",null,null," _ "," _ "," _ "," _ "," _ "," _ "," _ "," _ "," _ "," _ "," _ "," _ "," _ "," _ "," _ "," _ "," _ "," _ "," _ "," _ "," _ "," _ "," _ "," _ ",null,"O","_",null,null,1,11,"Executive and council","Mayor and Council",null,"_","_","_","_","_",27750,27750,0,0,29027,30362,0,0,0,0,0,0,0,0]
["O1232-17/IA10375/F0045/X006/R0099/001/CONTRA","O1232-17/IA10375/F0045/X006/R0099/001/CONTRA",225582,34678,"Assets:Current Assets:VAT Receivable:Input Tax Accrual:Recognised","IA",2100,"Community and public safety / Community and social services / Community Halls and Facilities",2106,"Community and public safety / Community and social services / Community Halls and Facilities"," _"," _"," _ "," _ ","_"," _"," _",170,"Current assets / VAT","_","_"," _ "," _ "," _ "," _ "," _ "," _ "," _ "," _ ",1003,"Statutory requirements",1003,"Statutory requirements"," _ "," _ "," _ "," _ ",null," _ "," _ ","_","_","_","_",null,null," _ "," _ "," _ "," _ "," _ "," _ "," _ "," _ "," _ "," _ "," _ "," _ "," _ "," _ "," _ "," _ "," _ "," _ "," _ "," _ "," _ "," _ "," _ "," _ ",null,"O","_",null,null,4,43,"Community and social services","Community Halls and Facilities",null,"_","_","_","_","_",0,0,0,0,0,0,0,0,0,0,0,0,0,0]
["O1372-1/IA10378/F0041/X032/R3649/001/CONTRA","O1372-1/IA10378/F0041/X032/R3649/001/CONTRA",264870,38778,"Assets:Current Assets:VAT Receivable:Input Tax General:Recognised","IA",4100,"Trading services / Energy sources / Electricity",4101,"Trading services / Energy sources / Electricity"," _"," _"," _ "," _ ","_"," _"," _",170,"Current assets / VAT","_","_"," _ "," _ "," _ "," _ "," _ "," _ "," _ "," _ ",1003,"Statutory requirements",1003,"Statutory requirements"," _ "," _ "," _ "," _ ",null," _ "," _ ","_","_","_","_",null,null," _ "," _ "," _ "," _ "," _ "," _ "," _ "," _ "," _ "," _ "," _ "," _ "," _ "," _ "," _ "," _ "," _ "," _ "," _ "," _ "," _ "," _ "," _ "," _ ",null,"O","_",null,null,10,101,"Energy sources","Electricity",null,"_","_","_","_","_",0,0,0,0,0,0,0,0,0,0,0,0,0,0]
["O1354-1/IE00844/F0041/X044/R0100/001/EXE4","O1354-1/IE00844/F0041/X044/R0100/001/EXE4",61371,21085,"Expenditure:Contracted Services:Consultants and Professional Services:Business and Advisory:Project Management","IE",1100,"Municipal governance and administration / Executive and council / Mayor and Council",1110,"Municipal governance and administration / Executive and council / Mayor and Council",3800,"Expenditure / Contracted services",2702,"Expenditure / Contracted services","_"," _"," _"," _ "," _ "," _ "," _ "," _ "," _ "," _ "," _ "," _ "," _ "," _ "," _ ","_","_","_","_"," _ "," _ "," _ "," _ ",null,2702,"Contracted Services ","_","_","_","_",null,null," _ "," _ "," _ "," _ "," _ "," _ "," _ "," _ "," _ "," _ "," _ "," _ "," _ "," _ "," _ "," _ "," _ "," _ "," _ "," _ "," _ "," _ "," _ "," _ ",null,"O","_",null,null,1,11,"Executive and council","Mayor and Council",null,"_","_","_","_","_",0,0,0,0,0,0,0,0,0,0,0,0,0,0]
["O1337-1/IE00058/F0041/X099/R0100/001/TECH","O1337-1/IE00058/F0041/X099/R0100/001/TECH",112765,23472,"Expenditure:Operational Cost:Registration Fees:Seminars, Conferences, Workshops and Events:International","IE",3100,"Economic and environmental services / Planning and development / Project Management Unit",3108,"Economic and environmental services / Planning and development / Project Management Unit",4100,"Expenditure / Operational costs",2904,"Expenditure / Operational costs","_"," _"," _"," _ "," _ "," _ "," _ "," _ "," _ "," _ "," _ "," _ "," _ "," _ "," _ ","_","_","_","_"," _ "," _ "," _ "," _ ",null,2904,"Operational Costs ","_","_","_","_",null,null," _ "," _ "," _ "," _ "," _ "," _ "," _ "," _ "," _ "," _ "," _ "," _ "," _ "," _ "," _ "," _ "," _ "," _ "," _ "," _ "," _ "," _ "," _ "," _ ",null,"O","_",null,null,8,83,"Planning and Development","Project Management Unit",null,"_","_","_","_","_",0,0,0,0,0,0,0,0,0,0,0,0,0,0]
["O1350-3/IE00738/F1177/X056/R0099/001/EXEC","O1350-3/IE00738/F1177/X056/R0099/001/EXEC",60799,20822,"Expenditure:Inventory Consumed:Consumables:Standard Rated","IE",1200,"Municipal governance and administration / Finance and administration / Risk Management",1211,"Municipal governance and administration / Finance and administration / Risk Management",3400,"Expenditure / Inventory consumed",6002,"Expenditure / Inventory consumed","_"," _"," _"," _ "," _ "," _ "," _ "," _ "," _ "," _ "," _ "," _ "," _ "," _ "," _ ","_","_","_","_"," _ "," _ "," _ "," _ ",null,6002,"Inventory Consumed - Other","_","_","_","_",null,null," _ "," _ "," _ "," _ "," _ "," _ "," _ "," _ "," _ "," _ "," _ "," _ "," _ "," _ "," _ "," _ "," _ "," _ "," _ "," _ "," _ "," _ "," _ "," _ ",null,"O","_",null,null,3,32,"Internal audit","Risk Management",null,"_","_","_","_","_",0,0,0,0,0,0,0,0,0,0,0,0,0,0]
["O1761-1/IE00534/F0041/X116/R0100/001/TEC3","O1761-1/IE00534/F0041/X116/R0100/001/TEC3",112784,23491,"Expenditure:Inventory Consumed:Materials and Supplies","IE",3200,"Economic and environmental services / Road transport / Roads",3205,"Economic and environmental services / Road transport / Roads",3400,"Expenditure / Inventory consumed",6002,"Expenditure / Inventory consumed","_"," _"," _"," _ "," _ "," _ "," _ "," _ "," _ "," _ "," _ "," _ "," _ "," _ "," _ ","_","_","_","_"," _ "," _ "," _ "," _ ",null,6002,"Inventory Consumed - Other","_","_","_","_",null,null," _ "," _ "," _ "," _ "," _ "," _ ",140,"Infrastructure / Roads Infrastructure / Road Furniture"," _ ",140,"Infrastructure / Roads Infrastructure / Road Furniture"," _ "," _ "," _ "," _ "," _ "," _ "," _ "," _ "," _ "," _ "," _ "," _ "," _ ",null,"O","RM",null,null,9,91,"Road transport","Roads",null,"_","_","_","_","_",0,0,0,0,0,0,0,0,0,0,0,0,0,0]
["O1369-3/IA10378/F0786/X032/R3653/001/CONTRA","O1369-3/IA10378/F0786/X032/R3653/001/CONTRA",265214,42929,"Assets:Current Assets:VAT Receivable:Input Tax General:Recognised","IA",4100,"Trading services / Energy sources / Electricity",4101,"Trading services / Energy sources / Electricity"," _"," _"," _ "," _ ","_",2010,"Funded by National Government",170,"Current assets / VAT","_","_"," _ "," _ "," _ "," _ "," _ "," _ "," _ "," _ ",1003,"Statutory requirements",1003,"Statutory requirements"," _ "," _ "," _ "," _ ",null," _ "," _ ","_","_","_","_",null,null," _ "," _ "," _ "," _ "," _ "," _ "," _ "," _ "," _ "," _ "," _ "," _ "," _ "," _ "," _ "," _ "," _ "," _ "," _ "," _ "," _ "," _ "," _ "," _ ",null,"O","_",null,null,10,101,"Energy sources","Electricity",null,"_","_","_","_","_",0,0,0,0,0,0,0,0,0,0,0,0,0,0]
["O1672-1/IL53821/F0041/X032/R3649/001/CONTRA","O1672-1/IL53821/F0041/X032/R3649/001/CONTRA",223036,35224,"Liabilities:Current Liabilities:Trade and Other Payable Exchange Transactions:Payables and Accruals : General:Withdrawals","IL",4100,"Trading services / Energy sources / Electricity",4101,"Trading services / Energy sources / Electricity"," _"," _"," _ "," _ ","_"," _"," _",380,"Current liabilities / Trade and other payables from exchange transactions","_","_"," _ ",200," _ ","CASH FLOW FROM OPERATING ACTIVITIES / Payments / Suppliers and employees"," _ ",480," _ ","Cash Payments by Type / Other expenditure","_","_","_","_"," _ "," _ "," _ "," _ ",null," _ "," _ ","_","_","_","_",null,null," _ "," _ "," _ "," _ "," _ "," _ ",250,"Infrastructure / Electrical Infrastructure / MV Substations"," _ ",250,"Infrastructure / Electrical Infrastructure / MV Substations"," _ "," _ "," _ "," _ "," _ "," _ "," _ "," _ "," _ ",361,"Trade and other payables / Trade and other payables from exchange transactions",361,"Trade and other payables / Trade and other payables from exchange transactions",null,"O","_",null,null,10,101,"Energy sources","Electricity",null,"_","_","_","_","_",0,0,0,0,0,0,0,0,0,0,0,0,0,0]
["O1298-1/IL65530/F0041/X045/R0100/001/CONTRA","O1298-1/IL65530/F0041/X045/R0100/001/CONTRA",223958,35788,"Liabilities:Current Liabilities:Trade and Other Payable Exchange Transactions:Payables and Accruals : Contractors:Deposits","IL",1100,"Municipal governance and administration / Executive and council / Municipal Manager, Town Secretary and Chief Executive",1120,"Municipal governance and administration / Executive and council / Municipal Manager, Town Secretary and Chief Executive"," _"," _"," _ "," _ ","_"," _"," _",380,"Current liabilities / Trade and other payables from exchange transactions","_","_"," _ "," _ "," _ "," _ "," _ "," _ "," _ "," _ ","_","_","_","_"," _ "," _ "," _ "," _ ",null," _ "," _ ","_","_","_","_",null,null," _ "," _ "," _ "," _ "," _ "," _ "," _ "," _ "," _ "," _ "," _ "," _ "," _ "," _ "," _ "," _ "," _ "," _ "," _ "," _ ",361,"Trade and other payables / Trade and other payables from exchange transactions",361,"Trade and other payables / Trade and other payables from exchange transactions",null,"O","_",null,null,1,12,"Executive and council","Municipal Manager, Town Secretary and Chief Executive",null,"_","_","_","_","_",-92000,0,0,0,-96232,-100660,0,0,0,0,0,0,0,0]
["O2385-1/IA10376/F0041/X116/R0100/001/CONTRA","O2385-1/IA10376/F0041/X116/R0100/001/CONTRA",264985,39090,"Assets:Current Assets:VAT Receivable:Input Tax Accrual:Transfers","IA",3200,"Economic and environmental services / Road transport / Roads",3205,"Economic and environmental services / Road transport / Roads"," _"," _"," _ "," _ ","_"," _"," _",170,"Current assets / VAT","_","_"," _ "," _ "," _ "," _ "," _ "," _ "," _ "," _ ",1003,"Statutory requirements",1003,"Statutory requirements"," _ "," _ "," _ "," _ ",null," _ "," _ ","_","_","_","_",null,null," _ "," _ "," _ "," _ "," _ "," _ ",140,"Infrastructure / Roads Infrastructure / Road Furniture"," _ ",140,"Infrastructure / Roads Infrastructure / Road Furniture"," _ "," _ "," _ "," _ "," _ "," _ "," _ "," _ "," _ "," _ "," _ "," _ "," _ ",null,"O","_",null,null,9,91,"Road transport","Roads",null,"_","_","_","_","_",0,0,0,0,0,0,0,0,0,0,0,0,0,0]
["O3587-3/IL65531/F0041/X133/R3644/001/CONTRA","O3587-3/IL65531/F0041/X133/R3644/001/CONTRA",223588,33606,"Liabilities:Current Liabilities:Trade and Other Payable Exchange Transactions:Payables and Accruals : Contractors:Withdrawals","IL",4400,"Trading services / Waste management / Street Cleaning",4404,"Trading services / Waste management / Street Cleaning"," _"," _"," _ "," _ ","_"," _"," _",380,"Current liabilities / Trade and other payables from exchange transactions","_","_"," _ ",200," _ ","CASH FLOW FROM OPERATING ACTIVITIES / Payments / Suppliers and employees"," _ ",450," _ ","Cash Payments by Type / Contracted services","_","_","_","_"," _ "," _ "," _ "," _ ",null," _ "," _ ","_","_","_","_",null,null," _ "," _ "," _ "," _ "," _ "," _ "," _ "," _ "," _ "," _ "," _ "," _ "," _ "," _ "," _ "," _ "," _ "," _ "," _ "," _ ",361,"Trade and other payables / Trade and other payables from exchange transactions",361,"Trade and other payables / Trade and other payables from exchange transactions",null,"O","_",null,null,11,113,"Waste Management","Street Cleaning",null,"_","_","_","_","_",0,0,0,0,0,0,0,0,0,0,0,0,0,0]
["O1586-2/IA10379/F0041/X132/R0100/001/CONTRA","O1586-2/IA10379/F0041/X132/R0100/001/CONTRA",263722,37575,"Assets:Current Assets:VAT Receivable:Input Tax General:Transfers","IA",4400,"Trading services / Waste management / Solid Waste Removal",4403,"Trading services / Waste management / Solid Waste Removal"," _"," _"," _ "," _ ","_"," _"," _",170,"Current assets / VAT","_","_"," _ "," _ "," _ "," _ "," _ "," _ "," _ "," _ ",1003,"Statutory requirements",1003,"Statutory requirements"," _ "," _ "," _ "," _ ",null," _ "," _ ","_","_","_","_",null,null," _ "," _ "," _ "," _ "," _ "," _ "," _ "," _ "," _ "," _ "," _ "," _ "," _ "," _ "," _ "," _ "," _ "," _ "," _ "," _ "," _ "," _ "," _ "," _ ",null,"O","_",null,null,11,111,"Waste Management","Solid Waste Removal",null,"_","_","_","_","_",0,0,0,0,0,0,0,0,0,0,0,0,0,0]
["O1246-4/IA10378/F0041/X006/R0100/001/CONTRA","O1246-4/IA10378/F0041/X006/R0100/001/CONTRA",263361,39409,"Assets:Current Assets:VAT Receivable:Input Tax General:Recognised","IA",2100,"Community and public safety / Community and social services / Community Halls and Facilities",2106,"Community and public safety / Community and social services / Community Halls and Facilities"," _"," _"," _ "," _ ","_"," _"," _",170,"Current assets / VAT","_","_"," _ "," _ "," _ "," _ "," _ "," _ "," _ "," _ ",1003,"Statutory requirements",1003,"Statutory requirements"," _ "," _ "," _ "," _ ",null," _ "," _ ","_","_","_","_",null,null," _ "," _ "," _ "," _ "," _ "," _ "," _ "," _ "," _ "," _ "," _ "," _ "," _ "," _ "," _ "," _ "," _ "," _ "," _ "," _ "," _ "," _ "," _ "," _ ",null,"O","_",null,null,4,43,"Community and social services","Community Halls and Facilities",null,"_","_","_","_","_",0,0,0,0,0,0,0,0,0,0,0,0,0,0]
["O1350-2/IL54034/F1177/X056/R0099/001/CONTRA","O1350-2/IL54034/F1177/X056/R0099/001/CONTRA",223650,33669,"Liabilities:Current Liabilities:Trade and Other Payable Exchange Transactions:Auditor-General of South Africa:Deposits","IL",1200,"Municipal governance and administration / Finance and administration / Risk Management",1211,"Municipal governance and administration / Finance and administration / Risk Management"," _"," _"," _ "," _ ","_"," _"," _",380,"Current liabilities / Trade and other payables from exchange transactions","_","_"," _ "," _ "," _ "," _ "," _ "," _ "," _ "," _ ","_","_","_","_"," _ "," _ "," _ "," _ ",null," _ "," _ ","_","_","_","_",null,null," _ "," _ "," _ "," _ "," _ "," _ "," _ "," _ "," _ "," _ "," _ "," _ "," _ "," _ "," _ "," _ "," _ "," _ "," _ "," _ ",361,"Trade and other payables / Trade and other payables from exchange transactions",361,"Trade and other payables / Trade and other payables from exchange transactions",null,"O","_",null,null,3,32,"Internal audit","Risk Management",null,"_","_","_","_","_",0,0,0,0,0,0,0,0,0,0,0,0,0,0]
["O3309-1/IA02108/F0041/X037/R0100/001/CONTRA","O3309-1/IA02108/F0041/X037/R0100/001/CONTRA",222152,34750,"Assets:Current Assets:Cash and Cash Equivalents:Cash at Bank:Bank Account:Specify (replace with account description):Withdrawals","IA",3300,"Economic and environmental services / Environmental protection / Biodiversity and Landscape",3301,"Economic and environmental services / Environmental protection / Biodiversity and Landscape"," _"," _"," _ "," _ ","_"," _"," _",120,"Current assets / Cash and cash equivalents","_","_"," _ "," _ "," _ "," _ "," _ "," _ "," _ "," _ ","_","_","_","_"," _ "," _ "," _ "," _ ",null," _ "," _ ","_","_","_","_",null,null," _ "," _ "," _ "," _ "," _ "," _ ",910,"Community Assets / Community Facilities / Parks"," _ ",910,"Community Assets / Community Facilities / Parks"," _ "," _ "," _ "," _ "," _ "," _ "," _ "," _ "," _ "," _ "," _ "," _ "," _ ","W","O","_",null,null,12,121,"Environmental Protection","Biodiversity and Landscape",null,"_","_","_","_","_",-199997,-50001,0,0,-209197,-218822,0,0,0,0,0,0,0,0]
["O1557-3/IE00650/F0041/X052/R0099/001/CORP","O1557-3/IE00650/F0041/X052/R0099/001/CORP",40462,20610,"Expenditure:Contracted Services:Contractors:Maintenance of Equipment","IE",1200,"Municipal governance and administration / Finance and administration / Information Technology",1207,"Municipal governance and administration / Finance and administration / Information Technology",3800,"Expenditure / Contracted services",2703,"Expenditure / Contracted services","_"," _"," _"," _ "," _ "," _ "," _ "," _ "," _ "," _ "," _ "," _ "," _ "," _ "," _ ","_","_","_","_"," _ "," _ "," _ "," _ ",null,2703,"Contracted Services ","_","_","_","_",null,null," _ "," _ "," _ "," _ "," _ "," _ ",1510,"Machinery and Equipment"," _ ",1510,"Machinery and Equipment"," _ "," _ "," _ "," _ "," _ "," _ "," _ "," _ "," _ "," _ "," _ "," _ "," _ ",null,"O","RM",null,null,2,26,"Finance and administration","Information Technology",null,"_","_","_","_","_",347826,388348,0,0,363826,380562,0,121050,0,-121050,0,188830,199518,27972.19]
["O1972-1/IL65530/F0041/X052/R3649/001/CONTRA","O1972-1/IL65530/F0041/X052/R3649/001/CONTRA",223224,35435,"Liabilities:Current Liabilities:Trade and Other Payable Exchange Transactions:Payables and Accruals : Contractors:Deposits","IL",1200,"Municipal governance and administration / Finance and administration / Information Technology",1207,"Municipal governance and administration / Finance and administration / Information Technology"," _"," _"," _ "," _ ","_"," _"," _",380,"Current liabilities / Trade and other payables from exchange transactions","_","_"," _ "," _ "," _ "," _ "," _ "," _ "," _ "," _ ","_","_","_","_"," _ "," _ "," _ "," _ ",null," _ "," _ ","_","_","_","_",null,null," _ "," _ "," _ "," _ "," _ "," _ ",740,"Infrastructure / Information and Communication Infrastructure / Core Layers"," _ ",740,"Infrastructure / Information and Communication Infrastructure / Core Layers"," _ "," _ "," _ "," _ "," _ "," _ "," _ "," _ "," _ ",361,"Trade and other payables / Trade and other payables from exchange transactions",361,"Trade and other payables / Trade and other payables from exchange transactions",null,"O","_",null,null,2,26,"Finance and administration","Information Technology",null,"_","_","_","_","_",0,0,0,0,0,0,0,0,0,0,0,0,0,0]
["O1543-1/IE00650/F0041/X050/R0100/001/TECH","O1543-1/IE00650/F0041/X050/R0100/001/TECH",61227,20971,"Expenditure:Contracted Services:Contractors:Maintenance of Equipment","IE",1200,"Municipal governance and administration / Finance and administration / Fleet Management",1205,"Municipal governance and administration / Finance and administration / Fleet Management",3800,"Expenditure / Contracted services",2703,"Expenditure / Contracted services","_"," _"," _"," _ "," _ "," _ "," _ "," _ "," _ "," _ "," _ "," _ "," _ "," _ "," _ ","_","_","_","_"," _ "," _ "," _ "," _ ",null,2703,"Contracted Services ","_","_","_","_",null,null," _ "," _ "," _ "," _ "," _ "," _ ",1510,"Machinery and Equipment"," _ ",1510,"Machinery and Equipment"," _ "," _ "," _ "," _ "," _ "," _ "," _ "," _ "," _ "," _ "," _ "," _ "," _ ",null,"O","RM",null,null,2,24,"Finance and administration","Fleet Management",null,"_","_","_","_","_",0,0,0,0,0,0,0,0,0,0,0,0,0,0]
["O1425-2/IA02108/F0041/X052/R0099/001/CONTRA","O1425-2/IA02108/F0041/X052/R0099/001/CONTRA",224622,36064,"Assets:Current Assets:Cash and Cash Equivalents:Cash at Bank:Bank Account:Specify (replace with account description):Withdrawals","IA",1200,"Municipal governance and administration / Finance and administration / Information Technology",1207,"Municipal governance and administration / Finance and administration / Information Technology"," _"," _"," _ "," _ ","_"," _"," _",120,"Current assets / Cash and cash equivalents","_","_"," _ "," _ "," _ "," _ "," _ "," _ "," _ "," _ ","_","_","_","_"," _ "," _ "," _ "," _ ",null," _ "," _ ","_","_","_","_",null,null," _ "," _ "," _ "," _ "," _ "," _ "," _ "," _ "," _ "," _ "," _ "," _ "," _ "," _ "," _ "," _ "," _ "," _ "," _ "," _ "," _ "," _ "," _ "," _ ","W","O","_",null,null,2,26,"Finance and administration","Information Technology",null,"_","_","_","_","_",0,0,0,0,0,0,0,0,0,0,0,0,0,0]
["O1972-1/IA10378/F0041/X052/R3649/001/CONTRA","O1972-1/IA10378/F0041/X052/R3649/001/CONTRA",265853,43171,"Assets:Current Assets:VAT Receivable:Input Tax General:Recognised","IA",1200,"Municipal governance and administration / Finance and administration / Information Technology",1207,"Municipal governance and administration / Finance and administration / Information Technology"," _"," _"," _ "," _ ","_"," _"," _",170,"Current assets / VAT","_","_"," _ "," _ "," _ "," _ "," _ "," _ "," _ "," _ ",1003,"Statutory requirements",1003,"Statutory requirements"," _ "," _ "," _ "," _ ",null," _ "," _ ","_","_","_","_",null,null," _ "," _ "," _ "," _ "," _ "," _ ",740,"Infrastructure / Information and Communication Infrastructure / Core Layers"," _ ",740,"Infrastructure / Information and Communication Infrastructure / Core Layers"," _ "," _ "," _ "," _ "," _ "," _ "," _ "," _ "," _ "," _ "," _ "," _ "," _ ",null,"O","_",null,null,2,26,"Finance and administration","Information Technology",null,"_","_","_","_","_",0,0,0,0,0,0,0,0,0,0,0,0,0,0]
["O1358-1/IA02108/F0041/X044/R0100/001/CONTRA","O1358-1/IA02108/F0041/X044/R0100/001/CONTRA",223678,33699,"Assets:Current Assets:Cash and Cash Equivalents:Cash at Bank:Bank Account:Specify (replace with account description):Withdrawals","IA",1100,"Municipal governance and administration / Executive and council / Mayor and Council",1110,"Municipal governance and administration / Executive and council / Mayor and Council"," _"," _"," _ "," _ ","_"," _"," _",120,"Current assets / Cash and cash equivalents","_","_"," _ "," _ "," _ "," _ "," _ "," _ "," _ "," _ ","_","_","_","_"," _ "," _ "," _ "," _ ",null," _ "," _ ","_","_","_","_",null,null," _ "," _ "," _ "," _ "," _ "," _ "," _ "," _ "," _ "," _ "," _ "," _ "," _ "," _ "," _ "," _ "," _ "," _ "," _ "," _ "," _ "," _ "," _ "," _ ","W","O","_",null,null,1,11,"Executive and council","Mayor and Council",null,"_","_","_","_","_",0,0,0,0,0,0,0,0,0,0,0,0,0,0]
["O2392-4/IA10379/F2496/X116/R3644/001/CONTRA","O2392-4/IA10379/F2496/X116/R3644/001/CONTRA",327266,46389,"Assets:Current Assets:VAT Receivable:Input Tax General:Transfers","IA",3200,"Economic and environmental services / Road transport / Roads",3205,"Economic and environmental services / Road transport / Roads"," _"," _"," _ "," _ ","_"," _"," _",170,"Current assets / VAT","_","_"," _ "," _ "," _ "," _ "," _ "," _ "," _ "," _ ",1003,"Statutory requirements",1003,"Statutory requirements"," _ "," _ "," _ "," _ ",null," _ "," _ ","_","_","_","_",null,null," _ "," _ "," _ "," _ "," _ "," _ ",120,"Infrastructure / Roads Infrastructure / Roads"," _ ",120,"Infrastructure / Roads Infrastructure / Roads"," _ "," _ "," _ "," _ "," _ "," _ "," _ "," _ "," _ "," _ "," _ "," _ "," _ ",null,"O","_",null,null,9,91,"Road transport","Roads",null,"_","_","_","_","_",-391304,-391304,0,0,-409304,-428132,0,0,0,0,0,0,0,0]
["O2337-1/IA10376/F0041/X052/R3649/001/CONTRA","O2337-1/IA10376/F0041/X052/R3649/001/CONTRA",265812,43191,"Assets:Current Assets:VAT Receivable:Input Tax Accrual:Transfers","IA",1200,"Municipal governance and administration / Finance and administration / Information Technology",1207,"Municipal governance and administration / Finance and administration / Information Technology"," _"," _"," _ "," _ ","_"," _"," _",170,"Current assets / VAT","_","_"," _ "," _ "," _ "," _ "," _ "," _ "," _ "," _ ",1003,"Statutory requirements",1003,"Statutory requirements"," _ "," _ "," _ "," _ ",null," _ "," _ ","_","_","_","_",null,null," _ "," _ "," _ "," _ "," _ "," _ ",740,"Infrastructure / Information and Communication Infrastructure / Core Layers"," _ ",740,"Infrastructure / Information and Communication Infrastructure / Core Layers"," _ "," _ "," _ "," _ "," _ "," _ "," _ "," _ "," _ "," _ "," _ "," _ "," _ ",null,"O","_",null,null,2,26,"Finance and administration","Information Technology",null,"_","_","_","_","_",0,0,0,0,0,0,0,0,0,0,0,0,0,0]
["O2774-1/IA10376/F13621/X024/R0100/001/CONTRA","O2774-1/IA10376/F13621/X024/R0100/001/CONTRA",265802,39432,"Assets:Current Assets:VAT Receivable:Input Tax Accrual:Transfers","IA",2100,"Community and public safety / Community and social services / Libraries and Archives",2114,"Community and public safety / Community and social services / Libraries and Archives"," _"," _"," _ "," _ ","_"," _"," _",170,"Current assets / VAT","_","_"," _ "," _ "," _ "," _ "," _ "," _ "," _ "," _ ",1003,"Statutory requirements",1003,"Statutory requirements"," _ "," _ "," _ "," _ ",null," _ "," _ ","_","_","_","_",null,null," _ "," _ "," _ "," _ "," _ "," _ ",1200,"Other assets / Operational Buildings / Municipal Offices"," _ ",1200,"Other assets / Operational Buildings / Municipal Offices"," _ "," _ "," _ "," _ "," _ "," _ "," _ "," _ "," _ "," _ "," _ "," _ "," _ ",null,"O","_",null,null,4,44,"Community and social services","Libraries and Archives",null,"_","_","_","_","_",0,0,0,0,0,0,0,0,0,0,0,0,0,0]
["O1350-4/IA10376/F1177/X056/R0099/001/CONTRA","O1350-4/IA10376/F1177/X056/R0099/001/CONTRA",263854,38018,"Assets:Current Assets:VAT Receivable:Input Tax Accrual:Transfers","IA",1200,"Municipal governance and administration / Finance and administration / Risk Management",1211,"Municipal governance and administration / Finance and administration / Risk Management"," _"," _"," _ "," _ ","_"," _"," _",170,"Current assets / VAT","_","_"," _ "," _ "," _ "," _ "," _ "," _ "," _ "," _ ",1003,"Statutory requirements",1003,"Statutory requirements"," _ "," _ "," _ "," _ ",null," _ "," _ ","_","_","_","_",null,null," _ "," _ "," _ "," _ "," _ "," _ "," _ "," _ "," _ "," _ "," _ "," _ "," _ "," _ "," _ "," _ "," _ "," _ "," _ "," _ "," _ "," _ "," _ "," _ ",null,"O","_",null,null,3,32,"Internal audit","Risk Management",null,"_","_","_","_","_",0,0,0,0,0,0,0,0,0,0,0,0,0,0]
["O2468-1/IA10376/F0930/X132/R0100/001/CONTRA","O2468-1/IA10376/F0930/X132/R0100/001/CONTRA",263882,38022,"Assets:Current Assets:VAT Receivable:Input Tax Accrual:Transfers","IA",4400,"Trading services / Waste management / Solid Waste Removal",4403,"Trading services / Waste management / Solid Waste Removal"," _"," _"," _ "," _ ","_"," _"," _",170,"Current assets / VAT","_","_"," _ "," _ "," _ "," _ "," _ "," _ "," _ "," _ ",1003,"Statutory requirements",1003,"Statutory requirements"," _ "," _ "," _ "," _ ",null," _ "," _ ","_","_","_","_",null,null," _ "," _ "," _ "," _ "," _ "," _ ",510,"Infrastructure / Solid Waste Infrastructure / Waste Processing Facilities"," _ ",510,"Infrastructure / Solid Waste Infrastructure / Waste Processing Facilities"," _ "," _ "," _ "," _ "," _ "," _ "," _ "," _ "," _ "," _ "," _ "," _ "," _ ",null,"O","_",null,null,11,111,"Waste Management","Solid Waste Removal",null,"_","_","_","_","_",-286956,-286956,0,0,-300156,-313964,0,0,0,0,0,0,0,0]
["O1336-15/IA10373/F0041/X046/R0099/001/CONTRA","O1336-15/IA10373/F0041/X046/R0099/001/CONTRA",328009,46477,"Assets:Current Assets:VAT Receivable:VAT Control (Receivable):Transfers","IA",1200,"Municipal governance and administration / Finance and administration / Administrative and Corporate Support",1201,"Municipal governance and administration / Finance and administration / Administrative and Corporate Support"," _"," _"," _ "," _ ","_"," _"," _",170,"Current assets / VAT","_","_"," _ "," _ "," _ "," _ "," _ "," _ "," _ "," _ ",1003,"Statutory requirements",1003,"Statutory requirements"," _ "," _ "," _ "," _ ",null," _ "," _ ","_","_","_","_",null,null," _ "," _ "," _ "," _ "," _ "," _ "," _ "," _ "," _ "," _ "," _ "," _ "," _ "," _ "," _ "," _ "," _ "," _ "," _ "," _ "," _ "," _ "," _ "," _ ",null,"O","_",null,null,2,21,"Finance and administration","Administrative and Corporate Support",null,"_","_","_","_","_",0,0,0,0,0,0,0,0,0,0,0,0,0,0]
["O2340-1/IE00650/F0041/X052/R3649/001/CORP","O2340-1/IE00650/F0041/X052/R3649/001/CORP",119779,23609,"Expenditure:Contracted Services:Contractors:Maintenance of Equipment","IE",1200,"Municipal governance and administration / Finance and administration / Information Technology",1207,"Municipal governance and administration / Finance and administration / Information Technology",3800,"Expenditure / Contracted services",2703,"Expenditure / Contracted services","_"," _"," _"," _ "," _ "," _ "," _ "," _ "," _ "," _ "," _ "," _ "," _ "," _ "," _ ","_","_","_","_"," _ "," _ "," _ "," _ ",null,2703,"Contracted Services ","_","_","_","_",null,null," _ "," _ "," _ "," _ "," _ "," _ ",750,"Infrastructure / Information and Communication Infrastructure / Distribution Layers"," _ ",750,"Infrastructure / Information and Communication Infrastructure / Distribution Layers"," _ "," _ "," _ "," _ "," _ "," _ "," _ "," _ "," _ "," _ "," _ "," _ "," _ ",null,"O","RM",null,null,2,26,"Finance and administration","Information Technology",null,"_","_","_","_","_",0,0,0,0,0,0,0,0,0,0,0,0,0,0]
["O1444-6/IA02108/F0041/X044/R0100/001/CONTRA","O1444-6/IA02108/F0041/X044/R0100/001/CONTRA",225208,34447,"Assets:Current Assets:Cash and Cash Equivalents:Cash at Bank:Bank Account:Specify (replace with account description):Withdrawals","IA",1100,"Municipal governance and administration / Executive and council / Mayor and Council",1110,"Municipal governance and administration / Executive and council / Mayor and Council"," _"," _"," _ "," _ ","_"," _"," _",120,"Current assets / Cash and cash equivalents","_","_"," _ "," _ "," _ "," _ "," _ "," _ "," _ "," _ ","_","_","_","_"," _ "," _ "," _ "," _ ",null," _ "," _ ","_","_","_","_",null,null," _ "," _ "," _ "," _ "," _ "," _ "," _ "," _ "," _ "," _ "," _ "," _ "," _ "," _ "," _ "," _ "," _ "," _ "," _ "," _ "," _ "," _ "," _ "," _ ","W","O","_",null,null,1,11,"Executive and council","Mayor and Council",null,"_","_","_","_","_",-23000,0,0,0,-24058,-25162,0,0,0,0,0,0,0,0]
["C0177-26/IL65530/F0002/X116/R3644/001/CONTRA","C0177-26/IL65530/F0002/X116/R3644/001/CONTRA",327299,46408,"Liabilities:Current Liabilities:Trade and Other Payable Exchange Transactions:Payables and Accruals : Contractors:Deposits","IL",3200,"Economic and environmental services / Road transport / Roads",3205,"Economic and environmental services / Road transport / Roads"," _"," _"," _ "," _ ","_",2080,"Funded by Internally generated funds",380,"Current liabilities / Trade and other payables from exchange transactions","_","_"," _ "," _ "," _ "," _ "," _ "," _ "," _ "," _ ","_","_","_","_"," _ "," _ "," _ "," _ ",null," _ "," _ ","_","_","_","_",null,null," _ "," _ "," _ "," _ "," _ "," _ "," _ "," _ "," _ "," _ "," _ "," _ "," _ "," _ "," _ "," _ ",120,"Infrastructure / Roads Infrastructure / Roads",120,"Infrastructure / Roads Infrastructure / Roads",361,"Trade and other payables / Trade and other payables from exchange transactions",361,"Trade and other payables / Trade and other payables from exchange transactions",null,"C","_",null,null,9,91,"Road transport","Roads",null,"_","_","_","_","_",-300001,-300001,0,0,0,0,0,0,0,0,0,0,0,0]
["D0001/IA010693/F0001/X049/R0100/001/FIN2","D0001/IA010693/F0001/X049/R0100/001/FIN2",112382,23090,"Assets:Current Assets:Receivables from Non-exchange Transactions:Property Rates by Usage:Agricultural Properties:Interest Charge","IA",1200,"Municipal governance and administration / Finance and administration / Finance",1204,"Municipal governance and administration / Finance and administration / Finance"," _"," _"," _ "," _ ","_"," _"," _",140,"Current assets / Receivables from non-exchange transactions","_","_"," _ "," _ "," _ "," _ "," _ "," _ "," _ "," _ ","_","_","_","_"," _ "," _ "," _ "," _ ",null," _ "," _ ","_","_","_","_",null,null," _ "," _ "," _ "," _ "," _ "," _ "," _ "," _ "," _ "," _ "," _ "," _ "," _ "," _ "," _ "," _ "," _ "," _ "," _ "," _ ",126,"Receivables from non-exchange transactions / Property rates",126,"Receivables from non-exchange transactions / Property rates",null,"D","_",null,null,2,23,"Finance and administration","Finance",null,"_","_","_","_","_",0,0,0,0,0,0,0,0,0,0,0,0,0,0]
["D0001/IA06183/F2496/X049/R0099/001/FIN2","D0001/IA06183/F2496/X049/R0099/001/FIN2",91796,21483,"Assets:Non-current Assets:Property, Plant and Equipment:Cost Model:Computer Equipment:In-use:Accumulated Depreciation:Depreciation","IA",1200,"Municipal governance and administration / Finance and administration / Finance",1204,"Municipal governance and administration / Finance and administration / Finance"," _"," _"," _ "," _ ","_"," _"," _",230,"Non current assets / Property, plant and equipment","_","_"," _ "," _ "," _ "," _ "," _ "," _ "," _ "," _ ","_","_","_","_",1470,"Computer Equipment",1470,"Computer Equipment",null," _ "," _ ","_","_","_","_",null,null," _ "," _ "," _ "," _ "," _ "," _ "," _ "," _ "," _ "," _ "," _ "," _ "," _ "," _ "," _ "," _ "," _ "," _ "," _ "," _ ",243,"Property, plant and equipment (PPE) / Less: Accumulated depreciation",243,"Property, plant and equipment (PPE) / Less: Accumulated depreciation",null,"D","_",null,null,2,23,"Finance and administration","Finance",null,"_","_","_","_","_",0,0,0,0,0,0,0,0,0,0,0,0,0,0]
["D0001/IL37832/F2496/X049/R0100/001/CONTRA","D0001/IL37832/F2496/X049/R0100/001/CONTRA",317007,45876,"Liabilities:Current Liabilities:VAT Payable: Output Tax:Transfers","IL",1200,"Municipal governance and administration / Finance and administration / Finance",1204,"Municipal governance and administration / Finance and administration / Finance"," _"," _"," _ "," _ ","_"," _"," _",410,"Current liabilities / VAT","_","_"," _ "," _ "," _ "," _ "," _ "," _ "," _ "," _ ",1003,"Statutory requirements",1003,"Statutory requirements"," _ "," _ "," _ "," _ ",null," _ "," _ ","_","_","_","_",null,null," _ "," _ "," _ "," _ "," _ "," _ "," _ "," _ "," _ "," _ "," _ "," _ "," _ "," _ "," _ "," _ "," _ "," _ "," _ "," _ ",365,"Trade and other payables / VAT",365,"Trade and other payables / VAT",null,"D","_",null,null,2,23,"Finance and administration","Finance",null,"_","_","_","_","_",0,0,0,0,0,0,0,0,0,0,0,0,0,0]
["O0001/IE00651/F0041/X116/R0100/001/TEC1","O0001/IE00651/F0041/X116/R0100/001/TEC1",112400,23108,"Expenditure:Contracted Services:Contractors:Maintenance of Unspecified Assets","IE",3200,"Economic and environmental services / Road transport / Roads",3205,"Economic and environmental services / Road transport / Roads",3800,"Expenditure / Contracted services",2703,"Expenditure / Contracted services","_"," _"," _"," _ "," _ "," _ "," _ "," _ "," _ "," _ "," _ "," _ "," _ "," _ "," _ ","_","_","_","_"," _ "," _ "," _ "," _ ",null,2703,"Contracted Services ","_","_","_","_",null,null," _ "," _ "," _ "," _ "," _ "," _ "," _ "," _ "," _ "," _ "," _ "," _ "," _ "," _ "," _ "," _ "," _ "," _ "," _ "," _ "," _ "," _ "," _ "," _ ",null,"O","_",null,null,9,91,"Road transport","Roads",null,"_","_","_","_","_",0,0,0,0,0,0,0,0,0,0,0,0,0,0]
["O0273-1/IE00758/F0041/X032/R3649/001/TECH","O0273-1/IE00758/F0041/X032/R3649/001/TECH",119682,23512,"Expenditure:Operational Cost:Advertising, Publicity and Marketing:Tenders","IE",4100,"Trading services / Energy sources / Electricity",4101,"Trading services / Energy sources / Electricity",4100,"Expenditure / Operational costs",2904,"Expenditure / Operational costs","_"," _"," _"," _ "," _ "," _ "," _ "," _ "," _ "," _ "," _ "," _ "," _ "," _ "," _ ","_","_","_","_"," _ "," _ "," _ "," _ ",null,2904,"Operational Costs ","_","_","_","_",null,null," _ "," _ "," _ "," _ "," _ "," _ ",250,"Infrastructure / Electrical Infrastructure / MV Substations"," _ ",250,"Infrastructure / Electrical Infrastructure / MV Substations"," _ "," _ "," _ "," _ "," _ "," _ "," _ "," _ "," _ "," _ "," _ "," _ "," _ ",null,"O","RM",null,null,10,101,"Energy sources","Electricity",null,"_","_","_","_","_",0,0,0,0,0,0,0,0,0,0,0,0,0,0]
["O1234-6/IA10376/F0041/X132/R0100/001/CONTRA","O1234-6/IA10376/F0041/X132/R0100/001/CONTRA",264250,43585,"Assets:Current Assets:VAT Receivable:Input Tax Accrual:Transfers","IA",4400,"Trading services / Waste management / Solid Waste Removal",4403,"Trading services / Waste management / Solid Waste Removal"," _"," _"," _ "," _ ","_"," _"," _",170,"Current assets / VAT","_","_"," _ "," _ "," _ "," _ "," _ "," _ "," _ "," _ ",1003,"Statutory requirements",1003,"Statutory requirements"," _ "," _ "," _ "," _ ",null," _ "," _ ","_","_","_","_",null,null," _ "," _ "," _ "," _ "," _ "," _ "," _ "," _ "," _ "," _ "," _ "," _ "," _ "," _ "," _ "," _ "," _ "," _ "," _ "," _ "," _ "," _ "," _ "," _ ",null,"O","_",null,null,11,111,"Waste Management","Solid Waste Removal",null,"_","_","_","_","_",0,0,0,0,0,0,0,0,0,0,0,0,0,0]
["O1288-2/IL53821/F0041/X049/R0099/001/CONTRA","O1288-2/IL53821/F0041/X049/R0099/001/CONTRA",225422,34512,"Liabilities:Current Liabilities:Trade and Other Payable Exchange Transactions:Payables and Accruals : General:Withdrawals","IL",1200,"Municipal governance and administration / Finance and administration / Finance",1204,"Municipal governance and administration / Finance and administration / Finance"," _"," _"," _ "," _ ","_"," _"," _",380,"Current liabilities / Trade and other payables from exchange transactions","_","_"," _ ",200," _ ","CASH FLOW FROM OPERATING ACTIVITIES / Payments / Suppliers and employees"," _ ",480," _ ","Cash Payments by Type / Other expenditure","_","_","_","_"," _ "," _ "," _ "," _ ",null," _ "," _ ","_","_","_","_",null,null," _ "," _ "," _ "," _ "," _ "," _ "," _ "," _ "," _ "," _ "," _ "," _ "," _ "," _ "," _ "," _ "," _ "," _ "," _ "," _ ",361,"Trade and other payables / Trade and other payables from exchange transactions",361,"Trade and other payables / Trade and other payables from exchange transactions",null,"O","_",null,null,2,23,"Finance and administration","Finance",null,"_","_","_","_","_",207495,379995,0,0,217040,227033,0,0,0,0,0,0,0,0]
["O1653-1/IE00649/F0041/X032/R3649/001/TECH","O1653-1/IE00649/F0041/X032/R3649/001/TECH",61214,20968,"Expenditure:Contracted Services:Contractors:Maintenance of Buildings and Facilities","IE",4100,"Trading services / Energy sources / Electricity",4101,"Trading services / Energy sources / Electricity",3800,"Expenditure / Contracted services",2703,"Expenditure / Contracted services","_"," _"," _"," _ "," _ "," _ "," _ "," _ "," _ "," _ "," _ "," _ "," _ "," _ "," _ ","_","_","_","_"," _ "," _ "," _ "," _ ",null,2703,"Contracted Services ","_","_","_","_",null,null," _ "," _ "," _ "," _ "," _ "," _ ",280,"Infrastructure / Electrical Infrastructure / LV Networks"," _ ",280,"Infrastructure / Electrical Infrastructure / LV Networks"," _ "," _ "," _ "," _ "," _ "," _ "," _ "," _ "," _ "," _ "," _ "," _ "," _ ",null,"O","RM",null,null,10,101,"Energy sources","Electricity",null,"_","_","_","_","_",521740,521740,0,0,545740,570840,0,0,0,267544.15999999997,1104.82,182946.8,0,0]
["C0020-2/IA02108/F0002/X032/R3652/001/CONTRA","C0020-2/IA02108/F0002/X032/R3652/001/CONTRA",329211,0,"Assets:Current Assets:Cash and Cash Equivalents:Cash at Bank:Bank Account:Specify (replace with account description):Withdrawals","IA",4100,"Trading services / Energy sources / Electricity",4101,"Trading services / Energy sources / Electricity"," _"," _"," _ "," _ ","_",2080,"Funded by Internally generated funds",120,"Current assets / Cash and cash equivalents","_","_"," _ ",310," _ ","Other Cash Flows/Payments by Type / Capital assets"," _ ",510," _ ","Capital assets","_","_","_","_"," _ "," _ "," _ "," _ ",null," _ "," _ ","_","_","_","_",null,null,270,270,"Infrastructure / Electrical Infrastructure / MV Networks","Infrastructure / Electrical Infrastructure / MV Networks"," _ "," _ "," _ "," _ "," _ "," _ "," _ "," _ "," _ "," _ "," _ "," _ "," _ "," _ "," _ "," _ "," _ "," _ "," _ "," _ ","W","C","_",null,null,10,101,"Energy sources","Electricity",null,"_","_","_","_","_",0,0,0,0,0,0,0,0,0,0,0,0,0,0]
["C0177-27/IA10375/F0002/X116/R3639/001/CONTRA","C0177-27/IA10375/F0002/X116/R3639/001/CONTRA",329060,0,"Assets:Current Assets:VAT Receivable:Input Tax Accrual:Recognised","IA",3200,"Economic and environmental services / Road transport / Roads",3205,"Economic and environmental services / Road transport / Roads"," _"," _"," _ "," _ ","_",2080,"Funded by Internally generated funds",170,"Current assets / VAT","_","_"," _ "," _ "," _ "," _ "," _ "," _ "," _ "," _ ",1003,"Statutory requirements",1003,"Statutory requirements"," _ "," _ "," _ "," _ ",null," _ "," _ ","_","_","_","_",null,null," _ "," _ "," _ "," _ "," _ "," _ "," _ "," _ "," _ "," _ "," _ "," _ "," _ "," _ "," _ "," _ ",120,"Infrastructure / Roads Infrastructure / Roads",120,"Infrastructure / Roads Infrastructure / Roads"," _ "," _ "," _ "," _ ",null,"C","_",null,null,9,91,"Road transport","Roads",null,"_","_","_","_","_",0,0,0,0,0,0,0,0,0,0,0,0,0,0]
["C0020-2/IA10371/F0002/X032/R3652/001/CONTRA","C0020-2/IA10371/F0002/X032/R3652/001/CONTRA",329213,0,"Assets:Current Assets:VAT Receivable:Input Tax Capital:Transfers","IA",4100,"Trading services / Energy sources / Electricity",4101,"Trading services / Energy sources / Electricity"," _"," _"," _ "," _ ","_",2080,"Funded by Internally generated funds",170,"Current assets / VAT","_","_"," _ "," _ "," _ "," _ "," _ "," _ "," _ "," _ ",1003,"Statutory requirements",1003,"Statutory requirements"," _ "," _ "," _ "," _ ",null," _ "," _ ","_","_","_","_",null,null,270,270,"Infrastructure / Electrical Infrastructure / MV Networks","Infrastructure / Electrical Infrastructure / MV Networks"," _ "," _ "," _ "," _ "," _ "," _ "," _ "," _ "," _ "," _ "," _ "," _ "," _ "," _ "," _ "," _ "," _ "," _ "," _ "," _ ",null,"C","_",null,null,10,101,"Energy sources","Electricity",null,"_","_","_","_","_",0,0,0,0,0,0,0,0,0,0,0,0,0,0]
["C0177-35/IA10370/F0002/X140/R3642/001/CONTRA","C0177-35/IA10370/F0002/X140/R3642/001/CONTRA",329359,0,"Assets:Current Assets:VAT Receivable:Input Tax Capital:Recognised","IA",4300,"Trading services / Waste water management / Storm Water Management",4303,"Trading services / Waste water management / Storm Water Management"," _"," _"," _ "," _ ","_",2080,"Funded by Internally generated funds",170,"Current assets / VAT","_","_"," _ "," _ "," _ "," _ "," _ "," _ "," _ "," _ ",1003,"Statutory requirements",1003,"Statutory requirements"," _ "," _ "," _ "," _ ",null," _ "," _ ","_","_","_","_",null,null," _ "," _ "," _ "," _ "," _ "," _ "," _ "," _ "," _ "," _ "," _ "," _ "," _ "," _ "," _ "," _ ",120,"Infrastructure / Roads Infrastructure / Roads",120,"Infrastructure / Roads Infrastructure / Roads"," _ "," _ "," _ "," _ ",null,"C","_",null,null,9,93,"Road transport","Storm Water Management",null,"_","_","_","_","_",0,0,0,0,0,0,0,0,0,0,0,0,0,0]
["C0177-34/IL65530/F0002/X116/R3641/001/CONTRA","C0177-34/IL65530/F0002/X116/R3641/001/CONTRA",329070,0,"Liabilities:Current Liabilities:Trade and Other Payable Exchange Transactions:Payables and Accruals : Contractors:Deposits","IL",3200,"Economic and environmental services / Road transport / Roads",3205,"Economic and environmental services / Road transport / Roads"," _"," _"," _ "," _ ","_",2080,"Funded by Internally generated funds",380,"Current liabilities / Trade and other payables from exchange transactions","_","_"," _ "," _ "," _ "," _ "," _ "," _ "," _ "," _ ","_","_","_","_"," _ "," _ "," _ "," _ ",null," _ "," _ ","_","_","_","_",null,null," _ "," _ "," _ "," _ "," _ "," _ "," _ "," _ "," _ "," _ "," _ "," _ "," _ "," _ "," _ "," _ ",120,"Infrastructure / Roads Infrastructure / Roads",120,"Infrastructure / Roads Infrastructure / Roads",361,"Trade and other payables / Trade and other payables from exchange transactions",361,"Trade and other payables / Trade and other payables from exchange transactions",null,"C","_",null,null,9,91,"Road transport","Roads",null,"_","_","_","_","_",0,0,0,0,0,0,0,0,0,0,0,0,0,0]
["D0001/IA09740/F13639/X049/R0099/001/FIN","D0001/IA09740/F13639/X049/R0099/001/FIN",328664,47473,"Assets:Current Assets:Cash and Cash Equivalents:Cash at Bank:Bank Account:Specify (replace with account description):Withdrawals","IA",1200,"Municipal governance and administration / Finance and administration / Finance",1204,"Municipal governance and administration / Finance and administration / Finance"," _"," _"," _ "," _ ","_"," _"," _",120,"Current assets / Cash and cash equivalents","_","_"," _ "," _ "," _ "," _ "," _ "," _ "," _ "," _ ","_","_","_","_"," _ "," _ "," _ "," _ ",null," _ "," _ ","_","_","_","_",null,null," _ "," _ "," _ "," _ "," _ "," _ "," _ "," _ "," _ "," _ "," _ "," _ "," _ "," _ "," _ "," _ "," _ "," _ "," _ "," _ "," _ "," _ "," _ "," _ ","W","D","_",null,null,2,23,"Finance and administration","Finance",null,"_","_","_","_","_",0,0,0,0,0,0,0,0,0,0,0,0,0,0]
["C0120-31/IA02108/F0002/X116/R3653/001/CONTRA","C0120-31/IA02108/F0002/X116/R3653/001/CONTRA",328942,0,"Assets:Current Assets:Cash and Cash Equivalents:Cash at Bank:Bank Account:Specify (replace with account description):Withdrawals","IA",3200,"Economic and environmental services / Road transport / Roads",3205,"Economic and environmental services / Road transport / Roads"," _"," _"," _ "," _ ","_",2080,"Funded by Internally generated funds",120,"Current assets / Cash and cash equivalents","_","_"," _ ",310," _ ","Other Cash Flows/Payments by Type / Capital assets"," _ ",510," _ ","Capital assets","_","_","_","_"," _ "," _ "," _ "," _ ",null," _ "," _ ","_","_","_","_",null,null," _ "," _ "," _ "," _ ",120,"Infrastructure / Roads Infrastructure / Roads"," _ "," _ ",120," _ "," _ "," _ "," _ ","Infrastructure / Roads Infrastructure / Roads"," _ "," _ "," _ "," _ "," _ "," _ "," _ "," _ "," _ "," _ ","W","C","_",null,null,9,91,"Road transport","Roads",null,"_","_","_","_","_",0,0,0,0,0,0,0,0,0,0,0,0,0,0]
["O1331-4/IA11273/F0001/X055/R3643/001/CONTRA","O1331-4/IA11273/F0001/X055/R3643/001/CONTRA",328730,47614,"Assets:Current Assets:Receivables from Non-exchange Transactions:Service charges:Electricity:Debt Write-offs","IA",1200,"Municipal governance and administration / Finance and administration / Property Services",1210,"Municipal governance and administration / Finance and administration / Property Services"," _"," _"," _ "," _ ","_"," _"," _",140,"Current assets / Receivables from non-exchange transactions","_","_"," _ "," _ "," _ "," _ "," _ "," _ "," _ "," _ ","_","_","_","_"," _ "," _ "," _ "," _ ",null," _ "," _ ","_","_","_","_",null,null," _ "," _ "," _ "," _ "," _ "," _ "," _ "," _ "," _ "," _ "," _ "," _ "," _ "," _ "," _ "," _ "," _ "," _ "," _ "," _ ",129,"Receivables from non-exchange transactions / Other receivables from non-exchange transactions",129,"Receivables from non-exchange transactions / Other receivables from non-exchange transactions",null,"O","_",null,null,2,27,"Finance and administration","Property Services",null,"_","_","_","_","_",0,0,0,0,0,0,0,0,0,0,0,0,0,0]
["O0022-3/IL65531/F0041/X098/R0100/001/CONTRA","O0022-3/IL65531/F0041/X098/R0100/001/CONTRA",329135,0,"Liabilities:Current Liabilities:Trade and Other Payable Exchange Transactions:Payables and Accruals : Contractors:Withdrawals","IL",3100,"Economic and environmental services / Planning and development / Economic Development/Planning",3105,"Economic and environmental services / Planning and development / Economic Development/Planning"," _"," _"," _ "," _ ","_"," _"," _",380,"Current liabilities / Trade and other payables from exchange transactions","_","_"," _ ",200," _ ","CASH FLOW FROM OPERATING ACTIVITIES / Payments / Suppliers and employees"," _ ",450," _ ","Cash Payments by Type / Contracted services","_","_","_","_"," _ "," _ "," _ "," _ ",null," _ "," _ ","_","_","_","_",null,null," _ "," _ "," _ "," _ "," _ "," _ "," _ "," _ "," _ "," _ "," _ "," _ "," _ "," _ "," _ "," _ "," _ "," _ "," _ "," _ ",361,"Trade and other payables / Trade and other payables from exchange transactions",361,"Trade and other payables / Trade and other payables from exchange transactions",null,"O","_",null,null,8,82,"Planning and Development","Economic Development/Planning",null,"_","_","_","_","_",0,0,0,0,0,0,0,0,0,0,0,0,0,0]
["O1350-7/IA10376/F0041/X056/R0099/001/CONTRA","O1350-7/IA10376/F0041/X056/R0099/001/CONTRA",329115,0,"Assets:Current Assets:VAT Receivable:Input Tax Accrual:Transfers","IA",1200,"Municipal governance and administration / Finance and administration / Risk Management",1211,"Municipal governance and administration / Finance and administration / Risk Management"," _"," _"," _ "," _ ","_"," _"," _",170,"Current assets / VAT","_","_"," _ "," _ "," _ "," _ "," _ "," _ "," _ "," _ ",1003,"Statutory requirements",1003,"Statutory requirements"," _ "," _ "," _ "," _ ",null," _ "," _ ","_","_","_","_",null,null," _ "," _ "," _ "," _ "," _ "," _ "," _ "," _ "," _ "," _ "," _ "," _ "," _ "," _ "," _ "," _ "," _ "," _ "," _ "," _ "," _ "," _ "," _ "," _ ",null,"O","_",null,null,3,32,"Internal audit","Risk Management",null,"_","_","_","_","_",0,0,0,0,0,0,0,0,0,0,0,0,0,0]
["O2774-6/IL65530/F0041/X099/R0100/001/CONTRA","O2774-6/IL65530/F0041/X099/R0100/001/CONTRA",328906,0,"Liabilities:Current Liabilities:Trade and Other Payable Exchange Transactions:Payables and Accruals : Contractors:Deposits","IL",3100,"Economic and environmental services / Planning and development / Project Management Unit",3108,"Economic and environmental services / Planning and development / Project Management Unit"," _"," _"," _ "," _ ","_"," _"," _",380,"Current liabilities / Trade and other payables from exchange transactions","_","_"," _ "," _ "," _ "," _ "," _ "," _ "," _ "," _ ","_","_","_","_"," _ "," _ "," _ "," _ ",null," _ "," _ ","_","_","_","_",null,null," _ "," _ "," _ "," _ "," _ "," _ ",1200,"Other assets / Operational Buildings / Municipal Offices"," _ ",1200,"Other assets / Operational Buildings / Municipal Offices"," _ "," _ "," _ "," _ "," _ "," _ "," _ "," _ "," _ ",361,"Trade and other payables / Trade and other payables from exchange transactions",361,"Trade and other payables / Trade and other payables from exchange transactions",null,"O","_",null,null,8,83,"Planning and Development","Project Management Unit",null,"_","_","_","_","_",0,0,0,0,0,0,0,0,0,0,0,0,0,0]
["O1550-5/IE00650/F0041/X116/R0100/001/TECH","O1550-5/IE00650/F0041/X116/R0100/001/TECH",328684,47588,"Expenditure:Contracted Services:Contractors:Maintenance of Equipment","IE",3200,"Economic and environmental services / Road transport / Roads",3205,"Economic and environmental services / Road transport / Roads",3800,"Expenditure / Contracted services",2703,"Expenditure / Contracted services","_"," _"," _"," _ "," _ "," _ "," _ "," _ "," _ "," _ "," _ "," _ "," _ "," _ "," _ ","_","_","_","_"," _ "," _ "," _ "," _ ",null,2703,"Contracted Services ","_","_","_","_",null,null," _ "," _ "," _ "," _ "," _ "," _ ",1510,"Machinery and Equipment"," _ ",1510,"Machinery and Equipment"," _ "," _ "," _ "," _ "," _ "," _ "," _ "," _ "," _ "," _ "," _ "," _ "," _ ",null,"O","RM",null,null,9,91,"Road transport","Roads",null,"_","_","_","_","_",0,0,0,0,0,0,0,0,0,0,0,0,0,0]
["O2774-5/IA10373/F0041/X099/R0100/001/CONTRA","O2774-5/IA10373/F0041/X099/R0100/001/CONTRA",328893,0,"Assets:Current Assets:VAT Receivable:VAT Control (Receivable):Transfers","IA",3100,"Economic and environmental services / Planning and development / Project Management Unit",3108,"Economic and environmental services / Planning and development / Project Management Unit"," _"," _"," _ "," _ ","_"," _"," _",170,"Current assets / VAT","_","_"," _ "," _ "," _ "," _ "," _ "," _ "," _ "," _ ",1003,"Statutory requirements",1003,"Statutory requirements"," _ "," _ "," _ "," _ ",null," _ "," _ ","_","_","_","_",null,null," _ "," _ "," _ "," _ "," _ "," _ ",1200,"Other assets / Operational Buildings / Municipal Offices"," _ ",1200,"Other assets / Operational Buildings / Municipal Offices"," _ "," _ "," _ "," _ "," _ "," _ "," _ "," _ "," _ "," _ "," _ "," _ "," _ ",null,"O","_",null,null,8,83,"Planning and Development","Project Management Unit",null,"_","_","_","_","_",0,0,0,0,0,0,0,0,0,0,0,0,0,0]
["O1564-1/IA10378/F0041/X019/R0100/001/CONTRA","O1564-1/IA10378/F0041/X019/R0100/001/CONTRA",328787,0,"Assets:Current Assets:VAT Receivable:Input Tax General:Recognised","IA",2100,"Community and public safety / Community and social services / Disaster Management",2109,"Community and public safety / Community and social services / Disaster Management"," _"," _"," _ "," _ ","_"," _"," _",170,"Current assets / VAT","_","_"," _ "," _ "," _ "," _ "," _ "," _ "," _ "," _ ",1003,"Statutory requirements",1003,"Statutory requirements"," _ "," _ "," _ "," _ ",null," _ "," _ ","_","_","_","_",null,null," _ "," _ "," _ "," _ "," _ "," _ ",1510,"Machinery and Equipment"," _ ",1510,"Machinery and Equipment"," _ "," _ "," _ "," _ "," _ "," _ "," _ "," _ "," _ "," _ "," _ "," _ "," _ ",null,"O","_",null,null,4,47,"Community and social services","Disaster Management",null,"_","_","_","_","_",0,0,0,0,0,0,0,0,0,0,0,0,0,0]
["O1444-13/IL65527/F0041/X044/R3653/001/CONTRA","O1444-13/IL65527/F0041/X044/R3653/001/CONTRA",329303,0,"Liabilities:Current Liabilities:Trade and Other Payable Exchange Transactions:Payables and Accruals : Inventory:Deposits","IL",1100,"Municipal governance and administration / Executive and council / Mayor and Council",1110,"Municipal governance and administration / Executive and council / Mayor and Council"," _"," _"," _ "," _ ","_"," _"," _",380,"Current liabilities / Trade and other payables from exchange transactions","_","_"," _ "," _ "," _ "," _ "," _ "," _ "," _ "," _ ","_","_","_","_"," _ "," _ "," _ "," _ ",null," _ "," _ ","_","_","_","_",null,null," _ "," _ "," _ "," _ "," _ "," _ "," _ "," _ "," _ "," _ "," _ "," _ "," _ "," _ "," _ "," _ "," _ "," _ "," _ "," _ ",361,"Trade and other payables / Trade and other payables from exchange transactions",361,"Trade and other payables / Trade and other payables from exchange transactions",null,"O","_",null,null,1,11,"Executive and council","Mayor and Council",null,"_","_","_","_","_",0,0,0,0,0,0,0,0,0,0,0,0,0,0]
["O3269-2/IL65530/F13650/X007/R0100/001/CONTRA","O3269-2/IL65530/F13650/X007/R0100/001/CONTRA",328823,0,"Liabilities:Current Liabilities:Trade and Other Payable Exchange Transactions:Payables and Accruals : Contractors:Deposits","IL",2100,"Community and public safety / Community and social services / Libraries and Archives",2114,"Community and public safety / Community and social services / Libraries and Archives"," _"," _"," _ "," _ ","_"," _"," _",380,"Current liabilities / Trade and other payables from exchange transactions","_","_"," _ "," _ "," _ "," _ "," _ "," _ "," _ "," _ ","_","_","_","_"," _ "," _ "," _ "," _ ",null," _ "," _ ","_","_","_","_",null,null," _ "," _ "," _ "," _ "," _ "," _ ",880,"Community Assets / Community Facilities / Libraries"," _ ",880,"Community Assets / Community Facilities / Libraries"," _ "," _ "," _ "," _ "," _ "," _ "," _ "," _ "," _ ",361,"Trade and other payables / Trade and other payables from exchange transactions",361,"Trade and other payables / Trade and other payables from exchange transactions",null,"O","_",null,null,4,44,"Community and social services","Libraries and Archives",null,"_","_","_","_","_",0,0,0,0,0,0,0,0,0,0,0,0,0,0]
["O1550-5/IL65530/F0041/X116/R0100/001/CONTRA","O1550-5/IL65530/F0041/X116/R0100/001/CONTRA",328890,0,"Liabilities:Current Liabilities:Trade and Other Payable Exchange Transactions:Payables and Accruals : Contractors:Deposits","IL",3200,"Economic and environmental services / Road transport / Roads",3205,"Economic and environmental services / Road transport / Roads"," _"," _"," _ "," _ ","_"," _"," _",380,"Current liabilities / Trade and other payables from exchange transactions","_","_"," _ "," _ "," _ "," _ "," _ "," _ "," _ "," _ ","_","_","_","_"," _ "," _ "," _ "," _ ",null," _ "," _ ","_","_","_","_",null,null," _ "," _ "," _ "," _ "," _ "," _ ",1510,"Machinery and Equipment"," _ ",1510,"Machinery and Equipment"," _ "," _ "," _ "," _ "," _ "," _ "," _ "," _ "," _ ",361,"Trade and other payables / Trade and other payables from exchange transactions",361,"Trade and other payables / Trade and other payables from exchange transactions",null,"O","_",null,null,9,91,"Road transport","Roads",null,"_","_","_","_","_",0,0,0,0,0,0,0,0,0,0,0,0,0,0]
["O2774-5/IA10379/F0041/X099/R0100/001/CONTRA","O2774-5/IA10379/F0041/X099/R0100/001/CONTRA",328897,0,"Assets:Current Assets:VAT Receivable:Input Tax General:Transfers","IA",3100,"Economic and environmental services / Planning and development / Project Management Unit",3108,"Economic and environmental services / Planning and development / Project Management Unit"," _"," _"," _ "," _ ","_"," _"," _",170,"Current assets / VAT","_","_"," _ "," _ "," _ "," _ "," _ "," _ "," _ "," _ ",1003,"Statutory requirements",1003,"Statutory requirements"," _ "," _ "," _ "," _ ",null," _ "," _ ","_","_","_","_",null,null," _ "," _ "," _ "," _ "," _ "," _ ",1200,"Other assets / Operational Buildings / Municipal Offices"," _ ",1200,"Other assets / Operational Buildings / Municipal Offices"," _ "," _ "," _ "," _ "," _ "," _ "," _ "," _ "," _ "," _ "," _ "," _ "," _ ",null,"O","_",null,null,8,83,"Planning and Development","Project Management Unit",null,"_","_","_","_","_",0,0,0,0,0,0,0,0,0,0,0,0,0,0]
["O2774-6/IA10375/F0041/X099/R0100/001/CONTRA","O2774-6/IA10375/F0041/X099/R0100/001/CONTRA",328902,0,"Assets:Current Assets:VAT Receivable:Input Tax Accrual:Recognised","IA",3100,"Economic and environmental services / Planning and development / Project Management Unit",3108,"Economic and environmental services / Planning and development / Project Management Unit"," _"," _"," _ "," _ ","_"," _"," _",170,"Current assets / VAT","_","_"," _ "," _ "," _ "," _ "," _ "," _ "," _ "," _ ",1003,"Statutory requirements",1003,"Statutory requirements"," _ "," _ "," _ "," _ ",null," _ "," _ ","_","_","_","_",null,null," _ "," _ "," _ "," _ "," _ "," _ ",1200,"Other assets / Operational Buildings / Municipal Offices"," _ ",1200,"Other assets / Operational Buildings / Municipal Offices"," _ "," _ "," _ "," _ "," _ "," _ "," _ "," _ "," _ "," _ "," _ "," _ "," _ ",null,"O","_",null,null,8,83,"Planning and Development","Project Management Unit",null,"_","_","_","_","_",0,0,0,0,0,0,0,0,0,0,0,0,0,0]
["O1564-1/IE00650/F0041/X019/R0100/001/COMM","O1564-1/IE00650/F0041/X019/R0100/001/COMM",328670,47575,"Expenditure:Contracted Services:Contractors:Maintenance of Equipment","IE",2100,"Community and public safety / Community and social services / Disaster Management",2109,"Community and public safety / Community and social services / Disaster Management",3800,"Expenditure / Contracted services",2703,"Expenditure / Contracted services","_"," _"," _"," _ "," _ "," _ "," _ "," _ "," _ "," _ "," _ "," _ "," _ "," _ "," _ ","_","_","_","_"," _ "," _ "," _ "," _ ",null,2703,"Contracted Services ","_","_","_","_",null,null," _ "," _ "," _ "," _ "," _ "," _ ",1510,"Machinery and Equipment"," _ ",1510,"Machinery and Equipment"," _ "," _ "," _ "," _ "," _ "," _ "," _ "," _ "," _ "," _ "," _ "," _ "," _ ",null,"O","RM",null,null,4,47,"Community and social services","Disaster Management",null,"_","_","_","_","_",0,0,0,0,0,0,0,0,0,0,0,0,0,0]
["O1550-5/IA10373/F0041/X116/R0100/001/CONTRA","O1550-5/IA10373/F0041/X116/R0100/001/CONTRA",328885,0,"Assets:Current Assets:VAT Receivable:VAT Control (Receivable):Transfers","IA",3200,"Economic and environmental services / Road transport / Roads",3205,"Economic and environmental services / Road transport / Roads"," _"," _"," _ "," _ ","_"," _"," _",170,"Current assets / VAT","_","_"," _ "," _ "," _ "," _ "," _ "," _ "," _ "," _ ",1003,"Statutory requirements",1003,"Statutory requirements"," _ "," _ "," _ "," _ ",null," _ "," _ ","_","_","_","_",null,null," _ "," _ "," _ "," _ "," _ "," _ ",1510,"Machinery and Equipment"," _ ",1510,"Machinery and Equipment"," _ "," _ "," _ "," _ "," _ "," _ "," _ "," _ "," _ "," _ "," _ "," _ "," _ ",null,"O","_",null,null,9,91,"Road transport","Roads",null,"_","_","_","_","_",0,0,0,0,0,0,0,0,0,0,0,0,0,0]
["O2392-5/IA10378/F0041/X116/R0100/001/CONTRA","O2392-5/IA10378/F0041/X116/R0100/001/CONTRA",328912,0,"Assets:Current Assets:VAT Receivable:Input Tax General:Recognised","IA",3200,"Economic and environmental services / Road transport / Roads",3205,"Economic and environmental services / Road transport / Roads"," _"," _"," _ "," _ ","_"," _"," _",170,"Current assets / VAT","_","_"," _ "," _ "," _ "," _ "," _ "," _ "," _ "," _ ",1003,"Statutory requirements",1003,"Statutory requirements"," _ "," _ "," _ "," _ ",null," _ "," _ ","_","_","_","_",null,null," _ "," _ "," _ "," _ "," _ "," _ ",120,"Infrastructure / Roads Infrastructure / Roads"," _ ",120,"Infrastructure / Roads Infrastructure / Roads"," _ "," _ "," _ "," _ "," _ "," _ "," _ "," _ "," _ "," _ "," _ "," _ "," _ ",null,"O","_",null,null,9,91,"Road transport","Roads",null,"_","_","_","_","_",0,0,0,0,0,0,0,0,0,0,0,0,0,0]
["O3269-2/IA10378/F13650/X007/R0100/001/CONTRA","O3269-2/IA10378/F13650/X007/R0100/001/CONTRA",328821,0,"Assets:Current Assets:VAT Receivable:Input Tax General:Recognised","IA",2100,"Community and public safety / Community and social services / Libraries and Archives",2114,"Community and public safety / Community and social services / Libraries and Archives"," _"," _"," _ "," _ ","_"," _"," _",170,"Current assets / VAT","_","_"," _ "," _ "," _ "," _ "," _ "," _ "," _ "," _ ",1003,"Statutory requirements",1003,"Statutory requirements"," _ "," _ "," _ "," _ ",null," _ "," _ ","_","_","_","_",null,null," _ "," _ "," _ "," _ "," _ "," _ ",880,"Community Assets / Community Facilities / Libraries"," _ ",880,"Community Assets / Community Facilities / Libraries"," _ "," _ "," _ "," _ "," _ "," _ "," _ "," _ "," _ "," _ "," _ "," _ "," _ ",null,"O","_",null,null,4,44,"Community and social services","Libraries and Archives",null,"_","_","_","_","_",0,0,0,0,0,0,0,0,0,0,0,0,0,0]
["O2392-5/IA10376/F0041/X116/R0100/001/CONTRA","O2392-5/IA10376/F0041/X116/R0100/001/CONTRA",328911,0,"Assets:Current Assets:VAT Receivable:Input Tax Accrual:Transfers","IA",3200,"Economic and environmental services / Road transport / Roads",3205,"Economic and environmental services / Road transport / Roads"," _"," _"," _ "," _ ","_"," _"," _",170,"Current assets / VAT","_","_"," _ "," _ "," _ "," _ "," _ "," _ "," _ "," _ ",1003,"Statutory requirements",1003,"Statutory requirements"," _ "," _ "," _ "," _ ",null," _ "," _ ","_","_","_","_",null,null," _ "," _ "," _ "," _ "," _ "," _ ",120,"Infrastructure / Roads Infrastructure / Roads"," _ ",120,"Infrastructure / Roads Infrastructure / Roads"," _ "," _ "," _ "," _ "," _ "," _ "," _ "," _ "," _ "," _ "," _ "," _ "," _ ",null,"O","_",null,null,9,91,"Road transport","Roads",null,"_","_","_","_","_",0,0,0,0,0,0,0,0,0,0,0,0,0,0]
["O2392-5/IA10379/F0041/X116/R0100/001/CONTRA","O2392-5/IA10379/F0041/X116/R0100/001/CONTRA",328913,0,"Assets:Current Assets:VAT Receivable:Input Tax General:Transfers","IA",3200,"Economic and environmental services / Road transport / Roads",3205,"Economic and environmental services / Road transport / Roads"," _"," _"," _ "," _ ","_"," _"," _",170,"Current assets / VAT","_","_"," _ "," _ "," _ "," _ "," _ "," _ "," _ "," _ ",1003,"Statutory requirements",1003,"Statutory requirements"," _ "," _ "," _ "," _ ",null," _ "," _ ","_","_","_","_",null,null," _ "," _ "," _ "," _ "," _ "," _ ",120,"Infrastructure / Roads Infrastructure / Roads"," _ ",120,"Infrastructure / Roads Infrastructure / Roads"," _ "," _ "," _ "," _ "," _ "," _ "," _ "," _ "," _ "," _ "," _ "," _ "," _ ",null,"O","_",null,null,9,91,"Road transport","Roads",null,"_","_","_","_","_",0,0,0,0,0,0,0,0,0,0,0,0,0,0]
["O2392-5/IE00651/F0041/X116/R0100/001/TECH","O2392-5/IE00651/F0041/X116/R0100/001/TECH",328687,47591,"Expenditure:Contracted Services:Contractors:Maintenance of Unspecified Assets","IE",3200,"Economic and environmental services / Road transport / Roads",3205,"Economic and environmental services / Road transport / Roads",3800,"Expenditure / Contracted services",2703,"Expenditure / Contracted services","_"," _"," _"," _ "," _ "," _ "," _ "," _ "," _ "," _ "," _ "," _ "," _ "," _ "," _ ","_","_","_","_"," _ "," _ "," _ "," _ ",null,2703,"Contracted Services ","_","_","_","_",null,null," _ "," _ "," _ "," _ "," _ "," _ ",120,"Infrastructure / Roads Infrastructure / Roads"," _ ",120,"Infrastructure / Roads Infrastructure / Roads"," _ "," _ "," _ "," _ "," _ "," _ "," _ "," _ "," _ "," _ "," _ "," _ "," _ ",null,"O","RM",null,null,9,91,"Road transport","Roads",null,"_","_","_","_","_",0,0,0,0,0,0,0,0,0,0,0,0,0,0]
["O1264-4/IA10378/F0041/X019/R0100/001/CONTRA","O1264-4/IA10378/F0041/X019/R0100/001/CONTRA",328848,0,"Assets:Current Assets:VAT Receivable:Input Tax General:Recognised","IA",2100,"Community and public safety / Community and social services / Disaster Management",2109,"Community and public safety / Community and social services / Disaster Management"," _"," _"," _ "," _ ","_"," _"," _",170,"Current assets / VAT","_","_"," _ "," _ "," _ "," _ "," _ "," _ "," _ "," _ ",1003,"Statutory requirements",1003,"Statutory requirements"," _ "," _ "," _ "," _ ",null," _ "," _ ","_","_","_","_",null,null," _ "," _ "," _ "," _ "," _ "," _ "," _ "," _ "," _ "," _ "," _ "," _ "," _ "," _ "," _ "," _ "," _ "," _ "," _ "," _ "," _ "," _ "," _ "," _ ",null,"O","_",null,null,4,47,"Community and social services","Disaster Management",null,"_","_","_","_","_",0,0,0,0,0,0,0,0,0,0,0,0,0,0]
["O1279-1/IA10379/F0041/X132/R0100/001/CONTRA","O1279-1/IA10379/F0041/X132/R0100/001/CONTRA",328780,0,"Assets:Current Assets:VAT Receivable:Input Tax General:Transfers","IA",4400,"Trading services / Waste management / Solid Waste Removal",4403,"Trading services / Waste management / Solid Waste Removal"," _"," _"," _ "," _ ","_"," _"," _",170,"Current assets / VAT","_","_"," _ "," _ "," _ "," _ "," _ "," _ "," _ "," _ ",1003,"Statutory requirements",1003,"Statutory requirements"," _ "," _ "," _ "," _ ",null," _ "," _ ","_","_","_","_",null,null," _ "," _ "," _ "," _ "," _ "," _ "," _ "," _ "," _ "," _ "," _ "," _ "," _ "," _ "," _ "," _ "," _ "," _ "," _ "," _ "," _ "," _ "," _ "," _ ",null,"O","_",null,null,11,111,"Waste Management","Solid Waste Removal",null,"_","_","_","_","_",0,0,0,0,0,0,0,0,0,0,0,0,0,0]
["O1268-3/IE00628/F0041/X037/R0100/001/EDP","O1268-3/IE00628/F0041/X037/R0100/001/EDP",328708,47652,"Expenditure:Contracted Services:Contractors:Audio-visual Services","IE",3300,"Economic and environmental services / Environmental protection / Biodiversity and Landscape",3301,"Economic and environmental services / Environmental protection / Biodiversity and Landscape",3800,"Expenditure / Contracted services",2703,"Expenditure / Contracted services","_"," _"," _"," _ "," _ "," _ "," _ "," _ "," _ "," _ "," _ "," _ "," _ "," _ "," _ ","_","_","_","_"," _ "," _ "," _ "," _ ",null,2703,"Contracted Services ","_","_","_","_",null,null," _ "," _ "," _ "," _ "," _ "," _ "," _ "," _ "," _ "," _ "," _ "," _ "," _ "," _ "," _ "," _ "," _ "," _ "," _ "," _ "," _ "," _ "," _ "," _ ",null,"O","_",null,null,12,121,"Environmental Protection","Biodiversity and Landscape",null,"_","_","_","_","_",0,0,0,0,0,0,0,0,0,0,0,0,0,0]
["O1278-2/IA10353/F0041/X132/R0100/001/COMM","O1278-2/IA10353/F0041/X132/R0100/001/COMM",328668,47572,"Assets:Current Assets:Inventory:Materials and Supplies:Issues","IA",4400,"Trading services / Waste management / Solid Waste Removal",4403,"Trading services / Waste management / Solid Waste Removal"," _"," _"," _ "," _ ","_"," _"," _",160,"Current assets / Inventory","_","_"," _ "," _ "," _ "," _ "," _ "," _ "," _ "," _ ","_","_","_","_"," _ "," _ "," _ "," _ ",null," _ "," _ ","_","_","_","_",null,null," _ "," _ "," _ "," _ "," _ "," _ "," _ "," _ "," _ "," _ "," _ "," _ "," _ "," _ "," _ "," _ "," _ "," _ "," _ "," _ ",214,"Materials and Supplies / Issues",214,"Materials and Supplies / Issues",null,"O","_",null,null,11,111,"Waste Management","Solid Waste Removal",null,"_","_","_","_","_",0,0,0,0,0,0,0,0,0,0,0,0,0,0]
["O1278-2/IA10375/F0041/X132/R0100/001/CONTRA","O1278-2/IA10375/F0041/X132/R0100/001/CONTRA",328770,0,"Assets:Current Assets:VAT Receivable:Input Tax Accrual:Recognised","IA",4400,"Trading services / Waste management / Solid Waste Removal",4403,"Trading services / Waste management / Solid Waste Removal"," _"," _"," _ "," _ ","_"," _"," _",170,"Current assets / VAT","_","_"," _ "," _ "," _ "," _ "," _ "," _ "," _ "," _ ",1003,"Statutory requirements",1003,"Statutory requirements"," _ "," _ "," _ "," _ ",null," _ "," _ ","_","_","_","_",null,null," _ "," _ "," _ "," _ "," _ "," _ "," _ "," _ "," _ "," _ "," _ "," _ "," _ "," _ "," _ "," _ "," _ "," _ "," _ "," _ "," _ "," _ "," _ "," _ ",null,"O","_",null,null,11,111,"Waste Management","Solid Waste Removal",null,"_","_","_","_","_",0,0,0,0,0,0,0,0,0,0,0,0,0,0]
["O1278-2/IL65527/F0041/X132/R0100/001/CONTRA","O1278-2/IL65527/F0041/X132/R0100/001/CONTRA",328772,0,"Liabilities:Current Liabilities:Trade and Other Payable Exchange Transactions:Payables and Accruals : Inventory:Deposits","IL",4400,"Trading services / Waste management / Solid Waste Removal",4403,"Trading services / Waste management / Solid Waste Removal"," _"," _"," _ "," _ ","_"," _"," _",380,"Current liabilities / Trade and other payables from exchange transactions","_","_"," _ "," _ "," _ "," _ "," _ "," _ "," _ "," _ ","_","_","_","_"," _ "," _ "," _ "," _ ",null," _ "," _ ","_","_","_","_",null,null," _ "," _ "," _ "," _ "," _ "," _ "," _ "," _ "," _ "," _ "," _ "," _ "," _ "," _ "," _ "," _ "," _ "," _ "," _ "," _ ",361,"Trade and other payables / Trade and other payables from exchange transactions",361,"Trade and other payables / Trade and other payables from exchange transactions",null,"O","_",null,null,11,111,"Waste Management","Solid Waste Removal",null,"_","_","_","_","_",0,0,0,0,0,0,0,0,0,0,0,0,0,0]
["O1350-8/IL65530/F0041/X056/R0099/001/CONTRA","O1350-8/IL65530/F0041/X056/R0099/001/CONTRA",329126,0,"Liabilities:Current Liabilities:Trade and Other Payable Exchange Transactions:Payables and Accruals : Contractors:Deposits","IL",1200,"Municipal governance and administration / Finance and administration / Risk Management",1211,"Municipal governance and administration / Finance and administration / Risk Management"," _"," _"," _ "," _ ","_"," _"," _",380,"Current liabilities / Trade and other payables from exchange transactions","_","_"," _ "," _ "," _ "," _ "," _ "," _ "," _ "," _ ","_","_","_","_"," _ "," _ "," _ "," _ ",null," _ "," _ ","_","_","_","_",null,null," _ "," _ "," _ "," _ "," _ "," _ "," _ "," _ "," _ "," _ "," _ "," _ "," _ "," _ "," _ "," _ "," _ "," _ "," _ "," _ ",361,"Trade and other payables / Trade and other payables from exchange transactions",361,"Trade and other payables / Trade and other payables from exchange transactions",null,"O","_",null,null,3,32,"Internal audit","Risk Management",null,"_","_","_","_","_",0,0,0,0,0,0,0,0,0,0,0,0,0,0]
["O1444-13/IA10352/F0041/X044/R3653/001/EXEC","O1444-13/IA10352/F0041/X044/R3653/001/EXEC",329291,null,"Assets:Current Assets:Inventory:Materials and Supplies:Acquisitions","IA",1100,"Municipal governance and administration / Executive and council / Mayor and Council",1110,"Municipal governance and administration / Executive and council / Mayor and Council"," _"," _"," _ "," _ ","_"," _"," _",160,"Current assets / Inventory","_","_"," _ "," _ "," _ "," _ "," _ "," _ "," _ "," _ ","_","_","_","_"," _ "," _ "," _ "," _ ",null," _ "," _ ","_","_","_","_",null,null," _ "," _ "," _ "," _ "," _ "," _ "," _ "," _ "," _ "," _ "," _ "," _ "," _ "," _ "," _ "," _ "," _ "," _ "," _ "," _ ",213,"Materials and Supplies / Acquisitions",213,"Materials and Supplies / Acquisitions",null,"O","_",null,null,1,11,"Executive and council","Mayor and Council",null,"_","_","_","_","_",0,0,0,0,0,0,0,0,0,0,0,0,0,0]
["O1444-13/IA10376/F0041/X044/R3653/001/CONTRA","O1444-13/IA10376/F0041/X044/R3653/001/CONTRA",329017,0,"Assets:Current Assets:VAT Receivable:Input Tax Accrual:Transfers","IA",1100,"Municipal governance and administration / Executive and council / Mayor and Council",1110,"Municipal governance and administration / Executive and council / Mayor and Council"," _"," _"," _ "," _ ","_"," _"," _",170,"Current assets / VAT","_","_"," _ "," _ "," _ "," _ "," _ "," _ "," _ "," _ ",1003,"Statutory requirements",1003,"Statutory requirements"," _ "," _ "," _ "," _ ",null," _ "," _ ","_","_","_","_",null,null," _ "," _ "," _ "," _ "," _ "," _ "," _ "," _ "," _ "," _ "," _ "," _ "," _ "," _ "," _ "," _ "," _ "," _ "," _ "," _ "," _ "," _ "," _ "," _ ",null,"O","_",null,null,1,11,"Executive and council","Mayor and Council",null,"_","_","_","_","_",0,0,0,0,0,0,0,0,0,0,0,0,0,0]
["O1550-5/IA02108/F0041/X116/R0100/001/CONTRA","O1550-5/IA02108/F0041/X116/R0100/001/CONTRA",328884,0,"Assets:Current Assets:Cash and Cash Equivalents:Cash at Bank:Bank Account:Specify (replace with account description):Withdrawals","IA",3200,"Economic and environmental services / Road transport / Roads",3205,"Economic and environmental services / Road transport / Roads"," _"," _"," _ "," _ ","_"," _"," _",120,"Current assets / Cash and cash equivalents","_","_"," _ "," _ "," _ "," _ "," _ "," _ "," _ "," _ ","_","_","_","_"," _ "," _ "," _ "," _ ",null," _ "," _ ","_","_","_","_",null,null," _ "," _ "," _ "," _ "," _ "," _ ",1510,"Machinery and Equipment"," _ ",1510,"Machinery and Equipment"," _ "," _ "," _ "," _ "," _ "," _ "," _ "," _ "," _ "," _ "," _ "," _ "," _ ","W","O","_",null,null,9,91,"Road transport","Roads",null,"_","_","_","_","_",0,0,0,0,0,0,0,0,0,0,0,0,0,0]
["O2774-5/IE00649/F0041/X099/R0100/001/TECH","O2774-5/IE00649/F0041/X099/R0100/001/TECH",328685,47590,"Expenditure:Contracted Services:Contractors:Maintenance of Buildings and Facilities","IE",3100,"Economic and environmental services / Planning and development / Project Management Unit",3108,"Economic and environmental services / Planning and development / Project Management Unit",3800,"Expenditure / Contracted services",2703,"Expenditure / Contracted services","_"," _"," _"," _ "," _ "," _ "," _ "," _ "," _ "," _ "," _ "," _ "," _ "," _ "," _ ","_","_","_","_"," _ "," _ "," _ "," _ ",null,2703,"Contracted Services ","_","_","_","_",null,null," _ "," _ "," _ "," _ "," _ "," _ ",1200,"Other assets / Operational Buildings / Municipal Offices"," _ ",1200,"Other assets / Operational Buildings / Municipal Offices"," _ "," _ "," _ "," _ "," _ "," _ "," _ "," _ "," _ "," _ "," _ "," _ "," _ ",null,"O","RM",null,null,8,83,"Planning and Development","Project Management Unit",null,"_","_","_","_","_",0,0,0,0,0,0,0,0,0,0,0,0,0,0]
["O2774-6/IL65531/F0041/X099/R0100/001/CONTRA","O2774-6/IL65531/F0041/X099/R0100/001/CONTRA",328907,0,"Liabilities:Current Liabilities:Trade and Other Payable Exchange Transactions:Payables and Accruals : Contractors:Withdrawals","IL",3100,"Economic and environmental services / Planning and development / Project Management Unit",3108,"Economic and environmental services / Planning and development / Project Management Unit"," _"," _"," _ "," _ ","_"," _"," _",380,"Current liabilities / Trade and other payables from exchange transactions","_","_"," _ ",200," _ ","CASH FLOW FROM OPERATING ACTIVITIES / Payments / Suppliers and employees"," _ ",450," _ ","Cash Payments by Type / Contracted services","_","_","_","_"," _ "," _ "," _ "," _ ",null," _ "," _ ","_","_","_","_",null,null," _ "," _ "," _ "," _ "," _ "," _ ",1200,"Other assets / Operational Buildings / Municipal Offices"," _ ",1200,"Other assets / Operational Buildings / Municipal Offices"," _ "," _ "," _ "," _ "," _ "," _ "," _ "," _ "," _ ",361,"Trade and other payables / Trade and other payables from exchange transactions",361,"Trade and other payables / Trade and other payables from exchange transactions",null,"O","_",null,null,8,83,"Planning and Development","Project Management Unit",null,"_","_","_","_","_",0,0,0,0,0,0,0,0,0,0,0,0,0,0]
["O0008-13/IA10378/F0047/X036/R3649/001/CONTRA","O0008-13/IA10378/F0047/X036/R3649/001/CONTRA",329249,0,"Assets:Current Assets:VAT Receivable:Input Tax General:Recognised","IA",4100,"Trading services / Energy sources / Nonelectric Energy",4103,"Trading services / Energy sources / Nonelectric Energy"," _"," _"," _ "," _ ","_"," _"," _",170,"Current assets / VAT","_","_"," _ "," _ "," _ "," _ "," _ "," _ "," _ "," _ ",1003,"Statutory requirements",1003,"Statutory requirements"," _ "," _ "," _ "," _ ",null," _ "," _ ","_","_","_","_",null,null," _ "," _ "," _ "," _ "," _ "," _ "," _ "," _ "," _ "," _ "," _ "," _ "," _ "," _ "," _ "," _ "," _ "," _ "," _ "," _ "," _ "," _ "," _ "," _ ",null,"O","_",null,null,null,0," _ ","Nonelectric Energy",null,"_","_","_","_","_",0,0,0,0,0,0,0,0,0,0,0,0,0,0]
["D0001/IL092600/F0047/X035/R0099/001/CONTRA","D0001/IL092600/F0047/X035/R0099/001/CONTRA",329396,0,"Liabilities:Current Liabilities:Trade and Other Payable Non-exchange Transactions:Transfers and Subsidies Unspent:Operational:Monetary Allocations:National Government:Integrated National Electrification Programme Grant:Receipts","IL",4100,"Trading services / Energy sources / Electricity",4101,"Trading services / Energy sources / Electricity"," _"," _"," _ "," _ ","_"," _"," _",390,"Current liabilities / Trade and other payables from non-exchange transactions","_","_"," _ "," _ "," _ "," _ "," _ "," _ "," _ "," _ ","_","_","_","_"," _ "," _ "," _ "," _ ",null," _ "," _ ","_","_","_","_",null,null," _ "," _ "," _ "," _ "," _ "," _ "," _ "," _ "," _ "," _ "," _ "," _ "," _ "," _ "," _ "," _ "," _ "," _ "," _ "," _ ",363,"Trade and other payables / Trade payables from Non-exchange transactions: Unspent conditional Grants",363,"Trade and other payables / Trade payables from Non-exchange transactions: Unspent conditional Grants",null,"D","_",null,null,10,101,"Energy sources","Electricity",null,"_","_","_","_","_",0,0,0,0,0,0,0,0,0,0,0,0,0,0]
["O0008-13/IA02108/F0047/X035/R3649/001/CONTRA","O0008-13/IA02108/F0047/X035/R3649/001/CONTRA",329269,47664,"Assets:Current Assets:Cash and Cash Equivalents:Cash at Bank:Bank Account:Specify (replace with account description):Withdrawals","IA",4100,"Trading services / Energy sources / Electricity",4101,"Trading services / Energy sources / Electricity"," _"," _"," _ "," _ ","_"," _"," _",120,"Current assets / Cash and cash equivalents","_","_"," _ "," _ "," _ "," _ "," _ "," _ "," _ "," _ ","_","_","_","_"," _ "," _ "," _ "," _ ",null," _ "," _ ","_","_","_","_",null,null," _ "," _ "," _ "," _ "," _ "," _ "," _ "," _ "," _ "," _ "," _ "," _ "," _ "," _ "," _ "," _ "," _ "," _ "," _ "," _ "," _ "," _ "," _ "," _ ","W","O","_",null,null,10,101,"Energy sources","Electricity",null,"_","_","_","_","_",0,0,0,0,0,0,0,0,0,0,0,0,0,0]
["O1264-3/IL65531/F0041/X019/R3650/001/CONTRA","O1264-3/IL65531/F0041/X019/R3650/001/CONTRA",328798,0,"Liabilities:Current Liabilities:Trade and Other Payable Exchange Transactions:Payables and Accruals : Contractors:Withdrawals","IL",2100,"Community and public safety / Community and social services / Disaster Management",2109,"Community and public safety / Community and social services / Disaster Management"," _"," _"," _ "," _ ","_"," _"," _",380,"Current liabilities / Trade and other payables from exchange transactions","_","_"," _ ",200," _ ","CASH FLOW FROM OPERATING ACTIVITIES / Payments / Suppliers and employees"," _ ",450," _ ","Cash Payments by Type / Contracted services","_","_","_","_"," _ "," _ "," _ "," _ ",null," _ "," _ ","_","_","_","_",null,null," _ "," _ "," _ "," _ "," _ "," _ "," _ "," _ "," _ "," _ "," _ "," _ "," _ "," _ "," _ "," _ "," _ "," _ "," _ "," _ ",361,"Trade and other payables / Trade and other payables from exchange transactions",361,"Trade and other payables / Trade and other payables from exchange transactions",null,"O","_",null,null,4,47,"Community and social services","Disaster Management",null,"_","_","_","_","_",0,0,0,0,0,0,0,0,0,0,0,0,0,0]
["O1264-4/IE00534/F0041/X019/R0100/001/COMM","O1264-4/IE00534/F0041/X019/R0100/001/COMM",328679,47583,"Expenditure:Inventory Consumed:Materials and Supplies","IE",2100,"Community and public safety / Community and social services / Disaster Management",2109,"Community and public safety / Community and social services / Disaster Management",3400,"Expenditure / Inventory consumed",6002,"Expenditure / Inventory consumed","_"," _"," _"," _ "," _ "," _ "," _ "," _ "," _ "," _ "," _ "," _ "," _ "," _ "," _ ","_","_","_","_"," _ "," _ "," _ "," _ ",null,6002,"Inventory Consumed - Other","_","_","_","_",null,null," _ "," _ "," _ "," _ "," _ "," _ "," _ "," _ "," _ "," _ "," _ "," _ "," _ "," _ "," _ "," _ "," _ "," _ "," _ "," _ "," _ "," _ "," _ "," _ ",null,"O","_",null,null,4,47,"Community and social services","Disaster Management",null,"_","_","_","_","_",0,0,0,0,0,0,0,0,0,0,0,0,0,0]
["O1279-1/IE00059/F0041/X132/R0100/001/COMM","O1279-1/IE00059/F0041/X132/R0100/001/COMM",328669,47574,"Expenditure:Operational Cost:Registration Fees:Seminars, Conferences, Workshops and Events:National","IE",4400,"Trading services / Waste management / Solid Waste Removal",4403,"Trading services / Waste management / Solid Waste Removal",4100,"Expenditure / Operational costs",2904,"Expenditure / Operational costs","_"," _"," _"," _ "," _ "," _ "," _ "," _ "," _ "," _ "," _ "," _ "," _ "," _ "," _ ","_","_","_","_"," _ "," _ "," _ "," _ ",null,2904,"Operational Costs ","_","_","_","_",null,null," _ "," _ "," _ "," _ "," _ "," _ "," _ "," _ "," _ "," _ "," _ "," _ "," _ "," _ "," _ "," _ "," _ "," _ "," _ "," _ "," _ "," _ "," _ "," _ ",null,"O","_",null,null,11,111,"Waste Management","Solid Waste Removal",null,"_","_","_","_","_",0,0,0,0,0,0,0,0,0,0,0,0,0,0]
["O1279-1/IL53821/F0041/X132/R0100/001/CONTRA","O1279-1/IL53821/F0041/X132/R0100/001/CONTRA",328782,0,"Liabilities:Current Liabilities:Trade and Other Payable Exchange Transactions:Payables and Accruals : General:Withdrawals","IL",4400,"Trading services / Waste management / Solid Waste Removal",4403,"Trading services / Waste management / Solid Waste Removal"," _"," _"," _ "," _ ","_"," _"," _",380,"Current liabilities / Trade and other payables from exchange transactions","_","_"," _ ",200," _ ","CASH FLOW FROM OPERATING ACTIVITIES / Payments / Suppliers and employees"," _ ",480," _ ","Cash Payments by Type / Other expenditure","_","_","_","_"," _ "," _ "," _ "," _ ",null," _ "," _ ","_","_","_","_",null,null," _ "," _ "," _ "," _ "," _ "," _ "," _ "," _ "," _ "," _ "," _ "," _ "," _ "," _ "," _ "," _ "," _ "," _ "," _ "," _ ",361,"Trade and other payables / Trade and other payables from exchange transactions",361,"Trade and other payables / Trade and other payables from exchange transactions",null,"O","_",null,null,11,111,"Waste Management","Solid Waste Removal",null,"_","_","_","_","_",0,0,0,0,0,0,0,0,0,0,0,0,0,0]
["O0025-13/IA10373/F0041/X098/R0100/001/CONTRA","O0025-13/IA10373/F0041/X098/R0100/001/CONTRA",329193,0,"Assets:Current Assets:VAT Receivable:VAT Control (Receivable):Transfers","IA",3100,"Economic and environmental services / Planning and development / Economic Development/Planning",3105,"Economic and environmental services / Planning and development / Economic Development/Planning"," _"," _"," _ "," _ ","_"," _"," _",170,"Current assets / VAT","_","_"," _ "," _ "," _ "," _ "," _ "," _ "," _ "," _ ",1003,"Statutory requirements",1003,"Statutory requirements"," _ "," _ "," _ "," _ ",null," _ "," _ ","_","_","_","_",null,null," _ "," _ "," _ "," _ "," _ "," _ "," _ "," _ "," _ "," _ "," _ "," _ "," _ "," _ "," _ "," _ "," _ "," _ "," _ "," _ "," _ "," _ "," _ "," _ ",null,"O","_",null,null,8,82,"Planning and Development","Economic Development/Planning",null,"_","_","_","_","_",0,0,0,0,0,0,0,0,0,0,0,0,0,0]
["O0025-13/IL53821/F0041/X098/R0100/001/CONTRA","O0025-13/IL53821/F0041/X098/R0100/001/CONTRA",329199,0,"Liabilities:Current Liabilities:Trade and Other Payable Exchange Transactions:Payables and Accruals : General:Withdrawals","IL",3100,"Economic and environmental services / Planning and development / Economic Development/Planning",3105,"Economic and environmental services / Planning and development / Economic Development/Planning"," _"," _"," _ "," _ ","_"," _"," _",380,"Current liabilities / Trade and other payables from exchange transactions","_","_"," _ ",200," _ ","CASH FLOW FROM OPERATING ACTIVITIES / Payments / Suppliers and employees"," _ ",480," _ ","Cash Payments by Type / Other expenditure","_","_","_","_"," _ "," _ "," _ "," _ ",null," _ "," _ ","_","_","_","_",null,null," _ "," _ "," _ "," _ "," _ "," _ "," _ "," _ "," _ "," _ "," _ "," _ "," _ "," _ "," _ "," _ "," _ "," _ "," _ "," _ ",361,"Trade and other payables / Trade and other payables from exchange transactions",361,"Trade and other payables / Trade and other payables from exchange transactions",null,"O","_",null,null,8,82,"Planning and Development","Economic Development/Planning",null,"_","_","_","_","_",0,0,0,0,0,0,0,0,0,0,0,0,0,0]
["O0025-14/IL65530/F0041/X101/R0099/001/CONTRA","O0025-14/IL65530/F0041/X101/R0099/001/CONTRA",329243,0,"Liabilities:Current Liabilities:Trade and Other Payable Exchange Transactions:Payables and Accruals : Contractors:Deposits","IL",3100,"Economic and environmental services / Planning and development / Town Planning, Building Regulations and Enforcement, and City Engineer",3107,"Economic and environmental services / Planning and development / Town Planning, Building Regulations and Enforcement, and City Engineer"," _"," _"," _ "," _ ","_"," _"," _",380,"Current liabilities / Trade and other payables from exchange transactions","_","_"," _ "," _ "," _ "," _ "," _ "," _ "," _ "," _ ","_","_","_","_"," _ "," _ "," _ "," _ ",null," _ "," _ ","_","_","_","_",null,null," _ "," _ "," _ "," _ "," _ "," _ "," _ "," _ "," _ "," _ "," _ "," _ "," _ "," _ "," _ "," _ "," _ "," _ "," _ "," _ ",361,"Trade and other payables / Trade and other payables from exchange transactions",361,"Trade and other payables / Trade and other payables from exchange transactions",null,"O","_",null,null,8,84,"Planning and Development","Town Planning, Building Regulations and Enforcement, and City Engineer",null,"_","_","_","_","_",0,0,0,0,0,0,0,0,0,0,0,0,0,0]
["O1564-1/IL65531/F0041/X019/R0100/001/CONTRA","O1564-1/IL65531/F0041/X019/R0100/001/CONTRA",328790,0,"Liabilities:Current Liabilities:Trade and Other Payable Exchange Transactions:Payables and Accruals : Contractors:Withdrawals","IL",2100,"Community and public safety / Community and social services / Disaster Management",2109,"Community and public safety / Community and social services / Disaster Management"," _"," _"," _ "," _ ","_"," _"," _",380,"Current liabilities / Trade and other payables from exchange transactions","_","_"," _ ",200," _ ","CASH FLOW FROM OPERATING ACTIVITIES / Payments / Suppliers and employees"," _ ",450," _ ","Cash Payments by Type / Contracted services","_","_","_","_"," _ "," _ "," _ "," _ ",null," _ "," _ ","_","_","_","_",null,null," _ "," _ "," _ "," _ "," _ "," _ ",1510,"Machinery and Equipment"," _ ",1510,"Machinery and Equipment"," _ "," _ "," _ "," _ "," _ "," _ "," _ "," _ "," _ ",361,"Trade and other payables / Trade and other payables from exchange transactions",361,"Trade and other payables / Trade and other payables from exchange transactions",null,"O","_",null,null,4,47,"Community and social services","Disaster Management",null,"_","_","_","_","_",0,0,0,0,0,0,0,0,0,0,0,0,0,0]
["O3269-2/IA10375/F13650/X007/R0100/001/CONTRA","O3269-2/IA10375/F13650/X007/R0100/001/CONTRA",328819,0,"Assets:Current Assets:VAT Receivable:Input Tax Accrual:Recognised","IA",2100,"Community and public safety / Community and social services / Libraries and Archives",2114,"Community and public safety / Community and social services / Libraries and Archives"," _"," _"," _ "," _ ","_"," _"," _",170,"Current assets / VAT","_","_"," _ "," _ "," _ "," _ "," _ "," _ "," _ "," _ ",1003,"Statutory requirements",1003,"Statutory requirements"," _ "," _ "," _ "," _ ",null," _ "," _ ","_","_","_","_",null,null," _ "," _ "," _ "," _ "," _ "," _ ",880,"Community Assets / Community Facilities / Libraries"," _ ",880,"Community Assets / Community Facilities / Libraries"," _ "," _ "," _ "," _ "," _ "," _ "," _ "," _ "," _ "," _ "," _ "," _ "," _ ",null,"O","_",null,null,4,44,"Community and social services","Libraries and Archives",null,"_","_","_","_","_",0,0,0,0,0,0,0,0,0,0,0,0,0,0]
["D0001/IL37840/F9419/X132/R0099/001/CONTRA","D0001/IL37840/F9419/X132/R0099/001/CONTRA",329388,0,"Liabilities:Current Liabilities:VAT Payable: VAT Control:Transfers","IL",4400,"Trading services / Waste management / Solid Waste Removal",4403,"Trading services / Waste management / Solid Waste Removal"," _"," _"," _ "," _ ","_"," _"," _",410,"Current liabilities / VAT","_","_"," _ "," _ "," _ "," _ "," _ "," _ "," _ "," _ ",1003,"Statutory requirements",1003,"Statutory requirements"," _ "," _ "," _ "," _ ",null," _ "," _ ","_","_","_","_",null,null," _ "," _ "," _ "," _ "," _ "," _ "," _ "," _ "," _ "," _ "," _ "," _ "," _ "," _ "," _ "," _ "," _ "," _ "," _ "," _ ",365,"Trade and other payables / VAT",365,"Trade and other payables / VAT",null,"D","_",null,null,11,111,"Waste Management","Solid Waste Removal",null,"_","_","_","_","_",0,0,0,0,0,0,0,0,0,0,0,0,0,0]
["D0001/IR006863/F0047/X035/R0099/001/TECH","D0001/IR006863/F0047/X035/R0099/001/TECH",329391,null,"Revenue:Non-exchange Revenue:Transfers and Subsidies:Operational:Monetary Allocations:National Governments:Integrated National Electrification Programme Grant","IR",4100,"Trading services / Energy sources / Electricity",4101,"Trading services / Energy sources / Electricity",2200,"Non-Exchange Revenue / Transfer and subsidies - Operational",2200,"Non-Exchange Revenue / Transfer and subsidies - Operational","_"," _"," _"," _ "," _ "," _ "," _ "," _ "," _ "," _ "," _ "," _ "," _ "," _ "," _ ","_","_","_","_"," _ "," _ "," _ "," _ ",null," _ "," _ ","_","_","_","_",null,null," _ "," _ "," _ "," _ "," _ "," _ "," _ "," _ "," _ "," _ "," _ "," _ "," _ "," _ "," _ "," _ "," _ "," _ "," _ "," _ "," _ "," _ "," _ "," _ ",null,"D","_",null,null,10,101,"Energy sources","Electricity",null,"_","_","_","_","_",0,0,0,0,0,0,0,0,0,0,0,0,0,0]
["D0001/IR06171/F0047/X035/R0099/001/TECH","D0001/IR06171/F0047/X035/R0099/001/TECH",329206,47648,"Revenue:Exchange Revenue:Sales of Goods and Rendering of Services:Construction Contract Revenue","IR",4100,"Trading services / Energy sources / Electricity",4101,"Trading services / Energy sources / Electricity",700,"Exchange Revenue / Sale of Goods and Rendering of Services",700,"Exchange Revenue / Sale of Goods and Rendering of Services","_"," _"," _"," _ "," _ "," _ "," _ "," _ "," _ "," _ "," _ "," _ "," _ "," _ "," _ ","_","_","_","_"," _ "," _ "," _ "," _ ",null," _ "," _ ","_","_","_","_",null,null," _ "," _ "," _ "," _ "," _ "," _ "," _ "," _ "," _ "," _ "," _ "," _ "," _ "," _ "," _ "," _ "," _ "," _ "," _ "," _ "," _ "," _ "," _ "," _ ",null,"D","_",null,null,10,101,"Energy sources","Electricity",null,"_","_","_","_","_",0,0,0,0,0,0,0,0,0,0,0,0,0,0]
["O1255-13/IA10373/F13650/X007/R0100/001/CONTRA","O1255-13/IA10373/F13650/X007/R0100/001/CONTRA",328759,0,"Assets:Current Assets:VAT Receivable:VAT Control (Receivable):Transfers","IA",2100,"Community and public safety / Community and social services / Libraries and Archives",2114,"Community and public safety / Community and social services / Libraries and Archives"," _"," _"," _ "," _ ","_"," _"," _",170,"Current assets / VAT","_","_"," _ "," _ "," _ "," _ "," _ "," _ "," _ "," _ ",1003,"Statutory requirements",1003,"Statutory requirements"," _ "," _ "," _ "," _ ",null," _ "," _ ","_","_","_","_",null,null," _ "," _ "," _ "," _ "," _ "," _ "," _ "," _ "," _ "," _ "," _ "," _ "," _ "," _ "," _ "," _ "," _ "," _ "," _ "," _ "," _ "," _ "," _ "," _ ",null,"O","_",null,null,4,44,"Community and social services","Libraries and Archives",null,"_","_","_","_","_",0,0,0,0,0,0,0,0,0,0,0,0,0,0]
["O1264-4/IE00632/F0041/X019/R0100/001/COMM","O1264-4/IE00632/F0041/X019/R0100/001/COMM",328678,47585,"Expenditure:Contracted Services:Contractors:Catering Services","IE",2100,"Community and public safety / Community and social services / Disaster Management",2109,"Community and public safety / Community and social services / Disaster Management",3800,"Expenditure / Contracted services",2703,"Expenditure / Contracted services","_"," _"," _"," _ "," _ "," _ "," _ "," _ "," _ "," _ "," _ "," _ "," _ "," _ "," _ ","_","_","_","_"," _ "," _ "," _ "," _ ",null,2703,"Contracted Services ","_","_","_","_",null,null," _ "," _ "," _ "," _ "," _ "," _ "," _ "," _ "," _ "," _ "," _ "," _ "," _ "," _ "," _ "," _ "," _ "," _ "," _ "," _ "," _ "," _ "," _ "," _ ",null,"O","_",null,null,4,47,"Community and social services","Disaster Management",null,"_","_","_","_","_",0,0,0,0,0,0,0,0,0,0,0,0,0,0]
["O1264-4/IL65530/F0041/X019/R0100/001/CONTRA","O1264-4/IL65530/F0041/X019/R0100/001/CONTRA",328850,0,"Liabilities:Current Liabilities:Trade and Other Payable Exchange Transactions:Payables and Accruals : Contractors:Deposits","IL",2100,"Community and public safety / Community and social services / Disaster Management",2109,"Community and public safety / Community and social services / Disaster Management"," _"," _"," _ "," _ ","_"," _"," _",380,"Current liabilities / Trade and other payables from exchange transactions","_","_"," _ "," _ "," _ "," _ "," _ "," _ "," _ "," _ ","_","_","_","_"," _ "," _ "," _ "," _ ",null," _ "," _ ","_","_","_","_",null,null," _ "," _ "," _ "," _ "," _ "," _ "," _ "," _ "," _ "," _ "," _ "," _ "," _ "," _ "," _ "," _ "," _ "," _ "," _ "," _ ",361,"Trade and other payables / Trade and other payables from exchange transactions",361,"Trade and other payables / Trade and other payables from exchange transactions",null,"O","_",null,null,4,47,"Community and social services","Disaster Management",null,"_","_","_","_","_",0,0,0,0,0,0,0,0,0,0,0,0,0,0]
["O1268-3/IA10376/F0041/X037/R0100/001/CONTRA","O1268-3/IA10376/F0041/X037/R0100/001/CONTRA",329027,0,"Assets:Current Assets:VAT Receivable:Input Tax Accrual:Transfers","IA",3300,"Economic and environmental services / Environmental protection / Biodiversity and Landscape",3301,"Economic and environmental services / Environmental protection / Biodiversity and Landscape"," _"," _"," _ "," _ ","_"," _"," _",170,"Current assets / VAT","_","_"," _ "," _ "," _ "," _ "," _ "," _ "," _ "," _ ",1003,"Statutory requirements",1003,"Statutory requirements"," _ "," _ "," _ "," _ ",null," _ "," _ ","_","_","_","_",null,null," _ "," _ "," _ "," _ "," _ "," _ "," _ "," _ "," _ "," _ "," _ "," _ "," _ "," _ "," _ "," _ "," _ "," _ "," _ "," _ "," _ "," _ "," _ "," _ ",null,"O","_",null,null,12,121,"Environmental Protection","Biodiversity and Landscape",null,"_","_","_","_","_",0,0,0,0,0,0,0,0,0,0,0,0,0,0]
["O1270-3/IA02108/F0041/X037/R0100/001/CONTRA","O1270-3/IA02108/F0041/X037/R0100/001/CONTRA",329032,0,"Assets:Current Assets:Cash and Cash Equivalents:Cash at Bank:Bank Account:Specify (replace with account description):Withdrawals","IA",3300,"Economic and environmental services / Environmental protection / Biodiversity and Landscape",3301,"Economic and environmental services / Environmental protection / Biodiversity and Landscape"," _"," _"," _ "," _ ","_"," _"," _",120,"Current assets / Cash and cash equivalents","_","_"," _ "," _ "," _ "," _ "," _ "," _ "," _ "," _ ","_","_","_","_"," _ "," _ "," _ "," _ ",null," _ "," _ ","_","_","_","_",null,null," _ "," _ "," _ "," _ "," _ "," _ "," _ "," _ "," _ "," _ "," _ "," _ "," _ "," _ "," _ "," _ "," _ "," _ "," _ "," _ "," _ "," _ "," _ "," _ ","W","O","_",null,null,12,121,"Environmental Protection","Biodiversity and Landscape",null,"_","_","_","_","_",0,0,0,0,0,0,0,0,0,0,0,0,0,0]
["O1299-3/IA10375/F0041/X046/R0099/001/CONTRA","O1299-3/IA10375/F0041/X046/R0099/001/CONTRA",329042,0,"Assets:Current Assets:VAT Receivable:Input Tax Accrual:Recognised","IA",1200,"Municipal governance and administration / Finance and administration / Administrative and Corporate Support",1201,"Municipal governance and administration / Finance and administration / Administrative and Corporate Support"," _"," _"," _ "," _ ","_"," _"," _",170,"Current assets / VAT","_","_"," _ "," _ "," _ "," _ "," _ "," _ "," _ "," _ ",1003,"Statutory requirements",1003,"Statutory requirements"," _ "," _ "," _ "," _ ",null," _ "," _ ","_","_","_","_",null,null," _ "," _ "," _ "," _ "," _ "," _ "," _ "," _ "," _ "," _ "," _ "," _ "," _ "," _ "," _ "," _ "," _ "," _ "," _ "," _ "," _ "," _ "," _ "," _ ",null,"O","_",null,null,2,21,"Finance and administration","Administrative and Corporate Support",null,"_","_","_","_","_",0,0,0,0,0,0,0,0,0,0,0,0,0,0]
["O1331-4/IA10375/F0001/X055/R3643/001/CONTRA","O1331-4/IA10375/F0001/X055/R3643/001/CONTRA",328727,47615,"Assets:Current Assets:VAT Receivable:Input Tax Accrual:Recognised","IA",1200,"Municipal governance and administration / Finance and administration / Property Services",1210,"Municipal governance and administration / Finance and administration / Property Services"," _"," _"," _ "," _ ","_"," _"," _",170,"Current assets / VAT","_","_"," _ "," _ "," _ "," _ "," _ "," _ "," _ "," _ ",1003,"Statutory requirements",1003,"Statutory requirements"," _ "," _ "," _ "," _ ",null," _ "," _ ","_","_","_","_",null,null," _ "," _ "," _ "," _ "," _ "," _ "," _ "," _ "," _ "," _ "," _ "," _ "," _ "," _ "," _ "," _ "," _ "," _ "," _ "," _ "," _ "," _ "," _ "," _ ",null,"O","_",null,null,2,27,"Finance and administration","Property Services",null,"_","_","_","_","_",0,0,0,0,0,0,0,0,0,0,0,0,0,0]
["O1350-7/IA10375/F0041/X056/R0099/001/CONTRA","O1350-7/IA10375/F0041/X056/R0099/001/CONTRA",329114,0,"Assets:Current Assets:VAT Receivable:Input Tax Accrual:Recognised","IA",1200,"Municipal governance and administration / Finance and administration / Risk Management",1211,"Municipal governance and administration / Finance and administration / Risk Management"," _"," _"," _ "," _ ","_"," _"," _",170,"Current assets / VAT","_","_"," _ "," _ "," _ "," _ "," _ "," _ "," _ "," _ ",1003,"Statutory requirements",1003,"Statutory requirements"," _ "," _ "," _ "," _ ",null," _ "," _ ","_","_","_","_",null,null," _ "," _ "," _ "," _ "," _ "," _ "," _ "," _ "," _ "," _ "," _ "," _ "," _ "," _ "," _ "," _ "," _ "," _ "," _ "," _ "," _ "," _ "," _ "," _ ",null,"O","_",null,null,3,32,"Internal audit","Risk Management",null,"_","_","_","_","_",0,0,0,0,0,0,0,0,0,0,0,0,0,0]
["O1355-6/IL65530/F0041/X087/R0100/001/CONTRA","O1355-6/IL65530/F0041/X087/R0100/001/CONTRA",329182,0,"Liabilities:Current Liabilities:Trade and Other Payable Exchange Transactions:Payables and Accruals : Contractors:Deposits","IL",5000,"Other / Tourism",5006,"Other / Tourism"," _"," _"," _ "," _ ","_"," _"," _",380,"Current liabilities / Trade and other payables from exchange transactions","_","_"," _ "," _ "," _ "," _ "," _ "," _ "," _ "," _ ","_","_","_","_"," _ "," _ "," _ "," _ ",null," _ "," _ ","_","_","_","_",null,null," _ "," _ "," _ "," _ "," _ "," _ "," _ "," _ "," _ "," _ "," _ "," _ "," _ "," _ "," _ "," _ "," _ "," _ "," _ "," _ ",361,"Trade and other payables / Trade and other payables from exchange transactions",361,"Trade and other payables / Trade and other payables from exchange transactions",null,"O","_",null,null,8,89,"Planning and Development","Tourism",null,"_","_","_","_","_",0,0,0,0,0,0,0,0,0,0,0,0,0,0]
["O1564-1/IA10376/F0041/X019/R0100/001/CONTRA","O1564-1/IA10376/F0041/X019/R0100/001/CONTRA",328786,0,"Assets:Current Assets:VAT Receivable:Input Tax Accrual:Transfers","IA",2100,"Community and public safety / Community and social services / Disaster Management",2109,"Community and public safety / Community and social services / Disaster Management"," _"," _"," _ "," _ ","_"," _"," _",170,"Current assets / VAT","_","_"," _ "," _ "," _ "," _ "," _ "," _ "," _ "," _ ",1003,"Statutory requirements",1003,"Statutory requirements"," _ "," _ "," _ "," _ ",null," _ "," _ ","_","_","_","_",null,null," _ "," _ "," _ "," _ "," _ "," _ ",1510,"Machinery and Equipment"," _ ",1510,"Machinery and Equipment"," _ "," _ "," _ "," _ "," _ "," _ "," _ "," _ "," _ "," _ "," _ "," _ "," _ ",null,"O","_",null,null,4,47,"Community and social services","Disaster Management",null,"_","_","_","_","_",0,0,0,0,0,0,0,0,0,0,0,0,0,0]
["O1232-29/IA10376/F0041/X044/R0099/001/CONTRA","O1232-29/IA10376/F0041/X044/R0099/001/CONTRA",329295,0,"Assets:Current Assets:VAT Receivable:Input Tax Accrual:Transfers","IA",1100,"Municipal governance and administration / Executive and council / Mayor and Council",1110,"Municipal governance and administration / Executive and council / Mayor and Council"," _"," _"," _ "," _ ","_"," _"," _",170,"Current assets / VAT","_","_"," _ "," _ "," _ "," _ "," _ "," _ "," _ "," _ ",1003,"Statutory requirements",1003,"Statutory requirements"," _ "," _ "," _ "," _ ",null," _ "," _ ","_","_","_","_",null,null," _ "," _ "," _ "," _ "," _ "," _ "," _ "," _ "," _ "," _ "," _ "," _ "," _ "," _ "," _ "," _ "," _ "," _ "," _ "," _ "," _ "," _ "," _ "," _ ",null,null,"_",null,null,1,11,"Executive and council","Mayor and Council",null,"_","_","_","_","_",0,0,0,0,0,0,0,0,0,0,0,0,0,0]
["O2392-5/IL65530/F0041/X116/R0100/001/CONTRA","O2392-5/IL65530/F0041/X116/R0100/001/CONTRA",328914,0,"Liabilities:Current Liabilities:Trade and Other Payable Exchange Transactions:Payables and Accruals : Contractors:Deposits","IL",3200,"Economic and environmental services / Road transport / Roads",3205,"Economic and environmental services / Road transport / Roads"," _"," _"," _ "," _ ","_"," _"," _",380,"Current liabilities / Trade and other payables from exchange transactions","_","_"," _ "," _ "," _ "," _ "," _ "," _ "," _ "," _ ","_","_","_","_"," _ "," _ "," _ "," _ ",null," _ "," _ ","_","_","_","_",null,null," _ "," _ "," _ "," _ "," _ "," _ ",120,"Infrastructure / Roads Infrastructure / Roads"," _ ",120,"Infrastructure / Roads Infrastructure / Roads"," _ "," _ "," _ "," _ "," _ "," _ "," _ "," _ "," _ ",361,"Trade and other payables / Trade and other payables from exchange transactions",361,"Trade and other payables / Trade and other payables from exchange transactions",null,"O","_",null,null,9,91,"Road transport","Roads",null,"_","_","_","_","_",0,0,0,0,0,0,0,0,0,0,0,0,0,0]
["O2774-5/IA02108/F0041/X099/R0100/001/CONTRA","O2774-5/IA02108/F0041/X099/R0100/001/CONTRA",328892,0,"Assets:Current Assets:Cash and Cash Equivalents:Cash at Bank:Bank Account:Specify (replace with account description):Withdrawals","IA",3100,"Economic and environmental services / Planning and development / Project Management Unit",3108,"Economic and environmental services / Planning and development / Project Management Unit"," _"," _"," _ "," _ ","_"," _"," _",120,"Current assets / Cash and cash equivalents","_","_"," _ "," _ "," _ "," _ "," _ "," _ "," _ "," _ ","_","_","_","_"," _ "," _ "," _ "," _ ",null," _ "," _ ","_","_","_","_",null,null," _ "," _ "," _ "," _ "," _ "," _ ",1200,"Other assets / Operational Buildings / Municipal Offices"," _ ",1200,"Other assets / Operational Buildings / Municipal Offices"," _ "," _ "," _ "," _ "," _ "," _ "," _ "," _ "," _ "," _ "," _ "," _ "," _ ","W","O","_",null,null,8,83,"Planning and Development","Project Management Unit",null,"_","_","_","_","_",0,0,0,0,0,0,0,0,0,0,0,0,0,0]
["O3269-2/IA10373/F13650/X007/R0100/001/CONTRA","O3269-2/IA10373/F13650/X007/R0100/001/CONTRA",328818,0,"Assets:Current Assets:VAT Receivable:VAT Control (Receivable):Transfers","IA",2100,"Community and public safety / Community and social services / Libraries and Archives",2114,"Community and public safety / Community and social services / Libraries and Archives"," _"," _"," _ "," _ ","_"," _"," _",170,"Current assets / VAT","_","_"," _ "," _ "," _ "," _ "," _ "," _ "," _ "," _ ",1003,"Statutory requirements",1003,"Statutory requirements"," _ "," _ "," _ "," _ ",null," _ "," _ ","_","_","_","_",null,null," _ "," _ "," _ "," _ "," _ "," _ ",880,"Community Assets / Community Facilities / Libraries"," _ ",880,"Community Assets / Community Facilities / Libraries"," _ "," _ "," _ "," _ "," _ "," _ "," _ "," _ "," _ "," _ "," _ "," _ "," _ ",null,"O","_",null,null,4,44,"Community and social services","Libraries and Archives",null,"_","_","_","_","_",0,0,0,0,0,0,0,0,0,0,0,0,0,0]
["O1255-13/IA10375/F13650/X007/R0100/001/CONTRA","O1255-13/IA10375/F13650/X007/R0100/001/CONTRA",328760,47635,"Assets:Current Assets:VAT Receivable:Input Tax Accrual:Recognised","IA",2100,"Community and public safety / Community and social services / Libraries and Archives",2114,"Community and public safety / Community and social services / Libraries and Archives"," _"," _"," _ "," _ ","_"," _"," _",170,"Current assets / VAT","_","_"," _ "," _ "," _ "," _ "," _ "," _ "," _ "," _ ",1003,"Statutory requirements",1003,"Statutory requirements"," _ "," _ "," _ "," _ ",null," _ "," _ ","_","_","_","_",null,null," _ "," _ "," _ "," _ "," _ "," _ "," _ "," _ "," _ "," _ "," _ "," _ "," _ "," _ "," _ "," _ "," _ "," _ "," _ "," _ "," _ "," _ "," _ "," _ ",null,"O","_",null,null,4,44,"Community and social services","Libraries and Archives",null,"_","_","_","_","_",0,0,0,0,0,0,0,0,0,0,0,0,0,0]
["O1264-3/IA10379/F0041/X019/R3650/001/CONTRA","O1264-3/IA10379/F0041/X019/R3650/001/CONTRA",328796,0,"Assets:Current Assets:VAT Receivable:Input Tax General:Transfers","IA",2100,"Community and public safety / Community and social services / Disaster Management",2109,"Community and public safety / Community and social services / Disaster Management"," _"," _"," _ "," _ ","_"," _"," _",170,"Current assets / VAT","_","_"," _ "," _ "," _ "," _ "," _ "," _ "," _ "," _ ",1003,"Statutory requirements",1003,"Statutory requirements"," _ "," _ "," _ "," _ ",null," _ "," _ ","_","_","_","_",null,null," _ "," _ "," _ "," _ "," _ "," _ "," _ "," _ "," _ "," _ "," _ "," _ "," _ "," _ "," _ "," _ "," _ "," _ "," _ "," _ "," _ "," _ "," _ "," _ ",null,"O","_",null,null,4,47,"Community and social services","Disaster Management",null,"_","_","_","_","_",0,0,0,0,0,0,0,0,0,0,0,0,0,0]
["O1273-1/IA10379/F0041/X037/R0100/001/CONTRA","O1273-1/IA10379/F0041/X037/R0100/001/CONTRA",329189,0,"Assets:Current Assets:VAT Receivable:Input Tax General:Transfers","IA",3300,"Economic and environmental services / Environmental protection / Biodiversity and Landscape",3301,"Economic and environmental services / Environmental protection / Biodiversity and Landscape"," _"," _"," _ "," _ ","_"," _"," _",170,"Current assets / VAT","_","_"," _ "," _ "," _ "," _ "," _ "," _ "," _ "," _ ",1003,"Statutory requirements",1003,"Statutory requirements"," _ "," _ "," _ "," _ ",null," _ "," _ ","_","_","_","_",null,null," _ "," _ "," _ "," _ "," _ "," _ "," _ "," _ "," _ "," _ "," _ "," _ "," _ "," _ "," _ "," _ "," _ "," _ "," _ "," _ "," _ "," _ "," _ "," _ ",null,"O","_",null,null,12,121,"Environmental Protection","Biodiversity and Landscape",null,"_","_","_","_","_",0,0,0,0,0,0,0,0,0,0,0,0,0,0]
["O1355-6/IA10375/F0041/X087/R0100/001/CONTRA","O1355-6/IA10375/F0041/X087/R0100/001/CONTRA",329178,0,"Assets:Current Assets:VAT Receivable:Input Tax Accrual:Recognised","IA",5000,"Other / Tourism",5006,"Other / Tourism"," _"," _"," _ "," _ ","_"," _"," _",170,"Current assets / VAT","_","_"," _ "," _ "," _ "," _ "," _ "," _ "," _ "," _ ",1003,"Statutory requirements",1003,"Statutory requirements"," _ "," _ "," _ "," _ ",null," _ "," _ ","_","_","_","_",null,null," _ "," _ "," _ "," _ "," _ "," _ "," _ "," _ "," _ "," _ "," _ "," _ "," _ "," _ "," _ "," _ "," _ "," _ "," _ "," _ "," _ "," _ "," _ "," _ ",null,"O","_",null,null,8,89,"Planning and Development","Tourism",null,"_","_","_","_","_",0,0,0,0,0,0,0,0,0,0,0,0,0,0]
["O1444-13/IL65531/F0041/X044/R3653/001/CONTRA","O1444-13/IL65531/F0041/X044/R3653/001/CONTRA",329021,0,"Liabilities:Current Liabilities:Trade and Other Payable Exchange Transactions:Payables and Accruals : Contractors:Withdrawals","IL",1100,"Municipal governance and administration / Executive and council / Mayor and Council",1110,"Municipal governance and administration / Executive and council / Mayor and Council"," _"," _"," _ "," _ ","_"," _"," _",380,"Current liabilities / Trade and other payables from exchange transactions","_","_"," _ ",200," _ ","CASH FLOW FROM OPERATING ACTIVITIES / Payments / Suppliers and employees"," _ ",450," _ ","Cash Payments by Type / Contracted services","_","_","_","_"," _ "," _ "," _ "," _ ",null," _ "," _ ","_","_","_","_",null,null," _ "," _ "," _ "," _ "," _ "," _ "," _ "," _ "," _ "," _ "," _ "," _ "," _ "," _ "," _ "," _ "," _ "," _ "," _ "," _ ",361,"Trade and other payables / Trade and other payables from exchange transactions",361,"Trade and other payables / Trade and other payables from exchange transactions",null,"O","_",null,null,1,11,"Executive and council","Mayor and Council",null,"_","_","_","_","_",0,0,0,0,0,0,0,0,0,0,0,0,0,0]

{"sheet":"Sheet2","index":1,"n_rows":1,"n_cols":11,"rows_kept":1,"cut":false,"hidden":true,"merged":[]}
["StandardName","Ref","S71_OriginalBudAmount","S71_PriorAdjustedAmount","S71_MultiYearCapAmount","S71_NatOrProvAmnt","S71_OtherAdjustmentsAmount","S71_TotalAdjustmentsAmount","S71_AdjustedBudgetAmount","S71_OY1AdjustedBudgetAmount","S71_OY2AdjustedBudgetAmount"]

{"sheet":"Sheet3","index":2,"n_rows":1,"n_cols":11,"rows_kept":1,"cut":false,"hidden":true,"merged":[]}
["StandardName","Ref","S71_OriginalBudAmount","S71_PriorAdjustedAmount","S71_MultiYearCapAmount","S71_NatOrProvAmnt","S71_OtherAdjustmentsAmount","S71_TotalAdjustmentsAmount","S71_AdjustedBudgetAmount","S71_OY1AdjustedBudgetAmount","S71_OY2AdjustedBudgetAmount"]

{"sheet":"Sheet4","index":3,"n_rows":3,"n_cols":11,"rows_kept":3,"cut":false,"hidden":true,"merged":[]}
["StandardName","Ref","S71_OriginalBudAmount","S71_PriorAdjustedAmount","S71_MultiYearCapAmount","S71_NatOrProvAmnt","S71_OtherAdjustmentsAmount","S71_TotalAdjustmentsAmount","S71_AdjustedBudgetAmount","S71_OY1AdjustedBudgetAmount","S71_OY2AdjustedBudgetAmount"]
[" Municipal Infrastructure Grant (MIG)","_",38910380,0,0,5377559,0,0,44287939,40839550,44177850]
["Municipal Disaster Recovery Grant","_",0,0,0,5181500,0,5181500,5181500,0,0]

{"sheet":"Sheet5","index":4,"n_rows":5,"n_cols":11,"rows_kept":5,"cut":false,"hidden":true,"merged":[]}
["StandardName","Ref","S71_OriginalBudAmount","S71_PriorAdjustedAmount","S71_MultiYearCapAmount","S71_NatOrProvAmnt","S71_OtherAdjustmentsAmount","S71_TotalAdjustmentsAmount","S71_AdjustedBudgetAmount","S71_OY1AdjustedBudgetAmount","S71_OY2AdjustedBudgetAmount"]
["EPWP Incentive","_",1815000,0,0,0,0,0,1815000,0,0]
["Finance Management ","_",1800000,0,0,0,0,0,1800000,1900000,2000000]
["Local Government Equitable Share","_",243588000,0,0,0,0,0,243588000,243355000,237347000]
["Municipal Infrastructure Grant","_",2190620,0,0,0,0,0,2190620,2149450,2325150]

{"sheet":"Sheet6","index":5,"n_rows":1,"n_cols":11,"rows_kept":1,"cut":false,"hidden":true,"merged":[]}
["StandardName","Ref","S71_OriginalBudAmount","S71_PriorAdjustedAmount","S71_MultiYearCapAmount","S71_NatOrProvAmnt","S71_OtherAdjustmentsAmount","S71_TotalAdjustmentsAmount","S71_AdjustedBudgetAmount","S71_OY1AdjustedBudgetAmount","S71_OY2AdjustedBudgetAmount"]

{"sheet":"Sheet7","index":6,"n_rows":1,"n_cols":11,"rows_kept":1,"cut":false,"hidden":true,"merged":[]}
["StandardName","Ref","S71_OriginalBudAmount","S71_PriorAdjustedAmount","S71_MultiYearCapAmount","S71_NatOrProvAmnt","S71_OtherAdjustmentsAmount","S71_TotalAdjustmentsAmount","S71_AdjustedBudgetAmount","S71_OY1AdjustedBudgetAmount","S71_OY2AdjustedBudgetAmount"]

{"sheet":"Sheet8","index":7,"n_rows":1,"n_cols":11,"rows_kept":1,"cut":false,"hidden":true,"merged":[]}
["StandardName","Ref","S71_OriginalBudAmount","S71_PriorAdjustedAmount","S71_MultiYearCapAmount","S71_NatOrProvAmnt","S71_OtherAdjustmentsAmount","S71_TotalAdjustmentsAmount","S71_AdjustedBudgetAmount","S71_OY1AdjustedBudgetAmount","S71_OY2AdjustedBudgetAmount"]

{"sheet":"Sheet9","index":8,"n_rows":2,"n_cols":11,"rows_kept":2,"cut":false,"hidden":true,"merged":[]}
["StandardName","Ref","S71_OriginalBudAmount","S71_PriorAdjustedAmount","S71_MultiYearCapAmount","S71_NatOrProvAmnt","S71_OtherAdjustmentsAmount","S71_TotalAdjustmentsAmount","S71_AdjustedBudgetAmount","S71_OY1AdjustedBudgetAmount","S71_OY2AdjustedBudgetAmount"]
["KwaZulu-Natal_Capacity Building and Other_Specify (Add grant description)_Receipts","_",4619000,0,0,0,0,0,4619000,4933000,5088000]

{"sheet":"Sheet10","index":9,"n_rows":1,"n_cols":11,"rows_kept":1,"cut":false,"hidden":true,"merged":[]}
["StandardName","Ref","S71_OriginalBudAmount","S71_PriorAdjustedAmount","S71_MultiYearCapAmount","S71_NatOrProvAmnt","S71_OtherAdjustmentsAmount","S71_TotalAdjustmentsAmount","S71_AdjustedBudgetAmount","S71_OY1AdjustedBudgetAmount","S71_OY2AdjustedBudgetAmount"]

{"sheet":"Sheet11","index":10,"n_rows":1,"n_cols":11,"rows_kept":1,"cut":false,"hidden":true,"merged":[]}
["StandardName","Ref","S71_OriginalBudAmount","S71_PriorAdjustedAmount","S71_MultiYearCapAmount","S71_NatOrProvAmnt","S71_OtherAdjustmentsAmount","S71_TotalAdjustmentsAmount","S71_AdjustedBudgetAmount","S71_OY1AdjustedBudgetAmount","S71_OY2AdjustedBudgetAmount"]

{"sheet":"Sheet12","index":11,"n_rows":3,"n_cols":11,"rows_kept":3,"cut":false,"hidden":true,"merged":[]}
["StandardName","Ref","S71_OriginalBudAmount","S71_PriorAdjustedAmount","S71_MultiYearCapAmount","S71_NatOrProvAmnt","S71_OtherAdjustmentsAmount","S71_TotalAdjustmentsAmount","S71_AdjustedBudgetAmount","S71_OY1AdjustedBudgetAmount","S71_OY2AdjustedBudgetAmount"]
["Municipal Infrastructure Grant","_",38910380,0,0,0,0,0,44287939,40839550,44177850]
["Municipal Disaster Recovery Grant","_",0,0,0,0,0,0,2283500,0,0]

{"sheet":"Sheet13","index":12,"n_rows":4,"n_cols":11,"rows_kept":4,"cut":false,"hidden":true,"merged":[]}
["StandardName","Ref","S71_OriginalBudAmount","S71_PriorAdjustedAmount","S71_MultiYearCapAmount","S71_NatOrProvAmnt","S71_OtherAdjustmentsAmount","S71_TotalAdjustmentsAmount","S71_AdjustedBudgetAmount","S71_OY1AdjustedBudgetAmount","S71_OY2AdjustedBudgetAmount"]
["Expanded Public Works Programme Integrated Grant","_",1815000,0,0,0,0,0,1815000,0,0]
["Local Government Financial Management Grant","_",1800000,0,0,0,0,0,1800000,1900000,2000000]
["Municipal Infrastructure Grant","_",2190620,0,0,0,0,0,2190620,2149450,2325150]

{"sheet":"Sheet14","index":13,"n_rows":1,"n_cols":11,"rows_kept":1,"cut":false,"hidden":true,"merged":[]}
["StandardName","Ref","S71_OriginalBudAmount","S71_PriorAdjustedAmount","S71_MultiYearCapAmount","S71_NatOrProvAmnt","S71_OtherAdjustmentsAmount","S71_TotalAdjustmentsAmount","S71_AdjustedBudgetAmount","S71_OY1AdjustedBudgetAmount","S71_OY2AdjustedBudgetAmount"]

{"sheet":"Sheet15","index":14,"n_rows":1,"n_cols":11,"rows_kept":1,"cut":false,"hidden":true,"merged":[]}
["StandardName","Ref","S71_OriginalBudAmount","S71_PriorAdjustedAmount","S71_MultiYearCapAmount","S71_NatOrProvAmnt","S71_OtherAdjustmentsAmount","S71_TotalAdjustmentsAmount","S71_AdjustedBudgetAmount","S71_OY1AdjustedBudgetAmount","S71_OY2AdjustedBudgetAmount"]

{"sheet":"Sheet16","index":15,"n_rows":1,"n_cols":11,"rows_kept":1,"cut":false,"hidden":true,"merged":[]}
["StandardName","Ref","S71_OriginalBudAmount","S71_PriorAdjustedAmount","S71_MultiYearCapAmount","S71_NatOrProvAmnt","S71_OtherAdjustmentsAmount","S71_TotalAdjustmentsAmount","S71_AdjustedBudgetAmount","S71_OY1AdjustedBudgetAmount","S71_OY2AdjustedBudgetAmount"]

{"sheet":"Sheet17","index":16,"n_rows":1,"n_cols":11,"rows_kept":1,"cut":false,"hidden":true,"merged":[]}
["StandardName","Ref","S71_OriginalBudAmount","S71_PriorAdjustedAmount","S71_MultiYearCapAmount","S71_NatOrProvAmnt","S71_OtherAdjustmentsAmount","S71_TotalAdjustmentsAmount","S71_AdjustedBudgetAmount","S71_OY1AdjustedBudgetAmount","S71_OY2AdjustedBudgetAmount"]

{"sheet":"Sheet18","index":17,"n_rows":134,"n_cols":18,"rows_kept":134,"cut":false,"hidden":true,"merged":[]}
["Function","ProjectDescription","ProjectNumber","Type","MTSFServiceOutcome","IUDF","OwnStrategicObjective","AssetClass","AssetSubClass","WardLocation","GPSLongitude","GPSLatitude","S71_ASBudgetAmount","S71_AdjustmentBudAmnt","S71_OY1BudgetAmount","S71_OY1AdjustmentBudAmnt","S71_OY2BudgetAmount","S71_OY2AdjustmentBudAmnt"]
["028ec562-fa32-4462-9c8f-90ca38ed33ae","Procurement of 30 new skips","PC001002002004000000000000000000000000_00001","_","An efficient, competitive and responsive economic infrastructure network","Growth","Procurement of 20 new skips","Solid Waste Infrastructure","Waste Drop-off Points","d4a7a8a1-43a6-4de9-8ec0-e5027c88d37e",31.689443588256836,29.268054962158203,6240000,0,0,0,0,0]
["028ec562-fa32-4462-9c8f-90ca38ed33ae","RECYCLING PROGRAMME","PC002003009000000000000000000000000000_00035","_","An efficient, effective and development-oriented public service","Growth","Ensure that our people have access to community facilities","Machinery and Equipment","Machinery and Equipment","d4a7a8a1-43a6-4de9-8ec0-e5027c88d37e",32.900001525878906,29.399999618530273,2295652,0,0,0,0,0]
["0f52d9e5-907f-4d9f-934f-57dc012524d6","Office Equipment - Corp and Furniture","PC002003005000000000000000000000000000_00005","_","An efficient, effective and development-oriented public service","Growth","Maintain and improve municipal buildings and assets.","Furniture and Office Equipment","Furniture and Office Equipment","e92cc59b-4a01-4ee2-b6fc-84d252b20fac",31.689443588256836,29.268054962158203,2434788,0,0,0,0,0]
["0f6032ee-c792-4735-aef9-9bdf01ab5d0c","ICT Equipment Library","PC002003004000000000000000000000000000_00011","_","An efficient, effective and development-oriented public service","Growth","Ensure that our people have access to community facilities","Computer Equipment","Computer Equipment","d4a7a8a1-43a6-4de9-8ec0-e5027c88d37e",32,29,208704,0,0,0,0,0]
["0f6032ee-c792-4735-aef9-9bdf01ab5d0c","Procurement of library furniture ","PC002003005000000000000000000000000000_00002","_","An efficient, effective and development-oriented public service","Growth","Aspire to a healthy, safe and crime free area","Furniture and Office Equipment","Furniture and Office Equipment","e92cc59b-4a01-4ee2-b6fc-84d252b20fac",31.689443588256836,29.268054962158203,521720,0,0,0,0,0]
["0f6032ee-c792-4735-aef9-9bdf01ab5d0c","Procurement of Solar energy power with invetors","PC002003009000000000000000000000000000_00040","_","An efficient, effective and development-oriented public service","Growth","Ensure that our people have access to community facilities","Machinery and Equipment","Machinery and Equipment","e92cc59b-4a01-4ee2-b6fc-84d252b20fac",1,1,1391304,0,0,0,0,0]
["0f6032ee-c792-4735-aef9-9bdf01ab5d0c","SOLAR GENERATOR (Mobile Library)","PC002003009000000000000000000000000000_00040","_","An efficient, effective and development-oriented public service","Growth","Provide and maintain Library services","Machinery and Equipment","Machinery and Equipment","d4a7a8a1-43a6-4de9-8ec0-e5027c88d37e",39.5,29.399999618530273,1043476,0,0,0,0,0]
["0f6032ee-c792-4735-aef9-9bdf01ab5d0c","Sundumbili & Isithebe Toilets","PC001002005005000000000000000000000000_00002","_","An efficient, competitive and responsive economic infrastructure network","Growth","Ensure that our people have access to community facilities","Sanitation Infrastructure","Toilet Facilities","ebcb7441-9e89-4ea6-b2ba-e8d6cd979b22",1,1,145128,0,0,0,0,0]
["15e7fc9a-7613-41bd-b0e9-57024945d7d9"," Feasibility Study for DLTC Trading  Facilities ","PC002003002001018000000000000000000000_00006","_","An efficient, effective and development-oriented public service","Growth","Facilitating the creation of employment opportunities for skilled and employable people","Community Facilities","Stalls","4493efed-d44b-472e-b666-926b1c994c63",1,1,0,0,12173916,12173916,0,0]
["15e7fc9a-7613-41bd-b0e9-57024945d7d9","4 X 4 Double Cab Bakkie Vehicle (PMU)","PC002003010000000000000000000000000000_00022","_","An efficient, effective and development-oriented public service","Growth","To improve access to all basic services","Transport Assets","Transport Assets","d4a7a8a1-43a6-4de9-8ec0-e5027c88d37e",39.5,29.399999618530273,2156520,0,0,0,0,0]
["15e7fc9a-7613-41bd-b0e9-57024945d7d9","Cemetery Development, Fencing and Guard house WARD 4","PC002003002001011000000000000000000000_00002","_","An efficient, effective and development-oriented public service","Growth","To improve access to all basic services","Community Facilities","Cemeteries/Crematoria","06d456ba-b774-4d48-9f41-061c061426a3",1,1,8695652,0,8695652,8695652,0,0]
["15e7fc9a-7613-41bd-b0e9-57024945d7d9","Designs for Phase 1 construction of emergency center","PC002003002001002000000000000000000000_00004","_","An efficient, effective and development-oriented public service","Growth","Ensure that our people have access to community facilities","Community Facilities","Centres","4493efed-d44b-472e-b666-926b1c994c63",1,1,1739132,0,12173912,12173912,0,0]
["15e7fc9a-7613-41bd-b0e9-57024945d7d9","Establishment of public safety centre","PC002003002001002000000000000000000000_00001","_","An efficient, effective and development-oriented public service","Growth","Establishment of Driving License Testing Centre.","Community Facilities","Centres","d4a7a8a1-43a6-4de9-8ec0-e5027c88d37e",31.689443588256836,29.268054962158203,3895528,0,0,0,0,0]
["15e7fc9a-7613-41bd-b0e9-57024945d7d9","Procurement of Water Tanks for Municipal Offices","PC002003003001001000000000000000000000_00004","_","An efficient, effective and development-oriented public service","Growth","To improve access to all basic services","Operational Buildings","Municipal Offices","d4a7a8a1-43a6-4de9-8ec0-e5027c88d37e",1,1,1739132,0,0,0,0,0]
["15e7fc9a-7613-41bd-b0e9-57024945d7d9","Support for Youth Enterprise Park ","PC002003002001013000000000000000000000_00001","_","An efficient, effective and development-oriented public service","Growth","Ensure that our people have access to community facilities and services","Community Facilities","Parks","42093ebf-0032-4a12-b64e-8f176c305d4c",1,1,695652,0,0,0,0,0]
["1798dfcb-6d28-419a-9c01-c501c9cb9e41","Procurement of 3 Rescue Boats","PC002003009000000000000000000000000000_00031","_","An efficient, effective and development-oriented public service","Growth","Ensure that our people have access to community facilities and services","Machinery and Equipment","Machinery and Equipment","d4a7a8a1-43a6-4de9-8ec0-e5027c88d37e",32.900001525878906,29.399999618530273,626080,0,0,0,0,0]
["1798dfcb-6d28-419a-9c01-c501c9cb9e41","Sports and recreation facilities","PC001002008005000000000000000000000000_00001","_","An efficient, competitive and responsive economic infrastructure network","Growth","Procurement of Coastal management equipment","Coastal Infrastructure","Capital Spares","d4a7a8a1-43a6-4de9-8ec0-e5027c88d37e",31.689443588256836,29.268054962158203,382400,0,0,0,0,0]
["315a0f4d-28ad-4cd2-a4a5-afb34a6a8e1f","Procurement of plant and equipment","PC002003009000000000000000000000000000_00028","_","An efficient, effective and development-oriented public service","Growth","Greening of open spaces and Municipal facilities","Machinery and Equipment","Machinery and Equipment","d4a7a8a1-43a6-4de9-8ec0-e5027c88d37e",31.689443588256836,29.268054962158203,632640,0,0,0,0,0]
["35f914ed-b099-4a36-890d-69e60fc0e57c","Construction of a Soccer Field and Combo Court in Khenana Township","PC002003002002002000000000000000000000_00013","_","A long and healthy life for all South Africans","Growth","Maintain and improve municipal buildings and assets.","Sport and Recreation Facilities","Outdoor Facilities","056928e7-26c8-40bd-94a6-94e379710f4c",1,1,24558468,0,0,0,0,0]
["35f914ed-b099-4a36-890d-69e60fc0e57c","Construction of a Sportsfield in Ward 1, Mandeni","PC002003002002002000000000000000000000_00014","_","A long and healthy life for all South Africans","Growth","Maintain and improve municipal buildings and assets.","Sport and Recreation Facilities","Outdoor Facilities","2fbc6cca-e864-427f-94cc-61f7ebbb5a7e",1,1,1043480,0,0,0,0,0]
["35f914ed-b099-4a36-890d-69e60fc0e57c","Construction of a Sportsfield in Ward 2","PC002003002002002000000000000000000000_00012","_","A long and healthy life for all South Africans","Growth","Maintain and improve municipal buildings and assets.","Sport and Recreation Facilities","Outdoor Facilities","f2aed61b-4d45-4318-9eb7-4217cd40e28b",1,1,1043480,0,0,0,0,0]
["35f914ed-b099-4a36-890d-69e60fc0e57c","Construction of Hlomendlini Sportsfield and Combo Court in Ward 4","PC002003002002002000000000000000000000_00013","_","A long and healthy life for all South Africans","Growth","To improve access to all basic services","Sport and Recreation Facilities","Outdoor Facilities","06d456ba-b774-4d48-9f41-061c061426a3",1,1,8461812,0,0,0,0,0]
["35f914ed-b099-4a36-890d-69e60fc0e57c","Construction of Sportsfield, Combo Court and Outdoor Gym in Khenana, Ward 10","PC002003002002002000000000000000000000_00014","_","A long and healthy life for all South Africans","Growth","To improve access to all basic services","Sport and Recreation Facilities","Outdoor Facilities","056928e7-26c8-40bd-94a6-94e379710f4c",1,1,1043480,0,0,0,0,0]
["5efb28bb-c786-49af-8a50-44a8b229bf7f","Khenana High Mask lights ","PC001001002001002000000000000000000000_00002","_","An efficient, competitive and responsive economic infrastructure network","Inclusion and access","To improve access to all basic services",null,null,"d2ee4229-b791-4b69-8bef-e9024666931e",34.599998474121094,29.200000762939453,429970,0,0,0,0,0]
["5efb28bb-c786-49af-8a50-44a8b229bf7f","Khenana High Mask lights ","PC001001002001002000000000000000000000_00002","_","An efficient, competitive and responsive economic infrastructure network","Inclusion and access","To improve access to all basic services","Electrical Infrastructure","HV Substations","d2ee4229-b791-4b69-8bef-e9024666931e",34.599998474121094,29.200000762939453,1719880,0,0,0,0,0]
["5efb28bb-c786-49af-8a50-44a8b229bf7f","Procurement and Installation of Hight Mast for Municipal Main office","PC001002001003000000000000000000000000_00001","_","An efficient, competitive and responsive economic infrastructure network","Growth","To improve access to basic services","Electrical Infrastructure","HV Switching Station","4493efed-d44b-472e-b666-926b1c994c63",1,1,1043480,0,0,0,0,0]
["67347610-1db2-421f-a89a-f87e772911eb","4 X 4 2.4 Single Cab Bakkie Vehicle( traffic club bakkie)","PC002003010000000000000000000000000000_00021","_","An efficient, effective and development-oriented public service","Growth","Ensure that our people have access to community facilities and services","Transport Assets","Transport Assets","d4a7a8a1-43a6-4de9-8ec0-e5027c88d37e",39.5,29.399999618530273,7819488,0,0,0,0,0]
["67347610-1db2-421f-a89a-f87e772911eb","Construction of Life guard house and IRQ Boat Storage Tugela Mouth Ward 2","PC002003003001005000000000000000000000_00001","_","An efficient, effective and development-oriented public service","Growth","Ensure that our people have access to community facilities and services","Operational Buildings","Yards","d4a7a8a1-43a6-4de9-8ec0-e5027c88d37e",39.5,29.399999618530273,1739132,0,0,0,0,0]
["6fa14a15-a164-42cb-a263-a0b007852bc5","Construction of a Community Hall in Khenana Township, Ward 10","PC002003002001001000000000000000000000_00007","_","An efficient, effective and development-oriented public service","Growth","Maintain and improve municipal buildings and assets.","Community Facilities","Halls","056928e7-26c8-40bd-94a6-94e379710f4c",1,1,1043480,0,0,0,0,0]
["6fa14a15-a164-42cb-a263-a0b007852bc5","Construction of a Community Hall In Ward 12","PC002003002001001000000000000000000000_00010","_","An efficient, effective and development-oriented public service","Growth","To improve access to all basic services","Community Facilities","Halls","37018965-51aa-436b-b26b-dd0148d07151",1,1,869564,0,0,0,0,0]
["6fa14a15-a164-42cb-a263-a0b007852bc5","Construction of a Community Hall in Ward 8","PC002003002001001000000000000000000000_00007","_","An efficient, effective and development-oriented public service","Growth","To improve access to all basic services","Community Facilities","Halls","db0f19aa-dfc4-4e1c-858f-708b2b576585",1,1,2086956,0,0,0,0,0]
["6fa14a15-a164-42cb-a263-a0b007852bc5","Construction of community hall in ward 11","PC002003002001001000000000000000000000_00011","_","An efficient, effective and development-oriented public service","Growth","To improve access to all basic services","Community Facilities","Halls","4340367f-2056-4cab-b1e8-0e66f51e00a2",1,1,869564,0,0,0,0,0]
["6fa14a15-a164-42cb-a263-a0b007852bc5","Construction of Community Hall In Ward 16","PC002003002001001000000000000000000000_00013","_","An efficient, effective and development-oriented public service","Growth","To improve access to all basic services","Community Facilities","Halls","19a00642-6874-4556-bf0c-3d1f36c23f9b",1,1,869564,0,0,0,0,0]
["6fa14a15-a164-42cb-a263-a0b007852bc5","Construction Of Community Hall In Ward 6","PC002003002001001000000000000000000000_00009","_","An efficient, effective and development-oriented public service","Growth","To improve access to all basic services","Community Facilities","Halls","f47483eb-3b21-454e-bf9d-2da9516d6a20",1,1,869564,0,0,0,0,0]
["6fa14a15-a164-42cb-a263-a0b007852bc5","Construction of Community Hall in Ward 9","PC002003002001001000000000000000000000_00014","_","An efficient, effective and development-oriented public service","Growth","Ensure that our people have access to community facilities","Community Facilities","Halls","7fff87b9-fe57-48ad-aded-f30be334f6c2",1,1,869564,0,0,0,0,0]
["6fa14a15-a164-42cb-a263-a0b007852bc5","Procurement of essential office equipment (projector, binder, shredder)","PC002003005000000000000000000000000000_00019","_","An efficient, effective and development-oriented public service","Growth","Ensure that our people have access to community facilities and services","Furniture and Office Equipment","Furniture and Office Equipment","e92cc59b-4a01-4ee2-b6fc-84d252b20fac",1,1,1495652,0,0,0,0,0]
["6fa14a15-a164-42cb-a263-a0b007852bc5","PROCUREMENT OF RIDE ON MOWER","PC002003009000000000000000000000000000_00014","_","An efficient, effective and development-oriented public service","Growth","Expansion of Government-led job creation Programmes","Machinery and Equipment","Machinery and Equipment","d4a7a8a1-43a6-4de9-8ec0-e5027c88d37e",32,29,399800,0,0,0,0,0]
["6fa14a15-a164-42cb-a263-a0b007852bc5","Procurement of Security Guardhouse for municipal facilities","PC002003003001001000000000000000000000_00006","_","An efficient, effective and development-oriented public service","Growth","Ensure that our people have access to community facilities","Operational Buildings","Municipal Offices","d4a7a8a1-43a6-4de9-8ec0-e5027c88d37e",1,1,2067132,0,0,0,0,0]
["73e301d2-83cd-4a9c-a2e5-540f32ffda98","LCD Screen for communication & information (WALKIE TAKKIE)","PC002003005000000000000000000000000000_00021","_","An efficient, effective and development-oriented public service","Growth","Ensure that our people have access to community facilities and services","Furniture and Office Equipment","Furniture and Office Equipment","d4a7a8a1-43a6-4de9-8ec0-e5027c88d37e",1,1,695652,0,0,0,0,0]
["73e301d2-83cd-4a9c-a2e5-540f32ffda98","Procurement of four hand guns","PC002003005000000000000000000000000000_00020","_","An efficient, effective and development-oriented public service","Growth","Ensure that our people have access to community facilities and services","Furniture and Office Equipment","Furniture and Office Equipment","d4a7a8a1-43a6-4de9-8ec0-e5027c88d37e",1,1,278260,0,0,0,0,0]
["73e301d2-83cd-4a9c-a2e5-540f32ffda98","Voice logging system for emergency calls","PC002003004000000000000000000000000000_00013","_","An efficient, effective and development-oriented public service","Growth","Ensure that our people have access to community facilities","Computer Equipment","Computer Equipment","d4a7a8a1-43a6-4de9-8ec0-e5027c88d37e",1,1,695652,0,0,0,0,0]
["883643f9-8ff9-482c-9c37-1e3cfdbb22ec","Construction of  craft Stalls ","PC002002001002001018000000000000000000_00002","_","An efficient, effective and development-oriented public service","Inclusion and access","Promoting SMME, Entrepreneurial and Youth Development",null,null,"056928e7-26c8-40bd-94a6-94e379710f4c",32.599998474121094,29.299999237060547,869566,0,0,0,0,0]
["883643f9-8ff9-482c-9c37-1e3cfdbb22ec","Construction of  craft Stalls ","PC002002001002001018000000000000000000_00002","_","An efficient, effective and development-oriented public service","Inclusion and access","Promoting SMME, Entrepreneurial and Youth Development","Community Facilities","Stalls","056928e7-26c8-40bd-94a6-94e379710f4c",32.599998474121094,29.299999237060547,3478264,0,0,0,0,0]
["89aa6d98-8ca6-4416-8143-f6f22ef86160","Stores Equipment","PC002003005000000000000000000000000000_00022","_","An efficient, effective and development-oriented public service","Growth","Ensure that the municipality acquires goods and services in terms of supply chain regulation","Furniture and Office Equipment","Furniture and Office Equipment","e92cc59b-4a01-4ee2-b6fc-84d252b20fac",1,1,278260,0,0,0,0,0]
["92aebb43-91da-45ab-a98d-95be1511fb78","KZN291-Procurement of Library Computers","PC002003004000000000000000000000000000_00006","_","An efficient, effective and development-oriented public service","Growth","Provide and maintain Library services","Computer Equipment","Computer Equipment","d4a7a8a1-43a6-4de9-8ec0-e5027c88d37e",1,1,1044268,0,0,0,0,0]
["a547e78a-9504-4d9a-bcea-6dc723b7bf4a","Twoway Radio for Traffic Unit","PC002003009000000000000000000000000000_00020","_","An efficient, effective and development-oriented public service","Growth","Aspire to a healthy, safe and crime free area","Machinery and Equipment","Machinery and Equipment","d4a7a8a1-43a6-4de9-8ec0-e5027c88d37e",1,1,1739132,0,0,0,0,0]
["ae6e3e7b-6b9a-4f93-b173-d5779fd6811c","Billboard structure for outdoor Adevertisng","PC001002006003000000000000000000000000_00003","_","An efficient, competitive and responsive economic infrastructure network","Growth","To improve access to all basic services","Roads Infrastructure","Road Furniture","4493efed-d44b-472e-b666-926b1c994c63",1,1,1043480,0,0,0,0,0]
["be26bea6-58e3-4497-b52c-0bf597208207","Building maintenance double cab 4x4 ","PC002003010000000000000000000000000000_00020","_","An efficient, effective and development-oriented public service","Growth","To improve access to all basic services","Transport Assets","Transport Assets","d4a7a8a1-43a6-4de9-8ec0-e5027c88d37e",1,1,2782608,0,0,0,0,0]
["be26bea6-58e3-4497-b52c-0bf597208207","Contruction of pedestrian bridges in various wards","PC001002006002000000000000000000000000_00001","_","An efficient, competitive and responsive economic infrastructure network","Growth","To improve access to all basic services","Roads Infrastructure","Road Structures","d4a7a8a1-43a6-4de9-8ec0-e5027c88d37e",0,0,3478260,0,6956520,6956520,0,0]
["be26bea6-58e3-4497-b52c-0bf597208207","COVID 19 PROJECTS TECHNICAL","PC002003009000000000000000000000000000_00018","_","An efficient, effective and development-oriented public service","Growth","Ensure an intergrated and aligned development planning","Machinery and Equipment","Machinery and Equipment","d4a7a8a1-43a6-4de9-8ec0-e5027c88d37e",32,29,2782608,0,0,0,0,0]
["be26bea6-58e3-4497-b52c-0bf597208207","Extension of 2 Kingfisher Road","PC001002006001000000000000000000000000_00007","_","An efficient, competitive and responsive economic infrastructure network","Growth","To improve access to all basic services","Roads Infrastructure","Roads","4493efed-d44b-472e-b666-926b1c994c63",1,1,7908012,0,8000000,8000000,0,0]
["be26bea6-58e3-4497-b52c-0bf597208207","Greening of open spaces and Municipal facilities ","PC001001002006003000000000000000000000_00002","_","An efficient, competitive and responsive economic infrastructure network","Inclusion and access","Greening of open spaces and Municipal facilities",null,null,"d4a7a8a1-43a6-4de9-8ec0-e5027c88d37e",31.689443588256836,29.268054962158203,887489,0,0,0,0,0]
["be26bea6-58e3-4497-b52c-0bf597208207","Greening of open spaces and Municipal facilities ","PC001001002006003000000000000000000000_00002","_","An efficient, competitive and responsive economic infrastructure network","Inclusion and access","Greening of open spaces and Municipal facilities","Roads Infrastructure","Road Furniture","d4a7a8a1-43a6-4de9-8ec0-e5027c88d37e",31.689443588256836,29.268054962158203,3549956,0,0,0,0,0]
["be26bea6-58e3-4497-b52c-0bf597208207","Intersection Side walks Ward 7","PC001002006003000000000000000000000000_00005","_","An efficient, competitive and responsive economic infrastructure network","Growth","To improve access to basic services","Roads Infrastructure","Road Furniture","42093ebf-0032-4a12-b64e-8f176c305d4c",1,1,816680,0,0,0,0,0]
["be26bea6-58e3-4497-b52c-0bf597208207","Nyoni Taxi Route Phase 4","PC001002006001000000000000000000000000_00010","_","An efficient, competitive and responsive economic infrastructure network","Growth","To improve access to all basic services","Roads Infrastructure","Roads","056928e7-26c8-40bd-94a6-94e379710f4c",32,29,9283868,0,0,0,0,0]
["be26bea6-58e3-4497-b52c-0bf597208207","Procurement of 30 ton Crane truck 14 T  6x4","PC002003010000000000000000000000000000_00019","_","An efficient, effective and development-oriented public service","Growth","To improve access to all basic services","Transport Assets","Transport Assets","d4a7a8a1-43a6-4de9-8ec0-e5027c88d37e",1,1,12173912,0,0,0,0,0]
["be26bea6-58e3-4497-b52c-0bf597208207","Regravelling  Ward 10 Dabedabe Road","PC001001002006001000000000000000000000_00030","_","An efficient, competitive and responsive economic infrastructure network","Inclusion and access","To improve access to all basic services",null,null,"056928e7-26c8-40bd-94a6-94e379710f4c",1,1,1739130,0,0,0,0,0]
["be26bea6-58e3-4497-b52c-0bf597208207","Regravelling  Ward 10 Dabedabe Road","PC001001002006001000000000000000000000_00030","_","An efficient, competitive and responsive economic infrastructure network","Inclusion and access","To improve access to all basic services","Roads Infrastructure","Roads","056928e7-26c8-40bd-94a6-94e379710f4c",1,1,6956520,0,0,0,0,0]
["be26bea6-58e3-4497-b52c-0bf597208207","Regravelling of Ward 1 - D888 to KwaMnguni store","PC001001001006001000000000000000000000_00022","_","An efficient, competitive and responsive economic infrastructure network","Inclusion and access","To improve access to all basic services",null,null,"2fbc6cca-e864-427f-94cc-61f7ebbb5a7e",1,1,1739130,0,0,0,0,0]
["be26bea6-58e3-4497-b52c-0bf597208207","Regravelling of Ward 1 - D888 to KwaMnguni store","PC001001001006001000000000000000000000_00022","_","An efficient, competitive and responsive economic infrastructure network","Inclusion and access","To improve access to all basic services","Roads Infrastructure","Roads","2fbc6cca-e864-427f-94cc-61f7ebbb5a7e",1,1,6956520,0,0,0,0,0]
["be26bea6-58e3-4497-b52c-0bf597208207","Regravelling Of Ward 12 Road ","PC001001001006001000000000000000000000_00031","_","An efficient, competitive and responsive economic infrastructure network","Inclusion and access","To improve access to all basic services",null,null,"37018965-51aa-436b-b26b-dd0148d07151",1,1,1739130,0,0,0,0,0]
["be26bea6-58e3-4497-b52c-0bf597208207","Regravelling Of Ward 12 Road ","PC001001001006001000000000000000000000_00031","_","An efficient, competitive and responsive economic infrastructure network","Inclusion and access","To improve access to all basic services","Roads Infrastructure","Roads","37018965-51aa-436b-b26b-dd0148d07151",1,1,6956520,0,0,0,0,0]
["be26bea6-58e3-4497-b52c-0bf597208207","Regravelling of Ward 3 - Carwash P415 to N2 tunnel bridge","PC001001001006001000000000000000000000_00030","_","An efficient, competitive and responsive economic infrastructure network","Inclusion and access","To improve access to all basic services",null,null,"4493efed-d44b-472e-b666-926b1c994c63",0,0,1739130,0,0,0,0,0]
["be26bea6-58e3-4497-b52c-0bf597208207","Regravelling of Ward 3 - Carwash P415 to N2 tunnel bridge","PC001001001006001000000000000000000000_00030","_","An efficient, competitive and responsive economic infrastructure network","Inclusion and access","To improve access to all basic services","Roads Infrastructure","Roads","4493efed-d44b-472e-b666-926b1c994c63",0,0,6956520,0,0,0,0,0]
["be26bea6-58e3-4497-b52c-0bf597208207","Regravelling of Ward 4 - Masinga Road","PC001001001006001000000000000000000000_00023","_","An efficient, competitive and responsive economic infrastructure network","Inclusion and access","To improve access to all basic services",null,null,"06d456ba-b774-4d48-9f41-061c061426a3",0,0,1739130,0,0,0,0,0]
["be26bea6-58e3-4497-b52c-0bf597208207","Regravelling of Ward 4 - Masinga Road","PC001001001006001000000000000000000000_00023","_","An efficient, competitive and responsive economic infrastructure network","Inclusion and access","To improve access to all basic services","Roads Infrastructure","Roads","06d456ba-b774-4d48-9f41-061c061426a3",0,0,6956520,0,0,0,0,0]
["be26bea6-58e3-4497-b52c-0bf597208207","Regravelling of Ward 5 - Esamaqamu to Mgizimba","PC001001002006001000000000000000000000_00029","_","An efficient, competitive and responsive economic infrastructure network","Inclusion and access","To improve access to all basic services",null,null,"fb7c30b1-9045-42fe-bfc3-23888c40e6ec",1,1,1739130,0,0,0,0,0]
["be26bea6-58e3-4497-b52c-0bf597208207","Regravelling of Ward 5 - Esamaqamu to Mgizimba","PC001001002006001000000000000000000000_00029","_","An efficient, competitive and responsive economic infrastructure network","Inclusion and access","To improve access to all basic services","Roads Infrastructure","Roads","fb7c30b1-9045-42fe-bfc3-23888c40e6ec",1,1,6956520,0,0,0,0,0]
["be26bea6-58e3-4497-b52c-0bf597208207","Regravelling of Ward 8 - Maqina road","PC001001001006001000000000000000000000_00021","_","An efficient, competitive and responsive economic infrastructure network","Inclusion and access","To improve access to all basic services",null,null,"db0f19aa-dfc4-4e1c-858f-708b2b576585",1,1,1739130,0,0,0,0,0]
["be26bea6-58e3-4497-b52c-0bf597208207","Regravelling of Ward 8 - Maqina road","PC001001001006001000000000000000000000_00021","_","An efficient, competitive and responsive economic infrastructure network","Inclusion and access","To improve access to all basic services","Roads Infrastructure","Roads","db0f19aa-dfc4-4e1c-858f-708b2b576585",1,1,6956520,0,0,0,0,0]
["be26bea6-58e3-4497-b52c-0bf597208207","Regravelling Road Ward 7 - Shayamoya Road","PC001001001006001000000000000000000000_00025","_","An efficient, competitive and responsive economic infrastructure network","Inclusion and access","To improve access to all basic services",null,null,"42093ebf-0032-4a12-b64e-8f176c305d4c",1,1,1739130,0,0,0,0,0]
["be26bea6-58e3-4497-b52c-0bf597208207","Regravelling Road Ward 7 - Shayamoya Road","PC001001001006001000000000000000000000_00025","_","An efficient, competitive and responsive economic infrastructure network","Inclusion and access","To improve access to all basic services","Roads Infrastructure","Roads","42093ebf-0032-4a12-b64e-8f176c305d4c",1,1,6956520,0,0,0,0,0]
["be26bea6-58e3-4497-b52c-0bf597208207","Regravelling Ward 11 - KwaNgcobo estobhini to KwaMwandla","PC001001001006001000000000000000000000_00014","_","An efficient, competitive and responsive economic infrastructure network","Inclusion and access","To improve access to all basic services",null,null,"4340367f-2056-4cab-b1e8-0e66f51e00a2",1,1,1739130,0,0,0,0,0]
["be26bea6-58e3-4497-b52c-0bf597208207","Regravelling Ward 11 - KwaNgcobo estobhini to KwaMwandla","PC001001001006001000000000000000000000_00014","_","An efficient, competitive and responsive economic infrastructure network","Inclusion and access","To improve access to all basic services","Roads Infrastructure","Roads","4340367f-2056-4cab-b1e8-0e66f51e00a2",1,1,6956520,0,0,0,0,0]
["be26bea6-58e3-4497-b52c-0bf597208207","Regravelling Ward 15 - Kwamjulelwa to eziMpohlweni","PC001001001006001000000000000000000000_00015","_","An efficient, competitive and responsive economic infrastructure network","Inclusion and access","To improve access to all basic services",null,null,"6e379a53-67dc-45eb-a573-8f733e1775f0",0,0,1739130,0,0,0,0,0]
["be26bea6-58e3-4497-b52c-0bf597208207","Regravelling Ward 15 - Kwamjulelwa to eziMpohlweni","PC001001001006001000000000000000000000_00015","_","An efficient, competitive and responsive economic infrastructure network","Inclusion and access","To improve access to all basic services","Roads Infrastructure","Roads","6e379a53-67dc-45eb-a573-8f733e1775f0",0,0,6956520,0,0,0,0,0]
["be26bea6-58e3-4497-b52c-0bf597208207","Regravelling Ward 16 - KwaMathonsi estobini to KwaMthembu estobhini","PC001001001006001000000000000000000000_00016","_","An efficient, competitive and responsive economic infrastructure network","Inclusion and access","To improve access to all basic services",null,null,"19a00642-6874-4556-bf0c-3d1f36c23f9b",0,0,1739130,0,0,0,0,0]
["be26bea6-58e3-4497-b52c-0bf597208207","Regravelling Ward 16 - KwaMathonsi estobini to KwaMthembu estobhini","PC001001001006001000000000000000000000_00016","_","An efficient, competitive and responsive economic infrastructure network","Inclusion and access","To improve access to all basic services","Roads Infrastructure","Roads","19a00642-6874-4556-bf0c-3d1f36c23f9b",0,0,6956520,0,0,0,0,0]
["be26bea6-58e3-4497-b52c-0bf597208207","Regravelling Ward 17 - Ezimangweni to Okhalweni","PC001001001006001000000000000000000000_00019","_","An efficient, competitive and responsive economic infrastructure network","Inclusion and access","To improve access to all basic services",null,null,"e20d9bac-1e1f-4312-a8fe-7ba8ce0ee98c",0,0,1739130,0,0,0,0,0]
["be26bea6-58e3-4497-b52c-0bf597208207","Regravelling Ward 17 - Ezimangweni to Okhalweni","PC001001001006001000000000000000000000_00019","_","An efficient, competitive and responsive economic infrastructure network","Inclusion and access","To improve access to all basic services","Roads Infrastructure","Roads","e20d9bac-1e1f-4312-a8fe-7ba8ce0ee98c",0,0,6956520,0,0,0,0,0]
["be26bea6-58e3-4497-b52c-0bf597208207","Regravelling Ward 18 road - Sithebe library to Othini area","PC001001001006001000000000000000000000_00020","_","An efficient, competitive and responsive economic infrastructure network","Inclusion and access","To improve access to all basic services",null,null,"449ea53a-fa5c-4588-b854-8433145fff45",1,1,1739130,0,0,0,0,0]
["be26bea6-58e3-4497-b52c-0bf597208207","Regravelling Ward 18 road - Sithebe library to Othini area","PC001001001006001000000000000000000000_00020","_","An efficient, competitive and responsive economic infrastructure network","Inclusion and access","To improve access to all basic services","Roads Infrastructure","Roads","449ea53a-fa5c-4588-b854-8433145fff45",1,1,6956520,0,0,0,0,0]
["be26bea6-58e3-4497-b52c-0bf597208207","Regravelling Ward 9 -  Esikhoveni to Nyathini","PC001001001006001000000000000000000000_00013","_","An efficient, competitive and responsive economic infrastructure network","Inclusion and access","To improve access to all basic services",null,null,"7fff87b9-fe57-48ad-aded-f30be334f6c2",1,1,1739130,0,0,0,0,0]
["be26bea6-58e3-4497-b52c-0bf597208207","Regravelling Ward 9 -  Esikhoveni to Nyathini","PC001001001006001000000000000000000000_00013","_","An efficient, competitive and responsive economic infrastructure network","Inclusion and access","To improve access to all basic services","Roads Infrastructure","Roads","7fff87b9-fe57-48ad-aded-f30be334f6c2",1,1,6956520,0,0,0,0,0]
["be26bea6-58e3-4497-b52c-0bf597208207","Rehabilitation  of Internal Roads and Stormwater ward 14","PC001001002006001000000000000000000000_00017","_","An efficient, competitive and responsive economic infrastructure network","Inclusion and access","Good Governance",null,null,"ebcb7441-9e89-4ea6-b2ba-e8d6cd979b22",32,29,695652,0,0,0,0,0]
["be26bea6-58e3-4497-b52c-0bf597208207","Rehabilitation  of Internal Roads and Stormwater ward 14","PC001001002006001000000000000000000000_00017","_","An efficient, competitive and responsive economic infrastructure network","Inclusion and access","Good Governance","Roads Infrastructure","Roads","ebcb7441-9e89-4ea6-b2ba-e8d6cd979b22",32,29,2782608,0,0,0,0,0]
["be26bea6-58e3-4497-b52c-0bf597208207","Rehabilitation of Internal Roads and Upgrade of Associated Stormwater in Sundumbili, Ward 13 Phase 2 & Ward 14 White City Section","PC001001002006001000000000000000000000_00018","_","An efficient, competitive and responsive economic infrastructure network","Inclusion and access","Good Governance",null,null,"d2ee4229-b791-4b69-8bef-e9024666931e",32,29,2173879,0,0,0,0,0]
["be26bea6-58e3-4497-b52c-0bf597208207","Rehabilitation of Internal Roads and Upgrade of Associated Stormwater in Sundumbili, Ward 13 Phase 2 & Ward 14 White City Section","PC001001002006001000000000000000000000_00018","_","An efficient, competitive and responsive economic infrastructure network","Inclusion and access","Good Governance","Roads Infrastructure","Roads","d2ee4229-b791-4b69-8bef-e9024666931e",32,29,8695516,0,0,0,0,0]
["be26bea6-58e3-4497-b52c-0bf597208207","Rehabilitation of Internal Roads and Upgrade of Associated Stormwater in Sundumbili, Ward 13 Phase 2 & Ward 14 White City Section (Rehabilitation of Phumla, Indumsio and Malandela Internal Roads & Stormwater in Sundumbili, Ward 13 Phase 2 and Ward 14)","PC001001001006001000000000000000000000_00009","_","An efficient, competitive and responsive economic infrastructure network","Inclusion and access","Maintain and improve municipal buildings and assets.",null,null,"d2ee4229-b791-4b69-8bef-e9024666931e",1,1,348133,0,0,0,0,0]
["be26bea6-58e3-4497-b52c-0bf597208207","Rehabilitation of Internal Roads and Upgrade of Associated Stormwater in Sundumbili, Ward 13 Phase 2 & Ward 14 White City Section (Rehabilitation of Phumla, Indumsio and Malandela Internal Roads & Stormwater in Sundumbili, Ward 13 Phase 2 and Ward 14)","PC001001001006001000000000000000000000_00009","_","An efficient, competitive and responsive economic infrastructure network","Inclusion and access","Maintain and improve municipal buildings and assets.","Roads Infrastructure","Roads","d2ee4229-b791-4b69-8bef-e9024666931e",1,1,1392532,0,0,0,0,0]
["be26bea6-58e3-4497-b52c-0bf597208207","Rehabilitation of Internal Roads and Upgrade of Associated Stormwater in Sundumbili, Ward 15 ","PC001001002006001000000000000000000000_00026","_","An efficient, competitive and responsive economic infrastructure network","Inclusion and access","To improve access to all basic services",null,null,"6e379a53-67dc-45eb-a573-8f733e1775f0",1,1,260870,0,0,0,0,0]
["be26bea6-58e3-4497-b52c-0bf597208207","Rehabilitation of Internal Roads and Upgrade of Associated Stormwater in Sundumbili, Ward 15 ","PC001001002006001000000000000000000000_00026","_","An efficient, competitive and responsive economic infrastructure network","Inclusion and access","To improve access to all basic services","Roads Infrastructure","Roads","6e379a53-67dc-45eb-a573-8f733e1775f0",1,1,1043480,0,0,0,0,0]
["be26bea6-58e3-4497-b52c-0bf597208207","Rehabilitation of Road Ward 14 - Masilela Road","PC001001001006001000000000000000000000_00026","_","An efficient, competitive and responsive economic infrastructure network","Inclusion and access","To improve access to all basic services",null,null,"ebcb7441-9e89-4ea6-b2ba-e8d6cd979b22",1,1,3772943,0,0,0,0,0]
["be26bea6-58e3-4497-b52c-0bf597208207","Rehabilitation of Road Ward 14 - Masilela Road","PC001001001006001000000000000000000000_00026","_","An efficient, competitive and responsive economic infrastructure network","Inclusion and access","To improve access to all basic services","Roads Infrastructure","Roads","ebcb7441-9e89-4ea6-b2ba-e8d6cd979b22",1,1,15091772,0,0,0,0,0]
["be26bea6-58e3-4497-b52c-0bf597208207","Upgrade and Improvement of Bumbanani Road","PC001001002006001000000000000000000000_00016","_","An efficient, competitive and responsive economic infrastructure network","Inclusion and access","To improve access to all basic services",null,null,"db0f19aa-dfc4-4e1c-858f-708b2b576585",34.5,29.200000762939453,15332533,0,0,0,0,0]
["be26bea6-58e3-4497-b52c-0bf597208207","Upgrade and Improvement of Bumbanani Road","PC001001002006001000000000000000000000_00016","_","An efficient, competitive and responsive economic infrastructure network","Inclusion and access","To improve access to all basic services","Roads Infrastructure","Roads","db0f19aa-dfc4-4e1c-858f-708b2b576585",34.5,29.200000762939453,61330132,0,0,0,0,0]
["be26bea6-58e3-4497-b52c-0bf597208207","Upgrade and Improvement of Enembe Road -","PC001001002006001000000000000000000000_00007","_","An efficient, competitive and responsive economic infrastructure network","Inclusion and access","To improve access to all basic services",null,null,"d2ee4229-b791-4b69-8bef-e9024666931e",31.689443588256836,29.268054962158203,5792259,0,0,0,0,0]
["be26bea6-58e3-4497-b52c-0bf597208207","Upgrade and Improvement of Enembe Road -","PC001001002006001000000000000000000000_00007","_","An efficient, competitive and responsive economic infrastructure network","Inclusion and access","To improve access to all basic services","Roads Infrastructure","Roads","d2ee4229-b791-4b69-8bef-e9024666931e",31.689443588256836,29.268054962158203,23169036,0,0,0,0,0]
["be26bea6-58e3-4497-b52c-0bf597208207","Upgrade of Hlomendlini Bus Route - (Retention Year6)","PC001001002006001000000000000000000000_00003","_","An efficient, competitive and responsive economic infrastructure network","Inclusion and access","To improve access to all basic services",null,null,"06d456ba-b774-4d48-9f41-061c061426a3",31.689443588256836,29.268054962158203,0,0,35512652,35512652,38415522,38415522]
["be26bea6-58e3-4497-b52c-0bf597208207","Upgrade of Hlomendlini Bus Route - (Retention Year6)","PC001001002006001000000000000000000000_00003","_","An efficient, competitive and responsive economic infrastructure network","Inclusion and access","To improve access to all basic services","Roads Infrastructure","Roads","06d456ba-b774-4d48-9f41-061c061426a3",31.689443588256836,29.268054962158203,0,0,142050608,142050608,153662088,153662088]
["be26bea6-58e3-4497-b52c-0bf597208207","Upgrade of Machibini Link road in Isisthebe in Ward 10 and Ward 12","PC001001002006001000000000000000000000_00020","_","An efficient, competitive and responsive economic infrastructure network","Inclusion and access","Good Governance",null,null,"056928e7-26c8-40bd-94a6-94e379710f4c",32,29,12470442,0,0,0,0,0]
["be26bea6-58e3-4497-b52c-0bf597208207","Upgrade of Machibini Link road in Isisthebe in Ward 10 and Ward 12","PC001001002006001000000000000000000000_00020","_","An efficient, competitive and responsive economic infrastructure network","Inclusion and access","Good Governance","Roads Infrastructure","Roads","056928e7-26c8-40bd-94a6-94e379710f4c",32,29,49881768,0,0,0,0,0]
["be26bea6-58e3-4497-b52c-0bf597208207","Upgrading Road in Ward 2- Tugela Beach road ","PC001001002006001000000000000000000000_00027","_","An efficient, competitive and responsive economic infrastructure network","Inclusion and access","To improve access to all basic services",null,null,"f2aed61b-4d45-4318-9eb7-4217cd40e28b",1,1,1739130,0,0,0,0,0]
["be26bea6-58e3-4497-b52c-0bf597208207","Upgrading Road in Ward 2- Tugela Beach road ","PC001001002006001000000000000000000000_00027","_","An efficient, competitive and responsive economic infrastructure network","Inclusion and access","To improve access to all basic services","Roads Infrastructure","Roads","f2aed61b-4d45-4318-9eb7-4217cd40e28b",1,1,6956520,0,0,0,0,0]
["be26bea6-58e3-4497-b52c-0bf597208207","Upgrading Road Ward 13 of Road 6","PC001001001006001000000000000000000000_00029","_","An efficient, competitive and responsive economic infrastructure network","Inclusion and access","Ensure that our people have access to community facilities and services",null,null,"d2ee4229-b791-4b69-8bef-e9024666931e",1,1,1739130,0,0,0,0,0]
["be26bea6-58e3-4497-b52c-0bf597208207","Upgrading Road Ward 13 of Road 6","PC001001001006001000000000000000000000_00029","_","An efficient, competitive and responsive economic infrastructure network","Inclusion and access","Ensure that our people have access to community facilities and services","Roads Infrastructure","Roads","d2ee4229-b791-4b69-8bef-e9024666931e",1,1,6956520,0,0,0,0,0]
["be26bea6-58e3-4497-b52c-0bf597208207","Upgrading Road Ward 6-Gravel Road Evutha to apostolic Church ","PC001001002006001000000000000000000000_00028","_","An efficient, competitive and responsive economic infrastructure network","Inclusion and access","To improve access to all basic services",null,null,"f47483eb-3b21-454e-bf9d-2da9516d6a20",1,1,1739130,0,0,0,0,0]
["be26bea6-58e3-4497-b52c-0bf597208207","Upgrading Road Ward 6-Gravel Road Evutha to apostolic Church ","PC001001002006001000000000000000000000_00028","_","An efficient, competitive and responsive economic infrastructure network","Inclusion and access","To improve access to all basic services","Roads Infrastructure","Roads","f47483eb-3b21-454e-bf9d-2da9516d6a20",1,1,6956520,0,0,0,0,0]
["c57d4368-34c4-4b96-8470-2264a2fa849c","Constructon of Mechanical/ Technical Services Building Phase 2","PC002002002003001004000000000000000000_00002","_","An efficient, effective and development-oriented public service","Growth","To improve access to all basic services",null,null,"4493efed-d44b-472e-b666-926b1c994c63",1,1,2445464,0,0,0,0,0]
["c57d4368-34c4-4b96-8470-2264a2fa849c","Constructon of Mechanical/ Technical Services Building Phase 2","PC002002002003001004000000000000000000_00002","_","An efficient, effective and development-oriented public service","Growth","To improve access to all basic services","Operational Buildings","Workshops","4493efed-d44b-472e-b666-926b1c994c63",1,1,9781856,0,0,0,0,0]
["c57d4368-34c4-4b96-8470-2264a2fa849c","COVID 19 PROJECTS TECHNICAL","PC002002002003001004000000000000000000_00001","_","An efficient, effective and development-oriented public service","Governance","Ensure an intergrated and aligned development planning",null,null,"4493efed-d44b-472e-b666-926b1c994c63",32,29,4684971,0,0,0,0,0]
["c57d4368-34c4-4b96-8470-2264a2fa849c","COVID 19 PROJECTS TECHNICAL","PC002002002003001004000000000000000000_00001","_","An efficient, effective and development-oriented public service","Governance","Ensure an intergrated and aligned development planning","Operational Buildings","Workshops","4493efed-d44b-472e-b666-926b1c994c63",32,29,18739884,0,0,0,0,0]
["c57d4368-34c4-4b96-8470-2264a2fa849c","Procurement of 22 seater mini bus (AT or MT)","PC002003010000000000000000000000000000_00024","_","An efficient, effective and development-oriented public service","Growth","To improve access to all basic services","Transport Assets","Transport Assets","d4a7a8a1-43a6-4de9-8ec0-e5027c88d37e",1,1,3304348,0,0,0,0,0]
["c57d4368-34c4-4b96-8470-2264a2fa849c","Procurement of 4 doors Sedan 1.8","PC002003010000000000000000000000000000_00025","_","An efficient, effective and development-oriented public service","Growth","To improve access to all basic services","Transport Assets","Transport Assets","d4a7a8a1-43a6-4de9-8ec0-e5027c88d37e",1,1,1565216,0,0,0,0,0]
["c57d4368-34c4-4b96-8470-2264a2fa849c","Procurement of 7 seater 1.5 AT Vehicle ","PC002003010000000000000000000000000000_00026","_","An efficient, effective and development-oriented public service","Growth","To improve access to all basic services","Transport Assets","Transport Assets","d4a7a8a1-43a6-4de9-8ec0-e5027c88d37e",1,1,1913044,0,0,0,0,0]
["c746317f-626c-4092-b71c-e7194f3d8b8a","Procurement of 4 X 4 Double Cab Vehicle with canopy","PC002003010000000000000000000000000000_00023","_","An efficient, effective and development-oriented public service","Growth","Ensure that our people have access to community facilities and services","Transport Assets","Transport Assets","d4a7a8a1-43a6-4de9-8ec0-e5027c88d37e",1,1,2129784,0,0,0,0,0]
["d0a8c200-23d4-4309-8ea5-97922584a36d"," Installation of Streetlights in Mandeni","PC001002001002000000000000000000000000_00001","_","An efficient, competitive and responsive economic infrastructure network","Growth","To improve access to all basic services","Electrical Infrastructure","HV Substations","d4a7a8a1-43a6-4de9-8ec0-e5027c88d37e",32,29,3175864,0,0,0,0,0]
["d0a8c200-23d4-4309-8ea5-97922584a36d","1 X 12 Electric Sky Jack","PC002003009000000000000000000000000000_00011","_","An efficient, effective and development-oriented public service","Growth","To improve access to all basic services","Machinery and Equipment","Machinery and Equipment","d4a7a8a1-43a6-4de9-8ec0-e5027c88d37e",32,29,337192,0,0,0,0,0]
["d0a8c200-23d4-4309-8ea5-97922584a36d","Cable installation - Frye to LJC road","PC001001001001007000000000000000000000_00002","_","An efficient, competitive and responsive economic infrastructure network","Inclusion and access","To improve access to all basic services",null,null,"4493efed-d44b-472e-b666-926b1c994c63",1,11,434783,0,0,0,0,0]
["d0a8c200-23d4-4309-8ea5-97922584a36d","Cable installation - Frye to LJC road","PC001001001001007000000000000000000000_00002","_","An efficient, competitive and responsive economic infrastructure network","Inclusion and access","To improve access to all basic services","Electrical Infrastructure","MV Networks","4493efed-d44b-472e-b666-926b1c994c63",1,11,1739132,0,0,0,0,0]
["d0a8c200-23d4-4309-8ea5-97922584a36d","Municipal Building Maintenance & Procurement of Airconditioners","PC002003009000000000000000000000000000_00010","_","An efficient, effective and development-oriented public service","Growth","Maintain and improve municipal buildings and assets.","Machinery and Equipment","Machinery and Equipment","d4a7a8a1-43a6-4de9-8ec0-e5027c88d37e",31.689443588256836,29.268054962158203,695652,0,0,0,0,0]
["d322a6d8-8a77-4f3e-b409-e49df0b85989","Procurement of Loud hailer","PC002003009000000000000000000000000000_00029","_","An efficient, effective and development-oriented public service","Growth","Good Governance","Machinery and Equipment","Machinery and Equipment","d4a7a8a1-43a6-4de9-8ec0-e5027c88d37e",32,29,521720,0,0,0,0,0]
["d322a6d8-8a77-4f3e-b409-e49df0b85989","Procurement of Vehicle (VAN)","PC002003010000000000000000000000000000_00011","_","An efficient, effective and development-oriented public service","Growth","COMMUNITY CONSULTATION MEETING","Transport Assets","Transport Assets","d4a7a8a1-43a6-4de9-8ec0-e5027c88d37e",32,29,9725240,0,0,0,0,0]
["d322a6d8-8a77-4f3e-b409-e49df0b85989","Procurement of video camera","PC002003005000000000000000000000000000_00012","_","An efficient, effective and development-oriented public service","Growth","COMMUNICATIONS RELATIONS","Furniture and Office Equipment","Furniture and Office Equipment","d4a7a8a1-43a6-4de9-8ec0-e5027c88d37e",32,29,347840,0,0,0,0,0]
["d322a6d8-8a77-4f3e-b409-e49df0b85989","SUGGESTION BOX AND POSTERS","PC002003005000000000000000000000000000_00024","_","An efficient, effective and development-oriented public service","Growth","Ensure the existence and functionality of the public participation structures ","Furniture and Office Equipment","Furniture and Office Equipment","d4a7a8a1-43a6-4de9-8ec0-e5027c88d37e",32,29,347824,0,0,0,0,0]
["e38be026-aa91-4710-9bdc-3b0f3755cc1a","Construction of Mini Factories at Khenana Phase 1","PC002003002001018000000000000000000000_00003","_","An efficient, effective and development-oriented public service","Growth","Good Governance","Community Facilities","Stalls","19a00642-6874-4556-bf0c-3d1f36c23f9b",32,29,17391304,0,10434784,10434784,0,0]
["e38be026-aa91-4710-9bdc-3b0f3755cc1a","Procurement of 4 X 4 Double Cab Bakkie Vehicle for EDPHS","PC002003010000000000000000000000000000_00021","_","An efficient, effective and development-oriented public service","Growth","To improve access to all basic services","Transport Assets","Transport Assets","d4a7a8a1-43a6-4de9-8ec0-e5027c88d37e",1,1,3676800,0,0,0,0,0]
["e38be026-aa91-4710-9bdc-3b0f3755cc1a","Procurement of Container for storage ","PC002003005000000000000000000000000000_00025","_","An efficient, effective and development-oriented public service","Growth","Facilitating the creation of employment opportunities for skilled and employable people","Furniture and Office Equipment","Furniture and Office Equipment","d4a7a8a1-43a6-4de9-8ec0-e5027c88d37e",1,1,347824,0,0,0,0,0]
["e63908e9-4e7e-4455-ad95-2721683b34a9","Hlomendlini Sportsfield","PC002003002002002000000000000000000000_00012","_","A long and healthy life for all South Africans","Growth","Ensure that our people have access to community facilities and services","Sport and Recreation Facilities","Outdoor Facilities","06d456ba-b774-4d48-9f41-061c061426a3",32,29,14413920,0,0,0,0,0]
["f3333fef-376f-4d03-b158-f7050b66056d","Construction of New Offie Block","PC002003003001001000000000000000000000_00004","_","An efficient, effective and development-oriented public service","Growth","Maintain and improve municipal buildings and assets.","Operational Buildings","Municipal Offices","4493efed-d44b-472e-b666-926b1c994c63",1,1,34782608,0,80000000,80000000,60000000,60000000]
["f3a9aaa9-529a-40d1-b981-722b2f743267","Computers and Laptops","PC002003004000000000000000000000000000_00001","_","An efficient, effective and development-oriented public service","Growth","Improve information technology and document management systems. ","Computer Equipment","Computer Equipment","e92cc59b-4a01-4ee2-b6fc-84d252b20fac",31.689443588256836,29.268054962158203,2017380,0,0,0,0,0]
["f3a9aaa9-529a-40d1-b981-722b2f743267","Upgrade of servers ","PC002002002004000000000000000000000000_00003","_","An efficient, effective and development-oriented public service","Governance","Maintain and improve the municipal policies",null,null,"e92cc59b-4a01-4ee2-b6fc-84d252b20fac",32,29,1217387,0,0,0,0,0]
["f3a9aaa9-529a-40d1-b981-722b2f743267","Upgrade of servers ","PC002002002004000000000000000000000000_00003","_","An efficient, effective and development-oriented public service","Governance","Maintain and improve the municipal policies","Computer Equipment","Computer Equipment","e92cc59b-4a01-4ee2-b6fc-84d252b20fac",32,29,4869548,0,0,0,0,0]

{"sheet":"START","index":18,"n_rows":1,"n_cols":1,"rows_kept":1,"cut":false,"hidden":false,"merged":[]}
["Choose name from list"]

{"sheet":"Instructions","index":19,"n_rows":38,"n_cols":24,"rows_kept":38,"cut":false,"hidden":false,"merged":[]}
[]
[null,null,null,2020]
[]
[null,null,null,null,null,null,null,null,null,null,null,null,null,null,null,null,null,null,null,null,null,null,null,"Yes"]
[null,null,null,null,null,null,null,null,null,null,null,null,null,null,null,null,null,null,null,null,null,null,null,"No"]
[]
[null,null,null,null,null,null,null,null,null,null,null,null,null,null,null,null,null,null,null,null,null,null,"Type of Entities Range:","Parent Municipality"]
[null,null,null,null,null,null,null,null,null,null,null,null,null,null,null,null,null,null,null,null,null,null,null,"Consolidated Information"]
[]
[null,null,null,null,null,null,null,null,null,null,null,null,null,null,null,null,null,null,null,null,null,null,"Date of Adjustment","08-04-2025"]
[]
[]
[]
[]
[]
[]
[]
[]
[null,null,null,null,null,null,null,null,null,null,null,null,null,null,null,null,null,null,null,null,null,null,"MTREF Range:",2014]
[null,null,null,null,null,null,null,null,null,null,null,null,null,null,null,null,null,null,null,null,null,null,null,2015]
[null,null,null,null,null,null,null,null,null,null,null,null,null,null,null,null,null,null,null,null,null,null,null,2016]
[null,null,null,null,null,null,null,null,null,null,null,null,null,null,null,null,null,null,null,null,null,null,null,2017]
[null,null,null,null,null,null,null,null,null,null,null,null,null,null,null,null,null,null,null,null,null,null,null,2018]
[null,null,null,null,null,null,null,null,null,null,null,null,null,null,null,null,null,null,null,null,null,null,null,2019]
[null,null,null,null,null,null,null,null,null,null,null,null,null,null,null,null,null,null,null,null,null,null,null,2020]
[null,null,null,null,null,null,null,null,null,null,null,null,null,null,null,null,null,null,null,null,null,null,null,2021]
[null,null,null,null,null,null,null,null,null,null,null,null,null,null,null,null,null,null,null,null,null,null,null,2022]
[null,null,null,null,null,null,null,null,null,null,null,null,null,null,null,null,null,null,null,null,null,null,null,2023]
[null,null,null,null,null,null,null,null,null,null,null,null,null,null,null,null,null,null,null,null,null,null,null,2024]
[null,null,null,null,null,null,null,null,null,null,null,null,null,null,null,null,null,null,null,null,null,null,null,2025]
[null,null,null,null,null,null,null,null,null,null,null,null,null,null,null,null,null,null,null,null,null,null,null,2026]
[null,null,null,null,null,null,null,null,null,null,null,null,null,null,null,null,null,null,null,null,null,null,null,2027]
[null,null,null,null,null,null,null,null,null,null,null,null,null,null,null,null,null,null,null,null,null,null,"MTREF Linked:"]
[null,null,null,null,null,null,null,null,null,null,null,null,null,null,null,null,null,null,null,null,null,null,"MTREF:"]
[null,null,null,null,null,null,null,null,null,null,null,null,null,null,null,null,null,null,null,null,null,null,null,11]
[null,null,null,null,null,null,null,null,null,null,null,null,null,null,null,null,null,null,null,null,null,null,"Fin Year:",{"$f":"INDEX(X19:X33,X35,1)","v":2024}]
[]
[null,null,null,null,null,null,null,null,null,null,null,null,null,null,null,null,null,null,null,null,null,null,null,{"$f":"MTREF&\"/\"&RIGHT(MTREF,2)+1","v":"2024/25"}]

{"sheet":"Template names","index":20,"n_rows":101,"n_cols":6,"rows_kept":101,"cut":false,"hidden":true,"merged":[[0,0,0,3],[61,0,61,3],[65,0,65,1]]}
["Common sheet headings"]
["Head1",{"$f":"HLOOKUP(MTREF,Headings,2)","v":"2023/24"},"Prior year -1"]
["Head1A",{"$f":"HLOOKUP(MTREF,Headings,3)","v":"2022/23"},"Prior year -2"]
["Head1B",{"$f":"HLOOKUP(MTREF,Headings,4)","v":"2021/22"},"Prior year -3"]
["Head2",{"$f":"HLOOKUP(MTREF,Headings,7)","v":"Budget Year 2024/25"},"Year of approved budget"]
["Head2A",{"$f":"HLOOKUP(MTREF,Headings,6)","v":"2024/25"},"Approved budget year"]
["Head3",{"$f":"HLOOKUP(MTREF,Headings,5)","v":"2024/25 Medium Term Revenue & Expenditure Framework"},"MTREF header name"]
["Head3A","Medium Term Revenue and Expenditure Framework"]
["Head4","Current year"]
["Head5","Audited Outcome"]
["Head5A","Outcome"]
["Head5B","Pre-audit outcome"]
["Head6","Original Budget"]
["Head7","Adjusted Budget"]
["Head8","Full Year Forecast"]
["Head9",{"$f":"HLOOKUP(MTREF,Headings,7)","v":"Budget Year 2024/25"},"1st year of MTREF","Year1"]
["Head10",{"$f":"HLOOKUP(MTREF,Headings,8)","v":"Budget Year +1 2025/26"},"2nd year of MTREF","Year2"]
["Head11",{"$f":"HLOOKUP(MTREF,Headings,9)","v":"Budget Year +2 2026/27"},"3rd year of MTREF","Year3"]
["Head24","Description",null,"Desc"]
["Head26","Vote Description",null,"VDesc"]
["Head27","Ref"]
["Head27a","References"]
["Head28","Surplus/ (Deficit) for the year",null,"Result"]
["Head29","Annual target 2007/08"]
["Head30","Revised target 2007/08"]
["Head31","Quarter ended 30 September"]
["Head32","Quarter ended 31 December"]
["Head33","Quarter ended 31 March"]
["Head34","Quarter ended 30 June"]
["Head35","Variance explanation"]
["Head36","YTD  Actual 31 Dec"]
["Head37","YTD  Budget 31 Dec"]
["Head38","Monthly actual"]
["Head39","YearTD actual"]
["Head40","YearTD budget"]
["Head41","YTD variance"]
["Head42","Surplus/ (Deficit) for the yr/period"]
["Head43",{"$f":"Head3&\" Summary\"","v":"2024/25 Medium Term Revenue & Expenditure Framework Summary"}]
["Head44","2001 Census"]
["Head45","2011 Census"]
["Head46"," - Adjustments Budget - January 2007"]
["Head47","Previous target year to complete"]
["Head48","Present value"]
["Head49"]
["Head50","Other Adjusts."]
["Head51","Accum. Funds"]
["Head52","Multi-year capital"]
["Head53","Unfore. Unavoid."]
["Head54","Prior Adjusted"]
["Head55","Nat. or Prov. Govt"]
["Head56","Total Adjusts."]
["Head57","Month DD, YYYY - "]
["Head58","Parent muni."]
["Head59","Downward adjusts"]
["SFPerf1","Budgeted Financial Performance"]
["SFPerf2","Forecast Financial Performance"]
["SFPos1","Budgeted Financial Position"]
["SFPos2","Forecast Financial Position"]
["Cash1","Budget Cash Flow"]
["Cash2","Forecast Cash Flow"]
["RandM","Expenditure includes repairs & maintenance of R'000"]
["Standard nomenclature"]
["Muni",{"$f":"'Lookup and lists'!B28","v":"KZN291 Mandeni"}]
["Municipal Entities",2,"Type of report:",3]
[{"$f":"IF((MuniEntities=1)*(MuniType=2),\"YES\",\"NO\")","v":"NO"},"Does this municipality have entities (consolidated budget and entity budgets required)? YES/NO"]
["Mid Year Review/Adjustment Budget schedules & tables",null,null,null,"Consolidated header","Parent municipality header"]
["ADJSum",{"$f":"D67&IF(Consolques=\"YES\",E67,F67)","v":"Table B1 Adjustments Budget Summary"},null,"Table B1 ",{"$f":"\"Consolidated \"&F67","v":"Consolidated Adjustments Budget Summary"},{"$f":"\"Adjustments Budget Summary\"","v":"Adjustments Budget Summary"}]
["ADJ2","Table B3 Adjustments Budget Financial Performance (revenue and expenditure by municipal vote)",null,"Table B3 ",{"$f":"\"Consolidated \"&F68","v":"Consolidated Adjustments Budget Financial Performance (revenue and expenditure by municipal vote)"},{"$f":"\"Adjustments Budget Financial Performance (revenue and expenditure by municipal vote)\"","v":"Adjustments Budget Financial Performance (revenue and expenditure by municipal vote)"}]
["ADJ3","Table B2 Adjustments Budget Financial Performance (functional classification)",null,"Table B2 ","Consolidated Adjustments Budget Financial Performance (functional classification)",{"$f":"\"Adjustments Budget Financial Performance (functional classification)\"","v":"Adjustments Budget Financial Performance (functional classification)"}]
["ADJ4","Table B4 Adjustments Budget Financial Performance (revenue and expenditure)",null,"Table B4 ","Consolidated Adjustments Budget Financial Performance (revenue and expenditure)",{"$f":"\"Adjustments Budget Financial Performance (revenue and expenditure)\"","v":"Adjustments Budget Financial Performance (revenue and expenditure)"}]
["ADJ5","Table B5 Adjustments Capital Expenditure Budget by vote and funding",null,"Table B5 ","Consolidated Adjustments Capital Expenditure Budget by vote and funding",{"$f":"\"Adjustments Capital Expenditure Budget by vote and funding\"","v":"Adjustments Capital Expenditure Budget by vote and funding"}]
["ADJ6","Table B6 Adjustments Budget Financial Position",null,"Table B6 ","Consolidated Adjustments Budget Financial Position",{"$f":"\"Adjustments Budget Financial Position\"","v":"Adjustments Budget Financial Position"}]
["ADJ7","Table B7 Adjustments Budget Cash Flows",null,"Table B7 ","Consolidated Adjustments Budget Cash Flows",{"$f":"\"Adjustments Budget Cash Flows\"","v":"Adjustments Budget Cash Flows"}]
["ADJ8","Table B8 Cash backed reserves/accumulated surplus reconciliation",null,"Table B8 ","Consolidated Cash backed reserves/accumulated surplus reconciliation",{"$f":"\"Cash backed reserves/accumulated surplus reconciliation\"","v":"Cash backed reserves/accumulated surplus reconciliation"}]
["ADJ9","Table B9 Asset Management",null,"Table B9 ","Consolidated Asset Management",{"$f":"\"Asset Management\"","v":"Asset Management"}]
["ADJ10","Table B10 Basic service delivery measurement",null,"Table B10 ","Consolidated Basic service delivery measurement",{"$f":"\"Basic service delivery measurement\"","v":"Basic service delivery measurement"}]
["ADJB1","Supporting Table SB1 Supporting detail to 'Budgeted Financial Performance'",null,{"$f":"D101&\"Table SB1 \"","v":"Supporting Table SB1 "},"Consolidated Supporting detail to 'Budgeted Financial Performance'",{"$f":"\"Supporting detail to 'Budgeted Financial Performance'\"","v":"Supporting detail to 'Budgeted Financial Performance'"}]
["ADJB2","Supporting Table SB2 Supporting detail to 'Financial Position Budget'",null,{"$f":"D101&\"Table SB2 \"","v":"Supporting Table SB2 "},"Consolidated Supporting detail to 'Financial Position Budget'",{"$f":"\"Supporting detail to 'Financial Position Budget'\"","v":"Supporting detail to 'Financial Position Budget'"}]
["ADJB3","Supporting Table SB3 Adjustments to the SDBIP - performance objectives",null,{"$f":"D101&\"Table SB3 \"","v":"Supporting Table SB3 "},"Consolidated Adjustments to the SDBIP - performance objectives",{"$f":"\"Adjustments to the SDBIP - performance objectives\"","v":"Adjustments to the SDBIP - performance objectives"}]
["ADJB4","Supporting Table SB4 Adjustments to budgeted performance indicators and benchmarks",null,{"$f":"D101&\"Table SB4 \"","v":"Supporting Table SB4 "},"Consolidated Adjustments to budgeted performance indicators and benchmarks",{"$f":"\"Adjustments to budgeted performance indicators and benchmarks\"","v":"Adjustments to budgeted performance indicators and benchmarks"}]
["ADJB5","Supporting Table SB5 Adjustments Budget - social, economic and demographic statistics and assumptions",null,{"$f":"D101&\"Table SB5 \"","v":"Supporting Table SB5 "},"Consolidated Adjustments Budget - social, economic and demographic statistics and assumptions",{"$f":"\"Adjustments Budget - social, economic and demographic statistics and assumptions\"","v":"Adjustments Budget - social, economic and demographic statistics and assumptions"}]
["ADJB6","Supporting Table SB6 Adjustments Budget - funding measurement",null,{"$f":"D101&\"Table SB6 \"","v":"Supporting Table SB6 "},"Consolidated Adjustments Budget - funding measurement",{"$f":"\"Adjustments Budget - funding measurement\"","v":"Adjustments Budget - funding measurement"}]
["ADJB7","Supporting Table SB7 Adjustments Budget - transfers and grant receipts",null,{"$f":"D101&\"Table SB7 \"","v":"Supporting Table SB7 "},"Consolidated Adjustments Budget - transfers and grant receipts",{"$f":"\"Adjustments Budget - transfers and grant receipts\"","v":"Adjustments Budget - transfers and grant receipts"}]
["ADJB8","Supporting Table SB8 Adjustments Budget - expenditure on transfers and grant programme",null,{"$f":"D101&\"Table SB8 \"","v":"Supporting Table SB8 "},"Consolidated Adjustments Budget - expenditure on transfers and grant programme",{"$f":"\"Adjustments Budget - expenditure on transfers and grant programme\"","v":"Adjustments Budget - expenditure on transfers and grant programme"}]
["ADJB9","Supporting Table SB9 Adjustments Budget - reconciliation of transfers, grant receipts, and unspent funds",null,{"$f":"D101&\"Table SB9 \"","v":"Supporting Table SB9 "},"Consolidated Adjustments Budget - reconciliation of transfers, grant receipts, and unspent funds",{"$f":"\"Adjustments Budget - reconciliation of transfers, grant receipts, and unspent funds\"","v":"Adjustments Budget - reconciliation of transfers, grant receipts, and unspent funds"}]
["ADJB10","Supporting Table SB10 Adjustments Budget - transfers and grants made by the municipality",null,{"$f":"D101&\"Table SB10 \"","v":"Supporting Table SB10 "},"Consolidated Adjustments Budget - transfers and grants made by the municipality",{"$f":"\"Adjustments Budget - transfers and grants made by the municipality\"","v":"Adjustments Budget - transfers and grants made by the municipality"}]
["ADJB11","Supporting Table SB11 Adjustments Budget - councillor and staff benefits",null,{"$f":"D101&\"Table SB11 \"","v":"Supporting Table SB11 "},"Consolidated Adjustments Budget - councillor and staff benefits",{"$f":"\"Adjustments Budget - councillor and staff benefits\"","v":"Adjustments Budget - councillor and staff benefits"}]
["ADJB12","Supporting Table SB12 Adjustments Budget - monthly revenue and expenditure (municipal vote)",null,{"$f":"D101&\"Table SB12 \"","v":"Supporting Table SB12 "},"Consolidated Adjustments Budget - monthly revenue and expenditure (municipal vote)",{"$f":"\"Adjustments Budget - monthly revenue and expenditure (municipal vote)\"","v":"Adjustments Budget - monthly revenue and expenditure (municipal vote)"}]
["ADJB13","Supporting Table SB13 Adjustments Budget - monthly revenue and expenditure (functional classification)",null,{"$f":"D101&\"Table SB13 \"","v":"Supporting Table SB13 "},"Consolidated Adjustments Budget - monthly revenue and expenditure (functional classification)",{"$f":"\"Adjustments Budget - monthly revenue and expenditure (functional classification)\"","v":"Adjustments Budget - monthly revenue and expenditure (functional classification)"}]
["ADJB14","Supporting Table SB14 Adjustments Budget - monthly revenue and expenditure",null,{"$f":"D101&\"Table SB14 \"","v":"Supporting Table SB14 "},"Consolidated Adjustments Budget - monthly revenue and expenditure",{"$f":"\"Adjustments Budget - monthly revenue and expenditure\"","v":"Adjustments Budget - monthly revenue and expenditure"}]
["ADJB15","Supporting Table SB15 Adjustments Budget - monthly cash flow",null,{"$f":"D101&\"Table SB15 \"","v":"Supporting Table SB15 "},"Consolidated Adjustments Budget - monthly cash flow",{"$f":"\"Adjustments Budget - monthly cash flow\"","v":"Adjustments Budget - monthly cash flow"}]
["ADJB16","Supporting Table SB16 Adjustments Budget - monthly capital expenditure (municipal vote)",null,{"$f":"D101&\"Table SB16 \"","v":"Supporting Table SB16 "},"Consolidated Adjustments Budget - monthly capital expenditure (municipal vote)",{"$f":"\"Adjustments Budget - monthly capital expenditure (municipal vote)\"","v":"Adjustments Budget - monthly capital expenditure (municipal vote)"}]
["ADJB17","Supporting Table SB17 Adjustments Budget - monthly capital expenditure (functional classification)",null,{"$f":"D101&\"Table SB17 \"","v":"Supporting Table SB17 "},"Consolidated Adjustments Budget - monthly capital expenditure (functional classification)",{"$f":"\"Adjustments Budget - monthly capital expenditure (functional classification)\"","v":"Adjustments Budget - monthly capital expenditure (functional classification)"}]
["ADJB18a","Supporting Table SB18a Adjustments Budget - capital expenditure on new assets by asset class",null,{"$f":"D101&\"Table SB18a \"","v":"Supporting Table SB18a "},"Consolidated Adjustments Budget - capital expenditure on new assets by asset class",{"$f":"\"Adjustments Budget - capital expenditure on new assets by asset class\"","v":"Adjustments Budget - capital expenditure on new assets by asset class"}]
["ADJB18b","Supporting Table SB18b Adjustments Budget - capital expenditure on renewal of existing assets by asset class",null,{"$f":"D101&\"Table SB18b \"","v":"Supporting Table SB18b "},{"$f":"\"Consolidated \"&F95","v":"Consolidated Adjustments Budget - capital expenditure on renewal of existing assets by asset class"},{"$f":"\"Adjustments Budget - capital expenditure on renewal of existing assets by asset class\"","v":"Adjustments Budget - capital expenditure on renewal of existing assets by asset class"}]
["ADJB18c","Supporting Table SB18c Adjustments Budget - expenditure on repairs and maintenance by asset class",null,{"$f":"D101&\"Table SB18c \"","v":"Supporting Table SB18c "},{"$f":"\"Consolidated \"&F96","v":"Consolidated Adjustments Budget - expenditure on repairs and maintenance by asset class"},{"$f":"\"Adjustments Budget - expenditure on repairs and maintenance by asset class\"","v":"Adjustments Budget - expenditure on repairs and maintenance by asset class"}]
["ADJB18d","Supporting Table SB18d Adjustments Budget - depreciation by asset class",null,{"$f":"D101&\"Table SB18d \"","v":"Supporting Table SB18d "},{"$f":"\"Consolidated \"&F97","v":"Consolidated Adjustments Budget - depreciation by asset class"},{"$f":"\"Adjustments Budget - depreciation by asset class\"","v":"Adjustments Budget - depreciation by asset class"}]
["ADJB18e","Supporting Table SB18e Adjustments Budget - capital expenditure on upgrading of existing assets by asset class",null,{"$f":"D101&\"Table SB18e \"","v":"Supporting Table SB18e "},{"$f":"\"Consolidated \"&F98","v":"Consolidated Adjustments Budget - capital expenditure on upgrading of existing assets by asset class"},{"$f":"\"Adjustments Budget - capital expenditure on upgrading of existing assets by asset class\"","v":"Adjustments Budget - capital expenditure on upgrading of existing assets by asset class"}]
["ADJB19","Supporting Table SB19 List of capital programmes and projects affected by Adjustments Budget",null,{"$f":"D101&\"Table SB19 \"","v":"Supporting Table SB19 "},"Consolidated List of capital programmes and projects affected by Adjustments Budget",{"$f":"\"List of capital programmes and projects affected by Adjustments Budget\"","v":"List of capital programmes and projects affected by Adjustments Budget"}]
["ADJB20","Supporting Table SB20 Not required",null,{"$f":"D101&\"Table SB20 \"","v":"Supporting Table SB20 "},{"$f":"\"Adjusted Budget Municipal Entity Performance Summary\"","v":"Adjusted Budget Municipal Entity Performance Summary"},"Not required"]
[null,null,null,"Supporting "]

{"sheet":"Lookup and lists","index":21,"n_rows":308,"n_cols":22,"rows_kept":308,"cut":false,"hidden":true,"merged":[]}
["Description",2013,2014,2015,2016,2017,2018,2019,2020,2021,2022,2023,2024,2025,2026,null,"Grants:","National - opex","Provincial - opex","National - capex","Provincial - capex","YESNO"]
[{"$f":"'Template names'!C2","v":"Prior year -1"},{"$f":"B1-1&\"/\"&RIGHT(B1,2)-0","v":"2012/13"},{"$f":"C1-1&\"/\"&RIGHT(C1,2)-0","v":"2013/14"},{"$f":"D1-1&\"/\"&RIGHT(D1,2)-0","v":"2014/15"},{"$f":"E1-1&\"/\"&RIGHT(E1,2)-0","v":"2015/16"},"2016/17","2017/18","2018/19","2019/20","2020/21","2021/22","2022/23","2023/24","2024/25","2025/26",null,null,"Local Government Equitable Share","Health subsidy"," Municipal Infrastructure Grant (MIG)","Agriculture","Yes"]
[{"$f":"'Template names'!C3","v":"Prior year -2"},{"$f":"B1-2&\"/\"&RIGHT(B1,2)-1","v":"2011/12"},{"$f":"C1-2&\"/\"&RIGHT(C1,2)-1","v":"2012/13"},{"$f":"D1-2&\"/\"&RIGHT(D1,2)-1","v":"2013/14"},{"$f":"E1-2&\"/\"&RIGHT(E1,2)-1","v":"2014/15"},"2015/16","2016/17","2017/18","2018/19","2019/20","2020/21","2021/22","2022/23","2023/24","2024/25",null,null,"RSC Levy Replacement ","Ambulance subsidy"," Public Transport and Systems","Education","No"]
[{"$f":"'Template names'!C4","v":"Prior year -3"},{"$f":"B1-3&\"/\"&RIGHT(B1,2)-2","v":"2010/11"},{"$f":"C1-3&\"/\"&RIGHT(C1,2)-2","v":"2011/12"},{"$f":"D1-3&\"/\"&RIGHT(D1,2)-2","v":"2012/13"},{"$f":"E1-3&\"/\"&RIGHT(E1,2)-2","v":"2013/14"},"2014/15","2015/16","2016/17","2017/18","2018/19","2019/20","2020/21","2021/22","2022/23","2023/24",null,null,"Finance Management ","Housing","Rural Transport Services and Infrastructure","Health"]
[{"$f":"'Template names'!C7","v":"MTREF header name"},{"$f":"B1&\"/\"&RIGHT(B1,2)+1&\" Medium Term Revenue & Expenditure Framework\"","v":"2013/14 Medium Term Revenue & Expenditure Framework"},{"$f":"C1&\"/\"&RIGHT(C1,2)+1&\" Medium Term Revenue & Expenditure Framework\"","v":"2014/15 Medium Term Revenue & Expenditure Framework"},{"$f":"D1&\"/\"&RIGHT(D1,2)+1&\" Medium Term Revenue & Expenditure Framework\"","v":"2015/16 Medium Term Revenue & Expenditure Framework"},{"$f":"E1&\"/\"&RIGHT(E1,2)+1&\" Medium Term Revenue & Expenditure Framework\"","v":"2016/17 Medium Term Revenue & Expenditure Framework"},"2017/18 Medium Term Revenue & Expenditure Framework","2018/19 Medium Term Revenue & Expenditure Framework","2019/20 Medium Term Revenue & Expenditure Framework","2020/21 Medium Term Revenue & Expenditure Framework","2021/22 Medium Term Revenue & Expenditure Framework","2022/23 Medium Term Revenue & Expenditure Framework","2023/24 Medium Term Revenue & Expenditure Framework","2024/25 Medium Term Revenue & Expenditure Framework","2025/26 Medium Term Revenue & Expenditure Framework","2026/27 Medium Term Revenue & Expenditure Framework",null,null,"Municipal Systems Improvement","Sport and Recreation","Regional Bulk Infrastructure","Housing and Local Government "]
[{"$f":"'Template names'!C6","v":"Approved budget year"},{"$f":"B1&\"/\"&RIGHT(B1,2)+1","v":"2013/14"},{"$f":"C1&\"/\"&RIGHT(C1,2)+1","v":"2014/15"},{"$f":"D1&\"/\"&RIGHT(D1,2)+1","v":"2015/16"},{"$f":"E1&\"/\"&RIGHT(E1,2)+1","v":"2016/17"},"2017/18","2018/19","2019/20","2020/21","2021/22","2022/23","2023/24","2024/25","2025/26","2026/27",null,null,"Water Services Operating Subsidy ",null,"Rural Households Infrastructure ","Other Departments"]
[{"$f":"'Template names'!C16","v":"1st year of MTREF"},{"$f":"\"Budget Year \"&B1&\"/\"&RIGHT(B1,2)+1","v":"Budget Year 2013/14"},{"$f":"\"Budget Year \"&C1&\"/\"&RIGHT(C1,2)+1","v":"Budget Year 2014/15"},{"$f":"\"Budget Year \"&D1&\"/\"&RIGHT(D1,2)+1","v":"Budget Year 2015/16"},{"$f":"\"Budget Year \"&E1&\"/\"&RIGHT(E1,2)+1","v":"Budget Year 2016/17"},"Budget Year 2017/18","Budget Year 2018/19","Budget Year 2019/20","Budget Year 2020/21","Budget Year 2021/22","Budget Year 2022/23","Budget Year 2023/24","Budget Year 2024/25","Budget Year 2025/26","Budget Year 2026/27",null,null,"Energy Efficiency  and Demand Management",null,"Neighbourhood Development Partnership","Public Works, Roads, Transport "]
[{"$f":"'Template names'!C17","v":"2nd year of MTREF"},{"$f":"\"Budget Year +1 \"&B1+1&\"/\"&RIGHT(B1,2)+2","v":"Budget Year +1 2014/15"},{"$f":"\"Budget Year +1 \"&C1+1&\"/\"&RIGHT(C1,2)+2","v":"Budget Year +1 2015/16"},{"$f":"\"Budget Year +1 \"&D1+1&\"/\"&RIGHT(D1,2)+2","v":"Budget Year +1 2016/17"},{"$f":"\"Budget Year +1 \"&E1+1&\"/\"&RIGHT(E1,2)+2","v":"Budget Year +1 2017/18"},"Budget Year +1 2018/19","Budget Year +1 2019/20","Budget Year +1 2020/21","Budget Year +1 2021/22","Budget Year +1 2022/23","Budget Year +1 2023/24","Budget Year +1 2024/25","Budget Year +1 2025/26","Budget Year +1 2026/27","Budget Year +1 2027/28",null,null,"Integrated National Electrification Programme",null,"2010 FIFA World Cup Stadiums Development","Sport and Recreation"]
[{"$f":"'Template names'!C18","v":"3rd year of MTREF"},{"$f":"\"Budget Year +2 \"&B1+2&\"/\"&RIGHT(B1,2)+3","v":"Budget Year +2 2015/16"},{"$f":"\"Budget Year +2 \"&C1+2&\"/\"&RIGHT(C1,2)+3","v":"Budget Year +2 2016/17"},{"$f":"\"Budget Year +2 \"&D1+2&\"/\"&RIGHT(D1,2)+3","v":"Budget Year +2 2017/18"},{"$f":"\"Budget Year +2 \"&E1+2&\"/\"&RIGHT(E1,2)+3","v":"Budget Year +2 2018/19"},"Budget Year +2 2019/20","Budget Year +2 2020/21","Budget Year +2 2021/22","Budget Year +2 2022/23","Budget Year +2 2023/24","Budget Year +2 2024/25","Budget Year +2 2025/26","Budget Year +2 2026/27","Budget Year +2 2027/28","Budget Year +2 2028/29",null,null,"Municipal Drought Relief "]
["Adjustments Budget",{"$f":"\"Annual target \" & B1&\"/\"&RIGHT(B1,2)+1","v":"Annual target 2013/14"},{"$f":"\"Annual target \" & C1&\"/\"&RIGHT(C1,2)+1","v":"Annual target 2014/15"},{"$f":"\"Annual target \" & D1&\"/\"&RIGHT(D1,2)+1","v":"Annual target 2015/16"},{"$f":"\"Annual target \" & E1&\"/\"&RIGHT(E1,2)+1","v":"Annual target 2016/17"},"Annual target 2017/18","Annual target 2018/19","Annual target 2019/20","Annual target 2020/21","Annual target 2021/22","Annual target 2022/23","Annual target 2023/24","Annual target 2024/25","Annual target 2025/26","Annual target 2026/27",null,null,"2010 FIFA World Cup Operating"]
["NOTE: This sheet should not be directly amended - select headings from sheet 'S'",null,null,null,null,null,null,null,null,null,null,null,null,null,null,null,null,"Electricity Demand Side Management"]
[null,null,null,null,null,null,null,null,null,null,null,null,null,null,null,null,null,"EPWP Incentive"]
[]
[]
[null,null,null,null,null,null,null,null,null,null,null,null,null,null,null,null,null,"Asset Class","Asset sub-class Old","Asset sub-class","IUDF","MTSF"]
[]
[null,null,null,null,null,null,null,null,null,null,null,null,null,null,null,null,null,"Roads Infrastructure","Roads, Pavements & Bridges","Roads","Spatial integration","Quality basic education"]
[null,null,null,null,null,null,null,null,null,null,null,null,null,null,null,null,null,"Storm water Infrastructure","Storm water","Road Structures","Inclusion and access","A long and healthy life for all South Africans"]
[null,null,null,null,null,null,null,null,null,null,null,null,null,null,null,null,null,"Electrical Infrastructure","Generation","Road Furniture","Growth","All people in South Africa are and feel safe"]
[null,null,null,null,null,null,null,null,null,null,null,null,null,null,null,null,null,"Water Supply Infrastructure","Transmission & Reticulation","Capital Spares","Governance","Decent employment through inclusive growth"]
[null,null,null,null,null,null,null,null,null,null,null,null,null,null,null,null,null,"Sanitation Infrastructure","Street Lighting","Drainage Collection",null,"A skilled and capable workforce to support an inclusive growth path"]
[null,null,null,null,null,null,null,null,null,null,null,null,null,null,null,null,null,"Solid Waste Infrastructure","Dams & Reservoirs","Storm water Conveyance",null,"An efficient, competitive and responsive economic infrastructure network"]
[null,null,null,null,null,null,null,null,null,null,null,null,null,null,null,null,null,"Rail Infrastructure","Water purification","Attenuation",null,"Vibrant, equitable, sustainable rural communities contributing towards food security for all"]
[null,null,null,null,null,null,null,null,null,null,null,null,null,null,null,null,null,"Coastal Infrastructure","Reticulation","Power Plants",null,"Sustainable human settlements and improved quality of household life"]
[null,null,null,null,null,null,null,null,null,null,null,null,null,null,null,null,null,"Information and Communication Infrastructure","Sewerage purification","HV Substations",null,"Responsive, accountable, effective and efficient local government"]
[null,null,null,null,null,null,null,null,null,null,null,null,null,null,null,null,null,"Community Facilities","Waste Management","HV Switching Station",null,"Protect and enhance our environmental assets and natural resources"]
["Name link",119,null,null,null,null,null,null,null,null,null,null,null,null,null,null,null,"Sport and Recreation Facilities","Transportation","HV Transmission Conductors",null,"Create a better South Africa and contribute to a better Africa and a better world"]
["Name of Muni",{"$f":"INDEX(B29:B312,B27,1)","v":"KZN291 Mandeni"},null,null,null,null,null,null,null,null,null,null,null,null,null,null,null,"Heritage assets","Gas","MV Substations",null,"An efficient, effective and development-oriented public service"]
[null,"Choose name from list","Set name on 'Instructions' sheet",null,null,null,null,null,null,null,null,null,null,null,null,null,null,"Revenue Generating","Parks & gardens","MV Switching Stations",null,"A comprehensive, responsive and sustainable social protection system"]
[null,"BUF Buffalo City","EC EASTERN CAPE",null,null,null,null,null,null,null,null,null,null,null,null,null,null,"Non-revenue Generating","Sportsfields & stadia","MV Networks",null,"A diverse, socially cohesive society with a common national identity"]
[null,"NMA Nelson Mandela Bay","EC EASTERN CAPE",null,null,null,null,null,null,null,null,null,null,null,null,null,null,"Operational Buildings","Swimming pools","LV Networks"]
[null,"EC101 Dr Beyers Naude","EC EASTERN CAPE",null,null,null,null,null,null,null,null,null,null,null,null,null,null,"Housing","Community halls","Capital Spares"]
[null,"EC102 Blue Crane Route","EC EASTERN CAPE",null,null,null,null,null,null,null,null,null,null,null,null,null,null,"Biological or Cultivated Assets","Libraries","Dams and Weirs"]
[null,"EC104 Makana","EC EASTERN CAPE",null,null,null,null,null,null,null,null,null,null,null,null,null,null,"Servitudes","Recreational facilities","Boreholes"]
[null,"EC105 Ndlambe","EC EASTERN CAPE",null,null,null,null,null,null,null,null,null,null,null,null,null,null,"Licences and Rights","Fire, safety & emergency","Reservoirs"]
[null,"EC106 Sundays River Valley","EC EASTERN CAPE",null,null,null,null,null,null,null,null,null,null,null,null,null,null,"Computer Equipment","Security and policing","Pump Stations"]
[null,"EC108 Kouga","EC EASTERN CAPE",null,null,null,null,null,null,null,null,null,null,null,null,null,null,"Furniture and Office Equipment","Buses","Water Treatment Works"]
[null,"EC109 Kou-Kamma","EC EASTERN CAPE",null,null,null,null,null,null,null,null,null,null,null,null,null,null,"Machinery and Equipment","Clinics","Bulk Mains"]
[null,"DC10 Sarah Baartman","EC EASTERN CAPE",null,null,null,null,null,null,null,null,null,null,null,null,null,null,"Transport Assets","Museums & Art Galleries","Distribution"]
[null,"EC121 Mbhashe","EC EASTERN CAPE",null,null,null,null,null,null,null,null,null,null,null,null,null,null,"Land","Cemeteries","Distribution Points"]
[null,"EC122 Mnquma","EC EASTERN CAPE",null,null,null,null,null,null,null,null,null,null,null,null,null,null,"Zoo's, Marine and Non-biological Animals","Social rental housing","PRV Stations"]
[null,"EC123 Great Kei","EC EASTERN CAPE",null,null,null,null,null,null,null,null,null,null,null,null,null,null,null,"Buildings","Capital Spares"]
[null,"EC124 Amahlathi","EC EASTERN CAPE",null,null,null,null,null,null,null,null,null,null,null,null,null,null,null,"Housing development","Pump Station"]
[null,"EC126 Ngqushwa","EC EASTERN CAPE",null,null,null,null,null,null,null,null,null,null,null,null,null,null,null,"General vehicles","Reticulation"]
[null,"EC129 Raymond Mhlaba","EC EASTERN CAPE",null,null,null,null,null,null,null,null,null,null,null,null,null,null,null,"Specialised vehicles - Refuse","Waste Water Treatment Works"]
[null,"DC12 Amathole","EC EASTERN CAPE",null,null,null,null,null,null,null,null,null,null,null,null,null,null,null,"Specialised vehicles - Fire","Outfall Sewers"]
[null,"EC131 Inxuba Yethemba","EC EASTERN CAPE",null,null,null,null,null,null,null,null,null,null,null,null,null,null,null,"Specialised vehicles - Conservancy","Toilet Facilities"]
[null,"EC135 Intsika Yethu","EC EASTERN CAPE",null,null,null,null,null,null,null,null,null,null,null,null,null,null,null,"Specialised vehicles - Ambulances","Capital Spares"]
[null,"EC136 Emalahleni (Ec)","EC EASTERN CAPE",null,null,null,null,null,null,null,null,null,null,null,null,null,null,null,"Plant & equipment","Landfill Sites"]
[null,"EC137 Engcobo","EC EASTERN CAPE",null,null,null,null,null,null,null,null,null,null,null,null,null,null,null,"Computers - hardware/equipment","Waste Transfer Stations"]
[null,"EC138 Sakhisizwe","EC EASTERN CAPE",null,null,null,null,null,null,null,null,null,null,null,null,null,null,null,"Furniture and other office equipment","Waste Processing Facilities"]
[null,"EC139 Enoch Mgijima","EC EASTERN CAPE",null,null,null,null,null,null,null,null,null,null,null,null,null,null,null,"Abattoirs","Waste Drop-off Points"]
[null,"DC13 Chris Hani","EC EASTERN CAPE",null,null,null,null,null,null,null,null,null,null,null,null,null,null,null,"Markets","Waste Separation Facilities"]
[null,"EC141 Elundini","EC EASTERN CAPE",null,null,null,null,null,null,null,null,null,null,null,null,null,null,null,"Civic Land and Buildings","Electricity Generation Facilities"]
[null,"EC142 Senqu","EC EASTERN CAPE",null,null,null,null,null,null,null,null,null,null,null,null,null,null,null,"Other Buildings","Capital Spares"]
[null,"EC145 Walter Sisulu","EC EASTERN CAPE",null,null,null,null,null,null,null,null,null,null,null,null,null,null,null,"Other Land","Rail Lines"]
[null,"DC14 Joe Gqabi","EC EASTERN CAPE",null,null,null,null,null,null,null,null,null,null,null,null,null,null,null,"Surplus Assets - (Investment or Inventory)","Rail Structures"]
[null,"EC153 Ngquza Hills","EC EASTERN CAPE",null,null,null,null,null,null,null,null,null,null,null,null,null,null,null,"Computers - software & programming","Rail Furniture"]
[null,"EC154 Port St Johns","EC EASTERN CAPE",null,null,null,null,null,null,null,null,null,null,null,null,null,null,null,"Other","Drainage Collection"]
[null,"EC155 Nyandeni","EC EASTERN CAPE",null,null,null,null,null,null,null,null,null,null,null,null,null,null,null,null,"Storm water Conveyance"]
[null,"EC156 Mhlontlo","EC EASTERN CAPE",null,null,null,null,null,null,null,null,null,null,null,null,null,null,"SB 19",null,"Attenuation"]
[null,"EC157 King Sabata Dalindyebo","EC EASTERN CAPE",null,null,null,null,null,null,null,null,null,null,null,null,null,null,"Yes",null,"MV Substations"]
[null,"DC15 O .R. Tambo","EC EASTERN CAPE",null,null,null,null,null,null,null,null,null,null,null,null,null,null,"No",null,"LV Networks"]
[null,"EC441 Matatiele","EC EASTERN CAPE",null,null,null,null,null,null,null,null,null,null,null,null,null,null,null,null,"Capital Spares"]
[null,"EC442 Umzimvubu","EC EASTERN CAPE",null,null,null,null,null,null,null,null,null,null,null,null,null,null,null,null,"Sand Pumps"]
[null,"EC443 Winnie Madikizela Mandela","EC EASTERN CAPE",null,null,null,null,null,null,null,null,null,null,null,null,null,null,null,null,"Piers"]
[null,"EC444 Ntabankulu","EC EASTERN CAPE",null,null,null,null,null,null,null,null,null,null,null,null,null,null,null,null,"Revetments"]
[null,"DC44 Alfred Nzo","EC EASTERN CAPE",null,null,null,null,null,null,null,null,null,null,null,null,null,null,null,null,"Promenades"]
[null,"MAN Mangaung","FS FREE STATE",null,null,null,null,null,null,null,null,null,null,null,null,null,null,null,null,"Capital Spares"]
[null,"FS161 Letsemeng","FS FREE STATE",null,null,null,null,null,null,null,null,null,null,null,null,null,null,null,null,"Data Centres"]
[null,"FS162 Kopanong","FS FREE STATE",null,null,null,null,null,null,null,null,null,null,null,null,null,null,null,null,"Core Layers"]
[null,"FS163 Mohokare","FS FREE STATE",null,null,null,null,null,null,null,null,null,null,null,null,null,null,null,null,"Distribution Layers"]
[null,"DC16 Xhariep","FS FREE STATE",null,null,null,null,null,null,null,null,null,null,null,null,null,null,null,null,"Capital Spares"]
[null,"FS181 Masilonyana","FS FREE STATE",null,null,null,null,null,null,null,null,null,null,null,null,null,null,null,null,"Halls"]
[null,"FS182 Tokologo","FS FREE STATE",null,null,null,null,null,null,null,null,null,null,null,null,null,null,null,null,"Centres"]
[null,"FS183 Tswelopele","FS FREE STATE",null,null,null,null,null,null,null,null,null,null,null,null,null,null,null,null,"Crèches"]
[null,"FS184 Matjhabeng","FS FREE STATE",null,null,null,null,null,null,null,null,null,null,null,null,null,null,null,null,"Clinics/Care Centres"]
[null,"FS185 Nala","FS FREE STATE",null,null,null,null,null,null,null,null,null,null,null,null,null,null,null,null,"Fire/Ambulance Stations"]
[null,"DC18 Lejweleputswa","FS FREE STATE",null,null,null,null,null,null,null,null,null,null,null,null,null,null,null,null,"Testing Stations"]
[null,"FS191 Setsoto","FS FREE STATE",null,null,null,null,null,null,null,null,null,null,null,null,null,null,null,null,"Museums"]
[null,"FS192 Dihlabeng","FS FREE STATE",null,null,null,null,null,null,null,null,null,null,null,null,null,null,null,null,"Galleries"]
[null,"FS193 Nketoana","FS FREE STATE",null,null,null,null,null,null,null,null,null,null,null,null,null,null,null,null,"Theatres"]
[null,"FS194 Maluti-a-Phofung","FS FREE STATE",null,null,null,null,null,null,null,null,null,null,null,null,null,null,null,null,"Libraries"]
[null,"FS195 Phumelela","FS FREE STATE",null,null,null,null,null,null,null,null,null,null,null,null,null,null,null,null,"Cemeteries/Crematoria"]
[null,"FS196 Mantsopa","FS FREE STATE",null,null,null,null,null,null,null,null,null,null,null,null,null,null,null,null,"Police"]
[null,"DC19 Thabo Mofutsanyana","FS FREE STATE",null,null,null,null,null,null,null,null,null,null,null,null,null,null,null,null,"Purls"]
[null,"FS201 Moqhaka","FS FREE STATE",null,null,null,null,null,null,null,null,null,null,null,null,null,null,null,null,"Public Open Space"]
[null,"FS203 Ngwathe","FS FREE STATE",null,null,null,null,null,null,null,null,null,null,null,null,null,null,null,null,"Nature Reserves"]
[null,"FS204 Metsimaholo","FS FREE STATE",null,null,null,null,null,null,null,null,null,null,null,null,null,null,null,null,"Public Ablution Facilities"]
[null,"FS205 Mafube","FS FREE STATE",null,null,null,null,null,null,null,null,null,null,null,null,null,null,null,null,"Markets"]
[null,"DC20 Fezile Dabi","FS FREE STATE",null,null,null,null,null,null,null,null,null,null,null,null,null,null,null,null,"Stalls"]
[null,"EKU City of Ekurhuleni","GT GAUTENG",null,null,null,null,null,null,null,null,null,null,null,null,null,null,null,null,"Abattoirs"]
[null,"JHB City Of Johannesburg","GT GAUTENG",null,null,null,null,null,null,null,null,null,null,null,null,null,null,null,null,"Airports"]
[null,"TSH City Of Tshwane","GT GAUTENG",null,null,null,null,null,null,null,null,null,null,null,null,null,null,null,null,"Taxi Ranks/Bus Terminals"]
[null,"GT421 Emfuleni","GT GAUTENG",null,null,null,null,null,null,null,null,null,null,null,null,null,null,null,null,"Capital Spares"]
[null,"GT422 Midvaal","GT GAUTENG",null,null,null,null,null,null,null,null,null,null,null,null,null,null,null,null,"Indoor Facilities"]
[null,"GT423 Lesedi","GT GAUTENG",null,null,null,null,null,null,null,null,null,null,null,null,null,null,null,null,"Outdoor Facilities"]
[null,"DC42 Sedibeng","GT GAUTENG",null,null,null,null,null,null,null,null,null,null,null,null,null,null,null,null,"Capital Spares"]
[null,"GT481 Mogale City","GT GAUTENG",null,null,null,null,null,null,null,null,null,null,null,null,null,null,null,null,"Monuments"]
[null,"GT484 Merafong City","GT GAUTENG",null,null,null,null,null,null,null,null,null,null,null,null,null,null,null,null,"Historic Buildings"]
[null,"GT485 Rand West City","GT GAUTENG",null,null,null,null,null,null,null,null,null,null,null,null,null,null,null,null,"Works of Art"]
[null,"DC48 West Rand","GT GAUTENG",null,null,null,null,null,null,null,null,null,null,null,null,null,null,null,null,"Conservation Areas"]
[null,"ETH eThekwini","KZN KWAZULU-NATAL",null,null,null,null,null,null,null,null,null,null,null,null,null,null,null,null,"Other Heritage"]
[null,"KZN212 Umdoni","KZN KWAZULU-NATAL",null,null,null,null,null,null,null,null,null,null,null,null,null,null,null,null,"Improved Property"]
[null,"KZN213 Umzumbe","KZN KWAZULU-NATAL",null,null,null,null,null,null,null,null,null,null,null,null,null,null,null,null,"Unimproved Property"]
[null,"KZN214 uMuziwabantu","KZN KWAZULU-NATAL",null,null,null,null,null,null,null,null,null,null,null,null,null,null,null,null,"Municipal Offices"]
[null,"KZN216 Ray Nkonyeni","KZN KWAZULU-NATAL",null,null,null,null,null,null,null,null,null,null,null,null,null,null,null,null,"Pay/Enquiry Points"]
[null,"DC21 Ugu","KZN KWAZULU-NATAL",null,null,null,null,null,null,null,null,null,null,null,null,null,null,null,null,"Building Plan Offices"]
[null,"KZN221 uMshwathi","KZN KWAZULU-NATAL",null,null,null,null,null,null,null,null,null,null,null,null,null,null,null,null,"Workshops"]
[null,"KZN222 uMngeni","KZN KWAZULU-NATAL",null,null,null,null,null,null,null,null,null,null,null,null,null,null,null,null,"Yards"]
[null,"KZN223 Mpofana","KZN KWAZULU-NATAL",null,null,null,null,null,null,null,null,null,null,null,null,null,null,null,null,"Stores"]
[null,"KZN224 Impendle","KZN KWAZULU-NATAL",null,null,null,null,null,null,null,null,null,null,null,null,null,null,null,null,"Laboratories"]
[null,"KZN225 Msunduzi","KZN KWAZULU-NATAL",null,null,null,null,null,null,null,null,null,null,null,null,null,null,null,null,"Training Centres"]
[null,"KZN226 Mkhambathini","KZN KWAZULU-NATAL",null,null,null,null,null,null,null,null,null,null,null,null,null,null,null,null,"Manufacturing Plant"]
[null,"KZN227 Richmond","KZN KWAZULU-NATAL",null,null,null,null,null,null,null,null,null,null,null,null,null,null,null,null,"Depots"]
[null,"DC22 uMgungundlovu","KZN KWAZULU-NATAL",null,null,null,null,null,null,null,null,null,null,null,null,null,null,null,null,"Capital Spares"]
[null,"KZN235 Okhahlamba","KZN KWAZULU-NATAL",null,null,null,null,null,null,null,null,null,null,null,null,null,null,null,null,"Staff Housing"]
[null,"KZN237 Inkosi Langalibalele","KZN KWAZULU-NATAL",null,null,null,null,null,null,null,null,null,null,null,null,null,null,null,null,"Social Housing"]
[null,"KZN238 Alfred Duma","KZN KWAZULU-NATAL",null,null,null,null,null,null,null,null,null,null,null,null,null,null,null,null,"Capital Spares"]
[null,"DC23 Uthukela","KZN KWAZULU-NATAL",null,null,null,null,null,null,null,null,null,null,null,null,null,null,null,null,"Water Rights"]
[null,"KZN241 Endumeni","KZN KWAZULU-NATAL",null,null,null,null,null,null,null,null,null,null,null,null,null,null,null,null,"Effluent Licenses"]
[null,"KZN242 Nquthu","KZN KWAZULU-NATAL",null,null,null,null,null,null,null,null,null,null,null,null,null,null,null,null,"Solid Waste Licenses"]
[null,"KZN244 Msinga","KZN KWAZULU-NATAL",null,null,null,null,null,null,null,null,null,null,null,null,null,null,null,null,"Computer Software and Applications"]
[null,"KZN245 Umvoti","KZN KWAZULU-NATAL",null,null,null,null,null,null,null,null,null,null,null,null,null,null,null,null,"Load Settlement Software Applications"]
[null,"DC24 Umzinyathi","KZN KWAZULU-NATAL",null,null,null,null,null,null,null,null,null,null,null,null,null,null,null,null,"Unspecified"]
[null,"KZN252 Newcastle","KZN KWAZULU-NATAL"]
[null,"KZN253 Emadlangeni","KZN KWAZULU-NATAL"]
[null,"KZN254 Dannhauser","KZN KWAZULU-NATAL"]
[null,"DC25 Amajuba","KZN KWAZULU-NATAL"]
[null,"KZN261 eDumbe","KZN KWAZULU-NATAL"]
[null,"KZN262 uPhongolo","KZN KWAZULU-NATAL"]
[null,"KZN263 Abaqulusi","KZN KWAZULU-NATAL"]
[null,"KZN265 Nongoma","KZN KWAZULU-NATAL"]
[null,"KZN266 Ulundi","KZN KWAZULU-NATAL"]
[null,"DC26 Zululand","KZN KWAZULU-NATAL"]
[null,"KZN271 Umhlabuyalingana","KZN KWAZULU-NATAL"]
[null,"KZN272 Jozini","KZN KWAZULU-NATAL"]
[null,"KZN275 Mtubatuba","KZN KWAZULU-NATAL"]
[null,"KZN276 Hlabisa Big Five","KZN KWAZULU-NATAL"]
[null,"DC27 Umkhanyakude","KZN KWAZULU-NATAL"]
[null,"KZN281 Mfolozi","KZN KWAZULU-NATAL"]
[null,"KZN282 uMhlathuze","KZN KWAZULU-NATAL"]
[null,"KZN284 uMlalazi","KZN KWAZULU-NATAL"]
[null,"KZN285 Mthonjaneni","KZN KWAZULU-NATAL"]
[null,"KZN286 Nkandla","KZN KWAZULU-NATAL"]
[null,"DC28 King Cetshwayo","KZN KWAZULU-NATAL"]
[null,"KZN291 Mandeni","KZN KWAZULU-NATAL"]
[null,"KZN292 KwaDukuza","KZN KWAZULU-NATAL"]
[null,"KZN293 Ndwedwe","KZN KWAZULU-NATAL"]
[null,"KZN294 Maphumulo","KZN KWAZULU-NATAL"]
[null,"DC29 iLembe","KZN KWAZULU-NATAL"]
[null,"KZN433 Greater Kokstad","KZN KWAZULU-NATAL"]
[null,"KZN434 Ubuhlebezwe","KZN KWAZULU-NATAL"]
[null,"KZN435 Umzimkhulu","KZN KWAZULU-NATAL"]
[null,"KZN436 Dr Nkosazana Dlamini Zuma","KZN KWAZULU-NATAL"]
[null,"DC43 Harry Gwala","KZN KWAZULU-NATAL"]
[null,"LIM331 Greater Giyani","LIM LIMPOPO"]
[null,"LIM332 Greater Letaba","LIM LIMPOPO"]
[null,"LIM333 Greater Tzaneen","LIM LIMPOPO"]
[null,"LIM334 Ba-Phalaborwa","LIM LIMPOPO"]
[null,"LIM335 Maruleng","LIM LIMPOPO"]
[null,"DC33 Mopani","LIM LIMPOPO"]
[null,"LIM341 Musina","LIM LIMPOPO"]
[null,"LIM343 Thulamela","LIM LIMPOPO"]
[null,"LIM344 Makhado","LIM LIMPOPO"]
[null,"LIM345 Collins Chabane","LIM LIMPOPO"]
[null,"DC34 Vhembe","LIM LIMPOPO"]
[null,"LIM351 Blouberg","LIM LIMPOPO"]
[null,"LIM353 Molemole","LIM LIMPOPO"]
[null,"LIM354 Polokwane","LIM LIMPOPO"]
[null,"LIM355 Lepelle-Nkumpi","LIM LIMPOPO"]
[null,"DC35 Capricorn","LIM LIMPOPO"]
[null,"LIM361 Thabazimbi","LIM LIMPOPO"]
[null,"LIM362 Lephalale","LIM LIMPOPO"]
[null,"LIM366 Bela Bela","LIM LIMPOPO"]
[null,"LIM367 Mogalakwena","LIM LIMPOPO"]
[null,"LIM368 Modimolle-Mookgopong","LIM LIMPOPO"]
[null,"DC36 Waterberg","LIM LIMPOPO"]
[null,"LIM471 Ephraim Mogale","LIM LIMPOPO"]
[null,"LIM472 Elias Motsoaledi","LIM LIMPOPO"]
[null,"LIM473 Makhuduthamaga","LIM LIMPOPO"]
[null,"LIM476 Tubatse Fetakgomo","LIM LIMPOPO"]
[null,"DC47 Sekhukhune","LIM LIMPOPO"]
[null,"MP301 Albert Luthuli","MP MPUMALANGA"]
[null,"MP302 Msukaligwa","MP MPUMALANGA"]
[null,"MP303 Mkhondo","MP MPUMALANGA"]
[null,"MP304 Pixley Ka Seme (MP)","MP MPUMALANGA"]
[null,"MP305 Lekwa","MP MPUMALANGA"]
[null,"MP306 Dipaleseng","MP MPUMALANGA"]
[null,"MP307 Govan Mbeki","MP MPUMALANGA"]
[null,"DC30 Gert Sibande","MP MPUMALANGA"]
[null,"MP311 Victor Khanye","MP MPUMALANGA"]
[null,"MP312 Emalahleni (Mp)","MP MPUMALANGA"]
[null,"MP313 Steve Tshwete","MP MPUMALANGA"]
[null,"MP314 Emakhazeni","MP MPUMALANGA"]
[null,"MP315 Thembisile Hani","MP MPUMALANGA"]
[null,"MP316 Dr J.S. Moroka","MP MPUMALANGA"]
[null,"DC31 Nkangala","MP MPUMALANGA"]
[null,"MP321 Thaba Chweu","MP MPUMALANGA"]
[null,"MP324 Nkomazi","MP MPUMALANGA"]
[null,"MP325 Bushbuckridge","MP MPUMALANGA"]
[null,"MP326 City of Mbombela","MP MPUMALANGA"]
[null,"DC32 Ehlanzeni","MP MPUMALANGA"]
[null,"NC451 Joe Morolong","NC NORTHERN CAPE"]
[null,"NC452 Ga-Segonyana","NC NORTHERN CAPE"]
[null,"NC453 Gamagara","NC NORTHERN CAPE"]
[null,"DC45 John Taolo Gaetsewe","NC NORTHERN CAPE"]
[null,"NC061 Richtersveld","NC NORTHERN CAPE"]
[null,"NC062 Nama Khoi","NC NORTHERN CAPE"]
[null,"NC064 Kamiesberg","NC NORTHERN CAPE"]
[null,"NC065 Hantam","NC NORTHERN CAPE"]
[null,"NC066 Karoo Hoogland","NC NORTHERN CAPE"]
[null,"NC067 Khai-Ma","NC NORTHERN CAPE"]
[null,"DC6 Namakwa","NC NORTHERN CAPE"]
[null,"NC071 Ubuntu","NC NORTHERN CAPE"]
[null,"NC072 Umsobomvu","NC NORTHERN CAPE"]
[null,"NC073 Emthanjeni","NC NORTHERN CAPE"]
[null,"NC074 Kareeberg","NC NORTHERN CAPE"]
[null,"NC075 Renosterberg","NC NORTHERN CAPE"]
[null,"NC076 Thembelihle","NC NORTHERN CAPE"]
[null,"NC077 Siyathemba","NC NORTHERN CAPE"]
[null,"NC078 Siyancuma","NC NORTHERN CAPE"]
[null,"DC7 Pixley Ka Seme (Nc)","NC NORTHERN CAPE"]
[null,"NC082 !Kai! Garib","NC NORTHERN CAPE"]
[null,"NC084 !Kheis","NC NORTHERN CAPE"]
[null,"NC085 Tsantsabane","NC NORTHERN CAPE"]
[null,"NC086 Kgatelopele","NC NORTHERN CAPE"]
[null,"NC087 Dawid Kruiper","NC NORTHERN CAPE"]
[null,"DC8 Z F Mgcawu","NC NORTHERN CAPE"]
[null,"NC091 Sol Plaatje","NC NORTHERN CAPE"]
[null,"NC092 Dikgatlong","NC NORTHERN CAPE"]
[null,"NC093 Magareng","NC NORTHERN CAPE"]
[null,"NC094 Phokwane","NC NORTHERN CAPE"]
[null,"DC9 Frances Baard","NC NORTHERN CAPE"]
[null,"NW371 Moretele","NW NORTH WEST"]
[null,"NW372 Madibeng","NW NORTH WEST"]
[null,"NW373 Rustenburg","NW NORTH WEST"]
[null,"NW374 Kgetlengrivier","NW NORTH WEST"]
[null,"NW375 Moses Kotane","NW NORTH WEST"]
[null,"DC37 Bojanala Platinum","NW NORTH WEST"]
[null,"NW381 Ratlou","NW NORTH WEST"]
[null,"NW382 Tswaing","NW NORTH WEST"]
[null,"NW383 Mafikeng","NW NORTH WEST"]
[null,"NW384 Ditsobotla","NW NORTH WEST"]
[null,"NW385 Ramotshere Moiloa","NW NORTH WEST"]
[null,"DC38 Ngaka Modiri Molema","NW NORTH WEST"]
[null,"NW392 Naledi (Nw)","NW NORTH WEST"]
[null,"NW393 Mamusa","NW NORTH WEST"]
[null,"NW394 Greater Taung","NW NORTH WEST"]
[null,"NW396 Lekwa-Teemane","NW NORTH WEST"]
[null,"NW397 Kagisano-Molopo","NW NORTH WEST"]
[null,"DC39 Dr Ruth Segomotsi Mompati","NW NORTH WEST"]
[null,"NW403 City Of Matlosana","NW NORTH WEST"]
[null,"NW404 Maquassi Hills","NW NORTH WEST"]
[null,"NW405 J B Marks","NW NORTH WEST"]
[null,"DC40 Dr Kenneth Kaunda","NW NORTH WEST"]
[null,"CPT Cape Town","WC WESTERN CAPE"]
[null,"WC011 Matzikama","WC WESTERN CAPE"]
[null,"WC012 Cederberg","WC WESTERN CAPE"]
[null,"WC013 Bergrivier","WC WESTERN CAPE"]
[null,"WC014 Saldanha Bay","WC WESTERN CAPE"]
[null,"WC015 Swartland","WC WESTERN CAPE"]
[null,"DC1 West Coast","WC WESTERN CAPE"]
[null,"WC022 Witzenberg","WC WESTERN CAPE"]
[null,"WC023 Drakenstein","WC WESTERN CAPE"]
[null,"WC024 Stellenbosch","WC WESTERN CAPE"]
[null,"WC025 Breede Valley","WC WESTERN CAPE"]
[null,"WC026 Langeberg","WC WESTERN CAPE"]
[null,"DC2 Cape Winelands DM","WC WESTERN CAPE"]
[null,"WC031 Theewaterskloof","WC WESTERN CAPE"]
[null,"WC032 Overstrand","WC WESTERN CAPE"]
[null,"WC033 Cape Agulhas","WC WESTERN CAPE"]
[null,"WC034 Swellendam","WC WESTERN CAPE"]
[null,"DC3 Overberg","WC WESTERN CAPE"]
[null,"WC041 Kannaland","WC WESTERN CAPE"]
[null,"WC042 Hessequa","WC WESTERN CAPE"]
[null,"WC043 Mossel Bay","WC WESTERN CAPE"]
[null,"WC044 George","WC WESTERN CAPE"]
[null,"WC045 Oudtshoorn","WC WESTERN CAPE"]
[null,"WC047 Bitou","WC WESTERN CAPE"]
[null,"WC048 Knysna","WC WESTERN CAPE"]
[null,"DC4 Garden Route","WC WESTERN CAPE"]
[null,"WC051 Laingsburg","WC WESTERN CAPE"]
[null,"WC052 Prince Albert","WC WESTERN CAPE"]
[null,"WC053 Beaufort West","WC WESTERN CAPE"]
[null,"DC5 Central Karoo","WC WESTERN CAPE"]
[]
[]
[]
[]
[]
[]
[]
[]
[]
[]
[]
[]
[]
[]
[]
[]
[]
[]
[]
[]
[]
[null,null,{"$f":"COUNTA(C30:C307)","v":257}]

{"sheet":"Org structure","index":22,"n_rows":166,"n_cols":9,"rows_kept":166,"cut":false,"hidden":false,"merged":[]}
["Organisational Structure Votes",null,"Organisational Structure Sub-Votes",null,"Display Sub-Votes"]
[{"$f":"B2&\" - \"&C2","v":"Vote 1 - Executive and council"},"Vote 1",{"$f":"IFERROR(VLOOKUP($I2,MainVote,3,0),\"[NAME OF VOTE \"&I2&\"]\")","v":"Executive and council"},null,null,null,null,null,1]
[{"$f":"B13&\" - \"& C13","v":"Vote 2 - Finance and administration"},1.1000000000000001,{"$f":"IFERROR(VLOOKUP($H3,SubMunicipalVote,3,0),\"[Name of sub-vote]\")","v":"Mayor and Council"},{"$f":"CONCATENATE(B3, \" - \", C3)","v":"1.1 - Mayor and Council"},"1.1 - [Name of sub-vote]",null,null,11]
[{"$f":"B24&\" - \"&C24","v":"Vote 3 - Internal audit"},1.2,"Municipal Manager, Town Secretary and Chief Executive","1.2 - Municipal Manager, Town Secretary and Chief Executive",null,null,null,12]
[{"$f":"B35&\" - \"&C35","v":"Vote 4 - Community and social services"},1.3,"[Name of sub-vote]","1.3 - [Name of sub-vote]",null,null,null,13]
[{"$f":"B46&\" - \"&C46","v":"Vote 5 - Sport and Recreation"},1.4,"[Name of sub-vote]","1.4 - [Name of sub-vote]",null,null,null,14]
[{"$f":"B57&\" - \"&C57","v":"Vote 6 - Public safety"},1.5,"[Name of sub-vote]","1.5 - [Name of sub-vote]",null,null,null,15]
[{"$f":"B68&\" - \"&C68","v":"Vote 7 - Housing"},1.6,"[Name of sub-vote]","1.6 - [Name of sub-vote]",null,null,null,16]
[{"$f":"B79&\" - \"&C79","v":"Vote 8 - Planning and Development"},1.7,"[Name of sub-vote]","1.7 - [Name of sub-vote]",null,null,null,17]
[{"$f":"B90&\" - \"&C90","v":"Vote 9 - Road transport"},1.8,"[Name of sub-vote]","1.8 - [Name of sub-vote]",null,null,null,18]
[{"$f":"B101&\" - \"&C101","v":"Vote 10 - Energy sources"},1.9,"[Name of sub-vote]","1.9 - [Name of sub-vote]",null,null,null,19]
[{"$f":"B112&\" - \"&C112","v":"Vote 11 - Waste Management"},"1.10","[Name of sub-vote]","1.10 - [Name of sub-vote]",null,null,null,110]
[{"$f":"B123&\" - \"&C123","v":"Vote 12 - Environmental Protection"},"Vote 2",{"$f":"IFERROR(VLOOKUP($I13,MainVote,3,0),\"[NAME OF VOTE \"&I13&\"]\")","v":"Finance and administration"},null,null,null,null,null,2]
[{"$f":"B134&\" - \"&C134","v":"Vote 13 - [NAME OF VOTE 13]"},2.1,{"$f":"IFERROR(VLOOKUP($H14,SubMunicipalVote,3,0),\"[Name of sub-vote]\")","v":"Administrative and Corporate Support"},{"$f":"CONCATENATE(B14, \" - \", C14)","v":"2.1 - Administrative and Corporate Support"},"2.1 - [Name of sub-vote]",null,null,21]
[{"$f":"B145&\" - \"&C145","v":"Vote 14 - [NAME OF VOTE 14]"},2.2000000000000002,"Asset Management","2.2 - Asset Management",null,null,null,22]
[{"$f":"B156&\" - \"&C156","v":"Vote 15 - [NAME OF VOTE 15]"},2.2999999999999998,"Finance","2.3 - Finance",null,null,null,23]
[null,2.4,"Fleet Management","2.4 - Fleet Management",null,null,null,24]
[null,2.5,"Human Resources","2.5 - Human Resources",null,null,null,25]
[null,2.6,"Information Technology","2.6 - Information Technology",null,null,null,26]
[null,2.7,"Property Services","2.7 - Property Services",null,null,null,27]
[null,2.8,"Security Services","2.8 - Security Services",null,null,null,28]
[null,2.9,"Supply Chain Management","2.9 - Supply Chain Management",null,null,null,29]
[null,"2.10","Valuation Service","2.10 - Valuation Service",null,null,null,210]
[null,"Vote 3",{"$f":"IFERROR(VLOOKUP($I24,MainVote,3,0),\"[NAME OF VOTE \"&I24&\"]\")","v":"Internal audit"},null,null,null,null,null,3]
[null,3.1,{"$f":"IFERROR(VLOOKUP($H25,SubMunicipalVote,3,0),\"[Name of sub-vote]\")","v":"Governance Function"},{"$f":"CONCATENATE(B25, \" - \", C25)","v":"3.1 - Governance Function"},"3.1 - [Name of sub-vote]",null,null,31]
[null,3.2,"Risk Management","3.2 - Risk Management",null,null,null,32]
[null,3.3,"[Name of sub-vote]","3.3 - [Name of sub-vote]",null,null,null,33]
[null,3.4,"[Name of sub-vote]","3.4 - [Name of sub-vote]",null,null,null,34]
[null,3.5,"[Name of sub-vote]","3.5 - [Name of sub-vote]",null,null,null,35]
[null,3.6,"[Name of sub-vote]","3.6 - [Name of sub-vote]",null,null,null,36]
[null,3.7,"[Name of sub-vote]","3.7 - [Name of sub-vote]",null,null,null,37]
[null,3.8,"[Name of sub-vote]","3.8 - [Name of sub-vote]",null,null,null,38]
[null,3.9,"[Name of sub-vote]","3.9 - [Name of sub-vote]",null,null,null,39]
[null,"3.10","[Name of sub-vote]","3.10 - [Name of sub-vote]",null,null,null,310]
[null,"Vote 4",{"$f":"IFERROR(VLOOKUP($I35,MainVote,3,0),\"[NAME OF VOTE \"&I35&\"]\")","v":"Community and social services"},null,null,null,null,null,4]
[null,4.0999999999999996,{"$f":"IFERROR(VLOOKUP($H36,SubMunicipalVote,3,0),\"[Name of sub-vote]\")","v":"[Name of sub-vote]"},{"$f":"CONCATENATE(B36, \" - \", C36)","v":"4.1 - [Name of sub-vote]"},"4.1 - [Name of sub-vote]",null,null,41]
[null,4.2,"Cemeteries, Funeral Parlours and Crematoriums","4.2 - Cemeteries, Funeral Parlours and Crematoriums",null,null,null,42]
[null,4.3,"Community Halls and Facilities","4.3 - Community Halls and Facilities",null,null,null,43]
[null,4.4000000000000004,"Libraries and Archives","4.4 - Libraries and Archives",null,null,null,44]
[null,4.5,"[Name of sub-vote]","4.5 - [Name of sub-vote]",null,null,null,45]
[null,4.5999999999999996,"Literacy Programmes","4.6 - Literacy Programmes",null,null,null,46]
[null,4.7,"Disaster Management","4.7 - Disaster Management",null,null,null,47]
[null,4.8,"Animal Care and Diseases","4.8 - Animal Care and Diseases",null,null,null,48]
[null,4.9000000000000004,"Child Care Facilities","4.9 - Child Care Facilities",null,null,null,49]
[null,"4.10","Fire Fighting and Protection","4.10 - Fire Fighting and Protection",null,null,null,410]
[null,"Vote 5",{"$f":"IFERROR(VLOOKUP($I46,MainVote,3,0),\"[NAME OF VOTE \"&I46&\"]\")","v":"Sport and Recreation"},null,null,null,null,null,5]
[null,"5.1",{"$f":"IFERROR(VLOOKUP($H47,SubMunicipalVote,3,0),\"[Name of sub-vote]\")","v":"Community Parks (including Nurseries)"},{"$f":"CONCATENATE(B47, \" - \", C47)","v":"5.1 - Community Parks (including Nurseries)"},"5.1 - [Name of sub-vote]",null,null,51]
[null,"5.2","[Name of sub-vote]","5.2 - [Name of sub-vote]",null,null,null,52]
[null,"5.3","Recreational Facilities","5.3 - Recreational Facilities",null,null,null,53]
[null,"5.4","Sports Grounds and Stadiums","5.4 - Sports Grounds and Stadiums",null,null,null,54]
[null,"5.5","Beaches and Jetties","5.5 - Beaches and Jetties",null,null,null,55]
[null,"5.6","[Name of sub-vote]","5.6 - [Name of sub-vote]",null,null,null,56]
[null,"5.7","[Name of sub-vote]","5.7 - [Name of sub-vote]",null,null,null,57]
[null,"5.8","[Name of sub-vote]","5.8 - [Name of sub-vote]",null,null,null,58]
[null,"5.9","[Name of sub-vote]","5.9 - [Name of sub-vote]",null,null,null,59]
[null,"5.10","[Name of sub-vote]","5.10 - [Name of sub-vote]",null,null,null,510]
[null,"Vote 6",{"$f":"IFERROR(VLOOKUP($I57,MainVote,3,0),\"[NAME OF VOTE \"&I57&\"]\")","v":"Public safety"},null,null,null,null,null,6]
[null,"6.1",{"$f":"IFERROR(VLOOKUP($H58,SubMunicipalVote,3,0),\"[Name of sub-vote]\")","v":"Police Forces, Traffic and Street Parking Control"},{"$f":"CONCATENATE(B58, \" - \", C58)","v":"6.1 - Police Forces, Traffic and Street Parking Control"},"6.1 - [Name of sub-vote]",null,null,61]
[null,"6.2","[Name of sub-vote]","6.2 - [Name of sub-vote]",null,null,null,62]
[null,"6.3","Civil Defence","6.3 - Civil Defence",null,null,null,63]
[null,"6.4","[Name of sub-vote]","6.4 - [Name of sub-vote]",null,null,null,64]
[null,"6.5","[Name of sub-vote]","6.5 - [Name of sub-vote]",null,null,null,65]
[null,"6.6","[Name of sub-vote]","6.6 - [Name of sub-vote]",null,null,null,66]
[null,"6.7","[Name of sub-vote]","6.7 - [Name of sub-vote]",null,null,null,67]
[null,"6.8","[Name of sub-vote]","6.8 - [Name of sub-vote]",null,null,null,68]
[null,"6.9","[Name of sub-vote]","6.9 - [Name of sub-vote]",null,null,null,69]
[null,"6.10","[Name of sub-vote]","6.10 - [Name of sub-vote]",null,null,null,610]
[null,"Vote 7",{"$f":"IFERROR(VLOOKUP($I68,MainVote,3,0),\"[NAME OF VOTE \"&I68&\"]\")","v":"Housing"},null,null,null,null,null,7]
[null,"7.1",{"$f":"IFERROR(VLOOKUP($H69,SubMunicipalVote,3,0),\"[Name of sub-vote]\")","v":"Housing"},{"$f":"CONCATENATE(B69, \" - \", C69)","v":"7.1 - Housing"},"7.1 - [Name of sub-vote]",null,null,71]
[null,"7.2","Informal Settlements","7.2 - Informal Settlements",null,null,null,72]
[null,"7.3","[Name of sub-vote]","7.3 - [Name of sub-vote]",null,null,null,73]
[null,"7.4","[Name of sub-vote]","7.4 - [Name of sub-vote]",null,null,null,74]
[null,"7.5","[Name of sub-vote]","7.5 - [Name of sub-vote]",null,null,null,75]
[null,"7.6","[Name of sub-vote]","7.6 - [Name of sub-vote]",null,null,null,76]
[null,"7.7","[Name of sub-vote]","7.7 - [Name of sub-vote]",null,null,null,77]
[null,"7.8","[Name of sub-vote]","7.8 - [Name of sub-vote]",null,null,null,78]
[null,"7.9","[Name of sub-vote]","7.9 - [Name of sub-vote]",null,null,null,79]
[null,"7.10","[Name of sub-vote]","7.10 - [Name of sub-vote]",null,null,null,710]
[null,"Vote 8",{"$f":"IFERROR(VLOOKUP($I79,MainVote,3,0),\"[NAME OF VOTE \"&I79&\"]\")","v":"Planning and Development"},null,null,null,null,null,8]
[null,"8.1",{"$f":"IFERROR(VLOOKUP($H80,SubMunicipalVote,3,0),\"[Name of sub-vote]\")","v":"Corporate Wide Strategic Planning (IDPs, LEDs)"},{"$f":"CONCATENATE(B80, \" - \", C80)","v":"8.1 - Corporate Wide Strategic Planning (IDPs, LEDs)"},"8.1 - [Name of sub-vote]",null,null,81]
[null,"8.2","Economic Development/Planning","8.2 - Economic Development/Planning",null,null,null,82]
[null,"8.3","Project Management Unit","8.3 - Project Management Unit",null,null,null,83]
[null,"8.4","Town Planning, Building Regulations and Enforcement, and City Engineer","8.4 - Town Planning, Building Regulations and Enforcement, and City Engineer",null,null,null,84]
[null,"8.5","Regional Planning and Development","8.5 - Regional Planning and Development",null,null,null,85]
[null,"8.6","Development Facilitation","8.6 - Development Facilitation",null,null,null,86]
[null,"8.7","Central City Improvement District","8.7 - Central City Improvement District",null,null,null,87]
[null,"8.8","[Name of sub-vote]","8.8 - [Name of sub-vote]",null,null,null,88]
[null,"8.9","Tourism","8.9 - Tourism",null,null,null,89]
[null,"8.10","Billboards","8.10 - Billboards",null,null,null,810]
[null,"Vote 9",{"$f":"IFERROR(VLOOKUP($I90,MainVote,3,0),\"[NAME OF VOTE \"&I90&\"]\")","v":"Road transport"},null,null,null,null,null,9]
[null,"9.1",{"$f":"IFERROR(VLOOKUP($H91,SubMunicipalVote,3,0),\"[Name of sub-vote]\")","v":"Roads"},{"$f":"CONCATENATE(B91, \" - \", C91)","v":"9.1 - Roads"},"9.1 - [Name of sub-vote]",null,null,91]
[null,"9.2","Road and Traffic Regulation","9.2 - Road and Traffic Regulation",null,null,null,92]
[null,"9.3","Storm Water Management","9.3 - Storm Water Management",null,null,null,93]
[null,"9.4","[Name of sub-vote]","9.4 - [Name of sub-vote]",null,null,null,94]
[null,"9.5","[Name of sub-vote]","9.5 - [Name of sub-vote]",null,null,null,95]
[null,"9.6","[Name of sub-vote]","9.6 - [Name of sub-vote]",null,null,null,96]
[null,"9.7","[Name of sub-vote]","9.7 - [Name of sub-vote]",null,null,null,97]
[null,"9.8","[Name of sub-vote]","9.8 - [Name of sub-vote]",null,null,null,98]
[null,"9.9","[Name of sub-vote]","9.9 - [Name of sub-vote]",null,null,null,99]
[null,"9.10","[Name of sub-vote]","9.10 - [Name of sub-vote]",null,null,null,910]
[null,"Vote 10",{"$f":"IFERROR(VLOOKUP($I101,MainVote,3,0),\"[NAME OF VOTE \"&I101&\"]\")","v":"Energy sources"},null,null,null,null,null,10]
[null,"10.1",{"$f":"IFERROR(VLOOKUP($H102,SubMunicipalVote,3,0),\"[Name of sub-vote]\")","v":"Electricity"},{"$f":"CONCATENATE(B102, \" - \", C102)","v":"10.1 - Electricity"},"10.1 - [Name of sub-vote]",null,null,101]
[null,"10.2","Street Lighting and Signal Systems","10.2 - Street Lighting and Signal Systems",null,null,null,102]
[null,"10.3","[Name of sub-vote]","10.3 - [Name of sub-vote]",null,null,null,103]
[null,"10.4","[Name of sub-vote]","10.4 - [Name of sub-vote]",null,null,null,104]
[null,"10.5","[Name of sub-vote]","10.5 - [Name of sub-vote]",null,null,null,105]
[null,"10.6","[Name of sub-vote]","10.6 - [Name of sub-vote]",null,null,null,106]
[null,"10.7","[Name of sub-vote]","10.7 - [Name of sub-vote]",null,null,null,107]
[null,"10.8","[Name of sub-vote]","10.8 - [Name of sub-vote]",null,null,null,108]
[null,"10.9","[Name of sub-vote]","10.9 - [Name of sub-vote]",null,null,null,109]
[null,"10.10","[Name of sub-vote]","10.10 - [Name of sub-vote]",null,null,null,1010]
[null,"Vote 11",{"$f":"IFERROR(VLOOKUP($I112,MainVote,3,0),\"[NAME OF VOTE \"&I112&\"]\")","v":"Waste Management"},null,null,null,null,null,11]
[null,11.1,{"$f":"IFERROR(VLOOKUP($H113,SubMunicipalVote,3,0),\"[Name of sub-vote]\")","v":"Solid Waste Removal"},{"$f":"CONCATENATE(B113, \" - \", C113)","v":"11.1 - Solid Waste Removal"},"11.1 - [Name of sub-vote]",null,null,111]
[null,11.2,"Solid Waste Disposal (Landfill Sites)","11.2 - Solid Waste Disposal (Landfill Sites)",null,null,null,112]
[null,11.3,"Street Cleaning","11.3 - Street Cleaning",null,null,null,113]
[null,11.4,"[Name of sub-vote]","11.4 - [Name of sub-vote]",null,null,null,114]
[null,11.5,"[Name of sub-vote]","11.5 - [Name of sub-vote]",null,null,null,115]
[null,11.6,"[Name of sub-vote]","11.6 - [Name of sub-vote]",null,null,null,116]
[null,11.7,"[Name of sub-vote]","11.7 - [Name of sub-vote]",null,null,null,117]
[null,11.8,"[Name of sub-vote]","11.8 - [Name of sub-vote]",null,null,null,118]
[null,11.9,"[Name of sub-vote]","11.9 - [Name of sub-vote]",null,null,null,119]
[null,"11.10","[Name of sub-vote]","11.10 - [Name of sub-vote]",null,null,null,1110]
[null,"Vote 12",{"$f":"IFERROR(VLOOKUP($I123,MainVote,3,0),\"[NAME OF VOTE \"&I123&\"]\")","v":"Environmental Protection"},null,null,null,null,null,12]
[null,12.1,{"$f":"IFERROR(VLOOKUP($H124,SubMunicipalVote,3,0),\"[Name of sub-vote]\")","v":"Biodiversity and Landscape"},{"$f":"CONCATENATE(B124, \" - \", C124)","v":"12.1 - Biodiversity and Landscape"},"12.1 - [Name of sub-vote]",null,null,121]
[null,12.2,"[Name of sub-vote]","12.2 - [Name of sub-vote]",null,null,null,122]
[null,12.3,"[Name of sub-vote]","12.3 - [Name of sub-vote]",null,null,null,123]
[null,12.4,"[Name of sub-vote]","12.4 - [Name of sub-vote]",null,null,null,124]
[null,12.5,"[Name of sub-vote]","12.5 - [Name of sub-vote]",null,null,null,125]
[null,12.6,"[Name of sub-vote]","12.6 - [Name of sub-vote]",null,null,null,126]
[null,12.7,"[Name of sub-vote]","12.7 - [Name of sub-vote]",null,null,null,127]
[null,12.8,"[Name of sub-vote]","12.8 - [Name of sub-vote]",null,null,null,128]
[null,12.9,"[Name of sub-vote]","12.9 - [Name of sub-vote]",null,null,null,129]
[null,"12.10","[Name of sub-vote]","12.10 - [Name of sub-vote]",null,null,null,1210]
[null,"Vote 13",{"$f":"IFERROR(VLOOKUP($I134,MainVote,3,0),\"[NAME OF VOTE \"&I134&\"]\")","v":"[NAME OF VOTE 13]"},null,null,null,null,null,13]
[null,13.1,{"$f":"IFERROR(VLOOKUP($H135,SubMunicipalVote,3,0),\"[Name of sub-vote]\")","v":"[Name of sub-vote]"},{"$f":"CONCATENATE(B135, \" - \", C135)","v":"13.1 - [Name of sub-vote]"},"13.1 - [Name of sub-vote]",null,null,131]
[null,13.2,"[Name of sub-vote]","13.2 - [Name of sub-vote]",null,null,null,132]
[null,13.3,"[Name of sub-vote]","13.3 - [Name of sub-vote]",null,null,null,133]
[null,13.4,"[Name of sub-vote]","13.4 - [Name of sub-vote]",null,null,null,134]
[null,13.5,"[Name of sub-vote]","13.5 - [Name of sub-vote]",null,null,null,135]
[null,13.6,"[Name of sub-vote]","13.6 - [Name of sub-vote]",null,null,null,136]
[null,13.7,"[Name of sub-vote]","13.7 - [Name of sub-vote]",null,null,null,137]
[null,13.8,"[Name of sub-vote]","13.8 - [Name of sub-vote]",null,null,null,138]
[null,13.9,"[Name of sub-vote]","13.9 - [Name of sub-vote]",null,null,null,139]
[null,"13.10","[Name of sub-vote]","13.10 - [Name of sub-vote]",null,null,null,1310]
[null,"Vote 14",{"$f":"IFERROR(VLOOKUP($I145,MainVote,3,0),\"[NAME OF VOTE \"&I145&\"]\")","v":"[NAME OF VOTE 14]"},null,null,null,null,null,14]
[null,14.1,{"$f":"IFERROR(VLOOKUP($H146,SubMunicipalVote,3,0),\"[Name of sub-vote]\")","v":"[Name of sub-vote]"},{"$f":"CONCATENATE(B146, \" - \", C146)","v":"14.1 - [Name of sub-vote]"},"14.1 - [Name of sub-vote]",null,null,141]
[null,14.2,"[Name of sub-vote]","14.2 - [Name of sub-vote]",null,null,null,142]
[null,14.3,"[Name of sub-vote]","14.3 - [Name of sub-vote]",null,null,null,143]
[null,14.4,"[Name of sub-vote]","14.4 - [Name of sub-vote]",null,null,null,144]
[null,14.5,"[Name of sub-vote]","14.5 - [Name of sub-vote]",null,null,null,145]
[null,14.6,"[Name of sub-vote]","14.6 - [Name of sub-vote]",null,null,null,146]
[null,14.7,"[Name of sub-vote]","14.7 - [Name of sub-vote]",null,null,null,147]
[null,14.8,"[Name of sub-vote]","14.8 - [Name of sub-vote]",null,null,null,148]
[null,14.9,"[Name of sub-vote]","14.9 - [Name of sub-vote]",null,null,null,149]
[null,"14.10","[Name of sub-vote]","14.10 - [Name of sub-vote]",null,null,null,1410]
[null,"Vote 15",{"$f":"IFERROR(VLOOKUP($I156,MainVote,3,0),\"[NAME OF VOTE \"&I156&\"]\")","v":"[NAME OF VOTE 15]"},null,null,null,null,null,15]
[null,15.1,{"$f":"IFERROR(VLOOKUP($H157,SubMunicipalVote,3,0),\"[Name of sub-vote]\")","v":"[Name of sub-vote]"},{"$f":"CONCATENATE(B157, \" - \", C157)","v":"15.1 - [Name of sub-vote]"},"15.1 - [Name of sub-vote]",null,null,151]
[null,15.2,"[Name of sub-vote]","15.2 - [Name of sub-vote]",null,null,null,152]
[null,15.3,"[Name of sub-vote]","15.3 - [Name of sub-vote]",null,null,null,153]
[null,15.4,"[Name of sub-vote]","15.4 - [Name of sub-vote]",null,null,null,154]
[null,15.5,"[Name of sub-vote]","15.5 - [Name of sub-vote]",null,null,null,155]
[null,15.6,"[Name of sub-vote]","15.6 - [Name of sub-vote]",null,null,null,156]
[null,15.7,"[Name of sub-vote]","15.7 - [Name of sub-vote]",null,null,null,157]
[null,15.8,"[Name of sub-vote]","15.8 - [Name of sub-vote]",null,null,null,158]
[null,15.9,"[Name of sub-vote]","15.9 - [Name of sub-vote]",null,null,null,159]
[null,"15.10","[Name of sub-vote]","15.10 - [Name of sub-vote]",null,null,null,1510]

{"sheet":"Contacts","index":23,"n_rows":140,"n_cols":4,"rows_kept":140,"cut":false,"hidden":false,"merged":[[92,0,92,1],[92,2,92,3],[124,0,124,1],[124,2,124,3],[132,0,132,1],[132,2,132,3],[100,0,100,1],[100,2,100,3],[108,0,108,1],[108,2,108,3],[116,0,116,1],[116,2,116,3],[67,2,67,3],[76,0,76,1],[76,2,76,3],[84,0,84,1],[84,2,84,3],[48,0,48,1],[48,2,48,3],[57,0,57,1],[57,2,57,3],[58,2,58,3],[30,2,30,3],[39,0,39,1],[7,2,7,3],[10,2,10,3],[12,2,12,3],[13,0,13,1],[29,0,29,1],[29,2,29,3],[39,2,39,3]]}
[{"$f":"'Template names'!$B$63&\" - \"&\" Contact Information\"","v":"KZN291 Mandeni -  Contact Information"}]
[]
["A. GENERAL INFORMATION"]
["Municipality",{"$f":"'Template names'!$B$63","v":"KZN291 Mandeni"},"Set name on 'Instructions' sheet"]
[]
["Grade",null,"1 Grade in terms of the Remuneration of Public Office Bearers Act."]
[]
["Province",{"$f":"IF(B4>\" \",VLOOKUP(B4,'Lookup and lists'!B29:C312,2, FALSE),\" \")","v":"KZN KWAZULU-NATAL"}]
[]
["Web Address"]
[]
["e-mail Address"]
[]
["B. CONTACT INFORMATION"]
["Postal address:"]
["P.O. Box","P.O.Box 144"]
["City / Town","Mandeni"]
["Postal Code",4490]
[]
["Street address"]
["Building","Mandeni Municipality"]
["Street No. & Name","2 Kingfisher Road"]
["City / Town","Mandeni"]
["Postal Code"]
[]
["General Contacts"]
["Telephone number","032-456 8200"]
["Fax number","032-456-2504"]
[]
["C. POLITICAL LEADERSHIP"]
["Speaker:",null,"Secretary/PA to the Speaker:"]
["ID Number","7212270587086","ID Number","8904160431081"]
["Title","Ms. ","Title","Ms"]
["Name","Phindile Sishi","Name","Lindiwe Mtenga"]
["Telephone number","032 456 8217","Telephone number","032 456 8333"]
["Cell number","083 545 7421","Cell number","078 385 1234"]
["Fax number","032 456 2504","Fax number","032 456 2504"]
["E-mail address","phindile.sishi@mandeni.gov.za","E-mail address","lindiwe.mtenga@mandeni.gov.za"]
[]
["Mayor/Executive Mayor:",null,"Secretary/PA to the Mayor/Executive Mayor:"]
["ID Number","7707155376083","ID Number","9202250998088"]
["Title","Mr","Title","Ms."]
["Name","Thabani Phiwayinkosi Mdlalose","Name","Sinegugu Dlamini"]
["Telephone number","0324568229","Telephone number","032 456 8229"]
["Cell number","0766795819","Cell number","081 355 7990"]
["Fax number","0324562504","Fax number","032 456 2504"]
["E-mail address","thabani.mdlalose@mandeni.gov.za","E-mail address","sinegugu.dlamini@mandeni.gov.za"]
[]
["Deputy Mayor/Executive Mayor:",null,"Secretary/PA to the Deputy Mayor/Executive Mayor:"]
["ID Number","6409115605088","ID Number","9402230370081"]
["Title","Mr.","Title","Ms."]
["Name","Bhekithemba Lawrance Magwaza","Name","Zinhle Mlambo"]
["Telephone number","0'324568217","Telephone number","032 456 8217"]
["Cell number","0'834528660","Cell number","0762954993/0676288101"]
["Fax number","0'324562504","Fax number","032 456 2504"]
["E-mail address","bhekithemba.magwaza@mandeni.gov.za","E-mail address","zinhle.mlambo@mandeni.gov.za"]
[]
["D. MANAGEMENT LEADERSHIP"]
["Municipal Manager:",null,"Secretary/PA to the Municipal Manager:"]
["ID Number","7502165708080","ID Number"]
["Title","Mr","Title","Ms"]
["Name","Sizwe Khuzwayo","Name","Nokwanda Khuzwayo"]
["Telephone number","032 456 8201","Telephone number","032 456 8255"]
["Cell number","084 250 3327","Cell number"]
["Fax number","032 456 2504","Fax number","032 456 2504"]
["E-mail address","sizwe.khuzwayo@mandeni.gov.za","E-mail address","nokwanda.khuzwayo@mandeni.gov.za"]
[]
["Chief Financial Officer",null,"Secretary/PA to the Chief Financial Officer"]
["ID Number","8405090548085","ID Number","7811270398087"]
["Title","Ms.","Title","Ms."]
["Name","Ms N Guzana","Name","Phakeme Shando"]
["Telephone number","032-456 8224","Telephone number","032 456 8230"]
["Cell number","0837693324","Cell number","083 369 4160"]
["Fax number","032-456 2504","Fax number","032 456 2504"]
["E-mail address","mpume.guzana@mandeni.gov.za","E-mail address","phakeme.shando@mandeni.gov.za"]
[]
["Official responsible for submitting financial information",null,"Official responsible for submitting financial information"]
["ID Number","8710110589088","ID Number","7807070567087"]
["Title","Mrs","Title","Ms. "]
["Name","Nothando Ndlovu","Name","Buyisiwe Chala"]
["Telephone number","0324568257","Telephone number","'032 456 8316"]
["Cell number","0735250759","Cell number","078 507 5552"]
["Fax number","0324542504","Fax number","032 456 2504"]
["E-mail address","thando.cele@mandeni.gov.za","E-mail address","buyisiwe.chala@mandeni.gov.za"]
["Official responsible for submitting financial information",null,"Official responsible for submitting financial information"]
["ID Number",null,"ID Number"]
["Title",null,"Title"]
["Name",null,"Name"]
["Telephone number",null,"Telephone number"]
["Cell number",null,"Cell number"]
["Fax number",null,"Fax number"]
["E-mail address",null,"E-mail address"]
["Official responsible for submitting financial information",null,"Official responsible for submitting financial information"]
["ID Number",null,"ID Number"]
["Title",null,"Title"]
["Name",null,"Name"]
["Telephone number",null,"Telephone number"]
["Cell number",null,"Cell number"]
["Fax number",null,"Fax number"]
["E-mail address",null,"E-mail address"]
["Official responsible for submitting financial information",null,"Official responsible for submitting financial information"]
["ID Number",null,"ID Number"]
["Title",null,"Title"]
["Name",null,"Name"]
["Telephone number",null,"Telephone number"]
["Cell number",null,"Cell number"]
["Fax number",null,"Fax number"]
["E-mail address",null,"E-mail address"]
["Official responsible for submitting financial information",null,"Official responsible for submitting financial information"]
["ID Number",null,"ID Number"]
["Title",null,"Title"]
["Name",null,"Name"]
["Telephone number",null,"Telephone number"]
["Cell number",null,"Cell number"]
["Fax number",null,"Fax number"]
["E-mail address",null,"E-mail address"]
["Official responsible for submitting financial information",null,"Official responsible for submitting financial information"]
["ID Number",null,"ID Number"]
["Title",null,"Title"]
["Name",null,"Name"]
["Telephone number",null,"Telephone number"]
["Cell number",null,"Cell number"]
["Fax number",null,"Fax number"]
["E-mail address",null,"E-mail address"]
["Official responsible for submitting financial information",null,"Official responsible for submitting financial information"]
["ID Number",null,"ID Number"]
["Title",null,"Title"]
["Name",null,"Name"]
["Telephone number",null,"Telephone number"]
["Cell number",null,"Cell number"]
["Fax number",null,"Fax number"]
["E-mail address",null,"E-mail address"]
["Official responsible for submitting financial information"]
["ID Number"]
["Title"]
["Name"]
["Telephone number"]
["Cell number"]
["Fax number"]
["E-mail address"]

{"sheet":"B1-Sum","index":24,"n_rows":77,"n_cols":12,"rows_kept":77,"cut":false,"hidden":false,"merged":[[74,0,74,12],[76,0,76,12],[1,1,1,9],[1,0,3,0],[69,0,69,12],[70,0,70,12],[71,0,71,12],[72,0,72,12]]}
[{"$f":"muni&\" - \"&adjsum&\" - \"&Date","v":"KZN291 Mandeni - Table B1 Adjustments Budget Summary - 08-04-2025"}]
[{"$f":"desc","v":"Description"},{"$f":"Head2","v":"Budget Year 2024/25"},null,null,null,null,null,null,null,null,{"$f":"Head10","v":"Budget Year +1 2025/26"},{"$f":"Head11","v":"Budget Year +2 2026/27"}]
[null,{"$f":"Head6","v":"Original Budget"},{"$f":"Head54","v":"Prior Adjusted"},{"$f":"Head51","v":"Accum. Funds"},{"$f":"Head52","v":"Multi-year capital"},{"$f":"Head53","v":"Unfore. Unavoid."},{"$f":"Head55","v":"Nat. or Prov. Govt"},{"$f":"Head50","v":"Other Adjusts."},{"$f":"Head56","v":"Total Adjusts."},{"$f":"Head7","v":"Adjusted Budget"},{"$f":"Head7","v":"Adjusted Budget"},{"$f":"Head7","v":"Adjusted Budget"}]
[null,null,1,2,3,4,5,6,7,8]
["R thousands","A","A1","B","C","D","E","F","G","H"]
["Financial Performance"]
["Property rates",{"$f":"SUM('B4-FinPerf RE'!C23)","v":62236581},{"$f":"SUM('B4-FinPerf RE'!D23)","v":62236581},{"$f":"SUM('B4-FinPerf RE'!E23)","v":0},{"$f":"SUM('B4-FinPerf RE'!F23)","v":0},{"$f":"SUM('B4-FinPerf RE'!G23)","v":0},{"$f":"SUM('B4-FinPerf RE'!H23)","v":0},{"$f":"SUM('B4-FinPerf RE'!I23)","v":0},{"$f":"SUM('B4-FinPerf RE'!J23)","v":0},{"$f":"SUM('B4-FinPerf RE'!K23)","v":62236581},{"$f":"SUM('B4-FinPerf RE'!L23)","v":65099484},{"$f":"SUM('B4-FinPerf RE'!M23)","v":69094045}]
["Service charges",{"$f":"SUM('B4-FinPerf RE'!C8:C11)","v":86447551},{"$f":"SUM('B4-FinPerf RE'!D8:D11)","v":86447551},{"$f":"SUM('B4-FinPerf RE'!E8:E11)","v":0},{"$f":"SUM('B4-FinPerf RE'!F8:F11)","v":0},{"$f":"SUM('B4-FinPerf RE'!G8:G11)","v":0},{"$f":"SUM('B4-FinPerf RE'!H8:H11)","v":0},{"$f":"SUM('B4-FinPerf RE'!I8:I11)","v":0},{"$f":"SUM('B4-FinPerf RE'!J8:J11)","v":0},{"$f":"SUM('B4-FinPerf RE'!K8:K11)","v":86447551},{"$f":"SUM('B4-FinPerf RE'!L8:L11)","v":90235002},{"$f":"SUM('B4-FinPerf RE'!M8:M11)","v":95072563}]
["Investment revenue",{"$f":"'B4-FinPerf RE'!C16","v":28000000},{"$f":"'B4-FinPerf RE'!D16","v":28000000},{"$f":"'B4-FinPerf RE'!E16","v":0},{"$f":"'B4-FinPerf RE'!F16","v":0},{"$f":"'B4-FinPerf RE'!G16","v":0},{"$f":"'B4-FinPerf RE'!H16","v":0},{"$f":"'B4-FinPerf RE'!I16","v":0},{"$f":"'B4-FinPerf RE'!J16","v":0},{"$f":"'B4-FinPerf RE'!K16","v":28000000},{"$f":"'B4-FinPerf RE'!L16","v":28840000},{"$f":"'B4-FinPerf RE'!M16","v":29705200}]
["Transfers recognised - operational",{"$f":"'B4-FinPerf RE'!C27","v":253162620},{"$f":"'B4-FinPerf RE'!D27","v":253162620},{"$f":"'B4-FinPerf RE'!E27","v":0},{"$f":"'B4-FinPerf RE'!F27","v":0},{"$f":"'B4-FinPerf RE'!G27","v":0},{"$f":"'B4-FinPerf RE'!H27","v":0},{"$f":"'B4-FinPerf RE'!I27","v":0},{"$f":"'B4-FinPerf RE'!J27","v":0},{"$f":"'B4-FinPerf RE'!K27","v":253162620},{"$f":"'B4-FinPerf RE'!L27","v":252337450},{"$f":"'B4-FinPerf RE'!M27","v":246760150}]
["Other own revenue",{"$f":"+B12-SUM(B7:B10)","v":17253762},{"$f":"+C12-SUM(C7:C10)","v":19022762},0,0,0,-6719130,0,-6719130,12303632,16540833,21866098]
["Total Revenue (excluding capital transfers and contributions)",{"$f":"+'B4-FinPerf RE'!C34","v":447100514},{"$f":"+'B4-FinPerf RE'!D34","v":448869514},{"$f":"+'B4-FinPerf RE'!E34","v":0},{"$f":"+'B4-FinPerf RE'!F34","v":0},{"$f":"+'B4-FinPerf RE'!G34","v":0},{"$f":"+'B4-FinPerf RE'!H34","v":-6719130},{"$f":"+'B4-FinPerf RE'!I34","v":0},{"$f":"+'B4-FinPerf RE'!J34","v":-6719130},{"$f":"+'B4-FinPerf RE'!K34","v":442150384},{"$f":"+'B4-FinPerf RE'!L34","v":453052769},{"$f":"+'B4-FinPerf RE'!M34","v":462498056}]
["Employee costs",{"$f":"'B4-FinPerf RE'!C37","v":152542627},{"$f":"'B4-FinPerf RE'!D37","v":152542635},{"$f":"'B4-FinPerf RE'!E37","v":0},{"$f":"'B4-FinPerf RE'!F37","v":0},{"$f":"'B4-FinPerf RE'!G37","v":0},{"$f":"'B4-FinPerf RE'!H37","v":0},{"$f":"'B4-FinPerf RE'!I37","v":0},{"$f":"SUM(D13:H13)","v":0},{"$f":"IF(C13=0,B13+I13,C13+I13)","v":152542635},{"$f":"'B4-FinPerf RE'!L37","v":153638430},{"$f":"'B4-FinPerf RE'!M37","v":154713325}]
["Remuneration of councillors",{"$f":"'B4-FinPerf RE'!C38","v":16387620},{"$f":"'B4-FinPerf RE'!D38","v":16387620},{"$f":"'B4-FinPerf RE'!E38","v":0},{"$f":"'B4-FinPerf RE'!F38","v":0},{"$f":"'B4-FinPerf RE'!G38","v":0},{"$f":"'B4-FinPerf RE'!H38","v":0},{"$f":"'B4-FinPerf RE'!I38","v":0},0,16387620,{"$f":"'B4-FinPerf RE'!L38","v":16879241},{"$f":"'B4-FinPerf RE'!M38","v":17216832}]
["Depreciation & asset impairment",{"$f":"'B4-FinPerf RE'!C41+'B4-FinPerf RE'!C42","v":68116880},{"$f":"'B4-FinPerf RE'!D41+'B4-FinPerf RE'!D42","v":68116880},{"$f":"'B4-FinPerf RE'!E41+'B4-FinPerf RE'!E42","v":0},{"$f":"'B4-FinPerf RE'!F41+'B4-FinPerf RE'!F42","v":0},{"$f":"'B4-FinPerf RE'!G41+'B4-FinPerf RE'!G42","v":0},{"$f":"'B4-FinPerf RE'!H41+'B4-FinPerf RE'!H42","v":0},{"$f":"'B4-FinPerf RE'!I41+'B4-FinPerf RE'!I42","v":0},{"$f":"'B4-FinPerf RE'!J41+'B4-FinPerf RE'!J42","v":0},{"$f":"'B4-FinPerf RE'!K41+'B4-FinPerf RE'!K42","v":68116880},{"$f":"'B4-FinPerf RE'!L41+'B4-FinPerf RE'!L42","v":69455168},{"$f":"'B4-FinPerf RE'!M41+'B4-FinPerf RE'!M42","v":70187636}]
["Finance charges",{"$f":"'B4-FinPerf RE'!C43","v":3300000},{"$f":"'B4-FinPerf RE'!D43","v":3300000},{"$f":"'B4-FinPerf RE'!E43","v":0},{"$f":"'B4-FinPerf RE'!F43","v":0},{"$f":"'B4-FinPerf RE'!G43","v":0},{"$f":"'B4-FinPerf RE'!H43","v":0},{"$f":"'B4-FinPerf RE'!I43","v":0},{"$f":"'B4-FinPerf RE'!J43","v":0},{"$f":"'B4-FinPerf RE'!K43","v":3300000},{"$f":"'B4-FinPerf RE'!L43","v":3451800},{"$f":"'B4-FinPerf RE'!M43","v":3610581}]
["Inventory consumed and bulk purchases",{"$f":"SUM('B4-FinPerf RE'!C39:C40)","v":62983849},{"$f":"SUM('B4-FinPerf RE'!D39:D40)","v":63499821},{"$f":"SUM('B4-FinPerf RE'!E39:E40)","v":0},{"$f":"SUM('B4-FinPerf RE'!F39:F40)","v":0},{"$f":"SUM('B4-FinPerf RE'!G39:G40)","v":0},{"$f":"SUM('B4-FinPerf RE'!H39:H40)","v":0},{"$f":"SUM('B4-FinPerf RE'!I39:I40)","v":0},{"$f":"SUM('B4-FinPerf RE'!J39:J40)","v":0},{"$f":"SUM('B4-FinPerf RE'!K39:K40)","v":63499821},{"$f":"SUM('B4-FinPerf RE'!L39:L40)","v":64021791},{"$f":"SUM('B4-FinPerf RE'!M39:M40)","v":67049004}]
["Transfers and subsidies",{"$f":"'B4-FinPerf RE'!C45","v":0},{"$f":"'B4-FinPerf RE'!D45","v":0},{"$f":"'B4-FinPerf RE'!E45","v":0},{"$f":"'B4-FinPerf RE'!F45","v":0},{"$f":"'B4-FinPerf RE'!G45","v":0},{"$f":"'B4-FinPerf RE'!H45","v":0},{"$f":"'B4-FinPerf RE'!I45","v":0},0,0,{"$f":"'B4-FinPerf RE'!L45","v":0},{"$f":"'B4-FinPerf RE'!M45","v":0}]
["Other expenditure",{"$f":"+B20-SUM(B13:B18)","v":140285502},{"$f":"+C20-SUM(C13:C18)","v":164572189},0,0,0,-6719130,0,-6719130,157853059,141892615,146811769]
["Total Expenditure",{"$f":"+'B4-FinPerf RE'!C50","v":443616478},{"$f":"+'B4-FinPerf RE'!D50","v":468419145},{"$f":"+'B4-FinPerf RE'!E50","v":0},{"$f":"+'B4-FinPerf RE'!F50","v":0},{"$f":"+'B4-FinPerf RE'!G50","v":0},{"$f":"+'B4-FinPerf RE'!H50","v":-6719130},{"$f":"+'B4-FinPerf RE'!I50","v":0},{"$f":"+'B4-FinPerf RE'!J50","v":-6719130},{"$f":"+'B4-FinPerf RE'!K50","v":461700015},{"$f":"+'B4-FinPerf RE'!L50","v":449339045},{"$f":"+'B4-FinPerf RE'!M50","v":459589147}]
["Surplus/(Deficit)",{"$f":"B12-B20","v":3484036},-19549631,0,0,0,0,0,0,-19549631,3713724,2908909]
[{"$f":"'B4-FinPerf RE'!A53","v":"Transfers and subsidies - capital (monetary allocations)"},{"$f":"'B4-FinPerf RE'!C53","v":39760380},{"$f":"'B4-FinPerf RE'!D53","v":45137939},{"$f":"'B4-FinPerf RE'!E53","v":0},{"$f":"'B4-FinPerf RE'!F53","v":0},{"$f":"'B4-FinPerf RE'!G53","v":0},{"$f":"'B4-FinPerf RE'!H53","v":2283500},{"$f":"'B4-FinPerf RE'!I53","v":0},{"$f":"'B4-FinPerf RE'!J53","v":2283500},{"$f":"'B4-FinPerf RE'!K53","v":47421439},{"$f":"'B4-FinPerf RE'!L53","v":40839550},{"$f":"'B4-FinPerf RE'!M53","v":44177850}]
["Transfers and subsidies - capital (in-kind - all) ",{"$f":"'B4-FinPerf RE'!C54","v":0},{"$f":"'B4-FinPerf RE'!D54","v":0},{"$f":"'B4-FinPerf RE'!E54","v":0},{"$f":"'B4-FinPerf RE'!F54","v":0},{"$f":"'B4-FinPerf RE'!G54","v":0},{"$f":"'B4-FinPerf RE'!H54","v":0},{"$f":"'B4-FinPerf RE'!I54","v":0},{"$f":"'B4-FinPerf RE'!J54","v":0},{"$f":"'B4-FinPerf RE'!K54","v":0},{"$f":"'B4-FinPerf RE'!L54","v":0},{"$f":"'B4-FinPerf RE'!M54","v":0}]
["Surplus/(Deficit) after capital transfers & contributions",{"$f":"B21+SUM(B22:B23)","v":43244416},25588308,0,0,0,2283500,0,{"$f":"SUM(D24:H24)","v":2283500},{"$f":"IF(C24=0,B24+I24,C24+I24)","v":27871808},44553274,47086759]
["Share of surplus/ (deficit) of associate",{"$f":"'B4-FinPerf RE'!C61","v":0},{"$f":"'B4-FinPerf RE'!D61","v":0},{"$f":"'B4-FinPerf RE'!E61","v":0},{"$f":"'B4-FinPerf RE'!F61","v":0},{"$f":"'B4-FinPerf RE'!G61","v":0},{"$f":"'B4-FinPerf RE'!H61","v":0},{"$f":"'B4-FinPerf RE'!I61","v":0},{"$f":"'B4-FinPerf RE'!J61","v":0},{"$f":"'B4-FinPerf RE'!K61","v":0},{"$f":"'B4-FinPerf RE'!L61","v":0},{"$f":"'B4-FinPerf RE'!M61","v":0}]
["Surplus/ (Deficit) for the year",{"$f":"B24+B25","v":43244416},25588308,0,0,0,2283500,0,2283500,27871808,44553274,47086759]
[]
["Capital expenditure & funds sources"]
["Capital expenditure",{"$f":"'B5-Capex'!C42","v":127599815},{"$f":"'B5-Capex'!D42","v":133829175},{"$f":"'B5-Capex'!E42","v":0},{"$f":"'B5-Capex'!F42","v":0},{"$f":"'B5-Capex'!G42","v":0},{"$f":"'B5-Capex'!H42","v":1985217.38},{"$f":"'B5-Capex'!I42","v":0},{"$f":"SUM(D29:H29)","v":1985217.38},{"$f":"IF(C29=0,B29+I29,C29+I29)","v":135814392.38},{"$f":"'B5-Capex'!L42","v":70121348},{"$f":"'B5-Capex'!M42","v":53415522}]
["Transfers recognised - capital",{"$f":"'B5-Capex'!C72","v":34701961},{"$f":"'B5-Capex'!D72","v":39333676},{"$f":"'B5-Capex'!E72","v":0},{"$f":"'B5-Capex'!F72","v":0},{"$f":"'B5-Capex'!G72","v":0},{"$f":"'B5-Capex'!H72","v":1985217.38},{"$f":"'B5-Capex'!I72","v":0},{"$f":"SUM(D30:H30)","v":1985217.38},{"$f":"IF(C30=0,B30+I30,C30+I30)","v":41318893.380000003},{"$f":"'B5-Capex'!L72","v":35512652},{"$f":"'B5-Capex'!M72","v":38415522}]
[]
["Borrowing",{"$f":"'B5-Capex'!C74","v":0},{"$f":"'B5-Capex'!D74","v":0},{"$f":"'B5-Capex'!E74","v":0},{"$f":"'B5-Capex'!F74","v":0},{"$f":"'B5-Capex'!G74","v":0},{"$f":"'B5-Capex'!H74","v":0},{"$f":"'B5-Capex'!I74","v":0},{"$f":"SUM(D32:H32)","v":0},{"$f":"IF(C32=0,B32+I32,C32+I32)","v":0},{"$f":"'B5-Capex'!L74","v":0},{"$f":"'B5-Capex'!M74","v":0}]
["Internally generated funds",{"$f":"'B5-Capex'!C75","v":92897854},{"$f":"'B5-Capex'!D75","v":94495499},{"$f":"'B5-Capex'!E75","v":0},{"$f":"'B5-Capex'!F75","v":0},{"$f":"'B5-Capex'!G75","v":0},{"$f":"'B5-Capex'!H75","v":0},{"$f":"'B5-Capex'!I75","v":0},{"$f":"SUM(D33:H33)","v":0},{"$f":"IF(C33=0,B33+I33,C33+I33)","v":94495499},{"$f":"'B5-Capex'!L75","v":34608696},{"$f":"'B5-Capex'!M75","v":15000000}]
["Total sources of capital funds",{"$f":"+B30+B32+B33","v":127599815},{"$f":"+C30+C32+C33","v":133829175},0,0,0,1985217.38,0,{"$f":"SUM(D34:H34)","v":1985217.38},{"$f":"IF(C34=0,B34+I34,C34+I34)","v":135814392.38},70121348,53415522]
[]
["Financial position"]
["Total current assets",{"$f":"'B6-FinPos'!C15","v":240613861},{"$f":"'B6-FinPos'!D15","v":267651529},{"$f":"'B6-FinPos'!E15","v":0},{"$f":"'B6-FinPos'!F15","v":0},{"$f":"'B6-FinPos'!G15","v":0},{"$f":"'B6-FinPos'!H15","v":2188413},{"$f":"'B6-FinPos'!I15","v":0},{"$f":"SUM(D37:H37)","v":2188413},{"$f":"IF(C37=0,B37+I37,C37+I37)","v":269839942},{"$f":"'B6-FinPos'!L15","v":272995073},{"$f":"'B6-FinPos'!M15","v":296257823}]
["Total non current assets",{"$f":"'B6-FinPos'!C27","v":692231995},{"$f":"'B6-FinPos'!D27","v":808949170},{"$f":"'B6-FinPos'!E27","v":0},{"$f":"'B6-FinPos'!F27","v":0},{"$f":"'B6-FinPos'!G27","v":0},{"$f":"'B6-FinPos'!H27","v":1985217.38},{"$f":"'B6-FinPos'!I27","v":0},{"$f":"SUM(D38:H38)","v":1985217.38},{"$f":"IF(C38=0,B38+I38,C38+I38)","v":810934387.38},{"$f":"'B6-FinPos'!L27","v":705634428},{"$f":"'B6-FinPos'!M27","v":690039021}]
["Total current liabilities",{"$f":"'B6-FinPos'!C40","v":55156535},{"$f":"'B6-FinPos'!D40","v":84131699},{"$f":"'B6-FinPos'!E40","v":0},{"$f":"'B6-FinPos'!F40","v":0},{"$f":"'B6-FinPos'!G40","v":0},{"$f":"'B6-FinPos'!H40","v":1890130},{"$f":"'B6-FinPos'!I40","v":0},{"$f":"SUM(D39:H39)","v":1890130},{"$f":"IF(C39=0,B39+I39,C39+I39)","v":86021829},{"$f":"'B6-FinPos'!L40","v":46189947},{"$f":"'B6-FinPos'!M40","v":48306131}]
["Total non current liabilities",{"$f":"'B6-FinPos'!C47","v":22993070},{"$f":"'B6-FinPos'!D47","v":25769737},{"$f":"'B6-FinPos'!E47","v":0},{"$f":"'B6-FinPos'!F47","v":0},{"$f":"'B6-FinPos'!G47","v":0},{"$f":"'B6-FinPos'!H47","v":0},{"$f":"'B6-FinPos'!I47","v":0},{"$f":"SUM(D40:H40)","v":0},{"$f":"IF(C40=0,B40+I40,C40+I40)","v":25769737},{"$f":"'B6-FinPos'!L47","v":23455231},{"$f":"'B6-FinPos'!M47","v":23223001}]
["Community wealth/Equity",{"$f":"'B6-FinPos'!C56","v":854110563},{"$f":"'B6-FinPos'!D56","v":966699262},{"$f":"'B6-FinPos'!E56","v":0},{"$f":"'B6-FinPos'!F56","v":0},{"$f":"'B6-FinPos'!G56","v":0},{"$f":"'B6-FinPos'!H56","v":2283500},{"$f":"'B6-FinPos'!I56","v":0},{"$f":"SUM(D41:H41)","v":2283500},{"$f":"IF(C41=0,B41+I41,C41+I41)","v":968982762},{"$f":"'B6-FinPos'!L56","v":905175192},{"$f":"'B6-FinPos'!M56","v":909056131}]
[]
["Cash flows"]
["Net cash from (used) operating",{"$f":"'B7-CFlow'!C19","v":46034457},{"$f":"'B7-CFlow'!D19","v":37473582},{"$f":"'B7-CFlow'!E19","v":0},{"$f":"'B7-CFlow'!F19","v":0},{"$f":"'B7-CFlow'!G19","v":0},{"$f":"'B7-CFlow'!H19","v":5181500},{"$f":"'B7-CFlow'!I19","v":0},{"$f":"SUM(D44:H44)","v":5181500},{"$f":"IF(C44=0,B44+I44,C44+I44)","v":42655082},{"$f":"'B7-CFlow'!L19","v":44948885},{"$f":"'B7-CFlow'!M19","v":44937509}]
["Net cash from (used) investing",{"$f":"'B7-CFlow'!C28","v":-146739790},{"$f":"'B7-CFlow'!D28","v":-153901349},{"$f":"'B7-CFlow'!E28","v":0},{"$f":"'B7-CFlow'!F28","v":0},{"$f":"'B7-CFlow'!G28","v":0},{"$f":"'B7-CFlow'!H28","v":-2283000},{"$f":"'B7-CFlow'!I28","v":0},{"$f":"SUM(D45:H45)","v":-2283000},{"$f":"IF(C45=0,B45+I45,C45+I45)","v":-156184349},{"$f":"'B7-CFlow'!L28","v":-80639551},{"$f":"'B7-CFlow'!M28","v":-61427850}]
["Net cash from (used) financing",{"$f":"'B7-CFlow'!C37","v":0},{"$f":"'B7-CFlow'!D37","v":0},{"$f":"'B7-CFlow'!E37","v":0},{"$f":"'B7-CFlow'!F37","v":0},{"$f":"'B7-CFlow'!G37","v":0},{"$f":"'B7-CFlow'!H37","v":0},{"$f":"'B7-CFlow'!I37","v":0},{"$f":"SUM(D46:H46)","v":0},{"$f":"IF(C46=0,B46+I46,C46+I46)","v":0},{"$f":"'B7-CFlow'!L37","v":0},{"$f":"'B7-CFlow'!M37","v":0}]
["Cash/cash equivalents at the year end",{"$f":"'B7-CFlow'!C41","v":82718418},{"$f":"'B7-CFlow'!D41","v":92380116},{"$f":"'B7-CFlow'!E41","v":0},{"$f":"'B7-CFlow'!F41","v":0},{"$f":"'B7-CFlow'!G41","v":0},{"$f":"'B7-CFlow'!H41","v":2898500},{"$f":"'B7-CFlow'!I41","v":0},{"$f":"SUM(D47:H47)","v":2898500},{"$f":"IF(C47=0,B47+I47,C47+I47)","v":95278616},{"$f":"'B7-CFlow'!L41","v":118413310},{"$f":"'B7-CFlow'!M41","v":139354865}]
[]
["Cash backing/surplus reconciliation"]
["Cash and investments available",{"$f":"'B8-ResRecon'!C10","v":78953888},{"$f":"'B8-ResRecon'!D10","v":92208386},{"$f":"'B8-ResRecon'!E10","v":0},{"$f":"'B8-ResRecon'!F10","v":0},{"$f":"'B8-ResRecon'!G10","v":0},{"$f":"'B8-ResRecon'!H10","v":2898500},{"$f":"'B8-ResRecon'!I10","v":0},{"$f":"SUM(D50:H50)","v":2898500},{"$f":"IF(C50=0,B50+I50,C50+I50)","v":95106886},{"$f":"'B8-ResRecon'!L10","v":115975613},{"$f":"'B8-ResRecon'!M10","v":136805041}]
["Application of cash and investments",{"$f":"'B8-ResRecon'!C20","v":-49717546},{"$f":"'B8-ResRecon'!D20","v":-37412476},{"$f":"'B8-ResRecon'!E20","v":0},{"$f":"'B8-ResRecon'!F20","v":0},{"$f":"'B8-ResRecon'!G20","v":0},{"$f":"'B8-ResRecon'!H20","v":-594953},{"$f":"'B8-ResRecon'!I20","v":0},{"$f":"SUM(D51:H51)","v":-594953},{"$f":"IF(C51=0,B51+I51,C51+I51)","v":-38007429},{"$f":"'B8-ResRecon'!L20","v":-52750192},{"$f":"'B8-ResRecon'!M20","v":-55597030}]
["Balance - surplus (shortfall)",{"$f":"B50-B51","v":128671434},129620862,0,0,0,3493453,0,3493453,133114315,168725805,192402071]
[]
["Asset Management"]
["Asset register summary (WDV)",{"$f":"'B9-Asset'!C180","v":692231995},{"$f":"'B9-Asset'!D180","v":808949170},{"$f":"'B9-Asset'!E180","v":0},{"$f":"'B9-Asset'!F180","v":0},{"$f":"'B9-Asset'!G180","v":0},{"$f":"'B9-Asset'!H180","v":1985217.38},{"$f":"'B9-Asset'!I180","v":0},{"$f":"SUM(D55:H55)","v":1985217.38},{"$f":"IF(C55=0,B55+I55,C55+I55)","v":810934387.38},{"$f":"'B9-Asset'!L180","v":705634428},{"$f":"'B9-Asset'!M180","v":690039021}]
["Depreciation ",{"$f":"'B9-Asset'!C183","v":37856010},{"$f":"'B9-Asset'!D183","v":37856010},{"$f":"'B9-Asset'!E183","v":0},{"$f":"'B9-Asset'!F183","v":0},{"$f":"'B9-Asset'!G183","v":0},{"$f":"'B9-Asset'!H183","v":0},{"$f":"'B9-Asset'!I183","v":0},{"$f":"SUM(D56:H56)","v":0},{"$f":"IF(C56=0,B56+I56,C56+I56)","v":37856010},{"$f":"'B9-Asset'!L183","v":38991690},{"$f":"'B9-Asset'!M183","v":39771522}]
["Renewal and Upgrading of Existing Assets",{"$f":"'B9-Asset'!C42+'B9-Asset'!C77","v":75573225},{"$f":"'B9-Asset'!D42+'B9-Asset'!D77","v":75146330},{"$f":"'B9-Asset'!E42+'B9-Asset'!E77","v":0},{"$f":"'B9-Asset'!F42+'B9-Asset'!F77","v":0},{"$f":"'B9-Asset'!G42+'B9-Asset'!G77","v":0},{"$f":"'B9-Asset'!H42+'B9-Asset'!H77","v":1985217.38},{"$f":"'B9-Asset'!I42+'B9-Asset'!I77","v":0},{"$f":"SUM(D57:H57)","v":1985217.38},{"$f":"IF(C57=0,B57+I57,C57+I57)","v":77131547.379999995},{"$f":"'B9-Asset'!L42+'B9-Asset'!L77","v":35512652},{"$f":"'B9-Asset'!M42+'B9-Asset'!M77","v":38415522}]
["Repairs and Maintenance",{"$f":"'B9-Asset'!C184","v":27347801},{"$f":"'B9-Asset'!D184","v":29195624},{"$f":"'B9-Asset'!E184","v":0},{"$f":"'B9-Asset'!F184","v":0},{"$f":"'B9-Asset'!G184","v":0},{"$f":"'B9-Asset'!H184","v":0},{"$f":"'B9-Asset'!I184","v":0},{"$f":"SUM(D58:H58)","v":0},{"$f":"IF(C58=0,B58+I58,C58+I58)","v":29195624},{"$f":"'B9-Asset'!L184","v":28151018},{"$f":"'B9-Asset'!M184","v":29445960}]
[]
["Free services"]
["Cost of Free Basic Services provided",{"$f":"'B10-SerDel'!C62","v":0},{"$f":"'B10-SerDel'!D62","v":0},{"$f":"'B10-SerDel'!E62","v":0},{"$f":"'B10-SerDel'!F62","v":0},{"$f":"'B10-SerDel'!G62","v":0},{"$f":"'B10-SerDel'!H62","v":0},{"$f":"'B10-SerDel'!I62","v":0},{"$f":"'B10-SerDel'!J62","v":0},{"$f":"'B10-SerDel'!K62","v":0},{"$f":"'B10-SerDel'!L62","v":0},{"$f":"'B10-SerDel'!M62","v":0}]
["Revenue cost of free services provided",{"$f":"'B10-SerDel'!C81","v":944265},{"$f":"'B10-SerDel'!D81","v":14353543},{"$f":"'B10-SerDel'!E81","v":0},{"$f":"'B10-SerDel'!F81","v":0},{"$f":"'B10-SerDel'!G81","v":0},{"$f":"'B10-SerDel'!H81","v":0},{"$f":"'B10-SerDel'!I81","v":0},{"$f":"'B10-SerDel'!J81","v":0},{"$f":"'B10-SerDel'!K81","v":14353543},{"$f":"'B10-SerDel'!L81","v":15013806},{"$f":"'B10-SerDel'!M81","v":15704440}]
["Households below minimum service level"]
["Water:",{"$f":"'B10-SerDel'!C16","v":0},{"$f":"'B10-SerDel'!D16","v":0},{"$f":"'B10-SerDel'!E16","v":0},{"$f":"'B10-SerDel'!F16","v":0},{"$f":"'B10-SerDel'!G16","v":0},{"$f":"'B10-SerDel'!H16","v":0},{"$f":"'B10-SerDel'!I16","v":0},{"$f":"SUM(D64:H64)","v":0},{"$f":"IF(C64=0,B64+I64,C64+I64)","v":0},{"$f":"'B10-SerDel'!L16","v":0},{"$f":"'B10-SerDel'!M16","v":0}]
["Sanitation/sewerage:",{"$f":"'B10-SerDel'!C28","v":0},{"$f":"'B10-SerDel'!D28","v":0},{"$f":"'B10-SerDel'!E28","v":0},{"$f":"'B10-SerDel'!F28","v":0},{"$f":"'B10-SerDel'!G28","v":0},{"$f":"'B10-SerDel'!H28","v":0},{"$f":"'B10-SerDel'!I28","v":0},{"$f":"SUM(D65:H65)","v":0},{"$f":"IF(C65=0,B65+I65,C65+I65)","v":0},{"$f":"'B10-SerDel'!L28","v":0},{"$f":"'B10-SerDel'!M28","v":0}]
["Energy:",{"$f":"'B10-SerDel'!C37","v":0},{"$f":"'B10-SerDel'!D37","v":0},{"$f":"'B10-SerDel'!E37","v":0},{"$f":"'B10-SerDel'!F37","v":0},{"$f":"'B10-SerDel'!G37","v":0},{"$f":"'B10-SerDel'!H37","v":0},{"$f":"'B10-SerDel'!I37","v":0},{"$f":"SUM(D66:H66)","v":0},{"$f":"IF(C66=0,B66+I66,C66+I66)","v":0},{"$f":"'B10-SerDel'!L37","v":0},{"$f":"'B10-SerDel'!M37","v":0}]
["Refuse:",{"$f":"'B10-SerDel'!C47","v":0},{"$f":"'B10-SerDel'!D47","v":0},{"$f":"'B10-SerDel'!E47","v":0},{"$f":"'B10-SerDel'!F47","v":0},{"$f":"'B10-SerDel'!G47","v":0},{"$f":"'B10-SerDel'!H47","v":0},{"$f":"'B10-SerDel'!I47","v":0},{"$f":"SUM(D67:H67)","v":0},{"$f":"IF(C67=0,B67+I67,C67+I67)","v":0},{"$f":"'B10-SerDel'!L47","v":0},{"$f":"'B10-SerDel'!M47","v":0}]
[]
["References"]
["1. Only complete if a previous adjusted budget has been approved in the same financial year. Reflect most recent adjusted budget."]
["2. Additional cash-backed accumulated funds/unspent funds (MFMA section 18(1)(b) and section 28(2)(e)) identified after the Original Budget approved and after annual financial statements audited (note: only where underspending could not reasonably have been foreseen)"]
["3. Increases of funds approved under MFMA section 31"]
["4. Adjustments approved in accordance with MFMA section 29 "]
["5. Adjustments to transfers from National or Provincial Government"]
["6. Adjusts. = 'Other' Adjustments proposed to be approved; including revenue under-collection (MFMA section 28(2)(a)); additional revenue appropriation on existing programmes (section 28(2))(b); projected savings (section 28(2)(d)); error correction (section 28(2)(f))"]
["7. G = B + C + D + E + F"]
["8. Adjusted Budget H = (A or A1/2 etc) + G"]

{"sheet":"B2-FinPerf SC","index":25,"n_rows":64,"n_cols":13,"rows_kept":64,"cut":false,"hidden":false,"merged":[[63,0,63,12],[58,0,58,12],[59,0,59,12],[61,0,61,12],[1,0,2,0],[1,1,2,1],[56,0,56,12],[57,0,57,12],[54,0,54,12],[1,2,1,10],[55,0,55,10]]}
[{"$f":"muni&\" - \"&_ADJ3&\" - \"&Date","v":"KZN291 Mandeni - Table B2 Adjustments Budget Financial Performance (functional classification) - 08-04-2025"}]
[{"$f":"\"Standard \"&desc","v":"Standard Description"},{"$f":"head27","v":"Ref"},{"$f":"Head2","v":"Budget Year 2024/25"},null,null,null,null,null,null,null,null,{"$f":"Head10","v":"Budget Year +1 2025/26"},{"$f":"Head11","v":"Budget Year +2 2026/27"}]
[null,null,{"$f":"Head6","v":"Original Budget"},{"$f":"Head54","v":"Prior Adjusted"},{"$f":"Head51","v":"Accum. Funds"},{"$f":"Head52","v":"Multi-year capital"},{"$f":"Head53","v":"Unfore. Unavoid."},{"$f":"Head55","v":"Nat. or Prov. Govt"},{"$f":"Head50","v":"Other Adjusts."},{"$f":"Head56","v":"Total Adjusts."},{"$f":"Head7","v":"Adjusted Budget"},{"$f":"Head7","v":"Adjusted Budget"},{"$f":"Head7","v":"Adjusted Budget"}]
[null,null,null,5,{"$f":"D4+1","v":6},7,8,9,10,11,12]
["R thousands","1, 4","A","A1","B","C","D","E","F","G","H"]
["Revenue - Functional"]
["Governance and administration",null,{"$f":"SUM(C8:C10)","v":340235929},{"$f":"SUM(D8:D10)","v":340967929},0,0,0,0,0,{"$f":"SUM(J8:J10)","v":0},{"$f":"SUM(K8:K10)","v":340967929},{"$f":"SUM(L8:L10)","v":344017956},{"$f":"SUM(M8:M10)","v":343191600}]
["Executive and council",null,{"$f":"B2B!C8","v":8038000},{"$f":"B2B!D8","v":8038000},{"$f":"B2B!E8","v":0},{"$f":"B2B!F8","v":0},{"$f":"B2B!G8","v":0},{"$f":"B2B!H8","v":0},{"$f":"B2B!I8","v":0},{"$f":"SUM(E8:I8)","v":0},{"$f":"IF(D8=0,C8+J8,D8+J8)","v":8038000},{"$f":"B2B!L8","v":8356000},{"$f":"B2B!M8","v":8700000}]
["Finance and administration",null,{"$f":"B2B!C11","v":332197929},{"$f":"B2B!D11","v":332929929},{"$f":"B2B!E11","v":0},{"$f":"B2B!F11","v":0},{"$f":"B2B!G11","v":0},{"$f":"B2B!H11","v":0},{"$f":"B2B!I11","v":0},{"$f":"SUM(E9:I9)","v":0},{"$f":"IF(D9=0,C9+J9,D9+J9)","v":332929929},{"$f":"B2B!L11","v":335661956},{"$f":"B2B!M11","v":334491600}]
["Internal audit",null,{"$f":"B2B!C25","v":0},{"$f":"B2B!D25","v":0},{"$f":"B2B!E25","v":0},{"$f":"B2B!F25","v":0},{"$f":"B2B!G25","v":0},{"$f":"B2B!H25","v":0},{"$f":"B2B!I25","v":0},{"$f":"SUM(E10:I10)","v":0},{"$f":"IF(D10=0,C10+J10,D10+J10)","v":0},{"$f":"B2B!L25","v":0},{"$f":"B2B!M25","v":0}]
["Community and public safety",null,{"$f":"SUM(C12:C16)","v":5464272},{"$f":"SUM(D12:D16)","v":5764272},0,0,0,0,0,{"$f":"SUM(J12:J16)","v":0},{"$f":"SUM(K12:K16)","v":5764272},{"$f":"SUM(L12:L16)","v":5817152},{"$f":"SUM(M12:M16)","v":9866023}]
["Community and social services",null,{"$f":"B2B!C28","v":5072968},{"$f":"B2B!D28","v":5372968},{"$f":"B2B!E28","v":0},{"$f":"B2B!F28","v":0},{"$f":"B2B!G28","v":0},{"$f":"B2B!H28","v":0},{"$f":"B2B!I28","v":0},{"$f":"SUM(E12:I12)","v":0},{"$f":"IF(D12=0,C12+J12,D12+J12)","v":5372968},{"$f":"B2B!L28","v":5407848},{"$f":"B2B!M28","v":5584696}]
["Sport and recreation",null,{"$f":"B2B!C50","v":0},{"$f":"B2B!D50","v":0},{"$f":"B2B!E50","v":0},{"$f":"B2B!F50","v":0},{"$f":"B2B!G50","v":0},{"$f":"B2B!H50","v":0},{"$f":"B2B!I50","v":0},{"$f":"SUM(E13:I13)","v":0},{"$f":"IF(D13=0,C13+J13,D13+J13)","v":0},{"$f":"B2B!L50","v":0},{"$f":"B2B!M50","v":0}]
["Public safety",null,{"$f":"B2B!C56","v":391304},{"$f":"B2B!D56","v":391304},{"$f":"B2B!E56","v":0},{"$f":"B2B!F56","v":0},{"$f":"B2B!G56","v":0},{"$f":"B2B!H56","v":0},{"$f":"B2B!I56","v":0},{"$f":"SUM(E14:I14)","v":0},{"$f":"IF(D14=0,C14+J14,D14+J14)","v":391304},{"$f":"B2B!L56","v":409304},{"$f":"B2B!M56","v":4281327}]
["Housing",null,{"$f":"B2B!C65","v":0},{"$f":"B2B!D65","v":0},{"$f":"B2B!E65","v":0},{"$f":"B2B!F65","v":0},{"$f":"B2B!G65","v":0},{"$f":"B2B!H65","v":0},{"$f":"B2B!I65","v":0},{"$f":"SUM(E15:I15)","v":0},{"$f":"IF(D15=0,C15+J15,D15+J15)","v":0},{"$f":"B2B!L65","v":0},{"$f":"B2B!M65","v":0}]
["Health",null,{"$f":"B2B!C68","v":0},{"$f":"B2B!D68","v":0},{"$f":"B2B!E68","v":0},{"$f":"B2B!F68","v":0},{"$f":"B2B!G68","v":0},{"$f":"B2B!H68","v":0},{"$f":"B2B!I68","v":0},{"$f":"SUM(E16:I16)","v":0},{"$f":"IF(D16=0,C16+J16,D16+J16)","v":0},{"$f":"B2B!L68","v":0},{"$f":"B2B!M68","v":0}]
["Economic and environmental services",null,{"$f":"SUM(C18:C20)","v":45526869},{"$f":"SUM(D18:D20)","v":51104428},0,0,0,2283500,0,{"$f":"SUM(J18:J20)","v":2283500},{"$f":"SUM(K18:K20)","v":53387928},{"$f":"SUM(L18:L20)","v":45719969},{"$f":"SUM(M18:M20)","v":49359593}]
["Planning and development",null,{"$f":"B2B!C77","v":41542304},{"$f":"B2B!D77","v":47119863},{"$f":"B2B!E77","v":0},{"$f":"B2B!F77","v":0},{"$f":"B2B!G77","v":0},{"$f":"B2B!H77","v":0},{"$f":"B2B!I77","v":0},{"$f":"SUM(E18:I18)","v":0},{"$f":"IF(D18=0,C18+J18,D18+J18)","v":47119863},{"$f":"B2B!L77","v":43450604},{"$f":"B2B!M77","v":46985837}]
["Road transport",null,{"$f":"B2B!C88","v":3984565},{"$f":"B2B!D88","v":3984565},{"$f":"B2B!E88","v":0},{"$f":"B2B!F88","v":0},{"$f":"B2B!G88","v":0},{"$f":"B2B!H88","v":2283500},{"$f":"B2B!I88","v":0},{"$f":"SUM(E19:I19)","v":2283500},{"$f":"IF(D19=0,C19+J19,D19+J19)","v":6268065},{"$f":"B2B!L88","v":2269365},{"$f":"B2B!M88","v":2373756}]
["Environmental protection",null,{"$f":"B2B!C93","v":0},{"$f":"B2B!D93","v":0},{"$f":"B2B!E93","v":0},{"$f":"B2B!F93","v":0},{"$f":"B2B!G93","v":0},{"$f":"B2B!H93","v":0},{"$f":"B2B!I93","v":0},{"$f":"SUM(E20:I20)","v":0},{"$f":"IF(D20=0,C20+J20,D20+J20)","v":0},{"$f":"B2B!L93","v":0},{"$f":"B2B!M93","v":0}]
["Trading services",null,{"$f":"SUM(C22:C25)","v":95633824},{"$f":"SUM(D22:D25)","v":96170824},0,0,0,-6719130,0,-6719130,89451694,98337242,104258690]
["Energy sources",null,{"$f":"B2B!C101","v":80675495},{"$f":"B2B!D101","v":80742895},{"$f":"B2B!E101","v":0},{"$f":"B2B!F101","v":0},{"$f":"B2B!G101","v":0},{"$f":"B2B!H101","v":-6719130},{"$f":"B2B!I101","v":0},{"$f":"SUM(E22:I22)","v":-6719130},{"$f":"IF(D22=0,C22+J22,D22+J22)","v":74023765},{"$f":"B2B!L101","v":82689988},{"$f":"B2B!M101","v":87889913}]
["Water management",null,{"$f":"B2B!C105","v":0},{"$f":"B2B!D105","v":0},{"$f":"B2B!E105","v":0},{"$f":"B2B!F105","v":0},{"$f":"B2B!G105","v":0},{"$f":"B2B!H105","v":0},{"$f":"B2B!I105","v":0},{"$f":"SUM(E23:I23)","v":0},{"$f":"IF(D23=0,C23+J23,D23+J23)","v":0},{"$f":"B2B!L105","v":0},{"$f":"B2B!M105","v":0}]
["Waste water management",null,{"$f":"B2B!C109","v":0},{"$f":"B2B!D109","v":0},{"$f":"B2B!E109","v":0},{"$f":"B2B!F109","v":0},{"$f":"B2B!G109","v":0},{"$f":"B2B!H109","v":0},{"$f":"B2B!I109","v":0},{"$f":"SUM(E24:I24)","v":0},{"$f":"IF(D24=0,C24+J24,D24+J24)","v":0},{"$f":"B2B!L109","v":0},{"$f":"B2B!M109","v":0}]
["Waste management",null,{"$f":"B2B!C114","v":14958329},{"$f":"B2B!D114","v":15427929},{"$f":"B2B!E114","v":0},{"$f":"B2B!F114","v":0},{"$f":"B2B!G114","v":0},{"$f":"B2B!H114","v":0},{"$f":"B2B!I114","v":0},{"$f":"SUM(E25:I25)","v":0},{"$f":"IF(D25=0,C25+J25,D25+J25)","v":15427929},{"$f":"B2B!L114","v":15647254},{"$f":"B2B!M114","v":16368777}]
["Other",null,{"$f":"B2B!C119","v":0},{"$f":"B2B!D119","v":0},{"$f":"B2B!E119","v":0},{"$f":"B2B!F119","v":0},{"$f":"B2B!G119","v":0},{"$f":"B2B!H119","v":0},{"$f":"B2B!I119","v":0},{"$f":"SUM(E26:I26)","v":0},{"$f":"IF(D26=0,C26+J26,D26+J26)","v":0},{"$f":"B2B!L119","v":0},{"$f":"B2B!M119","v":0}]
[{"$f":"\"Total \"&A6","v":"Total Revenue - Functional"},2,{"$f":"C7+C11+C17+C21+C26","v":486860894},{"$f":"D7+D11+D17+D21+D26","v":494007453},0,0,0,-4435630,0,-4435630,489571823,493892319,506675906]
[]
["Expenditure - Functional"]
["Governance and administration",null,{"$f":"SUM(C31:C33)","v":217122911},{"$f":"SUM(D31:D33)","v":237648095},0,0,0,0,0,{"$f":"SUM(J31:J33)","v":0},{"$f":"SUM(K31:K33)","v":237648095},{"$f":"SUM(L31:L33)","v":218975101},{"$f":"SUM(M31:M33)","v":209852966}]
["Executive and council",null,{"$f":"B2B!C130","v":66001422},{"$f":"B2B!D130","v":72502265},{"$f":"B2B!E130","v":0},{"$f":"B2B!F130","v":0},{"$f":"B2B!G130","v":0},{"$f":"B2B!H130","v":0},{"$f":"B2B!I130","v":0},{"$f":"SUM(E31:I31)","v":0},{"$f":"IF(D31=0,C31+J31,D31+J31)","v":72502265},{"$f":"B2B!L130","v":69139571},{"$f":"B2B!M130","v":71919455}]
["Finance and administration",null,{"$f":"B2B!C133","v":151121489},{"$f":"B2B!D133","v":165145830},{"$f":"B2B!E133","v":0},{"$f":"B2B!F133","v":0},{"$f":"B2B!G133","v":0},{"$f":"B2B!H133","v":0},{"$f":"B2B!I133","v":0},{"$f":"SUM(E32:I32)","v":0},{"$f":"IF(D32=0,C32+J32,D32+J32)","v":165145830},{"$f":"B2B!L133","v":149835530},{"$f":"B2B!M133","v":137933511}]
["Internal audit",null,{"$f":"B2B!C147","v":0},{"$f":"B2B!D147","v":0},{"$f":"B2B!E147","v":0},{"$f":"B2B!F147","v":0},{"$f":"B2B!G147","v":0},{"$f":"B2B!H147","v":0},{"$f":"B2B!I147","v":0},{"$f":"SUM(E33:I33)","v":0},{"$f":"IF(D33=0,C33+J33,D33+J33)","v":0},{"$f":"B2B!L147","v":0},{"$f":"B2B!M147","v":0}]
["Community and public safety",null,{"$f":"SUM(C35:C39)","v":42760547},{"$f":"SUM(D35:D39)","v":46182903},0,0,0,0,0,{"$f":"SUM(J35:J39)","v":0},{"$f":"SUM(K35:K39)","v":46182903},{"$f":"SUM(L35:L39)","v":43973061},{"$f":"SUM(M35:M39)","v":46271407}]
["Community and social services",null,{"$f":"B2B!C150","v":30811229},{"$f":"B2B!D150","v":30452711},{"$f":"B2B!E150","v":0},{"$f":"B2B!F150","v":0},{"$f":"B2B!G150","v":0},{"$f":"B2B!H150","v":0},{"$f":"B2B!I150","v":0},{"$f":"SUM(E35:I35)","v":0},{"$f":"IF(D35=0,C35+J35,D35+J35)","v":30452711},{"$f":"B2B!L150","v":31707493},{"$f":"B2B!M150","v":33069256}]
["Sport and recreation",null,{"$f":"B2B!C172","v":10029753},{"$f":"B2B!D172","v":13714179},{"$f":"B2B!E172","v":0},{"$f":"B2B!F172","v":0},{"$f":"B2B!G172","v":0},{"$f":"B2B!H172","v":0},{"$f":"B2B!I172","v":0},{"$f":"SUM(E36:I36)","v":0},{"$f":"IF(D36=0,C36+J36,D36+J36)","v":13714179},{"$f":"B2B!L172","v":10257703},{"$f":"B2B!M172","v":11101933}]
["Public safety",null,{"$f":"B2B!C178","v":1889565},{"$f":"B2B!D178","v":1746935},{"$f":"B2B!E178","v":0},{"$f":"B2B!F178","v":0},{"$f":"B2B!G178","v":0},{"$f":"B2B!H178","v":0},{"$f":"B2B!I178","v":0},{"$f":"SUM(E37:I37)","v":0},{"$f":"IF(D37=0,C37+J37,D37+J37)","v":1746935},{"$f":"B2B!L178","v":1976485},{"$f":"B2B!M178","v":2067395}]
["Housing",null,{"$f":"B2B!C187","v":30000},{"$f":"B2B!D187","v":269078},{"$f":"B2B!E187","v":0},{"$f":"B2B!F187","v":0},{"$f":"B2B!G187","v":0},{"$f":"B2B!H187","v":0},{"$f":"B2B!I187","v":0},{"$f":"SUM(E38:I38)","v":0},{"$f":"IF(D38=0,C38+J38,D38+J38)","v":269078},{"$f":"B2B!L187","v":31380},{"$f":"B2B!M187","v":32823}]
["Health",null,{"$f":"B2B!C190","v":0},{"$f":"B2B!D190","v":0},{"$f":"B2B!E190","v":0},{"$f":"B2B!F190","v":0},{"$f":"B2B!G190","v":0},{"$f":"B2B!H190","v":0},{"$f":"B2B!I190","v":0},{"$f":"SUM(E39:I39)","v":0},{"$f":"IF(D39=0,C39+J39,D39+J39)","v":0},{"$f":"B2B!L190","v":0},{"$f":"B2B!M190","v":0}]
["Economic and environmental services",null,{"$f":"SUM(C41:C43)","v":83201745},{"$f":"SUM(D41:D43)","v":83136070},0,0,0,0,0,{"$f":"SUM(J41:J43)","v":0},{"$f":"SUM(K41:K43)","v":83136070},{"$f":"SUM(L41:L43)","v":84376648},{"$f":"SUM(M41:M43)","v":87080740}]
["Planning and development",null,{"$f":"B2B!C199","v":25715779},{"$f":"B2B!D199","v":24358640},{"$f":"B2B!E199","v":0},{"$f":"B2B!F199","v":0},{"$f":"B2B!G199","v":0},{"$f":"B2B!H199","v":0},{"$f":"B2B!I199","v":0},{"$f":"SUM(E41:I41)","v":0},{"$f":"IF(D41=0,C41+J41,D41+J41)","v":24358640},{"$f":"B2B!L199","v":24532581},{"$f":"B2B!M199","v":25718036}]
["Road transport",null,{"$f":"B2B!C210","v":53422966},{"$f":"B2B!D210","v":54653354},{"$f":"B2B!E210","v":0},{"$f":"B2B!F210","v":0},{"$f":"B2B!G210","v":0},{"$f":"B2B!H210","v":0},{"$f":"B2B!I210","v":0},{"$f":"SUM(E42:I42)","v":0},{"$f":"IF(D42=0,C42+J42,D42+J42)","v":54653354},{"$f":"B2B!L210","v":55594187},{"$f":"B2B!M210","v":56917304}]
["Environmental protection",null,{"$f":"B2B!C215","v":4063000},{"$f":"B2B!D215","v":4124076},{"$f":"B2B!E215","v":0},{"$f":"B2B!F215","v":0},{"$f":"B2B!G215","v":0},{"$f":"B2B!H215","v":0},{"$f":"B2B!I215","v":0},{"$f":"SUM(E43:I43)","v":0},{"$f":"IF(D43=0,C43+J43,D43+J43)","v":4124076},{"$f":"B2B!L215","v":4249880},{"$f":"B2B!M215","v":4445400}]
["Trading services",null,{"$f":"SUM(C45:C48)","v":99069502},{"$f":"SUM(D45:D48)","v":100775989},0,0,0,-6719130,0,-6719130,94056859,101557322,115910888]
["Energy sources",null,{"$f":"B2B!C223","v":76143194},{"$f":"B2B!D223","v":76674248},{"$f":"B2B!E223","v":0},{"$f":"B2B!F223","v":0},{"$f":"B2B!G223","v":0},{"$f":"B2B!H223","v":-6719130},{"$f":"B2B!I223","v":0},{"$f":"SUM(E45:I45)","v":-6719130},{"$f":"IF(D45=0,C45+J45,D45+J45)","v":69955118},{"$f":"B2B!L223","v":76813179},{"$f":"B2B!M223","v":81119364}]
["Water management",null,{"$f":"B2B!C227","v":0},{"$f":"B2B!D227","v":0},{"$f":"B2B!E227","v":0},{"$f":"B2B!F227","v":0},{"$f":"B2B!G227","v":0},{"$f":"B2B!H227","v":0},{"$f":"B2B!I227","v":0},{"$f":"SUM(E46:I46)","v":0},{"$f":"IF(D46=0,C46+J46,D46+J46)","v":0},{"$f":"B2B!L227","v":0},{"$f":"B2B!M227","v":0}]
["Waste water management",null,{"$f":"B2B!C231","v":2802430},{"$f":"B2B!D231","v":2802430},{"$f":"B2B!E231","v":0},{"$f":"B2B!F231","v":0},{"$f":"B2B!G231","v":0},{"$f":"B2B!H231","v":0},{"$f":"B2B!I231","v":0},{"$f":"SUM(E47:I47)","v":0},{"$f":"IF(D47=0,C47+J47,D47+J47)","v":2802430},{"$f":"B2B!L231","v":2886499},{"$f":"B2B!M231","v":2944229}]
["Waste management",null,{"$f":"B2B!C236","v":20123878},{"$f":"B2B!D236","v":21299311},{"$f":"B2B!E236","v":0},{"$f":"B2B!F236","v":0},{"$f":"B2B!G236","v":0},{"$f":"B2B!H236","v":0},{"$f":"B2B!I236","v":0},{"$f":"SUM(E48:I48)","v":0},{"$f":"IF(D48=0,C48+J48,D48+J48)","v":21299311},{"$f":"B2B!L236","v":21857644},{"$f":"B2B!M236","v":31847295}]
["Other",null,{"$f":"B2B!C241","v":876088},{"$f":"B2B!D241","v":676088},{"$f":"B2B!E241","v":0},{"$f":"B2B!F241","v":0},{"$f":"B2B!G241","v":0},{"$f":"B2B!H241","v":0},{"$f":"B2B!I241","v":0},{"$f":"SUM(E49:I49)","v":0},{"$f":"IF(D49=0,C49+J49,D49+J49)","v":676088},{"$f":"B2B!L241","v":456913},{"$f":"B2B!M241","v":473146}]
[{"$f":"\"Total \"&A29","v":"Total Expenditure - Functional"},3,{"$f":"C30+C34+C40+C44+C49","v":443030793},{"$f":"D30+D34+D40+D44+D49","v":468419145},0,0,0,-6719130,0,-6719130,461700015,449339045,459589147]
["Surplus/ (Deficit) for the year",null,{"$f":"C27-C50","v":43830101},25588308,0,0,0,2283500,0,2283500,27871808,44553274,47086759]
[{"$f":"head27a","v":"References"}]
["1. Government Finance Statistics Functions and Sub-functions are standardised to assist the compilation of national and international accounts for comparison purposes"]
["2. Total Revenue by standard classification must reconcile to Total Operating Revenue shown in the Adjustments Budget Financial Performance (revenue and expenditure)"]
["3. Total Operating Expenditure by standard classification must reconcile to Total Operating Expenditure shown in the Adjustments Budget Financial Performance (revenue and expenditure)"]
["4. All amounts must be classified under a standard classification (modified GFS). The GFS function 'Other' is only for Abbatoirs, Air Transport, Markets and Tourism - and if used must be supported by footnotes. Nothing else may be placed under 'Other'. Assign associate share to relevant classification"]
["5. Only complete if a previous adjusted budget has been approved in the same financial year. Reflect most recent adjusted budget."]
["6. Additional cash-backed accumulated funds/unspent funds (MFMA section 18(1)(b) and section 28(2)(e)) identified after the Original Budget approved and after annual financial statements audited (note: only where underspending could not reasonably have been foreseen)"]
["7. Increases of funds approved under MFMA section 31"]
["8. Adjustments approved in accordance with MFMA section 29 "]
["9. Adjustments to transfers from National or Provincial Government"]
["10. Adjusts. = 'Other' Adjustments proposed to be approved; including revenue under-collection (MFMA section 28(2)(a)); additional revenue appropriation on existing programmes (section 28(2))(b); projected savings (section 28(2)(d)); error correction (section 28(2)(f))"]
["11. G = B + C + D + E + F"]
["12. Adjusted Budget H = (A or A1/2 etc) + G"]

{"sheet":"B2B","index":26,"n_rows":254,"n_cols":31,"rows_kept":254,"cut":false,"hidden":false,"merged":[[253,0,253,10],[1,2,1,10]]}
[{"$f":"muni&\" - \"&_ADJ3&\" - B\"&\" - \"&Date","v":"KZN291 Mandeni - Table B2 Adjustments Budget Financial Performance (functional classification) - B - 08-04-2025"}]
[{"$f":"\"Standard Classification \"&desc","v":"Standard Classification Description"},{"$f":"head27","v":"Ref"},{"$f":"Head2","v":"Budget Year 2024/25"},null,null,null,null,null,null,null,null,{"$f":"Head10","v":"Budget Year +1 2025/26"},{"$f":"Head11","v":"Budget Year +2 2026/27"}]
[null,null,{"$f":"Head6","v":"Original Budget"},{"$f":"Head54","v":"Prior Adjusted"},{"$f":"Head51","v":"Accum. Funds"},{"$f":"Head52","v":"Multi-year capital"},{"$f":"Head53","v":"Unfore. Unavoid."},{"$f":"Head55","v":"Nat. or Prov. Govt"},{"$f":"Head50","v":"Other Adjusts."},{"$f":"Head56","v":"Total Adjusts."},{"$f":"Head7","v":"Adjusted Budget"},{"$f":"Head7","v":"Adjusted Budget"},{"$f":"Head7","v":"Adjusted Budget"}]
[null,null,null,5,{"$f":"D4+1","v":6},7,8,9,10,11,12]
["R thousand",1,"A","A1","B","C","D","E","F","G","H"]
["Revenue - Functional"]
["Municipal governance and administration",null,{"$f":"C8+C11+C25","v":340235929},340967929,0,0,0,0,0,{"$f":"SUM(E7:I7)","v":0},{"$f":"IF(D7=0,C7+J7,D7+J7)","v":340967929},{"$f":"L8+L11+L25","v":344017956},{"$f":"M8+M11+M25","v":343191600}]
["Executive and council",null,{"$f":"SUM(C9:C10)","v":8038000},{"$f":"SUM(D9:D10)","v":8038000},0,0,0,0,0,{"$f":"SUM(E8:I8)","v":0},{"$f":"IF(D8=0,C8+J8,D8+J8)","v":8038000},{"$f":"SUM(L9:L10)","v":8356000},{"$f":"SUM(M9:M10)","v":8700000}]
["Mayor and Council",null,{"$f":"-SUMIFS(Sheet1!S71_OriginalBudget,Sheet1!S71_A2SubCode,$AC:$AC,Sheet1!S71_ItemType,$AD:$AD)","v":8038000},{"$f":"-SUMIFS(Sheet1!S71_PreviousBudget,Sheet1!S71_A2SubCode,$AC:$AC,Sheet1!S71_ItemType,$AD:$AD)","v":8038000},null,null,null,null,{"$f":"-SUMIFS(Sheet1!S71_CurrentAdjustments,Sheet1!S71_A2SubCode,$AC:$AC,Sheet1!S71_ItemType,$AD:$AD)","v":0},{"$f":"SUM(E9:I9)","v":0},{"$f":"IF(D9=0,C9+J9,D9+J9)","v":8038000},{"$f":"-SUMIFS(Sheet1!S71_OY1AdjustedBudget,Sheet1!S71_A2SubCode,$AC:$AC,Sheet1!S71_ItemType,$AD:$AD)","v":8356000},{"$f":"-SUMIFS(Sheet1!S71_OY2AdjustedBudget,Sheet1!S71_A2SubCode,$AC:$AC,Sheet1!S71_ItemType,$AD:$AD)","v":8700000},null,null,null,null,null,null,null,null,null,null,null,null,null,null,null,"1110","IR","IZ"]
["Municipal Manager, Town Secretary and Chief Executive",null,{"$f":"-SUMIFS(Sheet1!S71_OriginalBudget,Sheet1!S71_A2SubCode,$AC:$AC,Sheet1!S71_ItemType,$AD:$AD)","v":0},{"$f":"-SUMIFS(Sheet1!S71_PreviousBudget,Sheet1!S71_A2SubCode,$AC:$AC,Sheet1!S71_ItemType,$AD:$AD)","v":0},null,null,null,null,{"$f":"-SUMIFS(Sheet1!S71_CurrentAdjustments,Sheet1!S71_A2SubCode,$AC:$AC,Sheet1!S71_ItemType,$AD:$AD)","v":0},{"$f":"SUM(E10:I10)","v":0},{"$f":"IF(D10=0,C10+J10,D10+J10)","v":0},{"$f":"-SUMIFS(Sheet1!S71_OY1AdjustedBudget,Sheet1!S71_A2SubCode,$AC:$AC,Sheet1!S71_ItemType,$AD:$AD)","v":0},{"$f":"-SUMIFS(Sheet1!S71_OY2AdjustedBudget,Sheet1!S71_A2SubCode,$AC:$AC,Sheet1!S71_ItemType,$AD:$AD)","v":0},null,null,null,null,null,null,null,null,null,null,null,null,null,null,null,"1120","IR","IZ"]
["Finance and administration",null,{"$f":"SUM(C12:C24)","v":332197929},332929929,0,0,0,0,0,0,332929929,{"$f":"SUM(L12:L24)","v":335661956},{"$f":"SUM(M12:M24)","v":334491600},null,null,null,null,null,null,null,null,null,null,null,null,null,null,null,null,"IR","IZ"]
["Administrative and Corporate Support",null,{"$f":"-SUMIFS(Sheet1!S71_OriginalBudget,Sheet1!S71_A2SubCode,$AC:$AC,Sheet1!S71_ItemType,$AD:$AD)","v":0},{"$f":"-SUMIFS(Sheet1!S71_PreviousBudget,Sheet1!S71_A2SubCode,$AC:$AC,Sheet1!S71_ItemType,$AD:$AD)","v":0},null,null,null,null,{"$f":"-SUMIFS(Sheet1!S71_CurrentAdjustments,Sheet1!S71_A2SubCode,$AC:$AC,Sheet1!S71_ItemType,$AD:$AD)","v":0},0,0,{"$f":"-SUMIFS(Sheet1!S71_OY1AdjustedBudget,Sheet1!S71_A2SubCode,$AC:$AC,Sheet1!S71_ItemType,$AD:$AD)","v":0},{"$f":"-SUMIFS(Sheet1!S71_OY2AdjustedBudget,Sheet1!S71_A2SubCode,$AC:$AC,Sheet1!S71_ItemType,$AD:$AD)","v":0},null,null,null,null,null,null,null,null,null,null,null,null,null,null,null,"1201","IR","IZ"]
["Asset Management",null,{"$f":"-SUMIFS(Sheet1!S71_OriginalBudget,Sheet1!S71_A2SubCode,$AC:$AC,Sheet1!S71_ItemType,$AD:$AD)","v":0},{"$f":"-SUMIFS(Sheet1!S71_PreviousBudget,Sheet1!S71_A2SubCode,$AC:$AC,Sheet1!S71_ItemType,$AD:$AD)","v":0},null,null,null,null,{"$f":"-SUMIFS(Sheet1!S71_CurrentAdjustments,Sheet1!S71_A2SubCode,$AC:$AC,Sheet1!S71_ItemType,$AD:$AD)","v":0},0,0,{"$f":"-SUMIFS(Sheet1!S71_OY1AdjustedBudget,Sheet1!S71_A2SubCode,$AC:$AC,Sheet1!S71_ItemType,$AD:$AD)","v":0},{"$f":"-SUMIFS(Sheet1!S71_OY2AdjustedBudget,Sheet1!S71_A2SubCode,$AC:$AC,Sheet1!S71_ItemType,$AD:$AD)","v":0},null,null,null,null,null,null,null,null,null,null,null,null,null,null,null,"1202","IR","IZ"]
["Finance",null,{"$f":"-SUMIFS(Sheet1!S71_OriginalBudget,Sheet1!S71_A2SubCode,$AC:$AC,Sheet1!S71_ItemType,$AD:$AD)","v":303806625},{"$f":"-SUMIFS(Sheet1!S71_PreviousBudget,Sheet1!S71_A2SubCode,$AC:$AC,Sheet1!S71_ItemType,$AD:$AD)","v":304538625},null,null,null,null,{"$f":"-SUMIFS(Sheet1!S71_CurrentAdjustments,Sheet1!S71_A2SubCode,$AC:$AC,Sheet1!S71_ItemType,$AD:$AD)","v":0},0,304538625,{"$f":"-SUMIFS(Sheet1!S71_OY1AdjustedBudget,Sheet1!S71_A2SubCode,$AC:$AC,Sheet1!S71_ItemType,$AD:$AD)","v":306412652},{"$f":"-SUMIFS(Sheet1!S71_OY2AdjustedBudget,Sheet1!S71_A2SubCode,$AC:$AC,Sheet1!S71_ItemType,$AD:$AD)","v":304358268},null,null,null,null,null,null,null,null,null,null,null,null,null,null,null,"1204","IR","IZ"]
["Fleet Management",null,{"$f":"-SUMIFS(Sheet1!S71_OriginalBudget,Sheet1!S71_A2SubCode,$AC:$AC,Sheet1!S71_ItemType,$AD:$AD)","v":0},{"$f":"-SUMIFS(Sheet1!S71_PreviousBudget,Sheet1!S71_A2SubCode,$AC:$AC,Sheet1!S71_ItemType,$AD:$AD)","v":0},null,null,null,null,{"$f":"-SUMIFS(Sheet1!S71_CurrentAdjustments,Sheet1!S71_A2SubCode,$AC:$AC,Sheet1!S71_ItemType,$AD:$AD)","v":0},0,0,{"$f":"-SUMIFS(Sheet1!S71_OY1AdjustedBudget,Sheet1!S71_A2SubCode,$AC:$AC,Sheet1!S71_ItemType,$AD:$AD)","v":0},{"$f":"-SUMIFS(Sheet1!S71_OY2AdjustedBudget,Sheet1!S71_A2SubCode,$AC:$AC,Sheet1!S71_ItemType,$AD:$AD)","v":0},null,null,null,null,null,null,null,null,null,null,null,null,null,null,null,"1205","IR","IZ"]
["Human Resources",null,{"$f":"-SUMIFS(Sheet1!S71_OriginalBudget,Sheet1!S71_A2SubCode,$AC:$AC,Sheet1!S71_ItemType,$AD:$AD)","v":0},{"$f":"-SUMIFS(Sheet1!S71_PreviousBudget,Sheet1!S71_A2SubCode,$AC:$AC,Sheet1!S71_ItemType,$AD:$AD)","v":0},null,null,null,null,{"$f":"-SUMIFS(Sheet1!S71_CurrentAdjustments,Sheet1!S71_A2SubCode,$AC:$AC,Sheet1!S71_ItemType,$AD:$AD)","v":0},0,0,{"$f":"-SUMIFS(Sheet1!S71_OY1AdjustedBudget,Sheet1!S71_A2SubCode,$AC:$AC,Sheet1!S71_ItemType,$AD:$AD)","v":0},{"$f":"-SUMIFS(Sheet1!S71_OY2AdjustedBudget,Sheet1!S71_A2SubCode,$AC:$AC,Sheet1!S71_ItemType,$AD:$AD)","v":0},null,null,null,null,null,null,null,null,null,null,null,null,null,null,null,"1206","IR","IZ"]
["Information Technology",null,{"$f":"-SUMIFS(Sheet1!S71_OriginalBudget,Sheet1!S71_A2SubCode,$AC:$AC,Sheet1!S71_ItemType,$AD:$AD)","v":0},{"$f":"-SUMIFS(Sheet1!S71_PreviousBudget,Sheet1!S71_A2SubCode,$AC:$AC,Sheet1!S71_ItemType,$AD:$AD)","v":0},null,null,null,null,{"$f":"-SUMIFS(Sheet1!S71_CurrentAdjustments,Sheet1!S71_A2SubCode,$AC:$AC,Sheet1!S71_ItemType,$AD:$AD)","v":0},0,0,{"$f":"-SUMIFS(Sheet1!S71_OY1AdjustedBudget,Sheet1!S71_A2SubCode,$AC:$AC,Sheet1!S71_ItemType,$AD:$AD)","v":0},{"$f":"-SUMIFS(Sheet1!S71_OY2AdjustedBudget,Sheet1!S71_A2SubCode,$AC:$AC,Sheet1!S71_ItemType,$AD:$AD)","v":0},null,null,null,null,null,null,null,null,null,null,null,null,null,null,null,"1207","IR","IZ"]
["Legal Services",null,{"$f":"-SUMIFS(Sheet1!S71_OriginalBudget,Sheet1!S71_A2SubCode,$AC:$AC,Sheet1!S71_ItemType,$AD:$AD)","v":0},{"$f":"-SUMIFS(Sheet1!S71_PreviousBudget,Sheet1!S71_A2SubCode,$AC:$AC,Sheet1!S71_ItemType,$AD:$AD)","v":0},null,null,null,null,{"$f":"-SUMIFS(Sheet1!S71_CurrentAdjustments,Sheet1!S71_A2SubCode,$AC:$AC,Sheet1!S71_ItemType,$AD:$AD)","v":0},0,0,{"$f":"-SUMIFS(Sheet1!S71_OY1AdjustedBudget,Sheet1!S71_A2SubCode,$AC:$AC,Sheet1!S71_ItemType,$AD:$AD)","v":0},{"$f":"-SUMIFS(Sheet1!S71_OY2AdjustedBudget,Sheet1!S71_A2SubCode,$AC:$AC,Sheet1!S71_ItemType,$AD:$AD)","v":0},null,null,null,null,null,null,null,null,null,null,null,null,null,null,null,"1208","IR","IZ"]
["Marketing, Customer Relations, Publicity and Media Co-ordination",null,{"$f":"-SUMIFS(Sheet1!S71_OriginalBudget,Sheet1!S71_A2SubCode,$AC:$AC,Sheet1!S71_ItemType,$AD:$AD)","v":0},{"$f":"-SUMIFS(Sheet1!S71_PreviousBudget,Sheet1!S71_A2SubCode,$AC:$AC,Sheet1!S71_ItemType,$AD:$AD)","v":0},null,null,null,null,{"$f":"-SUMIFS(Sheet1!S71_CurrentAdjustments,Sheet1!S71_A2SubCode,$AC:$AC,Sheet1!S71_ItemType,$AD:$AD)","v":0},0,0,{"$f":"-SUMIFS(Sheet1!S71_OY1AdjustedBudget,Sheet1!S71_A2SubCode,$AC:$AC,Sheet1!S71_ItemType,$AD:$AD)","v":0},{"$f":"-SUMIFS(Sheet1!S71_OY2AdjustedBudget,Sheet1!S71_A2SubCode,$AC:$AC,Sheet1!S71_ItemType,$AD:$AD)","v":0},null,null,null,null,null,null,null,null,null,null,null,null,null,null,null,"1209","IR","IZ"]
["Property Services",null,{"$f":"-SUMIFS(Sheet1!S71_OriginalBudget,Sheet1!S71_A2SubCode,$AC:$AC,Sheet1!S71_ItemType,$AD:$AD)","v":0},{"$f":"-SUMIFS(Sheet1!S71_PreviousBudget,Sheet1!S71_A2SubCode,$AC:$AC,Sheet1!S71_ItemType,$AD:$AD)","v":0},null,null,null,null,{"$f":"-SUMIFS(Sheet1!S71_CurrentAdjustments,Sheet1!S71_A2SubCode,$AC:$AC,Sheet1!S71_ItemType,$AD:$AD)","v":0},0,0,{"$f":"-SUMIFS(Sheet1!S71_OY1AdjustedBudget,Sheet1!S71_A2SubCode,$AC:$AC,Sheet1!S71_ItemType,$AD:$AD)","v":0},{"$f":"-SUMIFS(Sheet1!S71_OY2AdjustedBudget,Sheet1!S71_A2SubCode,$AC:$AC,Sheet1!S71_ItemType,$AD:$AD)","v":0},null,null,null,null,null,null,null,null,null,null,null,null,null,null,null,"1210","IR","IZ"]
["Risk Management",null,{"$f":"-SUMIFS(Sheet1!S71_OriginalBudget,Sheet1!S71_A2SubCode,$AC:$AC,Sheet1!S71_ItemType,$AD:$AD)","v":0},{"$f":"-SUMIFS(Sheet1!S71_PreviousBudget,Sheet1!S71_A2SubCode,$AC:$AC,Sheet1!S71_ItemType,$AD:$AD)","v":0},null,null,null,null,{"$f":"-SUMIFS(Sheet1!S71_CurrentAdjustments,Sheet1!S71_A2SubCode,$AC:$AC,Sheet1!S71_ItemType,$AD:$AD)","v":0},0,0,{"$f":"-SUMIFS(Sheet1!S71_OY1AdjustedBudget,Sheet1!S71_A2SubCode,$AC:$AC,Sheet1!S71_ItemType,$AD:$AD)","v":0},{"$f":"-SUMIFS(Sheet1!S71_OY2AdjustedBudget,Sheet1!S71_A2SubCode,$AC:$AC,Sheet1!S71_ItemType,$AD:$AD)","v":0},null,null,null,null,null,null,null,null,null,null,null,null,null,null,null,"1211","IR","IZ"]
["Security Services",null,{"$f":"-SUMIFS(Sheet1!S71_OriginalBudget,Sheet1!S71_A2SubCode,$AC:$AC,Sheet1!S71_ItemType,$AD:$AD)","v":0},{"$f":"-SUMIFS(Sheet1!S71_PreviousBudget,Sheet1!S71_A2SubCode,$AC:$AC,Sheet1!S71_ItemType,$AD:$AD)","v":0},null,null,null,null,{"$f":"-SUMIFS(Sheet1!S71_CurrentAdjustments,Sheet1!S71_A2SubCode,$AC:$AC,Sheet1!S71_ItemType,$AD:$AD)","v":0},0,0,{"$f":"-SUMIFS(Sheet1!S71_OY1AdjustedBudget,Sheet1!S71_A2SubCode,$AC:$AC,Sheet1!S71_ItemType,$AD:$AD)","v":0},{"$f":"-SUMIFS(Sheet1!S71_OY2AdjustedBudget,Sheet1!S71_A2SubCode,$AC:$AC,Sheet1!S71_ItemType,$AD:$AD)","v":0},null,null,null,null,null,null,null,null,null,null,null,null,null,null,null,"1212","IR","IZ"]
["Supply Chain Management ",null,{"$f":"-SUMIFS(Sheet1!S71_OriginalBudget,Sheet1!S71_A2SubCode,$AC:$AC,Sheet1!S71_ItemType,$AD:$AD)","v":391304},{"$f":"-SUMIFS(Sheet1!S71_PreviousBudget,Sheet1!S71_A2SubCode,$AC:$AC,Sheet1!S71_ItemType,$AD:$AD)","v":391304},null,null,null,null,{"$f":"-SUMIFS(Sheet1!S71_CurrentAdjustments,Sheet1!S71_A2SubCode,$AC:$AC,Sheet1!S71_ItemType,$AD:$AD)","v":0},0,391304,{"$f":"-SUMIFS(Sheet1!S71_OY1AdjustedBudget,Sheet1!S71_A2SubCode,$AC:$AC,Sheet1!S71_ItemType,$AD:$AD)","v":409304},{"$f":"-SUMIFS(Sheet1!S71_OY2AdjustedBudget,Sheet1!S71_A2SubCode,$AC:$AC,Sheet1!S71_ItemType,$AD:$AD)","v":428132},null,null,null,null,null,null,null,null,null,null,null,null,null,null,null,"1213","IR","IZ"]
["Valuation Service",null,{"$f":"-SUMIFS(Sheet1!S71_OriginalBudget,Sheet1!S71_A2SubCode,$AC:$AC,Sheet1!S71_ItemType,$AD:$AD)","v":28000000},{"$f":"-SUMIFS(Sheet1!S71_PreviousBudget,Sheet1!S71_A2SubCode,$AC:$AC,Sheet1!S71_ItemType,$AD:$AD)","v":28000000},null,null,null,null,{"$f":"-SUMIFS(Sheet1!S71_CurrentAdjustments,Sheet1!S71_A2SubCode,$AC:$AC,Sheet1!S71_ItemType,$AD:$AD)","v":0},0,28000000,{"$f":"-SUMIFS(Sheet1!S71_OY1AdjustedBudget,Sheet1!S71_A2SubCode,$AC:$AC,Sheet1!S71_ItemType,$AD:$AD)","v":28840000},{"$f":"-SUMIFS(Sheet1!S71_OY2AdjustedBudget,Sheet1!S71_A2SubCode,$AC:$AC,Sheet1!S71_ItemType,$AD:$AD)","v":29705200},null,null,null,null,null,null,null,null,null,null,null,null,null,null,null,"1214","IR","IZ"]
["Internal audit",null,{"$f":"SUM(C26:C26)","v":0},0,0,0,0,0,0,0,0,0,0,null,null,null,null,null,null,null,null,null,null,null,null,null,null,null,null,"IR"]
["Governance Function",null,{"$f":"-SUMIFS(Sheet1!S71_OriginalBudget,Sheet1!S71_A2SubCode,$AC:$AC,Sheet1!S71_ItemType,$AD:$AD)","v":0},{"$f":"-SUMIFS(Sheet1!S71_PreviousBudget,Sheet1!S71_A2SubCode,$AC:$AC,Sheet1!S71_ItemType,$AD:$AD)","v":0},null,null,null,null,{"$f":"-SUMIFS(Sheet1!S71_CurrentAdjustments,Sheet1!S71_A2SubCode,$AC:$AC,Sheet1!S71_ItemType,$AD:$AD)","v":0},0,0,{"$f":"-SUMIFS(Sheet1!S71_OY1AdjustedBudget,Sheet1!S71_A2SubCode,$AC:$AC,Sheet1!S71_ItemType,$AD:$AD)","v":0},{"$f":"-SUMIFS(Sheet1!S71_OY2AdjustedBudget,Sheet1!S71_A2SubCode,$AC:$AC,Sheet1!S71_ItemType,$AD:$AD)","v":0},null,null,null,null,null,null,null,null,null,null,null,null,null,null,null,"1301","IR","IZ"]
["Community and public safety",null,{"$f":"C28+C50+C56+C65+C68","v":5464272},5764272,0,0,0,0,0,0,5764272,{"$f":"L28+L50+L56+L65+L68","v":5817152},{"$f":"M28+M50+M56+M65+M68","v":9866023},null,null,null,null,null,null,null,null,null,null,null,null,null,null,null,null,"IR"]
["Community and social services",null,{"$f":"SUM(C29:C49)","v":5072968},5372968,0,0,0,0,0,0,5372968,5407848,5584696,null,null,null,null,null,null,null,null,null,null,null,null,null,null,null,null,"IR"]
["Aged Care",null,{"$f":"-SUMIFS(Sheet1!S71_OriginalBudget,Sheet1!S71_A2SubCode,$AC:$AC,Sheet1!S71_ItemType,$AD:$AD)","v":0},{"$f":"-SUMIFS(Sheet1!S71_PreviousBudget,Sheet1!S71_A2SubCode,$AC:$AC,Sheet1!S71_ItemType,$AD:$AD)","v":0},null,null,null,null,{"$f":"-SUMIFS(Sheet1!S71_CurrentAdjustments,Sheet1!S71_A2SubCode,$AC:$AC,Sheet1!S71_ItemType,$AD:$AD)","v":0},0,0,{"$f":"-SUMIFS(Sheet1!S71_OY1AdjustedBudget,Sheet1!S71_A2SubCode,$AC:$AC,Sheet1!S71_ItemType,$AD:$AD)","v":0},{"$f":"-SUMIFS(Sheet1!S71_OY2AdjustedBudget,Sheet1!S71_A2SubCode,$AC:$AC,Sheet1!S71_ItemType,$AD:$AD)","v":0},null,null,null,null,null,null,null,null,null,null,null,null,null,null,null,"2101","IR","IZ"]
["Agricultural",null,{"$f":"-SUMIFS(Sheet1!S71_OriginalBudget,Sheet1!S71_A2SubCode,$AC:$AC,Sheet1!S71_ItemType,$AD:$AD)","v":0},{"$f":"-SUMIFS(Sheet1!S71_PreviousBudget,Sheet1!S71_A2SubCode,$AC:$AC,Sheet1!S71_ItemType,$AD:$AD)","v":0},null,null,null,null,{"$f":"-SUMIFS(Sheet1!S71_CurrentAdjustments,Sheet1!S71_A2SubCode,$AC:$AC,Sheet1!S71_ItemType,$AD:$AD)","v":0},0,0,{"$f":"-SUMIFS(Sheet1!S71_OY1AdjustedBudget,Sheet1!S71_A2SubCode,$AC:$AC,Sheet1!S71_ItemType,$AD:$AD)","v":0},{"$f":"-SUMIFS(Sheet1!S71_OY2AdjustedBudget,Sheet1!S71_A2SubCode,$AC:$AC,Sheet1!S71_ItemType,$AD:$AD)","v":0},null,null,null,null,null,null,null,null,null,null,null,null,null,null,null,"2102","IR","IZ"]
["Animal Care and Diseases",null,{"$f":"-SUMIFS(Sheet1!S71_OriginalBudget,Sheet1!S71_A2SubCode,$AC:$AC,Sheet1!S71_ItemType,$AD:$AD)","v":0},{"$f":"-SUMIFS(Sheet1!S71_PreviousBudget,Sheet1!S71_A2SubCode,$AC:$AC,Sheet1!S71_ItemType,$AD:$AD)","v":0},null,null,null,null,{"$f":"-SUMIFS(Sheet1!S71_CurrentAdjustments,Sheet1!S71_A2SubCode,$AC:$AC,Sheet1!S71_ItemType,$AD:$AD)","v":0},0,0,{"$f":"-SUMIFS(Sheet1!S71_OY1AdjustedBudget,Sheet1!S71_A2SubCode,$AC:$AC,Sheet1!S71_ItemType,$AD:$AD)","v":0},{"$f":"-SUMIFS(Sheet1!S71_OY2AdjustedBudget,Sheet1!S71_A2SubCode,$AC:$AC,Sheet1!S71_ItemType,$AD:$AD)","v":0},null,null,null,null,null,null,null,null,null,null,null,null,null,null,null,"2103","IR","IZ"]
["Cemeteries, Funeral Parlours and Crematoriums",null,{"$f":"-SUMIFS(Sheet1!S71_OriginalBudget,Sheet1!S71_A2SubCode,$AC:$AC,Sheet1!S71_ItemType,$AD:$AD)","v":0},{"$f":"-SUMIFS(Sheet1!S71_PreviousBudget,Sheet1!S71_A2SubCode,$AC:$AC,Sheet1!S71_ItemType,$AD:$AD)","v":0},null,null,null,null,{"$f":"-SUMIFS(Sheet1!S71_CurrentAdjustments,Sheet1!S71_A2SubCode,$AC:$AC,Sheet1!S71_ItemType,$AD:$AD)","v":0},0,0,{"$f":"-SUMIFS(Sheet1!S71_OY1AdjustedBudget,Sheet1!S71_A2SubCode,$AC:$AC,Sheet1!S71_ItemType,$AD:$AD)","v":0},{"$f":"-SUMIFS(Sheet1!S71_OY2AdjustedBudget,Sheet1!S71_A2SubCode,$AC:$AC,Sheet1!S71_ItemType,$AD:$AD)","v":0},null,null,null,null,null,null,null,null,null,null,null,null,null,null,null,"2104","IR","IZ"]
["Child Care Facilities",null,{"$f":"-SUMIFS(Sheet1!S71_OriginalBudget,Sheet1!S71_A2SubCode,$AC:$AC,Sheet1!S71_ItemType,$AD:$AD)","v":0},{"$f":"-SUMIFS(Sheet1!S71_PreviousBudget,Sheet1!S71_A2SubCode,$AC:$AC,Sheet1!S71_ItemType,$AD:$AD)","v":0},null,null,null,null,{"$f":"-SUMIFS(Sheet1!S71_CurrentAdjustments,Sheet1!S71_A2SubCode,$AC:$AC,Sheet1!S71_ItemType,$AD:$AD)","v":0},0,0,{"$f":"-SUMIFS(Sheet1!S71_OY1AdjustedBudget,Sheet1!S71_A2SubCode,$AC:$AC,Sheet1!S71_ItemType,$AD:$AD)","v":0},{"$f":"-SUMIFS(Sheet1!S71_OY2AdjustedBudget,Sheet1!S71_A2SubCode,$AC:$AC,Sheet1!S71_ItemType,$AD:$AD)","v":0},null,null,null,null,null,null,null,null,null,null,null,null,null,null,null,"2105","IR","IZ"]
["Community Halls and Facilities",null,{"$f":"-SUMIFS(Sheet1!S71_OriginalBudget,Sheet1!S71_A2SubCode,$AC:$AC,Sheet1!S71_ItemType,$AD:$AD)","v":373913},{"$f":"-SUMIFS(Sheet1!S71_PreviousBudget,Sheet1!S71_A2SubCode,$AC:$AC,Sheet1!S71_ItemType,$AD:$AD)","v":673913},null,null,null,null,{"$f":"-SUMIFS(Sheet1!S71_CurrentAdjustments,Sheet1!S71_A2SubCode,$AC:$AC,Sheet1!S71_ItemType,$AD:$AD)","v":0},0,673913,{"$f":"-SUMIFS(Sheet1!S71_OY1AdjustedBudget,Sheet1!S71_A2SubCode,$AC:$AC,Sheet1!S71_ItemType,$AD:$AD)","v":391113},{"$f":"-SUMIFS(Sheet1!S71_OY2AdjustedBudget,Sheet1!S71_A2SubCode,$AC:$AC,Sheet1!S71_ItemType,$AD:$AD)","v":409104},null,null,null,null,null,null,null,null,null,null,null,null,null,null,null,"2106","IR","IZ"]
["Consumer Protection",null,{"$f":"-SUMIFS(Sheet1!S71_OriginalBudget,Sheet1!S71_A2SubCode,$AC:$AC,Sheet1!S71_ItemType,$AD:$AD)","v":0},{"$f":"-SUMIFS(Sheet1!S71_PreviousBudget,Sheet1!S71_A2SubCode,$AC:$AC,Sheet1!S71_ItemType,$AD:$AD)","v":0},null,null,null,null,{"$f":"-SUMIFS(Sheet1!S71_CurrentAdjustments,Sheet1!S71_A2SubCode,$AC:$AC,Sheet1!S71_ItemType,$AD:$AD)","v":0},0,0,{"$f":"-SUMIFS(Sheet1!S71_OY1AdjustedBudget,Sheet1!S71_A2SubCode,$AC:$AC,Sheet1!S71_ItemType,$AD:$AD)","v":0},{"$f":"-SUMIFS(Sheet1!S71_OY2AdjustedBudget,Sheet1!S71_A2SubCode,$AC:$AC,Sheet1!S71_ItemType,$AD:$AD)","v":0},null,null,null,null,null,null,null,null,null,null,null,null,null,null,null,"2107","IR","IZ"]
["Cultural Matters",null,{"$f":"-SUMIFS(Sheet1!S71_OriginalBudget,Sheet1!S71_A2SubCode,$AC:$AC,Sheet1!S71_ItemType,$AD:$AD)","v":0},{"$f":"-SUMIFS(Sheet1!S71_PreviousBudget,Sheet1!S71_A2SubCode,$AC:$AC,Sheet1!S71_ItemType,$AD:$AD)","v":0},null,null,null,null,{"$f":"-SUMIFS(Sheet1!S71_CurrentAdjustments,Sheet1!S71_A2SubCode,$AC:$AC,Sheet1!S71_ItemType,$AD:$AD)","v":0},0,0,{"$f":"-SUMIFS(Sheet1!S71_OY1AdjustedBudget,Sheet1!S71_A2SubCode,$AC:$AC,Sheet1!S71_ItemType,$AD:$AD)","v":0},{"$f":"-SUMIFS(Sheet1!S71_OY2AdjustedBudget,Sheet1!S71_A2SubCode,$AC:$AC,Sheet1!S71_ItemType,$AD:$AD)","v":0},null,null,null,null,null,null,null,null,null,null,null,null,null,null,null,"2108","IR","IZ"]
["Disaster Management",null,{"$f":"-SUMIFS(Sheet1!S71_OriginalBudget,Sheet1!S71_A2SubCode,$AC:$AC,Sheet1!S71_ItemType,$AD:$AD)","v":0},{"$f":"-SUMIFS(Sheet1!S71_PreviousBudget,Sheet1!S71_A2SubCode,$AC:$AC,Sheet1!S71_ItemType,$AD:$AD)","v":0},null,null,null,null,{"$f":"-SUMIFS(Sheet1!S71_CurrentAdjustments,Sheet1!S71_A2SubCode,$AC:$AC,Sheet1!S71_ItemType,$AD:$AD)","v":0},0,0,{"$f":"-SUMIFS(Sheet1!S71_OY1AdjustedBudget,Sheet1!S71_A2SubCode,$AC:$AC,Sheet1!S71_ItemType,$AD:$AD)","v":0},{"$f":"-SUMIFS(Sheet1!S71_OY2AdjustedBudget,Sheet1!S71_A2SubCode,$AC:$AC,Sheet1!S71_ItemType,$AD:$AD)","v":0},null,null,null,null,null,null,null,null,null,null,null,null,null,null,null,"2109","IR","IZ"]
["Education",null,{"$f":"-SUMIFS(Sheet1!S71_OriginalBudget,Sheet1!S71_A2SubCode,$AC:$AC,Sheet1!S71_ItemType,$AD:$AD)","v":0},{"$f":"-SUMIFS(Sheet1!S71_PreviousBudget,Sheet1!S71_A2SubCode,$AC:$AC,Sheet1!S71_ItemType,$AD:$AD)","v":0},null,null,null,null,{"$f":"-SUMIFS(Sheet1!S71_CurrentAdjustments,Sheet1!S71_A2SubCode,$AC:$AC,Sheet1!S71_ItemType,$AD:$AD)","v":0},0,0,{"$f":"-SUMIFS(Sheet1!S71_OY1AdjustedBudget,Sheet1!S71_A2SubCode,$AC:$AC,Sheet1!S71_ItemType,$AD:$AD)","v":0},{"$f":"-SUMIFS(Sheet1!S71_OY2AdjustedBudget,Sheet1!S71_A2SubCode,$AC:$AC,Sheet1!S71_ItemType,$AD:$AD)","v":0},null,null,null,null,null,null,null,null,null,null,null,null,null,null,null,"2110","IR","IZ"]
["Indigenous and Customary Law",null,{"$f":"-SUMIFS(Sheet1!S71_OriginalBudget,Sheet1!S71_A2SubCode,$AC:$AC,Sheet1!S71_ItemType,$AD:$AD)","v":0},{"$f":"-SUMIFS(Sheet1!S71_PreviousBudget,Sheet1!S71_A2SubCode,$AC:$AC,Sheet1!S71_ItemType,$AD:$AD)","v":0},null,null,null,null,{"$f":"-SUMIFS(Sheet1!S71_CurrentAdjustments,Sheet1!S71_A2SubCode,$AC:$AC,Sheet1!S71_ItemType,$AD:$AD)","v":0},0,0,{"$f":"-SUMIFS(Sheet1!S71_OY1AdjustedBudget,Sheet1!S71_A2SubCode,$AC:$AC,Sheet1!S71_ItemType,$AD:$AD)","v":0},{"$f":"-SUMIFS(Sheet1!S71_OY2AdjustedBudget,Sheet1!S71_A2SubCode,$AC:$AC,Sheet1!S71_ItemType,$AD:$AD)","v":0},null,null,null,null,null,null,null,null,null,null,null,null,null,null,null,"2111","IR","IZ"]
["Industrial Promotion",null,{"$f":"-SUMIFS(Sheet1!S71_OriginalBudget,Sheet1!S71_A2SubCode,$AC:$AC,Sheet1!S71_ItemType,$AD:$AD)","v":0},{"$f":"-SUMIFS(Sheet1!S71_PreviousBudget,Sheet1!S71_A2SubCode,$AC:$AC,Sheet1!S71_ItemType,$AD:$AD)","v":0},null,null,null,null,{"$f":"-SUMIFS(Sheet1!S71_CurrentAdjustments,Sheet1!S71_A2SubCode,$AC:$AC,Sheet1!S71_ItemType,$AD:$AD)","v":0},0,0,{"$f":"-SUMIFS(Sheet1!S71_OY1AdjustedBudget,Sheet1!S71_A2SubCode,$AC:$AC,Sheet1!S71_ItemType,$AD:$AD)","v":0},{"$f":"-SUMIFS(Sheet1!S71_OY2AdjustedBudget,Sheet1!S71_A2SubCode,$AC:$AC,Sheet1!S71_ItemType,$AD:$AD)","v":0},null,null,null,null,null,null,null,null,null,null,null,null,null,null,null,"2112","IR","IZ"]
["Language Policy",null,{"$f":"-SUMIFS(Sheet1!S71_OriginalBudget,Sheet1!S71_A2SubCode,$AC:$AC,Sheet1!S71_ItemType,$AD:$AD)","v":0},{"$f":"-SUMIFS(Sheet1!S71_PreviousBudget,Sheet1!S71_A2SubCode,$AC:$AC,Sheet1!S71_ItemType,$AD:$AD)","v":0},null,null,null,null,{"$f":"-SUMIFS(Sheet1!S71_CurrentAdjustments,Sheet1!S71_A2SubCode,$AC:$AC,Sheet1!S71_ItemType,$AD:$AD)","v":0},0,0,{"$f":"-SUMIFS(Sheet1!S71_OY1AdjustedBudget,Sheet1!S71_A2SubCode,$AC:$AC,Sheet1!S71_ItemType,$AD:$AD)","v":0},{"$f":"-SUMIFS(Sheet1!S71_OY2AdjustedBudget,Sheet1!S71_A2SubCode,$AC:$AC,Sheet1!S71_ItemType,$AD:$AD)","v":0},null,null,null,null,null,null,null,null,null,null,null,null,null,null,null,"2113","IR","IZ"]
["Libraries and Archives",null,{"$f":"-SUMIFS(Sheet1!S71_OriginalBudget,Sheet1!S71_A2SubCode,$AC:$AC,Sheet1!S71_ItemType,$AD:$AD)","v":4699055},{"$f":"-SUMIFS(Sheet1!S71_PreviousBudget,Sheet1!S71_A2SubCode,$AC:$AC,Sheet1!S71_ItemType,$AD:$AD)","v":4699055},null,null,null,null,{"$f":"-SUMIFS(Sheet1!S71_CurrentAdjustments,Sheet1!S71_A2SubCode,$AC:$AC,Sheet1!S71_ItemType,$AD:$AD)","v":0},0,4699055,{"$f":"-SUMIFS(Sheet1!S71_OY1AdjustedBudget,Sheet1!S71_A2SubCode,$AC:$AC,Sheet1!S71_ItemType,$AD:$AD)","v":5016735},{"$f":"-SUMIFS(Sheet1!S71_OY2AdjustedBudget,Sheet1!S71_A2SubCode,$AC:$AC,Sheet1!S71_ItemType,$AD:$AD)","v":5175592},null,null,null,null,null,null,null,null,null,null,null,null,null,null,null,"2114","IR","IZ"]
["Literacy Programmes",null,{"$f":"-SUMIFS(Sheet1!S71_OriginalBudget,Sheet1!S71_A2SubCode,$AC:$AC,Sheet1!S71_ItemType,$AD:$AD)","v":0},{"$f":"-SUMIFS(Sheet1!S71_PreviousBudget,Sheet1!S71_A2SubCode,$AC:$AC,Sheet1!S71_ItemType,$AD:$AD)","v":0},null,null,null,null,{"$f":"-SUMIFS(Sheet1!S71_CurrentAdjustments,Sheet1!S71_A2SubCode,$AC:$AC,Sheet1!S71_ItemType,$AD:$AD)","v":0},0,0,{"$f":"-SUMIFS(Sheet1!S71_OY1AdjustedBudget,Sheet1!S71_A2SubCode,$AC:$AC,Sheet1!S71_ItemType,$AD:$AD)","v":0},{"$f":"-SUMIFS(Sheet1!S71_OY2AdjustedBudget,Sheet1!S71_A2SubCode,$AC:$AC,Sheet1!S71_ItemType,$AD:$AD)","v":0},null,null,null,null,null,null,null,null,null,null,null,null,null,null,null,"2115","IR","IZ"]
["Media Services",null,{"$f":"-SUMIFS(Sheet1!S71_OriginalBudget,Sheet1!S71_A2SubCode,$AC:$AC,Sheet1!S71_ItemType,$AD:$AD)","v":0},{"$f":"-SUMIFS(Sheet1!S71_PreviousBudget,Sheet1!S71_A2SubCode,$AC:$AC,Sheet1!S71_ItemType,$AD:$AD)","v":0},null,null,null,null,{"$f":"-SUMIFS(Sheet1!S71_CurrentAdjustments,Sheet1!S71_A2SubCode,$AC:$AC,Sheet1!S71_ItemType,$AD:$AD)","v":0},0,0,{"$f":"-SUMIFS(Sheet1!S71_OY1AdjustedBudget,Sheet1!S71_A2SubCode,$AC:$AC,Sheet1!S71_ItemType,$AD:$AD)","v":0},{"$f":"-SUMIFS(Sheet1!S71_OY2AdjustedBudget,Sheet1!S71_A2SubCode,$AC:$AC,Sheet1!S71_ItemType,$AD:$AD)","v":0},null,null,null,null,null,null,null,null,null,null,null,null,null,null,null,"2116","IR","IZ"]
["Museums and Art Galleries",null,{"$f":"-SUMIFS(Sheet1!S71_OriginalBudget,Sheet1!S71_A2SubCode,$AC:$AC,Sheet1!S71_ItemType,$AD:$AD)","v":0},{"$f":"-SUMIFS(Sheet1!S71_PreviousBudget,Sheet1!S71_A2SubCode,$AC:$AC,Sheet1!S71_ItemType,$AD:$AD)","v":0},null,null,null,null,{"$f":"-SUMIFS(Sheet1!S71_CurrentAdjustments,Sheet1!S71_A2SubCode,$AC:$AC,Sheet1!S71_ItemType,$AD:$AD)","v":0},0,0,{"$f":"-SUMIFS(Sheet1!S71_OY1AdjustedBudget,Sheet1!S71_A2SubCode,$AC:$AC,Sheet1!S71_ItemType,$AD:$AD)","v":0},{"$f":"-SUMIFS(Sheet1!S71_OY2AdjustedBudget,Sheet1!S71_A2SubCode,$AC:$AC,Sheet1!S71_ItemType,$AD:$AD)","v":0},null,null,null,null,null,null,null,null,null,null,null,null,null,null,null,"2117","IR","IZ"]
["Population Development",null,{"$f":"-SUMIFS(Sheet1!S71_OriginalBudget,Sheet1!S71_A2SubCode,$AC:$AC,Sheet1!S71_ItemType,$AD:$AD)","v":0},{"$f":"-SUMIFS(Sheet1!S71_PreviousBudget,Sheet1!S71_A2SubCode,$AC:$AC,Sheet1!S71_ItemType,$AD:$AD)","v":0},null,null,null,null,{"$f":"-SUMIFS(Sheet1!S71_CurrentAdjustments,Sheet1!S71_A2SubCode,$AC:$AC,Sheet1!S71_ItemType,$AD:$AD)","v":0},0,0,{"$f":"-SUMIFS(Sheet1!S71_OY1AdjustedBudget,Sheet1!S71_A2SubCode,$AC:$AC,Sheet1!S71_ItemType,$AD:$AD)","v":0},{"$f":"-SUMIFS(Sheet1!S71_OY2AdjustedBudget,Sheet1!S71_A2SubCode,$AC:$AC,Sheet1!S71_ItemType,$AD:$AD)","v":0},null,null,null,null,null,null,null,null,null,null,null,null,null,null,null,"2118","IR","IZ"]
["Provincial Cultural Matters",null,{"$f":"-SUMIFS(Sheet1!S71_OriginalBudget,Sheet1!S71_A2SubCode,$AC:$AC,Sheet1!S71_ItemType,$AD:$AD)","v":0},{"$f":"-SUMIFS(Sheet1!S71_PreviousBudget,Sheet1!S71_A2SubCode,$AC:$AC,Sheet1!S71_ItemType,$AD:$AD)","v":0},null,null,null,null,{"$f":"-SUMIFS(Sheet1!S71_CurrentAdjustments,Sheet1!S71_A2SubCode,$AC:$AC,Sheet1!S71_ItemType,$AD:$AD)","v":0},0,0,{"$f":"-SUMIFS(Sheet1!S71_OY1AdjustedBudget,Sheet1!S71_A2SubCode,$AC:$AC,Sheet1!S71_ItemType,$AD:$AD)","v":0},{"$f":"-SUMIFS(Sheet1!S71_OY2AdjustedBudget,Sheet1!S71_A2SubCode,$AC:$AC,Sheet1!S71_ItemType,$AD:$AD)","v":0},null,null,null,null,null,null,null,null,null,null,null,null,null,null,null,"2119","IR","IZ"]
["Theatres",null,{"$f":"-SUMIFS(Sheet1!S71_OriginalBudget,Sheet1!S71_A2SubCode,$AC:$AC,Sheet1!S71_ItemType,$AD:$AD)","v":0},{"$f":"-SUMIFS(Sheet1!S71_PreviousBudget,Sheet1!S71_A2SubCode,$AC:$AC,Sheet1!S71_ItemType,$AD:$AD)","v":0},null,null,null,null,{"$f":"-SUMIFS(Sheet1!S71_CurrentAdjustments,Sheet1!S71_A2SubCode,$AC:$AC,Sheet1!S71_ItemType,$AD:$AD)","v":0},0,0,{"$f":"-SUMIFS(Sheet1!S71_OY1AdjustedBudget,Sheet1!S71_A2SubCode,$AC:$AC,Sheet1!S71_ItemType,$AD:$AD)","v":0},{"$f":"-SUMIFS(Sheet1!S71_OY2AdjustedBudget,Sheet1!S71_A2SubCode,$AC:$AC,Sheet1!S71_ItemType,$AD:$AD)","v":0},null,null,null,null,null,null,null,null,null,null,null,null,null,null,null,"2120","IR","IZ"]
["Zoo's",null,{"$f":"-SUMIFS(Sheet1!S71_OriginalBudget,Sheet1!S71_A2SubCode,$AC:$AC,Sheet1!S71_ItemType,$AD:$AD)","v":0},{"$f":"-SUMIFS(Sheet1!S71_PreviousBudget,Sheet1!S71_A2SubCode,$AC:$AC,Sheet1!S71_ItemType,$AD:$AD)","v":0},null,null,null,null,{"$f":"-SUMIFS(Sheet1!S71_CurrentAdjustments,Sheet1!S71_A2SubCode,$AC:$AC,Sheet1!S71_ItemType,$AD:$AD)","v":0},0,0,{"$f":"-SUMIFS(Sheet1!S71_OY1AdjustedBudget,Sheet1!S71_A2SubCode,$AC:$AC,Sheet1!S71_ItemType,$AD:$AD)","v":0},{"$f":"-SUMIFS(Sheet1!S71_OY2AdjustedBudget,Sheet1!S71_A2SubCode,$AC:$AC,Sheet1!S71_ItemType,$AD:$AD)","v":0},null,null,null,null,null,null,null,null,null,null,null,null,null,null,null,"2121","IR","IZ"]
["Sport and recreation",null,{"$f":"SUM(C51:C55)","v":0},0,0,0,0,0,0,0,0,0,0,null,null,null,null,null,null,null,null,null,null,null,null,null,null,null,null,"IR"]
["Beaches and Jetties ",null,{"$f":"-SUMIFS(Sheet1!S71_OriginalBudget,Sheet1!S71_A2SubCode,$AC:$AC,Sheet1!S71_ItemType,$AD:$AD)","v":0},{"$f":"-SUMIFS(Sheet1!S71_PreviousBudget,Sheet1!S71_A2SubCode,$AC:$AC,Sheet1!S71_ItemType,$AD:$AD)","v":0},null,null,null,null,{"$f":"-SUMIFS(Sheet1!S71_CurrentAdjustments,Sheet1!S71_A2SubCode,$AC:$AC,Sheet1!S71_ItemType,$AD:$AD)","v":0},0,0,{"$f":"-SUMIFS(Sheet1!S71_OY1AdjustedBudget,Sheet1!S71_A2SubCode,$AC:$AC,Sheet1!S71_ItemType,$AD:$AD)","v":0},{"$f":"-SUMIFS(Sheet1!S71_OY2AdjustedBudget,Sheet1!S71_A2SubCode,$AC:$AC,Sheet1!S71_ItemType,$AD:$AD)","v":0},null,null,null,null,null,null,null,null,null,null,null,null,null,null,null,"2201","IR","IZ"]
["Casinos, Racing, Gambling, Wagering",null,{"$f":"-SUMIFS(Sheet1!S71_OriginalBudget,Sheet1!S71_A2SubCode,$AC:$AC,Sheet1!S71_ItemType,$AD:$AD)","v":0},{"$f":"-SUMIFS(Sheet1!S71_PreviousBudget,Sheet1!S71_A2SubCode,$AC:$AC,Sheet1!S71_ItemType,$AD:$AD)","v":0},null,null,null,null,{"$f":"-SUMIFS(Sheet1!S71_CurrentAdjustments,Sheet1!S71_A2SubCode,$AC:$AC,Sheet1!S71_ItemType,$AD:$AD)","v":0},0,0,{"$f":"-SUMIFS(Sheet1!S71_OY1AdjustedBudget,Sheet1!S71_A2SubCode,$AC:$AC,Sheet1!S71_ItemType,$AD:$AD)","v":0},{"$f":"-SUMIFS(Sheet1!S71_OY2AdjustedBudget,Sheet1!S71_A2SubCode,$AC:$AC,Sheet1!S71_ItemType,$AD:$AD)","v":0},null,null,null,null,null,null,null,null,null,null,null,null,null,null,null,"2202","IR","IZ"]
["Community Parks (including Nurseries)",null,{"$f":"-SUMIFS(Sheet1!S71_OriginalBudget,Sheet1!S71_A2SubCode,$AC:$AC,Sheet1!S71_ItemType,$AD:$AD)","v":0},{"$f":"-SUMIFS(Sheet1!S71_PreviousBudget,Sheet1!S71_A2SubCode,$AC:$AC,Sheet1!S71_ItemType,$AD:$AD)","v":0},null,null,null,null,{"$f":"-SUMIFS(Sheet1!S71_CurrentAdjustments,Sheet1!S71_A2SubCode,$AC:$AC,Sheet1!S71_ItemType,$AD:$AD)","v":0},0,0,{"$f":"-SUMIFS(Sheet1!S71_OY1AdjustedBudget,Sheet1!S71_A2SubCode,$AC:$AC,Sheet1!S71_ItemType,$AD:$AD)","v":0},{"$f":"-SUMIFS(Sheet1!S71_OY2AdjustedBudget,Sheet1!S71_A2SubCode,$AC:$AC,Sheet1!S71_ItemType,$AD:$AD)","v":0},null,null,null,null,null,null,null,null,null,null,null,null,null,null,null,"2203","IR","IZ"]
["Recreational Facilities",null,{"$f":"-SUMIFS(Sheet1!S71_OriginalBudget,Sheet1!S71_A2SubCode,$AC:$AC,Sheet1!S71_ItemType,$AD:$AD)","v":0},{"$f":"-SUMIFS(Sheet1!S71_PreviousBudget,Sheet1!S71_A2SubCode,$AC:$AC,Sheet1!S71_ItemType,$AD:$AD)","v":0},null,null,null,null,{"$f":"-SUMIFS(Sheet1!S71_CurrentAdjustments,Sheet1!S71_A2SubCode,$AC:$AC,Sheet1!S71_ItemType,$AD:$AD)","v":0},0,0,{"$f":"-SUMIFS(Sheet1!S71_OY1AdjustedBudget,Sheet1!S71_A2SubCode,$AC:$AC,Sheet1!S71_ItemType,$AD:$AD)","v":0},{"$f":"-SUMIFS(Sheet1!S71_OY2AdjustedBudget,Sheet1!S71_A2SubCode,$AC:$AC,Sheet1!S71_ItemType,$AD:$AD)","v":0},null,null,null,null,null,null,null,null,null,null,null,null,null,null,null,"2204","IR","IZ"]
["Sports Grounds and Stadiums",null,{"$f":"-SUMIFS(Sheet1!S71_OriginalBudget,Sheet1!S71_A2SubCode,$AC:$AC,Sheet1!S71_ItemType,$AD:$AD)","v":0},{"$f":"-SUMIFS(Sheet1!S71_PreviousBudget,Sheet1!S71_A2SubCode,$AC:$AC,Sheet1!S71_ItemType,$AD:$AD)","v":0},null,null,null,null,{"$f":"-SUMIFS(Sheet1!S71_CurrentAdjustments,Sheet1!S71_A2SubCode,$AC:$AC,Sheet1!S71_ItemType,$AD:$AD)","v":0},0,0,{"$f":"-SUMIFS(Sheet1!S71_OY1AdjustedBudget,Sheet1!S71_A2SubCode,$AC:$AC,Sheet1!S71_ItemType,$AD:$AD)","v":0},{"$f":"-SUMIFS(Sheet1!S71_OY2AdjustedBudget,Sheet1!S71_A2SubCode,$AC:$AC,Sheet1!S71_ItemType,$AD:$AD)","v":0},null,null,null,null,null,null,null,null,null,null,null,null,null,null,null,"2205","IR","IZ"]
["Public safety",null,{"$f":"SUM(C57:C64)","v":391304},391304,0,0,0,0,0,0,391304,409304,4281327,null,null,null,null,null,null,null,null,null,null,null,null,null,null,null,null,"IR"]
["Civil Defence",null,{"$f":"-SUMIFS(Sheet1!S71_OriginalBudget,Sheet1!S71_A2SubCode,$AC:$AC,Sheet1!S71_ItemType,$AD:$AD)","v":0},{"$f":"-SUMIFS(Sheet1!S71_PreviousBudget,Sheet1!S71_A2SubCode,$AC:$AC,Sheet1!S71_ItemType,$AD:$AD)","v":0},null,null,null,null,{"$f":"-SUMIFS(Sheet1!S71_CurrentAdjustments,Sheet1!S71_A2SubCode,$AC:$AC,Sheet1!S71_ItemType,$AD:$AD)","v":0},0,0,{"$f":"-SUMIFS(Sheet1!S71_OY1AdjustedBudget,Sheet1!S71_A2SubCode,$AC:$AC,Sheet1!S71_ItemType,$AD:$AD)","v":0},{"$f":"-SUMIFS(Sheet1!S71_OY2AdjustedBudget,Sheet1!S71_A2SubCode,$AC:$AC,Sheet1!S71_ItemType,$AD:$AD)","v":0},null,null,null,null,null,null,null,null,null,null,null,null,null,null,null,"2301","IR","IZ"]
["Cleansing",null,{"$f":"-SUMIFS(Sheet1!S71_OriginalBudget,Sheet1!S71_A2SubCode,$AC:$AC,Sheet1!S71_ItemType,$AD:$AD)","v":0},{"$f":"-SUMIFS(Sheet1!S71_PreviousBudget,Sheet1!S71_A2SubCode,$AC:$AC,Sheet1!S71_ItemType,$AD:$AD)","v":0},null,null,null,null,{"$f":"-SUMIFS(Sheet1!S71_CurrentAdjustments,Sheet1!S71_A2SubCode,$AC:$AC,Sheet1!S71_ItemType,$AD:$AD)","v":0},0,0,{"$f":"-SUMIFS(Sheet1!S71_OY1AdjustedBudget,Sheet1!S71_A2SubCode,$AC:$AC,Sheet1!S71_ItemType,$AD:$AD)","v":0},{"$f":"-SUMIFS(Sheet1!S71_OY2AdjustedBudget,Sheet1!S71_A2SubCode,$AC:$AC,Sheet1!S71_ItemType,$AD:$AD)","v":0},null,null,null,null,null,null,null,null,null,null,null,null,null,null,null,"2302","IR","IZ"]
["Control of Public Nuisances",null,{"$f":"-SUMIFS(Sheet1!S71_OriginalBudget,Sheet1!S71_A2SubCode,$AC:$AC,Sheet1!S71_ItemType,$AD:$AD)","v":0},{"$f":"-SUMIFS(Sheet1!S71_PreviousBudget,Sheet1!S71_A2SubCode,$AC:$AC,Sheet1!S71_ItemType,$AD:$AD)","v":0},null,null,null,null,{"$f":"-SUMIFS(Sheet1!S71_CurrentAdjustments,Sheet1!S71_A2SubCode,$AC:$AC,Sheet1!S71_ItemType,$AD:$AD)","v":0},0,0,{"$f":"-SUMIFS(Sheet1!S71_OY1AdjustedBudget,Sheet1!S71_A2SubCode,$AC:$AC,Sheet1!S71_ItemType,$AD:$AD)","v":0},{"$f":"-SUMIFS(Sheet1!S71_OY2AdjustedBudget,Sheet1!S71_A2SubCode,$AC:$AC,Sheet1!S71_ItemType,$AD:$AD)","v":0},null,null,null,null,null,null,null,null,null,null,null,null,null,null,null,"2303","IR","IZ"]
["Fencing and Fences ",null,{"$f":"-SUMIFS(Sheet1!S71_OriginalBudget,Sheet1!S71_A2SubCode,$AC:$AC,Sheet1!S71_ItemType,$AD:$AD)","v":0},{"$f":"-SUMIFS(Sheet1!S71_PreviousBudget,Sheet1!S71_A2SubCode,$AC:$AC,Sheet1!S71_ItemType,$AD:$AD)","v":0},null,null,null,null,{"$f":"-SUMIFS(Sheet1!S71_CurrentAdjustments,Sheet1!S71_A2SubCode,$AC:$AC,Sheet1!S71_ItemType,$AD:$AD)","v":0},0,0,{"$f":"-SUMIFS(Sheet1!S71_OY1AdjustedBudget,Sheet1!S71_A2SubCode,$AC:$AC,Sheet1!S71_ItemType,$AD:$AD)","v":0},{"$f":"-SUMIFS(Sheet1!S71_OY2AdjustedBudget,Sheet1!S71_A2SubCode,$AC:$AC,Sheet1!S71_ItemType,$AD:$AD)","v":0},null,null,null,null,null,null,null,null,null,null,null,null,null,null,null,"2304","IR","IZ"]
["Fire Fighting and Protection",null,{"$f":"-SUMIFS(Sheet1!S71_OriginalBudget,Sheet1!S71_A2SubCode,$AC:$AC,Sheet1!S71_ItemType,$AD:$AD)","v":391304},{"$f":"-SUMIFS(Sheet1!S71_PreviousBudget,Sheet1!S71_A2SubCode,$AC:$AC,Sheet1!S71_ItemType,$AD:$AD)","v":391304},null,null,null,null,{"$f":"-SUMIFS(Sheet1!S71_CurrentAdjustments,Sheet1!S71_A2SubCode,$AC:$AC,Sheet1!S71_ItemType,$AD:$AD)","v":0},0,391304,{"$f":"-SUMIFS(Sheet1!S71_OY1AdjustedBudget,Sheet1!S71_A2SubCode,$AC:$AC,Sheet1!S71_ItemType,$AD:$AD)","v":409304},{"$f":"-SUMIFS(Sheet1!S71_OY2AdjustedBudget,Sheet1!S71_A2SubCode,$AC:$AC,Sheet1!S71_ItemType,$AD:$AD)","v":4281327},null,null,null,null,null,null,null,null,null,null,null,null,null,null,null,"2305","IR","IZ"]
["Licensing and Control of Animals",null,{"$f":"-SUMIFS(Sheet1!S71_OriginalBudget,Sheet1!S71_A2SubCode,$AC:$AC,Sheet1!S71_ItemType,$AD:$AD)","v":0},{"$f":"-SUMIFS(Sheet1!S71_PreviousBudget,Sheet1!S71_A2SubCode,$AC:$AC,Sheet1!S71_ItemType,$AD:$AD)","v":0},null,null,null,null,{"$f":"-SUMIFS(Sheet1!S71_CurrentAdjustments,Sheet1!S71_A2SubCode,$AC:$AC,Sheet1!S71_ItemType,$AD:$AD)","v":0},0,0,{"$f":"-SUMIFS(Sheet1!S71_OY1AdjustedBudget,Sheet1!S71_A2SubCode,$AC:$AC,Sheet1!S71_ItemType,$AD:$AD)","v":0},{"$f":"-SUMIFS(Sheet1!S71_OY2AdjustedBudget,Sheet1!S71_A2SubCode,$AC:$AC,Sheet1!S71_ItemType,$AD:$AD)","v":0},null,null,null,null,null,null,null,null,null,null,null,null,null,null,null,"2306","IR","IZ"]
["Police Forces, Traffic and Street Parking Control",null,{"$f":"-SUMIFS(Sheet1!S71_OriginalBudget,Sheet1!S71_A2SubCode,$AC:$AC,Sheet1!S71_ItemType,$AD:$AD)","v":0},{"$f":"-SUMIFS(Sheet1!S71_PreviousBudget,Sheet1!S71_A2SubCode,$AC:$AC,Sheet1!S71_ItemType,$AD:$AD)","v":0},null,null,null,null,{"$f":"-SUMIFS(Sheet1!S71_CurrentAdjustments,Sheet1!S71_A2SubCode,$AC:$AC,Sheet1!S71_ItemType,$AD:$AD)","v":0},{"$f":"SUM(E63:I63)","v":0},{"$f":"IF(D63=0,C63+J63,D63+J63)","v":0},{"$f":"-SUMIFS(Sheet1!S71_OY1AdjustedBudget,Sheet1!S71_A2SubCode,$AC:$AC,Sheet1!S71_ItemType,$AD:$AD)","v":0},{"$f":"-SUMIFS(Sheet1!S71_OY2AdjustedBudget,Sheet1!S71_A2SubCode,$AC:$AC,Sheet1!S71_ItemType,$AD:$AD)","v":0},null,null,null,null,null,null,null,null,null,null,null,null,null,null,null,"2307","IR","IZ"]
["Pounds",null,{"$f":"-SUMIFS(Sheet1!S71_OriginalBudget,Sheet1!S71_A2SubCode,$AC:$AC,Sheet1!S71_ItemType,$AD:$AD)","v":0},{"$f":"-SUMIFS(Sheet1!S71_PreviousBudget,Sheet1!S71_A2SubCode,$AC:$AC,Sheet1!S71_ItemType,$AD:$AD)","v":0},null,null,null,null,{"$f":"-SUMIFS(Sheet1!S71_CurrentAdjustments,Sheet1!S71_A2SubCode,$AC:$AC,Sheet1!S71_ItemType,$AD:$AD)","v":0},0,0,{"$f":"-SUMIFS(Sheet1!S71_OY1AdjustedBudget,Sheet1!S71_A2SubCode,$AC:$AC,Sheet1!S71_ItemType,$AD:$AD)","v":0},{"$f":"-SUMIFS(Sheet1!S71_OY2AdjustedBudget,Sheet1!S71_A2SubCode,$AC:$AC,Sheet1!S71_ItemType,$AD:$AD)","v":0},null,null,null,null,null,null,null,null,null,null,null,null,null,null,null,"2308","IR","IZ"]
["Housing",null,{"$f":"SUM(C66:C67)","v":0},{"$f":"SUM(D66:D67)","v":0},0,0,0,0,0,0,0,{"$f":"SUM(L66:L67)","v":0},{"$f":"SUM(M66:M67)","v":0},null,null,null,null,null,null,null,null,null,null,null,null,null,null,null,null,"IR"]
["Housing",null,{"$f":"-SUMIFS(Sheet1!S71_OriginalBudget,Sheet1!S71_A2SubCode,$AC:$AC,Sheet1!S71_ItemType,$AD:$AD)","v":0},{"$f":"-SUMIFS(Sheet1!S71_PreviousBudget,Sheet1!S71_A2SubCode,$AC:$AC,Sheet1!S71_ItemType,$AD:$AD)","v":0},null,null,null,null,{"$f":"-SUMIFS(Sheet1!S71_CurrentAdjustments,Sheet1!S71_A2SubCode,$AC:$AC,Sheet1!S71_ItemType,$AD:$AD)","v":0},0,0,{"$f":"-SUMIFS(Sheet1!S71_OY1AdjustedBudget,Sheet1!S71_A2SubCode,$AC:$AC,Sheet1!S71_ItemType,$AD:$AD)","v":0},{"$f":"-SUMIFS(Sheet1!S71_OY2AdjustedBudget,Sheet1!S71_A2SubCode,$AC:$AC,Sheet1!S71_ItemType,$AD:$AD)","v":0},null,null,null,null,null,null,null,null,null,null,null,null,null,null,null,"2401","IR","IZ"]
["Informal Settlements",null,{"$f":"-SUMIFS(Sheet1!S71_OriginalBudget,Sheet1!S71_A2SubCode,$AC:$AC,Sheet1!S71_ItemType,$AD:$AD)","v":0},{"$f":"-SUMIFS(Sheet1!S71_PreviousBudget,Sheet1!S71_A2SubCode,$AC:$AC,Sheet1!S71_ItemType,$AD:$AD)","v":0},null,null,null,null,{"$f":"-SUMIFS(Sheet1!S71_CurrentAdjustments,Sheet1!S71_A2SubCode,$AC:$AC,Sheet1!S71_ItemType,$AD:$AD)","v":0},0,0,{"$f":"-SUMIFS(Sheet1!S71_OY1AdjustedBudget,Sheet1!S71_A2SubCode,$AC:$AC,Sheet1!S71_ItemType,$AD:$AD)","v":0},{"$f":"-SUMIFS(Sheet1!S71_OY2AdjustedBudget,Sheet1!S71_A2SubCode,$AC:$AC,Sheet1!S71_ItemType,$AD:$AD)","v":0},null,null,null,null,null,null,null,null,null,null,null,null,null,null,null,"2402","IR","IZ"]
["Health",null,{"$f":"SUM(C69:C75)","v":0},{"$f":"SUM(D69:D75)","v":0},0,0,0,0,0,0,0,{"$f":"SUM(L69:L75)","v":0},{"$f":"SUM(M69:M75)","v":0},null,null,null,null,null,null,null,null,null,null,null,null,null,null,null,null,"IR"]
["Ambulance",null,{"$f":"-SUMIFS(Sheet1!S71_OriginalBudget,Sheet1!S71_A2SubCode,$AC:$AC,Sheet1!S71_ItemType,$AD:$AD)","v":0},{"$f":"-SUMIFS(Sheet1!S71_PreviousBudget,Sheet1!S71_A2SubCode,$AC:$AC,Sheet1!S71_ItemType,$AD:$AD)","v":0},null,null,null,null,{"$f":"-SUMIFS(Sheet1!S71_CurrentAdjustments,Sheet1!S71_A2SubCode,$AC:$AC,Sheet1!S71_ItemType,$AD:$AD)","v":0},0,0,{"$f":"-SUMIFS(Sheet1!S71_OY1AdjustedBudget,Sheet1!S71_A2SubCode,$AC:$AC,Sheet1!S71_ItemType,$AD:$AD)","v":0},{"$f":"-SUMIFS(Sheet1!S71_OY2AdjustedBudget,Sheet1!S71_A2SubCode,$AC:$AC,Sheet1!S71_ItemType,$AD:$AD)","v":0},null,null,null,null,null,null,null,null,null,null,null,null,null,null,null,"2501","IR","IZ"]
["Health Services",null,{"$f":"-SUMIFS(Sheet1!S71_OriginalBudget,Sheet1!S71_A2SubCode,$AC:$AC,Sheet1!S71_ItemType,$AD:$AD)","v":0},{"$f":"-SUMIFS(Sheet1!S71_PreviousBudget,Sheet1!S71_A2SubCode,$AC:$AC,Sheet1!S71_ItemType,$AD:$AD)","v":0},null,null,null,null,{"$f":"-SUMIFS(Sheet1!S71_CurrentAdjustments,Sheet1!S71_A2SubCode,$AC:$AC,Sheet1!S71_ItemType,$AD:$AD)","v":0},0,0,{"$f":"-SUMIFS(Sheet1!S71_OY1AdjustedBudget,Sheet1!S71_A2SubCode,$AC:$AC,Sheet1!S71_ItemType,$AD:$AD)","v":0},{"$f":"-SUMIFS(Sheet1!S71_OY2AdjustedBudget,Sheet1!S71_A2SubCode,$AC:$AC,Sheet1!S71_ItemType,$AD:$AD)","v":0},null,null,null,null,null,null,null,null,null,null,null,null,null,null,null,"2502","IR","IZ"]
["Laboratory Services",null,{"$f":"-SUMIFS(Sheet1!S71_OriginalBudget,Sheet1!S71_A2SubCode,$AC:$AC,Sheet1!S71_ItemType,$AD:$AD)","v":0},{"$f":"-SUMIFS(Sheet1!S71_PreviousBudget,Sheet1!S71_A2SubCode,$AC:$AC,Sheet1!S71_ItemType,$AD:$AD)","v":0},null,null,null,null,{"$f":"-SUMIFS(Sheet1!S71_CurrentAdjustments,Sheet1!S71_A2SubCode,$AC:$AC,Sheet1!S71_ItemType,$AD:$AD)","v":0},0,0,{"$f":"-SUMIFS(Sheet1!S71_OY1AdjustedBudget,Sheet1!S71_A2SubCode,$AC:$AC,Sheet1!S71_ItemType,$AD:$AD)","v":0},{"$f":"-SUMIFS(Sheet1!S71_OY2AdjustedBudget,Sheet1!S71_A2SubCode,$AC:$AC,Sheet1!S71_ItemType,$AD:$AD)","v":0},null,null,null,null,null,null,null,null,null,null,null,null,null,null,null,"2503","IR","IZ"]
["Food Control",null,{"$f":"-SUMIFS(Sheet1!S71_OriginalBudget,Sheet1!S71_A2SubCode,$AC:$AC,Sheet1!S71_ItemType,$AD:$AD)","v":0},{"$f":"-SUMIFS(Sheet1!S71_PreviousBudget,Sheet1!S71_A2SubCode,$AC:$AC,Sheet1!S71_ItemType,$AD:$AD)","v":0},null,null,null,null,{"$f":"-SUMIFS(Sheet1!S71_CurrentAdjustments,Sheet1!S71_A2SubCode,$AC:$AC,Sheet1!S71_ItemType,$AD:$AD)","v":0},0,0,{"$f":"-SUMIFS(Sheet1!S71_OY1AdjustedBudget,Sheet1!S71_A2SubCode,$AC:$AC,Sheet1!S71_ItemType,$AD:$AD)","v":0},{"$f":"-SUMIFS(Sheet1!S71_OY2AdjustedBudget,Sheet1!S71_A2SubCode,$AC:$AC,Sheet1!S71_ItemType,$AD:$AD)","v":0},null,null,null,null,null,null,null,null,null,null,null,null,null,null,null,"2504","IR","IZ"]
["Health Surveillance and Prevention of Communicable Diseases including immunizations",null,{"$f":"-SUMIFS(Sheet1!S71_OriginalBudget,Sheet1!S71_A2SubCode,$AC:$AC,Sheet1!S71_ItemType,$AD:$AD)","v":0},{"$f":"-SUMIFS(Sheet1!S71_PreviousBudget,Sheet1!S71_A2SubCode,$AC:$AC,Sheet1!S71_ItemType,$AD:$AD)","v":0},null,null,null,null,{"$f":"-SUMIFS(Sheet1!S71_CurrentAdjustments,Sheet1!S71_A2SubCode,$AC:$AC,Sheet1!S71_ItemType,$AD:$AD)","v":0},0,0,{"$f":"-SUMIFS(Sheet1!S71_OY1AdjustedBudget,Sheet1!S71_A2SubCode,$AC:$AC,Sheet1!S71_ItemType,$AD:$AD)","v":0},{"$f":"-SUMIFS(Sheet1!S71_OY2AdjustedBudget,Sheet1!S71_A2SubCode,$AC:$AC,Sheet1!S71_ItemType,$AD:$AD)","v":0},null,null,null,null,null,null,null,null,null,null,null,null,null,null,null,"2505","IR","IZ"]
["Vector Control",null,{"$f":"-SUMIFS(Sheet1!S71_OriginalBudget,Sheet1!S71_A2SubCode,$AC:$AC,Sheet1!S71_ItemType,$AD:$AD)","v":0},{"$f":"-SUMIFS(Sheet1!S71_PreviousBudget,Sheet1!S71_A2SubCode,$AC:$AC,Sheet1!S71_ItemType,$AD:$AD)","v":0},null,null,null,null,{"$f":"-SUMIFS(Sheet1!S71_CurrentAdjustments,Sheet1!S71_A2SubCode,$AC:$AC,Sheet1!S71_ItemType,$AD:$AD)","v":0},0,0,{"$f":"-SUMIFS(Sheet1!S71_OY1AdjustedBudget,Sheet1!S71_A2SubCode,$AC:$AC,Sheet1!S71_ItemType,$AD:$AD)","v":0},{"$f":"-SUMIFS(Sheet1!S71_OY2AdjustedBudget,Sheet1!S71_A2SubCode,$AC:$AC,Sheet1!S71_ItemType,$AD:$AD)","v":0},null,null,null,null,null,null,null,null,null,null,null,null,null,null,null,"2506","IR","IZ"]
["Chemical Safety",null,{"$f":"-SUMIFS(Sheet1!S71_OriginalBudget,Sheet1!S71_A2SubCode,$AC:$AC,Sheet1!S71_ItemType,$AD:$AD)","v":0},{"$f":"-SUMIFS(Sheet1!S71_PreviousBudget,Sheet1!S71_A2SubCode,$AC:$AC,Sheet1!S71_ItemType,$AD:$AD)","v":0},null,null,null,null,{"$f":"-SUMIFS(Sheet1!S71_CurrentAdjustments,Sheet1!S71_A2SubCode,$AC:$AC,Sheet1!S71_ItemType,$AD:$AD)","v":0},{"$f":"SUM(E75:I75)","v":0},{"$f":"IF(D75=0,C75+J75,D75+J75)","v":0},{"$f":"-SUMIFS(Sheet1!S71_OY1AdjustedBudget,Sheet1!S71_A2SubCode,$AC:$AC,Sheet1!S71_ItemType,$AD:$AD)","v":0},{"$f":"-SUMIFS(Sheet1!S71_OY2AdjustedBudget,Sheet1!S71_A2SubCode,$AC:$AC,Sheet1!S71_ItemType,$AD:$AD)","v":0},null,null,null,null,null,null,null,null,null,null,null,null,null,null,null,"2507","IR","IZ"]
["Economic and environmental services",null,{"$f":"C77+C88+C93","v":45526869},51104428,0,0,0,2283500,0,2283500,53387928,{"$f":"L77+L88+L93","v":45719969},{"$f":"M77+M88+M93","v":49359593},null,null,null,null,null,null,null,null,null,null,null,null,null,null,null,null,"IR"]
["Planning and development",null,{"$f":"SUM(C78:C87)","v":41542304},{"$f":"SUM(D78:D87)","v":47119863},0,0,0,0,0,0,47119863,{"$f":"SUM(L78:L87)","v":43450604},{"$f":"SUM(M78:M87)","v":46985837},null,null,null,null,null,null,null,null,null,null,null,null,null,null,null,null,"IR"]
["Billboards",null,{"$f":"-SUMIFS(Sheet1!S71_OriginalBudget,Sheet1!S71_A2SubCode,$AC:$AC,Sheet1!S71_ItemType,$AD:$AD)","v":0},{"$f":"-SUMIFS(Sheet1!S71_PreviousBudget,Sheet1!S71_A2SubCode,$AC:$AC,Sheet1!S71_ItemType,$AD:$AD)","v":0},null,null,null,null,{"$f":"-SUMIFS(Sheet1!S71_CurrentAdjustments,Sheet1!S71_A2SubCode,$AC:$AC,Sheet1!S71_ItemType,$AD:$AD)","v":0},0,0,{"$f":"-SUMIFS(Sheet1!S71_OY1AdjustedBudget,Sheet1!S71_A2SubCode,$AC:$AC,Sheet1!S71_ItemType,$AD:$AD)","v":0},{"$f":"-SUMIFS(Sheet1!S71_OY2AdjustedBudget,Sheet1!S71_A2SubCode,$AC:$AC,Sheet1!S71_ItemType,$AD:$AD)","v":0},null,null,null,null,null,null,null,null,null,null,null,null,null,null,null,"3101","IR","IZ"]
["Corporate Wide Strategic Planning (IDPs, LEDs)",null,{"$f":"-SUMIFS(Sheet1!S71_OriginalBudget,Sheet1!S71_A2SubCode,$AC:$AC,Sheet1!S71_ItemType,$AD:$AD)","v":0},{"$f":"-SUMIFS(Sheet1!S71_PreviousBudget,Sheet1!S71_A2SubCode,$AC:$AC,Sheet1!S71_ItemType,$AD:$AD)","v":0},null,null,null,null,{"$f":"-SUMIFS(Sheet1!S71_CurrentAdjustments,Sheet1!S71_A2SubCode,$AC:$AC,Sheet1!S71_ItemType,$AD:$AD)","v":0},0,0,{"$f":"-SUMIFS(Sheet1!S71_OY1AdjustedBudget,Sheet1!S71_A2SubCode,$AC:$AC,Sheet1!S71_ItemType,$AD:$AD)","v":0},{"$f":"-SUMIFS(Sheet1!S71_OY2AdjustedBudget,Sheet1!S71_A2SubCode,$AC:$AC,Sheet1!S71_ItemType,$AD:$AD)","v":0},null,null,null,null,null,null,null,null,null,null,null,null,null,null,null,"3102","IR","IZ"]
["Central City Improvement District",null,{"$f":"-SUMIFS(Sheet1!S71_OriginalBudget,Sheet1!S71_A2SubCode,$AC:$AC,Sheet1!S71_ItemType,$AD:$AD)","v":52174},{"$f":"-SUMIFS(Sheet1!S71_PreviousBudget,Sheet1!S71_A2SubCode,$AC:$AC,Sheet1!S71_ItemType,$AD:$AD)","v":202174},null,null,null,null,{"$f":"-SUMIFS(Sheet1!S71_CurrentAdjustments,Sheet1!S71_A2SubCode,$AC:$AC,Sheet1!S71_ItemType,$AD:$AD)","v":0},0,202174,{"$f":"-SUMIFS(Sheet1!S71_OY1AdjustedBudget,Sheet1!S71_A2SubCode,$AC:$AC,Sheet1!S71_ItemType,$AD:$AD)","v":54574},{"$f":"-SUMIFS(Sheet1!S71_OY2AdjustedBudget,Sheet1!S71_A2SubCode,$AC:$AC,Sheet1!S71_ItemType,$AD:$AD)","v":57084},null,null,null,null,null,null,null,null,null,null,null,null,null,null,null,"3103","IR","IZ"]
["Development Facilitation",null,{"$f":"-SUMIFS(Sheet1!S71_OriginalBudget,Sheet1!S71_A2SubCode,$AC:$AC,Sheet1!S71_ItemType,$AD:$AD)","v":0},{"$f":"-SUMIFS(Sheet1!S71_PreviousBudget,Sheet1!S71_A2SubCode,$AC:$AC,Sheet1!S71_ItemType,$AD:$AD)","v":0},null,null,null,null,{"$f":"-SUMIFS(Sheet1!S71_CurrentAdjustments,Sheet1!S71_A2SubCode,$AC:$AC,Sheet1!S71_ItemType,$AD:$AD)","v":0},0,0,{"$f":"-SUMIFS(Sheet1!S71_OY1AdjustedBudget,Sheet1!S71_A2SubCode,$AC:$AC,Sheet1!S71_ItemType,$AD:$AD)","v":0},{"$f":"-SUMIFS(Sheet1!S71_OY2AdjustedBudget,Sheet1!S71_A2SubCode,$AC:$AC,Sheet1!S71_ItemType,$AD:$AD)","v":0},null,null,null,null,null,null,null,null,null,null,null,null,null,null,null,"3104","IR","IZ"]
["Economic Development/Planning",null,{"$f":"-SUMIFS(Sheet1!S71_OriginalBudget,Sheet1!S71_A2SubCode,$AC:$AC,Sheet1!S71_ItemType,$AD:$AD)","v":0},{"$f":"-SUMIFS(Sheet1!S71_PreviousBudget,Sheet1!S71_A2SubCode,$AC:$AC,Sheet1!S71_ItemType,$AD:$AD)","v":50000},null,null,null,null,{"$f":"-SUMIFS(Sheet1!S71_CurrentAdjustments,Sheet1!S71_A2SubCode,$AC:$AC,Sheet1!S71_ItemType,$AD:$AD)","v":0},0,50000,{"$f":"-SUMIFS(Sheet1!S71_OY1AdjustedBudget,Sheet1!S71_A2SubCode,$AC:$AC,Sheet1!S71_ItemType,$AD:$AD)","v":0},{"$f":"-SUMIFS(Sheet1!S71_OY2AdjustedBudget,Sheet1!S71_A2SubCode,$AC:$AC,Sheet1!S71_ItemType,$AD:$AD)","v":0},null,null,null,null,null,null,null,null,null,null,null,null,null,null,null,"3105","IR","IZ"]
["Regional Planning and Development",null,{"$f":"-SUMIFS(Sheet1!S71_OriginalBudget,Sheet1!S71_A2SubCode,$AC:$AC,Sheet1!S71_ItemType,$AD:$AD)","v":0},{"$f":"-SUMIFS(Sheet1!S71_PreviousBudget,Sheet1!S71_A2SubCode,$AC:$AC,Sheet1!S71_ItemType,$AD:$AD)","v":0},null,null,null,null,{"$f":"-SUMIFS(Sheet1!S71_CurrentAdjustments,Sheet1!S71_A2SubCode,$AC:$AC,Sheet1!S71_ItemType,$AD:$AD)","v":0},0,0,{"$f":"-SUMIFS(Sheet1!S71_OY1AdjustedBudget,Sheet1!S71_A2SubCode,$AC:$AC,Sheet1!S71_ItemType,$AD:$AD)","v":0},{"$f":"-SUMIFS(Sheet1!S71_OY2AdjustedBudget,Sheet1!S71_A2SubCode,$AC:$AC,Sheet1!S71_ItemType,$AD:$AD)","v":0},null,null,null,null,null,null,null,null,null,null,null,null,null,null,null,"3106","IR","IZ"]
["Town Planning, Building Regulations and Enforcement, and City Engineer",null,{"$f":"-SUMIFS(Sheet1!S71_OriginalBudget,Sheet1!S71_A2SubCode,$AC:$AC,Sheet1!S71_ItemType,$AD:$AD)","v":389130},{"$f":"-SUMIFS(Sheet1!S71_PreviousBudget,Sheet1!S71_A2SubCode,$AC:$AC,Sheet1!S71_ItemType,$AD:$AD)","v":389130},null,null,null,null,{"$f":"-SUMIFS(Sheet1!S71_CurrentAdjustments,Sheet1!S71_A2SubCode,$AC:$AC,Sheet1!S71_ItemType,$AD:$AD)","v":0},0,389130,{"$f":"-SUMIFS(Sheet1!S71_OY1AdjustedBudget,Sheet1!S71_A2SubCode,$AC:$AC,Sheet1!S71_ItemType,$AD:$AD)","v":407030},{"$f":"-SUMIFS(Sheet1!S71_OY2AdjustedBudget,Sheet1!S71_A2SubCode,$AC:$AC,Sheet1!S71_ItemType,$AD:$AD)","v":425753},null,null,null,null,null,null,null,null,null,null,null,null,null,null,null,"3107","IR","IZ"]
["Project Management Unit",null,{"$f":"-SUMIFS(Sheet1!S71_OriginalBudget,Sheet1!S71_A2SubCode,$AC:$AC,Sheet1!S71_ItemType,$AD:$AD)","v":41101000},{"$f":"-SUMIFS(Sheet1!S71_PreviousBudget,Sheet1!S71_A2SubCode,$AC:$AC,Sheet1!S71_ItemType,$AD:$AD)","v":46478559},null,null,null,null,{"$f":"-SUMIFS(Sheet1!S71_CurrentAdjustments,Sheet1!S71_A2SubCode,$AC:$AC,Sheet1!S71_ItemType,$AD:$AD)","v":0},0,46478559,{"$f":"-SUMIFS(Sheet1!S71_OY1AdjustedBudget,Sheet1!S71_A2SubCode,$AC:$AC,Sheet1!S71_ItemType,$AD:$AD)","v":42989000},{"$f":"-SUMIFS(Sheet1!S71_OY2AdjustedBudget,Sheet1!S71_A2SubCode,$AC:$AC,Sheet1!S71_ItemType,$AD:$AD)","v":46503000},null,null,null,null,null,null,null,null,null,null,null,null,null,null,null,"3108","IR","IZ"]
["Provincial Planning",null,{"$f":"-SUMIFS(Sheet1!S71_OriginalBudget,Sheet1!S71_A2SubCode,$AC:$AC,Sheet1!S71_ItemType,$AD:$AD)","v":0},{"$f":"-SUMIFS(Sheet1!S71_PreviousBudget,Sheet1!S71_A2SubCode,$AC:$AC,Sheet1!S71_ItemType,$AD:$AD)","v":0},null,null,null,null,{"$f":"-SUMIFS(Sheet1!S71_CurrentAdjustments,Sheet1!S71_A2SubCode,$AC:$AC,Sheet1!S71_ItemType,$AD:$AD)","v":0},0,0,{"$f":"-SUMIFS(Sheet1!S71_OY1AdjustedBudget,Sheet1!S71_A2SubCode,$AC:$AC,Sheet1!S71_ItemType,$AD:$AD)","v":0},{"$f":"-SUMIFS(Sheet1!S71_OY2AdjustedBudget,Sheet1!S71_A2SubCode,$AC:$AC,Sheet1!S71_ItemType,$AD:$AD)","v":0},null,null,null,null,null,null,null,null,null,null,null,null,null,null,null,"3109","IR","IZ"]
["Support to Local Municipalities",null,{"$f":"-SUMIFS(Sheet1!S71_OriginalBudget,Sheet1!S71_A2SubCode,$AC:$AC,Sheet1!S71_ItemType,$AD:$AD)","v":0},{"$f":"-SUMIFS(Sheet1!S71_PreviousBudget,Sheet1!S71_A2SubCode,$AC:$AC,Sheet1!S71_ItemType,$AD:$AD)","v":0},null,null,null,null,{"$f":"-SUMIFS(Sheet1!S71_CurrentAdjustments,Sheet1!S71_A2SubCode,$AC:$AC,Sheet1!S71_ItemType,$AD:$AD)","v":0},0,0,{"$f":"-SUMIFS(Sheet1!S71_OY1AdjustedBudget,Sheet1!S71_A2SubCode,$AC:$AC,Sheet1!S71_ItemType,$AD:$AD)","v":0},{"$f":"-SUMIFS(Sheet1!S71_OY2AdjustedBudget,Sheet1!S71_A2SubCode,$AC:$AC,Sheet1!S71_ItemType,$AD:$AD)","v":0},null,null,null,null,null,null,null,null,null,null,null,null,null,null,null,"3110","IR","IZ"]
["Road transport",null,{"$f":"SUM(C89:C92)","v":3984565},3984565,0,0,0,2283500,0,2283500,6268065,{"$f":"SUM(L89:L92)","v":2269365},{"$f":"SUM(M89:M92)","v":2373756},null,null,null,null,null,null,null,null,null,null,null,null,null,null,null,null,"IR"]
["Public Transport",null,{"$f":"-SUMIFS(Sheet1!S71_OriginalBudget,Sheet1!S71_A2SubCode,$AC:$AC,Sheet1!S71_ItemType,$AD:$AD)","v":0},{"$f":"-SUMIFS(Sheet1!S71_PreviousBudget,Sheet1!S71_A2SubCode,$AC:$AC,Sheet1!S71_ItemType,$AD:$AD)","v":0},null,null,null,null,{"$f":"-SUMIFS(Sheet1!S71_CurrentAdjustments,Sheet1!S71_A2SubCode,$AC:$AC,Sheet1!S71_ItemType,$AD:$AD)","v":0},0,0,{"$f":"-SUMIFS(Sheet1!S71_OY1AdjustedBudget,Sheet1!S71_A2SubCode,$AC:$AC,Sheet1!S71_ItemType,$AD:$AD)","v":0},{"$f":"-SUMIFS(Sheet1!S71_OY2AdjustedBudget,Sheet1!S71_A2SubCode,$AC:$AC,Sheet1!S71_ItemType,$AD:$AD)","v":0},null,null,null,null,null,null,null,null,null,null,null,null,null,null,null,"3203","IR","IZ"]
["Road and Traffic Regulation",null,{"$f":"-SUMIFS(Sheet1!S71_OriginalBudget,Sheet1!S71_A2SubCode,$AC:$AC,Sheet1!S71_ItemType,$AD:$AD)","v":2169565},{"$f":"-SUMIFS(Sheet1!S71_PreviousBudget,Sheet1!S71_A2SubCode,$AC:$AC,Sheet1!S71_ItemType,$AD:$AD)","v":2169565},null,null,null,null,{"$f":"-SUMIFS(Sheet1!S71_CurrentAdjustments,Sheet1!S71_A2SubCode,$AC:$AC,Sheet1!S71_ItemType,$AD:$AD)","v":0},0,2169565,{"$f":"-SUMIFS(Sheet1!S71_OY1AdjustedBudget,Sheet1!S71_A2SubCode,$AC:$AC,Sheet1!S71_ItemType,$AD:$AD)","v":2269365},{"$f":"-SUMIFS(Sheet1!S71_OY2AdjustedBudget,Sheet1!S71_A2SubCode,$AC:$AC,Sheet1!S71_ItemType,$AD:$AD)","v":2373756},null,null,null,null,null,null,null,null,null,null,null,null,null,null,null,"3204","IR","IZ"]
["Roads",null,{"$f":"-SUMIFS(Sheet1!S71_OriginalBudget,Sheet1!S71_A2SubCode,$AC:$AC,Sheet1!S71_ItemType,$AD:$AD)","v":1815000},{"$f":"-SUMIFS(Sheet1!S71_PreviousBudget,Sheet1!S71_A2SubCode,$AC:$AC,Sheet1!S71_ItemType,$AD:$AD)","v":1815000},null,null,null,{"$f":"-SUMIFS(Sheet1!S71_CurrentAdjustments,Sheet1!S71_A2SubCode,$AC:$AC,Sheet1!S71_ItemType,$AD:$AD)","v":2283500},0,2283500,4098500,{"$f":"-SUMIFS(Sheet1!S71_OY1AdjustedBudget,Sheet1!S71_A2SubCode,$AC:$AC,Sheet1!S71_ItemType,$AD:$AD)","v":0},{"$f":"-SUMIFS(Sheet1!S71_OY2AdjustedBudget,Sheet1!S71_A2SubCode,$AC:$AC,Sheet1!S71_ItemType,$AD:$AD)","v":0},null,null,null,null,null,null,null,null,null,null,null,null,null,null,null,"3205","IR","IZ"]
["Taxi Ranks",null,{"$f":"-SUMIFS(Sheet1!S71_OriginalBudget,Sheet1!S71_A2SubCode,$AC:$AC,Sheet1!S71_ItemType,$AD:$AD)","v":0},{"$f":"-SUMIFS(Sheet1!S71_PreviousBudget,Sheet1!S71_A2SubCode,$AC:$AC,Sheet1!S71_ItemType,$AD:$AD)","v":0},null,null,null,null,{"$f":"-SUMIFS(Sheet1!S71_CurrentAdjustments,Sheet1!S71_A2SubCode,$AC:$AC,Sheet1!S71_ItemType,$AD:$AD)","v":0},0,0,{"$f":"-SUMIFS(Sheet1!S71_OY1AdjustedBudget,Sheet1!S71_A2SubCode,$AC:$AC,Sheet1!S71_ItemType,$AD:$AD)","v":0},{"$f":"-SUMIFS(Sheet1!S71_OY2AdjustedBudget,Sheet1!S71_A2SubCode,$AC:$AC,Sheet1!S71_ItemType,$AD:$AD)","v":0},null,null,null,null,null,null,null,null,null,null,null,null,null,null,null,"3206","IR","IZ"]
["Environmental protection",null,{"$f":"SUM(C94:C99)","v":0},{"$f":"SUM(D94:D99)","v":0},0,0,0,0,0,0,0,{"$f":"SUM(L94:L99)","v":0},{"$f":"SUM(M94:M99)","v":0},null,null,null,null,null,null,null,null,null,null,null,null,null,null,null,null,"IR"]
["Biodiversity and Landscape",null,{"$f":"-SUMIFS(Sheet1!S71_OriginalBudget,Sheet1!S71_A2SubCode,$AC:$AC,Sheet1!S71_ItemType,$AD:$AD)","v":0},{"$f":"-SUMIFS(Sheet1!S71_PreviousBudget,Sheet1!S71_A2SubCode,$AC:$AC,Sheet1!S71_ItemType,$AD:$AD)","v":0},null,null,null,null,{"$f":"-SUMIFS(Sheet1!S71_CurrentAdjustments,Sheet1!S71_A2SubCode,$AC:$AC,Sheet1!S71_ItemType,$AD:$AD)","v":0},0,0,{"$f":"-SUMIFS(Sheet1!S71_OY1AdjustedBudget,Sheet1!S71_A2SubCode,$AC:$AC,Sheet1!S71_ItemType,$AD:$AD)","v":0},{"$f":"-SUMIFS(Sheet1!S71_OY2AdjustedBudget,Sheet1!S71_A2SubCode,$AC:$AC,Sheet1!S71_ItemType,$AD:$AD)","v":0},null,null,null,null,null,null,null,null,null,null,null,null,null,null,null,"3301","IR","IZ"]
["Coastal Protection",null,{"$f":"-SUMIFS(Sheet1!S71_OriginalBudget,Sheet1!S71_A2SubCode,$AC:$AC,Sheet1!S71_ItemType,$AD:$AD)","v":0},{"$f":"-SUMIFS(Sheet1!S71_PreviousBudget,Sheet1!S71_A2SubCode,$AC:$AC,Sheet1!S71_ItemType,$AD:$AD)","v":0},null,null,null,null,{"$f":"-SUMIFS(Sheet1!S71_CurrentAdjustments,Sheet1!S71_A2SubCode,$AC:$AC,Sheet1!S71_ItemType,$AD:$AD)","v":0},0,0,{"$f":"-SUMIFS(Sheet1!S71_OY1AdjustedBudget,Sheet1!S71_A2SubCode,$AC:$AC,Sheet1!S71_ItemType,$AD:$AD)","v":0},{"$f":"-SUMIFS(Sheet1!S71_OY2AdjustedBudget,Sheet1!S71_A2SubCode,$AC:$AC,Sheet1!S71_ItemType,$AD:$AD)","v":0},null,null,null,null,null,null,null,null,null,null,null,null,null,null,null,"3302","IR","IZ"]
["Indigenous Forests",null,{"$f":"-SUMIFS(Sheet1!S71_OriginalBudget,Sheet1!S71_A2SubCode,$AC:$AC,Sheet1!S71_ItemType,$AD:$AD)","v":0},{"$f":"-SUMIFS(Sheet1!S71_PreviousBudget,Sheet1!S71_A2SubCode,$AC:$AC,Sheet1!S71_ItemType,$AD:$AD)","v":0},null,null,null,null,{"$f":"-SUMIFS(Sheet1!S71_CurrentAdjustments,Sheet1!S71_A2SubCode,$AC:$AC,Sheet1!S71_ItemType,$AD:$AD)","v":0},0,0,{"$f":"-SUMIFS(Sheet1!S71_OY1AdjustedBudget,Sheet1!S71_A2SubCode,$AC:$AC,Sheet1!S71_ItemType,$AD:$AD)","v":0},{"$f":"-SUMIFS(Sheet1!S71_OY2AdjustedBudget,Sheet1!S71_A2SubCode,$AC:$AC,Sheet1!S71_ItemType,$AD:$AD)","v":0},null,null,null,null,null,null,null,null,null,null,null,null,null,null,null,"3303","IR","IZ"]
["Nature Conservation",null,{"$f":"-SUMIFS(Sheet1!S71_OriginalBudget,Sheet1!S71_A2SubCode,$AC:$AC,Sheet1!S71_ItemType,$AD:$AD)","v":0},{"$f":"-SUMIFS(Sheet1!S71_PreviousBudget,Sheet1!S71_A2SubCode,$AC:$AC,Sheet1!S71_ItemType,$AD:$AD)","v":0},null,null,null,null,{"$f":"-SUMIFS(Sheet1!S71_CurrentAdjustments,Sheet1!S71_A2SubCode,$AC:$AC,Sheet1!S71_ItemType,$AD:$AD)","v":0},0,0,{"$f":"-SUMIFS(Sheet1!S71_OY1AdjustedBudget,Sheet1!S71_A2SubCode,$AC:$AC,Sheet1!S71_ItemType,$AD:$AD)","v":0},{"$f":"-SUMIFS(Sheet1!S71_OY2AdjustedBudget,Sheet1!S71_A2SubCode,$AC:$AC,Sheet1!S71_ItemType,$AD:$AD)","v":0},null,null,null,null,null,null,null,null,null,null,null,null,null,null,null,"3304","IR","IZ"]
["Pollution Control",null,{"$f":"-SUMIFS(Sheet1!S71_OriginalBudget,Sheet1!S71_A2SubCode,$AC:$AC,Sheet1!S71_ItemType,$AD:$AD)","v":0},{"$f":"-SUMIFS(Sheet1!S71_PreviousBudget,Sheet1!S71_A2SubCode,$AC:$AC,Sheet1!S71_ItemType,$AD:$AD)","v":0},null,null,null,null,{"$f":"-SUMIFS(Sheet1!S71_CurrentAdjustments,Sheet1!S71_A2SubCode,$AC:$AC,Sheet1!S71_ItemType,$AD:$AD)","v":0},0,0,{"$f":"-SUMIFS(Sheet1!S71_OY1AdjustedBudget,Sheet1!S71_A2SubCode,$AC:$AC,Sheet1!S71_ItemType,$AD:$AD)","v":0},{"$f":"-SUMIFS(Sheet1!S71_OY2AdjustedBudget,Sheet1!S71_A2SubCode,$AC:$AC,Sheet1!S71_ItemType,$AD:$AD)","v":0},null,null,null,null,null,null,null,null,null,null,null,null,null,null,null,"3305","IR","IZ"]
["Soil Conservation",null,{"$f":"-SUMIFS(Sheet1!S71_OriginalBudget,Sheet1!S71_A2SubCode,$AC:$AC,Sheet1!S71_ItemType,$AD:$AD)","v":0},{"$f":"-SUMIFS(Sheet1!S71_PreviousBudget,Sheet1!S71_A2SubCode,$AC:$AC,Sheet1!S71_ItemType,$AD:$AD)","v":0},null,null,null,null,{"$f":"-SUMIFS(Sheet1!S71_CurrentAdjustments,Sheet1!S71_A2SubCode,$AC:$AC,Sheet1!S71_ItemType,$AD:$AD)","v":0},0,0,{"$f":"-SUMIFS(Sheet1!S71_OY1AdjustedBudget,Sheet1!S71_A2SubCode,$AC:$AC,Sheet1!S71_ItemType,$AD:$AD)","v":0},{"$f":"-SUMIFS(Sheet1!S71_OY2AdjustedBudget,Sheet1!S71_A2SubCode,$AC:$AC,Sheet1!S71_ItemType,$AD:$AD)","v":0},null,null,null,null,null,null,null,null,null,null,null,null,null,null,null,"3306","IR","IZ"]
["Trading services",null,{"$f":"C101+C105+C109+C114","v":95633824},{"$f":"D101+D105+D109+D114","v":96170824},0,0,0,-6719130,0,-6719130,89451694,98337242,104258690,null,null,null,null,null,null,null,null,null,null,null,null,null,null,null,null,"IR"]
["Energy sources",null,{"$f":"SUM(C102:C104)","v":80675495},{"$f":"SUM(D102:D104)","v":80742895},0,0,0,-6719130,0,-6719130,74023765,{"$f":"SUM(L102:L104)","v":82689988},{"$f":"SUM(M102:M104)","v":87889913},null,null,null,null,null,null,null,null,null,null,null,null,null,null,null,null,"IR"]
["Electricity ",null,{"$f":"-SUMIFS(Sheet1!S71_OriginalBudget,Sheet1!S71_A2SubCode,$AC:$AC,Sheet1!S71_ItemType,$AD:$AD)","v":80675495},{"$f":"-SUMIFS(Sheet1!S71_PreviousBudget,Sheet1!S71_A2SubCode,$AC:$AC,Sheet1!S71_ItemType,$AD:$AD)","v":80742895},null,null,null,{"$f":"-SUMIFS(Sheet1!S71_CurrentAdjustments,Sheet1!S71_A2SubCode,$AC:$AC,Sheet1!S71_ItemType,$AD:$AD)","v":-6719130},0,-6719130,74023765,{"$f":"-SUMIFS(Sheet1!S71_OY1AdjustedBudget,Sheet1!S71_A2SubCode,$AC:$AC,Sheet1!S71_ItemType,$AD:$AD)","v":82689988},{"$f":"-SUMIFS(Sheet1!S71_OY2AdjustedBudget,Sheet1!S71_A2SubCode,$AC:$AC,Sheet1!S71_ItemType,$AD:$AD)","v":87889913},null,null,null,null,null,null,null,null,null,null,null,null,null,null,null,"4101","IR","IZ"]
["Street Lighting and Signal Systems",null,{"$f":"-SUMIFS(Sheet1!S71_OriginalBudget,Sheet1!S71_A2SubCode,$AC:$AC,Sheet1!S71_ItemType,$AD:$AD)","v":0},{"$f":"-SUMIFS(Sheet1!S71_PreviousBudget,Sheet1!S71_A2SubCode,$AC:$AC,Sheet1!S71_ItemType,$AD:$AD)","v":0},null,null,null,null,{"$f":"-SUMIFS(Sheet1!S71_CurrentAdjustments,Sheet1!S71_A2SubCode,$AC:$AC,Sheet1!S71_ItemType,$AD:$AD)","v":0},0,0,{"$f":"-SUMIFS(Sheet1!S71_OY1AdjustedBudget,Sheet1!S71_A2SubCode,$AC:$AC,Sheet1!S71_ItemType,$AD:$AD)","v":0},{"$f":"-SUMIFS(Sheet1!S71_OY2AdjustedBudget,Sheet1!S71_A2SubCode,$AC:$AC,Sheet1!S71_ItemType,$AD:$AD)","v":0},null,null,null,null,null,null,null,null,null,null,null,null,null,null,null,"4102","IR","IZ"]
["Nonelectric Energy",null,{"$f":"-SUMIFS(Sheet1!S71_OriginalBudget,Sheet1!S71_A2SubCode,$AC:$AC,Sheet1!S71_ItemType,$AD:$AD)","v":0},{"$f":"-SUMIFS(Sheet1!S71_PreviousBudget,Sheet1!S71_A2SubCode,$AC:$AC,Sheet1!S71_ItemType,$AD:$AD)","v":0},null,null,null,null,{"$f":"-SUMIFS(Sheet1!S71_CurrentAdjustments,Sheet1!S71_A2SubCode,$AC:$AC,Sheet1!S71_ItemType,$AD:$AD)","v":0},0,0,{"$f":"-SUMIFS(Sheet1!S71_OY1AdjustedBudget,Sheet1!S71_A2SubCode,$AC:$AC,Sheet1!S71_ItemType,$AD:$AD)","v":0},{"$f":"-SUMIFS(Sheet1!S71_OY2AdjustedBudget,Sheet1!S71_A2SubCode,$AC:$AC,Sheet1!S71_ItemType,$AD:$AD)","v":0},null,null,null,null,null,null,null,null,null,null,null,null,null,null,null,"4103","IR","IZ"]
["Water management",null,{"$f":"SUM(C106:C108)","v":0},{"$f":"SUM(D106:D108)","v":0},0,0,0,0,0,0,0,{"$f":"SUM(L106:L108)","v":0},{"$f":"SUM(M106:M108)","v":0},null,null,null,null,null,null,null,null,null,null,null,null,null,null,null,null,"IR"]
["Water Treatment",null,{"$f":"-SUMIFS(Sheet1!S71_OriginalBudget,Sheet1!S71_A2SubCode,$AC:$AC,Sheet1!S71_ItemType,$AD:$AD)","v":0},{"$f":"-SUMIFS(Sheet1!S71_PreviousBudget,Sheet1!S71_A2SubCode,$AC:$AC,Sheet1!S71_ItemType,$AD:$AD)","v":0},null,null,null,null,{"$f":"-SUMIFS(Sheet1!S71_CurrentAdjustments,Sheet1!S71_A2SubCode,$AC:$AC,Sheet1!S71_ItemType,$AD:$AD)","v":0},0,0,{"$f":"-SUMIFS(Sheet1!S71_OY1AdjustedBudget,Sheet1!S71_A2SubCode,$AC:$AC,Sheet1!S71_ItemType,$AD:$AD)","v":0},{"$f":"-SUMIFS(Sheet1!S71_OY2AdjustedBudget,Sheet1!S71_A2SubCode,$AC:$AC,Sheet1!S71_ItemType,$AD:$AD)","v":0},null,null,null,null,null,null,null,null,null,null,null,null,null,null,null,"4201","IR","IZ"]
["Water Distribution",null,{"$f":"-SUMIFS(Sheet1!S71_OriginalBudget,Sheet1!S71_A2SubCode,$AC:$AC,Sheet1!S71_ItemType,$AD:$AD)","v":0},{"$f":"-SUMIFS(Sheet1!S71_PreviousBudget,Sheet1!S71_A2SubCode,$AC:$AC,Sheet1!S71_ItemType,$AD:$AD)","v":0},null,null,null,null,{"$f":"-SUMIFS(Sheet1!S71_CurrentAdjustments,Sheet1!S71_A2SubCode,$AC:$AC,Sheet1!S71_ItemType,$AD:$AD)","v":0},0,0,{"$f":"-SUMIFS(Sheet1!S71_OY1AdjustedBudget,Sheet1!S71_A2SubCode,$AC:$AC,Sheet1!S71_ItemType,$AD:$AD)","v":0},{"$f":"-SUMIFS(Sheet1!S71_OY2AdjustedBudget,Sheet1!S71_A2SubCode,$AC:$AC,Sheet1!S71_ItemType,$AD:$AD)","v":0},null,null,null,null,null,null,null,null,null,null,null,null,null,null,null,"4202","IR","IZ"]
["Water Storage",null,{"$f":"-SUMIFS(Sheet1!S71_OriginalBudget,Sheet1!S71_A2SubCode,$AC:$AC,Sheet1!S71_ItemType,$AD:$AD)","v":0},{"$f":"-SUMIFS(Sheet1!S71_PreviousBudget,Sheet1!S71_A2SubCode,$AC:$AC,Sheet1!S71_ItemType,$AD:$AD)","v":0},null,null,null,null,{"$f":"-SUMIFS(Sheet1!S71_CurrentAdjustments,Sheet1!S71_A2SubCode,$AC:$AC,Sheet1!S71_ItemType,$AD:$AD)","v":0},0,0,{"$f":"-SUMIFS(Sheet1!S71_OY1AdjustedBudget,Sheet1!S71_A2SubCode,$AC:$AC,Sheet1!S71_ItemType,$AD:$AD)","v":0},{"$f":"-SUMIFS(Sheet1!S71_OY2AdjustedBudget,Sheet1!S71_A2SubCode,$AC:$AC,Sheet1!S71_ItemType,$AD:$AD)","v":0},null,null,null,null,null,null,null,null,null,null,null,null,null,null,null,"4203","IR","IZ"]
["Waste water management",null,{"$f":"SUM(C110:C113)","v":0},{"$f":"SUM(D110:D113)","v":0},0,0,0,0,0,0,0,{"$f":"SUM(L110:L113)","v":0},{"$f":"SUM(M110:M113)","v":0},null,null,null,null,null,null,null,null,null,null,null,null,null,null,null,null,"IR"]
["Public Toilets",null,{"$f":"-SUMIFS(Sheet1!S71_OriginalBudget,Sheet1!S71_A2SubCode,$AC:$AC,Sheet1!S71_ItemType,$AD:$AD)","v":0},{"$f":"-SUMIFS(Sheet1!S71_PreviousBudget,Sheet1!S71_A2SubCode,$AC:$AC,Sheet1!S71_ItemType,$AD:$AD)","v":0},null,null,null,null,{"$f":"-SUMIFS(Sheet1!S71_CurrentAdjustments,Sheet1!S71_A2SubCode,$AC:$AC,Sheet1!S71_ItemType,$AD:$AD)","v":0},0,0,{"$f":"-SUMIFS(Sheet1!S71_OY1AdjustedBudget,Sheet1!S71_A2SubCode,$AC:$AC,Sheet1!S71_ItemType,$AD:$AD)","v":0},{"$f":"-SUMIFS(Sheet1!S71_OY2AdjustedBudget,Sheet1!S71_A2SubCode,$AC:$AC,Sheet1!S71_ItemType,$AD:$AD)","v":0},null,null,null,null,null,null,null,null,null,null,null,null,null,null,null,"4301","IR","IZ"]
["Sewerage",null,{"$f":"-SUMIFS(Sheet1!S71_OriginalBudget,Sheet1!S71_A2SubCode,$AC:$AC,Sheet1!S71_ItemType,$AD:$AD)","v":0},{"$f":"-SUMIFS(Sheet1!S71_PreviousBudget,Sheet1!S71_A2SubCode,$AC:$AC,Sheet1!S71_ItemType,$AD:$AD)","v":0},null,null,null,null,{"$f":"-SUMIFS(Sheet1!S71_CurrentAdjustments,Sheet1!S71_A2SubCode,$AC:$AC,Sheet1!S71_ItemType,$AD:$AD)","v":0},0,0,{"$f":"-SUMIFS(Sheet1!S71_OY1AdjustedBudget,Sheet1!S71_A2SubCode,$AC:$AC,Sheet1!S71_ItemType,$AD:$AD)","v":0},{"$f":"-SUMIFS(Sheet1!S71_OY2AdjustedBudget,Sheet1!S71_A2SubCode,$AC:$AC,Sheet1!S71_ItemType,$AD:$AD)","v":0},null,null,null,null,null,null,null,null,null,null,null,null,null,null,null,"4302","IR","IZ"]
["Storm Water Management",null,{"$f":"-SUMIFS(Sheet1!S71_OriginalBudget,Sheet1!S71_A2SubCode,$AC:$AC,Sheet1!S71_ItemType,$AD:$AD)","v":0},{"$f":"-SUMIFS(Sheet1!S71_PreviousBudget,Sheet1!S71_A2SubCode,$AC:$AC,Sheet1!S71_ItemType,$AD:$AD)","v":0},null,null,null,null,{"$f":"-SUMIFS(Sheet1!S71_CurrentAdjustments,Sheet1!S71_A2SubCode,$AC:$AC,Sheet1!S71_ItemType,$AD:$AD)","v":0},0,0,{"$f":"-SUMIFS(Sheet1!S71_OY1AdjustedBudget,Sheet1!S71_A2SubCode,$AC:$AC,Sheet1!S71_ItemType,$AD:$AD)","v":0},{"$f":"-SUMIFS(Sheet1!S71_OY2AdjustedBudget,Sheet1!S71_A2SubCode,$AC:$AC,Sheet1!S71_ItemType,$AD:$AD)","v":0},null,null,null,null,null,null,null,null,null,null,null,null,null,null,null,"4303","IR","IZ"]
["Waste Water Treatment",null,{"$f":"-SUMIFS(Sheet1!S71_OriginalBudget,Sheet1!S71_A2SubCode,$AC:$AC,Sheet1!S71_ItemType,$AD:$AD)","v":0},{"$f":"-SUMIFS(Sheet1!S71_PreviousBudget,Sheet1!S71_A2SubCode,$AC:$AC,Sheet1!S71_ItemType,$AD:$AD)","v":0},null,null,null,null,{"$f":"-SUMIFS(Sheet1!S71_CurrentAdjustments,Sheet1!S71_A2SubCode,$AC:$AC,Sheet1!S71_ItemType,$AD:$AD)","v":0},0,0,{"$f":"-SUMIFS(Sheet1!S71_OY1AdjustedBudget,Sheet1!S71_A2SubCode,$AC:$AC,Sheet1!S71_ItemType,$AD:$AD)","v":0},{"$f":"-SUMIFS(Sheet1!S71_OY2AdjustedBudget,Sheet1!S71_A2SubCode,$AC:$AC,Sheet1!S71_ItemType,$AD:$AD)","v":0},null,null,null,null,null,null,null,null,null,null,null,null,null,null,null,"4304","IR","IZ"]
["Waste management",null,{"$f":"SUM(C115:C118)","v":14958329},{"$f":"SUM(D115:D118)","v":15427929},0,0,0,0,0,0,15427929,15647254,{"$f":"SUM(M115:M118)","v":16368777},null,null,null,null,null,null,null,null,null,null,null,null,null,null,null,null,"IR"]
["Recycling",null,{"$f":"-SUMIFS(Sheet1!S71_OriginalBudget,Sheet1!S71_A2SubCode,$AC:$AC,Sheet1!S71_ItemType,$AD:$AD)","v":0},{"$f":"-SUMIFS(Sheet1!S71_PreviousBudget,Sheet1!S71_A2SubCode,$AC:$AC,Sheet1!S71_ItemType,$AD:$AD)","v":0},null,null,null,null,{"$f":"-SUMIFS(Sheet1!S71_CurrentAdjustments,Sheet1!S71_A2SubCode,$AC:$AC,Sheet1!S71_ItemType,$AD:$AD)","v":0},0,0,{"$f":"-SUMIFS(Sheet1!S71_OY1AdjustedBudget,Sheet1!S71_A2SubCode,$AC:$AC,Sheet1!S71_ItemType,$AD:$AD)","v":0},{"$f":"-SUMIFS(Sheet1!S71_OY2AdjustedBudget,Sheet1!S71_A2SubCode,$AC:$AC,Sheet1!S71_ItemType,$AD:$AD)","v":0},null,null,null,null,null,null,null,null,null,null,null,null,null,null,null,"4401","IR","IZ"]
["Solid Waste Disposal (Landfill Sites)",null,{"$f":"-SUMIFS(Sheet1!S71_OriginalBudget,Sheet1!S71_A2SubCode,$AC:$AC,Sheet1!S71_ItemType,$AD:$AD)","v":0},{"$f":"-SUMIFS(Sheet1!S71_PreviousBudget,Sheet1!S71_A2SubCode,$AC:$AC,Sheet1!S71_ItemType,$AD:$AD)","v":0},null,null,null,null,{"$f":"-SUMIFS(Sheet1!S71_CurrentAdjustments,Sheet1!S71_A2SubCode,$AC:$AC,Sheet1!S71_ItemType,$AD:$AD)","v":0},0,0,{"$f":"-SUMIFS(Sheet1!S71_OY1AdjustedBudget,Sheet1!S71_A2SubCode,$AC:$AC,Sheet1!S71_ItemType,$AD:$AD)","v":0},{"$f":"-SUMIFS(Sheet1!S71_OY2AdjustedBudget,Sheet1!S71_A2SubCode,$AC:$AC,Sheet1!S71_ItemType,$AD:$AD)","v":0},null,null,null,null,null,null,null,null,null,null,null,null,null,null,null,"4402","IR","IZ"]
["Solid Waste Removal",null,{"$f":"-SUMIFS(Sheet1!S71_OriginalBudget,Sheet1!S71_A2SubCode,$AC:$AC,Sheet1!S71_ItemType,$AD:$AD)","v":14958329},{"$f":"-SUMIFS(Sheet1!S71_PreviousBudget,Sheet1!S71_A2SubCode,$AC:$AC,Sheet1!S71_ItemType,$AD:$AD)","v":15427929},null,null,null,null,{"$f":"-SUMIFS(Sheet1!S71_CurrentAdjustments,Sheet1!S71_A2SubCode,$AC:$AC,Sheet1!S71_ItemType,$AD:$AD)","v":0},0,15427929,{"$f":"-SUMIFS(Sheet1!S71_OY1AdjustedBudget,Sheet1!S71_A2SubCode,$AC:$AC,Sheet1!S71_ItemType,$AD:$AD)","v":15647254},{"$f":"-SUMIFS(Sheet1!S71_OY2AdjustedBudget,Sheet1!S71_A2SubCode,$AC:$AC,Sheet1!S71_ItemType,$AD:$AD)","v":16368777},null,null,null,null,null,null,null,null,null,null,null,null,null,null,null,"4403","IR","IZ"]
["Street Cleaning",null,{"$f":"-SUMIFS(Sheet1!S71_OriginalBudget,Sheet1!S71_A2SubCode,$AC:$AC,Sheet1!S71_ItemType,$AD:$AD)","v":0},{"$f":"-SUMIFS(Sheet1!S71_PreviousBudget,Sheet1!S71_A2SubCode,$AC:$AC,Sheet1!S71_ItemType,$AD:$AD)","v":0},null,null,null,null,{"$f":"-SUMIFS(Sheet1!S71_CurrentAdjustments,Sheet1!S71_A2SubCode,$AC:$AC,Sheet1!S71_ItemType,$AD:$AD)","v":0},0,0,{"$f":"-SUMIFS(Sheet1!S71_OY1AdjustedBudget,Sheet1!S71_A2SubCode,$AC:$AC,Sheet1!S71_ItemType,$AD:$AD)","v":0},{"$f":"-SUMIFS(Sheet1!S71_OY2AdjustedBudget,Sheet1!S71_A2SubCode,$AC:$AC,Sheet1!S71_ItemType,$AD:$AD)","v":0},null,null,null,null,null,null,null,null,null,null,null,null,null,null,null,"4404","IR","IZ"]
["Other",null,{"$f":"SUM(C120:C125)","v":0},0,0,0,0,0,0,0,0,0,0,null,null,null,null,null,null,null,null,null,null,null,null,null,null,null,null,"IR"]
["Abattoirs",null,{"$f":"-SUMIFS(Sheet1!S71_OriginalBudget,Sheet1!S71_A2SubCode,$AC:$AC,Sheet1!S71_ItemType,$AD:$AD)","v":0},{"$f":"-SUMIFS(Sheet1!S71_PreviousBudget,Sheet1!S71_A2SubCode,$AC:$AC,Sheet1!S71_ItemType,$AD:$AD)","v":0},null,null,null,null,{"$f":"-SUMIFS(Sheet1!S71_CurrentAdjustments,Sheet1!S71_A2SubCode,$AC:$AC,Sheet1!S71_ItemType,$AD:$AD)","v":0},0,0,{"$f":"-SUMIFS(Sheet1!S71_OY1AdjustedBudget,Sheet1!S71_A2SubCode,$AC:$AC,Sheet1!S71_ItemType,$AD:$AD)","v":0},{"$f":"-SUMIFS(Sheet1!S71_OY2AdjustedBudget,Sheet1!S71_A2SubCode,$AC:$AC,Sheet1!S71_ItemType,$AD:$AD)","v":0},null,null,null,null,null,null,null,null,null,null,null,null,null,null,null,"5001","IR","IZ"]
["Air Transport",null,{"$f":"-SUMIFS(Sheet1!S71_OriginalBudget,Sheet1!S71_A2SubCode,$AC:$AC,Sheet1!S71_ItemType,$AD:$AD)","v":0},{"$f":"-SUMIFS(Sheet1!S71_PreviousBudget,Sheet1!S71_A2SubCode,$AC:$AC,Sheet1!S71_ItemType,$AD:$AD)","v":0},null,null,null,null,{"$f":"-SUMIFS(Sheet1!S71_CurrentAdjustments,Sheet1!S71_A2SubCode,$AC:$AC,Sheet1!S71_ItemType,$AD:$AD)","v":0},0,0,{"$f":"-SUMIFS(Sheet1!S71_OY1AdjustedBudget,Sheet1!S71_A2SubCode,$AC:$AC,Sheet1!S71_ItemType,$AD:$AD)","v":0},{"$f":"-SUMIFS(Sheet1!S71_OY2AdjustedBudget,Sheet1!S71_A2SubCode,$AC:$AC,Sheet1!S71_ItemType,$AD:$AD)","v":0},null,null,null,null,null,null,null,null,null,null,null,null,null,null,null,"5002","IR","IZ"]
["Forestry ",null,{"$f":"-SUMIFS(Sheet1!S71_OriginalBudget,Sheet1!S71_A2SubCode,$AC:$AC,Sheet1!S71_ItemType,$AD:$AD)","v":0},{"$f":"-SUMIFS(Sheet1!S71_PreviousBudget,Sheet1!S71_A2SubCode,$AC:$AC,Sheet1!S71_ItemType,$AD:$AD)","v":0},null,null,null,null,{"$f":"-SUMIFS(Sheet1!S71_CurrentAdjustments,Sheet1!S71_A2SubCode,$AC:$AC,Sheet1!S71_ItemType,$AD:$AD)","v":0},0,0,{"$f":"-SUMIFS(Sheet1!S71_OY1AdjustedBudget,Sheet1!S71_A2SubCode,$AC:$AC,Sheet1!S71_ItemType,$AD:$AD)","v":0},{"$f":"-SUMIFS(Sheet1!S71_OY2AdjustedBudget,Sheet1!S71_A2SubCode,$AC:$AC,Sheet1!S71_ItemType,$AD:$AD)","v":0},null,null,null,null,null,null,null,null,null,null,null,null,null,null,null,"5003","IR","IZ"]
["Licensing and Regulation",null,{"$f":"-SUMIFS(Sheet1!S71_OriginalBudget,Sheet1!S71_A2SubCode,$AC:$AC,Sheet1!S71_ItemType,$AD:$AD)","v":0},{"$f":"-SUMIFS(Sheet1!S71_PreviousBudget,Sheet1!S71_A2SubCode,$AC:$AC,Sheet1!S71_ItemType,$AD:$AD)","v":0},null,null,null,null,{"$f":"-SUMIFS(Sheet1!S71_CurrentAdjustments,Sheet1!S71_A2SubCode,$AC:$AC,Sheet1!S71_ItemType,$AD:$AD)","v":0},0,0,{"$f":"-SUMIFS(Sheet1!S71_OY1AdjustedBudget,Sheet1!S71_A2SubCode,$AC:$AC,Sheet1!S71_ItemType,$AD:$AD)","v":0},{"$f":"-SUMIFS(Sheet1!S71_OY2AdjustedBudget,Sheet1!S71_A2SubCode,$AC:$AC,Sheet1!S71_ItemType,$AD:$AD)","v":0},null,null,null,null,null,null,null,null,null,null,null,null,null,null,null,"5004","IR","IZ"]
["Markets",null,{"$f":"-SUMIFS(Sheet1!S71_OriginalBudget,Sheet1!S71_A2SubCode,$AC:$AC,Sheet1!S71_ItemType,$AD:$AD)","v":0},{"$f":"-SUMIFS(Sheet1!S71_PreviousBudget,Sheet1!S71_A2SubCode,$AC:$AC,Sheet1!S71_ItemType,$AD:$AD)","v":0},null,null,null,null,{"$f":"-SUMIFS(Sheet1!S71_CurrentAdjustments,Sheet1!S71_A2SubCode,$AC:$AC,Sheet1!S71_ItemType,$AD:$AD)","v":0},0,0,{"$f":"-SUMIFS(Sheet1!S71_OY1AdjustedBudget,Sheet1!S71_A2SubCode,$AC:$AC,Sheet1!S71_ItemType,$AD:$AD)","v":0},{"$f":"-SUMIFS(Sheet1!S71_OY2AdjustedBudget,Sheet1!S71_A2SubCode,$AC:$AC,Sheet1!S71_ItemType,$AD:$AD)","v":0},null,null,null,null,null,null,null,null,null,null,null,null,null,null,null,"5005","IR","IZ"]
["Tourism",null,{"$f":"-SUMIFS(Sheet1!S71_OriginalBudget,Sheet1!S71_A2SubCode,$AC:$AC,Sheet1!S71_ItemType,$AD:$AD)","v":0},{"$f":"-SUMIFS(Sheet1!S71_PreviousBudget,Sheet1!S71_A2SubCode,$AC:$AC,Sheet1!S71_ItemType,$AD:$AD)","v":0},null,null,null,null,{"$f":"-SUMIFS(Sheet1!S71_CurrentAdjustments,Sheet1!S71_A2SubCode,$AC:$AC,Sheet1!S71_ItemType,$AD:$AD)","v":0},0,0,{"$f":"-SUMIFS(Sheet1!S71_OY1AdjustedBudget,Sheet1!S71_A2SubCode,$AC:$AC,Sheet1!S71_ItemType,$AD:$AD)","v":0},{"$f":"-SUMIFS(Sheet1!S71_OY2AdjustedBudget,Sheet1!S71_A2SubCode,$AC:$AC,Sheet1!S71_ItemType,$AD:$AD)","v":0},null,null,null,null,null,null,null,null,null,null,null,null,null,null,null,"5006","IR","IZ"]
[{"$f":"\"Total \"&A6","v":"Total Revenue - Functional"},2,{"$f":"C7+C27+C76+C100+C119","v":486860894},494007453,0,0,0,-4435630,0,-4435630,489571823,{"$f":"L7+L27+L76+L100+L119","v":493892319},{"$f":"M7+M27+M76+M100+M119","v":506675906}]
[null,null,null,null,null,null,null,null,null,0,0]
["Expenditure - Functional",null,null,null,null,null,null,null,null,0,0]
[{"$f":"A7","v":"Municipal governance and administration"},null,{"$f":"C130+C133+C147","v":217122911},237648095,0,0,0,0,0,0,237648095,{"$f":"L130+L133+L147","v":218975101},{"$f":"M130+M133+M147","v":209852966}]
["Executive and council",null,{"$f":"SUM(C131:C132)","v":66001422},72502265,0,0,0,0,0,0,72502265,{"$f":"SUM(L131:L132)","v":69139571},{"$f":"SUM(M131:M132)","v":71919455}]
["Mayor and Council",null,{"$f":"SUMIFS(Sheet1!S71_OriginalBudget,Sheet1!S71_A2SubCode,$AC:$AC,Sheet1!S71_ItemType,$AD:$AD)","v":41659266},{"$f":"SUMIFS(Sheet1!S71_PreviousBudget,Sheet1!S71_A2SubCode,$AC:$AC,Sheet1!S71_ItemType,$AD:$AD)","v":44679405},null,null,null,null,{"$f":"SUMIFS(Sheet1!S71_CurrentAdjustments,Sheet1!S71_A2SubCode,$AC:$AC,Sheet1!S71_ItemType,$AD:$AD)","v":0},0,44679405,{"$f":"SUMIFS(Sheet1!S71_OY1AdjustedBudget,Sheet1!S71_A2SubCode,$AC:$AC,Sheet1!S71_ItemType,$AD:$AD)","v":43363501},{"$f":"SUMIFS(Sheet1!S71_OY2AdjustedBudget,Sheet1!S71_A2SubCode,$AC:$AC,Sheet1!S71_ItemType,$AD:$AD)","v":44925490},null,null,null,null,null,null,null,null,null,null,null,null,null,null,null,"1110","IE","IZ"]
["Municipal Manager, Town Secretary and Chief Executive",null,{"$f":"SUMIFS(Sheet1!S71_OriginalBudget,Sheet1!S71_A2SubCode,$AC:$AC,Sheet1!S71_ItemType,$AD:$AD)","v":24342156},{"$f":"SUMIFS(Sheet1!S71_PreviousBudget,Sheet1!S71_A2SubCode,$AC:$AC,Sheet1!S71_ItemType,$AD:$AD)","v":27822860},null,null,null,null,{"$f":"SUMIFS(Sheet1!S71_CurrentAdjustments,Sheet1!S71_A2SubCode,$AC:$AC,Sheet1!S71_ItemType,$AD:$AD)","v":0},0,27822860,{"$f":"SUMIFS(Sheet1!S71_OY1AdjustedBudget,Sheet1!S71_A2SubCode,$AC:$AC,Sheet1!S71_ItemType,$AD:$AD)","v":25776070},{"$f":"SUMIFS(Sheet1!S71_OY2AdjustedBudget,Sheet1!S71_A2SubCode,$AC:$AC,Sheet1!S71_ItemType,$AD:$AD)","v":26993965},null,null,null,null,null,null,null,null,null,null,null,null,null,null,null,"1120","IE","IZ"]
["Finance and administration",null,{"$f":"SUM(C134:C146)","v":151121489},165145830,0,0,0,0,0,0,165145830,{"$f":"SUM(L134:L146)","v":149835530},{"$f":"SUM(M134:M146)","v":137933511},null,null,null,null,null,null,null,null,null,null,null,null,null,null,null,null,"IE","IZ"]
["Administrative and Corporate Support",null,{"$f":"SUMIFS(Sheet1!S71_OriginalBudget,Sheet1!S71_A2SubCode,$AC:$AC,Sheet1!S71_ItemType,$AD:$AD)","v":17255042},{"$f":"SUMIFS(Sheet1!S71_PreviousBudget,Sheet1!S71_A2SubCode,$AC:$AC,Sheet1!S71_ItemType,$AD:$AD)","v":17250939},null,null,null,null,{"$f":"SUMIFS(Sheet1!S71_CurrentAdjustments,Sheet1!S71_A2SubCode,$AC:$AC,Sheet1!S71_ItemType,$AD:$AD)","v":0},0,17250939,{"$f":"SUMIFS(Sheet1!S71_OY1AdjustedBudget,Sheet1!S71_A2SubCode,$AC:$AC,Sheet1!S71_ItemType,$AD:$AD)","v":17668318},{"$f":"SUMIFS(Sheet1!S71_OY2AdjustedBudget,Sheet1!S71_A2SubCode,$AC:$AC,Sheet1!S71_ItemType,$AD:$AD)","v":18592402},null,null,null,null,null,null,null,null,null,null,null,null,null,null,null,"1201","IE","IZ"]
["Asset Management",null,{"$f":"SUMIFS(Sheet1!S71_OriginalBudget,Sheet1!S71_A2SubCode,$AC:$AC,Sheet1!S71_ItemType,$AD:$AD)","v":17313220},{"$f":"SUMIFS(Sheet1!S71_PreviousBudget,Sheet1!S71_A2SubCode,$AC:$AC,Sheet1!S71_ItemType,$AD:$AD)","v":21104029},null,null,null,null,{"$f":"SUMIFS(Sheet1!S71_CurrentAdjustments,Sheet1!S71_A2SubCode,$AC:$AC,Sheet1!S71_ItemType,$AD:$AD)","v":0},0,21104029,{"$f":"SUMIFS(Sheet1!S71_OY1AdjustedBudget,Sheet1!S71_A2SubCode,$AC:$AC,Sheet1!S71_ItemType,$AD:$AD)","v":17617659},{"$f":"SUMIFS(Sheet1!S71_OY2AdjustedBudget,Sheet1!S71_A2SubCode,$AC:$AC,Sheet1!S71_ItemType,$AD:$AD)","v":15222538},null,null,null,null,null,null,null,null,null,null,null,null,null,null,null,"1202","IE","IZ"]
["Finance",null,{"$f":"SUMIFS(Sheet1!S71_OriginalBudget,Sheet1!S71_A2SubCode,$AC:$AC,Sheet1!S71_ItemType,$AD:$AD)","v":70609417},{"$f":"SUMIFS(Sheet1!S71_PreviousBudget,Sheet1!S71_A2SubCode,$AC:$AC,Sheet1!S71_ItemType,$AD:$AD)","v":75462604},null,null,null,null,{"$f":"SUMIFS(Sheet1!S71_CurrentAdjustments,Sheet1!S71_A2SubCode,$AC:$AC,Sheet1!S71_ItemType,$AD:$AD)","v":0},0,75462604,{"$f":"SUMIFS(Sheet1!S71_OY1AdjustedBudget,Sheet1!S71_A2SubCode,$AC:$AC,Sheet1!S71_ItemType,$AD:$AD)","v":64766023},{"$f":"SUMIFS(Sheet1!S71_OY2AdjustedBudget,Sheet1!S71_A2SubCode,$AC:$AC,Sheet1!S71_ItemType,$AD:$AD)","v":51915758},null,null,null,null,null,null,null,null,null,null,null,null,null,null,null,"1204","IE","IZ"]
["Fleet Management",null,{"$f":"SUMIFS(Sheet1!S71_OriginalBudget,Sheet1!S71_A2SubCode,$AC:$AC,Sheet1!S71_ItemType,$AD:$AD)","v":21866842},{"$f":"SUMIFS(Sheet1!S71_PreviousBudget,Sheet1!S71_A2SubCode,$AC:$AC,Sheet1!S71_ItemType,$AD:$AD)","v":24997338},null,null,null,null,{"$f":"SUMIFS(Sheet1!S71_CurrentAdjustments,Sheet1!S71_A2SubCode,$AC:$AC,Sheet1!S71_ItemType,$AD:$AD)","v":0},0,24997338,{"$f":"SUMIFS(Sheet1!S71_OY1AdjustedBudget,Sheet1!S71_A2SubCode,$AC:$AC,Sheet1!S71_ItemType,$AD:$AD)","v":22844432},{"$f":"SUMIFS(Sheet1!S71_OY2AdjustedBudget,Sheet1!S71_A2SubCode,$AC:$AC,Sheet1!S71_ItemType,$AD:$AD)","v":23847947},null,null,null,null,null,null,null,null,null,null,null,null,null,null,null,"1205","IE","IZ"]
["Human Resources",null,{"$f":"SUMIFS(Sheet1!S71_OriginalBudget,Sheet1!S71_A2SubCode,$AC:$AC,Sheet1!S71_ItemType,$AD:$AD)","v":7720505},{"$f":"SUMIFS(Sheet1!S71_PreviousBudget,Sheet1!S71_A2SubCode,$AC:$AC,Sheet1!S71_ItemType,$AD:$AD)","v":7453114},null,null,null,null,{"$f":"SUMIFS(Sheet1!S71_CurrentAdjustments,Sheet1!S71_A2SubCode,$AC:$AC,Sheet1!S71_ItemType,$AD:$AD)","v":0},0,7453114,{"$f":"SUMIFS(Sheet1!S71_OY1AdjustedBudget,Sheet1!S71_A2SubCode,$AC:$AC,Sheet1!S71_ItemType,$AD:$AD)","v":8530430},{"$f":"SUMIFS(Sheet1!S71_OY2AdjustedBudget,Sheet1!S71_A2SubCode,$AC:$AC,Sheet1!S71_ItemType,$AD:$AD)","v":8922836},null,null,null,null,null,null,null,null,null,null,null,null,null,null,null,"1206","IE","IZ"]
["Information Technology",null,{"$f":"SUMIFS(Sheet1!S71_OriginalBudget,Sheet1!S71_A2SubCode,$AC:$AC,Sheet1!S71_ItemType,$AD:$AD)","v":14586413},{"$f":"SUMIFS(Sheet1!S71_PreviousBudget,Sheet1!S71_A2SubCode,$AC:$AC,Sheet1!S71_ItemType,$AD:$AD)","v":17107756},null,null,null,null,{"$f":"SUMIFS(Sheet1!S71_CurrentAdjustments,Sheet1!S71_A2SubCode,$AC:$AC,Sheet1!S71_ItemType,$AD:$AD)","v":0},{"$f":"SUM(E139:I139)","v":0},{"$f":"IF(D139=0,C139+J139,D139+J139)","v":17107756},{"$f":"SUMIFS(Sheet1!S71_OY1AdjustedBudget,Sheet1!S71_A2SubCode,$AC:$AC,Sheet1!S71_ItemType,$AD:$AD)","v":16580651},{"$f":"SUMIFS(Sheet1!S71_OY2AdjustedBudget,Sheet1!S71_A2SubCode,$AC:$AC,Sheet1!S71_ItemType,$AD:$AD)","v":17559180},null,null,null,null,null,null,null,null,null,null,null,null,null,null,null,"1207","IE","IZ"]
["Legal Services",null,{"$f":"SUMIFS(Sheet1!S71_OriginalBudget,Sheet1!S71_A2SubCode,$AC:$AC,Sheet1!S71_ItemType,$AD:$AD)","v":0},{"$f":"SUMIFS(Sheet1!S71_PreviousBudget,Sheet1!S71_A2SubCode,$AC:$AC,Sheet1!S71_ItemType,$AD:$AD)","v":0},null,null,null,null,{"$f":"SUMIFS(Sheet1!S71_CurrentAdjustments,Sheet1!S71_A2SubCode,$AC:$AC,Sheet1!S71_ItemType,$AD:$AD)","v":0},0,0,{"$f":"SUMIFS(Sheet1!S71_OY1AdjustedBudget,Sheet1!S71_A2SubCode,$AC:$AC,Sheet1!S71_ItemType,$AD:$AD)","v":0},{"$f":"SUMIFS(Sheet1!S71_OY2AdjustedBudget,Sheet1!S71_A2SubCode,$AC:$AC,Sheet1!S71_ItemType,$AD:$AD)","v":0},null,null,null,null,null,null,null,null,null,null,null,null,null,null,null,"1208","IE","IZ"]
["Marketing, Customer Relations, Publicity and Media Co-ordination",null,{"$f":"SUMIFS(Sheet1!S71_OriginalBudget,Sheet1!S71_A2SubCode,$AC:$AC,Sheet1!S71_ItemType,$AD:$AD)","v":0},{"$f":"SUMIFS(Sheet1!S71_PreviousBudget,Sheet1!S71_A2SubCode,$AC:$AC,Sheet1!S71_ItemType,$AD:$AD)","v":0},null,null,null,null,{"$f":"SUMIFS(Sheet1!S71_CurrentAdjustments,Sheet1!S71_A2SubCode,$AC:$AC,Sheet1!S71_ItemType,$AD:$AD)","v":0},0,0,{"$f":"SUMIFS(Sheet1!S71_OY1AdjustedBudget,Sheet1!S71_A2SubCode,$AC:$AC,Sheet1!S71_ItemType,$AD:$AD)","v":0},{"$f":"SUMIFS(Sheet1!S71_OY2AdjustedBudget,Sheet1!S71_A2SubCode,$AC:$AC,Sheet1!S71_ItemType,$AD:$AD)","v":0},null,null,null,null,null,null,null,null,null,null,null,null,null,null,null,"1209","IE","IZ"]
["Property Services",null,{"$f":"SUMIFS(Sheet1!S71_OriginalBudget,Sheet1!S71_A2SubCode,$AC:$AC,Sheet1!S71_ItemType,$AD:$AD)","v":1770050},{"$f":"SUMIFS(Sheet1!S71_PreviousBudget,Sheet1!S71_A2SubCode,$AC:$AC,Sheet1!S71_ItemType,$AD:$AD)","v":1770050},null,null,null,null,{"$f":"SUMIFS(Sheet1!S71_CurrentAdjustments,Sheet1!S71_A2SubCode,$AC:$AC,Sheet1!S71_ItemType,$AD:$AD)","v":0},0,1770050,{"$f":"SUMIFS(Sheet1!S71_OY1AdjustedBudget,Sheet1!S71_A2SubCode,$AC:$AC,Sheet1!S71_ItemType,$AD:$AD)","v":1828017},{"$f":"SUMIFS(Sheet1!S71_OY2AdjustedBudget,Sheet1!S71_A2SubCode,$AC:$AC,Sheet1!S71_ItemType,$AD:$AD)","v":1872850},null,null,null,null,null,null,null,null,null,null,null,null,null,null,null,"1210","IE","IZ"]
["Risk Management",null,{"$f":"SUMIFS(Sheet1!S71_OriginalBudget,Sheet1!S71_A2SubCode,$AC:$AC,Sheet1!S71_ItemType,$AD:$AD)","v":0},{"$f":"SUMIFS(Sheet1!S71_PreviousBudget,Sheet1!S71_A2SubCode,$AC:$AC,Sheet1!S71_ItemType,$AD:$AD)","v":0},null,null,null,null,{"$f":"SUMIFS(Sheet1!S71_CurrentAdjustments,Sheet1!S71_A2SubCode,$AC:$AC,Sheet1!S71_ItemType,$AD:$AD)","v":0},0,0,{"$f":"SUMIFS(Sheet1!S71_OY1AdjustedBudget,Sheet1!S71_A2SubCode,$AC:$AC,Sheet1!S71_ItemType,$AD:$AD)","v":0},{"$f":"SUMIFS(Sheet1!S71_OY2AdjustedBudget,Sheet1!S71_A2SubCode,$AC:$AC,Sheet1!S71_ItemType,$AD:$AD)","v":0},null,null,null,null,null,null,null,null,null,null,null,null,null,null,null,"1211","IE","IZ"]
["Security Services",null,{"$f":"SUMIFS(Sheet1!S71_OriginalBudget,Sheet1!S71_A2SubCode,$AC:$AC,Sheet1!S71_ItemType,$AD:$AD)","v":0},{"$f":"SUMIFS(Sheet1!S71_PreviousBudget,Sheet1!S71_A2SubCode,$AC:$AC,Sheet1!S71_ItemType,$AD:$AD)","v":0},null,null,null,null,{"$f":"SUMIFS(Sheet1!S71_CurrentAdjustments,Sheet1!S71_A2SubCode,$AC:$AC,Sheet1!S71_ItemType,$AD:$AD)","v":0},0,0,{"$f":"SUMIFS(Sheet1!S71_OY1AdjustedBudget,Sheet1!S71_A2SubCode,$AC:$AC,Sheet1!S71_ItemType,$AD:$AD)","v":0},{"$f":"SUMIFS(Sheet1!S71_OY2AdjustedBudget,Sheet1!S71_A2SubCode,$AC:$AC,Sheet1!S71_ItemType,$AD:$AD)","v":0},null,null,null,null,null,null,null,null,null,null,null,null,null,null,null,"1212","IE","IZ"]
["Supply Chain Management ",null,{"$f":"SUMIFS(Sheet1!S71_OriginalBudget,Sheet1!S71_A2SubCode,$AC:$AC,Sheet1!S71_ItemType,$AD:$AD)","v":0},{"$f":"SUMIFS(Sheet1!S71_PreviousBudget,Sheet1!S71_A2SubCode,$AC:$AC,Sheet1!S71_ItemType,$AD:$AD)","v":0},null,null,null,null,{"$f":"SUMIFS(Sheet1!S71_CurrentAdjustments,Sheet1!S71_A2SubCode,$AC:$AC,Sheet1!S71_ItemType,$AD:$AD)","v":0},0,0,{"$f":"SUMIFS(Sheet1!S71_OY1AdjustedBudget,Sheet1!S71_A2SubCode,$AC:$AC,Sheet1!S71_ItemType,$AD:$AD)","v":0},{"$f":"SUMIFS(Sheet1!S71_OY2AdjustedBudget,Sheet1!S71_A2SubCode,$AC:$AC,Sheet1!S71_ItemType,$AD:$AD)","v":0},null,null,null,null,null,null,null,null,null,null,null,null,null,null,null,"1213","IE","IZ"]
["Valuation Service",null,{"$f":"SUMIFS(Sheet1!S71_OriginalBudget,Sheet1!S71_A2SubCode,$AC:$AC,Sheet1!S71_ItemType,$AD:$AD)","v":0},{"$f":"SUMIFS(Sheet1!S71_PreviousBudget,Sheet1!S71_A2SubCode,$AC:$AC,Sheet1!S71_ItemType,$AD:$AD)","v":0},null,null,null,null,{"$f":"SUMIFS(Sheet1!S71_CurrentAdjustments,Sheet1!S71_A2SubCode,$AC:$AC,Sheet1!S71_ItemType,$AD:$AD)","v":0},0,0,{"$f":"SUMIFS(Sheet1!S71_OY1AdjustedBudget,Sheet1!S71_A2SubCode,$AC:$AC,Sheet1!S71_ItemType,$AD:$AD)","v":0},{"$f":"SUMIFS(Sheet1!S71_OY2AdjustedBudget,Sheet1!S71_A2SubCode,$AC:$AC,Sheet1!S71_ItemType,$AD:$AD)","v":0},null,null,null,null,null,null,null,null,null,null,null,null,null,null,null,"1214","IE","IZ"]
["Internal audit",null,{"$f":"SUM(C148:C148)","v":0},0,0,0,0,0,0,0,0,0,0,null,null,null,null,null,null,null,null,null,null,null,null,null,null,null,null,"IE","IZ"]
["Governance Function",null,{"$f":"SUMIFS(Sheet1!S71_OriginalBudget,Sheet1!S71_A2SubCode,$AC:$AC,Sheet1!S71_ItemType,$AD:$AD)","v":0},{"$f":"SUMIFS(Sheet1!S71_PreviousBudget,Sheet1!S71_A2SubCode,$AC:$AC,Sheet1!S71_ItemType,$AD:$AD)","v":0},null,null,null,null,{"$f":"SUMIFS(Sheet1!S71_CurrentAdjustments,Sheet1!S71_A2SubCode,$AC:$AC,Sheet1!S71_ItemType,$AD:$AD)","v":0},0,0,{"$f":"SUMIFS(Sheet1!S71_OY1AdjustedBudget,Sheet1!S71_A2SubCode,$AC:$AC,Sheet1!S71_ItemType,$AD:$AD)","v":0},{"$f":"SUMIFS(Sheet1!S71_OY2AdjustedBudget,Sheet1!S71_A2SubCode,$AC:$AC,Sheet1!S71_ItemType,$AD:$AD)","v":0},null,null,null,null,null,null,null,null,null,null,null,null,null,null,null,"1301","IE","IZ"]
["Community and public safety",null,{"$f":"C150+C172+C178+C187+C190","v":42760547},46182903,0,0,0,0,0,0,46182903,{"$f":"L150+L172+L178+L187+L190","v":43973061},{"$f":"M150+M172+M178+M187+M190","v":46271407},null,null,null,null,null,null,null,null,null,null,null,null,null,null,null,null,"IE","IZ"]
["Community and social services",null,{"$f":"SUM(C151:C171)","v":30811229},30452711,0,0,0,0,0,0,30452711,{"$f":"SUM(L151:L171)","v":31707493},{"$f":"SUM(M151:M171)","v":33069256},null,null,null,null,null,null,null,null,null,null,null,null,null,null,null,null,"IE","IZ"]
["Aged Care",null,{"$f":"SUMIFS(Sheet1!S71_OriginalBudget,Sheet1!S71_A2SubCode,$AC:$AC,Sheet1!S71_ItemType,$AD:$AD)","v":0},{"$f":"SUMIFS(Sheet1!S71_PreviousBudget,Sheet1!S71_A2SubCode,$AC:$AC,Sheet1!S71_ItemType,$AD:$AD)","v":0},null,null,null,null,{"$f":"SUMIFS(Sheet1!S71_CurrentAdjustments,Sheet1!S71_A2SubCode,$AC:$AC,Sheet1!S71_ItemType,$AD:$AD)","v":0},0,0,{"$f":"SUMIFS(Sheet1!S71_OY1AdjustedBudget,Sheet1!S71_A2SubCode,$AC:$AC,Sheet1!S71_ItemType,$AD:$AD)","v":0},{"$f":"SUMIFS(Sheet1!S71_OY2AdjustedBudget,Sheet1!S71_A2SubCode,$AC:$AC,Sheet1!S71_ItemType,$AD:$AD)","v":0},null,null,null,null,null,null,null,null,null,null,null,null,null,null,null,"2101","IE","IZ"]
["Agricultural",null,{"$f":"SUMIFS(Sheet1!S71_OriginalBudget,Sheet1!S71_A2SubCode,$AC:$AC,Sheet1!S71_ItemType,$AD:$AD)","v":0},{"$f":"SUMIFS(Sheet1!S71_PreviousBudget,Sheet1!S71_A2SubCode,$AC:$AC,Sheet1!S71_ItemType,$AD:$AD)","v":0},null,null,null,null,{"$f":"SUMIFS(Sheet1!S71_CurrentAdjustments,Sheet1!S71_A2SubCode,$AC:$AC,Sheet1!S71_ItemType,$AD:$AD)","v":0},0,0,{"$f":"SUMIFS(Sheet1!S71_OY1AdjustedBudget,Sheet1!S71_A2SubCode,$AC:$AC,Sheet1!S71_ItemType,$AD:$AD)","v":0},{"$f":"SUMIFS(Sheet1!S71_OY2AdjustedBudget,Sheet1!S71_A2SubCode,$AC:$AC,Sheet1!S71_ItemType,$AD:$AD)","v":0},null,null,null,null,null,null,null,null,null,null,null,null,null,null,null,"2102","IE","IZ"]
["Animal Care and Diseases",null,{"$f":"SUMIFS(Sheet1!S71_OriginalBudget,Sheet1!S71_A2SubCode,$AC:$AC,Sheet1!S71_ItemType,$AD:$AD)","v":434780},{"$f":"SUMIFS(Sheet1!S71_PreviousBudget,Sheet1!S71_A2SubCode,$AC:$AC,Sheet1!S71_ItemType,$AD:$AD)","v":434780},null,null,null,null,{"$f":"SUMIFS(Sheet1!S71_CurrentAdjustments,Sheet1!S71_A2SubCode,$AC:$AC,Sheet1!S71_ItemType,$AD:$AD)","v":0},0,434780,{"$f":"SUMIFS(Sheet1!S71_OY1AdjustedBudget,Sheet1!S71_A2SubCode,$AC:$AC,Sheet1!S71_ItemType,$AD:$AD)","v":454780},{"$f":"SUMIFS(Sheet1!S71_OY2AdjustedBudget,Sheet1!S71_A2SubCode,$AC:$AC,Sheet1!S71_ItemType,$AD:$AD)","v":475700},null,null,null,null,null,null,null,null,null,null,null,null,null,null,null,"2103","IE","IZ"]
["Cemeteries, Funeral Parlours and Crematoriums",null,{"$f":"SUMIFS(Sheet1!S71_OriginalBudget,Sheet1!S71_A2SubCode,$AC:$AC,Sheet1!S71_ItemType,$AD:$AD)","v":550000},{"$f":"SUMIFS(Sheet1!S71_PreviousBudget,Sheet1!S71_A2SubCode,$AC:$AC,Sheet1!S71_ItemType,$AD:$AD)","v":350000},null,null,null,null,{"$f":"SUMIFS(Sheet1!S71_CurrentAdjustments,Sheet1!S71_A2SubCode,$AC:$AC,Sheet1!S71_ItemType,$AD:$AD)","v":0},0,350000,{"$f":"SUMIFS(Sheet1!S71_OY1AdjustedBudget,Sheet1!S71_A2SubCode,$AC:$AC,Sheet1!S71_ItemType,$AD:$AD)","v":575300},{"$f":"SUMIFS(Sheet1!S71_OY2AdjustedBudget,Sheet1!S71_A2SubCode,$AC:$AC,Sheet1!S71_ItemType,$AD:$AD)","v":601760},null,null,null,null,null,null,null,null,null,null,null,null,null,null,null,"2104","IE","IZ"]
["Child Care Facilities",null,{"$f":"SUMIFS(Sheet1!S71_OriginalBudget,Sheet1!S71_A2SubCode,$AC:$AC,Sheet1!S71_ItemType,$AD:$AD)","v":0},{"$f":"SUMIFS(Sheet1!S71_PreviousBudget,Sheet1!S71_A2SubCode,$AC:$AC,Sheet1!S71_ItemType,$AD:$AD)","v":0},null,null,null,null,{"$f":"SUMIFS(Sheet1!S71_CurrentAdjustments,Sheet1!S71_A2SubCode,$AC:$AC,Sheet1!S71_ItemType,$AD:$AD)","v":0},0,0,{"$f":"SUMIFS(Sheet1!S71_OY1AdjustedBudget,Sheet1!S71_A2SubCode,$AC:$AC,Sheet1!S71_ItemType,$AD:$AD)","v":0},{"$f":"SUMIFS(Sheet1!S71_OY2AdjustedBudget,Sheet1!S71_A2SubCode,$AC:$AC,Sheet1!S71_ItemType,$AD:$AD)","v":0},null,null,null,null,null,null,null,null,null,null,null,null,null,null,null,"2105","IE","IZ"]
["Community Halls and Facilities",null,{"$f":"SUMIFS(Sheet1!S71_OriginalBudget,Sheet1!S71_A2SubCode,$AC:$AC,Sheet1!S71_ItemType,$AD:$AD)","v":22423453},{"$f":"SUMIFS(Sheet1!S71_PreviousBudget,Sheet1!S71_A2SubCode,$AC:$AC,Sheet1!S71_ItemType,$AD:$AD)","v":22692768},null,null,null,null,{"$f":"SUMIFS(Sheet1!S71_CurrentAdjustments,Sheet1!S71_A2SubCode,$AC:$AC,Sheet1!S71_ItemType,$AD:$AD)","v":0},0,22692768,{"$f":"SUMIFS(Sheet1!S71_OY1AdjustedBudget,Sheet1!S71_A2SubCode,$AC:$AC,Sheet1!S71_ItemType,$AD:$AD)","v":22944638},{"$f":"SUMIFS(Sheet1!S71_OY2AdjustedBudget,Sheet1!S71_A2SubCode,$AC:$AC,Sheet1!S71_ItemType,$AD:$AD)","v":23908680},null,null,null,null,null,null,null,null,null,null,null,null,null,null,null,"2106","IE","IZ"]
["Consumer Protection",null,{"$f":"SUMIFS(Sheet1!S71_OriginalBudget,Sheet1!S71_A2SubCode,$AC:$AC,Sheet1!S71_ItemType,$AD:$AD)","v":0},{"$f":"SUMIFS(Sheet1!S71_PreviousBudget,Sheet1!S71_A2SubCode,$AC:$AC,Sheet1!S71_ItemType,$AD:$AD)","v":0},null,null,null,null,{"$f":"SUMIFS(Sheet1!S71_CurrentAdjustments,Sheet1!S71_A2SubCode,$AC:$AC,Sheet1!S71_ItemType,$AD:$AD)","v":0},0,0,{"$f":"SUMIFS(Sheet1!S71_OY1AdjustedBudget,Sheet1!S71_A2SubCode,$AC:$AC,Sheet1!S71_ItemType,$AD:$AD)","v":0},{"$f":"SUMIFS(Sheet1!S71_OY2AdjustedBudget,Sheet1!S71_A2SubCode,$AC:$AC,Sheet1!S71_ItemType,$AD:$AD)","v":0},null,null,null,null,null,null,null,null,null,null,null,null,null,null,null,"2107","IE","IZ"]
["Cultural Matters",null,{"$f":"SUMIFS(Sheet1!S71_OriginalBudget,Sheet1!S71_A2SubCode,$AC:$AC,Sheet1!S71_ItemType,$AD:$AD)","v":0},{"$f":"SUMIFS(Sheet1!S71_PreviousBudget,Sheet1!S71_A2SubCode,$AC:$AC,Sheet1!S71_ItemType,$AD:$AD)","v":0},null,null,null,null,{"$f":"SUMIFS(Sheet1!S71_CurrentAdjustments,Sheet1!S71_A2SubCode,$AC:$AC,Sheet1!S71_ItemType,$AD:$AD)","v":0},0,0,{"$f":"SUMIFS(Sheet1!S71_OY1AdjustedBudget,Sheet1!S71_A2SubCode,$AC:$AC,Sheet1!S71_ItemType,$AD:$AD)","v":0},{"$f":"SUMIFS(Sheet1!S71_OY2AdjustedBudget,Sheet1!S71_A2SubCode,$AC:$AC,Sheet1!S71_ItemType,$AD:$AD)","v":0},null,null,null,null,null,null,null,null,null,null,null,null,null,null,null,"2108","IE","IZ"]
["Disaster Management",null,{"$f":"SUMIFS(Sheet1!S71_OriginalBudget,Sheet1!S71_A2SubCode,$AC:$AC,Sheet1!S71_ItemType,$AD:$AD)","v":2236956},{"$f":"SUMIFS(Sheet1!S71_PreviousBudget,Sheet1!S71_A2SubCode,$AC:$AC,Sheet1!S71_ItemType,$AD:$AD)","v":1828081},null,null,null,null,{"$f":"SUMIFS(Sheet1!S71_CurrentAdjustments,Sheet1!S71_A2SubCode,$AC:$AC,Sheet1!S71_ItemType,$AD:$AD)","v":0},0,1828081,{"$f":"SUMIFS(Sheet1!S71_OY1AdjustedBudget,Sheet1!S71_A2SubCode,$AC:$AC,Sheet1!S71_ItemType,$AD:$AD)","v":2339855},{"$f":"SUMIFS(Sheet1!S71_OY2AdjustedBudget,Sheet1!S71_A2SubCode,$AC:$AC,Sheet1!S71_ItemType,$AD:$AD)","v":2447487},null,null,null,null,null,null,null,null,null,null,null,null,null,null,null,"2109","IE","IZ"]
["Education",null,{"$f":"SUMIFS(Sheet1!S71_OriginalBudget,Sheet1!S71_A2SubCode,$AC:$AC,Sheet1!S71_ItemType,$AD:$AD)","v":0},{"$f":"SUMIFS(Sheet1!S71_PreviousBudget,Sheet1!S71_A2SubCode,$AC:$AC,Sheet1!S71_ItemType,$AD:$AD)","v":0},null,null,null,null,{"$f":"SUMIFS(Sheet1!S71_CurrentAdjustments,Sheet1!S71_A2SubCode,$AC:$AC,Sheet1!S71_ItemType,$AD:$AD)","v":0},0,0,{"$f":"SUMIFS(Sheet1!S71_OY1AdjustedBudget,Sheet1!S71_A2SubCode,$AC:$AC,Sheet1!S71_ItemType,$AD:$AD)","v":0},{"$f":"SUMIFS(Sheet1!S71_OY2AdjustedBudget,Sheet1!S71_A2SubCode,$AC:$AC,Sheet1!S71_ItemType,$AD:$AD)","v":0},null,null,null,null,null,null,null,null,null,null,null,null,null,null,null,"2110","IE","IZ"]
["Indigenous and Customary Law",null,{"$f":"SUMIFS(Sheet1!S71_OriginalBudget,Sheet1!S71_A2SubCode,$AC:$AC,Sheet1!S71_ItemType,$AD:$AD)","v":0},{"$f":"SUMIFS(Sheet1!S71_PreviousBudget,Sheet1!S71_A2SubCode,$AC:$AC,Sheet1!S71_ItemType,$AD:$AD)","v":0},null,null,null,null,{"$f":"SUMIFS(Sheet1!S71_CurrentAdjustments,Sheet1!S71_A2SubCode,$AC:$AC,Sheet1!S71_ItemType,$AD:$AD)","v":0},0,0,{"$f":"SUMIFS(Sheet1!S71_OY1AdjustedBudget,Sheet1!S71_A2SubCode,$AC:$AC,Sheet1!S71_ItemType,$AD:$AD)","v":0},{"$f":"SUMIFS(Sheet1!S71_OY2AdjustedBudget,Sheet1!S71_A2SubCode,$AC:$AC,Sheet1!S71_ItemType,$AD:$AD)","v":0},null,null,null,null,null,null,null,null,null,null,null,null,null,null,null,"2111","IE","IZ"]
["Industrial Promotion",null,{"$f":"SUMIFS(Sheet1!S71_OriginalBudget,Sheet1!S71_A2SubCode,$AC:$AC,Sheet1!S71_ItemType,$AD:$AD)","v":0},{"$f":"SUMIFS(Sheet1!S71_PreviousBudget,Sheet1!S71_A2SubCode,$AC:$AC,Sheet1!S71_ItemType,$AD:$AD)","v":0},null,null,null,null,{"$f":"SUMIFS(Sheet1!S71_CurrentAdjustments,Sheet1!S71_A2SubCode,$AC:$AC,Sheet1!S71_ItemType,$AD:$AD)","v":0},0,0,{"$f":"SUMIFS(Sheet1!S71_OY1AdjustedBudget,Sheet1!S71_A2SubCode,$AC:$AC,Sheet1!S71_ItemType,$AD:$AD)","v":0},{"$f":"SUMIFS(Sheet1!S71_OY2AdjustedBudget,Sheet1!S71_A2SubCode,$AC:$AC,Sheet1!S71_ItemType,$AD:$AD)","v":0},null,null,null,null,null,null,null,null,null,null,null,null,null,null,null,"2112","IE","IZ"]
["Language Policy",null,{"$f":"SUMIFS(Sheet1!S71_OriginalBudget,Sheet1!S71_A2SubCode,$AC:$AC,Sheet1!S71_ItemType,$AD:$AD)","v":0},{"$f":"SUMIFS(Sheet1!S71_PreviousBudget,Sheet1!S71_A2SubCode,$AC:$AC,Sheet1!S71_ItemType,$AD:$AD)","v":0},null,null,null,null,{"$f":"SUMIFS(Sheet1!S71_CurrentAdjustments,Sheet1!S71_A2SubCode,$AC:$AC,Sheet1!S71_ItemType,$AD:$AD)","v":0},0,0,{"$f":"SUMIFS(Sheet1!S71_OY1AdjustedBudget,Sheet1!S71_A2SubCode,$AC:$AC,Sheet1!S71_ItemType,$AD:$AD)","v":0},{"$f":"SUMIFS(Sheet1!S71_OY2AdjustedBudget,Sheet1!S71_A2SubCode,$AC:$AC,Sheet1!S71_ItemType,$AD:$AD)","v":0},null,null,null,null,null,null,null,null,null,null,null,null,null,null,null,"2113","IE","IZ"]
["Libraries and Archives",null,{"$f":"SUMIFS(Sheet1!S71_OriginalBudget,Sheet1!S71_A2SubCode,$AC:$AC,Sheet1!S71_ItemType,$AD:$AD)","v":5076040},{"$f":"SUMIFS(Sheet1!S71_PreviousBudget,Sheet1!S71_A2SubCode,$AC:$AC,Sheet1!S71_ItemType,$AD:$AD)","v":5072182},null,null,null,null,{"$f":"SUMIFS(Sheet1!S71_CurrentAdjustments,Sheet1!S71_A2SubCode,$AC:$AC,Sheet1!S71_ItemType,$AD:$AD)","v":0},0,5072182,{"$f":"SUMIFS(Sheet1!S71_OY1AdjustedBudget,Sheet1!S71_A2SubCode,$AC:$AC,Sheet1!S71_ItemType,$AD:$AD)","v":5298780},{"$f":"SUMIFS(Sheet1!S71_OY2AdjustedBudget,Sheet1!S71_A2SubCode,$AC:$AC,Sheet1!S71_ItemType,$AD:$AD)","v":5537169},null,null,null,null,null,null,null,null,null,null,null,null,null,null,null,"2114","IE","IZ"]
["Literacy Programmes",null,{"$f":"SUMIFS(Sheet1!S71_OriginalBudget,Sheet1!S71_A2SubCode,$AC:$AC,Sheet1!S71_ItemType,$AD:$AD)","v":90000},{"$f":"SUMIFS(Sheet1!S71_PreviousBudget,Sheet1!S71_A2SubCode,$AC:$AC,Sheet1!S71_ItemType,$AD:$AD)","v":74900},null,null,null,null,{"$f":"SUMIFS(Sheet1!S71_CurrentAdjustments,Sheet1!S71_A2SubCode,$AC:$AC,Sheet1!S71_ItemType,$AD:$AD)","v":0},0,74900,{"$f":"SUMIFS(Sheet1!S71_OY1AdjustedBudget,Sheet1!S71_A2SubCode,$AC:$AC,Sheet1!S71_ItemType,$AD:$AD)","v":94140},{"$f":"SUMIFS(Sheet1!S71_OY2AdjustedBudget,Sheet1!S71_A2SubCode,$AC:$AC,Sheet1!S71_ItemType,$AD:$AD)","v":98460},null,null,null,null,null,null,null,null,null,null,null,null,null,null,null,"2115","IE","IZ"]
["Media Services",null,{"$f":"SUMIFS(Sheet1!S71_OriginalBudget,Sheet1!S71_A2SubCode,$AC:$AC,Sheet1!S71_ItemType,$AD:$AD)","v":0},{"$f":"SUMIFS(Sheet1!S71_PreviousBudget,Sheet1!S71_A2SubCode,$AC:$AC,Sheet1!S71_ItemType,$AD:$AD)","v":0},null,null,null,null,{"$f":"SUMIFS(Sheet1!S71_CurrentAdjustments,Sheet1!S71_A2SubCode,$AC:$AC,Sheet1!S71_ItemType,$AD:$AD)","v":0},0,0,{"$f":"SUMIFS(Sheet1!S71_OY1AdjustedBudget,Sheet1!S71_A2SubCode,$AC:$AC,Sheet1!S71_ItemType,$AD:$AD)","v":0},{"$f":"SUMIFS(Sheet1!S71_OY2AdjustedBudget,Sheet1!S71_A2SubCode,$AC:$AC,Sheet1!S71_ItemType,$AD:$AD)","v":0},null,null,null,null,null,null,null,null,null,null,null,null,null,null,null,"2116","IE","IZ"]
["Museums and Art Galleries",null,{"$f":"SUMIFS(Sheet1!S71_OriginalBudget,Sheet1!S71_A2SubCode,$AC:$AC,Sheet1!S71_ItemType,$AD:$AD)","v":0},{"$f":"SUMIFS(Sheet1!S71_PreviousBudget,Sheet1!S71_A2SubCode,$AC:$AC,Sheet1!S71_ItemType,$AD:$AD)","v":0},null,null,null,null,{"$f":"SUMIFS(Sheet1!S71_CurrentAdjustments,Sheet1!S71_A2SubCode,$AC:$AC,Sheet1!S71_ItemType,$AD:$AD)","v":0},0,0,{"$f":"SUMIFS(Sheet1!S71_OY1AdjustedBudget,Sheet1!S71_A2SubCode,$AC:$AC,Sheet1!S71_ItemType,$AD:$AD)","v":0},{"$f":"SUMIFS(Sheet1!S71_OY2AdjustedBudget,Sheet1!S71_A2SubCode,$AC:$AC,Sheet1!S71_ItemType,$AD:$AD)","v":0},null,null,null,null,null,null,null,null,null,null,null,null,null,null,null,"2117","IE","IZ"]
["Population Development",null,{"$f":"SUMIFS(Sheet1!S71_OriginalBudget,Sheet1!S71_A2SubCode,$AC:$AC,Sheet1!S71_ItemType,$AD:$AD)","v":0},{"$f":"SUMIFS(Sheet1!S71_PreviousBudget,Sheet1!S71_A2SubCode,$AC:$AC,Sheet1!S71_ItemType,$AD:$AD)","v":0},null,null,null,null,{"$f":"SUMIFS(Sheet1!S71_CurrentAdjustments,Sheet1!S71_A2SubCode,$AC:$AC,Sheet1!S71_ItemType,$AD:$AD)","v":0},0,0,{"$f":"SUMIFS(Sheet1!S71_OY1AdjustedBudget,Sheet1!S71_A2SubCode,$AC:$AC,Sheet1!S71_ItemType,$AD:$AD)","v":0},{"$f":"SUMIFS(Sheet1!S71_OY2AdjustedBudget,Sheet1!S71_A2SubCode,$AC:$AC,Sheet1!S71_ItemType,$AD:$AD)","v":0},null,null,null,null,null,null,null,null,null,null,null,null,null,null,null,"2118","IE","IZ"]
["Provincial Cultural Matters",null,{"$f":"SUMIFS(Sheet1!S71_OriginalBudget,Sheet1!S71_A2SubCode,$AC:$AC,Sheet1!S71_ItemType,$AD:$AD)","v":0},{"$f":"SUMIFS(Sheet1!S71_PreviousBudget,Sheet1!S71_A2SubCode,$AC:$AC,Sheet1!S71_ItemType,$AD:$AD)","v":0},null,null,null,null,{"$f":"SUMIFS(Sheet1!S71_CurrentAdjustments,Sheet1!S71_A2SubCode,$AC:$AC,Sheet1!S71_ItemType,$AD:$AD)","v":0},0,0,{"$f":"SUMIFS(Sheet1!S71_OY1AdjustedBudget,Sheet1!S71_A2SubCode,$AC:$AC,Sheet1!S71_ItemType,$AD:$AD)","v":0},{"$f":"SUMIFS(Sheet1!S71_OY2AdjustedBudget,Sheet1!S71_A2SubCode,$AC:$AC,Sheet1!S71_ItemType,$AD:$AD)","v":0},null,null,null,null,null,null,null,null,null,null,null,null,null,null,null,"2119","IE","IZ"]
["Theatres",null,{"$f":"SUMIFS(Sheet1!S71_OriginalBudget,Sheet1!S71_A2SubCode,$AC:$AC,Sheet1!S71_ItemType,$AD:$AD)","v":0},{"$f":"SUMIFS(Sheet1!S71_PreviousBudget,Sheet1!S71_A2SubCode,$AC:$AC,Sheet1!S71_ItemType,$AD:$AD)","v":0},null,null,null,null,{"$f":"SUMIFS(Sheet1!S71_CurrentAdjustments,Sheet1!S71_A2SubCode,$AC:$AC,Sheet1!S71_ItemType,$AD:$AD)","v":0},0,0,{"$f":"SUMIFS(Sheet1!S71_OY1AdjustedBudget,Sheet1!S71_A2SubCode,$AC:$AC,Sheet1!S71_ItemType,$AD:$AD)","v":0},{"$f":"SUMIFS(Sheet1!S71_OY2AdjustedBudget,Sheet1!S71_A2SubCode,$AC:$AC,Sheet1!S71_ItemType,$AD:$AD)","v":0},null,null,null,null,null,null,null,null,null,null,null,null,null,null,null,"2120","IE","IZ"]
["Zoo's",null,{"$f":"SUMIFS(Sheet1!S71_OriginalBudget,Sheet1!S71_A2SubCode,$AC:$AC,Sheet1!S71_ItemType,$AD:$AD)","v":0},{"$f":"SUMIFS(Sheet1!S71_PreviousBudget,Sheet1!S71_A2SubCode,$AC:$AC,Sheet1!S71_ItemType,$AD:$AD)","v":0},null,null,null,null,{"$f":"SUMIFS(Sheet1!S71_CurrentAdjustments,Sheet1!S71_A2SubCode,$AC:$AC,Sheet1!S71_ItemType,$AD:$AD)","v":0},0,0,{"$f":"SUMIFS(Sheet1!S71_OY1AdjustedBudget,Sheet1!S71_A2SubCode,$AC:$AC,Sheet1!S71_ItemType,$AD:$AD)","v":0},{"$f":"SUMIFS(Sheet1!S71_OY2AdjustedBudget,Sheet1!S71_A2SubCode,$AC:$AC,Sheet1!S71_ItemType,$AD:$AD)","v":0},null,null,null,null,null,null,null,null,null,null,null,null,null,null,null,"2121","IE","IZ"]
["Sport and recreation",null,{"$f":"SUM(C173:C177)","v":10029753},13714179,0,0,0,0,0,0,13714179,{"$f":"SUM(L173:L177)","v":10257703},{"$f":"SUM(M173:M177)","v":11101933},null,null,null,null,null,null,null,null,null,null,null,null,null,null,null,null,"IE","IZ"]
["Beaches and Jetties ",null,{"$f":"SUMIFS(Sheet1!S71_OriginalBudget,Sheet1!S71_A2SubCode,$AC:$AC,Sheet1!S71_ItemType,$AD:$AD)","v":165213},{"$f":"SUMIFS(Sheet1!S71_PreviousBudget,Sheet1!S71_A2SubCode,$AC:$AC,Sheet1!S71_ItemType,$AD:$AD)","v":214783},null,null,null,null,{"$f":"SUMIFS(Sheet1!S71_CurrentAdjustments,Sheet1!S71_A2SubCode,$AC:$AC,Sheet1!S71_ItemType,$AD:$AD)","v":0},0,214783,{"$f":"SUMIFS(Sheet1!S71_OY1AdjustedBudget,Sheet1!S71_A2SubCode,$AC:$AC,Sheet1!S71_ItemType,$AD:$AD)","v":172813},{"$f":"SUMIFS(Sheet1!S71_OY2AdjustedBudget,Sheet1!S71_A2SubCode,$AC:$AC,Sheet1!S71_ItemType,$AD:$AD)","v":180766},null,null,null,null,null,null,null,null,null,null,null,null,null,null,null,"2201","IE","IZ"]
["Casinos, Racing, Gambling, Wagering",null,{"$f":"SUMIFS(Sheet1!S71_OriginalBudget,Sheet1!S71_A2SubCode,$AC:$AC,Sheet1!S71_ItemType,$AD:$AD)","v":0},{"$f":"SUMIFS(Sheet1!S71_PreviousBudget,Sheet1!S71_A2SubCode,$AC:$AC,Sheet1!S71_ItemType,$AD:$AD)","v":0},null,null,null,null,{"$f":"SUMIFS(Sheet1!S71_CurrentAdjustments,Sheet1!S71_A2SubCode,$AC:$AC,Sheet1!S71_ItemType,$AD:$AD)","v":0},0,0,{"$f":"SUMIFS(Sheet1!S71_OY1AdjustedBudget,Sheet1!S71_A2SubCode,$AC:$AC,Sheet1!S71_ItemType,$AD:$AD)","v":0},{"$f":"SUMIFS(Sheet1!S71_OY2AdjustedBudget,Sheet1!S71_A2SubCode,$AC:$AC,Sheet1!S71_ItemType,$AD:$AD)","v":0},null,null,null,null,null,null,null,null,null,null,null,null,null,null,null,"2202","IE","IZ"]
["Community Parks (including Nurseries)",null,{"$f":"SUMIFS(Sheet1!S71_OriginalBudget,Sheet1!S71_A2SubCode,$AC:$AC,Sheet1!S71_ItemType,$AD:$AD)","v":5101310},{"$f":"SUMIFS(Sheet1!S71_PreviousBudget,Sheet1!S71_A2SubCode,$AC:$AC,Sheet1!S71_ItemType,$AD:$AD)","v":8161945},null,null,null,null,{"$f":"SUMIFS(Sheet1!S71_CurrentAdjustments,Sheet1!S71_A2SubCode,$AC:$AC,Sheet1!S71_ItemType,$AD:$AD)","v":0},0,8161945,{"$f":"SUMIFS(Sheet1!S71_OY1AdjustedBudget,Sheet1!S71_A2SubCode,$AC:$AC,Sheet1!S71_ItemType,$AD:$AD)","v":5097970},{"$f":"SUMIFS(Sheet1!S71_OY2AdjustedBudget,Sheet1!S71_A2SubCode,$AC:$AC,Sheet1!S71_ItemType,$AD:$AD)","v":5700240},null,null,null,null,null,null,null,null,null,null,null,null,null,null,null,"2203","IE","IZ"]
["Recreational Facilities",null,{"$f":"SUMIFS(Sheet1!S71_OriginalBudget,Sheet1!S71_A2SubCode,$AC:$AC,Sheet1!S71_ItemType,$AD:$AD)","v":2644100},{"$f":"SUMIFS(Sheet1!S71_PreviousBudget,Sheet1!S71_A2SubCode,$AC:$AC,Sheet1!S71_ItemType,$AD:$AD)","v":2803321},null,null,null,null,{"$f":"SUMIFS(Sheet1!S71_CurrentAdjustments,Sheet1!S71_A2SubCode,$AC:$AC,Sheet1!S71_ItemType,$AD:$AD)","v":0},0,2803321,{"$f":"SUMIFS(Sheet1!S71_OY1AdjustedBudget,Sheet1!S71_A2SubCode,$AC:$AC,Sheet1!S71_ItemType,$AD:$AD)","v":2765710},{"$f":"SUMIFS(Sheet1!S71_OY2AdjustedBudget,Sheet1!S71_A2SubCode,$AC:$AC,Sheet1!S71_ItemType,$AD:$AD)","v":2892950},null,null,null,null,null,null,null,null,null,null,null,null,null,null,null,"2204","IE","IZ"]
["Sports Grounds and Stadiums",null,{"$f":"SUMIFS(Sheet1!S71_OriginalBudget,Sheet1!S71_A2SubCode,$AC:$AC,Sheet1!S71_ItemType,$AD:$AD)","v":2119130},{"$f":"SUMIFS(Sheet1!S71_PreviousBudget,Sheet1!S71_A2SubCode,$AC:$AC,Sheet1!S71_ItemType,$AD:$AD)","v":2534130},null,null,null,null,{"$f":"SUMIFS(Sheet1!S71_CurrentAdjustments,Sheet1!S71_A2SubCode,$AC:$AC,Sheet1!S71_ItemType,$AD:$AD)","v":0},0,2534130,{"$f":"SUMIFS(Sheet1!S71_OY1AdjustedBudget,Sheet1!S71_A2SubCode,$AC:$AC,Sheet1!S71_ItemType,$AD:$AD)","v":2221210},{"$f":"SUMIFS(Sheet1!S71_OY2AdjustedBudget,Sheet1!S71_A2SubCode,$AC:$AC,Sheet1!S71_ItemType,$AD:$AD)","v":2327977},null,null,null,null,null,null,null,null,null,null,null,null,null,null,null,"2205","IE","IZ"]
["Public safety",null,{"$f":"SUM(C179:C186)","v":1889565},1746935,0,0,0,0,0,0,1746935,{"$f":"SUM(L179:L186)","v":1976485},{"$f":"SUM(M179:M186)","v":2067395},null,null,null,null,null,null,null,null,null,null,null,null,null,null,null,null,"IE","IZ"]
["Civil Defence",null,{"$f":"SUMIFS(Sheet1!S71_OriginalBudget,Sheet1!S71_A2SubCode,$AC:$AC,Sheet1!S71_ItemType,$AD:$AD)","v":0},{"$f":"SUMIFS(Sheet1!S71_PreviousBudget,Sheet1!S71_A2SubCode,$AC:$AC,Sheet1!S71_ItemType,$AD:$AD)","v":0},null,null,null,null,{"$f":"SUMIFS(Sheet1!S71_CurrentAdjustments,Sheet1!S71_A2SubCode,$AC:$AC,Sheet1!S71_ItemType,$AD:$AD)","v":0},0,0,{"$f":"SUMIFS(Sheet1!S71_OY1AdjustedBudget,Sheet1!S71_A2SubCode,$AC:$AC,Sheet1!S71_ItemType,$AD:$AD)","v":0},{"$f":"SUMIFS(Sheet1!S71_OY2AdjustedBudget,Sheet1!S71_A2SubCode,$AC:$AC,Sheet1!S71_ItemType,$AD:$AD)","v":0},null,null,null,null,null,null,null,null,null,null,null,null,null,null,null,"2301","IE","IZ"]
["Cleansing",null,{"$f":"SUMIFS(Sheet1!S71_OriginalBudget,Sheet1!S71_A2SubCode,$AC:$AC,Sheet1!S71_ItemType,$AD:$AD)","v":0},{"$f":"SUMIFS(Sheet1!S71_PreviousBudget,Sheet1!S71_A2SubCode,$AC:$AC,Sheet1!S71_ItemType,$AD:$AD)","v":0},null,null,null,null,{"$f":"SUMIFS(Sheet1!S71_CurrentAdjustments,Sheet1!S71_A2SubCode,$AC:$AC,Sheet1!S71_ItemType,$AD:$AD)","v":0},0,0,{"$f":"SUMIFS(Sheet1!S71_OY1AdjustedBudget,Sheet1!S71_A2SubCode,$AC:$AC,Sheet1!S71_ItemType,$AD:$AD)","v":0},{"$f":"SUMIFS(Sheet1!S71_OY2AdjustedBudget,Sheet1!S71_A2SubCode,$AC:$AC,Sheet1!S71_ItemType,$AD:$AD)","v":0},null,null,null,null,null,null,null,null,null,null,null,null,null,null,null,"2302","IE","IZ"]
["Control of Public Nuisances",null,{"$f":"SUMIFS(Sheet1!S71_OriginalBudget,Sheet1!S71_A2SubCode,$AC:$AC,Sheet1!S71_ItemType,$AD:$AD)","v":0},{"$f":"SUMIFS(Sheet1!S71_PreviousBudget,Sheet1!S71_A2SubCode,$AC:$AC,Sheet1!S71_ItemType,$AD:$AD)","v":0},null,null,null,null,{"$f":"SUMIFS(Sheet1!S71_CurrentAdjustments,Sheet1!S71_A2SubCode,$AC:$AC,Sheet1!S71_ItemType,$AD:$AD)","v":0},0,0,{"$f":"SUMIFS(Sheet1!S71_OY1AdjustedBudget,Sheet1!S71_A2SubCode,$AC:$AC,Sheet1!S71_ItemType,$AD:$AD)","v":0},{"$f":"SUMIFS(Sheet1!S71_OY2AdjustedBudget,Sheet1!S71_A2SubCode,$AC:$AC,Sheet1!S71_ItemType,$AD:$AD)","v":0},null,null,null,null,null,null,null,null,null,null,null,null,null,null,null,"2303","IE","IZ"]
["Fencing and Fences ",null,{"$f":"SUMIFS(Sheet1!S71_OriginalBudget,Sheet1!S71_A2SubCode,$AC:$AC,Sheet1!S71_ItemType,$AD:$AD)","v":0},{"$f":"SUMIFS(Sheet1!S71_PreviousBudget,Sheet1!S71_A2SubCode,$AC:$AC,Sheet1!S71_ItemType,$AD:$AD)","v":0},null,null,null,null,{"$f":"SUMIFS(Sheet1!S71_CurrentAdjustments,Sheet1!S71_A2SubCode,$AC:$AC,Sheet1!S71_ItemType,$AD:$AD)","v":0},0,0,{"$f":"SUMIFS(Sheet1!S71_OY1AdjustedBudget,Sheet1!S71_A2SubCode,$AC:$AC,Sheet1!S71_ItemType,$AD:$AD)","v":0},{"$f":"SUMIFS(Sheet1!S71_OY2AdjustedBudget,Sheet1!S71_A2SubCode,$AC:$AC,Sheet1!S71_ItemType,$AD:$AD)","v":0},null,null,null,null,null,null,null,null,null,null,null,null,null,null,null,"2304","IE","IZ"]
["Fire Fighting and Protection",null,{"$f":"SUMIFS(Sheet1!S71_OriginalBudget,Sheet1!S71_A2SubCode,$AC:$AC,Sheet1!S71_ItemType,$AD:$AD)","v":0},{"$f":"SUMIFS(Sheet1!S71_PreviousBudget,Sheet1!S71_A2SubCode,$AC:$AC,Sheet1!S71_ItemType,$AD:$AD)","v":0},null,null,null,null,{"$f":"SUMIFS(Sheet1!S71_CurrentAdjustments,Sheet1!S71_A2SubCode,$AC:$AC,Sheet1!S71_ItemType,$AD:$AD)","v":0},0,0,{"$f":"SUMIFS(Sheet1!S71_OY1AdjustedBudget,Sheet1!S71_A2SubCode,$AC:$AC,Sheet1!S71_ItemType,$AD:$AD)","v":0},{"$f":"SUMIFS(Sheet1!S71_OY2AdjustedBudget,Sheet1!S71_A2SubCode,$AC:$AC,Sheet1!S71_ItemType,$AD:$AD)","v":0},null,null,null,null,null,null,null,null,null,null,null,null,null,null,null,"2305","IE","IZ"]
["Licensing and Control of Animals",null,{"$f":"SUMIFS(Sheet1!S71_OriginalBudget,Sheet1!S71_A2SubCode,$AC:$AC,Sheet1!S71_ItemType,$AD:$AD)","v":0},{"$f":"SUMIFS(Sheet1!S71_PreviousBudget,Sheet1!S71_A2SubCode,$AC:$AC,Sheet1!S71_ItemType,$AD:$AD)","v":0},null,null,null,null,{"$f":"SUMIFS(Sheet1!S71_CurrentAdjustments,Sheet1!S71_A2SubCode,$AC:$AC,Sheet1!S71_ItemType,$AD:$AD)","v":0},{"$f":"SUM(E184:I184)","v":0},{"$f":"IF(D184=0,C184+J184,D184+J184)","v":0},{"$f":"SUMIFS(Sheet1!S71_OY1AdjustedBudget,Sheet1!S71_A2SubCode,$AC:$AC,Sheet1!S71_ItemType,$AD:$AD)","v":0},{"$f":"SUMIFS(Sheet1!S71_OY2AdjustedBudget,Sheet1!S71_A2SubCode,$AC:$AC,Sheet1!S71_ItemType,$AD:$AD)","v":0},null,null,null,null,null,null,null,null,null,null,null,null,null,null,null,"2306","IE","IZ"]
["Police Forces, Traffic and Street Parking Control",null,{"$f":"SUMIFS(Sheet1!S71_OriginalBudget,Sheet1!S71_A2SubCode,$AC:$AC,Sheet1!S71_ItemType,$AD:$AD)","v":1889565},{"$f":"SUMIFS(Sheet1!S71_PreviousBudget,Sheet1!S71_A2SubCode,$AC:$AC,Sheet1!S71_ItemType,$AD:$AD)","v":1746935},null,null,null,null,{"$f":"SUMIFS(Sheet1!S71_CurrentAdjustments,Sheet1!S71_A2SubCode,$AC:$AC,Sheet1!S71_ItemType,$AD:$AD)","v":0},{"$f":"SUM(E185:I185)","v":0},{"$f":"IF(D185=0,C185+J185,D185+J185)","v":1746935},{"$f":"SUMIFS(Sheet1!S71_OY1AdjustedBudget,Sheet1!S71_A2SubCode,$AC:$AC,Sheet1!S71_ItemType,$AD:$AD)","v":1976485},{"$f":"SUMIFS(Sheet1!S71_OY2AdjustedBudget,Sheet1!S71_A2SubCode,$AC:$AC,Sheet1!S71_ItemType,$AD:$AD)","v":2067395},null,null,null,null,null,null,null,null,null,null,null,null,null,null,null,"2307","IE","IZ"]
["Pounds",null,{"$f":"SUMIFS(Sheet1!S71_OriginalBudget,Sheet1!S71_A2SubCode,$AC:$AC,Sheet1!S71_ItemType,$AD:$AD)","v":0},{"$f":"SUMIFS(Sheet1!S71_PreviousBudget,Sheet1!S71_A2SubCode,$AC:$AC,Sheet1!S71_ItemType,$AD:$AD)","v":0},null,null,null,null,{"$f":"SUMIFS(Sheet1!S71_CurrentAdjustments,Sheet1!S71_A2SubCode,$AC:$AC,Sheet1!S71_ItemType,$AD:$AD)","v":0},0,0,{"$f":"SUMIFS(Sheet1!S71_OY1AdjustedBudget,Sheet1!S71_A2SubCode,$AC:$AC,Sheet1!S71_ItemType,$AD:$AD)","v":0},{"$f":"SUMIFS(Sheet1!S71_OY2AdjustedBudget,Sheet1!S71_A2SubCode,$AC:$AC,Sheet1!S71_ItemType,$AD:$AD)","v":0},null,null,null,null,null,null,null,null,null,null,null,null,null,null,null,"2308","IE","IZ"]
["Housing",null,{"$f":"SUM(C188:C189)","v":30000},{"$f":"SUM(D188:D189)","v":269078},0,0,0,0,0,0,269078,31380,32823,null,null,null,null,null,null,null,null,null,null,null,null,null,null,null,null,"IE","IZ"]
["Housing",null,{"$f":"SUMIFS(Sheet1!S71_OriginalBudget,Sheet1!S71_A2SubCode,$AC:$AC,Sheet1!S71_ItemType,$AD:$AD)","v":0},{"$f":"SUMIFS(Sheet1!S71_PreviousBudget,Sheet1!S71_A2SubCode,$AC:$AC,Sheet1!S71_ItemType,$AD:$AD)","v":219078},null,null,null,null,{"$f":"SUMIFS(Sheet1!S71_CurrentAdjustments,Sheet1!S71_A2SubCode,$AC:$AC,Sheet1!S71_ItemType,$AD:$AD)","v":0},0,219078,{"$f":"SUMIFS(Sheet1!S71_OY1AdjustedBudget,Sheet1!S71_A2SubCode,$AC:$AC,Sheet1!S71_ItemType,$AD:$AD)","v":0},{"$f":"SUMIFS(Sheet1!S71_OY2AdjustedBudget,Sheet1!S71_A2SubCode,$AC:$AC,Sheet1!S71_ItemType,$AD:$AD)","v":0},null,null,null,null,null,null,null,null,null,null,null,null,null,null,null,"2401","IE","IZ"]
["Informal Settlements",null,{"$f":"SUMIFS(Sheet1!S71_OriginalBudget,Sheet1!S71_A2SubCode,$AC:$AC,Sheet1!S71_ItemType,$AD:$AD)","v":30000},{"$f":"SUMIFS(Sheet1!S71_PreviousBudget,Sheet1!S71_A2SubCode,$AC:$AC,Sheet1!S71_ItemType,$AD:$AD)","v":50000},null,null,null,null,{"$f":"SUMIFS(Sheet1!S71_CurrentAdjustments,Sheet1!S71_A2SubCode,$AC:$AC,Sheet1!S71_ItemType,$AD:$AD)","v":0},0,50000,{"$f":"SUMIFS(Sheet1!S71_OY1AdjustedBudget,Sheet1!S71_A2SubCode,$AC:$AC,Sheet1!S71_ItemType,$AD:$AD)","v":31380},{"$f":"SUMIFS(Sheet1!S71_OY2AdjustedBudget,Sheet1!S71_A2SubCode,$AC:$AC,Sheet1!S71_ItemType,$AD:$AD)","v":32823},null,null,null,null,null,null,null,null,null,null,null,null,null,null,null,"2402","IE","IZ"]
["Health",null,{"$f":"SUM(C191:C197)","v":0},0,0,0,0,0,0,0,0,{"$f":"SUM(L191:L197)","v":0},{"$f":"SUM(M191:M197)","v":0},null,null,null,null,null,null,null,null,null,null,null,null,null,null,null,null,"IE","IZ"]
["Ambulance",null,{"$f":"SUMIFS(Sheet1!S71_OriginalBudget,Sheet1!S71_A2SubCode,$AC:$AC,Sheet1!S71_ItemType,$AD:$AD)","v":0},{"$f":"SUMIFS(Sheet1!S71_PreviousBudget,Sheet1!S71_A2SubCode,$AC:$AC,Sheet1!S71_ItemType,$AD:$AD)","v":0},null,null,null,null,{"$f":"SUMIFS(Sheet1!S71_CurrentAdjustments,Sheet1!S71_A2SubCode,$AC:$AC,Sheet1!S71_ItemType,$AD:$AD)","v":0},0,0,{"$f":"SUMIFS(Sheet1!S71_OY1AdjustedBudget,Sheet1!S71_A2SubCode,$AC:$AC,Sheet1!S71_ItemType,$AD:$AD)","v":0},{"$f":"SUMIFS(Sheet1!S71_OY2AdjustedBudget,Sheet1!S71_A2SubCode,$AC:$AC,Sheet1!S71_ItemType,$AD:$AD)","v":0},null,null,null,null,null,null,null,null,null,null,null,null,null,null,null,"2501","IE","IZ"]
["Health Services",null,{"$f":"SUMIFS(Sheet1!S71_OriginalBudget,Sheet1!S71_A2SubCode,$AC:$AC,Sheet1!S71_ItemType,$AD:$AD)","v":0},{"$f":"SUMIFS(Sheet1!S71_PreviousBudget,Sheet1!S71_A2SubCode,$AC:$AC,Sheet1!S71_ItemType,$AD:$AD)","v":0},null,null,null,null,{"$f":"SUMIFS(Sheet1!S71_CurrentAdjustments,Sheet1!S71_A2SubCode,$AC:$AC,Sheet1!S71_ItemType,$AD:$AD)","v":0},0,0,{"$f":"SUMIFS(Sheet1!S71_OY1AdjustedBudget,Sheet1!S71_A2SubCode,$AC:$AC,Sheet1!S71_ItemType,$AD:$AD)","v":0},{"$f":"SUMIFS(Sheet1!S71_OY2AdjustedBudget,Sheet1!S71_A2SubCode,$AC:$AC,Sheet1!S71_ItemType,$AD:$AD)","v":0},null,null,null,null,null,null,null,null,null,null,null,null,null,null,null,"2502","IE","IZ"]
[{"$f":"A71","v":"Laboratory Services"},null,{"$f":"SUMIFS(Sheet1!S71_OriginalBudget,Sheet1!S71_A2SubCode,$AC:$AC,Sheet1!S71_ItemType,$AD:$AD)","v":0},{"$f":"SUMIFS(Sheet1!S71_PreviousBudget,Sheet1!S71_A2SubCode,$AC:$AC,Sheet1!S71_ItemType,$AD:$AD)","v":0},null,null,null,null,{"$f":"SUMIFS(Sheet1!S71_CurrentAdjustments,Sheet1!S71_A2SubCode,$AC:$AC,Sheet1!S71_ItemType,$AD:$AD)","v":0},0,0,{"$f":"SUMIFS(Sheet1!S71_OY1AdjustedBudget,Sheet1!S71_A2SubCode,$AC:$AC,Sheet1!S71_ItemType,$AD:$AD)","v":0},{"$f":"SUMIFS(Sheet1!S71_OY2AdjustedBudget,Sheet1!S71_A2SubCode,$AC:$AC,Sheet1!S71_ItemType,$AD:$AD)","v":0},null,null,null,null,null,null,null,null,null,null,null,null,null,null,null,"2503","IE","IZ"]
["Food Control",null,{"$f":"SUMIFS(Sheet1!S71_OriginalBudget,Sheet1!S71_A2SubCode,$AC:$AC,Sheet1!S71_ItemType,$AD:$AD)","v":0},{"$f":"SUMIFS(Sheet1!S71_PreviousBudget,Sheet1!S71_A2SubCode,$AC:$AC,Sheet1!S71_ItemType,$AD:$AD)","v":0},null,null,null,null,{"$f":"SUMIFS(Sheet1!S71_CurrentAdjustments,Sheet1!S71_A2SubCode,$AC:$AC,Sheet1!S71_ItemType,$AD:$AD)","v":0},0,0,{"$f":"SUMIFS(Sheet1!S71_OY1AdjustedBudget,Sheet1!S71_A2SubCode,$AC:$AC,Sheet1!S71_ItemType,$AD:$AD)","v":0},{"$f":"SUMIFS(Sheet1!S71_OY2AdjustedBudget,Sheet1!S71_A2SubCode,$AC:$AC,Sheet1!S71_ItemType,$AD:$AD)","v":0},null,null,null,null,null,null,null,null,null,null,null,null,null,null,null,"2504","IE","IZ"]
["Health Surveillance and Prevention of Communicable Diseases including immunizations",null,{"$f":"SUMIFS(Sheet1!S71_OriginalBudget,Sheet1!S71_A2SubCode,$AC:$AC,Sheet1!S71_ItemType,$AD:$AD)","v":0},{"$f":"SUMIFS(Sheet1!S71_PreviousBudget,Sheet1!S71_A2SubCode,$AC:$AC,Sheet1!S71_ItemType,$AD:$AD)","v":0},null,null,null,null,{"$f":"SUMIFS(Sheet1!S71_CurrentAdjustments,Sheet1!S71_A2SubCode,$AC:$AC,Sheet1!S71_ItemType,$AD:$AD)","v":0},0,0,{"$f":"SUMIFS(Sheet1!S71_OY1AdjustedBudget,Sheet1!S71_A2SubCode,$AC:$AC,Sheet1!S71_ItemType,$AD:$AD)","v":0},{"$f":"SUMIFS(Sheet1!S71_OY2AdjustedBudget,Sheet1!S71_A2SubCode,$AC:$AC,Sheet1!S71_ItemType,$AD:$AD)","v":0},null,null,null,null,null,null,null,null,null,null,null,null,null,null,null,"2505","IE","IZ"]
["Vector Control",null,{"$f":"SUMIFS(Sheet1!S71_OriginalBudget,Sheet1!S71_A2SubCode,$AC:$AC,Sheet1!S71_ItemType,$AD:$AD)","v":0},{"$f":"SUMIFS(Sheet1!S71_PreviousBudget,Sheet1!S71_A2SubCode,$AC:$AC,Sheet1!S71_ItemType,$AD:$AD)","v":0},null,null,null,null,{"$f":"SUMIFS(Sheet1!S71_CurrentAdjustments,Sheet1!S71_A2SubCode,$AC:$AC,Sheet1!S71_ItemType,$AD:$AD)","v":0},0,0,{"$f":"SUMIFS(Sheet1!S71_OY1AdjustedBudget,Sheet1!S71_A2SubCode,$AC:$AC,Sheet1!S71_ItemType,$AD:$AD)","v":0},{"$f":"SUMIFS(Sheet1!S71_OY2AdjustedBudget,Sheet1!S71_A2SubCode,$AC:$AC,Sheet1!S71_ItemType,$AD:$AD)","v":0},null,null,null,null,null,null,null,null,null,null,null,null,null,null,null,"2506","IE","IZ"]
["Chemical Safety",null,{"$f":"SUMIFS(Sheet1!S71_OriginalBudget,Sheet1!S71_A2SubCode,$AC:$AC,Sheet1!S71_ItemType,$AD:$AD)","v":0},{"$f":"SUMIFS(Sheet1!S71_PreviousBudget,Sheet1!S71_A2SubCode,$AC:$AC,Sheet1!S71_ItemType,$AD:$AD)","v":0},null,null,null,null,{"$f":"SUMIFS(Sheet1!S71_CurrentAdjustments,Sheet1!S71_A2SubCode,$AC:$AC,Sheet1!S71_ItemType,$AD:$AD)","v":0},0,0,{"$f":"SUMIFS(Sheet1!S71_OY1AdjustedBudget,Sheet1!S71_A2SubCode,$AC:$AC,Sheet1!S71_ItemType,$AD:$AD)","v":0},{"$f":"SUMIFS(Sheet1!S71_OY2AdjustedBudget,Sheet1!S71_A2SubCode,$AC:$AC,Sheet1!S71_ItemType,$AD:$AD)","v":0},null,null,null,null,null,null,null,null,null,null,null,null,null,null,null,"2507","IE","IZ"]
["Economic and environmental services",null,{"$f":"C199+C210+C215","v":83201745},83136070,0,0,0,0,0,0,83136070,{"$f":"L199+L210+L215","v":84376648},{"$f":"M199+M210+M215","v":87080740},null,null,null,null,null,null,null,null,null,null,null,null,null,null,null,null,"IE","IZ"]
["Planning and development",null,{"$f":"SUM(C200:C209)","v":25715779},24358640,0,0,0,0,0,0,24358640,{"$f":"SUM(L200:L209)","v":24532581},{"$f":"SUM(M200:M209)","v":25718036},null,null,null,null,null,null,null,null,null,null,null,null,null,null,null,null,"IE","IZ"]
["Billboards",null,{"$f":"SUMIFS(Sheet1!S71_OriginalBudget,Sheet1!S71_A2SubCode,$AC:$AC,Sheet1!S71_ItemType,$AD:$AD)","v":0},{"$f":"SUMIFS(Sheet1!S71_PreviousBudget,Sheet1!S71_A2SubCode,$AC:$AC,Sheet1!S71_ItemType,$AD:$AD)","v":0},null,null,null,null,{"$f":"SUMIFS(Sheet1!S71_CurrentAdjustments,Sheet1!S71_A2SubCode,$AC:$AC,Sheet1!S71_ItemType,$AD:$AD)","v":0},0,0,{"$f":"SUMIFS(Sheet1!S71_OY1AdjustedBudget,Sheet1!S71_A2SubCode,$AC:$AC,Sheet1!S71_ItemType,$AD:$AD)","v":0},{"$f":"SUMIFS(Sheet1!S71_OY2AdjustedBudget,Sheet1!S71_A2SubCode,$AC:$AC,Sheet1!S71_ItemType,$AD:$AD)","v":0},null,null,null,null,null,null,null,null,null,null,null,null,null,null,null,"3101","IE","IZ"]
["Corporate Wide Strategic Planning (IDPs, LEDs)",null,{"$f":"SUMIFS(Sheet1!S71_OriginalBudget,Sheet1!S71_A2SubCode,$AC:$AC,Sheet1!S71_ItemType,$AD:$AD)","v":1100000},{"$f":"SUMIFS(Sheet1!S71_PreviousBudget,Sheet1!S71_A2SubCode,$AC:$AC,Sheet1!S71_ItemType,$AD:$AD)","v":575674},null,null,null,null,{"$f":"SUMIFS(Sheet1!S71_CurrentAdjustments,Sheet1!S71_A2SubCode,$AC:$AC,Sheet1!S71_ItemType,$AD:$AD)","v":0},0,575674,{"$f":"SUMIFS(Sheet1!S71_OY1AdjustedBudget,Sheet1!S71_A2SubCode,$AC:$AC,Sheet1!S71_ItemType,$AD:$AD)","v":732253},{"$f":"SUMIFS(Sheet1!S71_OY2AdjustedBudget,Sheet1!S71_A2SubCode,$AC:$AC,Sheet1!S71_ItemType,$AD:$AD)","v":756710},null,null,null,null,null,null,null,null,null,null,null,null,null,null,null,"3102","IE","IZ"]
["Central City Improvement District",null,{"$f":"SUMIFS(Sheet1!S71_OriginalBudget,Sheet1!S71_A2SubCode,$AC:$AC,Sheet1!S71_ItemType,$AD:$AD)","v":135880},{"$f":"SUMIFS(Sheet1!S71_PreviousBudget,Sheet1!S71_A2SubCode,$AC:$AC,Sheet1!S71_ItemType,$AD:$AD)","v":135880},null,null,null,null,{"$f":"SUMIFS(Sheet1!S71_CurrentAdjustments,Sheet1!S71_A2SubCode,$AC:$AC,Sheet1!S71_ItemType,$AD:$AD)","v":0},0,135880,{"$f":"SUMIFS(Sheet1!S71_OY1AdjustedBudget,Sheet1!S71_A2SubCode,$AC:$AC,Sheet1!S71_ItemType,$AD:$AD)","v":142130},{"$f":"SUMIFS(Sheet1!S71_OY2AdjustedBudget,Sheet1!S71_A2SubCode,$AC:$AC,Sheet1!S71_ItemType,$AD:$AD)","v":148670},null,null,null,null,null,null,null,null,null,null,null,null,null,null,null,"3103","IE","IZ"]
["Development Facilitation",null,{"$f":"SUMIFS(Sheet1!S71_OriginalBudget,Sheet1!S71_A2SubCode,$AC:$AC,Sheet1!S71_ItemType,$AD:$AD)","v":6870},{"$f":"SUMIFS(Sheet1!S71_PreviousBudget,Sheet1!S71_A2SubCode,$AC:$AC,Sheet1!S71_ItemType,$AD:$AD)","v":6870},null,null,null,null,{"$f":"SUMIFS(Sheet1!S71_CurrentAdjustments,Sheet1!S71_A2SubCode,$AC:$AC,Sheet1!S71_ItemType,$AD:$AD)","v":0},0,6870,{"$f":"SUMIFS(Sheet1!S71_OY1AdjustedBudget,Sheet1!S71_A2SubCode,$AC:$AC,Sheet1!S71_ItemType,$AD:$AD)","v":7186},{"$f":"SUMIFS(Sheet1!S71_OY2AdjustedBudget,Sheet1!S71_A2SubCode,$AC:$AC,Sheet1!S71_ItemType,$AD:$AD)","v":7517},null,null,null,null,null,null,null,null,null,null,null,null,null,null,null,"3104","IE","IZ"]
["Economic Development/Planning",null,{"$f":"SUMIFS(Sheet1!S71_OriginalBudget,Sheet1!S71_A2SubCode,$AC:$AC,Sheet1!S71_ItemType,$AD:$AD)","v":7539612},{"$f":"SUMIFS(Sheet1!S71_PreviousBudget,Sheet1!S71_A2SubCode,$AC:$AC,Sheet1!S71_ItemType,$AD:$AD)","v":9289230},null,null,null,null,{"$f":"SUMIFS(Sheet1!S71_CurrentAdjustments,Sheet1!S71_A2SubCode,$AC:$AC,Sheet1!S71_ItemType,$AD:$AD)","v":0},0,9289230,{"$f":"SUMIFS(Sheet1!S71_OY1AdjustedBudget,Sheet1!S71_A2SubCode,$AC:$AC,Sheet1!S71_ItemType,$AD:$AD)","v":5985312},{"$f":"SUMIFS(Sheet1!S71_OY2AdjustedBudget,Sheet1!S71_A2SubCode,$AC:$AC,Sheet1!S71_ItemType,$AD:$AD)","v":6285016},null,null,null,null,null,null,null,null,null,null,null,null,null,null,null,"3105","IE","IZ"]
["Regional Planning and Development",null,{"$f":"SUMIFS(Sheet1!S71_OriginalBudget,Sheet1!S71_A2SubCode,$AC:$AC,Sheet1!S71_ItemType,$AD:$AD)","v":443754},{"$f":"SUMIFS(Sheet1!S71_PreviousBudget,Sheet1!S71_A2SubCode,$AC:$AC,Sheet1!S71_ItemType,$AD:$AD)","v":401304},null,null,null,null,{"$f":"SUMIFS(Sheet1!S71_CurrentAdjustments,Sheet1!S71_A2SubCode,$AC:$AC,Sheet1!S71_ItemType,$AD:$AD)","v":0},{"$f":"SUM(E205:I205)","v":0},{"$f":"IF(D205=0,C205+J205,D205+J205)","v":401304},{"$f":"SUMIFS(Sheet1!S71_OY1AdjustedBudget,Sheet1!S71_A2SubCode,$AC:$AC,Sheet1!S71_ItemType,$AD:$AD)","v":464167},{"$f":"SUMIFS(Sheet1!S71_OY2AdjustedBudget,Sheet1!S71_A2SubCode,$AC:$AC,Sheet1!S71_ItemType,$AD:$AD)","v":485518},null,null,null,null,null,null,null,null,null,null,null,null,null,null,null,"3106","IE","IZ"]
["Town Planning, Building Regulations and Enforcement, and City Engineer",null,{"$f":"SUMIFS(Sheet1!S71_OriginalBudget,Sheet1!S71_A2SubCode,$AC:$AC,Sheet1!S71_ItemType,$AD:$AD)","v":11177234},{"$f":"SUMIFS(Sheet1!S71_PreviousBudget,Sheet1!S71_A2SubCode,$AC:$AC,Sheet1!S71_ItemType,$AD:$AD)","v":9785071},null,null,null,null,{"$f":"SUMIFS(Sheet1!S71_CurrentAdjustments,Sheet1!S71_A2SubCode,$AC:$AC,Sheet1!S71_ItemType,$AD:$AD)","v":0},0,9785071,{"$f":"SUMIFS(Sheet1!S71_OY1AdjustedBudget,Sheet1!S71_A2SubCode,$AC:$AC,Sheet1!S71_ItemType,$AD:$AD)","v":11644720},{"$f":"SUMIFS(Sheet1!S71_OY2AdjustedBudget,Sheet1!S71_A2SubCode,$AC:$AC,Sheet1!S71_ItemType,$AD:$AD)","v":12222195},null,null,null,null,null,null,null,null,null,null,null,null,null,null,null,"3107","IE","IZ"]
["Project Management Unit",null,{"$f":"SUMIFS(Sheet1!S71_OriginalBudget,Sheet1!S71_A2SubCode,$AC:$AC,Sheet1!S71_ItemType,$AD:$AD)","v":5312429},{"$f":"SUMIFS(Sheet1!S71_PreviousBudget,Sheet1!S71_A2SubCode,$AC:$AC,Sheet1!S71_ItemType,$AD:$AD)","v":4164611},null,null,null,null,{"$f":"SUMIFS(Sheet1!S71_CurrentAdjustments,Sheet1!S71_A2SubCode,$AC:$AC,Sheet1!S71_ItemType,$AD:$AD)","v":0},0,4164611,{"$f":"SUMIFS(Sheet1!S71_OY1AdjustedBudget,Sheet1!S71_A2SubCode,$AC:$AC,Sheet1!S71_ItemType,$AD:$AD)","v":5556813},{"$f":"SUMIFS(Sheet1!S71_OY2AdjustedBudget,Sheet1!S71_A2SubCode,$AC:$AC,Sheet1!S71_ItemType,$AD:$AD)","v":5812410},null,null,null,null,null,null,null,null,null,null,null,null,null,null,null,"3108","IE","IZ"]
["Provincial Planning",null,{"$f":"SUMIFS(Sheet1!S71_OriginalBudget,Sheet1!S71_A2SubCode,$AC:$AC,Sheet1!S71_ItemType,$AD:$AD)","v":0},{"$f":"SUMIFS(Sheet1!S71_PreviousBudget,Sheet1!S71_A2SubCode,$AC:$AC,Sheet1!S71_ItemType,$AD:$AD)","v":0},null,null,null,null,{"$f":"SUMIFS(Sheet1!S71_CurrentAdjustments,Sheet1!S71_A2SubCode,$AC:$AC,Sheet1!S71_ItemType,$AD:$AD)","v":0},0,0,{"$f":"SUMIFS(Sheet1!S71_OY1AdjustedBudget,Sheet1!S71_A2SubCode,$AC:$AC,Sheet1!S71_ItemType,$AD:$AD)","v":0},{"$f":"SUMIFS(Sheet1!S71_OY2AdjustedBudget,Sheet1!S71_A2SubCode,$AC:$AC,Sheet1!S71_ItemType,$AD:$AD)","v":0},null,null,null,null,null,null,null,null,null,null,null,null,null,null,null,"3109","IE","IZ"]
["Support to Local Municipalities",null,{"$f":"SUMIFS(Sheet1!S71_OriginalBudget,Sheet1!S71_A2SubCode,$AC:$AC,Sheet1!S71_ItemType,$AD:$AD)","v":0},{"$f":"SUMIFS(Sheet1!S71_PreviousBudget,Sheet1!S71_A2SubCode,$AC:$AC,Sheet1!S71_ItemType,$AD:$AD)","v":0},null,null,null,null,{"$f":"SUMIFS(Sheet1!S71_CurrentAdjustments,Sheet1!S71_A2SubCode,$AC:$AC,Sheet1!S71_ItemType,$AD:$AD)","v":0},0,0,{"$f":"SUMIFS(Sheet1!S71_OY1AdjustedBudget,Sheet1!S71_A2SubCode,$AC:$AC,Sheet1!S71_ItemType,$AD:$AD)","v":0},{"$f":"SUMIFS(Sheet1!S71_OY2AdjustedBudget,Sheet1!S71_A2SubCode,$AC:$AC,Sheet1!S71_ItemType,$AD:$AD)","v":0},null,null,null,null,null,null,null,null,null,null,null,null,null,null,null,"3110","IE","IZ"]
["Road transport",null,{"$f":"SUM(C211:C214)","v":53422966},54653354,0,0,0,0,0,0,54653354,{"$f":"SUM(L211:L214)","v":55594187},{"$f":"SUM(M211:M214)","v":56917304},null,null,null,null,null,null,null,null,null,null,null,null,null,null,null,null,"IE","IZ"]
["Public Transport",null,{"$f":"SUMIFS(Sheet1!S71_OriginalBudget,Sheet1!S71_A2SubCode,$AC:$AC,Sheet1!S71_ItemType,$AD:$AD)","v":0},{"$f":"SUMIFS(Sheet1!S71_PreviousBudget,Sheet1!S71_A2SubCode,$AC:$AC,Sheet1!S71_ItemType,$AD:$AD)","v":0},null,null,null,null,{"$f":"SUMIFS(Sheet1!S71_CurrentAdjustments,Sheet1!S71_A2SubCode,$AC:$AC,Sheet1!S71_ItemType,$AD:$AD)","v":0},0,0,{"$f":"SUMIFS(Sheet1!S71_OY1AdjustedBudget,Sheet1!S71_A2SubCode,$AC:$AC,Sheet1!S71_ItemType,$AD:$AD)","v":0},{"$f":"SUMIFS(Sheet1!S71_OY2AdjustedBudget,Sheet1!S71_A2SubCode,$AC:$AC,Sheet1!S71_ItemType,$AD:$AD)","v":0},null,null,null,null,null,null,null,null,null,null,null,null,null,null,null,"3203","IE","IZ"]
["Road and Traffic Regulation",null,{"$f":"SUMIFS(Sheet1!S71_OriginalBudget,Sheet1!S71_A2SubCode,$AC:$AC,Sheet1!S71_ItemType,$AD:$AD)","v":13593960},{"$f":"SUMIFS(Sheet1!S71_PreviousBudget,Sheet1!S71_A2SubCode,$AC:$AC,Sheet1!S71_ItemType,$AD:$AD)","v":13428516},null,null,null,null,{"$f":"SUMIFS(Sheet1!S71_CurrentAdjustments,Sheet1!S71_A2SubCode,$AC:$AC,Sheet1!S71_ItemType,$AD:$AD)","v":0},0,13428516,{"$f":"SUMIFS(Sheet1!S71_OY1AdjustedBudget,Sheet1!S71_A2SubCode,$AC:$AC,Sheet1!S71_ItemType,$AD:$AD)","v":14219300},{"$f":"SUMIFS(Sheet1!S71_OY2AdjustedBudget,Sheet1!S71_A2SubCode,$AC:$AC,Sheet1!S71_ItemType,$AD:$AD)","v":13873370},null,null,null,null,null,null,null,null,null,null,null,null,null,null,null,"3204","IE","IZ"]
["Roads",null,{"$f":"SUMIFS(Sheet1!S71_OriginalBudget,Sheet1!S71_A2SubCode,$AC:$AC,Sheet1!S71_ItemType,$AD:$AD)","v":39829006},{"$f":"SUMIFS(Sheet1!S71_PreviousBudget,Sheet1!S71_A2SubCode,$AC:$AC,Sheet1!S71_ItemType,$AD:$AD)","v":41224838},null,null,null,null,{"$f":"SUMIFS(Sheet1!S71_CurrentAdjustments,Sheet1!S71_A2SubCode,$AC:$AC,Sheet1!S71_ItemType,$AD:$AD)","v":0},0,41224838,{"$f":"SUMIFS(Sheet1!S71_OY1AdjustedBudget,Sheet1!S71_A2SubCode,$AC:$AC,Sheet1!S71_ItemType,$AD:$AD)","v":41374887},{"$f":"SUMIFS(Sheet1!S71_OY2AdjustedBudget,Sheet1!S71_A2SubCode,$AC:$AC,Sheet1!S71_ItemType,$AD:$AD)","v":43043934},null,null,null,null,null,null,null,null,null,null,null,null,null,null,null,"3205","IE","IZ"]
["Taxi Ranks",null,{"$f":"SUMIFS(Sheet1!S71_OriginalBudget,Sheet1!S71_A2SubCode,$AC:$AC,Sheet1!S71_ItemType,$AD:$AD)","v":0},{"$f":"SUMIFS(Sheet1!S71_PreviousBudget,Sheet1!S71_A2SubCode,$AC:$AC,Sheet1!S71_ItemType,$AD:$AD)","v":0},null,null,null,null,{"$f":"SUMIFS(Sheet1!S71_CurrentAdjustments,Sheet1!S71_A2SubCode,$AC:$AC,Sheet1!S71_ItemType,$AD:$AD)","v":0},0,0,{"$f":"SUMIFS(Sheet1!S71_OY1AdjustedBudget,Sheet1!S71_A2SubCode,$AC:$AC,Sheet1!S71_ItemType,$AD:$AD)","v":0},{"$f":"SUMIFS(Sheet1!S71_OY2AdjustedBudget,Sheet1!S71_A2SubCode,$AC:$AC,Sheet1!S71_ItemType,$AD:$AD)","v":0},null,null,null,null,null,null,null,null,null,null,null,null,null,null,null,"3206","IE","IZ"]
["Environmental protection",null,{"$f":"SUM(C216:C221)","v":4063000},4124076,0,0,0,0,0,0,4124076,{"$f":"SUM(L216:L221)","v":4249880},{"$f":"SUM(M216:M221)","v":4445400},null,null,null,null,null,null,null,null,null,null,null,null,null,null,null,null,"IE","IZ"]
["Biodiversity and Landscape",null,{"$f":"SUMIFS(Sheet1!S71_OriginalBudget,Sheet1!S71_A2SubCode,$AC:$AC,Sheet1!S71_ItemType,$AD:$AD)","v":4063000},{"$f":"SUMIFS(Sheet1!S71_PreviousBudget,Sheet1!S71_A2SubCode,$AC:$AC,Sheet1!S71_ItemType,$AD:$AD)","v":4124076},null,null,null,null,{"$f":"SUMIFS(Sheet1!S71_CurrentAdjustments,Sheet1!S71_A2SubCode,$AC:$AC,Sheet1!S71_ItemType,$AD:$AD)","v":0},0,4124076,{"$f":"SUMIFS(Sheet1!S71_OY1AdjustedBudget,Sheet1!S71_A2SubCode,$AC:$AC,Sheet1!S71_ItemType,$AD:$AD)","v":4249880},{"$f":"SUMIFS(Sheet1!S71_OY2AdjustedBudget,Sheet1!S71_A2SubCode,$AC:$AC,Sheet1!S71_ItemType,$AD:$AD)","v":4445400},null,null,null,null,null,null,null,null,null,null,null,null,null,null,null,"3301","IE","IZ"]
["Coastal Protection",null,{"$f":"SUMIFS(Sheet1!S71_OriginalBudget,Sheet1!S71_A2SubCode,$AC:$AC,Sheet1!S71_ItemType,$AD:$AD)","v":0},{"$f":"SUMIFS(Sheet1!S71_PreviousBudget,Sheet1!S71_A2SubCode,$AC:$AC,Sheet1!S71_ItemType,$AD:$AD)","v":0},null,null,null,null,{"$f":"SUMIFS(Sheet1!S71_CurrentAdjustments,Sheet1!S71_A2SubCode,$AC:$AC,Sheet1!S71_ItemType,$AD:$AD)","v":0},0,0,{"$f":"SUMIFS(Sheet1!S71_OY1AdjustedBudget,Sheet1!S71_A2SubCode,$AC:$AC,Sheet1!S71_ItemType,$AD:$AD)","v":0},{"$f":"SUMIFS(Sheet1!S71_OY2AdjustedBudget,Sheet1!S71_A2SubCode,$AC:$AC,Sheet1!S71_ItemType,$AD:$AD)","v":0},null,null,null,null,null,null,null,null,null,null,null,null,null,null,null,"3302","IE","IZ"]
["Indigenous Forests",null,{"$f":"SUMIFS(Sheet1!S71_OriginalBudget,Sheet1!S71_A2SubCode,$AC:$AC,Sheet1!S71_ItemType,$AD:$AD)","v":0},{"$f":"SUMIFS(Sheet1!S71_PreviousBudget,Sheet1!S71_A2SubCode,$AC:$AC,Sheet1!S71_ItemType,$AD:$AD)","v":0},null,null,null,null,{"$f":"SUMIFS(Sheet1!S71_CurrentAdjustments,Sheet1!S71_A2SubCode,$AC:$AC,Sheet1!S71_ItemType,$AD:$AD)","v":0},0,0,{"$f":"SUMIFS(Sheet1!S71_OY1AdjustedBudget,Sheet1!S71_A2SubCode,$AC:$AC,Sheet1!S71_ItemType,$AD:$AD)","v":0},{"$f":"SUMIFS(Sheet1!S71_OY2AdjustedBudget,Sheet1!S71_A2SubCode,$AC:$AC,Sheet1!S71_ItemType,$AD:$AD)","v":0},null,null,null,null,null,null,null,null,null,null,null,null,null,null,null,"3303","IE","IZ"]
["Nature Conservation",null,{"$f":"SUMIFS(Sheet1!S71_OriginalBudget,Sheet1!S71_A2SubCode,$AC:$AC,Sheet1!S71_ItemType,$AD:$AD)","v":0},{"$f":"SUMIFS(Sheet1!S71_PreviousBudget,Sheet1!S71_A2SubCode,$AC:$AC,Sheet1!S71_ItemType,$AD:$AD)","v":0},null,null,null,null,{"$f":"SUMIFS(Sheet1!S71_CurrentAdjustments,Sheet1!S71_A2SubCode,$AC:$AC,Sheet1!S71_ItemType,$AD:$AD)","v":0},0,0,{"$f":"SUMIFS(Sheet1!S71_OY1AdjustedBudget,Sheet1!S71_A2SubCode,$AC:$AC,Sheet1!S71_ItemType,$AD:$AD)","v":0},{"$f":"SUMIFS(Sheet1!S71_OY2AdjustedBudget,Sheet1!S71_A2SubCode,$AC:$AC,Sheet1!S71_ItemType,$AD:$AD)","v":0},null,null,null,null,null,null,null,null,null,null,null,null,null,null,null,"3304","IE","IZ"]
["Pollution Control",null,{"$f":"SUMIFS(Sheet1!S71_OriginalBudget,Sheet1!S71_A2SubCode,$AC:$AC,Sheet1!S71_ItemType,$AD:$AD)","v":0},{"$f":"SUMIFS(Sheet1!S71_PreviousBudget,Sheet1!S71_A2SubCode,$AC:$AC,Sheet1!S71_ItemType,$AD:$AD)","v":0},null,null,null,null,{"$f":"SUMIFS(Sheet1!S71_CurrentAdjustments,Sheet1!S71_A2SubCode,$AC:$AC,Sheet1!S71_ItemType,$AD:$AD)","v":0},0,0,{"$f":"SUMIFS(Sheet1!S71_OY1AdjustedBudget,Sheet1!S71_A2SubCode,$AC:$AC,Sheet1!S71_ItemType,$AD:$AD)","v":0},{"$f":"SUMIFS(Sheet1!S71_OY2AdjustedBudget,Sheet1!S71_A2SubCode,$AC:$AC,Sheet1!S71_ItemType,$AD:$AD)","v":0},null,null,null,null,null,null,null,null,null,null,null,null,null,null,null,"3305","IE","IZ"]
["Soil Conservation",null,{"$f":"SUMIFS(Sheet1!S71_OriginalBudget,Sheet1!S71_A2SubCode,$AC:$AC,Sheet1!S71_ItemType,$AD:$AD)","v":0},{"$f":"SUMIFS(Sheet1!S71_PreviousBudget,Sheet1!S71_A2SubCode,$AC:$AC,Sheet1!S71_ItemType,$AD:$AD)","v":0},null,null,null,null,{"$f":"SUMIFS(Sheet1!S71_CurrentAdjustments,Sheet1!S71_A2SubCode,$AC:$AC,Sheet1!S71_ItemType,$AD:$AD)","v":0},0,0,{"$f":"SUMIFS(Sheet1!S71_OY1AdjustedBudget,Sheet1!S71_A2SubCode,$AC:$AC,Sheet1!S71_ItemType,$AD:$AD)","v":0},{"$f":"SUMIFS(Sheet1!S71_OY2AdjustedBudget,Sheet1!S71_A2SubCode,$AC:$AC,Sheet1!S71_ItemType,$AD:$AD)","v":0},null,null,null,null,null,null,null,null,null,null,null,null,null,null,null,"3306","IE","IZ"]
["Trading services",null,{"$f":"C223+C227+C231+C236","v":99069502},{"$f":"D223+D227+D231+D236","v":100775989},0,0,0,-6719130,0,-6719130,94056859,101557322,115910888,null,null,null,null,null,null,null,null,null,null,null,null,null,null,null,null,"IE","IZ"]
["Energy sources",null,{"$f":"SUM(C224:C226)","v":76143194},76674248,0,0,0,-6719130,0,-6719130,69955118,{"$f":"SUM(L224:L226)","v":76813179},{"$f":"SUM(M224:M226)","v":81119364},null,null,null,null,null,null,null,null,null,null,null,null,null,null,null,null,"IE","IZ"]
["Electricity ",null,{"$f":"SUMIFS(Sheet1!S71_OriginalBudget,Sheet1!S71_A2SubCode,$AC:$AC,Sheet1!S71_ItemType,$AD:$AD)","v":76143194},{"$f":"SUMIFS(Sheet1!S71_PreviousBudget,Sheet1!S71_A2SubCode,$AC:$AC,Sheet1!S71_ItemType,$AD:$AD)","v":76674248},null,null,null,{"$f":"SUMIFS(Sheet1!S71_CurrentAdjustments,Sheet1!S71_A2SubCode,$AC:$AC,Sheet1!S71_ItemType,$AD:$AD)","v":-6719130},0,-6719130,69955118,{"$f":"SUMIFS(Sheet1!S71_OY1AdjustedBudget,Sheet1!S71_A2SubCode,$AC:$AC,Sheet1!S71_ItemType,$AD:$AD)","v":76813179},{"$f":"SUMIFS(Sheet1!S71_OY2AdjustedBudget,Sheet1!S71_A2SubCode,$AC:$AC,Sheet1!S71_ItemType,$AD:$AD)","v":81119364},null,null,null,null,null,null,null,null,null,null,null,null,null,null,null,"4101","IE","IZ"]
["Street Lighting and Signal Systems",null,{"$f":"SUMIFS(Sheet1!S71_OriginalBudget,Sheet1!S71_A2SubCode,$AC:$AC,Sheet1!S71_ItemType,$AD:$AD)","v":0},{"$f":"SUMIFS(Sheet1!S71_PreviousBudget,Sheet1!S71_A2SubCode,$AC:$AC,Sheet1!S71_ItemType,$AD:$AD)","v":0},null,null,null,null,{"$f":"SUMIFS(Sheet1!S71_CurrentAdjustments,Sheet1!S71_A2SubCode,$AC:$AC,Sheet1!S71_ItemType,$AD:$AD)","v":0},0,0,{"$f":"SUMIFS(Sheet1!S71_OY1AdjustedBudget,Sheet1!S71_A2SubCode,$AC:$AC,Sheet1!S71_ItemType,$AD:$AD)","v":0},{"$f":"SUMIFS(Sheet1!S71_OY2AdjustedBudget,Sheet1!S71_A2SubCode,$AC:$AC,Sheet1!S71_ItemType,$AD:$AD)","v":0},null,null,null,null,null,null,null,null,null,null,null,null,null,null,null,"4102","IE","IZ"]
["Nonelectric Energy",null,{"$f":"SUMIFS(Sheet1!S71_OriginalBudget,Sheet1!S71_A2SubCode,$AC:$AC,Sheet1!S71_ItemType,$AD:$AD)","v":0},{"$f":"SUMIFS(Sheet1!S71_PreviousBudget,Sheet1!S71_A2SubCode,$AC:$AC,Sheet1!S71_ItemType,$AD:$AD)","v":0},null,null,null,null,{"$f":"SUMIFS(Sheet1!S71_CurrentAdjustments,Sheet1!S71_A2SubCode,$AC:$AC,Sheet1!S71_ItemType,$AD:$AD)","v":0},0,0,{"$f":"SUMIFS(Sheet1!S71_OY1AdjustedBudget,Sheet1!S71_A2SubCode,$AC:$AC,Sheet1!S71_ItemType,$AD:$AD)","v":0},{"$f":"SUMIFS(Sheet1!S71_OY2AdjustedBudget,Sheet1!S71_A2SubCode,$AC:$AC,Sheet1!S71_ItemType,$AD:$AD)","v":0},null,null,null,null,null,null,null,null,null,null,null,null,null,null,null,"4103","IE","IZ"]
["Water management",null,{"$f":"SUM(C228:C230)","v":0},0,0,0,0,0,0,0,0,{"$f":"SUM(L228:L230)","v":0},{"$f":"SUM(M228:M230)","v":0},null,null,null,null,null,null,null,null,null,null,null,null,null,null,null,null,"IE","IZ"]
["Water Treatment",null,{"$f":"SUMIFS(Sheet1!S71_OriginalBudget,Sheet1!S71_A2SubCode,$AC:$AC,Sheet1!S71_ItemType,$AD:$AD)","v":0},{"$f":"SUMIFS(Sheet1!S71_PreviousBudget,Sheet1!S71_A2SubCode,$AC:$AC,Sheet1!S71_ItemType,$AD:$AD)","v":0},null,null,null,null,{"$f":"SUMIFS(Sheet1!S71_CurrentAdjustments,Sheet1!S71_A2SubCode,$AC:$AC,Sheet1!S71_ItemType,$AD:$AD)","v":0},0,0,{"$f":"SUMIFS(Sheet1!S71_OY1AdjustedBudget,Sheet1!S71_A2SubCode,$AC:$AC,Sheet1!S71_ItemType,$AD:$AD)","v":0},{"$f":"SUMIFS(Sheet1!S71_OY2AdjustedBudget,Sheet1!S71_A2SubCode,$AC:$AC,Sheet1!S71_ItemType,$AD:$AD)","v":0},null,null,null,null,null,null,null,null,null,null,null,null,null,null,null,"4201","IE","IZ"]
["Water Distribution",null,{"$f":"SUMIFS(Sheet1!S71_OriginalBudget,Sheet1!S71_A2SubCode,$AC:$AC,Sheet1!S71_ItemType,$AD:$AD)","v":0},{"$f":"SUMIFS(Sheet1!S71_PreviousBudget,Sheet1!S71_A2SubCode,$AC:$AC,Sheet1!S71_ItemType,$AD:$AD)","v":0},null,null,null,null,{"$f":"SUMIFS(Sheet1!S71_CurrentAdjustments,Sheet1!S71_A2SubCode,$AC:$AC,Sheet1!S71_ItemType,$AD:$AD)","v":0},0,0,{"$f":"SUMIFS(Sheet1!S71_OY1AdjustedBudget,Sheet1!S71_A2SubCode,$AC:$AC,Sheet1!S71_ItemType,$AD:$AD)","v":0},{"$f":"SUMIFS(Sheet1!S71_OY2AdjustedBudget,Sheet1!S71_A2SubCode,$AC:$AC,Sheet1!S71_ItemType,$AD:$AD)","v":0},null,null,null,null,null,null,null,null,null,null,null,null,null,null,null,"4202","IE","IZ"]
["Water Storage",null,{"$f":"SUMIFS(Sheet1!S71_OriginalBudget,Sheet1!S71_A2SubCode,$AC:$AC,Sheet1!S71_ItemType,$AD:$AD)","v":0},{"$f":"SUMIFS(Sheet1!S71_PreviousBudget,Sheet1!S71_A2SubCode,$AC:$AC,Sheet1!S71_ItemType,$AD:$AD)","v":0},null,null,null,null,{"$f":"SUMIFS(Sheet1!S71_CurrentAdjustments,Sheet1!S71_A2SubCode,$AC:$AC,Sheet1!S71_ItemType,$AD:$AD)","v":0},0,0,{"$f":"SUMIFS(Sheet1!S71_OY1AdjustedBudget,Sheet1!S71_A2SubCode,$AC:$AC,Sheet1!S71_ItemType,$AD:$AD)","v":0},{"$f":"SUMIFS(Sheet1!S71_OY2AdjustedBudget,Sheet1!S71_A2SubCode,$AC:$AC,Sheet1!S71_ItemType,$AD:$AD)","v":0},null,null,null,null,null,null,null,null,null,null,null,null,null,null,null,"4203","IE","IZ"]
["Waste water management",null,{"$f":"SUM(C232:C235)","v":2802430},2802430,0,0,0,0,0,0,2802430,{"$f":"SUM(L232:L235)","v":2886499},{"$f":"SUM(M232:M235)","v":2944229}]
["Public Toilets",null,{"$f":"SUMIFS(Sheet1!S71_OriginalBudget,Sheet1!S71_A2SubCode,$AC:$AC,Sheet1!S71_ItemType,$AD:$AD)","v":0},{"$f":"SUMIFS(Sheet1!S71_PreviousBudget,Sheet1!S71_A2SubCode,$AC:$AC,Sheet1!S71_ItemType,$AD:$AD)","v":0},null,null,null,null,{"$f":"SUMIFS(Sheet1!S71_CurrentAdjustments,Sheet1!S71_A2SubCode,$AC:$AC,Sheet1!S71_ItemType,$AD:$AD)","v":0},0,0,{"$f":"SUMIFS(Sheet1!S71_OY1AdjustedBudget,Sheet1!S71_A2SubCode,$AC:$AC,Sheet1!S71_ItemType,$AD:$AD)","v":0},{"$f":"SUMIFS(Sheet1!S71_OY2AdjustedBudget,Sheet1!S71_A2SubCode,$AC:$AC,Sheet1!S71_ItemType,$AD:$AD)","v":0},null,null,null,null,null,null,null,null,null,null,null,null,null,null,null,"4301","IE","IZ"]
["Sewerage",null,{"$f":"SUMIFS(Sheet1!S71_OriginalBudget,Sheet1!S71_A2SubCode,$AC:$AC,Sheet1!S71_ItemType,$AD:$AD)","v":0},{"$f":"SUMIFS(Sheet1!S71_PreviousBudget,Sheet1!S71_A2SubCode,$AC:$AC,Sheet1!S71_ItemType,$AD:$AD)","v":0},null,null,null,null,{"$f":"SUMIFS(Sheet1!S71_CurrentAdjustments,Sheet1!S71_A2SubCode,$AC:$AC,Sheet1!S71_ItemType,$AD:$AD)","v":0},0,0,{"$f":"SUMIFS(Sheet1!S71_OY1AdjustedBudget,Sheet1!S71_A2SubCode,$AC:$AC,Sheet1!S71_ItemType,$AD:$AD)","v":0},{"$f":"SUMIFS(Sheet1!S71_OY2AdjustedBudget,Sheet1!S71_A2SubCode,$AC:$AC,Sheet1!S71_ItemType,$AD:$AD)","v":0},null,null,null,null,null,null,null,null,null,null,null,null,null,null,null,"4302","IE","IZ"]
["Storm Water Management",null,{"$f":"SUMIFS(Sheet1!S71_OriginalBudget,Sheet1!S71_A2SubCode,$AC:$AC,Sheet1!S71_ItemType,$AD:$AD)","v":2802430},{"$f":"SUMIFS(Sheet1!S71_PreviousBudget,Sheet1!S71_A2SubCode,$AC:$AC,Sheet1!S71_ItemType,$AD:$AD)","v":2802430},null,null,null,null,{"$f":"SUMIFS(Sheet1!S71_CurrentAdjustments,Sheet1!S71_A2SubCode,$AC:$AC,Sheet1!S71_ItemType,$AD:$AD)","v":0},0,2802430,{"$f":"SUMIFS(Sheet1!S71_OY1AdjustedBudget,Sheet1!S71_A2SubCode,$AC:$AC,Sheet1!S71_ItemType,$AD:$AD)","v":2886499},{"$f":"SUMIFS(Sheet1!S71_OY2AdjustedBudget,Sheet1!S71_A2SubCode,$AC:$AC,Sheet1!S71_ItemType,$AD:$AD)","v":2944229},null,null,null,null,null,null,null,null,null,null,null,null,null,null,null,"4303","IE","IZ"]
["Waste Water Treatment",null,{"$f":"SUMIFS(Sheet1!S71_OriginalBudget,Sheet1!S71_A2SubCode,$AC:$AC,Sheet1!S71_ItemType,$AD:$AD)","v":0},{"$f":"SUMIFS(Sheet1!S71_PreviousBudget,Sheet1!S71_A2SubCode,$AC:$AC,Sheet1!S71_ItemType,$AD:$AD)","v":0},null,null,null,null,{"$f":"SUMIFS(Sheet1!S71_CurrentAdjustments,Sheet1!S71_A2SubCode,$AC:$AC,Sheet1!S71_ItemType,$AD:$AD)","v":0},0,0,{"$f":"SUMIFS(Sheet1!S71_OY1AdjustedBudget,Sheet1!S71_A2SubCode,$AC:$AC,Sheet1!S71_ItemType,$AD:$AD)","v":0},{"$f":"SUMIFS(Sheet1!S71_OY2AdjustedBudget,Sheet1!S71_A2SubCode,$AC:$AC,Sheet1!S71_ItemType,$AD:$AD)","v":0},null,null,null,null,null,null,null,null,null,null,null,null,null,null,null,"4304","IE","IZ"]
["Waste management",null,{"$f":"SUM(C237:C240)","v":20123878},{"$f":"SUM(D237:D240)","v":21299311},{"$f":"SUM(E237:E240)","v":0},{"$f":"SUM(F237:F240)","v":0},0,0,0,0,21299311,21857644,31847295]
["Recycling",null,{"$f":"SUMIFS(Sheet1!S71_OriginalBudget,Sheet1!S71_A2SubCode,$AC:$AC,Sheet1!S71_ItemType,$AD:$AD)","v":0},{"$f":"SUMIFS(Sheet1!S71_PreviousBudget,Sheet1!S71_A2SubCode,$AC:$AC,Sheet1!S71_ItemType,$AD:$AD)","v":0},null,null,null,null,{"$f":"SUMIFS(Sheet1!S71_CurrentAdjustments,Sheet1!S71_A2SubCode,$AC:$AC,Sheet1!S71_ItemType,$AD:$AD)","v":0},0,0,{"$f":"SUMIFS(Sheet1!S71_OY1AdjustedBudget,Sheet1!S71_A2SubCode,$AC:$AC,Sheet1!S71_ItemType,$AD:$AD)","v":0},{"$f":"SUMIFS(Sheet1!S71_OY2AdjustedBudget,Sheet1!S71_A2SubCode,$AC:$AC,Sheet1!S71_ItemType,$AD:$AD)","v":0},null,null,null,null,null,null,null,null,null,null,null,null,null,null,null,"4401","IE","IZ"]
["Solid Waste Disposal (Landfill Sites)",null,{"$f":"SUMIFS(Sheet1!S71_OriginalBudget,Sheet1!S71_A2SubCode,$AC:$AC,Sheet1!S71_ItemType,$AD:$AD)","v":113050},{"$f":"SUMIFS(Sheet1!S71_PreviousBudget,Sheet1!S71_A2SubCode,$AC:$AC,Sheet1!S71_ItemType,$AD:$AD)","v":50310},null,null,null,null,{"$f":"SUMIFS(Sheet1!S71_CurrentAdjustments,Sheet1!S71_A2SubCode,$AC:$AC,Sheet1!S71_ItemType,$AD:$AD)","v":0},0,50310,{"$f":"SUMIFS(Sheet1!S71_OY1AdjustedBudget,Sheet1!S71_A2SubCode,$AC:$AC,Sheet1!S71_ItemType,$AD:$AD)","v":118250},{"$f":"SUMIFS(Sheet1!S71_OY2AdjustedBudget,Sheet1!S71_A2SubCode,$AC:$AC,Sheet1!S71_ItemType,$AD:$AD)","v":123680},null,null,null,null,null,null,null,null,null,null,null,null,null,null,null,"4402","IE","IZ"]
["Solid Waste Removal",null,{"$f":"SUMIFS(Sheet1!S71_OriginalBudget,Sheet1!S71_A2SubCode,$AC:$AC,Sheet1!S71_ItemType,$AD:$AD)","v":20010828},{"$f":"SUMIFS(Sheet1!S71_PreviousBudget,Sheet1!S71_A2SubCode,$AC:$AC,Sheet1!S71_ItemType,$AD:$AD)","v":21249001},null,null,null,null,{"$f":"SUMIFS(Sheet1!S71_CurrentAdjustments,Sheet1!S71_A2SubCode,$AC:$AC,Sheet1!S71_ItemType,$AD:$AD)","v":0},0,21249001,{"$f":"SUMIFS(Sheet1!S71_OY1AdjustedBudget,Sheet1!S71_A2SubCode,$AC:$AC,Sheet1!S71_ItemType,$AD:$AD)","v":21739394},{"$f":"SUMIFS(Sheet1!S71_OY2AdjustedBudget,Sheet1!S71_A2SubCode,$AC:$AC,Sheet1!S71_ItemType,$AD:$AD)","v":31723615},null,null,null,null,null,null,null,null,null,null,null,null,null,null,null,"4403","IE","IZ"]
["Street Cleaning",null,{"$f":"SUMIFS(Sheet1!S71_OriginalBudget,Sheet1!S71_A2SubCode,$AC:$AC,Sheet1!S71_ItemType,$AD:$AD)","v":0},{"$f":"SUMIFS(Sheet1!S71_PreviousBudget,Sheet1!S71_A2SubCode,$AC:$AC,Sheet1!S71_ItemType,$AD:$AD)","v":0},null,null,null,null,{"$f":"SUMIFS(Sheet1!S71_CurrentAdjustments,Sheet1!S71_A2SubCode,$AC:$AC,Sheet1!S71_ItemType,$AD:$AD)","v":0},0,0,{"$f":"SUMIFS(Sheet1!S71_OY1AdjustedBudget,Sheet1!S71_A2SubCode,$AC:$AC,Sheet1!S71_ItemType,$AD:$AD)","v":0},{"$f":"SUMIFS(Sheet1!S71_OY2AdjustedBudget,Sheet1!S71_A2SubCode,$AC:$AC,Sheet1!S71_ItemType,$AD:$AD)","v":0},null,null,null,null,null,null,null,null,null,null,null,null,null,null,null,"4404","IE","IZ"]
["Other",null,{"$f":"SUM(C242:C247)","v":876088},{"$f":"SUM(D242:D247)","v":676088},0,0,0,0,0,0,676088,{"$f":"SUM(L242:L247)","v":456913},{"$f":"SUM(M242:M247)","v":473146}]
["Abattoirs",null,{"$f":"SUMIFS(Sheet1!S71_OriginalBudget,Sheet1!S71_A2SubCode,$AC:$AC,Sheet1!S71_ItemType,$AD:$AD)","v":0},{"$f":"SUMIFS(Sheet1!S71_PreviousBudget,Sheet1!S71_A2SubCode,$AC:$AC,Sheet1!S71_ItemType,$AD:$AD)","v":0},null,null,null,null,{"$f":"SUMIFS(Sheet1!S71_CurrentAdjustments,Sheet1!S71_A2SubCode,$AC:$AC,Sheet1!S71_ItemType,$AD:$AD)","v":0},0,0,{"$f":"SUMIFS(Sheet1!S71_OY1AdjustedBudget,Sheet1!S71_A2SubCode,$AC:$AC,Sheet1!S71_ItemType,$AD:$AD)","v":0},{"$f":"SUMIFS(Sheet1!S71_OY2AdjustedBudget,Sheet1!S71_A2SubCode,$AC:$AC,Sheet1!S71_ItemType,$AD:$AD)","v":0},null,null,null,null,null,null,null,null,null,null,null,null,null,null,null,"5001","IE","IZ"]
["Air Transport",null,{"$f":"SUMIFS(Sheet1!S71_OriginalBudget,Sheet1!S71_A2SubCode,$AC:$AC,Sheet1!S71_ItemType,$AD:$AD)","v":0},{"$f":"SUMIFS(Sheet1!S71_PreviousBudget,Sheet1!S71_A2SubCode,$AC:$AC,Sheet1!S71_ItemType,$AD:$AD)","v":0},null,null,null,null,{"$f":"SUMIFS(Sheet1!S71_CurrentAdjustments,Sheet1!S71_A2SubCode,$AC:$AC,Sheet1!S71_ItemType,$AD:$AD)","v":0},0,0,{"$f":"SUMIFS(Sheet1!S71_OY1AdjustedBudget,Sheet1!S71_A2SubCode,$AC:$AC,Sheet1!S71_ItemType,$AD:$AD)","v":0},{"$f":"SUMIFS(Sheet1!S71_OY2AdjustedBudget,Sheet1!S71_A2SubCode,$AC:$AC,Sheet1!S71_ItemType,$AD:$AD)","v":0},null,null,null,null,null,null,null,null,null,null,null,null,null,null,null,"5002","IE","IZ"]
["Forestry ",null,{"$f":"SUMIFS(Sheet1!S71_OriginalBudget,Sheet1!S71_A2SubCode,$AC:$AC,Sheet1!S71_ItemType,$AD:$AD)","v":0},{"$f":"SUMIFS(Sheet1!S71_PreviousBudget,Sheet1!S71_A2SubCode,$AC:$AC,Sheet1!S71_ItemType,$AD:$AD)","v":0},null,null,null,null,{"$f":"SUMIFS(Sheet1!S71_CurrentAdjustments,Sheet1!S71_A2SubCode,$AC:$AC,Sheet1!S71_ItemType,$AD:$AD)","v":0},0,0,{"$f":"SUMIFS(Sheet1!S71_OY1AdjustedBudget,Sheet1!S71_A2SubCode,$AC:$AC,Sheet1!S71_ItemType,$AD:$AD)","v":0},{"$f":"SUMIFS(Sheet1!S71_OY2AdjustedBudget,Sheet1!S71_A2SubCode,$AC:$AC,Sheet1!S71_ItemType,$AD:$AD)","v":0},null,null,null,null,null,null,null,null,null,null,null,null,null,null,null,"5003","IE","IZ"]
["Licensing and Regulation",null,{"$f":"SUMIFS(Sheet1!S71_OriginalBudget,Sheet1!S71_A2SubCode,$AC:$AC,Sheet1!S71_ItemType,$AD:$AD)","v":0},{"$f":"SUMIFS(Sheet1!S71_PreviousBudget,Sheet1!S71_A2SubCode,$AC:$AC,Sheet1!S71_ItemType,$AD:$AD)","v":0},null,null,null,null,{"$f":"SUMIFS(Sheet1!S71_CurrentAdjustments,Sheet1!S71_A2SubCode,$AC:$AC,Sheet1!S71_ItemType,$AD:$AD)","v":0},0,0,{"$f":"SUMIFS(Sheet1!S71_OY1AdjustedBudget,Sheet1!S71_A2SubCode,$AC:$AC,Sheet1!S71_ItemType,$AD:$AD)","v":0},{"$f":"SUMIFS(Sheet1!S71_OY2AdjustedBudget,Sheet1!S71_A2SubCode,$AC:$AC,Sheet1!S71_ItemType,$AD:$AD)","v":0},null,null,null,null,null,null,null,null,null,null,null,null,null,null,null,"5004","IE","IZ"]
["Markets",null,{"$f":"SUMIFS(Sheet1!S71_OriginalBudget,Sheet1!S71_A2SubCode,$AC:$AC,Sheet1!S71_ItemType,$AD:$AD)","v":0},{"$f":"SUMIFS(Sheet1!S71_PreviousBudget,Sheet1!S71_A2SubCode,$AC:$AC,Sheet1!S71_ItemType,$AD:$AD)","v":0},null,null,null,null,{"$f":"SUMIFS(Sheet1!S71_CurrentAdjustments,Sheet1!S71_A2SubCode,$AC:$AC,Sheet1!S71_ItemType,$AD:$AD)","v":0},0,0,{"$f":"SUMIFS(Sheet1!S71_OY1AdjustedBudget,Sheet1!S71_A2SubCode,$AC:$AC,Sheet1!S71_ItemType,$AD:$AD)","v":0},{"$f":"SUMIFS(Sheet1!S71_OY2AdjustedBudget,Sheet1!S71_A2SubCode,$AC:$AC,Sheet1!S71_ItemType,$AD:$AD)","v":0},null,null,null,null,null,null,null,null,null,null,null,null,null,null,null,"5005","IE","IZ"]
["Tourism",null,{"$f":"SUMIFS(Sheet1!S71_OriginalBudget,Sheet1!S71_A2SubCode,$AC:$AC,Sheet1!S71_ItemType,$AD:$AD)","v":876088},{"$f":"SUMIFS(Sheet1!S71_PreviousBudget,Sheet1!S71_A2SubCode,$AC:$AC,Sheet1!S71_ItemType,$AD:$AD)","v":676088},null,null,null,null,{"$f":"SUMIFS(Sheet1!S71_CurrentAdjustments,Sheet1!S71_A2SubCode,$AC:$AC,Sheet1!S71_ItemType,$AD:$AD)","v":0},0,676088,{"$f":"SUMIFS(Sheet1!S71_OY1AdjustedBudget,Sheet1!S71_A2SubCode,$AC:$AC,Sheet1!S71_ItemType,$AD:$AD)","v":456913},{"$f":"SUMIFS(Sheet1!S71_OY2AdjustedBudget,Sheet1!S71_A2SubCode,$AC:$AC,Sheet1!S71_ItemType,$AD:$AD)","v":473146},null,null,null,null,null,null,null,null,null,null,null,null,null,null,null,"5006","IE","IZ"]
[{"$f":"\"Total \"&A128","v":"Total Expenditure - Functional"},3,{"$f":"C129+C149+C198+C222+C241","v":443030793},468419145,0,0,0,-6719130,0,-6719130,461700015,{"$f":"L129+L149+L198+L222+L241","v":449339045},{"$f":"M129+M149+M198+M222+M241","v":459589147}]
[{"$f":"result","v":"Surplus/ (Deficit) for the year"},null,{"$f":"C126-C248","v":43830101},25588308,0,0,0,2283500,0,2283500,27871808,{"$f":"L126-L248","v":44553274},{"$f":"M126-M248","v":47086759}]
[{"$f":"head27a","v":"References"}]
["1. Government Finance Statistics Functions and Sub-functions are standardised to assist national and international accounts and comparison"]
["2. Total Revenue by Functional Classification must reconcile to total operating revenue shown in Financial Performance (revenue and expenditure)"]
["3. Total Expenditure by Functional Classification must reconcile to total operating expenditure shown in Financial Performance (revenue and expenditure)"]
["4. All amounts must be classified under a Functional classification. The GFS function 'Other' is only for Abbatoirs, Air Transport, Licensing and Regulation, Markets and Tourism - and if used must be supported by footnotes. Nothing else may be placed under 'Other'. Assign associate share to relevant classification"]

{"sheet":"B3-FinPerf V","index":27,"n_rows":55,"n_cols":13,"rows_kept":55,"cut":false,"hidden":false,"merged":[[51,0,51,12],[47,0,47,12],[49,0,49,12],[1,0,2,0],[1,1,4,1],[1,2,1,10],[44,0,44,12],[45,0,45,12],[46,0,46,12]]}
[{"$f":"muni&\" - \"&_ADJ2&\" - \"&Date","v":"KZN291 Mandeni - Table B3 Adjustments Budget Financial Performance (revenue and expenditure by municipal vote) - 08-04-2025"}]
[{"$f":"Vdesc","v":"Vote Description"},{"$f":"head27","v":"Ref"},{"$f":"Head2","v":"Budget Year 2024/25"},null,null,null,null,null,null,null,null,{"$f":"Head10","v":"Budget Year +1 2025/26"},{"$f":"Head11","v":"Budget Year +2 2026/27"}]
[null,null,{"$f":"Head6","v":"Original Budget"},{"$f":"Head54","v":"Prior Adjusted"},{"$f":"Head51","v":"Accum. Funds"},{"$f":"Head52","v":"Multi-year capital"},{"$f":"Head53","v":"Unfore. Unavoid."},{"$f":"Head55","v":"Nat. or Prov. Govt"},{"$f":"Head50","v":"Other Adjusts."},{"$f":"Head56","v":"Total Adjusts."},{"$f":"Head7","v":"Adjusted Budget"},{"$f":"Head7","v":"Adjusted Budget"},{"$f":"Head7","v":"Adjusted Budget"}]
["[Insert departmental structure etc]",null,null,3,4,5,6,7,8,9,10]
["R thousands",null,"A","A1","B","C","D","E","F","G","H"]
["Revenue by Vote",1]
[{"$f":"B3B!A7","v":"Vote 1 - Executive and council"},null,{"$f":"B3B!C7","v":8038000},{"$f":"B3B!D7","v":8038000},{"$f":"B3B!E7","v":0},{"$f":"B3B!F7","v":0},{"$f":"B3B!G7","v":0},{"$f":"B3B!H7","v":0},{"$f":"B3B!I7","v":0},{"$f":"SUM(E7:I7)","v":0},{"$f":"IF(D7=0,C7+J7,D7+J7)","v":8038000},{"$f":"B3B!L7","v":8356000},{"$f":"B3B!M7","v":8700000}]
[{"$f":"B3B!A18","v":"Vote 2 - Finance and administration"},null,{"$f":"B3B!C18","v":332197929},{"$f":"B3B!D18","v":332929929},{"$f":"B3B!E18","v":0},{"$f":"B3B!F18","v":0},{"$f":"B3B!G18","v":0},{"$f":"B3B!H18","v":0},{"$f":"B3B!I18","v":0},0,332929929,{"$f":"B3B!L18","v":335661956},{"$f":"B3B!M18","v":334491600}]
[{"$f":"B3B!A29","v":"Vote 3 - Internal audit"},null,{"$f":"B3B!C29","v":0},{"$f":"B3B!D29","v":0},{"$f":"B3B!E29","v":0},{"$f":"B3B!F29","v":0},{"$f":"B3B!G29","v":0},{"$f":"B3B!H29","v":0},{"$f":"B3B!I29","v":0},0,0,{"$f":"B3B!L29","v":0},{"$f":"B3B!M29","v":0}]
[{"$f":"B3B!A40","v":"Vote 4 - Community and social services"},null,{"$f":"B3B!C40","v":5464272},{"$f":"B3B!D40","v":5764272},{"$f":"B3B!E40","v":0},{"$f":"B3B!F40","v":0},{"$f":"B3B!G40","v":0},{"$f":"B3B!H40","v":0},{"$f":"B3B!I40","v":0},0,5764272,{"$f":"B3B!L40","v":5817152},{"$f":"B3B!M40","v":9866023}]
[{"$f":"B3B!A51","v":"Vote 5 - Sport and Recreation"},null,{"$f":"B3B!C51","v":0},{"$f":"B3B!D51","v":0},{"$f":"B3B!E51","v":0},{"$f":"B3B!F51","v":0},{"$f":"B3B!G51","v":0},{"$f":"B3B!H51","v":0},{"$f":"B3B!I51","v":0},0,0,{"$f":"B3B!L51","v":0},{"$f":"B3B!M51","v":0}]
[{"$f":"B3B!A62","v":"Vote 6 - Public safety"},null,{"$f":"B3B!C62","v":0},{"$f":"B3B!D62","v":0},{"$f":"B3B!E62","v":0},{"$f":"B3B!F62","v":0},{"$f":"B3B!G62","v":0},{"$f":"B3B!H62","v":0},{"$f":"B3B!I62","v":0},0,0,{"$f":"B3B!L62","v":0},{"$f":"B3B!M62","v":0}]
[{"$f":"B3B!A73","v":"Vote 7 - Housing"},null,{"$f":"B3B!C73","v":0},{"$f":"B3B!D73","v":0},{"$f":"B3B!E73","v":0},{"$f":"B3B!F73","v":0},{"$f":"B3B!G73","v":0},{"$f":"B3B!H73","v":0},{"$f":"B3B!I73","v":0},0,0,{"$f":"B3B!L73","v":0},{"$f":"B3B!M73","v":0}]
[{"$f":"B3B!A84","v":"Vote 8 - Planning and Development"},null,{"$f":"B3B!C84","v":41542304},{"$f":"B3B!D84","v":47119863},{"$f":"B3B!E84","v":0},{"$f":"B3B!F84","v":0},{"$f":"B3B!G84","v":0},{"$f":"B3B!H84","v":0},{"$f":"B3B!I84","v":0},0,47119863,{"$f":"B3B!L84","v":43450604},{"$f":"B3B!M84","v":46985837}]
[{"$f":"B3B!A95","v":"Vote 9 - Road transport"},null,{"$f":"B3B!C95","v":3984565},{"$f":"B3B!D95","v":3984565},{"$f":"B3B!E95","v":0},{"$f":"B3B!F95","v":0},{"$f":"B3B!G95","v":0},{"$f":"B3B!H95","v":2283500},{"$f":"B3B!I95","v":0},2283500,6268065,{"$f":"B3B!L95","v":2269365},{"$f":"B3B!M95","v":2373756}]
[{"$f":"B3B!A106","v":"Vote 10 - Energy sources"},null,{"$f":"B3B!C106","v":80675495},{"$f":"B3B!D106","v":80742895},{"$f":"B3B!E106","v":0},{"$f":"B3B!F106","v":0},{"$f":"B3B!G106","v":0},{"$f":"B3B!H106","v":-6719130},{"$f":"B3B!I106","v":0},-6719130,74023765,{"$f":"B3B!L106","v":82689988},{"$f":"B3B!M106","v":87889913}]
[{"$f":"B3B!A117","v":"Vote 11 - Waste Management"},null,{"$f":"B3B!C117","v":14958329},{"$f":"B3B!D117","v":15427929},{"$f":"B3B!E117","v":0},{"$f":"B3B!F117","v":0},{"$f":"B3B!G117","v":0},{"$f":"B3B!H117","v":0},{"$f":"B3B!I117","v":0},0,15427929,{"$f":"B3B!L117","v":15647254},{"$f":"B3B!M117","v":16368777}]
[{"$f":"B3B!A128","v":"Vote 12 - Environmental Protection"},null,{"$f":"B3B!C128","v":0},{"$f":"B3B!D128","v":0},{"$f":"B3B!E128","v":0},{"$f":"B3B!F128","v":0},{"$f":"B3B!G128","v":0},{"$f":"B3B!H128","v":0},{"$f":"B3B!I128","v":0},0,0,{"$f":"B3B!L128","v":0},{"$f":"B3B!M128","v":0}]
[{"$f":"B3B!A139","v":"Vote 13 - [NAME OF VOTE 13]"},null,{"$f":"B3B!C139","v":0},{"$f":"B3B!D139","v":0},{"$f":"B3B!E139","v":0},{"$f":"B3B!F139","v":0},{"$f":"B3B!G139","v":0},{"$f":"B3B!H139","v":0},{"$f":"B3B!I139","v":0},0,0,{"$f":"B3B!L139","v":0},{"$f":"B3B!M139","v":0}]
[{"$f":"B3B!A150","v":"Vote 14 - [NAME OF VOTE 14]"},null,{"$f":"B3B!C150","v":0},{"$f":"B3B!D150","v":0},{"$f":"B3B!E150","v":0},{"$f":"B3B!F150","v":0},{"$f":"B3B!G150","v":0},{"$f":"B3B!H150","v":0},{"$f":"B3B!I150","v":0},0,0,{"$f":"B3B!L150","v":0},{"$f":"B3B!M150","v":0}]
[{"$f":"B3B!A161","v":"Vote 15 - [NAME OF VOTE 15]"},null,{"$f":"B3B!C161","v":0},{"$f":"B3B!D161","v":0},{"$f":"B3B!E161","v":0},{"$f":"B3B!F161","v":0},{"$f":"B3B!G161","v":0},{"$f":"B3B!H161","v":0},{"$f":"B3B!I161","v":0},0,0,{"$f":"B3B!L161","v":0},{"$f":"B3B!M161","v":0}]
["Total Revenue by Vote",2,{"$f":"SUM(C7:C21)","v":486860894},{"$f":"SUM(D7:D21)","v":494007453},0,0,0,-4435630,0,{"$f":"SUM(J7:J21)","v":-4435630},489571823,{"$f":"SUM(L7:L21)","v":493892319},{"$f":"SUM(M7:M21)","v":506675906}]
[]
["Expenditure by Vote",1]
[{"$f":"B3B!A175","v":"Vote 1 - Executive and council"},null,{"$f":"B3B!C175","v":66001422},{"$f":"B3B!D175","v":72502265},{"$f":"B3B!E175","v":0},{"$f":"B3B!F175","v":0},{"$f":"B3B!G175","v":0},{"$f":"B3B!H175","v":0},{"$f":"B3B!I175","v":0},{"$f":"SUM(E25:I25)","v":0},{"$f":"IF(D25=0,C25+J25,D25+J25)","v":72502265},{"$f":"B3B!L175","v":69139571},{"$f":"B3B!M175","v":71919455}]
[{"$f":"B3B!A186","v":"Vote 2 - Finance and administration"},null,{"$f":"B3B!C186","v":151121489},{"$f":"B3B!D186","v":165145830},{"$f":"B3B!E186","v":0},{"$f":"B3B!F186","v":0},{"$f":"B3B!G186","v":0},{"$f":"B3B!H186","v":0},{"$f":"B3B!I186","v":0},0,165145830,{"$f":"B3B!L186","v":149835530},{"$f":"B3B!M186","v":137933511}]
[{"$f":"B3B!A197","v":"Vote 3 - Internal audit"},null,{"$f":"B3B!C197","v":0},{"$f":"B3B!D197","v":0},{"$f":"B3B!E197","v":0},{"$f":"B3B!F197","v":0},{"$f":"B3B!G197","v":0},{"$f":"B3B!H197","v":0},{"$f":"B3B!I197","v":0},0,0,{"$f":"B3B!L197","v":0},{"$f":"B3B!M197","v":0}]
[{"$f":"B3B!A208","v":"Vote 4 - Community and social services"},null,{"$f":"B3B!C208","v":30811229},{"$f":"B3B!D208","v":30452711},{"$f":"B3B!E208","v":0},{"$f":"B3B!F208","v":0},{"$f":"B3B!G208","v":0},{"$f":"B3B!H208","v":0},{"$f":"B3B!I208","v":0},0,30452711,{"$f":"B3B!L208","v":31707493},{"$f":"B3B!M208","v":33069256}]
[{"$f":"B3B!A219","v":"Vote 5 - Sport and Recreation"},null,{"$f":"B3B!C219","v":10029753},{"$f":"B3B!D219","v":13714179},{"$f":"B3B!E219","v":0},{"$f":"B3B!F219","v":0},{"$f":"B3B!G219","v":0},{"$f":"B3B!H219","v":0},{"$f":"B3B!I219","v":0},0,13714179,{"$f":"B3B!L219","v":10257703},{"$f":"B3B!M219","v":11101933}]
[{"$f":"B3B!A230","v":"Vote 6 - Public safety"},null,{"$f":"B3B!C230","v":1889565},{"$f":"B3B!D230","v":1746935},{"$f":"B3B!E230","v":0},{"$f":"B3B!F230","v":0},{"$f":"B3B!G230","v":0},{"$f":"B3B!H230","v":0},{"$f":"B3B!I230","v":0},0,1746935,{"$f":"B3B!L230","v":1976485},{"$f":"B3B!M230","v":2067395}]
[{"$f":"B3B!A241","v":"Vote 7 - Housing"},null,{"$f":"B3B!C241","v":30000},{"$f":"B3B!D241","v":269078},{"$f":"B3B!E241","v":0},{"$f":"B3B!F241","v":0},{"$f":"B3B!G241","v":0},{"$f":"B3B!H241","v":0},{"$f":"B3B!I241","v":0},0,269078,{"$f":"B3B!L241","v":31380},{"$f":"B3B!M241","v":32823}]
[{"$f":"B3B!A252","v":"Vote 8 - Planning and Development"},null,{"$f":"B3B!C252","v":26591867},{"$f":"B3B!D252","v":25034728},{"$f":"B3B!E252","v":0},{"$f":"B3B!F252","v":0},{"$f":"B3B!G252","v":0},{"$f":"B3B!H252","v":0},{"$f":"B3B!I252","v":0},0,25034728,{"$f":"B3B!L252","v":24989494},{"$f":"B3B!M252","v":26191182}]
[{"$f":"B3B!A263","v":"Vote 9 - Road transport"},null,{"$f":"B3B!C263","v":56225396},{"$f":"B3B!D263","v":57455784},{"$f":"B3B!E263","v":0},{"$f":"B3B!F263","v":0},{"$f":"B3B!G263","v":0},{"$f":"B3B!H263","v":0},{"$f":"B3B!I263","v":0},0,57455784,{"$f":"B3B!L263","v":58480686},{"$f":"B3B!M263","v":59861533}]
[{"$f":"B3B!A274","v":"Vote 10 - Energy sources"},null,{"$f":"B3B!C274","v":76143194},{"$f":"B3B!D274","v":76674248},{"$f":"B3B!E274","v":0},{"$f":"B3B!F274","v":0},{"$f":"B3B!G274","v":0},{"$f":"B3B!H274","v":-6719130},{"$f":"B3B!I274","v":0},-6719130,69955118,{"$f":"B3B!L274","v":76813179},{"$f":"B3B!M274","v":81119364}]
[{"$f":"B3B!A285","v":"Vote 11 - Waste Management"},null,{"$f":"B3B!C285","v":20123878},{"$f":"B3B!D285","v":21299311},{"$f":"B3B!E285","v":0},{"$f":"B3B!F285","v":0},{"$f":"B3B!G285","v":0},{"$f":"B3B!H285","v":0},{"$f":"B3B!I285","v":0},0,21299311,{"$f":"B3B!L285","v":21857644},{"$f":"B3B!M285","v":31847295}]
[{"$f":"B3B!A296","v":"Vote 12 - Environmental Protection"},null,{"$f":"B3B!C296","v":4063000},{"$f":"B3B!D296","v":4124076},{"$f":"B3B!E296","v":0},{"$f":"B3B!F296","v":0},{"$f":"B3B!G296","v":0},{"$f":"B3B!H296","v":0},{"$f":"B3B!I296","v":0},0,4124076,{"$f":"B3B!L296","v":4249880},{"$f":"B3B!M296","v":4445400}]
[{"$f":"B3B!A307","v":"Vote 13 - [NAME OF VOTE 13]"},null,{"$f":"B3B!C307","v":0},{"$f":"B3B!D307","v":0},{"$f":"B3B!E307","v":0},{"$f":"B3B!F307","v":0},{"$f":"B3B!G307","v":0},{"$f":"B3B!H307","v":0},{"$f":"B3B!I307","v":0},0,0,{"$f":"B3B!L307","v":0},{"$f":"B3B!M307","v":0}]
[{"$f":"B3B!A318","v":"Vote 14 - [NAME OF VOTE 14]"},null,{"$f":"B3B!C318","v":0},{"$f":"B3B!D318","v":0},{"$f":"B3B!E318","v":0},{"$f":"B3B!F318","v":0},{"$f":"B3B!G318","v":0},{"$f":"B3B!H318","v":0},{"$f":"B3B!I318","v":0},0,0,{"$f":"B3B!L318","v":0},{"$f":"B3B!M318","v":0}]
[{"$f":"B3B!A329","v":"Vote 15 - [NAME OF VOTE 15]"},null,{"$f":"B3B!C329","v":0},{"$f":"B3B!D329","v":0},{"$f":"B3B!E329","v":0},{"$f":"B3B!F329","v":0},{"$f":"B3B!G329","v":0},{"$f":"B3B!H329","v":0},{"$f":"B3B!I329","v":0},0,0,{"$f":"B3B!L329","v":0},{"$f":"B3B!M329","v":0}]
["Total Expenditure by Vote",2,{"$f":"SUM(C25:C39)","v":443030793},{"$f":"SUM(D25:D39)","v":468419145},0,0,0,-6719130,0,{"$f":"SUM(J25:J39)","v":-6719130},{"$f":"SUM(K25:K39)","v":461700015},{"$f":"SUM(L25:L39)","v":449339045},{"$f":"SUM(M25:M39)","v":459589147}]
[{"$f":"result","v":"Surplus/ (Deficit) for the year"},2,{"$f":"C22-C40","v":43830101},{"$f":"D22-D40","v":25588308},0,0,0,2283500,0,2283500,27871808,44553274,47086759]
[{"$f":"head27a","v":"References"}]
["1. Insert 'Vote'; e.g. Department, if different to standard classification structure"]
["2. Must reconcile to Budgeted Financial Performance (revenue and expenditure)"]
["3. Only complete if a previous adjusted budget has been approved in the same financial year. Reflect most recent adjusted budget."]
["4. Additional cash-backed accumulated funds/unspent funds (MFMA section 18(1)(b) and section 28(2)(e)) identified after the Original Budget approved and after annual financial statements audited (note: only where underspending could not reasonably have been foreseen)"]
["5. Increases of funds approved under MFMA section 31"]
["6. Adjustments approved in accordance with MFMA section 29 "]
["7. Adjustments to transfers from National or Provincial Government"]
["8. Adjusts. = 'Other' Adjustments proposed to be approved; including revenue under-collection (MFMA section 28(2)(a)); additional revenue appropriation on existing programmes (section 28(2))(b); projected savings (section 28(2)(d)); error correction (section 28(2)(f))"]
["9. G = B + C + D + E + F"]
["10. Adjusted Budget H = (A or A1/2 etc) + G"]
[]
["check revenue",null,{"$f":"C22-'B4-FinPerf RE'!C34-'B4-FinPerf RE'!C53","v":0},{"$f":"D22-'B4-FinPerf RE'!D34-'B4-FinPerf RE'!D53","v":0},{"$f":"E22-'B4-FinPerf RE'!E34-'B4-FinPerf RE'!E53","v":0},{"$f":"F22-'B4-FinPerf RE'!F34-'B4-FinPerf RE'!F53","v":0},{"$f":"G22-'B4-FinPerf RE'!G34-'B4-FinPerf RE'!G53","v":0},{"$f":"H22-'B4-FinPerf RE'!H34-'B4-FinPerf RE'!H53","v":0},{"$f":"I22-'B4-FinPerf RE'!I34-'B4-FinPerf RE'!I53","v":0},{"$f":"J22-'B4-FinPerf RE'!J34-'B4-FinPerf RE'!J53","v":0},{"$f":"K22-'B4-FinPerf RE'!K34-'B4-FinPerf RE'!K53","v":0},{"$f":"L22-'B4-FinPerf RE'!L34-'B4-FinPerf RE'!L53","v":0},{"$f":"M22-'B4-FinPerf RE'!M34-'B4-FinPerf RE'!M53","v":0}]
["check expenditure",null,{"$f":"C40-'B4-FinPerf RE'!C50","v":-585685},{"$f":"D40-'B4-FinPerf RE'!D50","v":0},{"$f":"E40-'B4-FinPerf RE'!E50","v":0},{"$f":"F40-'B4-FinPerf RE'!F50","v":0},{"$f":"G40-'B4-FinPerf RE'!G50","v":0},{"$f":"H40-'B4-FinPerf RE'!H50","v":0},{"$f":"I40-'B4-FinPerf RE'!I50","v":0},{"$f":"J40-'B4-FinPerf RE'!J50","v":0},{"$f":"K40-'B4-FinPerf RE'!K50","v":0},{"$f":"L40-'B4-FinPerf RE'!L50","v":0},{"$f":"M40-'B4-FinPerf RE'!M50","v":0}]

{"sheet":"B3B","index":28,"n_rows":346,"n_cols":31,"rows_kept":346,"cut":false,"hidden":false,"merged":[[1,0,2,0],[1,1,4,1],[1,2,1,10]]}
[{"$f":"muni&\" - \"&_ADJ2&\" - B\"&\" - \"&Date","v":"KZN291 Mandeni - Table B3 Adjustments Budget Financial Performance (revenue and expenditure by municipal vote) - B - 08-04-2025"}]
[{"$f":"Vdesc","v":"Vote Description"},{"$f":"head27","v":"Ref"},{"$f":"Head2","v":"Budget Year 2024/25"},null,null,null,null,null,null,null,null,{"$f":"Head10","v":"Budget Year +1 2025/26"},{"$f":"Head11","v":"Budget Year +2 2026/27"}]
[null,null,{"$f":"Head6","v":"Original Budget"},{"$f":"Head54","v":"Prior Adjusted"},{"$f":"Head51","v":"Accum. Funds"},{"$f":"Head52","v":"Multi-year capital"},{"$f":"Head53","v":"Unfore. Unavoid."},{"$f":"Head55","v":"Nat. or Prov. Govt"},{"$f":"Head50","v":"Other Adjusts."},{"$f":"Head56","v":"Total Adjusts."},{"$f":"Head7","v":"Adjusted Budget"},{"$f":"Head7","v":"Adjusted Budget"},{"$f":"Head7","v":"Adjusted Budget"}]
["[Insert departmental structure etc]",null,null,3,4,5,6,7,8,9,10]
["R thousands",null,"A","A1","B","C","D","E","F","G","H"]
["Revenue by Vote",1]
[{"$f":"'Org structure'!A2","v":"Vote 1 - Executive and council"},null,{"$f":"SUM(C8:C17)","v":8038000},{"$f":"SUM(D8:D17)","v":8038000},0,0,0,0,0,{"$f":"SUM(E7:I7)","v":0},{"$f":"IF(D7=0,C7+J7,D7+J7)","v":8038000},{"$f":"SUM(L8:L17)","v":8356000},{"$f":"SUM(M8:M17)","v":8700000}]
[{"$f":"'Org structure'!D3","v":"1.1 - Mayor and Council"},null,{"$f":"-SUMIFS(Sheet1!S71_OriginalBudget,Sheet1!S71_SubMunicipalVoteNo,$AC:$AC,Sheet1!S71_ItemType,$AD:$AD)","v":8038000},{"$f":"-SUMIFS(Sheet1!S71_PreviousBudget,Sheet1!S71_SubMunicipalVoteNo,$AC:$AC,Sheet1!S71_ItemType,$AD:$AD)","v":8038000},null,null,null,null,{"$f":"-SUMIFS(Sheet1!S71_CurrentAdjustments,Sheet1!S71_SubMunicipalVoteNo,$AC:$AC,Sheet1!S71_ItemType,$AD:$AD)","v":0},{"$f":"SUM(E8:I8)","v":0},{"$f":"IF(D8=0,C8+J8,D8+J8)","v":8038000},{"$f":"-SUMIFS(Sheet1!S71_OY1AdjustedBudget,Sheet1!S71_SubMunicipalVoteNo,$AC:$AC,Sheet1!S71_ItemType,$AD:$AD)","v":8356000},{"$f":"-SUMIFS(Sheet1!S71_OY2AdjustedBudget,Sheet1!S71_SubMunicipalVoteNo,$AC:$AC,Sheet1!S71_ItemType,$AD:$AD)","v":8700000},null,null,null,null,null,null,null,null,null,null,null,null,null,null,null,11,"IR","IZ"]
[{"$f":"'Org structure'!D4","v":"1.2 - Municipal Manager, Town Secretary and Chief Executive"},null,{"$f":"-SUMIFS(Sheet1!S71_OriginalBudget,Sheet1!S71_SubMunicipalVoteNo,$AC:$AC,Sheet1!S71_ItemType,$AD:$AD)","v":0},{"$f":"-SUMIFS(Sheet1!S71_PreviousBudget,Sheet1!S71_SubMunicipalVoteNo,$AC:$AC,Sheet1!S71_ItemType,$AD:$AD)","v":0},null,null,null,null,{"$f":"-SUMIFS(Sheet1!S71_CurrentAdjustments,Sheet1!S71_SubMunicipalVoteNo,$AC:$AC,Sheet1!S71_ItemType,$AD:$AD)","v":0},0,0,{"$f":"-SUMIFS(Sheet1!S71_OY1AdjustedBudget,Sheet1!S71_SubMunicipalVoteNo,$AC:$AC,Sheet1!S71_ItemType,$AD:$AD)","v":0},{"$f":"-SUMIFS(Sheet1!S71_OY2AdjustedBudget,Sheet1!S71_SubMunicipalVoteNo,$AC:$AC,Sheet1!S71_ItemType,$AD:$AD)","v":0},null,null,null,null,null,null,null,null,null,null,null,null,null,null,null,12,"IR","IZ"]
[{"$f":"'Org structure'!D5","v":"1.3 - [Name of sub-vote]"},null,{"$f":"-SUMIFS(Sheet1!S71_OriginalBudget,Sheet1!S71_SubMunicipalVoteNo,$AC:$AC,Sheet1!S71_ItemType,$AD:$AD)","v":0},{"$f":"-SUMIFS(Sheet1!S71_PreviousBudget,Sheet1!S71_SubMunicipalVoteNo,$AC:$AC,Sheet1!S71_ItemType,$AD:$AD)","v":0},null,null,null,null,{"$f":"-SUMIFS(Sheet1!S71_CurrentAdjustments,Sheet1!S71_SubMunicipalVoteNo,$AC:$AC,Sheet1!S71_ItemType,$AD:$AD)","v":0},0,0,{"$f":"-SUMIFS(Sheet1!S71_OY1AdjustedBudget,Sheet1!S71_SubMunicipalVoteNo,$AC:$AC,Sheet1!S71_ItemType,$AD:$AD)","v":0},{"$f":"-SUMIFS(Sheet1!S71_OY2AdjustedBudget,Sheet1!S71_SubMunicipalVoteNo,$AC:$AC,Sheet1!S71_ItemType,$AD:$AD)","v":0},null,null,null,null,null,null,null,null,null,null,null,null,null,null,null,13,"IR","IZ"]
[{"$f":"'Org structure'!D6","v":"1.4 - [Name of sub-vote]"},null,{"$f":"-SUMIFS(Sheet1!S71_OriginalBudget,Sheet1!S71_SubMunicipalVoteNo,$AC:$AC,Sheet1!S71_ItemType,$AD:$AD)","v":0},{"$f":"-SUMIFS(Sheet1!S71_PreviousBudget,Sheet1!S71_SubMunicipalVoteNo,$AC:$AC,Sheet1!S71_ItemType,$AD:$AD)","v":0},null,null,null,null,{"$f":"-SUMIFS(Sheet1!S71_CurrentAdjustments,Sheet1!S71_SubMunicipalVoteNo,$AC:$AC,Sheet1!S71_ItemType,$AD:$AD)","v":0},0,0,{"$f":"-SUMIFS(Sheet1!S71_OY1AdjustedBudget,Sheet1!S71_SubMunicipalVoteNo,$AC:$AC,Sheet1!S71_ItemType,$AD:$AD)","v":0},{"$f":"-SUMIFS(Sheet1!S71_OY2AdjustedBudget,Sheet1!S71_SubMunicipalVoteNo,$AC:$AC,Sheet1!S71_ItemType,$AD:$AD)","v":0},null,null,null,null,null,null,null,null,null,null,null,null,null,null,null,14,"IR","IZ"]
[{"$f":"'Org structure'!D7","v":"1.5 - [Name of sub-vote]"},null,{"$f":"-SUMIFS(Sheet1!S71_OriginalBudget,Sheet1!S71_SubMunicipalVoteNo,$AC:$AC,Sheet1!S71_ItemType,$AD:$AD)","v":0},{"$f":"-SUMIFS(Sheet1!S71_PreviousBudget,Sheet1!S71_SubMunicipalVoteNo,$AC:$AC,Sheet1!S71_ItemType,$AD:$AD)","v":0},null,null,null,null,{"$f":"-SUMIFS(Sheet1!S71_CurrentAdjustments,Sheet1!S71_SubMunicipalVoteNo,$AC:$AC,Sheet1!S71_ItemType,$AD:$AD)","v":0},0,0,{"$f":"-SUMIFS(Sheet1!S71_OY1AdjustedBudget,Sheet1!S71_SubMunicipalVoteNo,$AC:$AC,Sheet1!S71_ItemType,$AD:$AD)","v":0},{"$f":"-SUMIFS(Sheet1!S71_OY2AdjustedBudget,Sheet1!S71_SubMunicipalVoteNo,$AC:$AC,Sheet1!S71_ItemType,$AD:$AD)","v":0},null,null,null,null,null,null,null,null,null,null,null,null,null,null,null,15,"IR","IZ"]
[{"$f":"'Org structure'!D8","v":"1.6 - [Name of sub-vote]"},null,{"$f":"-SUMIFS(Sheet1!S71_OriginalBudget,Sheet1!S71_SubMunicipalVoteNo,$AC:$AC,Sheet1!S71_ItemType,$AD:$AD)","v":0},{"$f":"-SUMIFS(Sheet1!S71_PreviousBudget,Sheet1!S71_SubMunicipalVoteNo,$AC:$AC,Sheet1!S71_ItemType,$AD:$AD)","v":0},null,null,null,null,{"$f":"-SUMIFS(Sheet1!S71_CurrentAdjustments,Sheet1!S71_SubMunicipalVoteNo,$AC:$AC,Sheet1!S71_ItemType,$AD:$AD)","v":0},0,0,{"$f":"-SUMIFS(Sheet1!S71_OY1AdjustedBudget,Sheet1!S71_SubMunicipalVoteNo,$AC:$AC,Sheet1!S71_ItemType,$AD:$AD)","v":0},{"$f":"-SUMIFS(Sheet1!S71_OY2AdjustedBudget,Sheet1!S71_SubMunicipalVoteNo,$AC:$AC,Sheet1!S71_ItemType,$AD:$AD)","v":0},null,null,null,null,null,null,null,null,null,null,null,null,null,null,null,16,"IR","IZ"]
[{"$f":"'Org structure'!D9","v":"1.7 - [Name of sub-vote]"},null,{"$f":"-SUMIFS(Sheet1!S71_OriginalBudget,Sheet1!S71_SubMunicipalVoteNo,$AC:$AC,Sheet1!S71_ItemType,$AD:$AD)","v":0},{"$f":"-SUMIFS(Sheet1!S71_PreviousBudget,Sheet1!S71_SubMunicipalVoteNo,$AC:$AC,Sheet1!S71_ItemType,$AD:$AD)","v":0},null,null,null,null,{"$f":"-SUMIFS(Sheet1!S71_CurrentAdjustments,Sheet1!S71_SubMunicipalVoteNo,$AC:$AC,Sheet1!S71_ItemType,$AD:$AD)","v":0},0,0,{"$f":"-SUMIFS(Sheet1!S71_OY1AdjustedBudget,Sheet1!S71_SubMunicipalVoteNo,$AC:$AC,Sheet1!S71_ItemType,$AD:$AD)","v":0},{"$f":"-SUMIFS(Sheet1!S71_OY2AdjustedBudget,Sheet1!S71_SubMunicipalVoteNo,$AC:$AC,Sheet1!S71_ItemType,$AD:$AD)","v":0},null,null,null,null,null,null,null,null,null,null,null,null,null,null,null,17,"IR","IZ"]
[{"$f":"'Org structure'!D10","v":"1.8 - [Name of sub-vote]"},null,{"$f":"-SUMIFS(Sheet1!S71_OriginalBudget,Sheet1!S71_SubMunicipalVoteNo,$AC:$AC,Sheet1!S71_ItemType,$AD:$AD)","v":0},{"$f":"-SUMIFS(Sheet1!S71_PreviousBudget,Sheet1!S71_SubMunicipalVoteNo,$AC:$AC,Sheet1!S71_ItemType,$AD:$AD)","v":0},null,null,null,null,{"$f":"-SUMIFS(Sheet1!S71_CurrentAdjustments,Sheet1!S71_SubMunicipalVoteNo,$AC:$AC,Sheet1!S71_ItemType,$AD:$AD)","v":0},0,0,{"$f":"-SUMIFS(Sheet1!S71_OY1AdjustedBudget,Sheet1!S71_SubMunicipalVoteNo,$AC:$AC,Sheet1!S71_ItemType,$AD:$AD)","v":0},{"$f":"-SUMIFS(Sheet1!S71_OY2AdjustedBudget,Sheet1!S71_SubMunicipalVoteNo,$AC:$AC,Sheet1!S71_ItemType,$AD:$AD)","v":0},null,null,null,null,null,null,null,null,null,null,null,null,null,null,null,18,"IR","IZ"]
[{"$f":"'Org structure'!D11","v":"1.9 - [Name of sub-vote]"},null,{"$f":"-SUMIFS(Sheet1!S71_OriginalBudget,Sheet1!S71_SubMunicipalVoteNo,$AC:$AC,Sheet1!S71_ItemType,$AD:$AD)","v":0},{"$f":"-SUMIFS(Sheet1!S71_PreviousBudget,Sheet1!S71_SubMunicipalVoteNo,$AC:$AC,Sheet1!S71_ItemType,$AD:$AD)","v":0},null,null,null,null,{"$f":"-SUMIFS(Sheet1!S71_CurrentAdjustments,Sheet1!S71_SubMunicipalVoteNo,$AC:$AC,Sheet1!S71_ItemType,$AD:$AD)","v":0},0,0,{"$f":"-SUMIFS(Sheet1!S71_OY1AdjustedBudget,Sheet1!S71_SubMunicipalVoteNo,$AC:$AC,Sheet1!S71_ItemType,$AD:$AD)","v":0},{"$f":"-SUMIFS(Sheet1!S71_OY2AdjustedBudget,Sheet1!S71_SubMunicipalVoteNo,$AC:$AC,Sheet1!S71_ItemType,$AD:$AD)","v":0},null,null,null,null,null,null,null,null,null,null,null,null,null,null,null,19,"IR","IZ"]
[{"$f":"'Org structure'!D12","v":"1.10 - [Name of sub-vote]"},null,{"$f":"-SUMIFS(Sheet1!S71_OriginalBudget,Sheet1!S71_SubMunicipalVoteNo,$AC:$AC,Sheet1!S71_ItemType,$AD:$AD)","v":0},{"$f":"-SUMIFS(Sheet1!S71_PreviousBudget,Sheet1!S71_SubMunicipalVoteNo,$AC:$AC,Sheet1!S71_ItemType,$AD:$AD)","v":0},null,null,null,null,{"$f":"-SUMIFS(Sheet1!S71_CurrentAdjustments,Sheet1!S71_SubMunicipalVoteNo,$AC:$AC,Sheet1!S71_ItemType,$AD:$AD)","v":0},0,0,{"$f":"-SUMIFS(Sheet1!S71_OY1AdjustedBudget,Sheet1!S71_SubMunicipalVoteNo,$AC:$AC,Sheet1!S71_ItemType,$AD:$AD)","v":0},{"$f":"-SUMIFS(Sheet1!S71_OY2AdjustedBudget,Sheet1!S71_SubMunicipalVoteNo,$AC:$AC,Sheet1!S71_ItemType,$AD:$AD)","v":0},null,null,null,null,null,null,null,null,null,null,null,null,null,null,null,110,"IR","IZ"]
[{"$f":"'Org structure'!A3","v":"Vote 2 - Finance and administration"},null,{"$f":"SUM(C19:C28)","v":332197929},{"$f":"SUM(D19:D28)","v":332929929},0,0,0,0,0,0,332929929,{"$f":"SUM(L19:L28)","v":335661956},{"$f":"SUM(M19:M28)","v":334491600}]
[{"$f":"'Org structure'!D14","v":"2.1 - Administrative and Corporate Support"},null,{"$f":"-SUMIFS(Sheet1!S71_OriginalBudget,Sheet1!S71_SubMunicipalVoteNo,$AC:$AC,Sheet1!S71_ItemType,$AD:$AD)","v":0},{"$f":"-SUMIFS(Sheet1!S71_PreviousBudget,Sheet1!S71_SubMunicipalVoteNo,$AC:$AC,Sheet1!S71_ItemType,$AD:$AD)","v":0},null,null,null,null,{"$f":"-SUMIFS(Sheet1!S71_CurrentAdjustments,Sheet1!S71_SubMunicipalVoteNo,$AC:$AC,Sheet1!S71_ItemType,$AD:$AD)","v":0},0,0,{"$f":"-SUMIFS(Sheet1!S71_OY1AdjustedBudget,Sheet1!S71_SubMunicipalVoteNo,$AC:$AC,Sheet1!S71_ItemType,$AD:$AD)","v":0},{"$f":"-SUMIFS(Sheet1!S71_OY2AdjustedBudget,Sheet1!S71_SubMunicipalVoteNo,$AC:$AC,Sheet1!S71_ItemType,$AD:$AD)","v":0},null,null,null,null,null,null,null,null,null,null,null,null,null,null,null,21,"IR","IZ"]
[{"$f":"'Org structure'!D15","v":"2.2 - Asset Management"},null,{"$f":"-SUMIFS(Sheet1!S71_OriginalBudget,Sheet1!S71_SubMunicipalVoteNo,$AC:$AC,Sheet1!S71_ItemType,$AD:$AD)","v":0},{"$f":"-SUMIFS(Sheet1!S71_PreviousBudget,Sheet1!S71_SubMunicipalVoteNo,$AC:$AC,Sheet1!S71_ItemType,$AD:$AD)","v":0},null,null,null,null,{"$f":"-SUMIFS(Sheet1!S71_CurrentAdjustments,Sheet1!S71_SubMunicipalVoteNo,$AC:$AC,Sheet1!S71_ItemType,$AD:$AD)","v":0},0,0,{"$f":"-SUMIFS(Sheet1!S71_OY1AdjustedBudget,Sheet1!S71_SubMunicipalVoteNo,$AC:$AC,Sheet1!S71_ItemType,$AD:$AD)","v":0},{"$f":"-SUMIFS(Sheet1!S71_OY2AdjustedBudget,Sheet1!S71_SubMunicipalVoteNo,$AC:$AC,Sheet1!S71_ItemType,$AD:$AD)","v":0},null,null,null,null,null,null,null,null,null,null,null,null,null,null,null,22,"IR","IZ"]
[{"$f":"'Org structure'!D16","v":"2.3 - Finance"},null,{"$f":"-SUMIFS(Sheet1!S71_OriginalBudget,Sheet1!S71_SubMunicipalVoteNo,$AC:$AC,Sheet1!S71_ItemType,$AD:$AD)","v":303806625},{"$f":"-SUMIFS(Sheet1!S71_PreviousBudget,Sheet1!S71_SubMunicipalVoteNo,$AC:$AC,Sheet1!S71_ItemType,$AD:$AD)","v":304538625},null,null,null,null,{"$f":"-SUMIFS(Sheet1!S71_CurrentAdjustments,Sheet1!S71_SubMunicipalVoteNo,$AC:$AC,Sheet1!S71_ItemType,$AD:$AD)","v":0},0,304538625,{"$f":"-SUMIFS(Sheet1!S71_OY1AdjustedBudget,Sheet1!S71_SubMunicipalVoteNo,$AC:$AC,Sheet1!S71_ItemType,$AD:$AD)","v":306412652},{"$f":"-SUMIFS(Sheet1!S71_OY2AdjustedBudget,Sheet1!S71_SubMunicipalVoteNo,$AC:$AC,Sheet1!S71_ItemType,$AD:$AD)","v":304358268},null,null,null,null,null,null,null,null,null,null,null,null,null,null,null,23,"IR","IZ"]
[{"$f":"'Org structure'!D17","v":"2.4 - Fleet Management"},null,{"$f":"-SUMIFS(Sheet1!S71_OriginalBudget,Sheet1!S71_SubMunicipalVoteNo,$AC:$AC,Sheet1!S71_ItemType,$AD:$AD)","v":0},{"$f":"-SUMIFS(Sheet1!S71_PreviousBudget,Sheet1!S71_SubMunicipalVoteNo,$AC:$AC,Sheet1!S71_ItemType,$AD:$AD)","v":0},null,null,null,null,{"$f":"-SUMIFS(Sheet1!S71_CurrentAdjustments,Sheet1!S71_SubMunicipalVoteNo,$AC:$AC,Sheet1!S71_ItemType,$AD:$AD)","v":0},0,0,{"$f":"-SUMIFS(Sheet1!S71_OY1AdjustedBudget,Sheet1!S71_SubMunicipalVoteNo,$AC:$AC,Sheet1!S71_ItemType,$AD:$AD)","v":0},{"$f":"-SUMIFS(Sheet1!S71_OY2AdjustedBudget,Sheet1!S71_SubMunicipalVoteNo,$AC:$AC,Sheet1!S71_ItemType,$AD:$AD)","v":0},null,null,null,null,null,null,null,null,null,null,null,null,null,null,null,24,"IR","IZ"]
[{"$f":"'Org structure'!D18","v":"2.5 - Human Resources"},null,{"$f":"-SUMIFS(Sheet1!S71_OriginalBudget,Sheet1!S71_SubMunicipalVoteNo,$AC:$AC,Sheet1!S71_ItemType,$AD:$AD)","v":0},{"$f":"-SUMIFS(Sheet1!S71_PreviousBudget,Sheet1!S71_SubMunicipalVoteNo,$AC:$AC,Sheet1!S71_ItemType,$AD:$AD)","v":0},null,null,null,null,{"$f":"-SUMIFS(Sheet1!S71_CurrentAdjustments,Sheet1!S71_SubMunicipalVoteNo,$AC:$AC,Sheet1!S71_ItemType,$AD:$AD)","v":0},0,0,{"$f":"-SUMIFS(Sheet1!S71_OY1AdjustedBudget,Sheet1!S71_SubMunicipalVoteNo,$AC:$AC,Sheet1!S71_ItemType,$AD:$AD)","v":0},{"$f":"-SUMIFS(Sheet1!S71_OY2AdjustedBudget,Sheet1!S71_SubMunicipalVoteNo,$AC:$AC,Sheet1!S71_ItemType,$AD:$AD)","v":0},null,null,null,null,null,null,null,null,null,null,null,null,null,null,null,25,"IR","IZ"]
[{"$f":"'Org structure'!D19","v":"2.6 - Information Technology"},null,{"$f":"-SUMIFS(Sheet1!S71_OriginalBudget,Sheet1!S71_SubMunicipalVoteNo,$AC:$AC,Sheet1!S71_ItemType,$AD:$AD)","v":0},{"$f":"-SUMIFS(Sheet1!S71_PreviousBudget,Sheet1!S71_SubMunicipalVoteNo,$AC:$AC,Sheet1!S71_ItemType,$AD:$AD)","v":0},null,null,null,null,{"$f":"-SUMIFS(Sheet1!S71_CurrentAdjustments,Sheet1!S71_SubMunicipalVoteNo,$AC:$AC,Sheet1!S71_ItemType,$AD:$AD)","v":0},0,0,{"$f":"-SUMIFS(Sheet1!S71_OY1AdjustedBudget,Sheet1!S71_SubMunicipalVoteNo,$AC:$AC,Sheet1!S71_ItemType,$AD:$AD)","v":0},{"$f":"-SUMIFS(Sheet1!S71_OY2AdjustedBudget,Sheet1!S71_SubMunicipalVoteNo,$AC:$AC,Sheet1!S71_ItemType,$AD:$AD)","v":0},null,null,null,null,null,null,null,null,null,null,null,null,null,null,null,26,"IR","IZ"]
[{"$f":"'Org structure'!D20","v":"2.7 - Property Services"},null,{"$f":"-SUMIFS(Sheet1!S71_OriginalBudget,Sheet1!S71_SubMunicipalVoteNo,$AC:$AC,Sheet1!S71_ItemType,$AD:$AD)","v":0},{"$f":"-SUMIFS(Sheet1!S71_PreviousBudget,Sheet1!S71_SubMunicipalVoteNo,$AC:$AC,Sheet1!S71_ItemType,$AD:$AD)","v":0},null,null,null,null,{"$f":"-SUMIFS(Sheet1!S71_CurrentAdjustments,Sheet1!S71_SubMunicipalVoteNo,$AC:$AC,Sheet1!S71_ItemType,$AD:$AD)","v":0},0,0,{"$f":"-SUMIFS(Sheet1!S71_OY1AdjustedBudget,Sheet1!S71_SubMunicipalVoteNo,$AC:$AC,Sheet1!S71_ItemType,$AD:$AD)","v":0},{"$f":"-SUMIFS(Sheet1!S71_OY2AdjustedBudget,Sheet1!S71_SubMunicipalVoteNo,$AC:$AC,Sheet1!S71_ItemType,$AD:$AD)","v":0},null,null,null,null,null,null,null,null,null,null,null,null,null,null,null,27,"IR","IZ"]
[{"$f":"'Org structure'!D21","v":"2.8 - Security Services"},null,{"$f":"-SUMIFS(Sheet1!S71_OriginalBudget,Sheet1!S71_SubMunicipalVoteNo,$AC:$AC,Sheet1!S71_ItemType,$AD:$AD)","v":0},{"$f":"-SUMIFS(Sheet1!S71_PreviousBudget,Sheet1!S71_SubMunicipalVoteNo,$AC:$AC,Sheet1!S71_ItemType,$AD:$AD)","v":0},null,null,null,null,{"$f":"-SUMIFS(Sheet1!S71_CurrentAdjustments,Sheet1!S71_SubMunicipalVoteNo,$AC:$AC,Sheet1!S71_ItemType,$AD:$AD)","v":0},0,0,{"$f":"-SUMIFS(Sheet1!S71_OY1AdjustedBudget,Sheet1!S71_SubMunicipalVoteNo,$AC:$AC,Sheet1!S71_ItemType,$AD:$AD)","v":0},{"$f":"-SUMIFS(Sheet1!S71_OY2AdjustedBudget,Sheet1!S71_SubMunicipalVoteNo,$AC:$AC,Sheet1!S71_ItemType,$AD:$AD)","v":0},null,null,null,null,null,null,null,null,null,null,null,null,null,null,null,28,"IR","IZ"]
[{"$f":"'Org structure'!D22","v":"2.9 - Supply Chain Management"},null,{"$f":"-SUMIFS(Sheet1!S71_OriginalBudget,Sheet1!S71_SubMunicipalVoteNo,$AC:$AC,Sheet1!S71_ItemType,$AD:$AD)","v":391304},{"$f":"-SUMIFS(Sheet1!S71_PreviousBudget,Sheet1!S71_SubMunicipalVoteNo,$AC:$AC,Sheet1!S71_ItemType,$AD:$AD)","v":391304},null,null,null,null,{"$f":"-SUMIFS(Sheet1!S71_CurrentAdjustments,Sheet1!S71_SubMunicipalVoteNo,$AC:$AC,Sheet1!S71_ItemType,$AD:$AD)","v":0},0,391304,{"$f":"-SUMIFS(Sheet1!S71_OY1AdjustedBudget,Sheet1!S71_SubMunicipalVoteNo,$AC:$AC,Sheet1!S71_ItemType,$AD:$AD)","v":409304},{"$f":"-SUMIFS(Sheet1!S71_OY2AdjustedBudget,Sheet1!S71_SubMunicipalVoteNo,$AC:$AC,Sheet1!S71_ItemType,$AD:$AD)","v":428132},null,null,null,null,null,null,null,null,null,null,null,null,null,null,null,29,"IR","IZ"]
[{"$f":"'Org structure'!D23","v":"2.10 - Valuation Service"},null,{"$f":"-SUMIFS(Sheet1!S71_OriginalBudget,Sheet1!S71_SubMunicipalVoteNo,$AC:$AC,Sheet1!S71_ItemType,$AD:$AD)","v":28000000},{"$f":"-SUMIFS(Sheet1!S71_PreviousBudget,Sheet1!S71_SubMunicipalVoteNo,$AC:$AC,Sheet1!S71_ItemType,$AD:$AD)","v":28000000},null,null,null,null,{"$f":"-SUMIFS(Sheet1!S71_CurrentAdjustments,Sheet1!S71_SubMunicipalVoteNo,$AC:$AC,Sheet1!S71_ItemType,$AD:$AD)","v":0},0,28000000,{"$f":"-SUMIFS(Sheet1!S71_OY1AdjustedBudget,Sheet1!S71_SubMunicipalVoteNo,$AC:$AC,Sheet1!S71_ItemType,$AD:$AD)","v":28840000},{"$f":"-SUMIFS(Sheet1!S71_OY2AdjustedBudget,Sheet1!S71_SubMunicipalVoteNo,$AC:$AC,Sheet1!S71_ItemType,$AD:$AD)","v":29705200},null,null,null,null,null,null,null,null,null,null,null,null,null,null,null,210,"IR","IZ"]
[{"$f":"'Org structure'!A4","v":"Vote 3 - Internal audit"},null,{"$f":"SUM(C30:C39)","v":0},0,0,0,0,0,0,0,0,{"$f":"SUM(L30:L39)","v":0},{"$f":"SUM(M30:M39)","v":0}]
[{"$f":"'Org structure'!D25","v":"3.1 - Governance Function"},null,{"$f":"-SUMIFS(Sheet1!S71_OriginalBudget,Sheet1!S71_SubMunicipalVoteNo,$AC:$AC,Sheet1!S71_ItemType,$AD:$AD)","v":0},{"$f":"-SUMIFS(Sheet1!S71_PreviousBudget,Sheet1!S71_SubMunicipalVoteNo,$AC:$AC,Sheet1!S71_ItemType,$AD:$AD)","v":0},null,null,null,null,{"$f":"-SUMIFS(Sheet1!S71_CurrentAdjustments,Sheet1!S71_SubMunicipalVoteNo,$AC:$AC,Sheet1!S71_ItemType,$AD:$AD)","v":0},0,0,{"$f":"-SUMIFS(Sheet1!S71_OY1AdjustedBudget,Sheet1!S71_SubMunicipalVoteNo,$AC:$AC,Sheet1!S71_ItemType,$AD:$AD)","v":0},{"$f":"-SUMIFS(Sheet1!S71_OY2AdjustedBudget,Sheet1!S71_SubMunicipalVoteNo,$AC:$AC,Sheet1!S71_ItemType,$AD:$AD)","v":0},null,null,null,null,null,null,null,null,null,null,null,null,null,null,null,31,"IR","IZ"]
[{"$f":"'Org structure'!D26","v":"3.2 - Risk Management"},null,{"$f":"-SUMIFS(Sheet1!S71_OriginalBudget,Sheet1!S71_SubMunicipalVoteNo,$AC:$AC,Sheet1!S71_ItemType,$AD:$AD)","v":0},{"$f":"-SUMIFS(Sheet1!S71_PreviousBudget,Sheet1!S71_SubMunicipalVoteNo,$AC:$AC,Sheet1!S71_ItemType,$AD:$AD)","v":0},null,null,null,null,{"$f":"-SUMIFS(Sheet1!S71_CurrentAdjustments,Sheet1!S71_SubMunicipalVoteNo,$AC:$AC,Sheet1!S71_ItemType,$AD:$AD)","v":0},0,0,{"$f":"-SUMIFS(Sheet1!S71_OY1AdjustedBudget,Sheet1!S71_SubMunicipalVoteNo,$AC:$AC,Sheet1!S71_ItemType,$AD:$AD)","v":0},{"$f":"-SUMIFS(Sheet1!S71_OY2AdjustedBudget,Sheet1!S71_SubMunicipalVoteNo,$AC:$AC,Sheet1!S71_ItemType,$AD:$AD)","v":0},null,null,null,null,null,null,null,null,null,null,null,null,null,null,null,32,"IR","IZ"]
[{"$f":"'Org structure'!D27","v":"3.3 - [Name of sub-vote]"},null,{"$f":"-SUMIFS(Sheet1!S71_OriginalBudget,Sheet1!S71_SubMunicipalVoteNo,$AC:$AC,Sheet1!S71_ItemType,$AD:$AD)","v":0},{"$f":"-SUMIFS(Sheet1!S71_PreviousBudget,Sheet1!S71_SubMunicipalVoteNo,$AC:$AC,Sheet1!S71_ItemType,$AD:$AD)","v":0},null,null,null,null,{"$f":"-SUMIFS(Sheet1!S71_CurrentAdjustments,Sheet1!S71_SubMunicipalVoteNo,$AC:$AC,Sheet1!S71_ItemType,$AD:$AD)","v":0},0,0,{"$f":"-SUMIFS(Sheet1!S71_OY1AdjustedBudget,Sheet1!S71_SubMunicipalVoteNo,$AC:$AC,Sheet1!S71_ItemType,$AD:$AD)","v":0},{"$f":"-SUMIFS(Sheet1!S71_OY2AdjustedBudget,Sheet1!S71_SubMunicipalVoteNo,$AC:$AC,Sheet1!S71_ItemType,$AD:$AD)","v":0},null,null,null,null,null,null,null,null,null,null,null,null,null,null,null,33,"IR","IZ"]
[{"$f":"'Org structure'!D28","v":"3.4 - [Name of sub-vote]"},null,{"$f":"-SUMIFS(Sheet1!S71_OriginalBudget,Sheet1!S71_SubMunicipalVoteNo,$AC:$AC,Sheet1!S71_ItemType,$AD:$AD)","v":0},{"$f":"-SUMIFS(Sheet1!S71_PreviousBudget,Sheet1!S71_SubMunicipalVoteNo,$AC:$AC,Sheet1!S71_ItemType,$AD:$AD)","v":0},null,null,null,null,{"$f":"-SUMIFS(Sheet1!S71_CurrentAdjustments,Sheet1!S71_SubMunicipalVoteNo,$AC:$AC,Sheet1!S71_ItemType,$AD:$AD)","v":0},0,0,{"$f":"-SUMIFS(Sheet1!S71_OY1AdjustedBudget,Sheet1!S71_SubMunicipalVoteNo,$AC:$AC,Sheet1!S71_ItemType,$AD:$AD)","v":0},{"$f":"-SUMIFS(Sheet1!S71_OY2AdjustedBudget,Sheet1!S71_SubMunicipalVoteNo,$AC:$AC,Sheet1!S71_ItemType,$AD:$AD)","v":0},null,null,null,null,null,null,null,null,null,null,null,null,null,null,null,34,"IR","IZ"]
[{"$f":"'Org structure'!D29","v":"3.5 - [Name of sub-vote]"},null,{"$f":"-SUMIFS(Sheet1!S71_OriginalBudget,Sheet1!S71_SubMunicipalVoteNo,$AC:$AC,Sheet1!S71_ItemType,$AD:$AD)","v":0},{"$f":"-SUMIFS(Sheet1!S71_PreviousBudget,Sheet1!S71_SubMunicipalVoteNo,$AC:$AC,Sheet1!S71_ItemType,$AD:$AD)","v":0},null,null,null,null,{"$f":"-SUMIFS(Sheet1!S71_CurrentAdjustments,Sheet1!S71_SubMunicipalVoteNo,$AC:$AC,Sheet1!S71_ItemType,$AD:$AD)","v":0},0,0,{"$f":"-SUMIFS(Sheet1!S71_OY1AdjustedBudget,Sheet1!S71_SubMunicipalVoteNo,$AC:$AC,Sheet1!S71_ItemType,$AD:$AD)","v":0},{"$f":"-SUMIFS(Sheet1!S71_OY2AdjustedBudget,Sheet1!S71_SubMunicipalVoteNo,$AC:$AC,Sheet1!S71_ItemType,$AD:$AD)","v":0},null,null,null,null,null,null,null,null,null,null,null,null,null,null,null,35,"IR","IZ"]
[{"$f":"'Org structure'!D30","v":"3.6 - [Name of sub-vote]"},null,{"$f":"-SUMIFS(Sheet1!S71_OriginalBudget,Sheet1!S71_SubMunicipalVoteNo,$AC:$AC,Sheet1!S71_ItemType,$AD:$AD)","v":0},{"$f":"-SUMIFS(Sheet1!S71_PreviousBudget,Sheet1!S71_SubMunicipalVoteNo,$AC:$AC,Sheet1!S71_ItemType,$AD:$AD)","v":0},null,null,null,null,{"$f":"-SUMIFS(Sheet1!S71_CurrentAdjustments,Sheet1!S71_SubMunicipalVoteNo,$AC:$AC,Sheet1!S71_ItemType,$AD:$AD)","v":0},0,0,{"$f":"-SUMIFS(Sheet1!S71_OY1AdjustedBudget,Sheet1!S71_SubMunicipalVoteNo,$AC:$AC,Sheet1!S71_ItemType,$AD:$AD)","v":0},{"$f":"-SUMIFS(Sheet1!S71_OY2AdjustedBudget,Sheet1!S71_SubMunicipalVoteNo,$AC:$AC,Sheet1!S71_ItemType,$AD:$AD)","v":0},null,null,null,null,null,null,null,null,null,null,null,null,null,null,null,36,"IR","IZ"]
[{"$f":"'Org structure'!D31","v":"3.7 - [Name of sub-vote]"},null,{"$f":"-SUMIFS(Sheet1!S71_OriginalBudget,Sheet1!S71_SubMunicipalVoteNo,$AC:$AC,Sheet1!S71_ItemType,$AD:$AD)","v":0},{"$f":"-SUMIFS(Sheet1!S71_PreviousBudget,Sheet1!S71_SubMunicipalVoteNo,$AC:$AC,Sheet1!S71_ItemType,$AD:$AD)","v":0},null,null,null,null,{"$f":"-SUMIFS(Sheet1!S71_CurrentAdjustments,Sheet1!S71_SubMunicipalVoteNo,$AC:$AC,Sheet1!S71_ItemType,$AD:$AD)","v":0},0,0,{"$f":"-SUMIFS(Sheet1!S71_OY1AdjustedBudget,Sheet1!S71_SubMunicipalVoteNo,$AC:$AC,Sheet1!S71_ItemType,$AD:$AD)","v":0},{"$f":"-SUMIFS(Sheet1!S71_OY2AdjustedBudget,Sheet1!S71_SubMunicipalVoteNo,$AC:$AC,Sheet1!S71_ItemType,$AD:$AD)","v":0},null,null,null,null,null,null,null,null,null,null,null,null,null,null,null,37,"IR","IZ"]
[{"$f":"'Org structure'!D32","v":"3.8 - [Name of sub-vote]"},null,{"$f":"-SUMIFS(Sheet1!S71_OriginalBudget,Sheet1!S71_SubMunicipalVoteNo,$AC:$AC,Sheet1!S71_ItemType,$AD:$AD)","v":0},{"$f":"-SUMIFS(Sheet1!S71_PreviousBudget,Sheet1!S71_SubMunicipalVoteNo,$AC:$AC,Sheet1!S71_ItemType,$AD:$AD)","v":0},null,null,null,null,{"$f":"-SUMIFS(Sheet1!S71_CurrentAdjustments,Sheet1!S71_SubMunicipalVoteNo,$AC:$AC,Sheet1!S71_ItemType,$AD:$AD)","v":0},0,0,{"$f":"-SUMIFS(Sheet1!S71_OY1AdjustedBudget,Sheet1!S71_SubMunicipalVoteNo,$AC:$AC,Sheet1!S71_ItemType,$AD:$AD)","v":0},{"$f":"-SUMIFS(Sheet1!S71_OY2AdjustedBudget,Sheet1!S71_SubMunicipalVoteNo,$AC:$AC,Sheet1!S71_ItemType,$AD:$AD)","v":0},null,null,null,null,null,null,null,null,null,null,null,null,null,null,null,38,"IR","IZ"]
[{"$f":"'Org structure'!D33","v":"3.9 - [Name of sub-vote]"},null,{"$f":"-SUMIFS(Sheet1!S71_OriginalBudget,Sheet1!S71_SubMunicipalVoteNo,$AC:$AC,Sheet1!S71_ItemType,$AD:$AD)","v":0},{"$f":"-SUMIFS(Sheet1!S71_PreviousBudget,Sheet1!S71_SubMunicipalVoteNo,$AC:$AC,Sheet1!S71_ItemType,$AD:$AD)","v":0},null,null,null,null,{"$f":"-SUMIFS(Sheet1!S71_CurrentAdjustments,Sheet1!S71_SubMunicipalVoteNo,$AC:$AC,Sheet1!S71_ItemType,$AD:$AD)","v":0},0,0,{"$f":"-SUMIFS(Sheet1!S71_OY1AdjustedBudget,Sheet1!S71_SubMunicipalVoteNo,$AC:$AC,Sheet1!S71_ItemType,$AD:$AD)","v":0},{"$f":"-SUMIFS(Sheet1!S71_OY2AdjustedBudget,Sheet1!S71_SubMunicipalVoteNo,$AC:$AC,Sheet1!S71_ItemType,$AD:$AD)","v":0},null,null,null,null,null,null,null,null,null,null,null,null,null,null,null,39,"IR","IZ"]
[{"$f":"'Org structure'!D34","v":"3.10 - [Name of sub-vote]"},null,{"$f":"-SUMIFS(Sheet1!S71_OriginalBudget,Sheet1!S71_SubMunicipalVoteNo,$AC:$AC,Sheet1!S71_ItemType,$AD:$AD)","v":0},{"$f":"-SUMIFS(Sheet1!S71_PreviousBudget,Sheet1!S71_SubMunicipalVoteNo,$AC:$AC,Sheet1!S71_ItemType,$AD:$AD)","v":0},null,null,null,null,{"$f":"-SUMIFS(Sheet1!S71_CurrentAdjustments,Sheet1!S71_SubMunicipalVoteNo,$AC:$AC,Sheet1!S71_ItemType,$AD:$AD)","v":0},0,0,{"$f":"-SUMIFS(Sheet1!S71_OY1AdjustedBudget,Sheet1!S71_SubMunicipalVoteNo,$AC:$AC,Sheet1!S71_ItemType,$AD:$AD)","v":0},{"$f":"-SUMIFS(Sheet1!S71_OY2AdjustedBudget,Sheet1!S71_SubMunicipalVoteNo,$AC:$AC,Sheet1!S71_ItemType,$AD:$AD)","v":0},null,null,null,null,null,null,null,null,null,null,null,null,null,null,null,310,"IR","IZ"]
[{"$f":"'Org structure'!A5","v":"Vote 4 - Community and social services"},null,{"$f":"SUM(C41:C50)","v":5464272},5764272,0,0,0,0,0,0,5764272,{"$f":"SUM(L41:L50)","v":5817152},{"$f":"SUM(M41:M50)","v":9866023}]
[{"$f":"'Org structure'!D36","v":"4.1 - [Name of sub-vote]"},null,{"$f":"-SUMIFS(Sheet1!S71_OriginalBudget,Sheet1!S71_SubMunicipalVoteNo,$AC:$AC,Sheet1!S71_ItemType,$AD:$AD)","v":0},{"$f":"-SUMIFS(Sheet1!S71_PreviousBudget,Sheet1!S71_SubMunicipalVoteNo,$AC:$AC,Sheet1!S71_ItemType,$AD:$AD)","v":0},null,null,null,null,{"$f":"-SUMIFS(Sheet1!S71_CurrentAdjustments,Sheet1!S71_SubMunicipalVoteNo,$AC:$AC,Sheet1!S71_ItemType,$AD:$AD)","v":0},0,0,{"$f":"-SUMIFS(Sheet1!S71_OY1AdjustedBudget,Sheet1!S71_SubMunicipalVoteNo,$AC:$AC,Sheet1!S71_ItemType,$AD:$AD)","v":0},{"$f":"-SUMIFS(Sheet1!S71_OY2AdjustedBudget,Sheet1!S71_SubMunicipalVoteNo,$AC:$AC,Sheet1!S71_ItemType,$AD:$AD)","v":0},null,null,null,null,null,null,null,null,null,null,null,null,null,null,null,41,"IR","IZ"]
[{"$f":"'Org structure'!D37","v":"4.2 - Cemeteries, Funeral Parlours and Crematoriums"},null,{"$f":"-SUMIFS(Sheet1!S71_OriginalBudget,Sheet1!S71_SubMunicipalVoteNo,$AC:$AC,Sheet1!S71_ItemType,$AD:$AD)","v":0},{"$f":"-SUMIFS(Sheet1!S71_PreviousBudget,Sheet1!S71_SubMunicipalVoteNo,$AC:$AC,Sheet1!S71_ItemType,$AD:$AD)","v":0},null,null,null,null,{"$f":"-SUMIFS(Sheet1!S71_CurrentAdjustments,Sheet1!S71_SubMunicipalVoteNo,$AC:$AC,Sheet1!S71_ItemType,$AD:$AD)","v":0},0,0,{"$f":"-SUMIFS(Sheet1!S71_OY1AdjustedBudget,Sheet1!S71_SubMunicipalVoteNo,$AC:$AC,Sheet1!S71_ItemType,$AD:$AD)","v":0},{"$f":"-SUMIFS(Sheet1!S71_OY2AdjustedBudget,Sheet1!S71_SubMunicipalVoteNo,$AC:$AC,Sheet1!S71_ItemType,$AD:$AD)","v":0},null,null,null,null,null,null,null,null,null,null,null,null,null,null,null,42,"IR","IZ"]
[{"$f":"'Org structure'!D38","v":"4.3 - Community Halls and Facilities"},null,{"$f":"-SUMIFS(Sheet1!S71_OriginalBudget,Sheet1!S71_SubMunicipalVoteNo,$AC:$AC,Sheet1!S71_ItemType,$AD:$AD)","v":373913},{"$f":"-SUMIFS(Sheet1!S71_PreviousBudget,Sheet1!S71_SubMunicipalVoteNo,$AC:$AC,Sheet1!S71_ItemType,$AD:$AD)","v":673913},null,null,null,null,{"$f":"-SUMIFS(Sheet1!S71_CurrentAdjustments,Sheet1!S71_SubMunicipalVoteNo,$AC:$AC,Sheet1!S71_ItemType,$AD:$AD)","v":0},0,673913,{"$f":"-SUMIFS(Sheet1!S71_OY1AdjustedBudget,Sheet1!S71_SubMunicipalVoteNo,$AC:$AC,Sheet1!S71_ItemType,$AD:$AD)","v":391113},{"$f":"-SUMIFS(Sheet1!S71_OY2AdjustedBudget,Sheet1!S71_SubMunicipalVoteNo,$AC:$AC,Sheet1!S71_ItemType,$AD:$AD)","v":409104},null,null,null,null,null,null,null,null,null,null,null,null,null,null,null,43,"IR","IZ"]
[{"$f":"'Org structure'!D39","v":"4.4 - Libraries and Archives"},null,{"$f":"-SUMIFS(Sheet1!S71_OriginalBudget,Sheet1!S71_SubMunicipalVoteNo,$AC:$AC,Sheet1!S71_ItemType,$AD:$AD)","v":4699055},{"$f":"-SUMIFS(Sheet1!S71_PreviousBudget,Sheet1!S71_SubMunicipalVoteNo,$AC:$AC,Sheet1!S71_ItemType,$AD:$AD)","v":4699055},null,null,null,null,{"$f":"-SUMIFS(Sheet1!S71_CurrentAdjustments,Sheet1!S71_SubMunicipalVoteNo,$AC:$AC,Sheet1!S71_ItemType,$AD:$AD)","v":0},0,4699055,{"$f":"-SUMIFS(Sheet1!S71_OY1AdjustedBudget,Sheet1!S71_SubMunicipalVoteNo,$AC:$AC,Sheet1!S71_ItemType,$AD:$AD)","v":5016735},{"$f":"-SUMIFS(Sheet1!S71_OY2AdjustedBudget,Sheet1!S71_SubMunicipalVoteNo,$AC:$AC,Sheet1!S71_ItemType,$AD:$AD)","v":5175592},null,null,null,null,null,null,null,null,null,null,null,null,null,null,null,44,"IR","IZ"]
[{"$f":"'Org structure'!D40","v":"4.5 - [Name of sub-vote]"},null,{"$f":"-SUMIFS(Sheet1!S71_OriginalBudget,Sheet1!S71_SubMunicipalVoteNo,$AC:$AC,Sheet1!S71_ItemType,$AD:$AD)","v":0},{"$f":"-SUMIFS(Sheet1!S71_PreviousBudget,Sheet1!S71_SubMunicipalVoteNo,$AC:$AC,Sheet1!S71_ItemType,$AD:$AD)","v":0},null,null,null,null,{"$f":"-SUMIFS(Sheet1!S71_CurrentAdjustments,Sheet1!S71_SubMunicipalVoteNo,$AC:$AC,Sheet1!S71_ItemType,$AD:$AD)","v":0},0,0,{"$f":"-SUMIFS(Sheet1!S71_OY1AdjustedBudget,Sheet1!S71_SubMunicipalVoteNo,$AC:$AC,Sheet1!S71_ItemType,$AD:$AD)","v":0},{"$f":"-SUMIFS(Sheet1!S71_OY2AdjustedBudget,Sheet1!S71_SubMunicipalVoteNo,$AC:$AC,Sheet1!S71_ItemType,$AD:$AD)","v":0},null,null,null,null,null,null,null,null,null,null,null,null,null,null,null,45,"IR","IZ"]
[{"$f":"'Org structure'!D41","v":"4.6 - Literacy Programmes"},null,{"$f":"-SUMIFS(Sheet1!S71_OriginalBudget,Sheet1!S71_SubMunicipalVoteNo,$AC:$AC,Sheet1!S71_ItemType,$AD:$AD)","v":0},{"$f":"-SUMIFS(Sheet1!S71_PreviousBudget,Sheet1!S71_SubMunicipalVoteNo,$AC:$AC,Sheet1!S71_ItemType,$AD:$AD)","v":0},null,null,null,null,{"$f":"-SUMIFS(Sheet1!S71_CurrentAdjustments,Sheet1!S71_SubMunicipalVoteNo,$AC:$AC,Sheet1!S71_ItemType,$AD:$AD)","v":0},0,0,{"$f":"-SUMIFS(Sheet1!S71_OY1AdjustedBudget,Sheet1!S71_SubMunicipalVoteNo,$AC:$AC,Sheet1!S71_ItemType,$AD:$AD)","v":0},{"$f":"-SUMIFS(Sheet1!S71_OY2AdjustedBudget,Sheet1!S71_SubMunicipalVoteNo,$AC:$AC,Sheet1!S71_ItemType,$AD:$AD)","v":0},null,null,null,null,null,null,null,null,null,null,null,null,null,null,null,46,"IR","IZ"]
[{"$f":"'Org structure'!D42","v":"4.7 - Disaster Management"},null,{"$f":"-SUMIFS(Sheet1!S71_OriginalBudget,Sheet1!S71_SubMunicipalVoteNo,$AC:$AC,Sheet1!S71_ItemType,$AD:$AD)","v":0},{"$f":"-SUMIFS(Sheet1!S71_PreviousBudget,Sheet1!S71_SubMunicipalVoteNo,$AC:$AC,Sheet1!S71_ItemType,$AD:$AD)","v":0},null,null,null,null,{"$f":"-SUMIFS(Sheet1!S71_CurrentAdjustments,Sheet1!S71_SubMunicipalVoteNo,$AC:$AC,Sheet1!S71_ItemType,$AD:$AD)","v":0},0,0,{"$f":"-SUMIFS(Sheet1!S71_OY1AdjustedBudget,Sheet1!S71_SubMunicipalVoteNo,$AC:$AC,Sheet1!S71_ItemType,$AD:$AD)","v":0},{"$f":"-SUMIFS(Sheet1!S71_OY2AdjustedBudget,Sheet1!S71_SubMunicipalVoteNo,$AC:$AC,Sheet1!S71_ItemType,$AD:$AD)","v":0},null,null,null,null,null,null,null,null,null,null,null,null,null,null,null,47,"IR","IZ"]
[{"$f":"'Org structure'!D43","v":"4.8 - Animal Care and Diseases"},null,{"$f":"-SUMIFS(Sheet1!S71_OriginalBudget,Sheet1!S71_SubMunicipalVoteNo,$AC:$AC,Sheet1!S71_ItemType,$AD:$AD)","v":0},{"$f":"-SUMIFS(Sheet1!S71_PreviousBudget,Sheet1!S71_SubMunicipalVoteNo,$AC:$AC,Sheet1!S71_ItemType,$AD:$AD)","v":0},null,null,null,null,{"$f":"-SUMIFS(Sheet1!S71_CurrentAdjustments,Sheet1!S71_SubMunicipalVoteNo,$AC:$AC,Sheet1!S71_ItemType,$AD:$AD)","v":0},0,0,{"$f":"-SUMIFS(Sheet1!S71_OY1AdjustedBudget,Sheet1!S71_SubMunicipalVoteNo,$AC:$AC,Sheet1!S71_ItemType,$AD:$AD)","v":0},{"$f":"-SUMIFS(Sheet1!S71_OY2AdjustedBudget,Sheet1!S71_SubMunicipalVoteNo,$AC:$AC,Sheet1!S71_ItemType,$AD:$AD)","v":0},null,null,null,null,null,null,null,null,null,null,null,null,null,null,null,48,"IR","IZ"]
[{"$f":"'Org structure'!D44","v":"4.9 - Child Care Facilities"},null,{"$f":"-SUMIFS(Sheet1!S71_OriginalBudget,Sheet1!S71_SubMunicipalVoteNo,$AC:$AC,Sheet1!S71_ItemType,$AD:$AD)","v":0},{"$f":"-SUMIFS(Sheet1!S71_PreviousBudget,Sheet1!S71_SubMunicipalVoteNo,$AC:$AC,Sheet1!S71_ItemType,$AD:$AD)","v":0},null,null,null,null,{"$f":"-SUMIFS(Sheet1!S71_CurrentAdjustments,Sheet1!S71_SubMunicipalVoteNo,$AC:$AC,Sheet1!S71_ItemType,$AD:$AD)","v":0},0,0,{"$f":"-SUMIFS(Sheet1!S71_OY1AdjustedBudget,Sheet1!S71_SubMunicipalVoteNo,$AC:$AC,Sheet1!S71_ItemType,$AD:$AD)","v":0},{"$f":"-SUMIFS(Sheet1!S71_OY2AdjustedBudget,Sheet1!S71_SubMunicipalVoteNo,$AC:$AC,Sheet1!S71_ItemType,$AD:$AD)","v":0},null,null,null,null,null,null,null,null,null,null,null,null,null,null,null,49,"IR","IZ"]
[{"$f":"'Org structure'!D45","v":"4.10 - Fire Fighting and Protection"},null,{"$f":"-SUMIFS(Sheet1!S71_OriginalBudget,Sheet1!S71_SubMunicipalVoteNo,$AC:$AC,Sheet1!S71_ItemType,$AD:$AD)","v":391304},{"$f":"-SUMIFS(Sheet1!S71_PreviousBudget,Sheet1!S71_SubMunicipalVoteNo,$AC:$AC,Sheet1!S71_ItemType,$AD:$AD)","v":391304},null,null,null,null,{"$f":"-SUMIFS(Sheet1!S71_CurrentAdjustments,Sheet1!S71_SubMunicipalVoteNo,$AC:$AC,Sheet1!S71_ItemType,$AD:$AD)","v":0},0,391304,{"$f":"-SUMIFS(Sheet1!S71_OY1AdjustedBudget,Sheet1!S71_SubMunicipalVoteNo,$AC:$AC,Sheet1!S71_ItemType,$AD:$AD)","v":409304},{"$f":"-SUMIFS(Sheet1!S71_OY2AdjustedBudget,Sheet1!S71_SubMunicipalVoteNo,$AC:$AC,Sheet1!S71_ItemType,$AD:$AD)","v":4281327},null,null,null,null,null,null,null,null,null,null,null,null,null,null,null,410,"IR","IZ"]
[{"$f":"'Org structure'!A6","v":"Vote 5 - Sport and Recreation"},null,{"$f":"SUM(C52:C61)","v":0},{"$f":"SUM(D52:D61)","v":0},0,0,0,0,0,0,0,{"$f":"SUM(L52:L61)","v":0},{"$f":"SUM(M52:M61)","v":0}]
[{"$f":"'Org structure'!D47","v":"5.1 - Community Parks (including Nurseries)"},null,{"$f":"-SUMIFS(Sheet1!S71_OriginalBudget,Sheet1!S71_SubMunicipalVoteNo,$AC:$AC,Sheet1!S71_ItemType,$AD:$AD)","v":0},{"$f":"-SUMIFS(Sheet1!S71_PreviousBudget,Sheet1!S71_SubMunicipalVoteNo,$AC:$AC,Sheet1!S71_ItemType,$AD:$AD)","v":0},null,null,null,null,{"$f":"-SUMIFS(Sheet1!S71_CurrentAdjustments,Sheet1!S71_SubMunicipalVoteNo,$AC:$AC,Sheet1!S71_ItemType,$AD:$AD)","v":0},0,0,{"$f":"-SUMIFS(Sheet1!S71_OY1AdjustedBudget,Sheet1!S71_SubMunicipalVoteNo,$AC:$AC,Sheet1!S71_ItemType,$AD:$AD)","v":0},{"$f":"-SUMIFS(Sheet1!S71_OY2AdjustedBudget,Sheet1!S71_SubMunicipalVoteNo,$AC:$AC,Sheet1!S71_ItemType,$AD:$AD)","v":0},null,null,null,null,null,null,null,null,null,null,null,null,null,null,null,51,"IR","IZ"]
[{"$f":"'Org structure'!D48","v":"5.2 - [Name of sub-vote]"},null,{"$f":"-SUMIFS(Sheet1!S71_OriginalBudget,Sheet1!S71_SubMunicipalVoteNo,$AC:$AC,Sheet1!S71_ItemType,$AD:$AD)","v":0},{"$f":"-SUMIFS(Sheet1!S71_PreviousBudget,Sheet1!S71_SubMunicipalVoteNo,$AC:$AC,Sheet1!S71_ItemType,$AD:$AD)","v":0},null,null,null,null,{"$f":"-SUMIFS(Sheet1!S71_CurrentAdjustments,Sheet1!S71_SubMunicipalVoteNo,$AC:$AC,Sheet1!S71_ItemType,$AD:$AD)","v":0},0,0,{"$f":"-SUMIFS(Sheet1!S71_OY1AdjustedBudget,Sheet1!S71_SubMunicipalVoteNo,$AC:$AC,Sheet1!S71_ItemType,$AD:$AD)","v":0},{"$f":"-SUMIFS(Sheet1!S71_OY2AdjustedBudget,Sheet1!S71_SubMunicipalVoteNo,$AC:$AC,Sheet1!S71_ItemType,$AD:$AD)","v":0},null,null,null,null,null,null,null,null,null,null,null,null,null,null,null,52,"IR","IZ"]
[{"$f":"'Org structure'!D49","v":"5.3 - Recreational Facilities"},null,{"$f":"-SUMIFS(Sheet1!S71_OriginalBudget,Sheet1!S71_SubMunicipalVoteNo,$AC:$AC,Sheet1!S71_ItemType,$AD:$AD)","v":0},{"$f":"-SUMIFS(Sheet1!S71_PreviousBudget,Sheet1!S71_SubMunicipalVoteNo,$AC:$AC,Sheet1!S71_ItemType,$AD:$AD)","v":0},null,null,null,null,{"$f":"-SUMIFS(Sheet1!S71_CurrentAdjustments,Sheet1!S71_SubMunicipalVoteNo,$AC:$AC,Sheet1!S71_ItemType,$AD:$AD)","v":0},0,0,{"$f":"-SUMIFS(Sheet1!S71_OY1AdjustedBudget,Sheet1!S71_SubMunicipalVoteNo,$AC:$AC,Sheet1!S71_ItemType,$AD:$AD)","v":0},{"$f":"-SUMIFS(Sheet1!S71_OY2AdjustedBudget,Sheet1!S71_SubMunicipalVoteNo,$AC:$AC,Sheet1!S71_ItemType,$AD:$AD)","v":0},null,null,null,null,null,null,null,null,null,null,null,null,null,null,null,53,"IR","IZ"]
[{"$f":"'Org structure'!D50","v":"5.4 - Sports Grounds and Stadiums"},null,{"$f":"-SUMIFS(Sheet1!S71_OriginalBudget,Sheet1!S71_SubMunicipalVoteNo,$AC:$AC,Sheet1!S71_ItemType,$AD:$AD)","v":0},{"$f":"-SUMIFS(Sheet1!S71_PreviousBudget,Sheet1!S71_SubMunicipalVoteNo,$AC:$AC,Sheet1!S71_ItemType,$AD:$AD)","v":0},null,null,null,null,{"$f":"-SUMIFS(Sheet1!S71_CurrentAdjustments,Sheet1!S71_SubMunicipalVoteNo,$AC:$AC,Sheet1!S71_ItemType,$AD:$AD)","v":0},0,0,{"$f":"-SUMIFS(Sheet1!S71_OY1AdjustedBudget,Sheet1!S71_SubMunicipalVoteNo,$AC:$AC,Sheet1!S71_ItemType,$AD:$AD)","v":0},{"$f":"-SUMIFS(Sheet1!S71_OY2AdjustedBudget,Sheet1!S71_SubMunicipalVoteNo,$AC:$AC,Sheet1!S71_ItemType,$AD:$AD)","v":0},null,null,null,null,null,null,null,null,null,null,null,null,null,null,null,54,"IR","IZ"]
[{"$f":"'Org structure'!D51","v":"5.5 - Beaches and Jetties"},null,{"$f":"-SUMIFS(Sheet1!S71_OriginalBudget,Sheet1!S71_SubMunicipalVoteNo,$AC:$AC,Sheet1!S71_ItemType,$AD:$AD)","v":0},{"$f":"-SUMIFS(Sheet1!S71_PreviousBudget,Sheet1!S71_SubMunicipalVoteNo,$AC:$AC,Sheet1!S71_ItemType,$AD:$AD)","v":0},null,null,null,null,{"$f":"-SUMIFS(Sheet1!S71_CurrentAdjustments,Sheet1!S71_SubMunicipalVoteNo,$AC:$AC,Sheet1!S71_ItemType,$AD:$AD)","v":0},0,0,{"$f":"-SUMIFS(Sheet1!S71_OY1AdjustedBudget,Sheet1!S71_SubMunicipalVoteNo,$AC:$AC,Sheet1!S71_ItemType,$AD:$AD)","v":0},{"$f":"-SUMIFS(Sheet1!S71_OY2AdjustedBudget,Sheet1!S71_SubMunicipalVoteNo,$AC:$AC,Sheet1!S71_ItemType,$AD:$AD)","v":0},null,null,null,null,null,null,null,null,null,null,null,null,null,null,null,55,"IR","IZ"]
[{"$f":"'Org structure'!D52","v":"5.6 - [Name of sub-vote]"},null,{"$f":"-SUMIFS(Sheet1!S71_OriginalBudget,Sheet1!S71_SubMunicipalVoteNo,$AC:$AC,Sheet1!S71_ItemType,$AD:$AD)","v":0},{"$f":"-SUMIFS(Sheet1!S71_PreviousBudget,Sheet1!S71_SubMunicipalVoteNo,$AC:$AC,Sheet1!S71_ItemType,$AD:$AD)","v":0},null,null,null,null,{"$f":"-SUMIFS(Sheet1!S71_CurrentAdjustments,Sheet1!S71_SubMunicipalVoteNo,$AC:$AC,Sheet1!S71_ItemType,$AD:$AD)","v":0},0,0,{"$f":"-SUMIFS(Sheet1!S71_OY1AdjustedBudget,Sheet1!S71_SubMunicipalVoteNo,$AC:$AC,Sheet1!S71_ItemType,$AD:$AD)","v":0},{"$f":"-SUMIFS(Sheet1!S71_OY2AdjustedBudget,Sheet1!S71_SubMunicipalVoteNo,$AC:$AC,Sheet1!S71_ItemType,$AD:$AD)","v":0},null,null,null,null,null,null,null,null,null,null,null,null,null,null,null,56,"IR","IZ"]
[{"$f":"'Org structure'!D53","v":"5.7 - [Name of sub-vote]"},null,{"$f":"-SUMIFS(Sheet1!S71_OriginalBudget,Sheet1!S71_SubMunicipalVoteNo,$AC:$AC,Sheet1!S71_ItemType,$AD:$AD)","v":0},{"$f":"-SUMIFS(Sheet1!S71_PreviousBudget,Sheet1!S71_SubMunicipalVoteNo,$AC:$AC,Sheet1!S71_ItemType,$AD:$AD)","v":0},null,null,null,null,{"$f":"-SUMIFS(Sheet1!S71_CurrentAdjustments,Sheet1!S71_SubMunicipalVoteNo,$AC:$AC,Sheet1!S71_ItemType,$AD:$AD)","v":0},0,0,{"$f":"-SUMIFS(Sheet1!S71_OY1AdjustedBudget,Sheet1!S71_SubMunicipalVoteNo,$AC:$AC,Sheet1!S71_ItemType,$AD:$AD)","v":0},{"$f":"-SUMIFS(Sheet1!S71_OY2AdjustedBudget,Sheet1!S71_SubMunicipalVoteNo,$AC:$AC,Sheet1!S71_ItemType,$AD:$AD)","v":0},null,null,null,null,null,null,null,null,null,null,null,null,null,null,null,57,"IR","IZ"]
[{"$f":"'Org structure'!D54","v":"5.8 - [Name of sub-vote]"},null,{"$f":"-SUMIFS(Sheet1!S71_OriginalBudget,Sheet1!S71_SubMunicipalVoteNo,$AC:$AC,Sheet1!S71_ItemType,$AD:$AD)","v":0},{"$f":"-SUMIFS(Sheet1!S71_PreviousBudget,Sheet1!S71_SubMunicipalVoteNo,$AC:$AC,Sheet1!S71_ItemType,$AD:$AD)","v":0},null,null,null,null,{"$f":"-SUMIFS(Sheet1!S71_CurrentAdjustments,Sheet1!S71_SubMunicipalVoteNo,$AC:$AC,Sheet1!S71_ItemType,$AD:$AD)","v":0},0,0,{"$f":"-SUMIFS(Sheet1!S71_OY1AdjustedBudget,Sheet1!S71_SubMunicipalVoteNo,$AC:$AC,Sheet1!S71_ItemType,$AD:$AD)","v":0},{"$f":"-SUMIFS(Sheet1!S71_OY2AdjustedBudget,Sheet1!S71_SubMunicipalVoteNo,$AC:$AC,Sheet1!S71_ItemType,$AD:$AD)","v":0},null,null,null,null,null,null,null,null,null,null,null,null,null,null,null,58,"IR","IZ"]
[{"$f":"'Org structure'!D55","v":"5.9 - [Name of sub-vote]"},null,{"$f":"-SUMIFS(Sheet1!S71_OriginalBudget,Sheet1!S71_SubMunicipalVoteNo,$AC:$AC,Sheet1!S71_ItemType,$AD:$AD)","v":0},{"$f":"-SUMIFS(Sheet1!S71_PreviousBudget,Sheet1!S71_SubMunicipalVoteNo,$AC:$AC,Sheet1!S71_ItemType,$AD:$AD)","v":0},null,null,null,null,{"$f":"-SUMIFS(Sheet1!S71_CurrentAdjustments,Sheet1!S71_SubMunicipalVoteNo,$AC:$AC,Sheet1!S71_ItemType,$AD:$AD)","v":0},0,0,{"$f":"-SUMIFS(Sheet1!S71_OY1AdjustedBudget,Sheet1!S71_SubMunicipalVoteNo,$AC:$AC,Sheet1!S71_ItemType,$AD:$AD)","v":0},{"$f":"-SUMIFS(Sheet1!S71_OY2AdjustedBudget,Sheet1!S71_SubMunicipalVoteNo,$AC:$AC,Sheet1!S71_ItemType,$AD:$AD)","v":0},null,null,null,null,null,null,null,null,null,null,null,null,null,null,null,59,"IR","IZ"]
[{"$f":"'Org structure'!D56","v":"5.10 - [Name of sub-vote]"},null,{"$f":"-SUMIFS(Sheet1!S71_OriginalBudget,Sheet1!S71_SubMunicipalVoteNo,$AC:$AC,Sheet1!S71_ItemType,$AD:$AD)","v":0},{"$f":"-SUMIFS(Sheet1!S71_PreviousBudget,Sheet1!S71_SubMunicipalVoteNo,$AC:$AC,Sheet1!S71_ItemType,$AD:$AD)","v":0},null,null,null,null,{"$f":"-SUMIFS(Sheet1!S71_CurrentAdjustments,Sheet1!S71_SubMunicipalVoteNo,$AC:$AC,Sheet1!S71_ItemType,$AD:$AD)","v":0},0,0,{"$f":"-SUMIFS(Sheet1!S71_OY1AdjustedBudget,Sheet1!S71_SubMunicipalVoteNo,$AC:$AC,Sheet1!S71_ItemType,$AD:$AD)","v":0},{"$f":"-SUMIFS(Sheet1!S71_OY2AdjustedBudget,Sheet1!S71_SubMunicipalVoteNo,$AC:$AC,Sheet1!S71_ItemType,$AD:$AD)","v":0},null,null,null,null,null,null,null,null,null,null,null,null,null,null,null,510,"IR","IZ"]
[{"$f":"'Org structure'!A7","v":"Vote 6 - Public safety"},null,{"$f":"SUM(C63:C72)","v":0},{"$f":"SUM(D63:D72)","v":0},0,0,0,0,0,0,0,{"$f":"SUM(L63:L72)","v":0},{"$f":"SUM(M63:M72)","v":0}]
[{"$f":"'Org structure'!D58","v":"6.1 - Police Forces, Traffic and Street Parking Control"},null,{"$f":"-SUMIFS(Sheet1!S71_OriginalBudget,Sheet1!S71_SubMunicipalVoteNo,$AC:$AC,Sheet1!S71_ItemType,$AD:$AD)","v":0},{"$f":"-SUMIFS(Sheet1!S71_PreviousBudget,Sheet1!S71_SubMunicipalVoteNo,$AC:$AC,Sheet1!S71_ItemType,$AD:$AD)","v":0},null,null,null,null,{"$f":"-SUMIFS(Sheet1!S71_CurrentAdjustments,Sheet1!S71_SubMunicipalVoteNo,$AC:$AC,Sheet1!S71_ItemType,$AD:$AD)","v":0},0,0,{"$f":"-SUMIFS(Sheet1!S71_OY1AdjustedBudget,Sheet1!S71_SubMunicipalVoteNo,$AC:$AC,Sheet1!S71_ItemType,$AD:$AD)","v":0},{"$f":"-SUMIFS(Sheet1!S71_OY2AdjustedBudget,Sheet1!S71_SubMunicipalVoteNo,$AC:$AC,Sheet1!S71_ItemType,$AD:$AD)","v":0},null,null,null,null,null,null,null,null,null,null,null,null,null,null,null,61,"IR","IZ"]
[{"$f":"'Org structure'!D59","v":"6.2 - [Name of sub-vote]"},null,{"$f":"-SUMIFS(Sheet1!S71_OriginalBudget,Sheet1!S71_SubMunicipalVoteNo,$AC:$AC,Sheet1!S71_ItemType,$AD:$AD)","v":0},{"$f":"-SUMIFS(Sheet1!S71_PreviousBudget,Sheet1!S71_SubMunicipalVoteNo,$AC:$AC,Sheet1!S71_ItemType,$AD:$AD)","v":0},null,null,null,null,{"$f":"-SUMIFS(Sheet1!S71_CurrentAdjustments,Sheet1!S71_SubMunicipalVoteNo,$AC:$AC,Sheet1!S71_ItemType,$AD:$AD)","v":0},0,0,{"$f":"-SUMIFS(Sheet1!S71_OY1AdjustedBudget,Sheet1!S71_SubMunicipalVoteNo,$AC:$AC,Sheet1!S71_ItemType,$AD:$AD)","v":0},{"$f":"-SUMIFS(Sheet1!S71_OY2AdjustedBudget,Sheet1!S71_SubMunicipalVoteNo,$AC:$AC,Sheet1!S71_ItemType,$AD:$AD)","v":0},null,null,null,null,null,null,null,null,null,null,null,null,null,null,null,62,"IR","IZ"]
[{"$f":"'Org structure'!D60","v":"6.3 - Civil Defence"},null,{"$f":"-SUMIFS(Sheet1!S71_OriginalBudget,Sheet1!S71_SubMunicipalVoteNo,$AC:$AC,Sheet1!S71_ItemType,$AD:$AD)","v":0},{"$f":"-SUMIFS(Sheet1!S71_PreviousBudget,Sheet1!S71_SubMunicipalVoteNo,$AC:$AC,Sheet1!S71_ItemType,$AD:$AD)","v":0},null,null,null,null,{"$f":"-SUMIFS(Sheet1!S71_CurrentAdjustments,Sheet1!S71_SubMunicipalVoteNo,$AC:$AC,Sheet1!S71_ItemType,$AD:$AD)","v":0},0,0,{"$f":"-SUMIFS(Sheet1!S71_OY1AdjustedBudget,Sheet1!S71_SubMunicipalVoteNo,$AC:$AC,Sheet1!S71_ItemType,$AD:$AD)","v":0},{"$f":"-SUMIFS(Sheet1!S71_OY2AdjustedBudget,Sheet1!S71_SubMunicipalVoteNo,$AC:$AC,Sheet1!S71_ItemType,$AD:$AD)","v":0},null,null,null,null,null,null,null,null,null,null,null,null,null,null,null,63,"IR","IZ"]
[{"$f":"'Org structure'!D61","v":"6.4 - [Name of sub-vote]"},null,{"$f":"-SUMIFS(Sheet1!S71_OriginalBudget,Sheet1!S71_SubMunicipalVoteNo,$AC:$AC,Sheet1!S71_ItemType,$AD:$AD)","v":0},{"$f":"-SUMIFS(Sheet1!S71_PreviousBudget,Sheet1!S71_SubMunicipalVoteNo,$AC:$AC,Sheet1!S71_ItemType,$AD:$AD)","v":0},null,null,null,null,{"$f":"-SUMIFS(Sheet1!S71_CurrentAdjustments,Sheet1!S71_SubMunicipalVoteNo,$AC:$AC,Sheet1!S71_ItemType,$AD:$AD)","v":0},0,0,{"$f":"-SUMIFS(Sheet1!S71_OY1AdjustedBudget,Sheet1!S71_SubMunicipalVoteNo,$AC:$AC,Sheet1!S71_ItemType,$AD:$AD)","v":0},{"$f":"-SUMIFS(Sheet1!S71_OY2AdjustedBudget,Sheet1!S71_SubMunicipalVoteNo,$AC:$AC,Sheet1!S71_ItemType,$AD:$AD)","v":0},null,null,null,null,null,null,null,null,null,null,null,null,null,null,null,64,"IR","IZ"]
[{"$f":"'Org structure'!D62","v":"6.5 - [Name of sub-vote]"},null,{"$f":"-SUMIFS(Sheet1!S71_OriginalBudget,Sheet1!S71_SubMunicipalVoteNo,$AC:$AC,Sheet1!S71_ItemType,$AD:$AD)","v":0},{"$f":"-SUMIFS(Sheet1!S71_PreviousBudget,Sheet1!S71_SubMunicipalVoteNo,$AC:$AC,Sheet1!S71_ItemType,$AD:$AD)","v":0},null,null,null,null,{"$f":"-SUMIFS(Sheet1!S71_CurrentAdjustments,Sheet1!S71_SubMunicipalVoteNo,$AC:$AC,Sheet1!S71_ItemType,$AD:$AD)","v":0},0,0,{"$f":"-SUMIFS(Sheet1!S71_OY1AdjustedBudget,Sheet1!S71_SubMunicipalVoteNo,$AC:$AC,Sheet1!S71_ItemType,$AD:$AD)","v":0},{"$f":"-SUMIFS(Sheet1!S71_OY2AdjustedBudget,Sheet1!S71_SubMunicipalVoteNo,$AC:$AC,Sheet1!S71_ItemType,$AD:$AD)","v":0},null,null,null,null,null,null,null,null,null,null,null,null,null,null,null,65,"IR","IZ"]
[{"$f":"'Org structure'!D63","v":"6.6 - [Name of sub-vote]"},null,{"$f":"-SUMIFS(Sheet1!S71_OriginalBudget,Sheet1!S71_SubMunicipalVoteNo,$AC:$AC,Sheet1!S71_ItemType,$AD:$AD)","v":0},{"$f":"-SUMIFS(Sheet1!S71_PreviousBudget,Sheet1!S71_SubMunicipalVoteNo,$AC:$AC,Sheet1!S71_ItemType,$AD:$AD)","v":0},null,null,null,null,{"$f":"-SUMIFS(Sheet1!S71_CurrentAdjustments,Sheet1!S71_SubMunicipalVoteNo,$AC:$AC,Sheet1!S71_ItemType,$AD:$AD)","v":0},0,0,{"$f":"-SUMIFS(Sheet1!S71_OY1AdjustedBudget,Sheet1!S71_SubMunicipalVoteNo,$AC:$AC,Sheet1!S71_ItemType,$AD:$AD)","v":0},{"$f":"-SUMIFS(Sheet1!S71_OY2AdjustedBudget,Sheet1!S71_SubMunicipalVoteNo,$AC:$AC,Sheet1!S71_ItemType,$AD:$AD)","v":0},null,null,null,null,null,null,null,null,null,null,null,null,null,null,null,66,"IR","IZ"]
[{"$f":"'Org structure'!D64","v":"6.7 - [Name of sub-vote]"},null,{"$f":"-SUMIFS(Sheet1!S71_OriginalBudget,Sheet1!S71_SubMunicipalVoteNo,$AC:$AC,Sheet1!S71_ItemType,$AD:$AD)","v":0},{"$f":"-SUMIFS(Sheet1!S71_PreviousBudget,Sheet1!S71_SubMunicipalVoteNo,$AC:$AC,Sheet1!S71_ItemType,$AD:$AD)","v":0},null,null,null,null,{"$f":"-SUMIFS(Sheet1!S71_CurrentAdjustments,Sheet1!S71_SubMunicipalVoteNo,$AC:$AC,Sheet1!S71_ItemType,$AD:$AD)","v":0},0,0,{"$f":"-SUMIFS(Sheet1!S71_OY1AdjustedBudget,Sheet1!S71_SubMunicipalVoteNo,$AC:$AC,Sheet1!S71_ItemType,$AD:$AD)","v":0},{"$f":"-SUMIFS(Sheet1!S71_OY2AdjustedBudget,Sheet1!S71_SubMunicipalVoteNo,$AC:$AC,Sheet1!S71_ItemType,$AD:$AD)","v":0},null,null,null,null,null,null,null,null,null,null,null,null,null,null,null,67,"IR","IZ"]
[{"$f":"'Org structure'!D65","v":"6.8 - [Name of sub-vote]"},null,{"$f":"-SUMIFS(Sheet1!S71_OriginalBudget,Sheet1!S71_SubMunicipalVoteNo,$AC:$AC,Sheet1!S71_ItemType,$AD:$AD)","v":0},{"$f":"-SUMIFS(Sheet1!S71_PreviousBudget,Sheet1!S71_SubMunicipalVoteNo,$AC:$AC,Sheet1!S71_ItemType,$AD:$AD)","v":0},null,null,null,null,{"$f":"-SUMIFS(Sheet1!S71_CurrentAdjustments,Sheet1!S71_SubMunicipalVoteNo,$AC:$AC,Sheet1!S71_ItemType,$AD:$AD)","v":0},0,0,{"$f":"-SUMIFS(Sheet1!S71_OY1AdjustedBudget,Sheet1!S71_SubMunicipalVoteNo,$AC:$AC,Sheet1!S71_ItemType,$AD:$AD)","v":0},{"$f":"-SUMIFS(Sheet1!S71_OY2AdjustedBudget,Sheet1!S71_SubMunicipalVoteNo,$AC:$AC,Sheet1!S71_ItemType,$AD:$AD)","v":0},null,null,null,null,null,null,null,null,null,null,null,null,null,null,null,68,"IR","IZ"]
[{"$f":"'Org structure'!D66","v":"6.9 - [Name of sub-vote]"},null,{"$f":"-SUMIFS(Sheet1!S71_OriginalBudget,Sheet1!S71_SubMunicipalVoteNo,$AC:$AC,Sheet1!S71_ItemType,$AD:$AD)","v":0},{"$f":"-SUMIFS(Sheet1!S71_PreviousBudget,Sheet1!S71_SubMunicipalVoteNo,$AC:$AC,Sheet1!S71_ItemType,$AD:$AD)","v":0},null,null,null,null,{"$f":"-SUMIFS(Sheet1!S71_CurrentAdjustments,Sheet1!S71_SubMunicipalVoteNo,$AC:$AC,Sheet1!S71_ItemType,$AD:$AD)","v":0},0,0,{"$f":"-SUMIFS(Sheet1!S71_OY1AdjustedBudget,Sheet1!S71_SubMunicipalVoteNo,$AC:$AC,Sheet1!S71_ItemType,$AD:$AD)","v":0},{"$f":"-SUMIFS(Sheet1!S71_OY2AdjustedBudget,Sheet1!S71_SubMunicipalVoteNo,$AC:$AC,Sheet1!S71_ItemType,$AD:$AD)","v":0},null,null,null,null,null,null,null,null,null,null,null,null,null,null,null,69,"IR","IZ"]
[{"$f":"'Org structure'!D67","v":"6.10 - [Name of sub-vote]"},null,{"$f":"-SUMIFS(Sheet1!S71_OriginalBudget,Sheet1!S71_SubMunicipalVoteNo,$AC:$AC,Sheet1!S71_ItemType,$AD:$AD)","v":0},{"$f":"-SUMIFS(Sheet1!S71_PreviousBudget,Sheet1!S71_SubMunicipalVoteNo,$AC:$AC,Sheet1!S71_ItemType,$AD:$AD)","v":0},null,null,null,null,{"$f":"-SUMIFS(Sheet1!S71_CurrentAdjustments,Sheet1!S71_SubMunicipalVoteNo,$AC:$AC,Sheet1!S71_ItemType,$AD:$AD)","v":0},{"$f":"SUM(E72:I72)","v":0},{"$f":"IF(D72=0,C72+J72,D72+J72)","v":0},{"$f":"-SUMIFS(Sheet1!S71_OY1AdjustedBudget,Sheet1!S71_SubMunicipalVoteNo,$AC:$AC,Sheet1!S71_ItemType,$AD:$AD)","v":0},{"$f":"-SUMIFS(Sheet1!S71_OY2AdjustedBudget,Sheet1!S71_SubMunicipalVoteNo,$AC:$AC,Sheet1!S71_ItemType,$AD:$AD)","v":0},null,null,null,null,null,null,null,null,null,null,null,null,null,null,null,610,"IR","IZ"]
[{"$f":"'Org structure'!A8","v":"Vote 7 - Housing"},null,{"$f":"SUM(C74:C83)","v":0},0,0,0,0,0,0,0,0,{"$f":"SUM(L74:L83)","v":0},{"$f":"SUM(M74:M83)","v":0}]
[{"$f":"'Org structure'!D69","v":"7.1 - Housing"},null,{"$f":"-SUMIFS(Sheet1!S71_OriginalBudget,Sheet1!S71_SubMunicipalVoteNo,$AC:$AC,Sheet1!S71_ItemType,$AD:$AD)","v":0},{"$f":"-SUMIFS(Sheet1!S71_PreviousBudget,Sheet1!S71_SubMunicipalVoteNo,$AC:$AC,Sheet1!S71_ItemType,$AD:$AD)","v":0},null,null,null,null,{"$f":"-SUMIFS(Sheet1!S71_CurrentAdjustments,Sheet1!S71_SubMunicipalVoteNo,$AC:$AC,Sheet1!S71_ItemType,$AD:$AD)","v":0},0,0,{"$f":"-SUMIFS(Sheet1!S71_OY1AdjustedBudget,Sheet1!S71_SubMunicipalVoteNo,$AC:$AC,Sheet1!S71_ItemType,$AD:$AD)","v":0},{"$f":"-SUMIFS(Sheet1!S71_OY2AdjustedBudget,Sheet1!S71_SubMunicipalVoteNo,$AC:$AC,Sheet1!S71_ItemType,$AD:$AD)","v":0},null,null,null,null,null,null,null,null,null,null,null,null,null,null,null,71,"IR","IZ"]
[{"$f":"'Org structure'!D70","v":"7.2 - Informal Settlements"},null,{"$f":"-SUMIFS(Sheet1!S71_OriginalBudget,Sheet1!S71_SubMunicipalVoteNo,$AC:$AC,Sheet1!S71_ItemType,$AD:$AD)","v":0},{"$f":"-SUMIFS(Sheet1!S71_PreviousBudget,Sheet1!S71_SubMunicipalVoteNo,$AC:$AC,Sheet1!S71_ItemType,$AD:$AD)","v":0},null,null,null,null,{"$f":"-SUMIFS(Sheet1!S71_CurrentAdjustments,Sheet1!S71_SubMunicipalVoteNo,$AC:$AC,Sheet1!S71_ItemType,$AD:$AD)","v":0},0,0,{"$f":"-SUMIFS(Sheet1!S71_OY1AdjustedBudget,Sheet1!S71_SubMunicipalVoteNo,$AC:$AC,Sheet1!S71_ItemType,$AD:$AD)","v":0},{"$f":"-SUMIFS(Sheet1!S71_OY2AdjustedBudget,Sheet1!S71_SubMunicipalVoteNo,$AC:$AC,Sheet1!S71_ItemType,$AD:$AD)","v":0},null,null,null,null,null,null,null,null,null,null,null,null,null,null,null,72,"IR","IZ"]
[{"$f":"'Org structure'!D71","v":"7.3 - [Name of sub-vote]"},null,{"$f":"-SUMIFS(Sheet1!S71_OriginalBudget,Sheet1!S71_SubMunicipalVoteNo,$AC:$AC,Sheet1!S71_ItemType,$AD:$AD)","v":0},{"$f":"-SUMIFS(Sheet1!S71_PreviousBudget,Sheet1!S71_SubMunicipalVoteNo,$AC:$AC,Sheet1!S71_ItemType,$AD:$AD)","v":0},null,null,null,null,{"$f":"-SUMIFS(Sheet1!S71_CurrentAdjustments,Sheet1!S71_SubMunicipalVoteNo,$AC:$AC,Sheet1!S71_ItemType,$AD:$AD)","v":0},0,0,{"$f":"-SUMIFS(Sheet1!S71_OY1AdjustedBudget,Sheet1!S71_SubMunicipalVoteNo,$AC:$AC,Sheet1!S71_ItemType,$AD:$AD)","v":0},{"$f":"-SUMIFS(Sheet1!S71_OY2AdjustedBudget,Sheet1!S71_SubMunicipalVoteNo,$AC:$AC,Sheet1!S71_ItemType,$AD:$AD)","v":0},null,null,null,null,null,null,null,null,null,null,null,null,null,null,null,73,"IR","IZ"]
[{"$f":"'Org structure'!D72","v":"7.4 - [Name of sub-vote]"},null,{"$f":"-SUMIFS(Sheet1!S71_OriginalBudget,Sheet1!S71_SubMunicipalVoteNo,$AC:$AC,Sheet1!S71_ItemType,$AD:$AD)","v":0},{"$f":"-SUMIFS(Sheet1!S71_PreviousBudget,Sheet1!S71_SubMunicipalVoteNo,$AC:$AC,Sheet1!S71_ItemType,$AD:$AD)","v":0},null,null,null,null,{"$f":"-SUMIFS(Sheet1!S71_CurrentAdjustments,Sheet1!S71_SubMunicipalVoteNo,$AC:$AC,Sheet1!S71_ItemType,$AD:$AD)","v":0},0,0,{"$f":"-SUMIFS(Sheet1!S71_OY1AdjustedBudget,Sheet1!S71_SubMunicipalVoteNo,$AC:$AC,Sheet1!S71_ItemType,$AD:$AD)","v":0},{"$f":"-SUMIFS(Sheet1!S71_OY2AdjustedBudget,Sheet1!S71_SubMunicipalVoteNo,$AC:$AC,Sheet1!S71_ItemType,$AD:$AD)","v":0},null,null,null,null,null,null,null,null,null,null,null,null,null,null,null,74,"IR","IZ"]
[{"$f":"'Org structure'!D73","v":"7.5 - [Name of sub-vote]"},null,{"$f":"-SUMIFS(Sheet1!S71_OriginalBudget,Sheet1!S71_SubMunicipalVoteNo,$AC:$AC,Sheet1!S71_ItemType,$AD:$AD)","v":0},{"$f":"-SUMIFS(Sheet1!S71_PreviousBudget,Sheet1!S71_SubMunicipalVoteNo,$AC:$AC,Sheet1!S71_ItemType,$AD:$AD)","v":0},null,null,null,null,{"$f":"-SUMIFS(Sheet1!S71_CurrentAdjustments,Sheet1!S71_SubMunicipalVoteNo,$AC:$AC,Sheet1!S71_ItemType,$AD:$AD)","v":0},0,0,{"$f":"-SUMIFS(Sheet1!S71_OY1AdjustedBudget,Sheet1!S71_SubMunicipalVoteNo,$AC:$AC,Sheet1!S71_ItemType,$AD:$AD)","v":0},{"$f":"-SUMIFS(Sheet1!S71_OY2AdjustedBudget,Sheet1!S71_SubMunicipalVoteNo,$AC:$AC,Sheet1!S71_ItemType,$AD:$AD)","v":0},null,null,null,null,null,null,null,null,null,null,null,null,null,null,null,75,"IR","IZ"]
[{"$f":"'Org structure'!D74","v":"7.6 - [Name of sub-vote]"},null,{"$f":"-SUMIFS(Sheet1!S71_OriginalBudget,Sheet1!S71_SubMunicipalVoteNo,$AC:$AC,Sheet1!S71_ItemType,$AD:$AD)","v":0},{"$f":"-SUMIFS(Sheet1!S71_PreviousBudget,Sheet1!S71_SubMunicipalVoteNo,$AC:$AC,Sheet1!S71_ItemType,$AD:$AD)","v":0},null,null,null,null,{"$f":"-SUMIFS(Sheet1!S71_CurrentAdjustments,Sheet1!S71_SubMunicipalVoteNo,$AC:$AC,Sheet1!S71_ItemType,$AD:$AD)","v":0},0,0,{"$f":"-SUMIFS(Sheet1!S71_OY1AdjustedBudget,Sheet1!S71_SubMunicipalVoteNo,$AC:$AC,Sheet1!S71_ItemType,$AD:$AD)","v":0},{"$f":"-SUMIFS(Sheet1!S71_OY2AdjustedBudget,Sheet1!S71_SubMunicipalVoteNo,$AC:$AC,Sheet1!S71_ItemType,$AD:$AD)","v":0},null,null,null,null,null,null,null,null,null,null,null,null,null,null,null,76,"IR","IZ"]
[{"$f":"'Org structure'!D75","v":"7.7 - [Name of sub-vote]"},null,{"$f":"-SUMIFS(Sheet1!S71_OriginalBudget,Sheet1!S71_SubMunicipalVoteNo,$AC:$AC,Sheet1!S71_ItemType,$AD:$AD)","v":0},{"$f":"-SUMIFS(Sheet1!S71_PreviousBudget,Sheet1!S71_SubMunicipalVoteNo,$AC:$AC,Sheet1!S71_ItemType,$AD:$AD)","v":0},null,null,null,null,{"$f":"-SUMIFS(Sheet1!S71_CurrentAdjustments,Sheet1!S71_SubMunicipalVoteNo,$AC:$AC,Sheet1!S71_ItemType,$AD:$AD)","v":0},0,0,{"$f":"-SUMIFS(Sheet1!S71_OY1AdjustedBudget,Sheet1!S71_SubMunicipalVoteNo,$AC:$AC,Sheet1!S71_ItemType,$AD:$AD)","v":0},{"$f":"-SUMIFS(Sheet1!S71_OY2AdjustedBudget,Sheet1!S71_SubMunicipalVoteNo,$AC:$AC,Sheet1!S71_ItemType,$AD:$AD)","v":0},null,null,null,null,null,null,null,null,null,null,null,null,null,null,null,77,"IR","IZ"]
[{"$f":"'Org structure'!D76","v":"7.8 - [Name of sub-vote]"},null,{"$f":"-SUMIFS(Sheet1!S71_OriginalBudget,Sheet1!S71_SubMunicipalVoteNo,$AC:$AC,Sheet1!S71_ItemType,$AD:$AD)","v":0},{"$f":"-SUMIFS(Sheet1!S71_PreviousBudget,Sheet1!S71_SubMunicipalVoteNo,$AC:$AC,Sheet1!S71_ItemType,$AD:$AD)","v":0},null,null,null,null,{"$f":"-SUMIFS(Sheet1!S71_CurrentAdjustments,Sheet1!S71_SubMunicipalVoteNo,$AC:$AC,Sheet1!S71_ItemType,$AD:$AD)","v":0},0,0,{"$f":"-SUMIFS(Sheet1!S71_OY1AdjustedBudget,Sheet1!S71_SubMunicipalVoteNo,$AC:$AC,Sheet1!S71_ItemType,$AD:$AD)","v":0},{"$f":"-SUMIFS(Sheet1!S71_OY2AdjustedBudget,Sheet1!S71_SubMunicipalVoteNo,$AC:$AC,Sheet1!S71_ItemType,$AD:$AD)","v":0},null,null,null,null,null,null,null,null,null,null,null,null,null,null,null,78,"IR","IZ"]
[{"$f":"'Org structure'!D77","v":"7.9 - [Name of sub-vote]"},null,{"$f":"-SUMIFS(Sheet1!S71_OriginalBudget,Sheet1!S71_SubMunicipalVoteNo,$AC:$AC,Sheet1!S71_ItemType,$AD:$AD)","v":0},{"$f":"-SUMIFS(Sheet1!S71_PreviousBudget,Sheet1!S71_SubMunicipalVoteNo,$AC:$AC,Sheet1!S71_ItemType,$AD:$AD)","v":0},null,null,null,null,{"$f":"-SUMIFS(Sheet1!S71_CurrentAdjustments,Sheet1!S71_SubMunicipalVoteNo,$AC:$AC,Sheet1!S71_ItemType,$AD:$AD)","v":0},0,0,{"$f":"-SUMIFS(Sheet1!S71_OY1AdjustedBudget,Sheet1!S71_SubMunicipalVoteNo,$AC:$AC,Sheet1!S71_ItemType,$AD:$AD)","v":0},{"$f":"-SUMIFS(Sheet1!S71_OY2AdjustedBudget,Sheet1!S71_SubMunicipalVoteNo,$AC:$AC,Sheet1!S71_ItemType,$AD:$AD)","v":0},null,null,null,null,null,null,null,null,null,null,null,null,null,null,null,79,"IR","IZ"]
[{"$f":"'Org structure'!D78","v":"7.10 - [Name of sub-vote]"},null,{"$f":"-SUMIFS(Sheet1!S71_OriginalBudget,Sheet1!S71_SubMunicipalVoteNo,$AC:$AC,Sheet1!S71_ItemType,$AD:$AD)","v":0},{"$f":"-SUMIFS(Sheet1!S71_PreviousBudget,Sheet1!S71_SubMunicipalVoteNo,$AC:$AC,Sheet1!S71_ItemType,$AD:$AD)","v":0},null,null,null,null,{"$f":"-SUMIFS(Sheet1!S71_CurrentAdjustments,Sheet1!S71_SubMunicipalVoteNo,$AC:$AC,Sheet1!S71_ItemType,$AD:$AD)","v":0},0,0,{"$f":"-SUMIFS(Sheet1!S71_OY1AdjustedBudget,Sheet1!S71_SubMunicipalVoteNo,$AC:$AC,Sheet1!S71_ItemType,$AD:$AD)","v":0},{"$f":"-SUMIFS(Sheet1!S71_OY2AdjustedBudget,Sheet1!S71_SubMunicipalVoteNo,$AC:$AC,Sheet1!S71_ItemType,$AD:$AD)","v":0},null,null,null,null,null,null,null,null,null,null,null,null,null,null,null,710,"IR","IZ"]
[{"$f":"'Org structure'!A9","v":"Vote 8 - Planning and Development"},null,{"$f":"SUM(C85:C94)","v":41542304},{"$f":"SUM(D85:D94)","v":47119863},0,0,0,0,0,0,47119863,{"$f":"SUM(L85:L94)","v":43450604},{"$f":"SUM(M85:M94)","v":46985837}]
[{"$f":"'Org structure'!D80","v":"8.1 - Corporate Wide Strategic Planning (IDPs, LEDs)"},null,{"$f":"-SUMIFS(Sheet1!S71_OriginalBudget,Sheet1!S71_SubMunicipalVoteNo,$AC:$AC,Sheet1!S71_ItemType,$AD:$AD)","v":0},{"$f":"-SUMIFS(Sheet1!S71_PreviousBudget,Sheet1!S71_SubMunicipalVoteNo,$AC:$AC,Sheet1!S71_ItemType,$AD:$AD)","v":0},null,null,null,null,{"$f":"-SUMIFS(Sheet1!S71_CurrentAdjustments,Sheet1!S71_SubMunicipalVoteNo,$AC:$AC,Sheet1!S71_ItemType,$AD:$AD)","v":0},0,0,{"$f":"-SUMIFS(Sheet1!S71_OY1AdjustedBudget,Sheet1!S71_SubMunicipalVoteNo,$AC:$AC,Sheet1!S71_ItemType,$AD:$AD)","v":0},{"$f":"-SUMIFS(Sheet1!S71_OY2AdjustedBudget,Sheet1!S71_SubMunicipalVoteNo,$AC:$AC,Sheet1!S71_ItemType,$AD:$AD)","v":0},null,null,null,null,null,null,null,null,null,null,null,null,null,null,null,81,"IR","IZ"]
[{"$f":"'Org structure'!D81","v":"8.2 - Economic Development/Planning"},null,{"$f":"-SUMIFS(Sheet1!S71_OriginalBudget,Sheet1!S71_SubMunicipalVoteNo,$AC:$AC,Sheet1!S71_ItemType,$AD:$AD)","v":0},{"$f":"-SUMIFS(Sheet1!S71_PreviousBudget,Sheet1!S71_SubMunicipalVoteNo,$AC:$AC,Sheet1!S71_ItemType,$AD:$AD)","v":50000},null,null,null,null,{"$f":"-SUMIFS(Sheet1!S71_CurrentAdjustments,Sheet1!S71_SubMunicipalVoteNo,$AC:$AC,Sheet1!S71_ItemType,$AD:$AD)","v":0},0,50000,{"$f":"-SUMIFS(Sheet1!S71_OY1AdjustedBudget,Sheet1!S71_SubMunicipalVoteNo,$AC:$AC,Sheet1!S71_ItemType,$AD:$AD)","v":0},{"$f":"-SUMIFS(Sheet1!S71_OY2AdjustedBudget,Sheet1!S71_SubMunicipalVoteNo,$AC:$AC,Sheet1!S71_ItemType,$AD:$AD)","v":0},null,null,null,null,null,null,null,null,null,null,null,null,null,null,null,82,"IR","IZ"]
[{"$f":"'Org structure'!D82","v":"8.3 - Project Management Unit"},null,{"$f":"-SUMIFS(Sheet1!S71_OriginalBudget,Sheet1!S71_SubMunicipalVoteNo,$AC:$AC,Sheet1!S71_ItemType,$AD:$AD)","v":41101000},{"$f":"-SUMIFS(Sheet1!S71_PreviousBudget,Sheet1!S71_SubMunicipalVoteNo,$AC:$AC,Sheet1!S71_ItemType,$AD:$AD)","v":46478559},null,null,null,null,{"$f":"-SUMIFS(Sheet1!S71_CurrentAdjustments,Sheet1!S71_SubMunicipalVoteNo,$AC:$AC,Sheet1!S71_ItemType,$AD:$AD)","v":0},0,46478559,{"$f":"-SUMIFS(Sheet1!S71_OY1AdjustedBudget,Sheet1!S71_SubMunicipalVoteNo,$AC:$AC,Sheet1!S71_ItemType,$AD:$AD)","v":42989000},{"$f":"-SUMIFS(Sheet1!S71_OY2AdjustedBudget,Sheet1!S71_SubMunicipalVoteNo,$AC:$AC,Sheet1!S71_ItemType,$AD:$AD)","v":46503000},null,null,null,null,null,null,null,null,null,null,null,null,null,null,null,83,"IR","IZ"]
[{"$f":"'Org structure'!D83","v":"8.4 - Town Planning, Building Regulations and Enforcement, and City Engineer"},null,{"$f":"-SUMIFS(Sheet1!S71_OriginalBudget,Sheet1!S71_SubMunicipalVoteNo,$AC:$AC,Sheet1!S71_ItemType,$AD:$AD)","v":389130},{"$f":"-SUMIFS(Sheet1!S71_PreviousBudget,Sheet1!S71_SubMunicipalVoteNo,$AC:$AC,Sheet1!S71_ItemType,$AD:$AD)","v":389130},null,null,null,null,{"$f":"-SUMIFS(Sheet1!S71_CurrentAdjustments,Sheet1!S71_SubMunicipalVoteNo,$AC:$AC,Sheet1!S71_ItemType,$AD:$AD)","v":0},0,389130,{"$f":"-SUMIFS(Sheet1!S71_OY1AdjustedBudget,Sheet1!S71_SubMunicipalVoteNo,$AC:$AC,Sheet1!S71_ItemType,$AD:$AD)","v":407030},{"$f":"-SUMIFS(Sheet1!S71_OY2AdjustedBudget,Sheet1!S71_SubMunicipalVoteNo,$AC:$AC,Sheet1!S71_ItemType,$AD:$AD)","v":425753},null,null,null,null,null,null,null,null,null,null,null,null,null,null,null,84,"IR","IZ"]
[{"$f":"'Org structure'!D84","v":"8.5 - Regional Planning and Development"},null,{"$f":"-SUMIFS(Sheet1!S71_OriginalBudget,Sheet1!S71_SubMunicipalVoteNo,$AC:$AC,Sheet1!S71_ItemType,$AD:$AD)","v":0},{"$f":"-SUMIFS(Sheet1!S71_PreviousBudget,Sheet1!S71_SubMunicipalVoteNo,$AC:$AC,Sheet1!S71_ItemType,$AD:$AD)","v":0},null,null,null,null,{"$f":"-SUMIFS(Sheet1!S71_CurrentAdjustments,Sheet1!S71_SubMunicipalVoteNo,$AC:$AC,Sheet1!S71_ItemType,$AD:$AD)","v":0},0,0,{"$f":"-SUMIFS(Sheet1!S71_OY1AdjustedBudget,Sheet1!S71_SubMunicipalVoteNo,$AC:$AC,Sheet1!S71_ItemType,$AD:$AD)","v":0},{"$f":"-SUMIFS(Sheet1!S71_OY2AdjustedBudget,Sheet1!S71_SubMunicipalVoteNo,$AC:$AC,Sheet1!S71_ItemType,$AD:$AD)","v":0},null,null,null,null,null,null,null,null,null,null,null,null,null,null,null,85,"IR","IZ"]
[{"$f":"'Org structure'!D85","v":"8.6 - Development Facilitation"},null,{"$f":"-SUMIFS(Sheet1!S71_OriginalBudget,Sheet1!S71_SubMunicipalVoteNo,$AC:$AC,Sheet1!S71_ItemType,$AD:$AD)","v":0},{"$f":"-SUMIFS(Sheet1!S71_PreviousBudget,Sheet1!S71_SubMunicipalVoteNo,$AC:$AC,Sheet1!S71_ItemType,$AD:$AD)","v":0},null,null,null,null,{"$f":"-SUMIFS(Sheet1!S71_CurrentAdjustments,Sheet1!S71_SubMunicipalVoteNo,$AC:$AC,Sheet1!S71_ItemType,$AD:$AD)","v":0},0,0,{"$f":"-SUMIFS(Sheet1!S71_OY1AdjustedBudget,Sheet1!S71_SubMunicipalVoteNo,$AC:$AC,Sheet1!S71_ItemType,$AD:$AD)","v":0},{"$f":"-SUMIFS(Sheet1!S71_OY2AdjustedBudget,Sheet1!S71_SubMunicipalVoteNo,$AC:$AC,Sheet1!S71_ItemType,$AD:$AD)","v":0},null,null,null,null,null,null,null,null,null,null,null,null,null,null,null,86,"IR","IZ"]
[{"$f":"'Org structure'!D86","v":"8.7 - Central City Improvement District"},null,{"$f":"-SUMIFS(Sheet1!S71_OriginalBudget,Sheet1!S71_SubMunicipalVoteNo,$AC:$AC,Sheet1!S71_ItemType,$AD:$AD)","v":52174},{"$f":"-SUMIFS(Sheet1!S71_PreviousBudget,Sheet1!S71_SubMunicipalVoteNo,$AC:$AC,Sheet1!S71_ItemType,$AD:$AD)","v":202174},null,null,null,null,{"$f":"-SUMIFS(Sheet1!S71_CurrentAdjustments,Sheet1!S71_SubMunicipalVoteNo,$AC:$AC,Sheet1!S71_ItemType,$AD:$AD)","v":0},0,202174,{"$f":"-SUMIFS(Sheet1!S71_OY1AdjustedBudget,Sheet1!S71_SubMunicipalVoteNo,$AC:$AC,Sheet1!S71_ItemType,$AD:$AD)","v":54574},{"$f":"-SUMIFS(Sheet1!S71_OY2AdjustedBudget,Sheet1!S71_SubMunicipalVoteNo,$AC:$AC,Sheet1!S71_ItemType,$AD:$AD)","v":57084},null,null,null,null,null,null,null,null,null,null,null,null,null,null,null,87,"IR","IZ"]
[{"$f":"'Org structure'!D87","v":"8.8 - [Name of sub-vote]"},null,{"$f":"-SUMIFS(Sheet1!S71_OriginalBudget,Sheet1!S71_SubMunicipalVoteNo,$AC:$AC,Sheet1!S71_ItemType,$AD:$AD)","v":0},{"$f":"-SUMIFS(Sheet1!S71_PreviousBudget,Sheet1!S71_SubMunicipalVoteNo,$AC:$AC,Sheet1!S71_ItemType,$AD:$AD)","v":0},null,null,null,null,{"$f":"-SUMIFS(Sheet1!S71_CurrentAdjustments,Sheet1!S71_SubMunicipalVoteNo,$AC:$AC,Sheet1!S71_ItemType,$AD:$AD)","v":0},0,0,{"$f":"-SUMIFS(Sheet1!S71_OY1AdjustedBudget,Sheet1!S71_SubMunicipalVoteNo,$AC:$AC,Sheet1!S71_ItemType,$AD:$AD)","v":0},{"$f":"-SUMIFS(Sheet1!S71_OY2AdjustedBudget,Sheet1!S71_SubMunicipalVoteNo,$AC:$AC,Sheet1!S71_ItemType,$AD:$AD)","v":0},null,null,null,null,null,null,null,null,null,null,null,null,null,null,null,88,"IR","IZ"]
[{"$f":"'Org structure'!D88","v":"8.9 - Tourism"},null,{"$f":"-SUMIFS(Sheet1!S71_OriginalBudget,Sheet1!S71_SubMunicipalVoteNo,$AC:$AC,Sheet1!S71_ItemType,$AD:$AD)","v":0},{"$f":"-SUMIFS(Sheet1!S71_PreviousBudget,Sheet1!S71_SubMunicipalVoteNo,$AC:$AC,Sheet1!S71_ItemType,$AD:$AD)","v":0},null,null,null,null,{"$f":"-SUMIFS(Sheet1!S71_CurrentAdjustments,Sheet1!S71_SubMunicipalVoteNo,$AC:$AC,Sheet1!S71_ItemType,$AD:$AD)","v":0},0,0,{"$f":"-SUMIFS(Sheet1!S71_OY1AdjustedBudget,Sheet1!S71_SubMunicipalVoteNo,$AC:$AC,Sheet1!S71_ItemType,$AD:$AD)","v":0},{"$f":"-SUMIFS(Sheet1!S71_OY2AdjustedBudget,Sheet1!S71_SubMunicipalVoteNo,$AC:$AC,Sheet1!S71_ItemType,$AD:$AD)","v":0},null,null,null,null,null,null,null,null,null,null,null,null,null,null,null,89,"IR","IZ"]
[{"$f":"'Org structure'!D89","v":"8.10 - Billboards"},null,{"$f":"-SUMIFS(Sheet1!S71_OriginalBudget,Sheet1!S71_SubMunicipalVoteNo,$AC:$AC,Sheet1!S71_ItemType,$AD:$AD)","v":0},{"$f":"-SUMIFS(Sheet1!S71_PreviousBudget,Sheet1!S71_SubMunicipalVoteNo,$AC:$AC,Sheet1!S71_ItemType,$AD:$AD)","v":0},null,null,null,null,{"$f":"-SUMIFS(Sheet1!S71_CurrentAdjustments,Sheet1!S71_SubMunicipalVoteNo,$AC:$AC,Sheet1!S71_ItemType,$AD:$AD)","v":0},0,0,{"$f":"-SUMIFS(Sheet1!S71_OY1AdjustedBudget,Sheet1!S71_SubMunicipalVoteNo,$AC:$AC,Sheet1!S71_ItemType,$AD:$AD)","v":0},{"$f":"-SUMIFS(Sheet1!S71_OY2AdjustedBudget,Sheet1!S71_SubMunicipalVoteNo,$AC:$AC,Sheet1!S71_ItemType,$AD:$AD)","v":0},null,null,null,null,null,null,null,null,null,null,null,null,null,null,null,810,"IR","IZ"]
[{"$f":"'Org structure'!A10","v":"Vote 9 - Road transport"},null,{"$f":"SUM(C96:C105)","v":3984565},{"$f":"SUM(D96:D105)","v":3984565},0,0,0,2283500,0,2283500,6268065,{"$f":"SUM(L96:L105)","v":2269365},{"$f":"SUM(M96:M105)","v":2373756}]
[{"$f":"'Org structure'!D91","v":"9.1 - Roads"},null,{"$f":"-SUMIFS(Sheet1!S71_OriginalBudget,Sheet1!S71_SubMunicipalVoteNo,$AC:$AC,Sheet1!S71_ItemType,$AD:$AD)","v":1815000},{"$f":"-SUMIFS(Sheet1!S71_PreviousBudget,Sheet1!S71_SubMunicipalVoteNo,$AC:$AC,Sheet1!S71_ItemType,$AD:$AD)","v":1815000},null,null,null,{"$f":"-SUMIFS(Sheet1!S71_CurrentAdjustments,Sheet1!S71_SubMunicipalVoteNo,$AC:$AC,Sheet1!S71_ItemType,$AD:$AD)","v":2283500},0,2283500,4098500,{"$f":"-SUMIFS(Sheet1!S71_OY1AdjustedBudget,Sheet1!S71_SubMunicipalVoteNo,$AC:$AC,Sheet1!S71_ItemType,$AD:$AD)","v":0},{"$f":"-SUMIFS(Sheet1!S71_OY2AdjustedBudget,Sheet1!S71_SubMunicipalVoteNo,$AC:$AC,Sheet1!S71_ItemType,$AD:$AD)","v":0},null,null,null,null,null,null,null,null,null,null,null,null,null,null,null,91,"IR","IZ"]
[{"$f":"'Org structure'!D92","v":"9.2 - Road and Traffic Regulation"},null,{"$f":"-SUMIFS(Sheet1!S71_OriginalBudget,Sheet1!S71_SubMunicipalVoteNo,$AC:$AC,Sheet1!S71_ItemType,$AD:$AD)","v":2169565},{"$f":"-SUMIFS(Sheet1!S71_PreviousBudget,Sheet1!S71_SubMunicipalVoteNo,$AC:$AC,Sheet1!S71_ItemType,$AD:$AD)","v":2169565},null,null,null,null,{"$f":"-SUMIFS(Sheet1!S71_CurrentAdjustments,Sheet1!S71_SubMunicipalVoteNo,$AC:$AC,Sheet1!S71_ItemType,$AD:$AD)","v":0},0,2169565,{"$f":"-SUMIFS(Sheet1!S71_OY1AdjustedBudget,Sheet1!S71_SubMunicipalVoteNo,$AC:$AC,Sheet1!S71_ItemType,$AD:$AD)","v":2269365},{"$f":"-SUMIFS(Sheet1!S71_OY2AdjustedBudget,Sheet1!S71_SubMunicipalVoteNo,$AC:$AC,Sheet1!S71_ItemType,$AD:$AD)","v":2373756},null,null,null,null,null,null,null,null,null,null,null,null,null,null,null,92,"IR","IZ"]
[{"$f":"'Org structure'!D93","v":"9.3 - Storm Water Management"},null,{"$f":"-SUMIFS(Sheet1!S71_OriginalBudget,Sheet1!S71_SubMunicipalVoteNo,$AC:$AC,Sheet1!S71_ItemType,$AD:$AD)","v":0},{"$f":"-SUMIFS(Sheet1!S71_PreviousBudget,Sheet1!S71_SubMunicipalVoteNo,$AC:$AC,Sheet1!S71_ItemType,$AD:$AD)","v":0},null,null,null,null,{"$f":"-SUMIFS(Sheet1!S71_CurrentAdjustments,Sheet1!S71_SubMunicipalVoteNo,$AC:$AC,Sheet1!S71_ItemType,$AD:$AD)","v":0},0,0,{"$f":"-SUMIFS(Sheet1!S71_OY1AdjustedBudget,Sheet1!S71_SubMunicipalVoteNo,$AC:$AC,Sheet1!S71_ItemType,$AD:$AD)","v":0},{"$f":"-SUMIFS(Sheet1!S71_OY2AdjustedBudget,Sheet1!S71_SubMunicipalVoteNo,$AC:$AC,Sheet1!S71_ItemType,$AD:$AD)","v":0},null,null,null,null,null,null,null,null,null,null,null,null,null,null,null,93,"IR","IZ"]
[{"$f":"'Org structure'!D94","v":"9.4 - [Name of sub-vote]"},null,{"$f":"-SUMIFS(Sheet1!S71_OriginalBudget,Sheet1!S71_SubMunicipalVoteNo,$AC:$AC,Sheet1!S71_ItemType,$AD:$AD)","v":0},{"$f":"-SUMIFS(Sheet1!S71_PreviousBudget,Sheet1!S71_SubMunicipalVoteNo,$AC:$AC,Sheet1!S71_ItemType,$AD:$AD)","v":0},null,null,null,null,{"$f":"-SUMIFS(Sheet1!S71_CurrentAdjustments,Sheet1!S71_SubMunicipalVoteNo,$AC:$AC,Sheet1!S71_ItemType,$AD:$AD)","v":0},0,0,{"$f":"-SUMIFS(Sheet1!S71_OY1AdjustedBudget,Sheet1!S71_SubMunicipalVoteNo,$AC:$AC,Sheet1!S71_ItemType,$AD:$AD)","v":0},{"$f":"-SUMIFS(Sheet1!S71_OY2AdjustedBudget,Sheet1!S71_SubMunicipalVoteNo,$AC:$AC,Sheet1!S71_ItemType,$AD:$AD)","v":0},null,null,null,null,null,null,null,null,null,null,null,null,null,null,null,94,"IR","IZ"]
[{"$f":"'Org structure'!D95","v":"9.5 - [Name of sub-vote]"},null,{"$f":"-SUMIFS(Sheet1!S71_OriginalBudget,Sheet1!S71_SubMunicipalVoteNo,$AC:$AC,Sheet1!S71_ItemType,$AD:$AD)","v":0},{"$f":"-SUMIFS(Sheet1!S71_PreviousBudget,Sheet1!S71_SubMunicipalVoteNo,$AC:$AC,Sheet1!S71_ItemType,$AD:$AD)","v":0},null,null,null,null,{"$f":"-SUMIFS(Sheet1!S71_CurrentAdjustments,Sheet1!S71_SubMunicipalVoteNo,$AC:$AC,Sheet1!S71_ItemType,$AD:$AD)","v":0},0,0,{"$f":"-SUMIFS(Sheet1!S71_OY1AdjustedBudget,Sheet1!S71_SubMunicipalVoteNo,$AC:$AC,Sheet1!S71_ItemType,$AD:$AD)","v":0},{"$f":"-SUMIFS(Sheet1!S71_OY2AdjustedBudget,Sheet1!S71_SubMunicipalVoteNo,$AC:$AC,Sheet1!S71_ItemType,$AD:$AD)","v":0},null,null,null,null,null,null,null,null,null,null,null,null,null,null,null,95,"IR","IZ"]
[{"$f":"'Org structure'!D96","v":"9.6 - [Name of sub-vote]"},null,{"$f":"-SUMIFS(Sheet1!S71_OriginalBudget,Sheet1!S71_SubMunicipalVoteNo,$AC:$AC,Sheet1!S71_ItemType,$AD:$AD)","v":0},{"$f":"-SUMIFS(Sheet1!S71_PreviousBudget,Sheet1!S71_SubMunicipalVoteNo,$AC:$AC,Sheet1!S71_ItemType,$AD:$AD)","v":0},null,null,null,null,{"$f":"-SUMIFS(Sheet1!S71_CurrentAdjustments,Sheet1!S71_SubMunicipalVoteNo,$AC:$AC,Sheet1!S71_ItemType,$AD:$AD)","v":0},0,0,{"$f":"-SUMIFS(Sheet1!S71_OY1AdjustedBudget,Sheet1!S71_SubMunicipalVoteNo,$AC:$AC,Sheet1!S71_ItemType,$AD:$AD)","v":0},{"$f":"-SUMIFS(Sheet1!S71_OY2AdjustedBudget,Sheet1!S71_SubMunicipalVoteNo,$AC:$AC,Sheet1!S71_ItemType,$AD:$AD)","v":0},null,null,null,null,null,null,null,null,null,null,null,null,null,null,null,96,"IR","IZ"]
[{"$f":"'Org structure'!D97","v":"9.7 - [Name of sub-vote]"},null,{"$f":"-SUMIFS(Sheet1!S71_OriginalBudget,Sheet1!S71_SubMunicipalVoteNo,$AC:$AC,Sheet1!S71_ItemType,$AD:$AD)","v":0},{"$f":"-SUMIFS(Sheet1!S71_PreviousBudget,Sheet1!S71_SubMunicipalVoteNo,$AC:$AC,Sheet1!S71_ItemType,$AD:$AD)","v":0},null,null,null,null,{"$f":"-SUMIFS(Sheet1!S71_CurrentAdjustments,Sheet1!S71_SubMunicipalVoteNo,$AC:$AC,Sheet1!S71_ItemType,$AD:$AD)","v":0},0,0,{"$f":"-SUMIFS(Sheet1!S71_OY1AdjustedBudget,Sheet1!S71_SubMunicipalVoteNo,$AC:$AC,Sheet1!S71_ItemType,$AD:$AD)","v":0},{"$f":"-SUMIFS(Sheet1!S71_OY2AdjustedBudget,Sheet1!S71_SubMunicipalVoteNo,$AC:$AC,Sheet1!S71_ItemType,$AD:$AD)","v":0},null,null,null,null,null,null,null,null,null,null,null,null,null,null,null,97,"IR","IZ"]
[{"$f":"'Org structure'!D98","v":"9.8 - [Name of sub-vote]"},null,{"$f":"-SUMIFS(Sheet1!S71_OriginalBudget,Sheet1!S71_SubMunicipalVoteNo,$AC:$AC,Sheet1!S71_ItemType,$AD:$AD)","v":0},{"$f":"-SUMIFS(Sheet1!S71_PreviousBudget,Sheet1!S71_SubMunicipalVoteNo,$AC:$AC,Sheet1!S71_ItemType,$AD:$AD)","v":0},null,null,null,null,{"$f":"-SUMIFS(Sheet1!S71_CurrentAdjustments,Sheet1!S71_SubMunicipalVoteNo,$AC:$AC,Sheet1!S71_ItemType,$AD:$AD)","v":0},0,0,{"$f":"-SUMIFS(Sheet1!S71_OY1AdjustedBudget,Sheet1!S71_SubMunicipalVoteNo,$AC:$AC,Sheet1!S71_ItemType,$AD:$AD)","v":0},{"$f":"-SUMIFS(Sheet1!S71_OY2AdjustedBudget,Sheet1!S71_SubMunicipalVoteNo,$AC:$AC,Sheet1!S71_ItemType,$AD:$AD)","v":0},null,null,null,null,null,null,null,null,null,null,null,null,null,null,null,98,"IR","IZ"]
[{"$f":"'Org structure'!D99","v":"9.9 - [Name of sub-vote]"},null,{"$f":"-SUMIFS(Sheet1!S71_OriginalBudget,Sheet1!S71_SubMunicipalVoteNo,$AC:$AC,Sheet1!S71_ItemType,$AD:$AD)","v":0},{"$f":"-SUMIFS(Sheet1!S71_PreviousBudget,Sheet1!S71_SubMunicipalVoteNo,$AC:$AC,Sheet1!S71_ItemType,$AD:$AD)","v":0},null,null,null,null,{"$f":"-SUMIFS(Sheet1!S71_CurrentAdjustments,Sheet1!S71_SubMunicipalVoteNo,$AC:$AC,Sheet1!S71_ItemType,$AD:$AD)","v":0},0,0,{"$f":"-SUMIFS(Sheet1!S71_OY1AdjustedBudget,Sheet1!S71_SubMunicipalVoteNo,$AC:$AC,Sheet1!S71_ItemType,$AD:$AD)","v":0},{"$f":"-SUMIFS(Sheet1!S71_OY2AdjustedBudget,Sheet1!S71_SubMunicipalVoteNo,$AC:$AC,Sheet1!S71_ItemType,$AD:$AD)","v":0},null,null,null,null,null,null,null,null,null,null,null,null,null,null,null,99,"IR","IZ"]
[{"$f":"'Org structure'!D100","v":"9.10 - [Name of sub-vote]"},null,{"$f":"-SUMIFS(Sheet1!S71_OriginalBudget,Sheet1!S71_SubMunicipalVoteNo,$AC:$AC,Sheet1!S71_ItemType,$AD:$AD)","v":0},{"$f":"-SUMIFS(Sheet1!S71_PreviousBudget,Sheet1!S71_SubMunicipalVoteNo,$AC:$AC,Sheet1!S71_ItemType,$AD:$AD)","v":0},null,null,null,null,{"$f":"-SUMIFS(Sheet1!S71_CurrentAdjustments,Sheet1!S71_SubMunicipalVoteNo,$AC:$AC,Sheet1!S71_ItemType,$AD:$AD)","v":0},0,0,{"$f":"-SUMIFS(Sheet1!S71_OY1AdjustedBudget,Sheet1!S71_SubMunicipalVoteNo,$AC:$AC,Sheet1!S71_ItemType,$AD:$AD)","v":0},{"$f":"-SUMIFS(Sheet1!S71_OY2AdjustedBudget,Sheet1!S71_SubMunicipalVoteNo,$AC:$AC,Sheet1!S71_ItemType,$AD:$AD)","v":0},null,null,null,null,null,null,null,null,null,null,null,null,null,null,null,910,"IR","IZ"]
[{"$f":"'Org structure'!A11","v":"Vote 10 - Energy sources"},null,{"$f":"SUM(C107:C116)","v":80675495},{"$f":"SUM(D107:D116)","v":80742895},0,0,0,-6719130,0,-6719130,74023765,{"$f":"SUM(L107:L116)","v":82689988},{"$f":"SUM(M107:M116)","v":87889913}]
[{"$f":"'Org structure'!D102","v":"10.1 - Electricity"},null,{"$f":"-SUMIFS(Sheet1!S71_OriginalBudget,Sheet1!S71_SubMunicipalVoteNo,$AC:$AC,Sheet1!S71_ItemType,$AD:$AD)","v":80675495},{"$f":"-SUMIFS(Sheet1!S71_PreviousBudget,Sheet1!S71_SubMunicipalVoteNo,$AC:$AC,Sheet1!S71_ItemType,$AD:$AD)","v":80742895},null,null,null,{"$f":"-SUMIFS(Sheet1!S71_CurrentAdjustments,Sheet1!S71_SubMunicipalVoteNo,$AC:$AC,Sheet1!S71_ItemType,$AD:$AD)","v":-6719130},0,-6719130,74023765,{"$f":"-SUMIFS(Sheet1!S71_OY1AdjustedBudget,Sheet1!S71_SubMunicipalVoteNo,$AC:$AC,Sheet1!S71_ItemType,$AD:$AD)","v":82689988},{"$f":"-SUMIFS(Sheet1!S71_OY2AdjustedBudget,Sheet1!S71_SubMunicipalVoteNo,$AC:$AC,Sheet1!S71_ItemType,$AD:$AD)","v":87889913},null,null,null,null,null,null,null,null,null,null,null,null,null,null,null,101,"IR","IZ"]
[{"$f":"'Org structure'!D103","v":"10.2 - Street Lighting and Signal Systems"},null,{"$f":"-SUMIFS(Sheet1!S71_OriginalBudget,Sheet1!S71_SubMunicipalVoteNo,$AC:$AC,Sheet1!S71_ItemType,$AD:$AD)","v":0},{"$f":"-SUMIFS(Sheet1!S71_PreviousBudget,Sheet1!S71_SubMunicipalVoteNo,$AC:$AC,Sheet1!S71_ItemType,$AD:$AD)","v":0},null,null,null,null,{"$f":"-SUMIFS(Sheet1!S71_CurrentAdjustments,Sheet1!S71_SubMunicipalVoteNo,$AC:$AC,Sheet1!S71_ItemType,$AD:$AD)","v":0},0,0,{"$f":"-SUMIFS(Sheet1!S71_OY1AdjustedBudget,Sheet1!S71_SubMunicipalVoteNo,$AC:$AC,Sheet1!S71_ItemType,$AD:$AD)","v":0},{"$f":"-SUMIFS(Sheet1!S71_OY2AdjustedBudget,Sheet1!S71_SubMunicipalVoteNo,$AC:$AC,Sheet1!S71_ItemType,$AD:$AD)","v":0},null,null,null,null,null,null,null,null,null,null,null,null,null,null,null,102,"IR","IZ"]
[{"$f":"'Org structure'!D104","v":"10.3 - [Name of sub-vote]"},null,{"$f":"-SUMIFS(Sheet1!S71_OriginalBudget,Sheet1!S71_SubMunicipalVoteNo,$AC:$AC,Sheet1!S71_ItemType,$AD:$AD)","v":0},{"$f":"-SUMIFS(Sheet1!S71_PreviousBudget,Sheet1!S71_SubMunicipalVoteNo,$AC:$AC,Sheet1!S71_ItemType,$AD:$AD)","v":0},null,null,null,null,{"$f":"-SUMIFS(Sheet1!S71_CurrentAdjustments,Sheet1!S71_SubMunicipalVoteNo,$AC:$AC,Sheet1!S71_ItemType,$AD:$AD)","v":0},0,0,{"$f":"-SUMIFS(Sheet1!S71_OY1AdjustedBudget,Sheet1!S71_SubMunicipalVoteNo,$AC:$AC,Sheet1!S71_ItemType,$AD:$AD)","v":0},{"$f":"-SUMIFS(Sheet1!S71_OY2AdjustedBudget,Sheet1!S71_SubMunicipalVoteNo,$AC:$AC,Sheet1!S71_ItemType,$AD:$AD)","v":0},null,null,null,null,null,null,null,null,null,null,null,null,null,null,null,103,"IR","IZ"]
[{"$f":"'Org structure'!D105","v":"10.4 - [Name of sub-vote]"},null,{"$f":"-SUMIFS(Sheet1!S71_OriginalBudget,Sheet1!S71_SubMunicipalVoteNo,$AC:$AC,Sheet1!S71_ItemType,$AD:$AD)","v":0},{"$f":"-SUMIFS(Sheet1!S71_PreviousBudget,Sheet1!S71_SubMunicipalVoteNo,$AC:$AC,Sheet1!S71_ItemType,$AD:$AD)","v":0},null,null,null,null,{"$f":"-SUMIFS(Sheet1!S71_CurrentAdjustments,Sheet1!S71_SubMunicipalVoteNo,$AC:$AC,Sheet1!S71_ItemType,$AD:$AD)","v":0},0,0,{"$f":"-SUMIFS(Sheet1!S71_OY1AdjustedBudget,Sheet1!S71_SubMunicipalVoteNo,$AC:$AC,Sheet1!S71_ItemType,$AD:$AD)","v":0},{"$f":"-SUMIFS(Sheet1!S71_OY2AdjustedBudget,Sheet1!S71_SubMunicipalVoteNo,$AC:$AC,Sheet1!S71_ItemType,$AD:$AD)","v":0},null,null,null,null,null,null,null,null,null,null,null,null,null,null,null,104,"IR","IZ"]
[{"$f":"'Org structure'!D106","v":"10.5 - [Name of sub-vote]"},null,{"$f":"-SUMIFS(Sheet1!S71_OriginalBudget,Sheet1!S71_SubMunicipalVoteNo,$AC:$AC,Sheet1!S71_ItemType,$AD:$AD)","v":0},{"$f":"-SUMIFS(Sheet1!S71_PreviousBudget,Sheet1!S71_SubMunicipalVoteNo,$AC:$AC,Sheet1!S71_ItemType,$AD:$AD)","v":0},null,null,null,null,{"$f":"-SUMIFS(Sheet1!S71_CurrentAdjustments,Sheet1!S71_SubMunicipalVoteNo,$AC:$AC,Sheet1!S71_ItemType,$AD:$AD)","v":0},0,0,{"$f":"-SUMIFS(Sheet1!S71_OY1AdjustedBudget,Sheet1!S71_SubMunicipalVoteNo,$AC:$AC,Sheet1!S71_ItemType,$AD:$AD)","v":0},{"$f":"-SUMIFS(Sheet1!S71_OY2AdjustedBudget,Sheet1!S71_SubMunicipalVoteNo,$AC:$AC,Sheet1!S71_ItemType,$AD:$AD)","v":0},null,null,null,null,null,null,null,null,null,null,null,null,null,null,null,105,"IR","IZ"]
[{"$f":"'Org structure'!D107","v":"10.6 - [Name of sub-vote]"},null,{"$f":"-SUMIFS(Sheet1!S71_OriginalBudget,Sheet1!S71_SubMunicipalVoteNo,$AC:$AC,Sheet1!S71_ItemType,$AD:$AD)","v":0},{"$f":"-SUMIFS(Sheet1!S71_PreviousBudget,Sheet1!S71_SubMunicipalVoteNo,$AC:$AC,Sheet1!S71_ItemType,$AD:$AD)","v":0},null,null,null,null,{"$f":"-SUMIFS(Sheet1!S71_CurrentAdjustments,Sheet1!S71_SubMunicipalVoteNo,$AC:$AC,Sheet1!S71_ItemType,$AD:$AD)","v":0},0,0,{"$f":"-SUMIFS(Sheet1!S71_OY1AdjustedBudget,Sheet1!S71_SubMunicipalVoteNo,$AC:$AC,Sheet1!S71_ItemType,$AD:$AD)","v":0},{"$f":"-SUMIFS(Sheet1!S71_OY2AdjustedBudget,Sheet1!S71_SubMunicipalVoteNo,$AC:$AC,Sheet1!S71_ItemType,$AD:$AD)","v":0},null,null,null,null,null,null,null,null,null,null,null,null,null,null,null,106,"IR","IZ"]
[{"$f":"'Org structure'!D108","v":"10.7 - [Name of sub-vote]"},null,{"$f":"-SUMIFS(Sheet1!S71_OriginalBudget,Sheet1!S71_SubMunicipalVoteNo,$AC:$AC,Sheet1!S71_ItemType,$AD:$AD)","v":0},{"$f":"-SUMIFS(Sheet1!S71_PreviousBudget,Sheet1!S71_SubMunicipalVoteNo,$AC:$AC,Sheet1!S71_ItemType,$AD:$AD)","v":0},null,null,null,null,{"$f":"-SUMIFS(Sheet1!S71_CurrentAdjustments,Sheet1!S71_SubMunicipalVoteNo,$AC:$AC,Sheet1!S71_ItemType,$AD:$AD)","v":0},0,0,{"$f":"-SUMIFS(Sheet1!S71_OY1AdjustedBudget,Sheet1!S71_SubMunicipalVoteNo,$AC:$AC,Sheet1!S71_ItemType,$AD:$AD)","v":0},{"$f":"-SUMIFS(Sheet1!S71_OY2AdjustedBudget,Sheet1!S71_SubMunicipalVoteNo,$AC:$AC,Sheet1!S71_ItemType,$AD:$AD)","v":0},null,null,null,null,null,null,null,null,null,null,null,null,null,null,null,107,"IR","IZ"]
[{"$f":"'Org structure'!D109","v":"10.8 - [Name of sub-vote]"},null,{"$f":"-SUMIFS(Sheet1!S71_OriginalBudget,Sheet1!S71_SubMunicipalVoteNo,$AC:$AC,Sheet1!S71_ItemType,$AD:$AD)","v":0},{"$f":"-SUMIFS(Sheet1!S71_PreviousBudget,Sheet1!S71_SubMunicipalVoteNo,$AC:$AC,Sheet1!S71_ItemType,$AD:$AD)","v":0},null,null,null,null,{"$f":"-SUMIFS(Sheet1!S71_CurrentAdjustments,Sheet1!S71_SubMunicipalVoteNo,$AC:$AC,Sheet1!S71_ItemType,$AD:$AD)","v":0},0,0,{"$f":"-SUMIFS(Sheet1!S71_OY1AdjustedBudget,Sheet1!S71_SubMunicipalVoteNo,$AC:$AC,Sheet1!S71_ItemType,$AD:$AD)","v":0},{"$f":"-SUMIFS(Sheet1!S71_OY2AdjustedBudget,Sheet1!S71_SubMunicipalVoteNo,$AC:$AC,Sheet1!S71_ItemType,$AD:$AD)","v":0},null,null,null,null,null,null,null,null,null,null,null,null,null,null,null,108,"IR","IZ"]
[{"$f":"'Org structure'!D110","v":"10.9 - [Name of sub-vote]"},null,{"$f":"-SUMIFS(Sheet1!S71_OriginalBudget,Sheet1!S71_SubMunicipalVoteNo,$AC:$AC,Sheet1!S71_ItemType,$AD:$AD)","v":0},{"$f":"-SUMIFS(Sheet1!S71_PreviousBudget,Sheet1!S71_SubMunicipalVoteNo,$AC:$AC,Sheet1!S71_ItemType,$AD:$AD)","v":0},null,null,null,null,{"$f":"-SUMIFS(Sheet1!S71_CurrentAdjustments,Sheet1!S71_SubMunicipalVoteNo,$AC:$AC,Sheet1!S71_ItemType,$AD:$AD)","v":0},0,0,{"$f":"-SUMIFS(Sheet1!S71_OY1AdjustedBudget,Sheet1!S71_SubMunicipalVoteNo,$AC:$AC,Sheet1!S71_ItemType,$AD:$AD)","v":0},{"$f":"-SUMIFS(Sheet1!S71_OY2AdjustedBudget,Sheet1!S71_SubMunicipalVoteNo,$AC:$AC,Sheet1!S71_ItemType,$AD:$AD)","v":0},null,null,null,null,null,null,null,null,null,null,null,null,null,null,null,109,"IR","IZ"]
[{"$f":"'Org structure'!D111","v":"10.10 - [Name of sub-vote]"},null,{"$f":"-SUMIFS(Sheet1!S71_OriginalBudget,Sheet1!S71_SubMunicipalVoteNo,$AC:$AC,Sheet1!S71_ItemType,$AD:$AD)","v":0},{"$f":"-SUMIFS(Sheet1!S71_PreviousBudget,Sheet1!S71_SubMunicipalVoteNo,$AC:$AC,Sheet1!S71_ItemType,$AD:$AD)","v":0},null,null,null,null,{"$f":"-SUMIFS(Sheet1!S71_CurrentAdjustments,Sheet1!S71_SubMunicipalVoteNo,$AC:$AC,Sheet1!S71_ItemType,$AD:$AD)","v":0},0,0,{"$f":"-SUMIFS(Sheet1!S71_OY1AdjustedBudget,Sheet1!S71_SubMunicipalVoteNo,$AC:$AC,Sheet1!S71_ItemType,$AD:$AD)","v":0},{"$f":"-SUMIFS(Sheet1!S71_OY2AdjustedBudget,Sheet1!S71_SubMunicipalVoteNo,$AC:$AC,Sheet1!S71_ItemType,$AD:$AD)","v":0},null,null,null,null,null,null,null,null,null,null,null,null,null,null,null,1010,"IR","IZ"]
[{"$f":"'Org structure'!A12","v":"Vote 11 - Waste Management"},null,{"$f":"SUM(C118:C127)","v":14958329},{"$f":"SUM(D118:D127)","v":15427929},0,0,0,0,0,0,15427929,{"$f":"SUM(L118:L127)","v":15647254},{"$f":"SUM(M118:M127)","v":16368777}]
[{"$f":"'Org structure'!D113","v":"11.1 - Solid Waste Removal"},null,{"$f":"-SUMIFS(Sheet1!S71_OriginalBudget,Sheet1!S71_SubMunicipalVoteNo,$AC:$AC,Sheet1!S71_ItemType,$AD:$AD)","v":14958329},{"$f":"-SUMIFS(Sheet1!S71_PreviousBudget,Sheet1!S71_SubMunicipalVoteNo,$AC:$AC,Sheet1!S71_ItemType,$AD:$AD)","v":15427929},null,null,null,null,{"$f":"-SUMIFS(Sheet1!S71_CurrentAdjustments,Sheet1!S71_SubMunicipalVoteNo,$AC:$AC,Sheet1!S71_ItemType,$AD:$AD)","v":0},0,15427929,{"$f":"-SUMIFS(Sheet1!S71_OY1AdjustedBudget,Sheet1!S71_SubMunicipalVoteNo,$AC:$AC,Sheet1!S71_ItemType,$AD:$AD)","v":15647254},{"$f":"-SUMIFS(Sheet1!S71_OY2AdjustedBudget,Sheet1!S71_SubMunicipalVoteNo,$AC:$AC,Sheet1!S71_ItemType,$AD:$AD)","v":16368777},null,null,null,null,null,null,null,null,null,null,null,null,null,null,null,111,"IR","IZ"]
[{"$f":"'Org structure'!D114","v":"11.2 - Solid Waste Disposal (Landfill Sites)"},null,{"$f":"-SUMIFS(Sheet1!S71_OriginalBudget,Sheet1!S71_SubMunicipalVoteNo,$AC:$AC,Sheet1!S71_ItemType,$AD:$AD)","v":0},{"$f":"-SUMIFS(Sheet1!S71_PreviousBudget,Sheet1!S71_SubMunicipalVoteNo,$AC:$AC,Sheet1!S71_ItemType,$AD:$AD)","v":0},null,null,null,null,{"$f":"-SUMIFS(Sheet1!S71_CurrentAdjustments,Sheet1!S71_SubMunicipalVoteNo,$AC:$AC,Sheet1!S71_ItemType,$AD:$AD)","v":0},0,0,{"$f":"-SUMIFS(Sheet1!S71_OY1AdjustedBudget,Sheet1!S71_SubMunicipalVoteNo,$AC:$AC,Sheet1!S71_ItemType,$AD:$AD)","v":0},{"$f":"-SUMIFS(Sheet1!S71_OY2AdjustedBudget,Sheet1!S71_SubMunicipalVoteNo,$AC:$AC,Sheet1!S71_ItemType,$AD:$AD)","v":0},null,null,null,null,null,null,null,null,null,null,null,null,null,null,null,112,"IR","IZ"]
[{"$f":"'Org structure'!D115","v":"11.3 - Street Cleaning"},null,{"$f":"-SUMIFS(Sheet1!S71_OriginalBudget,Sheet1!S71_SubMunicipalVoteNo,$AC:$AC,Sheet1!S71_ItemType,$AD:$AD)","v":0},{"$f":"-SUMIFS(Sheet1!S71_PreviousBudget,Sheet1!S71_SubMunicipalVoteNo,$AC:$AC,Sheet1!S71_ItemType,$AD:$AD)","v":0},null,null,null,null,{"$f":"-SUMIFS(Sheet1!S71_CurrentAdjustments,Sheet1!S71_SubMunicipalVoteNo,$AC:$AC,Sheet1!S71_ItemType,$AD:$AD)","v":0},0,0,{"$f":"-SUMIFS(Sheet1!S71_OY1AdjustedBudget,Sheet1!S71_SubMunicipalVoteNo,$AC:$AC,Sheet1!S71_ItemType,$AD:$AD)","v":0},{"$f":"-SUMIFS(Sheet1!S71_OY2AdjustedBudget,Sheet1!S71_SubMunicipalVoteNo,$AC:$AC,Sheet1!S71_ItemType,$AD:$AD)","v":0},null,null,null,null,null,null,null,null,null,null,null,null,null,null,null,113,"IR","IZ"]
[{"$f":"'Org structure'!D116","v":"11.4 - [Name of sub-vote]"},null,{"$f":"-SUMIFS(Sheet1!S71_OriginalBudget,Sheet1!S71_SubMunicipalVoteNo,$AC:$AC,Sheet1!S71_ItemType,$AD:$AD)","v":0},{"$f":"-SUMIFS(Sheet1!S71_PreviousBudget,Sheet1!S71_SubMunicipalVoteNo,$AC:$AC,Sheet1!S71_ItemType,$AD:$AD)","v":0},null,null,null,null,{"$f":"-SUMIFS(Sheet1!S71_CurrentAdjustments,Sheet1!S71_SubMunicipalVoteNo,$AC:$AC,Sheet1!S71_ItemType,$AD:$AD)","v":0},0,0,{"$f":"-SUMIFS(Sheet1!S71_OY1AdjustedBudget,Sheet1!S71_SubMunicipalVoteNo,$AC:$AC,Sheet1!S71_ItemType,$AD:$AD)","v":0},{"$f":"-SUMIFS(Sheet1!S71_OY2AdjustedBudget,Sheet1!S71_SubMunicipalVoteNo,$AC:$AC,Sheet1!S71_ItemType,$AD:$AD)","v":0},null,null,null,null,null,null,null,null,null,null,null,null,null,null,null,114,"IR","IZ"]
[{"$f":"'Org structure'!D117","v":"11.5 - [Name of sub-vote]"},null,{"$f":"-SUMIFS(Sheet1!S71_OriginalBudget,Sheet1!S71_SubMunicipalVoteNo,$AC:$AC,Sheet1!S71_ItemType,$AD:$AD)","v":0},{"$f":"-SUMIFS(Sheet1!S71_PreviousBudget,Sheet1!S71_SubMunicipalVoteNo,$AC:$AC,Sheet1!S71_ItemType,$AD:$AD)","v":0},null,null,null,null,{"$f":"-SUMIFS(Sheet1!S71_CurrentAdjustments,Sheet1!S71_SubMunicipalVoteNo,$AC:$AC,Sheet1!S71_ItemType,$AD:$AD)","v":0},0,0,{"$f":"-SUMIFS(Sheet1!S71_OY1AdjustedBudget,Sheet1!S71_SubMunicipalVoteNo,$AC:$AC,Sheet1!S71_ItemType,$AD:$AD)","v":0},{"$f":"-SUMIFS(Sheet1!S71_OY2AdjustedBudget,Sheet1!S71_SubMunicipalVoteNo,$AC:$AC,Sheet1!S71_ItemType,$AD:$AD)","v":0},null,null,null,null,null,null,null,null,null,null,null,null,null,null,null,115,"IR","IZ"]
[{"$f":"'Org structure'!D118","v":"11.6 - [Name of sub-vote]"},null,{"$f":"-SUMIFS(Sheet1!S71_OriginalBudget,Sheet1!S71_SubMunicipalVoteNo,$AC:$AC,Sheet1!S71_ItemType,$AD:$AD)","v":0},{"$f":"-SUMIFS(Sheet1!S71_PreviousBudget,Sheet1!S71_SubMunicipalVoteNo,$AC:$AC,Sheet1!S71_ItemType,$AD:$AD)","v":0},null,null,null,null,{"$f":"-SUMIFS(Sheet1!S71_CurrentAdjustments,Sheet1!S71_SubMunicipalVoteNo,$AC:$AC,Sheet1!S71_ItemType,$AD:$AD)","v":0},0,0,{"$f":"-SUMIFS(Sheet1!S71_OY1AdjustedBudget,Sheet1!S71_SubMunicipalVoteNo,$AC:$AC,Sheet1!S71_ItemType,$AD:$AD)","v":0},{"$f":"-SUMIFS(Sheet1!S71_OY2AdjustedBudget,Sheet1!S71_SubMunicipalVoteNo,$AC:$AC,Sheet1!S71_ItemType,$AD:$AD)","v":0},null,null,null,null,null,null,null,null,null,null,null,null,null,null,null,116,"IR","IZ"]
[{"$f":"'Org structure'!D119","v":"11.7 - [Name of sub-vote]"},null,{"$f":"-SUMIFS(Sheet1!S71_OriginalBudget,Sheet1!S71_SubMunicipalVoteNo,$AC:$AC,Sheet1!S71_ItemType,$AD:$AD)","v":0},{"$f":"-SUMIFS(Sheet1!S71_PreviousBudget,Sheet1!S71_SubMunicipalVoteNo,$AC:$AC,Sheet1!S71_ItemType,$AD:$AD)","v":0},null,null,null,null,{"$f":"-SUMIFS(Sheet1!S71_CurrentAdjustments,Sheet1!S71_SubMunicipalVoteNo,$AC:$AC,Sheet1!S71_ItemType,$AD:$AD)","v":0},0,0,{"$f":"-SUMIFS(Sheet1!S71_OY1AdjustedBudget,Sheet1!S71_SubMunicipalVoteNo,$AC:$AC,Sheet1!S71_ItemType,$AD:$AD)","v":0},{"$f":"-SUMIFS(Sheet1!S71_OY2AdjustedBudget,Sheet1!S71_SubMunicipalVoteNo,$AC:$AC,Sheet1!S71_ItemType,$AD:$AD)","v":0},null,null,null,null,null,null,null,null,null,null,null,null,null,null,null,117,"IR","IZ"]
[{"$f":"'Org structure'!D120","v":"11.8 - [Name of sub-vote]"},null,{"$f":"-SUMIFS(Sheet1!S71_OriginalBudget,Sheet1!S71_SubMunicipalVoteNo,$AC:$AC,Sheet1!S71_ItemType,$AD:$AD)","v":0},{"$f":"-SUMIFS(Sheet1!S71_PreviousBudget,Sheet1!S71_SubMunicipalVoteNo,$AC:$AC,Sheet1!S71_ItemType,$AD:$AD)","v":0},null,null,null,null,{"$f":"-SUMIFS(Sheet1!S71_CurrentAdjustments,Sheet1!S71_SubMunicipalVoteNo,$AC:$AC,Sheet1!S71_ItemType,$AD:$AD)","v":0},0,0,{"$f":"-SUMIFS(Sheet1!S71_OY1AdjustedBudget,Sheet1!S71_SubMunicipalVoteNo,$AC:$AC,Sheet1!S71_ItemType,$AD:$AD)","v":0},{"$f":"-SUMIFS(Sheet1!S71_OY2AdjustedBudget,Sheet1!S71_SubMunicipalVoteNo,$AC:$AC,Sheet1!S71_ItemType,$AD:$AD)","v":0},null,null,null,null,null,null,null,null,null,null,null,null,null,null,null,118,"IR","IZ"]
[{"$f":"'Org structure'!D121","v":"11.9 - [Name of sub-vote]"},null,{"$f":"-SUMIFS(Sheet1!S71_OriginalBudget,Sheet1!S71_SubMunicipalVoteNo,$AC:$AC,Sheet1!S71_ItemType,$AD:$AD)","v":0},{"$f":"-SUMIFS(Sheet1!S71_PreviousBudget,Sheet1!S71_SubMunicipalVoteNo,$AC:$AC,Sheet1!S71_ItemType,$AD:$AD)","v":0},null,null,null,null,{"$f":"-SUMIFS(Sheet1!S71_CurrentAdjustments,Sheet1!S71_SubMunicipalVoteNo,$AC:$AC,Sheet1!S71_ItemType,$AD:$AD)","v":0},0,0,{"$f":"-SUMIFS(Sheet1!S71_OY1AdjustedBudget,Sheet1!S71_SubMunicipalVoteNo,$AC:$AC,Sheet1!S71_ItemType,$AD:$AD)","v":0},{"$f":"-SUMIFS(Sheet1!S71_OY2AdjustedBudget,Sheet1!S71_SubMunicipalVoteNo,$AC:$AC,Sheet1!S71_ItemType,$AD:$AD)","v":0},null,null,null,null,null,null,null,null,null,null,null,null,null,null,null,119,"IR","IZ"]
[{"$f":"'Org structure'!D122","v":"11.10 - [Name of sub-vote]"},null,{"$f":"-SUMIFS(Sheet1!S71_OriginalBudget,Sheet1!S71_SubMunicipalVoteNo,$AC:$AC,Sheet1!S71_ItemType,$AD:$AD)","v":0},{"$f":"-SUMIFS(Sheet1!S71_PreviousBudget,Sheet1!S71_SubMunicipalVoteNo,$AC:$AC,Sheet1!S71_ItemType,$AD:$AD)","v":0},null,null,null,null,{"$f":"-SUMIFS(Sheet1!S71_CurrentAdjustments,Sheet1!S71_SubMunicipalVoteNo,$AC:$AC,Sheet1!S71_ItemType,$AD:$AD)","v":0},0,0,{"$f":"-SUMIFS(Sheet1!S71_OY1AdjustedBudget,Sheet1!S71_SubMunicipalVoteNo,$AC:$AC,Sheet1!S71_ItemType,$AD:$AD)","v":0},{"$f":"-SUMIFS(Sheet1!S71_OY2AdjustedBudget,Sheet1!S71_SubMunicipalVoteNo,$AC:$AC,Sheet1!S71_ItemType,$AD:$AD)","v":0},null,null,null,null,null,null,null,null,null,null,null,null,null,null,null,1110,"IR","IZ"]
[{"$f":"'Org structure'!A13","v":"Vote 12 - Environmental Protection"},null,{"$f":"SUM(C129:C138)","v":0},{"$f":"SUM(D129:D138)","v":0},0,0,0,0,0,0,0,{"$f":"SUM(L129:L138)","v":0},{"$f":"SUM(M129:M138)","v":0}]
[{"$f":"'Org structure'!D124","v":"12.1 - Biodiversity and Landscape"},null,{"$f":"-SUMIFS(Sheet1!S71_OriginalBudget,Sheet1!S71_SubMunicipalVoteNo,$AC:$AC,Sheet1!S71_ItemType,$AD:$AD)","v":0},{"$f":"-SUMIFS(Sheet1!S71_PreviousBudget,Sheet1!S71_SubMunicipalVoteNo,$AC:$AC,Sheet1!S71_ItemType,$AD:$AD)","v":0},null,null,null,null,{"$f":"-SUMIFS(Sheet1!S71_CurrentAdjustments,Sheet1!S71_SubMunicipalVoteNo,$AC:$AC,Sheet1!S71_ItemType,$AD:$AD)","v":0},0,0,{"$f":"-SUMIFS(Sheet1!S71_OY1AdjustedBudget,Sheet1!S71_SubMunicipalVoteNo,$AC:$AC,Sheet1!S71_ItemType,$AD:$AD)","v":0},{"$f":"-SUMIFS(Sheet1!S71_OY2AdjustedBudget,Sheet1!S71_SubMunicipalVoteNo,$AC:$AC,Sheet1!S71_ItemType,$AD:$AD)","v":0},null,null,null,null,null,null,null,null,null,null,null,null,null,null,null,121,"IR","IZ"]
[{"$f":"'Org structure'!D125","v":"12.2 - [Name of sub-vote]"},null,{"$f":"-SUMIFS(Sheet1!S71_OriginalBudget,Sheet1!S71_SubMunicipalVoteNo,$AC:$AC,Sheet1!S71_ItemType,$AD:$AD)","v":0},{"$f":"-SUMIFS(Sheet1!S71_PreviousBudget,Sheet1!S71_SubMunicipalVoteNo,$AC:$AC,Sheet1!S71_ItemType,$AD:$AD)","v":0},null,null,null,null,{"$f":"-SUMIFS(Sheet1!S71_CurrentAdjustments,Sheet1!S71_SubMunicipalVoteNo,$AC:$AC,Sheet1!S71_ItemType,$AD:$AD)","v":0},0,0,{"$f":"-SUMIFS(Sheet1!S71_OY1AdjustedBudget,Sheet1!S71_SubMunicipalVoteNo,$AC:$AC,Sheet1!S71_ItemType,$AD:$AD)","v":0},{"$f":"-SUMIFS(Sheet1!S71_OY2AdjustedBudget,Sheet1!S71_SubMunicipalVoteNo,$AC:$AC,Sheet1!S71_ItemType,$AD:$AD)","v":0},null,null,null,null,null,null,null,null,null,null,null,null,null,null,null,122,"IR","IZ"]
[{"$f":"'Org structure'!D126","v":"12.3 - [Name of sub-vote]"},null,{"$f":"-SUMIFS(Sheet1!S71_OriginalBudget,Sheet1!S71_SubMunicipalVoteNo,$AC:$AC,Sheet1!S71_ItemType,$AD:$AD)","v":0},{"$f":"-SUMIFS(Sheet1!S71_PreviousBudget,Sheet1!S71_SubMunicipalVoteNo,$AC:$AC,Sheet1!S71_ItemType,$AD:$AD)","v":0},null,null,null,null,{"$f":"-SUMIFS(Sheet1!S71_CurrentAdjustments,Sheet1!S71_SubMunicipalVoteNo,$AC:$AC,Sheet1!S71_ItemType,$AD:$AD)","v":0},0,0,{"$f":"-SUMIFS(Sheet1!S71_OY1AdjustedBudget,Sheet1!S71_SubMunicipalVoteNo,$AC:$AC,Sheet1!S71_ItemType,$AD:$AD)","v":0},{"$f":"-SUMIFS(Sheet1!S71_OY2AdjustedBudget,Sheet1!S71_SubMunicipalVoteNo,$AC:$AC,Sheet1!S71_ItemType,$AD:$AD)","v":0},null,null,null,null,null,null,null,null,null,null,null,null,null,null,null,123,"IR","IZ"]
[{"$f":"'Org structure'!D127","v":"12.4 - [Name of sub-vote]"},null,{"$f":"-SUMIFS(Sheet1!S71_OriginalBudget,Sheet1!S71_SubMunicipalVoteNo,$AC:$AC,Sheet1!S71_ItemType,$AD:$AD)","v":0},{"$f":"-SUMIFS(Sheet1!S71_PreviousBudget,Sheet1!S71_SubMunicipalVoteNo,$AC:$AC,Sheet1!S71_ItemType,$AD:$AD)","v":0},null,null,null,null,{"$f":"-SUMIFS(Sheet1!S71_CurrentAdjustments,Sheet1!S71_SubMunicipalVoteNo,$AC:$AC,Sheet1!S71_ItemType,$AD:$AD)","v":0},0,0,{"$f":"-SUMIFS(Sheet1!S71_OY1AdjustedBudget,Sheet1!S71_SubMunicipalVoteNo,$AC:$AC,Sheet1!S71_ItemType,$AD:$AD)","v":0},{"$f":"-SUMIFS(Sheet1!S71_OY2AdjustedBudget,Sheet1!S71_SubMunicipalVoteNo,$AC:$AC,Sheet1!S71_ItemType,$AD:$AD)","v":0},null,null,null,null,null,null,null,null,null,null,null,null,null,null,null,124,"IR","IZ"]
[{"$f":"'Org structure'!D128","v":"12.5 - [Name of sub-vote]"},null,{"$f":"-SUMIFS(Sheet1!S71_OriginalBudget,Sheet1!S71_SubMunicipalVoteNo,$AC:$AC,Sheet1!S71_ItemType,$AD:$AD)","v":0},{"$f":"-SUMIFS(Sheet1!S71_PreviousBudget,Sheet1!S71_SubMunicipalVoteNo,$AC:$AC,Sheet1!S71_ItemType,$AD:$AD)","v":0},null,null,null,null,{"$f":"-SUMIFS(Sheet1!S71_CurrentAdjustments,Sheet1!S71_SubMunicipalVoteNo,$AC:$AC,Sheet1!S71_ItemType,$AD:$AD)","v":0},0,0,{"$f":"-SUMIFS(Sheet1!S71_OY1AdjustedBudget,Sheet1!S71_SubMunicipalVoteNo,$AC:$AC,Sheet1!S71_ItemType,$AD:$AD)","v":0},{"$f":"-SUMIFS(Sheet1!S71_OY2AdjustedBudget,Sheet1!S71_SubMunicipalVoteNo,$AC:$AC,Sheet1!S71_ItemType,$AD:$AD)","v":0},null,null,null,null,null,null,null,null,null,null,null,null,null,null,null,125,"IR","IZ"]
[{"$f":"'Org structure'!D129","v":"12.6 - [Name of sub-vote]"},null,{"$f":"-SUMIFS(Sheet1!S71_OriginalBudget,Sheet1!S71_SubMunicipalVoteNo,$AC:$AC,Sheet1!S71_ItemType,$AD:$AD)","v":0},{"$f":"-SUMIFS(Sheet1!S71_PreviousBudget,Sheet1!S71_SubMunicipalVoteNo,$AC:$AC,Sheet1!S71_ItemType,$AD:$AD)","v":0},null,null,null,null,{"$f":"-SUMIFS(Sheet1!S71_CurrentAdjustments,Sheet1!S71_SubMunicipalVoteNo,$AC:$AC,Sheet1!S71_ItemType,$AD:$AD)","v":0},0,0,{"$f":"-SUMIFS(Sheet1!S71_OY1AdjustedBudget,Sheet1!S71_SubMunicipalVoteNo,$AC:$AC,Sheet1!S71_ItemType,$AD:$AD)","v":0},{"$f":"-SUMIFS(Sheet1!S71_OY2AdjustedBudget,Sheet1!S71_SubMunicipalVoteNo,$AC:$AC,Sheet1!S71_ItemType,$AD:$AD)","v":0},null,null,null,null,null,null,null,null,null,null,null,null,null,null,null,126,"IR","IZ"]
[{"$f":"'Org structure'!D130","v":"12.7 - [Name of sub-vote]"},null,{"$f":"-SUMIFS(Sheet1!S71_OriginalBudget,Sheet1!S71_SubMunicipalVoteNo,$AC:$AC,Sheet1!S71_ItemType,$AD:$AD)","v":0},{"$f":"-SUMIFS(Sheet1!S71_PreviousBudget,Sheet1!S71_SubMunicipalVoteNo,$AC:$AC,Sheet1!S71_ItemType,$AD:$AD)","v":0},null,null,null,null,{"$f":"-SUMIFS(Sheet1!S71_CurrentAdjustments,Sheet1!S71_SubMunicipalVoteNo,$AC:$AC,Sheet1!S71_ItemType,$AD:$AD)","v":0},0,0,{"$f":"-SUMIFS(Sheet1!S71_OY1AdjustedBudget,Sheet1!S71_SubMunicipalVoteNo,$AC:$AC,Sheet1!S71_ItemType,$AD:$AD)","v":0},{"$f":"-SUMIFS(Sheet1!S71_OY2AdjustedBudget,Sheet1!S71_SubMunicipalVoteNo,$AC:$AC,Sheet1!S71_ItemType,$AD:$AD)","v":0},null,null,null,null,null,null,null,null,null,null,null,null,null,null,null,127,"IR","IZ"]
[{"$f":"'Org structure'!D131","v":"12.8 - [Name of sub-vote]"},null,{"$f":"-SUMIFS(Sheet1!S71_OriginalBudget,Sheet1!S71_SubMunicipalVoteNo,$AC:$AC,Sheet1!S71_ItemType,$AD:$AD)","v":0},{"$f":"-SUMIFS(Sheet1!S71_PreviousBudget,Sheet1!S71_SubMunicipalVoteNo,$AC:$AC,Sheet1!S71_ItemType,$AD:$AD)","v":0},null,null,null,null,{"$f":"-SUMIFS(Sheet1!S71_CurrentAdjustments,Sheet1!S71_SubMunicipalVoteNo,$AC:$AC,Sheet1!S71_ItemType,$AD:$AD)","v":0},{"$f":"SUM(E136:I136)","v":0},{"$f":"IF(D136=0,C136+J136,D136+J136)","v":0},{"$f":"-SUMIFS(Sheet1!S71_OY1AdjustedBudget,Sheet1!S71_SubMunicipalVoteNo,$AC:$AC,Sheet1!S71_ItemType,$AD:$AD)","v":0},{"$f":"-SUMIFS(Sheet1!S71_OY2AdjustedBudget,Sheet1!S71_SubMunicipalVoteNo,$AC:$AC,Sheet1!S71_ItemType,$AD:$AD)","v":0},null,null,null,null,null,null,null,null,null,null,null,null,null,null,null,128,"IR","IZ"]
[{"$f":"'Org structure'!D132","v":"12.9 - [Name of sub-vote]"},null,{"$f":"-SUMIFS(Sheet1!S71_OriginalBudget,Sheet1!S71_SubMunicipalVoteNo,$AC:$AC,Sheet1!S71_ItemType,$AD:$AD)","v":0},{"$f":"-SUMIFS(Sheet1!S71_PreviousBudget,Sheet1!S71_SubMunicipalVoteNo,$AC:$AC,Sheet1!S71_ItemType,$AD:$AD)","v":0},null,null,null,null,{"$f":"-SUMIFS(Sheet1!S71_CurrentAdjustments,Sheet1!S71_SubMunicipalVoteNo,$AC:$AC,Sheet1!S71_ItemType,$AD:$AD)","v":0},0,0,{"$f":"-SUMIFS(Sheet1!S71_OY1AdjustedBudget,Sheet1!S71_SubMunicipalVoteNo,$AC:$AC,Sheet1!S71_ItemType,$AD:$AD)","v":0},{"$f":"-SUMIFS(Sheet1!S71_OY2AdjustedBudget,Sheet1!S71_SubMunicipalVoteNo,$AC:$AC,Sheet1!S71_ItemType,$AD:$AD)","v":0},null,null,null,null,null,null,null,null,null,null,null,null,null,null,null,129,"IR","IZ"]
[{"$f":"'Org structure'!D133","v":"12.10 - [Name of sub-vote]"},null,{"$f":"-SUMIFS(Sheet1!S71_OriginalBudget,Sheet1!S71_SubMunicipalVoteNo,$AC:$AC,Sheet1!S71_ItemType,$AD:$AD)","v":0},{"$f":"-SUMIFS(Sheet1!S71_PreviousBudget,Sheet1!S71_SubMunicipalVoteNo,$AC:$AC,Sheet1!S71_ItemType,$AD:$AD)","v":0},null,null,null,null,{"$f":"-SUMIFS(Sheet1!S71_CurrentAdjustments,Sheet1!S71_SubMunicipalVoteNo,$AC:$AC,Sheet1!S71_ItemType,$AD:$AD)","v":0},0,0,{"$f":"-SUMIFS(Sheet1!S71_OY1AdjustedBudget,Sheet1!S71_SubMunicipalVoteNo,$AC:$AC,Sheet1!S71_ItemType,$AD:$AD)","v":0},{"$f":"-SUMIFS(Sheet1!S71_OY2AdjustedBudget,Sheet1!S71_SubMunicipalVoteNo,$AC:$AC,Sheet1!S71_ItemType,$AD:$AD)","v":0},null,null,null,null,null,null,null,null,null,null,null,null,null,null,null,1210,"IR","IZ"]
[{"$f":"'Org structure'!A14","v":"Vote 13 - [NAME OF VOTE 13]"},null,{"$f":"SUM(C140:C149)","v":0},{"$f":"SUM(D140:D149)","v":0},0,0,0,0,0,0,0,{"$f":"SUM(L140:L149)","v":0},{"$f":"SUM(M140:M149)","v":0}]
[{"$f":"'Org structure'!D135","v":"13.1 - [Name of sub-vote]"},null,{"$f":"-SUMIFS(Sheet1!S71_OriginalBudget,Sheet1!S71_SubMunicipalVoteNo,$AC:$AC,Sheet1!S71_ItemType,$AD:$AD)","v":0},{"$f":"-SUMIFS(Sheet1!S71_PreviousBudget,Sheet1!S71_SubMunicipalVoteNo,$AC:$AC,Sheet1!S71_ItemType,$AD:$AD)","v":0},null,null,null,null,{"$f":"-SUMIFS(Sheet1!S71_CurrentAdjustments,Sheet1!S71_SubMunicipalVoteNo,$AC:$AC,Sheet1!S71_ItemType,$AD:$AD)","v":0},0,0,{"$f":"-SUMIFS(Sheet1!S71_OY1AdjustedBudget,Sheet1!S71_SubMunicipalVoteNo,$AC:$AC,Sheet1!S71_ItemType,$AD:$AD)","v":0},{"$f":"-SUMIFS(Sheet1!S71_OY2AdjustedBudget,Sheet1!S71_SubMunicipalVoteNo,$AC:$AC,Sheet1!S71_ItemType,$AD:$AD)","v":0},null,null,null,null,null,null,null,null,null,null,null,null,null,null,null,131,"IR","IZ"]
[{"$f":"'Org structure'!D136","v":"13.2 - [Name of sub-vote]"},null,{"$f":"-SUMIFS(Sheet1!S71_OriginalBudget,Sheet1!S71_SubMunicipalVoteNo,$AC:$AC,Sheet1!S71_ItemType,$AD:$AD)","v":0},{"$f":"-SUMIFS(Sheet1!S71_PreviousBudget,Sheet1!S71_SubMunicipalVoteNo,$AC:$AC,Sheet1!S71_ItemType,$AD:$AD)","v":0},null,null,null,null,{"$f":"-SUMIFS(Sheet1!S71_CurrentAdjustments,Sheet1!S71_SubMunicipalVoteNo,$AC:$AC,Sheet1!S71_ItemType,$AD:$AD)","v":0},0,0,{"$f":"-SUMIFS(Sheet1!S71_OY1AdjustedBudget,Sheet1!S71_SubMunicipalVoteNo,$AC:$AC,Sheet1!S71_ItemType,$AD:$AD)","v":0},{"$f":"-SUMIFS(Sheet1!S71_OY2AdjustedBudget,Sheet1!S71_SubMunicipalVoteNo,$AC:$AC,Sheet1!S71_ItemType,$AD:$AD)","v":0},null,null,null,null,null,null,null,null,null,null,null,null,null,null,null,132,"IR","IZ"]
[{"$f":"'Org structure'!D137","v":"13.3 - [Name of sub-vote]"},null,{"$f":"-SUMIFS(Sheet1!S71_OriginalBudget,Sheet1!S71_SubMunicipalVoteNo,$AC:$AC,Sheet1!S71_ItemType,$AD:$AD)","v":0},{"$f":"-SUMIFS(Sheet1!S71_PreviousBudget,Sheet1!S71_SubMunicipalVoteNo,$AC:$AC,Sheet1!S71_ItemType,$AD:$AD)","v":0},null,null,null,null,{"$f":"-SUMIFS(Sheet1!S71_CurrentAdjustments,Sheet1!S71_SubMunicipalVoteNo,$AC:$AC,Sheet1!S71_ItemType,$AD:$AD)","v":0},0,0,{"$f":"-SUMIFS(Sheet1!S71_OY1AdjustedBudget,Sheet1!S71_SubMunicipalVoteNo,$AC:$AC,Sheet1!S71_ItemType,$AD:$AD)","v":0},{"$f":"-SUMIFS(Sheet1!S71_OY2AdjustedBudget,Sheet1!S71_SubMunicipalVoteNo,$AC:$AC,Sheet1!S71_ItemType,$AD:$AD)","v":0},null,null,null,null,null,null,null,null,null,null,null,null,null,null,null,133,"IR","IZ"]
[{"$f":"'Org structure'!D138","v":"13.4 - [Name of sub-vote]"},null,{"$f":"-SUMIFS(Sheet1!S71_OriginalBudget,Sheet1!S71_SubMunicipalVoteNo,$AC:$AC,Sheet1!S71_ItemType,$AD:$AD)","v":0},{"$f":"-SUMIFS(Sheet1!S71_PreviousBudget,Sheet1!S71_SubMunicipalVoteNo,$AC:$AC,Sheet1!S71_ItemType,$AD:$AD)","v":0},null,null,null,null,{"$f":"-SUMIFS(Sheet1!S71_CurrentAdjustments,Sheet1!S71_SubMunicipalVoteNo,$AC:$AC,Sheet1!S71_ItemType,$AD:$AD)","v":0},0,0,{"$f":"-SUMIFS(Sheet1!S71_OY1AdjustedBudget,Sheet1!S71_SubMunicipalVoteNo,$AC:$AC,Sheet1!S71_ItemType,$AD:$AD)","v":0},{"$f":"-SUMIFS(Sheet1!S71_OY2AdjustedBudget,Sheet1!S71_SubMunicipalVoteNo,$AC:$AC,Sheet1!S71_ItemType,$AD:$AD)","v":0},null,null,null,null,null,null,null,null,null,null,null,null,null,null,null,134,"IR","IZ"]
[{"$f":"'Org structure'!D139","v":"13.5 - [Name of sub-vote]"},null,{"$f":"-SUMIFS(Sheet1!S71_OriginalBudget,Sheet1!S71_SubMunicipalVoteNo,$AC:$AC,Sheet1!S71_ItemType,$AD:$AD)","v":0},{"$f":"-SUMIFS(Sheet1!S71_PreviousBudget,Sheet1!S71_SubMunicipalVoteNo,$AC:$AC,Sheet1!S71_ItemType,$AD:$AD)","v":0},null,null,null,null,{"$f":"-SUMIFS(Sheet1!S71_CurrentAdjustments,Sheet1!S71_SubMunicipalVoteNo,$AC:$AC,Sheet1!S71_ItemType,$AD:$AD)","v":0},0,0,{"$f":"-SUMIFS(Sheet1!S71_OY1AdjustedBudget,Sheet1!S71_SubMunicipalVoteNo,$AC:$AC,Sheet1!S71_ItemType,$AD:$AD)","v":0},{"$f":"-SUMIFS(Sheet1!S71_OY2AdjustedBudget,Sheet1!S71_SubMunicipalVoteNo,$AC:$AC,Sheet1!S71_ItemType,$AD:$AD)","v":0},null,null,null,null,null,null,null,null,null,null,null,null,null,null,null,135,"IR","IZ"]
[{"$f":"'Org structure'!D140","v":"13.6 - [Name of sub-vote]"},null,{"$f":"-SUMIFS(Sheet1!S71_OriginalBudget,Sheet1!S71_SubMunicipalVoteNo,$AC:$AC,Sheet1!S71_ItemType,$AD:$AD)","v":0},{"$f":"-SUMIFS(Sheet1!S71_PreviousBudget,Sheet1!S71_SubMunicipalVoteNo,$AC:$AC,Sheet1!S71_ItemType,$AD:$AD)","v":0},null,null,null,null,{"$f":"-SUMIFS(Sheet1!S71_CurrentAdjustments,Sheet1!S71_SubMunicipalVoteNo,$AC:$AC,Sheet1!S71_ItemType,$AD:$AD)","v":0},0,0,{"$f":"-SUMIFS(Sheet1!S71_OY1AdjustedBudget,Sheet1!S71_SubMunicipalVoteNo,$AC:$AC,Sheet1!S71_ItemType,$AD:$AD)","v":0},{"$f":"-SUMIFS(Sheet1!S71_OY2AdjustedBudget,Sheet1!S71_SubMunicipalVoteNo,$AC:$AC,Sheet1!S71_ItemType,$AD:$AD)","v":0},null,null,null,null,null,null,null,null,null,null,null,null,null,null,null,136,"IR","IZ"]
[{"$f":"'Org structure'!D141","v":"13.7 - [Name of sub-vote]"},null,{"$f":"-SUMIFS(Sheet1!S71_OriginalBudget,Sheet1!S71_SubMunicipalVoteNo,$AC:$AC,Sheet1!S71_ItemType,$AD:$AD)","v":0},{"$f":"-SUMIFS(Sheet1!S71_PreviousBudget,Sheet1!S71_SubMunicipalVoteNo,$AC:$AC,Sheet1!S71_ItemType,$AD:$AD)","v":0},null,null,null,null,{"$f":"-SUMIFS(Sheet1!S71_CurrentAdjustments,Sheet1!S71_SubMunicipalVoteNo,$AC:$AC,Sheet1!S71_ItemType,$AD:$AD)","v":0},0,0,{"$f":"-SUMIFS(Sheet1!S71_OY1AdjustedBudget,Sheet1!S71_SubMunicipalVoteNo,$AC:$AC,Sheet1!S71_ItemType,$AD:$AD)","v":0},{"$f":"-SUMIFS(Sheet1!S71_OY2AdjustedBudget,Sheet1!S71_SubMunicipalVoteNo,$AC:$AC,Sheet1!S71_ItemType,$AD:$AD)","v":0},null,null,null,null,null,null,null,null,null,null,null,null,null,null,null,137,"IR","IZ"]
[{"$f":"'Org structure'!D142","v":"13.8 - [Name of sub-vote]"},null,{"$f":"-SUMIFS(Sheet1!S71_OriginalBudget,Sheet1!S71_SubMunicipalVoteNo,$AC:$AC,Sheet1!S71_ItemType,$AD:$AD)","v":0},{"$f":"-SUMIFS(Sheet1!S71_PreviousBudget,Sheet1!S71_SubMunicipalVoteNo,$AC:$AC,Sheet1!S71_ItemType,$AD:$AD)","v":0},null,null,null,null,{"$f":"-SUMIFS(Sheet1!S71_CurrentAdjustments,Sheet1!S71_SubMunicipalVoteNo,$AC:$AC,Sheet1!S71_ItemType,$AD:$AD)","v":0},0,0,{"$f":"-SUMIFS(Sheet1!S71_OY1AdjustedBudget,Sheet1!S71_SubMunicipalVoteNo,$AC:$AC,Sheet1!S71_ItemType,$AD:$AD)","v":0},{"$f":"-SUMIFS(Sheet1!S71_OY2AdjustedBudget,Sheet1!S71_SubMunicipalVoteNo,$AC:$AC,Sheet1!S71_ItemType,$AD:$AD)","v":0},null,null,null,null,null,null,null,null,null,null,null,null,null,null,null,138,"IR","IZ"]
[{"$f":"'Org structure'!D143","v":"13.9 - [Name of sub-vote]"},null,{"$f":"-SUMIFS(Sheet1!S71_OriginalBudget,Sheet1!S71_SubMunicipalVoteNo,$AC:$AC,Sheet1!S71_ItemType,$AD:$AD)","v":0},{"$f":"-SUMIFS(Sheet1!S71_PreviousBudget,Sheet1!S71_SubMunicipalVoteNo,$AC:$AC,Sheet1!S71_ItemType,$AD:$AD)","v":0},null,null,null,null,{"$f":"-SUMIFS(Sheet1!S71_CurrentAdjustments,Sheet1!S71_SubMunicipalVoteNo,$AC:$AC,Sheet1!S71_ItemType,$AD:$AD)","v":0},0,0,{"$f":"-SUMIFS(Sheet1!S71_OY1AdjustedBudget,Sheet1!S71_SubMunicipalVoteNo,$AC:$AC,Sheet1!S71_ItemType,$AD:$AD)","v":0},{"$f":"-SUMIFS(Sheet1!S71_OY2AdjustedBudget,Sheet1!S71_SubMunicipalVoteNo,$AC:$AC,Sheet1!S71_ItemType,$AD:$AD)","v":0},null,null,null,null,null,null,null,null,null,null,null,null,null,null,null,139,"IR","IZ"]
[{"$f":"'Org structure'!D144","v":"13.10 - [Name of sub-vote]"},null,{"$f":"-SUMIFS(Sheet1!S71_OriginalBudget,Sheet1!S71_SubMunicipalVoteNo,$AC:$AC,Sheet1!S71_ItemType,$AD:$AD)","v":0},{"$f":"-SUMIFS(Sheet1!S71_PreviousBudget,Sheet1!S71_SubMunicipalVoteNo,$AC:$AC,Sheet1!S71_ItemType,$AD:$AD)","v":0},null,null,null,null,{"$f":"-SUMIFS(Sheet1!S71_CurrentAdjustments,Sheet1!S71_SubMunicipalVoteNo,$AC:$AC,Sheet1!S71_ItemType,$AD:$AD)","v":0},0,0,{"$f":"-SUMIFS(Sheet1!S71_OY1AdjustedBudget,Sheet1!S71_SubMunicipalVoteNo,$AC:$AC,Sheet1!S71_ItemType,$AD:$AD)","v":0},{"$f":"-SUMIFS(Sheet1!S71_OY2AdjustedBudget,Sheet1!S71_SubMunicipalVoteNo,$AC:$AC,Sheet1!S71_ItemType,$AD:$AD)","v":0},null,null,null,null,null,null,null,null,null,null,null,null,null,null,null,1310,"IR","IZ"]
[{"$f":"'Org structure'!A15","v":"Vote 14 - [NAME OF VOTE 14]"},null,{"$f":"SUM(C151:C160)","v":0},{"$f":"SUM(D151:D160)","v":0},0,0,0,0,0,0,0,{"$f":"SUM(L151:L160)","v":0},{"$f":"SUM(M151:M160)","v":0}]
[{"$f":"'Org structure'!D146","v":"14.1 - [Name of sub-vote]"},null,{"$f":"-SUMIFS(Sheet1!S71_OriginalBudget,Sheet1!S71_SubMunicipalVoteNo,$AC:$AC,Sheet1!S71_ItemType,$AD:$AD)","v":0},{"$f":"-SUMIFS(Sheet1!S71_PreviousBudget,Sheet1!S71_SubMunicipalVoteNo,$AC:$AC,Sheet1!S71_ItemType,$AD:$AD)","v":0},null,null,null,null,{"$f":"-SUMIFS(Sheet1!S71_CurrentAdjustments,Sheet1!S71_SubMunicipalVoteNo,$AC:$AC,Sheet1!S71_ItemType,$AD:$AD)","v":0},0,0,{"$f":"-SUMIFS(Sheet1!S71_OY1AdjustedBudget,Sheet1!S71_SubMunicipalVoteNo,$AC:$AC,Sheet1!S71_ItemType,$AD:$AD)","v":0},{"$f":"-SUMIFS(Sheet1!S71_OY2AdjustedBudget,Sheet1!S71_SubMunicipalVoteNo,$AC:$AC,Sheet1!S71_ItemType,$AD:$AD)","v":0},null,null,null,null,null,null,null,null,null,null,null,null,null,null,null,141,"IR","IZ"]
[{"$f":"'Org structure'!D147","v":"14.2 - [Name of sub-vote]"},null,{"$f":"-SUMIFS(Sheet1!S71_OriginalBudget,Sheet1!S71_SubMunicipalVoteNo,$AC:$AC,Sheet1!S71_ItemType,$AD:$AD)","v":0},{"$f":"-SUMIFS(Sheet1!S71_PreviousBudget,Sheet1!S71_SubMunicipalVoteNo,$AC:$AC,Sheet1!S71_ItemType,$AD:$AD)","v":0},null,null,null,null,{"$f":"-SUMIFS(Sheet1!S71_CurrentAdjustments,Sheet1!S71_SubMunicipalVoteNo,$AC:$AC,Sheet1!S71_ItemType,$AD:$AD)","v":0},0,0,{"$f":"-SUMIFS(Sheet1!S71_OY1AdjustedBudget,Sheet1!S71_SubMunicipalVoteNo,$AC:$AC,Sheet1!S71_ItemType,$AD:$AD)","v":0},{"$f":"-SUMIFS(Sheet1!S71_OY2AdjustedBudget,Sheet1!S71_SubMunicipalVoteNo,$AC:$AC,Sheet1!S71_ItemType,$AD:$AD)","v":0},null,null,null,null,null,null,null,null,null,null,null,null,null,null,null,142,"IR","IZ"]
[{"$f":"'Org structure'!D148","v":"14.3 - [Name of sub-vote]"},null,{"$f":"-SUMIFS(Sheet1!S71_OriginalBudget,Sheet1!S71_SubMunicipalVoteNo,$AC:$AC,Sheet1!S71_ItemType,$AD:$AD)","v":0},{"$f":"-SUMIFS(Sheet1!S71_PreviousBudget,Sheet1!S71_SubMunicipalVoteNo,$AC:$AC,Sheet1!S71_ItemType,$AD:$AD)","v":0},null,null,null,null,{"$f":"-SUMIFS(Sheet1!S71_CurrentAdjustments,Sheet1!S71_SubMunicipalVoteNo,$AC:$AC,Sheet1!S71_ItemType,$AD:$AD)","v":0},0,0,{"$f":"-SUMIFS(Sheet1!S71_OY1AdjustedBudget,Sheet1!S71_SubMunicipalVoteNo,$AC:$AC,Sheet1!S71_ItemType,$AD:$AD)","v":0},{"$f":"-SUMIFS(Sheet1!S71_OY2AdjustedBudget,Sheet1!S71_SubMunicipalVoteNo,$AC:$AC,Sheet1!S71_ItemType,$AD:$AD)","v":0},null,null,null,null,null,null,null,null,null,null,null,null,null,null,null,143,"IR","IZ"]
[{"$f":"'Org structure'!D149","v":"14.4 - [Name of sub-vote]"},null,{"$f":"-SUMIFS(Sheet1!S71_OriginalBudget,Sheet1!S71_SubMunicipalVoteNo,$AC:$AC,Sheet1!S71_ItemType,$AD:$AD)","v":0},{"$f":"-SUMIFS(Sheet1!S71_PreviousBudget,Sheet1!S71_SubMunicipalVoteNo,$AC:$AC,Sheet1!S71_ItemType,$AD:$AD)","v":0},null,null,null,null,{"$f":"-SUMIFS(Sheet1!S71_CurrentAdjustments,Sheet1!S71_SubMunicipalVoteNo,$AC:$AC,Sheet1!S71_ItemType,$AD:$AD)","v":0},0,0,{"$f":"-SUMIFS(Sheet1!S71_OY1AdjustedBudget,Sheet1!S71_SubMunicipalVoteNo,$AC:$AC,Sheet1!S71_ItemType,$AD:$AD)","v":0},{"$f":"-SUMIFS(Sheet1!S71_OY2AdjustedBudget,Sheet1!S71_SubMunicipalVoteNo,$AC:$AC,Sheet1!S71_ItemType,$AD:$AD)","v":0},null,null,null,null,null,null,null,null,null,null,null,null,null,null,null,144,"IR","IZ"]
[{"$f":"'Org structure'!D150","v":"14.5 - [Name of sub-vote]"},null,{"$f":"-SUMIFS(Sheet1!S71_OriginalBudget,Sheet1!S71_SubMunicipalVoteNo,$AC:$AC,Sheet1!S71_ItemType,$AD:$AD)","v":0},{"$f":"-SUMIFS(Sheet1!S71_PreviousBudget,Sheet1!S71_SubMunicipalVoteNo,$AC:$AC,Sheet1!S71_ItemType,$AD:$AD)","v":0},null,null,null,null,{"$f":"-SUMIFS(Sheet1!S71_CurrentAdjustments,Sheet1!S71_SubMunicipalVoteNo,$AC:$AC,Sheet1!S71_ItemType,$AD:$AD)","v":0},0,0,{"$f":"-SUMIFS(Sheet1!S71_OY1AdjustedBudget,Sheet1!S71_SubMunicipalVoteNo,$AC:$AC,Sheet1!S71_ItemType,$AD:$AD)","v":0},{"$f":"-SUMIFS(Sheet1!S71_OY2AdjustedBudget,Sheet1!S71_SubMunicipalVoteNo,$AC:$AC,Sheet1!S71_ItemType,$AD:$AD)","v":0},null,null,null,null,null,null,null,null,null,null,null,null,null,null,null,145,"IR","IZ"]
[{"$f":"'Org structure'!D151","v":"14.6 - [Name of sub-vote]"},null,{"$f":"-SUMIFS(Sheet1!S71_OriginalBudget,Sheet1!S71_SubMunicipalVoteNo,$AC:$AC,Sheet1!S71_ItemType,$AD:$AD)","v":0},{"$f":"-SUMIFS(Sheet1!S71_PreviousBudget,Sheet1!S71_SubMunicipalVoteNo,$AC:$AC,Sheet1!S71_ItemType,$AD:$AD)","v":0},null,null,null,null,{"$f":"-SUMIFS(Sheet1!S71_CurrentAdjustments,Sheet1!S71_SubMunicipalVoteNo,$AC:$AC,Sheet1!S71_ItemType,$AD:$AD)","v":0},0,0,{"$f":"-SUMIFS(Sheet1!S71_OY1AdjustedBudget,Sheet1!S71_SubMunicipalVoteNo,$AC:$AC,Sheet1!S71_ItemType,$AD:$AD)","v":0},{"$f":"-SUMIFS(Sheet1!S71_OY2AdjustedBudget,Sheet1!S71_SubMunicipalVoteNo,$AC:$AC,Sheet1!S71_ItemType,$AD:$AD)","v":0},null,null,null,null,null,null,null,null,null,null,null,null,null,null,null,146,"IR","IZ"]
[{"$f":"'Org structure'!D152","v":"14.7 - [Name of sub-vote]"},null,{"$f":"-SUMIFS(Sheet1!S71_OriginalBudget,Sheet1!S71_SubMunicipalVoteNo,$AC:$AC,Sheet1!S71_ItemType,$AD:$AD)","v":0},{"$f":"-SUMIFS(Sheet1!S71_PreviousBudget,Sheet1!S71_SubMunicipalVoteNo,$AC:$AC,Sheet1!S71_ItemType,$AD:$AD)","v":0},null,null,null,null,{"$f":"-SUMIFS(Sheet1!S71_CurrentAdjustments,Sheet1!S71_SubMunicipalVoteNo,$AC:$AC,Sheet1!S71_ItemType,$AD:$AD)","v":0},0,0,{"$f":"-SUMIFS(Sheet1!S71_OY1AdjustedBudget,Sheet1!S71_SubMunicipalVoteNo,$AC:$AC,Sheet1!S71_ItemType,$AD:$AD)","v":0},{"$f":"-SUMIFS(Sheet1!S71_OY2AdjustedBudget,Sheet1!S71_SubMunicipalVoteNo,$AC:$AC,Sheet1!S71_ItemType,$AD:$AD)","v":0},null,null,null,null,null,null,null,null,null,null,null,null,null,null,null,147,"IR","IZ"]
[{"$f":"'Org structure'!D153","v":"14.8 - [Name of sub-vote]"},null,{"$f":"-SUMIFS(Sheet1!S71_OriginalBudget,Sheet1!S71_SubMunicipalVoteNo,$AC:$AC,Sheet1!S71_ItemType,$AD:$AD)","v":0},{"$f":"-SUMIFS(Sheet1!S71_PreviousBudget,Sheet1!S71_SubMunicipalVoteNo,$AC:$AC,Sheet1!S71_ItemType,$AD:$AD)","v":0},null,null,null,null,{"$f":"-SUMIFS(Sheet1!S71_CurrentAdjustments,Sheet1!S71_SubMunicipalVoteNo,$AC:$AC,Sheet1!S71_ItemType,$AD:$AD)","v":0},0,0,{"$f":"-SUMIFS(Sheet1!S71_OY1AdjustedBudget,Sheet1!S71_SubMunicipalVoteNo,$AC:$AC,Sheet1!S71_ItemType,$AD:$AD)","v":0},{"$f":"-SUMIFS(Sheet1!S71_OY2AdjustedBudget,Sheet1!S71_SubMunicipalVoteNo,$AC:$AC,Sheet1!S71_ItemType,$AD:$AD)","v":0},null,null,null,null,null,null,null,null,null,null,null,null,null,null,null,148,"IR","IZ"]
[{"$f":"'Org structure'!D154","v":"14.9 - [Name of sub-vote]"},null,{"$f":"-SUMIFS(Sheet1!S71_OriginalBudget,Sheet1!S71_SubMunicipalVoteNo,$AC:$AC,Sheet1!S71_ItemType,$AD:$AD)","v":0},{"$f":"-SUMIFS(Sheet1!S71_PreviousBudget,Sheet1!S71_SubMunicipalVoteNo,$AC:$AC,Sheet1!S71_ItemType,$AD:$AD)","v":0},null,null,null,null,{"$f":"-SUMIFS(Sheet1!S71_CurrentAdjustments,Sheet1!S71_SubMunicipalVoteNo,$AC:$AC,Sheet1!S71_ItemType,$AD:$AD)","v":0},0,0,{"$f":"-SUMIFS(Sheet1!S71_OY1AdjustedBudget,Sheet1!S71_SubMunicipalVoteNo,$AC:$AC,Sheet1!S71_ItemType,$AD:$AD)","v":0},{"$f":"-SUMIFS(Sheet1!S71_OY2AdjustedBudget,Sheet1!S71_SubMunicipalVoteNo,$AC:$AC,Sheet1!S71_ItemType,$AD:$AD)","v":0},null,null,null,null,null,null,null,null,null,null,null,null,null,null,null,149,"IR","IZ"]
[{"$f":"'Org structure'!D155","v":"14.10 - [Name of sub-vote]"},null,{"$f":"-SUMIFS(Sheet1!S71_OriginalBudget,Sheet1!S71_SubMunicipalVoteNo,$AC:$AC,Sheet1!S71_ItemType,$AD:$AD)","v":0},{"$f":"-SUMIFS(Sheet1!S71_PreviousBudget,Sheet1!S71_SubMunicipalVoteNo,$AC:$AC,Sheet1!S71_ItemType,$AD:$AD)","v":0},null,null,null,null,{"$f":"-SUMIFS(Sheet1!S71_CurrentAdjustments,Sheet1!S71_SubMunicipalVoteNo,$AC:$AC,Sheet1!S71_ItemType,$AD:$AD)","v":0},0,0,{"$f":"-SUMIFS(Sheet1!S71_OY1AdjustedBudget,Sheet1!S71_SubMunicipalVoteNo,$AC:$AC,Sheet1!S71_ItemType,$AD:$AD)","v":0},{"$f":"-SUMIFS(Sheet1!S71_OY2AdjustedBudget,Sheet1!S71_SubMunicipalVoteNo,$AC:$AC,Sheet1!S71_ItemType,$AD:$AD)","v":0},null,null,null,null,null,null,null,null,null,null,null,null,null,null,null,1410,"IR","IZ"]
[{"$f":"'Org structure'!A16","v":"Vote 15 - [NAME OF VOTE 15]"},null,{"$f":"SUM(C162:C171)","v":0},{"$f":"SUM(D162:D171)","v":0},0,0,0,0,0,0,0,{"$f":"SUM(L162:L171)","v":0},{"$f":"SUM(M162:M171)","v":0}]
[{"$f":"'Org structure'!D157","v":"15.1 - [Name of sub-vote]"},null,{"$f":"-SUMIFS(Sheet1!S71_OriginalBudget,Sheet1!S71_SubMunicipalVoteNo,$AC:$AC,Sheet1!S71_ItemType,$AD:$AD)","v":0},{"$f":"-SUMIFS(Sheet1!S71_PreviousBudget,Sheet1!S71_SubMunicipalVoteNo,$AC:$AC,Sheet1!S71_ItemType,$AD:$AD)","v":0},null,null,null,null,{"$f":"-SUMIFS(Sheet1!S71_CurrentAdjustments,Sheet1!S71_SubMunicipalVoteNo,$AC:$AC,Sheet1!S71_ItemType,$AD:$AD)","v":0},0,0,{"$f":"-SUMIFS(Sheet1!S71_OY1AdjustedBudget,Sheet1!S71_SubMunicipalVoteNo,$AC:$AC,Sheet1!S71_ItemType,$AD:$AD)","v":0},{"$f":"-SUMIFS(Sheet1!S71_OY2AdjustedBudget,Sheet1!S71_SubMunicipalVoteNo,$AC:$AC,Sheet1!S71_ItemType,$AD:$AD)","v":0},null,null,null,null,null,null,null,null,null,null,null,null,null,null,null,151,"IR","IZ"]
[{"$f":"'Org structure'!D158","v":"15.2 - [Name of sub-vote]"},null,{"$f":"-SUMIFS(Sheet1!S71_OriginalBudget,Sheet1!S71_SubMunicipalVoteNo,$AC:$AC,Sheet1!S71_ItemType,$AD:$AD)","v":0},{"$f":"-SUMIFS(Sheet1!S71_PreviousBudget,Sheet1!S71_SubMunicipalVoteNo,$AC:$AC,Sheet1!S71_ItemType,$AD:$AD)","v":0},null,null,null,null,{"$f":"-SUMIFS(Sheet1!S71_CurrentAdjustments,Sheet1!S71_SubMunicipalVoteNo,$AC:$AC,Sheet1!S71_ItemType,$AD:$AD)","v":0},0,0,{"$f":"-SUMIFS(Sheet1!S71_OY1AdjustedBudget,Sheet1!S71_SubMunicipalVoteNo,$AC:$AC,Sheet1!S71_ItemType,$AD:$AD)","v":0},{"$f":"-SUMIFS(Sheet1!S71_OY2AdjustedBudget,Sheet1!S71_SubMunicipalVoteNo,$AC:$AC,Sheet1!S71_ItemType,$AD:$AD)","v":0},null,null,null,null,null,null,null,null,null,null,null,null,null,null,null,152,"IR","IZ"]
[{"$f":"'Org structure'!D159","v":"15.3 - [Name of sub-vote]"},null,{"$f":"-SUMIFS(Sheet1!S71_OriginalBudget,Sheet1!S71_SubMunicipalVoteNo,$AC:$AC,Sheet1!S71_ItemType,$AD:$AD)","v":0},{"$f":"-SUMIFS(Sheet1!S71_PreviousBudget,Sheet1!S71_SubMunicipalVoteNo,$AC:$AC,Sheet1!S71_ItemType,$AD:$AD)","v":0},null,null,null,null,{"$f":"-SUMIFS(Sheet1!S71_CurrentAdjustments,Sheet1!S71_SubMunicipalVoteNo,$AC:$AC,Sheet1!S71_ItemType,$AD:$AD)","v":0},0,0,{"$f":"-SUMIFS(Sheet1!S71_OY1AdjustedBudget,Sheet1!S71_SubMunicipalVoteNo,$AC:$AC,Sheet1!S71_ItemType,$AD:$AD)","v":0},{"$f":"-SUMIFS(Sheet1!S71_OY2AdjustedBudget,Sheet1!S71_SubMunicipalVoteNo,$AC:$AC,Sheet1!S71_ItemType,$AD:$AD)","v":0},null,null,null,null,null,null,null,null,null,null,null,null,null,null,null,153,"IR","IZ"]
[{"$f":"'Org structure'!D160","v":"15.4 - [Name of sub-vote]"},null,{"$f":"-SUMIFS(Sheet1!S71_OriginalBudget,Sheet1!S71_SubMunicipalVoteNo,$AC:$AC,Sheet1!S71_ItemType,$AD:$AD)","v":0},{"$f":"-SUMIFS(Sheet1!S71_PreviousBudget,Sheet1!S71_SubMunicipalVoteNo,$AC:$AC,Sheet1!S71_ItemType,$AD:$AD)","v":0},null,null,null,null,{"$f":"-SUMIFS(Sheet1!S71_CurrentAdjustments,Sheet1!S71_SubMunicipalVoteNo,$AC:$AC,Sheet1!S71_ItemType,$AD:$AD)","v":0},0,0,{"$f":"-SUMIFS(Sheet1!S71_OY1AdjustedBudget,Sheet1!S71_SubMunicipalVoteNo,$AC:$AC,Sheet1!S71_ItemType,$AD:$AD)","v":0},{"$f":"-SUMIFS(Sheet1!S71_OY2AdjustedBudget,Sheet1!S71_SubMunicipalVoteNo,$AC:$AC,Sheet1!S71_ItemType,$AD:$AD)","v":0},null,null,null,null,null,null,null,null,null,null,null,null,null,null,null,154,"IR","IZ"]
[{"$f":"'Org structure'!D161","v":"15.5 - [Name of sub-vote]"},null,{"$f":"-SUMIFS(Sheet1!S71_OriginalBudget,Sheet1!S71_SubMunicipalVoteNo,$AC:$AC,Sheet1!S71_ItemType,$AD:$AD)","v":0},{"$f":"-SUMIFS(Sheet1!S71_PreviousBudget,Sheet1!S71_SubMunicipalVoteNo,$AC:$AC,Sheet1!S71_ItemType,$AD:$AD)","v":0},null,null,null,null,{"$f":"-SUMIFS(Sheet1!S71_CurrentAdjustments,Sheet1!S71_SubMunicipalVoteNo,$AC:$AC,Sheet1!S71_ItemType,$AD:$AD)","v":0},0,0,{"$f":"-SUMIFS(Sheet1!S71_OY1AdjustedBudget,Sheet1!S71_SubMunicipalVoteNo,$AC:$AC,Sheet1!S71_ItemType,$AD:$AD)","v":0},{"$f":"-SUMIFS(Sheet1!S71_OY2AdjustedBudget,Sheet1!S71_SubMunicipalVoteNo,$AC:$AC,Sheet1!S71_ItemType,$AD:$AD)","v":0},null,null,null,null,null,null,null,null,null,null,null,null,null,null,null,155,"IR","IZ"]
[{"$f":"'Org structure'!D162","v":"15.6 - [Name of sub-vote]"},null,{"$f":"-SUMIFS(Sheet1!S71_OriginalBudget,Sheet1!S71_SubMunicipalVoteNo,$AC:$AC,Sheet1!S71_ItemType,$AD:$AD)","v":0},{"$f":"-SUMIFS(Sheet1!S71_PreviousBudget,Sheet1!S71_SubMunicipalVoteNo,$AC:$AC,Sheet1!S71_ItemType,$AD:$AD)","v":0},null,null,null,null,{"$f":"-SUMIFS(Sheet1!S71_CurrentAdjustments,Sheet1!S71_SubMunicipalVoteNo,$AC:$AC,Sheet1!S71_ItemType,$AD:$AD)","v":0},0,0,{"$f":"-SUMIFS(Sheet1!S71_OY1AdjustedBudget,Sheet1!S71_SubMunicipalVoteNo,$AC:$AC,Sheet1!S71_ItemType,$AD:$AD)","v":0},{"$f":"-SUMIFS(Sheet1!S71_OY2AdjustedBudget,Sheet1!S71_SubMunicipalVoteNo,$AC:$AC,Sheet1!S71_ItemType,$AD:$AD)","v":0},null,null,null,null,null,null,null,null,null,null,null,null,null,null,null,156,"IR","IZ"]
[{"$f":"'Org structure'!D163","v":"15.7 - [Name of sub-vote]"},null,{"$f":"-SUMIFS(Sheet1!S71_OriginalBudget,Sheet1!S71_SubMunicipalVoteNo,$AC:$AC,Sheet1!S71_ItemType,$AD:$AD)","v":0},{"$f":"-SUMIFS(Sheet1!S71_PreviousBudget,Sheet1!S71_SubMunicipalVoteNo,$AC:$AC,Sheet1!S71_ItemType,$AD:$AD)","v":0},null,null,null,null,{"$f":"-SUMIFS(Sheet1!S71_CurrentAdjustments,Sheet1!S71_SubMunicipalVoteNo,$AC:$AC,Sheet1!S71_ItemType,$AD:$AD)","v":0},0,0,{"$f":"-SUMIFS(Sheet1!S71_OY1AdjustedBudget,Sheet1!S71_SubMunicipalVoteNo,$AC:$AC,Sheet1!S71_ItemType,$AD:$AD)","v":0},{"$f":"-SUMIFS(Sheet1!S71_OY2AdjustedBudget,Sheet1!S71_SubMunicipalVoteNo,$AC:$AC,Sheet1!S71_ItemType,$AD:$AD)","v":0},null,null,null,null,null,null,null,null,null,null,null,null,null,null,null,157,"IR","IZ"]
[{"$f":"'Org structure'!D164","v":"15.8 - [Name of sub-vote]"},null,{"$f":"-SUMIFS(Sheet1!S71_OriginalBudget,Sheet1!S71_SubMunicipalVoteNo,$AC:$AC,Sheet1!S71_ItemType,$AD:$AD)","v":0},{"$f":"-SUMIFS(Sheet1!S71_PreviousBudget,Sheet1!S71_SubMunicipalVoteNo,$AC:$AC,Sheet1!S71_ItemType,$AD:$AD)","v":0},null,null,null,null,{"$f":"-SUMIFS(Sheet1!S71_CurrentAdjustments,Sheet1!S71_SubMunicipalVoteNo,$AC:$AC,Sheet1!S71_ItemType,$AD:$AD)","v":0},0,0,{"$f":"-SUMIFS(Sheet1!S71_OY1AdjustedBudget,Sheet1!S71_SubMunicipalVoteNo,$AC:$AC,Sheet1!S71_ItemType,$AD:$AD)","v":0},{"$f":"-SUMIFS(Sheet1!S71_OY2AdjustedBudget,Sheet1!S71_SubMunicipalVoteNo,$AC:$AC,Sheet1!S71_ItemType,$AD:$AD)","v":0},null,null,null,null,null,null,null,null,null,null,null,null,null,null,null,158,"IR","IZ"]
[{"$f":"'Org structure'!D165","v":"15.9 - [Name of sub-vote]"},null,{"$f":"-SUMIFS(Sheet1!S71_OriginalBudget,Sheet1!S71_SubMunicipalVoteNo,$AC:$AC,Sheet1!S71_ItemType,$AD:$AD)","v":0},{"$f":"-SUMIFS(Sheet1!S71_PreviousBudget,Sheet1!S71_SubMunicipalVoteNo,$AC:$AC,Sheet1!S71_ItemType,$AD:$AD)","v":0},null,null,null,null,{"$f":"-SUMIFS(Sheet1!S71_CurrentAdjustments,Sheet1!S71_SubMunicipalVoteNo,$AC:$AC,Sheet1!S71_ItemType,$AD:$AD)","v":0},0,0,{"$f":"-SUMIFS(Sheet1!S71_OY1AdjustedBudget,Sheet1!S71_SubMunicipalVoteNo,$AC:$AC,Sheet1!S71_ItemType,$AD:$AD)","v":0},{"$f":"-SUMIFS(Sheet1!S71_OY2AdjustedBudget,Sheet1!S71_SubMunicipalVoteNo,$AC:$AC,Sheet1!S71_ItemType,$AD:$AD)","v":0},null,null,null,null,null,null,null,null,null,null,null,null,null,null,null,159,"IR","IZ"]
[{"$f":"'Org structure'!D166","v":"15.10 - [Name of sub-vote]"},null,{"$f":"-SUMIFS(Sheet1!S71_OriginalBudget,Sheet1!S71_SubMunicipalVoteNo,$AC:$AC,Sheet1!S71_ItemType,$AD:$AD)","v":0},{"$f":"-SUMIFS(Sheet1!S71_PreviousBudget,Sheet1!S71_SubMunicipalVoteNo,$AC:$AC,Sheet1!S71_ItemType,$AD:$AD)","v":0},null,null,null,null,{"$f":"-SUMIFS(Sheet1!S71_CurrentAdjustments,Sheet1!S71_SubMunicipalVoteNo,$AC:$AC,Sheet1!S71_ItemType,$AD:$AD)","v":0},0,0,{"$f":"-SUMIFS(Sheet1!S71_OY1AdjustedBudget,Sheet1!S71_SubMunicipalVoteNo,$AC:$AC,Sheet1!S71_ItemType,$AD:$AD)","v":0},{"$f":"-SUMIFS(Sheet1!S71_OY2AdjustedBudget,Sheet1!S71_SubMunicipalVoteNo,$AC:$AC,Sheet1!S71_ItemType,$AD:$AD)","v":0},null,null,null,null,null,null,null,null,null,null,null,null,null,null,null,1510,"IR","IZ"]
["Total Revenue by Vote",2,{"$f":"C7+C18+C29+C40+C51+C62+C73+C84+C95+C106+C117+C128+C139+C150+C161","v":486860894},{"$f":"D7+D18+D29+D40+D51+D62+D73+D84+D95+D106+D117+D128+D139+D150+D161","v":494007453},0,0,0,-4435630,0,{"$f":"SUM(E172:I172)","v":-4435630},{"$f":"IF(D172=0,C172+J172,D172+J172)","v":489571823},{"$f":"L7+L18+L29+L40+L51+L62+L73+L84+L95+L106+L117+L128+L139+L150+L161","v":493892319},{"$f":"M7+M18+M29+M40+M51+M62+M73+M84+M95+M106+M117+M128+M139+M150+M161","v":506675906}]
[]
["Expenditure by Vote",1]
[{"$f":"A7","v":"Vote 1 - Executive and council"},null,{"$f":"SUM(C176:C185)","v":66001422},72502265,0,0,0,0,0,{"$f":"SUM(E175:I175)","v":0},{"$f":"IF(D175=0,C175+J175,D175+J175)","v":72502265},{"$f":"SUM(L176:L185)","v":69139571},{"$f":"SUM(M176:M185)","v":71919455}]
[{"$f":"'Org structure'!D3","v":"1.1 - Mayor and Council"},null,{"$f":"SUMIFS(Sheet1!S71_OriginalBudget,Sheet1!S71_SubMunicipalVoteNo,$AC:$AC,Sheet1!S71_ItemType,$AD:$AD)","v":41659266},{"$f":"SUMIFS(Sheet1!S71_PreviousBudget,Sheet1!S71_SubMunicipalVoteNo,$AC:$AC,Sheet1!S71_ItemType,$AD:$AD)","v":44679405},null,null,null,null,{"$f":"SUMIFS(Sheet1!S71_CurrentAdjustments,Sheet1!S71_SubMunicipalVoteNo,$AC:$AC,Sheet1!S71_ItemType,$AD:$AD)","v":0},{"$f":"SUM(E176:I176)","v":0},{"$f":"IF(D176=0,C176+J176,D176+J176)","v":44679405},{"$f":"SUMIFS(Sheet1!S71_OY1AdjustedBudget,Sheet1!S71_SubMunicipalVoteNo,$AC:$AC,Sheet1!S71_ItemType,$AD:$AD)","v":43363501},{"$f":"SUMIFS(Sheet1!S71_OY2AdjustedBudget,Sheet1!S71_SubMunicipalVoteNo,$AC:$AC,Sheet1!S71_ItemType,$AD:$AD)","v":44925490},null,null,null,null,null,null,null,null,null,null,null,null,null,null,null,11,"IE","IZ"]
[{"$f":"'Org structure'!D4","v":"1.2 - Municipal Manager, Town Secretary and Chief Executive"},null,{"$f":"SUMIFS(Sheet1!S71_OriginalBudget,Sheet1!S71_SubMunicipalVoteNo,$AC:$AC,Sheet1!S71_ItemType,$AD:$AD)","v":24342156},{"$f":"SUMIFS(Sheet1!S71_PreviousBudget,Sheet1!S71_SubMunicipalVoteNo,$AC:$AC,Sheet1!S71_ItemType,$AD:$AD)","v":27822860},null,null,null,null,{"$f":"SUMIFS(Sheet1!S71_CurrentAdjustments,Sheet1!S71_SubMunicipalVoteNo,$AC:$AC,Sheet1!S71_ItemType,$AD:$AD)","v":0},0,27822860,{"$f":"SUMIFS(Sheet1!S71_OY1AdjustedBudget,Sheet1!S71_SubMunicipalVoteNo,$AC:$AC,Sheet1!S71_ItemType,$AD:$AD)","v":25776070},{"$f":"SUMIFS(Sheet1!S71_OY2AdjustedBudget,Sheet1!S71_SubMunicipalVoteNo,$AC:$AC,Sheet1!S71_ItemType,$AD:$AD)","v":26993965},null,null,null,null,null,null,null,null,null,null,null,null,null,null,null,12,"IE","IZ"]
[{"$f":"'Org structure'!D5","v":"1.3 - [Name of sub-vote]"},null,{"$f":"SUMIFS(Sheet1!S71_OriginalBudget,Sheet1!S71_SubMunicipalVoteNo,$AC:$AC,Sheet1!S71_ItemType,$AD:$AD)","v":0},{"$f":"SUMIFS(Sheet1!S71_PreviousBudget,Sheet1!S71_SubMunicipalVoteNo,$AC:$AC,Sheet1!S71_ItemType,$AD:$AD)","v":0},null,null,null,null,{"$f":"SUMIFS(Sheet1!S71_CurrentAdjustments,Sheet1!S71_SubMunicipalVoteNo,$AC:$AC,Sheet1!S71_ItemType,$AD:$AD)","v":0},0,0,{"$f":"SUMIFS(Sheet1!S71_OY1AdjustedBudget,Sheet1!S71_SubMunicipalVoteNo,$AC:$AC,Sheet1!S71_ItemType,$AD:$AD)","v":0},{"$f":"SUMIFS(Sheet1!S71_OY2AdjustedBudget,Sheet1!S71_SubMunicipalVoteNo,$AC:$AC,Sheet1!S71_ItemType,$AD:$AD)","v":0},null,null,null,null,null,null,null,null,null,null,null,null,null,null,null,13,"IE","IZ"]
[{"$f":"'Org structure'!D6","v":"1.4 - [Name of sub-vote]"},null,{"$f":"SUMIFS(Sheet1!S71_OriginalBudget,Sheet1!S71_SubMunicipalVoteNo,$AC:$AC,Sheet1!S71_ItemType,$AD:$AD)","v":0},{"$f":"SUMIFS(Sheet1!S71_PreviousBudget,Sheet1!S71_SubMunicipalVoteNo,$AC:$AC,Sheet1!S71_ItemType,$AD:$AD)","v":0},null,null,null,null,{"$f":"SUMIFS(Sheet1!S71_CurrentAdjustments,Sheet1!S71_SubMunicipalVoteNo,$AC:$AC,Sheet1!S71_ItemType,$AD:$AD)","v":0},0,0,{"$f":"SUMIFS(Sheet1!S71_OY1AdjustedBudget,Sheet1!S71_SubMunicipalVoteNo,$AC:$AC,Sheet1!S71_ItemType,$AD:$AD)","v":0},{"$f":"SUMIFS(Sheet1!S71_OY2AdjustedBudget,Sheet1!S71_SubMunicipalVoteNo,$AC:$AC,Sheet1!S71_ItemType,$AD:$AD)","v":0},null,null,null,null,null,null,null,null,null,null,null,null,null,null,null,14,"IE","IZ"]
[{"$f":"'Org structure'!D7","v":"1.5 - [Name of sub-vote]"},null,{"$f":"SUMIFS(Sheet1!S71_OriginalBudget,Sheet1!S71_SubMunicipalVoteNo,$AC:$AC,Sheet1!S71_ItemType,$AD:$AD)","v":0},{"$f":"SUMIFS(Sheet1!S71_PreviousBudget,Sheet1!S71_SubMunicipalVoteNo,$AC:$AC,Sheet1!S71_ItemType,$AD:$AD)","v":0},null,null,null,null,{"$f":"SUMIFS(Sheet1!S71_CurrentAdjustments,Sheet1!S71_SubMunicipalVoteNo,$AC:$AC,Sheet1!S71_ItemType,$AD:$AD)","v":0},0,0,{"$f":"SUMIFS(Sheet1!S71_OY1AdjustedBudget,Sheet1!S71_SubMunicipalVoteNo,$AC:$AC,Sheet1!S71_ItemType,$AD:$AD)","v":0},{"$f":"SUMIFS(Sheet1!S71_OY2AdjustedBudget,Sheet1!S71_SubMunicipalVoteNo,$AC:$AC,Sheet1!S71_ItemType,$AD:$AD)","v":0},null,null,null,null,null,null,null,null,null,null,null,null,null,null,null,15,"IE","IZ"]
[{"$f":"'Org structure'!D8","v":"1.6 - [Name of sub-vote]"},null,{"$f":"SUMIFS(Sheet1!S71_OriginalBudget,Sheet1!S71_SubMunicipalVoteNo,$AC:$AC,Sheet1!S71_ItemType,$AD:$AD)","v":0},{"$f":"SUMIFS(Sheet1!S71_PreviousBudget,Sheet1!S71_SubMunicipalVoteNo,$AC:$AC,Sheet1!S71_ItemType,$AD:$AD)","v":0},null,null,null,null,{"$f":"SUMIFS(Sheet1!S71_CurrentAdjustments,Sheet1!S71_SubMunicipalVoteNo,$AC:$AC,Sheet1!S71_ItemType,$AD:$AD)","v":0},0,0,{"$f":"SUMIFS(Sheet1!S71_OY1AdjustedBudget,Sheet1!S71_SubMunicipalVoteNo,$AC:$AC,Sheet1!S71_ItemType,$AD:$AD)","v":0},{"$f":"SUMIFS(Sheet1!S71_OY2AdjustedBudget,Sheet1!S71_SubMunicipalVoteNo,$AC:$AC,Sheet1!S71_ItemType,$AD:$AD)","v":0},null,null,null,null,null,null,null,null,null,null,null,null,null,null,null,16,"IE","IZ"]
[{"$f":"'Org structure'!D9","v":"1.7 - [Name of sub-vote]"},null,{"$f":"SUMIFS(Sheet1!S71_OriginalBudget,Sheet1!S71_SubMunicipalVoteNo,$AC:$AC,Sheet1!S71_ItemType,$AD:$AD)","v":0},{"$f":"SUMIFS(Sheet1!S71_PreviousBudget,Sheet1!S71_SubMunicipalVoteNo,$AC:$AC,Sheet1!S71_ItemType,$AD:$AD)","v":0},null,null,null,null,{"$f":"SUMIFS(Sheet1!S71_CurrentAdjustments,Sheet1!S71_SubMunicipalVoteNo,$AC:$AC,Sheet1!S71_ItemType,$AD:$AD)","v":0},0,0,{"$f":"SUMIFS(Sheet1!S71_OY1AdjustedBudget,Sheet1!S71_SubMunicipalVoteNo,$AC:$AC,Sheet1!S71_ItemType,$AD:$AD)","v":0},{"$f":"SUMIFS(Sheet1!S71_OY2AdjustedBudget,Sheet1!S71_SubMunicipalVoteNo,$AC:$AC,Sheet1!S71_ItemType,$AD:$AD)","v":0},null,null,null,null,null,null,null,null,null,null,null,null,null,null,null,17,"IE","IZ"]
[{"$f":"'Org structure'!D10","v":"1.8 - [Name of sub-vote]"},null,{"$f":"SUMIFS(Sheet1!S71_OriginalBudget,Sheet1!S71_SubMunicipalVoteNo,$AC:$AC,Sheet1!S71_ItemType,$AD:$AD)","v":0},{"$f":"SUMIFS(Sheet1!S71_PreviousBudget,Sheet1!S71_SubMunicipalVoteNo,$AC:$AC,Sheet1!S71_ItemType,$AD:$AD)","v":0},null,null,null,null,{"$f":"SUMIFS(Sheet1!S71_CurrentAdjustments,Sheet1!S71_SubMunicipalVoteNo,$AC:$AC,Sheet1!S71_ItemType,$AD:$AD)","v":0},0,0,{"$f":"SUMIFS(Sheet1!S71_OY1AdjustedBudget,Sheet1!S71_SubMunicipalVoteNo,$AC:$AC,Sheet1!S71_ItemType,$AD:$AD)","v":0},{"$f":"SUMIFS(Sheet1!S71_OY2AdjustedBudget,Sheet1!S71_SubMunicipalVoteNo,$AC:$AC,Sheet1!S71_ItemType,$AD:$AD)","v":0},null,null,null,null,null,null,null,null,null,null,null,null,null,null,null,18,"IE","IZ"]
[{"$f":"'Org structure'!D11","v":"1.9 - [Name of sub-vote]"},null,{"$f":"SUMIFS(Sheet1!S71_OriginalBudget,Sheet1!S71_SubMunicipalVoteNo,$AC:$AC,Sheet1!S71_ItemType,$AD:$AD)","v":0},{"$f":"SUMIFS(Sheet1!S71_PreviousBudget,Sheet1!S71_SubMunicipalVoteNo,$AC:$AC,Sheet1!S71_ItemType,$AD:$AD)","v":0},null,null,null,null,{"$f":"SUMIFS(Sheet1!S71_CurrentAdjustments,Sheet1!S71_SubMunicipalVoteNo,$AC:$AC,Sheet1!S71_ItemType,$AD:$AD)","v":0},0,0,{"$f":"SUMIFS(Sheet1!S71_OY1AdjustedBudget,Sheet1!S71_SubMunicipalVoteNo,$AC:$AC,Sheet1!S71_ItemType,$AD:$AD)","v":0},{"$f":"SUMIFS(Sheet1!S71_OY2AdjustedBudget,Sheet1!S71_SubMunicipalVoteNo,$AC:$AC,Sheet1!S71_ItemType,$AD:$AD)","v":0},null,null,null,null,null,null,null,null,null,null,null,null,null,null,null,19,"IE","IZ"]
[{"$f":"'Org structure'!D12","v":"1.10 - [Name of sub-vote]"},null,{"$f":"SUMIFS(Sheet1!S71_OriginalBudget,Sheet1!S71_SubMunicipalVoteNo,$AC:$AC,Sheet1!S71_ItemType,$AD:$AD)","v":0},{"$f":"SUMIFS(Sheet1!S71_PreviousBudget,Sheet1!S71_SubMunicipalVoteNo,$AC:$AC,Sheet1!S71_ItemType,$AD:$AD)","v":0},null,null,null,null,{"$f":"SUMIFS(Sheet1!S71_CurrentAdjustments,Sheet1!S71_SubMunicipalVoteNo,$AC:$AC,Sheet1!S71_ItemType,$AD:$AD)","v":0},0,0,{"$f":"SUMIFS(Sheet1!S71_OY1AdjustedBudget,Sheet1!S71_SubMunicipalVoteNo,$AC:$AC,Sheet1!S71_ItemType,$AD:$AD)","v":0},{"$f":"SUMIFS(Sheet1!S71_OY2AdjustedBudget,Sheet1!S71_SubMunicipalVoteNo,$AC:$AC,Sheet1!S71_ItemType,$AD:$AD)","v":0},null,null,null,null,null,null,null,null,null,null,null,null,null,null,null,110,"IE","IZ"]
[{"$f":"A18","v":"Vote 2 - Finance and administration"},null,{"$f":"SUM(C187:C196)","v":151121489},165145830,0,0,0,0,0,0,165145830,{"$f":"SUM(L187:L196)","v":149835530},{"$f":"SUM(M187:M196)","v":137933511}]
[{"$f":"'Org structure'!D14","v":"2.1 - Administrative and Corporate Support"},null,{"$f":"SUMIFS(Sheet1!S71_OriginalBudget,Sheet1!S71_SubMunicipalVoteNo,$AC:$AC,Sheet1!S71_ItemType,$AD:$AD)","v":17255042},{"$f":"SUMIFS(Sheet1!S71_PreviousBudget,Sheet1!S71_SubMunicipalVoteNo,$AC:$AC,Sheet1!S71_ItemType,$AD:$AD)","v":17250939},null,null,null,null,{"$f":"SUMIFS(Sheet1!S71_CurrentAdjustments,Sheet1!S71_SubMunicipalVoteNo,$AC:$AC,Sheet1!S71_ItemType,$AD:$AD)","v":0},0,17250939,{"$f":"SUMIFS(Sheet1!S71_OY1AdjustedBudget,Sheet1!S71_SubMunicipalVoteNo,$AC:$AC,Sheet1!S71_ItemType,$AD:$AD)","v":17668318},{"$f":"SUMIFS(Sheet1!S71_OY2AdjustedBudget,Sheet1!S71_SubMunicipalVoteNo,$AC:$AC,Sheet1!S71_ItemType,$AD:$AD)","v":18592402},null,null,null,null,null,null,null,null,null,null,null,null,null,null,null,21,"IE","IZ"]
[{"$f":"'Org structure'!D15","v":"2.2 - Asset Management"},null,{"$f":"SUMIFS(Sheet1!S71_OriginalBudget,Sheet1!S71_SubMunicipalVoteNo,$AC:$AC,Sheet1!S71_ItemType,$AD:$AD)","v":17313220},{"$f":"SUMIFS(Sheet1!S71_PreviousBudget,Sheet1!S71_SubMunicipalVoteNo,$AC:$AC,Sheet1!S71_ItemType,$AD:$AD)","v":21104029},null,null,null,null,{"$f":"SUMIFS(Sheet1!S71_CurrentAdjustments,Sheet1!S71_SubMunicipalVoteNo,$AC:$AC,Sheet1!S71_ItemType,$AD:$AD)","v":0},0,21104029,{"$f":"SUMIFS(Sheet1!S71_OY1AdjustedBudget,Sheet1!S71_SubMunicipalVoteNo,$AC:$AC,Sheet1!S71_ItemType,$AD:$AD)","v":17617659},{"$f":"SUMIFS(Sheet1!S71_OY2AdjustedBudget,Sheet1!S71_SubMunicipalVoteNo,$AC:$AC,Sheet1!S71_ItemType,$AD:$AD)","v":15222538},null,null,null,null,null,null,null,null,null,null,null,null,null,null,null,22,"IE","IZ"]
[{"$f":"'Org structure'!D16","v":"2.3 - Finance"},null,{"$f":"SUMIFS(Sheet1!S71_OriginalBudget,Sheet1!S71_SubMunicipalVoteNo,$AC:$AC,Sheet1!S71_ItemType,$AD:$AD)","v":70609417},{"$f":"SUMIFS(Sheet1!S71_PreviousBudget,Sheet1!S71_SubMunicipalVoteNo,$AC:$AC,Sheet1!S71_ItemType,$AD:$AD)","v":75462604},null,null,null,null,{"$f":"SUMIFS(Sheet1!S71_CurrentAdjustments,Sheet1!S71_SubMunicipalVoteNo,$AC:$AC,Sheet1!S71_ItemType,$AD:$AD)","v":0},0,75462604,{"$f":"SUMIFS(Sheet1!S71_OY1AdjustedBudget,Sheet1!S71_SubMunicipalVoteNo,$AC:$AC,Sheet1!S71_ItemType,$AD:$AD)","v":64766023},{"$f":"SUMIFS(Sheet1!S71_OY2AdjustedBudget,Sheet1!S71_SubMunicipalVoteNo,$AC:$AC,Sheet1!S71_ItemType,$AD:$AD)","v":51915758},null,null,null,null,null,null,null,null,null,null,null,null,null,null,null,23,"IE","IZ"]
[{"$f":"'Org structure'!D17","v":"2.4 - Fleet Management"},null,{"$f":"SUMIFS(Sheet1!S71_OriginalBudget,Sheet1!S71_SubMunicipalVoteNo,$AC:$AC,Sheet1!S71_ItemType,$AD:$AD)","v":21866842},{"$f":"SUMIFS(Sheet1!S71_PreviousBudget,Sheet1!S71_SubMunicipalVoteNo,$AC:$AC,Sheet1!S71_ItemType,$AD:$AD)","v":24997338},null,null,null,null,{"$f":"SUMIFS(Sheet1!S71_CurrentAdjustments,Sheet1!S71_SubMunicipalVoteNo,$AC:$AC,Sheet1!S71_ItemType,$AD:$AD)","v":0},0,24997338,{"$f":"SUMIFS(Sheet1!S71_OY1AdjustedBudget,Sheet1!S71_SubMunicipalVoteNo,$AC:$AC,Sheet1!S71_ItemType,$AD:$AD)","v":22844432},{"$f":"SUMIFS(Sheet1!S71_OY2AdjustedBudget,Sheet1!S71_SubMunicipalVoteNo,$AC:$AC,Sheet1!S71_ItemType,$AD:$AD)","v":23847947},null,null,null,null,null,null,null,null,null,null,null,null,null,null,null,24,"IE","IZ"]
[{"$f":"'Org structure'!D18","v":"2.5 - Human Resources"},null,{"$f":"SUMIFS(Sheet1!S71_OriginalBudget,Sheet1!S71_SubMunicipalVoteNo,$AC:$AC,Sheet1!S71_ItemType,$AD:$AD)","v":7720505},{"$f":"SUMIFS(Sheet1!S71_PreviousBudget,Sheet1!S71_SubMunicipalVoteNo,$AC:$AC,Sheet1!S71_ItemType,$AD:$AD)","v":7453114},null,null,null,null,{"$f":"SUMIFS(Sheet1!S71_CurrentAdjustments,Sheet1!S71_SubMunicipalVoteNo,$AC:$AC,Sheet1!S71_ItemType,$AD:$AD)","v":0},0,7453114,{"$f":"SUMIFS(Sheet1!S71_OY1AdjustedBudget,Sheet1!S71_SubMunicipalVoteNo,$AC:$AC,Sheet1!S71_ItemType,$AD:$AD)","v":8530430},{"$f":"SUMIFS(Sheet1!S71_OY2AdjustedBudget,Sheet1!S71_SubMunicipalVoteNo,$AC:$AC,Sheet1!S71_ItemType,$AD:$AD)","v":8922836},null,null,null,null,null,null,null,null,null,null,null,null,null,null,null,25,"IE","IZ"]
[{"$f":"'Org structure'!D19","v":"2.6 - Information Technology"},null,{"$f":"SUMIFS(Sheet1!S71_OriginalBudget,Sheet1!S71_SubMunicipalVoteNo,$AC:$AC,Sheet1!S71_ItemType,$AD:$AD)","v":14586413},{"$f":"SUMIFS(Sheet1!S71_PreviousBudget,Sheet1!S71_SubMunicipalVoteNo,$AC:$AC,Sheet1!S71_ItemType,$AD:$AD)","v":17107756},null,null,null,null,{"$f":"SUMIFS(Sheet1!S71_CurrentAdjustments,Sheet1!S71_SubMunicipalVoteNo,$AC:$AC,Sheet1!S71_ItemType,$AD:$AD)","v":0},0,17107756,{"$f":"SUMIFS(Sheet1!S71_OY1AdjustedBudget,Sheet1!S71_SubMunicipalVoteNo,$AC:$AC,Sheet1!S71_ItemType,$AD:$AD)","v":16580651},{"$f":"SUMIFS(Sheet1!S71_OY2AdjustedBudget,Sheet1!S71_SubMunicipalVoteNo,$AC:$AC,Sheet1!S71_ItemType,$AD:$AD)","v":17559180},null,null,null,null,null,null,null,null,null,null,null,null,null,null,null,26,"IE","IZ"]
[{"$f":"'Org structure'!D20","v":"2.7 - Property Services"},null,{"$f":"SUMIFS(Sheet1!S71_OriginalBudget,Sheet1!S71_SubMunicipalVoteNo,$AC:$AC,Sheet1!S71_ItemType,$AD:$AD)","v":1770050},{"$f":"SUMIFS(Sheet1!S71_PreviousBudget,Sheet1!S71_SubMunicipalVoteNo,$AC:$AC,Sheet1!S71_ItemType,$AD:$AD)","v":1770050},null,null,null,null,{"$f":"SUMIFS(Sheet1!S71_CurrentAdjustments,Sheet1!S71_SubMunicipalVoteNo,$AC:$AC,Sheet1!S71_ItemType,$AD:$AD)","v":0},0,1770050,{"$f":"SUMIFS(Sheet1!S71_OY1AdjustedBudget,Sheet1!S71_SubMunicipalVoteNo,$AC:$AC,Sheet1!S71_ItemType,$AD:$AD)","v":1828017},{"$f":"SUMIFS(Sheet1!S71_OY2AdjustedBudget,Sheet1!S71_SubMunicipalVoteNo,$AC:$AC,Sheet1!S71_ItemType,$AD:$AD)","v":1872850},null,null,null,null,null,null,null,null,null,null,null,null,null,null,null,27,"IE","IZ"]
[{"$f":"'Org structure'!D21","v":"2.8 - Security Services"},null,{"$f":"SUMIFS(Sheet1!S71_OriginalBudget,Sheet1!S71_SubMunicipalVoteNo,$AC:$AC,Sheet1!S71_ItemType,$AD:$AD)","v":0},{"$f":"SUMIFS(Sheet1!S71_PreviousBudget,Sheet1!S71_SubMunicipalVoteNo,$AC:$AC,Sheet1!S71_ItemType,$AD:$AD)","v":0},null,null,null,null,{"$f":"SUMIFS(Sheet1!S71_CurrentAdjustments,Sheet1!S71_SubMunicipalVoteNo,$AC:$AC,Sheet1!S71_ItemType,$AD:$AD)","v":0},0,0,{"$f":"SUMIFS(Sheet1!S71_OY1AdjustedBudget,Sheet1!S71_SubMunicipalVoteNo,$AC:$AC,Sheet1!S71_ItemType,$AD:$AD)","v":0},{"$f":"SUMIFS(Sheet1!S71_OY2AdjustedBudget,Sheet1!S71_SubMunicipalVoteNo,$AC:$AC,Sheet1!S71_ItemType,$AD:$AD)","v":0},null,null,null,null,null,null,null,null,null,null,null,null,null,null,null,28,"IE","IZ"]
[{"$f":"'Org structure'!D22","v":"2.9 - Supply Chain Management"},null,{"$f":"SUMIFS(Sheet1!S71_OriginalBudget,Sheet1!S71_SubMunicipalVoteNo,$AC:$AC,Sheet1!S71_ItemType,$AD:$AD)","v":0},{"$f":"SUMIFS(Sheet1!S71_PreviousBudget,Sheet1!S71_SubMunicipalVoteNo,$AC:$AC,Sheet1!S71_ItemType,$AD:$AD)","v":0},null,null,null,null,{"$f":"SUMIFS(Sheet1!S71_CurrentAdjustments,Sheet1!S71_SubMunicipalVoteNo,$AC:$AC,Sheet1!S71_ItemType,$AD:$AD)","v":0},0,0,{"$f":"SUMIFS(Sheet1!S71_OY1AdjustedBudget,Sheet1!S71_SubMunicipalVoteNo,$AC:$AC,Sheet1!S71_ItemType,$AD:$AD)","v":0},{"$f":"SUMIFS(Sheet1!S71_OY2AdjustedBudget,Sheet1!S71_SubMunicipalVoteNo,$AC:$AC,Sheet1!S71_ItemType,$AD:$AD)","v":0},null,null,null,null,null,null,null,null,null,null,null,null,null,null,null,29,"IE","IZ"]
[{"$f":"'Org structure'!D23","v":"2.10 - Valuation Service"},null,{"$f":"SUMIFS(Sheet1!S71_OriginalBudget,Sheet1!S71_SubMunicipalVoteNo,$AC:$AC,Sheet1!S71_ItemType,$AD:$AD)","v":0},{"$f":"SUMIFS(Sheet1!S71_PreviousBudget,Sheet1!S71_SubMunicipalVoteNo,$AC:$AC,Sheet1!S71_ItemType,$AD:$AD)","v":0},null,null,null,null,{"$f":"SUMIFS(Sheet1!S71_CurrentAdjustments,Sheet1!S71_SubMunicipalVoteNo,$AC:$AC,Sheet1!S71_ItemType,$AD:$AD)","v":0},0,0,{"$f":"SUMIFS(Sheet1!S71_OY1AdjustedBudget,Sheet1!S71_SubMunicipalVoteNo,$AC:$AC,Sheet1!S71_ItemType,$AD:$AD)","v":0},{"$f":"SUMIFS(Sheet1!S71_OY2AdjustedBudget,Sheet1!S71_SubMunicipalVoteNo,$AC:$AC,Sheet1!S71_ItemType,$AD:$AD)","v":0},null,null,null,null,null,null,null,null,null,null,null,null,null,null,null,210,"IE","IZ"]
[{"$f":"A29","v":"Vote 3 - Internal audit"},null,{"$f":"SUM(C198:C207)","v":0},0,0,0,0,0,0,0,0,{"$f":"SUM(L198:L207)","v":0},{"$f":"SUM(M198:M207)","v":0}]
[{"$f":"'Org structure'!D25","v":"3.1 - Governance Function"},null,{"$f":"SUMIFS(Sheet1!S71_OriginalBudget,Sheet1!S71_SubMunicipalVoteNo,$AC:$AC,Sheet1!S71_ItemType,$AD:$AD)","v":0},{"$f":"SUMIFS(Sheet1!S71_PreviousBudget,Sheet1!S71_SubMunicipalVoteNo,$AC:$AC,Sheet1!S71_ItemType,$AD:$AD)","v":0},null,null,null,null,{"$f":"SUMIFS(Sheet1!S71_CurrentAdjustments,Sheet1!S71_SubMunicipalVoteNo,$AC:$AC,Sheet1!S71_ItemType,$AD:$AD)","v":0},0,0,{"$f":"SUMIFS(Sheet1!S71_OY1AdjustedBudget,Sheet1!S71_SubMunicipalVoteNo,$AC:$AC,Sheet1!S71_ItemType,$AD:$AD)","v":0},{"$f":"SUMIFS(Sheet1!S71_OY2AdjustedBudget,Sheet1!S71_SubMunicipalVoteNo,$AC:$AC,Sheet1!S71_ItemType,$AD:$AD)","v":0},null,null,null,null,null,null,null,null,null,null,null,null,null,null,null,31,"IE","IZ"]
[{"$f":"'Org structure'!D26","v":"3.2 - Risk Management"},null,{"$f":"SUMIFS(Sheet1!S71_OriginalBudget,Sheet1!S71_SubMunicipalVoteNo,$AC:$AC,Sheet1!S71_ItemType,$AD:$AD)","v":0},{"$f":"SUMIFS(Sheet1!S71_PreviousBudget,Sheet1!S71_SubMunicipalVoteNo,$AC:$AC,Sheet1!S71_ItemType,$AD:$AD)","v":0},null,null,null,null,{"$f":"SUMIFS(Sheet1!S71_CurrentAdjustments,Sheet1!S71_SubMunicipalVoteNo,$AC:$AC,Sheet1!S71_ItemType,$AD:$AD)","v":0},0,0,{"$f":"SUMIFS(Sheet1!S71_OY1AdjustedBudget,Sheet1!S71_SubMunicipalVoteNo,$AC:$AC,Sheet1!S71_ItemType,$AD:$AD)","v":0},{"$f":"SUMIFS(Sheet1!S71_OY2AdjustedBudget,Sheet1!S71_SubMunicipalVoteNo,$AC:$AC,Sheet1!S71_ItemType,$AD:$AD)","v":0},null,null,null,null,null,null,null,null,null,null,null,null,null,null,null,32,"IE","IZ"]
[{"$f":"'Org structure'!D27","v":"3.3 - [Name of sub-vote]"},null,{"$f":"SUMIFS(Sheet1!S71_OriginalBudget,Sheet1!S71_SubMunicipalVoteNo,$AC:$AC,Sheet1!S71_ItemType,$AD:$AD)","v":0},{"$f":"SUMIFS(Sheet1!S71_PreviousBudget,Sheet1!S71_SubMunicipalVoteNo,$AC:$AC,Sheet1!S71_ItemType,$AD:$AD)","v":0},null,null,null,null,{"$f":"SUMIFS(Sheet1!S71_CurrentAdjustments,Sheet1!S71_SubMunicipalVoteNo,$AC:$AC,Sheet1!S71_ItemType,$AD:$AD)","v":0},0,0,{"$f":"SUMIFS(Sheet1!S71_OY1AdjustedBudget,Sheet1!S71_SubMunicipalVoteNo,$AC:$AC,Sheet1!S71_ItemType,$AD:$AD)","v":0},{"$f":"SUMIFS(Sheet1!S71_OY2AdjustedBudget,Sheet1!S71_SubMunicipalVoteNo,$AC:$AC,Sheet1!S71_ItemType,$AD:$AD)","v":0},null,null,null,null,null,null,null,null,null,null,null,null,null,null,null,33,"IE","IZ"]
[{"$f":"'Org structure'!D28","v":"3.4 - [Name of sub-vote]"},null,{"$f":"SUMIFS(Sheet1!S71_OriginalBudget,Sheet1!S71_SubMunicipalVoteNo,$AC:$AC,Sheet1!S71_ItemType,$AD:$AD)","v":0},{"$f":"SUMIFS(Sheet1!S71_PreviousBudget,Sheet1!S71_SubMunicipalVoteNo,$AC:$AC,Sheet1!S71_ItemType,$AD:$AD)","v":0},null,null,null,null,{"$f":"SUMIFS(Sheet1!S71_CurrentAdjustments,Sheet1!S71_SubMunicipalVoteNo,$AC:$AC,Sheet1!S71_ItemType,$AD:$AD)","v":0},0,0,{"$f":"SUMIFS(Sheet1!S71_OY1AdjustedBudget,Sheet1!S71_SubMunicipalVoteNo,$AC:$AC,Sheet1!S71_ItemType,$AD:$AD)","v":0},{"$f":"SUMIFS(Sheet1!S71_OY2AdjustedBudget,Sheet1!S71_SubMunicipalVoteNo,$AC:$AC,Sheet1!S71_ItemType,$AD:$AD)","v":0},null,null,null,null,null,null,null,null,null,null,null,null,null,null,null,34,"IE","IZ"]
[{"$f":"'Org structure'!D29","v":"3.5 - [Name of sub-vote]"},null,{"$f":"SUMIFS(Sheet1!S71_OriginalBudget,Sheet1!S71_SubMunicipalVoteNo,$AC:$AC,Sheet1!S71_ItemType,$AD:$AD)","v":0},{"$f":"SUMIFS(Sheet1!S71_PreviousBudget,Sheet1!S71_SubMunicipalVoteNo,$AC:$AC,Sheet1!S71_ItemType,$AD:$AD)","v":0},null,null,null,null,{"$f":"SUMIFS(Sheet1!S71_CurrentAdjustments,Sheet1!S71_SubMunicipalVoteNo,$AC:$AC,Sheet1!S71_ItemType,$AD:$AD)","v":0},0,0,{"$f":"SUMIFS(Sheet1!S71_OY1AdjustedBudget,Sheet1!S71_SubMunicipalVoteNo,$AC:$AC,Sheet1!S71_ItemType,$AD:$AD)","v":0},{"$f":"SUMIFS(Sheet1!S71_OY2AdjustedBudget,Sheet1!S71_SubMunicipalVoteNo,$AC:$AC,Sheet1!S71_ItemType,$AD:$AD)","v":0},null,null,null,null,null,null,null,null,null,null,null,null,null,null,null,35,"IE","IZ"]
[{"$f":"'Org structure'!D30","v":"3.6 - [Name of sub-vote]"},null,{"$f":"SUMIFS(Sheet1!S71_OriginalBudget,Sheet1!S71_SubMunicipalVoteNo,$AC:$AC,Sheet1!S71_ItemType,$AD:$AD)","v":0},{"$f":"SUMIFS(Sheet1!S71_PreviousBudget,Sheet1!S71_SubMunicipalVoteNo,$AC:$AC,Sheet1!S71_ItemType,$AD:$AD)","v":0},null,null,null,null,{"$f":"SUMIFS(Sheet1!S71_CurrentAdjustments,Sheet1!S71_SubMunicipalVoteNo,$AC:$AC,Sheet1!S71_ItemType,$AD:$AD)","v":0},0,0,{"$f":"SUMIFS(Sheet1!S71_OY1AdjustedBudget,Sheet1!S71_SubMunicipalVoteNo,$AC:$AC,Sheet1!S71_ItemType,$AD:$AD)","v":0},{"$f":"SUMIFS(Sheet1!S71_OY2AdjustedBudget,Sheet1!S71_SubMunicipalVoteNo,$AC:$AC,Sheet1!S71_ItemType,$AD:$AD)","v":0},null,null,null,null,null,null,null,null,null,null,null,null,null,null,null,36,"IE","IZ"]
[{"$f":"'Org structure'!D31","v":"3.7 - [Name of sub-vote]"},null,{"$f":"SUMIFS(Sheet1!S71_OriginalBudget,Sheet1!S71_SubMunicipalVoteNo,$AC:$AC,Sheet1!S71_ItemType,$AD:$AD)","v":0},{"$f":"SUMIFS(Sheet1!S71_PreviousBudget,Sheet1!S71_SubMunicipalVoteNo,$AC:$AC,Sheet1!S71_ItemType,$AD:$AD)","v":0},null,null,null,null,{"$f":"SUMIFS(Sheet1!S71_CurrentAdjustments,Sheet1!S71_SubMunicipalVoteNo,$AC:$AC,Sheet1!S71_ItemType,$AD:$AD)","v":0},0,0,{"$f":"SUMIFS(Sheet1!S71_OY1AdjustedBudget,Sheet1!S71_SubMunicipalVoteNo,$AC:$AC,Sheet1!S71_ItemType,$AD:$AD)","v":0},{"$f":"SUMIFS(Sheet1!S71_OY2AdjustedBudget,Sheet1!S71_SubMunicipalVoteNo,$AC:$AC,Sheet1!S71_ItemType,$AD:$AD)","v":0},null,null,null,null,null,null,null,null,null,null,null,null,null,null,null,37,"IE","IZ"]
[{"$f":"'Org structure'!D32","v":"3.8 - [Name of sub-vote]"},null,{"$f":"SUMIFS(Sheet1!S71_OriginalBudget,Sheet1!S71_SubMunicipalVoteNo,$AC:$AC,Sheet1!S71_ItemType,$AD:$AD)","v":0},{"$f":"SUMIFS(Sheet1!S71_PreviousBudget,Sheet1!S71_SubMunicipalVoteNo,$AC:$AC,Sheet1!S71_ItemType,$AD:$AD)","v":0},null,null,null,null,{"$f":"SUMIFS(Sheet1!S71_CurrentAdjustments,Sheet1!S71_SubMunicipalVoteNo,$AC:$AC,Sheet1!S71_ItemType,$AD:$AD)","v":0},0,0,{"$f":"SUMIFS(Sheet1!S71_OY1AdjustedBudget,Sheet1!S71_SubMunicipalVoteNo,$AC:$AC,Sheet1!S71_ItemType,$AD:$AD)","v":0},{"$f":"SUMIFS(Sheet1!S71_OY2AdjustedBudget,Sheet1!S71_SubMunicipalVoteNo,$AC:$AC,Sheet1!S71_ItemType,$AD:$AD)","v":0},null,null,null,null,null,null,null,null,null,null,null,null,null,null,null,38,"IE","IZ"]
[{"$f":"'Org structure'!D33","v":"3.9 - [Name of sub-vote]"},null,{"$f":"SUMIFS(Sheet1!S71_OriginalBudget,Sheet1!S71_SubMunicipalVoteNo,$AC:$AC,Sheet1!S71_ItemType,$AD:$AD)","v":0},{"$f":"SUMIFS(Sheet1!S71_PreviousBudget,Sheet1!S71_SubMunicipalVoteNo,$AC:$AC,Sheet1!S71_ItemType,$AD:$AD)","v":0},null,null,null,null,{"$f":"SUMIFS(Sheet1!S71_CurrentAdjustments,Sheet1!S71_SubMunicipalVoteNo,$AC:$AC,Sheet1!S71_ItemType,$AD:$AD)","v":0},0,0,{"$f":"SUMIFS(Sheet1!S71_OY1AdjustedBudget,Sheet1!S71_SubMunicipalVoteNo,$AC:$AC,Sheet1!S71_ItemType,$AD:$AD)","v":0},{"$f":"SUMIFS(Sheet1!S71_OY2AdjustedBudget,Sheet1!S71_SubMunicipalVoteNo,$AC:$AC,Sheet1!S71_ItemType,$AD:$AD)","v":0},null,null,null,null,null,null,null,null,null,null,null,null,null,null,null,39,"IE","IZ"]
[{"$f":"'Org structure'!D34","v":"3.10 - [Name of sub-vote]"},null,{"$f":"SUMIFS(Sheet1!S71_OriginalBudget,Sheet1!S71_SubMunicipalVoteNo,$AC:$AC,Sheet1!S71_ItemType,$AD:$AD)","v":0},{"$f":"SUMIFS(Sheet1!S71_PreviousBudget,Sheet1!S71_SubMunicipalVoteNo,$AC:$AC,Sheet1!S71_ItemType,$AD:$AD)","v":0},null,null,null,null,{"$f":"SUMIFS(Sheet1!S71_CurrentAdjustments,Sheet1!S71_SubMunicipalVoteNo,$AC:$AC,Sheet1!S71_ItemType,$AD:$AD)","v":0},0,0,{"$f":"SUMIFS(Sheet1!S71_OY1AdjustedBudget,Sheet1!S71_SubMunicipalVoteNo,$AC:$AC,Sheet1!S71_ItemType,$AD:$AD)","v":0},{"$f":"SUMIFS(Sheet1!S71_OY2AdjustedBudget,Sheet1!S71_SubMunicipalVoteNo,$AC:$AC,Sheet1!S71_ItemType,$AD:$AD)","v":0},null,null,null,null,null,null,null,null,null,null,null,null,null,null,null,310,"IE","IZ"]
["Vote 4 - Community and social services",null,{"$f":"SUM(C209:C218)","v":30811229},30452711,0,0,0,0,0,0,30452711,{"$f":"SUM(L209:L218)","v":31707493},{"$f":"SUM(M209:M218)","v":33069256}]
[{"$f":"'Org structure'!D36","v":"4.1 - [Name of sub-vote]"},null,{"$f":"SUMIFS(Sheet1!S71_OriginalBudget,Sheet1!S71_SubMunicipalVoteNo,$AC:$AC,Sheet1!S71_ItemType,$AD:$AD)","v":0},{"$f":"SUMIFS(Sheet1!S71_PreviousBudget,Sheet1!S71_SubMunicipalVoteNo,$AC:$AC,Sheet1!S71_ItemType,$AD:$AD)","v":0},null,null,null,null,{"$f":"SUMIFS(Sheet1!S71_CurrentAdjustments,Sheet1!S71_SubMunicipalVoteNo,$AC:$AC,Sheet1!S71_ItemType,$AD:$AD)","v":0},0,0,{"$f":"SUMIFS(Sheet1!S71_OY1AdjustedBudget,Sheet1!S71_SubMunicipalVoteNo,$AC:$AC,Sheet1!S71_ItemType,$AD:$AD)","v":0},{"$f":"SUMIFS(Sheet1!S71_OY2AdjustedBudget,Sheet1!S71_SubMunicipalVoteNo,$AC:$AC,Sheet1!S71_ItemType,$AD:$AD)","v":0},null,null,null,null,null,null,null,null,null,null,null,null,null,null,null,41,"IE","IZ"]
[{"$f":"'Org structure'!D37","v":"4.2 - Cemeteries, Funeral Parlours and Crematoriums"},null,{"$f":"SUMIFS(Sheet1!S71_OriginalBudget,Sheet1!S71_SubMunicipalVoteNo,$AC:$AC,Sheet1!S71_ItemType,$AD:$AD)","v":550000},{"$f":"SUMIFS(Sheet1!S71_PreviousBudget,Sheet1!S71_SubMunicipalVoteNo,$AC:$AC,Sheet1!S71_ItemType,$AD:$AD)","v":350000},null,null,null,null,{"$f":"SUMIFS(Sheet1!S71_CurrentAdjustments,Sheet1!S71_SubMunicipalVoteNo,$AC:$AC,Sheet1!S71_ItemType,$AD:$AD)","v":0},0,350000,{"$f":"SUMIFS(Sheet1!S71_OY1AdjustedBudget,Sheet1!S71_SubMunicipalVoteNo,$AC:$AC,Sheet1!S71_ItemType,$AD:$AD)","v":575300},{"$f":"SUMIFS(Sheet1!S71_OY2AdjustedBudget,Sheet1!S71_SubMunicipalVoteNo,$AC:$AC,Sheet1!S71_ItemType,$AD:$AD)","v":601760},null,null,null,null,null,null,null,null,null,null,null,null,null,null,null,42,"IE","IZ"]
[{"$f":"'Org structure'!D38","v":"4.3 - Community Halls and Facilities"},null,{"$f":"SUMIFS(Sheet1!S71_OriginalBudget,Sheet1!S71_SubMunicipalVoteNo,$AC:$AC,Sheet1!S71_ItemType,$AD:$AD)","v":22423453},{"$f":"SUMIFS(Sheet1!S71_PreviousBudget,Sheet1!S71_SubMunicipalVoteNo,$AC:$AC,Sheet1!S71_ItemType,$AD:$AD)","v":22692768},null,null,null,null,{"$f":"SUMIFS(Sheet1!S71_CurrentAdjustments,Sheet1!S71_SubMunicipalVoteNo,$AC:$AC,Sheet1!S71_ItemType,$AD:$AD)","v":0},0,22692768,{"$f":"SUMIFS(Sheet1!S71_OY1AdjustedBudget,Sheet1!S71_SubMunicipalVoteNo,$AC:$AC,Sheet1!S71_ItemType,$AD:$AD)","v":22944638},{"$f":"SUMIFS(Sheet1!S71_OY2AdjustedBudget,Sheet1!S71_SubMunicipalVoteNo,$AC:$AC,Sheet1!S71_ItemType,$AD:$AD)","v":23908680},null,null,null,null,null,null,null,null,null,null,null,null,null,null,null,43,"IE","IZ"]
[{"$f":"'Org structure'!D39","v":"4.4 - Libraries and Archives"},null,{"$f":"SUMIFS(Sheet1!S71_OriginalBudget,Sheet1!S71_SubMunicipalVoteNo,$AC:$AC,Sheet1!S71_ItemType,$AD:$AD)","v":5076040},{"$f":"SUMIFS(Sheet1!S71_PreviousBudget,Sheet1!S71_SubMunicipalVoteNo,$AC:$AC,Sheet1!S71_ItemType,$AD:$AD)","v":5072182},null,null,null,null,{"$f":"SUMIFS(Sheet1!S71_CurrentAdjustments,Sheet1!S71_SubMunicipalVoteNo,$AC:$AC,Sheet1!S71_ItemType,$AD:$AD)","v":0},0,5072182,{"$f":"SUMIFS(Sheet1!S71_OY1AdjustedBudget,Sheet1!S71_SubMunicipalVoteNo,$AC:$AC,Sheet1!S71_ItemType,$AD:$AD)","v":5298780},{"$f":"SUMIFS(Sheet1!S71_OY2AdjustedBudget,Sheet1!S71_SubMunicipalVoteNo,$AC:$AC,Sheet1!S71_ItemType,$AD:$AD)","v":5537169},null,null,null,null,null,null,null,null,null,null,null,null,null,null,null,44,"IE","IZ"]
[{"$f":"'Org structure'!D40","v":"4.5 - [Name of sub-vote]"},null,{"$f":"SUMIFS(Sheet1!S71_OriginalBudget,Sheet1!S71_SubMunicipalVoteNo,$AC:$AC,Sheet1!S71_ItemType,$AD:$AD)","v":0},{"$f":"SUMIFS(Sheet1!S71_PreviousBudget,Sheet1!S71_SubMunicipalVoteNo,$AC:$AC,Sheet1!S71_ItemType,$AD:$AD)","v":0},null,null,null,null,{"$f":"SUMIFS(Sheet1!S71_CurrentAdjustments,Sheet1!S71_SubMunicipalVoteNo,$AC:$AC,Sheet1!S71_ItemType,$AD:$AD)","v":0},0,0,{"$f":"SUMIFS(Sheet1!S71_OY1AdjustedBudget,Sheet1!S71_SubMunicipalVoteNo,$AC:$AC,Sheet1!S71_ItemType,$AD:$AD)","v":0},{"$f":"SUMIFS(Sheet1!S71_OY2AdjustedBudget,Sheet1!S71_SubMunicipalVoteNo,$AC:$AC,Sheet1!S71_ItemType,$AD:$AD)","v":0},null,null,null,null,null,null,null,null,null,null,null,null,null,null,null,45,"IE","IZ"]
[{"$f":"'Org structure'!D41","v":"4.6 - Literacy Programmes"},null,{"$f":"SUMIFS(Sheet1!S71_OriginalBudget,Sheet1!S71_SubMunicipalVoteNo,$AC:$AC,Sheet1!S71_ItemType,$AD:$AD)","v":90000},{"$f":"SUMIFS(Sheet1!S71_PreviousBudget,Sheet1!S71_SubMunicipalVoteNo,$AC:$AC,Sheet1!S71_ItemType,$AD:$AD)","v":74900},null,null,null,null,{"$f":"SUMIFS(Sheet1!S71_CurrentAdjustments,Sheet1!S71_SubMunicipalVoteNo,$AC:$AC,Sheet1!S71_ItemType,$AD:$AD)","v":0},0,74900,{"$f":"SUMIFS(Sheet1!S71_OY1AdjustedBudget,Sheet1!S71_SubMunicipalVoteNo,$AC:$AC,Sheet1!S71_ItemType,$AD:$AD)","v":94140},{"$f":"SUMIFS(Sheet1!S71_OY2AdjustedBudget,Sheet1!S71_SubMunicipalVoteNo,$AC:$AC,Sheet1!S71_ItemType,$AD:$AD)","v":98460},null,null,null,null,null,null,null,null,null,null,null,null,null,null,null,46,"IE","IZ"]
[{"$f":"'Org structure'!D42","v":"4.7 - Disaster Management"},null,{"$f":"SUMIFS(Sheet1!S71_OriginalBudget,Sheet1!S71_SubMunicipalVoteNo,$AC:$AC,Sheet1!S71_ItemType,$AD:$AD)","v":2236956},{"$f":"SUMIFS(Sheet1!S71_PreviousBudget,Sheet1!S71_SubMunicipalVoteNo,$AC:$AC,Sheet1!S71_ItemType,$AD:$AD)","v":1828081},null,null,null,null,{"$f":"SUMIFS(Sheet1!S71_CurrentAdjustments,Sheet1!S71_SubMunicipalVoteNo,$AC:$AC,Sheet1!S71_ItemType,$AD:$AD)","v":0},0,1828081,{"$f":"SUMIFS(Sheet1!S71_OY1AdjustedBudget,Sheet1!S71_SubMunicipalVoteNo,$AC:$AC,Sheet1!S71_ItemType,$AD:$AD)","v":2339855},{"$f":"SUMIFS(Sheet1!S71_OY2AdjustedBudget,Sheet1!S71_SubMunicipalVoteNo,$AC:$AC,Sheet1!S71_ItemType,$AD:$AD)","v":2447487},null,null,null,null,null,null,null,null,null,null,null,null,null,null,null,47,"IE","IZ"]
[{"$f":"'Org structure'!D43","v":"4.8 - Animal Care and Diseases"},null,{"$f":"SUMIFS(Sheet1!S71_OriginalBudget,Sheet1!S71_SubMunicipalVoteNo,$AC:$AC,Sheet1!S71_ItemType,$AD:$AD)","v":434780},{"$f":"SUMIFS(Sheet1!S71_PreviousBudget,Sheet1!S71_SubMunicipalVoteNo,$AC:$AC,Sheet1!S71_ItemType,$AD:$AD)","v":434780},null,null,null,null,{"$f":"SUMIFS(Sheet1!S71_CurrentAdjustments,Sheet1!S71_SubMunicipalVoteNo,$AC:$AC,Sheet1!S71_ItemType,$AD:$AD)","v":0},0,434780,{"$f":"SUMIFS(Sheet1!S71_OY1AdjustedBudget,Sheet1!S71_SubMunicipalVoteNo,$AC:$AC,Sheet1!S71_ItemType,$AD:$AD)","v":454780},{"$f":"SUMIFS(Sheet1!S71_OY2AdjustedBudget,Sheet1!S71_SubMunicipalVoteNo,$AC:$AC,Sheet1!S71_ItemType,$AD:$AD)","v":475700},null,null,null,null,null,null,null,null,null,null,null,null,null,null,null,48,"IE","IZ"]
[{"$f":"'Org structure'!D44","v":"4.9 - Child Care Facilities"},null,{"$f":"SUMIFS(Sheet1!S71_OriginalBudget,Sheet1!S71_SubMunicipalVoteNo,$AC:$AC,Sheet1!S71_ItemType,$AD:$AD)","v":0},{"$f":"SUMIFS(Sheet1!S71_PreviousBudget,Sheet1!S71_SubMunicipalVoteNo,$AC:$AC,Sheet1!S71_ItemType,$AD:$AD)","v":0},null,null,null,null,{"$f":"SUMIFS(Sheet1!S71_CurrentAdjustments,Sheet1!S71_SubMunicipalVoteNo,$AC:$AC,Sheet1!S71_ItemType,$AD:$AD)","v":0},0,0,{"$f":"SUMIFS(Sheet1!S71_OY1AdjustedBudget,Sheet1!S71_SubMunicipalVoteNo,$AC:$AC,Sheet1!S71_ItemType,$AD:$AD)","v":0},{"$f":"SUMIFS(Sheet1!S71_OY2AdjustedBudget,Sheet1!S71_SubMunicipalVoteNo,$AC:$AC,Sheet1!S71_ItemType,$AD:$AD)","v":0},null,null,null,null,null,null,null,null,null,null,null,null,null,null,null,49,"IE","IZ"]
[{"$f":"'Org structure'!D45","v":"4.10 - Fire Fighting and Protection"},null,{"$f":"SUMIFS(Sheet1!S71_OriginalBudget,Sheet1!S71_SubMunicipalVoteNo,$AC:$AC,Sheet1!S71_ItemType,$AD:$AD)","v":0},{"$f":"SUMIFS(Sheet1!S71_PreviousBudget,Sheet1!S71_SubMunicipalVoteNo,$AC:$AC,Sheet1!S71_ItemType,$AD:$AD)","v":0},null,null,null,null,{"$f":"SUMIFS(Sheet1!S71_CurrentAdjustments,Sheet1!S71_SubMunicipalVoteNo,$AC:$AC,Sheet1!S71_ItemType,$AD:$AD)","v":0},0,0,{"$f":"SUMIFS(Sheet1!S71_OY1AdjustedBudget,Sheet1!S71_SubMunicipalVoteNo,$AC:$AC,Sheet1!S71_ItemType,$AD:$AD)","v":0},{"$f":"SUMIFS(Sheet1!S71_OY2AdjustedBudget,Sheet1!S71_SubMunicipalVoteNo,$AC:$AC,Sheet1!S71_ItemType,$AD:$AD)","v":0},null,null,null,null,null,null,null,null,null,null,null,null,null,null,null,410,"IE","IZ"]
[{"$f":"A51","v":"Vote 5 - Sport and Recreation"},null,{"$f":"SUM(C220:C229)","v":10029753},13714179,0,0,0,0,0,0,13714179,{"$f":"SUM(L220:L229)","v":10257703},{"$f":"SUM(M220:M229)","v":11101933}]
[{"$f":"'Org structure'!D47","v":"5.1 - Community Parks (including Nurseries)"},null,{"$f":"SUMIFS(Sheet1!S71_OriginalBudget,Sheet1!S71_SubMunicipalVoteNo,$AC:$AC,Sheet1!S71_ItemType,$AD:$AD)","v":5101310},{"$f":"SUMIFS(Sheet1!S71_PreviousBudget,Sheet1!S71_SubMunicipalVoteNo,$AC:$AC,Sheet1!S71_ItemType,$AD:$AD)","v":8161945},null,null,null,null,{"$f":"SUMIFS(Sheet1!S71_CurrentAdjustments,Sheet1!S71_SubMunicipalVoteNo,$AC:$AC,Sheet1!S71_ItemType,$AD:$AD)","v":0},0,8161945,{"$f":"SUMIFS(Sheet1!S71_OY1AdjustedBudget,Sheet1!S71_SubMunicipalVoteNo,$AC:$AC,Sheet1!S71_ItemType,$AD:$AD)","v":5097970},{"$f":"SUMIFS(Sheet1!S71_OY2AdjustedBudget,Sheet1!S71_SubMunicipalVoteNo,$AC:$AC,Sheet1!S71_ItemType,$AD:$AD)","v":5700240},null,null,null,null,null,null,null,null,null,null,null,null,null,null,null,51,"IE","IZ"]
[{"$f":"'Org structure'!D48","v":"5.2 - [Name of sub-vote]"},null,{"$f":"SUMIFS(Sheet1!S71_OriginalBudget,Sheet1!S71_SubMunicipalVoteNo,$AC:$AC,Sheet1!S71_ItemType,$AD:$AD)","v":0},{"$f":"SUMIFS(Sheet1!S71_PreviousBudget,Sheet1!S71_SubMunicipalVoteNo,$AC:$AC,Sheet1!S71_ItemType,$AD:$AD)","v":0},null,null,null,null,{"$f":"SUMIFS(Sheet1!S71_CurrentAdjustments,Sheet1!S71_SubMunicipalVoteNo,$AC:$AC,Sheet1!S71_ItemType,$AD:$AD)","v":0},0,0,{"$f":"SUMIFS(Sheet1!S71_OY1AdjustedBudget,Sheet1!S71_SubMunicipalVoteNo,$AC:$AC,Sheet1!S71_ItemType,$AD:$AD)","v":0},{"$f":"SUMIFS(Sheet1!S71_OY2AdjustedBudget,Sheet1!S71_SubMunicipalVoteNo,$AC:$AC,Sheet1!S71_ItemType,$AD:$AD)","v":0},null,null,null,null,null,null,null,null,null,null,null,null,null,null,null,52,"IE","IZ"]
[{"$f":"'Org structure'!D49","v":"5.3 - Recreational Facilities"},null,{"$f":"SUMIFS(Sheet1!S71_OriginalBudget,Sheet1!S71_SubMunicipalVoteNo,$AC:$AC,Sheet1!S71_ItemType,$AD:$AD)","v":2644100},{"$f":"SUMIFS(Sheet1!S71_PreviousBudget,Sheet1!S71_SubMunicipalVoteNo,$AC:$AC,Sheet1!S71_ItemType,$AD:$AD)","v":2803321},null,null,null,null,{"$f":"SUMIFS(Sheet1!S71_CurrentAdjustments,Sheet1!S71_SubMunicipalVoteNo,$AC:$AC,Sheet1!S71_ItemType,$AD:$AD)","v":0},0,2803321,{"$f":"SUMIFS(Sheet1!S71_OY1AdjustedBudget,Sheet1!S71_SubMunicipalVoteNo,$AC:$AC,Sheet1!S71_ItemType,$AD:$AD)","v":2765710},{"$f":"SUMIFS(Sheet1!S71_OY2AdjustedBudget,Sheet1!S71_SubMunicipalVoteNo,$AC:$AC,Sheet1!S71_ItemType,$AD:$AD)","v":2892950},null,null,null,null,null,null,null,null,null,null,null,null,null,null,null,53,"IE","IZ"]
[{"$f":"'Org structure'!D50","v":"5.4 - Sports Grounds and Stadiums"},null,{"$f":"SUMIFS(Sheet1!S71_OriginalBudget,Sheet1!S71_SubMunicipalVoteNo,$AC:$AC,Sheet1!S71_ItemType,$AD:$AD)","v":2119130},{"$f":"SUMIFS(Sheet1!S71_PreviousBudget,Sheet1!S71_SubMunicipalVoteNo,$AC:$AC,Sheet1!S71_ItemType,$AD:$AD)","v":2534130},null,null,null,null,{"$f":"SUMIFS(Sheet1!S71_CurrentAdjustments,Sheet1!S71_SubMunicipalVoteNo,$AC:$AC,Sheet1!S71_ItemType,$AD:$AD)","v":0},0,2534130,{"$f":"SUMIFS(Sheet1!S71_OY1AdjustedBudget,Sheet1!S71_SubMunicipalVoteNo,$AC:$AC,Sheet1!S71_ItemType,$AD:$AD)","v":2221210},{"$f":"SUMIFS(Sheet1!S71_OY2AdjustedBudget,Sheet1!S71_SubMunicipalVoteNo,$AC:$AC,Sheet1!S71_ItemType,$AD:$AD)","v":2327977},null,null,null,null,null,null,null,null,null,null,null,null,null,null,null,54,"IE","IZ"]
[{"$f":"'Org structure'!D51","v":"5.5 - Beaches and Jetties"},null,{"$f":"SUMIFS(Sheet1!S71_OriginalBudget,Sheet1!S71_SubMunicipalVoteNo,$AC:$AC,Sheet1!S71_ItemType,$AD:$AD)","v":165213},{"$f":"SUMIFS(Sheet1!S71_PreviousBudget,Sheet1!S71_SubMunicipalVoteNo,$AC:$AC,Sheet1!S71_ItemType,$AD:$AD)","v":214783},null,null,null,null,{"$f":"SUMIFS(Sheet1!S71_CurrentAdjustments,Sheet1!S71_SubMunicipalVoteNo,$AC:$AC,Sheet1!S71_ItemType,$AD:$AD)","v":0},0,214783,{"$f":"SUMIFS(Sheet1!S71_OY1AdjustedBudget,Sheet1!S71_SubMunicipalVoteNo,$AC:$AC,Sheet1!S71_ItemType,$AD:$AD)","v":172813},{"$f":"SUMIFS(Sheet1!S71_OY2AdjustedBudget,Sheet1!S71_SubMunicipalVoteNo,$AC:$AC,Sheet1!S71_ItemType,$AD:$AD)","v":180766},null,null,null,null,null,null,null,null,null,null,null,null,null,null,null,55,"IE","IZ"]
[{"$f":"'Org structure'!D52","v":"5.6 - [Name of sub-vote]"},null,{"$f":"SUMIFS(Sheet1!S71_OriginalBudget,Sheet1!S71_SubMunicipalVoteNo,$AC:$AC,Sheet1!S71_ItemType,$AD:$AD)","v":0},{"$f":"SUMIFS(Sheet1!S71_PreviousBudget,Sheet1!S71_SubMunicipalVoteNo,$AC:$AC,Sheet1!S71_ItemType,$AD:$AD)","v":0},null,null,null,null,{"$f":"SUMIFS(Sheet1!S71_CurrentAdjustments,Sheet1!S71_SubMunicipalVoteNo,$AC:$AC,Sheet1!S71_ItemType,$AD:$AD)","v":0},0,0,{"$f":"SUMIFS(Sheet1!S71_OY1AdjustedBudget,Sheet1!S71_SubMunicipalVoteNo,$AC:$AC,Sheet1!S71_ItemType,$AD:$AD)","v":0},{"$f":"SUMIFS(Sheet1!S71_OY2AdjustedBudget,Sheet1!S71_SubMunicipalVoteNo,$AC:$AC,Sheet1!S71_ItemType,$AD:$AD)","v":0},null,null,null,null,null,null,null,null,null,null,null,null,null,null,null,56,"IE","IZ"]
[{"$f":"'Org structure'!D53","v":"5.7 - [Name of sub-vote]"},null,{"$f":"SUMIFS(Sheet1!S71_OriginalBudget,Sheet1!S71_SubMunicipalVoteNo,$AC:$AC,Sheet1!S71_ItemType,$AD:$AD)","v":0},{"$f":"SUMIFS(Sheet1!S71_PreviousBudget,Sheet1!S71_SubMunicipalVoteNo,$AC:$AC,Sheet1!S71_ItemType,$AD:$AD)","v":0},null,null,null,null,{"$f":"SUMIFS(Sheet1!S71_CurrentAdjustments,Sheet1!S71_SubMunicipalVoteNo,$AC:$AC,Sheet1!S71_ItemType,$AD:$AD)","v":0},0,0,{"$f":"SUMIFS(Sheet1!S71_OY1AdjustedBudget,Sheet1!S71_SubMunicipalVoteNo,$AC:$AC,Sheet1!S71_ItemType,$AD:$AD)","v":0},{"$f":"SUMIFS(Sheet1!S71_OY2AdjustedBudget,Sheet1!S71_SubMunicipalVoteNo,$AC:$AC,Sheet1!S71_ItemType,$AD:$AD)","v":0},null,null,null,null,null,null,null,null,null,null,null,null,null,null,null,57,"IE","IZ"]
[{"$f":"'Org structure'!D54","v":"5.8 - [Name of sub-vote]"},null,{"$f":"SUMIFS(Sheet1!S71_OriginalBudget,Sheet1!S71_SubMunicipalVoteNo,$AC:$AC,Sheet1!S71_ItemType,$AD:$AD)","v":0},{"$f":"SUMIFS(Sheet1!S71_PreviousBudget,Sheet1!S71_SubMunicipalVoteNo,$AC:$AC,Sheet1!S71_ItemType,$AD:$AD)","v":0},null,null,null,null,{"$f":"SUMIFS(Sheet1!S71_CurrentAdjustments,Sheet1!S71_SubMunicipalVoteNo,$AC:$AC,Sheet1!S71_ItemType,$AD:$AD)","v":0},0,0,{"$f":"SUMIFS(Sheet1!S71_OY1AdjustedBudget,Sheet1!S71_SubMunicipalVoteNo,$AC:$AC,Sheet1!S71_ItemType,$AD:$AD)","v":0},{"$f":"SUMIFS(Sheet1!S71_OY2AdjustedBudget,Sheet1!S71_SubMunicipalVoteNo,$AC:$AC,Sheet1!S71_ItemType,$AD:$AD)","v":0},null,null,null,null,null,null,null,null,null,null,null,null,null,null,null,58,"IE","IZ"]
[{"$f":"'Org structure'!D55","v":"5.9 - [Name of sub-vote]"},null,{"$f":"SUMIFS(Sheet1!S71_OriginalBudget,Sheet1!S71_SubMunicipalVoteNo,$AC:$AC,Sheet1!S71_ItemType,$AD:$AD)","v":0},{"$f":"SUMIFS(Sheet1!S71_PreviousBudget,Sheet1!S71_SubMunicipalVoteNo,$AC:$AC,Sheet1!S71_ItemType,$AD:$AD)","v":0},null,null,null,null,{"$f":"SUMIFS(Sheet1!S71_CurrentAdjustments,Sheet1!S71_SubMunicipalVoteNo,$AC:$AC,Sheet1!S71_ItemType,$AD:$AD)","v":0},0,0,{"$f":"SUMIFS(Sheet1!S71_OY1AdjustedBudget,Sheet1!S71_SubMunicipalVoteNo,$AC:$AC,Sheet1!S71_ItemType,$AD:$AD)","v":0},{"$f":"SUMIFS(Sheet1!S71_OY2AdjustedBudget,Sheet1!S71_SubMunicipalVoteNo,$AC:$AC,Sheet1!S71_ItemType,$AD:$AD)","v":0},null,null,null,null,null,null,null,null,null,null,null,null,null,null,null,59,"IE","IZ"]
[{"$f":"'Org structure'!D56","v":"5.10 - [Name of sub-vote]"},null,{"$f":"SUMIFS(Sheet1!S71_OriginalBudget,Sheet1!S71_SubMunicipalVoteNo,$AC:$AC,Sheet1!S71_ItemType,$AD:$AD)","v":0},{"$f":"SUMIFS(Sheet1!S71_PreviousBudget,Sheet1!S71_SubMunicipalVoteNo,$AC:$AC,Sheet1!S71_ItemType,$AD:$AD)","v":0},null,null,null,null,{"$f":"SUMIFS(Sheet1!S71_CurrentAdjustments,Sheet1!S71_SubMunicipalVoteNo,$AC:$AC,Sheet1!S71_ItemType,$AD:$AD)","v":0},0,0,{"$f":"SUMIFS(Sheet1!S71_OY1AdjustedBudget,Sheet1!S71_SubMunicipalVoteNo,$AC:$AC,Sheet1!S71_ItemType,$AD:$AD)","v":0},{"$f":"SUMIFS(Sheet1!S71_OY2AdjustedBudget,Sheet1!S71_SubMunicipalVoteNo,$AC:$AC,Sheet1!S71_ItemType,$AD:$AD)","v":0},null,null,null,null,null,null,null,null,null,null,null,null,null,null,null,510,"IE","IZ"]
[{"$f":"A62","v":"Vote 6 - Public safety"},null,{"$f":"SUM(C231:C240)","v":1889565},1746935,0,0,0,0,0,0,1746935,{"$f":"SUM(L231:L240)","v":1976485},{"$f":"SUM(M231:M240)","v":2067395}]
[{"$f":"'Org structure'!D58","v":"6.1 - Police Forces, Traffic and Street Parking Control"},null,{"$f":"SUMIFS(Sheet1!S71_OriginalBudget,Sheet1!S71_SubMunicipalVoteNo,$AC:$AC,Sheet1!S71_ItemType,$AD:$AD)","v":1889565},{"$f":"SUMIFS(Sheet1!S71_PreviousBudget,Sheet1!S71_SubMunicipalVoteNo,$AC:$AC,Sheet1!S71_ItemType,$AD:$AD)","v":1746935},null,null,null,null,{"$f":"SUMIFS(Sheet1!S71_CurrentAdjustments,Sheet1!S71_SubMunicipalVoteNo,$AC:$AC,Sheet1!S71_ItemType,$AD:$AD)","v":0},0,1746935,{"$f":"SUMIFS(Sheet1!S71_OY1AdjustedBudget,Sheet1!S71_SubMunicipalVoteNo,$AC:$AC,Sheet1!S71_ItemType,$AD:$AD)","v":1976485},{"$f":"SUMIFS(Sheet1!S71_OY2AdjustedBudget,Sheet1!S71_SubMunicipalVoteNo,$AC:$AC,Sheet1!S71_ItemType,$AD:$AD)","v":2067395},null,null,null,null,null,null,null,null,null,null,null,null,null,null,null,61,"IE","IZ"]
[{"$f":"'Org structure'!D59","v":"6.2 - [Name of sub-vote]"},null,{"$f":"SUMIFS(Sheet1!S71_OriginalBudget,Sheet1!S71_SubMunicipalVoteNo,$AC:$AC,Sheet1!S71_ItemType,$AD:$AD)","v":0},{"$f":"SUMIFS(Sheet1!S71_PreviousBudget,Sheet1!S71_SubMunicipalVoteNo,$AC:$AC,Sheet1!S71_ItemType,$AD:$AD)","v":0},null,null,null,null,{"$f":"SUMIFS(Sheet1!S71_CurrentAdjustments,Sheet1!S71_SubMunicipalVoteNo,$AC:$AC,Sheet1!S71_ItemType,$AD:$AD)","v":0},0,0,{"$f":"SUMIFS(Sheet1!S71_OY1AdjustedBudget,Sheet1!S71_SubMunicipalVoteNo,$AC:$AC,Sheet1!S71_ItemType,$AD:$AD)","v":0},{"$f":"SUMIFS(Sheet1!S71_OY2AdjustedBudget,Sheet1!S71_SubMunicipalVoteNo,$AC:$AC,Sheet1!S71_ItemType,$AD:$AD)","v":0},null,null,null,null,null,null,null,null,null,null,null,null,null,null,null,62,"IE","IZ"]
[{"$f":"'Org structure'!D60","v":"6.3 - Civil Defence"},null,{"$f":"SUMIFS(Sheet1!S71_OriginalBudget,Sheet1!S71_SubMunicipalVoteNo,$AC:$AC,Sheet1!S71_ItemType,$AD:$AD)","v":0},{"$f":"SUMIFS(Sheet1!S71_PreviousBudget,Sheet1!S71_SubMunicipalVoteNo,$AC:$AC,Sheet1!S71_ItemType,$AD:$AD)","v":0},null,null,null,null,{"$f":"SUMIFS(Sheet1!S71_CurrentAdjustments,Sheet1!S71_SubMunicipalVoteNo,$AC:$AC,Sheet1!S71_ItemType,$AD:$AD)","v":0},0,0,{"$f":"SUMIFS(Sheet1!S71_OY1AdjustedBudget,Sheet1!S71_SubMunicipalVoteNo,$AC:$AC,Sheet1!S71_ItemType,$AD:$AD)","v":0},{"$f":"SUMIFS(Sheet1!S71_OY2AdjustedBudget,Sheet1!S71_SubMunicipalVoteNo,$AC:$AC,Sheet1!S71_ItemType,$AD:$AD)","v":0},null,null,null,null,null,null,null,null,null,null,null,null,null,null,null,63,"IE","IZ"]
[{"$f":"'Org structure'!D61","v":"6.4 - [Name of sub-vote]"},null,{"$f":"SUMIFS(Sheet1!S71_OriginalBudget,Sheet1!S71_SubMunicipalVoteNo,$AC:$AC,Sheet1!S71_ItemType,$AD:$AD)","v":0},{"$f":"SUMIFS(Sheet1!S71_PreviousBudget,Sheet1!S71_SubMunicipalVoteNo,$AC:$AC,Sheet1!S71_ItemType,$AD:$AD)","v":0},null,null,null,null,{"$f":"SUMIFS(Sheet1!S71_CurrentAdjustments,Sheet1!S71_SubMunicipalVoteNo,$AC:$AC,Sheet1!S71_ItemType,$AD:$AD)","v":0},0,0,{"$f":"SUMIFS(Sheet1!S71_OY1AdjustedBudget,Sheet1!S71_SubMunicipalVoteNo,$AC:$AC,Sheet1!S71_ItemType,$AD:$AD)","v":0},{"$f":"SUMIFS(Sheet1!S71_OY2AdjustedBudget,Sheet1!S71_SubMunicipalVoteNo,$AC:$AC,Sheet1!S71_ItemType,$AD:$AD)","v":0},null,null,null,null,null,null,null,null,null,null,null,null,null,null,null,64,"IE","IZ"]
[{"$f":"'Org structure'!D62","v":"6.5 - [Name of sub-vote]"},null,{"$f":"SUMIFS(Sheet1!S71_OriginalBudget,Sheet1!S71_SubMunicipalVoteNo,$AC:$AC,Sheet1!S71_ItemType,$AD:$AD)","v":0},{"$f":"SUMIFS(Sheet1!S71_PreviousBudget,Sheet1!S71_SubMunicipalVoteNo,$AC:$AC,Sheet1!S71_ItemType,$AD:$AD)","v":0},null,null,null,null,{"$f":"SUMIFS(Sheet1!S71_CurrentAdjustments,Sheet1!S71_SubMunicipalVoteNo,$AC:$AC,Sheet1!S71_ItemType,$AD:$AD)","v":0},0,0,{"$f":"SUMIFS(Sheet1!S71_OY1AdjustedBudget,Sheet1!S71_SubMunicipalVoteNo,$AC:$AC,Sheet1!S71_ItemType,$AD:$AD)","v":0},{"$f":"SUMIFS(Sheet1!S71_OY2AdjustedBudget,Sheet1!S71_SubMunicipalVoteNo,$AC:$AC,Sheet1!S71_ItemType,$AD:$AD)","v":0},null,null,null,null,null,null,null,null,null,null,null,null,null,null,null,65,"IE","IZ"]
[{"$f":"'Org structure'!D63","v":"6.6 - [Name of sub-vote]"},null,{"$f":"SUMIFS(Sheet1!S71_OriginalBudget,Sheet1!S71_SubMunicipalVoteNo,$AC:$AC,Sheet1!S71_ItemType,$AD:$AD)","v":0},{"$f":"SUMIFS(Sheet1!S71_PreviousBudget,Sheet1!S71_SubMunicipalVoteNo,$AC:$AC,Sheet1!S71_ItemType,$AD:$AD)","v":0},null,null,null,null,{"$f":"SUMIFS(Sheet1!S71_CurrentAdjustments,Sheet1!S71_SubMunicipalVoteNo,$AC:$AC,Sheet1!S71_ItemType,$AD:$AD)","v":0},0,0,{"$f":"SUMIFS(Sheet1!S71_OY1AdjustedBudget,Sheet1!S71_SubMunicipalVoteNo,$AC:$AC,Sheet1!S71_ItemType,$AD:$AD)","v":0},{"$f":"SUMIFS(Sheet1!S71_OY2AdjustedBudget,Sheet1!S71_SubMunicipalVoteNo,$AC:$AC,Sheet1!S71_ItemType,$AD:$AD)","v":0},null,null,null,null,null,null,null,null,null,null,null,null,null,null,null,66,"IE","IZ"]
[{"$f":"'Org structure'!D64","v":"6.7 - [Name of sub-vote]"},null,{"$f":"SUMIFS(Sheet1!S71_OriginalBudget,Sheet1!S71_SubMunicipalVoteNo,$AC:$AC,Sheet1!S71_ItemType,$AD:$AD)","v":0},{"$f":"SUMIFS(Sheet1!S71_PreviousBudget,Sheet1!S71_SubMunicipalVoteNo,$AC:$AC,Sheet1!S71_ItemType,$AD:$AD)","v":0},null,null,null,null,{"$f":"SUMIFS(Sheet1!S71_CurrentAdjustments,Sheet1!S71_SubMunicipalVoteNo,$AC:$AC,Sheet1!S71_ItemType,$AD:$AD)","v":0},0,0,{"$f":"SUMIFS(Sheet1!S71_OY1AdjustedBudget,Sheet1!S71_SubMunicipalVoteNo,$AC:$AC,Sheet1!S71_ItemType,$AD:$AD)","v":0},{"$f":"SUMIFS(Sheet1!S71_OY2AdjustedBudget,Sheet1!S71_SubMunicipalVoteNo,$AC:$AC,Sheet1!S71_ItemType,$AD:$AD)","v":0},null,null,null,null,null,null,null,null,null,null,null,null,null,null,null,67,"IE","IZ"]
[{"$f":"'Org structure'!D65","v":"6.8 - [Name of sub-vote]"},null,{"$f":"SUMIFS(Sheet1!S71_OriginalBudget,Sheet1!S71_SubMunicipalVoteNo,$AC:$AC,Sheet1!S71_ItemType,$AD:$AD)","v":0},{"$f":"SUMIFS(Sheet1!S71_PreviousBudget,Sheet1!S71_SubMunicipalVoteNo,$AC:$AC,Sheet1!S71_ItemType,$AD:$AD)","v":0},null,null,null,null,{"$f":"SUMIFS(Sheet1!S71_CurrentAdjustments,Sheet1!S71_SubMunicipalVoteNo,$AC:$AC,Sheet1!S71_ItemType,$AD:$AD)","v":0},0,0,{"$f":"SUMIFS(Sheet1!S71_OY1AdjustedBudget,Sheet1!S71_SubMunicipalVoteNo,$AC:$AC,Sheet1!S71_ItemType,$AD:$AD)","v":0},{"$f":"SUMIFS(Sheet1!S71_OY2AdjustedBudget,Sheet1!S71_SubMunicipalVoteNo,$AC:$AC,Sheet1!S71_ItemType,$AD:$AD)","v":0},null,null,null,null,null,null,null,null,null,null,null,null,null,null,null,68,"IE","IZ"]
[{"$f":"'Org structure'!D66","v":"6.9 - [Name of sub-vote]"},null,{"$f":"SUMIFS(Sheet1!S71_OriginalBudget,Sheet1!S71_SubMunicipalVoteNo,$AC:$AC,Sheet1!S71_ItemType,$AD:$AD)","v":0},{"$f":"SUMIFS(Sheet1!S71_PreviousBudget,Sheet1!S71_SubMunicipalVoteNo,$AC:$AC,Sheet1!S71_ItemType,$AD:$AD)","v":0},null,null,null,null,{"$f":"SUMIFS(Sheet1!S71_CurrentAdjustments,Sheet1!S71_SubMunicipalVoteNo,$AC:$AC,Sheet1!S71_ItemType,$AD:$AD)","v":0},0,0,{"$f":"SUMIFS(Sheet1!S71_OY1AdjustedBudget,Sheet1!S71_SubMunicipalVoteNo,$AC:$AC,Sheet1!S71_ItemType,$AD:$AD)","v":0},{"$f":"SUMIFS(Sheet1!S71_OY2AdjustedBudget,Sheet1!S71_SubMunicipalVoteNo,$AC:$AC,Sheet1!S71_ItemType,$AD:$AD)","v":0},null,null,null,null,null,null,null,null,null,null,null,null,null,null,null,69,"IE","IZ"]
[{"$f":"'Org structure'!D67","v":"6.10 - [Name of sub-vote]"},null,{"$f":"SUMIFS(Sheet1!S71_OriginalBudget,Sheet1!S71_SubMunicipalVoteNo,$AC:$AC,Sheet1!S71_ItemType,$AD:$AD)","v":0},{"$f":"SUMIFS(Sheet1!S71_PreviousBudget,Sheet1!S71_SubMunicipalVoteNo,$AC:$AC,Sheet1!S71_ItemType,$AD:$AD)","v":0},null,null,null,null,{"$f":"SUMIFS(Sheet1!S71_CurrentAdjustments,Sheet1!S71_SubMunicipalVoteNo,$AC:$AC,Sheet1!S71_ItemType,$AD:$AD)","v":0},{"$f":"SUM(E240:I240)","v":0},{"$f":"IF(D240=0,C240+J240,D240+J240)","v":0},{"$f":"SUMIFS(Sheet1!S71_OY1AdjustedBudget,Sheet1!S71_SubMunicipalVoteNo,$AC:$AC,Sheet1!S71_ItemType,$AD:$AD)","v":0},{"$f":"SUMIFS(Sheet1!S71_OY2AdjustedBudget,Sheet1!S71_SubMunicipalVoteNo,$AC:$AC,Sheet1!S71_ItemType,$AD:$AD)","v":0},null,null,null,null,null,null,null,null,null,null,null,null,null,null,null,610,"IE","IZ"]
[{"$f":"A73","v":"Vote 7 - Housing"},null,{"$f":"SUM(C242:C251)","v":30000},269078,0,0,0,0,0,0,269078,{"$f":"SUM(L242:L251)","v":31380},{"$f":"SUM(M242:M251)","v":32823}]
[{"$f":"'Org structure'!D69","v":"7.1 - Housing"},null,{"$f":"SUMIFS(Sheet1!S71_OriginalBudget,Sheet1!S71_SubMunicipalVoteNo,$AC:$AC,Sheet1!S71_ItemType,$AD:$AD)","v":0},{"$f":"SUMIFS(Sheet1!S71_PreviousBudget,Sheet1!S71_SubMunicipalVoteNo,$AC:$AC,Sheet1!S71_ItemType,$AD:$AD)","v":219078},null,null,null,null,{"$f":"SUMIFS(Sheet1!S71_CurrentAdjustments,Sheet1!S71_SubMunicipalVoteNo,$AC:$AC,Sheet1!S71_ItemType,$AD:$AD)","v":0},0,219078,{"$f":"SUMIFS(Sheet1!S71_OY1AdjustedBudget,Sheet1!S71_SubMunicipalVoteNo,$AC:$AC,Sheet1!S71_ItemType,$AD:$AD)","v":0},{"$f":"SUMIFS(Sheet1!S71_OY2AdjustedBudget,Sheet1!S71_SubMunicipalVoteNo,$AC:$AC,Sheet1!S71_ItemType,$AD:$AD)","v":0},null,null,null,null,null,null,null,null,null,null,null,null,null,null,null,71,"IE","IZ"]
[{"$f":"'Org structure'!D70","v":"7.2 - Informal Settlements"},null,{"$f":"SUMIFS(Sheet1!S71_OriginalBudget,Sheet1!S71_SubMunicipalVoteNo,$AC:$AC,Sheet1!S71_ItemType,$AD:$AD)","v":30000},{"$f":"SUMIFS(Sheet1!S71_PreviousBudget,Sheet1!S71_SubMunicipalVoteNo,$AC:$AC,Sheet1!S71_ItemType,$AD:$AD)","v":50000},null,null,null,null,{"$f":"SUMIFS(Sheet1!S71_CurrentAdjustments,Sheet1!S71_SubMunicipalVoteNo,$AC:$AC,Sheet1!S71_ItemType,$AD:$AD)","v":0},0,50000,{"$f":"SUMIFS(Sheet1!S71_OY1AdjustedBudget,Sheet1!S71_SubMunicipalVoteNo,$AC:$AC,Sheet1!S71_ItemType,$AD:$AD)","v":31380},{"$f":"SUMIFS(Sheet1!S71_OY2AdjustedBudget,Sheet1!S71_SubMunicipalVoteNo,$AC:$AC,Sheet1!S71_ItemType,$AD:$AD)","v":32823},null,null,null,null,null,null,null,null,null,null,null,null,null,null,null,72,"IE","IZ"]
[{"$f":"'Org structure'!D71","v":"7.3 - [Name of sub-vote]"},null,{"$f":"SUMIFS(Sheet1!S71_OriginalBudget,Sheet1!S71_SubMunicipalVoteNo,$AC:$AC,Sheet1!S71_ItemType,$AD:$AD)","v":0},{"$f":"SUMIFS(Sheet1!S71_PreviousBudget,Sheet1!S71_SubMunicipalVoteNo,$AC:$AC,Sheet1!S71_ItemType,$AD:$AD)","v":0},null,null,null,null,{"$f":"SUMIFS(Sheet1!S71_CurrentAdjustments,Sheet1!S71_SubMunicipalVoteNo,$AC:$AC,Sheet1!S71_ItemType,$AD:$AD)","v":0},0,0,{"$f":"SUMIFS(Sheet1!S71_OY1AdjustedBudget,Sheet1!S71_SubMunicipalVoteNo,$AC:$AC,Sheet1!S71_ItemType,$AD:$AD)","v":0},{"$f":"SUMIFS(Sheet1!S71_OY2AdjustedBudget,Sheet1!S71_SubMunicipalVoteNo,$AC:$AC,Sheet1!S71_ItemType,$AD:$AD)","v":0},null,null,null,null,null,null,null,null,null,null,null,null,null,null,null,73,"IE","IZ"]
[{"$f":"'Org structure'!D72","v":"7.4 - [Name of sub-vote]"},null,{"$f":"SUMIFS(Sheet1!S71_OriginalBudget,Sheet1!S71_SubMunicipalVoteNo,$AC:$AC,Sheet1!S71_ItemType,$AD:$AD)","v":0},{"$f":"SUMIFS(Sheet1!S71_PreviousBudget,Sheet1!S71_SubMunicipalVoteNo,$AC:$AC,Sheet1!S71_ItemType,$AD:$AD)","v":0},null,null,null,null,{"$f":"SUMIFS(Sheet1!S71_CurrentAdjustments,Sheet1!S71_SubMunicipalVoteNo,$AC:$AC,Sheet1!S71_ItemType,$AD:$AD)","v":0},0,0,{"$f":"SUMIFS(Sheet1!S71_OY1AdjustedBudget,Sheet1!S71_SubMunicipalVoteNo,$AC:$AC,Sheet1!S71_ItemType,$AD:$AD)","v":0},{"$f":"SUMIFS(Sheet1!S71_OY2AdjustedBudget,Sheet1!S71_SubMunicipalVoteNo,$AC:$AC,Sheet1!S71_ItemType,$AD:$AD)","v":0},null,null,null,null,null,null,null,null,null,null,null,null,null,null,null,74,"IE","IZ"]
[{"$f":"'Org structure'!D73","v":"7.5 - [Name of sub-vote]"},null,{"$f":"SUMIFS(Sheet1!S71_OriginalBudget,Sheet1!S71_SubMunicipalVoteNo,$AC:$AC,Sheet1!S71_ItemType,$AD:$AD)","v":0},{"$f":"SUMIFS(Sheet1!S71_PreviousBudget,Sheet1!S71_SubMunicipalVoteNo,$AC:$AC,Sheet1!S71_ItemType,$AD:$AD)","v":0},null,null,null,null,{"$f":"SUMIFS(Sheet1!S71_CurrentAdjustments,Sheet1!S71_SubMunicipalVoteNo,$AC:$AC,Sheet1!S71_ItemType,$AD:$AD)","v":0},0,0,{"$f":"SUMIFS(Sheet1!S71_OY1AdjustedBudget,Sheet1!S71_SubMunicipalVoteNo,$AC:$AC,Sheet1!S71_ItemType,$AD:$AD)","v":0},{"$f":"SUMIFS(Sheet1!S71_OY2AdjustedBudget,Sheet1!S71_SubMunicipalVoteNo,$AC:$AC,Sheet1!S71_ItemType,$AD:$AD)","v":0},null,null,null,null,null,null,null,null,null,null,null,null,null,null,null,75,"IE","IZ"]
[{"$f":"'Org structure'!D74","v":"7.6 - [Name of sub-vote]"},null,{"$f":"SUMIFS(Sheet1!S71_OriginalBudget,Sheet1!S71_SubMunicipalVoteNo,$AC:$AC,Sheet1!S71_ItemType,$AD:$AD)","v":0},{"$f":"SUMIFS(Sheet1!S71_PreviousBudget,Sheet1!S71_SubMunicipalVoteNo,$AC:$AC,Sheet1!S71_ItemType,$AD:$AD)","v":0},null,null,null,null,{"$f":"SUMIFS(Sheet1!S71_CurrentAdjustments,Sheet1!S71_SubMunicipalVoteNo,$AC:$AC,Sheet1!S71_ItemType,$AD:$AD)","v":0},0,0,{"$f":"SUMIFS(Sheet1!S71_OY1AdjustedBudget,Sheet1!S71_SubMunicipalVoteNo,$AC:$AC,Sheet1!S71_ItemType,$AD:$AD)","v":0},{"$f":"SUMIFS(Sheet1!S71_OY2AdjustedBudget,Sheet1!S71_SubMunicipalVoteNo,$AC:$AC,Sheet1!S71_ItemType,$AD:$AD)","v":0},null,null,null,null,null,null,null,null,null,null,null,null,null,null,null,76,"IE","IZ"]
[{"$f":"'Org structure'!D75","v":"7.7 - [Name of sub-vote]"},null,{"$f":"SUMIFS(Sheet1!S71_OriginalBudget,Sheet1!S71_SubMunicipalVoteNo,$AC:$AC,Sheet1!S71_ItemType,$AD:$AD)","v":0},{"$f":"SUMIFS(Sheet1!S71_PreviousBudget,Sheet1!S71_SubMunicipalVoteNo,$AC:$AC,Sheet1!S71_ItemType,$AD:$AD)","v":0},null,null,null,null,{"$f":"SUMIFS(Sheet1!S71_CurrentAdjustments,Sheet1!S71_SubMunicipalVoteNo,$AC:$AC,Sheet1!S71_ItemType,$AD:$AD)","v":0},0,0,{"$f":"SUMIFS(Sheet1!S71_OY1AdjustedBudget,Sheet1!S71_SubMunicipalVoteNo,$AC:$AC,Sheet1!S71_ItemType,$AD:$AD)","v":0},{"$f":"SUMIFS(Sheet1!S71_OY2AdjustedBudget,Sheet1!S71_SubMunicipalVoteNo,$AC:$AC,Sheet1!S71_ItemType,$AD:$AD)","v":0},null,null,null,null,null,null,null,null,null,null,null,null,null,null,null,77,"IE","IZ"]
[{"$f":"'Org structure'!D76","v":"7.8 - [Name of sub-vote]"},null,{"$f":"SUMIFS(Sheet1!S71_OriginalBudget,Sheet1!S71_SubMunicipalVoteNo,$AC:$AC,Sheet1!S71_ItemType,$AD:$AD)","v":0},{"$f":"SUMIFS(Sheet1!S71_PreviousBudget,Sheet1!S71_SubMunicipalVoteNo,$AC:$AC,Sheet1!S71_ItemType,$AD:$AD)","v":0},null,null,null,null,{"$f":"SUMIFS(Sheet1!S71_CurrentAdjustments,Sheet1!S71_SubMunicipalVoteNo,$AC:$AC,Sheet1!S71_ItemType,$AD:$AD)","v":0},0,0,{"$f":"SUMIFS(Sheet1!S71_OY1AdjustedBudget,Sheet1!S71_SubMunicipalVoteNo,$AC:$AC,Sheet1!S71_ItemType,$AD:$AD)","v":0},{"$f":"SUMIFS(Sheet1!S71_OY2AdjustedBudget,Sheet1!S71_SubMunicipalVoteNo,$AC:$AC,Sheet1!S71_ItemType,$AD:$AD)","v":0},null,null,null,null,null,null,null,null,null,null,null,null,null,null,null,78,"IE","IZ"]
[{"$f":"'Org structure'!D77","v":"7.9 - [Name of sub-vote]"},null,{"$f":"SUMIFS(Sheet1!S71_OriginalBudget,Sheet1!S71_SubMunicipalVoteNo,$AC:$AC,Sheet1!S71_ItemType,$AD:$AD)","v":0},{"$f":"SUMIFS(Sheet1!S71_PreviousBudget,Sheet1!S71_SubMunicipalVoteNo,$AC:$AC,Sheet1!S71_ItemType,$AD:$AD)","v":0},null,null,null,null,{"$f":"SUMIFS(Sheet1!S71_CurrentAdjustments,Sheet1!S71_SubMunicipalVoteNo,$AC:$AC,Sheet1!S71_ItemType,$AD:$AD)","v":0},0,0,{"$f":"SUMIFS(Sheet1!S71_OY1AdjustedBudget,Sheet1!S71_SubMunicipalVoteNo,$AC:$AC,Sheet1!S71_ItemType,$AD:$AD)","v":0},{"$f":"SUMIFS(Sheet1!S71_OY2AdjustedBudget,Sheet1!S71_SubMunicipalVoteNo,$AC:$AC,Sheet1!S71_ItemType,$AD:$AD)","v":0},null,null,null,null,null,null,null,null,null,null,null,null,null,null,null,79,"IE","IZ"]
[{"$f":"'Org structure'!D78","v":"7.10 - [Name of sub-vote]"},null,{"$f":"SUMIFS(Sheet1!S71_OriginalBudget,Sheet1!S71_SubMunicipalVoteNo,$AC:$AC,Sheet1!S71_ItemType,$AD:$AD)","v":0},{"$f":"SUMIFS(Sheet1!S71_PreviousBudget,Sheet1!S71_SubMunicipalVoteNo,$AC:$AC,Sheet1!S71_ItemType,$AD:$AD)","v":0},null,null,null,null,{"$f":"SUMIFS(Sheet1!S71_CurrentAdjustments,Sheet1!S71_SubMunicipalVoteNo,$AC:$AC,Sheet1!S71_ItemType,$AD:$AD)","v":0},0,0,{"$f":"SUMIFS(Sheet1!S71_OY1AdjustedBudget,Sheet1!S71_SubMunicipalVoteNo,$AC:$AC,Sheet1!S71_ItemType,$AD:$AD)","v":0},{"$f":"SUMIFS(Sheet1!S71_OY2AdjustedBudget,Sheet1!S71_SubMunicipalVoteNo,$AC:$AC,Sheet1!S71_ItemType,$AD:$AD)","v":0},null,null,null,null,null,null,null,null,null,null,null,null,null,null,null,710,"IE","IZ"]
[{"$f":"A84","v":"Vote 8 - Planning and Development"},null,{"$f":"SUM(C253:C262)","v":26591867},25034728,0,0,0,0,0,0,25034728,{"$f":"SUM(L253:L262)","v":24989494},{"$f":"SUM(M253:M262)","v":26191182}]
[{"$f":"'Org structure'!D80","v":"8.1 - Corporate Wide Strategic Planning (IDPs, LEDs)"},null,{"$f":"SUMIFS(Sheet1!S71_OriginalBudget,Sheet1!S71_SubMunicipalVoteNo,$AC:$AC,Sheet1!S71_ItemType,$AD:$AD)","v":1100000},{"$f":"SUMIFS(Sheet1!S71_PreviousBudget,Sheet1!S71_SubMunicipalVoteNo,$AC:$AC,Sheet1!S71_ItemType,$AD:$AD)","v":575674},null,null,null,null,{"$f":"SUMIFS(Sheet1!S71_CurrentAdjustments,Sheet1!S71_SubMunicipalVoteNo,$AC:$AC,Sheet1!S71_ItemType,$AD:$AD)","v":0},0,575674,{"$f":"SUMIFS(Sheet1!S71_OY1AdjustedBudget,Sheet1!S71_SubMunicipalVoteNo,$AC:$AC,Sheet1!S71_ItemType,$AD:$AD)","v":732253},{"$f":"SUMIFS(Sheet1!S71_OY2AdjustedBudget,Sheet1!S71_SubMunicipalVoteNo,$AC:$AC,Sheet1!S71_ItemType,$AD:$AD)","v":756710},null,null,null,null,null,null,null,null,null,null,null,null,null,null,null,81,"IE","IZ"]
[{"$f":"'Org structure'!D81","v":"8.2 - Economic Development/Planning"},null,{"$f":"SUMIFS(Sheet1!S71_OriginalBudget,Sheet1!S71_SubMunicipalVoteNo,$AC:$AC,Sheet1!S71_ItemType,$AD:$AD)","v":7539612},{"$f":"SUMIFS(Sheet1!S71_PreviousBudget,Sheet1!S71_SubMunicipalVoteNo,$AC:$AC,Sheet1!S71_ItemType,$AD:$AD)","v":9289230},null,null,null,null,{"$f":"SUMIFS(Sheet1!S71_CurrentAdjustments,Sheet1!S71_SubMunicipalVoteNo,$AC:$AC,Sheet1!S71_ItemType,$AD:$AD)","v":0},0,9289230,{"$f":"SUMIFS(Sheet1!S71_OY1AdjustedBudget,Sheet1!S71_SubMunicipalVoteNo,$AC:$AC,Sheet1!S71_ItemType,$AD:$AD)","v":5985312},{"$f":"SUMIFS(Sheet1!S71_OY2AdjustedBudget,Sheet1!S71_SubMunicipalVoteNo,$AC:$AC,Sheet1!S71_ItemType,$AD:$AD)","v":6285016},null,null,null,null,null,null,null,null,null,null,null,null,null,null,null,82,"IE","IZ"]
[{"$f":"'Org structure'!D82","v":"8.3 - Project Management Unit"},null,{"$f":"SUMIFS(Sheet1!S71_OriginalBudget,Sheet1!S71_SubMunicipalVoteNo,$AC:$AC,Sheet1!S71_ItemType,$AD:$AD)","v":5312429},{"$f":"SUMIFS(Sheet1!S71_PreviousBudget,Sheet1!S71_SubMunicipalVoteNo,$AC:$AC,Sheet1!S71_ItemType,$AD:$AD)","v":4164611},null,null,null,null,{"$f":"SUMIFS(Sheet1!S71_CurrentAdjustments,Sheet1!S71_SubMunicipalVoteNo,$AC:$AC,Sheet1!S71_ItemType,$AD:$AD)","v":0},0,4164611,{"$f":"SUMIFS(Sheet1!S71_OY1AdjustedBudget,Sheet1!S71_SubMunicipalVoteNo,$AC:$AC,Sheet1!S71_ItemType,$AD:$AD)","v":5556813},{"$f":"SUMIFS(Sheet1!S71_OY2AdjustedBudget,Sheet1!S71_SubMunicipalVoteNo,$AC:$AC,Sheet1!S71_ItemType,$AD:$AD)","v":5812410},null,null,null,null,null,null,null,null,null,null,null,null,null,null,null,83,"IE","IZ"]
[{"$f":"'Org structure'!D83","v":"8.4 - Town Planning, Building Regulations and Enforcement, and City Engineer"},null,{"$f":"SUMIFS(Sheet1!S71_OriginalBudget,Sheet1!S71_SubMunicipalVoteNo,$AC:$AC,Sheet1!S71_ItemType,$AD:$AD)","v":11177234},{"$f":"SUMIFS(Sheet1!S71_PreviousBudget,Sheet1!S71_SubMunicipalVoteNo,$AC:$AC,Sheet1!S71_ItemType,$AD:$AD)","v":9785071},null,null,null,null,{"$f":"SUMIFS(Sheet1!S71_CurrentAdjustments,Sheet1!S71_SubMunicipalVoteNo,$AC:$AC,Sheet1!S71_ItemType,$AD:$AD)","v":0},0,9785071,{"$f":"SUMIFS(Sheet1!S71_OY1AdjustedBudget,Sheet1!S71_SubMunicipalVoteNo,$AC:$AC,Sheet1!S71_ItemType,$AD:$AD)","v":11644720},{"$f":"SUMIFS(Sheet1!S71_OY2AdjustedBudget,Sheet1!S71_SubMunicipalVoteNo,$AC:$AC,Sheet1!S71_ItemType,$AD:$AD)","v":12222195},null,null,null,null,null,null,null,null,null,null,null,null,null,null,null,84,"IE","IZ"]
[{"$f":"'Org structure'!D84","v":"8.5 - Regional Planning and Development"},null,{"$f":"SUMIFS(Sheet1!S71_OriginalBudget,Sheet1!S71_SubMunicipalVoteNo,$AC:$AC,Sheet1!S71_ItemType,$AD:$AD)","v":443754},{"$f":"SUMIFS(Sheet1!S71_PreviousBudget,Sheet1!S71_SubMunicipalVoteNo,$AC:$AC,Sheet1!S71_ItemType,$AD:$AD)","v":401304},null,null,null,null,{"$f":"SUMIFS(Sheet1!S71_CurrentAdjustments,Sheet1!S71_SubMunicipalVoteNo,$AC:$AC,Sheet1!S71_ItemType,$AD:$AD)","v":0},0,401304,{"$f":"SUMIFS(Sheet1!S71_OY1AdjustedBudget,Sheet1!S71_SubMunicipalVoteNo,$AC:$AC,Sheet1!S71_ItemType,$AD:$AD)","v":464167},{"$f":"SUMIFS(Sheet1!S71_OY2AdjustedBudget,Sheet1!S71_SubMunicipalVoteNo,$AC:$AC,Sheet1!S71_ItemType,$AD:$AD)","v":485518},null,null,null,null,null,null,null,null,null,null,null,null,null,null,null,85,"IE","IZ"]
[{"$f":"'Org structure'!D85","v":"8.6 - Development Facilitation"},null,{"$f":"SUMIFS(Sheet1!S71_OriginalBudget,Sheet1!S71_SubMunicipalVoteNo,$AC:$AC,Sheet1!S71_ItemType,$AD:$AD)","v":6870},{"$f":"SUMIFS(Sheet1!S71_PreviousBudget,Sheet1!S71_SubMunicipalVoteNo,$AC:$AC,Sheet1!S71_ItemType,$AD:$AD)","v":6870},null,null,null,null,{"$f":"SUMIFS(Sheet1!S71_CurrentAdjustments,Sheet1!S71_SubMunicipalVoteNo,$AC:$AC,Sheet1!S71_ItemType,$AD:$AD)","v":0},0,6870,{"$f":"SUMIFS(Sheet1!S71_OY1AdjustedBudget,Sheet1!S71_SubMunicipalVoteNo,$AC:$AC,Sheet1!S71_ItemType,$AD:$AD)","v":7186},{"$f":"SUMIFS(Sheet1!S71_OY2AdjustedBudget,Sheet1!S71_SubMunicipalVoteNo,$AC:$AC,Sheet1!S71_ItemType,$AD:$AD)","v":7517},null,null,null,null,null,null,null,null,null,null,null,null,null,null,null,86,"IE","IZ"]
[{"$f":"'Org structure'!D86","v":"8.7 - Central City Improvement District"},null,{"$f":"SUMIFS(Sheet1!S71_OriginalBudget,Sheet1!S71_SubMunicipalVoteNo,$AC:$AC,Sheet1!S71_ItemType,$AD:$AD)","v":135880},{"$f":"SUMIFS(Sheet1!S71_PreviousBudget,Sheet1!S71_SubMunicipalVoteNo,$AC:$AC,Sheet1!S71_ItemType,$AD:$AD)","v":135880},null,null,null,null,{"$f":"SUMIFS(Sheet1!S71_CurrentAdjustments,Sheet1!S71_SubMunicipalVoteNo,$AC:$AC,Sheet1!S71_ItemType,$AD:$AD)","v":0},0,135880,{"$f":"SUMIFS(Sheet1!S71_OY1AdjustedBudget,Sheet1!S71_SubMunicipalVoteNo,$AC:$AC,Sheet1!S71_ItemType,$AD:$AD)","v":142130},{"$f":"SUMIFS(Sheet1!S71_OY2AdjustedBudget,Sheet1!S71_SubMunicipalVoteNo,$AC:$AC,Sheet1!S71_ItemType,$AD:$AD)","v":148670},null,null,null,null,null,null,null,null,null,null,null,null,null,null,null,87,"IE","IZ"]
[{"$f":"'Org structure'!D87","v":"8.8 - [Name of sub-vote]"},null,{"$f":"SUMIFS(Sheet1!S71_OriginalBudget,Sheet1!S71_SubMunicipalVoteNo,$AC:$AC,Sheet1!S71_ItemType,$AD:$AD)","v":0},{"$f":"SUMIFS(Sheet1!S71_PreviousBudget,Sheet1!S71_SubMunicipalVoteNo,$AC:$AC,Sheet1!S71_ItemType,$AD:$AD)","v":0},null,null,null,null,{"$f":"SUMIFS(Sheet1!S71_CurrentAdjustments,Sheet1!S71_SubMunicipalVoteNo,$AC:$AC,Sheet1!S71_ItemType,$AD:$AD)","v":0},0,0,{"$f":"SUMIFS(Sheet1!S71_OY1AdjustedBudget,Sheet1!S71_SubMunicipalVoteNo,$AC:$AC,Sheet1!S71_ItemType,$AD:$AD)","v":0},{"$f":"SUMIFS(Sheet1!S71_OY2AdjustedBudget,Sheet1!S71_SubMunicipalVoteNo,$AC:$AC,Sheet1!S71_ItemType,$AD:$AD)","v":0},null,null,null,null,null,null,null,null,null,null,null,null,null,null,null,88,"IE","IZ"]
[{"$f":"'Org structure'!D88","v":"8.9 - Tourism"},null,{"$f":"SUMIFS(Sheet1!S71_OriginalBudget,Sheet1!S71_SubMunicipalVoteNo,$AC:$AC,Sheet1!S71_ItemType,$AD:$AD)","v":876088},{"$f":"SUMIFS(Sheet1!S71_PreviousBudget,Sheet1!S71_SubMunicipalVoteNo,$AC:$AC,Sheet1!S71_ItemType,$AD:$AD)","v":676088},null,null,null,null,{"$f":"SUMIFS(Sheet1!S71_CurrentAdjustments,Sheet1!S71_SubMunicipalVoteNo,$AC:$AC,Sheet1!S71_ItemType,$AD:$AD)","v":0},0,676088,{"$f":"SUMIFS(Sheet1!S71_OY1AdjustedBudget,Sheet1!S71_SubMunicipalVoteNo,$AC:$AC,Sheet1!S71_ItemType,$AD:$AD)","v":456913},{"$f":"SUMIFS(Sheet1!S71_OY2AdjustedBudget,Sheet1!S71_SubMunicipalVoteNo,$AC:$AC,Sheet1!S71_ItemType,$AD:$AD)","v":473146},null,null,null,null,null,null,null,null,null,null,null,null,null,null,null,89,"IE","IZ"]
[{"$f":"'Org structure'!D89","v":"8.10 - Billboards"},null,{"$f":"SUMIFS(Sheet1!S71_OriginalBudget,Sheet1!S71_SubMunicipalVoteNo,$AC:$AC,Sheet1!S71_ItemType,$AD:$AD)","v":0},{"$f":"SUMIFS(Sheet1!S71_PreviousBudget,Sheet1!S71_SubMunicipalVoteNo,$AC:$AC,Sheet1!S71_ItemType,$AD:$AD)","v":0},null,null,null,null,{"$f":"SUMIFS(Sheet1!S71_CurrentAdjustments,Sheet1!S71_SubMunicipalVoteNo,$AC:$AC,Sheet1!S71_ItemType,$AD:$AD)","v":0},0,0,{"$f":"SUMIFS(Sheet1!S71_OY1AdjustedBudget,Sheet1!S71_SubMunicipalVoteNo,$AC:$AC,Sheet1!S71_ItemType,$AD:$AD)","v":0},{"$f":"SUMIFS(Sheet1!S71_OY2AdjustedBudget,Sheet1!S71_SubMunicipalVoteNo,$AC:$AC,Sheet1!S71_ItemType,$AD:$AD)","v":0},null,null,null,null,null,null,null,null,null,null,null,null,null,null,null,810,"IE","IZ"]
[{"$f":"A95","v":"Vote 9 - Road transport"},null,{"$f":"SUM(C264:C273)","v":56225396},57455784,0,0,0,0,0,0,57455784,{"$f":"SUM(L264:L273)","v":58480686},{"$f":"SUM(M264:M273)","v":59861533}]
[{"$f":"'Org structure'!D91","v":"9.1 - Roads"},null,{"$f":"SUMIFS(Sheet1!S71_OriginalBudget,Sheet1!S71_SubMunicipalVoteNo,$AC:$AC,Sheet1!S71_ItemType,$AD:$AD)","v":39829006},{"$f":"SUMIFS(Sheet1!S71_PreviousBudget,Sheet1!S71_SubMunicipalVoteNo,$AC:$AC,Sheet1!S71_ItemType,$AD:$AD)","v":41224838},null,null,null,null,{"$f":"SUMIFS(Sheet1!S71_CurrentAdjustments,Sheet1!S71_SubMunicipalVoteNo,$AC:$AC,Sheet1!S71_ItemType,$AD:$AD)","v":0},0,41224838,{"$f":"SUMIFS(Sheet1!S71_OY1AdjustedBudget,Sheet1!S71_SubMunicipalVoteNo,$AC:$AC,Sheet1!S71_ItemType,$AD:$AD)","v":41374887},{"$f":"SUMIFS(Sheet1!S71_OY2AdjustedBudget,Sheet1!S71_SubMunicipalVoteNo,$AC:$AC,Sheet1!S71_ItemType,$AD:$AD)","v":43043934},null,null,null,null,null,null,null,null,null,null,null,null,null,null,null,91,"IE","IZ"]
[{"$f":"'Org structure'!D92","v":"9.2 - Road and Traffic Regulation"},null,{"$f":"SUMIFS(Sheet1!S71_OriginalBudget,Sheet1!S71_SubMunicipalVoteNo,$AC:$AC,Sheet1!S71_ItemType,$AD:$AD)","v":13593960},{"$f":"SUMIFS(Sheet1!S71_PreviousBudget,Sheet1!S71_SubMunicipalVoteNo,$AC:$AC,Sheet1!S71_ItemType,$AD:$AD)","v":13428516},null,null,null,null,{"$f":"SUMIFS(Sheet1!S71_CurrentAdjustments,Sheet1!S71_SubMunicipalVoteNo,$AC:$AC,Sheet1!S71_ItemType,$AD:$AD)","v":0},0,13428516,{"$f":"SUMIFS(Sheet1!S71_OY1AdjustedBudget,Sheet1!S71_SubMunicipalVoteNo,$AC:$AC,Sheet1!S71_ItemType,$AD:$AD)","v":14219300},{"$f":"SUMIFS(Sheet1!S71_OY2AdjustedBudget,Sheet1!S71_SubMunicipalVoteNo,$AC:$AC,Sheet1!S71_ItemType,$AD:$AD)","v":13873370},null,null,null,null,null,null,null,null,null,null,null,null,null,null,null,92,"IE","IZ"]
[{"$f":"'Org structure'!D93","v":"9.3 - Storm Water Management"},null,{"$f":"SUMIFS(Sheet1!S71_OriginalBudget,Sheet1!S71_SubMunicipalVoteNo,$AC:$AC,Sheet1!S71_ItemType,$AD:$AD)","v":2802430},{"$f":"SUMIFS(Sheet1!S71_PreviousBudget,Sheet1!S71_SubMunicipalVoteNo,$AC:$AC,Sheet1!S71_ItemType,$AD:$AD)","v":2802430},null,null,null,null,{"$f":"SUMIFS(Sheet1!S71_CurrentAdjustments,Sheet1!S71_SubMunicipalVoteNo,$AC:$AC,Sheet1!S71_ItemType,$AD:$AD)","v":0},0,2802430,{"$f":"SUMIFS(Sheet1!S71_OY1AdjustedBudget,Sheet1!S71_SubMunicipalVoteNo,$AC:$AC,Sheet1!S71_ItemType,$AD:$AD)","v":2886499},{"$f":"SUMIFS(Sheet1!S71_OY2AdjustedBudget,Sheet1!S71_SubMunicipalVoteNo,$AC:$AC,Sheet1!S71_ItemType,$AD:$AD)","v":2944229},null,null,null,null,null,null,null,null,null,null,null,null,null,null,null,93,"IE","IZ"]
[{"$f":"'Org structure'!D94","v":"9.4 - [Name of sub-vote]"},null,{"$f":"SUMIFS(Sheet1!S71_OriginalBudget,Sheet1!S71_SubMunicipalVoteNo,$AC:$AC,Sheet1!S71_ItemType,$AD:$AD)","v":0},{"$f":"SUMIFS(Sheet1!S71_PreviousBudget,Sheet1!S71_SubMunicipalVoteNo,$AC:$AC,Sheet1!S71_ItemType,$AD:$AD)","v":0},null,null,null,null,{"$f":"SUMIFS(Sheet1!S71_CurrentAdjustments,Sheet1!S71_SubMunicipalVoteNo,$AC:$AC,Sheet1!S71_ItemType,$AD:$AD)","v":0},0,0,{"$f":"SUMIFS(Sheet1!S71_OY1AdjustedBudget,Sheet1!S71_SubMunicipalVoteNo,$AC:$AC,Sheet1!S71_ItemType,$AD:$AD)","v":0},{"$f":"SUMIFS(Sheet1!S71_OY2AdjustedBudget,Sheet1!S71_SubMunicipalVoteNo,$AC:$AC,Sheet1!S71_ItemType,$AD:$AD)","v":0},null,null,null,null,null,null,null,null,null,null,null,null,null,null,null,94,"IE","IZ"]
[{"$f":"'Org structure'!D95","v":"9.5 - [Name of sub-vote]"},null,{"$f":"SUMIFS(Sheet1!S71_OriginalBudget,Sheet1!S71_SubMunicipalVoteNo,$AC:$AC,Sheet1!S71_ItemType,$AD:$AD)","v":0},{"$f":"SUMIFS(Sheet1!S71_PreviousBudget,Sheet1!S71_SubMunicipalVoteNo,$AC:$AC,Sheet1!S71_ItemType,$AD:$AD)","v":0},null,null,null,null,{"$f":"SUMIFS(Sheet1!S71_CurrentAdjustments,Sheet1!S71_SubMunicipalVoteNo,$AC:$AC,Sheet1!S71_ItemType,$AD:$AD)","v":0},0,0,{"$f":"SUMIFS(Sheet1!S71_OY1AdjustedBudget,Sheet1!S71_SubMunicipalVoteNo,$AC:$AC,Sheet1!S71_ItemType,$AD:$AD)","v":0},{"$f":"SUMIFS(Sheet1!S71_OY2AdjustedBudget,Sheet1!S71_SubMunicipalVoteNo,$AC:$AC,Sheet1!S71_ItemType,$AD:$AD)","v":0},null,null,null,null,null,null,null,null,null,null,null,null,null,null,null,95,"IE","IZ"]
[{"$f":"'Org structure'!D96","v":"9.6 - [Name of sub-vote]"},null,{"$f":"SUMIFS(Sheet1!S71_OriginalBudget,Sheet1!S71_SubMunicipalVoteNo,$AC:$AC,Sheet1!S71_ItemType,$AD:$AD)","v":0},{"$f":"SUMIFS(Sheet1!S71_PreviousBudget,Sheet1!S71_SubMunicipalVoteNo,$AC:$AC,Sheet1!S71_ItemType,$AD:$AD)","v":0},null,null,null,null,{"$f":"SUMIFS(Sheet1!S71_CurrentAdjustments,Sheet1!S71_SubMunicipalVoteNo,$AC:$AC,Sheet1!S71_ItemType,$AD:$AD)","v":0},0,0,{"$f":"SUMIFS(Sheet1!S71_OY1AdjustedBudget,Sheet1!S71_SubMunicipalVoteNo,$AC:$AC,Sheet1!S71_ItemType,$AD:$AD)","v":0},{"$f":"SUMIFS(Sheet1!S71_OY2AdjustedBudget,Sheet1!S71_SubMunicipalVoteNo,$AC:$AC,Sheet1!S71_ItemType,$AD:$AD)","v":0},null,null,null,null,null,null,null,null,null,null,null,null,null,null,null,96,"IE","IZ"]
[{"$f":"'Org structure'!D97","v":"9.7 - [Name of sub-vote]"},null,{"$f":"SUMIFS(Sheet1!S71_OriginalBudget,Sheet1!S71_SubMunicipalVoteNo,$AC:$AC,Sheet1!S71_ItemType,$AD:$AD)","v":0},{"$f":"SUMIFS(Sheet1!S71_PreviousBudget,Sheet1!S71_SubMunicipalVoteNo,$AC:$AC,Sheet1!S71_ItemType,$AD:$AD)","v":0},null,null,null,null,{"$f":"SUMIFS(Sheet1!S71_CurrentAdjustments,Sheet1!S71_SubMunicipalVoteNo,$AC:$AC,Sheet1!S71_ItemType,$AD:$AD)","v":0},0,0,{"$f":"SUMIFS(Sheet1!S71_OY1AdjustedBudget,Sheet1!S71_SubMunicipalVoteNo,$AC:$AC,Sheet1!S71_ItemType,$AD:$AD)","v":0},{"$f":"SUMIFS(Sheet1!S71_OY2AdjustedBudget,Sheet1!S71_SubMunicipalVoteNo,$AC:$AC,Sheet1!S71_ItemType,$AD:$AD)","v":0},null,null,null,null,null,null,null,null,null,null,null,null,null,null,null,97,"IE","IZ"]
[{"$f":"'Org structure'!D98","v":"9.8 - [Name of sub-vote]"},null,{"$f":"SUMIFS(Sheet1!S71_OriginalBudget,Sheet1!S71_SubMunicipalVoteNo,$AC:$AC,Sheet1!S71_ItemType,$AD:$AD)","v":0},{"$f":"SUMIFS(Sheet1!S71_PreviousBudget,Sheet1!S71_SubMunicipalVoteNo,$AC:$AC,Sheet1!S71_ItemType,$AD:$AD)","v":0},null,null,null,null,{"$f":"SUMIFS(Sheet1!S71_CurrentAdjustments,Sheet1!S71_SubMunicipalVoteNo,$AC:$AC,Sheet1!S71_ItemType,$AD:$AD)","v":0},0,0,{"$f":"SUMIFS(Sheet1!S71_OY1AdjustedBudget,Sheet1!S71_SubMunicipalVoteNo,$AC:$AC,Sheet1!S71_ItemType,$AD:$AD)","v":0},{"$f":"SUMIFS(Sheet1!S71_OY2AdjustedBudget,Sheet1!S71_SubMunicipalVoteNo,$AC:$AC,Sheet1!S71_ItemType,$AD:$AD)","v":0},null,null,null,null,null,null,null,null,null,null,null,null,null,null,null,98,"IE","IZ"]
[{"$f":"'Org structure'!D99","v":"9.9 - [Name of sub-vote]"},null,{"$f":"SUMIFS(Sheet1!S71_OriginalBudget,Sheet1!S71_SubMunicipalVoteNo,$AC:$AC,Sheet1!S71_ItemType,$AD:$AD)","v":0},{"$f":"SUMIFS(Sheet1!S71_PreviousBudget,Sheet1!S71_SubMunicipalVoteNo,$AC:$AC,Sheet1!S71_ItemType,$AD:$AD)","v":0},null,null,null,null,{"$f":"SUMIFS(Sheet1!S71_CurrentAdjustments,Sheet1!S71_SubMunicipalVoteNo,$AC:$AC,Sheet1!S71_ItemType,$AD:$AD)","v":0},0,0,{"$f":"SUMIFS(Sheet1!S71_OY1AdjustedBudget,Sheet1!S71_SubMunicipalVoteNo,$AC:$AC,Sheet1!S71_ItemType,$AD:$AD)","v":0},{"$f":"SUMIFS(Sheet1!S71_OY2AdjustedBudget,Sheet1!S71_SubMunicipalVoteNo,$AC:$AC,Sheet1!S71_ItemType,$AD:$AD)","v":0},null,null,null,null,null,null,null,null,null,null,null,null,null,null,null,99,"IE","IZ"]
[{"$f":"'Org structure'!D100","v":"9.10 - [Name of sub-vote]"},null,{"$f":"SUMIFS(Sheet1!S71_OriginalBudget,Sheet1!S71_SubMunicipalVoteNo,$AC:$AC,Sheet1!S71_ItemType,$AD:$AD)","v":0},{"$f":"SUMIFS(Sheet1!S71_PreviousBudget,Sheet1!S71_SubMunicipalVoteNo,$AC:$AC,Sheet1!S71_ItemType,$AD:$AD)","v":0},null,null,null,null,{"$f":"SUMIFS(Sheet1!S71_CurrentAdjustments,Sheet1!S71_SubMunicipalVoteNo,$AC:$AC,Sheet1!S71_ItemType,$AD:$AD)","v":0},0,0,{"$f":"SUMIFS(Sheet1!S71_OY1AdjustedBudget,Sheet1!S71_SubMunicipalVoteNo,$AC:$AC,Sheet1!S71_ItemType,$AD:$AD)","v":0},{"$f":"SUMIFS(Sheet1!S71_OY2AdjustedBudget,Sheet1!S71_SubMunicipalVoteNo,$AC:$AC,Sheet1!S71_ItemType,$AD:$AD)","v":0},null,null,null,null,null,null,null,null,null,null,null,null,null,null,null,910,"IE","IZ"]
[{"$f":"A106","v":"Vote 10 - Energy sources"},null,{"$f":"SUM(C275:C284)","v":76143194},76674248,0,0,0,-6719130,0,-6719130,69955118,{"$f":"SUM(L275:L284)","v":76813179},{"$f":"SUM(M275:M284)","v":81119364}]
[{"$f":"'Org structure'!D102","v":"10.1 - Electricity"},null,{"$f":"SUMIFS(Sheet1!S71_OriginalBudget,Sheet1!S71_SubMunicipalVoteNo,$AC:$AC,Sheet1!S71_ItemType,$AD:$AD)","v":76143194},{"$f":"SUMIFS(Sheet1!S71_PreviousBudget,Sheet1!S71_SubMunicipalVoteNo,$AC:$AC,Sheet1!S71_ItemType,$AD:$AD)","v":76674248},null,null,null,{"$f":"SUMIFS(Sheet1!S71_CurrentAdjustments,Sheet1!S71_SubMunicipalVoteNo,$AC:$AC,Sheet1!S71_ItemType,$AD:$AD)","v":-6719130},0,-6719130,69955118,{"$f":"SUMIFS(Sheet1!S71_OY1AdjustedBudget,Sheet1!S71_SubMunicipalVoteNo,$AC:$AC,Sheet1!S71_ItemType,$AD:$AD)","v":76813179},{"$f":"SUMIFS(Sheet1!S71_OY2AdjustedBudget,Sheet1!S71_SubMunicipalVoteNo,$AC:$AC,Sheet1!S71_ItemType,$AD:$AD)","v":81119364},null,null,null,null,null,null,null,null,null,null,null,null,null,null,null,101,"IE","IZ"]
[{"$f":"'Org structure'!D103","v":"10.2 - Street Lighting and Signal Systems"},null,{"$f":"SUMIFS(Sheet1!S71_OriginalBudget,Sheet1!S71_SubMunicipalVoteNo,$AC:$AC,Sheet1!S71_ItemType,$AD:$AD)","v":0},{"$f":"SUMIFS(Sheet1!S71_PreviousBudget,Sheet1!S71_SubMunicipalVoteNo,$AC:$AC,Sheet1!S71_ItemType,$AD:$AD)","v":0},null,null,null,null,{"$f":"SUMIFS(Sheet1!S71_CurrentAdjustments,Sheet1!S71_SubMunicipalVoteNo,$AC:$AC,Sheet1!S71_ItemType,$AD:$AD)","v":0},0,0,{"$f":"SUMIFS(Sheet1!S71_OY1AdjustedBudget,Sheet1!S71_SubMunicipalVoteNo,$AC:$AC,Sheet1!S71_ItemType,$AD:$AD)","v":0},{"$f":"SUMIFS(Sheet1!S71_OY2AdjustedBudget,Sheet1!S71_SubMunicipalVoteNo,$AC:$AC,Sheet1!S71_ItemType,$AD:$AD)","v":0},null,null,null,null,null,null,null,null,null,null,null,null,null,null,null,102,"IE","IZ"]
[{"$f":"'Org structure'!D104","v":"10.3 - [Name of sub-vote]"},null,{"$f":"SUMIFS(Sheet1!S71_OriginalBudget,Sheet1!S71_SubMunicipalVoteNo,$AC:$AC,Sheet1!S71_ItemType,$AD:$AD)","v":0},{"$f":"SUMIFS(Sheet1!S71_PreviousBudget,Sheet1!S71_SubMunicipalVoteNo,$AC:$AC,Sheet1!S71_ItemType,$AD:$AD)","v":0},null,null,null,null,{"$f":"SUMIFS(Sheet1!S71_CurrentAdjustments,Sheet1!S71_SubMunicipalVoteNo,$AC:$AC,Sheet1!S71_ItemType,$AD:$AD)","v":0},0,0,{"$f":"SUMIFS(Sheet1!S71_OY1AdjustedBudget,Sheet1!S71_SubMunicipalVoteNo,$AC:$AC,Sheet1!S71_ItemType,$AD:$AD)","v":0},{"$f":"SUMIFS(Sheet1!S71_OY2AdjustedBudget,Sheet1!S71_SubMunicipalVoteNo,$AC:$AC,Sheet1!S71_ItemType,$AD:$AD)","v":0},null,null,null,null,null,null,null,null,null,null,null,null,null,null,null,103,"IE","IZ"]
[{"$f":"'Org structure'!D105","v":"10.4 - [Name of sub-vote]"},null,{"$f":"SUMIFS(Sheet1!S71_OriginalBudget,Sheet1!S71_SubMunicipalVoteNo,$AC:$AC,Sheet1!S71_ItemType,$AD:$AD)","v":0},{"$f":"SUMIFS(Sheet1!S71_PreviousBudget,Sheet1!S71_SubMunicipalVoteNo,$AC:$AC,Sheet1!S71_ItemType,$AD:$AD)","v":0},null,null,null,null,{"$f":"SUMIFS(Sheet1!S71_CurrentAdjustments,Sheet1!S71_SubMunicipalVoteNo,$AC:$AC,Sheet1!S71_ItemType,$AD:$AD)","v":0},0,0,{"$f":"SUMIFS(Sheet1!S71_OY1AdjustedBudget,Sheet1!S71_SubMunicipalVoteNo,$AC:$AC,Sheet1!S71_ItemType,$AD:$AD)","v":0},{"$f":"SUMIFS(Sheet1!S71_OY2AdjustedBudget,Sheet1!S71_SubMunicipalVoteNo,$AC:$AC,Sheet1!S71_ItemType,$AD:$AD)","v":0},null,null,null,null,null,null,null,null,null,null,null,null,null,null,null,104,"IE","IZ"]
[{"$f":"'Org structure'!D106","v":"10.5 - [Name of sub-vote]"},null,{"$f":"SUMIFS(Sheet1!S71_OriginalBudget,Sheet1!S71_SubMunicipalVoteNo,$AC:$AC,Sheet1!S71_ItemType,$AD:$AD)","v":0},{"$f":"SUMIFS(Sheet1!S71_PreviousBudget,Sheet1!S71_SubMunicipalVoteNo,$AC:$AC,Sheet1!S71_ItemType,$AD:$AD)","v":0},null,null,null,null,{"$f":"SUMIFS(Sheet1!S71_CurrentAdjustments,Sheet1!S71_SubMunicipalVoteNo,$AC:$AC,Sheet1!S71_ItemType,$AD:$AD)","v":0},0,0,{"$f":"SUMIFS(Sheet1!S71_OY1AdjustedBudget,Sheet1!S71_SubMunicipalVoteNo,$AC:$AC,Sheet1!S71_ItemType,$AD:$AD)","v":0},{"$f":"SUMIFS(Sheet1!S71_OY2AdjustedBudget,Sheet1!S71_SubMunicipalVoteNo,$AC:$AC,Sheet1!S71_ItemType,$AD:$AD)","v":0},null,null,null,null,null,null,null,null,null,null,null,null,null,null,null,105,"IE","IZ"]
[{"$f":"'Org structure'!D107","v":"10.6 - [Name of sub-vote]"},null,{"$f":"SUMIFS(Sheet1!S71_OriginalBudget,Sheet1!S71_SubMunicipalVoteNo,$AC:$AC,Sheet1!S71_ItemType,$AD:$AD)","v":0},{"$f":"SUMIFS(Sheet1!S71_PreviousBudget,Sheet1!S71_SubMunicipalVoteNo,$AC:$AC,Sheet1!S71_ItemType,$AD:$AD)","v":0},null,null,null,null,{"$f":"SUMIFS(Sheet1!S71_CurrentAdjustments,Sheet1!S71_SubMunicipalVoteNo,$AC:$AC,Sheet1!S71_ItemType,$AD:$AD)","v":0},0,0,{"$f":"SUMIFS(Sheet1!S71_OY1AdjustedBudget,Sheet1!S71_SubMunicipalVoteNo,$AC:$AC,Sheet1!S71_ItemType,$AD:$AD)","v":0},{"$f":"SUMIFS(Sheet1!S71_OY2AdjustedBudget,Sheet1!S71_SubMunicipalVoteNo,$AC:$AC,Sheet1!S71_ItemType,$AD:$AD)","v":0},null,null,null,null,null,null,null,null,null,null,null,null,null,null,null,106,"IE","IZ"]
[{"$f":"'Org structure'!D108","v":"10.7 - [Name of sub-vote]"},null,{"$f":"SUMIFS(Sheet1!S71_OriginalBudget,Sheet1!S71_SubMunicipalVoteNo,$AC:$AC,Sheet1!S71_ItemType,$AD:$AD)","v":0},{"$f":"SUMIFS(Sheet1!S71_PreviousBudget,Sheet1!S71_SubMunicipalVoteNo,$AC:$AC,Sheet1!S71_ItemType,$AD:$AD)","v":0},null,null,null,null,{"$f":"SUMIFS(Sheet1!S71_CurrentAdjustments,Sheet1!S71_SubMunicipalVoteNo,$AC:$AC,Sheet1!S71_ItemType,$AD:$AD)","v":0},0,0,{"$f":"SUMIFS(Sheet1!S71_OY1AdjustedBudget,Sheet1!S71_SubMunicipalVoteNo,$AC:$AC,Sheet1!S71_ItemType,$AD:$AD)","v":0},{"$f":"SUMIFS(Sheet1!S71_OY2AdjustedBudget,Sheet1!S71_SubMunicipalVoteNo,$AC:$AC,Sheet1!S71_ItemType,$AD:$AD)","v":0},null,null,null,null,null,null,null,null,null,null,null,null,null,null,null,107,"IE","IZ"]
[{"$f":"'Org structure'!D109","v":"10.8 - [Name of sub-vote]"},null,{"$f":"SUMIFS(Sheet1!S71_OriginalBudget,Sheet1!S71_SubMunicipalVoteNo,$AC:$AC,Sheet1!S71_ItemType,$AD:$AD)","v":0},{"$f":"SUMIFS(Sheet1!S71_PreviousBudget,Sheet1!S71_SubMunicipalVoteNo,$AC:$AC,Sheet1!S71_ItemType,$AD:$AD)","v":0},null,null,null,null,{"$f":"SUMIFS(Sheet1!S71_CurrentAdjustments,Sheet1!S71_SubMunicipalVoteNo,$AC:$AC,Sheet1!S71_ItemType,$AD:$AD)","v":0},0,0,{"$f":"SUMIFS(Sheet1!S71_OY1AdjustedBudget,Sheet1!S71_SubMunicipalVoteNo,$AC:$AC,Sheet1!S71_ItemType,$AD:$AD)","v":0},{"$f":"SUMIFS(Sheet1!S71_OY2AdjustedBudget,Sheet1!S71_SubMunicipalVoteNo,$AC:$AC,Sheet1!S71_ItemType,$AD:$AD)","v":0},null,null,null,null,null,null,null,null,null,null,null,null,null,null,null,108,"IE","IZ"]
[{"$f":"'Org structure'!D110","v":"10.9 - [Name of sub-vote]"},null,{"$f":"SUMIFS(Sheet1!S71_OriginalBudget,Sheet1!S71_SubMunicipalVoteNo,$AC:$AC,Sheet1!S71_ItemType,$AD:$AD)","v":0},{"$f":"SUMIFS(Sheet1!S71_PreviousBudget,Sheet1!S71_SubMunicipalVoteNo,$AC:$AC,Sheet1!S71_ItemType,$AD:$AD)","v":0},null,null,null,null,{"$f":"SUMIFS(Sheet1!S71_CurrentAdjustments,Sheet1!S71_SubMunicipalVoteNo,$AC:$AC,Sheet1!S71_ItemType,$AD:$AD)","v":0},0,0,{"$f":"SUMIFS(Sheet1!S71_OY1AdjustedBudget,Sheet1!S71_SubMunicipalVoteNo,$AC:$AC,Sheet1!S71_ItemType,$AD:$AD)","v":0},{"$f":"SUMIFS(Sheet1!S71_OY2AdjustedBudget,Sheet1!S71_SubMunicipalVoteNo,$AC:$AC,Sheet1!S71_ItemType,$AD:$AD)","v":0},null,null,null,null,null,null,null,null,null,null,null,null,null,null,null,109,"IE","IZ"]
[{"$f":"'Org structure'!D111","v":"10.10 - [Name of sub-vote]"},null,{"$f":"SUMIFS(Sheet1!S71_OriginalBudget,Sheet1!S71_SubMunicipalVoteNo,$AC:$AC,Sheet1!S71_ItemType,$AD:$AD)","v":0},{"$f":"SUMIFS(Sheet1!S71_PreviousBudget,Sheet1!S71_SubMunicipalVoteNo,$AC:$AC,Sheet1!S71_ItemType,$AD:$AD)","v":0},null,null,null,null,{"$f":"SUMIFS(Sheet1!S71_CurrentAdjustments,Sheet1!S71_SubMunicipalVoteNo,$AC:$AC,Sheet1!S71_ItemType,$AD:$AD)","v":0},0,0,{"$f":"SUMIFS(Sheet1!S71_OY1AdjustedBudget,Sheet1!S71_SubMunicipalVoteNo,$AC:$AC,Sheet1!S71_ItemType,$AD:$AD)","v":0},{"$f":"SUMIFS(Sheet1!S71_OY2AdjustedBudget,Sheet1!S71_SubMunicipalVoteNo,$AC:$AC,Sheet1!S71_ItemType,$AD:$AD)","v":0},null,null,null,null,null,null,null,null,null,null,null,null,null,null,null,1010,"IE","IZ"]
[{"$f":"A117","v":"Vote 11 - Waste Management"},null,{"$f":"SUM(C286:C295)","v":20123878},21299311,0,0,0,0,0,0,21299311,{"$f":"SUM(L286:L295)","v":21857644},{"$f":"SUM(M286:M295)","v":31847295}]
[{"$f":"'Org structure'!D113","v":"11.1 - Solid Waste Removal"},null,{"$f":"SUMIFS(Sheet1!S71_OriginalBudget,Sheet1!S71_SubMunicipalVoteNo,$AC:$AC,Sheet1!S71_ItemType,$AD:$AD)","v":20010828},{"$f":"SUMIFS(Sheet1!S71_PreviousBudget,Sheet1!S71_SubMunicipalVoteNo,$AC:$AC,Sheet1!S71_ItemType,$AD:$AD)","v":21249001},null,null,null,null,{"$f":"SUMIFS(Sheet1!S71_CurrentAdjustments,Sheet1!S71_SubMunicipalVoteNo,$AC:$AC,Sheet1!S71_ItemType,$AD:$AD)","v":0},0,21249001,{"$f":"SUMIFS(Sheet1!S71_OY1AdjustedBudget,Sheet1!S71_SubMunicipalVoteNo,$AC:$AC,Sheet1!S71_ItemType,$AD:$AD)","v":21739394},{"$f":"SUMIFS(Sheet1!S71_OY2AdjustedBudget,Sheet1!S71_SubMunicipalVoteNo,$AC:$AC,Sheet1!S71_ItemType,$AD:$AD)","v":31723615},null,null,null,null,null,null,null,null,null,null,null,null,null,null,null,111,"IE","IZ"]
[{"$f":"'Org structure'!D114","v":"11.2 - Solid Waste Disposal (Landfill Sites)"},null,{"$f":"SUMIFS(Sheet1!S71_OriginalBudget,Sheet1!S71_SubMunicipalVoteNo,$AC:$AC,Sheet1!S71_ItemType,$AD:$AD)","v":113050},{"$f":"SUMIFS(Sheet1!S71_PreviousBudget,Sheet1!S71_SubMunicipalVoteNo,$AC:$AC,Sheet1!S71_ItemType,$AD:$AD)","v":50310},null,null,null,null,{"$f":"SUMIFS(Sheet1!S71_CurrentAdjustments,Sheet1!S71_SubMunicipalVoteNo,$AC:$AC,Sheet1!S71_ItemType,$AD:$AD)","v":0},0,50310,{"$f":"SUMIFS(Sheet1!S71_OY1AdjustedBudget,Sheet1!S71_SubMunicipalVoteNo,$AC:$AC,Sheet1!S71_ItemType,$AD:$AD)","v":118250},{"$f":"SUMIFS(Sheet1!S71_OY2AdjustedBudget,Sheet1!S71_SubMunicipalVoteNo,$AC:$AC,Sheet1!S71_ItemType,$AD:$AD)","v":123680},null,null,null,null,null,null,null,null,null,null,null,null,null,null,null,112,"IE","IZ"]
[{"$f":"'Org structure'!D115","v":"11.3 - Street Cleaning"},null,{"$f":"SUMIFS(Sheet1!S71_OriginalBudget,Sheet1!S71_SubMunicipalVoteNo,$AC:$AC,Sheet1!S71_ItemType,$AD:$AD)","v":0},{"$f":"SUMIFS(Sheet1!S71_PreviousBudget,Sheet1!S71_SubMunicipalVoteNo,$AC:$AC,Sheet1!S71_ItemType,$AD:$AD)","v":0},null,null,null,null,{"$f":"SUMIFS(Sheet1!S71_CurrentAdjustments,Sheet1!S71_SubMunicipalVoteNo,$AC:$AC,Sheet1!S71_ItemType,$AD:$AD)","v":0},0,0,{"$f":"SUMIFS(Sheet1!S71_OY1AdjustedBudget,Sheet1!S71_SubMunicipalVoteNo,$AC:$AC,Sheet1!S71_ItemType,$AD:$AD)","v":0},{"$f":"SUMIFS(Sheet1!S71_OY2AdjustedBudget,Sheet1!S71_SubMunicipalVoteNo,$AC:$AC,Sheet1!S71_ItemType,$AD:$AD)","v":0},null,null,null,null,null,null,null,null,null,null,null,null,null,null,null,113,"IE","IZ"]
[{"$f":"'Org structure'!D116","v":"11.4 - [Name of sub-vote]"},null,{"$f":"SUMIFS(Sheet1!S71_OriginalBudget,Sheet1!S71_SubMunicipalVoteNo,$AC:$AC,Sheet1!S71_ItemType,$AD:$AD)","v":0},{"$f":"SUMIFS(Sheet1!S71_PreviousBudget,Sheet1!S71_SubMunicipalVoteNo,$AC:$AC,Sheet1!S71_ItemType,$AD:$AD)","v":0},null,null,null,null,{"$f":"SUMIFS(Sheet1!S71_CurrentAdjustments,Sheet1!S71_SubMunicipalVoteNo,$AC:$AC,Sheet1!S71_ItemType,$AD:$AD)","v":0},0,0,{"$f":"SUMIFS(Sheet1!S71_OY1AdjustedBudget,Sheet1!S71_SubMunicipalVoteNo,$AC:$AC,Sheet1!S71_ItemType,$AD:$AD)","v":0},{"$f":"SUMIFS(Sheet1!S71_OY2AdjustedBudget,Sheet1!S71_SubMunicipalVoteNo,$AC:$AC,Sheet1!S71_ItemType,$AD:$AD)","v":0},null,null,null,null,null,null,null,null,null,null,null,null,null,null,null,114,"IE","IZ"]
[{"$f":"'Org structure'!D117","v":"11.5 - [Name of sub-vote]"},null,{"$f":"SUMIFS(Sheet1!S71_OriginalBudget,Sheet1!S71_SubMunicipalVoteNo,$AC:$AC,Sheet1!S71_ItemType,$AD:$AD)","v":0},{"$f":"SUMIFS(Sheet1!S71_PreviousBudget,Sheet1!S71_SubMunicipalVoteNo,$AC:$AC,Sheet1!S71_ItemType,$AD:$AD)","v":0},null,null,null,null,{"$f":"SUMIFS(Sheet1!S71_CurrentAdjustments,Sheet1!S71_SubMunicipalVoteNo,$AC:$AC,Sheet1!S71_ItemType,$AD:$AD)","v":0},0,0,{"$f":"SUMIFS(Sheet1!S71_OY1AdjustedBudget,Sheet1!S71_SubMunicipalVoteNo,$AC:$AC,Sheet1!S71_ItemType,$AD:$AD)","v":0},{"$f":"SUMIFS(Sheet1!S71_OY2AdjustedBudget,Sheet1!S71_SubMunicipalVoteNo,$AC:$AC,Sheet1!S71_ItemType,$AD:$AD)","v":0},null,null,null,null,null,null,null,null,null,null,null,null,null,null,null,115,"IE","IZ"]
[{"$f":"'Org structure'!D118","v":"11.6 - [Name of sub-vote]"},null,{"$f":"SUMIFS(Sheet1!S71_OriginalBudget,Sheet1!S71_SubMunicipalVoteNo,$AC:$AC,Sheet1!S71_ItemType,$AD:$AD)","v":0},{"$f":"SUMIFS(Sheet1!S71_PreviousBudget,Sheet1!S71_SubMunicipalVoteNo,$AC:$AC,Sheet1!S71_ItemType,$AD:$AD)","v":0},null,null,null,null,{"$f":"SUMIFS(Sheet1!S71_CurrentAdjustments,Sheet1!S71_SubMunicipalVoteNo,$AC:$AC,Sheet1!S71_ItemType,$AD:$AD)","v":0},0,0,{"$f":"SUMIFS(Sheet1!S71_OY1AdjustedBudget,Sheet1!S71_SubMunicipalVoteNo,$AC:$AC,Sheet1!S71_ItemType,$AD:$AD)","v":0},{"$f":"SUMIFS(Sheet1!S71_OY2AdjustedBudget,Sheet1!S71_SubMunicipalVoteNo,$AC:$AC,Sheet1!S71_ItemType,$AD:$AD)","v":0},null,null,null,null,null,null,null,null,null,null,null,null,null,null,null,116,"IE","IZ"]
[{"$f":"'Org structure'!D119","v":"11.7 - [Name of sub-vote]"},null,{"$f":"SUMIFS(Sheet1!S71_OriginalBudget,Sheet1!S71_SubMunicipalVoteNo,$AC:$AC,Sheet1!S71_ItemType,$AD:$AD)","v":0},{"$f":"SUMIFS(Sheet1!S71_PreviousBudget,Sheet1!S71_SubMunicipalVoteNo,$AC:$AC,Sheet1!S71_ItemType,$AD:$AD)","v":0},null,null,null,null,{"$f":"SUMIFS(Sheet1!S71_CurrentAdjustments,Sheet1!S71_SubMunicipalVoteNo,$AC:$AC,Sheet1!S71_ItemType,$AD:$AD)","v":0},0,0,{"$f":"SUMIFS(Sheet1!S71_OY1AdjustedBudget,Sheet1!S71_SubMunicipalVoteNo,$AC:$AC,Sheet1!S71_ItemType,$AD:$AD)","v":0},{"$f":"SUMIFS(Sheet1!S71_OY2AdjustedBudget,Sheet1!S71_SubMunicipalVoteNo,$AC:$AC,Sheet1!S71_ItemType,$AD:$AD)","v":0},null,null,null,null,null,null,null,null,null,null,null,null,null,null,null,117,"IE","IZ"]
[{"$f":"'Org structure'!D120","v":"11.8 - [Name of sub-vote]"},null,{"$f":"SUMIFS(Sheet1!S71_OriginalBudget,Sheet1!S71_SubMunicipalVoteNo,$AC:$AC,Sheet1!S71_ItemType,$AD:$AD)","v":0},{"$f":"SUMIFS(Sheet1!S71_PreviousBudget,Sheet1!S71_SubMunicipalVoteNo,$AC:$AC,Sheet1!S71_ItemType,$AD:$AD)","v":0},null,null,null,null,{"$f":"SUMIFS(Sheet1!S71_CurrentAdjustments,Sheet1!S71_SubMunicipalVoteNo,$AC:$AC,Sheet1!S71_ItemType,$AD:$AD)","v":0},0,0,{"$f":"SUMIFS(Sheet1!S71_OY1AdjustedBudget,Sheet1!S71_SubMunicipalVoteNo,$AC:$AC,Sheet1!S71_ItemType,$AD:$AD)","v":0},{"$f":"SUMIFS(Sheet1!S71_OY2AdjustedBudget,Sheet1!S71_SubMunicipalVoteNo,$AC:$AC,Sheet1!S71_ItemType,$AD:$AD)","v":0},null,null,null,null,null,null,null,null,null,null,null,null,null,null,null,118,"IE","IZ"]
[{"$f":"'Org structure'!D121","v":"11.9 - [Name of sub-vote]"},null,{"$f":"SUMIFS(Sheet1!S71_OriginalBudget,Sheet1!S71_SubMunicipalVoteNo,$AC:$AC,Sheet1!S71_ItemType,$AD:$AD)","v":0},{"$f":"SUMIFS(Sheet1!S71_PreviousBudget,Sheet1!S71_SubMunicipalVoteNo,$AC:$AC,Sheet1!S71_ItemType,$AD:$AD)","v":0},null,null,null,null,{"$f":"SUMIFS(Sheet1!S71_CurrentAdjustments,Sheet1!S71_SubMunicipalVoteNo,$AC:$AC,Sheet1!S71_ItemType,$AD:$AD)","v":0},0,0,{"$f":"SUMIFS(Sheet1!S71_OY1AdjustedBudget,Sheet1!S71_SubMunicipalVoteNo,$AC:$AC,Sheet1!S71_ItemType,$AD:$AD)","v":0},{"$f":"SUMIFS(Sheet1!S71_OY2AdjustedBudget,Sheet1!S71_SubMunicipalVoteNo,$AC:$AC,Sheet1!S71_ItemType,$AD:$AD)","v":0},null,null,null,null,null,null,null,null,null,null,null,null,null,null,null,119,"IE","IZ"]
[{"$f":"'Org structure'!D122","v":"11.10 - [Name of sub-vote]"},null,{"$f":"SUMIFS(Sheet1!S71_OriginalBudget,Sheet1!S71_SubMunicipalVoteNo,$AC:$AC,Sheet1!S71_ItemType,$AD:$AD)","v":0},{"$f":"SUMIFS(Sheet1!S71_PreviousBudget,Sheet1!S71_SubMunicipalVoteNo,$AC:$AC,Sheet1!S71_ItemType,$AD:$AD)","v":0},null,null,null,null,{"$f":"SUMIFS(Sheet1!S71_CurrentAdjustments,Sheet1!S71_SubMunicipalVoteNo,$AC:$AC,Sheet1!S71_ItemType,$AD:$AD)","v":0},0,0,{"$f":"SUMIFS(Sheet1!S71_OY1AdjustedBudget,Sheet1!S71_SubMunicipalVoteNo,$AC:$AC,Sheet1!S71_ItemType,$AD:$AD)","v":0},{"$f":"SUMIFS(Sheet1!S71_OY2AdjustedBudget,Sheet1!S71_SubMunicipalVoteNo,$AC:$AC,Sheet1!S71_ItemType,$AD:$AD)","v":0},null,null,null,null,null,null,null,null,null,null,null,null,null,null,null,1110,"IE","IZ"]
[{"$f":"A128","v":"Vote 12 - Environmental Protection"},null,{"$f":"SUM(C297:C306)","v":4063000},4124076,0,0,0,0,0,0,4124076,{"$f":"SUM(L297:L306)","v":4249880},{"$f":"SUM(M297:M306)","v":4445400}]
[{"$f":"'Org structure'!D124","v":"12.1 - Biodiversity and Landscape"},null,{"$f":"SUMIFS(Sheet1!S71_OriginalBudget,Sheet1!S71_SubMunicipalVoteNo,$AC:$AC,Sheet1!S71_ItemType,$AD:$AD)","v":4063000},{"$f":"SUMIFS(Sheet1!S71_PreviousBudget,Sheet1!S71_SubMunicipalVoteNo,$AC:$AC,Sheet1!S71_ItemType,$AD:$AD)","v":4124076},null,null,null,null,{"$f":"SUMIFS(Sheet1!S71_CurrentAdjustments,Sheet1!S71_SubMunicipalVoteNo,$AC:$AC,Sheet1!S71_ItemType,$AD:$AD)","v":0},0,4124076,{"$f":"SUMIFS(Sheet1!S71_OY1AdjustedBudget,Sheet1!S71_SubMunicipalVoteNo,$AC:$AC,Sheet1!S71_ItemType,$AD:$AD)","v":4249880},{"$f":"SUMIFS(Sheet1!S71_OY2AdjustedBudget,Sheet1!S71_SubMunicipalVoteNo,$AC:$AC,Sheet1!S71_ItemType,$AD:$AD)","v":4445400},null,null,null,null,null,null,null,null,null,null,null,null,null,null,null,121,"IE","IZ"]
[{"$f":"'Org structure'!D125","v":"12.2 - [Name of sub-vote]"},null,{"$f":"SUMIFS(Sheet1!S71_OriginalBudget,Sheet1!S71_SubMunicipalVoteNo,$AC:$AC,Sheet1!S71_ItemType,$AD:$AD)","v":0},{"$f":"SUMIFS(Sheet1!S71_PreviousBudget,Sheet1!S71_SubMunicipalVoteNo,$AC:$AC,Sheet1!S71_ItemType,$AD:$AD)","v":0},null,null,null,null,{"$f":"SUMIFS(Sheet1!S71_CurrentAdjustments,Sheet1!S71_SubMunicipalVoteNo,$AC:$AC,Sheet1!S71_ItemType,$AD:$AD)","v":0},0,0,{"$f":"SUMIFS(Sheet1!S71_OY1AdjustedBudget,Sheet1!S71_SubMunicipalVoteNo,$AC:$AC,Sheet1!S71_ItemType,$AD:$AD)","v":0},{"$f":"SUMIFS(Sheet1!S71_OY2AdjustedBudget,Sheet1!S71_SubMunicipalVoteNo,$AC:$AC,Sheet1!S71_ItemType,$AD:$AD)","v":0},null,null,null,null,null,null,null,null,null,null,null,null,null,null,null,122,"IE","IZ"]
[{"$f":"'Org structure'!D126","v":"12.3 - [Name of sub-vote]"},null,{"$f":"SUMIFS(Sheet1!S71_OriginalBudget,Sheet1!S71_SubMunicipalVoteNo,$AC:$AC,Sheet1!S71_ItemType,$AD:$AD)","v":0},{"$f":"SUMIFS(Sheet1!S71_PreviousBudget,Sheet1!S71_SubMunicipalVoteNo,$AC:$AC,Sheet1!S71_ItemType,$AD:$AD)","v":0},null,null,null,null,{"$f":"SUMIFS(Sheet1!S71_CurrentAdjustments,Sheet1!S71_SubMunicipalVoteNo,$AC:$AC,Sheet1!S71_ItemType,$AD:$AD)","v":0},0,0,{"$f":"SUMIFS(Sheet1!S71_OY1AdjustedBudget,Sheet1!S71_SubMunicipalVoteNo,$AC:$AC,Sheet1!S71_ItemType,$AD:$AD)","v":0},{"$f":"SUMIFS(Sheet1!S71_OY2AdjustedBudget,Sheet1!S71_SubMunicipalVoteNo,$AC:$AC,Sheet1!S71_ItemType,$AD:$AD)","v":0},null,null,null,null,null,null,null,null,null,null,null,null,null,null,null,123,"IE","IZ"]
[{"$f":"'Org structure'!D127","v":"12.4 - [Name of sub-vote]"},null,{"$f":"SUMIFS(Sheet1!S71_OriginalBudget,Sheet1!S71_SubMunicipalVoteNo,$AC:$AC,Sheet1!S71_ItemType,$AD:$AD)","v":0},{"$f":"SUMIFS(Sheet1!S71_PreviousBudget,Sheet1!S71_SubMunicipalVoteNo,$AC:$AC,Sheet1!S71_ItemType,$AD:$AD)","v":0},null,null,null,null,{"$f":"SUMIFS(Sheet1!S71_CurrentAdjustments,Sheet1!S71_SubMunicipalVoteNo,$AC:$AC,Sheet1!S71_ItemType,$AD:$AD)","v":0},0,0,{"$f":"SUMIFS(Sheet1!S71_OY1AdjustedBudget,Sheet1!S71_SubMunicipalVoteNo,$AC:$AC,Sheet1!S71_ItemType,$AD:$AD)","v":0},{"$f":"SUMIFS(Sheet1!S71_OY2AdjustedBudget,Sheet1!S71_SubMunicipalVoteNo,$AC:$AC,Sheet1!S71_ItemType,$AD:$AD)","v":0},null,null,null,null,null,null,null,null,null,null,null,null,null,null,null,124,"IE","IZ"]
[{"$f":"'Org structure'!D128","v":"12.5 - [Name of sub-vote]"},null,{"$f":"SUMIFS(Sheet1!S71_OriginalBudget,Sheet1!S71_SubMunicipalVoteNo,$AC:$AC,Sheet1!S71_ItemType,$AD:$AD)","v":0},{"$f":"SUMIFS(Sheet1!S71_PreviousBudget,Sheet1!S71_SubMunicipalVoteNo,$AC:$AC,Sheet1!S71_ItemType,$AD:$AD)","v":0},null,null,null,null,{"$f":"SUMIFS(Sheet1!S71_CurrentAdjustments,Sheet1!S71_SubMunicipalVoteNo,$AC:$AC,Sheet1!S71_ItemType,$AD:$AD)","v":0},0,0,{"$f":"SUMIFS(Sheet1!S71_OY1AdjustedBudget,Sheet1!S71_SubMunicipalVoteNo,$AC:$AC,Sheet1!S71_ItemType,$AD:$AD)","v":0},{"$f":"SUMIFS(Sheet1!S71_OY2AdjustedBudget,Sheet1!S71_SubMunicipalVoteNo,$AC:$AC,Sheet1!S71_ItemType,$AD:$AD)","v":0},null,null,null,null,null,null,null,null,null,null,null,null,null,null,null,125,"IE","IZ"]
[{"$f":"'Org structure'!D129","v":"12.6 - [Name of sub-vote]"},null,{"$f":"SUMIFS(Sheet1!S71_OriginalBudget,Sheet1!S71_SubMunicipalVoteNo,$AC:$AC,Sheet1!S71_ItemType,$AD:$AD)","v":0},{"$f":"SUMIFS(Sheet1!S71_PreviousBudget,Sheet1!S71_SubMunicipalVoteNo,$AC:$AC,Sheet1!S71_ItemType,$AD:$AD)","v":0},null,null,null,null,{"$f":"SUMIFS(Sheet1!S71_CurrentAdjustments,Sheet1!S71_SubMunicipalVoteNo,$AC:$AC,Sheet1!S71_ItemType,$AD:$AD)","v":0},0,0,{"$f":"SUMIFS(Sheet1!S71_OY1AdjustedBudget,Sheet1!S71_SubMunicipalVoteNo,$AC:$AC,Sheet1!S71_ItemType,$AD:$AD)","v":0},{"$f":"SUMIFS(Sheet1!S71_OY2AdjustedBudget,Sheet1!S71_SubMunicipalVoteNo,$AC:$AC,Sheet1!S71_ItemType,$AD:$AD)","v":0},null,null,null,null,null,null,null,null,null,null,null,null,null,null,null,126,"IE","IZ"]
[{"$f":"'Org structure'!D130","v":"12.7 - [Name of sub-vote]"},null,{"$f":"SUMIFS(Sheet1!S71_OriginalBudget,Sheet1!S71_SubMunicipalVoteNo,$AC:$AC,Sheet1!S71_ItemType,$AD:$AD)","v":0},{"$f":"SUMIFS(Sheet1!S71_PreviousBudget,Sheet1!S71_SubMunicipalVoteNo,$AC:$AC,Sheet1!S71_ItemType,$AD:$AD)","v":0},null,null,null,null,{"$f":"SUMIFS(Sheet1!S71_CurrentAdjustments,Sheet1!S71_SubMunicipalVoteNo,$AC:$AC,Sheet1!S71_ItemType,$AD:$AD)","v":0},0,0,{"$f":"SUMIFS(Sheet1!S71_OY1AdjustedBudget,Sheet1!S71_SubMunicipalVoteNo,$AC:$AC,Sheet1!S71_ItemType,$AD:$AD)","v":0},{"$f":"SUMIFS(Sheet1!S71_OY2AdjustedBudget,Sheet1!S71_SubMunicipalVoteNo,$AC:$AC,Sheet1!S71_ItemType,$AD:$AD)","v":0},null,null,null,null,null,null,null,null,null,null,null,null,null,null,null,127,"IE","IZ"]
[{"$f":"'Org structure'!D131","v":"12.8 - [Name of sub-vote]"},null,{"$f":"SUMIFS(Sheet1!S71_OriginalBudget,Sheet1!S71_SubMunicipalVoteNo,$AC:$AC,Sheet1!S71_ItemType,$AD:$AD)","v":0},{"$f":"SUMIFS(Sheet1!S71_PreviousBudget,Sheet1!S71_SubMunicipalVoteNo,$AC:$AC,Sheet1!S71_ItemType,$AD:$AD)","v":0},null,null,null,null,{"$f":"SUMIFS(Sheet1!S71_CurrentAdjustments,Sheet1!S71_SubMunicipalVoteNo,$AC:$AC,Sheet1!S71_ItemType,$AD:$AD)","v":0},{"$f":"SUM(E304:I304)","v":0},{"$f":"IF(D304=0,C304+J304,D304+J304)","v":0},{"$f":"SUMIFS(Sheet1!S71_OY1AdjustedBudget,Sheet1!S71_SubMunicipalVoteNo,$AC:$AC,Sheet1!S71_ItemType,$AD:$AD)","v":0},{"$f":"SUMIFS(Sheet1!S71_OY2AdjustedBudget,Sheet1!S71_SubMunicipalVoteNo,$AC:$AC,Sheet1!S71_ItemType,$AD:$AD)","v":0},null,null,null,null,null,null,null,null,null,null,null,null,null,null,null,128,"IE","IZ"]
[{"$f":"'Org structure'!D132","v":"12.9 - [Name of sub-vote]"},null,{"$f":"SUMIFS(Sheet1!S71_OriginalBudget,Sheet1!S71_SubMunicipalVoteNo,$AC:$AC,Sheet1!S71_ItemType,$AD:$AD)","v":0},{"$f":"SUMIFS(Sheet1!S71_PreviousBudget,Sheet1!S71_SubMunicipalVoteNo,$AC:$AC,Sheet1!S71_ItemType,$AD:$AD)","v":0},null,null,null,null,{"$f":"SUMIFS(Sheet1!S71_CurrentAdjustments,Sheet1!S71_SubMunicipalVoteNo,$AC:$AC,Sheet1!S71_ItemType,$AD:$AD)","v":0},0,0,{"$f":"SUMIFS(Sheet1!S71_OY1AdjustedBudget,Sheet1!S71_SubMunicipalVoteNo,$AC:$AC,Sheet1!S71_ItemType,$AD:$AD)","v":0},{"$f":"SUMIFS(Sheet1!S71_OY2AdjustedBudget,Sheet1!S71_SubMunicipalVoteNo,$AC:$AC,Sheet1!S71_ItemType,$AD:$AD)","v":0},null,null,null,null,null,null,null,null,null,null,null,null,null,null,null,129,"IE","IZ"]
[{"$f":"'Org structure'!D133","v":"12.10 - [Name of sub-vote]"},null,{"$f":"SUMIFS(Sheet1!S71_OriginalBudget,Sheet1!S71_SubMunicipalVoteNo,$AC:$AC,Sheet1!S71_ItemType,$AD:$AD)","v":0},{"$f":"SUMIFS(Sheet1!S71_PreviousBudget,Sheet1!S71_SubMunicipalVoteNo,$AC:$AC,Sheet1!S71_ItemType,$AD:$AD)","v":0},null,null,null,null,{"$f":"SUMIFS(Sheet1!S71_CurrentAdjustments,Sheet1!S71_SubMunicipalVoteNo,$AC:$AC,Sheet1!S71_ItemType,$AD:$AD)","v":0},0,0,{"$f":"SUMIFS(Sheet1!S71_OY1AdjustedBudget,Sheet1!S71_SubMunicipalVoteNo,$AC:$AC,Sheet1!S71_ItemType,$AD:$AD)","v":0},{"$f":"SUMIFS(Sheet1!S71_OY2AdjustedBudget,Sheet1!S71_SubMunicipalVoteNo,$AC:$AC,Sheet1!S71_ItemType,$AD:$AD)","v":0},null,null,null,null,null,null,null,null,null,null,null,null,null,null,null,1210,"IE","IZ"]
["Vote 13 - [NAME OF VOTE 13]",null,{"$f":"SUM(C308:C317)","v":0},0,0,0,0,0,0,0,0,{"$f":"SUM(L308:L317)","v":0},{"$f":"SUM(M308:M317)","v":0}]
[{"$f":"'Org structure'!D135","v":"13.1 - [Name of sub-vote]"},null,{"$f":"SUMIFS(Sheet1!S71_OriginalBudget,Sheet1!S71_SubMunicipalVoteNo,$AC:$AC,Sheet1!S71_ItemType,$AD:$AD)","v":0},{"$f":"SUMIFS(Sheet1!S71_PreviousBudget,Sheet1!S71_SubMunicipalVoteNo,$AC:$AC,Sheet1!S71_ItemType,$AD:$AD)","v":0},null,null,null,null,{"$f":"SUMIFS(Sheet1!S71_CurrentAdjustments,Sheet1!S71_SubMunicipalVoteNo,$AC:$AC,Sheet1!S71_ItemType,$AD:$AD)","v":0},0,0,{"$f":"SUMIFS(Sheet1!S71_OY1AdjustedBudget,Sheet1!S71_SubMunicipalVoteNo,$AC:$AC,Sheet1!S71_ItemType,$AD:$AD)","v":0},{"$f":"SUMIFS(Sheet1!S71_OY2AdjustedBudget,Sheet1!S71_SubMunicipalVoteNo,$AC:$AC,Sheet1!S71_ItemType,$AD:$AD)","v":0},null,null,null,null,null,null,null,null,null,null,null,null,null,null,null,131,"IE","IZ"]
[{"$f":"'Org structure'!D136","v":"13.2 - [Name of sub-vote]"},null,{"$f":"SUMIFS(Sheet1!S71_OriginalBudget,Sheet1!S71_SubMunicipalVoteNo,$AC:$AC,Sheet1!S71_ItemType,$AD:$AD)","v":0},{"$f":"SUMIFS(Sheet1!S71_PreviousBudget,Sheet1!S71_SubMunicipalVoteNo,$AC:$AC,Sheet1!S71_ItemType,$AD:$AD)","v":0},null,null,null,null,{"$f":"SUMIFS(Sheet1!S71_CurrentAdjustments,Sheet1!S71_SubMunicipalVoteNo,$AC:$AC,Sheet1!S71_ItemType,$AD:$AD)","v":0},0,0,{"$f":"SUMIFS(Sheet1!S71_OY1AdjustedBudget,Sheet1!S71_SubMunicipalVoteNo,$AC:$AC,Sheet1!S71_ItemType,$AD:$AD)","v":0},{"$f":"SUMIFS(Sheet1!S71_OY2AdjustedBudget,Sheet1!S71_SubMunicipalVoteNo,$AC:$AC,Sheet1!S71_ItemType,$AD:$AD)","v":0},null,null,null,null,null,null,null,null,null,null,null,null,null,null,null,132,"IE","IZ"]
[{"$f":"'Org structure'!D137","v":"13.3 - [Name of sub-vote]"},null,{"$f":"SUMIFS(Sheet1!S71_OriginalBudget,Sheet1!S71_SubMunicipalVoteNo,$AC:$AC,Sheet1!S71_ItemType,$AD:$AD)","v":0},{"$f":"SUMIFS(Sheet1!S71_PreviousBudget,Sheet1!S71_SubMunicipalVoteNo,$AC:$AC,Sheet1!S71_ItemType,$AD:$AD)","v":0},null,null,null,null,{"$f":"SUMIFS(Sheet1!S71_CurrentAdjustments,Sheet1!S71_SubMunicipalVoteNo,$AC:$AC,Sheet1!S71_ItemType,$AD:$AD)","v":0},0,0,{"$f":"SUMIFS(Sheet1!S71_OY1AdjustedBudget,Sheet1!S71_SubMunicipalVoteNo,$AC:$AC,Sheet1!S71_ItemType,$AD:$AD)","v":0},{"$f":"SUMIFS(Sheet1!S71_OY2AdjustedBudget,Sheet1!S71_SubMunicipalVoteNo,$AC:$AC,Sheet1!S71_ItemType,$AD:$AD)","v":0},null,null,null,null,null,null,null,null,null,null,null,null,null,null,null,133,"IE","IZ"]
[{"$f":"'Org structure'!D138","v":"13.4 - [Name of sub-vote]"},null,{"$f":"SUMIFS(Sheet1!S71_OriginalBudget,Sheet1!S71_SubMunicipalVoteNo,$AC:$AC,Sheet1!S71_ItemType,$AD:$AD)","v":0},{"$f":"SUMIFS(Sheet1!S71_PreviousBudget,Sheet1!S71_SubMunicipalVoteNo,$AC:$AC,Sheet1!S71_ItemType,$AD:$AD)","v":0},null,null,null,null,{"$f":"SUMIFS(Sheet1!S71_CurrentAdjustments,Sheet1!S71_SubMunicipalVoteNo,$AC:$AC,Sheet1!S71_ItemType,$AD:$AD)","v":0},0,0,{"$f":"SUMIFS(Sheet1!S71_OY1AdjustedBudget,Sheet1!S71_SubMunicipalVoteNo,$AC:$AC,Sheet1!S71_ItemType,$AD:$AD)","v":0},{"$f":"SUMIFS(Sheet1!S71_OY2AdjustedBudget,Sheet1!S71_SubMunicipalVoteNo,$AC:$AC,Sheet1!S71_ItemType,$AD:$AD)","v":0},null,null,null,null,null,null,null,null,null,null,null,null,null,null,null,134,"IE","IZ"]
[{"$f":"'Org structure'!D139","v":"13.5 - [Name of sub-vote]"},null,{"$f":"SUMIFS(Sheet1!S71_OriginalBudget,Sheet1!S71_SubMunicipalVoteNo,$AC:$AC,Sheet1!S71_ItemType,$AD:$AD)","v":0},{"$f":"SUMIFS(Sheet1!S71_PreviousBudget,Sheet1!S71_SubMunicipalVoteNo,$AC:$AC,Sheet1!S71_ItemType,$AD:$AD)","v":0},null,null,null,null,{"$f":"SUMIFS(Sheet1!S71_CurrentAdjustments,Sheet1!S71_SubMunicipalVoteNo,$AC:$AC,Sheet1!S71_ItemType,$AD:$AD)","v":0},0,0,{"$f":"SUMIFS(Sheet1!S71_OY1AdjustedBudget,Sheet1!S71_SubMunicipalVoteNo,$AC:$AC,Sheet1!S71_ItemType,$AD:$AD)","v":0},{"$f":"SUMIFS(Sheet1!S71_OY2AdjustedBudget,Sheet1!S71_SubMunicipalVoteNo,$AC:$AC,Sheet1!S71_ItemType,$AD:$AD)","v":0},null,null,null,null,null,null,null,null,null,null,null,null,null,null,null,135,"IE","IZ"]
[{"$f":"'Org structure'!D140","v":"13.6 - [Name of sub-vote]"},null,{"$f":"SUMIFS(Sheet1!S71_OriginalBudget,Sheet1!S71_SubMunicipalVoteNo,$AC:$AC,Sheet1!S71_ItemType,$AD:$AD)","v":0},{"$f":"SUMIFS(Sheet1!S71_PreviousBudget,Sheet1!S71_SubMunicipalVoteNo,$AC:$AC,Sheet1!S71_ItemType,$AD:$AD)","v":0},null,null,null,null,{"$f":"SUMIFS(Sheet1!S71_CurrentAdjustments,Sheet1!S71_SubMunicipalVoteNo,$AC:$AC,Sheet1!S71_ItemType,$AD:$AD)","v":0},0,0,{"$f":"SUMIFS(Sheet1!S71_OY1AdjustedBudget,Sheet1!S71_SubMunicipalVoteNo,$AC:$AC,Sheet1!S71_ItemType,$AD:$AD)","v":0},{"$f":"SUMIFS(Sheet1!S71_OY2AdjustedBudget,Sheet1!S71_SubMunicipalVoteNo,$AC:$AC,Sheet1!S71_ItemType,$AD:$AD)","v":0},null,null,null,null,null,null,null,null,null,null,null,null,null,null,null,136,"IE","IZ"]
[{"$f":"'Org structure'!D141","v":"13.7 - [Name of sub-vote]"},null,{"$f":"SUMIFS(Sheet1!S71_OriginalBudget,Sheet1!S71_SubMunicipalVoteNo,$AC:$AC,Sheet1!S71_ItemType,$AD:$AD)","v":0},{"$f":"SUMIFS(Sheet1!S71_PreviousBudget,Sheet1!S71_SubMunicipalVoteNo,$AC:$AC,Sheet1!S71_ItemType,$AD:$AD)","v":0},null,null,null,null,{"$f":"SUMIFS(Sheet1!S71_CurrentAdjustments,Sheet1!S71_SubMunicipalVoteNo,$AC:$AC,Sheet1!S71_ItemType,$AD:$AD)","v":0},0,0,{"$f":"SUMIFS(Sheet1!S71_OY1AdjustedBudget,Sheet1!S71_SubMunicipalVoteNo,$AC:$AC,Sheet1!S71_ItemType,$AD:$AD)","v":0},{"$f":"SUMIFS(Sheet1!S71_OY2AdjustedBudget,Sheet1!S71_SubMunicipalVoteNo,$AC:$AC,Sheet1!S71_ItemType,$AD:$AD)","v":0},null,null,null,null,null,null,null,null,null,null,null,null,null,null,null,137,"IE","IZ"]
[{"$f":"'Org structure'!D142","v":"13.8 - [Name of sub-vote]"},null,{"$f":"SUMIFS(Sheet1!S71_OriginalBudget,Sheet1!S71_SubMunicipalVoteNo,$AC:$AC,Sheet1!S71_ItemType,$AD:$AD)","v":0},{"$f":"SUMIFS(Sheet1!S71_PreviousBudget,Sheet1!S71_SubMunicipalVoteNo,$AC:$AC,Sheet1!S71_ItemType,$AD:$AD)","v":0},null,null,null,null,{"$f":"SUMIFS(Sheet1!S71_CurrentAdjustments,Sheet1!S71_SubMunicipalVoteNo,$AC:$AC,Sheet1!S71_ItemType,$AD:$AD)","v":0},0,0,{"$f":"SUMIFS(Sheet1!S71_OY1AdjustedBudget,Sheet1!S71_SubMunicipalVoteNo,$AC:$AC,Sheet1!S71_ItemType,$AD:$AD)","v":0},{"$f":"SUMIFS(Sheet1!S71_OY2AdjustedBudget,Sheet1!S71_SubMunicipalVoteNo,$AC:$AC,Sheet1!S71_ItemType,$AD:$AD)","v":0},null,null,null,null,null,null,null,null,null,null,null,null,null,null,null,138,"IE","IZ"]
[{"$f":"'Org structure'!D143","v":"13.9 - [Name of sub-vote]"},null,{"$f":"SUMIFS(Sheet1!S71_OriginalBudget,Sheet1!S71_SubMunicipalVoteNo,$AC:$AC,Sheet1!S71_ItemType,$AD:$AD)","v":0},{"$f":"SUMIFS(Sheet1!S71_PreviousBudget,Sheet1!S71_SubMunicipalVoteNo,$AC:$AC,Sheet1!S71_ItemType,$AD:$AD)","v":0},null,null,null,null,{"$f":"SUMIFS(Sheet1!S71_CurrentAdjustments,Sheet1!S71_SubMunicipalVoteNo,$AC:$AC,Sheet1!S71_ItemType,$AD:$AD)","v":0},0,0,{"$f":"SUMIFS(Sheet1!S71_OY1AdjustedBudget,Sheet1!S71_SubMunicipalVoteNo,$AC:$AC,Sheet1!S71_ItemType,$AD:$AD)","v":0},{"$f":"SUMIFS(Sheet1!S71_OY2AdjustedBudget,Sheet1!S71_SubMunicipalVoteNo,$AC:$AC,Sheet1!S71_ItemType,$AD:$AD)","v":0},null,null,null,null,null,null,null,null,null,null,null,null,null,null,null,139,"IE","IZ"]
[{"$f":"'Org structure'!D144","v":"13.10 - [Name of sub-vote]"},null,{"$f":"SUMIFS(Sheet1!S71_OriginalBudget,Sheet1!S71_SubMunicipalVoteNo,$AC:$AC,Sheet1!S71_ItemType,$AD:$AD)","v":0},{"$f":"SUMIFS(Sheet1!S71_PreviousBudget,Sheet1!S71_SubMunicipalVoteNo,$AC:$AC,Sheet1!S71_ItemType,$AD:$AD)","v":0},null,null,null,null,{"$f":"SUMIFS(Sheet1!S71_CurrentAdjustments,Sheet1!S71_SubMunicipalVoteNo,$AC:$AC,Sheet1!S71_ItemType,$AD:$AD)","v":0},0,0,{"$f":"SUMIFS(Sheet1!S71_OY1AdjustedBudget,Sheet1!S71_SubMunicipalVoteNo,$AC:$AC,Sheet1!S71_ItemType,$AD:$AD)","v":0},{"$f":"SUMIFS(Sheet1!S71_OY2AdjustedBudget,Sheet1!S71_SubMunicipalVoteNo,$AC:$AC,Sheet1!S71_ItemType,$AD:$AD)","v":0},null,null,null,null,null,null,null,null,null,null,null,null,null,null,null,1310,"IE","IZ"]
["Vote 14 - [NAME OF VOTE 14]",null,{"$f":"SUM(C319:C328)","v":0},0,0,0,0,0,0,0,0,{"$f":"SUM(L319:L328)","v":0},{"$f":"SUM(M319:M328)","v":0}]
[{"$f":"'Org structure'!D146","v":"14.1 - [Name of sub-vote]"},null,{"$f":"SUMIFS(Sheet1!S71_OriginalBudget,Sheet1!S71_SubMunicipalVoteNo,$AC:$AC,Sheet1!S71_ItemType,$AD:$AD)","v":0},{"$f":"SUMIFS(Sheet1!S71_PreviousBudget,Sheet1!S71_SubMunicipalVoteNo,$AC:$AC,Sheet1!S71_ItemType,$AD:$AD)","v":0},null,null,null,null,{"$f":"SUMIFS(Sheet1!S71_CurrentAdjustments,Sheet1!S71_SubMunicipalVoteNo,$AC:$AC,Sheet1!S71_ItemType,$AD:$AD)","v":0},{"$f":"SUM(E319:I319)","v":0},{"$f":"IF(D319=0,C319+J319,D319+J319)","v":0},{"$f":"SUMIFS(Sheet1!S71_OY1AdjustedBudget,Sheet1!S71_SubMunicipalVoteNo,$AC:$AC,Sheet1!S71_ItemType,$AD:$AD)","v":0},{"$f":"SUMIFS(Sheet1!S71_OY2AdjustedBudget,Sheet1!S71_SubMunicipalVoteNo,$AC:$AC,Sheet1!S71_ItemType,$AD:$AD)","v":0},null,null,null,null,null,null,null,null,null,null,null,null,null,null,null,141,"IE","IZ"]
[{"$f":"'Org structure'!D147","v":"14.2 - [Name of sub-vote]"},null,{"$f":"SUMIFS(Sheet1!S71_OriginalBudget,Sheet1!S71_SubMunicipalVoteNo,$AC:$AC,Sheet1!S71_ItemType,$AD:$AD)","v":0},{"$f":"SUMIFS(Sheet1!S71_PreviousBudget,Sheet1!S71_SubMunicipalVoteNo,$AC:$AC,Sheet1!S71_ItemType,$AD:$AD)","v":0},null,null,null,null,{"$f":"SUMIFS(Sheet1!S71_CurrentAdjustments,Sheet1!S71_SubMunicipalVoteNo,$AC:$AC,Sheet1!S71_ItemType,$AD:$AD)","v":0},{"$f":"SUM(E320:I320)","v":0},{"$f":"IF(D320=0,C320+J320,D320+J320)","v":0},{"$f":"SUMIFS(Sheet1!S71_OY1AdjustedBudget,Sheet1!S71_SubMunicipalVoteNo,$AC:$AC,Sheet1!S71_ItemType,$AD:$AD)","v":0},{"$f":"SUMIFS(Sheet1!S71_OY2AdjustedBudget,Sheet1!S71_SubMunicipalVoteNo,$AC:$AC,Sheet1!S71_ItemType,$AD:$AD)","v":0},null,null,null,null,null,null,null,null,null,null,null,null,null,null,null,142,"IE","IZ"]
[{"$f":"'Org structure'!D148","v":"14.3 - [Name of sub-vote]"},null,{"$f":"SUMIFS(Sheet1!S71_OriginalBudget,Sheet1!S71_SubMunicipalVoteNo,$AC:$AC,Sheet1!S71_ItemType,$AD:$AD)","v":0},{"$f":"SUMIFS(Sheet1!S71_PreviousBudget,Sheet1!S71_SubMunicipalVoteNo,$AC:$AC,Sheet1!S71_ItemType,$AD:$AD)","v":0},null,null,null,null,{"$f":"SUMIFS(Sheet1!S71_CurrentAdjustments,Sheet1!S71_SubMunicipalVoteNo,$AC:$AC,Sheet1!S71_ItemType,$AD:$AD)","v":0},0,0,{"$f":"SUMIFS(Sheet1!S71_OY1AdjustedBudget,Sheet1!S71_SubMunicipalVoteNo,$AC:$AC,Sheet1!S71_ItemType,$AD:$AD)","v":0},{"$f":"SUMIFS(Sheet1!S71_OY2AdjustedBudget,Sheet1!S71_SubMunicipalVoteNo,$AC:$AC,Sheet1!S71_ItemType,$AD:$AD)","v":0},null,null,null,null,null,null,null,null,null,null,null,null,null,null,null,143,"IE","IZ"]
[{"$f":"'Org structure'!D149","v":"14.4 - [Name of sub-vote]"},null,{"$f":"SUMIFS(Sheet1!S71_OriginalBudget,Sheet1!S71_SubMunicipalVoteNo,$AC:$AC,Sheet1!S71_ItemType,$AD:$AD)","v":0},{"$f":"SUMIFS(Sheet1!S71_PreviousBudget,Sheet1!S71_SubMunicipalVoteNo,$AC:$AC,Sheet1!S71_ItemType,$AD:$AD)","v":0},null,null,null,null,{"$f":"SUMIFS(Sheet1!S71_CurrentAdjustments,Sheet1!S71_SubMunicipalVoteNo,$AC:$AC,Sheet1!S71_ItemType,$AD:$AD)","v":0},0,0,{"$f":"SUMIFS(Sheet1!S71_OY1AdjustedBudget,Sheet1!S71_SubMunicipalVoteNo,$AC:$AC,Sheet1!S71_ItemType,$AD:$AD)","v":0},{"$f":"SUMIFS(Sheet1!S71_OY2AdjustedBudget,Sheet1!S71_SubMunicipalVoteNo,$AC:$AC,Sheet1!S71_ItemType,$AD:$AD)","v":0},null,null,null,null,null,null,null,null,null,null,null,null,null,null,null,144,"IE","IZ"]
[{"$f":"'Org structure'!D150","v":"14.5 - [Name of sub-vote]"},null,{"$f":"SUMIFS(Sheet1!S71_OriginalBudget,Sheet1!S71_SubMunicipalVoteNo,$AC:$AC,Sheet1!S71_ItemType,$AD:$AD)","v":0},{"$f":"SUMIFS(Sheet1!S71_PreviousBudget,Sheet1!S71_SubMunicipalVoteNo,$AC:$AC,Sheet1!S71_ItemType,$AD:$AD)","v":0},null,null,null,null,{"$f":"SUMIFS(Sheet1!S71_CurrentAdjustments,Sheet1!S71_SubMunicipalVoteNo,$AC:$AC,Sheet1!S71_ItemType,$AD:$AD)","v":0},0,0,{"$f":"SUMIFS(Sheet1!S71_OY1AdjustedBudget,Sheet1!S71_SubMunicipalVoteNo,$AC:$AC,Sheet1!S71_ItemType,$AD:$AD)","v":0},{"$f":"SUMIFS(Sheet1!S71_OY2AdjustedBudget,Sheet1!S71_SubMunicipalVoteNo,$AC:$AC,Sheet1!S71_ItemType,$AD:$AD)","v":0},null,null,null,null,null,null,null,null,null,null,null,null,null,null,null,145,"IE","IZ"]
[{"$f":"'Org structure'!D151","v":"14.6 - [Name of sub-vote]"},null,{"$f":"SUMIFS(Sheet1!S71_OriginalBudget,Sheet1!S71_SubMunicipalVoteNo,$AC:$AC,Sheet1!S71_ItemType,$AD:$AD)","v":0},{"$f":"SUMIFS(Sheet1!S71_PreviousBudget,Sheet1!S71_SubMunicipalVoteNo,$AC:$AC,Sheet1!S71_ItemType,$AD:$AD)","v":0},null,null,null,null,{"$f":"SUMIFS(Sheet1!S71_CurrentAdjustments,Sheet1!S71_SubMunicipalVoteNo,$AC:$AC,Sheet1!S71_ItemType,$AD:$AD)","v":0},0,0,{"$f":"SUMIFS(Sheet1!S71_OY1AdjustedBudget,Sheet1!S71_SubMunicipalVoteNo,$AC:$AC,Sheet1!S71_ItemType,$AD:$AD)","v":0},{"$f":"SUMIFS(Sheet1!S71_OY2AdjustedBudget,Sheet1!S71_SubMunicipalVoteNo,$AC:$AC,Sheet1!S71_ItemType,$AD:$AD)","v":0},null,null,null,null,null,null,null,null,null,null,null,null,null,null,null,146,"IE","IZ"]
[{"$f":"'Org structure'!D152","v":"14.7 - [Name of sub-vote]"},null,{"$f":"SUMIFS(Sheet1!S71_OriginalBudget,Sheet1!S71_SubMunicipalVoteNo,$AC:$AC,Sheet1!S71_ItemType,$AD:$AD)","v":0},{"$f":"SUMIFS(Sheet1!S71_PreviousBudget,Sheet1!S71_SubMunicipalVoteNo,$AC:$AC,Sheet1!S71_ItemType,$AD:$AD)","v":0},null,null,null,null,{"$f":"SUMIFS(Sheet1!S71_CurrentAdjustments,Sheet1!S71_SubMunicipalVoteNo,$AC:$AC,Sheet1!S71_ItemType,$AD:$AD)","v":0},0,0,{"$f":"SUMIFS(Sheet1!S71_OY1AdjustedBudget,Sheet1!S71_SubMunicipalVoteNo,$AC:$AC,Sheet1!S71_ItemType,$AD:$AD)","v":0},{"$f":"SUMIFS(Sheet1!S71_OY2AdjustedBudget,Sheet1!S71_SubMunicipalVoteNo,$AC:$AC,Sheet1!S71_ItemType,$AD:$AD)","v":0},null,null,null,null,null,null,null,null,null,null,null,null,null,null,null,147,"IE","IZ"]
[{"$f":"'Org structure'!D153","v":"14.8 - [Name of sub-vote]"},null,{"$f":"SUMIFS(Sheet1!S71_OriginalBudget,Sheet1!S71_SubMunicipalVoteNo,$AC:$AC,Sheet1!S71_ItemType,$AD:$AD)","v":0},{"$f":"SUMIFS(Sheet1!S71_PreviousBudget,Sheet1!S71_SubMunicipalVoteNo,$AC:$AC,Sheet1!S71_ItemType,$AD:$AD)","v":0},null,null,null,null,{"$f":"SUMIFS(Sheet1!S71_CurrentAdjustments,Sheet1!S71_SubMunicipalVoteNo,$AC:$AC,Sheet1!S71_ItemType,$AD:$AD)","v":0},0,0,{"$f":"SUMIFS(Sheet1!S71_OY1AdjustedBudget,Sheet1!S71_SubMunicipalVoteNo,$AC:$AC,Sheet1!S71_ItemType,$AD:$AD)","v":0},{"$f":"SUMIFS(Sheet1!S71_OY2AdjustedBudget,Sheet1!S71_SubMunicipalVoteNo,$AC:$AC,Sheet1!S71_ItemType,$AD:$AD)","v":0},null,null,null,null,null,null,null,null,null,null,null,null,null,null,null,148,"IE","IZ"]
[{"$f":"'Org structure'!D154","v":"14.9 - [Name of sub-vote]"},null,{"$f":"SUMIFS(Sheet1!S71_OriginalBudget,Sheet1!S71_SubMunicipalVoteNo,$AC:$AC,Sheet1!S71_ItemType,$AD:$AD)","v":0},{"$f":"SUMIFS(Sheet1!S71_PreviousBudget,Sheet1!S71_SubMunicipalVoteNo,$AC:$AC,Sheet1!S71_ItemType,$AD:$AD)","v":0},null,null,null,null,{"$f":"SUMIFS(Sheet1!S71_CurrentAdjustments,Sheet1!S71_SubMunicipalVoteNo,$AC:$AC,Sheet1!S71_ItemType,$AD:$AD)","v":0},0,0,{"$f":"SUMIFS(Sheet1!S71_OY1AdjustedBudget,Sheet1!S71_SubMunicipalVoteNo,$AC:$AC,Sheet1!S71_ItemType,$AD:$AD)","v":0},{"$f":"SUMIFS(Sheet1!S71_OY2AdjustedBudget,Sheet1!S71_SubMunicipalVoteNo,$AC:$AC,Sheet1!S71_ItemType,$AD:$AD)","v":0},null,null,null,null,null,null,null,null,null,null,null,null,null,null,null,149,"IE","IZ"]
[{"$f":"'Org structure'!D155","v":"14.10 - [Name of sub-vote]"},null,{"$f":"SUMIFS(Sheet1!S71_OriginalBudget,Sheet1!S71_SubMunicipalVoteNo,$AC:$AC,Sheet1!S71_ItemType,$AD:$AD)","v":0},{"$f":"SUMIFS(Sheet1!S71_PreviousBudget,Sheet1!S71_SubMunicipalVoteNo,$AC:$AC,Sheet1!S71_ItemType,$AD:$AD)","v":0},null,null,null,null,{"$f":"SUMIFS(Sheet1!S71_CurrentAdjustments,Sheet1!S71_SubMunicipalVoteNo,$AC:$AC,Sheet1!S71_ItemType,$AD:$AD)","v":0},0,0,{"$f":"SUMIFS(Sheet1!S71_OY1AdjustedBudget,Sheet1!S71_SubMunicipalVoteNo,$AC:$AC,Sheet1!S71_ItemType,$AD:$AD)","v":0},{"$f":"SUMIFS(Sheet1!S71_OY2AdjustedBudget,Sheet1!S71_SubMunicipalVoteNo,$AC:$AC,Sheet1!S71_ItemType,$AD:$AD)","v":0},null,null,null,null,null,null,null,null,null,null,null,null,null,null,null,1410,"IE","IZ"]
["Vote 15 - [NAME OF VOTE 15]",null,{"$f":"SUM(C330:C339)","v":0},0,0,0,0,0,0,0,0,{"$f":"SUM(L330:L339)","v":0},{"$f":"SUM(M330:M339)","v":0}]
[{"$f":"'Org structure'!D157","v":"15.1 - [Name of sub-vote]"},null,{"$f":"SUMIFS(Sheet1!S71_OriginalBudget,Sheet1!S71_SubMunicipalVoteNo,$AC:$AC,Sheet1!S71_ItemType,$AD:$AD)","v":0},{"$f":"SUMIFS(Sheet1!S71_PreviousBudget,Sheet1!S71_SubMunicipalVoteNo,$AC:$AC,Sheet1!S71_ItemType,$AD:$AD)","v":0},null,null,null,null,{"$f":"SUMIFS(Sheet1!S71_CurrentAdjustments,Sheet1!S71_SubMunicipalVoteNo,$AC:$AC,Sheet1!S71_ItemType,$AD:$AD)","v":0},0,0,{"$f":"SUMIFS(Sheet1!S71_OY1AdjustedBudget,Sheet1!S71_SubMunicipalVoteNo,$AC:$AC,Sheet1!S71_ItemType,$AD:$AD)","v":0},{"$f":"SUMIFS(Sheet1!S71_OY2AdjustedBudget,Sheet1!S71_SubMunicipalVoteNo,$AC:$AC,Sheet1!S71_ItemType,$AD:$AD)","v":0},null,null,null,null,null,null,null,null,null,null,null,null,null,null,null,151,"IE","IZ"]
[{"$f":"'Org structure'!D158","v":"15.2 - [Name of sub-vote]"},null,{"$f":"SUMIFS(Sheet1!S71_OriginalBudget,Sheet1!S71_SubMunicipalVoteNo,$AC:$AC,Sheet1!S71_ItemType,$AD:$AD)","v":0},{"$f":"SUMIFS(Sheet1!S71_PreviousBudget,Sheet1!S71_SubMunicipalVoteNo,$AC:$AC,Sheet1!S71_ItemType,$AD:$AD)","v":0},null,null,null,null,{"$f":"SUMIFS(Sheet1!S71_CurrentAdjustments,Sheet1!S71_SubMunicipalVoteNo,$AC:$AC,Sheet1!S71_ItemType,$AD:$AD)","v":0},0,0,{"$f":"SUMIFS(Sheet1!S71_OY1AdjustedBudget,Sheet1!S71_SubMunicipalVoteNo,$AC:$AC,Sheet1!S71_ItemType,$AD:$AD)","v":0},{"$f":"SUMIFS(Sheet1!S71_OY2AdjustedBudget,Sheet1!S71_SubMunicipalVoteNo,$AC:$AC,Sheet1!S71_ItemType,$AD:$AD)","v":0},null,null,null,null,null,null,null,null,null,null,null,null,null,null,null,152,"IE","IZ"]
[{"$f":"'Org structure'!D159","v":"15.3 - [Name of sub-vote]"},null,{"$f":"SUMIFS(Sheet1!S71_OriginalBudget,Sheet1!S71_SubMunicipalVoteNo,$AC:$AC,Sheet1!S71_ItemType,$AD:$AD)","v":0},{"$f":"SUMIFS(Sheet1!S71_PreviousBudget,Sheet1!S71_SubMunicipalVoteNo,$AC:$AC,Sheet1!S71_ItemType,$AD:$AD)","v":0},null,null,null,null,{"$f":"SUMIFS(Sheet1!S71_CurrentAdjustments,Sheet1!S71_SubMunicipalVoteNo,$AC:$AC,Sheet1!S71_ItemType,$AD:$AD)","v":0},0,0,{"$f":"SUMIFS(Sheet1!S71_OY1AdjustedBudget,Sheet1!S71_SubMunicipalVoteNo,$AC:$AC,Sheet1!S71_ItemType,$AD:$AD)","v":0},{"$f":"SUMIFS(Sheet1!S71_OY2AdjustedBudget,Sheet1!S71_SubMunicipalVoteNo,$AC:$AC,Sheet1!S71_ItemType,$AD:$AD)","v":0},null,null,null,null,null,null,null,null,null,null,null,null,null,null,null,153,"IE","IZ"]
[{"$f":"'Org structure'!D160","v":"15.4 - [Name of sub-vote]"},null,{"$f":"SUMIFS(Sheet1!S71_OriginalBudget,Sheet1!S71_SubMunicipalVoteNo,$AC:$AC,Sheet1!S71_ItemType,$AD:$AD)","v":0},{"$f":"SUMIFS(Sheet1!S71_PreviousBudget,Sheet1!S71_SubMunicipalVoteNo,$AC:$AC,Sheet1!S71_ItemType,$AD:$AD)","v":0},null,null,null,null,{"$f":"SUMIFS(Sheet1!S71_CurrentAdjustments,Sheet1!S71_SubMunicipalVoteNo,$AC:$AC,Sheet1!S71_ItemType,$AD:$AD)","v":0},0,0,{"$f":"SUMIFS(Sheet1!S71_OY1AdjustedBudget,Sheet1!S71_SubMunicipalVoteNo,$AC:$AC,Sheet1!S71_ItemType,$AD:$AD)","v":0},{"$f":"SUMIFS(Sheet1!S71_OY2AdjustedBudget,Sheet1!S71_SubMunicipalVoteNo,$AC:$AC,Sheet1!S71_ItemType,$AD:$AD)","v":0},null,null,null,null,null,null,null,null,null,null,null,null,null,null,null,154,"IE","IZ"]
[{"$f":"'Org structure'!D161","v":"15.5 - [Name of sub-vote]"},null,{"$f":"SUMIFS(Sheet1!S71_OriginalBudget,Sheet1!S71_SubMunicipalVoteNo,$AC:$AC,Sheet1!S71_ItemType,$AD:$AD)","v":0},{"$f":"SUMIFS(Sheet1!S71_PreviousBudget,Sheet1!S71_SubMunicipalVoteNo,$AC:$AC,Sheet1!S71_ItemType,$AD:$AD)","v":0},null,null,null,null,{"$f":"SUMIFS(Sheet1!S71_CurrentAdjustments,Sheet1!S71_SubMunicipalVoteNo,$AC:$AC,Sheet1!S71_ItemType,$AD:$AD)","v":0},0,0,{"$f":"SUMIFS(Sheet1!S71_OY1AdjustedBudget,Sheet1!S71_SubMunicipalVoteNo,$AC:$AC,Sheet1!S71_ItemType,$AD:$AD)","v":0},{"$f":"SUMIFS(Sheet1!S71_OY2AdjustedBudget,Sheet1!S71_SubMunicipalVoteNo,$AC:$AC,Sheet1!S71_ItemType,$AD:$AD)","v":0},null,null,null,null,null,null,null,null,null,null,null,null,null,null,null,155,"IE","IZ"]
[{"$f":"'Org structure'!D162","v":"15.6 - [Name of sub-vote]"},null,{"$f":"SUMIFS(Sheet1!S71_OriginalBudget,Sheet1!S71_SubMunicipalVoteNo,$AC:$AC,Sheet1!S71_ItemType,$AD:$AD)","v":0},{"$f":"SUMIFS(Sheet1!S71_PreviousBudget,Sheet1!S71_SubMunicipalVoteNo,$AC:$AC,Sheet1!S71_ItemType,$AD:$AD)","v":0},null,null,null,null,{"$f":"SUMIFS(Sheet1!S71_CurrentAdjustments,Sheet1!S71_SubMunicipalVoteNo,$AC:$AC,Sheet1!S71_ItemType,$AD:$AD)","v":0},0,0,{"$f":"SUMIFS(Sheet1!S71_OY1AdjustedBudget,Sheet1!S71_SubMunicipalVoteNo,$AC:$AC,Sheet1!S71_ItemType,$AD:$AD)","v":0},{"$f":"SUMIFS(Sheet1!S71_OY2AdjustedBudget,Sheet1!S71_SubMunicipalVoteNo,$AC:$AC,Sheet1!S71_ItemType,$AD:$AD)","v":0},null,null,null,null,null,null,null,null,null,null,null,null,null,null,null,156,"IE","IZ"]
[{"$f":"'Org structure'!D163","v":"15.7 - [Name of sub-vote]"},null,{"$f":"SUMIFS(Sheet1!S71_OriginalBudget,Sheet1!S71_SubMunicipalVoteNo,$AC:$AC,Sheet1!S71_ItemType,$AD:$AD)","v":0},{"$f":"SUMIFS(Sheet1!S71_PreviousBudget,Sheet1!S71_SubMunicipalVoteNo,$AC:$AC,Sheet1!S71_ItemType,$AD:$AD)","v":0},null,null,null,null,{"$f":"SUMIFS(Sheet1!S71_CurrentAdjustments,Sheet1!S71_SubMunicipalVoteNo,$AC:$AC,Sheet1!S71_ItemType,$AD:$AD)","v":0},0,0,{"$f":"SUMIFS(Sheet1!S71_OY1AdjustedBudget,Sheet1!S71_SubMunicipalVoteNo,$AC:$AC,Sheet1!S71_ItemType,$AD:$AD)","v":0},{"$f":"SUMIFS(Sheet1!S71_OY2AdjustedBudget,Sheet1!S71_SubMunicipalVoteNo,$AC:$AC,Sheet1!S71_ItemType,$AD:$AD)","v":0},null,null,null,null,null,null,null,null,null,null,null,null,null,null,null,157,"IE","IZ"]
[{"$f":"'Org structure'!D164","v":"15.8 - [Name of sub-vote]"},null,{"$f":"SUMIFS(Sheet1!S71_OriginalBudget,Sheet1!S71_SubMunicipalVoteNo,$AC:$AC,Sheet1!S71_ItemType,$AD:$AD)","v":0},{"$f":"SUMIFS(Sheet1!S71_PreviousBudget,Sheet1!S71_SubMunicipalVoteNo,$AC:$AC,Sheet1!S71_ItemType,$AD:$AD)","v":0},null,null,null,null,{"$f":"SUMIFS(Sheet1!S71_CurrentAdjustments,Sheet1!S71_SubMunicipalVoteNo,$AC:$AC,Sheet1!S71_ItemType,$AD:$AD)","v":0},0,0,{"$f":"SUMIFS(Sheet1!S71_OY1AdjustedBudget,Sheet1!S71_SubMunicipalVoteNo,$AC:$AC,Sheet1!S71_ItemType,$AD:$AD)","v":0},{"$f":"SUMIFS(Sheet1!S71_OY2AdjustedBudget,Sheet1!S71_SubMunicipalVoteNo,$AC:$AC,Sheet1!S71_ItemType,$AD:$AD)","v":0},null,null,null,null,null,null,null,null,null,null,null,null,null,null,null,158,"IE","IZ"]
[{"$f":"'Org structure'!D165","v":"15.9 - [Name of sub-vote]"},null,{"$f":"SUMIFS(Sheet1!S71_OriginalBudget,Sheet1!S71_SubMunicipalVoteNo,$AC:$AC,Sheet1!S71_ItemType,$AD:$AD)","v":0},{"$f":"SUMIFS(Sheet1!S71_PreviousBudget,Sheet1!S71_SubMunicipalVoteNo,$AC:$AC,Sheet1!S71_ItemType,$AD:$AD)","v":0},null,null,null,null,{"$f":"SUMIFS(Sheet1!S71_CurrentAdjustments,Sheet1!S71_SubMunicipalVoteNo,$AC:$AC,Sheet1!S71_ItemType,$AD:$AD)","v":0},0,0,{"$f":"SUMIFS(Sheet1!S71_OY1AdjustedBudget,Sheet1!S71_SubMunicipalVoteNo,$AC:$AC,Sheet1!S71_ItemType,$AD:$AD)","v":0},{"$f":"SUMIFS(Sheet1!S71_OY2AdjustedBudget,Sheet1!S71_SubMunicipalVoteNo,$AC:$AC,Sheet1!S71_ItemType,$AD:$AD)","v":0},null,null,null,null,null,null,null,null,null,null,null,null,null,null,null,159,"IE","IZ"]
[{"$f":"'Org structure'!D166","v":"15.10 - [Name of sub-vote]"},null,{"$f":"SUMIFS(Sheet1!S71_OriginalBudget,Sheet1!S71_SubMunicipalVoteNo,$AC:$AC,Sheet1!S71_ItemType,$AD:$AD)","v":0},{"$f":"SUMIFS(Sheet1!S71_PreviousBudget,Sheet1!S71_SubMunicipalVoteNo,$AC:$AC,Sheet1!S71_ItemType,$AD:$AD)","v":0},null,null,null,null,{"$f":"SUMIFS(Sheet1!S71_CurrentAdjustments,Sheet1!S71_SubMunicipalVoteNo,$AC:$AC,Sheet1!S71_ItemType,$AD:$AD)","v":0},0,0,{"$f":"SUMIFS(Sheet1!S71_OY1AdjustedBudget,Sheet1!S71_SubMunicipalVoteNo,$AC:$AC,Sheet1!S71_ItemType,$AD:$AD)","v":0},{"$f":"SUMIFS(Sheet1!S71_OY2AdjustedBudget,Sheet1!S71_SubMunicipalVoteNo,$AC:$AC,Sheet1!S71_ItemType,$AD:$AD)","v":0},null,null,null,null,null,null,null,null,null,null,null,null,null,null,null,1510,"IE","IZ"]
["Total Expenditure by Vote",2,{"$f":"C175+C186+C197+C208+C219+C230+C241+C252+C263+C285+C296+C307+C318+C329+C274","v":443030793},{"$f":"D175+D186+D197+D208+D219+D230+D241+D252+D263+D285+D296+D307+D318+D329+D274","v":468419145},0,0,0,-6719130,0,{"$f":"SUM(E340:I340)","v":-6719130},{"$f":"IF(D340=0,C340+J340,D340+J340)","v":461700015},{"$f":"L175+L186+L197+L208+L219+L230+L241+L252+L263+L285+L296+L307+L318+L329+L274","v":449339045},{"$f":"M175+M186+M197+M208+M219+M230+M241+M252+M263+M285+M296+M307+M318+M329+M274","v":459589147}]
[]
[{"$f":"result","v":"Surplus/ (Deficit) for the year"},2,{"$f":"C172-C340","v":43830101},25588308,0,0,0,2283500,0,{"$f":"SUM(E342:I342)","v":2283500},{"$f":"IF(D342=0,C342+J342,D342+J342)","v":27871808},{"$f":"L172-L340","v":44553274},{"$f":"M172-M340","v":47086759}]
[{"$f":"head27a","v":"References"}]
["1. Insert 'Vote'; e.g. Department, if different to standard structure"]
["2. Must reconcile to Financial Performance ('Revenue and Expenditure by Standard Classification' and 'Revenue and Expenditure')"]
["3. Assign share in 'associate' to relevant Vote"]

{"sheet":"B4-FinPerf RE","index":29,"n_rows":74,"n_cols":29,"rows_kept":74,"cut":false,"hidden":false,"merged":[[1,2,1,10],[1,1,3,1],[73,0,73,12],[74,0,74,12],[66,0,66,12],[67,0,67,12],[68,0,68,12],[69,0,69,12],[71,0,71,12],[1,0,3,0]]}
[{"$f":"muni&\" - \"&_ADJ4&\" - \"&Date","v":"KZN291 Mandeni - Table B4 Adjustments Budget Financial Performance (revenue and expenditure) - 08-04-2025"}]
[{"$f":"desc","v":"Description"},{"$f":"head27","v":"Ref"},{"$f":"Head2","v":"Budget Year 2024/25"},null,null,null,null,null,null,null,null,{"$f":"Head10","v":"Budget Year +1 2025/26"},{"$f":"Head11","v":"Budget Year +2 2026/27"}]
[null,null,{"$f":"Head6","v":"Original Budget"},{"$f":"Head54","v":"Prior Adjusted"},{"$f":"Head51","v":"Accum. Funds"},{"$f":"Head52","v":"Multi-year capital"},{"$f":"Head53","v":"Unfore. Unavoid."},{"$f":"Head55","v":"Nat. or Prov. Govt"},{"$f":"Head50","v":"Other Adjusts."},{"$f":"Head56","v":"Total Adjusts."},{"$f":"Head7","v":"Adjusted Budget"},{"$f":"Head7","v":"Adjusted Budget"},{"$f":"Head7","v":"Adjusted Budget"}]
[null,null,null,3,4,5,6,7,8,9,10]
["R thousands",1,"A","A1","B","C","D","E","F","G","H"]
["Revenue By Source"]
["Exchange Revenue"]
["Service charges - Electricity",2,{"$f":"'SB1'!C18","v":72341431},{"$f":"'SB1'!D18","v":72341431},{"$f":"'SB1'!E18","v":0},{"$f":"'SB1'!F18","v":0},{"$f":"'SB1'!G18","v":0},{"$f":"'SB1'!H18","v":0},{"$f":"'SB1'!I18","v":0},{"$f":"SUM(E8:I8)","v":0},{"$f":"IF(D8=0,C8+J8,D8+J8)","v":72341431},{"$f":"'SB1'!L18","v":75479158},{"$f":"'SB1'!M18","v":79636201},null,null,null,null,null,null,null,null,null,null,null,null,null,null,null,"0300"]
["Service charges - Water",2,{"$f":"'SB1'!C24","v":0},{"$f":"'SB1'!D24","v":0},{"$f":"'SB1'!E24","v":0},{"$f":"'SB1'!F24","v":0},{"$f":"'SB1'!G24","v":0},{"$f":"'SB1'!H24","v":0},{"$f":"'SB1'!I24","v":0},0,0,{"$f":"'SB1'!L24","v":0},{"$f":"'SB1'!M24","v":0},null,null,null,null,null,null,null,null,null,null,null,null,null,null,null,"0400"]
["Service charges - Waste Water Management",2,{"$f":"'SB1'!C30","v":0},{"$f":"'SB1'!D30","v":0},{"$f":"'SB1'!E30","v":0},{"$f":"'SB1'!F30","v":0},{"$f":"'SB1'!G30","v":0},{"$f":"'SB1'!H30","v":0},{"$f":"'SB1'!I30","v":0},0,0,{"$f":"'SB1'!L30","v":0},{"$f":"'SB1'!M30","v":0},null,null,null,null,null,null,null,null,null,null,null,null,null,null,null,"0500"]
["Service charges - Waste Management",2,{"$f":"'SB1'!C37","v":14106120},{"$f":"'SB1'!D37","v":14106120},{"$f":"'SB1'!E37","v":0},{"$f":"'SB1'!F37","v":0},{"$f":"'SB1'!G37","v":0},{"$f":"'SB1'!H37","v":0},{"$f":"'SB1'!I37","v":0},0,14106120,{"$f":"'SB1'!L37","v":14755844},{"$f":"'SB1'!M37","v":15436362},null,null,null,null,null,null,null,null,null,null,null,null,null,null,null,"0600"]
["Sale of Goods and Rendering of Services",null,{"$f":"-SUMIFS(Sheet1!S71_OriginalBudget,Sheet1!S71_A4Code,$AC:$AC)","v":9474305},{"$f":"-SUMIFS(Sheet1!S71_PreviousBudget,Sheet1!S71_A4Code,$AC:$AC)","v":9474305},null,null,null,{"$f":"-SUMIFS(Sheet1!S71_CurrentAdjustments,Sheet1!S71_A4Code,$AC:$AC)","v":-6719130},0,-6719130,2755175,{"$f":"-SUMIFS(Sheet1!S71_OY1AdjustedBudget,Sheet1!S71_A4Code,$AC:$AC)","v":8404524},{"$f":"-SUMIFS(Sheet1!S71_OY2AdjustedBudget,Sheet1!S71_A4Code,$AC:$AC)","v":13354482},null,null,null,null,null,null,null,null,null,null,null,null,null,null,null,"0700"]
["Agency services",null,{"$f":"-SUMIFS(Sheet1!S71_OriginalBudget,Sheet1!S71_A4Code,$AC:$AC)","v":0},{"$f":"-SUMIFS(Sheet1!S71_PreviousBudget,Sheet1!S71_A4Code,$AC:$AC)","v":0},null,null,null,null,{"$f":"-SUMIFS(Sheet1!S71_CurrentAdjustments,Sheet1!S71_A4Code,$AC:$AC)","v":0},0,0,{"$f":"-SUMIFS(Sheet1!S71_OY1AdjustedBudget,Sheet1!S71_A4Code,$AC:$AC)","v":0},{"$f":"-SUMIFS(Sheet1!S71_OY2AdjustedBudget,Sheet1!S71_A4Code,$AC:$AC)","v":0},null,null,null,null,null,null,null,null,null,null,null,null,null,null,null,"0800"]
["Interest",null,{"$f":"-SUMIFS(Sheet1!S71_OriginalBudget,Sheet1!S71_A4Code,$AC:$AC)","v":0},{"$f":"-SUMIFS(Sheet1!S71_PreviousBudget,Sheet1!S71_A4Code,$AC:$AC)","v":0},null,null,null,null,{"$f":"-SUMIFS(Sheet1!S71_CurrentAdjustments,Sheet1!S71_A4Code,$AC:$AC)","v":0},0,0,{"$f":"-SUMIFS(Sheet1!S71_OY1AdjustedBudget,Sheet1!S71_A4Code,$AC:$AC)","v":0},{"$f":"-SUMIFS(Sheet1!S71_OY2AdjustedBudget,Sheet1!S71_A4Code,$AC:$AC)","v":0},null,null,null,null,null,null,null,null,null,null,null,null,null,null,null,"0900"]
["Interest earned from Receivables",null,{"$f":"-SUMIFS(Sheet1!S71_OriginalBudget,Sheet1!S71_A4Code,$AC:$AC)","v":962795},{"$f":"-SUMIFS(Sheet1!S71_PreviousBudget,Sheet1!S71_A4Code,$AC:$AC)","v":1499795},null,null,null,null,{"$f":"-SUMIFS(Sheet1!S71_CurrentAdjustments,Sheet1!S71_A4Code,$AC:$AC)","v":0},0,1499795,{"$f":"-SUMIFS(Sheet1!S71_OY1AdjustedBudget,Sheet1!S71_A4Code,$AC:$AC)","v":1007083},{"$f":"-SUMIFS(Sheet1!S71_OY2AdjustedBudget,Sheet1!S71_A4Code,$AC:$AC)","v":1053409},null,null,null,null,null,null,null,null,null,null,null,null,null,null,null,"1000"]
["Interest earned from Current and Non Current Assets",null,{"$f":"-SUMIFS(Sheet1!S71_OriginalBudget,Sheet1!S71_A4Code,$AC:$AC)","v":28000000},{"$f":"-SUMIFS(Sheet1!S71_PreviousBudget,Sheet1!S71_A4Code,$AC:$AC)","v":28000000},null,null,null,null,{"$f":"-SUMIFS(Sheet1!S71_CurrentAdjustments,Sheet1!S71_A4Code,$AC:$AC)","v":0},0,28000000,{"$f":"-SUMIFS(Sheet1!S71_OY1AdjustedBudget,Sheet1!S71_A4Code,$AC:$AC)","v":28840000},{"$f":"-SUMIFS(Sheet1!S71_OY2AdjustedBudget,Sheet1!S71_A4Code,$AC:$AC)","v":29705200},null,null,null,null,null,null,null,null,null,null,null,null,null,null,null,"1100"]
["Dividends",null,{"$f":"-SUMIFS(Sheet1!S71_OriginalBudget,Sheet1!S71_A4Code,$AC:$AC)","v":0},{"$f":"-SUMIFS(Sheet1!S71_PreviousBudget,Sheet1!S71_A4Code,$AC:$AC)","v":0},null,null,null,null,{"$f":"-SUMIFS(Sheet1!S71_CurrentAdjustments,Sheet1!S71_A4Code,$AC:$AC)","v":0},0,0,{"$f":"-SUMIFS(Sheet1!S71_OY1AdjustedBudget,Sheet1!S71_A4Code,$AC:$AC)","v":0},{"$f":"-SUMIFS(Sheet1!S71_OY2AdjustedBudget,Sheet1!S71_A4Code,$AC:$AC)","v":0},null,null,null,null,null,null,null,null,null,null,null,null,null,null,null,"1200"]
["Rent on Land",null,{"$f":"-SUMIFS(Sheet1!S71_OriginalBudget,Sheet1!S71_A4Code,$AC:$AC)","v":0},{"$f":"-SUMIFS(Sheet1!S71_PreviousBudget,Sheet1!S71_A4Code,$AC:$AC)","v":0},null,null,null,null,{"$f":"-SUMIFS(Sheet1!S71_CurrentAdjustments,Sheet1!S71_A4Code,$AC:$AC)","v":0},0,0,{"$f":"-SUMIFS(Sheet1!S71_OY1AdjustedBudget,Sheet1!S71_A4Code,$AC:$AC)","v":0},{"$f":"-SUMIFS(Sheet1!S71_OY2AdjustedBudget,Sheet1!S71_A4Code,$AC:$AC)","v":0},null,null,null,null,null,null,null,null,null,null,null,null,null,null,null,"1300"]
["Rental from Fixed Assets",null,{"$f":"-SUMIFS(Sheet1!S71_OriginalBudget,Sheet1!S71_A4Code,$AC:$AC)","v":373913},{"$f":"-SUMIFS(Sheet1!S71_PreviousBudget,Sheet1!S71_A4Code,$AC:$AC)","v":723913},null,null,null,null,{"$f":"-SUMIFS(Sheet1!S71_CurrentAdjustments,Sheet1!S71_A4Code,$AC:$AC)","v":0},0,723913,{"$f":"-SUMIFS(Sheet1!S71_OY1AdjustedBudget,Sheet1!S71_A4Code,$AC:$AC)","v":391113},{"$f":"-SUMIFS(Sheet1!S71_OY2AdjustedBudget,Sheet1!S71_A4Code,$AC:$AC)","v":409104},null,null,null,null,null,null,null,null,null,null,null,null,null,null,null,"1400"]
["Licence and permits",null,{"$f":"-SUMIFS(Sheet1!S71_OriginalBudget,Sheet1!S71_A4Code,$AC:$AC)","v":0},{"$f":"-SUMIFS(Sheet1!S71_PreviousBudget,Sheet1!S71_A4Code,$AC:$AC)","v":0},null,null,null,null,{"$f":"-SUMIFS(Sheet1!S71_CurrentAdjustments,Sheet1!S71_A4Code,$AC:$AC)","v":0},0,0,{"$f":"-SUMIFS(Sheet1!S71_OY1AdjustedBudget,Sheet1!S71_A4Code,$AC:$AC)","v":0},{"$f":"-SUMIFS(Sheet1!S71_OY2AdjustedBudget,Sheet1!S71_A4Code,$AC:$AC)","v":0},null,null,null,null,null,null,null,null,null,null,null,null,null,null,null,"1500"]
["Operational Revenue",null,{"$f":"-SUMIFS(Sheet1!S71_OriginalBudget,Sheet1!S71_A4Code,$AC:$AC)","v":1200000},{"$f":"-SUMIFS(Sheet1!S71_PreviousBudget,Sheet1!S71_A4Code,$AC:$AC)","v":1750000},null,null,null,null,{"$f":"-SUMIFS(Sheet1!S71_CurrentAdjustments,Sheet1!S71_A4Code,$AC:$AC)","v":0},0,1750000,{"$f":"-SUMIFS(Sheet1!S71_OY1AdjustedBudget,Sheet1!S71_A4Code,$AC:$AC)","v":1254200},{"$f":"-SUMIFS(Sheet1!S71_OY2AdjustedBudget,Sheet1!S71_A4Code,$AC:$AC)","v":1312924},null,null,null,null,null,null,null,null,null,null,null,null,null,null,null,"1600"]
["Non-Exchange Revenue"]
["Property rates",2,{"$f":"'SB1'!C11","v":62236581},{"$f":"'SB1'!D11","v":62236581},{"$f":"'SB1'!E11","v":0},{"$f":"'SB1'!F11","v":0},{"$f":"'SB1'!G11","v":0},{"$f":"'SB1'!H11","v":0},{"$f":"'SB1'!I11","v":0},{"$f":"'SB1'!J11","v":0},{"$f":"'SB1'!K11","v":62236581},{"$f":"'SB1'!L11","v":65099484},{"$f":"'SB1'!M11","v":69094045},null,null,null,null,null,null,null,null,null,null,null,null,null,null,null,"1800"]
["Surcharges and Taxes",null,{"$f":"-SUMIFS(Sheet1!S71_OriginalBudget,Sheet1!S71_A4Code,$AC:$AC)","v":0},{"$f":"-SUMIFS(Sheet1!S71_PreviousBudget,Sheet1!S71_A4Code,$AC:$AC)","v":0},null,null,null,null,{"$f":"-SUMIFS(Sheet1!S71_CurrentAdjustments,Sheet1!S71_A4Code,$AC:$AC)","v":0},{"$f":"SUM(E24:I24)","v":0},{"$f":"IF(D24=0,C24+J24,D24+J24)","v":0},{"$f":"-SUMIFS(Sheet1!S71_OY1AdjustedBudget,Sheet1!S71_A4Code,$AC:$AC)","v":0},{"$f":"-SUMIFS(Sheet1!S71_OY2AdjustedBudget,Sheet1!S71_A4Code,$AC:$AC)","v":0},null,null,null,null,null,null,null,null,null,null,null,null,null,null,null,"1900"]
["Fines, penalties and forfeits",null,{"$f":"-SUMIFS(Sheet1!S71_OriginalBudget,Sheet1!S71_A4Code,$AC:$AC)","v":1310490},{"$f":"-SUMIFS(Sheet1!S71_PreviousBudget,Sheet1!S71_A4Code,$AC:$AC)","v":1310490},null,null,null,null,{"$f":"-SUMIFS(Sheet1!S71_CurrentAdjustments,Sheet1!S71_A4Code,$AC:$AC)","v":0},{"$f":"SUM(E25:I25)","v":0},{"$f":"IF(D25=0,C25+J25,D25+J25)","v":1310490},{"$f":"-SUMIFS(Sheet1!S71_OY1AdjustedBudget,Sheet1!S71_A4Code,$AC:$AC)","v":1370770},{"$f":"-SUMIFS(Sheet1!S71_OY2AdjustedBudget,Sheet1!S71_A4Code,$AC:$AC)","v":1433831},null,null,null,null,null,null,null,null,null,null,null,null,null,null,null,"2000"]
["Licences or permits",null,{"$f":"-SUMIFS(Sheet1!S71_OriginalBudget,Sheet1!S71_A4Code,$AC:$AC)","v":956522},{"$f":"-SUMIFS(Sheet1!S71_PreviousBudget,Sheet1!S71_A4Code,$AC:$AC)","v":956522},null,null,null,null,{"$f":"-SUMIFS(Sheet1!S71_CurrentAdjustments,Sheet1!S71_A4Code,$AC:$AC)","v":0},0,956522,{"$f":"-SUMIFS(Sheet1!S71_OY1AdjustedBudget,Sheet1!S71_A4Code,$AC:$AC)","v":1000522},{"$f":"-SUMIFS(Sheet1!S71_OY2AdjustedBudget,Sheet1!S71_A4Code,$AC:$AC)","v":1046546},null,null,null,null,null,null,null,null,null,null,null,null,null,null,null,"2100"]
["Transfer and subsidies - Operational",null,{"$f":"-SUMIFS(Sheet1!S71_OriginalBudget,Sheet1!S71_A4Code,$AC:$AC)","v":253162620},{"$f":"-SUMIFS(Sheet1!S71_PreviousBudget,Sheet1!S71_A4Code,$AC:$AC)","v":253162620},null,null,null,null,{"$f":"-SUMIFS(Sheet1!S71_CurrentAdjustments,Sheet1!S71_A4Code,$AC:$AC)","v":0},0,253162620,{"$f":"-SUMIFS(Sheet1!S71_OY1AdjustedBudget,Sheet1!S71_A4Code,$AC:$AC)","v":252337450},{"$f":"-SUMIFS(Sheet1!S71_OY2AdjustedBudget,Sheet1!S71_A4Code,$AC:$AC)","v":246760150},null,null,null,null,null,null,null,null,null,null,null,null,null,null,null,"2200"]
["Interest",null,{"$f":"-SUMIFS(Sheet1!S71_OriginalBudget,Sheet1!S71_A4Code,$AC:$AC)","v":2975737},{"$f":"-SUMIFS(Sheet1!S71_PreviousBudget,Sheet1!S71_A4Code,$AC:$AC)","v":3307737},null,null,null,null,{"$f":"-SUMIFS(Sheet1!S71_CurrentAdjustments,Sheet1!S71_A4Code,$AC:$AC)","v":0},0,3307737,{"$f":"-SUMIFS(Sheet1!S71_OY1AdjustedBudget,Sheet1!S71_A4Code,$AC:$AC)","v":3112621},{"$f":"-SUMIFS(Sheet1!S71_OY2AdjustedBudget,Sheet1!S71_A4Code,$AC:$AC)","v":3255802},null,null,null,null,null,null,null,null,null,null,null,null,null,null,null,"2300"]
["Fuel Levy",null,{"$f":"-SUMIFS(Sheet1!S71_OriginalBudget,Sheet1!S71_A4Code,$AC:$AC)","v":0},{"$f":"-SUMIFS(Sheet1!S71_PreviousBudget,Sheet1!S71_A4Code,$AC:$AC)","v":0},null,null,null,null,{"$f":"-SUMIFS(Sheet1!S71_CurrentAdjustments,Sheet1!S71_A4Code,$AC:$AC)","v":0},0,0,{"$f":"-SUMIFS(Sheet1!S71_OY1AdjustedBudget,Sheet1!S71_A4Code,$AC:$AC)","v":0},{"$f":"-SUMIFS(Sheet1!S71_OY2AdjustedBudget,Sheet1!S71_A4Code,$AC:$AC)","v":0},null,null,null,null,null,null,null,null,null,null,null,null,null,null,null,"2400"]
["Operational Revenue",null,{"$f":"-SUMIFS(Sheet1!S71_OriginalBudget,Sheet1!S71_A4Code,$AC:$AC)","v":0},{"$f":"-SUMIFS(Sheet1!S71_PreviousBudget,Sheet1!S71_A4Code,$AC:$AC)","v":0},null,null,null,null,{"$f":"-SUMIFS(Sheet1!S71_CurrentAdjustments,Sheet1!S71_A4Code,$AC:$AC)","v":0},0,0,{"$f":"-SUMIFS(Sheet1!S71_OY1AdjustedBudget,Sheet1!S71_A4Code,$AC:$AC)","v":0},{"$f":"-SUMIFS(Sheet1!S71_OY2AdjustedBudget,Sheet1!S71_A4Code,$AC:$AC)","v":0},null,null,null,null,null,null,null,null,null,null,null,null,null,null,null,"2500"]
["Gains on disposal of Assets",null,{"$f":"-SUMIFS(Sheet1!S71_OriginalBudget,Sheet1!S71_A4Code,$AC:$AC)","v":0},{"$f":"-SUMIFS(Sheet1!S71_PreviousBudget,Sheet1!S71_A4Code,$AC:$AC)","v":0},null,null,null,null,{"$f":"-SUMIFS(Sheet1!S71_CurrentAdjustments,Sheet1!S71_A4Code,$AC:$AC)","v":0},0,0,{"$f":"-SUMIFS(Sheet1!S71_OY1AdjustedBudget,Sheet1!S71_A4Code,$AC:$AC)","v":0},{"$f":"-SUMIFS(Sheet1!S71_OY2AdjustedBudget,Sheet1!S71_A4Code,$AC:$AC)","v":0},null,null,null,null,null,null,null,null,null,null,null,null,null,null,null,"2600"]
["Other Gains",null,{"$f":"-SUMIFS(Sheet1!S71_OriginalBudget,Sheet1!S71_A4Code,$AC:$AC)","v":0},{"$f":"-SUMIFS(Sheet1!S71_PreviousBudget,Sheet1!S71_A4Code,$AC:$AC)","v":0},null,null,null,null,{"$f":"-SUMIFS(Sheet1!S71_CurrentAdjustments,Sheet1!S71_A4Code,$AC:$AC)","v":0},0,0,{"$f":"-SUMIFS(Sheet1!S71_OY1AdjustedBudget,Sheet1!S71_A4Code,$AC:$AC)","v":0},{"$f":"-SUMIFS(Sheet1!S71_OY2AdjustedBudget,Sheet1!S71_A4Code,$AC:$AC)","v":0},null,null,null,null,null,null,null,null,null,null,null,null,null,null,null,"2700"]
["Discontinued Operations",null,{"$f":"-SUMIFS(Sheet1!S71_OriginalBudget,Sheet1!S71_A4Code,$AC:$AC)","v":0},{"$f":"-SUMIFS(Sheet1!S71_PreviousBudget,Sheet1!S71_A4Code,$AC:$AC)","v":0},null,null,null,null,{"$f":"-SUMIFS(Sheet1!S71_CurrentAdjustments,Sheet1!S71_A4Code,$AC:$AC)","v":0},{"$f":"SUM(E33:I33)","v":0},{"$f":"IF(D33=0,C33+J33,D33+J33)","v":0},{"$f":"-SUMIFS(Sheet1!S71_OY1AdjustedBudget,Sheet1!S71_A4Code,$AC:$AC)","v":0},{"$f":"-SUMIFS(Sheet1!S71_OY2AdjustedBudget,Sheet1!S71_A4Code,$AC:$AC)","v":0},null,null,null,null,null,null,null,null,null,null,null,null,null,null,null,"2800"]
["Total Revenue (excluding capital transfers and contributions)",null,{"$f":"SUM(C8:C23)+SUM(C24:C33)","v":447100514},{"$f":"SUM(D8:D23)+SUM(D24:D33)","v":448869514},0,0,0,-6719130,0,{"$f":"SUM(J8:J23)+SUM(J24:J33)","v":-6719130},{"$f":"SUM(K8:K23)+SUM(K24:K33)","v":442150384},{"$f":"SUM(L8:L23)+SUM(L24:L33)","v":453052769},{"$f":"SUM(M8:M23)+SUM(M24:M33)","v":462498056}]
[]
["Expenditure By Type"]
["Employee related costs",null,{"$f":"'SB1'!C62","v":152542627},{"$f":"'SB1'!D62","v":152542635},{"$f":"'SB1'!E62","v":0},{"$f":"'SB1'!F62","v":0},{"$f":"'SB1'!G62","v":0},{"$f":"'SB1'!H62","v":0},{"$f":"'SB1'!I62","v":0},{"$f":"SUM(E37:I37)","v":0},{"$f":"IF(D37=0,C37+J37,D37+J37)","v":152542635},{"$f":"'SB1'!L62","v":153638430},{"$f":"'SB1'!M62","v":154713325},null,null,null,null,null,null,null,null,null,null,null,null,null,null,null,"3100"]
["Remuneration of councillors",null,{"$f":"SUMIFS(Sheet1!S71_OriginalBudget,Sheet1!S71_A4Code,$AC:$AC)","v":16387620},{"$f":"SUMIFS(Sheet1!S71_PreviousBudget,Sheet1!S71_A4Code,$AC:$AC)","v":16387620},null,null,null,null,{"$f":"SUMIFS(Sheet1!S71_CurrentAdjustments,Sheet1!S71_A4Code,$AC:$AC)","v":0},0,16387620,{"$f":"SUMIFS(Sheet1!S71_OY1AdjustedBudget,Sheet1!S71_A4Code,$AC:$AC)","v":16879241},{"$f":"SUMIFS(Sheet1!S71_OY2AdjustedBudget,Sheet1!S71_A4Code,$AC:$AC)","v":17216832},null,null,null,null,null,null,null,null,null,null,null,null,null,null,null,"3200"]
["Bulk purchases - electricity",null,{"$f":"+'SB1'!C83","v":57865599},{"$f":"+'SB1'!D83","v":57865599},{"$f":"+'SB1'!E83","v":0},{"$f":"+'SB1'!F83","v":0},{"$f":"+'SB1'!G83","v":0},{"$f":"+'SB1'!H83","v":0},{"$f":"+'SB1'!I83","v":0},0,57865599,{"$f":"+'SB1'!L83","v":59163591},{"$f":"+'SB1'!M83","v":61931116},null,null,null,null,null,null,null,null,null,null,null,null,null,null,null,"3300"]
["Inventory consumed",null,{"$f":"'SB1'!C136","v":5118250},{"$f":"'SB1'!D136","v":5634222},{"$f":"'SB1'!E136","v":0},{"$f":"'SB1'!F136","v":0},{"$f":"'SB1'!G136","v":0},{"$f":"'SB1'!H136","v":0},{"$f":"'SB1'!I136","v":0},0,5634222,{"$f":"'SB1'!L136","v":4858200},{"$f":"'SB1'!M136","v":5117888},null,null,null,null,null,null,null,null,null,null,null,null,null,null,null,"3400"]
["Debt impairment",null,{"$f":"SUMIFS(Sheet1!S71_OriginalBudget,Sheet1!S71_A4Code,$AC:$AC)","v":30260870},{"$f":"SUMIFS(Sheet1!S71_PreviousBudget,Sheet1!S71_A4Code,$AC:$AC)","v":30260870},null,null,null,null,{"$f":"SUMIFS(Sheet1!S71_CurrentAdjustments,Sheet1!S71_A4Code,$AC:$AC)","v":0},0,30260870,{"$f":"SUMIFS(Sheet1!S71_OY1AdjustedBudget,Sheet1!S71_A4Code,$AC:$AC)","v":30463478},{"$f":"SUMIFS(Sheet1!S71_OY2AdjustedBudget,Sheet1!S71_A4Code,$AC:$AC)","v":30416114},null,null,null,null,null,null,null,null,null,null,null,null,null,null,null,"3500"]
["Depreciation and amortisation",null,{"$f":"SUMIFS(Sheet1!S71_OriginalBudget,Sheet1!S71_A4Code,$AC:$AC)","v":37856010},{"$f":"SUMIFS(Sheet1!S71_PreviousBudget,Sheet1!S71_A4Code,$AC:$AC)","v":37856010},null,null,null,null,{"$f":"SUMIFS(Sheet1!S71_CurrentAdjustments,Sheet1!S71_A4Code,$AC:$AC)","v":0},{"$f":"SUM(E42:I42)","v":0},{"$f":"IF(D42=0,C42+J42,D42+J42)","v":37856010},{"$f":"SUMIFS(Sheet1!S71_OY1AdjustedBudget,Sheet1!S71_A4Code,$AC:$AC)","v":38991690},{"$f":"SUMIFS(Sheet1!S71_OY2AdjustedBudget,Sheet1!S71_A4Code,$AC:$AC)","v":39771522},null,null,null,null,null,null,null,null,null,null,null,null,null,null,null,"3600"]
["Interest",null,{"$f":"SUMIFS(Sheet1!S71_OriginalBudget,Sheet1!S71_A4Code,$AC:$AC)","v":3300000},{"$f":"SUMIFS(Sheet1!S71_PreviousBudget,Sheet1!S71_A4Code,$AC:$AC)","v":3300000},null,null,null,null,{"$f":"SUMIFS(Sheet1!S71_CurrentAdjustments,Sheet1!S71_A4Code,$AC:$AC)","v":0},{"$f":"SUM(E43:I43)","v":0},{"$f":"IF(D43=0,C43+J43,D43+J43)","v":3300000},{"$f":"SUMIFS(Sheet1!S71_OY1AdjustedBudget,Sheet1!S71_A4Code,$AC:$AC)","v":3451800},{"$f":"SUMIFS(Sheet1!S71_OY2AdjustedBudget,Sheet1!S71_A4Code,$AC:$AC)","v":3610581},null,null,null,null,null,null,null,null,null,null,null,null,null,null,null,"3700"]
["Contracted services",null,{"$f":"'SB1'!C94","v":79269715},{"$f":"'SB1'!D94","v":90976482},{"$f":"'SB1'!E94","v":0},{"$f":"'SB1'!F94","v":0},{"$f":"'SB1'!G94","v":0},{"$f":"'SB1'!H94","v":-6719130},{"$f":"'SB1'!I94","v":0},-6719130,84257352,{"$f":"'SB1'!L94","v":77357172},{"$f":"'SB1'!M94","v":79136253},null,null,null,null,null,null,null,null,null,null,null,null,null,null,null,"3800"]
["Transfers and subsidies",null,{"$f":"SUMIFS(Sheet1!S71_OriginalBudget,Sheet1!S71_A4Code,$AC:$AC)","v":0},{"$f":"SUMIFS(Sheet1!S71_PreviousBudget,Sheet1!S71_A4Code,$AC:$AC)","v":0},null,null,null,null,{"$f":"SUMIFS(Sheet1!S71_CurrentAdjustments,Sheet1!S71_A4Code,$AC:$AC)","v":0},0,0,{"$f":"SUMIFS(Sheet1!S71_OY1AdjustedBudget,Sheet1!S71_A4Code,$AC:$AC)","v":0},{"$f":"SUMIFS(Sheet1!S71_OY2AdjustedBudget,Sheet1!S71_A4Code,$AC:$AC)","v":0},null,null,null,null,null,null,null,null,null,null,null,null,null,null,null,"3900"]
["Irrecoverable debts written off",null,{"$f":"SUMIFS(Sheet1!S71_OriginalBudget,Sheet1!S71_A4Code,$AC:$AC)","v":6260869},{"$f":"SUMIFS(Sheet1!S71_PreviousBudget,Sheet1!S71_A4Code,$AC:$AC)","v":6260869},null,null,null,null,{"$f":"SUMIFS(Sheet1!S71_CurrentAdjustments,Sheet1!S71_A4Code,$AC:$AC)","v":0},{"$f":"SUM(E46:I46)","v":0},{"$f":"IF(D46=0,C46+J46,D46+J46)","v":6260869},{"$f":"SUMIFS(Sheet1!S71_OY1AdjustedBudget,Sheet1!S71_A4Code,$AC:$AC)","v":6323478},{"$f":"SUMIFS(Sheet1!S71_OY2AdjustedBudget,Sheet1!S71_A4Code,$AC:$AC)","v":6386713},null,null,null,null,null,null,null,null,null,null,null,null,null,null,null,"4000"]
["Operational costs",null,{"$f":"SUMIFS(Sheet1!S71_OriginalBudget,Sheet1!S71_A4Code,$AC:$AC)","v":54754918},{"$f":"SUMIFS(Sheet1!S71_PreviousBudget,Sheet1!S71_A4Code,$AC:$AC)","v":66734838},null,null,null,null,{"$f":"SUMIFS(Sheet1!S71_CurrentAdjustments,Sheet1!S71_A4Code,$AC:$AC)","v":0},{"$f":"SUM(E47:I47)","v":0},{"$f":"IF(D47=0,C47+J47,D47+J47)","v":66734838},{"$f":"SUMIFS(Sheet1!S71_OY1AdjustedBudget,Sheet1!S71_A4Code,$AC:$AC)","v":58211965},{"$f":"SUMIFS(Sheet1!S71_OY2AdjustedBudget,Sheet1!S71_A4Code,$AC:$AC)","v":61288803},null,null,null,null,null,null,null,null,null,null,null,null,null,null,null,"4100"]
["Losses on disposal of Assets",null,{"$f":"SUMIFS(Sheet1!S71_OriginalBudget,Sheet1!S71_A4Code,$AC:$AC)","v":0},{"$f":"SUMIFS(Sheet1!S71_PreviousBudget,Sheet1!S71_A4Code,$AC:$AC)","v":600000},null,null,null,null,{"$f":"SUMIFS(Sheet1!S71_CurrentAdjustments,Sheet1!S71_A4Code,$AC:$AC)","v":0},{"$f":"SUM(E48:I48)","v":0},{"$f":"IF(D48=0,C48+J48,D48+J48)","v":600000},{"$f":"SUMIFS(Sheet1!S71_OY1AdjustedBudget,Sheet1!S71_A4Code,$AC:$AC)","v":0},{"$f":"SUMIFS(Sheet1!S71_OY2AdjustedBudget,Sheet1!S71_A4Code,$AC:$AC)","v":0},null,null,null,null,null,null,null,null,null,null,null,null,null,null,null,"4200"]
["Other Losses",null,{"$f":"SUMIFS(Sheet1!S71_OriginalBudget,Sheet1!S71_A4Code,$AC:$AC)","v":0},{"$f":"SUMIFS(Sheet1!S71_PreviousBudget,Sheet1!S71_A4Code,$AC:$AC)","v":0},null,null,null,null,{"$f":"SUMIFS(Sheet1!S71_CurrentAdjustments,Sheet1!S71_A4Code,$AC:$AC)","v":0},{"$f":"SUM(E49:I49)","v":0},{"$f":"IF(D49=0,C49+J49,D49+J49)","v":0},{"$f":"SUMIFS(Sheet1!S71_OY1AdjustedBudget,Sheet1!S71_A4Code,$AC:$AC)","v":0},{"$f":"SUMIFS(Sheet1!S71_OY2AdjustedBudget,Sheet1!S71_A4Code,$AC:$AC)","v":0},null,null,null,null,null,null,null,null,null,null,null,null,null,null,null,"4300"]
["Total Expenditure",null,{"$f":"SUM(C37:C49)","v":443616478},468419145,0,0,0,-6719130,0,-6719130,461700015,449339045,459589147]
[]
["Surplus/(Deficit)",null,{"$f":"C34-C50","v":3484036},-19549631,0,0,0,0,0,0,-19549631,3713724,2908909]
["Transfers and subsidies - capital (monetary allocations)",null,{"$f":"-SUMIFS(Sheet1!S71_OriginalBudget,Sheet1!S71_A4Code,$AC:$AC)","v":39760380},{"$f":"-SUMIFS(Sheet1!S71_PreviousBudget,Sheet1!S71_A4Code,$AC:$AC)","v":45137939},null,null,null,{"$f":"-SUMIFS(Sheet1!S71_CurrentAdjustments,Sheet1!S71_A4Code,$AC:$AC)","v":2283500},0,{"$f":"SUM(E53:I53)","v":2283500},{"$f":"IF(D53=0,C53+J53,D53+J53)","v":47421439},{"$f":"-SUMIFS(Sheet1!S71_OY1AdjustedBudget,Sheet1!S71_A4Code,$AC:$AC)","v":40839550},{"$f":"-SUMIFS(Sheet1!S71_OY2AdjustedBudget,Sheet1!S71_A4Code,$AC:$AC)","v":44177850},null,null,null,null,null,null,null,null,null,null,null,null,null,null,null,"4600"]
["Transfers and subsidies - capital (in-kind - all) ",null,{"$f":"-SUMIFS(Sheet1!S71_OriginalBudget,Sheet1!S71_A4Code,$AC:$AC)","v":0},{"$f":"-SUMIFS(Sheet1!S71_PreviousBudget,Sheet1!S71_A4Code,$AC:$AC)","v":0},null,null,null,null,{"$f":"-SUMIFS(Sheet1!S71_CurrentAdjustments,Sheet1!S71_A4Code,$AC:$AC)","v":0},{"$f":"SUM(E54:I54)","v":0},{"$f":"IF(D54=0,C54+J54,D54+J54)","v":0},{"$f":"-SUMIFS(Sheet1!S71_OY1AdjustedBudget,Sheet1!S71_A4Code,$AC:$AC)","v":0},{"$f":"-SUMIFS(Sheet1!S71_OY2AdjustedBudget,Sheet1!S71_A4Code,$AC:$AC)","v":0},null,null,null,null,null,null,null,null,null,null,null,null,null,null,null,"4700"]
["Surplus/(Deficit) before taxation",null,{"$f":"SUM(C52:C54)","v":43244416},25588308,0,0,0,2283500,0,2283500,27871808,44553274,47086759]
["Income Tax",null,{"$f":"SUMIFS(Sheet1!S71_OriginalBudget,Sheet1!S71_A4Code,$AC:$AC)","v":0},{"$f":"SUMIFS(Sheet1!S71_PreviousBudget,Sheet1!S71_A4Code,$AC:$AC)","v":0},null,null,null,null,{"$f":"SUMIFS(Sheet1!S71_CurrentAdjustments,Sheet1!S71_A4Code,$AC:$AC)","v":0},{"$f":"SUM(E56:I56)","v":0},{"$f":"IF(D56=0,C56+J56,D56+J56)","v":0},{"$f":"SUMIFS(Sheet1!S71_OY1AdjustedBudget,Sheet1!S71_A4Code,$AC:$AC)","v":0},{"$f":"SUMIFS(Sheet1!S71_OY2AdjustedBudget,Sheet1!S71_A4Code,$AC:$AC)","v":0},null,null,null,null,null,null,null,null,null,null,null,null,null,null,null,"4900"]
["Surplus/(Deficit) after taxation",null,{"$f":"C55-C56","v":43244416},25588308,0,0,0,2283500,0,2283500,27871808,44553274,47086759]
["Share of Surplus/Deficit attributable to Joint Venture",null,null,null,null,null,null,null,null,null,null,null,null,null,null,null,null,null,null,null,null,null,null,null,null,null,null,null,"5100"]
["Share of Surplus/Deficit attributable to Minorities",null,{"$f":"SUMIFS(Sheet1!S71_OriginalBudget,Sheet1!S71_A4Code,$AC:$AC)","v":0},{"$f":"SUMIFS(Sheet1!S71_PreviousBudget,Sheet1!S71_A4Code,$AC:$AC)","v":0},null,null,null,null,{"$f":"SUMIFS(Sheet1!S71_CurrentAdjustments,Sheet1!S71_A4Code,$AC:$AC)","v":0},{"$f":"SUM(E59:I59)","v":0},{"$f":"IF(D59=0,C59+J59,D59+J59)","v":0},{"$f":"SUMIFS(Sheet1!S71_OY1AdjustedBudget,Sheet1!S71_A4Code,$AC:$AC)","v":0},{"$f":"SUMIFS(Sheet1!S71_OY2AdjustedBudget,Sheet1!S71_A4Code,$AC:$AC)","v":0},null,null,null,null,null,null,null,null,null,null,null,null,null,null,null,"5200"]
["Surplus/(Deficit) attributable to municipality",null,{"$f":"SUM(C57:C59)","v":43244416},25588308,0,0,0,2283500,0,2283500,27871808,44553274,47086759]
["Share of Surplus/Deficit attributable to Associate",null,null,null,null,null,null,null,null,null,null,null,null,null,null,null,null,null,null,null,null,null,null,null,null,null,null,null,"5400"]
["Intercompany/Parent subsidiary transactions",null,{"$f":"SUMIFS(Sheet1!S71_OriginalBudget,Sheet1!S71_A4Code,$AC:$AC)","v":0},{"$f":"SUMIFS(Sheet1!S71_PreviousBudget,Sheet1!S71_A4Code,$AC:$AC)","v":0},null,null,null,null,{"$f":"SUMIFS(Sheet1!S71_CurrentAdjustments,Sheet1!S71_A4Code,$AC:$AC)","v":0},{"$f":"SUM(E62:I62)","v":0},{"$f":"IF(D62=0,C62+J62,D62+J62)","v":0},{"$f":"SUMIFS(Sheet1!S71_OY1AdjustedBudget,Sheet1!S71_A4Code,$AC:$AC)","v":0},{"$f":"SUMIFS(Sheet1!S71_OY2AdjustedBudget,Sheet1!S71_A4Code,$AC:$AC)","v":0},null,null,null,null,null,null,null,null,null,null,null,null,null,null,null,"5500"]
["Surplus/ (Deficit) for the year",1,{"$f":"C60+C62","v":43244416},25588308,0,0,0,2283500,0,2283500,27871808,44553274,47086759]
[{"$f":"head27a","v":"References"}]
["1. Classifications are revenue sources and expenditure type"]
["2. Detail to be provided in Table SB1"]
["3. Only complete if a previous adjusted budget has been approved in the same financial year. Reflect most recent adjusted budget."]
["4. Additional cash-backed accumulated funds/unspent funds (MFMA section 18(1)(b) and section 28(2)(e)) identified after the Original Budget approved and after annual financial statements audited (note: only where underspending could not reasonably have been foreseen)"]
["5. Increases of funds approved under MFMA section 31"]
["6. Adjustments approved in accordance with MFMA section 29 "]
["7. Adjustments to transfers from National or Provincial Government"]
["8. Adjusts. = 'Other' Adjustments proposed to be approved; including revenue under-collection (MFMA section 28(2)(a)); additional revenue appropriation on existing programmes (section 28(2))(b); projected savings (section 28(2)(d)); error correction (section 28(2)(f))"]
["9. G = B + C + D + E + F"]
["10. Adjusted Budget H = (A or A1/2 etc) + G"]

{"sheet":"B5-Capex","index":30,"n_rows":91,"n_cols":30,"rows_kept":91,"cut":false,"hidden":false,"merged":[[88,0,88,12],[1,0,2,0],[1,1,2,1],[78,0,78,12],[1,2,1,10],[79,0,79,11],[80,0,80,11],[81,0,81,12],[82,0,82,12],[83,0,83,12],[84,0,84,12],[86,0,86,12]]}
[{"$f":"muni&\" - \"&_ADJ5&\" - \"&Date","v":"KZN291 Mandeni - Table B5 Adjustments Capital Expenditure Budget by vote and funding - 08-04-2025"}]
[{"$f":"desc","v":"Description"},{"$f":"head27","v":"Ref"},{"$f":"Head2","v":"Budget Year 2024/25"},null,null,null,null,null,null,null,null,{"$f":"Head10","v":"Budget Year +1 2025/26"},{"$f":"Head11","v":"Budget Year +2 2026/27"}]
[null,null,{"$f":"Head6","v":"Original Budget"},{"$f":"Head54","v":"Prior Adjusted"},{"$f":"Head51","v":"Accum. Funds"},{"$f":"Head52","v":"Multi-year capital"},{"$f":"Head53","v":"Unfore. Unavoid."},{"$f":"Head55","v":"Nat. or Prov. Govt"},{"$f":"Head50","v":"Other Adjusts."},{"$f":"Head56","v":"Total Adjusts."},{"$f":"Head7","v":"Adjusted Budget"},{"$f":"Head7","v":"Adjusted Budget"},{"$f":"Head7","v":"Adjusted Budget"}]
[null,null,null,5,6,7,8,9,10,11,12]
["R thousands",null,"A","A1","B","C","D","E","F","G","H"]
["Capital expenditure - Vote"]
["Multi-year expenditure to be adjusted",2]
[{"$f":"B5B!A8","v":"Vote 1 - Executive and council"},null,{"$f":"B5B!C8","v":0},{"$f":"B5B!D8","v":0},{"$f":"B5B!E8","v":0},{"$f":"B5B!F8","v":0},{"$f":"B5B!G8","v":0},{"$f":"B5B!H8","v":0},{"$f":"B5B!I8","v":0},{"$f":"SUM(E8:I8)","v":0},{"$f":"IF(D8=0,C8+J8,D8+J8)","v":0},{"$f":"B5B!L8","v":0},{"$f":"B5B!M8","v":0}]
[{"$f":"B5B!A19","v":"Vote 2 - Finance and administration"},null,{"$f":"B5B!C19","v":0},{"$f":"B5B!D19","v":0},{"$f":"B5B!E19","v":0},{"$f":"B5B!F19","v":0},{"$f":"B5B!G19","v":0},{"$f":"B5B!H19","v":0},{"$f":"B5B!I19","v":0},{"$f":"SUM(E9:I9)","v":0},0,{"$f":"B5B!L19","v":0},{"$f":"B5B!M19","v":0}]
[{"$f":"B5B!A30","v":"Vote 3 - Internal audit"},null,{"$f":"B5B!C30","v":0},{"$f":"B5B!D30","v":0},{"$f":"B5B!E30","v":0},{"$f":"B5B!F30","v":0},{"$f":"B5B!G30","v":0},{"$f":"B5B!H30","v":0},{"$f":"B5B!I30","v":0},0,0,{"$f":"B5B!L30","v":0},{"$f":"B5B!M30","v":0}]
[{"$f":"B5B!A41","v":"Vote 4 - Community and social services"},null,{"$f":"B5B!C41","v":0},{"$f":"B5B!D41","v":0},{"$f":"B5B!E41","v":0},{"$f":"B5B!F41","v":0},{"$f":"B5B!G41","v":0},{"$f":"B5B!H41","v":0},{"$f":"B5B!I41","v":0},0,0,{"$f":"B5B!L41","v":0},{"$f":"B5B!M41","v":0}]
[{"$f":"B5B!A52","v":"Vote 5 - Sport and Recreation"},null,{"$f":"B5B!C52","v":0},{"$f":"B5B!D52","v":0},{"$f":"B5B!E52","v":0},{"$f":"B5B!F52","v":0},{"$f":"B5B!G52","v":0},{"$f":"B5B!H52","v":0},{"$f":"B5B!I52","v":0},0,0,{"$f":"B5B!L52","v":0},{"$f":"B5B!M52","v":0}]
[{"$f":"B5B!A63","v":"Vote 6 - Public safety"},null,{"$f":"B5B!C63","v":0},{"$f":"B5B!D63","v":0},{"$f":"B5B!E63","v":0},{"$f":"B5B!F63","v":0},{"$f":"B5B!G63","v":0},{"$f":"B5B!H63","v":0},{"$f":"B5B!I63","v":0},0,0,{"$f":"B5B!L63","v":0},{"$f":"B5B!M63","v":0}]
[{"$f":"B5B!A74","v":"Vote 7 - Housing"},null,{"$f":"B5B!C74","v":0},{"$f":"B5B!D74","v":0},{"$f":"B5B!E74","v":0},{"$f":"B5B!F74","v":0},{"$f":"B5B!G74","v":0},{"$f":"B5B!H74","v":0},{"$f":"B5B!I74","v":0},0,0,{"$f":"B5B!L74","v":0},{"$f":"B5B!M74","v":0}]
[{"$f":"B5B!A85","v":"Vote 8 - Planning and Development"},null,{"$f":"B5B!C85","v":0},{"$f":"B5B!D85","v":0},{"$f":"B5B!E85","v":0},{"$f":"B5B!F85","v":0},{"$f":"B5B!G85","v":0},{"$f":"B5B!H85","v":0},{"$f":"B5B!I85","v":0},0,0,{"$f":"B5B!L85","v":0},{"$f":"B5B!M85","v":0}]
[{"$f":"B5B!A96","v":"Vote 9 - Road transport"},null,{"$f":"B5B!C96","v":0},{"$f":"B5B!D96","v":0},{"$f":"B5B!E96","v":0},{"$f":"B5B!F96","v":0},{"$f":"B5B!G96","v":0},{"$f":"B5B!H96","v":0},{"$f":"B5B!I96","v":0},0,0,{"$f":"B5B!L96","v":0},{"$f":"B5B!M96","v":0}]
[{"$f":"B5B!A107","v":"Vote 10 - Energy sources"},null,{"$f":"B5B!C107","v":0},{"$f":"B5B!D107","v":0},{"$f":"B5B!E107","v":0},{"$f":"B5B!F107","v":0},{"$f":"B5B!G107","v":0},{"$f":"B5B!H107","v":0},{"$f":"B5B!I107","v":0},0,0,{"$f":"B5B!L107","v":0},{"$f":"B5B!M107","v":0}]
[{"$f":"B5B!A118","v":"Vote 11 - Waste Management"},null,{"$f":"B5B!C118","v":0},{"$f":"B5B!D118","v":0},{"$f":"B5B!E118","v":0},{"$f":"B5B!F118","v":0},{"$f":"B5B!G118","v":0},{"$f":"B5B!H118","v":0},{"$f":"B5B!I118","v":0},0,0,{"$f":"B5B!L118","v":0},{"$f":"B5B!M118","v":0}]
[{"$f":"B5B!A129","v":"Vote 12 - Environmental Protection"},null,{"$f":"B5B!C129","v":0},{"$f":"B5B!D129","v":0},{"$f":"B5B!E129","v":0},{"$f":"B5B!F129","v":0},{"$f":"B5B!G129","v":0},{"$f":"B5B!H129","v":0},{"$f":"B5B!I129","v":0},0,0,{"$f":"B5B!L129","v":0},{"$f":"B5B!M129","v":0}]
[{"$f":"B5B!A140","v":"Vote 13 - [NAME OF VOTE 13]"},null,{"$f":"B5B!C140","v":0},{"$f":"B5B!D140","v":0},{"$f":"B5B!E140","v":0},{"$f":"B5B!F140","v":0},{"$f":"B5B!G140","v":0},{"$f":"B5B!H140","v":0},{"$f":"B5B!I140","v":0},0,0,{"$f":"B5B!L140","v":0},{"$f":"B5B!M140","v":0}]
[{"$f":"B5B!A151","v":"Vote 14 - [NAME OF VOTE 14]"},null,{"$f":"B5B!C151","v":0},{"$f":"B5B!D151","v":0},{"$f":"B5B!E151","v":0},{"$f":"B5B!F151","v":0},{"$f":"B5B!G151","v":0},{"$f":"B5B!H151","v":0},{"$f":"B5B!I151","v":0},0,0,{"$f":"B5B!L151","v":0},{"$f":"B5B!M151","v":0}]
[{"$f":"B5B!A162","v":"Vote 15 - [NAME OF VOTE 15]"},null,{"$f":"B5B!C162","v":0},{"$f":"B5B!D162","v":0},{"$f":"B5B!E162","v":0},{"$f":"B5B!F162","v":0},{"$f":"B5B!G162","v":0},{"$f":"B5B!H162","v":0},{"$f":"B5B!I162","v":0},0,0,{"$f":"B5B!L162","v":0},{"$f":"B5B!M162","v":0}]
["Capital multi-year expenditure sub-total",3,{"$f":"SUM(C8:C22)","v":0},{"$f":"SUM(D8:D22)","v":0},0,0,0,0,0,{"$f":"SUM(J8:J22)","v":0},{"$f":"SUM(K8:K22)","v":0},{"$f":"SUM(L8:L22)","v":0},{"$f":"SUM(M8:M22)","v":0}]
[]
["Single-year expenditure to be adjusted",2]
[{"$f":"B5B!A177","v":"Vote 1 - Executive and council"},null,{"$f":"B5B!C177","v":5869563},{"$f":"B5B!D177","v":11431308},{"$f":"B5B!E177","v":0},{"$f":"B5B!F177","v":0},{"$f":"B5B!G177","v":0},{"$f":"B5B!H177","v":0},{"$f":"B5B!I177","v":0},{"$f":"SUM(E26:I26)","v":0},{"$f":"IF(D26=0,C26+J26,D26+J26)","v":11431308},{"$f":"B5B!L177","v":20000000},{"$f":"B5B!M177","v":15000000}]
[{"$f":"B5B!A188","v":"Vote 2 - Finance and administration"},null,{"$f":"B5B!C188","v":8556512},{"$f":"B5B!D188","v":13615736},{"$f":"B5B!E188","v":0},{"$f":"B5B!F188","v":0},{"$f":"B5B!G188","v":0},{"$f":"B5B!H188","v":0},{"$f":"B5B!I188","v":0},0,13615736,{"$f":"B5B!L188","v":0},{"$f":"B5B!M188","v":0}]
[{"$f":"B5B!A199","v":"Vote 3 - Internal audit"},null,{"$f":"B5B!C199","v":0},{"$f":"B5B!D199","v":0},{"$f":"B5B!E199","v":0},{"$f":"B5B!F199","v":0},{"$f":"B5B!G199","v":0},{"$f":"B5B!H199","v":0},{"$f":"B5B!I199","v":0},0,0,{"$f":"B5B!L199","v":0},{"$f":"B5B!M199","v":0}]
[{"$f":"B5B!A210","v":"Vote 4 - Community and social services"},null,{"$f":"B5B!C210","v":4456516},{"$f":"B5B!D210","v":4107020},{"$f":"B5B!E210","v":0},{"$f":"B5B!F210","v":0},{"$f":"B5B!G210","v":0},{"$f":"B5B!H210","v":0},{"$f":"B5B!I210","v":0},0,4107020,{"$f":"B5B!L210","v":0},{"$f":"B5B!M210","v":0}]
[{"$f":"B5B!A221","v":"Vote 5 - Sport and Recreation"},null,{"$f":"B5B!C221","v":10126608},{"$f":"B5B!D221","v":13425726},{"$f":"B5B!E221","v":0},{"$f":"B5B!F221","v":0},{"$f":"B5B!G221","v":0},{"$f":"B5B!H221","v":0},{"$f":"B5B!I221","v":0},0,13425726,{"$f":"B5B!L221","v":0},{"$f":"B5B!M221","v":0}]
[{"$f":"B5B!A232","v":"Vote 6 - Public safety"},null,{"$f":"B5B!C232","v":939131},{"$f":"B5B!D232","v":852174},{"$f":"B5B!E232","v":0},{"$f":"B5B!F232","v":0},{"$f":"B5B!G232","v":0},{"$f":"B5B!H232","v":0},{"$f":"B5B!I232","v":0},0,852174,{"$f":"B5B!L232","v":0},{"$f":"B5B!M232","v":0}]
[{"$f":"B5B!A243","v":"Vote 7 - Housing"},null,{"$f":"B5B!C243","v":0},{"$f":"B5B!D243","v":0},{"$f":"B5B!E243","v":0},{"$f":"B5B!F243","v":0},{"$f":"B5B!G243","v":0},{"$f":"B5B!H243","v":0},{"$f":"B5B!I243","v":0},0,0,{"$f":"B5B!L243","v":0},{"$f":"B5B!M243","v":0}]
[{"$f":"B5B!A254","v":"Vote 8 - Planning and Development"},null,{"$f":"B5B!C254","v":12191299},{"$f":"B5B!D254","v":11214822},{"$f":"B5B!E254","v":0},{"$f":"B5B!F254","v":0},{"$f":"B5B!G254","v":0},{"$f":"B5B!H254","v":0},{"$f":"B5B!I254","v":0},0,11214822,{"$f":"B5B!L254","v":10869566},{"$f":"B5B!M254","v":0}]
[{"$f":"B5B!A265","v":"Vote 9 - Road transport"},null,{"$f":"B5B!C265","v":79534567},{"$f":"B5B!D265","v":74870676},{"$f":"B5B!E265","v":0},{"$f":"B5B!F265","v":0},{"$f":"B5B!G265","v":0},{"$f":"B5B!H265","v":1985217.38},{"$f":"B5B!I265","v":0},1985217.38,76855893.379999995,{"$f":"B5B!L265","v":39251782},{"$f":"B5B!M265","v":38415522}]
[{"$f":"B5B!A276","v":"Vote 10 - Energy sources"},null,{"$f":"B5B!C276","v":3751706},{"$f":"B5B!D276","v":2177800},{"$f":"B5B!E276","v":0},{"$f":"B5B!F276","v":0},{"$f":"B5B!G276","v":0},{"$f":"B5B!H276","v":0},{"$f":"B5B!I276","v":0},0,2177800,{"$f":"B5B!L276","v":0},{"$f":"B5B!M276","v":0}]
[{"$f":"B5B!A287","v":"Vote 11 - Waste Management"},null,{"$f":"B5B!C287","v":2173913},{"$f":"B5B!D287","v":2133913},{"$f":"B5B!E287","v":0},{"$f":"B5B!F287","v":0},{"$f":"B5B!G287","v":0},{"$f":"B5B!H287","v":0},{"$f":"B5B!I287","v":0},0,2133913,{"$f":"B5B!L287","v":0},{"$f":"B5B!M287","v":0}]
[{"$f":"B5B!A298","v":"Vote 12 - Environmental Protection"},null,{"$f":"B5B!C298","v":0},{"$f":"B5B!D298","v":0},{"$f":"B5B!E298","v":0},{"$f":"B5B!F298","v":0},{"$f":"B5B!G298","v":0},{"$f":"B5B!H298","v":0},{"$f":"B5B!I298","v":0},0,{"$f":"IF(D37=0,C37+J37,D37+J37)","v":0},{"$f":"B5B!L298","v":0},{"$f":"B5B!M298","v":0}]
[{"$f":"B5B!A309","v":"Vote 13 - [NAME OF VOTE 13]"},null,{"$f":"B5B!C309","v":0},{"$f":"B5B!D309","v":0},{"$f":"B5B!E309","v":0},{"$f":"B5B!F309","v":0},{"$f":"B5B!G309","v":0},{"$f":"B5B!H309","v":0},{"$f":"B5B!I309","v":0},0,0,{"$f":"B5B!L309","v":0},{"$f":"B5B!M309","v":0}]
[{"$f":"B5B!A320","v":"Vote 14 - [NAME OF VOTE 14]"},null,{"$f":"B5B!C320","v":0},{"$f":"B5B!D320","v":0},{"$f":"B5B!E320","v":0},{"$f":"B5B!F320","v":0},{"$f":"B5B!G320","v":0},{"$f":"B5B!H320","v":0},{"$f":"B5B!I320","v":0},0,0,{"$f":"B5B!L320","v":0},{"$f":"B5B!M320","v":0}]
[{"$f":"B5B!A331","v":"Vote 15 - [NAME OF VOTE 15]"},null,{"$f":"B5B!C331","v":0},{"$f":"B5B!D331","v":0},{"$f":"B5B!E331","v":0},{"$f":"B5B!F331","v":0},{"$f":"B5B!G331","v":0},{"$f":"B5B!H331","v":0},{"$f":"B5B!I331","v":0},0,0,{"$f":"B5B!L331","v":0},{"$f":"B5B!M331","v":0}]
["Capital single-year expenditure sub-total",null,{"$f":"SUM(C26:C40)","v":127599815},{"$f":"SUM(D26:D40)","v":133829175},0,0,0,1985217.38,0,{"$f":"SUM(J26:J40)","v":1985217.38},{"$f":"SUM(K26:K40)","v":135814392.38},{"$f":"SUM(L26:L40)","v":70121348},{"$f":"SUM(M26:M40)","v":53415522}]
["Total Capital Expenditure - Vote",null,{"$f":"C41+C23","v":127599815},{"$f":"D41+D23","v":133829175},0,0,0,1985217.38,0,{"$f":"J23+J41","v":1985217.38},{"$f":"K23+K41","v":135814392.38},{"$f":"L41+L23","v":70121348},{"$f":"M41+M23","v":53415522}]
[]
["Capital Expenditure - Functional"]
["Governance and administration",null,{"$f":"SUM(C46:C48)","v":14426075},25047044,0,0,0,0,0,{"$f":"SUM(J46:J48)","v":0},25047044,20000000,15000000]
["Executive and council",null,{"$f":"SUMIFS(Sheet1!S71_OriginalBudget,Sheet1!S71_A2Code,$AC:$AC,Sheet1!S71_A5CapexCode,$AD:$AD)","v":5869563},{"$f":"SUMIFS(Sheet1!S71_PreviousBudget,Sheet1!S71_A2Code,$AC:$AC,Sheet1!S71_A5CapexCode,$AD:$AD)","v":11431308},null,null,null,null,{"$f":"SUMIFS(Sheet1!S71_CurrentAdjustments,Sheet1!S71_A2Code,$AC:$AC,Sheet1!S71_A5CapexCode,$AD:$AD)","v":0},{"$f":"SUM(E46:I46)","v":0},{"$f":"IF(D46=0,C46+J46,D46+J46)","v":11431308},{"$f":"SUMIFS(Sheet1!S71_OY1AdjustedBudget,Sheet1!S71_A2Code,$AC:$AC,Sheet1!S71_A5CapexCode,$AD:$AD)","v":20000000},{"$f":"SUMIFS(Sheet1!S71_OY2AdjustedBudget,Sheet1!S71_A2Code,$AC:$AC,Sheet1!S71_A5CapexCode,$AD:$AD)","v":15000000},null,null,null,null,null,null,null,null,null,null,null,null,null,null,null,"1100","CE"]
["Finance and administration",null,{"$f":"SUMIFS(Sheet1!S71_OriginalBudget,Sheet1!S71_A2Code,$AC:$AC,Sheet1!S71_A5CapexCode,$AD:$AD)","v":8556512},{"$f":"SUMIFS(Sheet1!S71_PreviousBudget,Sheet1!S71_A2Code,$AC:$AC,Sheet1!S71_A5CapexCode,$AD:$AD)","v":13615736},null,null,null,null,{"$f":"SUMIFS(Sheet1!S71_CurrentAdjustments,Sheet1!S71_A2Code,$AC:$AC,Sheet1!S71_A5CapexCode,$AD:$AD)","v":0},{"$f":"SUM(E47:I47)","v":0},{"$f":"IF(D47=0,C47+J47,D47+J47)","v":13615736},{"$f":"SUMIFS(Sheet1!S71_OY1AdjustedBudget,Sheet1!S71_A2Code,$AC:$AC,Sheet1!S71_A5CapexCode,$AD:$AD)","v":0},{"$f":"SUMIFS(Sheet1!S71_OY2AdjustedBudget,Sheet1!S71_A2Code,$AC:$AC,Sheet1!S71_A5CapexCode,$AD:$AD)","v":0},null,null,null,null,null,null,null,null,null,null,null,null,null,null,null,"1200","CE"]
["Internal audit",null,{"$f":"SUMIFS(Sheet1!S71_OriginalBudget,Sheet1!S71_A2Code,$AC:$AC,Sheet1!S71_A5CapexCode,$AD:$AD)","v":0},{"$f":"SUMIFS(Sheet1!S71_PreviousBudget,Sheet1!S71_A2Code,$AC:$AC,Sheet1!S71_A5CapexCode,$AD:$AD)","v":0},null,null,null,null,{"$f":"SUMIFS(Sheet1!S71_CurrentAdjustments,Sheet1!S71_A2Code,$AC:$AC,Sheet1!S71_A5CapexCode,$AD:$AD)","v":0},{"$f":"SUM(E48:I48)","v":0},{"$f":"IF(D48=0,C48+J48,D48+J48)","v":0},{"$f":"SUMIFS(Sheet1!S71_OY1AdjustedBudget,Sheet1!S71_A2Code,$AC:$AC,Sheet1!S71_A5CapexCode,$AD:$AD)","v":0},{"$f":"SUMIFS(Sheet1!S71_OY2AdjustedBudget,Sheet1!S71_A2Code,$AC:$AC,Sheet1!S71_A5CapexCode,$AD:$AD)","v":0},null,null,null,null,null,null,null,null,null,null,null,null,null,null,null,"1300","CE"]
["Community and public safety",null,{"$f":"SUM(C50:C54)","v":15522255},18384920,0,0,0,0,0,{"$f":"SUM(J50:J54)","v":0},18384920,0,0]
["Community and social services",null,{"$f":"SUMIFS(Sheet1!S71_OriginalBudget,Sheet1!S71_A2Code,$AC:$AC,Sheet1!S71_A5CapexCode,$AD:$AD)","v":4456516},{"$f":"SUMIFS(Sheet1!S71_PreviousBudget,Sheet1!S71_A2Code,$AC:$AC,Sheet1!S71_A5CapexCode,$AD:$AD)","v":4107020},null,null,null,null,{"$f":"SUMIFS(Sheet1!S71_CurrentAdjustments,Sheet1!S71_A2Code,$AC:$AC,Sheet1!S71_A5CapexCode,$AD:$AD)","v":0},{"$f":"SUM(E50:I50)","v":0},{"$f":"IF(D50=0,C50+J50,D50+J50)","v":4107020},{"$f":"SUMIFS(Sheet1!S71_OY1AdjustedBudget,Sheet1!S71_A2Code,$AC:$AC,Sheet1!S71_A5CapexCode,$AD:$AD)","v":0},{"$f":"SUMIFS(Sheet1!S71_OY2AdjustedBudget,Sheet1!S71_A2Code,$AC:$AC,Sheet1!S71_A5CapexCode,$AD:$AD)","v":0},null,null,null,null,null,null,null,null,null,null,null,null,null,null,null,"2100","CE"]
["Sport and recreation",null,{"$f":"SUMIFS(Sheet1!S71_OriginalBudget,Sheet1!S71_A2Code,$AC:$AC,Sheet1!S71_A5CapexCode,$AD:$AD)","v":10126608},{"$f":"SUMIFS(Sheet1!S71_PreviousBudget,Sheet1!S71_A2Code,$AC:$AC,Sheet1!S71_A5CapexCode,$AD:$AD)","v":13425726},null,null,null,null,{"$f":"SUMIFS(Sheet1!S71_CurrentAdjustments,Sheet1!S71_A2Code,$AC:$AC,Sheet1!S71_A5CapexCode,$AD:$AD)","v":0},{"$f":"SUM(E51:I51)","v":0},{"$f":"IF(D51=0,C51+J51,D51+J51)","v":13425726},{"$f":"SUMIFS(Sheet1!S71_OY1AdjustedBudget,Sheet1!S71_A2Code,$AC:$AC,Sheet1!S71_A5CapexCode,$AD:$AD)","v":0},{"$f":"SUMIFS(Sheet1!S71_OY2AdjustedBudget,Sheet1!S71_A2Code,$AC:$AC,Sheet1!S71_A5CapexCode,$AD:$AD)","v":0},null,null,null,null,null,null,null,null,null,null,null,null,null,null,null,"2200","CE"]
["Public safety",null,{"$f":"SUMIFS(Sheet1!S71_OriginalBudget,Sheet1!S71_A2Code,$AC:$AC,Sheet1!S71_A5CapexCode,$AD:$AD)","v":939131},{"$f":"SUMIFS(Sheet1!S71_PreviousBudget,Sheet1!S71_A2Code,$AC:$AC,Sheet1!S71_A5CapexCode,$AD:$AD)","v":852174},null,null,null,null,{"$f":"SUMIFS(Sheet1!S71_CurrentAdjustments,Sheet1!S71_A2Code,$AC:$AC,Sheet1!S71_A5CapexCode,$AD:$AD)","v":0},{"$f":"SUM(E52:I52)","v":0},{"$f":"IF(D52=0,C52+J52,D52+J52)","v":852174},{"$f":"SUMIFS(Sheet1!S71_OY1AdjustedBudget,Sheet1!S71_A2Code,$AC:$AC,Sheet1!S71_A5CapexCode,$AD:$AD)","v":0},{"$f":"SUMIFS(Sheet1!S71_OY2AdjustedBudget,Sheet1!S71_A2Code,$AC:$AC,Sheet1!S71_A5CapexCode,$AD:$AD)","v":0},null,null,null,null,null,null,null,null,null,null,null,null,null,null,null,"2300","CE"]
["Housing",null,{"$f":"SUMIFS(Sheet1!S71_OriginalBudget,Sheet1!S71_A2Code,$AC:$AC,Sheet1!S71_A5CapexCode,$AD:$AD)","v":0},{"$f":"SUMIFS(Sheet1!S71_PreviousBudget,Sheet1!S71_A2Code,$AC:$AC,Sheet1!S71_A5CapexCode,$AD:$AD)","v":0},null,null,null,null,{"$f":"SUMIFS(Sheet1!S71_CurrentAdjustments,Sheet1!S71_A2Code,$AC:$AC,Sheet1!S71_A5CapexCode,$AD:$AD)","v":0},{"$f":"SUM(E53:I53)","v":0},{"$f":"IF(D53=0,C53+J53,D53+J53)","v":0},{"$f":"SUMIFS(Sheet1!S71_OY1AdjustedBudget,Sheet1!S71_A2Code,$AC:$AC,Sheet1!S71_A5CapexCode,$AD:$AD)","v":0},{"$f":"SUMIFS(Sheet1!S71_OY2AdjustedBudget,Sheet1!S71_A2Code,$AC:$AC,Sheet1!S71_A5CapexCode,$AD:$AD)","v":0},null,null,null,null,null,null,null,null,null,null,null,null,null,null,null,"2400","CE"]
["Health",null,{"$f":"SUMIFS(Sheet1!S71_OriginalBudget,Sheet1!S71_A2Code,$AC:$AC,Sheet1!S71_A5CapexCode,$AD:$AD)","v":0},{"$f":"SUMIFS(Sheet1!S71_PreviousBudget,Sheet1!S71_A2Code,$AC:$AC,Sheet1!S71_A5CapexCode,$AD:$AD)","v":0},null,null,null,null,{"$f":"SUMIFS(Sheet1!S71_CurrentAdjustments,Sheet1!S71_A2Code,$AC:$AC,Sheet1!S71_A5CapexCode,$AD:$AD)","v":0},{"$f":"SUM(E54:I54)","v":0},{"$f":"IF(D54=0,C54+J54,D54+J54)","v":0},{"$f":"SUMIFS(Sheet1!S71_OY1AdjustedBudget,Sheet1!S71_A2Code,$AC:$AC,Sheet1!S71_A5CapexCode,$AD:$AD)","v":0},{"$f":"SUMIFS(Sheet1!S71_OY2AdjustedBudget,Sheet1!S71_A2Code,$AC:$AC,Sheet1!S71_A5CapexCode,$AD:$AD)","v":0},null,null,null,null,null,null,null,null,null,null,null,null,null,null,null,"2500","CE"]
["Economic and environmental services",null,{"$f":"SUM(C56:C58)","v":91725866},86085498,0,0,0,1985217.38,0,1985217.38,88070715.379999995,50121348,38415522]
["Planning and development",null,{"$f":"SUMIFS(Sheet1!S71_OriginalBudget,Sheet1!S71_A2Code,$AC:$AC,Sheet1!S71_A5CapexCode,$AD:$AD)","v":12191299},{"$f":"SUMIFS(Sheet1!S71_PreviousBudget,Sheet1!S71_A2Code,$AC:$AC,Sheet1!S71_A5CapexCode,$AD:$AD)","v":11214822},null,null,null,null,{"$f":"SUMIFS(Sheet1!S71_CurrentAdjustments,Sheet1!S71_A2Code,$AC:$AC,Sheet1!S71_A5CapexCode,$AD:$AD)","v":0},{"$f":"SUM(E56:I56)","v":0},{"$f":"IF(D56=0,C56+J56,D56+J56)","v":11214822},{"$f":"SUMIFS(Sheet1!S71_OY1AdjustedBudget,Sheet1!S71_A2Code,$AC:$AC,Sheet1!S71_A5CapexCode,$AD:$AD)","v":10869566},{"$f":"SUMIFS(Sheet1!S71_OY2AdjustedBudget,Sheet1!S71_A2Code,$AC:$AC,Sheet1!S71_A5CapexCode,$AD:$AD)","v":0},null,null,null,null,null,null,null,null,null,null,null,null,null,null,null,"3100","CE"]
["Road transport",null,{"$f":"SUMIFS(Sheet1!S71_OriginalBudget,Sheet1!S71_A2Code,$AC:$AC,Sheet1!S71_A5CapexCode,$AD:$AD)","v":79534567},{"$f":"SUMIFS(Sheet1!S71_PreviousBudget,Sheet1!S71_A2Code,$AC:$AC,Sheet1!S71_A5CapexCode,$AD:$AD)","v":74870676},null,null,null,{"$f":"SUMIFS(Sheet1!S71_CurrentAdjustments,Sheet1!S71_A2Code,$AC:$AC,Sheet1!S71_A5CapexCode,$AD:$AD)","v":1985217.38},0,{"$f":"SUM(E57:I57)","v":1985217.38},{"$f":"IF(D57=0,C57+J57,D57+J57)","v":76855893.379999995},{"$f":"SUMIFS(Sheet1!S71_OY1AdjustedBudget,Sheet1!S71_A2Code,$AC:$AC,Sheet1!S71_A5CapexCode,$AD:$AD)","v":39251782},{"$f":"SUMIFS(Sheet1!S71_OY2AdjustedBudget,Sheet1!S71_A2Code,$AC:$AC,Sheet1!S71_A5CapexCode,$AD:$AD)","v":38415522},null,null,null,null,null,null,null,null,null,null,null,null,null,null,null,"3200","CE"]
["Environmental protection",null,{"$f":"SUMIFS(Sheet1!S71_OriginalBudget,Sheet1!S71_A2Code,$AC:$AC,Sheet1!S71_A5CapexCode,$AD:$AD)","v":0},{"$f":"SUMIFS(Sheet1!S71_PreviousBudget,Sheet1!S71_A2Code,$AC:$AC,Sheet1!S71_A5CapexCode,$AD:$AD)","v":0},null,null,null,null,{"$f":"SUMIFS(Sheet1!S71_CurrentAdjustments,Sheet1!S71_A2Code,$AC:$AC,Sheet1!S71_A5CapexCode,$AD:$AD)","v":0},{"$f":"SUM(E58:I58)","v":0},{"$f":"IF(D58=0,C58+J58,D58+J58)","v":0},{"$f":"SUMIFS(Sheet1!S71_OY1AdjustedBudget,Sheet1!S71_A2Code,$AC:$AC,Sheet1!S71_A5CapexCode,$AD:$AD)","v":0},{"$f":"SUMIFS(Sheet1!S71_OY2AdjustedBudget,Sheet1!S71_A2Code,$AC:$AC,Sheet1!S71_A5CapexCode,$AD:$AD)","v":0},null,null,null,null,null,null,null,null,null,null,null,null,null,null,null,"3300","CE"]
["Trading services",null,{"$f":"SUM(C60:C63)","v":5925619},{"$f":"SUM(D60:D63)","v":4311713},0,0,0,0,{"$f":"SUM(I60:I63)","v":0},{"$f":"SUM(J60:J63)","v":0},4311713,0,0,null,null,null,null,null,null,null,null,null,null,null,null,null,null,null,null,"CE"]
["Energy sources",null,{"$f":"SUMIFS(Sheet1!S71_OriginalBudget,Sheet1!S71_A2Code,$AC:$AC,Sheet1!S71_A5CapexCode,$AD:$AD)","v":3751706},{"$f":"SUMIFS(Sheet1!S71_PreviousBudget,Sheet1!S71_A2Code,$AC:$AC,Sheet1!S71_A5CapexCode,$AD:$AD)","v":2177800},null,null,null,null,{"$f":"SUMIFS(Sheet1!S71_CurrentAdjustments,Sheet1!S71_A2Code,$AC:$AC,Sheet1!S71_A5CapexCode,$AD:$AD)","v":0},{"$f":"SUM(E60:I60)","v":0},{"$f":"IF(D60=0,C60+J60,D60+J60)","v":2177800},{"$f":"SUMIFS(Sheet1!S71_OY1AdjustedBudget,Sheet1!S71_A2Code,$AC:$AC,Sheet1!S71_A5CapexCode,$AD:$AD)","v":0},{"$f":"SUMIFS(Sheet1!S71_OY2AdjustedBudget,Sheet1!S71_A2Code,$AC:$AC,Sheet1!S71_A5CapexCode,$AD:$AD)","v":0},null,null,null,null,null,null,null,null,null,null,null,null,null,null,null,"4100","CE"]
["Water management",null,{"$f":"SUMIFS(Sheet1!S71_OriginalBudget,Sheet1!S71_A2Code,$AC:$AC,Sheet1!S71_A5CapexCode,$AD:$AD)","v":0},{"$f":"SUMIFS(Sheet1!S71_PreviousBudget,Sheet1!S71_A2Code,$AC:$AC,Sheet1!S71_A5CapexCode,$AD:$AD)","v":0},null,null,null,null,{"$f":"SUMIFS(Sheet1!S71_CurrentAdjustments,Sheet1!S71_A2Code,$AC:$AC,Sheet1!S71_A5CapexCode,$AD:$AD)","v":0},{"$f":"SUM(E61:I61)","v":0},{"$f":"IF(D61=0,C61+J61,D61+J61)","v":0},{"$f":"SUMIFS(Sheet1!S71_OY1AdjustedBudget,Sheet1!S71_A2Code,$AC:$AC,Sheet1!S71_A5CapexCode,$AD:$AD)","v":0},{"$f":"SUMIFS(Sheet1!S71_OY2AdjustedBudget,Sheet1!S71_A2Code,$AC:$AC,Sheet1!S71_A5CapexCode,$AD:$AD)","v":0},null,null,null,null,null,null,null,null,null,null,null,null,null,null,null,"4200","CE"]
["Waste water management",null,{"$f":"SUMIFS(Sheet1!S71_OriginalBudget,Sheet1!S71_A2Code,$AC:$AC,Sheet1!S71_A5CapexCode,$AD:$AD)","v":0},{"$f":"SUMIFS(Sheet1!S71_PreviousBudget,Sheet1!S71_A2Code,$AC:$AC,Sheet1!S71_A5CapexCode,$AD:$AD)","v":0},null,null,null,null,{"$f":"SUMIFS(Sheet1!S71_CurrentAdjustments,Sheet1!S71_A2Code,$AC:$AC,Sheet1!S71_A5CapexCode,$AD:$AD)","v":0},{"$f":"SUM(E62:I62)","v":0},{"$f":"IF(D62=0,C62+J62,D62+J62)","v":0},{"$f":"SUMIFS(Sheet1!S71_OY1AdjustedBudget,Sheet1!S71_A2Code,$AC:$AC,Sheet1!S71_A5CapexCode,$AD:$AD)","v":0},{"$f":"SUMIFS(Sheet1!S71_OY2AdjustedBudget,Sheet1!S71_A2Code,$AC:$AC,Sheet1!S71_A5CapexCode,$AD:$AD)","v":0},null,null,null,null,null,null,null,null,null,null,null,null,null,null,null,"4300","CE"]
["Waste management",null,{"$f":"SUMIFS(Sheet1!S71_OriginalBudget,Sheet1!S71_A2Code,$AC:$AC,Sheet1!S71_A5CapexCode,$AD:$AD)","v":2173913},{"$f":"SUMIFS(Sheet1!S71_PreviousBudget,Sheet1!S71_A2Code,$AC:$AC,Sheet1!S71_A5CapexCode,$AD:$AD)","v":2133913},null,null,null,null,{"$f":"SUMIFS(Sheet1!S71_CurrentAdjustments,Sheet1!S71_A2Code,$AC:$AC,Sheet1!S71_A5CapexCode,$AD:$AD)","v":0},{"$f":"SUM(E63:I63)","v":0},{"$f":"IF(D63=0,C63+J63,D63+J63)","v":2133913},{"$f":"SUMIFS(Sheet1!S71_OY1AdjustedBudget,Sheet1!S71_A2Code,$AC:$AC,Sheet1!S71_A5CapexCode,$AD:$AD)","v":0},{"$f":"SUMIFS(Sheet1!S71_OY2AdjustedBudget,Sheet1!S71_A2Code,$AC:$AC,Sheet1!S71_A5CapexCode,$AD:$AD)","v":0},null,null,null,null,null,null,null,null,null,null,null,null,null,null,null,"4400","CE"]
["Other",null,{"$f":"SUMIFS(Sheet1!S71_OriginalBudget,Sheet1!S71_A2Code,$AC:$AC,Sheet1!S71_A5CapexCode,$AD:$AD)","v":0},{"$f":"SUMIFS(Sheet1!S71_PreviousBudget,Sheet1!S71_A2Code,$AC:$AC,Sheet1!S71_A5CapexCode,$AD:$AD)","v":0},null,null,null,null,{"$f":"SUMIFS(Sheet1!S71_CurrentAdjustments,Sheet1!S71_A2Code,$AC:$AC,Sheet1!S71_A5CapexCode,$AD:$AD)","v":0},{"$f":"SUM(E64:I64)","v":0},{"$f":"IF(D64=0,C64+J64,D64+J64)","v":0},{"$f":"SUMIFS(Sheet1!S71_OY1AdjustedBudget,Sheet1!S71_A2Code,$AC:$AC,Sheet1!S71_A5CapexCode,$AD:$AD)","v":0},{"$f":"SUMIFS(Sheet1!S71_OY2AdjustedBudget,Sheet1!S71_A2Code,$AC:$AC,Sheet1!S71_A5CapexCode,$AD:$AD)","v":0},null,null,null,null,null,null,null,null,null,null,null,null,null,null,null,"5000","CE"]
["Total Capital Expenditure - Functional",3,{"$f":"C45+C49+C55+C59+C64","v":127599815},{"$f":"D45+D49+D55+D59+D64","v":133829175},0,0,0,1985217.38,{"$f":"I45+I49+I55+I59+I64","v":0},1985217.38,135814392.38,70121348,53415522]
[]
["Funded by:"]
["National Government",null,{"$f":"SUMIFS(Sheet1!S71_OriginalBudget,Sheet1!S71_A5GCode,$AC:$AC,Sheet1!S71_A5CapexCode,$AD:$AD)","v":33962832},{"$f":"SUMIFS(Sheet1!S71_PreviousBudget,Sheet1!S71_A5GCode,$AC:$AC,Sheet1!S71_A5CapexCode,$AD:$AD)","v":38629134},null,null,null,{"$f":"SUMIFS(Sheet1!S71_CurrentAdjustments,Sheet1!S71_A5GCode,$AC:$AC,Sheet1!S71_A5CapexCode,$AD:$AD)","v":1985217.38},0,{"$f":"SUM(E68:I68)","v":1985217.38},{"$f":"IF(D68=0,C68+J68,D68+J68)","v":40614351.380000003},{"$f":"SUMIFS(Sheet1!S71_OY1AdjustedBudget,Sheet1!S71_A5GCode,$AC:$AC,Sheet1!S71_A5CapexCode,$AD:$AD)","v":35512652},{"$f":"SUMIFS(Sheet1!S71_OY2AdjustedBudget,Sheet1!S71_A5GCode,$AC:$AC,Sheet1!S71_A5CapexCode,$AD:$AD)","v":38415522},null,null,null,null,null,null,null,null,null,null,null,null,null,null,null,"2010","CE"]
["Provincial Government",null,{"$f":"SUMIFS(Sheet1!S71_OriginalBudget,Sheet1!S71_A5GCode,$AC:$AC,Sheet1!S71_A5CapexCode,$AD:$AD)","v":739129},{"$f":"SUMIFS(Sheet1!S71_PreviousBudget,Sheet1!S71_A5GCode,$AC:$AC,Sheet1!S71_A5CapexCode,$AD:$AD)","v":704542},null,null,null,null,{"$f":"SUMIFS(Sheet1!S71_CurrentAdjustments,Sheet1!S71_A5GCode,$AC:$AC,Sheet1!S71_A5CapexCode,$AD:$AD)","v":0},{"$f":"SUM(E69:I69)","v":0},{"$f":"IF(D69=0,C69+J69,D69+J69)","v":704542},{"$f":"SUMIFS(Sheet1!S71_OY1AdjustedBudget,Sheet1!S71_A5GCode,$AC:$AC,Sheet1!S71_A5CapexCode,$AD:$AD)","v":0},{"$f":"SUMIFS(Sheet1!S71_OY2AdjustedBudget,Sheet1!S71_A5GCode,$AC:$AC,Sheet1!S71_A5CapexCode,$AD:$AD)","v":0},null,null,null,null,null,null,null,null,null,null,null,null,null,null,null,"2020","CE"]
["District Municipality",null,{"$f":"SUMIFS(Sheet1!S71_OriginalBudget,Sheet1!S71_A5GCode,$AC:$AC,Sheet1!S71_A5CapexCode,$AD:$AD)","v":0},{"$f":"SUMIFS(Sheet1!S71_PreviousBudget,Sheet1!S71_A5GCode,$AC:$AC,Sheet1!S71_A5CapexCode,$AD:$AD)","v":0},null,null,null,null,{"$f":"SUMIFS(Sheet1!S71_CurrentAdjustments,Sheet1!S71_A5GCode,$AC:$AC,Sheet1!S71_A5CapexCode,$AD:$AD)","v":0},{"$f":"SUM(E70:I70)","v":0},{"$f":"IF(D70=0,C70+J70,D70+J70)","v":0},{"$f":"SUMIFS(Sheet1!S71_OY1AdjustedBudget,Sheet1!S71_A5GCode,$AC:$AC,Sheet1!S71_A5CapexCode,$AD:$AD)","v":0},{"$f":"SUMIFS(Sheet1!S71_OY2AdjustedBudget,Sheet1!S71_A5GCode,$AC:$AC,Sheet1!S71_A5CapexCode,$AD:$AD)","v":0},null,null,null,null,null,null,null,null,null,null,null,null,null,null,null,"2030","CE"]
["Transfers and subsidies - capital (in-kind)",null,{"$f":"SUMIFS(Sheet1!S71_OriginalBudget,Sheet1!S71_A5GCode,$AC:$AC,Sheet1!S71_A5CapexCode,$AD:$AD)","v":0},{"$f":"SUMIFS(Sheet1!S71_PreviousBudget,Sheet1!S71_A5GCode,$AC:$AC,Sheet1!S71_A5CapexCode,$AD:$AD)","v":0},null,null,null,null,{"$f":"SUMIFS(Sheet1!S71_CurrentAdjustments,Sheet1!S71_A5GCode,$AC:$AC,Sheet1!S71_A5CapexCode,$AD:$AD)","v":0},{"$f":"SUM(E71:I71)","v":0},{"$f":"IF(D71=0,C71+J71,D71+J71)","v":0},{"$f":"SUMIFS(Sheet1!S71_OY1AdjustedBudget,Sheet1!S71_A5GCode,$AC:$AC,Sheet1!S71_A5CapexCode,$AD:$AD)","v":0},{"$f":"SUMIFS(Sheet1!S71_OY2AdjustedBudget,Sheet1!S71_A5GCode,$AC:$AC,Sheet1!S71_A5CapexCode,$AD:$AD)","v":0},null,null,null,null,null,null,null,null,null,null,null,null,null,null,null,"2040","CE"]
["Transfers recognised - capital",4,{"$f":"SUM(C68:C71)","v":34701961},39333676,0,0,0,1985217.38,0,1985217.38,41318893.380000003,35512652,38415522]
[]
["Borrowing",null,{"$f":"SUMIFS(Sheet1!S71_OriginalBudget,Sheet1!S71_A5GCode,$AC:$AC,Sheet1!S71_A5CapexCode,$AD:$AD)","v":0},{"$f":"SUMIFS(Sheet1!S71_PreviousBudget,Sheet1!S71_A5GCode,$AC:$AC,Sheet1!S71_A5CapexCode,$AD:$AD)","v":0},null,null,null,null,{"$f":"SUMIFS(Sheet1!S71_CurrentAdjustments,Sheet1!S71_A5GCode,$AC:$AC,Sheet1!S71_A5CapexCode,$AD:$AD)","v":0},{"$f":"SUM(E74:I74)","v":0},{"$f":"IF(D74=0,C74+J74,D74+J74)","v":0},{"$f":"SUMIFS(Sheet1!S71_OY1AdjustedBudget,Sheet1!S71_A5GCode,$AC:$AC,Sheet1!S71_A5CapexCode,$AD:$AD)","v":0},{"$f":"SUMIFS(Sheet1!S71_OY2AdjustedBudget,Sheet1!S71_A5GCode,$AC:$AC,Sheet1!S71_A5CapexCode,$AD:$AD)","v":0},null,null,null,null,null,null,null,null,null,null,null,null,null,null,null,"2070","CE"]
["Internally generated funds",null,{"$f":"SUMIFS(Sheet1!S71_OriginalBudget,Sheet1!S71_A5GCode,$AC:$AC,Sheet1!S71_A5CapexCode,$AD:$AD)","v":92897854},{"$f":"SUMIFS(Sheet1!S71_PreviousBudget,Sheet1!S71_A5GCode,$AC:$AC,Sheet1!S71_A5CapexCode,$AD:$AD)","v":94495499},null,null,null,null,{"$f":"SUMIFS(Sheet1!S71_CurrentAdjustments,Sheet1!S71_A5GCode,$AC:$AC,Sheet1!S71_A5CapexCode,$AD:$AD)","v":0},{"$f":"SUM(E75:I75)","v":0},{"$f":"IF(D75=0,C75+J75,D75+J75)","v":94495499},{"$f":"SUMIFS(Sheet1!S71_OY1AdjustedBudget,Sheet1!S71_A5GCode,$AC:$AC,Sheet1!S71_A5CapexCode,$AD:$AD)","v":34608696},{"$f":"SUMIFS(Sheet1!S71_OY2AdjustedBudget,Sheet1!S71_A5GCode,$AC:$AC,Sheet1!S71_A5CapexCode,$AD:$AD)","v":15000000},null,null,null,null,null,null,null,null,null,null,null,null,null,null,null,"2080","CE"]
["Total Capital Funding",null,{"$f":"+C72+C74+C75","v":127599815},{"$f":"+D72+D74+D75","v":133829175},0,0,0,1985217.38,0,1985217.38,135814392.38,70121348,53415522]
[{"$f":"head27a","v":"References"}]
["1. Municipalities may choose to appropriate for capital expenditure for three years or for one year (if one year appropriation projected expenditure required for yr2 and yr3)."]
["2. Include capital component of PPP unitary payment. Note that capital transfers are only appropriated to municipalities for the budget year"]
["3. Capital expenditure by standard classification must reconcile to the appropriations by vote"]
["4. Must reconcile to supporting table SB7 and to Adjustments Budget Financial Performance (revenue and expenditure)"]
["5. Only complete if a previous adjusted budget has been approved in the same financial year. Reflect most recent adjusted budget."]
["6. Additional cash-backed accumulated funds/unspent funds (MFMA section 18(1)(b) and section 28(2)(e)) identified after the Original Budget approved and after annual financial statements audited (note: only where underspending could not reasonably have been foreseen)"]
["7. Increases of funds approved under MFMA section 31"]
["8. Adjustments approved in accordance with MFMA section 29 "]
["9. Adjustments to transfers from National or Provincial Government"]
["10. Adjusts. = 'Other' Adjustments proposed to be approved; including revenue under-collection (MFMA section 28(2)(a)); additional revenue appropriation on existing programmes (section 28(2))(b); projected savings (section 28(2)(d)); error correction (section 28(2)(f))"]
["11. G = B + C + D + E + F"]
["12. Adjusted Budget H = (A or A1/2 etc) + G"]
[]
["check balance",null,{"$f":"C65-C76","v":0},{"$f":"D65-D76","v":0},{"$f":"E65-E76","v":0},null,null,{"$f":"H65-H76","v":0},0,0,0,0,0]

{"sheet":"B5B","index":31,"n_rows":349,"n_cols":30,"rows_kept":349,"cut":false,"hidden":false,"merged":[[1,0,2,0],[1,1,4,1],[1,2,1,10]]}
[{"$f":"muni&\" - \"&_ADJ5&\" - B\"&\" - \"&Date","v":"KZN291 Mandeni - Table B5 Adjustments Capital Expenditure Budget by vote and funding - B - 08-04-2025"}]
[{"$f":"Vdesc","v":"Vote Description"},{"$f":"head27","v":"Ref"},{"$f":"Head2","v":"Budget Year 2024/25"},null,null,null,null,null,null,null,null,{"$f":"Head10","v":"Budget Year +1 2025/26"},{"$f":"Head11","v":"Budget Year +2 2026/27"}]
[null,null,{"$f":"Head6","v":"Original Budget"},{"$f":"Head54","v":"Prior Adjusted"},{"$f":"Head51","v":"Accum. Funds"},{"$f":"Head52","v":"Multi-year capital"},{"$f":"Head53","v":"Unfore. Unavoid."},{"$f":"Head55","v":"Nat. or Prov. Govt"},{"$f":"Head50","v":"Other Adjusts."},{"$f":"Head56","v":"Total Adjusts."},{"$f":"Head7","v":"Adjusted Budget"},{"$f":"Head7","v":"Adjusted Budget"},{"$f":"Head7","v":"Adjusted Budget"}]
["[Insert departmental structure etc]",null,null,3,4,5,6,7,8,9,10]
["R thousands",null,"A","A1","B","C","D","E","F","G","H"]
["Capital expenditure - Municipal Vote"]
["Multi-year expenditure appropriation",2]
[{"$f":"'Org structure'!A2","v":"Vote 1 - Executive and council"},null,{"$f":"SUM(C9:C18)","v":0},{"$f":"SUM(D9:D18)","v":0},0,0,0,0,0,{"$f":"SUM(E8:I8)","v":0},{"$f":"IF(D8=0,C8+J8,D8+J8)","v":0},{"$f":"SUM(L9:L18)","v":0},{"$f":"SUM(M9:M18)","v":0}]
[{"$f":"'Org structure'!D3","v":"1.1 - Mayor and Council"},null,null,null,null,null,null,null,null,0,0]
[{"$f":"'Org structure'!D4","v":"1.2 - Municipal Manager, Town Secretary and Chief Executive"},null,null,null,null,null,null,null,null,0,0]
[{"$f":"'Org structure'!D5","v":"1.3 - [Name of sub-vote]"},null,null,null,null,null,null,null,null,0,0]
[{"$f":"'Org structure'!D6","v":"1.4 - [Name of sub-vote]"},null,null,null,null,null,null,null,null,0,0]
[{"$f":"'Org structure'!D7","v":"1.5 - [Name of sub-vote]"},null,null,null,null,null,null,null,null,0,0]
[{"$f":"'Org structure'!D8","v":"1.6 - [Name of sub-vote]"},null,null,null,null,null,null,null,null,0,0]
[{"$f":"'Org structure'!D9","v":"1.7 - [Name of sub-vote]"},null,null,null,null,null,null,null,null,0,0]
[{"$f":"'Org structure'!D10","v":"1.8 - [Name of sub-vote]"},null,null,null,null,null,null,null,null,0,0]
[{"$f":"'Org structure'!D11","v":"1.9 - [Name of sub-vote]"},null,null,null,null,null,null,null,null,0,0]
[{"$f":"'Org structure'!D12","v":"1.10 - [Name of sub-vote]"},null,null,null,null,null,null,null,null,0,0]
[{"$f":"'Org structure'!A3","v":"Vote 2 - Finance and administration"},null,{"$f":"SUM(C20:C29)","v":0},{"$f":"SUM(D20:D29)","v":0},0,0,0,0,0,0,0,{"$f":"SUM(L20:L29)","v":0},{"$f":"SUM(M20:M29)","v":0}]
[{"$f":"'Org structure'!D14","v":"2.1 - Administrative and Corporate Support"},null,null,null,null,null,null,null,null,0,0]
[{"$f":"'Org structure'!D15","v":"2.2 - Asset Management"},null,null,null,null,null,null,null,null,0,0]
[{"$f":"'Org structure'!D16","v":"2.3 - Finance"},null,null,null,null,null,null,null,null,0,0]
[{"$f":"'Org structure'!D17","v":"2.4 - Fleet Management"},null,null,null,null,null,null,null,null,0,0]
[{"$f":"'Org structure'!D18","v":"2.5 - Human Resources"},null,null,null,null,null,null,null,null,0,0]
[{"$f":"'Org structure'!D19","v":"2.6 - Information Technology"},null,null,null,null,null,null,null,null,0,0]
[{"$f":"'Org structure'!D20","v":"2.7 - Property Services"},null,null,null,null,null,null,null,null,0,0]
[{"$f":"'Org structure'!D21","v":"2.8 - Security Services"},null,null,null,null,null,null,null,null,0,0]
[{"$f":"'Org structure'!D22","v":"2.9 - Supply Chain Management"},null,null,null,null,null,null,null,null,0,0]
[{"$f":"'Org structure'!D23","v":"2.10 - Valuation Service"},null,null,null,null,null,null,null,null,0,0]
[{"$f":"'Org structure'!A4","v":"Vote 3 - Internal audit"},null,{"$f":"SUM(C31:C40)","v":0},{"$f":"SUM(D31:D40)","v":0},0,0,0,0,0,0,0,{"$f":"SUM(L31:L40)","v":0},{"$f":"SUM(M31:M40)","v":0}]
[{"$f":"'Org structure'!D25","v":"3.1 - Governance Function"},null,null,null,null,null,null,null,null,0,0]
[{"$f":"'Org structure'!D26","v":"3.2 - Risk Management"},null,null,null,null,null,null,null,null,0,0]
[{"$f":"'Org structure'!D27","v":"3.3 - [Name of sub-vote]"},null,null,null,null,null,null,null,null,0,0]
[{"$f":"'Org structure'!D28","v":"3.4 - [Name of sub-vote]"},null,null,null,null,null,null,null,null,0,0]
[{"$f":"'Org structure'!D29","v":"3.5 - [Name of sub-vote]"},null,null,null,null,null,null,null,null,0,0]
[{"$f":"'Org structure'!D30","v":"3.6 - [Name of sub-vote]"},null,null,null,null,null,null,null,null,0,0]
[{"$f":"'Org structure'!D31","v":"3.7 - [Name of sub-vote]"},null,null,null,null,null,null,null,null,0,0]
[{"$f":"'Org structure'!D32","v":"3.8 - [Name of sub-vote]"},null,null,null,null,null,null,null,null,0,0]
[{"$f":"'Org structure'!D33","v":"3.9 - [Name of sub-vote]"},null,null,null,null,null,null,null,null,0,0]
[{"$f":"'Org structure'!D34","v":"3.10 - [Name of sub-vote]"},null,null,null,null,null,null,null,null,0,0]
[{"$f":"'Org structure'!A5","v":"Vote 4 - Community and social services"},null,{"$f":"SUM(C42:C51)","v":0},{"$f":"SUM(D42:D51)","v":0},0,0,0,0,0,0,0,{"$f":"SUM(L42:L51)","v":0},{"$f":"SUM(M42:M51)","v":0}]
[{"$f":"'Org structure'!D36","v":"4.1 - [Name of sub-vote]"},null,null,null,null,null,null,null,null,0,0]
[{"$f":"'Org structure'!D37","v":"4.2 - Cemeteries, Funeral Parlours and Crematoriums"},null,null,null,null,null,null,null,null,0,0]
[{"$f":"'Org structure'!D38","v":"4.3 - Community Halls and Facilities"},null,null,null,null,null,null,null,null,0,0]
[{"$f":"'Org structure'!D39","v":"4.4 - Libraries and Archives"},null,null,null,null,null,null,null,null,0,0]
[{"$f":"'Org structure'!D40","v":"4.5 - [Name of sub-vote]"},null,null,null,null,null,null,null,null,0,0]
[{"$f":"'Org structure'!D41","v":"4.6 - Literacy Programmes"},null,null,null,null,null,null,null,null,0,0]
[{"$f":"'Org structure'!D42","v":"4.7 - Disaster Management"},null,null,null,null,null,null,null,null,0,0]
[{"$f":"'Org structure'!D43","v":"4.8 - Animal Care and Diseases"},null,null,null,null,null,null,null,null,0,0]
[{"$f":"'Org structure'!D44","v":"4.9 - Child Care Facilities"},null,null,null,null,null,null,null,null,0,0]
[{"$f":"'Org structure'!D45","v":"4.10 - Fire Fighting and Protection"},null,null,null,null,null,null,null,null,0,0]
[{"$f":"'Org structure'!A6","v":"Vote 5 - Sport and Recreation"},null,{"$f":"SUM(C53:C62)","v":0},{"$f":"SUM(D53:D62)","v":0},0,0,0,0,0,0,0,{"$f":"SUM(L53:L62)","v":0},{"$f":"SUM(M53:M62)","v":0}]
[{"$f":"'Org structure'!D47","v":"5.1 - Community Parks (including Nurseries)"},null,null,null,null,null,null,null,null,0,0]
[{"$f":"'Org structure'!D48","v":"5.2 - [Name of sub-vote]"},null,null,null,null,null,null,null,null,0,0]
[{"$f":"'Org structure'!D49","v":"5.3 - Recreational Facilities"},null,null,null,null,null,null,null,null,0,0]
[{"$f":"'Org structure'!D50","v":"5.4 - Sports Grounds and Stadiums"},null,null,null,null,null,null,null,null,0,0]
[{"$f":"'Org structure'!D51","v":"5.5 - Beaches and Jetties"},null,null,null,null,null,null,null,null,0,0]
[{"$f":"'Org structure'!D52","v":"5.6 - [Name of sub-vote]"},null,null,null,null,null,null,null,null,0,0]
[{"$f":"'Org structure'!D53","v":"5.7 - [Name of sub-vote]"},null,null,null,null,null,null,null,null,0,0]
[{"$f":"'Org structure'!D54","v":"5.8 - [Name of sub-vote]"},null,null,null,null,null,null,null,null,0,0]
[{"$f":"'Org structure'!D55","v":"5.9 - [Name of sub-vote]"},null,null,null,null,null,null,null,null,0,0]
[{"$f":"'Org structure'!D56","v":"5.10 - [Name of sub-vote]"},null,null,null,null,null,null,null,null,0,0]
[{"$f":"'Org structure'!A7","v":"Vote 6 - Public safety"},null,{"$f":"SUM(C64:C73)","v":0},{"$f":"SUM(D64:D73)","v":0},0,0,0,0,0,0,0,{"$f":"SUM(L64:L73)","v":0},{"$f":"SUM(M64:M73)","v":0}]
[{"$f":"'Org structure'!D58","v":"6.1 - Police Forces, Traffic and Street Parking Control"},null,null,null,null,null,null,null,null,0,0]
[{"$f":"'Org structure'!D59","v":"6.2 - [Name of sub-vote]"},null,null,null,null,null,null,null,null,0,0]
[{"$f":"'Org structure'!D60","v":"6.3 - Civil Defence"},null,null,null,null,null,null,null,null,0,0]
[{"$f":"'Org structure'!D61","v":"6.4 - [Name of sub-vote]"},null,null,null,null,null,null,null,null,0,0]
[{"$f":"'Org structure'!D62","v":"6.5 - [Name of sub-vote]"},null,null,null,null,null,null,null,null,0,0]
[{"$f":"'Org structure'!D63","v":"6.6 - [Name of sub-vote]"},null,null,null,null,null,null,null,null,0,0]
[{"$f":"'Org structure'!D64","v":"6.7 - [Name of sub-vote]"},null,null,null,null,null,null,null,null,0,0]
[{"$f":"'Org structure'!D65","v":"6.8 - [Name of sub-vote]"},null,null,null,null,null,null,null,null,0,0]
[{"$f":"'Org structure'!D66","v":"6.9 - [Name of sub-vote]"},null,null,null,null,null,null,null,null,{"$f":"SUM(E72:I72)","v":0},{"$f":"IF(D72=0,C72+J72,D72+J72)","v":0}]
[{"$f":"'Org structure'!D67","v":"6.10 - [Name of sub-vote]"},null,null,null,null,null,null,null,null,0,0]
[{"$f":"'Org structure'!A8","v":"Vote 7 - Housing"},null,{"$f":"SUM(C75:C84)","v":0},{"$f":"SUM(D75:D84)","v":0},0,0,0,0,0,0,0,{"$f":"SUM(L75:L84)","v":0},{"$f":"SUM(M75:M84)","v":0}]
[{"$f":"'Org structure'!D69","v":"7.1 - Housing"},null,null,null,null,null,null,null,null,0,0]
[{"$f":"'Org structure'!D70","v":"7.2 - Informal Settlements"},null,null,null,null,null,null,null,null,0,0]
[{"$f":"'Org structure'!D71","v":"7.3 - [Name of sub-vote]"},null,null,null,null,null,null,null,null,0,0]
[{"$f":"'Org structure'!D72","v":"7.4 - [Name of sub-vote]"},null,null,null,null,null,null,null,null,0,0]
[{"$f":"'Org structure'!D73","v":"7.5 - [Name of sub-vote]"},null,null,null,null,null,null,null,null,0,0]
[{"$f":"'Org structure'!D74","v":"7.6 - [Name of sub-vote]"},null,null,null,null,null,null,null,null,0,0]
[{"$f":"'Org structure'!D75","v":"7.7 - [Name of sub-vote]"},null,null,null,null,null,null,null,null,0,0]
[{"$f":"'Org structure'!D76","v":"7.8 - [Name of sub-vote]"},null,null,null,null,null,null,null,null,0,0]
[{"$f":"'Org structure'!D77","v":"7.9 - [Name of sub-vote]"},null,null,null,null,null,null,null,null,0,0]
[{"$f":"'Org structure'!D78","v":"7.10 - [Name of sub-vote]"},null,null,null,null,null,null,null,null,0,0]
[{"$f":"'Org structure'!A9","v":"Vote 8 - Planning and Development"},null,{"$f":"SUM(C86:C95)","v":0},{"$f":"SUM(D86:D95)","v":0},0,0,0,0,0,0,0,{"$f":"SUM(L86:L95)","v":0},{"$f":"SUM(M86:M95)","v":0}]
[{"$f":"'Org structure'!D80","v":"8.1 - Corporate Wide Strategic Planning (IDPs, LEDs)"},null,null,null,null,null,null,null,null,0,0]
[{"$f":"'Org structure'!D81","v":"8.2 - Economic Development/Planning"},null,null,null,null,null,null,null,null,0,0]
[{"$f":"'Org structure'!D82","v":"8.3 - Project Management Unit"},null,null,null,null,null,null,null,null,0,0]
[{"$f":"'Org structure'!D83","v":"8.4 - Town Planning, Building Regulations and Enforcement, and City Engineer"},null,null,null,null,null,null,null,null,0,0]
[{"$f":"'Org structure'!D84","v":"8.5 - Regional Planning and Development"},null,null,null,null,null,null,null,null,0,0]
[{"$f":"'Org structure'!D85","v":"8.6 - Development Facilitation"},null,null,null,null,null,null,null,null,0,0]
[{"$f":"'Org structure'!D86","v":"8.7 - Central City Improvement District"},null,null,null,null,null,null,null,null,0,0]
[{"$f":"'Org structure'!D87","v":"8.8 - [Name of sub-vote]"},null,null,null,null,null,null,null,null,0,0]
[{"$f":"'Org structure'!D88","v":"8.9 - Tourism"},null,null,null,null,null,null,null,null,0,0]
[{"$f":"'Org structure'!D89","v":"8.10 - Billboards"},null,null,null,null,null,null,null,null,0,0]
[{"$f":"'Org structure'!A10","v":"Vote 9 - Road transport"},null,{"$f":"SUM(C97:C106)","v":0},{"$f":"SUM(D97:D106)","v":0},0,0,0,0,0,0,0,{"$f":"SUM(L97:L106)","v":0},{"$f":"SUM(M97:M106)","v":0}]
[{"$f":"'Org structure'!D91","v":"9.1 - Roads"},null,null,null,null,null,null,null,null,0,0]
[{"$f":"'Org structure'!D92","v":"9.2 - Road and Traffic Regulation"},null,null,null,null,null,null,null,null,0,0]
[{"$f":"'Org structure'!D93","v":"9.3 - Storm Water Management"},null,null,null,null,null,null,null,null,0,0]
[{"$f":"'Org structure'!D94","v":"9.4 - [Name of sub-vote]"},null,null,null,null,null,null,null,null,0,0]
[{"$f":"'Org structure'!D95","v":"9.5 - [Name of sub-vote]"},null,null,null,null,null,null,null,null,0,0]
[{"$f":"'Org structure'!D96","v":"9.6 - [Name of sub-vote]"},null,null,null,null,null,null,null,null,0,0]
[{"$f":"'Org structure'!D97","v":"9.7 - [Name of sub-vote]"},null,null,null,null,null,null,null,null,0,0]
[{"$f":"'Org structure'!D98","v":"9.8 - [Name of sub-vote]"},null,null,null,null,null,null,null,null,0,0]
[{"$f":"'Org structure'!D99","v":"9.9 - [Name of sub-vote]"},null,null,null,null,null,null,null,null,0,0]
[{"$f":"'Org structure'!D100","v":"9.10 - [Name of sub-vote]"},null,null,null,null,null,null,null,null,0,0]
[{"$f":"'Org structure'!A11","v":"Vote 10 - Energy sources"},null,{"$f":"SUM(C108:C117)","v":0},{"$f":"SUM(D108:D117)","v":0},0,0,0,0,0,0,0,{"$f":"SUM(L108:L117)","v":0},{"$f":"SUM(M108:M117)","v":0}]
[{"$f":"'Org structure'!D102","v":"10.1 - Electricity"},null,null,null,null,null,null,null,null,0,0]
[{"$f":"'Org structure'!D103","v":"10.2 - Street Lighting and Signal Systems"},null,null,null,null,null,null,null,null,0,0]
[{"$f":"'Org structure'!D104","v":"10.3 - [Name of sub-vote]"},null,null,null,null,null,null,null,null,0,0]
[{"$f":"'Org structure'!D105","v":"10.4 - [Name of sub-vote]"},null,null,null,null,null,null,null,null,0,0]
[{"$f":"'Org structure'!D106","v":"10.5 - [Name of sub-vote]"},null,null,null,null,null,null,null,null,0,0]
[{"$f":"'Org structure'!D107","v":"10.6 - [Name of sub-vote]"},null,null,null,null,null,null,null,null,0,0]
[{"$f":"'Org structure'!D108","v":"10.7 - [Name of sub-vote]"},null,null,null,null,null,null,null,null,0,0]
[{"$f":"'Org structure'!D109","v":"10.8 - [Name of sub-vote]"},null,null,null,null,null,null,null,null,0,0]
[{"$f":"'Org structure'!D110","v":"10.9 - [Name of sub-vote]"},null,null,null,null,null,null,null,null,0,0]
[{"$f":"'Org structure'!D111","v":"10.10 - [Name of sub-vote]"},null,null,null,null,null,null,null,null,0,0]
[{"$f":"'Org structure'!A12","v":"Vote 11 - Waste Management"},null,{"$f":"SUM(C119:C128)","v":0},{"$f":"SUM(D119:D128)","v":0},0,0,0,0,0,0,0,{"$f":"SUM(L119:L128)","v":0},{"$f":"SUM(M119:M128)","v":0}]
[{"$f":"'Org structure'!D113","v":"11.1 - Solid Waste Removal"},null,null,null,null,null,null,null,null,0,0]
[{"$f":"'Org structure'!D114","v":"11.2 - Solid Waste Disposal (Landfill Sites)"},null,null,null,null,null,null,null,null,0,0]
[{"$f":"'Org structure'!D115","v":"11.3 - Street Cleaning"},null,null,null,null,null,null,null,null,0,0]
[{"$f":"'Org structure'!D116","v":"11.4 - [Name of sub-vote]"},null,null,null,null,null,null,null,null,0,0]
[{"$f":"'Org structure'!D117","v":"11.5 - [Name of sub-vote]"},null,null,null,null,null,null,null,null,0,0]
[{"$f":"'Org structure'!D118","v":"11.6 - [Name of sub-vote]"},null,null,null,null,null,null,null,null,0,0]
[{"$f":"'Org structure'!D119","v":"11.7 - [Name of sub-vote]"},null,null,null,null,null,null,null,null,0,0]
[{"$f":"'Org structure'!D120","v":"11.8 - [Name of sub-vote]"},null,null,null,null,null,null,null,null,0,0]
[{"$f":"'Org structure'!D121","v":"11.9 - [Name of sub-vote]"},null,null,null,null,null,null,null,null,0,0]
[{"$f":"'Org structure'!D122","v":"11.10 - [Name of sub-vote]"},null,null,null,null,null,null,null,null,0,0]
[{"$f":"'Org structure'!A13","v":"Vote 12 - Environmental Protection"},null,{"$f":"SUM(C130:C139)","v":0},{"$f":"SUM(D130:D139)","v":0},0,0,0,0,0,0,0,{"$f":"SUM(L130:L139)","v":0},{"$f":"SUM(M130:M139)","v":0}]
[{"$f":"'Org structure'!D124","v":"12.1 - Biodiversity and Landscape"},null,null,null,null,null,null,null,null,0,0]
[{"$f":"'Org structure'!D125","v":"12.2 - [Name of sub-vote]"},null,null,null,null,null,null,null,null,0,0]
[{"$f":"'Org structure'!D126","v":"12.3 - [Name of sub-vote]"},null,null,null,null,null,null,null,null,0,0]
[{"$f":"'Org structure'!D127","v":"12.4 - [Name of sub-vote]"},null,null,null,null,null,null,null,null,0,0]
[{"$f":"'Org structure'!D128","v":"12.5 - [Name of sub-vote]"},null,null,null,null,null,null,null,null,0,0]
[{"$f":"'Org structure'!D129","v":"12.6 - [Name of sub-vote]"},null,null,null,null,null,null,null,null,0,0]
[{"$f":"'Org structure'!D130","v":"12.7 - [Name of sub-vote]"},null,null,null,null,null,null,null,null,{"$f":"SUM(E136:I136)","v":0},{"$f":"IF(D136=0,C136+J136,D136+J136)","v":0}]
[{"$f":"'Org structure'!D131","v":"12.8 - [Name of sub-vote]"},null,null,null,null,null,null,null,null,0,0]
[{"$f":"'Org structure'!D132","v":"12.9 - [Name of sub-vote]"},null,null,null,null,null,null,null,null,0,0]
[{"$f":"'Org structure'!D133","v":"12.10 - [Name of sub-vote]"},null,null,null,null,null,null,null,null,0,0]
[{"$f":"'Org structure'!A14","v":"Vote 13 - [NAME OF VOTE 13]"},null,{"$f":"SUM(C141:C150)","v":0},{"$f":"SUM(D141:D150)","v":0},0,0,0,0,0,0,0,{"$f":"SUM(L141:L150)","v":0},{"$f":"SUM(M141:M150)","v":0}]
[{"$f":"'Org structure'!D135","v":"13.1 - [Name of sub-vote]"},null,null,null,null,null,null,null,null,0,0]
[{"$f":"'Org structure'!D136","v":"13.2 - [Name of sub-vote]"},null,null,null,null,null,null,null,null,0,0]
[{"$f":"'Org structure'!D137","v":"13.3 - [Name of sub-vote]"},null,null,null,null,null,null,null,null,0,0]
[{"$f":"'Org structure'!D138","v":"13.4 - [Name of sub-vote]"},null,null,null,null,null,null,null,null,0,0]
[{"$f":"'Org structure'!D139","v":"13.5 - [Name of sub-vote]"},null,null,null,null,null,null,null,null,0,0]
[{"$f":"'Org structure'!D140","v":"13.6 - [Name of sub-vote]"},null,null,null,null,null,null,null,null,0,0]
[{"$f":"'Org structure'!D141","v":"13.7 - [Name of sub-vote]"},null,null,null,null,null,null,null,null,0,0]
[{"$f":"'Org structure'!D142","v":"13.8 - [Name of sub-vote]"},null,null,null,null,null,null,null,null,0,0]
[{"$f":"'Org structure'!D143","v":"13.9 - [Name of sub-vote]"},null,null,null,null,null,null,null,null,0,0]
[{"$f":"'Org structure'!D144","v":"13.10 - [Name of sub-vote]"},null,null,null,null,null,null,null,null,0,0]
[{"$f":"'Org structure'!A15","v":"Vote 14 - [NAME OF VOTE 14]"},null,{"$f":"SUM(C152:C161)","v":0},{"$f":"SUM(D152:D161)","v":0},0,0,0,0,0,0,0,{"$f":"SUM(L152:L161)","v":0},{"$f":"SUM(M152:M161)","v":0}]
[{"$f":"'Org structure'!D146","v":"14.1 - [Name of sub-vote]"},null,null,null,null,null,null,null,null,0,0]
[{"$f":"'Org structure'!D147","v":"14.2 - [Name of sub-vote]"},null,null,null,null,null,null,null,null,0,0]
[{"$f":"'Org structure'!D148","v":"14.3 - [Name of sub-vote]"},null,null,null,null,null,null,null,null,0,0]
[{"$f":"'Org structure'!D149","v":"14.4 - [Name of sub-vote]"},null,null,null,null,null,null,null,null,0,0]
[{"$f":"'Org structure'!D150","v":"14.5 - [Name of sub-vote]"},null,null,null,null,null,null,null,null,0,0]
[{"$f":"'Org structure'!D151","v":"14.6 - [Name of sub-vote]"},null,null,null,null,null,null,null,null,0,0]
[{"$f":"'Org structure'!D152","v":"14.7 - [Name of sub-vote]"},null,null,null,null,null,null,null,null,0,0]
[{"$f":"'Org structure'!D153","v":"14.8 - [Name of sub-vote]"},null,null,null,null,null,null,null,null,0,0]
[{"$f":"'Org structure'!D154","v":"14.9 - [Name of sub-vote]"},null,null,null,null,null,null,null,null,0,0]
[{"$f":"'Org structure'!D155","v":"14.10 - [Name of sub-vote]"},null,null,null,null,null,null,null,null,0,0]
[{"$f":"'Org structure'!A16","v":"Vote 15 - [NAME OF VOTE 15]"},null,{"$f":"SUM(C163:C172)","v":0},{"$f":"SUM(D163:D172)","v":0},0,0,0,0,0,0,0,{"$f":"SUM(L163:L172)","v":0},{"$f":"SUM(M163:M172)","v":0}]
[{"$f":"'Org structure'!D157","v":"15.1 - [Name of sub-vote]"},null,null,null,null,null,null,null,null,0,0]
[{"$f":"'Org structure'!D158","v":"15.2 - [Name of sub-vote]"},null,null,null,null,null,null,null,null,0,0]
[{"$f":"'Org structure'!D159","v":"15.3 - [Name of sub-vote]"},null,null,null,null,null,null,null,null,0,0]
[{"$f":"'Org structure'!D160","v":"15.4 - [Name of sub-vote]"},null,null,null,null,null,null,null,null,0,0]
[{"$f":"'Org structure'!D161","v":"15.5 - [Name of sub-vote]"},null,null,null,null,null,null,null,null,0,0]
[{"$f":"'Org structure'!D162","v":"15.6 - [Name of sub-vote]"},null,null,null,null,null,null,null,null,0,0]
[{"$f":"'Org structure'!D163","v":"15.7 - [Name of sub-vote]"},null,null,null,null,null,null,null,null,0,0]
[{"$f":"'Org structure'!D164","v":"15.8 - [Name of sub-vote]"},null,null,null,null,null,null,null,null,0,0]
[{"$f":"'Org structure'!D165","v":"15.9 - [Name of sub-vote]"},null,null,null,null,null,null,null,null,0,0]
[{"$f":"'Org structure'!D166","v":"15.10 - [Name of sub-vote]"},null,null,null,null,null,null,null,null,0,0]
["Capital multi-year expenditure sub-total",null,{"$f":"C8+C19+C30+C41+C52+C63+C74+C85+C96+C107+C118+C129+C140+C151+C162","v":0},{"$f":"D8+D19+D30+D41+D52+D63+D74+D85+D96+D107+D118+D129+D140+D151+D162","v":0},0,0,0,0,0,0,0,{"$f":"L8+L19+L30+L41+L52+L63+L74+L85+L96+L107+L118+L129+L140+L151+L162","v":0},{"$f":"M8+M19+M30+M41+M52+M63+M74+M85+M96+M107+M118+M129+M140+M151+M162","v":0}]
[]
["Capital expenditure - Municipal Vote",2]
["Single-year expenditure appropriation"]
[{"$f":"B5B!A8","v":"Vote 1 - Executive and council"},null,{"$f":"SUM(C178:C187)","v":5869563},{"$f":"SUM(D178:D187)","v":11431308},0,0,0,0,0,{"$f":"SUM(E177:I177)","v":0},{"$f":"IF(D177=0,C177+J177,D177+J177)","v":11431308},{"$f":"SUM(L178:L187)","v":20000000},{"$f":"SUM(M178:M187)","v":15000000}]
[{"$f":"B5B!A9","v":"1.1 - Mayor and Council"},null,{"$f":"SUMIFS(Sheet1!S71_OriginalBudget,Sheet1!S71_SubMunicipalVoteNo,$AC:$AC,Sheet1!S71_A5CapexCode,$AD:$AD)","v":1521737},{"$f":"SUMIFS(Sheet1!S71_PreviousBudget,Sheet1!S71_SubMunicipalVoteNo,$AC:$AC,Sheet1!S71_A5CapexCode,$AD:$AD)","v":2735656},null,null,null,null,{"$f":"SUMIFS(Sheet1!S71_CurrentAdjustments,Sheet1!S71_SubMunicipalVoteNo,$AC:$AC,Sheet1!S71_A5CapexCode,$AD:$AD)","v":0},0,2735656,{"$f":"SUMIFS(Sheet1!S71_OY1AdjustedBudget,Sheet1!S71_SubMunicipalVoteNo,$AC:$AC,Sheet1!S71_A5CapexCode,$AD:$AD)","v":0},{"$f":"SUMIFS(Sheet1!S71_OY2AdjustedBudget,Sheet1!S71_SubMunicipalVoteNo,$AC:$AC,Sheet1!S71_A5CapexCode,$AD:$AD)","v":0},null,null,null,null,null,null,null,null,null,null,null,null,null,null,null,11,"CE"]
[{"$f":"B5B!A10","v":"1.2 - Municipal Manager, Town Secretary and Chief Executive"},null,{"$f":"SUMIFS(Sheet1!S71_OriginalBudget,Sheet1!S71_SubMunicipalVoteNo,$AC:$AC,Sheet1!S71_A5CapexCode,$AD:$AD)","v":4347826},{"$f":"SUMIFS(Sheet1!S71_PreviousBudget,Sheet1!S71_SubMunicipalVoteNo,$AC:$AC,Sheet1!S71_A5CapexCode,$AD:$AD)","v":8695652},null,null,null,null,{"$f":"SUMIFS(Sheet1!S71_CurrentAdjustments,Sheet1!S71_SubMunicipalVoteNo,$AC:$AC,Sheet1!S71_A5CapexCode,$AD:$AD)","v":0},0,8695652,{"$f":"SUMIFS(Sheet1!S71_OY1AdjustedBudget,Sheet1!S71_SubMunicipalVoteNo,$AC:$AC,Sheet1!S71_A5CapexCode,$AD:$AD)","v":20000000},{"$f":"SUMIFS(Sheet1!S71_OY2AdjustedBudget,Sheet1!S71_SubMunicipalVoteNo,$AC:$AC,Sheet1!S71_A5CapexCode,$AD:$AD)","v":15000000},null,null,null,null,null,null,null,null,null,null,null,null,null,null,null,12,"CE"]
[{"$f":"B5B!A11","v":"1.3 - [Name of sub-vote]"},null,{"$f":"SUMIFS(Sheet1!S71_OriginalBudget,Sheet1!S71_SubMunicipalVoteNo,$AC:$AC,Sheet1!S71_A5CapexCode,$AD:$AD)","v":0},{"$f":"SUMIFS(Sheet1!S71_PreviousBudget,Sheet1!S71_SubMunicipalVoteNo,$AC:$AC,Sheet1!S71_A5CapexCode,$AD:$AD)","v":0},null,null,null,null,{"$f":"SUMIFS(Sheet1!S71_CurrentAdjustments,Sheet1!S71_SubMunicipalVoteNo,$AC:$AC,Sheet1!S71_A5CapexCode,$AD:$AD)","v":0},0,0,{"$f":"SUMIFS(Sheet1!S71_OY1AdjustedBudget,Sheet1!S71_SubMunicipalVoteNo,$AC:$AC,Sheet1!S71_A5CapexCode,$AD:$AD)","v":0},{"$f":"SUMIFS(Sheet1!S71_OY2AdjustedBudget,Sheet1!S71_SubMunicipalVoteNo,$AC:$AC,Sheet1!S71_A5CapexCode,$AD:$AD)","v":0},null,null,null,null,null,null,null,null,null,null,null,null,null,null,null,13,"CE"]
[{"$f":"B5B!A12","v":"1.4 - [Name of sub-vote]"},null,{"$f":"SUMIFS(Sheet1!S71_OriginalBudget,Sheet1!S71_SubMunicipalVoteNo,$AC:$AC,Sheet1!S71_A5CapexCode,$AD:$AD)","v":0},{"$f":"SUMIFS(Sheet1!S71_PreviousBudget,Sheet1!S71_SubMunicipalVoteNo,$AC:$AC,Sheet1!S71_A5CapexCode,$AD:$AD)","v":0},null,null,null,null,{"$f":"SUMIFS(Sheet1!S71_CurrentAdjustments,Sheet1!S71_SubMunicipalVoteNo,$AC:$AC,Sheet1!S71_A5CapexCode,$AD:$AD)","v":0},0,0,{"$f":"SUMIFS(Sheet1!S71_OY1AdjustedBudget,Sheet1!S71_SubMunicipalVoteNo,$AC:$AC,Sheet1!S71_A5CapexCode,$AD:$AD)","v":0},{"$f":"SUMIFS(Sheet1!S71_OY2AdjustedBudget,Sheet1!S71_SubMunicipalVoteNo,$AC:$AC,Sheet1!S71_A5CapexCode,$AD:$AD)","v":0},null,null,null,null,null,null,null,null,null,null,null,null,null,null,null,14,"CE"]
[{"$f":"B5B!A13","v":"1.5 - [Name of sub-vote]"},null,{"$f":"SUMIFS(Sheet1!S71_OriginalBudget,Sheet1!S71_SubMunicipalVoteNo,$AC:$AC,Sheet1!S71_A5CapexCode,$AD:$AD)","v":0},{"$f":"SUMIFS(Sheet1!S71_PreviousBudget,Sheet1!S71_SubMunicipalVoteNo,$AC:$AC,Sheet1!S71_A5CapexCode,$AD:$AD)","v":0},null,null,null,null,{"$f":"SUMIFS(Sheet1!S71_CurrentAdjustments,Sheet1!S71_SubMunicipalVoteNo,$AC:$AC,Sheet1!S71_A5CapexCode,$AD:$AD)","v":0},0,0,{"$f":"SUMIFS(Sheet1!S71_OY1AdjustedBudget,Sheet1!S71_SubMunicipalVoteNo,$AC:$AC,Sheet1!S71_A5CapexCode,$AD:$AD)","v":0},{"$f":"SUMIFS(Sheet1!S71_OY2AdjustedBudget,Sheet1!S71_SubMunicipalVoteNo,$AC:$AC,Sheet1!S71_A5CapexCode,$AD:$AD)","v":0},null,null,null,null,null,null,null,null,null,null,null,null,null,null,null,15,"CE"]
[{"$f":"B5B!A14","v":"1.6 - [Name of sub-vote]"},null,{"$f":"SUMIFS(Sheet1!S71_OriginalBudget,Sheet1!S71_SubMunicipalVoteNo,$AC:$AC,Sheet1!S71_A5CapexCode,$AD:$AD)","v":0},{"$f":"SUMIFS(Sheet1!S71_PreviousBudget,Sheet1!S71_SubMunicipalVoteNo,$AC:$AC,Sheet1!S71_A5CapexCode,$AD:$AD)","v":0},null,null,null,null,{"$f":"SUMIFS(Sheet1!S71_CurrentAdjustments,Sheet1!S71_SubMunicipalVoteNo,$AC:$AC,Sheet1!S71_A5CapexCode,$AD:$AD)","v":0},0,0,{"$f":"SUMIFS(Sheet1!S71_OY1AdjustedBudget,Sheet1!S71_SubMunicipalVoteNo,$AC:$AC,Sheet1!S71_A5CapexCode,$AD:$AD)","v":0},{"$f":"SUMIFS(Sheet1!S71_OY2AdjustedBudget,Sheet1!S71_SubMunicipalVoteNo,$AC:$AC,Sheet1!S71_A5CapexCode,$AD:$AD)","v":0},null,null,null,null,null,null,null,null,null,null,null,null,null,null,null,16,"CE"]
[{"$f":"B5B!A15","v":"1.7 - [Name of sub-vote]"},null,{"$f":"SUMIFS(Sheet1!S71_OriginalBudget,Sheet1!S71_SubMunicipalVoteNo,$AC:$AC,Sheet1!S71_A5CapexCode,$AD:$AD)","v":0},{"$f":"SUMIFS(Sheet1!S71_PreviousBudget,Sheet1!S71_SubMunicipalVoteNo,$AC:$AC,Sheet1!S71_A5CapexCode,$AD:$AD)","v":0},null,null,null,null,{"$f":"SUMIFS(Sheet1!S71_CurrentAdjustments,Sheet1!S71_SubMunicipalVoteNo,$AC:$AC,Sheet1!S71_A5CapexCode,$AD:$AD)","v":0},0,0,{"$f":"SUMIFS(Sheet1!S71_OY1AdjustedBudget,Sheet1!S71_SubMunicipalVoteNo,$AC:$AC,Sheet1!S71_A5CapexCode,$AD:$AD)","v":0},{"$f":"SUMIFS(Sheet1!S71_OY2AdjustedBudget,Sheet1!S71_SubMunicipalVoteNo,$AC:$AC,Sheet1!S71_A5CapexCode,$AD:$AD)","v":0},null,null,null,null,null,null,null,null,null,null,null,null,null,null,null,17,"CE"]
[{"$f":"B5B!A16","v":"1.8 - [Name of sub-vote]"},null,{"$f":"SUMIFS(Sheet1!S71_OriginalBudget,Sheet1!S71_SubMunicipalVoteNo,$AC:$AC,Sheet1!S71_A5CapexCode,$AD:$AD)","v":0},{"$f":"SUMIFS(Sheet1!S71_PreviousBudget,Sheet1!S71_SubMunicipalVoteNo,$AC:$AC,Sheet1!S71_A5CapexCode,$AD:$AD)","v":0},null,null,null,null,{"$f":"SUMIFS(Sheet1!S71_CurrentAdjustments,Sheet1!S71_SubMunicipalVoteNo,$AC:$AC,Sheet1!S71_A5CapexCode,$AD:$AD)","v":0},0,0,{"$f":"SUMIFS(Sheet1!S71_OY1AdjustedBudget,Sheet1!S71_SubMunicipalVoteNo,$AC:$AC,Sheet1!S71_A5CapexCode,$AD:$AD)","v":0},{"$f":"SUMIFS(Sheet1!S71_OY2AdjustedBudget,Sheet1!S71_SubMunicipalVoteNo,$AC:$AC,Sheet1!S71_A5CapexCode,$AD:$AD)","v":0},null,null,null,null,null,null,null,null,null,null,null,null,null,null,null,18,"CE"]
[{"$f":"B5B!A17","v":"1.9 - [Name of sub-vote]"},null,{"$f":"SUMIFS(Sheet1!S71_OriginalBudget,Sheet1!S71_SubMunicipalVoteNo,$AC:$AC,Sheet1!S71_A5CapexCode,$AD:$AD)","v":0},{"$f":"SUMIFS(Sheet1!S71_PreviousBudget,Sheet1!S71_SubMunicipalVoteNo,$AC:$AC,Sheet1!S71_A5CapexCode,$AD:$AD)","v":0},null,null,null,null,{"$f":"SUMIFS(Sheet1!S71_CurrentAdjustments,Sheet1!S71_SubMunicipalVoteNo,$AC:$AC,Sheet1!S71_A5CapexCode,$AD:$AD)","v":0},0,0,{"$f":"SUMIFS(Sheet1!S71_OY1AdjustedBudget,Sheet1!S71_SubMunicipalVoteNo,$AC:$AC,Sheet1!S71_A5CapexCode,$AD:$AD)","v":0},{"$f":"SUMIFS(Sheet1!S71_OY2AdjustedBudget,Sheet1!S71_SubMunicipalVoteNo,$AC:$AC,Sheet1!S71_A5CapexCode,$AD:$AD)","v":0},null,null,null,null,null,null,null,null,null,null,null,null,null,null,null,19,"CE"]
[{"$f":"B5B!A18","v":"1.10 - [Name of sub-vote]"},null,{"$f":"SUMIFS(Sheet1!S71_OriginalBudget,Sheet1!S71_SubMunicipalVoteNo,$AC:$AC,Sheet1!S71_A5CapexCode,$AD:$AD)","v":0},{"$f":"SUMIFS(Sheet1!S71_PreviousBudget,Sheet1!S71_SubMunicipalVoteNo,$AC:$AC,Sheet1!S71_A5CapexCode,$AD:$AD)","v":0},null,null,null,null,{"$f":"SUMIFS(Sheet1!S71_CurrentAdjustments,Sheet1!S71_SubMunicipalVoteNo,$AC:$AC,Sheet1!S71_A5CapexCode,$AD:$AD)","v":0},0,0,{"$f":"SUMIFS(Sheet1!S71_OY1AdjustedBudget,Sheet1!S71_SubMunicipalVoteNo,$AC:$AC,Sheet1!S71_A5CapexCode,$AD:$AD)","v":0},{"$f":"SUMIFS(Sheet1!S71_OY2AdjustedBudget,Sheet1!S71_SubMunicipalVoteNo,$AC:$AC,Sheet1!S71_A5CapexCode,$AD:$AD)","v":0},null,null,null,null,null,null,null,null,null,null,null,null,null,null,null,110,"CE"]
[{"$f":"B5B!A19","v":"Vote 2 - Finance and administration"},null,{"$f":"SUM(C189:C198)","v":8556512},{"$f":"SUM(D189:D198)","v":13615736},0,0,0,0,0,0,13615736,{"$f":"SUM(L189:L198)","v":0},{"$f":"SUM(M189:M198)","v":0}]
[{"$f":"B5B!A20","v":"2.1 - Administrative and Corporate Support"},null,{"$f":"SUMIFS(Sheet1!S71_OriginalBudget,Sheet1!S71_SubMunicipalVoteNo,$AC:$AC,Sheet1!S71_A5CapexCode,$AD:$AD)","v":521740},{"$f":"SUMIFS(Sheet1!S71_PreviousBudget,Sheet1!S71_SubMunicipalVoteNo,$AC:$AC,Sheet1!S71_A5CapexCode,$AD:$AD)","v":608697},null,null,null,null,{"$f":"SUMIFS(Sheet1!S71_CurrentAdjustments,Sheet1!S71_SubMunicipalVoteNo,$AC:$AC,Sheet1!S71_A5CapexCode,$AD:$AD)","v":0},0,608697,{"$f":"SUMIFS(Sheet1!S71_OY1AdjustedBudget,Sheet1!S71_SubMunicipalVoteNo,$AC:$AC,Sheet1!S71_A5CapexCode,$AD:$AD)","v":0},{"$f":"SUMIFS(Sheet1!S71_OY2AdjustedBudget,Sheet1!S71_SubMunicipalVoteNo,$AC:$AC,Sheet1!S71_A5CapexCode,$AD:$AD)","v":0},null,null,null,null,null,null,null,null,null,null,null,null,null,null,null,21,"CE"]
[{"$f":"B5B!A21","v":"2.2 - Asset Management"},null,{"$f":"SUMIFS(Sheet1!S71_OriginalBudget,Sheet1!S71_SubMunicipalVoteNo,$AC:$AC,Sheet1!S71_A5CapexCode,$AD:$AD)","v":0},{"$f":"SUMIFS(Sheet1!S71_PreviousBudget,Sheet1!S71_SubMunicipalVoteNo,$AC:$AC,Sheet1!S71_A5CapexCode,$AD:$AD)","v":0},null,null,null,null,{"$f":"SUMIFS(Sheet1!S71_CurrentAdjustments,Sheet1!S71_SubMunicipalVoteNo,$AC:$AC,Sheet1!S71_A5CapexCode,$AD:$AD)","v":0},0,0,{"$f":"SUMIFS(Sheet1!S71_OY1AdjustedBudget,Sheet1!S71_SubMunicipalVoteNo,$AC:$AC,Sheet1!S71_A5CapexCode,$AD:$AD)","v":0},{"$f":"SUMIFS(Sheet1!S71_OY2AdjustedBudget,Sheet1!S71_SubMunicipalVoteNo,$AC:$AC,Sheet1!S71_A5CapexCode,$AD:$AD)","v":0},null,null,null,null,null,null,null,null,null,null,null,null,null,null,null,22,"CE"]
[{"$f":"B5B!A22","v":"2.3 - Finance"},null,{"$f":"SUMIFS(Sheet1!S71_OriginalBudget,Sheet1!S71_SubMunicipalVoteNo,$AC:$AC,Sheet1!S71_A5CapexCode,$AD:$AD)","v":1913043},{"$f":"SUMIFS(Sheet1!S71_PreviousBudget,Sheet1!S71_SubMunicipalVoteNo,$AC:$AC,Sheet1!S71_A5CapexCode,$AD:$AD)","v":2389655},null,null,null,null,{"$f":"SUMIFS(Sheet1!S71_CurrentAdjustments,Sheet1!S71_SubMunicipalVoteNo,$AC:$AC,Sheet1!S71_A5CapexCode,$AD:$AD)","v":0},0,2389655,{"$f":"SUMIFS(Sheet1!S71_OY1AdjustedBudget,Sheet1!S71_SubMunicipalVoteNo,$AC:$AC,Sheet1!S71_A5CapexCode,$AD:$AD)","v":0},{"$f":"SUMIFS(Sheet1!S71_OY2AdjustedBudget,Sheet1!S71_SubMunicipalVoteNo,$AC:$AC,Sheet1!S71_A5CapexCode,$AD:$AD)","v":0},null,null,null,null,null,null,null,null,null,null,null,null,null,null,null,23,"CE"]
[{"$f":"B5B!A23","v":"2.4 - Fleet Management"},null,{"$f":"SUMIFS(Sheet1!S71_OriginalBudget,Sheet1!S71_SubMunicipalVoteNo,$AC:$AC,Sheet1!S71_A5CapexCode,$AD:$AD)","v":4913040},{"$f":"SUMIFS(Sheet1!S71_PreviousBudget,Sheet1!S71_SubMunicipalVoteNo,$AC:$AC,Sheet1!S71_A5CapexCode,$AD:$AD)","v":8826087},null,null,null,null,{"$f":"SUMIFS(Sheet1!S71_CurrentAdjustments,Sheet1!S71_SubMunicipalVoteNo,$AC:$AC,Sheet1!S71_A5CapexCode,$AD:$AD)","v":0},0,8826087,{"$f":"SUMIFS(Sheet1!S71_OY1AdjustedBudget,Sheet1!S71_SubMunicipalVoteNo,$AC:$AC,Sheet1!S71_A5CapexCode,$AD:$AD)","v":0},{"$f":"SUMIFS(Sheet1!S71_OY2AdjustedBudget,Sheet1!S71_SubMunicipalVoteNo,$AC:$AC,Sheet1!S71_A5CapexCode,$AD:$AD)","v":0},null,null,null,null,null,null,null,null,null,null,null,null,null,null,null,24,"CE"]
[{"$f":"B5B!A24","v":"2.5 - Human Resources"},null,{"$f":"SUMIFS(Sheet1!S71_OriginalBudget,Sheet1!S71_SubMunicipalVoteNo,$AC:$AC,Sheet1!S71_A5CapexCode,$AD:$AD)","v":0},{"$f":"SUMIFS(Sheet1!S71_PreviousBudget,Sheet1!S71_SubMunicipalVoteNo,$AC:$AC,Sheet1!S71_A5CapexCode,$AD:$AD)","v":0},null,null,null,null,{"$f":"SUMIFS(Sheet1!S71_CurrentAdjustments,Sheet1!S71_SubMunicipalVoteNo,$AC:$AC,Sheet1!S71_A5CapexCode,$AD:$AD)","v":0},0,0,{"$f":"SUMIFS(Sheet1!S71_OY1AdjustedBudget,Sheet1!S71_SubMunicipalVoteNo,$AC:$AC,Sheet1!S71_A5CapexCode,$AD:$AD)","v":0},{"$f":"SUMIFS(Sheet1!S71_OY2AdjustedBudget,Sheet1!S71_SubMunicipalVoteNo,$AC:$AC,Sheet1!S71_A5CapexCode,$AD:$AD)","v":0},null,null,null,null,null,null,null,null,null,null,null,null,null,null,null,25,"CE"]
[{"$f":"B5B!A25","v":"2.6 - Information Technology"},null,{"$f":"SUMIFS(Sheet1!S71_OriginalBudget,Sheet1!S71_SubMunicipalVoteNo,$AC:$AC,Sheet1!S71_A5CapexCode,$AD:$AD)","v":1086950},{"$f":"SUMIFS(Sheet1!S71_PreviousBudget,Sheet1!S71_SubMunicipalVoteNo,$AC:$AC,Sheet1!S71_A5CapexCode,$AD:$AD)","v":1721732},null,null,null,null,{"$f":"SUMIFS(Sheet1!S71_CurrentAdjustments,Sheet1!S71_SubMunicipalVoteNo,$AC:$AC,Sheet1!S71_A5CapexCode,$AD:$AD)","v":0},0,1721732,{"$f":"SUMIFS(Sheet1!S71_OY1AdjustedBudget,Sheet1!S71_SubMunicipalVoteNo,$AC:$AC,Sheet1!S71_A5CapexCode,$AD:$AD)","v":0},{"$f":"SUMIFS(Sheet1!S71_OY2AdjustedBudget,Sheet1!S71_SubMunicipalVoteNo,$AC:$AC,Sheet1!S71_A5CapexCode,$AD:$AD)","v":0},null,null,null,null,null,null,null,null,null,null,null,null,null,null,null,26,"CE"]
[{"$f":"B5B!A26","v":"2.7 - Property Services"},null,{"$f":"SUMIFS(Sheet1!S71_OriginalBudget,Sheet1!S71_SubMunicipalVoteNo,$AC:$AC,Sheet1!S71_A5CapexCode,$AD:$AD)","v":0},{"$f":"SUMIFS(Sheet1!S71_PreviousBudget,Sheet1!S71_SubMunicipalVoteNo,$AC:$AC,Sheet1!S71_A5CapexCode,$AD:$AD)","v":0},null,null,null,null,{"$f":"SUMIFS(Sheet1!S71_CurrentAdjustments,Sheet1!S71_SubMunicipalVoteNo,$AC:$AC,Sheet1!S71_A5CapexCode,$AD:$AD)","v":0},0,0,{"$f":"SUMIFS(Sheet1!S71_OY1AdjustedBudget,Sheet1!S71_SubMunicipalVoteNo,$AC:$AC,Sheet1!S71_A5CapexCode,$AD:$AD)","v":0},{"$f":"SUMIFS(Sheet1!S71_OY2AdjustedBudget,Sheet1!S71_SubMunicipalVoteNo,$AC:$AC,Sheet1!S71_A5CapexCode,$AD:$AD)","v":0},null,null,null,null,null,null,null,null,null,null,null,null,null,null,null,27,"CE"]
[{"$f":"B5B!A27","v":"2.8 - Security Services"},null,{"$f":"SUMIFS(Sheet1!S71_OriginalBudget,Sheet1!S71_SubMunicipalVoteNo,$AC:$AC,Sheet1!S71_A5CapexCode,$AD:$AD)","v":0},{"$f":"SUMIFS(Sheet1!S71_PreviousBudget,Sheet1!S71_SubMunicipalVoteNo,$AC:$AC,Sheet1!S71_A5CapexCode,$AD:$AD)","v":0},null,null,null,null,{"$f":"SUMIFS(Sheet1!S71_CurrentAdjustments,Sheet1!S71_SubMunicipalVoteNo,$AC:$AC,Sheet1!S71_A5CapexCode,$AD:$AD)","v":0},0,0,{"$f":"SUMIFS(Sheet1!S71_OY1AdjustedBudget,Sheet1!S71_SubMunicipalVoteNo,$AC:$AC,Sheet1!S71_A5CapexCode,$AD:$AD)","v":0},{"$f":"SUMIFS(Sheet1!S71_OY2AdjustedBudget,Sheet1!S71_SubMunicipalVoteNo,$AC:$AC,Sheet1!S71_A5CapexCode,$AD:$AD)","v":0},null,null,null,null,null,null,null,null,null,null,null,null,null,null,null,28,"CE"]
[{"$f":"B5B!A28","v":"2.9 - Supply Chain Management"},null,{"$f":"SUMIFS(Sheet1!S71_OriginalBudget,Sheet1!S71_SubMunicipalVoteNo,$AC:$AC,Sheet1!S71_A5CapexCode,$AD:$AD)","v":121739},{"$f":"SUMIFS(Sheet1!S71_PreviousBudget,Sheet1!S71_SubMunicipalVoteNo,$AC:$AC,Sheet1!S71_A5CapexCode,$AD:$AD)","v":69565},null,null,null,null,{"$f":"SUMIFS(Sheet1!S71_CurrentAdjustments,Sheet1!S71_SubMunicipalVoteNo,$AC:$AC,Sheet1!S71_A5CapexCode,$AD:$AD)","v":0},0,69565,{"$f":"SUMIFS(Sheet1!S71_OY1AdjustedBudget,Sheet1!S71_SubMunicipalVoteNo,$AC:$AC,Sheet1!S71_A5CapexCode,$AD:$AD)","v":0},{"$f":"SUMIFS(Sheet1!S71_OY2AdjustedBudget,Sheet1!S71_SubMunicipalVoteNo,$AC:$AC,Sheet1!S71_A5CapexCode,$AD:$AD)","v":0},null,null,null,null,null,null,null,null,null,null,null,null,null,null,null,29,"CE"]
[{"$f":"B5B!A29","v":"2.10 - Valuation Service"},null,{"$f":"SUMIFS(Sheet1!S71_OriginalBudget,Sheet1!S71_SubMunicipalVoteNo,$AC:$AC,Sheet1!S71_A5CapexCode,$AD:$AD)","v":0},{"$f":"SUMIFS(Sheet1!S71_PreviousBudget,Sheet1!S71_SubMunicipalVoteNo,$AC:$AC,Sheet1!S71_A5CapexCode,$AD:$AD)","v":0},null,null,null,null,{"$f":"SUMIFS(Sheet1!S71_CurrentAdjustments,Sheet1!S71_SubMunicipalVoteNo,$AC:$AC,Sheet1!S71_A5CapexCode,$AD:$AD)","v":0},0,0,{"$f":"SUMIFS(Sheet1!S71_OY1AdjustedBudget,Sheet1!S71_SubMunicipalVoteNo,$AC:$AC,Sheet1!S71_A5CapexCode,$AD:$AD)","v":0},{"$f":"SUMIFS(Sheet1!S71_OY2AdjustedBudget,Sheet1!S71_SubMunicipalVoteNo,$AC:$AC,Sheet1!S71_A5CapexCode,$AD:$AD)","v":0},null,null,null,null,null,null,null,null,null,null,null,null,null,null,null,210,"CE"]
[{"$f":"B5B!A30","v":"Vote 3 - Internal audit"},null,{"$f":"SUM(C200:C209)","v":0},{"$f":"SUM(D200:D209)","v":0},0,0,0,0,0,0,0,{"$f":"SUM(L200:L209)","v":0},{"$f":"SUM(M200:M209)","v":0}]
[{"$f":"B5B!A31","v":"3.1 - Governance Function"},null,{"$f":"SUMIFS(Sheet1!S71_OriginalBudget,Sheet1!S71_SubMunicipalVoteNo,$AC:$AC,Sheet1!S71_A5CapexCode,$AD:$AD)","v":0},{"$f":"SUMIFS(Sheet1!S71_PreviousBudget,Sheet1!S71_SubMunicipalVoteNo,$AC:$AC,Sheet1!S71_A5CapexCode,$AD:$AD)","v":0},null,null,null,null,{"$f":"SUMIFS(Sheet1!S71_CurrentAdjustments,Sheet1!S71_SubMunicipalVoteNo,$AC:$AC,Sheet1!S71_A5CapexCode,$AD:$AD)","v":0},0,0,{"$f":"SUMIFS(Sheet1!S71_OY1AdjustedBudget,Sheet1!S71_SubMunicipalVoteNo,$AC:$AC,Sheet1!S71_A5CapexCode,$AD:$AD)","v":0},{"$f":"SUMIFS(Sheet1!S71_OY2AdjustedBudget,Sheet1!S71_SubMunicipalVoteNo,$AC:$AC,Sheet1!S71_A5CapexCode,$AD:$AD)","v":0},null,null,null,null,null,null,null,null,null,null,null,null,null,null,null,31,"CE"]
[{"$f":"B5B!A32","v":"3.2 - Risk Management"},null,{"$f":"SUMIFS(Sheet1!S71_OriginalBudget,Sheet1!S71_SubMunicipalVoteNo,$AC:$AC,Sheet1!S71_A5CapexCode,$AD:$AD)","v":0},{"$f":"SUMIFS(Sheet1!S71_PreviousBudget,Sheet1!S71_SubMunicipalVoteNo,$AC:$AC,Sheet1!S71_A5CapexCode,$AD:$AD)","v":0},null,null,null,null,{"$f":"SUMIFS(Sheet1!S71_CurrentAdjustments,Sheet1!S71_SubMunicipalVoteNo,$AC:$AC,Sheet1!S71_A5CapexCode,$AD:$AD)","v":0},0,0,{"$f":"SUMIFS(Sheet1!S71_OY1AdjustedBudget,Sheet1!S71_SubMunicipalVoteNo,$AC:$AC,Sheet1!S71_A5CapexCode,$AD:$AD)","v":0},{"$f":"SUMIFS(Sheet1!S71_OY2AdjustedBudget,Sheet1!S71_SubMunicipalVoteNo,$AC:$AC,Sheet1!S71_A5CapexCode,$AD:$AD)","v":0},null,null,null,null,null,null,null,null,null,null,null,null,null,null,null,32,"CE"]
[{"$f":"B5B!A33","v":"3.3 - [Name of sub-vote]"},null,{"$f":"SUMIFS(Sheet1!S71_OriginalBudget,Sheet1!S71_SubMunicipalVoteNo,$AC:$AC,Sheet1!S71_A5CapexCode,$AD:$AD)","v":0},{"$f":"SUMIFS(Sheet1!S71_PreviousBudget,Sheet1!S71_SubMunicipalVoteNo,$AC:$AC,Sheet1!S71_A5CapexCode,$AD:$AD)","v":0},null,null,null,null,{"$f":"SUMIFS(Sheet1!S71_CurrentAdjustments,Sheet1!S71_SubMunicipalVoteNo,$AC:$AC,Sheet1!S71_A5CapexCode,$AD:$AD)","v":0},0,0,{"$f":"SUMIFS(Sheet1!S71_OY1AdjustedBudget,Sheet1!S71_SubMunicipalVoteNo,$AC:$AC,Sheet1!S71_A5CapexCode,$AD:$AD)","v":0},{"$f":"SUMIFS(Sheet1!S71_OY2AdjustedBudget,Sheet1!S71_SubMunicipalVoteNo,$AC:$AC,Sheet1!S71_A5CapexCode,$AD:$AD)","v":0},null,null,null,null,null,null,null,null,null,null,null,null,null,null,null,33,"CE"]
[{"$f":"B5B!A34","v":"3.4 - [Name of sub-vote]"},null,{"$f":"SUMIFS(Sheet1!S71_OriginalBudget,Sheet1!S71_SubMunicipalVoteNo,$AC:$AC,Sheet1!S71_A5CapexCode,$AD:$AD)","v":0},{"$f":"SUMIFS(Sheet1!S71_PreviousBudget,Sheet1!S71_SubMunicipalVoteNo,$AC:$AC,Sheet1!S71_A5CapexCode,$AD:$AD)","v":0},null,null,null,null,{"$f":"SUMIFS(Sheet1!S71_CurrentAdjustments,Sheet1!S71_SubMunicipalVoteNo,$AC:$AC,Sheet1!S71_A5CapexCode,$AD:$AD)","v":0},0,0,{"$f":"SUMIFS(Sheet1!S71_OY1AdjustedBudget,Sheet1!S71_SubMunicipalVoteNo,$AC:$AC,Sheet1!S71_A5CapexCode,$AD:$AD)","v":0},{"$f":"SUMIFS(Sheet1!S71_OY2AdjustedBudget,Sheet1!S71_SubMunicipalVoteNo,$AC:$AC,Sheet1!S71_A5CapexCode,$AD:$AD)","v":0},null,null,null,null,null,null,null,null,null,null,null,null,null,null,null,34,"CE"]
[{"$f":"B5B!A35","v":"3.5 - [Name of sub-vote]"},null,{"$f":"SUMIFS(Sheet1!S71_OriginalBudget,Sheet1!S71_SubMunicipalVoteNo,$AC:$AC,Sheet1!S71_A5CapexCode,$AD:$AD)","v":0},{"$f":"SUMIFS(Sheet1!S71_PreviousBudget,Sheet1!S71_SubMunicipalVoteNo,$AC:$AC,Sheet1!S71_A5CapexCode,$AD:$AD)","v":0},null,null,null,null,{"$f":"SUMIFS(Sheet1!S71_CurrentAdjustments,Sheet1!S71_SubMunicipalVoteNo,$AC:$AC,Sheet1!S71_A5CapexCode,$AD:$AD)","v":0},0,0,{"$f":"SUMIFS(Sheet1!S71_OY1AdjustedBudget,Sheet1!S71_SubMunicipalVoteNo,$AC:$AC,Sheet1!S71_A5CapexCode,$AD:$AD)","v":0},{"$f":"SUMIFS(Sheet1!S71_OY2AdjustedBudget,Sheet1!S71_SubMunicipalVoteNo,$AC:$AC,Sheet1!S71_A5CapexCode,$AD:$AD)","v":0},null,null,null,null,null,null,null,null,null,null,null,null,null,null,null,35,"CE"]
[{"$f":"B5B!A36","v":"3.6 - [Name of sub-vote]"},null,{"$f":"SUMIFS(Sheet1!S71_OriginalBudget,Sheet1!S71_SubMunicipalVoteNo,$AC:$AC,Sheet1!S71_A5CapexCode,$AD:$AD)","v":0},{"$f":"SUMIFS(Sheet1!S71_PreviousBudget,Sheet1!S71_SubMunicipalVoteNo,$AC:$AC,Sheet1!S71_A5CapexCode,$AD:$AD)","v":0},null,null,null,null,{"$f":"SUMIFS(Sheet1!S71_CurrentAdjustments,Sheet1!S71_SubMunicipalVoteNo,$AC:$AC,Sheet1!S71_A5CapexCode,$AD:$AD)","v":0},0,0,{"$f":"SUMIFS(Sheet1!S71_OY1AdjustedBudget,Sheet1!S71_SubMunicipalVoteNo,$AC:$AC,Sheet1!S71_A5CapexCode,$AD:$AD)","v":0},{"$f":"SUMIFS(Sheet1!S71_OY2AdjustedBudget,Sheet1!S71_SubMunicipalVoteNo,$AC:$AC,Sheet1!S71_A5CapexCode,$AD:$AD)","v":0},null,null,null,null,null,null,null,null,null,null,null,null,null,null,null,36,"CE"]
[{"$f":"B5B!A37","v":"3.7 - [Name of sub-vote]"},null,{"$f":"SUMIFS(Sheet1!S71_OriginalBudget,Sheet1!S71_SubMunicipalVoteNo,$AC:$AC,Sheet1!S71_A5CapexCode,$AD:$AD)","v":0},{"$f":"SUMIFS(Sheet1!S71_PreviousBudget,Sheet1!S71_SubMunicipalVoteNo,$AC:$AC,Sheet1!S71_A5CapexCode,$AD:$AD)","v":0},null,null,null,null,{"$f":"SUMIFS(Sheet1!S71_CurrentAdjustments,Sheet1!S71_SubMunicipalVoteNo,$AC:$AC,Sheet1!S71_A5CapexCode,$AD:$AD)","v":0},0,0,{"$f":"SUMIFS(Sheet1!S71_OY1AdjustedBudget,Sheet1!S71_SubMunicipalVoteNo,$AC:$AC,Sheet1!S71_A5CapexCode,$AD:$AD)","v":0},{"$f":"SUMIFS(Sheet1!S71_OY2AdjustedBudget,Sheet1!S71_SubMunicipalVoteNo,$AC:$AC,Sheet1!S71_A5CapexCode,$AD:$AD)","v":0},null,null,null,null,null,null,null,null,null,null,null,null,null,null,null,37,"CE"]
[{"$f":"B5B!A38","v":"3.8 - [Name of sub-vote]"},null,{"$f":"SUMIFS(Sheet1!S71_OriginalBudget,Sheet1!S71_SubMunicipalVoteNo,$AC:$AC,Sheet1!S71_A5CapexCode,$AD:$AD)","v":0},{"$f":"SUMIFS(Sheet1!S71_PreviousBudget,Sheet1!S71_SubMunicipalVoteNo,$AC:$AC,Sheet1!S71_A5CapexCode,$AD:$AD)","v":0},null,null,null,null,{"$f":"SUMIFS(Sheet1!S71_CurrentAdjustments,Sheet1!S71_SubMunicipalVoteNo,$AC:$AC,Sheet1!S71_A5CapexCode,$AD:$AD)","v":0},0,0,{"$f":"SUMIFS(Sheet1!S71_OY1AdjustedBudget,Sheet1!S71_SubMunicipalVoteNo,$AC:$AC,Sheet1!S71_A5CapexCode,$AD:$AD)","v":0},{"$f":"SUMIFS(Sheet1!S71_OY2AdjustedBudget,Sheet1!S71_SubMunicipalVoteNo,$AC:$AC,Sheet1!S71_A5CapexCode,$AD:$AD)","v":0},null,null,null,null,null,null,null,null,null,null,null,null,null,null,null,38,"CE"]
[{"$f":"B5B!A39","v":"3.9 - [Name of sub-vote]"},null,{"$f":"SUMIFS(Sheet1!S71_OriginalBudget,Sheet1!S71_SubMunicipalVoteNo,$AC:$AC,Sheet1!S71_A5CapexCode,$AD:$AD)","v":0},{"$f":"SUMIFS(Sheet1!S71_PreviousBudget,Sheet1!S71_SubMunicipalVoteNo,$AC:$AC,Sheet1!S71_A5CapexCode,$AD:$AD)","v":0},null,null,null,null,{"$f":"SUMIFS(Sheet1!S71_CurrentAdjustments,Sheet1!S71_SubMunicipalVoteNo,$AC:$AC,Sheet1!S71_A5CapexCode,$AD:$AD)","v":0},0,0,{"$f":"SUMIFS(Sheet1!S71_OY1AdjustedBudget,Sheet1!S71_SubMunicipalVoteNo,$AC:$AC,Sheet1!S71_A5CapexCode,$AD:$AD)","v":0},{"$f":"SUMIFS(Sheet1!S71_OY2AdjustedBudget,Sheet1!S71_SubMunicipalVoteNo,$AC:$AC,Sheet1!S71_A5CapexCode,$AD:$AD)","v":0},null,null,null,null,null,null,null,null,null,null,null,null,null,null,null,39,"CE"]
[{"$f":"B5B!A40","v":"3.10 - [Name of sub-vote]"},null,{"$f":"SUMIFS(Sheet1!S71_OriginalBudget,Sheet1!S71_SubMunicipalVoteNo,$AC:$AC,Sheet1!S71_A5CapexCode,$AD:$AD)","v":0},{"$f":"SUMIFS(Sheet1!S71_PreviousBudget,Sheet1!S71_SubMunicipalVoteNo,$AC:$AC,Sheet1!S71_A5CapexCode,$AD:$AD)","v":0},null,null,null,null,{"$f":"SUMIFS(Sheet1!S71_CurrentAdjustments,Sheet1!S71_SubMunicipalVoteNo,$AC:$AC,Sheet1!S71_A5CapexCode,$AD:$AD)","v":0},0,0,{"$f":"SUMIFS(Sheet1!S71_OY1AdjustedBudget,Sheet1!S71_SubMunicipalVoteNo,$AC:$AC,Sheet1!S71_A5CapexCode,$AD:$AD)","v":0},{"$f":"SUMIFS(Sheet1!S71_OY2AdjustedBudget,Sheet1!S71_SubMunicipalVoteNo,$AC:$AC,Sheet1!S71_A5CapexCode,$AD:$AD)","v":0},null,null,null,null,null,null,null,null,null,null,null,null,null,null,null,310,"CE"]
[{"$f":"B5B!A41","v":"Vote 4 - Community and social services"},null,{"$f":"SUM(C211:C220)","v":4456516},4107020,0,0,0,0,0,0,4107020,{"$f":"SUM(L211:L220)","v":0},{"$f":"SUM(M211:M220)","v":0}]
[{"$f":"B5B!A42","v":"4.1 - [Name of sub-vote]"},null,{"$f":"SUMIFS(Sheet1!S71_OriginalBudget,Sheet1!S71_SubMunicipalVoteNo,$AC:$AC,Sheet1!S71_A5CapexCode,$AD:$AD)","v":0},{"$f":"SUMIFS(Sheet1!S71_PreviousBudget,Sheet1!S71_SubMunicipalVoteNo,$AC:$AC,Sheet1!S71_A5CapexCode,$AD:$AD)","v":0},null,null,null,null,{"$f":"SUMIFS(Sheet1!S71_CurrentAdjustments,Sheet1!S71_SubMunicipalVoteNo,$AC:$AC,Sheet1!S71_A5CapexCode,$AD:$AD)","v":0},0,0,{"$f":"SUMIFS(Sheet1!S71_OY1AdjustedBudget,Sheet1!S71_SubMunicipalVoteNo,$AC:$AC,Sheet1!S71_A5CapexCode,$AD:$AD)","v":0},{"$f":"SUMIFS(Sheet1!S71_OY2AdjustedBudget,Sheet1!S71_SubMunicipalVoteNo,$AC:$AC,Sheet1!S71_A5CapexCode,$AD:$AD)","v":0},null,null,null,null,null,null,null,null,null,null,null,null,null,null,null,41,"CE"]
[{"$f":"B5B!A43","v":"4.2 - Cemeteries, Funeral Parlours and Crematoriums"},null,{"$f":"SUMIFS(Sheet1!S71_OriginalBudget,Sheet1!S71_SubMunicipalVoteNo,$AC:$AC,Sheet1!S71_A5CapexCode,$AD:$AD)","v":0},{"$f":"SUMIFS(Sheet1!S71_PreviousBudget,Sheet1!S71_SubMunicipalVoteNo,$AC:$AC,Sheet1!S71_A5CapexCode,$AD:$AD)","v":0},null,null,null,null,{"$f":"SUMIFS(Sheet1!S71_CurrentAdjustments,Sheet1!S71_SubMunicipalVoteNo,$AC:$AC,Sheet1!S71_A5CapexCode,$AD:$AD)","v":0},0,0,{"$f":"SUMIFS(Sheet1!S71_OY1AdjustedBudget,Sheet1!S71_SubMunicipalVoteNo,$AC:$AC,Sheet1!S71_A5CapexCode,$AD:$AD)","v":0},{"$f":"SUMIFS(Sheet1!S71_OY2AdjustedBudget,Sheet1!S71_SubMunicipalVoteNo,$AC:$AC,Sheet1!S71_A5CapexCode,$AD:$AD)","v":0},null,null,null,null,null,null,null,null,null,null,null,null,null,null,null,42,"CE"]
[{"$f":"B5B!A44","v":"4.3 - Community Halls and Facilities"},null,{"$f":"SUMIFS(Sheet1!S71_OriginalBudget,Sheet1!S71_SubMunicipalVoteNo,$AC:$AC,Sheet1!S71_A5CapexCode,$AD:$AD)","v":3286956},{"$f":"SUMIFS(Sheet1!S71_PreviousBudget,Sheet1!S71_SubMunicipalVoteNo,$AC:$AC,Sheet1!S71_A5CapexCode,$AD:$AD)","v":3018370},null,null,null,null,{"$f":"SUMIFS(Sheet1!S71_CurrentAdjustments,Sheet1!S71_SubMunicipalVoteNo,$AC:$AC,Sheet1!S71_A5CapexCode,$AD:$AD)","v":0},0,3018370,{"$f":"SUMIFS(Sheet1!S71_OY1AdjustedBudget,Sheet1!S71_SubMunicipalVoteNo,$AC:$AC,Sheet1!S71_A5CapexCode,$AD:$AD)","v":0},{"$f":"SUMIFS(Sheet1!S71_OY2AdjustedBudget,Sheet1!S71_SubMunicipalVoteNo,$AC:$AC,Sheet1!S71_A5CapexCode,$AD:$AD)","v":0},null,null,null,null,null,null,null,null,null,null,null,null,null,null,null,43,"CE"]
[{"$f":"B5B!A45","v":"4.4 - Libraries and Archives"},null,{"$f":"SUMIFS(Sheet1!S71_OriginalBudget,Sheet1!S71_SubMunicipalVoteNo,$AC:$AC,Sheet1!S71_A5CapexCode,$AD:$AD)","v":1156520},{"$f":"SUMIFS(Sheet1!S71_PreviousBudget,Sheet1!S71_SubMunicipalVoteNo,$AC:$AC,Sheet1!S71_A5CapexCode,$AD:$AD)","v":1088650},null,null,null,null,{"$f":"SUMIFS(Sheet1!S71_CurrentAdjustments,Sheet1!S71_SubMunicipalVoteNo,$AC:$AC,Sheet1!S71_A5CapexCode,$AD:$AD)","v":0},0,1088650,{"$f":"SUMIFS(Sheet1!S71_OY1AdjustedBudget,Sheet1!S71_SubMunicipalVoteNo,$AC:$AC,Sheet1!S71_A5CapexCode,$AD:$AD)","v":0},{"$f":"SUMIFS(Sheet1!S71_OY2AdjustedBudget,Sheet1!S71_SubMunicipalVoteNo,$AC:$AC,Sheet1!S71_A5CapexCode,$AD:$AD)","v":0},null,null,null,null,null,null,null,null,null,null,null,null,null,null,null,44,"CE"]
[{"$f":"B5B!A46","v":"4.5 - [Name of sub-vote]"},null,{"$f":"SUMIFS(Sheet1!S71_OriginalBudget,Sheet1!S71_SubMunicipalVoteNo,$AC:$AC,Sheet1!S71_A5CapexCode,$AD:$AD)","v":0},{"$f":"SUMIFS(Sheet1!S71_PreviousBudget,Sheet1!S71_SubMunicipalVoteNo,$AC:$AC,Sheet1!S71_A5CapexCode,$AD:$AD)","v":0},null,null,null,null,{"$f":"SUMIFS(Sheet1!S71_CurrentAdjustments,Sheet1!S71_SubMunicipalVoteNo,$AC:$AC,Sheet1!S71_A5CapexCode,$AD:$AD)","v":0},0,0,{"$f":"SUMIFS(Sheet1!S71_OY1AdjustedBudget,Sheet1!S71_SubMunicipalVoteNo,$AC:$AC,Sheet1!S71_A5CapexCode,$AD:$AD)","v":0},{"$f":"SUMIFS(Sheet1!S71_OY2AdjustedBudget,Sheet1!S71_SubMunicipalVoteNo,$AC:$AC,Sheet1!S71_A5CapexCode,$AD:$AD)","v":0},null,null,null,null,null,null,null,null,null,null,null,null,null,null,null,45,"CE"]
[{"$f":"B5B!A47","v":"4.6 - Literacy Programmes"},null,{"$f":"SUMIFS(Sheet1!S71_OriginalBudget,Sheet1!S71_SubMunicipalVoteNo,$AC:$AC,Sheet1!S71_A5CapexCode,$AD:$AD)","v":0},{"$f":"SUMIFS(Sheet1!S71_PreviousBudget,Sheet1!S71_SubMunicipalVoteNo,$AC:$AC,Sheet1!S71_A5CapexCode,$AD:$AD)","v":0},null,null,null,null,{"$f":"SUMIFS(Sheet1!S71_CurrentAdjustments,Sheet1!S71_SubMunicipalVoteNo,$AC:$AC,Sheet1!S71_A5CapexCode,$AD:$AD)","v":0},0,0,{"$f":"SUMIFS(Sheet1!S71_OY1AdjustedBudget,Sheet1!S71_SubMunicipalVoteNo,$AC:$AC,Sheet1!S71_A5CapexCode,$AD:$AD)","v":0},{"$f":"SUMIFS(Sheet1!S71_OY2AdjustedBudget,Sheet1!S71_SubMunicipalVoteNo,$AC:$AC,Sheet1!S71_A5CapexCode,$AD:$AD)","v":0},null,null,null,null,null,null,null,null,null,null,null,null,null,null,null,46,"CE"]
[{"$f":"B5B!A48","v":"4.7 - Disaster Management"},null,{"$f":"SUMIFS(Sheet1!S71_OriginalBudget,Sheet1!S71_SubMunicipalVoteNo,$AC:$AC,Sheet1!S71_A5CapexCode,$AD:$AD)","v":13040},{"$f":"SUMIFS(Sheet1!S71_PreviousBudget,Sheet1!S71_SubMunicipalVoteNo,$AC:$AC,Sheet1!S71_A5CapexCode,$AD:$AD)","v":0},null,null,null,null,{"$f":"SUMIFS(Sheet1!S71_CurrentAdjustments,Sheet1!S71_SubMunicipalVoteNo,$AC:$AC,Sheet1!S71_A5CapexCode,$AD:$AD)","v":0},0,13040,{"$f":"SUMIFS(Sheet1!S71_OY1AdjustedBudget,Sheet1!S71_SubMunicipalVoteNo,$AC:$AC,Sheet1!S71_A5CapexCode,$AD:$AD)","v":0},{"$f":"SUMIFS(Sheet1!S71_OY2AdjustedBudget,Sheet1!S71_SubMunicipalVoteNo,$AC:$AC,Sheet1!S71_A5CapexCode,$AD:$AD)","v":0},null,null,null,null,null,null,null,null,null,null,null,null,null,null,null,47,"CE"]
[{"$f":"B5B!A49","v":"4.8 - Animal Care and Diseases"},null,{"$f":"SUMIFS(Sheet1!S71_OriginalBudget,Sheet1!S71_SubMunicipalVoteNo,$AC:$AC,Sheet1!S71_A5CapexCode,$AD:$AD)","v":0},{"$f":"SUMIFS(Sheet1!S71_PreviousBudget,Sheet1!S71_SubMunicipalVoteNo,$AC:$AC,Sheet1!S71_A5CapexCode,$AD:$AD)","v":0},null,null,null,null,{"$f":"SUMIFS(Sheet1!S71_CurrentAdjustments,Sheet1!S71_SubMunicipalVoteNo,$AC:$AC,Sheet1!S71_A5CapexCode,$AD:$AD)","v":0},0,0,{"$f":"SUMIFS(Sheet1!S71_OY1AdjustedBudget,Sheet1!S71_SubMunicipalVoteNo,$AC:$AC,Sheet1!S71_A5CapexCode,$AD:$AD)","v":0},{"$f":"SUMIFS(Sheet1!S71_OY2AdjustedBudget,Sheet1!S71_SubMunicipalVoteNo,$AC:$AC,Sheet1!S71_A5CapexCode,$AD:$AD)","v":0},null,null,null,null,null,null,null,null,null,null,null,null,null,null,null,48,"CE"]
[{"$f":"B5B!A50","v":"4.9 - Child Care Facilities"},null,{"$f":"SUMIFS(Sheet1!S71_OriginalBudget,Sheet1!S71_SubMunicipalVoteNo,$AC:$AC,Sheet1!S71_A5CapexCode,$AD:$AD)","v":0},{"$f":"SUMIFS(Sheet1!S71_PreviousBudget,Sheet1!S71_SubMunicipalVoteNo,$AC:$AC,Sheet1!S71_A5CapexCode,$AD:$AD)","v":0},null,null,null,null,{"$f":"SUMIFS(Sheet1!S71_CurrentAdjustments,Sheet1!S71_SubMunicipalVoteNo,$AC:$AC,Sheet1!S71_A5CapexCode,$AD:$AD)","v":0},0,0,{"$f":"SUMIFS(Sheet1!S71_OY1AdjustedBudget,Sheet1!S71_SubMunicipalVoteNo,$AC:$AC,Sheet1!S71_A5CapexCode,$AD:$AD)","v":0},{"$f":"SUMIFS(Sheet1!S71_OY2AdjustedBudget,Sheet1!S71_SubMunicipalVoteNo,$AC:$AC,Sheet1!S71_A5CapexCode,$AD:$AD)","v":0},null,null,null,null,null,null,null,null,null,null,null,null,null,null,null,49,"CE"]
[{"$f":"B5B!A51","v":"4.10 - Fire Fighting and Protection"},null,{"$f":"SUMIFS(Sheet1!S71_OriginalBudget,Sheet1!S71_SubMunicipalVoteNo,$AC:$AC,Sheet1!S71_A5CapexCode,$AD:$AD)","v":0},{"$f":"SUMIFS(Sheet1!S71_PreviousBudget,Sheet1!S71_SubMunicipalVoteNo,$AC:$AC,Sheet1!S71_A5CapexCode,$AD:$AD)","v":0},null,null,null,null,{"$f":"SUMIFS(Sheet1!S71_CurrentAdjustments,Sheet1!S71_SubMunicipalVoteNo,$AC:$AC,Sheet1!S71_A5CapexCode,$AD:$AD)","v":0},0,0,{"$f":"SUMIFS(Sheet1!S71_OY1AdjustedBudget,Sheet1!S71_SubMunicipalVoteNo,$AC:$AC,Sheet1!S71_A5CapexCode,$AD:$AD)","v":0},{"$f":"SUMIFS(Sheet1!S71_OY2AdjustedBudget,Sheet1!S71_SubMunicipalVoteNo,$AC:$AC,Sheet1!S71_A5CapexCode,$AD:$AD)","v":0},null,null,null,null,null,null,null,null,null,null,null,null,null,null,null,410,"CE"]
[{"$f":"B5B!A52","v":"Vote 5 - Sport and Recreation"},null,{"$f":"SUM(C222:C231)","v":10126608},13425726,0,0,0,0,0,0,13425726,{"$f":"SUM(L222:L231)","v":0},{"$f":"SUM(M222:M231)","v":0}]
[{"$f":"B5B!A53","v":"5.1 - Community Parks (including Nurseries)"},null,{"$f":"SUMIFS(Sheet1!S71_OriginalBudget,Sheet1!S71_SubMunicipalVoteNo,$AC:$AC,Sheet1!S71_A5CapexCode,$AD:$AD)","v":826090},{"$f":"SUMIFS(Sheet1!S71_PreviousBudget,Sheet1!S71_SubMunicipalVoteNo,$AC:$AC,Sheet1!S71_A5CapexCode,$AD:$AD)","v":532446},null,null,null,null,{"$f":"SUMIFS(Sheet1!S71_CurrentAdjustments,Sheet1!S71_SubMunicipalVoteNo,$AC:$AC,Sheet1!S71_A5CapexCode,$AD:$AD)","v":0},0,532446,{"$f":"SUMIFS(Sheet1!S71_OY1AdjustedBudget,Sheet1!S71_SubMunicipalVoteNo,$AC:$AC,Sheet1!S71_A5CapexCode,$AD:$AD)","v":0},{"$f":"SUMIFS(Sheet1!S71_OY2AdjustedBudget,Sheet1!S71_SubMunicipalVoteNo,$AC:$AC,Sheet1!S71_A5CapexCode,$AD:$AD)","v":0},null,null,null,null,null,null,null,null,null,null,null,null,null,null,null,51,"CE"]
[{"$f":"B5B!A54","v":"5.2 - [Name of sub-vote]"},null,{"$f":"SUMIFS(Sheet1!S71_OriginalBudget,Sheet1!S71_SubMunicipalVoteNo,$AC:$AC,Sheet1!S71_A5CapexCode,$AD:$AD)","v":0},{"$f":"SUMIFS(Sheet1!S71_PreviousBudget,Sheet1!S71_SubMunicipalVoteNo,$AC:$AC,Sheet1!S71_A5CapexCode,$AD:$AD)","v":0},null,null,null,null,{"$f":"SUMIFS(Sheet1!S71_CurrentAdjustments,Sheet1!S71_SubMunicipalVoteNo,$AC:$AC,Sheet1!S71_A5CapexCode,$AD:$AD)","v":0},0,0,{"$f":"SUMIFS(Sheet1!S71_OY1AdjustedBudget,Sheet1!S71_SubMunicipalVoteNo,$AC:$AC,Sheet1!S71_A5CapexCode,$AD:$AD)","v":0},{"$f":"SUMIFS(Sheet1!S71_OY2AdjustedBudget,Sheet1!S71_SubMunicipalVoteNo,$AC:$AC,Sheet1!S71_A5CapexCode,$AD:$AD)","v":0},null,null,null,null,null,null,null,null,null,null,null,null,null,null,null,52,"CE"]
[{"$f":"B5B!A55","v":"5.3 - Recreational Facilities"},null,{"$f":"SUMIFS(Sheet1!S71_OriginalBudget,Sheet1!S71_SubMunicipalVoteNo,$AC:$AC,Sheet1!S71_A5CapexCode,$AD:$AD)","v":0},{"$f":"SUMIFS(Sheet1!S71_PreviousBudget,Sheet1!S71_SubMunicipalVoteNo,$AC:$AC,Sheet1!S71_A5CapexCode,$AD:$AD)","v":0},null,null,null,null,{"$f":"SUMIFS(Sheet1!S71_CurrentAdjustments,Sheet1!S71_SubMunicipalVoteNo,$AC:$AC,Sheet1!S71_A5CapexCode,$AD:$AD)","v":0},0,0,{"$f":"SUMIFS(Sheet1!S71_OY1AdjustedBudget,Sheet1!S71_SubMunicipalVoteNo,$AC:$AC,Sheet1!S71_A5CapexCode,$AD:$AD)","v":0},{"$f":"SUMIFS(Sheet1!S71_OY2AdjustedBudget,Sheet1!S71_SubMunicipalVoteNo,$AC:$AC,Sheet1!S71_A5CapexCode,$AD:$AD)","v":0},null,null,null,null,null,null,null,null,null,null,null,null,null,null,null,53,"CE"]
[{"$f":"B5B!A56","v":"5.4 - Sports Grounds and Stadiums"},null,{"$f":"SUMIFS(Sheet1!S71_OriginalBudget,Sheet1!S71_SubMunicipalVoteNo,$AC:$AC,Sheet1!S71_A5CapexCode,$AD:$AD)","v":8926608},{"$f":"SUMIFS(Sheet1!S71_PreviousBudget,Sheet1!S71_SubMunicipalVoteNo,$AC:$AC,Sheet1!S71_A5CapexCode,$AD:$AD)","v":12641160},null,null,null,null,{"$f":"SUMIFS(Sheet1!S71_CurrentAdjustments,Sheet1!S71_SubMunicipalVoteNo,$AC:$AC,Sheet1!S71_A5CapexCode,$AD:$AD)","v":0},0,12641160,{"$f":"SUMIFS(Sheet1!S71_OY1AdjustedBudget,Sheet1!S71_SubMunicipalVoteNo,$AC:$AC,Sheet1!S71_A5CapexCode,$AD:$AD)","v":0},{"$f":"SUMIFS(Sheet1!S71_OY2AdjustedBudget,Sheet1!S71_SubMunicipalVoteNo,$AC:$AC,Sheet1!S71_A5CapexCode,$AD:$AD)","v":0},null,null,null,null,null,null,null,null,null,null,null,null,null,null,null,54,"CE"]
[{"$f":"B5B!A57","v":"5.5 - Beaches and Jetties"},null,{"$f":"SUMIFS(Sheet1!S71_OriginalBudget,Sheet1!S71_SubMunicipalVoteNo,$AC:$AC,Sheet1!S71_A5CapexCode,$AD:$AD)","v":373910},{"$f":"SUMIFS(Sheet1!S71_PreviousBudget,Sheet1!S71_SubMunicipalVoteNo,$AC:$AC,Sheet1!S71_A5CapexCode,$AD:$AD)","v":252120},null,null,null,null,{"$f":"SUMIFS(Sheet1!S71_CurrentAdjustments,Sheet1!S71_SubMunicipalVoteNo,$AC:$AC,Sheet1!S71_A5CapexCode,$AD:$AD)","v":0},0,252120,{"$f":"SUMIFS(Sheet1!S71_OY1AdjustedBudget,Sheet1!S71_SubMunicipalVoteNo,$AC:$AC,Sheet1!S71_A5CapexCode,$AD:$AD)","v":0},{"$f":"SUMIFS(Sheet1!S71_OY2AdjustedBudget,Sheet1!S71_SubMunicipalVoteNo,$AC:$AC,Sheet1!S71_A5CapexCode,$AD:$AD)","v":0},null,null,null,null,null,null,null,null,null,null,null,null,null,null,null,55,"CE"]
[{"$f":"B5B!A58","v":"5.6 - [Name of sub-vote]"},null,{"$f":"SUMIFS(Sheet1!S71_OriginalBudget,Sheet1!S71_SubMunicipalVoteNo,$AC:$AC,Sheet1!S71_A5CapexCode,$AD:$AD)","v":0},{"$f":"SUMIFS(Sheet1!S71_PreviousBudget,Sheet1!S71_SubMunicipalVoteNo,$AC:$AC,Sheet1!S71_A5CapexCode,$AD:$AD)","v":0},null,null,null,null,{"$f":"SUMIFS(Sheet1!S71_CurrentAdjustments,Sheet1!S71_SubMunicipalVoteNo,$AC:$AC,Sheet1!S71_A5CapexCode,$AD:$AD)","v":0},0,0,{"$f":"SUMIFS(Sheet1!S71_OY1AdjustedBudget,Sheet1!S71_SubMunicipalVoteNo,$AC:$AC,Sheet1!S71_A5CapexCode,$AD:$AD)","v":0},{"$f":"SUMIFS(Sheet1!S71_OY2AdjustedBudget,Sheet1!S71_SubMunicipalVoteNo,$AC:$AC,Sheet1!S71_A5CapexCode,$AD:$AD)","v":0},null,null,null,null,null,null,null,null,null,null,null,null,null,null,null,56,"CE"]
[{"$f":"B5B!A59","v":"5.7 - [Name of sub-vote]"},null,{"$f":"SUMIFS(Sheet1!S71_OriginalBudget,Sheet1!S71_SubMunicipalVoteNo,$AC:$AC,Sheet1!S71_A5CapexCode,$AD:$AD)","v":0},{"$f":"SUMIFS(Sheet1!S71_PreviousBudget,Sheet1!S71_SubMunicipalVoteNo,$AC:$AC,Sheet1!S71_A5CapexCode,$AD:$AD)","v":0},null,null,null,null,{"$f":"SUMIFS(Sheet1!S71_CurrentAdjustments,Sheet1!S71_SubMunicipalVoteNo,$AC:$AC,Sheet1!S71_A5CapexCode,$AD:$AD)","v":0},0,0,{"$f":"SUMIFS(Sheet1!S71_OY1AdjustedBudget,Sheet1!S71_SubMunicipalVoteNo,$AC:$AC,Sheet1!S71_A5CapexCode,$AD:$AD)","v":0},{"$f":"SUMIFS(Sheet1!S71_OY2AdjustedBudget,Sheet1!S71_SubMunicipalVoteNo,$AC:$AC,Sheet1!S71_A5CapexCode,$AD:$AD)","v":0},null,null,null,null,null,null,null,null,null,null,null,null,null,null,null,57,"CE"]
[{"$f":"B5B!A60","v":"5.8 - [Name of sub-vote]"},null,{"$f":"SUMIFS(Sheet1!S71_OriginalBudget,Sheet1!S71_SubMunicipalVoteNo,$AC:$AC,Sheet1!S71_A5CapexCode,$AD:$AD)","v":0},{"$f":"SUMIFS(Sheet1!S71_PreviousBudget,Sheet1!S71_SubMunicipalVoteNo,$AC:$AC,Sheet1!S71_A5CapexCode,$AD:$AD)","v":0},null,null,null,null,{"$f":"SUMIFS(Sheet1!S71_CurrentAdjustments,Sheet1!S71_SubMunicipalVoteNo,$AC:$AC,Sheet1!S71_A5CapexCode,$AD:$AD)","v":0},0,0,{"$f":"SUMIFS(Sheet1!S71_OY1AdjustedBudget,Sheet1!S71_SubMunicipalVoteNo,$AC:$AC,Sheet1!S71_A5CapexCode,$AD:$AD)","v":0},{"$f":"SUMIFS(Sheet1!S71_OY2AdjustedBudget,Sheet1!S71_SubMunicipalVoteNo,$AC:$AC,Sheet1!S71_A5CapexCode,$AD:$AD)","v":0},null,null,null,null,null,null,null,null,null,null,null,null,null,null,null,58,"CE"]
[{"$f":"B5B!A61","v":"5.9 - [Name of sub-vote]"},null,{"$f":"SUMIFS(Sheet1!S71_OriginalBudget,Sheet1!S71_SubMunicipalVoteNo,$AC:$AC,Sheet1!S71_A5CapexCode,$AD:$AD)","v":0},{"$f":"SUMIFS(Sheet1!S71_PreviousBudget,Sheet1!S71_SubMunicipalVoteNo,$AC:$AC,Sheet1!S71_A5CapexCode,$AD:$AD)","v":0},null,null,null,null,{"$f":"SUMIFS(Sheet1!S71_CurrentAdjustments,Sheet1!S71_SubMunicipalVoteNo,$AC:$AC,Sheet1!S71_A5CapexCode,$AD:$AD)","v":0},0,0,{"$f":"SUMIFS(Sheet1!S71_OY1AdjustedBudget,Sheet1!S71_SubMunicipalVoteNo,$AC:$AC,Sheet1!S71_A5CapexCode,$AD:$AD)","v":0},{"$f":"SUMIFS(Sheet1!S71_OY2AdjustedBudget,Sheet1!S71_SubMunicipalVoteNo,$AC:$AC,Sheet1!S71_A5CapexCode,$AD:$AD)","v":0},null,null,null,null,null,null,null,null,null,null,null,null,null,null,null,59,"CE"]
[{"$f":"B5B!A62","v":"5.10 - [Name of sub-vote]"},null,{"$f":"SUMIFS(Sheet1!S71_OriginalBudget,Sheet1!S71_SubMunicipalVoteNo,$AC:$AC,Sheet1!S71_A5CapexCode,$AD:$AD)","v":0},{"$f":"SUMIFS(Sheet1!S71_PreviousBudget,Sheet1!S71_SubMunicipalVoteNo,$AC:$AC,Sheet1!S71_A5CapexCode,$AD:$AD)","v":0},null,null,null,null,{"$f":"SUMIFS(Sheet1!S71_CurrentAdjustments,Sheet1!S71_SubMunicipalVoteNo,$AC:$AC,Sheet1!S71_A5CapexCode,$AD:$AD)","v":0},0,0,{"$f":"SUMIFS(Sheet1!S71_OY1AdjustedBudget,Sheet1!S71_SubMunicipalVoteNo,$AC:$AC,Sheet1!S71_A5CapexCode,$AD:$AD)","v":0},{"$f":"SUMIFS(Sheet1!S71_OY2AdjustedBudget,Sheet1!S71_SubMunicipalVoteNo,$AC:$AC,Sheet1!S71_A5CapexCode,$AD:$AD)","v":0},null,null,null,null,null,null,null,null,null,null,null,null,null,null,null,510,"CE"]
[{"$f":"B5B!A63","v":"Vote 6 - Public safety"},null,{"$f":"SUM(C233:C242)","v":939131},852174,0,0,0,0,0,0,852174,{"$f":"SUM(L233:L242)","v":0},{"$f":"SUM(M233:M242)","v":0}]
[{"$f":"B5B!A64","v":"6.1 - Police Forces, Traffic and Street Parking Control"},null,{"$f":"SUMIFS(Sheet1!S71_OriginalBudget,Sheet1!S71_SubMunicipalVoteNo,$AC:$AC,Sheet1!S71_A5CapexCode,$AD:$AD)","v":504348},{"$f":"SUMIFS(Sheet1!S71_PreviousBudget,Sheet1!S71_SubMunicipalVoteNo,$AC:$AC,Sheet1!S71_A5CapexCode,$AD:$AD)","v":417391},null,null,null,null,{"$f":"SUMIFS(Sheet1!S71_CurrentAdjustments,Sheet1!S71_SubMunicipalVoteNo,$AC:$AC,Sheet1!S71_A5CapexCode,$AD:$AD)","v":0},0,417391,{"$f":"SUMIFS(Sheet1!S71_OY1AdjustedBudget,Sheet1!S71_SubMunicipalVoteNo,$AC:$AC,Sheet1!S71_A5CapexCode,$AD:$AD)","v":0},{"$f":"SUMIFS(Sheet1!S71_OY2AdjustedBudget,Sheet1!S71_SubMunicipalVoteNo,$AC:$AC,Sheet1!S71_A5CapexCode,$AD:$AD)","v":0},null,null,null,null,null,null,null,null,null,null,null,null,null,null,null,61,"CE"]
[{"$f":"B5B!A65","v":"6.2 - [Name of sub-vote]"},null,{"$f":"SUMIFS(Sheet1!S71_OriginalBudget,Sheet1!S71_SubMunicipalVoteNo,$AC:$AC,Sheet1!S71_A5CapexCode,$AD:$AD)","v":0},{"$f":"SUMIFS(Sheet1!S71_PreviousBudget,Sheet1!S71_SubMunicipalVoteNo,$AC:$AC,Sheet1!S71_A5CapexCode,$AD:$AD)","v":0},null,null,null,null,{"$f":"SUMIFS(Sheet1!S71_CurrentAdjustments,Sheet1!S71_SubMunicipalVoteNo,$AC:$AC,Sheet1!S71_A5CapexCode,$AD:$AD)","v":0},0,0,{"$f":"SUMIFS(Sheet1!S71_OY1AdjustedBudget,Sheet1!S71_SubMunicipalVoteNo,$AC:$AC,Sheet1!S71_A5CapexCode,$AD:$AD)","v":0},{"$f":"SUMIFS(Sheet1!S71_OY2AdjustedBudget,Sheet1!S71_SubMunicipalVoteNo,$AC:$AC,Sheet1!S71_A5CapexCode,$AD:$AD)","v":0},null,null,null,null,null,null,null,null,null,null,null,null,null,null,null,62,"CE"]
[{"$f":"B5B!A66","v":"6.3 - Civil Defence"},null,{"$f":"SUMIFS(Sheet1!S71_OriginalBudget,Sheet1!S71_SubMunicipalVoteNo,$AC:$AC,Sheet1!S71_A5CapexCode,$AD:$AD)","v":434783},{"$f":"SUMIFS(Sheet1!S71_PreviousBudget,Sheet1!S71_SubMunicipalVoteNo,$AC:$AC,Sheet1!S71_A5CapexCode,$AD:$AD)","v":434783},null,null,null,null,{"$f":"SUMIFS(Sheet1!S71_CurrentAdjustments,Sheet1!S71_SubMunicipalVoteNo,$AC:$AC,Sheet1!S71_A5CapexCode,$AD:$AD)","v":0},0,434783,{"$f":"SUMIFS(Sheet1!S71_OY1AdjustedBudget,Sheet1!S71_SubMunicipalVoteNo,$AC:$AC,Sheet1!S71_A5CapexCode,$AD:$AD)","v":0},{"$f":"SUMIFS(Sheet1!S71_OY2AdjustedBudget,Sheet1!S71_SubMunicipalVoteNo,$AC:$AC,Sheet1!S71_A5CapexCode,$AD:$AD)","v":0},null,null,null,null,null,null,null,null,null,null,null,null,null,null,null,63,"CE"]
[{"$f":"B5B!A67","v":"6.4 - [Name of sub-vote]"},null,{"$f":"SUMIFS(Sheet1!S71_OriginalBudget,Sheet1!S71_SubMunicipalVoteNo,$AC:$AC,Sheet1!S71_A5CapexCode,$AD:$AD)","v":0},{"$f":"SUMIFS(Sheet1!S71_PreviousBudget,Sheet1!S71_SubMunicipalVoteNo,$AC:$AC,Sheet1!S71_A5CapexCode,$AD:$AD)","v":0},null,null,null,null,{"$f":"SUMIFS(Sheet1!S71_CurrentAdjustments,Sheet1!S71_SubMunicipalVoteNo,$AC:$AC,Sheet1!S71_A5CapexCode,$AD:$AD)","v":0},0,0,{"$f":"SUMIFS(Sheet1!S71_OY1AdjustedBudget,Sheet1!S71_SubMunicipalVoteNo,$AC:$AC,Sheet1!S71_A5CapexCode,$AD:$AD)","v":0},{"$f":"SUMIFS(Sheet1!S71_OY2AdjustedBudget,Sheet1!S71_SubMunicipalVoteNo,$AC:$AC,Sheet1!S71_A5CapexCode,$AD:$AD)","v":0},null,null,null,null,null,null,null,null,null,null,null,null,null,null,null,64,"CE"]
[{"$f":"B5B!A68","v":"6.5 - [Name of sub-vote]"},null,{"$f":"SUMIFS(Sheet1!S71_OriginalBudget,Sheet1!S71_SubMunicipalVoteNo,$AC:$AC,Sheet1!S71_A5CapexCode,$AD:$AD)","v":0},{"$f":"SUMIFS(Sheet1!S71_PreviousBudget,Sheet1!S71_SubMunicipalVoteNo,$AC:$AC,Sheet1!S71_A5CapexCode,$AD:$AD)","v":0},null,null,null,null,{"$f":"SUMIFS(Sheet1!S71_CurrentAdjustments,Sheet1!S71_SubMunicipalVoteNo,$AC:$AC,Sheet1!S71_A5CapexCode,$AD:$AD)","v":0},0,0,{"$f":"SUMIFS(Sheet1!S71_OY1AdjustedBudget,Sheet1!S71_SubMunicipalVoteNo,$AC:$AC,Sheet1!S71_A5CapexCode,$AD:$AD)","v":0},{"$f":"SUMIFS(Sheet1!S71_OY2AdjustedBudget,Sheet1!S71_SubMunicipalVoteNo,$AC:$AC,Sheet1!S71_A5CapexCode,$AD:$AD)","v":0},null,null,null,null,null,null,null,null,null,null,null,null,null,null,null,65,"CE"]
[{"$f":"B5B!A69","v":"6.6 - [Name of sub-vote]"},null,{"$f":"SUMIFS(Sheet1!S71_OriginalBudget,Sheet1!S71_SubMunicipalVoteNo,$AC:$AC,Sheet1!S71_A5CapexCode,$AD:$AD)","v":0},{"$f":"SUMIFS(Sheet1!S71_PreviousBudget,Sheet1!S71_SubMunicipalVoteNo,$AC:$AC,Sheet1!S71_A5CapexCode,$AD:$AD)","v":0},null,null,null,null,{"$f":"SUMIFS(Sheet1!S71_CurrentAdjustments,Sheet1!S71_SubMunicipalVoteNo,$AC:$AC,Sheet1!S71_A5CapexCode,$AD:$AD)","v":0},0,0,{"$f":"SUMIFS(Sheet1!S71_OY1AdjustedBudget,Sheet1!S71_SubMunicipalVoteNo,$AC:$AC,Sheet1!S71_A5CapexCode,$AD:$AD)","v":0},{"$f":"SUMIFS(Sheet1!S71_OY2AdjustedBudget,Sheet1!S71_SubMunicipalVoteNo,$AC:$AC,Sheet1!S71_A5CapexCode,$AD:$AD)","v":0},null,null,null,null,null,null,null,null,null,null,null,null,null,null,null,66,"CE"]
[{"$f":"B5B!A70","v":"6.7 - [Name of sub-vote]"},null,{"$f":"SUMIFS(Sheet1!S71_OriginalBudget,Sheet1!S71_SubMunicipalVoteNo,$AC:$AC,Sheet1!S71_A5CapexCode,$AD:$AD)","v":0},{"$f":"SUMIFS(Sheet1!S71_PreviousBudget,Sheet1!S71_SubMunicipalVoteNo,$AC:$AC,Sheet1!S71_A5CapexCode,$AD:$AD)","v":0},null,null,null,null,{"$f":"SUMIFS(Sheet1!S71_CurrentAdjustments,Sheet1!S71_SubMunicipalVoteNo,$AC:$AC,Sheet1!S71_A5CapexCode,$AD:$AD)","v":0},0,0,{"$f":"SUMIFS(Sheet1!S71_OY1AdjustedBudget,Sheet1!S71_SubMunicipalVoteNo,$AC:$AC,Sheet1!S71_A5CapexCode,$AD:$AD)","v":0},{"$f":"SUMIFS(Sheet1!S71_OY2AdjustedBudget,Sheet1!S71_SubMunicipalVoteNo,$AC:$AC,Sheet1!S71_A5CapexCode,$AD:$AD)","v":0},null,null,null,null,null,null,null,null,null,null,null,null,null,null,null,67,"CE"]
[{"$f":"B5B!A71","v":"6.8 - [Name of sub-vote]"},null,{"$f":"SUMIFS(Sheet1!S71_OriginalBudget,Sheet1!S71_SubMunicipalVoteNo,$AC:$AC,Sheet1!S71_A5CapexCode,$AD:$AD)","v":0},{"$f":"SUMIFS(Sheet1!S71_PreviousBudget,Sheet1!S71_SubMunicipalVoteNo,$AC:$AC,Sheet1!S71_A5CapexCode,$AD:$AD)","v":0},null,null,null,null,{"$f":"SUMIFS(Sheet1!S71_CurrentAdjustments,Sheet1!S71_SubMunicipalVoteNo,$AC:$AC,Sheet1!S71_A5CapexCode,$AD:$AD)","v":0},0,0,{"$f":"SUMIFS(Sheet1!S71_OY1AdjustedBudget,Sheet1!S71_SubMunicipalVoteNo,$AC:$AC,Sheet1!S71_A5CapexCode,$AD:$AD)","v":0},{"$f":"SUMIFS(Sheet1!S71_OY2AdjustedBudget,Sheet1!S71_SubMunicipalVoteNo,$AC:$AC,Sheet1!S71_A5CapexCode,$AD:$AD)","v":0},null,null,null,null,null,null,null,null,null,null,null,null,null,null,null,68,"CE"]
[{"$f":"B5B!A72","v":"6.9 - [Name of sub-vote]"},null,{"$f":"SUMIFS(Sheet1!S71_OriginalBudget,Sheet1!S71_SubMunicipalVoteNo,$AC:$AC,Sheet1!S71_A5CapexCode,$AD:$AD)","v":0},{"$f":"SUMIFS(Sheet1!S71_PreviousBudget,Sheet1!S71_SubMunicipalVoteNo,$AC:$AC,Sheet1!S71_A5CapexCode,$AD:$AD)","v":0},null,null,null,null,{"$f":"SUMIFS(Sheet1!S71_CurrentAdjustments,Sheet1!S71_SubMunicipalVoteNo,$AC:$AC,Sheet1!S71_A5CapexCode,$AD:$AD)","v":0},{"$f":"SUM(E241:I241)","v":0},{"$f":"IF(D241=0,C241+J241,D241+J241)","v":0},{"$f":"SUMIFS(Sheet1!S71_OY1AdjustedBudget,Sheet1!S71_SubMunicipalVoteNo,$AC:$AC,Sheet1!S71_A5CapexCode,$AD:$AD)","v":0},{"$f":"SUMIFS(Sheet1!S71_OY2AdjustedBudget,Sheet1!S71_SubMunicipalVoteNo,$AC:$AC,Sheet1!S71_A5CapexCode,$AD:$AD)","v":0},null,null,null,null,null,null,null,null,null,null,null,null,null,null,null,69,"CE"]
[{"$f":"B5B!A73","v":"6.10 - [Name of sub-vote]"},null,{"$f":"SUMIFS(Sheet1!S71_OriginalBudget,Sheet1!S71_SubMunicipalVoteNo,$AC:$AC,Sheet1!S71_A5CapexCode,$AD:$AD)","v":0},{"$f":"SUMIFS(Sheet1!S71_PreviousBudget,Sheet1!S71_SubMunicipalVoteNo,$AC:$AC,Sheet1!S71_A5CapexCode,$AD:$AD)","v":0},null,null,null,null,{"$f":"SUMIFS(Sheet1!S71_CurrentAdjustments,Sheet1!S71_SubMunicipalVoteNo,$AC:$AC,Sheet1!S71_A5CapexCode,$AD:$AD)","v":0},0,0,{"$f":"SUMIFS(Sheet1!S71_OY1AdjustedBudget,Sheet1!S71_SubMunicipalVoteNo,$AC:$AC,Sheet1!S71_A5CapexCode,$AD:$AD)","v":0},{"$f":"SUMIFS(Sheet1!S71_OY2AdjustedBudget,Sheet1!S71_SubMunicipalVoteNo,$AC:$AC,Sheet1!S71_A5CapexCode,$AD:$AD)","v":0},null,null,null,null,null,null,null,null,null,null,null,null,null,null,null,610,"CE"]
[{"$f":"B5B!A74","v":"Vote 7 - Housing"},null,{"$f":"SUM(C244:C253)","v":0},0,0,0,0,0,0,0,0,{"$f":"SUM(L244:L253)","v":0},{"$f":"SUM(M244:M253)","v":0}]
[{"$f":"B5B!A75","v":"7.1 - Housing"},null,{"$f":"SUMIFS(Sheet1!S71_OriginalBudget,Sheet1!S71_SubMunicipalVoteNo,$AC:$AC,Sheet1!S71_A5CapexCode,$AD:$AD)","v":0},{"$f":"SUMIFS(Sheet1!S71_PreviousBudget,Sheet1!S71_SubMunicipalVoteNo,$AC:$AC,Sheet1!S71_A5CapexCode,$AD:$AD)","v":0},null,null,null,null,{"$f":"SUMIFS(Sheet1!S71_CurrentAdjustments,Sheet1!S71_SubMunicipalVoteNo,$AC:$AC,Sheet1!S71_A5CapexCode,$AD:$AD)","v":0},0,0,{"$f":"SUMIFS(Sheet1!S71_OY1AdjustedBudget,Sheet1!S71_SubMunicipalVoteNo,$AC:$AC,Sheet1!S71_A5CapexCode,$AD:$AD)","v":0},{"$f":"SUMIFS(Sheet1!S71_OY2AdjustedBudget,Sheet1!S71_SubMunicipalVoteNo,$AC:$AC,Sheet1!S71_A5CapexCode,$AD:$AD)","v":0},null,null,null,null,null,null,null,null,null,null,null,null,null,null,null,71,"CE"]
[{"$f":"B5B!A76","v":"7.2 - Informal Settlements"},null,{"$f":"SUMIFS(Sheet1!S71_OriginalBudget,Sheet1!S71_SubMunicipalVoteNo,$AC:$AC,Sheet1!S71_A5CapexCode,$AD:$AD)","v":0},{"$f":"SUMIFS(Sheet1!S71_PreviousBudget,Sheet1!S71_SubMunicipalVoteNo,$AC:$AC,Sheet1!S71_A5CapexCode,$AD:$AD)","v":0},null,null,null,null,{"$f":"SUMIFS(Sheet1!S71_CurrentAdjustments,Sheet1!S71_SubMunicipalVoteNo,$AC:$AC,Sheet1!S71_A5CapexCode,$AD:$AD)","v":0},0,0,{"$f":"SUMIFS(Sheet1!S71_OY1AdjustedBudget,Sheet1!S71_SubMunicipalVoteNo,$AC:$AC,Sheet1!S71_A5CapexCode,$AD:$AD)","v":0},{"$f":"SUMIFS(Sheet1!S71_OY2AdjustedBudget,Sheet1!S71_SubMunicipalVoteNo,$AC:$AC,Sheet1!S71_A5CapexCode,$AD:$AD)","v":0},null,null,null,null,null,null,null,null,null,null,null,null,null,null,null,72,"CE"]
[{"$f":"B5B!A77","v":"7.3 - [Name of sub-vote]"},null,{"$f":"SUMIFS(Sheet1!S71_OriginalBudget,Sheet1!S71_SubMunicipalVoteNo,$AC:$AC,Sheet1!S71_A5CapexCode,$AD:$AD)","v":0},{"$f":"SUMIFS(Sheet1!S71_PreviousBudget,Sheet1!S71_SubMunicipalVoteNo,$AC:$AC,Sheet1!S71_A5CapexCode,$AD:$AD)","v":0},null,null,null,null,{"$f":"SUMIFS(Sheet1!S71_CurrentAdjustments,Sheet1!S71_SubMunicipalVoteNo,$AC:$AC,Sheet1!S71_A5CapexCode,$AD:$AD)","v":0},0,0,{"$f":"SUMIFS(Sheet1!S71_OY1AdjustedBudget,Sheet1!S71_SubMunicipalVoteNo,$AC:$AC,Sheet1!S71_A5CapexCode,$AD:$AD)","v":0},{"$f":"SUMIFS(Sheet1!S71_OY2AdjustedBudget,Sheet1!S71_SubMunicipalVoteNo,$AC:$AC,Sheet1!S71_A5CapexCode,$AD:$AD)","v":0},null,null,null,null,null,null,null,null,null,null,null,null,null,null,null,73,"CE"]
[{"$f":"B5B!A78","v":"7.4 - [Name of sub-vote]"},null,{"$f":"SUMIFS(Sheet1!S71_OriginalBudget,Sheet1!S71_SubMunicipalVoteNo,$AC:$AC,Sheet1!S71_A5CapexCode,$AD:$AD)","v":0},{"$f":"SUMIFS(Sheet1!S71_PreviousBudget,Sheet1!S71_SubMunicipalVoteNo,$AC:$AC,Sheet1!S71_A5CapexCode,$AD:$AD)","v":0},null,null,null,null,{"$f":"SUMIFS(Sheet1!S71_CurrentAdjustments,Sheet1!S71_SubMunicipalVoteNo,$AC:$AC,Sheet1!S71_A5CapexCode,$AD:$AD)","v":0},0,0,{"$f":"SUMIFS(Sheet1!S71_OY1AdjustedBudget,Sheet1!S71_SubMunicipalVoteNo,$AC:$AC,Sheet1!S71_A5CapexCode,$AD:$AD)","v":0},{"$f":"SUMIFS(Sheet1!S71_OY2AdjustedBudget,Sheet1!S71_SubMunicipalVoteNo,$AC:$AC,Sheet1!S71_A5CapexCode,$AD:$AD)","v":0},null,null,null,null,null,null,null,null,null,null,null,null,null,null,null,74,"CE"]
[{"$f":"B5B!A79","v":"7.5 - [Name of sub-vote]"},null,{"$f":"SUMIFS(Sheet1!S71_OriginalBudget,Sheet1!S71_SubMunicipalVoteNo,$AC:$AC,Sheet1!S71_A5CapexCode,$AD:$AD)","v":0},{"$f":"SUMIFS(Sheet1!S71_PreviousBudget,Sheet1!S71_SubMunicipalVoteNo,$AC:$AC,Sheet1!S71_A5CapexCode,$AD:$AD)","v":0},null,null,null,null,{"$f":"SUMIFS(Sheet1!S71_CurrentAdjustments,Sheet1!S71_SubMunicipalVoteNo,$AC:$AC,Sheet1!S71_A5CapexCode,$AD:$AD)","v":0},0,0,{"$f":"SUMIFS(Sheet1!S71_OY1AdjustedBudget,Sheet1!S71_SubMunicipalVoteNo,$AC:$AC,Sheet1!S71_A5CapexCode,$AD:$AD)","v":0},{"$f":"SUMIFS(Sheet1!S71_OY2AdjustedBudget,Sheet1!S71_SubMunicipalVoteNo,$AC:$AC,Sheet1!S71_A5CapexCode,$AD:$AD)","v":0},null,null,null,null,null,null,null,null,null,null,null,null,null,null,null,75,"CE"]
[{"$f":"B5B!A80","v":"7.6 - [Name of sub-vote]"},null,{"$f":"SUMIFS(Sheet1!S71_OriginalBudget,Sheet1!S71_SubMunicipalVoteNo,$AC:$AC,Sheet1!S71_A5CapexCode,$AD:$AD)","v":0},{"$f":"SUMIFS(Sheet1!S71_PreviousBudget,Sheet1!S71_SubMunicipalVoteNo,$AC:$AC,Sheet1!S71_A5CapexCode,$AD:$AD)","v":0},null,null,null,null,{"$f":"SUMIFS(Sheet1!S71_CurrentAdjustments,Sheet1!S71_SubMunicipalVoteNo,$AC:$AC,Sheet1!S71_A5CapexCode,$AD:$AD)","v":0},0,0,{"$f":"SUMIFS(Sheet1!S71_OY1AdjustedBudget,Sheet1!S71_SubMunicipalVoteNo,$AC:$AC,Sheet1!S71_A5CapexCode,$AD:$AD)","v":0},{"$f":"SUMIFS(Sheet1!S71_OY2AdjustedBudget,Sheet1!S71_SubMunicipalVoteNo,$AC:$AC,Sheet1!S71_A5CapexCode,$AD:$AD)","v":0},null,null,null,null,null,null,null,null,null,null,null,null,null,null,null,76,"CE"]
[{"$f":"B5B!A81","v":"7.7 - [Name of sub-vote]"},null,{"$f":"SUMIFS(Sheet1!S71_OriginalBudget,Sheet1!S71_SubMunicipalVoteNo,$AC:$AC,Sheet1!S71_A5CapexCode,$AD:$AD)","v":0},{"$f":"SUMIFS(Sheet1!S71_PreviousBudget,Sheet1!S71_SubMunicipalVoteNo,$AC:$AC,Sheet1!S71_A5CapexCode,$AD:$AD)","v":0},null,null,null,null,{"$f":"SUMIFS(Sheet1!S71_CurrentAdjustments,Sheet1!S71_SubMunicipalVoteNo,$AC:$AC,Sheet1!S71_A5CapexCode,$AD:$AD)","v":0},0,0,{"$f":"SUMIFS(Sheet1!S71_OY1AdjustedBudget,Sheet1!S71_SubMunicipalVoteNo,$AC:$AC,Sheet1!S71_A5CapexCode,$AD:$AD)","v":0},{"$f":"SUMIFS(Sheet1!S71_OY2AdjustedBudget,Sheet1!S71_SubMunicipalVoteNo,$AC:$AC,Sheet1!S71_A5CapexCode,$AD:$AD)","v":0},null,null,null,null,null,null,null,null,null,null,null,null,null,null,null,77,"CE"]
[{"$f":"B5B!A82","v":"7.8 - [Name of sub-vote]"},null,{"$f":"SUMIFS(Sheet1!S71_OriginalBudget,Sheet1!S71_SubMunicipalVoteNo,$AC:$AC,Sheet1!S71_A5CapexCode,$AD:$AD)","v":0},{"$f":"SUMIFS(Sheet1!S71_PreviousBudget,Sheet1!S71_SubMunicipalVoteNo,$AC:$AC,Sheet1!S71_A5CapexCode,$AD:$AD)","v":0},null,null,null,null,{"$f":"SUMIFS(Sheet1!S71_CurrentAdjustments,Sheet1!S71_SubMunicipalVoteNo,$AC:$AC,Sheet1!S71_A5CapexCode,$AD:$AD)","v":0},0,0,{"$f":"SUMIFS(Sheet1!S71_OY1AdjustedBudget,Sheet1!S71_SubMunicipalVoteNo,$AC:$AC,Sheet1!S71_A5CapexCode,$AD:$AD)","v":0},{"$f":"SUMIFS(Sheet1!S71_OY2AdjustedBudget,Sheet1!S71_SubMunicipalVoteNo,$AC:$AC,Sheet1!S71_A5CapexCode,$AD:$AD)","v":0},null,null,null,null,null,null,null,null,null,null,null,null,null,null,null,78,"CE"]
[{"$f":"B5B!A83","v":"7.9 - [Name of sub-vote]"},null,{"$f":"SUMIFS(Sheet1!S71_OriginalBudget,Sheet1!S71_SubMunicipalVoteNo,$AC:$AC,Sheet1!S71_A5CapexCode,$AD:$AD)","v":0},{"$f":"SUMIFS(Sheet1!S71_PreviousBudget,Sheet1!S71_SubMunicipalVoteNo,$AC:$AC,Sheet1!S71_A5CapexCode,$AD:$AD)","v":0},null,null,null,null,{"$f":"SUMIFS(Sheet1!S71_CurrentAdjustments,Sheet1!S71_SubMunicipalVoteNo,$AC:$AC,Sheet1!S71_A5CapexCode,$AD:$AD)","v":0},0,0,{"$f":"SUMIFS(Sheet1!S71_OY1AdjustedBudget,Sheet1!S71_SubMunicipalVoteNo,$AC:$AC,Sheet1!S71_A5CapexCode,$AD:$AD)","v":0},{"$f":"SUMIFS(Sheet1!S71_OY2AdjustedBudget,Sheet1!S71_SubMunicipalVoteNo,$AC:$AC,Sheet1!S71_A5CapexCode,$AD:$AD)","v":0},null,null,null,null,null,null,null,null,null,null,null,null,null,null,null,79,"CE"]
[{"$f":"B5B!A84","v":"7.10 - [Name of sub-vote]"},null,{"$f":"SUMIFS(Sheet1!S71_OriginalBudget,Sheet1!S71_SubMunicipalVoteNo,$AC:$AC,Sheet1!S71_A5CapexCode,$AD:$AD)","v":0},{"$f":"SUMIFS(Sheet1!S71_PreviousBudget,Sheet1!S71_SubMunicipalVoteNo,$AC:$AC,Sheet1!S71_A5CapexCode,$AD:$AD)","v":0},null,null,null,null,{"$f":"SUMIFS(Sheet1!S71_CurrentAdjustments,Sheet1!S71_SubMunicipalVoteNo,$AC:$AC,Sheet1!S71_A5CapexCode,$AD:$AD)","v":0},0,0,{"$f":"SUMIFS(Sheet1!S71_OY1AdjustedBudget,Sheet1!S71_SubMunicipalVoteNo,$AC:$AC,Sheet1!S71_A5CapexCode,$AD:$AD)","v":0},{"$f":"SUMIFS(Sheet1!S71_OY2AdjustedBudget,Sheet1!S71_SubMunicipalVoteNo,$AC:$AC,Sheet1!S71_A5CapexCode,$AD:$AD)","v":0},null,null,null,null,null,null,null,null,null,null,null,null,null,null,null,710,"CE"]
[{"$f":"B5B!A85","v":"Vote 8 - Planning and Development"},null,{"$f":"SUM(C255:C264)","v":12191299},11214822,0,0,0,0,0,0,11214822,{"$f":"SUM(L255:L264)","v":10869566},{"$f":"SUM(M255:M264)","v":0}]
[{"$f":"B5B!A86","v":"8.1 - Corporate Wide Strategic Planning (IDPs, LEDs)"},null,{"$f":"SUMIFS(Sheet1!S71_OriginalBudget,Sheet1!S71_SubMunicipalVoteNo,$AC:$AC,Sheet1!S71_A5CapexCode,$AD:$AD)","v":2608696},{"$f":"SUMIFS(Sheet1!S71_PreviousBudget,Sheet1!S71_SubMunicipalVoteNo,$AC:$AC,Sheet1!S71_A5CapexCode,$AD:$AD)","v":869566},null,null,null,null,{"$f":"SUMIFS(Sheet1!S71_CurrentAdjustments,Sheet1!S71_SubMunicipalVoteNo,$AC:$AC,Sheet1!S71_A5CapexCode,$AD:$AD)","v":0},0,869566,{"$f":"SUMIFS(Sheet1!S71_OY1AdjustedBudget,Sheet1!S71_SubMunicipalVoteNo,$AC:$AC,Sheet1!S71_A5CapexCode,$AD:$AD)","v":0},{"$f":"SUMIFS(Sheet1!S71_OY2AdjustedBudget,Sheet1!S71_SubMunicipalVoteNo,$AC:$AC,Sheet1!S71_A5CapexCode,$AD:$AD)","v":0},null,null,null,null,null,null,null,null,null,null,null,null,null,null,null,81,"CE"]
[{"$f":"B5B!A87","v":"8.2 - Economic Development/Planning"},null,{"$f":"SUMIFS(Sheet1!S71_OriginalBudget,Sheet1!S71_SubMunicipalVoteNo,$AC:$AC,Sheet1!S71_A5CapexCode,$AD:$AD)","v":3217391},{"$f":"SUMIFS(Sheet1!S71_PreviousBudget,Sheet1!S71_SubMunicipalVoteNo,$AC:$AC,Sheet1!S71_A5CapexCode,$AD:$AD)","v":5353982},null,null,null,null,{"$f":"SUMIFS(Sheet1!S71_CurrentAdjustments,Sheet1!S71_SubMunicipalVoteNo,$AC:$AC,Sheet1!S71_A5CapexCode,$AD:$AD)","v":0},0,5353982,{"$f":"SUMIFS(Sheet1!S71_OY1AdjustedBudget,Sheet1!S71_SubMunicipalVoteNo,$AC:$AC,Sheet1!S71_A5CapexCode,$AD:$AD)","v":2608696},{"$f":"SUMIFS(Sheet1!S71_OY2AdjustedBudget,Sheet1!S71_SubMunicipalVoteNo,$AC:$AC,Sheet1!S71_A5CapexCode,$AD:$AD)","v":0},null,null,null,null,null,null,null,null,null,null,null,null,null,null,null,82,"CE"]
[{"$f":"B5B!A88","v":"8.3 - Project Management Unit"},null,{"$f":"SUMIFS(Sheet1!S71_OriginalBudget,Sheet1!S71_SubMunicipalVoteNo,$AC:$AC,Sheet1!S71_A5CapexCode,$AD:$AD)","v":6104342},{"$f":"SUMIFS(Sheet1!S71_PreviousBudget,Sheet1!S71_SubMunicipalVoteNo,$AC:$AC,Sheet1!S71_A5CapexCode,$AD:$AD)","v":4730404},null,null,null,null,{"$f":"SUMIFS(Sheet1!S71_CurrentAdjustments,Sheet1!S71_SubMunicipalVoteNo,$AC:$AC,Sheet1!S71_A5CapexCode,$AD:$AD)","v":0},0,4730404,{"$f":"SUMIFS(Sheet1!S71_OY1AdjustedBudget,Sheet1!S71_SubMunicipalVoteNo,$AC:$AC,Sheet1!S71_A5CapexCode,$AD:$AD)","v":8260870},{"$f":"SUMIFS(Sheet1!S71_OY2AdjustedBudget,Sheet1!S71_SubMunicipalVoteNo,$AC:$AC,Sheet1!S71_A5CapexCode,$AD:$AD)","v":0},null,null,null,null,null,null,null,null,null,null,null,null,null,null,null,83,"CE"]
[{"$f":"B5B!A89","v":"8.4 - Town Planning, Building Regulations and Enforcement, and City Engineer"},null,{"$f":"SUMIFS(Sheet1!S71_OriginalBudget,Sheet1!S71_SubMunicipalVoteNo,$AC:$AC,Sheet1!S71_A5CapexCode,$AD:$AD)","v":0},{"$f":"SUMIFS(Sheet1!S71_PreviousBudget,Sheet1!S71_SubMunicipalVoteNo,$AC:$AC,Sheet1!S71_A5CapexCode,$AD:$AD)","v":0},null,null,null,null,{"$f":"SUMIFS(Sheet1!S71_CurrentAdjustments,Sheet1!S71_SubMunicipalVoteNo,$AC:$AC,Sheet1!S71_A5CapexCode,$AD:$AD)","v":0},0,0,{"$f":"SUMIFS(Sheet1!S71_OY1AdjustedBudget,Sheet1!S71_SubMunicipalVoteNo,$AC:$AC,Sheet1!S71_A5CapexCode,$AD:$AD)","v":0},{"$f":"SUMIFS(Sheet1!S71_OY2AdjustedBudget,Sheet1!S71_SubMunicipalVoteNo,$AC:$AC,Sheet1!S71_A5CapexCode,$AD:$AD)","v":0},null,null,null,null,null,null,null,null,null,null,null,null,null,null,null,84,"CE"]
[{"$f":"B5B!A90","v":"8.5 - Regional Planning and Development"},null,{"$f":"SUMIFS(Sheet1!S71_OriginalBudget,Sheet1!S71_SubMunicipalVoteNo,$AC:$AC,Sheet1!S71_A5CapexCode,$AD:$AD)","v":0},{"$f":"SUMIFS(Sheet1!S71_PreviousBudget,Sheet1!S71_SubMunicipalVoteNo,$AC:$AC,Sheet1!S71_A5CapexCode,$AD:$AD)","v":0},null,null,null,null,{"$f":"SUMIFS(Sheet1!S71_CurrentAdjustments,Sheet1!S71_SubMunicipalVoteNo,$AC:$AC,Sheet1!S71_A5CapexCode,$AD:$AD)","v":0},0,0,{"$f":"SUMIFS(Sheet1!S71_OY1AdjustedBudget,Sheet1!S71_SubMunicipalVoteNo,$AC:$AC,Sheet1!S71_A5CapexCode,$AD:$AD)","v":0},{"$f":"SUMIFS(Sheet1!S71_OY2AdjustedBudget,Sheet1!S71_SubMunicipalVoteNo,$AC:$AC,Sheet1!S71_A5CapexCode,$AD:$AD)","v":0},null,null,null,null,null,null,null,null,null,null,null,null,null,null,null,85,"CE"]
[{"$f":"B5B!A91","v":"8.6 - Development Facilitation"},null,{"$f":"SUMIFS(Sheet1!S71_OriginalBudget,Sheet1!S71_SubMunicipalVoteNo,$AC:$AC,Sheet1!S71_A5CapexCode,$AD:$AD)","v":0},{"$f":"SUMIFS(Sheet1!S71_PreviousBudget,Sheet1!S71_SubMunicipalVoteNo,$AC:$AC,Sheet1!S71_A5CapexCode,$AD:$AD)","v":0},null,null,null,null,{"$f":"SUMIFS(Sheet1!S71_CurrentAdjustments,Sheet1!S71_SubMunicipalVoteNo,$AC:$AC,Sheet1!S71_A5CapexCode,$AD:$AD)","v":0},0,0,{"$f":"SUMIFS(Sheet1!S71_OY1AdjustedBudget,Sheet1!S71_SubMunicipalVoteNo,$AC:$AC,Sheet1!S71_A5CapexCode,$AD:$AD)","v":0},{"$f":"SUMIFS(Sheet1!S71_OY2AdjustedBudget,Sheet1!S71_SubMunicipalVoteNo,$AC:$AC,Sheet1!S71_A5CapexCode,$AD:$AD)","v":0},null,null,null,null,null,null,null,null,null,null,null,null,null,null,null,86,"CE"]
[{"$f":"B5B!A92","v":"8.7 - Central City Improvement District"},null,{"$f":"SUMIFS(Sheet1!S71_OriginalBudget,Sheet1!S71_SubMunicipalVoteNo,$AC:$AC,Sheet1!S71_A5CapexCode,$AD:$AD)","v":0},{"$f":"SUMIFS(Sheet1!S71_PreviousBudget,Sheet1!S71_SubMunicipalVoteNo,$AC:$AC,Sheet1!S71_A5CapexCode,$AD:$AD)","v":0},null,null,null,null,{"$f":"SUMIFS(Sheet1!S71_CurrentAdjustments,Sheet1!S71_SubMunicipalVoteNo,$AC:$AC,Sheet1!S71_A5CapexCode,$AD:$AD)","v":0},0,0,{"$f":"SUMIFS(Sheet1!S71_OY1AdjustedBudget,Sheet1!S71_SubMunicipalVoteNo,$AC:$AC,Sheet1!S71_A5CapexCode,$AD:$AD)","v":0},{"$f":"SUMIFS(Sheet1!S71_OY2AdjustedBudget,Sheet1!S71_SubMunicipalVoteNo,$AC:$AC,Sheet1!S71_A5CapexCode,$AD:$AD)","v":0},null,null,null,null,null,null,null,null,null,null,null,null,null,null,null,87,"CE"]
[{"$f":"B5B!A93","v":"8.8 - [Name of sub-vote]"},null,{"$f":"SUMIFS(Sheet1!S71_OriginalBudget,Sheet1!S71_SubMunicipalVoteNo,$AC:$AC,Sheet1!S71_A5CapexCode,$AD:$AD)","v":0},{"$f":"SUMIFS(Sheet1!S71_PreviousBudget,Sheet1!S71_SubMunicipalVoteNo,$AC:$AC,Sheet1!S71_A5CapexCode,$AD:$AD)","v":0},null,null,null,null,{"$f":"SUMIFS(Sheet1!S71_CurrentAdjustments,Sheet1!S71_SubMunicipalVoteNo,$AC:$AC,Sheet1!S71_A5CapexCode,$AD:$AD)","v":0},0,0,{"$f":"SUMIFS(Sheet1!S71_OY1AdjustedBudget,Sheet1!S71_SubMunicipalVoteNo,$AC:$AC,Sheet1!S71_A5CapexCode,$AD:$AD)","v":0},{"$f":"SUMIFS(Sheet1!S71_OY2AdjustedBudget,Sheet1!S71_SubMunicipalVoteNo,$AC:$AC,Sheet1!S71_A5CapexCode,$AD:$AD)","v":0},null,null,null,null,null,null,null,null,null,null,null,null,null,null,null,88,"CE"]
[{"$f":"B5B!A94","v":"8.9 - Tourism"},null,{"$f":"SUMIFS(Sheet1!S71_OriginalBudget,Sheet1!S71_SubMunicipalVoteNo,$AC:$AC,Sheet1!S71_A5CapexCode,$AD:$AD)","v":0},{"$f":"SUMIFS(Sheet1!S71_PreviousBudget,Sheet1!S71_SubMunicipalVoteNo,$AC:$AC,Sheet1!S71_A5CapexCode,$AD:$AD)","v":0},null,null,null,null,{"$f":"SUMIFS(Sheet1!S71_CurrentAdjustments,Sheet1!S71_SubMunicipalVoteNo,$AC:$AC,Sheet1!S71_A5CapexCode,$AD:$AD)","v":0},0,0,{"$f":"SUMIFS(Sheet1!S71_OY1AdjustedBudget,Sheet1!S71_SubMunicipalVoteNo,$AC:$AC,Sheet1!S71_A5CapexCode,$AD:$AD)","v":0},{"$f":"SUMIFS(Sheet1!S71_OY2AdjustedBudget,Sheet1!S71_SubMunicipalVoteNo,$AC:$AC,Sheet1!S71_A5CapexCode,$AD:$AD)","v":0},null,null,null,null,null,null,null,null,null,null,null,null,null,null,null,89,"CE"]
[{"$f":"B5B!A95","v":"8.10 - Billboards"},null,{"$f":"SUMIFS(Sheet1!S71_OriginalBudget,Sheet1!S71_SubMunicipalVoteNo,$AC:$AC,Sheet1!S71_A5CapexCode,$AD:$AD)","v":260870},{"$f":"SUMIFS(Sheet1!S71_PreviousBudget,Sheet1!S71_SubMunicipalVoteNo,$AC:$AC,Sheet1!S71_A5CapexCode,$AD:$AD)","v":260870},null,null,null,null,{"$f":"SUMIFS(Sheet1!S71_CurrentAdjustments,Sheet1!S71_SubMunicipalVoteNo,$AC:$AC,Sheet1!S71_A5CapexCode,$AD:$AD)","v":0},0,260870,{"$f":"SUMIFS(Sheet1!S71_OY1AdjustedBudget,Sheet1!S71_SubMunicipalVoteNo,$AC:$AC,Sheet1!S71_A5CapexCode,$AD:$AD)","v":0},{"$f":"SUMIFS(Sheet1!S71_OY2AdjustedBudget,Sheet1!S71_SubMunicipalVoteNo,$AC:$AC,Sheet1!S71_A5CapexCode,$AD:$AD)","v":0},null,null,null,null,null,null,null,null,null,null,null,null,null,null,null,810,"CE"]
[{"$f":"B5B!A96","v":"Vote 9 - Road transport"},null,{"$f":"SUM(C266:C275)","v":79534567},74870676,0,0,0,1985217.38,0,1985217.38,76855893.379999995,{"$f":"SUM(L266:L275)","v":39251782},{"$f":"SUM(M266:M275)","v":38415522}]
[{"$f":"B5B!A97","v":"9.1 - Roads"},null,{"$f":"SUMIFS(Sheet1!S71_OriginalBudget,Sheet1!S71_SubMunicipalVoteNo,$AC:$AC,Sheet1!S71_A5CapexCode,$AD:$AD)","v":79534567},{"$f":"SUMIFS(Sheet1!S71_PreviousBudget,Sheet1!S71_SubMunicipalVoteNo,$AC:$AC,Sheet1!S71_A5CapexCode,$AD:$AD)","v":74870676},null,null,null,{"$f":"SUMIFS(Sheet1!S71_CurrentAdjustments,Sheet1!S71_SubMunicipalVoteNo,$AC:$AC,Sheet1!S71_A5CapexCode,$AD:$AD)","v":1985217.38},0,{"$f":"SUM(E266:I266)","v":1985217.38},{"$f":"IF(D266=0,C266+J266,D266+J266)","v":76855893.379999995},{"$f":"SUMIFS(Sheet1!S71_OY1AdjustedBudget,Sheet1!S71_SubMunicipalVoteNo,$AC:$AC,Sheet1!S71_A5CapexCode,$AD:$AD)","v":39251782},{"$f":"SUMIFS(Sheet1!S71_OY2AdjustedBudget,Sheet1!S71_SubMunicipalVoteNo,$AC:$AC,Sheet1!S71_A5CapexCode,$AD:$AD)","v":38415522},null,null,null,null,null,null,null,null,null,null,null,null,null,null,null,91,"CE"]
[{"$f":"B5B!A98","v":"9.2 - Road and Traffic Regulation"},null,{"$f":"SUMIFS(Sheet1!S71_OriginalBudget,Sheet1!S71_SubMunicipalVoteNo,$AC:$AC,Sheet1!S71_A5CapexCode,$AD:$AD)","v":0},{"$f":"SUMIFS(Sheet1!S71_PreviousBudget,Sheet1!S71_SubMunicipalVoteNo,$AC:$AC,Sheet1!S71_A5CapexCode,$AD:$AD)","v":0},null,null,null,null,{"$f":"SUMIFS(Sheet1!S71_CurrentAdjustments,Sheet1!S71_SubMunicipalVoteNo,$AC:$AC,Sheet1!S71_A5CapexCode,$AD:$AD)","v":0},{"$f":"SUM(E267:I267)","v":0},{"$f":"IF(D267=0,C267+J267,D267+J267)","v":0},{"$f":"SUMIFS(Sheet1!S71_OY1AdjustedBudget,Sheet1!S71_SubMunicipalVoteNo,$AC:$AC,Sheet1!S71_A5CapexCode,$AD:$AD)","v":0},{"$f":"SUMIFS(Sheet1!S71_OY2AdjustedBudget,Sheet1!S71_SubMunicipalVoteNo,$AC:$AC,Sheet1!S71_A5CapexCode,$AD:$AD)","v":0},null,null,null,null,null,null,null,null,null,null,null,null,null,null,null,92,"CE"]
[{"$f":"B5B!A99","v":"9.3 - Storm Water Management"},null,{"$f":"SUMIFS(Sheet1!S71_OriginalBudget,Sheet1!S71_SubMunicipalVoteNo,$AC:$AC,Sheet1!S71_A5CapexCode,$AD:$AD)","v":0},{"$f":"SUMIFS(Sheet1!S71_PreviousBudget,Sheet1!S71_SubMunicipalVoteNo,$AC:$AC,Sheet1!S71_A5CapexCode,$AD:$AD)","v":0},null,null,null,null,{"$f":"SUMIFS(Sheet1!S71_CurrentAdjustments,Sheet1!S71_SubMunicipalVoteNo,$AC:$AC,Sheet1!S71_A5CapexCode,$AD:$AD)","v":0},0,0,{"$f":"SUMIFS(Sheet1!S71_OY1AdjustedBudget,Sheet1!S71_SubMunicipalVoteNo,$AC:$AC,Sheet1!S71_A5CapexCode,$AD:$AD)","v":0},{"$f":"SUMIFS(Sheet1!S71_OY2AdjustedBudget,Sheet1!S71_SubMunicipalVoteNo,$AC:$AC,Sheet1!S71_A5CapexCode,$AD:$AD)","v":0},null,null,null,null,null,null,null,null,null,null,null,null,null,null,null,93,"CE"]
[{"$f":"B5B!A100","v":"9.4 - [Name of sub-vote]"},null,{"$f":"SUMIFS(Sheet1!S71_OriginalBudget,Sheet1!S71_SubMunicipalVoteNo,$AC:$AC,Sheet1!S71_A5CapexCode,$AD:$AD)","v":0},{"$f":"SUMIFS(Sheet1!S71_PreviousBudget,Sheet1!S71_SubMunicipalVoteNo,$AC:$AC,Sheet1!S71_A5CapexCode,$AD:$AD)","v":0},null,null,null,null,{"$f":"SUMIFS(Sheet1!S71_CurrentAdjustments,Sheet1!S71_SubMunicipalVoteNo,$AC:$AC,Sheet1!S71_A5CapexCode,$AD:$AD)","v":0},0,0,{"$f":"SUMIFS(Sheet1!S71_OY1AdjustedBudget,Sheet1!S71_SubMunicipalVoteNo,$AC:$AC,Sheet1!S71_A5CapexCode,$AD:$AD)","v":0},{"$f":"SUMIFS(Sheet1!S71_OY2AdjustedBudget,Sheet1!S71_SubMunicipalVoteNo,$AC:$AC,Sheet1!S71_A5CapexCode,$AD:$AD)","v":0},null,null,null,null,null,null,null,null,null,null,null,null,null,null,null,94,"CE"]
[{"$f":"B5B!A101","v":"9.5 - [Name of sub-vote]"},null,{"$f":"SUMIFS(Sheet1!S71_OriginalBudget,Sheet1!S71_SubMunicipalVoteNo,$AC:$AC,Sheet1!S71_A5CapexCode,$AD:$AD)","v":0},{"$f":"SUMIFS(Sheet1!S71_PreviousBudget,Sheet1!S71_SubMunicipalVoteNo,$AC:$AC,Sheet1!S71_A5CapexCode,$AD:$AD)","v":0},null,null,null,null,{"$f":"SUMIFS(Sheet1!S71_CurrentAdjustments,Sheet1!S71_SubMunicipalVoteNo,$AC:$AC,Sheet1!S71_A5CapexCode,$AD:$AD)","v":0},0,0,{"$f":"SUMIFS(Sheet1!S71_OY1AdjustedBudget,Sheet1!S71_SubMunicipalVoteNo,$AC:$AC,Sheet1!S71_A5CapexCode,$AD:$AD)","v":0},{"$f":"SUMIFS(Sheet1!S71_OY2AdjustedBudget,Sheet1!S71_SubMunicipalVoteNo,$AC:$AC,Sheet1!S71_A5CapexCode,$AD:$AD)","v":0},null,null,null,null,null,null,null,null,null,null,null,null,null,null,null,95,"CE"]
[{"$f":"B5B!A102","v":"9.6 - [Name of sub-vote]"},null,{"$f":"SUMIFS(Sheet1!S71_OriginalBudget,Sheet1!S71_SubMunicipalVoteNo,$AC:$AC,Sheet1!S71_A5CapexCode,$AD:$AD)","v":0},{"$f":"SUMIFS(Sheet1!S71_PreviousBudget,Sheet1!S71_SubMunicipalVoteNo,$AC:$AC,Sheet1!S71_A5CapexCode,$AD:$AD)","v":0},null,null,null,null,{"$f":"SUMIFS(Sheet1!S71_CurrentAdjustments,Sheet1!S71_SubMunicipalVoteNo,$AC:$AC,Sheet1!S71_A5CapexCode,$AD:$AD)","v":0},0,0,{"$f":"SUMIFS(Sheet1!S71_OY1AdjustedBudget,Sheet1!S71_SubMunicipalVoteNo,$AC:$AC,Sheet1!S71_A5CapexCode,$AD:$AD)","v":0},{"$f":"SUMIFS(Sheet1!S71_OY2AdjustedBudget,Sheet1!S71_SubMunicipalVoteNo,$AC:$AC,Sheet1!S71_A5CapexCode,$AD:$AD)","v":0},null,null,null,null,null,null,null,null,null,null,null,null,null,null,null,96,"CE"]
[{"$f":"B5B!A103","v":"9.7 - [Name of sub-vote]"},null,{"$f":"SUMIFS(Sheet1!S71_OriginalBudget,Sheet1!S71_SubMunicipalVoteNo,$AC:$AC,Sheet1!S71_A5CapexCode,$AD:$AD)","v":0},{"$f":"SUMIFS(Sheet1!S71_PreviousBudget,Sheet1!S71_SubMunicipalVoteNo,$AC:$AC,Sheet1!S71_A5CapexCode,$AD:$AD)","v":0},null,null,null,null,{"$f":"SUMIFS(Sheet1!S71_CurrentAdjustments,Sheet1!S71_SubMunicipalVoteNo,$AC:$AC,Sheet1!S71_A5CapexCode,$AD:$AD)","v":0},0,0,{"$f":"SUMIFS(Sheet1!S71_OY1AdjustedBudget,Sheet1!S71_SubMunicipalVoteNo,$AC:$AC,Sheet1!S71_A5CapexCode,$AD:$AD)","v":0},{"$f":"SUMIFS(Sheet1!S71_OY2AdjustedBudget,Sheet1!S71_SubMunicipalVoteNo,$AC:$AC,Sheet1!S71_A5CapexCode,$AD:$AD)","v":0},null,null,null,null,null,null,null,null,null,null,null,null,null,null,null,97,"CE"]
[{"$f":"B5B!A104","v":"9.8 - [Name of sub-vote]"},null,{"$f":"SUMIFS(Sheet1!S71_OriginalBudget,Sheet1!S71_SubMunicipalVoteNo,$AC:$AC,Sheet1!S71_A5CapexCode,$AD:$AD)","v":0},{"$f":"SUMIFS(Sheet1!S71_PreviousBudget,Sheet1!S71_SubMunicipalVoteNo,$AC:$AC,Sheet1!S71_A5CapexCode,$AD:$AD)","v":0},null,null,null,null,{"$f":"SUMIFS(Sheet1!S71_CurrentAdjustments,Sheet1!S71_SubMunicipalVoteNo,$AC:$AC,Sheet1!S71_A5CapexCode,$AD:$AD)","v":0},0,0,{"$f":"SUMIFS(Sheet1!S71_OY1AdjustedBudget,Sheet1!S71_SubMunicipalVoteNo,$AC:$AC,Sheet1!S71_A5CapexCode,$AD:$AD)","v":0},{"$f":"SUMIFS(Sheet1!S71_OY2AdjustedBudget,Sheet1!S71_SubMunicipalVoteNo,$AC:$AC,Sheet1!S71_A5CapexCode,$AD:$AD)","v":0},null,null,null,null,null,null,null,null,null,null,null,null,null,null,null,98,"CE"]
[{"$f":"B5B!A105","v":"9.9 - [Name of sub-vote]"},null,{"$f":"SUMIFS(Sheet1!S71_OriginalBudget,Sheet1!S71_SubMunicipalVoteNo,$AC:$AC,Sheet1!S71_A5CapexCode,$AD:$AD)","v":0},{"$f":"SUMIFS(Sheet1!S71_PreviousBudget,Sheet1!S71_SubMunicipalVoteNo,$AC:$AC,Sheet1!S71_A5CapexCode,$AD:$AD)","v":0},null,null,null,null,{"$f":"SUMIFS(Sheet1!S71_CurrentAdjustments,Sheet1!S71_SubMunicipalVoteNo,$AC:$AC,Sheet1!S71_A5CapexCode,$AD:$AD)","v":0},0,0,{"$f":"SUMIFS(Sheet1!S71_OY1AdjustedBudget,Sheet1!S71_SubMunicipalVoteNo,$AC:$AC,Sheet1!S71_A5CapexCode,$AD:$AD)","v":0},{"$f":"SUMIFS(Sheet1!S71_OY2AdjustedBudget,Sheet1!S71_SubMunicipalVoteNo,$AC:$AC,Sheet1!S71_A5CapexCode,$AD:$AD)","v":0},null,null,null,null,null,null,null,null,null,null,null,null,null,null,null,99,"CE"]
[{"$f":"B5B!A106","v":"9.10 - [Name of sub-vote]"},null,{"$f":"SUMIFS(Sheet1!S71_OriginalBudget,Sheet1!S71_SubMunicipalVoteNo,$AC:$AC,Sheet1!S71_A5CapexCode,$AD:$AD)","v":0},{"$f":"SUMIFS(Sheet1!S71_PreviousBudget,Sheet1!S71_SubMunicipalVoteNo,$AC:$AC,Sheet1!S71_A5CapexCode,$AD:$AD)","v":0},null,null,null,null,{"$f":"SUMIFS(Sheet1!S71_CurrentAdjustments,Sheet1!S71_SubMunicipalVoteNo,$AC:$AC,Sheet1!S71_A5CapexCode,$AD:$AD)","v":0},0,0,{"$f":"SUMIFS(Sheet1!S71_OY1AdjustedBudget,Sheet1!S71_SubMunicipalVoteNo,$AC:$AC,Sheet1!S71_A5CapexCode,$AD:$AD)","v":0},{"$f":"SUMIFS(Sheet1!S71_OY2AdjustedBudget,Sheet1!S71_SubMunicipalVoteNo,$AC:$AC,Sheet1!S71_A5CapexCode,$AD:$AD)","v":0},null,null,null,null,null,null,null,null,null,null,null,null,null,null,null,910,"CE"]
[{"$f":"B5B!A107","v":"Vote 10 - Energy sources"},null,{"$f":"SUM(C277:C286)","v":3751706},2177800,0,0,0,0,0,0,2177800,{"$f":"SUM(L277:L286)","v":0},{"$f":"SUM(M277:M286)","v":0}]
[{"$f":"B5B!A108","v":"10.1 - Electricity"},null,{"$f":"SUMIFS(Sheet1!S71_OriginalBudget,Sheet1!S71_SubMunicipalVoteNo,$AC:$AC,Sheet1!S71_A5CapexCode,$AD:$AD)","v":2886953},{"$f":"SUMIFS(Sheet1!S71_PreviousBudget,Sheet1!S71_SubMunicipalVoteNo,$AC:$AC,Sheet1!S71_A5CapexCode,$AD:$AD)","v":1486960},null,null,null,null,{"$f":"SUMIFS(Sheet1!S71_CurrentAdjustments,Sheet1!S71_SubMunicipalVoteNo,$AC:$AC,Sheet1!S71_A5CapexCode,$AD:$AD)","v":0},0,1486960,{"$f":"SUMIFS(Sheet1!S71_OY1AdjustedBudget,Sheet1!S71_SubMunicipalVoteNo,$AC:$AC,Sheet1!S71_A5CapexCode,$AD:$AD)","v":0},{"$f":"SUMIFS(Sheet1!S71_OY2AdjustedBudget,Sheet1!S71_SubMunicipalVoteNo,$AC:$AC,Sheet1!S71_A5CapexCode,$AD:$AD)","v":0},null,null,null,null,null,null,null,null,null,null,null,null,null,null,null,101,"CE"]
[{"$f":"B5B!A109","v":"10.2 - Street Lighting and Signal Systems"},null,{"$f":"SUMIFS(Sheet1!S71_OriginalBudget,Sheet1!S71_SubMunicipalVoteNo,$AC:$AC,Sheet1!S71_A5CapexCode,$AD:$AD)","v":864753},{"$f":"SUMIFS(Sheet1!S71_PreviousBudget,Sheet1!S71_SubMunicipalVoteNo,$AC:$AC,Sheet1!S71_A5CapexCode,$AD:$AD)","v":690840},null,null,null,null,{"$f":"SUMIFS(Sheet1!S71_CurrentAdjustments,Sheet1!S71_SubMunicipalVoteNo,$AC:$AC,Sheet1!S71_A5CapexCode,$AD:$AD)","v":0},0,690840,{"$f":"SUMIFS(Sheet1!S71_OY1AdjustedBudget,Sheet1!S71_SubMunicipalVoteNo,$AC:$AC,Sheet1!S71_A5CapexCode,$AD:$AD)","v":0},{"$f":"SUMIFS(Sheet1!S71_OY2AdjustedBudget,Sheet1!S71_SubMunicipalVoteNo,$AC:$AC,Sheet1!S71_A5CapexCode,$AD:$AD)","v":0},null,null,null,null,null,null,null,null,null,null,null,null,null,null,null,102,"CE"]
[{"$f":"B5B!A110","v":"10.3 - [Name of sub-vote]"},null,{"$f":"SUMIFS(Sheet1!S71_OriginalBudget,Sheet1!S71_SubMunicipalVoteNo,$AC:$AC,Sheet1!S71_A5CapexCode,$AD:$AD)","v":0},{"$f":"SUMIFS(Sheet1!S71_PreviousBudget,Sheet1!S71_SubMunicipalVoteNo,$AC:$AC,Sheet1!S71_A5CapexCode,$AD:$AD)","v":0},null,null,null,null,{"$f":"SUMIFS(Sheet1!S71_CurrentAdjustments,Sheet1!S71_SubMunicipalVoteNo,$AC:$AC,Sheet1!S71_A5CapexCode,$AD:$AD)","v":0},0,0,{"$f":"SUMIFS(Sheet1!S71_OY1AdjustedBudget,Sheet1!S71_SubMunicipalVoteNo,$AC:$AC,Sheet1!S71_A5CapexCode,$AD:$AD)","v":0},{"$f":"SUMIFS(Sheet1!S71_OY2AdjustedBudget,Sheet1!S71_SubMunicipalVoteNo,$AC:$AC,Sheet1!S71_A5CapexCode,$AD:$AD)","v":0},null,null,null,null,null,null,null,null,null,null,null,null,null,null,null,103,"CE"]
[{"$f":"B5B!A111","v":"10.4 - [Name of sub-vote]"},null,{"$f":"SUMIFS(Sheet1!S71_OriginalBudget,Sheet1!S71_SubMunicipalVoteNo,$AC:$AC,Sheet1!S71_A5CapexCode,$AD:$AD)","v":0},{"$f":"SUMIFS(Sheet1!S71_PreviousBudget,Sheet1!S71_SubMunicipalVoteNo,$AC:$AC,Sheet1!S71_A5CapexCode,$AD:$AD)","v":0},null,null,null,null,{"$f":"SUMIFS(Sheet1!S71_CurrentAdjustments,Sheet1!S71_SubMunicipalVoteNo,$AC:$AC,Sheet1!S71_A5CapexCode,$AD:$AD)","v":0},0,0,{"$f":"SUMIFS(Sheet1!S71_OY1AdjustedBudget,Sheet1!S71_SubMunicipalVoteNo,$AC:$AC,Sheet1!S71_A5CapexCode,$AD:$AD)","v":0},{"$f":"SUMIFS(Sheet1!S71_OY2AdjustedBudget,Sheet1!S71_SubMunicipalVoteNo,$AC:$AC,Sheet1!S71_A5CapexCode,$AD:$AD)","v":0},null,null,null,null,null,null,null,null,null,null,null,null,null,null,null,104,"CE"]
[{"$f":"B5B!A112","v":"10.5 - [Name of sub-vote]"},null,{"$f":"SUMIFS(Sheet1!S71_OriginalBudget,Sheet1!S71_SubMunicipalVoteNo,$AC:$AC,Sheet1!S71_A5CapexCode,$AD:$AD)","v":0},{"$f":"SUMIFS(Sheet1!S71_PreviousBudget,Sheet1!S71_SubMunicipalVoteNo,$AC:$AC,Sheet1!S71_A5CapexCode,$AD:$AD)","v":0},null,null,null,null,{"$f":"SUMIFS(Sheet1!S71_CurrentAdjustments,Sheet1!S71_SubMunicipalVoteNo,$AC:$AC,Sheet1!S71_A5CapexCode,$AD:$AD)","v":0},0,0,{"$f":"SUMIFS(Sheet1!S71_OY1AdjustedBudget,Sheet1!S71_SubMunicipalVoteNo,$AC:$AC,Sheet1!S71_A5CapexCode,$AD:$AD)","v":0},{"$f":"SUMIFS(Sheet1!S71_OY2AdjustedBudget,Sheet1!S71_SubMunicipalVoteNo,$AC:$AC,Sheet1!S71_A5CapexCode,$AD:$AD)","v":0},null,null,null,null,null,null,null,null,null,null,null,null,null,null,null,105,"CE"]
[{"$f":"B5B!A113","v":"10.6 - [Name of sub-vote]"},null,{"$f":"SUMIFS(Sheet1!S71_OriginalBudget,Sheet1!S71_SubMunicipalVoteNo,$AC:$AC,Sheet1!S71_A5CapexCode,$AD:$AD)","v":0},{"$f":"SUMIFS(Sheet1!S71_PreviousBudget,Sheet1!S71_SubMunicipalVoteNo,$AC:$AC,Sheet1!S71_A5CapexCode,$AD:$AD)","v":0},null,null,null,null,{"$f":"SUMIFS(Sheet1!S71_CurrentAdjustments,Sheet1!S71_SubMunicipalVoteNo,$AC:$AC,Sheet1!S71_A5CapexCode,$AD:$AD)","v":0},0,0,{"$f":"SUMIFS(Sheet1!S71_OY1AdjustedBudget,Sheet1!S71_SubMunicipalVoteNo,$AC:$AC,Sheet1!S71_A5CapexCode,$AD:$AD)","v":0},{"$f":"SUMIFS(Sheet1!S71_OY2AdjustedBudget,Sheet1!S71_SubMunicipalVoteNo,$AC:$AC,Sheet1!S71_A5CapexCode,$AD:$AD)","v":0},null,null,null,null,null,null,null,null,null,null,null,null,null,null,null,106,"CE"]
[{"$f":"B5B!A114","v":"10.7 - [Name of sub-vote]"},null,{"$f":"SUMIFS(Sheet1!S71_OriginalBudget,Sheet1!S71_SubMunicipalVoteNo,$AC:$AC,Sheet1!S71_A5CapexCode,$AD:$AD)","v":0},{"$f":"SUMIFS(Sheet1!S71_PreviousBudget,Sheet1!S71_SubMunicipalVoteNo,$AC:$AC,Sheet1!S71_A5CapexCode,$AD:$AD)","v":0},null,null,null,null,{"$f":"SUMIFS(Sheet1!S71_CurrentAdjustments,Sheet1!S71_SubMunicipalVoteNo,$AC:$AC,Sheet1!S71_A5CapexCode,$AD:$AD)","v":0},0,0,{"$f":"SUMIFS(Sheet1!S71_OY1AdjustedBudget,Sheet1!S71_SubMunicipalVoteNo,$AC:$AC,Sheet1!S71_A5CapexCode,$AD:$AD)","v":0},{"$f":"SUMIFS(Sheet1!S71_OY2AdjustedBudget,Sheet1!S71_SubMunicipalVoteNo,$AC:$AC,Sheet1!S71_A5CapexCode,$AD:$AD)","v":0},null,null,null,null,null,null,null,null,null,null,null,null,null,null,null,107,"CE"]
[{"$f":"B5B!A115","v":"10.8 - [Name of sub-vote]"},null,{"$f":"SUMIFS(Sheet1!S71_OriginalBudget,Sheet1!S71_SubMunicipalVoteNo,$AC:$AC,Sheet1!S71_A5CapexCode,$AD:$AD)","v":0},{"$f":"SUMIFS(Sheet1!S71_PreviousBudget,Sheet1!S71_SubMunicipalVoteNo,$AC:$AC,Sheet1!S71_A5CapexCode,$AD:$AD)","v":0},null,null,null,null,{"$f":"SUMIFS(Sheet1!S71_CurrentAdjustments,Sheet1!S71_SubMunicipalVoteNo,$AC:$AC,Sheet1!S71_A5CapexCode,$AD:$AD)","v":0},0,0,{"$f":"SUMIFS(Sheet1!S71_OY1AdjustedBudget,Sheet1!S71_SubMunicipalVoteNo,$AC:$AC,Sheet1!S71_A5CapexCode,$AD:$AD)","v":0},{"$f":"SUMIFS(Sheet1!S71_OY2AdjustedBudget,Sheet1!S71_SubMunicipalVoteNo,$AC:$AC,Sheet1!S71_A5CapexCode,$AD:$AD)","v":0},null,null,null,null,null,null,null,null,null,null,null,null,null,null,null,108,"CE"]
[{"$f":"B5B!A116","v":"10.9 - [Name of sub-vote]"},null,{"$f":"SUMIFS(Sheet1!S71_OriginalBudget,Sheet1!S71_SubMunicipalVoteNo,$AC:$AC,Sheet1!S71_A5CapexCode,$AD:$AD)","v":0},{"$f":"SUMIFS(Sheet1!S71_PreviousBudget,Sheet1!S71_SubMunicipalVoteNo,$AC:$AC,Sheet1!S71_A5CapexCode,$AD:$AD)","v":0},null,null,null,null,{"$f":"SUMIFS(Sheet1!S71_CurrentAdjustments,Sheet1!S71_SubMunicipalVoteNo,$AC:$AC,Sheet1!S71_A5CapexCode,$AD:$AD)","v":0},0,0,{"$f":"SUMIFS(Sheet1!S71_OY1AdjustedBudget,Sheet1!S71_SubMunicipalVoteNo,$AC:$AC,Sheet1!S71_A5CapexCode,$AD:$AD)","v":0},{"$f":"SUMIFS(Sheet1!S71_OY2AdjustedBudget,Sheet1!S71_SubMunicipalVoteNo,$AC:$AC,Sheet1!S71_A5CapexCode,$AD:$AD)","v":0},null,null,null,null,null,null,null,null,null,null,null,null,null,null,null,109,"CE"]
[{"$f":"B5B!A117","v":"10.10 - [Name of sub-vote]"},null,{"$f":"SUMIFS(Sheet1!S71_OriginalBudget,Sheet1!S71_SubMunicipalVoteNo,$AC:$AC,Sheet1!S71_A5CapexCode,$AD:$AD)","v":0},{"$f":"SUMIFS(Sheet1!S71_PreviousBudget,Sheet1!S71_SubMunicipalVoteNo,$AC:$AC,Sheet1!S71_A5CapexCode,$AD:$AD)","v":0},null,null,null,null,{"$f":"SUMIFS(Sheet1!S71_CurrentAdjustments,Sheet1!S71_SubMunicipalVoteNo,$AC:$AC,Sheet1!S71_A5CapexCode,$AD:$AD)","v":0},0,0,{"$f":"SUMIFS(Sheet1!S71_OY1AdjustedBudget,Sheet1!S71_SubMunicipalVoteNo,$AC:$AC,Sheet1!S71_A5CapexCode,$AD:$AD)","v":0},{"$f":"SUMIFS(Sheet1!S71_OY2AdjustedBudget,Sheet1!S71_SubMunicipalVoteNo,$AC:$AC,Sheet1!S71_A5CapexCode,$AD:$AD)","v":0},null,null,null,null,null,null,null,null,null,null,null,null,null,null,null,1010,"CE"]
[{"$f":"B5B!A118","v":"Vote 11 - Waste Management"},null,{"$f":"SUM(C288:C297)","v":2173913},2133913,0,0,0,0,0,0,2133913,{"$f":"SUM(L288:L297)","v":0},{"$f":"SUM(M288:M297)","v":0}]
[{"$f":"B5B!A119","v":"11.1 - Solid Waste Removal"},null,{"$f":"SUMIFS(Sheet1!S71_OriginalBudget,Sheet1!S71_SubMunicipalVoteNo,$AC:$AC,Sheet1!S71_A5CapexCode,$AD:$AD)","v":2173913},{"$f":"SUMIFS(Sheet1!S71_PreviousBudget,Sheet1!S71_SubMunicipalVoteNo,$AC:$AC,Sheet1!S71_A5CapexCode,$AD:$AD)","v":2133913},null,null,null,null,{"$f":"SUMIFS(Sheet1!S71_CurrentAdjustments,Sheet1!S71_SubMunicipalVoteNo,$AC:$AC,Sheet1!S71_A5CapexCode,$AD:$AD)","v":0},0,2133913,{"$f":"SUMIFS(Sheet1!S71_OY1AdjustedBudget,Sheet1!S71_SubMunicipalVoteNo,$AC:$AC,Sheet1!S71_A5CapexCode,$AD:$AD)","v":0},{"$f":"SUMIFS(Sheet1!S71_OY2AdjustedBudget,Sheet1!S71_SubMunicipalVoteNo,$AC:$AC,Sheet1!S71_A5CapexCode,$AD:$AD)","v":0},null,null,null,null,null,null,null,null,null,null,null,null,null,null,null,111,"CE"]
[{"$f":"B5B!A120","v":"11.2 - Solid Waste Disposal (Landfill Sites)"},null,{"$f":"SUMIFS(Sheet1!S71_OriginalBudget,Sheet1!S71_SubMunicipalVoteNo,$AC:$AC,Sheet1!S71_A5CapexCode,$AD:$AD)","v":0},{"$f":"SUMIFS(Sheet1!S71_PreviousBudget,Sheet1!S71_SubMunicipalVoteNo,$AC:$AC,Sheet1!S71_A5CapexCode,$AD:$AD)","v":0},null,null,null,null,{"$f":"SUMIFS(Sheet1!S71_CurrentAdjustments,Sheet1!S71_SubMunicipalVoteNo,$AC:$AC,Sheet1!S71_A5CapexCode,$AD:$AD)","v":0},0,0,{"$f":"SUMIFS(Sheet1!S71_OY1AdjustedBudget,Sheet1!S71_SubMunicipalVoteNo,$AC:$AC,Sheet1!S71_A5CapexCode,$AD:$AD)","v":0},{"$f":"SUMIFS(Sheet1!S71_OY2AdjustedBudget,Sheet1!S71_SubMunicipalVoteNo,$AC:$AC,Sheet1!S71_A5CapexCode,$AD:$AD)","v":0},null,null,null,null,null,null,null,null,null,null,null,null,null,null,null,112,"CE"]
[{"$f":"B5B!A121","v":"11.3 - Street Cleaning"},null,{"$f":"SUMIFS(Sheet1!S71_OriginalBudget,Sheet1!S71_SubMunicipalVoteNo,$AC:$AC,Sheet1!S71_A5CapexCode,$AD:$AD)","v":0},{"$f":"SUMIFS(Sheet1!S71_PreviousBudget,Sheet1!S71_SubMunicipalVoteNo,$AC:$AC,Sheet1!S71_A5CapexCode,$AD:$AD)","v":0},null,null,null,null,{"$f":"SUMIFS(Sheet1!S71_CurrentAdjustments,Sheet1!S71_SubMunicipalVoteNo,$AC:$AC,Sheet1!S71_A5CapexCode,$AD:$AD)","v":0},0,0,{"$f":"SUMIFS(Sheet1!S71_OY1AdjustedBudget,Sheet1!S71_SubMunicipalVoteNo,$AC:$AC,Sheet1!S71_A5CapexCode,$AD:$AD)","v":0},{"$f":"SUMIFS(Sheet1!S71_OY2AdjustedBudget,Sheet1!S71_SubMunicipalVoteNo,$AC:$AC,Sheet1!S71_A5CapexCode,$AD:$AD)","v":0},null,null,null,null,null,null,null,null,null,null,null,null,null,null,null,113,"CE"]
[{"$f":"B5B!A122","v":"11.4 - [Name of sub-vote]"},null,{"$f":"SUMIFS(Sheet1!S71_OriginalBudget,Sheet1!S71_SubMunicipalVoteNo,$AC:$AC,Sheet1!S71_A5CapexCode,$AD:$AD)","v":0},{"$f":"SUMIFS(Sheet1!S71_PreviousBudget,Sheet1!S71_SubMunicipalVoteNo,$AC:$AC,Sheet1!S71_A5CapexCode,$AD:$AD)","v":0},null,null,null,null,{"$f":"SUMIFS(Sheet1!S71_CurrentAdjustments,Sheet1!S71_SubMunicipalVoteNo,$AC:$AC,Sheet1!S71_A5CapexCode,$AD:$AD)","v":0},0,0,{"$f":"SUMIFS(Sheet1!S71_OY1AdjustedBudget,Sheet1!S71_SubMunicipalVoteNo,$AC:$AC,Sheet1!S71_A5CapexCode,$AD:$AD)","v":0},{"$f":"SUMIFS(Sheet1!S71_OY2AdjustedBudget,Sheet1!S71_SubMunicipalVoteNo,$AC:$AC,Sheet1!S71_A5CapexCode,$AD:$AD)","v":0},null,null,null,null,null,null,null,null,null,null,null,null,null,null,null,114,"CE"]
[{"$f":"B5B!A123","v":"11.5 - [Name of sub-vote]"},null,{"$f":"SUMIFS(Sheet1!S71_OriginalBudget,Sheet1!S71_SubMunicipalVoteNo,$AC:$AC,Sheet1!S71_A5CapexCode,$AD:$AD)","v":0},{"$f":"SUMIFS(Sheet1!S71_PreviousBudget,Sheet1!S71_SubMunicipalVoteNo,$AC:$AC,Sheet1!S71_A5CapexCode,$AD:$AD)","v":0},null,null,null,null,{"$f":"SUMIFS(Sheet1!S71_CurrentAdjustments,Sheet1!S71_SubMunicipalVoteNo,$AC:$AC,Sheet1!S71_A5CapexCode,$AD:$AD)","v":0},0,0,{"$f":"SUMIFS(Sheet1!S71_OY1AdjustedBudget,Sheet1!S71_SubMunicipalVoteNo,$AC:$AC,Sheet1!S71_A5CapexCode,$AD:$AD)","v":0},{"$f":"SUMIFS(Sheet1!S71_OY2AdjustedBudget,Sheet1!S71_SubMunicipalVoteNo,$AC:$AC,Sheet1!S71_A5CapexCode,$AD:$AD)","v":0},null,null,null,null,null,null,null,null,null,null,null,null,null,null,null,115,"CE"]
[{"$f":"B5B!A124","v":"11.6 - [Name of sub-vote]"},null,{"$f":"SUMIFS(Sheet1!S71_OriginalBudget,Sheet1!S71_SubMunicipalVoteNo,$AC:$AC,Sheet1!S71_A5CapexCode,$AD:$AD)","v":0},{"$f":"SUMIFS(Sheet1!S71_PreviousBudget,Sheet1!S71_SubMunicipalVoteNo,$AC:$AC,Sheet1!S71_A5CapexCode,$AD:$AD)","v":0},null,null,null,null,{"$f":"SUMIFS(Sheet1!S71_CurrentAdjustments,Sheet1!S71_SubMunicipalVoteNo,$AC:$AC,Sheet1!S71_A5CapexCode,$AD:$AD)","v":0},0,0,{"$f":"SUMIFS(Sheet1!S71_OY1AdjustedBudget,Sheet1!S71_SubMunicipalVoteNo,$AC:$AC,Sheet1!S71_A5CapexCode,$AD:$AD)","v":0},{"$f":"SUMIFS(Sheet1!S71_OY2AdjustedBudget,Sheet1!S71_SubMunicipalVoteNo,$AC:$AC,Sheet1!S71_A5CapexCode,$AD:$AD)","v":0},null,null,null,null,null,null,null,null,null,null,null,null,null,null,null,116,"CE"]
[{"$f":"B5B!A125","v":"11.7 - [Name of sub-vote]"},null,{"$f":"SUMIFS(Sheet1!S71_OriginalBudget,Sheet1!S71_SubMunicipalVoteNo,$AC:$AC,Sheet1!S71_A5CapexCode,$AD:$AD)","v":0},{"$f":"SUMIFS(Sheet1!S71_PreviousBudget,Sheet1!S71_SubMunicipalVoteNo,$AC:$AC,Sheet1!S71_A5CapexCode,$AD:$AD)","v":0},null,null,null,null,{"$f":"SUMIFS(Sheet1!S71_CurrentAdjustments,Sheet1!S71_SubMunicipalVoteNo,$AC:$AC,Sheet1!S71_A5CapexCode,$AD:$AD)","v":0},0,0,{"$f":"SUMIFS(Sheet1!S71_OY1AdjustedBudget,Sheet1!S71_SubMunicipalVoteNo,$AC:$AC,Sheet1!S71_A5CapexCode,$AD:$AD)","v":0},{"$f":"SUMIFS(Sheet1!S71_OY2AdjustedBudget,Sheet1!S71_SubMunicipalVoteNo,$AC:$AC,Sheet1!S71_A5CapexCode,$AD:$AD)","v":0},null,null,null,null,null,null,null,null,null,null,null,null,null,null,null,117,"CE"]
[{"$f":"B5B!A126","v":"11.8 - [Name of sub-vote]"},null,{"$f":"SUMIFS(Sheet1!S71_OriginalBudget,Sheet1!S71_SubMunicipalVoteNo,$AC:$AC,Sheet1!S71_A5CapexCode,$AD:$AD)","v":0},{"$f":"SUMIFS(Sheet1!S71_PreviousBudget,Sheet1!S71_SubMunicipalVoteNo,$AC:$AC,Sheet1!S71_A5CapexCode,$AD:$AD)","v":0},null,null,null,null,{"$f":"SUMIFS(Sheet1!S71_CurrentAdjustments,Sheet1!S71_SubMunicipalVoteNo,$AC:$AC,Sheet1!S71_A5CapexCode,$AD:$AD)","v":0},0,0,{"$f":"SUMIFS(Sheet1!S71_OY1AdjustedBudget,Sheet1!S71_SubMunicipalVoteNo,$AC:$AC,Sheet1!S71_A5CapexCode,$AD:$AD)","v":0},{"$f":"SUMIFS(Sheet1!S71_OY2AdjustedBudget,Sheet1!S71_SubMunicipalVoteNo,$AC:$AC,Sheet1!S71_A5CapexCode,$AD:$AD)","v":0},null,null,null,null,null,null,null,null,null,null,null,null,null,null,null,118,"CE"]
[{"$f":"B5B!A127","v":"11.9 - [Name of sub-vote]"},null,{"$f":"SUMIFS(Sheet1!S71_OriginalBudget,Sheet1!S71_SubMunicipalVoteNo,$AC:$AC,Sheet1!S71_A5CapexCode,$AD:$AD)","v":0},{"$f":"SUMIFS(Sheet1!S71_PreviousBudget,Sheet1!S71_SubMunicipalVoteNo,$AC:$AC,Sheet1!S71_A5CapexCode,$AD:$AD)","v":0},null,null,null,null,{"$f":"SUMIFS(Sheet1!S71_CurrentAdjustments,Sheet1!S71_SubMunicipalVoteNo,$AC:$AC,Sheet1!S71_A5CapexCode,$AD:$AD)","v":0},0,0,{"$f":"SUMIFS(Sheet1!S71_OY1AdjustedBudget,Sheet1!S71_SubMunicipalVoteNo,$AC:$AC,Sheet1!S71_A5CapexCode,$AD:$AD)","v":0},{"$f":"SUMIFS(Sheet1!S71_OY2AdjustedBudget,Sheet1!S71_SubMunicipalVoteNo,$AC:$AC,Sheet1!S71_A5CapexCode,$AD:$AD)","v":0},null,null,null,null,null,null,null,null,null,null,null,null,null,null,null,119,"CE"]
[{"$f":"B5B!A128","v":"11.10 - [Name of sub-vote]"},null,{"$f":"SUMIFS(Sheet1!S71_OriginalBudget,Sheet1!S71_SubMunicipalVoteNo,$AC:$AC,Sheet1!S71_A5CapexCode,$AD:$AD)","v":0},{"$f":"SUMIFS(Sheet1!S71_PreviousBudget,Sheet1!S71_SubMunicipalVoteNo,$AC:$AC,Sheet1!S71_A5CapexCode,$AD:$AD)","v":0},null,null,null,null,{"$f":"SUMIFS(Sheet1!S71_CurrentAdjustments,Sheet1!S71_SubMunicipalVoteNo,$AC:$AC,Sheet1!S71_A5CapexCode,$AD:$AD)","v":0},0,0,{"$f":"SUMIFS(Sheet1!S71_OY1AdjustedBudget,Sheet1!S71_SubMunicipalVoteNo,$AC:$AC,Sheet1!S71_A5CapexCode,$AD:$AD)","v":0},{"$f":"SUMIFS(Sheet1!S71_OY2AdjustedBudget,Sheet1!S71_SubMunicipalVoteNo,$AC:$AC,Sheet1!S71_A5CapexCode,$AD:$AD)","v":0},null,null,null,null,null,null,null,null,null,null,null,null,null,null,null,1110,"CE"]
[{"$f":"B5B!A129","v":"Vote 12 - Environmental Protection"},null,{"$f":"SUM(C299:C308)","v":0},0,0,0,0,0,0,0,0,{"$f":"SUM(L299:L308)","v":0},{"$f":"SUM(M299:M308)","v":0}]
[{"$f":"B5B!A130","v":"12.1 - Biodiversity and Landscape"},null,{"$f":"SUMIFS(Sheet1!S71_OriginalBudget,Sheet1!S71_SubMunicipalVoteNo,$AC:$AC,Sheet1!S71_A5CapexCode,$AD:$AD)","v":0},{"$f":"SUMIFS(Sheet1!S71_PreviousBudget,Sheet1!S71_SubMunicipalVoteNo,$AC:$AC,Sheet1!S71_A5CapexCode,$AD:$AD)","v":0},null,null,null,null,{"$f":"SUMIFS(Sheet1!S71_CurrentAdjustments,Sheet1!S71_SubMunicipalVoteNo,$AC:$AC,Sheet1!S71_A5CapexCode,$AD:$AD)","v":0},0,0,{"$f":"SUMIFS(Sheet1!S71_OY1AdjustedBudget,Sheet1!S71_SubMunicipalVoteNo,$AC:$AC,Sheet1!S71_A5CapexCode,$AD:$AD)","v":0},{"$f":"SUMIFS(Sheet1!S71_OY2AdjustedBudget,Sheet1!S71_SubMunicipalVoteNo,$AC:$AC,Sheet1!S71_A5CapexCode,$AD:$AD)","v":0},null,null,null,null,null,null,null,null,null,null,null,null,null,null,null,121,"CE"]
[{"$f":"B5B!A131","v":"12.2 - [Name of sub-vote]"},null,{"$f":"SUMIFS(Sheet1!S71_OriginalBudget,Sheet1!S71_SubMunicipalVoteNo,$AC:$AC,Sheet1!S71_A5CapexCode,$AD:$AD)","v":0},{"$f":"SUMIFS(Sheet1!S71_PreviousBudget,Sheet1!S71_SubMunicipalVoteNo,$AC:$AC,Sheet1!S71_A5CapexCode,$AD:$AD)","v":0},null,null,null,null,{"$f":"SUMIFS(Sheet1!S71_CurrentAdjustments,Sheet1!S71_SubMunicipalVoteNo,$AC:$AC,Sheet1!S71_A5CapexCode,$AD:$AD)","v":0},0,0,{"$f":"SUMIFS(Sheet1!S71_OY1AdjustedBudget,Sheet1!S71_SubMunicipalVoteNo,$AC:$AC,Sheet1!S71_A5CapexCode,$AD:$AD)","v":0},{"$f":"SUMIFS(Sheet1!S71_OY2AdjustedBudget,Sheet1!S71_SubMunicipalVoteNo,$AC:$AC,Sheet1!S71_A5CapexCode,$AD:$AD)","v":0},null,null,null,null,null,null,null,null,null,null,null,null,null,null,null,122,"CE"]
[{"$f":"B5B!A132","v":"12.3 - [Name of sub-vote]"},null,{"$f":"SUMIFS(Sheet1!S71_OriginalBudget,Sheet1!S71_SubMunicipalVoteNo,$AC:$AC,Sheet1!S71_A5CapexCode,$AD:$AD)","v":0},{"$f":"SUMIFS(Sheet1!S71_PreviousBudget,Sheet1!S71_SubMunicipalVoteNo,$AC:$AC,Sheet1!S71_A5CapexCode,$AD:$AD)","v":0},null,null,null,null,{"$f":"SUMIFS(Sheet1!S71_CurrentAdjustments,Sheet1!S71_SubMunicipalVoteNo,$AC:$AC,Sheet1!S71_A5CapexCode,$AD:$AD)","v":0},0,0,{"$f":"SUMIFS(Sheet1!S71_OY1AdjustedBudget,Sheet1!S71_SubMunicipalVoteNo,$AC:$AC,Sheet1!S71_A5CapexCode,$AD:$AD)","v":0},{"$f":"SUMIFS(Sheet1!S71_OY2AdjustedBudget,Sheet1!S71_SubMunicipalVoteNo,$AC:$AC,Sheet1!S71_A5CapexCode,$AD:$AD)","v":0},null,null,null,null,null,null,null,null,null,null,null,null,null,null,null,123,"CE"]
[{"$f":"B5B!A133","v":"12.4 - [Name of sub-vote]"},null,{"$f":"SUMIFS(Sheet1!S71_OriginalBudget,Sheet1!S71_SubMunicipalVoteNo,$AC:$AC,Sheet1!S71_A5CapexCode,$AD:$AD)","v":0},{"$f":"SUMIFS(Sheet1!S71_PreviousBudget,Sheet1!S71_SubMunicipalVoteNo,$AC:$AC,Sheet1!S71_A5CapexCode,$AD:$AD)","v":0},null,null,null,null,{"$f":"SUMIFS(Sheet1!S71_CurrentAdjustments,Sheet1!S71_SubMunicipalVoteNo,$AC:$AC,Sheet1!S71_A5CapexCode,$AD:$AD)","v":0},0,0,{"$f":"SUMIFS(Sheet1!S71_OY1AdjustedBudget,Sheet1!S71_SubMunicipalVoteNo,$AC:$AC,Sheet1!S71_A5CapexCode,$AD:$AD)","v":0},{"$f":"SUMIFS(Sheet1!S71_OY2AdjustedBudget,Sheet1!S71_SubMunicipalVoteNo,$AC:$AC,Sheet1!S71_A5CapexCode,$AD:$AD)","v":0},null,null,null,null,null,null,null,null,null,null,null,null,null,null,null,124,"CE"]
[{"$f":"B5B!A134","v":"12.5 - [Name of sub-vote]"},null,{"$f":"SUMIFS(Sheet1!S71_OriginalBudget,Sheet1!S71_SubMunicipalVoteNo,$AC:$AC,Sheet1!S71_A5CapexCode,$AD:$AD)","v":0},{"$f":"SUMIFS(Sheet1!S71_PreviousBudget,Sheet1!S71_SubMunicipalVoteNo,$AC:$AC,Sheet1!S71_A5CapexCode,$AD:$AD)","v":0},null,null,null,null,{"$f":"SUMIFS(Sheet1!S71_CurrentAdjustments,Sheet1!S71_SubMunicipalVoteNo,$AC:$AC,Sheet1!S71_A5CapexCode,$AD:$AD)","v":0},0,0,{"$f":"SUMIFS(Sheet1!S71_OY1AdjustedBudget,Sheet1!S71_SubMunicipalVoteNo,$AC:$AC,Sheet1!S71_A5CapexCode,$AD:$AD)","v":0},{"$f":"SUMIFS(Sheet1!S71_OY2AdjustedBudget,Sheet1!S71_SubMunicipalVoteNo,$AC:$AC,Sheet1!S71_A5CapexCode,$AD:$AD)","v":0},null,null,null,null,null,null,null,null,null,null,null,null,null,null,null,125,"CE"]
[{"$f":"B5B!A135","v":"12.6 - [Name of sub-vote]"},null,{"$f":"SUMIFS(Sheet1!S71_OriginalBudget,Sheet1!S71_SubMunicipalVoteNo,$AC:$AC,Sheet1!S71_A5CapexCode,$AD:$AD)","v":0},{"$f":"SUMIFS(Sheet1!S71_PreviousBudget,Sheet1!S71_SubMunicipalVoteNo,$AC:$AC,Sheet1!S71_A5CapexCode,$AD:$AD)","v":0},null,null,null,null,{"$f":"SUMIFS(Sheet1!S71_CurrentAdjustments,Sheet1!S71_SubMunicipalVoteNo,$AC:$AC,Sheet1!S71_A5CapexCode,$AD:$AD)","v":0},0,0,{"$f":"SUMIFS(Sheet1!S71_OY1AdjustedBudget,Sheet1!S71_SubMunicipalVoteNo,$AC:$AC,Sheet1!S71_A5CapexCode,$AD:$AD)","v":0},{"$f":"SUMIFS(Sheet1!S71_OY2AdjustedBudget,Sheet1!S71_SubMunicipalVoteNo,$AC:$AC,Sheet1!S71_A5CapexCode,$AD:$AD)","v":0},null,null,null,null,null,null,null,null,null,null,null,null,null,null,null,126,"CE"]
[{"$f":"B5B!A136","v":"12.7 - [Name of sub-vote]"},null,{"$f":"SUMIFS(Sheet1!S71_OriginalBudget,Sheet1!S71_SubMunicipalVoteNo,$AC:$AC,Sheet1!S71_A5CapexCode,$AD:$AD)","v":0},{"$f":"SUMIFS(Sheet1!S71_PreviousBudget,Sheet1!S71_SubMunicipalVoteNo,$AC:$AC,Sheet1!S71_A5CapexCode,$AD:$AD)","v":0},null,null,null,null,{"$f":"SUMIFS(Sheet1!S71_CurrentAdjustments,Sheet1!S71_SubMunicipalVoteNo,$AC:$AC,Sheet1!S71_A5CapexCode,$AD:$AD)","v":0},{"$f":"SUM(E305:I305)","v":0},{"$f":"IF(D305=0,C305+J305,D305+J305)","v":0},{"$f":"SUMIFS(Sheet1!S71_OY1AdjustedBudget,Sheet1!S71_SubMunicipalVoteNo,$AC:$AC,Sheet1!S71_A5CapexCode,$AD:$AD)","v":0},{"$f":"SUMIFS(Sheet1!S71_OY2AdjustedBudget,Sheet1!S71_SubMunicipalVoteNo,$AC:$AC,Sheet1!S71_A5CapexCode,$AD:$AD)","v":0},null,null,null,null,null,null,null,null,null,null,null,null,null,null,null,127,"CE"]
[{"$f":"B5B!A137","v":"12.8 - [Name of sub-vote]"},null,{"$f":"SUMIFS(Sheet1!S71_OriginalBudget,Sheet1!S71_SubMunicipalVoteNo,$AC:$AC,Sheet1!S71_A5CapexCode,$AD:$AD)","v":0},{"$f":"SUMIFS(Sheet1!S71_PreviousBudget,Sheet1!S71_SubMunicipalVoteNo,$AC:$AC,Sheet1!S71_A5CapexCode,$AD:$AD)","v":0},null,null,null,null,{"$f":"SUMIFS(Sheet1!S71_CurrentAdjustments,Sheet1!S71_SubMunicipalVoteNo,$AC:$AC,Sheet1!S71_A5CapexCode,$AD:$AD)","v":0},0,0,{"$f":"SUMIFS(Sheet1!S71_OY1AdjustedBudget,Sheet1!S71_SubMunicipalVoteNo,$AC:$AC,Sheet1!S71_A5CapexCode,$AD:$AD)","v":0},{"$f":"SUMIFS(Sheet1!S71_OY2AdjustedBudget,Sheet1!S71_SubMunicipalVoteNo,$AC:$AC,Sheet1!S71_A5CapexCode,$AD:$AD)","v":0},null,null,null,null,null,null,null,null,null,null,null,null,null,null,null,128,"CE"]
[{"$f":"B5B!A138","v":"12.9 - [Name of sub-vote]"},null,{"$f":"SUMIFS(Sheet1!S71_OriginalBudget,Sheet1!S71_SubMunicipalVoteNo,$AC:$AC,Sheet1!S71_A5CapexCode,$AD:$AD)","v":0},{"$f":"SUMIFS(Sheet1!S71_PreviousBudget,Sheet1!S71_SubMunicipalVoteNo,$AC:$AC,Sheet1!S71_A5CapexCode,$AD:$AD)","v":0},null,null,null,null,{"$f":"SUMIFS(Sheet1!S71_CurrentAdjustments,Sheet1!S71_SubMunicipalVoteNo,$AC:$AC,Sheet1!S71_A5CapexCode,$AD:$AD)","v":0},0,0,{"$f":"SUMIFS(Sheet1!S71_OY1AdjustedBudget,Sheet1!S71_SubMunicipalVoteNo,$AC:$AC,Sheet1!S71_A5CapexCode,$AD:$AD)","v":0},{"$f":"SUMIFS(Sheet1!S71_OY2AdjustedBudget,Sheet1!S71_SubMunicipalVoteNo,$AC:$AC,Sheet1!S71_A5CapexCode,$AD:$AD)","v":0},null,null,null,null,null,null,null,null,null,null,null,null,null,null,null,129,"CE"]
[{"$f":"B5B!A139","v":"12.10 - [Name of sub-vote]"},null,{"$f":"SUMIFS(Sheet1!S71_OriginalBudget,Sheet1!S71_SubMunicipalVoteNo,$AC:$AC,Sheet1!S71_A5CapexCode,$AD:$AD)","v":0},{"$f":"SUMIFS(Sheet1!S71_PreviousBudget,Sheet1!S71_SubMunicipalVoteNo,$AC:$AC,Sheet1!S71_A5CapexCode,$AD:$AD)","v":0},null,null,null,null,{"$f":"SUMIFS(Sheet1!S71_CurrentAdjustments,Sheet1!S71_SubMunicipalVoteNo,$AC:$AC,Sheet1!S71_A5CapexCode,$AD:$AD)","v":0},0,0,{"$f":"SUMIFS(Sheet1!S71_OY1AdjustedBudget,Sheet1!S71_SubMunicipalVoteNo,$AC:$AC,Sheet1!S71_A5CapexCode,$AD:$AD)","v":0},{"$f":"SUMIFS(Sheet1!S71_OY2AdjustedBudget,Sheet1!S71_SubMunicipalVoteNo,$AC:$AC,Sheet1!S71_A5CapexCode,$AD:$AD)","v":0},null,null,null,null,null,null,null,null,null,null,null,null,null,null,null,1210,"CE"]
[{"$f":"B5B!A140","v":"Vote 13 - [NAME OF VOTE 13]"},null,{"$f":"SUM(C310:C319)","v":0},0,0,0,0,0,0,0,0,{"$f":"SUM(L310:L319)","v":0},{"$f":"SUM(M310:M319)","v":0}]
[{"$f":"B5B!A141","v":"13.1 - [Name of sub-vote]"},null,{"$f":"SUMIFS(Sheet1!S71_OriginalBudget,Sheet1!S71_SubMunicipalVoteNo,$AC:$AC,Sheet1!S71_A5CapexCode,$AD:$AD)","v":0},{"$f":"SUMIFS(Sheet1!S71_PreviousBudget,Sheet1!S71_SubMunicipalVoteNo,$AC:$AC,Sheet1!S71_A5CapexCode,$AD:$AD)","v":0},null,null,null,null,{"$f":"SUMIFS(Sheet1!S71_CurrentAdjustments,Sheet1!S71_SubMunicipalVoteNo,$AC:$AC,Sheet1!S71_A5CapexCode,$AD:$AD)","v":0},0,0,{"$f":"SUMIFS(Sheet1!S71_OY1AdjustedBudget,Sheet1!S71_SubMunicipalVoteNo,$AC:$AC,Sheet1!S71_A5CapexCode,$AD:$AD)","v":0},{"$f":"SUMIFS(Sheet1!S71_OY2AdjustedBudget,Sheet1!S71_SubMunicipalVoteNo,$AC:$AC,Sheet1!S71_A5CapexCode,$AD:$AD)","v":0},null,null,null,null,null,null,null,null,null,null,null,null,null,null,null,131,"CE"]
[{"$f":"B5B!A142","v":"13.2 - [Name of sub-vote]"},null,{"$f":"SUMIFS(Sheet1!S71_OriginalBudget,Sheet1!S71_SubMunicipalVoteNo,$AC:$AC,Sheet1!S71_A5CapexCode,$AD:$AD)","v":0},{"$f":"SUMIFS(Sheet1!S71_PreviousBudget,Sheet1!S71_SubMunicipalVoteNo,$AC:$AC,Sheet1!S71_A5CapexCode,$AD:$AD)","v":0},null,null,null,null,{"$f":"SUMIFS(Sheet1!S71_CurrentAdjustments,Sheet1!S71_SubMunicipalVoteNo,$AC:$AC,Sheet1!S71_A5CapexCode,$AD:$AD)","v":0},0,0,{"$f":"SUMIFS(Sheet1!S71_OY1AdjustedBudget,Sheet1!S71_SubMunicipalVoteNo,$AC:$AC,Sheet1!S71_A5CapexCode,$AD:$AD)","v":0},{"$f":"SUMIFS(Sheet1!S71_OY2AdjustedBudget,Sheet1!S71_SubMunicipalVoteNo,$AC:$AC,Sheet1!S71_A5CapexCode,$AD:$AD)","v":0},null,null,null,null,null,null,null,null,null,null,null,null,null,null,null,132,"CE"]
[{"$f":"B5B!A143","v":"13.3 - [Name of sub-vote]"},null,{"$f":"SUMIFS(Sheet1!S71_OriginalBudget,Sheet1!S71_SubMunicipalVoteNo,$AC:$AC,Sheet1!S71_A5CapexCode,$AD:$AD)","v":0},{"$f":"SUMIFS(Sheet1!S71_PreviousBudget,Sheet1!S71_SubMunicipalVoteNo,$AC:$AC,Sheet1!S71_A5CapexCode,$AD:$AD)","v":0},null,null,null,null,{"$f":"SUMIFS(Sheet1!S71_CurrentAdjustments,Sheet1!S71_SubMunicipalVoteNo,$AC:$AC,Sheet1!S71_A5CapexCode,$AD:$AD)","v":0},0,0,{"$f":"SUMIFS(Sheet1!S71_OY1AdjustedBudget,Sheet1!S71_SubMunicipalVoteNo,$AC:$AC,Sheet1!S71_A5CapexCode,$AD:$AD)","v":0},{"$f":"SUMIFS(Sheet1!S71_OY2AdjustedBudget,Sheet1!S71_SubMunicipalVoteNo,$AC:$AC,Sheet1!S71_A5CapexCode,$AD:$AD)","v":0},null,null,null,null,null,null,null,null,null,null,null,null,null,null,null,133,"CE"]
[{"$f":"B5B!A144","v":"13.4 - [Name of sub-vote]"},null,{"$f":"SUMIFS(Sheet1!S71_OriginalBudget,Sheet1!S71_SubMunicipalVoteNo,$AC:$AC,Sheet1!S71_A5CapexCode,$AD:$AD)","v":0},{"$f":"SUMIFS(Sheet1!S71_PreviousBudget,Sheet1!S71_SubMunicipalVoteNo,$AC:$AC,Sheet1!S71_A5CapexCode,$AD:$AD)","v":0},null,null,null,null,{"$f":"SUMIFS(Sheet1!S71_CurrentAdjustments,Sheet1!S71_SubMunicipalVoteNo,$AC:$AC,Sheet1!S71_A5CapexCode,$AD:$AD)","v":0},0,0,{"$f":"SUMIFS(Sheet1!S71_OY1AdjustedBudget,Sheet1!S71_SubMunicipalVoteNo,$AC:$AC,Sheet1!S71_A5CapexCode,$AD:$AD)","v":0},{"$f":"SUMIFS(Sheet1!S71_OY2AdjustedBudget,Sheet1!S71_SubMunicipalVoteNo,$AC:$AC,Sheet1!S71_A5CapexCode,$AD:$AD)","v":0},null,null,null,null,null,null,null,null,null,null,null,null,null,null,null,134,"CE"]
[{"$f":"B5B!A145","v":"13.5 - [Name of sub-vote]"},null,{"$f":"SUMIFS(Sheet1!S71_OriginalBudget,Sheet1!S71_SubMunicipalVoteNo,$AC:$AC,Sheet1!S71_A5CapexCode,$AD:$AD)","v":0},{"$f":"SUMIFS(Sheet1!S71_PreviousBudget,Sheet1!S71_SubMunicipalVoteNo,$AC:$AC,Sheet1!S71_A5CapexCode,$AD:$AD)","v":0},null,null,null,null,{"$f":"SUMIFS(Sheet1!S71_CurrentAdjustments,Sheet1!S71_SubMunicipalVoteNo,$AC:$AC,Sheet1!S71_A5CapexCode,$AD:$AD)","v":0},0,0,{"$f":"SUMIFS(Sheet1!S71_OY1AdjustedBudget,Sheet1!S71_SubMunicipalVoteNo,$AC:$AC,Sheet1!S71_A5CapexCode,$AD:$AD)","v":0},{"$f":"SUMIFS(Sheet1!S71_OY2AdjustedBudget,Sheet1!S71_SubMunicipalVoteNo,$AC:$AC,Sheet1!S71_A5CapexCode,$AD:$AD)","v":0},null,null,null,null,null,null,null,null,null,null,null,null,null,null,null,135,"CE"]
[{"$f":"B5B!A146","v":"13.6 - [Name of sub-vote]"},null,{"$f":"SUMIFS(Sheet1!S71_OriginalBudget,Sheet1!S71_SubMunicipalVoteNo,$AC:$AC,Sheet1!S71_A5CapexCode,$AD:$AD)","v":0},{"$f":"SUMIFS(Sheet1!S71_PreviousBudget,Sheet1!S71_SubMunicipalVoteNo,$AC:$AC,Sheet1!S71_A5CapexCode,$AD:$AD)","v":0},null,null,null,null,{"$f":"SUMIFS(Sheet1!S71_CurrentAdjustments,Sheet1!S71_SubMunicipalVoteNo,$AC:$AC,Sheet1!S71_A5CapexCode,$AD:$AD)","v":0},0,0,{"$f":"SUMIFS(Sheet1!S71_OY1AdjustedBudget,Sheet1!S71_SubMunicipalVoteNo,$AC:$AC,Sheet1!S71_A5CapexCode,$AD:$AD)","v":0},{"$f":"SUMIFS(Sheet1!S71_OY2AdjustedBudget,Sheet1!S71_SubMunicipalVoteNo,$AC:$AC,Sheet1!S71_A5CapexCode,$AD:$AD)","v":0},null,null,null,null,null,null,null,null,null,null,null,null,null,null,null,136,"CE"]
[{"$f":"B5B!A147","v":"13.7 - [Name of sub-vote]"},null,{"$f":"SUMIFS(Sheet1!S71_OriginalBudget,Sheet1!S71_SubMunicipalVoteNo,$AC:$AC,Sheet1!S71_A5CapexCode,$AD:$AD)","v":0},{"$f":"SUMIFS(Sheet1!S71_PreviousBudget,Sheet1!S71_SubMunicipalVoteNo,$AC:$AC,Sheet1!S71_A5CapexCode,$AD:$AD)","v":0},null,null,null,null,{"$f":"SUMIFS(Sheet1!S71_CurrentAdjustments,Sheet1!S71_SubMunicipalVoteNo,$AC:$AC,Sheet1!S71_A5CapexCode,$AD:$AD)","v":0},0,0,{"$f":"SUMIFS(Sheet1!S71_OY1AdjustedBudget,Sheet1!S71_SubMunicipalVoteNo,$AC:$AC,Sheet1!S71_A5CapexCode,$AD:$AD)","v":0},{"$f":"SUMIFS(Sheet1!S71_OY2AdjustedBudget,Sheet1!S71_SubMunicipalVoteNo,$AC:$AC,Sheet1!S71_A5CapexCode,$AD:$AD)","v":0},null,null,null,null,null,null,null,null,null,null,null,null,null,null,null,137,"CE"]
[{"$f":"B5B!A148","v":"13.8 - [Name of sub-vote]"},null,{"$f":"SUMIFS(Sheet1!S71_OriginalBudget,Sheet1!S71_SubMunicipalVoteNo,$AC:$AC,Sheet1!S71_A5CapexCode,$AD:$AD)","v":0},{"$f":"SUMIFS(Sheet1!S71_PreviousBudget,Sheet1!S71_SubMunicipalVoteNo,$AC:$AC,Sheet1!S71_A5CapexCode,$AD:$AD)","v":0},null,null,null,null,{"$f":"SUMIFS(Sheet1!S71_CurrentAdjustments,Sheet1!S71_SubMunicipalVoteNo,$AC:$AC,Sheet1!S71_A5CapexCode,$AD:$AD)","v":0},0,0,{"$f":"SUMIFS(Sheet1!S71_OY1AdjustedBudget,Sheet1!S71_SubMunicipalVoteNo,$AC:$AC,Sheet1!S71_A5CapexCode,$AD:$AD)","v":0},{"$f":"SUMIFS(Sheet1!S71_OY2AdjustedBudget,Sheet1!S71_SubMunicipalVoteNo,$AC:$AC,Sheet1!S71_A5CapexCode,$AD:$AD)","v":0},null,null,null,null,null,null,null,null,null,null,null,null,null,null,null,138,"CE"]
[{"$f":"B5B!A149","v":"13.9 - [Name of sub-vote]"},null,{"$f":"SUMIFS(Sheet1!S71_OriginalBudget,Sheet1!S71_SubMunicipalVoteNo,$AC:$AC,Sheet1!S71_A5CapexCode,$AD:$AD)","v":0},{"$f":"SUMIFS(Sheet1!S71_PreviousBudget,Sheet1!S71_SubMunicipalVoteNo,$AC:$AC,Sheet1!S71_A5CapexCode,$AD:$AD)","v":0},null,null,null,null,{"$f":"SUMIFS(Sheet1!S71_CurrentAdjustments,Sheet1!S71_SubMunicipalVoteNo,$AC:$AC,Sheet1!S71_A5CapexCode,$AD:$AD)","v":0},0,0,{"$f":"SUMIFS(Sheet1!S71_OY1AdjustedBudget,Sheet1!S71_SubMunicipalVoteNo,$AC:$AC,Sheet1!S71_A5CapexCode,$AD:$AD)","v":0},{"$f":"SUMIFS(Sheet1!S71_OY2AdjustedBudget,Sheet1!S71_SubMunicipalVoteNo,$AC:$AC,Sheet1!S71_A5CapexCode,$AD:$AD)","v":0},null,null,null,null,null,null,null,null,null,null,null,null,null,null,null,139,"CE"]
[{"$f":"B5B!A150","v":"13.10 - [Name of sub-vote]"},null,{"$f":"SUMIFS(Sheet1!S71_OriginalBudget,Sheet1!S71_SubMunicipalVoteNo,$AC:$AC,Sheet1!S71_A5CapexCode,$AD:$AD)","v":0},{"$f":"SUMIFS(Sheet1!S71_PreviousBudget,Sheet1!S71_SubMunicipalVoteNo,$AC:$AC,Sheet1!S71_A5CapexCode,$AD:$AD)","v":0},null,null,null,null,{"$f":"SUMIFS(Sheet1!S71_CurrentAdjustments,Sheet1!S71_SubMunicipalVoteNo,$AC:$AC,Sheet1!S71_A5CapexCode,$AD:$AD)","v":0},0,0,{"$f":"SUMIFS(Sheet1!S71_OY1AdjustedBudget,Sheet1!S71_SubMunicipalVoteNo,$AC:$AC,Sheet1!S71_A5CapexCode,$AD:$AD)","v":0},{"$f":"SUMIFS(Sheet1!S71_OY2AdjustedBudget,Sheet1!S71_SubMunicipalVoteNo,$AC:$AC,Sheet1!S71_A5CapexCode,$AD:$AD)","v":0},null,null,null,null,null,null,null,null,null,null,null,null,null,null,null,1310,"CE"]
[{"$f":"B5B!A151","v":"Vote 14 - [NAME OF VOTE 14]"},null,{"$f":"SUM(C321:C330)","v":0},0,0,0,0,0,0,0,0,{"$f":"SUM(L321:L330)","v":0},{"$f":"SUM(M321:M330)","v":0}]
[{"$f":"B5B!A152","v":"14.1 - [Name of sub-vote]"},null,{"$f":"SUMIFS(Sheet1!S71_OriginalBudget,Sheet1!S71_SubMunicipalVoteNo,$AC:$AC,Sheet1!S71_A5CapexCode,$AD:$AD)","v":0},{"$f":"SUMIFS(Sheet1!S71_PreviousBudget,Sheet1!S71_SubMunicipalVoteNo,$AC:$AC,Sheet1!S71_A5CapexCode,$AD:$AD)","v":0},null,null,null,null,{"$f":"SUMIFS(Sheet1!S71_CurrentAdjustments,Sheet1!S71_SubMunicipalVoteNo,$AC:$AC,Sheet1!S71_A5CapexCode,$AD:$AD)","v":0},0,0,{"$f":"SUMIFS(Sheet1!S71_OY1AdjustedBudget,Sheet1!S71_SubMunicipalVoteNo,$AC:$AC,Sheet1!S71_A5CapexCode,$AD:$AD)","v":0},{"$f":"SUMIFS(Sheet1!S71_OY2AdjustedBudget,Sheet1!S71_SubMunicipalVoteNo,$AC:$AC,Sheet1!S71_A5CapexCode,$AD:$AD)","v":0},null,null,null,null,null,null,null,null,null,null,null,null,null,null,null,141,"CE"]
[{"$f":"B5B!A153","v":"14.2 - [Name of sub-vote]"},null,{"$f":"SUMIFS(Sheet1!S71_OriginalBudget,Sheet1!S71_SubMunicipalVoteNo,$AC:$AC,Sheet1!S71_A5CapexCode,$AD:$AD)","v":0},{"$f":"SUMIFS(Sheet1!S71_PreviousBudget,Sheet1!S71_SubMunicipalVoteNo,$AC:$AC,Sheet1!S71_A5CapexCode,$AD:$AD)","v":0},null,null,null,null,{"$f":"SUMIFS(Sheet1!S71_CurrentAdjustments,Sheet1!S71_SubMunicipalVoteNo,$AC:$AC,Sheet1!S71_A5CapexCode,$AD:$AD)","v":0},0,0,{"$f":"SUMIFS(Sheet1!S71_OY1AdjustedBudget,Sheet1!S71_SubMunicipalVoteNo,$AC:$AC,Sheet1!S71_A5CapexCode,$AD:$AD)","v":0},{"$f":"SUMIFS(Sheet1!S71_OY2AdjustedBudget,Sheet1!S71_SubMunicipalVoteNo,$AC:$AC,Sheet1!S71_A5CapexCode,$AD:$AD)","v":0},null,null,null,null,null,null,null,null,null,null,null,null,null,null,null,142,"CE"]
[{"$f":"B5B!A154","v":"14.3 - [Name of sub-vote]"},null,{"$f":"SUMIFS(Sheet1!S71_OriginalBudget,Sheet1!S71_SubMunicipalVoteNo,$AC:$AC,Sheet1!S71_A5CapexCode,$AD:$AD)","v":0},{"$f":"SUMIFS(Sheet1!S71_PreviousBudget,Sheet1!S71_SubMunicipalVoteNo,$AC:$AC,Sheet1!S71_A5CapexCode,$AD:$AD)","v":0},null,null,null,null,{"$f":"SUMIFS(Sheet1!S71_CurrentAdjustments,Sheet1!S71_SubMunicipalVoteNo,$AC:$AC,Sheet1!S71_A5CapexCode,$AD:$AD)","v":0},0,0,{"$f":"SUMIFS(Sheet1!S71_OY1AdjustedBudget,Sheet1!S71_SubMunicipalVoteNo,$AC:$AC,Sheet1!S71_A5CapexCode,$AD:$AD)","v":0},{"$f":"SUMIFS(Sheet1!S71_OY2AdjustedBudget,Sheet1!S71_SubMunicipalVoteNo,$AC:$AC,Sheet1!S71_A5CapexCode,$AD:$AD)","v":0},null,null,null,null,null,null,null,null,null,null,null,null,null,null,null,143,"CE"]
[{"$f":"B5B!A155","v":"14.4 - [Name of sub-vote]"},null,{"$f":"SUMIFS(Sheet1!S71_OriginalBudget,Sheet1!S71_SubMunicipalVoteNo,$AC:$AC,Sheet1!S71_A5CapexCode,$AD:$AD)","v":0},{"$f":"SUMIFS(Sheet1!S71_PreviousBudget,Sheet1!S71_SubMunicipalVoteNo,$AC:$AC,Sheet1!S71_A5CapexCode,$AD:$AD)","v":0},null,null,null,null,{"$f":"SUMIFS(Sheet1!S71_CurrentAdjustments,Sheet1!S71_SubMunicipalVoteNo,$AC:$AC,Sheet1!S71_A5CapexCode,$AD:$AD)","v":0},0,0,{"$f":"SUMIFS(Sheet1!S71_OY1AdjustedBudget,Sheet1!S71_SubMunicipalVoteNo,$AC:$AC,Sheet1!S71_A5CapexCode,$AD:$AD)","v":0},{"$f":"SUMIFS(Sheet1!S71_OY2AdjustedBudget,Sheet1!S71_SubMunicipalVoteNo,$AC:$AC,Sheet1!S71_A5CapexCode,$AD:$AD)","v":0},null,null,null,null,null,null,null,null,null,null,null,null,null,null,null,144,"CE"]
[{"$f":"B5B!A156","v":"14.5 - [Name of sub-vote]"},null,{"$f":"SUMIFS(Sheet1!S71_OriginalBudget,Sheet1!S71_SubMunicipalVoteNo,$AC:$AC,Sheet1!S71_A5CapexCode,$AD:$AD)","v":0},{"$f":"SUMIFS(Sheet1!S71_PreviousBudget,Sheet1!S71_SubMunicipalVoteNo,$AC:$AC,Sheet1!S71_A5CapexCode,$AD:$AD)","v":0},null,null,null,null,{"$f":"SUMIFS(Sheet1!S71_CurrentAdjustments,Sheet1!S71_SubMunicipalVoteNo,$AC:$AC,Sheet1!S71_A5CapexCode,$AD:$AD)","v":0},0,0,{"$f":"SUMIFS(Sheet1!S71_OY1AdjustedBudget,Sheet1!S71_SubMunicipalVoteNo,$AC:$AC,Sheet1!S71_A5CapexCode,$AD:$AD)","v":0},{"$f":"SUMIFS(Sheet1!S71_OY2AdjustedBudget,Sheet1!S71_SubMunicipalVoteNo,$AC:$AC,Sheet1!S71_A5CapexCode,$AD:$AD)","v":0},null,null,null,null,null,null,null,null,null,null,null,null,null,null,null,145,"CE"]
[{"$f":"B5B!A157","v":"14.6 - [Name of sub-vote]"},null,{"$f":"SUMIFS(Sheet1!S71_OriginalBudget,Sheet1!S71_SubMunicipalVoteNo,$AC:$AC,Sheet1!S71_A5CapexCode,$AD:$AD)","v":0},{"$f":"SUMIFS(Sheet1!S71_PreviousBudget,Sheet1!S71_SubMunicipalVoteNo,$AC:$AC,Sheet1!S71_A5CapexCode,$AD:$AD)","v":0},null,null,null,null,{"$f":"SUMIFS(Sheet1!S71_CurrentAdjustments,Sheet1!S71_SubMunicipalVoteNo,$AC:$AC,Sheet1!S71_A5CapexCode,$AD:$AD)","v":0},0,0,{"$f":"SUMIFS(Sheet1!S71_OY1AdjustedBudget,Sheet1!S71_SubMunicipalVoteNo,$AC:$AC,Sheet1!S71_A5CapexCode,$AD:$AD)","v":0},{"$f":"SUMIFS(Sheet1!S71_OY2AdjustedBudget,Sheet1!S71_SubMunicipalVoteNo,$AC:$AC,Sheet1!S71_A5CapexCode,$AD:$AD)","v":0},null,null,null,null,null,null,null,null,null,null,null,null,null,null,null,146,"CE"]
[{"$f":"B5B!A158","v":"14.7 - [Name of sub-vote]"},null,{"$f":"SUMIFS(Sheet1!S71_OriginalBudget,Sheet1!S71_SubMunicipalVoteNo,$AC:$AC,Sheet1!S71_A5CapexCode,$AD:$AD)","v":0},{"$f":"SUMIFS(Sheet1!S71_PreviousBudget,Sheet1!S71_SubMunicipalVoteNo,$AC:$AC,Sheet1!S71_A5CapexCode,$AD:$AD)","v":0},null,null,null,null,{"$f":"SUMIFS(Sheet1!S71_CurrentAdjustments,Sheet1!S71_SubMunicipalVoteNo,$AC:$AC,Sheet1!S71_A5CapexCode,$AD:$AD)","v":0},0,0,{"$f":"SUMIFS(Sheet1!S71_OY1AdjustedBudget,Sheet1!S71_SubMunicipalVoteNo,$AC:$AC,Sheet1!S71_A5CapexCode,$AD:$AD)","v":0},{"$f":"SUMIFS(Sheet1!S71_OY2AdjustedBudget,Sheet1!S71_SubMunicipalVoteNo,$AC:$AC,Sheet1!S71_A5CapexCode,$AD:$AD)","v":0},null,null,null,null,null,null,null,null,null,null,null,null,null,null,null,147,"CE"]
[{"$f":"B5B!A159","v":"14.8 - [Name of sub-vote]"},null,{"$f":"SUMIFS(Sheet1!S71_OriginalBudget,Sheet1!S71_SubMunicipalVoteNo,$AC:$AC,Sheet1!S71_A5CapexCode,$AD:$AD)","v":0},{"$f":"SUMIFS(Sheet1!S71_PreviousBudget,Sheet1!S71_SubMunicipalVoteNo,$AC:$AC,Sheet1!S71_A5CapexCode,$AD:$AD)","v":0},null,null,null,null,{"$f":"SUMIFS(Sheet1!S71_CurrentAdjustments,Sheet1!S71_SubMunicipalVoteNo,$AC:$AC,Sheet1!S71_A5CapexCode,$AD:$AD)","v":0},0,0,{"$f":"SUMIFS(Sheet1!S71_OY1AdjustedBudget,Sheet1!S71_SubMunicipalVoteNo,$AC:$AC,Sheet1!S71_A5CapexCode,$AD:$AD)","v":0},{"$f":"SUMIFS(Sheet1!S71_OY2AdjustedBudget,Sheet1!S71_SubMunicipalVoteNo,$AC:$AC,Sheet1!S71_A5CapexCode,$AD:$AD)","v":0},null,null,null,null,null,null,null,null,null,null,null,null,null,null,null,148,"CE"]
[{"$f":"B5B!A160","v":"14.9 - [Name of sub-vote]"},null,{"$f":"SUMIFS(Sheet1!S71_OriginalBudget,Sheet1!S71_SubMunicipalVoteNo,$AC:$AC,Sheet1!S71_A5CapexCode,$AD:$AD)","v":0},{"$f":"SUMIFS(Sheet1!S71_PreviousBudget,Sheet1!S71_SubMunicipalVoteNo,$AC:$AC,Sheet1!S71_A5CapexCode,$AD:$AD)","v":0},null,null,null,null,{"$f":"SUMIFS(Sheet1!S71_CurrentAdjustments,Sheet1!S71_SubMunicipalVoteNo,$AC:$AC,Sheet1!S71_A5CapexCode,$AD:$AD)","v":0},0,0,{"$f":"SUMIFS(Sheet1!S71_OY1AdjustedBudget,Sheet1!S71_SubMunicipalVoteNo,$AC:$AC,Sheet1!S71_A5CapexCode,$AD:$AD)","v":0},{"$f":"SUMIFS(Sheet1!S71_OY2AdjustedBudget,Sheet1!S71_SubMunicipalVoteNo,$AC:$AC,Sheet1!S71_A5CapexCode,$AD:$AD)","v":0},null,null,null,null,null,null,null,null,null,null,null,null,null,null,null,149,"CE"]
[{"$f":"B5B!A161","v":"14.10 - [Name of sub-vote]"},null,{"$f":"SUMIFS(Sheet1!S71_OriginalBudget,Sheet1!S71_SubMunicipalVoteNo,$AC:$AC,Sheet1!S71_A5CapexCode,$AD:$AD)","v":0},{"$f":"SUMIFS(Sheet1!S71_PreviousBudget,Sheet1!S71_SubMunicipalVoteNo,$AC:$AC,Sheet1!S71_A5CapexCode,$AD:$AD)","v":0},null,null,null,null,{"$f":"SUMIFS(Sheet1!S71_CurrentAdjustments,Sheet1!S71_SubMunicipalVoteNo,$AC:$AC,Sheet1!S71_A5CapexCode,$AD:$AD)","v":0},0,0,{"$f":"SUMIFS(Sheet1!S71_OY1AdjustedBudget,Sheet1!S71_SubMunicipalVoteNo,$AC:$AC,Sheet1!S71_A5CapexCode,$AD:$AD)","v":0},{"$f":"SUMIFS(Sheet1!S71_OY2AdjustedBudget,Sheet1!S71_SubMunicipalVoteNo,$AC:$AC,Sheet1!S71_A5CapexCode,$AD:$AD)","v":0},null,null,null,null,null,null,null,null,null,null,null,null,null,null,null,1410,"CE"]
[{"$f":"B5B!A162","v":"Vote 15 - [NAME OF VOTE 15]"},null,{"$f":"SUM(C332:C341)","v":0},0,0,0,0,0,0,0,0,{"$f":"SUM(L332:L341)","v":0},{"$f":"SUM(M332:M341)","v":0}]
[{"$f":"B5B!A163","v":"15.1 - [Name of sub-vote]"},null,{"$f":"SUMIFS(Sheet1!S71_OriginalBudget,Sheet1!S71_SubMunicipalVoteNo,$AC:$AC,Sheet1!S71_A5CapexCode,$AD:$AD)","v":0},{"$f":"SUMIFS(Sheet1!S71_PreviousBudget,Sheet1!S71_SubMunicipalVoteNo,$AC:$AC,Sheet1!S71_A5CapexCode,$AD:$AD)","v":0},null,null,null,null,{"$f":"SUMIFS(Sheet1!S71_CurrentAdjustments,Sheet1!S71_SubMunicipalVoteNo,$AC:$AC,Sheet1!S71_A5CapexCode,$AD:$AD)","v":0},0,0,{"$f":"SUMIFS(Sheet1!S71_OY1AdjustedBudget,Sheet1!S71_SubMunicipalVoteNo,$AC:$AC,Sheet1!S71_A5CapexCode,$AD:$AD)","v":0},{"$f":"SUMIFS(Sheet1!S71_OY2AdjustedBudget,Sheet1!S71_SubMunicipalVoteNo,$AC:$AC,Sheet1!S71_A5CapexCode,$AD:$AD)","v":0},null,null,null,null,null,null,null,null,null,null,null,null,null,null,null,151,"CE"]
[{"$f":"B5B!A164","v":"15.2 - [Name of sub-vote]"},null,{"$f":"SUMIFS(Sheet1!S71_OriginalBudget,Sheet1!S71_SubMunicipalVoteNo,$AC:$AC,Sheet1!S71_A5CapexCode,$AD:$AD)","v":0},{"$f":"SUMIFS(Sheet1!S71_PreviousBudget,Sheet1!S71_SubMunicipalVoteNo,$AC:$AC,Sheet1!S71_A5CapexCode,$AD:$AD)","v":0},null,null,null,null,{"$f":"SUMIFS(Sheet1!S71_CurrentAdjustments,Sheet1!S71_SubMunicipalVoteNo,$AC:$AC,Sheet1!S71_A5CapexCode,$AD:$AD)","v":0},0,0,{"$f":"SUMIFS(Sheet1!S71_OY1AdjustedBudget,Sheet1!S71_SubMunicipalVoteNo,$AC:$AC,Sheet1!S71_A5CapexCode,$AD:$AD)","v":0},{"$f":"SUMIFS(Sheet1!S71_OY2AdjustedBudget,Sheet1!S71_SubMunicipalVoteNo,$AC:$AC,Sheet1!S71_A5CapexCode,$AD:$AD)","v":0},null,null,null,null,null,null,null,null,null,null,null,null,null,null,null,152,"CE"]
[{"$f":"B5B!A165","v":"15.3 - [Name of sub-vote]"},null,{"$f":"SUMIFS(Sheet1!S71_OriginalBudget,Sheet1!S71_SubMunicipalVoteNo,$AC:$AC,Sheet1!S71_A5CapexCode,$AD:$AD)","v":0},{"$f":"SUMIFS(Sheet1!S71_PreviousBudget,Sheet1!S71_SubMunicipalVoteNo,$AC:$AC,Sheet1!S71_A5CapexCode,$AD:$AD)","v":0},null,null,null,null,{"$f":"SUMIFS(Sheet1!S71_CurrentAdjustments,Sheet1!S71_SubMunicipalVoteNo,$AC:$AC,Sheet1!S71_A5CapexCode,$AD:$AD)","v":0},0,0,{"$f":"SUMIFS(Sheet1!S71_OY1AdjustedBudget,Sheet1!S71_SubMunicipalVoteNo,$AC:$AC,Sheet1!S71_A5CapexCode,$AD:$AD)","v":0},{"$f":"SUMIFS(Sheet1!S71_OY2AdjustedBudget,Sheet1!S71_SubMunicipalVoteNo,$AC:$AC,Sheet1!S71_A5CapexCode,$AD:$AD)","v":0},null,null,null,null,null,null,null,null,null,null,null,null,null,null,null,153,"CE"]
[{"$f":"B5B!A166","v":"15.4 - [Name of sub-vote]"},null,{"$f":"SUMIFS(Sheet1!S71_OriginalBudget,Sheet1!S71_SubMunicipalVoteNo,$AC:$AC,Sheet1!S71_A5CapexCode,$AD:$AD)","v":0},{"$f":"SUMIFS(Sheet1!S71_PreviousBudget,Sheet1!S71_SubMunicipalVoteNo,$AC:$AC,Sheet1!S71_A5CapexCode,$AD:$AD)","v":0},null,null,null,null,{"$f":"SUMIFS(Sheet1!S71_CurrentAdjustments,Sheet1!S71_SubMunicipalVoteNo,$AC:$AC,Sheet1!S71_A5CapexCode,$AD:$AD)","v":0},0,0,{"$f":"SUMIFS(Sheet1!S71_OY1AdjustedBudget,Sheet1!S71_SubMunicipalVoteNo,$AC:$AC,Sheet1!S71_A5CapexCode,$AD:$AD)","v":0},{"$f":"SUMIFS(Sheet1!S71_OY2AdjustedBudget,Sheet1!S71_SubMunicipalVoteNo,$AC:$AC,Sheet1!S71_A5CapexCode,$AD:$AD)","v":0},null,null,null,null,null,null,null,null,null,null,null,null,null,null,null,154,"CE"]
[{"$f":"B5B!A167","v":"15.5 - [Name of sub-vote]"},null,{"$f":"SUMIFS(Sheet1!S71_OriginalBudget,Sheet1!S71_SubMunicipalVoteNo,$AC:$AC,Sheet1!S71_A5CapexCode,$AD:$AD)","v":0},{"$f":"SUMIFS(Sheet1!S71_PreviousBudget,Sheet1!S71_SubMunicipalVoteNo,$AC:$AC,Sheet1!S71_A5CapexCode,$AD:$AD)","v":0},null,null,null,null,{"$f":"SUMIFS(Sheet1!S71_CurrentAdjustments,Sheet1!S71_SubMunicipalVoteNo,$AC:$AC,Sheet1!S71_A5CapexCode,$AD:$AD)","v":0},0,0,{"$f":"SUMIFS(Sheet1!S71_OY1AdjustedBudget,Sheet1!S71_SubMunicipalVoteNo,$AC:$AC,Sheet1!S71_A5CapexCode,$AD:$AD)","v":0},{"$f":"SUMIFS(Sheet1!S71_OY2AdjustedBudget,Sheet1!S71_SubMunicipalVoteNo,$AC:$AC,Sheet1!S71_A5CapexCode,$AD:$AD)","v":0},null,null,null,null,null,null,null,null,null,null,null,null,null,null,null,155,"CE"]
[{"$f":"B5B!A168","v":"15.6 - [Name of sub-vote]"},null,{"$f":"SUMIFS(Sheet1!S71_OriginalBudget,Sheet1!S71_SubMunicipalVoteNo,$AC:$AC,Sheet1!S71_A5CapexCode,$AD:$AD)","v":0},{"$f":"SUMIFS(Sheet1!S71_PreviousBudget,Sheet1!S71_SubMunicipalVoteNo,$AC:$AC,Sheet1!S71_A5CapexCode,$AD:$AD)","v":0},null,null,null,null,{"$f":"SUMIFS(Sheet1!S71_CurrentAdjustments,Sheet1!S71_SubMunicipalVoteNo,$AC:$AC,Sheet1!S71_A5CapexCode,$AD:$AD)","v":0},0,0,{"$f":"SUMIFS(Sheet1!S71_OY1AdjustedBudget,Sheet1!S71_SubMunicipalVoteNo,$AC:$AC,Sheet1!S71_A5CapexCode,$AD:$AD)","v":0},{"$f":"SUMIFS(Sheet1!S71_OY2AdjustedBudget,Sheet1!S71_SubMunicipalVoteNo,$AC:$AC,Sheet1!S71_A5CapexCode,$AD:$AD)","v":0},null,null,null,null,null,null,null,null,null,null,null,null,null,null,null,156,"CE"]
[{"$f":"B5B!A169","v":"15.7 - [Name of sub-vote]"},null,{"$f":"SUMIFS(Sheet1!S71_OriginalBudget,Sheet1!S71_SubMunicipalVoteNo,$AC:$AC,Sheet1!S71_A5CapexCode,$AD:$AD)","v":0},{"$f":"SUMIFS(Sheet1!S71_PreviousBudget,Sheet1!S71_SubMunicipalVoteNo,$AC:$AC,Sheet1!S71_A5CapexCode,$AD:$AD)","v":0},null,null,null,null,{"$f":"SUMIFS(Sheet1!S71_CurrentAdjustments,Sheet1!S71_SubMunicipalVoteNo,$AC:$AC,Sheet1!S71_A5CapexCode,$AD:$AD)","v":0},0,0,{"$f":"SUMIFS(Sheet1!S71_OY1AdjustedBudget,Sheet1!S71_SubMunicipalVoteNo,$AC:$AC,Sheet1!S71_A5CapexCode,$AD:$AD)","v":0},{"$f":"SUMIFS(Sheet1!S71_OY2AdjustedBudget,Sheet1!S71_SubMunicipalVoteNo,$AC:$AC,Sheet1!S71_A5CapexCode,$AD:$AD)","v":0},null,null,null,null,null,null,null,null,null,null,null,null,null,null,null,157,"CE"]
[{"$f":"B5B!A170","v":"15.8 - [Name of sub-vote]"},null,{"$f":"SUMIFS(Sheet1!S71_OriginalBudget,Sheet1!S71_SubMunicipalVoteNo,$AC:$AC,Sheet1!S71_A5CapexCode,$AD:$AD)","v":0},{"$f":"SUMIFS(Sheet1!S71_PreviousBudget,Sheet1!S71_SubMunicipalVoteNo,$AC:$AC,Sheet1!S71_A5CapexCode,$AD:$AD)","v":0},null,null,null,null,{"$f":"SUMIFS(Sheet1!S71_CurrentAdjustments,Sheet1!S71_SubMunicipalVoteNo,$AC:$AC,Sheet1!S71_A5CapexCode,$AD:$AD)","v":0},0,0,{"$f":"SUMIFS(Sheet1!S71_OY1AdjustedBudget,Sheet1!S71_SubMunicipalVoteNo,$AC:$AC,Sheet1!S71_A5CapexCode,$AD:$AD)","v":0},{"$f":"SUMIFS(Sheet1!S71_OY2AdjustedBudget,Sheet1!S71_SubMunicipalVoteNo,$AC:$AC,Sheet1!S71_A5CapexCode,$AD:$AD)","v":0},null,null,null,null,null,null,null,null,null,null,null,null,null,null,null,158,"CE"]
[{"$f":"B5B!A171","v":"15.9 - [Name of sub-vote]"},null,{"$f":"SUMIFS(Sheet1!S71_OriginalBudget,Sheet1!S71_SubMunicipalVoteNo,$AC:$AC,Sheet1!S71_A5CapexCode,$AD:$AD)","v":0},{"$f":"SUMIFS(Sheet1!S71_PreviousBudget,Sheet1!S71_SubMunicipalVoteNo,$AC:$AC,Sheet1!S71_A5CapexCode,$AD:$AD)","v":0},null,null,null,null,{"$f":"SUMIFS(Sheet1!S71_CurrentAdjustments,Sheet1!S71_SubMunicipalVoteNo,$AC:$AC,Sheet1!S71_A5CapexCode,$AD:$AD)","v":0},0,0,{"$f":"SUMIFS(Sheet1!S71_OY1AdjustedBudget,Sheet1!S71_SubMunicipalVoteNo,$AC:$AC,Sheet1!S71_A5CapexCode,$AD:$AD)","v":0},{"$f":"SUMIFS(Sheet1!S71_OY2AdjustedBudget,Sheet1!S71_SubMunicipalVoteNo,$AC:$AC,Sheet1!S71_A5CapexCode,$AD:$AD)","v":0},null,null,null,null,null,null,null,null,null,null,null,null,null,null,null,159,"CE"]
[{"$f":"B5B!A172","v":"15.10 - [Name of sub-vote]"},null,{"$f":"SUMIFS(Sheet1!S71_OriginalBudget,Sheet1!S71_SubMunicipalVoteNo,$AC:$AC,Sheet1!S71_A5CapexCode,$AD:$AD)","v":0},{"$f":"SUMIFS(Sheet1!S71_PreviousBudget,Sheet1!S71_SubMunicipalVoteNo,$AC:$AC,Sheet1!S71_A5CapexCode,$AD:$AD)","v":0},null,null,null,null,{"$f":"SUMIFS(Sheet1!S71_CurrentAdjustments,Sheet1!S71_SubMunicipalVoteNo,$AC:$AC,Sheet1!S71_A5CapexCode,$AD:$AD)","v":0},0,0,{"$f":"SUMIFS(Sheet1!S71_OY1AdjustedBudget,Sheet1!S71_SubMunicipalVoteNo,$AC:$AC,Sheet1!S71_A5CapexCode,$AD:$AD)","v":0},{"$f":"SUMIFS(Sheet1!S71_OY2AdjustedBudget,Sheet1!S71_SubMunicipalVoteNo,$AC:$AC,Sheet1!S71_A5CapexCode,$AD:$AD)","v":0},null,null,null,null,null,null,null,null,null,null,null,null,null,null,null,1510,"CE"]
["Capital single-year expenditure sub-total",null,{"$f":"C177+C188+C199+C210+C221+C232+C243+C254+C265+C287+C298+C309+C320+C331+C276","v":127599815},{"$f":"D177+D188+D199+D210+D221+D232+D243+D254+D265+D287+D298+D309+D320+D331+D276","v":133829175},0,0,0,1985217.38,0,1985217.38,135814392.38,{"$f":"L177+L188+L199+L210+L221+L232+L243+L254+L265+L287+L298+L309+L320+L331+L276","v":70121348},{"$f":"M177+M188+M199+M210+M221+M232+M243+M254+M265+M287+M298+M309+M320+M331+M276","v":53415522}]
["Total Capital Expenditure",null,{"$f":"C342+C173","v":127599815},{"$f":"D342+D173","v":133829175},0,0,0,1985217.38,0,{"$f":"SUM(E343:I343)","v":1985217.38},{"$f":"IF(D343=0,C343+J343,D343+J343)","v":135814392.38},{"$f":"L342+L173","v":70121348},{"$f":"M342+M173","v":53415522}]
[]
[]
[{"$f":"head27a","v":"References"}]
["1. Insert 'Vote'; e.g. Department, if different to standard structure"]
["2. Must reconcile to Financial Performance ('Revenue and Expenditure by Standard Classification' and 'Revenue and Expenditure')"]
["3. Assign share in 'associate' to relevant Vote"]

{"sheet":"B6-FinPos","index":32,"n_rows":69,"n_cols":29,"rows_kept":69,"cut":false,"hidden":false,"merged":[[1,2,1,10],[1,0,3,0],[1,1,3,1],[66,0,66,12],[62,0,62,12],[64,0,64,12],[60,0,60,12],[61,0,61,12],[59,0,59,12]]}
[{"$f":"muni&\" - \"&_ADJ6&\" - \"&Date","v":"KZN291 Mandeni - Table B6 Adjustments Budget Financial Position - 08-04-2025"}]
[{"$f":"desc","v":"Description"},{"$f":"head27","v":"Ref"},{"$f":"Head2","v":"Budget Year 2024/25"},null,null,null,null,null,null,null,null,{"$f":"Head10","v":"Budget Year +1 2025/26"},{"$f":"Head11","v":"Budget Year +2 2026/27"}]
[null,null,{"$f":"Head6","v":"Original Budget"},{"$f":"Head54","v":"Prior Adjusted"},{"$f":"Head51","v":"Accum. Funds"},{"$f":"Head52","v":"Multi-year capital"},{"$f":"Head53","v":"Unfore. Unavoid."},{"$f":"Head55","v":"Nat. or Prov. Govt"},{"$f":"Head50","v":"Other Adjusts."},{"$f":"Head56","v":"Total Adjusts."},{"$f":"Head7","v":"Adjusted Budget"},{"$f":"Head7","v":"Adjusted Budget"},{"$f":"Head7","v":"Adjusted Budget"}]
[null,null,null,3,4,5,6,7,8,9,10]
["R thousands",null,"A","A1","B","C","D","E","F","G","H"]
["ASSETS"]
["Current assets"]
["Cash and cash equivalents",null,{"$f":"SUMIFS(Sheet1!S71_OriginalBudget,Sheet1!S71_A6Code,$AC:$AC)","v":78953888},{"$f":"SUMIFS(Sheet1!S71_PreviousBudget,Sheet1!S71_A6Code,$AC:$AC)","v":92208386},null,null,null,{"$f":"SUMIFS(Sheet1!S71_CurrentAdjustments,Sheet1!S71_A6Code,$AC:$AC)","v":2898500},0,{"$f":"SUM(E8:I8)","v":2898500},{"$f":"IF(D8=0,C8+J8,D8+J8)","v":95106886},{"$f":"SUMIFS(Sheet1!S71_OY1AdjustedBudget,Sheet1!S71_A6Code,$AC:$AC)","v":115975613},{"$f":"SUMIFS(Sheet1!S71_OY2AdjustedBudget,Sheet1!S71_A6Code,$AC:$AC)","v":136805041},null,null,null,null,null,null,null,null,null,null,null,null,null,null,null,"0120"]
["Trade and other receivables from exchange transactions",1,{"$f":"'SB2'!C20","v":33168841},{"$f":"'SB2'!D20","v":32945259},{"$f":"'SB2'!E20","v":0},{"$f":"'SB2'!F20","v":0},{"$f":"'SB2'!G20","v":0},{"$f":"'SB2'!H20","v":0},{"$f":"'SB2'!I20","v":0},0,32945259,{"$f":"'SB2'!L20","v":33260132},{"$f":"'SB2'!M20","v":24875476},null,null,null,null,null,null,null,null,null,null,null,null,null,null,null,"0130"]
["Receivables from non-exchange transactions",1,{"$f":"'SB2'!C29","v":36042382},{"$f":"'SB2'!D29","v":58080718},{"$f":"'SB2'!E29","v":0},{"$f":"'SB2'!F297","v":0},{"$f":"'SB2'!G29","v":0},{"$f":"'SB2'!H297","v":0},{"$f":"'SB2'!I29","v":0},0,58080718,{"$f":"'SB2'!L29","v":37031450},{"$f":"'SB2'!M29","v":49706630},null,null,null,null,null,null,null,null,null,null,null,null,null,null,null,"0140"]
["Current portion of non-current receivables",2,{"$f":"SUMIFS(Sheet1!S71_OriginalBudget,Sheet1!S71_A6Code,$AC:$AC)","v":0},{"$f":"SUMIFS(Sheet1!S71_PreviousBudget,Sheet1!S71_A6Code,$AC:$AC)","v":0},null,null,null,null,{"$f":"SUMIFS(Sheet1!S71_CurrentAdjustments,Sheet1!S71_A6Code,$AC:$AC)","v":0},0,0,{"$f":"SUMIFS(Sheet1!S71_OY1AdjustedBudget,Sheet1!S71_A6Code,$AC:$AC)","v":0},{"$f":"SUMIFS(Sheet1!S71_OY2AdjustedBudget,Sheet1!S71_A6Code,$AC:$AC)","v":0},null,null,null,null,null,null,null,null,null,null,null,null,null,null,null,"0150"]
["Inventory",null,{"$f":"'SB2'!C125","v":38983860},{"$f":"'SB2'!D125","v":41490172},{"$f":"'SB2'!E125","v":0},{"$f":"'SB2'!F125","v":0},{"$f":"'SB2'!G125","v":0},{"$f":"'SB2'!H125","v":0},{"$f":"'SB2'!I125","v":0},0,41490172,{"$f":"'SB2'!L125","v":41359226},{"$f":"'SB2'!M125","v":41034541},null,null,null,null,null,null,null,null,null,null,null,null,null,null,null,"0160"]
["VAT",null,{"$f":"SUMIFS(Sheet1!S71_OriginalBudget,Sheet1!S71_A6Code,$AC:$AC)","v":53464890},{"$f":"SUMIFS(Sheet1!S71_PreviousBudget,Sheet1!S71_A6Code,$AC:$AC)","v":42926994},null,null,null,{"$f":"SUMIFS(Sheet1!S71_CurrentAdjustments,Sheet1!S71_A6Code,$AC:$AC)","v":-710087},0,-710087,42216907,{"$f":"SUMIFS(Sheet1!S71_OY1AdjustedBudget,Sheet1!S71_A6Code,$AC:$AC)","v":45368652},{"$f":"SUMIFS(Sheet1!S71_OY2AdjustedBudget,Sheet1!S71_A6Code,$AC:$AC)","v":43836135},null,null,null,null,null,null,null,null,null,null,null,null,null,null,null,"0170"]
["Other current assets",null,{"$f":"SUMIFS(Sheet1!S71_OriginalBudget,Sheet1!S71_A6Code,$AC:$AC)","v":0},{"$f":"SUMIFS(Sheet1!S71_PreviousBudget,Sheet1!S71_A6Code,$AC:$AC)","v":0},null,null,null,null,{"$f":"SUMIFS(Sheet1!S71_CurrentAdjustments,Sheet1!S71_A6Code,$AC:$AC)","v":0},0,0,{"$f":"SUMIFS(Sheet1!S71_OY1AdjustedBudget,Sheet1!S71_A6Code,$AC:$AC)","v":0},{"$f":"SUMIFS(Sheet1!S71_OY2AdjustedBudget,Sheet1!S71_A6Code,$AC:$AC)","v":0},null,null,null,null,null,null,null,null,null,null,null,null,null,null,null,"0180"]
["Total current assets",null,{"$f":"SUM(C8:C14)","v":240613861},267651529,0,0,0,2188413,0,2188413,269839942,272995073,296257823]
["Non current assets"]
["Investments",null,{"$f":"SUMIFS(Sheet1!S71_OriginalBudget,Sheet1!S71_A6Code,$AC:$AC)","v":0},{"$f":"SUMIFS(Sheet1!S71_PreviousBudget,Sheet1!S71_A6Code,$AC:$AC)","v":0},null,null,null,null,{"$f":"SUMIFS(Sheet1!S71_CurrentAdjustments,Sheet1!S71_A6Code,$AC:$AC)","v":0},{"$f":"SUM(E17:I17)","v":0},{"$f":"IF(D17=0,C17+J17,D17+J17)","v":0},{"$f":"SUMIFS(Sheet1!S71_OY1AdjustedBudget,Sheet1!S71_A6Code,$AC:$AC)","v":0},{"$f":"SUMIFS(Sheet1!S71_OY2AdjustedBudget,Sheet1!S71_A6Code,$AC:$AC)","v":0},null,null,null,null,null,null,null,null,null,null,null,null,null,null,null,"0210"]
["Investment property",null,{"$f":"SUMIFS(Sheet1!S71_OriginalBudget,Sheet1!S71_A6Code,$AC:$AC)","v":60544000},{"$f":"SUMIFS(Sheet1!S71_PreviousBudget,Sheet1!S71_A6Code,$AC:$AC)","v":41913000},null,null,null,null,{"$f":"SUMIFS(Sheet1!S71_CurrentAdjustments,Sheet1!S71_A6Code,$AC:$AC)","v":0},{"$f":"SUM(E18:I18)","v":0},{"$f":"IF(D18=0,C18+J18,D18+J18)","v":41913000},{"$f":"SUMIFS(Sheet1!S71_OY1AdjustedBudget,Sheet1!S71_A6Code,$AC:$AC)","v":60544000},{"$f":"SUMIFS(Sheet1!S71_OY2AdjustedBudget,Sheet1!S71_A6Code,$AC:$AC)","v":60544000},null,null,null,null,null,null,null,null,null,null,null,null,null,null,null,"0220"]
["Property, plant and equipment",3,{"$f":"+'SB2'!C131","v":631390365},{"$f":"+'SB2'!D131","v":765028380},{"$f":"+'SB2'!E131","v":0},{"$f":"+'SB2'!F131","v":0},{"$f":"+'SB2'!G131","v":0},{"$f":"+'SB2'!H131","v":1985217.38},{"$f":"+'SB2'!I131","v":0},1985217.38,767013597.38,{"$f":"+'SB2'!L131","v":644837711},{"$f":"+'SB2'!M131","v":629258404},null,null,null,null,null,null,null,null,null,null,null,null,null,null,null,"0230"]
["Biological assets",null,{"$f":"SUMIFS(Sheet1!S71_OriginalBudget,Sheet1!S71_A6Code,$AC:$AC)","v":0},{"$f":"SUMIFS(Sheet1!S71_PreviousBudget,Sheet1!S71_A6Code,$AC:$AC)","v":0},null,null,null,null,{"$f":"SUMIFS(Sheet1!S71_CurrentAdjustments,Sheet1!S71_A6Code,$AC:$AC)","v":0},0,0,{"$f":"SUMIFS(Sheet1!S71_OY1AdjustedBudget,Sheet1!S71_A6Code,$AC:$AC)","v":0},{"$f":"SUMIFS(Sheet1!S71_OY2AdjustedBudget,Sheet1!S71_A6Code,$AC:$AC)","v":0},null,null,null,null,null,null,null,null,null,null,null,null,null,null,null,"0240"]
["Living and non-living resources",null,{"$f":"SUMIFS(Sheet1!S71_OriginalBudget,Sheet1!S71_A6Code,$AC:$AC)","v":0},{"$f":"SUMIFS(Sheet1!S71_PreviousBudget,Sheet1!S71_A6Code,$AC:$AC)","v":0},null,null,null,null,{"$f":"SUMIFS(Sheet1!S71_CurrentAdjustments,Sheet1!S71_A6Code,$AC:$AC)","v":0},0,0,{"$f":"SUMIFS(Sheet1!S71_OY1AdjustedBudget,Sheet1!S71_A6Code,$AC:$AC)","v":0},{"$f":"SUMIFS(Sheet1!S71_OY2AdjustedBudget,Sheet1!S71_A6Code,$AC:$AC)","v":0}]
["Heritage assets",null,{"$f":"SUMIFS(Sheet1!S71_OriginalBudget,Sheet1!S71_A6Code,$AC:$AC)","v":0},{"$f":"SUMIFS(Sheet1!S71_PreviousBudget,Sheet1!S71_A6Code,$AC:$AC)","v":0},null,null,null,null,{"$f":"SUMIFS(Sheet1!S71_CurrentAdjustments,Sheet1!S71_A6Code,$AC:$AC)","v":0},{"$f":"SUM(E22:I22)","v":0},{"$f":"IF(D22=0,C22+J22,D22+J22)","v":0},{"$f":"SUMIFS(Sheet1!S71_OY1AdjustedBudget,Sheet1!S71_A6Code,$AC:$AC)","v":0},{"$f":"SUMIFS(Sheet1!S71_OY2AdjustedBudget,Sheet1!S71_A6Code,$AC:$AC)","v":0},null,null,null,null,null,null,null,null,null,null,null,null,null,null,null,"0260"]
["Intangible assets",null,{"$f":"SUMIFS(Sheet1!S71_OriginalBudget,Sheet1!S71_A6Code,$AC:$AC)","v":297630},{"$f":"SUMIFS(Sheet1!S71_PreviousBudget,Sheet1!S71_A6Code,$AC:$AC)","v":2007790},null,null,null,null,{"$f":"SUMIFS(Sheet1!S71_CurrentAdjustments,Sheet1!S71_A6Code,$AC:$AC)","v":0},{"$f":"SUM(E23:I23)","v":0},{"$f":"IF(D23=0,C23+J23,D23+J23)","v":2007790},{"$f":"SUMIFS(Sheet1!S71_OY1AdjustedBudget,Sheet1!S71_A6Code,$AC:$AC)","v":252717},{"$f":"SUMIFS(Sheet1!S71_OY2AdjustedBudget,Sheet1!S71_A6Code,$AC:$AC)","v":236617},null,null,null,null,null,null,null,null,null,null,null,null,null,null,null,"0270"]
["Trade and other receivables from exchange transactions",null,{"$f":"SUMIFS(Sheet1!S71_OriginalBudget,Sheet1!S71_A6Code,$AC:$AC)","v":0},{"$f":"SUMIFS(Sheet1!S71_PreviousBudget,Sheet1!S71_A6Code,$AC:$AC)","v":0},null,null,null,null,{"$f":"SUMIFS(Sheet1!S71_CurrentAdjustments,Sheet1!S71_A6Code,$AC:$AC)","v":0},0,0,{"$f":"SUMIFS(Sheet1!S71_OY1AdjustedBudget,Sheet1!S71_A6Code,$AC:$AC)","v":0},{"$f":"SUMIFS(Sheet1!S71_OY2AdjustedBudget,Sheet1!S71_A6Code,$AC:$AC)","v":0},null,null,null,null,null,null,null,null,null,null,null,null,null,null,null,"0280"]
["Non-current receivables from non-exchange transactions",null,{"$f":"SUMIFS(Sheet1!S71_OriginalBudget,Sheet1!S71_A6Code,$AC:$AC)","v":0},{"$f":"SUMIFS(Sheet1!S71_PreviousBudget,Sheet1!S71_A6Code,$AC:$AC)","v":0},null,null,null,null,{"$f":"SUMIFS(Sheet1!S71_CurrentAdjustments,Sheet1!S71_A6Code,$AC:$AC)","v":0},0,0,{"$f":"SUMIFS(Sheet1!S71_OY1AdjustedBudget,Sheet1!S71_A6Code,$AC:$AC)","v":0},{"$f":"SUMIFS(Sheet1!S71_OY2AdjustedBudget,Sheet1!S71_A6Code,$AC:$AC)","v":0},null,null,null,null,null,null,null,null,null,null,null,null,null,null,null,"0290"]
["Other non-current assets",null,{"$f":"SUMIFS(Sheet1!S71_OriginalBudget,Sheet1!S71_A6Code,$AC:$AC)","v":0},{"$f":"SUMIFS(Sheet1!S71_PreviousBudget,Sheet1!S71_A6Code,$AC:$AC)","v":0},null,null,null,null,{"$f":"SUMIFS(Sheet1!S71_CurrentAdjustments,Sheet1!S71_A6Code,$AC:$AC)","v":0},0,0,{"$f":"SUMIFS(Sheet1!S71_OY1AdjustedBudget,Sheet1!S71_A6Code,$AC:$AC)","v":0},{"$f":"SUMIFS(Sheet1!S71_OY2AdjustedBudget,Sheet1!S71_A6Code,$AC:$AC)","v":0},null,null,null,null,null,null,null,null,null,null,null,null,null,null,null,"0300"]
["Total non current assets",null,{"$f":"SUM(C17:C26)","v":692231995},{"$f":"SUM(D17:D26)","v":808949170},0,0,0,1985217.38,0,{"$f":"SUM(J17:J26)","v":1985217.38},810934387.38,705634428,690039021]
["TOTAL ASSETS",null,{"$f":"C15+C27","v":932845856},1076600699,0,0,0,4173630.38,0,4173630.38,1080774329.3800001,978629501,986296844]
[]
["LIABILITIES"]
["Current liabilities"]
["Bank overdraft",null,{"$f":"-SUMIFS(Sheet1!S71_OriginalBudget,Sheet1!S71_A6Code,$AC:$AC)","v":0},{"$f":"-SUMIFS(Sheet1!S71_PreviousBudget,Sheet1!S71_A6Code,$AC:$AC)","v":0},null,null,null,null,{"$f":"-SUMIFS(Sheet1!S71_CurrentAdjustments,Sheet1!S71_A6Code,$AC:$AC)","v":0},{"$f":"SUM(E32:I32)","v":0},{"$f":"IF(D32=0,C32+J32,D32+J32)","v":0},{"$f":"-SUMIFS(Sheet1!S71_OY1AdjustedBudget,Sheet1!S71_A6Code,$AC:$AC)","v":0},{"$f":"-SUMIFS(Sheet1!S71_OY2AdjustedBudget,Sheet1!S71_A6Code,$AC:$AC)","v":0},null,null,null,null,null,null,null,null,null,null,null,null,null,null,null,"0350"]
["Financial liabilities",null,{"$f":"'SB2'!C137","v":0},{"$f":"'SB2'!D137","v":0},{"$f":"'SB2'!E137","v":0},{"$f":"'SB2'!F137","v":0},{"$f":"'SB2'!G137","v":0},{"$f":"'SB2'!H137","v":0},{"$f":"'SB2'!I137","v":0},{"$f":"SUM(E33:I33)","v":0},{"$f":"IF(D33=0,C33+J33,D33+J33)","v":0},{"$f":"'SB2'!L137","v":0},{"$f":"'SB2'!M137","v":0},null,null,null,null,null,null,null,null,null,null,null,null,null,null,null,"0360"]
["Consumer deposits",null,{"$f":"-SUMIFS(Sheet1!S71_OriginalBudget,Sheet1!S71_A6Code,$AC:$AC)","v":216470},{"$f":"-SUMIFS(Sheet1!S71_PreviousBudget,Sheet1!S71_A6Code,$AC:$AC)","v":161946},null,null,null,null,{"$f":"-SUMIFS(Sheet1!S71_CurrentAdjustments,Sheet1!S71_A6Code,$AC:$AC)","v":0},{"$f":"SUM(E34:I34)","v":0},{"$f":"IF(D34=0,C34+J34,D34+J34)","v":161946},{"$f":"-SUMIFS(Sheet1!S71_OY1AdjustedBudget,Sheet1!S71_A6Code,$AC:$AC)","v":222960},{"$f":"-SUMIFS(Sheet1!S71_OY2AdjustedBudget,Sheet1!S71_A6Code,$AC:$AC)","v":227420},null,null,null,null,null,null,null,null,null,null,null,null,null,null,null,"0370"]
["Trade and other payables from exchange transactions",null,{"$f":"+'SB2'!C140+'SB2'!C141","v":23219779},{"$f":"+'SB2'!D140+'SB2'!D141","v":48056411},{"$f":"+'SB2'!E140+'SB2'!E141","v":0},{"$f":"+'SB2'!F140+'SB2'!F141","v":0},{"$f":"+'SB2'!G140+'SB2'!G141","v":0},{"$f":"+'SB2'!H140+'SB2'!H141","v":0},{"$f":"+'SB2'!I140+'SB2'!I141","v":0},{"$f":"SUM(E35:I35)","v":0},{"$f":"IF(D35=0,C35+J35,D35+J35)","v":48056411},{"$f":"+'SB2'!L140+'SB2'!L141","v":24739120},{"$f":"+'SB2'!M140+'SB2'!M141","v":25119217},null,null,null,null,null,null,null,null,null,null,null,null,null,null,null,"0380"]
["Trade and other payables from non-exchange transactions",null,{"$f":"+'SB2'!C142+'SB2'!C143","v":8283940},{"$f":"+'SB2'!D142+'SB2'!D143","v":5435638},{"$f":"+'SB2'!E142+'SB2'!E143","v":0},{"$f":"+'SB2'!F142+'SB2'!F143","v":0},{"$f":"+'SB2'!G142+'SB2'!G143","v":0},{"$f":"+'SB2'!H142+'SB2'!H143","v":2898000},{"$f":"+'SB2'!I142+'SB2'!I143","v":0},2898000,8333638,{"$f":"+'SB2'!L142+'SB2'!L143","v":0},{"$f":"+'SB2'!M142+'SB2'!M143","v":0},null,null,null,null,null,null,null,null,null,null,null,null,null,null,null,"0390"]
["Provisions",null,{"$f":"-SUMIFS(Sheet1!S71_OriginalBudget,Sheet1!S71_A6Code,$AC:$AC)","v":8676860},{"$f":"-SUMIFS(Sheet1!S71_PreviousBudget,Sheet1!S71_A6Code,$AC:$AC)","v":8908018},null,null,null,null,{"$f":"-SUMIFS(Sheet1!S71_CurrentAdjustments,Sheet1!S71_A6Code,$AC:$AC)","v":0},0,8908018,{"$f":"-SUMIFS(Sheet1!S71_OY1AdjustedBudget,Sheet1!S71_A6Code,$AC:$AC)","v":6043805},{"$f":"-SUMIFS(Sheet1!S71_OY2AdjustedBudget,Sheet1!S71_A6Code,$AC:$AC)","v":6289296},null,null,null,null,null,null,null,null,null,null,null,null,null,null,null,"0400"]
["VAT",null,{"$f":"-SUMIFS(Sheet1!S71_OriginalBudget,Sheet1!S71_A6Code,$AC:$AC)","v":14759486},{"$f":"-SUMIFS(Sheet1!S71_PreviousBudget,Sheet1!S71_A6Code,$AC:$AC)","v":21569686},null,null,null,{"$f":"-SUMIFS(Sheet1!S71_CurrentAdjustments,Sheet1!S71_A6Code,$AC:$AC)","v":-1007870},0,-1007870,20561816,{"$f":"-SUMIFS(Sheet1!S71_OY1AdjustedBudget,Sheet1!S71_A6Code,$AC:$AC)","v":15184062},{"$f":"-SUMIFS(Sheet1!S71_OY2AdjustedBudget,Sheet1!S71_A6Code,$AC:$AC)","v":16670198},null,null,null,null,null,null,null,null,null,null,null,null,null,null,null,"0410"]
["Other current liabilities",null,{"$f":"-SUMIFS(Sheet1!S71_OriginalBudget,Sheet1!S71_A6Code,$AC:$AC)","v":0},{"$f":"-SUMIFS(Sheet1!S71_PreviousBudget,Sheet1!S71_A6Code,$AC:$AC)","v":0},null,null,null,null,{"$f":"-SUMIFS(Sheet1!S71_CurrentAdjustments,Sheet1!S71_A6Code,$AC:$AC)","v":0},0,0,{"$f":"-SUMIFS(Sheet1!S71_OY1AdjustedBudget,Sheet1!S71_A6Code,$AC:$AC)","v":0},{"$f":"-SUMIFS(Sheet1!S71_OY2AdjustedBudget,Sheet1!S71_A6Code,$AC:$AC)","v":0},null,null,null,null,null,null,null,null,null,null,null,null,null,null,null,"0420"]
["Total current liabilities",null,{"$f":"SUM(C32:C39)","v":55156535},{"$f":"SUM(D32:D39)","v":84131699},0,0,0,1890130,0,{"$f":"SUM(J32:J39)","v":1890130},{"$f":"SUM(K32:K39)","v":86021829},{"$f":"SUM(L32:L39)","v":46189947},{"$f":"SUM(M32:M39)","v":48306131}]
[]
["Non current liabilities"]
["Borrowing",1,{"$f":"'SB2'!C147","v":0},{"$f":"'SB2'!D147","v":0},{"$f":"'SB2'!E147","v":0},{"$f":"'SB2'!F147","v":0},{"$f":"'SB2'!G147","v":0},{"$f":"'SB2'!H147","v":0},{"$f":"'SB2'!I147","v":0},{"$f":"SUM(E43:I43)","v":0},{"$f":"IF(D43=0,C43+J43,D43+J43)","v":0},{"$f":"'SB2'!L147","v":0},{"$f":"'SB2'!M147","v":0},null,null,null,null,null,null,null,null,null,null,null,null,null,null,null,"0450"]
["Provisions",1,{"$f":"'SB2'!C163+SUMIFS(Sheet1!S71_OriginalBudget,Sheet1!S71_A6Code,\"0480\")","v":0},{"$f":"'SB2'!D163+SUMIFS(Sheet1!S71_PreviousBudget,Sheet1!S71_A6Code,\"0480\")","v":0},{"$f":"'SB2'!E163","v":0},{"$f":"'SB2'!F163","v":0},{"$f":"'SB2'!G163","v":0},{"$f":"'SB2'!H163","v":0},{"$f":"'SB2'!I163+SUMIFS(Sheet1!S71_CurrentAdjustments,Sheet1!S71_A6Code,\"0480\")","v":0},{"$f":"SUM(E44:I44)","v":0},{"$f":"IF(D44=0,C44+J44,D44+J44)","v":0},{"$f":"'SB2'!L163+SUMIFS(Sheet1!S71_OY1AdjustedBudget,Sheet1!S71_A6Code,\"0480\")","v":0},{"$f":"'SB2'!M163+SUMIFS(Sheet1!S71_OY2AdjustedBudget,Sheet1!S71_A6Code,\"0480\")","v":0},null,null,null,null,null,null,null,null,null,null,null,null,null,null,null,"0460"]
["Long term portion of trade payables",null,{"$f":"-SUMIFS(Sheet1!S71_OriginalBudget,Sheet1!S71_A6Code,$AC:$AC)","v":0},{"$f":"-SUMIFS(Sheet1!S71_PreviousBudget,Sheet1!S71_A6Code,$AC:$AC)","v":0},null,null,null,null,{"$f":"-SUMIFS(Sheet1!S71_CurrentAdjustments,Sheet1!S71_A6Code,$AC:$AC)","v":0},{"$f":"SUM(E45:I45)","v":0},{"$f":"IF(D45=0,C45+J45,D45+J45)","v":0},{"$f":"-SUMIFS(Sheet1!S71_OY1AdjustedBudget,Sheet1!S71_A6Code,$AC:$AC)","v":0},{"$f":"-SUMIFS(Sheet1!S71_OY2AdjustedBudget,Sheet1!S71_A6Code,$AC:$AC)","v":0}]
["Other non-current liabilities",null,{"$f":"-SUMIFS(Sheet1!S71_OriginalBudget,Sheet1!S71_A6Code,$AC:$AC)","v":22993070},{"$f":"-SUMIFS(Sheet1!S71_PreviousBudget,Sheet1!S71_A6Code,$AC:$AC)","v":25769737},null,null,null,null,{"$f":"-SUMIFS(Sheet1!S71_CurrentAdjustments,Sheet1!S71_A6Code,$AC:$AC)","v":0},{"$f":"SUM(E46:I46)","v":0},{"$f":"IF(D46=0,C46+J46,D46+J46)","v":25769737},{"$f":"-SUMIFS(Sheet1!S71_OY1AdjustedBudget,Sheet1!S71_A6Code,$AC:$AC)","v":23455231},{"$f":"-SUMIFS(Sheet1!S71_OY2AdjustedBudget,Sheet1!S71_A6Code,$AC:$AC)","v":23223001},null,null,null,null,null,null,null,null,null,null,null,null,null,null,null,"0480"]
["Total non current liabilities",null,{"$f":"SUM(C43:C46)","v":22993070},{"$f":"SUM(D43:D46)","v":25769737},0,0,0,0,0,{"$f":"SUM(J43:J46)","v":0},{"$f":"SUM(K43:K46)","v":25769737},23455231,23223001]
["TOTAL LIABILITIES",null,{"$f":"C40+C47","v":78149605},109901436,0,0,0,1890130,0,1890130,111791566,69645178,71529132]
[]
["NET ASSETS",2,{"$f":"C28-C48","v":854696251},966699263,0,0,0,2283500.38,0,2283500.38,968982763.38000011,908984323,914767712]
[]
["COMMUNITY WEALTH/EQUITY"]
["Accumulated Surplus/(Deficit)",null,{"$f":"'SB2'!C175","v":852024473},{"$f":"'SB2'!D175","v":964565847},{"$f":"'SB2'!E175","v":0},{"$f":"'SB2'!F175","v":0},{"$f":"'SB2'!G175","v":0},{"$f":"'SB2'!H175","v":2283500},{"$f":"'SB2'!I175","v":0},{"$f":"SUM(E53:I53)","v":2283500},{"$f":"IF(D53=0,C53+J53,D53+J53)","v":966849347},{"$f":"'SB2'!L175","v":902926524},{"$f":"'SB2'!M175","v":906743001},null,null,null,null,null,null,null,null,null,null,null,null,null,null,null,"0530"]
["Funds and Reserves",null,{"$f":"'SB2'!C182","v":2086090},{"$f":"'SB2'!D182","v":2133415},{"$f":"'SB2'!E182","v":0},{"$f":"'SB2'!F182","v":0},{"$f":"'SB2'!G182","v":0},{"$f":"'SB2'!H182","v":0},{"$f":"'SB2'!I182","v":0},{"$f":"SUM(E54:I54)","v":0},{"$f":"IF(D54=0,C54+J54,D54+J54)","v":2133415},{"$f":"'SB2'!L182","v":2248668},{"$f":"'SB2'!M182","v":2313130},null,null,null,null,null,null,null,null,null,null,null,null,null,null,null,"0540"]
["Other",null,{"$f":"-SUMIFS(Sheet1!S71_OriginalBudget,Sheet1!S71_A6Code,$AC:$AC)","v":0},{"$f":"-SUMIFS(Sheet1!S71_PreviousBudget,Sheet1!S71_A6Code,$AC:$AC)","v":0},null,null,null,null,{"$f":"-SUMIFS(Sheet1!S71_CurrentAdjustments,Sheet1!S71_A6Code,$AC:$AC)","v":0},null,null,{"$f":"-SUMIFS(Sheet1!S71_OY1AdjustedBudget,Sheet1!S71_A6Code,$AC:$AC)","v":0},{"$f":"-SUMIFS(Sheet1!S71_OY2AdjustedBudget,Sheet1!S71_A6Code,$AC:$AC)","v":0},null,null,null,null,null,null,null,null,null,null,null,null,null,null,null,"0550"]
["TOTAL COMMUNITY WEALTH/EQUITY",null,{"$f":"SUM(C53:C54)","v":854110563},966699262,0,0,0,2283500,0,2283500,968982762,905175192,909056131]
[{"$f":"head27a","v":"References"}]
["1. Detail to be provided in Table SA3"]
["2. Net assets must balance with Total Community Wealth/Equity"]
["3. Only complete if a previous adjusted budget has been approved in the same financial year. Reflect most recent adjusted budget."]
["4. Additional cash-backed accumulated funds/unspent funds (MFMA section 18(1)(b) and section 28(2)(e)) identified after the Original Budget approved and after annual financial statements audited (note: only where underspending could not reasonably have been foreseen)"]
["5. Increases of funds approved under MFMA section 31"]
["6. Adjustments approved in accordance with MFMA section 29 "]
["7. Adjustments to transfers from National or Provincial Government"]
["8. Adjusts. = 'Other' Adjustments proposed to be approved; including revenue under-collection (MFMA section 28(2)(a)); additional revenue appropriation on existing programmes (section 28(2))(b); projected savings (section 28(2)(d)); error correction (section 28(2)(f))"]
["9. G = B + C + D + E + F"]
["10. Adjusted Budget H = (A or A1/2 etc) + G"]
[]
["check balance",null,{"$f":"C50-C56","v":585688},1,0,0,0,0.37999999988824129,0,0.37999999988824129,1.380000114440918,3809131,5711581]

{"sheet":"B7-CFlow","index":33,"n_rows":52,"n_cols":29,"rows_kept":52,"cut":false,"hidden":false,"merged":[[51,0,51,12],[45,0,45,12],[49,0,49,12],[1,0,3,0],[1,1,3,1],[1,2,1,10],[44,0,44,12],[46,0,46,12],[47,0,47,12]]}
[{"$f":"muni&\" - \"&_ADJ7&\" - \"&Date","v":"KZN291 Mandeni - Table B7 Adjustments Budget Cash Flows - 08-04-2025"}]
[{"$f":"desc","v":"Description"},{"$f":"head27","v":"Ref"},{"$f":"Head2","v":"Budget Year 2024/25"},null,null,null,null,null,null,null,null,{"$f":"Head10","v":"Budget Year +1 2025/26"},{"$f":"Head11","v":"Budget Year +2 2026/27"}]
[null,null,{"$f":"Head6","v":"Original Budget"},{"$f":"Head54","v":"Prior Adjusted"},{"$f":"Head51","v":"Accum. Funds"},{"$f":"Head52","v":"Multi-year capital"},{"$f":"Head53","v":"Unfore. Unavoid."},{"$f":"Head55","v":"Nat. or Prov. Govt"},{"$f":"Head50","v":"Other Adjusts."},{"$f":"Head56","v":"Total Adjusts."},{"$f":"Head7","v":"Adjusted Budget"},{"$f":"Head7","v":"Adjusted Budget"},{"$f":"Head7","v":"Adjusted Budget"}]
[null,null,null,3,4,5,6,7,8,9,10]
["R thousands",null,"A","A1","B","C","D","E","F","G","H"]
["CASH FLOW FROM OPERATING ACTIVITIES"]
["Receipts"]
["Property rates",null,{"$f":"SUMIFS(Sheet1!S71_OriginalBudget,Sheet1!S71_A7Code,$AC:$AC)","v":31118295},{"$f":"SUMIFS(Sheet1!S71_PreviousBudget,Sheet1!S71_A7Code,$AC:$AC)","v":31118295},null,null,null,null,{"$f":"SUMIFS(Sheet1!S71_CurrentAdjustments,Sheet1!S71_A7Code,$AC:$AC)","v":0},{"$f":"SUM(E8:I8)","v":0},{"$f":"IF(D8=0,C8+J8,D8+J8)","v":31118295},{"$f":"SUMIFS(Sheet1!S71_OY1AdjustedBudget,Sheet1!S71_A7Code,$AC:$AC)","v":32549736},{"$f":"SUMIFS(Sheet1!S71_OY2AdjustedBudget,Sheet1!S71_A7Code,$AC:$AC)","v":34047024},null,null,null,null,null,null,null,null,null,null,null,null,null,null,null,"0120"]
["Service charges",null,{"$f":"SUMIFS(Sheet1!S71_OriginalBudget,Sheet1!S71_A7Code,$AC:$AC)","v":75777419},{"$f":"SUMIFS(Sheet1!S71_PreviousBudget,Sheet1!S71_A7Code,$AC:$AC)","v":75777419},null,null,null,null,{"$f":"SUMIFS(Sheet1!S71_CurrentAdjustments,Sheet1!S71_A7Code,$AC:$AC)","v":0},{"$f":"SUM(E9:I9)","v":0},{"$f":"IF(D9=0,C9+J9,D9+J9)","v":75777419},{"$f":"SUMIFS(Sheet1!S71_OY1AdjustedBudget,Sheet1!S71_A7Code,$AC:$AC)","v":79083122},{"$f":"SUMIFS(Sheet1!S71_OY2AdjustedBudget,Sheet1!S71_A7Code,$AC:$AC)","v":83372572},null,null,null,null,null,null,null,null,null,null,null,null,null,null,null,"0130"]
["Other revenue",null,{"$f":"SUMIFS(Sheet1!S71_OriginalBudget,Sheet1!S71_A7Code,$AC:$AC)","v":4674468},{"$f":"SUMIFS(Sheet1!S71_PreviousBudget,Sheet1!S71_A7Code,$AC:$AC)","v":24811344},null,null,null,null,{"$f":"SUMIFS(Sheet1!S71_CurrentAdjustments,Sheet1!S71_A7Code,$AC:$AC)","v":0},0,24811344,{"$f":"SUMIFS(Sheet1!S71_OY1AdjustedBudget,Sheet1!S71_A7Code,$AC:$AC)","v":4889492},{"$f":"SUMIFS(Sheet1!S71_OY2AdjustedBudget,Sheet1!S71_A7Code,$AC:$AC)","v":9554592},null,null,null,null,null,null,null,null,null,null,null,null,null,null,null,"0140"]
["Transfers and Subsidies - Operational",1,{"$f":"SUMIFS(Sheet1!S71_OriginalBudget,Sheet1!S71_A7Code,$AC:$AC)","v":262389620},{"$f":"SUMIFS(Sheet1!S71_PreviousBudget,Sheet1!S71_A7Code,$AC:$AC)","v":262389620},null,null,null,-7727000,0,-7727000,254662620,{"$f":"SUMIFS(Sheet1!S71_OY1AdjustedBudget,Sheet1!S71_A7Code,$AC:$AC)","v":260257451},{"$f":"SUMIFS(Sheet1!S71_OY2AdjustedBudget,Sheet1!S71_A7Code,$AC:$AC)","v":255861150},null,null,null,null,null,null,null,null,null,null,null,null,null,null,null,"0150"]
["Transfers and Subsidies - Capital",1,{"$f":"SUMIFS(Sheet1!S71_OriginalBudget,Sheet1!S71_A7Code,$AC:$AC)","v":39760380},{"$f":"SUMIFS(Sheet1!S71_PreviousBudget,Sheet1!S71_A7Code,$AC:$AC)","v":45137939},null,null,null,{"$f":"SUMIFS(Sheet1!S71_CurrentAdjustments,Sheet1!S71_A7Code,$AC:$AC)","v":5181500},0,5181500,50319439,{"$f":"SUMIFS(Sheet1!S71_OY1AdjustedBudget,Sheet1!S71_A7Code,$AC:$AC)","v":40839550},{"$f":"SUMIFS(Sheet1!S71_OY2AdjustedBudget,Sheet1!S71_A7Code,$AC:$AC)","v":44177850},null,null,null,null,null,null,null,null,null,null,null,null,null,null,null,"0160"]
["Interest",null,{"$f":"SUMIFS(Sheet1!S71_OriginalBudget,Sheet1!S71_A7Code,$AC:$AC)","v":28000000},{"$f":"SUMIFS(Sheet1!S71_PreviousBudget,Sheet1!S71_A7Code,$AC:$AC)","v":28000000},null,null,null,null,{"$f":"SUMIFS(Sheet1!S71_CurrentAdjustments,Sheet1!S71_A7Code,$AC:$AC)","v":0},0,28000000,{"$f":"SUMIFS(Sheet1!S71_OY1AdjustedBudget,Sheet1!S71_A7Code,$AC:$AC)","v":28840000},{"$f":"SUMIFS(Sheet1!S71_OY2AdjustedBudget,Sheet1!S71_A7Code,$AC:$AC)","v":29705200},null,null,null,null,null,null,null,null,null,null,null,null,null,null,null,"0170"]
["Dividends",null,{"$f":"SUMIFS(Sheet1!S71_OriginalBudget,Sheet1!S71_A7Code,$AC:$AC)","v":0},{"$f":"SUMIFS(Sheet1!S71_PreviousBudget,Sheet1!S71_A7Code,$AC:$AC)","v":0},null,null,null,null,{"$f":"SUMIFS(Sheet1!S71_CurrentAdjustments,Sheet1!S71_A7Code,$AC:$AC)","v":0},0,0,{"$f":"SUMIFS(Sheet1!S71_OY1AdjustedBudget,Sheet1!S71_A7Code,$AC:$AC)","v":0},{"$f":"SUMIFS(Sheet1!S71_OY2AdjustedBudget,Sheet1!S71_A7Code,$AC:$AC)","v":0},null,null,null,null,null,null,null,null,null,null,null,null,null,null,null,"0180"]
["Payments"]
["Suppliers and employees",null,{"$f":"-SUMIFS(Sheet1!S71_OriginalBudget,Sheet1!S71_A7CodePayments,$AC:$AC)","v":-392385725},{"$f":"-SUMIFS(Sheet1!S71_PreviousBudget,Sheet1!S71_A7CodePayments,$AC:$AC)","v":-426461035},null,null,null,{"$f":"-SUMIFS(Sheet1!S71_CurrentAdjustments,Sheet1!S71_A7CodePayments,$AC:$AC)","v":7727000},0,{"$f":"SUM(E16:I16)","v":7727000},{"$f":"IF(D16=0,C16+J16,D16+J16)","v":-418734035},{"$f":"-('SB15'!Q36+'SB15'!Q37+'SB15'!Q39+'SB15'!Q40+'SB15'!Q41+'SB15'!Q42+'SB15'!Q45+'SB15'!Q51)","v":-398058666},{"$f":"-('SB15'!R36+'SB15'!R37+'SB15'!R39+'SB15'!R40+'SB15'!R41+'SB15'!R42+'SB15'!R45+'SB15'!R51)","v":-408170298},null,null,null,null,null,null,null,null,null,null,null,null,null,null,null,"0200"]
["Finance charges",null,{"$f":"-SUMIFS(Sheet1!S71_OriginalBudget,Sheet1!S71_A7CodePayments,$AC:$AC)","v":-3300000},{"$f":"-SUMIFS(Sheet1!S71_PreviousBudget,Sheet1!S71_A7CodePayments,$AC:$AC)","v":-3300000},null,null,null,null,{"$f":"-SUMIFS(Sheet1!S71_CurrentAdjustments,Sheet1!S71_A7CodePayments,$AC:$AC)","v":0},{"$f":"SUM(E17:I17)","v":0},{"$f":"IF(D17=0,C17+J17,D17+J17)","v":-3300000},{"$f":"-SUMIFS(Sheet1!S71_OY1AdjustedBudget,Sheet1!S71_A7CodePayments,$AC:$AC)","v":-3451800},{"$f":"-SUMIFS(Sheet1!S71_OY2AdjustedBudget,Sheet1!S71_A7CodePayments,$AC:$AC)","v":-3610581},null,null,null,null,null,null,null,null,null,null,null,null,null,null,null,"0210"]
["Transfers and Subsidies",1,{"$f":"-SUMIFS(Sheet1!S71_OriginalBudget,Sheet1!S71_A7CodePayments,$AC:$AC)","v":0},{"$f":"-SUMIFS(Sheet1!S71_PreviousBudget,Sheet1!S71_A7CodePayments,$AC:$AC)","v":0},null,null,null,null,{"$f":"-SUMIFS(Sheet1!S71_CurrentAdjustments,Sheet1!S71_A7CodePayments,$AC:$AC)","v":0},{"$f":"SUM(E18:I18)","v":0},{"$f":"IF(D18=0,C18+J18,D18+J18)","v":0},{"$f":"-SUMIFS(Sheet1!S71_OY1AdjustedBudget,Sheet1!S71_A7CodePayments,$AC:$AC)","v":0},{"$f":"-SUMIFS(Sheet1!S71_OY2AdjustedBudget,Sheet1!S71_A7CodePayments,$AC:$AC)","v":0},null,null,null,null,null,null,null,null,null,null,null,null,null,null,null,"0220"]
["NET CASH FROM/(USED) OPERATING ACTIVITIES",null,{"$f":"SUM(C8:C14)+SUM(C16:C18)","v":46034457},{"$f":"SUM(D8:D14)+SUM(D16:D18)","v":37473582},0,0,0,5181500,0,{"$f":"SUM(J8:J18)","v":5181500},{"$f":"SUM(K8:K18)","v":42655082},{"$f":"SUM(L8:L14)+SUM(L16:L18)","v":44948885},{"$f":"SUM(M8:M14)+SUM(M16:M18)","v":44937509}]
[]
["CASH FLOWS FROM INVESTING ACTIVITIES"]
["Receipts"]
["Proceeds on disposal of PPE",null,{"$f":"SUMIFS(Sheet1!S71_OriginalBudget,Sheet1!S71_A7SubCode,$AC:$AC)","v":0},{"$f":"SUMIFS(Sheet1!S71_PreviousBudget,Sheet1!S71_A7SubCode,$AC:$AC)","v":0},null,null,null,null,{"$f":"SUMIFS(Sheet1!S71_CurrentAdjustments,Sheet1!S71_A7SubCode,$AC:$AC)","v":0},{"$f":"SUM(E23:I23)","v":0},{"$f":"IF(D23=0,C23+J23,D23+J23)","v":0},{"$f":"SUMIFS(Sheet1!S71_OY1AdjustedBudget,Sheet1!S71_A7SubCode,$AC:$AC)","v":0},{"$f":"SUMIFS(Sheet1!S71_OY2AdjustedBudget,Sheet1!S71_A7SubCode,$AC:$AC)","v":0},null,null,null,null,null,null,null,null,null,null,null,null,null,null,null,"0260"]
["Decrease (increase) in non-current receivables",null,{"$f":"SUMIFS(Sheet1!S71_OriginalBudget,Sheet1!S71_A7Code,$AC:$AC)","v":0},{"$f":"SUMIFS(Sheet1!S71_PreviousBudget,Sheet1!S71_A7Code,$AC:$AC)","v":0},null,null,null,null,{"$f":"SUMIFS(Sheet1!S71_CurrentAdjustments,Sheet1!S71_A7Code,$AC:$AC)","v":0},{"$f":"SUM(E24:I24)","v":0},{"$f":"IF(D24=0,C24+J24,D24+J24)","v":0},{"$f":"SUMIFS(Sheet1!S71_OY1AdjustedBudget,Sheet1!S71_A7Code,$AC:$AC)","v":0},{"$f":"SUMIFS(Sheet1!S71_OY2AdjustedBudget,Sheet1!S71_A7Code,$AC:$AC)","v":0},null,null,null,null,null,null,null,null,null,null,null,null,null,null,null,"0280"]
["Decrease (increase) in non-current investments",null,{"$f":"SUMIFS(Sheet1!S71_OriginalBudget,Sheet1!S71_A7Code,$AC:$AC)","v":0},{"$f":"SUMIFS(Sheet1!S71_PreviousBudget,Sheet1!S71_A7Code,$AC:$AC)","v":0},null,null,null,null,{"$f":"SUMIFS(Sheet1!S71_CurrentAdjustments,Sheet1!S71_A7Code,$AC:$AC)","v":0},{"$f":"SUM(E25:I25)","v":0},{"$f":"IF(D25=0,C25+J25,D25+J25)","v":0},{"$f":"SUMIFS(Sheet1!S71_OY1AdjustedBudget,Sheet1!S71_A7Code,$AC:$AC)","v":0},{"$f":"SUMIFS(Sheet1!S71_OY2AdjustedBudget,Sheet1!S71_A7Code,$AC:$AC)","v":0},null,null,null,null,null,null,null,null,null,null,null,null,null,null,null,"0290"]
["Payments"]
["Capital assets",null,{"$f":"SUMIFS(Sheet1!S71_OriginalBudget,Sheet1!S71_A7CodePayments,$AC:$AC)","v":-146739790},{"$f":"SUMIFS(Sheet1!S71_PreviousBudget,Sheet1!S71_A7CodePayments,$AC:$AC)","v":-153901349},null,null,null,{"$f":"SUMIFS(Sheet1!S71_CurrentAdjustments,Sheet1!S71_A7CodePayments,$AC:$AC)","v":-2283000},0,{"$f":"SUM(E27:I27)","v":-2283000},{"$f":"IF(D27=0,C27+J27,D27+J27)","v":-156184349},{"$f":"SUMIFS(Sheet1!S71_OY1AdjustedBudget,Sheet1!S71_A7CodePayments,$AC:$AC)","v":-80639551},{"$f":"SUMIFS(Sheet1!S71_OY2AdjustedBudget,Sheet1!S71_A7CodePayments,$AC:$AC)","v":-61427850},null,null,null,null,null,null,null,null,null,null,null,null,null,null,null,"0310"]
["NET CASH FROM/(USED) INVESTING ACTIVITIES",null,{"$f":"+C23+C24+C25+C27","v":-146739790},-153901349,0,0,0,-2283000,0,-2283000,-156184349,-80639551,-61427850]
[]
["CASH FLOWS FROM FINANCING ACTIVITIES"]
["Receipts"]
["Short term loans",null,{"$f":"SUMIFS(Sheet1!S71_OriginalBudget,Sheet1!S71_SA30FDSubCode,$AC:$AC,Sheet1!S71_CFCode,$AD:$AD)","v":0},{"$f":"SUMIFS(Sheet1!S71_PreviousBudget,Sheet1!S71_SA30FDSubCode,$AC:$AC,Sheet1!S71_CFCode,$AD:$AD)","v":0},null,null,null,null,{"$f":"SUMIFS(Sheet1!S71_CurrentAdjustments,Sheet1!S71_SA30FDSubCode,$AC:$AC,Sheet1!S71_CFCode,$AD:$AD)","v":0},{"$f":"SUM(E32:I32)","v":0},{"$f":"IF(D32=0,C32+J32,D32+J32)","v":0},{"$f":"SUMIFS(Sheet1!S71_OY1AdjustedBudget,Sheet1!S71_SA30FDSubCode,$AC:$AC,Sheet1!S71_CFCode,$AD:$AD)","v":0},{"$f":"SUMIFS(Sheet1!S71_OY2AdjustedBudget,Sheet1!S71_SA30FDSubCode,$AC:$AC,Sheet1!S71_CFCode,$AD:$AD)","v":0},null,null,null,null,null,null,null,null,null,null,null,null,null,null,null,"0310"]
["Borrowing long term/refinancing",null,{"$f":"SUMIFS(Sheet1!S71_OriginalBudget,Sheet1!S71_SA30FDSubCode,$AC:$AC,Sheet1!S71_CFCode,$AD:$AD)","v":0},{"$f":"SUMIFS(Sheet1!S71_PreviousBudget,Sheet1!S71_SA30FDSubCode,$AC:$AC,Sheet1!S71_CFCode,$AD:$AD)","v":0},null,null,null,null,{"$f":"SUMIFS(Sheet1!S71_CurrentAdjustments,Sheet1!S71_SA30FDSubCode,$AC:$AC,Sheet1!S71_CFCode,$AD:$AD)","v":0},{"$f":"SUM(E33:I33)","v":0},{"$f":"IF(D33=0,C33+J33,D33+J33)","v":0},{"$f":"SUMIFS(Sheet1!S71_OY1AdjustedBudget,Sheet1!S71_SA30FDSubCode,$AC:$AC,Sheet1!S71_CFCode,$AD:$AD)","v":0},{"$f":"SUMIFS(Sheet1!S71_OY2AdjustedBudget,Sheet1!S71_SA30FDSubCode,$AC:$AC,Sheet1!S71_CFCode,$AD:$AD)","v":0},null,null,null,null,null,null,null,null,null,null,null,null,null,null,null,"0320"]
["Increase (decrease) in consumer deposits",null,{"$f":"SUMIFS(Sheet1!S71_OriginalBudget,Sheet1!S71_SA30FDSubCode,$AC:$AC,Sheet1!S71_CFCode,$AD:$AD)","v":0},{"$f":"SUMIFS(Sheet1!S71_PreviousBudget,Sheet1!S71_SA30FDSubCode,$AC:$AC,Sheet1!S71_CFCode,$AD:$AD)","v":0},null,null,null,null,{"$f":"SUMIFS(Sheet1!S71_CurrentAdjustments,Sheet1!S71_SA30FDSubCode,$AC:$AC,Sheet1!S71_CFCode,$AD:$AD)","v":0},{"$f":"SUM(E34:I34)","v":0},{"$f":"IF(D34=0,C34+J34,D34+J34)","v":0},{"$f":"SUMIFS(Sheet1!S71_OY1AdjustedBudget,Sheet1!S71_SA30FDSubCode,$AC:$AC,Sheet1!S71_CFCode,$AD:$AD)","v":0},{"$f":"SUMIFS(Sheet1!S71_OY2AdjustedBudget,Sheet1!S71_SA30FDSubCode,$AC:$AC,Sheet1!S71_CFCode,$AD:$AD)","v":0},null,null,null,null,null,null,null,null,null,null,null,null,null,null,null,"0330"]
["Payments"]
["Repayment of borrowing",null,{"$f":"SUMIFS(Sheet1!S71_OriginalBudget,Sheet1!S71_SA30FDSubCode,$AC:$AC,Sheet1!S71_CFCode,$AD:$AD)","v":0},{"$f":"SUMIFS(Sheet1!S71_PreviousBudget,Sheet1!S71_SA30FDSubCode,$AC:$AC,Sheet1!S71_CFCode,$AD:$AD)","v":0},null,null,null,null,{"$f":"-SUMIFS(Sheet1!S71_CurrentAdjustments,Sheet1!S71_A7CodePayments,$AC:$AC)","v":0},{"$f":"SUM(E36:I36)","v":0},{"$f":"IF(D36=0,C36+J36,D36+J36)","v":0},{"$f":"SUMIFS(Sheet1!S71_OY1AdjustedBudget,Sheet1!S71_SA30FDSubCode,$AC:$AC,Sheet1!S71_CFCode,$AD:$AD)","v":0},{"$f":"SUMIFS(Sheet1!S71_OY2AdjustedBudget,Sheet1!S71_SA30FDSubCode,$AC:$AC,Sheet1!S71_CFCode,$AD:$AD)","v":0},null,null,null,null,null,null,null,null,null,null,null,null,null,null,null,"0390"]
["NET CASH FROM/(USED) FINANCING ACTIVITIES",null,{"$f":"SUM(C32:C34)+C36","v":0},{"$f":"SUM(D32:D34)+D36","v":0},0,0,0,0,0,{"$f":"SUM(J32:J36)","v":0},{"$f":"SUM(K32:K36)","v":0},{"$f":"SUM(L32:L34)+L36","v":0},{"$f":"SUM(M32:M34)+M36","v":0}]
[]
["NET INCREASE/ (DECREASE) IN CASH HELD",null,{"$f":"C19+C28+C37","v":-100705333},-116427767,0,0,0,2898500,0,2898500,-113529267,-35690666,-16490341]
["Cash/cash equivalents at the year begin:",2,{"$f":"SUMIFS(Sheet1!S71_OriginalBudget,Sheet1!S71_A7CodePayments,$AC:$AC)","v":183423751},{"$f":"SUMIFS(Sheet1!S71_PreviousBudget,Sheet1!S71_A7CodePayments,$AC:$AC)","v":208807883},null,null,null,null,{"$f":"SUMIFS(Sheet1!S71_CurrentAdjustments,Sheet1!S71_A7CodePayments,$AC:$AC)","v":0},{"$f":"SUM(E40:I40)","v":0},{"$f":"IF(D40=0,C40+J40,D40+J40)","v":208807883},{"$f":"SUMIFS(Sheet1!S71_OY1AdjustedBudget,Sheet1!S71_A7CodePayments,$AC:$AC)","v":154103976},{"$f":"SUMIFS(Sheet1!S71_OY2AdjustedBudget,Sheet1!S71_A7CodePayments,$AC:$AC)","v":155845206},null,null,null,null,null,null,null,null,null,null,null,null,null,null,null,"0420"]
["Cash/cash equivalents at the year end:",2,{"$f":"C39+C40","v":82718418},{"$f":"D39+D40","v":92380116},0,0,0,2898500,0,2898500,{"$f":"K39+K40","v":95278616},{"$f":"L39+L40","v":118413310},{"$f":"M39+M40","v":139354865}]
[{"$f":"head27a","v":"References"}]
["1. Local/District municipalities to include transfers from/to District/Local Municipalities"]
["2. Cash equivalents includes investments with maturities of 3 months or less"]
["3. Only complete if a previous adjusted budget has been approved in the same financial year. Reflect most recent adjusted budget."]
["4. Additional cash-backed accumulated funds/unspent funds (MFMA section 18(1)(b) and section 28(2)(e)) identified after the Original Budget approved and after annual financial statements audited (note: only where underspending could not reasonably have been foreseen)"]
["5. Increases of funds approved under MFMA section 31"]
["6. Adjustments approved in accordance with MFMA section 29 "]
["7. Adjustments to transfers from National or Provincial Government"]
["8. Adjusts. = 'Other' Adjustments proposed to be approved; including revenue under-collection (MFMA section 28(2)(a)); additional revenue appropriation on existing programmes (section 28(2))(b); projected savings (section 28(2)(d)); error correction (section 28(2)(f))"]
["9. G = B + C + D + E + F"]
["10. Adjusted Budget H = (A or A1) + G"]

{"sheet":"B8-ResRecon","index":34,"n_rows":70,"n_cols":29,"rows_kept":70,"cut":false,"hidden":false,"merged":[[1,1,3,1],[1,0,3,0],[1,2,1,10]]}
[{"$f":"muni&\" - \"&_ADJ8&\" - \"&Date","v":"KZN291 Mandeni - Table B8 Cash backed reserves/accumulated surplus reconciliation - 08-04-2025"}]
[{"$f":"desc","v":"Description"},{"$f":"head27","v":"Ref"},{"$f":"Head2","v":"Budget Year 2024/25"},null,null,null,null,null,null,null,null,{"$f":"Head10","v":"Budget Year +1 2025/26"},{"$f":"Head11","v":"Budget Year +2 2026/27"}]
[null,null,{"$f":"Head6","v":"Original Budget"},{"$f":"Head54","v":"Prior Adjusted"},{"$f":"Head51","v":"Accum. Funds"},{"$f":"Head52","v":"Multi-year capital"},{"$f":"Head53","v":"Unfore. Unavoid."},{"$f":"Head55","v":"Nat. or Prov. Govt"},{"$f":"Head50","v":"Other Adjusts."},{"$f":"Head56","v":"Total Adjusts."},{"$f":"Head7","v":"Adjusted Budget"},{"$f":"Head7","v":"Adjusted Budget"},{"$f":"Head7","v":"Adjusted Budget"}]
[null,null,null,3,4,5,6,7,8,9,10]
["R thousands",null,"A","A1","B","C","D","E","F","G","H"]
["Cash and investments available"]
["Cash/cash equivalents at the year end",1,{"$f":"'B7-CFlow'!C41","v":82718418},{"$f":"'B7-CFlow'!D41","v":92380116},{"$f":"'B7-CFlow'!E41","v":0},{"$f":"'B7-CFlow'!F41","v":0},{"$f":"'B7-CFlow'!G41","v":0},{"$f":"'B7-CFlow'!H41","v":2898500},{"$f":"'B7-CFlow'!I41","v":0},{"$f":"SUM(E7:I7)","v":2898500},{"$f":"IF(D7=0,C7+J7,D7+J7)","v":95278616},{"$f":"'B7-CFlow'!L41","v":118413310},{"$f":"'B7-CFlow'!M41","v":139354865}]
["Other current investments  > 90 days",null,{"$f":"'B6-FinPos'!C8-'B6-FinPos'!C32-'B8-ResRecon'!C7","v":-3764530},{"$f":"'B6-FinPos'!D8-'B6-FinPos'!D32-'B8-ResRecon'!D7","v":-171730},{"$f":"'B6-FinPos'!E8-'B6-FinPos'!E32-'B8-ResRecon'!E7","v":0},{"$f":"'B6-FinPos'!F8-'B6-FinPos'!F32-'B8-ResRecon'!F7","v":0},{"$f":"'B6-FinPos'!G8-'B6-FinPos'!G32-'B8-ResRecon'!G7","v":0},{"$f":"'B6-FinPos'!H8-'B6-FinPos'!H32-'B8-ResRecon'!H7","v":0},{"$f":"'B6-FinPos'!I8-'B6-FinPos'!I32-'B8-ResRecon'!I7","v":0},{"$f":"SUM(E8:I8)","v":0},{"$f":"IF(D8=0,C8+J8,D8+J8)","v":-171730},{"$f":"'B6-FinPos'!L8-'B6-FinPos'!L32-'B8-ResRecon'!L7","v":-2437697},{"$f":"'B6-FinPos'!M8-'B6-FinPos'!M32-'B8-ResRecon'!M7","v":-2549824}]
["Non current assets - Investments",1,{"$f":"'B6-FinPos'!C17","v":0},{"$f":"'B6-FinPos'!D17","v":0},{"$f":"'B6-FinPos'!E17","v":0},{"$f":"'B6-FinPos'!F17","v":0},{"$f":"'B6-FinPos'!G17","v":0},{"$f":"'B6-FinPos'!H17","v":0},{"$f":"'B6-FinPos'!I17","v":0},{"$f":"SUM(E9:I9)","v":0},{"$f":"IF(D9=0,C9+J9,D9+J9)","v":0},{"$f":"'B6-FinPos'!L17","v":0},{"$f":"'B6-FinPos'!M17","v":0}]
["Cash and investments available:",null,{"$f":"SUM(C7:C9)","v":78953888},92208386,0,0,0,2898500,0,2898500,95106886,115975613,136805041]
[]
["Applications of cash and investments"]
["Unspent conditional transfers",null,{"$f":"'SB2'!C142","v":8283940},{"$f":"'SB2'!D142","v":5435638},{"$f":"'SB2'!E142","v":0},{"$f":"'SB2'!F142","v":0},{"$f":"'SB2'!G142","v":0},{"$f":"'SB2'!H142","v":2898000},{"$f":"'SB2'!I142","v":0},{"$f":"SUM(E13:I13)","v":2898000},{"$f":"IF(D13=0,C13+J13,D13+J13)","v":8333638},{"$f":"'SB2'!L142","v":0},{"$f":"'SB2'!M142","v":0}]
["Unspent borrowing",null,null,null,null,null,null,null,null,0,{"$f":"IF(D14=0,C14+J14,D14+J14)","v":0}]
["Statutory requirements",null,{"$f":"-SUMIFS(Sheet1!S71_OriginalBudget,Sheet1!S71_A8Code,_xlfn.SINGLE($AC:$AC))","v":-45071377},{"$f":"-SUMIFS(Sheet1!S71_PreviousBudget,Sheet1!S71_A8Code,$AC:$AC)","v":-28021306},null,null,null,{"$f":"-SUMIFS(Sheet1!S71_CurrentAdjustments,Sheet1!S71_A8Code,$AC:$AC)","v":-297783},0,-297783,{"$f":"IF(D15=0,C15+J15,D15+J15)","v":-28319089},{"$f":"-SUMIFS(Sheet1!S71_OY1AdjustedBudget,Sheet1!S71_A8Code,$AC:$AC)","v":-36843448},{"$f":"-SUMIFS(Sheet1!S71_OY1AdjustedBudget,Sheet1!S71_A8Code,$AC:$AC)","v":-36843448},null,null,null,null,null,null,null,null,null,null,null,null,null,null,null,"1003"]
["Other working capital requirements",2,{"$f":"-C40","v":-23693059},{"$f":"-D40","v":-25868241},null,null,null,-3195170,{"$f":"IF(D16=0,(K16-C16)-SUM(E16:H16),(K16-D16)-SUM(E16:H16))","v":0},-3195170,{"$f":"-K40","v":-29063411},{"$f":"-L40","v":-24199217},{"$f":"-M40","v":-27110517}]
["Other provisions",null,{"$f":"-SUMIFS(Sheet1!S71_OriginalBudget,Sheet1!S71_A8Code,_xlfn.SINGLE($AC:$AC))","v":8676860},{"$f":"-SUMIFS(Sheet1!S71_PreviousBudget,Sheet1!S71_A8Code,$AC:$AC)","v":8908018},null,null,null,null,{"$f":"-SUMIFS(Sheet1!S71_CurrentAdjustments,Sheet1!S71_A8Code,$AC:$AC)","v":0},0,{"$f":"IF(D17=0,C17+J17,D17+J17)","v":8908018},{"$f":"-SUMIFS(Sheet1!S71_OY1AdjustedBudget,Sheet1!S71_A8Code,$AC:$AC)","v":6043805},{"$f":"-SUMIFS(Sheet1!S71_OY1AdjustedBudget,Sheet1!S71_A8Code,$AC:$AC)","v":6043805},null,null,null,null,null,null,null,null,null,null,null,null,null,null,null,"1005"]
["Long term investments committed",null,{"$f":"C55","v":0},{"$f":"D55","v":0},null,null,null,null,{"$f":"IF(D18=0,(K18-C18)-SUM(E18:H18),(K18-D18)-SUM(E18:H18))","v":0},0,{"$f":"K55","v":0},{"$f":"L55","v":0},{"$f":"M55","v":0}]
["Reserves to be backed by cash/investments",null,{"$f":"C70","v":2086090},{"$f":"D70","v":2133415},null,null,null,null,{"$f":"IF(D19=0,(K19-C19)-SUM(E19:H19),(K19-D19)-SUM(E19:H19))","v":0},0,{"$f":"K70","v":2133415},{"$f":"L70","v":2248668},{"$f":"M70","v":2313130}]
["Total Application of cash and investments:",null,{"$f":"SUM(C13:C19)","v":-49717546},-37412476,0,0,0,-594953,0,-594953,-38007429,-52750192,-55597030]
["Surplus(shortfall)",null,{"$f":"C10-C20","v":128671434},129620862,0,0,0,3493453,0,3493453,133114315,168725805,192402071]
[{"$f":"head27a","v":"References"}]
["1. Must reconcile with the Adjustments Budget Cash Flow and Adjustements Budget Financial Position"]
["2. Council approval for policy required - include sufficient working capital (e.g. allowing for a % of current debtors > 90 days as uncollectable)"]
["3. Only complete if a previous adjusted budget has been approved in the same financial year. Reflect most recent adjusted budget."]
["4. Additional cash-backed accumulated funds/unspent funds (MFMA section 18(1)(b) and section 28(2)(e)) identified after the Original Budget approved and after annual financial statements audited (note: only where underspending could not reasonably have been foreseen)"]
["5. Increases of funds approved under MFMA section 31"]
["6. Adjustments approved in accordance with MFMA section 29 "]
["7. Adjustments to transfers from National or Provincial Government"]
["8. Adjusts. = 'Other' Adjustments proposed to be approved; including revenue under-collection (MFMA section 28(2)(a)); additional revenue appropriation on existing programmes (section 28(2))(b); projected savings (section 28(2)(d)); error correction (section 28(2)(f))"]
["9. G = B + C + D + E + F"]
["10. Adjusted Budget H = (A or A1) + G"]
[]
[]
[]
[]
[{"$f":"A16","v":"Other working capital requirements"}]
["Debtors",null,{"$f":"IF(ISERROR(ROUND(C43*C44,0)),0,(ROUND(C43*C44,0)))","v":46912838},{"$f":"IF(ISERROR(ROUND(D43*D44,0)),0,(ROUND(D43*D44,0)))","v":73924652},null,null,null,null,null,null,{"$f":"IF(ISERROR(ROUND(K43*K44,0)),0,(ROUND(K43*K44,0)))","v":77119822},{"$f":"IF(ISERROR(ROUND(L43*L44,0)),0,(ROUND(L43*L44,0)))","v":48938337},{"$f":"IF(ISERROR(ROUND(M43*M44,0)),0,(ROUND(M43*M44,0)))","v":52229734}]
["Creditors due",null,{"$f":"'SB2'!C140","v":23219779},{"$f":"'SB2'!D140","v":48056411},null,null,null,null,null,null,{"$f":"'SB2'!K140","v":48056411},{"$f":"'SB2'!L140","v":24739120},{"$f":"'SB2'!M140","v":25119217}]
["Total",null,{"$f":"C38-C39","v":23693059},{"$f":"D38-D39","v":25868241},null,null,null,null,null,null,{"$f":"K38-K39","v":29063411},{"$f":"L38-L39","v":24199217},{"$f":"M38-M39","v":27110517}]
[]
["Debtors collection assumptions:"]
["Balance outstanding - debtors",null,{"$f":"'B6-FinPos'!C9+'B6-FinPos'!C10+'B6-FinPos'!C11+'B6-FinPos'!C24+'B6-FinPos'!C25","v":69211223},{"$f":"'B6-FinPos'!D9+'B6-FinPos'!D10+'B6-FinPos'!D11+'B6-FinPos'!D24+'B6-FinPos'!D25","v":91025977},null,null,null,null,null,null,{"$f":"'B6-FinPos'!K9+'B6-FinPos'!K10+'B6-FinPos'!K14+'B6-FinPos'!K24+'B6-FinPos'!K25","v":91025977},{"$f":"'B6-FinPos'!L9+'B6-FinPos'!L10+'B6-FinPos'!L14+'B6-FinPos'!L24+'B6-FinPos'!L25","v":70291582},{"$f":"'B6-FinPos'!M9+'B6-FinPos'!M10+'B6-FinPos'!M14+'B6-FinPos'!M24+'B6-FinPos'!M25","v":74582106}]
["Estimate of debtors collection rate",null,{"$f":"IF(ISERROR('SB6'!G10),0,('SB6'!G10))","v":0.6778212521506376},{"$f":"IF(ISERROR('SB6'!H10),0,('SB6'!H10))","v":0.81212698230297486},null,null,null,null,null,null,{"$f":"IF(ISERROR('SB6'!I10),0,('SB6'!I10))","v":0.84722871895609464},{"$f":"IF(ISERROR('SB6'!J10),0,('SB6'!J10))","v":0.69621902259775492},{"$f":"IF(ISERROR('SB6'!K10),0,('SB6'!K10))","v":0.70029845562562099}]
[]
[{"$f":"A18","v":"Long term investments committed"}]
["(Insert description; eg sinking fund)"]
[]
[]
[]
[]
[]
[]
[]
[null,null,{"$f":"SUM(C47:C54)","v":0},{"$f":"SUM(D47:D54)","v":0},null,null,null,null,null,null,{"$f":"SUM(K47:K54)","v":0},{"$f":"SUM(L47:L54)","v":0},{"$f":"SUM(M47:M54)","v":0}]
[]
[{"$f":"A19","v":"Reserves to be backed by cash/investments"}]
["Housing Development Fund",null,{"$f":"+'SB2'!C177","v":2086090},{"$f":"+'SB2'!D177","v":2133415},null,null,null,null,null,null,{"$f":"+'SB2'!K177","v":2133415},{"$f":"+'SB2'!L177","v":2248668},{"$f":"+'SB2'!M177","v":2313130}]
["Capital replacement",null,{"$f":"'SB2'!C178","v":0},{"$f":"'SB2'!D178","v":0},null,null,null,null,null,null,{"$f":"'SB2'!K178","v":0},{"$f":"'SB2'!L178","v":0},{"$f":"'SB2'!M178","v":0}]
["Self-insurance"]
["Compensation for Occupational Injuries and Diseases"]
["Employee Benefit"]
["Non-current Provisions"]
["Valuation"]
["Investment in associate account"]
["Capitalisation"]
[]
[]
[null,null,{"$f":"'SB2'!C180","v":0},{"$f":"'SB2'!D180","v":0},null,null,null,null,null,null,{"$f":"'SB2'!K180","v":0},{"$f":"'SB2'!L180","v":0},{"$f":"'SB2'!M180","v":0}]
[null,null,{"$f":"SUM(C58:C69)","v":2086090},{"$f":"SUM(D58:D69)","v":2133415},null,null,null,null,null,null,{"$f":"SUM(K58:K69)","v":2133415},2248668,2313130]

{"sheet":"B9-Asset","index":35,"n_rows":243,"n_cols":30,"rows_kept":243,"cut":false,"hidden":false,"merged":[[239,0,239,12],[233,0,233,12],[237,0,237,12],[1,2,1,10],[1,0,3,0],[1,1,3,1],[232,0,232,12],[234,0,234,12],[235,0,235,12]]}
[{"$f":"muni&\" - \"&_ADJ9&\" - \"&Date","v":"KZN291 Mandeni - Table B9 Asset Management - 08-04-2025"}]
[{"$f":"desc","v":"Description"},{"$f":"head27","v":"Ref"},{"$f":"Head2","v":"Budget Year 2024/25"},null,null,null,null,null,null,null,null,{"$f":"Head10","v":"Budget Year +1 2025/26"},{"$f":"Head11","v":"Budget Year +2 2026/27"}]
[null,null,{"$f":"Head6","v":"Original Budget"},{"$f":"Head54","v":"Prior Adjusted"},{"$f":"Head51","v":"Accum. Funds"},{"$f":"Head52","v":"Multi-year capital"},{"$f":"Head53","v":"Unfore. Unavoid."},{"$f":"Head55","v":"Nat. or Prov. Govt"},{"$f":"Head50","v":"Other Adjusts."},{"$f":"Head56","v":"Total Adjusts."},{"$f":"Head7","v":"Adjusted Budget"},{"$f":"Head7","v":"Adjusted Budget"},{"$f":"Head7","v":"Adjusted Budget"}]
[null,null,null,7,8,9,10,11,12,13,14]
["R thousands",null,"A","A1","B","C","D","E","F","G","H"]
["CAPITAL EXPENDITURE"]
["Total New Assets to be adjusted",1,{"$f":"C17+C20+C21+C24+C27+C28+SUM(C31:C37)+C40","v":52026590},{"$f":"D17+D20+D21+D24+D27+D28+SUM(D31:D37)+D40","v":58682845},0,0,0,0,0,0,58682845,34608696,15000000]
["Roads Infrastructure",null,{"$f":"SB18a!C9","v":9739129},{"$f":"SB18a!D9","v":5632575},{"$f":"SB18a!E9","v":0},{"$f":"SB18a!F9","v":0},{"$f":"SB18a!G9","v":0},{"$f":"SB18a!H9","v":0},{"$f":"SB18a!I9","v":0},{"$f":"SB18a!J9","v":0},{"$f":"SB18a!K9","v":5632575},{"$f":"SB18a!L9","v":3739130},{"$f":"SB18a!M9","v":0}]
["Storm water Infrastructure",null,{"$f":"SB18a!C14","v":0},{"$f":"SB18a!D14","v":0},{"$f":"SB18a!E14","v":0},{"$f":"SB18a!F14","v":0},{"$f":"SB18a!G14","v":0},{"$f":"SB18a!H14","v":0},{"$f":"SB18a!I14","v":0},{"$f":"SB18a!J14","v":0},{"$f":"SB18a!K14","v":0},{"$f":"SB18a!L14","v":0},{"$f":"SB18a!M14","v":0}]
["Electrical Infrastructure",null,{"$f":"SB18a!C18","v":2713043},{"$f":"SB18a!D18","v":1054836},{"$f":"SB18a!E18","v":0},{"$f":"SB18a!F18","v":0},{"$f":"SB18a!G18","v":0},{"$f":"SB18a!H18","v":0},{"$f":"SB18a!I18","v":0},{"$f":"SB18a!J18","v":0},{"$f":"SB18a!K18","v":1054836},{"$f":"SB18a!L18","v":0},{"$f":"SB18a!M18","v":0}]
["Water Supply Infrastructure",null,{"$f":"SB18a!C28","v":0},{"$f":"SB18a!D28","v":0},{"$f":"SB18a!E28","v":0},{"$f":"SB18a!F28","v":0},{"$f":"SB18a!G28","v":0},{"$f":"SB18a!H28","v":0},{"$f":"SB18a!I28","v":0},{"$f":"SB18a!J28","v":0},{"$f":"SB18a!K28","v":0},{"$f":"SB18a!L28","v":0},{"$f":"SB18a!M28","v":0}]
["Sanitation Infrastructure",null,{"$f":"SB18a!C39","v":69565},{"$f":"SB18a!D39","v":36282},{"$f":"SB18a!E39","v":0},{"$f":"SB18a!F39","v":0},{"$f":"SB18a!G39","v":0},{"$f":"SB18a!H39","v":0},{"$f":"SB18a!I39","v":0},{"$f":"SB18a!J39","v":0},{"$f":"SB18a!K39","v":36282},{"$f":"SB18a!L39","v":0},{"$f":"SB18a!M39","v":0}]
["Solid Waste Infrastructure",null,{"$f":"SB18a!C46","v":1739130},{"$f":"SB18a!D46","v":1560000},{"$f":"SB18a!E46","v":0},{"$f":"SB18a!F46","v":0},{"$f":"SB18a!G46","v":0},{"$f":"SB18a!H46","v":0},{"$f":"SB18a!I46","v":0},{"$f":"SB18a!J46","v":0},{"$f":"SB18a!K46","v":1560000},{"$f":"SB18a!L46","v":0},{"$f":"SB18a!M46","v":0}]
["Rail Infrastructure",null,{"$f":"SB18a!C54","v":0},{"$f":"SB18a!D54","v":0},{"$f":"SB18a!E54","v":0},{"$f":"SB18a!F54","v":0},{"$f":"SB18a!G54","v":0},{"$f":"SB18a!H54","v":0},{"$f":"SB18a!I54","v":0},{"$f":"SB18a!J54","v":0},{"$f":"SB18a!K54","v":0},{"$f":"SB18a!L54","v":0},{"$f":"SB18a!M54","v":0}]
["Coastal Infrastructure",null,{"$f":"SB18a!C64","v":217390},{"$f":"SB18a!D64","v":95600},{"$f":"SB18a!E64","v":0},{"$f":"SB18a!F64","v":0},{"$f":"SB18a!G64","v":0},{"$f":"SB18a!H64","v":0},{"$f":"SB18a!I64","v":0},{"$f":"SB18a!J64","v":0},{"$f":"SB18a!K64","v":95600},{"$f":"SB18a!L64","v":0},{"$f":"SB18a!M64","v":0}]
["Information and Communication Infrastructure",null,{"$f":"SB18a!C70","v":0},{"$f":"SB18a!D70","v":0},{"$f":"SB18a!E70","v":0},{"$f":"SB18a!F70","v":0},{"$f":"SB18a!G70","v":0},{"$f":"SB18a!H70","v":0},{"$f":"SB18a!I70","v":0},{"$f":"SB18a!J70","v":0},{"$f":"SB18a!K70","v":0},{"$f":"SB18a!L70","v":0},{"$f":"SB18a!M70","v":0}]
["Infrastructure",null,{"$f":"SUM(C8:C16)","v":14478257},{"$f":"SUM(D8:D16)","v":8379293},0,0,0,0,0,0,8379293,3739130,0]
["Community Facilities",null,{"$f":"SB18a!C77","v":6869560},{"$f":"SB18a!D77","v":9973881},{"$f":"SB18a!E77","v":0},{"$f":"SB18a!F77","v":0},{"$f":"SB18a!G77","v":0},{"$f":"SB18a!H77","v":0},{"$f":"SB18a!I77","v":0},{"$f":"SB18a!J77","v":0},{"$f":"SB18a!K77","v":9973881},{"$f":"SB18a!L77","v":10869566},{"$f":"SB18a!M77","v":0}]
["Sport and Recreation Facilities",null,{"$f":"SB18a!C100","v":8926608},{"$f":"SB18a!D100","v":12641160},{"$f":"SB18a!E100","v":0},{"$f":"SB18a!F100","v":0},{"$f":"SB18a!G100","v":0},{"$f":"SB18a!H100","v":0},{"$f":"SB18a!I100","v":0},{"$f":"SB18a!J100","v":0},{"$f":"SB18a!K100","v":12641160},{"$f":"SB18a!L100","v":0},{"$f":"SB18a!M100","v":0}]
["Community Assets",null,{"$f":"SUM(C18:C19)","v":15796168},{"$f":"SUM(D18:D19)","v":22615041},0,0,0,0,0,0,22615041,10869566,0]
["Heritage Assets",null,{"$f":"SB18a!C105","v":0},{"$f":"SB18a!D105","v":0},{"$f":"SB18a!E105","v":0},{"$f":"SB18a!F105","v":0},{"$f":"SB18a!G105","v":0},{"$f":"SB18a!H105","v":0},{"$f":"SB18a!I105","v":0},{"$f":"SB18a!J105","v":0},{"$f":"SB18a!K105","v":0},{"$f":"SB18a!L105","v":0},{"$f":"SB18a!M105","v":0}]
["Revenue Generating",null,{"$f":"SB18a!C113","v":0},{"$f":"SB18a!D113","v":0},{"$f":"SB18a!E113","v":0},{"$f":"SB18a!F113","v":0},{"$f":"SB18a!G113","v":0},{"$f":"SB18a!H113","v":0},{"$f":"SB18a!I113","v":0},{"$f":"SB18a!J113","v":0},{"$f":"SB18a!K113","v":0},{"$f":"SB18a!L113","v":0},{"$f":"SB18a!M113","v":0}]
["Non-revenue Generating",null,{"$f":"SB18a!C116","v":0},{"$f":"SB18a!D116","v":0},{"$f":"SB18a!E116","v":0},{"$f":"SB18a!F116","v":0},{"$f":"SB18a!G116","v":0},{"$f":"SB18a!H116","v":0},{"$f":"SB18a!I116","v":0},{"$f":"SB18a!J116","v":0},{"$f":"SB18a!K116","v":0},{"$f":"SB18a!L116","v":0},{"$f":"SB18a!M116","v":0}]
["Investment properties",null,{"$f":"SUM(C22:C23)","v":0},{"$f":"SUM(D22:D23)","v":0},0,0,0,0,0,0,0,0,0]
["Operational Buildings",null,{"$f":"SB18a!C121","v":5652175},{"$f":"SB18a!D121","v":10082001},{"$f":"SB18a!E121","v":0},{"$f":"SB18a!F121","v":0},{"$f":"SB18a!G121","v":0},{"$f":"SB18a!H121","v":0},{"$f":"SB18a!I121","v":0},{"$f":"SB18a!J121","v":0},{"$f":"SB18a!K121","v":10082001},{"$f":"SB18a!L121","v":20000000},{"$f":"SB18a!M121","v":15000000}]
["Housing",null,{"$f":"SB18a!C133","v":0},{"$f":"SB18a!D133","v":0},{"$f":"SB18a!E133","v":0},{"$f":"SB18a!F133","v":0},{"$f":"SB18a!G133","v":0},{"$f":"SB18a!H133","v":0},{"$f":"SB18a!I133","v":0},{"$f":"SB18a!J133","v":0},{"$f":"SB18a!K133","v":0},{"$f":"SB18a!L133","v":0},{"$f":"SB18a!M133","v":0}]
["Other Assets",6,{"$f":"SUM(C25:C26)","v":5652175},{"$f":"SUM(D25:D26)","v":10082001},0,0,0,0,0,0,10082001,20000000,15000000]
["Biological or Cultivated Assets",null,{"$f":"SB18a!C138","v":0},{"$f":"SB18a!D138","v":0},{"$f":"SB18a!E138","v":0},{"$f":"SB18a!F138","v":0},{"$f":"SB18a!G138","v":0},{"$f":"SB18a!H138","v":0},{"$f":"SB18a!I138","v":0},{"$f":"SB18a!J138","v":0},{"$f":"SB18a!K138","v":0},{"$f":"SB18a!L138","v":0},{"$f":"SB18a!M138","v":0}]
["Servitudes",null,{"$f":"SB18a!C142","v":0},{"$f":"SB18a!D142","v":0},{"$f":"SB18a!E142","v":0},{"$f":"SB18a!F142","v":0},{"$f":"SB18a!G142","v":0},{"$f":"SB18a!H142","v":0},{"$f":"SB18a!I142","v":0},{"$f":"SB18a!J142","v":0},{"$f":"SB18a!K142","v":0},{"$f":"SB18a!L142","v":0},{"$f":"SB18a!M142","v":0}]
["Licences and Rights",null,{"$f":"SB18a!C143","v":0},{"$f":"SB18a!D143","v":0},{"$f":"SB18a!E143","v":0},{"$f":"SB18a!F143","v":0},{"$f":"SB18a!G143","v":0},{"$f":"SB18a!H143","v":0},{"$f":"SB18a!I143","v":0},{"$f":"SB18a!J143","v":0},{"$f":"SB18a!K143","v":0},{"$f":"SB18a!L143","v":0},{"$f":"SB18a!M143","v":0}]
["Intangible Assets",null,{"$f":"SUM(C29:C30)","v":0},{"$f":"SUM(D29:D30)","v":0},0,0,0,0,0,0,0,0,0]
["Computer Equipment",null,{"$f":"SB18a!C151","v":956523},{"$f":"SB18a!D151","v":991501},{"$f":"SB18a!E151","v":0},{"$f":"SB18a!F151","v":0},{"$f":"SB18a!G151","v":0},{"$f":"SB18a!H151","v":0},{"$f":"SB18a!I151","v":0},{"$f":"SB18a!J151","v":0},{"$f":"SB18a!K151","v":991501},{"$f":"SB18a!L151","v":0},{"$f":"SB18a!M151","v":0}]
["Furniture and Office Equipment",null,{"$f":"SB18a!C154","v":1739129},{"$f":"SB18a!D154","v":1686955},{"$f":"SB18a!E154","v":0},{"$f":"SB18a!F154","v":0},{"$f":"SB18a!G154","v":0},{"$f":"SB18a!H154","v":0},{"$f":"SB18a!I154","v":0},{"$f":"SB18a!J154","v":0},{"$f":"SB18a!K154","v":1686955},{"$f":"SB18a!L154","v":0},{"$f":"SB18a!M154","v":0}]
["Machinery and Equipment",null,{"$f":"SB18a!C157","v":3039123},{"$f":"SB18a!D157","v":3116314},{"$f":"SB18a!E157","v":0},{"$f":"SB18a!F157","v":0},{"$f":"SB18a!G157","v":0},{"$f":"SB18a!H157","v":0},{"$f":"SB18a!I157","v":0},{"$f":"SB18a!J157","v":0},{"$f":"SB18a!K157","v":3116314},{"$f":"SB18a!L157","v":0},{"$f":"SB18a!M157","v":0}]
["Transport Assets",null,{"$f":"SB18a!C160","v":10365215},{"$f":"SB18a!D160","v":11811740},{"$f":"SB18a!E160","v":0},{"$f":"SB18a!F160","v":0},{"$f":"SB18a!G160","v":0},{"$f":"SB18a!H160","v":0},{"$f":"SB18a!I160","v":0},{"$f":"SB18a!J160","v":0},{"$f":"SB18a!K160","v":11811740},{"$f":"SB18a!L160","v":0},{"$f":"SB18a!M160","v":0}]
["Land",null,{"$f":"SB18a!C163","v":0},{"$f":"SB18a!D163","v":0},{"$f":"SB18a!E163","v":0},{"$f":"SB18a!F163","v":0},{"$f":"SB18a!G163","v":0},{"$f":"SB18a!H163","v":0},{"$f":"SB18a!I163","v":0},{"$f":"SB18a!J163","v":0},{"$f":"SB18a!K163","v":0},{"$f":"SB18a!L163","v":0},{"$f":"SB18a!M163","v":0}]
["Zoo's, Marine and Non-biological Animals",null,{"$f":"SB18a!C166","v":0},{"$f":"SB18a!D166","v":0},{"$f":"SB18a!E166","v":0},{"$f":"SB18a!F166","v":0},{"$f":"SB18a!G166","v":0},{"$f":"SB18a!H166","v":0},{"$f":"SB18a!I166","v":0},{"$f":"SB18a!J166","v":0},{"$f":"SB18a!K166","v":0},{"$f":"SB18a!L166","v":0},{"$f":"SB18a!M166","v":0}]
["Mature",null,{"$f":"+SB18a!C170","v":0},{"$f":"+SB18a!D170","v":0},{"$f":"+SB18a!E170","v":0},{"$f":"+SB18a!F170","v":0},{"$f":"+SB18a!G170","v":0},{"$f":"+SB18a!H170","v":0},{"$f":"+SB18a!I170","v":0},{"$f":"+SB18a!J170","v":0},{"$f":"+SB18a!K170","v":0},{"$f":"+SB18a!L170","v":0},{"$f":"+SB18a!M170","v":0}]
["Immature",null,{"$f":"+SB18a!C173","v":0},{"$f":"+SB18a!D173","v":0},{"$f":"+SB18a!E173","v":0},{"$f":"+SB18a!F173","v":0},{"$f":"+SB18a!G173","v":0},{"$f":"+SB18a!H173","v":0},{"$f":"+SB18a!I173","v":0},{"$f":"+SB18a!J173","v":0},{"$f":"+SB18a!K173","v":0},{"$f":"+SB18a!L173","v":0},{"$f":"+SB18a!M173","v":0}]
["Living Resources",null,{"$f":"+C38+C39","v":0},{"$f":"+D38+D39","v":0},0,0,0,0,0,0,0,0,0]
[]
["Total Renewal of Existing Assets to be adjusted",2,{"$f":"C52+C55+C56+C59+C62+C63+SUM(C66:C72)+C75","v":29347821},{"$f":"D52+D55+D56+D59+D62+D63+SUM(D66:D72)+D75","v":28034115},0,0,0,1985217.38,0,1985217.38,30019332.379999999,0,0]
["Roads Infrastructure",null,{"$f":"SB18b!C9","v":26304342},{"$f":"SB18b!D9","v":26729766},{"$f":"SB18b!E9","v":0},{"$f":"SB18b!F9","v":0},{"$f":"SB18b!G9","v":0},{"$f":"SB18b!H9","v":1985217.38},{"$f":"SB18b!I9","v":0},{"$f":"SB18b!J9","v":1985217.38},{"$f":"SB18b!K9","v":28714983.379999999},{"$f":"SB18b!L9","v":0},{"$f":"SB18b!M9","v":0}]
["Storm water Infrastructure",null,{"$f":"SB18b!C14","v":0},{"$f":"SB18b!D14","v":0},{"$f":"SB18b!E14","v":0},{"$f":"SB18b!F14","v":0},{"$f":"SB18b!G14","v":0},{"$f":"SB18b!H14","v":0},{"$f":"SB18b!I14","v":0},{"$f":"SB18b!J14","v":0},{"$f":"SB18b!K14","v":0},{"$f":"SB18b!L14","v":0},{"$f":"SB18b!M14","v":0}]
["Electrical Infrastructure",null,{"$f":"SB18b!C18","v":434783},{"$f":"SB18b!D18","v":434783},{"$f":"SB18b!E18","v":0},{"$f":"SB18b!F18","v":0},{"$f":"SB18b!G18","v":0},{"$f":"SB18b!H18","v":0},{"$f":"SB18b!I18","v":0},{"$f":"SB18b!J18","v":0},{"$f":"SB18b!K18","v":434783},{"$f":"SB18b!L18","v":0},{"$f":"SB18b!M18","v":0}]
["Water Supply Infrastructure",null,{"$f":"SB18b!C28","v":0},{"$f":"SB18b!D28","v":0},{"$f":"SB18b!E28","v":0},{"$f":"SB18b!F28","v":0},{"$f":"SB18b!G28","v":0},{"$f":"SB18b!H28","v":0},{"$f":"SB18b!I28","v":0},{"$f":"SB18b!J28","v":0},{"$f":"SB18b!K28","v":0},{"$f":"SB18b!L28","v":0},{"$f":"SB18b!M28","v":0}]
["Sanitation Infrastructure",null,{"$f":"SB18b!C39","v":0},{"$f":"SB18b!D39","v":0},{"$f":"SB18b!E39","v":0},{"$f":"SB18b!F39","v":0},{"$f":"SB18b!G39","v":0},{"$f":"SB18b!H39","v":0},{"$f":"SB18b!I39","v":0},{"$f":"SB18b!J39","v":0},{"$f":"SB18b!K39","v":0},{"$f":"SB18b!L39","v":0},{"$f":"SB18b!M39","v":0}]
["Solid Waste Infrastructure",null,{"$f":"SB18b!C46","v":0},{"$f":"SB18b!D46","v":0},{"$f":"SB18b!E46","v":0},{"$f":"SB18b!F46","v":0},{"$f":"SB18b!G46","v":0},{"$f":"SB18b!H46","v":0},{"$f":"SB18b!I46","v":0},{"$f":"SB18b!J46","v":0},{"$f":"SB18b!K46","v":0},{"$f":"SB18b!L46","v":0},{"$f":"SB18b!M46","v":0}]
["Rail Infrastructure",null,{"$f":"SB18b!C54","v":0},{"$f":"SB18b!D54","v":0},{"$f":"SB18b!E54","v":0},{"$f":"SB18b!F54","v":0},{"$f":"SB18b!G54","v":0},{"$f":"SB18b!H54","v":0},{"$f":"SB18b!I54","v":0},{"$f":"SB18b!J54","v":0},{"$f":"SB18b!K54","v":0},{"$f":"SB18b!L54","v":0},{"$f":"SB18b!M54","v":0}]
["Coastal Infrastructure",null,{"$f":"SB18b!C64","v":0},{"$f":"SB18b!D64","v":0},{"$f":"SB18b!E64","v":0},{"$f":"SB18b!F64","v":0},{"$f":"SB18b!G64","v":0},{"$f":"SB18b!H64","v":0},{"$f":"SB18b!I64","v":0},{"$f":"SB18b!J64","v":0},{"$f":"SB18b!K64","v":0},{"$f":"SB18b!L64","v":0},{"$f":"SB18b!M64","v":0}]
["Information and Communication Infrastructure",null,{"$f":"SB18b!C70","v":0},{"$f":"SB18b!D70","v":0},{"$f":"SB18b!E70","v":0},{"$f":"SB18b!F70","v":0},{"$f":"SB18b!G70","v":0},{"$f":"SB18b!H70","v":0},{"$f":"SB18b!I70","v":0},{"$f":"SB18b!J70","v":0},{"$f":"SB18b!K70","v":0},{"$f":"SB18b!L70","v":0},{"$f":"SB18b!M70","v":0}]
["Infrastructure",null,{"$f":"SUM(C43:C51)","v":26739125},{"$f":"SUM(D43:D51)","v":27164549},0,0,0,1985217.38,0,1985217.38,29149766.379999999,0,0]
["Community Facilities",null,{"$f":"SB18b!C77","v":2608696},{"$f":"SB18b!D77","v":869566},{"$f":"SB18b!E77","v":0},{"$f":"SB18b!F77","v":0},{"$f":"SB18b!G77","v":0},{"$f":"SB18b!H77","v":0},{"$f":"SB18b!I77","v":0},{"$f":"SB18b!J77","v":0},{"$f":"SB18b!K77","v":869566},{"$f":"SB18b!L77","v":0},{"$f":"SB18b!M77","v":0}]
["Sport and Recreation Facilities",null,{"$f":"SB18b!C100","v":0},{"$f":"SB18b!D100","v":0},{"$f":"SB18b!E100","v":0},{"$f":"SB18b!F100","v":0},{"$f":"SB18b!G100","v":0},{"$f":"SB18b!H100","v":0},{"$f":"SB18b!I100","v":0},{"$f":"SB18b!J100","v":0},{"$f":"SB18b!K100","v":0},{"$f":"SB18b!L100","v":0},{"$f":"SB18b!M100","v":0}]
["Community Assets",null,{"$f":"SUM(C53:C54)","v":2608696},{"$f":"SUM(D53:D54)","v":869566},0,0,0,0,0,0,869566,0,0]
["Heritage Assets",null,{"$f":"SB18b!C105","v":0},{"$f":"SB18b!D105","v":0},{"$f":"SB18b!E105","v":0},{"$f":"SB18b!F105","v":0},{"$f":"SB18b!G105","v":0},{"$f":"SB18b!H105","v":0},{"$f":"SB18b!I105","v":0},{"$f":"SB18b!J105","v":0},{"$f":"SB18b!K105","v":0},{"$f":"SB18b!L105","v":0},{"$f":"SB18b!M105","v":0}]
["Revenue Generating",null,{"$f":"SB18b!C113","v":0},{"$f":"SB18b!D113","v":0},{"$f":"SB18b!E113","v":0},{"$f":"SB18b!F113","v":0},{"$f":"SB18b!G113","v":0},{"$f":"SB18b!H113","v":0},{"$f":"SB18b!I113","v":0},{"$f":"SB18b!J113","v":0},{"$f":"SB18b!K113","v":0},{"$f":"SB18b!L113","v":0},{"$f":"SB18b!M113","v":0}]
["Non-revenue Generating",null,{"$f":"SB18b!C116","v":0},{"$f":"SB18b!D116","v":0},{"$f":"SB18b!E116","v":0},{"$f":"SB18b!F116","v":0},{"$f":"SB18b!G116","v":0},{"$f":"SB18b!H116","v":0},{"$f":"SB18b!I116","v":0},{"$f":"SB18b!J116","v":0},{"$f":"SB18b!K116","v":0},{"$f":"SB18b!L116","v":0},{"$f":"SB18b!M116","v":0}]
["Investment properties",null,{"$f":"SUM(C57:C58)","v":0},{"$f":"SUM(D57:D58)","v":0},0,0,0,0,0,0,0,0,0]
["Operational Buildings",null,{"$f":"SB18b!C121","v":0},{"$f":"SB18b!D121","v":0},{"$f":"SB18b!E121","v":0},{"$f":"SB18b!F121","v":0},{"$f":"SB18b!G121","v":0},{"$f":"SB18b!H121","v":0},{"$f":"SB18b!I121","v":0},{"$f":"SB18b!J121","v":0},{"$f":"SB18b!K121","v":0},{"$f":"SB18b!L121","v":0},{"$f":"SB18b!M121","v":0}]
["Housing",null,{"$f":"SB18b!C133","v":0},{"$f":"SB18b!D133","v":0},{"$f":"SB18b!E133","v":0},{"$f":"SB18b!F133","v":0},{"$f":"SB18b!G133","v":0},{"$f":"SB18b!H133","v":0},{"$f":"SB18b!I133","v":0},{"$f":"SB18b!J133","v":0},{"$f":"SB18b!K133","v":0},{"$f":"SB18b!L133","v":0},{"$f":"SB18b!M133","v":0}]
["Other Assets",6,{"$f":"SUM(C60:C61)","v":0},{"$f":"SUM(D60:D61)","v":0},0,0,0,0,0,0,0,0,0]
["Biological or Cultivated Assets",null,{"$f":"SB18b!C138","v":0},{"$f":"SB18b!D138","v":0},{"$f":"SB18b!E138","v":0},{"$f":"SB18b!F138","v":0},{"$f":"SB18b!G138","v":0},{"$f":"SB18b!H138","v":0},{"$f":"SB18b!I138","v":0},{"$f":"SB18b!J138","v":0},{"$f":"SB18b!K138","v":0},{"$f":"SB18b!L138","v":0},{"$f":"SB18b!M138","v":0}]
["Servitudes",null,{"$f":"SB18b!C142","v":0},{"$f":"SB18b!D142","v":0},{"$f":"SB18b!E142","v":0},{"$f":"SB18b!F142","v":0},{"$f":"SB18b!G142","v":0},{"$f":"SB18b!H142","v":0},{"$f":"SB18b!I142","v":0},{"$f":"SB18b!J142","v":0},{"$f":"SB18b!K142","v":0},{"$f":"SB18b!L142","v":0},{"$f":"SB18b!M142","v":0}]
["Licences and Rights",null,{"$f":"SB18b!C143","v":0},{"$f":"SB18b!D143","v":0},{"$f":"SB18b!E143","v":0},{"$f":"SB18b!F143","v":0},{"$f":"SB18b!G143","v":0},{"$f":"SB18b!H143","v":0},{"$f":"SB18b!I143","v":0},{"$f":"SB18b!J143","v":0},{"$f":"SB18b!K143","v":0},{"$f":"SB18b!L143","v":0},{"$f":"SB18b!M143","v":0}]
["Intangible Assets",null,{"$f":"SUM(C64:C65)","v":0},{"$f":"SUM(D64:D65)","v":0},0,0,0,0,0,0,0,0,0]
["Computer Equipment",null,{"$f":"SB18b!C151","v":0},{"$f":"SB18b!D151","v":0},{"$f":"SB18b!E151","v":0},{"$f":"SB18b!F151","v":0},{"$f":"SB18b!G151","v":0},{"$f":"SB18b!H151","v":0},{"$f":"SB18b!I151","v":0},{"$f":"SB18b!J151","v":0},{"$f":"SB18b!K151","v":0},{"$f":"SB18b!L151","v":0},{"$f":"SB18b!M151","v":0}]
["Furniture and Office Equipment",null,{"$f":"SB18b!C154","v":0},{"$f":"SB18b!D154","v":0},{"$f":"SB18b!E154","v":0},{"$f":"SB18b!F154","v":0},{"$f":"SB18b!G154","v":0},{"$f":"SB18b!H154","v":0},{"$f":"SB18b!I154","v":0},{"$f":"SB18b!J154","v":0},{"$f":"SB18b!K154","v":0},{"$f":"SB18b!L154","v":0},{"$f":"SB18b!M154","v":0}]
["Machinery and Equipment",null,{"$f":"SB18b!C157","v":0},{"$f":"SB18b!D157","v":0},{"$f":"SB18b!E157","v":0},{"$f":"SB18b!F157","v":0},{"$f":"SB18b!G157","v":0},{"$f":"SB18b!H157","v":0},{"$f":"SB18b!I157","v":0},{"$f":"SB18b!J157","v":0},{"$f":"SB18b!K157","v":0},{"$f":"SB18b!L157","v":0},{"$f":"SB18b!M157","v":0}]
["Transport Assets",null,{"$f":"SB18b!C160","v":0},{"$f":"SB18b!D160","v":0},{"$f":"SB18b!E160","v":0},{"$f":"SB18b!F160","v":0},{"$f":"SB18b!G160","v":0},{"$f":"SB18b!H160","v":0},{"$f":"SB18b!I160","v":0},{"$f":"SB18b!J160","v":0},{"$f":"SB18b!K160","v":0},{"$f":"SB18b!L160","v":0},{"$f":"SB18b!M160","v":0}]
["Land",null,{"$f":"SB18b!C163","v":0},{"$f":"SB18b!D163","v":0},{"$f":"SB18b!E163","v":0},{"$f":"SB18b!F163","v":0},{"$f":"SB18b!G163","v":0},{"$f":"SB18b!H163","v":0},{"$f":"SB18b!I163","v":0},{"$f":"SB18b!J163","v":0},{"$f":"SB18b!K163","v":0},{"$f":"SB18b!L163","v":0},{"$f":"SB18b!M163","v":0}]
["Zoo's, Marine and Non-biological Animals",null,{"$f":"SB18b!C166","v":0},{"$f":"SB18b!D166","v":0},{"$f":"SB18b!E166","v":0},{"$f":"SB18b!F166","v":0},{"$f":"SB18b!G166","v":0},{"$f":"SB18b!H166","v":0},{"$f":"SB18b!I166","v":0},{"$f":"SB18b!J166","v":0},{"$f":"SB18b!K166","v":0},{"$f":"SB18b!L166","v":0},{"$f":"SB18b!M166","v":0}]
["Mature",null,{"$f":"+SB18b!C170","v":0},{"$f":"+SB18b!D170","v":0},{"$f":"+SB18b!E170","v":0},{"$f":"+SB18b!F170","v":0},{"$f":"+SB18b!G170","v":0},{"$f":"+SB18b!H170","v":0},{"$f":"+SB18b!I170","v":0},{"$f":"+SB18b!J170","v":0},{"$f":"+SB18b!K170","v":0},{"$f":"+SB18b!L170","v":0},{"$f":"+SB18b!M170","v":0}]
["Immature",null,{"$f":"+SB18b!C173","v":0},{"$f":"+SB18b!D173","v":0},{"$f":"+SB18b!E173","v":0},{"$f":"+SB18b!F173","v":0},{"$f":"+SB18b!G173","v":0},{"$f":"+SB18b!H173","v":0},{"$f":"+SB18b!I173","v":0},{"$f":"+SB18b!J173","v":0},{"$f":"+SB18b!K173","v":0},{"$f":"+SB18b!L173","v":0},{"$f":"+SB18b!M173","v":0}]
["Living Resources",null,{"$f":"+C73+C74","v":0},0,0,0,0,0,0,0,0,0,0]
[]
["Total Upgrading of Existing Assets to be adjusted","2a",{"$f":"C87+C90+C91+C94+C97+C98+SUM(C101:C107)+C110","v":46225404},{"$f":"D87+D90+D91+D94+D97+D98+SUM(D101:D107)+D110","v":47112215},0,0,0,0,0,0,47286125,35512652,38415522]
["Roads Infrastructure",null,{"$f":"SB18e!C9","v":38882401},{"$f":"SB18e!D9","v":38334423},{"$f":"SB18e!E9","v":0},{"$f":"SB18e!F9","v":0},{"$f":"SB18e!G9","v":0},{"$f":"SB18e!H9","v":0},{"$f":"SB18e!I9","v":0},{"$f":"SB18e!J9","v":0},{"$f":"SB18e!K9","v":38334423},{"$f":"SB18e!L9","v":35512652},{"$f":"SB18e!M9","v":38415522}]
["Storm water Infrastructure",null,{"$f":"SB18e!C14","v":0},{"$f":"SB18e!D14","v":0},{"$f":"SB18e!E14","v":0},{"$f":"SB18e!F14","v":0},{"$f":"SB18e!G14","v":0},{"$f":"SB18e!H14","v":0},{"$f":"SB18e!I14","v":0},{"$f":"SB18e!J14","v":0},{"$f":"SB18e!K14","v":0},{"$f":"SB18e!L14","v":0},{"$f":"SB18e!M14","v":0}]
["Electrical Infrastructure",null,{"$f":"SB18e!C18","v":429970},{"$f":"SB18e!D18","v":429970},{"$f":"SB18e!E18","v":0},{"$f":"SB18e!F18","v":0},{"$f":"SB18e!G18","v":0},{"$f":"SB18e!H18","v":0},{"$f":"SB18e!I18","v":0},{"$f":"SB18e!J18","v":0},{"$f":"SB18e!K18","v":429970},{"$f":"SB18e!L18","v":0},{"$f":"SB18e!M18","v":0}]
["Water Supply Infrastructure",null,{"$f":"SB18e!C28","v":0},{"$f":"SB18e!D28","v":0},{"$f":"SB18e!E28","v":0},{"$f":"SB18e!F28","v":0},{"$f":"SB18e!G28","v":0},{"$f":"SB18e!H28","v":0},{"$f":"SB18e!I28","v":0},{"$f":"SB18e!J28","v":0},{"$f":"SB18e!K28","v":0},{"$f":"SB18e!L28","v":0},{"$f":"SB18e!M28","v":0}]
["Sanitation Infrastructure",null,{"$f":"SB18e!C39","v":0},{"$f":"SB18e!D39","v":0},{"$f":"SB18e!E39","v":0},{"$f":"SB18e!F39","v":0},{"$f":"SB18e!G39","v":0},{"$f":"SB18e!H39","v":0},{"$f":"SB18e!I39","v":0},{"$f":"SB18e!J39","v":0},{"$f":"SB18e!K39","v":0},{"$f":"SB18e!L39","v":0},{"$f":"SB18e!M39","v":0}]
["Solid Waste Infrastructure",null,{"$f":"SB18e!C46","v":0},{"$f":"SB18e!D46","v":0},{"$f":"SB18e!E46","v":0},{"$f":"SB18e!F46","v":0},{"$f":"SB18e!G46","v":0},{"$f":"SB18e!H46","v":0},{"$f":"SB18e!I46","v":0},{"$f":"SB18e!J46","v":0},{"$f":"SB18e!K46","v":0},{"$f":"SB18e!L46","v":0},{"$f":"SB18e!M46","v":0}]
["Rail Infrastructure",null,{"$f":"SB18e!C54","v":0},{"$f":"SB18e!D54","v":0},{"$f":"SB18e!E54","v":0},{"$f":"SB18e!F54","v":0},{"$f":"SB18e!G54","v":0},{"$f":"SB18e!H54","v":0},{"$f":"SB18e!I54","v":0},{"$f":"SB18e!J54","v":0},{"$f":"SB18e!K54","v":0},{"$f":"SB18e!L54","v":0},{"$f":"SB18e!M54","v":0}]
["Coastal Infrastructure",null,{"$f":"SB18e!C64","v":0},{"$f":"SB18e!D64","v":0},{"$f":"SB18e!E64","v":0},{"$f":"SB18e!F64","v":0},{"$f":"SB18e!G64","v":0},{"$f":"SB18e!H64","v":0},{"$f":"SB18e!I64","v":0},{"$f":"SB18e!J64","v":0},{"$f":"SB18e!K64","v":0},{"$f":"SB18e!L64","v":0},{"$f":"SB18e!M64","v":0}]
["Information and Communication Infrastructure",null,{"$f":"SB18e!C70","v":0},{"$f":"SB18e!D70","v":0},{"$f":"SB18e!E70","v":0},{"$f":"SB18e!F70","v":0},{"$f":"SB18e!G70","v":0},{"$f":"SB18e!H70","v":0},{"$f":"SB18e!I70","v":0},{"$f":"SB18e!J70","v":0},{"$f":"SB18e!K70","v":0},{"$f":"SB18e!L70","v":0},{"$f":"SB18e!M70","v":0}]
["Infrastructure",null,{"$f":"SUM(C78:C86)","v":39312371},{"$f":"SUM(D78:D86)","v":38764393},0,0,0,0,0,0,38764393,35512652,38415522]
["Community Facilities",null,{"$f":"SB18e!C77","v":173910},{"$f":"SB18e!D77","v":0},{"$f":"SB18e!E77","v":0},{"$f":"SB18e!F77","v":0},{"$f":"SB18e!G77","v":0},{"$f":"SB18e!H77","v":0},{"$f":"SB18e!I77","v":0},{"$f":"SB18e!J77","v":0},{"$f":"SB18e!K77","v":173910},{"$f":"SB18e!L77","v":0},{"$f":"SB18e!M77","v":0}]
["Sport and Recreation Facilities",null,{"$f":"SB18e!C100","v":0},{"$f":"SB18e!D100","v":0},{"$f":"SB18e!E100","v":0},{"$f":"SB18e!F100","v":0},{"$f":"SB18e!G100","v":0},{"$f":"SB18e!H100","v":0},{"$f":"SB18e!I100","v":0},{"$f":"SB18e!J100","v":0},{"$f":"SB18e!K100","v":0},{"$f":"SB18e!L100","v":0},{"$f":"SB18e!M100","v":0}]
["Community Assets",null,{"$f":"SUM(C88:C89)","v":173910},{"$f":"SUM(D88:D89)","v":0},0,0,0,0,0,0,173910,0,0]
["Heritage Assets",null,{"$f":"SB18e!C105","v":0},{"$f":"SB18e!D105","v":0},{"$f":"SB18e!E105","v":0},{"$f":"SB18e!F105","v":0},{"$f":"SB18e!G105","v":0},{"$f":"SB18e!H105","v":0},{"$f":"SB18e!I105","v":0},{"$f":"SB18e!J105","v":0},{"$f":"SB18e!K105","v":0},{"$f":"SB18e!L105","v":0},{"$f":"SB18e!M105","v":0}]
["Revenue Generating",null,{"$f":"SB18e!C113","v":0},{"$f":"SB18e!D113","v":0},{"$f":"SB18e!E113","v":0},{"$f":"SB18e!F113","v":0},{"$f":"SB18e!G113","v":0},{"$f":"SB18e!H113","v":0},{"$f":"SB18e!I113","v":0},{"$f":"SB18e!J113","v":0},{"$f":"SB18e!K113","v":0},{"$f":"SB18e!L113","v":0},{"$f":"SB18e!M113","v":0}]
["Non-revenue Generating",null,{"$f":"SB18e!C116","v":0},{"$f":"SB18e!D116","v":0},{"$f":"SB18e!E116","v":0},{"$f":"SB18e!F116","v":0},{"$f":"SB18e!G116","v":0},{"$f":"SB18e!H116","v":0},{"$f":"SB18e!I116","v":0},{"$f":"SB18e!J116","v":0},{"$f":"SB18e!K116","v":0},{"$f":"SB18e!L116","v":0},{"$f":"SB18e!M116","v":0}]
["Investment properties",null,{"$f":"SUM(C92:C93)","v":0},{"$f":"SUM(D92:D93)","v":0},0,0,0,0,0,0,0,0,0]
["Operational Buildings",null,{"$f":"SB18e!C121","v":6086953},{"$f":"SB18e!D121","v":7130435},{"$f":"SB18e!E121","v":0},{"$f":"SB18e!F121","v":0},{"$f":"SB18e!G121","v":0},{"$f":"SB18e!H121","v":0},{"$f":"SB18e!I121","v":0},{"$f":"SB18e!J121","v":0},{"$f":"SB18e!K121","v":7130435},{"$f":"SB18e!L121","v":0},{"$f":"SB18e!M121","v":0}]
["Housing",null,{"$f":"SB18e!C133","v":0},{"$f":"SB18e!D133","v":0},{"$f":"SB18e!E133","v":0},{"$f":"SB18e!F133","v":0},{"$f":"SB18e!G133","v":0},{"$f":"SB18e!H133","v":0},{"$f":"SB18e!I133","v":0},{"$f":"SB18e!J133","v":0},{"$f":"SB18e!K133","v":0},{"$f":"SB18e!L133","v":0},{"$f":"SB18e!M133","v":0}]
["Other Assets",6,{"$f":"SUM(C95:C96)","v":6086953},{"$f":"SUM(D95:D96)","v":7130435},0,0,0,0,0,0,7130435,0,0]
["Biological or Cultivated Assets",null,{"$f":"SB18e!C138","v":0},{"$f":"SB18e!D138","v":0},{"$f":"SB18e!E138","v":0},{"$f":"SB18e!F138","v":0},{"$f":"SB18e!G138","v":0},{"$f":"SB18e!H138","v":0},{"$f":"SB18e!I138","v":0},{"$f":"SB18e!J138","v":0},{"$f":"SB18e!K138","v":0},{"$f":"SB18e!L138","v":0},{"$f":"SB18e!M138","v":0}]
["Servitudes",null,{"$f":"SB18e!C142","v":0},{"$f":"SB18e!D142","v":0},{"$f":"SB18e!E142","v":0},{"$f":"SB18e!F142","v":0},{"$f":"SB18e!G142","v":0},{"$f":"SB18e!H142","v":0},{"$f":"SB18e!I142","v":0},{"$f":"SB18e!J142","v":0},{"$f":"SB18e!K142","v":0},{"$f":"SB18e!L142","v":0},{"$f":"SB18e!M142","v":0}]
["Licences and Rights",null,{"$f":"SB18e!C143","v":0},{"$f":"SB18e!D143","v":0},{"$f":"SB18e!E143","v":0},{"$f":"SB18e!F143","v":0},{"$f":"SB18e!G143","v":0},{"$f":"SB18e!H143","v":0},{"$f":"SB18e!I143","v":0},{"$f":"SB18e!J143","v":0},{"$f":"SB18e!K143","v":0},{"$f":"SB18e!L143","v":0},{"$f":"SB18e!M143","v":0}]
["Intangible Assets",null,{"$f":"SUM(C99:C100)","v":0},{"$f":"SUM(D99:D100)","v":0},0,0,0,0,0,0,0,0,0]
["Computer Equipment",null,{"$f":"SB18e!C151","v":652170},{"$f":"SB18e!D151","v":1217387},{"$f":"SB18e!E151","v":0},{"$f":"SB18e!F151","v":0},{"$f":"SB18e!G151","v":0},{"$f":"SB18e!H151","v":0},{"$f":"SB18e!I151","v":0},{"$f":"SB18e!J151","v":0},{"$f":"SB18e!K151","v":1217387},{"$f":"SB18e!L151","v":0},{"$f":"SB18e!M151","v":0}]
["Furniture and Office Equipment",null,{"$f":"SB18e!C154","v":0},{"$f":"SB18e!D154","v":0},{"$f":"SB18e!E154","v":0},{"$f":"SB18e!F154","v":0},{"$f":"SB18e!G154","v":0},{"$f":"SB18e!H154","v":0},{"$f":"SB18e!I154","v":0},{"$f":"SB18e!J154","v":0},{"$f":"SB18e!K154","v":0},{"$f":"SB18e!L154","v":0},{"$f":"SB18e!M154","v":0}]
["Machinery and Equipment",null,{"$f":"SB18e!C157","v":0},{"$f":"SB18e!D157","v":0},{"$f":"SB18e!E157","v":0},{"$f":"SB18e!F157","v":0},{"$f":"SB18e!G157","v":0},{"$f":"SB18e!H157","v":0},{"$f":"SB18e!I157","v":0},{"$f":"SB18e!J157","v":0},{"$f":"SB18e!K157","v":0},{"$f":"SB18e!L157","v":0},{"$f":"SB18e!M157","v":0}]
["Transport Assets",null,{"$f":"SB18e!C160","v":0},{"$f":"SB18e!D160","v":0},{"$f":"SB18e!E160","v":0},{"$f":"SB18e!F160","v":0},{"$f":"SB18e!G160","v":0},{"$f":"SB18e!H160","v":0},{"$f":"SB18e!I160","v":0},{"$f":"SB18e!J160","v":0},{"$f":"SB18e!K160","v":0},{"$f":"SB18e!L160","v":0},{"$f":"SB18e!M160","v":0}]
["Land",null,{"$f":"SB18e!C163","v":0},{"$f":"SB18e!D163","v":0},{"$f":"SB18e!E163","v":0},{"$f":"SB18e!F163","v":0},{"$f":"SB18e!G163","v":0},{"$f":"SB18e!H163","v":0},{"$f":"SB18e!I163","v":0},{"$f":"SB18e!J163","v":0},{"$f":"SB18e!K163","v":0},{"$f":"SB18e!L163","v":0},{"$f":"SB18e!M163","v":0}]
["Zoo's, Marine and Non-biological Animals",null,{"$f":"SB18e!C166","v":0},{"$f":"SB18e!D166","v":0},{"$f":"SB18e!E166","v":0},{"$f":"SB18e!F166","v":0},{"$f":"SB18e!G166","v":0},{"$f":"SB18e!H166","v":0},{"$f":"SB18e!I166","v":0},{"$f":"SB18e!J166","v":0},{"$f":"SB18e!K166","v":0},{"$f":"SB18e!L166","v":0},{"$f":"SB18e!M166","v":0}]
["Mature",null,{"$f":"SB18e!C170","v":0},{"$f":"SB18e!D170","v":0},{"$f":"SB18e!E170","v":0},{"$f":"SB18e!F170","v":0},{"$f":"SB18e!G170","v":0},{"$f":"SB18e!H170","v":0},{"$f":"SB18e!I170","v":0},{"$f":"SB18e!J170","v":0},{"$f":"SB18e!K170","v":0},{"$f":"SB18e!L170","v":0},{"$f":"SB18e!M170","v":0}]
["Immature",null,{"$f":"SB18e!C173","v":0},{"$f":"SB18e!D173","v":0},{"$f":"SB18e!E173","v":0},{"$f":"SB18e!F173","v":0},{"$f":"SB18e!G173","v":0},{"$f":"SB18e!H173","v":0},{"$f":"SB18e!I173","v":0},{"$f":"SB18e!J173","v":0},{"$f":"SB18e!K173","v":0},{"$f":"SB18e!L173","v":0},{"$f":"SB18e!M173","v":0}]
["Living Resources",null,{"$f":"+C108+C109","v":0},0,0,0,0,0,0,0,0,0,0]
[]
["Total Capital Expenditure to be adjusted",4,{"$f":"C7+C42+C77","v":127599815},133829175,0,0,0,1985217.38,0,1985217.38,135988302.38,70121348,53415522]
["Roads Infrastructure",null,{"$f":"C8+C43+C78","v":74925872},70696764,0,0,0,1985217.38,0,1985217.38,72681981.379999995,39251782,38415522]
["Storm water Infrastructure",null,{"$f":"C9+C44+C79","v":0},0,0,0,0,0,0,0,0,0,0]
["Electrical Infrastructure",null,{"$f":"C10+C45+C80","v":3577796},1919589,0,0,0,0,0,0,1919589,0,0]
["Water Supply Infrastructure",null,{"$f":"C11+C46+C81","v":0},0,0,0,0,0,0,0,0,0,0]
["Sanitation Infrastructure",null,{"$f":"C12+C47+C82","v":69565},36282,0,0,0,0,0,0,36282,0,0]
["Solid Waste Infrastructure",null,{"$f":"C13+C48+C83","v":1739130},1560000,0,0,0,0,0,0,1560000,0,0]
["Rail Infrastructure",null,{"$f":"C14+C49+C84","v":0},0,0,0,0,0,0,0,0,0,0]
["Coastal Infrastructure",null,{"$f":"C15+C50+C85","v":217390},95600,0,0,0,0,0,0,95600,0,0]
["Information and Communication Infrastructure",null,{"$f":"C16+C51+C86","v":0},0,0,0,0,0,0,0,0,0,0]
["Infrastructure",null,{"$f":"C17+C52+C87","v":80529753},74308235,0,0,0,1985217.38,0,1985217.38,76293452.379999995,39251782,38415522]
["Community Facilities",null,{"$f":"C18+C53+C88","v":9652166},10843447,0,0,0,0,0,0,11017357,10869566,0]
["Sport and Recreation Facilities",null,{"$f":"C19+C54+C89","v":8926608},12641160,0,0,0,0,0,0,12641160,0,0]
["Community Assets",null,{"$f":"C20+C55+C90","v":18578774},23484607,0,0,0,0,0,0,23658517,10869566,0]
["Heritage Assets",null,{"$f":"C21+C56+C91","v":0},0,0,0,0,0,0,0,0,0,0]
["Revenue Generating",null,{"$f":"C22+C57+C92","v":0},0,0,0,0,0,0,0,0,0,0]
["Non-revenue Generating",null,{"$f":"C23+C58+C93","v":0},{"$f":"D23+D58+D93","v":0},0,0,0,0,0,0,0,0,0]
["Investment properties",null,0,{"$f":"D24+D59+D94","v":0},0,0,0,0,0,0,0,0,0]
["Operational Buildings",null,11739128,{"$f":"D25+D60+D95","v":17212436},0,0,0,0,0,0,17212436,20000000,15000000]
["Housing",null,0,{"$f":"D26+D61+D96","v":0},0,0,0,0,0,0,0,0,0]
["Other Assets",null,11739128,{"$f":"D27+D62+D97","v":17212436},0,0,0,0,0,0,17212436,20000000,15000000]
["Biological or Cultivated Assets",null,0,{"$f":"D28+D63+D98","v":0},0,0,0,0,0,0,0,0,0]
["Servitudes",null,0,{"$f":"D29+D64+D99","v":0},0,0,0,0,0,0,0,0,0]
["Licences and Rights",null,0,{"$f":"D30+D65+D100","v":0},0,0,0,0,0,0,0,0,0]
["Intangible Assets",null,0,{"$f":"D31+D66+D101","v":0},0,0,0,0,0,0,0,0,0]
["Computer Equipment",null,1608693,{"$f":"D32+D67+D102","v":2208888},0,0,0,0,0,0,2208888,0,0]
["Furniture and Office Equipment",null,1739129,{"$f":"D33+D68+D103","v":1686955},0,0,0,0,0,0,1686955,0,0]
["Machinery and Equipment",null,3039123,{"$f":"D34+D69+D104","v":3116314},0,0,0,0,0,0,3116314,0,0]
["Transport Assets",null,10365215,{"$f":"D35+D70+D105","v":11811740},0,0,0,0,0,0,11811740,0,0]
["Land",null,0,{"$f":"D36+D71+D106","v":0},0,0,0,0,0,0,0,0,0]
["Zoo's, Marine and Non-biological Animals",null,0,{"$f":"D37+D72+D107","v":0},0,0,0,0,0,0,0,0,0]
["Mature",null,0,0,0,0,0,0,0,0,0,0,0]
["Immature",null,0,0,0,0,0,0,0,0,0,0,0]
["Living Resources",null,{"$f":"+C143+C144","v":0},0,0,0,0,0,0,0,0,0,0]
["TOTAL CAPITAL EXPENDITURE to be adjusted",4,{"$f":"C7+C42+C77","v":127599815},{"$f":"D7+D42+D77","v":133829175},0,0,0,1985217.38,0,1985217.38,135988302.38,70121348,53415522]
[]
["ASSET REGISTER SUMMARY - PPE (WDV)",5,{"$f":"C158+C161+C162+C165+C168+C169+SUM(C172:C178)","v":692231995},{"$f":"D158+D161+D162+D165+D168+D169+SUM(D172:D178)","v":808949170},0,0,0,1985217.38,0,1985217.38,810934387.38,705634428,690039021]
[{"$f":"+A8","v":"Roads Infrastructure"},null,{"$f":"SUMIFS(Sheet1!S71_OriginalBudget,Sheet1!S71_A9Code,$AC:$AC)+SUMIFS(Sheet1!S71_OriginalBudget,Sheet1!S71_WIPCode,$AD:$AD)+SUMIFS(Sheet1!S71_OriginalBudget,Sheet1!S71_WIPOpBalance,$AE:$AE)","v":346020802},{"$f":"SUMIFS(Sheet1!S71_PreviousBudget,Sheet1!S71_A9Code,$AC:$AC)+SUMIFS(Sheet1!S71_PreviousBudget,Sheet1!S71_WIPCode,$AD:$AD)+SUMIFS(Sheet1!S71_PreviousBudget,Sheet1!S71_WIPOpBalance,$AE:$AE)","v":365917495},null,null,null,{"$f":"SUMIFS(Sheet1!S71_CurrentAdjustments,Sheet1!S71_A9Code,$AC:$AC)+SUMIFS(Sheet1!S71_CurrentAdjustments,Sheet1!S71_WIPCode,$AD:$AD)+SUMIFS(Sheet1!S71_CurrentAdjustments,Sheet1!S71_WIPOpBalance,$AE:$AE)","v":1985217.38},0,{"$f":"SUM(E149:I149)","v":1985217.38},{"$f":"IF(D149=0,C149+J149,D149+J149)","v":367902712.38},{"$f":"SUMIFS(Sheet1!S71_OY1AdjustedBudget,Sheet1!S71_A9Code,$AC:$AC)+SUMIFS(Sheet1!S71_OY1AdjustedBudget,Sheet1!S71_WIPCode,$AD:$AD)","v":341173598},{"$f":"SUMIFS(Sheet1!S71_OY2AdjustedBudget,Sheet1!S71_A9Code,$AC:$AC)+SUMIFS(Sheet1!S71_OY2AdjustedBudget,Sheet1!S71_WIPCode,$AD:$AD)","v":350403955},null,null,null,null,null,null,null,null,null,null,null,null,null,null,null,"0110",1000]
["Storm water Infrastructure",null,{"$f":"SUMIFS(Sheet1!S71_OriginalBudget,Sheet1!S71_A9Code,$AC:$AC)+SUMIFS(Sheet1!S71_OriginalBudget,Sheet1!S71_WIPCode,$AD:$AD)+SUMIFS(Sheet1!S71_OriginalBudget,Sheet1!S71_WIPOpBalance,$AE:$AE)","v":2809060},{"$f":"SUMIFS(Sheet1!S71_PreviousBudget,Sheet1!S71_A9Code,$AC:$AC)+SUMIFS(Sheet1!S71_PreviousBudget,Sheet1!S71_WIPCode,$AD:$AD)+SUMIFS(Sheet1!S71_PreviousBudget,Sheet1!S71_WIPOpBalance,$AE:$AE)","v":43635059},null,null,null,null,{"$f":"SUMIFS(Sheet1!S71_CurrentAdjustments,Sheet1!S71_A9Code,$AC:$AC)+SUMIFS(Sheet1!S71_CurrentAdjustments,Sheet1!S71_WIPCode,$AD:$AD)+SUMIFS(Sheet1!S71_CurrentAdjustments,Sheet1!S71_WIPOpBalance,$AE:$AE)","v":0},0,{"$f":"IF(D150=0,C150+J150,D150+J150)","v":43635059},{"$f":"SUMIFS(Sheet1!S71_OY1AdjustedBudget,Sheet1!S71_A9Code,$AC:$AC)+SUMIFS(Sheet1!S71_OY1AdjustedBudget,Sheet1!S71_WIPCode,$AD:$AD)","v":3121007},{"$f":"SUMIFS(Sheet1!S71_OY2AdjustedBudget,Sheet1!S71_A9Code,$AC:$AC)+SUMIFS(Sheet1!S71_OY2AdjustedBudget,Sheet1!S71_WIPCode,$AD:$AD)","v":3212503},null,null,null,null,null,null,null,null,null,null,null,null,null,null,null,"0160",2000]
["Electrical Infrastructure",null,{"$f":"SUMIFS(Sheet1!S71_OriginalBudget,Sheet1!S71_A9Code,$AC:$AC)+SUMIFS(Sheet1!S71_OriginalBudget,Sheet1!S71_WIPCode,$AD:$AD)+SUMIFS(Sheet1!S71_OriginalBudget,Sheet1!S71_WIPOpBalance,$AE:$AE)","v":4917616},{"$f":"SUMIFS(Sheet1!S71_PreviousBudget,Sheet1!S71_A9Code,$AC:$AC)+SUMIFS(Sheet1!S71_PreviousBudget,Sheet1!S71_WIPCode,$AD:$AD)+SUMIFS(Sheet1!S71_PreviousBudget,Sheet1!S71_WIPOpBalance,$AE:$AE)","v":14628852},null,null,null,null,{"$f":"SUMIFS(Sheet1!S71_CurrentAdjustments,Sheet1!S71_A9Code,$AC:$AC)+SUMIFS(Sheet1!S71_CurrentAdjustments,Sheet1!S71_WIPCode,$AD:$AD)+SUMIFS(Sheet1!S71_CurrentAdjustments,Sheet1!S71_WIPOpBalance,$AE:$AE)","v":0},0,{"$f":"IF(D151=0,C151+J151,D151+J151)","v":14628852},{"$f":"SUMIFS(Sheet1!S71_OY1AdjustedBudget,Sheet1!S71_A9Code,$AC:$AC)+SUMIFS(Sheet1!S71_OY1AdjustedBudget,Sheet1!S71_WIPCode,$AD:$AD)","v":1917506},{"$f":"SUMIFS(Sheet1!S71_OY2AdjustedBudget,Sheet1!S71_A9Code,$AC:$AC)+SUMIFS(Sheet1!S71_OY2AdjustedBudget,Sheet1!S71_WIPCode,$AD:$AD)","v":1910000},null,null,null,null,null,null,null,null,null,null,null,null,null,null,null,"0200",3000]
["Water Supply Infrastructure",null,{"$f":"SUMIFS(Sheet1!S71_OriginalBudget,Sheet1!S71_A9Code,$AC:$AC)+SUMIFS(Sheet1!S71_OriginalBudget,Sheet1!S71_WIPCode,$AD:$AD)+SUMIFS(Sheet1!S71_OriginalBudget,Sheet1!S71_WIPOpBalance,$AE:$AE)","v":0},{"$f":"SUMIFS(Sheet1!S71_PreviousBudget,Sheet1!S71_A9Code,$AC:$AC)+SUMIFS(Sheet1!S71_PreviousBudget,Sheet1!S71_WIPCode,$AD:$AD)+SUMIFS(Sheet1!S71_PreviousBudget,Sheet1!S71_WIPOpBalance,$AE:$AE)","v":0},null,null,null,null,{"$f":"SUMIFS(Sheet1!S71_CurrentAdjustments,Sheet1!S71_A9Code,$AC:$AC)+SUMIFS(Sheet1!S71_CurrentAdjustments,Sheet1!S71_WIPCode,$AD:$AD)+SUMIFS(Sheet1!S71_CurrentAdjustments,Sheet1!S71_WIPOpBalance,$AE:$AE)","v":0},0,{"$f":"IF(D152=0,C152+J152,D152+J152)","v":0},{"$f":"SUMIFS(Sheet1!S71_OY1AdjustedBudget,Sheet1!S71_A9Code,$AC:$AC)+SUMIFS(Sheet1!S71_OY1AdjustedBudget,Sheet1!S71_WIPCode,$AD:$AD)","v":0},{"$f":"SUMIFS(Sheet1!S71_OY2AdjustedBudget,Sheet1!S71_A9Code,$AC:$AC)+SUMIFS(Sheet1!S71_OY2AdjustedBudget,Sheet1!S71_WIPCode,$AD:$AD)","v":0},null,null,null,null,null,null,null,null,null,null,null,null,null,null,null,"0300",4000]
["Sanitation Infrastructure",null,{"$f":"SUMIFS(Sheet1!S71_OriginalBudget,Sheet1!S71_A9Code,$AC:$AC)+SUMIFS(Sheet1!S71_OriginalBudget,Sheet1!S71_WIPCode,$AD:$AD)+SUMIFS(Sheet1!S71_OriginalBudget,Sheet1!S71_WIPOpBalance,$AE:$AE)","v":69565},{"$f":"SUMIFS(Sheet1!S71_PreviousBudget,Sheet1!S71_A9Code,$AC:$AC)+SUMIFS(Sheet1!S71_PreviousBudget,Sheet1!S71_WIPCode,$AD:$AD)+SUMIFS(Sheet1!S71_PreviousBudget,Sheet1!S71_WIPOpBalance,$AE:$AE)","v":36282},null,null,null,null,{"$f":"SUMIFS(Sheet1!S71_CurrentAdjustments,Sheet1!S71_A9Code,$AC:$AC)+SUMIFS(Sheet1!S71_CurrentAdjustments,Sheet1!S71_WIPCode,$AD:$AD)+SUMIFS(Sheet1!S71_CurrentAdjustments,Sheet1!S71_WIPOpBalance,$AE:$AE)","v":0},0,{"$f":"IF(D153=0,C153+J153,D153+J153)","v":36282},{"$f":"SUMIFS(Sheet1!S71_OY1AdjustedBudget,Sheet1!S71_A9Code,$AC:$AC)+SUMIFS(Sheet1!S71_OY1AdjustedBudget,Sheet1!S71_WIPCode,$AD:$AD)","v":0},{"$f":"SUMIFS(Sheet1!S71_OY2AdjustedBudget,Sheet1!S71_A9Code,$AC:$AC)+SUMIFS(Sheet1!S71_OY2AdjustedBudget,Sheet1!S71_WIPCode,$AD:$AD)","v":0},null,null,null,null,null,null,null,null,null,null,null,null,null,null,null,"0410",5000]
["Solid Waste Infrastructure",null,{"$f":"SUMIFS(Sheet1!S71_OriginalBudget,Sheet1!S71_A9Code,$AC:$AC)+SUMIFS(Sheet1!S71_OriginalBudget,Sheet1!S71_WIPCode,$AD:$AD)+SUMIFS(Sheet1!S71_OriginalBudget,Sheet1!S71_WIPOpBalance,$AE:$AE)","v":2173913},{"$f":"SUMIFS(Sheet1!S71_PreviousBudget,Sheet1!S71_A9Code,$AC:$AC)+SUMIFS(Sheet1!S71_PreviousBudget,Sheet1!S71_WIPCode,$AD:$AD)+SUMIFS(Sheet1!S71_PreviousBudget,Sheet1!S71_WIPOpBalance,$AE:$AE)","v":2133913},null,null,null,null,{"$f":"SUMIFS(Sheet1!S71_CurrentAdjustments,Sheet1!S71_A9Code,$AC:$AC)+SUMIFS(Sheet1!S71_CurrentAdjustments,Sheet1!S71_WIPCode,$AD:$AD)+SUMIFS(Sheet1!S71_CurrentAdjustments,Sheet1!S71_WIPOpBalance,$AE:$AE)","v":0},0,2133913,{"$f":"SUMIFS(Sheet1!S71_OY1AdjustedBudget,Sheet1!S71_A9Code,$AC:$AC)+SUMIFS(Sheet1!S71_OY1AdjustedBudget,Sheet1!S71_WIPCode,$AD:$AD)","v":0},{"$f":"SUMIFS(Sheet1!S71_OY2AdjustedBudget,Sheet1!S71_A9Code,$AC:$AC)+SUMIFS(Sheet1!S71_OY2AdjustedBudget,Sheet1!S71_WIPCode,$AD:$AD)","v":0},null,null,null,null,null,null,null,null,null,null,null,null,null,null,null,"0480",6000]
["Rail Infrastructure",null,{"$f":"SUMIFS(Sheet1!S71_OriginalBudget,Sheet1!S71_A9Code,$AC:$AC)+SUMIFS(Sheet1!S71_OriginalBudget,Sheet1!S71_WIPCode,$AD:$AD)+SUMIFS(Sheet1!S71_OriginalBudget,Sheet1!S71_WIPOpBalance,$AE:$AE)","v":0},{"$f":"SUMIFS(Sheet1!S71_PreviousBudget,Sheet1!S71_A9Code,$AC:$AC)+SUMIFS(Sheet1!S71_PreviousBudget,Sheet1!S71_WIPCode,$AD:$AD)+SUMIFS(Sheet1!S71_PreviousBudget,Sheet1!S71_WIPOpBalance,$AE:$AE)","v":0},null,null,null,null,{"$f":"SUMIFS(Sheet1!S71_CurrentAdjustments,Sheet1!S71_A9Code,$AC:$AC)+SUMIFS(Sheet1!S71_CurrentAdjustments,Sheet1!S71_WIPCode,$AD:$AD)+SUMIFS(Sheet1!S71_CurrentAdjustments,Sheet1!S71_WIPOpBalance,$AE:$AE)","v":0},0,0,{"$f":"SUMIFS(Sheet1!S71_OY1AdjustedBudget,Sheet1!S71_A9Code,$AC:$AC)+SUMIFS(Sheet1!S71_OY1AdjustedBudget,Sheet1!S71_WIPCode,$AD:$AD)","v":0},{"$f":"SUMIFS(Sheet1!S71_OY2AdjustedBudget,Sheet1!S71_A9Code,$AC:$AC)+SUMIFS(Sheet1!S71_OY2AdjustedBudget,Sheet1!S71_WIPCode,$AD:$AD)","v":0},null,null,null,null,null,null,null,null,null,null,null,null,null,null,null,"0560",7000]
["Coastal Infrastructure",null,{"$f":"SUMIFS(Sheet1!S71_OriginalBudget,Sheet1!S71_A9Code,$AC:$AC)+SUMIFS(Sheet1!S71_OriginalBudget,Sheet1!S71_WIPCode,$AD:$AD)+SUMIFS(Sheet1!S71_OriginalBudget,Sheet1!S71_WIPOpBalance,$AE:$AE)","v":0},{"$f":"SUMIFS(Sheet1!S71_PreviousBudget,Sheet1!S71_A9Code,$AC:$AC)+SUMIFS(Sheet1!S71_PreviousBudget,Sheet1!S71_WIPCode,$AD:$AD)+SUMIFS(Sheet1!S71_PreviousBudget,Sheet1!S71_WIPOpBalance,$AE:$AE)","v":0},null,null,null,null,{"$f":"SUMIFS(Sheet1!S71_CurrentAdjustments,Sheet1!S71_A9Code,$AC:$AC)+SUMIFS(Sheet1!S71_CurrentAdjustments,Sheet1!S71_WIPCode,$AD:$AD)+SUMIFS(Sheet1!S71_CurrentAdjustments,Sheet1!S71_WIPOpBalance,$AE:$AE)","v":0},0,0,{"$f":"SUMIFS(Sheet1!S71_OY1AdjustedBudget,Sheet1!S71_A9Code,$AC:$AC)+SUMIFS(Sheet1!S71_OY1AdjustedBudget,Sheet1!S71_WIPCode,$AD:$AD)","v":0},{"$f":"SUMIFS(Sheet1!S71_OY2AdjustedBudget,Sheet1!S71_A9Code,$AC:$AC)+SUMIFS(Sheet1!S71_OY2AdjustedBudget,Sheet1!S71_WIPCode,$AD:$AD)","v":0},null,null,null,null,null,null,null,null,null,null,null,null,null,null,null,"0660",8000]
["Information and Communication Infrastructure",null,{"$f":"SUMIFS(Sheet1!S71_OriginalBudget,Sheet1!S71_A9Code,$AC:$AC)+SUMIFS(Sheet1!S71_OriginalBudget,Sheet1!S71_WIPCode,$AD:$AD)+SUMIFS(Sheet1!S71_OriginalBudget,Sheet1!S71_WIPOpBalance,$AE:$AE)","v":0},{"$f":"SUMIFS(Sheet1!S71_PreviousBudget,Sheet1!S71_A9Code,$AC:$AC)+SUMIFS(Sheet1!S71_PreviousBudget,Sheet1!S71_WIPCode,$AD:$AD)+SUMIFS(Sheet1!S71_PreviousBudget,Sheet1!S71_WIPOpBalance,$AE:$AE)","v":0},null,null,null,null,{"$f":"SUMIFS(Sheet1!S71_CurrentAdjustments,Sheet1!S71_A9Code,$AC:$AC)+SUMIFS(Sheet1!S71_CurrentAdjustments,Sheet1!S71_WIPCode,$AD:$AD)+SUMIFS(Sheet1!S71_CurrentAdjustments,Sheet1!S71_WIPOpBalance,$AE:$AE)","v":0},0,0,{"$f":"SUMIFS(Sheet1!S71_OY1AdjustedBudget,Sheet1!S71_A9Code,$AC:$AC)+SUMIFS(Sheet1!S71_OY1AdjustedBudget,Sheet1!S71_WIPCode,$AD:$AD)","v":0},{"$f":"SUMIFS(Sheet1!S71_OY2AdjustedBudget,Sheet1!S71_A9Code,$AC:$AC)+SUMIFS(Sheet1!S71_OY2AdjustedBudget,Sheet1!S71_WIPCode,$AD:$AD)","v":0},null,null,null,null,null,null,null,null,null,null,null,null,null,null,null,"0720",9000]
["Infrastructure",null,{"$f":"SUM(C149:C157)","v":355990956},426351601,0,0,0,1985217.38,0,1985217.38,428336818.38,{"$f":"SUM(L149:L157)","v":346212111},{"$f":"SUM(M149:M157)","v":355526458}]
[]
[]
[{"$f":"+A20","v":"Community Assets"},null,{"$f":"SUMIFS(Sheet1!S71_OriginalBudget,Sheet1!S71_A9Code,$AC:$AC)+SUMIFS(Sheet1!S71_OriginalBudget,Sheet1!S71_WIPCode,$AD:$AD)+SUMIFS(Sheet1!S71_OriginalBudget,Sheet1!S71_WIPOpBalance,$AE:$AE)","v":114703627},{"$f":"SUMIFS(Sheet1!S71_PreviousBudget,Sheet1!S71_A9Code,$AC:$AC)+SUMIFS(Sheet1!S71_PreviousBudget,Sheet1!S71_WIPCode,$AD:$AD)+SUMIFS(Sheet1!S71_PreviousBudget,Sheet1!S71_WIPOpBalance,$AE:$AE)","v":112590433},null,null,null,null,{"$f":"SUMIFS(Sheet1!S71_CurrentAdjustments,Sheet1!S71_A9Code,$AC:$AC)+SUMIFS(Sheet1!S71_CurrentAdjustments,Sheet1!S71_WIPCode,$AD:$AD)+SUMIFS(Sheet1!S71_CurrentAdjustments,Sheet1!S71_WIPOpBalance,$AE:$AE)","v":0},{"$f":"SUM(E161:I161)","v":0},{"$f":"IF(D161=0,C161+J161,D161+J161)","v":112590433},{"$f":"SUMIFS(Sheet1!S71_OY1AdjustedBudget,Sheet1!S71_A9Code,$AC:$AC)+SUMIFS(Sheet1!S71_OY1AdjustedBudget,Sheet1!S71_WIPCode,$AD:$AD)","v":130549990},{"$f":"SUMIFS(Sheet1!S71_OY2AdjustedBudget,Sheet1!S71_A9Code,$AC:$AC)+SUMIFS(Sheet1!S71_OY2AdjustedBudget,Sheet1!S71_WIPCode,$AD:$AD)","v":106303331},null,null,null,null,null,null,null,null,null,null,null,null,null,null,null,"0770",10000]
[{"$f":"+A21","v":"Heritage Assets"},null,{"$f":"SUMIFS(Sheet1!S71_OriginalBudget,Sheet1!S71_A9Code,$AC:$AC)+SUMIFS(Sheet1!S71_OriginalBudget,Sheet1!S71_WIPCode,$AD:$AD)+SUMIFS(Sheet1!S71_OriginalBudget,Sheet1!S71_WIPOpBalance,$AE:$AE)","v":0},{"$f":"SUMIFS(Sheet1!S71_PreviousBudget,Sheet1!S71_A9Code,$AC:$AC)+SUMIFS(Sheet1!S71_PreviousBudget,Sheet1!S71_WIPCode,$AD:$AD)+SUMIFS(Sheet1!S71_PreviousBudget,Sheet1!S71_WIPOpBalance,$AE:$AE)","v":0},null,null,null,null,{"$f":"SUMIFS(Sheet1!S71_CurrentAdjustments,Sheet1!S71_A9Code,$AC:$AC)+SUMIFS(Sheet1!S71_CurrentAdjustments,Sheet1!S71_WIPCode,$AD:$AD)+SUMIFS(Sheet1!S71_CurrentAdjustments,Sheet1!S71_WIPOpBalance,$AE:$AE)","v":0},{"$f":"SUM(E162:I162)","v":0},0,{"$f":"SUMIFS(Sheet1!S71_OY1AdjustedBudget,Sheet1!S71_A9Code,$AC:$AC)+SUMIFS(Sheet1!S71_OY1AdjustedBudget,Sheet1!S71_WIPCode,$AD:$AD)","v":0},{"$f":"SUMIFS(Sheet1!S71_OY2AdjustedBudget,Sheet1!S71_A9Code,$AC:$AC)+SUMIFS(Sheet1!S71_OY2AdjustedBudget,Sheet1!S71_WIPCode,$AD:$AD)","v":0},null,null,null,null,null,null,null,null,null,null,null,null,null,null,null,"1050",11000]
[]
[]
[{"$f":"+A24","v":"Investment properties"},null,{"$f":"SUMIFS(Sheet1!S71_OriginalBudget,Sheet1!S71_A9Code,$AC:$AC)+SUMIFS(Sheet1!S71_OriginalBudget,Sheet1!S71_WIPCode,$AD:$AD)+SUMIFS(Sheet1!S71_OriginalBudget,Sheet1!S71_WIPOpBalance,$AE:$AE)","v":60544000},{"$f":"SUMIFS(Sheet1!S71_PreviousBudget,Sheet1!S71_A9Code,$AC:$AC)+SUMIFS(Sheet1!S71_PreviousBudget,Sheet1!S71_WIPCode,$AD:$AD)+SUMIFS(Sheet1!S71_PreviousBudget,Sheet1!S71_WIPOpBalance,$AE:$AE)","v":41913000},null,null,null,null,{"$f":"SUMIFS(Sheet1!S71_CurrentAdjustments,Sheet1!S71_A9Code,$AC:$AC)+SUMIFS(Sheet1!S71_CurrentAdjustments,Sheet1!S71_WIPCode,$AD:$AD)+SUMIFS(Sheet1!S71_CurrentAdjustments,Sheet1!S71_WIPOpBalance,$AE:$AE)","v":0},{"$f":"SUM(E165:I165)","v":0},{"$f":"IF(D165=0,C165+J165,D165+J165)","v":41913000},{"$f":"SUMIFS(Sheet1!S71_OY1AdjustedBudget,Sheet1!S71_A9Code,$AC:$AC)+SUMIFS(Sheet1!S71_OY1AdjustedBudget,Sheet1!S71_WIPCode,$AD:$AD)","v":60544000},{"$f":"SUMIFS(Sheet1!S71_OY2AdjustedBudget,Sheet1!S71_A9Code,$AC:$AC)+SUMIFS(Sheet1!S71_OY2AdjustedBudget,Sheet1!S71_WIPCode,$AD:$AD)","v":60544000},null,null,null,null,null,null,null,null,null,null,null,null,null,null,null,"1110",12000]
[]
[]
[{"$f":"+A27","v":"Other Assets"},null,{"$f":"SUMIFS(Sheet1!S71_OriginalBudget,Sheet1!S71_A9Code,$AC:$AC)+SUMIFS(Sheet1!S71_OriginalBudget,Sheet1!S71_WIPCode,$AD:$AD)+SUMIFS(Sheet1!S71_OriginalBudget,Sheet1!S71_WIPOpBalance,$AE:$AE)","v":52393855},{"$f":"SUMIFS(Sheet1!S71_PreviousBudget,Sheet1!S71_A9Code,$AC:$AC)+SUMIFS(Sheet1!S71_PreviousBudget,Sheet1!S71_WIPCode,$AD:$AD)+SUMIFS(Sheet1!S71_PreviousBudget,Sheet1!S71_WIPOpBalance,$AE:$AE)","v":83886209},null,null,null,null,{"$f":"SUMIFS(Sheet1!S71_CurrentAdjustments,Sheet1!S71_A9Code,$AC:$AC)+SUMIFS(Sheet1!S71_CurrentAdjustments,Sheet1!S71_WIPCode,$AD:$AD)+SUMIFS(Sheet1!S71_CurrentAdjustments,Sheet1!S71_WIPOpBalance,$AE:$AE)","v":0},{"$f":"SUM(E168:I168)","v":0},{"$f":"IF(D168=0,C168+J168,D168+J168)","v":83886209},{"$f":"SUMIFS(Sheet1!S71_OY1AdjustedBudget,Sheet1!S71_A9Code,$AC:$AC)+SUMIFS(Sheet1!S71_OY1AdjustedBudget,Sheet1!S71_WIPCode,$AD:$AD)","v":58093195},{"$f":"SUMIFS(Sheet1!S71_OY2AdjustedBudget,Sheet1!S71_A9Code,$AC:$AC)+SUMIFS(Sheet1!S71_OY2AdjustedBudget,Sheet1!S71_WIPCode,$AD:$AD)","v":58105031},null,null,null,null,null,null,null,null,null,null,null,null,null,null,null,"1180",13000]
[{"$f":"+A28","v":"Biological or Cultivated Assets"},null,{"$f":"SUMIFS(Sheet1!S71_OriginalBudget,Sheet1!S71_A9Code,$AC:$AC)+SUMIFS(Sheet1!S71_OriginalBudget,Sheet1!S71_WIPCode,$AD:$AD)+SUMIFS(Sheet1!S71_OriginalBudget,Sheet1!S71_WIPOpBalance,$AE:$AE)","v":0},{"$f":"SUMIFS(Sheet1!S71_PreviousBudget,Sheet1!S71_A9Code,$AC:$AC)+SUMIFS(Sheet1!S71_PreviousBudget,Sheet1!S71_WIPCode,$AD:$AD)+SUMIFS(Sheet1!S71_PreviousBudget,Sheet1!S71_WIPOpBalance,$AE:$AE)","v":0},null,null,null,null,{"$f":"SUMIFS(Sheet1!S71_CurrentAdjustments,Sheet1!S71_A9Code,$AC:$AC)+SUMIFS(Sheet1!S71_CurrentAdjustments,Sheet1!S71_WIPCode,$AD:$AD)+SUMIFS(Sheet1!S71_CurrentAdjustments,Sheet1!S71_WIPOpBalance,$AE:$AE)","v":0},{"$f":"SUM(E169:I169)","v":0},{"$f":"IF(D169=0,C169+J169,D169+J169)","v":0},{"$f":"SUMIFS(Sheet1!S71_OY1AdjustedBudget,Sheet1!S71_A9Code,$AC:$AC)+SUMIFS(Sheet1!S71_OY1AdjustedBudget,Sheet1!S71_WIPCode,$AD:$AD)","v":0},{"$f":"SUMIFS(Sheet1!S71_OY2AdjustedBudget,Sheet1!S71_A9Code,$AC:$AC)+SUMIFS(Sheet1!S71_OY2AdjustedBudget,Sheet1!S71_WIPCode,$AD:$AD)","v":0},null,null,null,null,null,null,null,null,null,null,null,null,null,null,null,"1360",14000]
[]
[]
[{"$f":"+A31","v":"Intangible Assets"},null,{"$f":"SUMIFS(Sheet1!S71_OriginalBudget,Sheet1!S71_A9Code,$AC:$AC)+SUMIFS(Sheet1!S71_OriginalBudget,Sheet1!S71_WIPCode,$AD:$AD)+SUMIFS(Sheet1!S71_OriginalBudget,Sheet1!S71_WIPOpBalance,$AE:$AE)","v":297630},{"$f":"SUMIFS(Sheet1!S71_PreviousBudget,Sheet1!S71_A9Code,$AC:$AC)+SUMIFS(Sheet1!S71_PreviousBudget,Sheet1!S71_WIPCode,$AD:$AD)+SUMIFS(Sheet1!S71_PreviousBudget,Sheet1!S71_WIPOpBalance,$AE:$AE)","v":2007790},null,null,null,null,{"$f":"SUMIFS(Sheet1!S71_CurrentAdjustments,Sheet1!S71_A9Code,$AC:$AC)+SUMIFS(Sheet1!S71_CurrentAdjustments,Sheet1!S71_WIPCode,$AD:$AD)+SUMIFS(Sheet1!S71_CurrentAdjustments,Sheet1!S71_WIPOpBalance,$AE:$AE)","v":0},{"$f":"SUM(E172:I172)","v":0},{"$f":"IF(D172=0,C172+J172,D172+J172)","v":2007790},{"$f":"SUMIFS(Sheet1!S71_OY1AdjustedBudget,Sheet1!S71_A9Code,$AC:$AC)+SUMIFS(Sheet1!S71_OY1AdjustedBudget,Sheet1!S71_WIPCode,$AD:$AD)","v":252717},{"$f":"SUMIFS(Sheet1!S71_OY2AdjustedBudget,Sheet1!S71_A9Code,$AC:$AC)+SUMIFS(Sheet1!S71_OY2AdjustedBudget,Sheet1!S71_WIPCode,$AD:$AD)","v":236617},null,null,null,null,null,null,null,null,null,null,null,null,null,null,null,"1370",15000]
["Computer Equipment",null,{"$f":"SUMIFS(Sheet1!S71_OriginalBudget,Sheet1!S71_A9Code,$AC:$AC)+SUMIFS(Sheet1!S71_OriginalBudget,Sheet1!S71_WIPCode,$AD:$AD)+SUMIFS(Sheet1!S71_OriginalBudget,Sheet1!S71_WIPOpBalance,$AE:$AE)","v":12769676},{"$f":"SUMIFS(Sheet1!S71_PreviousBudget,Sheet1!S71_A9Code,$AC:$AC)+SUMIFS(Sheet1!S71_PreviousBudget,Sheet1!S71_WIPCode,$AD:$AD)+SUMIFS(Sheet1!S71_PreviousBudget,Sheet1!S71_WIPOpBalance,$AE:$AE)","v":5216375},null,null,null,null,{"$f":"SUMIFS(Sheet1!S71_CurrentAdjustments,Sheet1!S71_A9Code,$AC:$AC)+SUMIFS(Sheet1!S71_CurrentAdjustments,Sheet1!S71_WIPCode,$AD:$AD)+SUMIFS(Sheet1!S71_CurrentAdjustments,Sheet1!S71_WIPOpBalance,$AE:$AE)","v":0},{"$f":"SUM(E173:I173)","v":0},{"$f":"IF(D173=0,C173+J173,D173+J173)","v":5216375},{"$f":"SUMIFS(Sheet1!S71_OY1AdjustedBudget,Sheet1!S71_A9Code,$AC:$AC)+SUMIFS(Sheet1!S71_OY1AdjustedBudget,Sheet1!S71_WIPCode,$AD:$AD)","v":12976544},{"$f":"SUMIFS(Sheet1!S71_OY2AdjustedBudget,Sheet1!S71_A9Code,$AC:$AC)+SUMIFS(Sheet1!S71_OY2AdjustedBudget,Sheet1!S71_WIPCode,$AD:$AD)","v":13081169},null,null,null,null,null,null,null,null,null,null,null,null,null,null,null,"1470",16000]
["Furniture and Office Equipment",null,{"$f":"SUMIFS(Sheet1!S71_OriginalBudget,Sheet1!S71_A9Code,$AC:$AC)+SUMIFS(Sheet1!S71_OriginalBudget,Sheet1!S71_WIPCode,$AD:$AD)+SUMIFS(Sheet1!S71_OriginalBudget,Sheet1!S71_WIPOpBalance,$AE:$AE)","v":14411806},{"$f":"SUMIFS(Sheet1!S71_PreviousBudget,Sheet1!S71_A9Code,$AC:$AC)+SUMIFS(Sheet1!S71_PreviousBudget,Sheet1!S71_WIPCode,$AD:$AD)+SUMIFS(Sheet1!S71_PreviousBudget,Sheet1!S71_WIPOpBalance,$AE:$AE)","v":4929494},null,null,null,null,{"$f":"SUMIFS(Sheet1!S71_CurrentAdjustments,Sheet1!S71_A9Code,$AC:$AC)+SUMIFS(Sheet1!S71_CurrentAdjustments,Sheet1!S71_WIPCode,$AD:$AD)+SUMIFS(Sheet1!S71_CurrentAdjustments,Sheet1!S71_WIPOpBalance,$AE:$AE)","v":0},0,4929494,{"$f":"SUMIFS(Sheet1!S71_OY1AdjustedBudget,Sheet1!S71_A9Code,$AC:$AC)+SUMIFS(Sheet1!S71_OY1AdjustedBudget,Sheet1!S71_WIPCode,$AD:$AD)","v":14806328},{"$f":"SUMIFS(Sheet1!S71_OY2AdjustedBudget,Sheet1!S71_A9Code,$AC:$AC)+SUMIFS(Sheet1!S71_OY2AdjustedBudget,Sheet1!S71_WIPCode,$AD:$AD)","v":14636542},null,null,null,null,null,null,null,null,null,null,null,null,null,null,null,"1490",17000]
["Machinery and Equipment",null,{"$f":"SUMIFS(Sheet1!S71_OriginalBudget,Sheet1!S71_A9Code,$AC:$AC)+SUMIFS(Sheet1!S71_OriginalBudget,Sheet1!S71_WIPCode,$AD:$AD)+SUMIFS(Sheet1!S71_OriginalBudget,Sheet1!S71_WIPOpBalance,$AE:$AE)","v":8906900},{"$f":"SUMIFS(Sheet1!S71_PreviousBudget,Sheet1!S71_A9Code,$AC:$AC)+SUMIFS(Sheet1!S71_PreviousBudget,Sheet1!S71_WIPCode,$AD:$AD)+SUMIFS(Sheet1!S71_PreviousBudget,Sheet1!S71_WIPOpBalance,$AE:$AE)","v":26515608},null,null,null,null,{"$f":"SUMIFS(Sheet1!S71_CurrentAdjustments,Sheet1!S71_A9Code,$AC:$AC)+SUMIFS(Sheet1!S71_CurrentAdjustments,Sheet1!S71_WIPCode,$AD:$AD)+SUMIFS(Sheet1!S71_CurrentAdjustments,Sheet1!S71_WIPOpBalance,$AE:$AE)","v":0},0,26515608,{"$f":"SUMIFS(Sheet1!S71_OY1AdjustedBudget,Sheet1!S71_A9Code,$AC:$AC)+SUMIFS(Sheet1!S71_OY1AdjustedBudget,Sheet1!S71_WIPCode,$AD:$AD)","v":9286302},{"$f":"SUMIFS(Sheet1!S71_OY2AdjustedBudget,Sheet1!S71_A9Code,$AC:$AC)+SUMIFS(Sheet1!S71_OY2AdjustedBudget,Sheet1!S71_WIPCode,$AD:$AD)","v":9315297},null,null,null,null,null,null,null,null,null,null,null,null,null,null,null,"1510",18000]
["Transport Assets",null,{"$f":"SUMIFS(Sheet1!S71_OriginalBudget,Sheet1!S71_A9Code,$AC:$AC)+SUMIFS(Sheet1!S71_OriginalBudget,Sheet1!S71_WIPCode,$AD:$AD)+SUMIFS(Sheet1!S71_OriginalBudget,Sheet1!S71_WIPOpBalance,$AE:$AE)","v":38230225},{"$f":"SUMIFS(Sheet1!S71_PreviousBudget,Sheet1!S71_A9Code,$AC:$AC)+SUMIFS(Sheet1!S71_PreviousBudget,Sheet1!S71_WIPCode,$AD:$AD)+SUMIFS(Sheet1!S71_PreviousBudget,Sheet1!S71_WIPOpBalance,$AE:$AE)","v":53540340},null,null,null,null,{"$f":"SUMIFS(Sheet1!S71_CurrentAdjustments,Sheet1!S71_A9Code,$AC:$AC)+SUMIFS(Sheet1!S71_CurrentAdjustments,Sheet1!S71_WIPCode,$AD:$AD)+SUMIFS(Sheet1!S71_CurrentAdjustments,Sheet1!S71_WIPOpBalance,$AE:$AE)","v":0},0,53540340,{"$f":"SUMIFS(Sheet1!S71_OY1AdjustedBudget,Sheet1!S71_A9Code,$AC:$AC)+SUMIFS(Sheet1!S71_OY1AdjustedBudget,Sheet1!S71_WIPCode,$AD:$AD)","v":38929921},{"$f":"SUMIFS(Sheet1!S71_OY2AdjustedBudget,Sheet1!S71_A9Code,$AC:$AC)+SUMIFS(Sheet1!S71_OY2AdjustedBudget,Sheet1!S71_WIPCode,$AD:$AD)","v":38307256},null,null,null,null,null,null,null,null,null,null,null,null,null,null,null,"1530",19000]
["Land",null,{"$f":"SUMIFS(Sheet1!S71_OriginalBudget,Sheet1!S71_A9Code,$AC:$AC)+SUMIFS(Sheet1!S71_OriginalBudget,Sheet1!S71_WIPCode,$AD:$AD)+SUMIFS(Sheet1!S71_OriginalBudget,Sheet1!S71_WIPOpBalance,$AE:$AE)","v":33983320},{"$f":"SUMIFS(Sheet1!S71_PreviousBudget,Sheet1!S71_A9Code,$AC:$AC)+SUMIFS(Sheet1!S71_PreviousBudget,Sheet1!S71_WIPCode,$AD:$AD)+SUMIFS(Sheet1!S71_PreviousBudget,Sheet1!S71_WIPOpBalance,$AE:$AE)","v":51998320},null,null,null,null,{"$f":"SUMIFS(Sheet1!S71_CurrentAdjustments,Sheet1!S71_A9Code,$AC:$AC)+SUMIFS(Sheet1!S71_CurrentAdjustments,Sheet1!S71_WIPCode,$AD:$AD)+SUMIFS(Sheet1!S71_CurrentAdjustments,Sheet1!S71_WIPOpBalance,$AE:$AE)","v":0},0,51998320,{"$f":"SUMIFS(Sheet1!S71_OY1AdjustedBudget,Sheet1!S71_A9Code,$AC:$AC)+SUMIFS(Sheet1!S71_OY1AdjustedBudget,Sheet1!S71_WIPCode,$AD:$AD)","v":33983320},{"$f":"SUMIFS(Sheet1!S71_OY2AdjustedBudget,Sheet1!S71_A9Code,$AC:$AC)+SUMIFS(Sheet1!S71_OY2AdjustedBudget,Sheet1!S71_WIPCode,$AD:$AD)","v":33983320},null,null,null,null,null,null,null,null,null,null,null,null,null,null,null,"1550",20000]
["Zoo's, Marine and Non-biological Animals",null,{"$f":"SUMIFS(Sheet1!S71_OriginalBudget,Sheet1!S71_A9Code,$AC:$AC)+SUMIFS(Sheet1!S71_OriginalBudget,Sheet1!S71_WIPCode,$AD:$AD)+SUMIFS(Sheet1!S71_OriginalBudget,Sheet1!S71_WIPOpBalance,$AE:$AE)","v":0},{"$f":"SUMIFS(Sheet1!S71_PreviousBudget,Sheet1!S71_A9Code,$AC:$AC)+SUMIFS(Sheet1!S71_PreviousBudget,Sheet1!S71_WIPCode,$AD:$AD)+SUMIFS(Sheet1!S71_PreviousBudget,Sheet1!S71_WIPOpBalance,$AE:$AE)","v":0},null,null,null,null,{"$f":"SUMIFS(Sheet1!S71_CurrentAdjustments,Sheet1!S71_A9Code,$AC:$AC)+SUMIFS(Sheet1!S71_CurrentAdjustments,Sheet1!S71_WIPCode,$AD:$AD)+SUMIFS(Sheet1!S71_CurrentAdjustments,Sheet1!S71_WIPOpBalance,$AE:$AE)","v":0},0,0,{"$f":"SUMIFS(Sheet1!S71_OY1AdjustedBudget,Sheet1!S71_A9Code,$AC:$AC)+SUMIFS(Sheet1!S71_OY1AdjustedBudget,Sheet1!S71_WIPCode,$AD:$AD)","v":0},{"$f":"SUMIFS(Sheet1!S71_OY2AdjustedBudget,Sheet1!S71_A9Code,$AC:$AC)+SUMIFS(Sheet1!S71_OY2AdjustedBudget,Sheet1!S71_WIPCode,$AD:$AD)","v":0},null,null,null,null,null,null,null,null,null,null,null,null,null,null,null,"1570",21000]
["Living Resources",null,{"$f":"SUMIFS(Sheet1!S71_OriginalBudget,Sheet1!S71_A9Code,$AC:$AC)+SUMIFS(Sheet1!S71_OriginalBudget,Sheet1!S71_WIPCode,$AD:$AD)+SUMIFS(Sheet1!S71_OriginalBudget,Sheet1!S71_WIPOpBalance,$AE:$AE)","v":0},{"$f":"SUMIFS(Sheet1!S71_PreviousBudget,Sheet1!S71_A9Code,$AC:$AC)+SUMIFS(Sheet1!S71_PreviousBudget,Sheet1!S71_WIPCode,$AD:$AD)+SUMIFS(Sheet1!S71_PreviousBudget,Sheet1!S71_WIPOpBalance,$AE:$AE)","v":0},null,null,null,null,{"$f":"SUMIFS(Sheet1!S71_CurrentAdjustments,Sheet1!S71_A9Code,$AC:$AC)+SUMIFS(Sheet1!S71_CurrentAdjustments,Sheet1!S71_WIPCode,$AD:$AD)+SUMIFS(Sheet1!S71_CurrentAdjustments,Sheet1!S71_WIPOpBalance,$AE:$AE)","v":0},null,null,{"$f":"SUMIFS(Sheet1!S71_OY1AdjustedBudget,Sheet1!S71_A9Code,$AC:$AC)+SUMIFS(Sheet1!S71_OY1AdjustedBudget,Sheet1!S71_WIPCode,$AD:$AD)","v":0},{"$f":"SUMIFS(Sheet1!S71_OY2AdjustedBudget,Sheet1!S71_A9Code,$AC:$AC)+SUMIFS(Sheet1!S71_OY2AdjustedBudget,Sheet1!S71_WIPCode,$AD:$AD)","v":0}]
["TOTAL ASSET REGISTER SUMMARY - PPE (WDV)",5,{"$f":"C158+C161+C162+C165+C168+C169+SUM(C172:C179)","v":692231995},{"$f":"D158+D161+D162+D165+D168+D169+SUM(D172:D179)","v":808949170},0,0,0,1985217.38,0,1985217.38,810934387.38,705634428,690039021]
[]
["EXPENDITURE OTHER ITEMS"]
["Depreciation & asset impairment",null,{"$f":"SB18d!C177","v":37856010},{"$f":"SB18d!D177","v":37856010},{"$f":"SB18d!E177","v":0},{"$f":"SB18d!F177","v":0},{"$f":"SB18d!G177","v":0},{"$f":"SB18d!H177","v":0},{"$f":"SB18d!I177","v":0},{"$f":"SB18d!J177","v":0},{"$f":"SB18d!K177","v":37856010},{"$f":"SB18d!L177","v":38991690},{"$f":"SB18d!M177","v":39771522}]
["Repairs and Maintenance by asset class",3,{"$f":"C194+C197+C198+C201+C204+C205+SUM(C208:C214)+C217","v":27347801},{"$f":"D194+D197+D198+D201+D204+D205+SUM(D208:D214)+D217","v":29195624},0,0,0,0,0,0,29195624,28151018,29445960]
[{"$f":"+A8","v":"Roads Infrastructure"},null,{"$f":"SB18c!C9","v":8547807},{"$f":"SB18c!D9","v":8547807},{"$f":"SB18c!E9","v":0},{"$f":"SB18c!F9","v":0},{"$f":"SB18c!G9","v":0},{"$f":"SB18c!H9","v":0},{"$f":"SB18c!I9","v":0},{"$f":"SB18c!J9","v":0},{"$f":"SB18c!K9","v":8547807},{"$f":"SB18c!L9","v":8941007},{"$f":"SB18c!M9","v":9352297}]
["Storm water Infrastructure",null,{"$f":"SB18c!C14","v":2869570},{"$f":"SB18c!D14","v":2869570},{"$f":"SB18c!E14","v":0},{"$f":"SB18c!F14","v":0},{"$f":"SB18c!G14","v":0},{"$f":"SB18c!H14","v":0},{"$f":"SB18c!I14","v":0},{"$f":"SB18c!J14","v":0},{"$f":"SB18c!K14","v":2869570},{"$f":"SB18c!L14","v":3001570},{"$f":"SB18c!M14","v":3139640}]
["Electrical Infrastructure",null,{"$f":"SB18c!C18","v":2999998},{"$f":"SB18c!D18","v":2565215},{"$f":"SB18c!E18","v":0},{"$f":"SB18c!F18","v":0},{"$f":"SB18c!G18","v":0},{"$f":"SB18c!H18","v":0},{"$f":"SB18c!I18","v":0},{"$f":"SB18c!J18","v":0},{"$f":"SB18c!K18","v":2565215},{"$f":"SB18c!L18","v":3137998},{"$f":"SB18c!M18","v":3282338}]
["Water Supply Infrastructure",null,{"$f":"SB18c!C28","v":0},{"$f":"SB18c!D28","v":0},{"$f":"SB18c!E28","v":0},{"$f":"SB18c!F28","v":0},{"$f":"SB18c!G28","v":0},{"$f":"SB18c!H28","v":0},{"$f":"SB18c!I28","v":0},{"$f":"SB18c!J28","v":0},{"$f":"SB18c!K28","v":0},{"$f":"SB18c!L28","v":0},{"$f":"SB18c!M28","v":0}]
["Sanitation Infrastructure",null,{"$f":"SB18c!C39","v":0},{"$f":"SB18c!D39","v":0},{"$f":"SB18c!E39","v":0},{"$f":"SB18c!F39","v":0},{"$f":"SB18c!G39","v":0},{"$f":"SB18c!H39","v":0},{"$f":"SB18c!I39","v":0},{"$f":"SB18c!J39","v":0},{"$f":"SB18c!K39","v":0},{"$f":"SB18c!L39","v":0},{"$f":"SB18c!M39","v":0}]
["Solid Waste Infrastructure",null,{"$f":"SB18c!C46","v":3391300},{"$f":"SB18c!D46","v":4695648},{"$f":"SB18c!E46","v":0},{"$f":"SB18c!F46","v":0},{"$f":"SB18c!G46","v":0},{"$f":"SB18c!H46","v":0},{"$f":"SB18c!I46","v":0},{"$f":"SB18c!J46","v":0},{"$f":"SB18c!K46","v":4695648},{"$f":"SB18c!L46","v":3547300},{"$f":"SB18c!M46","v":3710480}]
["Rail Infrastructure",null,{"$f":"SB18c!C54","v":0},{"$f":"SB18c!D54","v":0},{"$f":"SB18c!E54","v":0},{"$f":"SB18c!F54","v":0},{"$f":"SB18c!G54","v":0},{"$f":"SB18c!H54","v":0},{"$f":"SB18c!I54","v":0},{"$f":"SB18c!J54","v":0},{"$f":"SB18c!K54","v":0},{"$f":"SB18c!L54","v":0},{"$f":"SB18c!M54","v":0}]
["Coastal Infrastructure",null,{"$f":"SB18c!C64","v":0},{"$f":"SB18c!D64","v":0},{"$f":"SB18c!E64","v":0},{"$f":"SB18c!F64","v":0},{"$f":"SB18c!G64","v":0},{"$f":"SB18c!H64","v":0},{"$f":"SB18c!I64","v":0},{"$f":"SB18c!J64","v":0},{"$f":"SB18c!K64","v":0},{"$f":"SB18c!L64","v":0},{"$f":"SB18c!M64","v":0}]
["Information and Communication Infrastructure",null,{"$f":"SB18c!C70","v":695650},{"$f":"SB18c!D70","v":695650},{"$f":"SB18c!E70","v":0},{"$f":"SB18c!F70","v":0},{"$f":"SB18c!G70","v":0},{"$f":"SB18c!H70","v":0},{"$f":"SB18c!I70","v":0},{"$f":"SB18c!J70","v":0},{"$f":"SB18c!K70","v":695650},{"$f":"SB18c!L70","v":727650},{"$f":"SB18c!M70","v":761120}]
["Infrastructure",null,{"$f":"SUM(C185:C193)","v":18504325},{"$f":"SUM(D185:D193)","v":19373890},0,0,0,0,0,0,19373890,19355525,20245875]
["Community Facilities",null,{"$f":"SB18c!C77","v":173910},{"$f":"SB18c!D77","v":43478},{"$f":"SB18c!E77","v":0},{"$f":"SB18c!F77","v":0},{"$f":"SB18c!G77","v":0},{"$f":"SB18c!H77","v":0},{"$f":"SB18c!I77","v":0},{"$f":"SB18c!J77","v":0},{"$f":"SB18c!K77","v":43478},{"$f":"SB18c!L77","v":181910},{"$f":"SB18c!M77","v":190280}]
["Sport and Recreation Facilities",null,{"$f":"SB18c!C100","v":1973910},{"$f":"SB18c!D100","v":2153915},{"$f":"SB18c!E100","v":0},{"$f":"SB18c!F100","v":0},{"$f":"SB18c!G100","v":0},{"$f":"SB18c!H100","v":0},{"$f":"SB18c!I100","v":0},{"$f":"SB18c!J100","v":0},{"$f":"SB18c!K100","v":2153915},{"$f":"SB18c!L100","v":2064710},{"$f":"SB18c!M100","v":2159690}]
["Community Assets",null,{"$f":"SUM(C195:C196)","v":2147820},{"$f":"SUM(D195:D196)","v":2197393},0,0,0,0,0,0,2197393,2246620,2349970]
["Heritage Assets",null,{"$f":"SB18c!C105","v":0},{"$f":"SB18c!D105","v":0},{"$f":"SB18c!E105","v":0},{"$f":"SB18c!F105","v":0},{"$f":"SB18c!G105","v":0},{"$f":"SB18c!H105","v":0},{"$f":"SB18c!I105","v":0},{"$f":"SB18c!J105","v":0},{"$f":"SB18c!K105","v":0},{"$f":"SB18c!L105","v":0},{"$f":"SB18c!M105","v":0}]
["Revenue Generating",null,{"$f":"SB18c!C113","v":0},{"$f":"SB18c!D113","v":0},{"$f":"SB18c!E113","v":0},{"$f":"SB18c!F113","v":0},{"$f":"SB18c!G113","v":0},{"$f":"SB18c!H113","v":0},{"$f":"SB18c!I113","v":0},{"$f":"SB18c!J113","v":0},{"$f":"SB18c!K113","v":0},{"$f":"SB18c!L113","v":0},{"$f":"SB18c!M113","v":0}]
["Non-revenue Generating",null,{"$f":"SB18c!C116","v":0},{"$f":"SB18c!D116","v":0},{"$f":"SB18c!E116","v":0},{"$f":"SB18c!F116","v":0},{"$f":"SB18c!G116","v":0},{"$f":"SB18c!H116","v":0},{"$f":"SB18c!I116","v":0},{"$f":"SB18c!J116","v":0},{"$f":"SB18c!K116","v":0},{"$f":"SB18c!L116","v":0},{"$f":"SB18c!M116","v":0}]
["Investment properties",null,{"$f":"SUM(C199:C200)","v":0},{"$f":"SUM(D199:D200)","v":0},0,0,0,0,0,0,0,0,0]
["Operational Buildings",null,{"$f":"SB18c!C121","v":0},{"$f":"SB18c!D121","v":0},{"$f":"SB18c!E121","v":0},{"$f":"SB18c!F121","v":0},{"$f":"SB18c!G121","v":0},{"$f":"SB18c!H121","v":0},{"$f":"SB18c!I121","v":0},{"$f":"SB18c!J121","v":0},{"$f":"SB18c!K121","v":0},{"$f":"SB18c!L121","v":0},{"$f":"SB18c!M121","v":0}]
["Housing",null,{"$f":"SB18c!C133","v":0},{"$f":"SB18c!D133","v":0},{"$f":"SB18c!E133","v":0},{"$f":"SB18c!F133","v":0},{"$f":"SB18c!G133","v":0},{"$f":"SB18c!H133","v":0},{"$f":"SB18c!I133","v":0},{"$f":"SB18c!J133","v":0},{"$f":"SB18c!K133","v":0},{"$f":"SB18c!L133","v":0},{"$f":"SB18c!M133","v":0}]
["Other Assets",null,{"$f":"SUM(C202:C203)","v":0},{"$f":"SUM(D202:D203)","v":0},0,0,0,0,0,0,0,0,0]
["Biological or Cultivated Assets",null,{"$f":"SB18c!C138","v":0},{"$f":"SB18c!D138","v":0},{"$f":"SB18c!E138","v":0},{"$f":"SB18c!F138","v":0},{"$f":"SB18c!G138","v":0},{"$f":"SB18c!H138","v":0},{"$f":"SB18c!I138","v":0},{"$f":"SB18c!J138","v":0},{"$f":"SB18c!K138","v":0},{"$f":"SB18c!L138","v":0},{"$f":"SB18c!M138","v":0}]
["Servitudes",null,{"$f":"SB18c!C142","v":0},{"$f":"SB18c!D142","v":0},{"$f":"SB18c!E142","v":0},{"$f":"SB18c!F142","v":0},{"$f":"SB18c!G142","v":0},{"$f":"SB18c!H142","v":0},{"$f":"SB18c!I142","v":0},{"$f":"SB18c!J142","v":0},{"$f":"SB18c!K142","v":0},{"$f":"SB18c!L142","v":0},{"$f":"SB18c!M142","v":0}]
["Licences and Rights",null,{"$f":"SB18c!C143","v":0},{"$f":"SB18c!D143","v":0},{"$f":"SB18c!E143","v":0},{"$f":"SB18c!F143","v":0},{"$f":"SB18c!G143","v":0},{"$f":"SB18c!H143","v":0},{"$f":"SB18c!I143","v":0},{"$f":"SB18c!J143","v":0},{"$f":"SB18c!K143","v":0},{"$f":"SB18c!L143","v":0},{"$f":"SB18c!M143","v":0}]
["Intangible Assets",null,{"$f":"SUM(C206:C207)","v":0},{"$f":"SUM(D206:D207)","v":0},0,0,0,0,0,0,0,0,0]
["Computer Equipment",null,{"$f":"SB18c!C151","v":347830},{"$f":"SB18c!D151","v":192515},{"$f":"SB18c!E151","v":0},{"$f":"SB18c!F151","v":0},{"$f":"SB18c!G151","v":0},{"$f":"SB18c!H151","v":0},{"$f":"SB18c!I151","v":0},{"$f":"SB18c!J151","v":0},{"$f":"SB18c!K151","v":192515},{"$f":"SB18c!L151","v":363830},{"$f":"SB18c!M151","v":380560}]
["Furniture and Office Equipment",null,{"$f":"SB18c!C154","v":0},{"$f":"SB18c!D154","v":0},{"$f":"SB18c!E154","v":0},{"$f":"SB18c!F154","v":0},{"$f":"SB18c!G154","v":0},{"$f":"SB18c!H154","v":0},{"$f":"SB18c!I154","v":0},{"$f":"SB18c!J154","v":0},{"$f":"SB18c!K154","v":0},{"$f":"SB18c!L154","v":0},{"$f":"SB18c!M154","v":0}]
["Machinery and Equipment",null,{"$f":"SB18c!C157","v":6347826},{"$f":"SB18c!D157","v":7431826},{"$f":"SB18c!E157","v":0},{"$f":"SB18c!F157","v":0},{"$f":"SB18c!G157","v":0},{"$f":"SB18c!H157","v":0},{"$f":"SB18c!I157","v":0},{"$f":"SB18c!J157","v":0},{"$f":"SB18c!K157","v":7431826},{"$f":"SB18c!L157","v":6185043},{"$f":"SB18c!M157","v":6469555}]
["Transport Assets",null,{"$f":"SB18c!C160","v":0},{"$f":"SB18c!D160","v":0},{"$f":"SB18c!E160","v":0},{"$f":"SB18c!F160","v":0},{"$f":"SB18c!G160","v":0},{"$f":"SB18c!H160","v":0},{"$f":"SB18c!I160","v":0},{"$f":"SB18c!J160","v":0},{"$f":"SB18c!K160","v":0},{"$f":"SB18c!L160","v":0},{"$f":"SB18c!M160","v":0}]
["Land",null,{"$f":"SB18c!C163","v":0},{"$f":"SB18c!D163","v":0},{"$f":"SB18c!E163","v":0},{"$f":"SB18c!F163","v":0},{"$f":"SB18c!G163","v":0},{"$f":"SB18c!H163","v":0},{"$f":"SB18c!I163","v":0},{"$f":"SB18c!J163","v":0},{"$f":"SB18c!K163","v":0},{"$f":"SB18c!L163","v":0},{"$f":"SB18c!M163","v":0}]
["Zoo's, Marine and Non-biological Animals",6,{"$f":"SB18c!C166","v":0},{"$f":"SB18c!D166","v":0},{"$f":"SB18c!E166","v":0},{"$f":"SB18c!F166","v":0},{"$f":"SB18c!G166","v":0},{"$f":"SB18c!H166","v":0},{"$f":"SB18c!I166","v":0},{"$f":"SB18c!J166","v":0},{"$f":"SB18c!K166","v":0},{"$f":"SB18c!L166","v":0},{"$f":"SB18c!M166","v":0}]
["Mature",null,{"$f":"SB18c!C170","v":0},{"$f":"SB18c!D170","v":0},{"$f":"SB18c!E170","v":0},{"$f":"SB18c!F170","v":0},{"$f":"SB18c!G170","v":0},{"$f":"SB18c!H170","v":0},{"$f":"SB18c!I170","v":0},{"$f":"SB18c!J170","v":0},{"$f":"SB18c!K170","v":0},{"$f":"SB18c!L170","v":0},{"$f":"SB18c!M170","v":0}]
["Immature",null,{"$f":"SB18c!C173","v":0},{"$f":"SB18c!D173","v":0},{"$f":"SB18c!E173","v":0},{"$f":"SB18c!F173","v":0},{"$f":"SB18c!G173","v":0},{"$f":"SB18c!H173","v":0},{"$f":"SB18c!I173","v":0},{"$f":"SB18c!J173","v":0},{"$f":"SB18c!K173","v":0},{"$f":"SB18c!L173","v":0},{"$f":"SB18c!M173","v":0}]
["Living Resources",null,{"$f":"+C215+C216","v":0},0,0,0,0,0,0,0,0,0,0]
["TOTAL EXPENDITURE OTHER ITEMS to be adjusted",null,{"$f":"+C183+C184","v":65203811},{"$f":"+D183+D184","v":67051634},0,0,0,0,0,0,67051634,67142708,69217482]
[]
["Renewal and upgrading of Existing Assets as % of total capex",null,{"$f":"IF(ISERROR((C42+C77)/C146),0,((C42+C77)/C146))","v":0.59226751230007657},{"$f":"IF(ISERROR((D42+D77)/D146),0,((D42+D77)/D146))","v":0.56150932709553059},null,null,null,null,null,null,{"$f":"IF(ISERROR((K42+K77)/K146),0,((K42+K77)/K146))","v":0.5684713760451312},{"$f":"IF(ISERROR((L42+L77)/L146),0,((L42+L77)/L146))","v":0.50644565475267245},{"$f":"IF(ISERROR((M42+M77)/M146),0,((M42+M77)/M146))","v":0.71918274991303088}]
["Renewal and upgrading of Existing Assets as % of deprecn\"",null,{"$f":"IF(ISERROR((C42+C77)/C183),0,((C42+C77)/C183))","v":1.9963336072660589},{"$f":"IF(ISERROR((D42+D77)/D183),0,((D42+D77)/D183))","v":1.9850567981147511},null,null,null,null,null,null,{"$f":"IF(ISERROR((K42+K77)/K183),0,((K42+K77)/K183))","v":2.042092058301971},{"$f":"IF(ISERROR((L42+L77)/L183),0,((L42+L77)/L183))","v":0.91077488562306486},{"$f":"IF(ISERROR((M42+M77)/M183),0,((M42+M77)/M183))","v":0.96590525250705772}]
["R&M as a % of PPE",null,{"$f":"IF(ISERROR(C184/C180),0,(C184/C180))","v":3.9506698906628841E-2},{"$f":"IF(ISERROR(D184/D180),0,(D184/D180))","v":3.6090801601292202E-2},null,null,null,null,null,null,{"$f":"IF(ISERROR(K184/K180),0,(K184/K180))","v":3.6002449093725596E-2},{"$f":"IF(ISERROR(L184/L180),0,(L184/L180))","v":3.9894620901348654E-2},{"$f":"IF(ISERROR(M184/M180),0,(M184/M180))","v":4.2672891103067052E-2}]
["Renewal and upgrading and R&M as a % of PPE",null,{"$f":"IF(ISERROR((C42+C77+C184)/C180),0,((C42+C77+C184)/C180))","v":0.14867996097175484},{"$f":"IF(ISERROR((D42+D77+D184)/D180),0,((D42+D77+D184)/D180))","v":0.1289845615392621},null,null,null,null,null,null,{"$f":"IF(ISERROR((K42+K77+K184)/K180),0,((K42+K77+K184)/K180))","v":0.13133131735119538},{"$f":"IF(ISERROR((L42+L77+L184)/L180),0,((L42+L77+L184)/L180))","v":9.0221887529558009E-2},{"$f":"IF(ISERROR((M42+M77+M184)/M180),0,((M42+M77+M184)/M180))","v":9.8344412322734429E-2}]
[]
[{"$f":"head27a","v":"References"}]
["1. Detail of new assets provided in Table SB18a"]
["2. Detail of renewal of existing assets provided in Table SB18b"]
["2a. Detail of upgrading of existing assets provided in Table SB18e"]
["3. Detail of Repairs and Maintenance by Asset Class provided in Table SB18c"]
["4. Must reconcile to total capital expenditure on Budgeted Capital Expenditure"]
["5. Must reconcile to Adjustments Budget Financial Position (written down value)"]
["6. Donated/contributed and assets funded by finance leases to be allocated to the respective category"]
["7. Only complete if a previous adjusted budget has been approved in the same financial year. Reflect most recent adjusted budget."]
["8. Additional cash-backed accumulated funds/unspent funds (MFMA section 18(1)(b) and section 28(2)(e)) identified after the Original Budget approved and after annual financial statements audited (note: only where underspending could not reasonably have been foreseen)"]
["9. Increases of funds approved under MFMA section 31"]
["10. Adjustments approved in accordance with MFMA section 29 "]
[{"$f":"'B4-FinPerf RE'!B272","v":0}]
["12. Adjusts. = 'Other' Adjustments proposed to be approved; including revenue under-collection (MFMA section 28(2)(a)); additional revenue appropriation on existing programmes (section 28(2))(b); projected savings (section 28(2)(d)); error correction (section 28(2)(f))"]
["13. G = B + C + D + E + F"]
["14. Adjusted Budget H = (A or A1) + G"]
[]
[]
[null,"Asset register balance check",{"$f":"SUM('B6-FinPos'!C22:C25)-'B9-Asset'!C180","v":-691934365},{"$f":"SUM('B6-FinPos'!D22:D25)-'B9-Asset'!D180","v":-806941380},{"$f":"SUM('B6-FinPos'!E22:E25)-'B9-Asset'!E180","v":0},{"$f":"SUM('B6-FinPos'!F22:F25)-'B9-Asset'!F180","v":0},{"$f":"SUM('B6-FinPos'!G22:G25)-'B9-Asset'!G180","v":0},{"$f":"SUM('B6-FinPos'!H22:H25)-'B9-Asset'!H180","v":-1985217.38},{"$f":"SUM('B6-FinPos'!I22:I25)-'B9-Asset'!I180","v":0},{"$f":"SUM('B6-FinPos'!J22:J25)-'B9-Asset'!J180","v":-1985217.38},{"$f":"SUM('B6-FinPos'!K22:K25)-'B9-Asset'!K180","v":-808926597.38},{"$f":"SUM('B6-FinPos'!L22:L25)-'B9-Asset'!L180","v":-705381711},{"$f":"SUM('B6-FinPos'!M22:M25)-'B9-Asset'!M180","v":-689802404}]

{"sheet":"B10-SerDel","index":36,"n_rows":99,"n_cols":13,"rows_kept":99,"cut":false,"hidden":false,"merged":[[95,0,95,12],[93,0,93,12],[1,0,4,0],[1,1,4,1],[1,2,1,10],[89,0,89,12],[88,0,88,12],[90,0,90,12],[91,0,91,12]]}
[{"$f":"muni&\" - \"&_ADJ10&\" - \"&Date","v":"KZN291 Mandeni - Table B10 Basic service delivery measurement - 08-04-2025"}]
[{"$f":"desc","v":"Description"},{"$f":"head27","v":"Ref"},{"$f":"Head2","v":"Budget Year 2024/25"},null,null,null,null,null,null,null,null,{"$f":"Head10","v":"Budget Year +1 2025/26"},{"$f":"Head11","v":"Budget Year +2 2026/27"}]
[null,null,{"$f":"Head6","v":"Original Budget"},{"$f":"Head54","v":"Prior Adjusted"},{"$f":"Head51","v":"Accum. Funds"},{"$f":"Head52","v":"Multi-year capital"},{"$f":"Head53","v":"Unfore. Unavoid."},{"$f":"Head55","v":"Nat. or Prov. Govt"},{"$f":"Head50","v":"Other Adjusts."},{"$f":"Head56","v":"Total Adjusts."},{"$f":"Head7","v":"Adjusted Budget"},{"$f":"Head7","v":"Adjusted Budget"},{"$f":"Head7","v":"Adjusted Budget"}]
[null,null,null,7,8,9,10,11,12,13,14]
[null,null,"A","A1","B","C","D","E","F","G","H"]
["Household service targets",1]
["Water:"]
["Piped water inside dwelling",null,null,null,null,null,null,null,null,{"$f":"SUM(E8:I8)","v":0},{"$f":"IF(D8=0,C8+J8,D8+J8)","v":0}]
["Piped water inside yard (but not in dwelling)",null,null,null,null,null,null,null,null,0,0]
["Using public tap (at least min.service level)",2,null,null,null,null,null,null,null,0,0]
["Other water supply (at least min.service level)",null,null,null,null,null,null,null,null,0,0]
["Minimum Service Level and Above sub-total",null,{"$f":"SUM(C8:C11)","v":0},0,0,0,0,0,0,0,0,0,0]
["Using public tap (< min.service level)",3,0,null,null,null,null,null,null,0,0,0]
["Other water supply (< min.service level)","3,4",0,null,null,null,null,null,null,0,0,0]
["No water supply",null,0,null,null,null,null,null,null,0,0,0]
["Below Minimum Servic Level sub-total",null,{"$f":"SUM(C13:C15)","v":0},0,0,0,0,0,0,0,0,0,0]
["Total number of households",5,{"$f":"C12+C16","v":0},0,0,0,0,0,0,0,0,0,0]
["Sanitation/sewerage:"]
["Flush toilet (connected to sewerage)",null,null,null,null,null,null,null,null,{"$f":"SUM(E19:I19)","v":0},{"$f":"IF(D19=0,C19+J19,D19+J19)","v":0}]
["Flush toilet (with septic tank)",null,null,null,null,null,null,null,null,0,0]
["Chemical toilet",null,null,null,null,null,null,null,null,0,0]
["Pit toilet (ventilated)",null,null,null,null,null,null,null,null,0,0]
["Other toilet provisions (> min.service level)",null,null,null,null,null,null,null,null,0,0]
[{"$f":"$A$12","v":"Minimum Service Level and Above sub-total"},null,{"$f":"SUM(C19:C23)","v":0},0,0,0,0,0,0,0,0,0,0]
["Bucket toilet",null,null,null,null,null,null,null,null,0,0]
["Other toilet provisions (< min.service level)",null,0,null,null,null,null,null,null,0,0,0]
["No toilet provisions",null,0,null,null,null,null,null,null,0,0,0]
[{"$f":"$A$16","v":"Below Minimum Servic Level sub-total"},null,{"$f":"SUM(C25:C27)","v":0},0,0,0,0,0,0,0,0,0,0]
[{"$f":"$A$17","v":"Total number of households"},{"$f":"$B$17","v":5},{"$f":"C24+C28","v":0},0,0,0,0,0,0,0,0,0,0]
["Energy:"]
["Electricity (at least min. service level)",null,null,null,null,null,null,null,null,{"$f":"SUM(E31:I31)","v":0},{"$f":"IF(D31=0,C31+J31,D31+J31)","v":0}]
["Electricity - prepaid (> min.service level)",null,null,null,null,null,null,null,null,0,0]
[{"$f":"$A$12","v":"Minimum Service Level and Above sub-total"},null,{"$f":"SUM(C31:C32)","v":0},0,0,0,0,0,0,0,0,0,0]
["Electricity (< min.service level)",null,null,null,null,null,null,null,null,0,0]
["Electricity - prepaid (< min. service level)",null,null,null,null,null,null,null,null,0,0]
["Other energy sources",null,null,null,null,null,null,null,null,0,0]
[{"$f":"$A$16","v":"Below Minimum Servic Level sub-total"},null,{"$f":"SUM(C34:C36)","v":0},0,0,0,0,0,0,0,0,0,0]
[{"$f":"$A$17","v":"Total number of households"},{"$f":"$B$17","v":5},{"$f":"C33+C37","v":0},0,0,0,0,0,0,0,0,0,0]
["Refuse:"]
["Removed at least once a week (min.service)",null,null,null,null,null,null,null,null,{"$f":"SUM(E40:I40)","v":0},{"$f":"IF(D40=0,C40+J40,D40+J40)","v":0}]
[{"$f":"$A$12","v":"Minimum Service Level and Above sub-total"},null,{"$f":"SUM(C40)","v":0},0,0,0,0,0,0,{"$f":"SUM(E41:I41)","v":0},0,{"$f":"SUM(L40)","v":0},{"$f":"SUM(M40)","v":0}]
["Removed less frequently than once a week",null,null,null,null,null,null,null,null,0,0]
["Using communal refuse dump",null,null,null,null,null,null,null,null,0,0]
["Using own refuse dump",null,null,null,null,null,null,null,null,0,0]
["Other rubbish disposal",null,null,null,null,null,null,null,null,0,0]
["No rubbish disposal",null,null,null,null,null,null,null,null,0,0]
[{"$f":"$A$16","v":"Below Minimum Servic Level sub-total"},null,{"$f":"SUM(C42:C46)","v":0},0,0,0,0,0,0,0,0,0,0]
[{"$f":"$A$17","v":"Total number of households"},{"$f":"$B$17","v":5},{"$f":"C41+C47","v":0},0,0,0,0,0,0,{"$f":"J40+J47","v":0},{"$f":"K40+K47","v":0},{"$f":"L41+L47","v":0},{"$f":"M41+M47","v":0}]
[]
["Households receiving Free Basic Service",15]
["Water (6 kilolitres per household per month)",null,{"$f":"'SB5'!E263","v":0},{"$f":"'SB5'!F263","v":0},{"$f":"'SB5'!G263","v":0},{"$f":"'SB5'!H263","v":0},{"$f":"'SB5'!I263","v":0},{"$f":"'SB5'!J263","v":0},{"$f":"'SB5'!K263","v":0},{"$f":"SUM(E51:I51)","v":0},{"$f":"IF(D51=0,C51+J51,D51+J51)","v":0},{"$f":"'SB5'!N263","v":0},{"$f":"'SB5'!O263","v":0}]
["Sanitation (free minimum level service)",null,{"$f":"'SB5'!E275","v":0},{"$f":"'SB5'!F275","v":0},{"$f":"'SB5'!G275","v":0},{"$f":"'SB5'!H275","v":0},{"$f":"'SB5'!I275","v":0},{"$f":"'SB5'!J275","v":0},{"$f":"'SB5'!K275","v":0},{"$f":"SUM(E52:I52)","v":0},{"$f":"IF(D52=0,C52+J52,D52+J52)","v":0},{"$f":"'SB5'!N275","v":0},{"$f":"'SB5'!O275","v":0}]
["Electricity/other energy (50kwh per household per month)",null,{"$f":"'SB5'!E251","v":0},{"$f":"'SB5'!F251","v":0},{"$f":"'SB5'!G251","v":0},{"$f":"'SB5'!H251","v":0},{"$f":"'SB5'!I251","v":0},{"$f":"'SB5'!J251","v":0},{"$f":"'SB5'!K251","v":0},{"$f":"SUM(E53:I53)","v":0},{"$f":"IF(D53=0,C53+J53,D53+J53)","v":0},{"$f":"'SB5'!N251","v":0},{"$f":"'SB5'!O251","v":0}]
["Refuse (removed at least once a week)",null,{"$f":"'SB5'!E287","v":0},{"$f":"'SB5'!F287","v":0},{"$f":"'SB5'!G287","v":0},{"$f":"'SB5'!H287","v":0},{"$f":"'SB5'!I287","v":0},{"$f":"'SB5'!J287","v":0},{"$f":"'SB5'!K287","v":0},{"$f":"'SB5'!L287","v":0},{"$f":"'SB5'!M287","v":0},{"$f":"'SB5'!N287","v":0},{"$f":"'SB5'!O287","v":0}]
["Informal Settlements"]
["Cost of Free Basic Services provided (R'000)",16," "]
["Water (6 kilolitres per indigent household per month)",null,{"$f":"'SB1'!C23","v":0},{"$f":"'SB1'!D23","v":0},{"$f":"'SB1'!E23","v":0},{"$f":"'SB1'!F23","v":0},{"$f":"'SB1'!G23","v":0},{"$f":"'SB1'!H23","v":0},{"$f":"'SB1'!I23","v":0},{"$f":"SUM(E57:I57)","v":0},{"$f":"IF(D57=0,C57+J57,D57+J57)","v":0},{"$f":"'SB1'!L23","v":0},{"$f":"'SB1'!M23","v":0}]
["Sanitation (free sanitation service to indigent households)",null,{"$f":"'SB1'!C29","v":0},{"$f":"'SB1'!D29","v":0},{"$f":"'SB1'!E29","v":0},{"$f":"'SB1'!F29","v":0},{"$f":"'SB1'!G29","v":0},{"$f":"'SB1'!H29","v":0},{"$f":"'SB1'!I29","v":0},{"$f":"SUM(E58:I58)","v":0},{"$f":"IF(D58=0,C58+J58,D58+J58)","v":0},{"$f":"'SB1'!L29","v":0},{"$f":"'SB1'!M29","v":0}]
["Electricity/other energy (50kwh per indigent household per month)",null,{"$f":"'SB1'!C17","v":0},{"$f":"'SB1'!D17","v":0},{"$f":"'SB1'!E17","v":0},{"$f":"'SB1'!F17","v":0},{"$f":"'SB1'!G17","v":0},{"$f":"'SB1'!H17","v":0},{"$f":"'SB1'!I17","v":0},{"$f":"SUM(E59:I59)","v":0},{"$f":"IF(D59=0,C59+J59,D59+J59)","v":0},{"$f":"'SB1'!L17","v":0},{"$f":"'SB1'!M17","v":0}]
["Refuse (removed once a week for indigent households)",null,{"$f":"'SB1'!C36","v":0},{"$f":"'SB1'!D36","v":0},{"$f":"'SB1'!E36","v":0},{"$f":"'SB1'!F36","v":0},{"$f":"'SB1'!G36","v":0},{"$f":"'SB1'!H36","v":0},{"$f":"'SB1'!I36","v":0},{"$f":"SUM(E60:I60)","v":0},{"$f":"IF(D60=0,C60+J60,D60+J60)","v":0},{"$f":"'SB1'!L36","v":0},{"$f":"'SB1'!M36","v":0}]
["Cost of Free Basic Services provided - Informal Formal Settlements (R'000)",null,{"$f":"'SB5'!E260+'SB5'!E272+'SB5'!E284+'SB5'!E296","v":0},{"$f":"'SB5'!F260+'SB5'!F272+'SB5'!F284+'SB5'!F296","v":0},{"$f":"'SB5'!G260+'SB5'!G272+'SB5'!G284+'SB5'!G296","v":0},{"$f":"'SB5'!H260+'SB5'!H272+'SB5'!H284+'SB5'!H296","v":0},{"$f":"'SB5'!I260+'SB5'!I272+'SB5'!I284+'SB5'!I296","v":0},{"$f":"'SB5'!J260+'SB5'!J272+'SB5'!J284+'SB5'!J296","v":0},{"$f":"'SB5'!K260+'SB5'!K272+'SB5'!K284+'SB5'!K296","v":0},{"$f":"SUM(E61:I61)","v":0},{"$f":"IF(D61=0,C61+J61,D61+J61)","v":0},{"$f":"'SB5'!N260+'SB5'!N272+'SB5'!N284+'SB5'!N296","v":0},{"$f":"'SB5'!O260+'SB5'!O272+'SB5'!O284+'SB5'!O296","v":0}]
["Total cost of FBS provided  ",null,{"$f":"SUM(C57:C61)","v":0},{"$f":"SUM(D57:D61)","v":0},0,0,0,0,0,0,0,0,0]
[]
["Highest level of free service provided"]
["Property rates (R'000 value threshold)",null,0,null,null,null,null,null,null,{"$f":"SUM(E65:I65)","v":0},{"$f":"IF(D65=0,C65+J65,D65+J65)","v":0},0]
["Water (kilolitres per household per month)",null,null,null,null,null,null,null,null,0,0]
["Sanitation (kilolitres per household per month)",null,null,null,null,null,null,null,null,0,0]
["Sanitation (Rand per household per month)",null,null,null,null,null,null,null,null,0,0]
["Electricity (kw per household per month)",null,null,null,null,null,null,null,null,0,0]
["Refuse (average litres per week)",null,null,null,null,null,null,null,null,0,0]
["Revenue cost of free services provided (R'000)",17]
["Property rates (tariff adjustment) ( impermissable values per section 17 of MPRA)",null,null,null,null,null,null,null,null,{"$f":"SUM(E72:I72)","v":0},{"$f":"IF(D72=0,C72+J72,D72+J72)","v":0}]
["Property rates  exemptions, reductions and rebates and impermissable values in excess of section 17 of MPRA)",null,{"$f":"'SB1'!C10","v":13409278},{"$f":"'SB1'!D10","v":13409278},{"$f":"'SB1'!E10","v":0},{"$f":"'SB1'!F10","v":0},{"$f":"'SB1'!G10","v":0},{"$f":"'SB1'!H10","v":0},{"$f":"'SB1'!I10","v":0},0,13409278,{"$f":"'SB1'!L10","v":14026105},{"$f":"'SB1'!M10","v":14671305}]
["Water (in excess of 6 kilolitres per indigent household per month)",null,{"$f":"'SB1'!C22","v":0},{"$f":"'SB1'!D22","v":0},{"$f":"'SB1'!E22","v":0},{"$f":"'SB1'!F22","v":0},{"$f":"'SB1'!G22","v":0},{"$f":"'SB1'!H22","v":0},{"$f":"'SB1'!I22","v":0},0,0,{"$f":"'SB1'!L22","v":0},{"$f":"'SB1'!M22","v":0}]
["Sanitation (in excess of free sanitation service to indigent households)",null,{"$f":"'SB1'!C28","v":0},{"$f":"'SB1'!D28","v":0},{"$f":"'SB1'!E28","v":0},{"$f":"'SB1'!F28","v":0},{"$f":"'SB1'!G28","v":0},{"$f":"'SB1'!H28","v":0},{"$f":"'SB1'!I28","v":0},0,0,{"$f":"'SB1'!L28","v":0},{"$f":"'SB1'!M28","v":0}]
["Electricity/other energy (in excess of 50 kwh per indigent household per month)",null,{"$f":"'SB1'!C16","v":0},{"$f":"'SB1'!D16","v":0},{"$f":"'SB1'!E16","v":0},{"$f":"'SB1'!F16","v":0},{"$f":"'SB1'!G16","v":0},{"$f":"'SB1'!H16","v":0},{"$f":"'SB1'!I16","v":0},0,0,{"$f":"'SB1'!L16","v":0},{"$f":"'SB1'!M16","v":0}]
["Refuse (in excess of one removal a week for indigent households)",null,{"$f":"'SB1'!C35","v":944265},{"$f":"'SB1'!D35","v":944265},{"$f":"'SB1'!E35","v":0},{"$f":"'SB1'!F35","v":0},{"$f":"'SB1'!G35","v":0},{"$f":"'SB1'!H35","v":0},{"$f":"'SB1'!I35","v":0},0,944265,{"$f":"'SB1'!L35","v":987701},{"$f":"'SB1'!M35","v":1033135}]
["Municipal Housing - rental rebates",null,null,null,null,null,null,null,null,0,0]
["Housing - top structure subsidies",6,null,null,null,null,null,null,null,0,0]
["Other",null,null,null,null,null,null,null,null,0,0]
["Total revenue cost of subsidised services provided ",null,{"$f":"SUM(C68:C72)+SUM(C74:C80)","v":944265},{"$f":"SUM(D72:D80)","v":14353543},0,0,0,0,0,0,14353543,15013806,15704440]
[{"$f":"head27a","v":"References"}]
["1. Include services provided by another entity; e.g. Eskom"]
["2. Stand distance > 200m from dwelling"]
["3. Stand distance <= 200m from dwelling"]
["4. Borehole, spring, rain-water tank etc."]
["5. Must agree to total number of households in municipal area"]
["6. Include value of subsidy provided by municipality above provincial subsidy level"]
["7. Only complete if a previous adjusted budget has been approved in the same financial year. Reflect most recent adjusted budget."]
["8. Additional cash-backed accumulated funds/unspent funds (MFMA section 18(1)(b) and section 28(2)(e)) identified after the Original Budget approved and after annual financial statements audited (note: only where underspending could not reasonably have been foreseen)"]
["9. Increases of funds approved under MFMA section 31"]
["10. Adjustments approved in accordance with MFMA section 29 "]
["11. Adjustments to transfers from National or Provincial Government"]
["12. Adjusts. = 'Other' Adjustments proposed to be approved; including revenue under-collection (MFMA section 28(2)(a)); additional revenue appropriation on existing programmes (section 28(2))(b); projected savings (section 28(2)(d)); error correction (section 28(2)(f))"]
["13. G = B + C + D + E + F"]
["14. Adjusted Budget H = (A or A1) + G"]
["15. Show number of households receiving at least these levels of services completely free"]
["16. Must reflect the cost to the municipality of providing the Free Basic Service"]
["17.Reflect the cost of free or subsidised services in excess to the National policy that are not funded from the Free Basic Services component of the Equitable Share"]

{"sheet":"SB1","index":37,"n_rows":153,"n_cols":30,"rows_kept":153,"cut":false,"hidden":false,"merged":[[148,0,148,12],[1,0,3,0],[1,1,3,1],[1,2,1,10],[144,0,144,12]]}
[{"$f":"muni&\" - \"&ADJB1&\" - \"&Date","v":"KZN291 Mandeni - Supporting Table SB1 Supporting detail to 'Budgeted Financial Performance' - 08-04-2025"}]
[{"$f":"desc","v":"Description"},{"$f":"head27","v":"Ref"},{"$f":"Head2","v":"Budget Year 2024/25"},null,null,null,null,null,null,null,null,{"$f":"Head10","v":"Budget Year +1 2025/26"},{"$f":"Head11","v":"Budget Year +2 2026/27"}]
[null,null,{"$f":"Head6","v":"Original Budget"},{"$f":"Head54","v":"Prior Adjusted"},{"$f":"Head51","v":"Accum. Funds"},{"$f":"Head52","v":"Multi-year capital"},{"$f":"Head53","v":"Unfore. Unavoid."},{"$f":"Head55","v":"Nat. or Prov. Govt"},{"$f":"Head50","v":"Other Adjusts."},{"$f":"Head56","v":"Total Adjusts."},{"$f":"Head7","v":"Adjusted Budget"},{"$f":"Head7","v":"Adjusted Budget"},{"$f":"Head7","v":"Adjusted Budget"}]
[null,null,null,6,7,8,9,10,11,12,13]
["R thousands",null,"A","A1","B","C","D","E","F","G","H"]
["REVENUE ITEMS"]
["Non-exchange revenue by source"]
["Property rates"]
["Total Property Rates",null,{"$f":"-SUMIFS(Sheet1!S71_OriginalBudget,Sheet1!S71_A4Code,$AC:$AC,Sheet1!S71_ProjectType,$AD:$AD)","v":75645859},{"$f":"-SUMIFS(Sheet1!S71_PreviousBudget,Sheet1!S71_A4Code,$AC:$AC,Sheet1!S71_ProjectType,$AD:$AD)","v":75645859},null,null,null,null,{"$f":"-SUMIFS(Sheet1!S71_CurrentAdjustments,Sheet1!S71_A4Code,$AC:$AC,Sheet1!S71_ProjectType,$AD:$AD)","v":0},{"$f":"SUM(E9:I9)","v":0},{"$f":"IF(D9=0,C9+J9,D9+J9)","v":75645859},{"$f":"-SUMIFS(Sheet1!S71_OY1AdjustedBudget,Sheet1!S71_A4Code,$AC:$AC,Sheet1!S71_ProjectType,$AD:$AD)","v":79125589},{"$f":"-SUMIFS(Sheet1!S71_OY2AdjustedBudget,Sheet1!S71_A4Code,$AC:$AC,Sheet1!S71_ProjectType,$AD:$AD)","v":83765350},null,null,null,null,null,null,null,null,null,null,null,null,null,null,null,"1800","D"]
["Less Revenue Foregone (exemptions, reductions and rebates and impermissable values in excess of section 17 of MPRA)",null,{"$f":"SUMIFS(Sheet1!S71_OriginalBudget,Sheet1!S71_A4Code,$AC:$AC,Sheet1!S71_ProjectType,$AD:$AD)","v":13409278},{"$f":"SUMIFS(Sheet1!S71_PreviousBudget,Sheet1!S71_A4Code,$AC:$AC,Sheet1!S71_ProjectType,$AD:$AD)","v":13409278},null,null,null,null,{"$f":"SUMIFS(Sheet1!S71_CurrentAdjustments,Sheet1!S71_A4Code,$AC:$AC,Sheet1!S71_ProjectType,$AD:$AD)","v":0},{"$f":"SUM(E10:I10)","v":0},{"$f":"IF(D10=0,C10+J10,D10+J10)","v":13409278},{"$f":"SUMIFS(Sheet1!S71_OY1AdjustedBudget,Sheet1!S71_A4Code,$AC:$AC,Sheet1!S71_ProjectType,$AD:$AD)","v":14026105},{"$f":"SUMIFS(Sheet1!S71_OY2AdjustedBudget,Sheet1!S71_A4Code,$AC:$AC,Sheet1!S71_ProjectType,$AD:$AD)","v":14671305},null,null,null,null,null,null,null,null,null,null,null,null,null,null,null,"1800","O"]
["Net Property Rates",null,{"$f":"C9-C10","v":62236581},{"$f":"D9-D10","v":62236581},0,0,0,0,0,0,62236581,65099484,69094045]
[]
["Exchange revenue service charges"]
["Service charges - Electricity"]
["Total Service charges - Electricity",null,{"$f":"-SUMIFS(Sheet1!S71_OriginalBudget,Sheet1!S71_A4Code,$AC:$AC,Sheet1!S71_ProjectType,$AD:$AD)","v":72341431},{"$f":"-SUMIFS(Sheet1!S71_PreviousBudget,Sheet1!S71_A4Code,$AC:$AC,Sheet1!S71_ProjectType,$AD:$AD)","v":72341431},null,null,null,null,{"$f":"-SUMIFS(Sheet1!S71_CurrentAdjustments,Sheet1!S71_A4Code,$AC:$AC,Sheet1!S71_ProjectType,$AD:$AD)","v":0},{"$f":"SUM(E15:I15)","v":0},{"$f":"IF(D15=0,C15+J15,D15+J15)","v":72341431},{"$f":"-SUMIFS(Sheet1!S71_OY1AdjustedBudget,Sheet1!S71_A4Code,$AC:$AC,Sheet1!S71_ProjectType,$AD:$AD)","v":75479158},{"$f":"-SUMIFS(Sheet1!S71_OY2AdjustedBudget,Sheet1!S71_A4Code,$AC:$AC,Sheet1!S71_ProjectType,$AD:$AD)","v":79636201},null,null,null,null,null,null,null,null,null,null,null,null,null,null,null,"0300","D"]
["Less Revenue Foregone (in excess of 50 kwh per indigent household per month)",null,{"$f":"SUMIFS(Sheet1!S71_OriginalBudget,Sheet1!S71_A4Code,$AC:$AC,Sheet1!S71_ProjectType,$AD:$AD)","v":0},{"$f":"SUMIFS(Sheet1!S71_PreviousBudget,Sheet1!S71_A4Code,$AC:$AC,Sheet1!S71_ProjectType,$AD:$AD)","v":0},null,null,null,null,{"$f":"SUMIFS(Sheet1!S71_CurrentAdjustments,Sheet1!S71_A4Code,$AC:$AC,Sheet1!S71_ProjectType,$AD:$AD)","v":0},{"$f":"SUM(E16:I16)","v":0},{"$f":"IF(D16=0,C16+J16,D16+J16)","v":0},{"$f":"SUMIFS(Sheet1!S71_OY1AdjustedBudget,Sheet1!S71_A4Code,$AC:$AC,Sheet1!S71_ProjectType,$AD:$AD)","v":0},{"$f":"SUMIFS(Sheet1!S71_OY2AdjustedBudget,Sheet1!S71_A4Code,$AC:$AC,Sheet1!S71_ProjectType,$AD:$AD)","v":0},null,null,null,null,null,null,null,null,null,null,null,null,null,null,null,"0300","O"]
["Less Cost of Free Basis Services (50 kwh per indigent household per month)",null,{"$f":"'SB5'!E250","v":0},{"$f":"'SB5'!F250","v":0},{"$f":"'SB5'!G250","v":0},{"$f":"'SB5'!H250","v":0},{"$f":"'SB5'!I250","v":0},{"$f":"'SB5'!J250","v":0},{"$f":"'SB5'!K250","v":0},{"$f":"SUM(E17:I17)","v":0},{"$f":"IF(D17=0,C17+J17,D17+J17)","v":0},{"$f":"'SB5'!N250","v":0},{"$f":"'SB5'!O250","v":0}]
["Net Service charges - Electricity ",null,{"$f":"C15-C16","v":72341431},{"$f":"D15-D16-D17","v":72341431},0,0,0,0,0,0,{"$f":"K15-K16","v":72341431},{"$f":"L15-L16","v":75479158},79636201]
[]
["Service charges - Water "]
["Total Service charges - water ",null,{"$f":"-SUMIFS(Sheet1!S71_OriginalBudget,Sheet1!S71_A4Code,$AC:$AC,Sheet1!S71_ProjectType,$AD:$AD)","v":0},{"$f":"-SUMIFS(Sheet1!S71_PreviousBudget,Sheet1!S71_A4Code,$AC:$AC,Sheet1!S71_ProjectType,$AD:$AD)","v":0},null,null,null,null,{"$f":"-SUMIFS(Sheet1!S71_CurrentAdjustments,Sheet1!S71_A4Code,$AC:$AC,Sheet1!S71_ProjectType,$AD:$AD)","v":0},{"$f":"SUM(E21:I21)","v":0},{"$f":"IF(D21=0,C21+J21,D21+J21)","v":0},{"$f":"-SUMIFS(Sheet1!S71_OY1AdjustedBudget,Sheet1!S71_A4Code,$AC:$AC,Sheet1!S71_ProjectType,$AD:$AD)","v":0},{"$f":"-SUMIFS(Sheet1!S71_OY2AdjustedBudget,Sheet1!S71_A4Code,$AC:$AC,Sheet1!S71_ProjectType,$AD:$AD)","v":0},null,null,null,null,null,null,null,null,null,null,null,null,null,null,null,"0400","D"]
["Less Revenue Foregone (in excess of 6 kilolitres per indigent household per month)",null,{"$f":"SUMIFS(Sheet1!S71_OriginalBudget,Sheet1!S71_A4Code,$AC:$AC,Sheet1!S71_ProjectType,$AD:$AD)","v":0},{"$f":"SUMIFS(Sheet1!S71_PreviousBudget,Sheet1!S71_A4Code,$AC:$AC,Sheet1!S71_ProjectType,$AD:$AD)","v":0},null,null,null,null,{"$f":"SUMIFS(Sheet1!S71_CurrentAdjustments,Sheet1!S71_A4Code,$AC:$AC,Sheet1!S71_ProjectType,$AD:$AD)","v":0},{"$f":"SUM(E22:I22)","v":0},{"$f":"IF(D22=0,C22+J22,D22+J22)","v":0},{"$f":"SUMIFS(Sheet1!S71_OY1AdjustedBudget,Sheet1!S71_A4Code,$AC:$AC,Sheet1!S71_ProjectType,$AD:$AD)","v":0},{"$f":"SUMIFS(Sheet1!S71_OY2AdjustedBudget,Sheet1!S71_A4Code,$AC:$AC,Sheet1!S71_ProjectType,$AD:$AD)","v":0},null,null,null,null,null,null,null,null,null,null,null,null,null,null,null,"0400","O"]
["Less Cost of Free Basis Services (6 kilolitres per indigent household per month)",null,{"$f":"'SB5'!E262","v":0},{"$f":"'SB5'!F262","v":0},{"$f":"'SB5'!G262","v":0},{"$f":"'SB5'!H262","v":0},{"$f":"'SB5'!I262","v":0},{"$f":"'SB5'!J262","v":0},{"$f":"'SB5'!K262","v":0},{"$f":"SUM(E23:I23)","v":0},{"$f":"IF(D23=0,C23+J23,D23+J23)","v":0},{"$f":"'SB5'!N262","v":0},{"$f":"'SB5'!O262","v":0}]
["Net Service charges - Water ",null,{"$f":"C21-C22","v":0},{"$f":"D21-D22-D23","v":0},0,0,0,0,0,{"$f":"J21-J22-J23","v":0},{"$f":"K21-K22","v":0},{"$f":"L21-L22","v":0},0]
[]
["Service charges - Waste Water Management"]
["Total Service charges - Waste Water Management",null,{"$f":"-SUMIFS(Sheet1!S71_OriginalBudget,Sheet1!S71_A4Code,$AC:$AC,Sheet1!S71_ProjectType,$AD:$AD)","v":0},{"$f":"-SUMIFS(Sheet1!S71_PreviousBudget,Sheet1!S71_A4Code,$AC:$AC,Sheet1!S71_ProjectType,$AD:$AD)","v":0},null,null,null,null,{"$f":"-SUMIFS(Sheet1!S71_CurrentAdjustments,Sheet1!S71_A4Code,$AC:$AC,Sheet1!S71_ProjectType,$AD:$AD)","v":0},{"$f":"SUM(E27:I27)","v":0},{"$f":"IF(D27=0,C27+J27,D27+J27)","v":0},{"$f":"-SUMIFS(Sheet1!S71_OY1AdjustedBudget,Sheet1!S71_A4Code,$AC:$AC,Sheet1!S71_ProjectType,$AD:$AD)","v":0},{"$f":"-SUMIFS(Sheet1!S71_OY2AdjustedBudget,Sheet1!S71_A4Code,$AC:$AC,Sheet1!S71_ProjectType,$AD:$AD)","v":0},null,null,null,null,null,null,null,null,null,null,null,null,null,null,null,"0500","D"]
["Less Revenue Foregone (in excess of free sanitation service to indigent households)",null,{"$f":"SUMIFS(Sheet1!S71_OriginalBudget,Sheet1!S71_A4Code,$AC:$AC,Sheet1!S71_ProjectType,$AD:$AD)","v":0},{"$f":"SUMIFS(Sheet1!S71_PreviousBudget,Sheet1!S71_A4Code,$AC:$AC,Sheet1!S71_ProjectType,$AD:$AD)","v":0},null,null,null,null,{"$f":"SUMIFS(Sheet1!S71_CurrentAdjustments,Sheet1!S71_A4Code,$AC:$AC,Sheet1!S71_ProjectType,$AD:$AD)","v":0},{"$f":"SUM(E28:I28)","v":0},{"$f":"IF(D28=0,C28+J28,D28+J28)","v":0},{"$f":"SUMIFS(Sheet1!S71_OY1AdjustedBudget,Sheet1!S71_A4Code,$AC:$AC,Sheet1!S71_ProjectType,$AD:$AD)","v":0},{"$f":"SUMIFS(Sheet1!S71_OY2AdjustedBudget,Sheet1!S71_A4Code,$AC:$AC,Sheet1!S71_ProjectType,$AD:$AD)","v":0},null,null,null,null,null,null,null,null,null,null,null,null,null,null,null,"0500","O"]
["Less Cost of Free Basis Services (free sanitation service to indigent households)",null,{"$f":"'SB5'!E274","v":0},{"$f":"'SB5'!F274","v":0},{"$f":"'SB5'!G274","v":0},{"$f":"'SB5'!H274","v":0},{"$f":"'SB5'!I274","v":0},{"$f":"'SB5'!J274","v":0},{"$f":"'SB5'!K274","v":0},{"$f":"SUM(E29:I29)","v":0},{"$f":"IF(D29=0,C29+J29,D29+J29)","v":0},{"$f":"'SB5'!N274","v":0},{"$f":"'SB5'!O274","v":0}]
["Net Service charges - Waste Water Management",null,{"$f":"C27-C28","v":0},{"$f":"D27-D28-D29","v":0},0,0,0,0,0,0,{"$f":"K27-K28","v":0},{"$f":"L27-L28","v":0},0]
[null,null,"."]
["Service charges - Waste Management"]
["Total refuse removal revenue",null,{"$f":"-SUMIFS(Sheet1!S71_OriginalBudget,Sheet1!S71_A4Code,$AC:$AC,Sheet1!S71_ProjectType,$AD:$AD)","v":15050385},{"$f":"-SUMIFS(Sheet1!S71_PreviousBudget,Sheet1!S71_A4Code,$AC:$AC,Sheet1!S71_ProjectType,$AD:$AD)","v":15050385},null,null,null,null,{"$f":"-SUMIFS(Sheet1!S71_CurrentAdjustments,Sheet1!S71_A4Code,$AC:$AC,Sheet1!S71_ProjectType,$AD:$AD)","v":0},{"$f":"SUM(E33:I33)","v":0},{"$f":"IF(D33=0,C33+J33,D33+J33)","v":15050385},{"$f":"-SUMIFS(Sheet1!S71_OY1AdjustedBudget,Sheet1!S71_A4Code,$AC:$AC,Sheet1!S71_ProjectType,$AD:$AD)","v":15743545},{"$f":"-SUMIFS(Sheet1!S71_OY2AdjustedBudget,Sheet1!S71_A4Code,$AC:$AC,Sheet1!S71_ProjectType,$AD:$AD)","v":16469497},null,null,null,null,null,null,null,null,null,null,null,null,null,null,null,"0600","D"]
["Total landfill revenue",null,{"$f":"-SUMIFS(Sheet1!S71_OriginalBudget,Sheet1!S71_A4Code,$AC:$AC,Sheet1!S71_ProjectType,$AD:$AD)","v":0},{"$f":"-SUMIFS(Sheet1!S71_PreviousBudget,Sheet1!S71_A4Code,$AC:$AC,Sheet1!S71_ProjectType,$AD:$AD)","v":0},null,null,null,null,{"$f":"-SUMIFS(Sheet1!S71_CurrentAdjustments,Sheet1!S71_A4Code,$AC:$AC,Sheet1!S71_ProjectType,$AD:$AD)","v":0},{"$f":"SUM(E34:I34)","v":0},{"$f":"IF(D34=0,C34+J34,D34+J34)","v":0},{"$f":"-SUMIFS(Sheet1!S71_OY1AdjustedBudget,Sheet1!S71_A4Code,$AC:$AC,Sheet1!S71_ProjectType,$AD:$AD)","v":0},{"$f":"-SUMIFS(Sheet1!S71_OY2AdjustedBudget,Sheet1!S71_A4Code,$AC:$AC,Sheet1!S71_ProjectType,$AD:$AD)","v":0}]
["Less Revenue Foregone (in excess of one removal a week to indigent households)",null,{"$f":"SUMIFS(Sheet1!S71_OriginalBudget,Sheet1!S71_A4Code,$AC:$AC,Sheet1!S71_ProjectType,$AD:$AD)","v":944265},{"$f":"SUMIFS(Sheet1!S71_PreviousBudget,Sheet1!S71_A4Code,$AC:$AC,Sheet1!S71_ProjectType,$AD:$AD)","v":944265},null,null,null,null,{"$f":"SUMIFS(Sheet1!S71_CurrentAdjustments,Sheet1!S71_A4Code,$AC:$AC,Sheet1!S71_ProjectType,$AD:$AD)","v":0},{"$f":"SUM(E35:I35)","v":0},{"$f":"IF(D35=0,C35+J35,D35+J35)","v":944265},{"$f":"SUMIFS(Sheet1!S71_OY1AdjustedBudget,Sheet1!S71_A4Code,$AC:$AC,Sheet1!S71_ProjectType,$AD:$AD)","v":987701},{"$f":"SUMIFS(Sheet1!S71_OY2AdjustedBudget,Sheet1!S71_A4Code,$AC:$AC,Sheet1!S71_ProjectType,$AD:$AD)","v":1033135},null,null,null,null,null,null,null,null,null,null,null,null,null,null,null,"0600","O"]
["Less Cost of Free Basis Services  (removed once a week to indigent households)",null,{"$f":"'SB5'!E286","v":0},{"$f":"'SB5'!F286","v":0},{"$f":"'SB5'!G286","v":0},{"$f":"'SB5'!H286","v":0},{"$f":"'SB5'!I286","v":0},{"$f":"'SB5'!J286","v":0},{"$f":"'SB5'!K286","v":0},{"$f":"SUM(E36:I36)","v":0},{"$f":"IF(D36=0,C36+J36,D36+J36)","v":0},{"$f":"'SB5'!N286","v":0},{"$f":"'SB5'!O286","v":0}]
["Service charges - Waste Management",null,{"$f":"SUM(C33:C34)-SUM(C35:C35)","v":14106120},{"$f":"SUM(D33:D34)-SUM(D35:D36)","v":14106120},0,0,0,0,0,0,{"$f":"SUM(K33:K34)-SUM(K35:K35)","v":14106120},{"$f":"SUM(L33:L34)-SUM(L35:L35)","v":14755844},15436362]
[]
[]
[]
[]
["EXPENDITURE ITEMS"]
["Employee related costs"]
["Basic Salaries and Wages",null,{"$f":"SUMIFS(Sheet1!S71_OriginalBudget,Sheet1!S71_SA1SubCode,$AC:$AC)","v":100006572},{"$f":"SUMIFS(Sheet1!S71_PreviousBudget,Sheet1!S71_SA1SubCode,$AC:$AC)","v":99099290},null,null,null,null,{"$f":"SUMIFS(Sheet1!S71_CurrentAdjustments,Sheet1!S71_SA1SubCode,$AC:$AC)","v":0},{"$f":"SUM(E44:I44)","v":0},{"$f":"IF(D44=0,C44+J44,D44+J44)","v":99099290},{"$f":"SUMIFS(Sheet1!S71_OY1AdjustedBudget,Sheet1!S71_SA1SubCode,$AC:$AC)","v":101728971},{"$f":"SUMIFS(Sheet1!S71_OY2AdjustedBudget,Sheet1!S71_SA1SubCode,$AC:$AC)","v":100370831},null,null,null,null,null,null,null,null,null,null,null,null,null,null,null,"2001"]
["Pension and UIF Contributions",null,{"$f":"SUMIFS(Sheet1!S71_OriginalBudget,Sheet1!S71_SA1SubCode,$AC:$AC)","v":15949231},{"$f":"SUMIFS(Sheet1!S71_PreviousBudget,Sheet1!S71_SA1SubCode,$AC:$AC)","v":16140984},null,null,null,null,{"$f":"SUMIFS(Sheet1!S71_CurrentAdjustments,Sheet1!S71_SA1SubCode,$AC:$AC)","v":0},0,16140984,{"$f":"SUMIFS(Sheet1!S71_OY1AdjustedBudget,Sheet1!S71_SA1SubCode,$AC:$AC)","v":16682872},{"$f":"SUMIFS(Sheet1!S71_OY2AdjustedBudget,Sheet1!S71_SA1SubCode,$AC:$AC)","v":17450308},null,null,null,null,null,null,null,null,null,null,null,null,null,null,null,"2002"]
["Medical Aid Contributions",null,{"$f":"SUMIFS(Sheet1!S71_OriginalBudget,Sheet1!S71_SA1SubCode,$AC:$AC)","v":6222070},{"$f":"SUMIFS(Sheet1!S71_PreviousBudget,Sheet1!S71_SA1SubCode,$AC:$AC)","v":6946611},null,null,null,null,{"$f":"SUMIFS(Sheet1!S71_CurrentAdjustments,Sheet1!S71_SA1SubCode,$AC:$AC)","v":0},0,6946611,{"$f":"SUMIFS(Sheet1!S71_OY1AdjustedBudget,Sheet1!S71_SA1SubCode,$AC:$AC)","v":6508312},{"$f":"SUMIFS(Sheet1!S71_OY2AdjustedBudget,Sheet1!S71_SA1SubCode,$AC:$AC)","v":6807658},null,null,null,null,null,null,null,null,null,null,null,null,null,null,null,"2003"]
["Overtime",null,{"$f":"SUMIFS(Sheet1!S71_OriginalBudget,Sheet1!S71_SA1SubCode,$AC:$AC)","v":2469163},{"$f":"SUMIFS(Sheet1!S71_PreviousBudget,Sheet1!S71_SA1SubCode,$AC:$AC)","v":2995714},null,null,null,null,{"$f":"SUMIFS(Sheet1!S71_CurrentAdjustments,Sheet1!S71_SA1SubCode,$AC:$AC)","v":0},0,2995714,{"$f":"SUMIFS(Sheet1!S71_OY1AdjustedBudget,Sheet1!S71_SA1SubCode,$AC:$AC)","v":2582749},{"$f":"SUMIFS(Sheet1!S71_OY2AdjustedBudget,Sheet1!S71_SA1SubCode,$AC:$AC)","v":2701571},null,null,null,null,null,null,null,null,null,null,null,null,null,null,null,"2004"]
["Performance Bonus",null,{"$f":"SUMIFS(Sheet1!S71_OriginalBudget,Sheet1!S71_SA1SubCode,$AC:$AC)","v":7012075},{"$f":"SUMIFS(Sheet1!S71_PreviousBudget,Sheet1!S71_SA1SubCode,$AC:$AC)","v":5742535},null,null,null,null,{"$f":"SUMIFS(Sheet1!S71_CurrentAdjustments,Sheet1!S71_SA1SubCode,$AC:$AC)","v":0},0,5742535,{"$f":"SUMIFS(Sheet1!S71_OY1AdjustedBudget,Sheet1!S71_SA1SubCode,$AC:$AC)","v":7334640},{"$f":"SUMIFS(Sheet1!S71_OY2AdjustedBudget,Sheet1!S71_SA1SubCode,$AC:$AC)","v":7672027},null,null,null,null,null,null,null,null,null,null,null,null,null,null,null,"2005"]
["Motor Vehicle Allowance",null,{"$f":"SUMIFS(Sheet1!S71_OriginalBudget,Sheet1!S71_SA1SubCode,$AC:$AC)","v":6365973},{"$f":"SUMIFS(Sheet1!S71_PreviousBudget,Sheet1!S71_SA1SubCode,$AC:$AC)","v":6663998},null,null,null,null,{"$f":"SUMIFS(Sheet1!S71_CurrentAdjustments,Sheet1!S71_SA1SubCode,$AC:$AC)","v":0},{"$f":"SUM(E49:I49)","v":0},{"$f":"IF(D49=0,C49+J49,D49+J49)","v":6663998},{"$f":"SUMIFS(Sheet1!S71_OY1AdjustedBudget,Sheet1!S71_SA1SubCode,$AC:$AC)","v":6658858},{"$f":"SUMIFS(Sheet1!S71_OY2AdjustedBudget,Sheet1!S71_SA1SubCode,$AC:$AC)","v":6965128},null,null,null,null,null,null,null,null,null,null,null,null,null,null,null,"2006"]
["Cellphone Allowance",null,{"$f":"SUMIFS(Sheet1!S71_OriginalBudget,Sheet1!S71_SA1SubCode,$AC:$AC)","v":798838},{"$f":"SUMIFS(Sheet1!S71_PreviousBudget,Sheet1!S71_SA1SubCode,$AC:$AC)","v":1051959},null,null,null,null,{"$f":"SUMIFS(Sheet1!S71_CurrentAdjustments,Sheet1!S71_SA1SubCode,$AC:$AC)","v":0},{"$f":"SUM(E50:I50)","v":0},{"$f":"IF(D50=0,C50+J50,D50+J50)","v":1051959},{"$f":"SUMIFS(Sheet1!S71_OY1AdjustedBudget,Sheet1!S71_SA1SubCode,$AC:$AC)","v":835590},{"$f":"SUMIFS(Sheet1!S71_OY2AdjustedBudget,Sheet1!S71_SA1SubCode,$AC:$AC)","v":874009},null,null,null,null,null,null,null,null,null,null,null,null,null,null,null,"2007"]
["Housing Allowances",null,{"$f":"SUMIFS(Sheet1!S71_OriginalBudget,Sheet1!S71_SA1SubCode,$AC:$AC)","v":639513},{"$f":"SUMIFS(Sheet1!S71_PreviousBudget,Sheet1!S71_SA1SubCode,$AC:$AC)","v":657963},null,null,null,null,{"$f":"SUMIFS(Sheet1!S71_CurrentAdjustments,Sheet1!S71_SA1SubCode,$AC:$AC)","v":0},{"$f":"SUM(E51:I51)","v":0},{"$f":"IF(D51=0,C51+J51,D51+J51)","v":657963},{"$f":"SUMIFS(Sheet1!S71_OY1AdjustedBudget,Sheet1!S71_SA1SubCode,$AC:$AC)","v":625623},{"$f":"SUMIFS(Sheet1!S71_OY2AdjustedBudget,Sheet1!S71_SA1SubCode,$AC:$AC)","v":699659},null,null,null,null,null,null,null,null,null,null,null,null,null,null,null,"2008"]
["Other benefits and allowances",null,{"$f":"SUMIFS(Sheet1!S71_OriginalBudget,Sheet1!S71_SA1SubCode,$AC:$AC)","v":1172202},{"$f":"SUMIFS(Sheet1!S71_PreviousBudget,Sheet1!S71_SA1SubCode,$AC:$AC)","v":1427393},null,null,null,null,{"$f":"SUMIFS(Sheet1!S71_CurrentAdjustments,Sheet1!S71_SA1SubCode,$AC:$AC)","v":0},0,1427393,{"$f":"SUMIFS(Sheet1!S71_OY1AdjustedBudget,Sheet1!S71_SA1SubCode,$AC:$AC)","v":1226090},{"$f":"SUMIFS(Sheet1!S71_OY2AdjustedBudget,Sheet1!S71_SA1SubCode,$AC:$AC)","v":1282512},null,null,null,null,null,null,null,null,null,null,null,null,null,null,null,"2009"]
["Payments in lieu of leave",null,{"$f":"SUMIFS(Sheet1!S71_OriginalBudget,Sheet1!S71_SA1SubCode,$AC:$AC)","v":2717670},{"$f":"SUMIFS(Sheet1!S71_PreviousBudget,Sheet1!S71_SA1SubCode,$AC:$AC)","v":2626868},null,null,null,null,{"$f":"SUMIFS(Sheet1!S71_CurrentAdjustments,Sheet1!S71_SA1SubCode,$AC:$AC)","v":0},0,2626868,{"$f":"SUMIFS(Sheet1!S71_OY1AdjustedBudget,Sheet1!S71_SA1SubCode,$AC:$AC)","v":2842692},{"$f":"SUMIFS(Sheet1!S71_OY2AdjustedBudget,Sheet1!S71_SA1SubCode,$AC:$AC)","v":2973437},null,null,null,null,null,null,null,null,null,null,null,null,null,null,null,"2010"]
["Long service awards",null,{"$f":"SUMIFS(Sheet1!S71_OriginalBudget,Sheet1!S71_SA1SubCode,$AC:$AC)","v":1406860},{"$f":"SUMIFS(Sheet1!S71_PreviousBudget,Sheet1!S71_SA1SubCode,$AC:$AC)","v":1406860},null,null,null,null,{"$f":"SUMIFS(Sheet1!S71_CurrentAdjustments,Sheet1!S71_SA1SubCode,$AC:$AC)","v":0},0,1406860,{"$f":"SUMIFS(Sheet1!S71_OY1AdjustedBudget,Sheet1!S71_SA1SubCode,$AC:$AC)","v":1471578},{"$f":"SUMIFS(Sheet1!S71_OY2AdjustedBudget,Sheet1!S71_SA1SubCode,$AC:$AC)","v":1539269},null,null,null,null,null,null,null,null,null,null,null,null,null,null,null,"2011"]
["Post-retirement benefit obligations",4,{"$f":"SUMIFS(Sheet1!S71_OriginalBudget,Sheet1!S71_SA1SubCode,$AC:$AC)","v":7782460},{"$f":"SUMIFS(Sheet1!S71_PreviousBudget,Sheet1!S71_SA1SubCode,$AC:$AC)","v":7782460},null,null,null,null,{"$f":"SUMIFS(Sheet1!S71_CurrentAdjustments,Sheet1!S71_SA1SubCode,$AC:$AC)","v":0},{"$f":"SUM(E55:I55)","v":0},{"$f":"IF(D55=0,C55+J55,D55+J55)","v":7782460},{"$f":"SUMIFS(Sheet1!S71_OY1AdjustedBudget,Sheet1!S71_SA1SubCode,$AC:$AC)","v":5140455},{"$f":"SUMIFS(Sheet1!S71_OY2AdjustedBudget,Sheet1!S71_SA1SubCode,$AC:$AC)","v":5376916},null,null,null,null,null,null,null,null,null,null,null,null,null,null,null,"2012"]
["Entertainment",null,{"$f":"SUMIFS(Sheet1!S71_OriginalBudget,Sheet1!S71_SA1SubCode,$AC:$AC)","v":0},{"$f":"SUMIFS(Sheet1!S71_PreviousBudget,Sheet1!S71_SA1SubCode,$AC:$AC)","v":0},null,null,null,null,{"$f":"SUMIFS(Sheet1!S71_CurrentAdjustments,Sheet1!S71_SA1SubCode,$AC:$AC)","v":0},{"$f":"SUM(E56:I56)","v":0},{"$f":"IF(D56=0,C56+J56,D56+J56)","v":0},{"$f":"SUMIFS(Sheet1!S71_OY1AdjustedBudget,Sheet1!S71_SA1SubCode,$AC:$AC)","v":0},{"$f":"SUMIFS(Sheet1!S71_OY2AdjustedBudget,Sheet1!S71_SA1SubCode,$AC:$AC)","v":0},null,null,null,null,null,null,null,null,null,null,null,null,null,null,null,"2013"]
["Scarcity",null,{"$f":"SUMIFS(Sheet1!S71_OriginalBudget,Sheet1!S71_SA1SubCode,$AC:$AC)","v":0},{"$f":"SUMIFS(Sheet1!S71_PreviousBudget,Sheet1!S71_SA1SubCode,$AC:$AC)","v":0},null,null,null,null,{"$f":"SUMIFS(Sheet1!S71_CurrentAdjustments,Sheet1!S71_SA1SubCode,$AC:$AC)","v":0},{"$f":"SUM(E57:I57)","v":0},{"$f":"IF(D57=0,C57+J57,D57+J57)","v":0},{"$f":"SUMIFS(Sheet1!S71_OY1AdjustedBudget,Sheet1!S71_SA1SubCode,$AC:$AC)","v":0},{"$f":"SUMIFS(Sheet1!S71_OY2AdjustedBudget,Sheet1!S71_SA1SubCode,$AC:$AC)","v":0},null,null,null,null,null,null,null,null,null,null,null,null,null,null,null,"2014"]
["Acting and post related allowance",null,{"$f":"SUMIFS(Sheet1!S71_OriginalBudget,Sheet1!S71_SA1SubCode,$AC:$AC)","v":0},{"$f":"SUMIFS(Sheet1!S71_PreviousBudget,Sheet1!S71_SA1SubCode,$AC:$AC)","v":0},null,null,null,null,{"$f":"SUMIFS(Sheet1!S71_CurrentAdjustments,Sheet1!S71_SA1SubCode,$AC:$AC)","v":0},{"$f":"SUM(E58:I58)","v":0},{"$f":"IF(D58=0,C58+J58,D58+J58)","v":0},{"$f":"SUMIFS(Sheet1!S71_OY1AdjustedBudget,Sheet1!S71_SA1SubCode,$AC:$AC)","v":0},{"$f":"SUMIFS(Sheet1!S71_OY2AdjustedBudget,Sheet1!S71_SA1SubCode,$AC:$AC)","v":0},null,null,null,null,null,null,null,null,null,null,null,null,null,null,null,"2015"]
["In kind benefits",null,{"$f":"SUMIFS(Sheet1!S71_OriginalBudget,Sheet1!S71_SA1SubCode,$AC:$AC)","v":0},{"$f":"SUMIFS(Sheet1!S71_PreviousBudget,Sheet1!S71_SA1SubCode,$AC:$AC)","v":0},null,null,null,null,{"$f":"SUMIFS(Sheet1!S71_CurrentAdjustments,Sheet1!S71_SA1SubCode,$AC:$AC)","v":0},{"$f":"SUM(E59:I59)","v":0},{"$f":"IF(D59=0,C59+J59,D59+J59)","v":0},{"$f":"SUMIFS(Sheet1!S71_OY1AdjustedBudget,Sheet1!S71_SA1SubCode,$AC:$AC)","v":0},{"$f":"SUMIFS(Sheet1!S71_OY2AdjustedBudget,Sheet1!S71_SA1SubCode,$AC:$AC)","v":0},null,null,null,null,null,null,null,null,null,null,null,null,null,null,null,"2016"]
["sub-total",null,{"$f":"SUM(C44:C59)","v":152542627},{"$f":"SUM(D44:D59)","v":152542635},0,0,0,0,0,0,152542635,153638430,154713325]
["Less: Employees costs capitalised to PPE",null,{"$f":"SUMIFS(Sheet1!S71_OriginalBudget,Sheet1!S71_SA1SubCode,$AC:$AC)","v":0},{"$f":"SUMIFS(Sheet1!S71_PreviousBudget,Sheet1!S71_SA1SubCode,$AC:$AC)","v":0},null,null,null,null,{"$f":"SUMIFS(Sheet1!S71_CurrentAdjustments,Sheet1!S71_SA1SubCode,$AC:$AC)","v":0},{"$f":"SUM(E61:I61)","v":0},{"$f":"IF(D61=0,C61+J61,D61+J61)","v":0},{"$f":"SUMIFS(Sheet1!S71_OY1AdjustedBudget,Sheet1!S71_SA1SubCode,$AC:$AC)","v":0},{"$f":"SUMIFS(Sheet1!S71_OY2AdjustedBudget,Sheet1!S71_SA1SubCode,$AC:$AC)","v":0},null,null,null,null,null,null,null,null,null,null,null,null,null,null,null,"2090"]
[{"$f":"\"Total \"&A43","v":"Total Employee related costs"},1,{"$f":"C60-C61","v":152542627},{"$f":"D60-D61","v":152542635},0,0,0,0,0,{"$f":"SUM(J60:J61)","v":0},{"$f":"SUM(K60:K61)","v":152542635},{"$f":"L60-L61","v":153638430},{"$f":"M60-M61","v":154713325}]
[]
[]
[]
[]
[]
[]
[]
[null,null,null,null,null,null,null,null,null,null,null,null,null,null,null,null,null,null,null,null,null,null,null,null,null,null,null,null,"2301"]
[null,null,null,null,null,null,null,null,null,null,null,null,null,null,null,null,null,null,null,null,null,null,null,null,null,null,null,null,"2302"]
[]
["Depreciation and amortisation"]
["Depreciation of Property, Plant & Equipment",null,{"$f":"SUMIFS(Sheet1!S71_OriginalBudget,Sheet1!S71_SA1SubCode,$AC:$AC)","v":37492110},{"$f":"SUMIFS(Sheet1!S71_PreviousBudget,Sheet1!S71_SA1SubCode,$AC:$AC)","v":37492110},null,null,null,null,{"$f":"SUMIFS(Sheet1!S71_CurrentAdjustments,Sheet1!S71_SA1SubCode,$AC:$AC)","v":0},{"$f":"SUM(E74:I74)","v":0},{"$f":"IF(D74=0,C74+J74,D74+J74)","v":37492110},{"$f":"SUMIFS(Sheet1!S71_OY1AdjustedBudget,Sheet1!S71_SA1SubCode,$AC:$AC)","v":38616870},{"$f":"SUMIFS(Sheet1!S71_OY2AdjustedBudget,Sheet1!S71_SA1SubCode,$AC:$AC)","v":39389206},null,null,null,null,null,null,null,null,null,null,null,null,null,null,null,"2301"]
["Lease amortisation",null,{"$f":"SUMIFS(Sheet1!S71_OriginalBudget,Sheet1!S71_SA1SubCode,$AC:$AC)","v":363900},{"$f":"SUMIFS(Sheet1!S71_PreviousBudget,Sheet1!S71_SA1SubCode,$AC:$AC)","v":363900},null,null,null,null,{"$f":"SUMIFS(Sheet1!S71_CurrentAdjustments,Sheet1!S71_SA1SubCode,$AC:$AC)","v":0},{"$f":"SUM(E75:I75)","v":0},{"$f":"IF(D75=0,C75+J75,D75+J75)","v":363900},{"$f":"SUMIFS(Sheet1!S71_OY1AdjustedBudget,Sheet1!S71_SA1SubCode,$AC:$AC)","v":374820},{"$f":"SUMIFS(Sheet1!S71_OY2AdjustedBudget,Sheet1!S71_SA1SubCode,$AC:$AC)","v":382316},null,null,null,null,null,null,null,null,null,null,null,null,null,null,null,"2302"]
["Capital asset impairment",null,{"$f":"SUMIFS(Sheet1!S71_OriginalBudget,Sheet1!S71_SA1SubCode,$AC:$AC)","v":0},{"$f":"SUMIFS(Sheet1!S71_PreviousBudget,Sheet1!S71_SA1SubCode,$AC:$AC)","v":0},null,null,null,null,{"$f":"SUMIFS(Sheet1!S71_CurrentAdjustments,Sheet1!S71_SA1SubCode,$AC:$AC)","v":0},{"$f":"SUM(E76:I76)","v":0},{"$f":"IF(D76=0,C76+J76,D76+J76)","v":0},{"$f":"SUMIFS(Sheet1!S71_OY1AdjustedBudget,Sheet1!S71_SA1SubCode,$AC:$AC)","v":0},{"$f":"SUMIFS(Sheet1!S71_OY2AdjustedBudget,Sheet1!S71_SA1SubCode,$AC:$AC)","v":0},null,null,null,null,null,null,null,null,null,null,null,null,null,null,null,"2303"]
[null,null,null,null,null,null,null,null,null,null,null,null,null,null,null,null,null,null,null,null,null,null,null,null,null,null,null,null,"2501"]
[{"$f":"\"Total \"&LEFT(A73,35)","v":"Total Depreciation and amortisation"},1,{"$f":"SUM(C74:C76)","v":37856010},{"$f":"SUM(D74:D76)","v":37856010},0,0,0,0,0,0,37856010,38991690,39771522]
[]
["Bulk purchases"]
["Electricity Bulk Purchases",null,{"$f":"SUMIFS(Sheet1!S71_OriginalBudget,Sheet1!S71_SA1SubCode,$AC:$AC)","v":57865599},{"$f":"SUMIFS(Sheet1!S71_PreviousBudget,Sheet1!S71_SA1SubCode,$AC:$AC)","v":57865599},null,null,null,null,{"$f":"SUMIFS(Sheet1!S71_CurrentAdjustments,Sheet1!S71_SA1SubCode,$AC:$AC)","v":0},{"$f":"SUM(E81:I81)","v":0},{"$f":"IF(D81=0,C81+J81,D81+J81)","v":57865599},{"$f":"SUMIFS(Sheet1!S71_OY1AdjustedBudget,Sheet1!S71_SA1SubCode,$AC:$AC)","v":59163591},{"$f":"SUMIFS(Sheet1!S71_OY2AdjustedBudget,Sheet1!S71_SA1SubCode,$AC:$AC)","v":61931116},null,null,null,null,null,null,null,null,null,null,null,null,null,null,null,"2501"]
["Water Bulk Purchases",null,null,null,null,null,null,null,null,{"$f":"SUM(E82:I82)","v":0},{"$f":"IF(D82=0,C82+J82,D82+J82)","v":0}]
["Total bulk purchases",1,{"$f":"C81","v":57865599},{"$f":"D81","v":57865599},0,0,0,0,0,0,57865599,59163591,61931116]
[]
["Transfers and grants"]
["Cash transfers and grants",null,{"$f":"'SB15'!P44","v":0},{"$f":"'SB15'!P44","v":0},null,null,null,null,{"$f":"SUMIFS(Sheet1!S71_CurrentAdjustments,Sheet1!S71_SA1SubCode,$AC:$AC)","v":0},{"$f":"SUM(E86:I86)","v":0},{"$f":"IF(D86=0,C86+J86,D86+J86)","v":0},{"$f":"'SB15'!Q44","v":0},{"$f":"'SB15'!R44","v":0}]
["Non-cash transfers and grants",null,{"$f":"'B4-FinPerf RE'!C45-'SB1'!C86","v":0},{"$f":"'B4-FinPerf RE'!C45-'SB1'!D86","v":0},null,null,null,null,{"$f":"'B4-FinPerf RE'!I45","v":0},{"$f":"SUM(E87:I87)","v":0},{"$f":"IF(D87=0,C87+J87,D87+J87)","v":0},{"$f":"'B4-FinPerf RE'!L45-'SB1'!L86","v":0},{"$f":"'B4-FinPerf RE'!M45-'SB1'!M86","v":0}]
["Total transfers and grants",null,{"$f":"SUM(C86:C87)","v":0},0,0,0,0,0,0,{"$f":"SUM(J86:J87)","v":0},{"$f":"SUM(K86:K87)","v":0},{"$f":"SUM(L86:L87)","v":0},{"$f":"SUM(M86:M87)","v":0}]
[]
["Contracted services"]
["Outsourced Services",null,{"$f":"SUMIFS(Sheet1!S71_OriginalBudget,Sheet1!S71_SA1SubCode,$AC:$AC)","v":29811215},{"$f":"SUMIFS(Sheet1!S71_PreviousBudget,Sheet1!S71_SA1SubCode,$AC:$AC)","v":38996994},null,null,null,null,{"$f":"SUMIFS(Sheet1!S71_CurrentAdjustments,Sheet1!S71_SA1SubCode,$AC:$AC)","v":0},{"$f":"SUM(E91:I91)","v":0},{"$f":"IF(D91=0,C91+J91,D91+J91)","v":38996994},{"$f":"SUMIFS(Sheet1!S71_OY1AdjustedBudget,Sheet1!S71_SA1SubCode,$AC:$AC)","v":27820140},{"$f":"SUMIFS(Sheet1!S71_OY2AdjustedBudget,Sheet1!S71_SA1SubCode,$AC:$AC)","v":26640454},null,null,null,null,null,null,null,null,null,null,null,null,null,null,null,"2701"]
["Consultants and Professional Services",null,{"$f":"SUMIFS(Sheet1!S71_OriginalBudget,Sheet1!S71_SA1SubCode,$AC:$AC)","v":6302604},{"$f":"SUMIFS(Sheet1!S71_PreviousBudget,Sheet1!S71_SA1SubCode,$AC:$AC)","v":6394747},null,null,null,null,{"$f":"SUMIFS(Sheet1!S71_CurrentAdjustments,Sheet1!S71_SA1SubCode,$AC:$AC)","v":0},{"$f":"SUM(E92:I92)","v":0},{"$f":"IF(D92=0,C92+J92,D92+J92)","v":6394747},{"$f":"SUMIFS(Sheet1!S71_OY1AdjustedBudget,Sheet1!S71_SA1SubCode,$AC:$AC)","v":6820173},{"$f":"SUMIFS(Sheet1!S71_OY2AdjustedBudget,Sheet1!S71_SA1SubCode,$AC:$AC)","v":7156887},null,null,null,null,null,null,null,null,null,null,null,null,null,null,null,"2702"]
["Contractors",null,{"$f":"SUMIFS(Sheet1!S71_OriginalBudget,Sheet1!S71_SA1SubCode,$AC:$AC)","v":43155896},{"$f":"SUMIFS(Sheet1!S71_PreviousBudget,Sheet1!S71_SA1SubCode,$AC:$AC)","v":45584741},null,null,null,{"$f":"SUMIFS(Sheet1!S71_CurrentAdjustments,Sheet1!S71_SA1SubCode,$AC:$AC)","v":-6719130},0,{"$f":"SUM(E93:I93)","v":-6719130},{"$f":"IF(D93=0,C93+J93,D93+J93)","v":38865611},{"$f":"SUMIFS(Sheet1!S71_OY1AdjustedBudget,Sheet1!S71_SA1SubCode,$AC:$AC)","v":42716859},{"$f":"SUMIFS(Sheet1!S71_OY2AdjustedBudget,Sheet1!S71_SA1SubCode,$AC:$AC)","v":45338912},null,null,null,null,null,null,null,null,null,null,null,null,null,null,null,"2703"]
["Total contracted services",null,{"$f":"SUM(C91:C93)","v":79269715},90976482,0,0,0,-6719130,0,-6719130,84257352,77357172,79136253]
[]
["Operational Costs"]
["Collection costs",null,{"$f":"SUMIFS(Sheet1!S71_OriginalBudget,Sheet1!S71_SA1SubCode,$AC:$AC)","v":1739130},{"$f":"SUMIFS(Sheet1!S71_PreviousBudget,Sheet1!S71_SA1SubCode,$AC:$AC)","v":2889130},null,null,null,null,{"$f":"SUMIFS(Sheet1!S71_CurrentAdjustments,Sheet1!S71_SA1SubCode,$AC:$AC)","v":0},{"$f":"SUM(E97:I97)","v":0},{"$f":"IF(D97=0,C97+J97,D97+J97)","v":2889130},{"$f":"SUMIFS(Sheet1!S71_OY1AdjustedBudget,Sheet1!S71_SA1SubCode,$AC:$AC)","v":1819130},{"$f":"SUMIFS(Sheet1!S71_OY2AdjustedBudget,Sheet1!S71_SA1SubCode,$AC:$AC)","v":1902810},null,null,null,null,null,null,null,null,null,null,null,null,null,null,null,"2901"]
["Contributions to 'other' provisions",null,{"$f":"SUMIFS(Sheet1!S71_OriginalBudget,Sheet1!S71_SA1SubCode,$AC:$AC)","v":0},{"$f":"SUMIFS(Sheet1!S71_PreviousBudget,Sheet1!S71_SA1SubCode,$AC:$AC)","v":0},null,null,null,null,{"$f":"SUMIFS(Sheet1!S71_CurrentAdjustments,Sheet1!S71_SA1SubCode,$AC:$AC)","v":0},{"$f":"SUM(E98:I98)","v":0},{"$f":"IF(D98=0,C98+J98,D98+J98)","v":0},{"$f":"SUMIFS(Sheet1!S71_OY1AdjustedBudget,Sheet1!S71_SA1SubCode,$AC:$AC)","v":0},{"$f":"SUMIFS(Sheet1!S71_OY2AdjustedBudget,Sheet1!S71_SA1SubCode,$AC:$AC)","v":0},null,null,null,null,null,null,null,null,null,null,null,null,null,null,null,"2902"]
[null,null,{"$f":"SUMIFS(Sheet1!S71_OriginalBudget,Sheet1!S71_SA1SubCode,$AC:$AC)","v":0},{"$f":"SUMIFS(Sheet1!S71_PreviousBudget,Sheet1!S71_SA1SubCode,$AC:$AC)","v":0},null,null,null,null,{"$f":"SUMIFS(Sheet1!S71_CurrentAdjustments,Sheet1!S71_SA1SubCode,$AC:$AC)","v":0},null,null,{"$f":"SUMIFS(Sheet1!S71_OY1AdjustedBudget,Sheet1!S71_SA1SubCode,$AC:$AC)","v":0},{"$f":"SUMIFS(Sheet1!S71_OY2AdjustedBudget,Sheet1!S71_SA1SubCode,$AC:$AC)","v":0}]
["Audit fees",null,{"$f":"SUMIFS(Sheet1!S71_OriginalBudget,Sheet1!S71_SA1SubCode,$AC:$AC)","v":2173910},{"$f":"SUMIFS(Sheet1!S71_PreviousBudget,Sheet1!S71_SA1SubCode,$AC:$AC)","v":3427865},null,null,null,null,{"$f":"SUMIFS(Sheet1!S71_CurrentAdjustments,Sheet1!S71_SA1SubCode,$AC:$AC)","v":0},{"$f":"SUM(E100:I100)","v":0},{"$f":"IF(D100=0,C100+J100,D100+J100)","v":3427865},{"$f":"SUMIFS(Sheet1!S71_OY1AdjustedBudget,Sheet1!S71_SA1SubCode,$AC:$AC)","v":2273910},{"$f":"SUMIFS(Sheet1!S71_OY2AdjustedBudget,Sheet1!S71_SA1SubCode,$AC:$AC)","v":2378510},null,null,null,null,null,null,null,null,null,null,null,null,null,null,null,"2903"]
[null,null,{"$f":"SUMIFS(Sheet1!S71_OriginalBudget,Sheet1!S71_SA1SubCode,$AC:$AC)","v":0},{"$f":"SUMIFS(Sheet1!S71_PreviousBudget,Sheet1!S71_SA1SubCode,$AC:$AC)","v":0},null,null,null,null,{"$f":"SUMIFS(Sheet1!S71_CurrentAdjustments,Sheet1!S71_SA1SubCode,$AC:$AC)","v":0},null,null,{"$f":"SUMIFS(Sheet1!S71_OY1AdjustedBudget,Sheet1!S71_SA1SubCode,$AC:$AC)","v":0},{"$f":"SUMIFS(Sheet1!S71_OY2AdjustedBudget,Sheet1!S71_SA1SubCode,$AC:$AC)","v":0}]
[null,null,{"$f":"SUMIFS(Sheet1!S71_OriginalBudget,Sheet1!S71_SA1SubCode,$AC:$AC)","v":0},{"$f":"SUMIFS(Sheet1!S71_PreviousBudget,Sheet1!S71_SA1SubCode,$AC:$AC)","v":0},null,null,null,null,{"$f":"SUMIFS(Sheet1!S71_CurrentAdjustments,Sheet1!S71_SA1SubCode,$AC:$AC)","v":0},null,null,{"$f":"SUMIFS(Sheet1!S71_OY1AdjustedBudget,Sheet1!S71_SA1SubCode,$AC:$AC)","v":0},{"$f":"SUMIFS(Sheet1!S71_OY2AdjustedBudget,Sheet1!S71_SA1SubCode,$AC:$AC)","v":0}]
["Other Operational Costs",null,{"$f":"SUMIFS(Sheet1!S71_OriginalBudget,Sheet1!S71_SA1SubCode,$AC:$AC)","v":50841878},{"$f":"SUMIFS(Sheet1!S71_PreviousBudget,Sheet1!S71_SA1SubCode,$AC:$AC)","v":60417843},null,null,null,null,{"$f":"SUMIFS(Sheet1!S71_CurrentAdjustments,Sheet1!S71_SA1SubCode,$AC:$AC)","v":0},{"$f":"SUM(E103:I103)","v":0},{"$f":"IF(D103=0,C103+J103,D103+J103)","v":60417843},{"$f":"SUMIFS(Sheet1!S71_OY1AdjustedBudget,Sheet1!S71_SA1SubCode,$AC:$AC)","v":54118925},{"$f":"SUMIFS(Sheet1!S71_OY2AdjustedBudget,Sheet1!S71_SA1SubCode,$AC:$AC)","v":57007483},null,null,null,null,null,null,null,null,null,null,null,null,null,null,null,"2904"]
[]
[]
[]
[]
[]
[]
[]
[]
[]
[]
[]
[]
[]
[]
[]
[]
[null,null,null,null,null,null,null,null,null,null,null,null,null,null,null,null,null,null,null,null,null,null,null,null,null,null,null,null,"2901"]
[null,null,null,null,null,null,null,null,null,null,null,null,null,null,null,null,null,null,null,null,null,null,null,null,null,null,null,null,"2902"]
[null,null,null,null,null,null,null,null,null,null,null,null,null,null,null,null,null,null,null,null,null,null,null,null,null,null,null,null,2903]
[]
["Total Other Operational Costs",1,{"$f":"+C97+C98+C100+C103","v":54754918},{"$f":"+D97+D98+D100+D103","v":66734838},0,0,0,0,0,0,66734838,58211965,61288803]
[]
["Repairs and Maintenance by Expenditure Item",14]
["Employee related costs",null,0,0,null,null,null,null,{"$f":"SUMIFS(Sheet1!S71_CurrentAdjustments,Sheet1!S71_SA1SubCode,$AC:$AC)","v":0},{"$f":"SUM(E127:I127)","v":0},{"$f":"IF(D127=0,C127+J127,D127+J127)","v":0},{"$f":"SUMIFS(Sheet1!S71_OY1AdjustedBudget,Sheet1!S71_SA1SubCode,$AC:$AC)","v":0},{"$f":"SUMIFS(Sheet1!S71_OY2AdjustedBudget,Sheet1!S71_SA1SubCode,$AC:$AC)","v":0}]
["Inventory Consumed (Project Maintenance)",null,{"$f":"SB18c!C176","v":27347801},{"$f":"SB18c!D176","v":29195624},null,null,null,null,{"$f":"SB18c!I170","v":0},{"$f":"SUM(E128:I128)","v":0},{"$f":"IF(D128=0,C128+J128,D128+J128)","v":29195624},{"$f":"SB18c!L176","v":28151018},{"$f":"SB18c!M176","v":29445960}]
["Contracted Services",null,0,0,null,null,null,null,{"$f":"SUMIFS(Sheet1!S71_CurrentAdjustments,Sheet1!S71_SA1SubCode,$AC:$AC)","v":0},{"$f":"SUM(E129:I129)","v":0},{"$f":"IF(D129=0,C129+J129,D129+J129)","v":0},{"$f":"SUMIFS(Sheet1!S71_OY1AdjustedBudget,Sheet1!S71_SA1SubCode,$AC:$AC)","v":0},{"$f":"SUMIFS(Sheet1!S71_OY2AdjustedBudget,Sheet1!S71_SA1SubCode,$AC:$AC)","v":0}]
["Other Expenditure",null,0,0,null,null,null,null,{"$f":"SUMIFS(Sheet1!S71_CurrentAdjustments,Sheet1!S71_SA1SubCode,$AC:$AC)","v":0},{"$f":"SUM(E130:I130)","v":0},{"$f":"IF(D130=0,C130+J130,D130+J130)","v":0},{"$f":"SUMIFS(Sheet1!S71_OY1AdjustedBudget,Sheet1!S71_SA1SubCode,$AC:$AC)","v":0},{"$f":"SUMIFS(Sheet1!S71_OY2AdjustedBudget,Sheet1!S71_SA1SubCode,$AC:$AC)","v":0}]
["Total Repairs and Maintenance Expenditure",15,{"$f":"SUM(C127:C130)","v":27347801},{"$f":"SUM(D127:D130)","v":29195624},0,0,0,0,0,0,29195624,28151018,29445960]
[]
[" Inventory Consumed"]
["Inventory Consumed - Water",null,{"$f":"-'SB2'!C38","v":0},{"$f":"-'SB2'!D38","v":0},{"$f":"-'SB2'!E38","v":0},{"$f":"-'SB2'!F38","v":0},{"$f":"-'SB2'!G38","v":0},{"$f":"-'SB2'!H38","v":0},{"$f":"-'SB2'!I38","v":0},{"$f":"SUM(E134:I134)","v":0},{"$f":"IF(D134=0,C134+J134,D134+J134)","v":0},{"$f":"-'SB2'!L38","v":0},{"$f":"-'SB2'!M38","v":0}]
["Inventory Consumed - Other",null,{"$f":"-'SB2'!C67-'SB2'!C76-'SB2'!C83-'SB2'!C91-'SB2'!C99-'SB2'!C114","v":5118250},{"$f":"-'SB2'!D67-'SB2'!D76-'SB2'!D83-'SB2'!D91-'SB2'!D99-'SB2'!D114","v":5634222},{"$f":"-'SB2'!E67-'SB2'!E76-'SB2'!E83-'SB2'!E91-'SB2'!E99-'SB2'!E114","v":0},{"$f":"-'SB2'!F67-'SB2'!F76-'SB2'!F83-'SB2'!F91-'SB2'!F99-'SB2'!F114","v":0},{"$f":"-'SB2'!G67-'SB2'!G76-'SB2'!G83-'SB2'!G91-'SB2'!G99-'SB2'!G114","v":0},{"$f":"-'SB2'!H67-'SB2'!H76-'SB2'!H83-'SB2'!H91-'SB2'!H99-'SB2'!H114","v":0},{"$f":"-'SB2'!I67-'SB2'!I76-'SB2'!I83-'SB2'!I91-'SB2'!I99-'SB2'!I114","v":0},{"$f":"SUM(E135:I135)","v":0},{"$f":"IF(D135=0,C135+J135,D135+J135)","v":5634222},{"$f":"-'SB2'!L67-'SB2'!L76-'SB2'!L83-'SB2'!L91-'SB2'!L99","v":4858200},{"$f":"-'SB2'!M67-'SB2'!M76-'SB2'!M83-'SB2'!M91-'SB2'!M99","v":5117888}]
["Total Inventory Consumed & Other Material",null,{"$f":"SUM(C134:C135)","v":5118250},{"$f":"SUM(D134:D135)","v":5634222},0,0,0,0,0,0,5634222,4858200,5117888]
[]
[{"$f":"head27a","v":"References"}]
["1. Must reconcile with 'Budgeted Financial Performance (Revenue and Expenditure)"]
["2. Must reconcile to supporting documentation on staff salaries"]
[]
["4. Expenditure to meet any unfunded obligations"]
["5. Special consideration may have to be given to including 'goodwill arising' or 'joint venture' budgets where circumstances require this (include separately under relevant notes)"]
["6. Only complete if a previous adjusted budget has been approved in the same financial year. Reflect most recent adjusted budget."]
["7. Additional cash-backed accumulated funds/unspent funds (section 18(1)(b) and section 28(2)(e) MFMA) identified after Original Budget approved and after annual financial statements audited (note: only where underspending could not reasonably be have for"]
["8. Increases of funds approved under section 31 MFMA"]
["9. Adjustments approved in accordance with section 29 MFMA"]
["10. Adjustments to funding allocations from National or Provincial Government"]
["11. Adjusts. = 'Other' Adjustments proposed to be approved; including revenue under-collection (MFMA section 28(2)(a)); additional revenue appropriation on existing programmes (section 28(2))(b); projected savings (section 28(2)(d)); error correction (sec"]
["12. G = B + C + D + E + F"]
["13. Adjusted Budget H = (A or A1) + G"]
["14. Repairs and Maintenance is not a GRAP item. However to facilitate transparency, municipalities must provide a breakdown of the amounts included in the relevant GRAP items that will be spent on Repairs and Maintenance."]
["15. Must reconcile with Repairs and Maintenance by Asset Class (Total Repairs and Maintenance) on Table SA34c."]

{"sheet":"SB2","index":38,"n_rows":200,"n_cols":29,"rows_kept":200,"cut":false,"hidden":false,"merged":[[192,0,192,12],[1,1,3,1],[1,0,3,0],[1,2,1,10],[188,0,188,12]]}
[{"$f":"muni&\" - \"&ADJB2&\" - \"&Date","v":"KZN291 Mandeni - Supporting Table SB2 Supporting detail to 'Financial Position Budget' - 08-04-2025"}]
[{"$f":"desc","v":"Description"},{"$f":"head27","v":"Ref"},{"$f":"Head2","v":"Budget Year 2024/25"},null,null,null,null,null,null,null,null,{"$f":"Head10","v":"Budget Year +1 2025/26"},{"$f":"Head11","v":"Budget Year +2 2026/27"}]
[null,null,{"$f":"Head6","v":"Original Budget"},{"$f":"Head54","v":"Prior Adjusted"},{"$f":"Head51","v":"Accum. Funds"},{"$f":"Head52","v":"Multi-year capital"},{"$f":"Head53","v":"Unfore. Unavoid."},{"$f":"Head55","v":"Nat. or Prov. Govt"},{"$f":"Head50","v":"Other Adjusts."},{"$f":"Head56","v":"Total Adjusts."},{"$f":"Head7","v":"Adjusted Budget"},{"$f":"Head7","v":"Adjusted Budget"},{"$f":"Head7","v":"Adjusted Budget"}]
[null,null,null,4,5,6,7,8,9,10,11]
["R thousands",null,"A","A1","B","C","D","E","F","G","H"]
["ASSETS"]
["Trade and other receivables from exchange transactions"]
["Electricity",null,{"$f":"SUMIFS(Sheet1!S71_OriginalBudget,Sheet1!S71_SA3Code,$AC:$AC)","v":23547953},{"$f":"SUMIFS(Sheet1!S71_PreviousBudget,Sheet1!S71_SA3Code,$AC:$AC)","v":24259177},null,null,null,null,{"$f":"SUMIFS(Sheet1!S71_CurrentAdjustments,Sheet1!S71_SA3Code,$AC:$AC)","v":0},{"$f":"SUM(E8:I8)","v":0},{"$f":"IF(D8=0,C8+J8,D8+J8)","v":24259177},{"$f":"SUMIFS(Sheet1!S71_OY1AdjustedBudget,Sheet1!S71_SA3Code,$AC:$AC)","v":23648985},{"$f":"SUMIFS(Sheet1!S71_OY2AdjustedBudget,Sheet1!S71_SA3Code,$AC:$AC)","v":24472426},null,null,null,null,null,null,null,null,null,null,null,null,null,null,null,"0111"]
["Water",null,{"$f":"SUMIFS(Sheet1!S71_OriginalBudget,Sheet1!S71_SA3Code,$AC:$AC)","v":0},{"$f":"SUMIFS(Sheet1!S71_PreviousBudget,Sheet1!S71_SA3Code,$AC:$AC)","v":0},null,null,null,null,{"$f":"SUMIFS(Sheet1!S71_CurrentAdjustments,Sheet1!S71_SA3Code,$AC:$AC)","v":0},{"$f":"SUM(E9:I9)","v":0},{"$f":"IF(D9=0,C9+J9,D9+J9)","v":0},{"$f":"SUMIFS(Sheet1!S71_OY1AdjustedBudget,Sheet1!S71_SA3Code,$AC:$AC)","v":0},{"$f":"SUMIFS(Sheet1!S71_OY2AdjustedBudget,Sheet1!S71_SA3Code,$AC:$AC)","v":0},null,null,null,null,null,null,null,null,null,null,null,null,null,null,null,"0112"]
["Waste",null,{"$f":"SUMIFS(Sheet1!S71_OriginalBudget,Sheet1!S71_SA3Code,$AC:$AC)","v":78451994},{"$f":"SUMIFS(Sheet1!S71_PreviousBudget,Sheet1!S71_SA3Code,$AC:$AC)","v":75520814},null,null,null,null,{"$f":"SUMIFS(Sheet1!S71_CurrentAdjustments,Sheet1!S71_SA3Code,$AC:$AC)","v":0},0,75520814,{"$f":"SUMIFS(Sheet1!S71_OY1AdjustedBudget,Sheet1!S71_SA3Code,$AC:$AC)","v":80542124},{"$f":"SUMIFS(Sheet1!S71_OY2AdjustedBudget,Sheet1!S71_SA3Code,$AC:$AC)","v":82014508},null,null,null,null,null,null,null,null,null,null,null,null,null,null,null,"0113"]
["Waste Water",null,{"$f":"SUMIFS(Sheet1!S71_OriginalBudget,Sheet1!S71_SA3Code,$AC:$AC)","v":852209},{"$f":"SUMIFS(Sheet1!S71_PreviousBudget,Sheet1!S71_SA3Code,$AC:$AC)","v":1321809},null,null,null,null,{"$f":"SUMIFS(Sheet1!S71_CurrentAdjustments,Sheet1!S71_SA3Code,$AC:$AC)","v":0},0,1321809,{"$f":"SUMIFS(Sheet1!S71_OY1AdjustedBudget,Sheet1!S71_SA3Code,$AC:$AC)","v":891410},{"$f":"SUMIFS(Sheet1!S71_OY2AdjustedBudget,Sheet1!S71_SA3Code,$AC:$AC)","v":932415},null,null,null,null,null,null,null,null,null,null,null,null,null,null,null,"0114"]
["Other trade receivables from exchange transactions",null,{"$f":"SUMIFS(Sheet1!S71_OriginalBudget,Sheet1!S71_SA3Code,$AC:$AC)","v":4336832},{"$f":"SUMIFS(Sheet1!S71_PreviousBudget,Sheet1!S71_SA3Code,$AC:$AC)","v":660056},null,null,null,null,{"$f":"SUMIFS(Sheet1!S71_CurrentAdjustments,Sheet1!S71_SA3Code,$AC:$AC)","v":0},0,660056,{"$f":"SUMIFS(Sheet1!S71_OY1AdjustedBudget,Sheet1!S71_SA3Code,$AC:$AC)","v":4920105},{"$f":"SUMIFS(Sheet1!S71_OY2AdjustedBudget,Sheet1!S71_SA3Code,$AC:$AC)","v":5422134},null,null,null,null,null,null,null,null,null,null,null,null,null,null,null,"0115"]
["Gross: Trade and other receivables from exchange transactions",null,{"$f":"SUM(C8:C12)","v":107188988},{"$f":"SUM(D8:D12)","v":101761856},0,0,0,0,0,0,101761856,110002624,112841483]
["Less: Impairment for debt",1,{"$f":"SUM(C15:C19)","v":-74020147},{"$f":"SUM(D15:D19)","v":-68816597},0,0,0,0,0,0,-68816597,-76742492,-87966007]
["Impairment for Electricity",null,{"$f":"SUMIFS(Sheet1!S71_OriginalBudget,Sheet1!S71_SA3Code,$AC:$AC)","v":-4163124},{"$f":"SUMIFS(Sheet1!S71_PreviousBudget,Sheet1!S71_SA3Code,$AC:$AC)","v":-3298289},null,null,null,null,{"$f":"SUMIFS(Sheet1!S71_CurrentAdjustments,Sheet1!S71_SA3Code,$AC:$AC)","v":0},{"$f":"SUM(E15:I15)","v":0},{"$f":"IF(D15=0,C15+J15,D15+J15)","v":-3298289},{"$f":"SUMIFS(Sheet1!S71_OY1AdjustedBudget,Sheet1!S71_SA3Code,$AC:$AC)","v":-4258452},{"$f":"SUMIFS(Sheet1!S71_OY2AdjustedBudget,Sheet1!S71_SA3Code,$AC:$AC)","v":-4325585},null,null,null,null,null,null,null,null,null,null,null,null,null,null,null,"0118"]
["Impairment for Water",null,{"$f":"SUMIFS(Sheet1!S71_OriginalBudget,Sheet1!S71_SA3Code,$AC:$AC)","v":0},{"$f":"SUMIFS(Sheet1!S71_PreviousBudget,Sheet1!S71_SA3Code,$AC:$AC)","v":0},null,null,null,null,{"$f":"SUMIFS(Sheet1!S71_CurrentAdjustments,Sheet1!S71_SA3Code,$AC:$AC)","v":0},0,0,{"$f":"SUMIFS(Sheet1!S71_OY1AdjustedBudget,Sheet1!S71_SA3Code,$AC:$AC)","v":0},{"$f":"SUMIFS(Sheet1!S71_OY2AdjustedBudget,Sheet1!S71_SA3Code,$AC:$AC)","v":0},null,null,null,null,null,null,null,null,null,null,null,null,null,null,null,"0119"]
["Impairment for Waste",null,{"$f":"SUMIFS(Sheet1!S71_OriginalBudget,Sheet1!S71_SA3Code,$AC:$AC)","v":-2434783},{"$f":"SUMIFS(Sheet1!S71_PreviousBudget,Sheet1!S71_SA3Code,$AC:$AC)","v":-62018308},null,null,null,null,{"$f":"SUMIFS(Sheet1!S71_CurrentAdjustments,Sheet1!S71_SA3Code,$AC:$AC)","v":0},0,-62018308,{"$f":"SUMIFS(Sheet1!S71_OY1AdjustedBudget,Sheet1!S71_SA3Code,$AC:$AC)","v":-2459130},{"$f":"SUMIFS(Sheet1!S71_OY2AdjustedBudget,Sheet1!S71_SA3Code,$AC:$AC)","v":-2483722},null,null,null,null,null,null,null,null,null,null,null,null,null,null,null,"0120"]
["Impairment for Waste Water",null,{"$f":"SUMIFS(Sheet1!S71_OriginalBudget,Sheet1!S71_SA3Code,$AC:$AC)","v":0},{"$f":"SUMIFS(Sheet1!S71_PreviousBudget,Sheet1!S71_SA3Code,$AC:$AC)","v":0},null,null,null,null,{"$f":"SUMIFS(Sheet1!S71_CurrentAdjustments,Sheet1!S71_SA3Code,$AC:$AC)","v":0},0,0,{"$f":"SUMIFS(Sheet1!S71_OY1AdjustedBudget,Sheet1!S71_SA3Code,$AC:$AC)","v":0},{"$f":"SUMIFS(Sheet1!S71_OY2AdjustedBudget,Sheet1!S71_SA3Code,$AC:$AC)","v":0},null,null,null,null,null,null,null,null,null,null,null,null,null,null,null,"0121"]
["Impairment for other trade receivalbes from exchange transactions",null,{"$f":"SUMIFS(Sheet1!S71_OriginalBudget,Sheet1!S71_SA3Code,$AC:$AC)","v":-67422240},{"$f":"SUMIFS(Sheet1!S71_PreviousBudget,Sheet1!S71_SA3Code,$AC:$AC)","v":-3500000},null,null,null,null,{"$f":"SUMIFS(Sheet1!S71_CurrentAdjustments,Sheet1!S71_SA3Code,$AC:$AC)","v":0},0,-3500000,{"$f":"SUMIFS(Sheet1!S71_OY1AdjustedBudget,Sheet1!S71_SA3Code,$AC:$AC)","v":-70024910},{"$f":"SUMIFS(Sheet1!S71_OY2AdjustedBudget,Sheet1!S71_SA3Code,$AC:$AC)","v":-81156700},null,null,null,null,null,null,null,null,null,null,null,null,null,null,null,"0122"]
["Total net Trade and other receivables from Exchange Transactions",null,{"$f":"+C13+C14","v":33168841},{"$f":"+D13+D14","v":32945259},0,0,0,0,0,0,32945259,33260132,24875476]
[" "]
["Receivables from non-exchange transactions"]
["Property rates",null,{"$f":"SUMIFS(Sheet1!S71_OriginalBudget,Sheet1!S71_SA3Code,$AC:$AC)","v":134109827},{"$f":"SUMIFS(Sheet1!S71_PreviousBudget,Sheet1!S71_SA3Code,$AC:$AC)","v":193671430},null,null,null,null,{"$f":"SUMIFS(Sheet1!S71_CurrentAdjustments,Sheet1!S71_SA3Code,$AC:$AC)","v":0},{"$f":"SUM(E23:I23)","v":0},{"$f":"IF(D23=0,C23+J23,D23+J23)","v":193671430},{"$f":"SUMIFS(Sheet1!S71_OY1AdjustedBudget,Sheet1!S71_SA3Code,$AC:$AC)","v":138141209},{"$f":"SUMIFS(Sheet1!S71_OY2AdjustedBudget,Sheet1!S71_SA3Code,$AC:$AC)","v":142878711},null,null,null,null,null,null,null,null,null,null,null,null,null,null,null,"0126"]
["Less: Impairment of Property rates",null,{"$f":"SUMIFS(Sheet1!S71_OriginalBudget,Sheet1!S71_SA3Code,$AC:$AC)","v":-103609090},{"$f":"SUMIFS(Sheet1!S71_PreviousBudget,Sheet1!S71_SA3Code,$AC:$AC)","v":-138137352},null,null,null,null,{"$f":"SUMIFS(Sheet1!S71_CurrentAdjustments,Sheet1!S71_SA3Code,$AC:$AC)","v":0},0,-138137352,{"$f":"SUMIFS(Sheet1!S71_OY1AdjustedBudget,Sheet1!S71_SA3Code,$AC:$AC)","v":-106837420},{"$f":"SUMIFS(Sheet1!S71_OY2AdjustedBudget,Sheet1!S71_SA3Code,$AC:$AC)","v":-99047850},null,null,null,null,null,null,null,null,null,null,null,null,null,null,null,"0127"]
["Net Property rates",null,{"$f":"+C23+C24","v":30500737},{"$f":"+D23+D24","v":55534078},0,0,0,0,0,0,55534078,31303789,43830861]
["Other receivables from non-exchange transactions",null,{"$f":"SUMIFS(Sheet1!S71_OriginalBudget,Sheet1!S71_SA3Code,$AC:$AC)","v":8540855},{"$f":"SUMIFS(Sheet1!S71_PreviousBudget,Sheet1!S71_SA3Code,$AC:$AC)","v":5424511},null,null,null,null,{"$f":"SUMIFS(Sheet1!S71_CurrentAdjustments,Sheet1!S71_SA3Code,$AC:$AC)","v":0},{"$f":"SUM(E26:I26)","v":0},{"$f":"IF(D26=0,C26+J26,D26+J26)","v":5424511},{"$f":"SUMIFS(Sheet1!S71_OY1AdjustedBudget,Sheet1!S71_SA3Code,$AC:$AC)","v":8816841},{"$f":"SUMIFS(Sheet1!S71_OY2AdjustedBudget,Sheet1!S71_SA3Code,$AC:$AC)","v":9026739},null,null,null,null,null,null,null,null,null,null,null,null,null,null,null,"0129"]
["Impairment for other receivalbes from non-exchange transactions",null,{"$f":"SUMIFS(Sheet1!S71_OriginalBudget,Sheet1!S71_SA3Code,$AC:$AC)","v":-2999210},{"$f":"SUMIFS(Sheet1!S71_PreviousBudget,Sheet1!S71_SA3Code,$AC:$AC)","v":-2877871},null,null,null,null,{"$f":"SUMIFS(Sheet1!S71_CurrentAdjustments,Sheet1!S71_SA3Code,$AC:$AC)","v":0},0,-2877871,{"$f":"SUMIFS(Sheet1!S71_OY1AdjustedBudget,Sheet1!S71_SA3Code,$AC:$AC)","v":-3089180},{"$f":"SUMIFS(Sheet1!S71_OY2AdjustedBudget,Sheet1!S71_SA3Code,$AC:$AC)","v":-3150970},null,null,null,null,null,null,null,null,null,null,null,null,null,null,null,"0130"]
["Net other receivables from non-exchange transactions",null,{"$f":"+C26+C27","v":5541645},{"$f":"+D26+D27","v":2546640},0,0,0,0,0,0,2546640,5727661,5875769]
["Total net Receivables from non-exchange transactions",null,{"$f":"+C25+C28","v":36042382},{"$f":"+D25+D28","v":58080718},0,0,0,0,0,0,58080718,37031450,49706630]
[]
["Inventory"]
["Water"]
["  Opening Balance",null,{"$f":"SUMIFS(Sheet1!S71_OriginalBudget,Sheet1!S71_SA3SubCode,$AC:$AC)","v":0},{"$f":"SUMIFS(Sheet1!S71_PreviousBudget,Sheet1!S71_SA3SubCode,$AC:$AC)","v":0},null,null,null,null,{"$f":"SUMIFS(Sheet1!S71_CurrentAdjustments,Sheet1!S71_SA3SubCode,$AC:$AC)","v":0},{"$f":"SUM(E33:I33)","v":0},{"$f":"IF(D33=0,C33+J33,D33+J33)","v":0},{"$f":"K62","v":0},{"$f":"L62","v":0},null,null,null,null,null,null,null,null,null,null,null,null,null,null,null,"0152"]
["  System Input Volume",null,{"$f":"SUM(C35:C37)","v":0},{"$f":"SUM(D35:D37)","v":0},{"$f":"SUM(E35:E37)","v":0},0,0,0,0,0,0,0,0]
["      Water Treatment Works",null,{"$f":"SUMIFS(Sheet1!S71_OriginalBudget,Sheet1!S71_SA3SubCode,$AC:$AC)","v":0},{"$f":"SUMIFS(Sheet1!S71_PreviousBudget,Sheet1!S71_SA3SubCode,$AC:$AC)","v":0},null,null,null,null,{"$f":"SUMIFS(Sheet1!S71_CurrentAdjustments,Sheet1!S71_SA3SubCode,$AC:$AC)","v":0},{"$f":"SUM(E35:I35)","v":0},{"$f":"IF(D35=0,C35+J35,D35+J35)","v":0},{"$f":"SUMIFS(Sheet1!S71_OY1AdjustedBudget,Sheet1!S71_SA3SubCode,$AC:$AC)","v":0},{"$f":"SUMIFS(Sheet1!S71_OY2AdjustedBudget,Sheet1!S71_SA3SubCode,$AC:$AC)","v":0},null,null,null,null,null,null,null,null,null,null,null,null,null,null,null,"0154"]
["      Bulk Purchases",null,{"$f":"SUMIFS(Sheet1!S71_OriginalBudget,Sheet1!S71_SA3SubCode,$AC:$AC)","v":0},{"$f":"SUMIFS(Sheet1!S71_PreviousBudget,Sheet1!S71_SA3SubCode,$AC:$AC)","v":0},null,null,null,null,{"$f":"SUMIFS(Sheet1!S71_CurrentAdjustments,Sheet1!S71_SA3SubCode,$AC:$AC)","v":0},{"$f":"SUM(E36:I36)","v":0},{"$f":"IF(D36=0,C36+J36,D36+J36)","v":0},{"$f":"SUMIFS(Sheet1!S71_OY1AdjustedBudget,Sheet1!S71_SA3SubCode,$AC:$AC)","v":0},{"$f":"SUMIFS(Sheet1!S71_OY2AdjustedBudget,Sheet1!S71_SA3SubCode,$AC:$AC)","v":0},null,null,null,null,null,null,null,null,null,null,null,null,null,null,null,"0155"]
["      Natural Sources",null,{"$f":"SUMIFS(Sheet1!S71_OriginalBudget,Sheet1!S71_SA3SubCode,$AC:$AC)","v":0},{"$f":"SUMIFS(Sheet1!S71_PreviousBudget,Sheet1!S71_SA3SubCode,$AC:$AC)","v":0},null,null,null,null,{"$f":"SUMIFS(Sheet1!S71_CurrentAdjustments,Sheet1!S71_SA3SubCode,$AC:$AC)","v":0},{"$f":"SUM(E37:I37)","v":0},{"$f":"IF(D37=0,C37+J37,D37+J37)","v":0},{"$f":"SUMIFS(Sheet1!S71_OY1AdjustedBudget,Sheet1!S71_SA3SubCode,$AC:$AC)","v":0},{"$f":"SUMIFS(Sheet1!S71_OY2AdjustedBudget,Sheet1!S71_SA3SubCode,$AC:$AC)","v":0},null,null,null,null,null,null,null,null,null,null,null,null,null,null,null,"0156"]
["  Authorised Consumption",12,{"$f":"C39+C48","v":0},{"$f":"D39+D48","v":0},{"$f":"E39+E48","v":0},0,0,0,0,0,0,0,0]
["      Billed Authorised Consumption",null,{"$f":"C40+C44","v":0},{"$f":"D40+D44","v":0},{"$f":"E40+E44","v":0},0,0,0,0,0,0,0,0]
["         Billed Metered Consumption",null,{"$f":"SUM(C41:C43)","v":0},{"$f":"SUM(D41:D43)","v":0},{"$f":"SUM(E41:E43)","v":0},0,0,0,0,0,0,0,0]
["          Free Basic Water",null,{"$f":"SUMIFS(Sheet1!S71_OriginalBudget,Sheet1!S71_SA3SubCode,$AC:$AC)","v":0},{"$f":"SUMIFS(Sheet1!S71_PreviousBudget,Sheet1!S71_SA3SubCode,$AC:$AC)","v":0},null,null,null,null,{"$f":"SUMIFS(Sheet1!S71_CurrentAdjustments,Sheet1!S71_SA3SubCode,$AC:$AC)","v":0},{"$f":"SUM(E41:I41)","v":0},{"$f":"IF(D41=0,C41+J41,D41+J41)","v":0},{"$f":"SUMIFS(Sheet1!S71_OY1AdjustedBudget,Sheet1!S71_SA3SubCode,$AC:$AC)","v":0},{"$f":"SUMIFS(Sheet1!S71_OY2AdjustedBudget,Sheet1!S71_SA3SubCode,$AC:$AC)","v":0},null,null,null,null,null,null,null,null,null,null,null,null,null,null,null,"0160"]
["          Subsidised Water",null,{"$f":"SUMIFS(Sheet1!S71_OriginalBudget,Sheet1!S71_SA3SubCode,$AC:$AC)","v":0},{"$f":"SUMIFS(Sheet1!S71_PreviousBudget,Sheet1!S71_SA3SubCode,$AC:$AC)","v":0},null,null,null,null,{"$f":"SUMIFS(Sheet1!S71_CurrentAdjustments,Sheet1!S71_SA3SubCode,$AC:$AC)","v":0},{"$f":"SUM(E42:I42)","v":0},{"$f":"IF(D42=0,C42+J42,D42+J42)","v":0},{"$f":"SUMIFS(Sheet1!S71_OY1AdjustedBudget,Sheet1!S71_SA3SubCode,$AC:$AC)","v":0},{"$f":"SUMIFS(Sheet1!S71_OY2AdjustedBudget,Sheet1!S71_SA3SubCode,$AC:$AC)","v":0},null,null,null,null,null,null,null,null,null,null,null,null,null,null,null,"0161"]
["          Revenue Water",null,{"$f":"SUMIFS(Sheet1!S71_OriginalBudget,Sheet1!S71_SA3SubCode,$AC:$AC)","v":0},{"$f":"SUMIFS(Sheet1!S71_PreviousBudget,Sheet1!S71_SA3SubCode,$AC:$AC)","v":0},null,null,null,null,{"$f":"SUMIFS(Sheet1!S71_CurrentAdjustments,Sheet1!S71_SA3SubCode,$AC:$AC)","v":0},{"$f":"SUM(E43:I43)","v":0},{"$f":"IF(D43=0,C43+J43,D43+J43)","v":0},{"$f":"SUMIFS(Sheet1!S71_OY1AdjustedBudget,Sheet1!S71_SA3SubCode,$AC:$AC)","v":0},{"$f":"SUMIFS(Sheet1!S71_OY2AdjustedBudget,Sheet1!S71_SA3SubCode,$AC:$AC)","v":0},null,null,null,null,null,null,null,null,null,null,null,null,null,null,null,"0162"]
["         Billed Unmetered Consumption",null,{"$f":"SUM(C45:C47)","v":0},{"$f":"SUM(D45:D47)","v":0},{"$f":"SUM(E45:E47)","v":0},0,0,0,0,0,0,0,0]
["          Free Basic Water",null,{"$f":"SUMIFS(Sheet1!S71_OriginalBudget,Sheet1!S71_SA3SubCode,$AC:$AC)","v":0},{"$f":"SUMIFS(Sheet1!S71_PreviousBudget,Sheet1!S71_SA3SubCode,$AC:$AC)","v":0},null,null,null,null,{"$f":"SUMIFS(Sheet1!S71_CurrentAdjustments,Sheet1!S71_SA3SubCode,$AC:$AC)","v":0},{"$f":"SUM(E45:I45)","v":0},{"$f":"IF(D45=0,C45+J45,D45+J45)","v":0},{"$f":"SUMIFS(Sheet1!S71_OY1AdjustedBudget,Sheet1!S71_SA3SubCode,$AC:$AC)","v":0},{"$f":"SUMIFS(Sheet1!S71_OY2AdjustedBudget,Sheet1!S71_SA3SubCode,$AC:$AC)","v":0},null,null,null,null,null,null,null,null,null,null,null,null,null,null,null,"0164"]
["          Subsidised Water",null,{"$f":"SUMIFS(Sheet1!S71_OriginalBudget,Sheet1!S71_SA3SubCode,$AC:$AC)","v":0},{"$f":"SUMIFS(Sheet1!S71_PreviousBudget,Sheet1!S71_SA3SubCode,$AC:$AC)","v":0},null,null,null,null,{"$f":"SUMIFS(Sheet1!S71_CurrentAdjustments,Sheet1!S71_SA3SubCode,$AC:$AC)","v":0},{"$f":"SUM(E46:I46)","v":0},{"$f":"IF(D46=0,C46+J46,D46+J46)","v":0},{"$f":"SUMIFS(Sheet1!S71_OY1AdjustedBudget,Sheet1!S71_SA3SubCode,$AC:$AC)","v":0},{"$f":"SUMIFS(Sheet1!S71_OY2AdjustedBudget,Sheet1!S71_SA3SubCode,$AC:$AC)","v":0},null,null,null,null,null,null,null,null,null,null,null,null,null,null,null,"0165"]
["          Revenue Water",null,{"$f":"SUMIFS(Sheet1!S71_OriginalBudget,Sheet1!S71_SA3SubCode,$AC:$AC)","v":0},{"$f":"SUMIFS(Sheet1!S71_PreviousBudget,Sheet1!S71_SA3SubCode,$AC:$AC)","v":0},null,null,null,null,{"$f":"SUMIFS(Sheet1!S71_CurrentAdjustments,Sheet1!S71_SA3SubCode,$AC:$AC)","v":0},{"$f":"SUM(E47:I47)","v":0},{"$f":"IF(D47=0,C47+J47,D47+J47)","v":0},{"$f":"SUMIFS(Sheet1!S71_OY1AdjustedBudget,Sheet1!S71_SA3SubCode,$AC:$AC)","v":0},{"$f":"SUMIFS(Sheet1!S71_OY2AdjustedBudget,Sheet1!S71_SA3SubCode,$AC:$AC)","v":0},null,null,null,null,null,null,null,null,null,null,null,null,null,null,null,"0166"]
["     UnBilled Authorised Consumption",null,{"$f":"SUM(C49:C50)","v":0},{"$f":"SUM(D49:D50)","v":0},{"$f":"SUM(E49:E50)","v":0},0,0,0,0,0,0,0,0]
["          Unbilled Metered Consumption",null,{"$f":"SUMIFS(Sheet1!S71_OriginalBudget,Sheet1!S71_SA3SubCode,$AC:$AC)","v":0},{"$f":"SUMIFS(Sheet1!S71_PreviousBudget,Sheet1!S71_SA3SubCode,$AC:$AC)","v":0},null,null,null,null,{"$f":"SUMIFS(Sheet1!S71_CurrentAdjustments,Sheet1!S71_SA3SubCode,$AC:$AC)","v":0},{"$f":"SUM(E49:I49)","v":0},{"$f":"IF(D49=0,C49+J49,D49+J49)","v":0},{"$f":"SUMIFS(Sheet1!S71_OY1AdjustedBudget,Sheet1!S71_SA3SubCode,$AC:$AC)","v":0},{"$f":"SUMIFS(Sheet1!S71_OY2AdjustedBudget,Sheet1!S71_SA3SubCode,$AC:$AC)","v":0},null,null,null,null,null,null,null,null,null,null,null,null,null,null,null,"0168"]
["          Unbilled Unmetered Consumption",null,{"$f":"SUMIFS(Sheet1!S71_OriginalBudget,Sheet1!S71_SA3SubCode,$AC:$AC)","v":0},{"$f":"SUMIFS(Sheet1!S71_PreviousBudget,Sheet1!S71_SA3SubCode,$AC:$AC)","v":0},null,null,null,null,{"$f":"SUMIFS(Sheet1!S71_CurrentAdjustments,Sheet1!S71_SA3SubCode,$AC:$AC)","v":0},{"$f":"SUM(E50:I50)","v":0},{"$f":"IF(D50=0,C50+J50,D50+J50)","v":0},{"$f":"SUMIFS(Sheet1!S71_OY1AdjustedBudget,Sheet1!S71_SA3SubCode,$AC:$AC)","v":0},{"$f":"SUMIFS(Sheet1!S71_OY2AdjustedBudget,Sheet1!S71_SA3SubCode,$AC:$AC)","v":0},null,null,null,null,null,null,null,null,null,null,null,null,null,null,null,"0169"]
["     Water Losses",null,{"$f":"C52+C55","v":0},{"$f":"D52+D55","v":0},{"$f":"E52+E55","v":0},0,0,0,0,0,0,0,0]
["         Apparent losses",null,{"$f":"SUM(C53:C54)","v":0},{"$f":"SUM(D53:D54)","v":0},{"$f":"SUM(E53:E54)","v":0},0,0,0,0,0,0,0,0]
["           Unauthorised Consumption",null,{"$f":"SUMIFS(Sheet1!S71_OriginalBudget,Sheet1!S71_SA3SubCode,$AC:$AC)","v":0},{"$f":"SUMIFS(Sheet1!S71_PreviousBudget,Sheet1!S71_SA3SubCode,$AC:$AC)","v":0},null,null,null,null,{"$f":"SUMIFS(Sheet1!S71_CurrentAdjustments,Sheet1!S71_SA3SubCode,$AC:$AC)","v":0},{"$f":"SUM(E53:I53)","v":0},{"$f":"IF(D53=0,C53+J53,D53+J53)","v":0},{"$f":"SUMIFS(Sheet1!S71_OY1AdjustedBudget,Sheet1!S71_SA3SubCode,$AC:$AC)","v":0},{"$f":"SUMIFS(Sheet1!S71_OY2AdjustedBudget,Sheet1!S71_SA3SubCode,$AC:$AC)","v":0},null,null,null,null,null,null,null,null,null,null,null,null,null,null,null,"0172"]
["           Customer Meter Inaccuracies",null,{"$f":"SUMIFS(Sheet1!S71_OriginalBudget,Sheet1!S71_SA3SubCode,$AC:$AC)","v":0},{"$f":"SUMIFS(Sheet1!S71_PreviousBudget,Sheet1!S71_SA3SubCode,$AC:$AC)","v":0},null,null,null,null,{"$f":"SUMIFS(Sheet1!S71_CurrentAdjustments,Sheet1!S71_SA3SubCode,$AC:$AC)","v":0},{"$f":"SUM(E54:I54)","v":0},{"$f":"IF(D54=0,C54+J54,D54+J54)","v":0},{"$f":"SUMIFS(Sheet1!S71_OY1AdjustedBudget,Sheet1!S71_SA3SubCode,$AC:$AC)","v":0},{"$f":"SUMIFS(Sheet1!S71_OY2AdjustedBudget,Sheet1!S71_SA3SubCode,$AC:$AC)","v":0},null,null,null,null,null,null,null,null,null,null,null,null,null,null,null,"0173"]
["         Real losses",null,{"$f":"SUM(C56:C60)","v":0},{"$f":"SUM(D56:D60)","v":0},{"$f":"SUM(E56:E60)","v":0},0,0,0,0,0,0,0,0]
["           Leakage on Transmission and Distribution Mains",null,{"$f":"SUMIFS(Sheet1!S71_OriginalBudget,Sheet1!S71_SA3SubCode,$AC:$AC)","v":0},{"$f":"SUMIFS(Sheet1!S71_PreviousBudget,Sheet1!S71_SA3SubCode,$AC:$AC)","v":0},null,null,null,null,{"$f":"SUMIFS(Sheet1!S71_CurrentAdjustments,Sheet1!S71_SA3SubCode,$AC:$AC)","v":0},{"$f":"SUM(E56:I56)","v":0},{"$f":"IF(D56=0,C56+J56,D56+J56)","v":0},{"$f":"SUMIFS(Sheet1!S71_OY1AdjustedBudget,Sheet1!S71_SA3SubCode,$AC:$AC)","v":0},{"$f":"SUMIFS(Sheet1!S71_OY2AdjustedBudget,Sheet1!S71_SA3SubCode,$AC:$AC)","v":0},null,null,null,null,null,null,null,null,null,null,null,null,null,null,null,"0175"]
["           Leakage and Overflows at Storage Tanks/Reservoirs",null,{"$f":"SUMIFS(Sheet1!S71_OriginalBudget,Sheet1!S71_SA3SubCode,$AC:$AC)","v":0},{"$f":"SUMIFS(Sheet1!S71_PreviousBudget,Sheet1!S71_SA3SubCode,$AC:$AC)","v":0},null,null,null,null,{"$f":"SUMIFS(Sheet1!S71_CurrentAdjustments,Sheet1!S71_SA3SubCode,$AC:$AC)","v":0},{"$f":"SUM(E57:I57)","v":0},{"$f":"IF(D57=0,C57+J57,D57+J57)","v":0},{"$f":"SUMIFS(Sheet1!S71_OY1AdjustedBudget,Sheet1!S71_SA3SubCode,$AC:$AC)","v":0},{"$f":"SUMIFS(Sheet1!S71_OY2AdjustedBudget,Sheet1!S71_SA3SubCode,$AC:$AC)","v":0},null,null,null,null,null,null,null,null,null,null,null,null,null,null,null,"0176"]
["           Leakage on Service Connections up to the point of Customer Meter",null,{"$f":"SUMIFS(Sheet1!S71_OriginalBudget,Sheet1!S71_SA3SubCode,$AC:$AC)","v":0},{"$f":"SUMIFS(Sheet1!S71_PreviousBudget,Sheet1!S71_SA3SubCode,$AC:$AC)","v":0},null,null,null,null,{"$f":"SUMIFS(Sheet1!S71_CurrentAdjustments,Sheet1!S71_SA3SubCode,$AC:$AC)","v":0},{"$f":"SUM(E58:I58)","v":0},{"$f":"IF(D58=0,C58+J58,D58+J58)","v":0},{"$f":"SUMIFS(Sheet1!S71_OY1AdjustedBudget,Sheet1!S71_SA3SubCode,$AC:$AC)","v":0},{"$f":"SUMIFS(Sheet1!S71_OY2AdjustedBudget,Sheet1!S71_SA3SubCode,$AC:$AC)","v":0},null,null,null,null,null,null,null,null,null,null,null,null,null,null,null,"0177"]
["           Data Transfer and Management Errors",null,{"$f":"SUMIFS(Sheet1!S71_OriginalBudget,Sheet1!S71_SA3SubCode,$AC:$AC)","v":0},{"$f":"SUMIFS(Sheet1!S71_PreviousBudget,Sheet1!S71_SA3SubCode,$AC:$AC)","v":0},null,null,null,null,{"$f":"SUMIFS(Sheet1!S71_CurrentAdjustments,Sheet1!S71_SA3SubCode,$AC:$AC)","v":0},{"$f":"SUM(E59:I59)","v":0},{"$f":"IF(D59=0,C59+J59,D59+J59)","v":0},{"$f":"SUMIFS(Sheet1!S71_OY1AdjustedBudget,Sheet1!S71_SA3SubCode,$AC:$AC)","v":0},{"$f":"SUMIFS(Sheet1!S71_OY2AdjustedBudget,Sheet1!S71_SA3SubCode,$AC:$AC)","v":0},null,null,null,null,null,null,null,null,null,null,null,null,null,null,null,"0178"]
["           Unavoidable Annual Real Losses",null,{"$f":"SUMIFS(Sheet1!S71_OriginalBudget,Sheet1!S71_SA3SubCode,$AC:$AC)","v":0},{"$f":"SUMIFS(Sheet1!S71_PreviousBudget,Sheet1!S71_SA3SubCode,$AC:$AC)","v":0},null,null,null,null,{"$f":"SUMIFS(Sheet1!S71_CurrentAdjustments,Sheet1!S71_SA3SubCode,$AC:$AC)","v":0},{"$f":"SUM(E60:I60)","v":0},{"$f":"IF(D60=0,C60+J60,D60+J60)","v":0},{"$f":"SUMIFS(Sheet1!S71_OY1AdjustedBudget,Sheet1!S71_SA3SubCode,$AC:$AC)","v":0},{"$f":"SUMIFS(Sheet1!S71_OY2AdjustedBudget,Sheet1!S71_SA3SubCode,$AC:$AC)","v":0},null,null,null,null,null,null,null,null,null,null,null,null,null,null,null,"0179"]
["  Non-revenue Water",null,{"$f":"C51+C48","v":0},{"$f":"D51+D48","v":0},{"$f":"E51+E48","v":0},0,0,0,0,0,0,0,0,null,null,null,null,null,null,null,null,null,null,null,null,null,null,null,"0180"]
["  Closing Balance Water",null,{"$f":"C33+C34+C38+C51","v":0},{"$f":"D33+D34+D38+D51","v":0},{"$f":"E33+E34+E38+E51","v":0},0,0,0,0,0,0,0,0]
[]
["Agricultural"]
["  Opening Balance",null,{"$f":"SUMIFS(Sheet1!S71_OriginalBudget,Sheet1!S71_SA3SubCode,$AC:$AC)","v":0},{"$f":"SUMIFS(Sheet1!S71_PreviousBudget,Sheet1!S71_SA3SubCode,$AC:$AC)","v":0},null,null,null,null,{"$f":"SUMIFS(Sheet1!S71_CurrentAdjustments,Sheet1!S71_SA3SubCode,$AC:$AC)","v":0},{"$f":"SUM(E65:I65)","v":0},{"$f":"IF(D65=0,C65+J65,D65+J65)","v":0},{"$f":"K70","v":0},{"$f":"L70","v":0},null,null,null,null,null,null,null,null,null,null,null,null,null,null,null,"0183"]
["      Acquisitions",null,{"$f":"SUMIFS(Sheet1!S71_OriginalBudget,Sheet1!S71_SA3SubCode,$AC:$AC)","v":0},{"$f":"SUMIFS(Sheet1!S71_PreviousBudget,Sheet1!S71_SA3SubCode,$AC:$AC)","v":0},null,null,null,null,{"$f":"SUMIFS(Sheet1!S71_CurrentAdjustments,Sheet1!S71_SA3SubCode,$AC:$AC)","v":0},{"$f":"SUM(E66:I66)","v":0},{"$f":"IF(D66=0,C66+J66,D66+J66)","v":0},{"$f":"SUMIFS(Sheet1!S71_OY1AdjustedBudget,Sheet1!S71_SA3SubCode,$AC:$AC)","v":0},{"$f":"SUMIFS(Sheet1!S71_OY2AdjustedBudget,Sheet1!S71_SA3SubCode,$AC:$AC)","v":0},null,null,null,null,null,null,null,null,null,null,null,null,null,null,null,"0184"]
["      Issues",13,{"$f":"SUMIFS(Sheet1!S71_OriginalBudget,Sheet1!S71_SA3SubCode,$AC:$AC)","v":0},{"$f":"SUMIFS(Sheet1!S71_PreviousBudget,Sheet1!S71_SA3SubCode,$AC:$AC)","v":0},null,null,null,null,{"$f":"SUMIFS(Sheet1!S71_CurrentAdjustments,Sheet1!S71_SA3SubCode,$AC:$AC)","v":0},{"$f":"SUM(E67:I67)","v":0},{"$f":"IF(D67=0,C67+J67,D67+J67)","v":0},{"$f":"SUMIFS(Sheet1!S71_OY1AdjustedBudget,Sheet1!S71_SA3SubCode,$AC:$AC)","v":0},{"$f":"SUMIFS(Sheet1!S71_OY2AdjustedBudget,Sheet1!S71_SA3SubCode,$AC:$AC)","v":0},null,null,null,null,null,null,null,null,null,null,null,null,null,null,null,"0185"]
["      Adjustments",14,{"$f":"SUMIFS(Sheet1!S71_OriginalBudget,Sheet1!S71_SA3SubCode,$AC:$AC)","v":0},{"$f":"SUMIFS(Sheet1!S71_PreviousBudget,Sheet1!S71_SA3SubCode,$AC:$AC)","v":0},null,null,null,null,{"$f":"SUMIFS(Sheet1!S71_CurrentAdjustments,Sheet1!S71_SA3SubCode,$AC:$AC)","v":0},{"$f":"SUM(E68:I68)","v":0},{"$f":"IF(D68=0,C68+J68,D68+J68)","v":0},{"$f":"SUMIFS(Sheet1!S71_OY1AdjustedBudget,Sheet1!S71_SA3SubCode,$AC:$AC)","v":0},{"$f":"SUMIFS(Sheet1!S71_OY2AdjustedBudget,Sheet1!S71_SA3SubCode,$AC:$AC)","v":0},null,null,null,null,null,null,null,null,null,null,null,null,null,null,null,"0186"]
["      Write-offs",15,{"$f":"SUMIFS(Sheet1!S71_OriginalBudget,Sheet1!S71_SA3SubCode,$AC:$AC)","v":0},{"$f":"SUMIFS(Sheet1!S71_PreviousBudget,Sheet1!S71_SA3SubCode,$AC:$AC)","v":0},null,null,null,null,{"$f":"SUMIFS(Sheet1!S71_CurrentAdjustments,Sheet1!S71_SA3SubCode,$AC:$AC)","v":0},{"$f":"SUM(E69:I69)","v":0},{"$f":"IF(D69=0,C69+J69,D69+J69)","v":0},{"$f":"SUMIFS(Sheet1!S71_OY1AdjustedBudget,Sheet1!S71_SA3SubCode,$AC:$AC)","v":0},{"$f":"SUMIFS(Sheet1!S71_OY2AdjustedBudget,Sheet1!S71_SA3SubCode,$AC:$AC)","v":0},null,null,null,null,null,null,null,null,null,null,null,null,null,null,null,"0187"]
["  Closing balance - Agricultural",null,{"$f":"SUM(C65:C69)","v":0},0,0,0,0,0,0,0,0,0,0]
[]
["Consumables"]
["Standard Rated"]
["  Opening Balance",null,{"$f":"SUMIFS(Sheet1!S71_OriginalBudget,Sheet1!S71_SA3SubCode,$AC:$AC)","v":552500},{"$f":"SUMIFS(Sheet1!S71_PreviousBudget,Sheet1!S71_SA3SubCode,$AC:$AC)","v":804148},null,null,null,null,{"$f":"SUMIFS(Sheet1!S71_CurrentAdjustments,Sheet1!S71_SA3SubCode,$AC:$AC)","v":0},{"$f":"SUM(E74:I74)","v":0},{"$f":"IF(D74=0,C74+J74,D74+J74)","v":804148},{"$f":"K79","v":-1057880},{"$f":"L79","v":-1726987},null,null,null,null,null,null,null,null,null,null,null,null,null,null,null,"0191"]
["      Acquisitions",null,{"$f":"SUMIFS(Sheet1!S71_OriginalBudget,Sheet1!S71_SA3SubCode,$AC:$AC)","v":475500},{"$f":"SUMIFS(Sheet1!S71_PreviousBudget,Sheet1!S71_SA3SubCode,$AC:$AC)","v":475500},null,null,null,null,{"$f":"SUMIFS(Sheet1!S71_CurrentAdjustments,Sheet1!S71_SA3SubCode,$AC:$AC)","v":0},{"$f":"SUM(E75:I75)","v":0},{"$f":"IF(D75=0,C75+J75,D75+J75)","v":475500},{"$f":"SUMIFS(Sheet1!S71_OY1AdjustedBudget,Sheet1!S71_SA3SubCode,$AC:$AC)","v":489780},{"$f":"SUMIFS(Sheet1!S71_OY2AdjustedBudget,Sheet1!S71_SA3SubCode,$AC:$AC)","v":510010},null,null,null,null,null,null,null,null,null,null,null,null,null,null,null,"0192"]
["      Issues",13,{"$f":"SUMIFS(Sheet1!S71_OriginalBudget,Sheet1!S71_SA3SubCode,$AC:$AC)","v":-1163500},{"$f":"SUMIFS(Sheet1!S71_PreviousBudget,Sheet1!S71_SA3SubCode,$AC:$AC)","v":-2337528},null,null,null,null,{"$f":"SUMIFS(Sheet1!S71_CurrentAdjustments,Sheet1!S71_SA3SubCode,$AC:$AC)","v":0},{"$f":"SUM(E76:I76)","v":0},{"$f":"IF(D76=0,C76+J76,D76+J76)","v":-2337528},{"$f":"SUMIFS(Sheet1!S71_OY1AdjustedBudget,Sheet1!S71_SA3SubCode,$AC:$AC)","v":-1158887},{"$f":"SUMIFS(Sheet1!S71_OY2AdjustedBudget,Sheet1!S71_SA3SubCode,$AC:$AC)","v":-1209897},null,null,null,null,null,null,null,null,null,null,null,null,null,null,null,"0193"]
["      Adjustments",14,{"$f":"SUMIFS(Sheet1!S71_OriginalBudget,Sheet1!S71_SA3SubCode,$AC:$AC)","v":0},{"$f":"SUMIFS(Sheet1!S71_PreviousBudget,Sheet1!S71_SA3SubCode,$AC:$AC)","v":0},null,null,null,null,{"$f":"SUMIFS(Sheet1!S71_CurrentAdjustments,Sheet1!S71_SA3SubCode,$AC:$AC)","v":0},{"$f":"SUM(E77:I77)","v":0},{"$f":"IF(D77=0,C77+J77,D77+J77)","v":0},{"$f":"SUMIFS(Sheet1!S71_OY1AdjustedBudget,Sheet1!S71_SA3SubCode,$AC:$AC)","v":0},{"$f":"SUMIFS(Sheet1!S71_OY2AdjustedBudget,Sheet1!S71_SA3SubCode,$AC:$AC)","v":0},null,null,null,null,null,null,null,null,null,null,null,null,null,null,null,"0194"]
["      Write-offs",15,{"$f":"SUMIFS(Sheet1!S71_OriginalBudget,Sheet1!S71_SA3SubCode,$AC:$AC)","v":0},{"$f":"SUMIFS(Sheet1!S71_PreviousBudget,Sheet1!S71_SA3SubCode,$AC:$AC)","v":0},null,null,null,null,{"$f":"SUMIFS(Sheet1!S71_CurrentAdjustments,Sheet1!S71_SA3SubCode,$AC:$AC)","v":0},{"$f":"SUM(E78:I78)","v":0},{"$f":"IF(D78=0,C78+J78,D78+J78)","v":0},{"$f":"SUMIFS(Sheet1!S71_OY1AdjustedBudget,Sheet1!S71_SA3SubCode,$AC:$AC)","v":0},{"$f":"SUMIFS(Sheet1!S71_OY2AdjustedBudget,Sheet1!S71_SA3SubCode,$AC:$AC)","v":0},null,null,null,null,null,null,null,null,null,null,null,null,null,null,null,"0195"]
["  Closing balance - Consumables Standard Rated",null,{"$f":"SUM(C74:C78)","v":-135500},{"$f":"SUM(D74:D78)","v":-1057880},0,0,0,0,0,0,-1057880,-1726987,-2426874]
["Zero Rated"]
["  Opening Balance",null,{"$f":"SUMIFS(Sheet1!S71_OriginalBudget,Sheet1!S71_SA3SubCode,$AC:$AC)","v":0},{"$f":"SUMIFS(Sheet1!S71_PreviousBudget,Sheet1!S71_SA3SubCode,$AC:$AC)","v":0},null,null,null,null,{"$f":"SUMIFS(Sheet1!S71_CurrentAdjustments,Sheet1!S71_SA3SubCode,$AC:$AC)","v":0},{"$f":"SUM(E81:I81)","v":0},{"$f":"IF(D81=0,C81+J81,D81+J81)","v":0},{"$f":"K86","v":0},{"$f":"L86","v":0},null,null,null,null,null,null,null,null,null,null,null,null,null,null,null,"0198"]
["      Acquisitions",null,{"$f":"SUMIFS(Sheet1!S71_OriginalBudget,Sheet1!S71_SA3SubCode,$AC:$AC)","v":0},{"$f":"SUMIFS(Sheet1!S71_PreviousBudget,Sheet1!S71_SA3SubCode,$AC:$AC)","v":0},null,null,null,null,{"$f":"SUMIFS(Sheet1!S71_CurrentAdjustments,Sheet1!S71_SA3SubCode,$AC:$AC)","v":0},{"$f":"SUM(E82:I82)","v":0},{"$f":"IF(D82=0,C82+J82,D82+J82)","v":0},{"$f":"SUMIFS(Sheet1!S71_OY1AdjustedBudget,Sheet1!S71_SA3SubCode,$AC:$AC)","v":0},{"$f":"SUMIFS(Sheet1!S71_OY2AdjustedBudget,Sheet1!S71_SA3SubCode,$AC:$AC)","v":0},null,null,null,null,null,null,null,null,null,null,null,null,null,null,null,"0199"]
["      Issues",13,{"$f":"SUMIFS(Sheet1!S71_OriginalBudget,Sheet1!S71_SA3SubCode,$AC:$AC)","v":0},{"$f":"SUMIFS(Sheet1!S71_PreviousBudget,Sheet1!S71_SA3SubCode,$AC:$AC)","v":0},null,null,null,null,{"$f":"SUMIFS(Sheet1!S71_CurrentAdjustments,Sheet1!S71_SA3SubCode,$AC:$AC)","v":0},{"$f":"SUM(E83:I83)","v":0},{"$f":"IF(D83=0,C83+J83,D83+J83)","v":0},{"$f":"SUMIFS(Sheet1!S71_OY1AdjustedBudget,Sheet1!S71_SA3SubCode,$AC:$AC)","v":0},{"$f":"SUMIFS(Sheet1!S71_OY2AdjustedBudget,Sheet1!S71_SA3SubCode,$AC:$AC)","v":0},null,null,null,null,null,null,null,null,null,null,null,null,null,null,null,"0200"]
["      Adjustments",14,{"$f":"SUMIFS(Sheet1!S71_OriginalBudget,Sheet1!S71_SA3SubCode,$AC:$AC)","v":0},{"$f":"SUMIFS(Sheet1!S71_PreviousBudget,Sheet1!S71_SA3SubCode,$AC:$AC)","v":0},null,null,null,null,{"$f":"SUMIFS(Sheet1!S71_CurrentAdjustments,Sheet1!S71_SA3SubCode,$AC:$AC)","v":0},{"$f":"SUM(E84:I84)","v":0},{"$f":"IF(D84=0,C84+J84,D84+J84)","v":0},{"$f":"SUMIFS(Sheet1!S71_OY1AdjustedBudget,Sheet1!S71_SA3SubCode,$AC:$AC)","v":0},{"$f":"SUMIFS(Sheet1!S71_OY2AdjustedBudget,Sheet1!S71_SA3SubCode,$AC:$AC)","v":0},null,null,null,null,null,null,null,null,null,null,null,null,null,null,null,"0201"]
["      Write-offs",15,{"$f":"SUMIFS(Sheet1!S71_OriginalBudget,Sheet1!S71_SA3SubCode,$AC:$AC)","v":0},{"$f":"SUMIFS(Sheet1!S71_PreviousBudget,Sheet1!S71_SA3SubCode,$AC:$AC)","v":0},null,null,null,null,{"$f":"SUMIFS(Sheet1!S71_CurrentAdjustments,Sheet1!S71_SA3SubCode,$AC:$AC)","v":0},{"$f":"SUM(E85:I85)","v":0},{"$f":"IF(D85=0,C85+J85,D85+J85)","v":0},{"$f":"SUMIFS(Sheet1!S71_OY1AdjustedBudget,Sheet1!S71_SA3SubCode,$AC:$AC)","v":0},{"$f":"SUMIFS(Sheet1!S71_OY2AdjustedBudget,Sheet1!S71_SA3SubCode,$AC:$AC)","v":0},null,null,null,null,null,null,null,null,null,null,null,null,null,null,null,"0202"]
["  Closing balance - Consumables Zero Rated",null,{"$f":"SUM(C81:C85)","v":0},{"$f":"SUM(D81:D85)","v":0},0,0,0,0,0,0,0,0,0]
[]
["Finished Goods"]
["  Opening Balance",null,{"$f":"SUMIFS(Sheet1!S71_OriginalBudget,Sheet1!S71_SA3SubCode,$AC:$AC)","v":0},{"$f":"SUMIFS(Sheet1!S71_PreviousBudget,Sheet1!S71_SA3SubCode,$AC:$AC)","v":0},null,null,null,null,{"$f":"SUMIFS(Sheet1!S71_CurrentAdjustments,Sheet1!S71_SA3SubCode,$AC:$AC)","v":0},{"$f":"SUM(E89:I89)","v":0},{"$f":"IF(D89=0,C89+J89,D89+J89)","v":0},{"$f":"K94","v":0},{"$f":"L94","v":0},null,null,null,null,null,null,null,null,null,null,null,null,null,null,null,"0205"]
["      Acquisitions",null,{"$f":"SUMIFS(Sheet1!S71_OriginalBudget,Sheet1!S71_SA3SubCode,$AC:$AC)","v":0},{"$f":"SUMIFS(Sheet1!S71_PreviousBudget,Sheet1!S71_SA3SubCode,$AC:$AC)","v":0},null,null,null,null,{"$f":"SUMIFS(Sheet1!S71_CurrentAdjustments,Sheet1!S71_SA3SubCode,$AC:$AC)","v":0},{"$f":"SUM(E90:I90)","v":0},{"$f":"IF(D90=0,C90+J90,D90+J90)","v":0},{"$f":"SUMIFS(Sheet1!S71_OY1AdjustedBudget,Sheet1!S71_SA3SubCode,$AC:$AC)","v":0},{"$f":"SUMIFS(Sheet1!S71_OY2AdjustedBudget,Sheet1!S71_SA3SubCode,$AC:$AC)","v":0},null,null,null,null,null,null,null,null,null,null,null,null,null,null,null,"0206"]
["      Issues",13,{"$f":"SUMIFS(Sheet1!S71_OriginalBudget,Sheet1!S71_SA3SubCode,$AC:$AC)","v":0},{"$f":"SUMIFS(Sheet1!S71_PreviousBudget,Sheet1!S71_SA3SubCode,$AC:$AC)","v":0},null,null,null,null,{"$f":"SUMIFS(Sheet1!S71_CurrentAdjustments,Sheet1!S71_SA3SubCode,$AC:$AC)","v":0},{"$f":"SUM(E91:I91)","v":0},{"$f":"IF(D91=0,C91+J91,D91+J91)","v":0},{"$f":"SUMIFS(Sheet1!S71_OY1AdjustedBudget,Sheet1!S71_SA3SubCode,$AC:$AC)","v":0},{"$f":"SUMIFS(Sheet1!S71_OY2AdjustedBudget,Sheet1!S71_SA3SubCode,$AC:$AC)","v":0},null,null,null,null,null,null,null,null,null,null,null,null,null,null,null,"0207"]
["      Adjustments",14,{"$f":"SUMIFS(Sheet1!S71_OriginalBudget,Sheet1!S71_SA3SubCode,$AC:$AC)","v":0},{"$f":"SUMIFS(Sheet1!S71_PreviousBudget,Sheet1!S71_SA3SubCode,$AC:$AC)","v":0},null,null,null,null,{"$f":"SUMIFS(Sheet1!S71_CurrentAdjustments,Sheet1!S71_SA3SubCode,$AC:$AC)","v":0},{"$f":"SUM(E92:I92)","v":0},{"$f":"IF(D92=0,C92+J92,D92+J92)","v":0},{"$f":"SUMIFS(Sheet1!S71_OY1AdjustedBudget,Sheet1!S71_SA3SubCode,$AC:$AC)","v":0},{"$f":"SUMIFS(Sheet1!S71_OY2AdjustedBudget,Sheet1!S71_SA3SubCode,$AC:$AC)","v":0},null,null,null,null,null,null,null,null,null,null,null,null,null,null,null,"0208"]
["      Write-offs",15,{"$f":"SUMIFS(Sheet1!S71_OriginalBudget,Sheet1!S71_SA3SubCode,$AC:$AC)","v":0},{"$f":"SUMIFS(Sheet1!S71_PreviousBudget,Sheet1!S71_SA3SubCode,$AC:$AC)","v":0},null,null,null,null,{"$f":"SUMIFS(Sheet1!S71_CurrentAdjustments,Sheet1!S71_SA3SubCode,$AC:$AC)","v":0},{"$f":"SUM(E93:I93)","v":0},{"$f":"IF(D93=0,C93+J93,D93+J93)","v":0},{"$f":"SUMIFS(Sheet1!S71_OY1AdjustedBudget,Sheet1!S71_SA3SubCode,$AC:$AC)","v":0},{"$f":"SUMIFS(Sheet1!S71_OY2AdjustedBudget,Sheet1!S71_SA3SubCode,$AC:$AC)","v":0},null,null,null,null,null,null,null,null,null,null,null,null,null,null,null,"0209"]
["  Closing balance - Finished Goods",null,{"$f":"SUM(C89:C93)","v":0},{"$f":"SUM(D89:D93)","v":0},0,0,0,0,0,0,0,0,0]
[]
["Materials and Supplies"]
["  Opening Balance",null,{"$f":"SUMIFS(Sheet1!S71_OriginalBudget,Sheet1!S71_SA3SubCode,$AC:$AC)","v":121360},{"$f":"SUMIFS(Sheet1!S71_PreviousBudget,Sheet1!S71_SA3SubCode,$AC:$AC)","v":185996},null,null,null,null,{"$f":"SUMIFS(Sheet1!S71_CurrentAdjustments,Sheet1!S71_SA3SubCode,$AC:$AC)","v":0},{"$f":"SUM(E97:I97)","v":0},{"$f":"IF(D97=0,C97+J97,D97+J97)","v":185996},{"$f":"K102","v":804052},{"$f":"L102","v":1342213},null,null,null,null,null,null,null,null,null,null,null,null,null,null,null,"0212"]
["      Acquisitions",null,{"$f":"SUMIFS(Sheet1!S71_OriginalBudget,Sheet1!S71_SA3SubCode,$AC:$AC)","v":3914750},{"$f":"SUMIFS(Sheet1!S71_PreviousBudget,Sheet1!S71_SA3SubCode,$AC:$AC)","v":3914750},null,null,null,null,{"$f":"SUMIFS(Sheet1!S71_CurrentAdjustments,Sheet1!S71_SA3SubCode,$AC:$AC)","v":0},{"$f":"SUM(E98:I98)","v":0},{"$f":"IF(D98=0,C98+J98,D98+J98)","v":3914750},{"$f":"SUMIFS(Sheet1!S71_OY1AdjustedBudget,Sheet1!S71_SA3SubCode,$AC:$AC)","v":4237474},{"$f":"SUMIFS(Sheet1!S71_OY2AdjustedBudget,Sheet1!S71_SA3SubCode,$AC:$AC)","v":4283193},null,null,null,null,null,null,null,null,null,null,null,null,null,null,null,"0213"]
["      Issues",13,{"$f":"SUMIFS(Sheet1!S71_OriginalBudget,Sheet1!S71_SA3SubCode,$AC:$AC)","v":-3954750},{"$f":"SUMIFS(Sheet1!S71_PreviousBudget,Sheet1!S71_SA3SubCode,$AC:$AC)","v":-3296694},null,null,null,null,{"$f":"SUMIFS(Sheet1!S71_CurrentAdjustments,Sheet1!S71_SA3SubCode,$AC:$AC)","v":0},{"$f":"SUM(E99:I99)","v":0},{"$f":"IF(D99=0,C99+J99,D99+J99)","v":-3296694},{"$f":"SUMIFS(Sheet1!S71_OY1AdjustedBudget,Sheet1!S71_SA3SubCode,$AC:$AC)","v":-3699313},{"$f":"SUMIFS(Sheet1!S71_OY2AdjustedBudget,Sheet1!S71_SA3SubCode,$AC:$AC)","v":-3907991},null,null,null,null,null,null,null,null,null,null,null,null,null,null,null,"0214"]
["      Adjustments",14,{"$f":"SUMIFS(Sheet1!S71_OriginalBudget,Sheet1!S71_SA3SubCode,$AC:$AC)","v":0},{"$f":"SUMIFS(Sheet1!S71_PreviousBudget,Sheet1!S71_SA3SubCode,$AC:$AC)","v":0},null,null,null,null,{"$f":"SUMIFS(Sheet1!S71_CurrentAdjustments,Sheet1!S71_SA3SubCode,$AC:$AC)","v":0},{"$f":"SUM(E100:I100)","v":0},{"$f":"IF(D100=0,C100+J100,D100+J100)","v":0},{"$f":"SUMIFS(Sheet1!S71_OY1AdjustedBudget,Sheet1!S71_SA3SubCode,$AC:$AC)","v":0},{"$f":"SUMIFS(Sheet1!S71_OY2AdjustedBudget,Sheet1!S71_SA3SubCode,$AC:$AC)","v":0},null,null,null,null,null,null,null,null,null,null,null,null,null,null,null,"0215"]
["      Write-offs",15,{"$f":"SUMIFS(Sheet1!S71_OriginalBudget,Sheet1!S71_SA3SubCode,$AC:$AC)","v":0},{"$f":"SUMIFS(Sheet1!S71_PreviousBudget,Sheet1!S71_SA3SubCode,$AC:$AC)","v":0},null,null,null,null,{"$f":"SUMIFS(Sheet1!S71_CurrentAdjustments,Sheet1!S71_SA3SubCode,$AC:$AC)","v":0},{"$f":"SUM(E101:I101)","v":0},{"$f":"IF(D101=0,C101+J101,D101+J101)","v":0},{"$f":"SUMIFS(Sheet1!S71_OY1AdjustedBudget,Sheet1!S71_SA3SubCode,$AC:$AC)","v":0},{"$f":"SUMIFS(Sheet1!S71_OY2AdjustedBudget,Sheet1!S71_SA3SubCode,$AC:$AC)","v":0},null,null,null,null,null,null,null,null,null,null,null,null,null,null,null,"0216"]
["  Closing balance - Materials and Supplies",null,{"$f":"SUM(C97:C101)","v":81360},{"$f":"SUM(D97:D101)","v":804052},0,0,0,0,0,0,804052,1342213,1717415]
[]
["Work-in-progress"]
["  Opening Balance",null,{"$f":"SUMIFS(Sheet1!S71_OriginalBudget,Sheet1!S71_SA3SubCode,$AC:$AC)","v":0},{"$f":"SUMIFS(Sheet1!S71_PreviousBudget,Sheet1!S71_SA3SubCode,$AC:$AC)","v":0},null,null,null,null,{"$f":"SUMIFS(Sheet1!S71_CurrentAdjustments,Sheet1!S71_SA3SubCode,$AC:$AC)","v":0},{"$f":"SUM(E105:I105)","v":0},{"$f":"IF(D105=0,C105+J105,D105+J105)","v":0},{"$f":"K108","v":0},{"$f":"L108","v":0},null,null,null,null,null,null,null,null,null,null,null,null,null,null,null,"0219"]
["      Materials",null,{"$f":"SUMIFS(Sheet1!S71_OriginalBudget,Sheet1!S71_SA3SubCode,$AC:$AC)","v":0},{"$f":"SUMIFS(Sheet1!S71_PreviousBudget,Sheet1!S71_SA3SubCode,$AC:$AC)","v":0},null,null,null,null,{"$f":"SUMIFS(Sheet1!S71_CurrentAdjustments,Sheet1!S71_SA3SubCode,$AC:$AC)","v":0},{"$f":"SUM(E106:I106)","v":0},{"$f":"IF(D106=0,C106+J106,D106+J106)","v":0},{"$f":"SUMIFS(Sheet1!S71_OY1AdjustedBudget,Sheet1!S71_SA3SubCode,$AC:$AC)","v":0},{"$f":"SUMIFS(Sheet1!S71_OY2AdjustedBudget,Sheet1!S71_SA3SubCode,$AC:$AC)","v":0},null,null,null,null,null,null,null,null,null,null,null,null,null,null,null,"0220"]
["      Transfers",null,{"$f":"SUMIFS(Sheet1!S71_OriginalBudget,Sheet1!S71_SA3SubCode,$AC:$AC)","v":0},{"$f":"SUMIFS(Sheet1!S71_PreviousBudget,Sheet1!S71_SA3SubCode,$AC:$AC)","v":0},null,null,null,null,{"$f":"SUMIFS(Sheet1!S71_CurrentAdjustments,Sheet1!S71_SA3SubCode,$AC:$AC)","v":0},{"$f":"SUM(E107:I107)","v":0},{"$f":"IF(D107=0,C107+J107,D107+J107)","v":0},{"$f":"SUMIFS(Sheet1!S71_OY1AdjustedBudget,Sheet1!S71_SA3SubCode,$AC:$AC)","v":0},{"$f":"SUMIFS(Sheet1!S71_OY2AdjustedBudget,Sheet1!S71_SA3SubCode,$AC:$AC)","v":0},null,null,null,null,null,null,null,null,null,null,null,null,null,null,null,"0221"]
["  Closing balance - Work-in-progress",null,{"$f":"SUM(C105:C107)","v":0},{"$f":"SUM(D105:D107)","v":0},0,0,0,0,0,0,0,0,0]
[]
["Housing Stock"]
["  Opening Balance",null,{"$f":"SUMIFS(Sheet1!S71_OriginalBudget,Sheet1!S71_SA3SubCode,$AC:$AC)","v":0},{"$f":"SUMIFS(Sheet1!S71_PreviousBudget,Sheet1!S71_SA3SubCode,$AC:$AC)","v":0},null,null,null,null,{"$f":"SUMIFS(Sheet1!S71_CurrentAdjustments,Sheet1!S71_SA3SubCode,$AC:$AC)","v":0},{"$f":"SUM(E111:I111)","v":0},{"$f":"IF(D111=0,C111+J111,D111+J111)","v":0},{"$f":"K115","v":0},{"$f":"L115","v":0},null,null,null,null,null,null,null,null,null,null,null,null,null,null,null,"0224"]
["      Acquisitions",null,{"$f":"SUMIFS(Sheet1!S71_OriginalBudget,Sheet1!S71_SA3SubCode,$AC:$AC)","v":0},{"$f":"SUMIFS(Sheet1!S71_PreviousBudget,Sheet1!S71_SA3SubCode,$AC:$AC)","v":0},null,null,null,null,{"$f":"SUMIFS(Sheet1!S71_CurrentAdjustments,Sheet1!S71_SA3SubCode,$AC:$AC)","v":0},{"$f":"SUM(E112:I112)","v":0},{"$f":"IF(D112=0,C112+J112,D112+J112)","v":0},{"$f":"SUMIFS(Sheet1!S71_OY1AdjustedBudget,Sheet1!S71_SA3SubCode,$AC:$AC)","v":0},{"$f":"SUMIFS(Sheet1!S71_OY2AdjustedBudget,Sheet1!S71_SA3SubCode,$AC:$AC)","v":0},null,null,null,null,null,null,null,null,null,null,null,null,null,null,null,"0225"]
["      Transfers",null,{"$f":"SUMIFS(Sheet1!S71_OriginalBudget,Sheet1!S71_SA3SubCode,$AC:$AC)","v":0},{"$f":"SUMIFS(Sheet1!S71_PreviousBudget,Sheet1!S71_SA3SubCode,$AC:$AC)","v":0},null,null,null,null,{"$f":"SUMIFS(Sheet1!S71_CurrentAdjustments,Sheet1!S71_SA3SubCode,$AC:$AC)","v":0},{"$f":"SUM(E113:I113)","v":0},{"$f":"IF(D113=0,C113+J113,D113+J113)","v":0},{"$f":"SUMIFS(Sheet1!S71_OY1AdjustedBudget,Sheet1!S71_SA3SubCode,$AC:$AC)","v":0},{"$f":"SUMIFS(Sheet1!S71_OY2AdjustedBudget,Sheet1!S71_SA3SubCode,$AC:$AC)","v":0},null,null,null,null,null,null,null,null,null,null,null,null,null,null,null,"0226"]
["      Sales",null,{"$f":"SUMIFS(Sheet1!S71_OriginalBudget,Sheet1!S71_SA3SubCode,$AC:$AC)","v":0},{"$f":"SUMIFS(Sheet1!S71_PreviousBudget,Sheet1!S71_SA3SubCode,$AC:$AC)","v":0},null,null,null,null,{"$f":"SUMIFS(Sheet1!S71_CurrentAdjustments,Sheet1!S71_SA3SubCode,$AC:$AC)","v":0},{"$f":"SUM(E114:I114)","v":0},{"$f":"IF(D114=0,C114+J114,D114+J114)","v":0},{"$f":"SUMIFS(Sheet1!S71_OY1AdjustedBudget,Sheet1!S71_SA3SubCode,$AC:$AC)","v":0},{"$f":"SUMIFS(Sheet1!S71_OY2AdjustedBudget,Sheet1!S71_SA3SubCode,$AC:$AC)","v":0},null,null,null,null,null,null,null,null,null,null,null,null,null,null,null,"0227"]
["  Closing Balance - Housing Stock",null,{"$f":"SUM(C111:C114)","v":0},{"$f":"SUM(D111:D114)","v":0},0,0,0,0,0,0,0,0,0]
[]
["Land"]
["  Opening Balance",null,{"$f":"SUMIFS(Sheet1!S71_OriginalBudget,Sheet1!S71_SA3SubCode,$AC:$AC)","v":39038000},{"$f":"SUMIFS(Sheet1!S71_PreviousBudget,Sheet1!S71_SA3SubCode,$AC:$AC)","v":41744000},null,null,null,null,{"$f":"SUMIFS(Sheet1!S71_CurrentAdjustments,Sheet1!S71_SA3SubCode,$AC:$AC)","v":0},{"$f":"SUM(E118:I118)","v":0},{"$f":"IF(D118=0,C118+J118,D118+J118)","v":41744000},{"$f":"K124","v":41744000},{"$f":"L124","v":41744000},null,null,null,null,null,null,null,null,null,null,null,null,null,null,null,"0230"]
["      Acquisitions",null,{"$f":"SUMIFS(Sheet1!S71_OriginalBudget,Sheet1!S71_SA3SubCode,$AC:$AC)","v":0},{"$f":"SUMIFS(Sheet1!S71_PreviousBudget,Sheet1!S71_SA3SubCode,$AC:$AC)","v":0},null,null,null,null,{"$f":"SUMIFS(Sheet1!S71_CurrentAdjustments,Sheet1!S71_SA3SubCode,$AC:$AC)","v":0},0,0,{"$f":"SUMIFS(Sheet1!S71_OY1AdjustedBudget,Sheet1!S71_SA3SubCode,$AC:$AC)","v":0},{"$f":"SUMIFS(Sheet1!S71_OY2AdjustedBudget,Sheet1!S71_SA3SubCode,$AC:$AC)","v":0},null,null,null,null,null,null,null,null,null,null,null,null,null,null,null,"0231"]
["      Sales",null,{"$f":"SUMIFS(Sheet1!S71_OriginalBudget,Sheet1!S71_SA3SubCode,$AC:$AC)","v":0},{"$f":"SUMIFS(Sheet1!S71_PreviousBudget,Sheet1!S71_SA3SubCode,$AC:$AC)","v":0},null,null,null,null,{"$f":"SUMIFS(Sheet1!S71_CurrentAdjustments,Sheet1!S71_SA3SubCode,$AC:$AC)","v":0},0,0,{"$f":"SUMIFS(Sheet1!S71_OY1AdjustedBudget,Sheet1!S71_SA3SubCode,$AC:$AC)","v":0},{"$f":"SUMIFS(Sheet1!S71_OY2AdjustedBudget,Sheet1!S71_SA3SubCode,$AC:$AC)","v":0},null,null,null,null,null,null,null,null,null,null,null,null,null,null,null,"0232"]
["      Adjustments",null,{"$f":"SUMIFS(Sheet1!S71_OriginalBudget,Sheet1!S71_SA3SubCode,$AC:$AC)","v":0},{"$f":"SUMIFS(Sheet1!S71_PreviousBudget,Sheet1!S71_SA3SubCode,$AC:$AC)","v":0},null,null,null,null,{"$f":"SUMIFS(Sheet1!S71_CurrentAdjustments,Sheet1!S71_SA3SubCode,$AC:$AC)","v":0},0,0,{"$f":"SUMIFS(Sheet1!S71_OY1AdjustedBudget,Sheet1!S71_SA3SubCode,$AC:$AC)","v":0},{"$f":"SUMIFS(Sheet1!S71_OY2AdjustedBudget,Sheet1!S71_SA3SubCode,$AC:$AC)","v":0},null,null,null,null,null,null,null,null,null,null,null,null,null,null,null,"0233"]
["     Correction of  Prior period errors",null,{"$f":"SUMIFS(Sheet1!S71_OriginalBudget,Sheet1!S71_SA3SubCode,$AC:$AC)","v":0},{"$f":"SUMIFS(Sheet1!S71_PreviousBudget,Sheet1!S71_SA3SubCode,$AC:$AC)","v":0},null,null,null,null,{"$f":"SUMIFS(Sheet1!S71_CurrentAdjustments,Sheet1!S71_SA3SubCode,$AC:$AC)","v":0},0,0,{"$f":"SUMIFS(Sheet1!S71_OY1AdjustedBudget,Sheet1!S71_SA3SubCode,$AC:$AC)","v":0},{"$f":"SUMIFS(Sheet1!S71_OY2AdjustedBudget,Sheet1!S71_SA3SubCode,$AC:$AC)","v":0},null,null,null,null,null,null,null,null,null,null,null,null,null,null,null,"0234"]
["     Transfers",null,{"$f":"SUMIFS(Sheet1!S71_OriginalBudget,Sheet1!S71_SA3SubCode,$AC:$AC)","v":0},{"$f":"SUMIFS(Sheet1!S71_PreviousBudget,Sheet1!S71_SA3SubCode,$AC:$AC)","v":0},null,null,null,null,{"$f":"SUMIFS(Sheet1!S71_CurrentAdjustments,Sheet1!S71_SA3SubCode,$AC:$AC)","v":0},0,0,{"$f":"SUMIFS(Sheet1!S71_OY1AdjustedBudget,Sheet1!S71_SA3SubCode,$AC:$AC)","v":0},{"$f":"SUMIFS(Sheet1!S71_OY2AdjustedBudget,Sheet1!S71_SA3SubCode,$AC:$AC)","v":0}]
["  Closing Balance - Land",null,{"$f":"SUM(C118:C122)","v":39038000},{"$f":"SUM(D118:D122)","v":41744000},0,0,0,0,0,0,41744000,41744000,41744000]
["Closing Balance - Inventory & Consumables",null,{"$f":"C62+C70+C79+C86+C94+C102+C108+C115+C124","v":38983860},{"$f":"D62+D70+D79+D86+D94+D102+D108+D115+D124","v":41490172},0,0,0,0,0,0,41490172,41359226,41034541]
[]
["Property, plant & equipment"]
["PPE at cost/valuation (excl. finance leases)",null,{"$f":"SUMIFS(Sheet1!S71_OriginalBudget,Sheet1!S71_SA3Code,$AC:$AC)","v":864990385},{"$f":"SUMIFS(Sheet1!S71_PreviousBudget,Sheet1!S71_SA3Code,$AC:$AC)","v":1089541520},null,null,null,{"$f":"SUMIFS(Sheet1!S71_CurrentAdjustments,Sheet1!S71_SA3Code,$AC:$AC)","v":1985217.38},0,{"$f":"SUM(E128:I128)","v":1985217.38},{"$f":"IF(D128=0,C128+J128,D128+J128)","v":1091526737.3800001},{"$f":"SUMIFS(Sheet1!S71_OY1AdjustedBudget,Sheet1!S71_SA3Code,$AC:$AC)","v":906050563},{"$f":"SUMIFS(Sheet1!S71_OY2AdjustedBudget,Sheet1!S71_SA3Code,$AC:$AC)","v":892979552},null,null,null,null,null,null,null,null,null,null,null,null,null,null,null,"0241"]
["Leases recognised as PPE",2,{"$f":"SUMIFS(Sheet1!S71_OriginalBudget,Sheet1!S71_SA3Code,$AC:$AC)","v":0},{"$f":"SUMIFS(Sheet1!S71_PreviousBudget,Sheet1!S71_SA3Code,$AC:$AC)","v":0},null,null,null,null,{"$f":"SUMIFS(Sheet1!S71_CurrentAdjustments,Sheet1!S71_SA3Code,$AC:$AC)","v":0},{"$f":"SUM(E129:I129)","v":0},{"$f":"IF(D129=0,C129+J129,D129+J129)","v":0},{"$f":"SUMIFS(Sheet1!S71_OY1AdjustedBudget,Sheet1!S71_SA3Code,$AC:$AC)","v":0},{"$f":"SUMIFS(Sheet1!S71_OY2AdjustedBudget,Sheet1!S71_SA3Code,$AC:$AC)","v":0},null,null,null,null,null,null,null,null,null,null,null,null,null,null,null,"0242"]
["Less: Accumulated depreciation",null,{"$f":"SUMIFS(Sheet1!S71_OriginalBudget,Sheet1!S71_SA3Code,$AC:$AC)","v":-233600020},{"$f":"SUMIFS(Sheet1!S71_PreviousBudget,Sheet1!S71_SA3Code,$AC:$AC)","v":-324513140},null,null,null,null,{"$f":"SUMIFS(Sheet1!S71_CurrentAdjustments,Sheet1!S71_SA3Code,$AC:$AC)","v":0},{"$f":"SUM(E130:I130)","v":0},{"$f":"IF(D130=0,C130+J130,D130+J130)","v":-324513140},{"$f":"SUMIFS(Sheet1!S71_OY1AdjustedBudget,Sheet1!S71_SA3Code,$AC:$AC)","v":-261212852},{"$f":"SUMIFS(Sheet1!S71_OY2AdjustedBudget,Sheet1!S71_SA3Code,$AC:$AC)","v":-263721148},null,null,null,null,null,null,null,null,null,null,null,null,null,null,null,"0243"]
[{"$f":"\"Total \"&A127","v":"Total Property, plant & equipment"},1,{"$f":"SUM(C128:C130)","v":631390365},{"$f":"SUM(D128:D130)","v":765028380},0,0,0,1985217.38,0,1985217.38,767013597.38000011,644837711,629258404]
[]
["LIABILITIES"]
["Current liabilities - Financial liabilities"]
["Short term loans (other than bank overdraft)",null,{"$f":"-SUMIFS(Sheet1!S71_OriginalBudget,Sheet1!S71_SA3Code,$AC:$AC)","v":0},{"$f":"-SUMIFS(Sheet1!S71_PreviousBudget,Sheet1!S71_SA3Code,$AC:$AC)","v":0},null,null,null,null,{"$f":"-SUMIFS(Sheet1!S71_CurrentAdjustments,Sheet1!S71_SA3Code,$AC:$AC)","v":0},{"$f":"SUM(E135:I135)","v":0},{"$f":"IF(D135=0,C135+J135,D135+J135)","v":0},{"$f":"SUMIFS(Sheet1!S71_OY1AdjustedBudget,Sheet1!S71_SA3Code,$AC:$AC)","v":0},{"$f":"SUMIFS(Sheet1!S71_OY2AdjustedBudget,Sheet1!S71_SA3Code,$AC:$AC)","v":0},null,null,null,null,null,null,null,null,null,null,null,null,null,null,null,"0341"]
["Current portion of long-term liabilities",null,{"$f":"-SUMIFS(Sheet1!S71_OriginalBudget,Sheet1!S71_SA3Code,$AC:$AC)","v":0},{"$f":"-SUMIFS(Sheet1!S71_PreviousBudget,Sheet1!S71_SA3Code,$AC:$AC)","v":0},null,null,null,null,{"$f":"-SUMIFS(Sheet1!S71_CurrentAdjustments,Sheet1!S71_SA3Code,$AC:$AC)","v":0},{"$f":"SUM(E136:I136)","v":0},{"$f":"IF(D136=0,C136+J136,D136+J136)","v":0},{"$f":"SUMIFS(Sheet1!S71_OY1AdjustedBudget,Sheet1!S71_SA3Code,$AC:$AC)","v":0},{"$f":"SUMIFS(Sheet1!S71_OY2AdjustedBudget,Sheet1!S71_SA3Code,$AC:$AC)","v":0},null,null,null,null,null,null,null,null,null,null,null,null,null,null,null,"0342"]
[{"$f":"\"Total \"&A134","v":"Total Current liabilities - Financial liabilities"},null,{"$f":"SUM(C135:C136)","v":0},0,0,0,0,0,0,0,0,0,0]
[]
["Trade and other payables "]
["Trade and other payables from exchange transactions",null,{"$f":"-SUMIFS(Sheet1!S71_OriginalBudget,Sheet1!S71_SA3Code,$AC:$AC)","v":23219779},{"$f":"-SUMIFS(Sheet1!S71_PreviousBudget,Sheet1!S71_SA3Code,$AC:$AC)","v":48056411},null,null,null,null,{"$f":"-SUMIFS(Sheet1!S71_CurrentAdjustments,Sheet1!S71_SA3Code,$AC:$AC)","v":0},{"$f":"SUM(E140:I140)","v":0},{"$f":"IF(D140=0,C140+J140,D140+J140)","v":48056411},{"$f":"-SUMIFS(Sheet1!S71_OY1AdjustedBudget,Sheet1!S71_SA3Code,$AC:$AC)","v":24739120},{"$f":"-SUMIFS(Sheet1!S71_OY2AdjustedBudget,Sheet1!S71_SA3Code,$AC:$AC)","v":25119217},null,null,null,null,null,null,null,null,null,null,null,null,null,null,null,"0361"]
["Other trade payables from exchange transactions",null,{"$f":"-SUMIFS(Sheet1!S71_OriginalBudget,Sheet1!S71_SA3Code,$AC:$AC)","v":0},{"$f":"-SUMIFS(Sheet1!S71_PreviousBudget,Sheet1!S71_SA3Code,$AC:$AC)","v":0},null,null,null,null,{"$f":"-SUMIFS(Sheet1!S71_CurrentAdjustments,Sheet1!S71_SA3Code,$AC:$AC)","v":0},null,null,{"$f":"-SUMIFS(Sheet1!S71_OY1AdjustedBudget,Sheet1!S71_SA3Code,$AC:$AC)","v":0},{"$f":"-SUMIFS(Sheet1!S71_OY2AdjustedBudget,Sheet1!S71_SA3Code,$AC:$AC)","v":0},null,null,null,null,null,null,null,null,null,null,null,null,null,null,null,"0362"]
["Trade payables from Non-exchange transactions: Unspent conditional Grants",null,{"$f":"-SUMIFS(Sheet1!S71_OriginalBudget,Sheet1!S71_SA3Code,$AC:$AC)","v":8283940},{"$f":"-SUMIFS(Sheet1!S71_PreviousBudget,Sheet1!S71_SA3Code,$AC:$AC)","v":5435638},null,null,null,{"$f":"-SUMIFS(Sheet1!S71_CurrentAdjustments,Sheet1!S71_SA3Code,$AC:$AC)","v":2898000},0,{"$f":"SUM(E142:I142)","v":2898000},{"$f":"IF(D142=0,C142+J142,D142+J142)","v":8333638},{"$f":"-SUMIFS(Sheet1!S71_OY1AdjustedBudget,Sheet1!S71_SA3Code,$AC:$AC)","v":0},{"$f":"-SUMIFS(Sheet1!S71_OY2AdjustedBudget,Sheet1!S71_SA3Code,$AC:$AC)","v":0},null,null,null,null,null,null,null,null,null,null,null,null,null,null,null,"0363"]
["Trade payables from Non-exchange transactions: Other",null,{"$f":"-SUMIFS(Sheet1!S71_OriginalBudget,Sheet1!S71_SA3Code,$AC:$AC)","v":0},{"$f":"-SUMIFS(Sheet1!S71_PreviousBudget,Sheet1!S71_SA3Code,$AC:$AC)","v":0},null,null,null,null,{"$f":"-SUMIFS(Sheet1!S71_CurrentAdjustments,Sheet1!S71_SA3Code,$AC:$AC)","v":0},{"$f":"SUM(E143:I143)","v":0},{"$f":"IF(D143=0,C143+J143,D143+J143)","v":0},{"$f":"-SUMIFS(Sheet1!S71_OY1AdjustedBudget,Sheet1!S71_SA3Code,$AC:$AC)","v":0},{"$f":"-SUMIFS(Sheet1!S71_OY2AdjustedBudget,Sheet1!S71_SA3Code,$AC:$AC)","v":0},null,null,null,null,null,null,null,null,null,null,null,null,null,null,null,"0364"]
["VAT",null,{"$f":"-SUMIFS(Sheet1!S71_OriginalBudget,Sheet1!S71_SA3Code,$AC:$AC)","v":14759486},{"$f":"-SUMIFS(Sheet1!S71_PreviousBudget,Sheet1!S71_SA3Code,$AC:$AC)","v":21569686},null,null,null,{"$f":"-SUMIFS(Sheet1!S71_CurrentAdjustments,Sheet1!S71_SA3Code,$AC:$AC)","v":-1007870},0,{"$f":"SUM(E144:I144)","v":-1007870},{"$f":"IF(D144=0,C144+J144,D144+J144)","v":20561816},{"$f":"-SUMIFS(Sheet1!S71_OY1AdjustedBudget,Sheet1!S71_SA3Code,$AC:$AC)","v":15184062},{"$f":"-SUMIFS(Sheet1!S71_OY2AdjustedBudget,Sheet1!S71_SA3Code,$AC:$AC)","v":16670198},null,null,null,null,null,null,null,null,null,null,null,null,null,null,null,"0365"]
["Total Trade and other payables",1,{"$f":"SUM(C140:C144)","v":46263205},75061735,0,0,0,1890130,0,1890130,76951865,39923182,41789415]
["Non current liabilities - Financial liabilities"]
["Borrowing",3,{"$f":"-SUMIFS(Sheet1!S71_OriginalBudget,Sheet1!S71_SA3Code,$AC:$AC)","v":0},{"$f":"-SUMIFS(Sheet1!S71_PreviousBudget,Sheet1!S71_SA3Code,$AC:$AC)","v":0},null,null,null,null,{"$f":"-SUMIFS(Sheet1!S71_CurrentAdjustments,Sheet1!S71_SA3Code,$AC:$AC)","v":0},{"$f":"SUM(E147:I147)","v":0},{"$f":"IF(D147=0,C147+J147,D147+J147)","v":0},{"$f":"-SUMIFS(Sheet1!S71_OY1AdjustedBudget,Sheet1!S71_SA3Code,$AC:$AC)","v":0},{"$f":"-SUMIFS(Sheet1!S71_OY2AdjustedBudget,Sheet1!S71_SA3Code,$AC:$AC)","v":0},null,null,null,null,null,null,null,null,null,null,null,null,null,null,null,"0401"]
["Other financial liabilities",null,{"$f":"-SUMIFS(Sheet1!S71_OriginalBudget,Sheet1!S71_SA3Code,$AC:$AC)","v":0},{"$f":"-SUMIFS(Sheet1!S71_PreviousBudget,Sheet1!S71_SA3Code,$AC:$AC)","v":0},null,null,null,null,{"$f":"-SUMIFS(Sheet1!S71_CurrentAdjustments,Sheet1!S71_SA3Code,$AC:$AC)","v":0},{"$f":"SUM(E148:I148)","v":0},{"$f":"IF(D148=0,C148+J148,D148+J148)","v":0},{"$f":"-SUMIFS(Sheet1!S71_OY1AdjustedBudget,Sheet1!S71_SA3Code,$AC:$AC)","v":0},{"$f":"-SUMIFS(Sheet1!S71_OY2AdjustedBudget,Sheet1!S71_SA3Code,$AC:$AC)","v":0},null,null,null,null,null,null,null,null,null,null,null,null,null,null,null,"0402"]
["Total Non current liabilities - Financial liabilities",null,{"$f":"SUM(C147:C148)","v":0},0,0,0,0,0,0,0,0,0,0]
[]
[]
["Non current liabilities - Long Term  portion of trade payables",null,0,0,0,0,0,0,0,0,0,0,0]
["Elelctricty Bulk Purchases",null,null,null,null,null,null,null,null,0,0]
["Payables and Accruals - General",null,null,null,null,null,null,null,null,0,0]
["Water Bulk Purchases",null,null,null,null,null,null,null,null,0,0]
["Municipal Debt Relief",null,null,null,null,null,null,null,null,0,0]
[]
["Provisions - non current"]
["Retirement benefits",null,{"$f":"-SUMIFS(Sheet1!S71_OriginalBudget,Sheet1!S71_SA3Code,$AC:$AC)","v":22993070},{"$f":"-SUMIFS(Sheet1!S71_PreviousBudget,Sheet1!S71_SA3Code,$AC:$AC)","v":25769737},null,null,null,null,{"$f":"-SUMIFS(Sheet1!S71_CurrentAdjustments,Sheet1!S71_SA3Code,$AC:$AC)","v":0},{"$f":"SUM(E159:I159)","v":0},{"$f":"IF(D159=0,C159+J159,D159+J159)","v":25769737},{"$f":"-SUMIFS(Sheet1!S71_OY1AdjustedBudget,Sheet1!S71_SA3Code,$AC:$AC)","v":23455231},{"$f":"-SUMIFS(Sheet1!S71_OY2AdjustedBudget,Sheet1!S71_SA3Code,$AC:$AC)","v":23223001},null,null,null,null,null,null,null,null,null,null,null,null,null,null,null,"0411"]
[null,null,{"$f":"-SUMIFS(Sheet1!S71_OriginalBudget,Sheet1!S71_SA3Code,$AC:$AC)","v":0},{"$f":"-SUMIFS(Sheet1!S71_PreviousBudget,Sheet1!S71_SA3Code,$AC:$AC)","v":0},null,null,null,null,{"$f":"-SUMIFS(Sheet1!S71_CurrentAdjustments,Sheet1!S71_SA3Code,$AC:$AC)","v":0},null,null,{"$f":"SUMIFS(Sheet1!S71_OY1AdjustedBudget,Sheet1!S71_SA3Code,$AC:$AC)","v":0},{"$f":"SUMIFS(Sheet1!S71_OY2AdjustedBudget,Sheet1!S71_SA3Code,$AC:$AC)","v":0}]
["Refuse landfill site rehabilitation",null,{"$f":"-SUMIFS(Sheet1!S71_OriginalBudget,Sheet1!S71_SA3Code,$AC:$AC)","v":0},{"$f":"-SUMIFS(Sheet1!S71_PreviousBudget,Sheet1!S71_SA3Code,$AC:$AC)","v":0},null,null,null,null,{"$f":"-SUMIFS(Sheet1!S71_CurrentAdjustments,Sheet1!S71_SA3Code,$AC:$AC)","v":0},{"$f":"SUM(E161:I161)","v":0},{"$f":"IF(D161=0,C161+J161,D161+J161)","v":0},{"$f":"-SUMIFS(Sheet1!S71_OY1AdjustedBudget,Sheet1!S71_SA3Code,$AC:$AC)","v":0},{"$f":"-SUMIFS(Sheet1!S71_OY2AdjustedBudget,Sheet1!S71_SA3Code,$AC:$AC)","v":0},null,null,null,null,null,null,null,null,null,null,null,null,null,null,null,"0412"]
["Other",null,{"$f":"-SUMIFS(Sheet1!S71_OriginalBudget,Sheet1!S71_SA3Code,$AC:$AC)","v":0},{"$f":"-SUMIFS(Sheet1!S71_PreviousBudget,Sheet1!S71_SA3Code,$AC:$AC)","v":0},null,null,null,null,{"$f":"-SUMIFS(Sheet1!S71_CurrentAdjustments,Sheet1!S71_SA3Code,$AC:$AC)","v":0},{"$f":"SUM(E162:I162)","v":0},{"$f":"IF(D162=0,C162+J162,D162+J162)","v":0},{"$f":"-SUMIFS(Sheet1!S71_OY1AdjustedBudget,Sheet1!S71_SA3Code,$AC:$AC)","v":0},{"$f":"-SUMIFS(Sheet1!S71_OY2AdjustedBudget,Sheet1!S71_SA3Code,$AC:$AC)","v":0},null,null,null,null,null,null,null,null,null,null,null,null,null,null,null,"0413"]
["Total Provisions - non current",null,{"$f":"+C159+C161+C162","v":22993070},{"$f":"+D159+D161+D162","v":25769737},0,0,0,0,0,0,25769737,23455231,23223001]
[]
["CHANGES IN NET ASSETS"]
["Accumulated surplus/(Deficit)"]
[{"$f":"A166&\" - opening balance\"","v":"Accumulated surplus/(Deficit) - opening balance"},null,{"$f":"-SUMIFS(Sheet1!S71_OriginalBudget,Sheet1!S71_SA3Code,$AC:$AC)","v":808780057},{"$f":"-SUMIFS(Sheet1!S71_PreviousBudget,Sheet1!S71_SA3Code,$AC:$AC)","v":938977539},null,null,null,null,{"$f":"-SUMIFS(Sheet1!S71_CurrentAdjustments,Sheet1!S71_SA3Code,$AC:$AC)","v":0},{"$f":"SUM(E167:I167)","v":0},{"$f":"IF(D167=0,C167+J167,D167+J167)","v":938977539},{"$f":"-SUMIFS(Sheet1!S71_OY1AdjustedBudget,Sheet1!S71_SA3Code,$AC:$AC)","v":858373250},{"$f":"-SUMIFS(Sheet1!S71_OY2AdjustedBudget,Sheet1!S71_SA3Code,$AC:$AC)","v":859656242},null,null,null,null,null,null,null,null,null,null,null,null,null,null,null,"0461"]
["GRAP adjustments",null,{"$f":"-SUMIFS(Sheet1!S71_OriginalBudget,Sheet1!S71_SA3Code,$AC:$AC)","v":0},{"$f":"-SUMIFS(Sheet1!S71_PreviousBudget,Sheet1!S71_SA3Code,$AC:$AC)","v":0},null,null,null,null,{"$f":"-SUMIFS(Sheet1!S71_CurrentAdjustments,Sheet1!S71_SA3Code,$AC:$AC)","v":0},{"$f":"SUM(E168:I168)","v":0},{"$f":"IF(D168=0,C168+J168,D168+J168)","v":0},{"$f":"-SUMIFS(Sheet1!S71_OY1AdjustedBudget,Sheet1!S71_SA3Code,$AC:$AC)","v":0},{"$f":"-SUMIFS(Sheet1!S71_OY2AdjustedBudget,Sheet1!S71_SA3Code,$AC:$AC)","v":0},null,null,null,null,null,null,null,null,null,null,null,null,null,null,null,"0462"]
["Restated balance",null,{"$f":"+C167+C168","v":808780057},{"$f":"+D167+D168","v":938977539},0,0,0,0,0,0,938977539,858373250,859656242]
["Surplus/(Deficit)",null,{"$f":"-SUMIFS(Sheet1!S71_OriginalBudget,Sheet1!S71_SA3Code,$AC:$AC)+'B4-FinPerf RE'!C60","v":43244416},{"$f":"'B4-FinPerf RE'!D60","v":25588308},{"$f":"'B4-FinPerf RE'!E60","v":0},{"$f":"'B4-FinPerf RE'!F60","v":0},{"$f":"'B4-FinPerf RE'!G60","v":0},{"$f":"'B4-FinPerf RE'!H60","v":2283500},{"$f":"-SUMIFS(Sheet1!S71_CurrentAdjustments,Sheet1!S71_SA3Code,$AC:$AC)+'B4-FinPerf RE'!I60","v":0},{"$f":"'B4-FinPerf RE'!J60","v":2283500},{"$f":"'B4-FinPerf RE'!K60","v":27871808},{"$f":"-SUMIFS(Sheet1!S71_OY1AdjustedBudget,Sheet1!S71_SA3Code,$AC:$AC)+'B4-FinPerf RE'!L60","v":44553274},{"$f":"-SUMIFS(Sheet1!S71_OY2AdjustedBudget,Sheet1!S71_SA3Code,$AC:$AC)+'B4-FinPerf RE'!M60","v":47086759},null,null,null,null,null,null,null,null,null,null,null,null,null,null,null,"0464"]
[null,null,null,null,null,null,null,null,null,null,null,null,null,null,null,null,null,null,null,null,null,null,null,null,null,null,null,null,"0464"]
["Transfers to/from Reserves",null,{"$f":"-SUMIFS(Sheet1!S71_OriginalBudget,Sheet1!S71_SA3Code,$AC:$AC)","v":0},{"$f":"-SUMIFS(Sheet1!S71_PreviousBudget,Sheet1!S71_SA3Code,$AC:$AC)","v":0},null,null,null,null,{"$f":"-SUMIFS(Sheet1!S71_CurrentAdjustments,Sheet1!S71_SA3Code,$AC:$AC)","v":0},{"$f":"SUM(E172:I172)","v":0},{"$f":"IF(D172=0,C172+J172,D172+J172)","v":0},{"$f":"-SUMIFS(Sheet1!S71_OY1AdjustedBudget,Sheet1!S71_SA3Code,$AC:$AC)","v":0},{"$f":"-SUMIFS(Sheet1!S71_OY2AdjustedBudget,Sheet1!S71_SA3Code,$AC:$AC)","v":0},null,null,null,null,null,null,null,null,null,null,null,null,null,null,null,"0465"]
["Depreciation offsets",null,{"$f":"-SUMIFS(Sheet1!S71_OriginalBudget,Sheet1!S71_SA3Code,$AC:$AC)","v":0},{"$f":"-SUMIFS(Sheet1!S71_PreviousBudget,Sheet1!S71_SA3Code,$AC:$AC)","v":0},null,null,null,null,{"$f":"-SUMIFS(Sheet1!S71_CurrentAdjustments,Sheet1!S71_SA3Code,$AC:$AC)","v":0},{"$f":"SUM(E173:I173)","v":0},{"$f":"IF(D173=0,C173+J173,D173+J173)","v":0},{"$f":"-SUMIFS(Sheet1!S71_OY1AdjustedBudget,Sheet1!S71_SA3Code,$AC:$AC)","v":0},{"$f":"-SUMIFS(Sheet1!S71_OY2AdjustedBudget,Sheet1!S71_SA3Code,$AC:$AC)","v":0},null,null,null,null,null,null,null,null,null,null,null,null,null,null,null,"0466"]
["Other adjustments",null,{"$f":"-SUMIFS(Sheet1!S71_OriginalBudget,Sheet1!S71_SA3Code,$AC:$AC)","v":0},{"$f":"-SUMIFS(Sheet1!S71_PreviousBudget,Sheet1!S71_SA3Code,$AC:$AC)","v":0},null,null,null,null,{"$f":"-SUMIFS(Sheet1!S71_CurrentAdjustments,Sheet1!S71_SA3Code,$AC:$AC)","v":0},{"$f":"SUM(E174:I174)","v":0},{"$f":"IF(D174=0,C174+J174,D174+J174)","v":0},{"$f":"-SUMIFS(Sheet1!S71_OY1AdjustedBudget,Sheet1!S71_SA3Code,$AC:$AC)","v":0},{"$f":"-SUMIFS(Sheet1!S71_OY2AdjustedBudget,Sheet1!S71_SA3Code,$AC:$AC)","v":0},null,null,null,null,null,null,null,null,null,null,null,null,null,null,null,"0467"]
["Accumulated Surplus/(Deficit)",1,{"$f":"SUM(C169:C174)","v":852024473},964565847,0,0,0,2283500,0,2283500,966849347,902926524,906743001]
["Reserves"]
["Housing Development Fund",null,{"$f":"-SUMIFS(Sheet1!S71_OriginalBudget,Sheet1!S71_SA3Code,$AC:$AC)","v":2086090},{"$f":"-SUMIFS(Sheet1!S71_PreviousBudget,Sheet1!S71_SA3Code,$AC:$AC)","v":2133415},null,null,null,null,{"$f":"-SUMIFS(Sheet1!S71_CurrentAdjustments,Sheet1!S71_SA3Code,$AC:$AC)","v":0},{"$f":"SUM(E177:I177)","v":0},{"$f":"IF(D177=0,C177+J177,D177+J177)","v":2133415},{"$f":"-SUMIFS(Sheet1!S71_OY1AdjustedBudget,Sheet1!S71_SA3Code,$AC:$AC)","v":2248668},{"$f":"-SUMIFS(Sheet1!S71_OY2AdjustedBudget,Sheet1!S71_SA3Code,$AC:$AC)","v":2313130},null,null,null,null,null,null,null,null,null,null,null,null,null,null,null,"0471"]
["Capital replacement",null,{"$f":"-SUMIFS(Sheet1!S71_OriginalBudget,Sheet1!S71_SA3Code,$AC:$AC)","v":0},{"$f":"-SUMIFS(Sheet1!S71_PreviousBudget,Sheet1!S71_SA3Code,$AC:$AC)","v":0},null,null,null,null,{"$f":"-SUMIFS(Sheet1!S71_CurrentAdjustments,Sheet1!S71_SA3Code,$AC:$AC)","v":0},{"$f":"SUM(E178:I178)","v":0},{"$f":"IF(D178=0,C178+J178,D178+J178)","v":0},{"$f":"-SUMIFS(Sheet1!S71_OY1AdjustedBudget,Sheet1!S71_SA3Code,$AC:$AC)","v":0},{"$f":"-SUMIFS(Sheet1!S71_OY2AdjustedBudget,Sheet1!S71_SA3Code,$AC:$AC)","v":0},null,null,null,null,null,null,null,null,null,null,null,null,null,null,null,"0472"]
["Self-insurance",null,{"$f":"-SUMIFS(Sheet1!S71_OriginalBudget,Sheet1!S71_SA3Code,$AC:$AC)","v":0},{"$f":"-SUMIFS(Sheet1!S71_PreviousBudget,Sheet1!S71_SA3Code,$AC:$AC)","v":0},null,null,null,null,{"$f":"-SUMIFS(Sheet1!S71_CurrentAdjustments,Sheet1!S71_SA3Code,$AC:$AC)","v":0},{"$f":"SUM(E179:I179)","v":0},{"$f":"IF(D179=0,C179+J179,D179+J179)","v":0},{"$f":"-SUMIFS(Sheet1!S71_OY1AdjustedBudget,Sheet1!S71_SA3Code,$AC:$AC)","v":0},{"$f":"-SUMIFS(Sheet1!S71_OY2AdjustedBudget,Sheet1!S71_SA3Code,$AC:$AC)","v":0},null,null,null,null,null,null,null,null,null,null,null,null,null,null,null,"0473"]
["Other reserves",null,{"$f":"-SUMIFS(Sheet1!S71_OriginalBudget,Sheet1!S71_SA3Code,$AC:$AC)","v":0},{"$f":"-SUMIFS(Sheet1!S71_PreviousBudget,Sheet1!S71_SA3Code,$AC:$AC)","v":0},null,null,null,null,{"$f":"-SUMIFS(Sheet1!S71_CurrentAdjustments,Sheet1!S71_SA3Code,$AC:$AC)","v":0},{"$f":"SUM(E180:I180)","v":0},{"$f":"IF(D180=0,C180+J180,D180+J180)","v":0},{"$f":"-SUMIFS(Sheet1!S71_OY1AdjustedBudget,Sheet1!S71_SA3Code,$AC:$AC)","v":0},{"$f":"-SUMIFS(Sheet1!S71_OY2AdjustedBudget,Sheet1!S71_SA3Code,$AC:$AC)","v":0},null,null,null,null,null,null,null,null,null,null,null,null,null,null,null,"0474"]
["Revaluation",null,{"$f":"-SUMIFS(Sheet1!S71_OriginalBudget,Sheet1!S71_SA3Code,$AC:$AC)","v":0},{"$f":"-SUMIFS(Sheet1!S71_PreviousBudget,Sheet1!S71_SA3Code,$AC:$AC)","v":0},null,null,null,null,{"$f":"-SUMIFS(Sheet1!S71_CurrentAdjustments,Sheet1!S71_SA3Code,$AC:$AC)","v":0},{"$f":"SUM(E181:I181)","v":0},{"$f":"IF(D181=0,C181+J181,D181+J181)","v":0},{"$f":"-SUMIFS(Sheet1!S71_OY1AdjustedBudget,Sheet1!S71_SA3Code,$AC:$AC)","v":0},{"$f":"-SUMIFS(Sheet1!S71_OY2AdjustedBudget,Sheet1!S71_SA3Code,$AC:$AC)","v":0},null,null,null,null,null,null,null,null,null,null,null,null,null,null,null,"0475"]
["Total Reserves",2,{"$f":"SUM(C177:C181)","v":2086090},2133415,0,0,0,0,0,0,2133415,2248668,2313130]
["TOTAL COMMUNITY WEALTH/EQUITY",2,{"$f":"C175+C182","v":854110563},966699262,0,0,0,2283500,0,2283500,968982762,905175192,909056131]
[{"$f":"head27a","v":"References"}]
["1. Must reconcile with 'Financial Position' budget"]
["2. Leases treated as assets to be depreciated as the same as purchased/constructed assets.  Includes PPP asset element accounted for as finance leases"]
["3. Borrowing (original budget) must reconcile to Budget Table A16"]
["4. Only complete if a previous adjusted budget has been approved in the same financial year. Reflect most recent adjusted budget. Column D should be a complete Adjustment Budget which indicates that if some figures were not adjusted the original budget should then be used"]
["5. Additional cash-backed accumulated funds/unspent funds (section 18(1)(b) and section 28(2)(e) MFMA) identified after Original Budget approved and after annual financial statements audited (note: only where underspending could not reasonably be have for"]
["6. Increases of funds approved under section 31 MFMA"]
["7. Adjustments approved in accordance with section 29 MFMA"]
["8. Adjustments to funding allocations from National or Provincial Government"]
["9. Adjusts. = 'Other' Adjustments proposed to be approved; including revenue under-collection (MFMA section 28(2)(a)); additional revenue appropriation on existing programmes (section 28(2))(b); projected savings (section 28(2)(d)); error correction (sect"]
["10. G = B + C + D + E + F"]
["11. Adjusted Budget H = (A or A1) + G"]
["check",null,{"$f":"C183-'B6-FinPos'!C56","v":0},null,null,null,null,null,null,null,null,null,{"$f":"K183-'B6-FinPos'!K56","v":0}]
["12. Inventory Consumed - Water - included under \"Other materials & inventory \" on Table B4 - Detail to be submitted on Table SB1"]
["13. Inventry Consumed Other materials - included under \"Other materials & inventory \" on Table B4 - Detail to be submitted on Table SB1"]
["14. Inventory Transfers/Adjustments (Include under gains/losses on Table A4) - Note that the amount could be positive or negative - please capture according to the sign"]
["15. Inventory Write-offs (Include under losses on Table A4) -  capture Cr amounts"]

{"sheet":"SB3","index":39,"n_rows":75,"n_cols":13,"rows_kept":75,"cut":false,"hidden":false,"merged":[[74,0,74,12],[69,0,69,12],[1,0,3,0],[1,1,3,1],[1,2,1,10],[73,0,73,12]]}
[{"$f":"muni&\" - \"&ADJB3&\" - \"&Date","v":"KZN291 Mandeni - Supporting Table SB3 Adjustments to the SDBIP - performance objectives - 08-04-2025"}]
[{"$f":"desc","v":"Description"},"Unit of measurement",{"$f":"Head2","v":"Budget Year 2024/25"},null,null,null,null,null,null,null,null,{"$f":"Head10","v":"Budget Year +1 2025/26"},{"$f":"Head11","v":"Budget Year +2 2026/27"}]
[null,null,{"$f":"Head6","v":"Original Budget"},{"$f":"Head54","v":"Prior Adjusted"},{"$f":"Head51","v":"Accum. Funds"},{"$f":"Head52","v":"Multi-year capital"},{"$f":"Head53","v":"Unfore. Unavoid."},{"$f":"Head55","v":"Nat. or Prov. Govt"},{"$f":"Head50","v":"Other Adjusts."},{"$f":"Head56","v":"Total Adjusts."},{"$f":"Head7","v":"Adjusted Budget"},{"$f":"Head7","v":"Adjusted Budget"},{"$f":"Head7","v":"Adjusted Budget"}]
[null,null,"A","A1","B","C","D","E","F","G","H"]
["Vote 1 - Roads & Stormwater"]
["Function 1 - Roads"]
["Sub-function 1 - Eradication of backlogs"]
["Reduce road backlogs","kilometres",null,140,130,130,130,125,136,136,136,{"$f":"IF(E8=0,D8+K8,E8+K8)","v":266},{"$f":"IF(F8=0,E8+L8,F8+L8)","v":396}]
["New Roads to be constructed","kilometres",null,95,105,105,105,100,150,150,150]
["rural gravel roads repaired and maintained","kilometres",null,239,250,250,250,275,295,295,295]
[null,null,null,null,null,null,null,null,null,null,null,{"$f":"IF(E11=0,D11+K11,E11+K11)","v":0},{"$f":"IF(F11=0,E11+L11,F11+L11)","v":0}]
[]
["Sub-function 2 - Roads Maintained"]
["Surfaced Roads resurfaced /rehabilitated","kilometres",null,70,98,98,98,85,86,86,86]
[null,null,null,null,null,null,null,null,null,null,null,{"$f":"IF(E15=0,D15+K15,E15+K15)","v":0},{"$f":"IF(F15=0,E15+L15,F15+L15)","v":0}]
["Sub-function 3 - Roads for Growth"]
["Stormwater","kilometres",null,45,75,75,75,95,98.8,102.9496,107.47938240000001]
[]
["Function 2 - Energy & Electricity",null,null,null,null,null,null,null,null,null,null,{"$f":"IF(E19=0,D19+K19,E19+K19)","v":0},{"$f":"IF(F19=0,E19+L19,F19+L19)","v":0}]
["Sub-function 1 - Electricity"]
["households to be provided with electrification infrastructure (Dry Connections) and ready for connection by 30 June 2020","number of houses",null,298,278,278,278,250,260,270.92,282.84048000000001,{"$f":"IF(E21=0,D21+K21,E21+K21)","v":560.84048000000007},{"$f":"IF(F21=0,E21+L21,F21+L21)","v":838.84048000000007}]
["Installation of 200 new streetlights in various wards within Mandeni by 30 June 2020","number of streetlights",null,150,180,180,180,120,124.80000000000001,130.04160000000002,135.76343040000003]
["Sub-function 2 - New Connections",null,null,null,null,null,null,null,null,null,null,{"$f":"IF(E23=0,D23+K23,E23+K23)","v":0},{"$f":"IF(F23=0,E23+L23,F23+L23)","v":0}]
["Completed and occupied households electrified","number of houses",null,550,450,450,450,350,364,379.28800000000001,395.97667200000001]
[null,null,null,null,null,null,null,null,null,null,null,{"$f":"IF(E25=0,D25+K25,E25+K25)","v":0},{"$f":"IF(F25=0,E25+L25,F25+L25)","v":0}]
["Sub-function 3 - Maintan Electricity Infrastructure"]
["Electrcity & repairs Maintanance ","percentage",null,45,55,55,55,55,57.2,59.602400000000003,62.224905600000007]
[]
["Insert measure/s description",null,null,null,null,null,null,null,null,null,null,{"$f":"IF(E29=0,D29+K29,E29+K29)","v":0},{"$f":"IF(F29=0,E29+L29,F29+L29)","v":0}]
[]
["Sub-function 2 - (name)",null,null,null,null,null,null,null,null,null,null,{"$f":"IF(E31=0,D31+K31,E31+K31)","v":0},{"$f":"IF(F31=0,E31+L31,F31+L31)","v":0}]
["Insert measure/s description"]
[null,null,null,null,null,null,null,null,null,null,null,{"$f":"IF(E33=0,D33+K33,E33+K33)","v":0},{"$f":"IF(F33=0,E33+L33,F33+L33)","v":0}]
["Sub-function 3 - (name)"]
["Insert measure/s description",null,null,null,null,null,null,null,null,null,null,{"$f":"IF(E35=0,D35+K35,E35+K35)","v":0},{"$f":"IF(F35=0,E35+L35,F35+L35)","v":0}]
[]
["Function 2 - (name)"]
["Sub-function 1 - (name)",null,null,null,null,null,null,null,null,null,null,{"$f":"IF(E38=0,D38+K38,E38+K38)","v":0},{"$f":"IF(F38=0,E38+L38,F38+L38)","v":0}]
["Insert measure/s description"]
[null,null,null,null,null,null,null,null,null,null,null,{"$f":"IF(E40=0,D40+K40,E40+K40)","v":0},{"$f":"IF(F40=0,E40+L40,F40+L40)","v":0}]
["Sub-function 2 - (name)"]
["Insert measure/s description",null,null,null,null,null,null,null,null,null,null,{"$f":"IF(E42=0,D42+K42,E42+K42)","v":0},{"$f":"IF(F42=0,E42+L42,F42+L42)","v":0}]
[]
["Sub-function 3 - (name)"]
["Insert measure/s description"]
[null,null,null,null,null,null,null,null,null,null,null,{"$f":"IF(E46=0,D46+K46,E46+K46)","v":0},{"$f":"IF(F46=0,E46+L46,F46+L46)","v":0}]
["Vote 3 - vote name"]
["Function 1 - (name)",null,null,null,null,null,null,null,null,null,null,{"$f":"IF(E48=0,D48+K48,E48+K48)","v":0},{"$f":"IF(F48=0,E48+L48,F48+L48)","v":0}]
["Sub-function 1 - (name)"]
["Insert measure/s description"]
[null,null,null,null,null,null,null,null,null,null,null,{"$f":"IF(E51=0,D51+K51,E51+K51)","v":0},{"$f":"IF(F51=0,E51+L51,F51+L51)","v":0}]
["Sub-function 2 - (name)"]
["Insert measure/s description",null,null,null,null,null,null,null,null,null,null,{"$f":"IF(E53=0,D53+K53,E53+K53)","v":0},{"$f":"IF(F53=0,E53+L53,F53+L53)","v":0}]
[]
["Sub-function 3 - (name)",null,null,null,null,null,null,null,null,null,null,{"$f":"IF(E55=0,D55+K55,E55+K55)","v":0},{"$f":"IF(F55=0,E55+L55,F55+L55)","v":0}]
["Insert measure/s description"]
[]
["Function 2 - (name)",null,null,null,null,null,null,null,null,null,null,{"$f":"IF(E58=0,D58+K58,E58+K58)","v":0},{"$f":"IF(F58=0,E58+L58,F58+L58)","v":0}]
["Sub-function 1 - (name)"]
["Insert measure/s description",null,null,null,null,null,null,null,null,null,null,{"$f":"IF(E60=0,D60+K60,E60+K60)","v":0},{"$f":"IF(F60=0,E60+L60,F60+L60)","v":0}]
[]
["Sub-function 2 - (name)",null,null,null,null,null,null,null,null,null,null,{"$f":"IF(E62=0,D62+K62,E62+K62)","v":0},{"$f":"IF(F62=0,E62+L62,F62+L62)","v":0}]
["Insert measure/s description"]
[null,null,null,null,null,null,null,null,null,null,null,{"$f":"IF(E64=0,D64+K64,E64+K64)","v":0},{"$f":"IF(F64=0,E64+L64,F64+L64)","v":0}]
["Sub-function 3 - (name)"]
["Insert measure/s description",null,null,null,null,null,null,null,null,null,null,{"$f":"IF(E66=0,D66+K66,E66+K66)","v":0},{"$f":"IF(F66=0,E66+L66,F66+L66)","v":0}]
[]
["And so on for the rest of the Votes",null,null,null,null,null,null,null,null,null,null,{"$f":"IF(E68=0,D68+K68,E68+K68)","v":0},{"$f":"IF(F68=0,E68+L68,F68+L68)","v":0}]
[{"$f":"head27a","v":"References"}]
["1. Include a measurable performance objective for each revenue source (within a relevant function) and each vote (MFMA s17(3)(b))"]
["2. Include the estimated effect on the target of each component of an adjustment budget (B to G)"]
["3. Include all Basic Services performance targets from Table A10 to ensure Table SA7 represents all strategic responsibilities"]
["4. Total target adjustments G = B + C + D + E + F"]
["5. Adjusted Budget H = (A or A1) + G"]
["6. NOTE - include adjustsment by 'exception' (only where amended)"]

{"sheet":"SB4","index":40,"n_rows":53,"n_cols":11,"rows_kept":53,"cut":false,"hidden":false,"merged":[[32,0,34,0],[1,0,2,0],[1,1,2,1],[1,5,1,7],[25,0,27,0],[29,0,31,0]]}
[{"$f":"muni&\" - \"&ADJB4&\" - \"&Date","v":"KZN291 Mandeni - Supporting Table SB4 Adjustments to budgeted performance indicators and benchmarks - 08-04-2025"}]
[{"$f":"desc&\" of financial indicator\"","v":"Description of financial indicator"},"Basis of calculation",{"$f":"Head1B","v":"2021/22"},{"$f":"Head1A","v":"2022/23"},{"$f":"Head1","v":"2023/24"},{"$f":"Head2","v":"Budget Year 2024/25"},null,null,{"$f":"Head10","v":"Budget Year +1 2025/26"},{"$f":"Head11","v":"Budget Year +2 2026/27"}]
[null,null,{"$f":"Head5","v":"Audited Outcome"},{"$f":"Head5","v":"Audited Outcome"},{"$f":"Head5","v":"Audited Outcome"},{"$f":"Head6","v":"Original Budget"},{"$f":"Head54","v":"Prior Adjusted"},{"$f":"Head7","v":"Adjusted Budget"},{"$f":"Head7","v":"Adjusted Budget"},{"$f":"Head7","v":"Adjusted Budget"}]
["Borrowing Management"]
[]
["Credit Rating","Short term/long term rating"]
["Capital Charges to Operating Expenditure","Interest & Principal Paid /Operating Expenditure",null,null,null,{"$f":"IF(ISERROR(('B4-FinPerf RE'!C41-'B7-CFlow'!C36)/'B4-FinPerf RE'!C50),0,(('B4-FinPerf RE'!C41-'B7-CFlow'!C36)/'B4-FinPerf RE'!C50))","v":6.8214035097226483E-2},{"$f":"IF(ISERROR(('B4-FinPerf RE'!D41-'B7-CFlow'!D36)/'B4-FinPerf RE'!D50),0,(('B4-FinPerf RE'!D41-'B7-CFlow'!D36)/'B4-FinPerf RE'!D50))","v":6.4602120393691426E-2},{"$f":"IF(ISERROR(('B4-FinPerf RE'!K41-'B7-CFlow'!K36)/'B4-FinPerf RE'!K50),0,(('B4-FinPerf RE'!K41-'B7-CFlow'!K36)/'B4-FinPerf RE'!K50))","v":6.5542276406467093E-2},{"$f":"IF(ISERROR(('B4-FinPerf RE'!L41-'B7-CFlow'!L36)/'B4-FinPerf RE'!L50),0,(('B4-FinPerf RE'!L41-'B7-CFlow'!L36)/'B4-FinPerf RE'!L50))","v":6.7796196077285029E-2},{"$f":"IF(ISERROR(('B4-FinPerf RE'!M41-'B7-CFlow'!M36)/'B4-FinPerf RE'!M50),0,(('B4-FinPerf RE'!M41-'B7-CFlow'!M36)/'B4-FinPerf RE'!M50))","v":6.6181097178954928E-2}]
["Capital Charges to Own Revenue","Finance charges & Repayment of borrowing /Own Revenue",null,null,null,{"$f":"IF(ISERROR(('B4-FinPerf RE'!C42-'B7-CFlow'!C37)/'B4-FinPerf RE'!C51),0,(('B4-FinPerf RE'!C42-'B7-CFlow'!C37)/'B4-FinPerf RE'!C51))","v":0},{"$f":"IF(ISERROR(('B4-FinPerf RE'!D42-'B7-CFlow'!D37)/'B4-FinPerf RE'!D51),0,(('B4-FinPerf RE'!D42-'B7-CFlow'!D37)/'B4-FinPerf RE'!D51))","v":0},{"$f":"IF(ISERROR(('B4-FinPerf RE'!K42-'B7-CFlow'!K37)/'B4-FinPerf RE'!K51),0,(('B4-FinPerf RE'!K42-'B7-CFlow'!K37)/'B4-FinPerf RE'!K51))","v":0},{"$f":"IF(ISERROR(('B4-FinPerf RE'!L42-'B7-CFlow'!L37)/'B4-FinPerf RE'!L51),0,(('B4-FinPerf RE'!L42-'B7-CFlow'!L37)/'B4-FinPerf RE'!L51))","v":0},{"$f":"IF(ISERROR(('B4-FinPerf RE'!M42-'B7-CFlow'!M37)/'B4-FinPerf RE'!M51),0,(('B4-FinPerf RE'!M42-'B7-CFlow'!M37)/'B4-FinPerf RE'!M51))","v":0}]
["Borrowed funding of 'own' capital expenditure","Borrowing/Capital expenditure excl. transfers and grants",null,null,null,{"$f":"IF(ISERROR('B5-Capex'!C74/('B5-Capex'!C65-'B5-Capex'!C72)),0,('B5-Capex'!C74/('B5-Capex'!C65-'B5-Capex'!C72)))","v":0},{"$f":"IF(ISERROR('B5-Capex'!D74/('B5-Capex'!D65-'B5-Capex'!D72)),0,('B5-Capex'!D74/('B5-Capex'!D65-'B5-Capex'!D72)))","v":0},{"$f":"IF(ISERROR('B5-Capex'!K74/('B5-Capex'!K65-'B5-Capex'!L72)),0,('B5-Capex'!K74/('B5-Capex'!K65-'B5-Capex'!L72)))","v":0},{"$f":"IF(ISERROR('B5-Capex'!L74/('B5-Capex'!L65-'B5-Capex'!M72)),0,('B5-Capex'!L74/('B5-Capex'!L65-'B5-Capex'!M72)))","v":0},{"$f":"IF(ISERROR('B5-Capex'!M74/('B5-Capex'!M65-'B5-Capex'!N72)),0,('B5-Capex'!M74/('B5-Capex'!M65-'B5-Capex'!N72)))","v":0}]
["Safety of Capital"]
["Gearing","Long Term Borrowing/ Funds & Reserves",null,null,null,{"$f":"IF(ISERROR('B6-FinPos'!C43/'B6-FinPos'!C54),0,('B6-FinPos'!C43/'B6-FinPos'!C54))","v":0},{"$f":"IF(ISERROR('B6-FinPos'!D43/'B6-FinPos'!D54),0,('B6-FinPos'!D43/'B6-FinPos'!D54))","v":0},{"$f":"IF(ISERROR('B6-FinPos'!K43/'B6-FinPos'!K54),0,('B6-FinPos'!K43/'B6-FinPos'!K54))","v":0},{"$f":"IF(ISERROR('B6-FinPos'!L43/'B6-FinPos'!L54),0,('B6-FinPos'!L43/'B6-FinPos'!L54))","v":0},{"$f":"IF(ISERROR('B6-FinPos'!M43/'B6-FinPos'!M54),0,('B6-FinPos'!M43/'B6-FinPos'!M54))","v":0}]
["Liquidity"]
["Current Ratio","Current assets/current liabilities",null,null,null,{"$f":"IF(ISERROR('B6-FinPos'!C15/'B6-FinPos'!C40),0,('B6-FinPos'!C15/'B6-FinPos'!C40))","v":4.3623817377215595},{"$f":"IF(ISERROR('B6-FinPos'!D15/'B6-FinPos'!D40),0,('B6-FinPos'!D15/'B6-FinPos'!D40))","v":3.181339877612599},{"$f":"IF(ISERROR('B6-FinPos'!K15/'B6-FinPos'!K40),0,('B6-FinPos'!K15/'B6-FinPos'!K40))","v":3.1368775244246434},{"$f":"IF(ISERROR('B6-FinPos'!L15/'B6-FinPos'!L40),0,('B6-FinPos'!L15/'B6-FinPos'!L40))","v":5.9102703235403151},{"$f":"IF(ISERROR('B6-FinPos'!M15/'B6-FinPos'!M40),0,('B6-FinPos'!M15/'B6-FinPos'!M40))","v":6.1329238518398421}]
["Current Ratio adjusted for aged debtors","Current assets/current liabilities less debtors > 90 days/current liabilities",null,null,null,{"$f":"IF(ISERROR(('B6-FinPos'!C15-'SB4'!F48)/'B6-FinPos'!C40),0,(('B6-FinPos'!C15-'SB4'!F48)/'B6-FinPos'!C40))","v":4.3623817377215595},{"$f":"IF(ISERROR(('B6-FinPos'!D15-'SB4'!G48)/'B6-FinPos'!D40),0,(('B6-FinPos'!D15-'SB4'!G48)/'B6-FinPos'!D40))","v":3.181339877612599},{"$f":"IF(ISERROR(('B6-FinPos'!E15-'SB4'!H48)/'B6-FinPos'!E40),0,(('B6-FinPos'!E15-'SB4'!H48)/'B6-FinPos'!E40))","v":0},{"$f":"IF(ISERROR(('B6-FinPos'!F15-'SB4'!I48)/'B6-FinPos'!F40),0,(('B6-FinPos'!F15-'SB4'!I48)/'B6-FinPos'!F40))","v":0},{"$f":"IF(ISERROR(('B6-FinPos'!G15-'SB4'!J48)/'B6-FinPos'!G40),0,(('B6-FinPos'!G15-'SB4'!J48)/'B6-FinPos'!G40))","v":0}]
["Liquidity Ratio","Monetary Assets/Current Liabilities",null,null,null,{"$f":"IF(ISERROR(('B6-FinPos'!C8+'B6-FinPos'!C10)/'B6-FinPos'!C40),0,(('B6-FinPos'!C8+'B6-FinPos'!C10)/'B6-FinPos'!C40))","v":2.0849074366255964},{"$f":"IF(ISERROR(('B6-FinPos'!D8+'B6-FinPos'!D10)/'B6-FinPos'!D40),0,(('B6-FinPos'!D8+'B6-FinPos'!D10)/'B6-FinPos'!D40))","v":1.7863552713941984},{"$f":"IF(ISERROR(('B6-FinPos'!K8+'B6-FinPos'!K10)/'B6-FinPos'!K40),0,(('B6-FinPos'!K8+'B6-FinPos'!K10)/'B6-FinPos'!K40))","v":1.7807991969108212},{"$f":"IF(ISERROR(('B6-FinPos'!L8+'B6-FinPos'!L10)/'B6-FinPos'!L40),0,(('B6-FinPos'!L8+'B6-FinPos'!L10)/'B6-FinPos'!L40))","v":3.3125619953623242},{"$f":"IF(ISERROR(('B6-FinPos'!M8+'B6-FinPos'!M10)/'B6-FinPos'!M40),0,(('B6-FinPos'!M8+'B6-FinPos'!M10)/'B6-FinPos'!M40))","v":3.8610351758454842},"?"]
["Revenue Management"]
["Annual Debtors Collection Rate (Payment Level %)","Last 12 Mths Receipts/ Last 12 Mths Billing"]
["Current Debtors Collection Rate (Cash receipts % of Ratepayer & Other revenue)"]
["Outstanding Debtors to Revenue","Total Outstanding Debtors to Annual Revenue",null,null,null,{"$f":"IF(ISERROR((SUM('B6-FinPos'!C9:C13)+'B6-FinPos'!C18)/'B4-FinPerf RE'!C34),0,((SUM('B6-FinPos'!C9:C13)+'B6-FinPos'!C18)/'B4-FinPerf RE'!C34))","v":0.49698885606738535},{"$f":"IF(ISERROR((SUM('B6-FinPos'!D9:D13)+'B6-FinPos'!D18)/'B4-FinPerf RE'!D34),0,((SUM('B6-FinPos'!D9:D13)+'B6-FinPos'!D18)/'B4-FinPerf RE'!D34))","v":0.48423012973877305},{"$f":"IF(ISERROR((SUM('B6-FinPos'!K9:K13)+'B6-FinPos'!K18)/'B4-FinPerf RE'!K34),0,((SUM('B6-FinPos'!K9:K13)+'B6-FinPos'!K18)/'B4-FinPerf RE'!K34))","v":0.48998273854264029},{"$f":"IF(ISERROR((SUM('B6-FinPos'!L9:L13)+'B6-FinPos'!L18)/'B4-FinPerf RE'!L34),0,((SUM('B6-FinPos'!L9:L13)+'B6-FinPos'!L18)/'B4-FinPerf RE'!L34))","v":0.48021659922798088},{"$f":"IF(ISERROR((SUM('B6-FinPos'!M9:M13)+'B6-FinPos'!M18)/'B4-FinPerf RE'!M34),0,((SUM('B6-FinPos'!M9:M13)+'B6-FinPos'!M18)/'B4-FinPerf RE'!M34))","v":0.47567071719756593}]
["Longstanding Debtors Recovered","Debtors > 12 Mths Recovered/Total Debtors > 12 Months Old",null,null,null,{"$f":"IF(ISERROR(F49/'B6-FinPos'!C18),0,(F49/'B6-FinPos'!C18))","v":0},{"$f":"IF(ISERROR(G49/'B6-FinPos'!D18),0,(G49/'B6-FinPos'!D18))","v":0},{"$f":"IF(ISERROR(H49/'B6-FinPos'!K18),0,(H49/'B6-FinPos'!K18))","v":0},{"$f":"IF(ISERROR(I49/'B6-FinPos'!L18),0,(I49/'B6-FinPos'!L18))","v":0},{"$f":"IF(ISERROR(J49/'B6-FinPos'!M18),0,(J49/'B6-FinPos'!M18))","v":0}]
["Creditors Management"]
["Creditors System Efficiency","% of Creditors Paid Within Terms (within MFMA s 65(e))"]
["Creditors to Cash and Investments",null,null,null,null,{"$f":"IF(ISERROR('SB2'!C145/'B7-CFlow'!C41), 0, ('SB2'!C145/'B7-CFlow'!C41))","v":0.55928541815197674},{"$f":"IF(ISERROR('SB2'!D145/'B7-CFlow'!D41), 0, ('SB2'!D145/'B7-CFlow'!D41))","v":0.81253129190701601},{"$f":"IF(ISERROR('SB2'!K145/'B7-CFlow'!K41), 0, ('SB2'!K145/'B7-CFlow'!K41))","v":0.80765095286438671},{"$f":"IF(ISERROR('SB2'!L145/'B7-CFlow'!L41), 0, ('SB2'!L145/'B7-CFlow'!L41))","v":0.33715113613494968},{"$f":"IF(ISERROR('SB2'!M145/'B7-CFlow'!M41), 0, ('SB2'!M145/'B7-CFlow'!M41))","v":0.29987768995363023}]
[]
["Other Indicators"]
["Electricity Distribution Losses (2)","Total Volume Losses (kW)"]
[null,"Total Volume Losses (kW) non technical"]
[null,"Total Cost of Losses (Rand '000)"]
[null,"% Volume (units purchased and generated less units sold)/units purchased and generated"]
["Water Volumes :System input","Bulk Purchase"]
[null,"Water treatment works"]
[null,"Natural sources"]
["Water Distribution Losses (2)","Total Volume Losses (kℓ)"]
[null,"Total Cost of Losses (Rand '000)"]
[null,"% Volume (units purchased and generated less units sold)/units purchased and generated"]
["Employee costs","Employee costs/(Total Revenue - capital revenue)",null,null,null,{"$f":"IF(ISERROR('B4-FinPerf RE'!C37/'B4-FinPerf RE'!C34),0,('B4-FinPerf RE'!C37/'B4-FinPerf RE'!C34))","v":0.34118195399793255},{"$f":"IF(ISERROR('B4-FinPerf RE'!D37/'B4-FinPerf RE'!D34),0,('B4-FinPerf RE'!D37/'B4-FinPerf RE'!D34))","v":0.33983736975284984},{"$f":"IF(ISERROR('B4-FinPerf RE'!K37/'B4-FinPerf RE'!K34),0,('B4-FinPerf RE'!K37/'B4-FinPerf RE'!K34))","v":0.34500170195487151},{"$f":"IF(ISERROR('B4-FinPerf RE'!L37/'B4-FinPerf RE'!L34),0,('B4-FinPerf RE'!L37/'B4-FinPerf RE'!L34))","v":0.33911817896868435},{"$f":"IF(ISERROR('B4-FinPerf RE'!M37/'B4-FinPerf RE'!M34),0,('B4-FinPerf RE'!M37/'B4-FinPerf RE'!M34))","v":0.33451670335237044}]
["Remuneration","Total remuneration/(Total Revenue - capital revenue)"]
["Repairs & Maintenance","R&M/(Total Revenue excluding capital revenue)",null,null,null,{"$f":"IF(ISERROR('B9-Asset'!C184/'B4-FinPerf RE'!C34),0,('B9-Asset'!C184/'B4-FinPerf RE'!C34))","v":6.1167008633767755E-2},{"$f":"IF(ISERROR('B9-Asset'!D184/'B4-FinPerf RE'!D34),0,('B9-Asset'!D184/'B4-FinPerf RE'!D34))","v":6.5042563795054256E-2},{"$f":"IF(ISERROR('B9-Asset'!K184/'B4-FinPerf RE'!K34),0,('B9-Asset'!K184/'B4-FinPerf RE'!K34))","v":6.6030981893255569E-2},{"$f":"IF(ISERROR('B9-Asset'!L184/'B4-FinPerf RE'!L34),0,('B9-Asset'!L184/'B4-FinPerf RE'!L34))","v":6.2136289470509781E-2},{"$f":"IF(ISERROR('B9-Asset'!M184/'B4-FinPerf RE'!M34),0,('B9-Asset'!M184/'B4-FinPerf RE'!M34))","v":6.3667208149303003E-2}]
["Finance charges & Depreciation","FC&D/(Total Revenue - capital revenue)",null,null,null,{"$f":"IF(ISERROR(('B4-FinPerf RE'!C40+'B4-FinPerf RE'!C41)/'B4-FinPerf RE'!C34),0,(('B4-FinPerf RE'!C40+'B4-FinPerf RE'!C41)/'B4-FinPerf RE'!C34))","v":7.9130125983259331E-2},{"$f":"IF(ISERROR(('B4-FinPerf RE'!D40+'B4-FinPerf RE'!D41)/'B4-FinPerf RE'!D34),0,(('B4-FinPerf RE'!D40+'B4-FinPerf RE'!D41)/'B4-FinPerf RE'!D34))","v":7.9967765420576098E-2},{"$f":"IF(ISERROR(('B4-FinPerf RE'!K40+'B4-FinPerf RE'!K41)/'B4-FinPerf RE'!K34),0,(('B4-FinPerf RE'!K40+'B4-FinPerf RE'!K41)/'B4-FinPerf RE'!K34))","v":8.1182994064752406E-2},{"$f":"IF(ISERROR(('B4-FinPerf RE'!L40+'B4-FinPerf RE'!L41)/'B4-FinPerf RE'!L34),0,(('B4-FinPerf RE'!L40+'B4-FinPerf RE'!L41)/'B4-FinPerf RE'!L34))","v":7.7963717290512796E-2},{"$f":"IF(ISERROR(('B4-FinPerf RE'!M40+'B4-FinPerf RE'!M41)/'B4-FinPerf RE'!M34),0,(('B4-FinPerf RE'!M40+'B4-FinPerf RE'!M41)/'B4-FinPerf RE'!M34))","v":7.683059753228455E-2}]
["IDP regulation financial viability indicators"]
["i. Debt coverage","(Total Operating Revenue - Operating Grants)/Debt service payments due within financial year)",null,null,null,{"$f":"IF(ISERROR(('B4-FinPerf RE'!C34-'B4-FinPerf RE'!C32)/('B4-FinPerf RE'!L41-'B7-CFlow'!L36)),0,(('B4-FinPerf RE'!C34-'B4-FinPerf RE'!C32)/('B4-FinPerf RE'!L41-'B7-CFlow'!L36)))","v":14.67660764145184},{"$f":"IF(ISERROR(('B4-FinPerf RE'!D34-'B4-FinPerf RE'!D32)/('B4-FinPerf RE'!L41-'B7-CFlow'!L36)),0,(('B4-FinPerf RE'!D34-'B4-FinPerf RE'!D32)/('B4-FinPerf RE'!L41-'B7-CFlow'!L36)))","v":14.734677176388066},{"$f":"IF(ISERROR(('B4-FinPerf RE'!K34-'B4-FinPerf RE'!K32)/('B4-FinPerf RE'!L41-'B7-CFlow'!L36)),0,(('B4-FinPerf RE'!K34-'B4-FinPerf RE'!K32)/('B4-FinPerf RE'!L41-'B7-CFlow'!L36)))","v":14.514113720042078},{"$f":"IF(ISERROR(('B4-FinPerf RE'!L34-'B4-FinPerf RE'!L32)/('B4-FinPerf RE'!M41-'B7-CFlow'!M36)),0,(('B4-FinPerf RE'!L34-'B4-FinPerf RE'!L32)/('B4-FinPerf RE'!M41-'B7-CFlow'!M36)))","v":14.895156199112089},{"$f":"IF(ISERROR(('B4-FinPerf RE'!M34-'B4-FinPerf RE'!M32)/('B4-FinPerf RE'!M41-'B7-CFlow'!M36)),0,(('B4-FinPerf RE'!M34-'B4-FinPerf RE'!M32)/('B4-FinPerf RE'!M41-'B7-CFlow'!M36)))","v":15.205691825063518}]
["ii. O/S Service Debtors to Revenue","Total outstanding service debtors/annual revenue received for services",null,null,null,{"$f":"IF(ISERROR('B6-FinPos'!C9/'B4-FinPerf RE'!C34),0,('B6-FinPos'!C9/'B4-FinPerf RE'!C34))","v":7.4186541865617267E-2},{"$f":"IF(ISERROR('B6-FinPos'!D9/'B4-FinPerf RE'!D34),0,('B6-FinPos'!D9/'B4-FinPerf RE'!D34))","v":7.3396071625394452E-2},{"$f":"IF(ISERROR('B6-FinPos'!K9/'B4-FinPerf RE'!K34),0,('B6-FinPos'!K9/'B4-FinPerf RE'!K34))","v":7.4511433648330835E-2},{"$f":"IF(ISERROR('B6-FinPos'!L9/'B4-FinPerf RE'!L34),0,('B6-FinPos'!L9/'B4-FinPerf RE'!L34))","v":7.3413373178169455E-2},{"$f":"IF(ISERROR('B6-FinPos'!M9/'B4-FinPerf RE'!M34),0,('B6-FinPos'!M9/'B4-FinPerf RE'!M34))","v":5.3785039044574927E-2}]
["iii. Cost coverage","(Available cash + Investments)/monthly fixed operational expenditure",null,null,null,{"$f":"IF(ISERROR('B7-CFlow'!C41/'SB4'!F50),0,('B7-CFlow'!C41/'SB4'!F50))","v":0},{"$f":"IF(ISERROR('B7-CFlow'!D41/'SB4'!G50),0,('B7-CFlow'!D41/'SB4'!G50))","v":0},{"$f":"IF(ISERROR('B7-CFlow'!K41/'SB4'!H50),0,('B7-CFlow'!K41/'SB4'!H50))","v":0},{"$f":"IF(ISERROR('B7-CFlow'!L41/'SB4'!I50),0,('B7-CFlow'!L41/'SB4'!I50))","v":0},{"$f":"IF(ISERROR('B7-CFlow'!M41/'SB4'!J50),0,('B7-CFlow'!M41/'SB4'!J50))","v":0}]
[{"$f":"head27a","v":"References"}]
["1.  Consumer debtors > 12 months old are excluded from current assets"]
["2. Only include if services provided by the municipality"]
["Calculation data"]
["Debtors > 90 days"]
["Debtors > 12 months recovered"]
["Monthly fixed operational expenditure"]
["Fixed operational expenditure % assumption",null,null,null,null,0.4,{"$f":"$F$51","v":0.4},{"$f":"$F$51","v":0.4},{"$f":"$F$51","v":0.4},{"$f":"$F$51","v":0.4}]
["Own capex"]
["Borrowing"]

{"sheet":"SB5","index":41,"n_rows":311,"n_cols":15,"rows_kept":311,"cut":false,"hidden":false,"merged":[[246,0,247,0],[246,4,246,12],[154,0,155,0],[108,10,108,12],[154,7,154,9],[108,0,109,0],[200,7,200,9],[200,0,201,0],[154,10,154,12],[1,10,1,12],[62,10,62,12],[1,2,2,2],[200,10,200,12],[62,0,63,0],[1,1,2,1],[62,7,62,9],[1,5,2,5],[1,4,2,4],[108,7,108,9],[1,3,2,3],[1,0,2,0]]}
[{"$f":"muni&\" - \"&ADJB5&\" - \"&Date","v":"KZN291 Mandeni - Supporting Table SB5 Adjustments Budget - social, economic and demographic statistics and assumptions - 08-04-2025"}]
["Description of economic indicator","Ref.","Basis of calculation",{"$f":"Head44","v":"2001 Census"},"2007 Survey",{"$f":"Head45","v":"2011 Census"},{"$f":"Head1B","v":"2021/22"},{"$f":"Head1A","v":"2022/23"},{"$f":"Head1","v":"2023/24"},{"$f":"Head2","v":"Budget Year 2024/25"},{"$f":"Head3","v":"2024/25 Medium Term Revenue & Expenditure Framework"}]
[null,null,null,null,null,null,{"$f":"Head5A","v":"Outcome"},"Outcome","Outcome",{"$f":"Head6","v":"Original Budget"},"Outcome","Outcome","Outcome"]
["Demographics"]
["Population",null,null,null,null,null,133559,133559,133559,133559,133559,133559,0]
["Females aged 5 - 14"]
["Males aged 5 - 14"]
["Females aged 15 - 34"]
["Males aged 15 - 34"]
["Unemployment",null,null,null,null,null,58329,58329,58329,58329,58329,58329]
[]
["Monthly Household income ( no. of households)","1, 12"]
["None",null,null,null,null,null,55740,55740,55740,55740,55740,55740]
["R1 - R1 600",null,null,null,null,null,33612,33612,33612,33612,33612,33612]
["R1 601 - R3 200",null,null,null,null,null,3971,3971,3971,3971,3971,3971]
["R3 201 - R6 400",null,null,null,null,null,9818,9818,9818,9818,9818,9818]
["R6 401 - R12 800",null,null,null,null,null,8735,8735,8735,8735,8735,8735]
["R12 801 - R25 600",null,null,null,null,null,4414,4414,4414,4414,4414,4414]
["R25 601 - R51 200",null,null,null,null,null,516,516,516,516,516,516]
["R52 201 - R102 400",null,null,null,null,null,0,0,0,0,0,0]
["R102 401 - R204 800",null,null,null,null,null,616,616,616,616,616,616]
["R204 801 - R409 600",null,null,null,null,null,88,88,88,88,88,88]
["R409 601 - R819 200",null,null,null,null,null,34,34,34,34,34,34]
[" > R819 200",null,null,null,null,null,28,28,28,28,28,28]
[]
[]
["Poverty profiles (no. of households)"]
["< R2 060 per household per month",13,null,null,null,null,17270,17270,17270,17270,17270,17270]
["Insert description",2]
[]
["Household/demographics (000)"]
["Number of people in municipal area",null,null,null,null,null,138079,138079,138079,138079,138079,138079]
["Number of poor people in municipal area",null,null,null,null,null,66264,66264,66264,66264,66264,66264]
["Number of households in municipal area",null,null,null,null,null,38235,38235,38235,38235,38235,38235]
["Number of poor households in municipal area",null,null,null,null,null,24595,24595,24595,24595,24595,24595]
["Definition of poor household (R per month)"]
[]
["Housing statistics",3]
["Formal",null,null,null,null,null,33519,33519,33519,33519,33519,33519]
["Informal",null,null,null,null,null,4716,4716,4716,4716,4716,4716]
["Total number of households",null,{"$f":"SUM(C39:C40)","v":0},0,0,0,38235,38235,38235,38235,38235,38235]
["Dwellings provided by municipality",4]
["Dwellings provided by province/s"]
["Dwellings provided by private sector",5]
["Total new housing dwellings",null,{"$f":"SUM(C42:C44)","v":0},0,0,0,0,0,0,0,0]
[]
["Economic",6]
["Inflation/inflation outlook (CPIX)",null,null,null,null,null,null,null,null,null,4.0599999999999997E-2]
["Interest rate - borrowing",null,null,null,null,null,null,null,null,null,0.11749999999999999]
["Interest rate - investment"]
["Remuneration increases"]
["Consumption growth (electricity)"]
["Consumption growth (water)"]
[]
["Collection rates",7]
["Property tax/service charges",null,null,null,null,"%","%","%","%","%","%"]
["Rental of facilities & equipment",null,null,null,null,"%","%","%","%","%","%"]
["Interest - external investments",null,null,null,null,"%","%","%","%","%","%"]
["Interest - debtors",null,null,null,null,"%","%","%","%","%","%"]
["Revenue from agency services",null,null,null,null,"%","%","%","%","%","%"]
[]
["Detail on the provision of municipal services for B10"]
["Total municipal services",null,null,null,{"$f":"Head1B","v":"2021/22"},{"$f":"Head1A","v":"2022/23"},{"$f":"Head1","v":"2023/24"},{"$f":"Head2","v":"Budget Year 2024/25"},null,null,{"$f":"Head3","v":"2024/25 Medium Term Revenue & Expenditure Framework"}]
[null,"Ref.",null,null,{"$f":"Head5A","v":"Outcome"},{"$f":"Head5A","v":"Outcome"},{"$f":"Head5A","v":"Outcome"},{"$f":"Head6","v":"Original Budget"},{"$f":"Head7","v":"Adjusted Budget"},{"$f":"Head8","v":"Full Year Forecast"},{"$f":"Head9","v":"Budget Year 2024/25"},{"$f":"Head10","v":"Budget Year +1 2025/26"},{"$f":"Head11","v":"Budget Year +2 2026/27"}]
[null,null,"Household service targets (000)"]
[null,null,"Water:"]
[null,null,"Piped water inside dwelling",null,11152.062,11152.062,11152.062,11152.062,12825,12825,12825,12825]
[null,null,"Piped water inside yard (but not in dwelling)",null,12385.04,12385.04,12385.04,12385.04,14243,14243,14243,14243]
[null,8,"Using public tap (at least min.service level)",null,0,0,0,0,0,0,0,0]
[null,10,"Other water supply (at least min.service level)",null,19791.43,19791.43,19791.43,19791.43,22760,22760,22760,22760]
[null,null,"Minimum Service Level and Above sub-total",null,43328.531999999999,43328.531999999999,43328.531999999999,43328.531999999999,49828,49828,49828,49828,{"$f":"SUM(M67:M70)","v":0}]
[null,9,"Using public tap (< min.service level)",null,0,0,0,0,0,0,0,0]
[null,10,"Other water supply (< min.service level)",null,0,0,0,0,0,0,0,0]
[null,null,"No water supply",null,0,0,0,0,0,0,0,0]
[null,null,"Below Minimum Service Level sub-total",null,0,0,0,0,0,0,0,0,{"$f":"SUM(M72:M74)","v":0}]
[null,null,"Total number of households",null,43328.531999999999,43328.531999999999,43328.531999999999,43328.531999999999,49828,49828,49828,49828,{"$f":"M71+M75","v":0}]
[null,null,"Sanitation/sewerage:"]
[null,null,"Flush toilet (connected to sewerage)",null,12807.3568,12807.3568,12807.3568,12807.3568,14088,14088,14088,14088]
[null,null,"Flush toilet (with septic tank)",null,0,0,0,0,0,0,0,0]
[null,null,"Chemical toilet",null,9721.27,9721.27,9721.27,9721.27,10693,10693,10693,10693]
[null,null,"Pit toilet (ventilated)",null,17177.232,17177.232,17177.232,17177.232,18895,18895,18895,18895]
[null,null,"Other toilet provisions (> min.service level)",null,3045.3274999999999,3045.3274999999999,3045.3274999999999,3045.3274999999999,3350,3350,3350,3350]
[null,null,"Minimum Service Level and Above sub-total",null,42751.186300000001,42751.186300000001,42751.186300000001,42751.186300000001,47026,47026,47026,47026,{"$f":"SUM(M78:M82)","v":0}]
[null,null,"Bucket toilet",null,300,300,300,300,150,0,0,0]
[null,null,"Other toilet provisions (< min.service level)",null,0,0,0,0,0,0,0,0]
[null,null,"No toilet provisions",null,0,0,0,0,0,0,0,0]
[null,null,"Below Minimum Service Level sub-total",null,300,300,300,300,150,0,0,0,{"$f":"SUM(M84:M86)","v":0}]
[null,null,"Total number of households",null,43051.186300000001,43051.186300000001,43051.186300000001,43051.186300000001,47176,47026,47026,47026,{"$f":"M83+M87","v":0}]
[null,null,"Energy:"]
[null,null,"Electricity (at least min.service level)",null,0,0,0,0,0,0,0,0]
[null,null,"Electricity - prepaid (min.service level)",null,0,0,0,0,0,0,0,0]
[null,null,"Minimum Service Level and Above sub-total",null,0,0,0,0,0,0,0,0,{"$f":"SUM(M90:M91)","v":0}]
[null,null,"Electricity (< min.service level)",null,389,389,449,449,449,449,449,449]
[null,null,"Electricity - prepaid (< min. service level)",null,629,629,645,645,645,645,645,645]
[null,null,"Other energy sources",null,0,0,0,0,0,0,0,0]
[null,null,"Below Minimum Service Level sub-total",null,1018,1018,1094,1094,1094,1094,1094,1094,{"$f":"SUM(M93:M95)","v":0}]
[null,null,"Total number of households",null,1018,1018,1094,1094,1094,1094,1094,1094,{"$f":"M92+M96","v":0}]
[null,null,"Refuse:"]
[null,null,"Removed at least once a week",null,4601,4601,4695,4695,4695,4695,4695,4695]
[null,null,"Minimum Service Level and Above sub-total",null,4601,4601,4695,4695,4695,4695,4695,4695,{"$f":"SUM(M99)","v":0}]
[null,null,"Removed less frequently than once a week",null,0,0,0,0,0,0,0,0]
[null,null,"Using communal refuse dump",null,0,0,0,0,0,0,0,0]
[null,null,"Using own refuse dump",null,0,0,0,0,0,0,0,0]
[null,null,"Other rubbish disposal",null,0,0,0,0,0,0,0,0]
[null,null,"No rubbish disposal",null,0,0,0,0,0,0,0,0]
[null,null,"Below Minimum Service Level sub-total",null,0,0,0,0,0,0,0,0,{"$f":"SUM(M101:M105)","v":0}]
[null,null,"Total number of households",null,4601,4601,4695,4695,4695,4695,4695,4695,{"$f":"M100+M106","v":0}]
[]
["Municipal in-house services",null,null,null,{"$f":"Head1B","v":"2021/22"},{"$f":"Head1A","v":"2022/23"},{"$f":"Head1","v":"2023/24"},{"$f":"Head2","v":"Budget Year 2024/25"},null,null,{"$f":"Head3","v":"2024/25 Medium Term Revenue & Expenditure Framework"}]
[null,"Ref.",null,null,{"$f":"Head5A","v":"Outcome"},{"$f":"Head5A","v":"Outcome"},{"$f":"Head5A","v":"Outcome"},{"$f":"Head6","v":"Original Budget"},{"$f":"Head7","v":"Adjusted Budget"},{"$f":"Head8","v":"Full Year Forecast"},{"$f":"Head9","v":"Budget Year 2024/25"},{"$f":"Head10","v":"Budget Year +1 2025/26"},{"$f":"Head11","v":"Budget Year +2 2026/27"}]
[null,null,"Household service targets (000)"]
[null,null,"Water:"]
[null,null,"Piped water inside dwelling",null,10501.16,11152.062,11152.062,11152.062,11152.062,12825,12825,12825,12825]
[null,null,"Piped water inside yard (but not in dwelling)",null,11621.53,12385.04,12385.04,12385.04,12385.04,14243,14243,14243,14243]
[null,8,"Using public tap (at least min.service level)",null,null,null,0,0,0,0,0,0,0]
[null,10,"Other water supply (at least min.service level)",null,18635.810000000001,19791.43,19791.43,19791.43,19791.43,22760,22760,22760,22760]
[null,null,"Minimum Service Level and Above sub-total",null,40758.5,43328.531999999999,43328.531999999999,43328.531999999999,43328.531999999999,49828,49828,49828,49828]
[null,9,"Using public tap (< min.service level)",null,0,0,0,0,0,0,0,0,0]
[null,10,"Other water supply (< min.service level)",null,0,0,0,0,0,0,0,0,0]
[null,null,"No water supply",null,0,0,0,0,0,0,0,0,0]
[null,null,"Below Minimum Service Level sub-total",null,0,0,0,0,0,0,0,0,0]
[null,null,"Total number of households",null,40758.5,43328.531999999999,43328.531999999999,43328.531999999999,43328.531999999999,49828,49828,49828,49828]
[null,null,"Sanitation/sewerage:"]
[null,null,"Flush toilet (connected to sewerage)",null,12059.657999999999,12807.3568,12807.3568,12807.3568,12807.3568,14088,14088,14088,14088]
[null,null,"Flush toilet (with septic tank)",null,null,null,0,0,0,0,0,0,0]
[null,null,"Chemical toilet",null,9153.74,9721.27,9721.27,9721.27,9721.27,10693,10693,10693,10693]
[null,null,"Pit toilet (ventilated)",null,16174.418,17177.232,17177.232,17177.232,17177.232,18895,18895,18895,18895]
[null,null,"Other toilet provisions (> min.service level)",null,2867.54,3045.3274999999999,3045.3274999999999,3045.3274999999999,3045.3274999999999,3350,3350,3350,3350]
[null,null,"Minimum Service Level and Above sub-total",null,40255.356,42751.186300000001,42751.186300000001,42751.186300000001,42751.186300000001,47026,47026,47026,47026]
[null,null,"Bucket toilet",null,472,300,300,300,300,150,0,0,0]
[null,null,"Other toilet provisions (< min.service level)",null,null,null,null,null,null,null,0,0,0]
[null,null,"No toilet provisions",null,0,0,0,0,0,0,0,0,0]
[null,null,"Below Minimum Service Level sub-total",null,472,300,300,300,300,150,0,0,0]
[null,null,"Total number of households",null,40727.356,43051.186300000001,43051.186300000001,43051.186300000001,43051.186300000001,47176,47026,47026,47026]
[null,null,"Energy:"]
[null,null,"Electricity (at least min.service level)",null,0,0,0,0,0,0,0,0,0]
[null,null,"Electricity - prepaid (min.service level)",null,0,0,0,0,0,0,0,0,0]
[null,null,"Minimum Service Level and Above sub-total",null,0,0,0,0,0,0,0,0,0]
[null,null,"Electricity (< min.service level)",null,389,389,389,449,449,449,449,449,449]
[null,null,"Electricity - prepaid (< min. service level)",null,574,629,629,645,645,645,645,645,645]
[null,null,"Other energy sources",null,0,0,0,0,0,0,0,0,0]
[null,null,"Below Minimum Service Level sub-total",null,963,1018,1018,1094,1094,1094,1094,1094,1094]
[null,null,"Total number of households",null,963,1018,1018,1094,1094,1094,1094,1094,1094]
[null,null,"Refuse:"]
[null,null,"Removed at least once a week",null,0,4601,4601,4695,4695,4695,4695,4695,4695]
[null,null,"Minimum Service Level and Above sub-total",null,0,4601,4601,4695,4695,4695,4695,4695,4695]
[null,null,"Removed less frequently than once a week"]
[null,null,"Using communal refuse dump"]
[null,null,"Using own refuse dump"]
[null,null,"Other rubbish disposal",null,0,0,0,0,0,0,0,0,0]
[null,null,"No rubbish disposal",null,0,0,0,0,0,0,0,0,0]
[null,null,"Below Minimum Service Level sub-total",null,0,0,0,0,0,0,0,0,0]
[null,null,"Total number of households",null,0,4601,4601,4695,4695,4695,4695,4695,4695]
[]
["Municipal entity services",null,null,null,{"$f":"Head1B","v":"2021/22"},{"$f":"Head1A","v":"2022/23"},{"$f":"Head1","v":"2023/24"},{"$f":"Head2","v":"Budget Year 2024/25"},null,null,{"$f":"Head3","v":"2024/25 Medium Term Revenue & Expenditure Framework"}]
[null,"Ref.",null,null,{"$f":"Head5A","v":"Outcome"},{"$f":"Head5A","v":"Outcome"},{"$f":"Head5A","v":"Outcome"},{"$f":"Head6","v":"Original Budget"},{"$f":"Head7","v":"Adjusted Budget"},{"$f":"Head8","v":"Full Year Forecast"},{"$f":"Head9","v":"Budget Year 2024/25"},{"$f":"Head10","v":"Budget Year +1 2025/26"},{"$f":"Head11","v":"Budget Year +2 2026/27"}]
[null,null,"Household service targets (000)"]
["Name of municipal entity",null,"Water:"]
[null,null,"Piped water inside dwelling"]
[null,null,"Piped water inside yard (but not in dwelling)"]
[null,8,"Using public tap (at least min.service level)"]
[null,10,"Other water supply (at least min.service level)"]
[null,null,"Minimum Service Level and Above sub-total",null,{"$f":"SUM(E159:E162)","v":0},{"$f":"SUM(F159:F162)","v":0},0,0,0,0,0,0,0]
[null,9,"Using public tap (< min.service level)",null,0,0,0,0,0,0,0,0]
[null,10,"Other water supply (< min.service level)",null,0,0,0,0,0,0,0,0]
[null,null,"No water supply",null,0,0,0,0,0,0,0,0]
[null,null,"Below Minimum Service Level sub-total",null,{"$f":"SUM(E164:E166)","v":0},{"$f":"SUM(F164:F166)","v":0},0,0,0,0,0,0,0]
[null,null,"Total number of households",null,{"$f":"E163+E167","v":0},{"$f":"F163+F167","v":0},0,0,0,0,0,0,0]
["Name of municipal entity",null,"Sanitation/sewerage:"]
[null,null,"Flush toilet (connected to sewerage)"]
[null,null,"Flush toilet (with septic tank)"]
[null,null,"Chemical toilet"]
[null,null,"Pit toilet (ventilated)"]
[null,null,"Other toilet provisions (> min.service level)"]
[null,null,"Minimum Service Level and Above sub-total",null,{"$f":"SUM(E170:E174)","v":0},{"$f":"SUM(F170:F174)","v":0},0,0,0,0,0,0,0]
[null,null,"Bucket toilet"]
[null,null,"Other toilet provisions (< min.service level)",null,0,0,0,0,0,0,0,0]
[null,null,"No toilet provisions",null,0,0,0,0,0,0,0,0]
[null,null,"Below Minimum Service Level sub-total",null,{"$f":"SUM(E176:E178)","v":0},{"$f":"SUM(F176:F178)","v":0},0,0,0,0,0,0,0]
[null,null,"Total number of households",null,{"$f":"E175+E179","v":0},{"$f":"F175+F179","v":0},0,0,0,0,0,0,0]
["Name of municipal entity",null,"Energy:"]
[null,null,"Electricity (at least min.service level)"]
[null,null,"Electricity - prepaid (min.service level)"]
[null,null,"Minimum Service Level and Above sub-total",null,{"$f":"SUM(E182:E183)","v":0},{"$f":"SUM(F182:F183)","v":0},0,0,0,0,0,0,0]
[null,null,"Electricity (< min.service level)"]
[null,null,"Electricity - prepaid (< min. service level)",null,0,0,0,0,0,0,0]
[null,null,"Other energy sources"]
[null,null,"Below Minimum Service Level sub-total",null,{"$f":"SUM(E185:E187)","v":0},{"$f":"SUM(F185:F187)","v":0},0,0,0,0,0,0,0]
[null,null,"Total number of households",null,{"$f":"E184+E188","v":0},{"$f":"F184+F188","v":0},0,0,0,0,0,0,0]
["Name of municipal entity",null,"Refuse:"]
[null,null,"Removed at least once a week"]
[null,null,"Minimum Service Level and Above sub-total",null,{"$f":"SUM(E191)","v":0},{"$f":"SUM(F191)","v":0},0,0,0,0,0,0,0]
[null,null,"Removed less frequently than once a week"]
[null,null,"Using communal refuse dump"]
[null,null,"Using own refuse dump"]
[null,null,"Other rubbish disposal"]
[null,null,"No rubbish disposal"]
[null,null,"Below Minimum Service Level sub-total",null,{"$f":"SUM(E193:E197)","v":0},0,0,0,0,0,0,0,0]
[null,null,"Total number of households",null,{"$f":"E192+E198","v":0},{"$f":"F192+F198","v":0},0,0,0,0,0,0,0]
[]
["Services provided by 'external mechanisms'",null,null,null,{"$f":"Head1B","v":"2021/22"},{"$f":"Head1A","v":"2022/23"},{"$f":"Head1","v":"2023/24"},{"$f":"Head2","v":"Budget Year 2024/25"},null,null,{"$f":"Head3","v":"2024/25 Medium Term Revenue & Expenditure Framework"}]
[null,"Ref.",null,null,{"$f":"Head5A","v":"Outcome"},{"$f":"Head5A","v":"Outcome"},{"$f":"Head5A","v":"Outcome"},{"$f":"Head6","v":"Original Budget"},{"$f":"Head7","v":"Adjusted Budget"},{"$f":"Head8","v":"Full Year Forecast"},{"$f":"Head9","v":"Budget Year 2024/25"},{"$f":"Head10","v":"Budget Year +1 2025/26"},{"$f":"Head11","v":"Budget Year +2 2026/27"}]
["Names of service providers",null,"Household service targets (000)"]
[null,null,"Water:"]
[null,null,"Piped water inside dwelling"]
[null,null,"Piped water inside yard (but not in dwelling)"]
[null,8,"Using public tap (at least min.service level)"]
[null,10,"Other water supply (at least min.service level)"]
[null,null,"Minimum Service Level and Above sub-total",null,{"$f":"SUM(E205:E208)","v":0},{"$f":"SUM(F205:F208)","v":0},0,0,0,0,0,0,0]
[null,9,"Using public tap (< min.service level)"]
[null,10,"Other water supply (< min.service level)"]
[null,null,"No water supply"]
[null,null,"Below Minimum Service Level sub-total",null,{"$f":"SUM(E210:E212)","v":0},{"$f":"SUM(F210:F212)","v":0},0,0,0,0,0,0,0]
[null,null,"Total number of households",null,{"$f":"E209+E213","v":0},{"$f":"F209+F213","v":0},0,0,0,0,0,0,0]
["Names of service providers",null,"Sanitation/sewerage:"]
[null,null,"Flush toilet (connected to sewerage)"]
[null,null,"Flush toilet (with septic tank)"]
[null,null,"Chemical toilet"]
[null,null,"Pit toilet (ventilated)"]
[null,null,"Other toilet provisions (> min.service level)"]
[null,null,"Minimum Service Level and Above sub-total",null,{"$f":"SUM(E216:E220)","v":0},{"$f":"SUM(F216:F220)","v":0},0,0,0,0,0,0,0]
[null,null,"Bucket toilet"]
[null,null,"Other toilet provisions (< min.service level)"]
[null,null,"No toilet provisions"]
[null,null,"Below Minimum Service Level sub-total",null,{"$f":"SUM(E222:E224)","v":0},{"$f":"SUM(F222:F224)","v":0},0,0,0,0,0,0,0]
[null,null,"Total number of households",null,{"$f":"E221+E225","v":0},{"$f":"F221+F225","v":0},0,0,0,0,0,0,0]
["Names of service providers",null,"Energy:"]
[null,null,"Electricity (at least min.service level)"]
[null,null,"Electricity - prepaid (min.service level)"]
[null,null,"Minimum Service Level and Above sub-total",null,{"$f":"SUM(E228:E229)","v":0},{"$f":"SUM(F228:F229)","v":0},0,0,0,0,0,0,0]
[null,null,"Electricity (< min.service level)"]
[null,null,"Electricity - prepaid (< min. service level)"]
[null,null,"Other energy sources"]
[null,null,"Below Minimum Service Level sub-total",null,{"$f":"SUM(E231:E233)","v":0},{"$f":"SUM(F231:F233)","v":0},0,0,0,0,0,0,0]
[null,null,"Total number of households",null,{"$f":"E230+E234","v":0},{"$f":"F230+F234","v":0},0,0,0,0,0,0,0]
["Names of service providers",null,"Refuse:"]
[null,null,"Removed at least once a week"]
[null,null,"Minimum Service Level and Above sub-total",null,{"$f":"SUM(E237)","v":0},{"$f":"SUM(F237)","v":0},0,0,0,0,0,0,0]
[null,null,"Removed less frequently than once a week"]
[null,null,"Using communal refuse dump"]
[null,null,"Using own refuse dump"]
[null,null,"Other rubbish disposal"]
[null,null,"No rubbish disposal"]
[null,null,"Below Minimum Service Level sub-total",null,{"$f":"SUM(E239:E243)","v":0},0,0,0,0,0,0,0,0]
[null,null,"Total number of households",null,{"$f":"E238+E244","v":0},{"$f":"F238+F244","v":0},0,0,0,0,0,0,0]
[]
["Detail of Free Basic Services (FBS) provided",null,null,null,{"$f":"Head2","v":"Budget Year 2024/25"},null,null,null,null,null,null,null,null,{"$f":"Head10","v":"Budget Year +1 2025/26"},{"$f":"Head11","v":"Budget Year +2 2026/27"}]
[null,null,null,null,{"$f":"Head6","v":"Original Budget"},{"$f":"Head54","v":"Prior Adjusted"},{"$f":"Head51","v":"Accum. Funds"},{"$f":"Head52","v":"Multi-year capital"},{"$f":"Head53","v":"Unfore. Unavoid."},{"$f":"Head55","v":"Nat. or Prov. Govt"},{"$f":"Head50","v":"Other Adjusts."},{"$f":"Head56","v":"Total Adjusts."},{"$f":"Head7","v":"Adjusted Budget"},{"$f":"Head7","v":"Adjusted Budget"},{"$f":"Head7","v":"Adjusted Budget"}]
["Electricity","Ref.","Location of households for each type of FBS"]
["List type of FBS service",null,"Formal settlements -  (50 kwh per indigent household per month R '000)",null,0,null,null,null,null,null,null,{"$f":"SUM(G250:K250)","v":0},{"$f":"IF(F250=0,E250+L250,F250+L250)","v":0},0]
[null,null,"Number of HH receiving this type of FBS",null,null,null,null,null,null,null,null,{"$f":"SUM(G251:K251)","v":0},0]
[null,null,"Informal settlements (R '000)",null,null,null,null,null,null,null,null,0,0]
[null,null,"Number of HH receiving this type of FBS",null,null,null,null,null,null,null,null,0,0]
[null,null,"Informal settlements targeted for upgrading (R '000)",null,null,null,null,null,null,null,null,0,0]
[null,null,"Number of HH receiving this type of FBS",null,null,null,null,null,null,null,null,0,0]
[null,null,"Living in informal backyard rental agreement (R '000)",null,null,null,null,null,null,null,null,0,0]
[null,null,"Number of HH receiving this type of FBS",null,null,null,null,null,null,null,null,0,0]
[null,null,"Other (R '000)",null,null,null,null,null,null,null,null,0,0]
[null,null,"Number of HH receiving this type of FBS",null,null,null,null,null,null,null,null,0,0]
[null,null,"Total cost of FBS - Electricity for informal settlements",null,{"$f":"E252+E254+E256+E258","v":0},{"$f":"F252+F254+F256+F258","v":0},0,0,0,0,0,{"$f":"L252+L254+L256+L258","v":0},0,{"$f":"N252+N254+N256+N258","v":0},0]
["Water","Ref.","Location of households for each type of FBS"]
["List type of FBS service",null,"Formal settlements -  (6 kilolitre per indigent household per month R '000)",null,0,null,null,null,null,null,null,{"$f":"SUM(G262:K262)","v":0},{"$f":"IF(F262=0,E262+L262,F262+L262)","v":0},0]
[null,null,"Number of HH receiving this type of FBS",null,null,null,null,null,null,null,null,0,0]
[null,null,"Informal settlements (R '000)",null,null,null,null,null,null,null,null,0,0]
[null,null,"Number of HH receiving this type of FBS",null,null,null,null,null,null,null,null,0,0]
[null,null,"Informal settlements targeted for upgrading (R '000)",null,null,null,null,null,null,null,null,{"$f":"SUM(G266:K266)","v":0},0]
[null,null,"Number of HH receiving this type of FBS",null,null,null,null,null,null,null,null,0,0]
[null,null,"Living in informal backyard rental agreement (R '000)",null,null,null,null,null,null,null,null,0,0]
[null,null,"Number of HH receiving this type of FBS",null,null,null,null,null,null,null,null,0,0]
[null,null,"Other (R '000)",null,null,null,null,null,null,null,null,0,0]
[null,null,"Number of HH receiving this type of FBS",null,null,null,null,null,null,null,null,0,0]
[null,null,"Total cost of FBS - Water  for informal settlements",null,{"$f":"E264+E266+E268+E270","v":0},{"$f":"F264+F266+F268+F270","v":0},0,0,0,0,0,0,0,{"$f":"N264+N266+N268+N270","v":0},{"$f":"O264+O266+O268+O270","v":0}]
["Sanitation","Ref.","Location of households for each type of FBS"]
["List type of FBS service",null,"Formal settlements -  (free sanitation service to indigent households R '000)",null,0,null,null,null,null,null,null,{"$f":"SUM(G274:K274)","v":0},{"$f":"IF(F274=0,E274+L274,F274+L274)","v":0},0]
[null,null,"Number of HH receiving this type of FBS",null,null,null,null,null,null,null,null,0,0]
[null,null,"Informal settlements (R '000)",null,null,null,null,null,null,null,null,0,0]
[null,null,"Number of HH receiving this type of FBS",null,null,null,null,null,null,null,null,0,0]
[null,null,"Informal settlements targeted for upgrading (R '000)",null,null,null,null,null,null,null,null,0,0]
[null,null,"Number of HH receiving this type of FBS",null,null,null,null,null,null,null,null,0,0]
[null,null,"Living in informal backyard rental agreement (R '000)",null,null,null,null,null,null,null,null,0,0]
[null,null,"Number of HH receiving this type of FBS",null,null,null,null,null,null,null,null,0,0]
[null,null,"Other (R '000)",null,null,null,null,null,null,null,null,0,0]
[null,null,"Number of HH receiving this type of FBS",null,null,null,null,null,null,null,null,0,0]
[null,null,"Total cost of FBS - Sanitation for informal settlements",null,{"$f":"E276+E278+E280+E282","v":0},{"$f":"F276+F278+F280+F282","v":0},0,0,0,0,0,0,0,{"$f":"N276+N278+N280+N282","v":0},{"$f":"O276+O278+O280+O282","v":0}]
["Refuse Removal","Ref.","Location of households for each type of FBS"]
["List type of FBS service",null,"Formal settlements -  (removed once a week to indigent households R '000)",null,0,null,null,null,null,null,null,{"$f":"SUM(G286:K286)","v":0},{"$f":"IF(F286=0,E286+L286,F286+L286)","v":0},0]
[null,null,"Number of HH receiving this type of FBS",null,null,null,null,null,null,null,null,0,0]
[null,null,"Informal settlements (R '000)",null,null,null,null,null,null,null,null,0,0]
[null,null,"Number of HH receiving this type of FBS",null,null,null,null,null,null,null,null,0,0]
[null,null,"Informal settlements targeted for upgrading (R '000)",null,null,null,null,null,null,null,null,0,0]
[null,null,"Number of HH receiving this type of FBS",null,null,null,null,null,null,null,null,0,0]
[null,null,"Living in informal backyard rental agreement (R '000)",null,null,null,null,null,null,null,null,0,0]
[null,null,"Number of HH receiving this type of FBS",null,null,null,null,null,null,null,null,0,0]
[null,null,"Other (R '000)",null,null,null,null,null,null,null,null,0,0]
[null,null,"Number of HH receiving this type of FBS",null,null,null,null,null,null,null,null,0,0]
[null,null,"Total cost of FBS - Refuse Removal for informal settlements",null,{"$f":"E288+E290+E292+E294","v":0},{"$f":"F288+F290+F292+F294","v":0},0,0,0,0,0,0,0,{"$f":"N288+N290+N292+N294","v":0},{"$f":"O288+O290+O292+O294","v":0}]
[]
[{"$f":"head27a","v":"References"}]
["1. Monthly household income threshold. Should include all sources of income."]
["2. Show the poverty analysis the municipality uses to determine its indigents policy and the provision of services"]
["3. Include total of all housing units within the municipality"]
["4. Number of subsidised dwellings to be constructed by the municipality under agency agreement with province"]
["5. Provide estimate based on building approval information. Include any non-subsidised dwellings constructed by the municipality"]
["6. Insert actual or estimated % increases assumed as a basis for budget calculations"]
["7. Insert actual or estimated % collection rate assumed as a basis for budget calculations for each revenue group"]
["8. Stand distance <= 200m from dwelling"]
["9. Stand distance > 200m from dwelling"]
["10. Borehole, spring, rain-water tank etc."]
["11. Must agree to total number of households in municipal area"]
["12. Household income categories assume an average 4 person household. Stats SA - Census 2011 Questionnaire"]
["13. Based on National poverty line of R515 per capita per month (2008 prices), assuming an average household size of 4 persons"]

{"sheet":"SB6","index":42,"n_rows":71,"n_cols":11,"rows_kept":71,"cut":false,"hidden":false,"merged":[[1,1,2,1],[1,2,2,2]]}
[{"$f":"muni &\" - \"&ADJB6&\" - \"&Date","v":"KZN291 Mandeni - Supporting Table SB6 Adjustments Budget - funding measurement - 08-04-2025"}]
[{"$f":"desc","v":"Description"},{"$f":"head27","v":"Ref"},"MFMA section",{"$f":"Head1B","v":"2021/22"},{"$f":"Head1A","v":"2022/23"},{"$f":"Head1","v":"2023/24"},{"$f":"Head3a","v":"Medium Term Revenue and Expenditure Framework"}]
["R thousands",null,null,{"$f":"Head5","v":"Audited Outcome"},{"$f":"Head5","v":"Audited Outcome"},{"$f":"Head5","v":"Audited Outcome"},{"$f":"Head6","v":"Original Budget"},{"$f":"Head54","v":"Prior Adjusted"},{"$f":"Head7","v":"Adjusted Budget"},{"$f":"Head10","v":"Budget Year +1 2025/26"},{"$f":"Head11","v":"Budget Year +2 2026/27"}]
["Funding measures"]
["Cash/cash equivalents at the year end - R'000",1,"18(1)b",null,null,null,{"$f":"'B7-CFlow'!C41","v":82718418},{"$f":"'B7-CFlow'!D41","v":92380116},{"$f":"'B7-CFlow'!K41","v":95278616},{"$f":"'B7-CFlow'!L41","v":118413310},{"$f":"'B7-CFlow'!M41","v":139354865}]
["Cash + investments at the yr end less applications - R'000",2,"18(1)b",null,null,null,{"$f":"'B8-ResRecon'!C21","v":128671434},{"$f":"'B8-ResRecon'!D21","v":129620862},{"$f":"'B8-ResRecon'!K21","v":133114315},{"$f":"'B8-ResRecon'!L21","v":168725805},{"$f":"'B8-ResRecon'!M21","v":192402071}]
["Cash year end/monthly employee/supplier payments",3,"18(1)b",null,null,null,{"$f":"'SB4'!F43","v":0},{"$f":"'SB4'!G43","v":0},{"$f":"'SB4'!H43","v":0},{"$f":"'SB4'!I43","v":0},{"$f":"'SB4'!J43","v":0}]
["Surplus/(Deficit) excluding depreciation offsets: R'000",4,"18(1)",null,null,null,{"$f":"'B4-FinPerf RE'!C55+'SB2'!C173","v":43244416},{"$f":"'B4-FinPerf RE'!D55+'SB2'!D173","v":25588308},{"$f":"'B4-FinPerf RE'!E55+'SB2'!E173","v":0},{"$f":"'B4-FinPerf RE'!F55+'SB2'!F173","v":0},{"$f":"'B4-FinPerf RE'!G55+'SB2'!G173","v":0}]
["Service charge rev % change - macro CPIX target exclusive",5,"18(1)a,(2)",null,null,null,{"$f":"IF(ISERROR(((G36/G37)-1)-G35),0,(((G36/G37)-1)-G35))","v":0},{"$f":"IF(ISERROR(((H36/H37)-1)-H35),0,(((H36/H37)-1)-H35))","v":0},{"$f":"IF(ISERROR(((I36/I37)-1)-I35),0,(((I36/I37)-1)-I35))","v":0},{"$f":"IF(ISERROR(((J36/J37)-1)-J35),0,(((J36/J37)-1)-J35))","v":4.4359452899239149E-3},{"$f":"IF(ISERROR(((K36/K37)-1)-K35),0,(((K36/K37)-1)-K35))","v":1.5655455762071446E-2}]
["Cash receipts % of Ratepayer & Other revenue",6,"18(1)a,(2)",{"$f":"IF(ISERROR(D40/D41),0,(D40/D41))","v":0},{"$f":"IF(ISERROR(E40/E41),0,(E40/E41))","v":0},0,0.6778212521506376,0.81212698230297486,0.84722871895609464,0.69621902259775492,0.70029845562562099]
["Debt impairment expense as a % of total billable revenue",7,"18(1)a,(2)",null,null,null,{"$f":"IF(ISERROR('B4-FinPerf RE'!C39/(SUM('B4-FinPerf RE'!C8:C25))),0,('B4-FinPerf RE'!C39/(SUM('B4-FinPerf RE'!C8:C25))))","v":0.30454675199501319},{"$f":"IF(ISERROR('B4-FinPerf RE'!D39/(SUM('B4-FinPerf RE'!D8:D25))),0,('B4-FinPerf RE'!D39/(SUM('B4-FinPerf RE'!D8:D25))))","v":0.3022607738344178},{"$f":"IF(ISERROR('B4-FinPerf RE'!K39/(SUM('B4-FinPerf RE'!K8:K25))),0,('B4-FinPerf RE'!K39/(SUM('B4-FinPerf RE'!K8:K25))))","v":0.31325520268793083},{"$f":"IF(ISERROR('B4-FinPerf RE'!L39/(SUM('B4-FinPerf RE'!L8:L25))),0,('B4-FinPerf RE'!L39/(SUM('B4-FinPerf RE'!L8:L25))))","v":0.30093049936537836},{"$f":"IF(ISERROR('B4-FinPerf RE'!M39/(SUM('B4-FinPerf RE'!M8:M25))),0,('B4-FinPerf RE'!M39/(SUM('B4-FinPerf RE'!M8:M25))))","v":0.29290776152230741}]
["Capital payments % of capital expenditure",8,"18(1)c;19",null,null,null,{"$f":"IF(ISERROR(-'B7-CFlow'!C27/'B5-Capex'!C65),0,(-'B7-CFlow'!C27/'B5-Capex'!C65))","v":1.1500000215517554},{"$f":"IF(ISERROR(-'B7-CFlow'!D27/'B5-Capex'!D65),0,(-'B7-CFlow'!D27/'B5-Capex'!D65))","v":1.1499835443205864},{"$f":"IF(ISERROR(-'B7-CFlow'!E27/'B5-Capex'!E65),0,(-'B7-CFlow'!E27/'B5-Capex'!E65))","v":0},{"$f":"IF(ISERROR(-'B7-CFlow'!F27/'B5-Capex'!F65),0,(-'B7-CFlow'!F27/'B5-Capex'!F65))","v":0},{"$f":"IF(ISERROR(-'B7-CFlow'!G27/'B5-Capex'!G65),0,(-'B7-CFlow'!G27/'B5-Capex'!G65))","v":0}]
["Borrowing receipts % of capital expenditure (excl. transfers)",9,"18(1)c",null,null,null,{"$f":"IF(ISERROR('SB4'!F9),0,('SB4'!F9))","v":0},{"$f":"IF(ISERROR('SB4'!G9),0,('SB4'!G9))","v":0},{"$f":"IF(ISERROR('SB4'!H9),0,('SB4'!H9))","v":0},{"$f":"IF(ISERROR('SB4'!I9),0,('SB4'!I9))","v":0},{"$f":"IF(ISERROR('SB4'!J9),0,('SB4'!J9))","v":0}]
["Grants % of Govt. legislated/gazetted allocations",10,"18(1)a",null,null,null,{"$f":"IF(ISERROR(('B4-FinPerf RE'!C27+'B4-FinPerf RE'!C53)/('SB6'!G38+'SB6'!G39)),0,(('B4-FinPerf RE'!C27+'B4-FinPerf RE'!C53)/('SB6'!G38+'SB6'!G39)))","v":0},{"$f":"IF(ISERROR(('B4-FinPerf RE'!D32+'B4-FinPerf RE'!D53)/('SB6'!H38+'SB6'!H39)),0,(('B4-FinPerf RE'!D32+'B4-FinPerf RE'!D53)/('SB6'!H38+'SB6'!H39)))","v":0},{"$f":"IF(ISERROR(('B4-FinPerf RE'!K32+'B4-FinPerf RE'!K53)/('SB6'!I38+'SB6'!I39)),0,(('B4-FinPerf RE'!K32+'B4-FinPerf RE'!K53)/('SB6'!I38+'SB6'!I39)))","v":0},{"$f":"IF(ISERROR(('B4-FinPerf RE'!L32+'B4-FinPerf RE'!L53)/('SB6'!J38+'SB6'!J39)),0,(('B4-FinPerf RE'!L32+'B4-FinPerf RE'!L53)/('SB6'!J38+'SB6'!J39)))","v":0},{"$f":"IF(ISERROR(('B4-FinPerf RE'!M32+'B4-FinPerf RE'!M53)/('SB6'!K38+'SB6'!K39)),0,(('B4-FinPerf RE'!M32+'B4-FinPerf RE'!M53)/('SB6'!K38+'SB6'!K39)))","v":0}]
["Current consumer debtors % change - incr(decr)",11,"18(1)a",null,null,null,null,null,null,{"$f":"IF(ISERROR((SUM('B6-FinPos'!L9:L11)-SUM('B6-FinPos'!K9:K11))/SUM('B6-FinPos'!K9:K11)), 0, (SUM('B6-FinPos'!L9:L11)-SUM('B6-FinPos'!K9:K11))/SUM('B6-FinPos'!K9:K11))","v":-0.22778547051464221},{"$f":"IF(ISERROR((SUM('B6-FinPos'!M9:M13)-SUM('B6-FinPos'!L9:L13))/SUM('B6-FinPos'!L9:L13)), 0, (SUM('B6-FinPos'!M9:M13)-SUM('B6-FinPos'!L9:L13))/SUM('B6-FinPos'!L9:L13))","v":1.5496945410460589E-2}]
["Long term receivables % change - incr(decr)",12,"18(1)a",null,null,null,null,null,null,{"$f":"IF(ISERROR(('B6-FinPos'!L35-'B6-FinPos'!K35)/'B6-FinPos'!K35),0,(('B6-FinPos'!L35-'B6-FinPos'!K35)/'B6-FinPos'!K35))","v":-0.48520666680664104},{"$f":"IF(ISERROR(('B6-FinPos'!M35-'B6-FinPos'!L35)/'B6-FinPos'!L35),0,(('B6-FinPos'!M35-'B6-FinPos'!L35)/'B6-FinPos'!L35))","v":1.5364208589472867E-2}]
["R&M % of Property Plant & Equipment",13,"20(1)(vi)",null,null,null,{"$f":"IF(ISERROR('B9-Asset'!C184/'B9-Asset'!C180),0,('B9-Asset'!C184/'B9-Asset'!C180))","v":3.9506698906628841E-2},{"$f":"IF(ISERROR('B9-Asset'!D184/'B9-Asset'!D180),0,('B9-Asset'!D184/'B9-Asset'!D180))","v":3.6090801601292202E-2},{"$f":"IF(ISERROR('B9-Asset'!K184/'B9-Asset'!K180),0,('B9-Asset'!K184/'B9-Asset'!K180))","v":3.6002449093725596E-2},{"$f":"IF(ISERROR('B9-Asset'!L184/'B9-Asset'!L180),0,('B9-Asset'!L184/'B9-Asset'!L180))","v":3.9894620901348654E-2},{"$f":"IF(ISERROR('B9-Asset'!M184/'B9-Asset'!M180),0,('B9-Asset'!M184/'B9-Asset'!M180))","v":4.2672891103067052E-2}]
["Asset renewal % of capital budget",14,{"$f":"C17","v":"20(1)(vi)"},null,null,null,{"$f":"IF(ISERROR('B9-Asset'!C42/'B9-Asset'!C146),0,('B9-Asset'!C42/'B9-Asset'!C146))","v":0.22999893064108282},{"$f":"IF(ISERROR('B9-Asset'!D42/'B9-Asset'!D146),0,('B9-Asset'!D42/'B9-Asset'!D146))","v":0.20947685734444677},{"$f":"IF(ISERROR('B9-Asset'!K42/'B9-Asset'!K146),0,('B9-Asset'!K42/'B9-Asset'!K146))","v":0.22074937222258453},{"$f":"IF(ISERROR('B9-Asset'!L42/'B9-Asset'!L146),0,('B9-Asset'!L42/'B9-Asset'!L146))","v":0},{"$f":"IF(ISERROR('B9-Asset'!M42/'B9-Asset'!M146),0,('B9-Asset'!M42/'B9-Asset'!M146))","v":0}]
[{"$f":"head27a","v":"References"}]
["1. Positive cash balances indicative of minimum compliance - subject to 2"]
["2. Deduct applications (defined) from cash balances"]
["3. Indicative of sufficient liquidity to meet average monthly operating payments"]
["4. Indicative of funded operational requirements"]
["5. Indicative of adherence to macro-economic targets (prior to 2003/04 revenue not available for high capacity municipalities and later for other capacity classifications)"]
["6. Realistic average cash collection forecasts as % of annual billed revenue"]
["7. Realistic average increase in doubtful debt provision"]
["8. Indicative of planned capital expenditure level & cash payment timing"]
["9. Indicative of compliance with borrowing 'only' for the capital budget - should not exceed 100% unless refinancing"]
["10. Substantiation of National/Province allocations included in budget"]
["11. Indicative of realistic current arrear debtor collection targets (prior to 2003/04 revenue not available for high cap municipalities and later for other capacity classifications)"]
["12. Indicative of realistic long term arrear debtor collection targets (prior to 2003/04 revenue not available for high cap municipalities and later for other capacity classifications)"]
["13. Indicative of a credible allowance for repairs & maintenance of assets"]
["14. Indicative of a credible allowance for asset renewal (requires analysis of asset renewal projects as % of total capital projects - detailed capital plan)"]
[]
["Macro CPIX target",null,null,null,null,null,0.06,0.06,0.06,0.06,0.06]
["Total service charge revenue",null,null,null,null,null,{"$f":"IF(ISERROR(SUM('B4-FinPerf RE'!C8:C24)),0,(SUM('B4-FinPerf RE'!C8:C24)))","v":188695145},{"$f":"IF(ISERROR(SUM('B4-FinPerf RE'!D8:D24)),0,(SUM('B4-FinPerf RE'!D8:D24)))","v":190132145},{"$f":"IF(ISERROR(SUM('B4-FinPerf RE'!K8:K24)),0,(SUM('B4-FinPerf RE'!K8:K24)))","v":183413015},{"$f":"IF(ISERROR(SUM('B4-FinPerf RE'!L8:L24)),0,(SUM('B4-FinPerf RE'!L8:L24)))","v":195231406},{"$f":"IF(ISERROR(SUM('B4-FinPerf RE'!M8:M24)),0,(SUM('B4-FinPerf RE'!M8:M24)))","v":210001727}]
["Total service charge revenue - previous year",null,null,null,null,null,null,null,{"$f":"G37","v":0},{"$f":"I36","v":183413015},{"$f":"J36","v":195231406}]
["Provincial government gazetted allocations"]
["National government DoRA allocations"]
["Cash receipts from ratepayers",null,null,null,null,null,{"$f":"'B7-CFlow'!C8+'B7-CFlow'!C9+'B7-CFlow'!C10","v":111570182},{"$f":"'B7-CFlow'!D8+'B7-CFlow'!D9+'B7-CFlow'!D10","v":131707058},{"$f":"'B7-CFlow'!K8+'B7-CFlow'!K9+'B7-CFlow'!K10","v":131707058},{"$f":"'B7-CFlow'!L8+'B7-CFlow'!L9+'B7-CFlow'!L10","v":116522350},{"$f":"'B7-CFlow'!M8+'B7-CFlow'!M9+'B7-CFlow'!M10","v":126974188}]
["Ratepayer & Other revenue",null,null,null,null,null,164601186,{"$f":"SUM('B4-FinPerf RE'!D8:D13)+'B4-FinPerf RE'!D20+'B4-FinPerf RE'!D21+SUM('B4-FinPerf RE'!D23:D26)+'B4-FinPerf RE'!D30","v":162175449},{"$f":"SUM('B4-FinPerf RE'!K8:K13)+'B4-FinPerf RE'!K20+'B4-FinPerf RE'!K21+SUM('B4-FinPerf RE'!K23:K26)+'B4-FinPerf RE'!K30","v":155456319},{"$f":"SUM('B4-FinPerf RE'!L8:L13)+'B4-FinPerf RE'!L20+'B4-FinPerf RE'!L21+SUM('B4-FinPerf RE'!L23:L26)+'B4-FinPerf RE'!L30","v":167364502},{"$f":"SUM('B4-FinPerf RE'!M8:M13)+'B4-FinPerf RE'!M20+'B4-FinPerf RE'!M21+SUM('B4-FinPerf RE'!M23:M26)+'B4-FinPerf RE'!M30","v":181314391}]
["Change in debtors",null,null,null,null,null,null,null,null,{"$f":"(SUM('B6-FinPos'!L9:L13)+'B6-FinPos'!L18)-(SUM('B6-FinPos'!K9:K13)+'B6-FinPos'!K18)","v":917404},{"$f":"(SUM('B6-FinPos'!M9:M13)+'B6-FinPos'!M18)-(SUM('B6-FinPos'!L9:L13)+'B6-FinPos'!L18)","v":2433322}]
[]
[]
[]
[]
[]
[]
[]
[]
[]
[]
[]
[]
[]
[]
[]
[]
[]
[]
[]
[]
[]
[]
[]
[]
[]
[]
[]
[]
["Average annual collection rate (arrears inclusive)"]

{"sheet":"SB7","index":43,"n_rows":62,"n_cols":13,"rows_kept":62,"cut":false,"hidden":false,"merged":[[59,0,59,10],[56,0,56,10],[1,0,3,0],[1,1,3,1],[1,2,1,8]]}
[{"$f":"muni&\" - \"&ADJB7&\" - \"&Date","v":"KZN291 Mandeni - Supporting Table SB7 Adjustments Budget - transfers and grant receipts - 08-04-2025"}]
[{"$f":"desc","v":"Description"},{"$f":"head27","v":"Ref"},{"$f":"Head2","v":"Budget Year 2024/25"},null,null,null,null,null,null,{"$f":"Head10","v":"Budget Year +1 2025/26"},{"$f":"Head11","v":"Budget Year +2 2026/27"}]
[null,null,{"$f":"Head6","v":"Original Budget"},{"$f":"Head54","v":"Prior Adjusted"},{"$f":"Head52","v":"Multi-year capital"},{"$f":"Head55","v":"Nat. or Prov. Govt"},{"$f":"Head50","v":"Other Adjusts."},{"$f":"Head56","v":"Total Adjusts."},{"$f":"Head7","v":"Adjusted Budget"},{"$f":"Head7","v":"Adjusted Budget"},{"$f":"Head7","v":"Adjusted Budget"}]
[null,null,null,7,8,9,10,11,12]
["R thousands",null,"A","A1","B","C","D","E","F"]
["RECEIPTS:","1, 2"]
[]
["Operating Transfers and Grants"]
["National Government:",null,{"$f":"SUM(C10:C16)","v":258620620},0,0,-7727000,0,-7727000,250893620,255324450,250781150]
["Integrated National Electrification Programme",null,9227000,0,null,-7727000,null,{"$f":"SUM(E10:G10)","v":-7727000},{"$f":"IF(D10=0,C10+H10,D10+H10)","v":1500000},7920000,9109000]
["EPWP Incentive","_",1815000,0,0,0,0,0,1815000,0,0]
["Finance Management ","_",1800000,0,0,0,0,0,1800000,1900000,2000000]
["Local Government Equitable Share","_",243588000,0,0,0,0,0,243588000,243355000,237347000]
["Municipal Infrastructure Grant","_",2190620,0,0,0,0,0,2190620,2149450,2325150]
[]
[]
["Provincial Government:",null,{"$f":"SUM(C18:C22)","v":4619000},0,0,0,0,0,4619000,4933000,5088000]
["KwaZulu-Natal_Capacity Building and Other_Specify (Add grant description)_Receipts","_",4619000,0,0,0,0,0,4619000,4933000,5088000]
[]
[null,4]
[]
[null,5]
["District Municipality:",null,{"$f":"SUM(C24:C25)","v":0},0,0,0,0,0,0,0,0]
[null,null,0,0,0,0,0,{"$f":"SUM(E24:G24)","v":0},{"$f":"IF(D24=0,C24+H24,D24+H24)","v":0},0,0]
[null,null,null,null,null,null,null,{"$f":"SUM(E25:G25)","v":0},{"$f":"IF(D25=0,C25+H25,D25+H25)","v":0}]
["Other grant providers:",null,{"$f":"SUM(C27:C28)","v":0},0,0,0,0,0,0,0,0]
[]
[]
["Total Operating Transfers and Grants",6,{"$f":"C9+C17+C23+C26","v":263239620},0,0,-7727000,0,-7727000,{"$f":"I9+I17+I23+I26","v":255512620},260257450,255869150]
[]
["Capital Transfers and Grants"]
[{"$f":"A9","v":"National Government:"},null,{"$f":"SUM(C33:C38)","v":38910380},0,0,5181500,0,5181500,49469439,40839550,44177850]
[" Municipal Infrastructure Grant (MIG)","_",38910380,0,0,0,0,0,44287939,40839550,44177850]
["Municipal Disaster Recovery Grant","_",0,0,0,5181500,0,{"$f":"SUM(E34:G34)","v":5181500},{"$f":"IF(D34=0,C34+H34,D34+H34)","v":5181500},0,0]
[null,null,0,0,0,0,0,{"$f":"SUM(E35:G35)","v":0},{"$f":"IF(D35=0,C35+H35,D35+H35)","v":0},0,0]
[null,null,0,0,0,0,0,0,0,0,0,null,"`"]
[null,null,0,0,0,0,0,null,null,0,0]
[]
[{"$f":"A17","v":"Provincial Government:"},null,{"$f":"SUM(C40:C41)","v":0},0,0,0,0,0,0,0,0]
[null,null,0,0,null,null,null,{"$f":"SUM(E40:G40)","v":0},{"$f":"IF(D40=0,C40+H40,D40+H40)","v":0}]
[null,null,null,null,null,null,null,{"$f":"SUM(E41:G41)","v":0},{"$f":"IF(D41=0,C41+H41,D41+H41)","v":0}]
[{"$f":"A23","v":"District Municipality:"},null,{"$f":"SUM(C43:C44)","v":0},0,0,0,0,0,0,0,0]
["[insert description]",null,null,null,null,null,null,{"$f":"SUM(E43:G43)","v":0},{"$f":"IF(D43=0,C43+H43,D43+H43)","v":0}]
[null,null,null,null,null,null,null,{"$f":"SUM(E44:G44)","v":0},{"$f":"IF(D44=0,C44+H44,D44+H44)","v":0}]
[{"$f":"A26","v":"Other grant providers:"},null,{"$f":"SUM(C46:C47)","v":0},0,0,0,0,0,0,0,0]
["[insert description]",null,null,null,null,null,null,{"$f":"SUM(E46:G46)","v":0},{"$f":"IF(D46=0,C46+H46,D46+H46)","v":0}]
[null,null,null,null,null,null,null,{"$f":"SUM(E47:G47)","v":0},{"$f":"IF(D47=0,C47+H47,D47+H47)","v":0}]
["Total Capital Transfers and Grants",6,{"$f":"C32+C39+C42+C45","v":38910380},0,0,5181500,0,5181500,{"$f":"I32+I39+I42+I45","v":49469439},40839550,44177850]
["TOTAL RECEIPTS OF TRANSFERS & GRANTS",null,{"$f":"C29+C48","v":302150000},0,0,-2545500,0,-2545500,{"$f":"I29+I48","v":304982059},301097000,300047000]
[{"$f":"head27a","v":"References"}]
["1. Each grant is listed by name as gazetted together with the name of the transferring department or municipality, donor or other organisation"]
["2. Amounts actually RECEIVED; not revenue earned (the objective is to confirm grants allocated)"]
["3. Replacement of RSC levies"]
["4. Housing subsidies for housing where ownership transferred to organisations or persons outside the control of the municipality"]
["5. Motor vehicle licensing refunds to be included under 'agency' services (Not shown here as Receipts)"]
["6. Total Grant Receipts original budget must reconcile to budget supporting table A18"]
["7. Only complete if a previous adjusted budget has been approved in the same financial year. Reflect most recent adjusted budget."]
["8. Increases of funds approved under section 31 MFMA"]
["9. Adjustments to funding allocations from National or Provincial Government"]
["10. Adjusts. = 'Other' Adjustments proposed to be approved; including revenue under-collection (MFMA section 28(2)(a)); error correction (section 28(2)(f)); functional shifts and any adjustments made under delegation by the AO since the budget was approve"]
["11. E = B + C + D"]
["12. Adjusted Budget F = (A or A1) + E"]

{"sheet":"SB8","index":44,"n_rows":58,"n_cols":11,"rows_kept":58,"cut":false,"hidden":false,"merged":[[55,0,55,10],[1,0,3,0],[1,1,3,1],[1,2,1,8]]}
[{"$f":"muni&\" - \"&ADJB8&\" - \"&Date","v":"KZN291 Mandeni - Supporting Table SB8 Adjustments Budget - expenditure on transfers and grant programme - 08-04-2025"}]
[{"$f":"desc","v":"Description"},{"$f":"head27","v":"Ref"},{"$f":"Head2","v":"Budget Year 2024/25"},null,null,null,null,null,null,{"$f":"Head10","v":"Budget Year +1 2025/26"},{"$f":"Head11","v":"Budget Year +2 2026/27"}]
[null,null,{"$f":"Head6","v":"Original Budget"},{"$f":"Head54","v":"Prior Adjusted"},{"$f":"Head52","v":"Multi-year capital"},{"$f":"Head55","v":"Nat. or Prov. Govt"},{"$f":"Head50","v":"Other Adjusts."},{"$f":"Head56","v":"Total Adjusts."},{"$f":"Head7","v":"Adjusted Budget"},{"$f":"Head7","v":"Adjusted Budget"},{"$f":"Head7","v":"Adjusted Budget"}]
[null,null,null,2,3,4,5,6,7]
["R thousands",null,"A","A1","B","C","D","E","F"]
["EXPENDITURE ON TRANSFERS AND GRANT PROGRAM:",1]
[]
["Operating expenditure of Transfers and Grants"]
["National Government:",null,{"$f":"SUM(C10:C16)","v":15032620},0,0,-7727000,0,-7727000,7305620,11969450,13434150]
["Integrated National Electrification Programme",null,9227000,0,null,-7727000,null,-7727000,1500000,7920000,9109000]
["Expanded Public Works Programme Integrated Grant","_",1815000,0,0,0,0,0,1815000,0,0]
["Local Government Financial Management Grant","_",1800000,0,0,0,0,0,1800000,1900000,2000000]
["Municipal Infrastructure Grant","_",2190620,0,0,0,0,0,2190620,2149450,2325150]
[null,"_"]
[]
[{"$f":"'SB7'!A16","v":0}]
["Provincial Government:",null,{"$f":"SUM(C18:C22)","v":0},0,0,0,0,0,0,0,0]
[null,"_",0,0,0,0,0,{"$f":"SUM(E18:G18)","v":0},{"$f":"IF(D18=0,C18+H18,D18+H18)","v":0},0,0]
[]
[]
[]
[]
["District Municipality:",null,{"$f":"SUM(C24:C25)","v":0},0,0,0,0,0,0,0,0]
[{"$f":"'SB7'!A24","v":0},null,0,0,0,0,0,{"$f":"SUM(E24:G24)","v":0},{"$f":"IF(D24=0,C24+H24,D24+H24)","v":0}]
[{"$f":"'SB7'!A25","v":0},null,null,null,null,null,null,{"$f":"SUM(E25:G25)","v":0},{"$f":"IF(D25=0,C25+H25,D25+H25)","v":0}]
["Other grant providers:",null,{"$f":"SUM(C27:C28)","v":0},0,0,0,0,0,0,0,0]
[null,"_"]
[null,"_"]
["Total operating expenditure of Transfers and Grants:",null,{"$f":"C9+C17+C23+C26","v":15032620},0,0,-7727000,0,-7727000,{"$f":"I9+I17+I23+I26","v":7305620},11969450,13434150]
[]
["Capital expenditure of Transfers and Grants"]
["National Government:",null,{"$f":"SUM(C33:C38)","v":38910380},0,0,2283500,0,2283500,46571439,40839550,44177850]
["Municipal Infrastructure Grant","_",38910380,0,0,0,0,0,44287939,40839550,44177850]
["Municipal Disaster Recovery Grant","_",0,0,0,2283500,0,{"$f":"SUM(E34:G34)","v":2283500},{"$f":"IF(D34=0,C34+H34,D34+H34)","v":2283500},0,0]
[null,null,0,0,0,0,0,0,null,0,0]
[null,null,0,0,0,0,0,0,{"$f":"IF(D36=0,C36+H36,D36+H36)","v":0},0,0]
[{"$f":"'SB7'!A37","v":0},null,null,null,null,null,null,{"$f":"SUM(E37:G37)","v":0},0]
[{"$f":"'SB7'!A38","v":0},null,null,null,null,null,null,0,0]
["Provincial Government:",null,{"$f":"SUM(C40:C41)","v":0},0,0,0,0,0,0,0,0]
[null,null,null,null,null,null,null,{"$f":"SUM(E40:G40)","v":0},{"$f":"IF(D40=0,C40+H40,D40+H40)","v":0}]
[{"$f":"'SB7'!A41","v":0},null,null,null,null,null,null,{"$f":"SUM(E41:G41)","v":0},{"$f":"IF(D41=0,C41+H41,D41+H41)","v":0}]
["District Municipality:",null,{"$f":"SUM(C43:C44)","v":0},0,0,0,0,0,0,0,0]
[{"$f":"'SB7'!A43","v":"[insert description]"},null,null,null,null,null,null,{"$f":"SUM(E43:G43)","v":0},{"$f":"IF(D43=0,C43+H43,D43+H43)","v":0}]
[{"$f":"'SB7'!A44","v":0},null,null,null,null,null,null,{"$f":"SUM(E44:G44)","v":0},{"$f":"IF(D44=0,C44+H44,D44+H44)","v":0}]
["Other grant providers:",null,{"$f":"SUM(C46:C47)","v":0},0,0,0,0,0,0,0,0]
[{"$f":"'SB7'!A46","v":"[insert description]"},null,null,null,null,null,null,{"$f":"SUM(E46:G46)","v":0},{"$f":"IF(D46=0,C46+H46,D46+H46)","v":0}]
[{"$f":"'SB7'!A47","v":0},null,null,null,null,null,null,{"$f":"SUM(E47:G47)","v":0},{"$f":"IF(D47=0,C47+H47,D47+H47)","v":0}]
["Total capital expenditure of Transfers and Grants",null,{"$f":"C32+C39+C42+C45","v":38910380},0,0,2283500,0,2283500,46571439,40839550,44177850]
[]
["Total capital expenditure of Transfers and Grants",null,{"$f":"C29+C48","v":53943000},0,0,-5443500,0,-5443500,53877059,52809000,57612000]
[{"$f":"head27a","v":"References"}]
["1. Transfers/Grant expenditure must be separately listed for each allocation received"]
["2. Only complete if a previous adjusted budget has been approved in the same financial year. Reflect most recent adjusted budget."]
["3. Increases of funds approved under section 31 MFMA"]
["4. Adjustments to funding allocations from National or Provincial Government"]
["5. Adjusts. = 'Other' Adjustments proposed to be approved; error correction (section 28(2)(f)); functional shifts and any adjustments made under delegation by the AO since the budget was approved or since a previously 'approved' Adjustments Budget in the "]
["6. E = B + C + D"]
["7. Adjusted Budget F = (A or A1) + E"]

{"sheet":"SB9","index":45,"n_rows":66,"n_cols":11,"rows_kept":66,"cut":false,"hidden":false,"merged":[[60,0,60,10],[63,0,63,10],[1,2,1,8],[1,0,3,0],[1,1,3,1]]}
[{"$f":"muni&\" - \"&ADJB9&\" - \"&Date","v":"KZN291 Mandeni - Supporting Table SB9 Adjustments Budget - reconciliation of transfers, grant receipts, and unspent funds - 08-04-2025"}]
[{"$f":"desc","v":"Description"},{"$f":"head27","v":"Ref"},{"$f":"Head2","v":"Budget Year 2024/25"},null,null,null,null,null,null,{"$f":"Head10","v":"Budget Year +1 2025/26"},{"$f":"Head11","v":"Budget Year +2 2026/27"}]
[null,null,{"$f":"Head6","v":"Original Budget"},{"$f":"Head54","v":"Prior Adjusted"},{"$f":"Head52","v":"Multi-year capital"},{"$f":"Head55","v":"Nat. or Prov. Govt"},{"$f":"Head50","v":"Other Adjusts."},{"$f":"Head56","v":"Total Adjusts."},{"$f":"Head7","v":"Adjusted Budget"},{"$f":"Head7","v":"Adjusted Budget"},{"$f":"Head7","v":"Adjusted Budget"}]
[null,null,null,2,3,4,5,6,7]
["R thousands",null,"A","A1","B","C","D","E","F"]
["Operating transfers and grants:"]
["National Government:"]
["Balance unspent at beginning of the year",null,null,null,null,null,null,{"$f":"SUM(E8:G8)","v":0},{"$f":"IF(D8=0,C8+H8,D8+H8)","v":0}]
["Current year receipts",null,{"$f":"-'SB7'!C9","v":-258620620},{"$f":"'SB7'!D9","v":0},{"$f":"-'SB7'!E9","v":0},{"$f":"-'SB7'!F9","v":7727000},{"$f":"-'SB7'!G9","v":0},{"$f":"SUM(E9:G9)","v":7727000},{"$f":"IF(D9=0,C9+H9,D9+H9)","v":-250893620},{"$f":"-'SB7'!J9","v":-255324450},{"$f":"-'SB7'!K9","v":-250781150}]
["Repayment of grants"]
["Conditions met - transferred to revenue",null,{"$f":"C8+C9-C12","v":-273653240},0,0,15454000,0,15454000,-258199240,-267293900,-264215300]
["Conditions still to be met - transferred to liabilities",null,{"$f":"'SB8'!C9","v":15032620},{"$f":"'SB8'!D9","v":0},{"$f":"'SB8'!E9","v":0},{"$f":"'SB8'!F9","v":-7727000},{"$f":"'SB8'!G9","v":0},{"$f":"SUM(E12:G12)","v":-7727000},{"$f":"IF(D12=0,C12+H12,D12+H12)","v":7305620},{"$f":"'SB8'!J9","v":11969450},{"$f":"'SB8'!K9","v":13434150}]
["Provincial Government:"]
["Balance unspent at beginning of the year",null,null,null,null,null,null,{"$f":"SUM(E14:G14)","v":0},{"$f":"IF(D14=0,C14+H14,D14+H14)","v":0}]
[{"$f":"A9","v":"Current year receipts"},null,{"$f":"-'SB7'!C17","v":-4619000},{"$f":"'SB7'!D17","v":0},{"$f":"-'SB7'!E17","v":0},{"$f":"-'SB7'!F17","v":0},{"$f":"-'SB7'!G17","v":0},{"$f":"SUM(E15:G15)","v":0},{"$f":"IF(D15=0,C15+H15,D15+H15)","v":-4619000},{"$f":"-'SB7'!J17","v":-4933000},{"$f":"-'SB7'!K17","v":-5088000}]
[{"$f":"A11","v":"Conditions met - transferred to revenue"},null,{"$f":"C14+C15-C17","v":-4619000},0,0,0,0,0,-4619000,-4933000,-5088000]
[{"$f":"A12","v":"Conditions still to be met - transferred to liabilities"},null,{"$f":"'SB8'!C17","v":0},{"$f":"'SB8'!D17","v":0},{"$f":"'SB8'!E17","v":0},{"$f":"'SB8'!F17","v":0},{"$f":"'SB8'!G17","v":0},{"$f":"SUM(E17:G17)","v":0},{"$f":"IF(D17=0,C17+H17,D17+H17)","v":0},{"$f":"'SB8'!J17","v":0},{"$f":"'SB8'!K17","v":0}]
["District Municipality:"]
[{"$f":"A14","v":"Balance unspent at beginning of the year"},null,null,null,null,null,null,{"$f":"SUM(E19:G19)","v":0},{"$f":"IF(D19=0,C19+H19,D19+H19)","v":0}]
[{"$f":"A15","v":"Current year receipts"},null,{"$f":"-'SB7'!C23","v":0},{"$f":"-'SB7'!D23","v":0},{"$f":"-'SB7'!E23","v":0},{"$f":"-'SB7'!F23","v":0},{"$f":"-'SB7'!G23","v":0},{"$f":"SUM(E20:G20)","v":0},{"$f":"IF(D20=0,C20+H20,D20+H20)","v":0},{"$f":"-'SB7'!J23","v":0},{"$f":"-'SB7'!K23","v":0}]
[{"$f":"A16","v":"Conditions met - transferred to revenue"},null,{"$f":"C19+C20-C22","v":0},0,0,0,0,0,0,0,0]
[{"$f":"A17","v":"Conditions still to be met - transferred to liabilities"},null,{"$f":"'SB8'!C23","v":0},{"$f":"'SB8'!D23","v":0},{"$f":"'SB8'!E23","v":0},{"$f":"'SB8'!F23","v":0},{"$f":"'SB8'!G23","v":0},{"$f":"SUM(E22:G22)","v":0},{"$f":"IF(D22=0,C22+H22,D22+H22)","v":0},{"$f":"'SB8'!J23","v":0},{"$f":"'SB8'!K23","v":0}]
["Other grant providers:"]
[{"$f":"A14","v":"Balance unspent at beginning of the year"},null,null,null,null,null,null,{"$f":"SUM(E24:G24)","v":0},{"$f":"IF(D24=0,C24+H24,D24+H24)","v":0}]
[{"$f":"A15","v":"Current year receipts"},null,{"$f":"-'SB7'!C26","v":0},{"$f":"-'SB7'!D26","v":0},{"$f":"-'SB7'!E26","v":0},{"$f":"-'SB7'!F26","v":0},{"$f":"-'SB7'!G26","v":0},{"$f":"SUM(E25:G25)","v":0},{"$f":"IF(D25=0,C25+H25,D25+H25)","v":0},{"$f":"-'SB7'!J26","v":0},{"$f":"-'SB7'!K26","v":0}]
[{"$f":"A16","v":"Conditions met - transferred to revenue"},null,{"$f":"C24+C25-C27","v":0},0,0,0,0,0,0,0,0]
[{"$f":"A17","v":"Conditions still to be met - transferred to liabilities"},null,{"$f":"'SB8'!C26","v":0},{"$f":"'SB8'!D26","v":0},{"$f":"'SB8'!E26","v":0},{"$f":"'SB8'!F26","v":0},{"$f":"'SB8'!G26","v":0},{"$f":"SUM(E27:G27)","v":0},{"$f":"IF(D27=0,C27+H27,D27+H27)","v":0},{"$f":"'SB8'!J26","v":0},{"$f":"'SB8'!K26","v":0}]
["Total operating transfers and grants revenue",null,{"$f":"C11+C16+C21+C26","v":-278272240},0,0,15454000,0,15454000,-262818240,-272226900,-269303300]
["Total operating transfers and grants - CTBM",2,15032620,0,0,-7727000,0,-7727000,7305620,11969450,13434150]
[]
["Capital transfers and grants:"]
[{"$f":"A7","v":"National Government:"}]
["Balance unspent at beginning of the year",null,null,null,null,null,null,{"$f":"SUM(E33:G33)","v":0},{"$f":"IF(D33=0,C33+H33,D33+H33)","v":0}]
["Current year receipts",null,{"$f":"-'SB7'!C32","v":-38910380},{"$f":"-'SB7'!D32","v":0},{"$f":"-'SB7'!E32","v":0},{"$f":"-'SB7'!F32","v":-5181500},{"$f":"-'SB7'!G32","v":0},{"$f":"SUM(E34:G34)","v":-5181500},{"$f":"IF(D34=0,C34+H34,D34+H34)","v":-44091880},{"$f":"-'SB7'!J32","v":-40839550},{"$f":"-'SB7'!K32","v":-44177850}]
["Conditions met - transferred to revenue",null,{"$f":"C33+C34-C36","v":-77820760},0,0,-7465000,0,-7465000,-85285760,-81679100,-88355700]
["Conditions still to be met - transferred to liabilities",null,{"$f":"'SB8'!C32","v":38910380},null,{"$f":"'SB8'!E32","v":0},{"$f":"'SB8'!F32","v":2283500},{"$f":"'SB8'!G32","v":0},{"$f":"SUM(E36:G36)","v":2283500},{"$f":"IF(D36=0,C36+H36,D36+H36)","v":41193880},{"$f":"'SB8'!J32","v":40839550},{"$f":"'SB8'!K32","v":44177850}]
["Provincial Government:"]
["Balance unspent at beginning of the year",null,null,null,null,null,null,{"$f":"SUM(E38:G38)","v":0},{"$f":"IF(D38=0,C38+H38,D38+H38)","v":0}]
[{"$f":"A34","v":"Current year receipts"},null,{"$f":"-'SB7'!C39","v":0},{"$f":"-'SB7'!D39","v":0},{"$f":"-'SB7'!E39","v":0},{"$f":"-'SB7'!F39","v":0},{"$f":"-'SB7'!G39","v":0},{"$f":"SUM(E39:G39)","v":0},{"$f":"IF(D39=0,C39+H39,D39+H39)","v":0},{"$f":"-'SB7'!J39","v":0},{"$f":"-'SB7'!K39","v":0}]
[{"$f":"A35","v":"Conditions met - transferred to revenue"},null,{"$f":"C38+C39-C41","v":0},0,0,0,0,0,0,0,0]
[{"$f":"A36","v":"Conditions still to be met - transferred to liabilities"},null,{"$f":"'SB8'!C39","v":0},{"$f":"'SB8'!D39","v":0},{"$f":"'SB8'!E39","v":0},{"$f":"'SB8'!F39","v":0},{"$f":"'SB8'!G39","v":0},{"$f":"SUM(E41:G41)","v":0},{"$f":"IF(D41=0,C41+H41,D41+H41)","v":0},{"$f":"'SB8'!J39","v":0},{"$f":"'SB8'!K39","v":0}]
["District Municipality:"]
[{"$f":"A38","v":"Balance unspent at beginning of the year"},null,null,null,null,null,null,{"$f":"SUM(E43:G43)","v":0},{"$f":"IF(D43=0,C43+H43,D43+H43)","v":0}]
[{"$f":"A39","v":"Current year receipts"},null,{"$f":"-'SB7'!C42","v":0},{"$f":"-'SB7'!D42","v":0},{"$f":"-'SB7'!E42","v":0},{"$f":"-'SB7'!F42","v":0},{"$f":"-'SB7'!G42","v":0},{"$f":"SUM(E44:G44)","v":0},{"$f":"IF(D44=0,C44+H44,D44+H44)","v":0},{"$f":"-'SB7'!J42","v":0},{"$f":"-'SB7'!K42","v":0}]
[{"$f":"A40","v":"Conditions met - transferred to revenue"},null,{"$f":"C43+C44-C46","v":0},0,0,0,0,0,0,0,0]
[{"$f":"A41","v":"Conditions still to be met - transferred to liabilities"},null,{"$f":"'SB8'!C42","v":0},{"$f":"'SB8'!D42","v":0},{"$f":"'SB8'!E42","v":0},{"$f":"'SB8'!F42","v":0},{"$f":"'SB8'!G42","v":0},{"$f":"SUM(E46:G46)","v":0},{"$f":"IF(D46=0,C46+H46,D46+H46)","v":0},{"$f":"'SB8'!J42","v":0},{"$f":"'SB8'!K42","v":0}]
["Other grant providers:"]
[{"$f":"A38","v":"Balance unspent at beginning of the year"},null,null,null,null,null,null,{"$f":"SUM(E48:G48)","v":0},{"$f":"IF(D48=0,C48+H48,D48+H48)","v":0}]
[{"$f":"A39","v":"Current year receipts"},null,{"$f":"-'SB7'!C45","v":0},{"$f":"-'SB7'!D45","v":0},{"$f":"-'SB7'!E45","v":0},{"$f":"-'SB7'!F45","v":0},{"$f":"-'SB7'!G45","v":0},{"$f":"SUM(E49:G49)","v":0},{"$f":"IF(D49=0,C49+H49,D49+H49)","v":0},{"$f":"-'SB7'!J45","v":0},{"$f":"-'SB7'!K45","v":0}]
[{"$f":"A40","v":"Conditions met - transferred to revenue"},null,{"$f":"C48+C49-C51","v":0},0,0,0,0,0,0,0,0]
[{"$f":"A41","v":"Conditions still to be met - transferred to liabilities"},null,{"$f":"'SB8'!C45","v":0},{"$f":"'SB8'!D45","v":0},{"$f":"'SB8'!E45","v":0},{"$f":"'SB8'!F45","v":0},{"$f":"'SB8'!G45","v":0},{"$f":"SUM(E51:G51)","v":0},{"$f":"IF(D51=0,C51+H51,D51+H51)","v":0},{"$f":"'SB8'!J45","v":0},{"$f":"'SB8'!K45","v":0}]
["Total capital transfers and grants revenue",null,{"$f":"C35+C40+C45+C50","v":-77820760},0,0,-7465000,0,-7465000,-85285760,-81679100,-88355700]
["Total capital transfers and grants - CTBM",null,38910380,0,0,2283500,0,2283500,41193880,40839550,44177850]
[]
["TOTAL TRANSFERS AND GRANTS REVENUE",null,{"$f":"C28+C52","v":-356093000},0,0,7989000,0,7989000,-348104000,-353906000,-357659000]
["TOTAL TRANSFERS AND GRANTS -  CTBM",null,53943000,0,0,-5443500,0,-5443500,48499500,52809000,57612000]
[]
[{"$f":"head27a","v":"References"}]
["1. Total capital grants revenue budget must reconcile to budget tables A4 and A5; total operating grants revenue must reconcile to budget table A4"]
["2. CTBM = conditions to be met"]
["3. Only complete if a previous adjusted budget has been approved in the same financial year. Reflect most recent adjusted budget."]
["4. Increases of funds approved under section 31 MFMA"]
["5. Adjustments to funding allocations from National or Provincial Government"]
["5. Adjusts. = 'Other' Adjustments proposed to be approved; including revenue under-collection (MFMA section 28(2)(a)); additional revenue appropriation on existing programmes (section 28(2))(b); projected savings (section 28(2)(d)); error correction (sect"]
["6. E = B + C + D"]
["7. Adjusted Budget F = (A or A1) + E"]

{"sheet":"SB10","index":46,"n_rows":77,"n_cols":29,"rows_kept":77,"cut":false,"hidden":false,"merged":[[1,0,3,0],[1,1,3,1],[1,2,1,10]]}
[{"$f":"muni&\" - \"&ADJB10&\" - \"&Date","v":"KZN291 Mandeni - Supporting Table SB10 Adjustments Budget - transfers and grants made by the municipality - 08-04-2025"}]
[{"$f":"desc","v":"Description"},{"$f":"head27","v":"Ref"},{"$f":"Head2","v":"Budget Year 2024/25"},null,null,null,null,null,null,null,null,{"$f":"Head10","v":"Budget Year +1 2025/26"},{"$f":"Head11","v":"Budget Year +2 2026/27"}]
[null,null,{"$f":"Head6","v":"Original Budget"},{"$f":"Head54","v":"Prior Adjusted"},{"$f":"Head51","v":"Accum. Funds"},{"$f":"Head52","v":"Multi-year capital"},{"$f":"Head53","v":"Unfore. Unavoid."},{"$f":"Head55","v":"Nat. or Prov. Govt"},{"$f":"Head50","v":"Other Adjusts."},{"$f":"Head56","v":"Total Adjusts."},{"$f":"Head7","v":"Adjusted Budget"},{"$f":"Head7","v":"Adjusted Budget"},{"$f":"Head7","v":"Adjusted Budget"}]
[null,null,null,6,7,8,9,10,11,12,13]
["R thousands",null,"A","A1","B","C","D","E","F","G","H"]
["Cash transfers to other municipalities"]
["[insert description]",1,{"$f":"SUMIFS(Sheet1!S71_OriginalBudget,Sheet1!S71_SA21SubCode,$AC:$AC)","v":0},{"$f":"SUMIFS(Sheet1!S71_PreviousBudget,Sheet1!S71_SA21SubCode,$AC:$AC)","v":0},null,null,null,null,{"$f":"SUMIFS(Sheet1!S71_CurrentAdjustments,Sheet1!S71_SA21SubCode,$AC:$AC)","v":0},{"$f":"SUM(E7:I7)","v":0},{"$f":"IF(D7=0,C7+J7,D7+J7)","v":0},{"$f":"SUMIFS(Sheet1!S71_OY1AdjustedBudget,Sheet1!S71_SA21SubCode,$AC:$AC)","v":0},{"$f":"SUMIFS(Sheet1!S71_OY2AdjustedBudget,Sheet1!S71_SA21SubCode,$AC:$AC)","v":0},null,null,null,null,null,null,null,null,null,null,null,null,null,null,null,"28000101"]
["[insert description]",null,{"$f":"SUMIFS(Sheet1!S71_OriginalBudget,Sheet1!S71_SA21SubCode,$AC:$AC)","v":0},{"$f":"SUMIFS(Sheet1!S71_PreviousBudget,Sheet1!S71_SA21SubCode,$AC:$AC)","v":0},null,null,null,null,{"$f":"SUMIFS(Sheet1!S71_CurrentAdjustments,Sheet1!S71_SA21SubCode,$AC:$AC)","v":0},{"$f":"SUM(E8:I8)","v":0},{"$f":"IF(D8=0,C8+J8,D8+J8)","v":0},{"$f":"SUMIFS(Sheet1!S71_OY1AdjustedBudget,Sheet1!S71_SA21SubCode,$AC:$AC)","v":0},{"$f":"SUMIFS(Sheet1!S71_OY2AdjustedBudget,Sheet1!S71_SA21SubCode,$AC:$AC)","v":0}]
["[insert description]",null,{"$f":"SUMIFS(Sheet1!S71_OriginalBudget,Sheet1!S71_SA21SubCode,$AC:$AC)","v":0},{"$f":"SUMIFS(Sheet1!S71_PreviousBudget,Sheet1!S71_SA21SubCode,$AC:$AC)","v":0},null,null,null,null,{"$f":"SUMIFS(Sheet1!S71_CurrentAdjustments,Sheet1!S71_SA21SubCode,$AC:$AC)","v":0},{"$f":"SUM(E9:I9)","v":0},{"$f":"IF(D9=0,C9+J9,D9+J9)","v":0},{"$f":"SUMIFS(Sheet1!S71_OY1AdjustedBudget,Sheet1!S71_SA21SubCode,$AC:$AC)","v":0},{"$f":"SUMIFS(Sheet1!S71_OY2AdjustedBudget,Sheet1!S71_SA21SubCode,$AC:$AC)","v":0}]
["TOTAL ALLOCATIONS TO MUNICIPALITIES:",null,{"$f":"SUM(C7:C9)","v":0},0,0,0,0,0,0,0,0,0,0]
[]
["Cash transfers to Entities/Other External Mechanisms"]
["[insert description]",2,{"$f":"SUMIFS(Sheet1!S71_OriginalBudget,Sheet1!S71_SA21SubCode,$AC:$AC)","v":0},{"$f":"SUMIFS(Sheet1!S71_PreviousBudget,Sheet1!S71_SA21SubCode,$AC:$AC)","v":0},null,null,null,null,{"$f":"SUMIFS(Sheet1!S71_CurrentAdjustments,Sheet1!S71_SA21SubCode,$AC:$AC)","v":0},{"$f":"SUM(E13:I13)","v":0},{"$f":"IF(D13=0,C13+J13,D13+J13)","v":0},{"$f":"SUMIFS(Sheet1!S71_OY1AdjustedBudget,Sheet1!S71_SA21SubCode,$AC:$AC)","v":0},{"$f":"SUMIFS(Sheet1!S71_OY2AdjustedBudget,Sheet1!S71_SA21SubCode,$AC:$AC)","v":0},null,null,null,null,null,null,null,null,null,null,null,null,null,null,null,"28000102"]
["[insert description]",null,{"$f":"SUMIFS(Sheet1!S71_OriginalBudget,Sheet1!S71_SA21SubCode,$AC:$AC)","v":0},{"$f":"SUMIFS(Sheet1!S71_PreviousBudget,Sheet1!S71_SA21SubCode,$AC:$AC)","v":0},null,null,null,null,{"$f":"SUMIFS(Sheet1!S71_CurrentAdjustments,Sheet1!S71_SA21SubCode,$AC:$AC)","v":0},{"$f":"SUM(E14:I14)","v":0},{"$f":"IF(D14=0,C14+J14,D14+J14)","v":0},{"$f":"SUMIFS(Sheet1!S71_OY1AdjustedBudget,Sheet1!S71_SA21SubCode,$AC:$AC)","v":0},{"$f":"SUMIFS(Sheet1!S71_OY2AdjustedBudget,Sheet1!S71_SA21SubCode,$AC:$AC)","v":0}]
["[insert description]",null,{"$f":"SUMIFS(Sheet1!S71_OriginalBudget,Sheet1!S71_SA21SubCode,$AC:$AC)","v":0},{"$f":"SUMIFS(Sheet1!S71_PreviousBudget,Sheet1!S71_SA21SubCode,$AC:$AC)","v":0},null,null,null,null,{"$f":"SUMIFS(Sheet1!S71_CurrentAdjustments,Sheet1!S71_SA21SubCode,$AC:$AC)","v":0},{"$f":"SUM(E15:I15)","v":0},{"$f":"IF(D15=0,C15+J15,D15+J15)","v":0},{"$f":"SUMIFS(Sheet1!S71_OY1AdjustedBudget,Sheet1!S71_SA21SubCode,$AC:$AC)","v":0},{"$f":"SUMIFS(Sheet1!S71_OY2AdjustedBudget,Sheet1!S71_SA21SubCode,$AC:$AC)","v":0}]
["TOTAL ALLOCATIONS TO ENTITIES/EMs'",null,{"$f":"SUM(C13:C15)","v":0},0,0,0,0,0,0,0,0,0,0]
[]
["Cash transfers to other Organs of State"]
["[insert description]",3,{"$f":"SUMIFS(Sheet1!S71_OriginalBudget,Sheet1!S71_SA21SubCode,$AC:$AC)","v":0},{"$f":"SUMIFS(Sheet1!S71_PreviousBudget,Sheet1!S71_SA21SubCode,$AC:$AC)","v":0},null,null,null,null,{"$f":"SUMIFS(Sheet1!S71_CurrentAdjustments,Sheet1!S71_SA21SubCode,$AC:$AC)","v":0},{"$f":"SUM(E19:I19)","v":0},{"$f":"IF(D19=0,C19+J19,D19+J19)","v":0},{"$f":"SUMIFS(Sheet1!S71_OY1AdjustedBudget,Sheet1!S71_SA21SubCode,$AC:$AC)","v":0},{"$f":"SUMIFS(Sheet1!S71_OY2AdjustedBudget,Sheet1!S71_SA21SubCode,$AC:$AC)","v":0},null,null,null,null,null,null,null,null,null,null,null,null,null,null,null,"28000103"]
["[insert description]",null,{"$f":"SUMIFS(Sheet1!S71_OriginalBudget,Sheet1!S71_SA21SubCode,$AC:$AC)","v":0},{"$f":"SUMIFS(Sheet1!S71_PreviousBudget,Sheet1!S71_SA21SubCode,$AC:$AC)","v":0},null,null,null,null,{"$f":"SUMIFS(Sheet1!S71_CurrentAdjustments,Sheet1!S71_SA21SubCode,$AC:$AC)","v":0},{"$f":"SUM(E20:I20)","v":0},{"$f":"IF(D20=0,C20+J20,D20+J20)","v":0},{"$f":"SUMIFS(Sheet1!S71_OY1AdjustedBudget,Sheet1!S71_SA21SubCode,$AC:$AC)","v":0},{"$f":"SUMIFS(Sheet1!S71_OY2AdjustedBudget,Sheet1!S71_SA21SubCode,$AC:$AC)","v":0}]
["[insert description]",null,{"$f":"SUMIFS(Sheet1!S71_OriginalBudget,Sheet1!S71_SA21SubCode,$AC:$AC)","v":0},{"$f":"SUMIFS(Sheet1!S71_PreviousBudget,Sheet1!S71_SA21SubCode,$AC:$AC)","v":0},null,null,null,null,{"$f":"SUMIFS(Sheet1!S71_CurrentAdjustments,Sheet1!S71_SA21SubCode,$AC:$AC)","v":0},{"$f":"SUM(E21:I21)","v":0},{"$f":"IF(D21=0,C21+J21,D21+J21)","v":0},{"$f":"SUMIFS(Sheet1!S71_OY1AdjustedBudget,Sheet1!S71_SA21SubCode,$AC:$AC)","v":0},{"$f":"SUMIFS(Sheet1!S71_OY2AdjustedBudget,Sheet1!S71_SA21SubCode,$AC:$AC)","v":0}]
["TOTAL ALLOCATIONS TO OTHER ORGANS OF STATE:",null,{"$f":"SUM(C19:C21)","v":0},0,0,0,0,0,0,0,0,0,0]
[]
["Cash transfers to other Organisations"]
["[insert description]",4,{"$f":"SUMIFS(Sheet1!S71_OriginalBudget,Sheet1!S71_SA21SubCode,$AC:$AC)","v":0},{"$f":"SUMIFS(Sheet1!S71_PreviousBudget,Sheet1!S71_SA21SubCode,$AC:$AC)","v":0},null,null,null,null,{"$f":"SUMIFS(Sheet1!S71_CurrentAdjustments,Sheet1!S71_SA21SubCode,$AC:$AC)","v":0},{"$f":"SUM(E25:I25)","v":0},{"$f":"IF(D25=0,C25+J25,D25+J25)","v":0},{"$f":"SUMIFS(Sheet1!S71_OY1AdjustedBudget,Sheet1!S71_SA21SubCode,$AC:$AC)","v":0},{"$f":"SUMIFS(Sheet1!S71_OY2AdjustedBudget,Sheet1!S71_SA21SubCode,$AC:$AC)","v":0},null,null,null,null,null,null,null,null,null,null,null,null,null,null,null,"28000104"]
["[insert description]",null,{"$f":"SUMIFS(Sheet1!S71_OriginalBudget,Sheet1!S71_SA21SubCode,$AC:$AC)","v":0},{"$f":"SUMIFS(Sheet1!S71_PreviousBudget,Sheet1!S71_SA21SubCode,$AC:$AC)","v":0},null,null,null,null,{"$f":"SUMIFS(Sheet1!S71_CurrentAdjustments,Sheet1!S71_SA21SubCode,$AC:$AC)","v":0},{"$f":"SUM(E26:I26)","v":0},{"$f":"IF(D26=0,C26+J26,D26+J26)","v":0},{"$f":"SUMIFS(Sheet1!S71_OY1AdjustedBudget,Sheet1!S71_SA21SubCode,$AC:$AC)","v":0},{"$f":"SUMIFS(Sheet1!S71_OY2AdjustedBudget,Sheet1!S71_SA21SubCode,$AC:$AC)","v":0}]
["[insert description]",null,{"$f":"SUMIFS(Sheet1!S71_OriginalBudget,Sheet1!S71_SA21SubCode,$AC:$AC)","v":0},{"$f":"SUMIFS(Sheet1!S71_PreviousBudget,Sheet1!S71_SA21SubCode,$AC:$AC)","v":0},null,null,null,null,{"$f":"SUMIFS(Sheet1!S71_CurrentAdjustments,Sheet1!S71_SA21SubCode,$AC:$AC)","v":0},{"$f":"SUM(E27:I27)","v":0},{"$f":"IF(D27=0,C27+J27,D27+J27)","v":0},{"$f":"SUMIFS(Sheet1!S71_OY1AdjustedBudget,Sheet1!S71_SA21SubCode,$AC:$AC)","v":0},{"$f":"SUMIFS(Sheet1!S71_OY2AdjustedBudget,Sheet1!S71_SA21SubCode,$AC:$AC)","v":0}]
["TOTAL CASH TRANSFERS TO OTHER ORGANISATIONS:",null,{"$f":"SUM(C25:C27)","v":0},0,0,0,0,0,0,0,0,0,0]
[]
["Groups of Individuals"]
["[insert description]",null,{"$f":"SUMIFS(Sheet1!S71_OriginalBudget,Sheet1!S71_SA21SubCode,$AC:$AC)","v":0},{"$f":"SUMIFS(Sheet1!S71_PreviousBudget,Sheet1!S71_SA21SubCode,$AC:$AC)","v":0},null,null,null,null,{"$f":"SUMIFS(Sheet1!S71_CurrentAdjustments,Sheet1!S71_SA21SubCode,$AC:$AC)","v":0},{"$f":"SUM(E31:I31)","v":0},{"$f":"IF(D31=0,C31+J31,D31+J31)","v":0},{"$f":"SUMIFS(Sheet1!S71_OY1AdjustedBudget,Sheet1!S71_SA21SubCode,$AC:$AC)","v":0},{"$f":"SUMIFS(Sheet1!S71_OY2AdjustedBudget,Sheet1!S71_SA21SubCode,$AC:$AC)","v":0},null,null,null,null,null,null,null,null,null,null,null,null,null,null,null,28000105]
["[insert description]"]
["[insert description]"]
["Total Non-Cash Grants To Groups Of Individuals:",null,{"$f":"SUM(C31:C33)","v":0},0,0,0,0,0,0,0,0,0,0]
[]
["TOTAL CASH TRANSFERS",5,{"$f":"C10+C16+C22+C28+C34","v":0},{"$f":"D10+D16+D22+D28","v":0},0,0,0,0,0,0,0,0,0]
[]
["Non-cash transfers to other municipalities"]
["[insert description]",1,{"$f":"SUMIFS(Sheet1!S71_OriginalBudget,Sheet1!S71_SA21SubCode,$AC:$AC)","v":0},{"$f":"SUMIFS(Sheet1!S71_PreviousBudget,Sheet1!S71_SA21SubCode,$AC:$AC)","v":0},null,null,null,null,{"$f":"SUMIFS(Sheet1!S71_CurrentAdjustments,Sheet1!S71_SA21SubCode,$AC:$AC)","v":0},{"$f":"SUM(E39:I39)","v":0},{"$f":"IF(D39=0,C39+J39,D39+J39)","v":0},{"$f":"SUMIFS(Sheet1!S71_OY1AdjustedBudget,Sheet1!S71_SA21SubCode,$AC:$AC)","v":0},{"$f":"SUMIFS(Sheet1!S71_OY2AdjustedBudget,Sheet1!S71_SA21SubCode,$AC:$AC)","v":0},null,null,null,null,null,null,null,null,null,null,null,null,null,null,null,"28000201"]
["[insert description]",null,{"$f":"SUMIFS(Sheet1!S71_OriginalBudget,Sheet1!S71_SA21SubCode,$AC:$AC)","v":0},{"$f":"SUMIFS(Sheet1!S71_PreviousBudget,Sheet1!S71_SA21SubCode,$AC:$AC)","v":0},null,null,null,null,{"$f":"SUMIFS(Sheet1!S71_CurrentAdjustments,Sheet1!S71_SA21SubCode,$AC:$AC)","v":0},{"$f":"SUM(E40:I40)","v":0},{"$f":"IF(D40=0,C40+J40,D40+J40)","v":0},{"$f":"SUMIFS(Sheet1!S71_OY1AdjustedBudget,Sheet1!S71_SA21SubCode,$AC:$AC)","v":0},{"$f":"SUMIFS(Sheet1!S71_OY2AdjustedBudget,Sheet1!S71_SA21SubCode,$AC:$AC)","v":0}]
["[insert description]",null,{"$f":"SUMIFS(Sheet1!S71_OriginalBudget,Sheet1!S71_SA21SubCode,$AC:$AC)","v":0},{"$f":"SUMIFS(Sheet1!S71_PreviousBudget,Sheet1!S71_SA21SubCode,$AC:$AC)","v":0},null,null,null,null,{"$f":"SUMIFS(Sheet1!S71_CurrentAdjustments,Sheet1!S71_SA21SubCode,$AC:$AC)","v":0},{"$f":"SUM(E41:I41)","v":0},{"$f":"IF(D41=0,C41+J41,D41+J41)","v":0},{"$f":"SUMIFS(Sheet1!S71_OY1AdjustedBudget,Sheet1!S71_SA21SubCode,$AC:$AC)","v":0},{"$f":"SUMIFS(Sheet1!S71_OY2AdjustedBudget,Sheet1!S71_SA21SubCode,$AC:$AC)","v":0}]
["TOTAL ALLOCATIONS TO MUNICIPALITIES:",null,{"$f":"SUM(C39:C41)","v":0},0,0,0,0,0,0,0,0,0,0]
[]
["Non-cash transfers to Entities/Other External Mechanisms"]
["[insert description]",2,{"$f":"SUMIFS(Sheet1!S71_OriginalBudget,Sheet1!S71_SA21SubCode,$AC:$AC)","v":0},{"$f":"SUMIFS(Sheet1!S71_PreviousBudget,Sheet1!S71_SA21SubCode,$AC:$AC)","v":0},null,null,null,null,{"$f":"SUMIFS(Sheet1!S71_CurrentAdjustments,Sheet1!S71_SA21SubCode,$AC:$AC)","v":0},{"$f":"SUM(E45:I45)","v":0},{"$f":"IF(D45=0,C45+J45,D45+J45)","v":0},{"$f":"SUMIFS(Sheet1!S71_OY1AdjustedBudget,Sheet1!S71_SA21SubCode,$AC:$AC)","v":0},{"$f":"SUMIFS(Sheet1!S71_OY2AdjustedBudget,Sheet1!S71_SA21SubCode,$AC:$AC)","v":0},null,null,null,null,null,null,null,null,null,null,null,null,null,null,null,"28000202"]
["[insert description]",null,{"$f":"SUMIFS(Sheet1!S71_OriginalBudget,Sheet1!S71_SA21SubCode,$AC:$AC)","v":0},{"$f":"SUMIFS(Sheet1!S71_PreviousBudget,Sheet1!S71_SA21SubCode,$AC:$AC)","v":0},null,null,null,null,{"$f":"SUMIFS(Sheet1!S71_CurrentAdjustments,Sheet1!S71_SA21SubCode,$AC:$AC)","v":0},{"$f":"SUM(E46:I46)","v":0},{"$f":"IF(D46=0,C46+J46,D46+J46)","v":0},{"$f":"SUMIFS(Sheet1!S71_OY1AdjustedBudget,Sheet1!S71_SA21SubCode,$AC:$AC)","v":0},{"$f":"SUMIFS(Sheet1!S71_OY2AdjustedBudget,Sheet1!S71_SA21SubCode,$AC:$AC)","v":0}]
["[insert description]",null,{"$f":"SUMIFS(Sheet1!S71_OriginalBudget,Sheet1!S71_SA21SubCode,$AC:$AC)","v":0},{"$f":"SUMIFS(Sheet1!S71_PreviousBudget,Sheet1!S71_SA21SubCode,$AC:$AC)","v":0},null,null,null,null,{"$f":"SUMIFS(Sheet1!S71_CurrentAdjustments,Sheet1!S71_SA21SubCode,$AC:$AC)","v":0},{"$f":"SUM(E47:I47)","v":0},{"$f":"IF(D47=0,C47+J47,D47+J47)","v":0},{"$f":"SUMIFS(Sheet1!S71_OY1AdjustedBudget,Sheet1!S71_SA21SubCode,$AC:$AC)","v":0},{"$f":"SUMIFS(Sheet1!S71_OY2AdjustedBudget,Sheet1!S71_SA21SubCode,$AC:$AC)","v":0}]
["TOTAL ALLOCATIONS TO ENTITIES/EMs'",null,{"$f":"SUM(C45:C47)","v":0},0,0,0,0,0,0,0,0,0,0]
[]
["Non-cash transfers to other Organs of State"]
["[insert description]",3,{"$f":"SUMIFS(Sheet1!S71_OriginalBudget,Sheet1!S71_SA21SubCode,$AC:$AC)","v":0},{"$f":"SUMIFS(Sheet1!S71_PreviousBudget,Sheet1!S71_SA21SubCode,$AC:$AC)","v":0},null,null,null,null,{"$f":"SUMIFS(Sheet1!S71_CurrentAdjustments,Sheet1!S71_SA21SubCode,$AC:$AC)","v":0},{"$f":"SUM(E51:I51)","v":0},{"$f":"IF(D51=0,C51+J51,D51+J51)","v":0},{"$f":"SUMIFS(Sheet1!S71_OY1AdjustedBudget,Sheet1!S71_SA21SubCode,$AC:$AC)","v":0},{"$f":"SUMIFS(Sheet1!S71_OY2AdjustedBudget,Sheet1!S71_SA21SubCode,$AC:$AC)","v":0},null,null,null,null,null,null,null,null,null,null,null,null,null,null,null,"28000203"]
["[insert description]",null,{"$f":"SUMIFS(Sheet1!S71_OriginalBudget,Sheet1!S71_SA21SubCode,$AC:$AC)","v":0},{"$f":"SUMIFS(Sheet1!S71_PreviousBudget,Sheet1!S71_SA21SubCode,$AC:$AC)","v":0},null,null,null,null,{"$f":"SUMIFS(Sheet1!S71_CurrentAdjustments,Sheet1!S71_SA21SubCode,$AC:$AC)","v":0},{"$f":"SUM(E52:I52)","v":0},{"$f":"IF(D52=0,C52+J52,D52+J52)","v":0},{"$f":"SUMIFS(Sheet1!S71_OY1AdjustedBudget,Sheet1!S71_SA21SubCode,$AC:$AC)","v":0},{"$f":"SUMIFS(Sheet1!S71_OY2AdjustedBudget,Sheet1!S71_SA21SubCode,$AC:$AC)","v":0}]
["[insert description]",null,{"$f":"SUMIFS(Sheet1!S71_OriginalBudget,Sheet1!S71_SA21SubCode,$AC:$AC)","v":0},{"$f":"SUMIFS(Sheet1!S71_PreviousBudget,Sheet1!S71_SA21SubCode,$AC:$AC)","v":0},null,null,null,null,{"$f":"SUMIFS(Sheet1!S71_CurrentAdjustments,Sheet1!S71_SA21SubCode,$AC:$AC)","v":0},{"$f":"SUM(E53:I53)","v":0},{"$f":"IF(D53=0,C53+J53,D53+J53)","v":0},{"$f":"SUMIFS(Sheet1!S71_OY1AdjustedBudget,Sheet1!S71_SA21SubCode,$AC:$AC)","v":0},{"$f":"SUMIFS(Sheet1!S71_OY2AdjustedBudget,Sheet1!S71_SA21SubCode,$AC:$AC)","v":0}]
["TOTAL ALLOCATIONS TO OTHER ORGANS OF STATE:",null,{"$f":"SUM(C51:C53)","v":0},0,0,0,0,0,0,0,0,0,0]
[]
["Non-cash transfers to other Organisations"]
["[insert description]",4,{"$f":"SUMIFS(Sheet1!S71_OriginalBudget,Sheet1!S71_SA21SubCode,$AC:$AC)","v":0},{"$f":"SUMIFS(Sheet1!S71_PreviousBudget,Sheet1!S71_SA21SubCode,$AC:$AC)","v":0},null,null,null,null,{"$f":"SUMIFS(Sheet1!S71_CurrentAdjustments,Sheet1!S71_SA21SubCode,$AC:$AC)","v":0},{"$f":"SUM(E57:I57)","v":0},{"$f":"IF(D57=0,C57+J57,D57+J57)","v":0},{"$f":"SUMIFS(Sheet1!S71_OY1AdjustedBudget,Sheet1!S71_SA21SubCode,$AC:$AC)","v":0},{"$f":"SUMIFS(Sheet1!S71_OY2AdjustedBudget,Sheet1!S71_SA21SubCode,$AC:$AC)","v":0},null,null,null,null,null,null,null,null,null,null,null,null,null,null,null,"28000204"]
["[insert description]",null,{"$f":"SUMIFS(Sheet1!S71_OriginalBudget,Sheet1!S71_SA21SubCode,$AC:$AC)","v":0},{"$f":"SUMIFS(Sheet1!S71_PreviousBudget,Sheet1!S71_SA21SubCode,$AC:$AC)","v":0},null,null,null,null,{"$f":"SUMIFS(Sheet1!S71_CurrentAdjustments,Sheet1!S71_SA21SubCode,$AC:$AC)","v":0},{"$f":"SUM(E58:I58)","v":0},{"$f":"IF(D58=0,C58+J58,D58+J58)","v":0},{"$f":"SUMIFS(Sheet1!S71_OY1AdjustedBudget,Sheet1!S71_SA21SubCode,$AC:$AC)","v":0},{"$f":"SUMIFS(Sheet1!S71_OY2AdjustedBudget,Sheet1!S71_SA21SubCode,$AC:$AC)","v":0}]
["[insert description]",null,{"$f":"SUMIFS(Sheet1!S71_OriginalBudget,Sheet1!S71_SA21SubCode,$AC:$AC)","v":0},{"$f":"SUMIFS(Sheet1!S71_PreviousBudget,Sheet1!S71_SA21SubCode,$AC:$AC)","v":0},null,null,null,null,{"$f":"SUMIFS(Sheet1!S71_CurrentAdjustments,Sheet1!S71_SA21SubCode,$AC:$AC)","v":0},{"$f":"SUM(E59:I59)","v":0},{"$f":"IF(D59=0,C59+J59,D59+J59)","v":0},{"$f":"SUMIFS(Sheet1!S71_OY1AdjustedBudget,Sheet1!S71_SA21SubCode,$AC:$AC)","v":0},{"$f":"SUMIFS(Sheet1!S71_OY2AdjustedBudget,Sheet1!S71_SA21SubCode,$AC:$AC)","v":0}]
["TOTAL NON-CASH TRANSFERS TO OTHER ORGANISATIONS:",null,{"$f":"SUM(C57:C59)","v":0},0,0,0,0,0,0,0,0,0,0]
[]
["TOTAL NON-CASH TRANSFERS",5,{"$f":"C42+C48+C54+C60","v":0},{"$f":"D42+D48+D54+D60","v":0},0,0,0,0,0,0,0,0,0]
["TOTAL TRANSFERS",null,{"$f":"C36+C62","v":0},{"$f":"D36+D62","v":0},0,0,0,0,0,0,0,0,0]
[{"$f":"head27a","v":"References"}]
["1. Insert description listed by municipal name and demarcation code of recipient"]
["2. Insert description of each entity or external mechanism (an external mechanism may be provided with resources to ensure a minimum level of service)"]
["3. Insert description of each Organ of State; e.g. Eskom"]
["4. Insert description of each 'other' organisation"]
["5. All descriptions should separate allocations for 'capital purposes' and 'operating purposes'"]
["6. Only complete if a previous adjusted budget has been approved in the same financial year. Reflect most recent adjusted budget."]
["7. Additional cash-backed accumulated funds/unspent funds (section 18(1)(b) and section 28(2)(e) MFMA) identified after Original Budget approved and after annual financial statements audited (note: only where underspending could not reasonably be have for"]
["8. Increases of funds approved under section 31 MFMA"]
["9. Adjustments approved in accordance with section 29 MFMA"]
["10. Adjustments to funding allocations from National or Provincial Government"]
["11. Adjusts. = 'Other' Adjustments proposed to be approved; including revenue under-collection (MFMA section 28(2)(a)); additional revenue appropriation on existing programmes (section 28(2))(b); projected savings (section 28(2)(d)); error correction (sec"]
["12. G = B + C + D + E +  F"]
["13. Adjusted Budget H = (A or A1) + G"]

{"sheet":"SB11","index":47,"n_rows":140,"n_cols":30,"rows_kept":140,"cut":false,"hidden":false,"merged":[[1,0,2,0],[1,1,2,1],[137,0,137,11],[139,0,139,11],[132,0,132,11],[134,0,134,9],[135,0,135,11],[133,0,133,11],[1,2,1,10]]}
[{"$f":"muni&\" - \"&ADJB11&\" - \"&Date","v":"KZN291 Mandeni - Supporting Table SB11 Adjustments Budget - councillor and staff benefits - 08-04-2025"}]
["Summary of remuneration",{"$f":"head27","v":"Ref"},{"$f":"Head2","v":"Budget Year 2024/25"}]
[null,null,{"$f":"Head6","v":"Original Budget"},{"$f":"Head54","v":"Prior Adjusted"},{"$f":"Head51","v":"Accum. Funds"},{"$f":"Head52","v":"Multi-year capital"},{"$f":"Head53","v":"Unfore. Unavoid."},{"$f":"Head55","v":"Nat. or Prov. Govt"},{"$f":"Head50","v":"Other Adjusts."},{"$f":"Head56","v":"Total Adjusts."},{"$f":"Head7","v":"Adjusted Budget"},"% change"]
[null,null,null,5,6,7,8,9,10,11,12]
["R thousands",null,"A","A1","B","C","D","E","F","G","H"]
["Councillors (Political Office Bearers plus Other)"]
["Basic Salaries and Wages",null,{"$f":"SUMIFS(Sheet1!S71_OriginalBudget,Sheet1!S71_SA22SubCode,$AC:$AC)","v":13768010},{"$f":"SUMIFS(Sheet1!S71_PreviousBudget,Sheet1!S71_SA22SubCode,$AC:$AC)","v":13768010},null,null,null,null,{"$f":"SUMIFS(Sheet1!S71_CurrentAdjustments,Sheet1!S71_SA22SubCode,$AC:$AC)","v":0},{"$f":"G7+I7","v":0},{"$f":"IF(D7=0,C7+J7,D7+J7)","v":13768010},{"$f":"IF(K7=0,\"\",(K7/C7)-1)","v":0},null,null,null,null,null,null,null,null,null,null,null,null,null,null,null,null,210001]
["Pension and UIF Contributions",null,{"$f":"SUMIFS(Sheet1!S71_OriginalBudget,Sheet1!S71_SA22SubCode,$AC:$AC)","v":0},{"$f":"SUMIFS(Sheet1!S71_PreviousBudget,Sheet1!S71_SA22SubCode,$AC:$AC)","v":0},null,null,null,null,{"$f":"SUMIFS(Sheet1!S71_CurrentAdjustments,Sheet1!S71_SA22SubCode,$AC:$AC)","v":0},0,0,{"$f":"IF(K8=0,\"\",(K8/C8)-1)","v":""},null,null,null,null,null,null,null,null,null,null,null,null,null,null,null,null,210002]
["Medical Aid Contributions",null,{"$f":"SUMIFS(Sheet1!S71_OriginalBudget,Sheet1!S71_SA22SubCode,$AC:$AC)","v":0},{"$f":"SUMIFS(Sheet1!S71_PreviousBudget,Sheet1!S71_SA22SubCode,$AC:$AC)","v":0},null,null,null,null,{"$f":"SUMIFS(Sheet1!S71_CurrentAdjustments,Sheet1!S71_SA22SubCode,$AC:$AC)","v":0},0,0,{"$f":"IF(K9=0,\"\",(K9/C9)-1)","v":""},null,null,null,null,null,null,null,null,null,null,null,null,null,null,null,null,210003]
["Motor Vehicle Allowance",null,{"$f":"SUMIFS(Sheet1!S71_OriginalBudget,Sheet1!S71_SA22SubCode,$AC:$AC)","v":674620},{"$f":"SUMIFS(Sheet1!S71_PreviousBudget,Sheet1!S71_SA22SubCode,$AC:$AC)","v":674620},null,null,null,null,{"$f":"SUMIFS(Sheet1!S71_CurrentAdjustments,Sheet1!S71_SA22SubCode,$AC:$AC)","v":0},0,674620,{"$f":"IF(K10=0,\"\",(K10/C10)-1)","v":0},null,null,null,null,null,null,null,null,null,null,null,null,null,null,null,null,210004]
["Cellphone Allowance",null,{"$f":"SUMIFS(Sheet1!S71_OriginalBudget,Sheet1!S71_SA22SubCode,$AC:$AC)","v":1686670},{"$f":"SUMIFS(Sheet1!S71_PreviousBudget,Sheet1!S71_SA22SubCode,$AC:$AC)","v":1686670},null,null,null,null,{"$f":"SUMIFS(Sheet1!S71_CurrentAdjustments,Sheet1!S71_SA22SubCode,$AC:$AC)","v":0},0,1686670,null,null,null,null,null,null,null,null,null,null,null,null,null,null,null,null,null,210005]
["Housing Allowances",null,{"$f":"SUMIFS(Sheet1!S71_OriginalBudget,Sheet1!S71_SA22SubCode,$AC:$AC)","v":258320},{"$f":"SUMIFS(Sheet1!S71_PreviousBudget,Sheet1!S71_SA22SubCode,$AC:$AC)","v":258320},null,null,null,null,{"$f":"SUMIFS(Sheet1!S71_CurrentAdjustments,Sheet1!S71_SA22SubCode,$AC:$AC)","v":0},0,258320,null,null,null,null,null,null,null,null,null,null,null,null,null,null,null,null,null,210006]
["Other benefits and allowances",null,{"$f":"SUMIFS(Sheet1!S71_OriginalBudget,Sheet1!S71_SA22SubCode,$AC:$AC)","v":0},{"$f":"SUMIFS(Sheet1!S71_PreviousBudget,Sheet1!S71_SA22SubCode,$AC:$AC)","v":0},null,null,null,null,{"$f":"SUMIFS(Sheet1!S71_CurrentAdjustments,Sheet1!S71_SA22SubCode,$AC:$AC)","v":0},0,0,null,null,null,null,null,null,null,null,null,null,null,null,null,null,null,null,null,210007]
["Sub Total - Councillors",null,{"$f":"SUM(C7:C13)","v":16387620},{"$f":"SUM(D7:D13)","v":16387620},null,null,{"$f":"SUM(G7:G13)","v":0},null,{"$f":"SUM(I7:I13)","v":0},{"$f":"SUM(J7:J13)","v":0},{"$f":"SUM(K7:K13)","v":16387620},{"$f":"IF(K14=0,\"\",(K14/C14)-1)","v":0}]
["% increase",null,null,{"$f":"IF(ISERROR((D14/C14)-1),0,((D14/C14)-1))","v":0},null,null,null,null,null,null,{"$f":"IF(ISERROR((K14/J14)-1),0,((K14/J14)-1))","v":0}]
[]
["Senior Managers of the Municipality"]
["Basic Salaries and Wages",null,{"$f":"SUMIFS(Sheet1!S71_OriginalBudget,Sheet1!S71_SA1SubCode,$AC:$AC,Sheet1!S71_StaffCode,$AD:$AD)","v":5876473},{"$f":"SUMIFS(Sheet1!S71_PreviousBudget,Sheet1!S71_SA1SubCode,$AC:$AC,Sheet1!S71_StaffCode,$AD:$AD)","v":5554932},null,null,null,null,{"$f":"SUMIFS(Sheet1!S71_CurrentAdjustments,Sheet1!S71_SA1SubCode,$AC:$AC,Sheet1!S71_StaffCode,$AD:$AD)","v":0},{"$f":"E18+G18+I18","v":0},{"$f":"IF(D18=0,C18+J18,D18+J18)","v":5554932},{"$f":"IF(K18=0,\"\",(K18/C18)-1)","v":-5.4716664230398115E-2},null,null,null,null,null,null,null,null,null,null,null,null,null,null,null,null,2001,"SM"]
["Pension and UIF Contributions",null,{"$f":"SUMIFS(Sheet1!S71_OriginalBudget,Sheet1!S71_SA1SubCode,$AC:$AC,Sheet1!S71_StaffCode,$AD:$AD)","v":11340},{"$f":"SUMIFS(Sheet1!S71_PreviousBudget,Sheet1!S71_SA1SubCode,$AC:$AC,Sheet1!S71_StaffCode,$AD:$AD)","v":10039},null,null,null,null,{"$f":"SUMIFS(Sheet1!S71_CurrentAdjustments,Sheet1!S71_SA1SubCode,$AC:$AC,Sheet1!S71_StaffCode,$AD:$AD)","v":0},0,10039,-0.11472663139329808,null,null,null,null,null,null,null,null,null,null,null,null,null,null,null,null,2002,"SM"]
["Medical Aid Contributions",null,{"$f":"SUMIFS(Sheet1!S71_OriginalBudget,Sheet1!S71_SA1SubCode,$AC:$AC,Sheet1!S71_StaffCode,$AD:$AD)","v":42330},{"$f":"SUMIFS(Sheet1!S71_PreviousBudget,Sheet1!S71_SA1SubCode,$AC:$AC,Sheet1!S71_StaffCode,$AD:$AD)","v":145285},null,null,null,null,{"$f":"SUMIFS(Sheet1!S71_CurrentAdjustments,Sheet1!S71_SA1SubCode,$AC:$AC,Sheet1!S71_StaffCode,$AD:$AD)","v":0},0,145285,2.4321993857784077,null,null,null,null,null,null,null,null,null,null,null,null,null,null,null,null,2003,"SM"]
["Overtime",null,{"$f":"SUMIFS(Sheet1!S71_OriginalBudget,Sheet1!S71_SA1SubCode,$AC:$AC,Sheet1!S71_StaffCode,$AD:$AD)","v":0},{"$f":"SUMIFS(Sheet1!S71_PreviousBudget,Sheet1!S71_SA1SubCode,$AC:$AC,Sheet1!S71_StaffCode,$AD:$AD)","v":0},null,null,null,null,{"$f":"SUMIFS(Sheet1!S71_CurrentAdjustments,Sheet1!S71_SA1SubCode,$AC:$AC,Sheet1!S71_StaffCode,$AD:$AD)","v":0},{"$f":"E21+G21+I21","v":0},0,"",null,null,null,null,null,null,null,null,null,null,null,null,null,null,null,null,2004,"SM"]
["Performance Bonus",null,{"$f":"SUMIFS(Sheet1!S71_OriginalBudget,Sheet1!S71_SA1SubCode,$AC:$AC,Sheet1!S71_StaffCode,$AD:$AD)","v":499175},{"$f":"SUMIFS(Sheet1!S71_PreviousBudget,Sheet1!S71_SA1SubCode,$AC:$AC,Sheet1!S71_StaffCode,$AD:$AD)","v":380257},null,null,null,null,{"$f":"SUMIFS(Sheet1!S71_CurrentAdjustments,Sheet1!S71_SA1SubCode,$AC:$AC,Sheet1!S71_StaffCode,$AD:$AD)","v":0},{"$f":"E22+G22+I22","v":0},{"$f":"IF(D22=0,C22+J22,D22+J22)","v":380257},null,null,null,null,null,null,null,null,null,null,null,null,null,null,null,null,null,2005,"SM"]
["Motor Vehicle Allowance",null,{"$f":"SUMIFS(Sheet1!S71_OriginalBudget,Sheet1!S71_SA1SubCode,$AC:$AC,Sheet1!S71_StaffCode,$AD:$AD)","v":870598},{"$f":"SUMIFS(Sheet1!S71_PreviousBudget,Sheet1!S71_SA1SubCode,$AC:$AC,Sheet1!S71_StaffCode,$AD:$AD)","v":865504},null,null,null,null,{"$f":"SUMIFS(Sheet1!S71_CurrentAdjustments,Sheet1!S71_SA1SubCode,$AC:$AC,Sheet1!S71_StaffCode,$AD:$AD)","v":0},0,865504,-5.8511505884460968E-3,null,null,null,null,null,null,null,null,null,null,null,null,null,null,null,null,2006,"SM"]
["Cellphone Allowance",null,{"$f":"SUMIFS(Sheet1!S71_OriginalBudget,Sheet1!S71_SA1SubCode,$AC:$AC,Sheet1!S71_StaffCode,$AD:$AD)","v":195110},{"$f":"SUMIFS(Sheet1!S71_PreviousBudget,Sheet1!S71_SA1SubCode,$AC:$AC,Sheet1!S71_StaffCode,$AD:$AD)","v":267655},null,null,null,null,{"$f":"SUMIFS(Sheet1!S71_CurrentAdjustments,Sheet1!S71_SA1SubCode,$AC:$AC,Sheet1!S71_StaffCode,$AD:$AD)","v":0},0,267655,0.37181589872379672,null,null,null,null,null,null,null,null,null,null,null,null,null,null,null,null,2007,"SM"]
["Housing Allowances",null,{"$f":"SUMIFS(Sheet1!S71_OriginalBudget,Sheet1!S71_SA1SubCode,$AC:$AC,Sheet1!S71_StaffCode,$AD:$AD)","v":277980},{"$f":"SUMIFS(Sheet1!S71_PreviousBudget,Sheet1!S71_SA1SubCode,$AC:$AC,Sheet1!S71_StaffCode,$AD:$AD)","v":277980},null,null,null,null,{"$f":"SUMIFS(Sheet1!S71_CurrentAdjustments,Sheet1!S71_SA1SubCode,$AC:$AC,Sheet1!S71_StaffCode,$AD:$AD)","v":0},{"$f":"E25+G25+I25","v":0},{"$f":"IF(D25=0,C25+J25,D25+J25)","v":277980},null,null,null,null,null,null,null,null,null,null,null,null,null,null,null,null,null,2008,"SM"]
["Other benefits and allowances",null,{"$f":"SUMIFS(Sheet1!S71_OriginalBudget,Sheet1!S71_SA1SubCode,$AC:$AC,Sheet1!S71_StaffCode,$AD:$AD)","v":285572},{"$f":"SUMIFS(Sheet1!S71_PreviousBudget,Sheet1!S71_SA1SubCode,$AC:$AC,Sheet1!S71_StaffCode,$AD:$AD)","v":439643},null,null,null,null,{"$f":"SUMIFS(Sheet1!S71_CurrentAdjustments,Sheet1!S71_SA1SubCode,$AC:$AC,Sheet1!S71_StaffCode,$AD:$AD)","v":0},{"$f":"E26+G26+I26","v":0},{"$f":"IF(D26=0,C26+J26,D26+J26)","v":439643},null,null,null,null,null,null,null,null,null,null,null,null,null,null,null,null,null,2009,"SM"]
["Payments in lieu of leave",null,{"$f":"SUMIFS(Sheet1!S71_OriginalBudget,Sheet1!S71_SA1SubCode,$AC:$AC,Sheet1!S71_StaffCode,$AD:$AD)","v":0},{"$f":"SUMIFS(Sheet1!S71_PreviousBudget,Sheet1!S71_SA1SubCode,$AC:$AC,Sheet1!S71_StaffCode,$AD:$AD)","v":0},null,null,null,null,{"$f":"SUMIFS(Sheet1!S71_CurrentAdjustments,Sheet1!S71_SA1SubCode,$AC:$AC,Sheet1!S71_StaffCode,$AD:$AD)","v":0},{"$f":"E27+G27+I27","v":0},{"$f":"IF(D27=0,C27+J27,D27+J27)","v":0},null,null,null,null,null,null,null,null,null,null,null,null,null,null,null,null,null,2010,"SM"]
["Long service awards",null,{"$f":"SUMIFS(Sheet1!S71_OriginalBudget,Sheet1!S71_SA1SubCode,$AC:$AC,Sheet1!S71_StaffCode,$AD:$AD)","v":0},{"$f":"SUMIFS(Sheet1!S71_PreviousBudget,Sheet1!S71_SA1SubCode,$AC:$AC,Sheet1!S71_StaffCode,$AD:$AD)","v":0},null,null,null,null,{"$f":"SUMIFS(Sheet1!S71_CurrentAdjustments,Sheet1!S71_SA1SubCode,$AC:$AC,Sheet1!S71_StaffCode,$AD:$AD)","v":0},0,0,"",null,null,null,null,null,null,null,null,null,null,null,null,null,null,null,null,2011,"SM"]
["Post-retirement benefit obligations",5,{"$f":"SUMIFS(Sheet1!S71_OriginalBudget,Sheet1!S71_SA1SubCode,$AC:$AC,Sheet1!S71_StaffCode,$AD:$AD)","v":3735780},{"$f":"SUMIFS(Sheet1!S71_PreviousBudget,Sheet1!S71_SA1SubCode,$AC:$AC,Sheet1!S71_StaffCode,$AD:$AD)","v":3735780},null,null,null,null,{"$f":"SUMIFS(Sheet1!S71_CurrentAdjustments,Sheet1!S71_SA1SubCode,$AC:$AC,Sheet1!S71_StaffCode,$AD:$AD)","v":0},0,3735780,0,null,null,null,null,null,null,null,null,null,null,null,null,null,null,null,null,2012,"SM"]
["Entertainment",null,{"$f":"SUMIFS(Sheet1!S71_OriginalBudget,Sheet1!S71_SA1SubCode,$AC:$AC,Sheet1!S71_StaffCode,$AD:$AD)","v":0},{"$f":"SUMIFS(Sheet1!S71_PreviousBudget,Sheet1!S71_SA1SubCode,$AC:$AC,Sheet1!S71_StaffCode,$AD:$AD)","v":0},null,null,null,null,{"$f":"SUMIFS(Sheet1!S71_CurrentAdjustments,Sheet1!S71_SA1SubCode,$AC:$AC,Sheet1!S71_StaffCode,$AD:$AD)","v":0},{"$f":"E30+G30+I30","v":0},{"$f":"IF(D30=0,C30+J30,D30+J30)","v":0},null,null,null,null,null,null,null,null,null,null,null,null,null,null,null,null,null,2090,"SM"]
["Scarcity",null,{"$f":"SUMIFS(Sheet1!S71_OriginalBudget,Sheet1!S71_SA1SubCode,$AC:$AC,Sheet1!S71_StaffCode,$AD:$AD)","v":0},{"$f":"SUMIFS(Sheet1!S71_PreviousBudget,Sheet1!S71_SA1SubCode,$AC:$AC,Sheet1!S71_StaffCode,$AD:$AD)","v":0},null,null,null,null,{"$f":"SUMIFS(Sheet1!S71_CurrentAdjustments,Sheet1!S71_SA1SubCode,$AC:$AC,Sheet1!S71_StaffCode,$AD:$AD)","v":0},0,0,null,null,null,null,null,null,null,null,null,null,null,null,null,null,null,null,null,2014,"SM"]
["Acting and post related allowance",null,{"$f":"SUMIFS(Sheet1!S71_OriginalBudget,Sheet1!S71_SA1SubCode,$AC:$AC,Sheet1!S71_StaffCode,$AD:$AD)","v":0},{"$f":"SUMIFS(Sheet1!S71_PreviousBudget,Sheet1!S71_SA1SubCode,$AC:$AC,Sheet1!S71_StaffCode,$AD:$AD)","v":0},null,null,null,null,{"$f":"SUMIFS(Sheet1!S71_CurrentAdjustments,Sheet1!S71_SA1SubCode,$AC:$AC,Sheet1!S71_StaffCode,$AD:$AD)","v":0},0,0,null,null,null,null,null,null,null,null,null,null,null,null,null,null,null,null,null,2015,"SM"]
["In kind benefits",null,{"$f":"SUMIFS(Sheet1!S71_OriginalBudget,Sheet1!S71_SA1SubCode,$AC:$AC,Sheet1!S71_StaffCode,$AD:$AD)","v":0},{"$f":"SUMIFS(Sheet1!S71_PreviousBudget,Sheet1!S71_SA1SubCode,$AC:$AC,Sheet1!S71_StaffCode,$AD:$AD)","v":0},null,null,null,null,{"$f":"SUMIFS(Sheet1!S71_CurrentAdjustments,Sheet1!S71_SA1SubCode,$AC:$AC,Sheet1!S71_StaffCode,$AD:$AD)","v":0},0,0,null,null,null,null,null,null,null,null,null,null,null,null,null,null,null,null,null,2016,"SM"]
["Sub Total - Senior Managers of Municipality",null,{"$f":"SUM(C18:C29)","v":11794358},{"$f":"SUM(D18:D29)","v":11677075},{"$f":"SUM(E18:E29)","v":0},null,{"$f":"SUM(G18:G29)","v":0},null,{"$f":"SUM(I18:I29)","v":0},{"$f":"SUM(J18:J29)","v":0},{"$f":"SUM(K18:K29)","v":11677075},-9.9439918645847225E-3]
[{"$f":"$A$15","v":"% increase"},null,null,{"$f":"IF(ISERROR((D34/C34)-1),0,((D34/C34)-1))","v":-9.9439918645847225E-3},null,null,null,null,null,null,{"$f":"IF(ISERROR((K34/J34)-1),0,((K34/J34)-1))","v":0}]
[]
["Other Municipal Staff"]
["Basic Salaries and Wages",null,{"$f":"SUMIFS(Sheet1!S71_OriginalBudget,Sheet1!S71_SA1SubCode,$AC:$AC,Sheet1!S71_StaffCode,$AD:$AD)","v":94130099},{"$f":"SUMIFS(Sheet1!S71_PreviousBudget,Sheet1!S71_SA1SubCode,$AC:$AC,Sheet1!S71_StaffCode,$AD:$AD)","v":93544358},null,null,null,null,{"$f":"SUMIFS(Sheet1!S71_CurrentAdjustments,Sheet1!S71_SA1SubCode,$AC:$AC,Sheet1!S71_StaffCode,$AD:$AD)","v":0},{"$f":"SUM(E38:I38)","v":0},{"$f":"IF(D38=0,C38+J38,D38+J38)","v":93544358},{"$f":"IF(K38=0,\"\",(K38/C38)-1)","v":-6.2226748534494059E-3},null,null,null,null,null,null,null,null,null,null,null,null,null,null,null,null,2001,"MS"]
["Pension and UIF Contributions",null,{"$f":"SUMIFS(Sheet1!S71_OriginalBudget,Sheet1!S71_SA1SubCode,$AC:$AC,Sheet1!S71_StaffCode,$AD:$AD)","v":15937891},{"$f":"SUMIFS(Sheet1!S71_PreviousBudget,Sheet1!S71_SA1SubCode,$AC:$AC,Sheet1!S71_StaffCode,$AD:$AD)","v":16130945},null,null,null,null,{"$f":"SUMIFS(Sheet1!S71_CurrentAdjustments,Sheet1!S71_SA1SubCode,$AC:$AC,Sheet1!S71_StaffCode,$AD:$AD)","v":0},0,16130945,1.2112894987172496E-2,null,null,null,null,null,null,null,null,null,null,null,null,null,null,null,null,2002,"MS"]
["Medical Aid Contributions",null,{"$f":"SUMIFS(Sheet1!S71_OriginalBudget,Sheet1!S71_SA1SubCode,$AC:$AC,Sheet1!S71_StaffCode,$AD:$AD)","v":6179740},{"$f":"SUMIFS(Sheet1!S71_PreviousBudget,Sheet1!S71_SA1SubCode,$AC:$AC,Sheet1!S71_StaffCode,$AD:$AD)","v":6801326},null,null,null,null,{"$f":"SUMIFS(Sheet1!S71_CurrentAdjustments,Sheet1!S71_SA1SubCode,$AC:$AC,Sheet1!S71_StaffCode,$AD:$AD)","v":0},0,6801326,0.10058449060963737,null,null,null,null,null,null,null,null,null,null,null,null,null,null,null,null,2003,"MS"]
["Overtime",null,{"$f":"SUMIFS(Sheet1!S71_OriginalBudget,Sheet1!S71_SA1SubCode,$AC:$AC,Sheet1!S71_StaffCode,$AD:$AD)","v":2469163},{"$f":"SUMIFS(Sheet1!S71_PreviousBudget,Sheet1!S71_SA1SubCode,$AC:$AC,Sheet1!S71_StaffCode,$AD:$AD)","v":2995714},null,null,null,null,{"$f":"SUMIFS(Sheet1!S71_CurrentAdjustments,Sheet1!S71_SA1SubCode,$AC:$AC,Sheet1!S71_StaffCode,$AD:$AD)","v":0},0,2995714,0.21325080604237145,null,null,null,null,null,null,null,null,null,null,null,null,null,null,null,null,2004,"MS"]
["Performance Bonus",null,{"$f":"SUMIFS(Sheet1!S71_OriginalBudget,Sheet1!S71_SA1SubCode,$AC:$AC,Sheet1!S71_StaffCode,$AD:$AD)","v":6512900},{"$f":"SUMIFS(Sheet1!S71_PreviousBudget,Sheet1!S71_SA1SubCode,$AC:$AC,Sheet1!S71_StaffCode,$AD:$AD)","v":5362278},null,null,null,null,{"$f":"SUMIFS(Sheet1!S71_CurrentAdjustments,Sheet1!S71_SA1SubCode,$AC:$AC,Sheet1!S71_StaffCode,$AD:$AD)","v":0},{"$f":"SUM(E42:I42)","v":0},{"$f":"IF(D42=0,C42+J42,D42+J42)","v":5362278},null,null,null,null,null,null,null,null,null,null,null,null,null,null,null,null,null,2005,"MS"]
["Motor Vehicle Allowance",null,{"$f":"SUMIFS(Sheet1!S71_OriginalBudget,Sheet1!S71_SA1SubCode,$AC:$AC,Sheet1!S71_StaffCode,$AD:$AD)","v":5495375},{"$f":"SUMIFS(Sheet1!S71_PreviousBudget,Sheet1!S71_SA1SubCode,$AC:$AC,Sheet1!S71_StaffCode,$AD:$AD)","v":5798494},null,null,null,null,{"$f":"SUMIFS(Sheet1!S71_CurrentAdjustments,Sheet1!S71_SA1SubCode,$AC:$AC,Sheet1!S71_StaffCode,$AD:$AD)","v":0},0,5798494,5.5158929099470067E-2,null,null,null,null,null,null,null,null,null,null,null,null,null,null,null,null,2006,"MS"]
["Cellphone Allowance",null,{"$f":"SUMIFS(Sheet1!S71_OriginalBudget,Sheet1!S71_SA1SubCode,$AC:$AC,Sheet1!S71_StaffCode,$AD:$AD)","v":603728},{"$f":"SUMIFS(Sheet1!S71_PreviousBudget,Sheet1!S71_SA1SubCode,$AC:$AC,Sheet1!S71_StaffCode,$AD:$AD)","v":784304},null,null,null,null,{"$f":"SUMIFS(Sheet1!S71_CurrentAdjustments,Sheet1!S71_SA1SubCode,$AC:$AC,Sheet1!S71_StaffCode,$AD:$AD)","v":0},0,784304,0.29910158216945382,null,null,null,null,null,null,null,null,null,null,null,null,null,null,null,null,2007,"MS"]
["Housing Allowances",null,{"$f":"SUMIFS(Sheet1!S71_OriginalBudget,Sheet1!S71_SA1SubCode,$AC:$AC,Sheet1!S71_StaffCode,$AD:$AD)","v":361533},{"$f":"SUMIFS(Sheet1!S71_PreviousBudget,Sheet1!S71_SA1SubCode,$AC:$AC,Sheet1!S71_StaffCode,$AD:$AD)","v":379983},null,null,null,null,{"$f":"SUMIFS(Sheet1!S71_CurrentAdjustments,Sheet1!S71_SA1SubCode,$AC:$AC,Sheet1!S71_StaffCode,$AD:$AD)","v":0},{"$f":"SUM(E45:I45)","v":0},{"$f":"IF(D45=0,C45+J45,D45+J45)","v":379983},null,null,null,null,null,null,null,null,null,null,null,null,null,null,null,null,null,2008,"MS"]
["Other benefits and allowances",null,{"$f":"SUMIFS(Sheet1!S71_OriginalBudget,Sheet1!S71_SA1SubCode,$AC:$AC,Sheet1!S71_StaffCode,$AD:$AD)","v":886630},{"$f":"SUMIFS(Sheet1!S71_PreviousBudget,Sheet1!S71_SA1SubCode,$AC:$AC,Sheet1!S71_StaffCode,$AD:$AD)","v":987750},null,null,null,null,{"$f":"SUMIFS(Sheet1!S71_CurrentAdjustments,Sheet1!S71_SA1SubCode,$AC:$AC,Sheet1!S71_StaffCode,$AD:$AD)","v":0},{"$f":"SUM(E46:I46)","v":0},{"$f":"IF(D46=0,C46+J46,D46+J46)","v":987750},null,null,null,null,null,null,null,null,null,null,null,null,null,null,null,null,null,2009,"MS"]
["Payments in lieu of leave",null,{"$f":"SUMIFS(Sheet1!S71_OriginalBudget,Sheet1!S71_SA1SubCode,$AC:$AC,Sheet1!S71_StaffCode,$AD:$AD)","v":2717670},{"$f":"SUMIFS(Sheet1!S71_PreviousBudget,Sheet1!S71_SA1SubCode,$AC:$AC,Sheet1!S71_StaffCode,$AD:$AD)","v":2626868},null,null,null,null,{"$f":"SUMIFS(Sheet1!S71_CurrentAdjustments,Sheet1!S71_SA1SubCode,$AC:$AC,Sheet1!S71_StaffCode,$AD:$AD)","v":0},0,2626868,-3.3411709295094738E-2,null,null,null,null,null,null,null,null,null,null,null,null,null,null,null,null,2010,"MS"]
["Long service awards",null,{"$f":"SUMIFS(Sheet1!S71_OriginalBudget,Sheet1!S71_SA1SubCode,$AC:$AC,Sheet1!S71_StaffCode,$AD:$AD)","v":1406860},{"$f":"SUMIFS(Sheet1!S71_PreviousBudget,Sheet1!S71_SA1SubCode,$AC:$AC,Sheet1!S71_StaffCode,$AD:$AD)","v":1406860},null,null,null,null,{"$f":"SUMIFS(Sheet1!S71_CurrentAdjustments,Sheet1!S71_SA1SubCode,$AC:$AC,Sheet1!S71_StaffCode,$AD:$AD)","v":0},0,1406860,0,null,null,null,null,null,null,null,null,null,null,null,null,null,null,null,null,2011,"MS"]
["Post-retirement benefit obligations",5,{"$f":"SUMIFS(Sheet1!S71_OriginalBudget,Sheet1!S71_SA1SubCode,$AC:$AC,Sheet1!S71_StaffCode,$AD:$AD)","v":4046680},{"$f":"SUMIFS(Sheet1!S71_PreviousBudget,Sheet1!S71_SA1SubCode,$AC:$AC,Sheet1!S71_StaffCode,$AD:$AD)","v":4046680},null,null,null,null,{"$f":"SUMIFS(Sheet1!S71_CurrentAdjustments,Sheet1!S71_SA1SubCode,$AC:$AC,Sheet1!S71_StaffCode,$AD:$AD)","v":0},0,4046680,0,null,null,null,null,null,null,null,null,null,null,null,null,null,null,null,null,2012,"MS"]
["Entertainment",null,{"$f":"SUMIFS(Sheet1!S71_OriginalBudget,Sheet1!S71_SA1SubCode,$AC:$AC,Sheet1!S71_StaffCode,$AD:$AD)","v":0},{"$f":"SUMIFS(Sheet1!S71_PreviousBudget,Sheet1!S71_SA1SubCode,$AC:$AC,Sheet1!S71_StaffCode,$AD:$AD)","v":0},null,null,null,null,{"$f":"SUMIFS(Sheet1!S71_CurrentAdjustments,Sheet1!S71_SA1SubCode,$AC:$AC,Sheet1!S71_StaffCode,$AD:$AD)","v":0},{"$f":"SUM(E50:I50)","v":0},{"$f":"IF(D50=0,C50+J50,D50+J50)","v":0},null,null,null,null,null,null,null,null,null,null,null,null,null,null,null,null,null,2090,"MS"]
["Scarcity",null,{"$f":"SUMIFS(Sheet1!S71_OriginalBudget,Sheet1!S71_SA1SubCode,$AC:$AC,Sheet1!S71_StaffCode,$AD:$AD)","v":0},{"$f":"SUMIFS(Sheet1!S71_PreviousBudget,Sheet1!S71_SA1SubCode,$AC:$AC,Sheet1!S71_StaffCode,$AD:$AD)","v":0},null,null,null,null,{"$f":"SUMIFS(Sheet1!S71_CurrentAdjustments,Sheet1!S71_SA1SubCode,$AC:$AC,Sheet1!S71_StaffCode,$AD:$AD)","v":0},0,0,null,null,null,null,null,null,null,null,null,null,null,null,null,null,null,null,null,2014,"MS"]
["Acting and post related allowance",null,{"$f":"SUMIFS(Sheet1!S71_OriginalBudget,Sheet1!S71_SA1SubCode,$AC:$AC,Sheet1!S71_StaffCode,$AD:$AD)","v":0},{"$f":"SUMIFS(Sheet1!S71_PreviousBudget,Sheet1!S71_SA1SubCode,$AC:$AC,Sheet1!S71_StaffCode,$AD:$AD)","v":0},null,null,null,null,{"$f":"SUMIFS(Sheet1!S71_CurrentAdjustments,Sheet1!S71_SA1SubCode,$AC:$AC,Sheet1!S71_StaffCode,$AD:$AD)","v":0},0,0,null,null,null,null,null,null,null,null,null,null,null,null,null,null,null,null,null,2015,"MS"]
["In kind benefits",null,{"$f":"SUMIFS(Sheet1!S71_OriginalBudget,Sheet1!S71_SA1SubCode,$AC:$AC,Sheet1!S71_StaffCode,$AD:$AD)","v":0},{"$f":"SUMIFS(Sheet1!S71_PreviousBudget,Sheet1!S71_SA1SubCode,$AC:$AC,Sheet1!S71_StaffCode,$AD:$AD)","v":0},null,null,null,null,{"$f":"SUMIFS(Sheet1!S71_CurrentAdjustments,Sheet1!S71_SA1SubCode,$AC:$AC,Sheet1!S71_StaffCode,$AD:$AD)","v":0},0,0,null,null,null,null,null,null,null,null,null,null,null,null,null,null,null,null,null,2016,"MS"]
["Sub Total - Other Municipal Staff",null,{"$f":"SUM(C38:C53)","v":140748269},{"$f":"SUM(D38:D53)","v":140865560},0,0,0,0,0,0,140865560,8.3333884553837834E-4]
[{"$f":"$A$15","v":"% increase"}]
["Total Parent Municipality",null,{"$f":"C14+C34+C54","v":168930247},168930255,0,0,0,0,0,0,168930255,{"$f":"IF(K56=0,\"\",(K56/C56)-1)","v":4.7356824239841444E-8}]
[]
[]
["Board Members of Entities"]
["Basic Salaries and Wages",null,null,null,null,null,null,null,null,{"$f":"SUM(E60:I60)","v":0},{"$f":"IF(D60=0,C60+J60,D60+J60)","v":0},{"$f":"IF(K60=0,\"\",(K60/C60)-1)","v":""}]
["Pension and UIF Contributions",null,null,null,null,null,null,null,null,0,0,{"$f":"IF(K61=0,\"\",(K61/C61)-1)","v":""}]
["Medical Aid Contributions",null,null,null,null,null,null,null,null,0,0,{"$f":"IF(K62=0,\"\",(K62/C62)-1)","v":""}]
["Overtime",null,null,null,null,null,null,null,null,0,{"$f":"IF(D63=0,C63+J63,D63+J63)","v":0}]
["Performance Bonus",null,null,null,null,null,null,null,null,0,{"$f":"IF(D64=0,C64+J64,D64+J64)","v":0}]
["Motor Vehicle Allowance",null,null,null,null,null,null,null,null,0,{"$f":"IF(D65=0,C65+J65,D65+J65)","v":0}]
["Cellphone Allowance",null,null,null,null,null,null,null,null,0,{"$f":"IF(D66=0,C66+J66,D66+J66)","v":0}]
["Housing Allowances",null,null,null,null,null,null,null,null,{"$f":"G67+I67","v":0},0,{"$f":"IF(K67=0,\"\",(K67/C67)-1)","v":""}]
["Other benefits and allowances",null,null,null,null,null,null,null,null,{"$f":"G68+I68","v":0},0]
["Board Fees",null,null,null,null,null,null,null,null,{"$f":"SUM(E69:I69)","v":0},0,{"$f":"IF(K69=0,\"\",(K69/C69)-1)","v":""}]
["Payments in lieu of leave",null,null,null,null,null,null,null,null,{"$f":"SUM(E70:I70)","v":0},0,{"$f":"IF(K70=0,\"\",(K70/C70)-1)","v":""}]
["Long service awards",null,null,null,null,null,null,null,null,{"$f":"SUM(E71:I71)","v":0},{"$f":"IF(D71=0,C71+J71,D71+J71)","v":0}]
["Post-retirement benefit obligations",5,null,null,null,null,null,null,null,{"$f":"SUM(E72:I72)","v":0},0,{"$f":"IF(K72=0,\"\",(K72/C72)-1)","v":""}]
["Entertainment",null,null,null,null,null,null,null,null,{"$f":"SUM(E73:I73)","v":0},{"$f":"IF(D73=0,C73+J73,D73+J73)","v":0}]
["Scarcity",null,null,null,null,null,null,null,null,0,0]
["Acting and post related allowance",null,null,null,null,null,null,null,null,0,0]
["In kind benefits",null,null,null,null,null,null,null,null,0,0]
["Sub Total - Board Members of Entities",null,{"$f":"SUM(C60:C76)","v":0},{"$f":"SUM(D60:D76)","v":0},0,0,0,0,0,0,0,{"$f":"IF(K77=0,\"\",(K77/C77)-1)","v":""}]
[{"$f":"$A$15","v":"% increase"}]
[]
["Senior Managers of Entities"]
["Basic Salaries and Wages",null,null,null,null,null,null,null,null,{"$f":"SUM(E81:I81)","v":0},{"$f":"IF(D81=0,C81+J81,D81+J81)","v":0},{"$f":"IF(K81=0,\"\",(K81/C81)-1)","v":""}]
["Pension and UIF Contributions",null,null,null,null,null,null,null,null,0,0,""]
["Medical Aid Contributions",null,null,null,null,null,null,null,null,0,0,""]
["Overtime",null,null,null,null,null,null,null,null,{"$f":"SUM(E84:I84)","v":0},{"$f":"IF(D84=0,C84+J84,D84+J84)","v":0}]
["Performance Bonus",null,null,null,null,null,null,null,null,{"$f":"SUM(E85:I85)","v":0},{"$f":"IF(D85=0,C85+J85,D85+J85)","v":0}]
["Motor Vehicle Allowance",null,null,null,null,null,null,null,null,{"$f":"SUM(E86:I86)","v":0},{"$f":"IF(D86=0,C86+J86,D86+J86)","v":0}]
["Cellphone Allowance",null,null,null,null,null,null,null,null,{"$f":"SUM(E87:I87)","v":0},{"$f":"IF(D87=0,C87+J87,D87+J87)","v":0}]
["Housing Allowances",null,null,null,null,null,null,null,null,0,0,""]
["Other benefits and allowances",null,null,null,null,null,null,null,null,{"$f":"SUM(E89:I89)","v":0},{"$f":"IF(D89=0,C89+J89,D89+J89)","v":0}]
["Payments in lieu of leave",null,null,null,null,null,null,null,null,0,0,""]
["Long service awards",null,null,null,null,null,null,null,null,0,0,""]
["Post-retirement benefit obligations",5,null,null,null,null,null,null,null,0,0,""]
["Entertainment",null,null,null,null,null,null,null,null,{"$f":"SUM(E93:I93)","v":0},{"$f":"IF(D93=0,C93+J93,D93+J93)","v":0}]
["Scarcity",null,null,null,null,null,null,null,null,0,0]
["Acting and post related allowance",null,null,null,null,null,null,null,null,0,0]
["In kind benefits",null,null,null,null,null,null,null,null,0,0]
["Sub Total - Senior Managers of Entities",null,{"$f":"SUM(C81:C96)","v":0},{"$f":"SUM(D81:D96)","v":0},0,0,0,0,0,0,0,""]
[{"$f":"$A$15","v":"% increase"}]
[]
["Other Staff of Entities"]
["Basic Salaries and Wages",null,null,null,null,null,null,null,null,{"$f":"SUM(E101:I101)","v":0},{"$f":"IF(D101=0,C101+J101,D101+J101)","v":0},{"$f":"IF(K101=0,\"\",(K101/C101)-1)","v":""}]
["Pension and UIF Contributions",null,null,null,null,null,null,null,null,0,0,""]
["Medical Aid Contributions",null,null,null,null,null,null,null,null,0,0,""]
["Overtime",null,null,null,null,null,null,null,null,0,0,""]
["Performance Bonus",null,null,null,null,null,null,null,null,{"$f":"SUM(E105:I105)","v":0},{"$f":"IF(D105=0,C105+J105,D105+J105)","v":0}]
["Motor Vehicle Allowance",null,null,null,null,null,null,null,null,0,0,""]
["Cellphone Allowance",null,null,null,null,null,null,null,null,0,0,""]
["Housing Allowances",null,null,null,null,null,null,null,null,{"$f":"SUM(E108:I108)","v":0},{"$f":"IF(D108=0,C108+J108,D108+J108)","v":0}]
["Other benefits and allowances",null,null,null,null,null,null,null,null,{"$f":"SUM(E109:I109)","v":0},{"$f":"IF(D109=0,C109+J109,D109+J109)","v":0}]
["Payments in lieu of leave",null,null,null,null,null,null,null,null,0,0,""]
["Long service awards",null,null,null,null,null,null,null,null,0,0,""]
["Post-retirement benefit obligations",5,null,null,null,null,null,null,null,0,0,""]
["Entertainment",null,null,null,null,null,null,null,null,{"$f":"SUM(E113:I113)","v":0},{"$f":"IF(D113=0,C113+J113,D113+J113)","v":0}]
["Scarcity",null,null,null,null,null,null,null,null,0,0]
["Acting and post related allowance",null,null,null,null,null,null,null,null,0,0]
["In kind benefits",null,null,null,null,null,null,null,null,0,0]
["Sub Total - Other Staff of Entities",null,{"$f":"SUM(C101:C116)","v":0},0,0,0,0,0,0,{"$f":"SUM(J101:J116)","v":0},{"$f":"SUM(K101:K116)","v":0},""]
[{"$f":"$A$15","v":"% increase"}]
["Total Municipal Entities",null,{"$f":"C77+C97+C117","v":0},0,0,0,0,0,0,0,0,{"$f":"IF(K119=0,\"\",(K119/C119)-1)","v":""}]
[]
["TOTAL SALARY, ALLOWANCES & BENEFITS",null,{"$f":"C56+C119","v":168930247},168930255,0,0,0,0,0,0,168930255,{"$f":"IF(K121=0,\"\",(K121/C121)-1)","v":4.7356824239841444E-8}]
[{"$f":"$A$15","v":"% increase"}]
["TOTAL MANAGERS AND STAFF",null,{"$f":"C34+C54+C97+C117","v":152542627},152542635,0,0,0,0,0,0,152542635,{"$f":"IF(K123=0,\"\",(K123/C123)-1)","v":5.2444357079295401E-8}]
[{"$f":"head27a","v":"References"}]
["1. Include 'Loans and advances' where applicable if any reportable amounts only until phased compliance with s164 of MFMA achieved"]
["2. If benefits in kind are provided (e.g. provision of living quarters) the full market value must be shown as the cost to the municipality"]
["3. s57 of the Systems Act"]
["4. Must agree to the sub-total appearing on Table C1 (Employee costs)"]
["5. Includes pension payments and employer contributions to medical aid"]
[]
["Column Definitions:"]
["A. The original budget approved by council for the current year"]
["5. Only complete if a previous adjusted budget has been approved in the same financial year. Reflect most recent adjusted budget."]
["6. Additional cash-backed accumulated funds/unspent funds (section 18(1)(b) and section 28(2)(e) MFMA) identified after Original Budget approved and after annual financial statements audited (note: only where underspending could not reasonably be have for"]
["7. Increases of funds approved under section 31 MFMA"]
["8. Adjustments approved in accordance with section 29 MFMA"]
["9. Adjustments caused by changes in funding allocations from National or Provincial Government"]
["10. Adjusts. = 'Other' Adjustments proposed to be approved; including revenue under-collection (MFMA section 28(2)(a)); additional revenue appropriation on existing programmes (section 28(2))(b); projected savings (section 28(2)(d)); error correction (sec"]
["11. G = B + C + D + E +  F"]
["12. Adjusted Budget H = (A or A1) + G"]

{"sheet":"SB12","index":48,"n_rows":43,"n_cols":31,"rows_kept":43,"cut":false,"hidden":false,"merged":[[1,0,2,0],[1,2,1,13],[1,1,2,1]]}
[{"$f":"muni&\" - \"&ADJB12&\" - \"&Date","v":"KZN291 Mandeni - Supporting Table SB12 Adjustments Budget - monthly revenue and expenditure (municipal vote) - 08-04-2025"}]
[{"$f":"desc","v":"Description"},{"$f":"head27","v":"Ref"},{"$f":"Head2","v":"Budget Year 2024/25"},null,null,null,null,null,null,null,null,null,null,null,null,"Medium Term Revenue and Expenditure Framework"]
[null,null,"July","August","Sept.","October","November","December","January","February","March","April","May","June","Full year budget",{"$f":"Head9","v":"Budget Year 2024/25"},{"$f":"Head10","v":"Budget Year +1 2025/26"},{"$f":"Head11","v":"Budget Year +2 2026/27"}]
["R thousands",null,{"$f":"Head5A","v":"Outcome"},"Outcome","Outcome","Outcome","Outcome","Outcome",{"$f":"Head7","v":"Adjusted Budget"},"Adjusted Budget","Adjusted Budget","Adjusted Budget","Adjusted Budget","Adjusted Budget",null,{"$f":"Head7","v":"Adjusted Budget"},"Adjusted Budget","Adjusted Budget"]
[{"$f":"'B3-FinPerf V'!A6","v":"Revenue by Vote"}]
[{"$f":"'B3-FinPerf V'!A7","v":"Vote 1 - Executive and council"},null,{"$f":"IF(-SUMIFS(Sheet1!S71_JulyActual,Sheet1!S71_MasterVoteMunicipal,$AC:$AC,Sheet1!S71_ItemType,$AD:$AD)-SUMIFS(Sheet1!S71_JulyActual,Sheet1!S71_MasterVoteMunicipal,$AC:$AC,Sheet1!S71_ItemType,$AE:$AE)=0,P6/12,-SUMIFS(Sheet1!S71_JulyActual,Sheet1!S71_MasterVoteMunicipal,$AC:$AC,Sheet1!S71_ItemType,$AD:$AD)-SUMIFS(Sheet1!S71_JulyActual,Sheet1!S71_MasterVoteMunicipal,$AC:$AC,Sheet1!S71_ItemType,$AE:$AE))","v":669833.33333333337},{"$f":"IF(-SUMIFS(Sheet1!S71_AugustActual,Sheet1!S71_MasterVoteMunicipal,$AC:$AC,Sheet1!S71_ItemType,$AD:$AD)-SUMIFS(Sheet1!S71_AugustActual,Sheet1!S71_MasterVoteMunicipal,$AC:$AC,Sheet1!S71_ItemType,$AE:$AE)=0,P6/12,-SUMIFS(Sheet1!S71_AugustActual,Sheet1!S71_MasterVoteMunicipal,$AC:$AC,Sheet1!S71_ItemType,$AD:$AD)-SUMIFS(Sheet1!S71_AugustActual,Sheet1!S71_MasterVoteMunicipal,$AC:$AC,Sheet1!S71_ItemType,$AE:$AE))","v":669833.33333333337},{"$f":"IF(-SUMIFS(Sheet1!S71_SeptemberActual,Sheet1!S71_MasterVoteMunicipal,$AC:$AC,Sheet1!S71_ItemType,$AD:$AD)-SUMIFS(Sheet1!S71_SeptemberActual,Sheet1!S71_MasterVoteMunicipal,$AC:$AC,Sheet1!S71_ItemType,$AE:$AE)=0,P6/12,-SUMIFS(Sheet1!S71_SeptemberActual,Sheet1!S71_MasterVoteMunicipal,$AC:$AC,Sheet1!S71_ItemType,$AD:$AD)-SUMIFS(Sheet1!S71_SeptemberActual,Sheet1!S71_MasterVoteMunicipal,$AC:$AC,Sheet1!S71_ItemType,$AE:$AE))","v":669833.33333333337},{"$f":"IF(-SUMIFS(Sheet1!S71_OctoberActual,Sheet1!S71_MasterVoteMunicipal,$AC:$AC,Sheet1!S71_ItemType,$AD:$AD)-SUMIFS(Sheet1!S71_OctoberActual,Sheet1!S71_MasterVoteMunicipal,$AC:$AC,Sheet1!S71_ItemType,$AE:$AE)=0,P6/12,-SUMIFS(Sheet1!S71_OctoberActual,Sheet1!S71_MasterVoteMunicipal,$AC:$AC,Sheet1!S71_ItemType,$AD:$AD)-SUMIFS(Sheet1!S71_OctoberActual,Sheet1!S71_MasterVoteMunicipal,$AC:$AC,Sheet1!S71_ItemType,$AE:$AE))","v":669833.33333333337},{"$f":"IF(-SUMIFS(Sheet1!S71_NovemberActual,Sheet1!S71_MasterVoteMunicipal,$AC:$AC,Sheet1!S71_ItemType,$AD:$AD)-SUMIFS(Sheet1!S71_NovemberActual,Sheet1!S71_MasterVoteMunicipal,$AC:$AC,Sheet1!S71_ItemType,$AE:$AE)=0,P6/12,-SUMIFS(Sheet1!S71_NovemberActual,Sheet1!S71_MasterVoteMunicipal,$AC:$AC,Sheet1!S71_ItemType,$AD:$AD)-SUMIFS(Sheet1!S71_NovemberActual,Sheet1!S71_MasterVoteMunicipal,$AC:$AC,Sheet1!S71_ItemType,$AE:$AE))","v":669833.33333333337},{"$f":"IF(-SUMIFS(Sheet1!S71_DecemberActual,Sheet1!S71_MasterVoteMunicipal,$AC:$AC,Sheet1!S71_ItemType,$AD:$AD)-SUMIFS(Sheet1!S71_DecemberActual,Sheet1!S71_MasterVoteMunicipal,$AC:$AC,Sheet1!S71_ItemType,$AE:$AE)=0,P6/12,-SUMIFS(Sheet1!S71_DecemberActual,Sheet1!S71_MasterVoteMunicipal,$AC:$AC,Sheet1!S71_ItemType,$AD:$AD)-SUMIFS(Sheet1!S71_DecemberActual,Sheet1!S71_MasterVoteMunicipal,$AC:$AC,Sheet1!S71_ItemType,$AE:$AE))","v":669833.33333333337},{"$f":"$P6/12","v":669833.33333333337},{"$f":"$P6/12","v":669833.33333333337},669833.33333333337,669833.33333333337,669833.33333333337,{"$f":"P6-SUM(C6:M6)","v":669833.33333333395},{"$f":"SUM(C6:N6)","v":8038000},{"$f":"'B3-FinPerf V'!K7","v":8038000},{"$f":"'B3-FinPerf V'!L7","v":8356000},{"$f":"'B3-FinPerf V'!M7","v":8700000},null,null,null,null,null,null,null,null,null,null,1,"IR","IZ"]
[{"$f":"'B3-FinPerf V'!A8","v":"Vote 2 - Finance and administration"},null,{"$f":"IF(-SUMIFS(Sheet1!S71_JulyActual,Sheet1!S71_MasterVoteMunicipal,$AC:$AC,Sheet1!S71_ItemType,$AD:$AD)-SUMIFS(Sheet1!S71_JulyActual,Sheet1!S71_MasterVoteMunicipal,$AC:$AC,Sheet1!S71_ItemType,$AE:$AE)=0,P7/12,-SUMIFS(Sheet1!S71_JulyActual,Sheet1!S71_MasterVoteMunicipal,$AC:$AC,Sheet1!S71_ItemType,$AD:$AD)-SUMIFS(Sheet1!S71_JulyActual,Sheet1!S71_MasterVoteMunicipal,$AC:$AC,Sheet1!S71_ItemType,$AE:$AE))","v":104044641.59},{"$f":"IF(-SUMIFS(Sheet1!S71_AugustActual,Sheet1!S71_MasterVoteMunicipal,$AC:$AC,Sheet1!S71_ItemType,$AD:$AD)-SUMIFS(Sheet1!S71_AugustActual,Sheet1!S71_MasterVoteMunicipal,$AC:$AC,Sheet1!S71_ItemType,$AE:$AE)=0,P7/12,-SUMIFS(Sheet1!S71_AugustActual,Sheet1!S71_MasterVoteMunicipal,$AC:$AC,Sheet1!S71_ItemType,$AD:$AD)-SUMIFS(Sheet1!S71_AugustActual,Sheet1!S71_MasterVoteMunicipal,$AC:$AC,Sheet1!S71_ItemType,$AE:$AE))","v":35206765.75},{"$f":"IF(-SUMIFS(Sheet1!S71_SeptemberActual,Sheet1!S71_MasterVoteMunicipal,$AC:$AC,Sheet1!S71_ItemType,$AD:$AD)-SUMIFS(Sheet1!S71_SeptemberActual,Sheet1!S71_MasterVoteMunicipal,$AC:$AC,Sheet1!S71_ItemType,$AE:$AE)=0,P7/12,-SUMIFS(Sheet1!S71_SeptemberActual,Sheet1!S71_MasterVoteMunicipal,$AC:$AC,Sheet1!S71_ItemType,$AD:$AD)-SUMIFS(Sheet1!S71_SeptemberActual,Sheet1!S71_MasterVoteMunicipal,$AC:$AC,Sheet1!S71_ItemType,$AE:$AE))","v":4067705.8899999997},{"$f":"IF(-SUMIFS(Sheet1!S71_OctoberActual,Sheet1!S71_MasterVoteMunicipal,$AC:$AC,Sheet1!S71_ItemType,$AD:$AD)-SUMIFS(Sheet1!S71_OctoberActual,Sheet1!S71_MasterVoteMunicipal,$AC:$AC,Sheet1!S71_ItemType,$AE:$AE)=0,P7/12,-SUMIFS(Sheet1!S71_OctoberActual,Sheet1!S71_MasterVoteMunicipal,$AC:$AC,Sheet1!S71_ItemType,$AD:$AD)-SUMIFS(Sheet1!S71_OctoberActual,Sheet1!S71_MasterVoteMunicipal,$AC:$AC,Sheet1!S71_ItemType,$AE:$AE))","v":4239464.43},{"$f":"IF(-SUMIFS(Sheet1!S71_NovemberActual,Sheet1!S71_MasterVoteMunicipal,$AC:$AC,Sheet1!S71_ItemType,$AD:$AD)-SUMIFS(Sheet1!S71_NovemberActual,Sheet1!S71_MasterVoteMunicipal,$AC:$AC,Sheet1!S71_ItemType,$AE:$AE)=0,P7/12,-SUMIFS(Sheet1!S71_NovemberActual,Sheet1!S71_MasterVoteMunicipal,$AC:$AC,Sheet1!S71_ItemType,$AD:$AD)-SUMIFS(Sheet1!S71_NovemberActual,Sheet1!S71_MasterVoteMunicipal,$AC:$AC,Sheet1!S71_ItemType,$AE:$AE))","v":55953283.109999999},{"$f":"IF(-SUMIFS(Sheet1!S71_DecemberActual,Sheet1!S71_MasterVoteMunicipal,$AC:$AC,Sheet1!S71_ItemType,$AD:$AD)-SUMIFS(Sheet1!S71_DecemberActual,Sheet1!S71_MasterVoteMunicipal,$AC:$AC,Sheet1!S71_ItemType,$AE:$AE)=0,P7/12,-SUMIFS(Sheet1!S71_DecemberActual,Sheet1!S71_MasterVoteMunicipal,$AC:$AC,Sheet1!S71_ItemType,$AD:$AD)-SUMIFS(Sheet1!S71_DecemberActual,Sheet1!S71_MasterVoteMunicipal,$AC:$AC,Sheet1!S71_ItemType,$AE:$AE))","v":86546005.010000005},{"$f":"$P7/12","v":27744160.75},27744160.75,27744160.75,27744160.75,27744160.75,-95848740.529999971,332929929,{"$f":"'B3-FinPerf V'!K8","v":332929929},{"$f":"'B3-FinPerf V'!L8","v":335661956},{"$f":"'B3-FinPerf V'!M8","v":334491600},null,null,null,null,null,null,null,null,null,null,2,"IR","IZ"]
[{"$f":"'B3-FinPerf V'!A9","v":"Vote 3 - Internal audit"},null,{"$f":"IF(-SUMIFS(Sheet1!S71_JulyActual,Sheet1!S71_MasterVoteMunicipal,$AC:$AC,Sheet1!S71_ItemType,$AD:$AD)-SUMIFS(Sheet1!S71_JulyActual,Sheet1!S71_MasterVoteMunicipal,$AC:$AC,Sheet1!S71_ItemType,$AE:$AE)=0,P8/12,-SUMIFS(Sheet1!S71_JulyActual,Sheet1!S71_MasterVoteMunicipal,$AC:$AC,Sheet1!S71_ItemType,$AD:$AD)-SUMIFS(Sheet1!S71_JulyActual,Sheet1!S71_MasterVoteMunicipal,$AC:$AC,Sheet1!S71_ItemType,$AE:$AE))","v":0},{"$f":"IF(-SUMIFS(Sheet1!S71_AugustActual,Sheet1!S71_MasterVoteMunicipal,$AC:$AC,Sheet1!S71_ItemType,$AD:$AD)-SUMIFS(Sheet1!S71_AugustActual,Sheet1!S71_MasterVoteMunicipal,$AC:$AC,Sheet1!S71_ItemType,$AE:$AE)=0,P8/12,-SUMIFS(Sheet1!S71_AugustActual,Sheet1!S71_MasterVoteMunicipal,$AC:$AC,Sheet1!S71_ItemType,$AD:$AD)-SUMIFS(Sheet1!S71_AugustActual,Sheet1!S71_MasterVoteMunicipal,$AC:$AC,Sheet1!S71_ItemType,$AE:$AE))","v":0},{"$f":"IF(-SUMIFS(Sheet1!S71_SeptemberActual,Sheet1!S71_MasterVoteMunicipal,$AC:$AC,Sheet1!S71_ItemType,$AD:$AD)-SUMIFS(Sheet1!S71_SeptemberActual,Sheet1!S71_MasterVoteMunicipal,$AC:$AC,Sheet1!S71_ItemType,$AE:$AE)=0,P8/12,-SUMIFS(Sheet1!S71_SeptemberActual,Sheet1!S71_MasterVoteMunicipal,$AC:$AC,Sheet1!S71_ItemType,$AD:$AD)-SUMIFS(Sheet1!S71_SeptemberActual,Sheet1!S71_MasterVoteMunicipal,$AC:$AC,Sheet1!S71_ItemType,$AE:$AE))","v":0},{"$f":"IF(-SUMIFS(Sheet1!S71_OctoberActual,Sheet1!S71_MasterVoteMunicipal,$AC:$AC,Sheet1!S71_ItemType,$AD:$AD)-SUMIFS(Sheet1!S71_OctoberActual,Sheet1!S71_MasterVoteMunicipal,$AC:$AC,Sheet1!S71_ItemType,$AE:$AE)=0,P8/12,-SUMIFS(Sheet1!S71_OctoberActual,Sheet1!S71_MasterVoteMunicipal,$AC:$AC,Sheet1!S71_ItemType,$AD:$AD)-SUMIFS(Sheet1!S71_OctoberActual,Sheet1!S71_MasterVoteMunicipal,$AC:$AC,Sheet1!S71_ItemType,$AE:$AE))","v":0},{"$f":"IF(-SUMIFS(Sheet1!S71_NovemberActual,Sheet1!S71_MasterVoteMunicipal,$AC:$AC,Sheet1!S71_ItemType,$AD:$AD)-SUMIFS(Sheet1!S71_NovemberActual,Sheet1!S71_MasterVoteMunicipal,$AC:$AC,Sheet1!S71_ItemType,$AE:$AE)=0,P8/12,-SUMIFS(Sheet1!S71_NovemberActual,Sheet1!S71_MasterVoteMunicipal,$AC:$AC,Sheet1!S71_ItemType,$AD:$AD)-SUMIFS(Sheet1!S71_NovemberActual,Sheet1!S71_MasterVoteMunicipal,$AC:$AC,Sheet1!S71_ItemType,$AE:$AE))","v":0},{"$f":"IF(-SUMIFS(Sheet1!S71_DecemberActual,Sheet1!S71_MasterVoteMunicipal,$AC:$AC,Sheet1!S71_ItemType,$AD:$AD)-SUMIFS(Sheet1!S71_DecemberActual,Sheet1!S71_MasterVoteMunicipal,$AC:$AC,Sheet1!S71_ItemType,$AE:$AE)=0,P8/12,-SUMIFS(Sheet1!S71_DecemberActual,Sheet1!S71_MasterVoteMunicipal,$AC:$AC,Sheet1!S71_ItemType,$AD:$AD)-SUMIFS(Sheet1!S71_DecemberActual,Sheet1!S71_MasterVoteMunicipal,$AC:$AC,Sheet1!S71_ItemType,$AE:$AE))","v":0},{"$f":"$P8/12","v":0},0,0,0,0,0,0,{"$f":"'B3-FinPerf V'!K9","v":0},{"$f":"'B3-FinPerf V'!L9","v":0},{"$f":"'B3-FinPerf V'!M9","v":0},null,null,null,null,null,null,null,null,null,null,3,"IR","IZ"]
[{"$f":"'B3-FinPerf V'!A10","v":"Vote 4 - Community and social services"},null,{"$f":"IF(-SUMIFS(Sheet1!S71_JulyActual,Sheet1!S71_MasterVoteMunicipal,$AC:$AC,Sheet1!S71_ItemType,$AD:$AD)-SUMIFS(Sheet1!S71_JulyActual,Sheet1!S71_MasterVoteMunicipal,$AC:$AC,Sheet1!S71_ItemType,$AE:$AE)=0,P9/12,-SUMIFS(Sheet1!S71_JulyActual,Sheet1!S71_MasterVoteMunicipal,$AC:$AC,Sheet1!S71_ItemType,$AD:$AD)-SUMIFS(Sheet1!S71_JulyActual,Sheet1!S71_MasterVoteMunicipal,$AC:$AC,Sheet1!S71_ItemType,$AE:$AE))","v":324632.01},{"$f":"IF(-SUMIFS(Sheet1!S71_AugustActual,Sheet1!S71_MasterVoteMunicipal,$AC:$AC,Sheet1!S71_ItemType,$AD:$AD)-SUMIFS(Sheet1!S71_AugustActual,Sheet1!S71_MasterVoteMunicipal,$AC:$AC,Sheet1!S71_ItemType,$AE:$AE)=0,P9/12,-SUMIFS(Sheet1!S71_AugustActual,Sheet1!S71_MasterVoteMunicipal,$AC:$AC,Sheet1!S71_ItemType,$AD:$AD)-SUMIFS(Sheet1!S71_AugustActual,Sheet1!S71_MasterVoteMunicipal,$AC:$AC,Sheet1!S71_ItemType,$AE:$AE))","v":377093.75999999995},{"$f":"IF(-SUMIFS(Sheet1!S71_SeptemberActual,Sheet1!S71_MasterVoteMunicipal,$AC:$AC,Sheet1!S71_ItemType,$AD:$AD)-SUMIFS(Sheet1!S71_SeptemberActual,Sheet1!S71_MasterVoteMunicipal,$AC:$AC,Sheet1!S71_ItemType,$AE:$AE)=0,P9/12,-SUMIFS(Sheet1!S71_SeptemberActual,Sheet1!S71_MasterVoteMunicipal,$AC:$AC,Sheet1!S71_ItemType,$AD:$AD)-SUMIFS(Sheet1!S71_SeptemberActual,Sheet1!S71_MasterVoteMunicipal,$AC:$AC,Sheet1!S71_ItemType,$AE:$AE))","v":395251.48},{"$f":"IF(-SUMIFS(Sheet1!S71_OctoberActual,Sheet1!S71_MasterVoteMunicipal,$AC:$AC,Sheet1!S71_ItemType,$AD:$AD)-SUMIFS(Sheet1!S71_OctoberActual,Sheet1!S71_MasterVoteMunicipal,$AC:$AC,Sheet1!S71_ItemType,$AE:$AE)=0,P9/12,-SUMIFS(Sheet1!S71_OctoberActual,Sheet1!S71_MasterVoteMunicipal,$AC:$AC,Sheet1!S71_ItemType,$AD:$AD)-SUMIFS(Sheet1!S71_OctoberActual,Sheet1!S71_MasterVoteMunicipal,$AC:$AC,Sheet1!S71_ItemType,$AE:$AE))","v":580442.27},{"$f":"IF(-SUMIFS(Sheet1!S71_NovemberActual,Sheet1!S71_MasterVoteMunicipal,$AC:$AC,Sheet1!S71_ItemType,$AD:$AD)-SUMIFS(Sheet1!S71_NovemberActual,Sheet1!S71_MasterVoteMunicipal,$AC:$AC,Sheet1!S71_ItemType,$AE:$AE)=0,P9/12,-SUMIFS(Sheet1!S71_NovemberActual,Sheet1!S71_MasterVoteMunicipal,$AC:$AC,Sheet1!S71_ItemType,$AD:$AD)-SUMIFS(Sheet1!S71_NovemberActual,Sheet1!S71_MasterVoteMunicipal,$AC:$AC,Sheet1!S71_ItemType,$AE:$AE))","v":357315.07},{"$f":"IF(-SUMIFS(Sheet1!S71_DecemberActual,Sheet1!S71_MasterVoteMunicipal,$AC:$AC,Sheet1!S71_ItemType,$AD:$AD)-SUMIFS(Sheet1!S71_DecemberActual,Sheet1!S71_MasterVoteMunicipal,$AC:$AC,Sheet1!S71_ItemType,$AE:$AE)=0,P9/12,-SUMIFS(Sheet1!S71_DecemberActual,Sheet1!S71_MasterVoteMunicipal,$AC:$AC,Sheet1!S71_ItemType,$AD:$AD)-SUMIFS(Sheet1!S71_DecemberActual,Sheet1!S71_MasterVoteMunicipal,$AC:$AC,Sheet1!S71_ItemType,$AE:$AE))","v":378901.82999999996},480356,480356,480356,480356,480356,948855.58000000007,5764272,{"$f":"'B3-FinPerf V'!K10","v":5764272},{"$f":"'B3-FinPerf V'!L10","v":5817152},{"$f":"'B3-FinPerf V'!M10","v":9866023},null,null,null,null,null,null,null,null,null,null,4,"IR","IZ"]
[{"$f":"'B3-FinPerf V'!A11","v":"Vote 5 - Sport and Recreation"},null,{"$f":"IF(-SUMIFS(Sheet1!S71_JulyActual,Sheet1!S71_MasterVoteMunicipal,$AC:$AC,Sheet1!S71_ItemType,$AD:$AD)-SUMIFS(Sheet1!S71_JulyActual,Sheet1!S71_MasterVoteMunicipal,$AC:$AC,Sheet1!S71_ItemType,$AE:$AE)=0,P10/12,-SUMIFS(Sheet1!S71_JulyActual,Sheet1!S71_MasterVoteMunicipal,$AC:$AC,Sheet1!S71_ItemType,$AD:$AD)-SUMIFS(Sheet1!S71_JulyActual,Sheet1!S71_MasterVoteMunicipal,$AC:$AC,Sheet1!S71_ItemType,$AE:$AE))","v":0},{"$f":"IF(-SUMIFS(Sheet1!S71_AugustActual,Sheet1!S71_MasterVoteMunicipal,$AC:$AC,Sheet1!S71_ItemType,$AD:$AD)-SUMIFS(Sheet1!S71_AugustActual,Sheet1!S71_MasterVoteMunicipal,$AC:$AC,Sheet1!S71_ItemType,$AE:$AE)=0,P10/12,-SUMIFS(Sheet1!S71_AugustActual,Sheet1!S71_MasterVoteMunicipal,$AC:$AC,Sheet1!S71_ItemType,$AD:$AD)-SUMIFS(Sheet1!S71_AugustActual,Sheet1!S71_MasterVoteMunicipal,$AC:$AC,Sheet1!S71_ItemType,$AE:$AE))","v":0},{"$f":"IF(-SUMIFS(Sheet1!S71_SeptemberActual,Sheet1!S71_MasterVoteMunicipal,$AC:$AC,Sheet1!S71_ItemType,$AD:$AD)-SUMIFS(Sheet1!S71_SeptemberActual,Sheet1!S71_MasterVoteMunicipal,$AC:$AC,Sheet1!S71_ItemType,$AE:$AE)=0,P10/12,-SUMIFS(Sheet1!S71_SeptemberActual,Sheet1!S71_MasterVoteMunicipal,$AC:$AC,Sheet1!S71_ItemType,$AD:$AD)-SUMIFS(Sheet1!S71_SeptemberActual,Sheet1!S71_MasterVoteMunicipal,$AC:$AC,Sheet1!S71_ItemType,$AE:$AE))","v":0},{"$f":"IF(-SUMIFS(Sheet1!S71_OctoberActual,Sheet1!S71_MasterVoteMunicipal,$AC:$AC,Sheet1!S71_ItemType,$AD:$AD)-SUMIFS(Sheet1!S71_OctoberActual,Sheet1!S71_MasterVoteMunicipal,$AC:$AC,Sheet1!S71_ItemType,$AE:$AE)=0,P10/12,-SUMIFS(Sheet1!S71_OctoberActual,Sheet1!S71_MasterVoteMunicipal,$AC:$AC,Sheet1!S71_ItemType,$AD:$AD)-SUMIFS(Sheet1!S71_OctoberActual,Sheet1!S71_MasterVoteMunicipal,$AC:$AC,Sheet1!S71_ItemType,$AE:$AE))","v":0},{"$f":"IF(-SUMIFS(Sheet1!S71_NovemberActual,Sheet1!S71_MasterVoteMunicipal,$AC:$AC,Sheet1!S71_ItemType,$AD:$AD)-SUMIFS(Sheet1!S71_NovemberActual,Sheet1!S71_MasterVoteMunicipal,$AC:$AC,Sheet1!S71_ItemType,$AE:$AE)=0,P10/12,-SUMIFS(Sheet1!S71_NovemberActual,Sheet1!S71_MasterVoteMunicipal,$AC:$AC,Sheet1!S71_ItemType,$AD:$AD)-SUMIFS(Sheet1!S71_NovemberActual,Sheet1!S71_MasterVoteMunicipal,$AC:$AC,Sheet1!S71_ItemType,$AE:$AE))","v":0},{"$f":"IF(-SUMIFS(Sheet1!S71_DecemberActual,Sheet1!S71_MasterVoteMunicipal,$AC:$AC,Sheet1!S71_ItemType,$AD:$AD)-SUMIFS(Sheet1!S71_DecemberActual,Sheet1!S71_MasterVoteMunicipal,$AC:$AC,Sheet1!S71_ItemType,$AE:$AE)=0,P10/12,-SUMIFS(Sheet1!S71_DecemberActual,Sheet1!S71_MasterVoteMunicipal,$AC:$AC,Sheet1!S71_ItemType,$AD:$AD)-SUMIFS(Sheet1!S71_DecemberActual,Sheet1!S71_MasterVoteMunicipal,$AC:$AC,Sheet1!S71_ItemType,$AE:$AE))","v":0},0,0,0,0,0,0,0,{"$f":"'B3-FinPerf V'!K11","v":0},{"$f":"'B3-FinPerf V'!L11","v":0},{"$f":"'B3-FinPerf V'!M11","v":0},null,null,null,null,null,null,null,null,null,null,5,"IR","IZ"]
[{"$f":"'B3-FinPerf V'!A12","v":"Vote 6 - Public safety"},null,{"$f":"IF(-SUMIFS(Sheet1!S71_JulyActual,Sheet1!S71_MasterVoteMunicipal,$AC:$AC,Sheet1!S71_ItemType,$AD:$AD)-SUMIFS(Sheet1!S71_JulyActual,Sheet1!S71_MasterVoteMunicipal,$AC:$AC,Sheet1!S71_ItemType,$AE:$AE)=0,P11/12,-SUMIFS(Sheet1!S71_JulyActual,Sheet1!S71_MasterVoteMunicipal,$AC:$AC,Sheet1!S71_ItemType,$AD:$AD)-SUMIFS(Sheet1!S71_JulyActual,Sheet1!S71_MasterVoteMunicipal,$AC:$AC,Sheet1!S71_ItemType,$AE:$AE))","v":0},{"$f":"IF(-SUMIFS(Sheet1!S71_AugustActual,Sheet1!S71_MasterVoteMunicipal,$AC:$AC,Sheet1!S71_ItemType,$AD:$AD)-SUMIFS(Sheet1!S71_AugustActual,Sheet1!S71_MasterVoteMunicipal,$AC:$AC,Sheet1!S71_ItemType,$AE:$AE)=0,P11/12,-SUMIFS(Sheet1!S71_AugustActual,Sheet1!S71_MasterVoteMunicipal,$AC:$AC,Sheet1!S71_ItemType,$AD:$AD)-SUMIFS(Sheet1!S71_AugustActual,Sheet1!S71_MasterVoteMunicipal,$AC:$AC,Sheet1!S71_ItemType,$AE:$AE))","v":0},{"$f":"IF(-SUMIFS(Sheet1!S71_SeptemberActual,Sheet1!S71_MasterVoteMunicipal,$AC:$AC,Sheet1!S71_ItemType,$AD:$AD)-SUMIFS(Sheet1!S71_SeptemberActual,Sheet1!S71_MasterVoteMunicipal,$AC:$AC,Sheet1!S71_ItemType,$AE:$AE)=0,P11/12,-SUMIFS(Sheet1!S71_SeptemberActual,Sheet1!S71_MasterVoteMunicipal,$AC:$AC,Sheet1!S71_ItemType,$AD:$AD)-SUMIFS(Sheet1!S71_SeptemberActual,Sheet1!S71_MasterVoteMunicipal,$AC:$AC,Sheet1!S71_ItemType,$AE:$AE))","v":0},{"$f":"IF(-SUMIFS(Sheet1!S71_OctoberActual,Sheet1!S71_MasterVoteMunicipal,$AC:$AC,Sheet1!S71_ItemType,$AD:$AD)-SUMIFS(Sheet1!S71_OctoberActual,Sheet1!S71_MasterVoteMunicipal,$AC:$AC,Sheet1!S71_ItemType,$AE:$AE)=0,P11/12,-SUMIFS(Sheet1!S71_OctoberActual,Sheet1!S71_MasterVoteMunicipal,$AC:$AC,Sheet1!S71_ItemType,$AD:$AD)-SUMIFS(Sheet1!S71_OctoberActual,Sheet1!S71_MasterVoteMunicipal,$AC:$AC,Sheet1!S71_ItemType,$AE:$AE))","v":0},{"$f":"IF(-SUMIFS(Sheet1!S71_NovemberActual,Sheet1!S71_MasterVoteMunicipal,$AC:$AC,Sheet1!S71_ItemType,$AD:$AD)-SUMIFS(Sheet1!S71_NovemberActual,Sheet1!S71_MasterVoteMunicipal,$AC:$AC,Sheet1!S71_ItemType,$AE:$AE)=0,P11/12,-SUMIFS(Sheet1!S71_NovemberActual,Sheet1!S71_MasterVoteMunicipal,$AC:$AC,Sheet1!S71_ItemType,$AD:$AD)-SUMIFS(Sheet1!S71_NovemberActual,Sheet1!S71_MasterVoteMunicipal,$AC:$AC,Sheet1!S71_ItemType,$AE:$AE))","v":0},{"$f":"IF(-SUMIFS(Sheet1!S71_DecemberActual,Sheet1!S71_MasterVoteMunicipal,$AC:$AC,Sheet1!S71_ItemType,$AD:$AD)-SUMIFS(Sheet1!S71_DecemberActual,Sheet1!S71_MasterVoteMunicipal,$AC:$AC,Sheet1!S71_ItemType,$AE:$AE)=0,P11/12,-SUMIFS(Sheet1!S71_DecemberActual,Sheet1!S71_MasterVoteMunicipal,$AC:$AC,Sheet1!S71_ItemType,$AD:$AD)-SUMIFS(Sheet1!S71_DecemberActual,Sheet1!S71_MasterVoteMunicipal,$AC:$AC,Sheet1!S71_ItemType,$AE:$AE))","v":0},0,0,0,0,0,0,0,{"$f":"'B3-FinPerf V'!K12","v":0},{"$f":"'B3-FinPerf V'!L12","v":0},{"$f":"'B3-FinPerf V'!M12","v":0},null,null,null,null,null,null,null,null,null,null,6,"IR","IZ"]
[{"$f":"'B3-FinPerf V'!A13","v":"Vote 7 - Housing"},null,{"$f":"IF(-SUMIFS(Sheet1!S71_JulyActual,Sheet1!S71_MasterVoteMunicipal,$AC:$AC,Sheet1!S71_ItemType,$AD:$AD)-SUMIFS(Sheet1!S71_JulyActual,Sheet1!S71_MasterVoteMunicipal,$AC:$AC,Sheet1!S71_ItemType,$AE:$AE)=0,P12/12,-SUMIFS(Sheet1!S71_JulyActual,Sheet1!S71_MasterVoteMunicipal,$AC:$AC,Sheet1!S71_ItemType,$AD:$AD)-SUMIFS(Sheet1!S71_JulyActual,Sheet1!S71_MasterVoteMunicipal,$AC:$AC,Sheet1!S71_ItemType,$AE:$AE))","v":0},{"$f":"IF(-SUMIFS(Sheet1!S71_AugustActual,Sheet1!S71_MasterVoteMunicipal,$AC:$AC,Sheet1!S71_ItemType,$AD:$AD)-SUMIFS(Sheet1!S71_AugustActual,Sheet1!S71_MasterVoteMunicipal,$AC:$AC,Sheet1!S71_ItemType,$AE:$AE)=0,P12/12,-SUMIFS(Sheet1!S71_AugustActual,Sheet1!S71_MasterVoteMunicipal,$AC:$AC,Sheet1!S71_ItemType,$AD:$AD)-SUMIFS(Sheet1!S71_AugustActual,Sheet1!S71_MasterVoteMunicipal,$AC:$AC,Sheet1!S71_ItemType,$AE:$AE))","v":0},{"$f":"IF(-SUMIFS(Sheet1!S71_SeptemberActual,Sheet1!S71_MasterVoteMunicipal,$AC:$AC,Sheet1!S71_ItemType,$AD:$AD)-SUMIFS(Sheet1!S71_SeptemberActual,Sheet1!S71_MasterVoteMunicipal,$AC:$AC,Sheet1!S71_ItemType,$AE:$AE)=0,P12/12,-SUMIFS(Sheet1!S71_SeptemberActual,Sheet1!S71_MasterVoteMunicipal,$AC:$AC,Sheet1!S71_ItemType,$AD:$AD)-SUMIFS(Sheet1!S71_SeptemberActual,Sheet1!S71_MasterVoteMunicipal,$AC:$AC,Sheet1!S71_ItemType,$AE:$AE))","v":0},{"$f":"IF(-SUMIFS(Sheet1!S71_OctoberActual,Sheet1!S71_MasterVoteMunicipal,$AC:$AC,Sheet1!S71_ItemType,$AD:$AD)-SUMIFS(Sheet1!S71_OctoberActual,Sheet1!S71_MasterVoteMunicipal,$AC:$AC,Sheet1!S71_ItemType,$AE:$AE)=0,P12/12,-SUMIFS(Sheet1!S71_OctoberActual,Sheet1!S71_MasterVoteMunicipal,$AC:$AC,Sheet1!S71_ItemType,$AD:$AD)-SUMIFS(Sheet1!S71_OctoberActual,Sheet1!S71_MasterVoteMunicipal,$AC:$AC,Sheet1!S71_ItemType,$AE:$AE))","v":0},{"$f":"IF(-SUMIFS(Sheet1!S71_NovemberActual,Sheet1!S71_MasterVoteMunicipal,$AC:$AC,Sheet1!S71_ItemType,$AD:$AD)-SUMIFS(Sheet1!S71_NovemberActual,Sheet1!S71_MasterVoteMunicipal,$AC:$AC,Sheet1!S71_ItemType,$AE:$AE)=0,P12/12,-SUMIFS(Sheet1!S71_NovemberActual,Sheet1!S71_MasterVoteMunicipal,$AC:$AC,Sheet1!S71_ItemType,$AD:$AD)-SUMIFS(Sheet1!S71_NovemberActual,Sheet1!S71_MasterVoteMunicipal,$AC:$AC,Sheet1!S71_ItemType,$AE:$AE))","v":0},{"$f":"IF(-SUMIFS(Sheet1!S71_DecemberActual,Sheet1!S71_MasterVoteMunicipal,$AC:$AC,Sheet1!S71_ItemType,$AD:$AD)-SUMIFS(Sheet1!S71_DecemberActual,Sheet1!S71_MasterVoteMunicipal,$AC:$AC,Sheet1!S71_ItemType,$AE:$AE)=0,P12/12,-SUMIFS(Sheet1!S71_DecemberActual,Sheet1!S71_MasterVoteMunicipal,$AC:$AC,Sheet1!S71_ItemType,$AD:$AD)-SUMIFS(Sheet1!S71_DecemberActual,Sheet1!S71_MasterVoteMunicipal,$AC:$AC,Sheet1!S71_ItemType,$AE:$AE))","v":0},0,0,0,0,0,0,0,{"$f":"'B3-FinPerf V'!K13","v":0},{"$f":"'B3-FinPerf V'!L13","v":0},{"$f":"'B3-FinPerf V'!M13","v":0},null,null,null,null,null,null,null,null,null,null,7,"IR","IZ"]
[{"$f":"'B3-FinPerf V'!A14","v":"Vote 8 - Planning and Development"},null,{"$f":"IF(-SUMIFS(Sheet1!S71_JulyActual,Sheet1!S71_MasterVoteMunicipal,$AC:$AC,Sheet1!S71_ItemType,$AD:$AD)-SUMIFS(Sheet1!S71_JulyActual,Sheet1!S71_MasterVoteMunicipal,$AC:$AC,Sheet1!S71_ItemType,$AE:$AE)=0,P13/12,-SUMIFS(Sheet1!S71_JulyActual,Sheet1!S71_MasterVoteMunicipal,$AC:$AC,Sheet1!S71_ItemType,$AD:$AD)-SUMIFS(Sheet1!S71_JulyActual,Sheet1!S71_MasterVoteMunicipal,$AC:$AC,Sheet1!S71_ItemType,$AE:$AE))","v":1105109.6600000001},{"$f":"IF(-SUMIFS(Sheet1!S71_AugustActual,Sheet1!S71_MasterVoteMunicipal,$AC:$AC,Sheet1!S71_ItemType,$AD:$AD)-SUMIFS(Sheet1!S71_AugustActual,Sheet1!S71_MasterVoteMunicipal,$AC:$AC,Sheet1!S71_ItemType,$AE:$AE)=0,P13/12,-SUMIFS(Sheet1!S71_AugustActual,Sheet1!S71_MasterVoteMunicipal,$AC:$AC,Sheet1!S71_ItemType,$AD:$AD)-SUMIFS(Sheet1!S71_AugustActual,Sheet1!S71_MasterVoteMunicipal,$AC:$AC,Sheet1!S71_ItemType,$AE:$AE))","v":1309751.26},{"$f":"IF(-SUMIFS(Sheet1!S71_SeptemberActual,Sheet1!S71_MasterVoteMunicipal,$AC:$AC,Sheet1!S71_ItemType,$AD:$AD)-SUMIFS(Sheet1!S71_SeptemberActual,Sheet1!S71_MasterVoteMunicipal,$AC:$AC,Sheet1!S71_ItemType,$AE:$AE)=0,P13/12,-SUMIFS(Sheet1!S71_SeptemberActual,Sheet1!S71_MasterVoteMunicipal,$AC:$AC,Sheet1!S71_ItemType,$AD:$AD)-SUMIFS(Sheet1!S71_SeptemberActual,Sheet1!S71_MasterVoteMunicipal,$AC:$AC,Sheet1!S71_ItemType,$AE:$AE))","v":3333414.65},{"$f":"IF(-SUMIFS(Sheet1!S71_OctoberActual,Sheet1!S71_MasterVoteMunicipal,$AC:$AC,Sheet1!S71_ItemType,$AD:$AD)-SUMIFS(Sheet1!S71_OctoberActual,Sheet1!S71_MasterVoteMunicipal,$AC:$AC,Sheet1!S71_ItemType,$AE:$AE)=0,P13/12,-SUMIFS(Sheet1!S71_OctoberActual,Sheet1!S71_MasterVoteMunicipal,$AC:$AC,Sheet1!S71_ItemType,$AD:$AD)-SUMIFS(Sheet1!S71_OctoberActual,Sheet1!S71_MasterVoteMunicipal,$AC:$AC,Sheet1!S71_ItemType,$AE:$AE))","v":2760968.34},{"$f":"IF(-SUMIFS(Sheet1!S71_NovemberActual,Sheet1!S71_MasterVoteMunicipal,$AC:$AC,Sheet1!S71_ItemType,$AD:$AD)-SUMIFS(Sheet1!S71_NovemberActual,Sheet1!S71_MasterVoteMunicipal,$AC:$AC,Sheet1!S71_ItemType,$AE:$AE)=0,P13/12,-SUMIFS(Sheet1!S71_NovemberActual,Sheet1!S71_MasterVoteMunicipal,$AC:$AC,Sheet1!S71_ItemType,$AD:$AD)-SUMIFS(Sheet1!S71_NovemberActual,Sheet1!S71_MasterVoteMunicipal,$AC:$AC,Sheet1!S71_ItemType,$AE:$AE))","v":2045676.2},{"$f":"IF(-SUMIFS(Sheet1!S71_DecemberActual,Sheet1!S71_MasterVoteMunicipal,$AC:$AC,Sheet1!S71_ItemType,$AD:$AD)-SUMIFS(Sheet1!S71_DecemberActual,Sheet1!S71_MasterVoteMunicipal,$AC:$AC,Sheet1!S71_ItemType,$AE:$AE)=0,P13/12,-SUMIFS(Sheet1!S71_DecemberActual,Sheet1!S71_MasterVoteMunicipal,$AC:$AC,Sheet1!S71_ItemType,$AD:$AD)-SUMIFS(Sheet1!S71_DecemberActual,Sheet1!S71_MasterVoteMunicipal,$AC:$AC,Sheet1!S71_ItemType,$AE:$AE))","v":7865331.0999999996},3926655.25,3926655.25,3926655.25,3926655.25,3926655.25,9066335.5399999991,47119863,{"$f":"'B3-FinPerf V'!K14","v":47119863},{"$f":"'B3-FinPerf V'!L14","v":43450604},{"$f":"'B3-FinPerf V'!M14","v":46985837},null,null,null,null,null,null,null,null,null,null,8,"IR","IZ"]
[{"$f":"'B3-FinPerf V'!A15","v":"Vote 9 - Road transport"},null,{"$f":"IF(-SUMIFS(Sheet1!S71_JulyActual,Sheet1!S71_MasterVoteMunicipal,$AC:$AC,Sheet1!S71_ItemType,$AD:$AD)-SUMIFS(Sheet1!S71_JulyActual,Sheet1!S71_MasterVoteMunicipal,$AC:$AC,Sheet1!S71_ItemType,$AE:$AE)=0,P14/12,-SUMIFS(Sheet1!S71_JulyActual,Sheet1!S71_MasterVoteMunicipal,$AC:$AC,Sheet1!S71_ItemType,$AD:$AD)-SUMIFS(Sheet1!S71_JulyActual,Sheet1!S71_MasterVoteMunicipal,$AC:$AC,Sheet1!S71_ItemType,$AE:$AE))","v":198557.43000000002},{"$f":"IF(-SUMIFS(Sheet1!S71_AugustActual,Sheet1!S71_MasterVoteMunicipal,$AC:$AC,Sheet1!S71_ItemType,$AD:$AD)-SUMIFS(Sheet1!S71_AugustActual,Sheet1!S71_MasterVoteMunicipal,$AC:$AC,Sheet1!S71_ItemType,$AE:$AE)=0,P14/12,-SUMIFS(Sheet1!S71_AugustActual,Sheet1!S71_MasterVoteMunicipal,$AC:$AC,Sheet1!S71_ItemType,$AD:$AD)-SUMIFS(Sheet1!S71_AugustActual,Sheet1!S71_MasterVoteMunicipal,$AC:$AC,Sheet1!S71_ItemType,$AE:$AE))","v":258568.33000000002},{"$f":"IF(-SUMIFS(Sheet1!S71_SeptemberActual,Sheet1!S71_MasterVoteMunicipal,$AC:$AC,Sheet1!S71_ItemType,$AD:$AD)-SUMIFS(Sheet1!S71_SeptemberActual,Sheet1!S71_MasterVoteMunicipal,$AC:$AC,Sheet1!S71_ItemType,$AE:$AE)=0,P14/12,-SUMIFS(Sheet1!S71_SeptemberActual,Sheet1!S71_MasterVoteMunicipal,$AC:$AC,Sheet1!S71_ItemType,$AD:$AD)-SUMIFS(Sheet1!S71_SeptemberActual,Sheet1!S71_MasterVoteMunicipal,$AC:$AC,Sheet1!S71_ItemType,$AE:$AE))","v":293281.62},{"$f":"IF(-SUMIFS(Sheet1!S71_OctoberActual,Sheet1!S71_MasterVoteMunicipal,$AC:$AC,Sheet1!S71_ItemType,$AD:$AD)-SUMIFS(Sheet1!S71_OctoberActual,Sheet1!S71_MasterVoteMunicipal,$AC:$AC,Sheet1!S71_ItemType,$AE:$AE)=0,P14/12,-SUMIFS(Sheet1!S71_OctoberActual,Sheet1!S71_MasterVoteMunicipal,$AC:$AC,Sheet1!S71_ItemType,$AD:$AD)-SUMIFS(Sheet1!S71_OctoberActual,Sheet1!S71_MasterVoteMunicipal,$AC:$AC,Sheet1!S71_ItemType,$AE:$AE))","v":318486.58},{"$f":"IF(-SUMIFS(Sheet1!S71_NovemberActual,Sheet1!S71_MasterVoteMunicipal,$AC:$AC,Sheet1!S71_ItemType,$AD:$AD)-SUMIFS(Sheet1!S71_NovemberActual,Sheet1!S71_MasterVoteMunicipal,$AC:$AC,Sheet1!S71_ItemType,$AE:$AE)=0,P14/12,-SUMIFS(Sheet1!S71_NovemberActual,Sheet1!S71_MasterVoteMunicipal,$AC:$AC,Sheet1!S71_ItemType,$AD:$AD)-SUMIFS(Sheet1!S71_NovemberActual,Sheet1!S71_MasterVoteMunicipal,$AC:$AC,Sheet1!S71_ItemType,$AE:$AE))","v":320428.95},{"$f":"IF(-SUMIFS(Sheet1!S71_DecemberActual,Sheet1!S71_MasterVoteMunicipal,$AC:$AC,Sheet1!S71_ItemType,$AD:$AD)-SUMIFS(Sheet1!S71_DecemberActual,Sheet1!S71_MasterVoteMunicipal,$AC:$AC,Sheet1!S71_ItemType,$AE:$AE)=0,P14/12,-SUMIFS(Sheet1!S71_DecemberActual,Sheet1!S71_MasterVoteMunicipal,$AC:$AC,Sheet1!S71_ItemType,$AD:$AD)-SUMIFS(Sheet1!S71_DecemberActual,Sheet1!S71_MasterVoteMunicipal,$AC:$AC,Sheet1!S71_ItemType,$AE:$AE))","v":312173.32999999996},522338.75,522338.75,522338.75,522338.75,522338.75,1954875.0099999998,6268065,{"$f":"'B3-FinPerf V'!K15","v":6268065},{"$f":"'B3-FinPerf V'!L15","v":2269365},{"$f":"'B3-FinPerf V'!M15","v":2373756},null,null,null,null,null,null,null,null,null,null,9,"IR","IZ"]
[{"$f":"'B3-FinPerf V'!A16","v":"Vote 10 - Energy sources"},null,{"$f":"IF(-SUMIFS(Sheet1!S71_JulyActual,Sheet1!S71_MasterVoteMunicipal,$AC:$AC,Sheet1!S71_ItemType,$AD:$AD)-SUMIFS(Sheet1!S71_JulyActual,Sheet1!S71_MasterVoteMunicipal,$AC:$AC,Sheet1!S71_ItemType,$AE:$AE)=0,P15/12,-SUMIFS(Sheet1!S71_JulyActual,Sheet1!S71_MasterVoteMunicipal,$AC:$AC,Sheet1!S71_ItemType,$AD:$AD)-SUMIFS(Sheet1!S71_JulyActual,Sheet1!S71_MasterVoteMunicipal,$AC:$AC,Sheet1!S71_ItemType,$AE:$AE))","v":7390438.2300000004},{"$f":"IF(-SUMIFS(Sheet1!S71_AugustActual,Sheet1!S71_MasterVoteMunicipal,$AC:$AC,Sheet1!S71_ItemType,$AD:$AD)-SUMIFS(Sheet1!S71_AugustActual,Sheet1!S71_MasterVoteMunicipal,$AC:$AC,Sheet1!S71_ItemType,$AE:$AE)=0,P15/12,-SUMIFS(Sheet1!S71_AugustActual,Sheet1!S71_MasterVoteMunicipal,$AC:$AC,Sheet1!S71_ItemType,$AD:$AD)-SUMIFS(Sheet1!S71_AugustActual,Sheet1!S71_MasterVoteMunicipal,$AC:$AC,Sheet1!S71_ItemType,$AE:$AE))","v":7539854.1999999993},{"$f":"IF(-SUMIFS(Sheet1!S71_SeptemberActual,Sheet1!S71_MasterVoteMunicipal,$AC:$AC,Sheet1!S71_ItemType,$AD:$AD)-SUMIFS(Sheet1!S71_SeptemberActual,Sheet1!S71_MasterVoteMunicipal,$AC:$AC,Sheet1!S71_ItemType,$AE:$AE)=0,P15/12,-SUMIFS(Sheet1!S71_SeptemberActual,Sheet1!S71_MasterVoteMunicipal,$AC:$AC,Sheet1!S71_ItemType,$AD:$AD)-SUMIFS(Sheet1!S71_SeptemberActual,Sheet1!S71_MasterVoteMunicipal,$AC:$AC,Sheet1!S71_ItemType,$AE:$AE))","v":6246383.9199999999},{"$f":"IF(-SUMIFS(Sheet1!S71_OctoberActual,Sheet1!S71_MasterVoteMunicipal,$AC:$AC,Sheet1!S71_ItemType,$AD:$AD)-SUMIFS(Sheet1!S71_OctoberActual,Sheet1!S71_MasterVoteMunicipal,$AC:$AC,Sheet1!S71_ItemType,$AE:$AE)=0,P15/12,-SUMIFS(Sheet1!S71_OctoberActual,Sheet1!S71_MasterVoteMunicipal,$AC:$AC,Sheet1!S71_ItemType,$AD:$AD)-SUMIFS(Sheet1!S71_OctoberActual,Sheet1!S71_MasterVoteMunicipal,$AC:$AC,Sheet1!S71_ItemType,$AE:$AE))","v":4678184.53},{"$f":"IF(-SUMIFS(Sheet1!S71_NovemberActual,Sheet1!S71_MasterVoteMunicipal,$AC:$AC,Sheet1!S71_ItemType,$AD:$AD)-SUMIFS(Sheet1!S71_NovemberActual,Sheet1!S71_MasterVoteMunicipal,$AC:$AC,Sheet1!S71_ItemType,$AE:$AE)=0,P15/12,-SUMIFS(Sheet1!S71_NovemberActual,Sheet1!S71_MasterVoteMunicipal,$AC:$AC,Sheet1!S71_ItemType,$AD:$AD)-SUMIFS(Sheet1!S71_NovemberActual,Sheet1!S71_MasterVoteMunicipal,$AC:$AC,Sheet1!S71_ItemType,$AE:$AE))","v":5032846.88},{"$f":"IF(-SUMIFS(Sheet1!S71_DecemberActual,Sheet1!S71_MasterVoteMunicipal,$AC:$AC,Sheet1!S71_ItemType,$AD:$AD)-SUMIFS(Sheet1!S71_DecemberActual,Sheet1!S71_MasterVoteMunicipal,$AC:$AC,Sheet1!S71_ItemType,$AE:$AE)=0,P15/12,-SUMIFS(Sheet1!S71_DecemberActual,Sheet1!S71_MasterVoteMunicipal,$AC:$AC,Sheet1!S71_ItemType,$AD:$AD)-SUMIFS(Sheet1!S71_DecemberActual,Sheet1!S71_MasterVoteMunicipal,$AC:$AC,Sheet1!S71_ItemType,$AE:$AE))","v":5507156.5099999998},6168647.083333333,6168647.083333333,6168647.083333333,6168647.083333333,6168647.083333333,6785665.3133333176,null,{"$f":"'B3-FinPerf V'!K16","v":74023765},{"$f":"'B3-FinPerf V'!L16","v":82689988},{"$f":"'B3-FinPerf V'!M16","v":87889913},null,null,null,null,null,null,null,null,null,null,10,"IR","IZ"]
[{"$f":"'B3-FinPerf V'!A17","v":"Vote 11 - Waste Management"},null,{"$f":"IF(-SUMIFS(Sheet1!S71_JulyActual,Sheet1!S71_MasterVoteMunicipal,$AC:$AC,Sheet1!S71_ItemType,$AD:$AD)-SUMIFS(Sheet1!S71_JulyActual,Sheet1!S71_MasterVoteMunicipal,$AC:$AC,Sheet1!S71_ItemType,$AE:$AE)=0,P16/12,-SUMIFS(Sheet1!S71_JulyActual,Sheet1!S71_MasterVoteMunicipal,$AC:$AC,Sheet1!S71_ItemType,$AD:$AD)-SUMIFS(Sheet1!S71_JulyActual,Sheet1!S71_MasterVoteMunicipal,$AC:$AC,Sheet1!S71_ItemType,$AE:$AE))","v":1215285.04},{"$f":"IF(-SUMIFS(Sheet1!S71_AugustActual,Sheet1!S71_MasterVoteMunicipal,$AC:$AC,Sheet1!S71_ItemType,$AD:$AD)-SUMIFS(Sheet1!S71_AugustActual,Sheet1!S71_MasterVoteMunicipal,$AC:$AC,Sheet1!S71_ItemType,$AE:$AE)=0,P16/12,-SUMIFS(Sheet1!S71_AugustActual,Sheet1!S71_MasterVoteMunicipal,$AC:$AC,Sheet1!S71_ItemType,$AD:$AD)-SUMIFS(Sheet1!S71_AugustActual,Sheet1!S71_MasterVoteMunicipal,$AC:$AC,Sheet1!S71_ItemType,$AE:$AE))","v":1203390.3900000001},{"$f":"IF(-SUMIFS(Sheet1!S71_SeptemberActual,Sheet1!S71_MasterVoteMunicipal,$AC:$AC,Sheet1!S71_ItemType,$AD:$AD)-SUMIFS(Sheet1!S71_SeptemberActual,Sheet1!S71_MasterVoteMunicipal,$AC:$AC,Sheet1!S71_ItemType,$AE:$AE)=0,P16/12,-SUMIFS(Sheet1!S71_SeptemberActual,Sheet1!S71_MasterVoteMunicipal,$AC:$AC,Sheet1!S71_ItemType,$AD:$AD)-SUMIFS(Sheet1!S71_SeptemberActual,Sheet1!S71_MasterVoteMunicipal,$AC:$AC,Sheet1!S71_ItemType,$AE:$AE))","v":1190891.54},{"$f":"IF(-SUMIFS(Sheet1!S71_OctoberActual,Sheet1!S71_MasterVoteMunicipal,$AC:$AC,Sheet1!S71_ItemType,$AD:$AD)-SUMIFS(Sheet1!S71_OctoberActual,Sheet1!S71_MasterVoteMunicipal,$AC:$AC,Sheet1!S71_ItemType,$AE:$AE)=0,P16/12,-SUMIFS(Sheet1!S71_OctoberActual,Sheet1!S71_MasterVoteMunicipal,$AC:$AC,Sheet1!S71_ItemType,$AD:$AD)-SUMIFS(Sheet1!S71_OctoberActual,Sheet1!S71_MasterVoteMunicipal,$AC:$AC,Sheet1!S71_ItemType,$AE:$AE))","v":1209598.1200000001},{"$f":"IF(-SUMIFS(Sheet1!S71_NovemberActual,Sheet1!S71_MasterVoteMunicipal,$AC:$AC,Sheet1!S71_ItemType,$AD:$AD)-SUMIFS(Sheet1!S71_NovemberActual,Sheet1!S71_MasterVoteMunicipal,$AC:$AC,Sheet1!S71_ItemType,$AE:$AE)=0,P16/12,-SUMIFS(Sheet1!S71_NovemberActual,Sheet1!S71_MasterVoteMunicipal,$AC:$AC,Sheet1!S71_ItemType,$AD:$AD)-SUMIFS(Sheet1!S71_NovemberActual,Sheet1!S71_MasterVoteMunicipal,$AC:$AC,Sheet1!S71_ItemType,$AE:$AE))","v":1238342.02},{"$f":"IF(-SUMIFS(Sheet1!S71_DecemberActual,Sheet1!S71_MasterVoteMunicipal,$AC:$AC,Sheet1!S71_ItemType,$AD:$AD)-SUMIFS(Sheet1!S71_DecemberActual,Sheet1!S71_MasterVoteMunicipal,$AC:$AC,Sheet1!S71_ItemType,$AE:$AE)=0,P16/12,-SUMIFS(Sheet1!S71_DecemberActual,Sheet1!S71_MasterVoteMunicipal,$AC:$AC,Sheet1!S71_ItemType,$AD:$AD)-SUMIFS(Sheet1!S71_DecemberActual,Sheet1!S71_MasterVoteMunicipal,$AC:$AC,Sheet1!S71_ItemType,$AE:$AE))","v":1221452.42},1285660.75,1285660.75,1285660.75,1285660.75,1285660.75,1720665.7200000007,null,{"$f":"'B3-FinPerf V'!K17","v":15427929},{"$f":"'B3-FinPerf V'!L17","v":15647254},{"$f":"'B3-FinPerf V'!M17","v":16368777},null,null,null,null,null,null,null,null,null,null,11,"IR","IZ"]
[{"$f":"'B3-FinPerf V'!A18","v":"Vote 12 - Environmental Protection"},null,{"$f":"IF(-SUMIFS(Sheet1!S71_JulyActual,Sheet1!S71_MasterVoteMunicipal,$AC:$AC,Sheet1!S71_ItemType,$AD:$AD)-SUMIFS(Sheet1!S71_JulyActual,Sheet1!S71_MasterVoteMunicipal,$AC:$AC,Sheet1!S71_ItemType,$AE:$AE)=0,P17/12,-SUMIFS(Sheet1!S71_JulyActual,Sheet1!S71_MasterVoteMunicipal,$AC:$AC,Sheet1!S71_ItemType,$AD:$AD)-SUMIFS(Sheet1!S71_JulyActual,Sheet1!S71_MasterVoteMunicipal,$AC:$AC,Sheet1!S71_ItemType,$AE:$AE))","v":0},{"$f":"IF(-SUMIFS(Sheet1!S71_AugustActual,Sheet1!S71_MasterVoteMunicipal,$AC:$AC,Sheet1!S71_ItemType,$AD:$AD)-SUMIFS(Sheet1!S71_AugustActual,Sheet1!S71_MasterVoteMunicipal,$AC:$AC,Sheet1!S71_ItemType,$AE:$AE)=0,P17/12,-SUMIFS(Sheet1!S71_AugustActual,Sheet1!S71_MasterVoteMunicipal,$AC:$AC,Sheet1!S71_ItemType,$AD:$AD)-SUMIFS(Sheet1!S71_AugustActual,Sheet1!S71_MasterVoteMunicipal,$AC:$AC,Sheet1!S71_ItemType,$AE:$AE))","v":0},{"$f":"IF(-SUMIFS(Sheet1!S71_SeptemberActual,Sheet1!S71_MasterVoteMunicipal,$AC:$AC,Sheet1!S71_ItemType,$AD:$AD)-SUMIFS(Sheet1!S71_SeptemberActual,Sheet1!S71_MasterVoteMunicipal,$AC:$AC,Sheet1!S71_ItemType,$AE:$AE)=0,P17/12,-SUMIFS(Sheet1!S71_SeptemberActual,Sheet1!S71_MasterVoteMunicipal,$AC:$AC,Sheet1!S71_ItemType,$AD:$AD)-SUMIFS(Sheet1!S71_SeptemberActual,Sheet1!S71_MasterVoteMunicipal,$AC:$AC,Sheet1!S71_ItemType,$AE:$AE))","v":0},{"$f":"IF(-SUMIFS(Sheet1!S71_OctoberActual,Sheet1!S71_MasterVoteMunicipal,$AC:$AC,Sheet1!S71_ItemType,$AD:$AD)-SUMIFS(Sheet1!S71_OctoberActual,Sheet1!S71_MasterVoteMunicipal,$AC:$AC,Sheet1!S71_ItemType,$AE:$AE)=0,P17/12,-SUMIFS(Sheet1!S71_OctoberActual,Sheet1!S71_MasterVoteMunicipal,$AC:$AC,Sheet1!S71_ItemType,$AD:$AD)-SUMIFS(Sheet1!S71_OctoberActual,Sheet1!S71_MasterVoteMunicipal,$AC:$AC,Sheet1!S71_ItemType,$AE:$AE))","v":0},{"$f":"IF(-SUMIFS(Sheet1!S71_NovemberActual,Sheet1!S71_MasterVoteMunicipal,$AC:$AC,Sheet1!S71_ItemType,$AD:$AD)-SUMIFS(Sheet1!S71_NovemberActual,Sheet1!S71_MasterVoteMunicipal,$AC:$AC,Sheet1!S71_ItemType,$AE:$AE)=0,P17/12,-SUMIFS(Sheet1!S71_NovemberActual,Sheet1!S71_MasterVoteMunicipal,$AC:$AC,Sheet1!S71_ItemType,$AD:$AD)-SUMIFS(Sheet1!S71_NovemberActual,Sheet1!S71_MasterVoteMunicipal,$AC:$AC,Sheet1!S71_ItemType,$AE:$AE))","v":0},{"$f":"IF(-SUMIFS(Sheet1!S71_DecemberActual,Sheet1!S71_MasterVoteMunicipal,$AC:$AC,Sheet1!S71_ItemType,$AD:$AD)-SUMIFS(Sheet1!S71_DecemberActual,Sheet1!S71_MasterVoteMunicipal,$AC:$AC,Sheet1!S71_ItemType,$AE:$AE)=0,P17/12,-SUMIFS(Sheet1!S71_DecemberActual,Sheet1!S71_MasterVoteMunicipal,$AC:$AC,Sheet1!S71_ItemType,$AD:$AD)-SUMIFS(Sheet1!S71_DecemberActual,Sheet1!S71_MasterVoteMunicipal,$AC:$AC,Sheet1!S71_ItemType,$AE:$AE))","v":0},0,0,0,0,0,0,null,{"$f":"'B3-FinPerf V'!K18","v":0},{"$f":"'B3-FinPerf V'!L18","v":0},{"$f":"'B3-FinPerf V'!M18","v":0},null,null,null,null,null,null,null,null,null,null,12,"IR","IZ"]
[{"$f":"'B3-FinPerf V'!A19","v":"Vote 13 - [NAME OF VOTE 13]"},null,{"$f":"IF(-SUMIFS(Sheet1!S71_JulyActual,Sheet1!S71_MasterVoteMunicipal,$AC:$AC,Sheet1!S71_ItemType,$AD:$AD)-SUMIFS(Sheet1!S71_JulyActual,Sheet1!S71_MasterVoteMunicipal,$AC:$AC,Sheet1!S71_ItemType,$AE:$AE)=0,P18/12,-SUMIFS(Sheet1!S71_JulyActual,Sheet1!S71_MasterVoteMunicipal,$AC:$AC,Sheet1!S71_ItemType,$AD:$AD)-SUMIFS(Sheet1!S71_JulyActual,Sheet1!S71_MasterVoteMunicipal,$AC:$AC,Sheet1!S71_ItemType,$AE:$AE))","v":0},{"$f":"IF(-SUMIFS(Sheet1!S71_AugustActual,Sheet1!S71_MasterVoteMunicipal,$AC:$AC,Sheet1!S71_ItemType,$AD:$AD)-SUMIFS(Sheet1!S71_AugustActual,Sheet1!S71_MasterVoteMunicipal,$AC:$AC,Sheet1!S71_ItemType,$AE:$AE)=0,P18/12,-SUMIFS(Sheet1!S71_AugustActual,Sheet1!S71_MasterVoteMunicipal,$AC:$AC,Sheet1!S71_ItemType,$AD:$AD)-SUMIFS(Sheet1!S71_AugustActual,Sheet1!S71_MasterVoteMunicipal,$AC:$AC,Sheet1!S71_ItemType,$AE:$AE))","v":0},{"$f":"IF(-SUMIFS(Sheet1!S71_SeptemberActual,Sheet1!S71_MasterVoteMunicipal,$AC:$AC,Sheet1!S71_ItemType,$AD:$AD)-SUMIFS(Sheet1!S71_SeptemberActual,Sheet1!S71_MasterVoteMunicipal,$AC:$AC,Sheet1!S71_ItemType,$AE:$AE)=0,P18/12,-SUMIFS(Sheet1!S71_SeptemberActual,Sheet1!S71_MasterVoteMunicipal,$AC:$AC,Sheet1!S71_ItemType,$AD:$AD)-SUMIFS(Sheet1!S71_SeptemberActual,Sheet1!S71_MasterVoteMunicipal,$AC:$AC,Sheet1!S71_ItemType,$AE:$AE))","v":0},{"$f":"IF(-SUMIFS(Sheet1!S71_OctoberActual,Sheet1!S71_MasterVoteMunicipal,$AC:$AC,Sheet1!S71_ItemType,$AD:$AD)-SUMIFS(Sheet1!S71_OctoberActual,Sheet1!S71_MasterVoteMunicipal,$AC:$AC,Sheet1!S71_ItemType,$AE:$AE)=0,P18/12,-SUMIFS(Sheet1!S71_OctoberActual,Sheet1!S71_MasterVoteMunicipal,$AC:$AC,Sheet1!S71_ItemType,$AD:$AD)-SUMIFS(Sheet1!S71_OctoberActual,Sheet1!S71_MasterVoteMunicipal,$AC:$AC,Sheet1!S71_ItemType,$AE:$AE))","v":0},{"$f":"IF(-SUMIFS(Sheet1!S71_NovemberActual,Sheet1!S71_MasterVoteMunicipal,$AC:$AC,Sheet1!S71_ItemType,$AD:$AD)-SUMIFS(Sheet1!S71_NovemberActual,Sheet1!S71_MasterVoteMunicipal,$AC:$AC,Sheet1!S71_ItemType,$AE:$AE)=0,P18/12,-SUMIFS(Sheet1!S71_NovemberActual,Sheet1!S71_MasterVoteMunicipal,$AC:$AC,Sheet1!S71_ItemType,$AD:$AD)-SUMIFS(Sheet1!S71_NovemberActual,Sheet1!S71_MasterVoteMunicipal,$AC:$AC,Sheet1!S71_ItemType,$AE:$AE))","v":0},{"$f":"IF(-SUMIFS(Sheet1!S71_DecemberActual,Sheet1!S71_MasterVoteMunicipal,$AC:$AC,Sheet1!S71_ItemType,$AD:$AD)-SUMIFS(Sheet1!S71_DecemberActual,Sheet1!S71_MasterVoteMunicipal,$AC:$AC,Sheet1!S71_ItemType,$AE:$AE)=0,P18/12,-SUMIFS(Sheet1!S71_DecemberActual,Sheet1!S71_MasterVoteMunicipal,$AC:$AC,Sheet1!S71_ItemType,$AD:$AD)-SUMIFS(Sheet1!S71_DecemberActual,Sheet1!S71_MasterVoteMunicipal,$AC:$AC,Sheet1!S71_ItemType,$AE:$AE))","v":0},0,0,0,0,0,0,null,{"$f":"'B3-FinPerf V'!K19","v":0},{"$f":"'B3-FinPerf V'!L19","v":0},{"$f":"'B3-FinPerf V'!M19","v":0},null,null,null,null,null,null,null,null,null,null,13,"IR","IZ"]
[{"$f":"'B3-FinPerf V'!A20","v":"Vote 14 - [NAME OF VOTE 14]"},null,{"$f":"IF(-SUMIFS(Sheet1!S71_JulyActual,Sheet1!S71_MasterVoteMunicipal,$AC:$AC,Sheet1!S71_ItemType,$AD:$AD)-SUMIFS(Sheet1!S71_JulyActual,Sheet1!S71_MasterVoteMunicipal,$AC:$AC,Sheet1!S71_ItemType,$AE:$AE)=0,P19/12,-SUMIFS(Sheet1!S71_JulyActual,Sheet1!S71_MasterVoteMunicipal,$AC:$AC,Sheet1!S71_ItemType,$AD:$AD)-SUMIFS(Sheet1!S71_JulyActual,Sheet1!S71_MasterVoteMunicipal,$AC:$AC,Sheet1!S71_ItemType,$AE:$AE))","v":0},{"$f":"IF(-SUMIFS(Sheet1!S71_AugustActual,Sheet1!S71_MasterVoteMunicipal,$AC:$AC,Sheet1!S71_ItemType,$AD:$AD)-SUMIFS(Sheet1!S71_AugustActual,Sheet1!S71_MasterVoteMunicipal,$AC:$AC,Sheet1!S71_ItemType,$AE:$AE)=0,P19/12,-SUMIFS(Sheet1!S71_AugustActual,Sheet1!S71_MasterVoteMunicipal,$AC:$AC,Sheet1!S71_ItemType,$AD:$AD)-SUMIFS(Sheet1!S71_AugustActual,Sheet1!S71_MasterVoteMunicipal,$AC:$AC,Sheet1!S71_ItemType,$AE:$AE))","v":0},{"$f":"IF(-SUMIFS(Sheet1!S71_SeptemberActual,Sheet1!S71_MasterVoteMunicipal,$AC:$AC,Sheet1!S71_ItemType,$AD:$AD)-SUMIFS(Sheet1!S71_SeptemberActual,Sheet1!S71_MasterVoteMunicipal,$AC:$AC,Sheet1!S71_ItemType,$AE:$AE)=0,P19/12,-SUMIFS(Sheet1!S71_SeptemberActual,Sheet1!S71_MasterVoteMunicipal,$AC:$AC,Sheet1!S71_ItemType,$AD:$AD)-SUMIFS(Sheet1!S71_SeptemberActual,Sheet1!S71_MasterVoteMunicipal,$AC:$AC,Sheet1!S71_ItemType,$AE:$AE))","v":0},{"$f":"IF(-SUMIFS(Sheet1!S71_OctoberActual,Sheet1!S71_MasterVoteMunicipal,$AC:$AC,Sheet1!S71_ItemType,$AD:$AD)-SUMIFS(Sheet1!S71_OctoberActual,Sheet1!S71_MasterVoteMunicipal,$AC:$AC,Sheet1!S71_ItemType,$AE:$AE)=0,P19/12,-SUMIFS(Sheet1!S71_OctoberActual,Sheet1!S71_MasterVoteMunicipal,$AC:$AC,Sheet1!S71_ItemType,$AD:$AD)-SUMIFS(Sheet1!S71_OctoberActual,Sheet1!S71_MasterVoteMunicipal,$AC:$AC,Sheet1!S71_ItemType,$AE:$AE))","v":0},{"$f":"IF(-SUMIFS(Sheet1!S71_NovemberActual,Sheet1!S71_MasterVoteMunicipal,$AC:$AC,Sheet1!S71_ItemType,$AD:$AD)-SUMIFS(Sheet1!S71_NovemberActual,Sheet1!S71_MasterVoteMunicipal,$AC:$AC,Sheet1!S71_ItemType,$AE:$AE)=0,P19/12,-SUMIFS(Sheet1!S71_NovemberActual,Sheet1!S71_MasterVoteMunicipal,$AC:$AC,Sheet1!S71_ItemType,$AD:$AD)-SUMIFS(Sheet1!S71_NovemberActual,Sheet1!S71_MasterVoteMunicipal,$AC:$AC,Sheet1!S71_ItemType,$AE:$AE))","v":0},{"$f":"IF(-SUMIFS(Sheet1!S71_DecemberActual,Sheet1!S71_MasterVoteMunicipal,$AC:$AC,Sheet1!S71_ItemType,$AD:$AD)-SUMIFS(Sheet1!S71_DecemberActual,Sheet1!S71_MasterVoteMunicipal,$AC:$AC,Sheet1!S71_ItemType,$AE:$AE)=0,P19/12,-SUMIFS(Sheet1!S71_DecemberActual,Sheet1!S71_MasterVoteMunicipal,$AC:$AC,Sheet1!S71_ItemType,$AD:$AD)-SUMIFS(Sheet1!S71_DecemberActual,Sheet1!S71_MasterVoteMunicipal,$AC:$AC,Sheet1!S71_ItemType,$AE:$AE))","v":0},0,0,0,0,0,0,null,{"$f":"'B3-FinPerf V'!K20","v":0},{"$f":"'B3-FinPerf V'!L20","v":0},{"$f":"'B3-FinPerf V'!M20","v":0},null,null,null,null,null,null,null,null,null,null,14,"IR","IZ"]
[{"$f":"'B3-FinPerf V'!A21","v":"Vote 15 - [NAME OF VOTE 15]"},null,{"$f":"IF(-SUMIFS(Sheet1!S71_JulyActual,Sheet1!S71_MasterVoteMunicipal,$AC:$AC,Sheet1!S71_ItemType,$AD:$AD)-SUMIFS(Sheet1!S71_JulyActual,Sheet1!S71_MasterVoteMunicipal,$AC:$AC,Sheet1!S71_ItemType,$AE:$AE)=0,P20/12,-SUMIFS(Sheet1!S71_JulyActual,Sheet1!S71_MasterVoteMunicipal,$AC:$AC,Sheet1!S71_ItemType,$AD:$AD)-SUMIFS(Sheet1!S71_JulyActual,Sheet1!S71_MasterVoteMunicipal,$AC:$AC,Sheet1!S71_ItemType,$AE:$AE))","v":0},{"$f":"IF(-SUMIFS(Sheet1!S71_AugustActual,Sheet1!S71_MasterVoteMunicipal,$AC:$AC,Sheet1!S71_ItemType,$AD:$AD)-SUMIFS(Sheet1!S71_AugustActual,Sheet1!S71_MasterVoteMunicipal,$AC:$AC,Sheet1!S71_ItemType,$AE:$AE)=0,P20/12,-SUMIFS(Sheet1!S71_AugustActual,Sheet1!S71_MasterVoteMunicipal,$AC:$AC,Sheet1!S71_ItemType,$AD:$AD)-SUMIFS(Sheet1!S71_AugustActual,Sheet1!S71_MasterVoteMunicipal,$AC:$AC,Sheet1!S71_ItemType,$AE:$AE))","v":0},{"$f":"IF(-SUMIFS(Sheet1!S71_SeptemberActual,Sheet1!S71_MasterVoteMunicipal,$AC:$AC,Sheet1!S71_ItemType,$AD:$AD)-SUMIFS(Sheet1!S71_SeptemberActual,Sheet1!S71_MasterVoteMunicipal,$AC:$AC,Sheet1!S71_ItemType,$AE:$AE)=0,P20/12,-SUMIFS(Sheet1!S71_SeptemberActual,Sheet1!S71_MasterVoteMunicipal,$AC:$AC,Sheet1!S71_ItemType,$AD:$AD)-SUMIFS(Sheet1!S71_SeptemberActual,Sheet1!S71_MasterVoteMunicipal,$AC:$AC,Sheet1!S71_ItemType,$AE:$AE))","v":0},{"$f":"IF(-SUMIFS(Sheet1!S71_OctoberActual,Sheet1!S71_MasterVoteMunicipal,$AC:$AC,Sheet1!S71_ItemType,$AD:$AD)-SUMIFS(Sheet1!S71_OctoberActual,Sheet1!S71_MasterVoteMunicipal,$AC:$AC,Sheet1!S71_ItemType,$AE:$AE)=0,P20/12,-SUMIFS(Sheet1!S71_OctoberActual,Sheet1!S71_MasterVoteMunicipal,$AC:$AC,Sheet1!S71_ItemType,$AD:$AD)-SUMIFS(Sheet1!S71_OctoberActual,Sheet1!S71_MasterVoteMunicipal,$AC:$AC,Sheet1!S71_ItemType,$AE:$AE))","v":0},{"$f":"IF(-SUMIFS(Sheet1!S71_NovemberActual,Sheet1!S71_MasterVoteMunicipal,$AC:$AC,Sheet1!S71_ItemType,$AD:$AD)-SUMIFS(Sheet1!S71_NovemberActual,Sheet1!S71_MasterVoteMunicipal,$AC:$AC,Sheet1!S71_ItemType,$AE:$AE)=0,P20/12,-SUMIFS(Sheet1!S71_NovemberActual,Sheet1!S71_MasterVoteMunicipal,$AC:$AC,Sheet1!S71_ItemType,$AD:$AD)-SUMIFS(Sheet1!S71_NovemberActual,Sheet1!S71_MasterVoteMunicipal,$AC:$AC,Sheet1!S71_ItemType,$AE:$AE))","v":0},{"$f":"IF(-SUMIFS(Sheet1!S71_DecemberActual,Sheet1!S71_MasterVoteMunicipal,$AC:$AC,Sheet1!S71_ItemType,$AD:$AD)-SUMIFS(Sheet1!S71_DecemberActual,Sheet1!S71_MasterVoteMunicipal,$AC:$AC,Sheet1!S71_ItemType,$AE:$AE)=0,P20/12,-SUMIFS(Sheet1!S71_DecemberActual,Sheet1!S71_MasterVoteMunicipal,$AC:$AC,Sheet1!S71_ItemType,$AD:$AD)-SUMIFS(Sheet1!S71_DecemberActual,Sheet1!S71_MasterVoteMunicipal,$AC:$AC,Sheet1!S71_ItemType,$AE:$AE))","v":0},0,0,0,0,0,0,{"$f":"SUM(C20:N20)","v":0},{"$f":"'B3-FinPerf V'!K21","v":0},{"$f":"'B3-FinPerf V'!L21","v":0},{"$f":"'B3-FinPerf V'!M21","v":0},null,null,null,null,null,null,null,null,null,null,15,"IR","IZ"]
[{"$f":"'B3-FinPerf V'!A22","v":"Total Revenue by Vote"},null,{"$f":"SUM(C6:C20)","v":114948497.29333335},46565257.023333326,16196762.433333334,14456977.603333335,65617725.563333347,102500853.53333333,40797651.916666664,40797651.916666664,40797651.916666664,40797651.916666664,40797651.916666664,-74702510.033333331,400120129,489571823,493892319,506675906]
[]
[{"$f":"'B3-FinPerf V'!A24","v":"Expenditure by Vote"}]
[{"$f":"'B3-FinPerf V'!A25","v":"Vote 1 - Executive and council"},null,{"$f":"IF(SUMIFS(Sheet1!S71_JulyActual,Sheet1!S71_MasterVoteMunicipal,$AC:$AC,Sheet1!S71_ItemType,$AD:$AD)+SUMIFS(Sheet1!S71_JulyActual,Sheet1!S71_MasterVoteMunicipal,$AC:$AC,Sheet1!S71_ItemType,$AE:$AE)=0,P24/12,SUMIFS(Sheet1!S71_JulyActual,Sheet1!S71_MasterVoteMunicipal,$AC:$AC,Sheet1!S71_ItemType,$AD:$AD)+SUMIFS(Sheet1!S71_JulyActual,Sheet1!S71_MasterVoteMunicipal,$AC:$AC,Sheet1!S71_ItemType,$AE:$AE))","v":5786504.2599999998},{"$f":"IF(SUMIFS(Sheet1!S71_AugustActual,Sheet1!S71_MasterVoteMunicipal,$AC:$AC,Sheet1!S71_ItemType,$AD:$AD)+SUMIFS(Sheet1!S71_AugustActual,Sheet1!S71_MasterVoteMunicipal,$AC:$AC,Sheet1!S71_ItemType,$AE:$AE)=0,P24/12,SUMIFS(Sheet1!S71_AugustActual,Sheet1!S71_MasterVoteMunicipal,$AC:$AC,Sheet1!S71_ItemType,$AD:$AD)+SUMIFS(Sheet1!S71_AugustActual,Sheet1!S71_MasterVoteMunicipal,$AC:$AC,Sheet1!S71_ItemType,$AE:$AE))","v":5037666.01},{"$f":"IF(SUMIFS(Sheet1!S71_SeptemberActual,Sheet1!S71_MasterVoteMunicipal,$AC:$AC,Sheet1!S71_ItemType,$AD:$AD)+SUMIFS(Sheet1!S71_SeptemberActual,Sheet1!S71_MasterVoteMunicipal,$AC:$AC,Sheet1!S71_ItemType,$AE:$AE)=0,P24/12,SUMIFS(Sheet1!S71_SeptemberActual,Sheet1!S71_MasterVoteMunicipal,$AC:$AC,Sheet1!S71_ItemType,$AD:$AD)+SUMIFS(Sheet1!S71_SeptemberActual,Sheet1!S71_MasterVoteMunicipal,$AC:$AC,Sheet1!S71_ItemType,$AE:$AE))","v":4471648.9399999985},{"$f":"IF(SUMIFS(Sheet1!S71_OctoberActual,Sheet1!S71_MasterVoteMunicipal,$AC:$AC,Sheet1!S71_ItemType,$AD:$AD)+SUMIFS(Sheet1!S71_OctoberActual,Sheet1!S71_MasterVoteMunicipal,$AC:$AC,Sheet1!S71_ItemType,$AE:$AE)=0,P24/12,SUMIFS(Sheet1!S71_OctoberActual,Sheet1!S71_MasterVoteMunicipal,$AC:$AC,Sheet1!S71_ItemType,$AD:$AD)+SUMIFS(Sheet1!S71_OctoberActual,Sheet1!S71_MasterVoteMunicipal,$AC:$AC,Sheet1!S71_ItemType,$AE:$AE))","v":5522910.9099999992},{"$f":"IF(SUMIFS(Sheet1!S71_NovemberActual,Sheet1!S71_MasterVoteMunicipal,$AC:$AC,Sheet1!S71_ItemType,$AD:$AD)+SUMIFS(Sheet1!S71_NovemberActual,Sheet1!S71_MasterVoteMunicipal,$AC:$AC,Sheet1!S71_ItemType,$AE:$AE)=0,P24/12,SUMIFS(Sheet1!S71_NovemberActual,Sheet1!S71_MasterVoteMunicipal,$AC:$AC,Sheet1!S71_ItemType,$AD:$AD)+SUMIFS(Sheet1!S71_NovemberActual,Sheet1!S71_MasterVoteMunicipal,$AC:$AC,Sheet1!S71_ItemType,$AE:$AE))","v":5329045.8399999989},{"$f":"IF(SUMIFS(Sheet1!S71_DecemberActual,Sheet1!S71_MasterVoteMunicipal,$AC:$AC,Sheet1!S71_ItemType,$AD:$AD)+SUMIFS(Sheet1!S71_DecemberActual,Sheet1!S71_MasterVoteMunicipal,$AC:$AC,Sheet1!S71_ItemType,$AE:$AE)=0,P24/12,SUMIFS(Sheet1!S71_DecemberActual,Sheet1!S71_MasterVoteMunicipal,$AC:$AC,Sheet1!S71_ItemType,$AD:$AD)+SUMIFS(Sheet1!S71_DecemberActual,Sheet1!S71_MasterVoteMunicipal,$AC:$AC,Sheet1!S71_ItemType,$AE:$AE))","v":9584639.2899999991},{"$f":"$P24/12","v":6041855.416666667},{"$f":"$P24/12","v":6041855.416666667},6041855.416666667,6041855.416666667,6041855.416666667,{"$f":"P24-SUM(C24:M24)","v":6560572.6666666791},{"$f":"SUM(C24:N24)","v":72502265},{"$f":"'B3-FinPerf V'!K25","v":72502265},{"$f":"'B3-FinPerf V'!L25","v":69139571},{"$f":"'B3-FinPerf V'!M25","v":71919455},null,null,null,null,null,null,null,null,null,null,1,"IE","IZ"]
[{"$f":"'B3-FinPerf V'!A26","v":"Vote 2 - Finance and administration"},null,{"$f":"IF(SUMIFS(Sheet1!S71_JulyActual,Sheet1!S71_MasterVoteMunicipal,$AC:$AC,Sheet1!S71_ItemType,$AD:$AD)+SUMIFS(Sheet1!S71_JulyActual,Sheet1!S71_MasterVoteMunicipal,$AC:$AC,Sheet1!S71_ItemType,$AE:$AE)=0,P25/12,SUMIFS(Sheet1!S71_JulyActual,Sheet1!S71_MasterVoteMunicipal,$AC:$AC,Sheet1!S71_ItemType,$AD:$AD)+SUMIFS(Sheet1!S71_JulyActual,Sheet1!S71_MasterVoteMunicipal,$AC:$AC,Sheet1!S71_ItemType,$AE:$AE))","v":9835712.6900000013},{"$f":"IF(SUMIFS(Sheet1!S71_AugustActual,Sheet1!S71_MasterVoteMunicipal,$AC:$AC,Sheet1!S71_ItemType,$AD:$AD)+SUMIFS(Sheet1!S71_AugustActual,Sheet1!S71_MasterVoteMunicipal,$AC:$AC,Sheet1!S71_ItemType,$AE:$AE)=0,P25/12,SUMIFS(Sheet1!S71_AugustActual,Sheet1!S71_MasterVoteMunicipal,$AC:$AC,Sheet1!S71_ItemType,$AD:$AD)+SUMIFS(Sheet1!S71_AugustActual,Sheet1!S71_MasterVoteMunicipal,$AC:$AC,Sheet1!S71_ItemType,$AE:$AE))","v":9845601.5699999984},{"$f":"IF(SUMIFS(Sheet1!S71_SeptemberActual,Sheet1!S71_MasterVoteMunicipal,$AC:$AC,Sheet1!S71_ItemType,$AD:$AD)+SUMIFS(Sheet1!S71_SeptemberActual,Sheet1!S71_MasterVoteMunicipal,$AC:$AC,Sheet1!S71_ItemType,$AE:$AE)=0,P25/12,SUMIFS(Sheet1!S71_SeptemberActual,Sheet1!S71_MasterVoteMunicipal,$AC:$AC,Sheet1!S71_ItemType,$AD:$AD)+SUMIFS(Sheet1!S71_SeptemberActual,Sheet1!S71_MasterVoteMunicipal,$AC:$AC,Sheet1!S71_ItemType,$AE:$AE))","v":9662937.8600000013},{"$f":"IF(SUMIFS(Sheet1!S71_OctoberActual,Sheet1!S71_MasterVoteMunicipal,$AC:$AC,Sheet1!S71_ItemType,$AD:$AD)+SUMIFS(Sheet1!S71_OctoberActual,Sheet1!S71_MasterVoteMunicipal,$AC:$AC,Sheet1!S71_ItemType,$AE:$AE)=0,P25/12,SUMIFS(Sheet1!S71_OctoberActual,Sheet1!S71_MasterVoteMunicipal,$AC:$AC,Sheet1!S71_ItemType,$AD:$AD)+SUMIFS(Sheet1!S71_OctoberActual,Sheet1!S71_MasterVoteMunicipal,$AC:$AC,Sheet1!S71_ItemType,$AE:$AE))","v":9022650.5299999993},{"$f":"IF(SUMIFS(Sheet1!S71_NovemberActual,Sheet1!S71_MasterVoteMunicipal,$AC:$AC,Sheet1!S71_ItemType,$AD:$AD)+SUMIFS(Sheet1!S71_NovemberActual,Sheet1!S71_MasterVoteMunicipal,$AC:$AC,Sheet1!S71_ItemType,$AE:$AE)=0,P25/12,SUMIFS(Sheet1!S71_NovemberActual,Sheet1!S71_MasterVoteMunicipal,$AC:$AC,Sheet1!S71_ItemType,$AD:$AD)+SUMIFS(Sheet1!S71_NovemberActual,Sheet1!S71_MasterVoteMunicipal,$AC:$AC,Sheet1!S71_ItemType,$AE:$AE))","v":9767689.0499999989},{"$f":"IF(SUMIFS(Sheet1!S71_DecemberActual,Sheet1!S71_MasterVoteMunicipal,$AC:$AC,Sheet1!S71_ItemType,$AD:$AD)+SUMIFS(Sheet1!S71_DecemberActual,Sheet1!S71_MasterVoteMunicipal,$AC:$AC,Sheet1!S71_ItemType,$AE:$AE)=0,P25/12,SUMIFS(Sheet1!S71_DecemberActual,Sheet1!S71_MasterVoteMunicipal,$AC:$AC,Sheet1!S71_ItemType,$AD:$AD)+SUMIFS(Sheet1!S71_DecemberActual,Sheet1!S71_MasterVoteMunicipal,$AC:$AC,Sheet1!S71_ItemType,$AE:$AE))","v":16246901.170000007},{"$f":"$P25/12","v":13762152.5},13762152.5,13762152.5,13762152.5,13762152.5,31953574.629999995,165145830,{"$f":"'B3-FinPerf V'!K26","v":165145830},{"$f":"'B3-FinPerf V'!L26","v":149835530},{"$f":"'B3-FinPerf V'!M26","v":137933511},null,null,null,null,null,null,null,null,null,null,2,"IE","IZ"]
[{"$f":"'B3-FinPerf V'!A27","v":"Vote 3 - Internal audit"},null,{"$f":"IF(SUMIFS(Sheet1!S71_JulyActual,Sheet1!S71_MasterVoteMunicipal,$AC:$AC,Sheet1!S71_ItemType,$AD:$AD)+SUMIFS(Sheet1!S71_JulyActual,Sheet1!S71_MasterVoteMunicipal,$AC:$AC,Sheet1!S71_ItemType,$AE:$AE)=0,P26/12,SUMIFS(Sheet1!S71_JulyActual,Sheet1!S71_MasterVoteMunicipal,$AC:$AC,Sheet1!S71_ItemType,$AD:$AD)+SUMIFS(Sheet1!S71_JulyActual,Sheet1!S71_MasterVoteMunicipal,$AC:$AC,Sheet1!S71_ItemType,$AE:$AE))","v":0},{"$f":"IF(SUMIFS(Sheet1!S71_AugustActual,Sheet1!S71_MasterVoteMunicipal,$AC:$AC,Sheet1!S71_ItemType,$AD:$AD)+SUMIFS(Sheet1!S71_AugustActual,Sheet1!S71_MasterVoteMunicipal,$AC:$AC,Sheet1!S71_ItemType,$AE:$AE)=0,P26/12,SUMIFS(Sheet1!S71_AugustActual,Sheet1!S71_MasterVoteMunicipal,$AC:$AC,Sheet1!S71_ItemType,$AD:$AD)+SUMIFS(Sheet1!S71_AugustActual,Sheet1!S71_MasterVoteMunicipal,$AC:$AC,Sheet1!S71_ItemType,$AE:$AE))","v":0},{"$f":"IF(SUMIFS(Sheet1!S71_SeptemberActual,Sheet1!S71_MasterVoteMunicipal,$AC:$AC,Sheet1!S71_ItemType,$AD:$AD)+SUMIFS(Sheet1!S71_SeptemberActual,Sheet1!S71_MasterVoteMunicipal,$AC:$AC,Sheet1!S71_ItemType,$AE:$AE)=0,P26/12,SUMIFS(Sheet1!S71_SeptemberActual,Sheet1!S71_MasterVoteMunicipal,$AC:$AC,Sheet1!S71_ItemType,$AD:$AD)+SUMIFS(Sheet1!S71_SeptemberActual,Sheet1!S71_MasterVoteMunicipal,$AC:$AC,Sheet1!S71_ItemType,$AE:$AE))","v":0},{"$f":"IF(SUMIFS(Sheet1!S71_OctoberActual,Sheet1!S71_MasterVoteMunicipal,$AC:$AC,Sheet1!S71_ItemType,$AD:$AD)+SUMIFS(Sheet1!S71_OctoberActual,Sheet1!S71_MasterVoteMunicipal,$AC:$AC,Sheet1!S71_ItemType,$AE:$AE)=0,P26/12,SUMIFS(Sheet1!S71_OctoberActual,Sheet1!S71_MasterVoteMunicipal,$AC:$AC,Sheet1!S71_ItemType,$AD:$AD)+SUMIFS(Sheet1!S71_OctoberActual,Sheet1!S71_MasterVoteMunicipal,$AC:$AC,Sheet1!S71_ItemType,$AE:$AE))","v":0},{"$f":"IF(SUMIFS(Sheet1!S71_NovemberActual,Sheet1!S71_MasterVoteMunicipal,$AC:$AC,Sheet1!S71_ItemType,$AD:$AD)+SUMIFS(Sheet1!S71_NovemberActual,Sheet1!S71_MasterVoteMunicipal,$AC:$AC,Sheet1!S71_ItemType,$AE:$AE)=0,P26/12,SUMIFS(Sheet1!S71_NovemberActual,Sheet1!S71_MasterVoteMunicipal,$AC:$AC,Sheet1!S71_ItemType,$AD:$AD)+SUMIFS(Sheet1!S71_NovemberActual,Sheet1!S71_MasterVoteMunicipal,$AC:$AC,Sheet1!S71_ItemType,$AE:$AE))","v":0},{"$f":"IF(SUMIFS(Sheet1!S71_DecemberActual,Sheet1!S71_MasterVoteMunicipal,$AC:$AC,Sheet1!S71_ItemType,$AD:$AD)+SUMIFS(Sheet1!S71_DecemberActual,Sheet1!S71_MasterVoteMunicipal,$AC:$AC,Sheet1!S71_ItemType,$AE:$AE)=0,P26/12,SUMIFS(Sheet1!S71_DecemberActual,Sheet1!S71_MasterVoteMunicipal,$AC:$AC,Sheet1!S71_ItemType,$AD:$AD)+SUMIFS(Sheet1!S71_DecemberActual,Sheet1!S71_MasterVoteMunicipal,$AC:$AC,Sheet1!S71_ItemType,$AE:$AE))","v":0},{"$f":"$P26/12","v":0},0,0,0,0,0,0,{"$f":"'B3-FinPerf V'!K27","v":0},{"$f":"'B3-FinPerf V'!L27","v":0},{"$f":"'B3-FinPerf V'!M27","v":0},null,null,null,null,null,null,null,null,null,null,3,"IE","IZ"]
[{"$f":"'B3-FinPerf V'!A28","v":"Vote 4 - Community and social services"},null,{"$f":"IF(SUMIFS(Sheet1!S71_JulyActual,Sheet1!S71_MasterVoteMunicipal,$AC:$AC,Sheet1!S71_ItemType,$AD:$AD)+SUMIFS(Sheet1!S71_JulyActual,Sheet1!S71_MasterVoteMunicipal,$AC:$AC,Sheet1!S71_ItemType,$AE:$AE)=0,P27/12,SUMIFS(Sheet1!S71_JulyActual,Sheet1!S71_MasterVoteMunicipal,$AC:$AC,Sheet1!S71_ItemType,$AD:$AD)+SUMIFS(Sheet1!S71_JulyActual,Sheet1!S71_MasterVoteMunicipal,$AC:$AC,Sheet1!S71_ItemType,$AE:$AE))","v":2518202.84},{"$f":"IF(SUMIFS(Sheet1!S71_AugustActual,Sheet1!S71_MasterVoteMunicipal,$AC:$AC,Sheet1!S71_ItemType,$AD:$AD)+SUMIFS(Sheet1!S71_AugustActual,Sheet1!S71_MasterVoteMunicipal,$AC:$AC,Sheet1!S71_ItemType,$AE:$AE)=0,P27/12,SUMIFS(Sheet1!S71_AugustActual,Sheet1!S71_MasterVoteMunicipal,$AC:$AC,Sheet1!S71_ItemType,$AD:$AD)+SUMIFS(Sheet1!S71_AugustActual,Sheet1!S71_MasterVoteMunicipal,$AC:$AC,Sheet1!S71_ItemType,$AE:$AE))","v":3568370.7499999991},{"$f":"IF(SUMIFS(Sheet1!S71_SeptemberActual,Sheet1!S71_MasterVoteMunicipal,$AC:$AC,Sheet1!S71_ItemType,$AD:$AD)+SUMIFS(Sheet1!S71_SeptemberActual,Sheet1!S71_MasterVoteMunicipal,$AC:$AC,Sheet1!S71_ItemType,$AE:$AE)=0,P27/12,SUMIFS(Sheet1!S71_SeptemberActual,Sheet1!S71_MasterVoteMunicipal,$AC:$AC,Sheet1!S71_ItemType,$AD:$AD)+SUMIFS(Sheet1!S71_SeptemberActual,Sheet1!S71_MasterVoteMunicipal,$AC:$AC,Sheet1!S71_ItemType,$AE:$AE))","v":3460780.34},{"$f":"IF(SUMIFS(Sheet1!S71_OctoberActual,Sheet1!S71_MasterVoteMunicipal,$AC:$AC,Sheet1!S71_ItemType,$AD:$AD)+SUMIFS(Sheet1!S71_OctoberActual,Sheet1!S71_MasterVoteMunicipal,$AC:$AC,Sheet1!S71_ItemType,$AE:$AE)=0,P27/12,SUMIFS(Sheet1!S71_OctoberActual,Sheet1!S71_MasterVoteMunicipal,$AC:$AC,Sheet1!S71_ItemType,$AD:$AD)+SUMIFS(Sheet1!S71_OctoberActual,Sheet1!S71_MasterVoteMunicipal,$AC:$AC,Sheet1!S71_ItemType,$AE:$AE))","v":3427890.5099999993},{"$f":"IF(SUMIFS(Sheet1!S71_NovemberActual,Sheet1!S71_MasterVoteMunicipal,$AC:$AC,Sheet1!S71_ItemType,$AD:$AD)+SUMIFS(Sheet1!S71_NovemberActual,Sheet1!S71_MasterVoteMunicipal,$AC:$AC,Sheet1!S71_ItemType,$AE:$AE)=0,P27/12,SUMIFS(Sheet1!S71_NovemberActual,Sheet1!S71_MasterVoteMunicipal,$AC:$AC,Sheet1!S71_ItemType,$AD:$AD)+SUMIFS(Sheet1!S71_NovemberActual,Sheet1!S71_MasterVoteMunicipal,$AC:$AC,Sheet1!S71_ItemType,$AE:$AE))","v":3297553.8399999994},{"$f":"IF(SUMIFS(Sheet1!S71_DecemberActual,Sheet1!S71_MasterVoteMunicipal,$AC:$AC,Sheet1!S71_ItemType,$AD:$AD)+SUMIFS(Sheet1!S71_DecemberActual,Sheet1!S71_MasterVoteMunicipal,$AC:$AC,Sheet1!S71_ItemType,$AE:$AE)=0,P27/12,SUMIFS(Sheet1!S71_DecemberActual,Sheet1!S71_MasterVoteMunicipal,$AC:$AC,Sheet1!S71_ItemType,$AD:$AD)+SUMIFS(Sheet1!S71_DecemberActual,Sheet1!S71_MasterVoteMunicipal,$AC:$AC,Sheet1!S71_ItemType,$AE:$AE))","v":2924775.1899999995},2537725.9166666665,2537725.9166666665,2537725.9166666665,2537725.9166666665,2537725.9166666665,-1433492.0533333384,30452711,{"$f":"'B3-FinPerf V'!K28","v":30452711},{"$f":"'B3-FinPerf V'!L28","v":31707493},{"$f":"'B3-FinPerf V'!M28","v":33069256},null,null,null,null,null,null,null,null,null,null,4,"IE","IZ"]
[{"$f":"'B3-FinPerf V'!A29","v":"Vote 5 - Sport and Recreation"},null,{"$f":"IF(SUMIFS(Sheet1!S71_JulyActual,Sheet1!S71_MasterVoteMunicipal,$AC:$AC,Sheet1!S71_ItemType,$AD:$AD)+SUMIFS(Sheet1!S71_JulyActual,Sheet1!S71_MasterVoteMunicipal,$AC:$AC,Sheet1!S71_ItemType,$AE:$AE)=0,P28/12,SUMIFS(Sheet1!S71_JulyActual,Sheet1!S71_MasterVoteMunicipal,$AC:$AC,Sheet1!S71_ItemType,$AD:$AD)+SUMIFS(Sheet1!S71_JulyActual,Sheet1!S71_MasterVoteMunicipal,$AC:$AC,Sheet1!S71_ItemType,$AE:$AE))","v":333961.81},{"$f":"IF(SUMIFS(Sheet1!S71_AugustActual,Sheet1!S71_MasterVoteMunicipal,$AC:$AC,Sheet1!S71_ItemType,$AD:$AD)+SUMIFS(Sheet1!S71_AugustActual,Sheet1!S71_MasterVoteMunicipal,$AC:$AC,Sheet1!S71_ItemType,$AE:$AE)=0,P28/12,SUMIFS(Sheet1!S71_AugustActual,Sheet1!S71_MasterVoteMunicipal,$AC:$AC,Sheet1!S71_ItemType,$AD:$AD)+SUMIFS(Sheet1!S71_AugustActual,Sheet1!S71_MasterVoteMunicipal,$AC:$AC,Sheet1!S71_ItemType,$AE:$AE))","v":696476.63},{"$f":"IF(SUMIFS(Sheet1!S71_SeptemberActual,Sheet1!S71_MasterVoteMunicipal,$AC:$AC,Sheet1!S71_ItemType,$AD:$AD)+SUMIFS(Sheet1!S71_SeptemberActual,Sheet1!S71_MasterVoteMunicipal,$AC:$AC,Sheet1!S71_ItemType,$AE:$AE)=0,P28/12,SUMIFS(Sheet1!S71_SeptemberActual,Sheet1!S71_MasterVoteMunicipal,$AC:$AC,Sheet1!S71_ItemType,$AD:$AD)+SUMIFS(Sheet1!S71_SeptemberActual,Sheet1!S71_MasterVoteMunicipal,$AC:$AC,Sheet1!S71_ItemType,$AE:$AE))","v":641866.90999999992},{"$f":"IF(SUMIFS(Sheet1!S71_OctoberActual,Sheet1!S71_MasterVoteMunicipal,$AC:$AC,Sheet1!S71_ItemType,$AD:$AD)+SUMIFS(Sheet1!S71_OctoberActual,Sheet1!S71_MasterVoteMunicipal,$AC:$AC,Sheet1!S71_ItemType,$AE:$AE)=0,P28/12,SUMIFS(Sheet1!S71_OctoberActual,Sheet1!S71_MasterVoteMunicipal,$AC:$AC,Sheet1!S71_ItemType,$AD:$AD)+SUMIFS(Sheet1!S71_OctoberActual,Sheet1!S71_MasterVoteMunicipal,$AC:$AC,Sheet1!S71_ItemType,$AE:$AE))","v":952925.38},{"$f":"IF(SUMIFS(Sheet1!S71_NovemberActual,Sheet1!S71_MasterVoteMunicipal,$AC:$AC,Sheet1!S71_ItemType,$AD:$AD)+SUMIFS(Sheet1!S71_NovemberActual,Sheet1!S71_MasterVoteMunicipal,$AC:$AC,Sheet1!S71_ItemType,$AE:$AE)=0,P28/12,SUMIFS(Sheet1!S71_NovemberActual,Sheet1!S71_MasterVoteMunicipal,$AC:$AC,Sheet1!S71_ItemType,$AD:$AD)+SUMIFS(Sheet1!S71_NovemberActual,Sheet1!S71_MasterVoteMunicipal,$AC:$AC,Sheet1!S71_ItemType,$AE:$AE))","v":1317807.4700000002},{"$f":"IF(SUMIFS(Sheet1!S71_DecemberActual,Sheet1!S71_MasterVoteMunicipal,$AC:$AC,Sheet1!S71_ItemType,$AD:$AD)+SUMIFS(Sheet1!S71_DecemberActual,Sheet1!S71_MasterVoteMunicipal,$AC:$AC,Sheet1!S71_ItemType,$AE:$AE)=0,P28/12,SUMIFS(Sheet1!S71_DecemberActual,Sheet1!S71_MasterVoteMunicipal,$AC:$AC,Sheet1!S71_ItemType,$AD:$AD)+SUMIFS(Sheet1!S71_DecemberActual,Sheet1!S71_MasterVoteMunicipal,$AC:$AC,Sheet1!S71_ItemType,$AE:$AE))","v":1315883.01},1142848.25,1142848.25,1142848.25,1142848.25,1142848.25,0,10973162.460000001,{"$f":"'B3-FinPerf V'!K29","v":13714179},{"$f":"'B3-FinPerf V'!L29","v":10257703},{"$f":"'B3-FinPerf V'!M29","v":11101933},null,null,null,null,null,null,null,null,null,null,5,"IE","IZ"]
[{"$f":"'B3-FinPerf V'!A30","v":"Vote 6 - Public safety"},null,{"$f":"IF(SUMIFS(Sheet1!S71_JulyActual,Sheet1!S71_MasterVoteMunicipal,$AC:$AC,Sheet1!S71_ItemType,$AD:$AD)+SUMIFS(Sheet1!S71_JulyActual,Sheet1!S71_MasterVoteMunicipal,$AC:$AC,Sheet1!S71_ItemType,$AE:$AE)=0,P29/12,SUMIFS(Sheet1!S71_JulyActual,Sheet1!S71_MasterVoteMunicipal,$AC:$AC,Sheet1!S71_ItemType,$AD:$AD)+SUMIFS(Sheet1!S71_JulyActual,Sheet1!S71_MasterVoteMunicipal,$AC:$AC,Sheet1!S71_ItemType,$AE:$AE))","v":145577.91666666666},{"$f":"IF(SUMIFS(Sheet1!S71_AugustActual,Sheet1!S71_MasterVoteMunicipal,$AC:$AC,Sheet1!S71_ItemType,$AD:$AD)+SUMIFS(Sheet1!S71_AugustActual,Sheet1!S71_MasterVoteMunicipal,$AC:$AC,Sheet1!S71_ItemType,$AE:$AE)=0,P29/12,SUMIFS(Sheet1!S71_AugustActual,Sheet1!S71_MasterVoteMunicipal,$AC:$AC,Sheet1!S71_ItemType,$AD:$AD)+SUMIFS(Sheet1!S71_AugustActual,Sheet1!S71_MasterVoteMunicipal,$AC:$AC,Sheet1!S71_ItemType,$AE:$AE))","v":145577.91666666666},{"$f":"IF(SUMIFS(Sheet1!S71_SeptemberActual,Sheet1!S71_MasterVoteMunicipal,$AC:$AC,Sheet1!S71_ItemType,$AD:$AD)+SUMIFS(Sheet1!S71_SeptemberActual,Sheet1!S71_MasterVoteMunicipal,$AC:$AC,Sheet1!S71_ItemType,$AE:$AE)=0,P29/12,SUMIFS(Sheet1!S71_SeptemberActual,Sheet1!S71_MasterVoteMunicipal,$AC:$AC,Sheet1!S71_ItemType,$AD:$AD)+SUMIFS(Sheet1!S71_SeptemberActual,Sheet1!S71_MasterVoteMunicipal,$AC:$AC,Sheet1!S71_ItemType,$AE:$AE))","v":145577.91666666666},{"$f":"IF(SUMIFS(Sheet1!S71_OctoberActual,Sheet1!S71_MasterVoteMunicipal,$AC:$AC,Sheet1!S71_ItemType,$AD:$AD)+SUMIFS(Sheet1!S71_OctoberActual,Sheet1!S71_MasterVoteMunicipal,$AC:$AC,Sheet1!S71_ItemType,$AE:$AE)=0,P29/12,SUMIFS(Sheet1!S71_OctoberActual,Sheet1!S71_MasterVoteMunicipal,$AC:$AC,Sheet1!S71_ItemType,$AD:$AD)+SUMIFS(Sheet1!S71_OctoberActual,Sheet1!S71_MasterVoteMunicipal,$AC:$AC,Sheet1!S71_ItemType,$AE:$AE))","v":226100},{"$f":"IF(SUMIFS(Sheet1!S71_NovemberActual,Sheet1!S71_MasterVoteMunicipal,$AC:$AC,Sheet1!S71_ItemType,$AD:$AD)+SUMIFS(Sheet1!S71_NovemberActual,Sheet1!S71_MasterVoteMunicipal,$AC:$AC,Sheet1!S71_ItemType,$AE:$AE)=0,P29/12,SUMIFS(Sheet1!S71_NovemberActual,Sheet1!S71_MasterVoteMunicipal,$AC:$AC,Sheet1!S71_ItemType,$AD:$AD)+SUMIFS(Sheet1!S71_NovemberActual,Sheet1!S71_MasterVoteMunicipal,$AC:$AC,Sheet1!S71_ItemType,$AE:$AE))","v":32725},{"$f":"IF(SUMIFS(Sheet1!S71_DecemberActual,Sheet1!S71_MasterVoteMunicipal,$AC:$AC,Sheet1!S71_ItemType,$AD:$AD)+SUMIFS(Sheet1!S71_DecemberActual,Sheet1!S71_MasterVoteMunicipal,$AC:$AC,Sheet1!S71_ItemType,$AE:$AE)=0,P29/12,SUMIFS(Sheet1!S71_DecemberActual,Sheet1!S71_MasterVoteMunicipal,$AC:$AC,Sheet1!S71_ItemType,$AD:$AD)+SUMIFS(Sheet1!S71_DecemberActual,Sheet1!S71_MasterVoteMunicipal,$AC:$AC,Sheet1!S71_ItemType,$AE:$AE))","v":249648},145577.91666666666,145577.91666666666,145577.91666666666,145577.91666666666,145577.91666666666,73838.666666666279,1746935,{"$f":"'B3-FinPerf V'!K30","v":1746935},{"$f":"'B3-FinPerf V'!L30","v":1976485},{"$f":"'B3-FinPerf V'!M30","v":2067395},null,null,null,null,null,null,null,null,null,null,6,"IE","IZ"]
[{"$f":"'B3-FinPerf V'!A31","v":"Vote 7 - Housing"},null,{"$f":"IF(SUMIFS(Sheet1!S71_JulyActual,Sheet1!S71_MasterVoteMunicipal,$AC:$AC,Sheet1!S71_ItemType,$AD:$AD)+SUMIFS(Sheet1!S71_JulyActual,Sheet1!S71_MasterVoteMunicipal,$AC:$AC,Sheet1!S71_ItemType,$AE:$AE)=0,P30/12,SUMIFS(Sheet1!S71_JulyActual,Sheet1!S71_MasterVoteMunicipal,$AC:$AC,Sheet1!S71_ItemType,$AD:$AD)+SUMIFS(Sheet1!S71_JulyActual,Sheet1!S71_MasterVoteMunicipal,$AC:$AC,Sheet1!S71_ItemType,$AE:$AE))","v":15050},{"$f":"IF(SUMIFS(Sheet1!S71_AugustActual,Sheet1!S71_MasterVoteMunicipal,$AC:$AC,Sheet1!S71_ItemType,$AD:$AD)+SUMIFS(Sheet1!S71_AugustActual,Sheet1!S71_MasterVoteMunicipal,$AC:$AC,Sheet1!S71_ItemType,$AE:$AE)=0,P30/12,SUMIFS(Sheet1!S71_AugustActual,Sheet1!S71_MasterVoteMunicipal,$AC:$AC,Sheet1!S71_ItemType,$AD:$AD)+SUMIFS(Sheet1!S71_AugustActual,Sheet1!S71_MasterVoteMunicipal,$AC:$AC,Sheet1!S71_ItemType,$AE:$AE))","v":22423.166666666668},{"$f":"IF(SUMIFS(Sheet1!S71_SeptemberActual,Sheet1!S71_MasterVoteMunicipal,$AC:$AC,Sheet1!S71_ItemType,$AD:$AD)+SUMIFS(Sheet1!S71_SeptemberActual,Sheet1!S71_MasterVoteMunicipal,$AC:$AC,Sheet1!S71_ItemType,$AE:$AE)=0,P30/12,SUMIFS(Sheet1!S71_SeptemberActual,Sheet1!S71_MasterVoteMunicipal,$AC:$AC,Sheet1!S71_ItemType,$AD:$AD)+SUMIFS(Sheet1!S71_SeptemberActual,Sheet1!S71_MasterVoteMunicipal,$AC:$AC,Sheet1!S71_ItemType,$AE:$AE))","v":22423.166666666668},{"$f":"IF(SUMIFS(Sheet1!S71_OctoberActual,Sheet1!S71_MasterVoteMunicipal,$AC:$AC,Sheet1!S71_ItemType,$AD:$AD)+SUMIFS(Sheet1!S71_OctoberActual,Sheet1!S71_MasterVoteMunicipal,$AC:$AC,Sheet1!S71_ItemType,$AE:$AE)=0,P30/12,SUMIFS(Sheet1!S71_OctoberActual,Sheet1!S71_MasterVoteMunicipal,$AC:$AC,Sheet1!S71_ItemType,$AD:$AD)+SUMIFS(Sheet1!S71_OctoberActual,Sheet1!S71_MasterVoteMunicipal,$AC:$AC,Sheet1!S71_ItemType,$AE:$AE))","v":22423.166666666668},{"$f":"IF(SUMIFS(Sheet1!S71_NovemberActual,Sheet1!S71_MasterVoteMunicipal,$AC:$AC,Sheet1!S71_ItemType,$AD:$AD)+SUMIFS(Sheet1!S71_NovemberActual,Sheet1!S71_MasterVoteMunicipal,$AC:$AC,Sheet1!S71_ItemType,$AE:$AE)=0,P30/12,SUMIFS(Sheet1!S71_NovemberActual,Sheet1!S71_MasterVoteMunicipal,$AC:$AC,Sheet1!S71_ItemType,$AD:$AD)+SUMIFS(Sheet1!S71_NovemberActual,Sheet1!S71_MasterVoteMunicipal,$AC:$AC,Sheet1!S71_ItemType,$AE:$AE))","v":22423.166666666668},{"$f":"IF(SUMIFS(Sheet1!S71_DecemberActual,Sheet1!S71_MasterVoteMunicipal,$AC:$AC,Sheet1!S71_ItemType,$AD:$AD)+SUMIFS(Sheet1!S71_DecemberActual,Sheet1!S71_MasterVoteMunicipal,$AC:$AC,Sheet1!S71_ItemType,$AE:$AE)=0,P30/12,SUMIFS(Sheet1!S71_DecemberActual,Sheet1!S71_MasterVoteMunicipal,$AC:$AC,Sheet1!S71_ItemType,$AD:$AD)+SUMIFS(Sheet1!S71_DecemberActual,Sheet1!S71_MasterVoteMunicipal,$AC:$AC,Sheet1!S71_ItemType,$AE:$AE))","v":13950},22423.166666666668,22423.166666666668,22423.166666666668,22423.166666666668,22423.166666666668,0,230808.49999999997,{"$f":"'B3-FinPerf V'!K31","v":269078},{"$f":"'B3-FinPerf V'!L31","v":31380},{"$f":"'B3-FinPerf V'!M31","v":32823},null,null,null,null,null,null,null,null,null,null,7,"IE","IZ"]
[{"$f":"'B3-FinPerf V'!A32","v":"Vote 8 - Planning and Development"},null,{"$f":"IF(SUMIFS(Sheet1!S71_JulyActual,Sheet1!S71_MasterVoteMunicipal,$AC:$AC,Sheet1!S71_ItemType,$AD:$AD)+SUMIFS(Sheet1!S71_JulyActual,Sheet1!S71_MasterVoteMunicipal,$AC:$AC,Sheet1!S71_ItemType,$AE:$AE)=0,P31/12,SUMIFS(Sheet1!S71_JulyActual,Sheet1!S71_MasterVoteMunicipal,$AC:$AC,Sheet1!S71_ItemType,$AD:$AD)+SUMIFS(Sheet1!S71_JulyActual,Sheet1!S71_MasterVoteMunicipal,$AC:$AC,Sheet1!S71_ItemType,$AE:$AE))","v":1255170.4999999995},{"$f":"IF(SUMIFS(Sheet1!S71_AugustActual,Sheet1!S71_MasterVoteMunicipal,$AC:$AC,Sheet1!S71_ItemType,$AD:$AD)+SUMIFS(Sheet1!S71_AugustActual,Sheet1!S71_MasterVoteMunicipal,$AC:$AC,Sheet1!S71_ItemType,$AE:$AE)=0,P31/12,SUMIFS(Sheet1!S71_AugustActual,Sheet1!S71_MasterVoteMunicipal,$AC:$AC,Sheet1!S71_ItemType,$AD:$AD)+SUMIFS(Sheet1!S71_AugustActual,Sheet1!S71_MasterVoteMunicipal,$AC:$AC,Sheet1!S71_ItemType,$AE:$AE))","v":1281520.2099999995},{"$f":"IF(SUMIFS(Sheet1!S71_SeptemberActual,Sheet1!S71_MasterVoteMunicipal,$AC:$AC,Sheet1!S71_ItemType,$AD:$AD)+SUMIFS(Sheet1!S71_SeptemberActual,Sheet1!S71_MasterVoteMunicipal,$AC:$AC,Sheet1!S71_ItemType,$AE:$AE)=0,P31/12,SUMIFS(Sheet1!S71_SeptemberActual,Sheet1!S71_MasterVoteMunicipal,$AC:$AC,Sheet1!S71_ItemType,$AD:$AD)+SUMIFS(Sheet1!S71_SeptemberActual,Sheet1!S71_MasterVoteMunicipal,$AC:$AC,Sheet1!S71_ItemType,$AE:$AE))","v":1449493.2799999996},{"$f":"IF(SUMIFS(Sheet1!S71_OctoberActual,Sheet1!S71_MasterVoteMunicipal,$AC:$AC,Sheet1!S71_ItemType,$AD:$AD)+SUMIFS(Sheet1!S71_OctoberActual,Sheet1!S71_MasterVoteMunicipal,$AC:$AC,Sheet1!S71_ItemType,$AE:$AE)=0,P31/12,SUMIFS(Sheet1!S71_OctoberActual,Sheet1!S71_MasterVoteMunicipal,$AC:$AC,Sheet1!S71_ItemType,$AD:$AD)+SUMIFS(Sheet1!S71_OctoberActual,Sheet1!S71_MasterVoteMunicipal,$AC:$AC,Sheet1!S71_ItemType,$AE:$AE))","v":1663181.0899999999},{"$f":"IF(SUMIFS(Sheet1!S71_NovemberActual,Sheet1!S71_MasterVoteMunicipal,$AC:$AC,Sheet1!S71_ItemType,$AD:$AD)+SUMIFS(Sheet1!S71_NovemberActual,Sheet1!S71_MasterVoteMunicipal,$AC:$AC,Sheet1!S71_ItemType,$AE:$AE)=0,P31/12,SUMIFS(Sheet1!S71_NovemberActual,Sheet1!S71_MasterVoteMunicipal,$AC:$AC,Sheet1!S71_ItemType,$AD:$AD)+SUMIFS(Sheet1!S71_NovemberActual,Sheet1!S71_MasterVoteMunicipal,$AC:$AC,Sheet1!S71_ItemType,$AE:$AE))","v":2880970.5300000003},{"$f":"IF(SUMIFS(Sheet1!S71_DecemberActual,Sheet1!S71_MasterVoteMunicipal,$AC:$AC,Sheet1!S71_ItemType,$AD:$AD)+SUMIFS(Sheet1!S71_DecemberActual,Sheet1!S71_MasterVoteMunicipal,$AC:$AC,Sheet1!S71_ItemType,$AE:$AE)=0,P31/12,SUMIFS(Sheet1!S71_DecemberActual,Sheet1!S71_MasterVoteMunicipal,$AC:$AC,Sheet1!S71_ItemType,$AD:$AD)+SUMIFS(Sheet1!S71_DecemberActual,Sheet1!S71_MasterVoteMunicipal,$AC:$AC,Sheet1!S71_ItemType,$AE:$AE))","v":2851728.2399999993},2086227.3333333333,2086227.3333333333,2086227.3333333333,2086227.3333333333,2086227.3333333333,3221527.4833333381,25034728,{"$f":"'B3-FinPerf V'!K32","v":25034728},{"$f":"'B3-FinPerf V'!L32","v":24989494},{"$f":"'B3-FinPerf V'!M32","v":26191182},null,null,null,null,null,null,null,null,null,null,8,"IE","IZ"]
[{"$f":"'B3-FinPerf V'!A33","v":"Vote 9 - Road transport"},null,{"$f":"IF(SUMIFS(Sheet1!S71_JulyActual,Sheet1!S71_MasterVoteMunicipal,$AC:$AC,Sheet1!S71_ItemType,$AD:$AD)+SUMIFS(Sheet1!S71_JulyActual,Sheet1!S71_MasterVoteMunicipal,$AC:$AC,Sheet1!S71_ItemType,$AE:$AE)=0,P32/12,SUMIFS(Sheet1!S71_JulyActual,Sheet1!S71_MasterVoteMunicipal,$AC:$AC,Sheet1!S71_ItemType,$AD:$AD)+SUMIFS(Sheet1!S71_JulyActual,Sheet1!S71_MasterVoteMunicipal,$AC:$AC,Sheet1!S71_ItemType,$AE:$AE))","v":1718267.4199999997},{"$f":"IF(SUMIFS(Sheet1!S71_AugustActual,Sheet1!S71_MasterVoteMunicipal,$AC:$AC,Sheet1!S71_ItemType,$AD:$AD)+SUMIFS(Sheet1!S71_AugustActual,Sheet1!S71_MasterVoteMunicipal,$AC:$AC,Sheet1!S71_ItemType,$AE:$AE)=0,P32/12,SUMIFS(Sheet1!S71_AugustActual,Sheet1!S71_MasterVoteMunicipal,$AC:$AC,Sheet1!S71_ItemType,$AD:$AD)+SUMIFS(Sheet1!S71_AugustActual,Sheet1!S71_MasterVoteMunicipal,$AC:$AC,Sheet1!S71_ItemType,$AE:$AE))","v":5076227.5099999988},{"$f":"IF(SUMIFS(Sheet1!S71_SeptemberActual,Sheet1!S71_MasterVoteMunicipal,$AC:$AC,Sheet1!S71_ItemType,$AD:$AD)+SUMIFS(Sheet1!S71_SeptemberActual,Sheet1!S71_MasterVoteMunicipal,$AC:$AC,Sheet1!S71_ItemType,$AE:$AE)=0,P32/12,SUMIFS(Sheet1!S71_SeptemberActual,Sheet1!S71_MasterVoteMunicipal,$AC:$AC,Sheet1!S71_ItemType,$AD:$AD)+SUMIFS(Sheet1!S71_SeptemberActual,Sheet1!S71_MasterVoteMunicipal,$AC:$AC,Sheet1!S71_ItemType,$AE:$AE))","v":4156129.04},{"$f":"IF(SUMIFS(Sheet1!S71_OctoberActual,Sheet1!S71_MasterVoteMunicipal,$AC:$AC,Sheet1!S71_ItemType,$AD:$AD)+SUMIFS(Sheet1!S71_OctoberActual,Sheet1!S71_MasterVoteMunicipal,$AC:$AC,Sheet1!S71_ItemType,$AE:$AE)=0,P32/12,SUMIFS(Sheet1!S71_OctoberActual,Sheet1!S71_MasterVoteMunicipal,$AC:$AC,Sheet1!S71_ItemType,$AD:$AD)+SUMIFS(Sheet1!S71_OctoberActual,Sheet1!S71_MasterVoteMunicipal,$AC:$AC,Sheet1!S71_ItemType,$AE:$AE))","v":5099054.0000000009},{"$f":"IF(SUMIFS(Sheet1!S71_NovemberActual,Sheet1!S71_MasterVoteMunicipal,$AC:$AC,Sheet1!S71_ItemType,$AD:$AD)+SUMIFS(Sheet1!S71_NovemberActual,Sheet1!S71_MasterVoteMunicipal,$AC:$AC,Sheet1!S71_ItemType,$AE:$AE)=0,P32/12,SUMIFS(Sheet1!S71_NovemberActual,Sheet1!S71_MasterVoteMunicipal,$AC:$AC,Sheet1!S71_ItemType,$AD:$AD)+SUMIFS(Sheet1!S71_NovemberActual,Sheet1!S71_MasterVoteMunicipal,$AC:$AC,Sheet1!S71_ItemType,$AE:$AE))","v":4965695.9499999993},{"$f":"IF(SUMIFS(Sheet1!S71_DecemberActual,Sheet1!S71_MasterVoteMunicipal,$AC:$AC,Sheet1!S71_ItemType,$AD:$AD)+SUMIFS(Sheet1!S71_DecemberActual,Sheet1!S71_MasterVoteMunicipal,$AC:$AC,Sheet1!S71_ItemType,$AE:$AE)=0,P32/12,SUMIFS(Sheet1!S71_DecemberActual,Sheet1!S71_MasterVoteMunicipal,$AC:$AC,Sheet1!S71_ItemType,$AD:$AD)+SUMIFS(Sheet1!S71_DecemberActual,Sheet1!S71_MasterVoteMunicipal,$AC:$AC,Sheet1!S71_ItemType,$AE:$AE))","v":6221685.6199999992},4787982,4787982,4787982,4787982,4787982,6278814.4600000009,57455784,{"$f":"'B3-FinPerf V'!K33","v":57455784},{"$f":"'B3-FinPerf V'!L33","v":58480686},{"$f":"'B3-FinPerf V'!M33","v":59861533},null,null,null,null,null,null,null,null,null,null,9,"IE","IZ"]
[{"$f":"'B3-FinPerf V'!A34","v":"Vote 10 - Energy sources"},null,{"$f":"IF(SUMIFS(Sheet1!S71_JulyActual,Sheet1!S71_MasterVoteMunicipal,$AC:$AC,Sheet1!S71_ItemType,$AD:$AD)+SUMIFS(Sheet1!S71_JulyActual,Sheet1!S71_MasterVoteMunicipal,$AC:$AC,Sheet1!S71_ItemType,$AE:$AE)=0,P33/12,SUMIFS(Sheet1!S71_JulyActual,Sheet1!S71_MasterVoteMunicipal,$AC:$AC,Sheet1!S71_ItemType,$AD:$AD)+SUMIFS(Sheet1!S71_JulyActual,Sheet1!S71_MasterVoteMunicipal,$AC:$AC,Sheet1!S71_ItemType,$AE:$AE))","v":515408.99000000005},{"$f":"IF(SUMIFS(Sheet1!S71_AugustActual,Sheet1!S71_MasterVoteMunicipal,$AC:$AC,Sheet1!S71_ItemType,$AD:$AD)+SUMIFS(Sheet1!S71_AugustActual,Sheet1!S71_MasterVoteMunicipal,$AC:$AC,Sheet1!S71_ItemType,$AE:$AE)=0,P33/12,SUMIFS(Sheet1!S71_AugustActual,Sheet1!S71_MasterVoteMunicipal,$AC:$AC,Sheet1!S71_ItemType,$AD:$AD)+SUMIFS(Sheet1!S71_AugustActual,Sheet1!S71_MasterVoteMunicipal,$AC:$AC,Sheet1!S71_ItemType,$AE:$AE))","v":13924281.670000002},{"$f":"IF(SUMIFS(Sheet1!S71_SeptemberActual,Sheet1!S71_MasterVoteMunicipal,$AC:$AC,Sheet1!S71_ItemType,$AD:$AD)+SUMIFS(Sheet1!S71_SeptemberActual,Sheet1!S71_MasterVoteMunicipal,$AC:$AC,Sheet1!S71_ItemType,$AE:$AE)=0,P33/12,SUMIFS(Sheet1!S71_SeptemberActual,Sheet1!S71_MasterVoteMunicipal,$AC:$AC,Sheet1!S71_ItemType,$AD:$AD)+SUMIFS(Sheet1!S71_SeptemberActual,Sheet1!S71_MasterVoteMunicipal,$AC:$AC,Sheet1!S71_ItemType,$AE:$AE))","v":876044.28},{"$f":"IF(SUMIFS(Sheet1!S71_OctoberActual,Sheet1!S71_MasterVoteMunicipal,$AC:$AC,Sheet1!S71_ItemType,$AD:$AD)+SUMIFS(Sheet1!S71_OctoberActual,Sheet1!S71_MasterVoteMunicipal,$AC:$AC,Sheet1!S71_ItemType,$AE:$AE)=0,P33/12,SUMIFS(Sheet1!S71_OctoberActual,Sheet1!S71_MasterVoteMunicipal,$AC:$AC,Sheet1!S71_ItemType,$AD:$AD)+SUMIFS(Sheet1!S71_OctoberActual,Sheet1!S71_MasterVoteMunicipal,$AC:$AC,Sheet1!S71_ItemType,$AE:$AE))","v":11025694.480000002},{"$f":"IF(SUMIFS(Sheet1!S71_NovemberActual,Sheet1!S71_MasterVoteMunicipal,$AC:$AC,Sheet1!S71_ItemType,$AD:$AD)+SUMIFS(Sheet1!S71_NovemberActual,Sheet1!S71_MasterVoteMunicipal,$AC:$AC,Sheet1!S71_ItemType,$AE:$AE)=0,P33/12,SUMIFS(Sheet1!S71_NovemberActual,Sheet1!S71_MasterVoteMunicipal,$AC:$AC,Sheet1!S71_ItemType,$AD:$AD)+SUMIFS(Sheet1!S71_NovemberActual,Sheet1!S71_MasterVoteMunicipal,$AC:$AC,Sheet1!S71_ItemType,$AE:$AE))","v":5370043.8099999987},{"$f":"IF(SUMIFS(Sheet1!S71_DecemberActual,Sheet1!S71_MasterVoteMunicipal,$AC:$AC,Sheet1!S71_ItemType,$AD:$AD)+SUMIFS(Sheet1!S71_DecemberActual,Sheet1!S71_MasterVoteMunicipal,$AC:$AC,Sheet1!S71_ItemType,$AE:$AE)=0,P33/12,SUMIFS(Sheet1!S71_DecemberActual,Sheet1!S71_MasterVoteMunicipal,$AC:$AC,Sheet1!S71_ItemType,$AD:$AD)+SUMIFS(Sheet1!S71_DecemberActual,Sheet1!S71_MasterVoteMunicipal,$AC:$AC,Sheet1!S71_ItemType,$AE:$AE))","v":5741286.5299999993},5829593.166666667,5829593.166666667,5829593.166666667,5829593.166666667,5829593.166666667,3354392.4066666812,69955118,{"$f":"'B3-FinPerf V'!K34","v":69955118},{"$f":"'B3-FinPerf V'!L34","v":76813179},{"$f":"'B3-FinPerf V'!M34","v":81119364},null,null,null,null,null,null,null,null,null,null,10,"IE","IZ"]
[{"$f":"'B3-FinPerf V'!A35","v":"Vote 11 - Waste Management"},null,{"$f":"IF(SUMIFS(Sheet1!S71_JulyActual,Sheet1!S71_MasterVoteMunicipal,$AC:$AC,Sheet1!S71_ItemType,$AD:$AD)+SUMIFS(Sheet1!S71_JulyActual,Sheet1!S71_MasterVoteMunicipal,$AC:$AC,Sheet1!S71_ItemType,$AE:$AE)=0,P34/12,SUMIFS(Sheet1!S71_JulyActual,Sheet1!S71_MasterVoteMunicipal,$AC:$AC,Sheet1!S71_ItemType,$AD:$AD)+SUMIFS(Sheet1!S71_JulyActual,Sheet1!S71_MasterVoteMunicipal,$AC:$AC,Sheet1!S71_ItemType,$AE:$AE))","v":427014.34},{"$f":"IF(SUMIFS(Sheet1!S71_AugustActual,Sheet1!S71_MasterVoteMunicipal,$AC:$AC,Sheet1!S71_ItemType,$AD:$AD)+SUMIFS(Sheet1!S71_AugustActual,Sheet1!S71_MasterVoteMunicipal,$AC:$AC,Sheet1!S71_ItemType,$AE:$AE)=0,P34/12,SUMIFS(Sheet1!S71_AugustActual,Sheet1!S71_MasterVoteMunicipal,$AC:$AC,Sheet1!S71_ItemType,$AD:$AD)+SUMIFS(Sheet1!S71_AugustActual,Sheet1!S71_MasterVoteMunicipal,$AC:$AC,Sheet1!S71_ItemType,$AE:$AE))","v":1040082.9},{"$f":"IF(SUMIFS(Sheet1!S71_SeptemberActual,Sheet1!S71_MasterVoteMunicipal,$AC:$AC,Sheet1!S71_ItemType,$AD:$AD)+SUMIFS(Sheet1!S71_SeptemberActual,Sheet1!S71_MasterVoteMunicipal,$AC:$AC,Sheet1!S71_ItemType,$AE:$AE)=0,P34/12,SUMIFS(Sheet1!S71_SeptemberActual,Sheet1!S71_MasterVoteMunicipal,$AC:$AC,Sheet1!S71_ItemType,$AD:$AD)+SUMIFS(Sheet1!S71_SeptemberActual,Sheet1!S71_MasterVoteMunicipal,$AC:$AC,Sheet1!S71_ItemType,$AE:$AE))","v":552160.46},{"$f":"IF(SUMIFS(Sheet1!S71_OctoberActual,Sheet1!S71_MasterVoteMunicipal,$AC:$AC,Sheet1!S71_ItemType,$AD:$AD)+SUMIFS(Sheet1!S71_OctoberActual,Sheet1!S71_MasterVoteMunicipal,$AC:$AC,Sheet1!S71_ItemType,$AE:$AE)=0,P34/12,SUMIFS(Sheet1!S71_OctoberActual,Sheet1!S71_MasterVoteMunicipal,$AC:$AC,Sheet1!S71_ItemType,$AD:$AD)+SUMIFS(Sheet1!S71_OctoberActual,Sheet1!S71_MasterVoteMunicipal,$AC:$AC,Sheet1!S71_ItemType,$AE:$AE))","v":624125.01},{"$f":"IF(SUMIFS(Sheet1!S71_NovemberActual,Sheet1!S71_MasterVoteMunicipal,$AC:$AC,Sheet1!S71_ItemType,$AD:$AD)+SUMIFS(Sheet1!S71_NovemberActual,Sheet1!S71_MasterVoteMunicipal,$AC:$AC,Sheet1!S71_ItemType,$AE:$AE)=0,P34/12,SUMIFS(Sheet1!S71_NovemberActual,Sheet1!S71_MasterVoteMunicipal,$AC:$AC,Sheet1!S71_ItemType,$AD:$AD)+SUMIFS(Sheet1!S71_NovemberActual,Sheet1!S71_MasterVoteMunicipal,$AC:$AC,Sheet1!S71_ItemType,$AE:$AE))","v":1140339.01},{"$f":"IF(SUMIFS(Sheet1!S71_DecemberActual,Sheet1!S71_MasterVoteMunicipal,$AC:$AC,Sheet1!S71_ItemType,$AD:$AD)+SUMIFS(Sheet1!S71_DecemberActual,Sheet1!S71_MasterVoteMunicipal,$AC:$AC,Sheet1!S71_ItemType,$AE:$AE)=0,P34/12,SUMIFS(Sheet1!S71_DecemberActual,Sheet1!S71_MasterVoteMunicipal,$AC:$AC,Sheet1!S71_ItemType,$AD:$AD)+SUMIFS(Sheet1!S71_DecemberActual,Sheet1!S71_MasterVoteMunicipal,$AC:$AC,Sheet1!S71_ItemType,$AE:$AE))","v":15667983.889999999},1774942.5833333333,1774942.5833333333,1774942.5833333333,1774942.5833333333,1774942.5833333333,-7027107.5266666599,21299311,{"$f":"'B3-FinPerf V'!K35","v":21299311},{"$f":"'B3-FinPerf V'!L35","v":21857644},{"$f":"'B3-FinPerf V'!M35","v":31847295},null,null,null,null,null,null,null,null,null,null,11,"IE","IZ"]
[{"$f":"'B3-FinPerf V'!A36","v":"Vote 12 - Environmental Protection"},null,{"$f":"IF(SUMIFS(Sheet1!S71_JulyActual,Sheet1!S71_MasterVoteMunicipal,$AC:$AC,Sheet1!S71_ItemType,$AD:$AD)+SUMIFS(Sheet1!S71_JulyActual,Sheet1!S71_MasterVoteMunicipal,$AC:$AC,Sheet1!S71_ItemType,$AE:$AE)=0,P35/12,SUMIFS(Sheet1!S71_JulyActual,Sheet1!S71_MasterVoteMunicipal,$AC:$AC,Sheet1!S71_ItemType,$AD:$AD)+SUMIFS(Sheet1!S71_JulyActual,Sheet1!S71_MasterVoteMunicipal,$AC:$AC,Sheet1!S71_ItemType,$AE:$AE))","v":314278.13999999996},{"$f":"IF(SUMIFS(Sheet1!S71_AugustActual,Sheet1!S71_MasterVoteMunicipal,$AC:$AC,Sheet1!S71_ItemType,$AD:$AD)+SUMIFS(Sheet1!S71_AugustActual,Sheet1!S71_MasterVoteMunicipal,$AC:$AC,Sheet1!S71_ItemType,$AE:$AE)=0,P35/12,SUMIFS(Sheet1!S71_AugustActual,Sheet1!S71_MasterVoteMunicipal,$AC:$AC,Sheet1!S71_ItemType,$AD:$AD)+SUMIFS(Sheet1!S71_AugustActual,Sheet1!S71_MasterVoteMunicipal,$AC:$AC,Sheet1!S71_ItemType,$AE:$AE))","v":313772.43},{"$f":"IF(SUMIFS(Sheet1!S71_SeptemberActual,Sheet1!S71_MasterVoteMunicipal,$AC:$AC,Sheet1!S71_ItemType,$AD:$AD)+SUMIFS(Sheet1!S71_SeptemberActual,Sheet1!S71_MasterVoteMunicipal,$AC:$AC,Sheet1!S71_ItemType,$AE:$AE)=0,P35/12,SUMIFS(Sheet1!S71_SeptemberActual,Sheet1!S71_MasterVoteMunicipal,$AC:$AC,Sheet1!S71_ItemType,$AD:$AD)+SUMIFS(Sheet1!S71_SeptemberActual,Sheet1!S71_MasterVoteMunicipal,$AC:$AC,Sheet1!S71_ItemType,$AE:$AE))","v":346690.75999999995},{"$f":"IF(SUMIFS(Sheet1!S71_OctoberActual,Sheet1!S71_MasterVoteMunicipal,$AC:$AC,Sheet1!S71_ItemType,$AD:$AD)+SUMIFS(Sheet1!S71_OctoberActual,Sheet1!S71_MasterVoteMunicipal,$AC:$AC,Sheet1!S71_ItemType,$AE:$AE)=0,P35/12,SUMIFS(Sheet1!S71_OctoberActual,Sheet1!S71_MasterVoteMunicipal,$AC:$AC,Sheet1!S71_ItemType,$AD:$AD)+SUMIFS(Sheet1!S71_OctoberActual,Sheet1!S71_MasterVoteMunicipal,$AC:$AC,Sheet1!S71_ItemType,$AE:$AE))","v":374284.82999999996},{"$f":"IF(SUMIFS(Sheet1!S71_NovemberActual,Sheet1!S71_MasterVoteMunicipal,$AC:$AC,Sheet1!S71_ItemType,$AD:$AD)+SUMIFS(Sheet1!S71_NovemberActual,Sheet1!S71_MasterVoteMunicipal,$AC:$AC,Sheet1!S71_ItemType,$AE:$AE)=0,P35/12,SUMIFS(Sheet1!S71_NovemberActual,Sheet1!S71_MasterVoteMunicipal,$AC:$AC,Sheet1!S71_ItemType,$AD:$AD)+SUMIFS(Sheet1!S71_NovemberActual,Sheet1!S71_MasterVoteMunicipal,$AC:$AC,Sheet1!S71_ItemType,$AE:$AE))","v":336408.94999999995},{"$f":"IF(SUMIFS(Sheet1!S71_DecemberActual,Sheet1!S71_MasterVoteMunicipal,$AC:$AC,Sheet1!S71_ItemType,$AD:$AD)+SUMIFS(Sheet1!S71_DecemberActual,Sheet1!S71_MasterVoteMunicipal,$AC:$AC,Sheet1!S71_ItemType,$AE:$AE)=0,P35/12,SUMIFS(Sheet1!S71_DecemberActual,Sheet1!S71_MasterVoteMunicipal,$AC:$AC,Sheet1!S71_ItemType,$AD:$AD)+SUMIFS(Sheet1!S71_DecemberActual,Sheet1!S71_MasterVoteMunicipal,$AC:$AC,Sheet1!S71_ItemType,$AE:$AE))","v":377451.80000000005},343673,343673,343673,343673,343673,342824.09000000032,4124076,{"$f":"'B3-FinPerf V'!K36","v":4124076},{"$f":"'B3-FinPerf V'!L36","v":4249880},{"$f":"'B3-FinPerf V'!M36","v":4445400},null,null,null,null,null,null,null,null,null,null,12,"IE","IZ"]
[{"$f":"'B3-FinPerf V'!A37","v":"Vote 13 - [NAME OF VOTE 13]"},null,{"$f":"IF(SUMIFS(Sheet1!S71_JulyActual,Sheet1!S71_MasterVoteMunicipal,$AC:$AC,Sheet1!S71_ItemType,$AD:$AD)+SUMIFS(Sheet1!S71_JulyActual,Sheet1!S71_MasterVoteMunicipal,$AC:$AC,Sheet1!S71_ItemType,$AE:$AE)=0,P36/12,SUMIFS(Sheet1!S71_JulyActual,Sheet1!S71_MasterVoteMunicipal,$AC:$AC,Sheet1!S71_ItemType,$AD:$AD)+SUMIFS(Sheet1!S71_JulyActual,Sheet1!S71_MasterVoteMunicipal,$AC:$AC,Sheet1!S71_ItemType,$AE:$AE))","v":0},{"$f":"IF(SUMIFS(Sheet1!S71_AugustActual,Sheet1!S71_MasterVoteMunicipal,$AC:$AC,Sheet1!S71_ItemType,$AD:$AD)+SUMIFS(Sheet1!S71_AugustActual,Sheet1!S71_MasterVoteMunicipal,$AC:$AC,Sheet1!S71_ItemType,$AE:$AE)=0,P36/12,SUMIFS(Sheet1!S71_AugustActual,Sheet1!S71_MasterVoteMunicipal,$AC:$AC,Sheet1!S71_ItemType,$AD:$AD)+SUMIFS(Sheet1!S71_AugustActual,Sheet1!S71_MasterVoteMunicipal,$AC:$AC,Sheet1!S71_ItemType,$AE:$AE))","v":0},{"$f":"IF(SUMIFS(Sheet1!S71_SeptemberActual,Sheet1!S71_MasterVoteMunicipal,$AC:$AC,Sheet1!S71_ItemType,$AD:$AD)+SUMIFS(Sheet1!S71_SeptemberActual,Sheet1!S71_MasterVoteMunicipal,$AC:$AC,Sheet1!S71_ItemType,$AE:$AE)=0,P36/12,SUMIFS(Sheet1!S71_SeptemberActual,Sheet1!S71_MasterVoteMunicipal,$AC:$AC,Sheet1!S71_ItemType,$AD:$AD)+SUMIFS(Sheet1!S71_SeptemberActual,Sheet1!S71_MasterVoteMunicipal,$AC:$AC,Sheet1!S71_ItemType,$AE:$AE))","v":0},{"$f":"IF(SUMIFS(Sheet1!S71_OctoberActual,Sheet1!S71_MasterVoteMunicipal,$AC:$AC,Sheet1!S71_ItemType,$AD:$AD)+SUMIFS(Sheet1!S71_OctoberActual,Sheet1!S71_MasterVoteMunicipal,$AC:$AC,Sheet1!S71_ItemType,$AE:$AE)=0,P36/12,SUMIFS(Sheet1!S71_OctoberActual,Sheet1!S71_MasterVoteMunicipal,$AC:$AC,Sheet1!S71_ItemType,$AD:$AD)+SUMIFS(Sheet1!S71_OctoberActual,Sheet1!S71_MasterVoteMunicipal,$AC:$AC,Sheet1!S71_ItemType,$AE:$AE))","v":0},{"$f":"IF(SUMIFS(Sheet1!S71_NovemberActual,Sheet1!S71_MasterVoteMunicipal,$AC:$AC,Sheet1!S71_ItemType,$AD:$AD)+SUMIFS(Sheet1!S71_NovemberActual,Sheet1!S71_MasterVoteMunicipal,$AC:$AC,Sheet1!S71_ItemType,$AE:$AE)=0,P36/12,SUMIFS(Sheet1!S71_NovemberActual,Sheet1!S71_MasterVoteMunicipal,$AC:$AC,Sheet1!S71_ItemType,$AD:$AD)+SUMIFS(Sheet1!S71_NovemberActual,Sheet1!S71_MasterVoteMunicipal,$AC:$AC,Sheet1!S71_ItemType,$AE:$AE))","v":0},{"$f":"IF(SUMIFS(Sheet1!S71_DecemberActual,Sheet1!S71_MasterVoteMunicipal,$AC:$AC,Sheet1!S71_ItemType,$AD:$AD)+SUMIFS(Sheet1!S71_DecemberActual,Sheet1!S71_MasterVoteMunicipal,$AC:$AC,Sheet1!S71_ItemType,$AE:$AE)=0,P36/12,SUMIFS(Sheet1!S71_DecemberActual,Sheet1!S71_MasterVoteMunicipal,$AC:$AC,Sheet1!S71_ItemType,$AD:$AD)+SUMIFS(Sheet1!S71_DecemberActual,Sheet1!S71_MasterVoteMunicipal,$AC:$AC,Sheet1!S71_ItemType,$AE:$AE))","v":0},0,0,0,0,0,0,0,{"$f":"'B3-FinPerf V'!K37","v":0},{"$f":"'B3-FinPerf V'!L37","v":0},{"$f":"'B3-FinPerf V'!M37","v":0},null,null,null,null,null,null,null,null,null,null,13,"IE","IZ"]
[{"$f":"'B3-FinPerf V'!A38","v":"Vote 14 - [NAME OF VOTE 14]"},null,{"$f":"IF(SUMIFS(Sheet1!S71_JulyActual,Sheet1!S71_MasterVoteMunicipal,$AC:$AC,Sheet1!S71_ItemType,$AD:$AD)+SUMIFS(Sheet1!S71_JulyActual,Sheet1!S71_MasterVoteMunicipal,$AC:$AC,Sheet1!S71_ItemType,$AE:$AE)=0,P37/12,SUMIFS(Sheet1!S71_JulyActual,Sheet1!S71_MasterVoteMunicipal,$AC:$AC,Sheet1!S71_ItemType,$AD:$AD)+SUMIFS(Sheet1!S71_JulyActual,Sheet1!S71_MasterVoteMunicipal,$AC:$AC,Sheet1!S71_ItemType,$AE:$AE))","v":0},{"$f":"IF(SUMIFS(Sheet1!S71_AugustActual,Sheet1!S71_MasterVoteMunicipal,$AC:$AC,Sheet1!S71_ItemType,$AD:$AD)+SUMIFS(Sheet1!S71_AugustActual,Sheet1!S71_MasterVoteMunicipal,$AC:$AC,Sheet1!S71_ItemType,$AE:$AE)=0,P37/12,SUMIFS(Sheet1!S71_AugustActual,Sheet1!S71_MasterVoteMunicipal,$AC:$AC,Sheet1!S71_ItemType,$AD:$AD)+SUMIFS(Sheet1!S71_AugustActual,Sheet1!S71_MasterVoteMunicipal,$AC:$AC,Sheet1!S71_ItemType,$AE:$AE))","v":0},{"$f":"IF(SUMIFS(Sheet1!S71_SeptemberActual,Sheet1!S71_MasterVoteMunicipal,$AC:$AC,Sheet1!S71_ItemType,$AD:$AD)+SUMIFS(Sheet1!S71_SeptemberActual,Sheet1!S71_MasterVoteMunicipal,$AC:$AC,Sheet1!S71_ItemType,$AE:$AE)=0,P37/12,SUMIFS(Sheet1!S71_SeptemberActual,Sheet1!S71_MasterVoteMunicipal,$AC:$AC,Sheet1!S71_ItemType,$AD:$AD)+SUMIFS(Sheet1!S71_SeptemberActual,Sheet1!S71_MasterVoteMunicipal,$AC:$AC,Sheet1!S71_ItemType,$AE:$AE))","v":0},{"$f":"IF(SUMIFS(Sheet1!S71_OctoberActual,Sheet1!S71_MasterVoteMunicipal,$AC:$AC,Sheet1!S71_ItemType,$AD:$AD)+SUMIFS(Sheet1!S71_OctoberActual,Sheet1!S71_MasterVoteMunicipal,$AC:$AC,Sheet1!S71_ItemType,$AE:$AE)=0,P37/12,SUMIFS(Sheet1!S71_OctoberActual,Sheet1!S71_MasterVoteMunicipal,$AC:$AC,Sheet1!S71_ItemType,$AD:$AD)+SUMIFS(Sheet1!S71_OctoberActual,Sheet1!S71_MasterVoteMunicipal,$AC:$AC,Sheet1!S71_ItemType,$AE:$AE))","v":0},{"$f":"IF(SUMIFS(Sheet1!S71_NovemberActual,Sheet1!S71_MasterVoteMunicipal,$AC:$AC,Sheet1!S71_ItemType,$AD:$AD)+SUMIFS(Sheet1!S71_NovemberActual,Sheet1!S71_MasterVoteMunicipal,$AC:$AC,Sheet1!S71_ItemType,$AE:$AE)=0,P37/12,SUMIFS(Sheet1!S71_NovemberActual,Sheet1!S71_MasterVoteMunicipal,$AC:$AC,Sheet1!S71_ItemType,$AD:$AD)+SUMIFS(Sheet1!S71_NovemberActual,Sheet1!S71_MasterVoteMunicipal,$AC:$AC,Sheet1!S71_ItemType,$AE:$AE))","v":0},{"$f":"IF(SUMIFS(Sheet1!S71_DecemberActual,Sheet1!S71_MasterVoteMunicipal,$AC:$AC,Sheet1!S71_ItemType,$AD:$AD)+SUMIFS(Sheet1!S71_DecemberActual,Sheet1!S71_MasterVoteMunicipal,$AC:$AC,Sheet1!S71_ItemType,$AE:$AE)=0,P37/12,SUMIFS(Sheet1!S71_DecemberActual,Sheet1!S71_MasterVoteMunicipal,$AC:$AC,Sheet1!S71_ItemType,$AD:$AD)+SUMIFS(Sheet1!S71_DecemberActual,Sheet1!S71_MasterVoteMunicipal,$AC:$AC,Sheet1!S71_ItemType,$AE:$AE))","v":0},0,0,0,0,0,0,0,{"$f":"'B3-FinPerf V'!K38","v":0},{"$f":"'B3-FinPerf V'!L38","v":0},{"$f":"'B3-FinPerf V'!M38","v":0},null,null,null,null,null,null,null,null,null,null,14,"IE","IZ"]
[{"$f":"'B3-FinPerf V'!A39","v":"Vote 15 - [NAME OF VOTE 15]"},null,{"$f":"IF(SUMIFS(Sheet1!S71_JulyActual,Sheet1!S71_MasterVoteMunicipal,$AC:$AC,Sheet1!S71_ItemType,$AD:$AD)+SUMIFS(Sheet1!S71_JulyActual,Sheet1!S71_MasterVoteMunicipal,$AC:$AC,Sheet1!S71_ItemType,$AE:$AE)=0,P38/12,SUMIFS(Sheet1!S71_JulyActual,Sheet1!S71_MasterVoteMunicipal,$AC:$AC,Sheet1!S71_ItemType,$AD:$AD)+SUMIFS(Sheet1!S71_JulyActual,Sheet1!S71_MasterVoteMunicipal,$AC:$AC,Sheet1!S71_ItemType,$AE:$AE))","v":0},{"$f":"IF(SUMIFS(Sheet1!S71_AugustActual,Sheet1!S71_MasterVoteMunicipal,$AC:$AC,Sheet1!S71_ItemType,$AD:$AD)+SUMIFS(Sheet1!S71_AugustActual,Sheet1!S71_MasterVoteMunicipal,$AC:$AC,Sheet1!S71_ItemType,$AE:$AE)=0,P38/12,SUMIFS(Sheet1!S71_AugustActual,Sheet1!S71_MasterVoteMunicipal,$AC:$AC,Sheet1!S71_ItemType,$AD:$AD)+SUMIFS(Sheet1!S71_AugustActual,Sheet1!S71_MasterVoteMunicipal,$AC:$AC,Sheet1!S71_ItemType,$AE:$AE))","v":0},{"$f":"IF(SUMIFS(Sheet1!S71_SeptemberActual,Sheet1!S71_MasterVoteMunicipal,$AC:$AC,Sheet1!S71_ItemType,$AD:$AD)+SUMIFS(Sheet1!S71_SeptemberActual,Sheet1!S71_MasterVoteMunicipal,$AC:$AC,Sheet1!S71_ItemType,$AE:$AE)=0,P38/12,SUMIFS(Sheet1!S71_SeptemberActual,Sheet1!S71_MasterVoteMunicipal,$AC:$AC,Sheet1!S71_ItemType,$AD:$AD)+SUMIFS(Sheet1!S71_SeptemberActual,Sheet1!S71_MasterVoteMunicipal,$AC:$AC,Sheet1!S71_ItemType,$AE:$AE))","v":0},{"$f":"IF(SUMIFS(Sheet1!S71_OctoberActual,Sheet1!S71_MasterVoteMunicipal,$AC:$AC,Sheet1!S71_ItemType,$AD:$AD)+SUMIFS(Sheet1!S71_OctoberActual,Sheet1!S71_MasterVoteMunicipal,$AC:$AC,Sheet1!S71_ItemType,$AE:$AE)=0,P38/12,SUMIFS(Sheet1!S71_OctoberActual,Sheet1!S71_MasterVoteMunicipal,$AC:$AC,Sheet1!S71_ItemType,$AD:$AD)+SUMIFS(Sheet1!S71_OctoberActual,Sheet1!S71_MasterVoteMunicipal,$AC:$AC,Sheet1!S71_ItemType,$AE:$AE))","v":0},{"$f":"IF(SUMIFS(Sheet1!S71_NovemberActual,Sheet1!S71_MasterVoteMunicipal,$AC:$AC,Sheet1!S71_ItemType,$AD:$AD)+SUMIFS(Sheet1!S71_NovemberActual,Sheet1!S71_MasterVoteMunicipal,$AC:$AC,Sheet1!S71_ItemType,$AE:$AE)=0,P38/12,SUMIFS(Sheet1!S71_NovemberActual,Sheet1!S71_MasterVoteMunicipal,$AC:$AC,Sheet1!S71_ItemType,$AD:$AD)+SUMIFS(Sheet1!S71_NovemberActual,Sheet1!S71_MasterVoteMunicipal,$AC:$AC,Sheet1!S71_ItemType,$AE:$AE))","v":0},{"$f":"IF(SUMIFS(Sheet1!S71_DecemberActual,Sheet1!S71_MasterVoteMunicipal,$AC:$AC,Sheet1!S71_ItemType,$AD:$AD)+SUMIFS(Sheet1!S71_DecemberActual,Sheet1!S71_MasterVoteMunicipal,$AC:$AC,Sheet1!S71_ItemType,$AE:$AE)=0,P38/12,SUMIFS(Sheet1!S71_DecemberActual,Sheet1!S71_MasterVoteMunicipal,$AC:$AC,Sheet1!S71_ItemType,$AD:$AD)+SUMIFS(Sheet1!S71_DecemberActual,Sheet1!S71_MasterVoteMunicipal,$AC:$AC,Sheet1!S71_ItemType,$AE:$AE))","v":0},0,0,0,0,0,0,0,{"$f":"'B3-FinPerf V'!K39","v":0},{"$f":"'B3-FinPerf V'!L39","v":0},{"$f":"'B3-FinPerf V'!M39","v":0},null,null,null,null,null,null,null,null,null,null,15,"IE","IZ"]
["Total Expenditure by Vote",null,{"$f":"SUM(C24:C38)","v":22865148.906666663},40952000.763333336,25785752.953333341,37961239.906666659,34460702.616666667,61195932.740000002,38475001.250000007,38475001.250000007,38475001.250000007,38475001.250000007,38475001.250000007,43324944.823333368,458920728.95999998,461700015,449339045,459589147]
[]
["Surplus/ (Deficit)",null,{"$f":"C21-C39","v":92083348.386666685},5613256.2599999905,-9588990.520000007,-23504262.303333323,31157022.94666668,41304920.793333329,2322650.6666666567,2322650.6666666567,2322650.6666666567,2322650.6666666567,2322650.6666666567,-118027454.8566667,-58800599.959999979,27871808,44553274,47086759]
[{"$f":"head27a","v":"References"}]
["1. Surplus (Deficit) must reconcile with budget table A2 and monthly budget statement table C2"]

{"sheet":"SB13","index":49,"n_rows":53,"n_cols":31,"rows_kept":53,"cut":false,"hidden":false,"merged":[[1,0,2,0],[1,1,2,1],[1,2,1,13]]}
[{"$f":"muni&\" - \"&ADJB13&\" - \"&Date","v":"KZN291 Mandeni - Supporting Table SB13 Adjustments Budget - monthly revenue and expenditure (functional classification) - 08-04-2025"}]
[{"$f":"desc&\" - Standard classification\"","v":"Description - Standard classification"},{"$f":"head27","v":"Ref"},{"$f":"Head2","v":"Budget Year 2024/25"},null,null,null,null,null,null,null,null,null,null,null,null,"Medium Term Revenue and Expenditure Framework"]
[null,null,"July","August","Sept.","October","November","December","January","February","March","April","May","June","Full year budget",{"$f":"Head9","v":"Budget Year 2024/25"},{"$f":"Head10","v":"Budget Year +1 2025/26"},{"$f":"Head11","v":"Budget Year +2 2026/27"}]
["R thousands",null,{"$f":"Head5A","v":"Outcome"},"Outcome","Outcome","Outcome","Outcome","Outcome",{"$f":"Head7","v":"Adjusted Budget"},"Adjusted Budget","Adjusted Budget","Adjusted Budget","Adjusted Budget","Adjusted Budget",null,{"$f":"Head7","v":"Adjusted Budget"},{"$f":"Head7","v":"Adjusted Budget"},{"$f":"Head7","v":"Adjusted Budget"}]
["Revenue - Functional"]
[{"$f":"'B2-FinPerf SC'!A7","v":"Governance and administration"},null,{"$f":"SUM(C7:C9)","v":104714474.92333333},35876599.083333336,4737539.2233333327,4909297.7633333327,56623116.443333335,87215838.343333334,28413994.083333332,28413994.083333332,28413994.083333332,28413994.083333332,28413994.083333332,{"$f":"P6-SUM(C6:M6)","v":-95178907.196666539},{"$f":"SUM(C6:N6)","v":340967929},{"$f":"'B2-FinPerf SC'!K7","v":340967929},{"$f":"'B2-FinPerf SC'!L7","v":344017956},{"$f":"'B2-FinPerf SC'!M7","v":343191600}]
[{"$f":"'B2-FinPerf SC'!A8","v":"Executive and council"},null,{"$f":"IF(-SUMIFS(Sheet1!S71_JulyActual,Sheet1!S71_A2Code,$AC:$AC,Sheet1!S71_ItemType,$AD:$AD)-SUMIFS(Sheet1!S71_JulyActual,Sheet1!S71_A2Code,$AC:$AC,Sheet1!S71_ItemType,$AE:$AE)=0,P7/12,-SUMIFS(Sheet1!S71_JulyActual,Sheet1!S71_A2Code,$AC:$AC,Sheet1!S71_ItemType,$AD:$AD)-SUMIFS(Sheet1!S71_JulyActual,Sheet1!S71_A2Code,$AC:$AC,Sheet1!S71_ItemType,$AE:$AE))","v":669833.33333333337},{"$f":"IF(-SUMIFS(Sheet1!S71_AugustActual,Sheet1!S71_A2Code,$AC:$AC,Sheet1!S71_ItemType,$AD:$AD)-SUMIFS(Sheet1!S71_AugustActual,Sheet1!S71_A2Code,$AC:$AC,Sheet1!S71_ItemType,$AE:$AE)=0,P7/12,-SUMIFS(Sheet1!S71_AugustActual,Sheet1!S71_A2Code,$AC:$AC,Sheet1!S71_ItemType,$AD:$AD)-SUMIFS(Sheet1!S71_AugustActual,Sheet1!S71_A2Code,$AC:$AC,Sheet1!S71_ItemType,$AE:$AE))","v":669833.33333333337},{"$f":"IF(-SUMIFS(Sheet1!S71_SeptemberActual,Sheet1!S71_A2Code,$AC:$AC,Sheet1!S71_ItemType,$AD:$AD)-SUMIFS(Sheet1!S71_SeptemberActual,Sheet1!S71_A2Code,$AC:$AC,Sheet1!S71_ItemType,$AE:$AE)=0,P7/12,-SUMIFS(Sheet1!S71_SeptemberActual,Sheet1!S71_A2Code,$AC:$AC,Sheet1!S71_ItemType,$AD:$AD)-SUMIFS(Sheet1!S71_SeptemberActual,Sheet1!S71_A2Code,$AC:$AC,Sheet1!S71_ItemType,$AE:$AE))","v":669833.33333333337},{"$f":"IF(-SUMIFS(Sheet1!S71_OctoberActual,Sheet1!S71_A2Code,$AC:$AC,Sheet1!S71_ItemType,$AD:$AD)-SUMIFS(Sheet1!S71_OctoberActual,Sheet1!S71_A2Code,$AC:$AC,Sheet1!S71_ItemType,$AE:$AE)=0,P7/12,-SUMIFS(Sheet1!S71_OctoberActual,Sheet1!S71_A2Code,$AC:$AC,Sheet1!S71_ItemType,$AD:$AD)-SUMIFS(Sheet1!S71_OctoberActual,Sheet1!S71_A2Code,$AC:$AC,Sheet1!S71_ItemType,$AE:$AE))","v":669833.33333333337},{"$f":"IF(-SUMIFS(Sheet1!S71_NovemberActual,Sheet1!S71_A2Code,$AC:$AC,Sheet1!S71_ItemType,$AD:$AD)-SUMIFS(Sheet1!S71_NovemberActual,Sheet1!S71_A2Code,$AC:$AC,Sheet1!S71_ItemType,$AE:$AE)=0,P7/12,-SUMIFS(Sheet1!S71_NovemberActual,Sheet1!S71_A2Code,$AC:$AC,Sheet1!S71_ItemType,$AD:$AD)-SUMIFS(Sheet1!S71_NovemberActual,Sheet1!S71_A2Code,$AC:$AC,Sheet1!S71_ItemType,$AE:$AE))","v":669833.33333333337},{"$f":"IF(-SUMIFS(Sheet1!S71_DecemberActual,Sheet1!S71_A2Code,$AC:$AC,Sheet1!S71_ItemType,$AD:$AD)-SUMIFS(Sheet1!S71_DecemberActual,Sheet1!S71_A2Code,$AC:$AC,Sheet1!S71_ItemType,$AE:$AE)=0,P7/12,-SUMIFS(Sheet1!S71_DecemberActual,Sheet1!S71_A2Code,$AC:$AC,Sheet1!S71_ItemType,$AD:$AD)-SUMIFS(Sheet1!S71_DecemberActual,Sheet1!S71_A2Code,$AC:$AC,Sheet1!S71_ItemType,$AE:$AE))","v":669833.33333333337},{"$f":"$P$7/12","v":669833.33333333337},669833.33333333337,669833.33333333337,669833.33333333337,669833.33333333337,669833.33333333395,8038000,{"$f":"'B2-FinPerf SC'!K8","v":8038000},{"$f":"'B2-FinPerf SC'!L8","v":8356000},{"$f":"'B2-FinPerf SC'!M8","v":8700000},null,null,null,null,null,null,null,null,null,null,"1100","IR","IZ"]
[{"$f":"'B2-FinPerf SC'!A9","v":"Finance and administration"},null,{"$f":"IF(-SUMIFS(Sheet1!S71_JulyActual,Sheet1!S71_A2Code,$AC:$AC,Sheet1!S71_ItemType,$AD:$AD)-SUMIFS(Sheet1!S71_JulyActual,Sheet1!S71_A2Code,$AC:$AC,Sheet1!S71_ItemType,$AE:$AE)=0,P8/12,-SUMIFS(Sheet1!S71_JulyActual,Sheet1!S71_A2Code,$AC:$AC,Sheet1!S71_ItemType,$AD:$AD)-SUMIFS(Sheet1!S71_JulyActual,Sheet1!S71_A2Code,$AC:$AC,Sheet1!S71_ItemType,$AE:$AE))","v":104044641.59},{"$f":"IF(-SUMIFS(Sheet1!S71_AugustActual,Sheet1!S71_A2Code,$AC:$AC,Sheet1!S71_ItemType,$AD:$AD)-SUMIFS(Sheet1!S71_AugustActual,Sheet1!S71_A2Code,$AC:$AC,Sheet1!S71_ItemType,$AE:$AE)=0,P8/12,-SUMIFS(Sheet1!S71_AugustActual,Sheet1!S71_A2Code,$AC:$AC,Sheet1!S71_ItemType,$AD:$AD)-SUMIFS(Sheet1!S71_AugustActual,Sheet1!S71_A2Code,$AC:$AC,Sheet1!S71_ItemType,$AE:$AE))","v":35206765.75},{"$f":"IF(-SUMIFS(Sheet1!S71_SeptemberActual,Sheet1!S71_A2Code,$AC:$AC,Sheet1!S71_ItemType,$AD:$AD)-SUMIFS(Sheet1!S71_SeptemberActual,Sheet1!S71_A2Code,$AC:$AC,Sheet1!S71_ItemType,$AE:$AE)=0,P8/12,-SUMIFS(Sheet1!S71_SeptemberActual,Sheet1!S71_A2Code,$AC:$AC,Sheet1!S71_ItemType,$AD:$AD)-SUMIFS(Sheet1!S71_SeptemberActual,Sheet1!S71_A2Code,$AC:$AC,Sheet1!S71_ItemType,$AE:$AE))","v":4067705.8899999997},{"$f":"IF(-SUMIFS(Sheet1!S71_OctoberActual,Sheet1!S71_A2Code,$AC:$AC,Sheet1!S71_ItemType,$AD:$AD)-SUMIFS(Sheet1!S71_OctoberActual,Sheet1!S71_A2Code,$AC:$AC,Sheet1!S71_ItemType,$AE:$AE)=0,P8/12,-SUMIFS(Sheet1!S71_OctoberActual,Sheet1!S71_A2Code,$AC:$AC,Sheet1!S71_ItemType,$AD:$AD)-SUMIFS(Sheet1!S71_OctoberActual,Sheet1!S71_A2Code,$AC:$AC,Sheet1!S71_ItemType,$AE:$AE))","v":4239464.43},{"$f":"IF(-SUMIFS(Sheet1!S71_NovemberActual,Sheet1!S71_A2Code,$AC:$AC,Sheet1!S71_ItemType,$AD:$AD)-SUMIFS(Sheet1!S71_NovemberActual,Sheet1!S71_A2Code,$AC:$AC,Sheet1!S71_ItemType,$AE:$AE)=0,P8/12,-SUMIFS(Sheet1!S71_NovemberActual,Sheet1!S71_A2Code,$AC:$AC,Sheet1!S71_ItemType,$AD:$AD)-SUMIFS(Sheet1!S71_NovemberActual,Sheet1!S71_A2Code,$AC:$AC,Sheet1!S71_ItemType,$AE:$AE))","v":55953283.109999999},{"$f":"IF(-SUMIFS(Sheet1!S71_DecemberActual,Sheet1!S71_A2Code,$AC:$AC,Sheet1!S71_ItemType,$AD:$AD)-SUMIFS(Sheet1!S71_DecemberActual,Sheet1!S71_A2Code,$AC:$AC,Sheet1!S71_ItemType,$AE:$AE)=0,P8/12,-SUMIFS(Sheet1!S71_DecemberActual,Sheet1!S71_A2Code,$AC:$AC,Sheet1!S71_ItemType,$AD:$AD)-SUMIFS(Sheet1!S71_DecemberActual,Sheet1!S71_A2Code,$AC:$AC,Sheet1!S71_ItemType,$AE:$AE))","v":86546005.010000005},{"$f":"$P$8/12","v":27744160.75},27744160.75,27744160.75,27744160.75,27744160.75,-95848740.529999971,332929929,{"$f":"'B2-FinPerf SC'!K9","v":332929929},{"$f":"'B2-FinPerf SC'!L9","v":335661956},{"$f":"'B2-FinPerf SC'!M9","v":334491600},null,null,null,null,null,null,null,null,null,null,"1200","IR","IZ"]
[{"$f":"'B2-FinPerf SC'!A10","v":"Internal audit"},null,{"$f":"IF(-SUMIFS(Sheet1!S71_JulyActual,Sheet1!S71_A2Code,$AC:$AC,Sheet1!S71_ItemType,$AD:$AD)-SUMIFS(Sheet1!S71_JulyActual,Sheet1!S71_A2Code,$AC:$AC,Sheet1!S71_ItemType,$AE:$AE)=0,P9/12,-SUMIFS(Sheet1!S71_JulyActual,Sheet1!S71_A2Code,$AC:$AC,Sheet1!S71_ItemType,$AD:$AD)-SUMIFS(Sheet1!S71_JulyActual,Sheet1!S71_A2Code,$AC:$AC,Sheet1!S71_ItemType,$AE:$AE))","v":0},{"$f":"IF(-SUMIFS(Sheet1!S71_AugustActual,Sheet1!S71_A2Code,$AC:$AC,Sheet1!S71_ItemType,$AD:$AD)-SUMIFS(Sheet1!S71_AugustActual,Sheet1!S71_A2Code,$AC:$AC,Sheet1!S71_ItemType,$AE:$AE)=0,P9/12,-SUMIFS(Sheet1!S71_AugustActual,Sheet1!S71_A2Code,$AC:$AC,Sheet1!S71_ItemType,$AD:$AD)-SUMIFS(Sheet1!S71_AugustActual,Sheet1!S71_A2Code,$AC:$AC,Sheet1!S71_ItemType,$AE:$AE))","v":0},{"$f":"IF(-SUMIFS(Sheet1!S71_SeptemberActual,Sheet1!S71_A2Code,$AC:$AC,Sheet1!S71_ItemType,$AD:$AD)-SUMIFS(Sheet1!S71_SeptemberActual,Sheet1!S71_A2Code,$AC:$AC,Sheet1!S71_ItemType,$AE:$AE)=0,P9/12,-SUMIFS(Sheet1!S71_SeptemberActual,Sheet1!S71_A2Code,$AC:$AC,Sheet1!S71_ItemType,$AD:$AD)-SUMIFS(Sheet1!S71_SeptemberActual,Sheet1!S71_A2Code,$AC:$AC,Sheet1!S71_ItemType,$AE:$AE))","v":0},{"$f":"IF(-SUMIFS(Sheet1!S71_OctoberActual,Sheet1!S71_A2Code,$AC:$AC,Sheet1!S71_ItemType,$AD:$AD)-SUMIFS(Sheet1!S71_OctoberActual,Sheet1!S71_A2Code,$AC:$AC,Sheet1!S71_ItemType,$AE:$AE)=0,P9/12,-SUMIFS(Sheet1!S71_OctoberActual,Sheet1!S71_A2Code,$AC:$AC,Sheet1!S71_ItemType,$AD:$AD)-SUMIFS(Sheet1!S71_OctoberActual,Sheet1!S71_A2Code,$AC:$AC,Sheet1!S71_ItemType,$AE:$AE))","v":0},{"$f":"IF(-SUMIFS(Sheet1!S71_NovemberActual,Sheet1!S71_A2Code,$AC:$AC,Sheet1!S71_ItemType,$AD:$AD)-SUMIFS(Sheet1!S71_NovemberActual,Sheet1!S71_A2Code,$AC:$AC,Sheet1!S71_ItemType,$AE:$AE)=0,P9/12,-SUMIFS(Sheet1!S71_NovemberActual,Sheet1!S71_A2Code,$AC:$AC,Sheet1!S71_ItemType,$AD:$AD)-SUMIFS(Sheet1!S71_NovemberActual,Sheet1!S71_A2Code,$AC:$AC,Sheet1!S71_ItemType,$AE:$AE))","v":0},{"$f":"IF(-SUMIFS(Sheet1!S71_DecemberActual,Sheet1!S71_A2Code,$AC:$AC,Sheet1!S71_ItemType,$AD:$AD)-SUMIFS(Sheet1!S71_DecemberActual,Sheet1!S71_A2Code,$AC:$AC,Sheet1!S71_ItemType,$AE:$AE)=0,P9/12,-SUMIFS(Sheet1!S71_DecemberActual,Sheet1!S71_A2Code,$AC:$AC,Sheet1!S71_ItemType,$AD:$AD)-SUMIFS(Sheet1!S71_DecemberActual,Sheet1!S71_A2Code,$AC:$AC,Sheet1!S71_ItemType,$AE:$AE))","v":0},{"$f":"$P$9/12","v":0},0,0,0,0,0,0,{"$f":"'B2-FinPerf SC'!K10","v":0},{"$f":"'B2-FinPerf SC'!L10","v":0},{"$f":"'B2-FinPerf SC'!M10","v":0},null,null,null,null,null,null,null,null,null,null,"1300","IR","IZ"]
[{"$f":"'B2-FinPerf SC'!A11","v":"Community and public safety"},null,{"$f":"SUM(C11:C15)","v":357240.6766666667},377093.75999999995,395251.48,580442.27,357315.07,378901.83,480356,480356,480356,480356,480356,916246.91333333403,5764272,{"$f":"'B2-FinPerf SC'!K11","v":5764272},{"$f":"'B2-FinPerf SC'!L11","v":5817152},{"$f":"'B2-FinPerf SC'!M11","v":9866023}]
[{"$f":"'B2-FinPerf SC'!A12","v":"Community and social services"},null,{"$f":"IF(-SUMIFS(Sheet1!S71_JulyActual,Sheet1!S71_A2Code,$AC:$AC,Sheet1!S71_ItemType,$AD:$AD)-SUMIFS(Sheet1!S71_JulyActual,Sheet1!S71_A2Code,$AC:$AC,Sheet1!S71_ItemType,$AE:$AE)=0,P11/12,-SUMIFS(Sheet1!S71_JulyActual,Sheet1!S71_A2Code,$AC:$AC,Sheet1!S71_ItemType,$AD:$AD)-SUMIFS(Sheet1!S71_JulyActual,Sheet1!S71_A2Code,$AC:$AC,Sheet1!S71_ItemType,$AE:$AE))","v":324632.01},{"$f":"IF(-SUMIFS(Sheet1!S71_AugustActual,Sheet1!S71_A2Code,$AC:$AC,Sheet1!S71_ItemType,$AD:$AD)-SUMIFS(Sheet1!S71_AugustActual,Sheet1!S71_A2Code,$AC:$AC,Sheet1!S71_ItemType,$AE:$AE)=0,P11/12,-SUMIFS(Sheet1!S71_AugustActual,Sheet1!S71_A2Code,$AC:$AC,Sheet1!S71_ItemType,$AD:$AD)-SUMIFS(Sheet1!S71_AugustActual,Sheet1!S71_A2Code,$AC:$AC,Sheet1!S71_ItemType,$AE:$AE))","v":376841.58999999997},{"$f":"IF(-SUMIFS(Sheet1!S71_SeptemberActual,Sheet1!S71_A2Code,$AC:$AC,Sheet1!S71_ItemType,$AD:$AD)-SUMIFS(Sheet1!S71_SeptemberActual,Sheet1!S71_A2Code,$AC:$AC,Sheet1!S71_ItemType,$AE:$AE)=0,P11/12,-SUMIFS(Sheet1!S71_SeptemberActual,Sheet1!S71_A2Code,$AC:$AC,Sheet1!S71_ItemType,$AD:$AD)-SUMIFS(Sheet1!S71_SeptemberActual,Sheet1!S71_A2Code,$AC:$AC,Sheet1!S71_ItemType,$AE:$AE))","v":394690.61},{"$f":"IF(-SUMIFS(Sheet1!S71_OctoberActual,Sheet1!S71_A2Code,$AC:$AC,Sheet1!S71_ItemType,$AD:$AD)-SUMIFS(Sheet1!S71_OctoberActual,Sheet1!S71_A2Code,$AC:$AC,Sheet1!S71_ItemType,$AE:$AE)=0,P11/12,-SUMIFS(Sheet1!S71_OctoberActual,Sheet1!S71_A2Code,$AC:$AC,Sheet1!S71_ItemType,$AD:$AD)-SUMIFS(Sheet1!S71_OctoberActual,Sheet1!S71_A2Code,$AC:$AC,Sheet1!S71_ItemType,$AE:$AE))","v":579872.71},{"$f":"IF(-SUMIFS(Sheet1!S71_NovemberActual,Sheet1!S71_A2Code,$AC:$AC,Sheet1!S71_ItemType,$AD:$AD)-SUMIFS(Sheet1!S71_NovemberActual,Sheet1!S71_A2Code,$AC:$AC,Sheet1!S71_ItemType,$AE:$AE)=0,P11/12,-SUMIFS(Sheet1!S71_NovemberActual,Sheet1!S71_A2Code,$AC:$AC,Sheet1!S71_ItemType,$AD:$AD)-SUMIFS(Sheet1!S71_NovemberActual,Sheet1!S71_A2Code,$AC:$AC,Sheet1!S71_ItemType,$AE:$AE))","v":357167.24},{"$f":"IF(-SUMIFS(Sheet1!S71_DecemberActual,Sheet1!S71_A2Code,$AC:$AC,Sheet1!S71_ItemType,$AD:$AD)-SUMIFS(Sheet1!S71_DecemberActual,Sheet1!S71_A2Code,$AC:$AC,Sheet1!S71_ItemType,$AE:$AE)=0,P11/12,-SUMIFS(Sheet1!S71_DecemberActual,Sheet1!S71_A2Code,$AC:$AC,Sheet1!S71_ItemType,$AD:$AD)-SUMIFS(Sheet1!S71_DecemberActual,Sheet1!S71_A2Code,$AC:$AC,Sheet1!S71_ItemType,$AE:$AE))","v":376632.29000000004},{"$f":"$P$11/12","v":447747.33333333331},447747.33333333331,447747.33333333331,447747.33333333331,447747.33333333331,724394.88333333284,5372968,{"$f":"'B2-FinPerf SC'!K12","v":5372968},{"$f":"'B2-FinPerf SC'!L12","v":5407848},{"$f":"'B2-FinPerf SC'!M12","v":5584696},null,null,null,null,null,null,null,null,null,null,"2100","IR","IZ"]
[{"$f":"'B2-FinPerf SC'!A13","v":"Sport and recreation"},null,{"$f":"IF(-SUMIFS(Sheet1!S71_JulyActual,Sheet1!S71_A2Code,$AC:$AC,Sheet1!S71_ItemType,$AD:$AD)-SUMIFS(Sheet1!S71_JulyActual,Sheet1!S71_A2Code,$AC:$AC,Sheet1!S71_ItemType,$AE:$AE)=0,P12/12,-SUMIFS(Sheet1!S71_JulyActual,Sheet1!S71_A2Code,$AC:$AC,Sheet1!S71_ItemType,$AD:$AD)-SUMIFS(Sheet1!S71_JulyActual,Sheet1!S71_A2Code,$AC:$AC,Sheet1!S71_ItemType,$AE:$AE))","v":0},{"$f":"IF(-SUMIFS(Sheet1!S71_AugustActual,Sheet1!S71_A2Code,$AC:$AC,Sheet1!S71_ItemType,$AD:$AD)-SUMIFS(Sheet1!S71_AugustActual,Sheet1!S71_A2Code,$AC:$AC,Sheet1!S71_ItemType,$AE:$AE)=0,P12/12,-SUMIFS(Sheet1!S71_AugustActual,Sheet1!S71_A2Code,$AC:$AC,Sheet1!S71_ItemType,$AD:$AD)-SUMIFS(Sheet1!S71_AugustActual,Sheet1!S71_A2Code,$AC:$AC,Sheet1!S71_ItemType,$AE:$AE))","v":0},{"$f":"IF(-SUMIFS(Sheet1!S71_SeptemberActual,Sheet1!S71_A2Code,$AC:$AC,Sheet1!S71_ItemType,$AD:$AD)-SUMIFS(Sheet1!S71_SeptemberActual,Sheet1!S71_A2Code,$AC:$AC,Sheet1!S71_ItemType,$AE:$AE)=0,P12/12,-SUMIFS(Sheet1!S71_SeptemberActual,Sheet1!S71_A2Code,$AC:$AC,Sheet1!S71_ItemType,$AD:$AD)-SUMIFS(Sheet1!S71_SeptemberActual,Sheet1!S71_A2Code,$AC:$AC,Sheet1!S71_ItemType,$AE:$AE))","v":0},{"$f":"IF(-SUMIFS(Sheet1!S71_OctoberActual,Sheet1!S71_A2Code,$AC:$AC,Sheet1!S71_ItemType,$AD:$AD)-SUMIFS(Sheet1!S71_OctoberActual,Sheet1!S71_A2Code,$AC:$AC,Sheet1!S71_ItemType,$AE:$AE)=0,P12/12,-SUMIFS(Sheet1!S71_OctoberActual,Sheet1!S71_A2Code,$AC:$AC,Sheet1!S71_ItemType,$AD:$AD)-SUMIFS(Sheet1!S71_OctoberActual,Sheet1!S71_A2Code,$AC:$AC,Sheet1!S71_ItemType,$AE:$AE))","v":0},{"$f":"IF(-SUMIFS(Sheet1!S71_NovemberActual,Sheet1!S71_A2Code,$AC:$AC,Sheet1!S71_ItemType,$AD:$AD)-SUMIFS(Sheet1!S71_NovemberActual,Sheet1!S71_A2Code,$AC:$AC,Sheet1!S71_ItemType,$AE:$AE)=0,P12/12,-SUMIFS(Sheet1!S71_NovemberActual,Sheet1!S71_A2Code,$AC:$AC,Sheet1!S71_ItemType,$AD:$AD)-SUMIFS(Sheet1!S71_NovemberActual,Sheet1!S71_A2Code,$AC:$AC,Sheet1!S71_ItemType,$AE:$AE))","v":0},{"$f":"IF(-SUMIFS(Sheet1!S71_DecemberActual,Sheet1!S71_A2Code,$AC:$AC,Sheet1!S71_ItemType,$AD:$AD)-SUMIFS(Sheet1!S71_DecemberActual,Sheet1!S71_A2Code,$AC:$AC,Sheet1!S71_ItemType,$AE:$AE)=0,P12/12,-SUMIFS(Sheet1!S71_DecemberActual,Sheet1!S71_A2Code,$AC:$AC,Sheet1!S71_ItemType,$AD:$AD)-SUMIFS(Sheet1!S71_DecemberActual,Sheet1!S71_A2Code,$AC:$AC,Sheet1!S71_ItemType,$AE:$AE))","v":0},{"$f":"$P$12/12","v":0},0,0,0,0,0,0,{"$f":"'B2-FinPerf SC'!K13","v":0},{"$f":"'B2-FinPerf SC'!L13","v":0},{"$f":"'B2-FinPerf SC'!M13","v":0},null,null,null,null,null,null,null,null,null,null,"2200","IR","IZ"]
[{"$f":"'B2-FinPerf SC'!A14","v":"Public safety"},null,{"$f":"IF(-SUMIFS(Sheet1!S71_JulyActual,Sheet1!S71_A2Code,$AC:$AC,Sheet1!S71_ItemType,$AD:$AD)-SUMIFS(Sheet1!S71_JulyActual,Sheet1!S71_A2Code,$AC:$AC,Sheet1!S71_ItemType,$AE:$AE)=0,P13/12,-SUMIFS(Sheet1!S71_JulyActual,Sheet1!S71_A2Code,$AC:$AC,Sheet1!S71_ItemType,$AD:$AD)-SUMIFS(Sheet1!S71_JulyActual,Sheet1!S71_A2Code,$AC:$AC,Sheet1!S71_ItemType,$AE:$AE))","v":32608.666666666668},{"$f":"IF(-SUMIFS(Sheet1!S71_AugustActual,Sheet1!S71_A2Code,$AC:$AC,Sheet1!S71_ItemType,$AD:$AD)-SUMIFS(Sheet1!S71_AugustActual,Sheet1!S71_A2Code,$AC:$AC,Sheet1!S71_ItemType,$AE:$AE)=0,P13/12,-SUMIFS(Sheet1!S71_AugustActual,Sheet1!S71_A2Code,$AC:$AC,Sheet1!S71_ItemType,$AD:$AD)-SUMIFS(Sheet1!S71_AugustActual,Sheet1!S71_A2Code,$AC:$AC,Sheet1!S71_ItemType,$AE:$AE))","v":252.17},{"$f":"IF(-SUMIFS(Sheet1!S71_SeptemberActual,Sheet1!S71_A2Code,$AC:$AC,Sheet1!S71_ItemType,$AD:$AD)-SUMIFS(Sheet1!S71_SeptemberActual,Sheet1!S71_A2Code,$AC:$AC,Sheet1!S71_ItemType,$AE:$AE)=0,P13/12,-SUMIFS(Sheet1!S71_SeptemberActual,Sheet1!S71_A2Code,$AC:$AC,Sheet1!S71_ItemType,$AD:$AD)-SUMIFS(Sheet1!S71_SeptemberActual,Sheet1!S71_A2Code,$AC:$AC,Sheet1!S71_ItemType,$AE:$AE))","v":560.87},{"$f":"IF(-SUMIFS(Sheet1!S71_OctoberActual,Sheet1!S71_A2Code,$AC:$AC,Sheet1!S71_ItemType,$AD:$AD)-SUMIFS(Sheet1!S71_OctoberActual,Sheet1!S71_A2Code,$AC:$AC,Sheet1!S71_ItemType,$AE:$AE)=0,P13/12,-SUMIFS(Sheet1!S71_OctoberActual,Sheet1!S71_A2Code,$AC:$AC,Sheet1!S71_ItemType,$AD:$AD)-SUMIFS(Sheet1!S71_OctoberActual,Sheet1!S71_A2Code,$AC:$AC,Sheet1!S71_ItemType,$AE:$AE))","v":569.55999999999995},{"$f":"IF(-SUMIFS(Sheet1!S71_NovemberActual,Sheet1!S71_A2Code,$AC:$AC,Sheet1!S71_ItemType,$AD:$AD)-SUMIFS(Sheet1!S71_NovemberActual,Sheet1!S71_A2Code,$AC:$AC,Sheet1!S71_ItemType,$AE:$AE)=0,P13/12,-SUMIFS(Sheet1!S71_NovemberActual,Sheet1!S71_A2Code,$AC:$AC,Sheet1!S71_ItemType,$AD:$AD)-SUMIFS(Sheet1!S71_NovemberActual,Sheet1!S71_A2Code,$AC:$AC,Sheet1!S71_ItemType,$AE:$AE))","v":147.83000000000001},{"$f":"IF(-SUMIFS(Sheet1!S71_DecemberActual,Sheet1!S71_A2Code,$AC:$AC,Sheet1!S71_ItemType,$AD:$AD)-SUMIFS(Sheet1!S71_DecemberActual,Sheet1!S71_A2Code,$AC:$AC,Sheet1!S71_ItemType,$AE:$AE)=0,P13/12,-SUMIFS(Sheet1!S71_DecemberActual,Sheet1!S71_A2Code,$AC:$AC,Sheet1!S71_ItemType,$AD:$AD)-SUMIFS(Sheet1!S71_DecemberActual,Sheet1!S71_A2Code,$AC:$AC,Sheet1!S71_ItemType,$AE:$AE))","v":2269.54},{"$f":"$P$13/12","v":32608.666666666668},32608.666666666668,32608.666666666668,32608.666666666668,32608.666666666668,191852.03,391304,{"$f":"'B2-FinPerf SC'!K14","v":391304},{"$f":"'B2-FinPerf SC'!L14","v":409304},{"$f":"'B2-FinPerf SC'!M14","v":4281327},null,null,null,null,null,null,null,null,null,null,"2300","IR","IZ"]
[{"$f":"'B2-FinPerf SC'!A15","v":"Housing"},null,{"$f":"IF(-SUMIFS(Sheet1!S71_JulyActual,Sheet1!S71_A2Code,$AC:$AC,Sheet1!S71_ItemType,$AD:$AD)-SUMIFS(Sheet1!S71_JulyActual,Sheet1!S71_A2Code,$AC:$AC,Sheet1!S71_ItemType,$AE:$AE)=0,P14/12,-SUMIFS(Sheet1!S71_JulyActual,Sheet1!S71_A2Code,$AC:$AC,Sheet1!S71_ItemType,$AD:$AD)-SUMIFS(Sheet1!S71_JulyActual,Sheet1!S71_A2Code,$AC:$AC,Sheet1!S71_ItemType,$AE:$AE))","v":0},{"$f":"IF(-SUMIFS(Sheet1!S71_AugustActual,Sheet1!S71_A2Code,$AC:$AC,Sheet1!S71_ItemType,$AD:$AD)-SUMIFS(Sheet1!S71_AugustActual,Sheet1!S71_A2Code,$AC:$AC,Sheet1!S71_ItemType,$AE:$AE)=0,P14/12,-SUMIFS(Sheet1!S71_AugustActual,Sheet1!S71_A2Code,$AC:$AC,Sheet1!S71_ItemType,$AD:$AD)-SUMIFS(Sheet1!S71_AugustActual,Sheet1!S71_A2Code,$AC:$AC,Sheet1!S71_ItemType,$AE:$AE))","v":0},{"$f":"IF(-SUMIFS(Sheet1!S71_SeptemberActual,Sheet1!S71_A2Code,$AC:$AC,Sheet1!S71_ItemType,$AD:$AD)-SUMIFS(Sheet1!S71_SeptemberActual,Sheet1!S71_A2Code,$AC:$AC,Sheet1!S71_ItemType,$AE:$AE)=0,P14/12,-SUMIFS(Sheet1!S71_SeptemberActual,Sheet1!S71_A2Code,$AC:$AC,Sheet1!S71_ItemType,$AD:$AD)-SUMIFS(Sheet1!S71_SeptemberActual,Sheet1!S71_A2Code,$AC:$AC,Sheet1!S71_ItemType,$AE:$AE))","v":0},{"$f":"IF(-SUMIFS(Sheet1!S71_OctoberActual,Sheet1!S71_A2Code,$AC:$AC,Sheet1!S71_ItemType,$AD:$AD)-SUMIFS(Sheet1!S71_OctoberActual,Sheet1!S71_A2Code,$AC:$AC,Sheet1!S71_ItemType,$AE:$AE)=0,P14/12,-SUMIFS(Sheet1!S71_OctoberActual,Sheet1!S71_A2Code,$AC:$AC,Sheet1!S71_ItemType,$AD:$AD)-SUMIFS(Sheet1!S71_OctoberActual,Sheet1!S71_A2Code,$AC:$AC,Sheet1!S71_ItemType,$AE:$AE))","v":0},{"$f":"IF(-SUMIFS(Sheet1!S71_NovemberActual,Sheet1!S71_A2Code,$AC:$AC,Sheet1!S71_ItemType,$AD:$AD)-SUMIFS(Sheet1!S71_NovemberActual,Sheet1!S71_A2Code,$AC:$AC,Sheet1!S71_ItemType,$AE:$AE)=0,P14/12,-SUMIFS(Sheet1!S71_NovemberActual,Sheet1!S71_A2Code,$AC:$AC,Sheet1!S71_ItemType,$AD:$AD)-SUMIFS(Sheet1!S71_NovemberActual,Sheet1!S71_A2Code,$AC:$AC,Sheet1!S71_ItemType,$AE:$AE))","v":0},{"$f":"IF(-SUMIFS(Sheet1!S71_DecemberActual,Sheet1!S71_A2Code,$AC:$AC,Sheet1!S71_ItemType,$AD:$AD)-SUMIFS(Sheet1!S71_DecemberActual,Sheet1!S71_A2Code,$AC:$AC,Sheet1!S71_ItemType,$AE:$AE)=0,P14/12,-SUMIFS(Sheet1!S71_DecemberActual,Sheet1!S71_A2Code,$AC:$AC,Sheet1!S71_ItemType,$AD:$AD)-SUMIFS(Sheet1!S71_DecemberActual,Sheet1!S71_A2Code,$AC:$AC,Sheet1!S71_ItemType,$AE:$AE))","v":0},{"$f":"$P$14/12","v":0},0,0,0,0,0,0,{"$f":"'B2-FinPerf SC'!K15","v":0},{"$f":"'B2-FinPerf SC'!L15","v":0},{"$f":"'B2-FinPerf SC'!M15","v":0},null,null,null,null,null,null,null,null,null,null,"2400","IR","IZ"]
[{"$f":"'B2-FinPerf SC'!A16","v":"Health"},null,{"$f":"IF(-SUMIFS(Sheet1!S71_JulyActual,Sheet1!S71_A2Code,$AC:$AC,Sheet1!S71_ItemType,$AD:$AD)-SUMIFS(Sheet1!S71_JulyActual,Sheet1!S71_A2Code,$AC:$AC,Sheet1!S71_ItemType,$AE:$AE)=0,P15/12,-SUMIFS(Sheet1!S71_JulyActual,Sheet1!S71_A2Code,$AC:$AC,Sheet1!S71_ItemType,$AD:$AD)-SUMIFS(Sheet1!S71_JulyActual,Sheet1!S71_A2Code,$AC:$AC,Sheet1!S71_ItemType,$AE:$AE))","v":0},{"$f":"IF(-SUMIFS(Sheet1!S71_AugustActual,Sheet1!S71_A2Code,$AC:$AC,Sheet1!S71_ItemType,$AD:$AD)-SUMIFS(Sheet1!S71_AugustActual,Sheet1!S71_A2Code,$AC:$AC,Sheet1!S71_ItemType,$AE:$AE)=0,P15/12,-SUMIFS(Sheet1!S71_AugustActual,Sheet1!S71_A2Code,$AC:$AC,Sheet1!S71_ItemType,$AD:$AD)-SUMIFS(Sheet1!S71_AugustActual,Sheet1!S71_A2Code,$AC:$AC,Sheet1!S71_ItemType,$AE:$AE))","v":0},{"$f":"IF(-SUMIFS(Sheet1!S71_SeptemberActual,Sheet1!S71_A2Code,$AC:$AC,Sheet1!S71_ItemType,$AD:$AD)-SUMIFS(Sheet1!S71_SeptemberActual,Sheet1!S71_A2Code,$AC:$AC,Sheet1!S71_ItemType,$AE:$AE)=0,P15/12,-SUMIFS(Sheet1!S71_SeptemberActual,Sheet1!S71_A2Code,$AC:$AC,Sheet1!S71_ItemType,$AD:$AD)-SUMIFS(Sheet1!S71_SeptemberActual,Sheet1!S71_A2Code,$AC:$AC,Sheet1!S71_ItemType,$AE:$AE))","v":0},{"$f":"IF(-SUMIFS(Sheet1!S71_OctoberActual,Sheet1!S71_A2Code,$AC:$AC,Sheet1!S71_ItemType,$AD:$AD)-SUMIFS(Sheet1!S71_OctoberActual,Sheet1!S71_A2Code,$AC:$AC,Sheet1!S71_ItemType,$AE:$AE)=0,P15/12,-SUMIFS(Sheet1!S71_OctoberActual,Sheet1!S71_A2Code,$AC:$AC,Sheet1!S71_ItemType,$AD:$AD)-SUMIFS(Sheet1!S71_OctoberActual,Sheet1!S71_A2Code,$AC:$AC,Sheet1!S71_ItemType,$AE:$AE))","v":0},{"$f":"IF(-SUMIFS(Sheet1!S71_NovemberActual,Sheet1!S71_A2Code,$AC:$AC,Sheet1!S71_ItemType,$AD:$AD)-SUMIFS(Sheet1!S71_NovemberActual,Sheet1!S71_A2Code,$AC:$AC,Sheet1!S71_ItemType,$AE:$AE)=0,P15/12,-SUMIFS(Sheet1!S71_NovemberActual,Sheet1!S71_A2Code,$AC:$AC,Sheet1!S71_ItemType,$AD:$AD)-SUMIFS(Sheet1!S71_NovemberActual,Sheet1!S71_A2Code,$AC:$AC,Sheet1!S71_ItemType,$AE:$AE))","v":0},{"$f":"IF(-SUMIFS(Sheet1!S71_DecemberActual,Sheet1!S71_A2Code,$AC:$AC,Sheet1!S71_ItemType,$AD:$AD)-SUMIFS(Sheet1!S71_DecemberActual,Sheet1!S71_A2Code,$AC:$AC,Sheet1!S71_ItemType,$AE:$AE)=0,P15/12,-SUMIFS(Sheet1!S71_DecemberActual,Sheet1!S71_A2Code,$AC:$AC,Sheet1!S71_ItemType,$AD:$AD)-SUMIFS(Sheet1!S71_DecemberActual,Sheet1!S71_A2Code,$AC:$AC,Sheet1!S71_ItemType,$AE:$AE))","v":0},{"$f":"$P$15/12","v":0},0,0,0,0,0,0,{"$f":"'B2-FinPerf SC'!K16","v":0},{"$f":"'B2-FinPerf SC'!L16","v":0},{"$f":"'B2-FinPerf SC'!M16","v":0},null,null,null,null,null,null,null,null,null,null,"2500","IR","IZ"]
[{"$f":"'B2-FinPerf SC'!A17","v":"Economic and environmental services"},null,{"$f":"SUM(C17:C19)","v":1303667.0900000001},1568319.59,3626696.27,3079454.92,2366105.15,8177504.4299999997,4448994,4448994,4448994,4448994,4448994,11021210.549999997,53387928,{"$f":"'B2-FinPerf SC'!K17","v":53387928},{"$f":"'B2-FinPerf SC'!L17","v":45719969},{"$f":"'B2-FinPerf SC'!M17","v":49359593}]
[{"$f":"'B2-FinPerf SC'!A18","v":"Planning and development"},null,{"$f":"IF(-SUMIFS(Sheet1!S71_JulyActual,Sheet1!S71_A2Code,$AC:$AC,Sheet1!S71_ItemType,$AD:$AD)-SUMIFS(Sheet1!S71_JulyActual,Sheet1!S71_A2Code,$AC:$AC,Sheet1!S71_ItemType,$AE:$AE)=0,P17/12,-SUMIFS(Sheet1!S71_JulyActual,Sheet1!S71_A2Code,$AC:$AC,Sheet1!S71_ItemType,$AD:$AD)-SUMIFS(Sheet1!S71_JulyActual,Sheet1!S71_A2Code,$AC:$AC,Sheet1!S71_ItemType,$AE:$AE))","v":1105109.6600000001},{"$f":"IF(-SUMIFS(Sheet1!S71_AugustActual,Sheet1!S71_A2Code,$AC:$AC,Sheet1!S71_ItemType,$AD:$AD)-SUMIFS(Sheet1!S71_AugustActual,Sheet1!S71_A2Code,$AC:$AC,Sheet1!S71_ItemType,$AE:$AE)=0,P17/12,-SUMIFS(Sheet1!S71_AugustActual,Sheet1!S71_A2Code,$AC:$AC,Sheet1!S71_ItemType,$AD:$AD)-SUMIFS(Sheet1!S71_AugustActual,Sheet1!S71_A2Code,$AC:$AC,Sheet1!S71_ItemType,$AE:$AE))","v":1309751.26},{"$f":"IF(-SUMIFS(Sheet1!S71_SeptemberActual,Sheet1!S71_A2Code,$AC:$AC,Sheet1!S71_ItemType,$AD:$AD)-SUMIFS(Sheet1!S71_SeptemberActual,Sheet1!S71_A2Code,$AC:$AC,Sheet1!S71_ItemType,$AE:$AE)=0,P17/12,-SUMIFS(Sheet1!S71_SeptemberActual,Sheet1!S71_A2Code,$AC:$AC,Sheet1!S71_ItemType,$AD:$AD)-SUMIFS(Sheet1!S71_SeptemberActual,Sheet1!S71_A2Code,$AC:$AC,Sheet1!S71_ItemType,$AE:$AE))","v":3333414.65},{"$f":"IF(-SUMIFS(Sheet1!S71_OctoberActual,Sheet1!S71_A2Code,$AC:$AC,Sheet1!S71_ItemType,$AD:$AD)-SUMIFS(Sheet1!S71_OctoberActual,Sheet1!S71_A2Code,$AC:$AC,Sheet1!S71_ItemType,$AE:$AE)=0,P17/12,-SUMIFS(Sheet1!S71_OctoberActual,Sheet1!S71_A2Code,$AC:$AC,Sheet1!S71_ItemType,$AD:$AD)-SUMIFS(Sheet1!S71_OctoberActual,Sheet1!S71_A2Code,$AC:$AC,Sheet1!S71_ItemType,$AE:$AE))","v":2760968.34},{"$f":"IF(-SUMIFS(Sheet1!S71_NovemberActual,Sheet1!S71_A2Code,$AC:$AC,Sheet1!S71_ItemType,$AD:$AD)-SUMIFS(Sheet1!S71_NovemberActual,Sheet1!S71_A2Code,$AC:$AC,Sheet1!S71_ItemType,$AE:$AE)=0,P17/12,-SUMIFS(Sheet1!S71_NovemberActual,Sheet1!S71_A2Code,$AC:$AC,Sheet1!S71_ItemType,$AD:$AD)-SUMIFS(Sheet1!S71_NovemberActual,Sheet1!S71_A2Code,$AC:$AC,Sheet1!S71_ItemType,$AE:$AE))","v":2045676.2},{"$f":"IF(-SUMIFS(Sheet1!S71_DecemberActual,Sheet1!S71_A2Code,$AC:$AC,Sheet1!S71_ItemType,$AD:$AD)-SUMIFS(Sheet1!S71_DecemberActual,Sheet1!S71_A2Code,$AC:$AC,Sheet1!S71_ItemType,$AE:$AE)=0,P17/12,-SUMIFS(Sheet1!S71_DecemberActual,Sheet1!S71_A2Code,$AC:$AC,Sheet1!S71_ItemType,$AD:$AD)-SUMIFS(Sheet1!S71_DecemberActual,Sheet1!S71_A2Code,$AC:$AC,Sheet1!S71_ItemType,$AE:$AE))","v":7865331.0999999996},{"$f":"$P$17/12","v":3926655.25},3926655.25,3926655.25,3926655.25,3926655.25,9066335.5399999991,47119863,{"$f":"'B2-FinPerf SC'!K18","v":47119863},{"$f":"'B2-FinPerf SC'!L18","v":43450604},{"$f":"'B2-FinPerf SC'!M18","v":46985837},null,null,null,null,null,null,null,null,null,null,"3100","IR","IZ"]
[{"$f":"'B2-FinPerf SC'!A19","v":"Road transport"},null,{"$f":"IF(-SUMIFS(Sheet1!S71_JulyActual,Sheet1!S71_A2Code,$AC:$AC,Sheet1!S71_ItemType,$AD:$AD)-SUMIFS(Sheet1!S71_JulyActual,Sheet1!S71_A2Code,$AC:$AC,Sheet1!S71_ItemType,$AE:$AE)=0,P18/12,-SUMIFS(Sheet1!S71_JulyActual,Sheet1!S71_A2Code,$AC:$AC,Sheet1!S71_ItemType,$AD:$AD)-SUMIFS(Sheet1!S71_JulyActual,Sheet1!S71_A2Code,$AC:$AC,Sheet1!S71_ItemType,$AE:$AE))","v":198557.43000000002},{"$f":"IF(-SUMIFS(Sheet1!S71_AugustActual,Sheet1!S71_A2Code,$AC:$AC,Sheet1!S71_ItemType,$AD:$AD)-SUMIFS(Sheet1!S71_AugustActual,Sheet1!S71_A2Code,$AC:$AC,Sheet1!S71_ItemType,$AE:$AE)=0,P18/12,-SUMIFS(Sheet1!S71_AugustActual,Sheet1!S71_A2Code,$AC:$AC,Sheet1!S71_ItemType,$AD:$AD)-SUMIFS(Sheet1!S71_AugustActual,Sheet1!S71_A2Code,$AC:$AC,Sheet1!S71_ItemType,$AE:$AE))","v":258568.33000000002},{"$f":"IF(-SUMIFS(Sheet1!S71_SeptemberActual,Sheet1!S71_A2Code,$AC:$AC,Sheet1!S71_ItemType,$AD:$AD)-SUMIFS(Sheet1!S71_SeptemberActual,Sheet1!S71_A2Code,$AC:$AC,Sheet1!S71_ItemType,$AE:$AE)=0,P18/12,-SUMIFS(Sheet1!S71_SeptemberActual,Sheet1!S71_A2Code,$AC:$AC,Sheet1!S71_ItemType,$AD:$AD)-SUMIFS(Sheet1!S71_SeptemberActual,Sheet1!S71_A2Code,$AC:$AC,Sheet1!S71_ItemType,$AE:$AE))","v":293281.62},{"$f":"IF(-SUMIFS(Sheet1!S71_OctoberActual,Sheet1!S71_A2Code,$AC:$AC,Sheet1!S71_ItemType,$AD:$AD)-SUMIFS(Sheet1!S71_OctoberActual,Sheet1!S71_A2Code,$AC:$AC,Sheet1!S71_ItemType,$AE:$AE)=0,P18/12,-SUMIFS(Sheet1!S71_OctoberActual,Sheet1!S71_A2Code,$AC:$AC,Sheet1!S71_ItemType,$AD:$AD)-SUMIFS(Sheet1!S71_OctoberActual,Sheet1!S71_A2Code,$AC:$AC,Sheet1!S71_ItemType,$AE:$AE))","v":318486.58},{"$f":"IF(-SUMIFS(Sheet1!S71_NovemberActual,Sheet1!S71_A2Code,$AC:$AC,Sheet1!S71_ItemType,$AD:$AD)-SUMIFS(Sheet1!S71_NovemberActual,Sheet1!S71_A2Code,$AC:$AC,Sheet1!S71_ItemType,$AE:$AE)=0,P18/12,-SUMIFS(Sheet1!S71_NovemberActual,Sheet1!S71_A2Code,$AC:$AC,Sheet1!S71_ItemType,$AD:$AD)-SUMIFS(Sheet1!S71_NovemberActual,Sheet1!S71_A2Code,$AC:$AC,Sheet1!S71_ItemType,$AE:$AE))","v":320428.95},{"$f":"IF(-SUMIFS(Sheet1!S71_DecemberActual,Sheet1!S71_A2Code,$AC:$AC,Sheet1!S71_ItemType,$AD:$AD)-SUMIFS(Sheet1!S71_DecemberActual,Sheet1!S71_A2Code,$AC:$AC,Sheet1!S71_ItemType,$AE:$AE)=0,P18/12,-SUMIFS(Sheet1!S71_DecemberActual,Sheet1!S71_A2Code,$AC:$AC,Sheet1!S71_ItemType,$AD:$AD)-SUMIFS(Sheet1!S71_DecemberActual,Sheet1!S71_A2Code,$AC:$AC,Sheet1!S71_ItemType,$AE:$AE))","v":312173.32999999996},{"$f":"$P$18/12","v":522338.75},522338.75,522338.75,522338.75,522338.75,1954875.0099999998,6268065,{"$f":"'B2-FinPerf SC'!K19","v":6268065},{"$f":"'B2-FinPerf SC'!L19","v":2269365},{"$f":"'B2-FinPerf SC'!M19","v":2373756},null,null,null,null,null,null,null,null,null,null,"3200","IR","IZ"]
[{"$f":"'B2-FinPerf SC'!A20","v":"Environmental protection"},null,{"$f":"IF(-SUMIFS(Sheet1!S71_JulyActual,Sheet1!S71_A2Code,$AC:$AC,Sheet1!S71_ItemType,$AD:$AD)-SUMIFS(Sheet1!S71_JulyActual,Sheet1!S71_A2Code,$AC:$AC,Sheet1!S71_ItemType,$AE:$AE)=0,P19/12,-SUMIFS(Sheet1!S71_JulyActual,Sheet1!S71_A2Code,$AC:$AC,Sheet1!S71_ItemType,$AD:$AD)-SUMIFS(Sheet1!S71_JulyActual,Sheet1!S71_A2Code,$AC:$AC,Sheet1!S71_ItemType,$AE:$AE))","v":0},{"$f":"IF(-SUMIFS(Sheet1!S71_AugustActual,Sheet1!S71_A2Code,$AC:$AC,Sheet1!S71_ItemType,$AD:$AD)-SUMIFS(Sheet1!S71_AugustActual,Sheet1!S71_A2Code,$AC:$AC,Sheet1!S71_ItemType,$AE:$AE)=0,P19/12,-SUMIFS(Sheet1!S71_AugustActual,Sheet1!S71_A2Code,$AC:$AC,Sheet1!S71_ItemType,$AD:$AD)-SUMIFS(Sheet1!S71_AugustActual,Sheet1!S71_A2Code,$AC:$AC,Sheet1!S71_ItemType,$AE:$AE))","v":0},{"$f":"IF(-SUMIFS(Sheet1!S71_SeptemberActual,Sheet1!S71_A2Code,$AC:$AC,Sheet1!S71_ItemType,$AD:$AD)-SUMIFS(Sheet1!S71_SeptemberActual,Sheet1!S71_A2Code,$AC:$AC,Sheet1!S71_ItemType,$AE:$AE)=0,P19/12,-SUMIFS(Sheet1!S71_SeptemberActual,Sheet1!S71_A2Code,$AC:$AC,Sheet1!S71_ItemType,$AD:$AD)-SUMIFS(Sheet1!S71_SeptemberActual,Sheet1!S71_A2Code,$AC:$AC,Sheet1!S71_ItemType,$AE:$AE))","v":0},{"$f":"IF(-SUMIFS(Sheet1!S71_OctoberActual,Sheet1!S71_A2Code,$AC:$AC,Sheet1!S71_ItemType,$AD:$AD)-SUMIFS(Sheet1!S71_OctoberActual,Sheet1!S71_A2Code,$AC:$AC,Sheet1!S71_ItemType,$AE:$AE)=0,P19/12,-SUMIFS(Sheet1!S71_OctoberActual,Sheet1!S71_A2Code,$AC:$AC,Sheet1!S71_ItemType,$AD:$AD)-SUMIFS(Sheet1!S71_OctoberActual,Sheet1!S71_A2Code,$AC:$AC,Sheet1!S71_ItemType,$AE:$AE))","v":0},{"$f":"IF(-SUMIFS(Sheet1!S71_NovemberActual,Sheet1!S71_A2Code,$AC:$AC,Sheet1!S71_ItemType,$AD:$AD)-SUMIFS(Sheet1!S71_NovemberActual,Sheet1!S71_A2Code,$AC:$AC,Sheet1!S71_ItemType,$AE:$AE)=0,P19/12,-SUMIFS(Sheet1!S71_NovemberActual,Sheet1!S71_A2Code,$AC:$AC,Sheet1!S71_ItemType,$AD:$AD)-SUMIFS(Sheet1!S71_NovemberActual,Sheet1!S71_A2Code,$AC:$AC,Sheet1!S71_ItemType,$AE:$AE))","v":0},{"$f":"IF(-SUMIFS(Sheet1!S71_DecemberActual,Sheet1!S71_A2Code,$AC:$AC,Sheet1!S71_ItemType,$AD:$AD)-SUMIFS(Sheet1!S71_DecemberActual,Sheet1!S71_A2Code,$AC:$AC,Sheet1!S71_ItemType,$AE:$AE)=0,P19/12,-SUMIFS(Sheet1!S71_DecemberActual,Sheet1!S71_A2Code,$AC:$AC,Sheet1!S71_ItemType,$AD:$AD)-SUMIFS(Sheet1!S71_DecemberActual,Sheet1!S71_A2Code,$AC:$AC,Sheet1!S71_ItemType,$AE:$AE))","v":0},{"$f":"$P$19/12","v":0},0,0,0,0,0,0,{"$f":"'B2-FinPerf SC'!K20","v":0},{"$f":"'B2-FinPerf SC'!L20","v":0},{"$f":"'B2-FinPerf SC'!M20","v":0},null,null,null,null,null,null,null,null,null,null,"3300","IR","IZ"]
[{"$f":"'B2-FinPerf SC'!A21","v":"Trading services"},null,{"$f":"SUM(C21:C24)","v":8605723.2699999996},{"$f":"SUM(D21:D24)","v":8743244.5899999999},7437275.46,5887782.6500000004,6271188.9000000004,6728608.9299999997,7454307.833333333,7454307.833333333,7454307.833333333,7454307.833333333,7454307.833333333,{"$f":"P20-SUM(C20:M20)","v":8506331.0333333313},89451694,{"$f":"'B2-FinPerf SC'!K21","v":89451694},{"$f":"'B2-FinPerf SC'!L21","v":98337242},{"$f":"'B2-FinPerf SC'!M21","v":104258690}]
[{"$f":"'B2-FinPerf SC'!A22","v":"Energy sources"},null,{"$f":"IF(-SUMIFS(Sheet1!S71_JulyActual,Sheet1!S71_A2Code,$AC:$AC,Sheet1!S71_ItemType,$AD:$AD)-SUMIFS(Sheet1!S71_JulyActual,Sheet1!S71_A2Code,$AC:$AC,Sheet1!S71_ItemType,$AE:$AE)=0,P21/12,-SUMIFS(Sheet1!S71_JulyActual,Sheet1!S71_A2Code,$AC:$AC,Sheet1!S71_ItemType,$AD:$AD)-SUMIFS(Sheet1!S71_JulyActual,Sheet1!S71_A2Code,$AC:$AC,Sheet1!S71_ItemType,$AE:$AE))","v":7390438.2300000004},{"$f":"IF(-SUMIFS(Sheet1!S71_AugustActual,Sheet1!S71_A2Code,$AC:$AC,Sheet1!S71_ItemType,$AD:$AD)-SUMIFS(Sheet1!S71_AugustActual,Sheet1!S71_A2Code,$AC:$AC,Sheet1!S71_ItemType,$AE:$AE)=0,P21/12,-SUMIFS(Sheet1!S71_AugustActual,Sheet1!S71_A2Code,$AC:$AC,Sheet1!S71_ItemType,$AD:$AD)-SUMIFS(Sheet1!S71_AugustActual,Sheet1!S71_A2Code,$AC:$AC,Sheet1!S71_ItemType,$AE:$AE))","v":7539854.1999999993},{"$f":"IF(-SUMIFS(Sheet1!S71_SeptemberActual,Sheet1!S71_A2Code,$AC:$AC,Sheet1!S71_ItemType,$AD:$AD)-SUMIFS(Sheet1!S71_SeptemberActual,Sheet1!S71_A2Code,$AC:$AC,Sheet1!S71_ItemType,$AE:$AE)=0,P21/12,-SUMIFS(Sheet1!S71_SeptemberActual,Sheet1!S71_A2Code,$AC:$AC,Sheet1!S71_ItemType,$AD:$AD)-SUMIFS(Sheet1!S71_SeptemberActual,Sheet1!S71_A2Code,$AC:$AC,Sheet1!S71_ItemType,$AE:$AE))","v":6246383.9199999999},{"$f":"IF(-SUMIFS(Sheet1!S71_OctoberActual,Sheet1!S71_A2Code,$AC:$AC,Sheet1!S71_ItemType,$AD:$AD)-SUMIFS(Sheet1!S71_OctoberActual,Sheet1!S71_A2Code,$AC:$AC,Sheet1!S71_ItemType,$AE:$AE)=0,P21/12,-SUMIFS(Sheet1!S71_OctoberActual,Sheet1!S71_A2Code,$AC:$AC,Sheet1!S71_ItemType,$AD:$AD)-SUMIFS(Sheet1!S71_OctoberActual,Sheet1!S71_A2Code,$AC:$AC,Sheet1!S71_ItemType,$AE:$AE))","v":4678184.53},{"$f":"IF(-SUMIFS(Sheet1!S71_NovemberActual,Sheet1!S71_A2Code,$AC:$AC,Sheet1!S71_ItemType,$AD:$AD)-SUMIFS(Sheet1!S71_NovemberActual,Sheet1!S71_A2Code,$AC:$AC,Sheet1!S71_ItemType,$AE:$AE)=0,P21/12,-SUMIFS(Sheet1!S71_NovemberActual,Sheet1!S71_A2Code,$AC:$AC,Sheet1!S71_ItemType,$AD:$AD)-SUMIFS(Sheet1!S71_NovemberActual,Sheet1!S71_A2Code,$AC:$AC,Sheet1!S71_ItemType,$AE:$AE))","v":5032846.88},{"$f":"IF(-SUMIFS(Sheet1!S71_DecemberActual,Sheet1!S71_A2Code,$AC:$AC,Sheet1!S71_ItemType,$AD:$AD)-SUMIFS(Sheet1!S71_DecemberActual,Sheet1!S71_A2Code,$AC:$AC,Sheet1!S71_ItemType,$AE:$AE)=0,P21/12,-SUMIFS(Sheet1!S71_DecemberActual,Sheet1!S71_A2Code,$AC:$AC,Sheet1!S71_ItemType,$AD:$AD)-SUMIFS(Sheet1!S71_DecemberActual,Sheet1!S71_A2Code,$AC:$AC,Sheet1!S71_ItemType,$AE:$AE))","v":5507156.5099999998},{"$f":"$P$21/12","v":6168647.083333333},6168647.083333333,6168647.083333333,6168647.083333333,6168647.083333333,6785665.3133333176,74023765,{"$f":"'B2-FinPerf SC'!K22","v":74023765},{"$f":"'B2-FinPerf SC'!L22","v":82689988},{"$f":"'B2-FinPerf SC'!M22","v":87889913},null,null,null,null,null,null,null,null,null,null,"4100","IR","IZ"]
[{"$f":"'B2-FinPerf SC'!A23","v":"Water management"},null,{"$f":"IF(-SUMIFS(Sheet1!S71_JulyActual,Sheet1!S71_A2Code,$AC:$AC,Sheet1!S71_ItemType,$AD:$AD)-SUMIFS(Sheet1!S71_JulyActual,Sheet1!S71_A2Code,$AC:$AC,Sheet1!S71_ItemType,$AE:$AE)=0,P22/12,-SUMIFS(Sheet1!S71_JulyActual,Sheet1!S71_A2Code,$AC:$AC,Sheet1!S71_ItemType,$AD:$AD)-SUMIFS(Sheet1!S71_JulyActual,Sheet1!S71_A2Code,$AC:$AC,Sheet1!S71_ItemType,$AE:$AE))","v":0},{"$f":"IF(-SUMIFS(Sheet1!S71_AugustActual,Sheet1!S71_A2Code,$AC:$AC,Sheet1!S71_ItemType,$AD:$AD)-SUMIFS(Sheet1!S71_AugustActual,Sheet1!S71_A2Code,$AC:$AC,Sheet1!S71_ItemType,$AE:$AE)=0,P22/12,-SUMIFS(Sheet1!S71_AugustActual,Sheet1!S71_A2Code,$AC:$AC,Sheet1!S71_ItemType,$AD:$AD)-SUMIFS(Sheet1!S71_AugustActual,Sheet1!S71_A2Code,$AC:$AC,Sheet1!S71_ItemType,$AE:$AE))","v":0},{"$f":"IF(-SUMIFS(Sheet1!S71_SeptemberActual,Sheet1!S71_A2Code,$AC:$AC,Sheet1!S71_ItemType,$AD:$AD)-SUMIFS(Sheet1!S71_SeptemberActual,Sheet1!S71_A2Code,$AC:$AC,Sheet1!S71_ItemType,$AE:$AE)=0,P22/12,-SUMIFS(Sheet1!S71_SeptemberActual,Sheet1!S71_A2Code,$AC:$AC,Sheet1!S71_ItemType,$AD:$AD)-SUMIFS(Sheet1!S71_SeptemberActual,Sheet1!S71_A2Code,$AC:$AC,Sheet1!S71_ItemType,$AE:$AE))","v":0},{"$f":"IF(-SUMIFS(Sheet1!S71_OctoberActual,Sheet1!S71_A2Code,$AC:$AC,Sheet1!S71_ItemType,$AD:$AD)-SUMIFS(Sheet1!S71_OctoberActual,Sheet1!S71_A2Code,$AC:$AC,Sheet1!S71_ItemType,$AE:$AE)=0,P22/12,-SUMIFS(Sheet1!S71_OctoberActual,Sheet1!S71_A2Code,$AC:$AC,Sheet1!S71_ItemType,$AD:$AD)-SUMIFS(Sheet1!S71_OctoberActual,Sheet1!S71_A2Code,$AC:$AC,Sheet1!S71_ItemType,$AE:$AE))","v":0},{"$f":"IF(-SUMIFS(Sheet1!S71_NovemberActual,Sheet1!S71_A2Code,$AC:$AC,Sheet1!S71_ItemType,$AD:$AD)-SUMIFS(Sheet1!S71_NovemberActual,Sheet1!S71_A2Code,$AC:$AC,Sheet1!S71_ItemType,$AE:$AE)=0,P22/12,-SUMIFS(Sheet1!S71_NovemberActual,Sheet1!S71_A2Code,$AC:$AC,Sheet1!S71_ItemType,$AD:$AD)-SUMIFS(Sheet1!S71_NovemberActual,Sheet1!S71_A2Code,$AC:$AC,Sheet1!S71_ItemType,$AE:$AE))","v":0},{"$f":"IF(-SUMIFS(Sheet1!S71_DecemberActual,Sheet1!S71_A2Code,$AC:$AC,Sheet1!S71_ItemType,$AD:$AD)-SUMIFS(Sheet1!S71_DecemberActual,Sheet1!S71_A2Code,$AC:$AC,Sheet1!S71_ItemType,$AE:$AE)=0,P22/12,-SUMIFS(Sheet1!S71_DecemberActual,Sheet1!S71_A2Code,$AC:$AC,Sheet1!S71_ItemType,$AD:$AD)-SUMIFS(Sheet1!S71_DecemberActual,Sheet1!S71_A2Code,$AC:$AC,Sheet1!S71_ItemType,$AE:$AE))","v":0},{"$f":"$P$22/12","v":0},0,0,0,0,0,0,{"$f":"'B2-FinPerf SC'!K23","v":0},{"$f":"'B2-FinPerf SC'!L23","v":0},{"$f":"'B2-FinPerf SC'!M23","v":0},null,null,null,null,null,null,null,null,null,null,"4200","IR","IZ"]
[{"$f":"'B2-FinPerf SC'!A24","v":"Waste water management"},null,{"$f":"IF(-SUMIFS(Sheet1!S71_JulyActual,Sheet1!S71_A2Code,$AC:$AC,Sheet1!S71_ItemType,$AD:$AD)-SUMIFS(Sheet1!S71_JulyActual,Sheet1!S71_A2Code,$AC:$AC,Sheet1!S71_ItemType,$AE:$AE)=0,P23/12,-SUMIFS(Sheet1!S71_JulyActual,Sheet1!S71_A2Code,$AC:$AC,Sheet1!S71_ItemType,$AD:$AD)-SUMIFS(Sheet1!S71_JulyActual,Sheet1!S71_A2Code,$AC:$AC,Sheet1!S71_ItemType,$AE:$AE))","v":0},{"$f":"IF(-SUMIFS(Sheet1!S71_AugustActual,Sheet1!S71_A2Code,$AC:$AC,Sheet1!S71_ItemType,$AD:$AD)-SUMIFS(Sheet1!S71_AugustActual,Sheet1!S71_A2Code,$AC:$AC,Sheet1!S71_ItemType,$AE:$AE)=0,P23/12,-SUMIFS(Sheet1!S71_AugustActual,Sheet1!S71_A2Code,$AC:$AC,Sheet1!S71_ItemType,$AD:$AD)-SUMIFS(Sheet1!S71_AugustActual,Sheet1!S71_A2Code,$AC:$AC,Sheet1!S71_ItemType,$AE:$AE))","v":0},{"$f":"IF(-SUMIFS(Sheet1!S71_SeptemberActual,Sheet1!S71_A2Code,$AC:$AC,Sheet1!S71_ItemType,$AD:$AD)-SUMIFS(Sheet1!S71_SeptemberActual,Sheet1!S71_A2Code,$AC:$AC,Sheet1!S71_ItemType,$AE:$AE)=0,P23/12,-SUMIFS(Sheet1!S71_SeptemberActual,Sheet1!S71_A2Code,$AC:$AC,Sheet1!S71_ItemType,$AD:$AD)-SUMIFS(Sheet1!S71_SeptemberActual,Sheet1!S71_A2Code,$AC:$AC,Sheet1!S71_ItemType,$AE:$AE))","v":0},{"$f":"IF(-SUMIFS(Sheet1!S71_OctoberActual,Sheet1!S71_A2Code,$AC:$AC,Sheet1!S71_ItemType,$AD:$AD)-SUMIFS(Sheet1!S71_OctoberActual,Sheet1!S71_A2Code,$AC:$AC,Sheet1!S71_ItemType,$AE:$AE)=0,P23/12,-SUMIFS(Sheet1!S71_OctoberActual,Sheet1!S71_A2Code,$AC:$AC,Sheet1!S71_ItemType,$AD:$AD)-SUMIFS(Sheet1!S71_OctoberActual,Sheet1!S71_A2Code,$AC:$AC,Sheet1!S71_ItemType,$AE:$AE))","v":0},{"$f":"IF(-SUMIFS(Sheet1!S71_NovemberActual,Sheet1!S71_A2Code,$AC:$AC,Sheet1!S71_ItemType,$AD:$AD)-SUMIFS(Sheet1!S71_NovemberActual,Sheet1!S71_A2Code,$AC:$AC,Sheet1!S71_ItemType,$AE:$AE)=0,P23/12,-SUMIFS(Sheet1!S71_NovemberActual,Sheet1!S71_A2Code,$AC:$AC,Sheet1!S71_ItemType,$AD:$AD)-SUMIFS(Sheet1!S71_NovemberActual,Sheet1!S71_A2Code,$AC:$AC,Sheet1!S71_ItemType,$AE:$AE))","v":0},{"$f":"IF(-SUMIFS(Sheet1!S71_DecemberActual,Sheet1!S71_A2Code,$AC:$AC,Sheet1!S71_ItemType,$AD:$AD)-SUMIFS(Sheet1!S71_DecemberActual,Sheet1!S71_A2Code,$AC:$AC,Sheet1!S71_ItemType,$AE:$AE)=0,P23/12,-SUMIFS(Sheet1!S71_DecemberActual,Sheet1!S71_A2Code,$AC:$AC,Sheet1!S71_ItemType,$AD:$AD)-SUMIFS(Sheet1!S71_DecemberActual,Sheet1!S71_A2Code,$AC:$AC,Sheet1!S71_ItemType,$AE:$AE))","v":0},{"$f":"$P$23/12","v":0},0,0,0,0,0,0,{"$f":"'B2-FinPerf SC'!K24","v":0},{"$f":"'B2-FinPerf SC'!L24","v":0},{"$f":"'B2-FinPerf SC'!M24","v":0},null,null,null,null,null,null,null,null,null,null,"4300","IR","IZ"]
[{"$f":"'B2-FinPerf SC'!A25","v":"Waste management"},null,{"$f":"IF(-SUMIFS(Sheet1!S71_JulyActual,Sheet1!S71_A2Code,$AC:$AC,Sheet1!S71_ItemType,$AD:$AD)-SUMIFS(Sheet1!S71_JulyActual,Sheet1!S71_A2Code,$AC:$AC,Sheet1!S71_ItemType,$AE:$AE)=0,P24/12,-SUMIFS(Sheet1!S71_JulyActual,Sheet1!S71_A2Code,$AC:$AC,Sheet1!S71_ItemType,$AD:$AD)-SUMIFS(Sheet1!S71_JulyActual,Sheet1!S71_A2Code,$AC:$AC,Sheet1!S71_ItemType,$AE:$AE))","v":1215285.04},{"$f":"IF(-SUMIFS(Sheet1!S71_AugustActual,Sheet1!S71_A2Code,$AC:$AC,Sheet1!S71_ItemType,$AD:$AD)-SUMIFS(Sheet1!S71_AugustActual,Sheet1!S71_A2Code,$AC:$AC,Sheet1!S71_ItemType,$AE:$AE)=0,P24/12,-SUMIFS(Sheet1!S71_AugustActual,Sheet1!S71_A2Code,$AC:$AC,Sheet1!S71_ItemType,$AD:$AD)-SUMIFS(Sheet1!S71_AugustActual,Sheet1!S71_A2Code,$AC:$AC,Sheet1!S71_ItemType,$AE:$AE))","v":1203390.3900000001},{"$f":"IF(-SUMIFS(Sheet1!S71_SeptemberActual,Sheet1!S71_A2Code,$AC:$AC,Sheet1!S71_ItemType,$AD:$AD)-SUMIFS(Sheet1!S71_SeptemberActual,Sheet1!S71_A2Code,$AC:$AC,Sheet1!S71_ItemType,$AE:$AE)=0,P24/12,-SUMIFS(Sheet1!S71_SeptemberActual,Sheet1!S71_A2Code,$AC:$AC,Sheet1!S71_ItemType,$AD:$AD)-SUMIFS(Sheet1!S71_SeptemberActual,Sheet1!S71_A2Code,$AC:$AC,Sheet1!S71_ItemType,$AE:$AE))","v":1190891.54},{"$f":"IF(-SUMIFS(Sheet1!S71_OctoberActual,Sheet1!S71_A2Code,$AC:$AC,Sheet1!S71_ItemType,$AD:$AD)-SUMIFS(Sheet1!S71_OctoberActual,Sheet1!S71_A2Code,$AC:$AC,Sheet1!S71_ItemType,$AE:$AE)=0,P24/12,-SUMIFS(Sheet1!S71_OctoberActual,Sheet1!S71_A2Code,$AC:$AC,Sheet1!S71_ItemType,$AD:$AD)-SUMIFS(Sheet1!S71_OctoberActual,Sheet1!S71_A2Code,$AC:$AC,Sheet1!S71_ItemType,$AE:$AE))","v":1209598.1200000001},{"$f":"IF(-SUMIFS(Sheet1!S71_NovemberActual,Sheet1!S71_A2Code,$AC:$AC,Sheet1!S71_ItemType,$AD:$AD)-SUMIFS(Sheet1!S71_NovemberActual,Sheet1!S71_A2Code,$AC:$AC,Sheet1!S71_ItemType,$AE:$AE)=0,P24/12,-SUMIFS(Sheet1!S71_NovemberActual,Sheet1!S71_A2Code,$AC:$AC,Sheet1!S71_ItemType,$AD:$AD)-SUMIFS(Sheet1!S71_NovemberActual,Sheet1!S71_A2Code,$AC:$AC,Sheet1!S71_ItemType,$AE:$AE))","v":1238342.02},{"$f":"IF(-SUMIFS(Sheet1!S71_DecemberActual,Sheet1!S71_A2Code,$AC:$AC,Sheet1!S71_ItemType,$AD:$AD)-SUMIFS(Sheet1!S71_DecemberActual,Sheet1!S71_A2Code,$AC:$AC,Sheet1!S71_ItemType,$AE:$AE)=0,P24/12,-SUMIFS(Sheet1!S71_DecemberActual,Sheet1!S71_A2Code,$AC:$AC,Sheet1!S71_ItemType,$AD:$AD)-SUMIFS(Sheet1!S71_DecemberActual,Sheet1!S71_A2Code,$AC:$AC,Sheet1!S71_ItemType,$AE:$AE))","v":1221452.42},{"$f":"$P$24/12","v":1285660.75},1285660.75,1285660.75,1285660.75,1285660.75,1720665.7200000007,15427929,{"$f":"'B2-FinPerf SC'!K25","v":15427929},{"$f":"'B2-FinPerf SC'!L25","v":15647254},{"$f":"'B2-FinPerf SC'!M25","v":16368777},null,null,null,null,null,null,null,null,null,null,"4400","IR","IZ"]
[{"$f":"'B2-FinPerf SC'!A26","v":"Other"},null,{"$f":"IF(-SUMIFS(Sheet1!S71_JulyActual,Sheet1!S71_A2Code,$AC:$AC,Sheet1!S71_ItemType,$AD:$AD)-SUMIFS(Sheet1!S71_JulyActual,Sheet1!S71_A2Code,$AC:$AC,Sheet1!S71_ItemType,$AE:$AE)=0,P25/12,-SUMIFS(Sheet1!S71_JulyActual,Sheet1!S71_A2Code,$AC:$AC,Sheet1!S71_ItemType,$AD:$AD)-SUMIFS(Sheet1!S71_JulyActual,Sheet1!S71_A2Code,$AC:$AC,Sheet1!S71_ItemType,$AE:$AE))","v":0},{"$f":"IF(-SUMIFS(Sheet1!S71_AugustActual,Sheet1!S71_A2Code,$AC:$AC,Sheet1!S71_ItemType,$AD:$AD)-SUMIFS(Sheet1!S71_AugustActual,Sheet1!S71_A2Code,$AC:$AC,Sheet1!S71_ItemType,$AE:$AE)=0,P25/12,-SUMIFS(Sheet1!S71_AugustActual,Sheet1!S71_A2Code,$AC:$AC,Sheet1!S71_ItemType,$AD:$AD)-SUMIFS(Sheet1!S71_AugustActual,Sheet1!S71_A2Code,$AC:$AC,Sheet1!S71_ItemType,$AE:$AE))","v":0},{"$f":"IF(-SUMIFS(Sheet1!S71_SeptemberActual,Sheet1!S71_A2Code,$AC:$AC,Sheet1!S71_ItemType,$AD:$AD)-SUMIFS(Sheet1!S71_SeptemberActual,Sheet1!S71_A2Code,$AC:$AC,Sheet1!S71_ItemType,$AE:$AE)=0,P25/12,-SUMIFS(Sheet1!S71_SeptemberActual,Sheet1!S71_A2Code,$AC:$AC,Sheet1!S71_ItemType,$AD:$AD)-SUMIFS(Sheet1!S71_SeptemberActual,Sheet1!S71_A2Code,$AC:$AC,Sheet1!S71_ItemType,$AE:$AE))","v":0},{"$f":"IF(-SUMIFS(Sheet1!S71_OctoberActual,Sheet1!S71_A2Code,$AC:$AC,Sheet1!S71_ItemType,$AD:$AD)-SUMIFS(Sheet1!S71_OctoberActual,Sheet1!S71_A2Code,$AC:$AC,Sheet1!S71_ItemType,$AE:$AE)=0,P25/12,-SUMIFS(Sheet1!S71_OctoberActual,Sheet1!S71_A2Code,$AC:$AC,Sheet1!S71_ItemType,$AD:$AD)-SUMIFS(Sheet1!S71_OctoberActual,Sheet1!S71_A2Code,$AC:$AC,Sheet1!S71_ItemType,$AE:$AE))","v":0},{"$f":"IF(-SUMIFS(Sheet1!S71_NovemberActual,Sheet1!S71_A2Code,$AC:$AC,Sheet1!S71_ItemType,$AD:$AD)-SUMIFS(Sheet1!S71_NovemberActual,Sheet1!S71_A2Code,$AC:$AC,Sheet1!S71_ItemType,$AE:$AE)=0,P25/12,-SUMIFS(Sheet1!S71_NovemberActual,Sheet1!S71_A2Code,$AC:$AC,Sheet1!S71_ItemType,$AD:$AD)-SUMIFS(Sheet1!S71_NovemberActual,Sheet1!S71_A2Code,$AC:$AC,Sheet1!S71_ItemType,$AE:$AE))","v":0},{"$f":"IF(-SUMIFS(Sheet1!S71_DecemberActual,Sheet1!S71_A2Code,$AC:$AC,Sheet1!S71_ItemType,$AD:$AD)-SUMIFS(Sheet1!S71_DecemberActual,Sheet1!S71_A2Code,$AC:$AC,Sheet1!S71_ItemType,$AE:$AE)=0,P25/12,-SUMIFS(Sheet1!S71_DecemberActual,Sheet1!S71_A2Code,$AC:$AC,Sheet1!S71_ItemType,$AD:$AD)-SUMIFS(Sheet1!S71_DecemberActual,Sheet1!S71_A2Code,$AC:$AC,Sheet1!S71_ItemType,$AE:$AE))","v":0},{"$f":"$P$25/12","v":0},0,0,0,0,0,0,{"$f":"'B2-FinPerf SC'!K26","v":0},{"$f":"'B2-FinPerf SC'!L26","v":0},{"$f":"'B2-FinPerf SC'!M26","v":0},null,null,null,null,null,null,null,null,null,null,"5000","IR","IZ"]
["Total Revenue - Functional",null,{"$f":"C6+C10+C16+C20+C25","v":114981105.95999999},{"$f":"D6+D10+D16+D20+D25","v":46565257.023333341},{"$f":"E6+E10+E16+E20+E25","v":16196762.433333334},{"$f":"F6+F10+F16+F20+F25","v":14456977.603333334},65617725.563333333,102500853.53333333,40797651.916666664,40797651.916666664,40797651.916666664,40797651.916666664,40797651.916666664,-74735118.699999884,489571823,489571823,493892319,506675906]
[]
["Expenditure - Functional"]
[{"$f":"A6","v":"Governance and administration"},null,{"$f":"SUM(C30:C32)","v":15622216.950000001},14883267.579999998,14134586.800000001,14545561.439999998,15096734.889999997,25831540.460000008,19804007.916666668,19804007.916666668,19804007.916666668,19804007.916666668,19804007.916666668,{"$f":"P29-SUM(C29:M29)","v":38514147.296666682},{"$f":"SUM(C29:N29)","v":237648095},{"$f":"'B2-FinPerf SC'!K30","v":237648095},{"$f":"'B2-FinPerf SC'!L30","v":218975101},{"$f":"'B2-FinPerf SC'!M30","v":209852966}]
["Executive and council",null,{"$f":"IF(SUMIFS(Sheet1!S71_JulyActual,Sheet1!S71_A2Code,$AC:$AC,Sheet1!S71_ItemType,$AD:$AD)+SUMIFS(Sheet1!S71_JulyActual,Sheet1!S71_A2Code,$AC:$AC,Sheet1!S71_ItemType,$AE:$AE)=0,P30/12,SUMIFS(Sheet1!S71_JulyActual,Sheet1!S71_A2Code,$AC:$AC,Sheet1!S71_ItemType,$AD:$AD)+SUMIFS(Sheet1!S71_JulyActual,Sheet1!S71_A2Code,$AC:$AC,Sheet1!S71_ItemType,$AE:$AE))","v":5786504.2599999998},{"$f":"IF(SUMIFS(Sheet1!S71_AugustActual,Sheet1!S71_A2Code,$AC:$AC,Sheet1!S71_ItemType,$AD:$AD)+SUMIFS(Sheet1!S71_AugustActual,Sheet1!S71_A2Code,$AC:$AC,Sheet1!S71_ItemType,$AE:$AE)=0,P30/12,SUMIFS(Sheet1!S71_AugustActual,Sheet1!S71_A2Code,$AC:$AC,Sheet1!S71_ItemType,$AD:$AD)+SUMIFS(Sheet1!S71_AugustActual,Sheet1!S71_A2Code,$AC:$AC,Sheet1!S71_ItemType,$AE:$AE))","v":5037666.01},{"$f":"IF(SUMIFS(Sheet1!S71_SeptemberActual,Sheet1!S71_A2Code,$AC:$AC,Sheet1!S71_ItemType,$AD:$AD)+SUMIFS(Sheet1!S71_SeptemberActual,Sheet1!S71_A2Code,$AC:$AC,Sheet1!S71_ItemType,$AE:$AE)=0,P30/12,SUMIFS(Sheet1!S71_SeptemberActual,Sheet1!S71_A2Code,$AC:$AC,Sheet1!S71_ItemType,$AD:$AD)+SUMIFS(Sheet1!S71_SeptemberActual,Sheet1!S71_A2Code,$AC:$AC,Sheet1!S71_ItemType,$AE:$AE))","v":4471648.9399999985},{"$f":"IF(SUMIFS(Sheet1!S71_OctoberActual,Sheet1!S71_A2Code,$AC:$AC,Sheet1!S71_ItemType,$AD:$AD)+SUMIFS(Sheet1!S71_OctoberActual,Sheet1!S71_A2Code,$AC:$AC,Sheet1!S71_ItemType,$AE:$AE)=0,P30/12,SUMIFS(Sheet1!S71_OctoberActual,Sheet1!S71_A2Code,$AC:$AC,Sheet1!S71_ItemType,$AD:$AD)+SUMIFS(Sheet1!S71_OctoberActual,Sheet1!S71_A2Code,$AC:$AC,Sheet1!S71_ItemType,$AE:$AE))","v":5522910.9099999992},{"$f":"IF(SUMIFS(Sheet1!S71_NovemberActual,Sheet1!S71_A2Code,$AC:$AC,Sheet1!S71_ItemType,$AD:$AD)+SUMIFS(Sheet1!S71_NovemberActual,Sheet1!S71_A2Code,$AC:$AC,Sheet1!S71_ItemType,$AE:$AE)=0,P30/12,SUMIFS(Sheet1!S71_NovemberActual,Sheet1!S71_A2Code,$AC:$AC,Sheet1!S71_ItemType,$AD:$AD)+SUMIFS(Sheet1!S71_NovemberActual,Sheet1!S71_A2Code,$AC:$AC,Sheet1!S71_ItemType,$AE:$AE))","v":5329045.8399999989},{"$f":"IF(SUMIFS(Sheet1!S71_DecemberActual,Sheet1!S71_A2Code,$AC:$AC,Sheet1!S71_ItemType,$AD:$AD)+SUMIFS(Sheet1!S71_DecemberActual,Sheet1!S71_A2Code,$AC:$AC,Sheet1!S71_ItemType,$AE:$AE)=0,P30/12,SUMIFS(Sheet1!S71_DecemberActual,Sheet1!S71_A2Code,$AC:$AC,Sheet1!S71_ItemType,$AD:$AD)+SUMIFS(Sheet1!S71_DecemberActual,Sheet1!S71_A2Code,$AC:$AC,Sheet1!S71_ItemType,$AE:$AE))","v":9584639.2899999991},{"$f":"$P$30/12","v":6041855.416666667},6041855.416666667,6041855.416666667,6041855.416666667,6041855.416666667,6560572.6666666791,72502265,{"$f":"'B2-FinPerf SC'!K31","v":72502265},{"$f":"'B2-FinPerf SC'!L31","v":69139571},{"$f":"'B2-FinPerf SC'!M31","v":71919455},null,null,null,null,null,null,null,null,null,null,"1100","IE","IZ"]
["Finance and administration",null,{"$f":"IF(SUMIFS(Sheet1!S71_JulyActual,Sheet1!S71_A2Code,$AC:$AC,Sheet1!S71_ItemType,$AD:$AD)+SUMIFS(Sheet1!S71_JulyActual,Sheet1!S71_A2Code,$AC:$AC,Sheet1!S71_ItemType,$AE:$AE)=0,P31/12,SUMIFS(Sheet1!S71_JulyActual,Sheet1!S71_A2Code,$AC:$AC,Sheet1!S71_ItemType,$AD:$AD)+SUMIFS(Sheet1!S71_JulyActual,Sheet1!S71_A2Code,$AC:$AC,Sheet1!S71_ItemType,$AE:$AE))","v":9835712.6900000013},{"$f":"IF(SUMIFS(Sheet1!S71_AugustActual,Sheet1!S71_A2Code,$AC:$AC,Sheet1!S71_ItemType,$AD:$AD)+SUMIFS(Sheet1!S71_AugustActual,Sheet1!S71_A2Code,$AC:$AC,Sheet1!S71_ItemType,$AE:$AE)=0,P31/12,SUMIFS(Sheet1!S71_AugustActual,Sheet1!S71_A2Code,$AC:$AC,Sheet1!S71_ItemType,$AD:$AD)+SUMIFS(Sheet1!S71_AugustActual,Sheet1!S71_A2Code,$AC:$AC,Sheet1!S71_ItemType,$AE:$AE))","v":9845601.5699999984},{"$f":"IF(SUMIFS(Sheet1!S71_SeptemberActual,Sheet1!S71_A2Code,$AC:$AC,Sheet1!S71_ItemType,$AD:$AD)+SUMIFS(Sheet1!S71_SeptemberActual,Sheet1!S71_A2Code,$AC:$AC,Sheet1!S71_ItemType,$AE:$AE)=0,P31/12,SUMIFS(Sheet1!S71_SeptemberActual,Sheet1!S71_A2Code,$AC:$AC,Sheet1!S71_ItemType,$AD:$AD)+SUMIFS(Sheet1!S71_SeptemberActual,Sheet1!S71_A2Code,$AC:$AC,Sheet1!S71_ItemType,$AE:$AE))","v":9662937.8600000013},{"$f":"IF(SUMIFS(Sheet1!S71_OctoberActual,Sheet1!S71_A2Code,$AC:$AC,Sheet1!S71_ItemType,$AD:$AD)+SUMIFS(Sheet1!S71_OctoberActual,Sheet1!S71_A2Code,$AC:$AC,Sheet1!S71_ItemType,$AE:$AE)=0,P31/12,SUMIFS(Sheet1!S71_OctoberActual,Sheet1!S71_A2Code,$AC:$AC,Sheet1!S71_ItemType,$AD:$AD)+SUMIFS(Sheet1!S71_OctoberActual,Sheet1!S71_A2Code,$AC:$AC,Sheet1!S71_ItemType,$AE:$AE))","v":9022650.5299999993},{"$f":"IF(SUMIFS(Sheet1!S71_NovemberActual,Sheet1!S71_A2Code,$AC:$AC,Sheet1!S71_ItemType,$AD:$AD)+SUMIFS(Sheet1!S71_NovemberActual,Sheet1!S71_A2Code,$AC:$AC,Sheet1!S71_ItemType,$AE:$AE)=0,P31/12,SUMIFS(Sheet1!S71_NovemberActual,Sheet1!S71_A2Code,$AC:$AC,Sheet1!S71_ItemType,$AD:$AD)+SUMIFS(Sheet1!S71_NovemberActual,Sheet1!S71_A2Code,$AC:$AC,Sheet1!S71_ItemType,$AE:$AE))","v":9767689.0499999989},{"$f":"IF(SUMIFS(Sheet1!S71_DecemberActual,Sheet1!S71_A2Code,$AC:$AC,Sheet1!S71_ItemType,$AD:$AD)+SUMIFS(Sheet1!S71_DecemberActual,Sheet1!S71_A2Code,$AC:$AC,Sheet1!S71_ItemType,$AE:$AE)=0,P31/12,SUMIFS(Sheet1!S71_DecemberActual,Sheet1!S71_A2Code,$AC:$AC,Sheet1!S71_ItemType,$AD:$AD)+SUMIFS(Sheet1!S71_DecemberActual,Sheet1!S71_A2Code,$AC:$AC,Sheet1!S71_ItemType,$AE:$AE))","v":16246901.170000007},{"$f":"$P$31/12","v":13762152.5},13762152.5,13762152.5,13762152.5,13762152.5,31953574.629999995,165145830,{"$f":"'B2-FinPerf SC'!K32","v":165145830},{"$f":"'B2-FinPerf SC'!L32","v":149835530},{"$f":"'B2-FinPerf SC'!M32","v":137933511},null,null,null,null,null,null,null,null,null,null,"1200","IE","IZ"]
["Internal audit",null,{"$f":"IF(SUMIFS(Sheet1!S71_JulyActual,Sheet1!S71_A2Code,$AC:$AC,Sheet1!S71_ItemType,$AD:$AD)+SUMIFS(Sheet1!S71_JulyActual,Sheet1!S71_A2Code,$AC:$AC,Sheet1!S71_ItemType,$AE:$AE)=0,P32/12,SUMIFS(Sheet1!S71_JulyActual,Sheet1!S71_A2Code,$AC:$AC,Sheet1!S71_ItemType,$AD:$AD)+SUMIFS(Sheet1!S71_JulyActual,Sheet1!S71_A2Code,$AC:$AC,Sheet1!S71_ItemType,$AE:$AE))","v":0},{"$f":"IF(SUMIFS(Sheet1!S71_AugustActual,Sheet1!S71_A2Code,$AC:$AC,Sheet1!S71_ItemType,$AD:$AD)+SUMIFS(Sheet1!S71_AugustActual,Sheet1!S71_A2Code,$AC:$AC,Sheet1!S71_ItemType,$AE:$AE)=0,P32/12,SUMIFS(Sheet1!S71_AugustActual,Sheet1!S71_A2Code,$AC:$AC,Sheet1!S71_ItemType,$AD:$AD)+SUMIFS(Sheet1!S71_AugustActual,Sheet1!S71_A2Code,$AC:$AC,Sheet1!S71_ItemType,$AE:$AE))","v":0},{"$f":"IF(SUMIFS(Sheet1!S71_SeptemberActual,Sheet1!S71_A2Code,$AC:$AC,Sheet1!S71_ItemType,$AD:$AD)+SUMIFS(Sheet1!S71_SeptemberActual,Sheet1!S71_A2Code,$AC:$AC,Sheet1!S71_ItemType,$AE:$AE)=0,P32/12,SUMIFS(Sheet1!S71_SeptemberActual,Sheet1!S71_A2Code,$AC:$AC,Sheet1!S71_ItemType,$AD:$AD)+SUMIFS(Sheet1!S71_SeptemberActual,Sheet1!S71_A2Code,$AC:$AC,Sheet1!S71_ItemType,$AE:$AE))","v":0},{"$f":"IF(SUMIFS(Sheet1!S71_OctoberActual,Sheet1!S71_A2Code,$AC:$AC,Sheet1!S71_ItemType,$AD:$AD)+SUMIFS(Sheet1!S71_OctoberActual,Sheet1!S71_A2Code,$AC:$AC,Sheet1!S71_ItemType,$AE:$AE)=0,P32/12,SUMIFS(Sheet1!S71_OctoberActual,Sheet1!S71_A2Code,$AC:$AC,Sheet1!S71_ItemType,$AD:$AD)+SUMIFS(Sheet1!S71_OctoberActual,Sheet1!S71_A2Code,$AC:$AC,Sheet1!S71_ItemType,$AE:$AE))","v":0},{"$f":"IF(SUMIFS(Sheet1!S71_NovemberActual,Sheet1!S71_A2Code,$AC:$AC,Sheet1!S71_ItemType,$AD:$AD)+SUMIFS(Sheet1!S71_NovemberActual,Sheet1!S71_A2Code,$AC:$AC,Sheet1!S71_ItemType,$AE:$AE)=0,P32/12,SUMIFS(Sheet1!S71_NovemberActual,Sheet1!S71_A2Code,$AC:$AC,Sheet1!S71_ItemType,$AD:$AD)+SUMIFS(Sheet1!S71_NovemberActual,Sheet1!S71_A2Code,$AC:$AC,Sheet1!S71_ItemType,$AE:$AE))","v":0},{"$f":"IF(SUMIFS(Sheet1!S71_DecemberActual,Sheet1!S71_A2Code,$AC:$AC,Sheet1!S71_ItemType,$AD:$AD)+SUMIFS(Sheet1!S71_DecemberActual,Sheet1!S71_A2Code,$AC:$AC,Sheet1!S71_ItemType,$AE:$AE)=0,P32/12,SUMIFS(Sheet1!S71_DecemberActual,Sheet1!S71_A2Code,$AC:$AC,Sheet1!S71_ItemType,$AD:$AD)+SUMIFS(Sheet1!S71_DecemberActual,Sheet1!S71_A2Code,$AC:$AC,Sheet1!S71_ItemType,$AE:$AE))","v":0},{"$f":"$P$32/12","v":0},0,0,0,0,0,0,{"$f":"'B2-FinPerf SC'!K33","v":0},{"$f":"'B2-FinPerf SC'!L33","v":0},{"$f":"'B2-FinPerf SC'!M33","v":0},null,null,null,null,null,null,null,null,null,null,"1300","IE","IZ"]
["Community and public safety",null,{"$f":"SUM(C34:C38)","v":3012792.5666666664},4432848.4633333329,4270648.333333334,4629339.0566666666,4670509.4766666666,4504256.1999999993,3848575.2499999995,3848575.2499999995,3848575.2499999995,3848575.2499999995,3848575.2499999995,1419632.6533333361,46182903,{"$f":"'B2-FinPerf SC'!K34","v":46182903},{"$f":"'B2-FinPerf SC'!L34","v":43973061},{"$f":"'B2-FinPerf SC'!M34","v":46271407}]
["Community and social services",null,{"$f":"IF(SUMIFS(Sheet1!S71_JulyActual,Sheet1!S71_A2Code,$AC:$AC,Sheet1!S71_ItemType,$AD:$AD)+SUMIFS(Sheet1!S71_JulyActual,Sheet1!S71_A2Code,$AC:$AC,Sheet1!S71_ItemType,$AE:$AE)=0,P34/12,SUMIFS(Sheet1!S71_JulyActual,Sheet1!S71_A2Code,$AC:$AC,Sheet1!S71_ItemType,$AD:$AD)+SUMIFS(Sheet1!S71_JulyActual,Sheet1!S71_A2Code,$AC:$AC,Sheet1!S71_ItemType,$AE:$AE))","v":2518202.84},{"$f":"IF(SUMIFS(Sheet1!S71_AugustActual,Sheet1!S71_A2Code,$AC:$AC,Sheet1!S71_ItemType,$AD:$AD)+SUMIFS(Sheet1!S71_AugustActual,Sheet1!S71_A2Code,$AC:$AC,Sheet1!S71_ItemType,$AE:$AE)=0,P34/12,SUMIFS(Sheet1!S71_AugustActual,Sheet1!S71_A2Code,$AC:$AC,Sheet1!S71_ItemType,$AD:$AD)+SUMIFS(Sheet1!S71_AugustActual,Sheet1!S71_A2Code,$AC:$AC,Sheet1!S71_ItemType,$AE:$AE))","v":3568370.7499999991},{"$f":"IF(SUMIFS(Sheet1!S71_SeptemberActual,Sheet1!S71_A2Code,$AC:$AC,Sheet1!S71_ItemType,$AD:$AD)+SUMIFS(Sheet1!S71_SeptemberActual,Sheet1!S71_A2Code,$AC:$AC,Sheet1!S71_ItemType,$AE:$AE)=0,P34/12,SUMIFS(Sheet1!S71_SeptemberActual,Sheet1!S71_A2Code,$AC:$AC,Sheet1!S71_ItemType,$AD:$AD)+SUMIFS(Sheet1!S71_SeptemberActual,Sheet1!S71_A2Code,$AC:$AC,Sheet1!S71_ItemType,$AE:$AE))","v":3460780.34},{"$f":"IF(SUMIFS(Sheet1!S71_OctoberActual,Sheet1!S71_A2Code,$AC:$AC,Sheet1!S71_ItemType,$AD:$AD)+SUMIFS(Sheet1!S71_OctoberActual,Sheet1!S71_A2Code,$AC:$AC,Sheet1!S71_ItemType,$AE:$AE)=0,P34/12,SUMIFS(Sheet1!S71_OctoberActual,Sheet1!S71_A2Code,$AC:$AC,Sheet1!S71_ItemType,$AD:$AD)+SUMIFS(Sheet1!S71_OctoberActual,Sheet1!S71_A2Code,$AC:$AC,Sheet1!S71_ItemType,$AE:$AE))","v":3427890.5099999993},{"$f":"IF(SUMIFS(Sheet1!S71_NovemberActual,Sheet1!S71_A2Code,$AC:$AC,Sheet1!S71_ItemType,$AD:$AD)+SUMIFS(Sheet1!S71_NovemberActual,Sheet1!S71_A2Code,$AC:$AC,Sheet1!S71_ItemType,$AE:$AE)=0,P34/12,SUMIFS(Sheet1!S71_NovemberActual,Sheet1!S71_A2Code,$AC:$AC,Sheet1!S71_ItemType,$AD:$AD)+SUMIFS(Sheet1!S71_NovemberActual,Sheet1!S71_A2Code,$AC:$AC,Sheet1!S71_ItemType,$AE:$AE))","v":3297553.8399999994},{"$f":"IF(SUMIFS(Sheet1!S71_DecemberActual,Sheet1!S71_A2Code,$AC:$AC,Sheet1!S71_ItemType,$AD:$AD)+SUMIFS(Sheet1!S71_DecemberActual,Sheet1!S71_A2Code,$AC:$AC,Sheet1!S71_ItemType,$AE:$AE)=0,P34/12,SUMIFS(Sheet1!S71_DecemberActual,Sheet1!S71_A2Code,$AC:$AC,Sheet1!S71_ItemType,$AD:$AD)+SUMIFS(Sheet1!S71_DecemberActual,Sheet1!S71_A2Code,$AC:$AC,Sheet1!S71_ItemType,$AE:$AE))","v":2924775.1899999995},{"$f":"$P$34/12","v":2537725.9166666665},2537725.9166666665,2537725.9166666665,2537725.9166666665,2537725.9166666665,-1433492.0533333384,30452711,{"$f":"'B2-FinPerf SC'!K35","v":30452711},{"$f":"'B2-FinPerf SC'!L35","v":31707493},{"$f":"'B2-FinPerf SC'!M35","v":33069256},null,null,null,null,null,null,null,null,null,null,"2100","IE","IZ"]
["Sport and recreation",null,{"$f":"IF(SUMIFS(Sheet1!S71_JulyActual,Sheet1!S71_A2Code,$AC:$AC,Sheet1!S71_ItemType,$AD:$AD)+SUMIFS(Sheet1!S71_JulyActual,Sheet1!S71_A2Code,$AC:$AC,Sheet1!S71_ItemType,$AE:$AE)=0,P35/12,SUMIFS(Sheet1!S71_JulyActual,Sheet1!S71_A2Code,$AC:$AC,Sheet1!S71_ItemType,$AD:$AD)+SUMIFS(Sheet1!S71_JulyActual,Sheet1!S71_A2Code,$AC:$AC,Sheet1!S71_ItemType,$AE:$AE))","v":333961.81},{"$f":"IF(SUMIFS(Sheet1!S71_AugustActual,Sheet1!S71_A2Code,$AC:$AC,Sheet1!S71_ItemType,$AD:$AD)+SUMIFS(Sheet1!S71_AugustActual,Sheet1!S71_A2Code,$AC:$AC,Sheet1!S71_ItemType,$AE:$AE)=0,P35/12,SUMIFS(Sheet1!S71_AugustActual,Sheet1!S71_A2Code,$AC:$AC,Sheet1!S71_ItemType,$AD:$AD)+SUMIFS(Sheet1!S71_AugustActual,Sheet1!S71_A2Code,$AC:$AC,Sheet1!S71_ItemType,$AE:$AE))","v":696476.63},{"$f":"IF(SUMIFS(Sheet1!S71_SeptemberActual,Sheet1!S71_A2Code,$AC:$AC,Sheet1!S71_ItemType,$AD:$AD)+SUMIFS(Sheet1!S71_SeptemberActual,Sheet1!S71_A2Code,$AC:$AC,Sheet1!S71_ItemType,$AE:$AE)=0,P35/12,SUMIFS(Sheet1!S71_SeptemberActual,Sheet1!S71_A2Code,$AC:$AC,Sheet1!S71_ItemType,$AD:$AD)+SUMIFS(Sheet1!S71_SeptemberActual,Sheet1!S71_A2Code,$AC:$AC,Sheet1!S71_ItemType,$AE:$AE))","v":641866.90999999992},{"$f":"IF(SUMIFS(Sheet1!S71_OctoberActual,Sheet1!S71_A2Code,$AC:$AC,Sheet1!S71_ItemType,$AD:$AD)+SUMIFS(Sheet1!S71_OctoberActual,Sheet1!S71_A2Code,$AC:$AC,Sheet1!S71_ItemType,$AE:$AE)=0,P35/12,SUMIFS(Sheet1!S71_OctoberActual,Sheet1!S71_A2Code,$AC:$AC,Sheet1!S71_ItemType,$AD:$AD)+SUMIFS(Sheet1!S71_OctoberActual,Sheet1!S71_A2Code,$AC:$AC,Sheet1!S71_ItemType,$AE:$AE))","v":952925.38},{"$f":"IF(SUMIFS(Sheet1!S71_NovemberActual,Sheet1!S71_A2Code,$AC:$AC,Sheet1!S71_ItemType,$AD:$AD)+SUMIFS(Sheet1!S71_NovemberActual,Sheet1!S71_A2Code,$AC:$AC,Sheet1!S71_ItemType,$AE:$AE)=0,P35/12,SUMIFS(Sheet1!S71_NovemberActual,Sheet1!S71_A2Code,$AC:$AC,Sheet1!S71_ItemType,$AD:$AD)+SUMIFS(Sheet1!S71_NovemberActual,Sheet1!S71_A2Code,$AC:$AC,Sheet1!S71_ItemType,$AE:$AE))","v":1317807.4700000002},{"$f":"IF(SUMIFS(Sheet1!S71_DecemberActual,Sheet1!S71_A2Code,$AC:$AC,Sheet1!S71_ItemType,$AD:$AD)+SUMIFS(Sheet1!S71_DecemberActual,Sheet1!S71_A2Code,$AC:$AC,Sheet1!S71_ItemType,$AE:$AE)=0,P35/12,SUMIFS(Sheet1!S71_DecemberActual,Sheet1!S71_A2Code,$AC:$AC,Sheet1!S71_ItemType,$AD:$AD)+SUMIFS(Sheet1!S71_DecemberActual,Sheet1!S71_A2Code,$AC:$AC,Sheet1!S71_ItemType,$AE:$AE))","v":1315883.01},{"$f":"$P$35/12","v":1142848.25},1142848.25,1142848.25,1142848.25,1142848.25,2741016.5399999991,13714179,{"$f":"'B2-FinPerf SC'!K36","v":13714179},{"$f":"'B2-FinPerf SC'!L36","v":10257703},{"$f":"'B2-FinPerf SC'!M36","v":11101933},null,null,null,null,null,null,null,null,null,null,"2200","IE","IZ"]
["Public safety",null,{"$f":"IF(SUMIFS(Sheet1!S71_JulyActual,Sheet1!S71_A2Code,$AC:$AC,Sheet1!S71_ItemType,$AD:$AD)+SUMIFS(Sheet1!S71_JulyActual,Sheet1!S71_A2Code,$AC:$AC,Sheet1!S71_ItemType,$AE:$AE)=0,P36/12,SUMIFS(Sheet1!S71_JulyActual,Sheet1!S71_A2Code,$AC:$AC,Sheet1!S71_ItemType,$AD:$AD)+SUMIFS(Sheet1!S71_JulyActual,Sheet1!S71_A2Code,$AC:$AC,Sheet1!S71_ItemType,$AE:$AE))","v":145577.91666666666},{"$f":"IF(SUMIFS(Sheet1!S71_AugustActual,Sheet1!S71_A2Code,$AC:$AC,Sheet1!S71_ItemType,$AD:$AD)+SUMIFS(Sheet1!S71_AugustActual,Sheet1!S71_A2Code,$AC:$AC,Sheet1!S71_ItemType,$AE:$AE)=0,P36/12,SUMIFS(Sheet1!S71_AugustActual,Sheet1!S71_A2Code,$AC:$AC,Sheet1!S71_ItemType,$AD:$AD)+SUMIFS(Sheet1!S71_AugustActual,Sheet1!S71_A2Code,$AC:$AC,Sheet1!S71_ItemType,$AE:$AE))","v":145577.91666666666},{"$f":"IF(SUMIFS(Sheet1!S71_SeptemberActual,Sheet1!S71_A2Code,$AC:$AC,Sheet1!S71_ItemType,$AD:$AD)+SUMIFS(Sheet1!S71_SeptemberActual,Sheet1!S71_A2Code,$AC:$AC,Sheet1!S71_ItemType,$AE:$AE)=0,P36/12,SUMIFS(Sheet1!S71_SeptemberActual,Sheet1!S71_A2Code,$AC:$AC,Sheet1!S71_ItemType,$AD:$AD)+SUMIFS(Sheet1!S71_SeptemberActual,Sheet1!S71_A2Code,$AC:$AC,Sheet1!S71_ItemType,$AE:$AE))","v":145577.91666666666},{"$f":"IF(SUMIFS(Sheet1!S71_OctoberActual,Sheet1!S71_A2Code,$AC:$AC,Sheet1!S71_ItemType,$AD:$AD)+SUMIFS(Sheet1!S71_OctoberActual,Sheet1!S71_A2Code,$AC:$AC,Sheet1!S71_ItemType,$AE:$AE)=0,P36/12,SUMIFS(Sheet1!S71_OctoberActual,Sheet1!S71_A2Code,$AC:$AC,Sheet1!S71_ItemType,$AD:$AD)+SUMIFS(Sheet1!S71_OctoberActual,Sheet1!S71_A2Code,$AC:$AC,Sheet1!S71_ItemType,$AE:$AE))","v":226100},{"$f":"IF(SUMIFS(Sheet1!S71_NovemberActual,Sheet1!S71_A2Code,$AC:$AC,Sheet1!S71_ItemType,$AD:$AD)+SUMIFS(Sheet1!S71_NovemberActual,Sheet1!S71_A2Code,$AC:$AC,Sheet1!S71_ItemType,$AE:$AE)=0,P36/12,SUMIFS(Sheet1!S71_NovemberActual,Sheet1!S71_A2Code,$AC:$AC,Sheet1!S71_ItemType,$AD:$AD)+SUMIFS(Sheet1!S71_NovemberActual,Sheet1!S71_A2Code,$AC:$AC,Sheet1!S71_ItemType,$AE:$AE))","v":32725},{"$f":"IF(SUMIFS(Sheet1!S71_DecemberActual,Sheet1!S71_A2Code,$AC:$AC,Sheet1!S71_ItemType,$AD:$AD)+SUMIFS(Sheet1!S71_DecemberActual,Sheet1!S71_A2Code,$AC:$AC,Sheet1!S71_ItemType,$AE:$AE)=0,P36/12,SUMIFS(Sheet1!S71_DecemberActual,Sheet1!S71_A2Code,$AC:$AC,Sheet1!S71_ItemType,$AD:$AD)+SUMIFS(Sheet1!S71_DecemberActual,Sheet1!S71_A2Code,$AC:$AC,Sheet1!S71_ItemType,$AE:$AE))","v":249648},{"$f":"$P$36/12","v":145577.91666666666},145577.91666666666,145577.91666666666,145577.91666666666,145577.91666666666,73838.666666666279,1746935,{"$f":"'B2-FinPerf SC'!K37","v":1746935},{"$f":"'B2-FinPerf SC'!L37","v":1976485},{"$f":"'B2-FinPerf SC'!M37","v":2067395},null,null,null,null,null,null,null,null,null,null,"2300","IE","IZ"]
["Housing",null,{"$f":"IF(SUMIFS(Sheet1!S71_JulyActual,Sheet1!S71_A2Code,$AC:$AC,Sheet1!S71_ItemType,$AD:$AD)+SUMIFS(Sheet1!S71_JulyActual,Sheet1!S71_A2Code,$AC:$AC,Sheet1!S71_ItemType,$AE:$AE)=0,P37/12,SUMIFS(Sheet1!S71_JulyActual,Sheet1!S71_A2Code,$AC:$AC,Sheet1!S71_ItemType,$AD:$AD)+SUMIFS(Sheet1!S71_JulyActual,Sheet1!S71_A2Code,$AC:$AC,Sheet1!S71_ItemType,$AE:$AE))","v":15050},{"$f":"IF(SUMIFS(Sheet1!S71_AugustActual,Sheet1!S71_A2Code,$AC:$AC,Sheet1!S71_ItemType,$AD:$AD)+SUMIFS(Sheet1!S71_AugustActual,Sheet1!S71_A2Code,$AC:$AC,Sheet1!S71_ItemType,$AE:$AE)=0,P37/12,SUMIFS(Sheet1!S71_AugustActual,Sheet1!S71_A2Code,$AC:$AC,Sheet1!S71_ItemType,$AD:$AD)+SUMIFS(Sheet1!S71_AugustActual,Sheet1!S71_A2Code,$AC:$AC,Sheet1!S71_ItemType,$AE:$AE))","v":22423.166666666668},{"$f":"IF(SUMIFS(Sheet1!S71_SeptemberActual,Sheet1!S71_A2Code,$AC:$AC,Sheet1!S71_ItemType,$AD:$AD)+SUMIFS(Sheet1!S71_SeptemberActual,Sheet1!S71_A2Code,$AC:$AC,Sheet1!S71_ItemType,$AE:$AE)=0,P37/12,SUMIFS(Sheet1!S71_SeptemberActual,Sheet1!S71_A2Code,$AC:$AC,Sheet1!S71_ItemType,$AD:$AD)+SUMIFS(Sheet1!S71_SeptemberActual,Sheet1!S71_A2Code,$AC:$AC,Sheet1!S71_ItemType,$AE:$AE))","v":22423.166666666668},{"$f":"IF(SUMIFS(Sheet1!S71_OctoberActual,Sheet1!S71_A2Code,$AC:$AC,Sheet1!S71_ItemType,$AD:$AD)+SUMIFS(Sheet1!S71_OctoberActual,Sheet1!S71_A2Code,$AC:$AC,Sheet1!S71_ItemType,$AE:$AE)=0,P37/12,SUMIFS(Sheet1!S71_OctoberActual,Sheet1!S71_A2Code,$AC:$AC,Sheet1!S71_ItemType,$AD:$AD)+SUMIFS(Sheet1!S71_OctoberActual,Sheet1!S71_A2Code,$AC:$AC,Sheet1!S71_ItemType,$AE:$AE))","v":22423.166666666668},{"$f":"IF(SUMIFS(Sheet1!S71_NovemberActual,Sheet1!S71_A2Code,$AC:$AC,Sheet1!S71_ItemType,$AD:$AD)+SUMIFS(Sheet1!S71_NovemberActual,Sheet1!S71_A2Code,$AC:$AC,Sheet1!S71_ItemType,$AE:$AE)=0,P37/12,SUMIFS(Sheet1!S71_NovemberActual,Sheet1!S71_A2Code,$AC:$AC,Sheet1!S71_ItemType,$AD:$AD)+SUMIFS(Sheet1!S71_NovemberActual,Sheet1!S71_A2Code,$AC:$AC,Sheet1!S71_ItemType,$AE:$AE))","v":22423.166666666668},{"$f":"IF(SUMIFS(Sheet1!S71_DecemberActual,Sheet1!S71_A2Code,$AC:$AC,Sheet1!S71_ItemType,$AD:$AD)+SUMIFS(Sheet1!S71_DecemberActual,Sheet1!S71_A2Code,$AC:$AC,Sheet1!S71_ItemType,$AE:$AE)=0,P37/12,SUMIFS(Sheet1!S71_DecemberActual,Sheet1!S71_A2Code,$AC:$AC,Sheet1!S71_ItemType,$AD:$AD)+SUMIFS(Sheet1!S71_DecemberActual,Sheet1!S71_A2Code,$AC:$AC,Sheet1!S71_ItemType,$AE:$AE))","v":13950},{"$f":"$P$37/12","v":22423.166666666668},22423.166666666668,22423.166666666668,22423.166666666668,22423.166666666668,38269.500000000029,269078,{"$f":"'B2-FinPerf SC'!K38","v":269078},{"$f":"'B2-FinPerf SC'!L38","v":31380},{"$f":"'B2-FinPerf SC'!M38","v":32823},null,null,null,null,null,null,null,null,null,null,"2400","IE","IZ"]
["Health",null,{"$f":"IF(SUMIFS(Sheet1!S71_JulyActual,Sheet1!S71_A2Code,$AC:$AC,Sheet1!S71_ItemType,$AD:$AD)+SUMIFS(Sheet1!S71_JulyActual,Sheet1!S71_A2Code,$AC:$AC,Sheet1!S71_ItemType,$AE:$AE)=0,P38/12,SUMIFS(Sheet1!S71_JulyActual,Sheet1!S71_A2Code,$AC:$AC,Sheet1!S71_ItemType,$AD:$AD)+SUMIFS(Sheet1!S71_JulyActual,Sheet1!S71_A2Code,$AC:$AC,Sheet1!S71_ItemType,$AE:$AE))","v":0},{"$f":"IF(SUMIFS(Sheet1!S71_AugustActual,Sheet1!S71_A2Code,$AC:$AC,Sheet1!S71_ItemType,$AD:$AD)+SUMIFS(Sheet1!S71_AugustActual,Sheet1!S71_A2Code,$AC:$AC,Sheet1!S71_ItemType,$AE:$AE)=0,P38/12,SUMIFS(Sheet1!S71_AugustActual,Sheet1!S71_A2Code,$AC:$AC,Sheet1!S71_ItemType,$AD:$AD)+SUMIFS(Sheet1!S71_AugustActual,Sheet1!S71_A2Code,$AC:$AC,Sheet1!S71_ItemType,$AE:$AE))","v":0},{"$f":"IF(SUMIFS(Sheet1!S71_SeptemberActual,Sheet1!S71_A2Code,$AC:$AC,Sheet1!S71_ItemType,$AD:$AD)+SUMIFS(Sheet1!S71_SeptemberActual,Sheet1!S71_A2Code,$AC:$AC,Sheet1!S71_ItemType,$AE:$AE)=0,P38/12,SUMIFS(Sheet1!S71_SeptemberActual,Sheet1!S71_A2Code,$AC:$AC,Sheet1!S71_ItemType,$AD:$AD)+SUMIFS(Sheet1!S71_SeptemberActual,Sheet1!S71_A2Code,$AC:$AC,Sheet1!S71_ItemType,$AE:$AE))","v":0},{"$f":"IF(SUMIFS(Sheet1!S71_OctoberActual,Sheet1!S71_A2Code,$AC:$AC,Sheet1!S71_ItemType,$AD:$AD)+SUMIFS(Sheet1!S71_OctoberActual,Sheet1!S71_A2Code,$AC:$AC,Sheet1!S71_ItemType,$AE:$AE)=0,P38/12,SUMIFS(Sheet1!S71_OctoberActual,Sheet1!S71_A2Code,$AC:$AC,Sheet1!S71_ItemType,$AD:$AD)+SUMIFS(Sheet1!S71_OctoberActual,Sheet1!S71_A2Code,$AC:$AC,Sheet1!S71_ItemType,$AE:$AE))","v":0},{"$f":"IF(SUMIFS(Sheet1!S71_NovemberActual,Sheet1!S71_A2Code,$AC:$AC,Sheet1!S71_ItemType,$AD:$AD)+SUMIFS(Sheet1!S71_NovemberActual,Sheet1!S71_A2Code,$AC:$AC,Sheet1!S71_ItemType,$AE:$AE)=0,P38/12,SUMIFS(Sheet1!S71_NovemberActual,Sheet1!S71_A2Code,$AC:$AC,Sheet1!S71_ItemType,$AD:$AD)+SUMIFS(Sheet1!S71_NovemberActual,Sheet1!S71_A2Code,$AC:$AC,Sheet1!S71_ItemType,$AE:$AE))","v":0},{"$f":"IF(SUMIFS(Sheet1!S71_DecemberActual,Sheet1!S71_A2Code,$AC:$AC,Sheet1!S71_ItemType,$AD:$AD)+SUMIFS(Sheet1!S71_DecemberActual,Sheet1!S71_A2Code,$AC:$AC,Sheet1!S71_ItemType,$AE:$AE)=0,P38/12,SUMIFS(Sheet1!S71_DecemberActual,Sheet1!S71_A2Code,$AC:$AC,Sheet1!S71_ItemType,$AD:$AD)+SUMIFS(Sheet1!S71_DecemberActual,Sheet1!S71_A2Code,$AC:$AC,Sheet1!S71_ItemType,$AE:$AE))","v":0},{"$f":"$P$38/12","v":0},0,0,0,0,0,null,{"$f":"'B2-FinPerf SC'!K39","v":0},{"$f":"'B2-FinPerf SC'!L39","v":0},{"$f":"'B2-FinPerf SC'!M39","v":0},null,null,null,null,null,null,null,null,null,null,"2500","IE","IZ"]
["Economic and environmental services",null,{"$f":"SUM(C40:C42)","v":3287716.0599999991},6181122.3199999984,5715029.9299999997,6891327.3600000013,7925192.2300000004,9183673.0599999987,6928005.833333334,6928005.833333334,6928005.833333334,6928005.833333334,6928005.833333334,9311979.8733333349,null,{"$f":"'B2-FinPerf SC'!K40","v":83136070},{"$f":"'B2-FinPerf SC'!L40","v":84376648},{"$f":"'B2-FinPerf SC'!M40","v":87080740}]
["Planning and development",null,{"$f":"IF(SUMIFS(Sheet1!S71_JulyActual,Sheet1!S71_A2Code,$AC:$AC,Sheet1!S71_ItemType,$AD:$AD)+SUMIFS(Sheet1!S71_JulyActual,Sheet1!S71_A2Code,$AC:$AC,Sheet1!S71_ItemType,$AE:$AE)=0,P40/12,SUMIFS(Sheet1!S71_JulyActual,Sheet1!S71_A2Code,$AC:$AC,Sheet1!S71_ItemType,$AD:$AD)+SUMIFS(Sheet1!S71_JulyActual,Sheet1!S71_A2Code,$AC:$AC,Sheet1!S71_ItemType,$AE:$AE))","v":1255170.4999999995},{"$f":"IF(SUMIFS(Sheet1!S71_AugustActual,Sheet1!S71_A2Code,$AC:$AC,Sheet1!S71_ItemType,$AD:$AD)+SUMIFS(Sheet1!S71_AugustActual,Sheet1!S71_A2Code,$AC:$AC,Sheet1!S71_ItemType,$AE:$AE)=0,P40/12,SUMIFS(Sheet1!S71_AugustActual,Sheet1!S71_A2Code,$AC:$AC,Sheet1!S71_ItemType,$AD:$AD)+SUMIFS(Sheet1!S71_AugustActual,Sheet1!S71_A2Code,$AC:$AC,Sheet1!S71_ItemType,$AE:$AE))","v":1281520.2099999995},{"$f":"IF(SUMIFS(Sheet1!S71_SeptemberActual,Sheet1!S71_A2Code,$AC:$AC,Sheet1!S71_ItemType,$AD:$AD)+SUMIFS(Sheet1!S71_SeptemberActual,Sheet1!S71_A2Code,$AC:$AC,Sheet1!S71_ItemType,$AE:$AE)=0,P40/12,SUMIFS(Sheet1!S71_SeptemberActual,Sheet1!S71_A2Code,$AC:$AC,Sheet1!S71_ItemType,$AD:$AD)+SUMIFS(Sheet1!S71_SeptemberActual,Sheet1!S71_A2Code,$AC:$AC,Sheet1!S71_ItemType,$AE:$AE))","v":1449493.2799999996},{"$f":"IF(SUMIFS(Sheet1!S71_OctoberActual,Sheet1!S71_A2Code,$AC:$AC,Sheet1!S71_ItemType,$AD:$AD)+SUMIFS(Sheet1!S71_OctoberActual,Sheet1!S71_A2Code,$AC:$AC,Sheet1!S71_ItemType,$AE:$AE)=0,P40/12,SUMIFS(Sheet1!S71_OctoberActual,Sheet1!S71_A2Code,$AC:$AC,Sheet1!S71_ItemType,$AD:$AD)+SUMIFS(Sheet1!S71_OctoberActual,Sheet1!S71_A2Code,$AC:$AC,Sheet1!S71_ItemType,$AE:$AE))","v":1663181.0899999999},{"$f":"IF(SUMIFS(Sheet1!S71_NovemberActual,Sheet1!S71_A2Code,$AC:$AC,Sheet1!S71_ItemType,$AD:$AD)+SUMIFS(Sheet1!S71_NovemberActual,Sheet1!S71_A2Code,$AC:$AC,Sheet1!S71_ItemType,$AE:$AE)=0,P40/12,SUMIFS(Sheet1!S71_NovemberActual,Sheet1!S71_A2Code,$AC:$AC,Sheet1!S71_ItemType,$AD:$AD)+SUMIFS(Sheet1!S71_NovemberActual,Sheet1!S71_A2Code,$AC:$AC,Sheet1!S71_ItemType,$AE:$AE))","v":2860370.5300000003},{"$f":"IF(SUMIFS(Sheet1!S71_DecemberActual,Sheet1!S71_A2Code,$AC:$AC,Sheet1!S71_ItemType,$AD:$AD)+SUMIFS(Sheet1!S71_DecemberActual,Sheet1!S71_A2Code,$AC:$AC,Sheet1!S71_ItemType,$AE:$AE)=0,P40/12,SUMIFS(Sheet1!S71_DecemberActual,Sheet1!S71_A2Code,$AC:$AC,Sheet1!S71_ItemType,$AD:$AD)+SUMIFS(Sheet1!S71_DecemberActual,Sheet1!S71_A2Code,$AC:$AC,Sheet1!S71_ItemType,$AE:$AE))","v":2829728.2399999993},{"$f":"$P$40/12","v":2029886.6666666667},2029886.6666666667,2029886.6666666667,2029886.6666666667,2029886.6666666667,2869742.8166666664,null,{"$f":"'B2-FinPerf SC'!K41","v":24358640},{"$f":"'B2-FinPerf SC'!L41","v":24532581},{"$f":"'B2-FinPerf SC'!M41","v":25718036},null,null,null,null,null,null,null,null,null,null,"3100","IE","IZ"]
["Road transport",null,{"$f":"IF(SUMIFS(Sheet1!S71_JulyActual,Sheet1!S71_A2Code,$AC:$AC,Sheet1!S71_ItemType,$AD:$AD)+SUMIFS(Sheet1!S71_JulyActual,Sheet1!S71_A2Code,$AC:$AC,Sheet1!S71_ItemType,$AE:$AE)=0,P41/12,SUMIFS(Sheet1!S71_JulyActual,Sheet1!S71_A2Code,$AC:$AC,Sheet1!S71_ItemType,$AD:$AD)+SUMIFS(Sheet1!S71_JulyActual,Sheet1!S71_A2Code,$AC:$AC,Sheet1!S71_ItemType,$AE:$AE))","v":1718267.4199999997},{"$f":"IF(SUMIFS(Sheet1!S71_AugustActual,Sheet1!S71_A2Code,$AC:$AC,Sheet1!S71_ItemType,$AD:$AD)+SUMIFS(Sheet1!S71_AugustActual,Sheet1!S71_A2Code,$AC:$AC,Sheet1!S71_ItemType,$AE:$AE)=0,P41/12,SUMIFS(Sheet1!S71_AugustActual,Sheet1!S71_A2Code,$AC:$AC,Sheet1!S71_ItemType,$AD:$AD)+SUMIFS(Sheet1!S71_AugustActual,Sheet1!S71_A2Code,$AC:$AC,Sheet1!S71_ItemType,$AE:$AE))","v":4585829.6799999988},{"$f":"IF(SUMIFS(Sheet1!S71_SeptemberActual,Sheet1!S71_A2Code,$AC:$AC,Sheet1!S71_ItemType,$AD:$AD)+SUMIFS(Sheet1!S71_SeptemberActual,Sheet1!S71_A2Code,$AC:$AC,Sheet1!S71_ItemType,$AE:$AE)=0,P41/12,SUMIFS(Sheet1!S71_SeptemberActual,Sheet1!S71_A2Code,$AC:$AC,Sheet1!S71_ItemType,$AD:$AD)+SUMIFS(Sheet1!S71_SeptemberActual,Sheet1!S71_A2Code,$AC:$AC,Sheet1!S71_ItemType,$AE:$AE))","v":3918845.89},{"$f":"IF(SUMIFS(Sheet1!S71_OctoberActual,Sheet1!S71_A2Code,$AC:$AC,Sheet1!S71_ItemType,$AD:$AD)+SUMIFS(Sheet1!S71_OctoberActual,Sheet1!S71_A2Code,$AC:$AC,Sheet1!S71_ItemType,$AE:$AE)=0,P41/12,SUMIFS(Sheet1!S71_OctoberActual,Sheet1!S71_A2Code,$AC:$AC,Sheet1!S71_ItemType,$AD:$AD)+SUMIFS(Sheet1!S71_OctoberActual,Sheet1!S71_A2Code,$AC:$AC,Sheet1!S71_ItemType,$AE:$AE))","v":4853861.4400000013},{"$f":"IF(SUMIFS(Sheet1!S71_NovemberActual,Sheet1!S71_A2Code,$AC:$AC,Sheet1!S71_ItemType,$AD:$AD)+SUMIFS(Sheet1!S71_NovemberActual,Sheet1!S71_A2Code,$AC:$AC,Sheet1!S71_ItemType,$AE:$AE)=0,P41/12,SUMIFS(Sheet1!S71_NovemberActual,Sheet1!S71_A2Code,$AC:$AC,Sheet1!S71_ItemType,$AD:$AD)+SUMIFS(Sheet1!S71_NovemberActual,Sheet1!S71_A2Code,$AC:$AC,Sheet1!S71_ItemType,$AE:$AE))","v":4728412.75},{"$f":"IF(SUMIFS(Sheet1!S71_DecemberActual,Sheet1!S71_A2Code,$AC:$AC,Sheet1!S71_ItemType,$AD:$AD)+SUMIFS(Sheet1!S71_DecemberActual,Sheet1!S71_A2Code,$AC:$AC,Sheet1!S71_ItemType,$AE:$AE)=0,P41/12,SUMIFS(Sheet1!S71_DecemberActual,Sheet1!S71_A2Code,$AC:$AC,Sheet1!S71_ItemType,$AD:$AD)+SUMIFS(Sheet1!S71_DecemberActual,Sheet1!S71_A2Code,$AC:$AC,Sheet1!S71_ItemType,$AE:$AE))","v":5976493.0199999986},{"$f":"$P$41/12","v":4554446.166666667},4554446.166666667,4554446.166666667,4554446.166666667,4554446.166666667,6099412.9666666761,null,{"$f":"'B2-FinPerf SC'!K42","v":54653354},{"$f":"'B2-FinPerf SC'!L42","v":55594187},{"$f":"'B2-FinPerf SC'!M42","v":56917304},null,null,null,null,null,null,null,null,null,null,"3200","IE","IZ"]
["Environmental protection",null,{"$f":"IF(SUMIFS(Sheet1!S71_JulyActual,Sheet1!S71_A2Code,$AC:$AC,Sheet1!S71_ItemType,$AD:$AD)+SUMIFS(Sheet1!S71_JulyActual,Sheet1!S71_A2Code,$AC:$AC,Sheet1!S71_ItemType,$AE:$AE)=0,P42/12,SUMIFS(Sheet1!S71_JulyActual,Sheet1!S71_A2Code,$AC:$AC,Sheet1!S71_ItemType,$AD:$AD)+SUMIFS(Sheet1!S71_JulyActual,Sheet1!S71_A2Code,$AC:$AC,Sheet1!S71_ItemType,$AE:$AE))","v":314278.13999999996},{"$f":"IF(SUMIFS(Sheet1!S71_AugustActual,Sheet1!S71_A2Code,$AC:$AC,Sheet1!S71_ItemType,$AD:$AD)+SUMIFS(Sheet1!S71_AugustActual,Sheet1!S71_A2Code,$AC:$AC,Sheet1!S71_ItemType,$AE:$AE)=0,P42/12,SUMIFS(Sheet1!S71_AugustActual,Sheet1!S71_A2Code,$AC:$AC,Sheet1!S71_ItemType,$AD:$AD)+SUMIFS(Sheet1!S71_AugustActual,Sheet1!S71_A2Code,$AC:$AC,Sheet1!S71_ItemType,$AE:$AE))","v":313772.43},{"$f":"IF(SUMIFS(Sheet1!S71_SeptemberActual,Sheet1!S71_A2Code,$AC:$AC,Sheet1!S71_ItemType,$AD:$AD)+SUMIFS(Sheet1!S71_SeptemberActual,Sheet1!S71_A2Code,$AC:$AC,Sheet1!S71_ItemType,$AE:$AE)=0,P42/12,SUMIFS(Sheet1!S71_SeptemberActual,Sheet1!S71_A2Code,$AC:$AC,Sheet1!S71_ItemType,$AD:$AD)+SUMIFS(Sheet1!S71_SeptemberActual,Sheet1!S71_A2Code,$AC:$AC,Sheet1!S71_ItemType,$AE:$AE))","v":346690.75999999995},{"$f":"IF(SUMIFS(Sheet1!S71_OctoberActual,Sheet1!S71_A2Code,$AC:$AC,Sheet1!S71_ItemType,$AD:$AD)+SUMIFS(Sheet1!S71_OctoberActual,Sheet1!S71_A2Code,$AC:$AC,Sheet1!S71_ItemType,$AE:$AE)=0,P42/12,SUMIFS(Sheet1!S71_OctoberActual,Sheet1!S71_A2Code,$AC:$AC,Sheet1!S71_ItemType,$AD:$AD)+SUMIFS(Sheet1!S71_OctoberActual,Sheet1!S71_A2Code,$AC:$AC,Sheet1!S71_ItemType,$AE:$AE))","v":374284.82999999996},{"$f":"IF(SUMIFS(Sheet1!S71_NovemberActual,Sheet1!S71_A2Code,$AC:$AC,Sheet1!S71_ItemType,$AD:$AD)+SUMIFS(Sheet1!S71_NovemberActual,Sheet1!S71_A2Code,$AC:$AC,Sheet1!S71_ItemType,$AE:$AE)=0,P42/12,SUMIFS(Sheet1!S71_NovemberActual,Sheet1!S71_A2Code,$AC:$AC,Sheet1!S71_ItemType,$AD:$AD)+SUMIFS(Sheet1!S71_NovemberActual,Sheet1!S71_A2Code,$AC:$AC,Sheet1!S71_ItemType,$AE:$AE))","v":336408.94999999995},{"$f":"IF(SUMIFS(Sheet1!S71_DecemberActual,Sheet1!S71_A2Code,$AC:$AC,Sheet1!S71_ItemType,$AD:$AD)+SUMIFS(Sheet1!S71_DecemberActual,Sheet1!S71_A2Code,$AC:$AC,Sheet1!S71_ItemType,$AE:$AE)=0,P42/12,SUMIFS(Sheet1!S71_DecemberActual,Sheet1!S71_A2Code,$AC:$AC,Sheet1!S71_ItemType,$AD:$AD)+SUMIFS(Sheet1!S71_DecemberActual,Sheet1!S71_A2Code,$AC:$AC,Sheet1!S71_ItemType,$AE:$AE))","v":377451.80000000005},{"$f":"$P$42/12","v":343673},343673,343673,343673,343673,342824.09000000032,null,{"$f":"'B2-FinPerf SC'!K43","v":4124076},{"$f":"'B2-FinPerf SC'!L43","v":4249880},{"$f":"'B2-FinPerf SC'!M43","v":4445400},null,null,null,null,null,null,null,null,null,null,"3300","IE","IZ"]
["Trading services",null,{"$f":"SUM(C44:C47)","v":1175959.1633333333},{"$f":"SUM(D44:D47)","v":15454762.400000002},1665487.89,11895012.050000003,6747666.0199999986,21654463.019999996,7838071.583333333,7838071.583333333,7838071.583333333,7838071.583333333,7838071.583333333,{"$f":"P43-SUM(C43:M43)","v":-3726849.4599999785},{"$f":"SUM(C43:N43)","v":94056859},{"$f":"'B2-FinPerf SC'!K44","v":94056859},{"$f":"'B2-FinPerf SC'!L44","v":101557322},{"$f":"'B2-FinPerf SC'!M44","v":115910888}]
["Energy sources",null,{"$f":"IF(SUMIFS(Sheet1!S71_JulyActual,Sheet1!S71_A2Code,$AC:$AC,Sheet1!S71_ItemType,$AD:$AD)+SUMIFS(Sheet1!S71_JulyActual,Sheet1!S71_A2Code,$AC:$AC,Sheet1!S71_ItemType,$AE:$AE)=0,P44/12,SUMIFS(Sheet1!S71_JulyActual,Sheet1!S71_A2Code,$AC:$AC,Sheet1!S71_ItemType,$AD:$AD)+SUMIFS(Sheet1!S71_JulyActual,Sheet1!S71_A2Code,$AC:$AC,Sheet1!S71_ItemType,$AE:$AE))","v":515408.99000000005},{"$f":"IF(SUMIFS(Sheet1!S71_AugustActual,Sheet1!S71_A2Code,$AC:$AC,Sheet1!S71_ItemType,$AD:$AD)+SUMIFS(Sheet1!S71_AugustActual,Sheet1!S71_A2Code,$AC:$AC,Sheet1!S71_ItemType,$AE:$AE)=0,P44/12,SUMIFS(Sheet1!S71_AugustActual,Sheet1!S71_A2Code,$AC:$AC,Sheet1!S71_ItemType,$AD:$AD)+SUMIFS(Sheet1!S71_AugustActual,Sheet1!S71_A2Code,$AC:$AC,Sheet1!S71_ItemType,$AE:$AE))","v":13924281.670000002},{"$f":"IF(SUMIFS(Sheet1!S71_SeptemberActual,Sheet1!S71_A2Code,$AC:$AC,Sheet1!S71_ItemType,$AD:$AD)+SUMIFS(Sheet1!S71_SeptemberActual,Sheet1!S71_A2Code,$AC:$AC,Sheet1!S71_ItemType,$AE:$AE)=0,P44/12,SUMIFS(Sheet1!S71_SeptemberActual,Sheet1!S71_A2Code,$AC:$AC,Sheet1!S71_ItemType,$AD:$AD)+SUMIFS(Sheet1!S71_SeptemberActual,Sheet1!S71_A2Code,$AC:$AC,Sheet1!S71_ItemType,$AE:$AE))","v":876044.28},{"$f":"IF(SUMIFS(Sheet1!S71_OctoberActual,Sheet1!S71_A2Code,$AC:$AC,Sheet1!S71_ItemType,$AD:$AD)+SUMIFS(Sheet1!S71_OctoberActual,Sheet1!S71_A2Code,$AC:$AC,Sheet1!S71_ItemType,$AE:$AE)=0,P44/12,SUMIFS(Sheet1!S71_OctoberActual,Sheet1!S71_A2Code,$AC:$AC,Sheet1!S71_ItemType,$AD:$AD)+SUMIFS(Sheet1!S71_OctoberActual,Sheet1!S71_A2Code,$AC:$AC,Sheet1!S71_ItemType,$AE:$AE))","v":11025694.480000002},{"$f":"IF(SUMIFS(Sheet1!S71_NovemberActual,Sheet1!S71_A2Code,$AC:$AC,Sheet1!S71_ItemType,$AD:$AD)+SUMIFS(Sheet1!S71_NovemberActual,Sheet1!S71_A2Code,$AC:$AC,Sheet1!S71_ItemType,$AE:$AE)=0,P44/12,SUMIFS(Sheet1!S71_NovemberActual,Sheet1!S71_A2Code,$AC:$AC,Sheet1!S71_ItemType,$AD:$AD)+SUMIFS(Sheet1!S71_NovemberActual,Sheet1!S71_A2Code,$AC:$AC,Sheet1!S71_ItemType,$AE:$AE))","v":5370043.8099999987},{"$f":"IF(SUMIFS(Sheet1!S71_DecemberActual,Sheet1!S71_A2Code,$AC:$AC,Sheet1!S71_ItemType,$AD:$AD)+SUMIFS(Sheet1!S71_DecemberActual,Sheet1!S71_A2Code,$AC:$AC,Sheet1!S71_ItemType,$AE:$AE)=0,P44/12,SUMIFS(Sheet1!S71_DecemberActual,Sheet1!S71_A2Code,$AC:$AC,Sheet1!S71_ItemType,$AD:$AD)+SUMIFS(Sheet1!S71_DecemberActual,Sheet1!S71_A2Code,$AC:$AC,Sheet1!S71_ItemType,$AE:$AE))","v":5741286.5299999993},{"$f":"$P$44/12","v":5829593.166666667},5829593.166666667,5829593.166666667,5829593.166666667,5829593.166666667,3354392.4066666812,{"$f":"SUM(C44:N44)","v":69955118},{"$f":"'B2-FinPerf SC'!K45","v":69955118},{"$f":"'B2-FinPerf SC'!L45","v":76813179},{"$f":"'B2-FinPerf SC'!M45","v":81119364},null,null,null,null,null,null,null,null,null,null,"4100","IE","IZ"]
["Water management",null,{"$f":"IF(SUMIFS(Sheet1!S71_JulyActual,Sheet1!S71_A2Code,$AC:$AC,Sheet1!S71_ItemType,$AD:$AD)+SUMIFS(Sheet1!S71_JulyActual,Sheet1!S71_A2Code,$AC:$AC,Sheet1!S71_ItemType,$AE:$AE)=0,P45/12,SUMIFS(Sheet1!S71_JulyActual,Sheet1!S71_A2Code,$AC:$AC,Sheet1!S71_ItemType,$AD:$AD)+SUMIFS(Sheet1!S71_JulyActual,Sheet1!S71_A2Code,$AC:$AC,Sheet1!S71_ItemType,$AE:$AE))","v":0},{"$f":"IF(SUMIFS(Sheet1!S71_AugustActual,Sheet1!S71_A2Code,$AC:$AC,Sheet1!S71_ItemType,$AD:$AD)+SUMIFS(Sheet1!S71_AugustActual,Sheet1!S71_A2Code,$AC:$AC,Sheet1!S71_ItemType,$AE:$AE)=0,P45/12,SUMIFS(Sheet1!S71_AugustActual,Sheet1!S71_A2Code,$AC:$AC,Sheet1!S71_ItemType,$AD:$AD)+SUMIFS(Sheet1!S71_AugustActual,Sheet1!S71_A2Code,$AC:$AC,Sheet1!S71_ItemType,$AE:$AE))","v":0},{"$f":"IF(SUMIFS(Sheet1!S71_SeptemberActual,Sheet1!S71_A2Code,$AC:$AC,Sheet1!S71_ItemType,$AD:$AD)+SUMIFS(Sheet1!S71_SeptemberActual,Sheet1!S71_A2Code,$AC:$AC,Sheet1!S71_ItemType,$AE:$AE)=0,P45/12,SUMIFS(Sheet1!S71_SeptemberActual,Sheet1!S71_A2Code,$AC:$AC,Sheet1!S71_ItemType,$AD:$AD)+SUMIFS(Sheet1!S71_SeptemberActual,Sheet1!S71_A2Code,$AC:$AC,Sheet1!S71_ItemType,$AE:$AE))","v":0},{"$f":"IF(SUMIFS(Sheet1!S71_OctoberActual,Sheet1!S71_A2Code,$AC:$AC,Sheet1!S71_ItemType,$AD:$AD)+SUMIFS(Sheet1!S71_OctoberActual,Sheet1!S71_A2Code,$AC:$AC,Sheet1!S71_ItemType,$AE:$AE)=0,P45/12,SUMIFS(Sheet1!S71_OctoberActual,Sheet1!S71_A2Code,$AC:$AC,Sheet1!S71_ItemType,$AD:$AD)+SUMIFS(Sheet1!S71_OctoberActual,Sheet1!S71_A2Code,$AC:$AC,Sheet1!S71_ItemType,$AE:$AE))","v":0},{"$f":"IF(SUMIFS(Sheet1!S71_NovemberActual,Sheet1!S71_A2Code,$AC:$AC,Sheet1!S71_ItemType,$AD:$AD)+SUMIFS(Sheet1!S71_NovemberActual,Sheet1!S71_A2Code,$AC:$AC,Sheet1!S71_ItemType,$AE:$AE)=0,P45/12,SUMIFS(Sheet1!S71_NovemberActual,Sheet1!S71_A2Code,$AC:$AC,Sheet1!S71_ItemType,$AD:$AD)+SUMIFS(Sheet1!S71_NovemberActual,Sheet1!S71_A2Code,$AC:$AC,Sheet1!S71_ItemType,$AE:$AE))","v":0},{"$f":"IF(SUMIFS(Sheet1!S71_DecemberActual,Sheet1!S71_A2Code,$AC:$AC,Sheet1!S71_ItemType,$AD:$AD)+SUMIFS(Sheet1!S71_DecemberActual,Sheet1!S71_A2Code,$AC:$AC,Sheet1!S71_ItemType,$AE:$AE)=0,P45/12,SUMIFS(Sheet1!S71_DecemberActual,Sheet1!S71_A2Code,$AC:$AC,Sheet1!S71_ItemType,$AD:$AD)+SUMIFS(Sheet1!S71_DecemberActual,Sheet1!S71_A2Code,$AC:$AC,Sheet1!S71_ItemType,$AE:$AE))","v":0},{"$f":"$P$45/12","v":0},0,0,0,0,0,null,{"$f":"'B2-FinPerf SC'!K46","v":0},{"$f":"'B2-FinPerf SC'!L46","v":0},{"$f":"'B2-FinPerf SC'!M46","v":0},null,null,null,null,null,null,null,null,null,null,"4200","IE","IZ"]
["Waste water management",null,{"$f":"IF(SUMIFS(Sheet1!S71_JulyActual,Sheet1!S71_A2Code,$AC:$AC,Sheet1!S71_ItemType,$AD:$AD)+SUMIFS(Sheet1!S71_JulyActual,Sheet1!S71_A2Code,$AC:$AC,Sheet1!S71_ItemType,$AE:$AE)=0,P46/12,SUMIFS(Sheet1!S71_JulyActual,Sheet1!S71_A2Code,$AC:$AC,Sheet1!S71_ItemType,$AD:$AD)+SUMIFS(Sheet1!S71_JulyActual,Sheet1!S71_A2Code,$AC:$AC,Sheet1!S71_ItemType,$AE:$AE))","v":233535.83333333334},{"$f":"IF(SUMIFS(Sheet1!S71_AugustActual,Sheet1!S71_A2Code,$AC:$AC,Sheet1!S71_ItemType,$AD:$AD)+SUMIFS(Sheet1!S71_AugustActual,Sheet1!S71_A2Code,$AC:$AC,Sheet1!S71_ItemType,$AE:$AE)=0,P46/12,SUMIFS(Sheet1!S71_AugustActual,Sheet1!S71_A2Code,$AC:$AC,Sheet1!S71_ItemType,$AD:$AD)+SUMIFS(Sheet1!S71_AugustActual,Sheet1!S71_A2Code,$AC:$AC,Sheet1!S71_ItemType,$AE:$AE))","v":490397.83},{"$f":"IF(SUMIFS(Sheet1!S71_SeptemberActual,Sheet1!S71_A2Code,$AC:$AC,Sheet1!S71_ItemType,$AD:$AD)+SUMIFS(Sheet1!S71_SeptemberActual,Sheet1!S71_A2Code,$AC:$AC,Sheet1!S71_ItemType,$AE:$AE)=0,P46/12,SUMIFS(Sheet1!S71_SeptemberActual,Sheet1!S71_A2Code,$AC:$AC,Sheet1!S71_ItemType,$AD:$AD)+SUMIFS(Sheet1!S71_SeptemberActual,Sheet1!S71_A2Code,$AC:$AC,Sheet1!S71_ItemType,$AE:$AE))","v":237283.15},{"$f":"IF(SUMIFS(Sheet1!S71_OctoberActual,Sheet1!S71_A2Code,$AC:$AC,Sheet1!S71_ItemType,$AD:$AD)+SUMIFS(Sheet1!S71_OctoberActual,Sheet1!S71_A2Code,$AC:$AC,Sheet1!S71_ItemType,$AE:$AE)=0,P46/12,SUMIFS(Sheet1!S71_OctoberActual,Sheet1!S71_A2Code,$AC:$AC,Sheet1!S71_ItemType,$AD:$AD)+SUMIFS(Sheet1!S71_OctoberActual,Sheet1!S71_A2Code,$AC:$AC,Sheet1!S71_ItemType,$AE:$AE))","v":245192.56},{"$f":"IF(SUMIFS(Sheet1!S71_NovemberActual,Sheet1!S71_A2Code,$AC:$AC,Sheet1!S71_ItemType,$AD:$AD)+SUMIFS(Sheet1!S71_NovemberActual,Sheet1!S71_A2Code,$AC:$AC,Sheet1!S71_ItemType,$AE:$AE)=0,P46/12,SUMIFS(Sheet1!S71_NovemberActual,Sheet1!S71_A2Code,$AC:$AC,Sheet1!S71_ItemType,$AD:$AD)+SUMIFS(Sheet1!S71_NovemberActual,Sheet1!S71_A2Code,$AC:$AC,Sheet1!S71_ItemType,$AE:$AE))","v":237283.20000000001},{"$f":"IF(SUMIFS(Sheet1!S71_DecemberActual,Sheet1!S71_A2Code,$AC:$AC,Sheet1!S71_ItemType,$AD:$AD)+SUMIFS(Sheet1!S71_DecemberActual,Sheet1!S71_A2Code,$AC:$AC,Sheet1!S71_ItemType,$AE:$AE)=0,P46/12,SUMIFS(Sheet1!S71_DecemberActual,Sheet1!S71_A2Code,$AC:$AC,Sheet1!S71_ItemType,$AD:$AD)+SUMIFS(Sheet1!S71_DecemberActual,Sheet1!S71_A2Code,$AC:$AC,Sheet1!S71_ItemType,$AE:$AE))","v":245192.6},{"$f":"$P$46/12","v":233535.83333333334},233535.83333333334,233535.83333333334,233535.83333333334,233535.83333333334,-54134.340000000317,null,{"$f":"'B2-FinPerf SC'!K47","v":2802430},{"$f":"'B2-FinPerf SC'!L47","v":2886499},{"$f":"'B2-FinPerf SC'!M47","v":2944229},null,null,null,null,null,null,null,null,null,null,"4300","IE","IZ"]
["Waste management",null,{"$f":"IF(SUMIFS(Sheet1!S71_JulyActual,Sheet1!S71_A2Code,$AC:$AC,Sheet1!S71_ItemType,$AD:$AD)+SUMIFS(Sheet1!S71_JulyActual,Sheet1!S71_A2Code,$AC:$AC,Sheet1!S71_ItemType,$AE:$AE)=0,P47/12,SUMIFS(Sheet1!S71_JulyActual,Sheet1!S71_A2Code,$AC:$AC,Sheet1!S71_ItemType,$AD:$AD)+SUMIFS(Sheet1!S71_JulyActual,Sheet1!S71_A2Code,$AC:$AC,Sheet1!S71_ItemType,$AE:$AE))","v":427014.34},{"$f":"IF(SUMIFS(Sheet1!S71_AugustActual,Sheet1!S71_A2Code,$AC:$AC,Sheet1!S71_ItemType,$AD:$AD)+SUMIFS(Sheet1!S71_AugustActual,Sheet1!S71_A2Code,$AC:$AC,Sheet1!S71_ItemType,$AE:$AE)=0,P47/12,SUMIFS(Sheet1!S71_AugustActual,Sheet1!S71_A2Code,$AC:$AC,Sheet1!S71_ItemType,$AD:$AD)+SUMIFS(Sheet1!S71_AugustActual,Sheet1!S71_A2Code,$AC:$AC,Sheet1!S71_ItemType,$AE:$AE))","v":1040082.9},{"$f":"IF(SUMIFS(Sheet1!S71_SeptemberActual,Sheet1!S71_A2Code,$AC:$AC,Sheet1!S71_ItemType,$AD:$AD)+SUMIFS(Sheet1!S71_SeptemberActual,Sheet1!S71_A2Code,$AC:$AC,Sheet1!S71_ItemType,$AE:$AE)=0,P47/12,SUMIFS(Sheet1!S71_SeptemberActual,Sheet1!S71_A2Code,$AC:$AC,Sheet1!S71_ItemType,$AD:$AD)+SUMIFS(Sheet1!S71_SeptemberActual,Sheet1!S71_A2Code,$AC:$AC,Sheet1!S71_ItemType,$AE:$AE))","v":552160.46},{"$f":"IF(SUMIFS(Sheet1!S71_OctoberActual,Sheet1!S71_A2Code,$AC:$AC,Sheet1!S71_ItemType,$AD:$AD)+SUMIFS(Sheet1!S71_OctoberActual,Sheet1!S71_A2Code,$AC:$AC,Sheet1!S71_ItemType,$AE:$AE)=0,P47/12,SUMIFS(Sheet1!S71_OctoberActual,Sheet1!S71_A2Code,$AC:$AC,Sheet1!S71_ItemType,$AD:$AD)+SUMIFS(Sheet1!S71_OctoberActual,Sheet1!S71_A2Code,$AC:$AC,Sheet1!S71_ItemType,$AE:$AE))","v":624125.01},{"$f":"IF(SUMIFS(Sheet1!S71_NovemberActual,Sheet1!S71_A2Code,$AC:$AC,Sheet1!S71_ItemType,$AD:$AD)+SUMIFS(Sheet1!S71_NovemberActual,Sheet1!S71_A2Code,$AC:$AC,Sheet1!S71_ItemType,$AE:$AE)=0,P47/12,SUMIFS(Sheet1!S71_NovemberActual,Sheet1!S71_A2Code,$AC:$AC,Sheet1!S71_ItemType,$AD:$AD)+SUMIFS(Sheet1!S71_NovemberActual,Sheet1!S71_A2Code,$AC:$AC,Sheet1!S71_ItemType,$AE:$AE))","v":1140339.01},{"$f":"IF(SUMIFS(Sheet1!S71_DecemberActual,Sheet1!S71_A2Code,$AC:$AC,Sheet1!S71_ItemType,$AD:$AD)+SUMIFS(Sheet1!S71_DecemberActual,Sheet1!S71_A2Code,$AC:$AC,Sheet1!S71_ItemType,$AE:$AE)=0,P47/12,SUMIFS(Sheet1!S71_DecemberActual,Sheet1!S71_A2Code,$AC:$AC,Sheet1!S71_ItemType,$AD:$AD)+SUMIFS(Sheet1!S71_DecemberActual,Sheet1!S71_A2Code,$AC:$AC,Sheet1!S71_ItemType,$AE:$AE))","v":15667983.889999999},{"$f":"$P$47/12","v":1774942.5833333333},1774942.5833333333,1774942.5833333333,1774942.5833333333,1774942.5833333333,-7027107.5266666599,null,{"$f":"'B2-FinPerf SC'!K48","v":21299311},{"$f":"'B2-FinPerf SC'!L48","v":21857644},{"$f":"'B2-FinPerf SC'!M48","v":31847295},null,null,null,null,null,null,null,null,null,null,"4400","IE","IZ"]
["Other",null,{"$f":"IF(SUMIFS(Sheet1!S71_JulyActual,Sheet1!S71_A2Code,$AC:$AC,Sheet1!S71_ItemType,$AD:$AD)+SUMIFS(Sheet1!S71_JulyActual,Sheet1!S71_A2Code,$AC:$AC,Sheet1!S71_ItemType,$AE:$AE)=0,P48/12,SUMIFS(Sheet1!S71_JulyActual,Sheet1!S71_A2Code,$AC:$AC,Sheet1!S71_ItemType,$AD:$AD)+SUMIFS(Sheet1!S71_JulyActual,Sheet1!S71_A2Code,$AC:$AC,Sheet1!S71_ItemType,$AE:$AE))","v":56340.666666666664},{"$f":"IF(SUMIFS(Sheet1!S71_AugustActual,Sheet1!S71_A2Code,$AC:$AC,Sheet1!S71_ItemType,$AD:$AD)+SUMIFS(Sheet1!S71_AugustActual,Sheet1!S71_A2Code,$AC:$AC,Sheet1!S71_ItemType,$AE:$AE)=0,P48/12,SUMIFS(Sheet1!S71_AugustActual,Sheet1!S71_A2Code,$AC:$AC,Sheet1!S71_ItemType,$AD:$AD)+SUMIFS(Sheet1!S71_AugustActual,Sheet1!S71_A2Code,$AC:$AC,Sheet1!S71_ItemType,$AE:$AE))","v":56340.666666666664},{"$f":"IF(SUMIFS(Sheet1!S71_SeptemberActual,Sheet1!S71_A2Code,$AC:$AC,Sheet1!S71_ItemType,$AD:$AD)+SUMIFS(Sheet1!S71_SeptemberActual,Sheet1!S71_A2Code,$AC:$AC,Sheet1!S71_ItemType,$AE:$AE)=0,P48/12,SUMIFS(Sheet1!S71_SeptemberActual,Sheet1!S71_A2Code,$AC:$AC,Sheet1!S71_ItemType,$AD:$AD)+SUMIFS(Sheet1!S71_SeptemberActual,Sheet1!S71_A2Code,$AC:$AC,Sheet1!S71_ItemType,$AE:$AE))","v":56340.666666666664},{"$f":"IF(SUMIFS(Sheet1!S71_OctoberActual,Sheet1!S71_A2Code,$AC:$AC,Sheet1!S71_ItemType,$AD:$AD)+SUMIFS(Sheet1!S71_OctoberActual,Sheet1!S71_A2Code,$AC:$AC,Sheet1!S71_ItemType,$AE:$AE)=0,P48/12,SUMIFS(Sheet1!S71_OctoberActual,Sheet1!S71_A2Code,$AC:$AC,Sheet1!S71_ItemType,$AD:$AD)+SUMIFS(Sheet1!S71_OctoberActual,Sheet1!S71_A2Code,$AC:$AC,Sheet1!S71_ItemType,$AE:$AE))","v":56340.666666666664},{"$f":"IF(SUMIFS(Sheet1!S71_NovemberActual,Sheet1!S71_A2Code,$AC:$AC,Sheet1!S71_ItemType,$AD:$AD)+SUMIFS(Sheet1!S71_NovemberActual,Sheet1!S71_A2Code,$AC:$AC,Sheet1!S71_ItemType,$AE:$AE)=0,P48/12,SUMIFS(Sheet1!S71_NovemberActual,Sheet1!S71_A2Code,$AC:$AC,Sheet1!S71_ItemType,$AD:$AD)+SUMIFS(Sheet1!S71_NovemberActual,Sheet1!S71_A2Code,$AC:$AC,Sheet1!S71_ItemType,$AE:$AE))","v":20600},{"$f":"IF(SUMIFS(Sheet1!S71_DecemberActual,Sheet1!S71_A2Code,$AC:$AC,Sheet1!S71_ItemType,$AD:$AD)+SUMIFS(Sheet1!S71_DecemberActual,Sheet1!S71_A2Code,$AC:$AC,Sheet1!S71_ItemType,$AE:$AE)=0,P48/12,SUMIFS(Sheet1!S71_DecemberActual,Sheet1!S71_A2Code,$AC:$AC,Sheet1!S71_ItemType,$AD:$AD)+SUMIFS(Sheet1!S71_DecemberActual,Sheet1!S71_A2Code,$AC:$AC,Sheet1!S71_ItemType,$AE:$AE))","v":22000},{"$f":"$P$48/12","v":56340.666666666664},56340.666666666664,56340.666666666664,56340.666666666664,56340.666666666664,126422,null,{"$f":"'B2-FinPerf SC'!K49","v":676088},{"$f":"'B2-FinPerf SC'!L49","v":456913},{"$f":"'B2-FinPerf SC'!M49","v":473146},null,null,null,null,null,null,null,null,null,null,"5000","IE","IZ"]
["Total Expenditure - Functional",null,{"$f":"C29+C33+C39+C43+C48","v":23155025.406666666},{"$f":"D29+D33+D39+D43+D48","v":41008341.43},{"$f":"E29+E33+E39+E43+E48","v":25842093.620000001},{"$f":"F29+F33+F39+F43+F48","v":38017580.57333333},34460702.61666666,61195932.740000002,38475001.25,38475001.25,38475001.25,38475001.25,{"$f":"M29+M33+M39+M43+M48","v":38475001.25},45645332.363333374,377887857,461700015,449339045,459589147]
[]
["Surplus/ (Deficit) 1.",null,{"$f":"C26-C49","v":91826080.553333327},5556915.5933333412,-9645331.1866666675,-23560602.969999999,31157022.946666673,41304920.793333329,2322650.6666666642,2322650.6666666642,2322650.6666666642,2322650.6666666642,2322650.6666666642,-120380451.06333326,111683966,27871808,44553274,47086759]
[{"$f":"head27a","v":"References"}]
["1. Surplus (Deficit) must reconcile with budget table A3 and monthly budget statement table C3"]

{"sheet":"SB14","index":50,"n_rows":57,"n_cols":29,"rows_kept":57,"cut":false,"hidden":false,"merged":[[1,0,2,0],[1,1,2,1],[1,2,1,13]]}
[{"$f":"muni&\" - \"&ADJB14&\" - \"&Date","v":"KZN291 Mandeni - Supporting Table SB14 Adjustments Budget - monthly revenue and expenditure - 08-04-2025"}]
[{"$f":"desc","v":"Description"},{"$f":"head27","v":"Ref"},{"$f":"Head2","v":"Budget Year 2024/25"},null,null,null,null,null,null,null,null,null,null,null,null,"Medium Term Revenue and Expenditure Framework"]
[null,null,"July","August","Sept.","October","November","December","January","February","March","April","May","June","Full year budget",{"$f":"Head9","v":"Budget Year 2024/25"},{"$f":"Head10","v":"Budget Year +1 2025/26"},{"$f":"Head11","v":"Budget Year +2 2026/27"}]
["R thousands",null,{"$f":"Head5A","v":"Outcome"},"Outcome","Outcome","Outcome","Outcome","Outcome",{"$f":"Head7","v":"Adjusted Budget"},"Adjusted Budget","Adjusted Budget","Adjusted Budget","Adjusted Budget","Adjusted Budget",null,{"$f":"Head7","v":"Adjusted Budget"},{"$f":"Head7","v":"Adjusted Budget"},{"$f":"Head7","v":"Adjusted Budget"}]
["Revenue By Source"]
["Exchange Revenue"]
["Service charges - Electricity",null,{"$f":"IF(-SUMIFS(Sheet1!S71_JulyActual,Sheet1!S71_A4Code,$AC:$AC)=0,P7/12,-SUMIFS(Sheet1!S71_JulyActual,Sheet1!S71_A4Code,$AC:$AC))","v":5884622.0600000005},{"$f":"IF(-SUMIFS(Sheet1!S71_AugustActual,Sheet1!S71_A4Code,$AC:$AC)=0,P7/12,-SUMIFS(Sheet1!S71_AugustActual,Sheet1!S71_A4Code,$AC:$AC))","v":7533717.8599999994},{"$f":"IF(-SUMIFS(Sheet1!S71_SeptemberActual,Sheet1!S71_A4Code,$AC:$AC)=0,P7/12,-SUMIFS(Sheet1!S71_SeptemberActual,Sheet1!S71_A4Code,$AC:$AC))","v":6238475.7199999997},{"$f":"IF(-SUMIFS(Sheet1!S71_OctoberActual,Sheet1!S71_A4Code,$AC:$AC)=0,P7/12,-SUMIFS(Sheet1!S71_OctoberActual,Sheet1!S71_A4Code,$AC:$AC))","v":4671482.91},{"$f":"IF(-SUMIFS(Sheet1!S71_NovemberActual,Sheet1!S71_A4Code,$AC:$AC)=0,P7/12,-SUMIFS(Sheet1!S71_NovemberActual,Sheet1!S71_A4Code,$AC:$AC))","v":4990842.24},{"$f":"IF(-SUMIFS(Sheet1!S71_DecemberActual,Sheet1!S71_A4Code,$AC:$AC)=0,P7/12,-SUMIFS(Sheet1!S71_DecemberActual,Sheet1!S71_A4Code,$AC:$AC))","v":5500503.4699999997},{"$f":"$P$7/12","v":6028452.583333333},6028452.583333333,6028452.583333333,6028452.583333333,6028452.583333333,{"$f":"P7-SUM(C7:M7)","v":7379523.823333323},{"$f":"SUM(C7:N7)","v":72341431},{"$f":"'B4-FinPerf RE'!K8","v":72341431},{"$f":"'B4-FinPerf RE'!L8","v":75479158},{"$f":"'B4-FinPerf RE'!M8","v":79636201},null,null,null,null,null,null,null,null,null,null,"0300"]
["Service charges - Water",null,{"$f":"IF(-SUMIFS(Sheet1!S71_JulyActual,Sheet1!S71_A4Code,$AC:$AC)=0,P8/12,-SUMIFS(Sheet1!S71_JulyActual,Sheet1!S71_A4Code,$AC:$AC))","v":0},{"$f":"IF(-SUMIFS(Sheet1!S71_AugustActual,Sheet1!S71_A4Code,$AC:$AC)=0,P8/12,-SUMIFS(Sheet1!S71_AugustActual,Sheet1!S71_A4Code,$AC:$AC))","v":0},{"$f":"IF(-SUMIFS(Sheet1!S71_SeptemberActual,Sheet1!S71_A4Code,$AC:$AC)=0,P8/12,-SUMIFS(Sheet1!S71_SeptemberActual,Sheet1!S71_A4Code,$AC:$AC))","v":0},{"$f":"IF(-SUMIFS(Sheet1!S71_OctoberActual,Sheet1!S71_A4Code,$AC:$AC)=0,P8/12,-SUMIFS(Sheet1!S71_OctoberActual,Sheet1!S71_A4Code,$AC:$AC))","v":0},{"$f":"IF(-SUMIFS(Sheet1!S71_NovemberActual,Sheet1!S71_A4Code,$AC:$AC)=0,P8/12,-SUMIFS(Sheet1!S71_NovemberActual,Sheet1!S71_A4Code,$AC:$AC))","v":0},{"$f":"IF(-SUMIFS(Sheet1!S71_DecemberActual,Sheet1!S71_A4Code,$AC:$AC)=0,P8/12,-SUMIFS(Sheet1!S71_DecemberActual,Sheet1!S71_A4Code,$AC:$AC))","v":0},{"$f":"$P$8/12","v":0},0,0,0,0,0,0,{"$f":"'B4-FinPerf RE'!K9","v":0},{"$f":"'B4-FinPerf RE'!L9","v":0},{"$f":"'B4-FinPerf RE'!M9","v":0},null,null,null,null,null,null,null,null,null,null,"0400"]
["Service charges - Waste Water Management",null,{"$f":"IF(-SUMIFS(Sheet1!S71_JulyActual,Sheet1!S71_A4Code,$AC:$AC)=0,P9/12,-SUMIFS(Sheet1!S71_JulyActual,Sheet1!S71_A4Code,$AC:$AC))","v":0},{"$f":"IF(-SUMIFS(Sheet1!S71_AugustActual,Sheet1!S71_A4Code,$AC:$AC)=0,P9/12,-SUMIFS(Sheet1!S71_AugustActual,Sheet1!S71_A4Code,$AC:$AC))","v":0},{"$f":"IF(-SUMIFS(Sheet1!S71_SeptemberActual,Sheet1!S71_A4Code,$AC:$AC)=0,P9/12,-SUMIFS(Sheet1!S71_SeptemberActual,Sheet1!S71_A4Code,$AC:$AC))","v":0},{"$f":"IF(-SUMIFS(Sheet1!S71_OctoberActual,Sheet1!S71_A4Code,$AC:$AC)=0,P9/12,-SUMIFS(Sheet1!S71_OctoberActual,Sheet1!S71_A4Code,$AC:$AC))","v":0},{"$f":"IF(-SUMIFS(Sheet1!S71_NovemberActual,Sheet1!S71_A4Code,$AC:$AC)=0,P9/12,-SUMIFS(Sheet1!S71_NovemberActual,Sheet1!S71_A4Code,$AC:$AC))","v":0},{"$f":"IF(-SUMIFS(Sheet1!S71_DecemberActual,Sheet1!S71_A4Code,$AC:$AC)=0,P9/12,-SUMIFS(Sheet1!S71_DecemberActual,Sheet1!S71_A4Code,$AC:$AC))","v":0},{"$f":"$P$9/12","v":0},{"$f":"$P$9/12","v":0},0,0,0,0,0,{"$f":"'B4-FinPerf RE'!K10","v":0},{"$f":"'B4-FinPerf RE'!L10","v":0},{"$f":"'B4-FinPerf RE'!M10","v":0},null,null,null,null,null,null,null,null,null,null,"0500"]
["Service charges - Waste Management",null,{"$f":"IF(-SUMIFS(Sheet1!S71_JulyActual,Sheet1!S71_A4Code,$AC:$AC)=0,P10/12,-SUMIFS(Sheet1!S71_JulyActual,Sheet1!S71_A4Code,$AC:$AC))","v":1104459.71},{"$f":"IF(-SUMIFS(Sheet1!S71_AugustActual,Sheet1!S71_A4Code,$AC:$AC)=0,P10/12,-SUMIFS(Sheet1!S71_AugustActual,Sheet1!S71_A4Code,$AC:$AC))","v":1091855.98},{"$f":"IF(-SUMIFS(Sheet1!S71_SeptemberActual,Sheet1!S71_A4Code,$AC:$AC)=0,P10/12,-SUMIFS(Sheet1!S71_SeptemberActual,Sheet1!S71_A4Code,$AC:$AC))","v":1078030.77},{"$f":"IF(-SUMIFS(Sheet1!S71_OctoberActual,Sheet1!S71_A4Code,$AC:$AC)=0,P10/12,-SUMIFS(Sheet1!S71_OctoberActual,Sheet1!S71_A4Code,$AC:$AC))","v":1095308.71},{"$f":"IF(-SUMIFS(Sheet1!S71_NovemberActual,Sheet1!S71_A4Code,$AC:$AC)=0,P10/12,-SUMIFS(Sheet1!S71_NovemberActual,Sheet1!S71_A4Code,$AC:$AC))","v":1122680.3400000001},{"$f":"IF(-SUMIFS(Sheet1!S71_DecemberActual,Sheet1!S71_A4Code,$AC:$AC)=0,P10/12,-SUMIFS(Sheet1!S71_DecemberActual,Sheet1!S71_A4Code,$AC:$AC))","v":1104298.1300000001},{"$f":"$P$10/12","v":1175510},{"$f":"$P$10/12","v":1175510},1175510,1175510,1175510,1631936.3599999994,14106120,{"$f":"'B4-FinPerf RE'!K11","v":14106120},{"$f":"'B4-FinPerf RE'!L11","v":14755844},{"$f":"'B4-FinPerf RE'!M11","v":15436362},null,null,null,null,null,null,null,null,null,null,"0600"]
["Sale of Goods and Rendering of Services",null,{"$f":"IF(-SUMIFS(Sheet1!S71_JulyActual,Sheet1!S71_A4Code,$AC:$AC)=0,P11/12,-SUMIFS(Sheet1!S71_JulyActual,Sheet1!S71_A4Code,$AC:$AC))","v":1591134.12},{"$f":"IF(-SUMIFS(Sheet1!S71_AugustActual,Sheet1!S71_A4Code,$AC:$AC)=0,P11/12,-SUMIFS(Sheet1!S71_AugustActual,Sheet1!S71_A4Code,$AC:$AC))","v":98021.78},{"$f":"IF(-SUMIFS(Sheet1!S71_SeptemberActual,Sheet1!S71_A4Code,$AC:$AC)=0,P11/12,-SUMIFS(Sheet1!S71_SeptemberActual,Sheet1!S71_A4Code,$AC:$AC))","v":35346.53},{"$f":"IF(-SUMIFS(Sheet1!S71_OctoberActual,Sheet1!S71_A4Code,$AC:$AC)=0,P11/12,-SUMIFS(Sheet1!S71_OctoberActual,Sheet1!S71_A4Code,$AC:$AC))","v":41476.730000000003},{"$f":"IF(-SUMIFS(Sheet1!S71_NovemberActual,Sheet1!S71_A4Code,$AC:$AC)=0,P11/12,-SUMIFS(Sheet1!S71_NovemberActual,Sheet1!S71_A4Code,$AC:$AC))","v":36371.14},{"$f":"IF(-SUMIFS(Sheet1!S71_DecemberActual,Sheet1!S71_A4Code,$AC:$AC)=0,P11/12,-SUMIFS(Sheet1!S71_DecemberActual,Sheet1!S71_A4Code,$AC:$AC))","v":107038.53999999998},{"$f":"$P$11/12","v":229597.91666666666},{"$f":"$P$11/12","v":229597.91666666666},229597.91666666666,229597.91666666666,229597.91666666666,null,null,{"$f":"'B4-FinPerf RE'!K12","v":2755175},{"$f":"'B4-FinPerf RE'!L12","v":8404524},{"$f":"'B4-FinPerf RE'!M12","v":13354482},null,null,null,null,null,null,null,null,null,null,"0700"]
["Agency services",null,{"$f":"IF(-SUMIFS(Sheet1!S71_JulyActual,Sheet1!S71_A4Code,$AC:$AC)=0,P12/12,-SUMIFS(Sheet1!S71_JulyActual,Sheet1!S71_A4Code,$AC:$AC))","v":0},{"$f":"IF(-SUMIFS(Sheet1!S71_AugustActual,Sheet1!S71_A4Code,$AC:$AC)=0,P12/12,-SUMIFS(Sheet1!S71_AugustActual,Sheet1!S71_A4Code,$AC:$AC))","v":0},{"$f":"IF(-SUMIFS(Sheet1!S71_SeptemberActual,Sheet1!S71_A4Code,$AC:$AC)=0,P12/12,-SUMIFS(Sheet1!S71_SeptemberActual,Sheet1!S71_A4Code,$AC:$AC))","v":0},{"$f":"IF(-SUMIFS(Sheet1!S71_OctoberActual,Sheet1!S71_A4Code,$AC:$AC)=0,P12/12,-SUMIFS(Sheet1!S71_OctoberActual,Sheet1!S71_A4Code,$AC:$AC))","v":0},{"$f":"IF(-SUMIFS(Sheet1!S71_NovemberActual,Sheet1!S71_A4Code,$AC:$AC)=0,P12/12,-SUMIFS(Sheet1!S71_NovemberActual,Sheet1!S71_A4Code,$AC:$AC))","v":0},{"$f":"IF(-SUMIFS(Sheet1!S71_DecemberActual,Sheet1!S71_A4Code,$AC:$AC)=0,P12/12,-SUMIFS(Sheet1!S71_DecemberActual,Sheet1!S71_A4Code,$AC:$AC))","v":0},{"$f":"$P$12/12","v":0},{"$f":"$P$12/12","v":0},0,0,0,0,0,{"$f":"'B4-FinPerf RE'!K13","v":0},{"$f":"'B4-FinPerf RE'!L13","v":0},{"$f":"'B4-FinPerf RE'!M13","v":0},null,null,null,null,null,null,null,null,null,null,"0800"]
["Interest",null,{"$f":"IF(-SUMIFS(Sheet1!S71_JulyActual,Sheet1!S71_A4Code,$AC:$AC)=0,P13/12,-SUMIFS(Sheet1!S71_JulyActual,Sheet1!S71_A4Code,$AC:$AC))","v":0},{"$f":"IF(-SUMIFS(Sheet1!S71_AugustActual,Sheet1!S71_A4Code,$AC:$AC)=0,P13/12,-SUMIFS(Sheet1!S71_AugustActual,Sheet1!S71_A4Code,$AC:$AC))","v":0},{"$f":"IF(-SUMIFS(Sheet1!S71_SeptemberActual,Sheet1!S71_A4Code,$AC:$AC)=0,P13/12,-SUMIFS(Sheet1!S71_SeptemberActual,Sheet1!S71_A4Code,$AC:$AC))","v":0},{"$f":"IF(-SUMIFS(Sheet1!S71_OctoberActual,Sheet1!S71_A4Code,$AC:$AC)=0,P13/12,-SUMIFS(Sheet1!S71_OctoberActual,Sheet1!S71_A4Code,$AC:$AC))","v":0},{"$f":"IF(-SUMIFS(Sheet1!S71_NovemberActual,Sheet1!S71_A4Code,$AC:$AC)=0,P13/12,-SUMIFS(Sheet1!S71_NovemberActual,Sheet1!S71_A4Code,$AC:$AC))","v":0},{"$f":"IF(-SUMIFS(Sheet1!S71_DecemberActual,Sheet1!S71_A4Code,$AC:$AC)=0,P13/12,-SUMIFS(Sheet1!S71_DecemberActual,Sheet1!S71_A4Code,$AC:$AC))","v":0},{"$f":"$P$13/12","v":0},{"$f":"$P$13/12","v":0},0,0,0,0,0,{"$f":"'B4-FinPerf RE'!K14","v":0},{"$f":"'B4-FinPerf RE'!L14","v":0},{"$f":"'B4-FinPerf RE'!M14","v":0},null,null,null,null,null,null,null,null,null,null,"0900"]
["Interest earned from Receivables",null,{"$f":"IF(-SUMIFS(Sheet1!S71_JulyActual,Sheet1!S71_A4Code,$AC:$AC)=0,P14/12,-SUMIFS(Sheet1!S71_JulyActual,Sheet1!S71_A4Code,$AC:$AC))","v":116641.5},{"$f":"IF(-SUMIFS(Sheet1!S71_AugustActual,Sheet1!S71_A4Code,$AC:$AC)=0,P14/12,-SUMIFS(Sheet1!S71_AugustActual,Sheet1!S71_A4Code,$AC:$AC))","v":117670.75},{"$f":"IF(-SUMIFS(Sheet1!S71_SeptemberActual,Sheet1!S71_A4Code,$AC:$AC)=0,P14/12,-SUMIFS(Sheet1!S71_SeptemberActual,Sheet1!S71_A4Code,$AC:$AC))","v":119280.27},{"$f":"IF(-SUMIFS(Sheet1!S71_OctoberActual,Sheet1!S71_A4Code,$AC:$AC)=0,P14/12,-SUMIFS(Sheet1!S71_OctoberActual,Sheet1!S71_A4Code,$AC:$AC))","v":120991.03},{"$f":"IF(-SUMIFS(Sheet1!S71_NovemberActual,Sheet1!S71_A4Code,$AC:$AC)=0,P14/12,-SUMIFS(Sheet1!S71_NovemberActual,Sheet1!S71_A4Code,$AC:$AC))","v":123377.93999999999},{"$f":"IF(-SUMIFS(Sheet1!S71_DecemberActual,Sheet1!S71_A4Code,$AC:$AC)=0,P14/12,-SUMIFS(Sheet1!S71_DecemberActual,Sheet1!S71_A4Code,$AC:$AC))","v":123807.32999999999},{"$f":"$P$14/12","v":124982.91666666667},{"$f":"$P$14/12","v":124982.91666666667},124982.91666666667,124982.91666666667,124982.91666666667,153111.59666666668,1499795,{"$f":"'B4-FinPerf RE'!K15","v":1499795},{"$f":"'B4-FinPerf RE'!L15","v":1007083},{"$f":"'B4-FinPerf RE'!M15","v":1053409},null,null,null,null,null,null,null,null,null,null,"1000"]
["Interest earned from Current and Non Current Assets",null,{"$f":"IF(-SUMIFS(Sheet1!S71_JulyActual,Sheet1!S71_A4Code,$AC:$AC)=0,P15/12,-SUMIFS(Sheet1!S71_JulyActual,Sheet1!S71_A4Code,$AC:$AC))","v":2082271.03},{"$f":"IF(-SUMIFS(Sheet1!S71_AugustActual,Sheet1!S71_A4Code,$AC:$AC)=0,P15/12,-SUMIFS(Sheet1!S71_AugustActual,Sheet1!S71_A4Code,$AC:$AC))","v":489440.66},{"$f":"IF(-SUMIFS(Sheet1!S71_SeptemberActual,Sheet1!S71_A4Code,$AC:$AC)=0,P15/12,-SUMIFS(Sheet1!S71_SeptemberActual,Sheet1!S71_A4Code,$AC:$AC))","v":349588.58},{"$f":"IF(-SUMIFS(Sheet1!S71_OctoberActual,Sheet1!S71_A4Code,$AC:$AC)=0,P15/12,-SUMIFS(Sheet1!S71_OctoberActual,Sheet1!S71_A4Code,$AC:$AC))","v":310909.40999999997},{"$f":"IF(-SUMIFS(Sheet1!S71_NovemberActual,Sheet1!S71_A4Code,$AC:$AC)=0,P15/12,-SUMIFS(Sheet1!S71_NovemberActual,Sheet1!S71_A4Code,$AC:$AC))","v":310567.77},{"$f":"IF(-SUMIFS(Sheet1!S71_DecemberActual,Sheet1!S71_A4Code,$AC:$AC)=0,P15/12,-SUMIFS(Sheet1!S71_DecemberActual,Sheet1!S71_A4Code,$AC:$AC))","v":1420785.92},{"$f":"$P$15/12","v":2333333.3333333335},{"$f":"$P$15/12","v":2333333.3333333335},2333333.3333333335,2333333.3333333335,2333333.3333333335,11369769.963333331,28000000,{"$f":"'B4-FinPerf RE'!K16","v":28000000},{"$f":"'B4-FinPerf RE'!L16","v":28840000},{"$f":"'B4-FinPerf RE'!M16","v":29705200},null,null,null,null,null,null,null,null,null,null,"1100"]
["Dividends",null,{"$f":"IF(-SUMIFS(Sheet1!S71_JulyActual,Sheet1!S71_A4Code,$AC:$AC)=0,P16/12,-SUMIFS(Sheet1!S71_JulyActual,Sheet1!S71_A4Code,$AC:$AC))","v":0},{"$f":"IF(-SUMIFS(Sheet1!S71_AugustActual,Sheet1!S71_A4Code,$AC:$AC)=0,P16/12,-SUMIFS(Sheet1!S71_AugustActual,Sheet1!S71_A4Code,$AC:$AC))","v":0},{"$f":"IF(-SUMIFS(Sheet1!S71_SeptemberActual,Sheet1!S71_A4Code,$AC:$AC)=0,P16/12,-SUMIFS(Sheet1!S71_SeptemberActual,Sheet1!S71_A4Code,$AC:$AC))","v":0},{"$f":"IF(-SUMIFS(Sheet1!S71_OctoberActual,Sheet1!S71_A4Code,$AC:$AC)=0,P16/12,-SUMIFS(Sheet1!S71_OctoberActual,Sheet1!S71_A4Code,$AC:$AC))","v":0},{"$f":"IF(-SUMIFS(Sheet1!S71_NovemberActual,Sheet1!S71_A4Code,$AC:$AC)=0,P16/12,-SUMIFS(Sheet1!S71_NovemberActual,Sheet1!S71_A4Code,$AC:$AC))","v":0},{"$f":"IF(-SUMIFS(Sheet1!S71_DecemberActual,Sheet1!S71_A4Code,$AC:$AC)=0,P16/12,-SUMIFS(Sheet1!S71_DecemberActual,Sheet1!S71_A4Code,$AC:$AC))","v":0},{"$f":"$P$16/12","v":0},{"$f":"$P$16/12","v":0},0,0,0,0,0,{"$f":"'B4-FinPerf RE'!K17","v":0},{"$f":"'B4-FinPerf RE'!L17","v":0},{"$f":"'B4-FinPerf RE'!M17","v":0},null,null,null,null,null,null,null,null,null,null,"1200"]
["Rent on Land",null,{"$f":"IF(-SUMIFS(Sheet1!S71_JulyActual,Sheet1!S71_A4Code,$AC:$AC)=0,P17/12,-SUMIFS(Sheet1!S71_JulyActual,Sheet1!S71_A4Code,$AC:$AC))","v":0},{"$f":"IF(-SUMIFS(Sheet1!S71_AugustActual,Sheet1!S71_A4Code,$AC:$AC)=0,P17/12,-SUMIFS(Sheet1!S71_AugustActual,Sheet1!S71_A4Code,$AC:$AC))","v":0},{"$f":"IF(-SUMIFS(Sheet1!S71_SeptemberActual,Sheet1!S71_A4Code,$AC:$AC)=0,P17/12,-SUMIFS(Sheet1!S71_SeptemberActual,Sheet1!S71_A4Code,$AC:$AC))","v":0},{"$f":"IF(-SUMIFS(Sheet1!S71_OctoberActual,Sheet1!S71_A4Code,$AC:$AC)=0,P17/12,-SUMIFS(Sheet1!S71_OctoberActual,Sheet1!S71_A4Code,$AC:$AC))","v":0},{"$f":"IF(-SUMIFS(Sheet1!S71_NovemberActual,Sheet1!S71_A4Code,$AC:$AC)=0,P17/12,-SUMIFS(Sheet1!S71_NovemberActual,Sheet1!S71_A4Code,$AC:$AC))","v":0},{"$f":"IF(-SUMIFS(Sheet1!S71_DecemberActual,Sheet1!S71_A4Code,$AC:$AC)=0,P17/12,-SUMIFS(Sheet1!S71_DecemberActual,Sheet1!S71_A4Code,$AC:$AC))","v":0},{"$f":"$P$17/12","v":0},{"$f":"$P$17/12","v":0},0,0,0,0,0,{"$f":"'B4-FinPerf RE'!K18","v":0},{"$f":"'B4-FinPerf RE'!L18","v":0},{"$f":"'B4-FinPerf RE'!M18","v":0},null,null,null,null,null,null,null,null,null,null,"1300"]
["Rental from Fixed Assets",null,{"$f":"IF(-SUMIFS(Sheet1!S71_JulyActual,Sheet1!S71_A4Code,$AC:$AC)=0,P18/12,-SUMIFS(Sheet1!S71_JulyActual,Sheet1!S71_A4Code,$AC:$AC))","v":52109.760000000002},{"$f":"IF(-SUMIFS(Sheet1!S71_AugustActual,Sheet1!S71_A4Code,$AC:$AC)=0,P18/12,-SUMIFS(Sheet1!S71_AugustActual,Sheet1!S71_A4Code,$AC:$AC))","v":49946.09},{"$f":"IF(-SUMIFS(Sheet1!S71_SeptemberActual,Sheet1!S71_A4Code,$AC:$AC)=0,P18/12,-SUMIFS(Sheet1!S71_SeptemberActual,Sheet1!S71_A4Code,$AC:$AC))","v":39273.369999999995},{"$f":"IF(-SUMIFS(Sheet1!S71_OctoberActual,Sheet1!S71_A4Code,$AC:$AC)=0,P18/12,-SUMIFS(Sheet1!S71_OctoberActual,Sheet1!S71_A4Code,$AC:$AC))","v":95705.61},{"$f":"IF(-SUMIFS(Sheet1!S71_NovemberActual,Sheet1!S71_A4Code,$AC:$AC)=0,P18/12,-SUMIFS(Sheet1!S71_NovemberActual,Sheet1!S71_A4Code,$AC:$AC))","v":57817.1},{"$f":"IF(-SUMIFS(Sheet1!S71_DecemberActual,Sheet1!S71_A4Code,$AC:$AC)=0,P18/12,-SUMIFS(Sheet1!S71_DecemberActual,Sheet1!S71_A4Code,$AC:$AC))","v":42234.03},{"$f":"$P$18/12","v":60326.083333333336},{"$f":"$P$18/12","v":60326.083333333336},60326.083333333336,60326.083333333336,60326.083333333336,85196.623333333409,723913,{"$f":"'B4-FinPerf RE'!K19","v":723913},{"$f":"'B4-FinPerf RE'!L19","v":391113},{"$f":"'B4-FinPerf RE'!M19","v":409104},null,null,null,null,null,null,null,null,null,null,"1400"]
["Licence and permits",null,{"$f":"IF(-SUMIFS(Sheet1!S71_JulyActual,Sheet1!S71_A4Code,$AC:$AC)=0,P19/12,-SUMIFS(Sheet1!S71_JulyActual,Sheet1!S71_A4Code,$AC:$AC))","v":0},{"$f":"IF(-SUMIFS(Sheet1!S71_AugustActual,Sheet1!S71_A4Code,$AC:$AC)=0,P19/12,-SUMIFS(Sheet1!S71_AugustActual,Sheet1!S71_A4Code,$AC:$AC))","v":0},{"$f":"IF(-SUMIFS(Sheet1!S71_SeptemberActual,Sheet1!S71_A4Code,$AC:$AC)=0,P19/12,-SUMIFS(Sheet1!S71_SeptemberActual,Sheet1!S71_A4Code,$AC:$AC))","v":0},{"$f":"IF(-SUMIFS(Sheet1!S71_OctoberActual,Sheet1!S71_A4Code,$AC:$AC)=0,P19/12,-SUMIFS(Sheet1!S71_OctoberActual,Sheet1!S71_A4Code,$AC:$AC))","v":0},{"$f":"IF(-SUMIFS(Sheet1!S71_NovemberActual,Sheet1!S71_A4Code,$AC:$AC)=0,P19/12,-SUMIFS(Sheet1!S71_NovemberActual,Sheet1!S71_A4Code,$AC:$AC))","v":0},{"$f":"IF(-SUMIFS(Sheet1!S71_DecemberActual,Sheet1!S71_A4Code,$AC:$AC)=0,P19/12,-SUMIFS(Sheet1!S71_DecemberActual,Sheet1!S71_A4Code,$AC:$AC))","v":0},{"$f":"$P$19/12","v":0},{"$f":"$P$19/12","v":0},0,0,0,0,0,{"$f":"'B4-FinPerf RE'!K20","v":0},{"$f":"'B4-FinPerf RE'!L20","v":0},{"$f":"'B4-FinPerf RE'!M20","v":0},null,null,null,null,null,null,null,null,null,null,"1500"]
["Operational Revenue",null,{"$f":"IF(-SUMIFS(Sheet1!S71_JulyActual,Sheet1!S71_A4Code,$AC:$AC)=0,P20/12,-SUMIFS(Sheet1!S71_JulyActual,Sheet1!S71_A4Code,$AC:$AC))","v":86491.02},{"$f":"IF(-SUMIFS(Sheet1!S71_AugustActual,Sheet1!S71_A4Code,$AC:$AC)=0,P20/12,-SUMIFS(Sheet1!S71_AugustActual,Sheet1!S71_A4Code,$AC:$AC))","v":7769.57},{"$f":"IF(-SUMIFS(Sheet1!S71_SeptemberActual,Sheet1!S71_A4Code,$AC:$AC)=0,P20/12,-SUMIFS(Sheet1!S71_SeptemberActual,Sheet1!S71_A4Code,$AC:$AC))","v":9226.76},{"$f":"IF(-SUMIFS(Sheet1!S71_OctoberActual,Sheet1!S71_A4Code,$AC:$AC)=0,P20/12,-SUMIFS(Sheet1!S71_OctoberActual,Sheet1!S71_A4Code,$AC:$AC))","v":45653.649999999994},{"$f":"IF(-SUMIFS(Sheet1!S71_NovemberActual,Sheet1!S71_A4Code,$AC:$AC)=0,P20/12,-SUMIFS(Sheet1!S71_NovemberActual,Sheet1!S71_A4Code,$AC:$AC))","v":416573.05000000005},{"$f":"IF(-SUMIFS(Sheet1!S71_DecemberActual,Sheet1!S71_A4Code,$AC:$AC)=0,P20/12,-SUMIFS(Sheet1!S71_DecemberActual,Sheet1!S71_A4Code,$AC:$AC))","v":6364.39},{"$f":"$P$20/12","v":145833.33333333334},{"$f":"$P$20/12","v":145833.33333333334},145833.33333333334,145833.33333333334,145833.33333333334,448754.89333333331,1750000,{"$f":"'B4-FinPerf RE'!K21","v":1750000},{"$f":"'B4-FinPerf RE'!L21","v":1254200},{"$f":"'B4-FinPerf RE'!M21","v":1312924},null,null,null,null,null,null,null,null,null,null,"1600"]
["Non-Exchange Revenue"]
["Property rates",null,{"$f":"IF(-SUMIFS(Sheet1!S71_JulyActual,Sheet1!S71_A4Code,$AC:$AC)=0,P22/12,-SUMIFS(Sheet1!S71_JulyActual,Sheet1!S71_A4Code,$AC:$AC))","v":552.44000000000005},{"$f":"IF(-SUMIFS(Sheet1!S71_AugustActual,Sheet1!S71_A4Code,$AC:$AC)=0,P22/12,-SUMIFS(Sheet1!S71_AugustActual,Sheet1!S71_A4Code,$AC:$AC))","v":34147935.980000004},{"$f":"IF(-SUMIFS(Sheet1!S71_SeptemberActual,Sheet1!S71_A4Code,$AC:$AC)=0,P22/12,-SUMIFS(Sheet1!S71_SeptemberActual,Sheet1!S71_A4Code,$AC:$AC))","v":3303859.9399999995},{"$f":"IF(-SUMIFS(Sheet1!S71_OctoberActual,Sheet1!S71_A4Code,$AC:$AC)=0,P22/12,-SUMIFS(Sheet1!S71_OctoberActual,Sheet1!S71_A4Code,$AC:$AC))","v":3281411.71},{"$f":"IF(-SUMIFS(Sheet1!S71_NovemberActual,Sheet1!S71_A4Code,$AC:$AC)=0,P22/12,-SUMIFS(Sheet1!S71_NovemberActual,Sheet1!S71_A4Code,$AC:$AC))","v":3280859.5599999996},{"$f":"IF(-SUMIFS(Sheet1!S71_DecemberActual,Sheet1!S71_A4Code,$AC:$AC)=0,P22/12,-SUMIFS(Sheet1!S71_DecemberActual,Sheet1!S71_A4Code,$AC:$AC))","v":3285405.0599999996},{"$f":"$P$22/12","v":5186381.75},{"$f":"$P$22/12","v":5186381.75},5186381.75,5186381.75,5186381.75,{"$f":"P22-SUM(C22:M22)","v":-10995352.439999998},{"$f":"SUM(C22:N22)","v":62236581},{"$f":"'B4-FinPerf RE'!K23","v":62236581},{"$f":"'B4-FinPerf RE'!L23","v":65099484},{"$f":"'B4-FinPerf RE'!M23","v":69094045},null,null,null,null,null,null,null,null,null,null,"1800"]
["Surcharges and Taxes",null,{"$f":"IF(-SUMIFS(Sheet1!S71_JulyActual,Sheet1!S71_A4Code,$AC:$AC)=0,P23/12,-SUMIFS(Sheet1!S71_JulyActual,Sheet1!S71_A4Code,$AC:$AC))","v":0},{"$f":"IF(-SUMIFS(Sheet1!S71_AugustActual,Sheet1!S71_A4Code,$AC:$AC)=0,P23/12,-SUMIFS(Sheet1!S71_AugustActual,Sheet1!S71_A4Code,$AC:$AC))","v":0},{"$f":"IF(-SUMIFS(Sheet1!S71_SeptemberActual,Sheet1!S71_A4Code,$AC:$AC)=0,P23/12,-SUMIFS(Sheet1!S71_SeptemberActual,Sheet1!S71_A4Code,$AC:$AC))","v":0},{"$f":"IF(-SUMIFS(Sheet1!S71_OctoberActual,Sheet1!S71_A4Code,$AC:$AC)=0,P23/12,-SUMIFS(Sheet1!S71_OctoberActual,Sheet1!S71_A4Code,$AC:$AC))","v":0},{"$f":"IF(-SUMIFS(Sheet1!S71_NovemberActual,Sheet1!S71_A4Code,$AC:$AC)=0,P23/12,-SUMIFS(Sheet1!S71_NovemberActual,Sheet1!S71_A4Code,$AC:$AC))","v":0},{"$f":"IF(-SUMIFS(Sheet1!S71_DecemberActual,Sheet1!S71_A4Code,$AC:$AC)=0,P23/12,-SUMIFS(Sheet1!S71_DecemberActual,Sheet1!S71_A4Code,$AC:$AC))","v":0},{"$f":"$P$23/12","v":0},{"$f":"$P$23/12","v":0},0,0,0,0,0,{"$f":"'B4-FinPerf RE'!K24","v":0},{"$f":"'B4-FinPerf RE'!L24","v":0},{"$f":"'B4-FinPerf RE'!M24","v":0},null,null,null,null,null,null,null,null,null,null,"1900"]
["Fines, penalties and forfeits",null,{"$f":"IF(-SUMIFS(Sheet1!S71_JulyActual,Sheet1!S71_A4Code,$AC:$AC)=0,P24/12,-SUMIFS(Sheet1!S71_JulyActual,Sheet1!S71_A4Code,$AC:$AC))","v":6700},{"$f":"IF(-SUMIFS(Sheet1!S71_AugustActual,Sheet1!S71_A4Code,$AC:$AC)=0,P24/12,-SUMIFS(Sheet1!S71_AugustActual,Sheet1!S71_A4Code,$AC:$AC))","v":5900},{"$f":"IF(-SUMIFS(Sheet1!S71_SeptemberActual,Sheet1!S71_A4Code,$AC:$AC)=0,P24/12,-SUMIFS(Sheet1!S71_SeptemberActual,Sheet1!S71_A4Code,$AC:$AC))","v":8853},{"$f":"IF(-SUMIFS(Sheet1!S71_OctoberActual,Sheet1!S71_A4Code,$AC:$AC)=0,P24/12,-SUMIFS(Sheet1!S71_OctoberActual,Sheet1!S71_A4Code,$AC:$AC))","v":11814.87},{"$f":"IF(-SUMIFS(Sheet1!S71_NovemberActual,Sheet1!S71_A4Code,$AC:$AC)=0,P24/12,-SUMIFS(Sheet1!S71_NovemberActual,Sheet1!S71_A4Code,$AC:$AC))","v":5908},{"$f":"IF(-SUMIFS(Sheet1!S71_DecemberActual,Sheet1!S71_A4Code,$AC:$AC)=0,P24/12,-SUMIFS(Sheet1!S71_DecemberActual,Sheet1!S71_A4Code,$AC:$AC))","v":4424},{"$f":"$P$24/12","v":109207.5},{"$f":"$P$24/12","v":109207.5},109207.5,109207.5,109207.5,720852.63,1310490,{"$f":"'B4-FinPerf RE'!K25","v":1310490},{"$f":"'B4-FinPerf RE'!L25","v":1370770},{"$f":"'B4-FinPerf RE'!M25","v":1433831},null,null,null,null,null,null,null,null,null,null,"2000"]
["Licences or permits",null,{"$f":"IF(-SUMIFS(Sheet1!S71_JulyActual,Sheet1!S71_A4Code,$AC:$AC)=0,P25/12,-SUMIFS(Sheet1!S71_JulyActual,Sheet1!S71_A4Code,$AC:$AC))","v":58462.6},{"$f":"IF(-SUMIFS(Sheet1!S71_AugustActual,Sheet1!S71_A4Code,$AC:$AC)=0,P25/12,-SUMIFS(Sheet1!S71_AugustActual,Sheet1!S71_A4Code,$AC:$AC))","v":71259.14},{"$f":"IF(-SUMIFS(Sheet1!S71_SeptemberActual,Sheet1!S71_A4Code,$AC:$AC)=0,P25/12,-SUMIFS(Sheet1!S71_SeptemberActual,Sheet1!S71_A4Code,$AC:$AC))","v":60876.51},{"$f":"IF(-SUMIFS(Sheet1!S71_OctoberActual,Sheet1!S71_A4Code,$AC:$AC)=0,P25/12,-SUMIFS(Sheet1!S71_OctoberActual,Sheet1!S71_A4Code,$AC:$AC))","v":74233.049999999988},{"$f":"IF(-SUMIFS(Sheet1!S71_NovemberActual,Sheet1!S71_A4Code,$AC:$AC)=0,P25/12,-SUMIFS(Sheet1!S71_NovemberActual,Sheet1!S71_A4Code,$AC:$AC))","v":121606.84},{"$f":"IF(-SUMIFS(Sheet1!S71_DecemberActual,Sheet1!S71_A4Code,$AC:$AC)=0,P25/12,-SUMIFS(Sheet1!S71_DecemberActual,Sheet1!S71_A4Code,$AC:$AC))","v":114210.33},{"$f":"$P$25/12","v":79710.166666666672},{"$f":"$P$25/12","v":79710.166666666672},79710.166666666672,79710.166666666672,79710.166666666672,57322.696666666772,956522,{"$f":"'B4-FinPerf RE'!K26","v":956522},{"$f":"'B4-FinPerf RE'!L26","v":1000522},{"$f":"'B4-FinPerf RE'!M26","v":1046546},null,null,null,null,null,null,null,null,null,null,"2100"]
["Transfer and subsidies - Operational",null,{"$f":"IF(-SUMIFS(Sheet1!S71_JulyActual,Sheet1!S71_A4Code,$AC:$AC)=0,P26/12,-SUMIFS(Sheet1!S71_JulyActual,Sheet1!S71_A4Code,$AC:$AC))","v":102205187.79000001},{"$f":"IF(-SUMIFS(Sheet1!S71_AugustActual,Sheet1!S71_A4Code,$AC:$AC)=0,P26/12,-SUMIFS(Sheet1!S71_AugustActual,Sheet1!S71_A4Code,$AC:$AC))","v":896047.90999999992},{"$f":"IF(-SUMIFS(Sheet1!S71_SeptemberActual,Sheet1!S71_A4Code,$AC:$AC)=0,P26/12,-SUMIFS(Sheet1!S71_SeptemberActual,Sheet1!S71_A4Code,$AC:$AC))","v":876400.24},{"$f":"IF(-SUMIFS(Sheet1!S71_OctoberActual,Sheet1!S71_A4Code,$AC:$AC)=0,P26/12,-SUMIFS(Sheet1!S71_OctoberActual,Sheet1!S71_A4Code,$AC:$AC))","v":1039250.7600000001},{"$f":"IF(-SUMIFS(Sheet1!S71_NovemberActual,Sheet1!S71_A4Code,$AC:$AC)=0,P26/12,-SUMIFS(Sheet1!S71_NovemberActual,Sheet1!S71_A4Code,$AC:$AC))","v":52315213.890000001},{"$f":"IF(-SUMIFS(Sheet1!S71_DecemberActual,Sheet1!S71_A4Code,$AC:$AC)=0,P26/12,-SUMIFS(Sheet1!S71_DecemberActual,Sheet1!S71_A4Code,$AC:$AC))","v":82100449.430000007},{"$f":"$P$26/12","v":21096885},{"$f":"$P$26/12","v":21096885},21096885,21096885,21096885,-91754355.019999981,253162620,{"$f":"'B4-FinPerf RE'!K27","v":253162620},{"$f":"'B4-FinPerf RE'!L27","v":252337450},{"$f":"'B4-FinPerf RE'!M27","v":246760150},null,null,null,null,null,null,null,null,null,null,"2200"]
["Interest",null,{"$f":"IF(-SUMIFS(Sheet1!S71_JulyActual,Sheet1!S71_A4Code,$AC:$AC)=0,P27/12,-SUMIFS(Sheet1!S71_JulyActual,Sheet1!S71_A4Code,$AC:$AC))","v":273925.92},{"$f":"IF(-SUMIFS(Sheet1!S71_AugustActual,Sheet1!S71_A4Code,$AC:$AC)=0,P27/12,-SUMIFS(Sheet1!S71_AugustActual,Sheet1!S71_A4Code,$AC:$AC))","v":270431.99},{"$f":"IF(-SUMIFS(Sheet1!S71_SeptemberActual,Sheet1!S71_A4Code,$AC:$AC)=0,P27/12,-SUMIFS(Sheet1!S71_SeptemberActual,Sheet1!S71_A4Code,$AC:$AC))","v":256510.4},{"$f":"IF(-SUMIFS(Sheet1!S71_OctoberActual,Sheet1!S71_A4Code,$AC:$AC)=0,P27/12,-SUMIFS(Sheet1!S71_OctoberActual,Sheet1!S71_A4Code,$AC:$AC))","v":309095.71999999997},{"$f":"IF(-SUMIFS(Sheet1!S71_NovemberActual,Sheet1!S71_A4Code,$AC:$AC)=0,P27/12,-SUMIFS(Sheet1!S71_NovemberActual,Sheet1!S71_A4Code,$AC:$AC))","v":306537.90000000002},{"$f":"IF(-SUMIFS(Sheet1!S71_DecemberActual,Sheet1!S71_A4Code,$AC:$AC)=0,P27/12,-SUMIFS(Sheet1!S71_DecemberActual,Sheet1!S71_A4Code,$AC:$AC))","v":309120.09999999998},{"$f":"$P$27/12","v":275644.75},{"$f":"$P$27/12","v":275644.75},275644.75,275644.75,275644.75,203891.2200000002,3307737,{"$f":"'B4-FinPerf RE'!K28","v":3307737},{"$f":"'B4-FinPerf RE'!L28","v":3112621},{"$f":"'B4-FinPerf RE'!M28","v":3255802},null,null,null,null,null,null,null,null,null,null,"2300"]
["Fuel Levy",null,{"$f":"IF(-SUMIFS(Sheet1!S71_JulyActual,Sheet1!S71_A4Code,$AC:$AC)=0,P28/12,-SUMIFS(Sheet1!S71_JulyActual,Sheet1!S71_A4Code,$AC:$AC))","v":0},{"$f":"IF(-SUMIFS(Sheet1!S71_AugustActual,Sheet1!S71_A4Code,$AC:$AC)=0,P28/12,-SUMIFS(Sheet1!S71_AugustActual,Sheet1!S71_A4Code,$AC:$AC))","v":0},{"$f":"IF(-SUMIFS(Sheet1!S71_SeptemberActual,Sheet1!S71_A4Code,$AC:$AC)=0,P28/12,-SUMIFS(Sheet1!S71_SeptemberActual,Sheet1!S71_A4Code,$AC:$AC))","v":0},{"$f":"IF(-SUMIFS(Sheet1!S71_OctoberActual,Sheet1!S71_A4Code,$AC:$AC)=0,P28/12,-SUMIFS(Sheet1!S71_OctoberActual,Sheet1!S71_A4Code,$AC:$AC))","v":0},{"$f":"IF(-SUMIFS(Sheet1!S71_NovemberActual,Sheet1!S71_A4Code,$AC:$AC)=0,P28/12,-SUMIFS(Sheet1!S71_NovemberActual,Sheet1!S71_A4Code,$AC:$AC))","v":0},{"$f":"IF(-SUMIFS(Sheet1!S71_DecemberActual,Sheet1!S71_A4Code,$AC:$AC)=0,P28/12,-SUMIFS(Sheet1!S71_DecemberActual,Sheet1!S71_A4Code,$AC:$AC))","v":0},{"$f":"$P$28/12","v":0},{"$f":"$P$28/12","v":0},0,0,0,0,0,{"$f":"'B4-FinPerf RE'!K29","v":0},{"$f":"'B4-FinPerf RE'!L29","v":0},{"$f":"'B4-FinPerf RE'!M29","v":0},null,null,null,null,null,null,null,null,null,null,"2400"]
["Operational Revenue",null,{"$f":"IF(-SUMIFS(Sheet1!S71_JulyActual,Sheet1!S71_A4Code,$AC:$AC)=0,P29/12,-SUMIFS(Sheet1!S71_JulyActual,Sheet1!S71_A4Code,$AC:$AC))","v":0},{"$f":"IF(-SUMIFS(Sheet1!S71_AugustActual,Sheet1!S71_A4Code,$AC:$AC)=0,P29/12,-SUMIFS(Sheet1!S71_AugustActual,Sheet1!S71_A4Code,$AC:$AC))","v":0},{"$f":"IF(-SUMIFS(Sheet1!S71_SeptemberActual,Sheet1!S71_A4Code,$AC:$AC)=0,P29/12,-SUMIFS(Sheet1!S71_SeptemberActual,Sheet1!S71_A4Code,$AC:$AC))","v":0},{"$f":"IF(-SUMIFS(Sheet1!S71_OctoberActual,Sheet1!S71_A4Code,$AC:$AC)=0,P29/12,-SUMIFS(Sheet1!S71_OctoberActual,Sheet1!S71_A4Code,$AC:$AC))","v":0},{"$f":"IF(-SUMIFS(Sheet1!S71_NovemberActual,Sheet1!S71_A4Code,$AC:$AC)=0,P29/12,-SUMIFS(Sheet1!S71_NovemberActual,Sheet1!S71_A4Code,$AC:$AC))","v":0},{"$f":"IF(-SUMIFS(Sheet1!S71_DecemberActual,Sheet1!S71_A4Code,$AC:$AC)=0,P29/12,-SUMIFS(Sheet1!S71_DecemberActual,Sheet1!S71_A4Code,$AC:$AC))","v":0},{"$f":"$P$29/12","v":0},{"$f":"$P$29/12","v":0},0,0,0,0,0,{"$f":"'B4-FinPerf RE'!K30","v":0},{"$f":"'B4-FinPerf RE'!L30","v":0},{"$f":"'B4-FinPerf RE'!M30","v":0},null,null,null,null,null,null,null,null,null,null,"2500"]
["Gains on disposal of Assets",null,{"$f":"IF(-SUMIFS(Sheet1!S71_JulyActual,Sheet1!S71_A4Code,$AC:$AC)=0,P30/12,-SUMIFS(Sheet1!S71_JulyActual,Sheet1!S71_A4Code,$AC:$AC))","v":0},{"$f":"IF(-SUMIFS(Sheet1!S71_AugustActual,Sheet1!S71_A4Code,$AC:$AC)=0,P30/12,-SUMIFS(Sheet1!S71_AugustActual,Sheet1!S71_A4Code,$AC:$AC))","v":0},{"$f":"IF(-SUMIFS(Sheet1!S71_SeptemberActual,Sheet1!S71_A4Code,$AC:$AC)=0,P30/12,-SUMIFS(Sheet1!S71_SeptemberActual,Sheet1!S71_A4Code,$AC:$AC))","v":0},{"$f":"IF(-SUMIFS(Sheet1!S71_OctoberActual,Sheet1!S71_A4Code,$AC:$AC)=0,P30/12,-SUMIFS(Sheet1!S71_OctoberActual,Sheet1!S71_A4Code,$AC:$AC))","v":0},{"$f":"IF(-SUMIFS(Sheet1!S71_NovemberActual,Sheet1!S71_A4Code,$AC:$AC)=0,P30/12,-SUMIFS(Sheet1!S71_NovemberActual,Sheet1!S71_A4Code,$AC:$AC))","v":0},{"$f":"IF(-SUMIFS(Sheet1!S71_DecemberActual,Sheet1!S71_A4Code,$AC:$AC)=0,P30/12,-SUMIFS(Sheet1!S71_DecemberActual,Sheet1!S71_A4Code,$AC:$AC))","v":0},{"$f":"$P$30/12","v":0},{"$f":"$P$30/12","v":0},0,0,0,0,0,{"$f":"'B4-FinPerf RE'!K31","v":0},{"$f":"'B4-FinPerf RE'!L31","v":0},{"$f":"'B4-FinPerf RE'!M31","v":0},null,null,null,null,null,null,null,null,null,null,"2600"]
["Other Gains",null,{"$f":"IF(-SUMIFS(Sheet1!S71_JulyActual,Sheet1!S71_A4Code,$AC:$AC)=0,P31/12,-SUMIFS(Sheet1!S71_JulyActual,Sheet1!S71_A4Code,$AC:$AC))","v":0},{"$f":"IF(-SUMIFS(Sheet1!S71_AugustActual,Sheet1!S71_A4Code,$AC:$AC)=0,P31/12,-SUMIFS(Sheet1!S71_AugustActual,Sheet1!S71_A4Code,$AC:$AC))","v":0},{"$f":"IF(-SUMIFS(Sheet1!S71_SeptemberActual,Sheet1!S71_A4Code,$AC:$AC)=0,P31/12,-SUMIFS(Sheet1!S71_SeptemberActual,Sheet1!S71_A4Code,$AC:$AC))","v":0},{"$f":"IF(-SUMIFS(Sheet1!S71_OctoberActual,Sheet1!S71_A4Code,$AC:$AC)=0,P31/12,-SUMIFS(Sheet1!S71_OctoberActual,Sheet1!S71_A4Code,$AC:$AC))","v":0},{"$f":"IF(-SUMIFS(Sheet1!S71_NovemberActual,Sheet1!S71_A4Code,$AC:$AC)=0,P31/12,-SUMIFS(Sheet1!S71_NovemberActual,Sheet1!S71_A4Code,$AC:$AC))","v":0},{"$f":"IF(-SUMIFS(Sheet1!S71_DecemberActual,Sheet1!S71_A4Code,$AC:$AC)=0,P31/12,-SUMIFS(Sheet1!S71_DecemberActual,Sheet1!S71_A4Code,$AC:$AC))","v":0},{"$f":"$P$31/12","v":0},{"$f":"$P$31/12","v":0},0,0,0,0,0,{"$f":"'B4-FinPerf RE'!K32","v":0},{"$f":"'B4-FinPerf RE'!L32","v":0},{"$f":"'B4-FinPerf RE'!M32","v":0},null,null,null,null,null,null,null,null,null,null,"2700"]
["Discontinued Operations",null,{"$f":"IF(-SUMIFS(Sheet1!S71_JulyActual,Sheet1!S71_A4Code,$AC:$AC)=0,P32/12,-SUMIFS(Sheet1!S71_JulyActual,Sheet1!S71_A4Code,$AC:$AC))","v":0},{"$f":"IF(-SUMIFS(Sheet1!S71_AugustActual,Sheet1!S71_A4Code,$AC:$AC)=0,P32/12,-SUMIFS(Sheet1!S71_AugustActual,Sheet1!S71_A4Code,$AC:$AC))","v":0},{"$f":"IF(-SUMIFS(Sheet1!S71_SeptemberActual,Sheet1!S71_A4Code,$AC:$AC)=0,P32/12,-SUMIFS(Sheet1!S71_SeptemberActual,Sheet1!S71_A4Code,$AC:$AC))","v":0},{"$f":"IF(-SUMIFS(Sheet1!S71_OctoberActual,Sheet1!S71_A4Code,$AC:$AC)=0,P32/12,-SUMIFS(Sheet1!S71_OctoberActual,Sheet1!S71_A4Code,$AC:$AC))","v":0},{"$f":"IF(-SUMIFS(Sheet1!S71_NovemberActual,Sheet1!S71_A4Code,$AC:$AC)=0,P32/12,-SUMIFS(Sheet1!S71_NovemberActual,Sheet1!S71_A4Code,$AC:$AC))","v":0},{"$f":"IF(-SUMIFS(Sheet1!S71_DecemberActual,Sheet1!S71_A4Code,$AC:$AC)=0,P32/12,-SUMIFS(Sheet1!S71_DecemberActual,Sheet1!S71_A4Code,$AC:$AC))","v":0},{"$f":"$P$32/12","v":0},{"$f":"$P$32/12","v":0},0,0,0,0,0,{"$f":"'B4-FinPerf RE'!K33","v":0},{"$f":"'B4-FinPerf RE'!L33","v":0},{"$f":"'B4-FinPerf RE'!M33","v":0},null,null,null,null,null,null,null,null,null,null,"2800"]
["Total Revenue",null,{"$f":"SUM(C7:C10)+SUM(C12:C21)","v":9326595.0800000001},{"$f":"SUM(D7:D11)+SUM(D12:D32)","v":44779997.710000001},{"$f":"SUM(E7:E11)+SUM(E12:E32)","v":12375722.09},11097334.16,63088355.769999996,94118640.730000004,36845865.333333336,36845865.333333336,36845865.333333336,36845865.333333336,36845865.333333336,{"$f":"SUM(N7:N11)+SUM(N12:N32)","v":-80699347.653333321},{"$f":"SUM(O7:O10)+SUM(O12:O21)","v":118421259},{"$f":"SUM(P7:P11)+SUM(P12:P32)","v":442150384},{"$f":"SUM(Q7:Q11)+SUM(Q12:Q32)","v":453052769},462498056]
[]
["Expenditure By Type"]
["Employee related costs",null,{"$f":"IF(SUMIFS(Sheet1!S71_JulyActual,Sheet1!S71_A4Code,$AC:$AC)=0,P36/12,SUMIFS(Sheet1!S71_JulyActual,Sheet1!S71_A4Code,$AC:$AC))","v":10438365.810000004},{"$f":"IF(SUMIFS(Sheet1!S71_AugustActual,Sheet1!S71_A4Code,$AC:$AC)=0,P36/12,SUMIFS(Sheet1!S71_AugustActual,Sheet1!S71_A4Code,$AC:$AC))","v":10897864.060000001},{"$f":"IF(SUMIFS(Sheet1!S71_SeptemberActual,Sheet1!S71_A4Code,$AC:$AC)=0,P36/12,SUMIFS(Sheet1!S71_SeptemberActual,Sheet1!S71_A4Code,$AC:$AC))","v":11296301.690000005},{"$f":"IF(SUMIFS(Sheet1!S71_OctoberActual,Sheet1!S71_A4Code,$AC:$AC)=0,P36/12,SUMIFS(Sheet1!S71_OctoberActual,Sheet1!S71_A4Code,$AC:$AC))","v":13212310.570000008},{"$f":"IF(SUMIFS(Sheet1!S71_NovemberActual,Sheet1!S71_A4Code,$AC:$AC)=0,P36/12,SUMIFS(Sheet1!S71_NovemberActual,Sheet1!S71_A4Code,$AC:$AC))","v":11807595.05000001},{"$f":"IF(SUMIFS(Sheet1!S71_DecemberActual,Sheet1!S71_A4Code,$AC:$AC)=0,P36/12,SUMIFS(Sheet1!S71_DecemberActual,Sheet1!S71_A4Code,$AC:$AC))","v":12005223.990000011},{"$f":"$P$36/12","v":12711886.25},{"$f":"$P$36/12","v":12711886.25},12711886.25,12711886.25,12711886.25,{"$f":"P36-SUM(C36:M36)","v":19325542.579999954},{"$f":"SUM(C36:N36)","v":152542635},{"$f":"'B4-FinPerf RE'!K37","v":152542635},{"$f":"'B4-FinPerf RE'!L37","v":153638430},{"$f":"'B4-FinPerf RE'!M37","v":154713325},null,null,null,null,null,null,null,null,null,null,"3100"]
["Remuneration of councillors",null,{"$f":"IF(SUMIFS(Sheet1!S71_JulyActual,Sheet1!S71_A4Code,$AC:$AC)=0,P37/12,SUMIFS(Sheet1!S71_JulyActual,Sheet1!S71_A4Code,$AC:$AC))","v":1177967.8499999999},{"$f":"IF(SUMIFS(Sheet1!S71_AugustActual,Sheet1!S71_A4Code,$AC:$AC)=0,P37/12,SUMIFS(Sheet1!S71_AugustActual,Sheet1!S71_A4Code,$AC:$AC))","v":1213659.2699999998},{"$f":"IF(SUMIFS(Sheet1!S71_SeptemberActual,Sheet1!S71_A4Code,$AC:$AC)=0,P37/12,SUMIFS(Sheet1!S71_SeptemberActual,Sheet1!S71_A4Code,$AC:$AC))","v":1228044.8999999999},{"$f":"IF(SUMIFS(Sheet1!S71_OctoberActual,Sheet1!S71_A4Code,$AC:$AC)=0,P37/12,SUMIFS(Sheet1!S71_OctoberActual,Sheet1!S71_A4Code,$AC:$AC))","v":1213659.2699999998},{"$f":"IF(SUMIFS(Sheet1!S71_NovemberActual,Sheet1!S71_A4Code,$AC:$AC)=0,P37/12,SUMIFS(Sheet1!S71_NovemberActual,Sheet1!S71_A4Code,$AC:$AC))","v":1767993.7899999998},{"$f":"IF(SUMIFS(Sheet1!S71_DecemberActual,Sheet1!S71_A4Code,$AC:$AC)=0,P37/12,SUMIFS(Sheet1!S71_DecemberActual,Sheet1!S71_A4Code,$AC:$AC))","v":1246280.99},{"$f":"$P$37/12","v":1365635},{"$f":"$P$37/12","v":1365635},1365635,1365635,1365635,1711838.9299999997,16387620,{"$f":"'B4-FinPerf RE'!K38","v":16387620},{"$f":"'B4-FinPerf RE'!L38","v":16879241},{"$f":"'B4-FinPerf RE'!M38","v":17216832},null,null,null,null,null,null,null,null,null,null,"3200"]
["Bulk purchases - electricity",null,{"$f":"IF(SUMIFS(Sheet1!S71_JulyActual,Sheet1!S71_A4Code,$AC:$AC)=0,P38/12,SUMIFS(Sheet1!S71_JulyActual,Sheet1!S71_A4Code,$AC:$AC))","v":4822133.25},{"$f":"IF(SUMIFS(Sheet1!S71_AugustActual,Sheet1!S71_A4Code,$AC:$AC)=0,P38/12,SUMIFS(Sheet1!S71_AugustActual,Sheet1!S71_A4Code,$AC:$AC))","v":13030486},{"$f":"IF(SUMIFS(Sheet1!S71_SeptemberActual,Sheet1!S71_A4Code,$AC:$AC)=0,P38/12,SUMIFS(Sheet1!S71_SeptemberActual,Sheet1!S71_A4Code,$AC:$AC))","v":4822133.25},{"$f":"IF(SUMIFS(Sheet1!S71_OctoberActual,Sheet1!S71_A4Code,$AC:$AC)=0,P38/12,SUMIFS(Sheet1!S71_OctoberActual,Sheet1!S71_A4Code,$AC:$AC))","v":9941982.5800000001},{"$f":"IF(SUMIFS(Sheet1!S71_NovemberActual,Sheet1!S71_A4Code,$AC:$AC)=0,P38/12,SUMIFS(Sheet1!S71_NovemberActual,Sheet1!S71_A4Code,$AC:$AC))","v":4310605.3899999997},{"$f":"IF(SUMIFS(Sheet1!S71_DecemberActual,Sheet1!S71_A4Code,$AC:$AC)=0,P38/12,SUMIFS(Sheet1!S71_DecemberActual,Sheet1!S71_A4Code,$AC:$AC))","v":4337417.82},{"$f":"$P$38/12","v":4822133.25},{"$f":"$P$38/12","v":4822133.25},4822133.25,4822133.25,4822133.25,-7509825.5399999991,57865599,{"$f":"'B4-FinPerf RE'!K39","v":57865599},{"$f":"'B4-FinPerf RE'!L39","v":59163591},{"$f":"'B4-FinPerf RE'!M39","v":61931116},null,null,null,null,null,null,null,null,null,null,"3300"]
["Inventory consumed",null,{"$f":"IF(SUMIFS(Sheet1!S71_JulyActual,Sheet1!S71_A4Code,$AC:$AC)=0,P39/12,SUMIFS(Sheet1!S71_JulyActual,Sheet1!S71_A4Code,$AC:$AC))","v":175919.24},{"$f":"IF(SUMIFS(Sheet1!S71_AugustActual,Sheet1!S71_A4Code,$AC:$AC)=0,P39/12,SUMIFS(Sheet1!S71_AugustActual,Sheet1!S71_A4Code,$AC:$AC))","v":27298.09},{"$f":"IF(SUMIFS(Sheet1!S71_SeptemberActual,Sheet1!S71_A4Code,$AC:$AC)=0,P39/12,SUMIFS(Sheet1!S71_SeptemberActual,Sheet1!S71_A4Code,$AC:$AC))","v":313929.35000000003},{"$f":"IF(SUMIFS(Sheet1!S71_OctoberActual,Sheet1!S71_A4Code,$AC:$AC)=0,P39/12,SUMIFS(Sheet1!S71_OctoberActual,Sheet1!S71_A4Code,$AC:$AC))","v":770775.85},{"$f":"IF(SUMIFS(Sheet1!S71_NovemberActual,Sheet1!S71_A4Code,$AC:$AC)=0,P39/12,SUMIFS(Sheet1!S71_NovemberActual,Sheet1!S71_A4Code,$AC:$AC))","v":773088.13},{"$f":"IF(SUMIFS(Sheet1!S71_DecemberActual,Sheet1!S71_A4Code,$AC:$AC)=0,P39/12,SUMIFS(Sheet1!S71_DecemberActual,Sheet1!S71_A4Code,$AC:$AC))","v":537947.40999999992},{"$f":"$P$39/12","v":469518.5},{"$f":"$P$39/12","v":469518.5},469518.5,469518.5,469518.5,687671.4299999997,5634222,{"$f":"'B4-FinPerf RE'!K40","v":5634222},{"$f":"'B4-FinPerf RE'!L40","v":4858200},{"$f":"'B4-FinPerf RE'!M40","v":5117888},null,null,null,null,null,null,null,null,null,null,"3400"]
["Debt impairment",null,{"$f":"IF(SUMIFS(Sheet1!S71_JulyActual,Sheet1!S71_A4Code,$AC:$AC)=0,P40/12,SUMIFS(Sheet1!S71_JulyActual,Sheet1!S71_A4Code,$AC:$AC))","v":2521739.1666666665},{"$f":"IF(SUMIFS(Sheet1!S71_AugustActual,Sheet1!S71_A4Code,$AC:$AC)=0,P40/12,SUMIFS(Sheet1!S71_AugustActual,Sheet1!S71_A4Code,$AC:$AC))","v":2521739.1666666665},{"$f":"IF(SUMIFS(Sheet1!S71_SeptemberActual,Sheet1!S71_A4Code,$AC:$AC)=0,P40/12,SUMIFS(Sheet1!S71_SeptemberActual,Sheet1!S71_A4Code,$AC:$AC))","v":2521739.1666666665},{"$f":"IF(SUMIFS(Sheet1!S71_OctoberActual,Sheet1!S71_A4Code,$AC:$AC)=0,P40/12,SUMIFS(Sheet1!S71_OctoberActual,Sheet1!S71_A4Code,$AC:$AC))","v":2521739.1666666665},{"$f":"IF(SUMIFS(Sheet1!S71_NovemberActual,Sheet1!S71_A4Code,$AC:$AC)=0,P40/12,SUMIFS(Sheet1!S71_NovemberActual,Sheet1!S71_A4Code,$AC:$AC))","v":2521739.1666666665},{"$f":"IF(SUMIFS(Sheet1!S71_DecemberActual,Sheet1!S71_A4Code,$AC:$AC)=0,P40/12,SUMIFS(Sheet1!S71_DecemberActual,Sheet1!S71_A4Code,$AC:$AC))","v":15130435},{"$f":"$P$40/12","v":2521739.1666666665},{"$f":"$P$40/12","v":2521739.1666666665},2521739.1666666665,2521739.1666666665,2521739.1666666665,-10086956.666666664,30260870,{"$f":"'B4-FinPerf RE'!K41","v":30260870},{"$f":"'B4-FinPerf RE'!L41","v":30463478},{"$f":"'B4-FinPerf RE'!M41","v":30416114},null,null,null,null,null,null,null,null,null,null,"3500"]
["Depreciation and amortisation",null,{"$f":"IF(SUMIFS(Sheet1!S71_JulyActual,Sheet1!S71_A4Code,$AC:$AC)=0,P41/12,SUMIFS(Sheet1!S71_JulyActual,Sheet1!S71_A4Code,$AC:$AC))","v":3154667.5},{"$f":"IF(SUMIFS(Sheet1!S71_AugustActual,Sheet1!S71_A4Code,$AC:$AC)=0,P41/12,SUMIFS(Sheet1!S71_AugustActual,Sheet1!S71_A4Code,$AC:$AC))","v":5865131.1799999997},{"$f":"IF(SUMIFS(Sheet1!S71_SeptemberActual,Sheet1!S71_A4Code,$AC:$AC)=0,P41/12,SUMIFS(Sheet1!S71_SeptemberActual,Sheet1!S71_A4Code,$AC:$AC))","v":2842942.1},{"$f":"IF(SUMIFS(Sheet1!S71_OctoberActual,Sheet1!S71_A4Code,$AC:$AC)=0,P41/12,SUMIFS(Sheet1!S71_OctoberActual,Sheet1!S71_A4Code,$AC:$AC))","v":2949734.38},{"$f":"IF(SUMIFS(Sheet1!S71_NovemberActual,Sheet1!S71_A4Code,$AC:$AC)=0,P41/12,SUMIFS(Sheet1!S71_NovemberActual,Sheet1!S71_A4Code,$AC:$AC))","v":2910433.2},{"$f":"IF(SUMIFS(Sheet1!S71_DecemberActual,Sheet1!S71_A4Code,$AC:$AC)=0,P41/12,SUMIFS(Sheet1!S71_DecemberActual,Sheet1!S71_A4Code,$AC:$AC))","v":2978041.03},{"$f":"$P$41/12","v":3154667.5},{"$f":"$P$41/12","v":3154667.5},3154667.5,3154667.5,3154667.5,1381723.1099999994,37856010,{"$f":"'B4-FinPerf RE'!K42","v":37856010},{"$f":"'B4-FinPerf RE'!L42","v":38991690},{"$f":"'B4-FinPerf RE'!M42","v":39771522},null,null,null,null,null,null,null,null,null,null,"3600"]
["Interest",null,{"$f":"IF(SUMIFS(Sheet1!S71_JulyActual,Sheet1!S71_A4Code,$AC:$AC)=0,P42/12,SUMIFS(Sheet1!S71_JulyActual,Sheet1!S71_A4Code,$AC:$AC))","v":275000},{"$f":"IF(SUMIFS(Sheet1!S71_AugustActual,Sheet1!S71_A4Code,$AC:$AC)=0,P42/12,SUMIFS(Sheet1!S71_AugustActual,Sheet1!S71_A4Code,$AC:$AC))","v":275000},{"$f":"IF(SUMIFS(Sheet1!S71_SeptemberActual,Sheet1!S71_A4Code,$AC:$AC)=0,P42/12,SUMIFS(Sheet1!S71_SeptemberActual,Sheet1!S71_A4Code,$AC:$AC))","v":275000},{"$f":"IF(SUMIFS(Sheet1!S71_OctoberActual,Sheet1!S71_A4Code,$AC:$AC)=0,P42/12,SUMIFS(Sheet1!S71_OctoberActual,Sheet1!S71_A4Code,$AC:$AC))","v":66.680000000000007},{"$f":"IF(SUMIFS(Sheet1!S71_NovemberActual,Sheet1!S71_A4Code,$AC:$AC)=0,P42/12,SUMIFS(Sheet1!S71_NovemberActual,Sheet1!S71_A4Code,$AC:$AC))","v":275000},{"$f":"IF(SUMIFS(Sheet1!S71_DecemberActual,Sheet1!S71_A4Code,$AC:$AC)=0,P42/12,SUMIFS(Sheet1!S71_DecemberActual,Sheet1!S71_A4Code,$AC:$AC))","v":275000},{"$f":"$P$42/12","v":275000},{"$f":"$P$42/12","v":275000},275000,275000,275000,549933.31999999983,3300000,{"$f":"'B4-FinPerf RE'!K43","v":3300000},{"$f":"'B4-FinPerf RE'!L43","v":3451800},{"$f":"'B4-FinPerf RE'!M43","v":3610581},null,null,null,null,null,null,null,null,null,null,"3700"]
["Contracted services",null,{"$f":"IF(SUMIFS(Sheet1!S71_JulyActual,Sheet1!S71_A4Code,$AC:$AC)=0,P43/12,SUMIFS(Sheet1!S71_JulyActual,Sheet1!S71_A4Code,$AC:$AC))","v":3882143.47},{"$f":"IF(SUMIFS(Sheet1!S71_AugustActual,Sheet1!S71_A4Code,$AC:$AC)=0,P43/12,SUMIFS(Sheet1!S71_AugustActual,Sheet1!S71_A4Code,$AC:$AC))","v":5660957.4100000001},{"$f":"IF(SUMIFS(Sheet1!S71_SeptemberActual,Sheet1!S71_A4Code,$AC:$AC)=0,P43/12,SUMIFS(Sheet1!S71_SeptemberActual,Sheet1!S71_A4Code,$AC:$AC))","v":5082772.1799999988},{"$f":"IF(SUMIFS(Sheet1!S71_OctoberActual,Sheet1!S71_A4Code,$AC:$AC)=0,P43/12,SUMIFS(Sheet1!S71_OctoberActual,Sheet1!S71_A4Code,$AC:$AC))","v":5203179.0600000005},{"$f":"IF(SUMIFS(Sheet1!S71_NovemberActual,Sheet1!S71_A4Code,$AC:$AC)=0,P43/12,SUMIFS(Sheet1!S71_NovemberActual,Sheet1!S71_A4Code,$AC:$AC))","v":8393739.629999999},{"$f":"IF(SUMIFS(Sheet1!S71_DecemberActual,Sheet1!S71_A4Code,$AC:$AC)=0,P43/12,SUMIFS(Sheet1!S71_DecemberActual,Sheet1!S71_A4Code,$AC:$AC))","v":9092222.0800000001},{"$f":"$P$43/12","v":7021446},{"$f":"$P$43/12","v":7021446},7021446,7021446,7021446,11835108.170000002,84257352,{"$f":"'B4-FinPerf RE'!K44","v":84257352},{"$f":"'B4-FinPerf RE'!L44","v":77357172},{"$f":"'B4-FinPerf RE'!M44","v":79136253},null,null,null,null,null,null,null,null,null,null,"3800"]
["Transfers and subsidies",null,{"$f":"IF(SUMIFS(Sheet1!S71_JulyActual,Sheet1!S71_A4Code,$AC:$AC)=0,P44/12,SUMIFS(Sheet1!S71_JulyActual,Sheet1!S71_A4Code,$AC:$AC))","v":0},{"$f":"IF(SUMIFS(Sheet1!S71_AugustActual,Sheet1!S71_A4Code,$AC:$AC)=0,P44/12,SUMIFS(Sheet1!S71_AugustActual,Sheet1!S71_A4Code,$AC:$AC))","v":0},{"$f":"IF(SUMIFS(Sheet1!S71_SeptemberActual,Sheet1!S71_A4Code,$AC:$AC)=0,P44/12,SUMIFS(Sheet1!S71_SeptemberActual,Sheet1!S71_A4Code,$AC:$AC))","v":0},{"$f":"IF(SUMIFS(Sheet1!S71_OctoberActual,Sheet1!S71_A4Code,$AC:$AC)=0,P44/12,SUMIFS(Sheet1!S71_OctoberActual,Sheet1!S71_A4Code,$AC:$AC))","v":0},{"$f":"IF(SUMIFS(Sheet1!S71_NovemberActual,Sheet1!S71_A4Code,$AC:$AC)=0,P44/12,SUMIFS(Sheet1!S71_NovemberActual,Sheet1!S71_A4Code,$AC:$AC))","v":0},{"$f":"IF(SUMIFS(Sheet1!S71_DecemberActual,Sheet1!S71_A4Code,$AC:$AC)=0,P44/12,SUMIFS(Sheet1!S71_DecemberActual,Sheet1!S71_A4Code,$AC:$AC))","v":0},{"$f":"$P$44/12","v":0},{"$f":"$P$44/12","v":0},0,0,0,0,0,{"$f":"'B4-FinPerf RE'!K45","v":0},{"$f":"'B4-FinPerf RE'!L45","v":0},{"$f":"'B4-FinPerf RE'!M45","v":0},null,null,null,null,null,null,null,null,null,null,"3900"]
["Irrecoverable debts written off",null,{"$f":"IF(SUMIFS(Sheet1!S71_JulyActual,Sheet1!S71_A4Code,$AC:$AC)=0,P45/12,SUMIFS(Sheet1!S71_JulyActual,Sheet1!S71_A4Code,$AC:$AC))","v":521739.08333333331},{"$f":"IF(SUMIFS(Sheet1!S71_AugustActual,Sheet1!S71_A4Code,$AC:$AC)=0,P45/12,SUMIFS(Sheet1!S71_AugustActual,Sheet1!S71_A4Code,$AC:$AC))","v":521739.08333333331},{"$f":"IF(SUMIFS(Sheet1!S71_SeptemberActual,Sheet1!S71_A4Code,$AC:$AC)=0,P45/12,SUMIFS(Sheet1!S71_SeptemberActual,Sheet1!S71_A4Code,$AC:$AC))","v":521739.08333333331},{"$f":"IF(SUMIFS(Sheet1!S71_OctoberActual,Sheet1!S71_A4Code,$AC:$AC)=0,P45/12,SUMIFS(Sheet1!S71_OctoberActual,Sheet1!S71_A4Code,$AC:$AC))","v":521739.08333333331},{"$f":"IF(SUMIFS(Sheet1!S71_NovemberActual,Sheet1!S71_A4Code,$AC:$AC)=0,P45/12,SUMIFS(Sheet1!S71_NovemberActual,Sheet1!S71_A4Code,$AC:$AC))","v":521739.08333333331},{"$f":"IF(SUMIFS(Sheet1!S71_DecemberActual,Sheet1!S71_A4Code,$AC:$AC)=0,P45/12,SUMIFS(Sheet1!S71_DecemberActual,Sheet1!S71_A4Code,$AC:$AC))","v":3130434.5},{"$f":"$P$45/12","v":521739.08333333331},{"$f":"$P$45/12","v":521739.08333333331},521739.08333333331,521739.08333333331,521739.08333333331,-2086956.3333333312,6260869,{"$f":"'B4-FinPerf RE'!K46","v":6260869},{"$f":"'B4-FinPerf RE'!L46","v":6323478},{"$f":"'B4-FinPerf RE'!M46","v":6386713},null,null,null,null,null,null,null,null,null,null,"4000"]
["Operational costs",null,{"$f":"IF(SUMIFS(Sheet1!S71_JulyActual,Sheet1!S71_A4Code,$AC:$AC)=0,P46/12,SUMIFS(Sheet1!S71_JulyActual,Sheet1!S71_A4Code,$AC:$AC))","v":7045174.6199999992},{"$f":"IF(SUMIFS(Sheet1!S71_AugustActual,Sheet1!S71_A4Code,$AC:$AC)=0,P46/12,SUMIFS(Sheet1!S71_AugustActual,Sheet1!S71_A4Code,$AC:$AC))","v":4088603.6700000004},{"$f":"IF(SUMIFS(Sheet1!S71_SeptemberActual,Sheet1!S71_A4Code,$AC:$AC)=0,P46/12,SUMIFS(Sheet1!S71_SeptemberActual,Sheet1!S71_A4Code,$AC:$AC))","v":4853761.6500000013},{"$f":"IF(SUMIFS(Sheet1!S71_OctoberActual,Sheet1!S71_A4Code,$AC:$AC)=0,P46/12,SUMIFS(Sheet1!S71_OctoberActual,Sheet1!S71_A4Code,$AC:$AC))","v":4647108.3499999996},{"$f":"IF(SUMIFS(Sheet1!S71_NovemberActual,Sheet1!S71_A4Code,$AC:$AC)=0,P46/12,SUMIFS(Sheet1!S71_NovemberActual,Sheet1!S71_A4Code,$AC:$AC))","v":4474824.2600000007},{"$f":"IF(SUMIFS(Sheet1!S71_DecemberActual,Sheet1!S71_A4Code,$AC:$AC)=0,P46/12,SUMIFS(Sheet1!S71_DecemberActual,Sheet1!S71_A4Code,$AC:$AC))","v":12737929.92},{"$f":"$P$46/12","v":5561236.5},{"$f":"$P$46/12","v":5561236.5},5561236.5,5561236.5,5561236.5,1081253.0300000012,null,{"$f":"'B4-FinPerf RE'!K47","v":66734838},{"$f":"'B4-FinPerf RE'!L47","v":58211965},{"$f":"'B4-FinPerf RE'!M47","v":61288803},null,null,null,null,null,null,null,null,null,null,"4100"]
["Losses on disposal of Assets",null,{"$f":"IF(SUMIFS(Sheet1!S71_JulyActual,Sheet1!S71_A4Code,$AC:$AC)=0,P47/12,SUMIFS(Sheet1!S71_JulyActual,Sheet1!S71_A4Code,$AC:$AC))","v":50000},{"$f":"IF(SUMIFS(Sheet1!S71_AugustActual,Sheet1!S71_A4Code,$AC:$AC)=0,P47/12,SUMIFS(Sheet1!S71_AugustActual,Sheet1!S71_A4Code,$AC:$AC))","v":50000},{"$f":"IF(SUMIFS(Sheet1!S71_SeptemberActual,Sheet1!S71_A4Code,$AC:$AC)=0,P47/12,SUMIFS(Sheet1!S71_SeptemberActual,Sheet1!S71_A4Code,$AC:$AC))","v":50000},{"$f":"IF(SUMIFS(Sheet1!S71_OctoberActual,Sheet1!S71_A4Code,$AC:$AC)=0,P47/12,SUMIFS(Sheet1!S71_OctoberActual,Sheet1!S71_A4Code,$AC:$AC))","v":50000},{"$f":"IF(SUMIFS(Sheet1!S71_NovemberActual,Sheet1!S71_A4Code,$AC:$AC)=0,P47/12,SUMIFS(Sheet1!S71_NovemberActual,Sheet1!S71_A4Code,$AC:$AC))","v":50000},{"$f":"IF(SUMIFS(Sheet1!S71_DecemberActual,Sheet1!S71_A4Code,$AC:$AC)=0,P47/12,SUMIFS(Sheet1!S71_DecemberActual,Sheet1!S71_A4Code,$AC:$AC))","v":50000},{"$f":"$P$47/12","v":50000},{"$f":"$P$47/12","v":50000},50000,50000,50000,50000,null,{"$f":"'B4-FinPerf RE'!K48","v":600000},{"$f":"'B4-FinPerf RE'!L48","v":0},{"$f":"'B4-FinPerf RE'!M48","v":0},null,null,null,null,null,null,null,null,null,null,"4200"]
["Other Losses",null,{"$f":"IF(SUMIFS(Sheet1!S71_JulyActual,Sheet1!S71_A4Code,$AC:$AC)=0,P48/12,SUMIFS(Sheet1!S71_JulyActual,Sheet1!S71_A4Code,$AC:$AC))","v":0},{"$f":"IF(SUMIFS(Sheet1!S71_AugustActual,Sheet1!S71_A4Code,$AC:$AC)=0,P48/12,SUMIFS(Sheet1!S71_AugustActual,Sheet1!S71_A4Code,$AC:$AC))","v":0},{"$f":"IF(SUMIFS(Sheet1!S71_SeptemberActual,Sheet1!S71_A4Code,$AC:$AC)=0,P48/12,SUMIFS(Sheet1!S71_SeptemberActual,Sheet1!S71_A4Code,$AC:$AC))","v":0},{"$f":"IF(SUMIFS(Sheet1!S71_OctoberActual,Sheet1!S71_A4Code,$AC:$AC)=0,P48/12,SUMIFS(Sheet1!S71_OctoberActual,Sheet1!S71_A4Code,$AC:$AC))","v":0},{"$f":"IF(SUMIFS(Sheet1!S71_NovemberActual,Sheet1!S71_A4Code,$AC:$AC)=0,P48/12,SUMIFS(Sheet1!S71_NovemberActual,Sheet1!S71_A4Code,$AC:$AC))","v":0},{"$f":"IF(SUMIFS(Sheet1!S71_DecemberActual,Sheet1!S71_A4Code,$AC:$AC)=0,P48/12,SUMIFS(Sheet1!S71_DecemberActual,Sheet1!S71_A4Code,$AC:$AC))","v":0},{"$f":"$P$48/12","v":0},{"$f":"$P$48/12","v":0},0,0,0,0,0,{"$f":"'B4-FinPerf RE'!K49","v":0},{"$f":"'B4-FinPerf RE'!L49","v":0},{"$f":"'B4-FinPerf RE'!M49","v":0},null,null,null,null,null,null,null,null,null,null,"4300"]
["Total Expenditure",null,{"$f":"SUM(C36:C48)","v":34064849.990000002},{"$f":"SUM(D36:D48)","v":44152477.93},33808363.370000005,41032294.990000017,37806757.700000003,61520932.74000001,38475001.25,38475001.25,38475001.25,38475001.25,38475001.25,16939332.02999996,394365177,461700015,449339045,459589147]
[]
["Surplus/(Deficit)",null,{"$f":"C33-C49","v":-24738254.910000004},627519.78000000119,-21432641.280000005,-29934960.830000017,25281598.069999993,32597707.989999995,-1629135.9166666642,-1629135.9166666642,-1629135.9166666642,-1629135.9166666642,-1629135.9166666642,-97638679.683333278,-275943918,-19549631,3713724,2908909]
[{"$f":"'B4-FinPerf RE'!A53","v":"Transfers and subsidies - capital (monetary allocations)"},null,{"$f":"IF(-SUMIFS(Sheet1!S71_JulyActual,Sheet1!S71_A4Code,$AC:$AC)=0,P52/12,-SUMIFS(Sheet1!S71_JulyActual,Sheet1!S71_A4Code,$AC:$AC))","v":816106.01},{"$f":"IF(-SUMIFS(Sheet1!S71_AugustActual,Sheet1!S71_A4Code,$AC:$AC)=0,P52/12,-SUMIFS(Sheet1!S71_AugustActual,Sheet1!S71_A4Code,$AC:$AC))","v":1115425.98},{"$f":"IF(-SUMIFS(Sheet1!S71_SeptemberActual,Sheet1!S71_A4Code,$AC:$AC)=0,P52/12,-SUMIFS(Sheet1!S71_SeptemberActual,Sheet1!S71_A4Code,$AC:$AC))","v":3151207.01},{"$f":"IF(-SUMIFS(Sheet1!S71_OctoberActual,Sheet1!S71_A4Code,$AC:$AC)=0,P52/12,-SUMIFS(Sheet1!S71_OctoberActual,Sheet1!S71_A4Code,$AC:$AC))","v":2689810.11},{"$f":"IF(-SUMIFS(Sheet1!S71_NovemberActual,Sheet1!S71_A4Code,$AC:$AC)=0,Q52/12,-SUMIFS(Sheet1!S71_NovemberActual,Sheet1!S71_A4Code,$AC:$AC))","v":1859536.46},{"$f":"IF(-SUMIFS(Sheet1!S71_NovemberActual,Sheet1!S71_A4Code,$AC:$AC)=0,R52/12,-SUMIFS(Sheet1!S71_NovemberActual,Sheet1!S71_A4Code,$AC:$AC))","v":1859536.46},{"$f":"$P$52/12","v":3951786.5833333335},{"$f":"$P$52/12","v":3951786.5833333335},3951786.5833333335,3951786.5833333335,3951786.5833333335,{"$f":"P52-SUM(C52:M52)","v":16170884.053333335},null,{"$f":"'B4-FinPerf RE'!K53","v":47421439},{"$f":"'B4-FinPerf RE'!L53","v":40839550},{"$f":"'B4-FinPerf RE'!M53","v":44177850},null,null,null,null,null,null,null,null,null,null,"4600"]
[{"$f":"'B4-FinPerf RE'!A54","v":"Transfers and subsidies - capital (in-kind - all) "},null,{"$f":"IF(-SUMIFS(Sheet1!S71_JulyActual,Sheet1!S71_A4Code,$AC:$AC)=0,P53/12,-SUMIFS(Sheet1!S71_JulyActual,Sheet1!S71_A4Code,$AC:$AC))","v":0},{"$f":"IF(-SUMIFS(Sheet1!S71_AugustActual,Sheet1!S71_A4Code,$AC:$AC)=0,P53/12,-SUMIFS(Sheet1!S71_AugustActual,Sheet1!S71_A4Code,$AC:$AC))","v":0},{"$f":"IF(-SUMIFS(Sheet1!S71_SeptemberActual,Sheet1!S71_A4Code,$AC:$AC)=0,P53/12,-SUMIFS(Sheet1!S71_SeptemberActual,Sheet1!S71_A4Code,$AC:$AC))","v":0},{"$f":"IF(-SUMIFS(Sheet1!S71_OctoberActual,Sheet1!S71_A4Code,$AC:$AC)=0,P53/12,-SUMIFS(Sheet1!S71_OctoberActual,Sheet1!S71_A4Code,$AC:$AC))","v":0},{"$f":"IF(-SUMIFS(Sheet1!S71_NovemberActual,Sheet1!S71_A4Code,$AC:$AC)=0,Q53/12,-SUMIFS(Sheet1!S71_NovemberActual,Sheet1!S71_A4Code,$AC:$AC))","v":0},{"$f":"IF(-SUMIFS(Sheet1!S71_NovemberActual,Sheet1!S71_A4Code,$AC:$AC)=0,R53/12,-SUMIFS(Sheet1!S71_NovemberActual,Sheet1!S71_A4Code,$AC:$AC))","v":0},{"$f":"$P$53/12","v":0},{"$f":"$P$53/12","v":0},0,0,0,{"$f":"P53-SUM(C53:M53)","v":0},null,{"$f":"'B4-FinPerf RE'!K54","v":0},{"$f":"'B4-FinPerf RE'!L54","v":0},{"$f":"'B4-FinPerf RE'!M54","v":0}]
["Surplus/(Deficit) after capital transfers & contributions",null,{"$f":"C51+SUM(C52:C53)","v":-23922148.900000002},1742945.7600000012,-18281434.270000003,-27245150.720000017,27141134.529999994,34457244.449999996,2322650.6666666693,2322650.6666666693,2322650.6666666693,2322650.6666666693,2322650.6666666693,-81467795.629999936,-275943918,27871808,44553274,47086759]
[{"$f":"head27a","v":"References"}]
["1. Surplus (Deficit) must reconcile with budget table A4 and monthly budget statement table C4"]
["check",null,null,null,null,null,null,null,null,null,null,null,null,null,null,{"$f":"P54-'B4-FinPerf RE'!K55","v":0},{"$f":"Q54-'B4-FinPerf RE'!L55","v":0},{"$f":"R54-'B4-FinPerf RE'!M55","v":0}]

{"sheet":"SB15","index":51,"n_rows":64,"n_cols":30,"rows_kept":64,"cut":false,"hidden":false,"merged":[[1,0,2,0],[1,15,1,17],[1,1,2,1],[1,2,1,13]]}
[{"$f":"muni&\" - \"&ADJB15&\" - \"&Date","v":"KZN291 Mandeni - Supporting Table SB15 Adjustments Budget - monthly cash flow - 08-04-2025"}]
["Monthly cash flows",{"$f":"head27","v":"Ref"},{"$f":"Head2","v":"Budget Year 2024/25"},null,null,null,null,null,null,null,null,null,null,null,null,{"$f":"Head3a","v":"Medium Term Revenue and Expenditure Framework"}]
[null,null,"July","August","Sept.","October","November","December","January","February","March","April","May","June","Full year budget",{"$f":"Head9","v":"Budget Year 2024/25"},{"$f":"Head10","v":"Budget Year +1 2025/26"},{"$f":"Head11","v":"Budget Year +2 2026/27"}]
["R thousands",null,{"$f":"Head5A","v":"Outcome"},"Outcome","Outcome","Outcome","Outcome","Outcome",{"$f":"Head7","v":"Adjusted Budget"},"Adjusted Budget","Adjusted Budget","Adjusted Budget","Adjusted Budget","Adjusted Budget",null,{"$f":"Head7","v":"Adjusted Budget"},{"$f":"Head7","v":"Adjusted Budget"},{"$f":"Head7","v":"Adjusted Budget"}]
["Cash Receipts By Source",1]
["Property rates",null,{"$f":"IF(SUMIFS(Sheet1!S71_JulyActual,Sheet1!S71_SA30FDSubCode,$AC:$AC)=0,P6/12,SUMIFS(Sheet1!S71_JulyActual,Sheet1!S71_SA30FDSubCode,$AC:$AC))","v":66827603.380000003},{"$f":"IF(SUMIFS(Sheet1!S71_AugustActual,Sheet1!S71_SA30FDSubCode,$AC:$AC)=0,P6/12,SUMIFS(Sheet1!S71_AugustActual,Sheet1!S71_SA30FDSubCode,$AC:$AC))","v":0},{"$f":"IF(SUMIFS(Sheet1!S71_SeptemberActual,Sheet1!S71_SA30FDSubCode,$AC:$AC)=0,P6/12,SUMIFS(Sheet1!S71_SeptemberActual,Sheet1!S71_SA30FDSubCode,$AC:$AC))","v":0},{"$f":"IF(SUMIFS(Sheet1!S71_OctoberActual,Sheet1!S71_SA30FDSubCode,$AC:$AC)=0,P6/12,SUMIFS(Sheet1!S71_OctoberActual,Sheet1!S71_SA30FDSubCode,$AC:$AC))","v":0},{"$f":"IF(SUMIFS(Sheet1!S71_NovemberActual,Sheet1!S71_SA30FDSubCode,$AC:$AC)=0,P6/12,SUMIFS(Sheet1!S71_NovemberActual,Sheet1!S71_SA30FDSubCode,$AC:$AC))","v":0},{"$f":"IF(SUMIFS(Sheet1!S71_DecemberActual,Sheet1!S71_SA30FDSubCode,$AC:$AC)=0,P6/12,SUMIFS(Sheet1!S71_DecemberActual,Sheet1!S71_SA30FDSubCode,$AC:$AC))","v":0},{"$f":"$P$6/12","v":0},0,0,0,0,{"$f":"P6-SUM(C6:M6)","v":-66827603.380000003},{"$f":"SUM(C6:N6)","v":0},{"$f":"SUMIFS(Sheet1!S71_CurrentAdjustedBudget,Sheet1!S71_SA30FDSubCode,$AC:$AC)","v":0},{"$f":"SUMIFS(Sheet1!S71_OY1AdjustedBudget,Sheet1!S71_SA30FDSubCode,$AC:$AC)","v":32549736},{"$f":"SUMIFS(Sheet1!S71_OY2AdjustedBudget,Sheet1!S71_SA30FDSubCode,$AC:$AC)","v":34047024},null,null,null,null,null,null,null,null,null,null,"0110","D"]
["Service charges - electricity revenue",null,{"$f":"IF(SUMIFS(Sheet1!S71_JulyActual,Sheet1!S71_SA30FDSubCode,$AC:$AC)=0,P7/12,SUMIFS(Sheet1!S71_JulyActual,Sheet1!S71_SA30FDSubCode,$AC:$AC))","v":0},{"$f":"IF(SUMIFS(Sheet1!S71_AugustActual,Sheet1!S71_SA30FDSubCode,$AC:$AC)=0,P7/12,SUMIFS(Sheet1!S71_AugustActual,Sheet1!S71_SA30FDSubCode,$AC:$AC))","v":0},{"$f":"IF(SUMIFS(Sheet1!S71_SeptemberActual,Sheet1!S71_SA30FDSubCode,$AC:$AC)=0,P7/12,SUMIFS(Sheet1!S71_SeptemberActual,Sheet1!S71_SA30FDSubCode,$AC:$AC))","v":0},{"$f":"IF(SUMIFS(Sheet1!S71_OctoberActual,Sheet1!S71_SA30FDSubCode,$AC:$AC)=0,P7/12,SUMIFS(Sheet1!S71_OctoberActual,Sheet1!S71_SA30FDSubCode,$AC:$AC))","v":0},{"$f":"IF(SUMIFS(Sheet1!S71_NovemberActual,Sheet1!S71_SA30FDSubCode,$AC:$AC)=0,P7/12,SUMIFS(Sheet1!S71_NovemberActual,Sheet1!S71_SA30FDSubCode,$AC:$AC))","v":0},{"$f":"IF(SUMIFS(Sheet1!S71_DecemberActual,Sheet1!S71_SA30FDSubCode,$AC:$AC)=0,P7/12,SUMIFS(Sheet1!S71_DecemberActual,Sheet1!S71_SA30FDSubCode,$AC:$AC))","v":0},{"$f":"$P$7/12","v":0},0,0,0,0,0,0,{"$f":"SUMIFS(Sheet1!S71_CurrentAdjustedBudget,Sheet1!S71_SA30FDSubCode,$AC:$AC)","v":0},{"$f":"SUMIFS(Sheet1!S71_OY1AdjustedBudget,Sheet1!S71_SA30FDSubCode,$AC:$AC)","v":71705200},{"$f":"SUMIFS(Sheet1!S71_OY2AdjustedBudget,Sheet1!S71_SA30FDSubCode,$AC:$AC)","v":75654391},null,null,null,null,null,null,null,null,null,null,"0120","D"]
["Service charges - water revenue",null,{"$f":"IF(SUMIFS(Sheet1!S71_JulyActual,Sheet1!S71_SA30FDSubCode,$AC:$AC)=0,P8/12,SUMIFS(Sheet1!S71_JulyActual,Sheet1!S71_SA30FDSubCode,$AC:$AC))","v":0},{"$f":"IF(SUMIFS(Sheet1!S71_AugustActual,Sheet1!S71_SA30FDSubCode,$AC:$AC)=0,P8/12,SUMIFS(Sheet1!S71_AugustActual,Sheet1!S71_SA30FDSubCode,$AC:$AC))","v":0},{"$f":"IF(SUMIFS(Sheet1!S71_SeptemberActual,Sheet1!S71_SA30FDSubCode,$AC:$AC)=0,P8/12,SUMIFS(Sheet1!S71_SeptemberActual,Sheet1!S71_SA30FDSubCode,$AC:$AC))","v":0},{"$f":"IF(SUMIFS(Sheet1!S71_OctoberActual,Sheet1!S71_SA30FDSubCode,$AC:$AC)=0,P8/12,SUMIFS(Sheet1!S71_OctoberActual,Sheet1!S71_SA30FDSubCode,$AC:$AC))","v":0},{"$f":"IF(SUMIFS(Sheet1!S71_NovemberActual,Sheet1!S71_SA30FDSubCode,$AC:$AC)=0,P8/12,SUMIFS(Sheet1!S71_NovemberActual,Sheet1!S71_SA30FDSubCode,$AC:$AC))","v":0},{"$f":"IF(SUMIFS(Sheet1!S71_DecemberActual,Sheet1!S71_SA30FDSubCode,$AC:$AC)=0,P8/12,SUMIFS(Sheet1!S71_DecemberActual,Sheet1!S71_SA30FDSubCode,$AC:$AC))","v":0},{"$f":"$P$8/12","v":0},0,0,0,0,0,0,{"$f":"SUMIFS(Sheet1!S71_CurrentAdjustedBudget,Sheet1!S71_SA30FDSubCode,$AC:$AC)","v":0},{"$f":"SUMIFS(Sheet1!S71_OY1AdjustedBudget,Sheet1!S71_SA30FDSubCode,$AC:$AC)","v":0},{"$f":"SUMIFS(Sheet1!S71_OY2AdjustedBudget,Sheet1!S71_SA30FDSubCode,$AC:$AC)","v":0},null,null,null,null,null,null,null,null,null,null,"0130","D"]
["Service charges - sanitation revenue",null,{"$f":"IF(SUMIFS(Sheet1!S71_JulyActual,Sheet1!S71_SA30FDSubCode,$AC:$AC)=0,P9/12,SUMIFS(Sheet1!S71_JulyActual,Sheet1!S71_SA30FDSubCode,$AC:$AC))","v":0},{"$f":"IF(SUMIFS(Sheet1!S71_AugustActual,Sheet1!S71_SA30FDSubCode,$AC:$AC)=0,P9/12,SUMIFS(Sheet1!S71_AugustActual,Sheet1!S71_SA30FDSubCode,$AC:$AC))","v":0},{"$f":"IF(SUMIFS(Sheet1!S71_SeptemberActual,Sheet1!S71_SA30FDSubCode,$AC:$AC)=0,P9/12,SUMIFS(Sheet1!S71_SeptemberActual,Sheet1!S71_SA30FDSubCode,$AC:$AC))","v":0},{"$f":"IF(SUMIFS(Sheet1!S71_OctoberActual,Sheet1!S71_SA30FDSubCode,$AC:$AC)=0,P9/12,SUMIFS(Sheet1!S71_OctoberActual,Sheet1!S71_SA30FDSubCode,$AC:$AC))","v":0},{"$f":"IF(SUMIFS(Sheet1!S71_NovemberActual,Sheet1!S71_SA30FDSubCode,$AC:$AC)=0,P9/12,SUMIFS(Sheet1!S71_NovemberActual,Sheet1!S71_SA30FDSubCode,$AC:$AC))","v":0},{"$f":"IF(SUMIFS(Sheet1!S71_DecemberActual,Sheet1!S71_SA30FDSubCode,$AC:$AC)=0,P9/12,SUMIFS(Sheet1!S71_DecemberActual,Sheet1!S71_SA30FDSubCode,$AC:$AC))","v":0},{"$f":"$P$9/12","v":0},0,0,0,0,0,0,{"$f":"SUMIFS(Sheet1!S71_CurrentAdjustedBudget,Sheet1!S71_SA30FDSubCode,$AC:$AC)","v":0},{"$f":"SUMIFS(Sheet1!S71_OY1AdjustedBudget,Sheet1!S71_SA30FDSubCode,$AC:$AC)","v":0},{"$f":"SUMIFS(Sheet1!S71_OY2AdjustedBudget,Sheet1!S71_SA30FDSubCode,$AC:$AC)","v":0},null,null,null,null,null,null,null,null,null,null,"0140","D"]
["Service charges - refuse",null,{"$f":"IF(SUMIFS(Sheet1!S71_JulyActual,Sheet1!S71_SA30FDSubCode,$AC:$AC)=0,P10/12,SUMIFS(Sheet1!S71_JulyActual,Sheet1!S71_SA30FDSubCode,$AC:$AC))","v":0},{"$f":"IF(SUMIFS(Sheet1!S71_AugustActual,Sheet1!S71_SA30FDSubCode,$AC:$AC)=0,P10/12,SUMIFS(Sheet1!S71_AugustActual,Sheet1!S71_SA30FDSubCode,$AC:$AC))","v":0},{"$f":"IF(SUMIFS(Sheet1!S71_SeptemberActual,Sheet1!S71_SA30FDSubCode,$AC:$AC)=0,P10/12,SUMIFS(Sheet1!S71_SeptemberActual,Sheet1!S71_SA30FDSubCode,$AC:$AC))","v":0},{"$f":"IF(SUMIFS(Sheet1!S71_OctoberActual,Sheet1!S71_SA30FDSubCode,$AC:$AC)=0,P10/12,SUMIFS(Sheet1!S71_OctoberActual,Sheet1!S71_SA30FDSubCode,$AC:$AC))","v":0},{"$f":"IF(SUMIFS(Sheet1!S71_NovemberActual,Sheet1!S71_SA30FDSubCode,$AC:$AC)=0,P10/12,SUMIFS(Sheet1!S71_NovemberActual,Sheet1!S71_SA30FDSubCode,$AC:$AC))","v":0},{"$f":"IF(SUMIFS(Sheet1!S71_DecemberActual,Sheet1!S71_SA30FDSubCode,$AC:$AC)=0,P10/12,SUMIFS(Sheet1!S71_DecemberActual,Sheet1!S71_SA30FDSubCode,$AC:$AC))","v":0},{"$f":"$P$10/12","v":0},0,0,0,0,0,0,{"$f":"SUMIFS(Sheet1!S71_CurrentAdjustedBudget,Sheet1!S71_SA30FDSubCode,$AC:$AC)","v":0},{"$f":"SUMIFS(Sheet1!S71_OY1AdjustedBudget,Sheet1!S71_SA30FDSubCode,$AC:$AC)","v":7377922},{"$f":"SUMIFS(Sheet1!S71_OY2AdjustedBudget,Sheet1!S71_SA30FDSubCode,$AC:$AC)","v":7718181},null,null,null,null,null,null,null,null,null,null,"0150","D"]
[null,null,{"$f":"IF(SUMIFS(Sheet1!S71_JulyActual,Sheet1!S71_SA30FDSubCode,$AC:$AC)=0,P11/12,SUMIFS(Sheet1!S71_JulyActual,Sheet1!S71_SA30FDSubCode,$AC:$AC))","v":0},{"$f":"IF(SUMIFS(Sheet1!S71_AugustActual,Sheet1!S71_SA30FDSubCode,$AC:$AC)=0,P11/12,SUMIFS(Sheet1!S71_AugustActual,Sheet1!S71_SA30FDSubCode,$AC:$AC))","v":0},{"$f":"IF(SUMIFS(Sheet1!S71_SeptemberActual,Sheet1!S71_SA30FDSubCode,$AC:$AC)=0,P11/12,SUMIFS(Sheet1!S71_SeptemberActual,Sheet1!S71_SA30FDSubCode,$AC:$AC))","v":0},{"$f":"IF(SUMIFS(Sheet1!S71_OctoberActual,Sheet1!S71_SA30FDSubCode,$AC:$AC)=0,P11/12,SUMIFS(Sheet1!S71_OctoberActual,Sheet1!S71_SA30FDSubCode,$AC:$AC))","v":0},{"$f":"IF(SUMIFS(Sheet1!S71_NovemberActual,Sheet1!S71_SA30FDSubCode,$AC:$AC)=0,P11/12,SUMIFS(Sheet1!S71_NovemberActual,Sheet1!S71_SA30FDSubCode,$AC:$AC))","v":0},{"$f":"IF(SUMIFS(Sheet1!S71_DecemberActual,Sheet1!S71_SA30FDSubCode,$AC:$AC)=0,P11/12,SUMIFS(Sheet1!S71_DecemberActual,Sheet1!S71_SA30FDSubCode,$AC:$AC))","v":0},{"$f":"$P$11/12","v":0},0,0,0,0,null,null,{"$f":"SUMIFS(Sheet1!S71_CurrentAdjustedBudget,Sheet1!S71_SA30FDSubCode,$AC:$AC)","v":0},{"$f":"SUMIFS(Sheet1!S71_OY1AdjustedBudget,Sheet1!S71_SA30FDSubCode,$AC:$AC)","v":0},{"$f":"SUMIFS(Sheet1!S71_OY2AdjustedBudget,Sheet1!S71_SA30FDSubCode,$AC:$AC)","v":0},null,null,null,null,null,null,null,null,null,null,null,"D"]
["Rental of facilities and equipment",null,{"$f":"IF(SUMIFS(Sheet1!S71_JulyActual,Sheet1!S71_SA30FDSubCode,$AC:$AC)=0,P12/12,SUMIFS(Sheet1!S71_JulyActual,Sheet1!S71_SA30FDSubCode,$AC:$AC))","v":0},{"$f":"IF(SUMIFS(Sheet1!S71_AugustActual,Sheet1!S71_SA30FDSubCode,$AC:$AC)=0,P12/12,SUMIFS(Sheet1!S71_AugustActual,Sheet1!S71_SA30FDSubCode,$AC:$AC))","v":0},{"$f":"IF(SUMIFS(Sheet1!S71_SeptemberActual,Sheet1!S71_SA30FDSubCode,$AC:$AC)=0,P12/12,SUMIFS(Sheet1!S71_SeptemberActual,Sheet1!S71_SA30FDSubCode,$AC:$AC))","v":0},{"$f":"IF(SUMIFS(Sheet1!S71_OctoberActual,Sheet1!S71_SA30FDSubCode,$AC:$AC)=0,P12/12,SUMIFS(Sheet1!S71_OctoberActual,Sheet1!S71_SA30FDSubCode,$AC:$AC))","v":0},{"$f":"IF(SUMIFS(Sheet1!S71_NovemberActual,Sheet1!S71_SA30FDSubCode,$AC:$AC)=0,P12/12,SUMIFS(Sheet1!S71_NovemberActual,Sheet1!S71_SA30FDSubCode,$AC:$AC))","v":0},{"$f":"IF(SUMIFS(Sheet1!S71_DecemberActual,Sheet1!S71_SA30FDSubCode,$AC:$AC)=0,P12/12,SUMIFS(Sheet1!S71_DecemberActual,Sheet1!S71_SA30FDSubCode,$AC:$AC))","v":0},{"$f":"$P$12/12","v":0},0,0,0,0,0,0,{"$f":"SUMIFS(Sheet1!S71_CurrentAdjustedBudget,Sheet1!S71_SA30FDSubCode,$AC:$AC)","v":0},{"$f":"SUMIFS(Sheet1!S71_OY1AdjustedBudget,Sheet1!S71_SA30FDSubCode,$AC:$AC)","v":366100},{"$f":"SUMIFS(Sheet1!S71_OY2AdjustedBudget,Sheet1!S71_SA30FDSubCode,$AC:$AC)","v":382941},null,null,null,null,null,null,null,null,null,null,"0170","D"]
["Interest earned - external investments",null,{"$f":"IF(SUMIFS(Sheet1!S71_JulyActual,Sheet1!S71_SA30FDSubCode,$AC:$AC)=0,P13/12,SUMIFS(Sheet1!S71_JulyActual,Sheet1!S71_SA30FDSubCode,$AC:$AC))","v":1054519.6499999999},{"$f":"IF(SUMIFS(Sheet1!S71_AugustActual,Sheet1!S71_SA30FDSubCode,$AC:$AC)=0,P13/12,SUMIFS(Sheet1!S71_AugustActual,Sheet1!S71_SA30FDSubCode,$AC:$AC))","v":489371.25},{"$f":"IF(SUMIFS(Sheet1!S71_SeptemberActual,Sheet1!S71_SA30FDSubCode,$AC:$AC)=0,P13/12,SUMIFS(Sheet1!S71_SeptemberActual,Sheet1!S71_SA30FDSubCode,$AC:$AC))","v":349221.86000000004},{"$f":"IF(SUMIFS(Sheet1!S71_OctoberActual,Sheet1!S71_SA30FDSubCode,$AC:$AC)=0,P13/12,SUMIFS(Sheet1!S71_OctoberActual,Sheet1!S71_SA30FDSubCode,$AC:$AC))","v":310841.59999999998},{"$f":"IF(SUMIFS(Sheet1!S71_NovemberActual,Sheet1!S71_SA30FDSubCode,$AC:$AC)=0,P13/12,SUMIFS(Sheet1!S71_NovemberActual,Sheet1!S71_SA30FDSubCode,$AC:$AC))","v":313506.14},{"$f":"IF(SUMIFS(Sheet1!S71_DecemberActual,Sheet1!S71_SA30FDSubCode,$AC:$AC)=0,P13/12,SUMIFS(Sheet1!S71_DecemberActual,Sheet1!S71_SA30FDSubCode,$AC:$AC))","v":434093.36000000004},{"$f":"$P$13/12","v":0},0,0,0,0,-2951553.86,0,{"$f":"SUMIFS(Sheet1!S71_CurrentAdjustedBudget,Sheet1!S71_SA30FDSubCode,$AC:$AC)","v":0},{"$f":"SUMIFS(Sheet1!S71_OY1AdjustedBudget,Sheet1!S71_SA30FDSubCode,$AC:$AC)","v":28840000},{"$f":"SUMIFS(Sheet1!S71_OY2AdjustedBudget,Sheet1!S71_SA30FDSubCode,$AC:$AC)","v":29705200},null,null,null,null,null,null,null,null,null,null,"0180","D"]
["Interest earned - outstanding debtors",null,{"$f":"IF(SUMIFS(Sheet1!S71_JulyActual,Sheet1!S71_SA30FDSubCode,$AC:$AC)=0,P14/12,SUMIFS(Sheet1!S71_JulyActual,Sheet1!S71_SA30FDSubCode,$AC:$AC))","v":0},{"$f":"IF(SUMIFS(Sheet1!S71_AugustActual,Sheet1!S71_SA30FDSubCode,$AC:$AC)=0,P14/12,SUMIFS(Sheet1!S71_AugustActual,Sheet1!S71_SA30FDSubCode,$AC:$AC))","v":0},{"$f":"IF(SUMIFS(Sheet1!S71_SeptemberActual,Sheet1!S71_SA30FDSubCode,$AC:$AC)=0,P14/12,SUMIFS(Sheet1!S71_SeptemberActual,Sheet1!S71_SA30FDSubCode,$AC:$AC))","v":0},{"$f":"IF(SUMIFS(Sheet1!S71_OctoberActual,Sheet1!S71_SA30FDSubCode,$AC:$AC)=0,P14/12,SUMIFS(Sheet1!S71_OctoberActual,Sheet1!S71_SA30FDSubCode,$AC:$AC))","v":0},{"$f":"IF(SUMIFS(Sheet1!S71_NovemberActual,Sheet1!S71_SA30FDSubCode,$AC:$AC)=0,P14/12,SUMIFS(Sheet1!S71_NovemberActual,Sheet1!S71_SA30FDSubCode,$AC:$AC))","v":0},{"$f":"IF(SUMIFS(Sheet1!S71_DecemberActual,Sheet1!S71_SA30FDSubCode,$AC:$AC)=0,P14/12,SUMIFS(Sheet1!S71_DecemberActual,Sheet1!S71_SA30FDSubCode,$AC:$AC))","v":0},{"$f":"$P$14/12","v":0},0,0,0,0,0,0,{"$f":"SUMIFS(Sheet1!S71_CurrentAdjustedBudget,Sheet1!S71_SA30FDSubCode,$AC:$AC)","v":0},{"$f":"SUMIFS(Sheet1!S71_OY1AdjustedBudget,Sheet1!S71_SA30FDSubCode,$AC:$AC)","v":0},{"$f":"SUMIFS(Sheet1!S71_OY2AdjustedBudget,Sheet1!S71_SA30FDSubCode,$AC:$AC)","v":0},null,null,null,null,null,null,null,null,null,null,"0190","D"]
["Dividends received",null,{"$f":"IF(SUMIFS(Sheet1!S71_JulyActual,Sheet1!S71_SA30FDSubCode,$AC:$AC)=0,P15/12,SUMIFS(Sheet1!S71_JulyActual,Sheet1!S71_SA30FDSubCode,$AC:$AC))","v":0},{"$f":"IF(SUMIFS(Sheet1!S71_AugustActual,Sheet1!S71_SA30FDSubCode,$AC:$AC)=0,P15/12,SUMIFS(Sheet1!S71_AugustActual,Sheet1!S71_SA30FDSubCode,$AC:$AC))","v":0},{"$f":"IF(SUMIFS(Sheet1!S71_SeptemberActual,Sheet1!S71_SA30FDSubCode,$AC:$AC)=0,P15/12,SUMIFS(Sheet1!S71_SeptemberActual,Sheet1!S71_SA30FDSubCode,$AC:$AC))","v":0},{"$f":"IF(SUMIFS(Sheet1!S71_OctoberActual,Sheet1!S71_SA30FDSubCode,$AC:$AC)=0,P15/12,SUMIFS(Sheet1!S71_OctoberActual,Sheet1!S71_SA30FDSubCode,$AC:$AC))","v":0},{"$f":"IF(SUMIFS(Sheet1!S71_NovemberActual,Sheet1!S71_SA30FDSubCode,$AC:$AC)=0,P15/12,SUMIFS(Sheet1!S71_NovemberActual,Sheet1!S71_SA30FDSubCode,$AC:$AC))","v":0},{"$f":"IF(SUMIFS(Sheet1!S71_DecemberActual,Sheet1!S71_SA30FDSubCode,$AC:$AC)=0,P15/12,SUMIFS(Sheet1!S71_DecemberActual,Sheet1!S71_SA30FDSubCode,$AC:$AC))","v":0},{"$f":"$P$15/12","v":0},0,0,0,0,0,0,{"$f":"SUMIFS(Sheet1!S71_CurrentAdjustedBudget,Sheet1!S71_SA30FDSubCode,$AC:$AC)","v":0},{"$f":"SUMIFS(Sheet1!S71_OY1AdjustedBudget,Sheet1!S71_SA30FDSubCode,$AC:$AC)","v":0},{"$f":"SUMIFS(Sheet1!S71_OY2AdjustedBudget,Sheet1!S71_SA30FDSubCode,$AC:$AC)","v":0},null,null,null,null,null,null,null,null,null,null,"0200","D"]
["Fines, penalties and forfeits",null,{"$f":"IF(SUMIFS(Sheet1!S71_JulyActual,Sheet1!S71_SA30FDSubCode,$AC:$AC)=0,P16/12,SUMIFS(Sheet1!S71_JulyActual,Sheet1!S71_SA30FDSubCode,$AC:$AC))","v":800},{"$f":"IF(SUMIFS(Sheet1!S71_AugustActual,Sheet1!S71_SA30FDSubCode,$AC:$AC)=0,P16/12,SUMIFS(Sheet1!S71_AugustActual,Sheet1!S71_SA30FDSubCode,$AC:$AC))","v":1190},{"$f":"IF(SUMIFS(Sheet1!S71_SeptemberActual,Sheet1!S71_SA30FDSubCode,$AC:$AC)=0,P16/12,SUMIFS(Sheet1!S71_SeptemberActual,Sheet1!S71_SA30FDSubCode,$AC:$AC))","v":7150},{"$f":"IF(SUMIFS(Sheet1!S71_OctoberActual,Sheet1!S71_SA30FDSubCode,$AC:$AC)=0,P16/12,SUMIFS(Sheet1!S71_OctoberActual,Sheet1!S71_SA30FDSubCode,$AC:$AC))","v":6350},{"$f":"IF(SUMIFS(Sheet1!S71_NovemberActual,Sheet1!S71_SA30FDSubCode,$AC:$AC)=0,P16/12,SUMIFS(Sheet1!S71_NovemberActual,Sheet1!S71_SA30FDSubCode,$AC:$AC))","v":760},{"$f":"IF(SUMIFS(Sheet1!S71_DecemberActual,Sheet1!S71_SA30FDSubCode,$AC:$AC)=0,P16/12,SUMIFS(Sheet1!S71_DecemberActual,Sheet1!S71_SA30FDSubCode,$AC:$AC))","v":2810},{"$f":"$P$16/12","v":0},0,0,0,0,-19060,0,{"$f":"SUMIFS(Sheet1!S71_CurrentAdjustedBudget,Sheet1!S71_SA30FDSubCode,$AC:$AC)","v":0},{"$f":"SUMIFS(Sheet1!S71_OY1AdjustedBudget,Sheet1!S71_SA30FDSubCode,$AC:$AC)","v":79509},{"$f":"SUMIFS(Sheet1!S71_OY2AdjustedBudget,Sheet1!S71_SA30FDSubCode,$AC:$AC)","v":83172},null,null,null,null,null,null,null,null,null,null,"0210","D"]
["Licences and permits",null,{"$f":"IF(SUMIFS(Sheet1!S71_JulyActual,Sheet1!S71_SA30FDSubCode,$AC:$AC)=0,P17/12,SUMIFS(Sheet1!S71_JulyActual,Sheet1!S71_SA30FDSubCode,$AC:$AC))","v":0},{"$f":"IF(SUMIFS(Sheet1!S71_AugustActual,Sheet1!S71_SA30FDSubCode,$AC:$AC)=0,P17/12,SUMIFS(Sheet1!S71_AugustActual,Sheet1!S71_SA30FDSubCode,$AC:$AC))","v":0},{"$f":"IF(SUMIFS(Sheet1!S71_SeptemberActual,Sheet1!S71_SA30FDSubCode,$AC:$AC)=0,P17/12,SUMIFS(Sheet1!S71_SeptemberActual,Sheet1!S71_SA30FDSubCode,$AC:$AC))","v":0},{"$f":"IF(SUMIFS(Sheet1!S71_OctoberActual,Sheet1!S71_SA30FDSubCode,$AC:$AC)=0,P17/12,SUMIFS(Sheet1!S71_OctoberActual,Sheet1!S71_SA30FDSubCode,$AC:$AC))","v":0},{"$f":"IF(SUMIFS(Sheet1!S71_NovemberActual,Sheet1!S71_SA30FDSubCode,$AC:$AC)=0,P17/12,SUMIFS(Sheet1!S71_NovemberActual,Sheet1!S71_SA30FDSubCode,$AC:$AC))","v":0},{"$f":"IF(SUMIFS(Sheet1!S71_DecemberActual,Sheet1!S71_SA30FDSubCode,$AC:$AC)=0,P17/12,SUMIFS(Sheet1!S71_DecemberActual,Sheet1!S71_SA30FDSubCode,$AC:$AC))","v":0},{"$f":"$P$17/12","v":0},0,0,0,0,0,0,{"$f":"SUMIFS(Sheet1!S71_CurrentAdjustedBudget,Sheet1!S71_SA30FDSubCode,$AC:$AC)","v":0},{"$f":"SUMIFS(Sheet1!S71_OY1AdjustedBudget,Sheet1!S71_SA30FDSubCode,$AC:$AC)","v":1150600},{"$f":"SUMIFS(Sheet1!S71_OY2AdjustedBudget,Sheet1!S71_SA30FDSubCode,$AC:$AC)","v":1203528},null,null,null,null,null,null,null,null,null,null,"0220","D"]
["Agency services",null,{"$f":"IF(SUMIFS(Sheet1!S71_JulyActual,Sheet1!S71_SA30FDSubCode,$AC:$AC)=0,P18/12,SUMIFS(Sheet1!S71_JulyActual,Sheet1!S71_SA30FDSubCode,$AC:$AC))","v":0},{"$f":"IF(SUMIFS(Sheet1!S71_AugustActual,Sheet1!S71_SA30FDSubCode,$AC:$AC)=0,P18/12,SUMIFS(Sheet1!S71_AugustActual,Sheet1!S71_SA30FDSubCode,$AC:$AC))","v":0},{"$f":"IF(SUMIFS(Sheet1!S71_SeptemberActual,Sheet1!S71_SA30FDSubCode,$AC:$AC)=0,P18/12,SUMIFS(Sheet1!S71_SeptemberActual,Sheet1!S71_SA30FDSubCode,$AC:$AC))","v":0},{"$f":"IF(SUMIFS(Sheet1!S71_OctoberActual,Sheet1!S71_SA30FDSubCode,$AC:$AC)=0,P18/12,SUMIFS(Sheet1!S71_OctoberActual,Sheet1!S71_SA30FDSubCode,$AC:$AC))","v":0},{"$f":"IF(SUMIFS(Sheet1!S71_NovemberActual,Sheet1!S71_SA30FDSubCode,$AC:$AC)=0,P18/12,SUMIFS(Sheet1!S71_NovemberActual,Sheet1!S71_SA30FDSubCode,$AC:$AC))","v":0},{"$f":"IF(SUMIFS(Sheet1!S71_DecemberActual,Sheet1!S71_SA30FDSubCode,$AC:$AC)=0,P18/12,SUMIFS(Sheet1!S71_DecemberActual,Sheet1!S71_SA30FDSubCode,$AC:$AC))","v":0},{"$f":"$P$18/12","v":0},0,0,0,0,0,0,{"$f":"SUMIFS(Sheet1!S71_CurrentAdjustedBudget,Sheet1!S71_SA30FDSubCode,$AC:$AC)","v":0},{"$f":"SUMIFS(Sheet1!S71_OY1AdjustedBudget,Sheet1!S71_SA30FDSubCode,$AC:$AC)","v":0},{"$f":"SUMIFS(Sheet1!S71_OY2AdjustedBudget,Sheet1!S71_SA30FDSubCode,$AC:$AC)","v":0},null,null,null,null,null,null,null,null,null,null,"0230","D"]
["Transfers and Subsidies - Operational",null,{"$f":"IF(SUMIFS(Sheet1!S71_JulyActual,Sheet1!S71_SA30FDSubCode,$AC:$AC)=0,P19/12,SUMIFS(Sheet1!S71_JulyActual,Sheet1!S71_SA30FDSubCode,$AC:$AC))","v":103826292.97},{"$f":"IF(SUMIFS(Sheet1!S71_AugustActual,Sheet1!S71_SA30FDSubCode,$AC:$AC)=0,P19/12,SUMIFS(Sheet1!S71_AugustActual,Sheet1!S71_SA30FDSubCode,$AC:$AC))","v":125000},{"$f":"IF(SUMIFS(Sheet1!S71_SeptemberActual,Sheet1!S71_SA30FDSubCode,$AC:$AC)=0,P19/12,SUMIFS(Sheet1!S71_SeptemberActual,Sheet1!S71_SA30FDSubCode,$AC:$AC))","v":125000},{"$f":"IF(SUMIFS(Sheet1!S71_OctoberActual,Sheet1!S71_SA30FDSubCode,$AC:$AC)=0,P19/12,SUMIFS(Sheet1!S71_OctoberActual,Sheet1!S71_SA30FDSubCode,$AC:$AC))","v":125000},{"$f":"IF(SUMIFS(Sheet1!S71_NovemberActual,Sheet1!S71_SA30FDSubCode,$AC:$AC)=0,P19/12,SUMIFS(Sheet1!S71_NovemberActual,Sheet1!S71_SA30FDSubCode,$AC:$AC))","v":51536792.369999997},{"$f":"IF(SUMIFS(Sheet1!S71_DecemberActual,Sheet1!S71_SA30FDSubCode,$AC:$AC)=0,P19/12,SUMIFS(Sheet1!S71_DecemberActual,Sheet1!S71_SA30FDSubCode,$AC:$AC))","v":111196000},{"$f":"$P$19/12","v":125000},125000,125000,125000,125000,-266059085.34,1500000,{"$f":"SUMIFS(Sheet1!S71_CurrentAdjustedBudget,Sheet1!S71_SA30FDSubCode,$AC:$AC)","v":1500000},{"$f":"SUMIFS(Sheet1!S71_OY1AdjustedBudget,Sheet1!S71_SA30FDSubCode,$AC:$AC)","v":260257451},{"$f":"SUMIFS(Sheet1!S71_OY2AdjustedBudget,Sheet1!S71_SA30FDSubCode,$AC:$AC)","v":255861150},null,null,null,null,null,null,null,null,null,null,"0240","D"]
["Other revenue",null,{"$f":"IF(SUMIFS(Sheet1!S71_JulyActual,Sheet1!S71_SA30FDSubCode,$AC:$AC)=0,P20/12,SUMIFS(Sheet1!S71_JulyActual,Sheet1!S71_SA30FDSubCode,$AC:$AC))","v":0},{"$f":"IF(SUMIFS(Sheet1!S71_AugustActual,Sheet1!S71_SA30FDSubCode,$AC:$AC)=0,P20/12,SUMIFS(Sheet1!S71_AugustActual,Sheet1!S71_SA30FDSubCode,$AC:$AC))","v":0},{"$f":"IF(SUMIFS(Sheet1!S71_SeptemberActual,Sheet1!S71_SA30FDSubCode,$AC:$AC)=0,P20/12,SUMIFS(Sheet1!S71_SeptemberActual,Sheet1!S71_SA30FDSubCode,$AC:$AC))","v":0},{"$f":"IF(SUMIFS(Sheet1!S71_OctoberActual,Sheet1!S71_SA30FDSubCode,$AC:$AC)=0,P20/12,SUMIFS(Sheet1!S71_OctoberActual,Sheet1!S71_SA30FDSubCode,$AC:$AC))","v":0},{"$f":"IF(SUMIFS(Sheet1!S71_NovemberActual,Sheet1!S71_SA30FDSubCode,$AC:$AC)=0,P20/12,SUMIFS(Sheet1!S71_NovemberActual,Sheet1!S71_SA30FDSubCode,$AC:$AC))","v":0},{"$f":"IF(SUMIFS(Sheet1!S71_DecemberActual,Sheet1!S71_SA30FDSubCode,$AC:$AC)=0,P20/12,SUMIFS(Sheet1!S71_DecemberActual,Sheet1!S71_SA30FDSubCode,$AC:$AC))","v":0},{"$f":"$P$20/12","v":0},0,0,0,0,0,0,{"$f":"SUMIFS(Sheet1!S71_CurrentAdjustedBudget,Sheet1!S71_SA30FDSubCode,$AC:$AC)","v":0},{"$f":"SUMIFS(Sheet1!S71_OY1AdjustedBudget,Sheet1!S71_SA30FDSubCode,$AC:$AC)","v":3293283},{"$f":"SUMIFS(Sheet1!S71_OY2AdjustedBudget,Sheet1!S71_SA30FDSubCode,$AC:$AC)","v":7884951},null,null,null,null,null,null,null,null,null,null,"250","D"]
["Cash Receipts by Source",null,{"$f":"SUM(C6:C10)+SUM(C12:C20)","v":171709216},{"$f":"SUM(D6:D10)+SUM(D12:D20)","v":615561.25},481371.86000000004,442191.6,51851058.509999998,111632903.36,125000,125000,125000,125000,125000,-335857302.57999998,1500000,1500000,405619801,412540538]
[]
["Other Cash Flows by Source"]
["Transfers and subsidies - capital (monetary allocations) (National / Provincial and District)",null,{"$f":"IF(SUMIFS(Sheet1!S71_JulyActual,Sheet1!S71_SA30FDSubCode,$AC:$AC)=0,P24/12,SUMIFS(Sheet1!S71_JulyActual,Sheet1!S71_SA30FDSubCode,$AC:$AC))","v":13601676.32},{"$f":"IF(SUMIFS(Sheet1!S71_AugustActual,Sheet1!S71_SA30FDSubCode,$AC:$AC)=0,P24/12,SUMIFS(Sheet1!S71_AugustActual,Sheet1!S71_SA30FDSubCode,$AC:$AC))","v":69.41},{"$f":"IF(SUMIFS(Sheet1!S71_SeptemberActual,Sheet1!S71_SA30FDSubCode,$AC:$AC)=0,P24/12,SUMIFS(Sheet1!S71_SeptemberActual,Sheet1!S71_SA30FDSubCode,$AC:$AC))","v":66.72},{"$f":"IF(SUMIFS(Sheet1!S71_OctoberActual,Sheet1!S71_SA30FDSubCode,$AC:$AC)=0,P24/12,SUMIFS(Sheet1!S71_OctoberActual,Sheet1!S71_SA30FDSubCode,$AC:$AC))","v":8023067.8099999996},{"$f":"IF(SUMIFS(Sheet1!S71_NovemberActual,Sheet1!S71_SA30FDSubCode,$AC:$AC)=0,P24/12,SUMIFS(Sheet1!S71_NovemberActual,Sheet1!S71_SA30FDSubCode,$AC:$AC))","v":431791.66666666669},{"$f":"IF(SUMIFS(Sheet1!S71_DecemberActual,Sheet1!S71_SA30FDSubCode,$AC:$AC)=0,P24/12,SUMIFS(Sheet1!S71_DecemberActual,Sheet1!S71_SA30FDSubCode,$AC:$AC))","v":16908066.120000001},{"$f":"$P$24/12","v":431791.66666666669},431791.66666666669,431791.66666666669,431791.66666666669,431791.66666666669,{"$f":"P24-SUM(C24:M24)","v":-35942196.379999988},{"$f":"SUM(C24:N24)","v":5181500},{"$f":"SUMIFS(Sheet1!S71_CurrentAdjustedBudget,Sheet1!S71_SA30FDSubCode,$AC:$AC)","v":5181500},{"$f":"SUMIFS(Sheet1!S71_OY1AdjustedBudget,Sheet1!S71_SA30FDSubCode,$AC:$AC)","v":40839550},{"$f":"SUMIFS(Sheet1!S71_OY2AdjustedBudget,Sheet1!S71_SA30FDSubCode,$AC:$AC)","v":44177850},null,null,null,null,null,null,null,null,null,null,"0280"]
["Transfers and subsidies - capital (monetary allocations) (Nat / Prov Departm Agencies, Households, Non-profit Institutions, Private Enterprises, Public Corporatons, Higher Educ Institutions)",null,{"$f":"IF(SUMIFS(Sheet1!S71_JulyActual,Sheet1!S71_SA30FDSubCode,$AC:$AC)=0,P25/12,SUMIFS(Sheet1!S71_JulyActual,Sheet1!S71_SA30FDSubCode,$AC:$AC))","v":0},{"$f":"IF(SUMIFS(Sheet1!S71_AugustActual,Sheet1!S71_SA30FDSubCode,$AC:$AC)=0,P25/12,SUMIFS(Sheet1!S71_AugustActual,Sheet1!S71_SA30FDSubCode,$AC:$AC))","v":0},{"$f":"IF(SUMIFS(Sheet1!S71_SeptemberActual,Sheet1!S71_SA30FDSubCode,$AC:$AC)=0,P25/12,SUMIFS(Sheet1!S71_SeptemberActual,Sheet1!S71_SA30FDSubCode,$AC:$AC))","v":0},{"$f":"IF(SUMIFS(Sheet1!S71_OctoberActual,Sheet1!S71_SA30FDSubCode,$AC:$AC)=0,P25/12,SUMIFS(Sheet1!S71_OctoberActual,Sheet1!S71_SA30FDSubCode,$AC:$AC))","v":0},{"$f":"IF(SUMIFS(Sheet1!S71_NovemberActual,Sheet1!S71_SA30FDSubCode,$AC:$AC)=0,P25/12,SUMIFS(Sheet1!S71_NovemberActual,Sheet1!S71_SA30FDSubCode,$AC:$AC))","v":0},{"$f":"IF(SUMIFS(Sheet1!S71_DecemberActual,Sheet1!S71_SA30FDSubCode,$AC:$AC)=0,P25/12,SUMIFS(Sheet1!S71_DecemberActual,Sheet1!S71_SA30FDSubCode,$AC:$AC))","v":0},{"$f":"$P$25/12","v":0},0,0,0,0,0,{"$f":"SUM(C25:N25)","v":0},{"$f":"SUMIFS(Sheet1!S71_CurrentAdjustedBudget,Sheet1!S71_SA30FDSubCode,$AC:$AC)","v":0},{"$f":"SUMIFS(Sheet1!S71_OY1AdjustedBudget,Sheet1!S71_SA30FDSubCode,$AC:$AC)","v":0},{"$f":"SUMIFS(Sheet1!S71_OY2AdjustedBudget,Sheet1!S71_SA30FDSubCode,$AC:$AC)","v":0},null,null,null,null,null,null,null,null,null,null,"0290"]
["Proceeds on Disposal of Fixed and Intangible Assets",null,{"$f":"IF(SUMIFS(Sheet1!S71_JulyActual,Sheet1!S71_SA30FDSubCode,$AC:$AC)=0,P26/12,SUMIFS(Sheet1!S71_JulyActual,Sheet1!S71_SA30FDSubCode,$AC:$AC))","v":0},{"$f":"IF(SUMIFS(Sheet1!S71_AugustActual,Sheet1!S71_SA30FDSubCode,$AC:$AC)=0,P26/12,SUMIFS(Sheet1!S71_AugustActual,Sheet1!S71_SA30FDSubCode,$AC:$AC))","v":0},{"$f":"IF(SUMIFS(Sheet1!S71_SeptemberActual,Sheet1!S71_SA30FDSubCode,$AC:$AC)=0,P26/12,SUMIFS(Sheet1!S71_SeptemberActual,Sheet1!S71_SA30FDSubCode,$AC:$AC))","v":0},{"$f":"IF(SUMIFS(Sheet1!S71_OctoberActual,Sheet1!S71_SA30FDSubCode,$AC:$AC)=0,P26/12,SUMIFS(Sheet1!S71_OctoberActual,Sheet1!S71_SA30FDSubCode,$AC:$AC))","v":0},{"$f":"IF(SUMIFS(Sheet1!S71_NovemberActual,Sheet1!S71_SA30FDSubCode,$AC:$AC)=0,P26/12,SUMIFS(Sheet1!S71_NovemberActual,Sheet1!S71_SA30FDSubCode,$AC:$AC))","v":0},{"$f":"IF(SUMIFS(Sheet1!S71_DecemberActual,Sheet1!S71_SA30FDSubCode,$AC:$AC)=0,P26/12,SUMIFS(Sheet1!S71_DecemberActual,Sheet1!S71_SA30FDSubCode,$AC:$AC))","v":0},{"$f":"$P$26/12","v":0},0,0,0,0,0,{"$f":"SUM(C26:N26)","v":0},{"$f":"SUMIFS(Sheet1!S71_CurrentAdjustedBudget,Sheet1!S71_SA30FDSubCode,$AC:$AC)","v":0},{"$f":"SUMIFS(Sheet1!S71_OY1AdjustedBudget,Sheet1!S71_SA30FDSubCode,$AC:$AC)","v":0},{"$f":"SUMIFS(Sheet1!S71_OY2AdjustedBudget,Sheet1!S71_SA30FDSubCode,$AC:$AC)","v":0},null,null,null,null,null,null,null,null,null,null,"0300"]
["Short term loans",null,{"$f":"IF(SUMIFS(Sheet1!S71_JulyActual,Sheet1!S71_SA30FDSubCode,$AC:$AC)=0,P27/12,SUMIFS(Sheet1!S71_JulyActual,Sheet1!S71_SA30FDSubCode,$AC:$AC))","v":0},{"$f":"IF(SUMIFS(Sheet1!S71_AugustActual,Sheet1!S71_SA30FDSubCode,$AC:$AC)=0,P27/12,SUMIFS(Sheet1!S71_AugustActual,Sheet1!S71_SA30FDSubCode,$AC:$AC))","v":0},{"$f":"IF(SUMIFS(Sheet1!S71_SeptemberActual,Sheet1!S71_SA30FDSubCode,$AC:$AC)=0,P27/12,SUMIFS(Sheet1!S71_SeptemberActual,Sheet1!S71_SA30FDSubCode,$AC:$AC))","v":0},{"$f":"IF(SUMIFS(Sheet1!S71_OctoberActual,Sheet1!S71_SA30FDSubCode,$AC:$AC)=0,P27/12,SUMIFS(Sheet1!S71_OctoberActual,Sheet1!S71_SA30FDSubCode,$AC:$AC))","v":0},{"$f":"IF(SUMIFS(Sheet1!S71_NovemberActual,Sheet1!S71_SA30FDSubCode,$AC:$AC)=0,P27/12,SUMIFS(Sheet1!S71_NovemberActual,Sheet1!S71_SA30FDSubCode,$AC:$AC))","v":0},{"$f":"IF(SUMIFS(Sheet1!S71_DecemberActual,Sheet1!S71_SA30FDSubCode,$AC:$AC)=0,P27/12,SUMIFS(Sheet1!S71_DecemberActual,Sheet1!S71_SA30FDSubCode,$AC:$AC))","v":0},{"$f":"$P$27/12","v":0},0,0,0,0,0,{"$f":"SUM(C27:N27)","v":0},{"$f":"SUMIFS(Sheet1!S71_CurrentAdjustedBudget,Sheet1!S71_SA30FDSubCode,$AC:$AC)","v":0},{"$f":"SUMIFS(Sheet1!S71_OY1AdjustedBudget,Sheet1!S71_SA30FDSubCode,$AC:$AC)","v":0},{"$f":"SUMIFS(Sheet1!S71_OY2AdjustedBudget,Sheet1!S71_SA30FDSubCode,$AC:$AC)","v":0},null,null,null,null,null,null,null,null,null,null,"0310"]
["Borrowing long term/refinancing",null,{"$f":"IF(SUMIFS(Sheet1!S71_JulyActual,Sheet1!S71_SA30FDSubCode,$AC:$AC)=0,P28/12,SUMIFS(Sheet1!S71_JulyActual,Sheet1!S71_SA30FDSubCode,$AC:$AC))","v":0},{"$f":"IF(SUMIFS(Sheet1!S71_AugustActual,Sheet1!S71_SA30FDSubCode,$AC:$AC)=0,P28/12,SUMIFS(Sheet1!S71_AugustActual,Sheet1!S71_SA30FDSubCode,$AC:$AC))","v":0},{"$f":"IF(SUMIFS(Sheet1!S71_SeptemberActual,Sheet1!S71_SA30FDSubCode,$AC:$AC)=0,P28/12,SUMIFS(Sheet1!S71_SeptemberActual,Sheet1!S71_SA30FDSubCode,$AC:$AC))","v":0},{"$f":"IF(SUMIFS(Sheet1!S71_OctoberActual,Sheet1!S71_SA30FDSubCode,$AC:$AC)=0,P28/12,SUMIFS(Sheet1!S71_OctoberActual,Sheet1!S71_SA30FDSubCode,$AC:$AC))","v":0},{"$f":"IF(SUMIFS(Sheet1!S71_NovemberActual,Sheet1!S71_SA30FDSubCode,$AC:$AC)=0,P28/12,SUMIFS(Sheet1!S71_NovemberActual,Sheet1!S71_SA30FDSubCode,$AC:$AC))","v":0},{"$f":"IF(SUMIFS(Sheet1!S71_DecemberActual,Sheet1!S71_SA30FDSubCode,$AC:$AC)=0,P28/12,SUMIFS(Sheet1!S71_DecemberActual,Sheet1!S71_SA30FDSubCode,$AC:$AC))","v":0},{"$f":"$P$28/12","v":0},0,0,0,0,0,null,{"$f":"SUMIFS(Sheet1!S71_CurrentAdjustedBudget,Sheet1!S71_SA30FDSubCode,$AC:$AC)","v":0},{"$f":"SUMIFS(Sheet1!S71_OY1AdjustedBudget,Sheet1!S71_SA30FDSubCode,$AC:$AC)","v":0},{"$f":"SUMIFS(Sheet1!S71_OY2AdjustedBudget,Sheet1!S71_SA30FDSubCode,$AC:$AC)","v":0},null,null,null,null,null,null,null,null,null,null,"0320"]
["Increase (decrease) in consumer deposits",null,{"$f":"IF(SUMIFS(Sheet1!S71_JulyActual,Sheet1!S71_SA30FDSubCode,$AC:$AC)=0,P29/12,SUMIFS(Sheet1!S71_JulyActual,Sheet1!S71_SA30FDSubCode,$AC:$AC))","v":0},{"$f":"IF(SUMIFS(Sheet1!S71_AugustActual,Sheet1!S71_SA30FDSubCode,$AC:$AC)=0,P29/12,SUMIFS(Sheet1!S71_AugustActual,Sheet1!S71_SA30FDSubCode,$AC:$AC))","v":0},{"$f":"IF(SUMIFS(Sheet1!S71_SeptemberActual,Sheet1!S71_SA30FDSubCode,$AC:$AC)=0,P29/12,SUMIFS(Sheet1!S71_SeptemberActual,Sheet1!S71_SA30FDSubCode,$AC:$AC))","v":0},{"$f":"IF(SUMIFS(Sheet1!S71_OctoberActual,Sheet1!S71_SA30FDSubCode,$AC:$AC)=0,P29/12,SUMIFS(Sheet1!S71_OctoberActual,Sheet1!S71_SA30FDSubCode,$AC:$AC))","v":0},{"$f":"IF(SUMIFS(Sheet1!S71_NovemberActual,Sheet1!S71_SA30FDSubCode,$AC:$AC)=0,P29/12,SUMIFS(Sheet1!S71_NovemberActual,Sheet1!S71_SA30FDSubCode,$AC:$AC))","v":0},{"$f":"IF(SUMIFS(Sheet1!S71_DecemberActual,Sheet1!S71_SA30FDSubCode,$AC:$AC)=0,P29/12,SUMIFS(Sheet1!S71_DecemberActual,Sheet1!S71_SA30FDSubCode,$AC:$AC))","v":0},{"$f":"$P$29/12","v":0},0,0,0,0,0,null,{"$f":"SUMIFS(Sheet1!S71_CurrentAdjustedBudget,Sheet1!S71_SA30FDSubCode,$AC:$AC)","v":0},{"$f":"SUMIFS(Sheet1!S71_OY1AdjustedBudget,Sheet1!S71_SA30FDSubCode,$AC:$AC)","v":0},{"$f":"SUMIFS(Sheet1!S71_OY2AdjustedBudget,Sheet1!S71_SA30FDSubCode,$AC:$AC)","v":0},null,null,null,null,null,null,null,null,null,null,"0330"]
[null,null,{"$f":"IF(SUMIFS(Sheet1!S71_JulyActual,Sheet1!S71_SA30FDSubCode,$AC:$AC)=0,P30/12,SUMIFS(Sheet1!S71_JulyActual,Sheet1!S71_SA30FDSubCode,$AC:$AC))","v":0},{"$f":"IF(SUMIFS(Sheet1!S71_AugustActual,Sheet1!S71_SA30FDSubCode,$AC:$AC)=0,P30/12,SUMIFS(Sheet1!S71_AugustActual,Sheet1!S71_SA30FDSubCode,$AC:$AC))","v":0},{"$f":"IF(SUMIFS(Sheet1!S71_SeptemberActual,Sheet1!S71_SA30FDSubCode,$AC:$AC)=0,P30/12,SUMIFS(Sheet1!S71_SeptemberActual,Sheet1!S71_SA30FDSubCode,$AC:$AC))","v":0},{"$f":"IF(SUMIFS(Sheet1!S71_OctoberActual,Sheet1!S71_SA30FDSubCode,$AC:$AC)=0,P30/12,SUMIFS(Sheet1!S71_OctoberActual,Sheet1!S71_SA30FDSubCode,$AC:$AC))","v":0},{"$f":"IF(SUMIFS(Sheet1!S71_NovemberActual,Sheet1!S71_SA30FDSubCode,$AC:$AC)=0,P30/12,SUMIFS(Sheet1!S71_NovemberActual,Sheet1!S71_SA30FDSubCode,$AC:$AC))","v":0},{"$f":"IF(SUMIFS(Sheet1!S71_DecemberActual,Sheet1!S71_SA30FDSubCode,$AC:$AC)=0,P30/12,SUMIFS(Sheet1!S71_DecemberActual,Sheet1!S71_SA30FDSubCode,$AC:$AC))","v":0},{"$f":"V30/12","v":0},0,0,0,0,null,null,{"$f":"SUMIFS(Sheet1!S71_CurrentAdjustedBudget,Sheet1!S71_SA30FDSubCode,$AC:$AC)","v":0},{"$f":"SUMIFS(Sheet1!S71_OY1AdjustedBudget,Sheet1!S71_SA30FDSubCode,$AC:$AC)","v":0},{"$f":"SUMIFS(Sheet1!S71_OY2AdjustedBudget,Sheet1!S71_SA30FDSubCode,$AC:$AC)","v":0}]
["Decrease (increase) in non-current receivables",null,{"$f":"IF(SUMIFS(Sheet1!S71_JulyActual,Sheet1!S71_SA30FDSubCode,$AC:$AC)=0,P31/12,SUMIFS(Sheet1!S71_JulyActual,Sheet1!S71_SA30FDSubCode,$AC:$AC))","v":0},{"$f":"IF(SUMIFS(Sheet1!S71_AugustActual,Sheet1!S71_SA30FDSubCode,$AC:$AC)=0,P31/12,SUMIFS(Sheet1!S71_AugustActual,Sheet1!S71_SA30FDSubCode,$AC:$AC))","v":0},{"$f":"IF(SUMIFS(Sheet1!S71_SeptemberActual,Sheet1!S71_SA30FDSubCode,$AC:$AC)=0,P31/12,SUMIFS(Sheet1!S71_SeptemberActual,Sheet1!S71_SA30FDSubCode,$AC:$AC))","v":0},{"$f":"IF(SUMIFS(Sheet1!S71_OctoberActual,Sheet1!S71_SA30FDSubCode,$AC:$AC)=0,P31/12,SUMIFS(Sheet1!S71_OctoberActual,Sheet1!S71_SA30FDSubCode,$AC:$AC))","v":0},{"$f":"IF(SUMIFS(Sheet1!S71_NovemberActual,Sheet1!S71_SA30FDSubCode,$AC:$AC)=0,P31/12,SUMIFS(Sheet1!S71_NovemberActual,Sheet1!S71_SA30FDSubCode,$AC:$AC))","v":0},{"$f":"IF(SUMIFS(Sheet1!S71_DecemberActual,Sheet1!S71_SA30FDSubCode,$AC:$AC)=0,P31/12,SUMIFS(Sheet1!S71_DecemberActual,Sheet1!S71_SA30FDSubCode,$AC:$AC))","v":0},{"$f":"$P$31/12","v":0},0,0,0,0,0,null,{"$f":"SUMIFS(Sheet1!S71_CurrentAdjustedBudget,Sheet1!S71_SA30FDSubCode,$AC:$AC)","v":0},{"$f":"SUMIFS(Sheet1!S71_OY1AdjustedBudget,Sheet1!S71_SA30FDSubCode,$AC:$AC)","v":0},{"$f":"SUMIFS(Sheet1!S71_OY2AdjustedBudget,Sheet1!S71_SA30FDSubCode,$AC:$AC)","v":0},null,null,null,null,null,null,null,null,null,null,"0350"]
["Decrease (increase) in non-current investments",null,{"$f":"IF(SUMIFS(Sheet1!S71_JulyActual,Sheet1!S71_SA30FDSubCode,$AC:$AC)=0,P32/12,SUMIFS(Sheet1!S71_JulyActual,Sheet1!S71_SA30FDSubCode,$AC:$AC))","v":0},{"$f":"IF(SUMIFS(Sheet1!S71_AugustActual,Sheet1!S71_SA30FDSubCode,$AC:$AC)=0,P32/12,SUMIFS(Sheet1!S71_AugustActual,Sheet1!S71_SA30FDSubCode,$AC:$AC))","v":0},{"$f":"IF(SUMIFS(Sheet1!S71_SeptemberActual,Sheet1!S71_SA30FDSubCode,$AC:$AC)=0,P32/12,SUMIFS(Sheet1!S71_SeptemberActual,Sheet1!S71_SA30FDSubCode,$AC:$AC))","v":0},{"$f":"IF(SUMIFS(Sheet1!S71_OctoberActual,Sheet1!S71_SA30FDSubCode,$AC:$AC)=0,P32/12,SUMIFS(Sheet1!S71_OctoberActual,Sheet1!S71_SA30FDSubCode,$AC:$AC))","v":0},{"$f":"IF(SUMIFS(Sheet1!S71_NovemberActual,Sheet1!S71_SA30FDSubCode,$AC:$AC)=0,P32/12,SUMIFS(Sheet1!S71_NovemberActual,Sheet1!S71_SA30FDSubCode,$AC:$AC))","v":0},{"$f":"IF(SUMIFS(Sheet1!S71_DecemberActual,Sheet1!S71_SA30FDSubCode,$AC:$AC)=0,P32/12,SUMIFS(Sheet1!S71_DecemberActual,Sheet1!S71_SA30FDSubCode,$AC:$AC))","v":0},{"$f":"$P$32/12","v":0},0,0,0,0,0,null,{"$f":"SUMIFS(Sheet1!S71_CurrentAdjustedBudget,Sheet1!S71_SA30FDSubCode,$AC:$AC)","v":0},{"$f":"SUMIFS(Sheet1!S71_OY1AdjustedBudget,Sheet1!S71_SA30FDSubCode,$AC:$AC)","v":0},{"$f":"SUMIFS(Sheet1!S71_OY2AdjustedBudget,Sheet1!S71_SA30FDSubCode,$AC:$AC)","v":0},null,null,null,null,null,null,null,null,null,null,"0360"]
["Total Cash Receipts by Source",null,{"$f":"SUM(C21:C29)+SUM(C31:C32)","v":185310892.31999999},{"$f":"SUM(D21:D29)+SUM(D31:D32)","v":615630.66},481438.58,8465259.4100000001,52282850.176666662,128540969.48,556791.66666666674,556791.66666666674,556791.66666666674,556791.66666666674,556791.66666666674,-371799498.95999998,6681500,6681500,446459351,456718388]
[]
["Cash Payments by Type"]
["Employee related costs",null,{"$f":"IF(SUMIFS(Sheet1!S71_JulyActual,Sheet1!S71_A7SubCodePayments,$AC:$AC)=0,P36/12,SUMIFS(Sheet1!S71_JulyActual,Sheet1!S71_A7SubCodePayments,$AC:$AC))","v":6707572.0099999998},{"$f":"IF(SUMIFS(Sheet1!S71_AugustActual,Sheet1!S71_A7SubCodePayments,$AC:$AC)=0,P36/12,SUMIFS(Sheet1!S71_AugustActual,Sheet1!S71_A7SubCodePayments,$AC:$AC))","v":6828481.04},{"$f":"IF(SUMIFS(Sheet1!S71_SeptemberActual,Sheet1!S71_A7SubCodePayments,$AC:$AC)=0,P36/12,SUMIFS(Sheet1!S71_SeptemberActual,Sheet1!S71_A7SubCodePayments,$AC:$AC))","v":7122504.79},{"$f":"IF(SUMIFS(Sheet1!S71_OctoberActual,Sheet1!S71_A7SubCodePayments,$AC:$AC)=0,P36/12,SUMIFS(Sheet1!S71_OctoberActual,Sheet1!S71_A7SubCodePayments,$AC:$AC))","v":8541201.3599999994},{"$f":"IF(SUMIFS(Sheet1!S71_NovemberActual,Sheet1!S71_A7SubCodePayments,$AC:$AC)=0,P36/12,SUMIFS(Sheet1!S71_NovemberActual,Sheet1!S71_A7SubCodePayments,$AC:$AC))","v":7942598.3600000003},{"$f":"IF(SUMIFS(Sheet1!S71_DecemberActual,Sheet1!S71_A7SubCodePayments,$AC:$AC)=0,P36/12,SUMIFS(Sheet1!S71_DecemberActual,Sheet1!S71_A7SubCodePayments,$AC:$AC))","v":7681371.3600000003},{"$f":"$P$36/12","v":0},0,0,0,0,{"$f":"P36-SUM(C36:M36)","v":-44823728.920000002},{"$f":"SUM(C36:N36)","v":0},{"$f":"SUMIFS(Sheet1!S71_CurrentAdjustedBudget,Sheet1!S71_A7SubCodePayments,$AC:$AC)","v":0},{"$f":"SUMIFS(Sheet1!S71_OY1AdjustedBudget,Sheet1!S71_A7SubCodePayments,$AC:$AC)","v":153638430},{"$f":"SUMIFS(Sheet1!S71_OY2AdjustedBudget,Sheet1!S71_A7SubCodePayments,$AC:$AC)","v":154713325},null,null,null,null,null,null,null,null,null,null,"0390"]
["Remuneration of councillors",null,{"$f":"IF(SUMIFS(Sheet1!S71_JulyActual,Sheet1!S71_A7SubCodePayments,$AC:$AC)=0,P37/12,SUMIFS(Sheet1!S71_JulyActual,Sheet1!S71_A7SubCodePayments,$AC:$AC))","v":0},{"$f":"IF(SUMIFS(Sheet1!S71_AugustActual,Sheet1!S71_A7SubCodePayments,$AC:$AC)=0,P37/12,SUMIFS(Sheet1!S71_AugustActual,Sheet1!S71_A7SubCodePayments,$AC:$AC))","v":0},{"$f":"IF(SUMIFS(Sheet1!S71_SeptemberActual,Sheet1!S71_A7SubCodePayments,$AC:$AC)=0,P37/12,SUMIFS(Sheet1!S71_SeptemberActual,Sheet1!S71_A7SubCodePayments,$AC:$AC))","v":0},{"$f":"IF(SUMIFS(Sheet1!S71_OctoberActual,Sheet1!S71_A7SubCodePayments,$AC:$AC)=0,P37/12,SUMIFS(Sheet1!S71_OctoberActual,Sheet1!S71_A7SubCodePayments,$AC:$AC))","v":0},{"$f":"IF(SUMIFS(Sheet1!S71_NovemberActual,Sheet1!S71_A7SubCodePayments,$AC:$AC)=0,P37/12,SUMIFS(Sheet1!S71_NovemberActual,Sheet1!S71_A7SubCodePayments,$AC:$AC))","v":0},{"$f":"IF(SUMIFS(Sheet1!S71_DecemberActual,Sheet1!S71_A7SubCodePayments,$AC:$AC)=0,P37/12,SUMIFS(Sheet1!S71_DecemberActual,Sheet1!S71_A7SubCodePayments,$AC:$AC))","v":0},{"$f":"$P$37/12","v":0},0,0,0,0,0,{"$f":"SUM(C37:N37)","v":0},{"$f":"SUMIFS(Sheet1!S71_CurrentAdjustedBudget,Sheet1!S71_A7SubCodePayments,$AC:$AC)","v":0},{"$f":"SUMIFS(Sheet1!S71_OY1AdjustedBudget,Sheet1!S71_A7SubCodePayments,$AC:$AC)","v":16879241},{"$f":"SUMIFS(Sheet1!S71_OY2AdjustedBudget,Sheet1!S71_A7SubCodePayments,$AC:$AC)","v":17216832},null,null,null,null,null,null,null,null,null,null,"0400"]
["Finance charges",null,{"$f":"IF(SUMIFS(Sheet1!S71_JulyActual,Sheet1!S71_A7SubCodePayments,$AC:$AC)=0,P38/12,SUMIFS(Sheet1!S71_JulyActual,Sheet1!S71_A7SubCodePayments,$AC:$AC))","v":0},{"$f":"IF(SUMIFS(Sheet1!S71_AugustActual,Sheet1!S71_A7SubCodePayments,$AC:$AC)=0,P38/12,SUMIFS(Sheet1!S71_AugustActual,Sheet1!S71_A7SubCodePayments,$AC:$AC))","v":0},{"$f":"IF(SUMIFS(Sheet1!S71_SeptemberActual,Sheet1!S71_A7SubCodePayments,$AC:$AC)=0,P38/12,SUMIFS(Sheet1!S71_SeptemberActual,Sheet1!S71_A7SubCodePayments,$AC:$AC))","v":0},{"$f":"IF(SUMIFS(Sheet1!S71_OctoberActual,Sheet1!S71_A7SubCodePayments,$AC:$AC)=0,P38/12,SUMIFS(Sheet1!S71_OctoberActual,Sheet1!S71_A7SubCodePayments,$AC:$AC))","v":0},{"$f":"IF(SUMIFS(Sheet1!S71_NovemberActual,Sheet1!S71_A7SubCodePayments,$AC:$AC)=0,P38/12,SUMIFS(Sheet1!S71_NovemberActual,Sheet1!S71_A7SubCodePayments,$AC:$AC))","v":0},{"$f":"IF(SUMIFS(Sheet1!S71_DecemberActual,Sheet1!S71_A7SubCodePayments,$AC:$AC)=0,P38/12,SUMIFS(Sheet1!S71_DecemberActual,Sheet1!S71_A7SubCodePayments,$AC:$AC))","v":0},{"$f":"$P$38/12","v":0},0,0,0,0,0,{"$f":"SUM(C38:N38)","v":0},{"$f":"SUMIFS(Sheet1!S71_CurrentAdjustedBudget,Sheet1!S71_A7SubCodePayments,$AC:$AC)","v":0},{"$f":"SUMIFS(Sheet1!S71_OY1AdjustedBudget,Sheet1!S71_A7SubCodePayments,$AC:$AC)","v":3451800},{"$f":"SUMIFS(Sheet1!S71_OY2AdjustedBudget,Sheet1!S71_A7SubCodePayments,$AC:$AC)","v":3610581},null,null,null,null,null,null,null,null,null,null,"0410"]
["Bulk purchases - Electricity",2,{"$f":"IF(SUMIFS(Sheet1!S71_JulyActual,Sheet1!S71_A7SubCodePayments,$AC:$AC)=0,P39/12,SUMIFS(Sheet1!S71_JulyActual,Sheet1!S71_A7SubCodePayments,$AC:$AC))","v":0},{"$f":"IF(SUMIFS(Sheet1!S71_AugustActual,Sheet1!S71_A7SubCodePayments,$AC:$AC)=0,P39/12,SUMIFS(Sheet1!S71_AugustActual,Sheet1!S71_A7SubCodePayments,$AC:$AC))","v":0},{"$f":"IF(SUMIFS(Sheet1!S71_SeptemberActual,Sheet1!S71_A7SubCodePayments,$AC:$AC)=0,P39/12,SUMIFS(Sheet1!S71_SeptemberActual,Sheet1!S71_A7SubCodePayments,$AC:$AC))","v":0},{"$f":"IF(SUMIFS(Sheet1!S71_OctoberActual,Sheet1!S71_A7SubCodePayments,$AC:$AC)=0,P39/12,SUMIFS(Sheet1!S71_OctoberActual,Sheet1!S71_A7SubCodePayments,$AC:$AC))","v":0},{"$f":"IF(SUMIFS(Sheet1!S71_NovemberActual,Sheet1!S71_A7SubCodePayments,$AC:$AC)=0,P39/12,SUMIFS(Sheet1!S71_NovemberActual,Sheet1!S71_A7SubCodePayments,$AC:$AC))","v":0},{"$f":"IF(SUMIFS(Sheet1!S71_DecemberActual,Sheet1!S71_A7SubCodePayments,$AC:$AC)=0,P39/12,SUMIFS(Sheet1!S71_DecemberActual,Sheet1!S71_A7SubCodePayments,$AC:$AC))","v":0},{"$f":"$P$39/12","v":0},0,0,0,0,{"$f":"P39-SUM(C39:M39)","v":0},{"$f":"SUM(C39:N39)","v":0},{"$f":"SUMIFS(Sheet1!S71_CurrentAdjustedBudget,Sheet1!S71_A7SubCodePayments,$AC:$AC)","v":0},{"$f":"SUMIFS(Sheet1!S71_OY1AdjustedBudget,Sheet1!S71_A7SubCodePayments,$AC:$AC)","v":68038129},{"$f":"SUMIFS(Sheet1!S71_OY2AdjustedBudget,Sheet1!S71_A7SubCodePayments,$AC:$AC)","v":71220783},null,null,null,null,null,null,null,null,null,null,"0420"]
["Acquisitions - water & other inventory",3,{"$f":"IF(SUMIFS(Sheet1!S71_JulyActual,Sheet1!S71_A7SubCodePayments,$AC:$AC)=0,P40/12,SUMIFS(Sheet1!S71_JulyActual,Sheet1!S71_A7SubCodePayments,$AC:$AC))","v":0},{"$f":"IF(SUMIFS(Sheet1!S71_AugustActual,Sheet1!S71_A7SubCodePayments,$AC:$AC)=0,P40/12,SUMIFS(Sheet1!S71_AugustActual,Sheet1!S71_A7SubCodePayments,$AC:$AC))","v":0},{"$f":"IF(SUMIFS(Sheet1!S71_SeptemberActual,Sheet1!S71_A7SubCodePayments,$AC:$AC)=0,P40/12,SUMIFS(Sheet1!S71_SeptemberActual,Sheet1!S71_A7SubCodePayments,$AC:$AC))","v":0},{"$f":"IF(SUMIFS(Sheet1!S71_OctoberActual,Sheet1!S71_A7SubCodePayments,$AC:$AC)=0,P40/12,SUMIFS(Sheet1!S71_OctoberActual,Sheet1!S71_A7SubCodePayments,$AC:$AC))","v":0},{"$f":"IF(SUMIFS(Sheet1!S71_NovemberActual,Sheet1!S71_A7SubCodePayments,$AC:$AC)=0,P40/12,SUMIFS(Sheet1!S71_NovemberActual,Sheet1!S71_A7SubCodePayments,$AC:$AC))","v":0},{"$f":"IF(SUMIFS(Sheet1!S71_DecemberActual,Sheet1!S71_A7SubCodePayments,$AC:$AC)=0,P40/12,SUMIFS(Sheet1!S71_DecemberActual,Sheet1!S71_A7SubCodePayments,$AC:$AC))","v":0},{"$f":"$P$40/12","v":0},0,0,0,0,{"$f":"P40-SUM(C40:M40)","v":0},{"$f":"SUM(C40:N40)","v":0},{"$f":"SUMIFS(Sheet1!S71_CurrentAdjustedBudget,Sheet1!S71_A7SubCodePayments,$AC:$AC)","v":0},{"$f":"SUMIFS(Sheet1!S71_OY1AdjustedBudget,Sheet1!S71_A7SubCodePayments,$AC:$AC)","v":5428842},{"$f":"SUMIFS(Sheet1!S71_OY2AdjustedBudget,Sheet1!S71_A7SubCodePayments,$AC:$AC)","v":5504684},null,null,null,null,null,null,null,null,null,null,"0440"]
[null,null,{"$f":"IF(SUMIFS(Sheet1!S71_JulyActual,Sheet1!S71_A7SubCodePayments,$AC:$AC)=0,P41/12,SUMIFS(Sheet1!S71_JulyActual,Sheet1!S71_A7SubCodePayments,$AC:$AC))","v":0},{"$f":"IF(SUMIFS(Sheet1!S71_AugustActual,Sheet1!S71_A7SubCodePayments,$AC:$AC)=0,P41/12,SUMIFS(Sheet1!S71_AugustActual,Sheet1!S71_A7SubCodePayments,$AC:$AC))","v":0},{"$f":"IF(SUMIFS(Sheet1!S71_SeptemberActual,Sheet1!S71_A7SubCodePayments,$AC:$AC)=0,P41/12,SUMIFS(Sheet1!S71_SeptemberActual,Sheet1!S71_A7SubCodePayments,$AC:$AC))","v":0},{"$f":"IF(SUMIFS(Sheet1!S71_OctoberActual,Sheet1!S71_A7SubCodePayments,$AC:$AC)=0,P41/12,SUMIFS(Sheet1!S71_OctoberActual,Sheet1!S71_A7SubCodePayments,$AC:$AC))","v":0},{"$f":"IF(SUMIFS(Sheet1!S71_NovemberActual,Sheet1!S71_A7SubCodePayments,$AC:$AC)=0,P41/12,SUMIFS(Sheet1!S71_NovemberActual,Sheet1!S71_A7SubCodePayments,$AC:$AC))","v":0},{"$f":"IF(SUMIFS(Sheet1!S71_DecemberActual,Sheet1!S71_A7SubCodePayments,$AC:$AC)=0,P41/12,SUMIFS(Sheet1!S71_DecemberActual,Sheet1!S71_A7SubCodePayments,$AC:$AC))","v":0},{"$f":"$P$41/12","v":0},0,0,0,0]
["Contracted services",null,{"$f":"IF(SUMIFS(Sheet1!S71_JulyActual,Sheet1!S71_A7SubCodePayments,$AC:$AC)=0,P42/12,SUMIFS(Sheet1!S71_JulyActual,Sheet1!S71_A7SubCodePayments,$AC:$AC))","v":125000.16666666667},{"$f":"IF(SUMIFS(Sheet1!S71_AugustActual,Sheet1!S71_A7SubCodePayments,$AC:$AC)=0,P42/12,SUMIFS(Sheet1!S71_AugustActual,Sheet1!S71_A7SubCodePayments,$AC:$AC))","v":125000.16666666667},{"$f":"IF(SUMIFS(Sheet1!S71_SeptemberActual,Sheet1!S71_A7SubCodePayments,$AC:$AC)=0,P42/12,SUMIFS(Sheet1!S71_SeptemberActual,Sheet1!S71_A7SubCodePayments,$AC:$AC))","v":125000.16666666667},{"$f":"IF(SUMIFS(Sheet1!S71_OctoberActual,Sheet1!S71_A7SubCodePayments,$AC:$AC)=0,P42/12,SUMIFS(Sheet1!S71_OctoberActual,Sheet1!S71_A7SubCodePayments,$AC:$AC))","v":125000.16666666667},{"$f":"IF(SUMIFS(Sheet1!S71_NovemberActual,Sheet1!S71_A7SubCodePayments,$AC:$AC)=0,P42/12,SUMIFS(Sheet1!S71_NovemberActual,Sheet1!S71_A7SubCodePayments,$AC:$AC))","v":125000.16666666667},{"$f":"IF(SUMIFS(Sheet1!S71_DecemberActual,Sheet1!S71_A7SubCodePayments,$AC:$AC)=0,P42/12,SUMIFS(Sheet1!S71_DecemberActual,Sheet1!S71_A7SubCodePayments,$AC:$AC))","v":125000.16666666667},{"$f":"$P$42/12","v":125000.16666666667},125000.16666666667,125000.16666666667,125000.16666666667,125000.16666666667,125000.16666666651,null,{"$f":"SUMIFS(Sheet1!S71_CurrentAdjustedBudget,Sheet1!S71_A7SubCodePayments,$AC:$AC)","v":1500002},{"$f":"SUMIFS(Sheet1!S71_OY1AdjustedBudget,Sheet1!S71_A7SubCodePayments,$AC:$AC)","v":88479316},{"$f":"SUMIFS(Sheet1!S71_OY2AdjustedBudget,Sheet1!S71_A7SubCodePayments,$AC:$AC)","v":90447267},null,null,null,null,null,null,null,null,null,null,"0450"]
["Transfers and grants - other municipalities",null,{"$f":"IF(SUMIFS(Sheet1!S71_JulyActual,Sheet1!S71_A7SubCodePayments,$AC:$AC)=0,P43/12,SUMIFS(Sheet1!S71_JulyActual,Sheet1!S71_A7SubCodePayments,$AC:$AC))","v":0},{"$f":"IF(SUMIFS(Sheet1!S71_AugustActual,Sheet1!S71_A7SubCodePayments,$AC:$AC)=0,P43/12,SUMIFS(Sheet1!S71_AugustActual,Sheet1!S71_A7SubCodePayments,$AC:$AC))","v":0},{"$f":"IF(SUMIFS(Sheet1!S71_SeptemberActual,Sheet1!S71_A7SubCodePayments,$AC:$AC)=0,P43/12,SUMIFS(Sheet1!S71_SeptemberActual,Sheet1!S71_A7SubCodePayments,$AC:$AC))","v":0},{"$f":"IF(SUMIFS(Sheet1!S71_OctoberActual,Sheet1!S71_A7SubCodePayments,$AC:$AC)=0,P43/12,SUMIFS(Sheet1!S71_OctoberActual,Sheet1!S71_A7SubCodePayments,$AC:$AC))","v":0},{"$f":"IF(SUMIFS(Sheet1!S71_NovemberActual,Sheet1!S71_A7SubCodePayments,$AC:$AC)=0,P43/12,SUMIFS(Sheet1!S71_NovemberActual,Sheet1!S71_A7SubCodePayments,$AC:$AC))","v":0},{"$f":"IF(SUMIFS(Sheet1!S71_DecemberActual,Sheet1!S71_A7SubCodePayments,$AC:$AC)=0,P43/12,SUMIFS(Sheet1!S71_DecemberActual,Sheet1!S71_A7SubCodePayments,$AC:$AC))","v":0},{"$f":"$P$43/12","v":0},0,0,0,0,0,{"$f":"SUM(C43:N43)","v":0},{"$f":"SUMIFS(Sheet1!S71_CurrentAdjustedBudget,Sheet1!S71_A7SubCodePayments,$AC:$AC)","v":0},{"$f":"SUMIFS(Sheet1!S71_OY1AdjustedBudget,Sheet1!S71_A7SubCodePayments,$AC:$AC)","v":0},{"$f":"SUMIFS(Sheet1!S71_OY2AdjustedBudget,Sheet1!S71_A7SubCodePayments,$AC:$AC)","v":0},null,null,null,null,null,null,null,null,null,null,"0460"]
["Transfers and grants - other",null,{"$f":"IF(SUMIFS(Sheet1!S71_JulyActual,Sheet1!S71_A7SubCodePayments,$AC:$AC)=0,P44/12,SUMIFS(Sheet1!S71_JulyActual,Sheet1!S71_A7SubCodePayments,$AC:$AC))","v":0},{"$f":"IF(SUMIFS(Sheet1!S71_AugustActual,Sheet1!S71_A7SubCodePayments,$AC:$AC)=0,P44/12,SUMIFS(Sheet1!S71_AugustActual,Sheet1!S71_A7SubCodePayments,$AC:$AC))","v":0},{"$f":"IF(SUMIFS(Sheet1!S71_SeptemberActual,Sheet1!S71_A7SubCodePayments,$AC:$AC)=0,P44/12,SUMIFS(Sheet1!S71_SeptemberActual,Sheet1!S71_A7SubCodePayments,$AC:$AC))","v":0},{"$f":"IF(SUMIFS(Sheet1!S71_OctoberActual,Sheet1!S71_A7SubCodePayments,$AC:$AC)=0,P44/12,SUMIFS(Sheet1!S71_OctoberActual,Sheet1!S71_A7SubCodePayments,$AC:$AC))","v":0},{"$f":"IF(SUMIFS(Sheet1!S71_NovemberActual,Sheet1!S71_A7SubCodePayments,$AC:$AC)=0,P44/12,SUMIFS(Sheet1!S71_NovemberActual,Sheet1!S71_A7SubCodePayments,$AC:$AC))","v":0},{"$f":"IF(SUMIFS(Sheet1!S71_DecemberActual,Sheet1!S71_A7SubCodePayments,$AC:$AC)=0,P44/12,SUMIFS(Sheet1!S71_DecemberActual,Sheet1!S71_A7SubCodePayments,$AC:$AC))","v":0},{"$f":"$P$44/12","v":0},0,0,0,0,0,null,{"$f":"SUMIFS(Sheet1!S71_CurrentAdjustedBudget,Sheet1!S71_A7SubCodePayments,$AC:$AC)","v":0},{"$f":"SUMIFS(Sheet1!S71_OY1AdjustedBudget,Sheet1!S71_A7SubCodePayments,$AC:$AC)","v":0},{"$f":"SUMIFS(Sheet1!S71_OY2AdjustedBudget,Sheet1!S71_A7SubCodePayments,$AC:$AC)","v":0},null,null,null,null,null,null,null,null,null,null,"0470"]
["Other expenditure",null,{"$f":"IF(SUMIFS(Sheet1!S71_JulyActual,Sheet1!S71_A7SubCodePayments,$AC:$AC)=0,P45/12,SUMIFS(Sheet1!S71_JulyActual,Sheet1!S71_A7SubCodePayments,$AC:$AC))","v":37025894.009999998},{"$f":"IF(SUMIFS(Sheet1!S71_AugustActual,Sheet1!S71_A7SubCodePayments,$AC:$AC)=0,P45/12,SUMIFS(Sheet1!S71_AugustActual,Sheet1!S71_A7SubCodePayments,$AC:$AC))","v":29138716.540000003},{"$f":"IF(SUMIFS(Sheet1!S71_SeptemberActual,Sheet1!S71_A7SubCodePayments,$AC:$AC)=0,P45/12,SUMIFS(Sheet1!S71_SeptemberActual,Sheet1!S71_A7SubCodePayments,$AC:$AC))","v":17976901.899999999},{"$f":"IF(SUMIFS(Sheet1!S71_OctoberActual,Sheet1!S71_A7SubCodePayments,$AC:$AC)=0,P45/12,SUMIFS(Sheet1!S71_OctoberActual,Sheet1!S71_A7SubCodePayments,$AC:$AC))","v":28500943.91},{"$f":"IF(SUMIFS(Sheet1!S71_NovemberActual,Sheet1!S71_A7SubCodePayments,$AC:$AC)=0,P45/12,SUMIFS(Sheet1!S71_NovemberActual,Sheet1!S71_A7SubCodePayments,$AC:$AC))","v":37189497.020000003},{"$f":"IF(SUMIFS(Sheet1!S71_DecemberActual,Sheet1!S71_A7SubCodePayments,$AC:$AC)=0,P45/12,SUMIFS(Sheet1!S71_DecemberActual,Sheet1!S71_A7SubCodePayments,$AC:$AC))","v":50854716.530000001},{"$f":"$P$45/12","v":0},0,0,0,0,-200686669.91,{"$f":"SUM(C45:N45)","v":0},{"$f":"SUMIFS(Sheet1!S71_CurrentAdjustedBudget,Sheet1!S71_A7SubCodePayments,$AC:$AC)","v":0},{"$f":"SUMIFS(Sheet1!S71_OY1AdjustedBudget,Sheet1!S71_A7SubCodePayments,$AC:$AC)","v":65594708},{"$f":"SUMIFS(Sheet1!S71_OY2AdjustedBudget,Sheet1!S71_A7SubCodePayments,$AC:$AC)","v":69067407},null,null,null,null,null,null,null,null,null,null,"0480"]
["Cash Payments by Type",null,{"$f":"SUM(C36:C45)","v":43858466.186666667},36092197.74666667,25224406.856666666,37167145.436666667,45257095.546666667,58661088.056666672,125000.16666666667,125000.16666666667,125000.16666666667,125000.16666666667,125000.16666666667,-245385398.66333333,0,1500002,401510466,411780879]
[]
["Other Cash Flows/Payments by Type"]
["Capital assets",null,{"$f":"IF(SUMIFS(Sheet1!S71_JulyActual,Sheet1!S71_A7SubCodePayments,$AD:$AD)=0,P49/12,SUMIFS(Sheet1!S71_JulyActual,Sheet1!S71_A7SubCodePayments,$AD:$AD))","v":190250},{"$f":"IF(SUMIFS(Sheet1!S71_AugustActual,Sheet1!S71_A7SubCodePayments,$AD:$AD)=0,P49/12,SUMIFS(Sheet1!S71_AugustActual,Sheet1!S71_A7SubCodePayments,$AD:$AD))","v":190250},{"$f":"IF(SUMIFS(Sheet1!S71_SeptemberActual,Sheet1!S71_A7SubCodePayments,$AD:$AD)=0,P49/12,SUMIFS(Sheet1!S71_SeptemberActual,Sheet1!S71_A7SubCodePayments,$AD:$AD))","v":190250},{"$f":"IF(SUMIFS(Sheet1!S71_OctoberActual,Sheet1!S71_A7SubCodePayments,$AD:$AD)=0,P49/12,SUMIFS(Sheet1!S71_OctoberActual,Sheet1!S71_A7SubCodePayments,$AD:$AD))","v":190250},{"$f":"IF(SUMIFS(Sheet1!S71_NovemberActual,Sheet1!S71_A7SubCodePayments,$AD:$AD)=0,P49/12,SUMIFS(Sheet1!S71_NovemberActual,Sheet1!S71_A7SubCodePayments,$AD:$AD))","v":190250},{"$f":"IF(SUMIFS(Sheet1!S71_DecemberActual,Sheet1!S71_A7SubCodePayments,$AD:$AD)=0,Q49/12,SUMIFS(Sheet1!S71_DecemberActual,Sheet1!S71_A7SubCodePayments,$AD:$AD))","v":6719962.583333333},{"$f":"$P$49/12","v":190250},190250,190250,190250,190250,{"$f":"P49-SUM(C49:M49)","v":-6339462.5833333321},{"$f":"SUM(C49:N49)","v":2283000},{"$f":"-SUMIFS(Sheet1!S71_CurrentAdjustedBudget,Sheet1!S71_A7SubCodePayments,$AC:$AC)","v":2283000},{"$f":"-SUMIFS(Sheet1!S71_OY1AdjustedBudget,Sheet1!S71_A7SubCodePayments,$AC:$AC)","v":80639551},{"$f":"-SUMIFS(Sheet1!S71_OY2AdjustedBudget,Sheet1!S71_A7SubCodePayments,$AC:$AC)","v":61427850},null,null,null,null,null,null,null,null,null,null,"0510","CE"]
["Repayment of borrowing",null,{"$f":"IF(SUMIFS(Sheet1!S71_JulyActual,Sheet1!S71_A7SubCodePayments,$AC:$AC)=0,P50/12,SUMIFS(Sheet1!S71_JulyActual,Sheet1!S71_A7SubCodePayments,$AC:$AC))","v":0},{"$f":"IF(SUMIFS(Sheet1!S71_AugustActual,Sheet1!S71_A7SubCodePayments,$AC:$AC)=0,P50/12,SUMIFS(Sheet1!S71_AugustActual,Sheet1!S71_A7SubCodePayments,$AC:$AC))","v":0},{"$f":"IF(SUMIFS(Sheet1!S71_SeptemberActual,Sheet1!S71_A7SubCodePayments,$AC:$AC)=0,P50/12,SUMIFS(Sheet1!S71_SeptemberActual,Sheet1!S71_A7SubCodePayments,$AC:$AC))","v":0},{"$f":"IF(SUMIFS(Sheet1!S71_OctoberActual,Sheet1!S71_A7SubCodePayments,$AC:$AC)=0,P50/12,SUMIFS(Sheet1!S71_OctoberActual,Sheet1!S71_A7SubCodePayments,$AC:$AC))","v":0},{"$f":"IF(SUMIFS(Sheet1!S71_NovemberActual,Sheet1!S71_A7SubCodePayments,$AC:$AC)=0,P50/12,SUMIFS(Sheet1!S71_NovemberActual,Sheet1!S71_A7SubCodePayments,$AC:$AC))","v":0},{"$f":"IF(SUMIFS(Sheet1!S71_DecemberActual,Sheet1!S71_A7SubCodePayments,$AC:$AC)=0, P50/12,SUMIFS(Sheet1!S71_DecemberActual,Sheet1!S71_A7SubCodePayments,$AC:$AC))","v":0},{"$f":"$P$50/12","v":0},0,0,0,0,{"$f":"P50-SUM(C50:M50)","v":0},{"$f":"SUM(C50:N50)","v":0},{"$f":"-SUMIFS(Sheet1!S71_CurrentAdjustedBudget,Sheet1!S71_A7SubCodePayments,$AC:$AC)","v":0},{"$f":"-SUMIFS(Sheet1!S71_OY1AdjustedBudget,Sheet1!S71_A7SubCodePayments,$AC:$AC)","v":0},{"$f":"-SUMIFS(Sheet1!S71_OY2AdjustedBudget,Sheet1!S71_A7SubCodePayments,$AC:$AC)","v":0},null,null,null,null,null,null,null,null,null,null,"0520"]
["Other Cash Flows/Payments",null,{"$f":"IF(SUMIFS(Sheet1!S71_JulyActual,Sheet1!S71_A7SubCodePayments,$AC:$AC)=0,P51/12,SUMIFS(Sheet1!S71_JulyActual,Sheet1!S71_A7SubCodePayments,$AC:$AC))","v":0},{"$f":"IF(SUMIFS(Sheet1!S71_AugustActual,Sheet1!S71_A7SubCodePayments,$AC:$AC)=0,P51/12,SUMIFS(Sheet1!S71_AugustActual,Sheet1!S71_A7SubCodePayments,$AC:$AC))","v":34730.33},{"$f":"IF(SUMIFS(Sheet1!S71_SeptemberActual,Sheet1!S71_A7SubCodePayments,$AC:$AC)=0,P51/12,SUMIFS(Sheet1!S71_SeptemberActual,Sheet1!S71_A7SubCodePayments,$AC:$AC))","v":0},{"$f":"IF(SUMIFS(Sheet1!S71_OctoberActual,Sheet1!S71_A7SubCodePayments,$AC:$AC)=0,P51/12,SUMIFS(Sheet1!S71_OctoberActual,Sheet1!S71_A7SubCodePayments,$AC:$AC))","v":0},{"$f":"IF(SUMIFS(Sheet1!S71_NovemberActual,Sheet1!S71_A7SubCodePayments,$AC:$AC)=0,P51/12,SUMIFS(Sheet1!S71_NovemberActual,Sheet1!S71_A7SubCodePayments,$AC:$AC))","v":360868.33},{"$f":"IF(SUMIFS(Sheet1!S71_DecemberActual,Sheet1!S71_A7SubCodePayments,$AC:$AC)=0, P51/12,SUMIFS(Sheet1!S71_DecemberActual,Sheet1!S71_A7SubCodePayments,$AC:$AC))","v":348400.63},{"$f":"$P$51/12","v":0},0,0,0,0,{"$f":"P51-SUM(C51:M51)","v":-743999.29},{"$f":"SUM(C51:N51)","v":0},{"$f":"-SUMIFS(Sheet1!S71_CurrentAdjustedBudget,Sheet1!S71_A7SubCodePayments,$AC:$AC)","v":0},{"$f":"-SUMIFS(Sheet1!S71_OY1AdjustedBudget,Sheet1!S71_A7SubCodePayments,$AC:$AC)","v":0},{"$f":"-SUMIFS(Sheet1!S71_OY2AdjustedBudget,Sheet1!S71_A7SubCodePayments,$AC:$AC)","v":0},null,null,null,null,null,null,null,null,null,null,"0530","IA"]
["Total Cash Payments by Type",null,{"$f":"SUM(C46:C51)","v":44048716.186666667},36317178.076666668,25414656.856666666,37357395.436666667,45808213.876666665,65729451.270000011,315250.16666666669,315250.16666666669,315250.16666666669,315250.16666666669,315250.16666666669,-252468860.53666666,2283000,3783002,482150017,473208729]
[]
["NET INCREASE/(DECREASE) IN CASH HELD",null,{"$f":"C33-C52","v":141262176.13333333},-35701547.416666672,-24933218.276666667,-28892136.026666667,6474636.299999997,62811518.209999993,241541.50000000006,241541.50000000006,241541.50000000006,241541.50000000006,241541.50000000006,-119330638.42333332,4398500,2898498,-35690666,-16490341]
["Cash/cash equivalents at the month/year beginning:",null,{"$f":"SUMIFS(Sheet1!S71_CurrentAdjustedBudget,Sheet1!S71_A7CodePayments,$AC:$AC)","v":0},{"$f":"C56","v":141262176.13333333},105560628.71666665,80627410.439999983,51735274.413333312,58209910.713333309,121021428.9233333,121262970.4233333,121504511.9233333,121746053.4233333,121987594.9233333,122229136.4233333,null,{"$f":"C55","v":0},{"$f":"P56","v":2898498},{"$f":"Q56","v":-32792168},null,null,null,null,null,null,null,null,null,null,"0420"]
["Cash/cash equivalents at the month/year end:",null,{"$f":"C54+C55","v":141262176.13333333},{"$f":"D54+D55","v":105560628.71666665},80627410.439999983,51735274.413333312,58209910.713333309,121021428.9233333,121262970.4233333,121504511.9233333,121746053.4233333,121987594.9233333,122229136.4233333,2898497.9999999851,null,{"$f":"P54+P55","v":2898498},{"$f":"Q54+Q55","v":-32792168},{"$f":"R54+R55","v":-49282509}]
["References"]
["1. Note that this section of Table SB15 is deliberately not linked to Table B4 because timing differences between the invoicing of clients and receiving the cash means that the cashflow will differ from budgeted revenue, and similarly for budgeted expenditure. "]
["2. Bulk purchases - Electricity & Waste Water - use detail information from Table SB1"]
["3. Acquisition Inventory - Water & other inventory - use detail information from Table SB2"]
[]
[]
[null,null,null,null,null,{"$f":"F46+F62","v":37167145.436666667},45257095.546666667,58661088.056666672,125000.16666666667,125000.16666666667,125000.16666666667,125000.16666666667,125000.16666666667,-245385398.66333333,0,1500002,401510466,411780879]
[null,null,null,null,null,{"$f":"F54-F62","v":-28892136.026666667},6474636.299999997,62811518.209999993,241541.50000000006,241541.50000000006,241541.50000000006,241541.50000000006,241541.50000000006,-119330638.42333332,4398500,2898498,-35690666,-16490341]

{"sheet":"SB16","index":52,"n_rows":45,"n_cols":30,"rows_kept":45,"cut":false,"hidden":false,"merged":[[1,0,2,0],[1,1,2,1]]}
[{"$f":"muni&\" - \"&ADJB16&\" - \"&Date","v":"KZN291 Mandeni - Supporting Table SB16 Adjustments Budget - monthly capital expenditure (municipal vote) - 08-04-2025"}]
[{"$f":"desc&\" - Municipal Vote\"","v":"Description - Municipal Vote"},{"$f":"head27","v":"Ref"},{"$f":"Head2","v":"Budget Year 2024/25"},null,null,null,null,null,null,null,null,null,null,null,null,"Medium Term Revenue and Expenditure Framework"]
[null,null,"July","August","Sept.","October","November","December","January","February","March","April","May","June","Full year budget",{"$f":"Head9","v":"Budget Year 2024/25"},{"$f":"Head10","v":"Budget Year +1 2025/26"},{"$f":"Head11","v":"Budget Year +2 2026/27"}]
["R thousands",null,{"$f":"Head5A","v":"Outcome"},"Outcome","Outcome","Outcome","Outcome","Outcome",{"$f":"Head7","v":"Adjusted Budget"},"Adjusted Budget","Adjusted Budget","Adjusted Budget","Adjusted Budget","Adjusted Budget",null,{"$f":"Head7","v":"Adjusted Budget"},{"$f":"Head7","v":"Adjusted Budget"},{"$f":"Head7","v":"Adjusted Budget"}]
["Multi-year expenditure appropriation",1]
[{"$f":"'B5-Capex'!A8","v":"Vote 1 - Executive and council"},null,{"$f":"IF(SUMIFS(Sheet1!S71_JulyActual,Sheet1!S71_MasterVoteMunicipal,$AC:$AC,Sheet1!S71_A5CapexCode,$AD:$AD)=0,P6/12,SUMIFS(Sheet1!S71_JulyActual,Sheet1!S71_MasterVoteMunicipal,$AC:$AC,Sheet1!S71_A5CapexCode,$AD:$AD))","v":0},{"$f":"IF(SUMIFS(Sheet1!S71_AugustActual,Sheet1!S71_MasterVoteMunicipal,$AC:$AC,Sheet1!S71_A5CapexCode,$AD:$AD)=0,P6/12,SUMIFS(Sheet1!S71_AugustActual,Sheet1!S71_MasterVoteMunicipal,$AC:$AC,Sheet1!S71_A5CapexCode,$AD:$AD))","v":0},{"$f":"IF(SUMIFS(Sheet1!S71_SeptemberActual,Sheet1!S71_MasterVoteMunicipal,$AC:$AC,Sheet1!S71_A5CapexCode,$AD:$AD)=0,P6/12,SUMIFS(Sheet1!S71_SeptemberActual,Sheet1!S71_MasterVoteMunicipal,$AC:$AC,Sheet1!S71_A5CapexCode,$AD:$AD))","v":0},{"$f":"IF(SUMIFS(Sheet1!S71_OctoberActual,Sheet1!S71_MasterVoteMunicipal,$AC:$AC,Sheet1!S71_A5CapexCode,$AD:$AD)=0,P6/12,SUMIFS(Sheet1!S71_OctoberActual,Sheet1!S71_MasterVoteMunicipal,$AC:$AC,Sheet1!S71_A5CapexCode,$AD:$AD))","v":0},{"$f":"IF(SUMIFS(Sheet1!S71_NovemberActual,Sheet1!S71_MasterVoteMunicipal,$AC:$AC,Sheet1!S71_A5CapexCode,$AD:$AD)=0,P6/12,SUMIFS(Sheet1!S71_NovemberActual,Sheet1!S71_MasterVoteMunicipal,$AC:$AC,Sheet1!S71_A5CapexCode,$AD:$AD))","v":0},{"$f":"IF(SUMIFS(Sheet1!S71_DecemberActual,Sheet1!S71_MasterVoteMunicipal,$AC:$AC,Sheet1!S71_A5CapexCode,$AD:$AD)=0,P6/12,SUMIFS(Sheet1!S71_DecemberActual,Sheet1!S71_MasterVoteMunicipal,$AC:$AC,Sheet1!S71_A5CapexCode,$AD:$AD))","v":0},{"$f":"$P$6/12","v":0},0,0,0,0,{"$f":"P6-SUM(C6:M6)","v":0},null,{"$f":"'B5-Capex'!K8","v":0},{"$f":"'B5-Capex'!L8","v":0},{"$f":"'B5-Capex'!M8","v":0}]
[{"$f":"'B5-Capex'!A9","v":"Vote 2 - Finance and administration"},null,{"$f":"IF(SUMIFS(Sheet1!S71_JulyActual,Sheet1!S71_MasterVoteMunicipal,$AC:$AC,Sheet1!S71_A5CapexCode,$AD:$AD)=0,P7/12,SUMIFS(Sheet1!S71_JulyActual,Sheet1!S71_MasterVoteMunicipal,$AC:$AC,Sheet1!S71_A5CapexCode,$AD:$AD))","v":0},{"$f":"IF(SUMIFS(Sheet1!S71_AugustActual,Sheet1!S71_MasterVoteMunicipal,$AC:$AC,Sheet1!S71_A5CapexCode,$AD:$AD)=0,P7/12,SUMIFS(Sheet1!S71_AugustActual,Sheet1!S71_MasterVoteMunicipal,$AC:$AC,Sheet1!S71_A5CapexCode,$AD:$AD))","v":0},{"$f":"IF(SUMIFS(Sheet1!S71_SeptemberActual,Sheet1!S71_MasterVoteMunicipal,$AC:$AC,Sheet1!S71_A5CapexCode,$AD:$AD)=0,P7/12,SUMIFS(Sheet1!S71_SeptemberActual,Sheet1!S71_MasterVoteMunicipal,$AC:$AC,Sheet1!S71_A5CapexCode,$AD:$AD))","v":0},{"$f":"IF(SUMIFS(Sheet1!S71_OctoberActual,Sheet1!S71_MasterVoteMunicipal,$AC:$AC,Sheet1!S71_A5CapexCode,$AD:$AD)=0,P7/12,SUMIFS(Sheet1!S71_OctoberActual,Sheet1!S71_MasterVoteMunicipal,$AC:$AC,Sheet1!S71_A5CapexCode,$AD:$AD))","v":0},{"$f":"IF(SUMIFS(Sheet1!S71_NovemberActual,Sheet1!S71_MasterVoteMunicipal,$AC:$AC,Sheet1!S71_A5CapexCode,$AD:$AD)=0,P7/12,SUMIFS(Sheet1!S71_NovemberActual,Sheet1!S71_MasterVoteMunicipal,$AC:$AC,Sheet1!S71_A5CapexCode,$AD:$AD))","v":0},{"$f":"IF(SUMIFS(Sheet1!S71_DecemberActual,Sheet1!S71_MasterVoteMunicipal,$AC:$AC,Sheet1!S71_A5CapexCode,$AD:$AD)=0,P7/12,SUMIFS(Sheet1!S71_DecemberActual,Sheet1!S71_MasterVoteMunicipal,$AC:$AC,Sheet1!S71_A5CapexCode,$AD:$AD))","v":0},{"$f":"$P$7/12","v":0},0,0,0,0,0,null,{"$f":"'B5-Capex'!K9","v":0},{"$f":"'B5-Capex'!L9","v":0},{"$f":"'B5-Capex'!M9","v":0}]
[{"$f":"'B5-Capex'!A10","v":"Vote 3 - Internal audit"},null,{"$f":"IF(SUMIFS(Sheet1!S71_JulyActual,Sheet1!S71_MasterVoteMunicipal,$AC:$AC,Sheet1!S71_A5CapexCode,$AD:$AD)=0,P8/12,SUMIFS(Sheet1!S71_JulyActual,Sheet1!S71_MasterVoteMunicipal,$AC:$AC,Sheet1!S71_A5CapexCode,$AD:$AD))","v":0},{"$f":"IF(SUMIFS(Sheet1!S71_AugustActual,Sheet1!S71_MasterVoteMunicipal,$AC:$AC,Sheet1!S71_A5CapexCode,$AD:$AD)=0,P8/12,SUMIFS(Sheet1!S71_AugustActual,Sheet1!S71_MasterVoteMunicipal,$AC:$AC,Sheet1!S71_A5CapexCode,$AD:$AD))","v":0},{"$f":"IF(SUMIFS(Sheet1!S71_SeptemberActual,Sheet1!S71_MasterVoteMunicipal,$AC:$AC,Sheet1!S71_A5CapexCode,$AD:$AD)=0,P8/12,SUMIFS(Sheet1!S71_SeptemberActual,Sheet1!S71_MasterVoteMunicipal,$AC:$AC,Sheet1!S71_A5CapexCode,$AD:$AD))","v":0},{"$f":"IF(SUMIFS(Sheet1!S71_OctoberActual,Sheet1!S71_MasterVoteMunicipal,$AC:$AC,Sheet1!S71_A5CapexCode,$AD:$AD)=0,P8/12,SUMIFS(Sheet1!S71_OctoberActual,Sheet1!S71_MasterVoteMunicipal,$AC:$AC,Sheet1!S71_A5CapexCode,$AD:$AD))","v":0},{"$f":"IF(SUMIFS(Sheet1!S71_NovemberActual,Sheet1!S71_MasterVoteMunicipal,$AC:$AC,Sheet1!S71_A5CapexCode,$AD:$AD)=0,P8/12,SUMIFS(Sheet1!S71_NovemberActual,Sheet1!S71_MasterVoteMunicipal,$AC:$AC,Sheet1!S71_A5CapexCode,$AD:$AD))","v":0},{"$f":"IF(SUMIFS(Sheet1!S71_DecemberActual,Sheet1!S71_MasterVoteMunicipal,$AC:$AC,Sheet1!S71_A5CapexCode,$AD:$AD)=0,P8/12,SUMIFS(Sheet1!S71_DecemberActual,Sheet1!S71_MasterVoteMunicipal,$AC:$AC,Sheet1!S71_A5CapexCode,$AD:$AD))","v":0},{"$f":"$P$8/12","v":0},0,0,0,0,0,null,{"$f":"'B5-Capex'!K10","v":0},{"$f":"'B5-Capex'!L10","v":0},{"$f":"'B5-Capex'!M10","v":0}]
[{"$f":"'B5-Capex'!A11","v":"Vote 4 - Community and social services"},null,{"$f":"IF(SUMIFS(Sheet1!S71_JulyActual,Sheet1!S71_MasterVoteMunicipal,$AC:$AC,Sheet1!S71_A5CapexCode,$AD:$AD)=0,P9/12,SUMIFS(Sheet1!S71_JulyActual,Sheet1!S71_MasterVoteMunicipal,$AC:$AC,Sheet1!S71_A5CapexCode,$AD:$AD))","v":0},{"$f":"IF(SUMIFS(Sheet1!S71_AugustActual,Sheet1!S71_MasterVoteMunicipal,$AC:$AC,Sheet1!S71_A5CapexCode,$AD:$AD)=0,P9/12,SUMIFS(Sheet1!S71_AugustActual,Sheet1!S71_MasterVoteMunicipal,$AC:$AC,Sheet1!S71_A5CapexCode,$AD:$AD))","v":0},{"$f":"IF(SUMIFS(Sheet1!S71_SeptemberActual,Sheet1!S71_MasterVoteMunicipal,$AC:$AC,Sheet1!S71_A5CapexCode,$AD:$AD)=0,P9/12,SUMIFS(Sheet1!S71_SeptemberActual,Sheet1!S71_MasterVoteMunicipal,$AC:$AC,Sheet1!S71_A5CapexCode,$AD:$AD))","v":0},{"$f":"IF(SUMIFS(Sheet1!S71_OctoberActual,Sheet1!S71_MasterVoteMunicipal,$AC:$AC,Sheet1!S71_A5CapexCode,$AD:$AD)=0,P9/12,SUMIFS(Sheet1!S71_OctoberActual,Sheet1!S71_MasterVoteMunicipal,$AC:$AC,Sheet1!S71_A5CapexCode,$AD:$AD))","v":0},{"$f":"IF(SUMIFS(Sheet1!S71_NovemberActual,Sheet1!S71_MasterVoteMunicipal,$AC:$AC,Sheet1!S71_A5CapexCode,$AD:$AD)=0,P9/12,SUMIFS(Sheet1!S71_NovemberActual,Sheet1!S71_MasterVoteMunicipal,$AC:$AC,Sheet1!S71_A5CapexCode,$AD:$AD))","v":0},{"$f":"IF(SUMIFS(Sheet1!S71_DecemberActual,Sheet1!S71_MasterVoteMunicipal,$AC:$AC,Sheet1!S71_A5CapexCode,$AD:$AD)=0,P9/12,SUMIFS(Sheet1!S71_DecemberActual,Sheet1!S71_MasterVoteMunicipal,$AC:$AC,Sheet1!S71_A5CapexCode,$AD:$AD))","v":0},{"$f":"$P$9/12","v":0},0,0,0,0,0,null,{"$f":"'B5-Capex'!K11","v":0},{"$f":"'B5-Capex'!L11","v":0},{"$f":"'B5-Capex'!M11","v":0}]
[{"$f":"'B5-Capex'!A12","v":"Vote 5 - Sport and Recreation"},null,{"$f":"IF(SUMIFS(Sheet1!S71_JulyActual,Sheet1!S71_MasterVoteMunicipal,$AC:$AC,Sheet1!S71_A5CapexCode,$AD:$AD)=0,P10/12,SUMIFS(Sheet1!S71_JulyActual,Sheet1!S71_MasterVoteMunicipal,$AC:$AC,Sheet1!S71_A5CapexCode,$AD:$AD))","v":0},{"$f":"IF(SUMIFS(Sheet1!S71_AugustActual,Sheet1!S71_MasterVoteMunicipal,$AC:$AC,Sheet1!S71_A5CapexCode,$AD:$AD)=0,P10/12,SUMIFS(Sheet1!S71_AugustActual,Sheet1!S71_MasterVoteMunicipal,$AC:$AC,Sheet1!S71_A5CapexCode,$AD:$AD))","v":0},{"$f":"IF(SUMIFS(Sheet1!S71_SeptemberActual,Sheet1!S71_MasterVoteMunicipal,$AC:$AC,Sheet1!S71_A5CapexCode,$AD:$AD)=0,P10/12,SUMIFS(Sheet1!S71_SeptemberActual,Sheet1!S71_MasterVoteMunicipal,$AC:$AC,Sheet1!S71_A5CapexCode,$AD:$AD))","v":0},{"$f":"IF(SUMIFS(Sheet1!S71_OctoberActual,Sheet1!S71_MasterVoteMunicipal,$AC:$AC,Sheet1!S71_A5CapexCode,$AD:$AD)=0,P10/12,SUMIFS(Sheet1!S71_OctoberActual,Sheet1!S71_MasterVoteMunicipal,$AC:$AC,Sheet1!S71_A5CapexCode,$AD:$AD))","v":0},{"$f":"IF(SUMIFS(Sheet1!S71_NovemberActual,Sheet1!S71_MasterVoteMunicipal,$AC:$AC,Sheet1!S71_A5CapexCode,$AD:$AD)=0,P10/12,SUMIFS(Sheet1!S71_NovemberActual,Sheet1!S71_MasterVoteMunicipal,$AC:$AC,Sheet1!S71_A5CapexCode,$AD:$AD))","v":0},{"$f":"IF(SUMIFS(Sheet1!S71_DecemberActual,Sheet1!S71_MasterVoteMunicipal,$AC:$AC,Sheet1!S71_A5CapexCode,$AD:$AD)=0,P10/12,SUMIFS(Sheet1!S71_DecemberActual,Sheet1!S71_MasterVoteMunicipal,$AC:$AC,Sheet1!S71_A5CapexCode,$AD:$AD))","v":0},{"$f":"$P$10/12","v":0},0,0,0,0,0,null,{"$f":"'B5-Capex'!K12","v":0},{"$f":"'B5-Capex'!L12","v":0},{"$f":"'B5-Capex'!M12","v":0}]
[{"$f":"'B5-Capex'!A13","v":"Vote 6 - Public safety"},null,{"$f":"IF(SUMIFS(Sheet1!S71_JulyActual,Sheet1!S71_MasterVoteMunicipal,$AC:$AC,Sheet1!S71_A5CapexCode,$AD:$AD)=0,P11/12,SUMIFS(Sheet1!S71_JulyActual,Sheet1!S71_MasterVoteMunicipal,$AC:$AC,Sheet1!S71_A5CapexCode,$AD:$AD))","v":0},{"$f":"IF(SUMIFS(Sheet1!S71_AugustActual,Sheet1!S71_MasterVoteMunicipal,$AC:$AC,Sheet1!S71_A5CapexCode,$AD:$AD)=0,P11/12,SUMIFS(Sheet1!S71_AugustActual,Sheet1!S71_MasterVoteMunicipal,$AC:$AC,Sheet1!S71_A5CapexCode,$AD:$AD))","v":0},{"$f":"IF(SUMIFS(Sheet1!S71_SeptemberActual,Sheet1!S71_MasterVoteMunicipal,$AC:$AC,Sheet1!S71_A5CapexCode,$AD:$AD)=0,P11/12,SUMIFS(Sheet1!S71_SeptemberActual,Sheet1!S71_MasterVoteMunicipal,$AC:$AC,Sheet1!S71_A5CapexCode,$AD:$AD))","v":0},{"$f":"IF(SUMIFS(Sheet1!S71_OctoberActual,Sheet1!S71_MasterVoteMunicipal,$AC:$AC,Sheet1!S71_A5CapexCode,$AD:$AD)=0,P11/12,SUMIFS(Sheet1!S71_OctoberActual,Sheet1!S71_MasterVoteMunicipal,$AC:$AC,Sheet1!S71_A5CapexCode,$AD:$AD))","v":0},{"$f":"IF(SUMIFS(Sheet1!S71_NovemberActual,Sheet1!S71_MasterVoteMunicipal,$AC:$AC,Sheet1!S71_A5CapexCode,$AD:$AD)=0,P11/12,SUMIFS(Sheet1!S71_NovemberActual,Sheet1!S71_MasterVoteMunicipal,$AC:$AC,Sheet1!S71_A5CapexCode,$AD:$AD))","v":0},{"$f":"IF(SUMIFS(Sheet1!S71_DecemberActual,Sheet1!S71_MasterVoteMunicipal,$AC:$AC,Sheet1!S71_A5CapexCode,$AD:$AD)=0,P11/12,SUMIFS(Sheet1!S71_DecemberActual,Sheet1!S71_MasterVoteMunicipal,$AC:$AC,Sheet1!S71_A5CapexCode,$AD:$AD))","v":0},{"$f":"$P$11/12","v":0},0,0,0,0,0,null,{"$f":"'B5-Capex'!K13","v":0},{"$f":"'B5-Capex'!L13","v":0},{"$f":"'B5-Capex'!M13","v":0}]
[{"$f":"'B5-Capex'!A14","v":"Vote 7 - Housing"},null,{"$f":"IF(SUMIFS(Sheet1!S71_JulyActual,Sheet1!S71_MasterVoteMunicipal,$AC:$AC,Sheet1!S71_A5CapexCode,$AD:$AD)=0,P12/12,SUMIFS(Sheet1!S71_JulyActual,Sheet1!S71_MasterVoteMunicipal,$AC:$AC,Sheet1!S71_A5CapexCode,$AD:$AD))","v":0},{"$f":"IF(SUMIFS(Sheet1!S71_AugustActual,Sheet1!S71_MasterVoteMunicipal,$AC:$AC,Sheet1!S71_A5CapexCode,$AD:$AD)=0,P12/12,SUMIFS(Sheet1!S71_AugustActual,Sheet1!S71_MasterVoteMunicipal,$AC:$AC,Sheet1!S71_A5CapexCode,$AD:$AD))","v":0},{"$f":"IF(SUMIFS(Sheet1!S71_SeptemberActual,Sheet1!S71_MasterVoteMunicipal,$AC:$AC,Sheet1!S71_A5CapexCode,$AD:$AD)=0,P12/12,SUMIFS(Sheet1!S71_SeptemberActual,Sheet1!S71_MasterVoteMunicipal,$AC:$AC,Sheet1!S71_A5CapexCode,$AD:$AD))","v":0},{"$f":"IF(SUMIFS(Sheet1!S71_OctoberActual,Sheet1!S71_MasterVoteMunicipal,$AC:$AC,Sheet1!S71_A5CapexCode,$AD:$AD)=0,P12/12,SUMIFS(Sheet1!S71_OctoberActual,Sheet1!S71_MasterVoteMunicipal,$AC:$AC,Sheet1!S71_A5CapexCode,$AD:$AD))","v":0},{"$f":"IF(SUMIFS(Sheet1!S71_NovemberActual,Sheet1!S71_MasterVoteMunicipal,$AC:$AC,Sheet1!S71_A5CapexCode,$AD:$AD)=0,P12/12,SUMIFS(Sheet1!S71_NovemberActual,Sheet1!S71_MasterVoteMunicipal,$AC:$AC,Sheet1!S71_A5CapexCode,$AD:$AD))","v":0},{"$f":"IF(SUMIFS(Sheet1!S71_DecemberActual,Sheet1!S71_MasterVoteMunicipal,$AC:$AC,Sheet1!S71_A5CapexCode,$AD:$AD)=0,P12/12,SUMIFS(Sheet1!S71_DecemberActual,Sheet1!S71_MasterVoteMunicipal,$AC:$AC,Sheet1!S71_A5CapexCode,$AD:$AD))","v":0},{"$f":"$P$12/12","v":0},0,0,0,0,0,null,{"$f":"'B5-Capex'!K14","v":0},{"$f":"'B5-Capex'!L14","v":0},{"$f":"'B5-Capex'!M14","v":0}]
[{"$f":"'B5-Capex'!A15","v":"Vote 8 - Planning and Development"},null,{"$f":"IF(SUMIFS(Sheet1!S71_JulyActual,Sheet1!S71_MasterVoteMunicipal,$AC:$AC,Sheet1!S71_A5CapexCode,$AD:$AD)=0,P13/12,SUMIFS(Sheet1!S71_JulyActual,Sheet1!S71_MasterVoteMunicipal,$AC:$AC,Sheet1!S71_A5CapexCode,$AD:$AD))","v":0},{"$f":"IF(SUMIFS(Sheet1!S71_AugustActual,Sheet1!S71_MasterVoteMunicipal,$AC:$AC,Sheet1!S71_A5CapexCode,$AD:$AD)=0,P13/12,SUMIFS(Sheet1!S71_AugustActual,Sheet1!S71_MasterVoteMunicipal,$AC:$AC,Sheet1!S71_A5CapexCode,$AD:$AD))","v":0},{"$f":"IF(SUMIFS(Sheet1!S71_SeptemberActual,Sheet1!S71_MasterVoteMunicipal,$AC:$AC,Sheet1!S71_A5CapexCode,$AD:$AD)=0,P13/12,SUMIFS(Sheet1!S71_SeptemberActual,Sheet1!S71_MasterVoteMunicipal,$AC:$AC,Sheet1!S71_A5CapexCode,$AD:$AD))","v":0},{"$f":"IF(SUMIFS(Sheet1!S71_OctoberActual,Sheet1!S71_MasterVoteMunicipal,$AC:$AC,Sheet1!S71_A5CapexCode,$AD:$AD)=0,P13/12,SUMIFS(Sheet1!S71_OctoberActual,Sheet1!S71_MasterVoteMunicipal,$AC:$AC,Sheet1!S71_A5CapexCode,$AD:$AD))","v":0},{"$f":"IF(SUMIFS(Sheet1!S71_NovemberActual,Sheet1!S71_MasterVoteMunicipal,$AC:$AC,Sheet1!S71_A5CapexCode,$AD:$AD)=0,P13/12,SUMIFS(Sheet1!S71_NovemberActual,Sheet1!S71_MasterVoteMunicipal,$AC:$AC,Sheet1!S71_A5CapexCode,$AD:$AD))","v":0},{"$f":"IF(SUMIFS(Sheet1!S71_DecemberActual,Sheet1!S71_MasterVoteMunicipal,$AC:$AC,Sheet1!S71_A5CapexCode,$AD:$AD)=0,P13/12,SUMIFS(Sheet1!S71_DecemberActual,Sheet1!S71_MasterVoteMunicipal,$AC:$AC,Sheet1!S71_A5CapexCode,$AD:$AD))","v":0},{"$f":"$P$13/12","v":0},0,0,0,0,0,null,{"$f":"'B5-Capex'!K15","v":0},{"$f":"'B5-Capex'!L15","v":0},{"$f":"'B5-Capex'!M15","v":0}]
[{"$f":"'B5-Capex'!A16","v":"Vote 9 - Road transport"},null,{"$f":"IF(SUMIFS(Sheet1!S71_JulyActual,Sheet1!S71_MasterVoteMunicipal,$AC:$AC,Sheet1!S71_A5CapexCode,$AD:$AD)=0,P14/12,SUMIFS(Sheet1!S71_JulyActual,Sheet1!S71_MasterVoteMunicipal,$AC:$AC,Sheet1!S71_A5CapexCode,$AD:$AD))","v":0},{"$f":"IF(SUMIFS(Sheet1!S71_AugustActual,Sheet1!S71_MasterVoteMunicipal,$AC:$AC,Sheet1!S71_A5CapexCode,$AD:$AD)=0,P14/12,SUMIFS(Sheet1!S71_AugustActual,Sheet1!S71_MasterVoteMunicipal,$AC:$AC,Sheet1!S71_A5CapexCode,$AD:$AD))","v":0},{"$f":"IF(SUMIFS(Sheet1!S71_SeptemberActual,Sheet1!S71_MasterVoteMunicipal,$AC:$AC,Sheet1!S71_A5CapexCode,$AD:$AD)=0,P14/12,SUMIFS(Sheet1!S71_SeptemberActual,Sheet1!S71_MasterVoteMunicipal,$AC:$AC,Sheet1!S71_A5CapexCode,$AD:$AD))","v":0},{"$f":"IF(SUMIFS(Sheet1!S71_OctoberActual,Sheet1!S71_MasterVoteMunicipal,$AC:$AC,Sheet1!S71_A5CapexCode,$AD:$AD)=0,P14/12,SUMIFS(Sheet1!S71_OctoberActual,Sheet1!S71_MasterVoteMunicipal,$AC:$AC,Sheet1!S71_A5CapexCode,$AD:$AD))","v":0},{"$f":"IF(SUMIFS(Sheet1!S71_NovemberActual,Sheet1!S71_MasterVoteMunicipal,$AC:$AC,Sheet1!S71_A5CapexCode,$AD:$AD)=0,P14/12,SUMIFS(Sheet1!S71_NovemberActual,Sheet1!S71_MasterVoteMunicipal,$AC:$AC,Sheet1!S71_A5CapexCode,$AD:$AD))","v":0},{"$f":"IF(SUMIFS(Sheet1!S71_DecemberActual,Sheet1!S71_MasterVoteMunicipal,$AC:$AC,Sheet1!S71_A5CapexCode,$AD:$AD)=0,P14/12,SUMIFS(Sheet1!S71_DecemberActual,Sheet1!S71_MasterVoteMunicipal,$AC:$AC,Sheet1!S71_A5CapexCode,$AD:$AD))","v":0},{"$f":"$P$14/12","v":0},0,0,0,0,0,null,{"$f":"'B5-Capex'!K16","v":0},{"$f":"'B5-Capex'!L16","v":0},{"$f":"'B5-Capex'!M16","v":0}]
[{"$f":"'B5-Capex'!A17","v":"Vote 10 - Energy sources"},null,{"$f":"IF(SUMIFS(Sheet1!S71_JulyActual,Sheet1!S71_MasterVoteMunicipal,$AC:$AC,Sheet1!S71_A5CapexCode,$AD:$AD)=0,P15/12,SUMIFS(Sheet1!S71_JulyActual,Sheet1!S71_MasterVoteMunicipal,$AC:$AC,Sheet1!S71_A5CapexCode,$AD:$AD))","v":0},{"$f":"IF(SUMIFS(Sheet1!S71_AugustActual,Sheet1!S71_MasterVoteMunicipal,$AC:$AC,Sheet1!S71_A5CapexCode,$AD:$AD)=0,P15/12,SUMIFS(Sheet1!S71_AugustActual,Sheet1!S71_MasterVoteMunicipal,$AC:$AC,Sheet1!S71_A5CapexCode,$AD:$AD))","v":0},{"$f":"IF(SUMIFS(Sheet1!S71_SeptemberActual,Sheet1!S71_MasterVoteMunicipal,$AC:$AC,Sheet1!S71_A5CapexCode,$AD:$AD)=0,P15/12,SUMIFS(Sheet1!S71_SeptemberActual,Sheet1!S71_MasterVoteMunicipal,$AC:$AC,Sheet1!S71_A5CapexCode,$AD:$AD))","v":0},{"$f":"IF(SUMIFS(Sheet1!S71_OctoberActual,Sheet1!S71_MasterVoteMunicipal,$AC:$AC,Sheet1!S71_A5CapexCode,$AD:$AD)=0,P15/12,SUMIFS(Sheet1!S71_OctoberActual,Sheet1!S71_MasterVoteMunicipal,$AC:$AC,Sheet1!S71_A5CapexCode,$AD:$AD))","v":0},{"$f":"IF(SUMIFS(Sheet1!S71_NovemberActual,Sheet1!S71_MasterVoteMunicipal,$AC:$AC,Sheet1!S71_A5CapexCode,$AD:$AD)=0,P15/12,SUMIFS(Sheet1!S71_NovemberActual,Sheet1!S71_MasterVoteMunicipal,$AC:$AC,Sheet1!S71_A5CapexCode,$AD:$AD))","v":0},{"$f":"IF(SUMIFS(Sheet1!S71_DecemberActual,Sheet1!S71_MasterVoteMunicipal,$AC:$AC,Sheet1!S71_A5CapexCode,$AD:$AD)=0,P15/12,SUMIFS(Sheet1!S71_DecemberActual,Sheet1!S71_MasterVoteMunicipal,$AC:$AC,Sheet1!S71_A5CapexCode,$AD:$AD))","v":0},{"$f":"$P$15/12","v":0},0,0,0,0,0,null,{"$f":"'B5-Capex'!K17","v":0},{"$f":"'B5-Capex'!L17","v":0},{"$f":"'B5-Capex'!M17","v":0}]
[{"$f":"'B5-Capex'!A18","v":"Vote 11 - Waste Management"},null,{"$f":"IF(SUMIFS(Sheet1!S71_JulyActual,Sheet1!S71_MasterVoteMunicipal,$AC:$AC,Sheet1!S71_A5CapexCode,$AD:$AD)=0,P16/12,SUMIFS(Sheet1!S71_JulyActual,Sheet1!S71_MasterVoteMunicipal,$AC:$AC,Sheet1!S71_A5CapexCode,$AD:$AD))","v":0},{"$f":"IF(SUMIFS(Sheet1!S71_AugustActual,Sheet1!S71_MasterVoteMunicipal,$AC:$AC,Sheet1!S71_A5CapexCode,$AD:$AD)=0,P16/12,SUMIFS(Sheet1!S71_AugustActual,Sheet1!S71_MasterVoteMunicipal,$AC:$AC,Sheet1!S71_A5CapexCode,$AD:$AD))","v":0},{"$f":"IF(SUMIFS(Sheet1!S71_SeptemberActual,Sheet1!S71_MasterVoteMunicipal,$AC:$AC,Sheet1!S71_A5CapexCode,$AD:$AD)=0,P16/12,SUMIFS(Sheet1!S71_SeptemberActual,Sheet1!S71_MasterVoteMunicipal,$AC:$AC,Sheet1!S71_A5CapexCode,$AD:$AD))","v":0},{"$f":"IF(SUMIFS(Sheet1!S71_OctoberActual,Sheet1!S71_MasterVoteMunicipal,$AC:$AC,Sheet1!S71_A5CapexCode,$AD:$AD)=0,P16/12,SUMIFS(Sheet1!S71_OctoberActual,Sheet1!S71_MasterVoteMunicipal,$AC:$AC,Sheet1!S71_A5CapexCode,$AD:$AD))","v":0},{"$f":"IF(SUMIFS(Sheet1!S71_NovemberActual,Sheet1!S71_MasterVoteMunicipal,$AC:$AC,Sheet1!S71_A5CapexCode,$AD:$AD)=0,P16/12,SUMIFS(Sheet1!S71_NovemberActual,Sheet1!S71_MasterVoteMunicipal,$AC:$AC,Sheet1!S71_A5CapexCode,$AD:$AD))","v":0},{"$f":"IF(SUMIFS(Sheet1!S71_DecemberActual,Sheet1!S71_MasterVoteMunicipal,$AC:$AC,Sheet1!S71_A5CapexCode,$AD:$AD)=0,P16/12,SUMIFS(Sheet1!S71_DecemberActual,Sheet1!S71_MasterVoteMunicipal,$AC:$AC,Sheet1!S71_A5CapexCode,$AD:$AD))","v":0},{"$f":"$P$16/12","v":0},0,0,0,0,0,null,{"$f":"'B5-Capex'!K18","v":0},{"$f":"'B5-Capex'!L18","v":0},{"$f":"'B5-Capex'!M18","v":0}]
[{"$f":"'B5-Capex'!A19","v":"Vote 12 - Environmental Protection"},null,{"$f":"IF(SUMIFS(Sheet1!S71_JulyActual,Sheet1!S71_MasterVoteMunicipal,$AC:$AC,Sheet1!S71_A5CapexCode,$AD:$AD)=0,P17/12,SUMIFS(Sheet1!S71_JulyActual,Sheet1!S71_MasterVoteMunicipal,$AC:$AC,Sheet1!S71_A5CapexCode,$AD:$AD))","v":0},{"$f":"IF(SUMIFS(Sheet1!S71_AugustActual,Sheet1!S71_MasterVoteMunicipal,$AC:$AC,Sheet1!S71_A5CapexCode,$AD:$AD)=0,P17/12,SUMIFS(Sheet1!S71_AugustActual,Sheet1!S71_MasterVoteMunicipal,$AC:$AC,Sheet1!S71_A5CapexCode,$AD:$AD))","v":0},{"$f":"IF(SUMIFS(Sheet1!S71_SeptemberActual,Sheet1!S71_MasterVoteMunicipal,$AC:$AC,Sheet1!S71_A5CapexCode,$AD:$AD)=0,P17/12,SUMIFS(Sheet1!S71_SeptemberActual,Sheet1!S71_MasterVoteMunicipal,$AC:$AC,Sheet1!S71_A5CapexCode,$AD:$AD))","v":0},{"$f":"IF(SUMIFS(Sheet1!S71_OctoberActual,Sheet1!S71_MasterVoteMunicipal,$AC:$AC,Sheet1!S71_A5CapexCode,$AD:$AD)=0,P17/12,SUMIFS(Sheet1!S71_OctoberActual,Sheet1!S71_MasterVoteMunicipal,$AC:$AC,Sheet1!S71_A5CapexCode,$AD:$AD))","v":0},{"$f":"IF(SUMIFS(Sheet1!S71_NovemberActual,Sheet1!S71_MasterVoteMunicipal,$AC:$AC,Sheet1!S71_A5CapexCode,$AD:$AD)=0,P17/12,SUMIFS(Sheet1!S71_NovemberActual,Sheet1!S71_MasterVoteMunicipal,$AC:$AC,Sheet1!S71_A5CapexCode,$AD:$AD))","v":0},{"$f":"IF(SUMIFS(Sheet1!S71_DecemberActual,Sheet1!S71_MasterVoteMunicipal,$AC:$AC,Sheet1!S71_A5CapexCode,$AD:$AD)=0,P17/12,SUMIFS(Sheet1!S71_DecemberActual,Sheet1!S71_MasterVoteMunicipal,$AC:$AC,Sheet1!S71_A5CapexCode,$AD:$AD))","v":0},{"$f":"$P$17/12","v":0},0,0,0,0,0,null,{"$f":"'B5-Capex'!K19","v":0},{"$f":"'B5-Capex'!L19","v":0},{"$f":"'B5-Capex'!M19","v":0}]
[{"$f":"'B5-Capex'!A20","v":"Vote 13 - [NAME OF VOTE 13]"},null,{"$f":"IF(SUMIFS(Sheet1!S71_JulyActual,Sheet1!S71_MasterVoteMunicipal,$AC:$AC,Sheet1!S71_A5CapexCode,$AD:$AD)=0,P18/12,SUMIFS(Sheet1!S71_JulyActual,Sheet1!S71_MasterVoteMunicipal,$AC:$AC,Sheet1!S71_A5CapexCode,$AD:$AD))","v":0},{"$f":"IF(SUMIFS(Sheet1!S71_AugustActual,Sheet1!S71_MasterVoteMunicipal,$AC:$AC,Sheet1!S71_A5CapexCode,$AD:$AD)=0,P18/12,SUMIFS(Sheet1!S71_AugustActual,Sheet1!S71_MasterVoteMunicipal,$AC:$AC,Sheet1!S71_A5CapexCode,$AD:$AD))","v":0},{"$f":"IF(SUMIFS(Sheet1!S71_SeptemberActual,Sheet1!S71_MasterVoteMunicipal,$AC:$AC,Sheet1!S71_A5CapexCode,$AD:$AD)=0,P18/12,SUMIFS(Sheet1!S71_SeptemberActual,Sheet1!S71_MasterVoteMunicipal,$AC:$AC,Sheet1!S71_A5CapexCode,$AD:$AD))","v":0},{"$f":"IF(SUMIFS(Sheet1!S71_OctoberActual,Sheet1!S71_MasterVoteMunicipal,$AC:$AC,Sheet1!S71_A5CapexCode,$AD:$AD)=0,P18/12,SUMIFS(Sheet1!S71_OctoberActual,Sheet1!S71_MasterVoteMunicipal,$AC:$AC,Sheet1!S71_A5CapexCode,$AD:$AD))","v":0},{"$f":"IF(SUMIFS(Sheet1!S71_NovemberActual,Sheet1!S71_MasterVoteMunicipal,$AC:$AC,Sheet1!S71_A5CapexCode,$AD:$AD)=0,P18/12,SUMIFS(Sheet1!S71_NovemberActual,Sheet1!S71_MasterVoteMunicipal,$AC:$AC,Sheet1!S71_A5CapexCode,$AD:$AD))","v":0},{"$f":"IF(SUMIFS(Sheet1!S71_DecemberActual,Sheet1!S71_MasterVoteMunicipal,$AC:$AC,Sheet1!S71_A5CapexCode,$AD:$AD)=0,P18/12,SUMIFS(Sheet1!S71_DecemberActual,Sheet1!S71_MasterVoteMunicipal,$AC:$AC,Sheet1!S71_A5CapexCode,$AD:$AD))","v":0},{"$f":"$P$18/12","v":0},0,0,0,0,0,null,{"$f":"'B5-Capex'!K20","v":0},{"$f":"'B5-Capex'!L20","v":0},{"$f":"'B5-Capex'!M20","v":0}]
[{"$f":"'B5-Capex'!A21","v":"Vote 14 - [NAME OF VOTE 14]"},null,{"$f":"IF(SUMIFS(Sheet1!S71_JulyActual,Sheet1!S71_MasterVoteMunicipal,$AC:$AC,Sheet1!S71_A5CapexCode,$AD:$AD)=0,P19/12,SUMIFS(Sheet1!S71_JulyActual,Sheet1!S71_MasterVoteMunicipal,$AC:$AC,Sheet1!S71_A5CapexCode,$AD:$AD))","v":0},{"$f":"IF(SUMIFS(Sheet1!S71_AugustActual,Sheet1!S71_MasterVoteMunicipal,$AC:$AC,Sheet1!S71_A5CapexCode,$AD:$AD)=0,P19/12,SUMIFS(Sheet1!S71_AugustActual,Sheet1!S71_MasterVoteMunicipal,$AC:$AC,Sheet1!S71_A5CapexCode,$AD:$AD))","v":0},{"$f":"IF(SUMIFS(Sheet1!S71_SeptemberActual,Sheet1!S71_MasterVoteMunicipal,$AC:$AC,Sheet1!S71_A5CapexCode,$AD:$AD)=0,P19/12,SUMIFS(Sheet1!S71_SeptemberActual,Sheet1!S71_MasterVoteMunicipal,$AC:$AC,Sheet1!S71_A5CapexCode,$AD:$AD))","v":0},{"$f":"IF(SUMIFS(Sheet1!S71_OctoberActual,Sheet1!S71_MasterVoteMunicipal,$AC:$AC,Sheet1!S71_A5CapexCode,$AD:$AD)=0,P19/12,SUMIFS(Sheet1!S71_OctoberActual,Sheet1!S71_MasterVoteMunicipal,$AC:$AC,Sheet1!S71_A5CapexCode,$AD:$AD))","v":0},{"$f":"IF(SUMIFS(Sheet1!S71_NovemberActual,Sheet1!S71_MasterVoteMunicipal,$AC:$AC,Sheet1!S71_A5CapexCode,$AD:$AD)=0,P19/12,SUMIFS(Sheet1!S71_NovemberActual,Sheet1!S71_MasterVoteMunicipal,$AC:$AC,Sheet1!S71_A5CapexCode,$AD:$AD))","v":0},{"$f":"IF(SUMIFS(Sheet1!S71_DecemberActual,Sheet1!S71_MasterVoteMunicipal,$AC:$AC,Sheet1!S71_A5CapexCode,$AD:$AD)=0,P19/12,SUMIFS(Sheet1!S71_DecemberActual,Sheet1!S71_MasterVoteMunicipal,$AC:$AC,Sheet1!S71_A5CapexCode,$AD:$AD))","v":0},{"$f":"$P$19/12","v":0},0,0,0,0,0,null,{"$f":"'B5-Capex'!K21","v":0},{"$f":"'B5-Capex'!L21","v":0},{"$f":"'B5-Capex'!M21","v":0}]
[{"$f":"'B5-Capex'!A22","v":"Vote 15 - [NAME OF VOTE 15]"},null,{"$f":"IF(SUMIFS(Sheet1!S71_JulyActual,Sheet1!S71_MasterVoteMunicipal,$AC:$AC,Sheet1!S71_A5CapexCode,$AD:$AD)=0,P20/12,SUMIFS(Sheet1!S71_JulyActual,Sheet1!S71_MasterVoteMunicipal,$AC:$AC,Sheet1!S71_A5CapexCode,$AD:$AD))","v":0},{"$f":"IF(SUMIFS(Sheet1!S71_AugustActual,Sheet1!S71_MasterVoteMunicipal,$AC:$AC,Sheet1!S71_A5CapexCode,$AD:$AD)=0,P20/12,SUMIFS(Sheet1!S71_AugustActual,Sheet1!S71_MasterVoteMunicipal,$AC:$AC,Sheet1!S71_A5CapexCode,$AD:$AD))","v":0},{"$f":"IF(SUMIFS(Sheet1!S71_SeptemberActual,Sheet1!S71_MasterVoteMunicipal,$AC:$AC,Sheet1!S71_A5CapexCode,$AD:$AD)=0,P20/12,SUMIFS(Sheet1!S71_SeptemberActual,Sheet1!S71_MasterVoteMunicipal,$AC:$AC,Sheet1!S71_A5CapexCode,$AD:$AD))","v":0},{"$f":"IF(SUMIFS(Sheet1!S71_OctoberActual,Sheet1!S71_MasterVoteMunicipal,$AC:$AC,Sheet1!S71_A5CapexCode,$AD:$AD)=0,P20/12,SUMIFS(Sheet1!S71_OctoberActual,Sheet1!S71_MasterVoteMunicipal,$AC:$AC,Sheet1!S71_A5CapexCode,$AD:$AD))","v":0},{"$f":"IF(SUMIFS(Sheet1!S71_NovemberActual,Sheet1!S71_MasterVoteMunicipal,$AC:$AC,Sheet1!S71_A5CapexCode,$AD:$AD)=0,P20/12,SUMIFS(Sheet1!S71_NovemberActual,Sheet1!S71_MasterVoteMunicipal,$AC:$AC,Sheet1!S71_A5CapexCode,$AD:$AD))","v":0},{"$f":"IF(SUMIFS(Sheet1!S71_DecemberActual,Sheet1!S71_MasterVoteMunicipal,$AC:$AC,Sheet1!S71_A5CapexCode,$AD:$AD)=0,P20/12,SUMIFS(Sheet1!S71_DecemberActual,Sheet1!S71_MasterVoteMunicipal,$AC:$AC,Sheet1!S71_A5CapexCode,$AD:$AD))","v":0},{"$f":"$P$20/12","v":0},0,0,0,0,0,null,{"$f":"'B5-Capex'!K22","v":0},{"$f":"'B5-Capex'!L22","v":0},{"$f":"'B5-Capex'!M22","v":0}]
["Capital Multi-year expenditure sub-total",3,{"$f":"SUM(C6:C20)","v":0},0,0,0,0,0,0,0,0,0,0,0,0,0,0,0]
[null,null,null,null,null,null,null,null,null,null,null,null,null,{"$f":"SUM(N7:N21)","v":0},{"$f":"SUM(O7:O21)","v":0},{"$f":"SUM(P7:P21)","v":0},{"$f":"SUM(Q7:Q21)","v":0},{"$f":"SUM(R7:R21)","v":0}]
["Single-year expenditure appropriation"]
[{"$f":"A6","v":"Vote 1 - Executive and council"},null,{"$f":"IF(SUMIFS(Sheet1!S71_JulyActual,Sheet1!S71_MasterVoteMunicipal,$AC:$AC,Sheet1!S71_A5CapexCode,$AD:$AD)=0,P24/12,SUMIFS(Sheet1!S71_JulyActual,Sheet1!S71_MasterVoteMunicipal,$AC:$AC,Sheet1!S71_A5CapexCode,$AD:$AD))","v":952609},{"$f":"IF(SUMIFS(Sheet1!S71_AugustActual,Sheet1!S71_MasterVoteMunicipal,$AC:$AC,Sheet1!S71_A5CapexCode,$AD:$AD)=0,P24/12,SUMIFS(Sheet1!S71_AugustActual,Sheet1!S71_MasterVoteMunicipal,$AC:$AC,Sheet1!S71_A5CapexCode,$AD:$AD))","v":868131.9},{"$f":"IF(SUMIFS(Sheet1!S71_SeptemberActual,Sheet1!S71_MasterVoteMunicipal,$AC:$AC,Sheet1!S71_A5CapexCode,$AD:$AD)=0,P24/12,SUMIFS(Sheet1!S71_SeptemberActual,Sheet1!S71_MasterVoteMunicipal,$AC:$AC,Sheet1!S71_A5CapexCode,$AD:$AD))","v":2146467.64},{"$f":"IF(SUMIFS(Sheet1!S71_OctoberActual,Sheet1!S71_MasterVoteMunicipal,$AC:$AC,Sheet1!S71_A5CapexCode,$AD:$AD)=0,P24/12,SUMIFS(Sheet1!S71_OctoberActual,Sheet1!S71_MasterVoteMunicipal,$AC:$AC,Sheet1!S71_A5CapexCode,$AD:$AD))","v":952609},{"$f":"IF(SUMIFS(Sheet1!S71_NovemberActual,Sheet1!S71_MasterVoteMunicipal,$AC:$AC,Sheet1!S71_A5CapexCode,$AD:$AD)=0,P24/12,SUMIFS(Sheet1!S71_NovemberActual,Sheet1!S71_MasterVoteMunicipal,$AC:$AC,Sheet1!S71_A5CapexCode,$AD:$AD))","v":1953545.79},{"$f":"IF(SUMIFS(Sheet1!S71_DecemberActual,Sheet1!S71_MasterVoteMunicipal,$AC:$AC,Sheet1!S71_A5CapexCode,$AD:$AD)=0,P24/12,SUMIFS(Sheet1!S71_DecemberActual,Sheet1!S71_MasterVoteMunicipal,$AC:$AC,Sheet1!S71_A5CapexCode,$AD:$AD))","v":952609},{"$f":"$P$24/12","v":952609},952609,952609,952609,952609,{"$f":"P24-SUM(C24:M24)","v":-1157709.33},null,{"$f":"'B5-Capex'!K26","v":11431308},{"$f":"'B5-Capex'!L26","v":20000000},{"$f":"'B5-Capex'!M26","v":15000000},null,null,null,null,null,null,null,null,null,null,1,"CE"]
["Vote 2 - Finance and administration",null,{"$f":"IF(SUMIFS(Sheet1!S71_JulyActual,Sheet1!S71_MasterVoteMunicipal,$AC:$AC,Sheet1!S71_A5CapexCode,$AD:$AD)=0,P25/12,SUMIFS(Sheet1!S71_JulyActual,Sheet1!S71_MasterVoteMunicipal,$AC:$AC,Sheet1!S71_A5CapexCode,$AD:$AD))","v":285467},{"$f":"IF(SUMIFS(Sheet1!S71_AugustActual,Sheet1!S71_MasterVoteMunicipal,$AC:$AC,Sheet1!S71_A5CapexCode,$AD:$AD)=0,P25/12,SUMIFS(Sheet1!S71_AugustActual,Sheet1!S71_MasterVoteMunicipal,$AC:$AC,Sheet1!S71_A5CapexCode,$AD:$AD))","v":529684},{"$f":"IF(SUMIFS(Sheet1!S71_SeptemberActual,Sheet1!S71_MasterVoteMunicipal,$AC:$AC,Sheet1!S71_A5CapexCode,$AD:$AD)=0,P25/12,SUMIFS(Sheet1!S71_SeptemberActual,Sheet1!S71_MasterVoteMunicipal,$AC:$AC,Sheet1!S71_A5CapexCode,$AD:$AD))","v":-3604192.3899999997},{"$f":"IF(SUMIFS(Sheet1!S71_OctoberActual,Sheet1!S71_MasterVoteMunicipal,$AC:$AC,Sheet1!S71_A5CapexCode,$AD:$AD)=0,P25/12,SUMIFS(Sheet1!S71_OctoberActual,Sheet1!S71_MasterVoteMunicipal,$AC:$AC,Sheet1!S71_A5CapexCode,$AD:$AD))","v":1474704.35},{"$f":"IF(SUMIFS(Sheet1!S71_NovemberActual,Sheet1!S71_MasterVoteMunicipal,$AC:$AC,Sheet1!S71_A5CapexCode,$AD:$AD)=0,P25/12,SUMIFS(Sheet1!S71_NovemberActual,Sheet1!S71_MasterVoteMunicipal,$AC:$AC,Sheet1!S71_A5CapexCode,$AD:$AD))","v":1206794.5899999999},{"$f":"IF(SUMIFS(Sheet1!S71_DecemberActual,Sheet1!S71_MasterVoteMunicipal,$AC:$AC,Sheet1!S71_A5CapexCode,$AD:$AD)=0,P25/12,SUMIFS(Sheet1!S71_DecemberActual,Sheet1!S71_MasterVoteMunicipal,$AC:$AC,Sheet1!S71_A5CapexCode,$AD:$AD))","v":5201338.2300000004},{"$f":"$P$25/12","v":1134644.6666666667},1134644.6666666667,1134644.6666666667,1134644.6666666667,1134644.6666666667,2848716.8866666667,null,{"$f":"'B5-Capex'!K27","v":13615736},{"$f":"'B5-Capex'!L27","v":0},{"$f":"'B5-Capex'!M27","v":0},null,null,null,null,null,null,null,null,null,null,2,"CE"]
["Vote 3 - Internal audit",null,{"$f":"IF(SUMIFS(Sheet1!S71_JulyActual,Sheet1!S71_MasterVoteMunicipal,$AC:$AC,Sheet1!S71_A5CapexCode,$AD:$AD)=0,P26/12,SUMIFS(Sheet1!S71_JulyActual,Sheet1!S71_MasterVoteMunicipal,$AC:$AC,Sheet1!S71_A5CapexCode,$AD:$AD))","v":0},{"$f":"IF(SUMIFS(Sheet1!S71_AugustActual,Sheet1!S71_MasterVoteMunicipal,$AC:$AC,Sheet1!S71_A5CapexCode,$AD:$AD)=0,P26/12,SUMIFS(Sheet1!S71_AugustActual,Sheet1!S71_MasterVoteMunicipal,$AC:$AC,Sheet1!S71_A5CapexCode,$AD:$AD))","v":0},{"$f":"IF(SUMIFS(Sheet1!S71_SeptemberActual,Sheet1!S71_MasterVoteMunicipal,$AC:$AC,Sheet1!S71_A5CapexCode,$AD:$AD)=0,P26/12,SUMIFS(Sheet1!S71_SeptemberActual,Sheet1!S71_MasterVoteMunicipal,$AC:$AC,Sheet1!S71_A5CapexCode,$AD:$AD))","v":0},{"$f":"IF(SUMIFS(Sheet1!S71_OctoberActual,Sheet1!S71_MasterVoteMunicipal,$AC:$AC,Sheet1!S71_A5CapexCode,$AD:$AD)=0,P26/12,SUMIFS(Sheet1!S71_OctoberActual,Sheet1!S71_MasterVoteMunicipal,$AC:$AC,Sheet1!S71_A5CapexCode,$AD:$AD))","v":0},{"$f":"IF(SUMIFS(Sheet1!S71_NovemberActual,Sheet1!S71_MasterVoteMunicipal,$AC:$AC,Sheet1!S71_A5CapexCode,$AD:$AD)=0,P26/12,SUMIFS(Sheet1!S71_NovemberActual,Sheet1!S71_MasterVoteMunicipal,$AC:$AC,Sheet1!S71_A5CapexCode,$AD:$AD))","v":0},{"$f":"IF(SUMIFS(Sheet1!S71_DecemberActual,Sheet1!S71_MasterVoteMunicipal,$AC:$AC,Sheet1!S71_A5CapexCode,$AD:$AD)=0,P26/12,SUMIFS(Sheet1!S71_DecemberActual,Sheet1!S71_MasterVoteMunicipal,$AC:$AC,Sheet1!S71_A5CapexCode,$AD:$AD))","v":0},{"$f":"$P$26/12","v":0},0,0,0,0,0,null,{"$f":"'B5-Capex'!K28","v":0},{"$f":"'B5-Capex'!L28","v":0},{"$f":"'B5-Capex'!M28","v":0},null,null,null,null,null,null,null,null,null,null,3,"CE"]
["Vote 4 - Community and social services",null,{"$f":"IF(SUMIFS(Sheet1!S71_JulyActual,Sheet1!S71_MasterVoteMunicipal,$AC:$AC,Sheet1!S71_A5CapexCode,$AD:$AD)=0,P27/12,SUMIFS(Sheet1!S71_JulyActual,Sheet1!S71_MasterVoteMunicipal,$AC:$AC,Sheet1!S71_A5CapexCode,$AD:$AD))","v":342251.66666666669},{"$f":"IF(SUMIFS(Sheet1!S71_AugustActual,Sheet1!S71_MasterVoteMunicipal,$AC:$AC,Sheet1!S71_A5CapexCode,$AD:$AD)=0,P27/12,SUMIFS(Sheet1!S71_AugustActual,Sheet1!S71_MasterVoteMunicipal,$AC:$AC,Sheet1!S71_A5CapexCode,$AD:$AD))","v":342251.66666666669},{"$f":"IF(SUMIFS(Sheet1!S71_SeptemberActual,Sheet1!S71_MasterVoteMunicipal,$AC:$AC,Sheet1!S71_A5CapexCode,$AD:$AD)=0,P27/12,SUMIFS(Sheet1!S71_SeptemberActual,Sheet1!S71_MasterVoteMunicipal,$AC:$AC,Sheet1!S71_A5CapexCode,$AD:$AD))","v":241000},{"$f":"IF(SUMIFS(Sheet1!S71_OctoberActual,Sheet1!S71_MasterVoteMunicipal,$AC:$AC,Sheet1!S71_A5CapexCode,$AD:$AD)=0,P27/12,SUMIFS(Sheet1!S71_OctoberActual,Sheet1!S71_MasterVoteMunicipal,$AC:$AC,Sheet1!S71_A5CapexCode,$AD:$AD))","v":99950},{"$f":"IF(SUMIFS(Sheet1!S71_NovemberActual,Sheet1!S71_MasterVoteMunicipal,$AC:$AC,Sheet1!S71_A5CapexCode,$AD:$AD)=0,P27/12,SUMIFS(Sheet1!S71_NovemberActual,Sheet1!S71_MasterVoteMunicipal,$AC:$AC,Sheet1!S71_A5CapexCode,$AD:$AD))","v":342251.66666666669},{"$f":"IF(SUMIFS(Sheet1!S71_DecemberActual,Sheet1!S71_MasterVoteMunicipal,$AC:$AC,Sheet1!S71_A5CapexCode,$AD:$AD)=0,P27/12,SUMIFS(Sheet1!S71_DecemberActual,Sheet1!S71_MasterVoteMunicipal,$AC:$AC,Sheet1!S71_A5CapexCode,$AD:$AD))","v":174850},{"$f":"$P$27/12","v":342251.66666666669},342251.66666666669,342251.66666666669,342251.66666666669,342251.66666666669,853206.66666666698,null,{"$f":"'B5-Capex'!K29","v":4107020},{"$f":"'B5-Capex'!L29","v":0},{"$f":"'B5-Capex'!M29","v":0},null,null,null,null,null,null,null,null,null,null,4,"CE"]
["Vote 5 - Sport and Recreation",null,{"$f":"IF(SUMIFS(Sheet1!S71_JulyActual,Sheet1!S71_MasterVoteMunicipal,$AC:$AC,Sheet1!S71_A5CapexCode,$AD:$AD)=0,P28/12,SUMIFS(Sheet1!S71_JulyActual,Sheet1!S71_MasterVoteMunicipal,$AC:$AC,Sheet1!S71_A5CapexCode,$AD:$AD))","v":0},{"$f":"IF(SUMIFS(Sheet1!S71_AugustActual,Sheet1!S71_MasterVoteMunicipal,$AC:$AC,Sheet1!S71_A5CapexCode,$AD:$AD)=0,P28/12,SUMIFS(Sheet1!S71_AugustActual,Sheet1!S71_MasterVoteMunicipal,$AC:$AC,Sheet1!S71_A5CapexCode,$AD:$AD))","v":0},{"$f":"IF(SUMIFS(Sheet1!S71_SeptemberActual,Sheet1!S71_MasterVoteMunicipal,$AC:$AC,Sheet1!S71_A5CapexCode,$AD:$AD)=0,P28/12,SUMIFS(Sheet1!S71_SeptemberActual,Sheet1!S71_MasterVoteMunicipal,$AC:$AC,Sheet1!S71_A5CapexCode,$AD:$AD))","v":0},{"$f":"IF(SUMIFS(Sheet1!S71_OctoberActual,Sheet1!S71_MasterVoteMunicipal,$AC:$AC,Sheet1!S71_A5CapexCode,$AD:$AD)=0,P28/12,SUMIFS(Sheet1!S71_OctoberActual,Sheet1!S71_MasterVoteMunicipal,$AC:$AC,Sheet1!S71_A5CapexCode,$AD:$AD))","v":571275.48},{"$f":"IF(SUMIFS(Sheet1!S71_NovemberActual,Sheet1!S71_MasterVoteMunicipal,$AC:$AC,Sheet1!S71_A5CapexCode,$AD:$AD)=0,P28/12,SUMIFS(Sheet1!S71_NovemberActual,Sheet1!S71_MasterVoteMunicipal,$AC:$AC,Sheet1!S71_A5CapexCode,$AD:$AD))","v":1230931.06},{"$f":"IF(SUMIFS(Sheet1!S71_DecemberActual,Sheet1!S71_MasterVoteMunicipal,$AC:$AC,Sheet1!S71_A5CapexCode,$AD:$AD)=0,P28/12,SUMIFS(Sheet1!S71_DecemberActual,Sheet1!S71_MasterVoteMunicipal,$AC:$AC,Sheet1!S71_A5CapexCode,$AD:$AD))","v":574069.80000000005},342251.66666666669,342251.66666666669,342251.66666666669,342251.66666666669,342251.66666666669,0,null,0,0,0,null,null,null,null,null,null,null,null,null,null,5,"CE"]
["Vote 6 - Public safety",null,{"$f":"IF(SUMIFS(Sheet1!S71_JulyActual,Sheet1!S71_MasterVoteMunicipal,$AC:$AC,Sheet1!S71_A5CapexCode,$AD:$AD)=0,P29/12,SUMIFS(Sheet1!S71_JulyActual,Sheet1!S71_MasterVoteMunicipal,$AC:$AC,Sheet1!S71_A5CapexCode,$AD:$AD))","v":71014.5},{"$f":"IF(SUMIFS(Sheet1!S71_AugustActual,Sheet1!S71_MasterVoteMunicipal,$AC:$AC,Sheet1!S71_A5CapexCode,$AD:$AD)=0,P29/12,SUMIFS(Sheet1!S71_AugustActual,Sheet1!S71_MasterVoteMunicipal,$AC:$AC,Sheet1!S71_A5CapexCode,$AD:$AD))","v":71014.5},{"$f":"IF(SUMIFS(Sheet1!S71_SeptemberActual,Sheet1!S71_MasterVoteMunicipal,$AC:$AC,Sheet1!S71_A5CapexCode,$AD:$AD)=0,P29/12,SUMIFS(Sheet1!S71_SeptemberActual,Sheet1!S71_MasterVoteMunicipal,$AC:$AC,Sheet1!S71_A5CapexCode,$AD:$AD))","v":71014.5},{"$f":"IF(SUMIFS(Sheet1!S71_OctoberActual,Sheet1!S71_MasterVoteMunicipal,$AC:$AC,Sheet1!S71_A5CapexCode,$AD:$AD)=0,P29/12,SUMIFS(Sheet1!S71_OctoberActual,Sheet1!S71_MasterVoteMunicipal,$AC:$AC,Sheet1!S71_A5CapexCode,$AD:$AD))","v":71014.5},{"$f":"IF(SUMIFS(Sheet1!S71_NovemberActual,Sheet1!S71_MasterVoteMunicipal,$AC:$AC,Sheet1!S71_A5CapexCode,$AD:$AD)=0,P29/12,SUMIFS(Sheet1!S71_NovemberActual,Sheet1!S71_MasterVoteMunicipal,$AC:$AC,Sheet1!S71_A5CapexCode,$AD:$AD))","v":71014.5},{"$f":"IF(SUMIFS(Sheet1!S71_DecemberActual,Sheet1!S71_MasterVoteMunicipal,$AC:$AC,Sheet1!S71_A5CapexCode,$AD:$AD)=0,P29/12,SUMIFS(Sheet1!S71_DecemberActual,Sheet1!S71_MasterVoteMunicipal,$AC:$AC,Sheet1!S71_A5CapexCode,$AD:$AD))","v":71014.5},{"$f":"$P$29/12","v":71014.5},71014.5,71014.5,71014.5,71014.5,71014.5,null,{"$f":"'B5-Capex'!K31+'B5-Capex'!K32","v":852174},{"$f":"'B5-Capex'!L31+'B5-Capex'!L32","v":0},{"$f":"'B5-Capex'!M31+'B5-Capex'!M32","v":0},null,null,null,null,null,null,null,null,null,null,6,"CE"]
["Vote 7 - Housing",null,{"$f":"IF(SUMIFS(Sheet1!S71_JulyActual,Sheet1!S71_MasterVoteMunicipal,$AC:$AC,Sheet1!S71_A5CapexCode,$AD:$AD)=0,P30/12,SUMIFS(Sheet1!S71_JulyActual,Sheet1!S71_MasterVoteMunicipal,$AC:$AC,Sheet1!S71_A5CapexCode,$AD:$AD))","v":0},{"$f":"IF(SUMIFS(Sheet1!S71_AugustActual,Sheet1!S71_MasterVoteMunicipal,$AC:$AC,Sheet1!S71_A5CapexCode,$AD:$AD)=0,P30/12,SUMIFS(Sheet1!S71_AugustActual,Sheet1!S71_MasterVoteMunicipal,$AC:$AC,Sheet1!S71_A5CapexCode,$AD:$AD))","v":0},{"$f":"IF(SUMIFS(Sheet1!S71_SeptemberActual,Sheet1!S71_MasterVoteMunicipal,$AC:$AC,Sheet1!S71_A5CapexCode,$AD:$AD)=0,P30/12,SUMIFS(Sheet1!S71_SeptemberActual,Sheet1!S71_MasterVoteMunicipal,$AC:$AC,Sheet1!S71_A5CapexCode,$AD:$AD))","v":0},{"$f":"IF(SUMIFS(Sheet1!S71_OctoberActual,Sheet1!S71_MasterVoteMunicipal,$AC:$AC,Sheet1!S71_A5CapexCode,$AD:$AD)=0,P30/12,SUMIFS(Sheet1!S71_OctoberActual,Sheet1!S71_MasterVoteMunicipal,$AC:$AC,Sheet1!S71_A5CapexCode,$AD:$AD))","v":0},{"$f":"IF(SUMIFS(Sheet1!S71_NovemberActual,Sheet1!S71_MasterVoteMunicipal,$AC:$AC,Sheet1!S71_A5CapexCode,$AD:$AD)=0,P30/12,SUMIFS(Sheet1!S71_NovemberActual,Sheet1!S71_MasterVoteMunicipal,$AC:$AC,Sheet1!S71_A5CapexCode,$AD:$AD))","v":0},{"$f":"IF(SUMIFS(Sheet1!S71_DecemberActual,Sheet1!S71_MasterVoteMunicipal,$AC:$AC,Sheet1!S71_A5CapexCode,$AD:$AD)=0,P30/12,SUMIFS(Sheet1!S71_DecemberActual,Sheet1!S71_MasterVoteMunicipal,$AC:$AC,Sheet1!S71_A5CapexCode,$AD:$AD))","v":0},71014.5,71014.5,71014.5,71014.5,71014.5,0,null,0,0,0,null,null,null,null,null,null,null,null,null,null,7,"CE"]
["Vote 8 - Planning and Development",null,{"$f":"IF(SUMIFS(Sheet1!S71_JulyActual,Sheet1!S71_MasterVoteMunicipal,$AC:$AC,Sheet1!S71_A5CapexCode,$AD:$AD)=0,P31/12,SUMIFS(Sheet1!S71_JulyActual,Sheet1!S71_MasterVoteMunicipal,$AC:$AC,Sheet1!S71_A5CapexCode,$AD:$AD))","v":934568.5},{"$f":"IF(SUMIFS(Sheet1!S71_AugustActual,Sheet1!S71_MasterVoteMunicipal,$AC:$AC,Sheet1!S71_A5CapexCode,$AD:$AD)=0,P31/12,SUMIFS(Sheet1!S71_AugustActual,Sheet1!S71_MasterVoteMunicipal,$AC:$AC,Sheet1!S71_A5CapexCode,$AD:$AD))","v":934568.5},{"$f":"IF(SUMIFS(Sheet1!S71_SeptemberActual,Sheet1!S71_MasterVoteMunicipal,$AC:$AC,Sheet1!S71_A5CapexCode,$AD:$AD)=0,P31/12,SUMIFS(Sheet1!S71_SeptemberActual,Sheet1!S71_MasterVoteMunicipal,$AC:$AC,Sheet1!S71_A5CapexCode,$AD:$AD))","v":333956.30999999994},{"$f":"IF(SUMIFS(Sheet1!S71_OctoberActual,Sheet1!S71_MasterVoteMunicipal,$AC:$AC,Sheet1!S71_A5CapexCode,$AD:$AD)=0,P31/12,SUMIFS(Sheet1!S71_OctoberActual,Sheet1!S71_MasterVoteMunicipal,$AC:$AC,Sheet1!S71_A5CapexCode,$AD:$AD))","v":-71000},{"$f":"IF(SUMIFS(Sheet1!S71_NovemberActual,Sheet1!S71_MasterVoteMunicipal,$AC:$AC,Sheet1!S71_A5CapexCode,$AD:$AD)=0,P31/12,SUMIFS(Sheet1!S71_NovemberActual,Sheet1!S71_MasterVoteMunicipal,$AC:$AC,Sheet1!S71_A5CapexCode,$AD:$AD))","v":1136133.21},{"$f":"IF(SUMIFS(Sheet1!S71_DecemberActual,Sheet1!S71_MasterVoteMunicipal,$AC:$AC,Sheet1!S71_A5CapexCode,$AD:$AD)=0,P31/12,SUMIFS(Sheet1!S71_DecemberActual,Sheet1!S71_MasterVoteMunicipal,$AC:$AC,Sheet1!S71_A5CapexCode,$AD:$AD))","v":812960.28},{"$f":"$P$31/12","v":934568.5},934568.5,934568.5,934568.5,934568.5,2460792.6999999993,null,{"$f":"'B5-Capex'!K33","v":11214822},{"$f":"'B5-Capex'!L33","v":10869566},{"$f":"'B5-Capex'!M33","v":0},null,null,null,null,null,null,null,null,null,null,8,"CE"]
["Vote 9 - Road transport",null,{"$f":"IF(SUMIFS(Sheet1!S71_JulyActual,Sheet1!S71_MasterVoteMunicipal,$AC:$AC,Sheet1!S71_A5CapexCode,$AD:$AD)=0,P32/12,SUMIFS(Sheet1!S71_JulyActual,Sheet1!S71_MasterVoteMunicipal,$AC:$AC,Sheet1!S71_A5CapexCode,$AD:$AD))","v":3517240.78},{"$f":"IF(SUMIFS(Sheet1!S71_AugustActual,Sheet1!S71_MasterVoteMunicipal,$AC:$AC,Sheet1!S71_A5CapexCode,$AD:$AD)=0,P32/12,SUMIFS(Sheet1!S71_AugustActual,Sheet1!S71_MasterVoteMunicipal,$AC:$AC,Sheet1!S71_A5CapexCode,$AD:$AD))","v":1063920.06},{"$f":"IF(SUMIFS(Sheet1!S71_SeptemberActual,Sheet1!S71_MasterVoteMunicipal,$AC:$AC,Sheet1!S71_A5CapexCode,$AD:$AD)=0,P32/12,SUMIFS(Sheet1!S71_SeptemberActual,Sheet1!S71_MasterVoteMunicipal,$AC:$AC,Sheet1!S71_A5CapexCode,$AD:$AD))","v":779542.17999999982},{"$f":"IF(SUMIFS(Sheet1!S71_OctoberActual,Sheet1!S71_MasterVoteMunicipal,$AC:$AC,Sheet1!S71_A5CapexCode,$AD:$AD)=0,P32/12,SUMIFS(Sheet1!S71_OctoberActual,Sheet1!S71_MasterVoteMunicipal,$AC:$AC,Sheet1!S71_A5CapexCode,$AD:$AD))","v":3412292.96},{"$f":"IF(SUMIFS(Sheet1!S71_NovemberActual,Sheet1!S71_MasterVoteMunicipal,$AC:$AC,Sheet1!S71_A5CapexCode,$AD:$AD)=0,P32/12,SUMIFS(Sheet1!S71_NovemberActual,Sheet1!S71_MasterVoteMunicipal,$AC:$AC,Sheet1!S71_A5CapexCode,$AD:$AD))","v":10467673.689999999},{"$f":"IF(SUMIFS(Sheet1!S71_DecemberActual,Sheet1!S71_MasterVoteMunicipal,$AC:$AC,Sheet1!S71_A5CapexCode,$AD:$AD)=0,P32/12,SUMIFS(Sheet1!S71_DecemberActual,Sheet1!S71_MasterVoteMunicipal,$AC:$AC,Sheet1!S71_A5CapexCode,$AD:$AD))","v":19537476.389999997},{"$f":"$P$32/12","v":6404657.7816666663},6404657.7816666663,6404657.7816666663,6404657.7816666663,6404657.7816666663,6054458.4116666615,null,{"$f":"'B5-Capex'!K34","v":76855893.379999995},{"$f":"'B5-Capex'!L34","v":39251782},{"$f":"'B5-Capex'!M34","v":38415522},null,null,null,null,null,null,null,null,null,null,9,"CE"]
["Vote 10 - Energy sources",null,{"$f":"IF(SUMIFS(Sheet1!S71_JulyActual,Sheet1!S71_MasterVoteMunicipal,$AC:$AC,Sheet1!S71_A5CapexCode,$AD:$AD)=0,P33/12,SUMIFS(Sheet1!S71_JulyActual,Sheet1!S71_MasterVoteMunicipal,$AC:$AC,Sheet1!S71_A5CapexCode,$AD:$AD))","v":181483.33333333334},{"$f":"IF(SUMIFS(Sheet1!S71_AugustActual,Sheet1!S71_MasterVoteMunicipal,$AC:$AC,Sheet1!S71_A5CapexCode,$AD:$AD)=0,P33/12,SUMIFS(Sheet1!S71_AugustActual,Sheet1!S71_MasterVoteMunicipal,$AC:$AC,Sheet1!S71_A5CapexCode,$AD:$AD))","v":181483.33333333334},{"$f":"IF(SUMIFS(Sheet1!S71_SeptemberActual,Sheet1!S71_MasterVoteMunicipal,$AC:$AC,Sheet1!S71_A5CapexCode,$AD:$AD)=0,P33/12,SUMIFS(Sheet1!S71_SeptemberActual,Sheet1!S71_MasterVoteMunicipal,$AC:$AC,Sheet1!S71_A5CapexCode,$AD:$AD))","v":469819.53},{"$f":"IF(SUMIFS(Sheet1!S71_OctoberActual,Sheet1!S71_MasterVoteMunicipal,$AC:$AC,Sheet1!S71_A5CapexCode,$AD:$AD)=0,P33/12,SUMIFS(Sheet1!S71_OctoberActual,Sheet1!S71_MasterVoteMunicipal,$AC:$AC,Sheet1!S71_A5CapexCode,$AD:$AD))","v":59497.4},{"$f":"IF(SUMIFS(Sheet1!S71_NovemberActual,Sheet1!S71_MasterVoteMunicipal,$AC:$AC,Sheet1!S71_A5CapexCode,$AD:$AD)=0,P33/12,SUMIFS(Sheet1!S71_NovemberActual,Sheet1!S71_MasterVoteMunicipal,$AC:$AC,Sheet1!S71_A5CapexCode,$AD:$AD))","v":181483.33333333334},{"$f":"IF(SUMIFS(Sheet1!S71_DecemberActual,Sheet1!S71_MasterVoteMunicipal,$AC:$AC,Sheet1!S71_A5CapexCode,$AD:$AD)=0,P33/12,SUMIFS(Sheet1!S71_DecemberActual,Sheet1!S71_MasterVoteMunicipal,$AC:$AC,Sheet1!S71_A5CapexCode,$AD:$AD))","v":198935.54},{"$f":"$P$33/12","v":181483.33333333334},181483.33333333334,181483.33333333334,181483.33333333334,181483.33333333334,-2319.1366666667163,null,{"$f":"'B5-Capex'!K35","v":2177800},{"$f":"'B5-Capex'!L35","v":0},{"$f":"'B5-Capex'!M35","v":0},null,null,null,null,null,null,null,null,null,null,10,"CE"]
["Vote 11 - Waste Management",null,{"$f":"IF(SUMIFS(Sheet1!S71_JulyActual,Sheet1!S71_MasterVoteMunicipal,$AC:$AC,Sheet1!S71_A5CapexCode,$AD:$AD)=0,P34/12,SUMIFS(Sheet1!S71_JulyActual,Sheet1!S71_MasterVoteMunicipal,$AC:$AC,Sheet1!S71_A5CapexCode,$AD:$AD))","v":177826.08333333334},{"$f":"IF(SUMIFS(Sheet1!S71_AugustActual,Sheet1!S71_MasterVoteMunicipal,$AC:$AC,Sheet1!S71_A5CapexCode,$AD:$AD)=0,P34/12,SUMIFS(Sheet1!S71_AugustActual,Sheet1!S71_MasterVoteMunicipal,$AC:$AC,Sheet1!S71_A5CapexCode,$AD:$AD))","v":177826.08333333334},{"$f":"IF(SUMIFS(Sheet1!S71_SeptemberActual,Sheet1!S71_MasterVoteMunicipal,$AC:$AC,Sheet1!S71_A5CapexCode,$AD:$AD)=0,P34/12,SUMIFS(Sheet1!S71_SeptemberActual,Sheet1!S71_MasterVoteMunicipal,$AC:$AC,Sheet1!S71_A5CapexCode,$AD:$AD))","v":546000},{"$f":"IF(SUMIFS(Sheet1!S71_OctoberActual,Sheet1!S71_MasterVoteMunicipal,$AC:$AC,Sheet1!S71_A5CapexCode,$AD:$AD)=0,P34/12,SUMIFS(Sheet1!S71_OctoberActual,Sheet1!S71_MasterVoteMunicipal,$AC:$AC,Sheet1!S71_A5CapexCode,$AD:$AD))","v":663000},{"$f":"IF(SUMIFS(Sheet1!S71_NovemberActual,Sheet1!S71_MasterVoteMunicipal,$AC:$AC,Sheet1!S71_A5CapexCode,$AD:$AD)=0,P34/12,SUMIFS(Sheet1!S71_NovemberActual,Sheet1!S71_MasterVoteMunicipal,$AC:$AC,Sheet1!S71_A5CapexCode,$AD:$AD))","v":351000},{"$f":"IF(SUMIFS(Sheet1!S71_DecemberActual,Sheet1!S71_MasterVoteMunicipal,$AC:$AC,Sheet1!S71_A5CapexCode,$AD:$AD)=0,P34/12,SUMIFS(Sheet1!S71_DecemberActual,Sheet1!S71_MasterVoteMunicipal,$AC:$AC,Sheet1!S71_A5CapexCode,$AD:$AD))","v":177826.08333333334},{"$f":"$P$34/12","v":177826.08333333334},177826.08333333334,177826.08333333334,177826.08333333334,177826.08333333334,-848695.66666666744,null,{"$f":"'B5-Capex'!K36","v":2133913},{"$f":"'B5-Capex'!L36","v":0},{"$f":"'B5-Capex'!M36","v":0},null,null,null,null,null,null,null,null,null,null,11,"CE"]
["Vote 12 - Environmental Protection",null,{"$f":"IF(SUMIFS(Sheet1!S71_JulyActual,Sheet1!S71_MasterVoteMunicipal,$AC:$AC,Sheet1!S71_A5CapexCode,$AD:$AD)=0,P35/12,SUMIFS(Sheet1!S71_JulyActual,Sheet1!S71_MasterVoteMunicipal,$AC:$AC,Sheet1!S71_A5CapexCode,$AD:$AD))","v":0},{"$f":"IF(SUMIFS(Sheet1!S71_AugustActual,Sheet1!S71_MasterVoteMunicipal,$AC:$AC,Sheet1!S71_A5CapexCode,$AD:$AD)=0,P35/12,SUMIFS(Sheet1!S71_AugustActual,Sheet1!S71_MasterVoteMunicipal,$AC:$AC,Sheet1!S71_A5CapexCode,$AD:$AD))","v":0},{"$f":"IF(SUMIFS(Sheet1!S71_SeptemberActual,Sheet1!S71_MasterVoteMunicipal,$AC:$AC,Sheet1!S71_A5CapexCode,$AD:$AD)=0,P35/12,SUMIFS(Sheet1!S71_SeptemberActual,Sheet1!S71_MasterVoteMunicipal,$AC:$AC,Sheet1!S71_A5CapexCode,$AD:$AD))","v":0},{"$f":"IF(SUMIFS(Sheet1!S71_OctoberActual,Sheet1!S71_MasterVoteMunicipal,$AC:$AC,Sheet1!S71_A5CapexCode,$AD:$AD)=0,P35/12,SUMIFS(Sheet1!S71_OctoberActual,Sheet1!S71_MasterVoteMunicipal,$AC:$AC,Sheet1!S71_A5CapexCode,$AD:$AD))","v":0},{"$f":"IF(SUMIFS(Sheet1!S71_NovemberActual,Sheet1!S71_MasterVoteMunicipal,$AC:$AC,Sheet1!S71_A5CapexCode,$AD:$AD)=0,P35/12,SUMIFS(Sheet1!S71_NovemberActual,Sheet1!S71_MasterVoteMunicipal,$AC:$AC,Sheet1!S71_A5CapexCode,$AD:$AD))","v":0},{"$f":"IF(SUMIFS(Sheet1!S71_DecemberActual,Sheet1!S71_MasterVoteMunicipal,$AC:$AC,Sheet1!S71_A5CapexCode,$AD:$AD)=0,P35/12,SUMIFS(Sheet1!S71_DecemberActual,Sheet1!S71_MasterVoteMunicipal,$AC:$AC,Sheet1!S71_A5CapexCode,$AD:$AD))","v":0},{"$f":"$P$35/12","v":0},0,0,0,0,0,null,{"$f":"'B5-Capex'!K37","v":0},{"$f":"'B5-Capex'!L37","v":0},{"$f":"'B5-Capex'!M37","v":0},null,null,null,null,null,null,null,null,null,null,12,"CE"]
["Vote 13 - [NAME OF VOTE 13]",null,{"$f":"IF(SUMIFS(Sheet1!S71_JulyActual,Sheet1!S71_MasterVoteMunicipal,$AC:$AC,Sheet1!S71_A5CapexCode,$AD:$AD)=0,P36/12,SUMIFS(Sheet1!S71_JulyActual,Sheet1!S71_MasterVoteMunicipal,$AC:$AC,Sheet1!S71_A5CapexCode,$AD:$AD))","v":0},{"$f":"IF(SUMIFS(Sheet1!S71_AugustActual,Sheet1!S71_MasterVoteMunicipal,$AC:$AC,Sheet1!S71_A5CapexCode,$AD:$AD)=0,P36/12,SUMIFS(Sheet1!S71_AugustActual,Sheet1!S71_MasterVoteMunicipal,$AC:$AC,Sheet1!S71_A5CapexCode,$AD:$AD))","v":0},{"$f":"IF(SUMIFS(Sheet1!S71_SeptemberActual,Sheet1!S71_MasterVoteMunicipal,$AC:$AC,Sheet1!S71_A5CapexCode,$AD:$AD)=0,P36/12,SUMIFS(Sheet1!S71_SeptemberActual,Sheet1!S71_MasterVoteMunicipal,$AC:$AC,Sheet1!S71_A5CapexCode,$AD:$AD))","v":0},{"$f":"IF(SUMIFS(Sheet1!S71_OctoberActual,Sheet1!S71_MasterVoteMunicipal,$AC:$AC,Sheet1!S71_A5CapexCode,$AD:$AD)=0,P36/12,SUMIFS(Sheet1!S71_OctoberActual,Sheet1!S71_MasterVoteMunicipal,$AC:$AC,Sheet1!S71_A5CapexCode,$AD:$AD))","v":0},{"$f":"IF(SUMIFS(Sheet1!S71_NovemberActual,Sheet1!S71_MasterVoteMunicipal,$AC:$AC,Sheet1!S71_A5CapexCode,$AD:$AD)=0,P36/12,SUMIFS(Sheet1!S71_NovemberActual,Sheet1!S71_MasterVoteMunicipal,$AC:$AC,Sheet1!S71_A5CapexCode,$AD:$AD))","v":0},{"$f":"IF(SUMIFS(Sheet1!S71_DecemberActual,Sheet1!S71_MasterVoteMunicipal,$AC:$AC,Sheet1!S71_A5CapexCode,$AD:$AD)=0,P36/12,SUMIFS(Sheet1!S71_DecemberActual,Sheet1!S71_MasterVoteMunicipal,$AC:$AC,Sheet1!S71_A5CapexCode,$AD:$AD))","v":0},{"$f":"$P$36/12","v":0},0,0,0,0,0,null,{"$f":"'B5-Capex'!K38","v":0},{"$f":"'B5-Capex'!L38","v":0},{"$f":"'B5-Capex'!M38","v":0},null,null,null,null,null,null,null,null,null,null,13,"CE"]
["Vote 14 - [NAME OF VOTE 14]",null,{"$f":"IF(SUMIFS(Sheet1!S71_JulyActual,Sheet1!S71_MasterVoteMunicipal,$AC:$AC,Sheet1!S71_A5CapexCode,$AD:$AD)=0,P37/12,SUMIFS(Sheet1!S71_JulyActual,Sheet1!S71_MasterVoteMunicipal,$AC:$AC,Sheet1!S71_A5CapexCode,$AD:$AD))","v":0},{"$f":"IF(SUMIFS(Sheet1!S71_AugustActual,Sheet1!S71_MasterVoteMunicipal,$AC:$AC,Sheet1!S71_A5CapexCode,$AD:$AD)=0,P37/12,SUMIFS(Sheet1!S71_AugustActual,Sheet1!S71_MasterVoteMunicipal,$AC:$AC,Sheet1!S71_A5CapexCode,$AD:$AD))","v":0},{"$f":"IF(SUMIFS(Sheet1!S71_SeptemberActual,Sheet1!S71_MasterVoteMunicipal,$AC:$AC,Sheet1!S71_A5CapexCode,$AD:$AD)=0,P37/12,SUMIFS(Sheet1!S71_SeptemberActual,Sheet1!S71_MasterVoteMunicipal,$AC:$AC,Sheet1!S71_A5CapexCode,$AD:$AD))","v":0},{"$f":"IF(SUMIFS(Sheet1!S71_OctoberActual,Sheet1!S71_MasterVoteMunicipal,$AC:$AC,Sheet1!S71_A5CapexCode,$AD:$AD)=0,P37/12,SUMIFS(Sheet1!S71_OctoberActual,Sheet1!S71_MasterVoteMunicipal,$AC:$AC,Sheet1!S71_A5CapexCode,$AD:$AD))","v":0},{"$f":"IF(SUMIFS(Sheet1!S71_NovemberActual,Sheet1!S71_MasterVoteMunicipal,$AC:$AC,Sheet1!S71_A5CapexCode,$AD:$AD)=0,P37/12,SUMIFS(Sheet1!S71_NovemberActual,Sheet1!S71_MasterVoteMunicipal,$AC:$AC,Sheet1!S71_A5CapexCode,$AD:$AD))","v":0},{"$f":"IF(SUMIFS(Sheet1!S71_DecemberActual,Sheet1!S71_MasterVoteMunicipal,$AC:$AC,Sheet1!S71_A5CapexCode,$AD:$AD)=0,P37/12,SUMIFS(Sheet1!S71_DecemberActual,Sheet1!S71_MasterVoteMunicipal,$AC:$AC,Sheet1!S71_A5CapexCode,$AD:$AD))","v":0},{"$f":"$P$37/12","v":0},0,0,0,0,0,null,{"$f":"'B5-Capex'!K39","v":0},{"$f":"'B5-Capex'!L39","v":0},{"$f":"'B5-Capex'!M39","v":0},null,null,null,null,null,null,null,null,null,null,14,"CE"]
["Vote 15 - [NAME OF VOTE 15]",null,{"$f":"IF(SUMIFS(Sheet1!S71_JulyActual,Sheet1!S71_MasterVoteMunicipal,$AC:$AC,Sheet1!S71_A5CapexCode,$AD:$AD)=0,P38/12,SUMIFS(Sheet1!S71_JulyActual,Sheet1!S71_MasterVoteMunicipal,$AC:$AC,Sheet1!S71_A5CapexCode,$AD:$AD))","v":0},{"$f":"IF(SUMIFS(Sheet1!S71_AugustActual,Sheet1!S71_MasterVoteMunicipal,$AC:$AC,Sheet1!S71_A5CapexCode,$AD:$AD)=0,P38/12,SUMIFS(Sheet1!S71_AugustActual,Sheet1!S71_MasterVoteMunicipal,$AC:$AC,Sheet1!S71_A5CapexCode,$AD:$AD))","v":0},{"$f":"IF(SUMIFS(Sheet1!S71_SeptemberActual,Sheet1!S71_MasterVoteMunicipal,$AC:$AC,Sheet1!S71_A5CapexCode,$AD:$AD)=0,P38/12,SUMIFS(Sheet1!S71_SeptemberActual,Sheet1!S71_MasterVoteMunicipal,$AC:$AC,Sheet1!S71_A5CapexCode,$AD:$AD))","v":0},{"$f":"IF(SUMIFS(Sheet1!S71_OctoberActual,Sheet1!S71_MasterVoteMunicipal,$AC:$AC,Sheet1!S71_A5CapexCode,$AD:$AD)=0,P38/12,SUMIFS(Sheet1!S71_OctoberActual,Sheet1!S71_MasterVoteMunicipal,$AC:$AC,Sheet1!S71_A5CapexCode,$AD:$AD))","v":0},{"$f":"IF(SUMIFS(Sheet1!S71_NovemberActual,Sheet1!S71_MasterVoteMunicipal,$AC:$AC,Sheet1!S71_A5CapexCode,$AD:$AD)=0,P38/12,SUMIFS(Sheet1!S71_NovemberActual,Sheet1!S71_MasterVoteMunicipal,$AC:$AC,Sheet1!S71_A5CapexCode,$AD:$AD))","v":0},{"$f":"IF(SUMIFS(Sheet1!S71_DecemberActual,Sheet1!S71_MasterVoteMunicipal,$AC:$AC,Sheet1!S71_A5CapexCode,$AD:$AD)=0,P38/12,SUMIFS(Sheet1!S71_DecemberActual,Sheet1!S71_MasterVoteMunicipal,$AC:$AC,Sheet1!S71_A5CapexCode,$AD:$AD))","v":0},{"$f":"$P$38/12","v":0},0,0,0,0,0,null,{"$f":"'B5-Capex'!K40","v":0},{"$f":"'B5-Capex'!L40","v":0},{"$f":"'B5-Capex'!M40","v":0},null,null,null,null,null,null,null,null,null,null,15,"CE"]
["Capital single-year expenditure sub-total",3,{"$f":"SUM(C24:C38)","v":6462460.8633333333},{"$f":"SUM(D24:D38)","v":4168880.0433333335},983607.77000000025,7233343.6900000004,16940827.84,27701079.823333327,10612321.698333334,10612321.698333334,10612321.698333334,10612321.698333334,10612321.698333334,10279465.031666659,0,122388666.38,70121348,53415522]
["Total Capital Expenditure",2,{"$f":"C21+C39","v":6462460.8633333333},{"$f":"D21+D39","v":4168880.0433333335},983607.77000000025,7233343.6900000004,16940827.84,27701079.823333327,10612321.698333334,10612321.698333334,10612321.698333334,10612321.698333334,10612321.698333334,10279465.031666659,0,122388666.38,70121348,53415522]
[{"$f":"head27a","v":"References"}]
["1. Table should be completed as either Multi-Year expenditure appropriation or Budget Year and Forward Year estimates"]
["2. Total Capital Expenditure must reconcile to budget table A5 and monthly budget statement table C5"]
[]
["check",null,null,null,null,null,null,null,null,null,null,null,null,null,{"$f":"O40-'B5-Capex'!J42","v":-1985217.38},{"$f":"P40-'B5-Capex'!K42","v":-13425726},{"$f":"Q40-'B5-Capex'!L42","v":0},{"$f":"R40-'B5-Capex'!M42","v":0}]

{"sheet":"SB17","index":53,"n_rows":31,"n_cols":30,"rows_kept":31,"cut":false,"hidden":false,"merged":[[1,0,2,0],[1,1,2,1],[1,2,1,13]]}
[{"$f":"muni&\" - \"&ADJB17&\" - \"&Date","v":"KZN291 Mandeni - Supporting Table SB17 Adjustments Budget - monthly capital expenditure (functional classification) - 08-04-2025"}]
[{"$f":"desc","v":"Description"},{"$f":"head27","v":"Ref"},{"$f":"Head2","v":"Budget Year 2024/25"},null,null,null,null,null,null,null,null,null,null,null,{"$f":"Head3a","v":"Medium Term Revenue and Expenditure Framework"}]
[null,null,"July","August","Sept.","October","November","December","January","February","March","April","May","June",{"$f":"Head9","v":"Budget Year 2024/25"},{"$f":"Head10","v":"Budget Year +1 2025/26"},{"$f":"Head11","v":"Budget Year +2 2026/27"}]
["R thousands",null,{"$f":"Head5A","v":"Outcome"},"Outcome","Outcome","Outcome","Outcome","Outcome",{"$f":"Head7","v":"Adjusted Budget"},"Adjusted Budget","Adjusted Budget","Adjusted Budget","Adjusted Budget","Adjusted Budget","Adjusted Budget","Adjusted Budget","Adjusted Budget"]
["Capital Expenditure - Functional"]
[{"$f":"'B2-FinPerf SC'!A7","v":"Governance and administration"},null,{"$f":"SUM(C7:C9)","v":1238076},1397815.9,-1457724.7499999995,2427313.35,3160340.38,6153947.2300000004,2087253.6666666667,2087253.6666666667,2087253.6666666667,2087253.6666666667,2087253.6666666667,{"$f":"O6-SUM(C6:M6)","v":1691007.5566666611},{"$f":"'B5-Capex'!K45","v":25047044},{"$f":"'B5-Capex'!L45","v":20000000},{"$f":"'B5-Capex'!M45","v":15000000}]
[{"$f":"'B2-FinPerf SC'!A8","v":"Executive and council"},null,{"$f":"IF(SUMIFS(Sheet1!S71_JulyActual,Sheet1!S71_A2Code,$AC:$AC,Sheet1!S71_A5CapexCode,$AD:$AD)=0,O7/12,SUMIFS(Sheet1!S71_JulyActual,Sheet1!S71_A2Code,$AC:$AC,Sheet1!S71_A5CapexCode,$AD:$AD))","v":952609},{"$f":"IF(SUMIFS(Sheet1!S71_AugustActual,Sheet1!S71_A2Code,$AC:$AC,Sheet1!S71_A5CapexCode,$AD:$AD)=0,O7/12,SUMIFS(Sheet1!S71_AugustActual,Sheet1!S71_A2Code,$AC:$AC,Sheet1!S71_A5CapexCode,$AD:$AD))","v":868131.9},{"$f":"IF(SUMIFS(Sheet1!S71_SeptemberActual,Sheet1!S71_A2Code,$AC:$AC,Sheet1!S71_A5CapexCode,$AD:$AD)=0,O7/12,SUMIFS(Sheet1!S71_SeptemberActual,Sheet1!S71_A2Code,$AC:$AC,Sheet1!S71_A5CapexCode,$AD:$AD))","v":2146467.64},{"$f":"IF(SUMIFS(Sheet1!S71_OctoberActual,Sheet1!S71_A2Code,$AC:$AC,Sheet1!S71_A5CapexCode,$AD:$AD)=0,O7/12,SUMIFS(Sheet1!S71_OctoberActual,Sheet1!S71_A2Code,$AC:$AC,Sheet1!S71_A5CapexCode,$AD:$AD))","v":952609},{"$f":"IF(SUMIFS(Sheet1!S71_NovemberActual,Sheet1!S71_A2Code,$AC:$AC,Sheet1!S71_A5CapexCode,$AD:$AD)=0,O7/12,SUMIFS(Sheet1!S71_NovemberActual,Sheet1!S71_A2Code,$AC:$AC,Sheet1!S71_A5CapexCode,$AD:$AD))","v":1953545.79},{"$f":"IF(SUMIFS(Sheet1!S71_DecemberActual,Sheet1!S71_A2Code,$AC:$AC,Sheet1!S71_A5CapexCode,$AD:$AD)=0,O7/12,SUMIFS(Sheet1!S71_DecemberActual,Sheet1!S71_A2Code,$AC:$AC,Sheet1!S71_A5CapexCode,$AD:$AD))","v":952609},{"$f":"$O$7/12","v":952609},952609,952609,952609,952609,-1157709.33,{"$f":"'B5-Capex'!K46","v":11431308},{"$f":"'B5-Capex'!L46","v":20000000},{"$f":"'B5-Capex'!M46","v":15000000},null,null,null,null,null,null,null,null,null,null,null,"1100","CE"]
[{"$f":"'B2-FinPerf SC'!A9","v":"Finance and administration"},null,{"$f":"IF(SUMIFS(Sheet1!S71_JulyActual,Sheet1!S71_A2Code,$AC:$AC,Sheet1!S71_A5CapexCode,$AD:$AD)=0,O8/12,SUMIFS(Sheet1!S71_JulyActual,Sheet1!S71_A2Code,$AC:$AC,Sheet1!S71_A5CapexCode,$AD:$AD))","v":285467},{"$f":"IF(SUMIFS(Sheet1!S71_AugustActual,Sheet1!S71_A2Code,$AC:$AC,Sheet1!S71_A5CapexCode,$AD:$AD)=0,O8/12,SUMIFS(Sheet1!S71_AugustActual,Sheet1!S71_A2Code,$AC:$AC,Sheet1!S71_A5CapexCode,$AD:$AD))","v":529684},{"$f":"IF(SUMIFS(Sheet1!S71_SeptemberActual,Sheet1!S71_A2Code,$AC:$AC,Sheet1!S71_A5CapexCode,$AD:$AD)=0,O8/12,SUMIFS(Sheet1!S71_SeptemberActual,Sheet1!S71_A2Code,$AC:$AC,Sheet1!S71_A5CapexCode,$AD:$AD))","v":-3604192.3899999997},{"$f":"IF(SUMIFS(Sheet1!S71_OctoberActual,Sheet1!S71_A2Code,$AC:$AC,Sheet1!S71_A5CapexCode,$AD:$AD)=0,O8/12,SUMIFS(Sheet1!S71_OctoberActual,Sheet1!S71_A2Code,$AC:$AC,Sheet1!S71_A5CapexCode,$AD:$AD))","v":1474704.35},{"$f":"IF(SUMIFS(Sheet1!S71_NovemberActual,Sheet1!S71_A2Code,$AC:$AC,Sheet1!S71_A5CapexCode,$AD:$AD)=0,O8/12,SUMIFS(Sheet1!S71_NovemberActual,Sheet1!S71_A2Code,$AC:$AC,Sheet1!S71_A5CapexCode,$AD:$AD))","v":1206794.5899999999},{"$f":"IF(SUMIFS(Sheet1!S71_DecemberActual,Sheet1!S71_A2Code,$AC:$AC,Sheet1!S71_A5CapexCode,$AD:$AD)=0,O8/12,SUMIFS(Sheet1!S71_DecemberActual,Sheet1!S71_A2Code,$AC:$AC,Sheet1!S71_A5CapexCode,$AD:$AD))","v":5201338.2300000004},{"$f":"$O$8/12","v":1134644.6666666667},1134644.6666666667,1134644.6666666667,1134644.6666666667,1134644.6666666667,2848716.8866666667,{"$f":"'B5-Capex'!K47","v":13615736},{"$f":"'B5-Capex'!L47","v":0},{"$f":"'B5-Capex'!M47","v":0},null,null,null,null,null,null,null,null,null,null,null,"1200","CE"]
[{"$f":"'B2-FinPerf SC'!A10","v":"Internal audit"},null,{"$f":"IF(SUMIFS(Sheet1!S71_JulyActual,Sheet1!S71_A2Code,$AC:$AC,Sheet1!S71_A5CapexCode,$AD:$AD)=0,O9/12,SUMIFS(Sheet1!S71_JulyActual,Sheet1!S71_A2Code,$AC:$AC,Sheet1!S71_A5CapexCode,$AD:$AD))","v":0},{"$f":"IF(SUMIFS(Sheet1!S71_AugustActual,Sheet1!S71_A2Code,$AC:$AC,Sheet1!S71_A5CapexCode,$AD:$AD)=0,O9/12,SUMIFS(Sheet1!S71_AugustActual,Sheet1!S71_A2Code,$AC:$AC,Sheet1!S71_A5CapexCode,$AD:$AD))","v":0},{"$f":"IF(SUMIFS(Sheet1!S71_SeptemberActual,Sheet1!S71_A2Code,$AC:$AC,Sheet1!S71_A5CapexCode,$AD:$AD)=0,O9/12,SUMIFS(Sheet1!S71_SeptemberActual,Sheet1!S71_A2Code,$AC:$AC,Sheet1!S71_A5CapexCode,$AD:$AD))","v":0},{"$f":"IF(SUMIFS(Sheet1!S71_OctoberActual,Sheet1!S71_A2Code,$AC:$AC,Sheet1!S71_A5CapexCode,$AD:$AD)=0,O9/12,SUMIFS(Sheet1!S71_OctoberActual,Sheet1!S71_A2Code,$AC:$AC,Sheet1!S71_A5CapexCode,$AD:$AD))","v":0},{"$f":"IF(SUMIFS(Sheet1!S71_NovemberActual,Sheet1!S71_A2Code,$AC:$AC,Sheet1!S71_A5CapexCode,$AD:$AD)=0,O9/12,SUMIFS(Sheet1!S71_NovemberActual,Sheet1!S71_A2Code,$AC:$AC,Sheet1!S71_A5CapexCode,$AD:$AD))","v":0},{"$f":"IF(SUMIFS(Sheet1!S71_DecemberActual,Sheet1!S71_A2Code,$AC:$AC,Sheet1!S71_A5CapexCode,$AD:$AD)=0,O9/12,SUMIFS(Sheet1!S71_DecemberActual,Sheet1!S71_A2Code,$AC:$AC,Sheet1!S71_A5CapexCode,$AD:$AD))","v":0},{"$f":"$O$9/12","v":0},0,0,0,0,0,{"$f":"'B5-Capex'!K48","v":0},{"$f":"'B5-Capex'!L48","v":0},{"$f":"'B5-Capex'!M48","v":0},null,null,null,null,null,null,null,null,null,null,null,"1300","CE"]
[{"$f":"'B2-FinPerf SC'!A11","v":"Community and public safety"},null,{"$f":"SUM(C11:C15)","v":1532076.6666666667},1532076.6666666667,1430825,742239.98,1644197.2266666668,819934.3,1532076.6666666667,1532076.6666666667,1532076.6666666667,1532076.6666666667,1532076.6666666667,3023186.8266666681,{"$f":"'B5-Capex'!K49","v":18384920},{"$f":"'B5-Capex'!L49","v":0},{"$f":"'B5-Capex'!M49","v":0}]
[{"$f":"'B2-FinPerf SC'!A12","v":"Community and social services"},null,{"$f":"IF(SUMIFS(Sheet1!S71_JulyActual,Sheet1!S71_A2Code,$AC:$AC,Sheet1!S71_A5CapexCode,$AD:$AD)=0,O11/12,SUMIFS(Sheet1!S71_JulyActual,Sheet1!S71_A2Code,$AC:$AC,Sheet1!S71_A5CapexCode,$AD:$AD))","v":342251.66666666669},{"$f":"IF(SUMIFS(Sheet1!S71_AugustActual,Sheet1!S71_A2Code,$AC:$AC,Sheet1!S71_A5CapexCode,$AD:$AD)=0,O11/12,SUMIFS(Sheet1!S71_AugustActual,Sheet1!S71_A2Code,$AC:$AC,Sheet1!S71_A5CapexCode,$AD:$AD))","v":342251.66666666669},{"$f":"IF(SUMIFS(Sheet1!S71_SeptemberActual,Sheet1!S71_A2Code,$AC:$AC,Sheet1!S71_A5CapexCode,$AD:$AD)=0,O11/12,SUMIFS(Sheet1!S71_SeptemberActual,Sheet1!S71_A2Code,$AC:$AC,Sheet1!S71_A5CapexCode,$AD:$AD))","v":241000},{"$f":"IF(SUMIFS(Sheet1!S71_OctoberActual,Sheet1!S71_A2Code,$AC:$AC,Sheet1!S71_A5CapexCode,$AD:$AD)=0,O11/12,SUMIFS(Sheet1!S71_OctoberActual,Sheet1!S71_A2Code,$AC:$AC,Sheet1!S71_A5CapexCode,$AD:$AD))","v":99950},{"$f":"IF(SUMIFS(Sheet1!S71_NovemberActual,Sheet1!S71_A2Code,$AC:$AC,Sheet1!S71_A5CapexCode,$AD:$AD)=0,O11/12,SUMIFS(Sheet1!S71_NovemberActual,Sheet1!S71_A2Code,$AC:$AC,Sheet1!S71_A5CapexCode,$AD:$AD))","v":342251.66666666669},{"$f":"IF(SUMIFS(Sheet1!S71_DecemberActual,Sheet1!S71_A2Code,$AC:$AC,Sheet1!S71_A5CapexCode,$AD:$AD)=0,O11/12,SUMIFS(Sheet1!S71_DecemberActual,Sheet1!S71_A2Code,$AC:$AC,Sheet1!S71_A5CapexCode,$AD:$AD))","v":174850},{"$f":"$O$11/12","v":342251.66666666669},342251.66666666669,342251.66666666669,342251.66666666669,342251.66666666669,853206.66666666698,{"$f":"'B5-Capex'!K50","v":4107020},{"$f":"'B5-Capex'!L50","v":0},{"$f":"'B5-Capex'!M50","v":0},null,null,null,null,null,null,null,null,null,null,null,"2100","CE"]
[{"$f":"'B2-FinPerf SC'!A13","v":"Sport and recreation"},null,{"$f":"IF(SUMIFS(Sheet1!S71_JulyActual,Sheet1!S71_A2Code,$AC:$AC,Sheet1!S71_A5CapexCode,$AD:$AD)=0,O12/12,SUMIFS(Sheet1!S71_JulyActual,Sheet1!S71_A2Code,$AC:$AC,Sheet1!S71_A5CapexCode,$AD:$AD))","v":1118810.5},{"$f":"IF(SUMIFS(Sheet1!S71_AugustActual,Sheet1!S71_A2Code,$AC:$AC,Sheet1!S71_A5CapexCode,$AD:$AD)=0,O12/12,SUMIFS(Sheet1!S71_AugustActual,Sheet1!S71_A2Code,$AC:$AC,Sheet1!S71_A5CapexCode,$AD:$AD))","v":1118810.5},{"$f":"IF(SUMIFS(Sheet1!S71_SeptemberActual,Sheet1!S71_A2Code,$AC:$AC,Sheet1!S71_A5CapexCode,$AD:$AD)=0,O12/12,SUMIFS(Sheet1!S71_SeptemberActual,Sheet1!S71_A2Code,$AC:$AC,Sheet1!S71_A5CapexCode,$AD:$AD))","v":1118810.5},{"$f":"IF(SUMIFS(Sheet1!S71_OctoberActual,Sheet1!S71_A2Code,$AC:$AC,Sheet1!S71_A5CapexCode,$AD:$AD)=0,O12/12,SUMIFS(Sheet1!S71_OctoberActual,Sheet1!S71_A2Code,$AC:$AC,Sheet1!S71_A5CapexCode,$AD:$AD))","v":571275.48},{"$f":"IF(SUMIFS(Sheet1!S71_NovemberActual,Sheet1!S71_A2Code,$AC:$AC,Sheet1!S71_A5CapexCode,$AD:$AD)=0,O12/12,SUMIFS(Sheet1!S71_NovemberActual,Sheet1!S71_A2Code,$AC:$AC,Sheet1!S71_A5CapexCode,$AD:$AD))","v":1230931.06},{"$f":"IF(SUMIFS(Sheet1!S71_DecemberActual,Sheet1!S71_A2Code,$AC:$AC,Sheet1!S71_A5CapexCode,$AD:$AD)=0,O12/12,SUMIFS(Sheet1!S71_DecemberActual,Sheet1!S71_A2Code,$AC:$AC,Sheet1!S71_A5CapexCode,$AD:$AD))","v":574069.80000000005},{"$f":"$O$12/12","v":1118810.5},1118810.5,1118810.5,1118810.5,1118810.5,2098965.66,{"$f":"'B5-Capex'!K51","v":13425726},{"$f":"'B5-Capex'!L51","v":0},{"$f":"'B5-Capex'!M51","v":0},null,null,null,null,null,null,null,null,null,null,null,"2200","CE"]
[{"$f":"'B2-FinPerf SC'!A14","v":"Public safety"},null,{"$f":"IF(SUMIFS(Sheet1!S71_JulyActual,Sheet1!S71_A2Code,$AC:$AC,Sheet1!S71_A5CapexCode,$AD:$AD)=0,O13/12,SUMIFS(Sheet1!S71_JulyActual,Sheet1!S71_A2Code,$AC:$AC,Sheet1!S71_A5CapexCode,$AD:$AD))","v":71014.5},{"$f":"IF(SUMIFS(Sheet1!S71_AugustActual,Sheet1!S71_A2Code,$AC:$AC,Sheet1!S71_A5CapexCode,$AD:$AD)=0,O13/12,SUMIFS(Sheet1!S71_AugustActual,Sheet1!S71_A2Code,$AC:$AC,Sheet1!S71_A5CapexCode,$AD:$AD))","v":71014.5},{"$f":"IF(SUMIFS(Sheet1!S71_SeptemberActual,Sheet1!S71_A2Code,$AC:$AC,Sheet1!S71_A5CapexCode,$AD:$AD)=0,O13/12,SUMIFS(Sheet1!S71_SeptemberActual,Sheet1!S71_A2Code,$AC:$AC,Sheet1!S71_A5CapexCode,$AD:$AD))","v":71014.5},{"$f":"IF(SUMIFS(Sheet1!S71_OctoberActual,Sheet1!S71_A2Code,$AC:$AC,Sheet1!S71_A5CapexCode,$AD:$AD)=0,O13/12,SUMIFS(Sheet1!S71_OctoberActual,Sheet1!S71_A2Code,$AC:$AC,Sheet1!S71_A5CapexCode,$AD:$AD))","v":71014.5},{"$f":"IF(SUMIFS(Sheet1!S71_NovemberActual,Sheet1!S71_A2Code,$AC:$AC,Sheet1!S71_A5CapexCode,$AD:$AD)=0,O13/12,SUMIFS(Sheet1!S71_NovemberActual,Sheet1!S71_A2Code,$AC:$AC,Sheet1!S71_A5CapexCode,$AD:$AD))","v":71014.5},{"$f":"IF(SUMIFS(Sheet1!S71_DecemberActual,Sheet1!S71_A2Code,$AC:$AC,Sheet1!S71_A5CapexCode,$AD:$AD)=0,O13/12,SUMIFS(Sheet1!S71_DecemberActual,Sheet1!S71_A2Code,$AC:$AC,Sheet1!S71_A5CapexCode,$AD:$AD))","v":71014.5},{"$f":"$O$13/12","v":71014.5},71014.5,71014.5,71014.5,71014.5,71014.5,{"$f":"'B5-Capex'!K52","v":852174},{"$f":"'B5-Capex'!L52","v":0},{"$f":"'B5-Capex'!M52","v":0},null,null,null,null,null,null,null,null,null,null,null,"2300","CE"]
[{"$f":"'B2-FinPerf SC'!A15","v":"Housing"},null,{"$f":"IF(SUMIFS(Sheet1!S71_JulyActual,Sheet1!S71_A2Code,$AC:$AC,Sheet1!S71_A5CapexCode,$AD:$AD)=0,O14/12,SUMIFS(Sheet1!S71_JulyActual,Sheet1!S71_A2Code,$AC:$AC,Sheet1!S71_A5CapexCode,$AD:$AD))","v":0},{"$f":"IF(SUMIFS(Sheet1!S71_AugustActual,Sheet1!S71_A2Code,$AC:$AC,Sheet1!S71_A5CapexCode,$AD:$AD)=0,O14/12,SUMIFS(Sheet1!S71_AugustActual,Sheet1!S71_A2Code,$AC:$AC,Sheet1!S71_A5CapexCode,$AD:$AD))","v":0},{"$f":"IF(SUMIFS(Sheet1!S71_SeptemberActual,Sheet1!S71_A2Code,$AC:$AC,Sheet1!S71_A5CapexCode,$AD:$AD)=0,O14/12,SUMIFS(Sheet1!S71_SeptemberActual,Sheet1!S71_A2Code,$AC:$AC,Sheet1!S71_A5CapexCode,$AD:$AD))","v":0},{"$f":"IF(SUMIFS(Sheet1!S71_OctoberActual,Sheet1!S71_A2Code,$AC:$AC,Sheet1!S71_A5CapexCode,$AD:$AD)=0,O14/12,SUMIFS(Sheet1!S71_OctoberActual,Sheet1!S71_A2Code,$AC:$AC,Sheet1!S71_A5CapexCode,$AD:$AD))","v":0},{"$f":"IF(SUMIFS(Sheet1!S71_NovemberActual,Sheet1!S71_A2Code,$AC:$AC,Sheet1!S71_A5CapexCode,$AD:$AD)=0,O14/12,SUMIFS(Sheet1!S71_NovemberActual,Sheet1!S71_A2Code,$AC:$AC,Sheet1!S71_A5CapexCode,$AD:$AD))","v":0},{"$f":"IF(SUMIFS(Sheet1!S71_DecemberActual,Sheet1!S71_A2Code,$AC:$AC,Sheet1!S71_A5CapexCode,$AD:$AD)=0,O14/12,SUMIFS(Sheet1!S71_DecemberActual,Sheet1!S71_A2Code,$AC:$AC,Sheet1!S71_A5CapexCode,$AD:$AD))","v":0},{"$f":"$O$14/12","v":0},0,0,0,0,0,{"$f":"'B5-Capex'!K53","v":0},{"$f":"'B5-Capex'!L53","v":0},{"$f":"'B5-Capex'!M53","v":0},null,null,null,null,null,null,null,null,null,null,null,"2400","CE"]
[{"$f":"'B2-FinPerf SC'!A16","v":"Health"},null,{"$f":"IF(SUMIFS(Sheet1!S71_JulyActual,Sheet1!S71_A2Code,$AC:$AC,Sheet1!S71_A5CapexCode,$AD:$AD)=0,O15/12,SUMIFS(Sheet1!S71_JulyActual,Sheet1!S71_A2Code,$AC:$AC,Sheet1!S71_A5CapexCode,$AD:$AD))","v":0},{"$f":"IF(SUMIFS(Sheet1!S71_AugustActual,Sheet1!S71_A2Code,$AC:$AC,Sheet1!S71_A5CapexCode,$AD:$AD)=0,O15/12,SUMIFS(Sheet1!S71_AugustActual,Sheet1!S71_A2Code,$AC:$AC,Sheet1!S71_A5CapexCode,$AD:$AD))","v":0},{"$f":"IF(SUMIFS(Sheet1!S71_SeptemberActual,Sheet1!S71_A2Code,$AC:$AC,Sheet1!S71_A5CapexCode,$AD:$AD)=0,O15/12,SUMIFS(Sheet1!S71_SeptemberActual,Sheet1!S71_A2Code,$AC:$AC,Sheet1!S71_A5CapexCode,$AD:$AD))","v":0},{"$f":"IF(SUMIFS(Sheet1!S71_OctoberActual,Sheet1!S71_A2Code,$AC:$AC,Sheet1!S71_A5CapexCode,$AD:$AD)=0,O15/12,SUMIFS(Sheet1!S71_OctoberActual,Sheet1!S71_A2Code,$AC:$AC,Sheet1!S71_A5CapexCode,$AD:$AD))","v":0},{"$f":"IF(SUMIFS(Sheet1!S71_NovemberActual,Sheet1!S71_A2Code,$AC:$AC,Sheet1!S71_A5CapexCode,$AD:$AD)=0,O15/12,SUMIFS(Sheet1!S71_NovemberActual,Sheet1!S71_A2Code,$AC:$AC,Sheet1!S71_A5CapexCode,$AD:$AD))","v":0},{"$f":"IF(SUMIFS(Sheet1!S71_DecemberActual,Sheet1!S71_A2Code,$AC:$AC,Sheet1!S71_A5CapexCode,$AD:$AD)=0,O15/12,SUMIFS(Sheet1!S71_DecemberActual,Sheet1!S71_A2Code,$AC:$AC,Sheet1!S71_A5CapexCode,$AD:$AD))","v":0},{"$f":"$O$15/12","v":0},0,0,0,0,0,{"$f":"'B5-Capex'!K54","v":0},{"$f":"'B5-Capex'!L54","v":0},{"$f":"'B5-Capex'!M54","v":0},null,null,null,null,null,null,null,null,null,null,null,"2500","CE"]
[{"$f":"'B2-FinPerf SC'!A17","v":"Economic and environmental services"},null,{"$f":"SUM(C17:C19)","v":4451809.2799999993},1998488.56,1113498.4899999998,3341292.96,11603806.899999999,20350436.669999998,7339226.2816666663,7339226.2816666663,7339226.2816666663,7339226.2816666663,7339226.2816666663,8515251.1116666645,{"$f":"'B5-Capex'!K55","v":88070715.379999995},{"$f":"'B5-Capex'!L55","v":50121348},{"$f":"'B5-Capex'!M55","v":38415522}]
[{"$f":"'B2-FinPerf SC'!A18","v":"Planning and development"},null,{"$f":"IF(SUMIFS(Sheet1!S71_JulyActual,Sheet1!S71_A2Code,$AC:$AC,Sheet1!S71_A5CapexCode,$AD:$AD)=0,O17/12,SUMIFS(Sheet1!S71_JulyActual,Sheet1!S71_A2Code,$AC:$AC,Sheet1!S71_A5CapexCode,$AD:$AD))","v":934568.5},{"$f":"IF(SUMIFS(Sheet1!S71_AugustActual,Sheet1!S71_A2Code,$AC:$AC,Sheet1!S71_A5CapexCode,$AD:$AD)=0,O17/12,SUMIFS(Sheet1!S71_AugustActual,Sheet1!S71_A2Code,$AC:$AC,Sheet1!S71_A5CapexCode,$AD:$AD))","v":934568.5},{"$f":"IF(SUMIFS(Sheet1!S71_SeptemberActual,Sheet1!S71_A2Code,$AC:$AC,Sheet1!S71_A5CapexCode,$AD:$AD)=0,O17/12,SUMIFS(Sheet1!S71_SeptemberActual,Sheet1!S71_A2Code,$AC:$AC,Sheet1!S71_A5CapexCode,$AD:$AD))","v":333956.30999999994},{"$f":"IF(SUMIFS(Sheet1!S71_OctoberActual,Sheet1!S71_A2Code,$AC:$AC,Sheet1!S71_A5CapexCode,$AD:$AD)=0,O17/12,SUMIFS(Sheet1!S71_OctoberActual,Sheet1!S71_A2Code,$AC:$AC,Sheet1!S71_A5CapexCode,$AD:$AD))","v":-71000},{"$f":"IF(SUMIFS(Sheet1!S71_NovemberActual,Sheet1!S71_A2Code,$AC:$AC,Sheet1!S71_A5CapexCode,$AD:$AD)=0,O17/12,SUMIFS(Sheet1!S71_NovemberActual,Sheet1!S71_A2Code,$AC:$AC,Sheet1!S71_A5CapexCode,$AD:$AD))","v":1136133.21},{"$f":"IF(SUMIFS(Sheet1!S71_DecemberActual,Sheet1!S71_A2Code,$AC:$AC,Sheet1!S71_A5CapexCode,$AD:$AD)=0,O17/12,SUMIFS(Sheet1!S71_DecemberActual,Sheet1!S71_A2Code,$AC:$AC,Sheet1!S71_A5CapexCode,$AD:$AD))","v":812960.28},{"$f":"$O$17/12","v":934568.5},934568.5,934568.5,934568.5,934568.5,2460792.6999999993,{"$f":"'B5-Capex'!K56","v":11214822},{"$f":"'B5-Capex'!L56","v":10869566},{"$f":"'B5-Capex'!M56","v":0},null,null,null,null,null,null,null,null,null,null,null,"3100","CE"]
[{"$f":"'B2-FinPerf SC'!A19","v":"Road transport"},null,{"$f":"IF(SUMIFS(Sheet1!S71_JulyActual,Sheet1!S71_A2Code,$AC:$AC,Sheet1!S71_A5CapexCode,$AD:$AD)=0,O18/12,SUMIFS(Sheet1!S71_JulyActual,Sheet1!S71_A2Code,$AC:$AC,Sheet1!S71_A5CapexCode,$AD:$AD))","v":3517240.78},{"$f":"IF(SUMIFS(Sheet1!S71_AugustActual,Sheet1!S71_A2Code,$AC:$AC,Sheet1!S71_A5CapexCode,$AD:$AD)=0,O18/12,SUMIFS(Sheet1!S71_AugustActual,Sheet1!S71_A2Code,$AC:$AC,Sheet1!S71_A5CapexCode,$AD:$AD))","v":1063920.06},{"$f":"IF(SUMIFS(Sheet1!S71_SeptemberActual,Sheet1!S71_A2Code,$AC:$AC,Sheet1!S71_A5CapexCode,$AD:$AD)=0,O18/12,SUMIFS(Sheet1!S71_SeptemberActual,Sheet1!S71_A2Code,$AC:$AC,Sheet1!S71_A5CapexCode,$AD:$AD))","v":779542.17999999982},{"$f":"IF(SUMIFS(Sheet1!S71_OctoberActual,Sheet1!S71_A2Code,$AC:$AC,Sheet1!S71_A5CapexCode,$AD:$AD)=0,O18/12,SUMIFS(Sheet1!S71_OctoberActual,Sheet1!S71_A2Code,$AC:$AC,Sheet1!S71_A5CapexCode,$AD:$AD))","v":3412292.96},{"$f":"IF(SUMIFS(Sheet1!S71_NovemberActual,Sheet1!S71_A2Code,$AC:$AC,Sheet1!S71_A5CapexCode,$AD:$AD)=0,O18/12,SUMIFS(Sheet1!S71_NovemberActual,Sheet1!S71_A2Code,$AC:$AC,Sheet1!S71_A5CapexCode,$AD:$AD))","v":10467673.689999999},{"$f":"IF(SUMIFS(Sheet1!S71_DecemberActual,Sheet1!S71_A2Code,$AC:$AC,Sheet1!S71_A5CapexCode,$AD:$AD)=0,O18/12,SUMIFS(Sheet1!S71_DecemberActual,Sheet1!S71_A2Code,$AC:$AC,Sheet1!S71_A5CapexCode,$AD:$AD))","v":19537476.389999997},{"$f":"$O$18/12","v":6404657.7816666663},6404657.7816666663,6404657.7816666663,6404657.7816666663,6404657.7816666663,6054458.4116666615,{"$f":"'B5-Capex'!K57","v":76855893.379999995},{"$f":"'B5-Capex'!L57","v":39251782},{"$f":"'B5-Capex'!M57","v":38415522},null,null,null,null,null,null,null,null,null,null,null,"3200","CE"]
[{"$f":"'B2-FinPerf SC'!A20","v":"Environmental protection"},null,{"$f":"IF(SUMIFS(Sheet1!S71_JulyActual,Sheet1!S71_A2Code,$AC:$AC,Sheet1!S71_A5CapexCode,$AD:$AD)=0,O19/12,SUMIFS(Sheet1!S71_JulyActual,Sheet1!S71_A2Code,$AC:$AC,Sheet1!S71_A5CapexCode,$AD:$AD))","v":0},{"$f":"IF(SUMIFS(Sheet1!S71_AugustActual,Sheet1!S71_A2Code,$AC:$AC,Sheet1!S71_A5CapexCode,$AD:$AD)=0,O19/12,SUMIFS(Sheet1!S71_AugustActual,Sheet1!S71_A2Code,$AC:$AC,Sheet1!S71_A5CapexCode,$AD:$AD))","v":0},{"$f":"IF(SUMIFS(Sheet1!S71_SeptemberActual,Sheet1!S71_A2Code,$AC:$AC,Sheet1!S71_A5CapexCode,$AD:$AD)=0,O19/12,SUMIFS(Sheet1!S71_SeptemberActual,Sheet1!S71_A2Code,$AC:$AC,Sheet1!S71_A5CapexCode,$AD:$AD))","v":0},{"$f":"IF(SUMIFS(Sheet1!S71_OctoberActual,Sheet1!S71_A2Code,$AC:$AC,Sheet1!S71_A5CapexCode,$AD:$AD)=0,O19/12,SUMIFS(Sheet1!S71_OctoberActual,Sheet1!S71_A2Code,$AC:$AC,Sheet1!S71_A5CapexCode,$AD:$AD))","v":0},{"$f":"IF(SUMIFS(Sheet1!S71_NovemberActual,Sheet1!S71_A2Code,$AC:$AC,Sheet1!S71_A5CapexCode,$AD:$AD)=0,O19/12,SUMIFS(Sheet1!S71_NovemberActual,Sheet1!S71_A2Code,$AC:$AC,Sheet1!S71_A5CapexCode,$AD:$AD))","v":0},{"$f":"IF(SUMIFS(Sheet1!S71_DecemberActual,Sheet1!S71_A2Code,$AC:$AC,Sheet1!S71_A5CapexCode,$AD:$AD)=0,O19/12,SUMIFS(Sheet1!S71_DecemberActual,Sheet1!S71_A2Code,$AC:$AC,Sheet1!S71_A5CapexCode,$AD:$AD))","v":0},{"$f":"$O$19/12","v":0},0,0,0,0,0,{"$f":"'B5-Capex'!K58","v":0},{"$f":"'B5-Capex'!L58","v":0},{"$f":"'B5-Capex'!M58","v":0},null,null,null,null,null,null,null,null,null,null,null,"3300","CE"]
[{"$f":"'B2-FinPerf SC'!A21","v":"Trading services"},null,{"$f":"SUM(C21:C24)","v":359309.41666666669},{"$f":"SUM(D21:D24)","v":359309.41666666669},1015819.53,722497.4,532483.33333333337,376761.62333333335,359309.41666666669,359309.41666666669,359309.41666666669,359309.41666666669,359309.41666666669,-851014.80333333369,{"$f":"'B5-Capex'!K59","v":4311713},{"$f":"'B5-Capex'!L59","v":0},{"$f":"'B5-Capex'!M59","v":0},null,null,null,null,null,null,null,null,null,null,null,null,"CE"]
[{"$f":"'B2-FinPerf SC'!A22","v":"Energy sources"},null,{"$f":"IF(SUMIFS(Sheet1!S71_JulyActual,Sheet1!S71_A2Code,$AC:$AC,Sheet1!S71_A5CapexCode,$AD:$AD)=0,O21/12,SUMIFS(Sheet1!S71_JulyActual,Sheet1!S71_A2Code,$AC:$AC,Sheet1!S71_A5CapexCode,$AD:$AD))","v":181483.33333333334},{"$f":"IF(SUMIFS(Sheet1!S71_AugustActual,Sheet1!S71_A2Code,$AC:$AC,Sheet1!S71_A5CapexCode,$AD:$AD)=0,O21/12,SUMIFS(Sheet1!S71_AugustActual,Sheet1!S71_A2Code,$AC:$AC,Sheet1!S71_A5CapexCode,$AD:$AD))","v":181483.33333333334},{"$f":"IF(SUMIFS(Sheet1!S71_SeptemberActual,Sheet1!S71_A2Code,$AC:$AC,Sheet1!S71_A5CapexCode,$AD:$AD)=0,O21/12,SUMIFS(Sheet1!S71_SeptemberActual,Sheet1!S71_A2Code,$AC:$AC,Sheet1!S71_A5CapexCode,$AD:$AD))","v":469819.53},{"$f":"IF(SUMIFS(Sheet1!S71_OctoberActual,Sheet1!S71_A2Code,$AC:$AC,Sheet1!S71_A5CapexCode,$AD:$AD)=0,O21/12,SUMIFS(Sheet1!S71_OctoberActual,Sheet1!S71_A2Code,$AC:$AC,Sheet1!S71_A5CapexCode,$AD:$AD))","v":59497.4},{"$f":"IF(SUMIFS(Sheet1!S71_NovemberActual,Sheet1!S71_A2Code,$AC:$AC,Sheet1!S71_A5CapexCode,$AD:$AD)=0,O21/12,SUMIFS(Sheet1!S71_NovemberActual,Sheet1!S71_A2Code,$AC:$AC,Sheet1!S71_A5CapexCode,$AD:$AD))","v":181483.33333333334},{"$f":"IF(SUMIFS(Sheet1!S71_DecemberActual,Sheet1!S71_A2Code,$AC:$AC,Sheet1!S71_A5CapexCode,$AD:$AD)=0,O21/12,SUMIFS(Sheet1!S71_DecemberActual,Sheet1!S71_A2Code,$AC:$AC,Sheet1!S71_A5CapexCode,$AD:$AD))","v":198935.54},{"$f":"$O$21/12","v":181483.33333333334},181483.33333333334,181483.33333333334,181483.33333333334,181483.33333333334,-2319.1366666667163,{"$f":"'B5-Capex'!K60","v":2177800},{"$f":"'B5-Capex'!L60","v":0},{"$f":"'B5-Capex'!M60","v":0},null,null,null,null,null,null,null,null,null,null,null,"4100","CE"]
[{"$f":"'B2-FinPerf SC'!A23","v":"Water management"},null,{"$f":"IF(SUMIFS(Sheet1!S71_JulyActual,Sheet1!S71_A2Code,$AC:$AC,Sheet1!S71_A5CapexCode,$AD:$AD)=0,O22/12,SUMIFS(Sheet1!S71_JulyActual,Sheet1!S71_A2Code,$AC:$AC,Sheet1!S71_A5CapexCode,$AD:$AD))","v":0},{"$f":"IF(SUMIFS(Sheet1!S71_AugustActual,Sheet1!S71_A2Code,$AC:$AC,Sheet1!S71_A5CapexCode,$AD:$AD)=0,O22/12,SUMIFS(Sheet1!S71_AugustActual,Sheet1!S71_A2Code,$AC:$AC,Sheet1!S71_A5CapexCode,$AD:$AD))","v":0},{"$f":"IF(SUMIFS(Sheet1!S71_SeptemberActual,Sheet1!S71_A2Code,$AC:$AC,Sheet1!S71_A5CapexCode,$AD:$AD)=0,O22/12,SUMIFS(Sheet1!S71_SeptemberActual,Sheet1!S71_A2Code,$AC:$AC,Sheet1!S71_A5CapexCode,$AD:$AD))","v":0},{"$f":"IF(SUMIFS(Sheet1!S71_OctoberActual,Sheet1!S71_A2Code,$AC:$AC,Sheet1!S71_A5CapexCode,$AD:$AD)=0,O22/12,SUMIFS(Sheet1!S71_OctoberActual,Sheet1!S71_A2Code,$AC:$AC,Sheet1!S71_A5CapexCode,$AD:$AD))","v":0},{"$f":"IF(SUMIFS(Sheet1!S71_NovemberActual,Sheet1!S71_A2Code,$AC:$AC,Sheet1!S71_A5CapexCode,$AD:$AD)=0,O22/12,SUMIFS(Sheet1!S71_NovemberActual,Sheet1!S71_A2Code,$AC:$AC,Sheet1!S71_A5CapexCode,$AD:$AD))","v":0},{"$f":"IF(SUMIFS(Sheet1!S71_DecemberActual,Sheet1!S71_A2Code,$AC:$AC,Sheet1!S71_A5CapexCode,$AD:$AD)=0,O22/12,SUMIFS(Sheet1!S71_DecemberActual,Sheet1!S71_A2Code,$AC:$AC,Sheet1!S71_A5CapexCode,$AD:$AD))","v":0},{"$f":"$O$22/12","v":0},0,0,0,0,0,{"$f":"'B5-Capex'!K61","v":0},{"$f":"'B5-Capex'!L61","v":0},{"$f":"'B5-Capex'!M61","v":0},null,null,null,null,null,null,null,null,null,null,null,"4200","CE"]
[{"$f":"'B2-FinPerf SC'!A24","v":"Waste water management"},null,{"$f":"IF(SUMIFS(Sheet1!S71_JulyActual,Sheet1!S71_A2Code,$AC:$AC,Sheet1!S71_A5CapexCode,$AD:$AD)=0,O23/12,SUMIFS(Sheet1!S71_JulyActual,Sheet1!S71_A2Code,$AC:$AC,Sheet1!S71_A5CapexCode,$AD:$AD))","v":0},{"$f":"IF(SUMIFS(Sheet1!S71_AugustActual,Sheet1!S71_A2Code,$AC:$AC,Sheet1!S71_A5CapexCode,$AD:$AD)=0,O23/12,SUMIFS(Sheet1!S71_AugustActual,Sheet1!S71_A2Code,$AC:$AC,Sheet1!S71_A5CapexCode,$AD:$AD))","v":0},{"$f":"IF(SUMIFS(Sheet1!S71_SeptemberActual,Sheet1!S71_A2Code,$AC:$AC,Sheet1!S71_A5CapexCode,$AD:$AD)=0,O23/12,SUMIFS(Sheet1!S71_SeptemberActual,Sheet1!S71_A2Code,$AC:$AC,Sheet1!S71_A5CapexCode,$AD:$AD))","v":0},{"$f":"IF(SUMIFS(Sheet1!S71_OctoberActual,Sheet1!S71_A2Code,$AC:$AC,Sheet1!S71_A5CapexCode,$AD:$AD)=0,O23/12,SUMIFS(Sheet1!S71_OctoberActual,Sheet1!S71_A2Code,$AC:$AC,Sheet1!S71_A5CapexCode,$AD:$AD))","v":0},{"$f":"IF(SUMIFS(Sheet1!S71_NovemberActual,Sheet1!S71_A2Code,$AC:$AC,Sheet1!S71_A5CapexCode,$AD:$AD)=0,O23/12,SUMIFS(Sheet1!S71_NovemberActual,Sheet1!S71_A2Code,$AC:$AC,Sheet1!S71_A5CapexCode,$AD:$AD))","v":0},{"$f":"IF(SUMIFS(Sheet1!S71_DecemberActual,Sheet1!S71_A2Code,$AC:$AC,Sheet1!S71_A5CapexCode,$AD:$AD)=0,O23/12,SUMIFS(Sheet1!S71_DecemberActual,Sheet1!S71_A2Code,$AC:$AC,Sheet1!S71_A5CapexCode,$AD:$AD))","v":0},{"$f":"$O$23/12","v":0},0,0,0,0,0,{"$f":"'B5-Capex'!K62","v":0},{"$f":"'B5-Capex'!L62","v":0},{"$f":"'B5-Capex'!M62","v":0},null,null,null,null,null,null,null,null,null,null,null,"4300","CE"]
[{"$f":"'B2-FinPerf SC'!A25","v":"Waste management"},null,{"$f":"IF(SUMIFS(Sheet1!S71_JulyActual,Sheet1!S71_A2Code,$AC:$AC,Sheet1!S71_A5CapexCode,$AD:$AD)=0,O24/12,SUMIFS(Sheet1!S71_JulyActual,Sheet1!S71_A2Code,$AC:$AC,Sheet1!S71_A5CapexCode,$AD:$AD))","v":177826.08333333334},{"$f":"IF(SUMIFS(Sheet1!S71_AugustActual,Sheet1!S71_A2Code,$AC:$AC,Sheet1!S71_A5CapexCode,$AD:$AD)=0,O24/12,SUMIFS(Sheet1!S71_AugustActual,Sheet1!S71_A2Code,$AC:$AC,Sheet1!S71_A5CapexCode,$AD:$AD))","v":177826.08333333334},{"$f":"IF(SUMIFS(Sheet1!S71_SeptemberActual,Sheet1!S71_A2Code,$AC:$AC,Sheet1!S71_A5CapexCode,$AD:$AD)=0,O24/12,SUMIFS(Sheet1!S71_SeptemberActual,Sheet1!S71_A2Code,$AC:$AC,Sheet1!S71_A5CapexCode,$AD:$AD))","v":546000},{"$f":"IF(SUMIFS(Sheet1!S71_OctoberActual,Sheet1!S71_A2Code,$AC:$AC,Sheet1!S71_A5CapexCode,$AD:$AD)=0,O24/12,SUMIFS(Sheet1!S71_OctoberActual,Sheet1!S71_A2Code,$AC:$AC,Sheet1!S71_A5CapexCode,$AD:$AD))","v":663000},{"$f":"IF(SUMIFS(Sheet1!S71_NovemberActual,Sheet1!S71_A2Code,$AC:$AC,Sheet1!S71_A5CapexCode,$AD:$AD)=0,O24/12,SUMIFS(Sheet1!S71_NovemberActual,Sheet1!S71_A2Code,$AC:$AC,Sheet1!S71_A5CapexCode,$AD:$AD))","v":351000},{"$f":"IF(SUMIFS(Sheet1!S71_DecemberActual,Sheet1!S71_A2Code,$AC:$AC,Sheet1!S71_A5CapexCode,$AD:$AD)=0,O24/12,SUMIFS(Sheet1!S71_DecemberActual,Sheet1!S71_A2Code,$AC:$AC,Sheet1!S71_A5CapexCode,$AD:$AD))","v":177826.08333333334},{"$f":"$O$24/12","v":177826.08333333334},177826.08333333334,177826.08333333334,177826.08333333334,177826.08333333334,-848695.66666666744,{"$f":"'B5-Capex'!K63","v":2133913},{"$f":"'B5-Capex'!L63","v":0},{"$f":"'B5-Capex'!M63","v":0},null,null,null,null,null,null,null,null,null,null,null,"4400","CE"]
[{"$f":"'B2-FinPerf SC'!A26","v":"Other"},null,{"$f":"IF(SUMIFS(Sheet1!S71_JulyActual,Sheet1!S71_A2Code,$AC:$AC,Sheet1!S71_A5CapexCode,$AD:$AD)=0,O25/12,SUMIFS(Sheet1!S71_JulyActual,Sheet1!S71_A2Code,$AC:$AC,Sheet1!S71_A5CapexCode,$AD:$AD))","v":0},{"$f":"IF(SUMIFS(Sheet1!S71_AugustActual,Sheet1!S71_A2Code,$AC:$AC,Sheet1!S71_A5CapexCode,$AD:$AD)=0,O25/12,SUMIFS(Sheet1!S71_AugustActual,Sheet1!S71_A2Code,$AC:$AC,Sheet1!S71_A5CapexCode,$AD:$AD))","v":0},{"$f":"IF(SUMIFS(Sheet1!S71_SeptemberActual,Sheet1!S71_A2Code,$AC:$AC,Sheet1!S71_A5CapexCode,$AD:$AD)=0,O25/12,SUMIFS(Sheet1!S71_SeptemberActual,Sheet1!S71_A2Code,$AC:$AC,Sheet1!S71_A5CapexCode,$AD:$AD))","v":0},{"$f":"IF(SUMIFS(Sheet1!S71_OctoberActual,Sheet1!S71_A2Code,$AC:$AC,Sheet1!S71_A5CapexCode,$AD:$AD)=0,O25/12,SUMIFS(Sheet1!S71_OctoberActual,Sheet1!S71_A2Code,$AC:$AC,Sheet1!S71_A5CapexCode,$AD:$AD))","v":0},{"$f":"IF(SUMIFS(Sheet1!S71_NovemberActual,Sheet1!S71_A2Code,$AC:$AC,Sheet1!S71_A5CapexCode,$AD:$AD)=0,O25/12,SUMIFS(Sheet1!S71_NovemberActual,Sheet1!S71_A2Code,$AC:$AC,Sheet1!S71_A5CapexCode,$AD:$AD))","v":0},{"$f":"IF(SUMIFS(Sheet1!S71_DecemberActual,Sheet1!S71_A2Code,$AC:$AC,Sheet1!S71_A5CapexCode,$AD:$AD)=0,O25/12,SUMIFS(Sheet1!S71_DecemberActual,Sheet1!S71_A2Code,$AC:$AC,Sheet1!S71_A5CapexCode,$AD:$AD))","v":0},{"$f":"$O$25/12","v":0},0,0,0,0,0,{"$f":"'B5-Capex'!K64","v":0},{"$f":"'B5-Capex'!L64","v":0},{"$f":"'B5-Capex'!M64","v":0},null,null,null,null,null,null,null,null,null,null,null,"5000","CE"]
["Total Capital Expenditure - Functional",null,{"$f":"C6+C10+C16+C20+C25","v":7581271.3633333333},{"$f":"D6+D10+D16+D20+D25","v":5287690.5433333339},2102418.2700000005,7233343.6900000004,16940827.839999996,27701079.823333334,11317866.031666666,11317866.031666666,11317866.031666666,11317866.031666666,11317866.031666666,12378430.691666659,{"$f":"O6+O10+O16+O20+O25","v":135814392.38},{"$f":"P6+P10+P16+P20+P25","v":70121348},{"$f":"Q6+Q10+Q16+Q20+Q25","v":53415522}]
[{"$f":"head27a","v":"References"}]
["1. Table should be completed as either Multi-Year expenditure appropriation or Budget Year and Forward Year estimates"]
["2. Total Capital Expenditure must reconcile to the 'Financial Position' budget and monthly budget statement"]
[]
["check",null,null,null,null,null,null,null,null,null,null,null,null,null,{"$f":"O26-'B5-Capex'!K65","v":0},{"$f":"P26-'B5-Capex'!L65","v":0},{"$f":"Q26-'B5-Capex'!M65","v":0}]

{"sheet":"SB18a","index":54,"n_rows":191,"n_cols":30,"rows_kept":191,"cut":false,"hidden":false,"merged":[[1,0,3,0],[185,0,185,12],[187,0,187,12],[180,0,180,12],[181,0,181,9],[182,0,182,9],[183,0,183,12],[1,2,1,10],[1,1,3,1]]}
[{"$f":"muni&\" - \"&ADJB18a&\" - \"&Date","v":"KZN291 Mandeni - Supporting Table SB18a Adjustments Budget - capital expenditure on new assets by asset class - 08-04-2025"}]
[{"$f":"desc","v":"Description"},{"$f":"head27","v":"Ref"},{"$f":"Head2","v":"Budget Year 2024/25"},null,null,null,null,null,null,null,null,{"$f":"Head10","v":"Budget Year +1 2025/26"},{"$f":"Head11","v":"Budget Year +2 2026/27"}]
[null,null,{"$f":"Head6","v":"Original Budget"},{"$f":"Head54","v":"Prior Adjusted"},{"$f":"Head51","v":"Accum. Funds"},{"$f":"Head52","v":"Multi-year capital"},{"$f":"Head53","v":"Unfore. Unavoid."},{"$f":"Head55","v":"Nat. or Prov. Govt"},{"$f":"Head50","v":"Other Adjusts."},{"$f":"Head56","v":"Total Adjusts."},{"$f":"Head7","v":"Adjusted Budget"},{"$f":"Head7","v":"Adjusted Budget"},{"$f":"Head7","v":"Adjusted Budget"}]
[null,null,null,7,8,9,10,11,12,13,14]
["R thousands",null,"A","A1","B","C","D","E","F","G","H"]
["Capital expenditure on new assets by Asset Class/Sub-class"]
[]
["Infrastructure",null,{"$f":"C9+C14+C18+C28+C39+C46+C54+C64+C70","v":14478257},{"$f":"D9+D14+D18+D28+D39+D46+D54+D64+D70","v":8379293},0,0,0,0,0,{"$f":"SUM(E8:I8)","v":0},{"$f":"IF(D8=0,C8+J8,D8+J8)","v":8379293},{"$f":"L9+L14+L18+L28+L39+L46+L54+L64+L70","v":3739130},{"$f":"M9+M14+M18+M28+M39+M46+M54+M64+M70","v":0}]
["Roads Infrastructure",null,{"$f":"SUM(C10:C13)","v":9739129},{"$f":"SUM(D10:D13)","v":5632575},0,0,0,0,0,{"$f":"SUM(E9:I9)","v":0},{"$f":"IF(D9=0,C9+J9,D9+J9)","v":5632575},3739130,0]
["Roads",null,{"$f":"SUMIFS(Sheet1!S71_OriginalBudget,Sheet1!S71_SA34aCode,$AC:$AC,Sheet1!S71_A5CapexCode,$AD:$AD)","v":4695650},{"$f":"SUMIFS(Sheet1!S71_PreviousBudget,Sheet1!S71_SA34aCode,$AC:$AC,Sheet1!S71_A5CapexCode,$AD:$AD)","v":4297970},null,null,null,null,{"$f":"SUMIFS(Sheet1!S71_CurrentAdjustments,Sheet1!S71_SA34aCode,$AC:$AC,Sheet1!S71_A5CapexCode,$AD:$AD)","v":0},0,4297970,{"$f":"SUMIFS(Sheet1!S71_OY1AdjustedBudget,Sheet1!S71_SA34aCode,$AC:$AC,Sheet1!S71_A5CapexCode,$AD:$AD)","v":2000000},{"$f":"SUMIFS(Sheet1!S71_OY2AdjustedBudget,Sheet1!S71_SA34aCode,$AC:$AC,Sheet1!S71_A5CapexCode,$AD:$AD)","v":0},null,null,null,null,null,null,null,null,null,null,null,null,null,null,null,"0120","CE"]
["Road Structures",null,{"$f":"SUMIFS(Sheet1!S71_OriginalBudget,Sheet1!S71_SA34aCode,$AC:$AC,Sheet1!S71_A5CapexCode,$AD:$AD)","v":1304348},{"$f":"SUMIFS(Sheet1!S71_PreviousBudget,Sheet1!S71_SA34aCode,$AC:$AC,Sheet1!S71_A5CapexCode,$AD:$AD)","v":869565},null,null,null,null,{"$f":"SUMIFS(Sheet1!S71_CurrentAdjustments,Sheet1!S71_SA34aCode,$AC:$AC,Sheet1!S71_A5CapexCode,$AD:$AD)","v":0},0,869565,{"$f":"SUMIFS(Sheet1!S71_OY1AdjustedBudget,Sheet1!S71_SA34aCode,$AC:$AC,Sheet1!S71_A5CapexCode,$AD:$AD)","v":1739130},{"$f":"SUMIFS(Sheet1!S71_OY2AdjustedBudget,Sheet1!S71_SA34aCode,$AC:$AC,Sheet1!S71_A5CapexCode,$AD:$AD)","v":0},null,null,null,null,null,null,null,null,null,null,null,null,null,null,null,"0130","CE"]
["Road Furniture",null,{"$f":"SUMIFS(Sheet1!S71_OriginalBudget,Sheet1!S71_SA34aCode,$AC:$AC,Sheet1!S71_A5CapexCode,$AD:$AD)","v":3739131},{"$f":"SUMIFS(Sheet1!S71_PreviousBudget,Sheet1!S71_SA34aCode,$AC:$AC,Sheet1!S71_A5CapexCode,$AD:$AD)","v":465040},null,null,null,null,{"$f":"SUMIFS(Sheet1!S71_CurrentAdjustments,Sheet1!S71_SA34aCode,$AC:$AC,Sheet1!S71_A5CapexCode,$AD:$AD)","v":0},0,465040,{"$f":"SUMIFS(Sheet1!S71_OY1AdjustedBudget,Sheet1!S71_SA34aCode,$AC:$AC,Sheet1!S71_A5CapexCode,$AD:$AD)","v":0},{"$f":"SUMIFS(Sheet1!S71_OY2AdjustedBudget,Sheet1!S71_SA34aCode,$AC:$AC,Sheet1!S71_A5CapexCode,$AD:$AD)","v":0},null,null,null,null,null,null,null,null,null,null,null,null,null,null,null,"0140","CE"]
["Capital Spares",null,{"$f":"SUMIFS(Sheet1!S71_OriginalBudget,Sheet1!S71_SA34aCode,$AC:$AC,Sheet1!S71_A5CapexCode,$AD:$AD)","v":0},{"$f":"SUMIFS(Sheet1!S71_PreviousBudget,Sheet1!S71_SA34aCode,$AC:$AC,Sheet1!S71_A5CapexCode,$AD:$AD)","v":0},null,null,null,null,{"$f":"SUMIFS(Sheet1!S71_CurrentAdjustments,Sheet1!S71_SA34aCode,$AC:$AC,Sheet1!S71_A5CapexCode,$AD:$AD)","v":0},0,0,{"$f":"SUMIFS(Sheet1!S71_OY1AdjustedBudget,Sheet1!S71_SA34aCode,$AC:$AC,Sheet1!S71_A5CapexCode,$AD:$AD)","v":0},{"$f":"SUMIFS(Sheet1!S71_OY2AdjustedBudget,Sheet1!S71_SA34aCode,$AC:$AC,Sheet1!S71_A5CapexCode,$AD:$AD)","v":0},null,null,null,null,null,null,null,null,null,null,null,null,null,null,null,"0150","CE"]
["Storm water Infrastructure",null,{"$f":"SUM(C15:C17)","v":0},0,0,0,0,0,0,0,0,{"$f":"SUM(L15:L17)","v":0},{"$f":"SUM(M15:M17)","v":0},null,null,null,null,null,null,null,null,null,null,null,null,null,null,null,null,"CE"]
["Drainage Collection",null,{"$f":"SUMIFS(Sheet1!S71_OriginalBudget,Sheet1!S71_SA34aCode,$AC:$AC,Sheet1!S71_A5CapexCode,$AD:$AD)","v":0},{"$f":"SUMIFS(Sheet1!S71_PreviousBudget,Sheet1!S71_SA34aCode,$AC:$AC,Sheet1!S71_A5CapexCode,$AD:$AD)","v":0},null,null,null,null,{"$f":"SUMIFS(Sheet1!S71_CurrentAdjustments,Sheet1!S71_SA34aCode,$AC:$AC,Sheet1!S71_A5CapexCode,$AD:$AD)","v":0},0,0,{"$f":"SUMIFS(Sheet1!S71_OY1AdjustedBudget,Sheet1!S71_SA34aCode,$AC:$AC,Sheet1!S71_A5CapexCode,$AD:$AD)","v":0},{"$f":"SUMIFS(Sheet1!S71_OY2AdjustedBudget,Sheet1!S71_SA34aCode,$AC:$AC,Sheet1!S71_A5CapexCode,$AD:$AD)","v":0},null,null,null,null,null,null,null,null,null,null,null,null,null,null,null,"0170","CE"]
["Storm water Conveyance",null,{"$f":"SUMIFS(Sheet1!S71_OriginalBudget,Sheet1!S71_SA34aCode,$AC:$AC,Sheet1!S71_A5CapexCode,$AD:$AD)","v":0},{"$f":"SUMIFS(Sheet1!S71_PreviousBudget,Sheet1!S71_SA34aCode,$AC:$AC,Sheet1!S71_A5CapexCode,$AD:$AD)","v":0},null,null,null,null,{"$f":"SUMIFS(Sheet1!S71_CurrentAdjustments,Sheet1!S71_SA34aCode,$AC:$AC,Sheet1!S71_A5CapexCode,$AD:$AD)","v":0},0,0,{"$f":"SUMIFS(Sheet1!S71_OY1AdjustedBudget,Sheet1!S71_SA34aCode,$AC:$AC,Sheet1!S71_A5CapexCode,$AD:$AD)","v":0},{"$f":"SUMIFS(Sheet1!S71_OY2AdjustedBudget,Sheet1!S71_SA34aCode,$AC:$AC,Sheet1!S71_A5CapexCode,$AD:$AD)","v":0},null,null,null,null,null,null,null,null,null,null,null,null,null,null,null,"0180","CE"]
["Attenuation",null,{"$f":"SUMIFS(Sheet1!S71_OriginalBudget,Sheet1!S71_SA34aCode,$AC:$AC,Sheet1!S71_A5CapexCode,$AD:$AD)","v":0},{"$f":"SUMIFS(Sheet1!S71_PreviousBudget,Sheet1!S71_SA34aCode,$AC:$AC,Sheet1!S71_A5CapexCode,$AD:$AD)","v":0},null,null,null,null,{"$f":"SUMIFS(Sheet1!S71_CurrentAdjustments,Sheet1!S71_SA34aCode,$AC:$AC,Sheet1!S71_A5CapexCode,$AD:$AD)","v":0},0,0,{"$f":"SUMIFS(Sheet1!S71_OY1AdjustedBudget,Sheet1!S71_SA34aCode,$AC:$AC,Sheet1!S71_A5CapexCode,$AD:$AD)","v":0},{"$f":"SUMIFS(Sheet1!S71_OY2AdjustedBudget,Sheet1!S71_SA34aCode,$AC:$AC,Sheet1!S71_A5CapexCode,$AD:$AD)","v":0},null,null,null,null,null,null,null,null,null,null,null,null,null,null,null,"0190","CE"]
["Electrical Infrastructure",null,{"$f":"SUM(C19:C27)","v":2713043},1054836,0,0,0,0,0,0,1054836,0,0,null,null,null,null,null,null,null,null,null,null,null,null,null,null,null,null,"CE"]
["Power Plants",null,{"$f":"SUMIFS(Sheet1!S71_OriginalBudget,Sheet1!S71_SA34aCode,$AC:$AC,Sheet1!S71_A5CapexCode,$AD:$AD)","v":0},{"$f":"SUMIFS(Sheet1!S71_PreviousBudget,Sheet1!S71_SA34aCode,$AC:$AC,Sheet1!S71_A5CapexCode,$AD:$AD)","v":0},null,null,null,null,{"$f":"SUMIFS(Sheet1!S71_CurrentAdjustments,Sheet1!S71_SA34aCode,$AC:$AC,Sheet1!S71_A5CapexCode,$AD:$AD)","v":0},0,0,{"$f":"SUMIFS(Sheet1!S71_OY1AdjustedBudget,Sheet1!S71_SA34aCode,$AC:$AC,Sheet1!S71_A5CapexCode,$AD:$AD)","v":0},{"$f":"SUMIFS(Sheet1!S71_OY2AdjustedBudget,Sheet1!S71_SA34aCode,$AC:$AC,Sheet1!S71_A5CapexCode,$AD:$AD)","v":0},null,null,null,null,null,null,null,null,null,null,null,null,null,null,null,"0210","CE"]
["HV Substations",null,{"$f":"SUMIFS(Sheet1!S71_OriginalBudget,Sheet1!S71_SA34aCode,$AC:$AC,Sheet1!S71_A5CapexCode,$AD:$AD)","v":2278260},{"$f":"SUMIFS(Sheet1!S71_PreviousBudget,Sheet1!S71_SA34aCode,$AC:$AC,Sheet1!S71_A5CapexCode,$AD:$AD)","v":793966},null,null,null,null,{"$f":"SUMIFS(Sheet1!S71_CurrentAdjustments,Sheet1!S71_SA34aCode,$AC:$AC,Sheet1!S71_A5CapexCode,$AD:$AD)","v":0},0,793966,{"$f":"SUMIFS(Sheet1!S71_OY1AdjustedBudget,Sheet1!S71_SA34aCode,$AC:$AC,Sheet1!S71_A5CapexCode,$AD:$AD)","v":0},{"$f":"SUMIFS(Sheet1!S71_OY2AdjustedBudget,Sheet1!S71_SA34aCode,$AC:$AC,Sheet1!S71_A5CapexCode,$AD:$AD)","v":0},null,null,null,null,null,null,null,null,null,null,null,null,null,null,null,"0220","CE"]
["HV Switching Station",null,{"$f":"SUMIFS(Sheet1!S71_OriginalBudget,Sheet1!S71_SA34aCode,$AC:$AC,Sheet1!S71_A5CapexCode,$AD:$AD)","v":434783},{"$f":"SUMIFS(Sheet1!S71_PreviousBudget,Sheet1!S71_SA34aCode,$AC:$AC,Sheet1!S71_A5CapexCode,$AD:$AD)","v":260870},null,null,null,null,{"$f":"SUMIFS(Sheet1!S71_CurrentAdjustments,Sheet1!S71_SA34aCode,$AC:$AC,Sheet1!S71_A5CapexCode,$AD:$AD)","v":0},0,260870,{"$f":"SUMIFS(Sheet1!S71_OY1AdjustedBudget,Sheet1!S71_SA34aCode,$AC:$AC,Sheet1!S71_A5CapexCode,$AD:$AD)","v":0},{"$f":"SUMIFS(Sheet1!S71_OY2AdjustedBudget,Sheet1!S71_SA34aCode,$AC:$AC,Sheet1!S71_A5CapexCode,$AD:$AD)","v":0},null,null,null,null,null,null,null,null,null,null,null,null,null,null,null,"0230","CE"]
["HV Transmission Conductors",null,{"$f":"SUMIFS(Sheet1!S71_OriginalBudget,Sheet1!S71_SA34aCode,$AC:$AC,Sheet1!S71_A5CapexCode,$AD:$AD)","v":0},{"$f":"SUMIFS(Sheet1!S71_PreviousBudget,Sheet1!S71_SA34aCode,$AC:$AC,Sheet1!S71_A5CapexCode,$AD:$AD)","v":0},null,null,null,null,{"$f":"SUMIFS(Sheet1!S71_CurrentAdjustments,Sheet1!S71_SA34aCode,$AC:$AC,Sheet1!S71_A5CapexCode,$AD:$AD)","v":0},0,0,{"$f":"SUMIFS(Sheet1!S71_OY1AdjustedBudget,Sheet1!S71_SA34aCode,$AC:$AC,Sheet1!S71_A5CapexCode,$AD:$AD)","v":0},{"$f":"SUMIFS(Sheet1!S71_OY2AdjustedBudget,Sheet1!S71_SA34aCode,$AC:$AC,Sheet1!S71_A5CapexCode,$AD:$AD)","v":0},null,null,null,null,null,null,null,null,null,null,null,null,null,null,null,"0240","CE"]
["MV Substations",null,{"$f":"SUMIFS(Sheet1!S71_OriginalBudget,Sheet1!S71_SA34aCode,$AC:$AC,Sheet1!S71_A5CapexCode,$AD:$AD)","v":0},{"$f":"SUMIFS(Sheet1!S71_PreviousBudget,Sheet1!S71_SA34aCode,$AC:$AC,Sheet1!S71_A5CapexCode,$AD:$AD)","v":0},null,null,null,null,{"$f":"SUMIFS(Sheet1!S71_CurrentAdjustments,Sheet1!S71_SA34aCode,$AC:$AC,Sheet1!S71_A5CapexCode,$AD:$AD)","v":0},0,0,{"$f":"SUMIFS(Sheet1!S71_OY1AdjustedBudget,Sheet1!S71_SA34aCode,$AC:$AC,Sheet1!S71_A5CapexCode,$AD:$AD)","v":0},{"$f":"SUMIFS(Sheet1!S71_OY2AdjustedBudget,Sheet1!S71_SA34aCode,$AC:$AC,Sheet1!S71_A5CapexCode,$AD:$AD)","v":0},null,null,null,null,null,null,null,null,null,null,null,null,null,null,null,"0250","CE"]
["MV Switching Stations",null,{"$f":"SUMIFS(Sheet1!S71_OriginalBudget,Sheet1!S71_SA34aCode,$AC:$AC,Sheet1!S71_A5CapexCode,$AD:$AD)","v":0},{"$f":"SUMIFS(Sheet1!S71_PreviousBudget,Sheet1!S71_SA34aCode,$AC:$AC,Sheet1!S71_A5CapexCode,$AD:$AD)","v":0},null,null,null,null,{"$f":"SUMIFS(Sheet1!S71_CurrentAdjustments,Sheet1!S71_SA34aCode,$AC:$AC,Sheet1!S71_A5CapexCode,$AD:$AD)","v":0},0,0,{"$f":"SUMIFS(Sheet1!S71_OY1AdjustedBudget,Sheet1!S71_SA34aCode,$AC:$AC,Sheet1!S71_A5CapexCode,$AD:$AD)","v":0},{"$f":"SUMIFS(Sheet1!S71_OY2AdjustedBudget,Sheet1!S71_SA34aCode,$AC:$AC,Sheet1!S71_A5CapexCode,$AD:$AD)","v":0},null,null,null,null,null,null,null,null,null,null,null,null,null,null,null,"0260","CE"]
["MV Networks",null,{"$f":"SUMIFS(Sheet1!S71_OriginalBudget,Sheet1!S71_SA34aCode,$AC:$AC,Sheet1!S71_A5CapexCode,$AD:$AD)","v":0},{"$f":"SUMIFS(Sheet1!S71_PreviousBudget,Sheet1!S71_SA34aCode,$AC:$AC,Sheet1!S71_A5CapexCode,$AD:$AD)","v":0},null,null,null,null,{"$f":"SUMIFS(Sheet1!S71_CurrentAdjustments,Sheet1!S71_SA34aCode,$AC:$AC,Sheet1!S71_A5CapexCode,$AD:$AD)","v":0},0,0,{"$f":"SUMIFS(Sheet1!S71_OY1AdjustedBudget,Sheet1!S71_SA34aCode,$AC:$AC,Sheet1!S71_A5CapexCode,$AD:$AD)","v":0},{"$f":"SUMIFS(Sheet1!S71_OY2AdjustedBudget,Sheet1!S71_SA34aCode,$AC:$AC,Sheet1!S71_A5CapexCode,$AD:$AD)","v":0},null,null,null,null,null,null,null,null,null,null,null,null,null,null,null,"0270","CE"]
["LV Networks",null,{"$f":"SUMIFS(Sheet1!S71_OriginalBudget,Sheet1!S71_SA34aCode,$AC:$AC,Sheet1!S71_A5CapexCode,$AD:$AD)","v":0},{"$f":"SUMIFS(Sheet1!S71_PreviousBudget,Sheet1!S71_SA34aCode,$AC:$AC,Sheet1!S71_A5CapexCode,$AD:$AD)","v":0},null,null,null,null,{"$f":"SUMIFS(Sheet1!S71_CurrentAdjustments,Sheet1!S71_SA34aCode,$AC:$AC,Sheet1!S71_A5CapexCode,$AD:$AD)","v":0},0,0,{"$f":"SUMIFS(Sheet1!S71_OY1AdjustedBudget,Sheet1!S71_SA34aCode,$AC:$AC,Sheet1!S71_A5CapexCode,$AD:$AD)","v":0},{"$f":"SUMIFS(Sheet1!S71_OY2AdjustedBudget,Sheet1!S71_SA34aCode,$AC:$AC,Sheet1!S71_A5CapexCode,$AD:$AD)","v":0},null,null,null,null,null,null,null,null,null,null,null,null,null,null,null,"0280","CE"]
["Capital Spares",null,{"$f":"SUMIFS(Sheet1!S71_OriginalBudget,Sheet1!S71_SA34aCode,$AC:$AC,Sheet1!S71_A5CapexCode,$AD:$AD)","v":0},{"$f":"SUMIFS(Sheet1!S71_PreviousBudget,Sheet1!S71_SA34aCode,$AC:$AC,Sheet1!S71_A5CapexCode,$AD:$AD)","v":0},null,null,null,null,{"$f":"SUMIFS(Sheet1!S71_CurrentAdjustments,Sheet1!S71_SA34aCode,$AC:$AC,Sheet1!S71_A5CapexCode,$AD:$AD)","v":0},0,0,{"$f":"SUMIFS(Sheet1!S71_OY1AdjustedBudget,Sheet1!S71_SA34aCode,$AC:$AC,Sheet1!S71_A5CapexCode,$AD:$AD)","v":0},{"$f":"SUMIFS(Sheet1!S71_OY2AdjustedBudget,Sheet1!S71_SA34aCode,$AC:$AC,Sheet1!S71_A5CapexCode,$AD:$AD)","v":0},null,null,null,null,null,null,null,null,null,null,null,null,null,null,null,"0290","CE"]
["Water Supply Infrastructure",null,{"$f":"SUM(C29:C38)","v":0},0,0,0,0,0,0,0,0,0,0,null,null,null,null,null,null,null,null,null,null,null,null,null,null,null,null,"CE"]
["Dams and Weirs",null,{"$f":"SUMIFS(Sheet1!S71_OriginalBudget,Sheet1!S71_SA34aCode,$AC:$AC,Sheet1!S71_A5CapexCode,$AD:$AD)","v":0},{"$f":"SUMIFS(Sheet1!S71_PreviousBudget,Sheet1!S71_SA34aCode,$AC:$AC,Sheet1!S71_A5CapexCode,$AD:$AD)","v":0},null,null,null,null,{"$f":"SUMIFS(Sheet1!S71_CurrentAdjustments,Sheet1!S71_SA34aCode,$AC:$AC,Sheet1!S71_A5CapexCode,$AD:$AD)","v":0},0,0,{"$f":"SUMIFS(Sheet1!S71_OY1AdjustedBudget,Sheet1!S71_SA34aCode,$AC:$AC,Sheet1!S71_A5CapexCode,$AD:$AD)","v":0},{"$f":"SUMIFS(Sheet1!S71_OY2AdjustedBudget,Sheet1!S71_SA34aCode,$AC:$AC,Sheet1!S71_A5CapexCode,$AD:$AD)","v":0},null,null,null,null,null,null,null,null,null,null,null,null,null,null,null,"0310","CE"]
["Boreholes",null,{"$f":"SUMIFS(Sheet1!S71_OriginalBudget,Sheet1!S71_SA34aCode,$AC:$AC,Sheet1!S71_A5CapexCode,$AD:$AD)","v":0},{"$f":"SUMIFS(Sheet1!S71_PreviousBudget,Sheet1!S71_SA34aCode,$AC:$AC,Sheet1!S71_A5CapexCode,$AD:$AD)","v":0},null,null,null,null,{"$f":"SUMIFS(Sheet1!S71_CurrentAdjustments,Sheet1!S71_SA34aCode,$AC:$AC,Sheet1!S71_A5CapexCode,$AD:$AD)","v":0},0,0,{"$f":"SUMIFS(Sheet1!S71_OY1AdjustedBudget,Sheet1!S71_SA34aCode,$AC:$AC,Sheet1!S71_A5CapexCode,$AD:$AD)","v":0},{"$f":"SUMIFS(Sheet1!S71_OY2AdjustedBudget,Sheet1!S71_SA34aCode,$AC:$AC,Sheet1!S71_A5CapexCode,$AD:$AD)","v":0},null,null,null,null,null,null,null,null,null,null,null,null,null,null,null,"0320","CE"]
["Reservoirs",null,{"$f":"SUMIFS(Sheet1!S71_OriginalBudget,Sheet1!S71_SA34aCode,$AC:$AC,Sheet1!S71_A5CapexCode,$AD:$AD)","v":0},{"$f":"SUMIFS(Sheet1!S71_PreviousBudget,Sheet1!S71_SA34aCode,$AC:$AC,Sheet1!S71_A5CapexCode,$AD:$AD)","v":0},null,null,null,null,{"$f":"SUMIFS(Sheet1!S71_CurrentAdjustments,Sheet1!S71_SA34aCode,$AC:$AC,Sheet1!S71_A5CapexCode,$AD:$AD)","v":0},0,0,{"$f":"SUMIFS(Sheet1!S71_OY1AdjustedBudget,Sheet1!S71_SA34aCode,$AC:$AC,Sheet1!S71_A5CapexCode,$AD:$AD)","v":0},{"$f":"SUMIFS(Sheet1!S71_OY2AdjustedBudget,Sheet1!S71_SA34aCode,$AC:$AC,Sheet1!S71_A5CapexCode,$AD:$AD)","v":0},null,null,null,null,null,null,null,null,null,null,null,null,null,null,null,"0330","CE"]
["Pump Stations",null,{"$f":"SUMIFS(Sheet1!S71_OriginalBudget,Sheet1!S71_SA34aCode,$AC:$AC,Sheet1!S71_A5CapexCode,$AD:$AD)","v":0},{"$f":"SUMIFS(Sheet1!S71_PreviousBudget,Sheet1!S71_SA34aCode,$AC:$AC,Sheet1!S71_A5CapexCode,$AD:$AD)","v":0},null,null,null,null,{"$f":"SUMIFS(Sheet1!S71_CurrentAdjustments,Sheet1!S71_SA34aCode,$AC:$AC,Sheet1!S71_A5CapexCode,$AD:$AD)","v":0},0,0,{"$f":"SUMIFS(Sheet1!S71_OY1AdjustedBudget,Sheet1!S71_SA34aCode,$AC:$AC,Sheet1!S71_A5CapexCode,$AD:$AD)","v":0},{"$f":"SUMIFS(Sheet1!S71_OY2AdjustedBudget,Sheet1!S71_SA34aCode,$AC:$AC,Sheet1!S71_A5CapexCode,$AD:$AD)","v":0},null,null,null,null,null,null,null,null,null,null,null,null,null,null,null,"0340","CE"]
["Water Treatment Works",null,{"$f":"SUMIFS(Sheet1!S71_OriginalBudget,Sheet1!S71_SA34aCode,$AC:$AC,Sheet1!S71_A5CapexCode,$AD:$AD)","v":0},{"$f":"SUMIFS(Sheet1!S71_PreviousBudget,Sheet1!S71_SA34aCode,$AC:$AC,Sheet1!S71_A5CapexCode,$AD:$AD)","v":0},null,null,null,null,{"$f":"SUMIFS(Sheet1!S71_CurrentAdjustments,Sheet1!S71_SA34aCode,$AC:$AC,Sheet1!S71_A5CapexCode,$AD:$AD)","v":0},0,0,{"$f":"SUMIFS(Sheet1!S71_OY1AdjustedBudget,Sheet1!S71_SA34aCode,$AC:$AC,Sheet1!S71_A5CapexCode,$AD:$AD)","v":0},{"$f":"SUMIFS(Sheet1!S71_OY2AdjustedBudget,Sheet1!S71_SA34aCode,$AC:$AC,Sheet1!S71_A5CapexCode,$AD:$AD)","v":0},null,null,null,null,null,null,null,null,null,null,null,null,null,null,null,"0350","CE"]
["Bulk Mains",null,{"$f":"SUMIFS(Sheet1!S71_OriginalBudget,Sheet1!S71_SA34aCode,$AC:$AC,Sheet1!S71_A5CapexCode,$AD:$AD)","v":0},{"$f":"SUMIFS(Sheet1!S71_PreviousBudget,Sheet1!S71_SA34aCode,$AC:$AC,Sheet1!S71_A5CapexCode,$AD:$AD)","v":0},null,null,null,null,{"$f":"SUMIFS(Sheet1!S71_CurrentAdjustments,Sheet1!S71_SA34aCode,$AC:$AC,Sheet1!S71_A5CapexCode,$AD:$AD)","v":0},0,0,{"$f":"SUMIFS(Sheet1!S71_OY1AdjustedBudget,Sheet1!S71_SA34aCode,$AC:$AC,Sheet1!S71_A5CapexCode,$AD:$AD)","v":0},{"$f":"SUMIFS(Sheet1!S71_OY2AdjustedBudget,Sheet1!S71_SA34aCode,$AC:$AC,Sheet1!S71_A5CapexCode,$AD:$AD)","v":0},null,null,null,null,null,null,null,null,null,null,null,null,null,null,null,"0360","CE"]
["Distribution",null,{"$f":"SUMIFS(Sheet1!S71_OriginalBudget,Sheet1!S71_SA34aCode,$AC:$AC,Sheet1!S71_A5CapexCode,$AD:$AD)","v":0},{"$f":"SUMIFS(Sheet1!S71_PreviousBudget,Sheet1!S71_SA34aCode,$AC:$AC,Sheet1!S71_A5CapexCode,$AD:$AD)","v":0},null,null,null,null,{"$f":"SUMIFS(Sheet1!S71_CurrentAdjustments,Sheet1!S71_SA34aCode,$AC:$AC,Sheet1!S71_A5CapexCode,$AD:$AD)","v":0},0,0,{"$f":"SUMIFS(Sheet1!S71_OY1AdjustedBudget,Sheet1!S71_SA34aCode,$AC:$AC,Sheet1!S71_A5CapexCode,$AD:$AD)","v":0},{"$f":"SUMIFS(Sheet1!S71_OY2AdjustedBudget,Sheet1!S71_SA34aCode,$AC:$AC,Sheet1!S71_A5CapexCode,$AD:$AD)","v":0},null,null,null,null,null,null,null,null,null,null,null,null,null,null,null,"0370","CE"]
["Distribution Points",null,{"$f":"SUMIFS(Sheet1!S71_OriginalBudget,Sheet1!S71_SA34aCode,$AC:$AC,Sheet1!S71_A5CapexCode,$AD:$AD)","v":0},{"$f":"SUMIFS(Sheet1!S71_PreviousBudget,Sheet1!S71_SA34aCode,$AC:$AC,Sheet1!S71_A5CapexCode,$AD:$AD)","v":0},null,null,null,null,{"$f":"SUMIFS(Sheet1!S71_CurrentAdjustments,Sheet1!S71_SA34aCode,$AC:$AC,Sheet1!S71_A5CapexCode,$AD:$AD)","v":0},0,0,{"$f":"SUMIFS(Sheet1!S71_OY1AdjustedBudget,Sheet1!S71_SA34aCode,$AC:$AC,Sheet1!S71_A5CapexCode,$AD:$AD)","v":0},{"$f":"SUMIFS(Sheet1!S71_OY2AdjustedBudget,Sheet1!S71_SA34aCode,$AC:$AC,Sheet1!S71_A5CapexCode,$AD:$AD)","v":0},null,null,null,null,null,null,null,null,null,null,null,null,null,null,null,"0380","CE"]
["PRV Stations",null,{"$f":"SUMIFS(Sheet1!S71_OriginalBudget,Sheet1!S71_SA34aCode,$AC:$AC,Sheet1!S71_A5CapexCode,$AD:$AD)","v":0},{"$f":"SUMIFS(Sheet1!S71_PreviousBudget,Sheet1!S71_SA34aCode,$AC:$AC,Sheet1!S71_A5CapexCode,$AD:$AD)","v":0},null,null,null,null,{"$f":"SUMIFS(Sheet1!S71_CurrentAdjustments,Sheet1!S71_SA34aCode,$AC:$AC,Sheet1!S71_A5CapexCode,$AD:$AD)","v":0},0,0,{"$f":"SUMIFS(Sheet1!S71_OY1AdjustedBudget,Sheet1!S71_SA34aCode,$AC:$AC,Sheet1!S71_A5CapexCode,$AD:$AD)","v":0},{"$f":"SUMIFS(Sheet1!S71_OY2AdjustedBudget,Sheet1!S71_SA34aCode,$AC:$AC,Sheet1!S71_A5CapexCode,$AD:$AD)","v":0},null,null,null,null,null,null,null,null,null,null,null,null,null,null,null,"0390","CE"]
["Capital Spares",null,{"$f":"SUMIFS(Sheet1!S71_OriginalBudget,Sheet1!S71_SA34aCode,$AC:$AC,Sheet1!S71_A5CapexCode,$AD:$AD)","v":0},{"$f":"SUMIFS(Sheet1!S71_PreviousBudget,Sheet1!S71_SA34aCode,$AC:$AC,Sheet1!S71_A5CapexCode,$AD:$AD)","v":0},null,null,null,null,{"$f":"SUMIFS(Sheet1!S71_CurrentAdjustments,Sheet1!S71_SA34aCode,$AC:$AC,Sheet1!S71_A5CapexCode,$AD:$AD)","v":0},0,0,{"$f":"SUMIFS(Sheet1!S71_OY1AdjustedBudget,Sheet1!S71_SA34aCode,$AC:$AC,Sheet1!S71_A5CapexCode,$AD:$AD)","v":0},{"$f":"SUMIFS(Sheet1!S71_OY2AdjustedBudget,Sheet1!S71_SA34aCode,$AC:$AC,Sheet1!S71_A5CapexCode,$AD:$AD)","v":0},null,null,null,null,null,null,null,null,null,null,null,null,null,null,null,"0400","CE"]
["Sanitation Infrastructure",null,{"$f":"SUM(C40:C45)","v":69565},36282,0,0,0,0,0,0,36282,0,0,null,null,null,null,null,null,null,null,null,null,null,null,null,null,null,null,"CE"]
["Pump Station",null,{"$f":"SUMIFS(Sheet1!S71_OriginalBudget,Sheet1!S71_SA34aCode,$AC:$AC,Sheet1!S71_A5CapexCode,$AD:$AD)","v":0},{"$f":"SUMIFS(Sheet1!S71_PreviousBudget,Sheet1!S71_SA34aCode,$AC:$AC,Sheet1!S71_A5CapexCode,$AD:$AD)","v":0},null,null,null,null,{"$f":"SUMIFS(Sheet1!S71_CurrentAdjustments,Sheet1!S71_SA34aCode,$AC:$AC,Sheet1!S71_A5CapexCode,$AD:$AD)","v":0},0,0,{"$f":"SUMIFS(Sheet1!S71_OY1AdjustedBudget,Sheet1!S71_SA34aCode,$AC:$AC,Sheet1!S71_A5CapexCode,$AD:$AD)","v":0},{"$f":"SUMIFS(Sheet1!S71_OY2AdjustedBudget,Sheet1!S71_SA34aCode,$AC:$AC,Sheet1!S71_A5CapexCode,$AD:$AD)","v":0},null,null,null,null,null,null,null,null,null,null,null,null,null,null,null,"0420","CE"]
["Reticulation",null,{"$f":"SUMIFS(Sheet1!S71_OriginalBudget,Sheet1!S71_SA34aCode,$AC:$AC,Sheet1!S71_A5CapexCode,$AD:$AD)","v":0},{"$f":"SUMIFS(Sheet1!S71_PreviousBudget,Sheet1!S71_SA34aCode,$AC:$AC,Sheet1!S71_A5CapexCode,$AD:$AD)","v":0},null,null,null,null,{"$f":"SUMIFS(Sheet1!S71_CurrentAdjustments,Sheet1!S71_SA34aCode,$AC:$AC,Sheet1!S71_A5CapexCode,$AD:$AD)","v":0},0,0,{"$f":"SUMIFS(Sheet1!S71_OY1AdjustedBudget,Sheet1!S71_SA34aCode,$AC:$AC,Sheet1!S71_A5CapexCode,$AD:$AD)","v":0},{"$f":"SUMIFS(Sheet1!S71_OY2AdjustedBudget,Sheet1!S71_SA34aCode,$AC:$AC,Sheet1!S71_A5CapexCode,$AD:$AD)","v":0},null,null,null,null,null,null,null,null,null,null,null,null,null,null,null,"0430","CE"]
["Waste Water Treatment Works",null,{"$f":"SUMIFS(Sheet1!S71_OriginalBudget,Sheet1!S71_SA34aCode,$AC:$AC,Sheet1!S71_A5CapexCode,$AD:$AD)","v":0},{"$f":"SUMIFS(Sheet1!S71_PreviousBudget,Sheet1!S71_SA34aCode,$AC:$AC,Sheet1!S71_A5CapexCode,$AD:$AD)","v":0},null,null,null,null,{"$f":"SUMIFS(Sheet1!S71_CurrentAdjustments,Sheet1!S71_SA34aCode,$AC:$AC,Sheet1!S71_A5CapexCode,$AD:$AD)","v":0},0,0,{"$f":"SUMIFS(Sheet1!S71_OY1AdjustedBudget,Sheet1!S71_SA34aCode,$AC:$AC,Sheet1!S71_A5CapexCode,$AD:$AD)","v":0},{"$f":"SUMIFS(Sheet1!S71_OY2AdjustedBudget,Sheet1!S71_SA34aCode,$AC:$AC,Sheet1!S71_A5CapexCode,$AD:$AD)","v":0},null,null,null,null,null,null,null,null,null,null,null,null,null,null,null,"0440","CE"]
["Outfall Sewers",null,{"$f":"SUMIFS(Sheet1!S71_OriginalBudget,Sheet1!S71_SA34aCode,$AC:$AC,Sheet1!S71_A5CapexCode,$AD:$AD)","v":0},{"$f":"SUMIFS(Sheet1!S71_PreviousBudget,Sheet1!S71_SA34aCode,$AC:$AC,Sheet1!S71_A5CapexCode,$AD:$AD)","v":0},null,null,null,null,{"$f":"SUMIFS(Sheet1!S71_CurrentAdjustments,Sheet1!S71_SA34aCode,$AC:$AC,Sheet1!S71_A5CapexCode,$AD:$AD)","v":0},0,0,{"$f":"SUMIFS(Sheet1!S71_OY1AdjustedBudget,Sheet1!S71_SA34aCode,$AC:$AC,Sheet1!S71_A5CapexCode,$AD:$AD)","v":0},{"$f":"SUMIFS(Sheet1!S71_OY2AdjustedBudget,Sheet1!S71_SA34aCode,$AC:$AC,Sheet1!S71_A5CapexCode,$AD:$AD)","v":0},null,null,null,null,null,null,null,null,null,null,null,null,null,null,null,"0450","CE"]
["Toilet Facilities",null,{"$f":"SUMIFS(Sheet1!S71_OriginalBudget,Sheet1!S71_SA34aCode,$AC:$AC,Sheet1!S71_A5CapexCode,$AD:$AD)","v":69565},{"$f":"SUMIFS(Sheet1!S71_PreviousBudget,Sheet1!S71_SA34aCode,$AC:$AC,Sheet1!S71_A5CapexCode,$AD:$AD)","v":36282},null,null,null,null,{"$f":"SUMIFS(Sheet1!S71_CurrentAdjustments,Sheet1!S71_SA34aCode,$AC:$AC,Sheet1!S71_A5CapexCode,$AD:$AD)","v":0},0,36282,{"$f":"SUMIFS(Sheet1!S71_OY1AdjustedBudget,Sheet1!S71_SA34aCode,$AC:$AC,Sheet1!S71_A5CapexCode,$AD:$AD)","v":0},{"$f":"SUMIFS(Sheet1!S71_OY2AdjustedBudget,Sheet1!S71_SA34aCode,$AC:$AC,Sheet1!S71_A5CapexCode,$AD:$AD)","v":0},null,null,null,null,null,null,null,null,null,null,null,null,null,null,null,"0460","CE"]
["Capital Spares",null,{"$f":"SUMIFS(Sheet1!S71_OriginalBudget,Sheet1!S71_SA34aCode,$AC:$AC,Sheet1!S71_A5CapexCode,$AD:$AD)","v":0},{"$f":"SUMIFS(Sheet1!S71_PreviousBudget,Sheet1!S71_SA34aCode,$AC:$AC,Sheet1!S71_A5CapexCode,$AD:$AD)","v":0},null,null,null,null,{"$f":"SUMIFS(Sheet1!S71_CurrentAdjustments,Sheet1!S71_SA34aCode,$AC:$AC,Sheet1!S71_A5CapexCode,$AD:$AD)","v":0},0,0,{"$f":"SUMIFS(Sheet1!S71_OY1AdjustedBudget,Sheet1!S71_SA34aCode,$AC:$AC,Sheet1!S71_A5CapexCode,$AD:$AD)","v":0},{"$f":"SUMIFS(Sheet1!S71_OY2AdjustedBudget,Sheet1!S71_SA34aCode,$AC:$AC,Sheet1!S71_A5CapexCode,$AD:$AD)","v":0},null,null,null,null,null,null,null,null,null,null,null,null,null,null,null,"0470","CE"]
["Solid Waste Infrastructure",null,{"$f":"SUM(C47:C53)","v":1739130},1560000,0,0,0,0,0,0,1560000,0,0,null,null,null,null,null,null,null,null,null,null,null,null,null,null,null,null,"CE"]
["Landfill Sites",null,{"$f":"SUMIFS(Sheet1!S71_OriginalBudget,Sheet1!S71_SA34aCode,$AC:$AC,Sheet1!S71_A5CapexCode,$AD:$AD)","v":0},{"$f":"SUMIFS(Sheet1!S71_PreviousBudget,Sheet1!S71_SA34aCode,$AC:$AC,Sheet1!S71_A5CapexCode,$AD:$AD)","v":0},null,null,null,null,{"$f":"SUMIFS(Sheet1!S71_CurrentAdjustments,Sheet1!S71_SA34aCode,$AC:$AC,Sheet1!S71_A5CapexCode,$AD:$AD)","v":0},0,0,{"$f":"SUMIFS(Sheet1!S71_OY1AdjustedBudget,Sheet1!S71_SA34aCode,$AC:$AC,Sheet1!S71_A5CapexCode,$AD:$AD)","v":0},{"$f":"SUMIFS(Sheet1!S71_OY2AdjustedBudget,Sheet1!S71_SA34aCode,$AC:$AC,Sheet1!S71_A5CapexCode,$AD:$AD)","v":0},null,null,null,null,null,null,null,null,null,null,null,null,null,null,null,"0490","CE"]
["Waste Transfer Stations",null,{"$f":"SUMIFS(Sheet1!S71_OriginalBudget,Sheet1!S71_SA34aCode,$AC:$AC,Sheet1!S71_A5CapexCode,$AD:$AD)","v":0},{"$f":"SUMIFS(Sheet1!S71_PreviousBudget,Sheet1!S71_SA34aCode,$AC:$AC,Sheet1!S71_A5CapexCode,$AD:$AD)","v":0},null,null,null,null,{"$f":"SUMIFS(Sheet1!S71_CurrentAdjustments,Sheet1!S71_SA34aCode,$AC:$AC,Sheet1!S71_A5CapexCode,$AD:$AD)","v":0},0,0,{"$f":"SUMIFS(Sheet1!S71_OY1AdjustedBudget,Sheet1!S71_SA34aCode,$AC:$AC,Sheet1!S71_A5CapexCode,$AD:$AD)","v":0},{"$f":"SUMIFS(Sheet1!S71_OY2AdjustedBudget,Sheet1!S71_SA34aCode,$AC:$AC,Sheet1!S71_A5CapexCode,$AD:$AD)","v":0},null,null,null,null,null,null,null,null,null,null,null,null,null,null,null,"0500","CE"]
["Waste Processing Facilities",null,{"$f":"SUMIFS(Sheet1!S71_OriginalBudget,Sheet1!S71_SA34aCode,$AC:$AC,Sheet1!S71_A5CapexCode,$AD:$AD)","v":0},{"$f":"SUMIFS(Sheet1!S71_PreviousBudget,Sheet1!S71_SA34aCode,$AC:$AC,Sheet1!S71_A5CapexCode,$AD:$AD)","v":0},null,null,null,null,{"$f":"SUMIFS(Sheet1!S71_CurrentAdjustments,Sheet1!S71_SA34aCode,$AC:$AC,Sheet1!S71_A5CapexCode,$AD:$AD)","v":0},0,0,{"$f":"SUMIFS(Sheet1!S71_OY1AdjustedBudget,Sheet1!S71_SA34aCode,$AC:$AC,Sheet1!S71_A5CapexCode,$AD:$AD)","v":0},{"$f":"SUMIFS(Sheet1!S71_OY2AdjustedBudget,Sheet1!S71_SA34aCode,$AC:$AC,Sheet1!S71_A5CapexCode,$AD:$AD)","v":0},null,null,null,null,null,null,null,null,null,null,null,null,null,null,null,"0510","CE"]
["Waste Drop-off Points",null,{"$f":"SUMIFS(Sheet1!S71_OriginalBudget,Sheet1!S71_SA34aCode,$AC:$AC,Sheet1!S71_A5CapexCode,$AD:$AD)","v":1739130},{"$f":"SUMIFS(Sheet1!S71_PreviousBudget,Sheet1!S71_SA34aCode,$AC:$AC,Sheet1!S71_A5CapexCode,$AD:$AD)","v":1560000},null,null,null,null,{"$f":"SUMIFS(Sheet1!S71_CurrentAdjustments,Sheet1!S71_SA34aCode,$AC:$AC,Sheet1!S71_A5CapexCode,$AD:$AD)","v":0},0,1560000,{"$f":"SUMIFS(Sheet1!S71_OY1AdjustedBudget,Sheet1!S71_SA34aCode,$AC:$AC,Sheet1!S71_A5CapexCode,$AD:$AD)","v":0},{"$f":"SUMIFS(Sheet1!S71_OY2AdjustedBudget,Sheet1!S71_SA34aCode,$AC:$AC,Sheet1!S71_A5CapexCode,$AD:$AD)","v":0},null,null,null,null,null,null,null,null,null,null,null,null,null,null,null,"0520","CE"]
["Waste Separation Facilities",null,{"$f":"SUMIFS(Sheet1!S71_OriginalBudget,Sheet1!S71_SA34aCode,$AC:$AC,Sheet1!S71_A5CapexCode,$AD:$AD)","v":0},{"$f":"SUMIFS(Sheet1!S71_PreviousBudget,Sheet1!S71_SA34aCode,$AC:$AC,Sheet1!S71_A5CapexCode,$AD:$AD)","v":0},null,null,null,null,{"$f":"SUMIFS(Sheet1!S71_CurrentAdjustments,Sheet1!S71_SA34aCode,$AC:$AC,Sheet1!S71_A5CapexCode,$AD:$AD)","v":0},0,0,{"$f":"SUMIFS(Sheet1!S71_OY1AdjustedBudget,Sheet1!S71_SA34aCode,$AC:$AC,Sheet1!S71_A5CapexCode,$AD:$AD)","v":0},{"$f":"SUMIFS(Sheet1!S71_OY2AdjustedBudget,Sheet1!S71_SA34aCode,$AC:$AC,Sheet1!S71_A5CapexCode,$AD:$AD)","v":0},null,null,null,null,null,null,null,null,null,null,null,null,null,null,null,"0530","CE"]
["Electricity Generation Facilities",null,{"$f":"SUMIFS(Sheet1!S71_OriginalBudget,Sheet1!S71_SA34aCode,$AC:$AC,Sheet1!S71_A5CapexCode,$AD:$AD)","v":0},{"$f":"SUMIFS(Sheet1!S71_PreviousBudget,Sheet1!S71_SA34aCode,$AC:$AC,Sheet1!S71_A5CapexCode,$AD:$AD)","v":0},null,null,null,null,{"$f":"SUMIFS(Sheet1!S71_CurrentAdjustments,Sheet1!S71_SA34aCode,$AC:$AC,Sheet1!S71_A5CapexCode,$AD:$AD)","v":0},0,0,{"$f":"SUMIFS(Sheet1!S71_OY1AdjustedBudget,Sheet1!S71_SA34aCode,$AC:$AC,Sheet1!S71_A5CapexCode,$AD:$AD)","v":0},{"$f":"SUMIFS(Sheet1!S71_OY2AdjustedBudget,Sheet1!S71_SA34aCode,$AC:$AC,Sheet1!S71_A5CapexCode,$AD:$AD)","v":0},null,null,null,null,null,null,null,null,null,null,null,null,null,null,null,"0540","CE"]
["Capital Spares",null,{"$f":"SUMIFS(Sheet1!S71_OriginalBudget,Sheet1!S71_SA34aCode,$AC:$AC,Sheet1!S71_A5CapexCode,$AD:$AD)","v":0},{"$f":"SUMIFS(Sheet1!S71_PreviousBudget,Sheet1!S71_SA34aCode,$AC:$AC,Sheet1!S71_A5CapexCode,$AD:$AD)","v":0},null,null,null,null,{"$f":"SUMIFS(Sheet1!S71_CurrentAdjustments,Sheet1!S71_SA34aCode,$AC:$AC,Sheet1!S71_A5CapexCode,$AD:$AD)","v":0},0,0,{"$f":"SUMIFS(Sheet1!S71_OY1AdjustedBudget,Sheet1!S71_SA34aCode,$AC:$AC,Sheet1!S71_A5CapexCode,$AD:$AD)","v":0},{"$f":"SUMIFS(Sheet1!S71_OY2AdjustedBudget,Sheet1!S71_SA34aCode,$AC:$AC,Sheet1!S71_A5CapexCode,$AD:$AD)","v":0},null,null,null,null,null,null,null,null,null,null,null,null,null,null,null,"0550","CE"]
["Rail Infrastructure",null,{"$f":"SUM(C55:C63)","v":0},0,0,0,0,0,0,0,0,0,0,null,null,null,null,null,null,null,null,null,null,null,null,null,null,null,null,"CE"]
["Rail Lines",null,{"$f":"SUMIFS(Sheet1!S71_OriginalBudget,Sheet1!S71_SA34aCode,$AC:$AC,Sheet1!S71_A5CapexCode,$AD:$AD)","v":0},{"$f":"SUMIFS(Sheet1!S71_PreviousBudget,Sheet1!S71_SA34aCode,$AC:$AC,Sheet1!S71_A5CapexCode,$AD:$AD)","v":0},null,null,null,null,{"$f":"SUMIFS(Sheet1!S71_CurrentAdjustments,Sheet1!S71_SA34aCode,$AC:$AC,Sheet1!S71_A5CapexCode,$AD:$AD)","v":0},0,0,{"$f":"SUMIFS(Sheet1!S71_OY1AdjustedBudget,Sheet1!S71_SA34aCode,$AC:$AC,Sheet1!S71_A5CapexCode,$AD:$AD)","v":0},{"$f":"SUMIFS(Sheet1!S71_OY2AdjustedBudget,Sheet1!S71_SA34aCode,$AC:$AC,Sheet1!S71_A5CapexCode,$AD:$AD)","v":0},null,null,null,null,null,null,null,null,null,null,null,null,null,null,null,"0570","CE"]
["Rail Structures",null,{"$f":"SUMIFS(Sheet1!S71_OriginalBudget,Sheet1!S71_SA34aCode,$AC:$AC,Sheet1!S71_A5CapexCode,$AD:$AD)","v":0},{"$f":"SUMIFS(Sheet1!S71_PreviousBudget,Sheet1!S71_SA34aCode,$AC:$AC,Sheet1!S71_A5CapexCode,$AD:$AD)","v":0},null,null,null,null,{"$f":"SUMIFS(Sheet1!S71_CurrentAdjustments,Sheet1!S71_SA34aCode,$AC:$AC,Sheet1!S71_A5CapexCode,$AD:$AD)","v":0},0,0,{"$f":"SUMIFS(Sheet1!S71_OY1AdjustedBudget,Sheet1!S71_SA34aCode,$AC:$AC,Sheet1!S71_A5CapexCode,$AD:$AD)","v":0},{"$f":"SUMIFS(Sheet1!S71_OY2AdjustedBudget,Sheet1!S71_SA34aCode,$AC:$AC,Sheet1!S71_A5CapexCode,$AD:$AD)","v":0},null,null,null,null,null,null,null,null,null,null,null,null,null,null,null,"0580","CE"]
["Rail Furniture",null,{"$f":"SUMIFS(Sheet1!S71_OriginalBudget,Sheet1!S71_SA34aCode,$AC:$AC,Sheet1!S71_A5CapexCode,$AD:$AD)","v":0},{"$f":"SUMIFS(Sheet1!S71_PreviousBudget,Sheet1!S71_SA34aCode,$AC:$AC,Sheet1!S71_A5CapexCode,$AD:$AD)","v":0},null,null,null,null,{"$f":"SUMIFS(Sheet1!S71_CurrentAdjustments,Sheet1!S71_SA34aCode,$AC:$AC,Sheet1!S71_A5CapexCode,$AD:$AD)","v":0},0,0,{"$f":"SUMIFS(Sheet1!S71_OY1AdjustedBudget,Sheet1!S71_SA34aCode,$AC:$AC,Sheet1!S71_A5CapexCode,$AD:$AD)","v":0},{"$f":"SUMIFS(Sheet1!S71_OY2AdjustedBudget,Sheet1!S71_SA34aCode,$AC:$AC,Sheet1!S71_A5CapexCode,$AD:$AD)","v":0},null,null,null,null,null,null,null,null,null,null,null,null,null,null,null,"0590","CE"]
["Drainage Collection",null,{"$f":"SUMIFS(Sheet1!S71_OriginalBudget,Sheet1!S71_SA34aCode,$AC:$AC,Sheet1!S71_A5CapexCode,$AD:$AD)","v":0},{"$f":"SUMIFS(Sheet1!S71_PreviousBudget,Sheet1!S71_SA34aCode,$AC:$AC,Sheet1!S71_A5CapexCode,$AD:$AD)","v":0},null,null,null,null,{"$f":"SUMIFS(Sheet1!S71_CurrentAdjustments,Sheet1!S71_SA34aCode,$AC:$AC,Sheet1!S71_A5CapexCode,$AD:$AD)","v":0},0,0,{"$f":"SUMIFS(Sheet1!S71_OY1AdjustedBudget,Sheet1!S71_SA34aCode,$AC:$AC,Sheet1!S71_A5CapexCode,$AD:$AD)","v":0},{"$f":"SUMIFS(Sheet1!S71_OY2AdjustedBudget,Sheet1!S71_SA34aCode,$AC:$AC,Sheet1!S71_A5CapexCode,$AD:$AD)","v":0},null,null,null,null,null,null,null,null,null,null,null,null,null,null,null,"0600","CE"]
["Storm water Conveyance",null,{"$f":"SUMIFS(Sheet1!S71_OriginalBudget,Sheet1!S71_SA34aCode,$AC:$AC,Sheet1!S71_A5CapexCode,$AD:$AD)","v":0},{"$f":"SUMIFS(Sheet1!S71_PreviousBudget,Sheet1!S71_SA34aCode,$AC:$AC,Sheet1!S71_A5CapexCode,$AD:$AD)","v":0},null,null,null,null,{"$f":"SUMIFS(Sheet1!S71_CurrentAdjustments,Sheet1!S71_SA34aCode,$AC:$AC,Sheet1!S71_A5CapexCode,$AD:$AD)","v":0},0,0,{"$f":"SUMIFS(Sheet1!S71_OY1AdjustedBudget,Sheet1!S71_SA34aCode,$AC:$AC,Sheet1!S71_A5CapexCode,$AD:$AD)","v":0},{"$f":"SUMIFS(Sheet1!S71_OY2AdjustedBudget,Sheet1!S71_SA34aCode,$AC:$AC,Sheet1!S71_A5CapexCode,$AD:$AD)","v":0},null,null,null,null,null,null,null,null,null,null,null,null,null,null,null,"0610","CE"]
["Attenuation",null,{"$f":"SUMIFS(Sheet1!S71_OriginalBudget,Sheet1!S71_SA34aCode,$AC:$AC,Sheet1!S71_A5CapexCode,$AD:$AD)","v":0},{"$f":"SUMIFS(Sheet1!S71_PreviousBudget,Sheet1!S71_SA34aCode,$AC:$AC,Sheet1!S71_A5CapexCode,$AD:$AD)","v":0},null,null,null,null,{"$f":"SUMIFS(Sheet1!S71_CurrentAdjustments,Sheet1!S71_SA34aCode,$AC:$AC,Sheet1!S71_A5CapexCode,$AD:$AD)","v":0},0,0,{"$f":"SUMIFS(Sheet1!S71_OY1AdjustedBudget,Sheet1!S71_SA34aCode,$AC:$AC,Sheet1!S71_A5CapexCode,$AD:$AD)","v":0},{"$f":"SUMIFS(Sheet1!S71_OY2AdjustedBudget,Sheet1!S71_SA34aCode,$AC:$AC,Sheet1!S71_A5CapexCode,$AD:$AD)","v":0},null,null,null,null,null,null,null,null,null,null,null,null,null,null,null,"0620","CE"]
["MV Substations",null,{"$f":"SUMIFS(Sheet1!S71_OriginalBudget,Sheet1!S71_SA34aCode,$AC:$AC,Sheet1!S71_A5CapexCode,$AD:$AD)","v":0},{"$f":"SUMIFS(Sheet1!S71_PreviousBudget,Sheet1!S71_SA34aCode,$AC:$AC,Sheet1!S71_A5CapexCode,$AD:$AD)","v":0},null,null,null,null,{"$f":"SUMIFS(Sheet1!S71_CurrentAdjustments,Sheet1!S71_SA34aCode,$AC:$AC,Sheet1!S71_A5CapexCode,$AD:$AD)","v":0},0,0,{"$f":"SUMIFS(Sheet1!S71_OY1AdjustedBudget,Sheet1!S71_SA34aCode,$AC:$AC,Sheet1!S71_A5CapexCode,$AD:$AD)","v":0},{"$f":"SUMIFS(Sheet1!S71_OY2AdjustedBudget,Sheet1!S71_SA34aCode,$AC:$AC,Sheet1!S71_A5CapexCode,$AD:$AD)","v":0},null,null,null,null,null,null,null,null,null,null,null,null,null,null,null,"0630","CE"]
["LV Networks",null,{"$f":"SUMIFS(Sheet1!S71_OriginalBudget,Sheet1!S71_SA34aCode,$AC:$AC,Sheet1!S71_A5CapexCode,$AD:$AD)","v":0},{"$f":"SUMIFS(Sheet1!S71_PreviousBudget,Sheet1!S71_SA34aCode,$AC:$AC,Sheet1!S71_A5CapexCode,$AD:$AD)","v":0},null,null,null,null,{"$f":"SUMIFS(Sheet1!S71_CurrentAdjustments,Sheet1!S71_SA34aCode,$AC:$AC,Sheet1!S71_A5CapexCode,$AD:$AD)","v":0},0,0,{"$f":"SUMIFS(Sheet1!S71_OY1AdjustedBudget,Sheet1!S71_SA34aCode,$AC:$AC,Sheet1!S71_A5CapexCode,$AD:$AD)","v":0},{"$f":"SUMIFS(Sheet1!S71_OY2AdjustedBudget,Sheet1!S71_SA34aCode,$AC:$AC,Sheet1!S71_A5CapexCode,$AD:$AD)","v":0},null,null,null,null,null,null,null,null,null,null,null,null,null,null,null,"0640","CE"]
["Capital Spares",null,{"$f":"SUMIFS(Sheet1!S71_OriginalBudget,Sheet1!S71_SA34aCode,$AC:$AC,Sheet1!S71_A5CapexCode,$AD:$AD)","v":0},{"$f":"SUMIFS(Sheet1!S71_PreviousBudget,Sheet1!S71_SA34aCode,$AC:$AC,Sheet1!S71_A5CapexCode,$AD:$AD)","v":0},null,null,null,null,{"$f":"SUMIFS(Sheet1!S71_CurrentAdjustments,Sheet1!S71_SA34aCode,$AC:$AC,Sheet1!S71_A5CapexCode,$AD:$AD)","v":0},0,0,{"$f":"SUMIFS(Sheet1!S71_OY1AdjustedBudget,Sheet1!S71_SA34aCode,$AC:$AC,Sheet1!S71_A5CapexCode,$AD:$AD)","v":0},{"$f":"SUMIFS(Sheet1!S71_OY2AdjustedBudget,Sheet1!S71_SA34aCode,$AC:$AC,Sheet1!S71_A5CapexCode,$AD:$AD)","v":0},null,null,null,null,null,null,null,null,null,null,null,null,null,null,null,"0650","CE"]
["Coastal Infrastructure",null,{"$f":"SUM(C65:C69)","v":217390},95600,0,0,0,0,0,0,95600,0,0,null,null,null,null,null,null,null,null,null,null,null,null,null,null,null,null,"CE"]
["Sand Pumps",null,{"$f":"SUMIFS(Sheet1!S71_OriginalBudget,Sheet1!S71_SA34aCode,$AC:$AC,Sheet1!S71_A5CapexCode,$AD:$AD)","v":0},{"$f":"SUMIFS(Sheet1!S71_PreviousBudget,Sheet1!S71_SA34aCode,$AC:$AC,Sheet1!S71_A5CapexCode,$AD:$AD)","v":0},null,null,null,null,{"$f":"SUMIFS(Sheet1!S71_CurrentAdjustments,Sheet1!S71_SA34aCode,$AC:$AC,Sheet1!S71_A5CapexCode,$AD:$AD)","v":0},0,0,{"$f":"SUMIFS(Sheet1!S71_OY1AdjustedBudget,Sheet1!S71_SA34aCode,$AC:$AC,Sheet1!S71_A5CapexCode,$AD:$AD)","v":0},{"$f":"SUMIFS(Sheet1!S71_OY2AdjustedBudget,Sheet1!S71_SA34aCode,$AC:$AC,Sheet1!S71_A5CapexCode,$AD:$AD)","v":0},null,null,null,null,null,null,null,null,null,null,null,null,null,null,null,"0670","CE"]
["Piers",null,{"$f":"SUMIFS(Sheet1!S71_OriginalBudget,Sheet1!S71_SA34aCode,$AC:$AC,Sheet1!S71_A5CapexCode,$AD:$AD)","v":0},{"$f":"SUMIFS(Sheet1!S71_PreviousBudget,Sheet1!S71_SA34aCode,$AC:$AC,Sheet1!S71_A5CapexCode,$AD:$AD)","v":0},null,null,null,null,{"$f":"SUMIFS(Sheet1!S71_CurrentAdjustments,Sheet1!S71_SA34aCode,$AC:$AC,Sheet1!S71_A5CapexCode,$AD:$AD)","v":0},0,0,{"$f":"SUMIFS(Sheet1!S71_OY1AdjustedBudget,Sheet1!S71_SA34aCode,$AC:$AC,Sheet1!S71_A5CapexCode,$AD:$AD)","v":0},{"$f":"SUMIFS(Sheet1!S71_OY2AdjustedBudget,Sheet1!S71_SA34aCode,$AC:$AC,Sheet1!S71_A5CapexCode,$AD:$AD)","v":0},null,null,null,null,null,null,null,null,null,null,null,null,null,null,null,"0680","CE"]
["Revetments",null,{"$f":"SUMIFS(Sheet1!S71_OriginalBudget,Sheet1!S71_SA34aCode,$AC:$AC,Sheet1!S71_A5CapexCode,$AD:$AD)","v":0},{"$f":"SUMIFS(Sheet1!S71_PreviousBudget,Sheet1!S71_SA34aCode,$AC:$AC,Sheet1!S71_A5CapexCode,$AD:$AD)","v":0},null,null,null,null,{"$f":"SUMIFS(Sheet1!S71_CurrentAdjustments,Sheet1!S71_SA34aCode,$AC:$AC,Sheet1!S71_A5CapexCode,$AD:$AD)","v":0},0,0,{"$f":"SUMIFS(Sheet1!S71_OY1AdjustedBudget,Sheet1!S71_SA34aCode,$AC:$AC,Sheet1!S71_A5CapexCode,$AD:$AD)","v":0},{"$f":"SUMIFS(Sheet1!S71_OY2AdjustedBudget,Sheet1!S71_SA34aCode,$AC:$AC,Sheet1!S71_A5CapexCode,$AD:$AD)","v":0},null,null,null,null,null,null,null,null,null,null,null,null,null,null,null,"0690","CE"]
["Promenades",null,{"$f":"SUMIFS(Sheet1!S71_OriginalBudget,Sheet1!S71_SA34aCode,$AC:$AC,Sheet1!S71_A5CapexCode,$AD:$AD)","v":0},{"$f":"SUMIFS(Sheet1!S71_PreviousBudget,Sheet1!S71_SA34aCode,$AC:$AC,Sheet1!S71_A5CapexCode,$AD:$AD)","v":0},null,null,null,null,{"$f":"SUMIFS(Sheet1!S71_CurrentAdjustments,Sheet1!S71_SA34aCode,$AC:$AC,Sheet1!S71_A5CapexCode,$AD:$AD)","v":0},0,0,{"$f":"SUMIFS(Sheet1!S71_OY1AdjustedBudget,Sheet1!S71_SA34aCode,$AC:$AC,Sheet1!S71_A5CapexCode,$AD:$AD)","v":0},{"$f":"SUMIFS(Sheet1!S71_OY2AdjustedBudget,Sheet1!S71_SA34aCode,$AC:$AC,Sheet1!S71_A5CapexCode,$AD:$AD)","v":0},null,null,null,null,null,null,null,null,null,null,null,null,null,null,null,"0700","CE"]
["Capital Spares",null,{"$f":"SUMIFS(Sheet1!S71_OriginalBudget,Sheet1!S71_SA34aCode,$AC:$AC,Sheet1!S71_A5CapexCode,$AD:$AD)","v":217390},{"$f":"SUMIFS(Sheet1!S71_PreviousBudget,Sheet1!S71_SA34aCode,$AC:$AC,Sheet1!S71_A5CapexCode,$AD:$AD)","v":95600},null,null,null,null,{"$f":"SUMIFS(Sheet1!S71_CurrentAdjustments,Sheet1!S71_SA34aCode,$AC:$AC,Sheet1!S71_A5CapexCode,$AD:$AD)","v":0},0,95600,{"$f":"SUMIFS(Sheet1!S71_OY1AdjustedBudget,Sheet1!S71_SA34aCode,$AC:$AC,Sheet1!S71_A5CapexCode,$AD:$AD)","v":0},{"$f":"SUMIFS(Sheet1!S71_OY2AdjustedBudget,Sheet1!S71_SA34aCode,$AC:$AC,Sheet1!S71_A5CapexCode,$AD:$AD)","v":0},null,null,null,null,null,null,null,null,null,null,null,null,null,null,null,"0710","CE"]
["Information and Communication Infrastructure",null,{"$f":"SUM(C71:C74)","v":0},0,0,0,0,0,0,0,0,0,0,null,null,null,null,null,null,null,null,null,null,null,null,null,null,null,null,"CE"]
["Data Centres",null,{"$f":"SUMIFS(Sheet1!S71_OriginalBudget,Sheet1!S71_SA34aCode,$AC:$AC,Sheet1!S71_A5CapexCode,$AD:$AD)","v":0},{"$f":"SUMIFS(Sheet1!S71_PreviousBudget,Sheet1!S71_SA34aCode,$AC:$AC,Sheet1!S71_A5CapexCode,$AD:$AD)","v":0},null,null,null,null,{"$f":"SUMIFS(Sheet1!S71_CurrentAdjustments,Sheet1!S71_SA34aCode,$AC:$AC,Sheet1!S71_A5CapexCode,$AD:$AD)","v":0},0,0,{"$f":"SUMIFS(Sheet1!S71_OY1AdjustedBudget,Sheet1!S71_SA34aCode,$AC:$AC,Sheet1!S71_A5CapexCode,$AD:$AD)","v":0},{"$f":"SUMIFS(Sheet1!S71_OY2AdjustedBudget,Sheet1!S71_SA34aCode,$AC:$AC,Sheet1!S71_A5CapexCode,$AD:$AD)","v":0},null,null,null,null,null,null,null,null,null,null,null,null,null,null,null,"0730","CE"]
["Core Layers",null,{"$f":"SUMIFS(Sheet1!S71_OriginalBudget,Sheet1!S71_SA34aCode,$AC:$AC,Sheet1!S71_A5CapexCode,$AD:$AD)","v":0},{"$f":"SUMIFS(Sheet1!S71_PreviousBudget,Sheet1!S71_SA34aCode,$AC:$AC,Sheet1!S71_A5CapexCode,$AD:$AD)","v":0},null,null,null,null,{"$f":"SUMIFS(Sheet1!S71_CurrentAdjustments,Sheet1!S71_SA34aCode,$AC:$AC,Sheet1!S71_A5CapexCode,$AD:$AD)","v":0},0,0,{"$f":"SUMIFS(Sheet1!S71_OY1AdjustedBudget,Sheet1!S71_SA34aCode,$AC:$AC,Sheet1!S71_A5CapexCode,$AD:$AD)","v":0},{"$f":"SUMIFS(Sheet1!S71_OY2AdjustedBudget,Sheet1!S71_SA34aCode,$AC:$AC,Sheet1!S71_A5CapexCode,$AD:$AD)","v":0},null,null,null,null,null,null,null,null,null,null,null,null,null,null,null,"0740","CE"]
["Distribution Layers",null,{"$f":"SUMIFS(Sheet1!S71_OriginalBudget,Sheet1!S71_SA34aCode,$AC:$AC,Sheet1!S71_A5CapexCode,$AD:$AD)","v":0},{"$f":"SUMIFS(Sheet1!S71_PreviousBudget,Sheet1!S71_SA34aCode,$AC:$AC,Sheet1!S71_A5CapexCode,$AD:$AD)","v":0},null,null,null,null,{"$f":"SUMIFS(Sheet1!S71_CurrentAdjustments,Sheet1!S71_SA34aCode,$AC:$AC,Sheet1!S71_A5CapexCode,$AD:$AD)","v":0},{"$f":"SUM(E73:I73)","v":0},{"$f":"IF(D73=0,C73+J73,D73+J73)","v":0},{"$f":"SUMIFS(Sheet1!S71_OY1AdjustedBudget,Sheet1!S71_SA34aCode,$AC:$AC,Sheet1!S71_A5CapexCode,$AD:$AD)","v":0},{"$f":"SUMIFS(Sheet1!S71_OY2AdjustedBudget,Sheet1!S71_SA34aCode,$AC:$AC,Sheet1!S71_A5CapexCode,$AD:$AD)","v":0},null,null,null,null,null,null,null,null,null,null,null,null,null,null,null,"0750","CE"]
["Capital Spares",null,{"$f":"SUMIFS(Sheet1!S71_OriginalBudget,Sheet1!S71_SA34aCode,$AC:$AC,Sheet1!S71_A5CapexCode,$AD:$AD)","v":0},{"$f":"SUMIFS(Sheet1!S71_PreviousBudget,Sheet1!S71_SA34aCode,$AC:$AC,Sheet1!S71_A5CapexCode,$AD:$AD)","v":0},null,null,null,null,{"$f":"SUMIFS(Sheet1!S71_CurrentAdjustments,Sheet1!S71_SA34aCode,$AC:$AC,Sheet1!S71_A5CapexCode,$AD:$AD)","v":0},0,0,{"$f":"SUMIFS(Sheet1!S71_OY1AdjustedBudget,Sheet1!S71_SA34aCode,$AC:$AC,Sheet1!S71_A5CapexCode,$AD:$AD)","v":0},{"$f":"SUMIFS(Sheet1!S71_OY2AdjustedBudget,Sheet1!S71_SA34aCode,$AC:$AC,Sheet1!S71_A5CapexCode,$AD:$AD)","v":0},null,null,null,null,null,null,null,null,null,null,null,null,null,null,null,"0760","CE"]
[null,null,null,null,null,null,null,null,null,null,null,null,null,null,null,null,null,null,null,null,null,null,null,null,null,null,null,null,null,"CE"]
["Community Assets",null,{"$f":"+C77+C100","v":15796168},{"$f":"+D77+D100","v":22615041},{"$f":"+E77+E100","v":0},0,0,0,0,0,22615041,10869566,0,null,null,null,null,null,null,null,null,null,null,null,null,null,null,null,null,"CE"]
["Community Facilities",null,{"$f":"SUM(C78:C99)","v":6869560},{"$f":"SUM(D78:D99)","v":9973881},{"$f":"SUM(E78:E99)","v":0},0,0,0,0,0,9973881,10869566,0,null,null,null,null,null,null,null,null,null,null,null,null,null,null,null,null,"CE"]
["Halls",null,{"$f":"SUMIFS(Sheet1!S71_OriginalBudget,Sheet1!S71_SA34aCode,$AC:$AC,Sheet1!S71_A5CapexCode,$AD:$AD)","v":1304345},{"$f":"SUMIFS(Sheet1!S71_PreviousBudget,Sheet1!S71_SA34aCode,$AC:$AC,Sheet1!S71_A5CapexCode,$AD:$AD)","v":1869564},null,null,null,null,{"$f":"SUMIFS(Sheet1!S71_CurrentAdjustments,Sheet1!S71_SA34aCode,$AC:$AC,Sheet1!S71_A5CapexCode,$AD:$AD)","v":0},0,1869564,{"$f":"SUMIFS(Sheet1!S71_OY1AdjustedBudget,Sheet1!S71_SA34aCode,$AC:$AC,Sheet1!S71_A5CapexCode,$AD:$AD)","v":0},{"$f":"SUMIFS(Sheet1!S71_OY2AdjustedBudget,Sheet1!S71_SA34aCode,$AC:$AC,Sheet1!S71_A5CapexCode,$AD:$AD)","v":0},null,null,null,null,null,null,null,null,null,null,null,null,null,null,null,"0790","CE"]
["Centres",null,{"$f":"SUMIFS(Sheet1!S71_OriginalBudget,Sheet1!S71_SA34aCode,$AC:$AC,Sheet1!S71_A5CapexCode,$AD:$AD)","v":608693},{"$f":"SUMIFS(Sheet1!S71_PreviousBudget,Sheet1!S71_SA34aCode,$AC:$AC,Sheet1!S71_A5CapexCode,$AD:$AD)","v":1408665},null,null,null,null,{"$f":"SUMIFS(Sheet1!S71_CurrentAdjustments,Sheet1!S71_SA34aCode,$AC:$AC,Sheet1!S71_A5CapexCode,$AD:$AD)","v":0},0,1408665,{"$f":"SUMIFS(Sheet1!S71_OY1AdjustedBudget,Sheet1!S71_SA34aCode,$AC:$AC,Sheet1!S71_A5CapexCode,$AD:$AD)","v":3043478},{"$f":"SUMIFS(Sheet1!S71_OY2AdjustedBudget,Sheet1!S71_SA34aCode,$AC:$AC,Sheet1!S71_A5CapexCode,$AD:$AD)","v":0},null,null,null,null,null,null,null,null,null,null,null,null,null,null,null,"0800","CE"]
["Crèches",null,{"$f":"SUMIFS(Sheet1!S71_OriginalBudget,Sheet1!S71_SA34aCode,$AC:$AC,Sheet1!S71_A5CapexCode,$AD:$AD)","v":0},{"$f":"SUMIFS(Sheet1!S71_PreviousBudget,Sheet1!S71_SA34aCode,$AC:$AC,Sheet1!S71_A5CapexCode,$AD:$AD)","v":0},null,null,null,null,{"$f":"SUMIFS(Sheet1!S71_CurrentAdjustments,Sheet1!S71_SA34aCode,$AC:$AC,Sheet1!S71_A5CapexCode,$AD:$AD)","v":0},0,0,{"$f":"SUMIFS(Sheet1!S71_OY1AdjustedBudget,Sheet1!S71_SA34aCode,$AC:$AC,Sheet1!S71_A5CapexCode,$AD:$AD)","v":0},{"$f":"SUMIFS(Sheet1!S71_OY2AdjustedBudget,Sheet1!S71_SA34aCode,$AC:$AC,Sheet1!S71_A5CapexCode,$AD:$AD)","v":0},null,null,null,null,null,null,null,null,null,null,null,null,null,null,null,"0810","CE"]
["Clinics/Care Centres",null,{"$f":"SUMIFS(Sheet1!S71_OriginalBudget,Sheet1!S71_SA34aCode,$AC:$AC,Sheet1!S71_A5CapexCode,$AD:$AD)","v":0},{"$f":"SUMIFS(Sheet1!S71_PreviousBudget,Sheet1!S71_SA34aCode,$AC:$AC,Sheet1!S71_A5CapexCode,$AD:$AD)","v":0},null,null,null,null,{"$f":"SUMIFS(Sheet1!S71_CurrentAdjustments,Sheet1!S71_SA34aCode,$AC:$AC,Sheet1!S71_A5CapexCode,$AD:$AD)","v":0},0,0,{"$f":"SUMIFS(Sheet1!S71_OY1AdjustedBudget,Sheet1!S71_SA34aCode,$AC:$AC,Sheet1!S71_A5CapexCode,$AD:$AD)","v":0},{"$f":"SUMIFS(Sheet1!S71_OY2AdjustedBudget,Sheet1!S71_SA34aCode,$AC:$AC,Sheet1!S71_A5CapexCode,$AD:$AD)","v":0},null,null,null,null,null,null,null,null,null,null,null,null,null,null,null,"0820","CE"]
["Fire/Ambulance Stations",null,{"$f":"SUMIFS(Sheet1!S71_OriginalBudget,Sheet1!S71_SA34aCode,$AC:$AC,Sheet1!S71_A5CapexCode,$AD:$AD)","v":0},{"$f":"SUMIFS(Sheet1!S71_PreviousBudget,Sheet1!S71_SA34aCode,$AC:$AC,Sheet1!S71_A5CapexCode,$AD:$AD)","v":0},null,null,null,null,{"$f":"SUMIFS(Sheet1!S71_CurrentAdjustments,Sheet1!S71_SA34aCode,$AC:$AC,Sheet1!S71_A5CapexCode,$AD:$AD)","v":0},0,0,{"$f":"SUMIFS(Sheet1!S71_OY1AdjustedBudget,Sheet1!S71_SA34aCode,$AC:$AC,Sheet1!S71_A5CapexCode,$AD:$AD)","v":0},{"$f":"SUMIFS(Sheet1!S71_OY2AdjustedBudget,Sheet1!S71_SA34aCode,$AC:$AC,Sheet1!S71_A5CapexCode,$AD:$AD)","v":0},null,null,null,null,null,null,null,null,null,null,null,null,null,null,null,"0830","CE"]
["Testing Stations",null,{"$f":"SUMIFS(Sheet1!S71_OriginalBudget,Sheet1!S71_SA34aCode,$AC:$AC,Sheet1!S71_A5CapexCode,$AD:$AD)","v":0},{"$f":"SUMIFS(Sheet1!S71_PreviousBudget,Sheet1!S71_SA34aCode,$AC:$AC,Sheet1!S71_A5CapexCode,$AD:$AD)","v":0},null,null,null,null,{"$f":"SUMIFS(Sheet1!S71_CurrentAdjustments,Sheet1!S71_SA34aCode,$AC:$AC,Sheet1!S71_A5CapexCode,$AD:$AD)","v":0},0,0,{"$f":"SUMIFS(Sheet1!S71_OY1AdjustedBudget,Sheet1!S71_SA34aCode,$AC:$AC,Sheet1!S71_A5CapexCode,$AD:$AD)","v":0},{"$f":"SUMIFS(Sheet1!S71_OY2AdjustedBudget,Sheet1!S71_SA34aCode,$AC:$AC,Sheet1!S71_A5CapexCode,$AD:$AD)","v":0},null,null,null,null,null,null,null,null,null,null,null,null,null,null,null,"0840","CE"]
["Museums",null,{"$f":"SUMIFS(Sheet1!S71_OriginalBudget,Sheet1!S71_SA34aCode,$AC:$AC,Sheet1!S71_A5CapexCode,$AD:$AD)","v":0},{"$f":"SUMIFS(Sheet1!S71_PreviousBudget,Sheet1!S71_SA34aCode,$AC:$AC,Sheet1!S71_A5CapexCode,$AD:$AD)","v":0},null,null,null,null,{"$f":"SUMIFS(Sheet1!S71_CurrentAdjustments,Sheet1!S71_SA34aCode,$AC:$AC,Sheet1!S71_A5CapexCode,$AD:$AD)","v":0},0,0,{"$f":"SUMIFS(Sheet1!S71_OY1AdjustedBudget,Sheet1!S71_SA34aCode,$AC:$AC,Sheet1!S71_A5CapexCode,$AD:$AD)","v":0},{"$f":"SUMIFS(Sheet1!S71_OY2AdjustedBudget,Sheet1!S71_SA34aCode,$AC:$AC,Sheet1!S71_A5CapexCode,$AD:$AD)","v":0},null,null,null,null,null,null,null,null,null,null,null,null,null,null,null,"0850","CE"]
["Galleries",null,{"$f":"SUMIFS(Sheet1!S71_OriginalBudget,Sheet1!S71_SA34aCode,$AC:$AC,Sheet1!S71_A5CapexCode,$AD:$AD)","v":0},{"$f":"SUMIFS(Sheet1!S71_PreviousBudget,Sheet1!S71_SA34aCode,$AC:$AC,Sheet1!S71_A5CapexCode,$AD:$AD)","v":0},null,null,null,null,{"$f":"SUMIFS(Sheet1!S71_CurrentAdjustments,Sheet1!S71_SA34aCode,$AC:$AC,Sheet1!S71_A5CapexCode,$AD:$AD)","v":0},0,0,{"$f":"SUMIFS(Sheet1!S71_OY1AdjustedBudget,Sheet1!S71_SA34aCode,$AC:$AC,Sheet1!S71_A5CapexCode,$AD:$AD)","v":0},{"$f":"SUMIFS(Sheet1!S71_OY2AdjustedBudget,Sheet1!S71_SA34aCode,$AC:$AC,Sheet1!S71_A5CapexCode,$AD:$AD)","v":0},null,null,null,null,null,null,null,null,null,null,null,null,null,null,null,"0860","CE"]
["Theatres",null,{"$f":"SUMIFS(Sheet1!S71_OriginalBudget,Sheet1!S71_SA34aCode,$AC:$AC,Sheet1!S71_A5CapexCode,$AD:$AD)","v":0},{"$f":"SUMIFS(Sheet1!S71_PreviousBudget,Sheet1!S71_SA34aCode,$AC:$AC,Sheet1!S71_A5CapexCode,$AD:$AD)","v":0},null,null,null,null,{"$f":"SUMIFS(Sheet1!S71_CurrentAdjustments,Sheet1!S71_SA34aCode,$AC:$AC,Sheet1!S71_A5CapexCode,$AD:$AD)","v":0},0,0,{"$f":"SUMIFS(Sheet1!S71_OY1AdjustedBudget,Sheet1!S71_SA34aCode,$AC:$AC,Sheet1!S71_A5CapexCode,$AD:$AD)","v":0},{"$f":"SUMIFS(Sheet1!S71_OY2AdjustedBudget,Sheet1!S71_SA34aCode,$AC:$AC,Sheet1!S71_A5CapexCode,$AD:$AD)","v":0},null,null,null,null,null,null,null,null,null,null,null,null,null,null,null,"0870","CE"]
["Libraries",null,{"$f":"SUMIFS(Sheet1!S71_OriginalBudget,Sheet1!S71_SA34aCode,$AC:$AC,Sheet1!S71_A5CapexCode,$AD:$AD)","v":0},{"$f":"SUMIFS(Sheet1!S71_PreviousBudget,Sheet1!S71_SA34aCode,$AC:$AC,Sheet1!S71_A5CapexCode,$AD:$AD)","v":0},null,null,null,null,{"$f":"SUMIFS(Sheet1!S71_CurrentAdjustments,Sheet1!S71_SA34aCode,$AC:$AC,Sheet1!S71_A5CapexCode,$AD:$AD)","v":0},0,0,{"$f":"SUMIFS(Sheet1!S71_OY1AdjustedBudget,Sheet1!S71_SA34aCode,$AC:$AC,Sheet1!S71_A5CapexCode,$AD:$AD)","v":0},{"$f":"SUMIFS(Sheet1!S71_OY2AdjustedBudget,Sheet1!S71_SA34aCode,$AC:$AC,Sheet1!S71_A5CapexCode,$AD:$AD)","v":0},null,null,null,null,null,null,null,null,null,null,null,null,null,null,null,"0880","CE"]
["Cemeteries/Crematoria",null,{"$f":"SUMIFS(Sheet1!S71_OriginalBudget,Sheet1!S71_SA34aCode,$AC:$AC,Sheet1!S71_A5CapexCode,$AD:$AD)","v":2173913},{"$f":"SUMIFS(Sheet1!S71_PreviousBudget,Sheet1!S71_SA34aCode,$AC:$AC,Sheet1!S71_A5CapexCode,$AD:$AD)","v":2173913},null,null,null,null,{"$f":"SUMIFS(Sheet1!S71_CurrentAdjustments,Sheet1!S71_SA34aCode,$AC:$AC,Sheet1!S71_A5CapexCode,$AD:$AD)","v":0},0,2173913,{"$f":"SUMIFS(Sheet1!S71_OY1AdjustedBudget,Sheet1!S71_SA34aCode,$AC:$AC,Sheet1!S71_A5CapexCode,$AD:$AD)","v":2173913},{"$f":"SUMIFS(Sheet1!S71_OY2AdjustedBudget,Sheet1!S71_SA34aCode,$AC:$AC,Sheet1!S71_A5CapexCode,$AD:$AD)","v":0},null,null,null,null,null,null,null,null,null,null,null,null,null,null,null,"0890","CE"]
["Police",null,{"$f":"SUMIFS(Sheet1!S71_OriginalBudget,Sheet1!S71_SA34aCode,$AC:$AC,Sheet1!S71_A5CapexCode,$AD:$AD)","v":0},{"$f":"SUMIFS(Sheet1!S71_PreviousBudget,Sheet1!S71_SA34aCode,$AC:$AC,Sheet1!S71_A5CapexCode,$AD:$AD)","v":0},null,null,null,null,{"$f":"SUMIFS(Sheet1!S71_CurrentAdjustments,Sheet1!S71_SA34aCode,$AC:$AC,Sheet1!S71_A5CapexCode,$AD:$AD)","v":0},0,0,{"$f":"SUMIFS(Sheet1!S71_OY1AdjustedBudget,Sheet1!S71_SA34aCode,$AC:$AC,Sheet1!S71_A5CapexCode,$AD:$AD)","v":0},{"$f":"SUMIFS(Sheet1!S71_OY2AdjustedBudget,Sheet1!S71_SA34aCode,$AC:$AC,Sheet1!S71_A5CapexCode,$AD:$AD)","v":0},null,null,null,null,null,null,null,null,null,null,null,null,null,null,null,"0900","CE"]
["Purls",null,{"$f":"SUMIFS(Sheet1!S71_OriginalBudget,Sheet1!S71_SA34aCode,$AC:$AC,Sheet1!S71_A5CapexCode,$AD:$AD)","v":173913},{"$f":"SUMIFS(Sheet1!S71_PreviousBudget,Sheet1!S71_SA34aCode,$AC:$AC,Sheet1!S71_A5CapexCode,$AD:$AD)","v":173913},null,null,null,null,{"$f":"SUMIFS(Sheet1!S71_CurrentAdjustments,Sheet1!S71_SA34aCode,$AC:$AC,Sheet1!S71_A5CapexCode,$AD:$AD)","v":0},0,173913,{"$f":"SUMIFS(Sheet1!S71_OY1AdjustedBudget,Sheet1!S71_SA34aCode,$AC:$AC,Sheet1!S71_A5CapexCode,$AD:$AD)","v":0},{"$f":"SUMIFS(Sheet1!S71_OY2AdjustedBudget,Sheet1!S71_SA34aCode,$AC:$AC,Sheet1!S71_A5CapexCode,$AD:$AD)","v":0},null,null,null,null,null,null,null,null,null,null,null,null,null,null,null,"0910","CE"]
["Public Open Space",null,{"$f":"SUMIFS(Sheet1!S71_OriginalBudget,Sheet1!S71_SA34aCode,$AC:$AC,Sheet1!S71_A5CapexCode,$AD:$AD)","v":0},{"$f":"SUMIFS(Sheet1!S71_PreviousBudget,Sheet1!S71_SA34aCode,$AC:$AC,Sheet1!S71_A5CapexCode,$AD:$AD)","v":0},null,null,null,null,{"$f":"SUMIFS(Sheet1!S71_CurrentAdjustments,Sheet1!S71_SA34aCode,$AC:$AC,Sheet1!S71_A5CapexCode,$AD:$AD)","v":0},0,0,{"$f":"SUMIFS(Sheet1!S71_OY1AdjustedBudget,Sheet1!S71_SA34aCode,$AC:$AC,Sheet1!S71_A5CapexCode,$AD:$AD)","v":0},{"$f":"SUMIFS(Sheet1!S71_OY2AdjustedBudget,Sheet1!S71_SA34aCode,$AC:$AC,Sheet1!S71_A5CapexCode,$AD:$AD)","v":0},null,null,null,null,null,null,null,null,null,null,null,null,null,null,null,"0920","CE"]
["Nature Reserves",null,{"$f":"SUMIFS(Sheet1!S71_OriginalBudget,Sheet1!S71_SA34aCode,$AC:$AC,Sheet1!S71_A5CapexCode,$AD:$AD)","v":0},{"$f":"SUMIFS(Sheet1!S71_PreviousBudget,Sheet1!S71_SA34aCode,$AC:$AC,Sheet1!S71_A5CapexCode,$AD:$AD)","v":0},null,null,null,null,{"$f":"SUMIFS(Sheet1!S71_CurrentAdjustments,Sheet1!S71_SA34aCode,$AC:$AC,Sheet1!S71_A5CapexCode,$AD:$AD)","v":0},0,0,{"$f":"SUMIFS(Sheet1!S71_OY1AdjustedBudget,Sheet1!S71_SA34aCode,$AC:$AC,Sheet1!S71_A5CapexCode,$AD:$AD)","v":0},{"$f":"SUMIFS(Sheet1!S71_OY2AdjustedBudget,Sheet1!S71_SA34aCode,$AC:$AC,Sheet1!S71_A5CapexCode,$AD:$AD)","v":0},null,null,null,null,null,null,null,null,null,null,null,null,null,null,null,"0930","CE"]
["Public Ablution Facilities",null,{"$f":"SUMIFS(Sheet1!S71_OriginalBudget,Sheet1!S71_SA34aCode,$AC:$AC,Sheet1!S71_A5CapexCode,$AD:$AD)","v":0},{"$f":"SUMIFS(Sheet1!S71_PreviousBudget,Sheet1!S71_SA34aCode,$AC:$AC,Sheet1!S71_A5CapexCode,$AD:$AD)","v":0},null,null,null,null,{"$f":"SUMIFS(Sheet1!S71_CurrentAdjustments,Sheet1!S71_SA34aCode,$AC:$AC,Sheet1!S71_A5CapexCode,$AD:$AD)","v":0},0,0,{"$f":"SUMIFS(Sheet1!S71_OY1AdjustedBudget,Sheet1!S71_SA34aCode,$AC:$AC,Sheet1!S71_A5CapexCode,$AD:$AD)","v":0},{"$f":"SUMIFS(Sheet1!S71_OY2AdjustedBudget,Sheet1!S71_SA34aCode,$AC:$AC,Sheet1!S71_A5CapexCode,$AD:$AD)","v":0},null,null,null,null,null,null,null,null,null,null,null,null,null,null,null,"0940","CE"]
["Markets",null,{"$f":"SUMIFS(Sheet1!S71_OriginalBudget,Sheet1!S71_SA34aCode,$AC:$AC,Sheet1!S71_A5CapexCode,$AD:$AD)","v":0},{"$f":"SUMIFS(Sheet1!S71_PreviousBudget,Sheet1!S71_SA34aCode,$AC:$AC,Sheet1!S71_A5CapexCode,$AD:$AD)","v":0},null,null,null,null,{"$f":"SUMIFS(Sheet1!S71_CurrentAdjustments,Sheet1!S71_SA34aCode,$AC:$AC,Sheet1!S71_A5CapexCode,$AD:$AD)","v":0},0,0,{"$f":"SUMIFS(Sheet1!S71_OY1AdjustedBudget,Sheet1!S71_SA34aCode,$AC:$AC,Sheet1!S71_A5CapexCode,$AD:$AD)","v":0},{"$f":"SUMIFS(Sheet1!S71_OY2AdjustedBudget,Sheet1!S71_SA34aCode,$AC:$AC,Sheet1!S71_A5CapexCode,$AD:$AD)","v":0},null,null,null,null,null,null,null,null,null,null,null,null,null,null,null,"0950","CE"]
["Stalls",null,{"$f":"SUMIFS(Sheet1!S71_OriginalBudget,Sheet1!S71_SA34aCode,$AC:$AC,Sheet1!S71_A5CapexCode,$AD:$AD)","v":2608696},{"$f":"SUMIFS(Sheet1!S71_PreviousBudget,Sheet1!S71_SA34aCode,$AC:$AC,Sheet1!S71_A5CapexCode,$AD:$AD)","v":4347826},null,null,null,null,{"$f":"SUMIFS(Sheet1!S71_CurrentAdjustments,Sheet1!S71_SA34aCode,$AC:$AC,Sheet1!S71_A5CapexCode,$AD:$AD)","v":0},0,4347826,{"$f":"SUMIFS(Sheet1!S71_OY1AdjustedBudget,Sheet1!S71_SA34aCode,$AC:$AC,Sheet1!S71_A5CapexCode,$AD:$AD)","v":5652175},{"$f":"SUMIFS(Sheet1!S71_OY2AdjustedBudget,Sheet1!S71_SA34aCode,$AC:$AC,Sheet1!S71_A5CapexCode,$AD:$AD)","v":0},null,null,null,null,null,null,null,null,null,null,null,null,null,null,null,"0960","CE"]
["Abattoirs",null,{"$f":"SUMIFS(Sheet1!S71_OriginalBudget,Sheet1!S71_SA34aCode,$AC:$AC,Sheet1!S71_A5CapexCode,$AD:$AD)","v":0},{"$f":"SUMIFS(Sheet1!S71_PreviousBudget,Sheet1!S71_SA34aCode,$AC:$AC,Sheet1!S71_A5CapexCode,$AD:$AD)","v":0},null,null,null,null,{"$f":"SUMIFS(Sheet1!S71_CurrentAdjustments,Sheet1!S71_SA34aCode,$AC:$AC,Sheet1!S71_A5CapexCode,$AD:$AD)","v":0},0,0,{"$f":"SUMIFS(Sheet1!S71_OY1AdjustedBudget,Sheet1!S71_SA34aCode,$AC:$AC,Sheet1!S71_A5CapexCode,$AD:$AD)","v":0},{"$f":"SUMIFS(Sheet1!S71_OY2AdjustedBudget,Sheet1!S71_SA34aCode,$AC:$AC,Sheet1!S71_A5CapexCode,$AD:$AD)","v":0},null,null,null,null,null,null,null,null,null,null,null,null,null,null,null,"0970","CE"]
["Airports",null,{"$f":"SUMIFS(Sheet1!S71_OriginalBudget,Sheet1!S71_SA34aCode,$AC:$AC,Sheet1!S71_A5CapexCode,$AD:$AD)","v":0},{"$f":"SUMIFS(Sheet1!S71_PreviousBudget,Sheet1!S71_SA34aCode,$AC:$AC,Sheet1!S71_A5CapexCode,$AD:$AD)","v":0},null,null,null,null,{"$f":"SUMIFS(Sheet1!S71_CurrentAdjustments,Sheet1!S71_SA34aCode,$AC:$AC,Sheet1!S71_A5CapexCode,$AD:$AD)","v":0},0,0,{"$f":"SUMIFS(Sheet1!S71_OY1AdjustedBudget,Sheet1!S71_SA34aCode,$AC:$AC,Sheet1!S71_A5CapexCode,$AD:$AD)","v":0},{"$f":"SUMIFS(Sheet1!S71_OY2AdjustedBudget,Sheet1!S71_SA34aCode,$AC:$AC,Sheet1!S71_A5CapexCode,$AD:$AD)","v":0},null,null,null,null,null,null,null,null,null,null,null,null,null,null,null,"0980","CE"]
["Taxi Ranks/Bus Terminals",null,{"$f":"SUMIFS(Sheet1!S71_OriginalBudget,Sheet1!S71_SA34aCode,$AC:$AC,Sheet1!S71_A5CapexCode,$AD:$AD)","v":0},{"$f":"SUMIFS(Sheet1!S71_PreviousBudget,Sheet1!S71_SA34aCode,$AC:$AC,Sheet1!S71_A5CapexCode,$AD:$AD)","v":0},null,null,null,null,{"$f":"SUMIFS(Sheet1!S71_CurrentAdjustments,Sheet1!S71_SA34aCode,$AC:$AC,Sheet1!S71_A5CapexCode,$AD:$AD)","v":0},0,0,{"$f":"SUMIFS(Sheet1!S71_OY1AdjustedBudget,Sheet1!S71_SA34aCode,$AC:$AC,Sheet1!S71_A5CapexCode,$AD:$AD)","v":0},{"$f":"SUMIFS(Sheet1!S71_OY2AdjustedBudget,Sheet1!S71_SA34aCode,$AC:$AC,Sheet1!S71_A5CapexCode,$AD:$AD)","v":0},null,null,null,null,null,null,null,null,null,null,null,null,null,null,null,"0990","CE"]
["Capital Spares",null,{"$f":"SUMIFS(Sheet1!S71_OriginalBudget,Sheet1!S71_SA34aCode,$AC:$AC,Sheet1!S71_A5CapexCode,$AD:$AD)","v":0},{"$f":"SUMIFS(Sheet1!S71_PreviousBudget,Sheet1!S71_SA34aCode,$AC:$AC,Sheet1!S71_A5CapexCode,$AD:$AD)","v":0},null,null,null,null,{"$f":"SUMIFS(Sheet1!S71_CurrentAdjustments,Sheet1!S71_SA34aCode,$AC:$AC,Sheet1!S71_A5CapexCode,$AD:$AD)","v":0},0,0,{"$f":"SUMIFS(Sheet1!S71_OY1AdjustedBudget,Sheet1!S71_SA34aCode,$AC:$AC,Sheet1!S71_A5CapexCode,$AD:$AD)","v":0},{"$f":"SUMIFS(Sheet1!S71_OY2AdjustedBudget,Sheet1!S71_SA34aCode,$AC:$AC,Sheet1!S71_A5CapexCode,$AD:$AD)","v":0},null,null,null,null,null,null,null,null,null,null,null,null,null,null,null,"1000","CE"]
["Sport and Recreation Facilities",null,{"$f":"SUM(C101:C103)","v":8926608},{"$f":"SUM(D101:D103)","v":12641160},0,0,0,0,0,0,12641160,0,0,null,null,null,null,null,null,null,null,null,null,null,null,null,null,null,null,"CE"]
["Indoor Facilities",null,{"$f":"SUMIFS(Sheet1!S71_OriginalBudget,Sheet1!S71_SA34aCode,$AC:$AC,Sheet1!S71_A5CapexCode,$AD:$AD)","v":0},{"$f":"SUMIFS(Sheet1!S71_PreviousBudget,Sheet1!S71_SA34aCode,$AC:$AC,Sheet1!S71_A5CapexCode,$AD:$AD)","v":0},null,null,null,null,{"$f":"SUMIFS(Sheet1!S71_CurrentAdjustments,Sheet1!S71_SA34aCode,$AC:$AC,Sheet1!S71_A5CapexCode,$AD:$AD)","v":0},0,0,{"$f":"SUMIFS(Sheet1!S71_OY1AdjustedBudget,Sheet1!S71_SA34aCode,$AC:$AC,Sheet1!S71_A5CapexCode,$AD:$AD)","v":0},{"$f":"SUMIFS(Sheet1!S71_OY2AdjustedBudget,Sheet1!S71_SA34aCode,$AC:$AC,Sheet1!S71_A5CapexCode,$AD:$AD)","v":0},null,null,null,null,null,null,null,null,null,null,null,null,null,null,null,"1020","CE"]
["Outdoor Facilities",null,{"$f":"SUMIFS(Sheet1!S71_OriginalBudget,Sheet1!S71_SA34aCode,$AC:$AC,Sheet1!S71_A5CapexCode,$AD:$AD)","v":8926608},{"$f":"SUMIFS(Sheet1!S71_PreviousBudget,Sheet1!S71_SA34aCode,$AC:$AC,Sheet1!S71_A5CapexCode,$AD:$AD)","v":12641160},null,null,null,null,{"$f":"SUMIFS(Sheet1!S71_CurrentAdjustments,Sheet1!S71_SA34aCode,$AC:$AC,Sheet1!S71_A5CapexCode,$AD:$AD)","v":0},0,12641160,{"$f":"SUMIFS(Sheet1!S71_OY1AdjustedBudget,Sheet1!S71_SA34aCode,$AC:$AC,Sheet1!S71_A5CapexCode,$AD:$AD)","v":0},{"$f":"SUMIFS(Sheet1!S71_OY2AdjustedBudget,Sheet1!S71_SA34aCode,$AC:$AC,Sheet1!S71_A5CapexCode,$AD:$AD)","v":0},null,null,null,null,null,null,null,null,null,null,null,null,null,null,null,"1030","CE"]
["Capital Spares",null,{"$f":"SUMIFS(Sheet1!S71_OriginalBudget,Sheet1!S71_SA34aCode,$AC:$AC,Sheet1!S71_A5CapexCode,$AD:$AD)","v":0},{"$f":"SUMIFS(Sheet1!S71_PreviousBudget,Sheet1!S71_SA34aCode,$AC:$AC,Sheet1!S71_A5CapexCode,$AD:$AD)","v":0},null,null,null,null,{"$f":"SUMIFS(Sheet1!S71_CurrentAdjustments,Sheet1!S71_SA34aCode,$AC:$AC,Sheet1!S71_A5CapexCode,$AD:$AD)","v":0},0,0,{"$f":"SUMIFS(Sheet1!S71_OY1AdjustedBudget,Sheet1!S71_SA34aCode,$AC:$AC,Sheet1!S71_A5CapexCode,$AD:$AD)","v":0},{"$f":"SUMIFS(Sheet1!S71_OY2AdjustedBudget,Sheet1!S71_SA34aCode,$AC:$AC,Sheet1!S71_A5CapexCode,$AD:$AD)","v":0},null,null,null,null,null,null,null,null,null,null,null,null,null,null,null,"1040","CE"]
[null,null,null,null,null,null,null,null,null,null,null,null,null,null,null,null,null,null,null,null,null,null,null,null,null,null,null,null,null,"CE"]
["Heritage assets",null,{"$f":"SUM(C106:C110)","v":0},0,0,0,0,0,0,0,0,0,0,null,null,null,null,null,null,null,null,null,null,null,null,null,null,null,null,"CE"]
["Monuments",null,{"$f":"SUMIFS(Sheet1!S71_OriginalBudget,Sheet1!S71_SA34aCode,$AC:$AC,Sheet1!S71_A5CapexCode,$AD:$AD)","v":0},{"$f":"SUMIFS(Sheet1!S71_PreviousBudget,Sheet1!S71_SA34aCode,$AC:$AC,Sheet1!S71_A5CapexCode,$AD:$AD)","v":0},null,null,null,null,{"$f":"SUMIFS(Sheet1!S71_CurrentAdjustments,Sheet1!S71_SA34aCode,$AC:$AC,Sheet1!S71_A5CapexCode,$AD:$AD)","v":0},0,0,{"$f":"SUMIFS(Sheet1!S71_OY1AdjustedBudget,Sheet1!S71_SA34aCode,$AC:$AC,Sheet1!S71_A5CapexCode,$AD:$AD)","v":0},{"$f":"SUMIFS(Sheet1!S71_OY2AdjustedBudget,Sheet1!S71_SA34aCode,$AC:$AC,Sheet1!S71_A5CapexCode,$AD:$AD)","v":0},null,null,null,null,null,null,null,null,null,null,null,null,null,null,null,"1060","CE"]
["Historic Buildings",null,{"$f":"SUMIFS(Sheet1!S71_OriginalBudget,Sheet1!S71_SA34aCode,$AC:$AC,Sheet1!S71_A5CapexCode,$AD:$AD)","v":0},{"$f":"SUMIFS(Sheet1!S71_PreviousBudget,Sheet1!S71_SA34aCode,$AC:$AC,Sheet1!S71_A5CapexCode,$AD:$AD)","v":0},null,null,null,null,{"$f":"SUMIFS(Sheet1!S71_CurrentAdjustments,Sheet1!S71_SA34aCode,$AC:$AC,Sheet1!S71_A5CapexCode,$AD:$AD)","v":0},0,0,{"$f":"SUMIFS(Sheet1!S71_OY1AdjustedBudget,Sheet1!S71_SA34aCode,$AC:$AC,Sheet1!S71_A5CapexCode,$AD:$AD)","v":0},{"$f":"SUMIFS(Sheet1!S71_OY2AdjustedBudget,Sheet1!S71_SA34aCode,$AC:$AC,Sheet1!S71_A5CapexCode,$AD:$AD)","v":0},null,null,null,null,null,null,null,null,null,null,null,null,null,null,null,"1070","CE"]
["Works of Art",null,{"$f":"SUMIFS(Sheet1!S71_OriginalBudget,Sheet1!S71_SA34aCode,$AC:$AC,Sheet1!S71_A5CapexCode,$AD:$AD)","v":0},{"$f":"SUMIFS(Sheet1!S71_PreviousBudget,Sheet1!S71_SA34aCode,$AC:$AC,Sheet1!S71_A5CapexCode,$AD:$AD)","v":0},null,null,null,null,{"$f":"SUMIFS(Sheet1!S71_CurrentAdjustments,Sheet1!S71_SA34aCode,$AC:$AC,Sheet1!S71_A5CapexCode,$AD:$AD)","v":0},0,0,{"$f":"SUMIFS(Sheet1!S71_OY1AdjustedBudget,Sheet1!S71_SA34aCode,$AC:$AC,Sheet1!S71_A5CapexCode,$AD:$AD)","v":0},{"$f":"SUMIFS(Sheet1!S71_OY2AdjustedBudget,Sheet1!S71_SA34aCode,$AC:$AC,Sheet1!S71_A5CapexCode,$AD:$AD)","v":0},null,null,null,null,null,null,null,null,null,null,null,null,null,null,null,"1080","CE"]
["Conservation Areas",null,{"$f":"SUMIFS(Sheet1!S71_OriginalBudget,Sheet1!S71_SA34aCode,$AC:$AC,Sheet1!S71_A5CapexCode,$AD:$AD)","v":0},{"$f":"SUMIFS(Sheet1!S71_PreviousBudget,Sheet1!S71_SA34aCode,$AC:$AC,Sheet1!S71_A5CapexCode,$AD:$AD)","v":0},null,null,null,null,{"$f":"SUMIFS(Sheet1!S71_CurrentAdjustments,Sheet1!S71_SA34aCode,$AC:$AC,Sheet1!S71_A5CapexCode,$AD:$AD)","v":0},0,0,{"$f":"SUMIFS(Sheet1!S71_OY1AdjustedBudget,Sheet1!S71_SA34aCode,$AC:$AC,Sheet1!S71_A5CapexCode,$AD:$AD)","v":0},{"$f":"SUMIFS(Sheet1!S71_OY2AdjustedBudget,Sheet1!S71_SA34aCode,$AC:$AC,Sheet1!S71_A5CapexCode,$AD:$AD)","v":0},null,null,null,null,null,null,null,null,null,null,null,null,null,null,null,"1090","CE"]
["Other Heritage",null,{"$f":"SUMIFS(Sheet1!S71_OriginalBudget,Sheet1!S71_SA34aCode,$AC:$AC,Sheet1!S71_A5CapexCode,$AD:$AD)","v":0},{"$f":"SUMIFS(Sheet1!S71_PreviousBudget,Sheet1!S71_SA34aCode,$AC:$AC,Sheet1!S71_A5CapexCode,$AD:$AD)","v":0},null,null,null,null,{"$f":"SUMIFS(Sheet1!S71_CurrentAdjustments,Sheet1!S71_SA34aCode,$AC:$AC,Sheet1!S71_A5CapexCode,$AD:$AD)","v":0},0,0,{"$f":"SUMIFS(Sheet1!S71_OY1AdjustedBudget,Sheet1!S71_SA34aCode,$AC:$AC,Sheet1!S71_A5CapexCode,$AD:$AD)","v":0},{"$f":"SUMIFS(Sheet1!S71_OY2AdjustedBudget,Sheet1!S71_SA34aCode,$AC:$AC,Sheet1!S71_A5CapexCode,$AD:$AD)","v":0},null,null,null,null,null,null,null,null,null,null,null,null,null,null,null,"1100","CE"]
[null,null,null,null,null,null,null,null,null,null,null,null,null,null,null,null,null,null,null,null,null,null,null,null,null,null,null,null,null,"CE"]
["Investment properties",null,{"$f":"+C113+C116","v":0},0,0,0,0,0,0,0,0,{"$f":"+L113+L116","v":0},{"$f":"+M113+M116","v":0},null,null,null,null,null,null,null,null,null,null,null,null,null,null,null,null,"CE"]
["Revenue Generating",null,{"$f":"SUM(C114:C115)","v":0},{"$f":"SUM(D114:D115)","v":0},{"$f":"SUM(E114:E115)","v":0},0,0,0,0,0,0,0,0,null,null,null,null,null,null,null,null,null,null,null,null,null,null,null,null,"CE"]
["Improved Property",null,{"$f":"SUMIFS(Sheet1!S71_OriginalBudget,Sheet1!S71_SA34aCode,$AC:$AC,Sheet1!S71_A5CapexCode,$AD:$AD)","v":0},{"$f":"SUMIFS(Sheet1!S71_PreviousBudget,Sheet1!S71_SA34aCode,$AC:$AC,Sheet1!S71_A5CapexCode,$AD:$AD)","v":0},null,null,null,null,{"$f":"SUMIFS(Sheet1!S71_CurrentAdjustments,Sheet1!S71_SA34aCode,$AC:$AC,Sheet1!S71_A5CapexCode,$AD:$AD)","v":0},0,0,{"$f":"SUMIFS(Sheet1!S71_OY1AdjustedBudget,Sheet1!S71_SA34aCode,$AC:$AC,Sheet1!S71_A5CapexCode,$AD:$AD)","v":0},{"$f":"SUMIFS(Sheet1!S71_OY2AdjustedBudget,Sheet1!S71_SA34aCode,$AC:$AC,Sheet1!S71_A5CapexCode,$AD:$AD)","v":0},null,null,null,null,null,null,null,null,null,null,null,null,null,null,null,"1130","CE"]
["Unimproved Property",null,{"$f":"SUMIFS(Sheet1!S71_OriginalBudget,Sheet1!S71_SA34aCode,$AC:$AC,Sheet1!S71_A5CapexCode,$AD:$AD)","v":0},{"$f":"SUMIFS(Sheet1!S71_PreviousBudget,Sheet1!S71_SA34aCode,$AC:$AC,Sheet1!S71_A5CapexCode,$AD:$AD)","v":0},null,null,null,null,{"$f":"SUMIFS(Sheet1!S71_CurrentAdjustments,Sheet1!S71_SA34aCode,$AC:$AC,Sheet1!S71_A5CapexCode,$AD:$AD)","v":0},0,0,{"$f":"SUMIFS(Sheet1!S71_OY1AdjustedBudget,Sheet1!S71_SA34aCode,$AC:$AC,Sheet1!S71_A5CapexCode,$AD:$AD)","v":0},{"$f":"SUMIFS(Sheet1!S71_OY2AdjustedBudget,Sheet1!S71_SA34aCode,$AC:$AC,Sheet1!S71_A5CapexCode,$AD:$AD)","v":0},null,null,null,null,null,null,null,null,null,null,null,null,null,null,null,"1140","CE"]
["Non-revenue Generating",null,{"$f":"SUM(C117:C118)","v":0},{"$f":"SUM(D117:D118)","v":0},{"$f":"SUM(E117:E118)","v":0},0,0,0,0,0,0,0,0,null,null,null,null,null,null,null,null,null,null,null,null,null,null,null,null,"CE"]
["Improved Property",null,{"$f":"SUMIFS(Sheet1!S71_OriginalBudget,Sheet1!S71_SA34aCode,$AC:$AC,Sheet1!S71_A5CapexCode,$AD:$AD)","v":0},{"$f":"SUMIFS(Sheet1!S71_PreviousBudget,Sheet1!S71_SA34aCode,$AC:$AC,Sheet1!S71_A5CapexCode,$AD:$AD)","v":0},null,null,null,null,{"$f":"SUMIFS(Sheet1!S71_CurrentAdjustments,Sheet1!S71_SA34aCode,$AC:$AC,Sheet1!S71_A5CapexCode,$AD:$AD)","v":0},0,0,{"$f":"SUMIFS(Sheet1!S71_OY1AdjustedBudget,Sheet1!S71_SA34aCode,$AC:$AC,Sheet1!S71_A5CapexCode,$AD:$AD)","v":0},{"$f":"SUMIFS(Sheet1!S71_OY2AdjustedBudget,Sheet1!S71_SA34aCode,$AC:$AC,Sheet1!S71_A5CapexCode,$AD:$AD)","v":0},null,null,null,null,null,null,null,null,null,null,null,null,null,null,null,"1160","CE"]
["Unimproved Property",null,{"$f":"SUMIFS(Sheet1!S71_OriginalBudget,Sheet1!S71_SA34aCode,$AC:$AC,Sheet1!S71_A5CapexCode,$AD:$AD)","v":0},{"$f":"SUMIFS(Sheet1!S71_PreviousBudget,Sheet1!S71_SA34aCode,$AC:$AC,Sheet1!S71_A5CapexCode,$AD:$AD)","v":0},null,null,null,null,{"$f":"SUMIFS(Sheet1!S71_CurrentAdjustments,Sheet1!S71_SA34aCode,$AC:$AC,Sheet1!S71_A5CapexCode,$AD:$AD)","v":0},0,0,{"$f":"SUMIFS(Sheet1!S71_OY1AdjustedBudget,Sheet1!S71_SA34aCode,$AC:$AC,Sheet1!S71_A5CapexCode,$AD:$AD)","v":0},{"$f":"SUMIFS(Sheet1!S71_OY2AdjustedBudget,Sheet1!S71_SA34aCode,$AC:$AC,Sheet1!S71_A5CapexCode,$AD:$AD)","v":0},null,null,null,null,null,null,null,null,null,null,null,null,null,null,null,"1170","CE"]
[null,null,null,null,null,null,null,null,null,null,null,null,null,null,null,null,null,null,null,null,null,null,null,null,null,null,null,null,null,"CE"]
["Other assets",null,{"$f":"+C121+C133","v":5652175},{"$f":"+D121+D133","v":10082001},0,0,0,0,0,0,10082001,{"$f":"+L121+L133","v":20000000},{"$f":"+M121+M133","v":15000000},null,null,null,null,null,null,null,null,null,null,null,null,null,null,null,null,"CE"]
["Operational Buildings",null,{"$f":"SUM(C122:C132)","v":5652175},{"$f":"SUM(D122:D132)","v":10082001},0,0,0,0,0,0,10082001,{"$f":"SUM(L122:L132)","v":20000000},{"$f":"SUM(M122:M132)","v":15000000},null,null,null,null,null,null,null,null,null,null,null,null,null,null,null,null,"CE"]
["Municipal Offices",null,{"$f":"SUMIFS(Sheet1!S71_OriginalBudget,Sheet1!S71_SA34aCode,$AC:$AC,Sheet1!S71_A5CapexCode,$AD:$AD)","v":5217392},{"$f":"SUMIFS(Sheet1!S71_PreviousBudget,Sheet1!S71_SA34aCode,$AC:$AC,Sheet1!S71_A5CapexCode,$AD:$AD)","v":9647218},null,null,null,null,{"$f":"SUMIFS(Sheet1!S71_CurrentAdjustments,Sheet1!S71_SA34aCode,$AC:$AC,Sheet1!S71_A5CapexCode,$AD:$AD)","v":0},0,9647218,{"$f":"SUMIFS(Sheet1!S71_OY1AdjustedBudget,Sheet1!S71_SA34aCode,$AC:$AC,Sheet1!S71_A5CapexCode,$AD:$AD)","v":20000000},{"$f":"SUMIFS(Sheet1!S71_OY2AdjustedBudget,Sheet1!S71_SA34aCode,$AC:$AC,Sheet1!S71_A5CapexCode,$AD:$AD)","v":15000000},null,null,null,null,null,null,null,null,null,null,null,null,null,null,null,"1200","CE"]
["Pay/Enquiry Points",null,{"$f":"SUMIFS(Sheet1!S71_OriginalBudget,Sheet1!S71_SA34aCode,$AC:$AC,Sheet1!S71_A5CapexCode,$AD:$AD)","v":0},{"$f":"SUMIFS(Sheet1!S71_PreviousBudget,Sheet1!S71_SA34aCode,$AC:$AC,Sheet1!S71_A5CapexCode,$AD:$AD)","v":0},null,null,null,null,{"$f":"SUMIFS(Sheet1!S71_CurrentAdjustments,Sheet1!S71_SA34aCode,$AC:$AC,Sheet1!S71_A5CapexCode,$AD:$AD)","v":0},0,0,{"$f":"SUMIFS(Sheet1!S71_OY1AdjustedBudget,Sheet1!S71_SA34aCode,$AC:$AC,Sheet1!S71_A5CapexCode,$AD:$AD)","v":0},{"$f":"SUMIFS(Sheet1!S71_OY2AdjustedBudget,Sheet1!S71_SA34aCode,$AC:$AC,Sheet1!S71_A5CapexCode,$AD:$AD)","v":0},null,null,null,null,null,null,null,null,null,null,null,null,null,null,null,"1210","CE"]
["Building Plan Offices",null,{"$f":"SUMIFS(Sheet1!S71_OriginalBudget,Sheet1!S71_SA34aCode,$AC:$AC,Sheet1!S71_A5CapexCode,$AD:$AD)","v":0},{"$f":"SUMIFS(Sheet1!S71_PreviousBudget,Sheet1!S71_SA34aCode,$AC:$AC,Sheet1!S71_A5CapexCode,$AD:$AD)","v":0},null,null,null,null,{"$f":"SUMIFS(Sheet1!S71_CurrentAdjustments,Sheet1!S71_SA34aCode,$AC:$AC,Sheet1!S71_A5CapexCode,$AD:$AD)","v":0},0,0,{"$f":"SUMIFS(Sheet1!S71_OY1AdjustedBudget,Sheet1!S71_SA34aCode,$AC:$AC,Sheet1!S71_A5CapexCode,$AD:$AD)","v":0},{"$f":"SUMIFS(Sheet1!S71_OY2AdjustedBudget,Sheet1!S71_SA34aCode,$AC:$AC,Sheet1!S71_A5CapexCode,$AD:$AD)","v":0},null,null,null,null,null,null,null,null,null,null,null,null,null,null,null,"1220","CE"]
["Workshops",null,{"$f":"SUMIFS(Sheet1!S71_OriginalBudget,Sheet1!S71_SA34aCode,$AC:$AC,Sheet1!S71_A5CapexCode,$AD:$AD)","v":0},{"$f":"SUMIFS(Sheet1!S71_PreviousBudget,Sheet1!S71_SA34aCode,$AC:$AC,Sheet1!S71_A5CapexCode,$AD:$AD)","v":0},null,null,null,null,{"$f":"SUMIFS(Sheet1!S71_CurrentAdjustments,Sheet1!S71_SA34aCode,$AC:$AC,Sheet1!S71_A5CapexCode,$AD:$AD)","v":0},0,0,{"$f":"SUMIFS(Sheet1!S71_OY1AdjustedBudget,Sheet1!S71_SA34aCode,$AC:$AC,Sheet1!S71_A5CapexCode,$AD:$AD)","v":0},{"$f":"SUMIFS(Sheet1!S71_OY2AdjustedBudget,Sheet1!S71_SA34aCode,$AC:$AC,Sheet1!S71_A5CapexCode,$AD:$AD)","v":0},null,null,null,null,null,null,null,null,null,null,null,null,null,null,null,"1230","CE"]
["Yards",null,{"$f":"SUMIFS(Sheet1!S71_OriginalBudget,Sheet1!S71_SA34aCode,$AC:$AC,Sheet1!S71_A5CapexCode,$AD:$AD)","v":434783},{"$f":"SUMIFS(Sheet1!S71_PreviousBudget,Sheet1!S71_SA34aCode,$AC:$AC,Sheet1!S71_A5CapexCode,$AD:$AD)","v":434783},null,null,null,null,{"$f":"SUMIFS(Sheet1!S71_CurrentAdjustments,Sheet1!S71_SA34aCode,$AC:$AC,Sheet1!S71_A5CapexCode,$AD:$AD)","v":0},0,434783,{"$f":"SUMIFS(Sheet1!S71_OY1AdjustedBudget,Sheet1!S71_SA34aCode,$AC:$AC,Sheet1!S71_A5CapexCode,$AD:$AD)","v":0},{"$f":"SUMIFS(Sheet1!S71_OY2AdjustedBudget,Sheet1!S71_SA34aCode,$AC:$AC,Sheet1!S71_A5CapexCode,$AD:$AD)","v":0},null,null,null,null,null,null,null,null,null,null,null,null,null,null,null,"1240","CE"]
["Stores",null,{"$f":"SUMIFS(Sheet1!S71_OriginalBudget,Sheet1!S71_SA34aCode,$AC:$AC,Sheet1!S71_A5CapexCode,$AD:$AD)","v":0},{"$f":"SUMIFS(Sheet1!S71_PreviousBudget,Sheet1!S71_SA34aCode,$AC:$AC,Sheet1!S71_A5CapexCode,$AD:$AD)","v":0},null,null,null,null,{"$f":"SUMIFS(Sheet1!S71_CurrentAdjustments,Sheet1!S71_SA34aCode,$AC:$AC,Sheet1!S71_A5CapexCode,$AD:$AD)","v":0},0,0,{"$f":"SUMIFS(Sheet1!S71_OY1AdjustedBudget,Sheet1!S71_SA34aCode,$AC:$AC,Sheet1!S71_A5CapexCode,$AD:$AD)","v":0},{"$f":"SUMIFS(Sheet1!S71_OY2AdjustedBudget,Sheet1!S71_SA34aCode,$AC:$AC,Sheet1!S71_A5CapexCode,$AD:$AD)","v":0},null,null,null,null,null,null,null,null,null,null,null,null,null,null,null,"1250","CE"]
["Laboratories",null,{"$f":"SUMIFS(Sheet1!S71_OriginalBudget,Sheet1!S71_SA34aCode,$AC:$AC,Sheet1!S71_A5CapexCode,$AD:$AD)","v":0},{"$f":"SUMIFS(Sheet1!S71_PreviousBudget,Sheet1!S71_SA34aCode,$AC:$AC,Sheet1!S71_A5CapexCode,$AD:$AD)","v":0},null,null,null,null,{"$f":"SUMIFS(Sheet1!S71_CurrentAdjustments,Sheet1!S71_SA34aCode,$AC:$AC,Sheet1!S71_A5CapexCode,$AD:$AD)","v":0},0,0,{"$f":"SUMIFS(Sheet1!S71_OY1AdjustedBudget,Sheet1!S71_SA34aCode,$AC:$AC,Sheet1!S71_A5CapexCode,$AD:$AD)","v":0},{"$f":"SUMIFS(Sheet1!S71_OY2AdjustedBudget,Sheet1!S71_SA34aCode,$AC:$AC,Sheet1!S71_A5CapexCode,$AD:$AD)","v":0},null,null,null,null,null,null,null,null,null,null,null,null,null,null,null,"1260","CE"]
["Training Centres",null,{"$f":"SUMIFS(Sheet1!S71_OriginalBudget,Sheet1!S71_SA34aCode,$AC:$AC,Sheet1!S71_A5CapexCode,$AD:$AD)","v":0},{"$f":"SUMIFS(Sheet1!S71_PreviousBudget,Sheet1!S71_SA34aCode,$AC:$AC,Sheet1!S71_A5CapexCode,$AD:$AD)","v":0},null,null,null,null,{"$f":"SUMIFS(Sheet1!S71_CurrentAdjustments,Sheet1!S71_SA34aCode,$AC:$AC,Sheet1!S71_A5CapexCode,$AD:$AD)","v":0},0,0,{"$f":"SUMIFS(Sheet1!S71_OY1AdjustedBudget,Sheet1!S71_SA34aCode,$AC:$AC,Sheet1!S71_A5CapexCode,$AD:$AD)","v":0},{"$f":"SUMIFS(Sheet1!S71_OY2AdjustedBudget,Sheet1!S71_SA34aCode,$AC:$AC,Sheet1!S71_A5CapexCode,$AD:$AD)","v":0},null,null,null,null,null,null,null,null,null,null,null,null,null,null,null,"1270","CE"]
["Manufacturing Plant",null,{"$f":"SUMIFS(Sheet1!S71_OriginalBudget,Sheet1!S71_SA34aCode,$AC:$AC,Sheet1!S71_A5CapexCode,$AD:$AD)","v":0},{"$f":"SUMIFS(Sheet1!S71_PreviousBudget,Sheet1!S71_SA34aCode,$AC:$AC,Sheet1!S71_A5CapexCode,$AD:$AD)","v":0},null,null,null,null,{"$f":"SUMIFS(Sheet1!S71_CurrentAdjustments,Sheet1!S71_SA34aCode,$AC:$AC,Sheet1!S71_A5CapexCode,$AD:$AD)","v":0},0,0,{"$f":"SUMIFS(Sheet1!S71_OY1AdjustedBudget,Sheet1!S71_SA34aCode,$AC:$AC,Sheet1!S71_A5CapexCode,$AD:$AD)","v":0},{"$f":"SUMIFS(Sheet1!S71_OY2AdjustedBudget,Sheet1!S71_SA34aCode,$AC:$AC,Sheet1!S71_A5CapexCode,$AD:$AD)","v":0},null,null,null,null,null,null,null,null,null,null,null,null,null,null,null,"1280","CE"]
["Depots",null,{"$f":"SUMIFS(Sheet1!S71_OriginalBudget,Sheet1!S71_SA34aCode,$AC:$AC,Sheet1!S71_A5CapexCode,$AD:$AD)","v":0},{"$f":"SUMIFS(Sheet1!S71_PreviousBudget,Sheet1!S71_SA34aCode,$AC:$AC,Sheet1!S71_A5CapexCode,$AD:$AD)","v":0},null,null,null,null,{"$f":"SUMIFS(Sheet1!S71_CurrentAdjustments,Sheet1!S71_SA34aCode,$AC:$AC,Sheet1!S71_A5CapexCode,$AD:$AD)","v":0},0,0,{"$f":"SUMIFS(Sheet1!S71_OY1AdjustedBudget,Sheet1!S71_SA34aCode,$AC:$AC,Sheet1!S71_A5CapexCode,$AD:$AD)","v":0},{"$f":"SUMIFS(Sheet1!S71_OY2AdjustedBudget,Sheet1!S71_SA34aCode,$AC:$AC,Sheet1!S71_A5CapexCode,$AD:$AD)","v":0},null,null,null,null,null,null,null,null,null,null,null,null,null,null,null,"1290","CE"]
["Capital Spares",null,{"$f":"SUMIFS(Sheet1!S71_OriginalBudget,Sheet1!S71_SA34aCode,$AC:$AC,Sheet1!S71_A5CapexCode,$AD:$AD)","v":0},{"$f":"SUMIFS(Sheet1!S71_PreviousBudget,Sheet1!S71_SA34aCode,$AC:$AC,Sheet1!S71_A5CapexCode,$AD:$AD)","v":0},null,null,null,null,{"$f":"SUMIFS(Sheet1!S71_CurrentAdjustments,Sheet1!S71_SA34aCode,$AC:$AC,Sheet1!S71_A5CapexCode,$AD:$AD)","v":0},0,0,{"$f":"SUMIFS(Sheet1!S71_OY1AdjustedBudget,Sheet1!S71_SA34aCode,$AC:$AC,Sheet1!S71_A5CapexCode,$AD:$AD)","v":0},{"$f":"SUMIFS(Sheet1!S71_OY2AdjustedBudget,Sheet1!S71_SA34aCode,$AC:$AC,Sheet1!S71_A5CapexCode,$AD:$AD)","v":0},null,null,null,null,null,null,null,null,null,null,null,null,null,null,null,"1300","CE"]
["Housing",null,{"$f":"SUM(C134:C136)","v":0},{"$f":"SUM(D134:D136)","v":0},{"$f":"SUM(E134:E136)","v":0},0,0,0,0,0,0,0,0,null,null,null,null,null,null,null,null,null,null,null,null,null,null,null,null,"CE"]
["Staff Housing",null,{"$f":"SUMIFS(Sheet1!S71_OriginalBudget,Sheet1!S71_SA34aCode,$AC:$AC,Sheet1!S71_A5CapexCode,$AD:$AD)","v":0},{"$f":"SUMIFS(Sheet1!S71_PreviousBudget,Sheet1!S71_SA34aCode,$AC:$AC,Sheet1!S71_A5CapexCode,$AD:$AD)","v":0},null,null,null,null,{"$f":"SUMIFS(Sheet1!S71_CurrentAdjustments,Sheet1!S71_SA34aCode,$AC:$AC,Sheet1!S71_A5CapexCode,$AD:$AD)","v":0},0,0,{"$f":"SUMIFS(Sheet1!S71_OY1AdjustedBudget,Sheet1!S71_SA34aCode,$AC:$AC,Sheet1!S71_A5CapexCode,$AD:$AD)","v":0},{"$f":"SUMIFS(Sheet1!S71_OY2AdjustedBudget,Sheet1!S71_SA34aCode,$AC:$AC,Sheet1!S71_A5CapexCode,$AD:$AD)","v":0},null,null,null,null,null,null,null,null,null,null,null,null,null,null,null,"1320","CE"]
["Social Housing",null,{"$f":"SUMIFS(Sheet1!S71_OriginalBudget,Sheet1!S71_SA34aCode,$AC:$AC,Sheet1!S71_A5CapexCode,$AD:$AD)","v":0},{"$f":"SUMIFS(Sheet1!S71_PreviousBudget,Sheet1!S71_SA34aCode,$AC:$AC,Sheet1!S71_A5CapexCode,$AD:$AD)","v":0},null,null,null,null,{"$f":"SUMIFS(Sheet1!S71_CurrentAdjustments,Sheet1!S71_SA34aCode,$AC:$AC,Sheet1!S71_A5CapexCode,$AD:$AD)","v":0},0,0,{"$f":"SUMIFS(Sheet1!S71_OY1AdjustedBudget,Sheet1!S71_SA34aCode,$AC:$AC,Sheet1!S71_A5CapexCode,$AD:$AD)","v":0},{"$f":"SUMIFS(Sheet1!S71_OY2AdjustedBudget,Sheet1!S71_SA34aCode,$AC:$AC,Sheet1!S71_A5CapexCode,$AD:$AD)","v":0},null,null,null,null,null,null,null,null,null,null,null,null,null,null,null,"1330","CE"]
["Capital Spares",null,{"$f":"SUMIFS(Sheet1!S71_OriginalBudget,Sheet1!S71_SA34aCode,$AC:$AC,Sheet1!S71_A5CapexCode,$AD:$AD)","v":0},{"$f":"SUMIFS(Sheet1!S71_PreviousBudget,Sheet1!S71_SA34aCode,$AC:$AC,Sheet1!S71_A5CapexCode,$AD:$AD)","v":0},null,null,null,null,{"$f":"SUMIFS(Sheet1!S71_CurrentAdjustments,Sheet1!S71_SA34aCode,$AC:$AC,Sheet1!S71_A5CapexCode,$AD:$AD)","v":0},0,0,{"$f":"SUMIFS(Sheet1!S71_OY1AdjustedBudget,Sheet1!S71_SA34aCode,$AC:$AC,Sheet1!S71_A5CapexCode,$AD:$AD)","v":0},{"$f":"SUMIFS(Sheet1!S71_OY2AdjustedBudget,Sheet1!S71_SA34aCode,$AC:$AC,Sheet1!S71_A5CapexCode,$AD:$AD)","v":0},null,null,null,null,null,null,null,null,null,null,null,null,null,null,null,"1340","CE"]
[null,null,null,null,null,null,null,null,null,null,null,null,null,null,null,null,null,null,null,null,null,null,null,null,null,null,null,null,null,"CE"]
["Biological or Cultivated Assets",null,{"$f":"SUM(C139:C139)","v":0},0,0,0,0,0,0,{"$f":"SUM(E138:I138)","v":0},{"$f":"IF(D138=0,C138+J138,D138+J138)","v":0},0,0,null,null,null,null,null,null,null,null,null,null,null,null,null,null,null,null,"CE"]
["Biological or Cultivated Assets",null,{"$f":"SUMIFS(Sheet1!S71_OriginalBudget,Sheet1!S71_SA34aCode,$AC:$AC,Sheet1!S71_A5CapexCode,$AD:$AD)","v":0},{"$f":"SUMIFS(Sheet1!S71_PreviousBudget,Sheet1!S71_SA34aCode,$AC:$AC,Sheet1!S71_A5CapexCode,$AD:$AD)","v":0},null,null,null,null,{"$f":"SUMIFS(Sheet1!S71_CurrentAdjustments,Sheet1!S71_SA34aCode,$AC:$AC,Sheet1!S71_A5CapexCode,$AD:$AD)","v":0},0,0,{"$f":"SUMIFS(Sheet1!S71_OY1AdjustedBudget,Sheet1!S71_SA34aCode,$AC:$AC,Sheet1!S71_A5CapexCode,$AD:$AD)","v":0},{"$f":"SUMIFS(Sheet1!S71_OY2AdjustedBudget,Sheet1!S71_SA34aCode,$AC:$AC,Sheet1!S71_A5CapexCode,$AD:$AD)","v":0},null,null,null,null,null,null,null,null,null,null,null,null,null,null,null,"1360","CE"]
[null,null,null,null,null,null,null,null,null,null,null,null,null,null,null,null,null,null,null,null,null,null,null,null,null,null,null,null,null,"CE"]
["Intangible Assets",null,{"$f":"SUM(C142:C143)","v":0},{"$f":"SUM(D142:D143)","v":0},0,0,0,0,0,0,0,{"$f":"SUM(L142:L143)","v":0},{"$f":"SUM(M142:M143)","v":0},null,null,null,null,null,null,null,null,null,null,null,null,null,null,null,null,"CE"]
["Servitudes",null,{"$f":"SUMIFS(Sheet1!S71_OriginalBudget,Sheet1!S71_SA34aCode,$AC:$AC,Sheet1!S71_A5CapexCode,$AD:$AD)","v":0},{"$f":"SUMIFS(Sheet1!S71_PreviousBudget,Sheet1!S71_SA34aCode,$AC:$AC,Sheet1!S71_A5CapexCode,$AD:$AD)","v":0},null,null,null,null,{"$f":"SUMIFS(Sheet1!S71_CurrentAdjustments,Sheet1!S71_SA34aCode,$AC:$AC,Sheet1!S71_A5CapexCode,$AD:$AD)","v":0},0,0,{"$f":"SUMIFS(Sheet1!S71_OY1AdjustedBudget,Sheet1!S71_SA34aCode,$AC:$AC,Sheet1!S71_A5CapexCode,$AD:$AD)","v":0},{"$f":"SUMIFS(Sheet1!S71_OY2AdjustedBudget,Sheet1!S71_SA34aCode,$AC:$AC,Sheet1!S71_A5CapexCode,$AD:$AD)","v":0},null,null,null,null,null,null,null,null,null,null,null,null,null,null,null,"1380","CE"]
["Licences and Rights",null,{"$f":"SUM(C144:C149)","v":0},{"$f":"SUM(D144:D149)","v":0},0,0,0,0,0,0,0,{"$f":"SUM(L144:L149)","v":0},{"$f":"SUM(M144:M149)","v":0},null,null,null,null,null,null,null,null,null,null,null,null,null,null,null,null,"CE"]
["Water Rights",null,{"$f":"SUMIFS(Sheet1!S71_OriginalBudget,Sheet1!S71_SA34aCode,$AC:$AC,Sheet1!S71_A5CapexCode,$AD:$AD)","v":0},{"$f":"SUMIFS(Sheet1!S71_PreviousBudget,Sheet1!S71_SA34aCode,$AC:$AC,Sheet1!S71_A5CapexCode,$AD:$AD)","v":0},null,null,null,null,{"$f":"SUMIFS(Sheet1!S71_CurrentAdjustments,Sheet1!S71_SA34aCode,$AC:$AC,Sheet1!S71_A5CapexCode,$AD:$AD)","v":0},0,0,{"$f":"SUMIFS(Sheet1!S71_OY1AdjustedBudget,Sheet1!S71_SA34aCode,$AC:$AC,Sheet1!S71_A5CapexCode,$AD:$AD)","v":0},{"$f":"SUMIFS(Sheet1!S71_OY2AdjustedBudget,Sheet1!S71_SA34aCode,$AC:$AC,Sheet1!S71_A5CapexCode,$AD:$AD)","v":0},null,null,null,null,null,null,null,null,null,null,null,null,null,null,null,"1400","CE"]
["Effluent Licenses",null,{"$f":"SUMIFS(Sheet1!S71_OriginalBudget,Sheet1!S71_SA34aCode,$AC:$AC,Sheet1!S71_A5CapexCode,$AD:$AD)","v":0},{"$f":"SUMIFS(Sheet1!S71_PreviousBudget,Sheet1!S71_SA34aCode,$AC:$AC,Sheet1!S71_A5CapexCode,$AD:$AD)","v":0},null,null,null,null,{"$f":"SUMIFS(Sheet1!S71_CurrentAdjustments,Sheet1!S71_SA34aCode,$AC:$AC,Sheet1!S71_A5CapexCode,$AD:$AD)","v":0},0,0,{"$f":"SUMIFS(Sheet1!S71_OY1AdjustedBudget,Sheet1!S71_SA34aCode,$AC:$AC,Sheet1!S71_A5CapexCode,$AD:$AD)","v":0},{"$f":"SUMIFS(Sheet1!S71_OY2AdjustedBudget,Sheet1!S71_SA34aCode,$AC:$AC,Sheet1!S71_A5CapexCode,$AD:$AD)","v":0},null,null,null,null,null,null,null,null,null,null,null,null,null,null,null,"1410","CE"]
["Solid Waste Licenses",null,{"$f":"SUMIFS(Sheet1!S71_OriginalBudget,Sheet1!S71_SA34aCode,$AC:$AC,Sheet1!S71_A5CapexCode,$AD:$AD)","v":0},{"$f":"SUMIFS(Sheet1!S71_PreviousBudget,Sheet1!S71_SA34aCode,$AC:$AC,Sheet1!S71_A5CapexCode,$AD:$AD)","v":0},null,null,null,null,{"$f":"SUMIFS(Sheet1!S71_CurrentAdjustments,Sheet1!S71_SA34aCode,$AC:$AC,Sheet1!S71_A5CapexCode,$AD:$AD)","v":0},0,0,{"$f":"SUMIFS(Sheet1!S71_OY1AdjustedBudget,Sheet1!S71_SA34aCode,$AC:$AC,Sheet1!S71_A5CapexCode,$AD:$AD)","v":0},{"$f":"SUMIFS(Sheet1!S71_OY2AdjustedBudget,Sheet1!S71_SA34aCode,$AC:$AC,Sheet1!S71_A5CapexCode,$AD:$AD)","v":0},null,null,null,null,null,null,null,null,null,null,null,null,null,null,null,"1420","CE"]
["Computer Software and Applications",null,{"$f":"SUMIFS(Sheet1!S71_OriginalBudget,Sheet1!S71_SA34aCode,$AC:$AC,Sheet1!S71_A5CapexCode,$AD:$AD)","v":0},{"$f":"SUMIFS(Sheet1!S71_PreviousBudget,Sheet1!S71_SA34aCode,$AC:$AC,Sheet1!S71_A5CapexCode,$AD:$AD)","v":0},null,null,null,null,{"$f":"SUMIFS(Sheet1!S71_CurrentAdjustments,Sheet1!S71_SA34aCode,$AC:$AC,Sheet1!S71_A5CapexCode,$AD:$AD)","v":0},0,0,{"$f":"SUMIFS(Sheet1!S71_OY1AdjustedBudget,Sheet1!S71_SA34aCode,$AC:$AC,Sheet1!S71_A5CapexCode,$AD:$AD)","v":0},{"$f":"SUMIFS(Sheet1!S71_OY2AdjustedBudget,Sheet1!S71_SA34aCode,$AC:$AC,Sheet1!S71_A5CapexCode,$AD:$AD)","v":0},null,null,null,null,null,null,null,null,null,null,null,null,null,null,null,"1430","CE"]
["Load Settlement Software Applications",null,{"$f":"SUMIFS(Sheet1!S71_OriginalBudget,Sheet1!S71_SA34aCode,$AC:$AC,Sheet1!S71_A5CapexCode,$AD:$AD)","v":0},{"$f":"SUMIFS(Sheet1!S71_PreviousBudget,Sheet1!S71_SA34aCode,$AC:$AC,Sheet1!S71_A5CapexCode,$AD:$AD)","v":0},null,null,null,null,{"$f":"SUMIFS(Sheet1!S71_CurrentAdjustments,Sheet1!S71_SA34aCode,$AC:$AC,Sheet1!S71_A5CapexCode,$AD:$AD)","v":0},0,0,{"$f":"SUMIFS(Sheet1!S71_OY1AdjustedBudget,Sheet1!S71_SA34aCode,$AC:$AC,Sheet1!S71_A5CapexCode,$AD:$AD)","v":0},{"$f":"SUMIFS(Sheet1!S71_OY2AdjustedBudget,Sheet1!S71_SA34aCode,$AC:$AC,Sheet1!S71_A5CapexCode,$AD:$AD)","v":0},null,null,null,null,null,null,null,null,null,null,null,null,null,null,null,"1440","CE"]
["Unspecified",null,{"$f":"SUMIFS(Sheet1!S71_OriginalBudget,Sheet1!S71_SA34aCode,$AC:$AC,Sheet1!S71_A5CapexCode,$AD:$AD)","v":0},{"$f":"SUMIFS(Sheet1!S71_PreviousBudget,Sheet1!S71_SA34aCode,$AC:$AC,Sheet1!S71_A5CapexCode,$AD:$AD)","v":0},null,null,null,null,{"$f":"SUMIFS(Sheet1!S71_CurrentAdjustments,Sheet1!S71_SA34aCode,$AC:$AC,Sheet1!S71_A5CapexCode,$AD:$AD)","v":0},0,0,{"$f":"SUMIFS(Sheet1!S71_OY1AdjustedBudget,Sheet1!S71_SA34aCode,$AC:$AC,Sheet1!S71_A5CapexCode,$AD:$AD)","v":0},{"$f":"SUMIFS(Sheet1!S71_OY2AdjustedBudget,Sheet1!S71_SA34aCode,$AC:$AC,Sheet1!S71_A5CapexCode,$AD:$AD)","v":0},null,null,null,null,null,null,null,null,null,null,null,null,null,null,null,"1450","CE"]
[null,null,null,null,null,null,null,null,null,null,null,null,null,null,null,null,null,null,null,null,null,null,null,null,null,null,null,null,null,"CE"]
["Computer Equipment",null,{"$f":"SUM(C152:C152)","v":956523},991501,0,0,0,0,0,0,991501,0,0,null,null,null,null,null,null,null,null,null,null,null,null,null,null,null,null,"CE"]
["Computer Equipment",null,{"$f":"SUMIFS(Sheet1!S71_OriginalBudget,Sheet1!S71_SA34aCode,$AC:$AC,Sheet1!S71_A5CapexCode,$AD:$AD)","v":956523},{"$f":"SUMIFS(Sheet1!S71_PreviousBudget,Sheet1!S71_SA34aCode,$AC:$AC,Sheet1!S71_A5CapexCode,$AD:$AD)","v":991501},null,null,null,null,{"$f":"SUMIFS(Sheet1!S71_CurrentAdjustments,Sheet1!S71_SA34aCode,$AC:$AC,Sheet1!S71_A5CapexCode,$AD:$AD)","v":0},0,991501,{"$f":"SUMIFS(Sheet1!S71_OY1AdjustedBudget,Sheet1!S71_SA34aCode,$AC:$AC,Sheet1!S71_A5CapexCode,$AD:$AD)","v":0},{"$f":"SUMIFS(Sheet1!S71_OY2AdjustedBudget,Sheet1!S71_SA34aCode,$AC:$AC,Sheet1!S71_A5CapexCode,$AD:$AD)","v":0},null,null,null,null,null,null,null,null,null,null,null,null,null,null,null,"1470","CE"]
[null,null,null,null,null,null,null,null,null,null,null,null,null,null,null,null,null,null,null,null,null,null,null,null,null,null,null,null,null,"CE"]
["Furniture and Office Equipment",null,{"$f":"SUM(C155:C155)","v":1739129},1686955,0,0,0,0,0,0,1686955,0,0,null,null,null,null,null,null,null,null,null,null,null,null,null,null,null,null,"CE"]
["Furniture and Office Equipment",null,{"$f":"SUMIFS(Sheet1!S71_OriginalBudget,Sheet1!S71_SA34aCode,$AC:$AC,Sheet1!S71_A5CapexCode,$AD:$AD)","v":1739129},{"$f":"SUMIFS(Sheet1!S71_PreviousBudget,Sheet1!S71_SA34aCode,$AC:$AC,Sheet1!S71_A5CapexCode,$AD:$AD)","v":1686955},null,null,null,null,{"$f":"SUMIFS(Sheet1!S71_CurrentAdjustments,Sheet1!S71_SA34aCode,$AC:$AC,Sheet1!S71_A5CapexCode,$AD:$AD)","v":0},0,1686955,{"$f":"SUMIFS(Sheet1!S71_OY1AdjustedBudget,Sheet1!S71_SA34aCode,$AC:$AC,Sheet1!S71_A5CapexCode,$AD:$AD)","v":0},{"$f":"SUMIFS(Sheet1!S71_OY2AdjustedBudget,Sheet1!S71_SA34aCode,$AC:$AC,Sheet1!S71_A5CapexCode,$AD:$AD)","v":0},null,null,null,null,null,null,null,null,null,null,null,null,null,null,null,"1490","CE"]
[null,null,null,null,null,null,null,null,null,null,null,null,null,null,null,null,null,null,null,null,null,null,null,null,null,null,null,null,null,"CE"]
["Machinery and Equipment",null,{"$f":"SUM(C158:C158)","v":3039123},3116314,0,0,0,0,0,0,3116314,0,0,null,null,null,null,null,null,null,null,null,null,null,null,null,null,null,null,"CE"]
["Machinery and Equipment",null,{"$f":"SUMIFS(Sheet1!S71_OriginalBudget,Sheet1!S71_SA34aCode,$AC:$AC,Sheet1!S71_A5CapexCode,$AD:$AD)","v":3039123},{"$f":"SUMIFS(Sheet1!S71_PreviousBudget,Sheet1!S71_SA34aCode,$AC:$AC,Sheet1!S71_A5CapexCode,$AD:$AD)","v":3116314},null,null,null,null,{"$f":"SUMIFS(Sheet1!S71_CurrentAdjustments,Sheet1!S71_SA34aCode,$AC:$AC,Sheet1!S71_A5CapexCode,$AD:$AD)","v":0},0,3116314,{"$f":"SUMIFS(Sheet1!S71_OY1AdjustedBudget,Sheet1!S71_SA34aCode,$AC:$AC,Sheet1!S71_A5CapexCode,$AD:$AD)","v":0},{"$f":"SUMIFS(Sheet1!S71_OY2AdjustedBudget,Sheet1!S71_SA34aCode,$AC:$AC,Sheet1!S71_A5CapexCode,$AD:$AD)","v":0},null,null,null,null,null,null,null,null,null,null,null,null,null,null,null,"1510","CE"]
[null,null,null,null,null,null,null,null,null,null,null,null,null,null,null,null,null,null,null,null,null,null,null,null,null,null,null,null,null,"CE"]
["Transport Assets",null,{"$f":"SUM(C161:C161)","v":10365215},11811740,0,0,0,0,0,0,11811740,0,0,null,null,null,null,null,null,null,null,null,null,null,null,null,null,null,null,"CE"]
["Transport Assets",null,{"$f":"SUMIFS(Sheet1!S71_OriginalBudget,Sheet1!S71_SA34aCode,$AC:$AC,Sheet1!S71_A5CapexCode,$AD:$AD)","v":10365215},{"$f":"SUMIFS(Sheet1!S71_PreviousBudget,Sheet1!S71_SA34aCode,$AC:$AC,Sheet1!S71_A5CapexCode,$AD:$AD)","v":11811740},null,null,null,null,{"$f":"SUMIFS(Sheet1!S71_CurrentAdjustments,Sheet1!S71_SA34aCode,$AC:$AC,Sheet1!S71_A5CapexCode,$AD:$AD)","v":0},0,11811740,{"$f":"SUMIFS(Sheet1!S71_OY1AdjustedBudget,Sheet1!S71_SA34aCode,$AC:$AC,Sheet1!S71_A5CapexCode,$AD:$AD)","v":0},{"$f":"SUMIFS(Sheet1!S71_OY2AdjustedBudget,Sheet1!S71_SA34aCode,$AC:$AC,Sheet1!S71_A5CapexCode,$AD:$AD)","v":0},null,null,null,null,null,null,null,null,null,null,null,null,null,null,null,"1530","CE"]
[null,null,null,null,null,null,null,null,null,null,null,null,null,null,null,null,null,null,null,null,null,null,null,null,null,null,null,null,null,"CE"]
["Land",null,{"$f":"SUM(C164:C164)","v":0},0,0,0,0,0,0,0,0,0,0,null,null,null,null,null,null,null,null,null,null,null,null,null,null,null,null,"CE"]
["Land",null,{"$f":"SUMIFS(Sheet1!S71_OriginalBudget,Sheet1!S71_SA34aCode,$AC:$AC,Sheet1!S71_A5CapexCode,$AD:$AD)","v":0},{"$f":"SUMIFS(Sheet1!S71_PreviousBudget,Sheet1!S71_SA34aCode,$AC:$AC,Sheet1!S71_A5CapexCode,$AD:$AD)","v":0},null,null,null,null,{"$f":"SUMIFS(Sheet1!S71_CurrentAdjustments,Sheet1!S71_SA34aCode,$AC:$AC,Sheet1!S71_A5CapexCode,$AD:$AD)","v":0},0,0,{"$f":"SUMIFS(Sheet1!S71_OY1AdjustedBudget,Sheet1!S71_SA34aCode,$AC:$AC,Sheet1!S71_A5CapexCode,$AD:$AD)","v":0},{"$f":"SUMIFS(Sheet1!S71_OY2AdjustedBudget,Sheet1!S71_SA34aCode,$AC:$AC,Sheet1!S71_A5CapexCode,$AD:$AD)","v":0},null,null,null,null,null,null,null,null,null,null,null,null,null,null,null,"1550","CE"]
[null,null,null,null,null,null,null,null,null,null,null,null,null,null,null,null,null,null,null,null,null,null,null,null,null,null,null,null,null,"CE"]
["Zoo's, Marine and Non-biological Animals",null,{"$f":"SUM(C167:C167)","v":0},0,0,0,0,0,0,0,0,0,0]
["Zoo's, Marine and Non-biological Animals",null,{"$f":"SUMIFS(Sheet1!S71_OriginalBudget,Sheet1!S71_SA34aCode,$AC:$AC,Sheet1!S71_A5CapexCode,$AD:$AD)","v":0},{"$f":"SUMIFS(Sheet1!S71_PreviousBudget,Sheet1!S71_SA34aCode,$AC:$AC,Sheet1!S71_A5CapexCode,$AD:$AD)","v":0},null,null,null,null,{"$f":"SUMIFS(Sheet1!S71_CurrentAdjustments,Sheet1!S71_SA34aCode,$AC:$AC,Sheet1!S71_A5CapexCode,$AD:$AD)","v":0},0,0,{"$f":"SUMIFS(Sheet1!S71_OY1AdjustedBudget,Sheet1!S71_SA34aCode,$AC:$AC,Sheet1!S71_A5CapexCode,$AD:$AD)","v":0},{"$f":"SUMIFS(Sheet1!S71_OY2AdjustedBudget,Sheet1!S71_SA34aCode,$AC:$AC,Sheet1!S71_A5CapexCode,$AD:$AD)","v":0},null,null,null,null,null,null,null,null,null,null,null,null,null,null,null,"1570"]
[null,null,{"$f":"SUMIFS(Sheet1!S71_OriginalBudget,Sheet1!S71_SA34aCode,$AC:$AC,Sheet1!S71_A5CapexCode,$AD:$AD)","v":0},{"$f":"SUMIFS(Sheet1!S71_PreviousBudget,Sheet1!S71_SA34aCode,$AC:$AC,Sheet1!S71_A5CapexCode,$AD:$AD)","v":0},null,null,null,null,{"$f":"SUMIFS(Sheet1!S71_CurrentAdjustments,Sheet1!S71_SA34aCode,$AC:$AC,Sheet1!S71_A5CapexCode,$AD:$AD)","v":0},null,null,{"$f":"SUMIFS(Sheet1!S71_OY1AdjustedBudget,Sheet1!S71_SA34aCode,$AC:$AC,Sheet1!S71_A5CapexCode,$AD:$AD)","v":0},{"$f":"SUMIFS(Sheet1!S71_OY2AdjustedBudget,Sheet1!S71_SA34aCode,$AC:$AC,Sheet1!S71_A5CapexCode,$AD:$AD)","v":0}]
["Living resources",null,{"$f":"+C170+C173","v":0},{"$f":"+D170+D173","v":0},0,0,0,0,0,{"$f":"SUM(E169:I169)","v":0},{"$f":"IF(D169=0,C169+J169,D169+J169)","v":0},{"$f":"+L170+L173","v":0},{"$f":"SUM(M170:M170)","v":0}]
["Mature",null,{"$f":"+C171+C172","v":0},{"$f":"+D171+D172","v":0},0,0,0,0,0,0,0,{"$f":"+L171+L172","v":0},{"$f":"+M171+M172","v":0}]
["Policing and Protection",null,{"$f":"SUMIFS(Sheet1!S71_OriginalBudget,Sheet1!S71_SA34aCode,$AC:$AC,Sheet1!S71_A5CapexCode,$AD:$AD)","v":0},{"$f":"SUMIFS(Sheet1!S71_PreviousBudget,Sheet1!S71_SA34aCode,$AC:$AC,Sheet1!S71_A5CapexCode,$AD:$AD)","v":0},null,null,null,null,{"$f":"SUMIFS(Sheet1!S71_CurrentAdjustments,Sheet1!S71_SA34aCode,$AC:$AC,Sheet1!S71_A5CapexCode,$AD:$AD)","v":0},0,0,{"$f":"SUMIFS(Sheet1!S71_OY1AdjustedBudget,Sheet1!S71_SA34aCode,$AC:$AC,Sheet1!S71_A5CapexCode,$AD:$AD)","v":0},{"$f":"SUMIFS(Sheet1!S71_OY2AdjustedBudget,Sheet1!S71_SA34aCode,$AC:$AC,Sheet1!S71_A5CapexCode,$AD:$AD)","v":0}]
["Zoological plants and animals",null,{"$f":"SUMIFS(Sheet1!S71_OriginalBudget,Sheet1!S71_SA34aCode,$AC:$AC,Sheet1!S71_A5CapexCode,$AD:$AD)","v":0},{"$f":"SUMIFS(Sheet1!S71_PreviousBudget,Sheet1!S71_SA34aCode,$AC:$AC,Sheet1!S71_A5CapexCode,$AD:$AD)","v":0},null,null,null,null,{"$f":"SUMIFS(Sheet1!S71_CurrentAdjustments,Sheet1!S71_SA34aCode,$AC:$AC,Sheet1!S71_A5CapexCode,$AD:$AD)","v":0},0,0,{"$f":"SUMIFS(Sheet1!S71_OY1AdjustedBudget,Sheet1!S71_SA34aCode,$AC:$AC,Sheet1!S71_A5CapexCode,$AD:$AD)","v":0},{"$f":"SUMIFS(Sheet1!S71_OY2AdjustedBudget,Sheet1!S71_SA34aCode,$AC:$AC,Sheet1!S71_A5CapexCode,$AD:$AD)","v":0}]
["Immature",null,{"$f":"+C174+C175","v":0},{"$f":"+D174+D175","v":0},0,0,0,0,0,0,0,{"$f":"+L174+L175","v":0},{"$f":"+M174+M175","v":0}]
["Policing and Protection",null,{"$f":"SUMIFS(Sheet1!S71_OriginalBudget,Sheet1!S71_SA34aCode,$AC:$AC,Sheet1!S71_A5CapexCode,$AD:$AD)","v":0},{"$f":"SUMIFS(Sheet1!S71_PreviousBudget,Sheet1!S71_SA34aCode,$AC:$AC,Sheet1!S71_A5CapexCode,$AD:$AD)","v":0},null,null,null,null,{"$f":"SUMIFS(Sheet1!S71_CurrentAdjustments,Sheet1!S71_SA34aCode,$AC:$AC,Sheet1!S71_A5CapexCode,$AD:$AD)","v":0},0,0,{"$f":"SUMIFS(Sheet1!S71_OY1AdjustedBudget,Sheet1!S71_SA34aCode,$AC:$AC,Sheet1!S71_A5CapexCode,$AD:$AD)","v":0},{"$f":"SUMIFS(Sheet1!S71_OY2AdjustedBudget,Sheet1!S71_SA34aCode,$AC:$AC,Sheet1!S71_A5CapexCode,$AD:$AD)","v":0}]
["Zoological plants and animals",null,{"$f":"SUMIFS(Sheet1!S71_OriginalBudget,Sheet1!S71_SA34aCode,$AC:$AC,Sheet1!S71_A5CapexCode,$AD:$AD)","v":0},{"$f":"SUMIFS(Sheet1!S71_PreviousBudget,Sheet1!S71_SA34aCode,$AC:$AC,Sheet1!S71_A5CapexCode,$AD:$AD)","v":0},null,null,null,null,{"$f":"SUMIFS(Sheet1!S71_CurrentAdjustments,Sheet1!S71_SA34aCode,$AC:$AC,Sheet1!S71_A5CapexCode,$AD:$AD)","v":0},0,0,{"$f":"SUMIFS(Sheet1!S71_OY1AdjustedBudget,Sheet1!S71_SA34aCode,$AC:$AC,Sheet1!S71_A5CapexCode,$AD:$AD)","v":0},{"$f":"SUMIFS(Sheet1!S71_OY2AdjustedBudget,Sheet1!S71_SA34aCode,$AC:$AC,Sheet1!S71_A5CapexCode,$AD:$AD)","v":0}]
[]
["Total Capital Expenditure on new assets to be adjusted",1,{"$f":"C8+C76+C105+C112+C120+C151+C138+C141+C154+C157+C160+C163+C166","v":52026590},{"$f":"D8+D76+D105+D112+D120+D151+D138+D141+D154+D157+D160+D163+D166","v":58682845},0,0,0,0,0,0,58682845,34608696,15000000]
[]
[{"$f":"head27a","v":"References"}]
["1. Total Capital Expenditure on new assets (SB18a) plus Total Capital Expenditure on renewal of existing assets (SB18b) plus Total Capital Expenditure on upgrading of existing assets (SB18e) must reconcile to total capital expenditure in Budgeted Capital Expenditure"]
["7. Only complete if a previous adjusted budget has been approved in the same financial year. Reflect most recent adjusted budget."]
["8. Additional cash-backed accumulated funds/unspent funds (section 18(1)(b) and section 28(2)(e) MFMA) identified after Original Budget approved and after annual financial statements audited (note: only where underspending could not reasonably be have for"]
["9. Increases of funds approved under section 31 MFMA"]
["10. Adjustments approved in accordance with section 29 MFMA"]
["11. Adjustments to funding allocations from National or Provincial Government"]
["12. Adjusts. = 'Other' Adjustments proposed to be approved; including revenue under-collection (MFMA section 28(2)(a)); additional revenue appropriation on existing programmes (section 28(2))(b); projected savings (section 28(2)(d)); error correction (sec"]
["13. G = B + C + D + E + F"]
["14. Adjusted Budget H = (A or A1) + G"]
[]
[]
["check balance",null,{"$f":"(C177+SB18b!C177+SB18e!C176)-'B5-Capex'!C65","v":0},null,null,null,null,null,null,null,null,{"$f":"(L177+SB18b!L177+SB18e!L176)-'B5-Capex'!L65","v":0},{"$f":"(M177+SB18b!M177+SB18e!M176)-'B5-Capex'!M65","v":0}]

{"sheet":"SB18b","index":55,"n_rows":191,"n_cols":30,"rows_kept":191,"cut":false,"hidden":false,"merged":[[1,0,3,0],[1,1,3,1],[1,2,1,10],[180,0,180,12],[187,0,187,12],[181,0,181,9],[182,0,182,9],[183,0,183,12],[185,0,185,12]]}
[{"$f":"muni&\" - \"&ADJB18b&\" - \"&Date","v":"KZN291 Mandeni - Supporting Table SB18b Adjustments Budget - capital expenditure on renewal of existing assets by asset class - 08-04-2025"}]
[{"$f":"desc","v":"Description"},{"$f":"head27","v":"Ref"},{"$f":"Head2","v":"Budget Year 2024/25"},null,null,null,null,null,null,null,null,{"$f":"Head10","v":"Budget Year +1 2025/26"},{"$f":"Head11","v":"Budget Year +2 2026/27"}]
[null,null,{"$f":"Head6","v":"Original Budget"},{"$f":"Head54","v":"Prior Adjusted"},{"$f":"Head51","v":"Accum. Funds"},{"$f":"Head52","v":"Multi-year capital"},{"$f":"Head53","v":"Unfore. Unavoid."},{"$f":"Head55","v":"Nat. or Prov. Govt"},{"$f":"Head50","v":"Other Adjusts."},{"$f":"Head56","v":"Total Adjusts."},{"$f":"Head7","v":"Adjusted Budget"},{"$f":"Head7","v":"Adjusted Budget"},{"$f":"Head7","v":"Adjusted Budget"}]
[null,null,null,7,8,9,10,11,12,13,14]
["R thousands",null,"A","A1","B","C","D","E","F","G","H"]
["Capital expenditure on renewal of existing assets by Asset Class/Sub-class"]
[]
["Infrastructure",null,{"$f":"C9+C14+C18+C28+C70+C39+C46+C54+C64","v":26739125},{"$f":"D9+D14+D18+D28+D70+D39+D46+D54+D64","v":27164549},0,0,0,1985217.38,0,{"$f":"SUM(E8:I8)","v":1985217.38},{"$f":"IF(D8=0,C8+J8,D8+J8)","v":29149766.379999999},{"$f":"L9+L14+L18+L28+L70+L39+L46+L54+L64","v":0},{"$f":"M9+M14+M18+M28+M70+M39+M46+M54+M64","v":0}]
["Roads Infrastructure",null,{"$f":"SUM(C10:C13)","v":26304342},{"$f":"SUM(D10:D13)","v":26729766},0,0,0,1985217.38,0,{"$f":"SUM(E9:I9)","v":1985217.38},{"$f":"IF(D9=0,C9+J9,D9+J9)","v":28714983.379999999},0,0]
["Roads",null,{"$f":"SUMIFS(Sheet1!S71_OriginalBudget,Sheet1!S71_SA34Code,$AC:$AC,Sheet1!S71_A5CapexCode,$AD:$AD)","v":26304342},{"$f":"SUMIFS(Sheet1!S71_PreviousBudget,Sheet1!S71_SA34Code,$AC:$AC,Sheet1!S71_A5CapexCode,$AD:$AD)","v":26729766},null,null,null,{"$f":"SUMIFS(Sheet1!S71_CurrentAdjustments,Sheet1!S71_SA34Code,$AC:$AC,Sheet1!S71_A5CapexCode,$AD:$AD)","v":1985217.38},0,1985217.38,28714983.379999999,{"$f":"SUMIFS(Sheet1!S71_OY1AdjustedBudget,Sheet1!S71_SA34Code,$AC:$AC,Sheet1!S71_A5CapexCode,$AD:$AD)","v":0},{"$f":"SUMIFS(Sheet1!S71_OY2AdjustedBudget,Sheet1!S71_SA34Code,$AC:$AC,Sheet1!S71_A5CapexCode,$AD:$AD)","v":0},null,null,null,null,null,null,null,null,null,null,null,null,null,null,null,"0120","CE"]
["Road Structures",null,{"$f":"SUMIFS(Sheet1!S71_OriginalBudget,Sheet1!S71_SA34Code,$AC:$AC,Sheet1!S71_A5CapexCode,$AD:$AD)","v":0},{"$f":"SUMIFS(Sheet1!S71_PreviousBudget,Sheet1!S71_SA34Code,$AC:$AC,Sheet1!S71_A5CapexCode,$AD:$AD)","v":0},null,null,null,null,{"$f":"SUMIFS(Sheet1!S71_CurrentAdjustments,Sheet1!S71_SA34Code,$AC:$AC,Sheet1!S71_A5CapexCode,$AD:$AD)","v":0},0,0,{"$f":"SUMIFS(Sheet1!S71_OY1AdjustedBudget,Sheet1!S71_SA34Code,$AC:$AC,Sheet1!S71_A5CapexCode,$AD:$AD)","v":0},{"$f":"SUMIFS(Sheet1!S71_OY2AdjustedBudget,Sheet1!S71_SA34Code,$AC:$AC,Sheet1!S71_A5CapexCode,$AD:$AD)","v":0},null,null,null,null,null,null,null,null,null,null,null,null,null,null,null,"0130","CE"]
["Road Furniture",null,{"$f":"SUMIFS(Sheet1!S71_OriginalBudget,Sheet1!S71_SA34Code,$AC:$AC,Sheet1!S71_A5CapexCode,$AD:$AD)","v":0},{"$f":"SUMIFS(Sheet1!S71_PreviousBudget,Sheet1!S71_SA34Code,$AC:$AC,Sheet1!S71_A5CapexCode,$AD:$AD)","v":0},null,null,null,null,{"$f":"SUMIFS(Sheet1!S71_CurrentAdjustments,Sheet1!S71_SA34Code,$AC:$AC,Sheet1!S71_A5CapexCode,$AD:$AD)","v":0},0,0,{"$f":"SUMIFS(Sheet1!S71_OY1AdjustedBudget,Sheet1!S71_SA34Code,$AC:$AC,Sheet1!S71_A5CapexCode,$AD:$AD)","v":0},{"$f":"SUMIFS(Sheet1!S71_OY2AdjustedBudget,Sheet1!S71_SA34Code,$AC:$AC,Sheet1!S71_A5CapexCode,$AD:$AD)","v":0},null,null,null,null,null,null,null,null,null,null,null,null,null,null,null,"0140","CE"]
["Capital Spares",null,{"$f":"SUMIFS(Sheet1!S71_OriginalBudget,Sheet1!S71_SA34Code,$AC:$AC,Sheet1!S71_A5CapexCode,$AD:$AD)","v":0},{"$f":"SUMIFS(Sheet1!S71_PreviousBudget,Sheet1!S71_SA34Code,$AC:$AC,Sheet1!S71_A5CapexCode,$AD:$AD)","v":0},null,null,null,null,{"$f":"SUMIFS(Sheet1!S71_CurrentAdjustments,Sheet1!S71_SA34Code,$AC:$AC,Sheet1!S71_A5CapexCode,$AD:$AD)","v":0},0,0,{"$f":"SUMIFS(Sheet1!S71_OY1AdjustedBudget,Sheet1!S71_SA34Code,$AC:$AC,Sheet1!S71_A5CapexCode,$AD:$AD)","v":0},{"$f":"SUMIFS(Sheet1!S71_OY2AdjustedBudget,Sheet1!S71_SA34Code,$AC:$AC,Sheet1!S71_A5CapexCode,$AD:$AD)","v":0},null,null,null,null,null,null,null,null,null,null,null,null,null,null,null,"0150","CE"]
["Storm water Infrastructure",null,{"$f":"SUM(C15:C17)","v":0},0,0,0,0,0,0,0,0,{"$f":"SUM(L15:L17)","v":0},{"$f":"SUM(M15:M17)","v":0},null,null,null,null,null,null,null,null,null,null,null,null,null,null,null,null,"CE"]
["Drainage Collection",null,{"$f":"SUMIFS(Sheet1!S71_OriginalBudget,Sheet1!S71_SA34Code,$AC:$AC,Sheet1!S71_A5CapexCode,$AD:$AD)","v":0},{"$f":"SUMIFS(Sheet1!S71_PreviousBudget,Sheet1!S71_SA34Code,$AC:$AC,Sheet1!S71_A5CapexCode,$AD:$AD)","v":0},null,null,null,null,{"$f":"SUMIFS(Sheet1!S71_CurrentAdjustments,Sheet1!S71_SA34Code,$AC:$AC,Sheet1!S71_A5CapexCode,$AD:$AD)","v":0},0,0,{"$f":"SUMIFS(Sheet1!S71_OY1AdjustedBudget,Sheet1!S71_SA34Code,$AC:$AC,Sheet1!S71_A5CapexCode,$AD:$AD)","v":0},{"$f":"SUMIFS(Sheet1!S71_OY2AdjustedBudget,Sheet1!S71_SA34Code,$AC:$AC,Sheet1!S71_A5CapexCode,$AD:$AD)","v":0},null,null,null,null,null,null,null,null,null,null,null,null,null,null,null,"0170","CE"]
["Storm water Conveyance",null,{"$f":"SUMIFS(Sheet1!S71_OriginalBudget,Sheet1!S71_SA34Code,$AC:$AC,Sheet1!S71_A5CapexCode,$AD:$AD)","v":0},{"$f":"SUMIFS(Sheet1!S71_PreviousBudget,Sheet1!S71_SA34Code,$AC:$AC,Sheet1!S71_A5CapexCode,$AD:$AD)","v":0},null,null,null,null,{"$f":"SUMIFS(Sheet1!S71_CurrentAdjustments,Sheet1!S71_SA34Code,$AC:$AC,Sheet1!S71_A5CapexCode,$AD:$AD)","v":0},0,0,{"$f":"SUMIFS(Sheet1!S71_OY1AdjustedBudget,Sheet1!S71_SA34Code,$AC:$AC,Sheet1!S71_A5CapexCode,$AD:$AD)","v":0},{"$f":"SUMIFS(Sheet1!S71_OY2AdjustedBudget,Sheet1!S71_SA34Code,$AC:$AC,Sheet1!S71_A5CapexCode,$AD:$AD)","v":0},null,null,null,null,null,null,null,null,null,null,null,null,null,null,null,"0180","CE"]
["Attenuation",null,{"$f":"SUMIFS(Sheet1!S71_OriginalBudget,Sheet1!S71_SA34Code,$AC:$AC,Sheet1!S71_A5CapexCode,$AD:$AD)","v":0},{"$f":"SUMIFS(Sheet1!S71_PreviousBudget,Sheet1!S71_SA34Code,$AC:$AC,Sheet1!S71_A5CapexCode,$AD:$AD)","v":0},null,null,null,null,{"$f":"SUMIFS(Sheet1!S71_CurrentAdjustments,Sheet1!S71_SA34Code,$AC:$AC,Sheet1!S71_A5CapexCode,$AD:$AD)","v":0},0,0,{"$f":"SUMIFS(Sheet1!S71_OY1AdjustedBudget,Sheet1!S71_SA34Code,$AC:$AC,Sheet1!S71_A5CapexCode,$AD:$AD)","v":0},{"$f":"SUMIFS(Sheet1!S71_OY2AdjustedBudget,Sheet1!S71_SA34Code,$AC:$AC,Sheet1!S71_A5CapexCode,$AD:$AD)","v":0},null,null,null,null,null,null,null,null,null,null,null,null,null,null,null,"0190","CE"]
["Electrical Infrastructure",null,{"$f":"SUM(C19:C27)","v":434783},434783,0,0,0,0,0,0,434783,0,0,null,null,null,null,null,null,null,null,null,null,null,null,null,null,null,null,"CE"]
["Power Plants",null,{"$f":"SUMIFS(Sheet1!S71_OriginalBudget,Sheet1!S71_SA34Code,$AC:$AC,Sheet1!S71_A5CapexCode,$AD:$AD)","v":0},{"$f":"SUMIFS(Sheet1!S71_PreviousBudget,Sheet1!S71_SA34Code,$AC:$AC,Sheet1!S71_A5CapexCode,$AD:$AD)","v":0},null,null,null,null,{"$f":"SUMIFS(Sheet1!S71_CurrentAdjustments,Sheet1!S71_SA34Code,$AC:$AC,Sheet1!S71_A5CapexCode,$AD:$AD)","v":0},0,0,{"$f":"SUMIFS(Sheet1!S71_OY1AdjustedBudget,Sheet1!S71_SA34Code,$AC:$AC,Sheet1!S71_A5CapexCode,$AD:$AD)","v":0},{"$f":"SUMIFS(Sheet1!S71_OY2AdjustedBudget,Sheet1!S71_SA34Code,$AC:$AC,Sheet1!S71_A5CapexCode,$AD:$AD)","v":0},null,null,null,null,null,null,null,null,null,null,null,null,null,null,null,"0210","CE"]
["HV Substations",null,{"$f":"SUMIFS(Sheet1!S71_OriginalBudget,Sheet1!S71_SA34Code,$AC:$AC,Sheet1!S71_A5CapexCode,$AD:$AD)","v":0},{"$f":"SUMIFS(Sheet1!S71_PreviousBudget,Sheet1!S71_SA34Code,$AC:$AC,Sheet1!S71_A5CapexCode,$AD:$AD)","v":0},null,null,null,null,{"$f":"SUMIFS(Sheet1!S71_CurrentAdjustments,Sheet1!S71_SA34Code,$AC:$AC,Sheet1!S71_A5CapexCode,$AD:$AD)","v":0},0,0,{"$f":"SUMIFS(Sheet1!S71_OY1AdjustedBudget,Sheet1!S71_SA34Code,$AC:$AC,Sheet1!S71_A5CapexCode,$AD:$AD)","v":0},{"$f":"SUMIFS(Sheet1!S71_OY2AdjustedBudget,Sheet1!S71_SA34Code,$AC:$AC,Sheet1!S71_A5CapexCode,$AD:$AD)","v":0},null,null,null,null,null,null,null,null,null,null,null,null,null,null,null,"0220","CE"]
["HV Switching Station",null,{"$f":"SUMIFS(Sheet1!S71_OriginalBudget,Sheet1!S71_SA34Code,$AC:$AC,Sheet1!S71_A5CapexCode,$AD:$AD)","v":0},{"$f":"SUMIFS(Sheet1!S71_PreviousBudget,Sheet1!S71_SA34Code,$AC:$AC,Sheet1!S71_A5CapexCode,$AD:$AD)","v":0},null,null,null,null,{"$f":"SUMIFS(Sheet1!S71_CurrentAdjustments,Sheet1!S71_SA34Code,$AC:$AC,Sheet1!S71_A5CapexCode,$AD:$AD)","v":0},0,0,{"$f":"SUMIFS(Sheet1!S71_OY1AdjustedBudget,Sheet1!S71_SA34Code,$AC:$AC,Sheet1!S71_A5CapexCode,$AD:$AD)","v":0},{"$f":"SUMIFS(Sheet1!S71_OY2AdjustedBudget,Sheet1!S71_SA34Code,$AC:$AC,Sheet1!S71_A5CapexCode,$AD:$AD)","v":0},null,null,null,null,null,null,null,null,null,null,null,null,null,null,null,"0230","CE"]
["HV Transmission Conductors",null,{"$f":"SUMIFS(Sheet1!S71_OriginalBudget,Sheet1!S71_SA34Code,$AC:$AC,Sheet1!S71_A5CapexCode,$AD:$AD)","v":0},{"$f":"SUMIFS(Sheet1!S71_PreviousBudget,Sheet1!S71_SA34Code,$AC:$AC,Sheet1!S71_A5CapexCode,$AD:$AD)","v":0},null,null,null,null,{"$f":"SUMIFS(Sheet1!S71_CurrentAdjustments,Sheet1!S71_SA34Code,$AC:$AC,Sheet1!S71_A5CapexCode,$AD:$AD)","v":0},0,0,{"$f":"SUMIFS(Sheet1!S71_OY1AdjustedBudget,Sheet1!S71_SA34Code,$AC:$AC,Sheet1!S71_A5CapexCode,$AD:$AD)","v":0},{"$f":"SUMIFS(Sheet1!S71_OY2AdjustedBudget,Sheet1!S71_SA34Code,$AC:$AC,Sheet1!S71_A5CapexCode,$AD:$AD)","v":0},null,null,null,null,null,null,null,null,null,null,null,null,null,null,null,"0240","CE"]
["MV Substations",null,{"$f":"SUMIFS(Sheet1!S71_OriginalBudget,Sheet1!S71_SA34Code,$AC:$AC,Sheet1!S71_A5CapexCode,$AD:$AD)","v":0},{"$f":"SUMIFS(Sheet1!S71_PreviousBudget,Sheet1!S71_SA34Code,$AC:$AC,Sheet1!S71_A5CapexCode,$AD:$AD)","v":0},null,null,null,null,{"$f":"SUMIFS(Sheet1!S71_CurrentAdjustments,Sheet1!S71_SA34Code,$AC:$AC,Sheet1!S71_A5CapexCode,$AD:$AD)","v":0},0,0,{"$f":"SUMIFS(Sheet1!S71_OY1AdjustedBudget,Sheet1!S71_SA34Code,$AC:$AC,Sheet1!S71_A5CapexCode,$AD:$AD)","v":0},{"$f":"SUMIFS(Sheet1!S71_OY2AdjustedBudget,Sheet1!S71_SA34Code,$AC:$AC,Sheet1!S71_A5CapexCode,$AD:$AD)","v":0},null,null,null,null,null,null,null,null,null,null,null,null,null,null,null,"0250","CE"]
["MV Switching Stations",null,{"$f":"SUMIFS(Sheet1!S71_OriginalBudget,Sheet1!S71_SA34Code,$AC:$AC,Sheet1!S71_A5CapexCode,$AD:$AD)","v":0},{"$f":"SUMIFS(Sheet1!S71_PreviousBudget,Sheet1!S71_SA34Code,$AC:$AC,Sheet1!S71_A5CapexCode,$AD:$AD)","v":0},null,null,null,null,{"$f":"SUMIFS(Sheet1!S71_CurrentAdjustments,Sheet1!S71_SA34Code,$AC:$AC,Sheet1!S71_A5CapexCode,$AD:$AD)","v":0},0,0,{"$f":"SUMIFS(Sheet1!S71_OY1AdjustedBudget,Sheet1!S71_SA34Code,$AC:$AC,Sheet1!S71_A5CapexCode,$AD:$AD)","v":0},{"$f":"SUMIFS(Sheet1!S71_OY2AdjustedBudget,Sheet1!S71_SA34Code,$AC:$AC,Sheet1!S71_A5CapexCode,$AD:$AD)","v":0},null,null,null,null,null,null,null,null,null,null,null,null,null,null,null,"0260","CE"]
["MV Networks",null,{"$f":"SUMIFS(Sheet1!S71_OriginalBudget,Sheet1!S71_SA34Code,$AC:$AC,Sheet1!S71_A5CapexCode,$AD:$AD)","v":434783},{"$f":"SUMIFS(Sheet1!S71_PreviousBudget,Sheet1!S71_SA34Code,$AC:$AC,Sheet1!S71_A5CapexCode,$AD:$AD)","v":434783},null,null,null,null,{"$f":"SUMIFS(Sheet1!S71_CurrentAdjustments,Sheet1!S71_SA34Code,$AC:$AC,Sheet1!S71_A5CapexCode,$AD:$AD)","v":0},0,434783,{"$f":"SUMIFS(Sheet1!S71_OY1AdjustedBudget,Sheet1!S71_SA34Code,$AC:$AC,Sheet1!S71_A5CapexCode,$AD:$AD)","v":0},{"$f":"SUMIFS(Sheet1!S71_OY2AdjustedBudget,Sheet1!S71_SA34Code,$AC:$AC,Sheet1!S71_A5CapexCode,$AD:$AD)","v":0},null,null,null,null,null,null,null,null,null,null,null,null,null,null,null,"0270","CE"]
["LV Networks",null,{"$f":"SUMIFS(Sheet1!S71_OriginalBudget,Sheet1!S71_SA34Code,$AC:$AC,Sheet1!S71_A5CapexCode,$AD:$AD)","v":0},{"$f":"SUMIFS(Sheet1!S71_PreviousBudget,Sheet1!S71_SA34Code,$AC:$AC,Sheet1!S71_A5CapexCode,$AD:$AD)","v":0},null,null,null,null,{"$f":"SUMIFS(Sheet1!S71_CurrentAdjustments,Sheet1!S71_SA34Code,$AC:$AC,Sheet1!S71_A5CapexCode,$AD:$AD)","v":0},0,0,{"$f":"SUMIFS(Sheet1!S71_OY1AdjustedBudget,Sheet1!S71_SA34Code,$AC:$AC,Sheet1!S71_A5CapexCode,$AD:$AD)","v":0},{"$f":"SUMIFS(Sheet1!S71_OY2AdjustedBudget,Sheet1!S71_SA34Code,$AC:$AC,Sheet1!S71_A5CapexCode,$AD:$AD)","v":0},null,null,null,null,null,null,null,null,null,null,null,null,null,null,null,"0280","CE"]
["Capital Spares",null,{"$f":"SUMIFS(Sheet1!S71_OriginalBudget,Sheet1!S71_SA34Code,$AC:$AC,Sheet1!S71_A5CapexCode,$AD:$AD)","v":0},{"$f":"SUMIFS(Sheet1!S71_PreviousBudget,Sheet1!S71_SA34Code,$AC:$AC,Sheet1!S71_A5CapexCode,$AD:$AD)","v":0},null,null,null,null,{"$f":"SUMIFS(Sheet1!S71_CurrentAdjustments,Sheet1!S71_SA34Code,$AC:$AC,Sheet1!S71_A5CapexCode,$AD:$AD)","v":0},0,0,{"$f":"SUMIFS(Sheet1!S71_OY1AdjustedBudget,Sheet1!S71_SA34Code,$AC:$AC,Sheet1!S71_A5CapexCode,$AD:$AD)","v":0},{"$f":"SUMIFS(Sheet1!S71_OY2AdjustedBudget,Sheet1!S71_SA34Code,$AC:$AC,Sheet1!S71_A5CapexCode,$AD:$AD)","v":0},null,null,null,null,null,null,null,null,null,null,null,null,null,null,null,"0290","CE"]
["Water Supply Infrastructure",null,{"$f":"SUM(C29:C38)","v":0},0,0,0,0,0,0,0,0,0,0,null,null,null,null,null,null,null,null,null,null,null,null,null,null,null,null,"CE"]
["Dams and Weirs",null,{"$f":"SUMIFS(Sheet1!S71_OriginalBudget,Sheet1!S71_SA34Code,$AC:$AC,Sheet1!S71_A5CapexCode,$AD:$AD)","v":0},{"$f":"SUMIFS(Sheet1!S71_PreviousBudget,Sheet1!S71_SA34Code,$AC:$AC,Sheet1!S71_A5CapexCode,$AD:$AD)","v":0},null,null,null,null,{"$f":"SUMIFS(Sheet1!S71_CurrentAdjustments,Sheet1!S71_SA34Code,$AC:$AC,Sheet1!S71_A5CapexCode,$AD:$AD)","v":0},0,0,{"$f":"SUMIFS(Sheet1!S71_OY1AdjustedBudget,Sheet1!S71_SA34Code,$AC:$AC,Sheet1!S71_A5CapexCode,$AD:$AD)","v":0},{"$f":"SUMIFS(Sheet1!S71_OY2AdjustedBudget,Sheet1!S71_SA34Code,$AC:$AC,Sheet1!S71_A5CapexCode,$AD:$AD)","v":0},null,null,null,null,null,null,null,null,null,null,null,null,null,null,null,"0310","CE"]
["Boreholes",null,{"$f":"SUMIFS(Sheet1!S71_OriginalBudget,Sheet1!S71_SA34Code,$AC:$AC,Sheet1!S71_A5CapexCode,$AD:$AD)","v":0},{"$f":"SUMIFS(Sheet1!S71_PreviousBudget,Sheet1!S71_SA34Code,$AC:$AC,Sheet1!S71_A5CapexCode,$AD:$AD)","v":0},null,null,null,null,{"$f":"SUMIFS(Sheet1!S71_CurrentAdjustments,Sheet1!S71_SA34Code,$AC:$AC,Sheet1!S71_A5CapexCode,$AD:$AD)","v":0},0,0,{"$f":"SUMIFS(Sheet1!S71_OY1AdjustedBudget,Sheet1!S71_SA34Code,$AC:$AC,Sheet1!S71_A5CapexCode,$AD:$AD)","v":0},{"$f":"SUMIFS(Sheet1!S71_OY2AdjustedBudget,Sheet1!S71_SA34Code,$AC:$AC,Sheet1!S71_A5CapexCode,$AD:$AD)","v":0},null,null,null,null,null,null,null,null,null,null,null,null,null,null,null,"0320","CE"]
["Reservoirs",null,{"$f":"SUMIFS(Sheet1!S71_OriginalBudget,Sheet1!S71_SA34Code,$AC:$AC,Sheet1!S71_A5CapexCode,$AD:$AD)","v":0},{"$f":"SUMIFS(Sheet1!S71_PreviousBudget,Sheet1!S71_SA34Code,$AC:$AC,Sheet1!S71_A5CapexCode,$AD:$AD)","v":0},null,null,null,null,{"$f":"SUMIFS(Sheet1!S71_CurrentAdjustments,Sheet1!S71_SA34Code,$AC:$AC,Sheet1!S71_A5CapexCode,$AD:$AD)","v":0},0,0,{"$f":"SUMIFS(Sheet1!S71_OY1AdjustedBudget,Sheet1!S71_SA34Code,$AC:$AC,Sheet1!S71_A5CapexCode,$AD:$AD)","v":0},{"$f":"SUMIFS(Sheet1!S71_OY2AdjustedBudget,Sheet1!S71_SA34Code,$AC:$AC,Sheet1!S71_A5CapexCode,$AD:$AD)","v":0},null,null,null,null,null,null,null,null,null,null,null,null,null,null,null,"0330","CE"]
["Pump Stations",null,{"$f":"SUMIFS(Sheet1!S71_OriginalBudget,Sheet1!S71_SA34Code,$AC:$AC,Sheet1!S71_A5CapexCode,$AD:$AD)","v":0},{"$f":"SUMIFS(Sheet1!S71_PreviousBudget,Sheet1!S71_SA34Code,$AC:$AC,Sheet1!S71_A5CapexCode,$AD:$AD)","v":0},null,null,null,null,{"$f":"SUMIFS(Sheet1!S71_CurrentAdjustments,Sheet1!S71_SA34Code,$AC:$AC,Sheet1!S71_A5CapexCode,$AD:$AD)","v":0},0,0,{"$f":"SUMIFS(Sheet1!S71_OY1AdjustedBudget,Sheet1!S71_SA34Code,$AC:$AC,Sheet1!S71_A5CapexCode,$AD:$AD)","v":0},{"$f":"SUMIFS(Sheet1!S71_OY2AdjustedBudget,Sheet1!S71_SA34Code,$AC:$AC,Sheet1!S71_A5CapexCode,$AD:$AD)","v":0},null,null,null,null,null,null,null,null,null,null,null,null,null,null,null,"0340","CE"]
["Water Treatment Works",null,{"$f":"SUMIFS(Sheet1!S71_OriginalBudget,Sheet1!S71_SA34Code,$AC:$AC,Sheet1!S71_A5CapexCode,$AD:$AD)","v":0},{"$f":"SUMIFS(Sheet1!S71_PreviousBudget,Sheet1!S71_SA34Code,$AC:$AC,Sheet1!S71_A5CapexCode,$AD:$AD)","v":0},null,null,null,null,{"$f":"SUMIFS(Sheet1!S71_CurrentAdjustments,Sheet1!S71_SA34Code,$AC:$AC,Sheet1!S71_A5CapexCode,$AD:$AD)","v":0},0,0,{"$f":"SUMIFS(Sheet1!S71_OY1AdjustedBudget,Sheet1!S71_SA34Code,$AC:$AC,Sheet1!S71_A5CapexCode,$AD:$AD)","v":0},{"$f":"SUMIFS(Sheet1!S71_OY2AdjustedBudget,Sheet1!S71_SA34Code,$AC:$AC,Sheet1!S71_A5CapexCode,$AD:$AD)","v":0},null,null,null,null,null,null,null,null,null,null,null,null,null,null,null,"0350","CE"]
["Bulk Mains",null,{"$f":"SUMIFS(Sheet1!S71_OriginalBudget,Sheet1!S71_SA34Code,$AC:$AC,Sheet1!S71_A5CapexCode,$AD:$AD)","v":0},{"$f":"SUMIFS(Sheet1!S71_PreviousBudget,Sheet1!S71_SA34Code,$AC:$AC,Sheet1!S71_A5CapexCode,$AD:$AD)","v":0},null,null,null,null,{"$f":"SUMIFS(Sheet1!S71_CurrentAdjustments,Sheet1!S71_SA34Code,$AC:$AC,Sheet1!S71_A5CapexCode,$AD:$AD)","v":0},0,0,{"$f":"SUMIFS(Sheet1!S71_OY1AdjustedBudget,Sheet1!S71_SA34Code,$AC:$AC,Sheet1!S71_A5CapexCode,$AD:$AD)","v":0},{"$f":"SUMIFS(Sheet1!S71_OY2AdjustedBudget,Sheet1!S71_SA34Code,$AC:$AC,Sheet1!S71_A5CapexCode,$AD:$AD)","v":0},null,null,null,null,null,null,null,null,null,null,null,null,null,null,null,"0360","CE"]
["Distribution",null,{"$f":"SUMIFS(Sheet1!S71_OriginalBudget,Sheet1!S71_SA34Code,$AC:$AC,Sheet1!S71_A5CapexCode,$AD:$AD)","v":0},{"$f":"SUMIFS(Sheet1!S71_PreviousBudget,Sheet1!S71_SA34Code,$AC:$AC,Sheet1!S71_A5CapexCode,$AD:$AD)","v":0},null,null,null,null,{"$f":"SUMIFS(Sheet1!S71_CurrentAdjustments,Sheet1!S71_SA34Code,$AC:$AC,Sheet1!S71_A5CapexCode,$AD:$AD)","v":0},0,0,{"$f":"SUMIFS(Sheet1!S71_OY1AdjustedBudget,Sheet1!S71_SA34Code,$AC:$AC,Sheet1!S71_A5CapexCode,$AD:$AD)","v":0},{"$f":"SUMIFS(Sheet1!S71_OY2AdjustedBudget,Sheet1!S71_SA34Code,$AC:$AC,Sheet1!S71_A5CapexCode,$AD:$AD)","v":0},null,null,null,null,null,null,null,null,null,null,null,null,null,null,null,"0370","CE"]
["Distribution Points",null,{"$f":"SUMIFS(Sheet1!S71_OriginalBudget,Sheet1!S71_SA34Code,$AC:$AC,Sheet1!S71_A5CapexCode,$AD:$AD)","v":0},{"$f":"SUMIFS(Sheet1!S71_PreviousBudget,Sheet1!S71_SA34Code,$AC:$AC,Sheet1!S71_A5CapexCode,$AD:$AD)","v":0},null,null,null,null,{"$f":"SUMIFS(Sheet1!S71_CurrentAdjustments,Sheet1!S71_SA34Code,$AC:$AC,Sheet1!S71_A5CapexCode,$AD:$AD)","v":0},0,0,{"$f":"SUMIFS(Sheet1!S71_OY1AdjustedBudget,Sheet1!S71_SA34Code,$AC:$AC,Sheet1!S71_A5CapexCode,$AD:$AD)","v":0},{"$f":"SUMIFS(Sheet1!S71_OY2AdjustedBudget,Sheet1!S71_SA34Code,$AC:$AC,Sheet1!S71_A5CapexCode,$AD:$AD)","v":0},null,null,null,null,null,null,null,null,null,null,null,null,null,null,null,"0380","CE"]
["PRV Stations",null,{"$f":"SUMIFS(Sheet1!S71_OriginalBudget,Sheet1!S71_SA34Code,$AC:$AC,Sheet1!S71_A5CapexCode,$AD:$AD)","v":0},{"$f":"SUMIFS(Sheet1!S71_PreviousBudget,Sheet1!S71_SA34Code,$AC:$AC,Sheet1!S71_A5CapexCode,$AD:$AD)","v":0},null,null,null,null,{"$f":"SUMIFS(Sheet1!S71_CurrentAdjustments,Sheet1!S71_SA34Code,$AC:$AC,Sheet1!S71_A5CapexCode,$AD:$AD)","v":0},0,0,{"$f":"SUMIFS(Sheet1!S71_OY1AdjustedBudget,Sheet1!S71_SA34Code,$AC:$AC,Sheet1!S71_A5CapexCode,$AD:$AD)","v":0},{"$f":"SUMIFS(Sheet1!S71_OY2AdjustedBudget,Sheet1!S71_SA34Code,$AC:$AC,Sheet1!S71_A5CapexCode,$AD:$AD)","v":0},null,null,null,null,null,null,null,null,null,null,null,null,null,null,null,"0390","CE"]
["Capital Spares",null,{"$f":"SUMIFS(Sheet1!S71_OriginalBudget,Sheet1!S71_SA34Code,$AC:$AC,Sheet1!S71_A5CapexCode,$AD:$AD)","v":0},{"$f":"SUMIFS(Sheet1!S71_PreviousBudget,Sheet1!S71_SA34Code,$AC:$AC,Sheet1!S71_A5CapexCode,$AD:$AD)","v":0},null,null,null,null,{"$f":"SUMIFS(Sheet1!S71_CurrentAdjustments,Sheet1!S71_SA34Code,$AC:$AC,Sheet1!S71_A5CapexCode,$AD:$AD)","v":0},0,0,{"$f":"SUMIFS(Sheet1!S71_OY1AdjustedBudget,Sheet1!S71_SA34Code,$AC:$AC,Sheet1!S71_A5CapexCode,$AD:$AD)","v":0},{"$f":"SUMIFS(Sheet1!S71_OY2AdjustedBudget,Sheet1!S71_SA34Code,$AC:$AC,Sheet1!S71_A5CapexCode,$AD:$AD)","v":0},null,null,null,null,null,null,null,null,null,null,null,null,null,null,null,"0400","CE"]
["Sanitation Infrastructure",null,{"$f":"SUM(C40:C45)","v":0},{"$f":"SUM(D40:D45)","v":0},0,0,0,0,0,0,0,0,0,null,null,null,null,null,null,null,null,null,null,null,null,null,null,null,null,"CE"]
["Pump Station",null,{"$f":"SUMIFS(Sheet1!S71_OriginalBudget,Sheet1!S71_SA34Code,$AC:$AC,Sheet1!S71_A5CapexCode,$AD:$AD)","v":0},{"$f":"SUMIFS(Sheet1!S71_PreviousBudget,Sheet1!S71_SA34Code,$AC:$AC,Sheet1!S71_A5CapexCode,$AD:$AD)","v":0},null,null,null,null,{"$f":"SUMIFS(Sheet1!S71_CurrentAdjustments,Sheet1!S71_SA34Code,$AC:$AC,Sheet1!S71_A5CapexCode,$AD:$AD)","v":0},0,0,{"$f":"SUMIFS(Sheet1!S71_OY1AdjustedBudget,Sheet1!S71_SA34Code,$AC:$AC,Sheet1!S71_A5CapexCode,$AD:$AD)","v":0},{"$f":"SUMIFS(Sheet1!S71_OY2AdjustedBudget,Sheet1!S71_SA34Code,$AC:$AC,Sheet1!S71_A5CapexCode,$AD:$AD)","v":0},null,null,null,null,null,null,null,null,null,null,null,null,null,null,null,"0420","CE"]
["Reticulation",null,{"$f":"SUMIFS(Sheet1!S71_OriginalBudget,Sheet1!S71_SA34Code,$AC:$AC,Sheet1!S71_A5CapexCode,$AD:$AD)","v":0},{"$f":"SUMIFS(Sheet1!S71_PreviousBudget,Sheet1!S71_SA34Code,$AC:$AC,Sheet1!S71_A5CapexCode,$AD:$AD)","v":0},null,null,null,null,{"$f":"SUMIFS(Sheet1!S71_CurrentAdjustments,Sheet1!S71_SA34Code,$AC:$AC,Sheet1!S71_A5CapexCode,$AD:$AD)","v":0},0,0,{"$f":"SUMIFS(Sheet1!S71_OY1AdjustedBudget,Sheet1!S71_SA34Code,$AC:$AC,Sheet1!S71_A5CapexCode,$AD:$AD)","v":0},{"$f":"SUMIFS(Sheet1!S71_OY2AdjustedBudget,Sheet1!S71_SA34Code,$AC:$AC,Sheet1!S71_A5CapexCode,$AD:$AD)","v":0},null,null,null,null,null,null,null,null,null,null,null,null,null,null,null,"0430","CE"]
["Waste Water Treatment Works",null,{"$f":"SUMIFS(Sheet1!S71_OriginalBudget,Sheet1!S71_SA34Code,$AC:$AC,Sheet1!S71_A5CapexCode,$AD:$AD)","v":0},{"$f":"SUMIFS(Sheet1!S71_PreviousBudget,Sheet1!S71_SA34Code,$AC:$AC,Sheet1!S71_A5CapexCode,$AD:$AD)","v":0},null,null,null,null,{"$f":"SUMIFS(Sheet1!S71_CurrentAdjustments,Sheet1!S71_SA34Code,$AC:$AC,Sheet1!S71_A5CapexCode,$AD:$AD)","v":0},0,0,{"$f":"SUMIFS(Sheet1!S71_OY1AdjustedBudget,Sheet1!S71_SA34Code,$AC:$AC,Sheet1!S71_A5CapexCode,$AD:$AD)","v":0},{"$f":"SUMIFS(Sheet1!S71_OY2AdjustedBudget,Sheet1!S71_SA34Code,$AC:$AC,Sheet1!S71_A5CapexCode,$AD:$AD)","v":0},null,null,null,null,null,null,null,null,null,null,null,null,null,null,null,"0440","CE"]
["Outfall Sewers",null,{"$f":"SUMIFS(Sheet1!S71_OriginalBudget,Sheet1!S71_SA34Code,$AC:$AC,Sheet1!S71_A5CapexCode,$AD:$AD)","v":0},{"$f":"SUMIFS(Sheet1!S71_PreviousBudget,Sheet1!S71_SA34Code,$AC:$AC,Sheet1!S71_A5CapexCode,$AD:$AD)","v":0},null,null,null,null,{"$f":"SUMIFS(Sheet1!S71_CurrentAdjustments,Sheet1!S71_SA34Code,$AC:$AC,Sheet1!S71_A5CapexCode,$AD:$AD)","v":0},0,0,{"$f":"SUMIFS(Sheet1!S71_OY1AdjustedBudget,Sheet1!S71_SA34Code,$AC:$AC,Sheet1!S71_A5CapexCode,$AD:$AD)","v":0},{"$f":"SUMIFS(Sheet1!S71_OY2AdjustedBudget,Sheet1!S71_SA34Code,$AC:$AC,Sheet1!S71_A5CapexCode,$AD:$AD)","v":0},null,null,null,null,null,null,null,null,null,null,null,null,null,null,null,"0450","CE"]
["Toilet Facilities",null,{"$f":"SUMIFS(Sheet1!S71_OriginalBudget,Sheet1!S71_SA34Code,$AC:$AC,Sheet1!S71_A5CapexCode,$AD:$AD)","v":0},{"$f":"SUMIFS(Sheet1!S71_PreviousBudget,Sheet1!S71_SA34Code,$AC:$AC,Sheet1!S71_A5CapexCode,$AD:$AD)","v":0},null,null,null,null,{"$f":"SUMIFS(Sheet1!S71_CurrentAdjustments,Sheet1!S71_SA34Code,$AC:$AC,Sheet1!S71_A5CapexCode,$AD:$AD)","v":0},0,0,{"$f":"SUMIFS(Sheet1!S71_OY1AdjustedBudget,Sheet1!S71_SA34Code,$AC:$AC,Sheet1!S71_A5CapexCode,$AD:$AD)","v":0},{"$f":"SUMIFS(Sheet1!S71_OY2AdjustedBudget,Sheet1!S71_SA34Code,$AC:$AC,Sheet1!S71_A5CapexCode,$AD:$AD)","v":0},null,null,null,null,null,null,null,null,null,null,null,null,null,null,null,"0460","CE"]
["Capital Spares",null,{"$f":"SUMIFS(Sheet1!S71_OriginalBudget,Sheet1!S71_SA34Code,$AC:$AC,Sheet1!S71_A5CapexCode,$AD:$AD)","v":0},{"$f":"SUMIFS(Sheet1!S71_PreviousBudget,Sheet1!S71_SA34Code,$AC:$AC,Sheet1!S71_A5CapexCode,$AD:$AD)","v":0},null,null,null,null,{"$f":"SUMIFS(Sheet1!S71_CurrentAdjustments,Sheet1!S71_SA34Code,$AC:$AC,Sheet1!S71_A5CapexCode,$AD:$AD)","v":0},0,0,{"$f":"SUMIFS(Sheet1!S71_OY1AdjustedBudget,Sheet1!S71_SA34Code,$AC:$AC,Sheet1!S71_A5CapexCode,$AD:$AD)","v":0},{"$f":"SUMIFS(Sheet1!S71_OY2AdjustedBudget,Sheet1!S71_SA34Code,$AC:$AC,Sheet1!S71_A5CapexCode,$AD:$AD)","v":0},null,null,null,null,null,null,null,null,null,null,null,null,null,null,null,"0470","CE"]
["Solid Waste Infrastructure",null,{"$f":"SUM(C47:C53)","v":0},{"$f":"SUM(D47:D53)","v":0},0,0,0,0,0,0,0,0,0,null,null,null,null,null,null,null,null,null,null,null,null,null,null,null,null,"CE"]
["Landfill Sites",null,{"$f":"SUMIFS(Sheet1!S71_OriginalBudget,Sheet1!S71_SA34Code,$AC:$AC,Sheet1!S71_A5CapexCode,$AD:$AD)","v":0},{"$f":"SUMIFS(Sheet1!S71_PreviousBudget,Sheet1!S71_SA34Code,$AC:$AC,Sheet1!S71_A5CapexCode,$AD:$AD)","v":0},null,null,null,null,{"$f":"SUMIFS(Sheet1!S71_CurrentAdjustments,Sheet1!S71_SA34Code,$AC:$AC,Sheet1!S71_A5CapexCode,$AD:$AD)","v":0},0,0,{"$f":"SUMIFS(Sheet1!S71_OY1AdjustedBudget,Sheet1!S71_SA34Code,$AC:$AC,Sheet1!S71_A5CapexCode,$AD:$AD)","v":0},{"$f":"SUMIFS(Sheet1!S71_OY2AdjustedBudget,Sheet1!S71_SA34Code,$AC:$AC,Sheet1!S71_A5CapexCode,$AD:$AD)","v":0},null,null,null,null,null,null,null,null,null,null,null,null,null,null,null,"0490","CE"]
["Waste Transfer Stations",null,{"$f":"SUMIFS(Sheet1!S71_OriginalBudget,Sheet1!S71_SA34Code,$AC:$AC,Sheet1!S71_A5CapexCode,$AD:$AD)","v":0},{"$f":"SUMIFS(Sheet1!S71_PreviousBudget,Sheet1!S71_SA34Code,$AC:$AC,Sheet1!S71_A5CapexCode,$AD:$AD)","v":0},null,null,null,null,{"$f":"SUMIFS(Sheet1!S71_CurrentAdjustments,Sheet1!S71_SA34Code,$AC:$AC,Sheet1!S71_A5CapexCode,$AD:$AD)","v":0},0,0,{"$f":"SUMIFS(Sheet1!S71_OY1AdjustedBudget,Sheet1!S71_SA34Code,$AC:$AC,Sheet1!S71_A5CapexCode,$AD:$AD)","v":0},{"$f":"SUMIFS(Sheet1!S71_OY2AdjustedBudget,Sheet1!S71_SA34Code,$AC:$AC,Sheet1!S71_A5CapexCode,$AD:$AD)","v":0},null,null,null,null,null,null,null,null,null,null,null,null,null,null,null,"0500","CE"]
["Waste Processing Facilities",null,{"$f":"SUMIFS(Sheet1!S71_OriginalBudget,Sheet1!S71_SA34Code,$AC:$AC,Sheet1!S71_A5CapexCode,$AD:$AD)","v":0},{"$f":"SUMIFS(Sheet1!S71_PreviousBudget,Sheet1!S71_SA34Code,$AC:$AC,Sheet1!S71_A5CapexCode,$AD:$AD)","v":0},null,null,null,null,{"$f":"SUMIFS(Sheet1!S71_CurrentAdjustments,Sheet1!S71_SA34Code,$AC:$AC,Sheet1!S71_A5CapexCode,$AD:$AD)","v":0},0,0,{"$f":"SUMIFS(Sheet1!S71_OY1AdjustedBudget,Sheet1!S71_SA34Code,$AC:$AC,Sheet1!S71_A5CapexCode,$AD:$AD)","v":0},{"$f":"SUMIFS(Sheet1!S71_OY2AdjustedBudget,Sheet1!S71_SA34Code,$AC:$AC,Sheet1!S71_A5CapexCode,$AD:$AD)","v":0},null,null,null,null,null,null,null,null,null,null,null,null,null,null,null,"0510","CE"]
["Waste Drop-off Points",null,{"$f":"SUMIFS(Sheet1!S71_OriginalBudget,Sheet1!S71_SA34Code,$AC:$AC,Sheet1!S71_A5CapexCode,$AD:$AD)","v":0},{"$f":"SUMIFS(Sheet1!S71_PreviousBudget,Sheet1!S71_SA34Code,$AC:$AC,Sheet1!S71_A5CapexCode,$AD:$AD)","v":0},null,null,null,null,{"$f":"SUMIFS(Sheet1!S71_CurrentAdjustments,Sheet1!S71_SA34Code,$AC:$AC,Sheet1!S71_A5CapexCode,$AD:$AD)","v":0},0,0,{"$f":"SUMIFS(Sheet1!S71_OY1AdjustedBudget,Sheet1!S71_SA34Code,$AC:$AC,Sheet1!S71_A5CapexCode,$AD:$AD)","v":0},{"$f":"SUMIFS(Sheet1!S71_OY2AdjustedBudget,Sheet1!S71_SA34Code,$AC:$AC,Sheet1!S71_A5CapexCode,$AD:$AD)","v":0},null,null,null,null,null,null,null,null,null,null,null,null,null,null,null,"0520","CE"]
["Waste Separation Facilities",null,{"$f":"SUMIFS(Sheet1!S71_OriginalBudget,Sheet1!S71_SA34Code,$AC:$AC,Sheet1!S71_A5CapexCode,$AD:$AD)","v":0},{"$f":"SUMIFS(Sheet1!S71_PreviousBudget,Sheet1!S71_SA34Code,$AC:$AC,Sheet1!S71_A5CapexCode,$AD:$AD)","v":0},null,null,null,null,{"$f":"SUMIFS(Sheet1!S71_CurrentAdjustments,Sheet1!S71_SA34Code,$AC:$AC,Sheet1!S71_A5CapexCode,$AD:$AD)","v":0},0,0,{"$f":"SUMIFS(Sheet1!S71_OY1AdjustedBudget,Sheet1!S71_SA34Code,$AC:$AC,Sheet1!S71_A5CapexCode,$AD:$AD)","v":0},{"$f":"SUMIFS(Sheet1!S71_OY2AdjustedBudget,Sheet1!S71_SA34Code,$AC:$AC,Sheet1!S71_A5CapexCode,$AD:$AD)","v":0},null,null,null,null,null,null,null,null,null,null,null,null,null,null,null,"0530","CE"]
["Electricity Generation Facilities",null,{"$f":"SUMIFS(Sheet1!S71_OriginalBudget,Sheet1!S71_SA34Code,$AC:$AC,Sheet1!S71_A5CapexCode,$AD:$AD)","v":0},{"$f":"SUMIFS(Sheet1!S71_PreviousBudget,Sheet1!S71_SA34Code,$AC:$AC,Sheet1!S71_A5CapexCode,$AD:$AD)","v":0},null,null,null,null,{"$f":"SUMIFS(Sheet1!S71_CurrentAdjustments,Sheet1!S71_SA34Code,$AC:$AC,Sheet1!S71_A5CapexCode,$AD:$AD)","v":0},0,0,{"$f":"SUMIFS(Sheet1!S71_OY1AdjustedBudget,Sheet1!S71_SA34Code,$AC:$AC,Sheet1!S71_A5CapexCode,$AD:$AD)","v":0},{"$f":"SUMIFS(Sheet1!S71_OY2AdjustedBudget,Sheet1!S71_SA34Code,$AC:$AC,Sheet1!S71_A5CapexCode,$AD:$AD)","v":0},null,null,null,null,null,null,null,null,null,null,null,null,null,null,null,"0540","CE"]
["Capital Spares",null,{"$f":"SUMIFS(Sheet1!S71_OriginalBudget,Sheet1!S71_SA34Code,$AC:$AC,Sheet1!S71_A5CapexCode,$AD:$AD)","v":0},{"$f":"SUMIFS(Sheet1!S71_PreviousBudget,Sheet1!S71_SA34Code,$AC:$AC,Sheet1!S71_A5CapexCode,$AD:$AD)","v":0},null,null,null,null,{"$f":"SUMIFS(Sheet1!S71_CurrentAdjustments,Sheet1!S71_SA34Code,$AC:$AC,Sheet1!S71_A5CapexCode,$AD:$AD)","v":0},0,0,{"$f":"SUMIFS(Sheet1!S71_OY1AdjustedBudget,Sheet1!S71_SA34Code,$AC:$AC,Sheet1!S71_A5CapexCode,$AD:$AD)","v":0},{"$f":"SUMIFS(Sheet1!S71_OY2AdjustedBudget,Sheet1!S71_SA34Code,$AC:$AC,Sheet1!S71_A5CapexCode,$AD:$AD)","v":0},null,null,null,null,null,null,null,null,null,null,null,null,null,null,null,"0550","CE"]
["Rail Infrastructure",null,{"$f":"SUM(C55:C63)","v":0},{"$f":"SUM(D55:D63)","v":0},0,0,0,0,0,0,0,0,0,null,null,null,null,null,null,null,null,null,null,null,null,null,null,null,null,"CE"]
["Rail Lines",null,{"$f":"SUMIFS(Sheet1!S71_OriginalBudget,Sheet1!S71_SA34Code,$AC:$AC,Sheet1!S71_A5CapexCode,$AD:$AD)","v":0},{"$f":"SUMIFS(Sheet1!S71_PreviousBudget,Sheet1!S71_SA34Code,$AC:$AC,Sheet1!S71_A5CapexCode,$AD:$AD)","v":0},null,null,null,null,{"$f":"SUMIFS(Sheet1!S71_CurrentAdjustments,Sheet1!S71_SA34Code,$AC:$AC,Sheet1!S71_A5CapexCode,$AD:$AD)","v":0},0,0,{"$f":"SUMIFS(Sheet1!S71_OY1AdjustedBudget,Sheet1!S71_SA34Code,$AC:$AC,Sheet1!S71_A5CapexCode,$AD:$AD)","v":0},{"$f":"SUMIFS(Sheet1!S71_OY2AdjustedBudget,Sheet1!S71_SA34Code,$AC:$AC,Sheet1!S71_A5CapexCode,$AD:$AD)","v":0},null,null,null,null,null,null,null,null,null,null,null,null,null,null,null,"0570","CE"]
["Rail Structures",null,{"$f":"SUMIFS(Sheet1!S71_OriginalBudget,Sheet1!S71_SA34Code,$AC:$AC,Sheet1!S71_A5CapexCode,$AD:$AD)","v":0},{"$f":"SUMIFS(Sheet1!S71_PreviousBudget,Sheet1!S71_SA34Code,$AC:$AC,Sheet1!S71_A5CapexCode,$AD:$AD)","v":0},null,null,null,null,{"$f":"SUMIFS(Sheet1!S71_CurrentAdjustments,Sheet1!S71_SA34Code,$AC:$AC,Sheet1!S71_A5CapexCode,$AD:$AD)","v":0},0,0,{"$f":"SUMIFS(Sheet1!S71_OY1AdjustedBudget,Sheet1!S71_SA34Code,$AC:$AC,Sheet1!S71_A5CapexCode,$AD:$AD)","v":0},{"$f":"SUMIFS(Sheet1!S71_OY2AdjustedBudget,Sheet1!S71_SA34Code,$AC:$AC,Sheet1!S71_A5CapexCode,$AD:$AD)","v":0},null,null,null,null,null,null,null,null,null,null,null,null,null,null,null,"0580","CE"]
["Rail Furniture",null,{"$f":"SUMIFS(Sheet1!S71_OriginalBudget,Sheet1!S71_SA34Code,$AC:$AC,Sheet1!S71_A5CapexCode,$AD:$AD)","v":0},{"$f":"SUMIFS(Sheet1!S71_PreviousBudget,Sheet1!S71_SA34Code,$AC:$AC,Sheet1!S71_A5CapexCode,$AD:$AD)","v":0},null,null,null,null,{"$f":"SUMIFS(Sheet1!S71_CurrentAdjustments,Sheet1!S71_SA34Code,$AC:$AC,Sheet1!S71_A5CapexCode,$AD:$AD)","v":0},0,0,{"$f":"SUMIFS(Sheet1!S71_OY1AdjustedBudget,Sheet1!S71_SA34Code,$AC:$AC,Sheet1!S71_A5CapexCode,$AD:$AD)","v":0},{"$f":"SUMIFS(Sheet1!S71_OY2AdjustedBudget,Sheet1!S71_SA34Code,$AC:$AC,Sheet1!S71_A5CapexCode,$AD:$AD)","v":0},null,null,null,null,null,null,null,null,null,null,null,null,null,null,null,"0590","CE"]
["Drainage Collection",null,{"$f":"SUMIFS(Sheet1!S71_OriginalBudget,Sheet1!S71_SA34Code,$AC:$AC,Sheet1!S71_A5CapexCode,$AD:$AD)","v":0},{"$f":"SUMIFS(Sheet1!S71_PreviousBudget,Sheet1!S71_SA34Code,$AC:$AC,Sheet1!S71_A5CapexCode,$AD:$AD)","v":0},null,null,null,null,{"$f":"SUMIFS(Sheet1!S71_CurrentAdjustments,Sheet1!S71_SA34Code,$AC:$AC,Sheet1!S71_A5CapexCode,$AD:$AD)","v":0},0,0,{"$f":"SUMIFS(Sheet1!S71_OY1AdjustedBudget,Sheet1!S71_SA34Code,$AC:$AC,Sheet1!S71_A5CapexCode,$AD:$AD)","v":0},{"$f":"SUMIFS(Sheet1!S71_OY2AdjustedBudget,Sheet1!S71_SA34Code,$AC:$AC,Sheet1!S71_A5CapexCode,$AD:$AD)","v":0},null,null,null,null,null,null,null,null,null,null,null,null,null,null,null,"0600","CE"]
["Storm water Conveyance",null,{"$f":"SUMIFS(Sheet1!S71_OriginalBudget,Sheet1!S71_SA34Code,$AC:$AC,Sheet1!S71_A5CapexCode,$AD:$AD)","v":0},{"$f":"SUMIFS(Sheet1!S71_PreviousBudget,Sheet1!S71_SA34Code,$AC:$AC,Sheet1!S71_A5CapexCode,$AD:$AD)","v":0},null,null,null,null,{"$f":"SUMIFS(Sheet1!S71_CurrentAdjustments,Sheet1!S71_SA34Code,$AC:$AC,Sheet1!S71_A5CapexCode,$AD:$AD)","v":0},0,0,{"$f":"SUMIFS(Sheet1!S71_OY1AdjustedBudget,Sheet1!S71_SA34Code,$AC:$AC,Sheet1!S71_A5CapexCode,$AD:$AD)","v":0},{"$f":"SUMIFS(Sheet1!S71_OY2AdjustedBudget,Sheet1!S71_SA34Code,$AC:$AC,Sheet1!S71_A5CapexCode,$AD:$AD)","v":0},null,null,null,null,null,null,null,null,null,null,null,null,null,null,null,"0610","CE"]
["Attenuation",null,{"$f":"SUMIFS(Sheet1!S71_OriginalBudget,Sheet1!S71_SA34Code,$AC:$AC,Sheet1!S71_A5CapexCode,$AD:$AD)","v":0},{"$f":"SUMIFS(Sheet1!S71_PreviousBudget,Sheet1!S71_SA34Code,$AC:$AC,Sheet1!S71_A5CapexCode,$AD:$AD)","v":0},null,null,null,null,{"$f":"SUMIFS(Sheet1!S71_CurrentAdjustments,Sheet1!S71_SA34Code,$AC:$AC,Sheet1!S71_A5CapexCode,$AD:$AD)","v":0},0,0,{"$f":"SUMIFS(Sheet1!S71_OY1AdjustedBudget,Sheet1!S71_SA34Code,$AC:$AC,Sheet1!S71_A5CapexCode,$AD:$AD)","v":0},{"$f":"SUMIFS(Sheet1!S71_OY2AdjustedBudget,Sheet1!S71_SA34Code,$AC:$AC,Sheet1!S71_A5CapexCode,$AD:$AD)","v":0},null,null,null,null,null,null,null,null,null,null,null,null,null,null,null,"0620","CE"]
["MV Substations",null,{"$f":"SUMIFS(Sheet1!S71_OriginalBudget,Sheet1!S71_SA34Code,$AC:$AC,Sheet1!S71_A5CapexCode,$AD:$AD)","v":0},{"$f":"SUMIFS(Sheet1!S71_PreviousBudget,Sheet1!S71_SA34Code,$AC:$AC,Sheet1!S71_A5CapexCode,$AD:$AD)","v":0},null,null,null,null,{"$f":"SUMIFS(Sheet1!S71_CurrentAdjustments,Sheet1!S71_SA34Code,$AC:$AC,Sheet1!S71_A5CapexCode,$AD:$AD)","v":0},0,0,{"$f":"SUMIFS(Sheet1!S71_OY1AdjustedBudget,Sheet1!S71_SA34Code,$AC:$AC,Sheet1!S71_A5CapexCode,$AD:$AD)","v":0},{"$f":"SUMIFS(Sheet1!S71_OY2AdjustedBudget,Sheet1!S71_SA34Code,$AC:$AC,Sheet1!S71_A5CapexCode,$AD:$AD)","v":0},null,null,null,null,null,null,null,null,null,null,null,null,null,null,null,"0630","CE"]
["LV Networks",null,{"$f":"SUMIFS(Sheet1!S71_OriginalBudget,Sheet1!S71_SA34Code,$AC:$AC,Sheet1!S71_A5CapexCode,$AD:$AD)","v":0},{"$f":"SUMIFS(Sheet1!S71_PreviousBudget,Sheet1!S71_SA34Code,$AC:$AC,Sheet1!S71_A5CapexCode,$AD:$AD)","v":0},null,null,null,null,{"$f":"SUMIFS(Sheet1!S71_CurrentAdjustments,Sheet1!S71_SA34Code,$AC:$AC,Sheet1!S71_A5CapexCode,$AD:$AD)","v":0},0,0,{"$f":"SUMIFS(Sheet1!S71_OY1AdjustedBudget,Sheet1!S71_SA34Code,$AC:$AC,Sheet1!S71_A5CapexCode,$AD:$AD)","v":0},{"$f":"SUMIFS(Sheet1!S71_OY2AdjustedBudget,Sheet1!S71_SA34Code,$AC:$AC,Sheet1!S71_A5CapexCode,$AD:$AD)","v":0},null,null,null,null,null,null,null,null,null,null,null,null,null,null,null,"0640","CE"]
["Capital Spares",null,{"$f":"SUMIFS(Sheet1!S71_OriginalBudget,Sheet1!S71_SA34Code,$AC:$AC,Sheet1!S71_A5CapexCode,$AD:$AD)","v":0},{"$f":"SUMIFS(Sheet1!S71_PreviousBudget,Sheet1!S71_SA34Code,$AC:$AC,Sheet1!S71_A5CapexCode,$AD:$AD)","v":0},null,null,null,null,{"$f":"SUMIFS(Sheet1!S71_CurrentAdjustments,Sheet1!S71_SA34Code,$AC:$AC,Sheet1!S71_A5CapexCode,$AD:$AD)","v":0},0,0,{"$f":"SUMIFS(Sheet1!S71_OY1AdjustedBudget,Sheet1!S71_SA34Code,$AC:$AC,Sheet1!S71_A5CapexCode,$AD:$AD)","v":0},{"$f":"SUMIFS(Sheet1!S71_OY2AdjustedBudget,Sheet1!S71_SA34Code,$AC:$AC,Sheet1!S71_A5CapexCode,$AD:$AD)","v":0},null,null,null,null,null,null,null,null,null,null,null,null,null,null,null,"0650","CE"]
["Coastal Infrastructure",null,{"$f":"SUM(C65:C69)","v":0},0,0,0,0,0,0,0,0,0,0,null,null,null,null,null,null,null,null,null,null,null,null,null,null,null,null,"CE"]
["Sand Pumps",null,{"$f":"SUMIFS(Sheet1!S71_OriginalBudget,Sheet1!S71_SA34Code,$AC:$AC,Sheet1!S71_A5CapexCode,$AD:$AD)","v":0},{"$f":"SUMIFS(Sheet1!S71_PreviousBudget,Sheet1!S71_SA34Code,$AC:$AC,Sheet1!S71_A5CapexCode,$AD:$AD)","v":0},null,null,null,null,{"$f":"SUMIFS(Sheet1!S71_CurrentAdjustments,Sheet1!S71_SA34Code,$AC:$AC,Sheet1!S71_A5CapexCode,$AD:$AD)","v":0},0,0,{"$f":"SUMIFS(Sheet1!S71_OY1AdjustedBudget,Sheet1!S71_SA34Code,$AC:$AC,Sheet1!S71_A5CapexCode,$AD:$AD)","v":0},{"$f":"SUMIFS(Sheet1!S71_OY2AdjustedBudget,Sheet1!S71_SA34Code,$AC:$AC,Sheet1!S71_A5CapexCode,$AD:$AD)","v":0},null,null,null,null,null,null,null,null,null,null,null,null,null,null,null,"0670","CE"]
["Piers",null,{"$f":"SUMIFS(Sheet1!S71_OriginalBudget,Sheet1!S71_SA34Code,$AC:$AC,Sheet1!S71_A5CapexCode,$AD:$AD)","v":0},{"$f":"SUMIFS(Sheet1!S71_PreviousBudget,Sheet1!S71_SA34Code,$AC:$AC,Sheet1!S71_A5CapexCode,$AD:$AD)","v":0},null,null,null,null,{"$f":"SUMIFS(Sheet1!S71_CurrentAdjustments,Sheet1!S71_SA34Code,$AC:$AC,Sheet1!S71_A5CapexCode,$AD:$AD)","v":0},0,0,{"$f":"SUMIFS(Sheet1!S71_OY1AdjustedBudget,Sheet1!S71_SA34Code,$AC:$AC,Sheet1!S71_A5CapexCode,$AD:$AD)","v":0},{"$f":"SUMIFS(Sheet1!S71_OY2AdjustedBudget,Sheet1!S71_SA34Code,$AC:$AC,Sheet1!S71_A5CapexCode,$AD:$AD)","v":0},null,null,null,null,null,null,null,null,null,null,null,null,null,null,null,"0680","CE"]
["Revetments",null,{"$f":"SUMIFS(Sheet1!S71_OriginalBudget,Sheet1!S71_SA34Code,$AC:$AC,Sheet1!S71_A5CapexCode,$AD:$AD)","v":0},{"$f":"SUMIFS(Sheet1!S71_PreviousBudget,Sheet1!S71_SA34Code,$AC:$AC,Sheet1!S71_A5CapexCode,$AD:$AD)","v":0},null,null,null,null,{"$f":"SUMIFS(Sheet1!S71_CurrentAdjustments,Sheet1!S71_SA34Code,$AC:$AC,Sheet1!S71_A5CapexCode,$AD:$AD)","v":0},0,0,{"$f":"SUMIFS(Sheet1!S71_OY1AdjustedBudget,Sheet1!S71_SA34Code,$AC:$AC,Sheet1!S71_A5CapexCode,$AD:$AD)","v":0},{"$f":"SUMIFS(Sheet1!S71_OY2AdjustedBudget,Sheet1!S71_SA34Code,$AC:$AC,Sheet1!S71_A5CapexCode,$AD:$AD)","v":0},null,null,null,null,null,null,null,null,null,null,null,null,null,null,null,"0690","CE"]
["Promenades",null,{"$f":"SUMIFS(Sheet1!S71_OriginalBudget,Sheet1!S71_SA34Code,$AC:$AC,Sheet1!S71_A5CapexCode,$AD:$AD)","v":0},{"$f":"SUMIFS(Sheet1!S71_PreviousBudget,Sheet1!S71_SA34Code,$AC:$AC,Sheet1!S71_A5CapexCode,$AD:$AD)","v":0},null,null,null,null,{"$f":"SUMIFS(Sheet1!S71_CurrentAdjustments,Sheet1!S71_SA34Code,$AC:$AC,Sheet1!S71_A5CapexCode,$AD:$AD)","v":0},0,0,{"$f":"SUMIFS(Sheet1!S71_OY1AdjustedBudget,Sheet1!S71_SA34Code,$AC:$AC,Sheet1!S71_A5CapexCode,$AD:$AD)","v":0},{"$f":"SUMIFS(Sheet1!S71_OY2AdjustedBudget,Sheet1!S71_SA34Code,$AC:$AC,Sheet1!S71_A5CapexCode,$AD:$AD)","v":0},null,null,null,null,null,null,null,null,null,null,null,null,null,null,null,"0700","CE"]
["Capital Spares",null,{"$f":"SUMIFS(Sheet1!S71_OriginalBudget,Sheet1!S71_SA34Code,$AC:$AC,Sheet1!S71_A5CapexCode,$AD:$AD)","v":0},{"$f":"SUMIFS(Sheet1!S71_PreviousBudget,Sheet1!S71_SA34Code,$AC:$AC,Sheet1!S71_A5CapexCode,$AD:$AD)","v":0},null,null,null,null,{"$f":"SUMIFS(Sheet1!S71_CurrentAdjustments,Sheet1!S71_SA34Code,$AC:$AC,Sheet1!S71_A5CapexCode,$AD:$AD)","v":0},0,0,{"$f":"SUMIFS(Sheet1!S71_OY1AdjustedBudget,Sheet1!S71_SA34Code,$AC:$AC,Sheet1!S71_A5CapexCode,$AD:$AD)","v":0},{"$f":"SUMIFS(Sheet1!S71_OY2AdjustedBudget,Sheet1!S71_SA34Code,$AC:$AC,Sheet1!S71_A5CapexCode,$AD:$AD)","v":0},null,null,null,null,null,null,null,null,null,null,null,null,null,null,null,"0710","CE"]
["Information and Communication Infrastructure",null,{"$f":"SUM(C71:C74)","v":0},0,0,0,0,0,0,0,0,0,0,null,null,null,null,null,null,null,null,null,null,null,null,null,null,null,null,"CE"]
["Data Centres",null,{"$f":"SUMIFS(Sheet1!S71_OriginalBudget,Sheet1!S71_SA34Code,$AC:$AC,Sheet1!S71_A5CapexCode,$AD:$AD)","v":0},{"$f":"SUMIFS(Sheet1!S71_PreviousBudget,Sheet1!S71_SA34Code,$AC:$AC,Sheet1!S71_A5CapexCode,$AD:$AD)","v":0},null,null,null,null,{"$f":"SUMIFS(Sheet1!S71_CurrentAdjustments,Sheet1!S71_SA34Code,$AC:$AC,Sheet1!S71_A5CapexCode,$AD:$AD)","v":0},0,0,{"$f":"SUMIFS(Sheet1!S71_OY1AdjustedBudget,Sheet1!S71_SA34Code,$AC:$AC,Sheet1!S71_A5CapexCode,$AD:$AD)","v":0},{"$f":"SUMIFS(Sheet1!S71_OY2AdjustedBudget,Sheet1!S71_SA34Code,$AC:$AC,Sheet1!S71_A5CapexCode,$AD:$AD)","v":0},null,null,null,null,null,null,null,null,null,null,null,null,null,null,null,"0730","CE"]
["Core Layers",null,{"$f":"SUMIFS(Sheet1!S71_OriginalBudget,Sheet1!S71_SA34Code,$AC:$AC,Sheet1!S71_A5CapexCode,$AD:$AD)","v":0},{"$f":"SUMIFS(Sheet1!S71_PreviousBudget,Sheet1!S71_SA34Code,$AC:$AC,Sheet1!S71_A5CapexCode,$AD:$AD)","v":0},null,null,null,null,{"$f":"SUMIFS(Sheet1!S71_CurrentAdjustments,Sheet1!S71_SA34Code,$AC:$AC,Sheet1!S71_A5CapexCode,$AD:$AD)","v":0},0,0,{"$f":"SUMIFS(Sheet1!S71_OY1AdjustedBudget,Sheet1!S71_SA34Code,$AC:$AC,Sheet1!S71_A5CapexCode,$AD:$AD)","v":0},{"$f":"SUMIFS(Sheet1!S71_OY2AdjustedBudget,Sheet1!S71_SA34Code,$AC:$AC,Sheet1!S71_A5CapexCode,$AD:$AD)","v":0},null,null,null,null,null,null,null,null,null,null,null,null,null,null,null,"0740","CE"]
["Distribution Layers",null,{"$f":"SUMIFS(Sheet1!S71_OriginalBudget,Sheet1!S71_SA34Code,$AC:$AC,Sheet1!S71_A5CapexCode,$AD:$AD)","v":0},{"$f":"SUMIFS(Sheet1!S71_PreviousBudget,Sheet1!S71_SA34Code,$AC:$AC,Sheet1!S71_A5CapexCode,$AD:$AD)","v":0},null,null,null,null,{"$f":"SUMIFS(Sheet1!S71_CurrentAdjustments,Sheet1!S71_SA34Code,$AC:$AC,Sheet1!S71_A5CapexCode,$AD:$AD)","v":0},{"$f":"SUM(E73:I73)","v":0},{"$f":"IF(D73=0,C73+J73,D73+J73)","v":0},{"$f":"SUMIFS(Sheet1!S71_OY1AdjustedBudget,Sheet1!S71_SA34Code,$AC:$AC,Sheet1!S71_A5CapexCode,$AD:$AD)","v":0},{"$f":"SUMIFS(Sheet1!S71_OY2AdjustedBudget,Sheet1!S71_SA34Code,$AC:$AC,Sheet1!S71_A5CapexCode,$AD:$AD)","v":0},null,null,null,null,null,null,null,null,null,null,null,null,null,null,null,"0750","CE"]
["Capital Spares",null,{"$f":"SUMIFS(Sheet1!S71_OriginalBudget,Sheet1!S71_SA34Code,$AC:$AC,Sheet1!S71_A5CapexCode,$AD:$AD)","v":0},{"$f":"SUMIFS(Sheet1!S71_PreviousBudget,Sheet1!S71_SA34Code,$AC:$AC,Sheet1!S71_A5CapexCode,$AD:$AD)","v":0},null,null,null,null,{"$f":"SUMIFS(Sheet1!S71_CurrentAdjustments,Sheet1!S71_SA34Code,$AC:$AC,Sheet1!S71_A5CapexCode,$AD:$AD)","v":0},{"$f":"SUM(E74:I74)","v":0},{"$f":"IF(D74=0,C74+J74,D74+J74)","v":0},{"$f":"SUMIFS(Sheet1!S71_OY1AdjustedBudget,Sheet1!S71_SA34Code,$AC:$AC,Sheet1!S71_A5CapexCode,$AD:$AD)","v":0},{"$f":"SUMIFS(Sheet1!S71_OY2AdjustedBudget,Sheet1!S71_SA34Code,$AC:$AC,Sheet1!S71_A5CapexCode,$AD:$AD)","v":0},null,null,null,null,null,null,null,null,null,null,null,null,null,null,null,"0760","CE"]
[null,null,null,null,null,null,null,null,null,null,null,null,null,null,null,null,null,null,null,null,null,null,null,null,null,null,null,null,null,"CE"]
["Community Assets",null,{"$f":"+C77+C100","v":2608696},{"$f":"+D77+D100","v":869566},{"$f":"+E77+E100","v":0},0,0,0,0,{"$f":"SUM(E76:I76)","v":0},{"$f":"IF(D76=0,C76+J76,D76+J76)","v":869566},0,0,null,null,null,null,null,null,null,null,null,null,null,null,null,null,null,null,"CE"]
["Community Facilities",null,{"$f":"SUM(C78:C99)","v":2608696},{"$f":"SUM(D78:D99)","v":869566},0,0,0,0,0,0,869566,{"$f":"SUM(L78:L99)","v":0},{"$f":"SUM(M78:M99)","v":0},null,null,null,null,null,null,null,null,null,null,null,null,null,null,null,null,"CE"]
["Halls",null,{"$f":"SUMIFS(Sheet1!S71_OriginalBudget,Sheet1!S71_SA34Code,$AC:$AC,Sheet1!S71_A5CapexCode,$AD:$AD)","v":0},{"$f":"SUMIFS(Sheet1!S71_PreviousBudget,Sheet1!S71_SA34Code,$AC:$AC,Sheet1!S71_A5CapexCode,$AD:$AD)","v":0},null,null,null,null,{"$f":"SUMIFS(Sheet1!S71_CurrentAdjustments,Sheet1!S71_SA34Code,$AC:$AC,Sheet1!S71_A5CapexCode,$AD:$AD)","v":0},0,0,{"$f":"SUMIFS(Sheet1!S71_OY1AdjustedBudget,Sheet1!S71_SA34Code,$AC:$AC,Sheet1!S71_A5CapexCode,$AD:$AD)","v":0},{"$f":"SUMIFS(Sheet1!S71_OY2AdjustedBudget,Sheet1!S71_SA34Code,$AC:$AC,Sheet1!S71_A5CapexCode,$AD:$AD)","v":0},null,null,null,null,null,null,null,null,null,null,null,null,null,null,null,"0790","CE"]
["Centres",null,{"$f":"SUMIFS(Sheet1!S71_OriginalBudget,Sheet1!S71_SA34Code,$AC:$AC,Sheet1!S71_A5CapexCode,$AD:$AD)","v":0},{"$f":"SUMIFS(Sheet1!S71_PreviousBudget,Sheet1!S71_SA34Code,$AC:$AC,Sheet1!S71_A5CapexCode,$AD:$AD)","v":0},null,null,null,null,{"$f":"SUMIFS(Sheet1!S71_CurrentAdjustments,Sheet1!S71_SA34Code,$AC:$AC,Sheet1!S71_A5CapexCode,$AD:$AD)","v":0},0,0,{"$f":"SUMIFS(Sheet1!S71_OY1AdjustedBudget,Sheet1!S71_SA34Code,$AC:$AC,Sheet1!S71_A5CapexCode,$AD:$AD)","v":0},{"$f":"SUMIFS(Sheet1!S71_OY2AdjustedBudget,Sheet1!S71_SA34Code,$AC:$AC,Sheet1!S71_A5CapexCode,$AD:$AD)","v":0},null,null,null,null,null,null,null,null,null,null,null,null,null,null,null,"0800","CE"]
["Crèches",null,{"$f":"SUMIFS(Sheet1!S71_OriginalBudget,Sheet1!S71_SA34Code,$AC:$AC,Sheet1!S71_A5CapexCode,$AD:$AD)","v":0},{"$f":"SUMIFS(Sheet1!S71_PreviousBudget,Sheet1!S71_SA34Code,$AC:$AC,Sheet1!S71_A5CapexCode,$AD:$AD)","v":0},null,null,null,null,{"$f":"SUMIFS(Sheet1!S71_CurrentAdjustments,Sheet1!S71_SA34Code,$AC:$AC,Sheet1!S71_A5CapexCode,$AD:$AD)","v":0},0,0,{"$f":"SUMIFS(Sheet1!S71_OY1AdjustedBudget,Sheet1!S71_SA34Code,$AC:$AC,Sheet1!S71_A5CapexCode,$AD:$AD)","v":0},{"$f":"SUMIFS(Sheet1!S71_OY2AdjustedBudget,Sheet1!S71_SA34Code,$AC:$AC,Sheet1!S71_A5CapexCode,$AD:$AD)","v":0},null,null,null,null,null,null,null,null,null,null,null,null,null,null,null,"0810","CE"]
["Clinics/Care Centres",null,{"$f":"SUMIFS(Sheet1!S71_OriginalBudget,Sheet1!S71_SA34Code,$AC:$AC,Sheet1!S71_A5CapexCode,$AD:$AD)","v":0},{"$f":"SUMIFS(Sheet1!S71_PreviousBudget,Sheet1!S71_SA34Code,$AC:$AC,Sheet1!S71_A5CapexCode,$AD:$AD)","v":0},null,null,null,null,{"$f":"SUMIFS(Sheet1!S71_CurrentAdjustments,Sheet1!S71_SA34Code,$AC:$AC,Sheet1!S71_A5CapexCode,$AD:$AD)","v":0},0,0,{"$f":"SUMIFS(Sheet1!S71_OY1AdjustedBudget,Sheet1!S71_SA34Code,$AC:$AC,Sheet1!S71_A5CapexCode,$AD:$AD)","v":0},{"$f":"SUMIFS(Sheet1!S71_OY2AdjustedBudget,Sheet1!S71_SA34Code,$AC:$AC,Sheet1!S71_A5CapexCode,$AD:$AD)","v":0},null,null,null,null,null,null,null,null,null,null,null,null,null,null,null,"0820","CE"]
["Fire/Ambulance Stations",null,{"$f":"SUMIFS(Sheet1!S71_OriginalBudget,Sheet1!S71_SA34Code,$AC:$AC,Sheet1!S71_A5CapexCode,$AD:$AD)","v":0},{"$f":"SUMIFS(Sheet1!S71_PreviousBudget,Sheet1!S71_SA34Code,$AC:$AC,Sheet1!S71_A5CapexCode,$AD:$AD)","v":0},null,null,null,null,{"$f":"SUMIFS(Sheet1!S71_CurrentAdjustments,Sheet1!S71_SA34Code,$AC:$AC,Sheet1!S71_A5CapexCode,$AD:$AD)","v":0},0,0,{"$f":"SUMIFS(Sheet1!S71_OY1AdjustedBudget,Sheet1!S71_SA34Code,$AC:$AC,Sheet1!S71_A5CapexCode,$AD:$AD)","v":0},{"$f":"SUMIFS(Sheet1!S71_OY2AdjustedBudget,Sheet1!S71_SA34Code,$AC:$AC,Sheet1!S71_A5CapexCode,$AD:$AD)","v":0},null,null,null,null,null,null,null,null,null,null,null,null,null,null,null,"0830","CE"]
["Testing Stations",null,{"$f":"SUMIFS(Sheet1!S71_OriginalBudget,Sheet1!S71_SA34Code,$AC:$AC,Sheet1!S71_A5CapexCode,$AD:$AD)","v":0},{"$f":"SUMIFS(Sheet1!S71_PreviousBudget,Sheet1!S71_SA34Code,$AC:$AC,Sheet1!S71_A5CapexCode,$AD:$AD)","v":0},null,null,null,null,{"$f":"SUMIFS(Sheet1!S71_CurrentAdjustments,Sheet1!S71_SA34Code,$AC:$AC,Sheet1!S71_A5CapexCode,$AD:$AD)","v":0},0,0,{"$f":"SUMIFS(Sheet1!S71_OY1AdjustedBudget,Sheet1!S71_SA34Code,$AC:$AC,Sheet1!S71_A5CapexCode,$AD:$AD)","v":0},{"$f":"SUMIFS(Sheet1!S71_OY2AdjustedBudget,Sheet1!S71_SA34Code,$AC:$AC,Sheet1!S71_A5CapexCode,$AD:$AD)","v":0},null,null,null,null,null,null,null,null,null,null,null,null,null,null,null,"0840","CE"]
["Museums",null,{"$f":"SUMIFS(Sheet1!S71_OriginalBudget,Sheet1!S71_SA34Code,$AC:$AC,Sheet1!S71_A5CapexCode,$AD:$AD)","v":0},{"$f":"SUMIFS(Sheet1!S71_PreviousBudget,Sheet1!S71_SA34Code,$AC:$AC,Sheet1!S71_A5CapexCode,$AD:$AD)","v":0},null,null,null,null,{"$f":"SUMIFS(Sheet1!S71_CurrentAdjustments,Sheet1!S71_SA34Code,$AC:$AC,Sheet1!S71_A5CapexCode,$AD:$AD)","v":0},0,0,{"$f":"SUMIFS(Sheet1!S71_OY1AdjustedBudget,Sheet1!S71_SA34Code,$AC:$AC,Sheet1!S71_A5CapexCode,$AD:$AD)","v":0},{"$f":"SUMIFS(Sheet1!S71_OY2AdjustedBudget,Sheet1!S71_SA34Code,$AC:$AC,Sheet1!S71_A5CapexCode,$AD:$AD)","v":0},null,null,null,null,null,null,null,null,null,null,null,null,null,null,null,"0850","CE"]
["Galleries",null,{"$f":"SUMIFS(Sheet1!S71_OriginalBudget,Sheet1!S71_SA34Code,$AC:$AC,Sheet1!S71_A5CapexCode,$AD:$AD)","v":0},{"$f":"SUMIFS(Sheet1!S71_PreviousBudget,Sheet1!S71_SA34Code,$AC:$AC,Sheet1!S71_A5CapexCode,$AD:$AD)","v":0},null,null,null,null,{"$f":"SUMIFS(Sheet1!S71_CurrentAdjustments,Sheet1!S71_SA34Code,$AC:$AC,Sheet1!S71_A5CapexCode,$AD:$AD)","v":0},0,0,{"$f":"SUMIFS(Sheet1!S71_OY1AdjustedBudget,Sheet1!S71_SA34Code,$AC:$AC,Sheet1!S71_A5CapexCode,$AD:$AD)","v":0},{"$f":"SUMIFS(Sheet1!S71_OY2AdjustedBudget,Sheet1!S71_SA34Code,$AC:$AC,Sheet1!S71_A5CapexCode,$AD:$AD)","v":0},null,null,null,null,null,null,null,null,null,null,null,null,null,null,null,"0860","CE"]
["Theatres",null,{"$f":"SUMIFS(Sheet1!S71_OriginalBudget,Sheet1!S71_SA34Code,$AC:$AC,Sheet1!S71_A5CapexCode,$AD:$AD)","v":0},{"$f":"SUMIFS(Sheet1!S71_PreviousBudget,Sheet1!S71_SA34Code,$AC:$AC,Sheet1!S71_A5CapexCode,$AD:$AD)","v":0},null,null,null,null,{"$f":"SUMIFS(Sheet1!S71_CurrentAdjustments,Sheet1!S71_SA34Code,$AC:$AC,Sheet1!S71_A5CapexCode,$AD:$AD)","v":0},0,0,{"$f":"SUMIFS(Sheet1!S71_OY1AdjustedBudget,Sheet1!S71_SA34Code,$AC:$AC,Sheet1!S71_A5CapexCode,$AD:$AD)","v":0},{"$f":"SUMIFS(Sheet1!S71_OY2AdjustedBudget,Sheet1!S71_SA34Code,$AC:$AC,Sheet1!S71_A5CapexCode,$AD:$AD)","v":0},null,null,null,null,null,null,null,null,null,null,null,null,null,null,null,"0870","CE"]
["Libraries",null,{"$f":"SUMIFS(Sheet1!S71_OriginalBudget,Sheet1!S71_SA34Code,$AC:$AC,Sheet1!S71_A5CapexCode,$AD:$AD)","v":0},{"$f":"SUMIFS(Sheet1!S71_PreviousBudget,Sheet1!S71_SA34Code,$AC:$AC,Sheet1!S71_A5CapexCode,$AD:$AD)","v":0},null,null,null,null,{"$f":"SUMIFS(Sheet1!S71_CurrentAdjustments,Sheet1!S71_SA34Code,$AC:$AC,Sheet1!S71_A5CapexCode,$AD:$AD)","v":0},0,0,{"$f":"SUMIFS(Sheet1!S71_OY1AdjustedBudget,Sheet1!S71_SA34Code,$AC:$AC,Sheet1!S71_A5CapexCode,$AD:$AD)","v":0},{"$f":"SUMIFS(Sheet1!S71_OY2AdjustedBudget,Sheet1!S71_SA34Code,$AC:$AC,Sheet1!S71_A5CapexCode,$AD:$AD)","v":0},null,null,null,null,null,null,null,null,null,null,null,null,null,null,null,"0880","CE"]
["Cemeteries/Crematoria",null,{"$f":"SUMIFS(Sheet1!S71_OriginalBudget,Sheet1!S71_SA34Code,$AC:$AC,Sheet1!S71_A5CapexCode,$AD:$AD)","v":0},{"$f":"SUMIFS(Sheet1!S71_PreviousBudget,Sheet1!S71_SA34Code,$AC:$AC,Sheet1!S71_A5CapexCode,$AD:$AD)","v":0},null,null,null,null,{"$f":"SUMIFS(Sheet1!S71_CurrentAdjustments,Sheet1!S71_SA34Code,$AC:$AC,Sheet1!S71_A5CapexCode,$AD:$AD)","v":0},0,0,{"$f":"SUMIFS(Sheet1!S71_OY1AdjustedBudget,Sheet1!S71_SA34Code,$AC:$AC,Sheet1!S71_A5CapexCode,$AD:$AD)","v":0},{"$f":"SUMIFS(Sheet1!S71_OY2AdjustedBudget,Sheet1!S71_SA34Code,$AC:$AC,Sheet1!S71_A5CapexCode,$AD:$AD)","v":0},null,null,null,null,null,null,null,null,null,null,null,null,null,null,null,"0890","CE"]
["Police",null,{"$f":"SUMIFS(Sheet1!S71_OriginalBudget,Sheet1!S71_SA34Code,$AC:$AC,Sheet1!S71_A5CapexCode,$AD:$AD)","v":0},{"$f":"SUMIFS(Sheet1!S71_PreviousBudget,Sheet1!S71_SA34Code,$AC:$AC,Sheet1!S71_A5CapexCode,$AD:$AD)","v":0},null,null,null,null,{"$f":"SUMIFS(Sheet1!S71_CurrentAdjustments,Sheet1!S71_SA34Code,$AC:$AC,Sheet1!S71_A5CapexCode,$AD:$AD)","v":0},0,0,{"$f":"SUMIFS(Sheet1!S71_OY1AdjustedBudget,Sheet1!S71_SA34Code,$AC:$AC,Sheet1!S71_A5CapexCode,$AD:$AD)","v":0},{"$f":"SUMIFS(Sheet1!S71_OY2AdjustedBudget,Sheet1!S71_SA34Code,$AC:$AC,Sheet1!S71_A5CapexCode,$AD:$AD)","v":0},null,null,null,null,null,null,null,null,null,null,null,null,null,null,null,"0900","CE"]
["Purls",null,{"$f":"SUMIFS(Sheet1!S71_OriginalBudget,Sheet1!S71_SA34Code,$AC:$AC,Sheet1!S71_A5CapexCode,$AD:$AD)","v":0},{"$f":"SUMIFS(Sheet1!S71_PreviousBudget,Sheet1!S71_SA34Code,$AC:$AC,Sheet1!S71_A5CapexCode,$AD:$AD)","v":0},null,null,null,null,{"$f":"SUMIFS(Sheet1!S71_CurrentAdjustments,Sheet1!S71_SA34Code,$AC:$AC,Sheet1!S71_A5CapexCode,$AD:$AD)","v":0},0,0,{"$f":"SUMIFS(Sheet1!S71_OY1AdjustedBudget,Sheet1!S71_SA34Code,$AC:$AC,Sheet1!S71_A5CapexCode,$AD:$AD)","v":0},{"$f":"SUMIFS(Sheet1!S71_OY2AdjustedBudget,Sheet1!S71_SA34Code,$AC:$AC,Sheet1!S71_A5CapexCode,$AD:$AD)","v":0},null,null,null,null,null,null,null,null,null,null,null,null,null,null,null,"0910","CE"]
["Public Open Space",null,{"$f":"SUMIFS(Sheet1!S71_OriginalBudget,Sheet1!S71_SA34Code,$AC:$AC,Sheet1!S71_A5CapexCode,$AD:$AD)","v":0},{"$f":"SUMIFS(Sheet1!S71_PreviousBudget,Sheet1!S71_SA34Code,$AC:$AC,Sheet1!S71_A5CapexCode,$AD:$AD)","v":0},null,null,null,null,{"$f":"SUMIFS(Sheet1!S71_CurrentAdjustments,Sheet1!S71_SA34Code,$AC:$AC,Sheet1!S71_A5CapexCode,$AD:$AD)","v":0},0,0,{"$f":"SUMIFS(Sheet1!S71_OY1AdjustedBudget,Sheet1!S71_SA34Code,$AC:$AC,Sheet1!S71_A5CapexCode,$AD:$AD)","v":0},{"$f":"SUMIFS(Sheet1!S71_OY2AdjustedBudget,Sheet1!S71_SA34Code,$AC:$AC,Sheet1!S71_A5CapexCode,$AD:$AD)","v":0},null,null,null,null,null,null,null,null,null,null,null,null,null,null,null,"0920","CE"]
["Nature Reserves",null,{"$f":"SUMIFS(Sheet1!S71_OriginalBudget,Sheet1!S71_SA34Code,$AC:$AC,Sheet1!S71_A5CapexCode,$AD:$AD)","v":0},{"$f":"SUMIFS(Sheet1!S71_PreviousBudget,Sheet1!S71_SA34Code,$AC:$AC,Sheet1!S71_A5CapexCode,$AD:$AD)","v":0},null,null,null,null,{"$f":"SUMIFS(Sheet1!S71_CurrentAdjustments,Sheet1!S71_SA34Code,$AC:$AC,Sheet1!S71_A5CapexCode,$AD:$AD)","v":0},0,0,{"$f":"SUMIFS(Sheet1!S71_OY1AdjustedBudget,Sheet1!S71_SA34Code,$AC:$AC,Sheet1!S71_A5CapexCode,$AD:$AD)","v":0},{"$f":"SUMIFS(Sheet1!S71_OY2AdjustedBudget,Sheet1!S71_SA34Code,$AC:$AC,Sheet1!S71_A5CapexCode,$AD:$AD)","v":0},null,null,null,null,null,null,null,null,null,null,null,null,null,null,null,"0930","CE"]
["Public Ablution Facilities",null,{"$f":"SUMIFS(Sheet1!S71_OriginalBudget,Sheet1!S71_SA34Code,$AC:$AC,Sheet1!S71_A5CapexCode,$AD:$AD)","v":0},{"$f":"SUMIFS(Sheet1!S71_PreviousBudget,Sheet1!S71_SA34Code,$AC:$AC,Sheet1!S71_A5CapexCode,$AD:$AD)","v":0},null,null,null,null,{"$f":"SUMIFS(Sheet1!S71_CurrentAdjustments,Sheet1!S71_SA34Code,$AC:$AC,Sheet1!S71_A5CapexCode,$AD:$AD)","v":0},0,0,{"$f":"SUMIFS(Sheet1!S71_OY1AdjustedBudget,Sheet1!S71_SA34Code,$AC:$AC,Sheet1!S71_A5CapexCode,$AD:$AD)","v":0},{"$f":"SUMIFS(Sheet1!S71_OY2AdjustedBudget,Sheet1!S71_SA34Code,$AC:$AC,Sheet1!S71_A5CapexCode,$AD:$AD)","v":0},null,null,null,null,null,null,null,null,null,null,null,null,null,null,null,"0940","CE"]
["Markets",null,{"$f":"SUMIFS(Sheet1!S71_OriginalBudget,Sheet1!S71_SA34Code,$AC:$AC,Sheet1!S71_A5CapexCode,$AD:$AD)","v":0},{"$f":"SUMIFS(Sheet1!S71_PreviousBudget,Sheet1!S71_SA34Code,$AC:$AC,Sheet1!S71_A5CapexCode,$AD:$AD)","v":0},null,null,null,null,{"$f":"SUMIFS(Sheet1!S71_CurrentAdjustments,Sheet1!S71_SA34Code,$AC:$AC,Sheet1!S71_A5CapexCode,$AD:$AD)","v":0},0,0,{"$f":"SUMIFS(Sheet1!S71_OY1AdjustedBudget,Sheet1!S71_SA34Code,$AC:$AC,Sheet1!S71_A5CapexCode,$AD:$AD)","v":0},{"$f":"SUMIFS(Sheet1!S71_OY2AdjustedBudget,Sheet1!S71_SA34Code,$AC:$AC,Sheet1!S71_A5CapexCode,$AD:$AD)","v":0},null,null,null,null,null,null,null,null,null,null,null,null,null,null,null,"0950","CE"]
["Stalls",null,{"$f":"SUMIFS(Sheet1!S71_OriginalBudget,Sheet1!S71_SA34Code,$AC:$AC,Sheet1!S71_A5CapexCode,$AD:$AD)","v":2608696},{"$f":"SUMIFS(Sheet1!S71_PreviousBudget,Sheet1!S71_SA34Code,$AC:$AC,Sheet1!S71_A5CapexCode,$AD:$AD)","v":869566},null,null,null,null,{"$f":"SUMIFS(Sheet1!S71_CurrentAdjustments,Sheet1!S71_SA34Code,$AC:$AC,Sheet1!S71_A5CapexCode,$AD:$AD)","v":0},0,869566,{"$f":"SUMIFS(Sheet1!S71_OY1AdjustedBudget,Sheet1!S71_SA34Code,$AC:$AC,Sheet1!S71_A5CapexCode,$AD:$AD)","v":0},{"$f":"SUMIFS(Sheet1!S71_OY2AdjustedBudget,Sheet1!S71_SA34Code,$AC:$AC,Sheet1!S71_A5CapexCode,$AD:$AD)","v":0},null,null,null,null,null,null,null,null,null,null,null,null,null,null,null,"0960","CE"]
["Abattoirs",null,{"$f":"SUMIFS(Sheet1!S71_OriginalBudget,Sheet1!S71_SA34Code,$AC:$AC,Sheet1!S71_A5CapexCode,$AD:$AD)","v":0},{"$f":"SUMIFS(Sheet1!S71_PreviousBudget,Sheet1!S71_SA34Code,$AC:$AC,Sheet1!S71_A5CapexCode,$AD:$AD)","v":0},null,null,null,null,{"$f":"SUMIFS(Sheet1!S71_CurrentAdjustments,Sheet1!S71_SA34Code,$AC:$AC,Sheet1!S71_A5CapexCode,$AD:$AD)","v":0},0,0,{"$f":"SUMIFS(Sheet1!S71_OY1AdjustedBudget,Sheet1!S71_SA34Code,$AC:$AC,Sheet1!S71_A5CapexCode,$AD:$AD)","v":0},{"$f":"SUMIFS(Sheet1!S71_OY2AdjustedBudget,Sheet1!S71_SA34Code,$AC:$AC,Sheet1!S71_A5CapexCode,$AD:$AD)","v":0},null,null,null,null,null,null,null,null,null,null,null,null,null,null,null,"0970","CE"]
["Airports",null,{"$f":"SUMIFS(Sheet1!S71_OriginalBudget,Sheet1!S71_SA34Code,$AC:$AC,Sheet1!S71_A5CapexCode,$AD:$AD)","v":0},{"$f":"SUMIFS(Sheet1!S71_PreviousBudget,Sheet1!S71_SA34Code,$AC:$AC,Sheet1!S71_A5CapexCode,$AD:$AD)","v":0},null,null,null,null,{"$f":"SUMIFS(Sheet1!S71_CurrentAdjustments,Sheet1!S71_SA34Code,$AC:$AC,Sheet1!S71_A5CapexCode,$AD:$AD)","v":0},0,0,{"$f":"SUMIFS(Sheet1!S71_OY1AdjustedBudget,Sheet1!S71_SA34Code,$AC:$AC,Sheet1!S71_A5CapexCode,$AD:$AD)","v":0},{"$f":"SUMIFS(Sheet1!S71_OY2AdjustedBudget,Sheet1!S71_SA34Code,$AC:$AC,Sheet1!S71_A5CapexCode,$AD:$AD)","v":0},null,null,null,null,null,null,null,null,null,null,null,null,null,null,null,"0980","CE"]
["Taxi Ranks/Bus Terminals",null,{"$f":"SUMIFS(Sheet1!S71_OriginalBudget,Sheet1!S71_SA34Code,$AC:$AC,Sheet1!S71_A5CapexCode,$AD:$AD)","v":0},{"$f":"SUMIFS(Sheet1!S71_PreviousBudget,Sheet1!S71_SA34Code,$AC:$AC,Sheet1!S71_A5CapexCode,$AD:$AD)","v":0},null,null,null,null,{"$f":"SUMIFS(Sheet1!S71_CurrentAdjustments,Sheet1!S71_SA34Code,$AC:$AC,Sheet1!S71_A5CapexCode,$AD:$AD)","v":0},0,0,{"$f":"SUMIFS(Sheet1!S71_OY1AdjustedBudget,Sheet1!S71_SA34Code,$AC:$AC,Sheet1!S71_A5CapexCode,$AD:$AD)","v":0},{"$f":"SUMIFS(Sheet1!S71_OY2AdjustedBudget,Sheet1!S71_SA34Code,$AC:$AC,Sheet1!S71_A5CapexCode,$AD:$AD)","v":0},null,null,null,null,null,null,null,null,null,null,null,null,null,null,null,"0990","CE"]
["Capital Spares",null,{"$f":"SUMIFS(Sheet1!S71_OriginalBudget,Sheet1!S71_SA34Code,$AC:$AC,Sheet1!S71_A5CapexCode,$AD:$AD)","v":0},{"$f":"SUMIFS(Sheet1!S71_PreviousBudget,Sheet1!S71_SA34Code,$AC:$AC,Sheet1!S71_A5CapexCode,$AD:$AD)","v":0},null,null,null,null,{"$f":"SUMIFS(Sheet1!S71_CurrentAdjustments,Sheet1!S71_SA34Code,$AC:$AC,Sheet1!S71_A5CapexCode,$AD:$AD)","v":0},0,0,{"$f":"SUMIFS(Sheet1!S71_OY1AdjustedBudget,Sheet1!S71_SA34Code,$AC:$AC,Sheet1!S71_A5CapexCode,$AD:$AD)","v":0},{"$f":"SUMIFS(Sheet1!S71_OY2AdjustedBudget,Sheet1!S71_SA34Code,$AC:$AC,Sheet1!S71_A5CapexCode,$AD:$AD)","v":0},null,null,null,null,null,null,null,null,null,null,null,null,null,null,null,"1000","CE"]
["Sport and Recreation Facilities",null,{"$f":"SUM(C101:C103)","v":0},{"$f":"SUM(D101:D103)","v":0},0,0,0,0,0,0,0,0,0,null,null,null,null,null,null,null,null,null,null,null,null,null,null,null,null,"CE"]
["Indoor Facilities",null,{"$f":"SUMIFS(Sheet1!S71_OriginalBudget,Sheet1!S71_SA34Code,$AC:$AC,Sheet1!S71_A5CapexCode,$AD:$AD)","v":0},{"$f":"SUMIFS(Sheet1!S71_PreviousBudget,Sheet1!S71_SA34Code,$AC:$AC,Sheet1!S71_A5CapexCode,$AD:$AD)","v":0},null,null,null,null,{"$f":"SUMIFS(Sheet1!S71_CurrentAdjustments,Sheet1!S71_SA34Code,$AC:$AC,Sheet1!S71_A5CapexCode,$AD:$AD)","v":0},0,0,{"$f":"SUMIFS(Sheet1!S71_OY1AdjustedBudget,Sheet1!S71_SA34Code,$AC:$AC,Sheet1!S71_A5CapexCode,$AD:$AD)","v":0},{"$f":"SUMIFS(Sheet1!S71_OY2AdjustedBudget,Sheet1!S71_SA34Code,$AC:$AC,Sheet1!S71_A5CapexCode,$AD:$AD)","v":0},null,null,null,null,null,null,null,null,null,null,null,null,null,null,null,"1020","CE"]
["Outdoor Facilities",null,{"$f":"SUMIFS(Sheet1!S71_OriginalBudget,Sheet1!S71_SA34Code,$AC:$AC,Sheet1!S71_A5CapexCode,$AD:$AD)","v":0},{"$f":"SUMIFS(Sheet1!S71_PreviousBudget,Sheet1!S71_SA34Code,$AC:$AC,Sheet1!S71_A5CapexCode,$AD:$AD)","v":0},null,null,null,null,{"$f":"SUMIFS(Sheet1!S71_CurrentAdjustments,Sheet1!S71_SA34Code,$AC:$AC,Sheet1!S71_A5CapexCode,$AD:$AD)","v":0},0,0,{"$f":"SUMIFS(Sheet1!S71_OY1AdjustedBudget,Sheet1!S71_SA34Code,$AC:$AC,Sheet1!S71_A5CapexCode,$AD:$AD)","v":0},{"$f":"SUMIFS(Sheet1!S71_OY2AdjustedBudget,Sheet1!S71_SA34Code,$AC:$AC,Sheet1!S71_A5CapexCode,$AD:$AD)","v":0},null,null,null,null,null,null,null,null,null,null,null,null,null,null,null,"1030","CE"]
["Capital Spares",null,{"$f":"SUMIFS(Sheet1!S71_OriginalBudget,Sheet1!S71_SA34Code,$AC:$AC,Sheet1!S71_A5CapexCode,$AD:$AD)","v":0},{"$f":"SUMIFS(Sheet1!S71_PreviousBudget,Sheet1!S71_SA34Code,$AC:$AC,Sheet1!S71_A5CapexCode,$AD:$AD)","v":0},null,null,null,null,{"$f":"SUMIFS(Sheet1!S71_CurrentAdjustments,Sheet1!S71_SA34Code,$AC:$AC,Sheet1!S71_A5CapexCode,$AD:$AD)","v":0},0,0,{"$f":"SUMIFS(Sheet1!S71_OY1AdjustedBudget,Sheet1!S71_SA34Code,$AC:$AC,Sheet1!S71_A5CapexCode,$AD:$AD)","v":0},{"$f":"SUMIFS(Sheet1!S71_OY2AdjustedBudget,Sheet1!S71_SA34Code,$AC:$AC,Sheet1!S71_A5CapexCode,$AD:$AD)","v":0},null,null,null,null,null,null,null,null,null,null,null,null,null,null,null,"1040","CE"]
[null,null,null,null,null,null,null,null,null,null,null,null,null,null,null,null,null,null,null,null,null,null,null,null,null,null,null,null,null,"CE"]
["Heritage assets",null,{"$f":"SUM(C106:C110)","v":0},0,0,0,0,0,0,0,0,0,0,null,null,null,null,null,null,null,null,null,null,null,null,null,null,null,null,"CE"]
["Monuments",null,{"$f":"SUMIFS(Sheet1!S71_OriginalBudget,Sheet1!S71_SA34Code,$AC:$AC,Sheet1!S71_A5CapexCode,$AD:$AD)","v":0},{"$f":"SUMIFS(Sheet1!S71_PreviousBudget,Sheet1!S71_SA34Code,$AC:$AC,Sheet1!S71_A5CapexCode,$AD:$AD)","v":0},null,null,null,null,{"$f":"SUMIFS(Sheet1!S71_CurrentAdjustments,Sheet1!S71_SA34Code,$AC:$AC,Sheet1!S71_A5CapexCode,$AD:$AD)","v":0},0,0,{"$f":"SUMIFS(Sheet1!S71_OY1AdjustedBudget,Sheet1!S71_SA34Code,$AC:$AC,Sheet1!S71_A5CapexCode,$AD:$AD)","v":0},{"$f":"SUMIFS(Sheet1!S71_OY2AdjustedBudget,Sheet1!S71_SA34Code,$AC:$AC,Sheet1!S71_A5CapexCode,$AD:$AD)","v":0},null,null,null,null,null,null,null,null,null,null,null,null,null,null,null,"1060","CE"]
["Historic Buildings",null,{"$f":"SUMIFS(Sheet1!S71_OriginalBudget,Sheet1!S71_SA34Code,$AC:$AC,Sheet1!S71_A5CapexCode,$AD:$AD)","v":0},{"$f":"SUMIFS(Sheet1!S71_PreviousBudget,Sheet1!S71_SA34Code,$AC:$AC,Sheet1!S71_A5CapexCode,$AD:$AD)","v":0},null,null,null,null,{"$f":"SUMIFS(Sheet1!S71_CurrentAdjustments,Sheet1!S71_SA34Code,$AC:$AC,Sheet1!S71_A5CapexCode,$AD:$AD)","v":0},0,0,{"$f":"SUMIFS(Sheet1!S71_OY1AdjustedBudget,Sheet1!S71_SA34Code,$AC:$AC,Sheet1!S71_A5CapexCode,$AD:$AD)","v":0},{"$f":"SUMIFS(Sheet1!S71_OY2AdjustedBudget,Sheet1!S71_SA34Code,$AC:$AC,Sheet1!S71_A5CapexCode,$AD:$AD)","v":0},null,null,null,null,null,null,null,null,null,null,null,null,null,null,null,"1070","CE"]
["Works of Art",null,{"$f":"SUMIFS(Sheet1!S71_OriginalBudget,Sheet1!S71_SA34Code,$AC:$AC,Sheet1!S71_A5CapexCode,$AD:$AD)","v":0},{"$f":"SUMIFS(Sheet1!S71_PreviousBudget,Sheet1!S71_SA34Code,$AC:$AC,Sheet1!S71_A5CapexCode,$AD:$AD)","v":0},null,null,null,null,{"$f":"SUMIFS(Sheet1!S71_CurrentAdjustments,Sheet1!S71_SA34Code,$AC:$AC,Sheet1!S71_A5CapexCode,$AD:$AD)","v":0},0,0,{"$f":"SUMIFS(Sheet1!S71_OY1AdjustedBudget,Sheet1!S71_SA34Code,$AC:$AC,Sheet1!S71_A5CapexCode,$AD:$AD)","v":0},{"$f":"SUMIFS(Sheet1!S71_OY2AdjustedBudget,Sheet1!S71_SA34Code,$AC:$AC,Sheet1!S71_A5CapexCode,$AD:$AD)","v":0},null,null,null,null,null,null,null,null,null,null,null,null,null,null,null,"1080","CE"]
["Conservation Areas",null,{"$f":"SUMIFS(Sheet1!S71_OriginalBudget,Sheet1!S71_SA34Code,$AC:$AC,Sheet1!S71_A5CapexCode,$AD:$AD)","v":0},{"$f":"SUMIFS(Sheet1!S71_PreviousBudget,Sheet1!S71_SA34Code,$AC:$AC,Sheet1!S71_A5CapexCode,$AD:$AD)","v":0},null,null,null,null,{"$f":"SUMIFS(Sheet1!S71_CurrentAdjustments,Sheet1!S71_SA34Code,$AC:$AC,Sheet1!S71_A5CapexCode,$AD:$AD)","v":0},0,0,{"$f":"SUMIFS(Sheet1!S71_OY1AdjustedBudget,Sheet1!S71_SA34Code,$AC:$AC,Sheet1!S71_A5CapexCode,$AD:$AD)","v":0},{"$f":"SUMIFS(Sheet1!S71_OY2AdjustedBudget,Sheet1!S71_SA34Code,$AC:$AC,Sheet1!S71_A5CapexCode,$AD:$AD)","v":0},null,null,null,null,null,null,null,null,null,null,null,null,null,null,null,"1090","CE"]
["Other Heritage",null,{"$f":"SUMIFS(Sheet1!S71_OriginalBudget,Sheet1!S71_SA34Code,$AC:$AC,Sheet1!S71_A5CapexCode,$AD:$AD)","v":0},{"$f":"SUMIFS(Sheet1!S71_PreviousBudget,Sheet1!S71_SA34Code,$AC:$AC,Sheet1!S71_A5CapexCode,$AD:$AD)","v":0},null,null,null,null,{"$f":"SUMIFS(Sheet1!S71_CurrentAdjustments,Sheet1!S71_SA34Code,$AC:$AC,Sheet1!S71_A5CapexCode,$AD:$AD)","v":0},0,0,{"$f":"SUMIFS(Sheet1!S71_OY1AdjustedBudget,Sheet1!S71_SA34Code,$AC:$AC,Sheet1!S71_A5CapexCode,$AD:$AD)","v":0},{"$f":"SUMIFS(Sheet1!S71_OY2AdjustedBudget,Sheet1!S71_SA34Code,$AC:$AC,Sheet1!S71_A5CapexCode,$AD:$AD)","v":0},null,null,null,null,null,null,null,null,null,null,null,null,null,null,null,"1100","CE"]
[null,null,null,null,null,null,null,null,null,null,null,null,null,null,null,null,null,null,null,null,null,null,null,null,null,null,null,null,null,"CE"]
["Investment properties",null,{"$f":"+C113+C116","v":0},{"$f":"+D113+D116","v":0},0,0,0,0,0,0,0,{"$f":"+L113+L116","v":0},{"$f":"+M113+M116","v":0},null,null,null,null,null,null,null,null,null,null,null,null,null,null,null,null,"CE"]
["Revenue Generating",null,{"$f":"SUM(C114:C115)","v":0},{"$f":"SUM(D114:D115)","v":0},{"$f":"SUM(E114:E115)","v":0},0,0,0,0,0,0,0,0,null,null,null,null,null,null,null,null,null,null,null,null,null,null,null,null,"CE"]
["Improved Property",null,{"$f":"SUMIFS(Sheet1!S71_OriginalBudget,Sheet1!S71_SA34Code,$AC:$AC,Sheet1!S71_A5CapexCode,$AD:$AD)","v":0},{"$f":"SUMIFS(Sheet1!S71_PreviousBudget,Sheet1!S71_SA34Code,$AC:$AC,Sheet1!S71_A5CapexCode,$AD:$AD)","v":0},null,null,null,null,{"$f":"SUMIFS(Sheet1!S71_CurrentAdjustments,Sheet1!S71_SA34Code,$AC:$AC,Sheet1!S71_A5CapexCode,$AD:$AD)","v":0},0,0,{"$f":"SUMIFS(Sheet1!S71_OY1AdjustedBudget,Sheet1!S71_SA34Code,$AC:$AC,Sheet1!S71_A5CapexCode,$AD:$AD)","v":0},{"$f":"SUMIFS(Sheet1!S71_OY2AdjustedBudget,Sheet1!S71_SA34Code,$AC:$AC,Sheet1!S71_A5CapexCode,$AD:$AD)","v":0},null,null,null,null,null,null,null,null,null,null,null,null,null,null,null,"1130","CE"]
["Unimproved Property",null,{"$f":"SUMIFS(Sheet1!S71_OriginalBudget,Sheet1!S71_SA34Code,$AC:$AC,Sheet1!S71_A5CapexCode,$AD:$AD)","v":0},{"$f":"SUMIFS(Sheet1!S71_PreviousBudget,Sheet1!S71_SA34Code,$AC:$AC,Sheet1!S71_A5CapexCode,$AD:$AD)","v":0},null,null,null,null,{"$f":"SUMIFS(Sheet1!S71_CurrentAdjustments,Sheet1!S71_SA34Code,$AC:$AC,Sheet1!S71_A5CapexCode,$AD:$AD)","v":0},0,0,{"$f":"SUMIFS(Sheet1!S71_OY1AdjustedBudget,Sheet1!S71_SA34Code,$AC:$AC,Sheet1!S71_A5CapexCode,$AD:$AD)","v":0},{"$f":"SUMIFS(Sheet1!S71_OY2AdjustedBudget,Sheet1!S71_SA34Code,$AC:$AC,Sheet1!S71_A5CapexCode,$AD:$AD)","v":0},null,null,null,null,null,null,null,null,null,null,null,null,null,null,null,"1140","CE"]
["Non-revenue Generating",null,{"$f":"SUM(C117:C118)","v":0},{"$f":"SUM(D117:D118)","v":0},{"$f":"SUM(E117:E118)","v":0},0,0,0,0,0,0,0,0,null,null,null,null,null,null,null,null,null,null,null,null,null,null,null,null,"CE"]
["Improved Property",null,{"$f":"SUMIFS(Sheet1!S71_OriginalBudget,Sheet1!S71_SA34Code,$AC:$AC,Sheet1!S71_A5CapexCode,$AD:$AD)","v":0},{"$f":"SUMIFS(Sheet1!S71_PreviousBudget,Sheet1!S71_SA34Code,$AC:$AC,Sheet1!S71_A5CapexCode,$AD:$AD)","v":0},null,null,null,null,{"$f":"SUMIFS(Sheet1!S71_CurrentAdjustments,Sheet1!S71_SA34Code,$AC:$AC,Sheet1!S71_A5CapexCode,$AD:$AD)","v":0},0,0,{"$f":"SUMIFS(Sheet1!S71_OY1AdjustedBudget,Sheet1!S71_SA34Code,$AC:$AC,Sheet1!S71_A5CapexCode,$AD:$AD)","v":0},{"$f":"SUMIFS(Sheet1!S71_OY2AdjustedBudget,Sheet1!S71_SA34Code,$AC:$AC,Sheet1!S71_A5CapexCode,$AD:$AD)","v":0},null,null,null,null,null,null,null,null,null,null,null,null,null,null,null,"1160","CE"]
["Unimproved Property",null,{"$f":"SUMIFS(Sheet1!S71_OriginalBudget,Sheet1!S71_SA34Code,$AC:$AC,Sheet1!S71_A5CapexCode,$AD:$AD)","v":0},{"$f":"SUMIFS(Sheet1!S71_PreviousBudget,Sheet1!S71_SA34Code,$AC:$AC,Sheet1!S71_A5CapexCode,$AD:$AD)","v":0},null,null,null,null,{"$f":"SUMIFS(Sheet1!S71_CurrentAdjustments,Sheet1!S71_SA34Code,$AC:$AC,Sheet1!S71_A5CapexCode,$AD:$AD)","v":0},0,0,{"$f":"SUMIFS(Sheet1!S71_OY1AdjustedBudget,Sheet1!S71_SA34Code,$AC:$AC,Sheet1!S71_A5CapexCode,$AD:$AD)","v":0},{"$f":"SUMIFS(Sheet1!S71_OY2AdjustedBudget,Sheet1!S71_SA34Code,$AC:$AC,Sheet1!S71_A5CapexCode,$AD:$AD)","v":0},null,null,null,null,null,null,null,null,null,null,null,null,null,null,null,"1170","CE"]
[null,null,null,null,null,null,null,null,null,null,null,null,null,null,null,null,null,null,null,null,null,null,null,null,null,null,null,null,null,"CE"]
["Other assets",null,{"$f":"+C121+C133","v":0},{"$f":"+D121+D133","v":0},0,0,0,0,0,0,0,{"$f":"+L121+L133","v":0},{"$f":"+M121+M133","v":0},null,null,null,null,null,null,null,null,null,null,null,null,null,null,null,null,"CE"]
["Operational Buildings",null,{"$f":"SUM(C122:C132)","v":0},{"$f":"SUM(D122:D132)","v":0},0,0,0,0,0,0,0,{"$f":"SUM(L122:L132)","v":0},{"$f":"SUM(M122:M132)","v":0},null,null,null,null,null,null,null,null,null,null,null,null,null,null,null,null,"CE"]
["Municipal Offices",null,{"$f":"SUMIFS(Sheet1!S71_OriginalBudget,Sheet1!S71_SA34Code,$AC:$AC,Sheet1!S71_A5CapexCode,$AD:$AD)","v":0},{"$f":"SUMIFS(Sheet1!S71_PreviousBudget,Sheet1!S71_SA34Code,$AC:$AC,Sheet1!S71_A5CapexCode,$AD:$AD)","v":0},null,null,null,null,{"$f":"SUMIFS(Sheet1!S71_CurrentAdjustments,Sheet1!S71_SA34Code,$AC:$AC,Sheet1!S71_A5CapexCode,$AD:$AD)","v":0},0,0,{"$f":"SUMIFS(Sheet1!S71_OY1AdjustedBudget,Sheet1!S71_SA34Code,$AC:$AC,Sheet1!S71_A5CapexCode,$AD:$AD)","v":0},{"$f":"SUMIFS(Sheet1!S71_OY2AdjustedBudget,Sheet1!S71_SA34Code,$AC:$AC,Sheet1!S71_A5CapexCode,$AD:$AD)","v":0},null,null,null,null,null,null,null,null,null,null,null,null,null,null,null,"1200","CE"]
["Pay/Enquiry Points",null,{"$f":"SUMIFS(Sheet1!S71_OriginalBudget,Sheet1!S71_SA34Code,$AC:$AC,Sheet1!S71_A5CapexCode,$AD:$AD)","v":0},{"$f":"SUMIFS(Sheet1!S71_PreviousBudget,Sheet1!S71_SA34Code,$AC:$AC,Sheet1!S71_A5CapexCode,$AD:$AD)","v":0},null,null,null,null,{"$f":"SUMIFS(Sheet1!S71_CurrentAdjustments,Sheet1!S71_SA34Code,$AC:$AC,Sheet1!S71_A5CapexCode,$AD:$AD)","v":0},0,0,{"$f":"SUMIFS(Sheet1!S71_OY1AdjustedBudget,Sheet1!S71_SA34Code,$AC:$AC,Sheet1!S71_A5CapexCode,$AD:$AD)","v":0},{"$f":"SUMIFS(Sheet1!S71_OY2AdjustedBudget,Sheet1!S71_SA34Code,$AC:$AC,Sheet1!S71_A5CapexCode,$AD:$AD)","v":0},null,null,null,null,null,null,null,null,null,null,null,null,null,null,null,"1210","CE"]
["Building Plan Offices",null,{"$f":"SUMIFS(Sheet1!S71_OriginalBudget,Sheet1!S71_SA34Code,$AC:$AC,Sheet1!S71_A5CapexCode,$AD:$AD)","v":0},{"$f":"SUMIFS(Sheet1!S71_PreviousBudget,Sheet1!S71_SA34Code,$AC:$AC,Sheet1!S71_A5CapexCode,$AD:$AD)","v":0},null,null,null,null,{"$f":"SUMIFS(Sheet1!S71_CurrentAdjustments,Sheet1!S71_SA34Code,$AC:$AC,Sheet1!S71_A5CapexCode,$AD:$AD)","v":0},0,0,{"$f":"SUMIFS(Sheet1!S71_OY1AdjustedBudget,Sheet1!S71_SA34Code,$AC:$AC,Sheet1!S71_A5CapexCode,$AD:$AD)","v":0},{"$f":"SUMIFS(Sheet1!S71_OY2AdjustedBudget,Sheet1!S71_SA34Code,$AC:$AC,Sheet1!S71_A5CapexCode,$AD:$AD)","v":0},null,null,null,null,null,null,null,null,null,null,null,null,null,null,null,"1220","CE"]
["Workshops",null,{"$f":"SUMIFS(Sheet1!S71_OriginalBudget,Sheet1!S71_SA34Code,$AC:$AC,Sheet1!S71_A5CapexCode,$AD:$AD)","v":0},{"$f":"SUMIFS(Sheet1!S71_PreviousBudget,Sheet1!S71_SA34Code,$AC:$AC,Sheet1!S71_A5CapexCode,$AD:$AD)","v":0},null,null,null,null,{"$f":"SUMIFS(Sheet1!S71_CurrentAdjustments,Sheet1!S71_SA34Code,$AC:$AC,Sheet1!S71_A5CapexCode,$AD:$AD)","v":0},0,0,{"$f":"SUMIFS(Sheet1!S71_OY1AdjustedBudget,Sheet1!S71_SA34Code,$AC:$AC,Sheet1!S71_A5CapexCode,$AD:$AD)","v":0},{"$f":"SUMIFS(Sheet1!S71_OY2AdjustedBudget,Sheet1!S71_SA34Code,$AC:$AC,Sheet1!S71_A5CapexCode,$AD:$AD)","v":0},null,null,null,null,null,null,null,null,null,null,null,null,null,null,null,"1230","CE"]
["Yards",null,{"$f":"SUMIFS(Sheet1!S71_OriginalBudget,Sheet1!S71_SA34Code,$AC:$AC,Sheet1!S71_A5CapexCode,$AD:$AD)","v":0},{"$f":"SUMIFS(Sheet1!S71_PreviousBudget,Sheet1!S71_SA34Code,$AC:$AC,Sheet1!S71_A5CapexCode,$AD:$AD)","v":0},null,null,null,null,{"$f":"SUMIFS(Sheet1!S71_CurrentAdjustments,Sheet1!S71_SA34Code,$AC:$AC,Sheet1!S71_A5CapexCode,$AD:$AD)","v":0},0,0,{"$f":"SUMIFS(Sheet1!S71_OY1AdjustedBudget,Sheet1!S71_SA34Code,$AC:$AC,Sheet1!S71_A5CapexCode,$AD:$AD)","v":0},{"$f":"SUMIFS(Sheet1!S71_OY2AdjustedBudget,Sheet1!S71_SA34Code,$AC:$AC,Sheet1!S71_A5CapexCode,$AD:$AD)","v":0},null,null,null,null,null,null,null,null,null,null,null,null,null,null,null,"1240","CE"]
["Stores",null,{"$f":"SUMIFS(Sheet1!S71_OriginalBudget,Sheet1!S71_SA34Code,$AC:$AC,Sheet1!S71_A5CapexCode,$AD:$AD)","v":0},{"$f":"SUMIFS(Sheet1!S71_PreviousBudget,Sheet1!S71_SA34Code,$AC:$AC,Sheet1!S71_A5CapexCode,$AD:$AD)","v":0},null,null,null,null,{"$f":"SUMIFS(Sheet1!S71_CurrentAdjustments,Sheet1!S71_SA34Code,$AC:$AC,Sheet1!S71_A5CapexCode,$AD:$AD)","v":0},0,0,{"$f":"SUMIFS(Sheet1!S71_OY1AdjustedBudget,Sheet1!S71_SA34Code,$AC:$AC,Sheet1!S71_A5CapexCode,$AD:$AD)","v":0},{"$f":"SUMIFS(Sheet1!S71_OY2AdjustedBudget,Sheet1!S71_SA34Code,$AC:$AC,Sheet1!S71_A5CapexCode,$AD:$AD)","v":0},null,null,null,null,null,null,null,null,null,null,null,null,null,null,null,"1250","CE"]
["Laboratories",null,{"$f":"SUMIFS(Sheet1!S71_OriginalBudget,Sheet1!S71_SA34Code,$AC:$AC,Sheet1!S71_A5CapexCode,$AD:$AD)","v":0},{"$f":"SUMIFS(Sheet1!S71_PreviousBudget,Sheet1!S71_SA34Code,$AC:$AC,Sheet1!S71_A5CapexCode,$AD:$AD)","v":0},null,null,null,null,{"$f":"SUMIFS(Sheet1!S71_CurrentAdjustments,Sheet1!S71_SA34Code,$AC:$AC,Sheet1!S71_A5CapexCode,$AD:$AD)","v":0},0,0,{"$f":"SUMIFS(Sheet1!S71_OY1AdjustedBudget,Sheet1!S71_SA34Code,$AC:$AC,Sheet1!S71_A5CapexCode,$AD:$AD)","v":0},{"$f":"SUMIFS(Sheet1!S71_OY2AdjustedBudget,Sheet1!S71_SA34Code,$AC:$AC,Sheet1!S71_A5CapexCode,$AD:$AD)","v":0},null,null,null,null,null,null,null,null,null,null,null,null,null,null,null,"1260","CE"]
["Training Centres",null,{"$f":"SUMIFS(Sheet1!S71_OriginalBudget,Sheet1!S71_SA34Code,$AC:$AC,Sheet1!S71_A5CapexCode,$AD:$AD)","v":0},{"$f":"SUMIFS(Sheet1!S71_PreviousBudget,Sheet1!S71_SA34Code,$AC:$AC,Sheet1!S71_A5CapexCode,$AD:$AD)","v":0},null,null,null,null,{"$f":"SUMIFS(Sheet1!S71_CurrentAdjustments,Sheet1!S71_SA34Code,$AC:$AC,Sheet1!S71_A5CapexCode,$AD:$AD)","v":0},0,0,{"$f":"SUMIFS(Sheet1!S71_OY1AdjustedBudget,Sheet1!S71_SA34Code,$AC:$AC,Sheet1!S71_A5CapexCode,$AD:$AD)","v":0},{"$f":"SUMIFS(Sheet1!S71_OY2AdjustedBudget,Sheet1!S71_SA34Code,$AC:$AC,Sheet1!S71_A5CapexCode,$AD:$AD)","v":0},null,null,null,null,null,null,null,null,null,null,null,null,null,null,null,"1270","CE"]
["Manufacturing Plant",null,{"$f":"SUMIFS(Sheet1!S71_OriginalBudget,Sheet1!S71_SA34Code,$AC:$AC,Sheet1!S71_A5CapexCode,$AD:$AD)","v":0},{"$f":"SUMIFS(Sheet1!S71_PreviousBudget,Sheet1!S71_SA34Code,$AC:$AC,Sheet1!S71_A5CapexCode,$AD:$AD)","v":0},null,null,null,null,{"$f":"SUMIFS(Sheet1!S71_CurrentAdjustments,Sheet1!S71_SA34Code,$AC:$AC,Sheet1!S71_A5CapexCode,$AD:$AD)","v":0},0,0,{"$f":"SUMIFS(Sheet1!S71_OY1AdjustedBudget,Sheet1!S71_SA34Code,$AC:$AC,Sheet1!S71_A5CapexCode,$AD:$AD)","v":0},{"$f":"SUMIFS(Sheet1!S71_OY2AdjustedBudget,Sheet1!S71_SA34Code,$AC:$AC,Sheet1!S71_A5CapexCode,$AD:$AD)","v":0},null,null,null,null,null,null,null,null,null,null,null,null,null,null,null,"1280","CE"]
["Depots",null,{"$f":"SUMIFS(Sheet1!S71_OriginalBudget,Sheet1!S71_SA34Code,$AC:$AC,Sheet1!S71_A5CapexCode,$AD:$AD)","v":0},{"$f":"SUMIFS(Sheet1!S71_PreviousBudget,Sheet1!S71_SA34Code,$AC:$AC,Sheet1!S71_A5CapexCode,$AD:$AD)","v":0},null,null,null,null,{"$f":"SUMIFS(Sheet1!S71_CurrentAdjustments,Sheet1!S71_SA34Code,$AC:$AC,Sheet1!S71_A5CapexCode,$AD:$AD)","v":0},0,0,{"$f":"SUMIFS(Sheet1!S71_OY1AdjustedBudget,Sheet1!S71_SA34Code,$AC:$AC,Sheet1!S71_A5CapexCode,$AD:$AD)","v":0},{"$f":"SUMIFS(Sheet1!S71_OY2AdjustedBudget,Sheet1!S71_SA34Code,$AC:$AC,Sheet1!S71_A5CapexCode,$AD:$AD)","v":0},null,null,null,null,null,null,null,null,null,null,null,null,null,null,null,"1290","CE"]
["Capital Spares",null,{"$f":"SUMIFS(Sheet1!S71_OriginalBudget,Sheet1!S71_SA34Code,$AC:$AC,Sheet1!S71_A5CapexCode,$AD:$AD)","v":0},{"$f":"SUMIFS(Sheet1!S71_PreviousBudget,Sheet1!S71_SA34Code,$AC:$AC,Sheet1!S71_A5CapexCode,$AD:$AD)","v":0},null,null,null,null,{"$f":"SUMIFS(Sheet1!S71_CurrentAdjustments,Sheet1!S71_SA34Code,$AC:$AC,Sheet1!S71_A5CapexCode,$AD:$AD)","v":0},0,0,{"$f":"SUMIFS(Sheet1!S71_OY1AdjustedBudget,Sheet1!S71_SA34Code,$AC:$AC,Sheet1!S71_A5CapexCode,$AD:$AD)","v":0},{"$f":"SUMIFS(Sheet1!S71_OY2AdjustedBudget,Sheet1!S71_SA34Code,$AC:$AC,Sheet1!S71_A5CapexCode,$AD:$AD)","v":0},null,null,null,null,null,null,null,null,null,null,null,null,null,null,null,"1300","CE"]
["Housing",null,{"$f":"SUM(C134:C136)","v":0},{"$f":"SUM(D134:D136)","v":0},{"$f":"SUM(E134:E136)","v":0},0,0,0,0,0,0,0,0,null,null,null,null,null,null,null,null,null,null,null,null,null,null,null,null,"CE"]
["Staff Housing",null,{"$f":"SUMIFS(Sheet1!S71_OriginalBudget,Sheet1!S71_SA34Code,$AC:$AC,Sheet1!S71_A5CapexCode,$AD:$AD)","v":0},{"$f":"SUMIFS(Sheet1!S71_PreviousBudget,Sheet1!S71_SA34Code,$AC:$AC,Sheet1!S71_A5CapexCode,$AD:$AD)","v":0},null,null,null,null,{"$f":"SUMIFS(Sheet1!S71_CurrentAdjustments,Sheet1!S71_SA34Code,$AC:$AC,Sheet1!S71_A5CapexCode,$AD:$AD)","v":0},0,0,{"$f":"SUMIFS(Sheet1!S71_OY1AdjustedBudget,Sheet1!S71_SA34Code,$AC:$AC,Sheet1!S71_A5CapexCode,$AD:$AD)","v":0},{"$f":"SUMIFS(Sheet1!S71_OY2AdjustedBudget,Sheet1!S71_SA34Code,$AC:$AC,Sheet1!S71_A5CapexCode,$AD:$AD)","v":0},null,null,null,null,null,null,null,null,null,null,null,null,null,null,null,"1320","CE"]
["Social Housing",null,{"$f":"SUMIFS(Sheet1!S71_OriginalBudget,Sheet1!S71_SA34Code,$AC:$AC,Sheet1!S71_A5CapexCode,$AD:$AD)","v":0},{"$f":"SUMIFS(Sheet1!S71_PreviousBudget,Sheet1!S71_SA34Code,$AC:$AC,Sheet1!S71_A5CapexCode,$AD:$AD)","v":0},null,null,null,null,{"$f":"SUMIFS(Sheet1!S71_CurrentAdjustments,Sheet1!S71_SA34Code,$AC:$AC,Sheet1!S71_A5CapexCode,$AD:$AD)","v":0},0,0,{"$f":"SUMIFS(Sheet1!S71_OY1AdjustedBudget,Sheet1!S71_SA34Code,$AC:$AC,Sheet1!S71_A5CapexCode,$AD:$AD)","v":0},{"$f":"SUMIFS(Sheet1!S71_OY2AdjustedBudget,Sheet1!S71_SA34Code,$AC:$AC,Sheet1!S71_A5CapexCode,$AD:$AD)","v":0},null,null,null,null,null,null,null,null,null,null,null,null,null,null,null,"1330","CE"]
["Capital Spares",null,{"$f":"SUMIFS(Sheet1!S71_OriginalBudget,Sheet1!S71_SA34Code,$AC:$AC,Sheet1!S71_A5CapexCode,$AD:$AD)","v":0},{"$f":"SUMIFS(Sheet1!S71_PreviousBudget,Sheet1!S71_SA34Code,$AC:$AC,Sheet1!S71_A5CapexCode,$AD:$AD)","v":0},null,null,null,null,{"$f":"SUMIFS(Sheet1!S71_CurrentAdjustments,Sheet1!S71_SA34Code,$AC:$AC,Sheet1!S71_A5CapexCode,$AD:$AD)","v":0},0,0,{"$f":"SUMIFS(Sheet1!S71_OY1AdjustedBudget,Sheet1!S71_SA34Code,$AC:$AC,Sheet1!S71_A5CapexCode,$AD:$AD)","v":0},{"$f":"SUMIFS(Sheet1!S71_OY2AdjustedBudget,Sheet1!S71_SA34Code,$AC:$AC,Sheet1!S71_A5CapexCode,$AD:$AD)","v":0},null,null,null,null,null,null,null,null,null,null,null,null,null,null,null,"1340","CE"]
[null,null,null,null,null,null,null,null,null,null,null,null,null,null,null,null,null,null,null,null,null,null,null,null,null,null,null,null,null,"CE"]
["Biological or Cultivated Assets",null,{"$f":"SUM(C139:C139)","v":0},0,0,0,0,0,0,0,0,0,0,null,null,null,null,null,null,null,null,null,null,null,null,null,null,null,null,"CE"]
["Biological or Cultivated Assets",null,{"$f":"SUMIFS(Sheet1!S71_OriginalBudget,Sheet1!S71_SA34Code,$AC:$AC,Sheet1!S71_A5CapexCode,$AD:$AD)","v":0},{"$f":"SUMIFS(Sheet1!S71_PreviousBudget,Sheet1!S71_SA34Code,$AC:$AC,Sheet1!S71_A5CapexCode,$AD:$AD)","v":0},null,null,null,null,{"$f":"SUMIFS(Sheet1!S71_CurrentAdjustments,Sheet1!S71_SA34Code,$AC:$AC,Sheet1!S71_A5CapexCode,$AD:$AD)","v":0},0,0,{"$f":"SUMIFS(Sheet1!S71_OY1AdjustedBudget,Sheet1!S71_SA34Code,$AC:$AC,Sheet1!S71_A5CapexCode,$AD:$AD)","v":0},{"$f":"SUMIFS(Sheet1!S71_OY2AdjustedBudget,Sheet1!S71_SA34Code,$AC:$AC,Sheet1!S71_A5CapexCode,$AD:$AD)","v":0},null,null,null,null,null,null,null,null,null,null,null,null,null,null,null,"1360","CE"]
[null,null,null,null,null,null,null,null,null,null,null,null,null,null,null,null,null,null,null,null,null,null,null,null,null,null,null,null,null,"CE"]
["Intangible Assets",null,{"$f":"SUM(C142:C143)","v":0},{"$f":"SUM(D142:D143)","v":0},0,0,0,0,0,{"$f":"SUM(E141:I141)","v":0},{"$f":"IF(D141=0,C141+J141,D141+J141)","v":0},{"$f":"SUM(L142:L143)","v":0},{"$f":"SUM(M142:M143)","v":0},null,null,null,null,null,null,null,null,null,null,null,null,null,null,null,null,"CE"]
["Servitudes",null,{"$f":"SUMIFS(Sheet1!S71_OriginalBudget,Sheet1!S71_SA34Code,$AC:$AC,Sheet1!S71_A5CapexCode,$AD:$AD)","v":0},{"$f":"SUMIFS(Sheet1!S71_PreviousBudget,Sheet1!S71_SA34Code,$AC:$AC,Sheet1!S71_A5CapexCode,$AD:$AD)","v":0},null,null,null,null,{"$f":"SUMIFS(Sheet1!S71_CurrentAdjustments,Sheet1!S71_SA34Code,$AC:$AC,Sheet1!S71_A5CapexCode,$AD:$AD)","v":0},0,0,{"$f":"SUMIFS(Sheet1!S71_OY1AdjustedBudget,Sheet1!S71_SA34Code,$AC:$AC,Sheet1!S71_A5CapexCode,$AD:$AD)","v":0},{"$f":"SUMIFS(Sheet1!S71_OY2AdjustedBudget,Sheet1!S71_SA34Code,$AC:$AC,Sheet1!S71_A5CapexCode,$AD:$AD)","v":0},null,null,null,null,null,null,null,null,null,null,null,null,null,null,null,"1380","CE"]
["Licences and Rights",null,{"$f":"SUM(C144:C149)","v":0},{"$f":"SUM(D144:D149)","v":0},0,0,0,0,0,0,0,{"$f":"SUM(L144:L149)","v":0},{"$f":"SUM(M144:M149)","v":0},null,null,null,null,null,null,null,null,null,null,null,null,null,null,null,null,"CE"]
["Water Rights",null,{"$f":"SUMIFS(Sheet1!S71_OriginalBudget,Sheet1!S71_SA34Code,$AC:$AC,Sheet1!S71_A5CapexCode,$AD:$AD)","v":0},{"$f":"SUMIFS(Sheet1!S71_PreviousBudget,Sheet1!S71_SA34Code,$AC:$AC,Sheet1!S71_A5CapexCode,$AD:$AD)","v":0},null,null,null,null,{"$f":"SUMIFS(Sheet1!S71_CurrentAdjustments,Sheet1!S71_SA34Code,$AC:$AC,Sheet1!S71_A5CapexCode,$AD:$AD)","v":0},0,0,{"$f":"SUMIFS(Sheet1!S71_OY1AdjustedBudget,Sheet1!S71_SA34Code,$AC:$AC,Sheet1!S71_A5CapexCode,$AD:$AD)","v":0},{"$f":"SUMIFS(Sheet1!S71_OY2AdjustedBudget,Sheet1!S71_SA34Code,$AC:$AC,Sheet1!S71_A5CapexCode,$AD:$AD)","v":0},null,null,null,null,null,null,null,null,null,null,null,null,null,null,null,"1400","CE"]
["Effluent Licenses",null,{"$f":"SUMIFS(Sheet1!S71_OriginalBudget,Sheet1!S71_SA34Code,$AC:$AC,Sheet1!S71_A5CapexCode,$AD:$AD)","v":0},{"$f":"SUMIFS(Sheet1!S71_PreviousBudget,Sheet1!S71_SA34Code,$AC:$AC,Sheet1!S71_A5CapexCode,$AD:$AD)","v":0},null,null,null,null,{"$f":"SUMIFS(Sheet1!S71_CurrentAdjustments,Sheet1!S71_SA34Code,$AC:$AC,Sheet1!S71_A5CapexCode,$AD:$AD)","v":0},0,0,{"$f":"SUMIFS(Sheet1!S71_OY1AdjustedBudget,Sheet1!S71_SA34Code,$AC:$AC,Sheet1!S71_A5CapexCode,$AD:$AD)","v":0},{"$f":"SUMIFS(Sheet1!S71_OY2AdjustedBudget,Sheet1!S71_SA34Code,$AC:$AC,Sheet1!S71_A5CapexCode,$AD:$AD)","v":0},null,null,null,null,null,null,null,null,null,null,null,null,null,null,null,"1410","CE"]
["Solid Waste Licenses",null,{"$f":"SUMIFS(Sheet1!S71_OriginalBudget,Sheet1!S71_SA34Code,$AC:$AC,Sheet1!S71_A5CapexCode,$AD:$AD)","v":0},{"$f":"SUMIFS(Sheet1!S71_PreviousBudget,Sheet1!S71_SA34Code,$AC:$AC,Sheet1!S71_A5CapexCode,$AD:$AD)","v":0},null,null,null,null,{"$f":"SUMIFS(Sheet1!S71_CurrentAdjustments,Sheet1!S71_SA34Code,$AC:$AC,Sheet1!S71_A5CapexCode,$AD:$AD)","v":0},0,0,{"$f":"SUMIFS(Sheet1!S71_OY1AdjustedBudget,Sheet1!S71_SA34Code,$AC:$AC,Sheet1!S71_A5CapexCode,$AD:$AD)","v":0},{"$f":"SUMIFS(Sheet1!S71_OY2AdjustedBudget,Sheet1!S71_SA34Code,$AC:$AC,Sheet1!S71_A5CapexCode,$AD:$AD)","v":0},null,null,null,null,null,null,null,null,null,null,null,null,null,null,null,"1420","CE"]
["Computer Software and Applications",null,{"$f":"SUMIFS(Sheet1!S71_OriginalBudget,Sheet1!S71_SA34Code,$AC:$AC,Sheet1!S71_A5CapexCode,$AD:$AD)","v":0},{"$f":"SUMIFS(Sheet1!S71_PreviousBudget,Sheet1!S71_SA34Code,$AC:$AC,Sheet1!S71_A5CapexCode,$AD:$AD)","v":0},null,null,null,null,{"$f":"SUMIFS(Sheet1!S71_CurrentAdjustments,Sheet1!S71_SA34Code,$AC:$AC,Sheet1!S71_A5CapexCode,$AD:$AD)","v":0},0,0,{"$f":"SUMIFS(Sheet1!S71_OY1AdjustedBudget,Sheet1!S71_SA34Code,$AC:$AC,Sheet1!S71_A5CapexCode,$AD:$AD)","v":0},{"$f":"SUMIFS(Sheet1!S71_OY2AdjustedBudget,Sheet1!S71_SA34Code,$AC:$AC,Sheet1!S71_A5CapexCode,$AD:$AD)","v":0},null,null,null,null,null,null,null,null,null,null,null,null,null,null,null,"1430","CE"]
["Load Settlement Software Applications",null,{"$f":"SUMIFS(Sheet1!S71_OriginalBudget,Sheet1!S71_SA34Code,$AC:$AC,Sheet1!S71_A5CapexCode,$AD:$AD)","v":0},{"$f":"SUMIFS(Sheet1!S71_PreviousBudget,Sheet1!S71_SA34Code,$AC:$AC,Sheet1!S71_A5CapexCode,$AD:$AD)","v":0},null,null,null,null,{"$f":"SUMIFS(Sheet1!S71_CurrentAdjustments,Sheet1!S71_SA34Code,$AC:$AC,Sheet1!S71_A5CapexCode,$AD:$AD)","v":0},0,0,{"$f":"SUMIFS(Sheet1!S71_OY1AdjustedBudget,Sheet1!S71_SA34Code,$AC:$AC,Sheet1!S71_A5CapexCode,$AD:$AD)","v":0},{"$f":"SUMIFS(Sheet1!S71_OY2AdjustedBudget,Sheet1!S71_SA34Code,$AC:$AC,Sheet1!S71_A5CapexCode,$AD:$AD)","v":0},null,null,null,null,null,null,null,null,null,null,null,null,null,null,null,"1440","CE"]
["Unspecified",null,{"$f":"SUMIFS(Sheet1!S71_OriginalBudget,Sheet1!S71_SA34Code,$AC:$AC,Sheet1!S71_A5CapexCode,$AD:$AD)","v":0},{"$f":"SUMIFS(Sheet1!S71_PreviousBudget,Sheet1!S71_SA34Code,$AC:$AC,Sheet1!S71_A5CapexCode,$AD:$AD)","v":0},null,null,null,null,{"$f":"SUMIFS(Sheet1!S71_CurrentAdjustments,Sheet1!S71_SA34Code,$AC:$AC,Sheet1!S71_A5CapexCode,$AD:$AD)","v":0},0,0,{"$f":"SUMIFS(Sheet1!S71_OY1AdjustedBudget,Sheet1!S71_SA34Code,$AC:$AC,Sheet1!S71_A5CapexCode,$AD:$AD)","v":0},{"$f":"SUMIFS(Sheet1!S71_OY2AdjustedBudget,Sheet1!S71_SA34Code,$AC:$AC,Sheet1!S71_A5CapexCode,$AD:$AD)","v":0},null,null,null,null,null,null,null,null,null,null,null,null,null,null,null,"1450","CE"]
[null,null,null,null,null,null,null,null,null,null,null,null,null,null,null,null,null,null,null,null,null,null,null,null,null,null,null,null,null,"CE"]
["Computer Equipment",null,{"$f":"SUM(C152:C152)","v":0},0,0,0,0,0,0,0,0,0,0,null,null,null,null,null,null,null,null,null,null,null,null,null,null,null,null,"CE"]
["Computer Equipment",null,{"$f":"SUMIFS(Sheet1!S71_OriginalBudget,Sheet1!S71_SA34Code,$AC:$AC,Sheet1!S71_A5CapexCode,$AD:$AD)","v":0},{"$f":"SUMIFS(Sheet1!S71_PreviousBudget,Sheet1!S71_SA34Code,$AC:$AC,Sheet1!S71_A5CapexCode,$AD:$AD)","v":0},null,null,null,null,{"$f":"SUMIFS(Sheet1!S71_CurrentAdjustments,Sheet1!S71_SA34Code,$AC:$AC,Sheet1!S71_A5CapexCode,$AD:$AD)","v":0},{"$f":"SUM(E152:I152)","v":0},{"$f":"IF(D152=0,C152+J152,D152+J152)","v":0},{"$f":"SUMIFS(Sheet1!S71_OY1AdjustedBudget,Sheet1!S71_SA34Code,$AC:$AC,Sheet1!S71_A5CapexCode,$AD:$AD)","v":0},{"$f":"SUMIFS(Sheet1!S71_OY2AdjustedBudget,Sheet1!S71_SA34Code,$AC:$AC,Sheet1!S71_A5CapexCode,$AD:$AD)","v":0},null,null,null,null,null,null,null,null,null,null,null,null,null,null,null,"1470","CE"]
[null,null,null,null,null,null,null,null,null,null,null,null,null,null,null,null,null,null,null,null,null,null,null,null,null,null,null,null,null,"CE"]
["Furniture and Office Equipment",null,{"$f":"SUM(C155:C155)","v":0},0,0,0,0,0,0,{"$f":"SUM(E154:I154)","v":0},{"$f":"IF(D154=0,C154+J154,D154+J154)","v":0},0,0,null,null,null,null,null,null,null,null,null,null,null,null,null,null,null,null,"CE"]
["Furniture and Office Equipment",null,{"$f":"SUMIFS(Sheet1!S71_OriginalBudget,Sheet1!S71_SA34Code,$AC:$AC,Sheet1!S71_A5CapexCode,$AD:$AD)","v":0},{"$f":"SUMIFS(Sheet1!S71_PreviousBudget,Sheet1!S71_SA34Code,$AC:$AC,Sheet1!S71_A5CapexCode,$AD:$AD)","v":0},null,null,null,null,{"$f":"SUMIFS(Sheet1!S71_CurrentAdjustments,Sheet1!S71_SA34Code,$AC:$AC,Sheet1!S71_A5CapexCode,$AD:$AD)","v":0},{"$f":"SUM(E155:I155)","v":0},{"$f":"IF(D155=0,C155+J155,D155+J155)","v":0},{"$f":"SUMIFS(Sheet1!S71_OY1AdjustedBudget,Sheet1!S71_SA34Code,$AC:$AC,Sheet1!S71_A5CapexCode,$AD:$AD)","v":0},{"$f":"SUMIFS(Sheet1!S71_OY2AdjustedBudget,Sheet1!S71_SA34Code,$AC:$AC,Sheet1!S71_A5CapexCode,$AD:$AD)","v":0},null,null,null,null,null,null,null,null,null,null,null,null,null,null,null,"1490","CE"]
[null,null,null,null,null,null,null,null,null,null,null,null,null,null,null,null,null,null,null,null,null,null,null,null,null,null,null,null,null,"CE"]
["Machinery and Equipment",null,{"$f":"SUM(C158:C158)","v":0},0,0,0,0,0,0,{"$f":"SUM(E157:I157)","v":0},{"$f":"IF(D157=0,C157+J157,D157+J157)","v":0},0,0,null,null,null,null,null,null,null,null,null,null,null,null,null,null,null,null,"CE"]
["Machinery and Equipment",null,{"$f":"SUMIFS(Sheet1!S71_OriginalBudget,Sheet1!S71_SA34Code,$AC:$AC,Sheet1!S71_A5CapexCode,$AD:$AD)","v":0},{"$f":"SUMIFS(Sheet1!S71_PreviousBudget,Sheet1!S71_SA34Code,$AC:$AC,Sheet1!S71_A5CapexCode,$AD:$AD)","v":0},null,null,null,null,{"$f":"SUMIFS(Sheet1!S71_CurrentAdjustments,Sheet1!S71_SA34Code,$AC:$AC,Sheet1!S71_A5CapexCode,$AD:$AD)","v":0},{"$f":"SUM(E158:I158)","v":0},{"$f":"IF(D158=0,C158+J158,D158+J158)","v":0},{"$f":"SUMIFS(Sheet1!S71_OY1AdjustedBudget,Sheet1!S71_SA34Code,$AC:$AC,Sheet1!S71_A5CapexCode,$AD:$AD)","v":0},{"$f":"SUMIFS(Sheet1!S71_OY2AdjustedBudget,Sheet1!S71_SA34Code,$AC:$AC,Sheet1!S71_A5CapexCode,$AD:$AD)","v":0},null,null,null,null,null,null,null,null,null,null,null,null,null,null,null,"1510","CE"]
[null,null,null,null,null,null,null,null,null,null,null,null,null,null,null,null,null,null,null,null,null,null,null,null,null,null,null,null,null,"CE"]
["Transport Assets",null,{"$f":"SUM(C161:C161)","v":0},0,0,0,0,0,0,{"$f":"SUM(E160:I160)","v":0},{"$f":"IF(D160=0,C160+J160,D160+J160)","v":0},0,0,null,null,null,null,null,null,null,null,null,null,null,null,null,null,null,null,"CE"]
["Transport Assets",null,{"$f":"SUMIFS(Sheet1!S71_OriginalBudget,Sheet1!S71_SA34Code,$AC:$AC,Sheet1!S71_A5CapexCode,$AD:$AD)","v":0},{"$f":"SUMIFS(Sheet1!S71_PreviousBudget,Sheet1!S71_SA34Code,$AC:$AC,Sheet1!S71_A5CapexCode,$AD:$AD)","v":0},null,null,null,null,{"$f":"SUMIFS(Sheet1!S71_CurrentAdjustments,Sheet1!S71_SA34Code,$AC:$AC,Sheet1!S71_A5CapexCode,$AD:$AD)","v":0},{"$f":"SUM(E161:I161)","v":0},{"$f":"IF(D161=0,C161+J161,D161+J161)","v":0},{"$f":"SUMIFS(Sheet1!S71_OY1AdjustedBudget,Sheet1!S71_SA34Code,$AC:$AC,Sheet1!S71_A5CapexCode,$AD:$AD)","v":0},{"$f":"SUMIFS(Sheet1!S71_OY2AdjustedBudget,Sheet1!S71_SA34Code,$AC:$AC,Sheet1!S71_A5CapexCode,$AD:$AD)","v":0},null,null,null,null,null,null,null,null,null,null,null,null,null,null,null,"1530","CE"]
[null,null,null,null,null,null,null,null,null,null,null,null,null,null,null,null,null,null,null,null,null,null,null,null,null,null,null,null,null,"CE"]
["Land",null,{"$f":"SUM(C164:C164)","v":0},0,0,0,0,0,0,{"$f":"SUM(E163:I163)","v":0},{"$f":"IF(D163=0,C163+J163,D163+J163)","v":0},0,0,null,null,null,null,null,null,null,null,null,null,null,null,null,null,null,null,"CE"]
["Land",null,{"$f":"SUMIFS(Sheet1!S71_OriginalBudget,Sheet1!S71_SA34Code,$AC:$AC,Sheet1!S71_A5CapexCode,$AD:$AD)","v":0},{"$f":"SUMIFS(Sheet1!S71_PreviousBudget,Sheet1!S71_SA34Code,$AC:$AC,Sheet1!S71_A5CapexCode,$AD:$AD)","v":0},null,null,null,null,{"$f":"SUMIFS(Sheet1!S71_CurrentAdjustments,Sheet1!S71_SA34Code,$AC:$AC,Sheet1!S71_A5CapexCode,$AD:$AD)","v":0},{"$f":"SUM(E164:I164)","v":0},{"$f":"IF(D164=0,C164+J164,D164+J164)","v":0},{"$f":"SUMIFS(Sheet1!S71_OY1AdjustedBudget,Sheet1!S71_SA34Code,$AC:$AC,Sheet1!S71_A5CapexCode,$AD:$AD)","v":0},{"$f":"SUMIFS(Sheet1!S71_OY2AdjustedBudget,Sheet1!S71_SA34Code,$AC:$AC,Sheet1!S71_A5CapexCode,$AD:$AD)","v":0},null,null,null,null,null,null,null,null,null,null,null,null,null,null,null,"1550","CE"]
[null,null,null,null,null,null,null,null,null,null,null,null,null,null,null,null,null,null,null,null,null,null,null,null,null,null,null,null,null,"CE"]
["Zoo's, Marine and Non-biological Animals",null,{"$f":"SUM(C167:C167)","v":0},0,0,0,0,0,0,{"$f":"SUM(E166:I166)","v":0},{"$f":"IF(D166=0,C166+J166,D166+J166)","v":0},0,0,null,null,null,null,null,null,null,null,null,null,null,null,null,null,null,null,"CE"]
["Zoo's, Marine and Non-biological Animals",null,{"$f":"SUMIFS(Sheet1!S71_OriginalBudget,Sheet1!S71_SA34Code,$AC:$AC,Sheet1!S71_A5CapexCode,$AD:$AD)","v":0},{"$f":"SUMIFS(Sheet1!S71_PreviousBudget,Sheet1!S71_SA34Code,$AC:$AC,Sheet1!S71_A5CapexCode,$AD:$AD)","v":0},null,null,null,null,{"$f":"SUMIFS(Sheet1!S71_CurrentAdjustments,Sheet1!S71_SA34Code,$AC:$AC,Sheet1!S71_A5CapexCode,$AD:$AD)","v":0},{"$f":"SUM(E167:I167)","v":0},{"$f":"IF(D167=0,C167+J167,D167+J167)","v":0},{"$f":"SUMIFS(Sheet1!S71_OY1AdjustedBudget,Sheet1!S71_SA34Code,$AC:$AC,Sheet1!S71_A5CapexCode,$AD:$AD)","v":0},{"$f":"SUMIFS(Sheet1!S71_OY2AdjustedBudget,Sheet1!S71_SA34Code,$AC:$AC,Sheet1!S71_A5CapexCode,$AD:$AD)","v":0},null,null,null,null,null,null,null,null,null,null,null,null,null,null,null,"1570","CE"]
[null,null,{"$f":"SUMIFS(Sheet1!S71_OriginalBudget,Sheet1!S71_SA34Code,$AC:$AC,Sheet1!S71_A5CapexCode,$AD:$AD)","v":0},{"$f":"SUMIFS(Sheet1!S71_PreviousBudget,Sheet1!S71_SA34Code,$AC:$AC,Sheet1!S71_A5CapexCode,$AD:$AD)","v":0},null,null,null,null,{"$f":"SUMIFS(Sheet1!S71_CurrentAdjustments,Sheet1!S71_SA34Code,$AC:$AC,Sheet1!S71_A5CapexCode,$AD:$AD)","v":0},null,null,{"$f":"SUMIFS(Sheet1!S71_OY1AdjustedBudget,Sheet1!S71_SA34Code,$AC:$AC,Sheet1!S71_A5CapexCode,$AD:$AD)","v":0},{"$f":"SUMIFS(Sheet1!S71_OY2AdjustedBudget,Sheet1!S71_SA34Code,$AC:$AC,Sheet1!S71_A5CapexCode,$AD:$AD)","v":0}]
["Living resources",null,{"$f":"+C170+C173","v":0},{"$f":"+D170+D173","v":0},0,0,0,0,0,{"$f":"SUM(E169:I169)","v":0},{"$f":"IF(D169=0,C169+J169,D169+J169)","v":0},{"$f":"+L170+L173","v":0},{"$f":"SUM(M170:M170)","v":0}]
["Mature",null,{"$f":"+C171+C172","v":0},{"$f":"+D171+D172","v":0},0,0,0,0,0,0,0,{"$f":"+L171+L172","v":0},{"$f":"+M171+M172","v":0}]
["Policing and Protection",null,{"$f":"SUMIFS(Sheet1!S71_OriginalBudget,Sheet1!S71_SA34Code,$AC:$AC,Sheet1!S71_A5CapexCode,$AD:$AD)","v":0},{"$f":"SUMIFS(Sheet1!S71_PreviousBudget,Sheet1!S71_SA34Code,$AC:$AC,Sheet1!S71_A5CapexCode,$AD:$AD)","v":0},null,null,null,null,{"$f":"SUMIFS(Sheet1!S71_CurrentAdjustments,Sheet1!S71_SA34Code,$AC:$AC,Sheet1!S71_A5CapexCode,$AD:$AD)","v":0},0,0,{"$f":"SUMIFS(Sheet1!S71_OY1AdjustedBudget,Sheet1!S71_SA34Code,$AC:$AC,Sheet1!S71_A5CapexCode,$AD:$AD)","v":0},{"$f":"SUMIFS(Sheet1!S71_OY2AdjustedBudget,Sheet1!S71_SA34Code,$AC:$AC,Sheet1!S71_A5CapexCode,$AD:$AD)","v":0}]
["Zoological plants and animals",null,{"$f":"SUMIFS(Sheet1!S71_OriginalBudget,Sheet1!S71_SA34Code,$AC:$AC,Sheet1!S71_A5CapexCode,$AD:$AD)","v":0},{"$f":"SUMIFS(Sheet1!S71_PreviousBudget,Sheet1!S71_SA34Code,$AC:$AC,Sheet1!S71_A5CapexCode,$AD:$AD)","v":0},null,null,null,null,{"$f":"SUMIFS(Sheet1!S71_CurrentAdjustments,Sheet1!S71_SA34Code,$AC:$AC,Sheet1!S71_A5CapexCode,$AD:$AD)","v":0},0,0,{"$f":"SUMIFS(Sheet1!S71_OY1AdjustedBudget,Sheet1!S71_SA34Code,$AC:$AC,Sheet1!S71_A5CapexCode,$AD:$AD)","v":0},{"$f":"SUMIFS(Sheet1!S71_OY2AdjustedBudget,Sheet1!S71_SA34Code,$AC:$AC,Sheet1!S71_A5CapexCode,$AD:$AD)","v":0}]
["Immature",null,{"$f":"+C174+C175","v":0},{"$f":"+D174+D175","v":0},0,0,0,0,0,0,0,{"$f":"+L174+L175","v":0},{"$f":"+M174+M175","v":0}]
["Policing and Protection",null,{"$f":"SUMIFS(Sheet1!S71_OriginalBudget,Sheet1!S71_SA34Code,$AC:$AC,Sheet1!S71_A5CapexCode,$AD:$AD)","v":0},{"$f":"SUMIFS(Sheet1!S71_PreviousBudget,Sheet1!S71_SA34Code,$AC:$AC,Sheet1!S71_A5CapexCode,$AD:$AD)","v":0},null,null,null,null,{"$f":"SUMIFS(Sheet1!S71_CurrentAdjustments,Sheet1!S71_SA34Code,$AC:$AC,Sheet1!S71_A5CapexCode,$AD:$AD)","v":0},0,0,{"$f":"SUMIFS(Sheet1!S71_OY1AdjustedBudget,Sheet1!S71_SA34Code,$AC:$AC,Sheet1!S71_A5CapexCode,$AD:$AD)","v":0},{"$f":"SUMIFS(Sheet1!S71_OY2AdjustedBudget,Sheet1!S71_SA34Code,$AC:$AC,Sheet1!S71_A5CapexCode,$AD:$AD)","v":0}]
["Zoological plants and animals",null,{"$f":"SUMIFS(Sheet1!S71_OriginalBudget,Sheet1!S71_SA34Code,$AC:$AC,Sheet1!S71_A5CapexCode,$AD:$AD)","v":0},{"$f":"SUMIFS(Sheet1!S71_PreviousBudget,Sheet1!S71_SA34Code,$AC:$AC,Sheet1!S71_A5CapexCode,$AD:$AD)","v":0},null,null,null,null,{"$f":"SUMIFS(Sheet1!S71_CurrentAdjustments,Sheet1!S71_SA34Code,$AC:$AC,Sheet1!S71_A5CapexCode,$AD:$AD)","v":0},0,0,{"$f":"SUMIFS(Sheet1!S71_OY1AdjustedBudget,Sheet1!S71_SA34Code,$AC:$AC,Sheet1!S71_A5CapexCode,$AD:$AD)","v":0},{"$f":"SUMIFS(Sheet1!S71_OY2AdjustedBudget,Sheet1!S71_SA34Code,$AC:$AC,Sheet1!S71_A5CapexCode,$AD:$AD)","v":0}]
[]
["Total Capital Expenditure on renewal of existing assets to be adjusted",1,{"$f":"C8+C76+C105+C112+C120+C151+C138+C141+C154+C157+C160+C163+C166+C169","v":29347821},{"$f":"D8+D76+D105+D112+D120+D151+D138+D141+D154+D157+D160+D163+D166+D169","v":28034115},0,0,0,1985217.38,0,1985217.38,30019332.379999999,0,0]
[]
[{"$f":"head27a","v":"References"}]
["1. Total Capital Expenditure  on renewal of existing assets (SB18b) plus Total Capital Expenditure on new assets (SB18a) plus Total Capital Expenditure  on upgrading of existing assets (SB18e) must reconcile to total capital expenditure in Budgeted Capital Expenditure"]
["7. Only complete if a previous adjusted budget has been approved in the same financial year. Reflect most recent adjusted budget."]
["8. Additional cash-backed accumulated funds/unspent funds (section 18(1)(b) and section 28(2)(e) MFMA) identified after Original Budget approved and after annual financial statements audited (note: only where underspending could not reasonably be have for"]
["9. Increases of funds approved under section 31 MFMA"]
["10. Adjustments approved in accordance with section 29 MFMA"]
["11. Adjustments to funding allocations from National or Provincial Government"]
["12. Adjusts. = 'Other' Adjustments proposed to be approved; including revenue under-collection (MFMA section 28(2)(a)); additional revenue appropriation on existing programmes (section 28(2))(b); projected savings (section 28(2)(d)); error correction (sec"]
["13. G = B + C + D + E + F"]
["14. Adjusted Budget H = (A or A1) + G"]
[]
[]
["check balance",null,{"$f":"(C177+SB18a!C177+SB18e!C176)-'B5-Capex'!C65","v":0},null,null,null,null,null,null,null,null,{"$f":"(L177+SB18a!L177+SB18e!L176)-'B5-Capex'!L65","v":0},{"$f":"(M177+SB18a!M177+SB18e!M176)-'B5-Capex'!M65","v":0}]

{"sheet":"SB18c","index":56,"n_rows":189,"n_cols":30,"rows_kept":189,"cut":false,"hidden":false,"merged":[[1,0,3,0],[1,1,3,1],[1,2,1,10],[178,0,178,12],[185,0,185,12],[179,0,179,9],[180,0,180,9],[181,0,181,12],[183,0,183,12]]}
[{"$f":"muni&\" - \"&ADJB18c&\" - \"&Date","v":"KZN291 Mandeni - Supporting Table SB18c Adjustments Budget - expenditure on repairs and maintenance by asset class - 08-04-2025"}]
[{"$f":"desc","v":"Description"},{"$f":"head27","v":"Ref"},{"$f":"Head2","v":"Budget Year 2024/25"},null,null,null,null,null,null,null,null,{"$f":"Head10","v":"Budget Year +1 2025/26"},{"$f":"Head11","v":"Budget Year +2 2026/27"}]
[null,null,{"$f":"Head6","v":"Original Budget"},{"$f":"Head54","v":"Prior Adjusted"},{"$f":"Head51","v":"Accum. Funds"},{"$f":"Head52","v":"Multi-year capital"},{"$f":"Head53","v":"Unfore. Unavoid."},{"$f":"Head55","v":"Nat. or Prov. Govt"},{"$f":"Head50","v":"Other Adjusts."},{"$f":"Head56","v":"Total Adjusts."},{"$f":"Head7","v":"Adjusted Budget"},{"$f":"Head7","v":"Adjusted Budget"},{"$f":"Head7","v":"Adjusted Budget"}]
[null,null,null,7,8,9,10,11,12,13,14]
["R thousands",null,"A","A1","B","C","D","E","F","G","H"]
["Repairs and maintenance expenditure by Asset Class/Sub-class"]
[]
["Infrastructure",null,{"$f":"C9+C14+C18+C28+C70+C39+C46+C54+C64","v":18504325},{"$f":"D9+D14+D18+D28+D70+D39+D46+D54+D64","v":19373890},0,0,0,0,0,{"$f":"SUM(E8:I8)","v":0},{"$f":"IF(D8=0,C8+J8,D8+J8)","v":19373890},{"$f":"L9+L14+L18+L28+L70+L39+L46+L54+L64","v":19355525},{"$f":"M9+M14+M18+M28+M70+M39+M46+M54+M64","v":20245875}]
["Roads Infrastructure",null,{"$f":"SUM(C10:C13)","v":8547807},{"$f":"SUM(D10:D13)","v":8547807},0,0,0,0,0,{"$f":"SUM(E9:I9)","v":0},{"$f":"IF(D9=0,C9+J9,D9+J9)","v":8547807},8941007,9352297]
["Roads",null,{"$f":"SUMIFS(Sheet1!S71_OriginalBudget,Sheet1!S71_SA34cCode,$AC:$AC,Sheet1!S71_RepMaintCode,$AD:$AD)","v":7939117},{"$f":"SUMIFS(Sheet1!S71_PreviousBudget,Sheet1!S71_SA34cCode,$AC:$AC,Sheet1!S71_RepMaintCode,$AD:$AD)","v":7939117},null,null,null,null,{"$f":"SUMIFS(Sheet1!S71_CurrentAdjustments,Sheet1!S71_SA34cCode,$AC:$AC,Sheet1!S71_RepMaintCode,$AD:$AD)","v":0},0,7939117,{"$f":"SUMIFS(Sheet1!S71_OY1AdjustedBudget,Sheet1!S71_SA34cCode,$AC:$AC,Sheet1!S71_RepMaintCode,$AD:$AD)","v":8304317},{"$f":"SUMIFS(Sheet1!S71_OY2AdjustedBudget,Sheet1!S71_SA34cCode,$AC:$AC,Sheet1!S71_RepMaintCode,$AD:$AD)","v":8686317},null,null,null,null,null,null,null,null,null,null,null,null,null,null,null,"0120","RM"]
["Road Structures",null,{"$f":"SUMIFS(Sheet1!S71_OriginalBudget,Sheet1!S71_SA34cCode,$AC:$AC,Sheet1!S71_RepMaintCode,$AD:$AD)","v":434780},{"$f":"SUMIFS(Sheet1!S71_PreviousBudget,Sheet1!S71_SA34cCode,$AC:$AC,Sheet1!S71_RepMaintCode,$AD:$AD)","v":434780},null,null,null,null,{"$f":"SUMIFS(Sheet1!S71_CurrentAdjustments,Sheet1!S71_SA34cCode,$AC:$AC,Sheet1!S71_RepMaintCode,$AD:$AD)","v":0},0,434780,{"$f":"SUMIFS(Sheet1!S71_OY1AdjustedBudget,Sheet1!S71_SA34cCode,$AC:$AC,Sheet1!S71_RepMaintCode,$AD:$AD)","v":454780},{"$f":"SUMIFS(Sheet1!S71_OY2AdjustedBudget,Sheet1!S71_SA34cCode,$AC:$AC,Sheet1!S71_RepMaintCode,$AD:$AD)","v":475700},null,null,null,null,null,null,null,null,null,null,null,null,null,null,null,"0130","RM"]
["Road Furniture",null,{"$f":"SUMIFS(Sheet1!S71_OriginalBudget,Sheet1!S71_SA34cCode,$AC:$AC,Sheet1!S71_RepMaintCode,$AD:$AD)","v":173910},{"$f":"SUMIFS(Sheet1!S71_PreviousBudget,Sheet1!S71_SA34cCode,$AC:$AC,Sheet1!S71_RepMaintCode,$AD:$AD)","v":173910},null,null,null,null,{"$f":"SUMIFS(Sheet1!S71_CurrentAdjustments,Sheet1!S71_SA34cCode,$AC:$AC,Sheet1!S71_RepMaintCode,$AD:$AD)","v":0},0,173910,{"$f":"SUMIFS(Sheet1!S71_OY1AdjustedBudget,Sheet1!S71_SA34cCode,$AC:$AC,Sheet1!S71_RepMaintCode,$AD:$AD)","v":181910},{"$f":"SUMIFS(Sheet1!S71_OY2AdjustedBudget,Sheet1!S71_SA34cCode,$AC:$AC,Sheet1!S71_RepMaintCode,$AD:$AD)","v":190280},null,null,null,null,null,null,null,null,null,null,null,null,null,null,null,"0140","RM"]
["Capital Spares",null,{"$f":"SUMIFS(Sheet1!S71_OriginalBudget,Sheet1!S71_SA34cCode,$AC:$AC,Sheet1!S71_RepMaintCode,$AD:$AD)","v":0},{"$f":"SUMIFS(Sheet1!S71_PreviousBudget,Sheet1!S71_SA34cCode,$AC:$AC,Sheet1!S71_RepMaintCode,$AD:$AD)","v":0},null,null,null,null,{"$f":"SUMIFS(Sheet1!S71_CurrentAdjustments,Sheet1!S71_SA34cCode,$AC:$AC,Sheet1!S71_RepMaintCode,$AD:$AD)","v":0},0,0,{"$f":"SUMIFS(Sheet1!S71_OY1AdjustedBudget,Sheet1!S71_SA34cCode,$AC:$AC,Sheet1!S71_RepMaintCode,$AD:$AD)","v":0},{"$f":"SUMIFS(Sheet1!S71_OY2AdjustedBudget,Sheet1!S71_SA34cCode,$AC:$AC,Sheet1!S71_RepMaintCode,$AD:$AD)","v":0},null,null,null,null,null,null,null,null,null,null,null,null,null,null,null,"0150","RM"]
["Storm water Infrastructure",null,{"$f":"SUM(C15:C17)","v":2869570},2869570,0,0,0,0,0,0,2869570,{"$f":"SUM(L15:L17)","v":3001570},{"$f":"SUM(M15:M17)","v":3139640},null,null,null,null,null,null,null,null,null,null,null,null,null,null,null,null,"RM"]
["Drainage Collection",null,{"$f":"SUMIFS(Sheet1!S71_OriginalBudget,Sheet1!S71_SA34cCode,$AC:$AC,Sheet1!S71_RepMaintCode,$AD:$AD)","v":2869570},{"$f":"SUMIFS(Sheet1!S71_PreviousBudget,Sheet1!S71_SA34cCode,$AC:$AC,Sheet1!S71_RepMaintCode,$AD:$AD)","v":2869570},null,null,null,null,{"$f":"SUMIFS(Sheet1!S71_CurrentAdjustments,Sheet1!S71_SA34cCode,$AC:$AC,Sheet1!S71_RepMaintCode,$AD:$AD)","v":0},0,2869570,{"$f":"SUMIFS(Sheet1!S71_OY1AdjustedBudget,Sheet1!S71_SA34cCode,$AC:$AC,Sheet1!S71_RepMaintCode,$AD:$AD)","v":3001570},{"$f":"SUMIFS(Sheet1!S71_OY2AdjustedBudget,Sheet1!S71_SA34cCode,$AC:$AC,Sheet1!S71_RepMaintCode,$AD:$AD)","v":3139640},null,null,null,null,null,null,null,null,null,null,null,null,null,null,null,"0170","RM"]
["Storm water Conveyance",null,{"$f":"SUMIFS(Sheet1!S71_OriginalBudget,Sheet1!S71_SA34cCode,$AC:$AC,Sheet1!S71_RepMaintCode,$AD:$AD)","v":0},{"$f":"SUMIFS(Sheet1!S71_PreviousBudget,Sheet1!S71_SA34cCode,$AC:$AC,Sheet1!S71_RepMaintCode,$AD:$AD)","v":0},null,null,null,null,{"$f":"SUMIFS(Sheet1!S71_CurrentAdjustments,Sheet1!S71_SA34cCode,$AC:$AC,Sheet1!S71_RepMaintCode,$AD:$AD)","v":0},0,0,{"$f":"SUMIFS(Sheet1!S71_OY1AdjustedBudget,Sheet1!S71_SA34cCode,$AC:$AC,Sheet1!S71_RepMaintCode,$AD:$AD)","v":0},{"$f":"SUMIFS(Sheet1!S71_OY2AdjustedBudget,Sheet1!S71_SA34cCode,$AC:$AC,Sheet1!S71_RepMaintCode,$AD:$AD)","v":0},null,null,null,null,null,null,null,null,null,null,null,null,null,null,null,"0180","RM"]
["Attenuation",null,{"$f":"SUMIFS(Sheet1!S71_OriginalBudget,Sheet1!S71_SA34cCode,$AC:$AC,Sheet1!S71_RepMaintCode,$AD:$AD)","v":0},{"$f":"SUMIFS(Sheet1!S71_PreviousBudget,Sheet1!S71_SA34cCode,$AC:$AC,Sheet1!S71_RepMaintCode,$AD:$AD)","v":0},null,null,null,null,{"$f":"SUMIFS(Sheet1!S71_CurrentAdjustments,Sheet1!S71_SA34cCode,$AC:$AC,Sheet1!S71_RepMaintCode,$AD:$AD)","v":0},0,0,{"$f":"SUMIFS(Sheet1!S71_OY1AdjustedBudget,Sheet1!S71_SA34cCode,$AC:$AC,Sheet1!S71_RepMaintCode,$AD:$AD)","v":0},{"$f":"SUMIFS(Sheet1!S71_OY2AdjustedBudget,Sheet1!S71_SA34cCode,$AC:$AC,Sheet1!S71_RepMaintCode,$AD:$AD)","v":0},null,null,null,null,null,null,null,null,null,null,null,null,null,null,null,"0190","RM"]
["Electrical Infrastructure",null,{"$f":"SUM(C19:C27)","v":2999998},2565215,0,0,0,0,0,0,2565215,3137998,3282338,null,null,null,null,null,null,null,null,null,null,null,null,null,null,null,null,"RM"]
["Power Plants",null,{"$f":"SUMIFS(Sheet1!S71_OriginalBudget,Sheet1!S71_SA34cCode,$AC:$AC,Sheet1!S71_RepMaintCode,$AD:$AD)","v":43480},{"$f":"SUMIFS(Sheet1!S71_PreviousBudget,Sheet1!S71_SA34cCode,$AC:$AC,Sheet1!S71_RepMaintCode,$AD:$AD)","v":43480},null,null,null,null,{"$f":"SUMIFS(Sheet1!S71_CurrentAdjustments,Sheet1!S71_SA34cCode,$AC:$AC,Sheet1!S71_RepMaintCode,$AD:$AD)","v":0},0,43480,{"$f":"SUMIFS(Sheet1!S71_OY1AdjustedBudget,Sheet1!S71_SA34cCode,$AC:$AC,Sheet1!S71_RepMaintCode,$AD:$AD)","v":45480},{"$f":"SUMIFS(Sheet1!S71_OY2AdjustedBudget,Sheet1!S71_SA34cCode,$AC:$AC,Sheet1!S71_RepMaintCode,$AD:$AD)","v":47570},null,null,null,null,null,null,null,null,null,null,null,null,null,null,null,"0210","RM"]
["HV Substations",null,{"$f":"SUMIFS(Sheet1!S71_OriginalBudget,Sheet1!S71_SA34cCode,$AC:$AC,Sheet1!S71_RepMaintCode,$AD:$AD)","v":0},{"$f":"SUMIFS(Sheet1!S71_PreviousBudget,Sheet1!S71_SA34cCode,$AC:$AC,Sheet1!S71_RepMaintCode,$AD:$AD)","v":0},null,null,null,null,{"$f":"SUMIFS(Sheet1!S71_CurrentAdjustments,Sheet1!S71_SA34cCode,$AC:$AC,Sheet1!S71_RepMaintCode,$AD:$AD)","v":0},0,0,{"$f":"SUMIFS(Sheet1!S71_OY1AdjustedBudget,Sheet1!S71_SA34cCode,$AC:$AC,Sheet1!S71_RepMaintCode,$AD:$AD)","v":0},{"$f":"SUMIFS(Sheet1!S71_OY2AdjustedBudget,Sheet1!S71_SA34cCode,$AC:$AC,Sheet1!S71_RepMaintCode,$AD:$AD)","v":0},null,null,null,null,null,null,null,null,null,null,null,null,null,null,null,"0220","RM"]
["HV Switching Station",null,{"$f":"SUMIFS(Sheet1!S71_OriginalBudget,Sheet1!S71_SA34cCode,$AC:$AC,Sheet1!S71_RepMaintCode,$AD:$AD)","v":0},{"$f":"SUMIFS(Sheet1!S71_PreviousBudget,Sheet1!S71_SA34cCode,$AC:$AC,Sheet1!S71_RepMaintCode,$AD:$AD)","v":0},null,null,null,null,{"$f":"SUMIFS(Sheet1!S71_CurrentAdjustments,Sheet1!S71_SA34cCode,$AC:$AC,Sheet1!S71_RepMaintCode,$AD:$AD)","v":0},0,0,{"$f":"SUMIFS(Sheet1!S71_OY1AdjustedBudget,Sheet1!S71_SA34cCode,$AC:$AC,Sheet1!S71_RepMaintCode,$AD:$AD)","v":0},{"$f":"SUMIFS(Sheet1!S71_OY2AdjustedBudget,Sheet1!S71_SA34cCode,$AC:$AC,Sheet1!S71_RepMaintCode,$AD:$AD)","v":0},null,null,null,null,null,null,null,null,null,null,null,null,null,null,null,"0230","RM"]
["HV Transmission Conductors",null,{"$f":"SUMIFS(Sheet1!S71_OriginalBudget,Sheet1!S71_SA34cCode,$AC:$AC,Sheet1!S71_RepMaintCode,$AD:$AD)","v":739130},{"$f":"SUMIFS(Sheet1!S71_PreviousBudget,Sheet1!S71_SA34cCode,$AC:$AC,Sheet1!S71_RepMaintCode,$AD:$AD)","v":739130},null,null,null,null,{"$f":"SUMIFS(Sheet1!S71_CurrentAdjustments,Sheet1!S71_SA34cCode,$AC:$AC,Sheet1!S71_RepMaintCode,$AD:$AD)","v":0},0,739130,{"$f":"SUMIFS(Sheet1!S71_OY1AdjustedBudget,Sheet1!S71_SA34cCode,$AC:$AC,Sheet1!S71_RepMaintCode,$AD:$AD)","v":773130},{"$f":"SUMIFS(Sheet1!S71_OY2AdjustedBudget,Sheet1!S71_SA34cCode,$AC:$AC,Sheet1!S71_RepMaintCode,$AD:$AD)","v":808690},null,null,null,null,null,null,null,null,null,null,null,null,null,null,null,"0240","RM"]
["MV Substations",null,{"$f":"SUMIFS(Sheet1!S71_OriginalBudget,Sheet1!S71_SA34cCode,$AC:$AC,Sheet1!S71_RepMaintCode,$AD:$AD)","v":43480},{"$f":"SUMIFS(Sheet1!S71_PreviousBudget,Sheet1!S71_SA34cCode,$AC:$AC,Sheet1!S71_RepMaintCode,$AD:$AD)","v":43480},null,null,null,null,{"$f":"SUMIFS(Sheet1!S71_CurrentAdjustments,Sheet1!S71_SA34cCode,$AC:$AC,Sheet1!S71_RepMaintCode,$AD:$AD)","v":0},0,43480,{"$f":"SUMIFS(Sheet1!S71_OY1AdjustedBudget,Sheet1!S71_SA34cCode,$AC:$AC,Sheet1!S71_RepMaintCode,$AD:$AD)","v":45480},{"$f":"SUMIFS(Sheet1!S71_OY2AdjustedBudget,Sheet1!S71_SA34cCode,$AC:$AC,Sheet1!S71_RepMaintCode,$AD:$AD)","v":47570},null,null,null,null,null,null,null,null,null,null,null,null,null,null,null,"0250","RM"]
["MV Switching Stations",null,{"$f":"SUMIFS(Sheet1!S71_OriginalBudget,Sheet1!S71_SA34cCode,$AC:$AC,Sheet1!S71_RepMaintCode,$AD:$AD)","v":0},{"$f":"SUMIFS(Sheet1!S71_PreviousBudget,Sheet1!S71_SA34cCode,$AC:$AC,Sheet1!S71_RepMaintCode,$AD:$AD)","v":0},null,null,null,null,{"$f":"SUMIFS(Sheet1!S71_CurrentAdjustments,Sheet1!S71_SA34cCode,$AC:$AC,Sheet1!S71_RepMaintCode,$AD:$AD)","v":0},0,0,{"$f":"SUMIFS(Sheet1!S71_OY1AdjustedBudget,Sheet1!S71_SA34cCode,$AC:$AC,Sheet1!S71_RepMaintCode,$AD:$AD)","v":0},{"$f":"SUMIFS(Sheet1!S71_OY2AdjustedBudget,Sheet1!S71_SA34cCode,$AC:$AC,Sheet1!S71_RepMaintCode,$AD:$AD)","v":0},null,null,null,null,null,null,null,null,null,null,null,null,null,null,null,"0260","RM"]
["MV Networks",null,{"$f":"SUMIFS(Sheet1!S71_OriginalBudget,Sheet1!S71_SA34cCode,$AC:$AC,Sheet1!S71_RepMaintCode,$AD:$AD)","v":130430},{"$f":"SUMIFS(Sheet1!S71_PreviousBudget,Sheet1!S71_SA34cCode,$AC:$AC,Sheet1!S71_RepMaintCode,$AD:$AD)","v":130430},null,null,null,null,{"$f":"SUMIFS(Sheet1!S71_CurrentAdjustments,Sheet1!S71_SA34cCode,$AC:$AC,Sheet1!S71_RepMaintCode,$AD:$AD)","v":0},0,130430,{"$f":"SUMIFS(Sheet1!S71_OY1AdjustedBudget,Sheet1!S71_SA34cCode,$AC:$AC,Sheet1!S71_RepMaintCode,$AD:$AD)","v":136430},{"$f":"SUMIFS(Sheet1!S71_OY2AdjustedBudget,Sheet1!S71_SA34cCode,$AC:$AC,Sheet1!S71_RepMaintCode,$AD:$AD)","v":142710},null,null,null,null,null,null,null,null,null,null,null,null,null,null,null,"0270","RM"]
["LV Networks",null,{"$f":"SUMIFS(Sheet1!S71_OriginalBudget,Sheet1!S71_SA34cCode,$AC:$AC,Sheet1!S71_RepMaintCode,$AD:$AD)","v":739130},{"$f":"SUMIFS(Sheet1!S71_PreviousBudget,Sheet1!S71_SA34cCode,$AC:$AC,Sheet1!S71_RepMaintCode,$AD:$AD)","v":739130},null,null,null,null,{"$f":"SUMIFS(Sheet1!S71_CurrentAdjustments,Sheet1!S71_SA34cCode,$AC:$AC,Sheet1!S71_RepMaintCode,$AD:$AD)","v":0},0,739130,{"$f":"SUMIFS(Sheet1!S71_OY1AdjustedBudget,Sheet1!S71_SA34cCode,$AC:$AC,Sheet1!S71_RepMaintCode,$AD:$AD)","v":773130},{"$f":"SUMIFS(Sheet1!S71_OY2AdjustedBudget,Sheet1!S71_SA34cCode,$AC:$AC,Sheet1!S71_RepMaintCode,$AD:$AD)","v":808690},null,null,null,null,null,null,null,null,null,null,null,null,null,null,null,"0280","RM"]
["Capital Spares",null,{"$f":"SUMIFS(Sheet1!S71_OriginalBudget,Sheet1!S71_SA34cCode,$AC:$AC,Sheet1!S71_RepMaintCode,$AD:$AD)","v":1304348},{"$f":"SUMIFS(Sheet1!S71_PreviousBudget,Sheet1!S71_SA34cCode,$AC:$AC,Sheet1!S71_RepMaintCode,$AD:$AD)","v":869565},null,null,null,null,{"$f":"SUMIFS(Sheet1!S71_CurrentAdjustments,Sheet1!S71_SA34cCode,$AC:$AC,Sheet1!S71_RepMaintCode,$AD:$AD)","v":0},0,869565,{"$f":"SUMIFS(Sheet1!S71_OY1AdjustedBudget,Sheet1!S71_SA34cCode,$AC:$AC,Sheet1!S71_RepMaintCode,$AD:$AD)","v":1364348},{"$f":"SUMIFS(Sheet1!S71_OY2AdjustedBudget,Sheet1!S71_SA34cCode,$AC:$AC,Sheet1!S71_RepMaintCode,$AD:$AD)","v":1427108},null,null,null,null,null,null,null,null,null,null,null,null,null,null,null,"0290","RM"]
["Water Supply Infrastructure",null,{"$f":"SUM(C29:C38)","v":0},0,0,0,0,0,0,0,0,0,0,null,null,null,null,null,null,null,null,null,null,null,null,null,null,null,null,"RM"]
["Dams and Weirs",null,{"$f":"SUMIFS(Sheet1!S71_OriginalBudget,Sheet1!S71_SA34cCode,$AC:$AC,Sheet1!S71_RepMaintCode,$AD:$AD)","v":0},{"$f":"SUMIFS(Sheet1!S71_PreviousBudget,Sheet1!S71_SA34cCode,$AC:$AC,Sheet1!S71_RepMaintCode,$AD:$AD)","v":0},null,null,null,null,{"$f":"SUMIFS(Sheet1!S71_CurrentAdjustments,Sheet1!S71_SA34cCode,$AC:$AC,Sheet1!S71_RepMaintCode,$AD:$AD)","v":0},0,0,{"$f":"SUMIFS(Sheet1!S71_OY1AdjustedBudget,Sheet1!S71_SA34cCode,$AC:$AC,Sheet1!S71_RepMaintCode,$AD:$AD)","v":0},{"$f":"SUMIFS(Sheet1!S71_OY2AdjustedBudget,Sheet1!S71_SA34cCode,$AC:$AC,Sheet1!S71_RepMaintCode,$AD:$AD)","v":0},null,null,null,null,null,null,null,null,null,null,null,null,null,null,null,"0310","RM"]
["Boreholes",null,{"$f":"SUMIFS(Sheet1!S71_OriginalBudget,Sheet1!S71_SA34cCode,$AC:$AC,Sheet1!S71_RepMaintCode,$AD:$AD)","v":0},{"$f":"SUMIFS(Sheet1!S71_PreviousBudget,Sheet1!S71_SA34cCode,$AC:$AC,Sheet1!S71_RepMaintCode,$AD:$AD)","v":0},null,null,null,null,{"$f":"SUMIFS(Sheet1!S71_CurrentAdjustments,Sheet1!S71_SA34cCode,$AC:$AC,Sheet1!S71_RepMaintCode,$AD:$AD)","v":0},0,0,{"$f":"SUMIFS(Sheet1!S71_OY1AdjustedBudget,Sheet1!S71_SA34cCode,$AC:$AC,Sheet1!S71_RepMaintCode,$AD:$AD)","v":0},{"$f":"SUMIFS(Sheet1!S71_OY2AdjustedBudget,Sheet1!S71_SA34cCode,$AC:$AC,Sheet1!S71_RepMaintCode,$AD:$AD)","v":0},null,null,null,null,null,null,null,null,null,null,null,null,null,null,null,"0320","RM"]
["Reservoirs",null,{"$f":"SUMIFS(Sheet1!S71_OriginalBudget,Sheet1!S71_SA34cCode,$AC:$AC,Sheet1!S71_RepMaintCode,$AD:$AD)","v":0},{"$f":"SUMIFS(Sheet1!S71_PreviousBudget,Sheet1!S71_SA34cCode,$AC:$AC,Sheet1!S71_RepMaintCode,$AD:$AD)","v":0},null,null,null,null,{"$f":"SUMIFS(Sheet1!S71_CurrentAdjustments,Sheet1!S71_SA34cCode,$AC:$AC,Sheet1!S71_RepMaintCode,$AD:$AD)","v":0},0,0,{"$f":"SUMIFS(Sheet1!S71_OY1AdjustedBudget,Sheet1!S71_SA34cCode,$AC:$AC,Sheet1!S71_RepMaintCode,$AD:$AD)","v":0},{"$f":"SUMIFS(Sheet1!S71_OY2AdjustedBudget,Sheet1!S71_SA34cCode,$AC:$AC,Sheet1!S71_RepMaintCode,$AD:$AD)","v":0},null,null,null,null,null,null,null,null,null,null,null,null,null,null,null,"0330","RM"]
["Pump Stations",null,{"$f":"SUMIFS(Sheet1!S71_OriginalBudget,Sheet1!S71_SA34cCode,$AC:$AC,Sheet1!S71_RepMaintCode,$AD:$AD)","v":0},{"$f":"SUMIFS(Sheet1!S71_PreviousBudget,Sheet1!S71_SA34cCode,$AC:$AC,Sheet1!S71_RepMaintCode,$AD:$AD)","v":0},null,null,null,null,{"$f":"SUMIFS(Sheet1!S71_CurrentAdjustments,Sheet1!S71_SA34cCode,$AC:$AC,Sheet1!S71_RepMaintCode,$AD:$AD)","v":0},0,0,{"$f":"SUMIFS(Sheet1!S71_OY1AdjustedBudget,Sheet1!S71_SA34cCode,$AC:$AC,Sheet1!S71_RepMaintCode,$AD:$AD)","v":0},{"$f":"SUMIFS(Sheet1!S71_OY2AdjustedBudget,Sheet1!S71_SA34cCode,$AC:$AC,Sheet1!S71_RepMaintCode,$AD:$AD)","v":0},null,null,null,null,null,null,null,null,null,null,null,null,null,null,null,"0340","RM"]
["Water Treatment Works",null,{"$f":"SUMIFS(Sheet1!S71_OriginalBudget,Sheet1!S71_SA34cCode,$AC:$AC,Sheet1!S71_RepMaintCode,$AD:$AD)","v":0},{"$f":"SUMIFS(Sheet1!S71_PreviousBudget,Sheet1!S71_SA34cCode,$AC:$AC,Sheet1!S71_RepMaintCode,$AD:$AD)","v":0},null,null,null,null,{"$f":"SUMIFS(Sheet1!S71_CurrentAdjustments,Sheet1!S71_SA34cCode,$AC:$AC,Sheet1!S71_RepMaintCode,$AD:$AD)","v":0},0,0,{"$f":"SUMIFS(Sheet1!S71_OY1AdjustedBudget,Sheet1!S71_SA34cCode,$AC:$AC,Sheet1!S71_RepMaintCode,$AD:$AD)","v":0},{"$f":"SUMIFS(Sheet1!S71_OY2AdjustedBudget,Sheet1!S71_SA34cCode,$AC:$AC,Sheet1!S71_RepMaintCode,$AD:$AD)","v":0},null,null,null,null,null,null,null,null,null,null,null,null,null,null,null,"0350","RM"]
["Bulk Mains",null,{"$f":"SUMIFS(Sheet1!S71_OriginalBudget,Sheet1!S71_SA34cCode,$AC:$AC,Sheet1!S71_RepMaintCode,$AD:$AD)","v":0},{"$f":"SUMIFS(Sheet1!S71_PreviousBudget,Sheet1!S71_SA34cCode,$AC:$AC,Sheet1!S71_RepMaintCode,$AD:$AD)","v":0},null,null,null,null,{"$f":"SUMIFS(Sheet1!S71_CurrentAdjustments,Sheet1!S71_SA34cCode,$AC:$AC,Sheet1!S71_RepMaintCode,$AD:$AD)","v":0},0,0,{"$f":"SUMIFS(Sheet1!S71_OY1AdjustedBudget,Sheet1!S71_SA34cCode,$AC:$AC,Sheet1!S71_RepMaintCode,$AD:$AD)","v":0},{"$f":"SUMIFS(Sheet1!S71_OY2AdjustedBudget,Sheet1!S71_SA34cCode,$AC:$AC,Sheet1!S71_RepMaintCode,$AD:$AD)","v":0},null,null,null,null,null,null,null,null,null,null,null,null,null,null,null,"0360","RM"]
["Distribution",null,{"$f":"SUMIFS(Sheet1!S71_OriginalBudget,Sheet1!S71_SA34cCode,$AC:$AC,Sheet1!S71_RepMaintCode,$AD:$AD)","v":0},{"$f":"SUMIFS(Sheet1!S71_PreviousBudget,Sheet1!S71_SA34cCode,$AC:$AC,Sheet1!S71_RepMaintCode,$AD:$AD)","v":0},null,null,null,null,{"$f":"SUMIFS(Sheet1!S71_CurrentAdjustments,Sheet1!S71_SA34cCode,$AC:$AC,Sheet1!S71_RepMaintCode,$AD:$AD)","v":0},0,0,{"$f":"SUMIFS(Sheet1!S71_OY1AdjustedBudget,Sheet1!S71_SA34cCode,$AC:$AC,Sheet1!S71_RepMaintCode,$AD:$AD)","v":0},{"$f":"SUMIFS(Sheet1!S71_OY2AdjustedBudget,Sheet1!S71_SA34cCode,$AC:$AC,Sheet1!S71_RepMaintCode,$AD:$AD)","v":0},null,null,null,null,null,null,null,null,null,null,null,null,null,null,null,"0370","RM"]
["Distribution Points",null,{"$f":"SUMIFS(Sheet1!S71_OriginalBudget,Sheet1!S71_SA34cCode,$AC:$AC,Sheet1!S71_RepMaintCode,$AD:$AD)","v":0},{"$f":"SUMIFS(Sheet1!S71_PreviousBudget,Sheet1!S71_SA34cCode,$AC:$AC,Sheet1!S71_RepMaintCode,$AD:$AD)","v":0},null,null,null,null,{"$f":"SUMIFS(Sheet1!S71_CurrentAdjustments,Sheet1!S71_SA34cCode,$AC:$AC,Sheet1!S71_RepMaintCode,$AD:$AD)","v":0},0,0,{"$f":"SUMIFS(Sheet1!S71_OY1AdjustedBudget,Sheet1!S71_SA34cCode,$AC:$AC,Sheet1!S71_RepMaintCode,$AD:$AD)","v":0},{"$f":"SUMIFS(Sheet1!S71_OY2AdjustedBudget,Sheet1!S71_SA34cCode,$AC:$AC,Sheet1!S71_RepMaintCode,$AD:$AD)","v":0},null,null,null,null,null,null,null,null,null,null,null,null,null,null,null,"0380","RM"]
["PRV Stations",null,{"$f":"SUMIFS(Sheet1!S71_OriginalBudget,Sheet1!S71_SA34cCode,$AC:$AC,Sheet1!S71_RepMaintCode,$AD:$AD)","v":0},{"$f":"SUMIFS(Sheet1!S71_PreviousBudget,Sheet1!S71_SA34cCode,$AC:$AC,Sheet1!S71_RepMaintCode,$AD:$AD)","v":0},null,null,null,null,{"$f":"SUMIFS(Sheet1!S71_CurrentAdjustments,Sheet1!S71_SA34cCode,$AC:$AC,Sheet1!S71_RepMaintCode,$AD:$AD)","v":0},0,0,{"$f":"SUMIFS(Sheet1!S71_OY1AdjustedBudget,Sheet1!S71_SA34cCode,$AC:$AC,Sheet1!S71_RepMaintCode,$AD:$AD)","v":0},{"$f":"SUMIFS(Sheet1!S71_OY2AdjustedBudget,Sheet1!S71_SA34cCode,$AC:$AC,Sheet1!S71_RepMaintCode,$AD:$AD)","v":0},null,null,null,null,null,null,null,null,null,null,null,null,null,null,null,"0390","RM"]
["Capital Spares",null,{"$f":"SUMIFS(Sheet1!S71_OriginalBudget,Sheet1!S71_SA34cCode,$AC:$AC,Sheet1!S71_RepMaintCode,$AD:$AD)","v":0},{"$f":"SUMIFS(Sheet1!S71_PreviousBudget,Sheet1!S71_SA34cCode,$AC:$AC,Sheet1!S71_RepMaintCode,$AD:$AD)","v":0},null,null,null,null,{"$f":"SUMIFS(Sheet1!S71_CurrentAdjustments,Sheet1!S71_SA34cCode,$AC:$AC,Sheet1!S71_RepMaintCode,$AD:$AD)","v":0},0,0,{"$f":"SUMIFS(Sheet1!S71_OY1AdjustedBudget,Sheet1!S71_SA34cCode,$AC:$AC,Sheet1!S71_RepMaintCode,$AD:$AD)","v":0},{"$f":"SUMIFS(Sheet1!S71_OY2AdjustedBudget,Sheet1!S71_SA34cCode,$AC:$AC,Sheet1!S71_RepMaintCode,$AD:$AD)","v":0},null,null,null,null,null,null,null,null,null,null,null,null,null,null,null,"0400","RM"]
["Sanitation Infrastructure",null,{"$f":"SUM(C40:C45)","v":0},{"$f":"SUM(D40:D45)","v":0},0,0,0,0,0,0,0,0,0,null,null,null,null,null,null,null,null,null,null,null,null,null,null,null,null,"RM"]
["Pump Station",null,{"$f":"SUMIFS(Sheet1!S71_OriginalBudget,Sheet1!S71_SA34cCode,$AC:$AC,Sheet1!S71_RepMaintCode,$AD:$AD)","v":0},{"$f":"SUMIFS(Sheet1!S71_PreviousBudget,Sheet1!S71_SA34cCode,$AC:$AC,Sheet1!S71_RepMaintCode,$AD:$AD)","v":0},null,null,null,null,{"$f":"SUMIFS(Sheet1!S71_CurrentAdjustments,Sheet1!S71_SA34cCode,$AC:$AC,Sheet1!S71_RepMaintCode,$AD:$AD)","v":0},0,0,{"$f":"SUMIFS(Sheet1!S71_OY1AdjustedBudget,Sheet1!S71_SA34cCode,$AC:$AC,Sheet1!S71_RepMaintCode,$AD:$AD)","v":0},{"$f":"SUMIFS(Sheet1!S71_OY2AdjustedBudget,Sheet1!S71_SA34cCode,$AC:$AC,Sheet1!S71_RepMaintCode,$AD:$AD)","v":0},null,null,null,null,null,null,null,null,null,null,null,null,null,null,null,"0420","RM"]
["Reticulation",null,{"$f":"SUMIFS(Sheet1!S71_OriginalBudget,Sheet1!S71_SA34cCode,$AC:$AC,Sheet1!S71_RepMaintCode,$AD:$AD)","v":0},{"$f":"SUMIFS(Sheet1!S71_PreviousBudget,Sheet1!S71_SA34cCode,$AC:$AC,Sheet1!S71_RepMaintCode,$AD:$AD)","v":0},null,null,null,null,{"$f":"SUMIFS(Sheet1!S71_CurrentAdjustments,Sheet1!S71_SA34cCode,$AC:$AC,Sheet1!S71_RepMaintCode,$AD:$AD)","v":0},0,0,{"$f":"SUMIFS(Sheet1!S71_OY1AdjustedBudget,Sheet1!S71_SA34cCode,$AC:$AC,Sheet1!S71_RepMaintCode,$AD:$AD)","v":0},{"$f":"SUMIFS(Sheet1!S71_OY2AdjustedBudget,Sheet1!S71_SA34cCode,$AC:$AC,Sheet1!S71_RepMaintCode,$AD:$AD)","v":0},null,null,null,null,null,null,null,null,null,null,null,null,null,null,null,"0430","RM"]
["Waste Water Treatment Works",null,{"$f":"SUMIFS(Sheet1!S71_OriginalBudget,Sheet1!S71_SA34cCode,$AC:$AC,Sheet1!S71_RepMaintCode,$AD:$AD)","v":0},{"$f":"SUMIFS(Sheet1!S71_PreviousBudget,Sheet1!S71_SA34cCode,$AC:$AC,Sheet1!S71_RepMaintCode,$AD:$AD)","v":0},null,null,null,null,{"$f":"SUMIFS(Sheet1!S71_CurrentAdjustments,Sheet1!S71_SA34cCode,$AC:$AC,Sheet1!S71_RepMaintCode,$AD:$AD)","v":0},0,0,{"$f":"SUMIFS(Sheet1!S71_OY1AdjustedBudget,Sheet1!S71_SA34cCode,$AC:$AC,Sheet1!S71_RepMaintCode,$AD:$AD)","v":0},{"$f":"SUMIFS(Sheet1!S71_OY2AdjustedBudget,Sheet1!S71_SA34cCode,$AC:$AC,Sheet1!S71_RepMaintCode,$AD:$AD)","v":0},null,null,null,null,null,null,null,null,null,null,null,null,null,null,null,"0440","RM"]
["Outfall Sewers",null,{"$f":"SUMIFS(Sheet1!S71_OriginalBudget,Sheet1!S71_SA34cCode,$AC:$AC,Sheet1!S71_RepMaintCode,$AD:$AD)","v":0},{"$f":"SUMIFS(Sheet1!S71_PreviousBudget,Sheet1!S71_SA34cCode,$AC:$AC,Sheet1!S71_RepMaintCode,$AD:$AD)","v":0},null,null,null,null,{"$f":"SUMIFS(Sheet1!S71_CurrentAdjustments,Sheet1!S71_SA34cCode,$AC:$AC,Sheet1!S71_RepMaintCode,$AD:$AD)","v":0},0,0,{"$f":"SUMIFS(Sheet1!S71_OY1AdjustedBudget,Sheet1!S71_SA34cCode,$AC:$AC,Sheet1!S71_RepMaintCode,$AD:$AD)","v":0},{"$f":"SUMIFS(Sheet1!S71_OY2AdjustedBudget,Sheet1!S71_SA34cCode,$AC:$AC,Sheet1!S71_RepMaintCode,$AD:$AD)","v":0},null,null,null,null,null,null,null,null,null,null,null,null,null,null,null,"0450","RM"]
["Toilet Facilities",null,{"$f":"SUMIFS(Sheet1!S71_OriginalBudget,Sheet1!S71_SA34cCode,$AC:$AC,Sheet1!S71_RepMaintCode,$AD:$AD)","v":0},{"$f":"SUMIFS(Sheet1!S71_PreviousBudget,Sheet1!S71_SA34cCode,$AC:$AC,Sheet1!S71_RepMaintCode,$AD:$AD)","v":0},null,null,null,null,{"$f":"SUMIFS(Sheet1!S71_CurrentAdjustments,Sheet1!S71_SA34cCode,$AC:$AC,Sheet1!S71_RepMaintCode,$AD:$AD)","v":0},0,0,{"$f":"SUMIFS(Sheet1!S71_OY1AdjustedBudget,Sheet1!S71_SA34cCode,$AC:$AC,Sheet1!S71_RepMaintCode,$AD:$AD)","v":0},{"$f":"SUMIFS(Sheet1!S71_OY2AdjustedBudget,Sheet1!S71_SA34cCode,$AC:$AC,Sheet1!S71_RepMaintCode,$AD:$AD)","v":0},null,null,null,null,null,null,null,null,null,null,null,null,null,null,null,"0460","RM"]
["Capital Spares",null,{"$f":"SUMIFS(Sheet1!S71_OriginalBudget,Sheet1!S71_SA34cCode,$AC:$AC,Sheet1!S71_RepMaintCode,$AD:$AD)","v":0},{"$f":"SUMIFS(Sheet1!S71_PreviousBudget,Sheet1!S71_SA34cCode,$AC:$AC,Sheet1!S71_RepMaintCode,$AD:$AD)","v":0},null,null,null,null,{"$f":"SUMIFS(Sheet1!S71_CurrentAdjustments,Sheet1!S71_SA34cCode,$AC:$AC,Sheet1!S71_RepMaintCode,$AD:$AD)","v":0},0,0,{"$f":"SUMIFS(Sheet1!S71_OY1AdjustedBudget,Sheet1!S71_SA34cCode,$AC:$AC,Sheet1!S71_RepMaintCode,$AD:$AD)","v":0},{"$f":"SUMIFS(Sheet1!S71_OY2AdjustedBudget,Sheet1!S71_SA34cCode,$AC:$AC,Sheet1!S71_RepMaintCode,$AD:$AD)","v":0},null,null,null,null,null,null,null,null,null,null,null,null,null,null,null,"0470","RM"]
["Solid Waste Infrastructure",null,{"$f":"SUM(C47:C53)","v":3391300},{"$f":"SUM(D47:D53)","v":4695648},0,0,0,0,0,0,4695648,3547300,3710480,null,null,null,null,null,null,null,null,null,null,null,null,null,null,null,null,"RM"]
["Landfill Sites",null,{"$f":"SUMIFS(Sheet1!S71_OriginalBudget,Sheet1!S71_SA34cCode,$AC:$AC,Sheet1!S71_RepMaintCode,$AD:$AD)","v":0},{"$f":"SUMIFS(Sheet1!S71_PreviousBudget,Sheet1!S71_SA34cCode,$AC:$AC,Sheet1!S71_RepMaintCode,$AD:$AD)","v":0},null,null,null,null,{"$f":"SUMIFS(Sheet1!S71_CurrentAdjustments,Sheet1!S71_SA34cCode,$AC:$AC,Sheet1!S71_RepMaintCode,$AD:$AD)","v":0},0,0,{"$f":"SUMIFS(Sheet1!S71_OY1AdjustedBudget,Sheet1!S71_SA34cCode,$AC:$AC,Sheet1!S71_RepMaintCode,$AD:$AD)","v":0},{"$f":"SUMIFS(Sheet1!S71_OY2AdjustedBudget,Sheet1!S71_SA34cCode,$AC:$AC,Sheet1!S71_RepMaintCode,$AD:$AD)","v":0},null,null,null,null,null,null,null,null,null,null,null,null,null,null,null,"0490","RM"]
["Waste Transfer Stations",null,{"$f":"SUMIFS(Sheet1!S71_OriginalBudget,Sheet1!S71_SA34cCode,$AC:$AC,Sheet1!S71_RepMaintCode,$AD:$AD)","v":0},{"$f":"SUMIFS(Sheet1!S71_PreviousBudget,Sheet1!S71_SA34cCode,$AC:$AC,Sheet1!S71_RepMaintCode,$AD:$AD)","v":0},null,null,null,null,{"$f":"SUMIFS(Sheet1!S71_CurrentAdjustments,Sheet1!S71_SA34cCode,$AC:$AC,Sheet1!S71_RepMaintCode,$AD:$AD)","v":0},0,0,{"$f":"SUMIFS(Sheet1!S71_OY1AdjustedBudget,Sheet1!S71_SA34cCode,$AC:$AC,Sheet1!S71_RepMaintCode,$AD:$AD)","v":0},{"$f":"SUMIFS(Sheet1!S71_OY2AdjustedBudget,Sheet1!S71_SA34cCode,$AC:$AC,Sheet1!S71_RepMaintCode,$AD:$AD)","v":0},null,null,null,null,null,null,null,null,null,null,null,null,null,null,null,"0500","RM"]
["Waste Processing Facilities",null,{"$f":"SUMIFS(Sheet1!S71_OriginalBudget,Sheet1!S71_SA34cCode,$AC:$AC,Sheet1!S71_RepMaintCode,$AD:$AD)","v":3391300},{"$f":"SUMIFS(Sheet1!S71_PreviousBudget,Sheet1!S71_SA34cCode,$AC:$AC,Sheet1!S71_RepMaintCode,$AD:$AD)","v":4695648},null,null,null,null,{"$f":"SUMIFS(Sheet1!S71_CurrentAdjustments,Sheet1!S71_SA34cCode,$AC:$AC,Sheet1!S71_RepMaintCode,$AD:$AD)","v":0},0,4695648,{"$f":"SUMIFS(Sheet1!S71_OY1AdjustedBudget,Sheet1!S71_SA34cCode,$AC:$AC,Sheet1!S71_RepMaintCode,$AD:$AD)","v":3547300},{"$f":"SUMIFS(Sheet1!S71_OY2AdjustedBudget,Sheet1!S71_SA34cCode,$AC:$AC,Sheet1!S71_RepMaintCode,$AD:$AD)","v":3710480},null,null,null,null,null,null,null,null,null,null,null,null,null,null,null,"0510","RM"]
["Waste Drop-off Points",null,{"$f":"SUMIFS(Sheet1!S71_OriginalBudget,Sheet1!S71_SA34cCode,$AC:$AC,Sheet1!S71_RepMaintCode,$AD:$AD)","v":0},{"$f":"SUMIFS(Sheet1!S71_PreviousBudget,Sheet1!S71_SA34cCode,$AC:$AC,Sheet1!S71_RepMaintCode,$AD:$AD)","v":0},null,null,null,null,{"$f":"SUMIFS(Sheet1!S71_CurrentAdjustments,Sheet1!S71_SA34cCode,$AC:$AC,Sheet1!S71_RepMaintCode,$AD:$AD)","v":0},0,0,{"$f":"SUMIFS(Sheet1!S71_OY1AdjustedBudget,Sheet1!S71_SA34cCode,$AC:$AC,Sheet1!S71_RepMaintCode,$AD:$AD)","v":0},{"$f":"SUMIFS(Sheet1!S71_OY2AdjustedBudget,Sheet1!S71_SA34cCode,$AC:$AC,Sheet1!S71_RepMaintCode,$AD:$AD)","v":0},null,null,null,null,null,null,null,null,null,null,null,null,null,null,null,"0520","RM"]
["Waste Separation Facilities",null,{"$f":"SUMIFS(Sheet1!S71_OriginalBudget,Sheet1!S71_SA34cCode,$AC:$AC,Sheet1!S71_RepMaintCode,$AD:$AD)","v":0},{"$f":"SUMIFS(Sheet1!S71_PreviousBudget,Sheet1!S71_SA34cCode,$AC:$AC,Sheet1!S71_RepMaintCode,$AD:$AD)","v":0},null,null,null,null,{"$f":"SUMIFS(Sheet1!S71_CurrentAdjustments,Sheet1!S71_SA34cCode,$AC:$AC,Sheet1!S71_RepMaintCode,$AD:$AD)","v":0},0,0,{"$f":"SUMIFS(Sheet1!S71_OY1AdjustedBudget,Sheet1!S71_SA34cCode,$AC:$AC,Sheet1!S71_RepMaintCode,$AD:$AD)","v":0},{"$f":"SUMIFS(Sheet1!S71_OY2AdjustedBudget,Sheet1!S71_SA34cCode,$AC:$AC,Sheet1!S71_RepMaintCode,$AD:$AD)","v":0},null,null,null,null,null,null,null,null,null,null,null,null,null,null,null,"0530","RM"]
["Electricity Generation Facilities",null,{"$f":"SUMIFS(Sheet1!S71_OriginalBudget,Sheet1!S71_SA34cCode,$AC:$AC,Sheet1!S71_RepMaintCode,$AD:$AD)","v":0},{"$f":"SUMIFS(Sheet1!S71_PreviousBudget,Sheet1!S71_SA34cCode,$AC:$AC,Sheet1!S71_RepMaintCode,$AD:$AD)","v":0},null,null,null,null,{"$f":"SUMIFS(Sheet1!S71_CurrentAdjustments,Sheet1!S71_SA34cCode,$AC:$AC,Sheet1!S71_RepMaintCode,$AD:$AD)","v":0},0,0,{"$f":"SUMIFS(Sheet1!S71_OY1AdjustedBudget,Sheet1!S71_SA34cCode,$AC:$AC,Sheet1!S71_RepMaintCode,$AD:$AD)","v":0},{"$f":"SUMIFS(Sheet1!S71_OY2AdjustedBudget,Sheet1!S71_SA34cCode,$AC:$AC,Sheet1!S71_RepMaintCode,$AD:$AD)","v":0},null,null,null,null,null,null,null,null,null,null,null,null,null,null,null,"0540","RM"]
["Capital Spares",null,{"$f":"SUMIFS(Sheet1!S71_OriginalBudget,Sheet1!S71_SA34cCode,$AC:$AC,Sheet1!S71_RepMaintCode,$AD:$AD)","v":0},{"$f":"SUMIFS(Sheet1!S71_PreviousBudget,Sheet1!S71_SA34cCode,$AC:$AC,Sheet1!S71_RepMaintCode,$AD:$AD)","v":0},null,null,null,null,{"$f":"SUMIFS(Sheet1!S71_CurrentAdjustments,Sheet1!S71_SA34cCode,$AC:$AC,Sheet1!S71_RepMaintCode,$AD:$AD)","v":0},0,0,{"$f":"SUMIFS(Sheet1!S71_OY1AdjustedBudget,Sheet1!S71_SA34cCode,$AC:$AC,Sheet1!S71_RepMaintCode,$AD:$AD)","v":0},{"$f":"SUMIFS(Sheet1!S71_OY2AdjustedBudget,Sheet1!S71_SA34cCode,$AC:$AC,Sheet1!S71_RepMaintCode,$AD:$AD)","v":0},null,null,null,null,null,null,null,null,null,null,null,null,null,null,null,"0550","RM"]
["Rail Infrastructure",null,{"$f":"SUM(C55:C63)","v":0},{"$f":"SUM(D55:D63)","v":0},0,0,0,0,0,0,0,0,0,null,null,null,null,null,null,null,null,null,null,null,null,null,null,null,null,"RM"]
["Rail Lines",null,{"$f":"SUMIFS(Sheet1!S71_OriginalBudget,Sheet1!S71_SA34cCode,$AC:$AC,Sheet1!S71_RepMaintCode,$AD:$AD)","v":0},{"$f":"SUMIFS(Sheet1!S71_PreviousBudget,Sheet1!S71_SA34cCode,$AC:$AC,Sheet1!S71_RepMaintCode,$AD:$AD)","v":0},null,null,null,null,{"$f":"SUMIFS(Sheet1!S71_CurrentAdjustments,Sheet1!S71_SA34cCode,$AC:$AC,Sheet1!S71_RepMaintCode,$AD:$AD)","v":0},0,0,{"$f":"SUMIFS(Sheet1!S71_OY1AdjustedBudget,Sheet1!S71_SA34cCode,$AC:$AC,Sheet1!S71_RepMaintCode,$AD:$AD)","v":0},{"$f":"SUMIFS(Sheet1!S71_OY2AdjustedBudget,Sheet1!S71_SA34cCode,$AC:$AC,Sheet1!S71_RepMaintCode,$AD:$AD)","v":0},null,null,null,null,null,null,null,null,null,null,null,null,null,null,null,"0570","RM"]
["Rail Structures",null,{"$f":"SUMIFS(Sheet1!S71_OriginalBudget,Sheet1!S71_SA34cCode,$AC:$AC,Sheet1!S71_RepMaintCode,$AD:$AD)","v":0},{"$f":"SUMIFS(Sheet1!S71_PreviousBudget,Sheet1!S71_SA34cCode,$AC:$AC,Sheet1!S71_RepMaintCode,$AD:$AD)","v":0},null,null,null,null,{"$f":"SUMIFS(Sheet1!S71_CurrentAdjustments,Sheet1!S71_SA34cCode,$AC:$AC,Sheet1!S71_RepMaintCode,$AD:$AD)","v":0},0,0,{"$f":"SUMIFS(Sheet1!S71_OY1AdjustedBudget,Sheet1!S71_SA34cCode,$AC:$AC,Sheet1!S71_RepMaintCode,$AD:$AD)","v":0},{"$f":"SUMIFS(Sheet1!S71_OY2AdjustedBudget,Sheet1!S71_SA34cCode,$AC:$AC,Sheet1!S71_RepMaintCode,$AD:$AD)","v":0},null,null,null,null,null,null,null,null,null,null,null,null,null,null,null,"0580","RM"]
["Rail Furniture",null,{"$f":"SUMIFS(Sheet1!S71_OriginalBudget,Sheet1!S71_SA34cCode,$AC:$AC,Sheet1!S71_RepMaintCode,$AD:$AD)","v":0},{"$f":"SUMIFS(Sheet1!S71_PreviousBudget,Sheet1!S71_SA34cCode,$AC:$AC,Sheet1!S71_RepMaintCode,$AD:$AD)","v":0},null,null,null,null,{"$f":"SUMIFS(Sheet1!S71_CurrentAdjustments,Sheet1!S71_SA34cCode,$AC:$AC,Sheet1!S71_RepMaintCode,$AD:$AD)","v":0},0,0,{"$f":"SUMIFS(Sheet1!S71_OY1AdjustedBudget,Sheet1!S71_SA34cCode,$AC:$AC,Sheet1!S71_RepMaintCode,$AD:$AD)","v":0},{"$f":"SUMIFS(Sheet1!S71_OY2AdjustedBudget,Sheet1!S71_SA34cCode,$AC:$AC,Sheet1!S71_RepMaintCode,$AD:$AD)","v":0},null,null,null,null,null,null,null,null,null,null,null,null,null,null,null,"0590","RM"]
["Drainage Collection",null,{"$f":"SUMIFS(Sheet1!S71_OriginalBudget,Sheet1!S71_SA34cCode,$AC:$AC,Sheet1!S71_RepMaintCode,$AD:$AD)","v":0},{"$f":"SUMIFS(Sheet1!S71_PreviousBudget,Sheet1!S71_SA34cCode,$AC:$AC,Sheet1!S71_RepMaintCode,$AD:$AD)","v":0},null,null,null,null,{"$f":"SUMIFS(Sheet1!S71_CurrentAdjustments,Sheet1!S71_SA34cCode,$AC:$AC,Sheet1!S71_RepMaintCode,$AD:$AD)","v":0},0,0,{"$f":"SUMIFS(Sheet1!S71_OY1AdjustedBudget,Sheet1!S71_SA34cCode,$AC:$AC,Sheet1!S71_RepMaintCode,$AD:$AD)","v":0},{"$f":"SUMIFS(Sheet1!S71_OY2AdjustedBudget,Sheet1!S71_SA34cCode,$AC:$AC,Sheet1!S71_RepMaintCode,$AD:$AD)","v":0},null,null,null,null,null,null,null,null,null,null,null,null,null,null,null,"0600","RM"]
["Storm water Conveyance",null,{"$f":"SUMIFS(Sheet1!S71_OriginalBudget,Sheet1!S71_SA34cCode,$AC:$AC,Sheet1!S71_RepMaintCode,$AD:$AD)","v":0},{"$f":"SUMIFS(Sheet1!S71_PreviousBudget,Sheet1!S71_SA34cCode,$AC:$AC,Sheet1!S71_RepMaintCode,$AD:$AD)","v":0},null,null,null,null,{"$f":"SUMIFS(Sheet1!S71_CurrentAdjustments,Sheet1!S71_SA34cCode,$AC:$AC,Sheet1!S71_RepMaintCode,$AD:$AD)","v":0},0,0,{"$f":"SUMIFS(Sheet1!S71_OY1AdjustedBudget,Sheet1!S71_SA34cCode,$AC:$AC,Sheet1!S71_RepMaintCode,$AD:$AD)","v":0},{"$f":"SUMIFS(Sheet1!S71_OY2AdjustedBudget,Sheet1!S71_SA34cCode,$AC:$AC,Sheet1!S71_RepMaintCode,$AD:$AD)","v":0},null,null,null,null,null,null,null,null,null,null,null,null,null,null,null,"0610","RM"]
["Attenuation",null,{"$f":"SUMIFS(Sheet1!S71_OriginalBudget,Sheet1!S71_SA34cCode,$AC:$AC,Sheet1!S71_RepMaintCode,$AD:$AD)","v":0},{"$f":"SUMIFS(Sheet1!S71_PreviousBudget,Sheet1!S71_SA34cCode,$AC:$AC,Sheet1!S71_RepMaintCode,$AD:$AD)","v":0},null,null,null,null,{"$f":"SUMIFS(Sheet1!S71_CurrentAdjustments,Sheet1!S71_SA34cCode,$AC:$AC,Sheet1!S71_RepMaintCode,$AD:$AD)","v":0},0,0,{"$f":"SUMIFS(Sheet1!S71_OY1AdjustedBudget,Sheet1!S71_SA34cCode,$AC:$AC,Sheet1!S71_RepMaintCode,$AD:$AD)","v":0},{"$f":"SUMIFS(Sheet1!S71_OY2AdjustedBudget,Sheet1!S71_SA34cCode,$AC:$AC,Sheet1!S71_RepMaintCode,$AD:$AD)","v":0},null,null,null,null,null,null,null,null,null,null,null,null,null,null,null,"0620","RM"]
["MV Substations",null,{"$f":"SUMIFS(Sheet1!S71_OriginalBudget,Sheet1!S71_SA34cCode,$AC:$AC,Sheet1!S71_RepMaintCode,$AD:$AD)","v":0},{"$f":"SUMIFS(Sheet1!S71_PreviousBudget,Sheet1!S71_SA34cCode,$AC:$AC,Sheet1!S71_RepMaintCode,$AD:$AD)","v":0},null,null,null,null,{"$f":"SUMIFS(Sheet1!S71_CurrentAdjustments,Sheet1!S71_SA34cCode,$AC:$AC,Sheet1!S71_RepMaintCode,$AD:$AD)","v":0},0,0,{"$f":"SUMIFS(Sheet1!S71_OY1AdjustedBudget,Sheet1!S71_SA34cCode,$AC:$AC,Sheet1!S71_RepMaintCode,$AD:$AD)","v":0},{"$f":"SUMIFS(Sheet1!S71_OY2AdjustedBudget,Sheet1!S71_SA34cCode,$AC:$AC,Sheet1!S71_RepMaintCode,$AD:$AD)","v":0},null,null,null,null,null,null,null,null,null,null,null,null,null,null,null,"0630","RM"]
["LV Networks",null,{"$f":"SUMIFS(Sheet1!S71_OriginalBudget,Sheet1!S71_SA34cCode,$AC:$AC,Sheet1!S71_RepMaintCode,$AD:$AD)","v":0},{"$f":"SUMIFS(Sheet1!S71_PreviousBudget,Sheet1!S71_SA34cCode,$AC:$AC,Sheet1!S71_RepMaintCode,$AD:$AD)","v":0},null,null,null,null,{"$f":"SUMIFS(Sheet1!S71_CurrentAdjustments,Sheet1!S71_SA34cCode,$AC:$AC,Sheet1!S71_RepMaintCode,$AD:$AD)","v":0},0,0,{"$f":"SUMIFS(Sheet1!S71_OY1AdjustedBudget,Sheet1!S71_SA34cCode,$AC:$AC,Sheet1!S71_RepMaintCode,$AD:$AD)","v":0},{"$f":"SUMIFS(Sheet1!S71_OY2AdjustedBudget,Sheet1!S71_SA34cCode,$AC:$AC,Sheet1!S71_RepMaintCode,$AD:$AD)","v":0},null,null,null,null,null,null,null,null,null,null,null,null,null,null,null,"0640","RM"]
["Capital Spares",null,{"$f":"SUMIFS(Sheet1!S71_OriginalBudget,Sheet1!S71_SA34cCode,$AC:$AC,Sheet1!S71_RepMaintCode,$AD:$AD)","v":0},{"$f":"SUMIFS(Sheet1!S71_PreviousBudget,Sheet1!S71_SA34cCode,$AC:$AC,Sheet1!S71_RepMaintCode,$AD:$AD)","v":0},null,null,null,null,{"$f":"SUMIFS(Sheet1!S71_CurrentAdjustments,Sheet1!S71_SA34cCode,$AC:$AC,Sheet1!S71_RepMaintCode,$AD:$AD)","v":0},0,0,{"$f":"SUMIFS(Sheet1!S71_OY1AdjustedBudget,Sheet1!S71_SA34cCode,$AC:$AC,Sheet1!S71_RepMaintCode,$AD:$AD)","v":0},{"$f":"SUMIFS(Sheet1!S71_OY2AdjustedBudget,Sheet1!S71_SA34cCode,$AC:$AC,Sheet1!S71_RepMaintCode,$AD:$AD)","v":0},null,null,null,null,null,null,null,null,null,null,null,null,null,null,null,"0650","RM"]
["Coastal Infrastructure",null,{"$f":"SUM(C65:C69)","v":0},0,0,0,0,0,0,0,0,0,0,null,null,null,null,null,null,null,null,null,null,null,null,null,null,null,null,"RM"]
["Sand Pumps",null,{"$f":"SUMIFS(Sheet1!S71_OriginalBudget,Sheet1!S71_SA34cCode,$AC:$AC,Sheet1!S71_RepMaintCode,$AD:$AD)","v":0},{"$f":"SUMIFS(Sheet1!S71_PreviousBudget,Sheet1!S71_SA34cCode,$AC:$AC,Sheet1!S71_RepMaintCode,$AD:$AD)","v":0},null,null,null,null,{"$f":"SUMIFS(Sheet1!S71_CurrentAdjustments,Sheet1!S71_SA34cCode,$AC:$AC,Sheet1!S71_RepMaintCode,$AD:$AD)","v":0},0,0,{"$f":"SUMIFS(Sheet1!S71_OY1AdjustedBudget,Sheet1!S71_SA34cCode,$AC:$AC,Sheet1!S71_RepMaintCode,$AD:$AD)","v":0},{"$f":"SUMIFS(Sheet1!S71_OY2AdjustedBudget,Sheet1!S71_SA34cCode,$AC:$AC,Sheet1!S71_RepMaintCode,$AD:$AD)","v":0},null,null,null,null,null,null,null,null,null,null,null,null,null,null,null,"0670","RM"]
["Piers",null,{"$f":"SUMIFS(Sheet1!S71_OriginalBudget,Sheet1!S71_SA34cCode,$AC:$AC,Sheet1!S71_RepMaintCode,$AD:$AD)","v":0},{"$f":"SUMIFS(Sheet1!S71_PreviousBudget,Sheet1!S71_SA34cCode,$AC:$AC,Sheet1!S71_RepMaintCode,$AD:$AD)","v":0},null,null,null,null,{"$f":"SUMIFS(Sheet1!S71_CurrentAdjustments,Sheet1!S71_SA34cCode,$AC:$AC,Sheet1!S71_RepMaintCode,$AD:$AD)","v":0},0,0,{"$f":"SUMIFS(Sheet1!S71_OY1AdjustedBudget,Sheet1!S71_SA34cCode,$AC:$AC,Sheet1!S71_RepMaintCode,$AD:$AD)","v":0},{"$f":"SUMIFS(Sheet1!S71_OY2AdjustedBudget,Sheet1!S71_SA34cCode,$AC:$AC,Sheet1!S71_RepMaintCode,$AD:$AD)","v":0},null,null,null,null,null,null,null,null,null,null,null,null,null,null,null,"0680","RM"]
["Revetments",null,{"$f":"SUMIFS(Sheet1!S71_OriginalBudget,Sheet1!S71_SA34cCode,$AC:$AC,Sheet1!S71_RepMaintCode,$AD:$AD)","v":0},{"$f":"SUMIFS(Sheet1!S71_PreviousBudget,Sheet1!S71_SA34cCode,$AC:$AC,Sheet1!S71_RepMaintCode,$AD:$AD)","v":0},null,null,null,null,{"$f":"SUMIFS(Sheet1!S71_CurrentAdjustments,Sheet1!S71_SA34cCode,$AC:$AC,Sheet1!S71_RepMaintCode,$AD:$AD)","v":0},0,0,{"$f":"SUMIFS(Sheet1!S71_OY1AdjustedBudget,Sheet1!S71_SA34cCode,$AC:$AC,Sheet1!S71_RepMaintCode,$AD:$AD)","v":0},{"$f":"SUMIFS(Sheet1!S71_OY2AdjustedBudget,Sheet1!S71_SA34cCode,$AC:$AC,Sheet1!S71_RepMaintCode,$AD:$AD)","v":0},null,null,null,null,null,null,null,null,null,null,null,null,null,null,null,"0690","RM"]
["Promenades",null,{"$f":"SUMIFS(Sheet1!S71_OriginalBudget,Sheet1!S71_SA34cCode,$AC:$AC,Sheet1!S71_RepMaintCode,$AD:$AD)","v":0},{"$f":"SUMIFS(Sheet1!S71_PreviousBudget,Sheet1!S71_SA34cCode,$AC:$AC,Sheet1!S71_RepMaintCode,$AD:$AD)","v":0},null,null,null,null,{"$f":"SUMIFS(Sheet1!S71_CurrentAdjustments,Sheet1!S71_SA34cCode,$AC:$AC,Sheet1!S71_RepMaintCode,$AD:$AD)","v":0},0,0,{"$f":"SUMIFS(Sheet1!S71_OY1AdjustedBudget,Sheet1!S71_SA34cCode,$AC:$AC,Sheet1!S71_RepMaintCode,$AD:$AD)","v":0},{"$f":"SUMIFS(Sheet1!S71_OY2AdjustedBudget,Sheet1!S71_SA34cCode,$AC:$AC,Sheet1!S71_RepMaintCode,$AD:$AD)","v":0},null,null,null,null,null,null,null,null,null,null,null,null,null,null,null,"0700","RM"]
["Capital Spares",null,{"$f":"SUMIFS(Sheet1!S71_OriginalBudget,Sheet1!S71_SA34cCode,$AC:$AC,Sheet1!S71_RepMaintCode,$AD:$AD)","v":0},{"$f":"SUMIFS(Sheet1!S71_PreviousBudget,Sheet1!S71_SA34cCode,$AC:$AC,Sheet1!S71_RepMaintCode,$AD:$AD)","v":0},null,null,null,null,{"$f":"SUMIFS(Sheet1!S71_CurrentAdjustments,Sheet1!S71_SA34cCode,$AC:$AC,Sheet1!S71_RepMaintCode,$AD:$AD)","v":0},0,0,{"$f":"SUMIFS(Sheet1!S71_OY1AdjustedBudget,Sheet1!S71_SA34cCode,$AC:$AC,Sheet1!S71_RepMaintCode,$AD:$AD)","v":0},{"$f":"SUMIFS(Sheet1!S71_OY2AdjustedBudget,Sheet1!S71_SA34cCode,$AC:$AC,Sheet1!S71_RepMaintCode,$AD:$AD)","v":0},null,null,null,null,null,null,null,null,null,null,null,null,null,null,null,"0710","RM"]
["Information and Communication Infrastructure",null,{"$f":"SUM(C71:C74)","v":695650},695650,0,0,0,0,0,0,695650,727650,761120,null,null,null,null,null,null,null,null,null,null,null,null,null,null,null,null,"RM"]
["Data Centres",null,{"$f":"SUMIFS(Sheet1!S71_OriginalBudget,Sheet1!S71_SA34cCode,$AC:$AC,Sheet1!S71_RepMaintCode,$AD:$AD)","v":0},{"$f":"SUMIFS(Sheet1!S71_PreviousBudget,Sheet1!S71_SA34cCode,$AC:$AC,Sheet1!S71_RepMaintCode,$AD:$AD)","v":0},null,null,null,null,{"$f":"SUMIFS(Sheet1!S71_CurrentAdjustments,Sheet1!S71_SA34cCode,$AC:$AC,Sheet1!S71_RepMaintCode,$AD:$AD)","v":0},0,0,{"$f":"SUMIFS(Sheet1!S71_OY1AdjustedBudget,Sheet1!S71_SA34cCode,$AC:$AC,Sheet1!S71_RepMaintCode,$AD:$AD)","v":0},{"$f":"SUMIFS(Sheet1!S71_OY2AdjustedBudget,Sheet1!S71_SA34cCode,$AC:$AC,Sheet1!S71_RepMaintCode,$AD:$AD)","v":0},null,null,null,null,null,null,null,null,null,null,null,null,null,null,null,"0730","RM"]
["Core Layers",null,{"$f":"SUMIFS(Sheet1!S71_OriginalBudget,Sheet1!S71_SA34cCode,$AC:$AC,Sheet1!S71_RepMaintCode,$AD:$AD)","v":695650},{"$f":"SUMIFS(Sheet1!S71_PreviousBudget,Sheet1!S71_SA34cCode,$AC:$AC,Sheet1!S71_RepMaintCode,$AD:$AD)","v":695650},null,null,null,null,{"$f":"SUMIFS(Sheet1!S71_CurrentAdjustments,Sheet1!S71_SA34cCode,$AC:$AC,Sheet1!S71_RepMaintCode,$AD:$AD)","v":0},0,695650,{"$f":"SUMIFS(Sheet1!S71_OY1AdjustedBudget,Sheet1!S71_SA34cCode,$AC:$AC,Sheet1!S71_RepMaintCode,$AD:$AD)","v":727650},{"$f":"SUMIFS(Sheet1!S71_OY2AdjustedBudget,Sheet1!S71_SA34cCode,$AC:$AC,Sheet1!S71_RepMaintCode,$AD:$AD)","v":761120},null,null,null,null,null,null,null,null,null,null,null,null,null,null,null,"0740","RM"]
["Distribution Layers",null,{"$f":"SUMIFS(Sheet1!S71_OriginalBudget,Sheet1!S71_SA34cCode,$AC:$AC,Sheet1!S71_RepMaintCode,$AD:$AD)","v":0},{"$f":"SUMIFS(Sheet1!S71_PreviousBudget,Sheet1!S71_SA34cCode,$AC:$AC,Sheet1!S71_RepMaintCode,$AD:$AD)","v":0},null,null,null,null,{"$f":"SUMIFS(Sheet1!S71_CurrentAdjustments,Sheet1!S71_SA34cCode,$AC:$AC,Sheet1!S71_RepMaintCode,$AD:$AD)","v":0},{"$f":"SUM(E73:I73)","v":0},{"$f":"IF(D73=0,C73+J73,D73+J73)","v":0},{"$f":"SUMIFS(Sheet1!S71_OY1AdjustedBudget,Sheet1!S71_SA34cCode,$AC:$AC,Sheet1!S71_RepMaintCode,$AD:$AD)","v":0},{"$f":"SUMIFS(Sheet1!S71_OY2AdjustedBudget,Sheet1!S71_SA34cCode,$AC:$AC,Sheet1!S71_RepMaintCode,$AD:$AD)","v":0},null,null,null,null,null,null,null,null,null,null,null,null,null,null,null,"0750","RM"]
["Capital Spares",null,{"$f":"SUMIFS(Sheet1!S71_OriginalBudget,Sheet1!S71_SA34cCode,$AC:$AC,Sheet1!S71_RepMaintCode,$AD:$AD)","v":0},{"$f":"SUMIFS(Sheet1!S71_PreviousBudget,Sheet1!S71_SA34cCode,$AC:$AC,Sheet1!S71_RepMaintCode,$AD:$AD)","v":0},null,null,null,null,{"$f":"SUMIFS(Sheet1!S71_CurrentAdjustments,Sheet1!S71_SA34cCode,$AC:$AC,Sheet1!S71_RepMaintCode,$AD:$AD)","v":0},0,0,{"$f":"SUMIFS(Sheet1!S71_OY1AdjustedBudget,Sheet1!S71_SA34cCode,$AC:$AC,Sheet1!S71_RepMaintCode,$AD:$AD)","v":0},{"$f":"SUMIFS(Sheet1!S71_OY2AdjustedBudget,Sheet1!S71_SA34cCode,$AC:$AC,Sheet1!S71_RepMaintCode,$AD:$AD)","v":0},null,null,null,null,null,null,null,null,null,null,null,null,null,null,null,"0760","RM"]
[null,null,null,null,null,null,null,null,null,null,null,null,null,null,null,null,null,null,null,null,null,null,null,null,null,null,null,null,null,"RM"]
["Community Assets",null,{"$f":"+C77+C100","v":2147820},{"$f":"+D77+D100","v":2197393},{"$f":"+E77+E100","v":0},0,0,0,0,0,2197393,2246620,2349970,null,null,null,null,null,null,null,null,null,null,null,null,null,null,null,null,"RM"]
["Community Facilities",null,{"$f":"SUM(C78:C99)","v":173910},{"$f":"SUM(D78:D99)","v":43478},{"$f":"SUM(E78:E99)","v":0},0,0,0,0,0,43478,181910,190280,null,null,null,null,null,null,null,null,null,null,null,null,null,null,null,null,"RM"]
["Halls",null,{"$f":"SUMIFS(Sheet1!S71_OriginalBudget,Sheet1!S71_SA34cCode,$AC:$AC,Sheet1!S71_RepMaintCode,$AD:$AD)","v":0},{"$f":"SUMIFS(Sheet1!S71_PreviousBudget,Sheet1!S71_SA34cCode,$AC:$AC,Sheet1!S71_RepMaintCode,$AD:$AD)","v":0},null,null,null,null,{"$f":"SUMIFS(Sheet1!S71_CurrentAdjustments,Sheet1!S71_SA34cCode,$AC:$AC,Sheet1!S71_RepMaintCode,$AD:$AD)","v":0},0,0,{"$f":"SUMIFS(Sheet1!S71_OY1AdjustedBudget,Sheet1!S71_SA34cCode,$AC:$AC,Sheet1!S71_RepMaintCode,$AD:$AD)","v":0},{"$f":"SUMIFS(Sheet1!S71_OY2AdjustedBudget,Sheet1!S71_SA34cCode,$AC:$AC,Sheet1!S71_RepMaintCode,$AD:$AD)","v":0},null,null,null,null,null,null,null,null,null,null,null,null,null,null,null,"0790","RM"]
["Centres",null,{"$f":"SUMIFS(Sheet1!S71_OriginalBudget,Sheet1!S71_SA34cCode,$AC:$AC,Sheet1!S71_RepMaintCode,$AD:$AD)","v":0},{"$f":"SUMIFS(Sheet1!S71_PreviousBudget,Sheet1!S71_SA34cCode,$AC:$AC,Sheet1!S71_RepMaintCode,$AD:$AD)","v":0},null,null,null,null,{"$f":"SUMIFS(Sheet1!S71_CurrentAdjustments,Sheet1!S71_SA34cCode,$AC:$AC,Sheet1!S71_RepMaintCode,$AD:$AD)","v":0},0,0,{"$f":"SUMIFS(Sheet1!S71_OY1AdjustedBudget,Sheet1!S71_SA34cCode,$AC:$AC,Sheet1!S71_RepMaintCode,$AD:$AD)","v":0},{"$f":"SUMIFS(Sheet1!S71_OY2AdjustedBudget,Sheet1!S71_SA34cCode,$AC:$AC,Sheet1!S71_RepMaintCode,$AD:$AD)","v":0},null,null,null,null,null,null,null,null,null,null,null,null,null,null,null,"0800","RM"]
["Crèches",null,{"$f":"SUMIFS(Sheet1!S71_OriginalBudget,Sheet1!S71_SA34cCode,$AC:$AC,Sheet1!S71_RepMaintCode,$AD:$AD)","v":0},{"$f":"SUMIFS(Sheet1!S71_PreviousBudget,Sheet1!S71_SA34cCode,$AC:$AC,Sheet1!S71_RepMaintCode,$AD:$AD)","v":0},null,null,null,null,{"$f":"SUMIFS(Sheet1!S71_CurrentAdjustments,Sheet1!S71_SA34cCode,$AC:$AC,Sheet1!S71_RepMaintCode,$AD:$AD)","v":0},0,0,{"$f":"SUMIFS(Sheet1!S71_OY1AdjustedBudget,Sheet1!S71_SA34cCode,$AC:$AC,Sheet1!S71_RepMaintCode,$AD:$AD)","v":0},{"$f":"SUMIFS(Sheet1!S71_OY2AdjustedBudget,Sheet1!S71_SA34cCode,$AC:$AC,Sheet1!S71_RepMaintCode,$AD:$AD)","v":0},null,null,null,null,null,null,null,null,null,null,null,null,null,null,null,"0810","RM"]
["Clinics/Care Centres",null,{"$f":"SUMIFS(Sheet1!S71_OriginalBudget,Sheet1!S71_SA34cCode,$AC:$AC,Sheet1!S71_RepMaintCode,$AD:$AD)","v":0},{"$f":"SUMIFS(Sheet1!S71_PreviousBudget,Sheet1!S71_SA34cCode,$AC:$AC,Sheet1!S71_RepMaintCode,$AD:$AD)","v":0},null,null,null,null,{"$f":"SUMIFS(Sheet1!S71_CurrentAdjustments,Sheet1!S71_SA34cCode,$AC:$AC,Sheet1!S71_RepMaintCode,$AD:$AD)","v":0},0,0,{"$f":"SUMIFS(Sheet1!S71_OY1AdjustedBudget,Sheet1!S71_SA34cCode,$AC:$AC,Sheet1!S71_RepMaintCode,$AD:$AD)","v":0},{"$f":"SUMIFS(Sheet1!S71_OY2AdjustedBudget,Sheet1!S71_SA34cCode,$AC:$AC,Sheet1!S71_RepMaintCode,$AD:$AD)","v":0},null,null,null,null,null,null,null,null,null,null,null,null,null,null,null,"0820","RM"]
["Fire/Ambulance Stations",null,{"$f":"SUMIFS(Sheet1!S71_OriginalBudget,Sheet1!S71_SA34cCode,$AC:$AC,Sheet1!S71_RepMaintCode,$AD:$AD)","v":0},{"$f":"SUMIFS(Sheet1!S71_PreviousBudget,Sheet1!S71_SA34cCode,$AC:$AC,Sheet1!S71_RepMaintCode,$AD:$AD)","v":0},null,null,null,null,{"$f":"SUMIFS(Sheet1!S71_CurrentAdjustments,Sheet1!S71_SA34cCode,$AC:$AC,Sheet1!S71_RepMaintCode,$AD:$AD)","v":0},0,0,{"$f":"SUMIFS(Sheet1!S71_OY1AdjustedBudget,Sheet1!S71_SA34cCode,$AC:$AC,Sheet1!S71_RepMaintCode,$AD:$AD)","v":0},{"$f":"SUMIFS(Sheet1!S71_OY2AdjustedBudget,Sheet1!S71_SA34cCode,$AC:$AC,Sheet1!S71_RepMaintCode,$AD:$AD)","v":0},null,null,null,null,null,null,null,null,null,null,null,null,null,null,null,"0830","RM"]
["Testing Stations",null,{"$f":"SUMIFS(Sheet1!S71_OriginalBudget,Sheet1!S71_SA34cCode,$AC:$AC,Sheet1!S71_RepMaintCode,$AD:$AD)","v":0},{"$f":"SUMIFS(Sheet1!S71_PreviousBudget,Sheet1!S71_SA34cCode,$AC:$AC,Sheet1!S71_RepMaintCode,$AD:$AD)","v":0},null,null,null,null,{"$f":"SUMIFS(Sheet1!S71_CurrentAdjustments,Sheet1!S71_SA34cCode,$AC:$AC,Sheet1!S71_RepMaintCode,$AD:$AD)","v":0},0,0,{"$f":"SUMIFS(Sheet1!S71_OY1AdjustedBudget,Sheet1!S71_SA34cCode,$AC:$AC,Sheet1!S71_RepMaintCode,$AD:$AD)","v":0},{"$f":"SUMIFS(Sheet1!S71_OY2AdjustedBudget,Sheet1!S71_SA34cCode,$AC:$AC,Sheet1!S71_RepMaintCode,$AD:$AD)","v":0},null,null,null,null,null,null,null,null,null,null,null,null,null,null,null,"0840","RM"]
["Museums",null,{"$f":"SUMIFS(Sheet1!S71_OriginalBudget,Sheet1!S71_SA34cCode,$AC:$AC,Sheet1!S71_RepMaintCode,$AD:$AD)","v":0},{"$f":"SUMIFS(Sheet1!S71_PreviousBudget,Sheet1!S71_SA34cCode,$AC:$AC,Sheet1!S71_RepMaintCode,$AD:$AD)","v":0},null,null,null,null,{"$f":"SUMIFS(Sheet1!S71_CurrentAdjustments,Sheet1!S71_SA34cCode,$AC:$AC,Sheet1!S71_RepMaintCode,$AD:$AD)","v":0},0,0,{"$f":"SUMIFS(Sheet1!S71_OY1AdjustedBudget,Sheet1!S71_SA34cCode,$AC:$AC,Sheet1!S71_RepMaintCode,$AD:$AD)","v":0},{"$f":"SUMIFS(Sheet1!S71_OY2AdjustedBudget,Sheet1!S71_SA34cCode,$AC:$AC,Sheet1!S71_RepMaintCode,$AD:$AD)","v":0},null,null,null,null,null,null,null,null,null,null,null,null,null,null,null,"0850","RM"]
["Galleries",null,{"$f":"SUMIFS(Sheet1!S71_OriginalBudget,Sheet1!S71_SA34cCode,$AC:$AC,Sheet1!S71_RepMaintCode,$AD:$AD)","v":0},{"$f":"SUMIFS(Sheet1!S71_PreviousBudget,Sheet1!S71_SA34cCode,$AC:$AC,Sheet1!S71_RepMaintCode,$AD:$AD)","v":0},null,null,null,null,{"$f":"SUMIFS(Sheet1!S71_CurrentAdjustments,Sheet1!S71_SA34cCode,$AC:$AC,Sheet1!S71_RepMaintCode,$AD:$AD)","v":0},0,0,{"$f":"SUMIFS(Sheet1!S71_OY1AdjustedBudget,Sheet1!S71_SA34cCode,$AC:$AC,Sheet1!S71_RepMaintCode,$AD:$AD)","v":0},{"$f":"SUMIFS(Sheet1!S71_OY2AdjustedBudget,Sheet1!S71_SA34cCode,$AC:$AC,Sheet1!S71_RepMaintCode,$AD:$AD)","v":0},null,null,null,null,null,null,null,null,null,null,null,null,null,null,null,"0860","RM"]
["Theatres",null,{"$f":"SUMIFS(Sheet1!S71_OriginalBudget,Sheet1!S71_SA34cCode,$AC:$AC,Sheet1!S71_RepMaintCode,$AD:$AD)","v":0},{"$f":"SUMIFS(Sheet1!S71_PreviousBudget,Sheet1!S71_SA34cCode,$AC:$AC,Sheet1!S71_RepMaintCode,$AD:$AD)","v":0},null,null,null,null,{"$f":"SUMIFS(Sheet1!S71_CurrentAdjustments,Sheet1!S71_SA34cCode,$AC:$AC,Sheet1!S71_RepMaintCode,$AD:$AD)","v":0},0,0,{"$f":"SUMIFS(Sheet1!S71_OY1AdjustedBudget,Sheet1!S71_SA34cCode,$AC:$AC,Sheet1!S71_RepMaintCode,$AD:$AD)","v":0},{"$f":"SUMIFS(Sheet1!S71_OY2AdjustedBudget,Sheet1!S71_SA34cCode,$AC:$AC,Sheet1!S71_RepMaintCode,$AD:$AD)","v":0},null,null,null,null,null,null,null,null,null,null,null,null,null,null,null,"0870","RM"]
["Libraries",null,{"$f":"SUMIFS(Sheet1!S71_OriginalBudget,Sheet1!S71_SA34cCode,$AC:$AC,Sheet1!S71_RepMaintCode,$AD:$AD)","v":0},{"$f":"SUMIFS(Sheet1!S71_PreviousBudget,Sheet1!S71_SA34cCode,$AC:$AC,Sheet1!S71_RepMaintCode,$AD:$AD)","v":0},null,null,null,null,{"$f":"SUMIFS(Sheet1!S71_CurrentAdjustments,Sheet1!S71_SA34cCode,$AC:$AC,Sheet1!S71_RepMaintCode,$AD:$AD)","v":0},0,0,{"$f":"SUMIFS(Sheet1!S71_OY1AdjustedBudget,Sheet1!S71_SA34cCode,$AC:$AC,Sheet1!S71_RepMaintCode,$AD:$AD)","v":0},{"$f":"SUMIFS(Sheet1!S71_OY2AdjustedBudget,Sheet1!S71_SA34cCode,$AC:$AC,Sheet1!S71_RepMaintCode,$AD:$AD)","v":0},null,null,null,null,null,null,null,null,null,null,null,null,null,null,null,"0880","RM"]
["Cemeteries/Crematoria",null,{"$f":"SUMIFS(Sheet1!S71_OriginalBudget,Sheet1!S71_SA34cCode,$AC:$AC,Sheet1!S71_RepMaintCode,$AD:$AD)","v":0},{"$f":"SUMIFS(Sheet1!S71_PreviousBudget,Sheet1!S71_SA34cCode,$AC:$AC,Sheet1!S71_RepMaintCode,$AD:$AD)","v":0},null,null,null,null,{"$f":"SUMIFS(Sheet1!S71_CurrentAdjustments,Sheet1!S71_SA34cCode,$AC:$AC,Sheet1!S71_RepMaintCode,$AD:$AD)","v":0},0,0,{"$f":"SUMIFS(Sheet1!S71_OY1AdjustedBudget,Sheet1!S71_SA34cCode,$AC:$AC,Sheet1!S71_RepMaintCode,$AD:$AD)","v":0},{"$f":"SUMIFS(Sheet1!S71_OY2AdjustedBudget,Sheet1!S71_SA34cCode,$AC:$AC,Sheet1!S71_RepMaintCode,$AD:$AD)","v":0},null,null,null,null,null,null,null,null,null,null,null,null,null,null,null,"0890","RM"]
["Police",null,{"$f":"SUMIFS(Sheet1!S71_OriginalBudget,Sheet1!S71_SA34cCode,$AC:$AC,Sheet1!S71_RepMaintCode,$AD:$AD)","v":0},{"$f":"SUMIFS(Sheet1!S71_PreviousBudget,Sheet1!S71_SA34cCode,$AC:$AC,Sheet1!S71_RepMaintCode,$AD:$AD)","v":0},null,null,null,null,{"$f":"SUMIFS(Sheet1!S71_CurrentAdjustments,Sheet1!S71_SA34cCode,$AC:$AC,Sheet1!S71_RepMaintCode,$AD:$AD)","v":0},0,0,{"$f":"SUMIFS(Sheet1!S71_OY1AdjustedBudget,Sheet1!S71_SA34cCode,$AC:$AC,Sheet1!S71_RepMaintCode,$AD:$AD)","v":0},{"$f":"SUMIFS(Sheet1!S71_OY2AdjustedBudget,Sheet1!S71_SA34cCode,$AC:$AC,Sheet1!S71_RepMaintCode,$AD:$AD)","v":0},null,null,null,null,null,null,null,null,null,null,null,null,null,null,null,"0900","RM"]
["Purls",null,{"$f":"SUMIFS(Sheet1!S71_OriginalBudget,Sheet1!S71_SA34cCode,$AC:$AC,Sheet1!S71_RepMaintCode,$AD:$AD)","v":173910},{"$f":"SUMIFS(Sheet1!S71_PreviousBudget,Sheet1!S71_SA34cCode,$AC:$AC,Sheet1!S71_RepMaintCode,$AD:$AD)","v":43478},null,null,null,null,{"$f":"SUMIFS(Sheet1!S71_CurrentAdjustments,Sheet1!S71_SA34cCode,$AC:$AC,Sheet1!S71_RepMaintCode,$AD:$AD)","v":0},0,43478,{"$f":"SUMIFS(Sheet1!S71_OY1AdjustedBudget,Sheet1!S71_SA34cCode,$AC:$AC,Sheet1!S71_RepMaintCode,$AD:$AD)","v":181910},{"$f":"SUMIFS(Sheet1!S71_OY2AdjustedBudget,Sheet1!S71_SA34cCode,$AC:$AC,Sheet1!S71_RepMaintCode,$AD:$AD)","v":190280},null,null,null,null,null,null,null,null,null,null,null,null,null,null,null,"0910","RM"]
["Public Open Space",null,{"$f":"SUMIFS(Sheet1!S71_OriginalBudget,Sheet1!S71_SA34cCode,$AC:$AC,Sheet1!S71_RepMaintCode,$AD:$AD)","v":0},{"$f":"SUMIFS(Sheet1!S71_PreviousBudget,Sheet1!S71_SA34cCode,$AC:$AC,Sheet1!S71_RepMaintCode,$AD:$AD)","v":0},null,null,null,null,{"$f":"SUMIFS(Sheet1!S71_CurrentAdjustments,Sheet1!S71_SA34cCode,$AC:$AC,Sheet1!S71_RepMaintCode,$AD:$AD)","v":0},0,0,{"$f":"SUMIFS(Sheet1!S71_OY1AdjustedBudget,Sheet1!S71_SA34cCode,$AC:$AC,Sheet1!S71_RepMaintCode,$AD:$AD)","v":0},{"$f":"SUMIFS(Sheet1!S71_OY2AdjustedBudget,Sheet1!S71_SA34cCode,$AC:$AC,Sheet1!S71_RepMaintCode,$AD:$AD)","v":0},null,null,null,null,null,null,null,null,null,null,null,null,null,null,null,"0920","RM"]
["Nature Reserves",null,{"$f":"SUMIFS(Sheet1!S71_OriginalBudget,Sheet1!S71_SA34cCode,$AC:$AC,Sheet1!S71_RepMaintCode,$AD:$AD)","v":0},{"$f":"SUMIFS(Sheet1!S71_PreviousBudget,Sheet1!S71_SA34cCode,$AC:$AC,Sheet1!S71_RepMaintCode,$AD:$AD)","v":0},null,null,null,null,{"$f":"SUMIFS(Sheet1!S71_CurrentAdjustments,Sheet1!S71_SA34cCode,$AC:$AC,Sheet1!S71_RepMaintCode,$AD:$AD)","v":0},0,0,{"$f":"SUMIFS(Sheet1!S71_OY1AdjustedBudget,Sheet1!S71_SA34cCode,$AC:$AC,Sheet1!S71_RepMaintCode,$AD:$AD)","v":0},{"$f":"SUMIFS(Sheet1!S71_OY2AdjustedBudget,Sheet1!S71_SA34cCode,$AC:$AC,Sheet1!S71_RepMaintCode,$AD:$AD)","v":0},null,null,null,null,null,null,null,null,null,null,null,null,null,null,null,"0930","RM"]
["Public Ablution Facilities",null,{"$f":"SUMIFS(Sheet1!S71_OriginalBudget,Sheet1!S71_SA34cCode,$AC:$AC,Sheet1!S71_RepMaintCode,$AD:$AD)","v":0},{"$f":"SUMIFS(Sheet1!S71_PreviousBudget,Sheet1!S71_SA34cCode,$AC:$AC,Sheet1!S71_RepMaintCode,$AD:$AD)","v":0},null,null,null,null,{"$f":"SUMIFS(Sheet1!S71_CurrentAdjustments,Sheet1!S71_SA34cCode,$AC:$AC,Sheet1!S71_RepMaintCode,$AD:$AD)","v":0},0,0,{"$f":"SUMIFS(Sheet1!S71_OY1AdjustedBudget,Sheet1!S71_SA34cCode,$AC:$AC,Sheet1!S71_RepMaintCode,$AD:$AD)","v":0},{"$f":"SUMIFS(Sheet1!S71_OY2AdjustedBudget,Sheet1!S71_SA34cCode,$AC:$AC,Sheet1!S71_RepMaintCode,$AD:$AD)","v":0},null,null,null,null,null,null,null,null,null,null,null,null,null,null,null,"0940","RM"]
["Markets",null,{"$f":"SUMIFS(Sheet1!S71_OriginalBudget,Sheet1!S71_SA34cCode,$AC:$AC,Sheet1!S71_RepMaintCode,$AD:$AD)","v":0},{"$f":"SUMIFS(Sheet1!S71_PreviousBudget,Sheet1!S71_SA34cCode,$AC:$AC,Sheet1!S71_RepMaintCode,$AD:$AD)","v":0},null,null,null,null,{"$f":"SUMIFS(Sheet1!S71_CurrentAdjustments,Sheet1!S71_SA34cCode,$AC:$AC,Sheet1!S71_RepMaintCode,$AD:$AD)","v":0},0,0,{"$f":"SUMIFS(Sheet1!S71_OY1AdjustedBudget,Sheet1!S71_SA34cCode,$AC:$AC,Sheet1!S71_RepMaintCode,$AD:$AD)","v":0},{"$f":"SUMIFS(Sheet1!S71_OY2AdjustedBudget,Sheet1!S71_SA34cCode,$AC:$AC,Sheet1!S71_RepMaintCode,$AD:$AD)","v":0},null,null,null,null,null,null,null,null,null,null,null,null,null,null,null,"0950","RM"]
["Stalls",null,{"$f":"SUMIFS(Sheet1!S71_OriginalBudget,Sheet1!S71_SA34cCode,$AC:$AC,Sheet1!S71_RepMaintCode,$AD:$AD)","v":0},{"$f":"SUMIFS(Sheet1!S71_PreviousBudget,Sheet1!S71_SA34cCode,$AC:$AC,Sheet1!S71_RepMaintCode,$AD:$AD)","v":0},null,null,null,null,{"$f":"SUMIFS(Sheet1!S71_CurrentAdjustments,Sheet1!S71_SA34cCode,$AC:$AC,Sheet1!S71_RepMaintCode,$AD:$AD)","v":0},0,0,{"$f":"SUMIFS(Sheet1!S71_OY1AdjustedBudget,Sheet1!S71_SA34cCode,$AC:$AC,Sheet1!S71_RepMaintCode,$AD:$AD)","v":0},{"$f":"SUMIFS(Sheet1!S71_OY2AdjustedBudget,Sheet1!S71_SA34cCode,$AC:$AC,Sheet1!S71_RepMaintCode,$AD:$AD)","v":0},null,null,null,null,null,null,null,null,null,null,null,null,null,null,null,"0960","RM"]
["Abattoirs",null,{"$f":"SUMIFS(Sheet1!S71_OriginalBudget,Sheet1!S71_SA34cCode,$AC:$AC,Sheet1!S71_RepMaintCode,$AD:$AD)","v":0},{"$f":"SUMIFS(Sheet1!S71_PreviousBudget,Sheet1!S71_SA34cCode,$AC:$AC,Sheet1!S71_RepMaintCode,$AD:$AD)","v":0},null,null,null,null,{"$f":"SUMIFS(Sheet1!S71_CurrentAdjustments,Sheet1!S71_SA34cCode,$AC:$AC,Sheet1!S71_RepMaintCode,$AD:$AD)","v":0},0,0,{"$f":"SUMIFS(Sheet1!S71_OY1AdjustedBudget,Sheet1!S71_SA34cCode,$AC:$AC,Sheet1!S71_RepMaintCode,$AD:$AD)","v":0},{"$f":"SUMIFS(Sheet1!S71_OY2AdjustedBudget,Sheet1!S71_SA34cCode,$AC:$AC,Sheet1!S71_RepMaintCode,$AD:$AD)","v":0},null,null,null,null,null,null,null,null,null,null,null,null,null,null,null,"0970","RM"]
["Airports",null,{"$f":"SUMIFS(Sheet1!S71_OriginalBudget,Sheet1!S71_SA34cCode,$AC:$AC,Sheet1!S71_RepMaintCode,$AD:$AD)","v":0},{"$f":"SUMIFS(Sheet1!S71_PreviousBudget,Sheet1!S71_SA34cCode,$AC:$AC,Sheet1!S71_RepMaintCode,$AD:$AD)","v":0},null,null,null,null,{"$f":"SUMIFS(Sheet1!S71_CurrentAdjustments,Sheet1!S71_SA34cCode,$AC:$AC,Sheet1!S71_RepMaintCode,$AD:$AD)","v":0},0,0,{"$f":"SUMIFS(Sheet1!S71_OY1AdjustedBudget,Sheet1!S71_SA34cCode,$AC:$AC,Sheet1!S71_RepMaintCode,$AD:$AD)","v":0},{"$f":"SUMIFS(Sheet1!S71_OY2AdjustedBudget,Sheet1!S71_SA34cCode,$AC:$AC,Sheet1!S71_RepMaintCode,$AD:$AD)","v":0},null,null,null,null,null,null,null,null,null,null,null,null,null,null,null,"0980","RM"]
["Taxi Ranks/Bus Terminals",null,{"$f":"SUMIFS(Sheet1!S71_OriginalBudget,Sheet1!S71_SA34cCode,$AC:$AC,Sheet1!S71_RepMaintCode,$AD:$AD)","v":0},{"$f":"SUMIFS(Sheet1!S71_PreviousBudget,Sheet1!S71_SA34cCode,$AC:$AC,Sheet1!S71_RepMaintCode,$AD:$AD)","v":0},null,null,null,null,{"$f":"SUMIFS(Sheet1!S71_CurrentAdjustments,Sheet1!S71_SA34cCode,$AC:$AC,Sheet1!S71_RepMaintCode,$AD:$AD)","v":0},0,0,{"$f":"SUMIFS(Sheet1!S71_OY1AdjustedBudget,Sheet1!S71_SA34cCode,$AC:$AC,Sheet1!S71_RepMaintCode,$AD:$AD)","v":0},{"$f":"SUMIFS(Sheet1!S71_OY2AdjustedBudget,Sheet1!S71_SA34cCode,$AC:$AC,Sheet1!S71_RepMaintCode,$AD:$AD)","v":0},null,null,null,null,null,null,null,null,null,null,null,null,null,null,null,"0990","RM"]
["Capital Spares",null,{"$f":"SUMIFS(Sheet1!S71_OriginalBudget,Sheet1!S71_SA34cCode,$AC:$AC,Sheet1!S71_RepMaintCode,$AD:$AD)","v":0},{"$f":"SUMIFS(Sheet1!S71_PreviousBudget,Sheet1!S71_SA34cCode,$AC:$AC,Sheet1!S71_RepMaintCode,$AD:$AD)","v":0},null,null,null,null,{"$f":"SUMIFS(Sheet1!S71_CurrentAdjustments,Sheet1!S71_SA34cCode,$AC:$AC,Sheet1!S71_RepMaintCode,$AD:$AD)","v":0},0,0,{"$f":"SUMIFS(Sheet1!S71_OY1AdjustedBudget,Sheet1!S71_SA34cCode,$AC:$AC,Sheet1!S71_RepMaintCode,$AD:$AD)","v":0},{"$f":"SUMIFS(Sheet1!S71_OY2AdjustedBudget,Sheet1!S71_SA34cCode,$AC:$AC,Sheet1!S71_RepMaintCode,$AD:$AD)","v":0},null,null,null,null,null,null,null,null,null,null,null,null,null,null,null,"1000","RM"]
["Sport and Recreation Facilities",null,{"$f":"SUM(C101:C103)","v":1973910},{"$f":"SUM(D101:D103)","v":2153915},0,0,0,0,0,0,2153915,2064710,2159690,null,null,null,null,null,null,null,null,null,null,null,null,null,null,null,null,"RM"]
["Indoor Facilities",null,{"$f":"SUMIFS(Sheet1!S71_OriginalBudget,Sheet1!S71_SA34cCode,$AC:$AC,Sheet1!S71_RepMaintCode,$AD:$AD)","v":0},{"$f":"SUMIFS(Sheet1!S71_PreviousBudget,Sheet1!S71_SA34cCode,$AC:$AC,Sheet1!S71_RepMaintCode,$AD:$AD)","v":0},null,null,null,null,{"$f":"SUMIFS(Sheet1!S71_CurrentAdjustments,Sheet1!S71_SA34cCode,$AC:$AC,Sheet1!S71_RepMaintCode,$AD:$AD)","v":0},0,0,{"$f":"SUMIFS(Sheet1!S71_OY1AdjustedBudget,Sheet1!S71_SA34cCode,$AC:$AC,Sheet1!S71_RepMaintCode,$AD:$AD)","v":0},{"$f":"SUMIFS(Sheet1!S71_OY2AdjustedBudget,Sheet1!S71_SA34cCode,$AC:$AC,Sheet1!S71_RepMaintCode,$AD:$AD)","v":0},null,null,null,null,null,null,null,null,null,null,null,null,null,null,null,"1020","RM"]
["Outdoor Facilities",null,{"$f":"SUMIFS(Sheet1!S71_OriginalBudget,Sheet1!S71_SA34cCode,$AC:$AC,Sheet1!S71_RepMaintCode,$AD:$AD)","v":1973910},{"$f":"SUMIFS(Sheet1!S71_PreviousBudget,Sheet1!S71_SA34cCode,$AC:$AC,Sheet1!S71_RepMaintCode,$AD:$AD)","v":2153915},null,null,null,null,{"$f":"SUMIFS(Sheet1!S71_CurrentAdjustments,Sheet1!S71_SA34cCode,$AC:$AC,Sheet1!S71_RepMaintCode,$AD:$AD)","v":0},0,2153915,{"$f":"SUMIFS(Sheet1!S71_OY1AdjustedBudget,Sheet1!S71_SA34cCode,$AC:$AC,Sheet1!S71_RepMaintCode,$AD:$AD)","v":2064710},{"$f":"SUMIFS(Sheet1!S71_OY2AdjustedBudget,Sheet1!S71_SA34cCode,$AC:$AC,Sheet1!S71_RepMaintCode,$AD:$AD)","v":2159690},null,null,null,null,null,null,null,null,null,null,null,null,null,null,null,"1030","RM"]
["Capital Spares",null,{"$f":"SUMIFS(Sheet1!S71_OriginalBudget,Sheet1!S71_SA34cCode,$AC:$AC,Sheet1!S71_RepMaintCode,$AD:$AD)","v":0},{"$f":"SUMIFS(Sheet1!S71_PreviousBudget,Sheet1!S71_SA34cCode,$AC:$AC,Sheet1!S71_RepMaintCode,$AD:$AD)","v":0},null,null,null,null,{"$f":"SUMIFS(Sheet1!S71_CurrentAdjustments,Sheet1!S71_SA34cCode,$AC:$AC,Sheet1!S71_RepMaintCode,$AD:$AD)","v":0},0,0,{"$f":"SUMIFS(Sheet1!S71_OY1AdjustedBudget,Sheet1!S71_SA34cCode,$AC:$AC,Sheet1!S71_RepMaintCode,$AD:$AD)","v":0},{"$f":"SUMIFS(Sheet1!S71_OY2AdjustedBudget,Sheet1!S71_SA34cCode,$AC:$AC,Sheet1!S71_RepMaintCode,$AD:$AD)","v":0},null,null,null,null,null,null,null,null,null,null,null,null,null,null,null,"1040","RM"]
[null,null,null,null,null,null,null,null,null,null,null,null,null,null,null,null,null,null,null,null,null,null,null,null,null,null,null,null,null,"RM"]
["Heritage assets",null,{"$f":"SUM(C106:C110)","v":0},0,0,0,0,0,0,0,0,0,0,null,null,null,null,null,null,null,null,null,null,null,null,null,null,null,null,"RM"]
["Monuments",null,{"$f":"SUMIFS(Sheet1!S71_OriginalBudget,Sheet1!S71_SA34cCode,$AC:$AC,Sheet1!S71_RepMaintCode,$AD:$AD)","v":0},{"$f":"SUMIFS(Sheet1!S71_PreviousBudget,Sheet1!S71_SA34cCode,$AC:$AC,Sheet1!S71_RepMaintCode,$AD:$AD)","v":0},null,null,null,null,{"$f":"SUMIFS(Sheet1!S71_CurrentAdjustments,Sheet1!S71_SA34cCode,$AC:$AC,Sheet1!S71_RepMaintCode,$AD:$AD)","v":0},0,0,{"$f":"SUMIFS(Sheet1!S71_OY1AdjustedBudget,Sheet1!S71_SA34cCode,$AC:$AC,Sheet1!S71_RepMaintCode,$AD:$AD)","v":0},{"$f":"SUMIFS(Sheet1!S71_OY2AdjustedBudget,Sheet1!S71_SA34cCode,$AC:$AC,Sheet1!S71_RepMaintCode,$AD:$AD)","v":0},null,null,null,null,null,null,null,null,null,null,null,null,null,null,null,"1060","RM"]
["Historic Buildings",null,{"$f":"SUMIFS(Sheet1!S71_OriginalBudget,Sheet1!S71_SA34cCode,$AC:$AC,Sheet1!S71_RepMaintCode,$AD:$AD)","v":0},{"$f":"SUMIFS(Sheet1!S71_PreviousBudget,Sheet1!S71_SA34cCode,$AC:$AC,Sheet1!S71_RepMaintCode,$AD:$AD)","v":0},null,null,null,null,{"$f":"SUMIFS(Sheet1!S71_CurrentAdjustments,Sheet1!S71_SA34cCode,$AC:$AC,Sheet1!S71_RepMaintCode,$AD:$AD)","v":0},0,0,{"$f":"SUMIFS(Sheet1!S71_OY1AdjustedBudget,Sheet1!S71_SA34cCode,$AC:$AC,Sheet1!S71_RepMaintCode,$AD:$AD)","v":0},{"$f":"SUMIFS(Sheet1!S71_OY2AdjustedBudget,Sheet1!S71_SA34cCode,$AC:$AC,Sheet1!S71_RepMaintCode,$AD:$AD)","v":0},null,null,null,null,null,null,null,null,null,null,null,null,null,null,null,"1070","RM"]
["Works of Art",null,{"$f":"SUMIFS(Sheet1!S71_OriginalBudget,Sheet1!S71_SA34cCode,$AC:$AC,Sheet1!S71_RepMaintCode,$AD:$AD)","v":0},{"$f":"SUMIFS(Sheet1!S71_PreviousBudget,Sheet1!S71_SA34cCode,$AC:$AC,Sheet1!S71_RepMaintCode,$AD:$AD)","v":0},null,null,null,null,{"$f":"SUMIFS(Sheet1!S71_CurrentAdjustments,Sheet1!S71_SA34cCode,$AC:$AC,Sheet1!S71_RepMaintCode,$AD:$AD)","v":0},0,0,{"$f":"SUMIFS(Sheet1!S71_OY1AdjustedBudget,Sheet1!S71_SA34cCode,$AC:$AC,Sheet1!S71_RepMaintCode,$AD:$AD)","v":0},{"$f":"SUMIFS(Sheet1!S71_OY2AdjustedBudget,Sheet1!S71_SA34cCode,$AC:$AC,Sheet1!S71_RepMaintCode,$AD:$AD)","v":0},null,null,null,null,null,null,null,null,null,null,null,null,null,null,null,"1080","RM"]
["Conservation Areas",null,{"$f":"SUMIFS(Sheet1!S71_OriginalBudget,Sheet1!S71_SA34cCode,$AC:$AC,Sheet1!S71_RepMaintCode,$AD:$AD)","v":0},{"$f":"SUMIFS(Sheet1!S71_PreviousBudget,Sheet1!S71_SA34cCode,$AC:$AC,Sheet1!S71_RepMaintCode,$AD:$AD)","v":0},null,null,null,null,{"$f":"SUMIFS(Sheet1!S71_CurrentAdjustments,Sheet1!S71_SA34cCode,$AC:$AC,Sheet1!S71_RepMaintCode,$AD:$AD)","v":0},0,0,{"$f":"SUMIFS(Sheet1!S71_OY1AdjustedBudget,Sheet1!S71_SA34cCode,$AC:$AC,Sheet1!S71_RepMaintCode,$AD:$AD)","v":0},{"$f":"SUMIFS(Sheet1!S71_OY2AdjustedBudget,Sheet1!S71_SA34cCode,$AC:$AC,Sheet1!S71_RepMaintCode,$AD:$AD)","v":0},null,null,null,null,null,null,null,null,null,null,null,null,null,null,null,"1090","RM"]
["Other Heritage",null,{"$f":"SUMIFS(Sheet1!S71_OriginalBudget,Sheet1!S71_SA34cCode,$AC:$AC,Sheet1!S71_RepMaintCode,$AD:$AD)","v":0},{"$f":"SUMIFS(Sheet1!S71_PreviousBudget,Sheet1!S71_SA34cCode,$AC:$AC,Sheet1!S71_RepMaintCode,$AD:$AD)","v":0},null,null,null,null,{"$f":"SUMIFS(Sheet1!S71_CurrentAdjustments,Sheet1!S71_SA34cCode,$AC:$AC,Sheet1!S71_RepMaintCode,$AD:$AD)","v":0},0,0,{"$f":"SUMIFS(Sheet1!S71_OY1AdjustedBudget,Sheet1!S71_SA34cCode,$AC:$AC,Sheet1!S71_RepMaintCode,$AD:$AD)","v":0},{"$f":"SUMIFS(Sheet1!S71_OY2AdjustedBudget,Sheet1!S71_SA34cCode,$AC:$AC,Sheet1!S71_RepMaintCode,$AD:$AD)","v":0},null,null,null,null,null,null,null,null,null,null,null,null,null,null,null,"1100","RM"]
[null,null,null,null,null,null,null,null,null,null,null,null,null,null,null,null,null,null,null,null,null,null,null,null,null,null,null,null,null,"RM"]
["Investment properties",null,{"$f":"+C113+C116","v":0},{"$f":"+D113+D116","v":0},0,0,0,0,0,0,0,{"$f":"+L113+L116","v":0},{"$f":"+M113+M116","v":0},null,null,null,null,null,null,null,null,null,null,null,null,null,null,null,null,"RM"]
["Revenue Generating",null,{"$f":"SUM(C114:C115)","v":0},{"$f":"SUM(D114:D115)","v":0},{"$f":"SUM(E114:E115)","v":0},0,0,0,0,0,0,0,0,null,null,null,null,null,null,null,null,null,null,null,null,null,null,null,null,"RM"]
["Improved Property",null,{"$f":"SUMIFS(Sheet1!S71_OriginalBudget,Sheet1!S71_SA34cCode,$AC:$AC,Sheet1!S71_RepMaintCode,$AD:$AD)","v":0},{"$f":"SUMIFS(Sheet1!S71_PreviousBudget,Sheet1!S71_SA34cCode,$AC:$AC,Sheet1!S71_RepMaintCode,$AD:$AD)","v":0},null,null,null,null,{"$f":"SUMIFS(Sheet1!S71_CurrentAdjustments,Sheet1!S71_SA34cCode,$AC:$AC,Sheet1!S71_RepMaintCode,$AD:$AD)","v":0},0,0,{"$f":"SUMIFS(Sheet1!S71_OY1AdjustedBudget,Sheet1!S71_SA34cCode,$AC:$AC,Sheet1!S71_RepMaintCode,$AD:$AD)","v":0},{"$f":"SUMIFS(Sheet1!S71_OY2AdjustedBudget,Sheet1!S71_SA34cCode,$AC:$AC,Sheet1!S71_RepMaintCode,$AD:$AD)","v":0},null,null,null,null,null,null,null,null,null,null,null,null,null,null,null,"1130","RM"]
["Unimproved Property",null,{"$f":"SUMIFS(Sheet1!S71_OriginalBudget,Sheet1!S71_SA34cCode,$AC:$AC,Sheet1!S71_RepMaintCode,$AD:$AD)","v":0},{"$f":"SUMIFS(Sheet1!S71_PreviousBudget,Sheet1!S71_SA34cCode,$AC:$AC,Sheet1!S71_RepMaintCode,$AD:$AD)","v":0},null,null,null,null,{"$f":"SUMIFS(Sheet1!S71_CurrentAdjustments,Sheet1!S71_SA34cCode,$AC:$AC,Sheet1!S71_RepMaintCode,$AD:$AD)","v":0},0,0,{"$f":"SUMIFS(Sheet1!S71_OY1AdjustedBudget,Sheet1!S71_SA34cCode,$AC:$AC,Sheet1!S71_RepMaintCode,$AD:$AD)","v":0},{"$f":"SUMIFS(Sheet1!S71_OY2AdjustedBudget,Sheet1!S71_SA34cCode,$AC:$AC,Sheet1!S71_RepMaintCode,$AD:$AD)","v":0},null,null,null,null,null,null,null,null,null,null,null,null,null,null,null,"1140","RM"]
["Non-revenue Generating",null,{"$f":"SUM(C117:C118)","v":0},{"$f":"SUM(D117:D118)","v":0},{"$f":"SUM(E117:E118)","v":0},0,0,0,0,0,0,0,0,null,null,null,null,null,null,null,null,null,null,null,null,null,null,null,null,"RM"]
["Improved Property",null,{"$f":"SUMIFS(Sheet1!S71_OriginalBudget,Sheet1!S71_SA34cCode,$AC:$AC,Sheet1!S71_RepMaintCode,$AD:$AD)","v":0},{"$f":"SUMIFS(Sheet1!S71_PreviousBudget,Sheet1!S71_SA34cCode,$AC:$AC,Sheet1!S71_RepMaintCode,$AD:$AD)","v":0},null,null,null,null,{"$f":"SUMIFS(Sheet1!S71_CurrentAdjustments,Sheet1!S71_SA34cCode,$AC:$AC,Sheet1!S71_RepMaintCode,$AD:$AD)","v":0},0,0,{"$f":"SUMIFS(Sheet1!S71_OY1AdjustedBudget,Sheet1!S71_SA34cCode,$AC:$AC,Sheet1!S71_RepMaintCode,$AD:$AD)","v":0},{"$f":"SUMIFS(Sheet1!S71_OY2AdjustedBudget,Sheet1!S71_SA34cCode,$AC:$AC,Sheet1!S71_RepMaintCode,$AD:$AD)","v":0},null,null,null,null,null,null,null,null,null,null,null,null,null,null,null,"1160","RM"]
["Unimproved Property",null,{"$f":"SUMIFS(Sheet1!S71_OriginalBudget,Sheet1!S71_SA34cCode,$AC:$AC,Sheet1!S71_RepMaintCode,$AD:$AD)","v":0},{"$f":"SUMIFS(Sheet1!S71_PreviousBudget,Sheet1!S71_SA34cCode,$AC:$AC,Sheet1!S71_RepMaintCode,$AD:$AD)","v":0},null,null,null,null,{"$f":"SUMIFS(Sheet1!S71_CurrentAdjustments,Sheet1!S71_SA34cCode,$AC:$AC,Sheet1!S71_RepMaintCode,$AD:$AD)","v":0},0,0,{"$f":"SUMIFS(Sheet1!S71_OY1AdjustedBudget,Sheet1!S71_SA34cCode,$AC:$AC,Sheet1!S71_RepMaintCode,$AD:$AD)","v":0},{"$f":"SUMIFS(Sheet1!S71_OY2AdjustedBudget,Sheet1!S71_SA34cCode,$AC:$AC,Sheet1!S71_RepMaintCode,$AD:$AD)","v":0},null,null,null,null,null,null,null,null,null,null,null,null,null,null,null,"1170","RM"]
[null,null,null,null,null,null,null,null,null,null,null,null,null,null,null,null,null,null,null,null,null,null,null,null,null,null,null,null,null,"RM"]
["Other assets",null,{"$f":"+C121+C133","v":0},{"$f":"+D121+D133","v":0},0,0,0,0,0,0,0,{"$f":"+L121+L133","v":0},{"$f":"+M121+M133","v":0},null,null,null,null,null,null,null,null,null,null,null,null,null,null,null,null,"RM"]
["Operational Buildings",null,{"$f":"SUM(C122:C132)","v":0},{"$f":"SUM(D122:D132)","v":0},0,0,0,0,0,0,0,{"$f":"SUM(L122:L132)","v":0},{"$f":"SUM(M122:M132)","v":0},null,null,null,null,null,null,null,null,null,null,null,null,null,null,null,null,"RM"]
["Municipal Offices",null,{"$f":"SUMIFS(Sheet1!S71_OriginalBudget,Sheet1!S71_SA34cCode,$AC:$AC,Sheet1!S71_RepMaintCode,$AD:$AD)","v":0},{"$f":"SUMIFS(Sheet1!S71_PreviousBudget,Sheet1!S71_SA34cCode,$AC:$AC,Sheet1!S71_RepMaintCode,$AD:$AD)","v":0},null,null,null,null,{"$f":"SUMIFS(Sheet1!S71_CurrentAdjustments,Sheet1!S71_SA34cCode,$AC:$AC,Sheet1!S71_RepMaintCode,$AD:$AD)","v":0},0,0,{"$f":"SUMIFS(Sheet1!S71_OY1AdjustedBudget,Sheet1!S71_SA34cCode,$AC:$AC,Sheet1!S71_RepMaintCode,$AD:$AD)","v":0},{"$f":"SUMIFS(Sheet1!S71_OY2AdjustedBudget,Sheet1!S71_SA34cCode,$AC:$AC,Sheet1!S71_RepMaintCode,$AD:$AD)","v":0},null,null,null,null,null,null,null,null,null,null,null,null,null,null,null,"1200","RM"]
["Pay/Enquiry Points",null,{"$f":"SUMIFS(Sheet1!S71_OriginalBudget,Sheet1!S71_SA34cCode,$AC:$AC,Sheet1!S71_RepMaintCode,$AD:$AD)","v":0},{"$f":"SUMIFS(Sheet1!S71_PreviousBudget,Sheet1!S71_SA34cCode,$AC:$AC,Sheet1!S71_RepMaintCode,$AD:$AD)","v":0},null,null,null,null,{"$f":"SUMIFS(Sheet1!S71_CurrentAdjustments,Sheet1!S71_SA34cCode,$AC:$AC,Sheet1!S71_RepMaintCode,$AD:$AD)","v":0},0,0,{"$f":"SUMIFS(Sheet1!S71_OY1AdjustedBudget,Sheet1!S71_SA34cCode,$AC:$AC,Sheet1!S71_RepMaintCode,$AD:$AD)","v":0},{"$f":"SUMIFS(Sheet1!S71_OY2AdjustedBudget,Sheet1!S71_SA34cCode,$AC:$AC,Sheet1!S71_RepMaintCode,$AD:$AD)","v":0},null,null,null,null,null,null,null,null,null,null,null,null,null,null,null,"1210","RM"]
["Building Plan Offices",null,{"$f":"SUMIFS(Sheet1!S71_OriginalBudget,Sheet1!S71_SA34cCode,$AC:$AC,Sheet1!S71_RepMaintCode,$AD:$AD)","v":0},{"$f":"SUMIFS(Sheet1!S71_PreviousBudget,Sheet1!S71_SA34cCode,$AC:$AC,Sheet1!S71_RepMaintCode,$AD:$AD)","v":0},null,null,null,null,{"$f":"SUMIFS(Sheet1!S71_CurrentAdjustments,Sheet1!S71_SA34cCode,$AC:$AC,Sheet1!S71_RepMaintCode,$AD:$AD)","v":0},0,0,{"$f":"SUMIFS(Sheet1!S71_OY1AdjustedBudget,Sheet1!S71_SA34cCode,$AC:$AC,Sheet1!S71_RepMaintCode,$AD:$AD)","v":0},{"$f":"SUMIFS(Sheet1!S71_OY2AdjustedBudget,Sheet1!S71_SA34cCode,$AC:$AC,Sheet1!S71_RepMaintCode,$AD:$AD)","v":0},null,null,null,null,null,null,null,null,null,null,null,null,null,null,null,"1220","RM"]
["Workshops",null,{"$f":"SUMIFS(Sheet1!S71_OriginalBudget,Sheet1!S71_SA34cCode,$AC:$AC,Sheet1!S71_RepMaintCode,$AD:$AD)","v":0},{"$f":"SUMIFS(Sheet1!S71_PreviousBudget,Sheet1!S71_SA34cCode,$AC:$AC,Sheet1!S71_RepMaintCode,$AD:$AD)","v":0},null,null,null,null,{"$f":"SUMIFS(Sheet1!S71_CurrentAdjustments,Sheet1!S71_SA34cCode,$AC:$AC,Sheet1!S71_RepMaintCode,$AD:$AD)","v":0},0,0,{"$f":"SUMIFS(Sheet1!S71_OY1AdjustedBudget,Sheet1!S71_SA34cCode,$AC:$AC,Sheet1!S71_RepMaintCode,$AD:$AD)","v":0},{"$f":"SUMIFS(Sheet1!S71_OY2AdjustedBudget,Sheet1!S71_SA34cCode,$AC:$AC,Sheet1!S71_RepMaintCode,$AD:$AD)","v":0},null,null,null,null,null,null,null,null,null,null,null,null,null,null,null,"1230","RM"]
["Yards",null,{"$f":"SUMIFS(Sheet1!S71_OriginalBudget,Sheet1!S71_SA34cCode,$AC:$AC,Sheet1!S71_RepMaintCode,$AD:$AD)","v":0},{"$f":"SUMIFS(Sheet1!S71_PreviousBudget,Sheet1!S71_SA34cCode,$AC:$AC,Sheet1!S71_RepMaintCode,$AD:$AD)","v":0},null,null,null,null,{"$f":"SUMIFS(Sheet1!S71_CurrentAdjustments,Sheet1!S71_SA34cCode,$AC:$AC,Sheet1!S71_RepMaintCode,$AD:$AD)","v":0},0,0,{"$f":"SUMIFS(Sheet1!S71_OY1AdjustedBudget,Sheet1!S71_SA34cCode,$AC:$AC,Sheet1!S71_RepMaintCode,$AD:$AD)","v":0},{"$f":"SUMIFS(Sheet1!S71_OY2AdjustedBudget,Sheet1!S71_SA34cCode,$AC:$AC,Sheet1!S71_RepMaintCode,$AD:$AD)","v":0},null,null,null,null,null,null,null,null,null,null,null,null,null,null,null,"1240","RM"]
["Stores",null,{"$f":"SUMIFS(Sheet1!S71_OriginalBudget,Sheet1!S71_SA34cCode,$AC:$AC,Sheet1!S71_RepMaintCode,$AD:$AD)","v":0},{"$f":"SUMIFS(Sheet1!S71_PreviousBudget,Sheet1!S71_SA34cCode,$AC:$AC,Sheet1!S71_RepMaintCode,$AD:$AD)","v":0},null,null,null,null,{"$f":"SUMIFS(Sheet1!S71_CurrentAdjustments,Sheet1!S71_SA34cCode,$AC:$AC,Sheet1!S71_RepMaintCode,$AD:$AD)","v":0},0,0,{"$f":"SUMIFS(Sheet1!S71_OY1AdjustedBudget,Sheet1!S71_SA34cCode,$AC:$AC,Sheet1!S71_RepMaintCode,$AD:$AD)","v":0},{"$f":"SUMIFS(Sheet1!S71_OY2AdjustedBudget,Sheet1!S71_SA34cCode,$AC:$AC,Sheet1!S71_RepMaintCode,$AD:$AD)","v":0},null,null,null,null,null,null,null,null,null,null,null,null,null,null,null,"1250","RM"]
["Laboratories",null,{"$f":"SUMIFS(Sheet1!S71_OriginalBudget,Sheet1!S71_SA34cCode,$AC:$AC,Sheet1!S71_RepMaintCode,$AD:$AD)","v":0},{"$f":"SUMIFS(Sheet1!S71_PreviousBudget,Sheet1!S71_SA34cCode,$AC:$AC,Sheet1!S71_RepMaintCode,$AD:$AD)","v":0},null,null,null,null,{"$f":"SUMIFS(Sheet1!S71_CurrentAdjustments,Sheet1!S71_SA34cCode,$AC:$AC,Sheet1!S71_RepMaintCode,$AD:$AD)","v":0},0,0,{"$f":"SUMIFS(Sheet1!S71_OY1AdjustedBudget,Sheet1!S71_SA34cCode,$AC:$AC,Sheet1!S71_RepMaintCode,$AD:$AD)","v":0},{"$f":"SUMIFS(Sheet1!S71_OY2AdjustedBudget,Sheet1!S71_SA34cCode,$AC:$AC,Sheet1!S71_RepMaintCode,$AD:$AD)","v":0},null,null,null,null,null,null,null,null,null,null,null,null,null,null,null,"1260","RM"]
["Training Centres",null,{"$f":"SUMIFS(Sheet1!S71_OriginalBudget,Sheet1!S71_SA34cCode,$AC:$AC,Sheet1!S71_RepMaintCode,$AD:$AD)","v":0},{"$f":"SUMIFS(Sheet1!S71_PreviousBudget,Sheet1!S71_SA34cCode,$AC:$AC,Sheet1!S71_RepMaintCode,$AD:$AD)","v":0},null,null,null,null,{"$f":"SUMIFS(Sheet1!S71_CurrentAdjustments,Sheet1!S71_SA34cCode,$AC:$AC,Sheet1!S71_RepMaintCode,$AD:$AD)","v":0},0,0,{"$f":"SUMIFS(Sheet1!S71_OY1AdjustedBudget,Sheet1!S71_SA34cCode,$AC:$AC,Sheet1!S71_RepMaintCode,$AD:$AD)","v":0},{"$f":"SUMIFS(Sheet1!S71_OY2AdjustedBudget,Sheet1!S71_SA34cCode,$AC:$AC,Sheet1!S71_RepMaintCode,$AD:$AD)","v":0},null,null,null,null,null,null,null,null,null,null,null,null,null,null,null,"1270","RM"]
["Manufacturing Plant",null,{"$f":"SUMIFS(Sheet1!S71_OriginalBudget,Sheet1!S71_SA34cCode,$AC:$AC,Sheet1!S71_RepMaintCode,$AD:$AD)","v":0},{"$f":"SUMIFS(Sheet1!S71_PreviousBudget,Sheet1!S71_SA34cCode,$AC:$AC,Sheet1!S71_RepMaintCode,$AD:$AD)","v":0},null,null,null,null,{"$f":"SUMIFS(Sheet1!S71_CurrentAdjustments,Sheet1!S71_SA34cCode,$AC:$AC,Sheet1!S71_RepMaintCode,$AD:$AD)","v":0},0,0,{"$f":"SUMIFS(Sheet1!S71_OY1AdjustedBudget,Sheet1!S71_SA34cCode,$AC:$AC,Sheet1!S71_RepMaintCode,$AD:$AD)","v":0},{"$f":"SUMIFS(Sheet1!S71_OY2AdjustedBudget,Sheet1!S71_SA34cCode,$AC:$AC,Sheet1!S71_RepMaintCode,$AD:$AD)","v":0},null,null,null,null,null,null,null,null,null,null,null,null,null,null,null,"1280","RM"]
["Depots",null,{"$f":"SUMIFS(Sheet1!S71_OriginalBudget,Sheet1!S71_SA34cCode,$AC:$AC,Sheet1!S71_RepMaintCode,$AD:$AD)","v":0},{"$f":"SUMIFS(Sheet1!S71_PreviousBudget,Sheet1!S71_SA34cCode,$AC:$AC,Sheet1!S71_RepMaintCode,$AD:$AD)","v":0},null,null,null,null,{"$f":"SUMIFS(Sheet1!S71_CurrentAdjustments,Sheet1!S71_SA34cCode,$AC:$AC,Sheet1!S71_RepMaintCode,$AD:$AD)","v":0},0,0,{"$f":"SUMIFS(Sheet1!S71_OY1AdjustedBudget,Sheet1!S71_SA34cCode,$AC:$AC,Sheet1!S71_RepMaintCode,$AD:$AD)","v":0},{"$f":"SUMIFS(Sheet1!S71_OY2AdjustedBudget,Sheet1!S71_SA34cCode,$AC:$AC,Sheet1!S71_RepMaintCode,$AD:$AD)","v":0},null,null,null,null,null,null,null,null,null,null,null,null,null,null,null,"1290","RM"]
["Capital Spares",null,{"$f":"SUMIFS(Sheet1!S71_OriginalBudget,Sheet1!S71_SA34cCode,$AC:$AC,Sheet1!S71_RepMaintCode,$AD:$AD)","v":0},{"$f":"SUMIFS(Sheet1!S71_PreviousBudget,Sheet1!S71_SA34cCode,$AC:$AC,Sheet1!S71_RepMaintCode,$AD:$AD)","v":0},null,null,null,null,{"$f":"SUMIFS(Sheet1!S71_CurrentAdjustments,Sheet1!S71_SA34cCode,$AC:$AC,Sheet1!S71_RepMaintCode,$AD:$AD)","v":0},0,0,{"$f":"SUMIFS(Sheet1!S71_OY1AdjustedBudget,Sheet1!S71_SA34cCode,$AC:$AC,Sheet1!S71_RepMaintCode,$AD:$AD)","v":0},{"$f":"SUMIFS(Sheet1!S71_OY2AdjustedBudget,Sheet1!S71_SA34cCode,$AC:$AC,Sheet1!S71_RepMaintCode,$AD:$AD)","v":0},null,null,null,null,null,null,null,null,null,null,null,null,null,null,null,"1300","RM"]
["Housing",null,{"$f":"SUM(C134:C136)","v":0},{"$f":"SUM(D134:D136)","v":0},{"$f":"SUM(E134:E136)","v":0},0,0,0,0,0,0,0,0,null,null,null,null,null,null,null,null,null,null,null,null,null,null,null,null,"RM"]
["Staff Housing",null,{"$f":"SUMIFS(Sheet1!S71_OriginalBudget,Sheet1!S71_SA34cCode,$AC:$AC,Sheet1!S71_RepMaintCode,$AD:$AD)","v":0},{"$f":"SUMIFS(Sheet1!S71_PreviousBudget,Sheet1!S71_SA34cCode,$AC:$AC,Sheet1!S71_RepMaintCode,$AD:$AD)","v":0},null,null,null,null,{"$f":"SUMIFS(Sheet1!S71_CurrentAdjustments,Sheet1!S71_SA34cCode,$AC:$AC,Sheet1!S71_RepMaintCode,$AD:$AD)","v":0},0,0,{"$f":"SUMIFS(Sheet1!S71_OY1AdjustedBudget,Sheet1!S71_SA34cCode,$AC:$AC,Sheet1!S71_RepMaintCode,$AD:$AD)","v":0},{"$f":"SUMIFS(Sheet1!S71_OY2AdjustedBudget,Sheet1!S71_SA34cCode,$AC:$AC,Sheet1!S71_RepMaintCode,$AD:$AD)","v":0},null,null,null,null,null,null,null,null,null,null,null,null,null,null,null,"1320","RM"]
["Social Housing",null,{"$f":"SUMIFS(Sheet1!S71_OriginalBudget,Sheet1!S71_SA34cCode,$AC:$AC,Sheet1!S71_RepMaintCode,$AD:$AD)","v":0},{"$f":"SUMIFS(Sheet1!S71_PreviousBudget,Sheet1!S71_SA34cCode,$AC:$AC,Sheet1!S71_RepMaintCode,$AD:$AD)","v":0},null,null,null,null,{"$f":"SUMIFS(Sheet1!S71_CurrentAdjustments,Sheet1!S71_SA34cCode,$AC:$AC,Sheet1!S71_RepMaintCode,$AD:$AD)","v":0},0,0,{"$f":"SUMIFS(Sheet1!S71_OY1AdjustedBudget,Sheet1!S71_SA34cCode,$AC:$AC,Sheet1!S71_RepMaintCode,$AD:$AD)","v":0},{"$f":"SUMIFS(Sheet1!S71_OY2AdjustedBudget,Sheet1!S71_SA34cCode,$AC:$AC,Sheet1!S71_RepMaintCode,$AD:$AD)","v":0},null,null,null,null,null,null,null,null,null,null,null,null,null,null,null,"1330","RM"]
["Capital Spares",null,{"$f":"SUMIFS(Sheet1!S71_OriginalBudget,Sheet1!S71_SA34cCode,$AC:$AC,Sheet1!S71_RepMaintCode,$AD:$AD)","v":0},{"$f":"SUMIFS(Sheet1!S71_PreviousBudget,Sheet1!S71_SA34cCode,$AC:$AC,Sheet1!S71_RepMaintCode,$AD:$AD)","v":0},null,null,null,null,{"$f":"SUMIFS(Sheet1!S71_CurrentAdjustments,Sheet1!S71_SA34cCode,$AC:$AC,Sheet1!S71_RepMaintCode,$AD:$AD)","v":0},0,0,{"$f":"SUMIFS(Sheet1!S71_OY1AdjustedBudget,Sheet1!S71_SA34cCode,$AC:$AC,Sheet1!S71_RepMaintCode,$AD:$AD)","v":0},{"$f":"SUMIFS(Sheet1!S71_OY2AdjustedBudget,Sheet1!S71_SA34cCode,$AC:$AC,Sheet1!S71_RepMaintCode,$AD:$AD)","v":0},null,null,null,null,null,null,null,null,null,null,null,null,null,null,null,"1340","RM"]
[null,null,null,null,null,null,null,null,null,null,null,null,null,null,null,null,null,null,null,null,null,null,null,null,null,null,null,null,null,"RM"]
["Biological or Cultivated Assets",null,{"$f":"SUM(C139:C139)","v":0},0,0,0,0,0,0,{"$f":"SUM(E138:I138)","v":0},{"$f":"IF(D138=0,C138+J138,D138+J138)","v":0},0,0,null,null,null,null,null,null,null,null,null,null,null,null,null,null,null,null,"RM"]
["Biological or Cultivated Assets",null,{"$f":"SUMIFS(Sheet1!S71_OriginalBudget,Sheet1!S71_SA34cCode,$AC:$AC,Sheet1!S71_RepMaintCode,$AD:$AD)","v":0},{"$f":"SUMIFS(Sheet1!S71_PreviousBudget,Sheet1!S71_SA34cCode,$AC:$AC,Sheet1!S71_RepMaintCode,$AD:$AD)","v":0},null,null,null,null,{"$f":"SUMIFS(Sheet1!S71_CurrentAdjustments,Sheet1!S71_SA34cCode,$AC:$AC,Sheet1!S71_RepMaintCode,$AD:$AD)","v":0},0,0,{"$f":"SUMIFS(Sheet1!S71_OY1AdjustedBudget,Sheet1!S71_SA34cCode,$AC:$AC,Sheet1!S71_RepMaintCode,$AD:$AD)","v":0},{"$f":"SUMIFS(Sheet1!S71_OY2AdjustedBudget,Sheet1!S71_SA34cCode,$AC:$AC,Sheet1!S71_RepMaintCode,$AD:$AD)","v":0},null,null,null,null,null,null,null,null,null,null,null,null,null,null,null,"1360","RM"]
[null,null,null,null,null,null,null,null,null,null,null,null,null,null,null,null,null,null,null,null,null,null,null,null,null,null,null,null,null,"RM"]
["Intangible Assets",null,{"$f":"SUM(C142:C143)","v":0},{"$f":"SUM(D142:D143)","v":0},{"$f":"SUM(E142:E143)","v":0},0,0,0,0,0,0,0,0,null,null,null,null,null,null,null,null,null,null,null,null,null,null,null,null,"RM"]
["Servitudes",null,{"$f":"SUMIFS(Sheet1!S71_OriginalBudget,Sheet1!S71_SA34cCode,$AC:$AC,Sheet1!S71_RepMaintCode,$AD:$AD)","v":0},{"$f":"SUMIFS(Sheet1!S71_PreviousBudget,Sheet1!S71_SA34cCode,$AC:$AC,Sheet1!S71_RepMaintCode,$AD:$AD)","v":0},null,null,null,null,{"$f":"SUMIFS(Sheet1!S71_CurrentAdjustments,Sheet1!S71_SA34cCode,$AC:$AC,Sheet1!S71_RepMaintCode,$AD:$AD)","v":0},0,0,{"$f":"SUMIFS(Sheet1!S71_OY1AdjustedBudget,Sheet1!S71_SA34cCode,$AC:$AC,Sheet1!S71_RepMaintCode,$AD:$AD)","v":0},{"$f":"SUMIFS(Sheet1!S71_OY2AdjustedBudget,Sheet1!S71_SA34cCode,$AC:$AC,Sheet1!S71_RepMaintCode,$AD:$AD)","v":0},null,null,null,null,null,null,null,null,null,null,null,null,null,null,null,"1380","RM"]
["Licences and Rights",null,{"$f":"SUM(C144:C149)","v":0},{"$f":"SUM(D144:D149)","v":0},{"$f":"SUM(E144:E149)","v":0},0,0,0,0,0,0,0,0,null,null,null,null,null,null,null,null,null,null,null,null,null,null,null,null,"RM"]
["Water Rights",null,{"$f":"SUMIFS(Sheet1!S71_OriginalBudget,Sheet1!S71_SA34cCode,$AC:$AC,Sheet1!S71_RepMaintCode,$AD:$AD)","v":0},{"$f":"SUMIFS(Sheet1!S71_PreviousBudget,Sheet1!S71_SA34cCode,$AC:$AC,Sheet1!S71_RepMaintCode,$AD:$AD)","v":0},null,null,null,null,{"$f":"SUMIFS(Sheet1!S71_CurrentAdjustments,Sheet1!S71_SA34cCode,$AC:$AC,Sheet1!S71_RepMaintCode,$AD:$AD)","v":0},0,0,{"$f":"SUMIFS(Sheet1!S71_OY1AdjustedBudget,Sheet1!S71_SA34cCode,$AC:$AC,Sheet1!S71_RepMaintCode,$AD:$AD)","v":0},{"$f":"SUMIFS(Sheet1!S71_OY2AdjustedBudget,Sheet1!S71_SA34cCode,$AC:$AC,Sheet1!S71_RepMaintCode,$AD:$AD)","v":0},null,null,null,null,null,null,null,null,null,null,null,null,null,null,null,"1400","RM"]
["Effluent Licenses",null,{"$f":"SUMIFS(Sheet1!S71_OriginalBudget,Sheet1!S71_SA34cCode,$AC:$AC,Sheet1!S71_RepMaintCode,$AD:$AD)","v":0},{"$f":"SUMIFS(Sheet1!S71_PreviousBudget,Sheet1!S71_SA34cCode,$AC:$AC,Sheet1!S71_RepMaintCode,$AD:$AD)","v":0},null,null,null,null,{"$f":"SUMIFS(Sheet1!S71_CurrentAdjustments,Sheet1!S71_SA34cCode,$AC:$AC,Sheet1!S71_RepMaintCode,$AD:$AD)","v":0},0,0,{"$f":"SUMIFS(Sheet1!S71_OY1AdjustedBudget,Sheet1!S71_SA34cCode,$AC:$AC,Sheet1!S71_RepMaintCode,$AD:$AD)","v":0},{"$f":"SUMIFS(Sheet1!S71_OY2AdjustedBudget,Sheet1!S71_SA34cCode,$AC:$AC,Sheet1!S71_RepMaintCode,$AD:$AD)","v":0},null,null,null,null,null,null,null,null,null,null,null,null,null,null,null,"1410","RM"]
["Solid Waste Licenses",null,{"$f":"SUMIFS(Sheet1!S71_OriginalBudget,Sheet1!S71_SA34cCode,$AC:$AC,Sheet1!S71_RepMaintCode,$AD:$AD)","v":0},{"$f":"SUMIFS(Sheet1!S71_PreviousBudget,Sheet1!S71_SA34cCode,$AC:$AC,Sheet1!S71_RepMaintCode,$AD:$AD)","v":0},null,null,null,null,{"$f":"SUMIFS(Sheet1!S71_CurrentAdjustments,Sheet1!S71_SA34cCode,$AC:$AC,Sheet1!S71_RepMaintCode,$AD:$AD)","v":0},0,0,{"$f":"SUMIFS(Sheet1!S71_OY1AdjustedBudget,Sheet1!S71_SA34cCode,$AC:$AC,Sheet1!S71_RepMaintCode,$AD:$AD)","v":0},{"$f":"SUMIFS(Sheet1!S71_OY2AdjustedBudget,Sheet1!S71_SA34cCode,$AC:$AC,Sheet1!S71_RepMaintCode,$AD:$AD)","v":0},null,null,null,null,null,null,null,null,null,null,null,null,null,null,null,"1420","RM"]
["Computer Software and Applications",null,{"$f":"SUMIFS(Sheet1!S71_OriginalBudget,Sheet1!S71_SA34cCode,$AC:$AC,Sheet1!S71_RepMaintCode,$AD:$AD)","v":0},{"$f":"SUMIFS(Sheet1!S71_PreviousBudget,Sheet1!S71_SA34cCode,$AC:$AC,Sheet1!S71_RepMaintCode,$AD:$AD)","v":0},null,null,null,null,{"$f":"SUMIFS(Sheet1!S71_CurrentAdjustments,Sheet1!S71_SA34cCode,$AC:$AC,Sheet1!S71_RepMaintCode,$AD:$AD)","v":0},0,0,{"$f":"SUMIFS(Sheet1!S71_OY1AdjustedBudget,Sheet1!S71_SA34cCode,$AC:$AC,Sheet1!S71_RepMaintCode,$AD:$AD)","v":0},{"$f":"SUMIFS(Sheet1!S71_OY2AdjustedBudget,Sheet1!S71_SA34cCode,$AC:$AC,Sheet1!S71_RepMaintCode,$AD:$AD)","v":0},null,null,null,null,null,null,null,null,null,null,null,null,null,null,null,"1430","RM"]
["Load Settlement Software Applications",null,{"$f":"SUMIFS(Sheet1!S71_OriginalBudget,Sheet1!S71_SA34cCode,$AC:$AC,Sheet1!S71_RepMaintCode,$AD:$AD)","v":0},{"$f":"SUMIFS(Sheet1!S71_PreviousBudget,Sheet1!S71_SA34cCode,$AC:$AC,Sheet1!S71_RepMaintCode,$AD:$AD)","v":0},null,null,null,null,{"$f":"SUMIFS(Sheet1!S71_CurrentAdjustments,Sheet1!S71_SA34cCode,$AC:$AC,Sheet1!S71_RepMaintCode,$AD:$AD)","v":0},0,0,{"$f":"SUMIFS(Sheet1!S71_OY1AdjustedBudget,Sheet1!S71_SA34cCode,$AC:$AC,Sheet1!S71_RepMaintCode,$AD:$AD)","v":0},{"$f":"SUMIFS(Sheet1!S71_OY2AdjustedBudget,Sheet1!S71_SA34cCode,$AC:$AC,Sheet1!S71_RepMaintCode,$AD:$AD)","v":0},null,null,null,null,null,null,null,null,null,null,null,null,null,null,null,"1440","RM"]
["Unspecified",null,{"$f":"SUMIFS(Sheet1!S71_OriginalBudget,Sheet1!S71_SA34cCode,$AC:$AC,Sheet1!S71_RepMaintCode,$AD:$AD)","v":0},{"$f":"SUMIFS(Sheet1!S71_PreviousBudget,Sheet1!S71_SA34cCode,$AC:$AC,Sheet1!S71_RepMaintCode,$AD:$AD)","v":0},null,null,null,null,{"$f":"SUMIFS(Sheet1!S71_CurrentAdjustments,Sheet1!S71_SA34cCode,$AC:$AC,Sheet1!S71_RepMaintCode,$AD:$AD)","v":0},0,0,{"$f":"SUMIFS(Sheet1!S71_OY1AdjustedBudget,Sheet1!S71_SA34cCode,$AC:$AC,Sheet1!S71_RepMaintCode,$AD:$AD)","v":0},{"$f":"SUMIFS(Sheet1!S71_OY2AdjustedBudget,Sheet1!S71_SA34cCode,$AC:$AC,Sheet1!S71_RepMaintCode,$AD:$AD)","v":0},null,null,null,null,null,null,null,null,null,null,null,null,null,null,null,"1450","RM"]
[null,null,null,null,null,null,null,null,null,null,null,null,null,null,null,null,null,null,null,null,null,null,null,null,null,null,null,null,null,"RM"]
["Computer Equipment",null,{"$f":"SUM(C152:C152)","v":347830},192515,0,0,0,0,0,0,192515,363830,380560,null,null,null,null,null,null,null,null,null,null,null,null,null,null,null,null,"RM"]
["Computer Equipment",null,{"$f":"SUMIFS(Sheet1!S71_OriginalBudget,Sheet1!S71_SA34cCode,$AC:$AC,Sheet1!S71_RepMaintCode,$AD:$AD)","v":347830},{"$f":"SUMIFS(Sheet1!S71_PreviousBudget,Sheet1!S71_SA34cCode,$AC:$AC,Sheet1!S71_RepMaintCode,$AD:$AD)","v":192515},null,null,null,null,{"$f":"SUMIFS(Sheet1!S71_CurrentAdjustments,Sheet1!S71_SA34cCode,$AC:$AC,Sheet1!S71_RepMaintCode,$AD:$AD)","v":0},0,192515,{"$f":"SUMIFS(Sheet1!S71_OY1AdjustedBudget,Sheet1!S71_SA34cCode,$AC:$AC,Sheet1!S71_RepMaintCode,$AD:$AD)","v":363830},{"$f":"SUMIFS(Sheet1!S71_OY2AdjustedBudget,Sheet1!S71_SA34cCode,$AC:$AC,Sheet1!S71_RepMaintCode,$AD:$AD)","v":380560},null,null,null,null,null,null,null,null,null,null,null,null,null,null,null,"1470","RM"]
[null,null,null,null,null,null,null,null,null,null,null,null,null,null,null,null,null,null,null,null,null,null,null,null,null,null,null,null,null,"RM"]
["Furniture and Office Equipment",null,{"$f":"SUM(C155:C155)","v":0},0,0,0,0,0,0,0,0,0,0,null,null,null,null,null,null,null,null,null,null,null,null,null,null,null,null,"RM"]
["Furniture and Office Equipment",null,{"$f":"SUMIFS(Sheet1!S71_OriginalBudget,Sheet1!S71_SA34cCode,$AC:$AC,Sheet1!S71_RepMaintCode,$AD:$AD)","v":0},{"$f":"SUMIFS(Sheet1!S71_PreviousBudget,Sheet1!S71_SA34cCode,$AC:$AC,Sheet1!S71_RepMaintCode,$AD:$AD)","v":0},null,null,null,null,{"$f":"SUMIFS(Sheet1!S71_CurrentAdjustments,Sheet1!S71_SA34cCode,$AC:$AC,Sheet1!S71_RepMaintCode,$AD:$AD)","v":0},0,0,{"$f":"SUMIFS(Sheet1!S71_OY1AdjustedBudget,Sheet1!S71_SA34cCode,$AC:$AC,Sheet1!S71_RepMaintCode,$AD:$AD)","v":0},{"$f":"SUMIFS(Sheet1!S71_OY2AdjustedBudget,Sheet1!S71_SA34cCode,$AC:$AC,Sheet1!S71_RepMaintCode,$AD:$AD)","v":0},null,null,null,null,null,null,null,null,null,null,null,null,null,null,null,"1490","RM"]
[null,null,null,null,null,null,null,null,null,null,null,null,null,null,null,null,null,null,null,null,null,null,null,null,null,null,null,null,null,"RM"]
["Machinery and Equipment",null,{"$f":"SUM(C158:C158)","v":6347826},7431826,0,0,0,0,0,0,7431826,6185043,6469555,null,null,null,null,null,null,null,null,null,null,null,null,null,null,null,null,"RM"]
["Machinery and Equipment",null,{"$f":"SUMIFS(Sheet1!S71_OriginalBudget,Sheet1!S71_SA34cCode,$AC:$AC,Sheet1!S71_RepMaintCode,$AD:$AD)","v":6347826},{"$f":"SUMIFS(Sheet1!S71_PreviousBudget,Sheet1!S71_SA34cCode,$AC:$AC,Sheet1!S71_RepMaintCode,$AD:$AD)","v":7431826},null,null,null,null,{"$f":"SUMIFS(Sheet1!S71_CurrentAdjustments,Sheet1!S71_SA34cCode,$AC:$AC,Sheet1!S71_RepMaintCode,$AD:$AD)","v":0},0,7431826,{"$f":"SUMIFS(Sheet1!S71_OY1AdjustedBudget,Sheet1!S71_SA34cCode,$AC:$AC,Sheet1!S71_RepMaintCode,$AD:$AD)","v":6185043},{"$f":"SUMIFS(Sheet1!S71_OY2AdjustedBudget,Sheet1!S71_SA34cCode,$AC:$AC,Sheet1!S71_RepMaintCode,$AD:$AD)","v":6469555},null,null,null,null,null,null,null,null,null,null,null,null,null,null,null,"1510","RM"]
[null,null,null,null,null,null,null,null,null,null,null,null,null,null,null,null,null,null,null,null,null,null,null,null,null,null,null,null,null,"RM"]
["Transport Assets",null,{"$f":"SUM(C161:C161)","v":0},0,0,0,0,0,0,0,0,0,0,null,null,null,null,null,null,null,null,null,null,null,null,null,null,null,null,"RM"]
["Transport Assets",null,{"$f":"SUMIFS(Sheet1!S71_OriginalBudget,Sheet1!S71_SA34cCode,$AC:$AC,Sheet1!S71_RepMaintCode,$AD:$AD)","v":0},{"$f":"SUMIFS(Sheet1!S71_PreviousBudget,Sheet1!S71_SA34cCode,$AC:$AC,Sheet1!S71_RepMaintCode,$AD:$AD)","v":0},null,null,null,null,{"$f":"SUMIFS(Sheet1!S71_CurrentAdjustments,Sheet1!S71_SA34cCode,$AC:$AC,Sheet1!S71_RepMaintCode,$AD:$AD)","v":0},0,0,{"$f":"SUMIFS(Sheet1!S71_OY1AdjustedBudget,Sheet1!S71_SA34cCode,$AC:$AC,Sheet1!S71_RepMaintCode,$AD:$AD)","v":0},{"$f":"SUMIFS(Sheet1!S71_OY2AdjustedBudget,Sheet1!S71_SA34cCode,$AC:$AC,Sheet1!S71_RepMaintCode,$AD:$AD)","v":0},null,null,null,null,null,null,null,null,null,null,null,null,null,null,null,"1530","RM"]
[null,null,null,null,null,null,null,null,null,null,null,null,null,null,null,null,null,null,null,null,null,null,null,null,null,null,null,null,null,"RM"]
["Land",null,{"$f":"SUM(C164:C164)","v":0},0,0,0,0,0,0,0,0,0,0,null,null,null,null,null,null,null,null,null,null,null,null,null,null,null,null,"RM"]
["Land",null,{"$f":"SUMIFS(Sheet1!S71_OriginalBudget,Sheet1!S71_SA34cCode,$AC:$AC,Sheet1!S71_RepMaintCode,$AD:$AD)","v":0},{"$f":"SUMIFS(Sheet1!S71_PreviousBudget,Sheet1!S71_SA34cCode,$AC:$AC,Sheet1!S71_RepMaintCode,$AD:$AD)","v":0},null,null,null,null,{"$f":"SUMIFS(Sheet1!S71_CurrentAdjustments,Sheet1!S71_SA34cCode,$AC:$AC,Sheet1!S71_RepMaintCode,$AD:$AD)","v":0},0,0,{"$f":"SUMIFS(Sheet1!S71_OY1AdjustedBudget,Sheet1!S71_SA34cCode,$AC:$AC,Sheet1!S71_RepMaintCode,$AD:$AD)","v":0},{"$f":"SUMIFS(Sheet1!S71_OY2AdjustedBudget,Sheet1!S71_SA34cCode,$AC:$AC,Sheet1!S71_RepMaintCode,$AD:$AD)","v":0},null,null,null,null,null,null,null,null,null,null,null,null,null,null,null,"1550","RM"]
[null,null,null,null,null,null,null,null,null,null,null,null,null,null,null,null,null,null,null,null,null,null,null,null,null,null,null,null,null,"RM"]
["Zoo's, Marine and Non-biological Animals",null,{"$f":"SUM(C167:C167)","v":0},0,0,0,0,0,0,0,0,0,0,null,null,null,null,null,null,null,null,null,null,null,null,null,null,null,null,"RM"]
["Zoo's, Marine and Non-biological Animals",null,{"$f":"SUMIFS(Sheet1!S71_OriginalBudget,Sheet1!S71_SA34cCode,$AC:$AC,Sheet1!S71_RepMaintCode,$AD:$AD)","v":0},{"$f":"SUMIFS(Sheet1!S71_PreviousBudget,Sheet1!S71_SA34cCode,$AC:$AC,Sheet1!S71_RepMaintCode,$AD:$AD)","v":0},null,null,null,null,{"$f":"SUMIFS(Sheet1!S71_CurrentAdjustments,Sheet1!S71_SA34cCode,$AC:$AC,Sheet1!S71_RepMaintCode,$AD:$AD)","v":0},0,0,{"$f":"SUMIFS(Sheet1!S71_OY1AdjustedBudget,Sheet1!S71_SA34cCode,$AC:$AC,Sheet1!S71_RepMaintCode,$AD:$AD)","v":0},{"$f":"SUMIFS(Sheet1!S71_OY2AdjustedBudget,Sheet1!S71_SA34cCode,$AC:$AC,Sheet1!S71_RepMaintCode,$AD:$AD)","v":0},null,null,null,null,null,null,null,null,null,null,null,null,null,null,null,"1570","RM"]
[]
["Living resources",null,{"$f":"+C170+C173","v":0},{"$f":"+D170+D173","v":0},0,0,0,0,0,{"$f":"SUM(E169:I169)","v":0},{"$f":"IF(D169=0,C169+J169,D169+J169)","v":0},{"$f":"+L170+L173","v":0},{"$f":"SUM(M170:M170)","v":0}]
["Mature",null,{"$f":"+C171+C172","v":0},{"$f":"+D171+D172","v":0},0,0,0,0,0,0,0,{"$f":"+L171+L172","v":0},{"$f":"+M171+M172","v":0}]
["Policing and Protection",null,null,null,null,null,null,null,null,0,0,{"$f":"SUMIFS(Sheet1!S71_OY1AdjustedBudget,Sheet1!S71_SA34cCode,$AC:$AC,Sheet1!S71_RepMaintCode,$AD:$AD)","v":0},{"$f":"SUMIFS(Sheet1!S71_OY2AdjustedBudget,Sheet1!S71_SA34cCode,$AC:$AC,Sheet1!S71_RepMaintCode,$AD:$AD)","v":0}]
["Zoological plants and animals",null,null,null,null,null,null,null,null,0,0,{"$f":"SUMIFS(Sheet1!S71_OY1AdjustedBudget,Sheet1!S71_SA34cCode,$AC:$AC,Sheet1!S71_RepMaintCode,$AD:$AD)","v":0},{"$f":"SUMIFS(Sheet1!S71_OY2AdjustedBudget,Sheet1!S71_SA34cCode,$AC:$AC,Sheet1!S71_RepMaintCode,$AD:$AD)","v":0}]
["Immature",null,{"$f":"+C174+C175","v":0},{"$f":"+D174+D175","v":0},0,0,0,0,0,0,0,{"$f":"+L174+L175","v":0},{"$f":"+M174+M175","v":0}]
["Policing and Protection",null,null,null,null,null,null,null,null,0,0,{"$f":"SUMIFS(Sheet1!S71_OY1AdjustedBudget,Sheet1!S71_SA34cCode,$AC:$AC,Sheet1!S71_RepMaintCode,$AD:$AD)","v":0},{"$f":"SUMIFS(Sheet1!S71_OY2AdjustedBudget,Sheet1!S71_SA34cCode,$AC:$AC,Sheet1!S71_RepMaintCode,$AD:$AD)","v":0}]
["Zoological plants and animals",null,null,null,null,null,null,null,null,0,0,{"$f":"SUMIFS(Sheet1!S71_OY1AdjustedBudget,Sheet1!S71_SA34cCode,$AC:$AC,Sheet1!S71_RepMaintCode,$AD:$AD)","v":0},{"$f":"SUMIFS(Sheet1!S71_OY2AdjustedBudget,Sheet1!S71_SA34cCode,$AC:$AC,Sheet1!S71_RepMaintCode,$AD:$AD)","v":0}]
["Total Repairs and Maintenance Expenditure to be adjusted",1,{"$f":"C8+C76+C105+C112+C120+C151+C138+C141+C154+C157+C160+C163+C166+C169","v":27347801},{"$f":"D8+D76+D105+D112+D120+D151+D138+D141+D154+D157+D160+D163+D166+D169","v":29195624},0,0,0,0,0,0,29195624,28151018,29445960]
[{"$f":"head27a","v":"References"}]
["1. Total Repairs and Maintenance Expenditure by Asset Category must reconcile to total repairs and maintenance expenditure on Table SB1"]
["7. Only complete if a previous adjusted budget has been approved in the same financial year. Reflect most recent adjusted budget."]
["8. Additional cash-backed accumulated funds/unspent funds (section 18(1)(b) and section 28(2)(e) MFMA) identified after Original Budget approved and after annual financial statements audited (note: only where underspending could not reasonably be have for"]
["9. Increases of funds approved under section 31 MFMA"]
["10. Adjustments approved in accordance with section 29 MFMA"]
["11. Adjustments to funding allocations from National or Provincial Government"]
["12. Adjusts. = 'Other' Adjustments proposed to be approved; including revenue under-collection (MFMA section 28(2)(a)); additional revenue appropriation on existing programmes (section 28(2))(b); projected savings (section 28(2)(d)); error correction (sec"]
["13. G = B + C + D + E + F"]
["14. Adjusted Budget H = (A or A1) + G"]
[]
[]
["check balance"]

{"sheet":"SB18d","index":57,"n_rows":190,"n_cols":30,"rows_kept":190,"cut":false,"hidden":false,"merged":[[182,0,182,12],[184,0,184,12],[186,0,186,12],[1,0,3,0],[1,1,3,1],[1,2,1,10],[179,0,179,12],[180,0,180,9],[181,0,181,9]]}
[{"$f":"muni&\" - \"&ADJB18d&\" - \"&Date","v":"KZN291 Mandeni - Supporting Table SB18d Adjustments Budget - depreciation by asset class - 08-04-2025"}]
[{"$f":"desc","v":"Description"},{"$f":"head27","v":"Ref"},{"$f":"Head2","v":"Budget Year 2024/25"},null,null,null,null,null,null,null,null,{"$f":"Head10","v":"Budget Year +1 2025/26"},{"$f":"Head11","v":"Budget Year +2 2026/27"}]
[null,null,{"$f":"Head6","v":"Original Budget"},{"$f":"Head54","v":"Prior Adjusted"},{"$f":"Head51","v":"Accum. Funds"},{"$f":"Head52","v":"Multi-year capital"},{"$f":"Head53","v":"Unfore. Unavoid."},{"$f":"Head55","v":"Nat. or Prov. Govt"},{"$f":"Head50","v":"Other Adjusts."},{"$f":"Head56","v":"Total Adjusts."},{"$f":"Head7","v":"Adjusted Budget"},{"$f":"Head7","v":"Adjusted Budget"},{"$f":"Head7","v":"Adjusted Budget"}]
[null,null,null,7,8,9,10,11,12,13,14]
["R thousands",null,"A","A1","B","C","D","E","F","G","H"]
["Depreciation by Asset Class/Sub-class"]
[]
["Infrastructure",null,{"$f":"C9+C14+C18+C28+C70+C39+C46+C54+C64","v":23121170},{"$f":"D9+D14+D18+D28+D70+D39+D46+D54+D64","v":23121170},0,0,0,0,0,{"$f":"SUM(E8:I8)","v":0},{"$f":"IF(D8=0,C8+J8,D8+J8)","v":23121170},{"$f":"L9+L14+L18+L28+L70+L39+L46+L54+L64","v":23814809},{"$f":"M9+M14+M18+M28+M70+M39+M46+M54+M64","v":24291104}]
["Roads Infrastructure",null,{"$f":"SUM(C10:C13)","v":17728320},{"$f":"SUM(D10:D13)","v":17728320},0,0,0,0,0,{"$f":"SUM(E9:I9)","v":0},{"$f":"IF(D9=0,C9+J9,D9+J9)","v":17728320},18260174,18625377]
["Roads",null,{"$f":"SUMIFS(Sheet1!S71_OriginalBudget,Sheet1!S71_SA34dCode,$AC:$AC,Sheet1!S71_DepCode,$AD:$AD)","v":17728320},{"$f":"SUMIFS(Sheet1!S71_PreviousBudget,Sheet1!S71_SA34dCode,$AC:$AC,Sheet1!S71_DepCode,$AD:$AD)","v":17728320},null,null,null,null,{"$f":"SUMIFS(Sheet1!S71_CurrentAdjustments,Sheet1!S71_SA34dCode,$AC:$AC,Sheet1!S71_DepCode,$AD:$AD)","v":0},0,17728320,{"$f":"SUMIFS(Sheet1!S71_OY1AdjustedBudget,Sheet1!S71_SA34dCode,$AC:$AC,Sheet1!S71_DepCode,$AD:$AD)","v":18260174},{"$f":"SUMIFS(Sheet1!S71_OY2AdjustedBudget,Sheet1!S71_SA34dCode,$AC:$AC,Sheet1!S71_DepCode,$AD:$AD)","v":18625377},null,null,null,null,null,null,null,null,null,null,null,null,null,null,null,"0120","DP"]
["Road Structures",null,{"$f":"SUMIFS(Sheet1!S71_OriginalBudget,Sheet1!S71_SA34dCode,$AC:$AC,Sheet1!S71_DepCode,$AD:$AD)","v":0},{"$f":"SUMIFS(Sheet1!S71_PreviousBudget,Sheet1!S71_SA34dCode,$AC:$AC,Sheet1!S71_DepCode,$AD:$AD)","v":0},null,null,null,null,{"$f":"SUMIFS(Sheet1!S71_CurrentAdjustments,Sheet1!S71_SA34dCode,$AC:$AC,Sheet1!S71_DepCode,$AD:$AD)","v":0},0,0,{"$f":"SUMIFS(Sheet1!S71_OY1AdjustedBudget,Sheet1!S71_SA34dCode,$AC:$AC,Sheet1!S71_DepCode,$AD:$AD)","v":0},{"$f":"SUMIFS(Sheet1!S71_OY2AdjustedBudget,Sheet1!S71_SA34dCode,$AC:$AC,Sheet1!S71_DepCode,$AD:$AD)","v":0},null,null,null,null,null,null,null,null,null,null,null,null,null,null,null,"0130","DP"]
["Road Furniture",null,{"$f":"SUMIFS(Sheet1!S71_OriginalBudget,Sheet1!S71_SA34dCode,$AC:$AC,Sheet1!S71_DepCode,$AD:$AD)","v":0},{"$f":"SUMIFS(Sheet1!S71_PreviousBudget,Sheet1!S71_SA34dCode,$AC:$AC,Sheet1!S71_DepCode,$AD:$AD)","v":0},null,null,null,null,{"$f":"SUMIFS(Sheet1!S71_CurrentAdjustments,Sheet1!S71_SA34dCode,$AC:$AC,Sheet1!S71_DepCode,$AD:$AD)","v":0},0,0,{"$f":"SUMIFS(Sheet1!S71_OY1AdjustedBudget,Sheet1!S71_SA34dCode,$AC:$AC,Sheet1!S71_DepCode,$AD:$AD)","v":0},{"$f":"SUMIFS(Sheet1!S71_OY2AdjustedBudget,Sheet1!S71_SA34dCode,$AC:$AC,Sheet1!S71_DepCode,$AD:$AD)","v":0},null,null,null,null,null,null,null,null,null,null,null,null,null,null,null,"0140","DP"]
["Capital Spares",null,{"$f":"SUMIFS(Sheet1!S71_OriginalBudget,Sheet1!S71_SA34dCode,$AC:$AC,Sheet1!S71_DepCode,$AD:$AD)","v":0},{"$f":"SUMIFS(Sheet1!S71_PreviousBudget,Sheet1!S71_SA34dCode,$AC:$AC,Sheet1!S71_DepCode,$AD:$AD)","v":0},null,null,null,null,{"$f":"SUMIFS(Sheet1!S71_CurrentAdjustments,Sheet1!S71_SA34dCode,$AC:$AC,Sheet1!S71_DepCode,$AD:$AD)","v":0},0,0,{"$f":"SUMIFS(Sheet1!S71_OY1AdjustedBudget,Sheet1!S71_SA34dCode,$AC:$AC,Sheet1!S71_DepCode,$AD:$AD)","v":0},{"$f":"SUMIFS(Sheet1!S71_OY2AdjustedBudget,Sheet1!S71_SA34dCode,$AC:$AC,Sheet1!S71_DepCode,$AD:$AD)","v":0},null,null,null,null,null,null,null,null,null,null,null,null,null,null,null,"0150","DP"]
["Storm water Infrastructure",null,{"$f":"SUM(C15:C17)","v":2802430},2802430,0,0,0,0,0,0,2802430,{"$f":"SUM(L15:L17)","v":2886499},{"$f":"SUM(M15:M17)","v":2944229},null,null,null,null,null,null,null,null,null,null,null,null,null,null,null,null,"DP"]
["Drainage Collection",null,{"$f":"SUMIFS(Sheet1!S71_OriginalBudget,Sheet1!S71_SA34dCode,$AC:$AC,Sheet1!S71_DepCode,$AD:$AD)","v":0},{"$f":"SUMIFS(Sheet1!S71_PreviousBudget,Sheet1!S71_SA34dCode,$AC:$AC,Sheet1!S71_DepCode,$AD:$AD)","v":0},null,null,null,null,{"$f":"SUMIFS(Sheet1!S71_CurrentAdjustments,Sheet1!S71_SA34dCode,$AC:$AC,Sheet1!S71_DepCode,$AD:$AD)","v":0},0,0,{"$f":"SUMIFS(Sheet1!S71_OY1AdjustedBudget,Sheet1!S71_SA34dCode,$AC:$AC,Sheet1!S71_DepCode,$AD:$AD)","v":0},{"$f":"SUMIFS(Sheet1!S71_OY2AdjustedBudget,Sheet1!S71_SA34dCode,$AC:$AC,Sheet1!S71_DepCode,$AD:$AD)","v":0},null,null,null,null,null,null,null,null,null,null,null,null,null,null,null,"0170","DP"]
["Storm water Conveyance",null,{"$f":"SUMIFS(Sheet1!S71_OriginalBudget,Sheet1!S71_SA34dCode,$AC:$AC,Sheet1!S71_DepCode,$AD:$AD)","v":2802430},{"$f":"SUMIFS(Sheet1!S71_PreviousBudget,Sheet1!S71_SA34dCode,$AC:$AC,Sheet1!S71_DepCode,$AD:$AD)","v":2802430},null,null,null,null,{"$f":"SUMIFS(Sheet1!S71_CurrentAdjustments,Sheet1!S71_SA34dCode,$AC:$AC,Sheet1!S71_DepCode,$AD:$AD)","v":0},0,2802430,{"$f":"SUMIFS(Sheet1!S71_OY1AdjustedBudget,Sheet1!S71_SA34dCode,$AC:$AC,Sheet1!S71_DepCode,$AD:$AD)","v":2886499},{"$f":"SUMIFS(Sheet1!S71_OY2AdjustedBudget,Sheet1!S71_SA34dCode,$AC:$AC,Sheet1!S71_DepCode,$AD:$AD)","v":2944229},null,null,null,null,null,null,null,null,null,null,null,null,null,null,null,"0180","DP"]
["Attenuation",null,{"$f":"SUMIFS(Sheet1!S71_OriginalBudget,Sheet1!S71_SA34dCode,$AC:$AC,Sheet1!S71_DepCode,$AD:$AD)","v":0},{"$f":"SUMIFS(Sheet1!S71_PreviousBudget,Sheet1!S71_SA34dCode,$AC:$AC,Sheet1!S71_DepCode,$AD:$AD)","v":0},null,null,null,null,{"$f":"SUMIFS(Sheet1!S71_CurrentAdjustments,Sheet1!S71_SA34dCode,$AC:$AC,Sheet1!S71_DepCode,$AD:$AD)","v":0},0,0,{"$f":"SUMIFS(Sheet1!S71_OY1AdjustedBudget,Sheet1!S71_SA34dCode,$AC:$AC,Sheet1!S71_DepCode,$AD:$AD)","v":0},{"$f":"SUMIFS(Sheet1!S71_OY2AdjustedBudget,Sheet1!S71_SA34dCode,$AC:$AC,Sheet1!S71_DepCode,$AD:$AD)","v":0},null,null,null,null,null,null,null,null,null,null,null,null,null,null,null,"0190","DP"]
["Electrical Infrastructure",null,{"$f":"SUM(C19:C27)","v":2590420},2590420,0,0,0,0,0,0,2590420,2668136,2721498,null,null,null,null,null,null,null,null,null,null,null,null,null,null,null,null,"DP"]
["Power Plants",null,{"$f":"SUMIFS(Sheet1!S71_OriginalBudget,Sheet1!S71_SA34dCode,$AC:$AC,Sheet1!S71_DepCode,$AD:$AD)","v":0},{"$f":"SUMIFS(Sheet1!S71_PreviousBudget,Sheet1!S71_SA34dCode,$AC:$AC,Sheet1!S71_DepCode,$AD:$AD)","v":0},null,null,null,null,{"$f":"SUMIFS(Sheet1!S71_CurrentAdjustments,Sheet1!S71_SA34dCode,$AC:$AC,Sheet1!S71_DepCode,$AD:$AD)","v":0},0,0,{"$f":"SUMIFS(Sheet1!S71_OY1AdjustedBudget,Sheet1!S71_SA34dCode,$AC:$AC,Sheet1!S71_DepCode,$AD:$AD)","v":0},{"$f":"SUMIFS(Sheet1!S71_OY2AdjustedBudget,Sheet1!S71_SA34dCode,$AC:$AC,Sheet1!S71_DepCode,$AD:$AD)","v":0},null,null,null,null,null,null,null,null,null,null,null,null,null,null,null,"0210","DP"]
["HV Substations",null,{"$f":"SUMIFS(Sheet1!S71_OriginalBudget,Sheet1!S71_SA34dCode,$AC:$AC,Sheet1!S71_DepCode,$AD:$AD)","v":0},{"$f":"SUMIFS(Sheet1!S71_PreviousBudget,Sheet1!S71_SA34dCode,$AC:$AC,Sheet1!S71_DepCode,$AD:$AD)","v":0},null,null,null,null,{"$f":"SUMIFS(Sheet1!S71_CurrentAdjustments,Sheet1!S71_SA34dCode,$AC:$AC,Sheet1!S71_DepCode,$AD:$AD)","v":0},0,0,{"$f":"SUMIFS(Sheet1!S71_OY1AdjustedBudget,Sheet1!S71_SA34dCode,$AC:$AC,Sheet1!S71_DepCode,$AD:$AD)","v":0},{"$f":"SUMIFS(Sheet1!S71_OY2AdjustedBudget,Sheet1!S71_SA34dCode,$AC:$AC,Sheet1!S71_DepCode,$AD:$AD)","v":0},null,null,null,null,null,null,null,null,null,null,null,null,null,null,null,"0220","DP"]
["HV Switching Station",null,{"$f":"SUMIFS(Sheet1!S71_OriginalBudget,Sheet1!S71_SA34dCode,$AC:$AC,Sheet1!S71_DepCode,$AD:$AD)","v":0},{"$f":"SUMIFS(Sheet1!S71_PreviousBudget,Sheet1!S71_SA34dCode,$AC:$AC,Sheet1!S71_DepCode,$AD:$AD)","v":0},null,null,null,null,{"$f":"SUMIFS(Sheet1!S71_CurrentAdjustments,Sheet1!S71_SA34dCode,$AC:$AC,Sheet1!S71_DepCode,$AD:$AD)","v":0},0,0,{"$f":"SUMIFS(Sheet1!S71_OY1AdjustedBudget,Sheet1!S71_SA34dCode,$AC:$AC,Sheet1!S71_DepCode,$AD:$AD)","v":0},{"$f":"SUMIFS(Sheet1!S71_OY2AdjustedBudget,Sheet1!S71_SA34dCode,$AC:$AC,Sheet1!S71_DepCode,$AD:$AD)","v":0},null,null,null,null,null,null,null,null,null,null,null,null,null,null,null,"0230","DP"]
["HV Transmission Conductors",null,{"$f":"SUMIFS(Sheet1!S71_OriginalBudget,Sheet1!S71_SA34dCode,$AC:$AC,Sheet1!S71_DepCode,$AD:$AD)","v":2590420},{"$f":"SUMIFS(Sheet1!S71_PreviousBudget,Sheet1!S71_SA34dCode,$AC:$AC,Sheet1!S71_DepCode,$AD:$AD)","v":2590420},null,null,null,null,{"$f":"SUMIFS(Sheet1!S71_CurrentAdjustments,Sheet1!S71_SA34dCode,$AC:$AC,Sheet1!S71_DepCode,$AD:$AD)","v":0},0,2590420,{"$f":"SUMIFS(Sheet1!S71_OY1AdjustedBudget,Sheet1!S71_SA34dCode,$AC:$AC,Sheet1!S71_DepCode,$AD:$AD)","v":2668136},{"$f":"SUMIFS(Sheet1!S71_OY2AdjustedBudget,Sheet1!S71_SA34dCode,$AC:$AC,Sheet1!S71_DepCode,$AD:$AD)","v":2721498},null,null,null,null,null,null,null,null,null,null,null,null,null,null,null,"0240","DP"]
["MV Substations",null,{"$f":"SUMIFS(Sheet1!S71_OriginalBudget,Sheet1!S71_SA34dCode,$AC:$AC,Sheet1!S71_DepCode,$AD:$AD)","v":0},{"$f":"SUMIFS(Sheet1!S71_PreviousBudget,Sheet1!S71_SA34dCode,$AC:$AC,Sheet1!S71_DepCode,$AD:$AD)","v":0},null,null,null,null,{"$f":"SUMIFS(Sheet1!S71_CurrentAdjustments,Sheet1!S71_SA34dCode,$AC:$AC,Sheet1!S71_DepCode,$AD:$AD)","v":0},0,0,{"$f":"SUMIFS(Sheet1!S71_OY1AdjustedBudget,Sheet1!S71_SA34dCode,$AC:$AC,Sheet1!S71_DepCode,$AD:$AD)","v":0},{"$f":"SUMIFS(Sheet1!S71_OY2AdjustedBudget,Sheet1!S71_SA34dCode,$AC:$AC,Sheet1!S71_DepCode,$AD:$AD)","v":0},null,null,null,null,null,null,null,null,null,null,null,null,null,null,null,"0250","DP"]
["MV Switching Stations",null,{"$f":"SUMIFS(Sheet1!S71_OriginalBudget,Sheet1!S71_SA34dCode,$AC:$AC,Sheet1!S71_DepCode,$AD:$AD)","v":0},{"$f":"SUMIFS(Sheet1!S71_PreviousBudget,Sheet1!S71_SA34dCode,$AC:$AC,Sheet1!S71_DepCode,$AD:$AD)","v":0},null,null,null,null,{"$f":"SUMIFS(Sheet1!S71_CurrentAdjustments,Sheet1!S71_SA34dCode,$AC:$AC,Sheet1!S71_DepCode,$AD:$AD)","v":0},0,0,{"$f":"SUMIFS(Sheet1!S71_OY1AdjustedBudget,Sheet1!S71_SA34dCode,$AC:$AC,Sheet1!S71_DepCode,$AD:$AD)","v":0},{"$f":"SUMIFS(Sheet1!S71_OY2AdjustedBudget,Sheet1!S71_SA34dCode,$AC:$AC,Sheet1!S71_DepCode,$AD:$AD)","v":0},null,null,null,null,null,null,null,null,null,null,null,null,null,null,null,"0260","DP"]
["MV Networks",null,{"$f":"SUMIFS(Sheet1!S71_OriginalBudget,Sheet1!S71_SA34dCode,$AC:$AC,Sheet1!S71_DepCode,$AD:$AD)","v":0},{"$f":"SUMIFS(Sheet1!S71_PreviousBudget,Sheet1!S71_SA34dCode,$AC:$AC,Sheet1!S71_DepCode,$AD:$AD)","v":0},null,null,null,null,{"$f":"SUMIFS(Sheet1!S71_CurrentAdjustments,Sheet1!S71_SA34dCode,$AC:$AC,Sheet1!S71_DepCode,$AD:$AD)","v":0},0,0,{"$f":"SUMIFS(Sheet1!S71_OY1AdjustedBudget,Sheet1!S71_SA34dCode,$AC:$AC,Sheet1!S71_DepCode,$AD:$AD)","v":0},{"$f":"SUMIFS(Sheet1!S71_OY2AdjustedBudget,Sheet1!S71_SA34dCode,$AC:$AC,Sheet1!S71_DepCode,$AD:$AD)","v":0},null,null,null,null,null,null,null,null,null,null,null,null,null,null,null,"0270","DP"]
["LV Networks",null,{"$f":"SUMIFS(Sheet1!S71_OriginalBudget,Sheet1!S71_SA34dCode,$AC:$AC,Sheet1!S71_DepCode,$AD:$AD)","v":0},{"$f":"SUMIFS(Sheet1!S71_PreviousBudget,Sheet1!S71_SA34dCode,$AC:$AC,Sheet1!S71_DepCode,$AD:$AD)","v":0},null,null,null,null,{"$f":"SUMIFS(Sheet1!S71_CurrentAdjustments,Sheet1!S71_SA34dCode,$AC:$AC,Sheet1!S71_DepCode,$AD:$AD)","v":0},0,0,{"$f":"SUMIFS(Sheet1!S71_OY1AdjustedBudget,Sheet1!S71_SA34dCode,$AC:$AC,Sheet1!S71_DepCode,$AD:$AD)","v":0},{"$f":"SUMIFS(Sheet1!S71_OY2AdjustedBudget,Sheet1!S71_SA34dCode,$AC:$AC,Sheet1!S71_DepCode,$AD:$AD)","v":0},null,null,null,null,null,null,null,null,null,null,null,null,null,null,null,"0280","DP"]
["Capital Spares",null,{"$f":"SUMIFS(Sheet1!S71_OriginalBudget,Sheet1!S71_SA34dCode,$AC:$AC,Sheet1!S71_DepCode,$AD:$AD)","v":0},{"$f":"SUMIFS(Sheet1!S71_PreviousBudget,Sheet1!S71_SA34dCode,$AC:$AC,Sheet1!S71_DepCode,$AD:$AD)","v":0},null,null,null,null,{"$f":"SUMIFS(Sheet1!S71_CurrentAdjustments,Sheet1!S71_SA34dCode,$AC:$AC,Sheet1!S71_DepCode,$AD:$AD)","v":0},0,0,{"$f":"SUMIFS(Sheet1!S71_OY1AdjustedBudget,Sheet1!S71_SA34dCode,$AC:$AC,Sheet1!S71_DepCode,$AD:$AD)","v":0},{"$f":"SUMIFS(Sheet1!S71_OY2AdjustedBudget,Sheet1!S71_SA34dCode,$AC:$AC,Sheet1!S71_DepCode,$AD:$AD)","v":0},null,null,null,null,null,null,null,null,null,null,null,null,null,null,null,"0290","DP"]
["Water Supply Infrastructure",null,{"$f":"SUM(C29:C38)","v":0},0,0,0,0,0,0,0,0,0,0,null,null,null,null,null,null,null,null,null,null,null,null,null,null,null,null,"DP"]
["Dams and Weirs",null,{"$f":"SUMIFS(Sheet1!S71_OriginalBudget,Sheet1!S71_SA34dCode,$AC:$AC,Sheet1!S71_DepCode,$AD:$AD)","v":0},{"$f":"SUMIFS(Sheet1!S71_PreviousBudget,Sheet1!S71_SA34dCode,$AC:$AC,Sheet1!S71_DepCode,$AD:$AD)","v":0},null,null,null,null,{"$f":"SUMIFS(Sheet1!S71_CurrentAdjustments,Sheet1!S71_SA34dCode,$AC:$AC,Sheet1!S71_DepCode,$AD:$AD)","v":0},0,0,{"$f":"SUMIFS(Sheet1!S71_OY1AdjustedBudget,Sheet1!S71_SA34dCode,$AC:$AC,Sheet1!S71_DepCode,$AD:$AD)","v":0},{"$f":"SUMIFS(Sheet1!S71_OY2AdjustedBudget,Sheet1!S71_SA34dCode,$AC:$AC,Sheet1!S71_DepCode,$AD:$AD)","v":0},null,null,null,null,null,null,null,null,null,null,null,null,null,null,null,"0310","DP"]
["Boreholes",null,{"$f":"SUMIFS(Sheet1!S71_OriginalBudget,Sheet1!S71_SA34dCode,$AC:$AC,Sheet1!S71_DepCode,$AD:$AD)","v":0},{"$f":"SUMIFS(Sheet1!S71_PreviousBudget,Sheet1!S71_SA34dCode,$AC:$AC,Sheet1!S71_DepCode,$AD:$AD)","v":0},null,null,null,null,{"$f":"SUMIFS(Sheet1!S71_CurrentAdjustments,Sheet1!S71_SA34dCode,$AC:$AC,Sheet1!S71_DepCode,$AD:$AD)","v":0},0,0,{"$f":"SUMIFS(Sheet1!S71_OY1AdjustedBudget,Sheet1!S71_SA34dCode,$AC:$AC,Sheet1!S71_DepCode,$AD:$AD)","v":0},{"$f":"SUMIFS(Sheet1!S71_OY2AdjustedBudget,Sheet1!S71_SA34dCode,$AC:$AC,Sheet1!S71_DepCode,$AD:$AD)","v":0},null,null,null,null,null,null,null,null,null,null,null,null,null,null,null,"0320","DP"]
["Reservoirs",null,{"$f":"SUMIFS(Sheet1!S71_OriginalBudget,Sheet1!S71_SA34dCode,$AC:$AC,Sheet1!S71_DepCode,$AD:$AD)","v":0},{"$f":"SUMIFS(Sheet1!S71_PreviousBudget,Sheet1!S71_SA34dCode,$AC:$AC,Sheet1!S71_DepCode,$AD:$AD)","v":0},null,null,null,null,{"$f":"SUMIFS(Sheet1!S71_CurrentAdjustments,Sheet1!S71_SA34dCode,$AC:$AC,Sheet1!S71_DepCode,$AD:$AD)","v":0},0,0,{"$f":"SUMIFS(Sheet1!S71_OY1AdjustedBudget,Sheet1!S71_SA34dCode,$AC:$AC,Sheet1!S71_DepCode,$AD:$AD)","v":0},{"$f":"SUMIFS(Sheet1!S71_OY2AdjustedBudget,Sheet1!S71_SA34dCode,$AC:$AC,Sheet1!S71_DepCode,$AD:$AD)","v":0},null,null,null,null,null,null,null,null,null,null,null,null,null,null,null,"0330","DP"]
["Pump Stations",null,{"$f":"SUMIFS(Sheet1!S71_OriginalBudget,Sheet1!S71_SA34dCode,$AC:$AC,Sheet1!S71_DepCode,$AD:$AD)","v":0},{"$f":"SUMIFS(Sheet1!S71_PreviousBudget,Sheet1!S71_SA34dCode,$AC:$AC,Sheet1!S71_DepCode,$AD:$AD)","v":0},null,null,null,null,{"$f":"SUMIFS(Sheet1!S71_CurrentAdjustments,Sheet1!S71_SA34dCode,$AC:$AC,Sheet1!S71_DepCode,$AD:$AD)","v":0},0,0,{"$f":"SUMIFS(Sheet1!S71_OY1AdjustedBudget,Sheet1!S71_SA34dCode,$AC:$AC,Sheet1!S71_DepCode,$AD:$AD)","v":0},{"$f":"SUMIFS(Sheet1!S71_OY2AdjustedBudget,Sheet1!S71_SA34dCode,$AC:$AC,Sheet1!S71_DepCode,$AD:$AD)","v":0},null,null,null,null,null,null,null,null,null,null,null,null,null,null,null,"0340","DP"]
["Water Treatment Works",null,{"$f":"SUMIFS(Sheet1!S71_OriginalBudget,Sheet1!S71_SA34dCode,$AC:$AC,Sheet1!S71_DepCode,$AD:$AD)","v":0},{"$f":"SUMIFS(Sheet1!S71_PreviousBudget,Sheet1!S71_SA34dCode,$AC:$AC,Sheet1!S71_DepCode,$AD:$AD)","v":0},null,null,null,null,{"$f":"SUMIFS(Sheet1!S71_CurrentAdjustments,Sheet1!S71_SA34dCode,$AC:$AC,Sheet1!S71_DepCode,$AD:$AD)","v":0},0,0,{"$f":"SUMIFS(Sheet1!S71_OY1AdjustedBudget,Sheet1!S71_SA34dCode,$AC:$AC,Sheet1!S71_DepCode,$AD:$AD)","v":0},{"$f":"SUMIFS(Sheet1!S71_OY2AdjustedBudget,Sheet1!S71_SA34dCode,$AC:$AC,Sheet1!S71_DepCode,$AD:$AD)","v":0},null,null,null,null,null,null,null,null,null,null,null,null,null,null,null,"0350","DP"]
["Bulk Mains",null,{"$f":"SUMIFS(Sheet1!S71_OriginalBudget,Sheet1!S71_SA34dCode,$AC:$AC,Sheet1!S71_DepCode,$AD:$AD)","v":0},{"$f":"SUMIFS(Sheet1!S71_PreviousBudget,Sheet1!S71_SA34dCode,$AC:$AC,Sheet1!S71_DepCode,$AD:$AD)","v":0},null,null,null,null,{"$f":"SUMIFS(Sheet1!S71_CurrentAdjustments,Sheet1!S71_SA34dCode,$AC:$AC,Sheet1!S71_DepCode,$AD:$AD)","v":0},0,0,{"$f":"SUMIFS(Sheet1!S71_OY1AdjustedBudget,Sheet1!S71_SA34dCode,$AC:$AC,Sheet1!S71_DepCode,$AD:$AD)","v":0},{"$f":"SUMIFS(Sheet1!S71_OY2AdjustedBudget,Sheet1!S71_SA34dCode,$AC:$AC,Sheet1!S71_DepCode,$AD:$AD)","v":0},null,null,null,null,null,null,null,null,null,null,null,null,null,null,null,"0360","DP"]
["Distribution",null,{"$f":"SUMIFS(Sheet1!S71_OriginalBudget,Sheet1!S71_SA34dCode,$AC:$AC,Sheet1!S71_DepCode,$AD:$AD)","v":0},{"$f":"SUMIFS(Sheet1!S71_PreviousBudget,Sheet1!S71_SA34dCode,$AC:$AC,Sheet1!S71_DepCode,$AD:$AD)","v":0},null,null,null,null,{"$f":"SUMIFS(Sheet1!S71_CurrentAdjustments,Sheet1!S71_SA34dCode,$AC:$AC,Sheet1!S71_DepCode,$AD:$AD)","v":0},0,0,{"$f":"SUMIFS(Sheet1!S71_OY1AdjustedBudget,Sheet1!S71_SA34dCode,$AC:$AC,Sheet1!S71_DepCode,$AD:$AD)","v":0},{"$f":"SUMIFS(Sheet1!S71_OY2AdjustedBudget,Sheet1!S71_SA34dCode,$AC:$AC,Sheet1!S71_DepCode,$AD:$AD)","v":0},null,null,null,null,null,null,null,null,null,null,null,null,null,null,null,"0370","DP"]
["Distribution Points",null,{"$f":"SUMIFS(Sheet1!S71_OriginalBudget,Sheet1!S71_SA34dCode,$AC:$AC,Sheet1!S71_DepCode,$AD:$AD)","v":0},{"$f":"SUMIFS(Sheet1!S71_PreviousBudget,Sheet1!S71_SA34dCode,$AC:$AC,Sheet1!S71_DepCode,$AD:$AD)","v":0},null,null,null,null,{"$f":"SUMIFS(Sheet1!S71_CurrentAdjustments,Sheet1!S71_SA34dCode,$AC:$AC,Sheet1!S71_DepCode,$AD:$AD)","v":0},0,0,{"$f":"SUMIFS(Sheet1!S71_OY1AdjustedBudget,Sheet1!S71_SA34dCode,$AC:$AC,Sheet1!S71_DepCode,$AD:$AD)","v":0},{"$f":"SUMIFS(Sheet1!S71_OY2AdjustedBudget,Sheet1!S71_SA34dCode,$AC:$AC,Sheet1!S71_DepCode,$AD:$AD)","v":0},null,null,null,null,null,null,null,null,null,null,null,null,null,null,null,"0380","DP"]
["PRV Stations",null,{"$f":"SUMIFS(Sheet1!S71_OriginalBudget,Sheet1!S71_SA34dCode,$AC:$AC,Sheet1!S71_DepCode,$AD:$AD)","v":0},{"$f":"SUMIFS(Sheet1!S71_PreviousBudget,Sheet1!S71_SA34dCode,$AC:$AC,Sheet1!S71_DepCode,$AD:$AD)","v":0},null,null,null,null,{"$f":"SUMIFS(Sheet1!S71_CurrentAdjustments,Sheet1!S71_SA34dCode,$AC:$AC,Sheet1!S71_DepCode,$AD:$AD)","v":0},0,0,{"$f":"SUMIFS(Sheet1!S71_OY1AdjustedBudget,Sheet1!S71_SA34dCode,$AC:$AC,Sheet1!S71_DepCode,$AD:$AD)","v":0},{"$f":"SUMIFS(Sheet1!S71_OY2AdjustedBudget,Sheet1!S71_SA34dCode,$AC:$AC,Sheet1!S71_DepCode,$AD:$AD)","v":0},null,null,null,null,null,null,null,null,null,null,null,null,null,null,null,"0390","DP"]
["Capital Spares",null,{"$f":"SUMIFS(Sheet1!S71_OriginalBudget,Sheet1!S71_SA34dCode,$AC:$AC,Sheet1!S71_DepCode,$AD:$AD)","v":0},{"$f":"SUMIFS(Sheet1!S71_PreviousBudget,Sheet1!S71_SA34dCode,$AC:$AC,Sheet1!S71_DepCode,$AD:$AD)","v":0},null,null,null,null,{"$f":"SUMIFS(Sheet1!S71_CurrentAdjustments,Sheet1!S71_SA34dCode,$AC:$AC,Sheet1!S71_DepCode,$AD:$AD)","v":0},0,0,{"$f":"SUMIFS(Sheet1!S71_OY1AdjustedBudget,Sheet1!S71_SA34dCode,$AC:$AC,Sheet1!S71_DepCode,$AD:$AD)","v":0},{"$f":"SUMIFS(Sheet1!S71_OY2AdjustedBudget,Sheet1!S71_SA34dCode,$AC:$AC,Sheet1!S71_DepCode,$AD:$AD)","v":0},null,null,null,null,null,null,null,null,null,null,null,null,null,null,null,"0400","DP"]
["Sanitation Infrastructure",null,{"$f":"SUM(C40:C45)","v":0},{"$f":"SUM(D40:D45)","v":0},0,0,0,0,0,0,0,0,0,null,null,null,null,null,null,null,null,null,null,null,null,null,null,null,null,"DP"]
["Pump Station",null,{"$f":"SUMIFS(Sheet1!S71_OriginalBudget,Sheet1!S71_SA34dCode,$AC:$AC,Sheet1!S71_DepCode,$AD:$AD)","v":0},{"$f":"SUMIFS(Sheet1!S71_PreviousBudget,Sheet1!S71_SA34dCode,$AC:$AC,Sheet1!S71_DepCode,$AD:$AD)","v":0},null,null,null,null,{"$f":"SUMIFS(Sheet1!S71_CurrentAdjustments,Sheet1!S71_SA34dCode,$AC:$AC,Sheet1!S71_DepCode,$AD:$AD)","v":0},0,0,{"$f":"SUMIFS(Sheet1!S71_OY1AdjustedBudget,Sheet1!S71_SA34dCode,$AC:$AC,Sheet1!S71_DepCode,$AD:$AD)","v":0},{"$f":"SUMIFS(Sheet1!S71_OY2AdjustedBudget,Sheet1!S71_SA34dCode,$AC:$AC,Sheet1!S71_DepCode,$AD:$AD)","v":0},null,null,null,null,null,null,null,null,null,null,null,null,null,null,null,"0420","DP"]
["Reticulation",null,{"$f":"SUMIFS(Sheet1!S71_OriginalBudget,Sheet1!S71_SA34dCode,$AC:$AC,Sheet1!S71_DepCode,$AD:$AD)","v":0},{"$f":"SUMIFS(Sheet1!S71_PreviousBudget,Sheet1!S71_SA34dCode,$AC:$AC,Sheet1!S71_DepCode,$AD:$AD)","v":0},null,null,null,null,{"$f":"SUMIFS(Sheet1!S71_CurrentAdjustments,Sheet1!S71_SA34dCode,$AC:$AC,Sheet1!S71_DepCode,$AD:$AD)","v":0},0,0,{"$f":"SUMIFS(Sheet1!S71_OY1AdjustedBudget,Sheet1!S71_SA34dCode,$AC:$AC,Sheet1!S71_DepCode,$AD:$AD)","v":0},{"$f":"SUMIFS(Sheet1!S71_OY2AdjustedBudget,Sheet1!S71_SA34dCode,$AC:$AC,Sheet1!S71_DepCode,$AD:$AD)","v":0},null,null,null,null,null,null,null,null,null,null,null,null,null,null,null,"0430","DP"]
["Waste Water Treatment Works",null,{"$f":"SUMIFS(Sheet1!S71_OriginalBudget,Sheet1!S71_SA34dCode,$AC:$AC,Sheet1!S71_DepCode,$AD:$AD)","v":0},{"$f":"SUMIFS(Sheet1!S71_PreviousBudget,Sheet1!S71_SA34dCode,$AC:$AC,Sheet1!S71_DepCode,$AD:$AD)","v":0},null,null,null,null,{"$f":"SUMIFS(Sheet1!S71_CurrentAdjustments,Sheet1!S71_SA34dCode,$AC:$AC,Sheet1!S71_DepCode,$AD:$AD)","v":0},0,0,{"$f":"SUMIFS(Sheet1!S71_OY1AdjustedBudget,Sheet1!S71_SA34dCode,$AC:$AC,Sheet1!S71_DepCode,$AD:$AD)","v":0},{"$f":"SUMIFS(Sheet1!S71_OY2AdjustedBudget,Sheet1!S71_SA34dCode,$AC:$AC,Sheet1!S71_DepCode,$AD:$AD)","v":0},null,null,null,null,null,null,null,null,null,null,null,null,null,null,null,"0440","DP"]
["Outfall Sewers",null,{"$f":"SUMIFS(Sheet1!S71_OriginalBudget,Sheet1!S71_SA34dCode,$AC:$AC,Sheet1!S71_DepCode,$AD:$AD)","v":0},{"$f":"SUMIFS(Sheet1!S71_PreviousBudget,Sheet1!S71_SA34dCode,$AC:$AC,Sheet1!S71_DepCode,$AD:$AD)","v":0},null,null,null,null,{"$f":"SUMIFS(Sheet1!S71_CurrentAdjustments,Sheet1!S71_SA34dCode,$AC:$AC,Sheet1!S71_DepCode,$AD:$AD)","v":0},0,0,{"$f":"SUMIFS(Sheet1!S71_OY1AdjustedBudget,Sheet1!S71_SA34dCode,$AC:$AC,Sheet1!S71_DepCode,$AD:$AD)","v":0},{"$f":"SUMIFS(Sheet1!S71_OY2AdjustedBudget,Sheet1!S71_SA34dCode,$AC:$AC,Sheet1!S71_DepCode,$AD:$AD)","v":0},null,null,null,null,null,null,null,null,null,null,null,null,null,null,null,"0450","DP"]
["Toilet Facilities",null,{"$f":"SUMIFS(Sheet1!S71_OriginalBudget,Sheet1!S71_SA34dCode,$AC:$AC,Sheet1!S71_DepCode,$AD:$AD)","v":0},{"$f":"SUMIFS(Sheet1!S71_PreviousBudget,Sheet1!S71_SA34dCode,$AC:$AC,Sheet1!S71_DepCode,$AD:$AD)","v":0},null,null,null,null,{"$f":"SUMIFS(Sheet1!S71_CurrentAdjustments,Sheet1!S71_SA34dCode,$AC:$AC,Sheet1!S71_DepCode,$AD:$AD)","v":0},0,0,{"$f":"SUMIFS(Sheet1!S71_OY1AdjustedBudget,Sheet1!S71_SA34dCode,$AC:$AC,Sheet1!S71_DepCode,$AD:$AD)","v":0},{"$f":"SUMIFS(Sheet1!S71_OY2AdjustedBudget,Sheet1!S71_SA34dCode,$AC:$AC,Sheet1!S71_DepCode,$AD:$AD)","v":0},null,null,null,null,null,null,null,null,null,null,null,null,null,null,null,"0460","DP"]
["Capital Spares",null,{"$f":"SUMIFS(Sheet1!S71_OriginalBudget,Sheet1!S71_SA34dCode,$AC:$AC,Sheet1!S71_DepCode,$AD:$AD)","v":0},{"$f":"SUMIFS(Sheet1!S71_PreviousBudget,Sheet1!S71_SA34dCode,$AC:$AC,Sheet1!S71_DepCode,$AD:$AD)","v":0},null,null,null,null,{"$f":"SUMIFS(Sheet1!S71_CurrentAdjustments,Sheet1!S71_SA34dCode,$AC:$AC,Sheet1!S71_DepCode,$AD:$AD)","v":0},0,0,{"$f":"SUMIFS(Sheet1!S71_OY1AdjustedBudget,Sheet1!S71_SA34dCode,$AC:$AC,Sheet1!S71_DepCode,$AD:$AD)","v":0},{"$f":"SUMIFS(Sheet1!S71_OY2AdjustedBudget,Sheet1!S71_SA34dCode,$AC:$AC,Sheet1!S71_DepCode,$AD:$AD)","v":0},null,null,null,null,null,null,null,null,null,null,null,null,null,null,null,"0470","DP"]
["Solid Waste Infrastructure",null,{"$f":"SUM(C47:C53)","v":0},{"$f":"SUM(D47:D53)","v":0},0,0,0,0,0,0,0,0,0,null,null,null,null,null,null,null,null,null,null,null,null,null,null,null,null,"DP"]
["Landfill Sites",null,{"$f":"SUMIFS(Sheet1!S71_OriginalBudget,Sheet1!S71_SA34dCode,$AC:$AC,Sheet1!S71_DepCode,$AD:$AD)","v":0},{"$f":"SUMIFS(Sheet1!S71_PreviousBudget,Sheet1!S71_SA34dCode,$AC:$AC,Sheet1!S71_DepCode,$AD:$AD)","v":0},null,null,null,null,{"$f":"SUMIFS(Sheet1!S71_CurrentAdjustments,Sheet1!S71_SA34dCode,$AC:$AC,Sheet1!S71_DepCode,$AD:$AD)","v":0},0,0,{"$f":"SUMIFS(Sheet1!S71_OY1AdjustedBudget,Sheet1!S71_SA34dCode,$AC:$AC,Sheet1!S71_DepCode,$AD:$AD)","v":0},{"$f":"SUMIFS(Sheet1!S71_OY2AdjustedBudget,Sheet1!S71_SA34dCode,$AC:$AC,Sheet1!S71_DepCode,$AD:$AD)","v":0},null,null,null,null,null,null,null,null,null,null,null,null,null,null,null,"0490","DP"]
["Waste Transfer Stations",null,{"$f":"SUMIFS(Sheet1!S71_OriginalBudget,Sheet1!S71_SA34dCode,$AC:$AC,Sheet1!S71_DepCode,$AD:$AD)","v":0},{"$f":"SUMIFS(Sheet1!S71_PreviousBudget,Sheet1!S71_SA34dCode,$AC:$AC,Sheet1!S71_DepCode,$AD:$AD)","v":0},null,null,null,null,{"$f":"SUMIFS(Sheet1!S71_CurrentAdjustments,Sheet1!S71_SA34dCode,$AC:$AC,Sheet1!S71_DepCode,$AD:$AD)","v":0},0,0,{"$f":"SUMIFS(Sheet1!S71_OY1AdjustedBudget,Sheet1!S71_SA34dCode,$AC:$AC,Sheet1!S71_DepCode,$AD:$AD)","v":0},{"$f":"SUMIFS(Sheet1!S71_OY2AdjustedBudget,Sheet1!S71_SA34dCode,$AC:$AC,Sheet1!S71_DepCode,$AD:$AD)","v":0},null,null,null,null,null,null,null,null,null,null,null,null,null,null,null,"0500","DP"]
["Waste Processing Facilities",null,{"$f":"SUMIFS(Sheet1!S71_OriginalBudget,Sheet1!S71_SA34dCode,$AC:$AC,Sheet1!S71_DepCode,$AD:$AD)","v":0},{"$f":"SUMIFS(Sheet1!S71_PreviousBudget,Sheet1!S71_SA34dCode,$AC:$AC,Sheet1!S71_DepCode,$AD:$AD)","v":0},null,null,null,null,{"$f":"SUMIFS(Sheet1!S71_CurrentAdjustments,Sheet1!S71_SA34dCode,$AC:$AC,Sheet1!S71_DepCode,$AD:$AD)","v":0},0,0,{"$f":"SUMIFS(Sheet1!S71_OY1AdjustedBudget,Sheet1!S71_SA34dCode,$AC:$AC,Sheet1!S71_DepCode,$AD:$AD)","v":0},{"$f":"SUMIFS(Sheet1!S71_OY2AdjustedBudget,Sheet1!S71_SA34dCode,$AC:$AC,Sheet1!S71_DepCode,$AD:$AD)","v":0},null,null,null,null,null,null,null,null,null,null,null,null,null,null,null,"0510","DP"]
["Waste Drop-off Points",null,{"$f":"SUMIFS(Sheet1!S71_OriginalBudget,Sheet1!S71_SA34dCode,$AC:$AC,Sheet1!S71_DepCode,$AD:$AD)","v":0},{"$f":"SUMIFS(Sheet1!S71_PreviousBudget,Sheet1!S71_SA34dCode,$AC:$AC,Sheet1!S71_DepCode,$AD:$AD)","v":0},null,null,null,null,{"$f":"SUMIFS(Sheet1!S71_CurrentAdjustments,Sheet1!S71_SA34dCode,$AC:$AC,Sheet1!S71_DepCode,$AD:$AD)","v":0},0,0,{"$f":"SUMIFS(Sheet1!S71_OY1AdjustedBudget,Sheet1!S71_SA34dCode,$AC:$AC,Sheet1!S71_DepCode,$AD:$AD)","v":0},{"$f":"SUMIFS(Sheet1!S71_OY2AdjustedBudget,Sheet1!S71_SA34dCode,$AC:$AC,Sheet1!S71_DepCode,$AD:$AD)","v":0},null,null,null,null,null,null,null,null,null,null,null,null,null,null,null,"0520","DP"]
["Waste Separation Facilities",null,{"$f":"SUMIFS(Sheet1!S71_OriginalBudget,Sheet1!S71_SA34dCode,$AC:$AC,Sheet1!S71_DepCode,$AD:$AD)","v":0},{"$f":"SUMIFS(Sheet1!S71_PreviousBudget,Sheet1!S71_SA34dCode,$AC:$AC,Sheet1!S71_DepCode,$AD:$AD)","v":0},null,null,null,null,{"$f":"SUMIFS(Sheet1!S71_CurrentAdjustments,Sheet1!S71_SA34dCode,$AC:$AC,Sheet1!S71_DepCode,$AD:$AD)","v":0},0,0,{"$f":"SUMIFS(Sheet1!S71_OY1AdjustedBudget,Sheet1!S71_SA34dCode,$AC:$AC,Sheet1!S71_DepCode,$AD:$AD)","v":0},{"$f":"SUMIFS(Sheet1!S71_OY2AdjustedBudget,Sheet1!S71_SA34dCode,$AC:$AC,Sheet1!S71_DepCode,$AD:$AD)","v":0},null,null,null,null,null,null,null,null,null,null,null,null,null,null,null,"0530","DP"]
["Electricity Generation Facilities",null,{"$f":"SUMIFS(Sheet1!S71_OriginalBudget,Sheet1!S71_SA34dCode,$AC:$AC,Sheet1!S71_DepCode,$AD:$AD)","v":0},{"$f":"SUMIFS(Sheet1!S71_PreviousBudget,Sheet1!S71_SA34dCode,$AC:$AC,Sheet1!S71_DepCode,$AD:$AD)","v":0},null,null,null,null,{"$f":"SUMIFS(Sheet1!S71_CurrentAdjustments,Sheet1!S71_SA34dCode,$AC:$AC,Sheet1!S71_DepCode,$AD:$AD)","v":0},0,0,{"$f":"SUMIFS(Sheet1!S71_OY1AdjustedBudget,Sheet1!S71_SA34dCode,$AC:$AC,Sheet1!S71_DepCode,$AD:$AD)","v":0},{"$f":"SUMIFS(Sheet1!S71_OY2AdjustedBudget,Sheet1!S71_SA34dCode,$AC:$AC,Sheet1!S71_DepCode,$AD:$AD)","v":0},null,null,null,null,null,null,null,null,null,null,null,null,null,null,null,"0540","DP"]
["Capital Spares",null,{"$f":"SUMIFS(Sheet1!S71_OriginalBudget,Sheet1!S71_SA34dCode,$AC:$AC,Sheet1!S71_DepCode,$AD:$AD)","v":0},{"$f":"SUMIFS(Sheet1!S71_PreviousBudget,Sheet1!S71_SA34dCode,$AC:$AC,Sheet1!S71_DepCode,$AD:$AD)","v":0},null,null,null,null,{"$f":"SUMIFS(Sheet1!S71_CurrentAdjustments,Sheet1!S71_SA34dCode,$AC:$AC,Sheet1!S71_DepCode,$AD:$AD)","v":0},0,0,{"$f":"SUMIFS(Sheet1!S71_OY1AdjustedBudget,Sheet1!S71_SA34dCode,$AC:$AC,Sheet1!S71_DepCode,$AD:$AD)","v":0},{"$f":"SUMIFS(Sheet1!S71_OY2AdjustedBudget,Sheet1!S71_SA34dCode,$AC:$AC,Sheet1!S71_DepCode,$AD:$AD)","v":0},null,null,null,null,null,null,null,null,null,null,null,null,null,null,null,"0550","DP"]
["Rail Infrastructure",null,{"$f":"SUM(C55:C63)","v":0},{"$f":"SUM(D55:D63)","v":0},0,0,0,0,0,0,0,0,0,null,null,null,null,null,null,null,null,null,null,null,null,null,null,null,null,"DP"]
["Rail Lines",null,{"$f":"SUMIFS(Sheet1!S71_OriginalBudget,Sheet1!S71_SA34dCode,$AC:$AC,Sheet1!S71_DepCode,$AD:$AD)","v":0},{"$f":"SUMIFS(Sheet1!S71_PreviousBudget,Sheet1!S71_SA34dCode,$AC:$AC,Sheet1!S71_DepCode,$AD:$AD)","v":0},null,null,null,null,{"$f":"SUMIFS(Sheet1!S71_CurrentAdjustments,Sheet1!S71_SA34dCode,$AC:$AC,Sheet1!S71_DepCode,$AD:$AD)","v":0},0,0,{"$f":"SUMIFS(Sheet1!S71_OY1AdjustedBudget,Sheet1!S71_SA34dCode,$AC:$AC,Sheet1!S71_DepCode,$AD:$AD)","v":0},{"$f":"SUMIFS(Sheet1!S71_OY2AdjustedBudget,Sheet1!S71_SA34dCode,$AC:$AC,Sheet1!S71_DepCode,$AD:$AD)","v":0},null,null,null,null,null,null,null,null,null,null,null,null,null,null,null,"0570","DP"]
["Rail Structures",null,{"$f":"SUMIFS(Sheet1!S71_OriginalBudget,Sheet1!S71_SA34dCode,$AC:$AC,Sheet1!S71_DepCode,$AD:$AD)","v":0},{"$f":"SUMIFS(Sheet1!S71_PreviousBudget,Sheet1!S71_SA34dCode,$AC:$AC,Sheet1!S71_DepCode,$AD:$AD)","v":0},null,null,null,null,{"$f":"SUMIFS(Sheet1!S71_CurrentAdjustments,Sheet1!S71_SA34dCode,$AC:$AC,Sheet1!S71_DepCode,$AD:$AD)","v":0},0,0,{"$f":"SUMIFS(Sheet1!S71_OY1AdjustedBudget,Sheet1!S71_SA34dCode,$AC:$AC,Sheet1!S71_DepCode,$AD:$AD)","v":0},{"$f":"SUMIFS(Sheet1!S71_OY2AdjustedBudget,Sheet1!S71_SA34dCode,$AC:$AC,Sheet1!S71_DepCode,$AD:$AD)","v":0},null,null,null,null,null,null,null,null,null,null,null,null,null,null,null,"0580","DP"]
["Rail Furniture",null,{"$f":"SUMIFS(Sheet1!S71_OriginalBudget,Sheet1!S71_SA34dCode,$AC:$AC,Sheet1!S71_DepCode,$AD:$AD)","v":0},{"$f":"SUMIFS(Sheet1!S71_PreviousBudget,Sheet1!S71_SA34dCode,$AC:$AC,Sheet1!S71_DepCode,$AD:$AD)","v":0},null,null,null,null,{"$f":"SUMIFS(Sheet1!S71_CurrentAdjustments,Sheet1!S71_SA34dCode,$AC:$AC,Sheet1!S71_DepCode,$AD:$AD)","v":0},0,0,{"$f":"SUMIFS(Sheet1!S71_OY1AdjustedBudget,Sheet1!S71_SA34dCode,$AC:$AC,Sheet1!S71_DepCode,$AD:$AD)","v":0},{"$f":"SUMIFS(Sheet1!S71_OY2AdjustedBudget,Sheet1!S71_SA34dCode,$AC:$AC,Sheet1!S71_DepCode,$AD:$AD)","v":0},null,null,null,null,null,null,null,null,null,null,null,null,null,null,null,"0590","DP"]
["Drainage Collection",null,{"$f":"SUMIFS(Sheet1!S71_OriginalBudget,Sheet1!S71_SA34dCode,$AC:$AC,Sheet1!S71_DepCode,$AD:$AD)","v":0},{"$f":"SUMIFS(Sheet1!S71_PreviousBudget,Sheet1!S71_SA34dCode,$AC:$AC,Sheet1!S71_DepCode,$AD:$AD)","v":0},null,null,null,null,{"$f":"SUMIFS(Sheet1!S71_CurrentAdjustments,Sheet1!S71_SA34dCode,$AC:$AC,Sheet1!S71_DepCode,$AD:$AD)","v":0},0,0,{"$f":"SUMIFS(Sheet1!S71_OY1AdjustedBudget,Sheet1!S71_SA34dCode,$AC:$AC,Sheet1!S71_DepCode,$AD:$AD)","v":0},{"$f":"SUMIFS(Sheet1!S71_OY2AdjustedBudget,Sheet1!S71_SA34dCode,$AC:$AC,Sheet1!S71_DepCode,$AD:$AD)","v":0},null,null,null,null,null,null,null,null,null,null,null,null,null,null,null,"0600","DP"]
["Storm water Conveyance",null,{"$f":"SUMIFS(Sheet1!S71_OriginalBudget,Sheet1!S71_SA34dCode,$AC:$AC,Sheet1!S71_DepCode,$AD:$AD)","v":0},{"$f":"SUMIFS(Sheet1!S71_PreviousBudget,Sheet1!S71_SA34dCode,$AC:$AC,Sheet1!S71_DepCode,$AD:$AD)","v":0},null,null,null,null,{"$f":"SUMIFS(Sheet1!S71_CurrentAdjustments,Sheet1!S71_SA34dCode,$AC:$AC,Sheet1!S71_DepCode,$AD:$AD)","v":0},0,0,{"$f":"SUMIFS(Sheet1!S71_OY1AdjustedBudget,Sheet1!S71_SA34dCode,$AC:$AC,Sheet1!S71_DepCode,$AD:$AD)","v":0},{"$f":"SUMIFS(Sheet1!S71_OY2AdjustedBudget,Sheet1!S71_SA34dCode,$AC:$AC,Sheet1!S71_DepCode,$AD:$AD)","v":0},null,null,null,null,null,null,null,null,null,null,null,null,null,null,null,"0610","DP"]
["Attenuation",null,{"$f":"SUMIFS(Sheet1!S71_OriginalBudget,Sheet1!S71_SA34dCode,$AC:$AC,Sheet1!S71_DepCode,$AD:$AD)","v":0},{"$f":"SUMIFS(Sheet1!S71_PreviousBudget,Sheet1!S71_SA34dCode,$AC:$AC,Sheet1!S71_DepCode,$AD:$AD)","v":0},null,null,null,null,{"$f":"SUMIFS(Sheet1!S71_CurrentAdjustments,Sheet1!S71_SA34dCode,$AC:$AC,Sheet1!S71_DepCode,$AD:$AD)","v":0},0,0,{"$f":"SUMIFS(Sheet1!S71_OY1AdjustedBudget,Sheet1!S71_SA34dCode,$AC:$AC,Sheet1!S71_DepCode,$AD:$AD)","v":0},{"$f":"SUMIFS(Sheet1!S71_OY2AdjustedBudget,Sheet1!S71_SA34dCode,$AC:$AC,Sheet1!S71_DepCode,$AD:$AD)","v":0},null,null,null,null,null,null,null,null,null,null,null,null,null,null,null,"0620","DP"]
["MV Substations",null,{"$f":"SUMIFS(Sheet1!S71_OriginalBudget,Sheet1!S71_SA34dCode,$AC:$AC,Sheet1!S71_DepCode,$AD:$AD)","v":0},{"$f":"SUMIFS(Sheet1!S71_PreviousBudget,Sheet1!S71_SA34dCode,$AC:$AC,Sheet1!S71_DepCode,$AD:$AD)","v":0},null,null,null,null,{"$f":"SUMIFS(Sheet1!S71_CurrentAdjustments,Sheet1!S71_SA34dCode,$AC:$AC,Sheet1!S71_DepCode,$AD:$AD)","v":0},0,0,{"$f":"SUMIFS(Sheet1!S71_OY1AdjustedBudget,Sheet1!S71_SA34dCode,$AC:$AC,Sheet1!S71_DepCode,$AD:$AD)","v":0},{"$f":"SUMIFS(Sheet1!S71_OY2AdjustedBudget,Sheet1!S71_SA34dCode,$AC:$AC,Sheet1!S71_DepCode,$AD:$AD)","v":0},null,null,null,null,null,null,null,null,null,null,null,null,null,null,null,"0630","DP"]
["LV Networks",null,{"$f":"SUMIFS(Sheet1!S71_OriginalBudget,Sheet1!S71_SA34dCode,$AC:$AC,Sheet1!S71_DepCode,$AD:$AD)","v":0},{"$f":"SUMIFS(Sheet1!S71_PreviousBudget,Sheet1!S71_SA34dCode,$AC:$AC,Sheet1!S71_DepCode,$AD:$AD)","v":0},null,null,null,null,{"$f":"SUMIFS(Sheet1!S71_CurrentAdjustments,Sheet1!S71_SA34dCode,$AC:$AC,Sheet1!S71_DepCode,$AD:$AD)","v":0},0,0,{"$f":"SUMIFS(Sheet1!S71_OY1AdjustedBudget,Sheet1!S71_SA34dCode,$AC:$AC,Sheet1!S71_DepCode,$AD:$AD)","v":0},{"$f":"SUMIFS(Sheet1!S71_OY2AdjustedBudget,Sheet1!S71_SA34dCode,$AC:$AC,Sheet1!S71_DepCode,$AD:$AD)","v":0},null,null,null,null,null,null,null,null,null,null,null,null,null,null,null,"0640","DP"]
["Capital Spares",null,{"$f":"SUMIFS(Sheet1!S71_OriginalBudget,Sheet1!S71_SA34dCode,$AC:$AC,Sheet1!S71_DepCode,$AD:$AD)","v":0},{"$f":"SUMIFS(Sheet1!S71_PreviousBudget,Sheet1!S71_SA34dCode,$AC:$AC,Sheet1!S71_DepCode,$AD:$AD)","v":0},null,null,null,null,{"$f":"SUMIFS(Sheet1!S71_CurrentAdjustments,Sheet1!S71_SA34dCode,$AC:$AC,Sheet1!S71_DepCode,$AD:$AD)","v":0},0,0,{"$f":"SUMIFS(Sheet1!S71_OY1AdjustedBudget,Sheet1!S71_SA34dCode,$AC:$AC,Sheet1!S71_DepCode,$AD:$AD)","v":0},{"$f":"SUMIFS(Sheet1!S71_OY2AdjustedBudget,Sheet1!S71_SA34dCode,$AC:$AC,Sheet1!S71_DepCode,$AD:$AD)","v":0},null,null,null,null,null,null,null,null,null,null,null,null,null,null,null,"0650","DP"]
["Coastal Infrastructure",null,{"$f":"SUM(C65:C69)","v":0},0,0,0,0,0,0,0,0,0,0,null,null,null,null,null,null,null,null,null,null,null,null,null,null,null,null,"DP"]
["Sand Pumps",null,{"$f":"SUMIFS(Sheet1!S71_OriginalBudget,Sheet1!S71_SA34dCode,$AC:$AC,Sheet1!S71_DepCode,$AD:$AD)","v":0},{"$f":"SUMIFS(Sheet1!S71_PreviousBudget,Sheet1!S71_SA34dCode,$AC:$AC,Sheet1!S71_DepCode,$AD:$AD)","v":0},null,null,null,null,{"$f":"SUMIFS(Sheet1!S71_CurrentAdjustments,Sheet1!S71_SA34dCode,$AC:$AC,Sheet1!S71_DepCode,$AD:$AD)","v":0},0,0,{"$f":"SUMIFS(Sheet1!S71_OY1AdjustedBudget,Sheet1!S71_SA34dCode,$AC:$AC,Sheet1!S71_DepCode,$AD:$AD)","v":0},{"$f":"SUMIFS(Sheet1!S71_OY2AdjustedBudget,Sheet1!S71_SA34dCode,$AC:$AC,Sheet1!S71_DepCode,$AD:$AD)","v":0},null,null,null,null,null,null,null,null,null,null,null,null,null,null,null,"0670","DP"]
["Piers",null,{"$f":"SUMIFS(Sheet1!S71_OriginalBudget,Sheet1!S71_SA34dCode,$AC:$AC,Sheet1!S71_DepCode,$AD:$AD)","v":0},{"$f":"SUMIFS(Sheet1!S71_PreviousBudget,Sheet1!S71_SA34dCode,$AC:$AC,Sheet1!S71_DepCode,$AD:$AD)","v":0},null,null,null,null,{"$f":"SUMIFS(Sheet1!S71_CurrentAdjustments,Sheet1!S71_SA34dCode,$AC:$AC,Sheet1!S71_DepCode,$AD:$AD)","v":0},0,0,{"$f":"SUMIFS(Sheet1!S71_OY1AdjustedBudget,Sheet1!S71_SA34dCode,$AC:$AC,Sheet1!S71_DepCode,$AD:$AD)","v":0},{"$f":"SUMIFS(Sheet1!S71_OY2AdjustedBudget,Sheet1!S71_SA34dCode,$AC:$AC,Sheet1!S71_DepCode,$AD:$AD)","v":0},null,null,null,null,null,null,null,null,null,null,null,null,null,null,null,"0680","DP"]
["Revetments",null,{"$f":"SUMIFS(Sheet1!S71_OriginalBudget,Sheet1!S71_SA34dCode,$AC:$AC,Sheet1!S71_DepCode,$AD:$AD)","v":0},{"$f":"SUMIFS(Sheet1!S71_PreviousBudget,Sheet1!S71_SA34dCode,$AC:$AC,Sheet1!S71_DepCode,$AD:$AD)","v":0},null,null,null,null,{"$f":"SUMIFS(Sheet1!S71_CurrentAdjustments,Sheet1!S71_SA34dCode,$AC:$AC,Sheet1!S71_DepCode,$AD:$AD)","v":0},0,0,{"$f":"SUMIFS(Sheet1!S71_OY1AdjustedBudget,Sheet1!S71_SA34dCode,$AC:$AC,Sheet1!S71_DepCode,$AD:$AD)","v":0},{"$f":"SUMIFS(Sheet1!S71_OY2AdjustedBudget,Sheet1!S71_SA34dCode,$AC:$AC,Sheet1!S71_DepCode,$AD:$AD)","v":0},null,null,null,null,null,null,null,null,null,null,null,null,null,null,null,"0690","DP"]
["Promenades",null,{"$f":"SUMIFS(Sheet1!S71_OriginalBudget,Sheet1!S71_SA34dCode,$AC:$AC,Sheet1!S71_DepCode,$AD:$AD)","v":0},{"$f":"SUMIFS(Sheet1!S71_PreviousBudget,Sheet1!S71_SA34dCode,$AC:$AC,Sheet1!S71_DepCode,$AD:$AD)","v":0},null,null,null,null,{"$f":"SUMIFS(Sheet1!S71_CurrentAdjustments,Sheet1!S71_SA34dCode,$AC:$AC,Sheet1!S71_DepCode,$AD:$AD)","v":0},0,0,{"$f":"SUMIFS(Sheet1!S71_OY1AdjustedBudget,Sheet1!S71_SA34dCode,$AC:$AC,Sheet1!S71_DepCode,$AD:$AD)","v":0},{"$f":"SUMIFS(Sheet1!S71_OY2AdjustedBudget,Sheet1!S71_SA34dCode,$AC:$AC,Sheet1!S71_DepCode,$AD:$AD)","v":0},null,null,null,null,null,null,null,null,null,null,null,null,null,null,null,"0700","DP"]
["Capital Spares",null,{"$f":"SUMIFS(Sheet1!S71_OriginalBudget,Sheet1!S71_SA34dCode,$AC:$AC,Sheet1!S71_DepCode,$AD:$AD)","v":0},{"$f":"SUMIFS(Sheet1!S71_PreviousBudget,Sheet1!S71_SA34dCode,$AC:$AC,Sheet1!S71_DepCode,$AD:$AD)","v":0},null,null,null,null,{"$f":"SUMIFS(Sheet1!S71_CurrentAdjustments,Sheet1!S71_SA34dCode,$AC:$AC,Sheet1!S71_DepCode,$AD:$AD)","v":0},0,0,{"$f":"SUMIFS(Sheet1!S71_OY1AdjustedBudget,Sheet1!S71_SA34dCode,$AC:$AC,Sheet1!S71_DepCode,$AD:$AD)","v":0},{"$f":"SUMIFS(Sheet1!S71_OY2AdjustedBudget,Sheet1!S71_SA34dCode,$AC:$AC,Sheet1!S71_DepCode,$AD:$AD)","v":0},null,null,null,null,null,null,null,null,null,null,null,null,null,null,null,"0710","DP"]
["Information and Communication Infrastructure",null,{"$f":"SUM(C71:C74)","v":0},0,0,0,0,0,0,0,0,0,0,null,null,null,null,null,null,null,null,null,null,null,null,null,null,null,null,"DP"]
["Data Centres",null,{"$f":"SUMIFS(Sheet1!S71_OriginalBudget,Sheet1!S71_SA34dCode,$AC:$AC,Sheet1!S71_DepCode,$AD:$AD)","v":0},{"$f":"SUMIFS(Sheet1!S71_PreviousBudget,Sheet1!S71_SA34dCode,$AC:$AC,Sheet1!S71_DepCode,$AD:$AD)","v":0},null,null,null,null,{"$f":"SUMIFS(Sheet1!S71_CurrentAdjustments,Sheet1!S71_SA34dCode,$AC:$AC,Sheet1!S71_DepCode,$AD:$AD)","v":0},0,0,{"$f":"SUMIFS(Sheet1!S71_OY1AdjustedBudget,Sheet1!S71_SA34dCode,$AC:$AC,Sheet1!S71_DepCode,$AD:$AD)","v":0},{"$f":"SUMIFS(Sheet1!S71_OY2AdjustedBudget,Sheet1!S71_SA34dCode,$AC:$AC,Sheet1!S71_DepCode,$AD:$AD)","v":0},null,null,null,null,null,null,null,null,null,null,null,null,null,null,null,"0730","DP"]
["Core Layers",null,{"$f":"SUMIFS(Sheet1!S71_OriginalBudget,Sheet1!S71_SA34dCode,$AC:$AC,Sheet1!S71_DepCode,$AD:$AD)","v":0},{"$f":"SUMIFS(Sheet1!S71_PreviousBudget,Sheet1!S71_SA34dCode,$AC:$AC,Sheet1!S71_DepCode,$AD:$AD)","v":0},null,null,null,null,{"$f":"SUMIFS(Sheet1!S71_CurrentAdjustments,Sheet1!S71_SA34dCode,$AC:$AC,Sheet1!S71_DepCode,$AD:$AD)","v":0},0,0,{"$f":"SUMIFS(Sheet1!S71_OY1AdjustedBudget,Sheet1!S71_SA34dCode,$AC:$AC,Sheet1!S71_DepCode,$AD:$AD)","v":0},{"$f":"SUMIFS(Sheet1!S71_OY2AdjustedBudget,Sheet1!S71_SA34dCode,$AC:$AC,Sheet1!S71_DepCode,$AD:$AD)","v":0},null,null,null,null,null,null,null,null,null,null,null,null,null,null,null,"0740","DP"]
["Distribution Layers",null,{"$f":"SUMIFS(Sheet1!S71_OriginalBudget,Sheet1!S71_SA34dCode,$AC:$AC,Sheet1!S71_DepCode,$AD:$AD)","v":0},{"$f":"SUMIFS(Sheet1!S71_PreviousBudget,Sheet1!S71_SA34dCode,$AC:$AC,Sheet1!S71_DepCode,$AD:$AD)","v":0},null,null,null,null,{"$f":"SUMIFS(Sheet1!S71_CurrentAdjustments,Sheet1!S71_SA34dCode,$AC:$AC,Sheet1!S71_DepCode,$AD:$AD)","v":0},{"$f":"SUM(E73:I73)","v":0},{"$f":"IF(D73=0,C73+J73,D73+J73)","v":0},{"$f":"SUMIFS(Sheet1!S71_OY1AdjustedBudget,Sheet1!S71_SA34dCode,$AC:$AC,Sheet1!S71_DepCode,$AD:$AD)","v":0},{"$f":"SUMIFS(Sheet1!S71_OY2AdjustedBudget,Sheet1!S71_SA34dCode,$AC:$AC,Sheet1!S71_DepCode,$AD:$AD)","v":0},null,null,null,null,null,null,null,null,null,null,null,null,null,null,null,"0750","DP"]
["Capital Spares",null,{"$f":"SUMIFS(Sheet1!S71_OriginalBudget,Sheet1!S71_SA34dCode,$AC:$AC,Sheet1!S71_DepCode,$AD:$AD)","v":0},{"$f":"SUMIFS(Sheet1!S71_PreviousBudget,Sheet1!S71_SA34dCode,$AC:$AC,Sheet1!S71_DepCode,$AD:$AD)","v":0},null,null,null,null,{"$f":"SUMIFS(Sheet1!S71_CurrentAdjustments,Sheet1!S71_SA34dCode,$AC:$AC,Sheet1!S71_DepCode,$AD:$AD)","v":0},0,0,{"$f":"SUMIFS(Sheet1!S71_OY1AdjustedBudget,Sheet1!S71_SA34dCode,$AC:$AC,Sheet1!S71_DepCode,$AD:$AD)","v":0},{"$f":"SUMIFS(Sheet1!S71_OY2AdjustedBudget,Sheet1!S71_SA34dCode,$AC:$AC,Sheet1!S71_DepCode,$AD:$AD)","v":0},null,null,null,null,null,null,null,null,null,null,null,null,null,null,null,"0760","DP"]
[null,null,null,null,null,null,null,null,null,null,null,null,null,null,null,null,null,null,null,null,null,null,null,null,null,null,null,null,null,"DP"]
["Community Assets",null,{"$f":"+C77+C100","v":3327120},{"$f":"+D77+D100","v":3327120},{"$f":"+E77+E100","v":0},0,0,0,0,0,3327120,3426938,3495477,null,null,null,null,null,null,null,null,null,null,null,null,null,null,null,null,"DP"]
["Community Facilities",null,{"$f":"SUM(C78:C99)","v":3327120},{"$f":"SUM(D78:D99)","v":3327120},{"$f":"SUM(E78:E99)","v":0},0,0,0,0,0,3327120,3426938,3495477,null,null,null,null,null,null,null,null,null,null,null,null,null,null,null,null,"DP"]
["Halls",null,{"$f":"SUMIFS(Sheet1!S71_OriginalBudget,Sheet1!S71_SA34dCode,$AC:$AC,Sheet1!S71_DepCode,$AD:$AD)","v":3327120},{"$f":"SUMIFS(Sheet1!S71_PreviousBudget,Sheet1!S71_SA34dCode,$AC:$AC,Sheet1!S71_DepCode,$AD:$AD)","v":3327120},null,null,null,null,{"$f":"SUMIFS(Sheet1!S71_CurrentAdjustments,Sheet1!S71_SA34dCode,$AC:$AC,Sheet1!S71_DepCode,$AD:$AD)","v":0},0,3327120,{"$f":"SUMIFS(Sheet1!S71_OY1AdjustedBudget,Sheet1!S71_SA34dCode,$AC:$AC,Sheet1!S71_DepCode,$AD:$AD)","v":3426938},{"$f":"SUMIFS(Sheet1!S71_OY2AdjustedBudget,Sheet1!S71_SA34dCode,$AC:$AC,Sheet1!S71_DepCode,$AD:$AD)","v":3495477},null,null,null,null,null,null,null,null,null,null,null,null,null,null,null,"0790","DP"]
["Centres",null,{"$f":"SUMIFS(Sheet1!S71_OriginalBudget,Sheet1!S71_SA34dCode,$AC:$AC,Sheet1!S71_DepCode,$AD:$AD)","v":0},{"$f":"SUMIFS(Sheet1!S71_PreviousBudget,Sheet1!S71_SA34dCode,$AC:$AC,Sheet1!S71_DepCode,$AD:$AD)","v":0},null,null,null,null,{"$f":"SUMIFS(Sheet1!S71_CurrentAdjustments,Sheet1!S71_SA34dCode,$AC:$AC,Sheet1!S71_DepCode,$AD:$AD)","v":0},0,0,{"$f":"SUMIFS(Sheet1!S71_OY1AdjustedBudget,Sheet1!S71_SA34dCode,$AC:$AC,Sheet1!S71_DepCode,$AD:$AD)","v":0},{"$f":"SUMIFS(Sheet1!S71_OY2AdjustedBudget,Sheet1!S71_SA34dCode,$AC:$AC,Sheet1!S71_DepCode,$AD:$AD)","v":0},null,null,null,null,null,null,null,null,null,null,null,null,null,null,null,"0800","DP"]
["Crèches",null,{"$f":"SUMIFS(Sheet1!S71_OriginalBudget,Sheet1!S71_SA34dCode,$AC:$AC,Sheet1!S71_DepCode,$AD:$AD)","v":0},{"$f":"SUMIFS(Sheet1!S71_PreviousBudget,Sheet1!S71_SA34dCode,$AC:$AC,Sheet1!S71_DepCode,$AD:$AD)","v":0},null,null,null,null,{"$f":"SUMIFS(Sheet1!S71_CurrentAdjustments,Sheet1!S71_SA34dCode,$AC:$AC,Sheet1!S71_DepCode,$AD:$AD)","v":0},0,0,{"$f":"SUMIFS(Sheet1!S71_OY1AdjustedBudget,Sheet1!S71_SA34dCode,$AC:$AC,Sheet1!S71_DepCode,$AD:$AD)","v":0},{"$f":"SUMIFS(Sheet1!S71_OY2AdjustedBudget,Sheet1!S71_SA34dCode,$AC:$AC,Sheet1!S71_DepCode,$AD:$AD)","v":0},null,null,null,null,null,null,null,null,null,null,null,null,null,null,null,"0810","DP"]
["Clinics/Care Centres",null,{"$f":"SUMIFS(Sheet1!S71_OriginalBudget,Sheet1!S71_SA34dCode,$AC:$AC,Sheet1!S71_DepCode,$AD:$AD)","v":0},{"$f":"SUMIFS(Sheet1!S71_PreviousBudget,Sheet1!S71_SA34dCode,$AC:$AC,Sheet1!S71_DepCode,$AD:$AD)","v":0},null,null,null,null,{"$f":"SUMIFS(Sheet1!S71_CurrentAdjustments,Sheet1!S71_SA34dCode,$AC:$AC,Sheet1!S71_DepCode,$AD:$AD)","v":0},0,0,{"$f":"SUMIFS(Sheet1!S71_OY1AdjustedBudget,Sheet1!S71_SA34dCode,$AC:$AC,Sheet1!S71_DepCode,$AD:$AD)","v":0},{"$f":"SUMIFS(Sheet1!S71_OY2AdjustedBudget,Sheet1!S71_SA34dCode,$AC:$AC,Sheet1!S71_DepCode,$AD:$AD)","v":0},null,null,null,null,null,null,null,null,null,null,null,null,null,null,null,"0820","DP"]
["Fire/Ambulance Stations",null,{"$f":"SUMIFS(Sheet1!S71_OriginalBudget,Sheet1!S71_SA34dCode,$AC:$AC,Sheet1!S71_DepCode,$AD:$AD)","v":0},{"$f":"SUMIFS(Sheet1!S71_PreviousBudget,Sheet1!S71_SA34dCode,$AC:$AC,Sheet1!S71_DepCode,$AD:$AD)","v":0},null,null,null,null,{"$f":"SUMIFS(Sheet1!S71_CurrentAdjustments,Sheet1!S71_SA34dCode,$AC:$AC,Sheet1!S71_DepCode,$AD:$AD)","v":0},0,0,{"$f":"SUMIFS(Sheet1!S71_OY1AdjustedBudget,Sheet1!S71_SA34dCode,$AC:$AC,Sheet1!S71_DepCode,$AD:$AD)","v":0},{"$f":"SUMIFS(Sheet1!S71_OY2AdjustedBudget,Sheet1!S71_SA34dCode,$AC:$AC,Sheet1!S71_DepCode,$AD:$AD)","v":0},null,null,null,null,null,null,null,null,null,null,null,null,null,null,null,"0830","DP"]
["Testing Stations",null,{"$f":"SUMIFS(Sheet1!S71_OriginalBudget,Sheet1!S71_SA34dCode,$AC:$AC,Sheet1!S71_DepCode,$AD:$AD)","v":0},{"$f":"SUMIFS(Sheet1!S71_PreviousBudget,Sheet1!S71_SA34dCode,$AC:$AC,Sheet1!S71_DepCode,$AD:$AD)","v":0},null,null,null,null,{"$f":"SUMIFS(Sheet1!S71_CurrentAdjustments,Sheet1!S71_SA34dCode,$AC:$AC,Sheet1!S71_DepCode,$AD:$AD)","v":0},0,0,{"$f":"SUMIFS(Sheet1!S71_OY1AdjustedBudget,Sheet1!S71_SA34dCode,$AC:$AC,Sheet1!S71_DepCode,$AD:$AD)","v":0},{"$f":"SUMIFS(Sheet1!S71_OY2AdjustedBudget,Sheet1!S71_SA34dCode,$AC:$AC,Sheet1!S71_DepCode,$AD:$AD)","v":0},null,null,null,null,null,null,null,null,null,null,null,null,null,null,null,"0840","DP"]
["Museums",null,{"$f":"SUMIFS(Sheet1!S71_OriginalBudget,Sheet1!S71_SA34dCode,$AC:$AC,Sheet1!S71_DepCode,$AD:$AD)","v":0},{"$f":"SUMIFS(Sheet1!S71_PreviousBudget,Sheet1!S71_SA34dCode,$AC:$AC,Sheet1!S71_DepCode,$AD:$AD)","v":0},null,null,null,null,{"$f":"SUMIFS(Sheet1!S71_CurrentAdjustments,Sheet1!S71_SA34dCode,$AC:$AC,Sheet1!S71_DepCode,$AD:$AD)","v":0},0,0,{"$f":"SUMIFS(Sheet1!S71_OY1AdjustedBudget,Sheet1!S71_SA34dCode,$AC:$AC,Sheet1!S71_DepCode,$AD:$AD)","v":0},{"$f":"SUMIFS(Sheet1!S71_OY2AdjustedBudget,Sheet1!S71_SA34dCode,$AC:$AC,Sheet1!S71_DepCode,$AD:$AD)","v":0},null,null,null,null,null,null,null,null,null,null,null,null,null,null,null,"0850","DP"]
["Galleries",null,{"$f":"SUMIFS(Sheet1!S71_OriginalBudget,Sheet1!S71_SA34dCode,$AC:$AC,Sheet1!S71_DepCode,$AD:$AD)","v":0},{"$f":"SUMIFS(Sheet1!S71_PreviousBudget,Sheet1!S71_SA34dCode,$AC:$AC,Sheet1!S71_DepCode,$AD:$AD)","v":0},null,null,null,null,{"$f":"SUMIFS(Sheet1!S71_CurrentAdjustments,Sheet1!S71_SA34dCode,$AC:$AC,Sheet1!S71_DepCode,$AD:$AD)","v":0},0,0,{"$f":"SUMIFS(Sheet1!S71_OY1AdjustedBudget,Sheet1!S71_SA34dCode,$AC:$AC,Sheet1!S71_DepCode,$AD:$AD)","v":0},{"$f":"SUMIFS(Sheet1!S71_OY2AdjustedBudget,Sheet1!S71_SA34dCode,$AC:$AC,Sheet1!S71_DepCode,$AD:$AD)","v":0},null,null,null,null,null,null,null,null,null,null,null,null,null,null,null,"0860","DP"]
["Theatres",null,{"$f":"SUMIFS(Sheet1!S71_OriginalBudget,Sheet1!S71_SA34dCode,$AC:$AC,Sheet1!S71_DepCode,$AD:$AD)","v":0},{"$f":"SUMIFS(Sheet1!S71_PreviousBudget,Sheet1!S71_SA34dCode,$AC:$AC,Sheet1!S71_DepCode,$AD:$AD)","v":0},null,null,null,null,{"$f":"SUMIFS(Sheet1!S71_CurrentAdjustments,Sheet1!S71_SA34dCode,$AC:$AC,Sheet1!S71_DepCode,$AD:$AD)","v":0},0,0,{"$f":"SUMIFS(Sheet1!S71_OY1AdjustedBudget,Sheet1!S71_SA34dCode,$AC:$AC,Sheet1!S71_DepCode,$AD:$AD)","v":0},{"$f":"SUMIFS(Sheet1!S71_OY2AdjustedBudget,Sheet1!S71_SA34dCode,$AC:$AC,Sheet1!S71_DepCode,$AD:$AD)","v":0},null,null,null,null,null,null,null,null,null,null,null,null,null,null,null,"0870","DP"]
["Libraries",null,{"$f":"SUMIFS(Sheet1!S71_OriginalBudget,Sheet1!S71_SA34dCode,$AC:$AC,Sheet1!S71_DepCode,$AD:$AD)","v":0},{"$f":"SUMIFS(Sheet1!S71_PreviousBudget,Sheet1!S71_SA34dCode,$AC:$AC,Sheet1!S71_DepCode,$AD:$AD)","v":0},null,null,null,null,{"$f":"SUMIFS(Sheet1!S71_CurrentAdjustments,Sheet1!S71_SA34dCode,$AC:$AC,Sheet1!S71_DepCode,$AD:$AD)","v":0},0,0,{"$f":"SUMIFS(Sheet1!S71_OY1AdjustedBudget,Sheet1!S71_SA34dCode,$AC:$AC,Sheet1!S71_DepCode,$AD:$AD)","v":0},{"$f":"SUMIFS(Sheet1!S71_OY2AdjustedBudget,Sheet1!S71_SA34dCode,$AC:$AC,Sheet1!S71_DepCode,$AD:$AD)","v":0},null,null,null,null,null,null,null,null,null,null,null,null,null,null,null,"0880","DP"]
["Cemeteries/Crematoria",null,{"$f":"SUMIFS(Sheet1!S71_OriginalBudget,Sheet1!S71_SA34dCode,$AC:$AC,Sheet1!S71_DepCode,$AD:$AD)","v":0},{"$f":"SUMIFS(Sheet1!S71_PreviousBudget,Sheet1!S71_SA34dCode,$AC:$AC,Sheet1!S71_DepCode,$AD:$AD)","v":0},null,null,null,null,{"$f":"SUMIFS(Sheet1!S71_CurrentAdjustments,Sheet1!S71_SA34dCode,$AC:$AC,Sheet1!S71_DepCode,$AD:$AD)","v":0},0,0,{"$f":"SUMIFS(Sheet1!S71_OY1AdjustedBudget,Sheet1!S71_SA34dCode,$AC:$AC,Sheet1!S71_DepCode,$AD:$AD)","v":0},{"$f":"SUMIFS(Sheet1!S71_OY2AdjustedBudget,Sheet1!S71_SA34dCode,$AC:$AC,Sheet1!S71_DepCode,$AD:$AD)","v":0},null,null,null,null,null,null,null,null,null,null,null,null,null,null,null,"0890","DP"]
["Police",null,{"$f":"SUMIFS(Sheet1!S71_OriginalBudget,Sheet1!S71_SA34dCode,$AC:$AC,Sheet1!S71_DepCode,$AD:$AD)","v":0},{"$f":"SUMIFS(Sheet1!S71_PreviousBudget,Sheet1!S71_SA34dCode,$AC:$AC,Sheet1!S71_DepCode,$AD:$AD)","v":0},null,null,null,null,{"$f":"SUMIFS(Sheet1!S71_CurrentAdjustments,Sheet1!S71_SA34dCode,$AC:$AC,Sheet1!S71_DepCode,$AD:$AD)","v":0},0,0,{"$f":"SUMIFS(Sheet1!S71_OY1AdjustedBudget,Sheet1!S71_SA34dCode,$AC:$AC,Sheet1!S71_DepCode,$AD:$AD)","v":0},{"$f":"SUMIFS(Sheet1!S71_OY2AdjustedBudget,Sheet1!S71_SA34dCode,$AC:$AC,Sheet1!S71_DepCode,$AD:$AD)","v":0},null,null,null,null,null,null,null,null,null,null,null,null,null,null,null,"0900","DP"]
["Purls",null,{"$f":"SUMIFS(Sheet1!S71_OriginalBudget,Sheet1!S71_SA34dCode,$AC:$AC,Sheet1!S71_DepCode,$AD:$AD)","v":0},{"$f":"SUMIFS(Sheet1!S71_PreviousBudget,Sheet1!S71_SA34dCode,$AC:$AC,Sheet1!S71_DepCode,$AD:$AD)","v":0},null,null,null,null,{"$f":"SUMIFS(Sheet1!S71_CurrentAdjustments,Sheet1!S71_SA34dCode,$AC:$AC,Sheet1!S71_DepCode,$AD:$AD)","v":0},0,0,{"$f":"SUMIFS(Sheet1!S71_OY1AdjustedBudget,Sheet1!S71_SA34dCode,$AC:$AC,Sheet1!S71_DepCode,$AD:$AD)","v":0},{"$f":"SUMIFS(Sheet1!S71_OY2AdjustedBudget,Sheet1!S71_SA34dCode,$AC:$AC,Sheet1!S71_DepCode,$AD:$AD)","v":0},null,null,null,null,null,null,null,null,null,null,null,null,null,null,null,"0910","DP"]
["Public Open Space",null,{"$f":"SUMIFS(Sheet1!S71_OriginalBudget,Sheet1!S71_SA34dCode,$AC:$AC,Sheet1!S71_DepCode,$AD:$AD)","v":0},{"$f":"SUMIFS(Sheet1!S71_PreviousBudget,Sheet1!S71_SA34dCode,$AC:$AC,Sheet1!S71_DepCode,$AD:$AD)","v":0},null,null,null,null,{"$f":"SUMIFS(Sheet1!S71_CurrentAdjustments,Sheet1!S71_SA34dCode,$AC:$AC,Sheet1!S71_DepCode,$AD:$AD)","v":0},0,0,{"$f":"SUMIFS(Sheet1!S71_OY1AdjustedBudget,Sheet1!S71_SA34dCode,$AC:$AC,Sheet1!S71_DepCode,$AD:$AD)","v":0},{"$f":"SUMIFS(Sheet1!S71_OY2AdjustedBudget,Sheet1!S71_SA34dCode,$AC:$AC,Sheet1!S71_DepCode,$AD:$AD)","v":0},null,null,null,null,null,null,null,null,null,null,null,null,null,null,null,"0920","DP"]
["Nature Reserves",null,{"$f":"SUMIFS(Sheet1!S71_OriginalBudget,Sheet1!S71_SA34dCode,$AC:$AC,Sheet1!S71_DepCode,$AD:$AD)","v":0},{"$f":"SUMIFS(Sheet1!S71_PreviousBudget,Sheet1!S71_SA34dCode,$AC:$AC,Sheet1!S71_DepCode,$AD:$AD)","v":0},null,null,null,null,{"$f":"SUMIFS(Sheet1!S71_CurrentAdjustments,Sheet1!S71_SA34dCode,$AC:$AC,Sheet1!S71_DepCode,$AD:$AD)","v":0},0,0,{"$f":"SUMIFS(Sheet1!S71_OY1AdjustedBudget,Sheet1!S71_SA34dCode,$AC:$AC,Sheet1!S71_DepCode,$AD:$AD)","v":0},{"$f":"SUMIFS(Sheet1!S71_OY2AdjustedBudget,Sheet1!S71_SA34dCode,$AC:$AC,Sheet1!S71_DepCode,$AD:$AD)","v":0},null,null,null,null,null,null,null,null,null,null,null,null,null,null,null,"0930","DP"]
["Public Ablution Facilities",null,{"$f":"SUMIFS(Sheet1!S71_OriginalBudget,Sheet1!S71_SA34dCode,$AC:$AC,Sheet1!S71_DepCode,$AD:$AD)","v":0},{"$f":"SUMIFS(Sheet1!S71_PreviousBudget,Sheet1!S71_SA34dCode,$AC:$AC,Sheet1!S71_DepCode,$AD:$AD)","v":0},null,null,null,null,{"$f":"SUMIFS(Sheet1!S71_CurrentAdjustments,Sheet1!S71_SA34dCode,$AC:$AC,Sheet1!S71_DepCode,$AD:$AD)","v":0},0,0,{"$f":"SUMIFS(Sheet1!S71_OY1AdjustedBudget,Sheet1!S71_SA34dCode,$AC:$AC,Sheet1!S71_DepCode,$AD:$AD)","v":0},{"$f":"SUMIFS(Sheet1!S71_OY2AdjustedBudget,Sheet1!S71_SA34dCode,$AC:$AC,Sheet1!S71_DepCode,$AD:$AD)","v":0},null,null,null,null,null,null,null,null,null,null,null,null,null,null,null,"0940","DP"]
["Markets",null,{"$f":"SUMIFS(Sheet1!S71_OriginalBudget,Sheet1!S71_SA34dCode,$AC:$AC,Sheet1!S71_DepCode,$AD:$AD)","v":0},{"$f":"SUMIFS(Sheet1!S71_PreviousBudget,Sheet1!S71_SA34dCode,$AC:$AC,Sheet1!S71_DepCode,$AD:$AD)","v":0},null,null,null,null,{"$f":"SUMIFS(Sheet1!S71_CurrentAdjustments,Sheet1!S71_SA34dCode,$AC:$AC,Sheet1!S71_DepCode,$AD:$AD)","v":0},0,0,{"$f":"SUMIFS(Sheet1!S71_OY1AdjustedBudget,Sheet1!S71_SA34dCode,$AC:$AC,Sheet1!S71_DepCode,$AD:$AD)","v":0},{"$f":"SUMIFS(Sheet1!S71_OY2AdjustedBudget,Sheet1!S71_SA34dCode,$AC:$AC,Sheet1!S71_DepCode,$AD:$AD)","v":0},null,null,null,null,null,null,null,null,null,null,null,null,null,null,null,"0950","DP"]
["Stalls",null,{"$f":"SUMIFS(Sheet1!S71_OriginalBudget,Sheet1!S71_SA34dCode,$AC:$AC,Sheet1!S71_DepCode,$AD:$AD)","v":0},{"$f":"SUMIFS(Sheet1!S71_PreviousBudget,Sheet1!S71_SA34dCode,$AC:$AC,Sheet1!S71_DepCode,$AD:$AD)","v":0},null,null,null,null,{"$f":"SUMIFS(Sheet1!S71_CurrentAdjustments,Sheet1!S71_SA34dCode,$AC:$AC,Sheet1!S71_DepCode,$AD:$AD)","v":0},0,0,{"$f":"SUMIFS(Sheet1!S71_OY1AdjustedBudget,Sheet1!S71_SA34dCode,$AC:$AC,Sheet1!S71_DepCode,$AD:$AD)","v":0},{"$f":"SUMIFS(Sheet1!S71_OY2AdjustedBudget,Sheet1!S71_SA34dCode,$AC:$AC,Sheet1!S71_DepCode,$AD:$AD)","v":0},null,null,null,null,null,null,null,null,null,null,null,null,null,null,null,"0960","DP"]
["Abattoirs",null,{"$f":"SUMIFS(Sheet1!S71_OriginalBudget,Sheet1!S71_SA34dCode,$AC:$AC,Sheet1!S71_DepCode,$AD:$AD)","v":0},{"$f":"SUMIFS(Sheet1!S71_PreviousBudget,Sheet1!S71_SA34dCode,$AC:$AC,Sheet1!S71_DepCode,$AD:$AD)","v":0},null,null,null,null,{"$f":"SUMIFS(Sheet1!S71_CurrentAdjustments,Sheet1!S71_SA34dCode,$AC:$AC,Sheet1!S71_DepCode,$AD:$AD)","v":0},0,0,{"$f":"SUMIFS(Sheet1!S71_OY1AdjustedBudget,Sheet1!S71_SA34dCode,$AC:$AC,Sheet1!S71_DepCode,$AD:$AD)","v":0},{"$f":"SUMIFS(Sheet1!S71_OY2AdjustedBudget,Sheet1!S71_SA34dCode,$AC:$AC,Sheet1!S71_DepCode,$AD:$AD)","v":0},null,null,null,null,null,null,null,null,null,null,null,null,null,null,null,"0970","DP"]
["Airports",null,{"$f":"SUMIFS(Sheet1!S71_OriginalBudget,Sheet1!S71_SA34dCode,$AC:$AC,Sheet1!S71_DepCode,$AD:$AD)","v":0},{"$f":"SUMIFS(Sheet1!S71_PreviousBudget,Sheet1!S71_SA34dCode,$AC:$AC,Sheet1!S71_DepCode,$AD:$AD)","v":0},null,null,null,null,{"$f":"SUMIFS(Sheet1!S71_CurrentAdjustments,Sheet1!S71_SA34dCode,$AC:$AC,Sheet1!S71_DepCode,$AD:$AD)","v":0},0,0,{"$f":"SUMIFS(Sheet1!S71_OY1AdjustedBudget,Sheet1!S71_SA34dCode,$AC:$AC,Sheet1!S71_DepCode,$AD:$AD)","v":0},{"$f":"SUMIFS(Sheet1!S71_OY2AdjustedBudget,Sheet1!S71_SA34dCode,$AC:$AC,Sheet1!S71_DepCode,$AD:$AD)","v":0},null,null,null,null,null,null,null,null,null,null,null,null,null,null,null,"0980","DP"]
["Taxi Ranks/Bus Terminals",null,{"$f":"SUMIFS(Sheet1!S71_OriginalBudget,Sheet1!S71_SA34dCode,$AC:$AC,Sheet1!S71_DepCode,$AD:$AD)","v":0},{"$f":"SUMIFS(Sheet1!S71_PreviousBudget,Sheet1!S71_SA34dCode,$AC:$AC,Sheet1!S71_DepCode,$AD:$AD)","v":0},null,null,null,null,{"$f":"SUMIFS(Sheet1!S71_CurrentAdjustments,Sheet1!S71_SA34dCode,$AC:$AC,Sheet1!S71_DepCode,$AD:$AD)","v":0},0,0,{"$f":"SUMIFS(Sheet1!S71_OY1AdjustedBudget,Sheet1!S71_SA34dCode,$AC:$AC,Sheet1!S71_DepCode,$AD:$AD)","v":0},{"$f":"SUMIFS(Sheet1!S71_OY2AdjustedBudget,Sheet1!S71_SA34dCode,$AC:$AC,Sheet1!S71_DepCode,$AD:$AD)","v":0},null,null,null,null,null,null,null,null,null,null,null,null,null,null,null,"0990","DP"]
["Capital Spares",null,{"$f":"SUMIFS(Sheet1!S71_OriginalBudget,Sheet1!S71_SA34dCode,$AC:$AC,Sheet1!S71_DepCode,$AD:$AD)","v":0},{"$f":"SUMIFS(Sheet1!S71_PreviousBudget,Sheet1!S71_SA34dCode,$AC:$AC,Sheet1!S71_DepCode,$AD:$AD)","v":0},null,null,null,null,{"$f":"SUMIFS(Sheet1!S71_CurrentAdjustments,Sheet1!S71_SA34dCode,$AC:$AC,Sheet1!S71_DepCode,$AD:$AD)","v":0},0,0,{"$f":"SUMIFS(Sheet1!S71_OY1AdjustedBudget,Sheet1!S71_SA34dCode,$AC:$AC,Sheet1!S71_DepCode,$AD:$AD)","v":0},{"$f":"SUMIFS(Sheet1!S71_OY2AdjustedBudget,Sheet1!S71_SA34dCode,$AC:$AC,Sheet1!S71_DepCode,$AD:$AD)","v":0},null,null,null,null,null,null,null,null,null,null,null,null,null,null,null,"1000","DP"]
["Sport and Recreation Facilities",null,{"$f":"SUM(C101:C103)","v":0},{"$f":"SUM(D101:D103)","v":0},0,0,0,0,0,0,0,0,0,null,null,null,null,null,null,null,null,null,null,null,null,null,null,null,null,"DP"]
["Indoor Facilities",null,{"$f":"SUMIFS(Sheet1!S71_OriginalBudget,Sheet1!S71_SA34dCode,$AC:$AC,Sheet1!S71_DepCode,$AD:$AD)","v":0},{"$f":"SUMIFS(Sheet1!S71_PreviousBudget,Sheet1!S71_SA34dCode,$AC:$AC,Sheet1!S71_DepCode,$AD:$AD)","v":0},null,null,null,null,{"$f":"SUMIFS(Sheet1!S71_CurrentAdjustments,Sheet1!S71_SA34dCode,$AC:$AC,Sheet1!S71_DepCode,$AD:$AD)","v":0},0,0,{"$f":"SUMIFS(Sheet1!S71_OY1AdjustedBudget,Sheet1!S71_SA34dCode,$AC:$AC,Sheet1!S71_DepCode,$AD:$AD)","v":0},{"$f":"SUMIFS(Sheet1!S71_OY2AdjustedBudget,Sheet1!S71_SA34dCode,$AC:$AC,Sheet1!S71_DepCode,$AD:$AD)","v":0},null,null,null,null,null,null,null,null,null,null,null,null,null,null,null,"1020","DP"]
["Outdoor Facilities",null,{"$f":"SUMIFS(Sheet1!S71_OriginalBudget,Sheet1!S71_SA34dCode,$AC:$AC,Sheet1!S71_DepCode,$AD:$AD)","v":0},{"$f":"SUMIFS(Sheet1!S71_PreviousBudget,Sheet1!S71_SA34dCode,$AC:$AC,Sheet1!S71_DepCode,$AD:$AD)","v":0},null,null,null,null,{"$f":"SUMIFS(Sheet1!S71_CurrentAdjustments,Sheet1!S71_SA34dCode,$AC:$AC,Sheet1!S71_DepCode,$AD:$AD)","v":0},0,0,{"$f":"SUMIFS(Sheet1!S71_OY1AdjustedBudget,Sheet1!S71_SA34dCode,$AC:$AC,Sheet1!S71_DepCode,$AD:$AD)","v":0},{"$f":"SUMIFS(Sheet1!S71_OY2AdjustedBudget,Sheet1!S71_SA34dCode,$AC:$AC,Sheet1!S71_DepCode,$AD:$AD)","v":0},null,null,null,null,null,null,null,null,null,null,null,null,null,null,null,"1030","DP"]
["Capital Spares",null,{"$f":"SUMIFS(Sheet1!S71_OriginalBudget,Sheet1!S71_SA34dCode,$AC:$AC,Sheet1!S71_DepCode,$AD:$AD)","v":0},{"$f":"SUMIFS(Sheet1!S71_PreviousBudget,Sheet1!S71_SA34dCode,$AC:$AC,Sheet1!S71_DepCode,$AD:$AD)","v":0},null,null,null,null,{"$f":"SUMIFS(Sheet1!S71_CurrentAdjustments,Sheet1!S71_SA34dCode,$AC:$AC,Sheet1!S71_DepCode,$AD:$AD)","v":0},0,0,{"$f":"SUMIFS(Sheet1!S71_OY1AdjustedBudget,Sheet1!S71_SA34dCode,$AC:$AC,Sheet1!S71_DepCode,$AD:$AD)","v":0},{"$f":"SUMIFS(Sheet1!S71_OY2AdjustedBudget,Sheet1!S71_SA34dCode,$AC:$AC,Sheet1!S71_DepCode,$AD:$AD)","v":0},null,null,null,null,null,null,null,null,null,null,null,null,null,null,null,"1040","DP"]
[null,null,null,null,null,null,null,null,null,null,null,null,null,null,null,null,null,null,null,null,null,null,null,null,null,null,null,null,null,"DP"]
["Heritage assets",null,{"$f":"SUM(C106:C110)","v":0},0,0,0,0,0,0,0,0,0,0,null,null,null,null,null,null,null,null,null,null,null,null,null,null,null,null,"DP"]
["Monuments",null,{"$f":"SUMIFS(Sheet1!S71_OriginalBudget,Sheet1!S71_SA34dCode,$AC:$AC,Sheet1!S71_DepCode,$AD:$AD)","v":0},{"$f":"SUMIFS(Sheet1!S71_PreviousBudget,Sheet1!S71_SA34dCode,$AC:$AC,Sheet1!S71_DepCode,$AD:$AD)","v":0},null,null,null,null,{"$f":"SUMIFS(Sheet1!S71_CurrentAdjustments,Sheet1!S71_SA34dCode,$AC:$AC,Sheet1!S71_DepCode,$AD:$AD)","v":0},0,0,{"$f":"SUMIFS(Sheet1!S71_OY1AdjustedBudget,Sheet1!S71_SA34dCode,$AC:$AC,Sheet1!S71_DepCode,$AD:$AD)","v":0},{"$f":"SUMIFS(Sheet1!S71_OY2AdjustedBudget,Sheet1!S71_SA34dCode,$AC:$AC,Sheet1!S71_DepCode,$AD:$AD)","v":0},null,null,null,null,null,null,null,null,null,null,null,null,null,null,null,"1060","DP"]
["Historic Buildings",null,{"$f":"SUMIFS(Sheet1!S71_OriginalBudget,Sheet1!S71_SA34dCode,$AC:$AC,Sheet1!S71_DepCode,$AD:$AD)","v":0},{"$f":"SUMIFS(Sheet1!S71_PreviousBudget,Sheet1!S71_SA34dCode,$AC:$AC,Sheet1!S71_DepCode,$AD:$AD)","v":0},null,null,null,null,{"$f":"SUMIFS(Sheet1!S71_CurrentAdjustments,Sheet1!S71_SA34dCode,$AC:$AC,Sheet1!S71_DepCode,$AD:$AD)","v":0},0,0,{"$f":"SUMIFS(Sheet1!S71_OY1AdjustedBudget,Sheet1!S71_SA34dCode,$AC:$AC,Sheet1!S71_DepCode,$AD:$AD)","v":0},{"$f":"SUMIFS(Sheet1!S71_OY2AdjustedBudget,Sheet1!S71_SA34dCode,$AC:$AC,Sheet1!S71_DepCode,$AD:$AD)","v":0},null,null,null,null,null,null,null,null,null,null,null,null,null,null,null,"1070","DP"]
["Works of Art",null,{"$f":"SUMIFS(Sheet1!S71_OriginalBudget,Sheet1!S71_SA34dCode,$AC:$AC,Sheet1!S71_DepCode,$AD:$AD)","v":0},{"$f":"SUMIFS(Sheet1!S71_PreviousBudget,Sheet1!S71_SA34dCode,$AC:$AC,Sheet1!S71_DepCode,$AD:$AD)","v":0},null,null,null,null,{"$f":"SUMIFS(Sheet1!S71_CurrentAdjustments,Sheet1!S71_SA34dCode,$AC:$AC,Sheet1!S71_DepCode,$AD:$AD)","v":0},0,0,{"$f":"SUMIFS(Sheet1!S71_OY1AdjustedBudget,Sheet1!S71_SA34dCode,$AC:$AC,Sheet1!S71_DepCode,$AD:$AD)","v":0},{"$f":"SUMIFS(Sheet1!S71_OY2AdjustedBudget,Sheet1!S71_SA34dCode,$AC:$AC,Sheet1!S71_DepCode,$AD:$AD)","v":0},null,null,null,null,null,null,null,null,null,null,null,null,null,null,null,"1080","DP"]
["Conservation Areas",null,{"$f":"SUMIFS(Sheet1!S71_OriginalBudget,Sheet1!S71_SA34dCode,$AC:$AC,Sheet1!S71_DepCode,$AD:$AD)","v":0},{"$f":"SUMIFS(Sheet1!S71_PreviousBudget,Sheet1!S71_SA34dCode,$AC:$AC,Sheet1!S71_DepCode,$AD:$AD)","v":0},null,null,null,null,{"$f":"SUMIFS(Sheet1!S71_CurrentAdjustments,Sheet1!S71_SA34dCode,$AC:$AC,Sheet1!S71_DepCode,$AD:$AD)","v":0},0,0,{"$f":"SUMIFS(Sheet1!S71_OY1AdjustedBudget,Sheet1!S71_SA34dCode,$AC:$AC,Sheet1!S71_DepCode,$AD:$AD)","v":0},{"$f":"SUMIFS(Sheet1!S71_OY2AdjustedBudget,Sheet1!S71_SA34dCode,$AC:$AC,Sheet1!S71_DepCode,$AD:$AD)","v":0},null,null,null,null,null,null,null,null,null,null,null,null,null,null,null,"1090","DP"]
["Other Heritage",null,{"$f":"SUMIFS(Sheet1!S71_OriginalBudget,Sheet1!S71_SA34dCode,$AC:$AC,Sheet1!S71_DepCode,$AD:$AD)","v":0},{"$f":"SUMIFS(Sheet1!S71_PreviousBudget,Sheet1!S71_SA34dCode,$AC:$AC,Sheet1!S71_DepCode,$AD:$AD)","v":0},null,null,null,null,{"$f":"SUMIFS(Sheet1!S71_CurrentAdjustments,Sheet1!S71_SA34dCode,$AC:$AC,Sheet1!S71_DepCode,$AD:$AD)","v":0},0,0,{"$f":"SUMIFS(Sheet1!S71_OY1AdjustedBudget,Sheet1!S71_SA34dCode,$AC:$AC,Sheet1!S71_DepCode,$AD:$AD)","v":0},{"$f":"SUMIFS(Sheet1!S71_OY2AdjustedBudget,Sheet1!S71_SA34dCode,$AC:$AC,Sheet1!S71_DepCode,$AD:$AD)","v":0},null,null,null,null,null,null,null,null,null,null,null,null,null,null,null,"1100","DP"]
[null,null,null,null,null,null,null,null,null,null,null,null,null,null,null,null,null,null,null,null,null,null,null,null,null,null,null,null,null,"DP"]
["Investment properties",null,{"$f":"+C113+C116","v":0},{"$f":"+D113+D116","v":0},0,0,0,0,0,0,0,{"$f":"+L113+L116","v":0},{"$f":"+M113+M116","v":0},null,null,null,null,null,null,null,null,null,null,null,null,null,null,null,null,"DP"]
["Revenue Generating",null,{"$f":"SUM(C114:C115)","v":0},{"$f":"SUM(D114:D115)","v":0},0,0,0,0,0,0,0,{"$f":"SUM(L114:L115)","v":0},{"$f":"SUM(M114:M115)","v":0},null,null,null,null,null,null,null,null,null,null,null,null,null,null,null,null,"DP"]
["Improved Property",null,{"$f":"SUMIFS(Sheet1!S71_OriginalBudget,Sheet1!S71_SA34dCode,$AC:$AC,Sheet1!S71_DepCode,$AD:$AD)","v":0},{"$f":"SUMIFS(Sheet1!S71_PreviousBudget,Sheet1!S71_SA34dCode,$AC:$AC,Sheet1!S71_DepCode,$AD:$AD)","v":0},null,null,null,null,{"$f":"SUMIFS(Sheet1!S71_CurrentAdjustments,Sheet1!S71_SA34dCode,$AC:$AC,Sheet1!S71_DepCode,$AD:$AD)","v":0},0,0,{"$f":"SUMIFS(Sheet1!S71_OY1AdjustedBudget,Sheet1!S71_SA34dCode,$AC:$AC,Sheet1!S71_DepCode,$AD:$AD)","v":0},{"$f":"SUMIFS(Sheet1!S71_OY2AdjustedBudget,Sheet1!S71_SA34dCode,$AC:$AC,Sheet1!S71_DepCode,$AD:$AD)","v":0},null,null,null,null,null,null,null,null,null,null,null,null,null,null,null,"1130","DP"]
["Unimproved Property",null,{"$f":"SUMIFS(Sheet1!S71_OriginalBudget,Sheet1!S71_SA34dCode,$AC:$AC,Sheet1!S71_DepCode,$AD:$AD)","v":0},{"$f":"SUMIFS(Sheet1!S71_PreviousBudget,Sheet1!S71_SA34dCode,$AC:$AC,Sheet1!S71_DepCode,$AD:$AD)","v":0},null,null,null,null,{"$f":"SUMIFS(Sheet1!S71_CurrentAdjustments,Sheet1!S71_SA34dCode,$AC:$AC,Sheet1!S71_DepCode,$AD:$AD)","v":0},0,0,{"$f":"SUMIFS(Sheet1!S71_OY1AdjustedBudget,Sheet1!S71_SA34dCode,$AC:$AC,Sheet1!S71_DepCode,$AD:$AD)","v":0},{"$f":"SUMIFS(Sheet1!S71_OY2AdjustedBudget,Sheet1!S71_SA34dCode,$AC:$AC,Sheet1!S71_DepCode,$AD:$AD)","v":0},null,null,null,null,null,null,null,null,null,null,null,null,null,null,null,"1140","DP"]
["Non-revenue Generating",null,{"$f":"SUM(C117:C118)","v":0},{"$f":"SUM(D117:D118)","v":0},{"$f":"SUM(E117:E118)","v":0},0,0,0,0,0,0,0,0,null,null,null,null,null,null,null,null,null,null,null,null,null,null,null,null,"DP"]
["Improved Property",null,{"$f":"SUMIFS(Sheet1!S71_OriginalBudget,Sheet1!S71_SA34dCode,$AC:$AC,Sheet1!S71_DepCode,$AD:$AD)","v":0},{"$f":"SUMIFS(Sheet1!S71_PreviousBudget,Sheet1!S71_SA34dCode,$AC:$AC,Sheet1!S71_DepCode,$AD:$AD)","v":0},null,null,null,null,{"$f":"SUMIFS(Sheet1!S71_CurrentAdjustments,Sheet1!S71_SA34dCode,$AC:$AC,Sheet1!S71_DepCode,$AD:$AD)","v":0},0,0,{"$f":"SUMIFS(Sheet1!S71_OY1AdjustedBudget,Sheet1!S71_SA34dCode,$AC:$AC,Sheet1!S71_DepCode,$AD:$AD)","v":0},{"$f":"SUMIFS(Sheet1!S71_OY2AdjustedBudget,Sheet1!S71_SA34dCode,$AC:$AC,Sheet1!S71_DepCode,$AD:$AD)","v":0},null,null,null,null,null,null,null,null,null,null,null,null,null,null,null,"1160","DP"]
["Unimproved Property",null,{"$f":"SUMIFS(Sheet1!S71_OriginalBudget,Sheet1!S71_SA34dCode,$AC:$AC,Sheet1!S71_DepCode,$AD:$AD)","v":0},{"$f":"SUMIFS(Sheet1!S71_PreviousBudget,Sheet1!S71_SA34dCode,$AC:$AC,Sheet1!S71_DepCode,$AD:$AD)","v":0},null,null,null,null,{"$f":"SUMIFS(Sheet1!S71_CurrentAdjustments,Sheet1!S71_SA34dCode,$AC:$AC,Sheet1!S71_DepCode,$AD:$AD)","v":0},0,0,{"$f":"SUMIFS(Sheet1!S71_OY1AdjustedBudget,Sheet1!S71_SA34dCode,$AC:$AC,Sheet1!S71_DepCode,$AD:$AD)","v":0},{"$f":"SUMIFS(Sheet1!S71_OY2AdjustedBudget,Sheet1!S71_SA34dCode,$AC:$AC,Sheet1!S71_DepCode,$AD:$AD)","v":0},null,null,null,null,null,null,null,null,null,null,null,null,null,null,null,"1170","DP"]
[null,null,null,null,null,null,null,null,null,null,null,null,null,null,null,null,null,null,null,null,null,null,null,null,null,null,null,null,null,"DP"]
["Other assets",null,{"$f":"+C121+C133","v":1465700},{"$f":"+D121+D133","v":1465700},0,0,0,0,0,0,1465700,{"$f":"+L121+L133","v":1509667},{"$f":"+M121+M133","v":1539860},null,null,null,null,null,null,null,null,null,null,null,null,null,null,null,null,"DP"]
["Operational Buildings",null,{"$f":"SUM(C122:C132)","v":0},{"$f":"SUM(D122:D132)","v":0},{"$f":"SUM(E122:E132)","v":0},0,0,0,0,0,0,0,0,null,null,null,null,null,null,null,null,null,null,null,null,null,null,null,null,"DP"]
["Municipal Offices",null,{"$f":"SUMIFS(Sheet1!S71_OriginalBudget,Sheet1!S71_SA34dCode,$AC:$AC,Sheet1!S71_DepCode,$AD:$AD)","v":0},{"$f":"SUMIFS(Sheet1!S71_PreviousBudget,Sheet1!S71_SA34dCode,$AC:$AC,Sheet1!S71_DepCode,$AD:$AD)","v":0},null,null,null,null,{"$f":"SUMIFS(Sheet1!S71_CurrentAdjustments,Sheet1!S71_SA34dCode,$AC:$AC,Sheet1!S71_DepCode,$AD:$AD)","v":0},0,0,{"$f":"SUMIFS(Sheet1!S71_OY1AdjustedBudget,Sheet1!S71_SA34dCode,$AC:$AC,Sheet1!S71_DepCode,$AD:$AD)","v":0},{"$f":"SUMIFS(Sheet1!S71_OY2AdjustedBudget,Sheet1!S71_SA34dCode,$AC:$AC,Sheet1!S71_DepCode,$AD:$AD)","v":0},null,null,null,null,null,null,null,null,null,null,null,null,null,null,null,"1200","DP"]
["Pay/Enquiry Points",null,{"$f":"SUMIFS(Sheet1!S71_OriginalBudget,Sheet1!S71_SA34dCode,$AC:$AC,Sheet1!S71_DepCode,$AD:$AD)","v":0},{"$f":"SUMIFS(Sheet1!S71_PreviousBudget,Sheet1!S71_SA34dCode,$AC:$AC,Sheet1!S71_DepCode,$AD:$AD)","v":0},null,null,null,null,{"$f":"SUMIFS(Sheet1!S71_CurrentAdjustments,Sheet1!S71_SA34dCode,$AC:$AC,Sheet1!S71_DepCode,$AD:$AD)","v":0},0,0,{"$f":"SUMIFS(Sheet1!S71_OY1AdjustedBudget,Sheet1!S71_SA34dCode,$AC:$AC,Sheet1!S71_DepCode,$AD:$AD)","v":0},{"$f":"SUMIFS(Sheet1!S71_OY2AdjustedBudget,Sheet1!S71_SA34dCode,$AC:$AC,Sheet1!S71_DepCode,$AD:$AD)","v":0},null,null,null,null,null,null,null,null,null,null,null,null,null,null,null,"1210","DP"]
["Building Plan Offices",null,{"$f":"SUMIFS(Sheet1!S71_OriginalBudget,Sheet1!S71_SA34dCode,$AC:$AC,Sheet1!S71_DepCode,$AD:$AD)","v":0},{"$f":"SUMIFS(Sheet1!S71_PreviousBudget,Sheet1!S71_SA34dCode,$AC:$AC,Sheet1!S71_DepCode,$AD:$AD)","v":0},null,null,null,null,{"$f":"SUMIFS(Sheet1!S71_CurrentAdjustments,Sheet1!S71_SA34dCode,$AC:$AC,Sheet1!S71_DepCode,$AD:$AD)","v":0},0,0,{"$f":"SUMIFS(Sheet1!S71_OY1AdjustedBudget,Sheet1!S71_SA34dCode,$AC:$AC,Sheet1!S71_DepCode,$AD:$AD)","v":0},{"$f":"SUMIFS(Sheet1!S71_OY2AdjustedBudget,Sheet1!S71_SA34dCode,$AC:$AC,Sheet1!S71_DepCode,$AD:$AD)","v":0},null,null,null,null,null,null,null,null,null,null,null,null,null,null,null,"1220","DP"]
["Workshops",null,{"$f":"SUMIFS(Sheet1!S71_OriginalBudget,Sheet1!S71_SA34dCode,$AC:$AC,Sheet1!S71_DepCode,$AD:$AD)","v":0},{"$f":"SUMIFS(Sheet1!S71_PreviousBudget,Sheet1!S71_SA34dCode,$AC:$AC,Sheet1!S71_DepCode,$AD:$AD)","v":0},null,null,null,null,{"$f":"SUMIFS(Sheet1!S71_CurrentAdjustments,Sheet1!S71_SA34dCode,$AC:$AC,Sheet1!S71_DepCode,$AD:$AD)","v":0},0,0,{"$f":"SUMIFS(Sheet1!S71_OY1AdjustedBudget,Sheet1!S71_SA34dCode,$AC:$AC,Sheet1!S71_DepCode,$AD:$AD)","v":0},{"$f":"SUMIFS(Sheet1!S71_OY2AdjustedBudget,Sheet1!S71_SA34dCode,$AC:$AC,Sheet1!S71_DepCode,$AD:$AD)","v":0},null,null,null,null,null,null,null,null,null,null,null,null,null,null,null,"1230","DP"]
["Yards",null,{"$f":"SUMIFS(Sheet1!S71_OriginalBudget,Sheet1!S71_SA34dCode,$AC:$AC,Sheet1!S71_DepCode,$AD:$AD)","v":0},{"$f":"SUMIFS(Sheet1!S71_PreviousBudget,Sheet1!S71_SA34dCode,$AC:$AC,Sheet1!S71_DepCode,$AD:$AD)","v":0},null,null,null,null,{"$f":"SUMIFS(Sheet1!S71_CurrentAdjustments,Sheet1!S71_SA34dCode,$AC:$AC,Sheet1!S71_DepCode,$AD:$AD)","v":0},0,0,{"$f":"SUMIFS(Sheet1!S71_OY1AdjustedBudget,Sheet1!S71_SA34dCode,$AC:$AC,Sheet1!S71_DepCode,$AD:$AD)","v":0},{"$f":"SUMIFS(Sheet1!S71_OY2AdjustedBudget,Sheet1!S71_SA34dCode,$AC:$AC,Sheet1!S71_DepCode,$AD:$AD)","v":0},null,null,null,null,null,null,null,null,null,null,null,null,null,null,null,"1240","DP"]
["Stores",null,{"$f":"SUMIFS(Sheet1!S71_OriginalBudget,Sheet1!S71_SA34dCode,$AC:$AC,Sheet1!S71_DepCode,$AD:$AD)","v":0},{"$f":"SUMIFS(Sheet1!S71_PreviousBudget,Sheet1!S71_SA34dCode,$AC:$AC,Sheet1!S71_DepCode,$AD:$AD)","v":0},null,null,null,null,{"$f":"SUMIFS(Sheet1!S71_CurrentAdjustments,Sheet1!S71_SA34dCode,$AC:$AC,Sheet1!S71_DepCode,$AD:$AD)","v":0},0,0,{"$f":"SUMIFS(Sheet1!S71_OY1AdjustedBudget,Sheet1!S71_SA34dCode,$AC:$AC,Sheet1!S71_DepCode,$AD:$AD)","v":0},{"$f":"SUMIFS(Sheet1!S71_OY2AdjustedBudget,Sheet1!S71_SA34dCode,$AC:$AC,Sheet1!S71_DepCode,$AD:$AD)","v":0},null,null,null,null,null,null,null,null,null,null,null,null,null,null,null,"1250","DP"]
["Laboratories",null,{"$f":"SUMIFS(Sheet1!S71_OriginalBudget,Sheet1!S71_SA34dCode,$AC:$AC,Sheet1!S71_DepCode,$AD:$AD)","v":0},{"$f":"SUMIFS(Sheet1!S71_PreviousBudget,Sheet1!S71_SA34dCode,$AC:$AC,Sheet1!S71_DepCode,$AD:$AD)","v":0},null,null,null,null,{"$f":"SUMIFS(Sheet1!S71_CurrentAdjustments,Sheet1!S71_SA34dCode,$AC:$AC,Sheet1!S71_DepCode,$AD:$AD)","v":0},0,0,{"$f":"SUMIFS(Sheet1!S71_OY1AdjustedBudget,Sheet1!S71_SA34dCode,$AC:$AC,Sheet1!S71_DepCode,$AD:$AD)","v":0},{"$f":"SUMIFS(Sheet1!S71_OY2AdjustedBudget,Sheet1!S71_SA34dCode,$AC:$AC,Sheet1!S71_DepCode,$AD:$AD)","v":0},null,null,null,null,null,null,null,null,null,null,null,null,null,null,null,"1260","DP"]
["Training Centres",null,{"$f":"SUMIFS(Sheet1!S71_OriginalBudget,Sheet1!S71_SA34dCode,$AC:$AC,Sheet1!S71_DepCode,$AD:$AD)","v":0},{"$f":"SUMIFS(Sheet1!S71_PreviousBudget,Sheet1!S71_SA34dCode,$AC:$AC,Sheet1!S71_DepCode,$AD:$AD)","v":0},null,null,null,null,{"$f":"SUMIFS(Sheet1!S71_CurrentAdjustments,Sheet1!S71_SA34dCode,$AC:$AC,Sheet1!S71_DepCode,$AD:$AD)","v":0},0,0,{"$f":"SUMIFS(Sheet1!S71_OY1AdjustedBudget,Sheet1!S71_SA34dCode,$AC:$AC,Sheet1!S71_DepCode,$AD:$AD)","v":0},{"$f":"SUMIFS(Sheet1!S71_OY2AdjustedBudget,Sheet1!S71_SA34dCode,$AC:$AC,Sheet1!S71_DepCode,$AD:$AD)","v":0},null,null,null,null,null,null,null,null,null,null,null,null,null,null,null,"1270","DP"]
["Manufacturing Plant",null,{"$f":"SUMIFS(Sheet1!S71_OriginalBudget,Sheet1!S71_SA34dCode,$AC:$AC,Sheet1!S71_DepCode,$AD:$AD)","v":0},{"$f":"SUMIFS(Sheet1!S71_PreviousBudget,Sheet1!S71_SA34dCode,$AC:$AC,Sheet1!S71_DepCode,$AD:$AD)","v":0},null,null,null,null,{"$f":"SUMIFS(Sheet1!S71_CurrentAdjustments,Sheet1!S71_SA34dCode,$AC:$AC,Sheet1!S71_DepCode,$AD:$AD)","v":0},0,0,{"$f":"SUMIFS(Sheet1!S71_OY1AdjustedBudget,Sheet1!S71_SA34dCode,$AC:$AC,Sheet1!S71_DepCode,$AD:$AD)","v":0},{"$f":"SUMIFS(Sheet1!S71_OY2AdjustedBudget,Sheet1!S71_SA34dCode,$AC:$AC,Sheet1!S71_DepCode,$AD:$AD)","v":0},null,null,null,null,null,null,null,null,null,null,null,null,null,null,null,"1280","DP"]
["Depots",null,{"$f":"SUMIFS(Sheet1!S71_OriginalBudget,Sheet1!S71_SA34dCode,$AC:$AC,Sheet1!S71_DepCode,$AD:$AD)","v":0},{"$f":"SUMIFS(Sheet1!S71_PreviousBudget,Sheet1!S71_SA34dCode,$AC:$AC,Sheet1!S71_DepCode,$AD:$AD)","v":0},null,null,null,null,{"$f":"SUMIFS(Sheet1!S71_CurrentAdjustments,Sheet1!S71_SA34dCode,$AC:$AC,Sheet1!S71_DepCode,$AD:$AD)","v":0},0,0,{"$f":"SUMIFS(Sheet1!S71_OY1AdjustedBudget,Sheet1!S71_SA34dCode,$AC:$AC,Sheet1!S71_DepCode,$AD:$AD)","v":0},{"$f":"SUMIFS(Sheet1!S71_OY2AdjustedBudget,Sheet1!S71_SA34dCode,$AC:$AC,Sheet1!S71_DepCode,$AD:$AD)","v":0},null,null,null,null,null,null,null,null,null,null,null,null,null,null,null,"1290","DP"]
["Capital Spares",null,{"$f":"SUMIFS(Sheet1!S71_OriginalBudget,Sheet1!S71_SA34dCode,$AC:$AC,Sheet1!S71_DepCode,$AD:$AD)","v":0},{"$f":"SUMIFS(Sheet1!S71_PreviousBudget,Sheet1!S71_SA34dCode,$AC:$AC,Sheet1!S71_DepCode,$AD:$AD)","v":0},null,null,null,null,{"$f":"SUMIFS(Sheet1!S71_CurrentAdjustments,Sheet1!S71_SA34dCode,$AC:$AC,Sheet1!S71_DepCode,$AD:$AD)","v":0},0,0,{"$f":"SUMIFS(Sheet1!S71_OY1AdjustedBudget,Sheet1!S71_SA34dCode,$AC:$AC,Sheet1!S71_DepCode,$AD:$AD)","v":0},{"$f":"SUMIFS(Sheet1!S71_OY2AdjustedBudget,Sheet1!S71_SA34dCode,$AC:$AC,Sheet1!S71_DepCode,$AD:$AD)","v":0},null,null,null,null,null,null,null,null,null,null,null,null,null,null,null,"1300","DP"]
["Housing",null,{"$f":"SUM(C134:C136)","v":1465700},{"$f":"SUM(D134:D136)","v":1465700},{"$f":"SUM(E134:E136)","v":0},0,0,0,0,0,1465700,1509667,1539860,null,null,null,null,null,null,null,null,null,null,null,null,null,null,null,null,"DP"]
["Staff Housing",null,{"$f":"SUMIFS(Sheet1!S71_OriginalBudget,Sheet1!S71_SA34dCode,$AC:$AC,Sheet1!S71_DepCode,$AD:$AD)","v":1465700},{"$f":"SUMIFS(Sheet1!S71_PreviousBudget,Sheet1!S71_SA34dCode,$AC:$AC,Sheet1!S71_DepCode,$AD:$AD)","v":1465700},null,null,null,null,{"$f":"SUMIFS(Sheet1!S71_CurrentAdjustments,Sheet1!S71_SA34dCode,$AC:$AC,Sheet1!S71_DepCode,$AD:$AD)","v":0},0,1465700,{"$f":"SUMIFS(Sheet1!S71_OY1AdjustedBudget,Sheet1!S71_SA34dCode,$AC:$AC,Sheet1!S71_DepCode,$AD:$AD)","v":1509667},{"$f":"SUMIFS(Sheet1!S71_OY2AdjustedBudget,Sheet1!S71_SA34dCode,$AC:$AC,Sheet1!S71_DepCode,$AD:$AD)","v":1539860},null,null,null,null,null,null,null,null,null,null,null,null,null,null,null,"1320","DP"]
["Social Housing",null,{"$f":"SUMIFS(Sheet1!S71_OriginalBudget,Sheet1!S71_SA34dCode,$AC:$AC,Sheet1!S71_DepCode,$AD:$AD)","v":0},{"$f":"SUMIFS(Sheet1!S71_PreviousBudget,Sheet1!S71_SA34dCode,$AC:$AC,Sheet1!S71_DepCode,$AD:$AD)","v":0},null,null,null,null,{"$f":"SUMIFS(Sheet1!S71_CurrentAdjustments,Sheet1!S71_SA34dCode,$AC:$AC,Sheet1!S71_DepCode,$AD:$AD)","v":0},0,0,{"$f":"SUMIFS(Sheet1!S71_OY1AdjustedBudget,Sheet1!S71_SA34dCode,$AC:$AC,Sheet1!S71_DepCode,$AD:$AD)","v":0},{"$f":"SUMIFS(Sheet1!S71_OY2AdjustedBudget,Sheet1!S71_SA34dCode,$AC:$AC,Sheet1!S71_DepCode,$AD:$AD)","v":0},null,null,null,null,null,null,null,null,null,null,null,null,null,null,null,"1330","DP"]
["Capital Spares",null,{"$f":"SUMIFS(Sheet1!S71_OriginalBudget,Sheet1!S71_SA34dCode,$AC:$AC,Sheet1!S71_DepCode,$AD:$AD)","v":0},{"$f":"SUMIFS(Sheet1!S71_PreviousBudget,Sheet1!S71_SA34dCode,$AC:$AC,Sheet1!S71_DepCode,$AD:$AD)","v":0},null,null,null,null,{"$f":"SUMIFS(Sheet1!S71_CurrentAdjustments,Sheet1!S71_SA34dCode,$AC:$AC,Sheet1!S71_DepCode,$AD:$AD)","v":0},0,0,{"$f":"SUMIFS(Sheet1!S71_OY1AdjustedBudget,Sheet1!S71_SA34dCode,$AC:$AC,Sheet1!S71_DepCode,$AD:$AD)","v":0},{"$f":"SUMIFS(Sheet1!S71_OY2AdjustedBudget,Sheet1!S71_SA34dCode,$AC:$AC,Sheet1!S71_DepCode,$AD:$AD)","v":0},null,null,null,null,null,null,null,null,null,null,null,null,null,null,null,"1340","DP"]
[null,null,null,null,null,null,null,null,null,null,null,null,null,null,null,null,null,null,null,null,null,null,null,null,null,null,null,null,null,"DP"]
["Biological or Cultivated Assets",null,{"$f":"SUM(C139:C139)","v":0},0,0,0,0,0,0,{"$f":"SUM(E138:I138)","v":0},{"$f":"IF(D138=0,C138+J138,D138+J138)","v":0},0,0,null,null,null,null,null,null,null,null,null,null,null,null,null,null,null,null,"DP"]
["Biological or Cultivated Assets",null,{"$f":"SUMIFS(Sheet1!S71_OriginalBudget,Sheet1!S71_SA34dCode,$AC:$AC,Sheet1!S71_DepCode,$AD:$AD)","v":0},{"$f":"SUMIFS(Sheet1!S71_PreviousBudget,Sheet1!S71_SA34dCode,$AC:$AC,Sheet1!S71_DepCode,$AD:$AD)","v":0},null,null,null,null,{"$f":"SUMIFS(Sheet1!S71_CurrentAdjustments,Sheet1!S71_SA34dCode,$AC:$AC,Sheet1!S71_DepCode,$AD:$AD)","v":0},0,0,{"$f":"SUMIFS(Sheet1!S71_OY1AdjustedBudget,Sheet1!S71_SA34dCode,$AC:$AC,Sheet1!S71_DepCode,$AD:$AD)","v":0},{"$f":"SUMIFS(Sheet1!S71_OY2AdjustedBudget,Sheet1!S71_SA34dCode,$AC:$AC,Sheet1!S71_DepCode,$AD:$AD)","v":0},null,null,null,null,null,null,null,null,null,null,null,null,null,null,null,"1360","DP"]
[null,null,null,null,null,null,null,null,null,null,null,null,null,null,null,null,null,null,null,null,null,null,null,null,null,null,null,null,null,"DP"]
["Intangible Assets",null,{"$f":"SUM(C142:C143)","v":363900},{"$f":"SUM(D142:D143)","v":363900},{"$f":"SUM(E142:E143)","v":0},0,0,0,0,0,363900,374820,382316,null,null,null,null,null,null,null,null,null,null,null,null,null,null,null,null,"DP"]
["Servitudes",null,{"$f":"SUMIFS(Sheet1!S71_OriginalBudget,Sheet1!S71_SA34dCode,$AC:$AC,Sheet1!S71_DepCode,$AD:$AD)","v":0},{"$f":"SUMIFS(Sheet1!S71_PreviousBudget,Sheet1!S71_SA34dCode,$AC:$AC,Sheet1!S71_DepCode,$AD:$AD)","v":0},null,null,null,null,{"$f":"SUMIFS(Sheet1!S71_CurrentAdjustments,Sheet1!S71_SA34dCode,$AC:$AC,Sheet1!S71_DepCode,$AD:$AD)","v":0},0,0,{"$f":"SUMIFS(Sheet1!S71_OY1AdjustedBudget,Sheet1!S71_SA34dCode,$AC:$AC,Sheet1!S71_DepCode,$AD:$AD)","v":0},{"$f":"SUMIFS(Sheet1!S71_OY2AdjustedBudget,Sheet1!S71_SA34dCode,$AC:$AC,Sheet1!S71_DepCode,$AD:$AD)","v":0},null,null,null,null,null,null,null,null,null,null,null,null,null,null,null,"1380","DP"]
["Licences and Rights",null,{"$f":"SUM(C144:C149)","v":363900},{"$f":"SUM(D144:D149)","v":363900},{"$f":"SUM(E144:E149)","v":0},0,0,0,0,0,363900,374820,382316,null,null,null,null,null,null,null,null,null,null,null,null,null,null,null,null,"DP"]
["Water Rights",null,{"$f":"SUMIFS(Sheet1!S71_OriginalBudget,Sheet1!S71_SA34dCode,$AC:$AC,Sheet1!S71_DepCode,$AD:$AD)","v":0},{"$f":"SUMIFS(Sheet1!S71_PreviousBudget,Sheet1!S71_SA34dCode,$AC:$AC,Sheet1!S71_DepCode,$AD:$AD)","v":0},null,null,null,null,{"$f":"SUMIFS(Sheet1!S71_CurrentAdjustments,Sheet1!S71_SA34dCode,$AC:$AC,Sheet1!S71_DepCode,$AD:$AD)","v":0},0,0,{"$f":"SUMIFS(Sheet1!S71_OY1AdjustedBudget,Sheet1!S71_SA34dCode,$AC:$AC,Sheet1!S71_DepCode,$AD:$AD)","v":0},{"$f":"SUMIFS(Sheet1!S71_OY2AdjustedBudget,Sheet1!S71_SA34dCode,$AC:$AC,Sheet1!S71_DepCode,$AD:$AD)","v":0},null,null,null,null,null,null,null,null,null,null,null,null,null,null,null,"1400","DP"]
["Effluent Licenses",null,{"$f":"SUMIFS(Sheet1!S71_OriginalBudget,Sheet1!S71_SA34dCode,$AC:$AC,Sheet1!S71_DepCode,$AD:$AD)","v":0},{"$f":"SUMIFS(Sheet1!S71_PreviousBudget,Sheet1!S71_SA34dCode,$AC:$AC,Sheet1!S71_DepCode,$AD:$AD)","v":0},null,null,null,null,{"$f":"SUMIFS(Sheet1!S71_CurrentAdjustments,Sheet1!S71_SA34dCode,$AC:$AC,Sheet1!S71_DepCode,$AD:$AD)","v":0},0,0,{"$f":"SUMIFS(Sheet1!S71_OY1AdjustedBudget,Sheet1!S71_SA34dCode,$AC:$AC,Sheet1!S71_DepCode,$AD:$AD)","v":0},{"$f":"SUMIFS(Sheet1!S71_OY2AdjustedBudget,Sheet1!S71_SA34dCode,$AC:$AC,Sheet1!S71_DepCode,$AD:$AD)","v":0},null,null,null,null,null,null,null,null,null,null,null,null,null,null,null,"1410","DP"]
["Solid Waste Licenses",null,{"$f":"SUMIFS(Sheet1!S71_OriginalBudget,Sheet1!S71_SA34dCode,$AC:$AC,Sheet1!S71_DepCode,$AD:$AD)","v":0},{"$f":"SUMIFS(Sheet1!S71_PreviousBudget,Sheet1!S71_SA34dCode,$AC:$AC,Sheet1!S71_DepCode,$AD:$AD)","v":0},null,null,null,null,{"$f":"SUMIFS(Sheet1!S71_CurrentAdjustments,Sheet1!S71_SA34dCode,$AC:$AC,Sheet1!S71_DepCode,$AD:$AD)","v":0},0,0,{"$f":"SUMIFS(Sheet1!S71_OY1AdjustedBudget,Sheet1!S71_SA34dCode,$AC:$AC,Sheet1!S71_DepCode,$AD:$AD)","v":0},{"$f":"SUMIFS(Sheet1!S71_OY2AdjustedBudget,Sheet1!S71_SA34dCode,$AC:$AC,Sheet1!S71_DepCode,$AD:$AD)","v":0},null,null,null,null,null,null,null,null,null,null,null,null,null,null,null,"1420","DP"]
["Computer Software and Applications",null,{"$f":"SUMIFS(Sheet1!S71_OriginalBudget,Sheet1!S71_SA34dCode,$AC:$AC,Sheet1!S71_DepCode,$AD:$AD)","v":363900},{"$f":"SUMIFS(Sheet1!S71_PreviousBudget,Sheet1!S71_SA34dCode,$AC:$AC,Sheet1!S71_DepCode,$AD:$AD)","v":363900},null,null,null,null,{"$f":"SUMIFS(Sheet1!S71_CurrentAdjustments,Sheet1!S71_SA34dCode,$AC:$AC,Sheet1!S71_DepCode,$AD:$AD)","v":0},0,363900,{"$f":"SUMIFS(Sheet1!S71_OY1AdjustedBudget,Sheet1!S71_SA34dCode,$AC:$AC,Sheet1!S71_DepCode,$AD:$AD)","v":374820},{"$f":"SUMIFS(Sheet1!S71_OY2AdjustedBudget,Sheet1!S71_SA34dCode,$AC:$AC,Sheet1!S71_DepCode,$AD:$AD)","v":382316},null,null,null,null,null,null,null,null,null,null,null,null,null,null,null,"1430","DP"]
["Load Settlement Software Applications",null,{"$f":"SUMIFS(Sheet1!S71_OriginalBudget,Sheet1!S71_SA34dCode,$AC:$AC,Sheet1!S71_DepCode,$AD:$AD)","v":0},{"$f":"SUMIFS(Sheet1!S71_PreviousBudget,Sheet1!S71_SA34dCode,$AC:$AC,Sheet1!S71_DepCode,$AD:$AD)","v":0},null,null,null,null,{"$f":"SUMIFS(Sheet1!S71_CurrentAdjustments,Sheet1!S71_SA34dCode,$AC:$AC,Sheet1!S71_DepCode,$AD:$AD)","v":0},0,0,{"$f":"SUMIFS(Sheet1!S71_OY1AdjustedBudget,Sheet1!S71_SA34dCode,$AC:$AC,Sheet1!S71_DepCode,$AD:$AD)","v":0},{"$f":"SUMIFS(Sheet1!S71_OY2AdjustedBudget,Sheet1!S71_SA34dCode,$AC:$AC,Sheet1!S71_DepCode,$AD:$AD)","v":0},null,null,null,null,null,null,null,null,null,null,null,null,null,null,null,"1440","DP"]
["Unspecified",null,{"$f":"SUMIFS(Sheet1!S71_OriginalBudget,Sheet1!S71_SA34dCode,$AC:$AC,Sheet1!S71_DepCode,$AD:$AD)","v":0},{"$f":"SUMIFS(Sheet1!S71_PreviousBudget,Sheet1!S71_SA34dCode,$AC:$AC,Sheet1!S71_DepCode,$AD:$AD)","v":0},null,null,null,null,{"$f":"SUMIFS(Sheet1!S71_CurrentAdjustments,Sheet1!S71_SA34dCode,$AC:$AC,Sheet1!S71_DepCode,$AD:$AD)","v":0},0,0,{"$f":"SUMIFS(Sheet1!S71_OY1AdjustedBudget,Sheet1!S71_SA34dCode,$AC:$AC,Sheet1!S71_DepCode,$AD:$AD)","v":0},{"$f":"SUMIFS(Sheet1!S71_OY2AdjustedBudget,Sheet1!S71_SA34dCode,$AC:$AC,Sheet1!S71_DepCode,$AD:$AD)","v":0},null,null,null,null,null,null,null,null,null,null,null,null,null,null,null,"1450","DP"]
[null,null,null,null,null,null,null,null,null,null,null,null,null,null,null,null,null,null,null,null,null,null,null,null,null,null,null,null,null,"DP"]
["Computer Equipment",null,{"$f":"SUM(C152:C152)","v":1469940},1469940,0,0,0,0,0,0,1469940,1514036,1544317,null,null,null,null,null,null,null,null,null,null,null,null,null,null,null,null,"DP"]
["Computer Equipment",null,{"$f":"SUMIFS(Sheet1!S71_OriginalBudget,Sheet1!S71_SA34dCode,$AC:$AC,Sheet1!S71_DepCode,$AD:$AD)","v":1469940},{"$f":"SUMIFS(Sheet1!S71_PreviousBudget,Sheet1!S71_SA34dCode,$AC:$AC,Sheet1!S71_DepCode,$AD:$AD)","v":1469940},null,null,null,null,{"$f":"SUMIFS(Sheet1!S71_CurrentAdjustments,Sheet1!S71_SA34dCode,$AC:$AC,Sheet1!S71_DepCode,$AD:$AD)","v":0},0,1469940,{"$f":"SUMIFS(Sheet1!S71_OY1AdjustedBudget,Sheet1!S71_SA34dCode,$AC:$AC,Sheet1!S71_DepCode,$AD:$AD)","v":1514036},{"$f":"SUMIFS(Sheet1!S71_OY2AdjustedBudget,Sheet1!S71_SA34dCode,$AC:$AC,Sheet1!S71_DepCode,$AD:$AD)","v":1544317},null,null,null,null,null,null,null,null,null,null,null,null,null,null,null,"1470","DP"]
[null,null,null,null,null,null,null,null,null,null,null,null,null,null,null,null,null,null,null,null,null,null,null,null,null,null,null,null,null,"DP"]
["Furniture and Office Equipment",null,{"$f":"SUM(C155:C155)","v":956350},956350,0,0,0,0,0,0,956350,985041,1004741,null,null,null,null,null,null,null,null,null,null,null,null,null,null,null,null,"DP"]
["Furniture and Office Equipment",null,{"$f":"SUMIFS(Sheet1!S71_OriginalBudget,Sheet1!S71_SA34dCode,$AC:$AC,Sheet1!S71_DepCode,$AD:$AD)","v":956350},{"$f":"SUMIFS(Sheet1!S71_PreviousBudget,Sheet1!S71_SA34dCode,$AC:$AC,Sheet1!S71_DepCode,$AD:$AD)","v":956350},null,null,null,null,{"$f":"SUMIFS(Sheet1!S71_CurrentAdjustments,Sheet1!S71_SA34dCode,$AC:$AC,Sheet1!S71_DepCode,$AD:$AD)","v":0},0,956350,{"$f":"SUMIFS(Sheet1!S71_OY1AdjustedBudget,Sheet1!S71_SA34dCode,$AC:$AC,Sheet1!S71_DepCode,$AD:$AD)","v":985041},{"$f":"SUMIFS(Sheet1!S71_OY2AdjustedBudget,Sheet1!S71_SA34dCode,$AC:$AC,Sheet1!S71_DepCode,$AD:$AD)","v":1004741},null,null,null,null,null,null,null,null,null,null,null,null,null,null,null,"1490","DP"]
[null,null,null,null,null,null,null,null,null,null,null,null,null,null,null,null,null,null,null,null,null,null,null,null,null,null,null,null,null,"DP"]
["Machinery and Equipment",null,{"$f":"SUM(C158:C158)","v":3288200},3288200,0,0,0,0,0,0,3288200,3386841,3454578,null,null,null,null,null,null,null,null,null,null,null,null,null,null,null,null,"DP"]
["Machinery and Equipment",null,{"$f":"SUMIFS(Sheet1!S71_OriginalBudget,Sheet1!S71_SA34dCode,$AC:$AC,Sheet1!S71_DepCode,$AD:$AD)","v":3288200},{"$f":"SUMIFS(Sheet1!S71_PreviousBudget,Sheet1!S71_SA34dCode,$AC:$AC,Sheet1!S71_DepCode,$AD:$AD)","v":3288200},null,null,null,null,{"$f":"SUMIFS(Sheet1!S71_CurrentAdjustments,Sheet1!S71_SA34dCode,$AC:$AC,Sheet1!S71_DepCode,$AD:$AD)","v":0},0,3288200,{"$f":"SUMIFS(Sheet1!S71_OY1AdjustedBudget,Sheet1!S71_SA34dCode,$AC:$AC,Sheet1!S71_DepCode,$AD:$AD)","v":3386841},{"$f":"SUMIFS(Sheet1!S71_OY2AdjustedBudget,Sheet1!S71_SA34dCode,$AC:$AC,Sheet1!S71_DepCode,$AD:$AD)","v":3454578},null,null,null,null,null,null,null,null,null,null,null,null,null,null,null,"1510","DP"]
[null,null,null,null,null,null,null,null,null,null,null,null,null,null,null,null,null,null,null,null,null,null,null,null,null,null,null,null,null,"DP"]
["Transport Assets",null,{"$f":"SUM(C161:C161)","v":3863630},3863630,0,0,0,0,0,0,3863630,3979538,4059129,null,null,null,null,null,null,null,null,null,null,null,null,null,null,null,null,"DP"]
["Transport Assets",null,{"$f":"SUMIFS(Sheet1!S71_OriginalBudget,Sheet1!S71_SA34dCode,$AC:$AC,Sheet1!S71_DepCode,$AD:$AD)","v":3863630},{"$f":"SUMIFS(Sheet1!S71_PreviousBudget,Sheet1!S71_SA34dCode,$AC:$AC,Sheet1!S71_DepCode,$AD:$AD)","v":3863630},null,null,null,null,{"$f":"SUMIFS(Sheet1!S71_CurrentAdjustments,Sheet1!S71_SA34dCode,$AC:$AC,Sheet1!S71_DepCode,$AD:$AD)","v":0},0,3863630,{"$f":"SUMIFS(Sheet1!S71_OY1AdjustedBudget,Sheet1!S71_SA34dCode,$AC:$AC,Sheet1!S71_DepCode,$AD:$AD)","v":3979538},{"$f":"SUMIFS(Sheet1!S71_OY2AdjustedBudget,Sheet1!S71_SA34dCode,$AC:$AC,Sheet1!S71_DepCode,$AD:$AD)","v":4059129},null,null,null,null,null,null,null,null,null,null,null,null,null,null,null,"1530","DP"]
[null,null,null,null,null,null,null,null,null,null,null,null,null,null,null,null,null,null,null,null,null,null,null,null,null,null,null,null,null,"DP"]
["Land",null,{"$f":"SUM(C164:C164)","v":0},0,0,0,0,0,0,0,0,0,0,null,null,null,null,null,null,null,null,null,null,null,null,null,null,null,null,"DP"]
["Land",null,{"$f":"SUMIFS(Sheet1!S71_OriginalBudget,Sheet1!S71_SA34dCode,$AC:$AC,Sheet1!S71_DepCode,$AD:$AD)","v":0},{"$f":"SUMIFS(Sheet1!S71_PreviousBudget,Sheet1!S71_SA34dCode,$AC:$AC,Sheet1!S71_DepCode,$AD:$AD)","v":0},null,null,null,null,{"$f":"SUMIFS(Sheet1!S71_CurrentAdjustments,Sheet1!S71_SA34dCode,$AC:$AC,Sheet1!S71_DepCode,$AD:$AD)","v":0},0,0,{"$f":"SUMIFS(Sheet1!S71_OY1AdjustedBudget,Sheet1!S71_SA34dCode,$AC:$AC,Sheet1!S71_DepCode,$AD:$AD)","v":0},{"$f":"SUMIFS(Sheet1!S71_OY2AdjustedBudget,Sheet1!S71_SA34dCode,$AC:$AC,Sheet1!S71_DepCode,$AD:$AD)","v":0},null,null,null,null,null,null,null,null,null,null,null,null,null,null,null,"1550","DP"]
[null,null,null,null,null,null,null,null,null,null,null,null,null,null,null,null,null,null,null,null,null,null,null,null,null,null,null,null,null,"DP"]
["Zoo's, Marine and Non-biological Animals",null,{"$f":"SUM(C167:C167)","v":0},0,0,0,0,0,0,0,0,0,0,null,null,null,null,null,null,null,null,null,null,null,null,null,null,null,null,"DP"]
["Zoo's, Marine and Non-biological Animals",null,{"$f":"SUMIFS(Sheet1!S71_OriginalBudget,Sheet1!S71_SA34dCode,$AC:$AC,Sheet1!S71_DepCode,$AD:$AD)","v":0},{"$f":"SUMIFS(Sheet1!S71_PreviousBudget,Sheet1!S71_SA34dCode,$AC:$AC,Sheet1!S71_DepCode,$AD:$AD)","v":0},null,null,null,null,{"$f":"SUMIFS(Sheet1!S71_CurrentAdjustments,Sheet1!S71_SA34dCode,$AC:$AC,Sheet1!S71_DepCode,$AD:$AD)","v":0},0,0,{"$f":"SUMIFS(Sheet1!S71_OY1AdjustedBudget,Sheet1!S71_SA34dCode,$AC:$AC,Sheet1!S71_DepCode,$AD:$AD)","v":0},{"$f":"SUMIFS(Sheet1!S71_OY2AdjustedBudget,Sheet1!S71_SA34dCode,$AC:$AC,Sheet1!S71_DepCode,$AD:$AD)","v":0},null,null,null,null,null,null,null,null,null,null,null,null,null,null,null,"1570","DP"]
[null,null,{"$f":"SUMIFS(Sheet1!S71_OriginalBudget,Sheet1!S71_SA34dCode,$AC:$AC,Sheet1!S71_DepCode,$AD:$AD)","v":0},{"$f":"SUMIFS(Sheet1!S71_PreviousBudget,Sheet1!S71_SA34dCode,$AC:$AC,Sheet1!S71_DepCode,$AD:$AD)","v":0},null,null,null,null,{"$f":"SUMIFS(Sheet1!S71_CurrentAdjustments,Sheet1!S71_SA34dCode,$AC:$AC,Sheet1!S71_DepCode,$AD:$AD)","v":0},null,null,{"$f":"SUMIFS(Sheet1!S71_OY1AdjustedBudget,Sheet1!S71_SA34dCode,$AC:$AC,Sheet1!S71_DepCode,$AD:$AD)","v":0},{"$f":"SUMIFS(Sheet1!S71_OY2AdjustedBudget,Sheet1!S71_SA34dCode,$AC:$AC,Sheet1!S71_DepCode,$AD:$AD)","v":0},null,null,null,null,null,null,null,null,null,null,null,null,null,null,null,null,"DP"]
["Living resources",null,{"$f":"+C170+C173","v":0},{"$f":"+D170+D173","v":0},0,0,0,0,0,{"$f":"SUM(E169:I169)","v":0},{"$f":"IF(D169=0,C169+J169,D169+J169)","v":0},{"$f":"+L170+L173","v":0},{"$f":"SUM(M170:M170)","v":0}]
["Mature",null,{"$f":"+C171+C172","v":0},{"$f":"+D171+D172","v":0},0,0,0,0,0,0,0,{"$f":"+L171+L172","v":0},{"$f":"+M171+M172","v":0}]
["Policing and Protection",null,{"$f":"SUMIFS(Sheet1!S71_OriginalBudget,Sheet1!S71_SA34dCode,$AC:$AC,Sheet1!S71_DepCode,$AD:$AD)","v":0},{"$f":"SUMIFS(Sheet1!S71_PreviousBudget,Sheet1!S71_SA34dCode,$AC:$AC,Sheet1!S71_DepCode,$AD:$AD)","v":0},null,null,null,null,{"$f":"SUMIFS(Sheet1!S71_CurrentAdjustments,Sheet1!S71_SA34dCode,$AC:$AC,Sheet1!S71_DepCode,$AD:$AD)","v":0},0,0,{"$f":"SUMIFS(Sheet1!S71_OY1AdjustedBudget,Sheet1!S71_SA34dCode,$AC:$AC,Sheet1!S71_DepCode,$AD:$AD)","v":0},{"$f":"SUMIFS(Sheet1!S71_OY2AdjustedBudget,Sheet1!S71_SA34dCode,$AC:$AC,Sheet1!S71_DepCode,$AD:$AD)","v":0}]
["Zoological plants and animals",null,{"$f":"SUMIFS(Sheet1!S71_OriginalBudget,Sheet1!S71_SA34dCode,$AC:$AC,Sheet1!S71_DepCode,$AD:$AD)","v":0},{"$f":"SUMIFS(Sheet1!S71_PreviousBudget,Sheet1!S71_SA34dCode,$AC:$AC,Sheet1!S71_DepCode,$AD:$AD)","v":0},null,null,null,null,{"$f":"SUMIFS(Sheet1!S71_CurrentAdjustments,Sheet1!S71_SA34dCode,$AC:$AC,Sheet1!S71_DepCode,$AD:$AD)","v":0},0,0,{"$f":"SUMIFS(Sheet1!S71_OY1AdjustedBudget,Sheet1!S71_SA34dCode,$AC:$AC,Sheet1!S71_DepCode,$AD:$AD)","v":0},{"$f":"SUMIFS(Sheet1!S71_OY2AdjustedBudget,Sheet1!S71_SA34dCode,$AC:$AC,Sheet1!S71_DepCode,$AD:$AD)","v":0}]
["Immature",null,{"$f":"+C174+C175","v":0},{"$f":"+D174+D175","v":0},0,0,0,0,0,0,0,{"$f":"+L174+L175","v":0},{"$f":"+M174+M175","v":0}]
["Policing and Protection",null,{"$f":"SUMIFS(Sheet1!S71_OriginalBudget,Sheet1!S71_SA34dCode,$AC:$AC,Sheet1!S71_DepCode,$AD:$AD)","v":0},{"$f":"SUMIFS(Sheet1!S71_PreviousBudget,Sheet1!S71_SA34dCode,$AC:$AC,Sheet1!S71_DepCode,$AD:$AD)","v":0},null,null,null,null,{"$f":"SUMIFS(Sheet1!S71_CurrentAdjustments,Sheet1!S71_SA34dCode,$AC:$AC,Sheet1!S71_DepCode,$AD:$AD)","v":0},0,0,{"$f":"SUMIFS(Sheet1!S71_OY1AdjustedBudget,Sheet1!S71_SA34dCode,$AC:$AC,Sheet1!S71_DepCode,$AD:$AD)","v":0},{"$f":"SUMIFS(Sheet1!S71_OY2AdjustedBudget,Sheet1!S71_SA34dCode,$AC:$AC,Sheet1!S71_DepCode,$AD:$AD)","v":0}]
["Zoological plants and animals",null,{"$f":"SUMIFS(Sheet1!S71_OriginalBudget,Sheet1!S71_SA34dCode,$AC:$AC,Sheet1!S71_DepCode,$AD:$AD)","v":0},{"$f":"SUMIFS(Sheet1!S71_PreviousBudget,Sheet1!S71_SA34dCode,$AC:$AC,Sheet1!S71_DepCode,$AD:$AD)","v":0},null,null,null,null,{"$f":"SUMIFS(Sheet1!S71_CurrentAdjustments,Sheet1!S71_SA34dCode,$AC:$AC,Sheet1!S71_DepCode,$AD:$AD)","v":0},0,0,{"$f":"SUMIFS(Sheet1!S71_OY1AdjustedBudget,Sheet1!S71_SA34dCode,$AC:$AC,Sheet1!S71_DepCode,$AD:$AD)","v":0},{"$f":"SUMIFS(Sheet1!S71_OY2AdjustedBudget,Sheet1!S71_SA34dCode,$AC:$AC,Sheet1!S71_DepCode,$AD:$AD)","v":0}]
[]
["Total Depreciation to be adjusted",1,{"$f":"C8+C76+C105+C112+C120+C151+C138+C141+C154+C157+C160+C163+C166+C169","v":37856010},{"$f":"D8+D76+D105+D112+D120+D151+D138+D141+D154+D157+D160+D163+D166+D169","v":37856010},0,0,0,0,0,0,37856010,38991690,39771522]
[{"$f":"head27a","v":"References"}]
["1. Total Repairs and Maintenance Expenditure by Asset Category must reconcile to total repairs and maintenance expenditure on Table SB1"]
["7. Only complete if a previous adjusted budget has been approved in the same financial year. Reflect most recent adjusted budget."]
["8. Additional cash-backed accumulated funds/unspent funds (section 18(1)(b) and section 28(2)(e) MFMA) identified after Original Budget approved and after annual financial statements audited (note: only where underspending could not reasonably be have for"]
["9. Increases of funds approved under section 31 MFMA"]
["10. Adjustments approved in accordance with section 29 MFMA"]
["11. Adjustments to funding allocations from National or Provincial Government"]
["12. Adjusts. = 'Other' Adjustments proposed to be approved; including revenue under-collection (MFMA section 28(2)(a)); additional revenue appropriation on existing programmes (section 28(2))(b); projected savings (section 28(2)(d)); error correction (sec"]
["13. G = B + C + D + E + F"]
["14. Adjusted Budget H = (A or A1) + G"]
[]
[]
["check balance",null,{"$f":"C177-'B4-FinPerf RE'!C42","v":0},null,null,null,null,null,null,null,null,{"$f":"L177-'B4-FinPerf RE'!L42","v":0},{"$f":"M177-'B4-FinPerf RE'!M42","v":0}]

{"sheet":"SB18e","index":58,"n_rows":190,"n_cols":30,"rows_kept":190,"cut":false,"hidden":false,"merged":[[182,0,182,12],[184,0,184,12],[186,0,186,12],[1,0,3,0],[1,1,3,1],[1,2,1,10],[179,0,179,12],[180,0,180,9],[181,0,181,9]]}
[{"$f":"muni&\" - \"&ADJB18e&\" - \"&Date","v":"KZN291 Mandeni - Supporting Table SB18e Adjustments Budget - capital expenditure on upgrading of existing assets by asset class - 08-04-2025"}]
[{"$f":"desc","v":"Description"},{"$f":"head27","v":"Ref"},{"$f":"Head2","v":"Budget Year 2024/25"},null,null,null,null,null,null,null,null,{"$f":"Head10","v":"Budget Year +1 2025/26"},{"$f":"Head11","v":"Budget Year +2 2026/27"}]
[null,null,{"$f":"Head6","v":"Original Budget"},{"$f":"Head54","v":"Prior Adjusted"},{"$f":"Head51","v":"Accum. Funds"},{"$f":"Head52","v":"Multi-year capital"},{"$f":"Head53","v":"Unfore. Unavoid."},{"$f":"Head55","v":"Nat. or Prov. Govt"},{"$f":"Head50","v":"Other Adjusts."},{"$f":"Head56","v":"Total Adjusts."},{"$f":"Head7","v":"Adjusted Budget"},{"$f":"Head7","v":"Adjusted Budget"},{"$f":"Head7","v":"Adjusted Budget"}]
[null,null,null,7,8,9,10,11,12,13,14]
["R thousands",null,"A","A1","B","C","D","E","F","G","H"]
["Capital expenditure on upgrading of existing assets by Asset Class/Sub-class"]
[]
["Infrastructure",null,{"$f":"C9+C14+C18+C28+C70+C39+C46+C54+C64","v":39312371},{"$f":"D9+D14+D18+D28+D70+D39+D46+D54+D64","v":38764393},0,0,0,0,0,{"$f":"SUM(E8:I8)","v":0},{"$f":"IF(D8=0,C8+J8,D8+J8)","v":38764393},{"$f":"L9+L14+L18+L28+L70+L39+L46+L54+L64","v":35512652},{"$f":"M9+M14+M18+M28+M70+M39+M46+M54+M64","v":38415522}]
["Roads Infrastructure",null,{"$f":"SUM(C10:C13)","v":38882401},{"$f":"SUM(D10:D13)","v":38334423},0,0,0,0,0,{"$f":"SUM(E9:I9)","v":0},{"$f":"IF(D9=0,C9+J9,D9+J9)","v":38334423},35512652,38415522]
["Roads",null,{"$f":"SUMIFS(Sheet1!S71_OriginalBudget,Sheet1!S71_SA34eCode,$AC:$AC,Sheet1!S71_A5CapexCode,$AD:$AD)","v":37578053},{"$f":"SUMIFS(Sheet1!S71_PreviousBudget,Sheet1!S71_SA34eCode,$AC:$AC,Sheet1!S71_A5CapexCode,$AD:$AD)","v":37446934},null,null,null,null,{"$f":"SUMIFS(Sheet1!S71_CurrentAdjustments,Sheet1!S71_SA34eCode,$AC:$AC,Sheet1!S71_A5CapexCode,$AD:$AD)","v":0},0,37446934,{"$f":"SUMIFS(Sheet1!S71_OY1AdjustedBudget,Sheet1!S71_SA34eCode,$AC:$AC,Sheet1!S71_A5CapexCode,$AD:$AD)","v":35512652},{"$f":"SUMIFS(Sheet1!S71_OY2AdjustedBudget,Sheet1!S71_SA34eCode,$AC:$AC,Sheet1!S71_A5CapexCode,$AD:$AD)","v":38415522},null,null,null,null,null,null,null,null,null,null,null,null,null,null,null,"0120","CE"]
["Road Structures",null,{"$f":"SUMIFS(Sheet1!S71_OriginalBudget,Sheet1!S71_SA34eCode,$AC:$AC,Sheet1!S71_A5CapexCode,$AD:$AD)","v":0},{"$f":"SUMIFS(Sheet1!S71_PreviousBudget,Sheet1!S71_SA34eCode,$AC:$AC,Sheet1!S71_A5CapexCode,$AD:$AD)","v":0},null,null,null,null,{"$f":"SUMIFS(Sheet1!S71_CurrentAdjustments,Sheet1!S71_SA34eCode,$AC:$AC,Sheet1!S71_A5CapexCode,$AD:$AD)","v":0},0,0,{"$f":"SUMIFS(Sheet1!S71_OY1AdjustedBudget,Sheet1!S71_SA34eCode,$AC:$AC,Sheet1!S71_A5CapexCode,$AD:$AD)","v":0},{"$f":"SUMIFS(Sheet1!S71_OY2AdjustedBudget,Sheet1!S71_SA34eCode,$AC:$AC,Sheet1!S71_A5CapexCode,$AD:$AD)","v":0},null,null,null,null,null,null,null,null,null,null,null,null,null,null,null,"0130","CE"]
["Road Furniture",null,{"$f":"SUMIFS(Sheet1!S71_OriginalBudget,Sheet1!S71_SA34eCode,$AC:$AC,Sheet1!S71_A5CapexCode,$AD:$AD)","v":1304348},{"$f":"SUMIFS(Sheet1!S71_PreviousBudget,Sheet1!S71_SA34eCode,$AC:$AC,Sheet1!S71_A5CapexCode,$AD:$AD)","v":887489},null,null,null,null,{"$f":"SUMIFS(Sheet1!S71_CurrentAdjustments,Sheet1!S71_SA34eCode,$AC:$AC,Sheet1!S71_A5CapexCode,$AD:$AD)","v":0},0,887489,{"$f":"SUMIFS(Sheet1!S71_OY1AdjustedBudget,Sheet1!S71_SA34eCode,$AC:$AC,Sheet1!S71_A5CapexCode,$AD:$AD)","v":0},{"$f":"SUMIFS(Sheet1!S71_OY2AdjustedBudget,Sheet1!S71_SA34eCode,$AC:$AC,Sheet1!S71_A5CapexCode,$AD:$AD)","v":0},null,null,null,null,null,null,null,null,null,null,null,null,null,null,null,"0140","CE"]
["Capital Spares",null,{"$f":"SUMIFS(Sheet1!S71_OriginalBudget,Sheet1!S71_SA34eCode,$AC:$AC,Sheet1!S71_A5CapexCode,$AD:$AD)","v":0},{"$f":"SUMIFS(Sheet1!S71_PreviousBudget,Sheet1!S71_SA34eCode,$AC:$AC,Sheet1!S71_A5CapexCode,$AD:$AD)","v":0},null,null,null,null,{"$f":"SUMIFS(Sheet1!S71_CurrentAdjustments,Sheet1!S71_SA34eCode,$AC:$AC,Sheet1!S71_A5CapexCode,$AD:$AD)","v":0},0,0,{"$f":"SUMIFS(Sheet1!S71_OY1AdjustedBudget,Sheet1!S71_SA34eCode,$AC:$AC,Sheet1!S71_A5CapexCode,$AD:$AD)","v":0},{"$f":"SUMIFS(Sheet1!S71_OY2AdjustedBudget,Sheet1!S71_SA34eCode,$AC:$AC,Sheet1!S71_A5CapexCode,$AD:$AD)","v":0},null,null,null,null,null,null,null,null,null,null,null,null,null,null,null,"0150","CE"]
["Storm water Infrastructure",null,{"$f":"SUM(C15:C17)","v":0},0,0,0,0,0,0,0,0,{"$f":"SUM(L15:L17)","v":0},{"$f":"SUM(M15:M17)","v":0},null,null,null,null,null,null,null,null,null,null,null,null,null,null,null,null,"CE"]
["Drainage Collection",null,{"$f":"SUMIFS(Sheet1!S71_OriginalBudget,Sheet1!S71_SA34eCode,$AC:$AC,Sheet1!S71_A5CapexCode,$AD:$AD)","v":0},{"$f":"SUMIFS(Sheet1!S71_PreviousBudget,Sheet1!S71_SA34eCode,$AC:$AC,Sheet1!S71_A5CapexCode,$AD:$AD)","v":0},null,null,null,null,{"$f":"SUMIFS(Sheet1!S71_CurrentAdjustments,Sheet1!S71_SA34eCode,$AC:$AC,Sheet1!S71_A5CapexCode,$AD:$AD)","v":0},0,0,{"$f":"SUMIFS(Sheet1!S71_OY1AdjustedBudget,Sheet1!S71_SA34eCode,$AC:$AC,Sheet1!S71_A5CapexCode,$AD:$AD)","v":0},{"$f":"SUMIFS(Sheet1!S71_OY2AdjustedBudget,Sheet1!S71_SA34eCode,$AC:$AC,Sheet1!S71_A5CapexCode,$AD:$AD)","v":0},null,null,null,null,null,null,null,null,null,null,null,null,null,null,null,"0170","CE"]
["Storm water Conveyance",null,{"$f":"SUMIFS(Sheet1!S71_OriginalBudget,Sheet1!S71_SA34eCode,$AC:$AC,Sheet1!S71_A5CapexCode,$AD:$AD)","v":0},{"$f":"SUMIFS(Sheet1!S71_PreviousBudget,Sheet1!S71_SA34eCode,$AC:$AC,Sheet1!S71_A5CapexCode,$AD:$AD)","v":0},null,null,null,null,{"$f":"SUMIFS(Sheet1!S71_CurrentAdjustments,Sheet1!S71_SA34eCode,$AC:$AC,Sheet1!S71_A5CapexCode,$AD:$AD)","v":0},0,0,{"$f":"SUMIFS(Sheet1!S71_OY1AdjustedBudget,Sheet1!S71_SA34eCode,$AC:$AC,Sheet1!S71_A5CapexCode,$AD:$AD)","v":0},{"$f":"SUMIFS(Sheet1!S71_OY2AdjustedBudget,Sheet1!S71_SA34eCode,$AC:$AC,Sheet1!S71_A5CapexCode,$AD:$AD)","v":0},null,null,null,null,null,null,null,null,null,null,null,null,null,null,null,"0180","CE"]
["Attenuation",null,{"$f":"SUMIFS(Sheet1!S71_OriginalBudget,Sheet1!S71_SA34eCode,$AC:$AC,Sheet1!S71_A5CapexCode,$AD:$AD)","v":0},{"$f":"SUMIFS(Sheet1!S71_PreviousBudget,Sheet1!S71_SA34eCode,$AC:$AC,Sheet1!S71_A5CapexCode,$AD:$AD)","v":0},null,null,null,null,{"$f":"SUMIFS(Sheet1!S71_CurrentAdjustments,Sheet1!S71_SA34eCode,$AC:$AC,Sheet1!S71_A5CapexCode,$AD:$AD)","v":0},0,0,{"$f":"SUMIFS(Sheet1!S71_OY1AdjustedBudget,Sheet1!S71_SA34eCode,$AC:$AC,Sheet1!S71_A5CapexCode,$AD:$AD)","v":0},{"$f":"SUMIFS(Sheet1!S71_OY2AdjustedBudget,Sheet1!S71_SA34eCode,$AC:$AC,Sheet1!S71_A5CapexCode,$AD:$AD)","v":0},null,null,null,null,null,null,null,null,null,null,null,null,null,null,null,"0190","CE"]
["Electrical Infrastructure",null,{"$f":"SUM(C19:C27)","v":429970},429970,0,0,0,0,0,0,429970,0,0,null,null,null,null,null,null,null,null,null,null,null,null,null,null,null,null,"CE"]
["Power Plants",null,{"$f":"SUMIFS(Sheet1!S71_OriginalBudget,Sheet1!S71_SA34eCode,$AC:$AC,Sheet1!S71_A5CapexCode,$AD:$AD)","v":0},{"$f":"SUMIFS(Sheet1!S71_PreviousBudget,Sheet1!S71_SA34eCode,$AC:$AC,Sheet1!S71_A5CapexCode,$AD:$AD)","v":0},null,null,null,null,{"$f":"SUMIFS(Sheet1!S71_CurrentAdjustments,Sheet1!S71_SA34eCode,$AC:$AC,Sheet1!S71_A5CapexCode,$AD:$AD)","v":0},0,0,{"$f":"SUMIFS(Sheet1!S71_OY1AdjustedBudget,Sheet1!S71_SA34eCode,$AC:$AC,Sheet1!S71_A5CapexCode,$AD:$AD)","v":0},{"$f":"SUMIFS(Sheet1!S71_OY2AdjustedBudget,Sheet1!S71_SA34eCode,$AC:$AC,Sheet1!S71_A5CapexCode,$AD:$AD)","v":0},null,null,null,null,null,null,null,null,null,null,null,null,null,null,null,"0210","CE"]
["HV Substations",null,{"$f":"SUMIFS(Sheet1!S71_OriginalBudget,Sheet1!S71_SA34eCode,$AC:$AC,Sheet1!S71_A5CapexCode,$AD:$AD)","v":429970},{"$f":"SUMIFS(Sheet1!S71_PreviousBudget,Sheet1!S71_SA34eCode,$AC:$AC,Sheet1!S71_A5CapexCode,$AD:$AD)","v":429970},null,null,null,null,{"$f":"SUMIFS(Sheet1!S71_CurrentAdjustments,Sheet1!S71_SA34eCode,$AC:$AC,Sheet1!S71_A5CapexCode,$AD:$AD)","v":0},0,429970,{"$f":"SUMIFS(Sheet1!S71_OY1AdjustedBudget,Sheet1!S71_SA34eCode,$AC:$AC,Sheet1!S71_A5CapexCode,$AD:$AD)","v":0},{"$f":"SUMIFS(Sheet1!S71_OY2AdjustedBudget,Sheet1!S71_SA34eCode,$AC:$AC,Sheet1!S71_A5CapexCode,$AD:$AD)","v":0},null,null,null,null,null,null,null,null,null,null,null,null,null,null,null,"0220","CE"]
["HV Switching Station",null,{"$f":"SUMIFS(Sheet1!S71_OriginalBudget,Sheet1!S71_SA34eCode,$AC:$AC,Sheet1!S71_A5CapexCode,$AD:$AD)","v":0},{"$f":"SUMIFS(Sheet1!S71_PreviousBudget,Sheet1!S71_SA34eCode,$AC:$AC,Sheet1!S71_A5CapexCode,$AD:$AD)","v":0},null,null,null,null,{"$f":"SUMIFS(Sheet1!S71_CurrentAdjustments,Sheet1!S71_SA34eCode,$AC:$AC,Sheet1!S71_A5CapexCode,$AD:$AD)","v":0},0,0,{"$f":"SUMIFS(Sheet1!S71_OY1AdjustedBudget,Sheet1!S71_SA34eCode,$AC:$AC,Sheet1!S71_A5CapexCode,$AD:$AD)","v":0},{"$f":"SUMIFS(Sheet1!S71_OY2AdjustedBudget,Sheet1!S71_SA34eCode,$AC:$AC,Sheet1!S71_A5CapexCode,$AD:$AD)","v":0},null,null,null,null,null,null,null,null,null,null,null,null,null,null,null,"0230","CE"]
["HV Transmission Conductors",null,{"$f":"SUMIFS(Sheet1!S71_OriginalBudget,Sheet1!S71_SA34eCode,$AC:$AC,Sheet1!S71_A5CapexCode,$AD:$AD)","v":0},{"$f":"SUMIFS(Sheet1!S71_PreviousBudget,Sheet1!S71_SA34eCode,$AC:$AC,Sheet1!S71_A5CapexCode,$AD:$AD)","v":0},null,null,null,null,{"$f":"SUMIFS(Sheet1!S71_CurrentAdjustments,Sheet1!S71_SA34eCode,$AC:$AC,Sheet1!S71_A5CapexCode,$AD:$AD)","v":0},0,0,{"$f":"SUMIFS(Sheet1!S71_OY1AdjustedBudget,Sheet1!S71_SA34eCode,$AC:$AC,Sheet1!S71_A5CapexCode,$AD:$AD)","v":0},{"$f":"SUMIFS(Sheet1!S71_OY2AdjustedBudget,Sheet1!S71_SA34eCode,$AC:$AC,Sheet1!S71_A5CapexCode,$AD:$AD)","v":0},null,null,null,null,null,null,null,null,null,null,null,null,null,null,null,"0240","CE"]
["MV Substations",null,{"$f":"SUMIFS(Sheet1!S71_OriginalBudget,Sheet1!S71_SA34eCode,$AC:$AC,Sheet1!S71_A5CapexCode,$AD:$AD)","v":0},{"$f":"SUMIFS(Sheet1!S71_PreviousBudget,Sheet1!S71_SA34eCode,$AC:$AC,Sheet1!S71_A5CapexCode,$AD:$AD)","v":0},null,null,null,null,{"$f":"SUMIFS(Sheet1!S71_CurrentAdjustments,Sheet1!S71_SA34eCode,$AC:$AC,Sheet1!S71_A5CapexCode,$AD:$AD)","v":0},0,0,{"$f":"SUMIFS(Sheet1!S71_OY1AdjustedBudget,Sheet1!S71_SA34eCode,$AC:$AC,Sheet1!S71_A5CapexCode,$AD:$AD)","v":0},{"$f":"SUMIFS(Sheet1!S71_OY2AdjustedBudget,Sheet1!S71_SA34eCode,$AC:$AC,Sheet1!S71_A5CapexCode,$AD:$AD)","v":0},null,null,null,null,null,null,null,null,null,null,null,null,null,null,null,"0250","CE"]
["MV Switching Stations",null,{"$f":"SUMIFS(Sheet1!S71_OriginalBudget,Sheet1!S71_SA34eCode,$AC:$AC,Sheet1!S71_A5CapexCode,$AD:$AD)","v":0},{"$f":"SUMIFS(Sheet1!S71_PreviousBudget,Sheet1!S71_SA34eCode,$AC:$AC,Sheet1!S71_A5CapexCode,$AD:$AD)","v":0},null,null,null,null,{"$f":"SUMIFS(Sheet1!S71_CurrentAdjustments,Sheet1!S71_SA34eCode,$AC:$AC,Sheet1!S71_A5CapexCode,$AD:$AD)","v":0},0,0,{"$f":"SUMIFS(Sheet1!S71_OY1AdjustedBudget,Sheet1!S71_SA34eCode,$AC:$AC,Sheet1!S71_A5CapexCode,$AD:$AD)","v":0},{"$f":"SUMIFS(Sheet1!S71_OY2AdjustedBudget,Sheet1!S71_SA34eCode,$AC:$AC,Sheet1!S71_A5CapexCode,$AD:$AD)","v":0},null,null,null,null,null,null,null,null,null,null,null,null,null,null,null,"0260","CE"]
["MV Networks",null,{"$f":"SUMIFS(Sheet1!S71_OriginalBudget,Sheet1!S71_SA34eCode,$AC:$AC,Sheet1!S71_A5CapexCode,$AD:$AD)","v":0},{"$f":"SUMIFS(Sheet1!S71_PreviousBudget,Sheet1!S71_SA34eCode,$AC:$AC,Sheet1!S71_A5CapexCode,$AD:$AD)","v":0},null,null,null,null,{"$f":"SUMIFS(Sheet1!S71_CurrentAdjustments,Sheet1!S71_SA34eCode,$AC:$AC,Sheet1!S71_A5CapexCode,$AD:$AD)","v":0},0,0,{"$f":"SUMIFS(Sheet1!S71_OY1AdjustedBudget,Sheet1!S71_SA34eCode,$AC:$AC,Sheet1!S71_A5CapexCode,$AD:$AD)","v":0},{"$f":"SUMIFS(Sheet1!S71_OY2AdjustedBudget,Sheet1!S71_SA34eCode,$AC:$AC,Sheet1!S71_A5CapexCode,$AD:$AD)","v":0},null,null,null,null,null,null,null,null,null,null,null,null,null,null,null,"0270","CE"]
["LV Networks",null,{"$f":"SUMIFS(Sheet1!S71_OriginalBudget,Sheet1!S71_SA34eCode,$AC:$AC,Sheet1!S71_A5CapexCode,$AD:$AD)","v":0},{"$f":"SUMIFS(Sheet1!S71_PreviousBudget,Sheet1!S71_SA34eCode,$AC:$AC,Sheet1!S71_A5CapexCode,$AD:$AD)","v":0},null,null,null,null,{"$f":"SUMIFS(Sheet1!S71_CurrentAdjustments,Sheet1!S71_SA34eCode,$AC:$AC,Sheet1!S71_A5CapexCode,$AD:$AD)","v":0},0,0,{"$f":"SUMIFS(Sheet1!S71_OY1AdjustedBudget,Sheet1!S71_SA34eCode,$AC:$AC,Sheet1!S71_A5CapexCode,$AD:$AD)","v":0},{"$f":"SUMIFS(Sheet1!S71_OY2AdjustedBudget,Sheet1!S71_SA34eCode,$AC:$AC,Sheet1!S71_A5CapexCode,$AD:$AD)","v":0},null,null,null,null,null,null,null,null,null,null,null,null,null,null,null,"0280","CE"]
["Capital Spares",null,{"$f":"SUMIFS(Sheet1!S71_OriginalBudget,Sheet1!S71_SA34eCode,$AC:$AC,Sheet1!S71_A5CapexCode,$AD:$AD)","v":0},{"$f":"SUMIFS(Sheet1!S71_PreviousBudget,Sheet1!S71_SA34eCode,$AC:$AC,Sheet1!S71_A5CapexCode,$AD:$AD)","v":0},null,null,null,null,{"$f":"SUMIFS(Sheet1!S71_CurrentAdjustments,Sheet1!S71_SA34eCode,$AC:$AC,Sheet1!S71_A5CapexCode,$AD:$AD)","v":0},0,0,{"$f":"SUMIFS(Sheet1!S71_OY1AdjustedBudget,Sheet1!S71_SA34eCode,$AC:$AC,Sheet1!S71_A5CapexCode,$AD:$AD)","v":0},{"$f":"SUMIFS(Sheet1!S71_OY2AdjustedBudget,Sheet1!S71_SA34eCode,$AC:$AC,Sheet1!S71_A5CapexCode,$AD:$AD)","v":0},null,null,null,null,null,null,null,null,null,null,null,null,null,null,null,"0290","CE"]
["Water Supply Infrastructure",null,{"$f":"SUM(C29:C38)","v":0},0,0,0,0,0,0,0,0,0,0,null,null,null,null,null,null,null,null,null,null,null,null,null,null,null,null,"CE"]
["Dams and Weirs",null,{"$f":"SUMIFS(Sheet1!S71_OriginalBudget,Sheet1!S71_SA34eCode,$AC:$AC,Sheet1!S71_A5CapexCode,$AD:$AD)","v":0},{"$f":"SUMIFS(Sheet1!S71_PreviousBudget,Sheet1!S71_SA34eCode,$AC:$AC,Sheet1!S71_A5CapexCode,$AD:$AD)","v":0},null,null,null,null,{"$f":"SUMIFS(Sheet1!S71_CurrentAdjustments,Sheet1!S71_SA34eCode,$AC:$AC,Sheet1!S71_A5CapexCode,$AD:$AD)","v":0},0,0,{"$f":"SUMIFS(Sheet1!S71_OY1AdjustedBudget,Sheet1!S71_SA34eCode,$AC:$AC,Sheet1!S71_A5CapexCode,$AD:$AD)","v":0},{"$f":"SUMIFS(Sheet1!S71_OY2AdjustedBudget,Sheet1!S71_SA34eCode,$AC:$AC,Sheet1!S71_A5CapexCode,$AD:$AD)","v":0},null,null,null,null,null,null,null,null,null,null,null,null,null,null,null,"0310","CE"]
["Boreholes",null,{"$f":"SUMIFS(Sheet1!S71_OriginalBudget,Sheet1!S71_SA34eCode,$AC:$AC,Sheet1!S71_A5CapexCode,$AD:$AD)","v":0},{"$f":"SUMIFS(Sheet1!S71_PreviousBudget,Sheet1!S71_SA34eCode,$AC:$AC,Sheet1!S71_A5CapexCode,$AD:$AD)","v":0},null,null,null,null,{"$f":"SUMIFS(Sheet1!S71_CurrentAdjustments,Sheet1!S71_SA34eCode,$AC:$AC,Sheet1!S71_A5CapexCode,$AD:$AD)","v":0},0,0,{"$f":"SUMIFS(Sheet1!S71_OY1AdjustedBudget,Sheet1!S71_SA34eCode,$AC:$AC,Sheet1!S71_A5CapexCode,$AD:$AD)","v":0},{"$f":"SUMIFS(Sheet1!S71_OY2AdjustedBudget,Sheet1!S71_SA34eCode,$AC:$AC,Sheet1!S71_A5CapexCode,$AD:$AD)","v":0},null,null,null,null,null,null,null,null,null,null,null,null,null,null,null,"0320","CE"]
["Reservoirs",null,{"$f":"SUMIFS(Sheet1!S71_OriginalBudget,Sheet1!S71_SA34eCode,$AC:$AC,Sheet1!S71_A5CapexCode,$AD:$AD)","v":0},{"$f":"SUMIFS(Sheet1!S71_PreviousBudget,Sheet1!S71_SA34eCode,$AC:$AC,Sheet1!S71_A5CapexCode,$AD:$AD)","v":0},null,null,null,null,{"$f":"SUMIFS(Sheet1!S71_CurrentAdjustments,Sheet1!S71_SA34eCode,$AC:$AC,Sheet1!S71_A5CapexCode,$AD:$AD)","v":0},0,0,{"$f":"SUMIFS(Sheet1!S71_OY1AdjustedBudget,Sheet1!S71_SA34eCode,$AC:$AC,Sheet1!S71_A5CapexCode,$AD:$AD)","v":0},{"$f":"SUMIFS(Sheet1!S71_OY2AdjustedBudget,Sheet1!S71_SA34eCode,$AC:$AC,Sheet1!S71_A5CapexCode,$AD:$AD)","v":0},null,null,null,null,null,null,null,null,null,null,null,null,null,null,null,"0330","CE"]
["Pump Stations",null,{"$f":"SUMIFS(Sheet1!S71_OriginalBudget,Sheet1!S71_SA34eCode,$AC:$AC,Sheet1!S71_A5CapexCode,$AD:$AD)","v":0},{"$f":"SUMIFS(Sheet1!S71_PreviousBudget,Sheet1!S71_SA34eCode,$AC:$AC,Sheet1!S71_A5CapexCode,$AD:$AD)","v":0},null,null,null,null,{"$f":"SUMIFS(Sheet1!S71_CurrentAdjustments,Sheet1!S71_SA34eCode,$AC:$AC,Sheet1!S71_A5CapexCode,$AD:$AD)","v":0},0,0,{"$f":"SUMIFS(Sheet1!S71_OY1AdjustedBudget,Sheet1!S71_SA34eCode,$AC:$AC,Sheet1!S71_A5CapexCode,$AD:$AD)","v":0},{"$f":"SUMIFS(Sheet1!S71_OY2AdjustedBudget,Sheet1!S71_SA34eCode,$AC:$AC,Sheet1!S71_A5CapexCode,$AD:$AD)","v":0},null,null,null,null,null,null,null,null,null,null,null,null,null,null,null,"0340","CE"]
["Water Treatment Works",null,{"$f":"SUMIFS(Sheet1!S71_OriginalBudget,Sheet1!S71_SA34eCode,$AC:$AC,Sheet1!S71_A5CapexCode,$AD:$AD)","v":0},{"$f":"SUMIFS(Sheet1!S71_PreviousBudget,Sheet1!S71_SA34eCode,$AC:$AC,Sheet1!S71_A5CapexCode,$AD:$AD)","v":0},null,null,null,null,{"$f":"SUMIFS(Sheet1!S71_CurrentAdjustments,Sheet1!S71_SA34eCode,$AC:$AC,Sheet1!S71_A5CapexCode,$AD:$AD)","v":0},0,0,{"$f":"SUMIFS(Sheet1!S71_OY1AdjustedBudget,Sheet1!S71_SA34eCode,$AC:$AC,Sheet1!S71_A5CapexCode,$AD:$AD)","v":0},{"$f":"SUMIFS(Sheet1!S71_OY2AdjustedBudget,Sheet1!S71_SA34eCode,$AC:$AC,Sheet1!S71_A5CapexCode,$AD:$AD)","v":0},null,null,null,null,null,null,null,null,null,null,null,null,null,null,null,"0350","CE"]
["Bulk Mains",null,{"$f":"SUMIFS(Sheet1!S71_OriginalBudget,Sheet1!S71_SA34eCode,$AC:$AC,Sheet1!S71_A5CapexCode,$AD:$AD)","v":0},{"$f":"SUMIFS(Sheet1!S71_PreviousBudget,Sheet1!S71_SA34eCode,$AC:$AC,Sheet1!S71_A5CapexCode,$AD:$AD)","v":0},null,null,null,null,{"$f":"SUMIFS(Sheet1!S71_CurrentAdjustments,Sheet1!S71_SA34eCode,$AC:$AC,Sheet1!S71_A5CapexCode,$AD:$AD)","v":0},0,0,{"$f":"SUMIFS(Sheet1!S71_OY1AdjustedBudget,Sheet1!S71_SA34eCode,$AC:$AC,Sheet1!S71_A5CapexCode,$AD:$AD)","v":0},{"$f":"SUMIFS(Sheet1!S71_OY2AdjustedBudget,Sheet1!S71_SA34eCode,$AC:$AC,Sheet1!S71_A5CapexCode,$AD:$AD)","v":0},null,null,null,null,null,null,null,null,null,null,null,null,null,null,null,"0360","CE"]
["Distribution",null,{"$f":"SUMIFS(Sheet1!S71_OriginalBudget,Sheet1!S71_SA34eCode,$AC:$AC,Sheet1!S71_A5CapexCode,$AD:$AD)","v":0},{"$f":"SUMIFS(Sheet1!S71_PreviousBudget,Sheet1!S71_SA34eCode,$AC:$AC,Sheet1!S71_A5CapexCode,$AD:$AD)","v":0},null,null,null,null,{"$f":"SUMIFS(Sheet1!S71_CurrentAdjustments,Sheet1!S71_SA34eCode,$AC:$AC,Sheet1!S71_A5CapexCode,$AD:$AD)","v":0},0,0,{"$f":"SUMIFS(Sheet1!S71_OY1AdjustedBudget,Sheet1!S71_SA34eCode,$AC:$AC,Sheet1!S71_A5CapexCode,$AD:$AD)","v":0},{"$f":"SUMIFS(Sheet1!S71_OY2AdjustedBudget,Sheet1!S71_SA34eCode,$AC:$AC,Sheet1!S71_A5CapexCode,$AD:$AD)","v":0},null,null,null,null,null,null,null,null,null,null,null,null,null,null,null,"0370","CE"]
["Distribution Points",null,{"$f":"SUMIFS(Sheet1!S71_OriginalBudget,Sheet1!S71_SA34eCode,$AC:$AC,Sheet1!S71_A5CapexCode,$AD:$AD)","v":0},{"$f":"SUMIFS(Sheet1!S71_PreviousBudget,Sheet1!S71_SA34eCode,$AC:$AC,Sheet1!S71_A5CapexCode,$AD:$AD)","v":0},null,null,null,null,{"$f":"SUMIFS(Sheet1!S71_CurrentAdjustments,Sheet1!S71_SA34eCode,$AC:$AC,Sheet1!S71_A5CapexCode,$AD:$AD)","v":0},0,0,{"$f":"SUMIFS(Sheet1!S71_OY1AdjustedBudget,Sheet1!S71_SA34eCode,$AC:$AC,Sheet1!S71_A5CapexCode,$AD:$AD)","v":0},{"$f":"SUMIFS(Sheet1!S71_OY2AdjustedBudget,Sheet1!S71_SA34eCode,$AC:$AC,Sheet1!S71_A5CapexCode,$AD:$AD)","v":0},null,null,null,null,null,null,null,null,null,null,null,null,null,null,null,"0380","CE"]
["PRV Stations",null,{"$f":"SUMIFS(Sheet1!S71_OriginalBudget,Sheet1!S71_SA34eCode,$AC:$AC,Sheet1!S71_A5CapexCode,$AD:$AD)","v":0},{"$f":"SUMIFS(Sheet1!S71_PreviousBudget,Sheet1!S71_SA34eCode,$AC:$AC,Sheet1!S71_A5CapexCode,$AD:$AD)","v":0},null,null,null,null,{"$f":"SUMIFS(Sheet1!S71_CurrentAdjustments,Sheet1!S71_SA34eCode,$AC:$AC,Sheet1!S71_A5CapexCode,$AD:$AD)","v":0},0,0,{"$f":"SUMIFS(Sheet1!S71_OY1AdjustedBudget,Sheet1!S71_SA34eCode,$AC:$AC,Sheet1!S71_A5CapexCode,$AD:$AD)","v":0},{"$f":"SUMIFS(Sheet1!S71_OY2AdjustedBudget,Sheet1!S71_SA34eCode,$AC:$AC,Sheet1!S71_A5CapexCode,$AD:$AD)","v":0},null,null,null,null,null,null,null,null,null,null,null,null,null,null,null,"0390","CE"]
["Capital Spares",null,{"$f":"SUMIFS(Sheet1!S71_OriginalBudget,Sheet1!S71_SA34eCode,$AC:$AC,Sheet1!S71_A5CapexCode,$AD:$AD)","v":0},{"$f":"SUMIFS(Sheet1!S71_PreviousBudget,Sheet1!S71_SA34eCode,$AC:$AC,Sheet1!S71_A5CapexCode,$AD:$AD)","v":0},null,null,null,null,{"$f":"SUMIFS(Sheet1!S71_CurrentAdjustments,Sheet1!S71_SA34eCode,$AC:$AC,Sheet1!S71_A5CapexCode,$AD:$AD)","v":0},0,0,{"$f":"SUMIFS(Sheet1!S71_OY1AdjustedBudget,Sheet1!S71_SA34eCode,$AC:$AC,Sheet1!S71_A5CapexCode,$AD:$AD)","v":0},{"$f":"SUMIFS(Sheet1!S71_OY2AdjustedBudget,Sheet1!S71_SA34eCode,$AC:$AC,Sheet1!S71_A5CapexCode,$AD:$AD)","v":0},null,null,null,null,null,null,null,null,null,null,null,null,null,null,null,"0400","CE"]
["Sanitation Infrastructure",null,{"$f":"SUM(C40:C45)","v":0},{"$f":"SUM(D40:D45)","v":0},0,0,0,0,0,0,0,0,0,null,null,null,null,null,null,null,null,null,null,null,null,null,null,null,null,"CE"]
["Pump Station",null,{"$f":"SUMIFS(Sheet1!S71_OriginalBudget,Sheet1!S71_SA34eCode,$AC:$AC,Sheet1!S71_A5CapexCode,$AD:$AD)","v":0},{"$f":"SUMIFS(Sheet1!S71_PreviousBudget,Sheet1!S71_SA34eCode,$AC:$AC,Sheet1!S71_A5CapexCode,$AD:$AD)","v":0},null,null,null,null,{"$f":"SUMIFS(Sheet1!S71_CurrentAdjustments,Sheet1!S71_SA34eCode,$AC:$AC,Sheet1!S71_A5CapexCode,$AD:$AD)","v":0},0,0,{"$f":"SUMIFS(Sheet1!S71_OY1AdjustedBudget,Sheet1!S71_SA34eCode,$AC:$AC,Sheet1!S71_A5CapexCode,$AD:$AD)","v":0},{"$f":"SUMIFS(Sheet1!S71_OY2AdjustedBudget,Sheet1!S71_SA34eCode,$AC:$AC,Sheet1!S71_A5CapexCode,$AD:$AD)","v":0},null,null,null,null,null,null,null,null,null,null,null,null,null,null,null,"0420","CE"]
["Reticulation",null,{"$f":"SUMIFS(Sheet1!S71_OriginalBudget,Sheet1!S71_SA34eCode,$AC:$AC,Sheet1!S71_A5CapexCode,$AD:$AD)","v":0},{"$f":"SUMIFS(Sheet1!S71_PreviousBudget,Sheet1!S71_SA34eCode,$AC:$AC,Sheet1!S71_A5CapexCode,$AD:$AD)","v":0},null,null,null,null,{"$f":"SUMIFS(Sheet1!S71_CurrentAdjustments,Sheet1!S71_SA34eCode,$AC:$AC,Sheet1!S71_A5CapexCode,$AD:$AD)","v":0},0,0,{"$f":"SUMIFS(Sheet1!S71_OY1AdjustedBudget,Sheet1!S71_SA34eCode,$AC:$AC,Sheet1!S71_A5CapexCode,$AD:$AD)","v":0},{"$f":"SUMIFS(Sheet1!S71_OY2AdjustedBudget,Sheet1!S71_SA34eCode,$AC:$AC,Sheet1!S71_A5CapexCode,$AD:$AD)","v":0},null,null,null,null,null,null,null,null,null,null,null,null,null,null,null,"0430","CE"]
["Waste Water Treatment Works",null,{"$f":"SUMIFS(Sheet1!S71_OriginalBudget,Sheet1!S71_SA34eCode,$AC:$AC,Sheet1!S71_A5CapexCode,$AD:$AD)","v":0},{"$f":"SUMIFS(Sheet1!S71_PreviousBudget,Sheet1!S71_SA34eCode,$AC:$AC,Sheet1!S71_A5CapexCode,$AD:$AD)","v":0},null,null,null,null,{"$f":"SUMIFS(Sheet1!S71_CurrentAdjustments,Sheet1!S71_SA34eCode,$AC:$AC,Sheet1!S71_A5CapexCode,$AD:$AD)","v":0},0,0,{"$f":"SUMIFS(Sheet1!S71_OY1AdjustedBudget,Sheet1!S71_SA34eCode,$AC:$AC,Sheet1!S71_A5CapexCode,$AD:$AD)","v":0},{"$f":"SUMIFS(Sheet1!S71_OY2AdjustedBudget,Sheet1!S71_SA34eCode,$AC:$AC,Sheet1!S71_A5CapexCode,$AD:$AD)","v":0},null,null,null,null,null,null,null,null,null,null,null,null,null,null,null,"0440","CE"]
["Outfall Sewers",null,{"$f":"SUMIFS(Sheet1!S71_OriginalBudget,Sheet1!S71_SA34eCode,$AC:$AC,Sheet1!S71_A5CapexCode,$AD:$AD)","v":0},{"$f":"SUMIFS(Sheet1!S71_PreviousBudget,Sheet1!S71_SA34eCode,$AC:$AC,Sheet1!S71_A5CapexCode,$AD:$AD)","v":0},null,null,null,null,{"$f":"SUMIFS(Sheet1!S71_CurrentAdjustments,Sheet1!S71_SA34eCode,$AC:$AC,Sheet1!S71_A5CapexCode,$AD:$AD)","v":0},0,0,{"$f":"SUMIFS(Sheet1!S71_OY1AdjustedBudget,Sheet1!S71_SA34eCode,$AC:$AC,Sheet1!S71_A5CapexCode,$AD:$AD)","v":0},{"$f":"SUMIFS(Sheet1!S71_OY2AdjustedBudget,Sheet1!S71_SA34eCode,$AC:$AC,Sheet1!S71_A5CapexCode,$AD:$AD)","v":0},null,null,null,null,null,null,null,null,null,null,null,null,null,null,null,"0450","CE"]
["Toilet Facilities",null,{"$f":"SUMIFS(Sheet1!S71_OriginalBudget,Sheet1!S71_SA34eCode,$AC:$AC,Sheet1!S71_A5CapexCode,$AD:$AD)","v":0},{"$f":"SUMIFS(Sheet1!S71_PreviousBudget,Sheet1!S71_SA34eCode,$AC:$AC,Sheet1!S71_A5CapexCode,$AD:$AD)","v":0},null,null,null,null,{"$f":"SUMIFS(Sheet1!S71_CurrentAdjustments,Sheet1!S71_SA34eCode,$AC:$AC,Sheet1!S71_A5CapexCode,$AD:$AD)","v":0},0,0,{"$f":"SUMIFS(Sheet1!S71_OY1AdjustedBudget,Sheet1!S71_SA34eCode,$AC:$AC,Sheet1!S71_A5CapexCode,$AD:$AD)","v":0},{"$f":"SUMIFS(Sheet1!S71_OY2AdjustedBudget,Sheet1!S71_SA34eCode,$AC:$AC,Sheet1!S71_A5CapexCode,$AD:$AD)","v":0},null,null,null,null,null,null,null,null,null,null,null,null,null,null,null,"0460","CE"]
["Capital Spares",null,{"$f":"SUMIFS(Sheet1!S71_OriginalBudget,Sheet1!S71_SA34eCode,$AC:$AC,Sheet1!S71_A5CapexCode,$AD:$AD)","v":0},{"$f":"SUMIFS(Sheet1!S71_PreviousBudget,Sheet1!S71_SA34eCode,$AC:$AC,Sheet1!S71_A5CapexCode,$AD:$AD)","v":0},null,null,null,null,{"$f":"SUMIFS(Sheet1!S71_CurrentAdjustments,Sheet1!S71_SA34eCode,$AC:$AC,Sheet1!S71_A5CapexCode,$AD:$AD)","v":0},0,0,{"$f":"SUMIFS(Sheet1!S71_OY1AdjustedBudget,Sheet1!S71_SA34eCode,$AC:$AC,Sheet1!S71_A5CapexCode,$AD:$AD)","v":0},{"$f":"SUMIFS(Sheet1!S71_OY2AdjustedBudget,Sheet1!S71_SA34eCode,$AC:$AC,Sheet1!S71_A5CapexCode,$AD:$AD)","v":0},null,null,null,null,null,null,null,null,null,null,null,null,null,null,null,"0470","CE"]
["Solid Waste Infrastructure",null,{"$f":"SUM(C47:C53)","v":0},{"$f":"SUM(D47:D53)","v":0},0,0,0,0,0,0,0,0,0,null,null,null,null,null,null,null,null,null,null,null,null,null,null,null,null,"CE"]
["Landfill Sites",null,{"$f":"SUMIFS(Sheet1!S71_OriginalBudget,Sheet1!S71_SA34eCode,$AC:$AC,Sheet1!S71_A5CapexCode,$AD:$AD)","v":0},{"$f":"SUMIFS(Sheet1!S71_PreviousBudget,Sheet1!S71_SA34eCode,$AC:$AC,Sheet1!S71_A5CapexCode,$AD:$AD)","v":0},null,null,null,null,{"$f":"SUMIFS(Sheet1!S71_CurrentAdjustments,Sheet1!S71_SA34eCode,$AC:$AC,Sheet1!S71_A5CapexCode,$AD:$AD)","v":0},0,0,{"$f":"SUMIFS(Sheet1!S71_OY1AdjustedBudget,Sheet1!S71_SA34eCode,$AC:$AC,Sheet1!S71_A5CapexCode,$AD:$AD)","v":0},{"$f":"SUMIFS(Sheet1!S71_OY2AdjustedBudget,Sheet1!S71_SA34eCode,$AC:$AC,Sheet1!S71_A5CapexCode,$AD:$AD)","v":0},null,null,null,null,null,null,null,null,null,null,null,null,null,null,null,"0490","CE"]
["Waste Transfer Stations",null,{"$f":"SUMIFS(Sheet1!S71_OriginalBudget,Sheet1!S71_SA34eCode,$AC:$AC,Sheet1!S71_A5CapexCode,$AD:$AD)","v":0},{"$f":"SUMIFS(Sheet1!S71_PreviousBudget,Sheet1!S71_SA34eCode,$AC:$AC,Sheet1!S71_A5CapexCode,$AD:$AD)","v":0},null,null,null,null,{"$f":"SUMIFS(Sheet1!S71_CurrentAdjustments,Sheet1!S71_SA34eCode,$AC:$AC,Sheet1!S71_A5CapexCode,$AD:$AD)","v":0},0,0,{"$f":"SUMIFS(Sheet1!S71_OY1AdjustedBudget,Sheet1!S71_SA34eCode,$AC:$AC,Sheet1!S71_A5CapexCode,$AD:$AD)","v":0},{"$f":"SUMIFS(Sheet1!S71_OY2AdjustedBudget,Sheet1!S71_SA34eCode,$AC:$AC,Sheet1!S71_A5CapexCode,$AD:$AD)","v":0},null,null,null,null,null,null,null,null,null,null,null,null,null,null,null,"0500","CE"]
["Waste Processing Facilities",null,{"$f":"SUMIFS(Sheet1!S71_OriginalBudget,Sheet1!S71_SA34eCode,$AC:$AC,Sheet1!S71_A5CapexCode,$AD:$AD)","v":0},{"$f":"SUMIFS(Sheet1!S71_PreviousBudget,Sheet1!S71_SA34eCode,$AC:$AC,Sheet1!S71_A5CapexCode,$AD:$AD)","v":0},null,null,null,null,{"$f":"SUMIFS(Sheet1!S71_CurrentAdjustments,Sheet1!S71_SA34eCode,$AC:$AC,Sheet1!S71_A5CapexCode,$AD:$AD)","v":0},0,0,{"$f":"SUMIFS(Sheet1!S71_OY1AdjustedBudget,Sheet1!S71_SA34eCode,$AC:$AC,Sheet1!S71_A5CapexCode,$AD:$AD)","v":0},{"$f":"SUMIFS(Sheet1!S71_OY2AdjustedBudget,Sheet1!S71_SA34eCode,$AC:$AC,Sheet1!S71_A5CapexCode,$AD:$AD)","v":0},null,null,null,null,null,null,null,null,null,null,null,null,null,null,null,"0510","CE"]
["Waste Drop-off Points",null,{"$f":"SUMIFS(Sheet1!S71_OriginalBudget,Sheet1!S71_SA34eCode,$AC:$AC,Sheet1!S71_A5CapexCode,$AD:$AD)","v":0},{"$f":"SUMIFS(Sheet1!S71_PreviousBudget,Sheet1!S71_SA34eCode,$AC:$AC,Sheet1!S71_A5CapexCode,$AD:$AD)","v":0},null,null,null,null,{"$f":"SUMIFS(Sheet1!S71_CurrentAdjustments,Sheet1!S71_SA34eCode,$AC:$AC,Sheet1!S71_A5CapexCode,$AD:$AD)","v":0},0,0,{"$f":"SUMIFS(Sheet1!S71_OY1AdjustedBudget,Sheet1!S71_SA34eCode,$AC:$AC,Sheet1!S71_A5CapexCode,$AD:$AD)","v":0},{"$f":"SUMIFS(Sheet1!S71_OY2AdjustedBudget,Sheet1!S71_SA34eCode,$AC:$AC,Sheet1!S71_A5CapexCode,$AD:$AD)","v":0},null,null,null,null,null,null,null,null,null,null,null,null,null,null,null,"0520","CE"]
["Waste Separation Facilities",null,{"$f":"SUMIFS(Sheet1!S71_OriginalBudget,Sheet1!S71_SA34eCode,$AC:$AC,Sheet1!S71_A5CapexCode,$AD:$AD)","v":0},{"$f":"SUMIFS(Sheet1!S71_PreviousBudget,Sheet1!S71_SA34eCode,$AC:$AC,Sheet1!S71_A5CapexCode,$AD:$AD)","v":0},null,null,null,null,{"$f":"SUMIFS(Sheet1!S71_CurrentAdjustments,Sheet1!S71_SA34eCode,$AC:$AC,Sheet1!S71_A5CapexCode,$AD:$AD)","v":0},0,0,{"$f":"SUMIFS(Sheet1!S71_OY1AdjustedBudget,Sheet1!S71_SA34eCode,$AC:$AC,Sheet1!S71_A5CapexCode,$AD:$AD)","v":0},{"$f":"SUMIFS(Sheet1!S71_OY2AdjustedBudget,Sheet1!S71_SA34eCode,$AC:$AC,Sheet1!S71_A5CapexCode,$AD:$AD)","v":0},null,null,null,null,null,null,null,null,null,null,null,null,null,null,null,"0530","CE"]
["Electricity Generation Facilities",null,{"$f":"SUMIFS(Sheet1!S71_OriginalBudget,Sheet1!S71_SA34eCode,$AC:$AC,Sheet1!S71_A5CapexCode,$AD:$AD)","v":0},{"$f":"SUMIFS(Sheet1!S71_PreviousBudget,Sheet1!S71_SA34eCode,$AC:$AC,Sheet1!S71_A5CapexCode,$AD:$AD)","v":0},null,null,null,null,{"$f":"SUMIFS(Sheet1!S71_CurrentAdjustments,Sheet1!S71_SA34eCode,$AC:$AC,Sheet1!S71_A5CapexCode,$AD:$AD)","v":0},0,0,{"$f":"SUMIFS(Sheet1!S71_OY1AdjustedBudget,Sheet1!S71_SA34eCode,$AC:$AC,Sheet1!S71_A5CapexCode,$AD:$AD)","v":0},{"$f":"SUMIFS(Sheet1!S71_OY2AdjustedBudget,Sheet1!S71_SA34eCode,$AC:$AC,Sheet1!S71_A5CapexCode,$AD:$AD)","v":0},null,null,null,null,null,null,null,null,null,null,null,null,null,null,null,"0540","CE"]
["Capital Spares",null,{"$f":"SUMIFS(Sheet1!S71_OriginalBudget,Sheet1!S71_SA34eCode,$AC:$AC,Sheet1!S71_A5CapexCode,$AD:$AD)","v":0},{"$f":"SUMIFS(Sheet1!S71_PreviousBudget,Sheet1!S71_SA34eCode,$AC:$AC,Sheet1!S71_A5CapexCode,$AD:$AD)","v":0},null,null,null,null,{"$f":"SUMIFS(Sheet1!S71_CurrentAdjustments,Sheet1!S71_SA34eCode,$AC:$AC,Sheet1!S71_A5CapexCode,$AD:$AD)","v":0},0,0,{"$f":"SUMIFS(Sheet1!S71_OY1AdjustedBudget,Sheet1!S71_SA34eCode,$AC:$AC,Sheet1!S71_A5CapexCode,$AD:$AD)","v":0},{"$f":"SUMIFS(Sheet1!S71_OY2AdjustedBudget,Sheet1!S71_SA34eCode,$AC:$AC,Sheet1!S71_A5CapexCode,$AD:$AD)","v":0},null,null,null,null,null,null,null,null,null,null,null,null,null,null,null,"0550","CE"]
["Rail Infrastructure",null,{"$f":"SUM(C55:C63)","v":0},{"$f":"SUM(D55:D63)","v":0},0,0,0,0,0,0,0,0,0,null,null,null,null,null,null,null,null,null,null,null,null,null,null,null,null,"CE"]
["Rail Lines",null,{"$f":"SUMIFS(Sheet1!S71_OriginalBudget,Sheet1!S71_SA34eCode,$AC:$AC,Sheet1!S71_A5CapexCode,$AD:$AD)","v":0},{"$f":"SUMIFS(Sheet1!S71_PreviousBudget,Sheet1!S71_SA34eCode,$AC:$AC,Sheet1!S71_A5CapexCode,$AD:$AD)","v":0},null,null,null,null,{"$f":"SUMIFS(Sheet1!S71_CurrentAdjustments,Sheet1!S71_SA34eCode,$AC:$AC,Sheet1!S71_A5CapexCode,$AD:$AD)","v":0},0,0,{"$f":"SUMIFS(Sheet1!S71_OY1AdjustedBudget,Sheet1!S71_SA34eCode,$AC:$AC,Sheet1!S71_A5CapexCode,$AD:$AD)","v":0},{"$f":"SUMIFS(Sheet1!S71_OY2AdjustedBudget,Sheet1!S71_SA34eCode,$AC:$AC,Sheet1!S71_A5CapexCode,$AD:$AD)","v":0},null,null,null,null,null,null,null,null,null,null,null,null,null,null,null,"0570","CE"]
["Rail Structures",null,{"$f":"SUMIFS(Sheet1!S71_OriginalBudget,Sheet1!S71_SA34eCode,$AC:$AC,Sheet1!S71_A5CapexCode,$AD:$AD)","v":0},{"$f":"SUMIFS(Sheet1!S71_PreviousBudget,Sheet1!S71_SA34eCode,$AC:$AC,Sheet1!S71_A5CapexCode,$AD:$AD)","v":0},null,null,null,null,{"$f":"SUMIFS(Sheet1!S71_CurrentAdjustments,Sheet1!S71_SA34eCode,$AC:$AC,Sheet1!S71_A5CapexCode,$AD:$AD)","v":0},0,0,{"$f":"SUMIFS(Sheet1!S71_OY1AdjustedBudget,Sheet1!S71_SA34eCode,$AC:$AC,Sheet1!S71_A5CapexCode,$AD:$AD)","v":0},{"$f":"SUMIFS(Sheet1!S71_OY2AdjustedBudget,Sheet1!S71_SA34eCode,$AC:$AC,Sheet1!S71_A5CapexCode,$AD:$AD)","v":0},null,null,null,null,null,null,null,null,null,null,null,null,null,null,null,"0580","CE"]
["Rail Furniture",null,{"$f":"SUMIFS(Sheet1!S71_OriginalBudget,Sheet1!S71_SA34eCode,$AC:$AC,Sheet1!S71_A5CapexCode,$AD:$AD)","v":0},{"$f":"SUMIFS(Sheet1!S71_PreviousBudget,Sheet1!S71_SA34eCode,$AC:$AC,Sheet1!S71_A5CapexCode,$AD:$AD)","v":0},null,null,null,null,{"$f":"SUMIFS(Sheet1!S71_CurrentAdjustments,Sheet1!S71_SA34eCode,$AC:$AC,Sheet1!S71_A5CapexCode,$AD:$AD)","v":0},0,0,{"$f":"SUMIFS(Sheet1!S71_OY1AdjustedBudget,Sheet1!S71_SA34eCode,$AC:$AC,Sheet1!S71_A5CapexCode,$AD:$AD)","v":0},{"$f":"SUMIFS(Sheet1!S71_OY2AdjustedBudget,Sheet1!S71_SA34eCode,$AC:$AC,Sheet1!S71_A5CapexCode,$AD:$AD)","v":0},null,null,null,null,null,null,null,null,null,null,null,null,null,null,null,"0590","CE"]
["Drainage Collection",null,{"$f":"SUMIFS(Sheet1!S71_OriginalBudget,Sheet1!S71_SA34eCode,$AC:$AC,Sheet1!S71_A5CapexCode,$AD:$AD)","v":0},{"$f":"SUMIFS(Sheet1!S71_PreviousBudget,Sheet1!S71_SA34eCode,$AC:$AC,Sheet1!S71_A5CapexCode,$AD:$AD)","v":0},null,null,null,null,{"$f":"SUMIFS(Sheet1!S71_CurrentAdjustments,Sheet1!S71_SA34eCode,$AC:$AC,Sheet1!S71_A5CapexCode,$AD:$AD)","v":0},0,0,{"$f":"SUMIFS(Sheet1!S71_OY1AdjustedBudget,Sheet1!S71_SA34eCode,$AC:$AC,Sheet1!S71_A5CapexCode,$AD:$AD)","v":0},{"$f":"SUMIFS(Sheet1!S71_OY2AdjustedBudget,Sheet1!S71_SA34eCode,$AC:$AC,Sheet1!S71_A5CapexCode,$AD:$AD)","v":0},null,null,null,null,null,null,null,null,null,null,null,null,null,null,null,"0600","CE"]
["Storm water Conveyance",null,{"$f":"SUMIFS(Sheet1!S71_OriginalBudget,Sheet1!S71_SA34eCode,$AC:$AC,Sheet1!S71_A5CapexCode,$AD:$AD)","v":0},{"$f":"SUMIFS(Sheet1!S71_PreviousBudget,Sheet1!S71_SA34eCode,$AC:$AC,Sheet1!S71_A5CapexCode,$AD:$AD)","v":0},null,null,null,null,{"$f":"SUMIFS(Sheet1!S71_CurrentAdjustments,Sheet1!S71_SA34eCode,$AC:$AC,Sheet1!S71_A5CapexCode,$AD:$AD)","v":0},0,0,{"$f":"SUMIFS(Sheet1!S71_OY1AdjustedBudget,Sheet1!S71_SA34eCode,$AC:$AC,Sheet1!S71_A5CapexCode,$AD:$AD)","v":0},{"$f":"SUMIFS(Sheet1!S71_OY2AdjustedBudget,Sheet1!S71_SA34eCode,$AC:$AC,Sheet1!S71_A5CapexCode,$AD:$AD)","v":0},null,null,null,null,null,null,null,null,null,null,null,null,null,null,null,"0610","CE"]
["Attenuation",null,{"$f":"SUMIFS(Sheet1!S71_OriginalBudget,Sheet1!S71_SA34eCode,$AC:$AC,Sheet1!S71_A5CapexCode,$AD:$AD)","v":0},{"$f":"SUMIFS(Sheet1!S71_PreviousBudget,Sheet1!S71_SA34eCode,$AC:$AC,Sheet1!S71_A5CapexCode,$AD:$AD)","v":0},null,null,null,null,{"$f":"SUMIFS(Sheet1!S71_CurrentAdjustments,Sheet1!S71_SA34eCode,$AC:$AC,Sheet1!S71_A5CapexCode,$AD:$AD)","v":0},0,0,{"$f":"SUMIFS(Sheet1!S71_OY1AdjustedBudget,Sheet1!S71_SA34eCode,$AC:$AC,Sheet1!S71_A5CapexCode,$AD:$AD)","v":0},{"$f":"SUMIFS(Sheet1!S71_OY2AdjustedBudget,Sheet1!S71_SA34eCode,$AC:$AC,Sheet1!S71_A5CapexCode,$AD:$AD)","v":0},null,null,null,null,null,null,null,null,null,null,null,null,null,null,null,"0620","CE"]
["MV Substations",null,{"$f":"SUMIFS(Sheet1!S71_OriginalBudget,Sheet1!S71_SA34eCode,$AC:$AC,Sheet1!S71_A5CapexCode,$AD:$AD)","v":0},{"$f":"SUMIFS(Sheet1!S71_PreviousBudget,Sheet1!S71_SA34eCode,$AC:$AC,Sheet1!S71_A5CapexCode,$AD:$AD)","v":0},null,null,null,null,{"$f":"SUMIFS(Sheet1!S71_CurrentAdjustments,Sheet1!S71_SA34eCode,$AC:$AC,Sheet1!S71_A5CapexCode,$AD:$AD)","v":0},0,0,{"$f":"SUMIFS(Sheet1!S71_OY1AdjustedBudget,Sheet1!S71_SA34eCode,$AC:$AC,Sheet1!S71_A5CapexCode,$AD:$AD)","v":0},{"$f":"SUMIFS(Sheet1!S71_OY2AdjustedBudget,Sheet1!S71_SA34eCode,$AC:$AC,Sheet1!S71_A5CapexCode,$AD:$AD)","v":0},null,null,null,null,null,null,null,null,null,null,null,null,null,null,null,"0630","CE"]
["LV Networks",null,{"$f":"SUMIFS(Sheet1!S71_OriginalBudget,Sheet1!S71_SA34eCode,$AC:$AC,Sheet1!S71_A5CapexCode,$AD:$AD)","v":0},{"$f":"SUMIFS(Sheet1!S71_PreviousBudget,Sheet1!S71_SA34eCode,$AC:$AC,Sheet1!S71_A5CapexCode,$AD:$AD)","v":0},null,null,null,null,{"$f":"SUMIFS(Sheet1!S71_CurrentAdjustments,Sheet1!S71_SA34eCode,$AC:$AC,Sheet1!S71_A5CapexCode,$AD:$AD)","v":0},0,0,{"$f":"SUMIFS(Sheet1!S71_OY1AdjustedBudget,Sheet1!S71_SA34eCode,$AC:$AC,Sheet1!S71_A5CapexCode,$AD:$AD)","v":0},{"$f":"SUMIFS(Sheet1!S71_OY2AdjustedBudget,Sheet1!S71_SA34eCode,$AC:$AC,Sheet1!S71_A5CapexCode,$AD:$AD)","v":0},null,null,null,null,null,null,null,null,null,null,null,null,null,null,null,"0640","CE"]
["Capital Spares",null,{"$f":"SUMIFS(Sheet1!S71_OriginalBudget,Sheet1!S71_SA34eCode,$AC:$AC,Sheet1!S71_A5CapexCode,$AD:$AD)","v":0},{"$f":"SUMIFS(Sheet1!S71_PreviousBudget,Sheet1!S71_SA34eCode,$AC:$AC,Sheet1!S71_A5CapexCode,$AD:$AD)","v":0},null,null,null,null,{"$f":"SUMIFS(Sheet1!S71_CurrentAdjustments,Sheet1!S71_SA34eCode,$AC:$AC,Sheet1!S71_A5CapexCode,$AD:$AD)","v":0},0,0,{"$f":"SUMIFS(Sheet1!S71_OY1AdjustedBudget,Sheet1!S71_SA34eCode,$AC:$AC,Sheet1!S71_A5CapexCode,$AD:$AD)","v":0},{"$f":"SUMIFS(Sheet1!S71_OY2AdjustedBudget,Sheet1!S71_SA34eCode,$AC:$AC,Sheet1!S71_A5CapexCode,$AD:$AD)","v":0},null,null,null,null,null,null,null,null,null,null,null,null,null,null,null,"0650","CE"]
["Coastal Infrastructure",null,{"$f":"SUM(C65:C69)","v":0},0,0,0,0,0,0,0,0,0,0,null,null,null,null,null,null,null,null,null,null,null,null,null,null,null,null,"CE"]
["Sand Pumps",null,{"$f":"SUMIFS(Sheet1!S71_OriginalBudget,Sheet1!S71_SA34eCode,$AC:$AC,Sheet1!S71_A5CapexCode,$AD:$AD)","v":0},{"$f":"SUMIFS(Sheet1!S71_PreviousBudget,Sheet1!S71_SA34eCode,$AC:$AC,Sheet1!S71_A5CapexCode,$AD:$AD)","v":0},null,null,null,null,{"$f":"SUMIFS(Sheet1!S71_CurrentAdjustments,Sheet1!S71_SA34eCode,$AC:$AC,Sheet1!S71_A5CapexCode,$AD:$AD)","v":0},0,0,{"$f":"SUMIFS(Sheet1!S71_OY1AdjustedBudget,Sheet1!S71_SA34eCode,$AC:$AC,Sheet1!S71_A5CapexCode,$AD:$AD)","v":0},{"$f":"SUMIFS(Sheet1!S71_OY2AdjustedBudget,Sheet1!S71_SA34eCode,$AC:$AC,Sheet1!S71_A5CapexCode,$AD:$AD)","v":0},null,null,null,null,null,null,null,null,null,null,null,null,null,null,null,"0670","CE"]
["Piers",null,{"$f":"SUMIFS(Sheet1!S71_OriginalBudget,Sheet1!S71_SA34eCode,$AC:$AC,Sheet1!S71_A5CapexCode,$AD:$AD)","v":0},{"$f":"SUMIFS(Sheet1!S71_PreviousBudget,Sheet1!S71_SA34eCode,$AC:$AC,Sheet1!S71_A5CapexCode,$AD:$AD)","v":0},null,null,null,null,{"$f":"SUMIFS(Sheet1!S71_CurrentAdjustments,Sheet1!S71_SA34eCode,$AC:$AC,Sheet1!S71_A5CapexCode,$AD:$AD)","v":0},0,0,{"$f":"SUMIFS(Sheet1!S71_OY1AdjustedBudget,Sheet1!S71_SA34eCode,$AC:$AC,Sheet1!S71_A5CapexCode,$AD:$AD)","v":0},{"$f":"SUMIFS(Sheet1!S71_OY2AdjustedBudget,Sheet1!S71_SA34eCode,$AC:$AC,Sheet1!S71_A5CapexCode,$AD:$AD)","v":0},null,null,null,null,null,null,null,null,null,null,null,null,null,null,null,"0680","CE"]
["Revetments",null,{"$f":"SUMIFS(Sheet1!S71_OriginalBudget,Sheet1!S71_SA34eCode,$AC:$AC,Sheet1!S71_A5CapexCode,$AD:$AD)","v":0},{"$f":"SUMIFS(Sheet1!S71_PreviousBudget,Sheet1!S71_SA34eCode,$AC:$AC,Sheet1!S71_A5CapexCode,$AD:$AD)","v":0},null,null,null,null,{"$f":"SUMIFS(Sheet1!S71_CurrentAdjustments,Sheet1!S71_SA34eCode,$AC:$AC,Sheet1!S71_A5CapexCode,$AD:$AD)","v":0},0,0,{"$f":"SUMIFS(Sheet1!S71_OY1AdjustedBudget,Sheet1!S71_SA34eCode,$AC:$AC,Sheet1!S71_A5CapexCode,$AD:$AD)","v":0},{"$f":"SUMIFS(Sheet1!S71_OY2AdjustedBudget,Sheet1!S71_SA34eCode,$AC:$AC,Sheet1!S71_A5CapexCode,$AD:$AD)","v":0},null,null,null,null,null,null,null,null,null,null,null,null,null,null,null,"0690","CE"]
["Promenades",null,{"$f":"SUMIFS(Sheet1!S71_OriginalBudget,Sheet1!S71_SA34eCode,$AC:$AC,Sheet1!S71_A5CapexCode,$AD:$AD)","v":0},{"$f":"SUMIFS(Sheet1!S71_PreviousBudget,Sheet1!S71_SA34eCode,$AC:$AC,Sheet1!S71_A5CapexCode,$AD:$AD)","v":0},null,null,null,null,{"$f":"SUMIFS(Sheet1!S71_CurrentAdjustments,Sheet1!S71_SA34eCode,$AC:$AC,Sheet1!S71_A5CapexCode,$AD:$AD)","v":0},0,0,{"$f":"SUMIFS(Sheet1!S71_OY1AdjustedBudget,Sheet1!S71_SA34eCode,$AC:$AC,Sheet1!S71_A5CapexCode,$AD:$AD)","v":0},{"$f":"SUMIFS(Sheet1!S71_OY2AdjustedBudget,Sheet1!S71_SA34eCode,$AC:$AC,Sheet1!S71_A5CapexCode,$AD:$AD)","v":0},null,null,null,null,null,null,null,null,null,null,null,null,null,null,null,"0700","CE"]
["Capital Spares",null,{"$f":"SUMIFS(Sheet1!S71_OriginalBudget,Sheet1!S71_SA34eCode,$AC:$AC,Sheet1!S71_A5CapexCode,$AD:$AD)","v":0},{"$f":"SUMIFS(Sheet1!S71_PreviousBudget,Sheet1!S71_SA34eCode,$AC:$AC,Sheet1!S71_A5CapexCode,$AD:$AD)","v":0},null,null,null,null,{"$f":"SUMIFS(Sheet1!S71_CurrentAdjustments,Sheet1!S71_SA34eCode,$AC:$AC,Sheet1!S71_A5CapexCode,$AD:$AD)","v":0},0,0,{"$f":"SUMIFS(Sheet1!S71_OY1AdjustedBudget,Sheet1!S71_SA34eCode,$AC:$AC,Sheet1!S71_A5CapexCode,$AD:$AD)","v":0},{"$f":"SUMIFS(Sheet1!S71_OY2AdjustedBudget,Sheet1!S71_SA34eCode,$AC:$AC,Sheet1!S71_A5CapexCode,$AD:$AD)","v":0},null,null,null,null,null,null,null,null,null,null,null,null,null,null,null,"0710","CE"]
["Information and Communication Infrastructure",null,{"$f":"SUM(C71:C74)","v":0},0,0,0,0,0,0,0,0,0,0,null,null,null,null,null,null,null,null,null,null,null,null,null,null,null,null,"CE"]
["Data Centres",null,{"$f":"SUMIFS(Sheet1!S71_OriginalBudget,Sheet1!S71_SA34eCode,$AC:$AC,Sheet1!S71_A5CapexCode,$AD:$AD)","v":0},{"$f":"SUMIFS(Sheet1!S71_PreviousBudget,Sheet1!S71_SA34eCode,$AC:$AC,Sheet1!S71_A5CapexCode,$AD:$AD)","v":0},null,null,null,null,{"$f":"SUMIFS(Sheet1!S71_CurrentAdjustments,Sheet1!S71_SA34eCode,$AC:$AC,Sheet1!S71_A5CapexCode,$AD:$AD)","v":0},0,0,{"$f":"SUMIFS(Sheet1!S71_OY1AdjustedBudget,Sheet1!S71_SA34eCode,$AC:$AC,Sheet1!S71_A5CapexCode,$AD:$AD)","v":0},{"$f":"SUMIFS(Sheet1!S71_OY2AdjustedBudget,Sheet1!S71_SA34eCode,$AC:$AC,Sheet1!S71_A5CapexCode,$AD:$AD)","v":0},null,null,null,null,null,null,null,null,null,null,null,null,null,null,null,"0730","CE"]
["Core Layers",null,{"$f":"SUMIFS(Sheet1!S71_OriginalBudget,Sheet1!S71_SA34eCode,$AC:$AC,Sheet1!S71_A5CapexCode,$AD:$AD)","v":0},{"$f":"SUMIFS(Sheet1!S71_PreviousBudget,Sheet1!S71_SA34eCode,$AC:$AC,Sheet1!S71_A5CapexCode,$AD:$AD)","v":0},null,null,null,null,{"$f":"SUMIFS(Sheet1!S71_CurrentAdjustments,Sheet1!S71_SA34eCode,$AC:$AC,Sheet1!S71_A5CapexCode,$AD:$AD)","v":0},0,0,{"$f":"SUMIFS(Sheet1!S71_OY1AdjustedBudget,Sheet1!S71_SA34eCode,$AC:$AC,Sheet1!S71_A5CapexCode,$AD:$AD)","v":0},{"$f":"SUMIFS(Sheet1!S71_OY2AdjustedBudget,Sheet1!S71_SA34eCode,$AC:$AC,Sheet1!S71_A5CapexCode,$AD:$AD)","v":0},null,null,null,null,null,null,null,null,null,null,null,null,null,null,null,"0740","CE"]
["Distribution Layers",null,{"$f":"SUMIFS(Sheet1!S71_OriginalBudget,Sheet1!S71_SA34eCode,$AC:$AC,Sheet1!S71_A5CapexCode,$AD:$AD)","v":0},{"$f":"SUMIFS(Sheet1!S71_PreviousBudget,Sheet1!S71_SA34eCode,$AC:$AC,Sheet1!S71_A5CapexCode,$AD:$AD)","v":0},null,null,null,null,{"$f":"SUMIFS(Sheet1!S71_CurrentAdjustments,Sheet1!S71_SA34eCode,$AC:$AC,Sheet1!S71_A5CapexCode,$AD:$AD)","v":0},{"$f":"SUM(E73:I73)","v":0},{"$f":"IF(D73=0,C73+J73,D73+J73)","v":0},{"$f":"SUMIFS(Sheet1!S71_OY1AdjustedBudget,Sheet1!S71_SA34eCode,$AC:$AC,Sheet1!S71_A5CapexCode,$AD:$AD)","v":0},{"$f":"SUMIFS(Sheet1!S71_OY2AdjustedBudget,Sheet1!S71_SA34eCode,$AC:$AC,Sheet1!S71_A5CapexCode,$AD:$AD)","v":0},null,null,null,null,null,null,null,null,null,null,null,null,null,null,null,"0750","CE"]
["Capital Spares",null,{"$f":"SUMIFS(Sheet1!S71_OriginalBudget,Sheet1!S71_SA34eCode,$AC:$AC,Sheet1!S71_A5CapexCode,$AD:$AD)","v":0},{"$f":"SUMIFS(Sheet1!S71_PreviousBudget,Sheet1!S71_SA34eCode,$AC:$AC,Sheet1!S71_A5CapexCode,$AD:$AD)","v":0},null,null,null,null,{"$f":"SUMIFS(Sheet1!S71_CurrentAdjustments,Sheet1!S71_SA34eCode,$AC:$AC,Sheet1!S71_A5CapexCode,$AD:$AD)","v":0},0,0,{"$f":"SUMIFS(Sheet1!S71_OY1AdjustedBudget,Sheet1!S71_SA34eCode,$AC:$AC,Sheet1!S71_A5CapexCode,$AD:$AD)","v":0},{"$f":"SUMIFS(Sheet1!S71_OY2AdjustedBudget,Sheet1!S71_SA34eCode,$AC:$AC,Sheet1!S71_A5CapexCode,$AD:$AD)","v":0},null,null,null,null,null,null,null,null,null,null,null,null,null,null,null,"0760","CE"]
[null,null,null,null,null,null,null,null,null,null,null,null,null,null,null,null,null,null,null,null,null,null,null,null,null,null,null,null,null,"CE"]
["Community Assets",null,{"$f":"+C77+C100","v":173910},{"$f":"+D77+D100","v":0},{"$f":"+E77+E100","v":0},0,0,0,0,0,173910,0,0,null,null,null,null,null,null,null,null,null,null,null,null,null,null,null,null,"CE"]
["Community Facilities",null,{"$f":"SUM(C78:C99)","v":173910},{"$f":"SUM(D78:D99)","v":0},{"$f":"SUM(E78:E99)","v":0},0,0,0,0,0,173910,0,0,null,null,null,null,null,null,null,null,null,null,null,null,null,null,null,null,"CE"]
["Halls",null,{"$f":"SUMIFS(Sheet1!S71_OriginalBudget,Sheet1!S71_SA34eCode,$AC:$AC,Sheet1!S71_A5CapexCode,$AD:$AD)","v":173910},{"$f":"SUMIFS(Sheet1!S71_PreviousBudget,Sheet1!S71_SA34eCode,$AC:$AC,Sheet1!S71_A5CapexCode,$AD:$AD)","v":0},null,null,null,null,{"$f":"SUMIFS(Sheet1!S71_CurrentAdjustments,Sheet1!S71_SA34eCode,$AC:$AC,Sheet1!S71_A5CapexCode,$AD:$AD)","v":0},0,173910,{"$f":"SUMIFS(Sheet1!S71_OY1AdjustedBudget,Sheet1!S71_SA34eCode,$AC:$AC,Sheet1!S71_A5CapexCode,$AD:$AD)","v":0},{"$f":"SUMIFS(Sheet1!S71_OY2AdjustedBudget,Sheet1!S71_SA34eCode,$AC:$AC,Sheet1!S71_A5CapexCode,$AD:$AD)","v":0},null,null,null,null,null,null,null,null,null,null,null,null,null,null,null,"0790","CE"]
["Centres",null,{"$f":"SUMIFS(Sheet1!S71_OriginalBudget,Sheet1!S71_SA34eCode,$AC:$AC,Sheet1!S71_A5CapexCode,$AD:$AD)","v":0},{"$f":"SUMIFS(Sheet1!S71_PreviousBudget,Sheet1!S71_SA34eCode,$AC:$AC,Sheet1!S71_A5CapexCode,$AD:$AD)","v":0},null,null,null,null,{"$f":"SUMIFS(Sheet1!S71_CurrentAdjustments,Sheet1!S71_SA34eCode,$AC:$AC,Sheet1!S71_A5CapexCode,$AD:$AD)","v":0},0,0,{"$f":"SUMIFS(Sheet1!S71_OY1AdjustedBudget,Sheet1!S71_SA34eCode,$AC:$AC,Sheet1!S71_A5CapexCode,$AD:$AD)","v":0},{"$f":"SUMIFS(Sheet1!S71_OY2AdjustedBudget,Sheet1!S71_SA34eCode,$AC:$AC,Sheet1!S71_A5CapexCode,$AD:$AD)","v":0},null,null,null,null,null,null,null,null,null,null,null,null,null,null,null,"0800","CE"]
["Crèches",null,{"$f":"SUMIFS(Sheet1!S71_OriginalBudget,Sheet1!S71_SA34eCode,$AC:$AC,Sheet1!S71_A5CapexCode,$AD:$AD)","v":0},{"$f":"SUMIFS(Sheet1!S71_PreviousBudget,Sheet1!S71_SA34eCode,$AC:$AC,Sheet1!S71_A5CapexCode,$AD:$AD)","v":0},null,null,null,null,{"$f":"SUMIFS(Sheet1!S71_CurrentAdjustments,Sheet1!S71_SA34eCode,$AC:$AC,Sheet1!S71_A5CapexCode,$AD:$AD)","v":0},0,0,{"$f":"SUMIFS(Sheet1!S71_OY1AdjustedBudget,Sheet1!S71_SA34eCode,$AC:$AC,Sheet1!S71_A5CapexCode,$AD:$AD)","v":0},{"$f":"SUMIFS(Sheet1!S71_OY2AdjustedBudget,Sheet1!S71_SA34eCode,$AC:$AC,Sheet1!S71_A5CapexCode,$AD:$AD)","v":0},null,null,null,null,null,null,null,null,null,null,null,null,null,null,null,"0810","CE"]
["Clinics/Care Centres",null,{"$f":"SUMIFS(Sheet1!S71_OriginalBudget,Sheet1!S71_SA34eCode,$AC:$AC,Sheet1!S71_A5CapexCode,$AD:$AD)","v":0},{"$f":"SUMIFS(Sheet1!S71_PreviousBudget,Sheet1!S71_SA34eCode,$AC:$AC,Sheet1!S71_A5CapexCode,$AD:$AD)","v":0},null,null,null,null,{"$f":"SUMIFS(Sheet1!S71_CurrentAdjustments,Sheet1!S71_SA34eCode,$AC:$AC,Sheet1!S71_A5CapexCode,$AD:$AD)","v":0},0,0,{"$f":"SUMIFS(Sheet1!S71_OY1AdjustedBudget,Sheet1!S71_SA34eCode,$AC:$AC,Sheet1!S71_A5CapexCode,$AD:$AD)","v":0},{"$f":"SUMIFS(Sheet1!S71_OY2AdjustedBudget,Sheet1!S71_SA34eCode,$AC:$AC,Sheet1!S71_A5CapexCode,$AD:$AD)","v":0},null,null,null,null,null,null,null,null,null,null,null,null,null,null,null,"0820","CE"]
["Fire/Ambulance Stations",null,{"$f":"SUMIFS(Sheet1!S71_OriginalBudget,Sheet1!S71_SA34eCode,$AC:$AC,Sheet1!S71_A5CapexCode,$AD:$AD)","v":0},{"$f":"SUMIFS(Sheet1!S71_PreviousBudget,Sheet1!S71_SA34eCode,$AC:$AC,Sheet1!S71_A5CapexCode,$AD:$AD)","v":0},null,null,null,null,{"$f":"SUMIFS(Sheet1!S71_CurrentAdjustments,Sheet1!S71_SA34eCode,$AC:$AC,Sheet1!S71_A5CapexCode,$AD:$AD)","v":0},0,0,{"$f":"SUMIFS(Sheet1!S71_OY1AdjustedBudget,Sheet1!S71_SA34eCode,$AC:$AC,Sheet1!S71_A5CapexCode,$AD:$AD)","v":0},{"$f":"SUMIFS(Sheet1!S71_OY2AdjustedBudget,Sheet1!S71_SA34eCode,$AC:$AC,Sheet1!S71_A5CapexCode,$AD:$AD)","v":0},null,null,null,null,null,null,null,null,null,null,null,null,null,null,null,"0830","CE"]
["Testing Stations",null,{"$f":"SUMIFS(Sheet1!S71_OriginalBudget,Sheet1!S71_SA34eCode,$AC:$AC,Sheet1!S71_A5CapexCode,$AD:$AD)","v":0},{"$f":"SUMIFS(Sheet1!S71_PreviousBudget,Sheet1!S71_SA34eCode,$AC:$AC,Sheet1!S71_A5CapexCode,$AD:$AD)","v":0},null,null,null,null,{"$f":"SUMIFS(Sheet1!S71_CurrentAdjustments,Sheet1!S71_SA34eCode,$AC:$AC,Sheet1!S71_A5CapexCode,$AD:$AD)","v":0},0,0,{"$f":"SUMIFS(Sheet1!S71_OY1AdjustedBudget,Sheet1!S71_SA34eCode,$AC:$AC,Sheet1!S71_A5CapexCode,$AD:$AD)","v":0},{"$f":"SUMIFS(Sheet1!S71_OY2AdjustedBudget,Sheet1!S71_SA34eCode,$AC:$AC,Sheet1!S71_A5CapexCode,$AD:$AD)","v":0},null,null,null,null,null,null,null,null,null,null,null,null,null,null,null,"0840","CE"]
["Museums",null,{"$f":"SUMIFS(Sheet1!S71_OriginalBudget,Sheet1!S71_SA34eCode,$AC:$AC,Sheet1!S71_A5CapexCode,$AD:$AD)","v":0},{"$f":"SUMIFS(Sheet1!S71_PreviousBudget,Sheet1!S71_SA34eCode,$AC:$AC,Sheet1!S71_A5CapexCode,$AD:$AD)","v":0},null,null,null,null,{"$f":"SUMIFS(Sheet1!S71_CurrentAdjustments,Sheet1!S71_SA34eCode,$AC:$AC,Sheet1!S71_A5CapexCode,$AD:$AD)","v":0},0,0,{"$f":"SUMIFS(Sheet1!S71_OY1AdjustedBudget,Sheet1!S71_SA34eCode,$AC:$AC,Sheet1!S71_A5CapexCode,$AD:$AD)","v":0},{"$f":"SUMIFS(Sheet1!S71_OY2AdjustedBudget,Sheet1!S71_SA34eCode,$AC:$AC,Sheet1!S71_A5CapexCode,$AD:$AD)","v":0},null,null,null,null,null,null,null,null,null,null,null,null,null,null,null,"0850","CE"]
["Galleries",null,{"$f":"SUMIFS(Sheet1!S71_OriginalBudget,Sheet1!S71_SA34eCode,$AC:$AC,Sheet1!S71_A5CapexCode,$AD:$AD)","v":0},{"$f":"SUMIFS(Sheet1!S71_PreviousBudget,Sheet1!S71_SA34eCode,$AC:$AC,Sheet1!S71_A5CapexCode,$AD:$AD)","v":0},null,null,null,null,{"$f":"SUMIFS(Sheet1!S71_CurrentAdjustments,Sheet1!S71_SA34eCode,$AC:$AC,Sheet1!S71_A5CapexCode,$AD:$AD)","v":0},0,0,{"$f":"SUMIFS(Sheet1!S71_OY1AdjustedBudget,Sheet1!S71_SA34eCode,$AC:$AC,Sheet1!S71_A5CapexCode,$AD:$AD)","v":0},{"$f":"SUMIFS(Sheet1!S71_OY2AdjustedBudget,Sheet1!S71_SA34eCode,$AC:$AC,Sheet1!S71_A5CapexCode,$AD:$AD)","v":0},null,null,null,null,null,null,null,null,null,null,null,null,null,null,null,"0860","CE"]
["Theatres",null,{"$f":"SUMIFS(Sheet1!S71_OriginalBudget,Sheet1!S71_SA34eCode,$AC:$AC,Sheet1!S71_A5CapexCode,$AD:$AD)","v":0},{"$f":"SUMIFS(Sheet1!S71_PreviousBudget,Sheet1!S71_SA34eCode,$AC:$AC,Sheet1!S71_A5CapexCode,$AD:$AD)","v":0},null,null,null,null,{"$f":"SUMIFS(Sheet1!S71_CurrentAdjustments,Sheet1!S71_SA34eCode,$AC:$AC,Sheet1!S71_A5CapexCode,$AD:$AD)","v":0},0,0,{"$f":"SUMIFS(Sheet1!S71_OY1AdjustedBudget,Sheet1!S71_SA34eCode,$AC:$AC,Sheet1!S71_A5CapexCode,$AD:$AD)","v":0},{"$f":"SUMIFS(Sheet1!S71_OY2AdjustedBudget,Sheet1!S71_SA34eCode,$AC:$AC,Sheet1!S71_A5CapexCode,$AD:$AD)","v":0},null,null,null,null,null,null,null,null,null,null,null,null,null,null,null,"0870","CE"]
["Libraries",null,{"$f":"SUMIFS(Sheet1!S71_OriginalBudget,Sheet1!S71_SA34eCode,$AC:$AC,Sheet1!S71_A5CapexCode,$AD:$AD)","v":0},{"$f":"SUMIFS(Sheet1!S71_PreviousBudget,Sheet1!S71_SA34eCode,$AC:$AC,Sheet1!S71_A5CapexCode,$AD:$AD)","v":0},null,null,null,null,{"$f":"SUMIFS(Sheet1!S71_CurrentAdjustments,Sheet1!S71_SA34eCode,$AC:$AC,Sheet1!S71_A5CapexCode,$AD:$AD)","v":0},0,0,{"$f":"SUMIFS(Sheet1!S71_OY1AdjustedBudget,Sheet1!S71_SA34eCode,$AC:$AC,Sheet1!S71_A5CapexCode,$AD:$AD)","v":0},{"$f":"SUMIFS(Sheet1!S71_OY2AdjustedBudget,Sheet1!S71_SA34eCode,$AC:$AC,Sheet1!S71_A5CapexCode,$AD:$AD)","v":0},null,null,null,null,null,null,null,null,null,null,null,null,null,null,null,"0880","CE"]
["Cemeteries/Crematoria",null,{"$f":"SUMIFS(Sheet1!S71_OriginalBudget,Sheet1!S71_SA34eCode,$AC:$AC,Sheet1!S71_A5CapexCode,$AD:$AD)","v":0},{"$f":"SUMIFS(Sheet1!S71_PreviousBudget,Sheet1!S71_SA34eCode,$AC:$AC,Sheet1!S71_A5CapexCode,$AD:$AD)","v":0},null,null,null,null,{"$f":"SUMIFS(Sheet1!S71_CurrentAdjustments,Sheet1!S71_SA34eCode,$AC:$AC,Sheet1!S71_A5CapexCode,$AD:$AD)","v":0},0,0,{"$f":"SUMIFS(Sheet1!S71_OY1AdjustedBudget,Sheet1!S71_SA34eCode,$AC:$AC,Sheet1!S71_A5CapexCode,$AD:$AD)","v":0},{"$f":"SUMIFS(Sheet1!S71_OY2AdjustedBudget,Sheet1!S71_SA34eCode,$AC:$AC,Sheet1!S71_A5CapexCode,$AD:$AD)","v":0},null,null,null,null,null,null,null,null,null,null,null,null,null,null,null,"0890","CE"]
["Police",null,{"$f":"SUMIFS(Sheet1!S71_OriginalBudget,Sheet1!S71_SA34eCode,$AC:$AC,Sheet1!S71_A5CapexCode,$AD:$AD)","v":0},{"$f":"SUMIFS(Sheet1!S71_PreviousBudget,Sheet1!S71_SA34eCode,$AC:$AC,Sheet1!S71_A5CapexCode,$AD:$AD)","v":0},null,null,null,null,{"$f":"SUMIFS(Sheet1!S71_CurrentAdjustments,Sheet1!S71_SA34eCode,$AC:$AC,Sheet1!S71_A5CapexCode,$AD:$AD)","v":0},0,0,{"$f":"SUMIFS(Sheet1!S71_OY1AdjustedBudget,Sheet1!S71_SA34eCode,$AC:$AC,Sheet1!S71_A5CapexCode,$AD:$AD)","v":0},{"$f":"SUMIFS(Sheet1!S71_OY2AdjustedBudget,Sheet1!S71_SA34eCode,$AC:$AC,Sheet1!S71_A5CapexCode,$AD:$AD)","v":0},null,null,null,null,null,null,null,null,null,null,null,null,null,null,null,"0900","CE"]
["Purls",null,{"$f":"SUMIFS(Sheet1!S71_OriginalBudget,Sheet1!S71_SA34eCode,$AC:$AC,Sheet1!S71_A5CapexCode,$AD:$AD)","v":0},{"$f":"SUMIFS(Sheet1!S71_PreviousBudget,Sheet1!S71_SA34eCode,$AC:$AC,Sheet1!S71_A5CapexCode,$AD:$AD)","v":0},null,null,null,null,{"$f":"SUMIFS(Sheet1!S71_CurrentAdjustments,Sheet1!S71_SA34eCode,$AC:$AC,Sheet1!S71_A5CapexCode,$AD:$AD)","v":0},0,0,{"$f":"SUMIFS(Sheet1!S71_OY1AdjustedBudget,Sheet1!S71_SA34eCode,$AC:$AC,Sheet1!S71_A5CapexCode,$AD:$AD)","v":0},{"$f":"SUMIFS(Sheet1!S71_OY2AdjustedBudget,Sheet1!S71_SA34eCode,$AC:$AC,Sheet1!S71_A5CapexCode,$AD:$AD)","v":0},null,null,null,null,null,null,null,null,null,null,null,null,null,null,null,"0910","CE"]
["Public Open Space",null,{"$f":"SUMIFS(Sheet1!S71_OriginalBudget,Sheet1!S71_SA34eCode,$AC:$AC,Sheet1!S71_A5CapexCode,$AD:$AD)","v":0},{"$f":"SUMIFS(Sheet1!S71_PreviousBudget,Sheet1!S71_SA34eCode,$AC:$AC,Sheet1!S71_A5CapexCode,$AD:$AD)","v":0},null,null,null,null,{"$f":"SUMIFS(Sheet1!S71_CurrentAdjustments,Sheet1!S71_SA34eCode,$AC:$AC,Sheet1!S71_A5CapexCode,$AD:$AD)","v":0},0,0,{"$f":"SUMIFS(Sheet1!S71_OY1AdjustedBudget,Sheet1!S71_SA34eCode,$AC:$AC,Sheet1!S71_A5CapexCode,$AD:$AD)","v":0},{"$f":"SUMIFS(Sheet1!S71_OY2AdjustedBudget,Sheet1!S71_SA34eCode,$AC:$AC,Sheet1!S71_A5CapexCode,$AD:$AD)","v":0},null,null,null,null,null,null,null,null,null,null,null,null,null,null,null,"0920","CE"]
["Nature Reserves",null,{"$f":"SUMIFS(Sheet1!S71_OriginalBudget,Sheet1!S71_SA34eCode,$AC:$AC,Sheet1!S71_A5CapexCode,$AD:$AD)","v":0},{"$f":"SUMIFS(Sheet1!S71_PreviousBudget,Sheet1!S71_SA34eCode,$AC:$AC,Sheet1!S71_A5CapexCode,$AD:$AD)","v":0},null,null,null,null,{"$f":"SUMIFS(Sheet1!S71_CurrentAdjustments,Sheet1!S71_SA34eCode,$AC:$AC,Sheet1!S71_A5CapexCode,$AD:$AD)","v":0},0,0,{"$f":"SUMIFS(Sheet1!S71_OY1AdjustedBudget,Sheet1!S71_SA34eCode,$AC:$AC,Sheet1!S71_A5CapexCode,$AD:$AD)","v":0},{"$f":"SUMIFS(Sheet1!S71_OY2AdjustedBudget,Sheet1!S71_SA34eCode,$AC:$AC,Sheet1!S71_A5CapexCode,$AD:$AD)","v":0},null,null,null,null,null,null,null,null,null,null,null,null,null,null,null,"0930","CE"]
["Public Ablution Facilities",null,{"$f":"SUMIFS(Sheet1!S71_OriginalBudget,Sheet1!S71_SA34eCode,$AC:$AC,Sheet1!S71_A5CapexCode,$AD:$AD)","v":0},{"$f":"SUMIFS(Sheet1!S71_PreviousBudget,Sheet1!S71_SA34eCode,$AC:$AC,Sheet1!S71_A5CapexCode,$AD:$AD)","v":0},null,null,null,null,{"$f":"SUMIFS(Sheet1!S71_CurrentAdjustments,Sheet1!S71_SA34eCode,$AC:$AC,Sheet1!S71_A5CapexCode,$AD:$AD)","v":0},0,0,{"$f":"SUMIFS(Sheet1!S71_OY1AdjustedBudget,Sheet1!S71_SA34eCode,$AC:$AC,Sheet1!S71_A5CapexCode,$AD:$AD)","v":0},{"$f":"SUMIFS(Sheet1!S71_OY2AdjustedBudget,Sheet1!S71_SA34eCode,$AC:$AC,Sheet1!S71_A5CapexCode,$AD:$AD)","v":0},null,null,null,null,null,null,null,null,null,null,null,null,null,null,null,"0940","CE"]
["Markets",null,{"$f":"SUMIFS(Sheet1!S71_OriginalBudget,Sheet1!S71_SA34eCode,$AC:$AC,Sheet1!S71_A5CapexCode,$AD:$AD)","v":0},{"$f":"SUMIFS(Sheet1!S71_PreviousBudget,Sheet1!S71_SA34eCode,$AC:$AC,Sheet1!S71_A5CapexCode,$AD:$AD)","v":0},null,null,null,null,{"$f":"SUMIFS(Sheet1!S71_CurrentAdjustments,Sheet1!S71_SA34eCode,$AC:$AC,Sheet1!S71_A5CapexCode,$AD:$AD)","v":0},0,0,{"$f":"SUMIFS(Sheet1!S71_OY1AdjustedBudget,Sheet1!S71_SA34eCode,$AC:$AC,Sheet1!S71_A5CapexCode,$AD:$AD)","v":0},{"$f":"SUMIFS(Sheet1!S71_OY2AdjustedBudget,Sheet1!S71_SA34eCode,$AC:$AC,Sheet1!S71_A5CapexCode,$AD:$AD)","v":0},null,null,null,null,null,null,null,null,null,null,null,null,null,null,null,"0950","CE"]
["Stalls",null,{"$f":"SUMIFS(Sheet1!S71_OriginalBudget,Sheet1!S71_SA34eCode,$AC:$AC,Sheet1!S71_A5CapexCode,$AD:$AD)","v":0},{"$f":"SUMIFS(Sheet1!S71_PreviousBudget,Sheet1!S71_SA34eCode,$AC:$AC,Sheet1!S71_A5CapexCode,$AD:$AD)","v":0},null,null,null,null,{"$f":"SUMIFS(Sheet1!S71_CurrentAdjustments,Sheet1!S71_SA34eCode,$AC:$AC,Sheet1!S71_A5CapexCode,$AD:$AD)","v":0},0,0,{"$f":"SUMIFS(Sheet1!S71_OY1AdjustedBudget,Sheet1!S71_SA34eCode,$AC:$AC,Sheet1!S71_A5CapexCode,$AD:$AD)","v":0},{"$f":"SUMIFS(Sheet1!S71_OY2AdjustedBudget,Sheet1!S71_SA34eCode,$AC:$AC,Sheet1!S71_A5CapexCode,$AD:$AD)","v":0},null,null,null,null,null,null,null,null,null,null,null,null,null,null,null,"0960","CE"]
["Abattoirs",null,{"$f":"SUMIFS(Sheet1!S71_OriginalBudget,Sheet1!S71_SA34eCode,$AC:$AC,Sheet1!S71_A5CapexCode,$AD:$AD)","v":0},{"$f":"SUMIFS(Sheet1!S71_PreviousBudget,Sheet1!S71_SA34eCode,$AC:$AC,Sheet1!S71_A5CapexCode,$AD:$AD)","v":0},null,null,null,null,{"$f":"SUMIFS(Sheet1!S71_CurrentAdjustments,Sheet1!S71_SA34eCode,$AC:$AC,Sheet1!S71_A5CapexCode,$AD:$AD)","v":0},0,0,{"$f":"SUMIFS(Sheet1!S71_OY1AdjustedBudget,Sheet1!S71_SA34eCode,$AC:$AC,Sheet1!S71_A5CapexCode,$AD:$AD)","v":0},{"$f":"SUMIFS(Sheet1!S71_OY2AdjustedBudget,Sheet1!S71_SA34eCode,$AC:$AC,Sheet1!S71_A5CapexCode,$AD:$AD)","v":0},null,null,null,null,null,null,null,null,null,null,null,null,null,null,null,"0970","CE"]
["Airports",null,{"$f":"SUMIFS(Sheet1!S71_OriginalBudget,Sheet1!S71_SA34eCode,$AC:$AC,Sheet1!S71_A5CapexCode,$AD:$AD)","v":0},{"$f":"SUMIFS(Sheet1!S71_PreviousBudget,Sheet1!S71_SA34eCode,$AC:$AC,Sheet1!S71_A5CapexCode,$AD:$AD)","v":0},null,null,null,null,{"$f":"SUMIFS(Sheet1!S71_CurrentAdjustments,Sheet1!S71_SA34eCode,$AC:$AC,Sheet1!S71_A5CapexCode,$AD:$AD)","v":0},0,0,{"$f":"SUMIFS(Sheet1!S71_OY1AdjustedBudget,Sheet1!S71_SA34eCode,$AC:$AC,Sheet1!S71_A5CapexCode,$AD:$AD)","v":0},{"$f":"SUMIFS(Sheet1!S71_OY2AdjustedBudget,Sheet1!S71_SA34eCode,$AC:$AC,Sheet1!S71_A5CapexCode,$AD:$AD)","v":0},null,null,null,null,null,null,null,null,null,null,null,null,null,null,null,"0980","CE"]
["Taxi Ranks/Bus Terminals",null,{"$f":"SUMIFS(Sheet1!S71_OriginalBudget,Sheet1!S71_SA34eCode,$AC:$AC,Sheet1!S71_A5CapexCode,$AD:$AD)","v":0},{"$f":"SUMIFS(Sheet1!S71_PreviousBudget,Sheet1!S71_SA34eCode,$AC:$AC,Sheet1!S71_A5CapexCode,$AD:$AD)","v":0},null,null,null,null,{"$f":"SUMIFS(Sheet1!S71_CurrentAdjustments,Sheet1!S71_SA34eCode,$AC:$AC,Sheet1!S71_A5CapexCode,$AD:$AD)","v":0},0,0,{"$f":"SUMIFS(Sheet1!S71_OY1AdjustedBudget,Sheet1!S71_SA34eCode,$AC:$AC,Sheet1!S71_A5CapexCode,$AD:$AD)","v":0},{"$f":"SUMIFS(Sheet1!S71_OY2AdjustedBudget,Sheet1!S71_SA34eCode,$AC:$AC,Sheet1!S71_A5CapexCode,$AD:$AD)","v":0},null,null,null,null,null,null,null,null,null,null,null,null,null,null,null,"0990","CE"]
["Capital Spares",null,{"$f":"SUMIFS(Sheet1!S71_OriginalBudget,Sheet1!S71_SA34eCode,$AC:$AC,Sheet1!S71_A5CapexCode,$AD:$AD)","v":0},{"$f":"SUMIFS(Sheet1!S71_PreviousBudget,Sheet1!S71_SA34eCode,$AC:$AC,Sheet1!S71_A5CapexCode,$AD:$AD)","v":0},null,null,null,null,{"$f":"SUMIFS(Sheet1!S71_CurrentAdjustments,Sheet1!S71_SA34eCode,$AC:$AC,Sheet1!S71_A5CapexCode,$AD:$AD)","v":0},0,0,{"$f":"SUMIFS(Sheet1!S71_OY1AdjustedBudget,Sheet1!S71_SA34eCode,$AC:$AC,Sheet1!S71_A5CapexCode,$AD:$AD)","v":0},{"$f":"SUMIFS(Sheet1!S71_OY2AdjustedBudget,Sheet1!S71_SA34eCode,$AC:$AC,Sheet1!S71_A5CapexCode,$AD:$AD)","v":0},null,null,null,null,null,null,null,null,null,null,null,null,null,null,null,"1000","CE"]
["Sport and Recreation Facilities",null,{"$f":"SUM(C101:C103)","v":0},{"$f":"SUM(D101:D103)","v":0},0,0,0,0,0,0,0,0,0,null,null,null,null,null,null,null,null,null,null,null,null,null,null,null,null,"CE"]
["Indoor Facilities",null,{"$f":"SUMIFS(Sheet1!S71_OriginalBudget,Sheet1!S71_SA34eCode,$AC:$AC,Sheet1!S71_A5CapexCode,$AD:$AD)","v":0},{"$f":"SUMIFS(Sheet1!S71_PreviousBudget,Sheet1!S71_SA34eCode,$AC:$AC,Sheet1!S71_A5CapexCode,$AD:$AD)","v":0},null,null,null,null,{"$f":"SUMIFS(Sheet1!S71_CurrentAdjustments,Sheet1!S71_SA34eCode,$AC:$AC,Sheet1!S71_A5CapexCode,$AD:$AD)","v":0},0,0,{"$f":"SUMIFS(Sheet1!S71_OY1AdjustedBudget,Sheet1!S71_SA34eCode,$AC:$AC,Sheet1!S71_A5CapexCode,$AD:$AD)","v":0},{"$f":"SUMIFS(Sheet1!S71_OY2AdjustedBudget,Sheet1!S71_SA34eCode,$AC:$AC,Sheet1!S71_A5CapexCode,$AD:$AD)","v":0},null,null,null,null,null,null,null,null,null,null,null,null,null,null,null,"1020","CE"]
["Outdoor Facilities",null,{"$f":"SUMIFS(Sheet1!S71_OriginalBudget,Sheet1!S71_SA34eCode,$AC:$AC,Sheet1!S71_A5CapexCode,$AD:$AD)","v":0},{"$f":"SUMIFS(Sheet1!S71_PreviousBudget,Sheet1!S71_SA34eCode,$AC:$AC,Sheet1!S71_A5CapexCode,$AD:$AD)","v":0},null,null,null,null,{"$f":"SUMIFS(Sheet1!S71_CurrentAdjustments,Sheet1!S71_SA34eCode,$AC:$AC,Sheet1!S71_A5CapexCode,$AD:$AD)","v":0},0,0,{"$f":"SUMIFS(Sheet1!S71_OY1AdjustedBudget,Sheet1!S71_SA34eCode,$AC:$AC,Sheet1!S71_A5CapexCode,$AD:$AD)","v":0},{"$f":"SUMIFS(Sheet1!S71_OY2AdjustedBudget,Sheet1!S71_SA34eCode,$AC:$AC,Sheet1!S71_A5CapexCode,$AD:$AD)","v":0},null,null,null,null,null,null,null,null,null,null,null,null,null,null,null,"1030","CE"]
["Capital Spares",null,{"$f":"SUMIFS(Sheet1!S71_OriginalBudget,Sheet1!S71_SA34eCode,$AC:$AC,Sheet1!S71_A5CapexCode,$AD:$AD)","v":0},{"$f":"SUMIFS(Sheet1!S71_PreviousBudget,Sheet1!S71_SA34eCode,$AC:$AC,Sheet1!S71_A5CapexCode,$AD:$AD)","v":0},null,null,null,null,{"$f":"SUMIFS(Sheet1!S71_CurrentAdjustments,Sheet1!S71_SA34eCode,$AC:$AC,Sheet1!S71_A5CapexCode,$AD:$AD)","v":0},0,0,{"$f":"SUMIFS(Sheet1!S71_OY1AdjustedBudget,Sheet1!S71_SA34eCode,$AC:$AC,Sheet1!S71_A5CapexCode,$AD:$AD)","v":0},{"$f":"SUMIFS(Sheet1!S71_OY2AdjustedBudget,Sheet1!S71_SA34eCode,$AC:$AC,Sheet1!S71_A5CapexCode,$AD:$AD)","v":0},null,null,null,null,null,null,null,null,null,null,null,null,null,null,null,"1040","CE"]
[null,null,null,null,null,null,null,null,null,null,null,null,null,null,null,null,null,null,null,null,null,null,null,null,null,null,null,null,null,"CE"]
["Heritage assets",null,{"$f":"SUM(C106:C110)","v":0},0,0,0,0,0,0,0,0,0,0,null,null,null,null,null,null,null,null,null,null,null,null,null,null,null,null,"CE"]
["Monuments",null,{"$f":"SUMIFS(Sheet1!S71_OriginalBudget,Sheet1!S71_SA34eCode,$AC:$AC,Sheet1!S71_A5CapexCode,$AD:$AD)","v":0},{"$f":"SUMIFS(Sheet1!S71_PreviousBudget,Sheet1!S71_SA34eCode,$AC:$AC,Sheet1!S71_A5CapexCode,$AD:$AD)","v":0},null,null,null,null,{"$f":"SUMIFS(Sheet1!S71_CurrentAdjustments,Sheet1!S71_SA34eCode,$AC:$AC,Sheet1!S71_A5CapexCode,$AD:$AD)","v":0},0,0,{"$f":"SUMIFS(Sheet1!S71_OY1AdjustedBudget,Sheet1!S71_SA34eCode,$AC:$AC,Sheet1!S71_A5CapexCode,$AD:$AD)","v":0},{"$f":"SUMIFS(Sheet1!S71_OY2AdjustedBudget,Sheet1!S71_SA34eCode,$AC:$AC,Sheet1!S71_A5CapexCode,$AD:$AD)","v":0},null,null,null,null,null,null,null,null,null,null,null,null,null,null,null,"1060","CE"]
["Historic Buildings",null,{"$f":"SUMIFS(Sheet1!S71_OriginalBudget,Sheet1!S71_SA34eCode,$AC:$AC,Sheet1!S71_A5CapexCode,$AD:$AD)","v":0},{"$f":"SUMIFS(Sheet1!S71_PreviousBudget,Sheet1!S71_SA34eCode,$AC:$AC,Sheet1!S71_A5CapexCode,$AD:$AD)","v":0},null,null,null,null,{"$f":"SUMIFS(Sheet1!S71_CurrentAdjustments,Sheet1!S71_SA34eCode,$AC:$AC,Sheet1!S71_A5CapexCode,$AD:$AD)","v":0},0,0,{"$f":"SUMIFS(Sheet1!S71_OY1AdjustedBudget,Sheet1!S71_SA34eCode,$AC:$AC,Sheet1!S71_A5CapexCode,$AD:$AD)","v":0},{"$f":"SUMIFS(Sheet1!S71_OY2AdjustedBudget,Sheet1!S71_SA34eCode,$AC:$AC,Sheet1!S71_A5CapexCode,$AD:$AD)","v":0},null,null,null,null,null,null,null,null,null,null,null,null,null,null,null,"1070","CE"]
["Works of Art",null,{"$f":"SUMIFS(Sheet1!S71_OriginalBudget,Sheet1!S71_SA34eCode,$AC:$AC,Sheet1!S71_A5CapexCode,$AD:$AD)","v":0},{"$f":"SUMIFS(Sheet1!S71_PreviousBudget,Sheet1!S71_SA34eCode,$AC:$AC,Sheet1!S71_A5CapexCode,$AD:$AD)","v":0},null,null,null,null,{"$f":"SUMIFS(Sheet1!S71_CurrentAdjustments,Sheet1!S71_SA34eCode,$AC:$AC,Sheet1!S71_A5CapexCode,$AD:$AD)","v":0},0,0,{"$f":"SUMIFS(Sheet1!S71_OY1AdjustedBudget,Sheet1!S71_SA34eCode,$AC:$AC,Sheet1!S71_A5CapexCode,$AD:$AD)","v":0},{"$f":"SUMIFS(Sheet1!S71_OY2AdjustedBudget,Sheet1!S71_SA34eCode,$AC:$AC,Sheet1!S71_A5CapexCode,$AD:$AD)","v":0},null,null,null,null,null,null,null,null,null,null,null,null,null,null,null,"1080","CE"]
["Conservation Areas",null,{"$f":"SUMIFS(Sheet1!S71_OriginalBudget,Sheet1!S71_SA34eCode,$AC:$AC,Sheet1!S71_A5CapexCode,$AD:$AD)","v":0},{"$f":"SUMIFS(Sheet1!S71_PreviousBudget,Sheet1!S71_SA34eCode,$AC:$AC,Sheet1!S71_A5CapexCode,$AD:$AD)","v":0},null,null,null,null,{"$f":"SUMIFS(Sheet1!S71_CurrentAdjustments,Sheet1!S71_SA34eCode,$AC:$AC,Sheet1!S71_A5CapexCode,$AD:$AD)","v":0},0,0,{"$f":"SUMIFS(Sheet1!S71_OY1AdjustedBudget,Sheet1!S71_SA34eCode,$AC:$AC,Sheet1!S71_A5CapexCode,$AD:$AD)","v":0},{"$f":"SUMIFS(Sheet1!S71_OY2AdjustedBudget,Sheet1!S71_SA34eCode,$AC:$AC,Sheet1!S71_A5CapexCode,$AD:$AD)","v":0},null,null,null,null,null,null,null,null,null,null,null,null,null,null,null,"1090","CE"]
["Other Heritage",null,{"$f":"SUMIFS(Sheet1!S71_OriginalBudget,Sheet1!S71_SA34eCode,$AC:$AC,Sheet1!S71_A5CapexCode,$AD:$AD)","v":0},{"$f":"SUMIFS(Sheet1!S71_PreviousBudget,Sheet1!S71_SA34eCode,$AC:$AC,Sheet1!S71_A5CapexCode,$AD:$AD)","v":0},null,null,null,null,{"$f":"SUMIFS(Sheet1!S71_CurrentAdjustments,Sheet1!S71_SA34eCode,$AC:$AC,Sheet1!S71_A5CapexCode,$AD:$AD)","v":0},0,0,{"$f":"SUMIFS(Sheet1!S71_OY1AdjustedBudget,Sheet1!S71_SA34eCode,$AC:$AC,Sheet1!S71_A5CapexCode,$AD:$AD)","v":0},{"$f":"SUMIFS(Sheet1!S71_OY2AdjustedBudget,Sheet1!S71_SA34eCode,$AC:$AC,Sheet1!S71_A5CapexCode,$AD:$AD)","v":0},null,null,null,null,null,null,null,null,null,null,null,null,null,null,null,"1100","CE"]
[null,null,null,null,null,null,null,null,null,null,null,null,null,null,null,null,null,null,null,null,null,null,null,null,null,null,null,null,null,"CE"]
["Investment properties",null,{"$f":"+C113+C116","v":0},{"$f":"+D113+D116","v":0},0,0,0,0,0,0,0,{"$f":"+L113+L116","v":0},{"$f":"+M113+M116","v":0},null,null,null,null,null,null,null,null,null,null,null,null,null,null,null,null,"CE"]
["Revenue Generating",null,{"$f":"SUM(C114:C115)","v":0},{"$f":"SUM(D114:D115)","v":0},{"$f":"SUM(E114:E115)","v":0},0,0,0,0,0,0,0,0,null,null,null,null,null,null,null,null,null,null,null,null,null,null,null,null,"CE"]
["Improved Property",null,{"$f":"SUMIFS(Sheet1!S71_OriginalBudget,Sheet1!S71_SA34eCode,$AC:$AC,Sheet1!S71_A5CapexCode,$AD:$AD)","v":0},{"$f":"SUMIFS(Sheet1!S71_PreviousBudget,Sheet1!S71_SA34eCode,$AC:$AC,Sheet1!S71_A5CapexCode,$AD:$AD)","v":0},null,null,null,null,{"$f":"SUMIFS(Sheet1!S71_CurrentAdjustments,Sheet1!S71_SA34eCode,$AC:$AC,Sheet1!S71_A5CapexCode,$AD:$AD)","v":0},0,0,{"$f":"SUMIFS(Sheet1!S71_OY1AdjustedBudget,Sheet1!S71_SA34eCode,$AC:$AC,Sheet1!S71_A5CapexCode,$AD:$AD)","v":0},{"$f":"SUMIFS(Sheet1!S71_OY2AdjustedBudget,Sheet1!S71_SA34eCode,$AC:$AC,Sheet1!S71_A5CapexCode,$AD:$AD)","v":0},null,null,null,null,null,null,null,null,null,null,null,null,null,null,null,"1130","CE"]
["Unimproved Property",null,{"$f":"SUMIFS(Sheet1!S71_OriginalBudget,Sheet1!S71_SA34eCode,$AC:$AC,Sheet1!S71_A5CapexCode,$AD:$AD)","v":0},{"$f":"SUMIFS(Sheet1!S71_PreviousBudget,Sheet1!S71_SA34eCode,$AC:$AC,Sheet1!S71_A5CapexCode,$AD:$AD)","v":0},null,null,null,null,{"$f":"SUMIFS(Sheet1!S71_CurrentAdjustments,Sheet1!S71_SA34eCode,$AC:$AC,Sheet1!S71_A5CapexCode,$AD:$AD)","v":0},0,0,{"$f":"SUMIFS(Sheet1!S71_OY1AdjustedBudget,Sheet1!S71_SA34eCode,$AC:$AC,Sheet1!S71_A5CapexCode,$AD:$AD)","v":0},{"$f":"SUMIFS(Sheet1!S71_OY2AdjustedBudget,Sheet1!S71_SA34eCode,$AC:$AC,Sheet1!S71_A5CapexCode,$AD:$AD)","v":0},null,null,null,null,null,null,null,null,null,null,null,null,null,null,null,"1140","CE"]
["Non-revenue Generating",null,{"$f":"SUM(C117:C118)","v":0},{"$f":"SUM(D117:D118)","v":0},{"$f":"SUM(E117:E118)","v":0},0,0,0,0,0,0,0,0,null,null,null,null,null,null,null,null,null,null,null,null,null,null,null,null,"CE"]
["Improved Property",null,{"$f":"SUMIFS(Sheet1!S71_OriginalBudget,Sheet1!S71_SA34eCode,$AC:$AC,Sheet1!S71_A5CapexCode,$AD:$AD)","v":0},{"$f":"SUMIFS(Sheet1!S71_PreviousBudget,Sheet1!S71_SA34eCode,$AC:$AC,Sheet1!S71_A5CapexCode,$AD:$AD)","v":0},null,null,null,null,{"$f":"SUMIFS(Sheet1!S71_CurrentAdjustments,Sheet1!S71_SA34eCode,$AC:$AC,Sheet1!S71_A5CapexCode,$AD:$AD)","v":0},0,0,{"$f":"SUMIFS(Sheet1!S71_OY1AdjustedBudget,Sheet1!S71_SA34eCode,$AC:$AC,Sheet1!S71_A5CapexCode,$AD:$AD)","v":0},{"$f":"SUMIFS(Sheet1!S71_OY2AdjustedBudget,Sheet1!S71_SA34eCode,$AC:$AC,Sheet1!S71_A5CapexCode,$AD:$AD)","v":0},null,null,null,null,null,null,null,null,null,null,null,null,null,null,null,"1160","CE"]
["Unimproved Property",null,{"$f":"SUMIFS(Sheet1!S71_OriginalBudget,Sheet1!S71_SA34eCode,$AC:$AC,Sheet1!S71_A5CapexCode,$AD:$AD)","v":0},{"$f":"SUMIFS(Sheet1!S71_PreviousBudget,Sheet1!S71_SA34eCode,$AC:$AC,Sheet1!S71_A5CapexCode,$AD:$AD)","v":0},null,null,null,null,{"$f":"SUMIFS(Sheet1!S71_CurrentAdjustments,Sheet1!S71_SA34eCode,$AC:$AC,Sheet1!S71_A5CapexCode,$AD:$AD)","v":0},0,0,{"$f":"SUMIFS(Sheet1!S71_OY1AdjustedBudget,Sheet1!S71_SA34eCode,$AC:$AC,Sheet1!S71_A5CapexCode,$AD:$AD)","v":0},{"$f":"SUMIFS(Sheet1!S71_OY2AdjustedBudget,Sheet1!S71_SA34eCode,$AC:$AC,Sheet1!S71_A5CapexCode,$AD:$AD)","v":0},null,null,null,null,null,null,null,null,null,null,null,null,null,null,null,"1170","CE"]
[null,null,null,null,null,null,null,null,null,null,null,null,null,null,null,null,null,null,null,null,null,null,null,null,null,null,null,null,null,"CE"]
["Other assets",null,{"$f":"+C121+C133","v":6086953},{"$f":"+D121+D133","v":7130435},0,0,0,0,0,0,7130435,{"$f":"+L121+L133","v":0},{"$f":"+M121+M133","v":0},null,null,null,null,null,null,null,null,null,null,null,null,null,null,null,null,"CE"]
["Operational Buildings",null,{"$f":"SUM(C122:C132)","v":6086953},{"$f":"SUM(D122:D132)","v":7130435},0,0,0,0,0,0,7130435,{"$f":"SUM(L122:L132)","v":0},{"$f":"SUM(M122:M132)","v":0},null,null,null,null,null,null,null,null,null,null,null,null,null,null,null,null,"CE"]
["Municipal Offices",null,{"$f":"SUMIFS(Sheet1!S71_OriginalBudget,Sheet1!S71_SA34eCode,$AC:$AC,Sheet1!S71_A5CapexCode,$AD:$AD)","v":2869565},{"$f":"SUMIFS(Sheet1!S71_PreviousBudget,Sheet1!S71_SA34eCode,$AC:$AC,Sheet1!S71_A5CapexCode,$AD:$AD)","v":0},null,null,null,null,{"$f":"SUMIFS(Sheet1!S71_CurrentAdjustments,Sheet1!S71_SA34eCode,$AC:$AC,Sheet1!S71_A5CapexCode,$AD:$AD)","v":0},0,2869565,{"$f":"SUMIFS(Sheet1!S71_OY1AdjustedBudget,Sheet1!S71_SA34eCode,$AC:$AC,Sheet1!S71_A5CapexCode,$AD:$AD)","v":0},{"$f":"SUMIFS(Sheet1!S71_OY2AdjustedBudget,Sheet1!S71_SA34eCode,$AC:$AC,Sheet1!S71_A5CapexCode,$AD:$AD)","v":0},null,null,null,null,null,null,null,null,null,null,null,null,null,null,null,"1200","CE"]
["Pay/Enquiry Points",null,{"$f":"SUMIFS(Sheet1!S71_OriginalBudget,Sheet1!S71_SA34eCode,$AC:$AC,Sheet1!S71_A5CapexCode,$AD:$AD)","v":0},{"$f":"SUMIFS(Sheet1!S71_PreviousBudget,Sheet1!S71_SA34eCode,$AC:$AC,Sheet1!S71_A5CapexCode,$AD:$AD)","v":0},null,null,null,null,{"$f":"SUMIFS(Sheet1!S71_CurrentAdjustments,Sheet1!S71_SA34eCode,$AC:$AC,Sheet1!S71_A5CapexCode,$AD:$AD)","v":0},0,0,{"$f":"SUMIFS(Sheet1!S71_OY1AdjustedBudget,Sheet1!S71_SA34eCode,$AC:$AC,Sheet1!S71_A5CapexCode,$AD:$AD)","v":0},{"$f":"SUMIFS(Sheet1!S71_OY2AdjustedBudget,Sheet1!S71_SA34eCode,$AC:$AC,Sheet1!S71_A5CapexCode,$AD:$AD)","v":0},null,null,null,null,null,null,null,null,null,null,null,null,null,null,null,"1210","CE"]
["Building Plan Offices",null,{"$f":"SUMIFS(Sheet1!S71_OriginalBudget,Sheet1!S71_SA34eCode,$AC:$AC,Sheet1!S71_A5CapexCode,$AD:$AD)","v":0},{"$f":"SUMIFS(Sheet1!S71_PreviousBudget,Sheet1!S71_SA34eCode,$AC:$AC,Sheet1!S71_A5CapexCode,$AD:$AD)","v":0},null,null,null,null,{"$f":"SUMIFS(Sheet1!S71_CurrentAdjustments,Sheet1!S71_SA34eCode,$AC:$AC,Sheet1!S71_A5CapexCode,$AD:$AD)","v":0},0,0,{"$f":"SUMIFS(Sheet1!S71_OY1AdjustedBudget,Sheet1!S71_SA34eCode,$AC:$AC,Sheet1!S71_A5CapexCode,$AD:$AD)","v":0},{"$f":"SUMIFS(Sheet1!S71_OY2AdjustedBudget,Sheet1!S71_SA34eCode,$AC:$AC,Sheet1!S71_A5CapexCode,$AD:$AD)","v":0},null,null,null,null,null,null,null,null,null,null,null,null,null,null,null,"1220","CE"]
["Workshops",null,{"$f":"SUMIFS(Sheet1!S71_OriginalBudget,Sheet1!S71_SA34eCode,$AC:$AC,Sheet1!S71_A5CapexCode,$AD:$AD)","v":3217388},{"$f":"SUMIFS(Sheet1!S71_PreviousBudget,Sheet1!S71_SA34eCode,$AC:$AC,Sheet1!S71_A5CapexCode,$AD:$AD)","v":7130435},null,null,null,null,{"$f":"SUMIFS(Sheet1!S71_CurrentAdjustments,Sheet1!S71_SA34eCode,$AC:$AC,Sheet1!S71_A5CapexCode,$AD:$AD)","v":0},0,7130435,{"$f":"SUMIFS(Sheet1!S71_OY1AdjustedBudget,Sheet1!S71_SA34eCode,$AC:$AC,Sheet1!S71_A5CapexCode,$AD:$AD)","v":0},{"$f":"SUMIFS(Sheet1!S71_OY2AdjustedBudget,Sheet1!S71_SA34eCode,$AC:$AC,Sheet1!S71_A5CapexCode,$AD:$AD)","v":0},null,null,null,null,null,null,null,null,null,null,null,null,null,null,null,"1230","CE"]
["Yards",null,{"$f":"SUMIFS(Sheet1!S71_OriginalBudget,Sheet1!S71_SA34eCode,$AC:$AC,Sheet1!S71_A5CapexCode,$AD:$AD)","v":0},{"$f":"SUMIFS(Sheet1!S71_PreviousBudget,Sheet1!S71_SA34eCode,$AC:$AC,Sheet1!S71_A5CapexCode,$AD:$AD)","v":0},null,null,null,null,{"$f":"SUMIFS(Sheet1!S71_CurrentAdjustments,Sheet1!S71_SA34eCode,$AC:$AC,Sheet1!S71_A5CapexCode,$AD:$AD)","v":0},0,0,{"$f":"SUMIFS(Sheet1!S71_OY1AdjustedBudget,Sheet1!S71_SA34eCode,$AC:$AC,Sheet1!S71_A5CapexCode,$AD:$AD)","v":0},{"$f":"SUMIFS(Sheet1!S71_OY2AdjustedBudget,Sheet1!S71_SA34eCode,$AC:$AC,Sheet1!S71_A5CapexCode,$AD:$AD)","v":0},null,null,null,null,null,null,null,null,null,null,null,null,null,null,null,"1240","CE"]
["Stores",null,{"$f":"SUMIFS(Sheet1!S71_OriginalBudget,Sheet1!S71_SA34eCode,$AC:$AC,Sheet1!S71_A5CapexCode,$AD:$AD)","v":0},{"$f":"SUMIFS(Sheet1!S71_PreviousBudget,Sheet1!S71_SA34eCode,$AC:$AC,Sheet1!S71_A5CapexCode,$AD:$AD)","v":0},null,null,null,null,{"$f":"SUMIFS(Sheet1!S71_CurrentAdjustments,Sheet1!S71_SA34eCode,$AC:$AC,Sheet1!S71_A5CapexCode,$AD:$AD)","v":0},0,0,{"$f":"SUMIFS(Sheet1!S71_OY1AdjustedBudget,Sheet1!S71_SA34eCode,$AC:$AC,Sheet1!S71_A5CapexCode,$AD:$AD)","v":0},{"$f":"SUMIFS(Sheet1!S71_OY2AdjustedBudget,Sheet1!S71_SA34eCode,$AC:$AC,Sheet1!S71_A5CapexCode,$AD:$AD)","v":0},null,null,null,null,null,null,null,null,null,null,null,null,null,null,null,"1250","CE"]
["Laboratories",null,{"$f":"SUMIFS(Sheet1!S71_OriginalBudget,Sheet1!S71_SA34eCode,$AC:$AC,Sheet1!S71_A5CapexCode,$AD:$AD)","v":0},{"$f":"SUMIFS(Sheet1!S71_PreviousBudget,Sheet1!S71_SA34eCode,$AC:$AC,Sheet1!S71_A5CapexCode,$AD:$AD)","v":0},null,null,null,null,{"$f":"SUMIFS(Sheet1!S71_CurrentAdjustments,Sheet1!S71_SA34eCode,$AC:$AC,Sheet1!S71_A5CapexCode,$AD:$AD)","v":0},0,0,{"$f":"SUMIFS(Sheet1!S71_OY1AdjustedBudget,Sheet1!S71_SA34eCode,$AC:$AC,Sheet1!S71_A5CapexCode,$AD:$AD)","v":0},{"$f":"SUMIFS(Sheet1!S71_OY2AdjustedBudget,Sheet1!S71_SA34eCode,$AC:$AC,Sheet1!S71_A5CapexCode,$AD:$AD)","v":0},null,null,null,null,null,null,null,null,null,null,null,null,null,null,null,"1260","CE"]
["Training Centres",null,{"$f":"SUMIFS(Sheet1!S71_OriginalBudget,Sheet1!S71_SA34eCode,$AC:$AC,Sheet1!S71_A5CapexCode,$AD:$AD)","v":0},{"$f":"SUMIFS(Sheet1!S71_PreviousBudget,Sheet1!S71_SA34eCode,$AC:$AC,Sheet1!S71_A5CapexCode,$AD:$AD)","v":0},null,null,null,null,{"$f":"SUMIFS(Sheet1!S71_CurrentAdjustments,Sheet1!S71_SA34eCode,$AC:$AC,Sheet1!S71_A5CapexCode,$AD:$AD)","v":0},0,0,{"$f":"SUMIFS(Sheet1!S71_OY1AdjustedBudget,Sheet1!S71_SA34eCode,$AC:$AC,Sheet1!S71_A5CapexCode,$AD:$AD)","v":0},{"$f":"SUMIFS(Sheet1!S71_OY2AdjustedBudget,Sheet1!S71_SA34eCode,$AC:$AC,Sheet1!S71_A5CapexCode,$AD:$AD)","v":0},null,null,null,null,null,null,null,null,null,null,null,null,null,null,null,"1270","CE"]
["Manufacturing Plant",null,{"$f":"SUMIFS(Sheet1!S71_OriginalBudget,Sheet1!S71_SA34eCode,$AC:$AC,Sheet1!S71_A5CapexCode,$AD:$AD)","v":0},{"$f":"SUMIFS(Sheet1!S71_PreviousBudget,Sheet1!S71_SA34eCode,$AC:$AC,Sheet1!S71_A5CapexCode,$AD:$AD)","v":0},null,null,null,null,{"$f":"SUMIFS(Sheet1!S71_CurrentAdjustments,Sheet1!S71_SA34eCode,$AC:$AC,Sheet1!S71_A5CapexCode,$AD:$AD)","v":0},0,0,{"$f":"SUMIFS(Sheet1!S71_OY1AdjustedBudget,Sheet1!S71_SA34eCode,$AC:$AC,Sheet1!S71_A5CapexCode,$AD:$AD)","v":0},{"$f":"SUMIFS(Sheet1!S71_OY2AdjustedBudget,Sheet1!S71_SA34eCode,$AC:$AC,Sheet1!S71_A5CapexCode,$AD:$AD)","v":0},null,null,null,null,null,null,null,null,null,null,null,null,null,null,null,"1280","CE"]
["Depots",null,{"$f":"SUMIFS(Sheet1!S71_OriginalBudget,Sheet1!S71_SA34eCode,$AC:$AC,Sheet1!S71_A5CapexCode,$AD:$AD)","v":0},{"$f":"SUMIFS(Sheet1!S71_PreviousBudget,Sheet1!S71_SA34eCode,$AC:$AC,Sheet1!S71_A5CapexCode,$AD:$AD)","v":0},null,null,null,null,{"$f":"SUMIFS(Sheet1!S71_CurrentAdjustments,Sheet1!S71_SA34eCode,$AC:$AC,Sheet1!S71_A5CapexCode,$AD:$AD)","v":0},0,0,{"$f":"SUMIFS(Sheet1!S71_OY1AdjustedBudget,Sheet1!S71_SA34eCode,$AC:$AC,Sheet1!S71_A5CapexCode,$AD:$AD)","v":0},{"$f":"SUMIFS(Sheet1!S71_OY2AdjustedBudget,Sheet1!S71_SA34eCode,$AC:$AC,Sheet1!S71_A5CapexCode,$AD:$AD)","v":0},null,null,null,null,null,null,null,null,null,null,null,null,null,null,null,"1290","CE"]
["Capital Spares",null,{"$f":"SUMIFS(Sheet1!S71_OriginalBudget,Sheet1!S71_SA34eCode,$AC:$AC,Sheet1!S71_A5CapexCode,$AD:$AD)","v":0},{"$f":"SUMIFS(Sheet1!S71_PreviousBudget,Sheet1!S71_SA34eCode,$AC:$AC,Sheet1!S71_A5CapexCode,$AD:$AD)","v":0},null,null,null,null,{"$f":"SUMIFS(Sheet1!S71_CurrentAdjustments,Sheet1!S71_SA34eCode,$AC:$AC,Sheet1!S71_A5CapexCode,$AD:$AD)","v":0},0,0,{"$f":"SUMIFS(Sheet1!S71_OY1AdjustedBudget,Sheet1!S71_SA34eCode,$AC:$AC,Sheet1!S71_A5CapexCode,$AD:$AD)","v":0},{"$f":"SUMIFS(Sheet1!S71_OY2AdjustedBudget,Sheet1!S71_SA34eCode,$AC:$AC,Sheet1!S71_A5CapexCode,$AD:$AD)","v":0},null,null,null,null,null,null,null,null,null,null,null,null,null,null,null,"1300","CE"]
["Housing",null,{"$f":"SUM(C134:C136)","v":0},{"$f":"SUM(D134:D136)","v":0},{"$f":"SUM(E134:E136)","v":0},0,0,0,0,0,0,0,0,null,null,null,null,null,null,null,null,null,null,null,null,null,null,null,null,"CE"]
["Staff Housing",null,{"$f":"SUMIFS(Sheet1!S71_OriginalBudget,Sheet1!S71_SA34eCode,$AC:$AC,Sheet1!S71_A5CapexCode,$AD:$AD)","v":0},{"$f":"SUMIFS(Sheet1!S71_PreviousBudget,Sheet1!S71_SA34eCode,$AC:$AC,Sheet1!S71_A5CapexCode,$AD:$AD)","v":0},null,null,null,null,{"$f":"SUMIFS(Sheet1!S71_CurrentAdjustments,Sheet1!S71_SA34eCode,$AC:$AC,Sheet1!S71_A5CapexCode,$AD:$AD)","v":0},0,0,{"$f":"SUMIFS(Sheet1!S71_OY1AdjustedBudget,Sheet1!S71_SA34eCode,$AC:$AC,Sheet1!S71_A5CapexCode,$AD:$AD)","v":0},{"$f":"SUMIFS(Sheet1!S71_OY2AdjustedBudget,Sheet1!S71_SA34eCode,$AC:$AC,Sheet1!S71_A5CapexCode,$AD:$AD)","v":0},null,null,null,null,null,null,null,null,null,null,null,null,null,null,null,"1320","CE"]
["Social Housing",null,{"$f":"SUMIFS(Sheet1!S71_OriginalBudget,Sheet1!S71_SA34eCode,$AC:$AC,Sheet1!S71_A5CapexCode,$AD:$AD)","v":0},{"$f":"SUMIFS(Sheet1!S71_PreviousBudget,Sheet1!S71_SA34eCode,$AC:$AC,Sheet1!S71_A5CapexCode,$AD:$AD)","v":0},null,null,null,null,{"$f":"SUMIFS(Sheet1!S71_CurrentAdjustments,Sheet1!S71_SA34eCode,$AC:$AC,Sheet1!S71_A5CapexCode,$AD:$AD)","v":0},0,0,{"$f":"SUMIFS(Sheet1!S71_OY1AdjustedBudget,Sheet1!S71_SA34eCode,$AC:$AC,Sheet1!S71_A5CapexCode,$AD:$AD)","v":0},{"$f":"SUMIFS(Sheet1!S71_OY2AdjustedBudget,Sheet1!S71_SA34eCode,$AC:$AC,Sheet1!S71_A5CapexCode,$AD:$AD)","v":0},null,null,null,null,null,null,null,null,null,null,null,null,null,null,null,"1330","CE"]
["Capital Spares",null,{"$f":"SUMIFS(Sheet1!S71_OriginalBudget,Sheet1!S71_SA34eCode,$AC:$AC,Sheet1!S71_A5CapexCode,$AD:$AD)","v":0},{"$f":"SUMIFS(Sheet1!S71_PreviousBudget,Sheet1!S71_SA34eCode,$AC:$AC,Sheet1!S71_A5CapexCode,$AD:$AD)","v":0},null,null,null,null,{"$f":"SUMIFS(Sheet1!S71_CurrentAdjustments,Sheet1!S71_SA34eCode,$AC:$AC,Sheet1!S71_A5CapexCode,$AD:$AD)","v":0},0,0,{"$f":"SUMIFS(Sheet1!S71_OY1AdjustedBudget,Sheet1!S71_SA34eCode,$AC:$AC,Sheet1!S71_A5CapexCode,$AD:$AD)","v":0},{"$f":"SUMIFS(Sheet1!S71_OY2AdjustedBudget,Sheet1!S71_SA34eCode,$AC:$AC,Sheet1!S71_A5CapexCode,$AD:$AD)","v":0},null,null,null,null,null,null,null,null,null,null,null,null,null,null,null,"1340","CE"]
[null,null,null,null,null,null,null,null,null,null,null,null,null,null,null,null,null,null,null,null,null,null,null,null,null,null,null,null,null,"CE"]
["Biological or Cultivated Assets",null,{"$f":"SUM(C139:C139)","v":0},0,0,0,0,0,0,{"$f":"SUM(E138:I138)","v":0},{"$f":"IF(D138=0,C138+J138,D138+J138)","v":0},0,0,null,null,null,null,null,null,null,null,null,null,null,null,null,null,null,null,"CE"]
["Biological or Cultivated Assets",null,{"$f":"SUMIFS(Sheet1!S71_OriginalBudget,Sheet1!S71_SA34eCode,$AC:$AC,Sheet1!S71_A5CapexCode,$AD:$AD)","v":0},{"$f":"SUMIFS(Sheet1!S71_PreviousBudget,Sheet1!S71_SA34eCode,$AC:$AC,Sheet1!S71_A5CapexCode,$AD:$AD)","v":0},null,null,null,null,{"$f":"SUMIFS(Sheet1!S71_CurrentAdjustments,Sheet1!S71_SA34eCode,$AC:$AC,Sheet1!S71_A5CapexCode,$AD:$AD)","v":0},0,0,{"$f":"SUMIFS(Sheet1!S71_OY1AdjustedBudget,Sheet1!S71_SA34eCode,$AC:$AC,Sheet1!S71_A5CapexCode,$AD:$AD)","v":0},{"$f":"SUMIFS(Sheet1!S71_OY2AdjustedBudget,Sheet1!S71_SA34eCode,$AC:$AC,Sheet1!S71_A5CapexCode,$AD:$AD)","v":0},null,null,null,null,null,null,null,null,null,null,null,null,null,null,null,"1360","CE"]
[null,null,null,null,null,null,null,null,null,null,null,null,null,null,null,null,null,null,null,null,null,null,null,null,null,null,null,null,null,"CE"]
["Intangible Assets",null,{"$f":"SUM(C142:C143)","v":0},{"$f":"SUM(D142:D143)","v":0},{"$f":"SUM(E142:E143)","v":0},0,0,0,0,0,0,0,0,null,null,null,null,null,null,null,null,null,null,null,null,null,null,null,null,"CE"]
["Servitudes",null,{"$f":"SUMIFS(Sheet1!S71_OriginalBudget,Sheet1!S71_SA34eCode,$AC:$AC,Sheet1!S71_A5CapexCode,$AD:$AD)","v":0},{"$f":"SUMIFS(Sheet1!S71_PreviousBudget,Sheet1!S71_SA34eCode,$AC:$AC,Sheet1!S71_A5CapexCode,$AD:$AD)","v":0},null,null,null,null,{"$f":"SUMIFS(Sheet1!S71_CurrentAdjustments,Sheet1!S71_SA34eCode,$AC:$AC,Sheet1!S71_A5CapexCode,$AD:$AD)","v":0},0,0,{"$f":"SUMIFS(Sheet1!S71_OY1AdjustedBudget,Sheet1!S71_SA34eCode,$AC:$AC,Sheet1!S71_A5CapexCode,$AD:$AD)","v":0},{"$f":"SUMIFS(Sheet1!S71_OY2AdjustedBudget,Sheet1!S71_SA34eCode,$AC:$AC,Sheet1!S71_A5CapexCode,$AD:$AD)","v":0},null,null,null,null,null,null,null,null,null,null,null,null,null,null,null,"1380","CE"]
["Licences and Rights",null,{"$f":"SUM(C144:C149)","v":0},{"$f":"SUM(D144:D149)","v":0},{"$f":"SUM(E144:E149)","v":0},0,0,0,0,0,0,0,0,null,null,null,null,null,null,null,null,null,null,null,null,null,null,null,null,"CE"]
["Water Rights",null,{"$f":"SUMIFS(Sheet1!S71_OriginalBudget,Sheet1!S71_SA34eCode,$AC:$AC,Sheet1!S71_A5CapexCode,$AD:$AD)","v":0},{"$f":"SUMIFS(Sheet1!S71_PreviousBudget,Sheet1!S71_SA34eCode,$AC:$AC,Sheet1!S71_A5CapexCode,$AD:$AD)","v":0},null,null,null,null,{"$f":"SUMIFS(Sheet1!S71_CurrentAdjustments,Sheet1!S71_SA34eCode,$AC:$AC,Sheet1!S71_A5CapexCode,$AD:$AD)","v":0},0,0,{"$f":"SUMIFS(Sheet1!S71_OY1AdjustedBudget,Sheet1!S71_SA34eCode,$AC:$AC,Sheet1!S71_A5CapexCode,$AD:$AD)","v":0},{"$f":"SUMIFS(Sheet1!S71_OY2AdjustedBudget,Sheet1!S71_SA34eCode,$AC:$AC,Sheet1!S71_A5CapexCode,$AD:$AD)","v":0},null,null,null,null,null,null,null,null,null,null,null,null,null,null,null,"1400","CE"]
["Effluent Licenses",null,{"$f":"SUMIFS(Sheet1!S71_OriginalBudget,Sheet1!S71_SA34eCode,$AC:$AC,Sheet1!S71_A5CapexCode,$AD:$AD)","v":0},{"$f":"SUMIFS(Sheet1!S71_PreviousBudget,Sheet1!S71_SA34eCode,$AC:$AC,Sheet1!S71_A5CapexCode,$AD:$AD)","v":0},null,null,null,null,{"$f":"SUMIFS(Sheet1!S71_CurrentAdjustments,Sheet1!S71_SA34eCode,$AC:$AC,Sheet1!S71_A5CapexCode,$AD:$AD)","v":0},0,0,{"$f":"SUMIFS(Sheet1!S71_OY1AdjustedBudget,Sheet1!S71_SA34eCode,$AC:$AC,Sheet1!S71_A5CapexCode,$AD:$AD)","v":0},{"$f":"SUMIFS(Sheet1!S71_OY2AdjustedBudget,Sheet1!S71_SA34eCode,$AC:$AC,Sheet1!S71_A5CapexCode,$AD:$AD)","v":0},null,null,null,null,null,null,null,null,null,null,null,null,null,null,null,"1410","CE"]
["Solid Waste Licenses",null,{"$f":"SUMIFS(Sheet1!S71_OriginalBudget,Sheet1!S71_SA34eCode,$AC:$AC,Sheet1!S71_A5CapexCode,$AD:$AD)","v":0},{"$f":"SUMIFS(Sheet1!S71_PreviousBudget,Sheet1!S71_SA34eCode,$AC:$AC,Sheet1!S71_A5CapexCode,$AD:$AD)","v":0},null,null,null,null,{"$f":"SUMIFS(Sheet1!S71_CurrentAdjustments,Sheet1!S71_SA34eCode,$AC:$AC,Sheet1!S71_A5CapexCode,$AD:$AD)","v":0},0,0,{"$f":"SUMIFS(Sheet1!S71_OY1AdjustedBudget,Sheet1!S71_SA34eCode,$AC:$AC,Sheet1!S71_A5CapexCode,$AD:$AD)","v":0},{"$f":"SUMIFS(Sheet1!S71_OY2AdjustedBudget,Sheet1!S71_SA34eCode,$AC:$AC,Sheet1!S71_A5CapexCode,$AD:$AD)","v":0},null,null,null,null,null,null,null,null,null,null,null,null,null,null,null,"1420","CE"]
["Computer Software and Applications",null,{"$f":"SUMIFS(Sheet1!S71_OriginalBudget,Sheet1!S71_SA34eCode,$AC:$AC,Sheet1!S71_A5CapexCode,$AD:$AD)","v":0},{"$f":"SUMIFS(Sheet1!S71_PreviousBudget,Sheet1!S71_SA34eCode,$AC:$AC,Sheet1!S71_A5CapexCode,$AD:$AD)","v":0},null,null,null,null,{"$f":"SUMIFS(Sheet1!S71_CurrentAdjustments,Sheet1!S71_SA34eCode,$AC:$AC,Sheet1!S71_A5CapexCode,$AD:$AD)","v":0},0,0,{"$f":"SUMIFS(Sheet1!S71_OY1AdjustedBudget,Sheet1!S71_SA34eCode,$AC:$AC,Sheet1!S71_A5CapexCode,$AD:$AD)","v":0},{"$f":"SUMIFS(Sheet1!S71_OY2AdjustedBudget,Sheet1!S71_SA34eCode,$AC:$AC,Sheet1!S71_A5CapexCode,$AD:$AD)","v":0},null,null,null,null,null,null,null,null,null,null,null,null,null,null,null,"1430","CE"]
["Load Settlement Software Applications",null,{"$f":"SUMIFS(Sheet1!S71_OriginalBudget,Sheet1!S71_SA34eCode,$AC:$AC,Sheet1!S71_A5CapexCode,$AD:$AD)","v":0},{"$f":"SUMIFS(Sheet1!S71_PreviousBudget,Sheet1!S71_SA34eCode,$AC:$AC,Sheet1!S71_A5CapexCode,$AD:$AD)","v":0},null,null,null,null,{"$f":"SUMIFS(Sheet1!S71_CurrentAdjustments,Sheet1!S71_SA34eCode,$AC:$AC,Sheet1!S71_A5CapexCode,$AD:$AD)","v":0},0,0,{"$f":"SUMIFS(Sheet1!S71_OY1AdjustedBudget,Sheet1!S71_SA34eCode,$AC:$AC,Sheet1!S71_A5CapexCode,$AD:$AD)","v":0},{"$f":"SUMIFS(Sheet1!S71_OY2AdjustedBudget,Sheet1!S71_SA34eCode,$AC:$AC,Sheet1!S71_A5CapexCode,$AD:$AD)","v":0},null,null,null,null,null,null,null,null,null,null,null,null,null,null,null,"1440","CE"]
["Unspecified",null,{"$f":"SUMIFS(Sheet1!S71_OriginalBudget,Sheet1!S71_SA34eCode,$AC:$AC,Sheet1!S71_A5CapexCode,$AD:$AD)","v":0},{"$f":"SUMIFS(Sheet1!S71_PreviousBudget,Sheet1!S71_SA34eCode,$AC:$AC,Sheet1!S71_A5CapexCode,$AD:$AD)","v":0},null,null,null,null,{"$f":"SUMIFS(Sheet1!S71_CurrentAdjustments,Sheet1!S71_SA34eCode,$AC:$AC,Sheet1!S71_A5CapexCode,$AD:$AD)","v":0},0,0,{"$f":"SUMIFS(Sheet1!S71_OY1AdjustedBudget,Sheet1!S71_SA34eCode,$AC:$AC,Sheet1!S71_A5CapexCode,$AD:$AD)","v":0},{"$f":"SUMIFS(Sheet1!S71_OY2AdjustedBudget,Sheet1!S71_SA34eCode,$AC:$AC,Sheet1!S71_A5CapexCode,$AD:$AD)","v":0},null,null,null,null,null,null,null,null,null,null,null,null,null,null,null,"1450","CE"]
[null,null,null,null,null,null,null,null,null,null,null,null,null,null,null,null,null,null,null,null,null,null,null,null,null,null,null,null,null,"CE"]
["Computer Equipment",null,{"$f":"SUM(C152:C152)","v":652170},1217387,0,0,0,0,0,0,1217387,0,0,null,null,null,null,null,null,null,null,null,null,null,null,null,null,null,null,"CE"]
["Computer Equipment",null,{"$f":"SUMIFS(Sheet1!S71_OriginalBudget,Sheet1!S71_SA34eCode,$AC:$AC,Sheet1!S71_A5CapexCode,$AD:$AD)","v":652170},{"$f":"SUMIFS(Sheet1!S71_PreviousBudget,Sheet1!S71_SA34eCode,$AC:$AC,Sheet1!S71_A5CapexCode,$AD:$AD)","v":1217387},null,null,null,null,{"$f":"SUMIFS(Sheet1!S71_CurrentAdjustments,Sheet1!S71_SA34eCode,$AC:$AC,Sheet1!S71_A5CapexCode,$AD:$AD)","v":0},0,1217387,{"$f":"SUMIFS(Sheet1!S71_OY1AdjustedBudget,Sheet1!S71_SA34eCode,$AC:$AC,Sheet1!S71_A5CapexCode,$AD:$AD)","v":0},{"$f":"SUMIFS(Sheet1!S71_OY2AdjustedBudget,Sheet1!S71_SA34eCode,$AC:$AC,Sheet1!S71_A5CapexCode,$AD:$AD)","v":0},null,null,null,null,null,null,null,null,null,null,null,null,null,null,null,"1470","CE"]
[null,null,null,null,null,null,null,null,null,null,null,null,null,null,null,null,null,null,null,null,null,null,null,null,null,null,null,null,null,"CE"]
["Furniture and Office Equipment",null,{"$f":"SUM(C155:C155)","v":0},0,0,0,0,0,0,0,0,0,0,null,null,null,null,null,null,null,null,null,null,null,null,null,null,null,null,"CE"]
["Furniture and Office Equipment",null,{"$f":"SUMIFS(Sheet1!S71_OriginalBudget,Sheet1!S71_SA34eCode,$AC:$AC,Sheet1!S71_A5CapexCode,$AD:$AD)","v":0},{"$f":"SUMIFS(Sheet1!S71_PreviousBudget,Sheet1!S71_SA34eCode,$AC:$AC,Sheet1!S71_A5CapexCode,$AD:$AD)","v":0},null,null,null,null,{"$f":"SUMIFS(Sheet1!S71_CurrentAdjustments,Sheet1!S71_SA34eCode,$AC:$AC,Sheet1!S71_A5CapexCode,$AD:$AD)","v":0},0,0,{"$f":"SUMIFS(Sheet1!S71_OY1AdjustedBudget,Sheet1!S71_SA34eCode,$AC:$AC,Sheet1!S71_A5CapexCode,$AD:$AD)","v":0},{"$f":"SUMIFS(Sheet1!S71_OY2AdjustedBudget,Sheet1!S71_SA34eCode,$AC:$AC,Sheet1!S71_A5CapexCode,$AD:$AD)","v":0},null,null,null,null,null,null,null,null,null,null,null,null,null,null,null,"1490","CE"]
[null,null,null,null,null,null,null,null,null,null,null,null,null,null,null,null,null,null,null,null,null,null,null,null,null,null,null,null,null,"CE"]
["Machinery and Equipment",null,{"$f":"SUM(C158:C158)","v":0},0,0,0,0,0,0,0,0,0,0,null,null,null,null,null,null,null,null,null,null,null,null,null,null,null,null,"CE"]
["Machinery and Equipment",null,{"$f":"SUMIFS(Sheet1!S71_OriginalBudget,Sheet1!S71_SA34eCode,$AC:$AC,Sheet1!S71_A5CapexCode,$AD:$AD)","v":0},{"$f":"SUMIFS(Sheet1!S71_PreviousBudget,Sheet1!S71_SA34eCode,$AC:$AC,Sheet1!S71_A5CapexCode,$AD:$AD)","v":0},null,null,null,null,{"$f":"SUMIFS(Sheet1!S71_CurrentAdjustments,Sheet1!S71_SA34eCode,$AC:$AC,Sheet1!S71_A5CapexCode,$AD:$AD)","v":0},0,0,{"$f":"SUMIFS(Sheet1!S71_OY1AdjustedBudget,Sheet1!S71_SA34eCode,$AC:$AC,Sheet1!S71_A5CapexCode,$AD:$AD)","v":0},{"$f":"SUMIFS(Sheet1!S71_OY2AdjustedBudget,Sheet1!S71_SA34eCode,$AC:$AC,Sheet1!S71_A5CapexCode,$AD:$AD)","v":0},null,null,null,null,null,null,null,null,null,null,null,null,null,null,null,"1510","CE"]
[null,null,null,null,null,null,null,null,null,null,null,null,null,null,null,null,null,null,null,null,null,null,null,null,null,null,null,null,null,"CE"]
["Transport Assets",null,{"$f":"SUM(C161:C161)","v":0},0,0,0,0,0,0,0,0,0,0,null,null,null,null,null,null,null,null,null,null,null,null,null,null,null,null,"CE"]
["Transport Assets",null,{"$f":"SUMIFS(Sheet1!S71_OriginalBudget,Sheet1!S71_SA34eCode,$AC:$AC,Sheet1!S71_A5CapexCode,$AD:$AD)","v":0},{"$f":"SUMIFS(Sheet1!S71_PreviousBudget,Sheet1!S71_SA34eCode,$AC:$AC,Sheet1!S71_A5CapexCode,$AD:$AD)","v":0},null,null,null,null,{"$f":"SUMIFS(Sheet1!S71_CurrentAdjustments,Sheet1!S71_SA34eCode,$AC:$AC,Sheet1!S71_A5CapexCode,$AD:$AD)","v":0},0,0,{"$f":"SUMIFS(Sheet1!S71_OY1AdjustedBudget,Sheet1!S71_SA34eCode,$AC:$AC,Sheet1!S71_A5CapexCode,$AD:$AD)","v":0},{"$f":"SUMIFS(Sheet1!S71_OY2AdjustedBudget,Sheet1!S71_SA34eCode,$AC:$AC,Sheet1!S71_A5CapexCode,$AD:$AD)","v":0},null,null,null,null,null,null,null,null,null,null,null,null,null,null,null,"1530","CE"]
[null,null,null,null,null,null,null,null,null,null,null,null,null,null,null,null,null,null,null,null,null,null,null,null,null,null,null,null,null,"CE"]
["Land",null,{"$f":"SUM(C164:C164)","v":0},0,0,0,0,0,0,0,0,0,0,null,null,null,null,null,null,null,null,null,null,null,null,null,null,null,null,"CE"]
["Land",null,{"$f":"SUMIFS(Sheet1!S71_OriginalBudget,Sheet1!S71_SA34eCode,$AC:$AC,Sheet1!S71_A5CapexCode,$AD:$AD)","v":0},{"$f":"SUMIFS(Sheet1!S71_PreviousBudget,Sheet1!S71_SA34eCode,$AC:$AC,Sheet1!S71_A5CapexCode,$AD:$AD)","v":0},null,null,null,null,{"$f":"SUMIFS(Sheet1!S71_CurrentAdjustments,Sheet1!S71_SA34eCode,$AC:$AC,Sheet1!S71_A5CapexCode,$AD:$AD)","v":0},0,0,{"$f":"SUMIFS(Sheet1!S71_OY1AdjustedBudget,Sheet1!S71_SA34eCode,$AC:$AC,Sheet1!S71_A5CapexCode,$AD:$AD)","v":0},{"$f":"SUMIFS(Sheet1!S71_OY2AdjustedBudget,Sheet1!S71_SA34eCode,$AC:$AC,Sheet1!S71_A5CapexCode,$AD:$AD)","v":0},null,null,null,null,null,null,null,null,null,null,null,null,null,null,null,"1550","CE"]
[null,null,null,null,null,null,null,null,null,null,null,null,null,null,null,null,null,null,null,null,null,null,null,null,null,null,null,null,null,"CE"]
["Zoo's, Marine and Non-biological Animals",null,{"$f":"SUM(C167:C167)","v":0},0,0,0,0,0,0,0,0,0,0,null,null,null,null,null,null,null,null,null,null,null,null,null,null,null,null,"CE"]
["Zoo's, Marine and Non-biological Animals",null,{"$f":"SUMIFS(Sheet1!S71_OriginalBudget,Sheet1!S71_SA34eCode,$AC:$AC,Sheet1!S71_A5CapexCode,$AD:$AD)","v":0},null,null,null,null,null,{"$f":"SUMIFS(Sheet1!S71_CurrentAdjustments,Sheet1!S71_SA34eCode,$AC:$AC,Sheet1!S71_A5CapexCode,$AD:$AD)","v":0},0,0,{"$f":"SUMIFS(Sheet1!S71_OY1AdjustedBudget,Sheet1!S71_SA34eCode,$AC:$AC,Sheet1!S71_A5CapexCode,$AD:$AD)","v":0},{"$f":"SUMIFS(Sheet1!S71_OY2AdjustedBudget,Sheet1!S71_SA34eCode,$AC:$AC,Sheet1!S71_A5CapexCode,$AD:$AD)","v":0},null,null,null,null,null,null,null,null,null,null,null,null,null,null,null,"1570","CE"]
[null,null,null,null,null,null,null,null,{"$f":"SUMIFS(Sheet1!S71_CurrentAdjustments,Sheet1!S71_SA34eCode,$AC:$AC,Sheet1!S71_A5CapexCode,$AD:$AD)","v":0},null,null,{"$f":"SUMIFS(Sheet1!S71_OY1AdjustedBudget,Sheet1!S71_SA34eCode,$AC:$AC,Sheet1!S71_A5CapexCode,$AD:$AD)","v":0},{"$f":"SUMIFS(Sheet1!S71_OY2AdjustedBudget,Sheet1!S71_SA34eCode,$AC:$AC,Sheet1!S71_A5CapexCode,$AD:$AD)","v":0}]
["Living resources",null,{"$f":"+C170+C173","v":0},{"$f":"+D170+D173","v":0},0,0,0,0,0,{"$f":"SUM(E169:I169)","v":0},{"$f":"IF(D169=0,C169+J169,D169+J169)","v":0},{"$f":"+L170+L173","v":0},{"$f":"SUM(M170:M170)","v":0}]
["Mature",null,{"$f":"+C171+C172","v":0},{"$f":"+D171+D172","v":0},0,0,0,0,0,0,0,{"$f":"+L171+L172","v":0},{"$f":"+M171+M172","v":0}]
["Policing and Protection",null,{"$f":"SUMIFS(Sheet1!S71_OriginalBudget,Sheet1!S71_SA34eCode,$AC:$AC,Sheet1!S71_A5CapexCode,$AD:$AD)","v":0},{"$f":"SUMIFS(Sheet1!S71_OriginalBudget,Sheet1!S71_SA34eCode,$AC:$AC,Sheet1!S71_A5CapexCode,$AD:$AD)","v":0},null,null,null,null,{"$f":"SUMIFS(Sheet1!S71_CurrentAdjustments,Sheet1!S71_SA34eCode,$AC:$AC,Sheet1!S71_A5CapexCode,$AD:$AD)","v":0},0,0,{"$f":"SUMIFS(Sheet1!S71_OY1AdjustedBudget,Sheet1!S71_SA34eCode,$AC:$AC,Sheet1!S71_A5CapexCode,$AD:$AD)","v":0},{"$f":"SUMIFS(Sheet1!S71_OY2AdjustedBudget,Sheet1!S71_SA34eCode,$AC:$AC,Sheet1!S71_A5CapexCode,$AD:$AD)","v":0}]
["Zoological plants and animals",null,{"$f":"SUMIFS(Sheet1!S71_OriginalBudget,Sheet1!S71_SA34eCode,$AC:$AC,Sheet1!S71_A5CapexCode,$AD:$AD)","v":0},{"$f":"SUMIFS(Sheet1!S71_OriginalBudget,Sheet1!S71_SA34eCode,$AC:$AC,Sheet1!S71_A5CapexCode,$AD:$AD)","v":0},null,null,null,null,{"$f":"SUMIFS(Sheet1!S71_CurrentAdjustments,Sheet1!S71_SA34eCode,$AC:$AC,Sheet1!S71_A5CapexCode,$AD:$AD)","v":0},0,0,{"$f":"SUMIFS(Sheet1!S71_OY1AdjustedBudget,Sheet1!S71_SA34eCode,$AC:$AC,Sheet1!S71_A5CapexCode,$AD:$AD)","v":0},{"$f":"SUMIFS(Sheet1!S71_OY2AdjustedBudget,Sheet1!S71_SA34eCode,$AC:$AC,Sheet1!S71_A5CapexCode,$AD:$AD)","v":0}]
["Immature",null,{"$f":"+C174+C175","v":0},{"$f":"+D174+D175","v":0},0,0,0,0,0,0,0,{"$f":"+L174+L175","v":0},{"$f":"+M174+M175","v":0}]
["Policing and Protection",null,{"$f":"SUMIFS(Sheet1!S71_OriginalBudget,Sheet1!S71_SA34eCode,$AC:$AC,Sheet1!S71_A5CapexCode,$AD:$AD)","v":0},{"$f":"SUMIFS(Sheet1!S71_OriginalBudget,Sheet1!S71_SA34eCode,$AC:$AC,Sheet1!S71_A5CapexCode,$AD:$AD)","v":0},null,null,null,null,{"$f":"SUMIFS(Sheet1!S71_CurrentAdjustments,Sheet1!S71_SA34eCode,$AC:$AC,Sheet1!S71_A5CapexCode,$AD:$AD)","v":0},0,0,{"$f":"SUMIFS(Sheet1!S71_OY1AdjustedBudget,Sheet1!S71_SA34eCode,$AC:$AC,Sheet1!S71_A5CapexCode,$AD:$AD)","v":0},{"$f":"SUMIFS(Sheet1!S71_OY2AdjustedBudget,Sheet1!S71_SA34eCode,$AC:$AC,Sheet1!S71_A5CapexCode,$AD:$AD)","v":0}]
["Zoological plants and animals",null,{"$f":"SUMIFS(Sheet1!S71_OriginalBudget,Sheet1!S71_SA34eCode,$AC:$AC,Sheet1!S71_A5CapexCode,$AD:$AD)","v":0},{"$f":"SUMIFS(Sheet1!S71_OriginalBudget,Sheet1!S71_SA34eCode,$AC:$AC,Sheet1!S71_A5CapexCode,$AD:$AD)","v":0},null,null,null,null,{"$f":"SUMIFS(Sheet1!S71_CurrentAdjustments,Sheet1!S71_SA34eCode,$AC:$AC,Sheet1!S71_A5CapexCode,$AD:$AD)","v":0},0,0,{"$f":"SUMIFS(Sheet1!S71_OY1AdjustedBudget,Sheet1!S71_SA34eCode,$AC:$AC,Sheet1!S71_A5CapexCode,$AD:$AD)","v":0},{"$f":"SUMIFS(Sheet1!S71_OY2AdjustedBudget,Sheet1!S71_SA34eCode,$AC:$AC,Sheet1!S71_A5CapexCode,$AD:$AD)","v":0}]
["Total Capital Expenditure on upgrading of existing assets to be adjusted",1,{"$f":"C8+C76+C105+C112+C120+C151+C138+C141+C154+C157+C160+C163+C166+C169","v":46225404},{"$f":"D8+D76+D105+D112+D120+D151+D138+D141+D154+D157+D160+D163+D166+D169","v":47112215},0,0,0,0,0,0,47286125,35512652,38415522]
[]
[{"$f":"head27a","v":"References"}]
["1. Total Capital Expenditure  on renewal of existing assets (SB18b) plus Total Capital Expenditure on new assets (SB18a) plus Total Capital Expenditure on upgrading of existing assets (SB18e) must reconcile to total capital expenditure in Budgeted Capital Expenditure"]
["7. Only complete if a previous adjusted budget has been approved in the same financial year. Reflect most recent adjusted budget."]
["8. Additional cash-backed accumulated funds/unspent funds (section 18(1)(b) and section 28(2)(e) MFMA) identified after Original Budget approved and after annual financial statements audited (note: only where underspending could not reasonably be have for"]
["9. Increases of funds approved under section 31 MFMA"]
["10. Adjustments approved in accordance with section 29 MFMA"]
["11. Adjustments to funding allocations from National or Provincial Government"]
["12. Adjusts. = 'Other' Adjustments proposed to be approved; including revenue under-collection (MFMA section 28(2)(a)); additional revenue appropriation on existing programmes (section 28(2))(b); projected savings (section 28(2)(d)); error correction (sec"]
["13. G = B + C + D + E + F"]
["14. Adjusted Budget H = (A or A1) + G"]
[]
[]
["check balance",null,{"$f":"(C176+SB18a!C177+SB18b!C177)-'B5-Capex'!C65","v":0},null,null,null,null,null,null,null,null,{"$f":"(L176+SB18a!L177+SB18b!L177)-'B5-Capex'!L65","v":0},{"$f":"(M176+SB18a!M177+SB18b!M177)-'B5-Capex'!M65","v":0}]

{"sheet":"SB19","index":59,"n_rows":159,"n_cols":18,"rows_kept":159,"cut":false,"hidden":false,"merged":[[1,12,1,17],[2,12,2,13],[2,14,2,15],[2,16,2,17]]}
[{"$f":"muni&\" - \"&ADJB19&\" - \"&Date","v":"KZN291 Mandeni - Supporting Table SB19 List of capital programmes and projects affected by Adjustments Budget - 08-04-2025"}]
["Function","Project Description","Project Number","Type","MTSF Service Outcome","IUDF","Own Strategic Objectives","Asset Class","Asset Sub-Class ","Ward Location","GPS Longitude","GPS Lattitude",{"$f":"Head3a","v":"Medium Term Revenue and Expenditure Framework"}]
[null,null,null,null,null,null,null,null,null,null,null,null,{"$f":"Head9","v":"Budget Year 2024/25"},null,{"$f":"Head10","v":"Budget Year +1 2025/26"},null,{"$f":"Head11","v":"Budget Year +2 2026/27"}]
["R thousands",null,null,null,null,null,null,null,null,null,null,null,{"$f":"Head6","v":"Original Budget"},{"$f":"Head7","v":"Adjusted Budget"},{"$f":"Head6","v":"Original Budget"},{"$f":"Head7","v":"Adjusted Budget"},{"$f":"Head6","v":"Original Budget"},{"$f":"Head7","v":"Adjusted Budget"}]
["Parent municipality:"]
["List all capital projects grouped by Function"]
["028ec562-fa32-4462-9c8f-90ca38ed33ae","Procurement of 30 new skips","PC001002002004000000000000000000000000_00001","_","An efficient, competitive and responsive economic infrastructure network","Growth","Procurement of 20 new skips","Solid Waste Infrastructure","Waste Drop-off Points","d4a7a8a1-43a6-4de9-8ec0-e5027c88d37e",31.689443588256836,29.268054962158203,6240000,0,0,0,0,0]
["028ec562-fa32-4462-9c8f-90ca38ed33ae","RECYCLING PROGRAMME","PC002003009000000000000000000000000000_00035","_","An efficient, effective and development-oriented public service","Growth","Ensure that our people have access to community facilities","Machinery and Equipment","Machinery and Equipment","d4a7a8a1-43a6-4de9-8ec0-e5027c88d37e",32.900001525878906,29.399999618530273,2295652,0,0,0,0,0]
["0f52d9e5-907f-4d9f-934f-57dc012524d6","Office Equipment - Corp and Furniture","PC002003005000000000000000000000000000_00005","_","An efficient, effective and development-oriented public service","Growth","Maintain and improve municipal buildings and assets.","Furniture and Office Equipment","Furniture and Office Equipment","e92cc59b-4a01-4ee2-b6fc-84d252b20fac",31.689443588256836,29.268054962158203,2434788,0,0,0,0,0]
["0f6032ee-c792-4735-aef9-9bdf01ab5d0c","ICT Equipment Library","PC002003004000000000000000000000000000_00011","_","An efficient, effective and development-oriented public service","Growth","Ensure that our people have access to community facilities","Computer Equipment","Computer Equipment","d4a7a8a1-43a6-4de9-8ec0-e5027c88d37e",32,29,208704,0,0,0,0,0]
["0f6032ee-c792-4735-aef9-9bdf01ab5d0c","Procurement of library furniture ","PC002003005000000000000000000000000000_00002","_","An efficient, effective and development-oriented public service","Growth","Aspire to a healthy, safe and crime free area","Furniture and Office Equipment","Furniture and Office Equipment","e92cc59b-4a01-4ee2-b6fc-84d252b20fac",31.689443588256836,29.268054962158203,521720,0,0,0,0,0]
["0f6032ee-c792-4735-aef9-9bdf01ab5d0c","Procurement of Solar energy power with invetors","PC002003009000000000000000000000000000_00040","_","An efficient, effective and development-oriented public service","Growth","Ensure that our people have access to community facilities","Machinery and Equipment","Machinery and Equipment","e92cc59b-4a01-4ee2-b6fc-84d252b20fac",1,1,1391304,0,0,0,0,0]
["0f6032ee-c792-4735-aef9-9bdf01ab5d0c","SOLAR GENERATOR (Mobile Library)","PC002003009000000000000000000000000000_00040","_","An efficient, effective and development-oriented public service","Growth","Provide and maintain Library services","Machinery and Equipment","Machinery and Equipment","d4a7a8a1-43a6-4de9-8ec0-e5027c88d37e",39.5,29.399999618530273,1043476,0,0,0,0,0]
["0f6032ee-c792-4735-aef9-9bdf01ab5d0c","Sundumbili & Isithebe Toilets","PC001002005005000000000000000000000000_00002","_","An efficient, competitive and responsive economic infrastructure network","Growth","Ensure that our people have access to community facilities","Sanitation Infrastructure","Toilet Facilities","ebcb7441-9e89-4ea6-b2ba-e8d6cd979b22",1,1,145128,0,0,0,0,0]
["15e7fc9a-7613-41bd-b0e9-57024945d7d9"," Feasibility Study for DLTC Trading  Facilities ","PC002003002001018000000000000000000000_00006","_","An efficient, effective and development-oriented public service","Growth","Facilitating the creation of employment opportunities for skilled and employable people","Community Facilities","Stalls","4493efed-d44b-472e-b666-926b1c994c63",1,1,0,0,12173916,12173916,0,0]
["15e7fc9a-7613-41bd-b0e9-57024945d7d9","4 X 4 Double Cab Bakkie Vehicle (PMU)","PC002003010000000000000000000000000000_00022","_","An efficient, effective and development-oriented public service","Growth","To improve access to all basic services","Transport Assets","Transport Assets","d4a7a8a1-43a6-4de9-8ec0-e5027c88d37e",39.5,29.399999618530273,2156520,0,0,0,0,0]
["15e7fc9a-7613-41bd-b0e9-57024945d7d9","Cemetery Development, Fencing and Guard house WARD 4","PC002003002001011000000000000000000000_00002","_","An efficient, effective and development-oriented public service","Growth","To improve access to all basic services","Community Facilities","Cemeteries/Crematoria","06d456ba-b774-4d48-9f41-061c061426a3",1,1,8695652,0,8695652,8695652,0,0]
["15e7fc9a-7613-41bd-b0e9-57024945d7d9","Designs for Phase 1 construction of emergency center","PC002003002001002000000000000000000000_00004","_","An efficient, effective and development-oriented public service","Growth","Ensure that our people have access to community facilities","Community Facilities","Centres","4493efed-d44b-472e-b666-926b1c994c63",1,1,1739132,0,12173912,12173912,0,0]
["15e7fc9a-7613-41bd-b0e9-57024945d7d9","Establishment of public safety centre","PC002003002001002000000000000000000000_00001","_","An efficient, effective and development-oriented public service","Growth","Establishment of Driving License Testing Centre.","Community Facilities","Centres","d4a7a8a1-43a6-4de9-8ec0-e5027c88d37e",31.689443588256836,29.268054962158203,3895528,0,0,0,0,0]
["15e7fc9a-7613-41bd-b0e9-57024945d7d9","Procurement of Water Tanks for Municipal Offices","PC002003003001001000000000000000000000_00004","_","An efficient, effective and development-oriented public service","Growth","To improve access to all basic services","Operational Buildings","Municipal Offices","d4a7a8a1-43a6-4de9-8ec0-e5027c88d37e",1,1,1739132,0,0,0,0,0]
["15e7fc9a-7613-41bd-b0e9-57024945d7d9","Support for Youth Enterprise Park ","PC002003002001013000000000000000000000_00001","_","An efficient, effective and development-oriented public service","Growth","Ensure that our people have access to community facilities and services","Community Facilities","Parks","42093ebf-0032-4a12-b64e-8f176c305d4c",1,1,695652,0,0,0,0,0]
["1798dfcb-6d28-419a-9c01-c501c9cb9e41","Procurement of 3 Rescue Boats","PC002003009000000000000000000000000000_00031","_","An efficient, effective and development-oriented public service","Growth","Ensure that our people have access to community facilities and services","Machinery and Equipment","Machinery and Equipment","d4a7a8a1-43a6-4de9-8ec0-e5027c88d37e",32.900001525878906,29.399999618530273,626080,0,0,0,0,0]
["1798dfcb-6d28-419a-9c01-c501c9cb9e41","Sports and recreation facilities","PC001002008005000000000000000000000000_00001","_","An efficient, competitive and responsive economic infrastructure network","Growth","Procurement of Coastal management equipment","Coastal Infrastructure","Capital Spares","d4a7a8a1-43a6-4de9-8ec0-e5027c88d37e",31.689443588256836,29.268054962158203,382400,0,0,0,0,0]
["315a0f4d-28ad-4cd2-a4a5-afb34a6a8e1f","Procurement of plant and equipment","PC002003009000000000000000000000000000_00028","_","An efficient, effective and development-oriented public service","Growth","Greening of open spaces and Municipal facilities","Machinery and Equipment","Machinery and Equipment","d4a7a8a1-43a6-4de9-8ec0-e5027c88d37e",31.689443588256836,29.268054962158203,632640,0,0,0,0,0]
["35f914ed-b099-4a36-890d-69e60fc0e57c","Construction of a Soccer Field and Combo Court in Khenana Township","PC002003002002002000000000000000000000_00013","_","A long and healthy life for all South Africans","Growth","Maintain and improve municipal buildings and assets.","Sport and Recreation Facilities","Outdoor Facilities","056928e7-26c8-40bd-94a6-94e379710f4c",1,1,24558468,0,0,0,0,0]
["35f914ed-b099-4a36-890d-69e60fc0e57c","Construction of a Sportsfield in Ward 1, Mandeni","PC002003002002002000000000000000000000_00014","_","A long and healthy life for all South Africans","Growth","Maintain and improve municipal buildings and assets.","Sport and Recreation Facilities","Outdoor Facilities","2fbc6cca-e864-427f-94cc-61f7ebbb5a7e",1,1,1043480,0,0,0,0,0]
["35f914ed-b099-4a36-890d-69e60fc0e57c","Construction of a Sportsfield in Ward 2","PC002003002002002000000000000000000000_00012","_","A long and healthy life for all South Africans","Growth","Maintain and improve municipal buildings and assets.","Sport and Recreation Facilities","Outdoor Facilities","f2aed61b-4d45-4318-9eb7-4217cd40e28b",1,1,1043480,0,0,0,0,0]
["35f914ed-b099-4a36-890d-69e60fc0e57c","Construction of Hlomendlini Sportsfield and Combo Court in Ward 4","PC002003002002002000000000000000000000_00013","_","A long and healthy life for all South Africans","Growth","To improve access to all basic services","Sport and Recreation Facilities","Outdoor Facilities","06d456ba-b774-4d48-9f41-061c061426a3",1,1,8461812,0,0,0,0,0]
["35f914ed-b099-4a36-890d-69e60fc0e57c","Construction of Sportsfield, Combo Court and Outdoor Gym in Khenana, Ward 10","PC002003002002002000000000000000000000_00014","_","A long and healthy life for all South Africans","Growth","To improve access to all basic services","Sport and Recreation Facilities","Outdoor Facilities","056928e7-26c8-40bd-94a6-94e379710f4c",1,1,1043480,0,0,0,0,0]
["5efb28bb-c786-49af-8a50-44a8b229bf7f","Khenana High Mask lights ","PC001001002001002000000000000000000000_00002","_","An efficient, competitive and responsive economic infrastructure network","Inclusion and access","To improve access to all basic services",null,null,"d2ee4229-b791-4b69-8bef-e9024666931e",34.599998474121094,29.200000762939453,429970,0,0,0,0,0]
["5efb28bb-c786-49af-8a50-44a8b229bf7f","Khenana High Mask lights ","PC001001002001002000000000000000000000_00002","_","An efficient, competitive and responsive economic infrastructure network","Inclusion and access","To improve access to all basic services","Electrical Infrastructure","HV Substations","d2ee4229-b791-4b69-8bef-e9024666931e",34.599998474121094,29.200000762939453,1719880,0,0,0,0,0]
["5efb28bb-c786-49af-8a50-44a8b229bf7f","Procurement and Installation of Hight Mast for Municipal Main office","PC001002001003000000000000000000000000_00001","_","An efficient, competitive and responsive economic infrastructure network","Growth","To improve access to basic services","Electrical Infrastructure","HV Switching Station","4493efed-d44b-472e-b666-926b1c994c63",1,1,1043480,0,0,0,0,0]
["67347610-1db2-421f-a89a-f87e772911eb","4 X 4 2.4 Single Cab Bakkie Vehicle( traffic club bakkie)","PC002003010000000000000000000000000000_00021","_","An efficient, effective and development-oriented public service","Growth","Ensure that our people have access to community facilities and services","Transport Assets","Transport Assets","d4a7a8a1-43a6-4de9-8ec0-e5027c88d37e",39.5,29.399999618530273,7819488,0,0,0,0,0]
["67347610-1db2-421f-a89a-f87e772911eb","Construction of Life guard house and IRQ Boat Storage Tugela Mouth Ward 2","PC002003003001005000000000000000000000_00001","_","An efficient, effective and development-oriented public service","Growth","Ensure that our people have access to community facilities and services","Operational Buildings","Yards","d4a7a8a1-43a6-4de9-8ec0-e5027c88d37e",39.5,29.399999618530273,1739132,0,0,0,0,0]
["6fa14a15-a164-42cb-a263-a0b007852bc5","Construction of a Community Hall in Khenana Township, Ward 10","PC002003002001001000000000000000000000_00007","_","An efficient, effective and development-oriented public service","Growth","Maintain and improve municipal buildings and assets.","Community Facilities","Halls","056928e7-26c8-40bd-94a6-94e379710f4c",1,1,1043480,0,0,0,0,0]
["6fa14a15-a164-42cb-a263-a0b007852bc5","Construction of a Community Hall In Ward 12","PC002003002001001000000000000000000000_00010","_","An efficient, effective and development-oriented public service","Growth","To improve access to all basic services","Community Facilities","Halls","37018965-51aa-436b-b26b-dd0148d07151",1,1,869564,0,0,0,0,0]
["6fa14a15-a164-42cb-a263-a0b007852bc5","Construction of a Community Hall in Ward 8","PC002003002001001000000000000000000000_00007","_","An efficient, effective and development-oriented public service","Growth","To improve access to all basic services","Community Facilities","Halls","db0f19aa-dfc4-4e1c-858f-708b2b576585",1,1,2086956,0,0,0,0,0]
["6fa14a15-a164-42cb-a263-a0b007852bc5","Construction of community hall in ward 11","PC002003002001001000000000000000000000_00011","_","An efficient, effective and development-oriented public service","Growth","To improve access to all basic services","Community Facilities","Halls","4340367f-2056-4cab-b1e8-0e66f51e00a2",1,1,869564,0,0,0,0,0]
["6fa14a15-a164-42cb-a263-a0b007852bc5","Construction of Community Hall In Ward 16","PC002003002001001000000000000000000000_00013","_","An efficient, effective and development-oriented public service","Growth","To improve access to all basic services","Community Facilities","Halls","19a00642-6874-4556-bf0c-3d1f36c23f9b",1,1,869564,0,0,0,0,0]
["6fa14a15-a164-42cb-a263-a0b007852bc5","Construction Of Community Hall In Ward 6","PC002003002001001000000000000000000000_00009","_","An efficient, effective and development-oriented public service","Growth","To improve access to all basic services","Community Facilities","Halls","f47483eb-3b21-454e-bf9d-2da9516d6a20",1,1,869564,0,0,0,0,0]
["6fa14a15-a164-42cb-a263-a0b007852bc5","Construction of Community Hall in Ward 9","PC002003002001001000000000000000000000_00014","_","An efficient, effective and development-oriented public service","Growth","Ensure that our people have access to community facilities","Community Facilities","Halls","7fff87b9-fe57-48ad-aded-f30be334f6c2",1,1,869564,0,0,0,0,0]
["6fa14a15-a164-42cb-a263-a0b007852bc5","Procurement of essential office equipment (projector, binder, shredder)","PC002003005000000000000000000000000000_00019","_","An efficient, effective and development-oriented public service","Growth","Ensure that our people have access to community facilities and services","Furniture and Office Equipment","Furniture and Office Equipment","e92cc59b-4a01-4ee2-b6fc-84d252b20fac",1,1,1495652,0,0,0,0,0]
["6fa14a15-a164-42cb-a263-a0b007852bc5","PROCUREMENT OF RIDE ON MOWER","PC002003009000000000000000000000000000_00014","_","An efficient, effective and development-oriented public service","Growth","Expansion of Government-led job creation Programmes","Machinery and Equipment","Machinery and Equipment","d4a7a8a1-43a6-4de9-8ec0-e5027c88d37e",32,29,399800,0,0,0,0,0]
["6fa14a15-a164-42cb-a263-a0b007852bc5","Procurement of Security Guardhouse for municipal facilities","PC002003003001001000000000000000000000_00006","_","An efficient, effective and development-oriented public service","Growth","Ensure that our people have access to community facilities","Operational Buildings","Municipal Offices","d4a7a8a1-43a6-4de9-8ec0-e5027c88d37e",1,1,2067132,0,0,0,0,0]
["73e301d2-83cd-4a9c-a2e5-540f32ffda98","LCD Screen for communication & information (WALKIE TAKKIE)","PC002003005000000000000000000000000000_00021","_","An efficient, effective and development-oriented public service","Growth","Ensure that our people have access to community facilities and services","Furniture and Office Equipment","Furniture and Office Equipment","d4a7a8a1-43a6-4de9-8ec0-e5027c88d37e",1,1,695652,0,0,0,0,0]
["73e301d2-83cd-4a9c-a2e5-540f32ffda98","Procurement of four hand guns","PC002003005000000000000000000000000000_00020","_","An efficient, effective and development-oriented public service","Growth","Ensure that our people have access to community facilities and services","Furniture and Office Equipment","Furniture and Office Equipment","d4a7a8a1-43a6-4de9-8ec0-e5027c88d37e",1,1,278260,0,0,0,0,0]
["73e301d2-83cd-4a9c-a2e5-540f32ffda98","Voice logging system for emergency calls","PC002003004000000000000000000000000000_00013","_","An efficient, effective and development-oriented public service","Growth","Ensure that our people have access to community facilities","Computer Equipment","Computer Equipment","d4a7a8a1-43a6-4de9-8ec0-e5027c88d37e",1,1,695652,0,0,0,0,0]
["883643f9-8ff9-482c-9c37-1e3cfdbb22ec","Construction of  craft Stalls ","PC002002001002001018000000000000000000_00002","_","An efficient, effective and development-oriented public service","Inclusion and access","Promoting SMME, Entrepreneurial and Youth Development",null,null,"056928e7-26c8-40bd-94a6-94e379710f4c",32.599998474121094,29.299999237060547,869566,0,0,0,0,0]
["883643f9-8ff9-482c-9c37-1e3cfdbb22ec","Construction of  craft Stalls ","PC002002001002001018000000000000000000_00002","_","An efficient, effective and development-oriented public service","Inclusion and access","Promoting SMME, Entrepreneurial and Youth Development","Community Facilities","Stalls","056928e7-26c8-40bd-94a6-94e379710f4c",32.599998474121094,29.299999237060547,3478264,0,0,0,0,0]
["89aa6d98-8ca6-4416-8143-f6f22ef86160","Stores Equipment","PC002003005000000000000000000000000000_00022","_","An efficient, effective and development-oriented public service","Growth","Ensure that the municipality acquires goods and services in terms of supply chain regulation","Furniture and Office Equipment","Furniture and Office Equipment","e92cc59b-4a01-4ee2-b6fc-84d252b20fac",1,1,278260,0,0,0,0,0]
["92aebb43-91da-45ab-a98d-95be1511fb78","KZN291-Procurement of Library Computers","PC002003004000000000000000000000000000_00006","_","An efficient, effective and development-oriented public service","Growth","Provide and maintain Library services","Computer Equipment","Computer Equipment","d4a7a8a1-43a6-4de9-8ec0-e5027c88d37e",1,1,1044268,0,0,0,0,0]
["a547e78a-9504-4d9a-bcea-6dc723b7bf4a","Twoway Radio for Traffic Unit","PC002003009000000000000000000000000000_00020","_","An efficient, effective and development-oriented public service","Growth","Aspire to a healthy, safe and crime free area","Machinery and Equipment","Machinery and Equipment","d4a7a8a1-43a6-4de9-8ec0-e5027c88d37e",1,1,1739132,0,0,0,0,0]
["ae6e3e7b-6b9a-4f93-b173-d5779fd6811c","Billboard structure for outdoor Adevertisng","PC001002006003000000000000000000000000_00003","_","An efficient, competitive and responsive economic infrastructure network","Growth","To improve access to all basic services","Roads Infrastructure","Road Furniture","4493efed-d44b-472e-b666-926b1c994c63",1,1,1043480,0,0,0,0,0]
["be26bea6-58e3-4497-b52c-0bf597208207","Building maintenance double cab 4x4 ","PC002003010000000000000000000000000000_00020","_","An efficient, effective and development-oriented public service","Growth","To improve access to all basic services","Transport Assets","Transport Assets","d4a7a8a1-43a6-4de9-8ec0-e5027c88d37e",1,1,2782608,0,0,0,0,0]
["be26bea6-58e3-4497-b52c-0bf597208207","Contruction of pedestrian bridges in various wards","PC001002006002000000000000000000000000_00001","_","An efficient, competitive and responsive economic infrastructure network","Growth","To improve access to all basic services","Roads Infrastructure","Road Structures","d4a7a8a1-43a6-4de9-8ec0-e5027c88d37e",0,0,3478260,0,6956520,6956520,0,0]
["be26bea6-58e3-4497-b52c-0bf597208207","COVID 19 PROJECTS TECHNICAL","PC002003009000000000000000000000000000_00018","_","An efficient, effective and development-oriented public service","Growth","Ensure an intergrated and aligned development planning","Machinery and Equipment","Machinery and Equipment","d4a7a8a1-43a6-4de9-8ec0-e5027c88d37e",32,29,2782608,0,0,0,0,0]
["be26bea6-58e3-4497-b52c-0bf597208207","Extension of 2 Kingfisher Road","PC001002006001000000000000000000000000_00007","_","An efficient, competitive and responsive economic infrastructure network","Growth","To improve access to all basic services","Roads Infrastructure","Roads","4493efed-d44b-472e-b666-926b1c994c63",1,1,7908012,0,8000000,8000000,0,0]
["be26bea6-58e3-4497-b52c-0bf597208207","Greening of open spaces and Municipal facilities ","PC001001002006003000000000000000000000_00002","_","An efficient, competitive and responsive economic infrastructure network","Inclusion and access","Greening of open spaces and Municipal facilities",null,null,"d4a7a8a1-43a6-4de9-8ec0-e5027c88d37e",31.689443588256836,29.268054962158203,887489,0,0,0,0,0]
["be26bea6-58e3-4497-b52c-0bf597208207","Greening of open spaces and Municipal facilities ","PC001001002006003000000000000000000000_00002","_","An efficient, competitive and responsive economic infrastructure network","Inclusion and access","Greening of open spaces and Municipal facilities","Roads Infrastructure","Road Furniture","d4a7a8a1-43a6-4de9-8ec0-e5027c88d37e",31.689443588256836,29.268054962158203,3549956,0,0,0,0,0]
["be26bea6-58e3-4497-b52c-0bf597208207","Intersection Side walks Ward 7","PC001002006003000000000000000000000000_00005","_","An efficient, competitive and responsive economic infrastructure network","Growth","To improve access to basic services","Roads Infrastructure","Road Furniture","42093ebf-0032-4a12-b64e-8f176c305d4c",1,1,816680,0,0,0,0,0]
["be26bea6-58e3-4497-b52c-0bf597208207","Nyoni Taxi Route Phase 4","PC001002006001000000000000000000000000_00010","_","An efficient, competitive and responsive economic infrastructure network","Growth","To improve access to all basic services","Roads Infrastructure","Roads","056928e7-26c8-40bd-94a6-94e379710f4c",32,29,9283868,0,0,0,0,0]
["be26bea6-58e3-4497-b52c-0bf597208207","Procurement of 30 ton Crane truck 14 T  6x4","PC002003010000000000000000000000000000_00019","_","An efficient, effective and development-oriented public service","Growth","To improve access to all basic services","Transport Assets","Transport Assets","d4a7a8a1-43a6-4de9-8ec0-e5027c88d37e",1,1,12173912,0,0,0,0,0]
["be26bea6-58e3-4497-b52c-0bf597208207","Regravelling  Ward 10 Dabedabe Road","PC001001002006001000000000000000000000_00030","_","An efficient, competitive and responsive economic infrastructure network","Inclusion and access","To improve access to all basic services",null,null,"056928e7-26c8-40bd-94a6-94e379710f4c",1,1,1739130,0,0,0,0,0]
["be26bea6-58e3-4497-b52c-0bf597208207","Regravelling  Ward 10 Dabedabe Road","PC001001002006001000000000000000000000_00030","_","An efficient, competitive and responsive economic infrastructure network","Inclusion and access","To improve access to all basic services","Roads Infrastructure","Roads","056928e7-26c8-40bd-94a6-94e379710f4c",1,1,6956520,0,0,0,0,0]
["be26bea6-58e3-4497-b52c-0bf597208207","Regravelling of Ward 1 - D888 to KwaMnguni store","PC001001001006001000000000000000000000_00022","_","An efficient, competitive and responsive economic infrastructure network","Inclusion and access","To improve access to all basic services",null,null,"2fbc6cca-e864-427f-94cc-61f7ebbb5a7e",1,1,1739130,0,0,0,0,0]
["be26bea6-58e3-4497-b52c-0bf597208207","Regravelling of Ward 1 - D888 to KwaMnguni store","PC001001001006001000000000000000000000_00022","_","An efficient, competitive and responsive economic infrastructure network","Inclusion and access","To improve access to all basic services","Roads Infrastructure","Roads","2fbc6cca-e864-427f-94cc-61f7ebbb5a7e",1,1,6956520,0,0,0,0,0]
["be26bea6-58e3-4497-b52c-0bf597208207","Regravelling Of Ward 12 Road ","PC001001001006001000000000000000000000_00031","_","An efficient, competitive and responsive economic infrastructure network","Inclusion and access","To improve access to all basic services",null,null,"37018965-51aa-436b-b26b-dd0148d07151",1,1,1739130,0,0,0,0,0]
["be26bea6-58e3-4497-b52c-0bf597208207","Regravelling Of Ward 12 Road ","PC001001001006001000000000000000000000_00031","_","An efficient, competitive and responsive economic infrastructure network","Inclusion and access","To improve access to all basic services","Roads Infrastructure","Roads","37018965-51aa-436b-b26b-dd0148d07151",1,1,6956520,0,0,0,0,0]
["be26bea6-58e3-4497-b52c-0bf597208207","Regravelling of Ward 3 - Carwash P415 to N2 tunnel bridge","PC001001001006001000000000000000000000_00030","_","An efficient, competitive and responsive economic infrastructure network","Inclusion and access","To improve access to all basic services",null,null,"4493efed-d44b-472e-b666-926b1c994c63",0,0,1739130,0,0,0,0,0]
["be26bea6-58e3-4497-b52c-0bf597208207","Regravelling of Ward 3 - Carwash P415 to N2 tunnel bridge","PC001001001006001000000000000000000000_00030","_","An efficient, competitive and responsive economic infrastructure network","Inclusion and access","To improve access to all basic services","Roads Infrastructure","Roads","4493efed-d44b-472e-b666-926b1c994c63",0,0,6956520,0,0,0,0,0]
["be26bea6-58e3-4497-b52c-0bf597208207","Regravelling of Ward 4 - Masinga Road","PC001001001006001000000000000000000000_00023","_","An efficient, competitive and responsive economic infrastructure network","Inclusion and access","To improve access to all basic services",null,null,"06d456ba-b774-4d48-9f41-061c061426a3",0,0,1739130,0,0,0,0,0]
["be26bea6-58e3-4497-b52c-0bf597208207","Regravelling of Ward 4 - Masinga Road","PC001001001006001000000000000000000000_00023","_","An efficient, competitive and responsive economic infrastructure network","Inclusion and access","To improve access to all basic services","Roads Infrastructure","Roads","06d456ba-b774-4d48-9f41-061c061426a3",0,0,6956520,0,0,0,0,0]
["be26bea6-58e3-4497-b52c-0bf597208207","Regravelling of Ward 5 - Esamaqamu to Mgizimba","PC001001002006001000000000000000000000_00029","_","An efficient, competitive and responsive economic infrastructure network","Inclusion and access","To improve access to all basic services",null,null,"fb7c30b1-9045-42fe-bfc3-23888c40e6ec",1,1,1739130,0,0,0,0,0]
["be26bea6-58e3-4497-b52c-0bf597208207","Regravelling of Ward 5 - Esamaqamu to Mgizimba","PC001001002006001000000000000000000000_00029","_","An efficient, competitive and responsive economic infrastructure network","Inclusion and access","To improve access to all basic services","Roads Infrastructure","Roads","fb7c30b1-9045-42fe-bfc3-23888c40e6ec",1,1,6956520,0,0,0,0,0]
["be26bea6-58e3-4497-b52c-0bf597208207","Regravelling of Ward 8 - Maqina road","PC001001001006001000000000000000000000_00021","_","An efficient, competitive and responsive economic infrastructure network","Inclusion and access","To improve access to all basic services",null,null,"db0f19aa-dfc4-4e1c-858f-708b2b576585",1,1,1739130,0,0,0,0,0]
["be26bea6-58e3-4497-b52c-0bf597208207","Regravelling of Ward 8 - Maqina road","PC001001001006001000000000000000000000_00021","_","An efficient, competitive and responsive economic infrastructure network","Inclusion and access","To improve access to all basic services","Roads Infrastructure","Roads","db0f19aa-dfc4-4e1c-858f-708b2b576585",1,1,6956520,0,0,0,0,0]
["be26bea6-58e3-4497-b52c-0bf597208207","Regravelling Road Ward 7 - Shayamoya Road","PC001001001006001000000000000000000000_00025","_","An efficient, competitive and responsive economic infrastructure network","Inclusion and access","To improve access to all basic services",null,null,"42093ebf-0032-4a12-b64e-8f176c305d4c",1,1,1739130,0,0,0,0,0]
["be26bea6-58e3-4497-b52c-0bf597208207","Regravelling Road Ward 7 - Shayamoya Road","PC001001001006001000000000000000000000_00025","_","An efficient, competitive and responsive economic infrastructure network","Inclusion and access","To improve access to all basic services","Roads Infrastructure","Roads","42093ebf-0032-4a12-b64e-8f176c305d4c",1,1,6956520,0,0,0,0,0]
["be26bea6-58e3-4497-b52c-0bf597208207","Regravelling Ward 11 - KwaNgcobo estobhini to KwaMwandla","PC001001001006001000000000000000000000_00014","_","An efficient, competitive and responsive economic infrastructure network","Inclusion and access","To improve access to all basic services",null,null,"4340367f-2056-4cab-b1e8-0e66f51e00a2",1,1,1739130,0,0,0,0,0]
["be26bea6-58e3-4497-b52c-0bf597208207","Regravelling Ward 11 - KwaNgcobo estobhini to KwaMwandla","PC001001001006001000000000000000000000_00014","_","An efficient, competitive and responsive economic infrastructure network","Inclusion and access","To improve access to all basic services","Roads Infrastructure","Roads","4340367f-2056-4cab-b1e8-0e66f51e00a2",1,1,6956520,0,0,0,0,0]
["be26bea6-58e3-4497-b52c-0bf597208207","Regravelling Ward 15 - Kwamjulelwa to eziMpohlweni","PC001001001006001000000000000000000000_00015","_","An efficient, competitive and responsive economic infrastructure network","Inclusion and access","To improve access to all basic services",null,null,"6e379a53-67dc-45eb-a573-8f733e1775f0",0,0,1739130,0,0,0,0,0]
["be26bea6-58e3-4497-b52c-0bf597208207","Regravelling Ward 15 - Kwamjulelwa to eziMpohlweni","PC001001001006001000000000000000000000_00015","_","An efficient, competitive and responsive economic infrastructure network","Inclusion and access","To improve access to all basic services","Roads Infrastructure","Roads","6e379a53-67dc-45eb-a573-8f733e1775f0",0,0,6956520,0,0,0,0,0]
["be26bea6-58e3-4497-b52c-0bf597208207","Regravelling Ward 16 - KwaMathonsi estobini to KwaMthembu estobhini","PC001001001006001000000000000000000000_00016","_","An efficient, competitive and responsive economic infrastructure network","Inclusion and access","To improve access to all basic services",null,null,"19a00642-6874-4556-bf0c-3d1f36c23f9b",0,0,1739130,0,0,0,0,0]
["be26bea6-58e3-4497-b52c-0bf597208207","Regravelling Ward 16 - KwaMathonsi estobini to KwaMthembu estobhini","PC001001001006001000000000000000000000_00016","_","An efficient, competitive and responsive economic infrastructure network","Inclusion and access","To improve access to all basic services","Roads Infrastructure","Roads","19a00642-6874-4556-bf0c-3d1f36c23f9b",0,0,6956520,0,0,0,0,0]
["be26bea6-58e3-4497-b52c-0bf597208207","Regravelling Ward 17 - Ezimangweni to Okhalweni","PC001001001006001000000000000000000000_00019","_","An efficient, competitive and responsive economic infrastructure network","Inclusion and access","To improve access to all basic services",null,null,"e20d9bac-1e1f-4312-a8fe-7ba8ce0ee98c",0,0,1739130,0,0,0,0,0]
["be26bea6-58e3-4497-b52c-0bf597208207","Regravelling Ward 17 - Ezimangweni to Okhalweni","PC001001001006001000000000000000000000_00019","_","An efficient, competitive and responsive economic infrastructure network","Inclusion and access","To improve access to all basic services","Roads Infrastructure","Roads","e20d9bac-1e1f-4312-a8fe-7ba8ce0ee98c",0,0,6956520,0,0,0,0,0]
["be26bea6-58e3-4497-b52c-0bf597208207","Regravelling Ward 18 road - Sithebe library to Othini area","PC001001001006001000000000000000000000_00020","_","An efficient, competitive and responsive economic infrastructure network","Inclusion and access","To improve access to all basic services",null,null,"449ea53a-fa5c-4588-b854-8433145fff45",1,1,1739130,0,0,0,0,0]
["be26bea6-58e3-4497-b52c-0bf597208207","Regravelling Ward 18 road - Sithebe library to Othini area","PC001001001006001000000000000000000000_00020","_","An efficient, competitive and responsive economic infrastructure network","Inclusion and access","To improve access to all basic services","Roads Infrastructure","Roads","449ea53a-fa5c-4588-b854-8433145fff45",1,1,6956520,0,0,0,0,0]
["be26bea6-58e3-4497-b52c-0bf597208207","Regravelling Ward 9 -  Esikhoveni to Nyathini","PC001001001006001000000000000000000000_00013","_","An efficient, competitive and responsive economic infrastructure network","Inclusion and access","To improve access to all basic services",null,null,"7fff87b9-fe57-48ad-aded-f30be334f6c2",1,1,1739130,0,0,0,0,0]
["be26bea6-58e3-4497-b52c-0bf597208207","Regravelling Ward 9 -  Esikhoveni to Nyathini","PC001001001006001000000000000000000000_00013","_","An efficient, competitive and responsive economic infrastructure network","Inclusion and access","To improve access to all basic services","Roads Infrastructure","Roads","7fff87b9-fe57-48ad-aded-f30be334f6c2",1,1,6956520,0,0,0,0,0]
["be26bea6-58e3-4497-b52c-0bf597208207","Rehabilitation  of Internal Roads and Stormwater ward 14","PC001001002006001000000000000000000000_00017","_","An efficient, competitive and responsive economic infrastructure network","Inclusion and access","Good Governance",null,null,"ebcb7441-9e89-4ea6-b2ba-e8d6cd979b22",32,29,695652,0,0,0,0,0]
["be26bea6-58e3-4497-b52c-0bf597208207","Rehabilitation  of Internal Roads and Stormwater ward 14","PC001001002006001000000000000000000000_00017","_","An efficient, competitive and responsive economic infrastructure network","Inclusion and access","Good Governance","Roads Infrastructure","Roads","ebcb7441-9e89-4ea6-b2ba-e8d6cd979b22",32,29,2782608,0,0,0,0,0]
["be26bea6-58e3-4497-b52c-0bf597208207","Rehabilitation of Internal Roads and Upgrade of Associated Stormwater in Sundumbili, Ward 13 Phase 2 & Ward 14 White City Section","PC001001002006001000000000000000000000_00018","_","An efficient, competitive and responsive economic infrastructure network","Inclusion and access","Good Governance",null,null,"d2ee4229-b791-4b69-8bef-e9024666931e",32,29,2173879,0,0,0,0,0]
["be26bea6-58e3-4497-b52c-0bf597208207","Rehabilitation of Internal Roads and Upgrade of Associated Stormwater in Sundumbili, Ward 13 Phase 2 & Ward 14 White City Section","PC001001002006001000000000000000000000_00018","_","An efficient, competitive and responsive economic infrastructure network","Inclusion and access","Good Governance","Roads Infrastructure","Roads","d2ee4229-b791-4b69-8bef-e9024666931e",32,29,8695516,0,0,0,0,0]
["be26bea6-58e3-4497-b52c-0bf597208207","Rehabilitation of Internal Roads and Upgrade of Associated Stormwater in Sundumbili, Ward 13 Phase 2 & Ward 14 White City Section (Rehabilitation of Phumla, Indumsio and Malandela Internal Roads & Stormwater in Sundumbili, Ward 13 Phase 2 and Ward 14)","PC001001001006001000000000000000000000_00009","_","An efficient, competitive and responsive economic infrastructure network","Inclusion and access","Maintain and improve municipal buildings and assets.",null,null,"d2ee4229-b791-4b69-8bef-e9024666931e",1,1,348133,0,0,0,0,0]
["be26bea6-58e3-4497-b52c-0bf597208207","Rehabilitation of Internal Roads and Upgrade of Associated Stormwater in Sundumbili, Ward 13 Phase 2 & Ward 14 White City Section (Rehabilitation of Phumla, Indumsio and Malandela Internal Roads & Stormwater in Sundumbili, Ward 13 Phase 2 and Ward 14)","PC001001001006001000000000000000000000_00009","_","An efficient, competitive and responsive economic infrastructure network","Inclusion and access","Maintain and improve municipal buildings and assets.","Roads Infrastructure","Roads","d2ee4229-b791-4b69-8bef-e9024666931e",1,1,1392532,0,0,0,0,0]
["be26bea6-58e3-4497-b52c-0bf597208207","Rehabilitation of Internal Roads and Upgrade of Associated Stormwater in Sundumbili, Ward 15 ","PC001001002006001000000000000000000000_00026","_","An efficient, competitive and responsive economic infrastructure network","Inclusion and access","To improve access to all basic services",null,null,"6e379a53-67dc-45eb-a573-8f733e1775f0",1,1,260870,0,0,0,0,0]
["be26bea6-58e3-4497-b52c-0bf597208207","Rehabilitation of Internal Roads and Upgrade of Associated Stormwater in Sundumbili, Ward 15 ","PC001001002006001000000000000000000000_00026","_","An efficient, competitive and responsive economic infrastructure network","Inclusion and access","To improve access to all basic services","Roads Infrastructure","Roads","6e379a53-67dc-45eb-a573-8f733e1775f0",1,1,1043480,0,0,0,0,0]
["be26bea6-58e3-4497-b52c-0bf597208207","Rehabilitation of Road Ward 14 - Masilela Road","PC001001001006001000000000000000000000_00026","_","An efficient, competitive and responsive economic infrastructure network","Inclusion and access","To improve access to all basic services",null,null,"ebcb7441-9e89-4ea6-b2ba-e8d6cd979b22",1,1,3772943,0,0,0,0,0]
["be26bea6-58e3-4497-b52c-0bf597208207","Rehabilitation of Road Ward 14 - Masilela Road","PC001001001006001000000000000000000000_00026","_","An efficient, competitive and responsive economic infrastructure network","Inclusion and access","To improve access to all basic services","Roads Infrastructure","Roads","ebcb7441-9e89-4ea6-b2ba-e8d6cd979b22",1,1,15091772,0,0,0,0,0]
["be26bea6-58e3-4497-b52c-0bf597208207","Upgrade and Improvement of Bumbanani Road","PC001001002006001000000000000000000000_00016","_","An efficient, competitive and responsive economic infrastructure network","Inclusion and access","To improve access to all basic services",null,null,"db0f19aa-dfc4-4e1c-858f-708b2b576585",34.5,29.200000762939453,15332533,0,0,0,0,0]
["be26bea6-58e3-4497-b52c-0bf597208207","Upgrade and Improvement of Bumbanani Road","PC001001002006001000000000000000000000_00016","_","An efficient, competitive and responsive economic infrastructure network","Inclusion and access","To improve access to all basic services","Roads Infrastructure","Roads","db0f19aa-dfc4-4e1c-858f-708b2b576585",34.5,29.200000762939453,61330132,0,0,0,0,0]
["be26bea6-58e3-4497-b52c-0bf597208207","Upgrade and Improvement of Enembe Road -","PC001001002006001000000000000000000000_00007","_","An efficient, competitive and responsive economic infrastructure network","Inclusion and access","To improve access to all basic services",null,null,"d2ee4229-b791-4b69-8bef-e9024666931e",31.689443588256836,29.268054962158203,5792259,0,0,0,0,0]
["be26bea6-58e3-4497-b52c-0bf597208207","Upgrade and Improvement of Enembe Road -","PC001001002006001000000000000000000000_00007","_","An efficient, competitive and responsive economic infrastructure network","Inclusion and access","To improve access to all basic services","Roads Infrastructure","Roads","d2ee4229-b791-4b69-8bef-e9024666931e",31.689443588256836,29.268054962158203,23169036,0,0,0,0,0]
["be26bea6-58e3-4497-b52c-0bf597208207","Upgrade of Hlomendlini Bus Route - (Retention Year6)","PC001001002006001000000000000000000000_00003","_","An efficient, competitive and responsive economic infrastructure network","Inclusion and access","To improve access to all basic services",null,null,"06d456ba-b774-4d48-9f41-061c061426a3",31.689443588256836,29.268054962158203,0,0,35512652,35512652,38415522,38415522]
["be26bea6-58e3-4497-b52c-0bf597208207","Upgrade of Hlomendlini Bus Route - (Retention Year6)","PC001001002006001000000000000000000000_00003","_","An efficient, competitive and responsive economic infrastructure network","Inclusion and access","To improve access to all basic services","Roads Infrastructure","Roads","06d456ba-b774-4d48-9f41-061c061426a3",31.689443588256836,29.268054962158203,0,0,142050608,142050608,153662088,153662088]
["be26bea6-58e3-4497-b52c-0bf597208207","Upgrade of Machibini Link road in Isisthebe in Ward 10 and Ward 12","PC001001002006001000000000000000000000_00020","_","An efficient, competitive and responsive economic infrastructure network","Inclusion and access","Good Governance",null,null,"056928e7-26c8-40bd-94a6-94e379710f4c",32,29,12470442,0,0,0,0,0]
["be26bea6-58e3-4497-b52c-0bf597208207","Upgrade of Machibini Link road in Isisthebe in Ward 10 and Ward 12","PC001001002006001000000000000000000000_00020","_","An efficient, competitive and responsive economic infrastructure network","Inclusion and access","Good Governance","Roads Infrastructure","Roads","056928e7-26c8-40bd-94a6-94e379710f4c",32,29,49881768,0,0,0,0,0]
["be26bea6-58e3-4497-b52c-0bf597208207","Upgrading Road in Ward 2- Tugela Beach road ","PC001001002006001000000000000000000000_00027","_","An efficient, competitive and responsive economic infrastructure network","Inclusion and access","To improve access to all basic services",null,null,"f2aed61b-4d45-4318-9eb7-4217cd40e28b",1,1,1739130,0,0,0,0,0]
["be26bea6-58e3-4497-b52c-0bf597208207","Upgrading Road in Ward 2- Tugela Beach road ","PC001001002006001000000000000000000000_00027","_","An efficient, competitive and responsive economic infrastructure network","Inclusion and access","To improve access to all basic services","Roads Infrastructure","Roads","f2aed61b-4d45-4318-9eb7-4217cd40e28b",1,1,6956520,0,0,0,0,0]
["be26bea6-58e3-4497-b52c-0bf597208207","Upgrading Road Ward 13 of Road 6","PC001001001006001000000000000000000000_00029","_","An efficient, competitive and responsive economic infrastructure network","Inclusion and access","Ensure that our people have access to community facilities and services",null,null,"d2ee4229-b791-4b69-8bef-e9024666931e",1,1,1739130,0,0,0,0,0]
["be26bea6-58e3-4497-b52c-0bf597208207","Upgrading Road Ward 13 of Road 6","PC001001001006001000000000000000000000_00029","_","An efficient, competitive and responsive economic infrastructure network","Inclusion and access","Ensure that our people have access to community facilities and services","Roads Infrastructure","Roads","d2ee4229-b791-4b69-8bef-e9024666931e",1,1,6956520,0,0,0,0,0]
["be26bea6-58e3-4497-b52c-0bf597208207","Upgrading Road Ward 6-Gravel Road Evutha to apostolic Church ","PC001001002006001000000000000000000000_00028","_","An efficient, competitive and responsive economic infrastructure network","Inclusion and access","To improve access to all basic services",null,null,"f47483eb-3b21-454e-bf9d-2da9516d6a20",1,1,1739130,0,0,0,0,0]
["be26bea6-58e3-4497-b52c-0bf597208207","Upgrading Road Ward 6-Gravel Road Evutha to apostolic Church ","PC001001002006001000000000000000000000_00028","_","An efficient, competitive and responsive economic infrastructure network","Inclusion and access","To improve access to all basic services","Roads Infrastructure","Roads","f47483eb-3b21-454e-bf9d-2da9516d6a20",1,1,6956520,0,0,0,0,0]
["c57d4368-34c4-4b96-8470-2264a2fa849c","Constructon of Mechanical/ Technical Services Building Phase 2","PC002002002003001004000000000000000000_00002","_","An efficient, effective and development-oriented public service","Growth","To improve access to all basic services",null,null,"4493efed-d44b-472e-b666-926b1c994c63",1,1,2445464,0,0,0,0,0]
["c57d4368-34c4-4b96-8470-2264a2fa849c","Constructon of Mechanical/ Technical Services Building Phase 2","PC002002002003001004000000000000000000_00002","_","An efficient, effective and development-oriented public service","Growth","To improve access to all basic services","Operational Buildings","Workshops","4493efed-d44b-472e-b666-926b1c994c63",1,1,9781856,0,0,0,0,0]
["c57d4368-34c4-4b96-8470-2264a2fa849c","COVID 19 PROJECTS TECHNICAL","PC002002002003001004000000000000000000_00001","_","An efficient, effective and development-oriented public service","Governance","Ensure an intergrated and aligned development planning",null,null,"4493efed-d44b-472e-b666-926b1c994c63",32,29,4684971,0,0,0,0,0]
["c57d4368-34c4-4b96-8470-2264a2fa849c","COVID 19 PROJECTS TECHNICAL","PC002002002003001004000000000000000000_00001","_","An efficient, effective and development-oriented public service","Governance","Ensure an intergrated and aligned development planning","Operational Buildings","Workshops","4493efed-d44b-472e-b666-926b1c994c63",32,29,18739884,0,0,0,0,0]
["c57d4368-34c4-4b96-8470-2264a2fa849c","Procurement of 22 seater mini bus (AT or MT)","PC002003010000000000000000000000000000_00024","_","An efficient, effective and development-oriented public service","Growth","To improve access to all basic services","Transport Assets","Transport Assets","d4a7a8a1-43a6-4de9-8ec0-e5027c88d37e",1,1,3304348,0,0,0,0,0]
["c57d4368-34c4-4b96-8470-2264a2fa849c","Procurement of 4 doors Sedan 1.8","PC002003010000000000000000000000000000_00025","_","An efficient, effective and development-oriented public service","Growth","To improve access to all basic services","Transport Assets","Transport Assets","d4a7a8a1-43a6-4de9-8ec0-e5027c88d37e",1,1,1565216,0,0,0,0,0]
["c57d4368-34c4-4b96-8470-2264a2fa849c","Procurement of 7 seater 1.5 AT Vehicle ","PC002003010000000000000000000000000000_00026","_","An efficient, effective and development-oriented public service","Growth","To improve access to all basic services","Transport Assets","Transport Assets","d4a7a8a1-43a6-4de9-8ec0-e5027c88d37e",1,1,1913044,0,0,0,0,0]
["c746317f-626c-4092-b71c-e7194f3d8b8a","Procurement of 4 X 4 Double Cab Vehicle with canopy","PC002003010000000000000000000000000000_00023","_","An efficient, effective and development-oriented public service","Growth","Ensure that our people have access to community facilities and services","Transport Assets","Transport Assets","d4a7a8a1-43a6-4de9-8ec0-e5027c88d37e",1,1,2129784,0,0,0,0,0]
["d0a8c200-23d4-4309-8ea5-97922584a36d"," Installation of Streetlights in Mandeni","PC001002001002000000000000000000000000_00001","_","An efficient, competitive and responsive economic infrastructure network","Growth","To improve access to all basic services","Electrical Infrastructure","HV Substations","d4a7a8a1-43a6-4de9-8ec0-e5027c88d37e",32,29,3175864,0,0,0,0,0]
["d0a8c200-23d4-4309-8ea5-97922584a36d","1 X 12 Electric Sky Jack","PC002003009000000000000000000000000000_00011","_","An efficient, effective and development-oriented public service","Growth","To improve access to all basic services","Machinery and Equipment","Machinery and Equipment","d4a7a8a1-43a6-4de9-8ec0-e5027c88d37e",32,29,337192,0,0,0,0,0]
["d0a8c200-23d4-4309-8ea5-97922584a36d","Cable installation - Frye to LJC road","PC001001001001007000000000000000000000_00002","_","An efficient, competitive and responsive economic infrastructure network","Inclusion and access","To improve access to all basic services",null,null,"4493efed-d44b-472e-b666-926b1c994c63",1,11,434783,0,0,0,0,0]
["d0a8c200-23d4-4309-8ea5-97922584a36d","Cable installation - Frye to LJC road","PC001001001001007000000000000000000000_00002","_","An efficient, competitive and responsive economic infrastructure network","Inclusion and access","To improve access to all basic services","Electrical Infrastructure","MV Networks","4493efed-d44b-472e-b666-926b1c994c63",1,11,1739132,0,0,0,0,0]
["d0a8c200-23d4-4309-8ea5-97922584a36d","Municipal Building Maintenance & Procurement of Airconditioners","PC002003009000000000000000000000000000_00010","_","An efficient, effective and development-oriented public service","Growth","Maintain and improve municipal buildings and assets.","Machinery and Equipment","Machinery and Equipment","d4a7a8a1-43a6-4de9-8ec0-e5027c88d37e",31.689443588256836,29.268054962158203,695652,0,0,0,0,0]
["d322a6d8-8a77-4f3e-b409-e49df0b85989","Procurement of Loud hailer","PC002003009000000000000000000000000000_00029","_","An efficient, effective and development-oriented public service","Growth","Good Governance","Machinery and Equipment","Machinery and Equipment","d4a7a8a1-43a6-4de9-8ec0-e5027c88d37e",32,29,521720,0,0,0,0,0]
["d322a6d8-8a77-4f3e-b409-e49df0b85989","Procurement of Vehicle (VAN)","PC002003010000000000000000000000000000_00011","_","An efficient, effective and development-oriented public service","Growth","COMMUNITY CONSULTATION MEETING","Transport Assets","Transport Assets","d4a7a8a1-43a6-4de9-8ec0-e5027c88d37e",32,29,9725240,0,0,0,0,0]
["d322a6d8-8a77-4f3e-b409-e49df0b85989","Procurement of video camera","PC002003005000000000000000000000000000_00012","_","An efficient, effective and development-oriented public service","Growth","COMMUNICATIONS RELATIONS","Furniture and Office Equipment","Furniture and Office Equipment","d4a7a8a1-43a6-4de9-8ec0-e5027c88d37e",32,29,347840,0,0,0,0,0]
["d322a6d8-8a77-4f3e-b409-e49df0b85989","SUGGESTION BOX AND POSTERS","PC002003005000000000000000000000000000_00024","_","An efficient, effective and development-oriented public service","Growth","Ensure the existence and functionality of the public participation structures ","Furniture and Office Equipment","Furniture and Office Equipment","d4a7a8a1-43a6-4de9-8ec0-e5027c88d37e",32,29,347824,0,0,0,0,0]
["e38be026-aa91-4710-9bdc-3b0f3755cc1a","Construction of Mini Factories at Khenana Phase 1","PC002003002001018000000000000000000000_00003","_","An efficient, effective and development-oriented public service","Growth","Good Governance","Community Facilities","Stalls","19a00642-6874-4556-bf0c-3d1f36c23f9b",32,29,17391304,0,10434784,10434784,0,0]
["e38be026-aa91-4710-9bdc-3b0f3755cc1a","Procurement of 4 X 4 Double Cab Bakkie Vehicle for EDPHS","PC002003010000000000000000000000000000_00021","_","An efficient, effective and development-oriented public service","Growth","To improve access to all basic services","Transport Assets","Transport Assets","d4a7a8a1-43a6-4de9-8ec0-e5027c88d37e",1,1,3676800,0,0,0,0,0]
["e38be026-aa91-4710-9bdc-3b0f3755cc1a","Procurement of Container for storage ","PC002003005000000000000000000000000000_00025","_","An efficient, effective and development-oriented public service","Growth","Facilitating the creation of employment opportunities for skilled and employable people","Furniture and Office Equipment","Furniture and Office Equipment","d4a7a8a1-43a6-4de9-8ec0-e5027c88d37e",1,1,347824,0,0,0,0,0]
["e63908e9-4e7e-4455-ad95-2721683b34a9","Hlomendlini Sportsfield","PC002003002002002000000000000000000000_00012","_","A long and healthy life for all South Africans","Growth","Ensure that our people have access to community facilities and services","Sport and Recreation Facilities","Outdoor Facilities","06d456ba-b774-4d48-9f41-061c061426a3",32,29,14413920,0,0,0,0,0]
["f3333fef-376f-4d03-b158-f7050b66056d","Construction of New Offie Block","PC002003003001001000000000000000000000_00004","_","An efficient, effective and development-oriented public service","Growth","Maintain and improve municipal buildings and assets.","Operational Buildings","Municipal Offices","4493efed-d44b-472e-b666-926b1c994c63",1,1,34782608,0,80000000,80000000,60000000,60000000]
["f3a9aaa9-529a-40d1-b981-722b2f743267","Computers and Laptops","PC002003004000000000000000000000000000_00001","_","An efficient, effective and development-oriented public service","Growth","Improve information technology and document management systems. ","Computer Equipment","Computer Equipment","e92cc59b-4a01-4ee2-b6fc-84d252b20fac",31.689443588256836,29.268054962158203,2017380,0,0,0,0,0]
["f3a9aaa9-529a-40d1-b981-722b2f743267","Upgrade of servers ","PC002002002004000000000000000000000000_00003","_","An efficient, effective and development-oriented public service","Governance","Maintain and improve the municipal policies",null,null,"e92cc59b-4a01-4ee2-b6fc-84d252b20fac",32,29,1217387,0,0,0,0,0]
["f3a9aaa9-529a-40d1-b981-722b2f743267","Upgrade of servers ","PC002002002004000000000000000000000000_00003","_","An efficient, effective and development-oriented public service","Governance","Maintain and improve the municipal policies","Computer Equipment","Computer Equipment","e92cc59b-4a01-4ee2-b6fc-84d252b20fac",32,29,4869548,0,0,0,0,0]
[]
[]
[]
[]
["Entities:"]
["List all capital projects grouped by Municipal Entity"]
[]
["Entity Name"]
["Project name"]
[]
[]
[]
[]
["References"]
["List all projects where approved budgets have been adjusted"]
["Refer MFMA s30"]
["Asset class as per table B9 and asset sub-class as per table SB18"]
["GPS coordinates correct to seconds. Provide a logical starting point on networked infrastructure."]
["Distinguish projects approved in terms of MFMA section 19(1)(b) and MRRR Regulation 13"]
["Project Number consists of MSCOA Project Longcode and seq No (sample PC001002006002_00002)"]

{"sheet":"SB20","index":60,"n_rows":55,"n_cols":13,"rows_kept":55,"cut":false,"hidden":false,"merged":[[0,0,0,12],[1,0,3,0],[1,1,3,1],[1,2,1,10],[52,0,52,12],[48,0,48,12],[49,0,49,12],[46,0,46,12],[47,0,47,12]]}
[{"$f":"muni&\" - \"&ADJB20&\" - \"&Date","v":"KZN291 Mandeni - Supporting Table SB20 Not required - 08-04-2025"}]
[{"$f":"desc","v":"Description"},{"$f":"head27","v":"Ref"},{"$f":"Head2","v":"Budget Year 2024/25"},null,null,null,null,null,null,null,null,{"$f":"Head10","v":"Budget Year +1 2025/26"},{"$f":"Head11","v":"Budget Year +2 2026/27"}]
[null,null,{"$f":"Head6","v":"Original Budget"},{"$f":"Head54","v":"Prior Adjusted"},{"$f":"Head51","v":"Accum. Funds"},{"$f":"Head52","v":"Multi-year capital"},{"$f":"Head53","v":"Unfore. Unavoid."},{"$f":"Head55","v":"Nat. or Prov. Govt"},{"$f":"Head50","v":"Other Adjusts."},{"$f":"Head56","v":"Total Adjusts."},{"$f":"Head7","v":"Adjusted Budget"},{"$f":"Head7","v":"Adjusted Budget"},{"$f":"Head7","v":"Adjusted Budget"}]
[null,null,null,3,4,5,6,8,9,10,11]
["R thousands",null,"A","A1","B","C","D","E","F","G","H"]
["Revenue By Municipal Entity"]
["Entity 1 total revenue",null,null,null,null,null,null,null,null,{"$f":"SUM(E7:I7)","v":0},{"$f":"IF(D7=0,C7+J7,D7+J7)","v":0}]
["Entity 2 total revenue",null,null,null,null,null,null,null,null,0,0]
["Entity 3 (etc) total revenue",null,null,null,null,null,null,null,null,0,0]
[null,null,null,null,null,null,null,null,null,0,0]
[null,null,null,null,null,null,null,null,null,0,0]
[null,null,null,null,null,null,null,null,null,0,0]
[null,null,null,null,null,null,null,null,null,0,0]
[null,null,null,null,null,null,null,null,null,0,0]
[null,null,null,null,null,null,null,null,null,0,0]
[null,null,null,null,null,null,null,null,null,0,0]
["Total Operating Revenue",1,{"$f":"SUM(C7:C16)","v":0},0,0,0,0,0,0,0,0,0,0]
[]
["Expenditure By Municipal Entity"]
["Entity 1 total operating expenditure",null,null,null,null,null,null,null,null,{"$f":"SUM(E20:I20)","v":0},{"$f":"IF(D20=0,C20+J20,D20+J20)","v":0}]
["Entity 2 total operating expenditure",null,null,null,null,null,null,null,null,0,0]
["Entity 3 etc. total operating expenditure",null,null,null,null,null,null,null,null,0,0]
[null,null,null,null,null,null,null,null,null,0,0]
[null,null,null,null,null,null,null,null,null,0,0]
[null,null,null,null,null,null,null,null,null,0,0]
[null,null,null,null,null,null,null,null,null,0,0]
[null,null,null,null,null,null,null,null,null,0,0]
[null,null,null,null,null,null,null,null,null,0,0]
[null,null,null,null,null,null,null,null,null,0,0]
["Total Operating Expenditure",2,{"$f":"SUM(C20:C29)","v":0},0,0,0,0,0,0,0,0,0,0]
[]
["Capital Expenditure By Municipal Entity"]
["Entity 1 total capital expenditure",null,null,null,null,null,null,null,null,{"$f":"SUM(E33:I33)","v":0},{"$f":"IF(D33=0,C33+J33,D33+J33)","v":0}]
["Entity 2 total capital expenditure",null,null,null,null,null,null,null,null,0,0]
["Entity 3 etc. total capital expenditure",null,null,null,null,null,null,null,null,0,0]
[null,null,null,null,null,null,null,null,null,0,0]
[null,null,null,null,null,null,null,null,null,0,0]
[null,null,null,null,null,null,null,null,null,0,0]
[null,null,null,null,null,null,null,null,null,0,0]
[null,null,null,null,null,null,null,null,null,0,0]
[null,null,null,null,null,null,null,null,null,0,0]
[null,null,null,null,null,null,null,null,null,0,0]
["Total Capital Expenditure",2,{"$f":"SUM(C32:C42)","v":0},0,0,0,0,0,0,0,0,0,0]
[{"$f":"head27a","v":"References"}]
["1. Must reconcile to the sum of all municipal entity monthly revenue reports"]
["2. Must reconcile to the sum of all municipal entity monthly expenditure reports"]
["3. Only complete if a previous adjusted budget has been approved in the same financial year. Reflect most recent adjusted budget."]
["4. Additional cash-backed accumulated funds/unspent funds identified after Original Budget approved and after annual financial statements audited (note: only where underspending could not reasonably be have foreseen)"]
["5. Increases of funds approved under section 87 MFMA"]
["6. Adjustments approved in accordance with section 87 MFMA"]
["7. Adjustments made under delegation by the AO since the budget was approved or since a previously 'approved' Adjustments Budget in the same financial year"]
["8. Adjustments to funding allocations by National or Provincial Government"]
["9. Adjusts. = 'Other' Adjustments approved by entity Board; including revenue under-collection ; additional revenue appropriation on existing programmes; projected savings; error correction"]
["10. H = B + C + D + E + F + G"]
["11. Adjusted Budget (H) = (A or A1) + G"]